{"text_format":"1","workbook":"xlsx","n_sheets":7,"sheets":["Info","1. Order","2. Content (NL)","2.1 Content (ENG)","Article Onboarding","Data order","Data content"],"not_rendered":{"charts":0,"images":1,"macros":1,"external_links":0,"defined_names":91,"comments":3,"pivot_tables":0},"unopened":[],"bounds":{"document_bytes":16777216,"sheet_cells":100000,"rows_first":2000,"rows_last":500,"rows_between":2000,"halvings":0,"cell_chars":16384,"cell_head_chars":4096},"cells_cut":0,"cells_raw":0,"read":"whole","date_system":"1900"}

{"sheet":"Info","index":0,"n_rows":105,"n_cols":6,"rows_kept":105,"cut":false,"hidden":false,"merged":[[33,0,33,1],[34,0,34,1],[35,0,35,1],[36,0,36,1],[0,1,0,6],[2,1,2,5],[4,1,4,5],[6,0,6,2],[6,3,6,5]]}
[null,"Wehkamp Retail Group B.V. - Order sheet Fashion "]
[null,"Important notes "]
[null,"Please make sure Tab 1. Order is sent to your contact at WRG's Buying & Sales department no later than 3 months before the confirmed delivery date of this order.\nPlease make sure Tab 2. Content (NL or ENG) is sent to your contact at WRG's Buying & Sales department no later than 1 month before the confirmed delivery date of this order.\n\n"]
[]
[null,"All information about the ordersheet and the most up to date version can always be found on: https://www.wehkamplogistiek.nl/wrg-ordersheets/\nWhen first receiving the new order format, please click ‘accept’ in the pop-ups when opening the sheet so macro's are activated\nPlease always save this file as an Excel file with macro's\nPlease only use thumbnail images in this file\nThe content sheet contains dropdown menu's. For properties with 'Multi' in the name multiple values can be selected from the menu."]
[]
["Definities (Nederlands)",null,null,"Definitions (English)"]
["Wehkamp","grijze kolommen worden automatisch gevuld of door Wehkamp",null,"Wehkamp","grey columns will be filled by Wehkamp or automatically"]
["Leverancier","witte kolommen zijn verplicht en dienen gevuld te worden door de leverancier",null,"Supplier","white columns are mandatory and need to be filled by the supplier"]
["Kolom header ","Definitie","Voorbeeld ","Column header","Definition","Example"]
["Leverdatum van","Datum begin leverblok","2024-09-01","Delivery date from","Date start of delivery","2024-09-01"]
["Leverdatum tot","Datum eind leverblok","2024-09-30","Delivery date to","Date end of delivery ","2024-09-30"]
["Merk","Merk van het artikel","Sofie Schnoor","Brand","Brand of the item","Sofie Schnoor"]
["Merklijn","Merklijn van het artikel","Petit by Sofie Schnoor","Brand line","Brand line of the item","Petit by Sofie Schnoor"]
["Leveranciers artikelnummer","Stijlnummer van het artikel","CLTTOP34AW243329","Style number","Style number of the item","CLTTOP34AW243329"]
["AX Inkooptekst","Stijlnaam van het artikel","Tanja Jersey Tank","Style name","Style name of the item","Tanja Jersey Tank"]
["Inkoopkleur","Kleurcode + naam van het artikel","3329 Pink","Colour number + name","Colour code + name of the item","3329 Pink"]
["DarwinMoverClass","Seizoen van het artikel","winter 2024","DarwinMoverClass","Season ","winter 2024"]
["EAN/UPC","Barcode/EAN/UPC per maat",8719561323412,"EAN/UPC","Barcode/EAN/UPC per size",8719561323412]
["SizeSupplier","Bestelmaat",36,"SizeSupplier","Size on order",36]
["SizeDescription","Maat die op de website wordt getoond","S","SizeDescription","Size on website","S"]
["Aantallen per maat","Besteld aantal van een artikel per maat",25,"QTY per size","Ordered amount per size",25]
["QTYlowest","Minimaal orderaantal per maat",10,"QTYlowest","Lowest order quantity per size",10]
["QTYmultiples","Veelvoud orderaantal per maat",5,"QTYmultiples","Multiple order quantity per size",5]
["CurrencyCodePurchasePrice","Valuta inkoopprijs","EUR","CurrencyCodePurchasePrice","Currency of the purchase price","EUR"]
["Netto inkoopprijs","Netto inkoopprijs van een artikel incl. eventuele kortingen",null,"Currency purchase price","Net purchase price including any discounts"]
["CVP","Consumenten verkoopprijs/RRP, kan afwijken per maat",null,"RRP CVP","Customer selling price/RRP, can vary per size"]
["OVP","Originele verkoopprijs/RRP, kan afwijken per maat",null,"RRP OVP","Original selling price/RRP, can vary per size"]
["Materiaalsamenstelling","Materiaalcompositie in %","60% viscose/35% katoen/5% elastaan ","Material composition in %","Material composition in %","60% viscose/35% katoen/5% elastaan "]
["Filtermateriaal","Hoofdcomponent of look and feel van de materiaalsamenstelling","Viscose/Teddy","Filtermaterial","Most prominent component of the material composition or look and feel","Viscose/Teddy"]
["Customs code","Customs code is de HS-code (Harmonised System code)","Zie sheet (comment in header)","Customs code","Customs code is the HS-code (Harmonised System code)","Please see sheet (comment in header)"]
["Gewicht excl. verpakking","Gewicht van 1 stuk exclusief verpakking (op maatniveau) (gram)",150,"Weight excl. packaging","Weight of 1 piece in grams excluding packaging per size",150]
[]
["Gebruik deze lijst voor de juiste schrijfwijze van de materiaalsoort voor de kolom 'Materiaalsamentelling in %'. Voorbeeld van een correct geschreven materiaalsamenstelling: 80% katoen/10% elastaan/10% polyester. "]
["Use this list for the correct way of writing of an material. Example of an correctly written material composition: 80% cotton/10% elastane/10% polyester."]
["MATERIAL LIST "]
["Ways of writing and translations"]
["Material ENG","Material NL"]
["acetate","acetaat"]
["acrylic","acryl"]
["alpaca","alpaca"]
["angora","angora"]
["bamboo","bamboe"]
["canvas","canvas"]
["down","dons"]
["gemstone","edelsteen"]
["duck feathers","eendenveren"]
["elastane","elastaan"]
["glass","glas"]
["gold","goud"]
["semi-precious stone","halfedelsteen"]
["resin","hars"]
["hemp","hennep"]
["iron","ijzer"]
["faux fur","imitatiebont"]
["faux suede","imitatiesuede"]
["jute","jute"]
["kapok","kapok"]
["cashmere","kasjmier"]
["cotton","katoen"]
["coconut fiber","kokosvezel"]
["crystal","kristal"]
["cork","kurk"]
["leather","leer"]
["linen","linnen"]
["lyocell","lyocell"]
["merino wool","merinowol"]
["brass","messing"]
["metal","metaal"]
["metal thread","metaaldraad"]
["micro leather","microleer"]
["modacrylic","modacryl"]
["mohair","mohair"]
["neoprene","neopreen"]
["palm leaves","palmbladeren"]
["paper","papier"]
["pearl","parel"]
["polyacrylic","polyacryl"]
["polyamide","polyamide"]
["polycarbonate","polycarbonaat"]
["polyester","polyester"]
["polyethylene","polyethyleen"]
["polylactide","polylactide"]
["polyolefins","polyolefins"]
["polypropylene","polypropyleen"]
["polyurethane","polyurethaan"]
["PVC","PVC"]
["raffia","raffia"]
["ramie","ramie"]
["reed","riet"]
["rattan","rotan"]
["rubber","rubber"]
["stainless steel","RVS"]
["silicone","siliconen"]
["steel","staal"]
["Sterling silver","Sterling zilver"]
["straw","stro"]
["suède","suède"]
["Swarovski crystal","Swarovski kristal"]
["viscose","viscose"]
["wool","wol"]
["silk","zijde"]
["silver","zilver"]
["zinc","zink"]
["zirconia","zirkonia"]

{"sheet":"1. Order","index":1,"n_rows":1502,"n_cols":59,"rows_kept":1502,"cut":false,"hidden":false,"merged":[[0,30,0,48],[0,49,0,58],[0,0,0,12],[0,13,0,15],[0,16,0,18],[0,19,0,22],[0,23,0,29]]}
["PRODUCTINFORMATIE",null,null,null,null,null,null,null,null,null,null,null,null,"PRODUCTCATEGORIE",null,null,"MAATINFORMATIE",null,null,"QTY's",null,null,null,"PRIJSINFORMATIE",null,null,null,null,null,null,"MATERIAAL & SUSTAINABILITY",null,null,null,null,null,null,null,null,null,null,null,null,null,null,null,null,null,null,"LOGISTIEKE INFORMATIE"]
[null,null,null,null,null,null,null,null,null,null,null,null,null,null,null,null,null,null,null,{"$f":"SUM(T6:T1048576)","v":0},{"$f":"SUM(U6:U1048576)","v":0},null,null,null,null,null,null,null,{"$f":"SUM(AC6:AC501)","v":0},{"$f":"SUM(AD6:AD501)","v":0}]
["Image","Wehkamp article number","Wehkamp PO#","Delivery date from","Delivery date to","AX supplier number","Brand","Brandline","Stylenumber","Stylename","Colour number + name","Season","EAN13/UPC","Description (ds t-shirt)","MCC3","Articletype","Supplier size","Website size","Barcode size","QTY per size","Total QTY","MOQ","Multiples","Currency purchase price","Purchase price","RRP CVP","RRP OVP","Mark-up","Total WHL Value","Total retail value","Full material composition in %","Percentage 1","Material 1","Percentage 2","Material 2","Percentage 3","Material 3","Percentage 4","Material 4","Percentage 5","Material 5","Percentage 6","Material 6","Filter material","Customs code (HS/GN)","Weight of 1 piece excluding packaging (on size level) (grams)","Certificates: Recycled material","Certificates: Organic material","Certificates: Animal welfare","Wehkamp buyer","Wehkamp planner","SalesSegment","OMID","Hanging/laying","Storezone","LogisticItemGroup","ShippingCosts","WKShippingMethod","PreferredWarehouseIdentificationCode"]
["Afbeelding","Wehkamp artikelnummer","Wehkamp PO nummer","Leverdatum van","Leverdatum tot","AX leveranciersnummer","Merk","Merklijn","Stijlnummer","Stijlnaam","Kleurnummer + naam","Seizoen","EAN13/UPC","Omschrijving (bijv. ds t-shirt)","MCC3","Artikeltype","Leveranciersmaat","Presentatiemaat","Barcodemaat","Aantallen per maat","Totaal aantal","MOQ","Veelvoud","Valuta inkoopprijs","Inkoopprijs","Verkoopprijs CVP","Verkoopprijs OVP","Mark-up","Totaal inkoopwaarde","Totaal verkoopwaarde","Volledige materiaalsamenstelling","Percentage 1","Materiaal 1","Percentage 2","Materiaal 2","Percentage 3","Materiaal 3","Percentage 4","Materiaal 4","Percentage 5","Materiaal 5","Percentage 6","Materiaal 6","Filtermateriaal","Customs code","Gewicht van 1 stuk exclusief verpakking (op maatniveau) (gram)","Certificaten: Gerecycled materiaal","Certificaten: Biologisch materiaal","Certificaten: Dierenwelzijn","Wehkamp buyer","Wehkamp planner","SalesSegment","OMID","Hanggoed/liggoed","Opslaglocatie","LogisticItemGroup","ShippingCosts","WKShippingMethod","PreferredWarehouseIdentificationCode"]
["Afbeelding","Wehkamp artikelnummer","Wehkamp PO nummer","Leverdatum van","Leverdatum tot","AX leveranciersnummer","Merk","Merklijn","Leveranciers artikelnummer (max. 20 posities)","AX Inkooptekst","Inkoopkleur             (max 50 posities)","DarwinMoverClass","EAN13/UPC","AX Naam","Artikelgroepcode","Taxon","SizeSupplier","SizeDescription","SizeWehkamp","Aantallen per maat","Totaal aantal","QTYlowest","QTYmultiples","CurrencyCodePurchasePrice","Netto inkoopprijs","CVP","OVP","Mark-up","Total WHL Value","Total retail value","Materiaalsamenstelling in %","Percentage 1","Materiaal 1","Percentage 2","Materiaal 2","Percentage 3","Materiaal 3","Percentage 4","Materiaal 4","Percentage 5","Materiaal 5","Percentage 6","Materiaal 6","Filtermateriaal","Customs code","Gewicht excl. verpakking","Certificaten: Gerecycled materiaal","Certificaten: Biologisch materiaal","Certificaten: Dierenwelzijn","BuyerGroup","SupplyChainPlanner","SalesSegment","OMID","Hanggoed/liggoed","StoreZone (VAS)","LogisticItemGroup","ShippingCosts","WKShippingMethod","PreferredWarehouseIdentificationCode"]
[null,null,null,null,null,null,null,null,null,null,null,null,null,null,{"$f":"VLOOKUP(N6,Tabel10[[korte omschrijving]:[MCC3_CODE]],2,0)","v":{"$error":"#N/A"}},{"$f":"VLOOKUP(N6,Tabel10[],3,0)","v":{"$error":"#N/A"}},null,null,null,null,null,null,null,"EUR",null,null,null,{"$f":"AA6/Y6","v":{"$error":"#DIV/0!"}},{"$f":"T6*Y6","v":0},{"$f":"T6*AA6","v":0},null,{"$f":"IF(AE6 <> \"\",\n    IF(ISNUMBER(VALUE(LEFT(AE6, FIND(\"%\", AE6)-1))),\n        VALUE(LEFT(AE6, FIND(\"%\", AE6)-1)),\n        \"Invalid format\"),\n    \"\")","v":""},{"$f":"IF(AE6 <> \"\",\n    IF(ISNUMBER(VALUE(LEFT(AE6, FIND(\"%\", AE6)-1))) * ISNUMBER(FIND(\"%\", AE6 & \"wol\")) > 0,\n        TRIM(MID(AE6, FIND(\"%\", AE6)+1, FIND(\"/\", AE6 & \"/\")-FIND(\"%\", AE6)-1)),\n        \"Invalid format\"),\n    \"\")","v":""},{"$f":"IF(AE6 <> \"\",\n    IF(ISNUMBER(VALUE(MID(AE6, FIND(\"/\", AE6) + 1, FIND(\"%\", AE6, FIND(\"/\", AE6)) - FIND(\"/\", AE6) - 1))),\n        VALUE(MID(AE6, FIND(\"/\", AE6) + 1, FIND(\"%\", AE6, FIND(\"/\", AE6)) - FIND(\"/\", AE6) - 1)),\n        \"\"),\n    \"\")","v":""},{"$f":"IF(AE6 <> \"\",\n    IFERROR(TRIM(MID(AE6, FIND(\"%\", AE6, FIND(\"/\", AE6)+1)+2,\n        IFERROR(FIND(\"/\", AE6 & \"/\", FIND(\"/\", AE6)+1)-FIND(\"%\", AE6, FIND(\"/\", AE6)+1)-2, LEN(AE6)-FIND(\"%\", AE6, FIND(\"/\", AE6)+1)-1))),\n        \"\"),\n    \"\")","v":""},{"$f":"IF(AE6 <> \"\",\n    IF(ISNUMBER(VALUE(MID(AE6, FIND(\"/\", AE6, FIND(\"/\", AE6)+1) + 1, FIND(\"%\", AE6, FIND(\"/\", AE6, FIND(\"/\", AE6)+1)) - FIND(\"/\", AE6, FIND(\"/\", AE6)+1) - 1))),\n        VALUE(MID(AE6, FIND(\"/\", AE6, FIND(\"/\", AE6)+1) + 1, FIND(\"%\", AE6, FIND(\"/\", AE6, FIND(\"/\", AE6)+1)) - FIND(\"/\", AE6, FIND(\"/\", AE6)+1) - 1)),\n        \"\"),\n    \"\")","v":""},{"$f":"IF(AE6 <> \"\",\n    IFERROR(\n        TRIM(MID(AE6,\n            FIND(\"%\", AE6, FIND(\"%\", AE6, FIND(\"%\", AE6)+1)+1)+1,\n            FIND(\"/\", AE6 & \"/\", FIND(\"%\", AE6, FIND(\"%\", AE6, FIND(\"%\", AE6)+1)+1))-FIND(\"%\", AE6, FIND(\"%\", AE6, FIND(\"%\", AE6)+1)+1)-1)\n        ),\n        \"\"\n    ),\n    \"\"\n)","v":""},{"$f":"IF(AE6 <> \"\",\n    IF(ISNUMBER(VALUE(MID(AE6, FIND(\"/\", AE6, FIND(\"/\", AE6, FIND(\"/\", AE6)+1)+1) + 1, FIND(\"%\", AE6, FIND(\"/\", AE6, FIND(\"/\", AE6, FIND(\"/\", AE6)+1)+1)) - FIND(\"/\", AE6, FIND(\"/\", AE6, FIND(\"/\", AE6)+1)+1) - 1))),\n        VALUE(MID(AE6, FIND(\"/\", AE6, FIND(\"/\", AE6, FIND(\"/\", AE6)+1)+1) + 1, FIND(\"%\", AE6, FIND(\"/\", AE6, FIND(\"/\", AE6, FIND(\"/\", AE6)+1)+1)) - FIND(\"/\", AE6, FIND(\"/\", AE6, FIND(\"/\", AE6)+1)+1) - 1)),\n        \"\"),\n    \"\")","v":""},{"$f":"IF(AE6 <> \"\",\n    IFERROR(TRIM(MID(AE6, FIND(\"%\", AE6, FIND(\"/\", AE6, FIND(\"/\", AE6, FIND(\"/\", AE6)+1)+1)+1)+2,\n        IFERROR(FIND(\"/\", AE6, FIND(\"/\", AE6, FIND(\"/\", AE6, FIND(\"/\", AE6)+1)+1)+1)-FIND(\"%\", AE6, FIND(\"/\", AE6, FIND(\"/\", AE6, FIND(\"/\", AE6)+1)+1)+1)-2, LEN(AE6)-FIND(\"%\", AE6, FIND(\"/\", AE6, FIND(\"/\", AE6, FIND(\"/\", AE6)+1)+1)+1)-1))),\n        \"\"),\n    \"\")","v":""},{"$f":"IF(AE6 <> \"\",\n    IF(ISNUMBER(VALUE(MID(AE6, FIND(\"/\", AE6, FIND(\"/\", AE6, FIND(\"/\", AE6, FIND(\"/\", AE6)+1)+1)+1) + 1, FIND(\"%\", AE6, FIND(\"/\", AE6, FIND(\"/\", AE6, FIND(\"/\", AE6, FIND(\"/\", AE6)+1)+1)+1)) - FIND(\"/\", AE6, FIND(\"/\", AE6, FIND(\"/\", AE6, FIND(\"/\", AE6)+1)+1)+1) - 1))),\n        VALUE(MID(AE6, FIND(\"/\", AE6, FIND(\"/\", AE6, FIND(\"/\", AE6, FIND(\"/\", AE6)+1)+1)+1) + 1, FIND(\"%\", AE6, FIND(\"/\", AE6, FIND(\"/\", AE6, FIND(\"/\", AE6, FIND(\"/\", AE6)+1)+1)+1)) - FIND(\"/\", AE6, FIND(\"/\", AE6, FIND(\"/\", AE6, FIND(\"/\", AE6)+1)+1)+1) - 1)),\n        \"\"),\n    \"\")","v":""},{"$f":"IF(AE6 = \"\", \"\",\n    IFERROR(TRIM(\n        MID(\n            AE6,\n            FIND(\"%\", AE6, FIND(\"/\", AE6, FIND(\"/\", AE6, FIND(\"/\", AE6, FIND(\"/\", AE6)+1)+1)+1)+1) + 1,\n            FIND(\"/\", AE6 & \"/\", FIND(\"%\", AE6, FIND(\"/\", AE6, FIND(\"/\", AE6, FIND(\"/\", AE6, FIND(\"/\", AE6)+1)+1)+1)+1)) -\n            FIND(\"%\", AE6, FIND(\"/\", AE6, FIND(\"/\", AE6, FIND(\"/\", AE6, FIND(\"/\", AE6)+1)+1)+1)+1) - 1\n        )\n    ),\n    \"\")\n)","v":""},null,null,null,null,null,null,null,null,null,null,null,null,null,null,6,"None","Parcel","ZWO"]
[null,null,null,null,null,null,null,null,null,null,null,null,null,null,{"$f":"VLOOKUP(N7,Tabel10[[korte omschrijving]:[MCC3_CODE]],2,0)","v":{"$error":"#N/A"}},{"$f":"VLOOKUP(N7,Tabel10[],3,0)","v":{"$error":"#N/A"}},null,null,null,null,null,null,null,"EUR",null,null,null,{"$f":"AA7/Y7","v":{"$error":"#DIV/0!"}},{"$f":"T7*Y7","v":0},{"$f":"T7*AA7","v":0},null,{"$f":"IF(AE7 <> \"\",\n    IF(ISNUMBER(VALUE(LEFT(AE7, FIND(\"%\", AE7)-1))),\n        VALUE(LEFT(AE7, FIND(\"%\", AE7)-1)),\n        \"Invalid format\"),\n    \"\")","v":""},{"$f":"IF(AE7 <> \"\",\n    IF(ISNUMBER(VALUE(LEFT(AE7, FIND(\"%\", AE7)-1))) * ISNUMBER(FIND(\"%\", AE7 & \"wol\")) > 0,\n        TRIM(MID(AE7, FIND(\"%\", AE7)+1, FIND(\"/\", AE7 & \"/\")-FIND(\"%\", AE7)-1)),\n        \"Invalid format\"),\n    \"\")","v":""},{"$f":"IF(AE7 <> \"\",\n    IF(ISNUMBER(VALUE(MID(AE7, FIND(\"/\", AE7) + 1, FIND(\"%\", AE7, FIND(\"/\", AE7)) - FIND(\"/\", AE7) - 1))),\n        VALUE(MID(AE7, FIND(\"/\", AE7) + 1, FIND(\"%\", AE7, FIND(\"/\", AE7)) - FIND(\"/\", AE7) - 1)),\n        \"\"),\n    \"\")","v":""},{"$f":"IF(AE7 <> \"\",\n    IFERROR(TRIM(MID(AE7, FIND(\"%\", AE7, FIND(\"/\", AE7)+1)+2,\n        IFERROR(FIND(\"/\", AE7 & \"/\", FIND(\"/\", AE7)+1)-FIND(\"%\", AE7, FIND(\"/\", AE7)+1)-2, LEN(AE7)-FIND(\"%\", AE7, FIND(\"/\", AE7)+1)-1))),\n        \"\"),\n    \"\")","v":""},{"$f":"IF(AE7 <> \"\",\n    IF(ISNUMBER(VALUE(MID(AE7, FIND(\"/\", AE7, FIND(\"/\", AE7)+1) + 1, FIND(\"%\", AE7, FIND(\"/\", AE7, FIND(\"/\", AE7)+1)) - FIND(\"/\", AE7, FIND(\"/\", AE7)+1) - 1))),\n        VALUE(MID(AE7, FIND(\"/\", AE7, FIND(\"/\", AE7)+1) + 1, FIND(\"%\", AE7, FIND(\"/\", AE7, FIND(\"/\", AE7)+1)) - FIND(\"/\", AE7, FIND(\"/\", AE7)+1) - 1)),\n        \"\"),\n    \"\")","v":""},{"$f":"IF(AE7 <> \"\",\n    IFERROR(\n        TRIM(MID(AE7,\n            FIND(\"%\", AE7, FIND(\"%\", AE7, FIND(\"%\", AE7)+1)+1)+1,\n            FIND(\"/\", AE7 & \"/\", FIND(\"%\", AE7, FIND(\"%\", AE7, FIND(\"%\", AE7)+1)+1))-FIND(\"%\", AE7, FIND(\"%\", AE7, FIND(\"%\", AE7)+1)+1)-1)\n        ),\n        \"\"\n    ),\n    \"\"\n)","v":""},{"$f":"IF(AE7 <> \"\",\n    IF(ISNUMBER(VALUE(MID(AE7, FIND(\"/\", AE7, FIND(\"/\", AE7, FIND(\"/\", AE7)+1)+1) + 1, FIND(\"%\", AE7, FIND(\"/\", AE7, FIND(\"/\", AE7, FIND(\"/\", AE7)+1)+1)) - FIND(\"/\", AE7, FIND(\"/\", AE7, FIND(\"/\", AE7)+1)+1) - 1))),\n        VALUE(MID(AE7, FIND(\"/\", AE7, FIND(\"/\", AE7, FIND(\"/\", AE7)+1)+1) + 1, FIND(\"%\", AE7, FIND(\"/\", AE7, FIND(\"/\", AE7, FIND(\"/\", AE7)+1)+1)) - FIND(\"/\", AE7, FIND(\"/\", AE7, FIND(\"/\", AE7)+1)+1) - 1)),\n        \"\"),\n    \"\")","v":""},{"$f":"IF(AE7 <> \"\",\n    IFERROR(TRIM(MID(AE7, FIND(\"%\", AE7, FIND(\"/\", AE7, FIND(\"/\", AE7, FIND(\"/\", AE7)+1)+1)+1)+2,\n        IFERROR(FIND(\"/\", AE7, FIND(\"/\", AE7, FIND(\"/\", AE7, FIND(\"/\", AE7)+1)+1)+1)-FIND(\"%\", AE7, FIND(\"/\", AE7, FIND(\"/\", AE7, FIND(\"/\", AE7)+1)+1)+1)-2, LEN(AE7)-FIND(\"%\", AE7, FIND(\"/\", AE7, FIND(\"/\", AE7, FIND(\"/\", AE7)+1)+1)+1)-1))),\n        \"\"),\n    \"\")","v":""},{"$f":"IF(AE7 <> \"\",\n    IF(ISNUMBER(VALUE(MID(AE7, FIND(\"/\", AE7, FIND(\"/\", AE7, FIND(\"/\", AE7, FIND(\"/\", AE7)+1)+1)+1) + 1, FIND(\"%\", AE7, FIND(\"/\", AE7, FIND(\"/\", AE7, FIND(\"/\", AE7, FIND(\"/\", AE7)+1)+1)+1)) - FIND(\"/\", AE7, FIND(\"/\", AE7, FIND(\"/\", AE7, FIND(\"/\", AE7)+1)+1)+1) - 1))),\n        VALUE(MID(AE7, FIND(\"/\", AE7, FIND(\"/\", AE7, FIND(\"/\", AE7, FIND(\"/\", AE7)+1)+1)+1) + 1, FIND(\"%\", AE7, FIND(\"/\", AE7, FIND(\"/\", AE7, FIND(\"/\", AE7, FIND(\"/\", AE7)+1)+1)+1)) - FIND(\"/\", AE7, FIND(\"/\", AE7, FIND(\"/\", AE7, FIND(\"/\", AE7)+1)+1)+1) - 1)),\n        \"\"),\n    \"\")","v":""},{"$f":"IF(AE7 = \"\", \"\",\n    IFERROR(TRIM(\n        MID(\n            AE7,\n            FIND(\"%\", AE7, FIND(\"/\", AE7, FIND(\"/\", AE7, FIND(\"/\", AE7, FIND(\"/\", AE7)+1)+1)+1)+1) + 1,\n            FIND(\"/\", AE7 & \"/\", FIND(\"%\", AE7, FIND(\"/\", AE7, FIND(\"/\", AE7, FIND(\"/\", AE7, FIND(\"/\", AE7)+1)+1)+1)+1)) -\n            FIND(\"%\", AE7, FIND(\"/\", AE7, FIND(\"/\", AE7, FIND(\"/\", AE7, FIND(\"/\", AE7)+1)+1)+1)+1) - 1\n        )\n    ),\n    \"\")\n)","v":""},null,null,null,null,null,null,null,null,null,null,null,null,null,null,6,"None","Parcel","ZWO"]
[null,null,null,null,null,null,null,null,null,null,null,null,null,null,{"$f":"VLOOKUP(N8,Tabel10[[korte omschrijving]:[MCC3_CODE]],2,0)","v":{"$error":"#N/A"}},{"$f":"VLOOKUP(N8,Tabel10[],3,0)","v":{"$error":"#N/A"}},null,null,null,null,null,null,null,"EUR",null,null,null,{"$error":"#DIV/0!"},0,0,null,"","","","","","","","","","",null,null,null,null,null,null,null,null,null,null,null,null,null,null,6,"None","Parcel","ZWO"]
[null,null,null,null,null,null,null,null,null,null,null,null,null,null,{"$f":"VLOOKUP(N9,Tabel10[[korte omschrijving]:[MCC3_CODE]],2,0)","v":{"$error":"#N/A"}},{"$f":"VLOOKUP(N9,Tabel10[],3,0)","v":{"$error":"#N/A"}},null,null,null,null,null,null,null,"EUR",null,null,null,{"$error":"#DIV/0!"},0,0,null,"","","","","","","","","","",null,null,null,null,null,null,null,null,null,null,null,null,null,null,6,"None","Parcel","ZWO"]
[null,null,null,null,null,null,null,null,null,null,null,null,null,null,{"$f":"VLOOKUP(N10,Tabel10[[korte omschrijving]:[MCC3_CODE]],2,0)","v":{"$error":"#N/A"}},{"$f":"VLOOKUP(N10,Tabel10[],3,0)","v":{"$error":"#N/A"}},null,null,null,null,null,null,null,"EUR",null,null,null,{"$error":"#DIV/0!"},0,0,null,"","","","","","","","","","",null,null,null,null,null,null,null,null,null,null,null,null,null,null,6,"None","Parcel","ZWO"]
[null,null,null,null,null,null,null,null,null,null,null,null,null,null,{"$f":"VLOOKUP(N11,Tabel10[[korte omschrijving]:[MCC3_CODE]],2,0)","v":{"$error":"#N/A"}},{"$f":"VLOOKUP(N11,Tabel10[],3,0)","v":{"$error":"#N/A"}},null,null,null,null,null,null,null,"EUR",null,null,null,{"$error":"#DIV/0!"},0,0,null,"","","","","","","","","","",null,null,null,null,null,null,null,null,null,null,null,null,null,null,6,"None","Parcel","ZWO"]
[null,null,null,null,null,null,null,null,null,null,null,null,null,null,{"$f":"VLOOKUP(N12,Tabel10[[korte omschrijving]:[MCC3_CODE]],2,0)","v":{"$error":"#N/A"}},{"$f":"VLOOKUP(N12,Tabel10[],3,0)","v":{"$error":"#N/A"}},null,null,null,null,null,null,null,"EUR",null,null,null,{"$error":"#DIV/0!"},0,0,null,"","","","","","","","","","",null,null,null,null,null,null,null,null,null,null,null,null,null,null,6,"None","Parcel","ZWO"]
[null,null,null,null,null,null,null,null,null,null,null,null,null,null,{"$f":"VLOOKUP(N13,Tabel10[[korte omschrijving]:[MCC3_CODE]],2,0)","v":{"$error":"#N/A"}},{"$f":"VLOOKUP(N13,Tabel10[],3,0)","v":{"$error":"#N/A"}},null,null,null,null,null,null,null,"EUR",null,null,null,{"$error":"#DIV/0!"},0,0,null,"","","","","","","","","","",null,null,null,null,null,null,null,null,null,null,null,null,null,null,6,"None","Parcel","ZWO"]
[null,null,null,null,null,null,null,null,null,null,null,null,null,null,{"$f":"VLOOKUP(N14,Tabel10[[korte omschrijving]:[MCC3_CODE]],2,0)","v":{"$error":"#N/A"}},{"$f":"VLOOKUP(N14,Tabel10[],3,0)","v":{"$error":"#N/A"}},null,null,null,null,null,null,null,"EUR",null,null,null,{"$error":"#DIV/0!"},0,0,null,"","","","","","","","","","",null,null,null,null,null,null,null,null,null,null,null,null,null,null,6,"None","Parcel","ZWO"]
[null,null,null,null,null,null,null,null,null,null,null,null,null,null,{"$f":"VLOOKUP(N15,Tabel10[[korte omschrijving]:[MCC3_CODE]],2,0)","v":{"$error":"#N/A"}},{"$f":"VLOOKUP(N15,Tabel10[],3,0)","v":{"$error":"#N/A"}},null,null,null,null,null,null,null,"EUR",null,null,null,{"$error":"#DIV/0!"},0,0,null,"","","","","","","","","","",null,null,null,null,null,null,null,null,null,null,null,null,null,null,6,"None","Parcel","ZWO"]
[null,null,null,null,null,null,null,null,null,null,null,null,null,null,{"$f":"VLOOKUP(N16,Tabel10[[korte omschrijving]:[MCC3_CODE]],2,0)","v":{"$error":"#N/A"}},{"$f":"VLOOKUP(N16,Tabel10[],3,0)","v":{"$error":"#N/A"}},null,null,null,null,null,null,null,"EUR",null,null,null,{"$error":"#DIV/0!"},0,0,null,"","","","","","","","","","",null,null,null,null,null,null,null,null,null,null,null,null,null,null,6,"None","Parcel","ZWO"]
[null,null,null,null,null,null,null,null,null,null,null,null,null,null,{"$f":"VLOOKUP(N17,Tabel10[[korte omschrijving]:[MCC3_CODE]],2,0)","v":{"$error":"#N/A"}},{"$f":"VLOOKUP(N17,Tabel10[],3,0)","v":{"$error":"#N/A"}},null,null,null,null,null,null,null,"EUR",null,null,null,{"$error":"#DIV/0!"},0,0,null,"","","","","","","","","","",null,null,null,null,null,null,null,null,null,null,null,null,null,null,6,"None","Parcel","ZWO"]
[null,null,null,null,null,null,null,null,null,null,null,null,null,null,{"$f":"VLOOKUP(N18,Tabel10[[korte omschrijving]:[MCC3_CODE]],2,0)","v":{"$error":"#N/A"}},{"$f":"VLOOKUP(N18,Tabel10[],3,0)","v":{"$error":"#N/A"}},null,null,null,null,null,null,null,"EUR",null,null,null,{"$error":"#DIV/0!"},0,0,null,"","","","","","","","","","",null,null,null,null,null,null,null,null,null,null,null,null,null,null,6,"None","Parcel","ZWO"]
[null,null,null,null,null,null,null,null,null,null,null,null,null,null,{"$f":"VLOOKUP(N19,Tabel10[[korte omschrijving]:[MCC3_CODE]],2,0)","v":{"$error":"#N/A"}},{"$f":"VLOOKUP(N19,Tabel10[],3,0)","v":{"$error":"#N/A"}},null,null,null,null,null,null,null,"EUR",null,null,null,{"$error":"#DIV/0!"},0,0,null,"","","","","","","","","","",null,null,null,null,null,null,null,null,null,null,null,null,null,null,6,"None","Parcel","ZWO"]
[null,null,null,null,null,null,null,null,null,null,null,null,null,null,{"$f":"VLOOKUP(N20,Tabel10[[korte omschrijving]:[MCC3_CODE]],2,0)","v":{"$error":"#N/A"}},{"$f":"VLOOKUP(N20,Tabel10[],3,0)","v":{"$error":"#N/A"}},null,null,null,null,null,null,null,"EUR",null,null,null,{"$error":"#DIV/0!"},0,0,null,"","","","","","","","","","",null,null,null,null,null,null,null,null,null,null,null,null,null,null,6,"None","Parcel","ZWO"]
[null,null,null,null,null,null,null,null,null,null,null,null,null,null,{"$f":"VLOOKUP(N21,Tabel10[[korte omschrijving]:[MCC3_CODE]],2,0)","v":{"$error":"#N/A"}},{"$f":"VLOOKUP(N21,Tabel10[],3,0)","v":{"$error":"#N/A"}},null,null,null,null,null,null,null,"EUR",null,null,null,{"$error":"#DIV/0!"},0,0,null,"","","","","","","","","","",null,null,null,null,null,null,null,null,null,null,null,null,null,null,6,"None","Parcel","ZWO"]
[null,null,null,null,null,null,null,null,null,null,null,null,null,null,{"$f":"VLOOKUP(N22,Tabel10[[korte omschrijving]:[MCC3_CODE]],2,0)","v":{"$error":"#N/A"}},{"$f":"VLOOKUP(N22,Tabel10[],3,0)","v":{"$error":"#N/A"}},null,null,null,null,null,null,null,"EUR",null,null,null,{"$error":"#DIV/0!"},0,0,null,"","","","","","","","","","",null,null,null,null,null,null,null,null,null,null,null,null,null,null,6,"None","Parcel","ZWO"]
[null,null,null,null,null,null,null,null,null,null,null,null,null,null,{"$f":"VLOOKUP(N23,Tabel10[[korte omschrijving]:[MCC3_CODE]],2,0)","v":{"$error":"#N/A"}},{"$f":"VLOOKUP(N23,Tabel10[],3,0)","v":{"$error":"#N/A"}},null,null,null,null,null,null,null,"EUR",null,null,null,{"$error":"#DIV/0!"},0,0,null,"","","","","","","","","","",null,null,null,null,null,null,null,null,null,null,null,null,null,null,6,"None","Parcel","ZWO"]
[null,null,null,null,null,null,null,null,null,null,null,null,null,null,{"$f":"VLOOKUP(N24,Tabel10[[korte omschrijving]:[MCC3_CODE]],2,0)","v":{"$error":"#N/A"}},{"$f":"VLOOKUP(N24,Tabel10[],3,0)","v":{"$error":"#N/A"}},null,null,null,null,null,null,null,"EUR",null,null,null,{"$error":"#DIV/0!"},0,0,null,"","","","","","","","","","",null,null,null,null,null,null,null,null,null,null,null,null,null,null,6,"None","Parcel","ZWO"]
[null,null,null,null,null,null,null,null,null,null,null,null,null,null,{"$f":"VLOOKUP(N25,Tabel10[[korte omschrijving]:[MCC3_CODE]],2,0)","v":{"$error":"#N/A"}},{"$f":"VLOOKUP(N25,Tabel10[],3,0)","v":{"$error":"#N/A"}},null,null,null,null,null,null,null,"EUR",null,null,null,{"$error":"#DIV/0!"},0,0,null,"","","","","","","","","","",null,null,null,null,null,null,null,null,null,null,null,null,null,null,6,"None","Parcel","ZWO"]
[null,null,null,null,null,null,null,null,null,null,null,null,null,null,{"$f":"VLOOKUP(N26,Tabel10[[korte omschrijving]:[MCC3_CODE]],2,0)","v":{"$error":"#N/A"}},{"$f":"VLOOKUP(N26,Tabel10[],3,0)","v":{"$error":"#N/A"}},null,null,null,null,null,null,null,"EUR",null,null,null,{"$error":"#DIV/0!"},0,0,null,"","","","","","","","","","",null,null,null,null,null,null,null,null,null,null,null,null,null,null,6,"None","Parcel","ZWO"]
[null,null,null,null,null,null,null,null,null,null,null,null,null,null,{"$f":"VLOOKUP(N27,Tabel10[[korte omschrijving]:[MCC3_CODE]],2,0)","v":{"$error":"#N/A"}},{"$f":"VLOOKUP(N27,Tabel10[],3,0)","v":{"$error":"#N/A"}},null,null,null,null,null,null,null,"EUR",null,null,null,{"$error":"#DIV/0!"},0,0,null,"","","","","","","","","","",null,null,null,null,null,null,null,null,null,null,null,null,null,null,6,"None","Parcel","ZWO"]
[null,null,null,null,null,null,null,null,null,null,null,null,null,null,{"$f":"VLOOKUP(N28,Tabel10[[korte omschrijving]:[MCC3_CODE]],2,0)","v":{"$error":"#N/A"}},{"$f":"VLOOKUP(N28,Tabel10[],3,0)","v":{"$error":"#N/A"}},null,null,null,null,null,null,null,"EUR",null,null,null,{"$error":"#DIV/0!"},0,0,null,"","","","","","","","","","",null,null,null,null,null,null,null,null,null,null,null,null,null,null,6,"None","Parcel","ZWO"]
[null,null,null,null,null,null,null,null,null,null,null,null,null,null,{"$f":"VLOOKUP(N29,Tabel10[[korte omschrijving]:[MCC3_CODE]],2,0)","v":{"$error":"#N/A"}},{"$f":"VLOOKUP(N29,Tabel10[],3,0)","v":{"$error":"#N/A"}},null,null,null,null,null,null,null,"EUR",null,null,null,{"$error":"#DIV/0!"},0,0,null,"","","","","","","","","","",null,null,null,null,null,null,null,null,null,null,null,null,null,null,6,"None","Parcel","ZWO"]
[null,null,null,null,null,null,null,null,null,null,null,null,null,null,{"$f":"VLOOKUP(N30,Tabel10[[korte omschrijving]:[MCC3_CODE]],2,0)","v":{"$error":"#N/A"}},{"$f":"VLOOKUP(N30,Tabel10[],3,0)","v":{"$error":"#N/A"}},null,null,null,null,null,null,null,"EUR",null,null,null,{"$error":"#DIV/0!"},0,0,null,"","","","","","","","","","",null,null,null,null,null,null,null,null,null,null,null,null,null,null,6,"None","Parcel","ZWO"]
[null,null,null,null,null,null,null,null,null,null,null,null,null,null,{"$f":"VLOOKUP(N31,Tabel10[[korte omschrijving]:[MCC3_CODE]],2,0)","v":{"$error":"#N/A"}},{"$f":"VLOOKUP(N31,Tabel10[],3,0)","v":{"$error":"#N/A"}},null,null,null,null,null,null,null,"EUR",null,null,null,{"$error":"#DIV/0!"},0,0,null,"","","","","","","","","","",null,null,null,null,null,null,null,null,null,null,null,null,null,null,6,"None","Parcel","ZWO"]
[null,null,null,null,null,null,null,null,null,null,null,null,null,null,{"$f":"VLOOKUP(N32,Tabel10[[korte omschrijving]:[MCC3_CODE]],2,0)","v":{"$error":"#N/A"}},{"$f":"VLOOKUP(N32,Tabel10[],3,0)","v":{"$error":"#N/A"}},null,null,null,null,null,null,null,"EUR",null,null,null,{"$error":"#DIV/0!"},0,0,null,"","","","","","","","","","",null,null,null,null,null,null,null,null,null,null,null,null,null,null,6,"None","Parcel","ZWO"]
[null,null,null,null,null,null,null,null,null,null,null,null,null,null,{"$f":"VLOOKUP(N33,Tabel10[[korte omschrijving]:[MCC3_CODE]],2,0)","v":{"$error":"#N/A"}},{"$f":"VLOOKUP(N33,Tabel10[],3,0)","v":{"$error":"#N/A"}},null,null,null,null,null,null,null,"EUR",null,null,null,{"$error":"#DIV/0!"},0,0,null,"","","","","","","","","","",null,null,null,null,null,null,null,null,null,null,null,null,null,null,6,"None","Parcel","ZWO"]
[null,null,null,null,null,null,null,null,null,null,null,null,null,null,{"$f":"VLOOKUP(N34,Tabel10[[korte omschrijving]:[MCC3_CODE]],2,0)","v":{"$error":"#N/A"}},{"$f":"VLOOKUP(N34,Tabel10[],3,0)","v":{"$error":"#N/A"}},null,null,null,null,null,null,null,"EUR",null,null,null,{"$error":"#DIV/0!"},0,0,null,"","","","","","","","","","",null,null,null,null,null,null,null,null,null,null,null,null,null,null,6,"None","Parcel","ZWO"]
[null,null,null,null,null,null,null,null,null,null,null,null,null,null,{"$f":"VLOOKUP(N35,Tabel10[[korte omschrijving]:[MCC3_CODE]],2,0)","v":{"$error":"#N/A"}},{"$f":"VLOOKUP(N35,Tabel10[],3,0)","v":{"$error":"#N/A"}},null,null,null,null,null,null,null,"EUR",null,null,null,{"$error":"#DIV/0!"},0,0,null,"","","","","","","","","","",null,null,null,null,null,null,null,null,null,null,null,null,null,null,6,"None","Parcel","ZWO"]
[null,null,null,null,null,null,null,null,null,null,null,null,null,null,{"$f":"VLOOKUP(N36,Tabel10[[korte omschrijving]:[MCC3_CODE]],2,0)","v":{"$error":"#N/A"}},{"$f":"VLOOKUP(N36,Tabel10[],3,0)","v":{"$error":"#N/A"}},null,null,null,null,null,null,null,"EUR",null,null,null,{"$error":"#DIV/0!"},0,0,null,"","","","","","","","","","",null,null,null,null,null,null,null,null,null,null,null,null,null,null,6,"None","Parcel","ZWO"]
[null,null,null,null,null,null,null,null,null,null,null,null,null,null,{"$f":"VLOOKUP(N37,Tabel10[[korte omschrijving]:[MCC3_CODE]],2,0)","v":{"$error":"#N/A"}},{"$f":"VLOOKUP(N37,Tabel10[],3,0)","v":{"$error":"#N/A"}},null,null,null,null,null,null,null,"EUR",null,null,null,{"$error":"#DIV/0!"},0,0,null,"","","","","","","","","","",null,null,null,null,null,null,null,null,null,null,null,null,null,null,6,"None","Parcel","ZWO"]
[null,null,null,null,null,null,null,null,null,null,null,null,null,null,{"$f":"VLOOKUP(N38,Tabel10[[korte omschrijving]:[MCC3_CODE]],2,0)","v":{"$error":"#N/A"}},{"$f":"VLOOKUP(N38,Tabel10[],3,0)","v":{"$error":"#N/A"}},null,null,null,null,null,null,null,"EUR",null,null,null,{"$error":"#DIV/0!"},0,0,null,"","","","","","","","","","",null,null,null,null,null,null,null,null,null,null,null,null,null,null,6,"None","Parcel","ZWO"]
[null,null,null,null,null,null,null,null,null,null,null,null,null,null,{"$f":"VLOOKUP(N39,Tabel10[[korte omschrijving]:[MCC3_CODE]],2,0)","v":{"$error":"#N/A"}},{"$f":"VLOOKUP(N39,Tabel10[],3,0)","v":{"$error":"#N/A"}},null,null,null,null,null,null,null,"EUR",null,null,null,{"$error":"#DIV/0!"},0,0,null,"","","","","","","","","","",null,null,null,null,null,null,null,null,null,null,null,null,null,null,6,"None","Parcel","ZWO"]
[null,null,null,null,null,null,null,null,null,null,null,null,null,null,{"$f":"VLOOKUP(N40,Tabel10[[korte omschrijving]:[MCC3_CODE]],2,0)","v":{"$error":"#N/A"}},{"$f":"VLOOKUP(N40,Tabel10[],3,0)","v":{"$error":"#N/A"}},null,null,null,null,null,null,null,"EUR",null,null,null,{"$error":"#DIV/0!"},0,0,null,"","","","","","","","","","",null,null,null,null,null,null,null,null,null,null,null,null,null,null,6,"None","Parcel","ZWO"]
[null,null,null,null,null,null,null,null,null,null,null,null,null,null,{"$f":"VLOOKUP(N41,Tabel10[[korte omschrijving]:[MCC3_CODE]],2,0)","v":{"$error":"#N/A"}},{"$f":"VLOOKUP(N41,Tabel10[],3,0)","v":{"$error":"#N/A"}},null,null,null,null,null,null,null,"EUR",null,null,null,{"$error":"#DIV/0!"},0,0,null,"","","","","","","","","","",null,null,null,null,null,null,null,null,null,null,null,null,null,null,6,"None","Parcel","ZWO"]
[null,null,null,null,null,null,null,null,null,null,null,null,null,null,{"$f":"VLOOKUP(N42,Tabel10[[korte omschrijving]:[MCC3_CODE]],2,0)","v":{"$error":"#N/A"}},{"$f":"VLOOKUP(N42,Tabel10[],3,0)","v":{"$error":"#N/A"}},null,null,null,null,null,null,null,"EUR",null,null,null,{"$error":"#DIV/0!"},0,0,null,"","","","","","","","","","",null,null,null,null,null,null,null,null,null,null,null,null,null,null,6,"None","Parcel","ZWO"]
[null,null,null,null,null,null,null,null,null,null,null,null,null,null,{"$f":"VLOOKUP(N43,Tabel10[[korte omschrijving]:[MCC3_CODE]],2,0)","v":{"$error":"#N/A"}},{"$f":"VLOOKUP(N43,Tabel10[],3,0)","v":{"$error":"#N/A"}},null,null,null,null,null,null,null,"EUR",null,null,null,{"$error":"#DIV/0!"},0,0,null,"","","","","","","","","","",null,null,null,null,null,null,null,null,null,null,null,null,null,null,6,"None","Parcel","ZWO"]
[null,null,null,null,null,null,null,null,null,null,null,null,null,null,{"$f":"VLOOKUP(N44,Tabel10[[korte omschrijving]:[MCC3_CODE]],2,0)","v":{"$error":"#N/A"}},{"$f":"VLOOKUP(N44,Tabel10[],3,0)","v":{"$error":"#N/A"}},null,null,null,null,null,null,null,"EUR",null,null,null,{"$error":"#DIV/0!"},0,0,null,"","","","","","","","","","",null,null,null,null,null,null,null,null,null,null,null,null,null,null,6,"None","Parcel","ZWO"]
[null,null,null,null,null,null,null,null,null,null,null,null,null,null,{"$f":"VLOOKUP(N45,Tabel10[[korte omschrijving]:[MCC3_CODE]],2,0)","v":{"$error":"#N/A"}},{"$f":"VLOOKUP(N45,Tabel10[],3,0)","v":{"$error":"#N/A"}},null,null,null,null,null,null,null,"EUR",null,null,null,{"$error":"#DIV/0!"},0,0,null,"","","","","","","","","","",null,null,null,null,null,null,null,null,null,null,null,null,null,null,6,"None","Parcel","ZWO"]
[null,null,null,null,null,null,null,null,null,null,null,null,null,null,{"$f":"VLOOKUP(N46,Tabel10[[korte omschrijving]:[MCC3_CODE]],2,0)","v":{"$error":"#N/A"}},{"$f":"VLOOKUP(N46,Tabel10[],3,0)","v":{"$error":"#N/A"}},null,null,null,null,null,null,null,"EUR",null,null,null,{"$error":"#DIV/0!"},0,0,null,"","","","","","","","","","",null,null,null,null,null,null,null,null,null,null,null,null,null,null,6,"None","Parcel","ZWO"]
[null,null,null,null,null,null,null,null,null,null,null,null,null,null,{"$f":"VLOOKUP(N47,Tabel10[[korte omschrijving]:[MCC3_CODE]],2,0)","v":{"$error":"#N/A"}},{"$f":"VLOOKUP(N47,Tabel10[],3,0)","v":{"$error":"#N/A"}},null,null,null,null,null,null,null,"EUR",null,null,null,{"$error":"#DIV/0!"},0,0,null,"","","","","","","","","","",null,null,null,null,null,null,null,null,null,null,null,null,null,null,6,"None","Parcel","ZWO"]
[null,null,null,null,null,null,null,null,null,null,null,null,null,null,{"$f":"VLOOKUP(N48,Tabel10[[korte omschrijving]:[MCC3_CODE]],2,0)","v":{"$error":"#N/A"}},{"$f":"VLOOKUP(N48,Tabel10[],3,0)","v":{"$error":"#N/A"}},null,null,null,null,null,null,null,"EUR",null,null,null,{"$error":"#DIV/0!"},0,0,null,"","","","","","","","","","",null,null,null,null,null,null,null,null,null,null,null,null,null,null,6,"None","Parcel","ZWO"]
[null,null,null,null,null,null,null,null,null,null,null,null,null,null,{"$f":"VLOOKUP(N49,Tabel10[[korte omschrijving]:[MCC3_CODE]],2,0)","v":{"$error":"#N/A"}},{"$f":"VLOOKUP(N49,Tabel10[],3,0)","v":{"$error":"#N/A"}},null,null,null,null,null,null,null,"EUR",null,null,null,{"$error":"#DIV/0!"},0,0,null,"","","","","","","","","","",null,null,null,null,null,null,null,null,null,null,null,null,null,null,6,"None","Parcel","ZWO"]
[null,null,null,null,null,null,null,null,null,null,null,null,null,null,{"$f":"VLOOKUP(N50,Tabel10[[korte omschrijving]:[MCC3_CODE]],2,0)","v":{"$error":"#N/A"}},{"$f":"VLOOKUP(N50,Tabel10[],3,0)","v":{"$error":"#N/A"}},null,null,null,null,null,null,null,"EUR",null,null,null,{"$error":"#DIV/0!"},0,0,null,"","","","","","","","","","",null,null,null,null,null,null,null,null,null,null,null,null,null,null,6,"None","Parcel","ZWO"]
[null,null,null,null,null,null,null,null,null,null,null,null,null,null,{"$f":"VLOOKUP(N51,Tabel10[[korte omschrijving]:[MCC3_CODE]],2,0)","v":{"$error":"#N/A"}},{"$f":"VLOOKUP(N51,Tabel10[],3,0)","v":{"$error":"#N/A"}},null,null,null,null,null,null,null,"EUR",null,null,null,{"$error":"#DIV/0!"},0,0,null,"","","","","","","","","","",null,null,null,null,null,null,null,null,null,null,null,null,null,null,6,"None","Parcel","ZWO"]
[null,null,null,null,null,null,null,null,null,null,null,null,null,null,{"$f":"VLOOKUP(N52,Tabel10[[korte omschrijving]:[MCC3_CODE]],2,0)","v":{"$error":"#N/A"}},{"$f":"VLOOKUP(N52,Tabel10[],3,0)","v":{"$error":"#N/A"}},null,null,null,null,null,null,null,"EUR",null,null,null,{"$error":"#DIV/0!"},0,0,null,"","","","","","","","","","",null,null,null,null,null,null,null,null,null,null,null,null,null,null,6,"None","Parcel","ZWO"]
[null,null,null,null,null,null,null,null,null,null,null,null,null,null,{"$f":"VLOOKUP(N53,Tabel10[[korte omschrijving]:[MCC3_CODE]],2,0)","v":{"$error":"#N/A"}},{"$f":"VLOOKUP(N53,Tabel10[],3,0)","v":{"$error":"#N/A"}},null,null,null,null,null,null,null,"EUR",null,null,null,{"$error":"#DIV/0!"},0,0,null,"","","","","","","","","","",null,null,null,null,null,null,null,null,null,null,null,null,null,null,6,"None","Parcel","ZWO"]
[null,null,null,null,null,null,null,null,null,null,null,null,null,null,{"$f":"VLOOKUP(N54,Tabel10[[korte omschrijving]:[MCC3_CODE]],2,0)","v":{"$error":"#N/A"}},{"$f":"VLOOKUP(N54,Tabel10[],3,0)","v":{"$error":"#N/A"}},null,null,null,null,null,null,null,"EUR",null,null,null,{"$error":"#DIV/0!"},0,0,null,"","","","","","","","","","",null,null,null,null,null,null,null,null,null,null,null,null,null,null,6,"None","Parcel","ZWO"]
[null,null,null,null,null,null,null,null,null,null,null,null,null,null,{"$f":"VLOOKUP(N55,Tabel10[[korte omschrijving]:[MCC3_CODE]],2,0)","v":{"$error":"#N/A"}},{"$f":"VLOOKUP(N55,Tabel10[],3,0)","v":{"$error":"#N/A"}},null,null,null,null,null,null,null,"EUR",null,null,null,{"$error":"#DIV/0!"},0,0,null,"","","","","","","","","","",null,null,null,null,null,null,null,null,null,null,null,null,null,null,6,"None","Parcel","ZWO"]
[null,null,null,null,null,null,null,null,null,null,null,null,null,null,{"$f":"VLOOKUP(N56,Tabel10[[korte omschrijving]:[MCC3_CODE]],2,0)","v":{"$error":"#N/A"}},{"$f":"VLOOKUP(N56,Tabel10[],3,0)","v":{"$error":"#N/A"}},null,null,null,null,null,null,null,"EUR",null,null,null,{"$error":"#DIV/0!"},0,0,null,"","","","","","","","","","",null,null,null,null,null,null,null,null,null,null,null,null,null,null,6,"None","Parcel","ZWO"]
[null,null,null,null,null,null,null,null,null,null,null,null,null,null,{"$f":"VLOOKUP(N57,Tabel10[[korte omschrijving]:[MCC3_CODE]],2,0)","v":{"$error":"#N/A"}},{"$f":"VLOOKUP(N57,Tabel10[],3,0)","v":{"$error":"#N/A"}},null,null,null,null,null,null,null,"EUR",null,null,null,{"$error":"#DIV/0!"},0,0,null,"","","","","","","","","","",null,null,null,null,null,null,null,null,null,null,null,null,null,null,6,"None","Parcel","ZWO"]
[null,null,null,null,null,null,null,null,null,null,null,null,null,null,{"$f":"VLOOKUP(N58,Tabel10[[korte omschrijving]:[MCC3_CODE]],2,0)","v":{"$error":"#N/A"}},{"$f":"VLOOKUP(N58,Tabel10[],3,0)","v":{"$error":"#N/A"}},null,null,null,null,null,null,null,"EUR",null,null,null,{"$error":"#DIV/0!"},0,0,null,"","","","","","","","","","",null,null,null,null,null,null,null,null,null,null,null,null,null,null,6,"None","Parcel","ZWO"]
[null,null,null,null,null,null,null,null,null,null,null,null,null,null,{"$f":"VLOOKUP(N59,Tabel10[[korte omschrijving]:[MCC3_CODE]],2,0)","v":{"$error":"#N/A"}},{"$f":"VLOOKUP(N59,Tabel10[],3,0)","v":{"$error":"#N/A"}},null,null,null,null,null,null,null,"EUR",null,null,null,{"$error":"#DIV/0!"},0,0,null,"","","","","","","","","","",null,null,null,null,null,null,null,null,null,null,null,null,null,null,6,"None","Parcel","ZWO"]
[null,null,null,null,null,null,null,null,null,null,null,null,null,null,{"$f":"VLOOKUP(N60,Tabel10[[korte omschrijving]:[MCC3_CODE]],2,0)","v":{"$error":"#N/A"}},{"$f":"VLOOKUP(N60,Tabel10[],3,0)","v":{"$error":"#N/A"}},null,null,null,null,null,null,null,"EUR",null,null,null,{"$error":"#DIV/0!"},0,0,null,"","","","","","","","","","",null,null,null,null,null,null,null,null,null,null,null,null,null,null,6,"None","Parcel","ZWO"]
[null,null,null,null,null,null,null,null,null,null,null,null,null,null,{"$f":"VLOOKUP(N61,Tabel10[[korte omschrijving]:[MCC3_CODE]],2,0)","v":{"$error":"#N/A"}},{"$f":"VLOOKUP(N61,Tabel10[],3,0)","v":{"$error":"#N/A"}},null,null,null,null,null,null,null,"EUR",null,null,null,{"$error":"#DIV/0!"},0,0,null,"","","","","","","","","","",null,null,null,null,null,null,null,null,null,null,null,null,null,null,6,"None","Parcel","ZWO"]
[null,null,null,null,null,null,null,null,null,null,null,null,null,null,{"$f":"VLOOKUP(N62,Tabel10[[korte omschrijving]:[MCC3_CODE]],2,0)","v":{"$error":"#N/A"}},{"$f":"VLOOKUP(N62,Tabel10[],3,0)","v":{"$error":"#N/A"}},null,null,null,null,null,null,null,"EUR",null,null,null,{"$error":"#DIV/0!"},0,0,null,"","","","","","","","","","",null,null,null,null,null,null,null,null,null,null,null,null,null,null,6,"None","Parcel","ZWO"]
[null,null,null,null,null,null,null,null,null,null,null,null,null,null,{"$f":"VLOOKUP(N63,Tabel10[[korte omschrijving]:[MCC3_CODE]],2,0)","v":{"$error":"#N/A"}},{"$f":"VLOOKUP(N63,Tabel10[],3,0)","v":{"$error":"#N/A"}},null,null,null,null,null,null,null,"EUR",null,null,null,{"$error":"#DIV/0!"},0,0,null,"","","","","","","","","","",null,null,null,null,null,null,null,null,null,null,null,null,null,null,6,"None","Parcel","ZWO"]
[null,null,null,null,null,null,null,null,null,null,null,null,null,null,{"$f":"VLOOKUP(N64,Tabel10[[korte omschrijving]:[MCC3_CODE]],2,0)","v":{"$error":"#N/A"}},{"$f":"VLOOKUP(N64,Tabel10[],3,0)","v":{"$error":"#N/A"}},null,null,null,null,null,null,null,"EUR",null,null,null,{"$error":"#DIV/0!"},0,0,null,"","","","","","","","","","",null,null,null,null,null,null,null,null,null,null,null,null,null,null,6,"None","Parcel","ZWO"]
[null,null,null,null,null,null,null,null,null,null,null,null,null,null,{"$f":"VLOOKUP(N65,Tabel10[[korte omschrijving]:[MCC3_CODE]],2,0)","v":{"$error":"#N/A"}},{"$f":"VLOOKUP(N65,Tabel10[],3,0)","v":{"$error":"#N/A"}},null,null,null,null,null,null,null,"EUR",null,null,null,{"$error":"#DIV/0!"},0,0,null,"","","","","","","","","","",null,null,null,null,null,null,null,null,null,null,null,null,null,null,6,"None","Parcel","ZWO"]
[null,null,null,null,null,null,null,null,null,null,null,null,null,null,{"$f":"VLOOKUP(N66,Tabel10[[korte omschrijving]:[MCC3_CODE]],2,0)","v":{"$error":"#N/A"}},{"$f":"VLOOKUP(N66,Tabel10[],3,0)","v":{"$error":"#N/A"}},null,null,null,null,null,null,null,"EUR",null,null,null,{"$error":"#DIV/0!"},0,0,null,"","","","","","","","","","",null,null,null,null,null,null,null,null,null,null,null,null,null,null,6,"None","Parcel","ZWO"]
[null,null,null,null,null,null,null,null,null,null,null,null,null,null,{"$f":"VLOOKUP(N67,Tabel10[[korte omschrijving]:[MCC3_CODE]],2,0)","v":{"$error":"#N/A"}},{"$f":"VLOOKUP(N67,Tabel10[],3,0)","v":{"$error":"#N/A"}},null,null,null,null,null,null,null,"EUR",null,null,null,{"$error":"#DIV/0!"},0,0,null,"","","","","","","","","","",null,null,null,null,null,null,null,null,null,null,null,null,null,null,6,"None","Parcel","ZWO"]
[null,null,null,null,null,null,null,null,null,null,null,null,null,null,{"$f":"VLOOKUP(N68,Tabel10[[korte omschrijving]:[MCC3_CODE]],2,0)","v":{"$error":"#N/A"}},{"$f":"VLOOKUP(N68,Tabel10[],3,0)","v":{"$error":"#N/A"}},null,null,null,null,null,null,null,"EUR",null,null,null,{"$error":"#DIV/0!"},0,0,null,"","","","","","","","","","",null,null,null,null,null,null,null,null,null,null,null,null,null,null,6,"None","Parcel","ZWO"]
[null,null,null,null,null,null,null,null,null,null,null,null,null,null,{"$f":"VLOOKUP(N69,Tabel10[[korte omschrijving]:[MCC3_CODE]],2,0)","v":{"$error":"#N/A"}},{"$f":"VLOOKUP(N69,Tabel10[],3,0)","v":{"$error":"#N/A"}},null,null,null,null,null,null,null,"EUR",null,null,null,{"$error":"#DIV/0!"},0,0,null,"","","","","","","","","","",null,null,null,null,null,null,null,null,null,null,null,null,null,null,6,"None","Parcel","ZWO"]
[null,null,null,null,null,null,null,null,null,null,null,null,null,null,{"$f":"VLOOKUP(N70,Tabel10[[korte omschrijving]:[MCC3_CODE]],2,0)","v":{"$error":"#N/A"}},{"$f":"VLOOKUP(N70,Tabel10[],3,0)","v":{"$error":"#N/A"}},null,null,null,null,null,null,null,"EUR",null,null,null,{"$error":"#DIV/0!"},0,0,null,"","","","","","","","","","",null,null,null,null,null,null,null,null,null,null,null,null,null,null,6,"None","Parcel","ZWO"]
[null,null,null,null,null,null,null,null,null,null,null,null,null,null,{"$f":"VLOOKUP(N71,Tabel10[[korte omschrijving]:[MCC3_CODE]],2,0)","v":{"$error":"#N/A"}},{"$f":"VLOOKUP(N71,Tabel10[],3,0)","v":{"$error":"#N/A"}},null,null,null,null,null,null,null,"EUR",null,null,null,{"$f":"AA71/Y71","v":{"$error":"#DIV/0!"}},{"$f":"T71*Y71","v":0},{"$f":"T71*AA71","v":0},null,{"$f":"IF(AE71 <> \"\",\n    IF(ISNUMBER(VALUE(LEFT(AE71, FIND(\"%\", AE71)-1))),\n        VALUE(LEFT(AE71, FIND(\"%\", AE71)-1)),\n        \"Invalid format\"),\n    \"\")","v":""},{"$f":"IF(AE71 <> \"\",\n    IF(ISNUMBER(VALUE(LEFT(AE71, FIND(\"%\", AE71)-1))) * ISNUMBER(FIND(\"%\", AE71 & \"wol\")) > 0,\n        TRIM(MID(AE71, FIND(\"%\", AE71)+1, FIND(\"/\", AE71 & \"/\")-FIND(\"%\", AE71)-1)),\n        \"Invalid format\"),\n    \"\")","v":""},{"$f":"IF(AE71 <> \"\",\n    IF(ISNUMBER(VALUE(MID(AE71, FIND(\"/\", AE71) + 1, FIND(\"%\", AE71, FIND(\"/\", AE71)) - FIND(\"/\", AE71) - 1))),\n        VALUE(MID(AE71, FIND(\"/\", AE71) + 1, FIND(\"%\", AE71, FIND(\"/\", AE71)) - FIND(\"/\", AE71) - 1)),\n        \"\"),\n    \"\")","v":""},{"$f":"IF(AE71 <> \"\",\n    IFERROR(TRIM(MID(AE71, FIND(\"%\", AE71, FIND(\"/\", AE71)+1)+2,\n        IFERROR(FIND(\"/\", AE71 & \"/\", FIND(\"/\", AE71)+1)-FIND(\"%\", AE71, FIND(\"/\", AE71)+1)-2, LEN(AE71)-FIND(\"%\", AE71, FIND(\"/\", AE71)+1)-1))),\n        \"\"),\n    \"\")","v":""},{"$f":"IF(AE71 <> \"\",\n    IF(ISNUMBER(VALUE(MID(AE71, FIND(\"/\", AE71, FIND(\"/\", AE71)+1) + 1, FIND(\"%\", AE71, FIND(\"/\", AE71, FIND(\"/\", AE71)+1)) - FIND(\"/\", AE71, FIND(\"/\", AE71)+1) - 1))),\n        VALUE(MID(AE71, FIND(\"/\", AE71, FIND(\"/\", AE71)+1) + 1, FIND(\"%\", AE71, FIND(\"/\", AE71, FIND(\"/\", AE71)+1)) - FIND(\"/\", AE71, FIND(\"/\", AE71)+1) - 1)),\n        \"\"),\n    \"\")","v":""},{"$f":"IF(AE71 <> \"\",\n    IFERROR(\n        TRIM(MID(AE71,\n            FIND(\"%\", AE71, FIND(\"%\", AE71, FIND(\"%\", AE71)+1)+1)+1,\n            FIND(\"/\", AE71 & \"/\", FIND(\"%\", AE71, FIND(\"%\", AE71, FIND(\"%\", AE71)+1)+1))-FIND(\"%\", AE71, FIND(\"%\", AE71, FIND(\"%\", AE71)+1)+1)-1)\n        ),\n        \"\"\n    ),\n    \"\"\n)","v":""},{"$f":"IF(AE71 <> \"\",\n    IF(ISNUMBER(VALUE(MID(AE71, FIND(\"/\", AE71, FIND(\"/\", AE71, FIND(\"/\", AE71)+1)+1) + 1, FIND(\"%\", AE71, FIND(\"/\", AE71, FIND(\"/\", AE71, FIND(\"/\", AE71)+1)+1)) - FIND(\"/\", AE71, FIND(\"/\", AE71, FIND(\"/\", AE71)+1)+1) - 1))),\n        VALUE(MID(AE71, FIND(\"/\", AE71, FIND(\"/\", AE71, FIND(\"/\", AE71)+1)+1) + 1, FIND(\"%\", AE71, FIND(\"/\", AE71, FIND(\"/\", AE71, FIND(\"/\", AE71)+1)+1)) - FIND(\"/\", AE71, FIND(\"/\", AE71, FIND(\"/\", AE71)+1)+1) - 1)),\n        \"\"),\n    \"\")","v":""},{"$f":"IF(AE71 <> \"\",\n    IFERROR(TRIM(MID(AE71, FIND(\"%\", AE71, FIND(\"/\", AE71, FIND(\"/\", AE71, FIND(\"/\", AE71)+1)+1)+1)+2,\n        IFERROR(FIND(\"/\", AE71, FIND(\"/\", AE71, FIND(\"/\", AE71, FIND(\"/\", AE71)+1)+1)+1)-FIND(\"%\", AE71, FIND(\"/\", AE71, FIND(\"/\", AE71, FIND(\"/\", AE71)+1)+1)+1)-2, LEN(AE71)-FIND(\"%\", AE71, FIND(\"/\", AE71, FIND(\"/\", AE71, FIND(\"/\", AE71)+1)+1)+1)-1))),\n        \"\"),\n    \"\")","v":""},{"$f":"IF(AE71 <> \"\",\n    IF(ISNUMBER(VALUE(MID(AE71, FIND(\"/\", AE71, FIND(\"/\", AE71, FIND(\"/\", AE71, FIND(\"/\", AE71)+1)+1)+1) + 1, FIND(\"%\", AE71, FIND(\"/\", AE71, FIND(\"/\", AE71, FIND(\"/\", AE71, FIND(\"/\", AE71)+1)+1)+1)) - FIND(\"/\", AE71, FIND(\"/\", AE71, FIND(\"/\", AE71, FIND(\"/\", AE71)+1)+1)+1) - 1))),\n        VALUE(MID(AE71, FIND(\"/\", AE71, FIND(\"/\", AE71, FIND(\"/\", AE71, FIND(\"/\", AE71)+1)+1)+1) + 1, FIND(\"%\", AE71, FIND(\"/\", AE71, FIND(\"/\", AE71, FIND(\"/\", AE71, FIND(\"/\", AE71)+1)+1)+1)) - FIND(\"/\", AE71, FIND(\"/\", AE71, FIND(\"/\", AE71, FIND(\"/\", AE71)+1)+1)+1) - 1)),\n        \"\"),\n    \"\")","v":""},{"$f":"IF(AE71 = \"\", \"\",\n    IFERROR(TRIM(\n        MID(\n            AE71,\n            FIND(\"%\", AE71, FIND(\"/\", AE71, FIND(\"/\", AE71, FIND(\"/\", AE71, FIND(\"/\", AE71)+1)+1)+1)+1) + 1,\n            FIND(\"/\", AE71 & \"/\", FIND(\"%\", AE71, FIND(\"/\", AE71, FIND(\"/\", AE71, FIND(\"/\", AE71, FIND(\"/\", AE71)+1)+1)+1)+1)) -\n            FIND(\"%\", AE71, FIND(\"/\", AE71, FIND(\"/\", AE71, FIND(\"/\", AE71, FIND(\"/\", AE71)+1)+1)+1)+1) - 1\n        )\n    ),\n    \"\")\n)","v":""},null,null,null,null,null,null,null,null,null,null,null,null,null,null,6,"None","Parcel","ZWO"]
[null,null,null,null,null,null,null,null,null,null,null,null,null,null,{"$f":"VLOOKUP(N72,Tabel10[[korte omschrijving]:[MCC3_CODE]],2,0)","v":{"$error":"#N/A"}},{"$f":"VLOOKUP(N72,Tabel10[],3,0)","v":{"$error":"#N/A"}},null,null,null,null,null,null,null,"EUR",null,null,null,{"$error":"#DIV/0!"},0,0,null,"","","","","","","","","","",null,null,null,null,null,null,null,null,null,null,null,null,null,null,6,"None","Parcel","ZWO"]
[null,null,null,null,null,null,null,null,null,null,null,null,null,null,{"$f":"VLOOKUP(N73,Tabel10[[korte omschrijving]:[MCC3_CODE]],2,0)","v":{"$error":"#N/A"}},{"$f":"VLOOKUP(N73,Tabel10[],3,0)","v":{"$error":"#N/A"}},null,null,null,null,null,null,null,"EUR",null,null,null,{"$error":"#DIV/0!"},0,0,null,"","","","","","","","","","",null,null,null,null,null,null,null,null,null,null,null,null,null,null,6,"None","Parcel","ZWO"]
[null,null,null,null,null,null,null,null,null,null,null,null,null,null,{"$f":"VLOOKUP(N74,Tabel10[[korte omschrijving]:[MCC3_CODE]],2,0)","v":{"$error":"#N/A"}},{"$f":"VLOOKUP(N74,Tabel10[],3,0)","v":{"$error":"#N/A"}},null,null,null,null,null,null,null,"EUR",null,null,null,{"$error":"#DIV/0!"},0,0,null,"","","","","","","","","","",null,null,null,null,null,null,null,null,null,null,null,null,null,null,6,"None","Parcel","ZWO"]
[null,null,null,null,null,null,null,null,null,null,null,null,null,null,{"$f":"VLOOKUP(N75,Tabel10[[korte omschrijving]:[MCC3_CODE]],2,0)","v":{"$error":"#N/A"}},{"$f":"VLOOKUP(N75,Tabel10[],3,0)","v":{"$error":"#N/A"}},null,null,null,null,null,null,null,"EUR",null,null,null,{"$error":"#DIV/0!"},0,0,null,"","","","","","","","","","",null,null,null,null,null,null,null,null,null,null,null,null,null,null,6,"None","Parcel","ZWO"]
[null,null,null,null,null,null,null,null,null,null,null,null,null,null,{"$f":"VLOOKUP(N76,Tabel10[[korte omschrijving]:[MCC3_CODE]],2,0)","v":{"$error":"#N/A"}},{"$f":"VLOOKUP(N76,Tabel10[],3,0)","v":{"$error":"#N/A"}},null,null,null,null,null,null,null,"EUR",null,null,null,{"$error":"#DIV/0!"},0,0,null,"","","","","","","","","","",null,null,null,null,null,null,null,null,null,null,null,null,null,null,6,"None","Parcel","ZWO"]
[null,null,null,null,null,null,null,null,null,null,null,null,null,null,{"$f":"VLOOKUP(N77,Tabel10[[korte omschrijving]:[MCC3_CODE]],2,0)","v":{"$error":"#N/A"}},{"$f":"VLOOKUP(N77,Tabel10[],3,0)","v":{"$error":"#N/A"}},null,null,null,null,null,null,null,"EUR",null,null,null,{"$error":"#DIV/0!"},0,0,null,"","","","","","","","","","",null,null,null,null,null,null,null,null,null,null,null,null,null,null,6,"None","Parcel","ZWO"]
[null,null,null,null,null,null,null,null,null,null,null,null,null,null,{"$f":"VLOOKUP(N78,Tabel10[[korte omschrijving]:[MCC3_CODE]],2,0)","v":{"$error":"#N/A"}},{"$f":"VLOOKUP(N78,Tabel10[],3,0)","v":{"$error":"#N/A"}},null,null,null,null,null,null,null,"EUR",null,null,null,{"$error":"#DIV/0!"},0,0,null,"","","","","","","","","","",null,null,null,null,null,null,null,null,null,null,null,null,null,null,6,"None","Parcel","ZWO"]
[null,null,null,null,null,null,null,null,null,null,null,null,null,null,{"$f":"VLOOKUP(N79,Tabel10[[korte omschrijving]:[MCC3_CODE]],2,0)","v":{"$error":"#N/A"}},{"$f":"VLOOKUP(N79,Tabel10[],3,0)","v":{"$error":"#N/A"}},null,null,null,null,null,null,null,"EUR",null,null,null,{"$error":"#DIV/0!"},0,0,null,"","","","","","","","","","",null,null,null,null,null,null,null,null,null,null,null,null,null,null,6,"None","Parcel","ZWO"]
[null,null,null,null,null,null,null,null,null,null,null,null,null,null,{"$f":"VLOOKUP(N80,Tabel10[[korte omschrijving]:[MCC3_CODE]],2,0)","v":{"$error":"#N/A"}},{"$f":"VLOOKUP(N80,Tabel10[],3,0)","v":{"$error":"#N/A"}},null,null,null,null,null,null,null,"EUR",null,null,null,{"$error":"#DIV/0!"},0,0,null,"","","","","","","","","","",null,null,null,null,null,null,null,null,null,null,null,null,null,null,6,"None","Parcel","ZWO"]
[null,null,null,null,null,null,null,null,null,null,null,null,null,null,{"$f":"VLOOKUP(N81,Tabel10[[korte omschrijving]:[MCC3_CODE]],2,0)","v":{"$error":"#N/A"}},{"$f":"VLOOKUP(N81,Tabel10[],3,0)","v":{"$error":"#N/A"}},null,null,null,null,null,null,null,"EUR",null,null,null,{"$error":"#DIV/0!"},0,0,null,"","","","","","","","","","",null,null,null,null,null,null,null,null,null,null,null,null,null,null,6,"None","Parcel","ZWO"]
[null,null,null,null,null,null,null,null,null,null,null,null,null,null,{"$f":"VLOOKUP(N82,Tabel10[[korte omschrijving]:[MCC3_CODE]],2,0)","v":{"$error":"#N/A"}},{"$f":"VLOOKUP(N82,Tabel10[],3,0)","v":{"$error":"#N/A"}},null,null,null,null,null,null,null,"EUR",null,null,null,{"$error":"#DIV/0!"},0,0,null,"","","","","","","","","","",null,null,null,null,null,null,null,null,null,null,null,null,null,null,6,"None","Parcel","ZWO"]
[null,null,null,null,null,null,null,null,null,null,null,null,null,null,{"$f":"VLOOKUP(N83,Tabel10[[korte omschrijving]:[MCC3_CODE]],2,0)","v":{"$error":"#N/A"}},{"$f":"VLOOKUP(N83,Tabel10[],3,0)","v":{"$error":"#N/A"}},null,null,null,null,null,null,null,"EUR",null,null,null,{"$error":"#DIV/0!"},0,0,null,"","","","","","","","","","",null,null,null,null,null,null,null,null,null,null,null,null,null,null,6,"None","Parcel","ZWO"]
[null,null,null,null,null,null,null,null,null,null,null,null,null,null,{"$f":"VLOOKUP(N84,Tabel10[[korte omschrijving]:[MCC3_CODE]],2,0)","v":{"$error":"#N/A"}},{"$f":"VLOOKUP(N84,Tabel10[],3,0)","v":{"$error":"#N/A"}},null,null,null,null,null,null,null,"EUR",null,null,null,{"$error":"#DIV/0!"},0,0,null,"","","","","","","","","","",null,null,null,null,null,null,null,null,null,null,null,null,null,null,6,"None","Parcel","ZWO"]
[null,null,null,null,null,null,null,null,null,null,null,null,null,null,{"$f":"VLOOKUP(N85,Tabel10[[korte omschrijving]:[MCC3_CODE]],2,0)","v":{"$error":"#N/A"}},{"$f":"VLOOKUP(N85,Tabel10[],3,0)","v":{"$error":"#N/A"}},null,null,null,null,null,null,null,"EUR",null,null,null,{"$error":"#DIV/0!"},0,0,null,"","","","","","","","","","",null,null,null,null,null,null,null,null,null,null,null,null,null,null,6,"None","Parcel","ZWO"]
[null,null,null,null,null,null,null,null,null,null,null,null,null,null,{"$f":"VLOOKUP(N86,Tabel10[[korte omschrijving]:[MCC3_CODE]],2,0)","v":{"$error":"#N/A"}},{"$f":"VLOOKUP(N86,Tabel10[],3,0)","v":{"$error":"#N/A"}},null,null,null,null,null,null,null,"EUR",null,null,null,{"$error":"#DIV/0!"},0,0,null,"","","","","","","","","","",null,null,null,null,null,null,null,null,null,null,null,null,null,null,6,"None","Parcel","ZWO"]
[null,null,null,null,null,null,null,null,null,null,null,null,null,null,{"$f":"VLOOKUP(N87,Tabel10[[korte omschrijving]:[MCC3_CODE]],2,0)","v":{"$error":"#N/A"}},{"$f":"VLOOKUP(N87,Tabel10[],3,0)","v":{"$error":"#N/A"}},null,null,null,null,null,null,null,"EUR",null,null,null,{"$error":"#DIV/0!"},0,0,null,"","","","","","","","","","",null,null,null,null,null,null,null,null,null,null,null,null,null,null,6,"None","Parcel","ZWO"]
[null,null,null,null,null,null,null,null,null,null,null,null,null,null,{"$f":"VLOOKUP(N88,Tabel10[[korte omschrijving]:[MCC3_CODE]],2,0)","v":{"$error":"#N/A"}},{"$f":"VLOOKUP(N88,Tabel10[],3,0)","v":{"$error":"#N/A"}},null,null,null,null,null,null,null,"EUR",null,null,null,{"$error":"#DIV/0!"},0,0,null,"","","","","","","","","","",null,null,null,null,null,null,null,null,null,null,null,null,null,null,6,"None","Parcel","ZWO"]
[null,null,null,null,null,null,null,null,null,null,null,null,null,null,{"$f":"VLOOKUP(N89,Tabel10[[korte omschrijving]:[MCC3_CODE]],2,0)","v":{"$error":"#N/A"}},{"$f":"VLOOKUP(N89,Tabel10[],3,0)","v":{"$error":"#N/A"}},null,null,null,null,null,null,null,"EUR",null,null,null,{"$error":"#DIV/0!"},0,0,null,"","","","","","","","","","",null,null,null,null,null,null,null,null,null,null,null,null,null,null,6,"None","Parcel","ZWO"]
[null,null,null,null,null,null,null,null,null,null,null,null,null,null,{"$f":"VLOOKUP(N90,Tabel10[[korte omschrijving]:[MCC3_CODE]],2,0)","v":{"$error":"#N/A"}},{"$f":"VLOOKUP(N90,Tabel10[],3,0)","v":{"$error":"#N/A"}},null,null,null,null,null,null,null,"EUR",null,null,null,{"$error":"#DIV/0!"},0,0,null,"","","","","","","","","","",null,null,null,null,null,null,null,null,null,null,null,null,null,null,6,"None","Parcel","ZWO"]
[null,null,null,null,null,null,null,null,null,null,null,null,null,null,{"$f":"VLOOKUP(N91,Tabel10[[korte omschrijving]:[MCC3_CODE]],2,0)","v":{"$error":"#N/A"}},{"$f":"VLOOKUP(N91,Tabel10[],3,0)","v":{"$error":"#N/A"}},null,null,null,null,null,null,null,"EUR",null,null,null,{"$error":"#DIV/0!"},0,0,null,"","","","","","","","","","",null,null,null,null,null,null,null,null,null,null,null,null,null,null,6,"None","Parcel","ZWO"]
[null,null,null,null,null,null,null,null,null,null,null,null,null,null,{"$f":"VLOOKUP(N92,Tabel10[[korte omschrijving]:[MCC3_CODE]],2,0)","v":{"$error":"#N/A"}},{"$f":"VLOOKUP(N92,Tabel10[],3,0)","v":{"$error":"#N/A"}},null,null,null,null,null,null,null,"EUR",null,null,null,{"$error":"#DIV/0!"},0,0,null,"","","","","","","","","","",null,null,null,null,null,null,null,null,null,null,null,null,null,null,6,"None","Parcel","ZWO"]
[null,null,null,null,null,null,null,null,null,null,null,null,null,null,{"$f":"VLOOKUP(N93,Tabel10[[korte omschrijving]:[MCC3_CODE]],2,0)","v":{"$error":"#N/A"}},{"$f":"VLOOKUP(N93,Tabel10[],3,0)","v":{"$error":"#N/A"}},null,null,null,null,null,null,null,"EUR",null,null,null,{"$error":"#DIV/0!"},0,0,null,"","","","","","","","","","",null,null,null,null,null,null,null,null,null,null,null,null,null,null,6,"None","Parcel","ZWO"]
[null,null,null,null,null,null,null,null,null,null,null,null,null,null,{"$f":"VLOOKUP(N94,Tabel10[[korte omschrijving]:[MCC3_CODE]],2,0)","v":{"$error":"#N/A"}},{"$f":"VLOOKUP(N94,Tabel10[],3,0)","v":{"$error":"#N/A"}},null,null,null,null,null,null,null,"EUR",null,null,null,{"$error":"#DIV/0!"},0,0,null,"","","","","","","","","","",null,null,null,null,null,null,null,null,null,null,null,null,null,null,6,"None","Parcel","ZWO"]
[null,null,null,null,null,null,null,null,null,null,null,null,null,null,{"$f":"VLOOKUP(N95,Tabel10[[korte omschrijving]:[MCC3_CODE]],2,0)","v":{"$error":"#N/A"}},{"$f":"VLOOKUP(N95,Tabel10[],3,0)","v":{"$error":"#N/A"}},null,null,null,null,null,null,null,"EUR",null,null,null,{"$error":"#DIV/0!"},0,0,null,"","","","","","","","","","",null,null,null,null,null,null,null,null,null,null,null,null,null,null,6,"None","Parcel","ZWO"]
[null,null,null,null,null,null,null,null,null,null,null,null,null,null,{"$f":"VLOOKUP(N96,Tabel10[[korte omschrijving]:[MCC3_CODE]],2,0)","v":{"$error":"#N/A"}},{"$f":"VLOOKUP(N96,Tabel10[],3,0)","v":{"$error":"#N/A"}},null,null,null,null,null,null,null,"EUR",null,null,null,{"$error":"#DIV/0!"},0,0,null,"","","","","","","","","","",null,null,null,null,null,null,null,null,null,null,null,null,null,null,6,"None","Parcel","ZWO"]
[null,null,null,null,null,null,null,null,null,null,null,null,null,null,{"$f":"VLOOKUP(N97,Tabel10[[korte omschrijving]:[MCC3_CODE]],2,0)","v":{"$error":"#N/A"}},{"$f":"VLOOKUP(N97,Tabel10[],3,0)","v":{"$error":"#N/A"}},null,null,null,null,null,null,null,"EUR",null,null,null,{"$error":"#DIV/0!"},0,0,null,"","","","","","","","","","",null,null,null,null,null,null,null,null,null,null,null,null,null,null,6,"None","Parcel","ZWO"]
[null,null,null,null,null,null,null,null,null,null,null,null,null,null,{"$f":"VLOOKUP(N98,Tabel10[[korte omschrijving]:[MCC3_CODE]],2,0)","v":{"$error":"#N/A"}},{"$f":"VLOOKUP(N98,Tabel10[],3,0)","v":{"$error":"#N/A"}},null,null,null,null,null,null,null,"EUR",null,null,null,{"$error":"#DIV/0!"},0,0,null,"","","","","","","","","","",null,null,null,null,null,null,null,null,null,null,null,null,null,null,6,"None","Parcel","ZWO"]
[null,null,null,null,null,null,null,null,null,null,null,null,null,null,{"$f":"VLOOKUP(N99,Tabel10[[korte omschrijving]:[MCC3_CODE]],2,0)","v":{"$error":"#N/A"}},{"$f":"VLOOKUP(N99,Tabel10[],3,0)","v":{"$error":"#N/A"}},null,null,null,null,null,null,null,"EUR",null,null,null,{"$error":"#DIV/0!"},0,0,null,"","","","","","","","","","",null,null,null,null,null,null,null,null,null,null,null,null,null,null,6,"None","Parcel","ZWO"]
[null,null,null,null,null,null,null,null,null,null,null,null,null,null,{"$f":"VLOOKUP(N100,Tabel10[[korte omschrijving]:[MCC3_CODE]],2,0)","v":{"$error":"#N/A"}},{"$f":"VLOOKUP(N100,Tabel10[],3,0)","v":{"$error":"#N/A"}},null,null,null,null,null,null,null,"EUR",null,null,null,{"$error":"#DIV/0!"},0,0,null,"","","","","","","","","","",null,null,null,null,null,null,null,null,null,null,null,null,null,null,6,"None","Parcel","ZWO"]
[null,null,null,null,null,null,null,null,null,null,null,null,null,null,{"$f":"VLOOKUP(N101,Tabel10[[korte omschrijving]:[MCC3_CODE]],2,0)","v":{"$error":"#N/A"}},{"$f":"VLOOKUP(N101,Tabel10[],3,0)","v":{"$error":"#N/A"}},null,null,null,null,null,null,null,"EUR",null,null,null,{"$error":"#DIV/0!"},0,0,null,"","","","","","","","","","",null,null,null,null,null,null,null,null,null,null,null,null,null,null,6,"None","Parcel","ZWO"]
[null,null,null,null,null,null,null,null,null,null,null,null,null,null,{"$f":"VLOOKUP(N102,Tabel10[[korte omschrijving]:[MCC3_CODE]],2,0)","v":{"$error":"#N/A"}},{"$f":"VLOOKUP(N102,Tabel10[],3,0)","v":{"$error":"#N/A"}},null,null,null,null,null,null,null,"EUR",null,null,null,{"$error":"#DIV/0!"},0,0,null,"","","","","","","","","","",null,null,null,null,null,null,null,null,null,null,null,null,null,null,6,"None","Parcel","ZWO"]
[null,null,null,null,null,null,null,null,null,null,null,null,null,null,{"$f":"VLOOKUP(N103,Tabel10[[korte omschrijving]:[MCC3_CODE]],2,0)","v":{"$error":"#N/A"}},{"$f":"VLOOKUP(N103,Tabel10[],3,0)","v":{"$error":"#N/A"}},null,null,null,null,null,null,null,"EUR",null,null,null,{"$error":"#DIV/0!"},0,0,null,"","","","","","","","","","",null,null,null,null,null,null,null,null,null,null,null,null,null,null,6,"None","Parcel","ZWO"]
[null,null,null,null,null,null,null,null,null,null,null,null,null,null,{"$f":"VLOOKUP(N104,Tabel10[[korte omschrijving]:[MCC3_CODE]],2,0)","v":{"$error":"#N/A"}},{"$f":"VLOOKUP(N104,Tabel10[],3,0)","v":{"$error":"#N/A"}},null,null,null,null,null,null,null,"EUR",null,null,null,{"$error":"#DIV/0!"},0,0,null,"","","","","","","","","","",null,null,null,null,null,null,null,null,null,null,null,null,null,null,6,"None","Parcel","ZWO"]
[null,null,null,null,null,null,null,null,null,null,null,null,null,null,{"$f":"VLOOKUP(N105,Tabel10[[korte omschrijving]:[MCC3_CODE]],2,0)","v":{"$error":"#N/A"}},{"$f":"VLOOKUP(N105,Tabel10[],3,0)","v":{"$error":"#N/A"}},null,null,null,null,null,null,null,"EUR",null,null,null,{"$error":"#DIV/0!"},0,0,null,"","","","","","","","","","",null,null,null,null,null,null,null,null,null,null,null,null,null,null,6,"None","Parcel","ZWO"]
[null,null,null,null,null,null,null,null,null,null,null,null,null,null,{"$f":"VLOOKUP(N106,Tabel10[[korte omschrijving]:[MCC3_CODE]],2,0)","v":{"$error":"#N/A"}},{"$f":"VLOOKUP(N106,Tabel10[],3,0)","v":{"$error":"#N/A"}},null,null,null,null,null,null,null,"EUR",null,null,null,{"$error":"#DIV/0!"},0,0,null,"","","","","","","","","","",null,null,null,null,null,null,null,null,null,null,null,null,null,null,6,"None","Parcel","ZWO"]
[null,null,null,null,null,null,null,null,null,null,null,null,null,null,{"$f":"VLOOKUP(N107,Tabel10[[korte omschrijving]:[MCC3_CODE]],2,0)","v":{"$error":"#N/A"}},{"$f":"VLOOKUP(N107,Tabel10[],3,0)","v":{"$error":"#N/A"}},null,null,null,null,null,null,null,"EUR",null,null,null,{"$error":"#DIV/0!"},0,0,null,"","","","","","","","","","",null,null,null,null,null,null,null,null,null,null,null,null,null,null,6,"None","Parcel","ZWO"]
[null,null,null,null,null,null,null,null,null,null,null,null,null,null,{"$f":"VLOOKUP(N108,Tabel10[[korte omschrijving]:[MCC3_CODE]],2,0)","v":{"$error":"#N/A"}},{"$f":"VLOOKUP(N108,Tabel10[],3,0)","v":{"$error":"#N/A"}},null,null,null,null,null,null,null,"EUR",null,null,null,{"$error":"#DIV/0!"},0,0,null,"","","","","","","","","","",null,null,null,null,null,null,null,null,null,null,null,null,null,null,6,"None","Parcel","ZWO"]
[null,null,null,null,null,null,null,null,null,null,null,null,null,null,{"$f":"VLOOKUP(N109,Tabel10[[korte omschrijving]:[MCC3_CODE]],2,0)","v":{"$error":"#N/A"}},{"$f":"VLOOKUP(N109,Tabel10[],3,0)","v":{"$error":"#N/A"}},null,null,null,null,null,null,null,"EUR",null,null,null,{"$error":"#DIV/0!"},0,0,null,"","","","","","","","","","",null,null,null,null,null,null,null,null,null,null,null,null,null,null,6,"None","Parcel","ZWO"]
[null,null,null,null,null,null,null,null,null,null,null,null,null,null,{"$f":"VLOOKUP(N110,Tabel10[[korte omschrijving]:[MCC3_CODE]],2,0)","v":{"$error":"#N/A"}},{"$f":"VLOOKUP(N110,Tabel10[],3,0)","v":{"$error":"#N/A"}},null,null,null,null,null,null,null,"EUR",null,null,null,{"$error":"#DIV/0!"},0,0,null,"","","","","","","","","","",null,null,null,null,null,null,null,null,null,null,null,null,null,null,6,"None","Parcel","ZWO"]
[null,null,null,null,null,null,null,null,null,null,null,null,null,null,{"$f":"VLOOKUP(N111,Tabel10[[korte omschrijving]:[MCC3_CODE]],2,0)","v":{"$error":"#N/A"}},{"$f":"VLOOKUP(N111,Tabel10[],3,0)","v":{"$error":"#N/A"}},null,null,null,null,null,null,null,"EUR",null,null,null,{"$error":"#DIV/0!"},0,0,null,"","","","","","","","","","",null,null,null,null,null,null,null,null,null,null,null,null,null,null,6,"None","Parcel","ZWO"]
[null,null,null,null,null,null,null,null,null,null,null,null,null,null,{"$f":"VLOOKUP(N112,Tabel10[[korte omschrijving]:[MCC3_CODE]],2,0)","v":{"$error":"#N/A"}},{"$f":"VLOOKUP(N112,Tabel10[],3,0)","v":{"$error":"#N/A"}},null,null,null,null,null,null,null,"EUR",null,null,null,{"$error":"#DIV/0!"},0,0,null,"","","","","","","","","","",null,null,null,null,null,null,null,null,null,null,null,null,null,null,6,"None","Parcel","ZWO"]
[null,null,null,null,null,null,null,null,null,null,null,null,null,null,{"$f":"VLOOKUP(N113,Tabel10[[korte omschrijving]:[MCC3_CODE]],2,0)","v":{"$error":"#N/A"}},{"$f":"VLOOKUP(N113,Tabel10[],3,0)","v":{"$error":"#N/A"}},null,null,null,null,null,null,null,"EUR",null,null,null,{"$error":"#DIV/0!"},0,0,null,"","","","","","","","","","",null,null,null,null,null,null,null,null,null,null,null,null,null,null,6,"None","Parcel","ZWO"]
[null,null,null,null,null,null,null,null,null,null,null,null,null,null,{"$f":"VLOOKUP(N114,Tabel10[[korte omschrijving]:[MCC3_CODE]],2,0)","v":{"$error":"#N/A"}},{"$f":"VLOOKUP(N114,Tabel10[],3,0)","v":{"$error":"#N/A"}},null,null,null,null,null,null,null,"EUR",null,null,null,{"$error":"#DIV/0!"},0,0,null,"","","","","","","","","","",null,null,null,null,null,null,null,null,null,null,null,null,null,null,6,"None","Parcel","ZWO"]
[null,null,null,null,null,null,null,null,null,null,null,null,null,null,{"$f":"VLOOKUP(N115,Tabel10[[korte omschrijving]:[MCC3_CODE]],2,0)","v":{"$error":"#N/A"}},{"$f":"VLOOKUP(N115,Tabel10[],3,0)","v":{"$error":"#N/A"}},null,null,null,null,null,null,null,"EUR",null,null,null,{"$error":"#DIV/0!"},0,0,null,"","","","","","","","","","",null,null,null,null,null,null,null,null,null,null,null,null,null,null,6,"None","Parcel","ZWO"]
[null,null,null,null,null,null,null,null,null,null,null,null,null,null,{"$f":"VLOOKUP(N116,Tabel10[[korte omschrijving]:[MCC3_CODE]],2,0)","v":{"$error":"#N/A"}},{"$f":"VLOOKUP(N116,Tabel10[],3,0)","v":{"$error":"#N/A"}},null,null,null,null,null,null,null,"EUR",null,null,null,{"$error":"#DIV/0!"},0,0,null,"","","","","","","","","","",null,null,null,null,null,null,null,null,null,null,null,null,null,null,6,"None","Parcel","ZWO"]
[null,null,null,null,null,null,null,null,null,null,null,null,null,null,{"$f":"VLOOKUP(N117,Tabel10[[korte omschrijving]:[MCC3_CODE]],2,0)","v":{"$error":"#N/A"}},{"$f":"VLOOKUP(N117,Tabel10[],3,0)","v":{"$error":"#N/A"}},null,null,null,null,null,null,null,"EUR",null,null,null,{"$error":"#DIV/0!"},0,0,null,"","","","","","","","","","",null,null,null,null,null,null,null,null,null,null,null,null,null,null,6,"None","Parcel","ZWO"]
[null,null,null,null,null,null,null,null,null,null,null,null,null,null,{"$f":"VLOOKUP(N118,Tabel10[[korte omschrijving]:[MCC3_CODE]],2,0)","v":{"$error":"#N/A"}},{"$f":"VLOOKUP(N118,Tabel10[],3,0)","v":{"$error":"#N/A"}},null,null,null,null,null,null,null,"EUR",null,null,null,{"$error":"#DIV/0!"},0,0,null,"","","","","","","","","","",null,null,null,null,null,null,null,null,null,null,null,null,null,null,6,"None","Parcel","ZWO"]
[null,null,null,null,null,null,null,null,null,null,null,null,null,null,{"$f":"VLOOKUP(N119,Tabel10[[korte omschrijving]:[MCC3_CODE]],2,0)","v":{"$error":"#N/A"}},{"$f":"VLOOKUP(N119,Tabel10[],3,0)","v":{"$error":"#N/A"}},null,null,null,null,null,null,null,"EUR",null,null,null,{"$error":"#DIV/0!"},0,0,null,"","","","","","","","","","",null,null,null,null,null,null,null,null,null,null,null,null,null,null,6,"None","Parcel","ZWO"]
[null,null,null,null,null,null,null,null,null,null,null,null,null,null,{"$f":"VLOOKUP(N120,Tabel10[[korte omschrijving]:[MCC3_CODE]],2,0)","v":{"$error":"#N/A"}},{"$f":"VLOOKUP(N120,Tabel10[],3,0)","v":{"$error":"#N/A"}},null,null,null,null,null,null,null,"EUR",null,null,null,{"$error":"#DIV/0!"},0,0,null,"","","","","","","","","","",null,null,null,null,null,null,null,null,null,null,null,null,null,null,6,"None","Parcel","ZWO"]
[null,null,null,null,null,null,null,null,null,null,null,null,null,null,{"$f":"VLOOKUP(N121,Tabel10[[korte omschrijving]:[MCC3_CODE]],2,0)","v":{"$error":"#N/A"}},{"$f":"VLOOKUP(N121,Tabel10[],3,0)","v":{"$error":"#N/A"}},null,null,null,null,null,null,null,"EUR",null,null,null,{"$error":"#DIV/0!"},0,0,null,"","","","","","","","","","",null,null,null,null,null,null,null,null,null,null,null,null,null,null,6,"None","Parcel","ZWO"]
[null,null,null,null,null,null,null,null,null,null,null,null,null,null,{"$f":"VLOOKUP(N122,Tabel10[[korte omschrijving]:[MCC3_CODE]],2,0)","v":{"$error":"#N/A"}},{"$f":"VLOOKUP(N122,Tabel10[],3,0)","v":{"$error":"#N/A"}},null,null,null,null,null,null,null,"EUR",null,null,null,{"$error":"#DIV/0!"},0,0,null,"","","","","","","","","","",null,null,null,null,null,null,null,null,null,null,null,null,null,null,6,"None","Parcel","ZWO"]
[null,null,null,null,null,null,null,null,null,null,null,null,null,null,{"$f":"VLOOKUP(N123,Tabel10[[korte omschrijving]:[MCC3_CODE]],2,0)","v":{"$error":"#N/A"}},{"$f":"VLOOKUP(N123,Tabel10[],3,0)","v":{"$error":"#N/A"}},null,null,null,null,null,null,null,"EUR",null,null,null,{"$error":"#DIV/0!"},0,0,null,"","","","","","","","","","",null,null,null,null,null,null,null,null,null,null,null,null,null,null,6,"None","Parcel","ZWO"]
[null,null,null,null,null,null,null,null,null,null,null,null,null,null,{"$f":"VLOOKUP(N124,Tabel10[[korte omschrijving]:[MCC3_CODE]],2,0)","v":{"$error":"#N/A"}},{"$f":"VLOOKUP(N124,Tabel10[],3,0)","v":{"$error":"#N/A"}},null,null,null,null,null,null,null,"EUR",null,null,null,{"$error":"#DIV/0!"},0,0,null,"","","","","","","","","","",null,null,null,null,null,null,null,null,null,null,null,null,null,null,6,"None","Parcel","ZWO"]
[null,null,null,null,null,null,null,null,null,null,null,null,null,null,{"$f":"VLOOKUP(N125,Tabel10[[korte omschrijving]:[MCC3_CODE]],2,0)","v":{"$error":"#N/A"}},{"$f":"VLOOKUP(N125,Tabel10[],3,0)","v":{"$error":"#N/A"}},null,null,null,null,null,null,null,"EUR",null,null,null,{"$error":"#DIV/0!"},0,0,null,"","","","","","","","","","",null,null,null,null,null,null,null,null,null,null,null,null,null,null,6,"None","Parcel","ZWO"]
[null,null,null,null,null,null,null,null,null,null,null,null,null,null,{"$f":"VLOOKUP(N126,Tabel10[[korte omschrijving]:[MCC3_CODE]],2,0)","v":{"$error":"#N/A"}},{"$f":"VLOOKUP(N126,Tabel10[],3,0)","v":{"$error":"#N/A"}},null,null,null,null,null,null,null,"EUR",null,null,null,{"$error":"#DIV/0!"},0,0,null,"","","","","","","","","","",null,null,null,null,null,null,null,null,null,null,null,null,null,null,6,"None","Parcel","ZWO"]
[null,null,null,null,null,null,null,null,null,null,null,null,null,null,{"$f":"VLOOKUP(N127,Tabel10[[korte omschrijving]:[MCC3_CODE]],2,0)","v":{"$error":"#N/A"}},{"$f":"VLOOKUP(N127,Tabel10[],3,0)","v":{"$error":"#N/A"}},null,null,null,null,null,null,null,"EUR",null,null,null,{"$error":"#DIV/0!"},0,0,null,"","","","","","","","","","",null,null,null,null,null,null,null,null,null,null,null,null,null,null,6,"None","Parcel","ZWO"]
[null,null,null,null,null,null,null,null,null,null,null,null,null,null,{"$f":"VLOOKUP(N128,Tabel10[[korte omschrijving]:[MCC3_CODE]],2,0)","v":{"$error":"#N/A"}},{"$f":"VLOOKUP(N128,Tabel10[],3,0)","v":{"$error":"#N/A"}},null,null,null,null,null,null,null,"EUR",null,null,null,{"$error":"#DIV/0!"},0,0,null,"","","","","","","","","","",null,null,null,null,null,null,null,null,null,null,null,null,null,null,6,"None","Parcel","ZWO"]
[null,null,null,null,null,null,null,null,null,null,null,null,null,null,{"$f":"VLOOKUP(N129,Tabel10[[korte omschrijving]:[MCC3_CODE]],2,0)","v":{"$error":"#N/A"}},{"$f":"VLOOKUP(N129,Tabel10[],3,0)","v":{"$error":"#N/A"}},null,null,null,null,null,null,null,"EUR",null,null,null,{"$error":"#DIV/0!"},0,0,null,"","","","","","","","","","",null,null,null,null,null,null,null,null,null,null,null,null,null,null,6,"None","Parcel","ZWO"]
[null,null,null,null,null,null,null,null,null,null,null,null,null,null,{"$f":"VLOOKUP(N130,Tabel10[[korte omschrijving]:[MCC3_CODE]],2,0)","v":{"$error":"#N/A"}},{"$f":"VLOOKUP(N130,Tabel10[],3,0)","v":{"$error":"#N/A"}},null,null,null,null,null,null,null,"EUR",null,null,null,{"$error":"#DIV/0!"},0,0,null,"","","","","","","","","","",null,null,null,null,null,null,null,null,null,null,null,null,null,null,6,"None","Parcel","ZWO"]
[null,null,null,null,null,null,null,null,null,null,null,null,null,null,{"$f":"VLOOKUP(N131,Tabel10[[korte omschrijving]:[MCC3_CODE]],2,0)","v":{"$error":"#N/A"}},{"$f":"VLOOKUP(N131,Tabel10[],3,0)","v":{"$error":"#N/A"}},null,null,null,null,null,null,null,"EUR",null,null,null,{"$error":"#DIV/0!"},0,0,null,"","","","","","","","","","",null,null,null,null,null,null,null,null,null,null,null,null,null,null,6,"None","Parcel","ZWO"]
[null,null,null,null,null,null,null,null,null,null,null,null,null,null,{"$f":"VLOOKUP(N132,Tabel10[[korte omschrijving]:[MCC3_CODE]],2,0)","v":{"$error":"#N/A"}},{"$f":"VLOOKUP(N132,Tabel10[],3,0)","v":{"$error":"#N/A"}},null,null,null,null,null,null,null,"EUR",null,null,null,{"$error":"#DIV/0!"},0,0,null,"","","","","","","","","","",null,null,null,null,null,null,null,null,null,null,null,null,null,null,6,"None","Parcel","ZWO"]
[null,null,null,null,null,null,null,null,null,null,null,null,null,null,{"$f":"VLOOKUP(N133,Tabel10[[korte omschrijving]:[MCC3_CODE]],2,0)","v":{"$error":"#N/A"}},{"$f":"VLOOKUP(N133,Tabel10[],3,0)","v":{"$error":"#N/A"}},null,null,null,null,null,null,null,"EUR",null,null,null,{"$error":"#DIV/0!"},0,0,null,"","","","","","","","","","",null,null,null,null,null,null,null,null,null,null,null,null,null,null,6,"None","Parcel","ZWO"]
[null,null,null,null,null,null,null,null,null,null,null,null,null,null,{"$f":"VLOOKUP(N134,Tabel10[[korte omschrijving]:[MCC3_CODE]],2,0)","v":{"$error":"#N/A"}},{"$f":"VLOOKUP(N134,Tabel10[],3,0)","v":{"$error":"#N/A"}},null,null,null,null,null,null,null,"EUR",null,null,null,{"$error":"#DIV/0!"},0,0,null,"","","","","","","","","","",null,null,null,null,null,null,null,null,null,null,null,null,null,null,6,"None","Parcel","ZWO"]
[null,null,null,null,null,null,null,null,null,null,null,null,null,null,{"$f":"VLOOKUP(N135,Tabel10[[korte omschrijving]:[MCC3_CODE]],2,0)","v":{"$error":"#N/A"}},{"$f":"VLOOKUP(N135,Tabel10[],3,0)","v":{"$error":"#N/A"}},null,null,null,null,null,null,null,"EUR",null,null,null,{"$f":"AA135/Y135","v":{"$error":"#DIV/0!"}},{"$f":"T135*Y135","v":0},{"$f":"T135*AA135","v":0},null,{"$f":"IF(AE135 <> \"\",\n    IF(ISNUMBER(VALUE(LEFT(AE135, FIND(\"%\", AE135)-1))),\n        VALUE(LEFT(AE135, FIND(\"%\", AE135)-1)),\n        \"Invalid format\"),\n    \"\")","v":""},{"$f":"IF(AE135 <> \"\",\n    IF(ISNUMBER(VALUE(LEFT(AE135, FIND(\"%\", AE135)-1))) * ISNUMBER(FIND(\"%\", AE135 & \"wol\")) > 0,\n        TRIM(MID(AE135, FIND(\"%\", AE135)+1, FIND(\"/\", AE135 & \"/\")-FIND(\"%\", AE135)-1)),\n        \"Invalid format\"),\n    \"\")","v":""},{"$f":"IF(AE135 <> \"\",\n    IF(ISNUMBER(VALUE(MID(AE135, FIND(\"/\", AE135) + 1, FIND(\"%\", AE135, FIND(\"/\", AE135)) - FIND(\"/\", AE135) - 1))),\n        VALUE(MID(AE135, FIND(\"/\", AE135) + 1, FIND(\"%\", AE135, FIND(\"/\", AE135)) - FIND(\"/\", AE135) - 1)),\n        \"\"),\n    \"\")","v":""},{"$f":"IF(AE135 <> \"\",\n    IFERROR(TRIM(MID(AE135, FIND(\"%\", AE135, FIND(\"/\", AE135)+1)+2,\n        IFERROR(FIND(\"/\", AE135 & \"/\", FIND(\"/\", AE135)+1)-FIND(\"%\", AE135, FIND(\"/\", AE135)+1)-2, LEN(AE135)-FIND(\"%\", AE135, FIND(\"/\", AE135)+1)-1))),\n        \"\"),\n    \"\")","v":""},{"$f":"IF(AE135 <> \"\",\n    IF(ISNUMBER(VALUE(MID(AE135, FIND(\"/\", AE135, FIND(\"/\", AE135)+1) + 1, FIND(\"%\", AE135, FIND(\"/\", AE135, FIND(\"/\", AE135)+1)) - FIND(\"/\", AE135, FIND(\"/\", AE135)+1) - 1))),\n        VALUE(MID(AE135, FIND(\"/\", AE135, FIND(\"/\", AE135)+1) + 1, FIND(\"%\", AE135, FIND(\"/\", AE135, FIND(\"/\", AE135)+1)) - FIND(\"/\", AE135, FIND(\"/\", AE135)+1) - 1)),\n        \"\"),\n    \"\")","v":""},{"$f":"IF(AE135 <> \"\",\n    IFERROR(\n        TRIM(MID(AE135,\n            FIND(\"%\", AE135, FIND(\"%\", AE135, FIND(\"%\", AE135)+1)+1)+1,\n            FIND(\"/\", AE135 & \"/\", FIND(\"%\", AE135, FIND(\"%\", AE135, FIND(\"%\", AE135)+1)+1))-FIND(\"%\", AE135, FIND(\"%\", AE135, FIND(\"%\", AE135)+1)+1)-1)\n        ),\n        \"\"\n    ),\n    \"\"\n)","v":""},{"$f":"IF(AE135 <> \"\",\n    IF(ISNUMBER(VALUE(MID(AE135, FIND(\"/\", AE135, FIND(\"/\", AE135, FIND(\"/\", AE135)+1)+1) + 1, FIND(\"%\", AE135, FIND(\"/\", AE135, FIND(\"/\", AE135, FIND(\"/\", AE135)+1)+1)) - FIND(\"/\", AE135, FIND(\"/\", AE135, FIND(\"/\", AE135)+1)+1) - 1))),\n        VALUE(MID(AE135, FIND(\"/\", AE135, FIND(\"/\", AE135, FIND(\"/\", AE135)+1)+1) + 1, FIND(\"%\", AE135, FIND(\"/\", AE135, FIND(\"/\", AE135, FIND(\"/\", AE135)+1)+1)) - FIND(\"/\", AE135, FIND(\"/\", AE135, FIND(\"/\", AE135)+1)+1) - 1)),\n        \"\"),\n    \"\")","v":""},{"$f":"IF(AE135 <> \"\",\n    IFERROR(TRIM(MID(AE135, FIND(\"%\", AE135, FIND(\"/\", AE135, FIND(\"/\", AE135, FIND(\"/\", AE135)+1)+1)+1)+2,\n        IFERROR(FIND(\"/\", AE135, FIND(\"/\", AE135, FIND(\"/\", AE135, FIND(\"/\", AE135)+1)+1)+1)-FIND(\"%\", AE135, FIND(\"/\", AE135, FIND(\"/\", AE135, FIND(\"/\", AE135)+1)+1)+1)-2, LEN(AE135)-FIND(\"%\", AE135, FIND(\"/\", AE135, FIND(\"/\", AE135, FIND(\"/\", AE135)+1)+1)+1)-1))),\n        \"\"),\n    \"\")","v":""},{"$f":"IF(AE135 <> \"\",\n    IF(ISNUMBER(VALUE(MID(AE135, FIND(\"/\", AE135, FIND(\"/\", AE135, FIND(\"/\", AE135, FIND(\"/\", AE135)+1)+1)+1) + 1, FIND(\"%\", AE135, FIND(\"/\", AE135, FIND(\"/\", AE135, FIND(\"/\", AE135, FIND(\"/\", AE135)+1)+1)+1)) - FIND(\"/\", AE135, FIND(\"/\", AE135, FIND(\"/\", AE135, FIND(\"/\", AE135)+1)+1)+1) - 1))),\n        VALUE(MID(AE135, FIND(\"/\", AE135, FIND(\"/\", AE135, FIND(\"/\", AE135, FIND(\"/\", AE135)+1)+1)+1) + 1, FIND(\"%\", AE135, FIND(\"/\", AE135, FIND(\"/\", AE135, FIND(\"/\", AE135, FIND(\"/\", AE135)+1)+1)+1)) - FIND(\"/\", AE135, FIND(\"/\", AE135, FIND(\"/\", AE135, FIND(\"/\", AE135)+1)+1)+1) - 1)),\n        \"\"),\n    \"\")","v":""},{"$f":"IF(AE135 = \"\", \"\",\n    IFERROR(TRIM(\n        MID(\n            AE135,\n            FIND(\"%\", AE135, FIND(\"/\", AE135, FIND(\"/\", AE135, FIND(\"/\", AE135, FIND(\"/\", AE135)+1)+1)+1)+1) + 1,\n            FIND(\"/\", AE135 & \"/\", FIND(\"%\", AE135, FIND(\"/\", AE135, FIND(\"/\", AE135, FIND(\"/\", AE135, FIND(\"/\", AE135)+1)+1)+1)+1)) -\n            FIND(\"%\", AE135, FIND(\"/\", AE135, FIND(\"/\", AE135, FIND(\"/\", AE135, FIND(\"/\", AE135)+1)+1)+1)+1) - 1\n        )\n    ),\n    \"\")\n)","v":""},null,null,null,null,null,null,null,null,null,null,null,null,null,null,6,"None","Parcel","ZWO"]
[null,null,null,null,null,null,null,null,null,null,null,null,null,null,{"$f":"VLOOKUP(N136,Tabel10[[korte omschrijving]:[MCC3_CODE]],2,0)","v":{"$error":"#N/A"}},{"$f":"VLOOKUP(N136,Tabel10[],3,0)","v":{"$error":"#N/A"}},null,null,null,null,null,null,null,"EUR",null,null,null,{"$error":"#DIV/0!"},0,0,null,"","","","","","","","","","",null,null,null,null,null,null,null,null,null,null,null,null,null,null,6,"None","Parcel","ZWO"]
[null,null,null,null,null,null,null,null,null,null,null,null,null,null,{"$f":"VLOOKUP(N137,Tabel10[[korte omschrijving]:[MCC3_CODE]],2,0)","v":{"$error":"#N/A"}},{"$f":"VLOOKUP(N137,Tabel10[],3,0)","v":{"$error":"#N/A"}},null,null,null,null,null,null,null,"EUR",null,null,null,{"$error":"#DIV/0!"},0,0,null,"","","","","","","","","","",null,null,null,null,null,null,null,null,null,null,null,null,null,null,6,"None","Parcel","ZWO"]
[null,null,null,null,null,null,null,null,null,null,null,null,null,null,{"$f":"VLOOKUP(N138,Tabel10[[korte omschrijving]:[MCC3_CODE]],2,0)","v":{"$error":"#N/A"}},{"$f":"VLOOKUP(N138,Tabel10[],3,0)","v":{"$error":"#N/A"}},null,null,null,null,null,null,null,"EUR",null,null,null,{"$error":"#DIV/0!"},0,0,null,"","","","","","","","","","",null,null,null,null,null,null,null,null,null,null,null,null,null,null,6,"None","Parcel","ZWO"]
[null,null,null,null,null,null,null,null,null,null,null,null,null,null,{"$f":"VLOOKUP(N139,Tabel10[[korte omschrijving]:[MCC3_CODE]],2,0)","v":{"$error":"#N/A"}},{"$f":"VLOOKUP(N139,Tabel10[],3,0)","v":{"$error":"#N/A"}},null,null,null,null,null,null,null,"EUR",null,null,null,{"$error":"#DIV/0!"},0,0,null,"","","","","","","","","","",null,null,null,null,null,null,null,null,null,null,null,null,null,null,6,"None","Parcel","ZWO"]
[null,null,null,null,null,null,null,null,null,null,null,null,null,null,{"$f":"VLOOKUP(N140,Tabel10[[korte omschrijving]:[MCC3_CODE]],2,0)","v":{"$error":"#N/A"}},{"$f":"VLOOKUP(N140,Tabel10[],3,0)","v":{"$error":"#N/A"}},null,null,null,null,null,null,null,"EUR",null,null,null,{"$error":"#DIV/0!"},0,0,null,"","","","","","","","","","",null,null,null,null,null,null,null,null,null,null,null,null,null,null,6,"None","Parcel","ZWO"]
[null,null,null,null,null,null,null,null,null,null,null,null,null,null,{"$f":"VLOOKUP(N141,Tabel10[[korte omschrijving]:[MCC3_CODE]],2,0)","v":{"$error":"#N/A"}},{"$f":"VLOOKUP(N141,Tabel10[],3,0)","v":{"$error":"#N/A"}},null,null,null,null,null,null,null,"EUR",null,null,null,{"$error":"#DIV/0!"},0,0,null,"","","","","","","","","","",null,null,null,null,null,null,null,null,null,null,null,null,null,null,6,"None","Parcel","ZWO"]
[null,null,null,null,null,null,null,null,null,null,null,null,null,null,{"$f":"VLOOKUP(N142,Tabel10[[korte omschrijving]:[MCC3_CODE]],2,0)","v":{"$error":"#N/A"}},{"$f":"VLOOKUP(N142,Tabel10[],3,0)","v":{"$error":"#N/A"}},null,null,null,null,null,null,null,"EUR",null,null,null,{"$error":"#DIV/0!"},0,0,null,"","","","","","","","","","",null,null,null,null,null,null,null,null,null,null,null,null,null,null,6,"None","Parcel","ZWO"]
[null,null,null,null,null,null,null,null,null,null,null,null,null,null,{"$f":"VLOOKUP(N143,Tabel10[[korte omschrijving]:[MCC3_CODE]],2,0)","v":{"$error":"#N/A"}},{"$f":"VLOOKUP(N143,Tabel10[],3,0)","v":{"$error":"#N/A"}},null,null,null,null,null,null,null,"EUR",null,null,null,{"$error":"#DIV/0!"},0,0,null,"","","","","","","","","","",null,null,null,null,null,null,null,null,null,null,null,null,null,null,6,"None","Parcel","ZWO"]
[null,null,null,null,null,null,null,null,null,null,null,null,null,null,{"$f":"VLOOKUP(N144,Tabel10[[korte omschrijving]:[MCC3_CODE]],2,0)","v":{"$error":"#N/A"}},{"$f":"VLOOKUP(N144,Tabel10[],3,0)","v":{"$error":"#N/A"}},null,null,null,null,null,null,null,"EUR",null,null,null,{"$error":"#DIV/0!"},0,0,null,"","","","","","","","","","",null,null,null,null,null,null,null,null,null,null,null,null,null,null,6,"None","Parcel","ZWO"]
[null,null,null,null,null,null,null,null,null,null,null,null,null,null,{"$f":"VLOOKUP(N145,Tabel10[[korte omschrijving]:[MCC3_CODE]],2,0)","v":{"$error":"#N/A"}},{"$f":"VLOOKUP(N145,Tabel10[],3,0)","v":{"$error":"#N/A"}},null,null,null,null,null,null,null,"EUR",null,null,null,{"$error":"#DIV/0!"},0,0,null,"","","","","","","","","","",null,null,null,null,null,null,null,null,null,null,null,null,null,null,6,"None","Parcel","ZWO"]
[null,null,null,null,null,null,null,null,null,null,null,null,null,null,{"$f":"VLOOKUP(N146,Tabel10[[korte omschrijving]:[MCC3_CODE]],2,0)","v":{"$error":"#N/A"}},{"$f":"VLOOKUP(N146,Tabel10[],3,0)","v":{"$error":"#N/A"}},null,null,null,null,null,null,null,"EUR",null,null,null,{"$error":"#DIV/0!"},0,0,null,"","","","","","","","","","",null,null,null,null,null,null,null,null,null,null,null,null,null,null,6,"None","Parcel","ZWO"]
[null,null,null,null,null,null,null,null,null,null,null,null,null,null,{"$f":"VLOOKUP(N147,Tabel10[[korte omschrijving]:[MCC3_CODE]],2,0)","v":{"$error":"#N/A"}},{"$f":"VLOOKUP(N147,Tabel10[],3,0)","v":{"$error":"#N/A"}},null,null,null,null,null,null,null,"EUR",null,null,null,{"$error":"#DIV/0!"},0,0,null,"","","","","","","","","","",null,null,null,null,null,null,null,null,null,null,null,null,null,null,6,"None","Parcel","ZWO"]
[null,null,null,null,null,null,null,null,null,null,null,null,null,null,{"$f":"VLOOKUP(N148,Tabel10[[korte omschrijving]:[MCC3_CODE]],2,0)","v":{"$error":"#N/A"}},{"$f":"VLOOKUP(N148,Tabel10[],3,0)","v":{"$error":"#N/A"}},null,null,null,null,null,null,null,"EUR",null,null,null,{"$error":"#DIV/0!"},0,0,null,"","","","","","","","","","",null,null,null,null,null,null,null,null,null,null,null,null,null,null,6,"None","Parcel","ZWO"]
[null,null,null,null,null,null,null,null,null,null,null,null,null,null,{"$f":"VLOOKUP(N149,Tabel10[[korte omschrijving]:[MCC3_CODE]],2,0)","v":{"$error":"#N/A"}},{"$f":"VLOOKUP(N149,Tabel10[],3,0)","v":{"$error":"#N/A"}},null,null,null,null,null,null,null,"EUR",null,null,null,{"$error":"#DIV/0!"},0,0,null,"","","","","","","","","","",null,null,null,null,null,null,null,null,null,null,null,null,null,null,6,"None","Parcel","ZWO"]
[null,null,null,null,null,null,null,null,null,null,null,null,null,null,{"$f":"VLOOKUP(N150,Tabel10[[korte omschrijving]:[MCC3_CODE]],2,0)","v":{"$error":"#N/A"}},{"$f":"VLOOKUP(N150,Tabel10[],3,0)","v":{"$error":"#N/A"}},null,null,null,null,null,null,null,"EUR",null,null,null,{"$error":"#DIV/0!"},0,0,null,"","","","","","","","","","",null,null,null,null,null,null,null,null,null,null,null,null,null,null,6,"None","Parcel","ZWO"]
[null,null,null,null,null,null,null,null,null,null,null,null,null,null,{"$f":"VLOOKUP(N151,Tabel10[[korte omschrijving]:[MCC3_CODE]],2,0)","v":{"$error":"#N/A"}},{"$f":"VLOOKUP(N151,Tabel10[],3,0)","v":{"$error":"#N/A"}},null,null,null,null,null,null,null,"EUR",null,null,null,{"$error":"#DIV/0!"},0,0,null,"","","","","","","","","","",null,null,null,null,null,null,null,null,null,null,null,null,null,null,6,"None","Parcel","ZWO"]
[null,null,null,null,null,null,null,null,null,null,null,null,null,null,{"$f":"VLOOKUP(N152,Tabel10[[korte omschrijving]:[MCC3_CODE]],2,0)","v":{"$error":"#N/A"}},{"$f":"VLOOKUP(N152,Tabel10[],3,0)","v":{"$error":"#N/A"}},null,null,null,null,null,null,null,"EUR",null,null,null,{"$error":"#DIV/0!"},0,0,null,"","","","","","","","","","",null,null,null,null,null,null,null,null,null,null,null,null,null,null,6,"None","Parcel","ZWO"]
[null,null,null,null,null,null,null,null,null,null,null,null,null,null,{"$f":"VLOOKUP(N153,Tabel10[[korte omschrijving]:[MCC3_CODE]],2,0)","v":{"$error":"#N/A"}},{"$f":"VLOOKUP(N153,Tabel10[],3,0)","v":{"$error":"#N/A"}},null,null,null,null,null,null,null,"EUR",null,null,null,{"$error":"#DIV/0!"},0,0,null,"","","","","","","","","","",null,null,null,null,null,null,null,null,null,null,null,null,null,null,6,"None","Parcel","ZWO"]
[null,null,null,null,null,null,null,null,null,null,null,null,null,null,{"$f":"VLOOKUP(N154,Tabel10[[korte omschrijving]:[MCC3_CODE]],2,0)","v":{"$error":"#N/A"}},{"$f":"VLOOKUP(N154,Tabel10[],3,0)","v":{"$error":"#N/A"}},null,null,null,null,null,null,null,"EUR",null,null,null,{"$error":"#DIV/0!"},0,0,null,"","","","","","","","","","",null,null,null,null,null,null,null,null,null,null,null,null,null,null,6,"None","Parcel","ZWO"]
[null,null,null,null,null,null,null,null,null,null,null,null,null,null,{"$f":"VLOOKUP(N155,Tabel10[[korte omschrijving]:[MCC3_CODE]],2,0)","v":{"$error":"#N/A"}},{"$f":"VLOOKUP(N155,Tabel10[],3,0)","v":{"$error":"#N/A"}},null,null,null,null,null,null,null,"EUR",null,null,null,{"$error":"#DIV/0!"},0,0,null,"","","","","","","","","","",null,null,null,null,null,null,null,null,null,null,null,null,null,null,6,"None","Parcel","ZWO"]
[null,null,null,null,null,null,null,null,null,null,null,null,null,null,{"$f":"VLOOKUP(N156,Tabel10[[korte omschrijving]:[MCC3_CODE]],2,0)","v":{"$error":"#N/A"}},{"$f":"VLOOKUP(N156,Tabel10[],3,0)","v":{"$error":"#N/A"}},null,null,null,null,null,null,null,"EUR",null,null,null,{"$error":"#DIV/0!"},0,0,null,"","","","","","","","","","",null,null,null,null,null,null,null,null,null,null,null,null,null,null,6,"None","Parcel","ZWO"]
[null,null,null,null,null,null,null,null,null,null,null,null,null,null,{"$f":"VLOOKUP(N157,Tabel10[[korte omschrijving]:[MCC3_CODE]],2,0)","v":{"$error":"#N/A"}},{"$f":"VLOOKUP(N157,Tabel10[],3,0)","v":{"$error":"#N/A"}},null,null,null,null,null,null,null,"EUR",null,null,null,{"$error":"#DIV/0!"},0,0,null,"","","","","","","","","","",null,null,null,null,null,null,null,null,null,null,null,null,null,null,6,"None","Parcel","ZWO"]
[null,null,null,null,null,null,null,null,null,null,null,null,null,null,{"$f":"VLOOKUP(N158,Tabel10[[korte omschrijving]:[MCC3_CODE]],2,0)","v":{"$error":"#N/A"}},{"$f":"VLOOKUP(N158,Tabel10[],3,0)","v":{"$error":"#N/A"}},null,null,null,null,null,null,null,"EUR",null,null,null,{"$error":"#DIV/0!"},0,0,null,"","","","","","","","","","",null,null,null,null,null,null,null,null,null,null,null,null,null,null,6,"None","Parcel","ZWO"]
[null,null,null,null,null,null,null,null,null,null,null,null,null,null,{"$f":"VLOOKUP(N159,Tabel10[[korte omschrijving]:[MCC3_CODE]],2,0)","v":{"$error":"#N/A"}},{"$f":"VLOOKUP(N159,Tabel10[],3,0)","v":{"$error":"#N/A"}},null,null,null,null,null,null,null,"EUR",null,null,null,{"$error":"#DIV/0!"},0,0,null,"","","","","","","","","","",null,null,null,null,null,null,null,null,null,null,null,null,null,null,6,"None","Parcel","ZWO"]
[null,null,null,null,null,null,null,null,null,null,null,null,null,null,{"$f":"VLOOKUP(N160,Tabel10[[korte omschrijving]:[MCC3_CODE]],2,0)","v":{"$error":"#N/A"}},{"$f":"VLOOKUP(N160,Tabel10[],3,0)","v":{"$error":"#N/A"}},null,null,null,null,null,null,null,"EUR",null,null,null,{"$error":"#DIV/0!"},0,0,null,"","","","","","","","","","",null,null,null,null,null,null,null,null,null,null,null,null,null,null,6,"None","Parcel","ZWO"]
[null,null,null,null,null,null,null,null,null,null,null,null,null,null,{"$f":"VLOOKUP(N161,Tabel10[[korte omschrijving]:[MCC3_CODE]],2,0)","v":{"$error":"#N/A"}},{"$f":"VLOOKUP(N161,Tabel10[],3,0)","v":{"$error":"#N/A"}},null,null,null,null,null,null,null,"EUR",null,null,null,{"$error":"#DIV/0!"},0,0,null,"","","","","","","","","","",null,null,null,null,null,null,null,null,null,null,null,null,null,null,6,"None","Parcel","ZWO"]
[null,null,null,null,null,null,null,null,null,null,null,null,null,null,{"$f":"VLOOKUP(N162,Tabel10[[korte omschrijving]:[MCC3_CODE]],2,0)","v":{"$error":"#N/A"}},{"$f":"VLOOKUP(N162,Tabel10[],3,0)","v":{"$error":"#N/A"}},null,null,null,null,null,null,null,"EUR",null,null,null,{"$error":"#DIV/0!"},0,0,null,"","","","","","","","","","",null,null,null,null,null,null,null,null,null,null,null,null,null,null,6,"None","Parcel","ZWO"]
[null,null,null,null,null,null,null,null,null,null,null,null,null,null,{"$f":"VLOOKUP(N163,Tabel10[[korte omschrijving]:[MCC3_CODE]],2,0)","v":{"$error":"#N/A"}},{"$f":"VLOOKUP(N163,Tabel10[],3,0)","v":{"$error":"#N/A"}},null,null,null,null,null,null,null,"EUR",null,null,null,{"$error":"#DIV/0!"},0,0,null,"","","","","","","","","","",null,null,null,null,null,null,null,null,null,null,null,null,null,null,6,"None","Parcel","ZWO"]
[null,null,null,null,null,null,null,null,null,null,null,null,null,null,{"$f":"VLOOKUP(N164,Tabel10[[korte omschrijving]:[MCC3_CODE]],2,0)","v":{"$error":"#N/A"}},{"$f":"VLOOKUP(N164,Tabel10[],3,0)","v":{"$error":"#N/A"}},null,null,null,null,null,null,null,"EUR",null,null,null,{"$error":"#DIV/0!"},0,0,null,"","","","","","","","","","",null,null,null,null,null,null,null,null,null,null,null,null,null,null,6,"None","Parcel","ZWO"]
[null,null,null,null,null,null,null,null,null,null,null,null,null,null,{"$f":"VLOOKUP(N165,Tabel10[[korte omschrijving]:[MCC3_CODE]],2,0)","v":{"$error":"#N/A"}},{"$f":"VLOOKUP(N165,Tabel10[],3,0)","v":{"$error":"#N/A"}},null,null,null,null,null,null,null,"EUR",null,null,null,{"$error":"#DIV/0!"},0,0,null,"","","","","","","","","","",null,null,null,null,null,null,null,null,null,null,null,null,null,null,6,"None","Parcel","ZWO"]
[null,null,null,null,null,null,null,null,null,null,null,null,null,null,{"$f":"VLOOKUP(N166,Tabel10[[korte omschrijving]:[MCC3_CODE]],2,0)","v":{"$error":"#N/A"}},{"$f":"VLOOKUP(N166,Tabel10[],3,0)","v":{"$error":"#N/A"}},null,null,null,null,null,null,null,"EUR",null,null,null,{"$error":"#DIV/0!"},0,0,null,"","","","","","","","","","",null,null,null,null,null,null,null,null,null,null,null,null,null,null,6,"None","Parcel","ZWO"]
[null,null,null,null,null,null,null,null,null,null,null,null,null,null,{"$f":"VLOOKUP(N167,Tabel10[[korte omschrijving]:[MCC3_CODE]],2,0)","v":{"$error":"#N/A"}},{"$f":"VLOOKUP(N167,Tabel10[],3,0)","v":{"$error":"#N/A"}},null,null,null,null,null,null,null,"EUR",null,null,null,{"$error":"#DIV/0!"},0,0,null,"","","","","","","","","","",null,null,null,null,null,null,null,null,null,null,null,null,null,null,6,"None","Parcel","ZWO"]
[null,null,null,null,null,null,null,null,null,null,null,null,null,null,{"$f":"VLOOKUP(N168,Tabel10[[korte omschrijving]:[MCC3_CODE]],2,0)","v":{"$error":"#N/A"}},{"$f":"VLOOKUP(N168,Tabel10[],3,0)","v":{"$error":"#N/A"}},null,null,null,null,null,null,null,"EUR",null,null,null,{"$error":"#DIV/0!"},0,0,null,"","","","","","","","","","",null,null,null,null,null,null,null,null,null,null,null,null,null,null,6,"None","Parcel","ZWO"]
[null,null,null,null,null,null,null,null,null,null,null,null,null,null,{"$f":"VLOOKUP(N169,Tabel10[[korte omschrijving]:[MCC3_CODE]],2,0)","v":{"$error":"#N/A"}},{"$f":"VLOOKUP(N169,Tabel10[],3,0)","v":{"$error":"#N/A"}},null,null,null,null,null,null,null,"EUR",null,null,null,{"$error":"#DIV/0!"},0,0,null,"","","","","","","","","","",null,null,null,null,null,null,null,null,null,null,null,null,null,null,6,"None","Parcel","ZWO"]
[null,null,null,null,null,null,null,null,null,null,null,null,null,null,{"$f":"VLOOKUP(N170,Tabel10[[korte omschrijving]:[MCC3_CODE]],2,0)","v":{"$error":"#N/A"}},{"$f":"VLOOKUP(N170,Tabel10[],3,0)","v":{"$error":"#N/A"}},null,null,null,null,null,null,null,"EUR",null,null,null,{"$error":"#DIV/0!"},0,0,null,"","","","","","","","","","",null,null,null,null,null,null,null,null,null,null,null,null,null,null,6,"None","Parcel","ZWO"]
[null,null,null,null,null,null,null,null,null,null,null,null,null,null,{"$f":"VLOOKUP(N171,Tabel10[[korte omschrijving]:[MCC3_CODE]],2,0)","v":{"$error":"#N/A"}},{"$f":"VLOOKUP(N171,Tabel10[],3,0)","v":{"$error":"#N/A"}},null,null,null,null,null,null,null,"EUR",null,null,null,{"$error":"#DIV/0!"},0,0,null,"","","","","","","","","","",null,null,null,null,null,null,null,null,null,null,null,null,null,null,6,"None","Parcel","ZWO"]
[null,null,null,null,null,null,null,null,null,null,null,null,null,null,{"$f":"VLOOKUP(N172,Tabel10[[korte omschrijving]:[MCC3_CODE]],2,0)","v":{"$error":"#N/A"}},{"$f":"VLOOKUP(N172,Tabel10[],3,0)","v":{"$error":"#N/A"}},null,null,null,null,null,null,null,"EUR",null,null,null,{"$error":"#DIV/0!"},0,0,null,"","","","","","","","","","",null,null,null,null,null,null,null,null,null,null,null,null,null,null,6,"None","Parcel","ZWO"]
[null,null,null,null,null,null,null,null,null,null,null,null,null,null,{"$f":"VLOOKUP(N173,Tabel10[[korte omschrijving]:[MCC3_CODE]],2,0)","v":{"$error":"#N/A"}},{"$f":"VLOOKUP(N173,Tabel10[],3,0)","v":{"$error":"#N/A"}},null,null,null,null,null,null,null,"EUR",null,null,null,{"$error":"#DIV/0!"},0,0,null,"","","","","","","","","","",null,null,null,null,null,null,null,null,null,null,null,null,null,null,6,"None","Parcel","ZWO"]
[null,null,null,null,null,null,null,null,null,null,null,null,null,null,{"$f":"VLOOKUP(N174,Tabel10[[korte omschrijving]:[MCC3_CODE]],2,0)","v":{"$error":"#N/A"}},{"$f":"VLOOKUP(N174,Tabel10[],3,0)","v":{"$error":"#N/A"}},null,null,null,null,null,null,null,"EUR",null,null,null,{"$error":"#DIV/0!"},0,0,null,"","","","","","","","","","",null,null,null,null,null,null,null,null,null,null,null,null,null,null,6,"None","Parcel","ZWO"]
[null,null,null,null,null,null,null,null,null,null,null,null,null,null,{"$f":"VLOOKUP(N175,Tabel10[[korte omschrijving]:[MCC3_CODE]],2,0)","v":{"$error":"#N/A"}},{"$f":"VLOOKUP(N175,Tabel10[],3,0)","v":{"$error":"#N/A"}},null,null,null,null,null,null,null,"EUR",null,null,null,{"$error":"#DIV/0!"},0,0,null,"","","","","","","","","","",null,null,null,null,null,null,null,null,null,null,null,null,null,null,6,"None","Parcel","ZWO"]
[null,null,null,null,null,null,null,null,null,null,null,null,null,null,{"$f":"VLOOKUP(N176,Tabel10[[korte omschrijving]:[MCC3_CODE]],2,0)","v":{"$error":"#N/A"}},{"$f":"VLOOKUP(N176,Tabel10[],3,0)","v":{"$error":"#N/A"}},null,null,null,null,null,null,null,"EUR",null,null,null,{"$error":"#DIV/0!"},0,0,null,"","","","","","","","","","",null,null,null,null,null,null,null,null,null,null,null,null,null,null,6,"None","Parcel","ZWO"]
[null,null,null,null,null,null,null,null,null,null,null,null,null,null,{"$f":"VLOOKUP(N177,Tabel10[[korte omschrijving]:[MCC3_CODE]],2,0)","v":{"$error":"#N/A"}},{"$f":"VLOOKUP(N177,Tabel10[],3,0)","v":{"$error":"#N/A"}},null,null,null,null,null,null,null,"EUR",null,null,null,{"$error":"#DIV/0!"},0,0,null,"","","","","","","","","","",null,null,null,null,null,null,null,null,null,null,null,null,null,null,6,"None","Parcel","ZWO"]
[null,null,null,null,null,null,null,null,null,null,null,null,null,null,{"$f":"VLOOKUP(N178,Tabel10[[korte omschrijving]:[MCC3_CODE]],2,0)","v":{"$error":"#N/A"}},{"$f":"VLOOKUP(N178,Tabel10[],3,0)","v":{"$error":"#N/A"}},null,null,null,null,null,null,null,"EUR",null,null,null,{"$error":"#DIV/0!"},0,0,null,"","","","","","","","","","",null,null,null,null,null,null,null,null,null,null,null,null,null,null,6,"None","Parcel","ZWO"]
[null,null,null,null,null,null,null,null,null,null,null,null,null,null,{"$f":"VLOOKUP(N179,Tabel10[[korte omschrijving]:[MCC3_CODE]],2,0)","v":{"$error":"#N/A"}},{"$f":"VLOOKUP(N179,Tabel10[],3,0)","v":{"$error":"#N/A"}},null,null,null,null,null,null,null,"EUR",null,null,null,{"$error":"#DIV/0!"},0,0,null,"","","","","","","","","","",null,null,null,null,null,null,null,null,null,null,null,null,null,null,6,"None","Parcel","ZWO"]
[null,null,null,null,null,null,null,null,null,null,null,null,null,null,{"$f":"VLOOKUP(N180,Tabel10[[korte omschrijving]:[MCC3_CODE]],2,0)","v":{"$error":"#N/A"}},{"$f":"VLOOKUP(N180,Tabel10[],3,0)","v":{"$error":"#N/A"}},null,null,null,null,null,null,null,"EUR",null,null,null,{"$error":"#DIV/0!"},0,0,null,"","","","","","","","","","",null,null,null,null,null,null,null,null,null,null,null,null,null,null,6,"None","Parcel","ZWO"]
[null,null,null,null,null,null,null,null,null,null,null,null,null,null,{"$f":"VLOOKUP(N181,Tabel10[[korte omschrijving]:[MCC3_CODE]],2,0)","v":{"$error":"#N/A"}},{"$f":"VLOOKUP(N181,Tabel10[],3,0)","v":{"$error":"#N/A"}},null,null,null,null,null,null,null,"EUR",null,null,null,{"$error":"#DIV/0!"},0,0,null,"","","","","","","","","","",null,null,null,null,null,null,null,null,null,null,null,null,null,null,6,"None","Parcel","ZWO"]
[null,null,null,null,null,null,null,null,null,null,null,null,null,null,{"$f":"VLOOKUP(N182,Tabel10[[korte omschrijving]:[MCC3_CODE]],2,0)","v":{"$error":"#N/A"}},{"$f":"VLOOKUP(N182,Tabel10[],3,0)","v":{"$error":"#N/A"}},null,null,null,null,null,null,null,"EUR",null,null,null,{"$error":"#DIV/0!"},0,0,null,"","","","","","","","","","",null,null,null,null,null,null,null,null,null,null,null,null,null,null,6,"None","Parcel","ZWO"]
[null,null,null,null,null,null,null,null,null,null,null,null,null,null,{"$f":"VLOOKUP(N183,Tabel10[[korte omschrijving]:[MCC3_CODE]],2,0)","v":{"$error":"#N/A"}},{"$f":"VLOOKUP(N183,Tabel10[],3,0)","v":{"$error":"#N/A"}},null,null,null,null,null,null,null,"EUR",null,null,null,{"$error":"#DIV/0!"},0,0,null,"","","","","","","","","","",null,null,null,null,null,null,null,null,null,null,null,null,null,null,6,"None","Parcel","ZWO"]
[null,null,null,null,null,null,null,null,null,null,null,null,null,null,{"$f":"VLOOKUP(N184,Tabel10[[korte omschrijving]:[MCC3_CODE]],2,0)","v":{"$error":"#N/A"}},{"$f":"VLOOKUP(N184,Tabel10[],3,0)","v":{"$error":"#N/A"}},null,null,null,null,null,null,null,"EUR",null,null,null,{"$error":"#DIV/0!"},0,0,null,"","","","","","","","","","",null,null,null,null,null,null,null,null,null,null,null,null,null,null,6,"None","Parcel","ZWO"]
[null,null,null,null,null,null,null,null,null,null,null,null,null,null,{"$f":"VLOOKUP(N185,Tabel10[[korte omschrijving]:[MCC3_CODE]],2,0)","v":{"$error":"#N/A"}},{"$f":"VLOOKUP(N185,Tabel10[],3,0)","v":{"$error":"#N/A"}},null,null,null,null,null,null,null,"EUR",null,null,null,{"$error":"#DIV/0!"},0,0,null,"","","","","","","","","","",null,null,null,null,null,null,null,null,null,null,null,null,null,null,6,"None","Parcel","ZWO"]
[null,null,null,null,null,null,null,null,null,null,null,null,null,null,{"$f":"VLOOKUP(N186,Tabel10[[korte omschrijving]:[MCC3_CODE]],2,0)","v":{"$error":"#N/A"}},{"$f":"VLOOKUP(N186,Tabel10[],3,0)","v":{"$error":"#N/A"}},null,null,null,null,null,null,null,"EUR",null,null,null,{"$error":"#DIV/0!"},0,0,null,"","","","","","","","","","",null,null,null,null,null,null,null,null,null,null,null,null,null,null,6,"None","Parcel","ZWO"]
[null,null,null,null,null,null,null,null,null,null,null,null,null,null,{"$f":"VLOOKUP(N187,Tabel10[[korte omschrijving]:[MCC3_CODE]],2,0)","v":{"$error":"#N/A"}},{"$f":"VLOOKUP(N187,Tabel10[],3,0)","v":{"$error":"#N/A"}},null,null,null,null,null,null,null,"EUR",null,null,null,{"$error":"#DIV/0!"},0,0,null,"","","","","","","","","","",null,null,null,null,null,null,null,null,null,null,null,null,null,null,6,"None","Parcel","ZWO"]
[null,null,null,null,null,null,null,null,null,null,null,null,null,null,{"$f":"VLOOKUP(N188,Tabel10[[korte omschrijving]:[MCC3_CODE]],2,0)","v":{"$error":"#N/A"}},{"$f":"VLOOKUP(N188,Tabel10[],3,0)","v":{"$error":"#N/A"}},null,null,null,null,null,null,null,"EUR",null,null,null,{"$error":"#DIV/0!"},0,0,null,"","","","","","","","","","",null,null,null,null,null,null,null,null,null,null,null,null,null,null,6,"None","Parcel","ZWO"]
[null,null,null,null,null,null,null,null,null,null,null,null,null,null,{"$f":"VLOOKUP(N189,Tabel10[[korte omschrijving]:[MCC3_CODE]],2,0)","v":{"$error":"#N/A"}},{"$f":"VLOOKUP(N189,Tabel10[],3,0)","v":{"$error":"#N/A"}},null,null,null,null,null,null,null,"EUR",null,null,null,{"$error":"#DIV/0!"},0,0,null,"","","","","","","","","","",null,null,null,null,null,null,null,null,null,null,null,null,null,null,6,"None","Parcel","ZWO"]
[null,null,null,null,null,null,null,null,null,null,null,null,null,null,{"$f":"VLOOKUP(N190,Tabel10[[korte omschrijving]:[MCC3_CODE]],2,0)","v":{"$error":"#N/A"}},{"$f":"VLOOKUP(N190,Tabel10[],3,0)","v":{"$error":"#N/A"}},null,null,null,null,null,null,null,"EUR",null,null,null,{"$error":"#DIV/0!"},0,0,null,"","","","","","","","","","",null,null,null,null,null,null,null,null,null,null,null,null,null,null,6,"None","Parcel","ZWO"]
[null,null,null,null,null,null,null,null,null,null,null,null,null,null,{"$f":"VLOOKUP(N191,Tabel10[[korte omschrijving]:[MCC3_CODE]],2,0)","v":{"$error":"#N/A"}},{"$f":"VLOOKUP(N191,Tabel10[],3,0)","v":{"$error":"#N/A"}},null,null,null,null,null,null,null,"EUR",null,null,null,{"$error":"#DIV/0!"},0,0,null,"","","","","","","","","","",null,null,null,null,null,null,null,null,null,null,null,null,null,null,6,"None","Parcel","ZWO"]
[null,null,null,null,null,null,null,null,null,null,null,null,null,null,{"$f":"VLOOKUP(N192,Tabel10[[korte omschrijving]:[MCC3_CODE]],2,0)","v":{"$error":"#N/A"}},{"$f":"VLOOKUP(N192,Tabel10[],3,0)","v":{"$error":"#N/A"}},null,null,null,null,null,null,null,"EUR",null,null,null,{"$error":"#DIV/0!"},0,0,null,"","","","","","","","","","",null,null,null,null,null,null,null,null,null,null,null,null,null,null,6,"None","Parcel","ZWO"]
[null,null,null,null,null,null,null,null,null,null,null,null,null,null,{"$f":"VLOOKUP(N193,Tabel10[[korte omschrijving]:[MCC3_CODE]],2,0)","v":{"$error":"#N/A"}},{"$f":"VLOOKUP(N193,Tabel10[],3,0)","v":{"$error":"#N/A"}},null,null,null,null,null,null,null,"EUR",null,null,null,{"$error":"#DIV/0!"},0,0,null,"","","","","","","","","","",null,null,null,null,null,null,null,null,null,null,null,null,null,null,6,"None","Parcel","ZWO"]
[null,null,null,null,null,null,null,null,null,null,null,null,null,null,{"$f":"VLOOKUP(N194,Tabel10[[korte omschrijving]:[MCC3_CODE]],2,0)","v":{"$error":"#N/A"}},{"$f":"VLOOKUP(N194,Tabel10[],3,0)","v":{"$error":"#N/A"}},null,null,null,null,null,null,null,"EUR",null,null,null,{"$error":"#DIV/0!"},0,0,null,"","","","","","","","","","",null,null,null,null,null,null,null,null,null,null,null,null,null,null,6,"None","Parcel","ZWO"]
[null,null,null,null,null,null,null,null,null,null,null,null,null,null,{"$f":"VLOOKUP(N195,Tabel10[[korte omschrijving]:[MCC3_CODE]],2,0)","v":{"$error":"#N/A"}},{"$f":"VLOOKUP(N195,Tabel10[],3,0)","v":{"$error":"#N/A"}},null,null,null,null,null,null,null,"EUR",null,null,null,{"$error":"#DIV/0!"},0,0,null,"","","","","","","","","","",null,null,null,null,null,null,null,null,null,null,null,null,null,null,6,"None","Parcel","ZWO"]
[null,null,null,null,null,null,null,null,null,null,null,null,null,null,{"$f":"VLOOKUP(N196,Tabel10[[korte omschrijving]:[MCC3_CODE]],2,0)","v":{"$error":"#N/A"}},{"$f":"VLOOKUP(N196,Tabel10[],3,0)","v":{"$error":"#N/A"}},null,null,null,null,null,null,null,"EUR",null,null,null,{"$error":"#DIV/0!"},0,0,null,"","","","","","","","","","",null,null,null,null,null,null,null,null,null,null,null,null,null,null,6,"None","Parcel","ZWO"]
[null,null,null,null,null,null,null,null,null,null,null,null,null,null,{"$f":"VLOOKUP(N197,Tabel10[[korte omschrijving]:[MCC3_CODE]],2,0)","v":{"$error":"#N/A"}},{"$f":"VLOOKUP(N197,Tabel10[],3,0)","v":{"$error":"#N/A"}},null,null,null,null,null,null,null,"EUR",null,null,null,{"$error":"#DIV/0!"},0,0,null,"","","","","","","","","","",null,null,null,null,null,null,null,null,null,null,null,null,null,null,6,"None","Parcel","ZWO"]
[null,null,null,null,null,null,null,null,null,null,null,null,null,null,{"$f":"VLOOKUP(N198,Tabel10[[korte omschrijving]:[MCC3_CODE]],2,0)","v":{"$error":"#N/A"}},{"$f":"VLOOKUP(N198,Tabel10[],3,0)","v":{"$error":"#N/A"}},null,null,null,null,null,null,null,"EUR",null,null,null,{"$error":"#DIV/0!"},0,0,null,"","","","","","","","","","",null,null,null,null,null,null,null,null,null,null,null,null,null,null,6,"None","Parcel","ZWO"]
[null,null,null,null,null,null,null,null,null,null,null,null,null,null,{"$f":"VLOOKUP(N199,Tabel10[[korte omschrijving]:[MCC3_CODE]],2,0)","v":{"$error":"#N/A"}},{"$f":"VLOOKUP(N199,Tabel10[],3,0)","v":{"$error":"#N/A"}},null,null,null,null,null,null,null,"EUR",null,null,null,{"$f":"AA199/Y199","v":{"$error":"#DIV/0!"}},{"$f":"T199*Y199","v":0},{"$f":"T199*AA199","v":0},null,{"$f":"IF(AE199 <> \"\",\n    IF(ISNUMBER(VALUE(LEFT(AE199, FIND(\"%\", AE199)-1))),\n        VALUE(LEFT(AE199, FIND(\"%\", AE199)-1)),\n        \"Invalid format\"),\n    \"\")","v":""},{"$f":"IF(AE199 <> \"\",\n    IF(ISNUMBER(VALUE(LEFT(AE199, FIND(\"%\", AE199)-1))) * ISNUMBER(FIND(\"%\", AE199 & \"wol\")) > 0,\n        TRIM(MID(AE199, FIND(\"%\", AE199)+1, FIND(\"/\", AE199 & \"/\")-FIND(\"%\", AE199)-1)),\n        \"Invalid format\"),\n    \"\")","v":""},{"$f":"IF(AE199 <> \"\",\n    IF(ISNUMBER(VALUE(MID(AE199, FIND(\"/\", AE199) + 1, FIND(\"%\", AE199, FIND(\"/\", AE199)) - FIND(\"/\", AE199) - 1))),\n        VALUE(MID(AE199, FIND(\"/\", AE199) + 1, FIND(\"%\", AE199, FIND(\"/\", AE199)) - FIND(\"/\", AE199) - 1)),\n        \"\"),\n    \"\")","v":""},{"$f":"IF(AE199 <> \"\",\n    IFERROR(TRIM(MID(AE199, FIND(\"%\", AE199, FIND(\"/\", AE199)+1)+2,\n        IFERROR(FIND(\"/\", AE199 & \"/\", FIND(\"/\", AE199)+1)-FIND(\"%\", AE199, FIND(\"/\", AE199)+1)-2, LEN(AE199)-FIND(\"%\", AE199, FIND(\"/\", AE199)+1)-1))),\n        \"\"),\n    \"\")","v":""},{"$f":"IF(AE199 <> \"\",\n    IF(ISNUMBER(VALUE(MID(AE199, FIND(\"/\", AE199, FIND(\"/\", AE199)+1) + 1, FIND(\"%\", AE199, FIND(\"/\", AE199, FIND(\"/\", AE199)+1)) - FIND(\"/\", AE199, FIND(\"/\", AE199)+1) - 1))),\n        VALUE(MID(AE199, FIND(\"/\", AE199, FIND(\"/\", AE199)+1) + 1, FIND(\"%\", AE199, FIND(\"/\", AE199, FIND(\"/\", AE199)+1)) - FIND(\"/\", AE199, FIND(\"/\", AE199)+1) - 1)),\n        \"\"),\n    \"\")","v":""},{"$f":"IF(AE199 <> \"\",\n    IFERROR(\n        TRIM(MID(AE199,\n            FIND(\"%\", AE199, FIND(\"%\", AE199, FIND(\"%\", AE199)+1)+1)+1,\n            FIND(\"/\", AE199 & \"/\", FIND(\"%\", AE199, FIND(\"%\", AE199, FIND(\"%\", AE199)+1)+1))-FIND(\"%\", AE199, FIND(\"%\", AE199, FIND(\"%\", AE199)+1)+1)-1)\n        ),\n        \"\"\n    ),\n    \"\"\n)","v":""},{"$f":"IF(AE199 <> \"\",\n    IF(ISNUMBER(VALUE(MID(AE199, FIND(\"/\", AE199, FIND(\"/\", AE199, FIND(\"/\", AE199)+1)+1) + 1, FIND(\"%\", AE199, FIND(\"/\", AE199, FIND(\"/\", AE199, FIND(\"/\", AE199)+1)+1)) - FIND(\"/\", AE199, FIND(\"/\", AE199, FIND(\"/\", AE199)+1)+1) - 1))),\n        VALUE(MID(AE199, FIND(\"/\", AE199, FIND(\"/\", AE199, FIND(\"/\", AE199)+1)+1) + 1, FIND(\"%\", AE199, FIND(\"/\", AE199, FIND(\"/\", AE199, FIND(\"/\", AE199)+1)+1)) - FIND(\"/\", AE199, FIND(\"/\", AE199, FIND(\"/\", AE199)+1)+1) - 1)),\n        \"\"),\n    \"\")","v":""},{"$f":"IF(AE199 <> \"\",\n    IFERROR(TRIM(MID(AE199, FIND(\"%\", AE199, FIND(\"/\", AE199, FIND(\"/\", AE199, FIND(\"/\", AE199)+1)+1)+1)+2,\n        IFERROR(FIND(\"/\", AE199, FIND(\"/\", AE199, FIND(\"/\", AE199, FIND(\"/\", AE199)+1)+1)+1)-FIND(\"%\", AE199, FIND(\"/\", AE199, FIND(\"/\", AE199, FIND(\"/\", AE199)+1)+1)+1)-2, LEN(AE199)-FIND(\"%\", AE199, FIND(\"/\", AE199, FIND(\"/\", AE199, FIND(\"/\", AE199)+1)+1)+1)-1))),\n        \"\"),\n    \"\")","v":""},{"$f":"IF(AE199 <> \"\",\n    IF(ISNUMBER(VALUE(MID(AE199, FIND(\"/\", AE199, FIND(\"/\", AE199, FIND(\"/\", AE199, FIND(\"/\", AE199)+1)+1)+1) + 1, FIND(\"%\", AE199, FIND(\"/\", AE199, FIND(\"/\", AE199, FIND(\"/\", AE199, FIND(\"/\", AE199)+1)+1)+1)) - FIND(\"/\", AE199, FIND(\"/\", AE199, FIND(\"/\", AE199, FIND(\"/\", AE199)+1)+1)+1) - 1))),\n        VALUE(MID(AE199, FIND(\"/\", AE199, FIND(\"/\", AE199, FIND(\"/\", AE199, FIND(\"/\", AE199)+1)+1)+1) + 1, FIND(\"%\", AE199, FIND(\"/\", AE199, FIND(\"/\", AE199, FIND(\"/\", AE199, FIND(\"/\", AE199)+1)+1)+1)) - FIND(\"/\", AE199, FIND(\"/\", AE199, FIND(\"/\", AE199, FIND(\"/\", AE199)+1)+1)+1) - 1)),\n        \"\"),\n    \"\")","v":""},{"$f":"IF(AE199 = \"\", \"\",\n    IFERROR(TRIM(\n        MID(\n            AE199,\n            FIND(\"%\", AE199, FIND(\"/\", AE199, FIND(\"/\", AE199, FIND(\"/\", AE199, FIND(\"/\", AE199)+1)+1)+1)+1) + 1,\n            FIND(\"/\", AE199 & \"/\", FIND(\"%\", AE199, FIND(\"/\", AE199, FIND(\"/\", AE199, FIND(\"/\", AE199, FIND(\"/\", AE199)+1)+1)+1)+1)) -\n            FIND(\"%\", AE199, FIND(\"/\", AE199, FIND(\"/\", AE199, FIND(\"/\", AE199, FIND(\"/\", AE199)+1)+1)+1)+1) - 1\n        )\n    ),\n    \"\")\n)","v":""},null,null,null,null,null,null,null,null,null,null,null,null,null,null,6,"None","Parcel","ZWO"]
[null,null,null,null,null,null,null,null,null,null,null,null,null,null,{"$f":"VLOOKUP(N200,Tabel10[[korte omschrijving]:[MCC3_CODE]],2,0)","v":{"$error":"#N/A"}},{"$f":"VLOOKUP(N200,Tabel10[],3,0)","v":{"$error":"#N/A"}},null,null,null,null,null,null,null,"EUR",null,null,null,{"$error":"#DIV/0!"},0,0,null,"","","","","","","","","","",null,null,null,null,null,null,null,null,null,null,null,null,null,null,6,"None","Parcel","ZWO"]
[null,null,null,null,null,null,null,null,null,null,null,null,null,null,{"$f":"VLOOKUP(N201,Tabel10[[korte omschrijving]:[MCC3_CODE]],2,0)","v":{"$error":"#N/A"}},{"$f":"VLOOKUP(N201,Tabel10[],3,0)","v":{"$error":"#N/A"}},null,null,null,null,null,null,null,"EUR",null,null,null,{"$error":"#DIV/0!"},0,0,null,"","","","","","","","","","",null,null,null,null,null,null,null,null,null,null,null,null,null,null,6,"None","Parcel","ZWO"]
[null,null,null,null,null,null,null,null,null,null,null,null,null,null,{"$f":"VLOOKUP(N202,Tabel10[[korte omschrijving]:[MCC3_CODE]],2,0)","v":{"$error":"#N/A"}},{"$f":"VLOOKUP(N202,Tabel10[],3,0)","v":{"$error":"#N/A"}},null,null,null,null,null,null,null,"EUR",null,null,null,{"$error":"#DIV/0!"},0,0,null,"","","","","","","","","","",null,null,null,null,null,null,null,null,null,null,null,null,null,null,6,"None","Parcel","ZWO"]
[null,null,null,null,null,null,null,null,null,null,null,null,null,null,{"$f":"VLOOKUP(N203,Tabel10[[korte omschrijving]:[MCC3_CODE]],2,0)","v":{"$error":"#N/A"}},{"$f":"VLOOKUP(N203,Tabel10[],3,0)","v":{"$error":"#N/A"}},null,null,null,null,null,null,null,"EUR",null,null,null,{"$error":"#DIV/0!"},0,0,null,"","","","","","","","","","",null,null,null,null,null,null,null,null,null,null,null,null,null,null,6,"None","Parcel","ZWO"]
[null,null,null,null,null,null,null,null,null,null,null,null,null,null,{"$f":"VLOOKUP(N204,Tabel10[[korte omschrijving]:[MCC3_CODE]],2,0)","v":{"$error":"#N/A"}},{"$f":"VLOOKUP(N204,Tabel10[],3,0)","v":{"$error":"#N/A"}},null,null,null,null,null,null,null,"EUR",null,null,null,{"$error":"#DIV/0!"},0,0,null,"","","","","","","","","","",null,null,null,null,null,null,null,null,null,null,null,null,null,null,6,"None","Parcel","ZWO"]
[null,null,null,null,null,null,null,null,null,null,null,null,null,null,{"$f":"VLOOKUP(N205,Tabel10[[korte omschrijving]:[MCC3_CODE]],2,0)","v":{"$error":"#N/A"}},{"$f":"VLOOKUP(N205,Tabel10[],3,0)","v":{"$error":"#N/A"}},null,null,null,null,null,null,null,"EUR",null,null,null,{"$error":"#DIV/0!"},0,0,null,"","","","","","","","","","",null,null,null,null,null,null,null,null,null,null,null,null,null,null,6,"None","Parcel","ZWO"]
[null,null,null,null,null,null,null,null,null,null,null,null,null,null,{"$f":"VLOOKUP(N206,Tabel10[[korte omschrijving]:[MCC3_CODE]],2,0)","v":{"$error":"#N/A"}},{"$f":"VLOOKUP(N206,Tabel10[],3,0)","v":{"$error":"#N/A"}},null,null,null,null,null,null,null,"EUR",null,null,null,{"$error":"#DIV/0!"},0,0,null,"","","","","","","","","","",null,null,null,null,null,null,null,null,null,null,null,null,null,null,6,"None","Parcel","ZWO"]
[null,null,null,null,null,null,null,null,null,null,null,null,null,null,{"$f":"VLOOKUP(N207,Tabel10[[korte omschrijving]:[MCC3_CODE]],2,0)","v":{"$error":"#N/A"}},{"$f":"VLOOKUP(N207,Tabel10[],3,0)","v":{"$error":"#N/A"}},null,null,null,null,null,null,null,"EUR",null,null,null,{"$error":"#DIV/0!"},0,0,null,"","","","","","","","","","",null,null,null,null,null,null,null,null,null,null,null,null,null,null,6,"None","Parcel","ZWO"]
[null,null,null,null,null,null,null,null,null,null,null,null,null,null,{"$f":"VLOOKUP(N208,Tabel10[[korte omschrijving]:[MCC3_CODE]],2,0)","v":{"$error":"#N/A"}},{"$f":"VLOOKUP(N208,Tabel10[],3,0)","v":{"$error":"#N/A"}},null,null,null,null,null,null,null,"EUR",null,null,null,{"$error":"#DIV/0!"},0,0,null,"","","","","","","","","","",null,null,null,null,null,null,null,null,null,null,null,null,null,null,6,"None","Parcel","ZWO"]
[null,null,null,null,null,null,null,null,null,null,null,null,null,null,{"$f":"VLOOKUP(N209,Tabel10[[korte omschrijving]:[MCC3_CODE]],2,0)","v":{"$error":"#N/A"}},{"$f":"VLOOKUP(N209,Tabel10[],3,0)","v":{"$error":"#N/A"}},null,null,null,null,null,null,null,"EUR",null,null,null,{"$error":"#DIV/0!"},0,0,null,"","","","","","","","","","",null,null,null,null,null,null,null,null,null,null,null,null,null,null,6,"None","Parcel","ZWO"]
[null,null,null,null,null,null,null,null,null,null,null,null,null,null,{"$f":"VLOOKUP(N210,Tabel10[[korte omschrijving]:[MCC3_CODE]],2,0)","v":{"$error":"#N/A"}},{"$f":"VLOOKUP(N210,Tabel10[],3,0)","v":{"$error":"#N/A"}},null,null,null,null,null,null,null,"EUR",null,null,null,{"$error":"#DIV/0!"},0,0,null,"","","","","","","","","","",null,null,null,null,null,null,null,null,null,null,null,null,null,null,6,"None","Parcel","ZWO"]
[null,null,null,null,null,null,null,null,null,null,null,null,null,null,{"$f":"VLOOKUP(N211,Tabel10[[korte omschrijving]:[MCC3_CODE]],2,0)","v":{"$error":"#N/A"}},{"$f":"VLOOKUP(N211,Tabel10[],3,0)","v":{"$error":"#N/A"}},null,null,null,null,null,null,null,"EUR",null,null,null,{"$error":"#DIV/0!"},0,0,null,"","","","","","","","","","",null,null,null,null,null,null,null,null,null,null,null,null,null,null,6,"None","Parcel","ZWO"]
[null,null,null,null,null,null,null,null,null,null,null,null,null,null,{"$f":"VLOOKUP(N212,Tabel10[[korte omschrijving]:[MCC3_CODE]],2,0)","v":{"$error":"#N/A"}},{"$f":"VLOOKUP(N212,Tabel10[],3,0)","v":{"$error":"#N/A"}},null,null,null,null,null,null,null,"EUR",null,null,null,{"$error":"#DIV/0!"},0,0,null,"","","","","","","","","","",null,null,null,null,null,null,null,null,null,null,null,null,null,null,6,"None","Parcel","ZWO"]
[null,null,null,null,null,null,null,null,null,null,null,null,null,null,{"$f":"VLOOKUP(N213,Tabel10[[korte omschrijving]:[MCC3_CODE]],2,0)","v":{"$error":"#N/A"}},{"$f":"VLOOKUP(N213,Tabel10[],3,0)","v":{"$error":"#N/A"}},null,null,null,null,null,null,null,"EUR",null,null,null,{"$error":"#DIV/0!"},0,0,null,"","","","","","","","","","",null,null,null,null,null,null,null,null,null,null,null,null,null,null,6,"None","Parcel","ZWO"]
[null,null,null,null,null,null,null,null,null,null,null,null,null,null,{"$f":"VLOOKUP(N214,Tabel10[[korte omschrijving]:[MCC3_CODE]],2,0)","v":{"$error":"#N/A"}},{"$f":"VLOOKUP(N214,Tabel10[],3,0)","v":{"$error":"#N/A"}},null,null,null,null,null,null,null,"EUR",null,null,null,{"$error":"#DIV/0!"},0,0,null,"","","","","","","","","","",null,null,null,null,null,null,null,null,null,null,null,null,null,null,6,"None","Parcel","ZWO"]
[null,null,null,null,null,null,null,null,null,null,null,null,null,null,{"$f":"VLOOKUP(N215,Tabel10[[korte omschrijving]:[MCC3_CODE]],2,0)","v":{"$error":"#N/A"}},{"$f":"VLOOKUP(N215,Tabel10[],3,0)","v":{"$error":"#N/A"}},null,null,null,null,null,null,null,"EUR",null,null,null,{"$error":"#DIV/0!"},0,0,null,"","","","","","","","","","",null,null,null,null,null,null,null,null,null,null,null,null,null,null,6,"None","Parcel","ZWO"]
[null,null,null,null,null,null,null,null,null,null,null,null,null,null,{"$f":"VLOOKUP(N216,Tabel10[[korte omschrijving]:[MCC3_CODE]],2,0)","v":{"$error":"#N/A"}},{"$f":"VLOOKUP(N216,Tabel10[],3,0)","v":{"$error":"#N/A"}},null,null,null,null,null,null,null,"EUR",null,null,null,{"$error":"#DIV/0!"},0,0,null,"","","","","","","","","","",null,null,null,null,null,null,null,null,null,null,null,null,null,null,6,"None","Parcel","ZWO"]
[null,null,null,null,null,null,null,null,null,null,null,null,null,null,{"$f":"VLOOKUP(N217,Tabel10[[korte omschrijving]:[MCC3_CODE]],2,0)","v":{"$error":"#N/A"}},{"$f":"VLOOKUP(N217,Tabel10[],3,0)","v":{"$error":"#N/A"}},null,null,null,null,null,null,null,"EUR",null,null,null,{"$error":"#DIV/0!"},0,0,null,"","","","","","","","","","",null,null,null,null,null,null,null,null,null,null,null,null,null,null,6,"None","Parcel","ZWO"]
[null,null,null,null,null,null,null,null,null,null,null,null,null,null,{"$f":"VLOOKUP(N218,Tabel10[[korte omschrijving]:[MCC3_CODE]],2,0)","v":{"$error":"#N/A"}},{"$f":"VLOOKUP(N218,Tabel10[],3,0)","v":{"$error":"#N/A"}},null,null,null,null,null,null,null,"EUR",null,null,null,{"$error":"#DIV/0!"},0,0,null,"","","","","","","","","","",null,null,null,null,null,null,null,null,null,null,null,null,null,null,6,"None","Parcel","ZWO"]
[null,null,null,null,null,null,null,null,null,null,null,null,null,null,{"$f":"VLOOKUP(N219,Tabel10[[korte omschrijving]:[MCC3_CODE]],2,0)","v":{"$error":"#N/A"}},{"$f":"VLOOKUP(N219,Tabel10[],3,0)","v":{"$error":"#N/A"}},null,null,null,null,null,null,null,"EUR",null,null,null,{"$error":"#DIV/0!"},0,0,null,"","","","","","","","","","",null,null,null,null,null,null,null,null,null,null,null,null,null,null,6,"None","Parcel","ZWO"]
[null,null,null,null,null,null,null,null,null,null,null,null,null,null,{"$f":"VLOOKUP(N220,Tabel10[[korte omschrijving]:[MCC3_CODE]],2,0)","v":{"$error":"#N/A"}},{"$f":"VLOOKUP(N220,Tabel10[],3,0)","v":{"$error":"#N/A"}},null,null,null,null,null,null,null,"EUR",null,null,null,{"$error":"#DIV/0!"},0,0,null,"","","","","","","","","","",null,null,null,null,null,null,null,null,null,null,null,null,null,null,6,"None","Parcel","ZWO"]
[null,null,null,null,null,null,null,null,null,null,null,null,null,null,{"$f":"VLOOKUP(N221,Tabel10[[korte omschrijving]:[MCC3_CODE]],2,0)","v":{"$error":"#N/A"}},{"$f":"VLOOKUP(N221,Tabel10[],3,0)","v":{"$error":"#N/A"}},null,null,null,null,null,null,null,"EUR",null,null,null,{"$error":"#DIV/0!"},0,0,null,"","","","","","","","","","",null,null,null,null,null,null,null,null,null,null,null,null,null,null,6,"None","Parcel","ZWO"]
[null,null,null,null,null,null,null,null,null,null,null,null,null,null,{"$f":"VLOOKUP(N222,Tabel10[[korte omschrijving]:[MCC3_CODE]],2,0)","v":{"$error":"#N/A"}},{"$f":"VLOOKUP(N222,Tabel10[],3,0)","v":{"$error":"#N/A"}},null,null,null,null,null,null,null,"EUR",null,null,null,{"$error":"#DIV/0!"},0,0,null,"","","","","","","","","","",null,null,null,null,null,null,null,null,null,null,null,null,null,null,6,"None","Parcel","ZWO"]
[null,null,null,null,null,null,null,null,null,null,null,null,null,null,{"$f":"VLOOKUP(N223,Tabel10[[korte omschrijving]:[MCC3_CODE]],2,0)","v":{"$error":"#N/A"}},{"$f":"VLOOKUP(N223,Tabel10[],3,0)","v":{"$error":"#N/A"}},null,null,null,null,null,null,null,"EUR",null,null,null,{"$error":"#DIV/0!"},0,0,null,"","","","","","","","","","",null,null,null,null,null,null,null,null,null,null,null,null,null,null,6,"None","Parcel","ZWO"]
[null,null,null,null,null,null,null,null,null,null,null,null,null,null,{"$f":"VLOOKUP(N224,Tabel10[[korte omschrijving]:[MCC3_CODE]],2,0)","v":{"$error":"#N/A"}},{"$f":"VLOOKUP(N224,Tabel10[],3,0)","v":{"$error":"#N/A"}},null,null,null,null,null,null,null,"EUR",null,null,null,{"$error":"#DIV/0!"},0,0,null,"","","","","","","","","","",null,null,null,null,null,null,null,null,null,null,null,null,null,null,6,"None","Parcel","ZWO"]
[null,null,null,null,null,null,null,null,null,null,null,null,null,null,{"$f":"VLOOKUP(N225,Tabel10[[korte omschrijving]:[MCC3_CODE]],2,0)","v":{"$error":"#N/A"}},{"$f":"VLOOKUP(N225,Tabel10[],3,0)","v":{"$error":"#N/A"}},null,null,null,null,null,null,null,"EUR",null,null,null,{"$error":"#DIV/0!"},0,0,null,"","","","","","","","","","",null,null,null,null,null,null,null,null,null,null,null,null,null,null,6,"None","Parcel","ZWO"]
[null,null,null,null,null,null,null,null,null,null,null,null,null,null,{"$f":"VLOOKUP(N226,Tabel10[[korte omschrijving]:[MCC3_CODE]],2,0)","v":{"$error":"#N/A"}},{"$f":"VLOOKUP(N226,Tabel10[],3,0)","v":{"$error":"#N/A"}},null,null,null,null,null,null,null,"EUR",null,null,null,{"$error":"#DIV/0!"},0,0,null,"","","","","","","","","","",null,null,null,null,null,null,null,null,null,null,null,null,null,null,6,"None","Parcel","ZWO"]
[null,null,null,null,null,null,null,null,null,null,null,null,null,null,{"$f":"VLOOKUP(N227,Tabel10[[korte omschrijving]:[MCC3_CODE]],2,0)","v":{"$error":"#N/A"}},{"$f":"VLOOKUP(N227,Tabel10[],3,0)","v":{"$error":"#N/A"}},null,null,null,null,null,null,null,"EUR",null,null,null,{"$error":"#DIV/0!"},0,0,null,"","","","","","","","","","",null,null,null,null,null,null,null,null,null,null,null,null,null,null,6,"None","Parcel","ZWO"]
[null,null,null,null,null,null,null,null,null,null,null,null,null,null,{"$f":"VLOOKUP(N228,Tabel10[[korte omschrijving]:[MCC3_CODE]],2,0)","v":{"$error":"#N/A"}},{"$f":"VLOOKUP(N228,Tabel10[],3,0)","v":{"$error":"#N/A"}},null,null,null,null,null,null,null,"EUR",null,null,null,{"$error":"#DIV/0!"},0,0,null,"","","","","","","","","","",null,null,null,null,null,null,null,null,null,null,null,null,null,null,6,"None","Parcel","ZWO"]
[null,null,null,null,null,null,null,null,null,null,null,null,null,null,{"$f":"VLOOKUP(N229,Tabel10[[korte omschrijving]:[MCC3_CODE]],2,0)","v":{"$error":"#N/A"}},{"$f":"VLOOKUP(N229,Tabel10[],3,0)","v":{"$error":"#N/A"}},null,null,null,null,null,null,null,"EUR",null,null,null,{"$error":"#DIV/0!"},0,0,null,"","","","","","","","","","",null,null,null,null,null,null,null,null,null,null,null,null,null,null,6,"None","Parcel","ZWO"]
[null,null,null,null,null,null,null,null,null,null,null,null,null,null,{"$f":"VLOOKUP(N230,Tabel10[[korte omschrijving]:[MCC3_CODE]],2,0)","v":{"$error":"#N/A"}},{"$f":"VLOOKUP(N230,Tabel10[],3,0)","v":{"$error":"#N/A"}},null,null,null,null,null,null,null,"EUR",null,null,null,{"$error":"#DIV/0!"},0,0,null,"","","","","","","","","","",null,null,null,null,null,null,null,null,null,null,null,null,null,null,6,"None","Parcel","ZWO"]
[null,null,null,null,null,null,null,null,null,null,null,null,null,null,{"$f":"VLOOKUP(N231,Tabel10[[korte omschrijving]:[MCC3_CODE]],2,0)","v":{"$error":"#N/A"}},{"$f":"VLOOKUP(N231,Tabel10[],3,0)","v":{"$error":"#N/A"}},null,null,null,null,null,null,null,"EUR",null,null,null,{"$error":"#DIV/0!"},0,0,null,"","","","","","","","","","",null,null,null,null,null,null,null,null,null,null,null,null,null,null,6,"None","Parcel","ZWO"]
[null,null,null,null,null,null,null,null,null,null,null,null,null,null,{"$f":"VLOOKUP(N232,Tabel10[[korte omschrijving]:[MCC3_CODE]],2,0)","v":{"$error":"#N/A"}},{"$f":"VLOOKUP(N232,Tabel10[],3,0)","v":{"$error":"#N/A"}},null,null,null,null,null,null,null,"EUR",null,null,null,{"$error":"#DIV/0!"},0,0,null,"","","","","","","","","","",null,null,null,null,null,null,null,null,null,null,null,null,null,null,6,"None","Parcel","ZWO"]
[null,null,null,null,null,null,null,null,null,null,null,null,null,null,{"$f":"VLOOKUP(N233,Tabel10[[korte omschrijving]:[MCC3_CODE]],2,0)","v":{"$error":"#N/A"}},{"$f":"VLOOKUP(N233,Tabel10[],3,0)","v":{"$error":"#N/A"}},null,null,null,null,null,null,null,"EUR",null,null,null,{"$error":"#DIV/0!"},0,0,null,"","","","","","","","","","",null,null,null,null,null,null,null,null,null,null,null,null,null,null,6,"None","Parcel","ZWO"]
[null,null,null,null,null,null,null,null,null,null,null,null,null,null,{"$f":"VLOOKUP(N234,Tabel10[[korte omschrijving]:[MCC3_CODE]],2,0)","v":{"$error":"#N/A"}},{"$f":"VLOOKUP(N234,Tabel10[],3,0)","v":{"$error":"#N/A"}},null,null,null,null,null,null,null,"EUR",null,null,null,{"$error":"#DIV/0!"},0,0,null,"","","","","","","","","","",null,null,null,null,null,null,null,null,null,null,null,null,null,null,6,"None","Parcel","ZWO"]
[null,null,null,null,null,null,null,null,null,null,null,null,null,null,{"$f":"VLOOKUP(N235,Tabel10[[korte omschrijving]:[MCC3_CODE]],2,0)","v":{"$error":"#N/A"}},{"$f":"VLOOKUP(N235,Tabel10[],3,0)","v":{"$error":"#N/A"}},null,null,null,null,null,null,null,"EUR",null,null,null,{"$error":"#DIV/0!"},0,0,null,"","","","","","","","","","",null,null,null,null,null,null,null,null,null,null,null,null,null,null,6,"None","Parcel","ZWO"]
[null,null,null,null,null,null,null,null,null,null,null,null,null,null,{"$f":"VLOOKUP(N236,Tabel10[[korte omschrijving]:[MCC3_CODE]],2,0)","v":{"$error":"#N/A"}},{"$f":"VLOOKUP(N236,Tabel10[],3,0)","v":{"$error":"#N/A"}},null,null,null,null,null,null,null,"EUR",null,null,null,{"$error":"#DIV/0!"},0,0,null,"","","","","","","","","","",null,null,null,null,null,null,null,null,null,null,null,null,null,null,6,"None","Parcel","ZWO"]
[null,null,null,null,null,null,null,null,null,null,null,null,null,null,{"$f":"VLOOKUP(N237,Tabel10[[korte omschrijving]:[MCC3_CODE]],2,0)","v":{"$error":"#N/A"}},{"$f":"VLOOKUP(N237,Tabel10[],3,0)","v":{"$error":"#N/A"}},null,null,null,null,null,null,null,"EUR",null,null,null,{"$error":"#DIV/0!"},0,0,null,"","","","","","","","","","",null,null,null,null,null,null,null,null,null,null,null,null,null,null,6,"None","Parcel","ZWO"]
[null,null,null,null,null,null,null,null,null,null,null,null,null,null,{"$f":"VLOOKUP(N238,Tabel10[[korte omschrijving]:[MCC3_CODE]],2,0)","v":{"$error":"#N/A"}},{"$f":"VLOOKUP(N238,Tabel10[],3,0)","v":{"$error":"#N/A"}},null,null,null,null,null,null,null,"EUR",null,null,null,{"$error":"#DIV/0!"},0,0,null,"","","","","","","","","","",null,null,null,null,null,null,null,null,null,null,null,null,null,null,6,"None","Parcel","ZWO"]
[null,null,null,null,null,null,null,null,null,null,null,null,null,null,{"$f":"VLOOKUP(N239,Tabel10[[korte omschrijving]:[MCC3_CODE]],2,0)","v":{"$error":"#N/A"}},{"$f":"VLOOKUP(N239,Tabel10[],3,0)","v":{"$error":"#N/A"}},null,null,null,null,null,null,null,"EUR",null,null,null,{"$error":"#DIV/0!"},0,0,null,"","","","","","","","","","",null,null,null,null,null,null,null,null,null,null,null,null,null,null,6,"None","Parcel","ZWO"]
[null,null,null,null,null,null,null,null,null,null,null,null,null,null,{"$f":"VLOOKUP(N240,Tabel10[[korte omschrijving]:[MCC3_CODE]],2,0)","v":{"$error":"#N/A"}},{"$f":"VLOOKUP(N240,Tabel10[],3,0)","v":{"$error":"#N/A"}},null,null,null,null,null,null,null,"EUR",null,null,null,{"$error":"#DIV/0!"},0,0,null,"","","","","","","","","","",null,null,null,null,null,null,null,null,null,null,null,null,null,null,6,"None","Parcel","ZWO"]
[null,null,null,null,null,null,null,null,null,null,null,null,null,null,{"$f":"VLOOKUP(N241,Tabel10[[korte omschrijving]:[MCC3_CODE]],2,0)","v":{"$error":"#N/A"}},{"$f":"VLOOKUP(N241,Tabel10[],3,0)","v":{"$error":"#N/A"}},null,null,null,null,null,null,null,"EUR",null,null,null,{"$error":"#DIV/0!"},0,0,null,"","","","","","","","","","",null,null,null,null,null,null,null,null,null,null,null,null,null,null,6,"None","Parcel","ZWO"]
[null,null,null,null,null,null,null,null,null,null,null,null,null,null,{"$f":"VLOOKUP(N242,Tabel10[[korte omschrijving]:[MCC3_CODE]],2,0)","v":{"$error":"#N/A"}},{"$f":"VLOOKUP(N242,Tabel10[],3,0)","v":{"$error":"#N/A"}},null,null,null,null,null,null,null,"EUR",null,null,null,{"$error":"#DIV/0!"},0,0,null,"","","","","","","","","","",null,null,null,null,null,null,null,null,null,null,null,null,null,null,6,"None","Parcel","ZWO"]
[null,null,null,null,null,null,null,null,null,null,null,null,null,null,{"$f":"VLOOKUP(N243,Tabel10[[korte omschrijving]:[MCC3_CODE]],2,0)","v":{"$error":"#N/A"}},{"$f":"VLOOKUP(N243,Tabel10[],3,0)","v":{"$error":"#N/A"}},null,null,null,null,null,null,null,"EUR",null,null,null,{"$error":"#DIV/0!"},0,0,null,"","","","","","","","","","",null,null,null,null,null,null,null,null,null,null,null,null,null,null,6,"None","Parcel","ZWO"]
[null,null,null,null,null,null,null,null,null,null,null,null,null,null,{"$f":"VLOOKUP(N244,Tabel10[[korte omschrijving]:[MCC3_CODE]],2,0)","v":{"$error":"#N/A"}},{"$f":"VLOOKUP(N244,Tabel10[],3,0)","v":{"$error":"#N/A"}},null,null,null,null,null,null,null,"EUR",null,null,null,{"$error":"#DIV/0!"},0,0,null,"","","","","","","","","","",null,null,null,null,null,null,null,null,null,null,null,null,null,null,6,"None","Parcel","ZWO"]
[null,null,null,null,null,null,null,null,null,null,null,null,null,null,{"$f":"VLOOKUP(N245,Tabel10[[korte omschrijving]:[MCC3_CODE]],2,0)","v":{"$error":"#N/A"}},{"$f":"VLOOKUP(N245,Tabel10[],3,0)","v":{"$error":"#N/A"}},null,null,null,null,null,null,null,"EUR",null,null,null,{"$error":"#DIV/0!"},0,0,null,"","","","","","","","","","",null,null,null,null,null,null,null,null,null,null,null,null,null,null,6,"None","Parcel","ZWO"]
[null,null,null,null,null,null,null,null,null,null,null,null,null,null,{"$f":"VLOOKUP(N246,Tabel10[[korte omschrijving]:[MCC3_CODE]],2,0)","v":{"$error":"#N/A"}},{"$f":"VLOOKUP(N246,Tabel10[],3,0)","v":{"$error":"#N/A"}},null,null,null,null,null,null,null,"EUR",null,null,null,{"$error":"#DIV/0!"},0,0,null,"","","","","","","","","","",null,null,null,null,null,null,null,null,null,null,null,null,null,null,6,"None","Parcel","ZWO"]
[null,null,null,null,null,null,null,null,null,null,null,null,null,null,{"$f":"VLOOKUP(N247,Tabel10[[korte omschrijving]:[MCC3_CODE]],2,0)","v":{"$error":"#N/A"}},{"$f":"VLOOKUP(N247,Tabel10[],3,0)","v":{"$error":"#N/A"}},null,null,null,null,null,null,null,"EUR",null,null,null,{"$error":"#DIV/0!"},0,0,null,"","","","","","","","","","",null,null,null,null,null,null,null,null,null,null,null,null,null,null,6,"None","Parcel","ZWO"]
[null,null,null,null,null,null,null,null,null,null,null,null,null,null,{"$f":"VLOOKUP(N248,Tabel10[[korte omschrijving]:[MCC3_CODE]],2,0)","v":{"$error":"#N/A"}},{"$f":"VLOOKUP(N248,Tabel10[],3,0)","v":{"$error":"#N/A"}},null,null,null,null,null,null,null,"EUR",null,null,null,{"$error":"#DIV/0!"},0,0,null,"","","","","","","","","","",null,null,null,null,null,null,null,null,null,null,null,null,null,null,6,"None","Parcel","ZWO"]
[null,null,null,null,null,null,null,null,null,null,null,null,null,null,{"$f":"VLOOKUP(N249,Tabel10[[korte omschrijving]:[MCC3_CODE]],2,0)","v":{"$error":"#N/A"}},{"$f":"VLOOKUP(N249,Tabel10[],3,0)","v":{"$error":"#N/A"}},null,null,null,null,null,null,null,"EUR",null,null,null,{"$error":"#DIV/0!"},0,0,null,"","","","","","","","","","",null,null,null,null,null,null,null,null,null,null,null,null,null,null,6,"None","Parcel","ZWO"]
[null,null,null,null,null,null,null,null,null,null,null,null,null,null,{"$f":"VLOOKUP(N250,Tabel10[[korte omschrijving]:[MCC3_CODE]],2,0)","v":{"$error":"#N/A"}},{"$f":"VLOOKUP(N250,Tabel10[],3,0)","v":{"$error":"#N/A"}},null,null,null,null,null,null,null,"EUR",null,null,null,{"$error":"#DIV/0!"},0,0,null,"","","","","","","","","","",null,null,null,null,null,null,null,null,null,null,null,null,null,null,6,"None","Parcel","ZWO"]
[null,null,null,null,null,null,null,null,null,null,null,null,null,null,{"$f":"VLOOKUP(N251,Tabel10[[korte omschrijving]:[MCC3_CODE]],2,0)","v":{"$error":"#N/A"}},{"$f":"VLOOKUP(N251,Tabel10[],3,0)","v":{"$error":"#N/A"}},null,null,null,null,null,null,null,"EUR",null,null,null,{"$error":"#DIV/0!"},0,0,null,"","","","","","","","","","",null,null,null,null,null,null,null,null,null,null,null,null,null,null,6,"None","Parcel","ZWO"]
[null,null,null,null,null,null,null,null,null,null,null,null,null,null,{"$f":"VLOOKUP(N252,Tabel10[[korte omschrijving]:[MCC3_CODE]],2,0)","v":{"$error":"#N/A"}},{"$f":"VLOOKUP(N252,Tabel10[],3,0)","v":{"$error":"#N/A"}},null,null,null,null,null,null,null,"EUR",null,null,null,{"$error":"#DIV/0!"},0,0,null,"","","","","","","","","","",null,null,null,null,null,null,null,null,null,null,null,null,null,null,6,"None","Parcel","ZWO"]
[null,null,null,null,null,null,null,null,null,null,null,null,null,null,{"$f":"VLOOKUP(N253,Tabel10[[korte omschrijving]:[MCC3_CODE]],2,0)","v":{"$error":"#N/A"}},{"$f":"VLOOKUP(N253,Tabel10[],3,0)","v":{"$error":"#N/A"}},null,null,null,null,null,null,null,"EUR",null,null,null,{"$error":"#DIV/0!"},0,0,null,"","","","","","","","","","",null,null,null,null,null,null,null,null,null,null,null,null,null,null,6,"None","Parcel","ZWO"]
[null,null,null,null,null,null,null,null,null,null,null,null,null,null,{"$f":"VLOOKUP(N254,Tabel10[[korte omschrijving]:[MCC3_CODE]],2,0)","v":{"$error":"#N/A"}},{"$f":"VLOOKUP(N254,Tabel10[],3,0)","v":{"$error":"#N/A"}},null,null,null,null,null,null,null,"EUR",null,null,null,{"$error":"#DIV/0!"},0,0,null,"","","","","","","","","","",null,null,null,null,null,null,null,null,null,null,null,null,null,null,6,"None","Parcel","ZWO"]
[null,null,null,null,null,null,null,null,null,null,null,null,null,null,{"$f":"VLOOKUP(N255,Tabel10[[korte omschrijving]:[MCC3_CODE]],2,0)","v":{"$error":"#N/A"}},{"$f":"VLOOKUP(N255,Tabel10[],3,0)","v":{"$error":"#N/A"}},null,null,null,null,null,null,null,"EUR",null,null,null,{"$error":"#DIV/0!"},0,0,null,"","","","","","","","","","",null,null,null,null,null,null,null,null,null,null,null,null,null,null,6,"None","Parcel","ZWO"]
[null,null,null,null,null,null,null,null,null,null,null,null,null,null,{"$f":"VLOOKUP(N256,Tabel10[[korte omschrijving]:[MCC3_CODE]],2,0)","v":{"$error":"#N/A"}},{"$f":"VLOOKUP(N256,Tabel10[],3,0)","v":{"$error":"#N/A"}},null,null,null,null,null,null,null,"EUR",null,null,null,{"$error":"#DIV/0!"},0,0,null,"","","","","","","","","","",null,null,null,null,null,null,null,null,null,null,null,null,null,null,6,"None","Parcel","ZWO"]
[null,null,null,null,null,null,null,null,null,null,null,null,null,null,{"$f":"VLOOKUP(N257,Tabel10[[korte omschrijving]:[MCC3_CODE]],2,0)","v":{"$error":"#N/A"}},{"$f":"VLOOKUP(N257,Tabel10[],3,0)","v":{"$error":"#N/A"}},null,null,null,null,null,null,null,"EUR",null,null,null,{"$error":"#DIV/0!"},0,0,null,"","","","","","","","","","",null,null,null,null,null,null,null,null,null,null,null,null,null,null,6,"None","Parcel","ZWO"]
[null,null,null,null,null,null,null,null,null,null,null,null,null,null,{"$f":"VLOOKUP(N258,Tabel10[[korte omschrijving]:[MCC3_CODE]],2,0)","v":{"$error":"#N/A"}},{"$f":"VLOOKUP(N258,Tabel10[],3,0)","v":{"$error":"#N/A"}},null,null,null,null,null,null,null,"EUR",null,null,null,{"$error":"#DIV/0!"},0,0,null,"","","","","","","","","","",null,null,null,null,null,null,null,null,null,null,null,null,null,null,6,"None","Parcel","ZWO"]
[null,null,null,null,null,null,null,null,null,null,null,null,null,null,{"$f":"VLOOKUP(N259,Tabel10[[korte omschrijving]:[MCC3_CODE]],2,0)","v":{"$error":"#N/A"}},{"$f":"VLOOKUP(N259,Tabel10[],3,0)","v":{"$error":"#N/A"}},null,null,null,null,null,null,null,"EUR",null,null,null,{"$error":"#DIV/0!"},0,0,null,"","","","","","","","","","",null,null,null,null,null,null,null,null,null,null,null,null,null,null,6,"None","Parcel","ZWO"]
[null,null,null,null,null,null,null,null,null,null,null,null,null,null,{"$f":"VLOOKUP(N260,Tabel10[[korte omschrijving]:[MCC3_CODE]],2,0)","v":{"$error":"#N/A"}},{"$f":"VLOOKUP(N260,Tabel10[],3,0)","v":{"$error":"#N/A"}},null,null,null,null,null,null,null,"EUR",null,null,null,{"$error":"#DIV/0!"},0,0,null,"","","","","","","","","","",null,null,null,null,null,null,null,null,null,null,null,null,null,null,6,"None","Parcel","ZWO"]
[null,null,null,null,null,null,null,null,null,null,null,null,null,null,{"$f":"VLOOKUP(N261,Tabel10[[korte omschrijving]:[MCC3_CODE]],2,0)","v":{"$error":"#N/A"}},{"$f":"VLOOKUP(N261,Tabel10[],3,0)","v":{"$error":"#N/A"}},null,null,null,null,null,null,null,"EUR",null,null,null,{"$error":"#DIV/0!"},0,0,null,"","","","","","","","","","",null,null,null,null,null,null,null,null,null,null,null,null,null,null,6,"None","Parcel","ZWO"]
[null,null,null,null,null,null,null,null,null,null,null,null,null,null,{"$f":"VLOOKUP(N262,Tabel10[[korte omschrijving]:[MCC3_CODE]],2,0)","v":{"$error":"#N/A"}},{"$f":"VLOOKUP(N262,Tabel10[],3,0)","v":{"$error":"#N/A"}},null,null,null,null,null,null,null,"EUR",null,null,null,{"$error":"#DIV/0!"},0,0,null,"","","","","","","","","","",null,null,null,null,null,null,null,null,null,null,null,null,null,null,6,"None","Parcel","ZWO"]
[null,null,null,null,null,null,null,null,null,null,null,null,null,null,{"$f":"VLOOKUP(N263,Tabel10[[korte omschrijving]:[MCC3_CODE]],2,0)","v":{"$error":"#N/A"}},{"$f":"VLOOKUP(N263,Tabel10[],3,0)","v":{"$error":"#N/A"}},null,null,null,null,null,null,null,"EUR",null,null,null,{"$f":"AA263/Y263","v":{"$error":"#DIV/0!"}},{"$f":"T263*Y263","v":0},{"$f":"T263*AA263","v":0},null,{"$f":"IF(AE263 <> \"\",\n    IF(ISNUMBER(VALUE(LEFT(AE263, FIND(\"%\", AE263)-1))),\n        VALUE(LEFT(AE263, FIND(\"%\", AE263)-1)),\n        \"Invalid format\"),\n    \"\")","v":""},{"$f":"IF(AE263 <> \"\",\n    IF(ISNUMBER(VALUE(LEFT(AE263, FIND(\"%\", AE263)-1))) * ISNUMBER(FIND(\"%\", AE263 & \"wol\")) > 0,\n        TRIM(MID(AE263, FIND(\"%\", AE263)+1, FIND(\"/\", AE263 & \"/\")-FIND(\"%\", AE263)-1)),\n        \"Invalid format\"),\n    \"\")","v":""},{"$f":"IF(AE263 <> \"\",\n    IF(ISNUMBER(VALUE(MID(AE263, FIND(\"/\", AE263) + 1, FIND(\"%\", AE263, FIND(\"/\", AE263)) - FIND(\"/\", AE263) - 1))),\n        VALUE(MID(AE263, FIND(\"/\", AE263) + 1, FIND(\"%\", AE263, FIND(\"/\", AE263)) - FIND(\"/\", AE263) - 1)),\n        \"\"),\n    \"\")","v":""},{"$f":"IF(AE263 <> \"\",\n    IFERROR(TRIM(MID(AE263, FIND(\"%\", AE263, FIND(\"/\", AE263)+1)+2,\n        IFERROR(FIND(\"/\", AE263 & \"/\", FIND(\"/\", AE263)+1)-FIND(\"%\", AE263, FIND(\"/\", AE263)+1)-2, LEN(AE263)-FIND(\"%\", AE263, FIND(\"/\", AE263)+1)-1))),\n        \"\"),\n    \"\")","v":""},{"$f":"IF(AE263 <> \"\",\n    IF(ISNUMBER(VALUE(MID(AE263, FIND(\"/\", AE263, FIND(\"/\", AE263)+1) + 1, FIND(\"%\", AE263, FIND(\"/\", AE263, FIND(\"/\", AE263)+1)) - FIND(\"/\", AE263, FIND(\"/\", AE263)+1) - 1))),\n        VALUE(MID(AE263, FIND(\"/\", AE263, FIND(\"/\", AE263)+1) + 1, FIND(\"%\", AE263, FIND(\"/\", AE263, FIND(\"/\", AE263)+1)) - FIND(\"/\", AE263, FIND(\"/\", AE263)+1) - 1)),\n        \"\"),\n    \"\")","v":""},{"$f":"IF(AE263 <> \"\",\n    IFERROR(\n        TRIM(MID(AE263,\n            FIND(\"%\", AE263, FIND(\"%\", AE263, FIND(\"%\", AE263)+1)+1)+1,\n            FIND(\"/\", AE263 & \"/\", FIND(\"%\", AE263, FIND(\"%\", AE263, FIND(\"%\", AE263)+1)+1))-FIND(\"%\", AE263, FIND(\"%\", AE263, FIND(\"%\", AE263)+1)+1)-1)\n        ),\n        \"\"\n    ),\n    \"\"\n)","v":""},{"$f":"IF(AE263 <> \"\",\n    IF(ISNUMBER(VALUE(MID(AE263, FIND(\"/\", AE263, FIND(\"/\", AE263, FIND(\"/\", AE263)+1)+1) + 1, FIND(\"%\", AE263, FIND(\"/\", AE263, FIND(\"/\", AE263, FIND(\"/\", AE263)+1)+1)) - FIND(\"/\", AE263, FIND(\"/\", AE263, FIND(\"/\", AE263)+1)+1) - 1))),\n        VALUE(MID(AE263, FIND(\"/\", AE263, FIND(\"/\", AE263, FIND(\"/\", AE263)+1)+1) + 1, FIND(\"%\", AE263, FIND(\"/\", AE263, FIND(\"/\", AE263, FIND(\"/\", AE263)+1)+1)) - FIND(\"/\", AE263, FIND(\"/\", AE263, FIND(\"/\", AE263)+1)+1) - 1)),\n        \"\"),\n    \"\")","v":""},{"$f":"IF(AE263 <> \"\",\n    IFERROR(TRIM(MID(AE263, FIND(\"%\", AE263, FIND(\"/\", AE263, FIND(\"/\", AE263, FIND(\"/\", AE263)+1)+1)+1)+2,\n        IFERROR(FIND(\"/\", AE263, FIND(\"/\", AE263, FIND(\"/\", AE263, FIND(\"/\", AE263)+1)+1)+1)-FIND(\"%\", AE263, FIND(\"/\", AE263, FIND(\"/\", AE263, FIND(\"/\", AE263)+1)+1)+1)-2, LEN(AE263)-FIND(\"%\", AE263, FIND(\"/\", AE263, FIND(\"/\", AE263, FIND(\"/\", AE263)+1)+1)+1)-1))),\n        \"\"),\n    \"\")","v":""},{"$f":"IF(AE263 <> \"\",\n    IF(ISNUMBER(VALUE(MID(AE263, FIND(\"/\", AE263, FIND(\"/\", AE263, FIND(\"/\", AE263, FIND(\"/\", AE263)+1)+1)+1) + 1, FIND(\"%\", AE263, FIND(\"/\", AE263, FIND(\"/\", AE263, FIND(\"/\", AE263, FIND(\"/\", AE263)+1)+1)+1)) - FIND(\"/\", AE263, FIND(\"/\", AE263, FIND(\"/\", AE263, FIND(\"/\", AE263)+1)+1)+1) - 1))),\n        VALUE(MID(AE263, FIND(\"/\", AE263, FIND(\"/\", AE263, FIND(\"/\", AE263, FIND(\"/\", AE263)+1)+1)+1) + 1, FIND(\"%\", AE263, FIND(\"/\", AE263, FIND(\"/\", AE263, FIND(\"/\", AE263, FIND(\"/\", AE263)+1)+1)+1)) - FIND(\"/\", AE263, FIND(\"/\", AE263, FIND(\"/\", AE263, FIND(\"/\", AE263)+1)+1)+1) - 1)),\n        \"\"),\n    \"\")","v":""},{"$f":"IF(AE263 = \"\", \"\",\n    IFERROR(TRIM(\n        MID(\n            AE263,\n            FIND(\"%\", AE263, FIND(\"/\", AE263, FIND(\"/\", AE263, FIND(\"/\", AE263, FIND(\"/\", AE263)+1)+1)+1)+1) + 1,\n            FIND(\"/\", AE263 & \"/\", FIND(\"%\", AE263, FIND(\"/\", AE263, FIND(\"/\", AE263, FIND(\"/\", AE263, FIND(\"/\", AE263)+1)+1)+1)+1)) -\n            FIND(\"%\", AE263, FIND(\"/\", AE263, FIND(\"/\", AE263, FIND(\"/\", AE263, FIND(\"/\", AE263)+1)+1)+1)+1) - 1\n        )\n    ),\n    \"\")\n)","v":""},null,null,null,null,null,null,null,null,null,null,null,null,null,null,6,"None","Parcel","ZWO"]
[null,null,null,null,null,null,null,null,null,null,null,null,null,null,{"$f":"VLOOKUP(N264,Tabel10[[korte omschrijving]:[MCC3_CODE]],2,0)","v":{"$error":"#N/A"}},{"$f":"VLOOKUP(N264,Tabel10[],3,0)","v":{"$error":"#N/A"}},null,null,null,null,null,null,null,"EUR",null,null,null,{"$error":"#DIV/0!"},0,0,null,"","","","","","","","","","",null,null,null,null,null,null,null,null,null,null,null,null,null,null,6,"None","Parcel","ZWO"]
[null,null,null,null,null,null,null,null,null,null,null,null,null,null,{"$f":"VLOOKUP(N265,Tabel10[[korte omschrijving]:[MCC3_CODE]],2,0)","v":{"$error":"#N/A"}},{"$f":"VLOOKUP(N265,Tabel10[],3,0)","v":{"$error":"#N/A"}},null,null,null,null,null,null,null,"EUR",null,null,null,{"$error":"#DIV/0!"},0,0,null,"","","","","","","","","","",null,null,null,null,null,null,null,null,null,null,null,null,null,null,6,"None","Parcel","ZWO"]
[null,null,null,null,null,null,null,null,null,null,null,null,null,null,{"$f":"VLOOKUP(N266,Tabel10[[korte omschrijving]:[MCC3_CODE]],2,0)","v":{"$error":"#N/A"}},{"$f":"VLOOKUP(N266,Tabel10[],3,0)","v":{"$error":"#N/A"}},null,null,null,null,null,null,null,"EUR",null,null,null,{"$error":"#DIV/0!"},0,0,null,"","","","","","","","","","",null,null,null,null,null,null,null,null,null,null,null,null,null,null,6,"None","Parcel","ZWO"]
[null,null,null,null,null,null,null,null,null,null,null,null,null,null,{"$f":"VLOOKUP(N267,Tabel10[[korte omschrijving]:[MCC3_CODE]],2,0)","v":{"$error":"#N/A"}},{"$f":"VLOOKUP(N267,Tabel10[],3,0)","v":{"$error":"#N/A"}},null,null,null,null,null,null,null,"EUR",null,null,null,{"$error":"#DIV/0!"},0,0,null,"","","","","","","","","","",null,null,null,null,null,null,null,null,null,null,null,null,null,null,6,"None","Parcel","ZWO"]
[null,null,null,null,null,null,null,null,null,null,null,null,null,null,{"$f":"VLOOKUP(N268,Tabel10[[korte omschrijving]:[MCC3_CODE]],2,0)","v":{"$error":"#N/A"}},{"$f":"VLOOKUP(N268,Tabel10[],3,0)","v":{"$error":"#N/A"}},null,null,null,null,null,null,null,"EUR",null,null,null,{"$error":"#DIV/0!"},0,0,null,"","","","","","","","","","",null,null,null,null,null,null,null,null,null,null,null,null,null,null,6,"None","Parcel","ZWO"]
[null,null,null,null,null,null,null,null,null,null,null,null,null,null,{"$f":"VLOOKUP(N269,Tabel10[[korte omschrijving]:[MCC3_CODE]],2,0)","v":{"$error":"#N/A"}},{"$f":"VLOOKUP(N269,Tabel10[],3,0)","v":{"$error":"#N/A"}},null,null,null,null,null,null,null,"EUR",null,null,null,{"$error":"#DIV/0!"},0,0,null,"","","","","","","","","","",null,null,null,null,null,null,null,null,null,null,null,null,null,null,6,"None","Parcel","ZWO"]
[null,null,null,null,null,null,null,null,null,null,null,null,null,null,{"$f":"VLOOKUP(N270,Tabel10[[korte omschrijving]:[MCC3_CODE]],2,0)","v":{"$error":"#N/A"}},{"$f":"VLOOKUP(N270,Tabel10[],3,0)","v":{"$error":"#N/A"}},null,null,null,null,null,null,null,"EUR",null,null,null,{"$error":"#DIV/0!"},0,0,null,"","","","","","","","","","",null,null,null,null,null,null,null,null,null,null,null,null,null,null,6,"None","Parcel","ZWO"]
[null,null,null,null,null,null,null,null,null,null,null,null,null,null,{"$f":"VLOOKUP(N271,Tabel10[[korte omschrijving]:[MCC3_CODE]],2,0)","v":{"$error":"#N/A"}},{"$f":"VLOOKUP(N271,Tabel10[],3,0)","v":{"$error":"#N/A"}},null,null,null,null,null,null,null,"EUR",null,null,null,{"$error":"#DIV/0!"},0,0,null,"","","","","","","","","","",null,null,null,null,null,null,null,null,null,null,null,null,null,null,6,"None","Parcel","ZWO"]
[null,null,null,null,null,null,null,null,null,null,null,null,null,null,{"$f":"VLOOKUP(N272,Tabel10[[korte omschrijving]:[MCC3_CODE]],2,0)","v":{"$error":"#N/A"}},{"$f":"VLOOKUP(N272,Tabel10[],3,0)","v":{"$error":"#N/A"}},null,null,null,null,null,null,null,"EUR",null,null,null,{"$error":"#DIV/0!"},0,0,null,"","","","","","","","","","",null,null,null,null,null,null,null,null,null,null,null,null,null,null,6,"None","Parcel","ZWO"]
[null,null,null,null,null,null,null,null,null,null,null,null,null,null,{"$f":"VLOOKUP(N273,Tabel10[[korte omschrijving]:[MCC3_CODE]],2,0)","v":{"$error":"#N/A"}},{"$f":"VLOOKUP(N273,Tabel10[],3,0)","v":{"$error":"#N/A"}},null,null,null,null,null,null,null,"EUR",null,null,null,{"$error":"#DIV/0!"},0,0,null,"","","","","","","","","","",null,null,null,null,null,null,null,null,null,null,null,null,null,null,6,"None","Parcel","ZWO"]
[null,null,null,null,null,null,null,null,null,null,null,null,null,null,{"$f":"VLOOKUP(N274,Tabel10[[korte omschrijving]:[MCC3_CODE]],2,0)","v":{"$error":"#N/A"}},{"$f":"VLOOKUP(N274,Tabel10[],3,0)","v":{"$error":"#N/A"}},null,null,null,null,null,null,null,"EUR",null,null,null,{"$error":"#DIV/0!"},0,0,null,"","","","","","","","","","",null,null,null,null,null,null,null,null,null,null,null,null,null,null,6,"None","Parcel","ZWO"]
[null,null,null,null,null,null,null,null,null,null,null,null,null,null,{"$f":"VLOOKUP(N275,Tabel10[[korte omschrijving]:[MCC3_CODE]],2,0)","v":{"$error":"#N/A"}},{"$f":"VLOOKUP(N275,Tabel10[],3,0)","v":{"$error":"#N/A"}},null,null,null,null,null,null,null,"EUR",null,null,null,{"$error":"#DIV/0!"},0,0,null,"","","","","","","","","","",null,null,null,null,null,null,null,null,null,null,null,null,null,null,6,"None","Parcel","ZWO"]
[null,null,null,null,null,null,null,null,null,null,null,null,null,null,{"$f":"VLOOKUP(N276,Tabel10[[korte omschrijving]:[MCC3_CODE]],2,0)","v":{"$error":"#N/A"}},{"$f":"VLOOKUP(N276,Tabel10[],3,0)","v":{"$error":"#N/A"}},null,null,null,null,null,null,null,"EUR",null,null,null,{"$error":"#DIV/0!"},0,0,null,"","","","","","","","","","",null,null,null,null,null,null,null,null,null,null,null,null,null,null,6,"None","Parcel","ZWO"]
[null,null,null,null,null,null,null,null,null,null,null,null,null,null,{"$f":"VLOOKUP(N277,Tabel10[[korte omschrijving]:[MCC3_CODE]],2,0)","v":{"$error":"#N/A"}},{"$f":"VLOOKUP(N277,Tabel10[],3,0)","v":{"$error":"#N/A"}},null,null,null,null,null,null,null,"EUR",null,null,null,{"$error":"#DIV/0!"},0,0,null,"","","","","","","","","","",null,null,null,null,null,null,null,null,null,null,null,null,null,null,6,"None","Parcel","ZWO"]
[null,null,null,null,null,null,null,null,null,null,null,null,null,null,{"$f":"VLOOKUP(N278,Tabel10[[korte omschrijving]:[MCC3_CODE]],2,0)","v":{"$error":"#N/A"}},{"$f":"VLOOKUP(N278,Tabel10[],3,0)","v":{"$error":"#N/A"}},null,null,null,null,null,null,null,"EUR",null,null,null,{"$error":"#DIV/0!"},0,0,null,"","","","","","","","","","",null,null,null,null,null,null,null,null,null,null,null,null,null,null,6,"None","Parcel","ZWO"]
[null,null,null,null,null,null,null,null,null,null,null,null,null,null,{"$f":"VLOOKUP(N279,Tabel10[[korte omschrijving]:[MCC3_CODE]],2,0)","v":{"$error":"#N/A"}},{"$f":"VLOOKUP(N279,Tabel10[],3,0)","v":{"$error":"#N/A"}},null,null,null,null,null,null,null,"EUR",null,null,null,{"$error":"#DIV/0!"},0,0,null,"","","","","","","","","","",null,null,null,null,null,null,null,null,null,null,null,null,null,null,6,"None","Parcel","ZWO"]
[null,null,null,null,null,null,null,null,null,null,null,null,null,null,{"$f":"VLOOKUP(N280,Tabel10[[korte omschrijving]:[MCC3_CODE]],2,0)","v":{"$error":"#N/A"}},{"$f":"VLOOKUP(N280,Tabel10[],3,0)","v":{"$error":"#N/A"}},null,null,null,null,null,null,null,"EUR",null,null,null,{"$error":"#DIV/0!"},0,0,null,"","","","","","","","","","",null,null,null,null,null,null,null,null,null,null,null,null,null,null,6,"None","Parcel","ZWO"]
[null,null,null,null,null,null,null,null,null,null,null,null,null,null,{"$f":"VLOOKUP(N281,Tabel10[[korte omschrijving]:[MCC3_CODE]],2,0)","v":{"$error":"#N/A"}},{"$f":"VLOOKUP(N281,Tabel10[],3,0)","v":{"$error":"#N/A"}},null,null,null,null,null,null,null,"EUR",null,null,null,{"$error":"#DIV/0!"},0,0,null,"","","","","","","","","","",null,null,null,null,null,null,null,null,null,null,null,null,null,null,6,"None","Parcel","ZWO"]
[null,null,null,null,null,null,null,null,null,null,null,null,null,null,{"$f":"VLOOKUP(N282,Tabel10[[korte omschrijving]:[MCC3_CODE]],2,0)","v":{"$error":"#N/A"}},{"$f":"VLOOKUP(N282,Tabel10[],3,0)","v":{"$error":"#N/A"}},null,null,null,null,null,null,null,"EUR",null,null,null,{"$error":"#DIV/0!"},0,0,null,"","","","","","","","","","",null,null,null,null,null,null,null,null,null,null,null,null,null,null,6,"None","Parcel","ZWO"]
[null,null,null,null,null,null,null,null,null,null,null,null,null,null,{"$f":"VLOOKUP(N283,Tabel10[[korte omschrijving]:[MCC3_CODE]],2,0)","v":{"$error":"#N/A"}},{"$f":"VLOOKUP(N283,Tabel10[],3,0)","v":{"$error":"#N/A"}},null,null,null,null,null,null,null,"EUR",null,null,null,{"$error":"#DIV/0!"},0,0,null,"","","","","","","","","","",null,null,null,null,null,null,null,null,null,null,null,null,null,null,6,"None","Parcel","ZWO"]
[null,null,null,null,null,null,null,null,null,null,null,null,null,null,{"$f":"VLOOKUP(N284,Tabel10[[korte omschrijving]:[MCC3_CODE]],2,0)","v":{"$error":"#N/A"}},{"$f":"VLOOKUP(N284,Tabel10[],3,0)","v":{"$error":"#N/A"}},null,null,null,null,null,null,null,"EUR",null,null,null,{"$error":"#DIV/0!"},0,0,null,"","","","","","","","","","",null,null,null,null,null,null,null,null,null,null,null,null,null,null,6,"None","Parcel","ZWO"]
[null,null,null,null,null,null,null,null,null,null,null,null,null,null,{"$f":"VLOOKUP(N285,Tabel10[[korte omschrijving]:[MCC3_CODE]],2,0)","v":{"$error":"#N/A"}},{"$f":"VLOOKUP(N285,Tabel10[],3,0)","v":{"$error":"#N/A"}},null,null,null,null,null,null,null,"EUR",null,null,null,{"$error":"#DIV/0!"},0,0,null,"","","","","","","","","","",null,null,null,null,null,null,null,null,null,null,null,null,null,null,6,"None","Parcel","ZWO"]
[null,null,null,null,null,null,null,null,null,null,null,null,null,null,{"$f":"VLOOKUP(N286,Tabel10[[korte omschrijving]:[MCC3_CODE]],2,0)","v":{"$error":"#N/A"}},{"$f":"VLOOKUP(N286,Tabel10[],3,0)","v":{"$error":"#N/A"}},null,null,null,null,null,null,null,"EUR",null,null,null,{"$error":"#DIV/0!"},0,0,null,"","","","","","","","","","",null,null,null,null,null,null,null,null,null,null,null,null,null,null,6,"None","Parcel","ZWO"]
[null,null,null,null,null,null,null,null,null,null,null,null,null,null,{"$f":"VLOOKUP(N287,Tabel10[[korte omschrijving]:[MCC3_CODE]],2,0)","v":{"$error":"#N/A"}},{"$f":"VLOOKUP(N287,Tabel10[],3,0)","v":{"$error":"#N/A"}},null,null,null,null,null,null,null,"EUR",null,null,null,{"$error":"#DIV/0!"},0,0,null,"","","","","","","","","","",null,null,null,null,null,null,null,null,null,null,null,null,null,null,6,"None","Parcel","ZWO"]
[null,null,null,null,null,null,null,null,null,null,null,null,null,null,{"$f":"VLOOKUP(N288,Tabel10[[korte omschrijving]:[MCC3_CODE]],2,0)","v":{"$error":"#N/A"}},{"$f":"VLOOKUP(N288,Tabel10[],3,0)","v":{"$error":"#N/A"}},null,null,null,null,null,null,null,"EUR",null,null,null,{"$error":"#DIV/0!"},0,0,null,"","","","","","","","","","",null,null,null,null,null,null,null,null,null,null,null,null,null,null,6,"None","Parcel","ZWO"]
[null,null,null,null,null,null,null,null,null,null,null,null,null,null,{"$f":"VLOOKUP(N289,Tabel10[[korte omschrijving]:[MCC3_CODE]],2,0)","v":{"$error":"#N/A"}},{"$f":"VLOOKUP(N289,Tabel10[],3,0)","v":{"$error":"#N/A"}},null,null,null,null,null,null,null,"EUR",null,null,null,{"$error":"#DIV/0!"},0,0,null,"","","","","","","","","","",null,null,null,null,null,null,null,null,null,null,null,null,null,null,6,"None","Parcel","ZWO"]
[null,null,null,null,null,null,null,null,null,null,null,null,null,null,{"$f":"VLOOKUP(N290,Tabel10[[korte omschrijving]:[MCC3_CODE]],2,0)","v":{"$error":"#N/A"}},{"$f":"VLOOKUP(N290,Tabel10[],3,0)","v":{"$error":"#N/A"}},null,null,null,null,null,null,null,"EUR",null,null,null,{"$error":"#DIV/0!"},0,0,null,"","","","","","","","","","",null,null,null,null,null,null,null,null,null,null,null,null,null,null,6,"None","Parcel","ZWO"]
[null,null,null,null,null,null,null,null,null,null,null,null,null,null,{"$f":"VLOOKUP(N291,Tabel10[[korte omschrijving]:[MCC3_CODE]],2,0)","v":{"$error":"#N/A"}},{"$f":"VLOOKUP(N291,Tabel10[],3,0)","v":{"$error":"#N/A"}},null,null,null,null,null,null,null,"EUR",null,null,null,{"$error":"#DIV/0!"},0,0,null,"","","","","","","","","","",null,null,null,null,null,null,null,null,null,null,null,null,null,null,6,"None","Parcel","ZWO"]
[null,null,null,null,null,null,null,null,null,null,null,null,null,null,{"$f":"VLOOKUP(N292,Tabel10[[korte omschrijving]:[MCC3_CODE]],2,0)","v":{"$error":"#N/A"}},{"$f":"VLOOKUP(N292,Tabel10[],3,0)","v":{"$error":"#N/A"}},null,null,null,null,null,null,null,"EUR",null,null,null,{"$error":"#DIV/0!"},0,0,null,"","","","","","","","","","",null,null,null,null,null,null,null,null,null,null,null,null,null,null,6,"None","Parcel","ZWO"]
[null,null,null,null,null,null,null,null,null,null,null,null,null,null,{"$f":"VLOOKUP(N293,Tabel10[[korte omschrijving]:[MCC3_CODE]],2,0)","v":{"$error":"#N/A"}},{"$f":"VLOOKUP(N293,Tabel10[],3,0)","v":{"$error":"#N/A"}},null,null,null,null,null,null,null,"EUR",null,null,null,{"$error":"#DIV/0!"},0,0,null,"","","","","","","","","","",null,null,null,null,null,null,null,null,null,null,null,null,null,null,6,"None","Parcel","ZWO"]
[null,null,null,null,null,null,null,null,null,null,null,null,null,null,{"$f":"VLOOKUP(N294,Tabel10[[korte omschrijving]:[MCC3_CODE]],2,0)","v":{"$error":"#N/A"}},{"$f":"VLOOKUP(N294,Tabel10[],3,0)","v":{"$error":"#N/A"}},null,null,null,null,null,null,null,"EUR",null,null,null,{"$error":"#DIV/0!"},0,0,null,"","","","","","","","","","",null,null,null,null,null,null,null,null,null,null,null,null,null,null,6,"None","Parcel","ZWO"]
[null,null,null,null,null,null,null,null,null,null,null,null,null,null,{"$f":"VLOOKUP(N295,Tabel10[[korte omschrijving]:[MCC3_CODE]],2,0)","v":{"$error":"#N/A"}},{"$f":"VLOOKUP(N295,Tabel10[],3,0)","v":{"$error":"#N/A"}},null,null,null,null,null,null,null,"EUR",null,null,null,{"$error":"#DIV/0!"},0,0,null,"","","","","","","","","","",null,null,null,null,null,null,null,null,null,null,null,null,null,null,6,"None","Parcel","ZWO"]
[null,null,null,null,null,null,null,null,null,null,null,null,null,null,{"$f":"VLOOKUP(N296,Tabel10[[korte omschrijving]:[MCC3_CODE]],2,0)","v":{"$error":"#N/A"}},{"$f":"VLOOKUP(N296,Tabel10[],3,0)","v":{"$error":"#N/A"}},null,null,null,null,null,null,null,"EUR",null,null,null,{"$error":"#DIV/0!"},0,0,null,"","","","","","","","","","",null,null,null,null,null,null,null,null,null,null,null,null,null,null,6,"None","Parcel","ZWO"]
[null,null,null,null,null,null,null,null,null,null,null,null,null,null,{"$f":"VLOOKUP(N297,Tabel10[[korte omschrijving]:[MCC3_CODE]],2,0)","v":{"$error":"#N/A"}},{"$f":"VLOOKUP(N297,Tabel10[],3,0)","v":{"$error":"#N/A"}},null,null,null,null,null,null,null,"EUR",null,null,null,{"$error":"#DIV/0!"},0,0,null,"","","","","","","","","","",null,null,null,null,null,null,null,null,null,null,null,null,null,null,6,"None","Parcel","ZWO"]
[null,null,null,null,null,null,null,null,null,null,null,null,null,null,{"$f":"VLOOKUP(N298,Tabel10[[korte omschrijving]:[MCC3_CODE]],2,0)","v":{"$error":"#N/A"}},{"$f":"VLOOKUP(N298,Tabel10[],3,0)","v":{"$error":"#N/A"}},null,null,null,null,null,null,null,"EUR",null,null,null,{"$error":"#DIV/0!"},0,0,null,"","","","","","","","","","",null,null,null,null,null,null,null,null,null,null,null,null,null,null,6,"None","Parcel","ZWO"]
[null,null,null,null,null,null,null,null,null,null,null,null,null,null,{"$f":"VLOOKUP(N299,Tabel10[[korte omschrijving]:[MCC3_CODE]],2,0)","v":{"$error":"#N/A"}},{"$f":"VLOOKUP(N299,Tabel10[],3,0)","v":{"$error":"#N/A"}},null,null,null,null,null,null,null,"EUR",null,null,null,{"$error":"#DIV/0!"},0,0,null,"","","","","","","","","","",null,null,null,null,null,null,null,null,null,null,null,null,null,null,6,"None","Parcel","ZWO"]
[null,null,null,null,null,null,null,null,null,null,null,null,null,null,{"$f":"VLOOKUP(N300,Tabel10[[korte omschrijving]:[MCC3_CODE]],2,0)","v":{"$error":"#N/A"}},{"$f":"VLOOKUP(N300,Tabel10[],3,0)","v":{"$error":"#N/A"}},null,null,null,null,null,null,null,"EUR",null,null,null,{"$error":"#DIV/0!"},0,0,null,"","","","","","","","","","",null,null,null,null,null,null,null,null,null,null,null,null,null,null,6,"None","Parcel","ZWO"]
[null,null,null,null,null,null,null,null,null,null,null,null,null,null,{"$f":"VLOOKUP(N301,Tabel10[[korte omschrijving]:[MCC3_CODE]],2,0)","v":{"$error":"#N/A"}},{"$f":"VLOOKUP(N301,Tabel10[],3,0)","v":{"$error":"#N/A"}},null,null,null,null,null,null,null,"EUR",null,null,null,{"$error":"#DIV/0!"},0,0,null,"","","","","","","","","","",null,null,null,null,null,null,null,null,null,null,null,null,null,null,6,"None","Parcel","ZWO"]
[null,null,null,null,null,null,null,null,null,null,null,null,null,null,{"$f":"VLOOKUP(N302,Tabel10[[korte omschrijving]:[MCC3_CODE]],2,0)","v":{"$error":"#N/A"}},{"$f":"VLOOKUP(N302,Tabel10[],3,0)","v":{"$error":"#N/A"}},null,null,null,null,null,null,null,"EUR",null,null,null,{"$error":"#DIV/0!"},0,0,null,"","","","","","","","","","",null,null,null,null,null,null,null,null,null,null,null,null,null,null,6,"None","Parcel","ZWO"]
[null,null,null,null,null,null,null,null,null,null,null,null,null,null,{"$f":"VLOOKUP(N303,Tabel10[[korte omschrijving]:[MCC3_CODE]],2,0)","v":{"$error":"#N/A"}},{"$f":"VLOOKUP(N303,Tabel10[],3,0)","v":{"$error":"#N/A"}},null,null,null,null,null,null,null,"EUR",null,null,null,{"$error":"#DIV/0!"},0,0,null,"","","","","","","","","","",null,null,null,null,null,null,null,null,null,null,null,null,null,null,6,"None","Parcel","ZWO"]
[null,null,null,null,null,null,null,null,null,null,null,null,null,null,{"$f":"VLOOKUP(N304,Tabel10[[korte omschrijving]:[MCC3_CODE]],2,0)","v":{"$error":"#N/A"}},{"$f":"VLOOKUP(N304,Tabel10[],3,0)","v":{"$error":"#N/A"}},null,null,null,null,null,null,null,"EUR",null,null,null,{"$error":"#DIV/0!"},0,0,null,"","","","","","","","","","",null,null,null,null,null,null,null,null,null,null,null,null,null,null,6,"None","Parcel","ZWO"]
[null,null,null,null,null,null,null,null,null,null,null,null,null,null,{"$f":"VLOOKUP(N305,Tabel10[[korte omschrijving]:[MCC3_CODE]],2,0)","v":{"$error":"#N/A"}},{"$f":"VLOOKUP(N305,Tabel10[],3,0)","v":{"$error":"#N/A"}},null,null,null,null,null,null,null,"EUR",null,null,null,{"$error":"#DIV/0!"},0,0,null,"","","","","","","","","","",null,null,null,null,null,null,null,null,null,null,null,null,null,null,6,"None","Parcel","ZWO"]
[null,null,null,null,null,null,null,null,null,null,null,null,null,null,{"$f":"VLOOKUP(N306,Tabel10[[korte omschrijving]:[MCC3_CODE]],2,0)","v":{"$error":"#N/A"}},{"$f":"VLOOKUP(N306,Tabel10[],3,0)","v":{"$error":"#N/A"}},null,null,null,null,null,null,null,"EUR",null,null,null,{"$error":"#DIV/0!"},0,0,null,"","","","","","","","","","",null,null,null,null,null,null,null,null,null,null,null,null,null,null,6,"None","Parcel","ZWO"]
[null,null,null,null,null,null,null,null,null,null,null,null,null,null,{"$f":"VLOOKUP(N307,Tabel10[[korte omschrijving]:[MCC3_CODE]],2,0)","v":{"$error":"#N/A"}},{"$f":"VLOOKUP(N307,Tabel10[],3,0)","v":{"$error":"#N/A"}},null,null,null,null,null,null,null,"EUR",null,null,null,{"$error":"#DIV/0!"},0,0,null,"","","","","","","","","","",null,null,null,null,null,null,null,null,null,null,null,null,null,null,6,"None","Parcel","ZWO"]
[null,null,null,null,null,null,null,null,null,null,null,null,null,null,{"$f":"VLOOKUP(N308,Tabel10[[korte omschrijving]:[MCC3_CODE]],2,0)","v":{"$error":"#N/A"}},{"$f":"VLOOKUP(N308,Tabel10[],3,0)","v":{"$error":"#N/A"}},null,null,null,null,null,null,null,"EUR",null,null,null,{"$error":"#DIV/0!"},0,0,null,"","","","","","","","","","",null,null,null,null,null,null,null,null,null,null,null,null,null,null,6,"None","Parcel","ZWO"]
[null,null,null,null,null,null,null,null,null,null,null,null,null,null,{"$f":"VLOOKUP(N309,Tabel10[[korte omschrijving]:[MCC3_CODE]],2,0)","v":{"$error":"#N/A"}},{"$f":"VLOOKUP(N309,Tabel10[],3,0)","v":{"$error":"#N/A"}},null,null,null,null,null,null,null,"EUR",null,null,null,{"$error":"#DIV/0!"},0,0,null,"","","","","","","","","","",null,null,null,null,null,null,null,null,null,null,null,null,null,null,6,"None","Parcel","ZWO"]
[null,null,null,null,null,null,null,null,null,null,null,null,null,null,{"$f":"VLOOKUP(N310,Tabel10[[korte omschrijving]:[MCC3_CODE]],2,0)","v":{"$error":"#N/A"}},{"$f":"VLOOKUP(N310,Tabel10[],3,0)","v":{"$error":"#N/A"}},null,null,null,null,null,null,null,"EUR",null,null,null,{"$error":"#DIV/0!"},0,0,null,"","","","","","","","","","",null,null,null,null,null,null,null,null,null,null,null,null,null,null,6,"None","Parcel","ZWO"]
[null,null,null,null,null,null,null,null,null,null,null,null,null,null,{"$f":"VLOOKUP(N311,Tabel10[[korte omschrijving]:[MCC3_CODE]],2,0)","v":{"$error":"#N/A"}},{"$f":"VLOOKUP(N311,Tabel10[],3,0)","v":{"$error":"#N/A"}},null,null,null,null,null,null,null,"EUR",null,null,null,{"$error":"#DIV/0!"},0,0,null,"","","","","","","","","","",null,null,null,null,null,null,null,null,null,null,null,null,null,null,6,"None","Parcel","ZWO"]
[null,null,null,null,null,null,null,null,null,null,null,null,null,null,{"$f":"VLOOKUP(N312,Tabel10[[korte omschrijving]:[MCC3_CODE]],2,0)","v":{"$error":"#N/A"}},{"$f":"VLOOKUP(N312,Tabel10[],3,0)","v":{"$error":"#N/A"}},null,null,null,null,null,null,null,"EUR",null,null,null,{"$error":"#DIV/0!"},0,0,null,"","","","","","","","","","",null,null,null,null,null,null,null,null,null,null,null,null,null,null,6,"None","Parcel","ZWO"]
[null,null,null,null,null,null,null,null,null,null,null,null,null,null,{"$f":"VLOOKUP(N313,Tabel10[[korte omschrijving]:[MCC3_CODE]],2,0)","v":{"$error":"#N/A"}},{"$f":"VLOOKUP(N313,Tabel10[],3,0)","v":{"$error":"#N/A"}},null,null,null,null,null,null,null,"EUR",null,null,null,{"$error":"#DIV/0!"},0,0,null,"","","","","","","","","","",null,null,null,null,null,null,null,null,null,null,null,null,null,null,6,"None","Parcel","ZWO"]
[null,null,null,null,null,null,null,null,null,null,null,null,null,null,{"$f":"VLOOKUP(N314,Tabel10[[korte omschrijving]:[MCC3_CODE]],2,0)","v":{"$error":"#N/A"}},{"$f":"VLOOKUP(N314,Tabel10[],3,0)","v":{"$error":"#N/A"}},null,null,null,null,null,null,null,"EUR",null,null,null,{"$error":"#DIV/0!"},0,0,null,"","","","","","","","","","",null,null,null,null,null,null,null,null,null,null,null,null,null,null,6,"None","Parcel","ZWO"]
[null,null,null,null,null,null,null,null,null,null,null,null,null,null,{"$f":"VLOOKUP(N315,Tabel10[[korte omschrijving]:[MCC3_CODE]],2,0)","v":{"$error":"#N/A"}},{"$f":"VLOOKUP(N315,Tabel10[],3,0)","v":{"$error":"#N/A"}},null,null,null,null,null,null,null,"EUR",null,null,null,{"$error":"#DIV/0!"},0,0,null,"","","","","","","","","","",null,null,null,null,null,null,null,null,null,null,null,null,null,null,6,"None","Parcel","ZWO"]
[null,null,null,null,null,null,null,null,null,null,null,null,null,null,{"$f":"VLOOKUP(N316,Tabel10[[korte omschrijving]:[MCC3_CODE]],2,0)","v":{"$error":"#N/A"}},{"$f":"VLOOKUP(N316,Tabel10[],3,0)","v":{"$error":"#N/A"}},null,null,null,null,null,null,null,"EUR",null,null,null,{"$error":"#DIV/0!"},0,0,null,"","","","","","","","","","",null,null,null,null,null,null,null,null,null,null,null,null,null,null,6,"None","Parcel","ZWO"]
[null,null,null,null,null,null,null,null,null,null,null,null,null,null,{"$f":"VLOOKUP(N317,Tabel10[[korte omschrijving]:[MCC3_CODE]],2,0)","v":{"$error":"#N/A"}},{"$f":"VLOOKUP(N317,Tabel10[],3,0)","v":{"$error":"#N/A"}},null,null,null,null,null,null,null,"EUR",null,null,null,{"$error":"#DIV/0!"},0,0,null,"","","","","","","","","","",null,null,null,null,null,null,null,null,null,null,null,null,null,null,6,"None","Parcel","ZWO"]
[null,null,null,null,null,null,null,null,null,null,null,null,null,null,{"$f":"VLOOKUP(N318,Tabel10[[korte omschrijving]:[MCC3_CODE]],2,0)","v":{"$error":"#N/A"}},{"$f":"VLOOKUP(N318,Tabel10[],3,0)","v":{"$error":"#N/A"}},null,null,null,null,null,null,null,"EUR",null,null,null,{"$error":"#DIV/0!"},0,0,null,"","","","","","","","","","",null,null,null,null,null,null,null,null,null,null,null,null,null,null,6,"None","Parcel","ZWO"]
[null,null,null,null,null,null,null,null,null,null,null,null,null,null,{"$f":"VLOOKUP(N319,Tabel10[[korte omschrijving]:[MCC3_CODE]],2,0)","v":{"$error":"#N/A"}},{"$f":"VLOOKUP(N319,Tabel10[],3,0)","v":{"$error":"#N/A"}},null,null,null,null,null,null,null,"EUR",null,null,null,{"$error":"#DIV/0!"},0,0,null,"","","","","","","","","","",null,null,null,null,null,null,null,null,null,null,null,null,null,null,6,"None","Parcel","ZWO"]
[null,null,null,null,null,null,null,null,null,null,null,null,null,null,{"$f":"VLOOKUP(N320,Tabel10[[korte omschrijving]:[MCC3_CODE]],2,0)","v":{"$error":"#N/A"}},{"$f":"VLOOKUP(N320,Tabel10[],3,0)","v":{"$error":"#N/A"}},null,null,null,null,null,null,null,"EUR",null,null,null,{"$error":"#DIV/0!"},0,0,null,"","","","","","","","","","",null,null,null,null,null,null,null,null,null,null,null,null,null,null,6,"None","Parcel","ZWO"]
[null,null,null,null,null,null,null,null,null,null,null,null,null,null,{"$f":"VLOOKUP(N321,Tabel10[[korte omschrijving]:[MCC3_CODE]],2,0)","v":{"$error":"#N/A"}},{"$f":"VLOOKUP(N321,Tabel10[],3,0)","v":{"$error":"#N/A"}},null,null,null,null,null,null,null,"EUR",null,null,null,{"$error":"#DIV/0!"},0,0,null,"","","","","","","","","","",null,null,null,null,null,null,null,null,null,null,null,null,null,null,6,"None","Parcel","ZWO"]
[null,null,null,null,null,null,null,null,null,null,null,null,null,null,{"$f":"VLOOKUP(N322,Tabel10[[korte omschrijving]:[MCC3_CODE]],2,0)","v":{"$error":"#N/A"}},{"$f":"VLOOKUP(N322,Tabel10[],3,0)","v":{"$error":"#N/A"}},null,null,null,null,null,null,null,"EUR",null,null,null,{"$error":"#DIV/0!"},0,0,null,"","","","","","","","","","",null,null,null,null,null,null,null,null,null,null,null,null,null,null,6,"None","Parcel","ZWO"]
[null,null,null,null,null,null,null,null,null,null,null,null,null,null,{"$f":"VLOOKUP(N323,Tabel10[[korte omschrijving]:[MCC3_CODE]],2,0)","v":{"$error":"#N/A"}},{"$f":"VLOOKUP(N323,Tabel10[],3,0)","v":{"$error":"#N/A"}},null,null,null,null,null,null,null,"EUR",null,null,null,{"$error":"#DIV/0!"},0,0,null,"","","","","","","","","","",null,null,null,null,null,null,null,null,null,null,null,null,null,null,6,"None","Parcel","ZWO"]
[null,null,null,null,null,null,null,null,null,null,null,null,null,null,{"$f":"VLOOKUP(N324,Tabel10[[korte omschrijving]:[MCC3_CODE]],2,0)","v":{"$error":"#N/A"}},{"$f":"VLOOKUP(N324,Tabel10[],3,0)","v":{"$error":"#N/A"}},null,null,null,null,null,null,null,"EUR",null,null,null,{"$error":"#DIV/0!"},0,0,null,"","","","","","","","","","",null,null,null,null,null,null,null,null,null,null,null,null,null,null,6,"None","Parcel","ZWO"]
[null,null,null,null,null,null,null,null,null,null,null,null,null,null,{"$f":"VLOOKUP(N325,Tabel10[[korte omschrijving]:[MCC3_CODE]],2,0)","v":{"$error":"#N/A"}},{"$f":"VLOOKUP(N325,Tabel10[],3,0)","v":{"$error":"#N/A"}},null,null,null,null,null,null,null,"EUR",null,null,null,{"$error":"#DIV/0!"},0,0,null,"","","","","","","","","","",null,null,null,null,null,null,null,null,null,null,null,null,null,null,6,"None","Parcel","ZWO"]
[null,null,null,null,null,null,null,null,null,null,null,null,null,null,{"$f":"VLOOKUP(N326,Tabel10[[korte omschrijving]:[MCC3_CODE]],2,0)","v":{"$error":"#N/A"}},{"$f":"VLOOKUP(N326,Tabel10[],3,0)","v":{"$error":"#N/A"}},null,null,null,null,null,null,null,"EUR",null,null,null,{"$error":"#DIV/0!"},0,0,null,"","","","","","","","","","",null,null,null,null,null,null,null,null,null,null,null,null,null,null,6,"None","Parcel","ZWO"]
[null,null,null,null,null,null,null,null,null,null,null,null,null,null,{"$f":"VLOOKUP(N327,Tabel10[[korte omschrijving]:[MCC3_CODE]],2,0)","v":{"$error":"#N/A"}},{"$f":"VLOOKUP(N327,Tabel10[],3,0)","v":{"$error":"#N/A"}},null,null,null,null,null,null,null,"EUR",null,null,null,{"$f":"AA327/Y327","v":{"$error":"#DIV/0!"}},{"$f":"T327*Y327","v":0},{"$f":"T327*AA327","v":0},null,{"$f":"IF(AE327 <> \"\",\n    IF(ISNUMBER(VALUE(LEFT(AE327, FIND(\"%\", AE327)-1))),\n        VALUE(LEFT(AE327, FIND(\"%\", AE327)-1)),\n        \"Invalid format\"),\n    \"\")","v":""},{"$f":"IF(AE327 <> \"\",\n    IF(ISNUMBER(VALUE(LEFT(AE327, FIND(\"%\", AE327)-1))) * ISNUMBER(FIND(\"%\", AE327 & \"wol\")) > 0,\n        TRIM(MID(AE327, FIND(\"%\", AE327)+1, FIND(\"/\", AE327 & \"/\")-FIND(\"%\", AE327)-1)),\n        \"Invalid format\"),\n    \"\")","v":""},{"$f":"IF(AE327 <> \"\",\n    IF(ISNUMBER(VALUE(MID(AE327, FIND(\"/\", AE327) + 1, FIND(\"%\", AE327, FIND(\"/\", AE327)) - FIND(\"/\", AE327) - 1))),\n        VALUE(MID(AE327, FIND(\"/\", AE327) + 1, FIND(\"%\", AE327, FIND(\"/\", AE327)) - FIND(\"/\", AE327) - 1)),\n        \"\"),\n    \"\")","v":""},{"$f":"IF(AE327 <> \"\",\n    IFERROR(TRIM(MID(AE327, FIND(\"%\", AE327, FIND(\"/\", AE327)+1)+2,\n        IFERROR(FIND(\"/\", AE327 & \"/\", FIND(\"/\", AE327)+1)-FIND(\"%\", AE327, FIND(\"/\", AE327)+1)-2, LEN(AE327)-FIND(\"%\", AE327, FIND(\"/\", AE327)+1)-1))),\n        \"\"),\n    \"\")","v":""},{"$f":"IF(AE327 <> \"\",\n    IF(ISNUMBER(VALUE(MID(AE327, FIND(\"/\", AE327, FIND(\"/\", AE327)+1) + 1, FIND(\"%\", AE327, FIND(\"/\", AE327, FIND(\"/\", AE327)+1)) - FIND(\"/\", AE327, FIND(\"/\", AE327)+1) - 1))),\n        VALUE(MID(AE327, FIND(\"/\", AE327, FIND(\"/\", AE327)+1) + 1, FIND(\"%\", AE327, FIND(\"/\", AE327, FIND(\"/\", AE327)+1)) - FIND(\"/\", AE327, FIND(\"/\", AE327)+1) - 1)),\n        \"\"),\n    \"\")","v":""},{"$f":"IF(AE327 <> \"\",\n    IFERROR(\n        TRIM(MID(AE327,\n            FIND(\"%\", AE327, FIND(\"%\", AE327, FIND(\"%\", AE327)+1)+1)+1,\n            FIND(\"/\", AE327 & \"/\", FIND(\"%\", AE327, FIND(\"%\", AE327, FIND(\"%\", AE327)+1)+1))-FIND(\"%\", AE327, FIND(\"%\", AE327, FIND(\"%\", AE327)+1)+1)-1)\n        ),\n        \"\"\n    ),\n    \"\"\n)","v":""},{"$f":"IF(AE327 <> \"\",\n    IF(ISNUMBER(VALUE(MID(AE327, FIND(\"/\", AE327, FIND(\"/\", AE327, FIND(\"/\", AE327)+1)+1) + 1, FIND(\"%\", AE327, FIND(\"/\", AE327, FIND(\"/\", AE327, FIND(\"/\", AE327)+1)+1)) - FIND(\"/\", AE327, FIND(\"/\", AE327, FIND(\"/\", AE327)+1)+1) - 1))),\n        VALUE(MID(AE327, FIND(\"/\", AE327, FIND(\"/\", AE327, FIND(\"/\", AE327)+1)+1) + 1, FIND(\"%\", AE327, FIND(\"/\", AE327, FIND(\"/\", AE327, FIND(\"/\", AE327)+1)+1)) - FIND(\"/\", AE327, FIND(\"/\", AE327, FIND(\"/\", AE327)+1)+1) - 1)),\n        \"\"),\n    \"\")","v":""},{"$f":"IF(AE327 <> \"\",\n    IFERROR(TRIM(MID(AE327, FIND(\"%\", AE327, FIND(\"/\", AE327, FIND(\"/\", AE327, FIND(\"/\", AE327)+1)+1)+1)+2,\n        IFERROR(FIND(\"/\", AE327, FIND(\"/\", AE327, FIND(\"/\", AE327, FIND(\"/\", AE327)+1)+1)+1)-FIND(\"%\", AE327, FIND(\"/\", AE327, FIND(\"/\", AE327, FIND(\"/\", AE327)+1)+1)+1)-2, LEN(AE327)-FIND(\"%\", AE327, FIND(\"/\", AE327, FIND(\"/\", AE327, FIND(\"/\", AE327)+1)+1)+1)-1))),\n        \"\"),\n    \"\")","v":""},{"$f":"IF(AE327 <> \"\",\n    IF(ISNUMBER(VALUE(MID(AE327, FIND(\"/\", AE327, FIND(\"/\", AE327, FIND(\"/\", AE327, FIND(\"/\", AE327)+1)+1)+1) + 1, FIND(\"%\", AE327, FIND(\"/\", AE327, FIND(\"/\", AE327, FIND(\"/\", AE327, FIND(\"/\", AE327)+1)+1)+1)) - FIND(\"/\", AE327, FIND(\"/\", AE327, FIND(\"/\", AE327, FIND(\"/\", AE327)+1)+1)+1) - 1))),\n        VALUE(MID(AE327, FIND(\"/\", AE327, FIND(\"/\", AE327, FIND(\"/\", AE327, FIND(\"/\", AE327)+1)+1)+1) + 1, FIND(\"%\", AE327, FIND(\"/\", AE327, FIND(\"/\", AE327, FIND(\"/\", AE327, FIND(\"/\", AE327)+1)+1)+1)) - FIND(\"/\", AE327, FIND(\"/\", AE327, FIND(\"/\", AE327, FIND(\"/\", AE327)+1)+1)+1) - 1)),\n        \"\"),\n    \"\")","v":""},{"$f":"IF(AE327 = \"\", \"\",\n    IFERROR(TRIM(\n        MID(\n            AE327,\n            FIND(\"%\", AE327, FIND(\"/\", AE327, FIND(\"/\", AE327, FIND(\"/\", AE327, FIND(\"/\", AE327)+1)+1)+1)+1) + 1,\n            FIND(\"/\", AE327 & \"/\", FIND(\"%\", AE327, FIND(\"/\", AE327, FIND(\"/\", AE327, FIND(\"/\", AE327, FIND(\"/\", AE327)+1)+1)+1)+1)) -\n            FIND(\"%\", AE327, FIND(\"/\", AE327, FIND(\"/\", AE327, FIND(\"/\", AE327, FIND(\"/\", AE327)+1)+1)+1)+1) - 1\n        )\n    ),\n    \"\")\n)","v":""},null,null,null,null,null,null,null,null,null,null,null,null,null,null,6,"None","Parcel","ZWO"]
[null,null,null,null,null,null,null,null,null,null,null,null,null,null,{"$f":"VLOOKUP(N328,Tabel10[[korte omschrijving]:[MCC3_CODE]],2,0)","v":{"$error":"#N/A"}},{"$f":"VLOOKUP(N328,Tabel10[],3,0)","v":{"$error":"#N/A"}},null,null,null,null,null,null,null,"EUR",null,null,null,{"$error":"#DIV/0!"},0,0,null,"","","","","","","","","","",null,null,null,null,null,null,null,null,null,null,null,null,null,null,6,"None","Parcel","ZWO"]
[null,null,null,null,null,null,null,null,null,null,null,null,null,null,{"$f":"VLOOKUP(N329,Tabel10[[korte omschrijving]:[MCC3_CODE]],2,0)","v":{"$error":"#N/A"}},{"$f":"VLOOKUP(N329,Tabel10[],3,0)","v":{"$error":"#N/A"}},null,null,null,null,null,null,null,"EUR",null,null,null,{"$error":"#DIV/0!"},0,0,null,"","","","","","","","","","",null,null,null,null,null,null,null,null,null,null,null,null,null,null,6,"None","Parcel","ZWO"]
[null,null,null,null,null,null,null,null,null,null,null,null,null,null,{"$f":"VLOOKUP(N330,Tabel10[[korte omschrijving]:[MCC3_CODE]],2,0)","v":{"$error":"#N/A"}},{"$f":"VLOOKUP(N330,Tabel10[],3,0)","v":{"$error":"#N/A"}},null,null,null,null,null,null,null,"EUR",null,null,null,{"$error":"#DIV/0!"},0,0,null,"","","","","","","","","","",null,null,null,null,null,null,null,null,null,null,null,null,null,null,6,"None","Parcel","ZWO"]
[null,null,null,null,null,null,null,null,null,null,null,null,null,null,{"$f":"VLOOKUP(N331,Tabel10[[korte omschrijving]:[MCC3_CODE]],2,0)","v":{"$error":"#N/A"}},{"$f":"VLOOKUP(N331,Tabel10[],3,0)","v":{"$error":"#N/A"}},null,null,null,null,null,null,null,"EUR",null,null,null,{"$error":"#DIV/0!"},0,0,null,"","","","","","","","","","",null,null,null,null,null,null,null,null,null,null,null,null,null,null,6,"None","Parcel","ZWO"]
[null,null,null,null,null,null,null,null,null,null,null,null,null,null,{"$f":"VLOOKUP(N332,Tabel10[[korte omschrijving]:[MCC3_CODE]],2,0)","v":{"$error":"#N/A"}},{"$f":"VLOOKUP(N332,Tabel10[],3,0)","v":{"$error":"#N/A"}},null,null,null,null,null,null,null,"EUR",null,null,null,{"$error":"#DIV/0!"},0,0,null,"","","","","","","","","","",null,null,null,null,null,null,null,null,null,null,null,null,null,null,6,"None","Parcel","ZWO"]
[null,null,null,null,null,null,null,null,null,null,null,null,null,null,{"$f":"VLOOKUP(N333,Tabel10[[korte omschrijving]:[MCC3_CODE]],2,0)","v":{"$error":"#N/A"}},{"$f":"VLOOKUP(N333,Tabel10[],3,0)","v":{"$error":"#N/A"}},null,null,null,null,null,null,null,"EUR",null,null,null,{"$error":"#DIV/0!"},0,0,null,"","","","","","","","","","",null,null,null,null,null,null,null,null,null,null,null,null,null,null,6,"None","Parcel","ZWO"]
[null,null,null,null,null,null,null,null,null,null,null,null,null,null,{"$f":"VLOOKUP(N334,Tabel10[[korte omschrijving]:[MCC3_CODE]],2,0)","v":{"$error":"#N/A"}},{"$f":"VLOOKUP(N334,Tabel10[],3,0)","v":{"$error":"#N/A"}},null,null,null,null,null,null,null,"EUR",null,null,null,{"$error":"#DIV/0!"},0,0,null,"","","","","","","","","","",null,null,null,null,null,null,null,null,null,null,null,null,null,null,6,"None","Parcel","ZWO"]
[null,null,null,null,null,null,null,null,null,null,null,null,null,null,{"$f":"VLOOKUP(N335,Tabel10[[korte omschrijving]:[MCC3_CODE]],2,0)","v":{"$error":"#N/A"}},{"$f":"VLOOKUP(N335,Tabel10[],3,0)","v":{"$error":"#N/A"}},null,null,null,null,null,null,null,"EUR",null,null,null,{"$error":"#DIV/0!"},0,0,null,"","","","","","","","","","",null,null,null,null,null,null,null,null,null,null,null,null,null,null,6,"None","Parcel","ZWO"]
[null,null,null,null,null,null,null,null,null,null,null,null,null,null,{"$f":"VLOOKUP(N336,Tabel10[[korte omschrijving]:[MCC3_CODE]],2,0)","v":{"$error":"#N/A"}},{"$f":"VLOOKUP(N336,Tabel10[],3,0)","v":{"$error":"#N/A"}},null,null,null,null,null,null,null,"EUR",null,null,null,{"$error":"#DIV/0!"},0,0,null,"","","","","","","","","","",null,null,null,null,null,null,null,null,null,null,null,null,null,null,6,"None","Parcel","ZWO"]
[null,null,null,null,null,null,null,null,null,null,null,null,null,null,{"$f":"VLOOKUP(N337,Tabel10[[korte omschrijving]:[MCC3_CODE]],2,0)","v":{"$error":"#N/A"}},{"$f":"VLOOKUP(N337,Tabel10[],3,0)","v":{"$error":"#N/A"}},null,null,null,null,null,null,null,"EUR",null,null,null,{"$error":"#DIV/0!"},0,0,null,"","","","","","","","","","",null,null,null,null,null,null,null,null,null,null,null,null,null,null,6,"None","Parcel","ZWO"]
[null,null,null,null,null,null,null,null,null,null,null,null,null,null,{"$f":"VLOOKUP(N338,Tabel10[[korte omschrijving]:[MCC3_CODE]],2,0)","v":{"$error":"#N/A"}},{"$f":"VLOOKUP(N338,Tabel10[],3,0)","v":{"$error":"#N/A"}},null,null,null,null,null,null,null,"EUR",null,null,null,{"$error":"#DIV/0!"},0,0,null,"","","","","","","","","","",null,null,null,null,null,null,null,null,null,null,null,null,null,null,6,"None","Parcel","ZWO"]
[null,null,null,null,null,null,null,null,null,null,null,null,null,null,{"$f":"VLOOKUP(N339,Tabel10[[korte omschrijving]:[MCC3_CODE]],2,0)","v":{"$error":"#N/A"}},{"$f":"VLOOKUP(N339,Tabel10[],3,0)","v":{"$error":"#N/A"}},null,null,null,null,null,null,null,"EUR",null,null,null,{"$error":"#DIV/0!"},0,0,null,"","","","","","","","","","",null,null,null,null,null,null,null,null,null,null,null,null,null,null,6,"None","Parcel","ZWO"]
[null,null,null,null,null,null,null,null,null,null,null,null,null,null,{"$f":"VLOOKUP(N340,Tabel10[[korte omschrijving]:[MCC3_CODE]],2,0)","v":{"$error":"#N/A"}},{"$f":"VLOOKUP(N340,Tabel10[],3,0)","v":{"$error":"#N/A"}},null,null,null,null,null,null,null,"EUR",null,null,null,{"$error":"#DIV/0!"},0,0,null,"","","","","","","","","","",null,null,null,null,null,null,null,null,null,null,null,null,null,null,6,"None","Parcel","ZWO"]
[null,null,null,null,null,null,null,null,null,null,null,null,null,null,{"$f":"VLOOKUP(N341,Tabel10[[korte omschrijving]:[MCC3_CODE]],2,0)","v":{"$error":"#N/A"}},{"$f":"VLOOKUP(N341,Tabel10[],3,0)","v":{"$error":"#N/A"}},null,null,null,null,null,null,null,"EUR",null,null,null,{"$error":"#DIV/0!"},0,0,null,"","","","","","","","","","",null,null,null,null,null,null,null,null,null,null,null,null,null,null,6,"None","Parcel","ZWO"]
[null,null,null,null,null,null,null,null,null,null,null,null,null,null,{"$f":"VLOOKUP(N342,Tabel10[[korte omschrijving]:[MCC3_CODE]],2,0)","v":{"$error":"#N/A"}},{"$f":"VLOOKUP(N342,Tabel10[],3,0)","v":{"$error":"#N/A"}},null,null,null,null,null,null,null,"EUR",null,null,null,{"$error":"#DIV/0!"},0,0,null,"","","","","","","","","","",null,null,null,null,null,null,null,null,null,null,null,null,null,null,6,"None","Parcel","ZWO"]
[null,null,null,null,null,null,null,null,null,null,null,null,null,null,{"$f":"VLOOKUP(N343,Tabel10[[korte omschrijving]:[MCC3_CODE]],2,0)","v":{"$error":"#N/A"}},{"$f":"VLOOKUP(N343,Tabel10[],3,0)","v":{"$error":"#N/A"}},null,null,null,null,null,null,null,"EUR",null,null,null,{"$error":"#DIV/0!"},0,0,null,"","","","","","","","","","",null,null,null,null,null,null,null,null,null,null,null,null,null,null,6,"None","Parcel","ZWO"]
[null,null,null,null,null,null,null,null,null,null,null,null,null,null,{"$f":"VLOOKUP(N344,Tabel10[[korte omschrijving]:[MCC3_CODE]],2,0)","v":{"$error":"#N/A"}},{"$f":"VLOOKUP(N344,Tabel10[],3,0)","v":{"$error":"#N/A"}},null,null,null,null,null,null,null,"EUR",null,null,null,{"$error":"#DIV/0!"},0,0,null,"","","","","","","","","","",null,null,null,null,null,null,null,null,null,null,null,null,null,null,6,"None","Parcel","ZWO"]
[null,null,null,null,null,null,null,null,null,null,null,null,null,null,{"$f":"VLOOKUP(N345,Tabel10[[korte omschrijving]:[MCC3_CODE]],2,0)","v":{"$error":"#N/A"}},{"$f":"VLOOKUP(N345,Tabel10[],3,0)","v":{"$error":"#N/A"}},null,null,null,null,null,null,null,"EUR",null,null,null,{"$error":"#DIV/0!"},0,0,null,"","","","","","","","","","",null,null,null,null,null,null,null,null,null,null,null,null,null,null,6,"None","Parcel","ZWO"]
[null,null,null,null,null,null,null,null,null,null,null,null,null,null,{"$f":"VLOOKUP(N346,Tabel10[[korte omschrijving]:[MCC3_CODE]],2,0)","v":{"$error":"#N/A"}},{"$f":"VLOOKUP(N346,Tabel10[],3,0)","v":{"$error":"#N/A"}},null,null,null,null,null,null,null,"EUR",null,null,null,{"$error":"#DIV/0!"},0,0,null,"","","","","","","","","","",null,null,null,null,null,null,null,null,null,null,null,null,null,null,6,"None","Parcel","ZWO"]
[null,null,null,null,null,null,null,null,null,null,null,null,null,null,{"$f":"VLOOKUP(N347,Tabel10[[korte omschrijving]:[MCC3_CODE]],2,0)","v":{"$error":"#N/A"}},{"$f":"VLOOKUP(N347,Tabel10[],3,0)","v":{"$error":"#N/A"}},null,null,null,null,null,null,null,"EUR",null,null,null,{"$error":"#DIV/0!"},0,0,null,"","","","","","","","","","",null,null,null,null,null,null,null,null,null,null,null,null,null,null,6,"None","Parcel","ZWO"]
[null,null,null,null,null,null,null,null,null,null,null,null,null,null,{"$f":"VLOOKUP(N348,Tabel10[[korte omschrijving]:[MCC3_CODE]],2,0)","v":{"$error":"#N/A"}},{"$f":"VLOOKUP(N348,Tabel10[],3,0)","v":{"$error":"#N/A"}},null,null,null,null,null,null,null,"EUR",null,null,null,{"$error":"#DIV/0!"},0,0,null,"","","","","","","","","","",null,null,null,null,null,null,null,null,null,null,null,null,null,null,6,"None","Parcel","ZWO"]
[null,null,null,null,null,null,null,null,null,null,null,null,null,null,{"$f":"VLOOKUP(N349,Tabel10[[korte omschrijving]:[MCC3_CODE]],2,0)","v":{"$error":"#N/A"}},{"$f":"VLOOKUP(N349,Tabel10[],3,0)","v":{"$error":"#N/A"}},null,null,null,null,null,null,null,"EUR",null,null,null,{"$error":"#DIV/0!"},0,0,null,"","","","","","","","","","",null,null,null,null,null,null,null,null,null,null,null,null,null,null,6,"None","Parcel","ZWO"]
[null,null,null,null,null,null,null,null,null,null,null,null,null,null,{"$f":"VLOOKUP(N350,Tabel10[[korte omschrijving]:[MCC3_CODE]],2,0)","v":{"$error":"#N/A"}},{"$f":"VLOOKUP(N350,Tabel10[],3,0)","v":{"$error":"#N/A"}},null,null,null,null,null,null,null,"EUR",null,null,null,{"$error":"#DIV/0!"},0,0,null,"","","","","","","","","","",null,null,null,null,null,null,null,null,null,null,null,null,null,null,6,"None","Parcel","ZWO"]
[null,null,null,null,null,null,null,null,null,null,null,null,null,null,{"$f":"VLOOKUP(N351,Tabel10[[korte omschrijving]:[MCC3_CODE]],2,0)","v":{"$error":"#N/A"}},{"$f":"VLOOKUP(N351,Tabel10[],3,0)","v":{"$error":"#N/A"}},null,null,null,null,null,null,null,"EUR",null,null,null,{"$error":"#DIV/0!"},0,0,null,"","","","","","","","","","",null,null,null,null,null,null,null,null,null,null,null,null,null,null,6,"None","Parcel","ZWO"]
[null,null,null,null,null,null,null,null,null,null,null,null,null,null,{"$f":"VLOOKUP(N352,Tabel10[[korte omschrijving]:[MCC3_CODE]],2,0)","v":{"$error":"#N/A"}},{"$f":"VLOOKUP(N352,Tabel10[],3,0)","v":{"$error":"#N/A"}},null,null,null,null,null,null,null,"EUR",null,null,null,{"$error":"#DIV/0!"},0,0,null,"","","","","","","","","","",null,null,null,null,null,null,null,null,null,null,null,null,null,null,6,"None","Parcel","ZWO"]
[null,null,null,null,null,null,null,null,null,null,null,null,null,null,{"$f":"VLOOKUP(N353,Tabel10[[korte omschrijving]:[MCC3_CODE]],2,0)","v":{"$error":"#N/A"}},{"$f":"VLOOKUP(N353,Tabel10[],3,0)","v":{"$error":"#N/A"}},null,null,null,null,null,null,null,"EUR",null,null,null,{"$error":"#DIV/0!"},0,0,null,"","","","","","","","","","",null,null,null,null,null,null,null,null,null,null,null,null,null,null,6,"None","Parcel","ZWO"]
[null,null,null,null,null,null,null,null,null,null,null,null,null,null,{"$f":"VLOOKUP(N354,Tabel10[[korte omschrijving]:[MCC3_CODE]],2,0)","v":{"$error":"#N/A"}},{"$f":"VLOOKUP(N354,Tabel10[],3,0)","v":{"$error":"#N/A"}},null,null,null,null,null,null,null,"EUR",null,null,null,{"$error":"#DIV/0!"},0,0,null,"","","","","","","","","","",null,null,null,null,null,null,null,null,null,null,null,null,null,null,6,"None","Parcel","ZWO"]
[null,null,null,null,null,null,null,null,null,null,null,null,null,null,{"$f":"VLOOKUP(N355,Tabel10[[korte omschrijving]:[MCC3_CODE]],2,0)","v":{"$error":"#N/A"}},{"$f":"VLOOKUP(N355,Tabel10[],3,0)","v":{"$error":"#N/A"}},null,null,null,null,null,null,null,"EUR",null,null,null,{"$error":"#DIV/0!"},0,0,null,"","","","","","","","","","",null,null,null,null,null,null,null,null,null,null,null,null,null,null,6,"None","Parcel","ZWO"]
[null,null,null,null,null,null,null,null,null,null,null,null,null,null,{"$f":"VLOOKUP(N356,Tabel10[[korte omschrijving]:[MCC3_CODE]],2,0)","v":{"$error":"#N/A"}},{"$f":"VLOOKUP(N356,Tabel10[],3,0)","v":{"$error":"#N/A"}},null,null,null,null,null,null,null,"EUR",null,null,null,{"$error":"#DIV/0!"},0,0,null,"","","","","","","","","","",null,null,null,null,null,null,null,null,null,null,null,null,null,null,6,"None","Parcel","ZWO"]
[null,null,null,null,null,null,null,null,null,null,null,null,null,null,{"$f":"VLOOKUP(N357,Tabel10[[korte omschrijving]:[MCC3_CODE]],2,0)","v":{"$error":"#N/A"}},{"$f":"VLOOKUP(N357,Tabel10[],3,0)","v":{"$error":"#N/A"}},null,null,null,null,null,null,null,"EUR",null,null,null,{"$error":"#DIV/0!"},0,0,null,"","","","","","","","","","",null,null,null,null,null,null,null,null,null,null,null,null,null,null,6,"None","Parcel","ZWO"]
[null,null,null,null,null,null,null,null,null,null,null,null,null,null,{"$f":"VLOOKUP(N358,Tabel10[[korte omschrijving]:[MCC3_CODE]],2,0)","v":{"$error":"#N/A"}},{"$f":"VLOOKUP(N358,Tabel10[],3,0)","v":{"$error":"#N/A"}},null,null,null,null,null,null,null,"EUR",null,null,null,{"$error":"#DIV/0!"},0,0,null,"","","","","","","","","","",null,null,null,null,null,null,null,null,null,null,null,null,null,null,6,"None","Parcel","ZWO"]
[null,null,null,null,null,null,null,null,null,null,null,null,null,null,{"$f":"VLOOKUP(N359,Tabel10[[korte omschrijving]:[MCC3_CODE]],2,0)","v":{"$error":"#N/A"}},{"$f":"VLOOKUP(N359,Tabel10[],3,0)","v":{"$error":"#N/A"}},null,null,null,null,null,null,null,"EUR",null,null,null,{"$error":"#DIV/0!"},0,0,null,"","","","","","","","","","",null,null,null,null,null,null,null,null,null,null,null,null,null,null,6,"None","Parcel","ZWO"]
[null,null,null,null,null,null,null,null,null,null,null,null,null,null,{"$f":"VLOOKUP(N360,Tabel10[[korte omschrijving]:[MCC3_CODE]],2,0)","v":{"$error":"#N/A"}},{"$f":"VLOOKUP(N360,Tabel10[],3,0)","v":{"$error":"#N/A"}},null,null,null,null,null,null,null,"EUR",null,null,null,{"$error":"#DIV/0!"},0,0,null,"","","","","","","","","","",null,null,null,null,null,null,null,null,null,null,null,null,null,null,6,"None","Parcel","ZWO"]
[null,null,null,null,null,null,null,null,null,null,null,null,null,null,{"$f":"VLOOKUP(N361,Tabel10[[korte omschrijving]:[MCC3_CODE]],2,0)","v":{"$error":"#N/A"}},{"$f":"VLOOKUP(N361,Tabel10[],3,0)","v":{"$error":"#N/A"}},null,null,null,null,null,null,null,"EUR",null,null,null,{"$error":"#DIV/0!"},0,0,null,"","","","","","","","","","",null,null,null,null,null,null,null,null,null,null,null,null,null,null,6,"None","Parcel","ZWO"]
[null,null,null,null,null,null,null,null,null,null,null,null,null,null,{"$f":"VLOOKUP(N362,Tabel10[[korte omschrijving]:[MCC3_CODE]],2,0)","v":{"$error":"#N/A"}},{"$f":"VLOOKUP(N362,Tabel10[],3,0)","v":{"$error":"#N/A"}},null,null,null,null,null,null,null,"EUR",null,null,null,{"$error":"#DIV/0!"},0,0,null,"","","","","","","","","","",null,null,null,null,null,null,null,null,null,null,null,null,null,null,6,"None","Parcel","ZWO"]
[null,null,null,null,null,null,null,null,null,null,null,null,null,null,{"$f":"VLOOKUP(N363,Tabel10[[korte omschrijving]:[MCC3_CODE]],2,0)","v":{"$error":"#N/A"}},{"$f":"VLOOKUP(N363,Tabel10[],3,0)","v":{"$error":"#N/A"}},null,null,null,null,null,null,null,"EUR",null,null,null,{"$error":"#DIV/0!"},0,0,null,"","","","","","","","","","",null,null,null,null,null,null,null,null,null,null,null,null,null,null,6,"None","Parcel","ZWO"]
[null,null,null,null,null,null,null,null,null,null,null,null,null,null,{"$f":"VLOOKUP(N364,Tabel10[[korte omschrijving]:[MCC3_CODE]],2,0)","v":{"$error":"#N/A"}},{"$f":"VLOOKUP(N364,Tabel10[],3,0)","v":{"$error":"#N/A"}},null,null,null,null,null,null,null,"EUR",null,null,null,{"$error":"#DIV/0!"},0,0,null,"","","","","","","","","","",null,null,null,null,null,null,null,null,null,null,null,null,null,null,6,"None","Parcel","ZWO"]
[null,null,null,null,null,null,null,null,null,null,null,null,null,null,{"$f":"VLOOKUP(N365,Tabel10[[korte omschrijving]:[MCC3_CODE]],2,0)","v":{"$error":"#N/A"}},{"$f":"VLOOKUP(N365,Tabel10[],3,0)","v":{"$error":"#N/A"}},null,null,null,null,null,null,null,"EUR",null,null,null,{"$error":"#DIV/0!"},0,0,null,"","","","","","","","","","",null,null,null,null,null,null,null,null,null,null,null,null,null,null,6,"None","Parcel","ZWO"]
[null,null,null,null,null,null,null,null,null,null,null,null,null,null,{"$f":"VLOOKUP(N366,Tabel10[[korte omschrijving]:[MCC3_CODE]],2,0)","v":{"$error":"#N/A"}},{"$f":"VLOOKUP(N366,Tabel10[],3,0)","v":{"$error":"#N/A"}},null,null,null,null,null,null,null,"EUR",null,null,null,{"$error":"#DIV/0!"},0,0,null,"","","","","","","","","","",null,null,null,null,null,null,null,null,null,null,null,null,null,null,6,"None","Parcel","ZWO"]
[null,null,null,null,null,null,null,null,null,null,null,null,null,null,{"$f":"VLOOKUP(N367,Tabel10[[korte omschrijving]:[MCC3_CODE]],2,0)","v":{"$error":"#N/A"}},{"$f":"VLOOKUP(N367,Tabel10[],3,0)","v":{"$error":"#N/A"}},null,null,null,null,null,null,null,"EUR",null,null,null,{"$error":"#DIV/0!"},0,0,null,"","","","","","","","","","",null,null,null,null,null,null,null,null,null,null,null,null,null,null,6,"None","Parcel","ZWO"]
[null,null,null,null,null,null,null,null,null,null,null,null,null,null,{"$f":"VLOOKUP(N368,Tabel10[[korte omschrijving]:[MCC3_CODE]],2,0)","v":{"$error":"#N/A"}},{"$f":"VLOOKUP(N368,Tabel10[],3,0)","v":{"$error":"#N/A"}},null,null,null,null,null,null,null,"EUR",null,null,null,{"$error":"#DIV/0!"},0,0,null,"","","","","","","","","","",null,null,null,null,null,null,null,null,null,null,null,null,null,null,6,"None","Parcel","ZWO"]
[null,null,null,null,null,null,null,null,null,null,null,null,null,null,{"$f":"VLOOKUP(N369,Tabel10[[korte omschrijving]:[MCC3_CODE]],2,0)","v":{"$error":"#N/A"}},{"$f":"VLOOKUP(N369,Tabel10[],3,0)","v":{"$error":"#N/A"}},null,null,null,null,null,null,null,"EUR",null,null,null,{"$error":"#DIV/0!"},0,0,null,"","","","","","","","","","",null,null,null,null,null,null,null,null,null,null,null,null,null,null,6,"None","Parcel","ZWO"]
[null,null,null,null,null,null,null,null,null,null,null,null,null,null,{"$f":"VLOOKUP(N370,Tabel10[[korte omschrijving]:[MCC3_CODE]],2,0)","v":{"$error":"#N/A"}},{"$f":"VLOOKUP(N370,Tabel10[],3,0)","v":{"$error":"#N/A"}},null,null,null,null,null,null,null,"EUR",null,null,null,{"$error":"#DIV/0!"},0,0,null,"","","","","","","","","","",null,null,null,null,null,null,null,null,null,null,null,null,null,null,6,"None","Parcel","ZWO"]
[null,null,null,null,null,null,null,null,null,null,null,null,null,null,{"$f":"VLOOKUP(N371,Tabel10[[korte omschrijving]:[MCC3_CODE]],2,0)","v":{"$error":"#N/A"}},{"$f":"VLOOKUP(N371,Tabel10[],3,0)","v":{"$error":"#N/A"}},null,null,null,null,null,null,null,"EUR",null,null,null,{"$error":"#DIV/0!"},0,0,null,"","","","","","","","","","",null,null,null,null,null,null,null,null,null,null,null,null,null,null,6,"None","Parcel","ZWO"]
[null,null,null,null,null,null,null,null,null,null,null,null,null,null,{"$f":"VLOOKUP(N372,Tabel10[[korte omschrijving]:[MCC3_CODE]],2,0)","v":{"$error":"#N/A"}},{"$f":"VLOOKUP(N372,Tabel10[],3,0)","v":{"$error":"#N/A"}},null,null,null,null,null,null,null,"EUR",null,null,null,{"$error":"#DIV/0!"},0,0,null,"","","","","","","","","","",null,null,null,null,null,null,null,null,null,null,null,null,null,null,6,"None","Parcel","ZWO"]
[null,null,null,null,null,null,null,null,null,null,null,null,null,null,{"$f":"VLOOKUP(N373,Tabel10[[korte omschrijving]:[MCC3_CODE]],2,0)","v":{"$error":"#N/A"}},{"$f":"VLOOKUP(N373,Tabel10[],3,0)","v":{"$error":"#N/A"}},null,null,null,null,null,null,null,"EUR",null,null,null,{"$error":"#DIV/0!"},0,0,null,"","","","","","","","","","",null,null,null,null,null,null,null,null,null,null,null,null,null,null,6,"None","Parcel","ZWO"]
[null,null,null,null,null,null,null,null,null,null,null,null,null,null,{"$f":"VLOOKUP(N374,Tabel10[[korte omschrijving]:[MCC3_CODE]],2,0)","v":{"$error":"#N/A"}},{"$f":"VLOOKUP(N374,Tabel10[],3,0)","v":{"$error":"#N/A"}},null,null,null,null,null,null,null,"EUR",null,null,null,{"$error":"#DIV/0!"},0,0,null,"","","","","","","","","","",null,null,null,null,null,null,null,null,null,null,null,null,null,null,6,"None","Parcel","ZWO"]
[null,null,null,null,null,null,null,null,null,null,null,null,null,null,{"$f":"VLOOKUP(N375,Tabel10[[korte omschrijving]:[MCC3_CODE]],2,0)","v":{"$error":"#N/A"}},{"$f":"VLOOKUP(N375,Tabel10[],3,0)","v":{"$error":"#N/A"}},null,null,null,null,null,null,null,"EUR",null,null,null,{"$error":"#DIV/0!"},0,0,null,"","","","","","","","","","",null,null,null,null,null,null,null,null,null,null,null,null,null,null,6,"None","Parcel","ZWO"]
[null,null,null,null,null,null,null,null,null,null,null,null,null,null,{"$f":"VLOOKUP(N376,Tabel10[[korte omschrijving]:[MCC3_CODE]],2,0)","v":{"$error":"#N/A"}},{"$f":"VLOOKUP(N376,Tabel10[],3,0)","v":{"$error":"#N/A"}},null,null,null,null,null,null,null,"EUR",null,null,null,{"$error":"#DIV/0!"},0,0,null,"","","","","","","","","","",null,null,null,null,null,null,null,null,null,null,null,null,null,null,6,"None","Parcel","ZWO"]
[null,null,null,null,null,null,null,null,null,null,null,null,null,null,{"$f":"VLOOKUP(N377,Tabel10[[korte omschrijving]:[MCC3_CODE]],2,0)","v":{"$error":"#N/A"}},{"$f":"VLOOKUP(N377,Tabel10[],3,0)","v":{"$error":"#N/A"}},null,null,null,null,null,null,null,"EUR",null,null,null,{"$error":"#DIV/0!"},0,0,null,"","","","","","","","","","",null,null,null,null,null,null,null,null,null,null,null,null,null,null,6,"None","Parcel","ZWO"]
[null,null,null,null,null,null,null,null,null,null,null,null,null,null,{"$f":"VLOOKUP(N378,Tabel10[[korte omschrijving]:[MCC3_CODE]],2,0)","v":{"$error":"#N/A"}},{"$f":"VLOOKUP(N378,Tabel10[],3,0)","v":{"$error":"#N/A"}},null,null,null,null,null,null,null,"EUR",null,null,null,{"$error":"#DIV/0!"},0,0,null,"","","","","","","","","","",null,null,null,null,null,null,null,null,null,null,null,null,null,null,6,"None","Parcel","ZWO"]
[null,null,null,null,null,null,null,null,null,null,null,null,null,null,{"$f":"VLOOKUP(N379,Tabel10[[korte omschrijving]:[MCC3_CODE]],2,0)","v":{"$error":"#N/A"}},{"$f":"VLOOKUP(N379,Tabel10[],3,0)","v":{"$error":"#N/A"}},null,null,null,null,null,null,null,"EUR",null,null,null,{"$error":"#DIV/0!"},0,0,null,"","","","","","","","","","",null,null,null,null,null,null,null,null,null,null,null,null,null,null,6,"None","Parcel","ZWO"]
[null,null,null,null,null,null,null,null,null,null,null,null,null,null,{"$f":"VLOOKUP(N380,Tabel10[[korte omschrijving]:[MCC3_CODE]],2,0)","v":{"$error":"#N/A"}},{"$f":"VLOOKUP(N380,Tabel10[],3,0)","v":{"$error":"#N/A"}},null,null,null,null,null,null,null,"EUR",null,null,null,{"$error":"#DIV/0!"},0,0,null,"","","","","","","","","","",null,null,null,null,null,null,null,null,null,null,null,null,null,null,6,"None","Parcel","ZWO"]
[null,null,null,null,null,null,null,null,null,null,null,null,null,null,{"$f":"VLOOKUP(N381,Tabel10[[korte omschrijving]:[MCC3_CODE]],2,0)","v":{"$error":"#N/A"}},{"$f":"VLOOKUP(N381,Tabel10[],3,0)","v":{"$error":"#N/A"}},null,null,null,null,null,null,null,"EUR",null,null,null,{"$error":"#DIV/0!"},0,0,null,"","","","","","","","","","",null,null,null,null,null,null,null,null,null,null,null,null,null,null,6,"None","Parcel","ZWO"]
[null,null,null,null,null,null,null,null,null,null,null,null,null,null,{"$f":"VLOOKUP(N382,Tabel10[[korte omschrijving]:[MCC3_CODE]],2,0)","v":{"$error":"#N/A"}},{"$f":"VLOOKUP(N382,Tabel10[],3,0)","v":{"$error":"#N/A"}},null,null,null,null,null,null,null,"EUR",null,null,null,{"$error":"#DIV/0!"},0,0,null,"","","","","","","","","","",null,null,null,null,null,null,null,null,null,null,null,null,null,null,6,"None","Parcel","ZWO"]
[null,null,null,null,null,null,null,null,null,null,null,null,null,null,{"$f":"VLOOKUP(N383,Tabel10[[korte omschrijving]:[MCC3_CODE]],2,0)","v":{"$error":"#N/A"}},{"$f":"VLOOKUP(N383,Tabel10[],3,0)","v":{"$error":"#N/A"}},null,null,null,null,null,null,null,"EUR",null,null,null,{"$error":"#DIV/0!"},0,0,null,"","","","","","","","","","",null,null,null,null,null,null,null,null,null,null,null,null,null,null,6,"None","Parcel","ZWO"]
[null,null,null,null,null,null,null,null,null,null,null,null,null,null,{"$f":"VLOOKUP(N384,Tabel10[[korte omschrijving]:[MCC3_CODE]],2,0)","v":{"$error":"#N/A"}},{"$f":"VLOOKUP(N384,Tabel10[],3,0)","v":{"$error":"#N/A"}},null,null,null,null,null,null,null,"EUR",null,null,null,{"$error":"#DIV/0!"},0,0,null,"","","","","","","","","","",null,null,null,null,null,null,null,null,null,null,null,null,null,null,6,"None","Parcel","ZWO"]
[null,null,null,null,null,null,null,null,null,null,null,null,null,null,{"$f":"VLOOKUP(N385,Tabel10[[korte omschrijving]:[MCC3_CODE]],2,0)","v":{"$error":"#N/A"}},{"$f":"VLOOKUP(N385,Tabel10[],3,0)","v":{"$error":"#N/A"}},null,null,null,null,null,null,null,"EUR",null,null,null,{"$error":"#DIV/0!"},0,0,null,"","","","","","","","","","",null,null,null,null,null,null,null,null,null,null,null,null,null,null,6,"None","Parcel","ZWO"]
[null,null,null,null,null,null,null,null,null,null,null,null,null,null,{"$f":"VLOOKUP(N386,Tabel10[[korte omschrijving]:[MCC3_CODE]],2,0)","v":{"$error":"#N/A"}},{"$f":"VLOOKUP(N386,Tabel10[],3,0)","v":{"$error":"#N/A"}},null,null,null,null,null,null,null,"EUR",null,null,null,{"$error":"#DIV/0!"},0,0,null,"","","","","","","","","","",null,null,null,null,null,null,null,null,null,null,null,null,null,null,6,"None","Parcel","ZWO"]
[null,null,null,null,null,null,null,null,null,null,null,null,null,null,{"$f":"VLOOKUP(N387,Tabel10[[korte omschrijving]:[MCC3_CODE]],2,0)","v":{"$error":"#N/A"}},{"$f":"VLOOKUP(N387,Tabel10[],3,0)","v":{"$error":"#N/A"}},null,null,null,null,null,null,null,"EUR",null,null,null,{"$error":"#DIV/0!"},0,0,null,"","","","","","","","","","",null,null,null,null,null,null,null,null,null,null,null,null,null,null,6,"None","Parcel","ZWO"]
[null,null,null,null,null,null,null,null,null,null,null,null,null,null,{"$f":"VLOOKUP(N388,Tabel10[[korte omschrijving]:[MCC3_CODE]],2,0)","v":{"$error":"#N/A"}},{"$f":"VLOOKUP(N388,Tabel10[],3,0)","v":{"$error":"#N/A"}},null,null,null,null,null,null,null,"EUR",null,null,null,{"$error":"#DIV/0!"},0,0,null,"","","","","","","","","","",null,null,null,null,null,null,null,null,null,null,null,null,null,null,6,"None","Parcel","ZWO"]
[null,null,null,null,null,null,null,null,null,null,null,null,null,null,{"$f":"VLOOKUP(N389,Tabel10[[korte omschrijving]:[MCC3_CODE]],2,0)","v":{"$error":"#N/A"}},{"$f":"VLOOKUP(N389,Tabel10[],3,0)","v":{"$error":"#N/A"}},null,null,null,null,null,null,null,"EUR",null,null,null,{"$error":"#DIV/0!"},0,0,null,"","","","","","","","","","",null,null,null,null,null,null,null,null,null,null,null,null,null,null,6,"None","Parcel","ZWO"]
[null,null,null,null,null,null,null,null,null,null,null,null,null,null,{"$f":"VLOOKUP(N390,Tabel10[[korte omschrijving]:[MCC3_CODE]],2,0)","v":{"$error":"#N/A"}},{"$f":"VLOOKUP(N390,Tabel10[],3,0)","v":{"$error":"#N/A"}},null,null,null,null,null,null,null,"EUR",null,null,null,{"$error":"#DIV/0!"},0,0,null,"","","","","","","","","","",null,null,null,null,null,null,null,null,null,null,null,null,null,null,6,"None","Parcel","ZWO"]
[null,null,null,null,null,null,null,null,null,null,null,null,null,null,{"$f":"VLOOKUP(N391,Tabel10[[korte omschrijving]:[MCC3_CODE]],2,0)","v":{"$error":"#N/A"}},{"$f":"VLOOKUP(N391,Tabel10[],3,0)","v":{"$error":"#N/A"}},null,null,null,null,null,null,null,"EUR",null,null,null,{"$f":"AA391/Y391","v":{"$error":"#DIV/0!"}},{"$f":"T391*Y391","v":0},{"$f":"T391*AA391","v":0},null,{"$f":"IF(AE391 <> \"\",\n    IF(ISNUMBER(VALUE(LEFT(AE391, FIND(\"%\", AE391)-1))),\n        VALUE(LEFT(AE391, FIND(\"%\", AE391)-1)),\n        \"Invalid format\"),\n    \"\")","v":""},{"$f":"IF(AE391 <> \"\",\n    IF(ISNUMBER(VALUE(LEFT(AE391, FIND(\"%\", AE391)-1))) * ISNUMBER(FIND(\"%\", AE391 & \"wol\")) > 0,\n        TRIM(MID(AE391, FIND(\"%\", AE391)+1, FIND(\"/\", AE391 & \"/\")-FIND(\"%\", AE391)-1)),\n        \"Invalid format\"),\n    \"\")","v":""},{"$f":"IF(AE391 <> \"\",\n    IF(ISNUMBER(VALUE(MID(AE391, FIND(\"/\", AE391) + 1, FIND(\"%\", AE391, FIND(\"/\", AE391)) - FIND(\"/\", AE391) - 1))),\n        VALUE(MID(AE391, FIND(\"/\", AE391) + 1, FIND(\"%\", AE391, FIND(\"/\", AE391)) - FIND(\"/\", AE391) - 1)),\n        \"\"),\n    \"\")","v":""},{"$f":"IF(AE391 <> \"\",\n    IFERROR(TRIM(MID(AE391, FIND(\"%\", AE391, FIND(\"/\", AE391)+1)+2,\n        IFERROR(FIND(\"/\", AE391 & \"/\", FIND(\"/\", AE391)+1)-FIND(\"%\", AE391, FIND(\"/\", AE391)+1)-2, LEN(AE391)-FIND(\"%\", AE391, FIND(\"/\", AE391)+1)-1))),\n        \"\"),\n    \"\")","v":""},{"$f":"IF(AE391 <> \"\",\n    IF(ISNUMBER(VALUE(MID(AE391, FIND(\"/\", AE391, FIND(\"/\", AE391)+1) + 1, FIND(\"%\", AE391, FIND(\"/\", AE391, FIND(\"/\", AE391)+1)) - FIND(\"/\", AE391, FIND(\"/\", AE391)+1) - 1))),\n        VALUE(MID(AE391, FIND(\"/\", AE391, FIND(\"/\", AE391)+1) + 1, FIND(\"%\", AE391, FIND(\"/\", AE391, FIND(\"/\", AE391)+1)) - FIND(\"/\", AE391, FIND(\"/\", AE391)+1) - 1)),\n        \"\"),\n    \"\")","v":""},{"$f":"IF(AE391 <> \"\",\n    IFERROR(\n        TRIM(MID(AE391,\n            FIND(\"%\", AE391, FIND(\"%\", AE391, FIND(\"%\", AE391)+1)+1)+1,\n            FIND(\"/\", AE391 & \"/\", FIND(\"%\", AE391, FIND(\"%\", AE391, FIND(\"%\", AE391)+1)+1))-FIND(\"%\", AE391, FIND(\"%\", AE391, FIND(\"%\", AE391)+1)+1)-1)\n        ),\n        \"\"\n    ),\n    \"\"\n)","v":""},{"$f":"IF(AE391 <> \"\",\n    IF(ISNUMBER(VALUE(MID(AE391, FIND(\"/\", AE391, FIND(\"/\", AE391, FIND(\"/\", AE391)+1)+1) + 1, FIND(\"%\", AE391, FIND(\"/\", AE391, FIND(\"/\", AE391, FIND(\"/\", AE391)+1)+1)) - FIND(\"/\", AE391, FIND(\"/\", AE391, FIND(\"/\", AE391)+1)+1) - 1))),\n        VALUE(MID(AE391, FIND(\"/\", AE391, FIND(\"/\", AE391, FIND(\"/\", AE391)+1)+1) + 1, FIND(\"%\", AE391, FIND(\"/\", AE391, FIND(\"/\", AE391, FIND(\"/\", AE391)+1)+1)) - FIND(\"/\", AE391, FIND(\"/\", AE391, FIND(\"/\", AE391)+1)+1) - 1)),\n        \"\"),\n    \"\")","v":""},{"$f":"IF(AE391 <> \"\",\n    IFERROR(TRIM(MID(AE391, FIND(\"%\", AE391, FIND(\"/\", AE391, FIND(\"/\", AE391, FIND(\"/\", AE391)+1)+1)+1)+2,\n        IFERROR(FIND(\"/\", AE391, FIND(\"/\", AE391, FIND(\"/\", AE391, FIND(\"/\", AE391)+1)+1)+1)-FIND(\"%\", AE391, FIND(\"/\", AE391, FIND(\"/\", AE391, FIND(\"/\", AE391)+1)+1)+1)-2, LEN(AE391)-FIND(\"%\", AE391, FIND(\"/\", AE391, FIND(\"/\", AE391, FIND(\"/\", AE391)+1)+1)+1)-1))),\n        \"\"),\n    \"\")","v":""},{"$f":"IF(AE391 <> \"\",\n    IF(ISNUMBER(VALUE(MID(AE391, FIND(\"/\", AE391, FIND(\"/\", AE391, FIND(\"/\", AE391, FIND(\"/\", AE391)+1)+1)+1) + 1, FIND(\"%\", AE391, FIND(\"/\", AE391, FIND(\"/\", AE391, FIND(\"/\", AE391, FIND(\"/\", AE391)+1)+1)+1)) - FIND(\"/\", AE391, FIND(\"/\", AE391, FIND(\"/\", AE391, FIND(\"/\", AE391)+1)+1)+1) - 1))),\n        VALUE(MID(AE391, FIND(\"/\", AE391, FIND(\"/\", AE391, FIND(\"/\", AE391, FIND(\"/\", AE391)+1)+1)+1) + 1, FIND(\"%\", AE391, FIND(\"/\", AE391, FIND(\"/\", AE391, FIND(\"/\", AE391, FIND(\"/\", AE391)+1)+1)+1)) - FIND(\"/\", AE391, FIND(\"/\", AE391, FIND(\"/\", AE391, FIND(\"/\", AE391)+1)+1)+1) - 1)),\n        \"\"),\n    \"\")","v":""},{"$f":"IF(AE391 = \"\", \"\",\n    IFERROR(TRIM(\n        MID(\n            AE391,\n            FIND(\"%\", AE391, FIND(\"/\", AE391, FIND(\"/\", AE391, FIND(\"/\", AE391, FIND(\"/\", AE391)+1)+1)+1)+1) + 1,\n            FIND(\"/\", AE391 & \"/\", FIND(\"%\", AE391, FIND(\"/\", AE391, FIND(\"/\", AE391, FIND(\"/\", AE391, FIND(\"/\", AE391)+1)+1)+1)+1)) -\n            FIND(\"%\", AE391, FIND(\"/\", AE391, FIND(\"/\", AE391, FIND(\"/\", AE391, FIND(\"/\", AE391)+1)+1)+1)+1) - 1\n        )\n    ),\n    \"\")\n)","v":""},null,null,null,null,null,null,null,null,null,null,null,null,null,null,6,"None","Parcel","ZWO"]
[null,null,null,null,null,null,null,null,null,null,null,null,null,null,{"$f":"VLOOKUP(N392,Tabel10[[korte omschrijving]:[MCC3_CODE]],2,0)","v":{"$error":"#N/A"}},{"$f":"VLOOKUP(N392,Tabel10[],3,0)","v":{"$error":"#N/A"}},null,null,null,null,null,null,null,"EUR",null,null,null,{"$error":"#DIV/0!"},0,0,null,"","","","","","","","","","",null,null,null,null,null,null,null,null,null,null,null,null,null,null,6,"None","Parcel","ZWO"]
[null,null,null,null,null,null,null,null,null,null,null,null,null,null,{"$f":"VLOOKUP(N393,Tabel10[[korte omschrijving]:[MCC3_CODE]],2,0)","v":{"$error":"#N/A"}},{"$f":"VLOOKUP(N393,Tabel10[],3,0)","v":{"$error":"#N/A"}},null,null,null,null,null,null,null,"EUR",null,null,null,{"$error":"#DIV/0!"},0,0,null,"","","","","","","","","","",null,null,null,null,null,null,null,null,null,null,null,null,null,null,6,"None","Parcel","ZWO"]
[null,null,null,null,null,null,null,null,null,null,null,null,null,null,{"$f":"VLOOKUP(N394,Tabel10[[korte omschrijving]:[MCC3_CODE]],2,0)","v":{"$error":"#N/A"}},{"$f":"VLOOKUP(N394,Tabel10[],3,0)","v":{"$error":"#N/A"}},null,null,null,null,null,null,null,"EUR",null,null,null,{"$error":"#DIV/0!"},0,0,null,"","","","","","","","","","",null,null,null,null,null,null,null,null,null,null,null,null,null,null,6,"None","Parcel","ZWO"]
[null,null,null,null,null,null,null,null,null,null,null,null,null,null,{"$f":"VLOOKUP(N395,Tabel10[[korte omschrijving]:[MCC3_CODE]],2,0)","v":{"$error":"#N/A"}},{"$f":"VLOOKUP(N395,Tabel10[],3,0)","v":{"$error":"#N/A"}},null,null,null,null,null,null,null,"EUR",null,null,null,{"$error":"#DIV/0!"},0,0,null,"","","","","","","","","","",null,null,null,null,null,null,null,null,null,null,null,null,null,null,6,"None","Parcel","ZWO"]
[null,null,null,null,null,null,null,null,null,null,null,null,null,null,{"$f":"VLOOKUP(N396,Tabel10[[korte omschrijving]:[MCC3_CODE]],2,0)","v":{"$error":"#N/A"}},{"$f":"VLOOKUP(N396,Tabel10[],3,0)","v":{"$error":"#N/A"}},null,null,null,null,null,null,null,"EUR",null,null,null,{"$error":"#DIV/0!"},0,0,null,"","","","","","","","","","",null,null,null,null,null,null,null,null,null,null,null,null,null,null,6,"None","Parcel","ZWO"]
[null,null,null,null,null,null,null,null,null,null,null,null,null,null,{"$f":"VLOOKUP(N397,Tabel10[[korte omschrijving]:[MCC3_CODE]],2,0)","v":{"$error":"#N/A"}},{"$f":"VLOOKUP(N397,Tabel10[],3,0)","v":{"$error":"#N/A"}},null,null,null,null,null,null,null,"EUR",null,null,null,{"$error":"#DIV/0!"},0,0,null,"","","","","","","","","","",null,null,null,null,null,null,null,null,null,null,null,null,null,null,6,"None","Parcel","ZWO"]
[null,null,null,null,null,null,null,null,null,null,null,null,null,null,{"$f":"VLOOKUP(N398,Tabel10[[korte omschrijving]:[MCC3_CODE]],2,0)","v":{"$error":"#N/A"}},{"$f":"VLOOKUP(N398,Tabel10[],3,0)","v":{"$error":"#N/A"}},null,null,null,null,null,null,null,"EUR",null,null,null,{"$error":"#DIV/0!"},0,0,null,"","","","","","","","","","",null,null,null,null,null,null,null,null,null,null,null,null,null,null,6,"None","Parcel","ZWO"]
[null,null,null,null,null,null,null,null,null,null,null,null,null,null,{"$f":"VLOOKUP(N399,Tabel10[[korte omschrijving]:[MCC3_CODE]],2,0)","v":{"$error":"#N/A"}},{"$f":"VLOOKUP(N399,Tabel10[],3,0)","v":{"$error":"#N/A"}},null,null,null,null,null,null,null,"EUR",null,null,null,{"$error":"#DIV/0!"},0,0,null,"","","","","","","","","","",null,null,null,null,null,null,null,null,null,null,null,null,null,null,6,"None","Parcel","ZWO"]
[null,null,null,null,null,null,null,null,null,null,null,null,null,null,{"$f":"VLOOKUP(N400,Tabel10[[korte omschrijving]:[MCC3_CODE]],2,0)","v":{"$error":"#N/A"}},{"$f":"VLOOKUP(N400,Tabel10[],3,0)","v":{"$error":"#N/A"}},null,null,null,null,null,null,null,"EUR",null,null,null,{"$error":"#DIV/0!"},0,0,null,"","","","","","","","","","",null,null,null,null,null,null,null,null,null,null,null,null,null,null,6,"None","Parcel","ZWO"]
[null,null,null,null,null,null,null,null,null,null,null,null,null,null,{"$f":"VLOOKUP(N401,Tabel10[[korte omschrijving]:[MCC3_CODE]],2,0)","v":{"$error":"#N/A"}},{"$f":"VLOOKUP(N401,Tabel10[],3,0)","v":{"$error":"#N/A"}},null,null,null,null,null,null,null,"EUR",null,null,null,{"$error":"#DIV/0!"},0,0,null,"","","","","","","","","","",null,null,null,null,null,null,null,null,null,null,null,null,null,null,6,"None","Parcel","ZWO"]
[null,null,null,null,null,null,null,null,null,null,null,null,null,null,{"$f":"VLOOKUP(N402,Tabel10[[korte omschrijving]:[MCC3_CODE]],2,0)","v":{"$error":"#N/A"}},{"$f":"VLOOKUP(N402,Tabel10[],3,0)","v":{"$error":"#N/A"}},null,null,null,null,null,null,null,"EUR",null,null,null,{"$error":"#DIV/0!"},0,0,null,"","","","","","","","","","",null,null,null,null,null,null,null,null,null,null,null,null,null,null,6,"None","Parcel","ZWO"]
[null,null,null,null,null,null,null,null,null,null,null,null,null,null,{"$f":"VLOOKUP(N403,Tabel10[[korte omschrijving]:[MCC3_CODE]],2,0)","v":{"$error":"#N/A"}},{"$f":"VLOOKUP(N403,Tabel10[],3,0)","v":{"$error":"#N/A"}},null,null,null,null,null,null,null,"EUR",null,null,null,{"$error":"#DIV/0!"},0,0,null,"","","","","","","","","","",null,null,null,null,null,null,null,null,null,null,null,null,null,null,6,"None","Parcel","ZWO"]
[null,null,null,null,null,null,null,null,null,null,null,null,null,null,{"$f":"VLOOKUP(N404,Tabel10[[korte omschrijving]:[MCC3_CODE]],2,0)","v":{"$error":"#N/A"}},{"$f":"VLOOKUP(N404,Tabel10[],3,0)","v":{"$error":"#N/A"}},null,null,null,null,null,null,null,"EUR",null,null,null,{"$error":"#DIV/0!"},0,0,null,"","","","","","","","","","",null,null,null,null,null,null,null,null,null,null,null,null,null,null,6,"None","Parcel","ZWO"]
[null,null,null,null,null,null,null,null,null,null,null,null,null,null,{"$f":"VLOOKUP(N405,Tabel10[[korte omschrijving]:[MCC3_CODE]],2,0)","v":{"$error":"#N/A"}},{"$f":"VLOOKUP(N405,Tabel10[],3,0)","v":{"$error":"#N/A"}},null,null,null,null,null,null,null,"EUR",null,null,null,{"$error":"#DIV/0!"},0,0,null,"","","","","","","","","","",null,null,null,null,null,null,null,null,null,null,null,null,null,null,6,"None","Parcel","ZWO"]
[null,null,null,null,null,null,null,null,null,null,null,null,null,null,{"$f":"VLOOKUP(N406,Tabel10[[korte omschrijving]:[MCC3_CODE]],2,0)","v":{"$error":"#N/A"}},{"$f":"VLOOKUP(N406,Tabel10[],3,0)","v":{"$error":"#N/A"}},null,null,null,null,null,null,null,"EUR",null,null,null,{"$error":"#DIV/0!"},0,0,null,"","","","","","","","","","",null,null,null,null,null,null,null,null,null,null,null,null,null,null,6,"None","Parcel","ZWO"]
[null,null,null,null,null,null,null,null,null,null,null,null,null,null,{"$f":"VLOOKUP(N407,Tabel10[[korte omschrijving]:[MCC3_CODE]],2,0)","v":{"$error":"#N/A"}},{"$f":"VLOOKUP(N407,Tabel10[],3,0)","v":{"$error":"#N/A"}},null,null,null,null,null,null,null,"EUR",null,null,null,{"$error":"#DIV/0!"},0,0,null,"","","","","","","","","","",null,null,null,null,null,null,null,null,null,null,null,null,null,null,6,"None","Parcel","ZWO"]
[null,null,null,null,null,null,null,null,null,null,null,null,null,null,{"$f":"VLOOKUP(N408,Tabel10[[korte omschrijving]:[MCC3_CODE]],2,0)","v":{"$error":"#N/A"}},{"$f":"VLOOKUP(N408,Tabel10[],3,0)","v":{"$error":"#N/A"}},null,null,null,null,null,null,null,"EUR",null,null,null,{"$error":"#DIV/0!"},0,0,null,"","","","","","","","","","",null,null,null,null,null,null,null,null,null,null,null,null,null,null,6,"None","Parcel","ZWO"]
[null,null,null,null,null,null,null,null,null,null,null,null,null,null,{"$f":"VLOOKUP(N409,Tabel10[[korte omschrijving]:[MCC3_CODE]],2,0)","v":{"$error":"#N/A"}},{"$f":"VLOOKUP(N409,Tabel10[],3,0)","v":{"$error":"#N/A"}},null,null,null,null,null,null,null,"EUR",null,null,null,{"$error":"#DIV/0!"},0,0,null,"","","","","","","","","","",null,null,null,null,null,null,null,null,null,null,null,null,null,null,6,"None","Parcel","ZWO"]
[null,null,null,null,null,null,null,null,null,null,null,null,null,null,{"$f":"VLOOKUP(N410,Tabel10[[korte omschrijving]:[MCC3_CODE]],2,0)","v":{"$error":"#N/A"}},{"$f":"VLOOKUP(N410,Tabel10[],3,0)","v":{"$error":"#N/A"}},null,null,null,null,null,null,null,"EUR",null,null,null,{"$error":"#DIV/0!"},0,0,null,"","","","","","","","","","",null,null,null,null,null,null,null,null,null,null,null,null,null,null,6,"None","Parcel","ZWO"]
[null,null,null,null,null,null,null,null,null,null,null,null,null,null,{"$f":"VLOOKUP(N411,Tabel10[[korte omschrijving]:[MCC3_CODE]],2,0)","v":{"$error":"#N/A"}},{"$f":"VLOOKUP(N411,Tabel10[],3,0)","v":{"$error":"#N/A"}},null,null,null,null,null,null,null,"EUR",null,null,null,{"$error":"#DIV/0!"},0,0,null,"","","","","","","","","","",null,null,null,null,null,null,null,null,null,null,null,null,null,null,6,"None","Parcel","ZWO"]
[null,null,null,null,null,null,null,null,null,null,null,null,null,null,{"$f":"VLOOKUP(N412,Tabel10[[korte omschrijving]:[MCC3_CODE]],2,0)","v":{"$error":"#N/A"}},{"$f":"VLOOKUP(N412,Tabel10[],3,0)","v":{"$error":"#N/A"}},null,null,null,null,null,null,null,"EUR",null,null,null,{"$error":"#DIV/0!"},0,0,null,"","","","","","","","","","",null,null,null,null,null,null,null,null,null,null,null,null,null,null,6,"None","Parcel","ZWO"]
[null,null,null,null,null,null,null,null,null,null,null,null,null,null,{"$f":"VLOOKUP(N413,Tabel10[[korte omschrijving]:[MCC3_CODE]],2,0)","v":{"$error":"#N/A"}},{"$f":"VLOOKUP(N413,Tabel10[],3,0)","v":{"$error":"#N/A"}},null,null,null,null,null,null,null,"EUR",null,null,null,{"$error":"#DIV/0!"},0,0,null,"","","","","","","","","","",null,null,null,null,null,null,null,null,null,null,null,null,null,null,6,"None","Parcel","ZWO"]
[null,null,null,null,null,null,null,null,null,null,null,null,null,null,{"$f":"VLOOKUP(N414,Tabel10[[korte omschrijving]:[MCC3_CODE]],2,0)","v":{"$error":"#N/A"}},{"$f":"VLOOKUP(N414,Tabel10[],3,0)","v":{"$error":"#N/A"}},null,null,null,null,null,null,null,"EUR",null,null,null,{"$error":"#DIV/0!"},0,0,null,"","","","","","","","","","",null,null,null,null,null,null,null,null,null,null,null,null,null,null,6,"None","Parcel","ZWO"]
[null,null,null,null,null,null,null,null,null,null,null,null,null,null,{"$f":"VLOOKUP(N415,Tabel10[[korte omschrijving]:[MCC3_CODE]],2,0)","v":{"$error":"#N/A"}},{"$f":"VLOOKUP(N415,Tabel10[],3,0)","v":{"$error":"#N/A"}},null,null,null,null,null,null,null,"EUR",null,null,null,{"$error":"#DIV/0!"},0,0,null,"","","","","","","","","","",null,null,null,null,null,null,null,null,null,null,null,null,null,null,6,"None","Parcel","ZWO"]
[null,null,null,null,null,null,null,null,null,null,null,null,null,null,{"$f":"VLOOKUP(N416,Tabel10[[korte omschrijving]:[MCC3_CODE]],2,0)","v":{"$error":"#N/A"}},{"$f":"VLOOKUP(N416,Tabel10[],3,0)","v":{"$error":"#N/A"}},null,null,null,null,null,null,null,"EUR",null,null,null,{"$error":"#DIV/0!"},0,0,null,"","","","","","","","","","",null,null,null,null,null,null,null,null,null,null,null,null,null,null,6,"None","Parcel","ZWO"]
[null,null,null,null,null,null,null,null,null,null,null,null,null,null,{"$f":"VLOOKUP(N417,Tabel10[[korte omschrijving]:[MCC3_CODE]],2,0)","v":{"$error":"#N/A"}},{"$f":"VLOOKUP(N417,Tabel10[],3,0)","v":{"$error":"#N/A"}},null,null,null,null,null,null,null,"EUR",null,null,null,{"$error":"#DIV/0!"},0,0,null,"","","","","","","","","","",null,null,null,null,null,null,null,null,null,null,null,null,null,null,6,"None","Parcel","ZWO"]
[null,null,null,null,null,null,null,null,null,null,null,null,null,null,{"$f":"VLOOKUP(N418,Tabel10[[korte omschrijving]:[MCC3_CODE]],2,0)","v":{"$error":"#N/A"}},{"$f":"VLOOKUP(N418,Tabel10[],3,0)","v":{"$error":"#N/A"}},null,null,null,null,null,null,null,"EUR",null,null,null,{"$error":"#DIV/0!"},0,0,null,"","","","","","","","","","",null,null,null,null,null,null,null,null,null,null,null,null,null,null,6,"None","Parcel","ZWO"]
[null,null,null,null,null,null,null,null,null,null,null,null,null,null,{"$f":"VLOOKUP(N419,Tabel10[[korte omschrijving]:[MCC3_CODE]],2,0)","v":{"$error":"#N/A"}},{"$f":"VLOOKUP(N419,Tabel10[],3,0)","v":{"$error":"#N/A"}},null,null,null,null,null,null,null,"EUR",null,null,null,{"$error":"#DIV/0!"},0,0,null,"","","","","","","","","","",null,null,null,null,null,null,null,null,null,null,null,null,null,null,6,"None","Parcel","ZWO"]
[null,null,null,null,null,null,null,null,null,null,null,null,null,null,{"$f":"VLOOKUP(N420,Tabel10[[korte omschrijving]:[MCC3_CODE]],2,0)","v":{"$error":"#N/A"}},{"$f":"VLOOKUP(N420,Tabel10[],3,0)","v":{"$error":"#N/A"}},null,null,null,null,null,null,null,"EUR",null,null,null,{"$error":"#DIV/0!"},0,0,null,"","","","","","","","","","",null,null,null,null,null,null,null,null,null,null,null,null,null,null,6,"None","Parcel","ZWO"]
[null,null,null,null,null,null,null,null,null,null,null,null,null,null,{"$f":"VLOOKUP(N421,Tabel10[[korte omschrijving]:[MCC3_CODE]],2,0)","v":{"$error":"#N/A"}},{"$f":"VLOOKUP(N421,Tabel10[],3,0)","v":{"$error":"#N/A"}},null,null,null,null,null,null,null,"EUR",null,null,null,{"$error":"#DIV/0!"},0,0,null,"","","","","","","","","","",null,null,null,null,null,null,null,null,null,null,null,null,null,null,6,"None","Parcel","ZWO"]
[null,null,null,null,null,null,null,null,null,null,null,null,null,null,{"$f":"VLOOKUP(N422,Tabel10[[korte omschrijving]:[MCC3_CODE]],2,0)","v":{"$error":"#N/A"}},{"$f":"VLOOKUP(N422,Tabel10[],3,0)","v":{"$error":"#N/A"}},null,null,null,null,null,null,null,"EUR",null,null,null,{"$error":"#DIV/0!"},0,0,null,"","","","","","","","","","",null,null,null,null,null,null,null,null,null,null,null,null,null,null,6,"None","Parcel","ZWO"]
[null,null,null,null,null,null,null,null,null,null,null,null,null,null,{"$f":"VLOOKUP(N423,Tabel10[[korte omschrijving]:[MCC3_CODE]],2,0)","v":{"$error":"#N/A"}},{"$f":"VLOOKUP(N423,Tabel10[],3,0)","v":{"$error":"#N/A"}},null,null,null,null,null,null,null,"EUR",null,null,null,{"$error":"#DIV/0!"},0,0,null,"","","","","","","","","","",null,null,null,null,null,null,null,null,null,null,null,null,null,null,6,"None","Parcel","ZWO"]
[null,null,null,null,null,null,null,null,null,null,null,null,null,null,{"$f":"VLOOKUP(N424,Tabel10[[korte omschrijving]:[MCC3_CODE]],2,0)","v":{"$error":"#N/A"}},{"$f":"VLOOKUP(N424,Tabel10[],3,0)","v":{"$error":"#N/A"}},null,null,null,null,null,null,null,"EUR",null,null,null,{"$error":"#DIV/0!"},0,0,null,"","","","","","","","","","",null,null,null,null,null,null,null,null,null,null,null,null,null,null,6,"None","Parcel","ZWO"]
[null,null,null,null,null,null,null,null,null,null,null,null,null,null,{"$f":"VLOOKUP(N425,Tabel10[[korte omschrijving]:[MCC3_CODE]],2,0)","v":{"$error":"#N/A"}},{"$f":"VLOOKUP(N425,Tabel10[],3,0)","v":{"$error":"#N/A"}},null,null,null,null,null,null,null,"EUR",null,null,null,{"$error":"#DIV/0!"},0,0,null,"","","","","","","","","","",null,null,null,null,null,null,null,null,null,null,null,null,null,null,6,"None","Parcel","ZWO"]
[null,null,null,null,null,null,null,null,null,null,null,null,null,null,{"$f":"VLOOKUP(N426,Tabel10[[korte omschrijving]:[MCC3_CODE]],2,0)","v":{"$error":"#N/A"}},{"$f":"VLOOKUP(N426,Tabel10[],3,0)","v":{"$error":"#N/A"}},null,null,null,null,null,null,null,"EUR",null,null,null,{"$error":"#DIV/0!"},0,0,null,"","","","","","","","","","",null,null,null,null,null,null,null,null,null,null,null,null,null,null,6,"None","Parcel","ZWO"]
[null,null,null,null,null,null,null,null,null,null,null,null,null,null,{"$f":"VLOOKUP(N427,Tabel10[[korte omschrijving]:[MCC3_CODE]],2,0)","v":{"$error":"#N/A"}},{"$f":"VLOOKUP(N427,Tabel10[],3,0)","v":{"$error":"#N/A"}},null,null,null,null,null,null,null,"EUR",null,null,null,{"$error":"#DIV/0!"},0,0,null,"","","","","","","","","","",null,null,null,null,null,null,null,null,null,null,null,null,null,null,6,"None","Parcel","ZWO"]
[null,null,null,null,null,null,null,null,null,null,null,null,null,null,{"$f":"VLOOKUP(N428,Tabel10[[korte omschrijving]:[MCC3_CODE]],2,0)","v":{"$error":"#N/A"}},{"$f":"VLOOKUP(N428,Tabel10[],3,0)","v":{"$error":"#N/A"}},null,null,null,null,null,null,null,"EUR",null,null,null,{"$error":"#DIV/0!"},0,0,null,"","","","","","","","","","",null,null,null,null,null,null,null,null,null,null,null,null,null,null,6,"None","Parcel","ZWO"]
[null,null,null,null,null,null,null,null,null,null,null,null,null,null,{"$f":"VLOOKUP(N429,Tabel10[[korte omschrijving]:[MCC3_CODE]],2,0)","v":{"$error":"#N/A"}},{"$f":"VLOOKUP(N429,Tabel10[],3,0)","v":{"$error":"#N/A"}},null,null,null,null,null,null,null,"EUR",null,null,null,{"$error":"#DIV/0!"},0,0,null,"","","","","","","","","","",null,null,null,null,null,null,null,null,null,null,null,null,null,null,6,"None","Parcel","ZWO"]
[null,null,null,null,null,null,null,null,null,null,null,null,null,null,{"$f":"VLOOKUP(N430,Tabel10[[korte omschrijving]:[MCC3_CODE]],2,0)","v":{"$error":"#N/A"}},{"$f":"VLOOKUP(N430,Tabel10[],3,0)","v":{"$error":"#N/A"}},null,null,null,null,null,null,null,"EUR",null,null,null,{"$error":"#DIV/0!"},0,0,null,"","","","","","","","","","",null,null,null,null,null,null,null,null,null,null,null,null,null,null,6,"None","Parcel","ZWO"]
[null,null,null,null,null,null,null,null,null,null,null,null,null,null,{"$f":"VLOOKUP(N431,Tabel10[[korte omschrijving]:[MCC3_CODE]],2,0)","v":{"$error":"#N/A"}},{"$f":"VLOOKUP(N431,Tabel10[],3,0)","v":{"$error":"#N/A"}},null,null,null,null,null,null,null,"EUR",null,null,null,{"$error":"#DIV/0!"},0,0,null,"","","","","","","","","","",null,null,null,null,null,null,null,null,null,null,null,null,null,null,6,"None","Parcel","ZWO"]
[null,null,null,null,null,null,null,null,null,null,null,null,null,null,{"$f":"VLOOKUP(N432,Tabel10[[korte omschrijving]:[MCC3_CODE]],2,0)","v":{"$error":"#N/A"}},{"$f":"VLOOKUP(N432,Tabel10[],3,0)","v":{"$error":"#N/A"}},null,null,null,null,null,null,null,"EUR",null,null,null,{"$error":"#DIV/0!"},0,0,null,"","","","","","","","","","",null,null,null,null,null,null,null,null,null,null,null,null,null,null,6,"None","Parcel","ZWO"]
[null,null,null,null,null,null,null,null,null,null,null,null,null,null,{"$f":"VLOOKUP(N433,Tabel10[[korte omschrijving]:[MCC3_CODE]],2,0)","v":{"$error":"#N/A"}},{"$f":"VLOOKUP(N433,Tabel10[],3,0)","v":{"$error":"#N/A"}},null,null,null,null,null,null,null,"EUR",null,null,null,{"$error":"#DIV/0!"},0,0,null,"","","","","","","","","","",null,null,null,null,null,null,null,null,null,null,null,null,null,null,6,"None","Parcel","ZWO"]
[null,null,null,null,null,null,null,null,null,null,null,null,null,null,{"$f":"VLOOKUP(N434,Tabel10[[korte omschrijving]:[MCC3_CODE]],2,0)","v":{"$error":"#N/A"}},{"$f":"VLOOKUP(N434,Tabel10[],3,0)","v":{"$error":"#N/A"}},null,null,null,null,null,null,null,"EUR",null,null,null,{"$error":"#DIV/0!"},0,0,null,"","","","","","","","","","",null,null,null,null,null,null,null,null,null,null,null,null,null,null,6,"None","Parcel","ZWO"]
[null,null,null,null,null,null,null,null,null,null,null,null,null,null,{"$f":"VLOOKUP(N435,Tabel10[[korte omschrijving]:[MCC3_CODE]],2,0)","v":{"$error":"#N/A"}},{"$f":"VLOOKUP(N435,Tabel10[],3,0)","v":{"$error":"#N/A"}},null,null,null,null,null,null,null,"EUR",null,null,null,{"$error":"#DIV/0!"},0,0,null,"","","","","","","","","","",null,null,null,null,null,null,null,null,null,null,null,null,null,null,6,"None","Parcel","ZWO"]
[null,null,null,null,null,null,null,null,null,null,null,null,null,null,{"$f":"VLOOKUP(N436,Tabel10[[korte omschrijving]:[MCC3_CODE]],2,0)","v":{"$error":"#N/A"}},{"$f":"VLOOKUP(N436,Tabel10[],3,0)","v":{"$error":"#N/A"}},null,null,null,null,null,null,null,"EUR",null,null,null,{"$error":"#DIV/0!"},0,0,null,"","","","","","","","","","",null,null,null,null,null,null,null,null,null,null,null,null,null,null,6,"None","Parcel","ZWO"]
[null,null,null,null,null,null,null,null,null,null,null,null,null,null,{"$f":"VLOOKUP(N437,Tabel10[[korte omschrijving]:[MCC3_CODE]],2,0)","v":{"$error":"#N/A"}},{"$f":"VLOOKUP(N437,Tabel10[],3,0)","v":{"$error":"#N/A"}},null,null,null,null,null,null,null,"EUR",null,null,null,{"$error":"#DIV/0!"},0,0,null,"","","","","","","","","","",null,null,null,null,null,null,null,null,null,null,null,null,null,null,6,"None","Parcel","ZWO"]
[null,null,null,null,null,null,null,null,null,null,null,null,null,null,{"$f":"VLOOKUP(N438,Tabel10[[korte omschrijving]:[MCC3_CODE]],2,0)","v":{"$error":"#N/A"}},{"$f":"VLOOKUP(N438,Tabel10[],3,0)","v":{"$error":"#N/A"}},null,null,null,null,null,null,null,"EUR",null,null,null,{"$error":"#DIV/0!"},0,0,null,"","","","","","","","","","",null,null,null,null,null,null,null,null,null,null,null,null,null,null,6,"None","Parcel","ZWO"]
[null,null,null,null,null,null,null,null,null,null,null,null,null,null,{"$f":"VLOOKUP(N439,Tabel10[[korte omschrijving]:[MCC3_CODE]],2,0)","v":{"$error":"#N/A"}},{"$f":"VLOOKUP(N439,Tabel10[],3,0)","v":{"$error":"#N/A"}},null,null,null,null,null,null,null,"EUR",null,null,null,{"$error":"#DIV/0!"},0,0,null,"","","","","","","","","","",null,null,null,null,null,null,null,null,null,null,null,null,null,null,6,"None","Parcel","ZWO"]
[null,null,null,null,null,null,null,null,null,null,null,null,null,null,{"$f":"VLOOKUP(N440,Tabel10[[korte omschrijving]:[MCC3_CODE]],2,0)","v":{"$error":"#N/A"}},{"$f":"VLOOKUP(N440,Tabel10[],3,0)","v":{"$error":"#N/A"}},null,null,null,null,null,null,null,"EUR",null,null,null,{"$error":"#DIV/0!"},0,0,null,"","","","","","","","","","",null,null,null,null,null,null,null,null,null,null,null,null,null,null,6,"None","Parcel","ZWO"]
[null,null,null,null,null,null,null,null,null,null,null,null,null,null,{"$f":"VLOOKUP(N441,Tabel10[[korte omschrijving]:[MCC3_CODE]],2,0)","v":{"$error":"#N/A"}},{"$f":"VLOOKUP(N441,Tabel10[],3,0)","v":{"$error":"#N/A"}},null,null,null,null,null,null,null,"EUR",null,null,null,{"$error":"#DIV/0!"},0,0,null,"","","","","","","","","","",null,null,null,null,null,null,null,null,null,null,null,null,null,null,6,"None","Parcel","ZWO"]
[null,null,null,null,null,null,null,null,null,null,null,null,null,null,{"$f":"VLOOKUP(N442,Tabel10[[korte omschrijving]:[MCC3_CODE]],2,0)","v":{"$error":"#N/A"}},{"$f":"VLOOKUP(N442,Tabel10[],3,0)","v":{"$error":"#N/A"}},null,null,null,null,null,null,null,"EUR",null,null,null,{"$error":"#DIV/0!"},0,0,null,"","","","","","","","","","",null,null,null,null,null,null,null,null,null,null,null,null,null,null,6,"None","Parcel","ZWO"]
[null,null,null,null,null,null,null,null,null,null,null,null,null,null,{"$f":"VLOOKUP(N443,Tabel10[[korte omschrijving]:[MCC3_CODE]],2,0)","v":{"$error":"#N/A"}},{"$f":"VLOOKUP(N443,Tabel10[],3,0)","v":{"$error":"#N/A"}},null,null,null,null,null,null,null,"EUR",null,null,null,{"$error":"#DIV/0!"},0,0,null,"","","","","","","","","","",null,null,null,null,null,null,null,null,null,null,null,null,null,null,6,"None","Parcel","ZWO"]
[null,null,null,null,null,null,null,null,null,null,null,null,null,null,{"$f":"VLOOKUP(N444,Tabel10[[korte omschrijving]:[MCC3_CODE]],2,0)","v":{"$error":"#N/A"}},{"$f":"VLOOKUP(N444,Tabel10[],3,0)","v":{"$error":"#N/A"}},null,null,null,null,null,null,null,"EUR",null,null,null,{"$error":"#DIV/0!"},0,0,null,"","","","","","","","","","",null,null,null,null,null,null,null,null,null,null,null,null,null,null,6,"None","Parcel","ZWO"]
[null,null,null,null,null,null,null,null,null,null,null,null,null,null,{"$f":"VLOOKUP(N445,Tabel10[[korte omschrijving]:[MCC3_CODE]],2,0)","v":{"$error":"#N/A"}},{"$f":"VLOOKUP(N445,Tabel10[],3,0)","v":{"$error":"#N/A"}},null,null,null,null,null,null,null,"EUR",null,null,null,{"$error":"#DIV/0!"},0,0,null,"","","","","","","","","","",null,null,null,null,null,null,null,null,null,null,null,null,null,null,6,"None","Parcel","ZWO"]
[null,null,null,null,null,null,null,null,null,null,null,null,null,null,{"$f":"VLOOKUP(N446,Tabel10[[korte omschrijving]:[MCC3_CODE]],2,0)","v":{"$error":"#N/A"}},{"$f":"VLOOKUP(N446,Tabel10[],3,0)","v":{"$error":"#N/A"}},null,null,null,null,null,null,null,"EUR",null,null,null,{"$error":"#DIV/0!"},0,0,null,"","","","","","","","","","",null,null,null,null,null,null,null,null,null,null,null,null,null,null,6,"None","Parcel","ZWO"]
[null,null,null,null,null,null,null,null,null,null,null,null,null,null,{"$f":"VLOOKUP(N447,Tabel10[[korte omschrijving]:[MCC3_CODE]],2,0)","v":{"$error":"#N/A"}},{"$f":"VLOOKUP(N447,Tabel10[],3,0)","v":{"$error":"#N/A"}},null,null,null,null,null,null,null,"EUR",null,null,null,{"$error":"#DIV/0!"},0,0,null,"","","","","","","","","","",null,null,null,null,null,null,null,null,null,null,null,null,null,null,6,"None","Parcel","ZWO"]
[null,null,null,null,null,null,null,null,null,null,null,null,null,null,{"$f":"VLOOKUP(N448,Tabel10[[korte omschrijving]:[MCC3_CODE]],2,0)","v":{"$error":"#N/A"}},{"$f":"VLOOKUP(N448,Tabel10[],3,0)","v":{"$error":"#N/A"}},null,null,null,null,null,null,null,"EUR",null,null,null,{"$error":"#DIV/0!"},0,0,null,"","","","","","","","","","",null,null,null,null,null,null,null,null,null,null,null,null,null,null,6,"None","Parcel","ZWO"]
[null,null,null,null,null,null,null,null,null,null,null,null,null,null,{"$f":"VLOOKUP(N449,Tabel10[[korte omschrijving]:[MCC3_CODE]],2,0)","v":{"$error":"#N/A"}},{"$f":"VLOOKUP(N449,Tabel10[],3,0)","v":{"$error":"#N/A"}},null,null,null,null,null,null,null,"EUR",null,null,null,{"$error":"#DIV/0!"},0,0,null,"","","","","","","","","","",null,null,null,null,null,null,null,null,null,null,null,null,null,null,6,"None","Parcel","ZWO"]
[null,null,null,null,null,null,null,null,null,null,null,null,null,null,{"$f":"VLOOKUP(N450,Tabel10[[korte omschrijving]:[MCC3_CODE]],2,0)","v":{"$error":"#N/A"}},{"$f":"VLOOKUP(N450,Tabel10[],3,0)","v":{"$error":"#N/A"}},null,null,null,null,null,null,null,"EUR",null,null,null,{"$error":"#DIV/0!"},0,0,null,"","","","","","","","","","",null,null,null,null,null,null,null,null,null,null,null,null,null,null,6,"None","Parcel","ZWO"]
[null,null,null,null,null,null,null,null,null,null,null,null,null,null,{"$f":"VLOOKUP(N451,Tabel10[[korte omschrijving]:[MCC3_CODE]],2,0)","v":{"$error":"#N/A"}},{"$f":"VLOOKUP(N451,Tabel10[],3,0)","v":{"$error":"#N/A"}},null,null,null,null,null,null,null,"EUR",null,null,null,{"$error":"#DIV/0!"},0,0,null,"","","","","","","","","","",null,null,null,null,null,null,null,null,null,null,null,null,null,null,6,"None","Parcel","ZWO"]
[null,null,null,null,null,null,null,null,null,null,null,null,null,null,{"$f":"VLOOKUP(N452,Tabel10[[korte omschrijving]:[MCC3_CODE]],2,0)","v":{"$error":"#N/A"}},{"$f":"VLOOKUP(N452,Tabel10[],3,0)","v":{"$error":"#N/A"}},null,null,null,null,null,null,null,"EUR",null,null,null,{"$error":"#DIV/0!"},0,0,null,"","","","","","","","","","",null,null,null,null,null,null,null,null,null,null,null,null,null,null,6,"None","Parcel","ZWO"]
[null,null,null,null,null,null,null,null,null,null,null,null,null,null,{"$f":"VLOOKUP(N453,Tabel10[[korte omschrijving]:[MCC3_CODE]],2,0)","v":{"$error":"#N/A"}},{"$f":"VLOOKUP(N453,Tabel10[],3,0)","v":{"$error":"#N/A"}},null,null,null,null,null,null,null,"EUR",null,null,null,{"$error":"#DIV/0!"},0,0,null,"","","","","","","","","","",null,null,null,null,null,null,null,null,null,null,null,null,null,null,6,"None","Parcel","ZWO"]
[null,null,null,null,null,null,null,null,null,null,null,null,null,null,{"$f":"VLOOKUP(N454,Tabel10[[korte omschrijving]:[MCC3_CODE]],2,0)","v":{"$error":"#N/A"}},{"$f":"VLOOKUP(N454,Tabel10[],3,0)","v":{"$error":"#N/A"}},null,null,null,null,null,null,null,"EUR",null,null,null,{"$error":"#DIV/0!"},0,0,null,"","","","","","","","","","",null,null,null,null,null,null,null,null,null,null,null,null,null,null,6,"None","Parcel","ZWO"]
[null,null,null,null,null,null,null,null,null,null,null,null,null,null,{"$f":"VLOOKUP(N455,Tabel10[[korte omschrijving]:[MCC3_CODE]],2,0)","v":{"$error":"#N/A"}},{"$f":"VLOOKUP(N455,Tabel10[],3,0)","v":{"$error":"#N/A"}},null,null,null,null,null,null,null,"EUR",null,null,null,{"$f":"AA455/Y455","v":{"$error":"#DIV/0!"}},{"$f":"T455*Y455","v":0},{"$f":"T455*AA455","v":0},null,{"$f":"IF(AE455 <> \"\",\n    IF(ISNUMBER(VALUE(LEFT(AE455, FIND(\"%\", AE455)-1))),\n        VALUE(LEFT(AE455, FIND(\"%\", AE455)-1)),\n        \"Invalid format\"),\n    \"\")","v":""},{"$f":"IF(AE455 <> \"\",\n    IF(ISNUMBER(VALUE(LEFT(AE455, FIND(\"%\", AE455)-1))) * ISNUMBER(FIND(\"%\", AE455 & \"wol\")) > 0,\n        TRIM(MID(AE455, FIND(\"%\", AE455)+1, FIND(\"/\", AE455 & \"/\")-FIND(\"%\", AE455)-1)),\n        \"Invalid format\"),\n    \"\")","v":""},{"$f":"IF(AE455 <> \"\",\n    IF(ISNUMBER(VALUE(MID(AE455, FIND(\"/\", AE455) + 1, FIND(\"%\", AE455, FIND(\"/\", AE455)) - FIND(\"/\", AE455) - 1))),\n        VALUE(MID(AE455, FIND(\"/\", AE455) + 1, FIND(\"%\", AE455, FIND(\"/\", AE455)) - FIND(\"/\", AE455) - 1)),\n        \"\"),\n    \"\")","v":""},{"$f":"IF(AE455 <> \"\",\n    IFERROR(TRIM(MID(AE455, FIND(\"%\", AE455, FIND(\"/\", AE455)+1)+2,\n        IFERROR(FIND(\"/\", AE455 & \"/\", FIND(\"/\", AE455)+1)-FIND(\"%\", AE455, FIND(\"/\", AE455)+1)-2, LEN(AE455)-FIND(\"%\", AE455, FIND(\"/\", AE455)+1)-1))),\n        \"\"),\n    \"\")","v":""},{"$f":"IF(AE455 <> \"\",\n    IF(ISNUMBER(VALUE(MID(AE455, FIND(\"/\", AE455, FIND(\"/\", AE455)+1) + 1, FIND(\"%\", AE455, FIND(\"/\", AE455, FIND(\"/\", AE455)+1)) - FIND(\"/\", AE455, FIND(\"/\", AE455)+1) - 1))),\n        VALUE(MID(AE455, FIND(\"/\", AE455, FIND(\"/\", AE455)+1) + 1, FIND(\"%\", AE455, FIND(\"/\", AE455, FIND(\"/\", AE455)+1)) - FIND(\"/\", AE455, FIND(\"/\", AE455)+1) - 1)),\n        \"\"),\n    \"\")","v":""},{"$f":"IF(AE455 <> \"\",\n    IFERROR(\n        TRIM(MID(AE455,\n            FIND(\"%\", AE455, FIND(\"%\", AE455, FIND(\"%\", AE455)+1)+1)+1,\n            FIND(\"/\", AE455 & \"/\", FIND(\"%\", AE455, FIND(\"%\", AE455, FIND(\"%\", AE455)+1)+1))-FIND(\"%\", AE455, FIND(\"%\", AE455, FIND(\"%\", AE455)+1)+1)-1)\n        ),\n        \"\"\n    ),\n    \"\"\n)","v":""},{"$f":"IF(AE455 <> \"\",\n    IF(ISNUMBER(VALUE(MID(AE455, FIND(\"/\", AE455, FIND(\"/\", AE455, FIND(\"/\", AE455)+1)+1) + 1, FIND(\"%\", AE455, FIND(\"/\", AE455, FIND(\"/\", AE455, FIND(\"/\", AE455)+1)+1)) - FIND(\"/\", AE455, FIND(\"/\", AE455, FIND(\"/\", AE455)+1)+1) - 1))),\n        VALUE(MID(AE455, FIND(\"/\", AE455, FIND(\"/\", AE455, FIND(\"/\", AE455)+1)+1) + 1, FIND(\"%\", AE455, FIND(\"/\", AE455, FIND(\"/\", AE455, FIND(\"/\", AE455)+1)+1)) - FIND(\"/\", AE455, FIND(\"/\", AE455, FIND(\"/\", AE455)+1)+1) - 1)),\n        \"\"),\n    \"\")","v":""},{"$f":"IF(AE455 <> \"\",\n    IFERROR(TRIM(MID(AE455, FIND(\"%\", AE455, FIND(\"/\", AE455, FIND(\"/\", AE455, FIND(\"/\", AE455)+1)+1)+1)+2,\n        IFERROR(FIND(\"/\", AE455, FIND(\"/\", AE455, FIND(\"/\", AE455, FIND(\"/\", AE455)+1)+1)+1)-FIND(\"%\", AE455, FIND(\"/\", AE455, FIND(\"/\", AE455, FIND(\"/\", AE455)+1)+1)+1)-2, LEN(AE455)-FIND(\"%\", AE455, FIND(\"/\", AE455, FIND(\"/\", AE455, FIND(\"/\", AE455)+1)+1)+1)-1))),\n        \"\"),\n    \"\")","v":""},{"$f":"IF(AE455 <> \"\",\n    IF(ISNUMBER(VALUE(MID(AE455, FIND(\"/\", AE455, FIND(\"/\", AE455, FIND(\"/\", AE455, FIND(\"/\", AE455)+1)+1)+1) + 1, FIND(\"%\", AE455, FIND(\"/\", AE455, FIND(\"/\", AE455, FIND(\"/\", AE455, FIND(\"/\", AE455)+1)+1)+1)) - FIND(\"/\", AE455, FIND(\"/\", AE455, FIND(\"/\", AE455, FIND(\"/\", AE455)+1)+1)+1) - 1))),\n        VALUE(MID(AE455, FIND(\"/\", AE455, FIND(\"/\", AE455, FIND(\"/\", AE455, FIND(\"/\", AE455)+1)+1)+1) + 1, FIND(\"%\", AE455, FIND(\"/\", AE455, FIND(\"/\", AE455, FIND(\"/\", AE455, FIND(\"/\", AE455)+1)+1)+1)) - FIND(\"/\", AE455, FIND(\"/\", AE455, FIND(\"/\", AE455, FIND(\"/\", AE455)+1)+1)+1) - 1)),\n        \"\"),\n    \"\")","v":""},{"$f":"IF(AE455 = \"\", \"\",\n    IFERROR(TRIM(\n        MID(\n            AE455,\n            FIND(\"%\", AE455, FIND(\"/\", AE455, FIND(\"/\", AE455, FIND(\"/\", AE455, FIND(\"/\", AE455)+1)+1)+1)+1) + 1,\n            FIND(\"/\", AE455 & \"/\", FIND(\"%\", AE455, FIND(\"/\", AE455, FIND(\"/\", AE455, FIND(\"/\", AE455, FIND(\"/\", AE455)+1)+1)+1)+1)) -\n            FIND(\"%\", AE455, FIND(\"/\", AE455, FIND(\"/\", AE455, FIND(\"/\", AE455, FIND(\"/\", AE455)+1)+1)+1)+1) - 1\n        )\n    ),\n    \"\")\n)","v":""},null,null,null,null,null,null,null,null,null,null,null,null,null,null,6,"None","Parcel","ZWO"]
[null,null,null,null,null,null,null,null,null,null,null,null,null,null,{"$f":"VLOOKUP(N456,Tabel10[[korte omschrijving]:[MCC3_CODE]],2,0)","v":{"$error":"#N/A"}},{"$f":"VLOOKUP(N456,Tabel10[],3,0)","v":{"$error":"#N/A"}},null,null,null,null,null,null,null,"EUR",null,null,null,{"$error":"#DIV/0!"},0,0,null,"","","","","","","","","","",null,null,null,null,null,null,null,null,null,null,null,null,null,null,6,"None","Parcel","ZWO"]
[null,null,null,null,null,null,null,null,null,null,null,null,null,null,{"$f":"VLOOKUP(N457,Tabel10[[korte omschrijving]:[MCC3_CODE]],2,0)","v":{"$error":"#N/A"}},{"$f":"VLOOKUP(N457,Tabel10[],3,0)","v":{"$error":"#N/A"}},null,null,null,null,null,null,null,"EUR",null,null,null,{"$error":"#DIV/0!"},0,0,null,"","","","","","","","","","",null,null,null,null,null,null,null,null,null,null,null,null,null,null,6,"None","Parcel","ZWO"]
[null,null,null,null,null,null,null,null,null,null,null,null,null,null,{"$f":"VLOOKUP(N458,Tabel10[[korte omschrijving]:[MCC3_CODE]],2,0)","v":{"$error":"#N/A"}},{"$f":"VLOOKUP(N458,Tabel10[],3,0)","v":{"$error":"#N/A"}},null,null,null,null,null,null,null,"EUR",null,null,null,{"$error":"#DIV/0!"},0,0,null,"","","","","","","","","","",null,null,null,null,null,null,null,null,null,null,null,null,null,null,6,"None","Parcel","ZWO"]
[null,null,null,null,null,null,null,null,null,null,null,null,null,null,{"$f":"VLOOKUP(N459,Tabel10[[korte omschrijving]:[MCC3_CODE]],2,0)","v":{"$error":"#N/A"}},{"$f":"VLOOKUP(N459,Tabel10[],3,0)","v":{"$error":"#N/A"}},null,null,null,null,null,null,null,"EUR",null,null,null,{"$error":"#DIV/0!"},0,0,null,"","","","","","","","","","",null,null,null,null,null,null,null,null,null,null,null,null,null,null,6,"None","Parcel","ZWO"]
[null,null,null,null,null,null,null,null,null,null,null,null,null,null,{"$f":"VLOOKUP(N460,Tabel10[[korte omschrijving]:[MCC3_CODE]],2,0)","v":{"$error":"#N/A"}},{"$f":"VLOOKUP(N460,Tabel10[],3,0)","v":{"$error":"#N/A"}},null,null,null,null,null,null,null,"EUR",null,null,null,{"$error":"#DIV/0!"},0,0,null,"","","","","","","","","","",null,null,null,null,null,null,null,null,null,null,null,null,null,null,6,"None","Parcel","ZWO"]
[null,null,null,null,null,null,null,null,null,null,null,null,null,null,{"$f":"VLOOKUP(N461,Tabel10[[korte omschrijving]:[MCC3_CODE]],2,0)","v":{"$error":"#N/A"}},{"$f":"VLOOKUP(N461,Tabel10[],3,0)","v":{"$error":"#N/A"}},null,null,null,null,null,null,null,"EUR",null,null,null,{"$error":"#DIV/0!"},0,0,null,"","","","","","","","","","",null,null,null,null,null,null,null,null,null,null,null,null,null,null,6,"None","Parcel","ZWO"]
[null,null,null,null,null,null,null,null,null,null,null,null,null,null,{"$f":"VLOOKUP(N462,Tabel10[[korte omschrijving]:[MCC3_CODE]],2,0)","v":{"$error":"#N/A"}},{"$f":"VLOOKUP(N462,Tabel10[],3,0)","v":{"$error":"#N/A"}},null,null,null,null,null,null,null,"EUR",null,null,null,{"$error":"#DIV/0!"},0,0,null,"","","","","","","","","","",null,null,null,null,null,null,null,null,null,null,null,null,null,null,6,"None","Parcel","ZWO"]
[null,null,null,null,null,null,null,null,null,null,null,null,null,null,{"$f":"VLOOKUP(N463,Tabel10[[korte omschrijving]:[MCC3_CODE]],2,0)","v":{"$error":"#N/A"}},{"$f":"VLOOKUP(N463,Tabel10[],3,0)","v":{"$error":"#N/A"}},null,null,null,null,null,null,null,"EUR",null,null,null,{"$error":"#DIV/0!"},0,0,null,"","","","","","","","","","",null,null,null,null,null,null,null,null,null,null,null,null,null,null,6,"None","Parcel","ZWO"]
[null,null,null,null,null,null,null,null,null,null,null,null,null,null,{"$f":"VLOOKUP(N464,Tabel10[[korte omschrijving]:[MCC3_CODE]],2,0)","v":{"$error":"#N/A"}},{"$f":"VLOOKUP(N464,Tabel10[],3,0)","v":{"$error":"#N/A"}},null,null,null,null,null,null,null,"EUR",null,null,null,{"$error":"#DIV/0!"},0,0,null,"","","","","","","","","","",null,null,null,null,null,null,null,null,null,null,null,null,null,null,6,"None","Parcel","ZWO"]
[null,null,null,null,null,null,null,null,null,null,null,null,null,null,{"$f":"VLOOKUP(N465,Tabel10[[korte omschrijving]:[MCC3_CODE]],2,0)","v":{"$error":"#N/A"}},{"$f":"VLOOKUP(N465,Tabel10[],3,0)","v":{"$error":"#N/A"}},null,null,null,null,null,null,null,"EUR",null,null,null,{"$error":"#DIV/0!"},0,0,null,"","","","","","","","","","",null,null,null,null,null,null,null,null,null,null,null,null,null,null,6,"None","Parcel","ZWO"]
[null,null,null,null,null,null,null,null,null,null,null,null,null,null,{"$f":"VLOOKUP(N466,Tabel10[[korte omschrijving]:[MCC3_CODE]],2,0)","v":{"$error":"#N/A"}},{"$f":"VLOOKUP(N466,Tabel10[],3,0)","v":{"$error":"#N/A"}},null,null,null,null,null,null,null,"EUR",null,null,null,{"$error":"#DIV/0!"},0,0,null,"","","","","","","","","","",null,null,null,null,null,null,null,null,null,null,null,null,null,null,6,"None","Parcel","ZWO"]
[null,null,null,null,null,null,null,null,null,null,null,null,null,null,{"$f":"VLOOKUP(N467,Tabel10[[korte omschrijving]:[MCC3_CODE]],2,0)","v":{"$error":"#N/A"}},{"$f":"VLOOKUP(N467,Tabel10[],3,0)","v":{"$error":"#N/A"}},null,null,null,null,null,null,null,"EUR",null,null,null,{"$error":"#DIV/0!"},0,0,null,"","","","","","","","","","",null,null,null,null,null,null,null,null,null,null,null,null,null,null,6,"None","Parcel","ZWO"]
[null,null,null,null,null,null,null,null,null,null,null,null,null,null,{"$f":"VLOOKUP(N468,Tabel10[[korte omschrijving]:[MCC3_CODE]],2,0)","v":{"$error":"#N/A"}},{"$f":"VLOOKUP(N468,Tabel10[],3,0)","v":{"$error":"#N/A"}},null,null,null,null,null,null,null,"EUR",null,null,null,{"$error":"#DIV/0!"},0,0,null,"","","","","","","","","","",null,null,null,null,null,null,null,null,null,null,null,null,null,null,6,"None","Parcel","ZWO"]
[null,null,null,null,null,null,null,null,null,null,null,null,null,null,{"$f":"VLOOKUP(N469,Tabel10[[korte omschrijving]:[MCC3_CODE]],2,0)","v":{"$error":"#N/A"}},{"$f":"VLOOKUP(N469,Tabel10[],3,0)","v":{"$error":"#N/A"}},null,null,null,null,null,null,null,"EUR",null,null,null,{"$error":"#DIV/0!"},0,0,null,"","","","","","","","","","",null,null,null,null,null,null,null,null,null,null,null,null,null,null,6,"None","Parcel","ZWO"]
[null,null,null,null,null,null,null,null,null,null,null,null,null,null,{"$f":"VLOOKUP(N470,Tabel10[[korte omschrijving]:[MCC3_CODE]],2,0)","v":{"$error":"#N/A"}},{"$f":"VLOOKUP(N470,Tabel10[],3,0)","v":{"$error":"#N/A"}},null,null,null,null,null,null,null,"EUR",null,null,null,{"$error":"#DIV/0!"},0,0,null,"","","","","","","","","","",null,null,null,null,null,null,null,null,null,null,null,null,null,null,6,"None","Parcel","ZWO"]
[null,null,null,null,null,null,null,null,null,null,null,null,null,null,{"$f":"VLOOKUP(N471,Tabel10[[korte omschrijving]:[MCC3_CODE]],2,0)","v":{"$error":"#N/A"}},{"$f":"VLOOKUP(N471,Tabel10[],3,0)","v":{"$error":"#N/A"}},null,null,null,null,null,null,null,"EUR",null,null,null,{"$error":"#DIV/0!"},0,0,null,"","","","","","","","","","",null,null,null,null,null,null,null,null,null,null,null,null,null,null,6,"None","Parcel","ZWO"]
[null,null,null,null,null,null,null,null,null,null,null,null,null,null,{"$f":"VLOOKUP(N472,Tabel10[[korte omschrijving]:[MCC3_CODE]],2,0)","v":{"$error":"#N/A"}},{"$f":"VLOOKUP(N472,Tabel10[],3,0)","v":{"$error":"#N/A"}},null,null,null,null,null,null,null,"EUR",null,null,null,{"$error":"#DIV/0!"},0,0,null,"","","","","","","","","","",null,null,null,null,null,null,null,null,null,null,null,null,null,null,6,"None","Parcel","ZWO"]
[null,null,null,null,null,null,null,null,null,null,null,null,null,null,{"$f":"VLOOKUP(N473,Tabel10[[korte omschrijving]:[MCC3_CODE]],2,0)","v":{"$error":"#N/A"}},{"$f":"VLOOKUP(N473,Tabel10[],3,0)","v":{"$error":"#N/A"}},null,null,null,null,null,null,null,"EUR",null,null,null,{"$error":"#DIV/0!"},0,0,null,"","","","","","","","","","",null,null,null,null,null,null,null,null,null,null,null,null,null,null,6,"None","Parcel","ZWO"]
[null,null,null,null,null,null,null,null,null,null,null,null,null,null,{"$f":"VLOOKUP(N474,Tabel10[[korte omschrijving]:[MCC3_CODE]],2,0)","v":{"$error":"#N/A"}},{"$f":"VLOOKUP(N474,Tabel10[],3,0)","v":{"$error":"#N/A"}},null,null,null,null,null,null,null,"EUR",null,null,null,{"$error":"#DIV/0!"},0,0,null,"","","","","","","","","","",null,null,null,null,null,null,null,null,null,null,null,null,null,null,6,"None","Parcel","ZWO"]
[null,null,null,null,null,null,null,null,null,null,null,null,null,null,{"$f":"VLOOKUP(N475,Tabel10[[korte omschrijving]:[MCC3_CODE]],2,0)","v":{"$error":"#N/A"}},{"$f":"VLOOKUP(N475,Tabel10[],3,0)","v":{"$error":"#N/A"}},null,null,null,null,null,null,null,"EUR",null,null,null,{"$error":"#DIV/0!"},0,0,null,"","","","","","","","","","",null,null,null,null,null,null,null,null,null,null,null,null,null,null,6,"None","Parcel","ZWO"]
[null,null,null,null,null,null,null,null,null,null,null,null,null,null,{"$f":"VLOOKUP(N476,Tabel10[[korte omschrijving]:[MCC3_CODE]],2,0)","v":{"$error":"#N/A"}},{"$f":"VLOOKUP(N476,Tabel10[],3,0)","v":{"$error":"#N/A"}},null,null,null,null,null,null,null,"EUR",null,null,null,{"$error":"#DIV/0!"},0,0,null,"","","","","","","","","","",null,null,null,null,null,null,null,null,null,null,null,null,null,null,6,"None","Parcel","ZWO"]
[null,null,null,null,null,null,null,null,null,null,null,null,null,null,{"$f":"VLOOKUP(N477,Tabel10[[korte omschrijving]:[MCC3_CODE]],2,0)","v":{"$error":"#N/A"}},{"$f":"VLOOKUP(N477,Tabel10[],3,0)","v":{"$error":"#N/A"}},null,null,null,null,null,null,null,"EUR",null,null,null,{"$error":"#DIV/0!"},0,0,null,"","","","","","","","","","",null,null,null,null,null,null,null,null,null,null,null,null,null,null,6,"None","Parcel","ZWO"]
[null,null,null,null,null,null,null,null,null,null,null,null,null,null,{"$f":"VLOOKUP(N478,Tabel10[[korte omschrijving]:[MCC3_CODE]],2,0)","v":{"$error":"#N/A"}},{"$f":"VLOOKUP(N478,Tabel10[],3,0)","v":{"$error":"#N/A"}},null,null,null,null,null,null,null,"EUR",null,null,null,{"$error":"#DIV/0!"},0,0,null,"","","","","","","","","","",null,null,null,null,null,null,null,null,null,null,null,null,null,null,6,"None","Parcel","ZWO"]
[null,null,null,null,null,null,null,null,null,null,null,null,null,null,{"$f":"VLOOKUP(N479,Tabel10[[korte omschrijving]:[MCC3_CODE]],2,0)","v":{"$error":"#N/A"}},{"$f":"VLOOKUP(N479,Tabel10[],3,0)","v":{"$error":"#N/A"}},null,null,null,null,null,null,null,"EUR",null,null,null,{"$error":"#DIV/0!"},0,0,null,"","","","","","","","","","",null,null,null,null,null,null,null,null,null,null,null,null,null,null,6,"None","Parcel","ZWO"]
[null,null,null,null,null,null,null,null,null,null,null,null,null,null,{"$f":"VLOOKUP(N480,Tabel10[[korte omschrijving]:[MCC3_CODE]],2,0)","v":{"$error":"#N/A"}},{"$f":"VLOOKUP(N480,Tabel10[],3,0)","v":{"$error":"#N/A"}},null,null,null,null,null,null,null,"EUR",null,null,null,{"$error":"#DIV/0!"},0,0,null,"","","","","","","","","","",null,null,null,null,null,null,null,null,null,null,null,null,null,null,6,"None","Parcel","ZWO"]
[null,null,null,null,null,null,null,null,null,null,null,null,null,null,{"$f":"VLOOKUP(N481,Tabel10[[korte omschrijving]:[MCC3_CODE]],2,0)","v":{"$error":"#N/A"}},{"$f":"VLOOKUP(N481,Tabel10[],3,0)","v":{"$error":"#N/A"}},null,null,null,null,null,null,null,"EUR",null,null,null,{"$error":"#DIV/0!"},0,0,null,"","","","","","","","","","",null,null,null,null,null,null,null,null,null,null,null,null,null,null,6,"None","Parcel","ZWO"]
[null,null,null,null,null,null,null,null,null,null,null,null,null,null,{"$f":"VLOOKUP(N482,Tabel10[[korte omschrijving]:[MCC3_CODE]],2,0)","v":{"$error":"#N/A"}},{"$f":"VLOOKUP(N482,Tabel10[],3,0)","v":{"$error":"#N/A"}},null,null,null,null,null,null,null,"EUR",null,null,null,{"$error":"#DIV/0!"},0,0,null,"","","","","","","","","","",null,null,null,null,null,null,null,null,null,null,null,null,null,null,6,"None","Parcel","ZWO"]
[null,null,null,null,null,null,null,null,null,null,null,null,null,null,{"$f":"VLOOKUP(N483,Tabel10[[korte omschrijving]:[MCC3_CODE]],2,0)","v":{"$error":"#N/A"}},{"$f":"VLOOKUP(N483,Tabel10[],3,0)","v":{"$error":"#N/A"}},null,null,null,null,null,null,null,"EUR",null,null,null,{"$error":"#DIV/0!"},0,0,null,"","","","","","","","","","",null,null,null,null,null,null,null,null,null,null,null,null,null,null,6,"None","Parcel","ZWO"]
[null,null,null,null,null,null,null,null,null,null,null,null,null,null,{"$f":"VLOOKUP(N484,Tabel10[[korte omschrijving]:[MCC3_CODE]],2,0)","v":{"$error":"#N/A"}},{"$f":"VLOOKUP(N484,Tabel10[],3,0)","v":{"$error":"#N/A"}},null,null,null,null,null,null,null,"EUR",null,null,null,{"$error":"#DIV/0!"},0,0,null,"","","","","","","","","","",null,null,null,null,null,null,null,null,null,null,null,null,null,null,6,"None","Parcel","ZWO"]
[null,null,null,null,null,null,null,null,null,null,null,null,null,null,{"$f":"VLOOKUP(N485,Tabel10[[korte omschrijving]:[MCC3_CODE]],2,0)","v":{"$error":"#N/A"}},{"$f":"VLOOKUP(N485,Tabel10[],3,0)","v":{"$error":"#N/A"}},null,null,null,null,null,null,null,"EUR",null,null,null,{"$error":"#DIV/0!"},0,0,null,"","","","","","","","","","",null,null,null,null,null,null,null,null,null,null,null,null,null,null,6,"None","Parcel","ZWO"]
[null,null,null,null,null,null,null,null,null,null,null,null,null,null,{"$f":"VLOOKUP(N486,Tabel10[[korte omschrijving]:[MCC3_CODE]],2,0)","v":{"$error":"#N/A"}},{"$f":"VLOOKUP(N486,Tabel10[],3,0)","v":{"$error":"#N/A"}},null,null,null,null,null,null,null,"EUR",null,null,null,{"$error":"#DIV/0!"},0,0,null,"","","","","","","","","","",null,null,null,null,null,null,null,null,null,null,null,null,null,null,6,"None","Parcel","ZWO"]
[null,null,null,null,null,null,null,null,null,null,null,null,null,null,{"$f":"VLOOKUP(N487,Tabel10[[korte omschrijving]:[MCC3_CODE]],2,0)","v":{"$error":"#N/A"}},{"$f":"VLOOKUP(N487,Tabel10[],3,0)","v":{"$error":"#N/A"}},null,null,null,null,null,null,null,"EUR",null,null,null,{"$error":"#DIV/0!"},0,0,null,"","","","","","","","","","",null,null,null,null,null,null,null,null,null,null,null,null,null,null,6,"None","Parcel","ZWO"]
[null,null,null,null,null,null,null,null,null,null,null,null,null,null,{"$f":"VLOOKUP(N488,Tabel10[[korte omschrijving]:[MCC3_CODE]],2,0)","v":{"$error":"#N/A"}},{"$f":"VLOOKUP(N488,Tabel10[],3,0)","v":{"$error":"#N/A"}},null,null,null,null,null,null,null,"EUR",null,null,null,{"$error":"#DIV/0!"},0,0,null,"","","","","","","","","","",null,null,null,null,null,null,null,null,null,null,null,null,null,null,6,"None","Parcel","ZWO"]
[null,null,null,null,null,null,null,null,null,null,null,null,null,null,{"$f":"VLOOKUP(N489,Tabel10[[korte omschrijving]:[MCC3_CODE]],2,0)","v":{"$error":"#N/A"}},{"$f":"VLOOKUP(N489,Tabel10[],3,0)","v":{"$error":"#N/A"}},null,null,null,null,null,null,null,"EUR",null,null,null,{"$error":"#DIV/0!"},0,0,null,"","","","","","","","","","",null,null,null,null,null,null,null,null,null,null,null,null,null,null,6,"None","Parcel","ZWO"]
[null,null,null,null,null,null,null,null,null,null,null,null,null,null,{"$f":"VLOOKUP(N490,Tabel10[[korte omschrijving]:[MCC3_CODE]],2,0)","v":{"$error":"#N/A"}},{"$f":"VLOOKUP(N490,Tabel10[],3,0)","v":{"$error":"#N/A"}},null,null,null,null,null,null,null,"EUR",null,null,null,{"$error":"#DIV/0!"},0,0,null,"","","","","","","","","","",null,null,null,null,null,null,null,null,null,null,null,null,null,null,6,"None","Parcel","ZWO"]
[null,null,null,null,null,null,null,null,null,null,null,null,null,null,{"$f":"VLOOKUP(N491,Tabel10[[korte omschrijving]:[MCC3_CODE]],2,0)","v":{"$error":"#N/A"}},{"$f":"VLOOKUP(N491,Tabel10[],3,0)","v":{"$error":"#N/A"}},null,null,null,null,null,null,null,"EUR",null,null,null,{"$error":"#DIV/0!"},0,0,null,"","","","","","","","","","",null,null,null,null,null,null,null,null,null,null,null,null,null,null,6,"None","Parcel","ZWO"]
[null,null,null,null,null,null,null,null,null,null,null,null,null,null,{"$f":"VLOOKUP(N492,Tabel10[[korte omschrijving]:[MCC3_CODE]],2,0)","v":{"$error":"#N/A"}},{"$f":"VLOOKUP(N492,Tabel10[],3,0)","v":{"$error":"#N/A"}},null,null,null,null,null,null,null,"EUR",null,null,null,{"$error":"#DIV/0!"},0,0,null,"","","","","","","","","","",null,null,null,null,null,null,null,null,null,null,null,null,null,null,6,"None","Parcel","ZWO"]
[null,null,null,null,null,null,null,null,null,null,null,null,null,null,{"$f":"VLOOKUP(N493,Tabel10[[korte omschrijving]:[MCC3_CODE]],2,0)","v":{"$error":"#N/A"}},{"$f":"VLOOKUP(N493,Tabel10[],3,0)","v":{"$error":"#N/A"}},null,null,null,null,null,null,null,"EUR",null,null,null,{"$error":"#DIV/0!"},0,0,null,"","","","","","","","","","",null,null,null,null,null,null,null,null,null,null,null,null,null,null,6,"None","Parcel","ZWO"]
[null,null,null,null,null,null,null,null,null,null,null,null,null,null,{"$f":"VLOOKUP(N494,Tabel10[[korte omschrijving]:[MCC3_CODE]],2,0)","v":{"$error":"#N/A"}},{"$f":"VLOOKUP(N494,Tabel10[],3,0)","v":{"$error":"#N/A"}},null,null,null,null,null,null,null,"EUR",null,null,null,{"$error":"#DIV/0!"},0,0,null,"","","","","","","","","","",null,null,null,null,null,null,null,null,null,null,null,null,null,null,6,"None","Parcel","ZWO"]
[null,null,null,null,null,null,null,null,null,null,null,null,null,null,{"$f":"VLOOKUP(N495,Tabel10[[korte omschrijving]:[MCC3_CODE]],2,0)","v":{"$error":"#N/A"}},{"$f":"VLOOKUP(N495,Tabel10[],3,0)","v":{"$error":"#N/A"}},null,null,null,null,null,null,null,"EUR",null,null,null,{"$error":"#DIV/0!"},0,0,null,"","","","","","","","","","",null,null,null,null,null,null,null,null,null,null,null,null,null,null,6,"None","Parcel","ZWO"]
[null,null,null,null,null,null,null,null,null,null,null,null,null,null,{"$f":"VLOOKUP(N496,Tabel10[[korte omschrijving]:[MCC3_CODE]],2,0)","v":{"$error":"#N/A"}},{"$f":"VLOOKUP(N496,Tabel10[],3,0)","v":{"$error":"#N/A"}},null,null,null,null,null,null,null,"EUR",null,null,null,{"$error":"#DIV/0!"},0,0,null,"","","","","","","","","","",null,null,null,null,null,null,null,null,null,null,null,null,null,null,6,"None","Parcel","ZWO"]
[null,null,null,null,null,null,null,null,null,null,null,null,null,null,{"$f":"VLOOKUP(N497,Tabel10[[korte omschrijving]:[MCC3_CODE]],2,0)","v":{"$error":"#N/A"}},{"$f":"VLOOKUP(N497,Tabel10[],3,0)","v":{"$error":"#N/A"}},null,null,null,null,null,null,null,"EUR",null,null,null,{"$error":"#DIV/0!"},0,0,null,"","","","","","","","","","",null,null,null,null,null,null,null,null,null,null,null,null,null,null,6,"None","Parcel","ZWO"]
[null,null,null,null,null,null,null,null,null,null,null,null,null,null,{"$f":"VLOOKUP(N498,Tabel10[[korte omschrijving]:[MCC3_CODE]],2,0)","v":{"$error":"#N/A"}},{"$f":"VLOOKUP(N498,Tabel10[],3,0)","v":{"$error":"#N/A"}},null,null,null,null,null,null,null,"EUR",null,null,null,{"$error":"#DIV/0!"},0,0,null,"","","","","","","","","","",null,null,null,null,null,null,null,null,null,null,null,null,null,null,6,"None","Parcel","ZWO"]
[null,null,null,null,null,null,null,null,null,null,null,null,null,null,{"$f":"VLOOKUP(N499,Tabel10[[korte omschrijving]:[MCC3_CODE]],2,0)","v":{"$error":"#N/A"}},{"$f":"VLOOKUP(N499,Tabel10[],3,0)","v":{"$error":"#N/A"}},null,null,null,null,null,null,null,"EUR",null,null,null,{"$error":"#DIV/0!"},0,0,null,"","","","","","","","","","",null,null,null,null,null,null,null,null,null,null,null,null,null,null,6,"None","Parcel","ZWO"]
[null,null,null,null,null,null,null,null,null,null,null,null,null,null,{"$f":"VLOOKUP(N500,Tabel10[[korte omschrijving]:[MCC3_CODE]],2,0)","v":{"$error":"#N/A"}},{"$f":"VLOOKUP(N500,Tabel10[],3,0)","v":{"$error":"#N/A"}},null,null,null,null,null,null,null,"EUR",null,null,null,{"$error":"#DIV/0!"},0,0,null,"","","","","","","","","","",null,null,null,null,null,null,null,null,null,null,null,null,null,null,6,"None","Parcel","ZWO"]
[null,null,null,null,null,null,null,null,null,null,null,null,null,null,{"$f":"VLOOKUP(N501,Tabel10[[korte omschrijving]:[MCC3_CODE]],2,0)","v":{"$error":"#N/A"}},{"$f":"VLOOKUP(N501,Tabel10[],3,0)","v":{"$error":"#N/A"}},null,null,null,null,null,null,null,"EUR",null,null,null,{"$error":"#DIV/0!"},0,0,null,"","","","","","","","","","",null,null,null,null,null,null,null,null,null,null,null,null,null,null,6,"None","Parcel","ZWO"]
[null,null,null,null,null,null,null,null,null,null,null,null,null,null,{"$f":"VLOOKUP(N502,Tabel10[[korte omschrijving]:[MCC3_CODE]],2,0)","v":{"$error":"#N/A"}},{"$f":"VLOOKUP(N502,Tabel10[],3,0)","v":{"$error":"#N/A"}},null,null,null,null,null,null,null,"EUR",null,null,null,{"$error":"#DIV/0!"},0,0,null,"","","","","","","","","","",null,null,null,null,null,null,null,null,null,null,null,null,null,null,6,"None","Parcel","ZWO"]
[null,null,null,null,null,null,null,null,null,null,null,null,null,null,{"$f":"VLOOKUP(N503,Tabel10[[korte omschrijving]:[MCC3_CODE]],2,0)","v":{"$error":"#N/A"}},{"$f":"VLOOKUP(N503,Tabel10[],3,0)","v":{"$error":"#N/A"}},null,null,null,null,null,null,null,"EUR",null,null,null,{"$error":"#DIV/0!"},0,0,null,"","","","","","","","","","",null,null,null,null,null,null,null,null,null,null,null,null,null,null,6,"None","Parcel","ZWO"]
[null,null,null,null,null,null,null,null,null,null,null,null,null,null,{"$f":"VLOOKUP(N504,Tabel10[[korte omschrijving]:[MCC3_CODE]],2,0)","v":{"$error":"#N/A"}},{"$f":"VLOOKUP(N504,Tabel10[],3,0)","v":{"$error":"#N/A"}},null,null,null,null,null,null,null,"EUR",null,null,null,{"$error":"#DIV/0!"},0,0,null,"","","","","","","","","","",null,null,null,null,null,null,null,null,null,null,null,null,null,null,6,"None","Parcel","ZWO"]
[null,null,null,null,null,null,null,null,null,null,null,null,null,null,{"$f":"VLOOKUP(N505,Tabel10[[korte omschrijving]:[MCC3_CODE]],2,0)","v":{"$error":"#N/A"}},{"$f":"VLOOKUP(N505,Tabel10[],3,0)","v":{"$error":"#N/A"}},null,null,null,null,null,null,null,"EUR",null,null,null,{"$error":"#DIV/0!"},0,0,null,"","","","","","","","","","",null,null,null,null,null,null,null,null,null,null,null,null,null,null,6,"None","Parcel","ZWO"]
[null,null,null,null,null,null,null,null,null,null,null,null,null,null,{"$f":"VLOOKUP(N506,Tabel10[[korte omschrijving]:[MCC3_CODE]],2,0)","v":{"$error":"#N/A"}},{"$f":"VLOOKUP(N506,Tabel10[],3,0)","v":{"$error":"#N/A"}},null,null,null,null,null,null,null,"EUR",null,null,null,{"$error":"#DIV/0!"},0,0,null,"","","","","","","","","","",null,null,null,null,null,null,null,null,null,null,null,null,null,null,6,"None","Parcel","ZWO"]
[null,null,null,null,null,null,null,null,null,null,null,null,null,null,{"$f":"VLOOKUP(N507,Tabel10[[korte omschrijving]:[MCC3_CODE]],2,0)","v":{"$error":"#N/A"}},{"$f":"VLOOKUP(N507,Tabel10[],3,0)","v":{"$error":"#N/A"}},null,null,null,null,null,null,null,"EUR",null,null,null,{"$error":"#DIV/0!"},0,0,null,"","","","","","","","","","",null,null,null,null,null,null,null,null,null,null,null,null,null,null,6,"None","Parcel","ZWO"]
[null,null,null,null,null,null,null,null,null,null,null,null,null,null,{"$f":"VLOOKUP(N508,Tabel10[[korte omschrijving]:[MCC3_CODE]],2,0)","v":{"$error":"#N/A"}},{"$f":"VLOOKUP(N508,Tabel10[],3,0)","v":{"$error":"#N/A"}},null,null,null,null,null,null,null,"EUR",null,null,null,{"$error":"#DIV/0!"},0,0,null,"","","","","","","","","","",null,null,null,null,null,null,null,null,null,null,null,null,null,null,6,"None","Parcel","ZWO"]
[null,null,null,null,null,null,null,null,null,null,null,null,null,null,{"$f":"VLOOKUP(N509,Tabel10[[korte omschrijving]:[MCC3_CODE]],2,0)","v":{"$error":"#N/A"}},{"$f":"VLOOKUP(N509,Tabel10[],3,0)","v":{"$error":"#N/A"}},null,null,null,null,null,null,null,"EUR",null,null,null,{"$error":"#DIV/0!"},0,0,null,"","","","","","","","","","",null,null,null,null,null,null,null,null,null,null,null,null,null,null,6,"None","Parcel","ZWO"]
[null,null,null,null,null,null,null,null,null,null,null,null,null,null,{"$f":"VLOOKUP(N510,Tabel10[[korte omschrijving]:[MCC3_CODE]],2,0)","v":{"$error":"#N/A"}},{"$f":"VLOOKUP(N510,Tabel10[],3,0)","v":{"$error":"#N/A"}},null,null,null,null,null,null,null,"EUR",null,null,null,{"$error":"#DIV/0!"},0,0,null,"","","","","","","","","","",null,null,null,null,null,null,null,null,null,null,null,null,null,null,6,"None","Parcel","ZWO"]
[null,null,null,null,null,null,null,null,null,null,null,null,null,null,{"$f":"VLOOKUP(N511,Tabel10[[korte omschrijving]:[MCC3_CODE]],2,0)","v":{"$error":"#N/A"}},{"$f":"VLOOKUP(N511,Tabel10[],3,0)","v":{"$error":"#N/A"}},null,null,null,null,null,null,null,"EUR",null,null,null,{"$error":"#DIV/0!"},0,0,null,"","","","","","","","","","",null,null,null,null,null,null,null,null,null,null,null,null,null,null,6,"None","Parcel","ZWO"]
[null,null,null,null,null,null,null,null,null,null,null,null,null,null,{"$f":"VLOOKUP(N512,Tabel10[[korte omschrijving]:[MCC3_CODE]],2,0)","v":{"$error":"#N/A"}},{"$f":"VLOOKUP(N512,Tabel10[],3,0)","v":{"$error":"#N/A"}},null,null,null,null,null,null,null,"EUR",null,null,null,{"$error":"#DIV/0!"},0,0,null,"","","","","","","","","","",null,null,null,null,null,null,null,null,null,null,null,null,null,null,6,"None","Parcel","ZWO"]
[null,null,null,null,null,null,null,null,null,null,null,null,null,null,{"$f":"VLOOKUP(N513,Tabel10[[korte omschrijving]:[MCC3_CODE]],2,0)","v":{"$error":"#N/A"}},{"$f":"VLOOKUP(N513,Tabel10[],3,0)","v":{"$error":"#N/A"}},null,null,null,null,null,null,null,"EUR",null,null,null,{"$error":"#DIV/0!"},0,0,null,"","","","","","","","","","",null,null,null,null,null,null,null,null,null,null,null,null,null,null,6,"None","Parcel","ZWO"]
[null,null,null,null,null,null,null,null,null,null,null,null,null,null,{"$f":"VLOOKUP(N514,Tabel10[[korte omschrijving]:[MCC3_CODE]],2,0)","v":{"$error":"#N/A"}},{"$f":"VLOOKUP(N514,Tabel10[],3,0)","v":{"$error":"#N/A"}},null,null,null,null,null,null,null,"EUR",null,null,null,{"$error":"#DIV/0!"},0,0,null,"","","","","","","","","","",null,null,null,null,null,null,null,null,null,null,null,null,null,null,6,"None","Parcel","ZWO"]
[null,null,null,null,null,null,null,null,null,null,null,null,null,null,{"$f":"VLOOKUP(N515,Tabel10[[korte omschrijving]:[MCC3_CODE]],2,0)","v":{"$error":"#N/A"}},{"$f":"VLOOKUP(N515,Tabel10[],3,0)","v":{"$error":"#N/A"}},null,null,null,null,null,null,null,"EUR",null,null,null,{"$error":"#DIV/0!"},0,0,null,"","","","","","","","","","",null,null,null,null,null,null,null,null,null,null,null,null,null,null,6,"None","Parcel","ZWO"]
[null,null,null,null,null,null,null,null,null,null,null,null,null,null,{"$f":"VLOOKUP(N516,Tabel10[[korte omschrijving]:[MCC3_CODE]],2,0)","v":{"$error":"#N/A"}},{"$f":"VLOOKUP(N516,Tabel10[],3,0)","v":{"$error":"#N/A"}},null,null,null,null,null,null,null,"EUR",null,null,null,{"$error":"#DIV/0!"},0,0,null,"","","","","","","","","","",null,null,null,null,null,null,null,null,null,null,null,null,null,null,6,"None","Parcel","ZWO"]
[null,null,null,null,null,null,null,null,null,null,null,null,null,null,{"$f":"VLOOKUP(N517,Tabel10[[korte omschrijving]:[MCC3_CODE]],2,0)","v":{"$error":"#N/A"}},{"$f":"VLOOKUP(N517,Tabel10[],3,0)","v":{"$error":"#N/A"}},null,null,null,null,null,null,null,"EUR",null,null,null,{"$error":"#DIV/0!"},0,0,null,"","","","","","","","","","",null,null,null,null,null,null,null,null,null,null,null,null,null,null,6,"None","Parcel","ZWO"]
[null,null,null,null,null,null,null,null,null,null,null,null,null,null,{"$f":"VLOOKUP(N518,Tabel10[[korte omschrijving]:[MCC3_CODE]],2,0)","v":{"$error":"#N/A"}},{"$f":"VLOOKUP(N518,Tabel10[],3,0)","v":{"$error":"#N/A"}},null,null,null,null,null,null,null,"EUR",null,null,null,{"$error":"#DIV/0!"},0,0,null,"","","","","","","","","","",null,null,null,null,null,null,null,null,null,null,null,null,null,null,6,"None","Parcel","ZWO"]
[null,null,null,null,null,null,null,null,null,null,null,null,null,null,{"$f":"VLOOKUP(N519,Tabel10[[korte omschrijving]:[MCC3_CODE]],2,0)","v":{"$error":"#N/A"}},{"$f":"VLOOKUP(N519,Tabel10[],3,0)","v":{"$error":"#N/A"}},null,null,null,null,null,null,null,"EUR",null,null,null,{"$f":"AA519/Y519","v":{"$error":"#DIV/0!"}},{"$f":"T519*Y519","v":0},{"$f":"T519*AA519","v":0},null,{"$f":"IF(AE519 <> \"\",\n    IF(ISNUMBER(VALUE(LEFT(AE519, FIND(\"%\", AE519)-1))),\n        VALUE(LEFT(AE519, FIND(\"%\", AE519)-1)),\n        \"Invalid format\"),\n    \"\")","v":""},{"$f":"IF(AE519 <> \"\",\n    IF(ISNUMBER(VALUE(LEFT(AE519, FIND(\"%\", AE519)-1))) * ISNUMBER(FIND(\"%\", AE519 & \"wol\")) > 0,\n        TRIM(MID(AE519, FIND(\"%\", AE519)+1, FIND(\"/\", AE519 & \"/\")-FIND(\"%\", AE519)-1)),\n        \"Invalid format\"),\n    \"\")","v":""},{"$f":"IF(AE519 <> \"\",\n    IF(ISNUMBER(VALUE(MID(AE519, FIND(\"/\", AE519) + 1, FIND(\"%\", AE519, FIND(\"/\", AE519)) - FIND(\"/\", AE519) - 1))),\n        VALUE(MID(AE519, FIND(\"/\", AE519) + 1, FIND(\"%\", AE519, FIND(\"/\", AE519)) - FIND(\"/\", AE519) - 1)),\n        \"\"),\n    \"\")","v":""},{"$f":"IF(AE519 <> \"\",\n    IFERROR(TRIM(MID(AE519, FIND(\"%\", AE519, FIND(\"/\", AE519)+1)+2,\n        IFERROR(FIND(\"/\", AE519 & \"/\", FIND(\"/\", AE519)+1)-FIND(\"%\", AE519, FIND(\"/\", AE519)+1)-2, LEN(AE519)-FIND(\"%\", AE519, FIND(\"/\", AE519)+1)-1))),\n        \"\"),\n    \"\")","v":""},{"$f":"IF(AE519 <> \"\",\n    IF(ISNUMBER(VALUE(MID(AE519, FIND(\"/\", AE519, FIND(\"/\", AE519)+1) + 1, FIND(\"%\", AE519, FIND(\"/\", AE519, FIND(\"/\", AE519)+1)) - FIND(\"/\", AE519, FIND(\"/\", AE519)+1) - 1))),\n        VALUE(MID(AE519, FIND(\"/\", AE519, FIND(\"/\", AE519)+1) + 1, FIND(\"%\", AE519, FIND(\"/\", AE519, FIND(\"/\", AE519)+1)) - FIND(\"/\", AE519, FIND(\"/\", AE519)+1) - 1)),\n        \"\"),\n    \"\")","v":""},{"$f":"IF(AE519 <> \"\",\n    IFERROR(\n        TRIM(MID(AE519,\n            FIND(\"%\", AE519, FIND(\"%\", AE519, FIND(\"%\", AE519)+1)+1)+1,\n            FIND(\"/\", AE519 & \"/\", FIND(\"%\", AE519, FIND(\"%\", AE519, FIND(\"%\", AE519)+1)+1))-FIND(\"%\", AE519, FIND(\"%\", AE519, FIND(\"%\", AE519)+1)+1)-1)\n        ),\n        \"\"\n    ),\n    \"\"\n)","v":""},{"$f":"IF(AE519 <> \"\",\n    IF(ISNUMBER(VALUE(MID(AE519, FIND(\"/\", AE519, FIND(\"/\", AE519, FIND(\"/\", AE519)+1)+1) + 1, FIND(\"%\", AE519, FIND(\"/\", AE519, FIND(\"/\", AE519, FIND(\"/\", AE519)+1)+1)) - FIND(\"/\", AE519, FIND(\"/\", AE519, FIND(\"/\", AE519)+1)+1) - 1))),\n        VALUE(MID(AE519, FIND(\"/\", AE519, FIND(\"/\", AE519, FIND(\"/\", AE519)+1)+1) + 1, FIND(\"%\", AE519, FIND(\"/\", AE519, FIND(\"/\", AE519, FIND(\"/\", AE519)+1)+1)) - FIND(\"/\", AE519, FIND(\"/\", AE519, FIND(\"/\", AE519)+1)+1) - 1)),\n        \"\"),\n    \"\")","v":""},{"$f":"IF(AE519 <> \"\",\n    IFERROR(TRIM(MID(AE519, FIND(\"%\", AE519, FIND(\"/\", AE519, FIND(\"/\", AE519, FIND(\"/\", AE519)+1)+1)+1)+2,\n        IFERROR(FIND(\"/\", AE519, FIND(\"/\", AE519, FIND(\"/\", AE519, FIND(\"/\", AE519)+1)+1)+1)-FIND(\"%\", AE519, FIND(\"/\", AE519, FIND(\"/\", AE519, FIND(\"/\", AE519)+1)+1)+1)-2, LEN(AE519)-FIND(\"%\", AE519, FIND(\"/\", AE519, FIND(\"/\", AE519, FIND(\"/\", AE519)+1)+1)+1)-1))),\n        \"\"),\n    \"\")","v":""},{"$f":"IF(AE519 <> \"\",\n    IF(ISNUMBER(VALUE(MID(AE519, FIND(\"/\", AE519, FIND(\"/\", AE519, FIND(\"/\", AE519, FIND(\"/\", AE519)+1)+1)+1) + 1, FIND(\"%\", AE519, FIND(\"/\", AE519, FIND(\"/\", AE519, FIND(\"/\", AE519, FIND(\"/\", AE519)+1)+1)+1)) - FIND(\"/\", AE519, FIND(\"/\", AE519, FIND(\"/\", AE519, FIND(\"/\", AE519)+1)+1)+1) - 1))),\n        VALUE(MID(AE519, FIND(\"/\", AE519, FIND(\"/\", AE519, FIND(\"/\", AE519, FIND(\"/\", AE519)+1)+1)+1) + 1, FIND(\"%\", AE519, FIND(\"/\", AE519, FIND(\"/\", AE519, FIND(\"/\", AE519, FIND(\"/\", AE519)+1)+1)+1)) - FIND(\"/\", AE519, FIND(\"/\", AE519, FIND(\"/\", AE519, FIND(\"/\", AE519)+1)+1)+1) - 1)),\n        \"\"),\n    \"\")","v":""},{"$f":"IF(AE519 = \"\", \"\",\n    IFERROR(TRIM(\n        MID(\n            AE519,\n            FIND(\"%\", AE519, FIND(\"/\", AE519, FIND(\"/\", AE519, FIND(\"/\", AE519, FIND(\"/\", AE519)+1)+1)+1)+1) + 1,\n            FIND(\"/\", AE519 & \"/\", FIND(\"%\", AE519, FIND(\"/\", AE519, FIND(\"/\", AE519, FIND(\"/\", AE519, FIND(\"/\", AE519)+1)+1)+1)+1)) -\n            FIND(\"%\", AE519, FIND(\"/\", AE519, FIND(\"/\", AE519, FIND(\"/\", AE519, FIND(\"/\", AE519)+1)+1)+1)+1) - 1\n        )\n    ),\n    \"\")\n)","v":""},null,null,null,null,null,null,null,null,null,null,null,null,null,null,6,"None","Parcel","ZWO"]
[null,null,null,null,null,null,null,null,null,null,null,null,null,null,{"$f":"VLOOKUP(N520,Tabel10[[korte omschrijving]:[MCC3_CODE]],2,0)","v":{"$error":"#N/A"}},{"$f":"VLOOKUP(N520,Tabel10[],3,0)","v":{"$error":"#N/A"}},null,null,null,null,null,null,null,"EUR",null,null,null,{"$error":"#DIV/0!"},0,0,null,"","","","","","","","","","",null,null,null,null,null,null,null,null,null,null,null,null,null,null,6,"None","Parcel","ZWO"]
[null,null,null,null,null,null,null,null,null,null,null,null,null,null,{"$f":"VLOOKUP(N521,Tabel10[[korte omschrijving]:[MCC3_CODE]],2,0)","v":{"$error":"#N/A"}},{"$f":"VLOOKUP(N521,Tabel10[],3,0)","v":{"$error":"#N/A"}},null,null,null,null,null,null,null,"EUR",null,null,null,{"$error":"#DIV/0!"},0,0,null,"","","","","","","","","","",null,null,null,null,null,null,null,null,null,null,null,null,null,null,6,"None","Parcel","ZWO"]
[null,null,null,null,null,null,null,null,null,null,null,null,null,null,{"$f":"VLOOKUP(N522,Tabel10[[korte omschrijving]:[MCC3_CODE]],2,0)","v":{"$error":"#N/A"}},{"$f":"VLOOKUP(N522,Tabel10[],3,0)","v":{"$error":"#N/A"}},null,null,null,null,null,null,null,"EUR",null,null,null,{"$error":"#DIV/0!"},0,0,null,"","","","","","","","","","",null,null,null,null,null,null,null,null,null,null,null,null,null,null,6,"None","Parcel","ZWO"]
[null,null,null,null,null,null,null,null,null,null,null,null,null,null,{"$f":"VLOOKUP(N523,Tabel10[[korte omschrijving]:[MCC3_CODE]],2,0)","v":{"$error":"#N/A"}},{"$f":"VLOOKUP(N523,Tabel10[],3,0)","v":{"$error":"#N/A"}},null,null,null,null,null,null,null,"EUR",null,null,null,{"$error":"#DIV/0!"},0,0,null,"","","","","","","","","","",null,null,null,null,null,null,null,null,null,null,null,null,null,null,6,"None","Parcel","ZWO"]
[null,null,null,null,null,null,null,null,null,null,null,null,null,null,{"$f":"VLOOKUP(N524,Tabel10[[korte omschrijving]:[MCC3_CODE]],2,0)","v":{"$error":"#N/A"}},{"$f":"VLOOKUP(N524,Tabel10[],3,0)","v":{"$error":"#N/A"}},null,null,null,null,null,null,null,"EUR",null,null,null,{"$error":"#DIV/0!"},0,0,null,"","","","","","","","","","",null,null,null,null,null,null,null,null,null,null,null,null,null,null,6,"None","Parcel","ZWO"]
[null,null,null,null,null,null,null,null,null,null,null,null,null,null,{"$f":"VLOOKUP(N525,Tabel10[[korte omschrijving]:[MCC3_CODE]],2,0)","v":{"$error":"#N/A"}},{"$f":"VLOOKUP(N525,Tabel10[],3,0)","v":{"$error":"#N/A"}},null,null,null,null,null,null,null,"EUR",null,null,null,{"$error":"#DIV/0!"},0,0,null,"","","","","","","","","","",null,null,null,null,null,null,null,null,null,null,null,null,null,null,6,"None","Parcel","ZWO"]
[null,null,null,null,null,null,null,null,null,null,null,null,null,null,{"$f":"VLOOKUP(N526,Tabel10[[korte omschrijving]:[MCC3_CODE]],2,0)","v":{"$error":"#N/A"}},{"$f":"VLOOKUP(N526,Tabel10[],3,0)","v":{"$error":"#N/A"}},null,null,null,null,null,null,null,"EUR",null,null,null,{"$error":"#DIV/0!"},0,0,null,"","","","","","","","","","",null,null,null,null,null,null,null,null,null,null,null,null,null,null,6,"None","Parcel","ZWO"]
[null,null,null,null,null,null,null,null,null,null,null,null,null,null,{"$f":"VLOOKUP(N527,Tabel10[[korte omschrijving]:[MCC3_CODE]],2,0)","v":{"$error":"#N/A"}},{"$f":"VLOOKUP(N527,Tabel10[],3,0)","v":{"$error":"#N/A"}},null,null,null,null,null,null,null,"EUR",null,null,null,{"$error":"#DIV/0!"},0,0,null,"","","","","","","","","","",null,null,null,null,null,null,null,null,null,null,null,null,null,null,6,"None","Parcel","ZWO"]
[null,null,null,null,null,null,null,null,null,null,null,null,null,null,{"$f":"VLOOKUP(N528,Tabel10[[korte omschrijving]:[MCC3_CODE]],2,0)","v":{"$error":"#N/A"}},{"$f":"VLOOKUP(N528,Tabel10[],3,0)","v":{"$error":"#N/A"}},null,null,null,null,null,null,null,"EUR",null,null,null,{"$error":"#DIV/0!"},0,0,null,"","","","","","","","","","",null,null,null,null,null,null,null,null,null,null,null,null,null,null,6,"None","Parcel","ZWO"]
[null,null,null,null,null,null,null,null,null,null,null,null,null,null,{"$f":"VLOOKUP(N529,Tabel10[[korte omschrijving]:[MCC3_CODE]],2,0)","v":{"$error":"#N/A"}},{"$f":"VLOOKUP(N529,Tabel10[],3,0)","v":{"$error":"#N/A"}},null,null,null,null,null,null,null,"EUR",null,null,null,{"$error":"#DIV/0!"},0,0,null,"","","","","","","","","","",null,null,null,null,null,null,null,null,null,null,null,null,null,null,6,"None","Parcel","ZWO"]
[null,null,null,null,null,null,null,null,null,null,null,null,null,null,{"$f":"VLOOKUP(N530,Tabel10[[korte omschrijving]:[MCC3_CODE]],2,0)","v":{"$error":"#N/A"}},{"$f":"VLOOKUP(N530,Tabel10[],3,0)","v":{"$error":"#N/A"}},null,null,null,null,null,null,null,"EUR",null,null,null,{"$error":"#DIV/0!"},0,0,null,"","","","","","","","","","",null,null,null,null,null,null,null,null,null,null,null,null,null,null,6,"None","Parcel","ZWO"]
[null,null,null,null,null,null,null,null,null,null,null,null,null,null,{"$f":"VLOOKUP(N531,Tabel10[[korte omschrijving]:[MCC3_CODE]],2,0)","v":{"$error":"#N/A"}},{"$f":"VLOOKUP(N531,Tabel10[],3,0)","v":{"$error":"#N/A"}},null,null,null,null,null,null,null,"EUR",null,null,null,{"$error":"#DIV/0!"},0,0,null,"","","","","","","","","","",null,null,null,null,null,null,null,null,null,null,null,null,null,null,6,"None","Parcel","ZWO"]
[null,null,null,null,null,null,null,null,null,null,null,null,null,null,{"$f":"VLOOKUP(N532,Tabel10[[korte omschrijving]:[MCC3_CODE]],2,0)","v":{"$error":"#N/A"}},{"$f":"VLOOKUP(N532,Tabel10[],3,0)","v":{"$error":"#N/A"}},null,null,null,null,null,null,null,"EUR",null,null,null,{"$error":"#DIV/0!"},0,0,null,"","","","","","","","","","",null,null,null,null,null,null,null,null,null,null,null,null,null,null,6,"None","Parcel","ZWO"]
[null,null,null,null,null,null,null,null,null,null,null,null,null,null,{"$f":"VLOOKUP(N533,Tabel10[[korte omschrijving]:[MCC3_CODE]],2,0)","v":{"$error":"#N/A"}},{"$f":"VLOOKUP(N533,Tabel10[],3,0)","v":{"$error":"#N/A"}},null,null,null,null,null,null,null,"EUR",null,null,null,{"$error":"#DIV/0!"},0,0,null,"","","","","","","","","","",null,null,null,null,null,null,null,null,null,null,null,null,null,null,6,"None","Parcel","ZWO"]
[null,null,null,null,null,null,null,null,null,null,null,null,null,null,{"$f":"VLOOKUP(N534,Tabel10[[korte omschrijving]:[MCC3_CODE]],2,0)","v":{"$error":"#N/A"}},{"$f":"VLOOKUP(N534,Tabel10[],3,0)","v":{"$error":"#N/A"}},null,null,null,null,null,null,null,"EUR",null,null,null,{"$error":"#DIV/0!"},0,0,null,"","","","","","","","","","",null,null,null,null,null,null,null,null,null,null,null,null,null,null,6,"None","Parcel","ZWO"]
[null,null,null,null,null,null,null,null,null,null,null,null,null,null,{"$f":"VLOOKUP(N535,Tabel10[[korte omschrijving]:[MCC3_CODE]],2,0)","v":{"$error":"#N/A"}},{"$f":"VLOOKUP(N535,Tabel10[],3,0)","v":{"$error":"#N/A"}},null,null,null,null,null,null,null,"EUR",null,null,null,{"$error":"#DIV/0!"},0,0,null,"","","","","","","","","","",null,null,null,null,null,null,null,null,null,null,null,null,null,null,6,"None","Parcel","ZWO"]
[null,null,null,null,null,null,null,null,null,null,null,null,null,null,{"$f":"VLOOKUP(N536,Tabel10[[korte omschrijving]:[MCC3_CODE]],2,0)","v":{"$error":"#N/A"}},{"$f":"VLOOKUP(N536,Tabel10[],3,0)","v":{"$error":"#N/A"}},null,null,null,null,null,null,null,"EUR",null,null,null,{"$error":"#DIV/0!"},0,0,null,"","","","","","","","","","",null,null,null,null,null,null,null,null,null,null,null,null,null,null,6,"None","Parcel","ZWO"]
[null,null,null,null,null,null,null,null,null,null,null,null,null,null,{"$f":"VLOOKUP(N537,Tabel10[[korte omschrijving]:[MCC3_CODE]],2,0)","v":{"$error":"#N/A"}},{"$f":"VLOOKUP(N537,Tabel10[],3,0)","v":{"$error":"#N/A"}},null,null,null,null,null,null,null,"EUR",null,null,null,{"$error":"#DIV/0!"},0,0,null,"","","","","","","","","","",null,null,null,null,null,null,null,null,null,null,null,null,null,null,6,"None","Parcel","ZWO"]
[null,null,null,null,null,null,null,null,null,null,null,null,null,null,{"$f":"VLOOKUP(N538,Tabel10[[korte omschrijving]:[MCC3_CODE]],2,0)","v":{"$error":"#N/A"}},{"$f":"VLOOKUP(N538,Tabel10[],3,0)","v":{"$error":"#N/A"}},null,null,null,null,null,null,null,"EUR",null,null,null,{"$error":"#DIV/0!"},0,0,null,"","","","","","","","","","",null,null,null,null,null,null,null,null,null,null,null,null,null,null,6,"None","Parcel","ZWO"]
[null,null,null,null,null,null,null,null,null,null,null,null,null,null,{"$f":"VLOOKUP(N539,Tabel10[[korte omschrijving]:[MCC3_CODE]],2,0)","v":{"$error":"#N/A"}},{"$f":"VLOOKUP(N539,Tabel10[],3,0)","v":{"$error":"#N/A"}},null,null,null,null,null,null,null,"EUR",null,null,null,{"$error":"#DIV/0!"},0,0,null,"","","","","","","","","","",null,null,null,null,null,null,null,null,null,null,null,null,null,null,6,"None","Parcel","ZWO"]
[null,null,null,null,null,null,null,null,null,null,null,null,null,null,{"$f":"VLOOKUP(N540,Tabel10[[korte omschrijving]:[MCC3_CODE]],2,0)","v":{"$error":"#N/A"}},{"$f":"VLOOKUP(N540,Tabel10[],3,0)","v":{"$error":"#N/A"}},null,null,null,null,null,null,null,"EUR",null,null,null,{"$error":"#DIV/0!"},0,0,null,"","","","","","","","","","",null,null,null,null,null,null,null,null,null,null,null,null,null,null,6,"None","Parcel","ZWO"]
[null,null,null,null,null,null,null,null,null,null,null,null,null,null,{"$f":"VLOOKUP(N541,Tabel10[[korte omschrijving]:[MCC3_CODE]],2,0)","v":{"$error":"#N/A"}},{"$f":"VLOOKUP(N541,Tabel10[],3,0)","v":{"$error":"#N/A"}},null,null,null,null,null,null,null,"EUR",null,null,null,{"$error":"#DIV/0!"},0,0,null,"","","","","","","","","","",null,null,null,null,null,null,null,null,null,null,null,null,null,null,6,"None","Parcel","ZWO"]
[null,null,null,null,null,null,null,null,null,null,null,null,null,null,{"$f":"VLOOKUP(N542,Tabel10[[korte omschrijving]:[MCC3_CODE]],2,0)","v":{"$error":"#N/A"}},{"$f":"VLOOKUP(N542,Tabel10[],3,0)","v":{"$error":"#N/A"}},null,null,null,null,null,null,null,"EUR",null,null,null,{"$error":"#DIV/0!"},0,0,null,"","","","","","","","","","",null,null,null,null,null,null,null,null,null,null,null,null,null,null,6,"None","Parcel","ZWO"]
[null,null,null,null,null,null,null,null,null,null,null,null,null,null,{"$f":"VLOOKUP(N543,Tabel10[[korte omschrijving]:[MCC3_CODE]],2,0)","v":{"$error":"#N/A"}},{"$f":"VLOOKUP(N543,Tabel10[],3,0)","v":{"$error":"#N/A"}},null,null,null,null,null,null,null,"EUR",null,null,null,{"$error":"#DIV/0!"},0,0,null,"","","","","","","","","","",null,null,null,null,null,null,null,null,null,null,null,null,null,null,6,"None","Parcel","ZWO"]
[null,null,null,null,null,null,null,null,null,null,null,null,null,null,{"$f":"VLOOKUP(N544,Tabel10[[korte omschrijving]:[MCC3_CODE]],2,0)","v":{"$error":"#N/A"}},{"$f":"VLOOKUP(N544,Tabel10[],3,0)","v":{"$error":"#N/A"}},null,null,null,null,null,null,null,"EUR",null,null,null,{"$error":"#DIV/0!"},0,0,null,"","","","","","","","","","",null,null,null,null,null,null,null,null,null,null,null,null,null,null,6,"None","Parcel","ZWO"]
[null,null,null,null,null,null,null,null,null,null,null,null,null,null,{"$f":"VLOOKUP(N545,Tabel10[[korte omschrijving]:[MCC3_CODE]],2,0)","v":{"$error":"#N/A"}},{"$f":"VLOOKUP(N545,Tabel10[],3,0)","v":{"$error":"#N/A"}},null,null,null,null,null,null,null,"EUR",null,null,null,{"$error":"#DIV/0!"},0,0,null,"","","","","","","","","","",null,null,null,null,null,null,null,null,null,null,null,null,null,null,6,"None","Parcel","ZWO"]
[null,null,null,null,null,null,null,null,null,null,null,null,null,null,{"$f":"VLOOKUP(N546,Tabel10[[korte omschrijving]:[MCC3_CODE]],2,0)","v":{"$error":"#N/A"}},{"$f":"VLOOKUP(N546,Tabel10[],3,0)","v":{"$error":"#N/A"}},null,null,null,null,null,null,null,"EUR",null,null,null,{"$error":"#DIV/0!"},0,0,null,"","","","","","","","","","",null,null,null,null,null,null,null,null,null,null,null,null,null,null,6,"None","Parcel","ZWO"]
[null,null,null,null,null,null,null,null,null,null,null,null,null,null,{"$f":"VLOOKUP(N547,Tabel10[[korte omschrijving]:[MCC3_CODE]],2,0)","v":{"$error":"#N/A"}},{"$f":"VLOOKUP(N547,Tabel10[],3,0)","v":{"$error":"#N/A"}},null,null,null,null,null,null,null,"EUR",null,null,null,{"$error":"#DIV/0!"},0,0,null,"","","","","","","","","","",null,null,null,null,null,null,null,null,null,null,null,null,null,null,6,"None","Parcel","ZWO"]
[null,null,null,null,null,null,null,null,null,null,null,null,null,null,{"$f":"VLOOKUP(N548,Tabel10[[korte omschrijving]:[MCC3_CODE]],2,0)","v":{"$error":"#N/A"}},{"$f":"VLOOKUP(N548,Tabel10[],3,0)","v":{"$error":"#N/A"}},null,null,null,null,null,null,null,"EUR",null,null,null,{"$error":"#DIV/0!"},0,0,null,"","","","","","","","","","",null,null,null,null,null,null,null,null,null,null,null,null,null,null,6,"None","Parcel","ZWO"]
[null,null,null,null,null,null,null,null,null,null,null,null,null,null,{"$f":"VLOOKUP(N549,Tabel10[[korte omschrijving]:[MCC3_CODE]],2,0)","v":{"$error":"#N/A"}},{"$f":"VLOOKUP(N549,Tabel10[],3,0)","v":{"$error":"#N/A"}},null,null,null,null,null,null,null,"EUR",null,null,null,{"$error":"#DIV/0!"},0,0,null,"","","","","","","","","","",null,null,null,null,null,null,null,null,null,null,null,null,null,null,6,"None","Parcel","ZWO"]
[null,null,null,null,null,null,null,null,null,null,null,null,null,null,{"$f":"VLOOKUP(N550,Tabel10[[korte omschrijving]:[MCC3_CODE]],2,0)","v":{"$error":"#N/A"}},{"$f":"VLOOKUP(N550,Tabel10[],3,0)","v":{"$error":"#N/A"}},null,null,null,null,null,null,null,"EUR",null,null,null,{"$error":"#DIV/0!"},0,0,null,"","","","","","","","","","",null,null,null,null,null,null,null,null,null,null,null,null,null,null,6,"None","Parcel","ZWO"]
[null,null,null,null,null,null,null,null,null,null,null,null,null,null,{"$f":"VLOOKUP(N551,Tabel10[[korte omschrijving]:[MCC3_CODE]],2,0)","v":{"$error":"#N/A"}},{"$f":"VLOOKUP(N551,Tabel10[],3,0)","v":{"$error":"#N/A"}},null,null,null,null,null,null,null,"EUR",null,null,null,{"$error":"#DIV/0!"},0,0,null,"","","","","","","","","","",null,null,null,null,null,null,null,null,null,null,null,null,null,null,6,"None","Parcel","ZWO"]
[null,null,null,null,null,null,null,null,null,null,null,null,null,null,{"$f":"VLOOKUP(N552,Tabel10[[korte omschrijving]:[MCC3_CODE]],2,0)","v":{"$error":"#N/A"}},{"$f":"VLOOKUP(N552,Tabel10[],3,0)","v":{"$error":"#N/A"}},null,null,null,null,null,null,null,"EUR",null,null,null,{"$error":"#DIV/0!"},0,0,null,"","","","","","","","","","",null,null,null,null,null,null,null,null,null,null,null,null,null,null,6,"None","Parcel","ZWO"]
[null,null,null,null,null,null,null,null,null,null,null,null,null,null,{"$f":"VLOOKUP(N553,Tabel10[[korte omschrijving]:[MCC3_CODE]],2,0)","v":{"$error":"#N/A"}},{"$f":"VLOOKUP(N553,Tabel10[],3,0)","v":{"$error":"#N/A"}},null,null,null,null,null,null,null,"EUR",null,null,null,{"$error":"#DIV/0!"},0,0,null,"","","","","","","","","","",null,null,null,null,null,null,null,null,null,null,null,null,null,null,6,"None","Parcel","ZWO"]
[null,null,null,null,null,null,null,null,null,null,null,null,null,null,{"$f":"VLOOKUP(N554,Tabel10[[korte omschrijving]:[MCC3_CODE]],2,0)","v":{"$error":"#N/A"}},{"$f":"VLOOKUP(N554,Tabel10[],3,0)","v":{"$error":"#N/A"}},null,null,null,null,null,null,null,"EUR",null,null,null,{"$error":"#DIV/0!"},0,0,null,"","","","","","","","","","",null,null,null,null,null,null,null,null,null,null,null,null,null,null,6,"None","Parcel","ZWO"]
[null,null,null,null,null,null,null,null,null,null,null,null,null,null,{"$f":"VLOOKUP(N555,Tabel10[[korte omschrijving]:[MCC3_CODE]],2,0)","v":{"$error":"#N/A"}},{"$f":"VLOOKUP(N555,Tabel10[],3,0)","v":{"$error":"#N/A"}},null,null,null,null,null,null,null,"EUR",null,null,null,{"$error":"#DIV/0!"},0,0,null,"","","","","","","","","","",null,null,null,null,null,null,null,null,null,null,null,null,null,null,6,"None","Parcel","ZWO"]
[null,null,null,null,null,null,null,null,null,null,null,null,null,null,{"$f":"VLOOKUP(N556,Tabel10[[korte omschrijving]:[MCC3_CODE]],2,0)","v":{"$error":"#N/A"}},{"$f":"VLOOKUP(N556,Tabel10[],3,0)","v":{"$error":"#N/A"}},null,null,null,null,null,null,null,"EUR",null,null,null,{"$error":"#DIV/0!"},0,0,null,"","","","","","","","","","",null,null,null,null,null,null,null,null,null,null,null,null,null,null,6,"None","Parcel","ZWO"]
[null,null,null,null,null,null,null,null,null,null,null,null,null,null,{"$f":"VLOOKUP(N557,Tabel10[[korte omschrijving]:[MCC3_CODE]],2,0)","v":{"$error":"#N/A"}},{"$f":"VLOOKUP(N557,Tabel10[],3,0)","v":{"$error":"#N/A"}},null,null,null,null,null,null,null,"EUR",null,null,null,{"$error":"#DIV/0!"},0,0,null,"","","","","","","","","","",null,null,null,null,null,null,null,null,null,null,null,null,null,null,6,"None","Parcel","ZWO"]
[null,null,null,null,null,null,null,null,null,null,null,null,null,null,{"$f":"VLOOKUP(N558,Tabel10[[korte omschrijving]:[MCC3_CODE]],2,0)","v":{"$error":"#N/A"}},{"$f":"VLOOKUP(N558,Tabel10[],3,0)","v":{"$error":"#N/A"}},null,null,null,null,null,null,null,"EUR",null,null,null,{"$error":"#DIV/0!"},0,0,null,"","","","","","","","","","",null,null,null,null,null,null,null,null,null,null,null,null,null,null,6,"None","Parcel","ZWO"]
[null,null,null,null,null,null,null,null,null,null,null,null,null,null,{"$f":"VLOOKUP(N559,Tabel10[[korte omschrijving]:[MCC3_CODE]],2,0)","v":{"$error":"#N/A"}},{"$f":"VLOOKUP(N559,Tabel10[],3,0)","v":{"$error":"#N/A"}},null,null,null,null,null,null,null,"EUR",null,null,null,{"$error":"#DIV/0!"},0,0,null,"","","","","","","","","","",null,null,null,null,null,null,null,null,null,null,null,null,null,null,6,"None","Parcel","ZWO"]
[null,null,null,null,null,null,null,null,null,null,null,null,null,null,{"$f":"VLOOKUP(N560,Tabel10[[korte omschrijving]:[MCC3_CODE]],2,0)","v":{"$error":"#N/A"}},{"$f":"VLOOKUP(N560,Tabel10[],3,0)","v":{"$error":"#N/A"}},null,null,null,null,null,null,null,"EUR",null,null,null,{"$error":"#DIV/0!"},0,0,null,"","","","","","","","","","",null,null,null,null,null,null,null,null,null,null,null,null,null,null,6,"None","Parcel","ZWO"]
[null,null,null,null,null,null,null,null,null,null,null,null,null,null,{"$f":"VLOOKUP(N561,Tabel10[[korte omschrijving]:[MCC3_CODE]],2,0)","v":{"$error":"#N/A"}},{"$f":"VLOOKUP(N561,Tabel10[],3,0)","v":{"$error":"#N/A"}},null,null,null,null,null,null,null,"EUR",null,null,null,{"$error":"#DIV/0!"},0,0,null,"","","","","","","","","","",null,null,null,null,null,null,null,null,null,null,null,null,null,null,6,"None","Parcel","ZWO"]
[null,null,null,null,null,null,null,null,null,null,null,null,null,null,{"$f":"VLOOKUP(N562,Tabel10[[korte omschrijving]:[MCC3_CODE]],2,0)","v":{"$error":"#N/A"}},{"$f":"VLOOKUP(N562,Tabel10[],3,0)","v":{"$error":"#N/A"}},null,null,null,null,null,null,null,"EUR",null,null,null,{"$error":"#DIV/0!"},0,0,null,"","","","","","","","","","",null,null,null,null,null,null,null,null,null,null,null,null,null,null,6,"None","Parcel","ZWO"]
[null,null,null,null,null,null,null,null,null,null,null,null,null,null,{"$f":"VLOOKUP(N563,Tabel10[[korte omschrijving]:[MCC3_CODE]],2,0)","v":{"$error":"#N/A"}},{"$f":"VLOOKUP(N563,Tabel10[],3,0)","v":{"$error":"#N/A"}},null,null,null,null,null,null,null,"EUR",null,null,null,{"$error":"#DIV/0!"},0,0,null,"","","","","","","","","","",null,null,null,null,null,null,null,null,null,null,null,null,null,null,6,"None","Parcel","ZWO"]
[null,null,null,null,null,null,null,null,null,null,null,null,null,null,{"$f":"VLOOKUP(N564,Tabel10[[korte omschrijving]:[MCC3_CODE]],2,0)","v":{"$error":"#N/A"}},{"$f":"VLOOKUP(N564,Tabel10[],3,0)","v":{"$error":"#N/A"}},null,null,null,null,null,null,null,"EUR",null,null,null,{"$error":"#DIV/0!"},0,0,null,"","","","","","","","","","",null,null,null,null,null,null,null,null,null,null,null,null,null,null,6,"None","Parcel","ZWO"]
[null,null,null,null,null,null,null,null,null,null,null,null,null,null,{"$f":"VLOOKUP(N565,Tabel10[[korte omschrijving]:[MCC3_CODE]],2,0)","v":{"$error":"#N/A"}},{"$f":"VLOOKUP(N565,Tabel10[],3,0)","v":{"$error":"#N/A"}},null,null,null,null,null,null,null,"EUR",null,null,null,{"$error":"#DIV/0!"},0,0,null,"","","","","","","","","","",null,null,null,null,null,null,null,null,null,null,null,null,null,null,6,"None","Parcel","ZWO"]
[null,null,null,null,null,null,null,null,null,null,null,null,null,null,{"$f":"VLOOKUP(N566,Tabel10[[korte omschrijving]:[MCC3_CODE]],2,0)","v":{"$error":"#N/A"}},{"$f":"VLOOKUP(N566,Tabel10[],3,0)","v":{"$error":"#N/A"}},null,null,null,null,null,null,null,"EUR",null,null,null,{"$error":"#DIV/0!"},0,0,null,"","","","","","","","","","",null,null,null,null,null,null,null,null,null,null,null,null,null,null,6,"None","Parcel","ZWO"]
[null,null,null,null,null,null,null,null,null,null,null,null,null,null,{"$f":"VLOOKUP(N567,Tabel10[[korte omschrijving]:[MCC3_CODE]],2,0)","v":{"$error":"#N/A"}},{"$f":"VLOOKUP(N567,Tabel10[],3,0)","v":{"$error":"#N/A"}},null,null,null,null,null,null,null,"EUR",null,null,null,{"$error":"#DIV/0!"},0,0,null,"","","","","","","","","","",null,null,null,null,null,null,null,null,null,null,null,null,null,null,6,"None","Parcel","ZWO"]
[null,null,null,null,null,null,null,null,null,null,null,null,null,null,{"$f":"VLOOKUP(N568,Tabel10[[korte omschrijving]:[MCC3_CODE]],2,0)","v":{"$error":"#N/A"}},{"$f":"VLOOKUP(N568,Tabel10[],3,0)","v":{"$error":"#N/A"}},null,null,null,null,null,null,null,"EUR",null,null,null,{"$error":"#DIV/0!"},0,0,null,"","","","","","","","","","",null,null,null,null,null,null,null,null,null,null,null,null,null,null,6,"None","Parcel","ZWO"]
[null,null,null,null,null,null,null,null,null,null,null,null,null,null,{"$f":"VLOOKUP(N569,Tabel10[[korte omschrijving]:[MCC3_CODE]],2,0)","v":{"$error":"#N/A"}},{"$f":"VLOOKUP(N569,Tabel10[],3,0)","v":{"$error":"#N/A"}},null,null,null,null,null,null,null,"EUR",null,null,null,{"$error":"#DIV/0!"},0,0,null,"","","","","","","","","","",null,null,null,null,null,null,null,null,null,null,null,null,null,null,6,"None","Parcel","ZWO"]
[null,null,null,null,null,null,null,null,null,null,null,null,null,null,{"$f":"VLOOKUP(N570,Tabel10[[korte omschrijving]:[MCC3_CODE]],2,0)","v":{"$error":"#N/A"}},{"$f":"VLOOKUP(N570,Tabel10[],3,0)","v":{"$error":"#N/A"}},null,null,null,null,null,null,null,"EUR",null,null,null,{"$error":"#DIV/0!"},0,0,null,"","","","","","","","","","",null,null,null,null,null,null,null,null,null,null,null,null,null,null,6,"None","Parcel","ZWO"]
[null,null,null,null,null,null,null,null,null,null,null,null,null,null,{"$f":"VLOOKUP(N571,Tabel10[[korte omschrijving]:[MCC3_CODE]],2,0)","v":{"$error":"#N/A"}},{"$f":"VLOOKUP(N571,Tabel10[],3,0)","v":{"$error":"#N/A"}},null,null,null,null,null,null,null,"EUR",null,null,null,{"$error":"#DIV/0!"},0,0,null,"","","","","","","","","","",null,null,null,null,null,null,null,null,null,null,null,null,null,null,6,"None","Parcel","ZWO"]
[null,null,null,null,null,null,null,null,null,null,null,null,null,null,{"$f":"VLOOKUP(N572,Tabel10[[korte omschrijving]:[MCC3_CODE]],2,0)","v":{"$error":"#N/A"}},{"$f":"VLOOKUP(N572,Tabel10[],3,0)","v":{"$error":"#N/A"}},null,null,null,null,null,null,null,"EUR",null,null,null,{"$error":"#DIV/0!"},0,0,null,"","","","","","","","","","",null,null,null,null,null,null,null,null,null,null,null,null,null,null,6,"None","Parcel","ZWO"]
[null,null,null,null,null,null,null,null,null,null,null,null,null,null,{"$f":"VLOOKUP(N573,Tabel10[[korte omschrijving]:[MCC3_CODE]],2,0)","v":{"$error":"#N/A"}},{"$f":"VLOOKUP(N573,Tabel10[],3,0)","v":{"$error":"#N/A"}},null,null,null,null,null,null,null,"EUR",null,null,null,{"$error":"#DIV/0!"},0,0,null,"","","","","","","","","","",null,null,null,null,null,null,null,null,null,null,null,null,null,null,6,"None","Parcel","ZWO"]
[null,null,null,null,null,null,null,null,null,null,null,null,null,null,{"$f":"VLOOKUP(N574,Tabel10[[korte omschrijving]:[MCC3_CODE]],2,0)","v":{"$error":"#N/A"}},{"$f":"VLOOKUP(N574,Tabel10[],3,0)","v":{"$error":"#N/A"}},null,null,null,null,null,null,null,"EUR",null,null,null,{"$error":"#DIV/0!"},0,0,null,"","","","","","","","","","",null,null,null,null,null,null,null,null,null,null,null,null,null,null,6,"None","Parcel","ZWO"]
[null,null,null,null,null,null,null,null,null,null,null,null,null,null,{"$f":"VLOOKUP(N575,Tabel10[[korte omschrijving]:[MCC3_CODE]],2,0)","v":{"$error":"#N/A"}},{"$f":"VLOOKUP(N575,Tabel10[],3,0)","v":{"$error":"#N/A"}},null,null,null,null,null,null,null,"EUR",null,null,null,{"$error":"#DIV/0!"},0,0,null,"","","","","","","","","","",null,null,null,null,null,null,null,null,null,null,null,null,null,null,6,"None","Parcel","ZWO"]
[null,null,null,null,null,null,null,null,null,null,null,null,null,null,{"$f":"VLOOKUP(N576,Tabel10[[korte omschrijving]:[MCC3_CODE]],2,0)","v":{"$error":"#N/A"}},{"$f":"VLOOKUP(N576,Tabel10[],3,0)","v":{"$error":"#N/A"}},null,null,null,null,null,null,null,"EUR",null,null,null,{"$error":"#DIV/0!"},0,0,null,"","","","","","","","","","",null,null,null,null,null,null,null,null,null,null,null,null,null,null,6,"None","Parcel","ZWO"]
[null,null,null,null,null,null,null,null,null,null,null,null,null,null,{"$f":"VLOOKUP(N577,Tabel10[[korte omschrijving]:[MCC3_CODE]],2,0)","v":{"$error":"#N/A"}},{"$f":"VLOOKUP(N577,Tabel10[],3,0)","v":{"$error":"#N/A"}},null,null,null,null,null,null,null,"EUR",null,null,null,{"$error":"#DIV/0!"},0,0,null,"","","","","","","","","","",null,null,null,null,null,null,null,null,null,null,null,null,null,null,6,"None","Parcel","ZWO"]
[null,null,null,null,null,null,null,null,null,null,null,null,null,null,{"$f":"VLOOKUP(N578,Tabel10[[korte omschrijving]:[MCC3_CODE]],2,0)","v":{"$error":"#N/A"}},{"$f":"VLOOKUP(N578,Tabel10[],3,0)","v":{"$error":"#N/A"}},null,null,null,null,null,null,null,"EUR",null,null,null,{"$error":"#DIV/0!"},0,0,null,"","","","","","","","","","",null,null,null,null,null,null,null,null,null,null,null,null,null,null,6,"None","Parcel","ZWO"]
[null,null,null,null,null,null,null,null,null,null,null,null,null,null,{"$f":"VLOOKUP(N579,Tabel10[[korte omschrijving]:[MCC3_CODE]],2,0)","v":{"$error":"#N/A"}},{"$f":"VLOOKUP(N579,Tabel10[],3,0)","v":{"$error":"#N/A"}},null,null,null,null,null,null,null,"EUR",null,null,null,{"$error":"#DIV/0!"},0,0,null,"","","","","","","","","","",null,null,null,null,null,null,null,null,null,null,null,null,null,null,6,"None","Parcel","ZWO"]
[null,null,null,null,null,null,null,null,null,null,null,null,null,null,{"$f":"VLOOKUP(N580,Tabel10[[korte omschrijving]:[MCC3_CODE]],2,0)","v":{"$error":"#N/A"}},{"$f":"VLOOKUP(N580,Tabel10[],3,0)","v":{"$error":"#N/A"}},null,null,null,null,null,null,null,"EUR",null,null,null,{"$error":"#DIV/0!"},0,0,null,"","","","","","","","","","",null,null,null,null,null,null,null,null,null,null,null,null,null,null,6,"None","Parcel","ZWO"]
[null,null,null,null,null,null,null,null,null,null,null,null,null,null,{"$f":"VLOOKUP(N581,Tabel10[[korte omschrijving]:[MCC3_CODE]],2,0)","v":{"$error":"#N/A"}},{"$f":"VLOOKUP(N581,Tabel10[],3,0)","v":{"$error":"#N/A"}},null,null,null,null,null,null,null,"EUR",null,null,null,{"$error":"#DIV/0!"},0,0,null,"","","","","","","","","","",null,null,null,null,null,null,null,null,null,null,null,null,null,null,6,"None","Parcel","ZWO"]
[null,null,null,null,null,null,null,null,null,null,null,null,null,null,{"$f":"VLOOKUP(N582,Tabel10[[korte omschrijving]:[MCC3_CODE]],2,0)","v":{"$error":"#N/A"}},{"$f":"VLOOKUP(N582,Tabel10[],3,0)","v":{"$error":"#N/A"}},null,null,null,null,null,null,null,"EUR",null,null,null,{"$error":"#DIV/0!"},0,0,null,"","","","","","","","","","",null,null,null,null,null,null,null,null,null,null,null,null,null,null,6,"None","Parcel","ZWO"]
[null,null,null,null,null,null,null,null,null,null,null,null,null,null,{"$f":"VLOOKUP(N583,Tabel10[[korte omschrijving]:[MCC3_CODE]],2,0)","v":{"$error":"#N/A"}},{"$f":"VLOOKUP(N583,Tabel10[],3,0)","v":{"$error":"#N/A"}},null,null,null,null,null,null,null,"EUR",null,null,null,{"$f":"AA583/Y583","v":{"$error":"#DIV/0!"}},{"$f":"T583*Y583","v":0},{"$f":"T583*AA583","v":0},null,{"$f":"IF(AE583 <> \"\",\n    IF(ISNUMBER(VALUE(LEFT(AE583, FIND(\"%\", AE583)-1))),\n        VALUE(LEFT(AE583, FIND(\"%\", AE583)-1)),\n        \"Invalid format\"),\n    \"\")","v":""},{"$f":"IF(AE583 <> \"\",\n    IF(ISNUMBER(VALUE(LEFT(AE583, FIND(\"%\", AE583)-1))) * ISNUMBER(FIND(\"%\", AE583 & \"wol\")) > 0,\n        TRIM(MID(AE583, FIND(\"%\", AE583)+1, FIND(\"/\", AE583 & \"/\")-FIND(\"%\", AE583)-1)),\n        \"Invalid format\"),\n    \"\")","v":""},{"$f":"IF(AE583 <> \"\",\n    IF(ISNUMBER(VALUE(MID(AE583, FIND(\"/\", AE583) + 1, FIND(\"%\", AE583, FIND(\"/\", AE583)) - FIND(\"/\", AE583) - 1))),\n        VALUE(MID(AE583, FIND(\"/\", AE583) + 1, FIND(\"%\", AE583, FIND(\"/\", AE583)) - FIND(\"/\", AE583) - 1)),\n        \"\"),\n    \"\")","v":""},{"$f":"IF(AE583 <> \"\",\n    IFERROR(TRIM(MID(AE583, FIND(\"%\", AE583, FIND(\"/\", AE583)+1)+2,\n        IFERROR(FIND(\"/\", AE583 & \"/\", FIND(\"/\", AE583)+1)-FIND(\"%\", AE583, FIND(\"/\", AE583)+1)-2, LEN(AE583)-FIND(\"%\", AE583, FIND(\"/\", AE583)+1)-1))),\n        \"\"),\n    \"\")","v":""},{"$f":"IF(AE583 <> \"\",\n    IF(ISNUMBER(VALUE(MID(AE583, FIND(\"/\", AE583, FIND(\"/\", AE583)+1) + 1, FIND(\"%\", AE583, FIND(\"/\", AE583, FIND(\"/\", AE583)+1)) - FIND(\"/\", AE583, FIND(\"/\", AE583)+1) - 1))),\n        VALUE(MID(AE583, FIND(\"/\", AE583, FIND(\"/\", AE583)+1) + 1, FIND(\"%\", AE583, FIND(\"/\", AE583, FIND(\"/\", AE583)+1)) - FIND(\"/\", AE583, FIND(\"/\", AE583)+1) - 1)),\n        \"\"),\n    \"\")","v":""},{"$f":"IF(AE583 <> \"\",\n    IFERROR(\n        TRIM(MID(AE583,\n            FIND(\"%\", AE583, FIND(\"%\", AE583, FIND(\"%\", AE583)+1)+1)+1,\n            FIND(\"/\", AE583 & \"/\", FIND(\"%\", AE583, FIND(\"%\", AE583, FIND(\"%\", AE583)+1)+1))-FIND(\"%\", AE583, FIND(\"%\", AE583, FIND(\"%\", AE583)+1)+1)-1)\n        ),\n        \"\"\n    ),\n    \"\"\n)","v":""},{"$f":"IF(AE583 <> \"\",\n    IF(ISNUMBER(VALUE(MID(AE583, FIND(\"/\", AE583, FIND(\"/\", AE583, FIND(\"/\", AE583)+1)+1) + 1, FIND(\"%\", AE583, FIND(\"/\", AE583, FIND(\"/\", AE583, FIND(\"/\", AE583)+1)+1)) - FIND(\"/\", AE583, FIND(\"/\", AE583, FIND(\"/\", AE583)+1)+1) - 1))),\n        VALUE(MID(AE583, FIND(\"/\", AE583, FIND(\"/\", AE583, FIND(\"/\", AE583)+1)+1) + 1, FIND(\"%\", AE583, FIND(\"/\", AE583, FIND(\"/\", AE583, FIND(\"/\", AE583)+1)+1)) - FIND(\"/\", AE583, FIND(\"/\", AE583, FIND(\"/\", AE583)+1)+1) - 1)),\n        \"\"),\n    \"\")","v":""},{"$f":"IF(AE583 <> \"\",\n    IFERROR(TRIM(MID(AE583, FIND(\"%\", AE583, FIND(\"/\", AE583, FIND(\"/\", AE583, FIND(\"/\", AE583)+1)+1)+1)+2,\n        IFERROR(FIND(\"/\", AE583, FIND(\"/\", AE583, FIND(\"/\", AE583, FIND(\"/\", AE583)+1)+1)+1)-FIND(\"%\", AE583, FIND(\"/\", AE583, FIND(\"/\", AE583, FIND(\"/\", AE583)+1)+1)+1)-2, LEN(AE583)-FIND(\"%\", AE583, FIND(\"/\", AE583, FIND(\"/\", AE583, FIND(\"/\", AE583)+1)+1)+1)-1))),\n        \"\"),\n    \"\")","v":""},{"$f":"IF(AE583 <> \"\",\n    IF(ISNUMBER(VALUE(MID(AE583, FIND(\"/\", AE583, FIND(\"/\", AE583, FIND(\"/\", AE583, FIND(\"/\", AE583)+1)+1)+1) + 1, FIND(\"%\", AE583, FIND(\"/\", AE583, FIND(\"/\", AE583, FIND(\"/\", AE583, FIND(\"/\", AE583)+1)+1)+1)) - FIND(\"/\", AE583, FIND(\"/\", AE583, FIND(\"/\", AE583, FIND(\"/\", AE583)+1)+1)+1) - 1))),\n        VALUE(MID(AE583, FIND(\"/\", AE583, FIND(\"/\", AE583, FIND(\"/\", AE583, FIND(\"/\", AE583)+1)+1)+1) + 1, FIND(\"%\", AE583, FIND(\"/\", AE583, FIND(\"/\", AE583, FIND(\"/\", AE583, FIND(\"/\", AE583)+1)+1)+1)) - FIND(\"/\", AE583, FIND(\"/\", AE583, FIND(\"/\", AE583, FIND(\"/\", AE583)+1)+1)+1) - 1)),\n        \"\"),\n    \"\")","v":""},{"$f":"IF(AE583 = \"\", \"\",\n    IFERROR(TRIM(\n        MID(\n            AE583,\n            FIND(\"%\", AE583, FIND(\"/\", AE583, FIND(\"/\", AE583, FIND(\"/\", AE583, FIND(\"/\", AE583)+1)+1)+1)+1) + 1,\n            FIND(\"/\", AE583 & \"/\", FIND(\"%\", AE583, FIND(\"/\", AE583, FIND(\"/\", AE583, FIND(\"/\", AE583, FIND(\"/\", AE583)+1)+1)+1)+1)) -\n            FIND(\"%\", AE583, FIND(\"/\", AE583, FIND(\"/\", AE583, FIND(\"/\", AE583, FIND(\"/\", AE583)+1)+1)+1)+1) - 1\n        )\n    ),\n    \"\")\n)","v":""},null,null,null,null,null,null,null,null,null,null,null,null,null,null,6,"None","Parcel","ZWO"]
[null,null,null,null,null,null,null,null,null,null,null,null,null,null,{"$f":"VLOOKUP(N584,Tabel10[[korte omschrijving]:[MCC3_CODE]],2,0)","v":{"$error":"#N/A"}},{"$f":"VLOOKUP(N584,Tabel10[],3,0)","v":{"$error":"#N/A"}},null,null,null,null,null,null,null,"EUR",null,null,null,{"$error":"#DIV/0!"},0,0,null,"","","","","","","","","","",null,null,null,null,null,null,null,null,null,null,null,null,null,null,6,"None","Parcel","ZWO"]
[null,null,null,null,null,null,null,null,null,null,null,null,null,null,{"$f":"VLOOKUP(N585,Tabel10[[korte omschrijving]:[MCC3_CODE]],2,0)","v":{"$error":"#N/A"}},{"$f":"VLOOKUP(N585,Tabel10[],3,0)","v":{"$error":"#N/A"}},null,null,null,null,null,null,null,"EUR",null,null,null,{"$error":"#DIV/0!"},0,0,null,"","","","","","","","","","",null,null,null,null,null,null,null,null,null,null,null,null,null,null,6,"None","Parcel","ZWO"]
[null,null,null,null,null,null,null,null,null,null,null,null,null,null,{"$f":"VLOOKUP(N586,Tabel10[[korte omschrijving]:[MCC3_CODE]],2,0)","v":{"$error":"#N/A"}},{"$f":"VLOOKUP(N586,Tabel10[],3,0)","v":{"$error":"#N/A"}},null,null,null,null,null,null,null,"EUR",null,null,null,{"$error":"#DIV/0!"},0,0,null,"","","","","","","","","","",null,null,null,null,null,null,null,null,null,null,null,null,null,null,6,"None","Parcel","ZWO"]
[null,null,null,null,null,null,null,null,null,null,null,null,null,null,{"$f":"VLOOKUP(N587,Tabel10[[korte omschrijving]:[MCC3_CODE]],2,0)","v":{"$error":"#N/A"}},{"$f":"VLOOKUP(N587,Tabel10[],3,0)","v":{"$error":"#N/A"}},null,null,null,null,null,null,null,"EUR",null,null,null,{"$error":"#DIV/0!"},0,0,null,"","","","","","","","","","",null,null,null,null,null,null,null,null,null,null,null,null,null,null,6,"None","Parcel","ZWO"]
[null,null,null,null,null,null,null,null,null,null,null,null,null,null,{"$f":"VLOOKUP(N588,Tabel10[[korte omschrijving]:[MCC3_CODE]],2,0)","v":{"$error":"#N/A"}},{"$f":"VLOOKUP(N588,Tabel10[],3,0)","v":{"$error":"#N/A"}},null,null,null,null,null,null,null,"EUR",null,null,null,{"$error":"#DIV/0!"},0,0,null,"","","","","","","","","","",null,null,null,null,null,null,null,null,null,null,null,null,null,null,6,"None","Parcel","ZWO"]
[null,null,null,null,null,null,null,null,null,null,null,null,null,null,{"$f":"VLOOKUP(N589,Tabel10[[korte omschrijving]:[MCC3_CODE]],2,0)","v":{"$error":"#N/A"}},{"$f":"VLOOKUP(N589,Tabel10[],3,0)","v":{"$error":"#N/A"}},null,null,null,null,null,null,null,"EUR",null,null,null,{"$error":"#DIV/0!"},0,0,null,"","","","","","","","","","",null,null,null,null,null,null,null,null,null,null,null,null,null,null,6,"None","Parcel","ZWO"]
[null,null,null,null,null,null,null,null,null,null,null,null,null,null,{"$f":"VLOOKUP(N590,Tabel10[[korte omschrijving]:[MCC3_CODE]],2,0)","v":{"$error":"#N/A"}},{"$f":"VLOOKUP(N590,Tabel10[],3,0)","v":{"$error":"#N/A"}},null,null,null,null,null,null,null,"EUR",null,null,null,{"$error":"#DIV/0!"},0,0,null,"","","","","","","","","","",null,null,null,null,null,null,null,null,null,null,null,null,null,null,6,"None","Parcel","ZWO"]
[null,null,null,null,null,null,null,null,null,null,null,null,null,null,{"$f":"VLOOKUP(N591,Tabel10[[korte omschrijving]:[MCC3_CODE]],2,0)","v":{"$error":"#N/A"}},{"$f":"VLOOKUP(N591,Tabel10[],3,0)","v":{"$error":"#N/A"}},null,null,null,null,null,null,null,"EUR",null,null,null,{"$error":"#DIV/0!"},0,0,null,"","","","","","","","","","",null,null,null,null,null,null,null,null,null,null,null,null,null,null,6,"None","Parcel","ZWO"]
[null,null,null,null,null,null,null,null,null,null,null,null,null,null,{"$f":"VLOOKUP(N592,Tabel10[[korte omschrijving]:[MCC3_CODE]],2,0)","v":{"$error":"#N/A"}},{"$f":"VLOOKUP(N592,Tabel10[],3,0)","v":{"$error":"#N/A"}},null,null,null,null,null,null,null,"EUR",null,null,null,{"$error":"#DIV/0!"},0,0,null,"","","","","","","","","","",null,null,null,null,null,null,null,null,null,null,null,null,null,null,6,"None","Parcel","ZWO"]
[null,null,null,null,null,null,null,null,null,null,null,null,null,null,{"$f":"VLOOKUP(N593,Tabel10[[korte omschrijving]:[MCC3_CODE]],2,0)","v":{"$error":"#N/A"}},{"$f":"VLOOKUP(N593,Tabel10[],3,0)","v":{"$error":"#N/A"}},null,null,null,null,null,null,null,"EUR",null,null,null,{"$error":"#DIV/0!"},0,0,null,"","","","","","","","","","",null,null,null,null,null,null,null,null,null,null,null,null,null,null,6,"None","Parcel","ZWO"]
[null,null,null,null,null,null,null,null,null,null,null,null,null,null,{"$f":"VLOOKUP(N594,Tabel10[[korte omschrijving]:[MCC3_CODE]],2,0)","v":{"$error":"#N/A"}},{"$f":"VLOOKUP(N594,Tabel10[],3,0)","v":{"$error":"#N/A"}},null,null,null,null,null,null,null,"EUR",null,null,null,{"$error":"#DIV/0!"},0,0,null,"","","","","","","","","","",null,null,null,null,null,null,null,null,null,null,null,null,null,null,6,"None","Parcel","ZWO"]
[null,null,null,null,null,null,null,null,null,null,null,null,null,null,{"$f":"VLOOKUP(N595,Tabel10[[korte omschrijving]:[MCC3_CODE]],2,0)","v":{"$error":"#N/A"}},{"$f":"VLOOKUP(N595,Tabel10[],3,0)","v":{"$error":"#N/A"}},null,null,null,null,null,null,null,"EUR",null,null,null,{"$error":"#DIV/0!"},0,0,null,"","","","","","","","","","",null,null,null,null,null,null,null,null,null,null,null,null,null,null,6,"None","Parcel","ZWO"]
[null,null,null,null,null,null,null,null,null,null,null,null,null,null,{"$f":"VLOOKUP(N596,Tabel10[[korte omschrijving]:[MCC3_CODE]],2,0)","v":{"$error":"#N/A"}},{"$f":"VLOOKUP(N596,Tabel10[],3,0)","v":{"$error":"#N/A"}},null,null,null,null,null,null,null,"EUR",null,null,null,{"$error":"#DIV/0!"},0,0,null,"","","","","","","","","","",null,null,null,null,null,null,null,null,null,null,null,null,null,null,6,"None","Parcel","ZWO"]
[null,null,null,null,null,null,null,null,null,null,null,null,null,null,{"$f":"VLOOKUP(N597,Tabel10[[korte omschrijving]:[MCC3_CODE]],2,0)","v":{"$error":"#N/A"}},{"$f":"VLOOKUP(N597,Tabel10[],3,0)","v":{"$error":"#N/A"}},null,null,null,null,null,null,null,"EUR",null,null,null,{"$error":"#DIV/0!"},0,0,null,"","","","","","","","","","",null,null,null,null,null,null,null,null,null,null,null,null,null,null,6,"None","Parcel","ZWO"]
[null,null,null,null,null,null,null,null,null,null,null,null,null,null,{"$f":"VLOOKUP(N598,Tabel10[[korte omschrijving]:[MCC3_CODE]],2,0)","v":{"$error":"#N/A"}},{"$f":"VLOOKUP(N598,Tabel10[],3,0)","v":{"$error":"#N/A"}},null,null,null,null,null,null,null,"EUR",null,null,null,{"$error":"#DIV/0!"},0,0,null,"","","","","","","","","","",null,null,null,null,null,null,null,null,null,null,null,null,null,null,6,"None","Parcel","ZWO"]
[null,null,null,null,null,null,null,null,null,null,null,null,null,null,{"$f":"VLOOKUP(N599,Tabel10[[korte omschrijving]:[MCC3_CODE]],2,0)","v":{"$error":"#N/A"}},{"$f":"VLOOKUP(N599,Tabel10[],3,0)","v":{"$error":"#N/A"}},null,null,null,null,null,null,null,"EUR",null,null,null,{"$error":"#DIV/0!"},0,0,null,"","","","","","","","","","",null,null,null,null,null,null,null,null,null,null,null,null,null,null,6,"None","Parcel","ZWO"]
[null,null,null,null,null,null,null,null,null,null,null,null,null,null,{"$f":"VLOOKUP(N600,Tabel10[[korte omschrijving]:[MCC3_CODE]],2,0)","v":{"$error":"#N/A"}},{"$f":"VLOOKUP(N600,Tabel10[],3,0)","v":{"$error":"#N/A"}},null,null,null,null,null,null,null,"EUR",null,null,null,{"$error":"#DIV/0!"},0,0,null,"","","","","","","","","","",null,null,null,null,null,null,null,null,null,null,null,null,null,null,6,"None","Parcel","ZWO"]
[null,null,null,null,null,null,null,null,null,null,null,null,null,null,{"$f":"VLOOKUP(N601,Tabel10[[korte omschrijving]:[MCC3_CODE]],2,0)","v":{"$error":"#N/A"}},{"$f":"VLOOKUP(N601,Tabel10[],3,0)","v":{"$error":"#N/A"}},null,null,null,null,null,null,null,"EUR",null,null,null,{"$error":"#DIV/0!"},0,0,null,"","","","","","","","","","",null,null,null,null,null,null,null,null,null,null,null,null,null,null,6,"None","Parcel","ZWO"]
[null,null,null,null,null,null,null,null,null,null,null,null,null,null,{"$f":"VLOOKUP(N602,Tabel10[[korte omschrijving]:[MCC3_CODE]],2,0)","v":{"$error":"#N/A"}},{"$f":"VLOOKUP(N602,Tabel10[],3,0)","v":{"$error":"#N/A"}},null,null,null,null,null,null,null,"EUR",null,null,null,{"$error":"#DIV/0!"},0,0,null,"","","","","","","","","","",null,null,null,null,null,null,null,null,null,null,null,null,null,null,6,"None","Parcel","ZWO"]
[null,null,null,null,null,null,null,null,null,null,null,null,null,null,{"$f":"VLOOKUP(N603,Tabel10[[korte omschrijving]:[MCC3_CODE]],2,0)","v":{"$error":"#N/A"}},{"$f":"VLOOKUP(N603,Tabel10[],3,0)","v":{"$error":"#N/A"}},null,null,null,null,null,null,null,"EUR",null,null,null,{"$error":"#DIV/0!"},0,0,null,"","","","","","","","","","",null,null,null,null,null,null,null,null,null,null,null,null,null,null,6,"None","Parcel","ZWO"]
[null,null,null,null,null,null,null,null,null,null,null,null,null,null,{"$f":"VLOOKUP(N604,Tabel10[[korte omschrijving]:[MCC3_CODE]],2,0)","v":{"$error":"#N/A"}},{"$f":"VLOOKUP(N604,Tabel10[],3,0)","v":{"$error":"#N/A"}},null,null,null,null,null,null,null,"EUR",null,null,null,{"$error":"#DIV/0!"},0,0,null,"","","","","","","","","","",null,null,null,null,null,null,null,null,null,null,null,null,null,null,6,"None","Parcel","ZWO"]
[null,null,null,null,null,null,null,null,null,null,null,null,null,null,{"$f":"VLOOKUP(N605,Tabel10[[korte omschrijving]:[MCC3_CODE]],2,0)","v":{"$error":"#N/A"}},{"$f":"VLOOKUP(N605,Tabel10[],3,0)","v":{"$error":"#N/A"}},null,null,null,null,null,null,null,"EUR",null,null,null,{"$error":"#DIV/0!"},0,0,null,"","","","","","","","","","",null,null,null,null,null,null,null,null,null,null,null,null,null,null,6,"None","Parcel","ZWO"]
[null,null,null,null,null,null,null,null,null,null,null,null,null,null,{"$f":"VLOOKUP(N606,Tabel10[[korte omschrijving]:[MCC3_CODE]],2,0)","v":{"$error":"#N/A"}},{"$f":"VLOOKUP(N606,Tabel10[],3,0)","v":{"$error":"#N/A"}},null,null,null,null,null,null,null,"EUR",null,null,null,{"$error":"#DIV/0!"},0,0,null,"","","","","","","","","","",null,null,null,null,null,null,null,null,null,null,null,null,null,null,6,"None","Parcel","ZWO"]
[null,null,null,null,null,null,null,null,null,null,null,null,null,null,{"$f":"VLOOKUP(N607,Tabel10[[korte omschrijving]:[MCC3_CODE]],2,0)","v":{"$error":"#N/A"}},{"$f":"VLOOKUP(N607,Tabel10[],3,0)","v":{"$error":"#N/A"}},null,null,null,null,null,null,null,"EUR",null,null,null,{"$error":"#DIV/0!"},0,0,null,"","","","","","","","","","",null,null,null,null,null,null,null,null,null,null,null,null,null,null,6,"None","Parcel","ZWO"]
[null,null,null,null,null,null,null,null,null,null,null,null,null,null,{"$f":"VLOOKUP(N608,Tabel10[[korte omschrijving]:[MCC3_CODE]],2,0)","v":{"$error":"#N/A"}},{"$f":"VLOOKUP(N608,Tabel10[],3,0)","v":{"$error":"#N/A"}},null,null,null,null,null,null,null,"EUR",null,null,null,{"$error":"#DIV/0!"},0,0,null,"","","","","","","","","","",null,null,null,null,null,null,null,null,null,null,null,null,null,null,6,"None","Parcel","ZWO"]
[null,null,null,null,null,null,null,null,null,null,null,null,null,null,{"$f":"VLOOKUP(N609,Tabel10[[korte omschrijving]:[MCC3_CODE]],2,0)","v":{"$error":"#N/A"}},{"$f":"VLOOKUP(N609,Tabel10[],3,0)","v":{"$error":"#N/A"}},null,null,null,null,null,null,null,"EUR",null,null,null,{"$error":"#DIV/0!"},0,0,null,"","","","","","","","","","",null,null,null,null,null,null,null,null,null,null,null,null,null,null,6,"None","Parcel","ZWO"]
[null,null,null,null,null,null,null,null,null,null,null,null,null,null,{"$f":"VLOOKUP(N610,Tabel10[[korte omschrijving]:[MCC3_CODE]],2,0)","v":{"$error":"#N/A"}},{"$f":"VLOOKUP(N610,Tabel10[],3,0)","v":{"$error":"#N/A"}},null,null,null,null,null,null,null,"EUR",null,null,null,{"$error":"#DIV/0!"},0,0,null,"","","","","","","","","","",null,null,null,null,null,null,null,null,null,null,null,null,null,null,6,"None","Parcel","ZWO"]
[null,null,null,null,null,null,null,null,null,null,null,null,null,null,{"$f":"VLOOKUP(N611,Tabel10[[korte omschrijving]:[MCC3_CODE]],2,0)","v":{"$error":"#N/A"}},{"$f":"VLOOKUP(N611,Tabel10[],3,0)","v":{"$error":"#N/A"}},null,null,null,null,null,null,null,"EUR",null,null,null,{"$error":"#DIV/0!"},0,0,null,"","","","","","","","","","",null,null,null,null,null,null,null,null,null,null,null,null,null,null,6,"None","Parcel","ZWO"]
[null,null,null,null,null,null,null,null,null,null,null,null,null,null,{"$f":"VLOOKUP(N612,Tabel10[[korte omschrijving]:[MCC3_CODE]],2,0)","v":{"$error":"#N/A"}},{"$f":"VLOOKUP(N612,Tabel10[],3,0)","v":{"$error":"#N/A"}},null,null,null,null,null,null,null,"EUR",null,null,null,{"$error":"#DIV/0!"},0,0,null,"","","","","","","","","","",null,null,null,null,null,null,null,null,null,null,null,null,null,null,6,"None","Parcel","ZWO"]
[null,null,null,null,null,null,null,null,null,null,null,null,null,null,{"$f":"VLOOKUP(N613,Tabel10[[korte omschrijving]:[MCC3_CODE]],2,0)","v":{"$error":"#N/A"}},{"$f":"VLOOKUP(N613,Tabel10[],3,0)","v":{"$error":"#N/A"}},null,null,null,null,null,null,null,"EUR",null,null,null,{"$error":"#DIV/0!"},0,0,null,"","","","","","","","","","",null,null,null,null,null,null,null,null,null,null,null,null,null,null,6,"None","Parcel","ZWO"]
[null,null,null,null,null,null,null,null,null,null,null,null,null,null,{"$f":"VLOOKUP(N614,Tabel10[[korte omschrijving]:[MCC3_CODE]],2,0)","v":{"$error":"#N/A"}},{"$f":"VLOOKUP(N614,Tabel10[],3,0)","v":{"$error":"#N/A"}},null,null,null,null,null,null,null,"EUR",null,null,null,{"$error":"#DIV/0!"},0,0,null,"","","","","","","","","","",null,null,null,null,null,null,null,null,null,null,null,null,null,null,6,"None","Parcel","ZWO"]
[null,null,null,null,null,null,null,null,null,null,null,null,null,null,{"$f":"VLOOKUP(N615,Tabel10[[korte omschrijving]:[MCC3_CODE]],2,0)","v":{"$error":"#N/A"}},{"$f":"VLOOKUP(N615,Tabel10[],3,0)","v":{"$error":"#N/A"}},null,null,null,null,null,null,null,"EUR",null,null,null,{"$error":"#DIV/0!"},0,0,null,"","","","","","","","","","",null,null,null,null,null,null,null,null,null,null,null,null,null,null,6,"None","Parcel","ZWO"]
[null,null,null,null,null,null,null,null,null,null,null,null,null,null,{"$f":"VLOOKUP(N616,Tabel10[[korte omschrijving]:[MCC3_CODE]],2,0)","v":{"$error":"#N/A"}},{"$f":"VLOOKUP(N616,Tabel10[],3,0)","v":{"$error":"#N/A"}},null,null,null,null,null,null,null,"EUR",null,null,null,{"$error":"#DIV/0!"},0,0,null,"","","","","","","","","","",null,null,null,null,null,null,null,null,null,null,null,null,null,null,6,"None","Parcel","ZWO"]
[null,null,null,null,null,null,null,null,null,null,null,null,null,null,{"$f":"VLOOKUP(N617,Tabel10[[korte omschrijving]:[MCC3_CODE]],2,0)","v":{"$error":"#N/A"}},{"$f":"VLOOKUP(N617,Tabel10[],3,0)","v":{"$error":"#N/A"}},null,null,null,null,null,null,null,"EUR",null,null,null,{"$error":"#DIV/0!"},0,0,null,"","","","","","","","","","",null,null,null,null,null,null,null,null,null,null,null,null,null,null,6,"None","Parcel","ZWO"]
[null,null,null,null,null,null,null,null,null,null,null,null,null,null,{"$f":"VLOOKUP(N618,Tabel10[[korte omschrijving]:[MCC3_CODE]],2,0)","v":{"$error":"#N/A"}},{"$f":"VLOOKUP(N618,Tabel10[],3,0)","v":{"$error":"#N/A"}},null,null,null,null,null,null,null,"EUR",null,null,null,{"$error":"#DIV/0!"},0,0,null,"","","","","","","","","","",null,null,null,null,null,null,null,null,null,null,null,null,null,null,6,"None","Parcel","ZWO"]
[null,null,null,null,null,null,null,null,null,null,null,null,null,null,{"$f":"VLOOKUP(N619,Tabel10[[korte omschrijving]:[MCC3_CODE]],2,0)","v":{"$error":"#N/A"}},{"$f":"VLOOKUP(N619,Tabel10[],3,0)","v":{"$error":"#N/A"}},null,null,null,null,null,null,null,"EUR",null,null,null,{"$error":"#DIV/0!"},0,0,null,"","","","","","","","","","",null,null,null,null,null,null,null,null,null,null,null,null,null,null,6,"None","Parcel","ZWO"]
[null,null,null,null,null,null,null,null,null,null,null,null,null,null,{"$f":"VLOOKUP(N620,Tabel10[[korte omschrijving]:[MCC3_CODE]],2,0)","v":{"$error":"#N/A"}},{"$f":"VLOOKUP(N620,Tabel10[],3,0)","v":{"$error":"#N/A"}},null,null,null,null,null,null,null,"EUR",null,null,null,{"$error":"#DIV/0!"},0,0,null,"","","","","","","","","","",null,null,null,null,null,null,null,null,null,null,null,null,null,null,6,"None","Parcel","ZWO"]
[null,null,null,null,null,null,null,null,null,null,null,null,null,null,{"$f":"VLOOKUP(N621,Tabel10[[korte omschrijving]:[MCC3_CODE]],2,0)","v":{"$error":"#N/A"}},{"$f":"VLOOKUP(N621,Tabel10[],3,0)","v":{"$error":"#N/A"}},null,null,null,null,null,null,null,"EUR",null,null,null,{"$error":"#DIV/0!"},0,0,null,"","","","","","","","","","",null,null,null,null,null,null,null,null,null,null,null,null,null,null,6,"None","Parcel","ZWO"]
[null,null,null,null,null,null,null,null,null,null,null,null,null,null,{"$f":"VLOOKUP(N622,Tabel10[[korte omschrijving]:[MCC3_CODE]],2,0)","v":{"$error":"#N/A"}},{"$f":"VLOOKUP(N622,Tabel10[],3,0)","v":{"$error":"#N/A"}},null,null,null,null,null,null,null,"EUR",null,null,null,{"$error":"#DIV/0!"},0,0,null,"","","","","","","","","","",null,null,null,null,null,null,null,null,null,null,null,null,null,null,6,"None","Parcel","ZWO"]
[null,null,null,null,null,null,null,null,null,null,null,null,null,null,{"$f":"VLOOKUP(N623,Tabel10[[korte omschrijving]:[MCC3_CODE]],2,0)","v":{"$error":"#N/A"}},{"$f":"VLOOKUP(N623,Tabel10[],3,0)","v":{"$error":"#N/A"}},null,null,null,null,null,null,null,"EUR",null,null,null,{"$error":"#DIV/0!"},0,0,null,"","","","","","","","","","",null,null,null,null,null,null,null,null,null,null,null,null,null,null,6,"None","Parcel","ZWO"]
[null,null,null,null,null,null,null,null,null,null,null,null,null,null,{"$f":"VLOOKUP(N624,Tabel10[[korte omschrijving]:[MCC3_CODE]],2,0)","v":{"$error":"#N/A"}},{"$f":"VLOOKUP(N624,Tabel10[],3,0)","v":{"$error":"#N/A"}},null,null,null,null,null,null,null,"EUR",null,null,null,{"$error":"#DIV/0!"},0,0,null,"","","","","","","","","","",null,null,null,null,null,null,null,null,null,null,null,null,null,null,6,"None","Parcel","ZWO"]
[null,null,null,null,null,null,null,null,null,null,null,null,null,null,{"$f":"VLOOKUP(N625,Tabel10[[korte omschrijving]:[MCC3_CODE]],2,0)","v":{"$error":"#N/A"}},{"$f":"VLOOKUP(N625,Tabel10[],3,0)","v":{"$error":"#N/A"}},null,null,null,null,null,null,null,"EUR",null,null,null,{"$error":"#DIV/0!"},0,0,null,"","","","","","","","","","",null,null,null,null,null,null,null,null,null,null,null,null,null,null,6,"None","Parcel","ZWO"]
[null,null,null,null,null,null,null,null,null,null,null,null,null,null,{"$f":"VLOOKUP(N626,Tabel10[[korte omschrijving]:[MCC3_CODE]],2,0)","v":{"$error":"#N/A"}},{"$f":"VLOOKUP(N626,Tabel10[],3,0)","v":{"$error":"#N/A"}},null,null,null,null,null,null,null,"EUR",null,null,null,{"$error":"#DIV/0!"},0,0,null,"","","","","","","","","","",null,null,null,null,null,null,null,null,null,null,null,null,null,null,6,"None","Parcel","ZWO"]
[null,null,null,null,null,null,null,null,null,null,null,null,null,null,{"$f":"VLOOKUP(N627,Tabel10[[korte omschrijving]:[MCC3_CODE]],2,0)","v":{"$error":"#N/A"}},{"$f":"VLOOKUP(N627,Tabel10[],3,0)","v":{"$error":"#N/A"}},null,null,null,null,null,null,null,"EUR",null,null,null,{"$error":"#DIV/0!"},0,0,null,"","","","","","","","","","",null,null,null,null,null,null,null,null,null,null,null,null,null,null,6,"None","Parcel","ZWO"]
[null,null,null,null,null,null,null,null,null,null,null,null,null,null,{"$f":"VLOOKUP(N628,Tabel10[[korte omschrijving]:[MCC3_CODE]],2,0)","v":{"$error":"#N/A"}},{"$f":"VLOOKUP(N628,Tabel10[],3,0)","v":{"$error":"#N/A"}},null,null,null,null,null,null,null,"EUR",null,null,null,{"$error":"#DIV/0!"},0,0,null,"","","","","","","","","","",null,null,null,null,null,null,null,null,null,null,null,null,null,null,6,"None","Parcel","ZWO"]
[null,null,null,null,null,null,null,null,null,null,null,null,null,null,{"$f":"VLOOKUP(N629,Tabel10[[korte omschrijving]:[MCC3_CODE]],2,0)","v":{"$error":"#N/A"}},{"$f":"VLOOKUP(N629,Tabel10[],3,0)","v":{"$error":"#N/A"}},null,null,null,null,null,null,null,"EUR",null,null,null,{"$error":"#DIV/0!"},0,0,null,"","","","","","","","","","",null,null,null,null,null,null,null,null,null,null,null,null,null,null,6,"None","Parcel","ZWO"]
[null,null,null,null,null,null,null,null,null,null,null,null,null,null,{"$f":"VLOOKUP(N630,Tabel10[[korte omschrijving]:[MCC3_CODE]],2,0)","v":{"$error":"#N/A"}},{"$f":"VLOOKUP(N630,Tabel10[],3,0)","v":{"$error":"#N/A"}},null,null,null,null,null,null,null,"EUR",null,null,null,{"$error":"#DIV/0!"},0,0,null,"","","","","","","","","","",null,null,null,null,null,null,null,null,null,null,null,null,null,null,6,"None","Parcel","ZWO"]
[null,null,null,null,null,null,null,null,null,null,null,null,null,null,{"$f":"VLOOKUP(N631,Tabel10[[korte omschrijving]:[MCC3_CODE]],2,0)","v":{"$error":"#N/A"}},{"$f":"VLOOKUP(N631,Tabel10[],3,0)","v":{"$error":"#N/A"}},null,null,null,null,null,null,null,"EUR",null,null,null,{"$error":"#DIV/0!"},0,0,null,"","","","","","","","","","",null,null,null,null,null,null,null,null,null,null,null,null,null,null,6,"None","Parcel","ZWO"]
[null,null,null,null,null,null,null,null,null,null,null,null,null,null,{"$f":"VLOOKUP(N632,Tabel10[[korte omschrijving]:[MCC3_CODE]],2,0)","v":{"$error":"#N/A"}},{"$f":"VLOOKUP(N632,Tabel10[],3,0)","v":{"$error":"#N/A"}},null,null,null,null,null,null,null,"EUR",null,null,null,{"$error":"#DIV/0!"},0,0,null,"","","","","","","","","","",null,null,null,null,null,null,null,null,null,null,null,null,null,null,6,"None","Parcel","ZWO"]
[null,null,null,null,null,null,null,null,null,null,null,null,null,null,{"$f":"VLOOKUP(N633,Tabel10[[korte omschrijving]:[MCC3_CODE]],2,0)","v":{"$error":"#N/A"}},{"$f":"VLOOKUP(N633,Tabel10[],3,0)","v":{"$error":"#N/A"}},null,null,null,null,null,null,null,"EUR",null,null,null,{"$error":"#DIV/0!"},0,0,null,"","","","","","","","","","",null,null,null,null,null,null,null,null,null,null,null,null,null,null,6,"None","Parcel","ZWO"]
[null,null,null,null,null,null,null,null,null,null,null,null,null,null,{"$f":"VLOOKUP(N634,Tabel10[[korte omschrijving]:[MCC3_CODE]],2,0)","v":{"$error":"#N/A"}},{"$f":"VLOOKUP(N634,Tabel10[],3,0)","v":{"$error":"#N/A"}},null,null,null,null,null,null,null,"EUR",null,null,null,{"$error":"#DIV/0!"},0,0,null,"","","","","","","","","","",null,null,null,null,null,null,null,null,null,null,null,null,null,null,6,"None","Parcel","ZWO"]
[null,null,null,null,null,null,null,null,null,null,null,null,null,null,{"$f":"VLOOKUP(N635,Tabel10[[korte omschrijving]:[MCC3_CODE]],2,0)","v":{"$error":"#N/A"}},{"$f":"VLOOKUP(N635,Tabel10[],3,0)","v":{"$error":"#N/A"}},null,null,null,null,null,null,null,"EUR",null,null,null,{"$error":"#DIV/0!"},0,0,null,"","","","","","","","","","",null,null,null,null,null,null,null,null,null,null,null,null,null,null,6,"None","Parcel","ZWO"]
[null,null,null,null,null,null,null,null,null,null,null,null,null,null,{"$f":"VLOOKUP(N636,Tabel10[[korte omschrijving]:[MCC3_CODE]],2,0)","v":{"$error":"#N/A"}},{"$f":"VLOOKUP(N636,Tabel10[],3,0)","v":{"$error":"#N/A"}},null,null,null,null,null,null,null,"EUR",null,null,null,{"$error":"#DIV/0!"},0,0,null,"","","","","","","","","","",null,null,null,null,null,null,null,null,null,null,null,null,null,null,6,"None","Parcel","ZWO"]
[null,null,null,null,null,null,null,null,null,null,null,null,null,null,{"$f":"VLOOKUP(N637,Tabel10[[korte omschrijving]:[MCC3_CODE]],2,0)","v":{"$error":"#N/A"}},{"$f":"VLOOKUP(N637,Tabel10[],3,0)","v":{"$error":"#N/A"}},null,null,null,null,null,null,null,"EUR",null,null,null,{"$error":"#DIV/0!"},0,0,null,"","","","","","","","","","",null,null,null,null,null,null,null,null,null,null,null,null,null,null,6,"None","Parcel","ZWO"]
[null,null,null,null,null,null,null,null,null,null,null,null,null,null,{"$f":"VLOOKUP(N638,Tabel10[[korte omschrijving]:[MCC3_CODE]],2,0)","v":{"$error":"#N/A"}},{"$f":"VLOOKUP(N638,Tabel10[],3,0)","v":{"$error":"#N/A"}},null,null,null,null,null,null,null,"EUR",null,null,null,{"$error":"#DIV/0!"},0,0,null,"","","","","","","","","","",null,null,null,null,null,null,null,null,null,null,null,null,null,null,6,"None","Parcel","ZWO"]
[null,null,null,null,null,null,null,null,null,null,null,null,null,null,{"$f":"VLOOKUP(N639,Tabel10[[korte omschrijving]:[MCC3_CODE]],2,0)","v":{"$error":"#N/A"}},{"$f":"VLOOKUP(N639,Tabel10[],3,0)","v":{"$error":"#N/A"}},null,null,null,null,null,null,null,"EUR",null,null,null,{"$error":"#DIV/0!"},0,0,null,"","","","","","","","","","",null,null,null,null,null,null,null,null,null,null,null,null,null,null,6,"None","Parcel","ZWO"]
[null,null,null,null,null,null,null,null,null,null,null,null,null,null,{"$f":"VLOOKUP(N640,Tabel10[[korte omschrijving]:[MCC3_CODE]],2,0)","v":{"$error":"#N/A"}},{"$f":"VLOOKUP(N640,Tabel10[],3,0)","v":{"$error":"#N/A"}},null,null,null,null,null,null,null,"EUR",null,null,null,{"$error":"#DIV/0!"},0,0,null,"","","","","","","","","","",null,null,null,null,null,null,null,null,null,null,null,null,null,null,6,"None","Parcel","ZWO"]
[null,null,null,null,null,null,null,null,null,null,null,null,null,null,{"$f":"VLOOKUP(N641,Tabel10[[korte omschrijving]:[MCC3_CODE]],2,0)","v":{"$error":"#N/A"}},{"$f":"VLOOKUP(N641,Tabel10[],3,0)","v":{"$error":"#N/A"}},null,null,null,null,null,null,null,"EUR",null,null,null,{"$error":"#DIV/0!"},0,0,null,"","","","","","","","","","",null,null,null,null,null,null,null,null,null,null,null,null,null,null,6,"None","Parcel","ZWO"]
[null,null,null,null,null,null,null,null,null,null,null,null,null,null,{"$f":"VLOOKUP(N642,Tabel10[[korte omschrijving]:[MCC3_CODE]],2,0)","v":{"$error":"#N/A"}},{"$f":"VLOOKUP(N642,Tabel10[],3,0)","v":{"$error":"#N/A"}},null,null,null,null,null,null,null,"EUR",null,null,null,{"$error":"#DIV/0!"},0,0,null,"","","","","","","","","","",null,null,null,null,null,null,null,null,null,null,null,null,null,null,6,"None","Parcel","ZWO"]
[null,null,null,null,null,null,null,null,null,null,null,null,null,null,{"$f":"VLOOKUP(N643,Tabel10[[korte omschrijving]:[MCC3_CODE]],2,0)","v":{"$error":"#N/A"}},{"$f":"VLOOKUP(N643,Tabel10[],3,0)","v":{"$error":"#N/A"}},null,null,null,null,null,null,null,"EUR",null,null,null,{"$error":"#DIV/0!"},0,0,null,"","","","","","","","","","",null,null,null,null,null,null,null,null,null,null,null,null,null,null,6,"None","Parcel","ZWO"]
[null,null,null,null,null,null,null,null,null,null,null,null,null,null,{"$f":"VLOOKUP(N644,Tabel10[[korte omschrijving]:[MCC3_CODE]],2,0)","v":{"$error":"#N/A"}},{"$f":"VLOOKUP(N644,Tabel10[],3,0)","v":{"$error":"#N/A"}},null,null,null,null,null,null,null,"EUR",null,null,null,{"$error":"#DIV/0!"},0,0,null,"","","","","","","","","","",null,null,null,null,null,null,null,null,null,null,null,null,null,null,6,"None","Parcel","ZWO"]
[null,null,null,null,null,null,null,null,null,null,null,null,null,null,{"$f":"VLOOKUP(N645,Tabel10[[korte omschrijving]:[MCC3_CODE]],2,0)","v":{"$error":"#N/A"}},{"$f":"VLOOKUP(N645,Tabel10[],3,0)","v":{"$error":"#N/A"}},null,null,null,null,null,null,null,"EUR",null,null,null,{"$error":"#DIV/0!"},0,0,null,"","","","","","","","","","",null,null,null,null,null,null,null,null,null,null,null,null,null,null,6,"None","Parcel","ZWO"]
[null,null,null,null,null,null,null,null,null,null,null,null,null,null,{"$f":"VLOOKUP(N646,Tabel10[[korte omschrijving]:[MCC3_CODE]],2,0)","v":{"$error":"#N/A"}},{"$f":"VLOOKUP(N646,Tabel10[],3,0)","v":{"$error":"#N/A"}},null,null,null,null,null,null,null,"EUR",null,null,null,{"$error":"#DIV/0!"},0,0,null,"","","","","","","","","","",null,null,null,null,null,null,null,null,null,null,null,null,null,null,6,"None","Parcel","ZWO"]
[null,null,null,null,null,null,null,null,null,null,null,null,null,null,{"$f":"VLOOKUP(N647,Tabel10[[korte omschrijving]:[MCC3_CODE]],2,0)","v":{"$error":"#N/A"}},{"$f":"VLOOKUP(N647,Tabel10[],3,0)","v":{"$error":"#N/A"}},null,null,null,null,null,null,null,"EUR",null,null,null,{"$f":"AA647/Y647","v":{"$error":"#DIV/0!"}},{"$f":"T647*Y647","v":0},{"$f":"T647*AA647","v":0},null,{"$f":"IF(AE647 <> \"\",\n    IF(ISNUMBER(VALUE(LEFT(AE647, FIND(\"%\", AE647)-1))),\n        VALUE(LEFT(AE647, FIND(\"%\", AE647)-1)),\n        \"Invalid format\"),\n    \"\")","v":""},{"$f":"IF(AE647 <> \"\",\n    IF(ISNUMBER(VALUE(LEFT(AE647, FIND(\"%\", AE647)-1))) * ISNUMBER(FIND(\"%\", AE647 & \"wol\")) > 0,\n        TRIM(MID(AE647, FIND(\"%\", AE647)+1, FIND(\"/\", AE647 & \"/\")-FIND(\"%\", AE647)-1)),\n        \"Invalid format\"),\n    \"\")","v":""},{"$f":"IF(AE647 <> \"\",\n    IF(ISNUMBER(VALUE(MID(AE647, FIND(\"/\", AE647) + 1, FIND(\"%\", AE647, FIND(\"/\", AE647)) - FIND(\"/\", AE647) - 1))),\n        VALUE(MID(AE647, FIND(\"/\", AE647) + 1, FIND(\"%\", AE647, FIND(\"/\", AE647)) - FIND(\"/\", AE647) - 1)),\n        \"\"),\n    \"\")","v":""},{"$f":"IF(AE647 <> \"\",\n    IFERROR(TRIM(MID(AE647, FIND(\"%\", AE647, FIND(\"/\", AE647)+1)+2,\n        IFERROR(FIND(\"/\", AE647 & \"/\", FIND(\"/\", AE647)+1)-FIND(\"%\", AE647, FIND(\"/\", AE647)+1)-2, LEN(AE647)-FIND(\"%\", AE647, FIND(\"/\", AE647)+1)-1))),\n        \"\"),\n    \"\")","v":""},{"$f":"IF(AE647 <> \"\",\n    IF(ISNUMBER(VALUE(MID(AE647, FIND(\"/\", AE647, FIND(\"/\", AE647)+1) + 1, FIND(\"%\", AE647, FIND(\"/\", AE647, FIND(\"/\", AE647)+1)) - FIND(\"/\", AE647, FIND(\"/\", AE647)+1) - 1))),\n        VALUE(MID(AE647, FIND(\"/\", AE647, FIND(\"/\", AE647)+1) + 1, FIND(\"%\", AE647, FIND(\"/\", AE647, FIND(\"/\", AE647)+1)) - FIND(\"/\", AE647, FIND(\"/\", AE647)+1) - 1)),\n        \"\"),\n    \"\")","v":""},{"$f":"IF(AE647 <> \"\",\n    IFERROR(\n        TRIM(MID(AE647,\n            FIND(\"%\", AE647, FIND(\"%\", AE647, FIND(\"%\", AE647)+1)+1)+1,\n            FIND(\"/\", AE647 & \"/\", FIND(\"%\", AE647, FIND(\"%\", AE647, FIND(\"%\", AE647)+1)+1))-FIND(\"%\", AE647, FIND(\"%\", AE647, FIND(\"%\", AE647)+1)+1)-1)\n        ),\n        \"\"\n    ),\n    \"\"\n)","v":""},{"$f":"IF(AE647 <> \"\",\n    IF(ISNUMBER(VALUE(MID(AE647, FIND(\"/\", AE647, FIND(\"/\", AE647, FIND(\"/\", AE647)+1)+1) + 1, FIND(\"%\", AE647, FIND(\"/\", AE647, FIND(\"/\", AE647, FIND(\"/\", AE647)+1)+1)) - FIND(\"/\", AE647, FIND(\"/\", AE647, FIND(\"/\", AE647)+1)+1) - 1))),\n        VALUE(MID(AE647, FIND(\"/\", AE647, FIND(\"/\", AE647, FIND(\"/\", AE647)+1)+1) + 1, FIND(\"%\", AE647, FIND(\"/\", AE647, FIND(\"/\", AE647, FIND(\"/\", AE647)+1)+1)) - FIND(\"/\", AE647, FIND(\"/\", AE647, FIND(\"/\", AE647)+1)+1) - 1)),\n        \"\"),\n    \"\")","v":""},{"$f":"IF(AE647 <> \"\",\n    IFERROR(TRIM(MID(AE647, FIND(\"%\", AE647, FIND(\"/\", AE647, FIND(\"/\", AE647, FIND(\"/\", AE647)+1)+1)+1)+2,\n        IFERROR(FIND(\"/\", AE647, FIND(\"/\", AE647, FIND(\"/\", AE647, FIND(\"/\", AE647)+1)+1)+1)-FIND(\"%\", AE647, FIND(\"/\", AE647, FIND(\"/\", AE647, FIND(\"/\", AE647)+1)+1)+1)-2, LEN(AE647)-FIND(\"%\", AE647, FIND(\"/\", AE647, FIND(\"/\", AE647, FIND(\"/\", AE647)+1)+1)+1)-1))),\n        \"\"),\n    \"\")","v":""},{"$f":"IF(AE647 <> \"\",\n    IF(ISNUMBER(VALUE(MID(AE647, FIND(\"/\", AE647, FIND(\"/\", AE647, FIND(\"/\", AE647, FIND(\"/\", AE647)+1)+1)+1) + 1, FIND(\"%\", AE647, FIND(\"/\", AE647, FIND(\"/\", AE647, FIND(\"/\", AE647, FIND(\"/\", AE647)+1)+1)+1)) - FIND(\"/\", AE647, FIND(\"/\", AE647, FIND(\"/\", AE647, FIND(\"/\", AE647)+1)+1)+1) - 1))),\n        VALUE(MID(AE647, FIND(\"/\", AE647, FIND(\"/\", AE647, FIND(\"/\", AE647, FIND(\"/\", AE647)+1)+1)+1) + 1, FIND(\"%\", AE647, FIND(\"/\", AE647, FIND(\"/\", AE647, FIND(\"/\", AE647, FIND(\"/\", AE647)+1)+1)+1)) - FIND(\"/\", AE647, FIND(\"/\", AE647, FIND(\"/\", AE647, FIND(\"/\", AE647)+1)+1)+1) - 1)),\n        \"\"),\n    \"\")","v":""},{"$f":"IF(AE647 = \"\", \"\",\n    IFERROR(TRIM(\n        MID(\n            AE647,\n            FIND(\"%\", AE647, FIND(\"/\", AE647, FIND(\"/\", AE647, FIND(\"/\", AE647, FIND(\"/\", AE647)+1)+1)+1)+1) + 1,\n            FIND(\"/\", AE647 & \"/\", FIND(\"%\", AE647, FIND(\"/\", AE647, FIND(\"/\", AE647, FIND(\"/\", AE647, FIND(\"/\", AE647)+1)+1)+1)+1)) -\n            FIND(\"%\", AE647, FIND(\"/\", AE647, FIND(\"/\", AE647, FIND(\"/\", AE647, FIND(\"/\", AE647)+1)+1)+1)+1) - 1\n        )\n    ),\n    \"\")\n)","v":""},null,null,null,null,null,null,null,null,null,null,null,null,null,null,6,"None","Parcel","ZWO"]
[null,null,null,null,null,null,null,null,null,null,null,null,null,null,{"$f":"VLOOKUP(N648,Tabel10[[korte omschrijving]:[MCC3_CODE]],2,0)","v":{"$error":"#N/A"}},{"$f":"VLOOKUP(N648,Tabel10[],3,0)","v":{"$error":"#N/A"}},null,null,null,null,null,null,null,"EUR",null,null,null,{"$error":"#DIV/0!"},0,0,null,"","","","","","","","","","",null,null,null,null,null,null,null,null,null,null,null,null,null,null,6,"None","Parcel","ZWO"]
[null,null,null,null,null,null,null,null,null,null,null,null,null,null,{"$f":"VLOOKUP(N649,Tabel10[[korte omschrijving]:[MCC3_CODE]],2,0)","v":{"$error":"#N/A"}},{"$f":"VLOOKUP(N649,Tabel10[],3,0)","v":{"$error":"#N/A"}},null,null,null,null,null,null,null,"EUR",null,null,null,{"$error":"#DIV/0!"},0,0,null,"","","","","","","","","","",null,null,null,null,null,null,null,null,null,null,null,null,null,null,6,"None","Parcel","ZWO"]
[null,null,null,null,null,null,null,null,null,null,null,null,null,null,{"$f":"VLOOKUP(N650,Tabel10[[korte omschrijving]:[MCC3_CODE]],2,0)","v":{"$error":"#N/A"}},{"$f":"VLOOKUP(N650,Tabel10[],3,0)","v":{"$error":"#N/A"}},null,null,null,null,null,null,null,"EUR",null,null,null,{"$error":"#DIV/0!"},0,0,null,"","","","","","","","","","",null,null,null,null,null,null,null,null,null,null,null,null,null,null,6,"None","Parcel","ZWO"]
[null,null,null,null,null,null,null,null,null,null,null,null,null,null,{"$f":"VLOOKUP(N651,Tabel10[[korte omschrijving]:[MCC3_CODE]],2,0)","v":{"$error":"#N/A"}},{"$f":"VLOOKUP(N651,Tabel10[],3,0)","v":{"$error":"#N/A"}},null,null,null,null,null,null,null,"EUR",null,null,null,{"$error":"#DIV/0!"},0,0,null,"","","","","","","","","","",null,null,null,null,null,null,null,null,null,null,null,null,null,null,6,"None","Parcel","ZWO"]
[null,null,null,null,null,null,null,null,null,null,null,null,null,null,{"$f":"VLOOKUP(N652,Tabel10[[korte omschrijving]:[MCC3_CODE]],2,0)","v":{"$error":"#N/A"}},{"$f":"VLOOKUP(N652,Tabel10[],3,0)","v":{"$error":"#N/A"}},null,null,null,null,null,null,null,"EUR",null,null,null,{"$error":"#DIV/0!"},0,0,null,"","","","","","","","","","",null,null,null,null,null,null,null,null,null,null,null,null,null,null,6,"None","Parcel","ZWO"]
[null,null,null,null,null,null,null,null,null,null,null,null,null,null,{"$f":"VLOOKUP(N653,Tabel10[[korte omschrijving]:[MCC3_CODE]],2,0)","v":{"$error":"#N/A"}},{"$f":"VLOOKUP(N653,Tabel10[],3,0)","v":{"$error":"#N/A"}},null,null,null,null,null,null,null,"EUR",null,null,null,{"$error":"#DIV/0!"},0,0,null,"","","","","","","","","","",null,null,null,null,null,null,null,null,null,null,null,null,null,null,6,"None","Parcel","ZWO"]
[null,null,null,null,null,null,null,null,null,null,null,null,null,null,{"$f":"VLOOKUP(N654,Tabel10[[korte omschrijving]:[MCC3_CODE]],2,0)","v":{"$error":"#N/A"}},{"$f":"VLOOKUP(N654,Tabel10[],3,0)","v":{"$error":"#N/A"}},null,null,null,null,null,null,null,"EUR",null,null,null,{"$error":"#DIV/0!"},0,0,null,"","","","","","","","","","",null,null,null,null,null,null,null,null,null,null,null,null,null,null,6,"None","Parcel","ZWO"]
[null,null,null,null,null,null,null,null,null,null,null,null,null,null,{"$f":"VLOOKUP(N655,Tabel10[[korte omschrijving]:[MCC3_CODE]],2,0)","v":{"$error":"#N/A"}},{"$f":"VLOOKUP(N655,Tabel10[],3,0)","v":{"$error":"#N/A"}},null,null,null,null,null,null,null,"EUR",null,null,null,{"$error":"#DIV/0!"},0,0,null,"","","","","","","","","","",null,null,null,null,null,null,null,null,null,null,null,null,null,null,6,"None","Parcel","ZWO"]
[null,null,null,null,null,null,null,null,null,null,null,null,null,null,{"$f":"VLOOKUP(N656,Tabel10[[korte omschrijving]:[MCC3_CODE]],2,0)","v":{"$error":"#N/A"}},{"$f":"VLOOKUP(N656,Tabel10[],3,0)","v":{"$error":"#N/A"}},null,null,null,null,null,null,null,"EUR",null,null,null,{"$error":"#DIV/0!"},0,0,null,"","","","","","","","","","",null,null,null,null,null,null,null,null,null,null,null,null,null,null,6,"None","Parcel","ZWO"]
[null,null,null,null,null,null,null,null,null,null,null,null,null,null,{"$f":"VLOOKUP(N657,Tabel10[[korte omschrijving]:[MCC3_CODE]],2,0)","v":{"$error":"#N/A"}},{"$f":"VLOOKUP(N657,Tabel10[],3,0)","v":{"$error":"#N/A"}},null,null,null,null,null,null,null,"EUR",null,null,null,{"$error":"#DIV/0!"},0,0,null,"","","","","","","","","","",null,null,null,null,null,null,null,null,null,null,null,null,null,null,6,"None","Parcel","ZWO"]
[null,null,null,null,null,null,null,null,null,null,null,null,null,null,{"$f":"VLOOKUP(N658,Tabel10[[korte omschrijving]:[MCC3_CODE]],2,0)","v":{"$error":"#N/A"}},{"$f":"VLOOKUP(N658,Tabel10[],3,0)","v":{"$error":"#N/A"}},null,null,null,null,null,null,null,"EUR",null,null,null,{"$error":"#DIV/0!"},0,0,null,"","","","","","","","","","",null,null,null,null,null,null,null,null,null,null,null,null,null,null,6,"None","Parcel","ZWO"]
[null,null,null,null,null,null,null,null,null,null,null,null,null,null,{"$f":"VLOOKUP(N659,Tabel10[[korte omschrijving]:[MCC3_CODE]],2,0)","v":{"$error":"#N/A"}},{"$f":"VLOOKUP(N659,Tabel10[],3,0)","v":{"$error":"#N/A"}},null,null,null,null,null,null,null,"EUR",null,null,null,{"$error":"#DIV/0!"},0,0,null,"","","","","","","","","","",null,null,null,null,null,null,null,null,null,null,null,null,null,null,6,"None","Parcel","ZWO"]
[null,null,null,null,null,null,null,null,null,null,null,null,null,null,{"$f":"VLOOKUP(N660,Tabel10[[korte omschrijving]:[MCC3_CODE]],2,0)","v":{"$error":"#N/A"}},{"$f":"VLOOKUP(N660,Tabel10[],3,0)","v":{"$error":"#N/A"}},null,null,null,null,null,null,null,"EUR",null,null,null,{"$error":"#DIV/0!"},0,0,null,"","","","","","","","","","",null,null,null,null,null,null,null,null,null,null,null,null,null,null,6,"None","Parcel","ZWO"]
[null,null,null,null,null,null,null,null,null,null,null,null,null,null,{"$f":"VLOOKUP(N661,Tabel10[[korte omschrijving]:[MCC3_CODE]],2,0)","v":{"$error":"#N/A"}},{"$f":"VLOOKUP(N661,Tabel10[],3,0)","v":{"$error":"#N/A"}},null,null,null,null,null,null,null,"EUR",null,null,null,{"$error":"#DIV/0!"},0,0,null,"","","","","","","","","","",null,null,null,null,null,null,null,null,null,null,null,null,null,null,6,"None","Parcel","ZWO"]
[null,null,null,null,null,null,null,null,null,null,null,null,null,null,{"$f":"VLOOKUP(N662,Tabel10[[korte omschrijving]:[MCC3_CODE]],2,0)","v":{"$error":"#N/A"}},{"$f":"VLOOKUP(N662,Tabel10[],3,0)","v":{"$error":"#N/A"}},null,null,null,null,null,null,null,"EUR",null,null,null,{"$error":"#DIV/0!"},0,0,null,"","","","","","","","","","",null,null,null,null,null,null,null,null,null,null,null,null,null,null,6,"None","Parcel","ZWO"]
[null,null,null,null,null,null,null,null,null,null,null,null,null,null,{"$f":"VLOOKUP(N663,Tabel10[[korte omschrijving]:[MCC3_CODE]],2,0)","v":{"$error":"#N/A"}},{"$f":"VLOOKUP(N663,Tabel10[],3,0)","v":{"$error":"#N/A"}},null,null,null,null,null,null,null,"EUR",null,null,null,{"$error":"#DIV/0!"},0,0,null,"","","","","","","","","","",null,null,null,null,null,null,null,null,null,null,null,null,null,null,6,"None","Parcel","ZWO"]
[null,null,null,null,null,null,null,null,null,null,null,null,null,null,{"$f":"VLOOKUP(N664,Tabel10[[korte omschrijving]:[MCC3_CODE]],2,0)","v":{"$error":"#N/A"}},{"$f":"VLOOKUP(N664,Tabel10[],3,0)","v":{"$error":"#N/A"}},null,null,null,null,null,null,null,"EUR",null,null,null,{"$error":"#DIV/0!"},0,0,null,"","","","","","","","","","",null,null,null,null,null,null,null,null,null,null,null,null,null,null,6,"None","Parcel","ZWO"]
[null,null,null,null,null,null,null,null,null,null,null,null,null,null,{"$f":"VLOOKUP(N665,Tabel10[[korte omschrijving]:[MCC3_CODE]],2,0)","v":{"$error":"#N/A"}},{"$f":"VLOOKUP(N665,Tabel10[],3,0)","v":{"$error":"#N/A"}},null,null,null,null,null,null,null,"EUR",null,null,null,{"$error":"#DIV/0!"},0,0,null,"","","","","","","","","","",null,null,null,null,null,null,null,null,null,null,null,null,null,null,6,"None","Parcel","ZWO"]
[null,null,null,null,null,null,null,null,null,null,null,null,null,null,{"$f":"VLOOKUP(N666,Tabel10[[korte omschrijving]:[MCC3_CODE]],2,0)","v":{"$error":"#N/A"}},{"$f":"VLOOKUP(N666,Tabel10[],3,0)","v":{"$error":"#N/A"}},null,null,null,null,null,null,null,"EUR",null,null,null,{"$error":"#DIV/0!"},0,0,null,"","","","","","","","","","",null,null,null,null,null,null,null,null,null,null,null,null,null,null,6,"None","Parcel","ZWO"]
[null,null,null,null,null,null,null,null,null,null,null,null,null,null,{"$f":"VLOOKUP(N667,Tabel10[[korte omschrijving]:[MCC3_CODE]],2,0)","v":{"$error":"#N/A"}},{"$f":"VLOOKUP(N667,Tabel10[],3,0)","v":{"$error":"#N/A"}},null,null,null,null,null,null,null,"EUR",null,null,null,{"$error":"#DIV/0!"},0,0,null,"","","","","","","","","","",null,null,null,null,null,null,null,null,null,null,null,null,null,null,6,"None","Parcel","ZWO"]
[null,null,null,null,null,null,null,null,null,null,null,null,null,null,{"$f":"VLOOKUP(N668,Tabel10[[korte omschrijving]:[MCC3_CODE]],2,0)","v":{"$error":"#N/A"}},{"$f":"VLOOKUP(N668,Tabel10[],3,0)","v":{"$error":"#N/A"}},null,null,null,null,null,null,null,"EUR",null,null,null,{"$error":"#DIV/0!"},0,0,null,"","","","","","","","","","",null,null,null,null,null,null,null,null,null,null,null,null,null,null,6,"None","Parcel","ZWO"]
[null,null,null,null,null,null,null,null,null,null,null,null,null,null,{"$f":"VLOOKUP(N669,Tabel10[[korte omschrijving]:[MCC3_CODE]],2,0)","v":{"$error":"#N/A"}},{"$f":"VLOOKUP(N669,Tabel10[],3,0)","v":{"$error":"#N/A"}},null,null,null,null,null,null,null,"EUR",null,null,null,{"$error":"#DIV/0!"},0,0,null,"","","","","","","","","","",null,null,null,null,null,null,null,null,null,null,null,null,null,null,6,"None","Parcel","ZWO"]
[null,null,null,null,null,null,null,null,null,null,null,null,null,null,{"$f":"VLOOKUP(N670,Tabel10[[korte omschrijving]:[MCC3_CODE]],2,0)","v":{"$error":"#N/A"}},{"$f":"VLOOKUP(N670,Tabel10[],3,0)","v":{"$error":"#N/A"}},null,null,null,null,null,null,null,"EUR",null,null,null,{"$error":"#DIV/0!"},0,0,null,"","","","","","","","","","",null,null,null,null,null,null,null,null,null,null,null,null,null,null,6,"None","Parcel","ZWO"]
[null,null,null,null,null,null,null,null,null,null,null,null,null,null,{"$f":"VLOOKUP(N671,Tabel10[[korte omschrijving]:[MCC3_CODE]],2,0)","v":{"$error":"#N/A"}},{"$f":"VLOOKUP(N671,Tabel10[],3,0)","v":{"$error":"#N/A"}},null,null,null,null,null,null,null,"EUR",null,null,null,{"$error":"#DIV/0!"},0,0,null,"","","","","","","","","","",null,null,null,null,null,null,null,null,null,null,null,null,null,null,6,"None","Parcel","ZWO"]
[null,null,null,null,null,null,null,null,null,null,null,null,null,null,{"$f":"VLOOKUP(N672,Tabel10[[korte omschrijving]:[MCC3_CODE]],2,0)","v":{"$error":"#N/A"}},{"$f":"VLOOKUP(N672,Tabel10[],3,0)","v":{"$error":"#N/A"}},null,null,null,null,null,null,null,"EUR",null,null,null,{"$error":"#DIV/0!"},0,0,null,"","","","","","","","","","",null,null,null,null,null,null,null,null,null,null,null,null,null,null,6,"None","Parcel","ZWO"]
[null,null,null,null,null,null,null,null,null,null,null,null,null,null,{"$f":"VLOOKUP(N673,Tabel10[[korte omschrijving]:[MCC3_CODE]],2,0)","v":{"$error":"#N/A"}},{"$f":"VLOOKUP(N673,Tabel10[],3,0)","v":{"$error":"#N/A"}},null,null,null,null,null,null,null,"EUR",null,null,null,{"$error":"#DIV/0!"},0,0,null,"","","","","","","","","","",null,null,null,null,null,null,null,null,null,null,null,null,null,null,6,"None","Parcel","ZWO"]
[null,null,null,null,null,null,null,null,null,null,null,null,null,null,{"$f":"VLOOKUP(N674,Tabel10[[korte omschrijving]:[MCC3_CODE]],2,0)","v":{"$error":"#N/A"}},{"$f":"VLOOKUP(N674,Tabel10[],3,0)","v":{"$error":"#N/A"}},null,null,null,null,null,null,null,"EUR",null,null,null,{"$error":"#DIV/0!"},0,0,null,"","","","","","","","","","",null,null,null,null,null,null,null,null,null,null,null,null,null,null,6,"None","Parcel","ZWO"]
[null,null,null,null,null,null,null,null,null,null,null,null,null,null,{"$f":"VLOOKUP(N675,Tabel10[[korte omschrijving]:[MCC3_CODE]],2,0)","v":{"$error":"#N/A"}},{"$f":"VLOOKUP(N675,Tabel10[],3,0)","v":{"$error":"#N/A"}},null,null,null,null,null,null,null,"EUR",null,null,null,{"$error":"#DIV/0!"},0,0,null,"","","","","","","","","","",null,null,null,null,null,null,null,null,null,null,null,null,null,null,6,"None","Parcel","ZWO"]
[null,null,null,null,null,null,null,null,null,null,null,null,null,null,{"$f":"VLOOKUP(N676,Tabel10[[korte omschrijving]:[MCC3_CODE]],2,0)","v":{"$error":"#N/A"}},{"$f":"VLOOKUP(N676,Tabel10[],3,0)","v":{"$error":"#N/A"}},null,null,null,null,null,null,null,"EUR",null,null,null,{"$error":"#DIV/0!"},0,0,null,"","","","","","","","","","",null,null,null,null,null,null,null,null,null,null,null,null,null,null,6,"None","Parcel","ZWO"]
[null,null,null,null,null,null,null,null,null,null,null,null,null,null,{"$f":"VLOOKUP(N677,Tabel10[[korte omschrijving]:[MCC3_CODE]],2,0)","v":{"$error":"#N/A"}},{"$f":"VLOOKUP(N677,Tabel10[],3,0)","v":{"$error":"#N/A"}},null,null,null,null,null,null,null,"EUR",null,null,null,{"$error":"#DIV/0!"},0,0,null,"","","","","","","","","","",null,null,null,null,null,null,null,null,null,null,null,null,null,null,6,"None","Parcel","ZWO"]
[null,null,null,null,null,null,null,null,null,null,null,null,null,null,{"$f":"VLOOKUP(N678,Tabel10[[korte omschrijving]:[MCC3_CODE]],2,0)","v":{"$error":"#N/A"}},{"$f":"VLOOKUP(N678,Tabel10[],3,0)","v":{"$error":"#N/A"}},null,null,null,null,null,null,null,"EUR",null,null,null,{"$error":"#DIV/0!"},0,0,null,"","","","","","","","","","",null,null,null,null,null,null,null,null,null,null,null,null,null,null,6,"None","Parcel","ZWO"]
[null,null,null,null,null,null,null,null,null,null,null,null,null,null,{"$f":"VLOOKUP(N679,Tabel10[[korte omschrijving]:[MCC3_CODE]],2,0)","v":{"$error":"#N/A"}},{"$f":"VLOOKUP(N679,Tabel10[],3,0)","v":{"$error":"#N/A"}},null,null,null,null,null,null,null,"EUR",null,null,null,{"$error":"#DIV/0!"},0,0,null,"","","","","","","","","","",null,null,null,null,null,null,null,null,null,null,null,null,null,null,6,"None","Parcel","ZWO"]
[null,null,null,null,null,null,null,null,null,null,null,null,null,null,{"$f":"VLOOKUP(N680,Tabel10[[korte omschrijving]:[MCC3_CODE]],2,0)","v":{"$error":"#N/A"}},{"$f":"VLOOKUP(N680,Tabel10[],3,0)","v":{"$error":"#N/A"}},null,null,null,null,null,null,null,"EUR",null,null,null,{"$error":"#DIV/0!"},0,0,null,"","","","","","","","","","",null,null,null,null,null,null,null,null,null,null,null,null,null,null,6,"None","Parcel","ZWO"]
[null,null,null,null,null,null,null,null,null,null,null,null,null,null,{"$f":"VLOOKUP(N681,Tabel10[[korte omschrijving]:[MCC3_CODE]],2,0)","v":{"$error":"#N/A"}},{"$f":"VLOOKUP(N681,Tabel10[],3,0)","v":{"$error":"#N/A"}},null,null,null,null,null,null,null,"EUR",null,null,null,{"$error":"#DIV/0!"},0,0,null,"","","","","","","","","","",null,null,null,null,null,null,null,null,null,null,null,null,null,null,6,"None","Parcel","ZWO"]
[null,null,null,null,null,null,null,null,null,null,null,null,null,null,{"$f":"VLOOKUP(N682,Tabel10[[korte omschrijving]:[MCC3_CODE]],2,0)","v":{"$error":"#N/A"}},{"$f":"VLOOKUP(N682,Tabel10[],3,0)","v":{"$error":"#N/A"}},null,null,null,null,null,null,null,"EUR",null,null,null,{"$error":"#DIV/0!"},0,0,null,"","","","","","","","","","",null,null,null,null,null,null,null,null,null,null,null,null,null,null,6,"None","Parcel","ZWO"]
[null,null,null,null,null,null,null,null,null,null,null,null,null,null,{"$f":"VLOOKUP(N683,Tabel10[[korte omschrijving]:[MCC3_CODE]],2,0)","v":{"$error":"#N/A"}},{"$f":"VLOOKUP(N683,Tabel10[],3,0)","v":{"$error":"#N/A"}},null,null,null,null,null,null,null,"EUR",null,null,null,{"$error":"#DIV/0!"},0,0,null,"","","","","","","","","","",null,null,null,null,null,null,null,null,null,null,null,null,null,null,6,"None","Parcel","ZWO"]
[null,null,null,null,null,null,null,null,null,null,null,null,null,null,{"$f":"VLOOKUP(N684,Tabel10[[korte omschrijving]:[MCC3_CODE]],2,0)","v":{"$error":"#N/A"}},{"$f":"VLOOKUP(N684,Tabel10[],3,0)","v":{"$error":"#N/A"}},null,null,null,null,null,null,null,"EUR",null,null,null,{"$error":"#DIV/0!"},0,0,null,"","","","","","","","","","",null,null,null,null,null,null,null,null,null,null,null,null,null,null,6,"None","Parcel","ZWO"]
[null,null,null,null,null,null,null,null,null,null,null,null,null,null,{"$f":"VLOOKUP(N685,Tabel10[[korte omschrijving]:[MCC3_CODE]],2,0)","v":{"$error":"#N/A"}},{"$f":"VLOOKUP(N685,Tabel10[],3,0)","v":{"$error":"#N/A"}},null,null,null,null,null,null,null,"EUR",null,null,null,{"$error":"#DIV/0!"},0,0,null,"","","","","","","","","","",null,null,null,null,null,null,null,null,null,null,null,null,null,null,6,"None","Parcel","ZWO"]
[null,null,null,null,null,null,null,null,null,null,null,null,null,null,{"$f":"VLOOKUP(N686,Tabel10[[korte omschrijving]:[MCC3_CODE]],2,0)","v":{"$error":"#N/A"}},{"$f":"VLOOKUP(N686,Tabel10[],3,0)","v":{"$error":"#N/A"}},null,null,null,null,null,null,null,"EUR",null,null,null,{"$error":"#DIV/0!"},0,0,null,"","","","","","","","","","",null,null,null,null,null,null,null,null,null,null,null,null,null,null,6,"None","Parcel","ZWO"]
[null,null,null,null,null,null,null,null,null,null,null,null,null,null,{"$f":"VLOOKUP(N687,Tabel10[[korte omschrijving]:[MCC3_CODE]],2,0)","v":{"$error":"#N/A"}},{"$f":"VLOOKUP(N687,Tabel10[],3,0)","v":{"$error":"#N/A"}},null,null,null,null,null,null,null,"EUR",null,null,null,{"$error":"#DIV/0!"},0,0,null,"","","","","","","","","","",null,null,null,null,null,null,null,null,null,null,null,null,null,null,6,"None","Parcel","ZWO"]
[null,null,null,null,null,null,null,null,null,null,null,null,null,null,{"$f":"VLOOKUP(N688,Tabel10[[korte omschrijving]:[MCC3_CODE]],2,0)","v":{"$error":"#N/A"}},{"$f":"VLOOKUP(N688,Tabel10[],3,0)","v":{"$error":"#N/A"}},null,null,null,null,null,null,null,"EUR",null,null,null,{"$error":"#DIV/0!"},0,0,null,"","","","","","","","","","",null,null,null,null,null,null,null,null,null,null,null,null,null,null,6,"None","Parcel","ZWO"]
[null,null,null,null,null,null,null,null,null,null,null,null,null,null,{"$f":"VLOOKUP(N689,Tabel10[[korte omschrijving]:[MCC3_CODE]],2,0)","v":{"$error":"#N/A"}},{"$f":"VLOOKUP(N689,Tabel10[],3,0)","v":{"$error":"#N/A"}},null,null,null,null,null,null,null,"EUR",null,null,null,{"$error":"#DIV/0!"},0,0,null,"","","","","","","","","","",null,null,null,null,null,null,null,null,null,null,null,null,null,null,6,"None","Parcel","ZWO"]
[null,null,null,null,null,null,null,null,null,null,null,null,null,null,{"$f":"VLOOKUP(N690,Tabel10[[korte omschrijving]:[MCC3_CODE]],2,0)","v":{"$error":"#N/A"}},{"$f":"VLOOKUP(N690,Tabel10[],3,0)","v":{"$error":"#N/A"}},null,null,null,null,null,null,null,"EUR",null,null,null,{"$error":"#DIV/0!"},0,0,null,"","","","","","","","","","",null,null,null,null,null,null,null,null,null,null,null,null,null,null,6,"None","Parcel","ZWO"]
[null,null,null,null,null,null,null,null,null,null,null,null,null,null,{"$f":"VLOOKUP(N691,Tabel10[[korte omschrijving]:[MCC3_CODE]],2,0)","v":{"$error":"#N/A"}},{"$f":"VLOOKUP(N691,Tabel10[],3,0)","v":{"$error":"#N/A"}},null,null,null,null,null,null,null,"EUR",null,null,null,{"$error":"#DIV/0!"},0,0,null,"","","","","","","","","","",null,null,null,null,null,null,null,null,null,null,null,null,null,null,6,"None","Parcel","ZWO"]
[null,null,null,null,null,null,null,null,null,null,null,null,null,null,{"$f":"VLOOKUP(N692,Tabel10[[korte omschrijving]:[MCC3_CODE]],2,0)","v":{"$error":"#N/A"}},{"$f":"VLOOKUP(N692,Tabel10[],3,0)","v":{"$error":"#N/A"}},null,null,null,null,null,null,null,"EUR",null,null,null,{"$error":"#DIV/0!"},0,0,null,"","","","","","","","","","",null,null,null,null,null,null,null,null,null,null,null,null,null,null,6,"None","Parcel","ZWO"]
[null,null,null,null,null,null,null,null,null,null,null,null,null,null,{"$f":"VLOOKUP(N693,Tabel10[[korte omschrijving]:[MCC3_CODE]],2,0)","v":{"$error":"#N/A"}},{"$f":"VLOOKUP(N693,Tabel10[],3,0)","v":{"$error":"#N/A"}},null,null,null,null,null,null,null,"EUR",null,null,null,{"$error":"#DIV/0!"},0,0,null,"","","","","","","","","","",null,null,null,null,null,null,null,null,null,null,null,null,null,null,6,"None","Parcel","ZWO"]
[null,null,null,null,null,null,null,null,null,null,null,null,null,null,{"$f":"VLOOKUP(N694,Tabel10[[korte omschrijving]:[MCC3_CODE]],2,0)","v":{"$error":"#N/A"}},{"$f":"VLOOKUP(N694,Tabel10[],3,0)","v":{"$error":"#N/A"}},null,null,null,null,null,null,null,"EUR",null,null,null,{"$error":"#DIV/0!"},0,0,null,"","","","","","","","","","",null,null,null,null,null,null,null,null,null,null,null,null,null,null,6,"None","Parcel","ZWO"]
[null,null,null,null,null,null,null,null,null,null,null,null,null,null,{"$f":"VLOOKUP(N695,Tabel10[[korte omschrijving]:[MCC3_CODE]],2,0)","v":{"$error":"#N/A"}},{"$f":"VLOOKUP(N695,Tabel10[],3,0)","v":{"$error":"#N/A"}},null,null,null,null,null,null,null,"EUR",null,null,null,{"$error":"#DIV/0!"},0,0,null,"","","","","","","","","","",null,null,null,null,null,null,null,null,null,null,null,null,null,null,6,"None","Parcel","ZWO"]
[null,null,null,null,null,null,null,null,null,null,null,null,null,null,{"$f":"VLOOKUP(N696,Tabel10[[korte omschrijving]:[MCC3_CODE]],2,0)","v":{"$error":"#N/A"}},{"$f":"VLOOKUP(N696,Tabel10[],3,0)","v":{"$error":"#N/A"}},null,null,null,null,null,null,null,"EUR",null,null,null,{"$error":"#DIV/0!"},0,0,null,"","","","","","","","","","",null,null,null,null,null,null,null,null,null,null,null,null,null,null,6,"None","Parcel","ZWO"]
[null,null,null,null,null,null,null,null,null,null,null,null,null,null,{"$f":"VLOOKUP(N697,Tabel10[[korte omschrijving]:[MCC3_CODE]],2,0)","v":{"$error":"#N/A"}},{"$f":"VLOOKUP(N697,Tabel10[],3,0)","v":{"$error":"#N/A"}},null,null,null,null,null,null,null,"EUR",null,null,null,{"$error":"#DIV/0!"},0,0,null,"","","","","","","","","","",null,null,null,null,null,null,null,null,null,null,null,null,null,null,6,"None","Parcel","ZWO"]
[null,null,null,null,null,null,null,null,null,null,null,null,null,null,{"$f":"VLOOKUP(N698,Tabel10[[korte omschrijving]:[MCC3_CODE]],2,0)","v":{"$error":"#N/A"}},{"$f":"VLOOKUP(N698,Tabel10[],3,0)","v":{"$error":"#N/A"}},null,null,null,null,null,null,null,"EUR",null,null,null,{"$error":"#DIV/0!"},0,0,null,"","","","","","","","","","",null,null,null,null,null,null,null,null,null,null,null,null,null,null,6,"None","Parcel","ZWO"]
[null,null,null,null,null,null,null,null,null,null,null,null,null,null,{"$f":"VLOOKUP(N699,Tabel10[[korte omschrijving]:[MCC3_CODE]],2,0)","v":{"$error":"#N/A"}},{"$f":"VLOOKUP(N699,Tabel10[],3,0)","v":{"$error":"#N/A"}},null,null,null,null,null,null,null,"EUR",null,null,null,{"$error":"#DIV/0!"},0,0,null,"","","","","","","","","","",null,null,null,null,null,null,null,null,null,null,null,null,null,null,6,"None","Parcel","ZWO"]
[null,null,null,null,null,null,null,null,null,null,null,null,null,null,{"$f":"VLOOKUP(N700,Tabel10[[korte omschrijving]:[MCC3_CODE]],2,0)","v":{"$error":"#N/A"}},{"$f":"VLOOKUP(N700,Tabel10[],3,0)","v":{"$error":"#N/A"}},null,null,null,null,null,null,null,"EUR",null,null,null,{"$error":"#DIV/0!"},0,0,null,"","","","","","","","","","",null,null,null,null,null,null,null,null,null,null,null,null,null,null,6,"None","Parcel","ZWO"]
[null,null,null,null,null,null,null,null,null,null,null,null,null,null,{"$f":"VLOOKUP(N701,Tabel10[[korte omschrijving]:[MCC3_CODE]],2,0)","v":{"$error":"#N/A"}},{"$f":"VLOOKUP(N701,Tabel10[],3,0)","v":{"$error":"#N/A"}},null,null,null,null,null,null,null,"EUR",null,null,null,{"$error":"#DIV/0!"},0,0,null,"","","","","","","","","","",null,null,null,null,null,null,null,null,null,null,null,null,null,null,6,"None","Parcel","ZWO"]
[null,null,null,null,null,null,null,null,null,null,null,null,null,null,{"$f":"VLOOKUP(N702,Tabel10[[korte omschrijving]:[MCC3_CODE]],2,0)","v":{"$error":"#N/A"}},{"$f":"VLOOKUP(N702,Tabel10[],3,0)","v":{"$error":"#N/A"}},null,null,null,null,null,null,null,"EUR",null,null,null,{"$error":"#DIV/0!"},0,0,null,"","","","","","","","","","",null,null,null,null,null,null,null,null,null,null,null,null,null,null,6,"None","Parcel","ZWO"]
[null,null,null,null,null,null,null,null,null,null,null,null,null,null,{"$f":"VLOOKUP(N703,Tabel10[[korte omschrijving]:[MCC3_CODE]],2,0)","v":{"$error":"#N/A"}},{"$f":"VLOOKUP(N703,Tabel10[],3,0)","v":{"$error":"#N/A"}},null,null,null,null,null,null,null,"EUR",null,null,null,{"$error":"#DIV/0!"},0,0,null,"","","","","","","","","","",null,null,null,null,null,null,null,null,null,null,null,null,null,null,6,"None","Parcel","ZWO"]
[null,null,null,null,null,null,null,null,null,null,null,null,null,null,{"$f":"VLOOKUP(N704,Tabel10[[korte omschrijving]:[MCC3_CODE]],2,0)","v":{"$error":"#N/A"}},{"$f":"VLOOKUP(N704,Tabel10[],3,0)","v":{"$error":"#N/A"}},null,null,null,null,null,null,null,"EUR",null,null,null,{"$error":"#DIV/0!"},0,0,null,"","","","","","","","","","",null,null,null,null,null,null,null,null,null,null,null,null,null,null,6,"None","Parcel","ZWO"]
[null,null,null,null,null,null,null,null,null,null,null,null,null,null,{"$f":"VLOOKUP(N705,Tabel10[[korte omschrijving]:[MCC3_CODE]],2,0)","v":{"$error":"#N/A"}},{"$f":"VLOOKUP(N705,Tabel10[],3,0)","v":{"$error":"#N/A"}},null,null,null,null,null,null,null,"EUR",null,null,null,{"$error":"#DIV/0!"},0,0,null,"","","","","","","","","","",null,null,null,null,null,null,null,null,null,null,null,null,null,null,6,"None","Parcel","ZWO"]
[null,null,null,null,null,null,null,null,null,null,null,null,null,null,{"$f":"VLOOKUP(N706,Tabel10[[korte omschrijving]:[MCC3_CODE]],2,0)","v":{"$error":"#N/A"}},{"$f":"VLOOKUP(N706,Tabel10[],3,0)","v":{"$error":"#N/A"}},null,null,null,null,null,null,null,"EUR",null,null,null,{"$error":"#DIV/0!"},0,0,null,"","","","","","","","","","",null,null,null,null,null,null,null,null,null,null,null,null,null,null,6,"None","Parcel","ZWO"]
[null,null,null,null,null,null,null,null,null,null,null,null,null,null,{"$f":"VLOOKUP(N707,Tabel10[[korte omschrijving]:[MCC3_CODE]],2,0)","v":{"$error":"#N/A"}},{"$f":"VLOOKUP(N707,Tabel10[],3,0)","v":{"$error":"#N/A"}},null,null,null,null,null,null,null,"EUR",null,null,null,{"$error":"#DIV/0!"},0,0,null,"","","","","","","","","","",null,null,null,null,null,null,null,null,null,null,null,null,null,null,6,"None","Parcel","ZWO"]
[null,null,null,null,null,null,null,null,null,null,null,null,null,null,{"$f":"VLOOKUP(N708,Tabel10[[korte omschrijving]:[MCC3_CODE]],2,0)","v":{"$error":"#N/A"}},{"$f":"VLOOKUP(N708,Tabel10[],3,0)","v":{"$error":"#N/A"}},null,null,null,null,null,null,null,"EUR",null,null,null,{"$error":"#DIV/0!"},0,0,null,"","","","","","","","","","",null,null,null,null,null,null,null,null,null,null,null,null,null,null,6,"None","Parcel","ZWO"]
[null,null,null,null,null,null,null,null,null,null,null,null,null,null,{"$f":"VLOOKUP(N709,Tabel10[[korte omschrijving]:[MCC3_CODE]],2,0)","v":{"$error":"#N/A"}},{"$f":"VLOOKUP(N709,Tabel10[],3,0)","v":{"$error":"#N/A"}},null,null,null,null,null,null,null,"EUR",null,null,null,{"$error":"#DIV/0!"},0,0,null,"","","","","","","","","","",null,null,null,null,null,null,null,null,null,null,null,null,null,null,6,"None","Parcel","ZWO"]
[null,null,null,null,null,null,null,null,null,null,null,null,null,null,{"$f":"VLOOKUP(N710,Tabel10[[korte omschrijving]:[MCC3_CODE]],2,0)","v":{"$error":"#N/A"}},{"$f":"VLOOKUP(N710,Tabel10[],3,0)","v":{"$error":"#N/A"}},null,null,null,null,null,null,null,"EUR",null,null,null,{"$error":"#DIV/0!"},0,0,null,"","","","","","","","","","",null,null,null,null,null,null,null,null,null,null,null,null,null,null,6,"None","Parcel","ZWO"]
[null,null,null,null,null,null,null,null,null,null,null,null,null,null,{"$f":"VLOOKUP(N711,Tabel10[[korte omschrijving]:[MCC3_CODE]],2,0)","v":{"$error":"#N/A"}},{"$f":"VLOOKUP(N711,Tabel10[],3,0)","v":{"$error":"#N/A"}},null,null,null,null,null,null,null,"EUR",null,null,null,{"$f":"AA711/Y711","v":{"$error":"#DIV/0!"}},{"$f":"T711*Y711","v":0},{"$f":"T711*AA711","v":0},null,{"$f":"IF(AE711 <> \"\",\n    IF(ISNUMBER(VALUE(LEFT(AE711, FIND(\"%\", AE711)-1))),\n        VALUE(LEFT(AE711, FIND(\"%\", AE711)-1)),\n        \"Invalid format\"),\n    \"\")","v":""},{"$f":"IF(AE711 <> \"\",\n    IF(ISNUMBER(VALUE(LEFT(AE711, FIND(\"%\", AE711)-1))) * ISNUMBER(FIND(\"%\", AE711 & \"wol\")) > 0,\n        TRIM(MID(AE711, FIND(\"%\", AE711)+1, FIND(\"/\", AE711 & \"/\")-FIND(\"%\", AE711)-1)),\n        \"Invalid format\"),\n    \"\")","v":""},{"$f":"IF(AE711 <> \"\",\n    IF(ISNUMBER(VALUE(MID(AE711, FIND(\"/\", AE711) + 1, FIND(\"%\", AE711, FIND(\"/\", AE711)) - FIND(\"/\", AE711) - 1))),\n        VALUE(MID(AE711, FIND(\"/\", AE711) + 1, FIND(\"%\", AE711, FIND(\"/\", AE711)) - FIND(\"/\", AE711) - 1)),\n        \"\"),\n    \"\")","v":""},{"$f":"IF(AE711 <> \"\",\n    IFERROR(TRIM(MID(AE711, FIND(\"%\", AE711, FIND(\"/\", AE711)+1)+2,\n        IFERROR(FIND(\"/\", AE711 & \"/\", FIND(\"/\", AE711)+1)-FIND(\"%\", AE711, FIND(\"/\", AE711)+1)-2, LEN(AE711)-FIND(\"%\", AE711, FIND(\"/\", AE711)+1)-1))),\n        \"\"),\n    \"\")","v":""},{"$f":"IF(AE711 <> \"\",\n    IF(ISNUMBER(VALUE(MID(AE711, FIND(\"/\", AE711, FIND(\"/\", AE711)+1) + 1, FIND(\"%\", AE711, FIND(\"/\", AE711, FIND(\"/\", AE711)+1)) - FIND(\"/\", AE711, FIND(\"/\", AE711)+1) - 1))),\n        VALUE(MID(AE711, FIND(\"/\", AE711, FIND(\"/\", AE711)+1) + 1, FIND(\"%\", AE711, FIND(\"/\", AE711, FIND(\"/\", AE711)+1)) - FIND(\"/\", AE711, FIND(\"/\", AE711)+1) - 1)),\n        \"\"),\n    \"\")","v":""},{"$f":"IF(AE711 <> \"\",\n    IFERROR(\n        TRIM(MID(AE711,\n            FIND(\"%\", AE711, FIND(\"%\", AE711, FIND(\"%\", AE711)+1)+1)+1,\n            FIND(\"/\", AE711 & \"/\", FIND(\"%\", AE711, FIND(\"%\", AE711, FIND(\"%\", AE711)+1)+1))-FIND(\"%\", AE711, FIND(\"%\", AE711, FIND(\"%\", AE711)+1)+1)-1)\n        ),\n        \"\"\n    ),\n    \"\"\n)","v":""},{"$f":"IF(AE711 <> \"\",\n    IF(ISNUMBER(VALUE(MID(AE711, FIND(\"/\", AE711, FIND(\"/\", AE711, FIND(\"/\", AE711)+1)+1) + 1, FIND(\"%\", AE711, FIND(\"/\", AE711, FIND(\"/\", AE711, FIND(\"/\", AE711)+1)+1)) - FIND(\"/\", AE711, FIND(\"/\", AE711, FIND(\"/\", AE711)+1)+1) - 1))),\n        VALUE(MID(AE711, FIND(\"/\", AE711, FIND(\"/\", AE711, FIND(\"/\", AE711)+1)+1) + 1, FIND(\"%\", AE711, FIND(\"/\", AE711, FIND(\"/\", AE711, FIND(\"/\", AE711)+1)+1)) - FIND(\"/\", AE711, FIND(\"/\", AE711, FIND(\"/\", AE711)+1)+1) - 1)),\n        \"\"),\n    \"\")","v":""},{"$f":"IF(AE711 <> \"\",\n    IFERROR(TRIM(MID(AE711, FIND(\"%\", AE711, FIND(\"/\", AE711, FIND(\"/\", AE711, FIND(\"/\", AE711)+1)+1)+1)+2,\n        IFERROR(FIND(\"/\", AE711, FIND(\"/\", AE711, FIND(\"/\", AE711, FIND(\"/\", AE711)+1)+1)+1)-FIND(\"%\", AE711, FIND(\"/\", AE711, FIND(\"/\", AE711, FIND(\"/\", AE711)+1)+1)+1)-2, LEN(AE711)-FIND(\"%\", AE711, FIND(\"/\", AE711, FIND(\"/\", AE711, FIND(\"/\", AE711)+1)+1)+1)-1))),\n        \"\"),\n    \"\")","v":""},{"$f":"IF(AE711 <> \"\",\n    IF(ISNUMBER(VALUE(MID(AE711, FIND(\"/\", AE711, FIND(\"/\", AE711, FIND(\"/\", AE711, FIND(\"/\", AE711)+1)+1)+1) + 1, FIND(\"%\", AE711, FIND(\"/\", AE711, FIND(\"/\", AE711, FIND(\"/\", AE711, FIND(\"/\", AE711)+1)+1)+1)) - FIND(\"/\", AE711, FIND(\"/\", AE711, FIND(\"/\", AE711, FIND(\"/\", AE711)+1)+1)+1) - 1))),\n        VALUE(MID(AE711, FIND(\"/\", AE711, FIND(\"/\", AE711, FIND(\"/\", AE711, FIND(\"/\", AE711)+1)+1)+1) + 1, FIND(\"%\", AE711, FIND(\"/\", AE711, FIND(\"/\", AE711, FIND(\"/\", AE711, FIND(\"/\", AE711)+1)+1)+1)) - FIND(\"/\", AE711, FIND(\"/\", AE711, FIND(\"/\", AE711, FIND(\"/\", AE711)+1)+1)+1) - 1)),\n        \"\"),\n    \"\")","v":""},{"$f":"IF(AE711 = \"\", \"\",\n    IFERROR(TRIM(\n        MID(\n            AE711,\n            FIND(\"%\", AE711, FIND(\"/\", AE711, FIND(\"/\", AE711, FIND(\"/\", AE711, FIND(\"/\", AE711)+1)+1)+1)+1) + 1,\n            FIND(\"/\", AE711 & \"/\", FIND(\"%\", AE711, FIND(\"/\", AE711, FIND(\"/\", AE711, FIND(\"/\", AE711, FIND(\"/\", AE711)+1)+1)+1)+1)) -\n            FIND(\"%\", AE711, FIND(\"/\", AE711, FIND(\"/\", AE711, FIND(\"/\", AE711, FIND(\"/\", AE711)+1)+1)+1)+1) - 1\n        )\n    ),\n    \"\")\n)","v":""},null,null,null,null,null,null,null,null,null,null,null,null,null,null,6,"None","Parcel","ZWO"]
[null,null,null,null,null,null,null,null,null,null,null,null,null,null,{"$f":"VLOOKUP(N712,Tabel10[[korte omschrijving]:[MCC3_CODE]],2,0)","v":{"$error":"#N/A"}},{"$f":"VLOOKUP(N712,Tabel10[],3,0)","v":{"$error":"#N/A"}},null,null,null,null,null,null,null,"EUR",null,null,null,{"$error":"#DIV/0!"},0,0,null,"","","","","","","","","","",null,null,null,null,null,null,null,null,null,null,null,null,null,null,6,"None","Parcel","ZWO"]
[null,null,null,null,null,null,null,null,null,null,null,null,null,null,{"$f":"VLOOKUP(N713,Tabel10[[korte omschrijving]:[MCC3_CODE]],2,0)","v":{"$error":"#N/A"}},{"$f":"VLOOKUP(N713,Tabel10[],3,0)","v":{"$error":"#N/A"}},null,null,null,null,null,null,null,"EUR",null,null,null,{"$error":"#DIV/0!"},0,0,null,"","","","","","","","","","",null,null,null,null,null,null,null,null,null,null,null,null,null,null,6,"None","Parcel","ZWO"]
[null,null,null,null,null,null,null,null,null,null,null,null,null,null,{"$f":"VLOOKUP(N714,Tabel10[[korte omschrijving]:[MCC3_CODE]],2,0)","v":{"$error":"#N/A"}},{"$f":"VLOOKUP(N714,Tabel10[],3,0)","v":{"$error":"#N/A"}},null,null,null,null,null,null,null,"EUR",null,null,null,{"$error":"#DIV/0!"},0,0,null,"","","","","","","","","","",null,null,null,null,null,null,null,null,null,null,null,null,null,null,6,"None","Parcel","ZWO"]
[null,null,null,null,null,null,null,null,null,null,null,null,null,null,{"$f":"VLOOKUP(N715,Tabel10[[korte omschrijving]:[MCC3_CODE]],2,0)","v":{"$error":"#N/A"}},{"$f":"VLOOKUP(N715,Tabel10[],3,0)","v":{"$error":"#N/A"}},null,null,null,null,null,null,null,"EUR",null,null,null,{"$error":"#DIV/0!"},0,0,null,"","","","","","","","","","",null,null,null,null,null,null,null,null,null,null,null,null,null,null,6,"None","Parcel","ZWO"]
[null,null,null,null,null,null,null,null,null,null,null,null,null,null,{"$f":"VLOOKUP(N716,Tabel10[[korte omschrijving]:[MCC3_CODE]],2,0)","v":{"$error":"#N/A"}},{"$f":"VLOOKUP(N716,Tabel10[],3,0)","v":{"$error":"#N/A"}},null,null,null,null,null,null,null,"EUR",null,null,null,{"$error":"#DIV/0!"},0,0,null,"","","","","","","","","","",null,null,null,null,null,null,null,null,null,null,null,null,null,null,6,"None","Parcel","ZWO"]
[null,null,null,null,null,null,null,null,null,null,null,null,null,null,{"$f":"VLOOKUP(N717,Tabel10[[korte omschrijving]:[MCC3_CODE]],2,0)","v":{"$error":"#N/A"}},{"$f":"VLOOKUP(N717,Tabel10[],3,0)","v":{"$error":"#N/A"}},null,null,null,null,null,null,null,"EUR",null,null,null,{"$error":"#DIV/0!"},0,0,null,"","","","","","","","","","",null,null,null,null,null,null,null,null,null,null,null,null,null,null,6,"None","Parcel","ZWO"]
[null,null,null,null,null,null,null,null,null,null,null,null,null,null,{"$f":"VLOOKUP(N718,Tabel10[[korte omschrijving]:[MCC3_CODE]],2,0)","v":{"$error":"#N/A"}},{"$f":"VLOOKUP(N718,Tabel10[],3,0)","v":{"$error":"#N/A"}},null,null,null,null,null,null,null,"EUR",null,null,null,{"$error":"#DIV/0!"},0,0,null,"","","","","","","","","","",null,null,null,null,null,null,null,null,null,null,null,null,null,null,6,"None","Parcel","ZWO"]
[null,null,null,null,null,null,null,null,null,null,null,null,null,null,{"$f":"VLOOKUP(N719,Tabel10[[korte omschrijving]:[MCC3_CODE]],2,0)","v":{"$error":"#N/A"}},{"$f":"VLOOKUP(N719,Tabel10[],3,0)","v":{"$error":"#N/A"}},null,null,null,null,null,null,null,"EUR",null,null,null,{"$error":"#DIV/0!"},0,0,null,"","","","","","","","","","",null,null,null,null,null,null,null,null,null,null,null,null,null,null,6,"None","Parcel","ZWO"]
[null,null,null,null,null,null,null,null,null,null,null,null,null,null,{"$f":"VLOOKUP(N720,Tabel10[[korte omschrijving]:[MCC3_CODE]],2,0)","v":{"$error":"#N/A"}},{"$f":"VLOOKUP(N720,Tabel10[],3,0)","v":{"$error":"#N/A"}},null,null,null,null,null,null,null,"EUR",null,null,null,{"$error":"#DIV/0!"},0,0,null,"","","","","","","","","","",null,null,null,null,null,null,null,null,null,null,null,null,null,null,6,"None","Parcel","ZWO"]
[null,null,null,null,null,null,null,null,null,null,null,null,null,null,{"$f":"VLOOKUP(N721,Tabel10[[korte omschrijving]:[MCC3_CODE]],2,0)","v":{"$error":"#N/A"}},{"$f":"VLOOKUP(N721,Tabel10[],3,0)","v":{"$error":"#N/A"}},null,null,null,null,null,null,null,"EUR",null,null,null,{"$error":"#DIV/0!"},0,0,null,"","","","","","","","","","",null,null,null,null,null,null,null,null,null,null,null,null,null,null,6,"None","Parcel","ZWO"]
[null,null,null,null,null,null,null,null,null,null,null,null,null,null,{"$f":"VLOOKUP(N722,Tabel10[[korte omschrijving]:[MCC3_CODE]],2,0)","v":{"$error":"#N/A"}},{"$f":"VLOOKUP(N722,Tabel10[],3,0)","v":{"$error":"#N/A"}},null,null,null,null,null,null,null,"EUR",null,null,null,{"$error":"#DIV/0!"},0,0,null,"","","","","","","","","","",null,null,null,null,null,null,null,null,null,null,null,null,null,null,6,"None","Parcel","ZWO"]
[null,null,null,null,null,null,null,null,null,null,null,null,null,null,{"$f":"VLOOKUP(N723,Tabel10[[korte omschrijving]:[MCC3_CODE]],2,0)","v":{"$error":"#N/A"}},{"$f":"VLOOKUP(N723,Tabel10[],3,0)","v":{"$error":"#N/A"}},null,null,null,null,null,null,null,"EUR",null,null,null,{"$error":"#DIV/0!"},0,0,null,"","","","","","","","","","",null,null,null,null,null,null,null,null,null,null,null,null,null,null,6,"None","Parcel","ZWO"]
[null,null,null,null,null,null,null,null,null,null,null,null,null,null,{"$f":"VLOOKUP(N724,Tabel10[[korte omschrijving]:[MCC3_CODE]],2,0)","v":{"$error":"#N/A"}},{"$f":"VLOOKUP(N724,Tabel10[],3,0)","v":{"$error":"#N/A"}},null,null,null,null,null,null,null,"EUR",null,null,null,{"$error":"#DIV/0!"},0,0,null,"","","","","","","","","","",null,null,null,null,null,null,null,null,null,null,null,null,null,null,6,"None","Parcel","ZWO"]
[null,null,null,null,null,null,null,null,null,null,null,null,null,null,{"$f":"VLOOKUP(N725,Tabel10[[korte omschrijving]:[MCC3_CODE]],2,0)","v":{"$error":"#N/A"}},{"$f":"VLOOKUP(N725,Tabel10[],3,0)","v":{"$error":"#N/A"}},null,null,null,null,null,null,null,"EUR",null,null,null,{"$error":"#DIV/0!"},0,0,null,"","","","","","","","","","",null,null,null,null,null,null,null,null,null,null,null,null,null,null,6,"None","Parcel","ZWO"]
[null,null,null,null,null,null,null,null,null,null,null,null,null,null,{"$f":"VLOOKUP(N726,Tabel10[[korte omschrijving]:[MCC3_CODE]],2,0)","v":{"$error":"#N/A"}},{"$f":"VLOOKUP(N726,Tabel10[],3,0)","v":{"$error":"#N/A"}},null,null,null,null,null,null,null,"EUR",null,null,null,{"$error":"#DIV/0!"},0,0,null,"","","","","","","","","","",null,null,null,null,null,null,null,null,null,null,null,null,null,null,6,"None","Parcel","ZWO"]
[null,null,null,null,null,null,null,null,null,null,null,null,null,null,{"$f":"VLOOKUP(N727,Tabel10[[korte omschrijving]:[MCC3_CODE]],2,0)","v":{"$error":"#N/A"}},{"$f":"VLOOKUP(N727,Tabel10[],3,0)","v":{"$error":"#N/A"}},null,null,null,null,null,null,null,"EUR",null,null,null,{"$error":"#DIV/0!"},0,0,null,"","","","","","","","","","",null,null,null,null,null,null,null,null,null,null,null,null,null,null,6,"None","Parcel","ZWO"]
[null,null,null,null,null,null,null,null,null,null,null,null,null,null,{"$f":"VLOOKUP(N728,Tabel10[[korte omschrijving]:[MCC3_CODE]],2,0)","v":{"$error":"#N/A"}},{"$f":"VLOOKUP(N728,Tabel10[],3,0)","v":{"$error":"#N/A"}},null,null,null,null,null,null,null,"EUR",null,null,null,{"$error":"#DIV/0!"},0,0,null,"","","","","","","","","","",null,null,null,null,null,null,null,null,null,null,null,null,null,null,6,"None","Parcel","ZWO"]
[null,null,null,null,null,null,null,null,null,null,null,null,null,null,{"$f":"VLOOKUP(N729,Tabel10[[korte omschrijving]:[MCC3_CODE]],2,0)","v":{"$error":"#N/A"}},{"$f":"VLOOKUP(N729,Tabel10[],3,0)","v":{"$error":"#N/A"}},null,null,null,null,null,null,null,"EUR",null,null,null,{"$error":"#DIV/0!"},0,0,null,"","","","","","","","","","",null,null,null,null,null,null,null,null,null,null,null,null,null,null,6,"None","Parcel","ZWO"]
[null,null,null,null,null,null,null,null,null,null,null,null,null,null,{"$f":"VLOOKUP(N730,Tabel10[[korte omschrijving]:[MCC3_CODE]],2,0)","v":{"$error":"#N/A"}},{"$f":"VLOOKUP(N730,Tabel10[],3,0)","v":{"$error":"#N/A"}},null,null,null,null,null,null,null,"EUR",null,null,null,{"$error":"#DIV/0!"},0,0,null,"","","","","","","","","","",null,null,null,null,null,null,null,null,null,null,null,null,null,null,6,"None","Parcel","ZWO"]
[null,null,null,null,null,null,null,null,null,null,null,null,null,null,{"$f":"VLOOKUP(N731,Tabel10[[korte omschrijving]:[MCC3_CODE]],2,0)","v":{"$error":"#N/A"}},{"$f":"VLOOKUP(N731,Tabel10[],3,0)","v":{"$error":"#N/A"}},null,null,null,null,null,null,null,"EUR",null,null,null,{"$error":"#DIV/0!"},0,0,null,"","","","","","","","","","",null,null,null,null,null,null,null,null,null,null,null,null,null,null,6,"None","Parcel","ZWO"]
[null,null,null,null,null,null,null,null,null,null,null,null,null,null,{"$f":"VLOOKUP(N732,Tabel10[[korte omschrijving]:[MCC3_CODE]],2,0)","v":{"$error":"#N/A"}},{"$f":"VLOOKUP(N732,Tabel10[],3,0)","v":{"$error":"#N/A"}},null,null,null,null,null,null,null,"EUR",null,null,null,{"$error":"#DIV/0!"},0,0,null,"","","","","","","","","","",null,null,null,null,null,null,null,null,null,null,null,null,null,null,6,"None","Parcel","ZWO"]
[null,null,null,null,null,null,null,null,null,null,null,null,null,null,{"$f":"VLOOKUP(N733,Tabel10[[korte omschrijving]:[MCC3_CODE]],2,0)","v":{"$error":"#N/A"}},{"$f":"VLOOKUP(N733,Tabel10[],3,0)","v":{"$error":"#N/A"}},null,null,null,null,null,null,null,"EUR",null,null,null,{"$error":"#DIV/0!"},0,0,null,"","","","","","","","","","",null,null,null,null,null,null,null,null,null,null,null,null,null,null,6,"None","Parcel","ZWO"]
[null,null,null,null,null,null,null,null,null,null,null,null,null,null,{"$f":"VLOOKUP(N734,Tabel10[[korte omschrijving]:[MCC3_CODE]],2,0)","v":{"$error":"#N/A"}},{"$f":"VLOOKUP(N734,Tabel10[],3,0)","v":{"$error":"#N/A"}},null,null,null,null,null,null,null,"EUR",null,null,null,{"$error":"#DIV/0!"},0,0,null,"","","","","","","","","","",null,null,null,null,null,null,null,null,null,null,null,null,null,null,6,"None","Parcel","ZWO"]
[null,null,null,null,null,null,null,null,null,null,null,null,null,null,{"$f":"VLOOKUP(N735,Tabel10[[korte omschrijving]:[MCC3_CODE]],2,0)","v":{"$error":"#N/A"}},{"$f":"VLOOKUP(N735,Tabel10[],3,0)","v":{"$error":"#N/A"}},null,null,null,null,null,null,null,"EUR",null,null,null,{"$error":"#DIV/0!"},0,0,null,"","","","","","","","","","",null,null,null,null,null,null,null,null,null,null,null,null,null,null,6,"None","Parcel","ZWO"]
[null,null,null,null,null,null,null,null,null,null,null,null,null,null,{"$f":"VLOOKUP(N736,Tabel10[[korte omschrijving]:[MCC3_CODE]],2,0)","v":{"$error":"#N/A"}},{"$f":"VLOOKUP(N736,Tabel10[],3,0)","v":{"$error":"#N/A"}},null,null,null,null,null,null,null,"EUR",null,null,null,{"$error":"#DIV/0!"},0,0,null,"","","","","","","","","","",null,null,null,null,null,null,null,null,null,null,null,null,null,null,6,"None","Parcel","ZWO"]
[null,null,null,null,null,null,null,null,null,null,null,null,null,null,{"$f":"VLOOKUP(N737,Tabel10[[korte omschrijving]:[MCC3_CODE]],2,0)","v":{"$error":"#N/A"}},{"$f":"VLOOKUP(N737,Tabel10[],3,0)","v":{"$error":"#N/A"}},null,null,null,null,null,null,null,"EUR",null,null,null,{"$error":"#DIV/0!"},0,0,null,"","","","","","","","","","",null,null,null,null,null,null,null,null,null,null,null,null,null,null,6,"None","Parcel","ZWO"]
[null,null,null,null,null,null,null,null,null,null,null,null,null,null,{"$f":"VLOOKUP(N738,Tabel10[[korte omschrijving]:[MCC3_CODE]],2,0)","v":{"$error":"#N/A"}},{"$f":"VLOOKUP(N738,Tabel10[],3,0)","v":{"$error":"#N/A"}},null,null,null,null,null,null,null,"EUR",null,null,null,{"$error":"#DIV/0!"},0,0,null,"","","","","","","","","","",null,null,null,null,null,null,null,null,null,null,null,null,null,null,6,"None","Parcel","ZWO"]
[null,null,null,null,null,null,null,null,null,null,null,null,null,null,{"$f":"VLOOKUP(N739,Tabel10[[korte omschrijving]:[MCC3_CODE]],2,0)","v":{"$error":"#N/A"}},{"$f":"VLOOKUP(N739,Tabel10[],3,0)","v":{"$error":"#N/A"}},null,null,null,null,null,null,null,"EUR",null,null,null,{"$error":"#DIV/0!"},0,0,null,"","","","","","","","","","",null,null,null,null,null,null,null,null,null,null,null,null,null,null,6,"None","Parcel","ZWO"]
[null,null,null,null,null,null,null,null,null,null,null,null,null,null,{"$f":"VLOOKUP(N740,Tabel10[[korte omschrijving]:[MCC3_CODE]],2,0)","v":{"$error":"#N/A"}},{"$f":"VLOOKUP(N740,Tabel10[],3,0)","v":{"$error":"#N/A"}},null,null,null,null,null,null,null,"EUR",null,null,null,{"$error":"#DIV/0!"},0,0,null,"","","","","","","","","","",null,null,null,null,null,null,null,null,null,null,null,null,null,null,6,"None","Parcel","ZWO"]
[null,null,null,null,null,null,null,null,null,null,null,null,null,null,{"$f":"VLOOKUP(N741,Tabel10[[korte omschrijving]:[MCC3_CODE]],2,0)","v":{"$error":"#N/A"}},{"$f":"VLOOKUP(N741,Tabel10[],3,0)","v":{"$error":"#N/A"}},null,null,null,null,null,null,null,"EUR",null,null,null,{"$error":"#DIV/0!"},0,0,null,"","","","","","","","","","",null,null,null,null,null,null,null,null,null,null,null,null,null,null,6,"None","Parcel","ZWO"]
[null,null,null,null,null,null,null,null,null,null,null,null,null,null,{"$f":"VLOOKUP(N742,Tabel10[[korte omschrijving]:[MCC3_CODE]],2,0)","v":{"$error":"#N/A"}},{"$f":"VLOOKUP(N742,Tabel10[],3,0)","v":{"$error":"#N/A"}},null,null,null,null,null,null,null,"EUR",null,null,null,{"$error":"#DIV/0!"},0,0,null,"","","","","","","","","","",null,null,null,null,null,null,null,null,null,null,null,null,null,null,6,"None","Parcel","ZWO"]
[null,null,null,null,null,null,null,null,null,null,null,null,null,null,{"$f":"VLOOKUP(N743,Tabel10[[korte omschrijving]:[MCC3_CODE]],2,0)","v":{"$error":"#N/A"}},{"$f":"VLOOKUP(N743,Tabel10[],3,0)","v":{"$error":"#N/A"}},null,null,null,null,null,null,null,"EUR",null,null,null,{"$error":"#DIV/0!"},0,0,null,"","","","","","","","","","",null,null,null,null,null,null,null,null,null,null,null,null,null,null,6,"None","Parcel","ZWO"]
[null,null,null,null,null,null,null,null,null,null,null,null,null,null,{"$f":"VLOOKUP(N744,Tabel10[[korte omschrijving]:[MCC3_CODE]],2,0)","v":{"$error":"#N/A"}},{"$f":"VLOOKUP(N744,Tabel10[],3,0)","v":{"$error":"#N/A"}},null,null,null,null,null,null,null,"EUR",null,null,null,{"$error":"#DIV/0!"},0,0,null,"","","","","","","","","","",null,null,null,null,null,null,null,null,null,null,null,null,null,null,6,"None","Parcel","ZWO"]
[null,null,null,null,null,null,null,null,null,null,null,null,null,null,{"$f":"VLOOKUP(N745,Tabel10[[korte omschrijving]:[MCC3_CODE]],2,0)","v":{"$error":"#N/A"}},{"$f":"VLOOKUP(N745,Tabel10[],3,0)","v":{"$error":"#N/A"}},null,null,null,null,null,null,null,"EUR",null,null,null,{"$error":"#DIV/0!"},0,0,null,"","","","","","","","","","",null,null,null,null,null,null,null,null,null,null,null,null,null,null,6,"None","Parcel","ZWO"]
[null,null,null,null,null,null,null,null,null,null,null,null,null,null,{"$f":"VLOOKUP(N746,Tabel10[[korte omschrijving]:[MCC3_CODE]],2,0)","v":{"$error":"#N/A"}},{"$f":"VLOOKUP(N746,Tabel10[],3,0)","v":{"$error":"#N/A"}},null,null,null,null,null,null,null,"EUR",null,null,null,{"$error":"#DIV/0!"},0,0,null,"","","","","","","","","","",null,null,null,null,null,null,null,null,null,null,null,null,null,null,6,"None","Parcel","ZWO"]
[null,null,null,null,null,null,null,null,null,null,null,null,null,null,{"$f":"VLOOKUP(N747,Tabel10[[korte omschrijving]:[MCC3_CODE]],2,0)","v":{"$error":"#N/A"}},{"$f":"VLOOKUP(N747,Tabel10[],3,0)","v":{"$error":"#N/A"}},null,null,null,null,null,null,null,"EUR",null,null,null,{"$error":"#DIV/0!"},0,0,null,"","","","","","","","","","",null,null,null,null,null,null,null,null,null,null,null,null,null,null,6,"None","Parcel","ZWO"]
[null,null,null,null,null,null,null,null,null,null,null,null,null,null,{"$f":"VLOOKUP(N748,Tabel10[[korte omschrijving]:[MCC3_CODE]],2,0)","v":{"$error":"#N/A"}},{"$f":"VLOOKUP(N748,Tabel10[],3,0)","v":{"$error":"#N/A"}},null,null,null,null,null,null,null,"EUR",null,null,null,{"$error":"#DIV/0!"},0,0,null,"","","","","","","","","","",null,null,null,null,null,null,null,null,null,null,null,null,null,null,6,"None","Parcel","ZWO"]
[null,null,null,null,null,null,null,null,null,null,null,null,null,null,{"$f":"VLOOKUP(N749,Tabel10[[korte omschrijving]:[MCC3_CODE]],2,0)","v":{"$error":"#N/A"}},{"$f":"VLOOKUP(N749,Tabel10[],3,0)","v":{"$error":"#N/A"}},null,null,null,null,null,null,null,"EUR",null,null,null,{"$error":"#DIV/0!"},0,0,null,"","","","","","","","","","",null,null,null,null,null,null,null,null,null,null,null,null,null,null,6,"None","Parcel","ZWO"]
[null,null,null,null,null,null,null,null,null,null,null,null,null,null,{"$f":"VLOOKUP(N750,Tabel10[[korte omschrijving]:[MCC3_CODE]],2,0)","v":{"$error":"#N/A"}},{"$f":"VLOOKUP(N750,Tabel10[],3,0)","v":{"$error":"#N/A"}},null,null,null,null,null,null,null,"EUR",null,null,null,{"$error":"#DIV/0!"},0,0,null,"","","","","","","","","","",null,null,null,null,null,null,null,null,null,null,null,null,null,null,6,"None","Parcel","ZWO"]
[null,null,null,null,null,null,null,null,null,null,null,null,null,null,{"$f":"VLOOKUP(N751,Tabel10[[korte omschrijving]:[MCC3_CODE]],2,0)","v":{"$error":"#N/A"}},{"$f":"VLOOKUP(N751,Tabel10[],3,0)","v":{"$error":"#N/A"}},null,null,null,null,null,null,null,"EUR",null,null,null,{"$error":"#DIV/0!"},0,0,null,"","","","","","","","","","",null,null,null,null,null,null,null,null,null,null,null,null,null,null,6,"None","Parcel","ZWO"]
[null,null,null,null,null,null,null,null,null,null,null,null,null,null,{"$f":"VLOOKUP(N752,Tabel10[[korte omschrijving]:[MCC3_CODE]],2,0)","v":{"$error":"#N/A"}},{"$f":"VLOOKUP(N752,Tabel10[],3,0)","v":{"$error":"#N/A"}},null,null,null,null,null,null,null,"EUR",null,null,null,{"$error":"#DIV/0!"},0,0,null,"","","","","","","","","","",null,null,null,null,null,null,null,null,null,null,null,null,null,null,6,"None","Parcel","ZWO"]
[null,null,null,null,null,null,null,null,null,null,null,null,null,null,{"$f":"VLOOKUP(N753,Tabel10[[korte omschrijving]:[MCC3_CODE]],2,0)","v":{"$error":"#N/A"}},{"$f":"VLOOKUP(N753,Tabel10[],3,0)","v":{"$error":"#N/A"}},null,null,null,null,null,null,null,"EUR",null,null,null,{"$error":"#DIV/0!"},0,0,null,"","","","","","","","","","",null,null,null,null,null,null,null,null,null,null,null,null,null,null,6,"None","Parcel","ZWO"]
[null,null,null,null,null,null,null,null,null,null,null,null,null,null,{"$f":"VLOOKUP(N754,Tabel10[[korte omschrijving]:[MCC3_CODE]],2,0)","v":{"$error":"#N/A"}},{"$f":"VLOOKUP(N754,Tabel10[],3,0)","v":{"$error":"#N/A"}},null,null,null,null,null,null,null,"EUR",null,null,null,{"$error":"#DIV/0!"},0,0,null,"","","","","","","","","","",null,null,null,null,null,null,null,null,null,null,null,null,null,null,6,"None","Parcel","ZWO"]
[null,null,null,null,null,null,null,null,null,null,null,null,null,null,{"$f":"VLOOKUP(N755,Tabel10[[korte omschrijving]:[MCC3_CODE]],2,0)","v":{"$error":"#N/A"}},{"$f":"VLOOKUP(N755,Tabel10[],3,0)","v":{"$error":"#N/A"}},null,null,null,null,null,null,null,"EUR",null,null,null,{"$error":"#DIV/0!"},0,0,null,"","","","","","","","","","",null,null,null,null,null,null,null,null,null,null,null,null,null,null,6,"None","Parcel","ZWO"]
[null,null,null,null,null,null,null,null,null,null,null,null,null,null,{"$f":"VLOOKUP(N756,Tabel10[[korte omschrijving]:[MCC3_CODE]],2,0)","v":{"$error":"#N/A"}},{"$f":"VLOOKUP(N756,Tabel10[],3,0)","v":{"$error":"#N/A"}},null,null,null,null,null,null,null,"EUR",null,null,null,{"$error":"#DIV/0!"},0,0,null,"","","","","","","","","","",null,null,null,null,null,null,null,null,null,null,null,null,null,null,6,"None","Parcel","ZWO"]
[null,null,null,null,null,null,null,null,null,null,null,null,null,null,{"$f":"VLOOKUP(N757,Tabel10[[korte omschrijving]:[MCC3_CODE]],2,0)","v":{"$error":"#N/A"}},{"$f":"VLOOKUP(N757,Tabel10[],3,0)","v":{"$error":"#N/A"}},null,null,null,null,null,null,null,"EUR",null,null,null,{"$error":"#DIV/0!"},0,0,null,"","","","","","","","","","",null,null,null,null,null,null,null,null,null,null,null,null,null,null,6,"None","Parcel","ZWO"]
[null,null,null,null,null,null,null,null,null,null,null,null,null,null,{"$f":"VLOOKUP(N758,Tabel10[[korte omschrijving]:[MCC3_CODE]],2,0)","v":{"$error":"#N/A"}},{"$f":"VLOOKUP(N758,Tabel10[],3,0)","v":{"$error":"#N/A"}},null,null,null,null,null,null,null,"EUR",null,null,null,{"$error":"#DIV/0!"},0,0,null,"","","","","","","","","","",null,null,null,null,null,null,null,null,null,null,null,null,null,null,6,"None","Parcel","ZWO"]
[null,null,null,null,null,null,null,null,null,null,null,null,null,null,{"$f":"VLOOKUP(N759,Tabel10[[korte omschrijving]:[MCC3_CODE]],2,0)","v":{"$error":"#N/A"}},{"$f":"VLOOKUP(N759,Tabel10[],3,0)","v":{"$error":"#N/A"}},null,null,null,null,null,null,null,"EUR",null,null,null,{"$error":"#DIV/0!"},0,0,null,"","","","","","","","","","",null,null,null,null,null,null,null,null,null,null,null,null,null,null,6,"None","Parcel","ZWO"]
[null,null,null,null,null,null,null,null,null,null,null,null,null,null,{"$f":"VLOOKUP(N760,Tabel10[[korte omschrijving]:[MCC3_CODE]],2,0)","v":{"$error":"#N/A"}},{"$f":"VLOOKUP(N760,Tabel10[],3,0)","v":{"$error":"#N/A"}},null,null,null,null,null,null,null,"EUR",null,null,null,{"$error":"#DIV/0!"},0,0,null,"","","","","","","","","","",null,null,null,null,null,null,null,null,null,null,null,null,null,null,6,"None","Parcel","ZWO"]
[null,null,null,null,null,null,null,null,null,null,null,null,null,null,{"$f":"VLOOKUP(N761,Tabel10[[korte omschrijving]:[MCC3_CODE]],2,0)","v":{"$error":"#N/A"}},{"$f":"VLOOKUP(N761,Tabel10[],3,0)","v":{"$error":"#N/A"}},null,null,null,null,null,null,null,"EUR",null,null,null,{"$error":"#DIV/0!"},0,0,null,"","","","","","","","","","",null,null,null,null,null,null,null,null,null,null,null,null,null,null,6,"None","Parcel","ZWO"]
[null,null,null,null,null,null,null,null,null,null,null,null,null,null,{"$f":"VLOOKUP(N762,Tabel10[[korte omschrijving]:[MCC3_CODE]],2,0)","v":{"$error":"#N/A"}},{"$f":"VLOOKUP(N762,Tabel10[],3,0)","v":{"$error":"#N/A"}},null,null,null,null,null,null,null,"EUR",null,null,null,{"$error":"#DIV/0!"},0,0,null,"","","","","","","","","","",null,null,null,null,null,null,null,null,null,null,null,null,null,null,6,"None","Parcel","ZWO"]
[null,null,null,null,null,null,null,null,null,null,null,null,null,null,{"$f":"VLOOKUP(N763,Tabel10[[korte omschrijving]:[MCC3_CODE]],2,0)","v":{"$error":"#N/A"}},{"$f":"VLOOKUP(N763,Tabel10[],3,0)","v":{"$error":"#N/A"}},null,null,null,null,null,null,null,"EUR",null,null,null,{"$error":"#DIV/0!"},0,0,null,"","","","","","","","","","",null,null,null,null,null,null,null,null,null,null,null,null,null,null,6,"None","Parcel","ZWO"]
[null,null,null,null,null,null,null,null,null,null,null,null,null,null,{"$f":"VLOOKUP(N764,Tabel10[[korte omschrijving]:[MCC3_CODE]],2,0)","v":{"$error":"#N/A"}},{"$f":"VLOOKUP(N764,Tabel10[],3,0)","v":{"$error":"#N/A"}},null,null,null,null,null,null,null,"EUR",null,null,null,{"$error":"#DIV/0!"},0,0,null,"","","","","","","","","","",null,null,null,null,null,null,null,null,null,null,null,null,null,null,6,"None","Parcel","ZWO"]
[null,null,null,null,null,null,null,null,null,null,null,null,null,null,{"$f":"VLOOKUP(N765,Tabel10[[korte omschrijving]:[MCC3_CODE]],2,0)","v":{"$error":"#N/A"}},{"$f":"VLOOKUP(N765,Tabel10[],3,0)","v":{"$error":"#N/A"}},null,null,null,null,null,null,null,"EUR",null,null,null,{"$error":"#DIV/0!"},0,0,null,"","","","","","","","","","",null,null,null,null,null,null,null,null,null,null,null,null,null,null,6,"None","Parcel","ZWO"]
[null,null,null,null,null,null,null,null,null,null,null,null,null,null,{"$f":"VLOOKUP(N766,Tabel10[[korte omschrijving]:[MCC3_CODE]],2,0)","v":{"$error":"#N/A"}},{"$f":"VLOOKUP(N766,Tabel10[],3,0)","v":{"$error":"#N/A"}},null,null,null,null,null,null,null,"EUR",null,null,null,{"$error":"#DIV/0!"},0,0,null,"","","","","","","","","","",null,null,null,null,null,null,null,null,null,null,null,null,null,null,6,"None","Parcel","ZWO"]
[null,null,null,null,null,null,null,null,null,null,null,null,null,null,{"$f":"VLOOKUP(N767,Tabel10[[korte omschrijving]:[MCC3_CODE]],2,0)","v":{"$error":"#N/A"}},{"$f":"VLOOKUP(N767,Tabel10[],3,0)","v":{"$error":"#N/A"}},null,null,null,null,null,null,null,"EUR",null,null,null,{"$error":"#DIV/0!"},0,0,null,"","","","","","","","","","",null,null,null,null,null,null,null,null,null,null,null,null,null,null,6,"None","Parcel","ZWO"]
[null,null,null,null,null,null,null,null,null,null,null,null,null,null,{"$f":"VLOOKUP(N768,Tabel10[[korte omschrijving]:[MCC3_CODE]],2,0)","v":{"$error":"#N/A"}},{"$f":"VLOOKUP(N768,Tabel10[],3,0)","v":{"$error":"#N/A"}},null,null,null,null,null,null,null,"EUR",null,null,null,{"$error":"#DIV/0!"},0,0,null,"","","","","","","","","","",null,null,null,null,null,null,null,null,null,null,null,null,null,null,6,"None","Parcel","ZWO"]
[null,null,null,null,null,null,null,null,null,null,null,null,null,null,{"$f":"VLOOKUP(N769,Tabel10[[korte omschrijving]:[MCC3_CODE]],2,0)","v":{"$error":"#N/A"}},{"$f":"VLOOKUP(N769,Tabel10[],3,0)","v":{"$error":"#N/A"}},null,null,null,null,null,null,null,"EUR",null,null,null,{"$error":"#DIV/0!"},0,0,null,"","","","","","","","","","",null,null,null,null,null,null,null,null,null,null,null,null,null,null,6,"None","Parcel","ZWO"]
[null,null,null,null,null,null,null,null,null,null,null,null,null,null,{"$f":"VLOOKUP(N770,Tabel10[[korte omschrijving]:[MCC3_CODE]],2,0)","v":{"$error":"#N/A"}},{"$f":"VLOOKUP(N770,Tabel10[],3,0)","v":{"$error":"#N/A"}},null,null,null,null,null,null,null,"EUR",null,null,null,{"$error":"#DIV/0!"},0,0,null,"","","","","","","","","","",null,null,null,null,null,null,null,null,null,null,null,null,null,null,6,"None","Parcel","ZWO"]
[null,null,null,null,null,null,null,null,null,null,null,null,null,null,{"$f":"VLOOKUP(N771,Tabel10[[korte omschrijving]:[MCC3_CODE]],2,0)","v":{"$error":"#N/A"}},{"$f":"VLOOKUP(N771,Tabel10[],3,0)","v":{"$error":"#N/A"}},null,null,null,null,null,null,null,"EUR",null,null,null,{"$error":"#DIV/0!"},0,0,null,"","","","","","","","","","",null,null,null,null,null,null,null,null,null,null,null,null,null,null,6,"None","Parcel","ZWO"]
[null,null,null,null,null,null,null,null,null,null,null,null,null,null,{"$f":"VLOOKUP(N772,Tabel10[[korte omschrijving]:[MCC3_CODE]],2,0)","v":{"$error":"#N/A"}},{"$f":"VLOOKUP(N772,Tabel10[],3,0)","v":{"$error":"#N/A"}},null,null,null,null,null,null,null,"EUR",null,null,null,{"$error":"#DIV/0!"},0,0,null,"","","","","","","","","","",null,null,null,null,null,null,null,null,null,null,null,null,null,null,6,"None","Parcel","ZWO"]
[null,null,null,null,null,null,null,null,null,null,null,null,null,null,{"$f":"VLOOKUP(N773,Tabel10[[korte omschrijving]:[MCC3_CODE]],2,0)","v":{"$error":"#N/A"}},{"$f":"VLOOKUP(N773,Tabel10[],3,0)","v":{"$error":"#N/A"}},null,null,null,null,null,null,null,"EUR",null,null,null,{"$error":"#DIV/0!"},0,0,null,"","","","","","","","","","",null,null,null,null,null,null,null,null,null,null,null,null,null,null,6,"None","Parcel","ZWO"]
[null,null,null,null,null,null,null,null,null,null,null,null,null,null,{"$f":"VLOOKUP(N774,Tabel10[[korte omschrijving]:[MCC3_CODE]],2,0)","v":{"$error":"#N/A"}},{"$f":"VLOOKUP(N774,Tabel10[],3,0)","v":{"$error":"#N/A"}},null,null,null,null,null,null,null,"EUR",null,null,null,{"$error":"#DIV/0!"},0,0,null,"","","","","","","","","","",null,null,null,null,null,null,null,null,null,null,null,null,null,null,6,"None","Parcel","ZWO"]
[null,null,null,null,null,null,null,null,null,null,null,null,null,null,{"$f":"VLOOKUP(N775,Tabel10[[korte omschrijving]:[MCC3_CODE]],2,0)","v":{"$error":"#N/A"}},{"$f":"VLOOKUP(N775,Tabel10[],3,0)","v":{"$error":"#N/A"}},null,null,null,null,null,null,null,"EUR",null,null,null,{"$f":"AA775/Y775","v":{"$error":"#DIV/0!"}},{"$f":"T775*Y775","v":0},{"$f":"T775*AA775","v":0},null,{"$f":"IF(AE775 <> \"\",\n    IF(ISNUMBER(VALUE(LEFT(AE775, FIND(\"%\", AE775)-1))),\n        VALUE(LEFT(AE775, FIND(\"%\", AE775)-1)),\n        \"Invalid format\"),\n    \"\")","v":""},{"$f":"IF(AE775 <> \"\",\n    IF(ISNUMBER(VALUE(LEFT(AE775, FIND(\"%\", AE775)-1))) * ISNUMBER(FIND(\"%\", AE775 & \"wol\")) > 0,\n        TRIM(MID(AE775, FIND(\"%\", AE775)+1, FIND(\"/\", AE775 & \"/\")-FIND(\"%\", AE775)-1)),\n        \"Invalid format\"),\n    \"\")","v":""},{"$f":"IF(AE775 <> \"\",\n    IF(ISNUMBER(VALUE(MID(AE775, FIND(\"/\", AE775) + 1, FIND(\"%\", AE775, FIND(\"/\", AE775)) - FIND(\"/\", AE775) - 1))),\n        VALUE(MID(AE775, FIND(\"/\", AE775) + 1, FIND(\"%\", AE775, FIND(\"/\", AE775)) - FIND(\"/\", AE775) - 1)),\n        \"\"),\n    \"\")","v":""},{"$f":"IF(AE775 <> \"\",\n    IFERROR(TRIM(MID(AE775, FIND(\"%\", AE775, FIND(\"/\", AE775)+1)+2,\n        IFERROR(FIND(\"/\", AE775 & \"/\", FIND(\"/\", AE775)+1)-FIND(\"%\", AE775, FIND(\"/\", AE775)+1)-2, LEN(AE775)-FIND(\"%\", AE775, FIND(\"/\", AE775)+1)-1))),\n        \"\"),\n    \"\")","v":""},{"$f":"IF(AE775 <> \"\",\n    IF(ISNUMBER(VALUE(MID(AE775, FIND(\"/\", AE775, FIND(\"/\", AE775)+1) + 1, FIND(\"%\", AE775, FIND(\"/\", AE775, FIND(\"/\", AE775)+1)) - FIND(\"/\", AE775, FIND(\"/\", AE775)+1) - 1))),\n        VALUE(MID(AE775, FIND(\"/\", AE775, FIND(\"/\", AE775)+1) + 1, FIND(\"%\", AE775, FIND(\"/\", AE775, FIND(\"/\", AE775)+1)) - FIND(\"/\", AE775, FIND(\"/\", AE775)+1) - 1)),\n        \"\"),\n    \"\")","v":""},{"$f":"IF(AE775 <> \"\",\n    IFERROR(\n        TRIM(MID(AE775,\n            FIND(\"%\", AE775, FIND(\"%\", AE775, FIND(\"%\", AE775)+1)+1)+1,\n            FIND(\"/\", AE775 & \"/\", FIND(\"%\", AE775, FIND(\"%\", AE775, FIND(\"%\", AE775)+1)+1))-FIND(\"%\", AE775, FIND(\"%\", AE775, FIND(\"%\", AE775)+1)+1)-1)\n        ),\n        \"\"\n    ),\n    \"\"\n)","v":""},{"$f":"IF(AE775 <> \"\",\n    IF(ISNUMBER(VALUE(MID(AE775, FIND(\"/\", AE775, FIND(\"/\", AE775, FIND(\"/\", AE775)+1)+1) + 1, FIND(\"%\", AE775, FIND(\"/\", AE775, FIND(\"/\", AE775, FIND(\"/\", AE775)+1)+1)) - FIND(\"/\", AE775, FIND(\"/\", AE775, FIND(\"/\", AE775)+1)+1) - 1))),\n        VALUE(MID(AE775, FIND(\"/\", AE775, FIND(\"/\", AE775, FIND(\"/\", AE775)+1)+1) + 1, FIND(\"%\", AE775, FIND(\"/\", AE775, FIND(\"/\", AE775, FIND(\"/\", AE775)+1)+1)) - FIND(\"/\", AE775, FIND(\"/\", AE775, FIND(\"/\", AE775)+1)+1) - 1)),\n        \"\"),\n    \"\")","v":""},{"$f":"IF(AE775 <> \"\",\n    IFERROR(TRIM(MID(AE775, FIND(\"%\", AE775, FIND(\"/\", AE775, FIND(\"/\", AE775, FIND(\"/\", AE775)+1)+1)+1)+2,\n        IFERROR(FIND(\"/\", AE775, FIND(\"/\", AE775, FIND(\"/\", AE775, FIND(\"/\", AE775)+1)+1)+1)-FIND(\"%\", AE775, FIND(\"/\", AE775, FIND(\"/\", AE775, FIND(\"/\", AE775)+1)+1)+1)-2, LEN(AE775)-FIND(\"%\", AE775, FIND(\"/\", AE775, FIND(\"/\", AE775, FIND(\"/\", AE775)+1)+1)+1)-1))),\n        \"\"),\n    \"\")","v":""},{"$f":"IF(AE775 <> \"\",\n    IF(ISNUMBER(VALUE(MID(AE775, FIND(\"/\", AE775, FIND(\"/\", AE775, FIND(\"/\", AE775, FIND(\"/\", AE775)+1)+1)+1) + 1, FIND(\"%\", AE775, FIND(\"/\", AE775, FIND(\"/\", AE775, FIND(\"/\", AE775, FIND(\"/\", AE775)+1)+1)+1)) - FIND(\"/\", AE775, FIND(\"/\", AE775, FIND(\"/\", AE775, FIND(\"/\", AE775)+1)+1)+1) - 1))),\n        VALUE(MID(AE775, FIND(\"/\", AE775, FIND(\"/\", AE775, FIND(\"/\", AE775, FIND(\"/\", AE775)+1)+1)+1) + 1, FIND(\"%\", AE775, FIND(\"/\", AE775, FIND(\"/\", AE775, FIND(\"/\", AE775, FIND(\"/\", AE775)+1)+1)+1)) - FIND(\"/\", AE775, FIND(\"/\", AE775, FIND(\"/\", AE775, FIND(\"/\", AE775)+1)+1)+1) - 1)),\n        \"\"),\n    \"\")","v":""},{"$f":"IF(AE775 = \"\", \"\",\n    IFERROR(TRIM(\n        MID(\n            AE775,\n            FIND(\"%\", AE775, FIND(\"/\", AE775, FIND(\"/\", AE775, FIND(\"/\", AE775, FIND(\"/\", AE775)+1)+1)+1)+1) + 1,\n            FIND(\"/\", AE775 & \"/\", FIND(\"%\", AE775, FIND(\"/\", AE775, FIND(\"/\", AE775, FIND(\"/\", AE775, FIND(\"/\", AE775)+1)+1)+1)+1)) -\n            FIND(\"%\", AE775, FIND(\"/\", AE775, FIND(\"/\", AE775, FIND(\"/\", AE775, FIND(\"/\", AE775)+1)+1)+1)+1) - 1\n        )\n    ),\n    \"\")\n)","v":""},null,null,null,null,null,null,null,null,null,null,null,null,null,null,6,"None","Parcel","ZWO"]
[null,null,null,null,null,null,null,null,null,null,null,null,null,null,{"$f":"VLOOKUP(N776,Tabel10[[korte omschrijving]:[MCC3_CODE]],2,0)","v":{"$error":"#N/A"}},{"$f":"VLOOKUP(N776,Tabel10[],3,0)","v":{"$error":"#N/A"}},null,null,null,null,null,null,null,"EUR",null,null,null,{"$error":"#DIV/0!"},0,0,null,"","","","","","","","","","",null,null,null,null,null,null,null,null,null,null,null,null,null,null,6,"None","Parcel","ZWO"]
[null,null,null,null,null,null,null,null,null,null,null,null,null,null,{"$f":"VLOOKUP(N777,Tabel10[[korte omschrijving]:[MCC3_CODE]],2,0)","v":{"$error":"#N/A"}},{"$f":"VLOOKUP(N777,Tabel10[],3,0)","v":{"$error":"#N/A"}},null,null,null,null,null,null,null,"EUR",null,null,null,{"$error":"#DIV/0!"},0,0,null,"","","","","","","","","","",null,null,null,null,null,null,null,null,null,null,null,null,null,null,6,"None","Parcel","ZWO"]
[null,null,null,null,null,null,null,null,null,null,null,null,null,null,{"$f":"VLOOKUP(N778,Tabel10[[korte omschrijving]:[MCC3_CODE]],2,0)","v":{"$error":"#N/A"}},{"$f":"VLOOKUP(N778,Tabel10[],3,0)","v":{"$error":"#N/A"}},null,null,null,null,null,null,null,"EUR",null,null,null,{"$error":"#DIV/0!"},0,0,null,"","","","","","","","","","",null,null,null,null,null,null,null,null,null,null,null,null,null,null,6,"None","Parcel","ZWO"]
[null,null,null,null,null,null,null,null,null,null,null,null,null,null,{"$f":"VLOOKUP(N779,Tabel10[[korte omschrijving]:[MCC3_CODE]],2,0)","v":{"$error":"#N/A"}},{"$f":"VLOOKUP(N779,Tabel10[],3,0)","v":{"$error":"#N/A"}},null,null,null,null,null,null,null,"EUR",null,null,null,{"$error":"#DIV/0!"},0,0,null,"","","","","","","","","","",null,null,null,null,null,null,null,null,null,null,null,null,null,null,6,"None","Parcel","ZWO"]
[null,null,null,null,null,null,null,null,null,null,null,null,null,null,{"$f":"VLOOKUP(N780,Tabel10[[korte omschrijving]:[MCC3_CODE]],2,0)","v":{"$error":"#N/A"}},{"$f":"VLOOKUP(N780,Tabel10[],3,0)","v":{"$error":"#N/A"}},null,null,null,null,null,null,null,"EUR",null,null,null,{"$error":"#DIV/0!"},0,0,null,"","","","","","","","","","",null,null,null,null,null,null,null,null,null,null,null,null,null,null,6,"None","Parcel","ZWO"]
[null,null,null,null,null,null,null,null,null,null,null,null,null,null,{"$f":"VLOOKUP(N781,Tabel10[[korte omschrijving]:[MCC3_CODE]],2,0)","v":{"$error":"#N/A"}},{"$f":"VLOOKUP(N781,Tabel10[],3,0)","v":{"$error":"#N/A"}},null,null,null,null,null,null,null,"EUR",null,null,null,{"$error":"#DIV/0!"},0,0,null,"","","","","","","","","","",null,null,null,null,null,null,null,null,null,null,null,null,null,null,6,"None","Parcel","ZWO"]
[null,null,null,null,null,null,null,null,null,null,null,null,null,null,{"$f":"VLOOKUP(N782,Tabel10[[korte omschrijving]:[MCC3_CODE]],2,0)","v":{"$error":"#N/A"}},{"$f":"VLOOKUP(N782,Tabel10[],3,0)","v":{"$error":"#N/A"}},null,null,null,null,null,null,null,"EUR",null,null,null,{"$error":"#DIV/0!"},0,0,null,"","","","","","","","","","",null,null,null,null,null,null,null,null,null,null,null,null,null,null,6,"None","Parcel","ZWO"]
[null,null,null,null,null,null,null,null,null,null,null,null,null,null,{"$f":"VLOOKUP(N783,Tabel10[[korte omschrijving]:[MCC3_CODE]],2,0)","v":{"$error":"#N/A"}},{"$f":"VLOOKUP(N783,Tabel10[],3,0)","v":{"$error":"#N/A"}},null,null,null,null,null,null,null,"EUR",null,null,null,{"$error":"#DIV/0!"},0,0,null,"","","","","","","","","","",null,null,null,null,null,null,null,null,null,null,null,null,null,null,6,"None","Parcel","ZWO"]
[null,null,null,null,null,null,null,null,null,null,null,null,null,null,{"$f":"VLOOKUP(N784,Tabel10[[korte omschrijving]:[MCC3_CODE]],2,0)","v":{"$error":"#N/A"}},{"$f":"VLOOKUP(N784,Tabel10[],3,0)","v":{"$error":"#N/A"}},null,null,null,null,null,null,null,"EUR",null,null,null,{"$error":"#DIV/0!"},0,0,null,"","","","","","","","","","",null,null,null,null,null,null,null,null,null,null,null,null,null,null,6,"None","Parcel","ZWO"]
[null,null,null,null,null,null,null,null,null,null,null,null,null,null,{"$f":"VLOOKUP(N785,Tabel10[[korte omschrijving]:[MCC3_CODE]],2,0)","v":{"$error":"#N/A"}},{"$f":"VLOOKUP(N785,Tabel10[],3,0)","v":{"$error":"#N/A"}},null,null,null,null,null,null,null,"EUR",null,null,null,{"$error":"#DIV/0!"},0,0,null,"","","","","","","","","","",null,null,null,null,null,null,null,null,null,null,null,null,null,null,6,"None","Parcel","ZWO"]
[null,null,null,null,null,null,null,null,null,null,null,null,null,null,{"$f":"VLOOKUP(N786,Tabel10[[korte omschrijving]:[MCC3_CODE]],2,0)","v":{"$error":"#N/A"}},{"$f":"VLOOKUP(N786,Tabel10[],3,0)","v":{"$error":"#N/A"}},null,null,null,null,null,null,null,"EUR",null,null,null,{"$error":"#DIV/0!"},0,0,null,"","","","","","","","","","",null,null,null,null,null,null,null,null,null,null,null,null,null,null,6,"None","Parcel","ZWO"]
[null,null,null,null,null,null,null,null,null,null,null,null,null,null,{"$f":"VLOOKUP(N787,Tabel10[[korte omschrijving]:[MCC3_CODE]],2,0)","v":{"$error":"#N/A"}},{"$f":"VLOOKUP(N787,Tabel10[],3,0)","v":{"$error":"#N/A"}},null,null,null,null,null,null,null,"EUR",null,null,null,{"$error":"#DIV/0!"},0,0,null,"","","","","","","","","","",null,null,null,null,null,null,null,null,null,null,null,null,null,null,6,"None","Parcel","ZWO"]
[null,null,null,null,null,null,null,null,null,null,null,null,null,null,{"$f":"VLOOKUP(N788,Tabel10[[korte omschrijving]:[MCC3_CODE]],2,0)","v":{"$error":"#N/A"}},{"$f":"VLOOKUP(N788,Tabel10[],3,0)","v":{"$error":"#N/A"}},null,null,null,null,null,null,null,"EUR",null,null,null,{"$error":"#DIV/0!"},0,0,null,"","","","","","","","","","",null,null,null,null,null,null,null,null,null,null,null,null,null,null,6,"None","Parcel","ZWO"]
[null,null,null,null,null,null,null,null,null,null,null,null,null,null,{"$f":"VLOOKUP(N789,Tabel10[[korte omschrijving]:[MCC3_CODE]],2,0)","v":{"$error":"#N/A"}},{"$f":"VLOOKUP(N789,Tabel10[],3,0)","v":{"$error":"#N/A"}},null,null,null,null,null,null,null,"EUR",null,null,null,{"$error":"#DIV/0!"},0,0,null,"","","","","","","","","","",null,null,null,null,null,null,null,null,null,null,null,null,null,null,6,"None","Parcel","ZWO"]
[null,null,null,null,null,null,null,null,null,null,null,null,null,null,{"$f":"VLOOKUP(N790,Tabel10[[korte omschrijving]:[MCC3_CODE]],2,0)","v":{"$error":"#N/A"}},{"$f":"VLOOKUP(N790,Tabel10[],3,0)","v":{"$error":"#N/A"}},null,null,null,null,null,null,null,"EUR",null,null,null,{"$error":"#DIV/0!"},0,0,null,"","","","","","","","","","",null,null,null,null,null,null,null,null,null,null,null,null,null,null,6,"None","Parcel","ZWO"]
[null,null,null,null,null,null,null,null,null,null,null,null,null,null,{"$f":"VLOOKUP(N791,Tabel10[[korte omschrijving]:[MCC3_CODE]],2,0)","v":{"$error":"#N/A"}},{"$f":"VLOOKUP(N791,Tabel10[],3,0)","v":{"$error":"#N/A"}},null,null,null,null,null,null,null,"EUR",null,null,null,{"$error":"#DIV/0!"},0,0,null,"","","","","","","","","","",null,null,null,null,null,null,null,null,null,null,null,null,null,null,6,"None","Parcel","ZWO"]
[null,null,null,null,null,null,null,null,null,null,null,null,null,null,{"$f":"VLOOKUP(N792,Tabel10[[korte omschrijving]:[MCC3_CODE]],2,0)","v":{"$error":"#N/A"}},{"$f":"VLOOKUP(N792,Tabel10[],3,0)","v":{"$error":"#N/A"}},null,null,null,null,null,null,null,"EUR",null,null,null,{"$error":"#DIV/0!"},0,0,null,"","","","","","","","","","",null,null,null,null,null,null,null,null,null,null,null,null,null,null,6,"None","Parcel","ZWO"]
[null,null,null,null,null,null,null,null,null,null,null,null,null,null,{"$f":"VLOOKUP(N793,Tabel10[[korte omschrijving]:[MCC3_CODE]],2,0)","v":{"$error":"#N/A"}},{"$f":"VLOOKUP(N793,Tabel10[],3,0)","v":{"$error":"#N/A"}},null,null,null,null,null,null,null,"EUR",null,null,null,{"$error":"#DIV/0!"},0,0,null,"","","","","","","","","","",null,null,null,null,null,null,null,null,null,null,null,null,null,null,6,"None","Parcel","ZWO"]
[null,null,null,null,null,null,null,null,null,null,null,null,null,null,{"$f":"VLOOKUP(N794,Tabel10[[korte omschrijving]:[MCC3_CODE]],2,0)","v":{"$error":"#N/A"}},{"$f":"VLOOKUP(N794,Tabel10[],3,0)","v":{"$error":"#N/A"}},null,null,null,null,null,null,null,"EUR",null,null,null,{"$error":"#DIV/0!"},0,0,null,"","","","","","","","","","",null,null,null,null,null,null,null,null,null,null,null,null,null,null,6,"None","Parcel","ZWO"]
[null,null,null,null,null,null,null,null,null,null,null,null,null,null,{"$f":"VLOOKUP(N795,Tabel10[[korte omschrijving]:[MCC3_CODE]],2,0)","v":{"$error":"#N/A"}},{"$f":"VLOOKUP(N795,Tabel10[],3,0)","v":{"$error":"#N/A"}},null,null,null,null,null,null,null,"EUR",null,null,null,{"$error":"#DIV/0!"},0,0,null,"","","","","","","","","","",null,null,null,null,null,null,null,null,null,null,null,null,null,null,6,"None","Parcel","ZWO"]
[null,null,null,null,null,null,null,null,null,null,null,null,null,null,{"$f":"VLOOKUP(N796,Tabel10[[korte omschrijving]:[MCC3_CODE]],2,0)","v":{"$error":"#N/A"}},{"$f":"VLOOKUP(N796,Tabel10[],3,0)","v":{"$error":"#N/A"}},null,null,null,null,null,null,null,"EUR",null,null,null,{"$error":"#DIV/0!"},0,0,null,"","","","","","","","","","",null,null,null,null,null,null,null,null,null,null,null,null,null,null,6,"None","Parcel","ZWO"]
[null,null,null,null,null,null,null,null,null,null,null,null,null,null,{"$f":"VLOOKUP(N797,Tabel10[[korte omschrijving]:[MCC3_CODE]],2,0)","v":{"$error":"#N/A"}},{"$f":"VLOOKUP(N797,Tabel10[],3,0)","v":{"$error":"#N/A"}},null,null,null,null,null,null,null,"EUR",null,null,null,{"$error":"#DIV/0!"},0,0,null,"","","","","","","","","","",null,null,null,null,null,null,null,null,null,null,null,null,null,null,6,"None","Parcel","ZWO"]
[null,null,null,null,null,null,null,null,null,null,null,null,null,null,{"$f":"VLOOKUP(N798,Tabel10[[korte omschrijving]:[MCC3_CODE]],2,0)","v":{"$error":"#N/A"}},{"$f":"VLOOKUP(N798,Tabel10[],3,0)","v":{"$error":"#N/A"}},null,null,null,null,null,null,null,"EUR",null,null,null,{"$error":"#DIV/0!"},0,0,null,"","","","","","","","","","",null,null,null,null,null,null,null,null,null,null,null,null,null,null,6,"None","Parcel","ZWO"]
[null,null,null,null,null,null,null,null,null,null,null,null,null,null,{"$f":"VLOOKUP(N799,Tabel10[[korte omschrijving]:[MCC3_CODE]],2,0)","v":{"$error":"#N/A"}},{"$f":"VLOOKUP(N799,Tabel10[],3,0)","v":{"$error":"#N/A"}},null,null,null,null,null,null,null,"EUR",null,null,null,{"$error":"#DIV/0!"},0,0,null,"","","","","","","","","","",null,null,null,null,null,null,null,null,null,null,null,null,null,null,6,"None","Parcel","ZWO"]
[null,null,null,null,null,null,null,null,null,null,null,null,null,null,{"$f":"VLOOKUP(N800,Tabel10[[korte omschrijving]:[MCC3_CODE]],2,0)","v":{"$error":"#N/A"}},{"$f":"VLOOKUP(N800,Tabel10[],3,0)","v":{"$error":"#N/A"}},null,null,null,null,null,null,null,"EUR",null,null,null,{"$error":"#DIV/0!"},0,0,null,"","","","","","","","","","",null,null,null,null,null,null,null,null,null,null,null,null,null,null,6,"None","Parcel","ZWO"]
[null,null,null,null,null,null,null,null,null,null,null,null,null,null,{"$f":"VLOOKUP(N801,Tabel10[[korte omschrijving]:[MCC3_CODE]],2,0)","v":{"$error":"#N/A"}},{"$f":"VLOOKUP(N801,Tabel10[],3,0)","v":{"$error":"#N/A"}},null,null,null,null,null,null,null,"EUR",null,null,null,{"$error":"#DIV/0!"},0,0,null,"","","","","","","","","","",null,null,null,null,null,null,null,null,null,null,null,null,null,null,6,"None","Parcel","ZWO"]
[null,null,null,null,null,null,null,null,null,null,null,null,null,null,{"$f":"VLOOKUP(N802,Tabel10[[korte omschrijving]:[MCC3_CODE]],2,0)","v":{"$error":"#N/A"}},{"$f":"VLOOKUP(N802,Tabel10[],3,0)","v":{"$error":"#N/A"}},null,null,null,null,null,null,null,"EUR",null,null,null,{"$error":"#DIV/0!"},0,0,null,"","","","","","","","","","",null,null,null,null,null,null,null,null,null,null,null,null,null,null,6,"None","Parcel","ZWO"]
[null,null,null,null,null,null,null,null,null,null,null,null,null,null,{"$f":"VLOOKUP(N803,Tabel10[[korte omschrijving]:[MCC3_CODE]],2,0)","v":{"$error":"#N/A"}},{"$f":"VLOOKUP(N803,Tabel10[],3,0)","v":{"$error":"#N/A"}},null,null,null,null,null,null,null,"EUR",null,null,null,{"$error":"#DIV/0!"},0,0,null,"","","","","","","","","","",null,null,null,null,null,null,null,null,null,null,null,null,null,null,6,"None","Parcel","ZWO"]
[null,null,null,null,null,null,null,null,null,null,null,null,null,null,{"$f":"VLOOKUP(N804,Tabel10[[korte omschrijving]:[MCC3_CODE]],2,0)","v":{"$error":"#N/A"}},{"$f":"VLOOKUP(N804,Tabel10[],3,0)","v":{"$error":"#N/A"}},null,null,null,null,null,null,null,"EUR",null,null,null,{"$error":"#DIV/0!"},0,0,null,"","","","","","","","","","",null,null,null,null,null,null,null,null,null,null,null,null,null,null,6,"None","Parcel","ZWO"]
[null,null,null,null,null,null,null,null,null,null,null,null,null,null,{"$f":"VLOOKUP(N805,Tabel10[[korte omschrijving]:[MCC3_CODE]],2,0)","v":{"$error":"#N/A"}},{"$f":"VLOOKUP(N805,Tabel10[],3,0)","v":{"$error":"#N/A"}},null,null,null,null,null,null,null,"EUR",null,null,null,{"$error":"#DIV/0!"},0,0,null,"","","","","","","","","","",null,null,null,null,null,null,null,null,null,null,null,null,null,null,6,"None","Parcel","ZWO"]
[null,null,null,null,null,null,null,null,null,null,null,null,null,null,{"$f":"VLOOKUP(N806,Tabel10[[korte omschrijving]:[MCC3_CODE]],2,0)","v":{"$error":"#N/A"}},{"$f":"VLOOKUP(N806,Tabel10[],3,0)","v":{"$error":"#N/A"}},null,null,null,null,null,null,null,"EUR",null,null,null,{"$error":"#DIV/0!"},0,0,null,"","","","","","","","","","",null,null,null,null,null,null,null,null,null,null,null,null,null,null,6,"None","Parcel","ZWO"]
[null,null,null,null,null,null,null,null,null,null,null,null,null,null,{"$f":"VLOOKUP(N807,Tabel10[[korte omschrijving]:[MCC3_CODE]],2,0)","v":{"$error":"#N/A"}},{"$f":"VLOOKUP(N807,Tabel10[],3,0)","v":{"$error":"#N/A"}},null,null,null,null,null,null,null,"EUR",null,null,null,{"$error":"#DIV/0!"},0,0,null,"","","","","","","","","","",null,null,null,null,null,null,null,null,null,null,null,null,null,null,6,"None","Parcel","ZWO"]
[null,null,null,null,null,null,null,null,null,null,null,null,null,null,{"$f":"VLOOKUP(N808,Tabel10[[korte omschrijving]:[MCC3_CODE]],2,0)","v":{"$error":"#N/A"}},{"$f":"VLOOKUP(N808,Tabel10[],3,0)","v":{"$error":"#N/A"}},null,null,null,null,null,null,null,"EUR",null,null,null,{"$error":"#DIV/0!"},0,0,null,"","","","","","","","","","",null,null,null,null,null,null,null,null,null,null,null,null,null,null,6,"None","Parcel","ZWO"]
[null,null,null,null,null,null,null,null,null,null,null,null,null,null,{"$f":"VLOOKUP(N809,Tabel10[[korte omschrijving]:[MCC3_CODE]],2,0)","v":{"$error":"#N/A"}},{"$f":"VLOOKUP(N809,Tabel10[],3,0)","v":{"$error":"#N/A"}},null,null,null,null,null,null,null,"EUR",null,null,null,{"$error":"#DIV/0!"},0,0,null,"","","","","","","","","","",null,null,null,null,null,null,null,null,null,null,null,null,null,null,6,"None","Parcel","ZWO"]
[null,null,null,null,null,null,null,null,null,null,null,null,null,null,{"$f":"VLOOKUP(N810,Tabel10[[korte omschrijving]:[MCC3_CODE]],2,0)","v":{"$error":"#N/A"}},{"$f":"VLOOKUP(N810,Tabel10[],3,0)","v":{"$error":"#N/A"}},null,null,null,null,null,null,null,"EUR",null,null,null,{"$error":"#DIV/0!"},0,0,null,"","","","","","","","","","",null,null,null,null,null,null,null,null,null,null,null,null,null,null,6,"None","Parcel","ZWO"]
[null,null,null,null,null,null,null,null,null,null,null,null,null,null,{"$f":"VLOOKUP(N811,Tabel10[[korte omschrijving]:[MCC3_CODE]],2,0)","v":{"$error":"#N/A"}},{"$f":"VLOOKUP(N811,Tabel10[],3,0)","v":{"$error":"#N/A"}},null,null,null,null,null,null,null,"EUR",null,null,null,{"$error":"#DIV/0!"},0,0,null,"","","","","","","","","","",null,null,null,null,null,null,null,null,null,null,null,null,null,null,6,"None","Parcel","ZWO"]
[null,null,null,null,null,null,null,null,null,null,null,null,null,null,{"$f":"VLOOKUP(N812,Tabel10[[korte omschrijving]:[MCC3_CODE]],2,0)","v":{"$error":"#N/A"}},{"$f":"VLOOKUP(N812,Tabel10[],3,0)","v":{"$error":"#N/A"}},null,null,null,null,null,null,null,"EUR",null,null,null,{"$error":"#DIV/0!"},0,0,null,"","","","","","","","","","",null,null,null,null,null,null,null,null,null,null,null,null,null,null,6,"None","Parcel","ZWO"]
[null,null,null,null,null,null,null,null,null,null,null,null,null,null,{"$f":"VLOOKUP(N813,Tabel10[[korte omschrijving]:[MCC3_CODE]],2,0)","v":{"$error":"#N/A"}},{"$f":"VLOOKUP(N813,Tabel10[],3,0)","v":{"$error":"#N/A"}},null,null,null,null,null,null,null,"EUR",null,null,null,{"$error":"#DIV/0!"},0,0,null,"","","","","","","","","","",null,null,null,null,null,null,null,null,null,null,null,null,null,null,6,"None","Parcel","ZWO"]
[null,null,null,null,null,null,null,null,null,null,null,null,null,null,{"$f":"VLOOKUP(N814,Tabel10[[korte omschrijving]:[MCC3_CODE]],2,0)","v":{"$error":"#N/A"}},{"$f":"VLOOKUP(N814,Tabel10[],3,0)","v":{"$error":"#N/A"}},null,null,null,null,null,null,null,"EUR",null,null,null,{"$error":"#DIV/0!"},0,0,null,"","","","","","","","","","",null,null,null,null,null,null,null,null,null,null,null,null,null,null,6,"None","Parcel","ZWO"]
[null,null,null,null,null,null,null,null,null,null,null,null,null,null,{"$f":"VLOOKUP(N815,Tabel10[[korte omschrijving]:[MCC3_CODE]],2,0)","v":{"$error":"#N/A"}},{"$f":"VLOOKUP(N815,Tabel10[],3,0)","v":{"$error":"#N/A"}},null,null,null,null,null,null,null,"EUR",null,null,null,{"$error":"#DIV/0!"},0,0,null,"","","","","","","","","","",null,null,null,null,null,null,null,null,null,null,null,null,null,null,6,"None","Parcel","ZWO"]
[null,null,null,null,null,null,null,null,null,null,null,null,null,null,{"$f":"VLOOKUP(N816,Tabel10[[korte omschrijving]:[MCC3_CODE]],2,0)","v":{"$error":"#N/A"}},{"$f":"VLOOKUP(N816,Tabel10[],3,0)","v":{"$error":"#N/A"}},null,null,null,null,null,null,null,"EUR",null,null,null,{"$error":"#DIV/0!"},0,0,null,"","","","","","","","","","",null,null,null,null,null,null,null,null,null,null,null,null,null,null,6,"None","Parcel","ZWO"]
[null,null,null,null,null,null,null,null,null,null,null,null,null,null,{"$f":"VLOOKUP(N817,Tabel10[[korte omschrijving]:[MCC3_CODE]],2,0)","v":{"$error":"#N/A"}},{"$f":"VLOOKUP(N817,Tabel10[],3,0)","v":{"$error":"#N/A"}},null,null,null,null,null,null,null,"EUR",null,null,null,{"$error":"#DIV/0!"},0,0,null,"","","","","","","","","","",null,null,null,null,null,null,null,null,null,null,null,null,null,null,6,"None","Parcel","ZWO"]
[null,null,null,null,null,null,null,null,null,null,null,null,null,null,{"$f":"VLOOKUP(N818,Tabel10[[korte omschrijving]:[MCC3_CODE]],2,0)","v":{"$error":"#N/A"}},{"$f":"VLOOKUP(N818,Tabel10[],3,0)","v":{"$error":"#N/A"}},null,null,null,null,null,null,null,"EUR",null,null,null,{"$error":"#DIV/0!"},0,0,null,"","","","","","","","","","",null,null,null,null,null,null,null,null,null,null,null,null,null,null,6,"None","Parcel","ZWO"]
[null,null,null,null,null,null,null,null,null,null,null,null,null,null,{"$f":"VLOOKUP(N819,Tabel10[[korte omschrijving]:[MCC3_CODE]],2,0)","v":{"$error":"#N/A"}},{"$f":"VLOOKUP(N819,Tabel10[],3,0)","v":{"$error":"#N/A"}},null,null,null,null,null,null,null,"EUR",null,null,null,{"$error":"#DIV/0!"},0,0,null,"","","","","","","","","","",null,null,null,null,null,null,null,null,null,null,null,null,null,null,6,"None","Parcel","ZWO"]
[null,null,null,null,null,null,null,null,null,null,null,null,null,null,{"$f":"VLOOKUP(N820,Tabel10[[korte omschrijving]:[MCC3_CODE]],2,0)","v":{"$error":"#N/A"}},{"$f":"VLOOKUP(N820,Tabel10[],3,0)","v":{"$error":"#N/A"}},null,null,null,null,null,null,null,"EUR",null,null,null,{"$error":"#DIV/0!"},0,0,null,"","","","","","","","","","",null,null,null,null,null,null,null,null,null,null,null,null,null,null,6,"None","Parcel","ZWO"]
[null,null,null,null,null,null,null,null,null,null,null,null,null,null,{"$f":"VLOOKUP(N821,Tabel10[[korte omschrijving]:[MCC3_CODE]],2,0)","v":{"$error":"#N/A"}},{"$f":"VLOOKUP(N821,Tabel10[],3,0)","v":{"$error":"#N/A"}},null,null,null,null,null,null,null,"EUR",null,null,null,{"$error":"#DIV/0!"},0,0,null,"","","","","","","","","","",null,null,null,null,null,null,null,null,null,null,null,null,null,null,6,"None","Parcel","ZWO"]
[null,null,null,null,null,null,null,null,null,null,null,null,null,null,{"$f":"VLOOKUP(N822,Tabel10[[korte omschrijving]:[MCC3_CODE]],2,0)","v":{"$error":"#N/A"}},{"$f":"VLOOKUP(N822,Tabel10[],3,0)","v":{"$error":"#N/A"}},null,null,null,null,null,null,null,"EUR",null,null,null,{"$error":"#DIV/0!"},0,0,null,"","","","","","","","","","",null,null,null,null,null,null,null,null,null,null,null,null,null,null,6,"None","Parcel","ZWO"]
[null,null,null,null,null,null,null,null,null,null,null,null,null,null,{"$f":"VLOOKUP(N823,Tabel10[[korte omschrijving]:[MCC3_CODE]],2,0)","v":{"$error":"#N/A"}},{"$f":"VLOOKUP(N823,Tabel10[],3,0)","v":{"$error":"#N/A"}},null,null,null,null,null,null,null,"EUR",null,null,null,{"$error":"#DIV/0!"},0,0,null,"","","","","","","","","","",null,null,null,null,null,null,null,null,null,null,null,null,null,null,6,"None","Parcel","ZWO"]
[null,null,null,null,null,null,null,null,null,null,null,null,null,null,{"$f":"VLOOKUP(N824,Tabel10[[korte omschrijving]:[MCC3_CODE]],2,0)","v":{"$error":"#N/A"}},{"$f":"VLOOKUP(N824,Tabel10[],3,0)","v":{"$error":"#N/A"}},null,null,null,null,null,null,null,"EUR",null,null,null,{"$error":"#DIV/0!"},0,0,null,"","","","","","","","","","",null,null,null,null,null,null,null,null,null,null,null,null,null,null,6,"None","Parcel","ZWO"]
[null,null,null,null,null,null,null,null,null,null,null,null,null,null,{"$f":"VLOOKUP(N825,Tabel10[[korte omschrijving]:[MCC3_CODE]],2,0)","v":{"$error":"#N/A"}},{"$f":"VLOOKUP(N825,Tabel10[],3,0)","v":{"$error":"#N/A"}},null,null,null,null,null,null,null,"EUR",null,null,null,{"$error":"#DIV/0!"},0,0,null,"","","","","","","","","","",null,null,null,null,null,null,null,null,null,null,null,null,null,null,6,"None","Parcel","ZWO"]
[null,null,null,null,null,null,null,null,null,null,null,null,null,null,{"$f":"VLOOKUP(N826,Tabel10[[korte omschrijving]:[MCC3_CODE]],2,0)","v":{"$error":"#N/A"}},{"$f":"VLOOKUP(N826,Tabel10[],3,0)","v":{"$error":"#N/A"}},null,null,null,null,null,null,null,"EUR",null,null,null,{"$error":"#DIV/0!"},0,0,null,"","","","","","","","","","",null,null,null,null,null,null,null,null,null,null,null,null,null,null,6,"None","Parcel","ZWO"]
[null,null,null,null,null,null,null,null,null,null,null,null,null,null,{"$f":"VLOOKUP(N827,Tabel10[[korte omschrijving]:[MCC3_CODE]],2,0)","v":{"$error":"#N/A"}},{"$f":"VLOOKUP(N827,Tabel10[],3,0)","v":{"$error":"#N/A"}},null,null,null,null,null,null,null,"EUR",null,null,null,{"$error":"#DIV/0!"},0,0,null,"","","","","","","","","","",null,null,null,null,null,null,null,null,null,null,null,null,null,null,6,"None","Parcel","ZWO"]
[null,null,null,null,null,null,null,null,null,null,null,null,null,null,{"$f":"VLOOKUP(N828,Tabel10[[korte omschrijving]:[MCC3_CODE]],2,0)","v":{"$error":"#N/A"}},{"$f":"VLOOKUP(N828,Tabel10[],3,0)","v":{"$error":"#N/A"}},null,null,null,null,null,null,null,"EUR",null,null,null,{"$error":"#DIV/0!"},0,0,null,"","","","","","","","","","",null,null,null,null,null,null,null,null,null,null,null,null,null,null,6,"None","Parcel","ZWO"]
[null,null,null,null,null,null,null,null,null,null,null,null,null,null,{"$f":"VLOOKUP(N829,Tabel10[[korte omschrijving]:[MCC3_CODE]],2,0)","v":{"$error":"#N/A"}},{"$f":"VLOOKUP(N829,Tabel10[],3,0)","v":{"$error":"#N/A"}},null,null,null,null,null,null,null,"EUR",null,null,null,{"$error":"#DIV/0!"},0,0,null,"","","","","","","","","","",null,null,null,null,null,null,null,null,null,null,null,null,null,null,6,"None","Parcel","ZWO"]
[null,null,null,null,null,null,null,null,null,null,null,null,null,null,{"$f":"VLOOKUP(N830,Tabel10[[korte omschrijving]:[MCC3_CODE]],2,0)","v":{"$error":"#N/A"}},{"$f":"VLOOKUP(N830,Tabel10[],3,0)","v":{"$error":"#N/A"}},null,null,null,null,null,null,null,"EUR",null,null,null,{"$error":"#DIV/0!"},0,0,null,"","","","","","","","","","",null,null,null,null,null,null,null,null,null,null,null,null,null,null,6,"None","Parcel","ZWO"]
[null,null,null,null,null,null,null,null,null,null,null,null,null,null,{"$f":"VLOOKUP(N831,Tabel10[[korte omschrijving]:[MCC3_CODE]],2,0)","v":{"$error":"#N/A"}},{"$f":"VLOOKUP(N831,Tabel10[],3,0)","v":{"$error":"#N/A"}},null,null,null,null,null,null,null,"EUR",null,null,null,{"$error":"#DIV/0!"},0,0,null,"","","","","","","","","","",null,null,null,null,null,null,null,null,null,null,null,null,null,null,6,"None","Parcel","ZWO"]
[null,null,null,null,null,null,null,null,null,null,null,null,null,null,{"$f":"VLOOKUP(N832,Tabel10[[korte omschrijving]:[MCC3_CODE]],2,0)","v":{"$error":"#N/A"}},{"$f":"VLOOKUP(N832,Tabel10[],3,0)","v":{"$error":"#N/A"}},null,null,null,null,null,null,null,"EUR",null,null,null,{"$error":"#DIV/0!"},0,0,null,"","","","","","","","","","",null,null,null,null,null,null,null,null,null,null,null,null,null,null,6,"None","Parcel","ZWO"]
[null,null,null,null,null,null,null,null,null,null,null,null,null,null,{"$f":"VLOOKUP(N833,Tabel10[[korte omschrijving]:[MCC3_CODE]],2,0)","v":{"$error":"#N/A"}},{"$f":"VLOOKUP(N833,Tabel10[],3,0)","v":{"$error":"#N/A"}},null,null,null,null,null,null,null,"EUR",null,null,null,{"$error":"#DIV/0!"},0,0,null,"","","","","","","","","","",null,null,null,null,null,null,null,null,null,null,null,null,null,null,6,"None","Parcel","ZWO"]
[null,null,null,null,null,null,null,null,null,null,null,null,null,null,{"$f":"VLOOKUP(N834,Tabel10[[korte omschrijving]:[MCC3_CODE]],2,0)","v":{"$error":"#N/A"}},{"$f":"VLOOKUP(N834,Tabel10[],3,0)","v":{"$error":"#N/A"}},null,null,null,null,null,null,null,"EUR",null,null,null,{"$error":"#DIV/0!"},0,0,null,"","","","","","","","","","",null,null,null,null,null,null,null,null,null,null,null,null,null,null,6,"None","Parcel","ZWO"]
[null,null,null,null,null,null,null,null,null,null,null,null,null,null,{"$f":"VLOOKUP(N835,Tabel10[[korte omschrijving]:[MCC3_CODE]],2,0)","v":{"$error":"#N/A"}},{"$f":"VLOOKUP(N835,Tabel10[],3,0)","v":{"$error":"#N/A"}},null,null,null,null,null,null,null,"EUR",null,null,null,{"$error":"#DIV/0!"},0,0,null,"","","","","","","","","","",null,null,null,null,null,null,null,null,null,null,null,null,null,null,6,"None","Parcel","ZWO"]
[null,null,null,null,null,null,null,null,null,null,null,null,null,null,{"$f":"VLOOKUP(N836,Tabel10[[korte omschrijving]:[MCC3_CODE]],2,0)","v":{"$error":"#N/A"}},{"$f":"VLOOKUP(N836,Tabel10[],3,0)","v":{"$error":"#N/A"}},null,null,null,null,null,null,null,"EUR",null,null,null,{"$error":"#DIV/0!"},0,0,null,"","","","","","","","","","",null,null,null,null,null,null,null,null,null,null,null,null,null,null,6,"None","Parcel","ZWO"]
[null,null,null,null,null,null,null,null,null,null,null,null,null,null,{"$f":"VLOOKUP(N837,Tabel10[[korte omschrijving]:[MCC3_CODE]],2,0)","v":{"$error":"#N/A"}},{"$f":"VLOOKUP(N837,Tabel10[],3,0)","v":{"$error":"#N/A"}},null,null,null,null,null,null,null,"EUR",null,null,null,{"$error":"#DIV/0!"},0,0,null,"","","","","","","","","","",null,null,null,null,null,null,null,null,null,null,null,null,null,null,6,"None","Parcel","ZWO"]
[null,null,null,null,null,null,null,null,null,null,null,null,null,null,{"$f":"VLOOKUP(N838,Tabel10[[korte omschrijving]:[MCC3_CODE]],2,0)","v":{"$error":"#N/A"}},{"$f":"VLOOKUP(N838,Tabel10[],3,0)","v":{"$error":"#N/A"}},null,null,null,null,null,null,null,"EUR",null,null,null,{"$error":"#DIV/0!"},0,0,null,"","","","","","","","","","",null,null,null,null,null,null,null,null,null,null,null,null,null,null,6,"None","Parcel","ZWO"]
[null,null,null,null,null,null,null,null,null,null,null,null,null,null,{"$f":"VLOOKUP(N839,Tabel10[[korte omschrijving]:[MCC3_CODE]],2,0)","v":{"$error":"#N/A"}},{"$f":"VLOOKUP(N839,Tabel10[],3,0)","v":{"$error":"#N/A"}},null,null,null,null,null,null,null,"EUR",null,null,null,{"$f":"AA839/Y839","v":{"$error":"#DIV/0!"}},{"$f":"T839*Y839","v":0},{"$f":"T839*AA839","v":0},null,{"$f":"IF(AE839 <> \"\",\n    IF(ISNUMBER(VALUE(LEFT(AE839, FIND(\"%\", AE839)-1))),\n        VALUE(LEFT(AE839, FIND(\"%\", AE839)-1)),\n        \"Invalid format\"),\n    \"\")","v":""},{"$f":"IF(AE839 <> \"\",\n    IF(ISNUMBER(VALUE(LEFT(AE839, FIND(\"%\", AE839)-1))) * ISNUMBER(FIND(\"%\", AE839 & \"wol\")) > 0,\n        TRIM(MID(AE839, FIND(\"%\", AE839)+1, FIND(\"/\", AE839 & \"/\")-FIND(\"%\", AE839)-1)),\n        \"Invalid format\"),\n    \"\")","v":""},{"$f":"IF(AE839 <> \"\",\n    IF(ISNUMBER(VALUE(MID(AE839, FIND(\"/\", AE839) + 1, FIND(\"%\", AE839, FIND(\"/\", AE839)) - FIND(\"/\", AE839) - 1))),\n        VALUE(MID(AE839, FIND(\"/\", AE839) + 1, FIND(\"%\", AE839, FIND(\"/\", AE839)) - FIND(\"/\", AE839) - 1)),\n        \"\"),\n    \"\")","v":""},{"$f":"IF(AE839 <> \"\",\n    IFERROR(TRIM(MID(AE839, FIND(\"%\", AE839, FIND(\"/\", AE839)+1)+2,\n        IFERROR(FIND(\"/\", AE839 & \"/\", FIND(\"/\", AE839)+1)-FIND(\"%\", AE839, FIND(\"/\", AE839)+1)-2, LEN(AE839)-FIND(\"%\", AE839, FIND(\"/\", AE839)+1)-1))),\n        \"\"),\n    \"\")","v":""},{"$f":"IF(AE839 <> \"\",\n    IF(ISNUMBER(VALUE(MID(AE839, FIND(\"/\", AE839, FIND(\"/\", AE839)+1) + 1, FIND(\"%\", AE839, FIND(\"/\", AE839, FIND(\"/\", AE839)+1)) - FIND(\"/\", AE839, FIND(\"/\", AE839)+1) - 1))),\n        VALUE(MID(AE839, FIND(\"/\", AE839, FIND(\"/\", AE839)+1) + 1, FIND(\"%\", AE839, FIND(\"/\", AE839, FIND(\"/\", AE839)+1)) - FIND(\"/\", AE839, FIND(\"/\", AE839)+1) - 1)),\n        \"\"),\n    \"\")","v":""},{"$f":"IF(AE839 <> \"\",\n    IFERROR(\n        TRIM(MID(AE839,\n            FIND(\"%\", AE839, FIND(\"%\", AE839, FIND(\"%\", AE839)+1)+1)+1,\n            FIND(\"/\", AE839 & \"/\", FIND(\"%\", AE839, FIND(\"%\", AE839, FIND(\"%\", AE839)+1)+1))-FIND(\"%\", AE839, FIND(\"%\", AE839, FIND(\"%\", AE839)+1)+1)-1)\n        ),\n        \"\"\n    ),\n    \"\"\n)","v":""},{"$f":"IF(AE839 <> \"\",\n    IF(ISNUMBER(VALUE(MID(AE839, FIND(\"/\", AE839, FIND(\"/\", AE839, FIND(\"/\", AE839)+1)+1) + 1, FIND(\"%\", AE839, FIND(\"/\", AE839, FIND(\"/\", AE839, FIND(\"/\", AE839)+1)+1)) - FIND(\"/\", AE839, FIND(\"/\", AE839, FIND(\"/\", AE839)+1)+1) - 1))),\n        VALUE(MID(AE839, FIND(\"/\", AE839, FIND(\"/\", AE839, FIND(\"/\", AE839)+1)+1) + 1, FIND(\"%\", AE839, FIND(\"/\", AE839, FIND(\"/\", AE839, FIND(\"/\", AE839)+1)+1)) - FIND(\"/\", AE839, FIND(\"/\", AE839, FIND(\"/\", AE839)+1)+1) - 1)),\n        \"\"),\n    \"\")","v":""},{"$f":"IF(AE839 <> \"\",\n    IFERROR(TRIM(MID(AE839, FIND(\"%\", AE839, FIND(\"/\", AE839, FIND(\"/\", AE839, FIND(\"/\", AE839)+1)+1)+1)+2,\n        IFERROR(FIND(\"/\", AE839, FIND(\"/\", AE839, FIND(\"/\", AE839, FIND(\"/\", AE839)+1)+1)+1)-FIND(\"%\", AE839, FIND(\"/\", AE839, FIND(\"/\", AE839, FIND(\"/\", AE839)+1)+1)+1)-2, LEN(AE839)-FIND(\"%\", AE839, FIND(\"/\", AE839, FIND(\"/\", AE839, FIND(\"/\", AE839)+1)+1)+1)-1))),\n        \"\"),\n    \"\")","v":""},{"$f":"IF(AE839 <> \"\",\n    IF(ISNUMBER(VALUE(MID(AE839, FIND(\"/\", AE839, FIND(\"/\", AE839, FIND(\"/\", AE839, FIND(\"/\", AE839)+1)+1)+1) + 1, FIND(\"%\", AE839, FIND(\"/\", AE839, FIND(\"/\", AE839, FIND(\"/\", AE839, FIND(\"/\", AE839)+1)+1)+1)) - FIND(\"/\", AE839, FIND(\"/\", AE839, FIND(\"/\", AE839, FIND(\"/\", AE839)+1)+1)+1) - 1))),\n        VALUE(MID(AE839, FIND(\"/\", AE839, FIND(\"/\", AE839, FIND(\"/\", AE839, FIND(\"/\", AE839)+1)+1)+1) + 1, FIND(\"%\", AE839, FIND(\"/\", AE839, FIND(\"/\", AE839, FIND(\"/\", AE839, FIND(\"/\", AE839)+1)+1)+1)) - FIND(\"/\", AE839, FIND(\"/\", AE839, FIND(\"/\", AE839, FIND(\"/\", AE839)+1)+1)+1) - 1)),\n        \"\"),\n    \"\")","v":""},{"$f":"IF(AE839 = \"\", \"\",\n    IFERROR(TRIM(\n        MID(\n            AE839,\n            FIND(\"%\", AE839, FIND(\"/\", AE839, FIND(\"/\", AE839, FIND(\"/\", AE839, FIND(\"/\", AE839)+1)+1)+1)+1) + 1,\n            FIND(\"/\", AE839 & \"/\", FIND(\"%\", AE839, FIND(\"/\", AE839, FIND(\"/\", AE839, FIND(\"/\", AE839, FIND(\"/\", AE839)+1)+1)+1)+1)) -\n            FIND(\"%\", AE839, FIND(\"/\", AE839, FIND(\"/\", AE839, FIND(\"/\", AE839, FIND(\"/\", AE839)+1)+1)+1)+1) - 1\n        )\n    ),\n    \"\")\n)","v":""},null,null,null,null,null,null,null,null,null,null,null,null,null,null,6,"None","Parcel","ZWO"]
[null,null,null,null,null,null,null,null,null,null,null,null,null,null,{"$f":"VLOOKUP(N840,Tabel10[[korte omschrijving]:[MCC3_CODE]],2,0)","v":{"$error":"#N/A"}},{"$f":"VLOOKUP(N840,Tabel10[],3,0)","v":{"$error":"#N/A"}},null,null,null,null,null,null,null,"EUR",null,null,null,{"$error":"#DIV/0!"},0,0,null,"","","","","","","","","","",null,null,null,null,null,null,null,null,null,null,null,null,null,null,6,"None","Parcel","ZWO"]
[null,null,null,null,null,null,null,null,null,null,null,null,null,null,{"$f":"VLOOKUP(N841,Tabel10[[korte omschrijving]:[MCC3_CODE]],2,0)","v":{"$error":"#N/A"}},{"$f":"VLOOKUP(N841,Tabel10[],3,0)","v":{"$error":"#N/A"}},null,null,null,null,null,null,null,"EUR",null,null,null,{"$error":"#DIV/0!"},0,0,null,"","","","","","","","","","",null,null,null,null,null,null,null,null,null,null,null,null,null,null,6,"None","Parcel","ZWO"]
[null,null,null,null,null,null,null,null,null,null,null,null,null,null,{"$f":"VLOOKUP(N842,Tabel10[[korte omschrijving]:[MCC3_CODE]],2,0)","v":{"$error":"#N/A"}},{"$f":"VLOOKUP(N842,Tabel10[],3,0)","v":{"$error":"#N/A"}},null,null,null,null,null,null,null,"EUR",null,null,null,{"$error":"#DIV/0!"},0,0,null,"","","","","","","","","","",null,null,null,null,null,null,null,null,null,null,null,null,null,null,6,"None","Parcel","ZWO"]
[null,null,null,null,null,null,null,null,null,null,null,null,null,null,{"$f":"VLOOKUP(N843,Tabel10[[korte omschrijving]:[MCC3_CODE]],2,0)","v":{"$error":"#N/A"}},{"$f":"VLOOKUP(N843,Tabel10[],3,0)","v":{"$error":"#N/A"}},null,null,null,null,null,null,null,"EUR",null,null,null,{"$error":"#DIV/0!"},0,0,null,"","","","","","","","","","",null,null,null,null,null,null,null,null,null,null,null,null,null,null,6,"None","Parcel","ZWO"]
[null,null,null,null,null,null,null,null,null,null,null,null,null,null,{"$f":"VLOOKUP(N844,Tabel10[[korte omschrijving]:[MCC3_CODE]],2,0)","v":{"$error":"#N/A"}},{"$f":"VLOOKUP(N844,Tabel10[],3,0)","v":{"$error":"#N/A"}},null,null,null,null,null,null,null,"EUR",null,null,null,{"$error":"#DIV/0!"},0,0,null,"","","","","","","","","","",null,null,null,null,null,null,null,null,null,null,null,null,null,null,6,"None","Parcel","ZWO"]
[null,null,null,null,null,null,null,null,null,null,null,null,null,null,{"$f":"VLOOKUP(N845,Tabel10[[korte omschrijving]:[MCC3_CODE]],2,0)","v":{"$error":"#N/A"}},{"$f":"VLOOKUP(N845,Tabel10[],3,0)","v":{"$error":"#N/A"}},null,null,null,null,null,null,null,"EUR",null,null,null,{"$error":"#DIV/0!"},0,0,null,"","","","","","","","","","",null,null,null,null,null,null,null,null,null,null,null,null,null,null,6,"None","Parcel","ZWO"]
[null,null,null,null,null,null,null,null,null,null,null,null,null,null,{"$f":"VLOOKUP(N846,Tabel10[[korte omschrijving]:[MCC3_CODE]],2,0)","v":{"$error":"#N/A"}},{"$f":"VLOOKUP(N846,Tabel10[],3,0)","v":{"$error":"#N/A"}},null,null,null,null,null,null,null,"EUR",null,null,null,{"$error":"#DIV/0!"},0,0,null,"","","","","","","","","","",null,null,null,null,null,null,null,null,null,null,null,null,null,null,6,"None","Parcel","ZWO"]
[null,null,null,null,null,null,null,null,null,null,null,null,null,null,{"$f":"VLOOKUP(N847,Tabel10[[korte omschrijving]:[MCC3_CODE]],2,0)","v":{"$error":"#N/A"}},{"$f":"VLOOKUP(N847,Tabel10[],3,0)","v":{"$error":"#N/A"}},null,null,null,null,null,null,null,"EUR",null,null,null,{"$error":"#DIV/0!"},0,0,null,"","","","","","","","","","",null,null,null,null,null,null,null,null,null,null,null,null,null,null,6,"None","Parcel","ZWO"]
[null,null,null,null,null,null,null,null,null,null,null,null,null,null,{"$f":"VLOOKUP(N848,Tabel10[[korte omschrijving]:[MCC3_CODE]],2,0)","v":{"$error":"#N/A"}},{"$f":"VLOOKUP(N848,Tabel10[],3,0)","v":{"$error":"#N/A"}},null,null,null,null,null,null,null,"EUR",null,null,null,{"$error":"#DIV/0!"},0,0,null,"","","","","","","","","","",null,null,null,null,null,null,null,null,null,null,null,null,null,null,6,"None","Parcel","ZWO"]
[null,null,null,null,null,null,null,null,null,null,null,null,null,null,{"$f":"VLOOKUP(N849,Tabel10[[korte omschrijving]:[MCC3_CODE]],2,0)","v":{"$error":"#N/A"}},{"$f":"VLOOKUP(N849,Tabel10[],3,0)","v":{"$error":"#N/A"}},null,null,null,null,null,null,null,"EUR",null,null,null,{"$error":"#DIV/0!"},0,0,null,"","","","","","","","","","",null,null,null,null,null,null,null,null,null,null,null,null,null,null,6,"None","Parcel","ZWO"]
[null,null,null,null,null,null,null,null,null,null,null,null,null,null,{"$f":"VLOOKUP(N850,Tabel10[[korte omschrijving]:[MCC3_CODE]],2,0)","v":{"$error":"#N/A"}},{"$f":"VLOOKUP(N850,Tabel10[],3,0)","v":{"$error":"#N/A"}},null,null,null,null,null,null,null,"EUR",null,null,null,{"$error":"#DIV/0!"},0,0,null,"","","","","","","","","","",null,null,null,null,null,null,null,null,null,null,null,null,null,null,6,"None","Parcel","ZWO"]
[null,null,null,null,null,null,null,null,null,null,null,null,null,null,{"$f":"VLOOKUP(N851,Tabel10[[korte omschrijving]:[MCC3_CODE]],2,0)","v":{"$error":"#N/A"}},{"$f":"VLOOKUP(N851,Tabel10[],3,0)","v":{"$error":"#N/A"}},null,null,null,null,null,null,null,"EUR",null,null,null,{"$error":"#DIV/0!"},0,0,null,"","","","","","","","","","",null,null,null,null,null,null,null,null,null,null,null,null,null,null,6,"None","Parcel","ZWO"]
[null,null,null,null,null,null,null,null,null,null,null,null,null,null,{"$f":"VLOOKUP(N852,Tabel10[[korte omschrijving]:[MCC3_CODE]],2,0)","v":{"$error":"#N/A"}},{"$f":"VLOOKUP(N852,Tabel10[],3,0)","v":{"$error":"#N/A"}},null,null,null,null,null,null,null,"EUR",null,null,null,{"$error":"#DIV/0!"},0,0,null,"","","","","","","","","","",null,null,null,null,null,null,null,null,null,null,null,null,null,null,6,"None","Parcel","ZWO"]
[null,null,null,null,null,null,null,null,null,null,null,null,null,null,{"$f":"VLOOKUP(N853,Tabel10[[korte omschrijving]:[MCC3_CODE]],2,0)","v":{"$error":"#N/A"}},{"$f":"VLOOKUP(N853,Tabel10[],3,0)","v":{"$error":"#N/A"}},null,null,null,null,null,null,null,"EUR",null,null,null,{"$error":"#DIV/0!"},0,0,null,"","","","","","","","","","",null,null,null,null,null,null,null,null,null,null,null,null,null,null,6,"None","Parcel","ZWO"]
[null,null,null,null,null,null,null,null,null,null,null,null,null,null,{"$f":"VLOOKUP(N854,Tabel10[[korte omschrijving]:[MCC3_CODE]],2,0)","v":{"$error":"#N/A"}},{"$f":"VLOOKUP(N854,Tabel10[],3,0)","v":{"$error":"#N/A"}},null,null,null,null,null,null,null,"EUR",null,null,null,{"$error":"#DIV/0!"},0,0,null,"","","","","","","","","","",null,null,null,null,null,null,null,null,null,null,null,null,null,null,6,"None","Parcel","ZWO"]
[null,null,null,null,null,null,null,null,null,null,null,null,null,null,{"$f":"VLOOKUP(N855,Tabel10[[korte omschrijving]:[MCC3_CODE]],2,0)","v":{"$error":"#N/A"}},{"$f":"VLOOKUP(N855,Tabel10[],3,0)","v":{"$error":"#N/A"}},null,null,null,null,null,null,null,"EUR",null,null,null,{"$error":"#DIV/0!"},0,0,null,"","","","","","","","","","",null,null,null,null,null,null,null,null,null,null,null,null,null,null,6,"None","Parcel","ZWO"]
[null,null,null,null,null,null,null,null,null,null,null,null,null,null,{"$f":"VLOOKUP(N856,Tabel10[[korte omschrijving]:[MCC3_CODE]],2,0)","v":{"$error":"#N/A"}},{"$f":"VLOOKUP(N856,Tabel10[],3,0)","v":{"$error":"#N/A"}},null,null,null,null,null,null,null,"EUR",null,null,null,{"$error":"#DIV/0!"},0,0,null,"","","","","","","","","","",null,null,null,null,null,null,null,null,null,null,null,null,null,null,6,"None","Parcel","ZWO"]
[null,null,null,null,null,null,null,null,null,null,null,null,null,null,{"$f":"VLOOKUP(N857,Tabel10[[korte omschrijving]:[MCC3_CODE]],2,0)","v":{"$error":"#N/A"}},{"$f":"VLOOKUP(N857,Tabel10[],3,0)","v":{"$error":"#N/A"}},null,null,null,null,null,null,null,"EUR",null,null,null,{"$error":"#DIV/0!"},0,0,null,"","","","","","","","","","",null,null,null,null,null,null,null,null,null,null,null,null,null,null,6,"None","Parcel","ZWO"]
[null,null,null,null,null,null,null,null,null,null,null,null,null,null,{"$f":"VLOOKUP(N858,Tabel10[[korte omschrijving]:[MCC3_CODE]],2,0)","v":{"$error":"#N/A"}},{"$f":"VLOOKUP(N858,Tabel10[],3,0)","v":{"$error":"#N/A"}},null,null,null,null,null,null,null,"EUR",null,null,null,{"$error":"#DIV/0!"},0,0,null,"","","","","","","","","","",null,null,null,null,null,null,null,null,null,null,null,null,null,null,6,"None","Parcel","ZWO"]
[null,null,null,null,null,null,null,null,null,null,null,null,null,null,{"$f":"VLOOKUP(N859,Tabel10[[korte omschrijving]:[MCC3_CODE]],2,0)","v":{"$error":"#N/A"}},{"$f":"VLOOKUP(N859,Tabel10[],3,0)","v":{"$error":"#N/A"}},null,null,null,null,null,null,null,"EUR",null,null,null,{"$error":"#DIV/0!"},0,0,null,"","","","","","","","","","",null,null,null,null,null,null,null,null,null,null,null,null,null,null,6,"None","Parcel","ZWO"]
[null,null,null,null,null,null,null,null,null,null,null,null,null,null,{"$f":"VLOOKUP(N860,Tabel10[[korte omschrijving]:[MCC3_CODE]],2,0)","v":{"$error":"#N/A"}},{"$f":"VLOOKUP(N860,Tabel10[],3,0)","v":{"$error":"#N/A"}},null,null,null,null,null,null,null,"EUR",null,null,null,{"$error":"#DIV/0!"},0,0,null,"","","","","","","","","","",null,null,null,null,null,null,null,null,null,null,null,null,null,null,6,"None","Parcel","ZWO"]
[null,null,null,null,null,null,null,null,null,null,null,null,null,null,{"$f":"VLOOKUP(N861,Tabel10[[korte omschrijving]:[MCC3_CODE]],2,0)","v":{"$error":"#N/A"}},{"$f":"VLOOKUP(N861,Tabel10[],3,0)","v":{"$error":"#N/A"}},null,null,null,null,null,null,null,"EUR",null,null,null,{"$error":"#DIV/0!"},0,0,null,"","","","","","","","","","",null,null,null,null,null,null,null,null,null,null,null,null,null,null,6,"None","Parcel","ZWO"]
[null,null,null,null,null,null,null,null,null,null,null,null,null,null,{"$f":"VLOOKUP(N862,Tabel10[[korte omschrijving]:[MCC3_CODE]],2,0)","v":{"$error":"#N/A"}},{"$f":"VLOOKUP(N862,Tabel10[],3,0)","v":{"$error":"#N/A"}},null,null,null,null,null,null,null,"EUR",null,null,null,{"$error":"#DIV/0!"},0,0,null,"","","","","","","","","","",null,null,null,null,null,null,null,null,null,null,null,null,null,null,6,"None","Parcel","ZWO"]
[null,null,null,null,null,null,null,null,null,null,null,null,null,null,{"$f":"VLOOKUP(N863,Tabel10[[korte omschrijving]:[MCC3_CODE]],2,0)","v":{"$error":"#N/A"}},{"$f":"VLOOKUP(N863,Tabel10[],3,0)","v":{"$error":"#N/A"}},null,null,null,null,null,null,null,"EUR",null,null,null,{"$error":"#DIV/0!"},0,0,null,"","","","","","","","","","",null,null,null,null,null,null,null,null,null,null,null,null,null,null,6,"None","Parcel","ZWO"]
[null,null,null,null,null,null,null,null,null,null,null,null,null,null,{"$f":"VLOOKUP(N864,Tabel10[[korte omschrijving]:[MCC3_CODE]],2,0)","v":{"$error":"#N/A"}},{"$f":"VLOOKUP(N864,Tabel10[],3,0)","v":{"$error":"#N/A"}},null,null,null,null,null,null,null,"EUR",null,null,null,{"$error":"#DIV/0!"},0,0,null,"","","","","","","","","","",null,null,null,null,null,null,null,null,null,null,null,null,null,null,6,"None","Parcel","ZWO"]
[null,null,null,null,null,null,null,null,null,null,null,null,null,null,{"$f":"VLOOKUP(N865,Tabel10[[korte omschrijving]:[MCC3_CODE]],2,0)","v":{"$error":"#N/A"}},{"$f":"VLOOKUP(N865,Tabel10[],3,0)","v":{"$error":"#N/A"}},null,null,null,null,null,null,null,"EUR",null,null,null,{"$error":"#DIV/0!"},0,0,null,"","","","","","","","","","",null,null,null,null,null,null,null,null,null,null,null,null,null,null,6,"None","Parcel","ZWO"]
[null,null,null,null,null,null,null,null,null,null,null,null,null,null,{"$f":"VLOOKUP(N866,Tabel10[[korte omschrijving]:[MCC3_CODE]],2,0)","v":{"$error":"#N/A"}},{"$f":"VLOOKUP(N866,Tabel10[],3,0)","v":{"$error":"#N/A"}},null,null,null,null,null,null,null,"EUR",null,null,null,{"$error":"#DIV/0!"},0,0,null,"","","","","","","","","","",null,null,null,null,null,null,null,null,null,null,null,null,null,null,6,"None","Parcel","ZWO"]
[null,null,null,null,null,null,null,null,null,null,null,null,null,null,{"$f":"VLOOKUP(N867,Tabel10[[korte omschrijving]:[MCC3_CODE]],2,0)","v":{"$error":"#N/A"}},{"$f":"VLOOKUP(N867,Tabel10[],3,0)","v":{"$error":"#N/A"}},null,null,null,null,null,null,null,"EUR",null,null,null,{"$error":"#DIV/0!"},0,0,null,"","","","","","","","","","",null,null,null,null,null,null,null,null,null,null,null,null,null,null,6,"None","Parcel","ZWO"]
[null,null,null,null,null,null,null,null,null,null,null,null,null,null,{"$f":"VLOOKUP(N868,Tabel10[[korte omschrijving]:[MCC3_CODE]],2,0)","v":{"$error":"#N/A"}},{"$f":"VLOOKUP(N868,Tabel10[],3,0)","v":{"$error":"#N/A"}},null,null,null,null,null,null,null,"EUR",null,null,null,{"$error":"#DIV/0!"},0,0,null,"","","","","","","","","","",null,null,null,null,null,null,null,null,null,null,null,null,null,null,6,"None","Parcel","ZWO"]
[null,null,null,null,null,null,null,null,null,null,null,null,null,null,{"$f":"VLOOKUP(N869,Tabel10[[korte omschrijving]:[MCC3_CODE]],2,0)","v":{"$error":"#N/A"}},{"$f":"VLOOKUP(N869,Tabel10[],3,0)","v":{"$error":"#N/A"}},null,null,null,null,null,null,null,"EUR",null,null,null,{"$error":"#DIV/0!"},0,0,null,"","","","","","","","","","",null,null,null,null,null,null,null,null,null,null,null,null,null,null,6,"None","Parcel","ZWO"]
[null,null,null,null,null,null,null,null,null,null,null,null,null,null,{"$f":"VLOOKUP(N870,Tabel10[[korte omschrijving]:[MCC3_CODE]],2,0)","v":{"$error":"#N/A"}},{"$f":"VLOOKUP(N870,Tabel10[],3,0)","v":{"$error":"#N/A"}},null,null,null,null,null,null,null,"EUR",null,null,null,{"$error":"#DIV/0!"},0,0,null,"","","","","","","","","","",null,null,null,null,null,null,null,null,null,null,null,null,null,null,6,"None","Parcel","ZWO"]
[null,null,null,null,null,null,null,null,null,null,null,null,null,null,{"$f":"VLOOKUP(N871,Tabel10[[korte omschrijving]:[MCC3_CODE]],2,0)","v":{"$error":"#N/A"}},{"$f":"VLOOKUP(N871,Tabel10[],3,0)","v":{"$error":"#N/A"}},null,null,null,null,null,null,null,"EUR",null,null,null,{"$error":"#DIV/0!"},0,0,null,"","","","","","","","","","",null,null,null,null,null,null,null,null,null,null,null,null,null,null,6,"None","Parcel","ZWO"]
[null,null,null,null,null,null,null,null,null,null,null,null,null,null,{"$f":"VLOOKUP(N872,Tabel10[[korte omschrijving]:[MCC3_CODE]],2,0)","v":{"$error":"#N/A"}},{"$f":"VLOOKUP(N872,Tabel10[],3,0)","v":{"$error":"#N/A"}},null,null,null,null,null,null,null,"EUR",null,null,null,{"$error":"#DIV/0!"},0,0,null,"","","","","","","","","","",null,null,null,null,null,null,null,null,null,null,null,null,null,null,6,"None","Parcel","ZWO"]
[null,null,null,null,null,null,null,null,null,null,null,null,null,null,{"$f":"VLOOKUP(N873,Tabel10[[korte omschrijving]:[MCC3_CODE]],2,0)","v":{"$error":"#N/A"}},{"$f":"VLOOKUP(N873,Tabel10[],3,0)","v":{"$error":"#N/A"}},null,null,null,null,null,null,null,"EUR",null,null,null,{"$error":"#DIV/0!"},0,0,null,"","","","","","","","","","",null,null,null,null,null,null,null,null,null,null,null,null,null,null,6,"None","Parcel","ZWO"]
[null,null,null,null,null,null,null,null,null,null,null,null,null,null,{"$f":"VLOOKUP(N874,Tabel10[[korte omschrijving]:[MCC3_CODE]],2,0)","v":{"$error":"#N/A"}},{"$f":"VLOOKUP(N874,Tabel10[],3,0)","v":{"$error":"#N/A"}},null,null,null,null,null,null,null,"EUR",null,null,null,{"$error":"#DIV/0!"},0,0,null,"","","","","","","","","","",null,null,null,null,null,null,null,null,null,null,null,null,null,null,6,"None","Parcel","ZWO"]
[null,null,null,null,null,null,null,null,null,null,null,null,null,null,{"$f":"VLOOKUP(N875,Tabel10[[korte omschrijving]:[MCC3_CODE]],2,0)","v":{"$error":"#N/A"}},{"$f":"VLOOKUP(N875,Tabel10[],3,0)","v":{"$error":"#N/A"}},null,null,null,null,null,null,null,"EUR",null,null,null,{"$error":"#DIV/0!"},0,0,null,"","","","","","","","","","",null,null,null,null,null,null,null,null,null,null,null,null,null,null,6,"None","Parcel","ZWO"]
[null,null,null,null,null,null,null,null,null,null,null,null,null,null,{"$f":"VLOOKUP(N876,Tabel10[[korte omschrijving]:[MCC3_CODE]],2,0)","v":{"$error":"#N/A"}},{"$f":"VLOOKUP(N876,Tabel10[],3,0)","v":{"$error":"#N/A"}},null,null,null,null,null,null,null,"EUR",null,null,null,{"$error":"#DIV/0!"},0,0,null,"","","","","","","","","","",null,null,null,null,null,null,null,null,null,null,null,null,null,null,6,"None","Parcel","ZWO"]
[null,null,null,null,null,null,null,null,null,null,null,null,null,null,{"$f":"VLOOKUP(N877,Tabel10[[korte omschrijving]:[MCC3_CODE]],2,0)","v":{"$error":"#N/A"}},{"$f":"VLOOKUP(N877,Tabel10[],3,0)","v":{"$error":"#N/A"}},null,null,null,null,null,null,null,"EUR",null,null,null,{"$error":"#DIV/0!"},0,0,null,"","","","","","","","","","",null,null,null,null,null,null,null,null,null,null,null,null,null,null,6,"None","Parcel","ZWO"]
[null,null,null,null,null,null,null,null,null,null,null,null,null,null,{"$f":"VLOOKUP(N878,Tabel10[[korte omschrijving]:[MCC3_CODE]],2,0)","v":{"$error":"#N/A"}},{"$f":"VLOOKUP(N878,Tabel10[],3,0)","v":{"$error":"#N/A"}},null,null,null,null,null,null,null,"EUR",null,null,null,{"$error":"#DIV/0!"},0,0,null,"","","","","","","","","","",null,null,null,null,null,null,null,null,null,null,null,null,null,null,6,"None","Parcel","ZWO"]
[null,null,null,null,null,null,null,null,null,null,null,null,null,null,{"$f":"VLOOKUP(N879,Tabel10[[korte omschrijving]:[MCC3_CODE]],2,0)","v":{"$error":"#N/A"}},{"$f":"VLOOKUP(N879,Tabel10[],3,0)","v":{"$error":"#N/A"}},null,null,null,null,null,null,null,"EUR",null,null,null,{"$error":"#DIV/0!"},0,0,null,"","","","","","","","","","",null,null,null,null,null,null,null,null,null,null,null,null,null,null,6,"None","Parcel","ZWO"]
[null,null,null,null,null,null,null,null,null,null,null,null,null,null,{"$f":"VLOOKUP(N880,Tabel10[[korte omschrijving]:[MCC3_CODE]],2,0)","v":{"$error":"#N/A"}},{"$f":"VLOOKUP(N880,Tabel10[],3,0)","v":{"$error":"#N/A"}},null,null,null,null,null,null,null,"EUR",null,null,null,{"$error":"#DIV/0!"},0,0,null,"","","","","","","","","","",null,null,null,null,null,null,null,null,null,null,null,null,null,null,6,"None","Parcel","ZWO"]
[null,null,null,null,null,null,null,null,null,null,null,null,null,null,{"$f":"VLOOKUP(N881,Tabel10[[korte omschrijving]:[MCC3_CODE]],2,0)","v":{"$error":"#N/A"}},{"$f":"VLOOKUP(N881,Tabel10[],3,0)","v":{"$error":"#N/A"}},null,null,null,null,null,null,null,"EUR",null,null,null,{"$error":"#DIV/0!"},0,0,null,"","","","","","","","","","",null,null,null,null,null,null,null,null,null,null,null,null,null,null,6,"None","Parcel","ZWO"]
[null,null,null,null,null,null,null,null,null,null,null,null,null,null,{"$f":"VLOOKUP(N882,Tabel10[[korte omschrijving]:[MCC3_CODE]],2,0)","v":{"$error":"#N/A"}},{"$f":"VLOOKUP(N882,Tabel10[],3,0)","v":{"$error":"#N/A"}},null,null,null,null,null,null,null,"EUR",null,null,null,{"$error":"#DIV/0!"},0,0,null,"","","","","","","","","","",null,null,null,null,null,null,null,null,null,null,null,null,null,null,6,"None","Parcel","ZWO"]
[null,null,null,null,null,null,null,null,null,null,null,null,null,null,{"$f":"VLOOKUP(N883,Tabel10[[korte omschrijving]:[MCC3_CODE]],2,0)","v":{"$error":"#N/A"}},{"$f":"VLOOKUP(N883,Tabel10[],3,0)","v":{"$error":"#N/A"}},null,null,null,null,null,null,null,"EUR",null,null,null,{"$error":"#DIV/0!"},0,0,null,"","","","","","","","","","",null,null,null,null,null,null,null,null,null,null,null,null,null,null,6,"None","Parcel","ZWO"]
[null,null,null,null,null,null,null,null,null,null,null,null,null,null,{"$f":"VLOOKUP(N884,Tabel10[[korte omschrijving]:[MCC3_CODE]],2,0)","v":{"$error":"#N/A"}},{"$f":"VLOOKUP(N884,Tabel10[],3,0)","v":{"$error":"#N/A"}},null,null,null,null,null,null,null,"EUR",null,null,null,{"$error":"#DIV/0!"},0,0,null,"","","","","","","","","","",null,null,null,null,null,null,null,null,null,null,null,null,null,null,6,"None","Parcel","ZWO"]
[null,null,null,null,null,null,null,null,null,null,null,null,null,null,{"$f":"VLOOKUP(N885,Tabel10[[korte omschrijving]:[MCC3_CODE]],2,0)","v":{"$error":"#N/A"}},{"$f":"VLOOKUP(N885,Tabel10[],3,0)","v":{"$error":"#N/A"}},null,null,null,null,null,null,null,"EUR",null,null,null,{"$error":"#DIV/0!"},0,0,null,"","","","","","","","","","",null,null,null,null,null,null,null,null,null,null,null,null,null,null,6,"None","Parcel","ZWO"]
[null,null,null,null,null,null,null,null,null,null,null,null,null,null,{"$f":"VLOOKUP(N886,Tabel10[[korte omschrijving]:[MCC3_CODE]],2,0)","v":{"$error":"#N/A"}},{"$f":"VLOOKUP(N886,Tabel10[],3,0)","v":{"$error":"#N/A"}},null,null,null,null,null,null,null,"EUR",null,null,null,{"$error":"#DIV/0!"},0,0,null,"","","","","","","","","","",null,null,null,null,null,null,null,null,null,null,null,null,null,null,6,"None","Parcel","ZWO"]
[null,null,null,null,null,null,null,null,null,null,null,null,null,null,{"$f":"VLOOKUP(N887,Tabel10[[korte omschrijving]:[MCC3_CODE]],2,0)","v":{"$error":"#N/A"}},{"$f":"VLOOKUP(N887,Tabel10[],3,0)","v":{"$error":"#N/A"}},null,null,null,null,null,null,null,"EUR",null,null,null,{"$error":"#DIV/0!"},0,0,null,"","","","","","","","","","",null,null,null,null,null,null,null,null,null,null,null,null,null,null,6,"None","Parcel","ZWO"]
[null,null,null,null,null,null,null,null,null,null,null,null,null,null,{"$f":"VLOOKUP(N888,Tabel10[[korte omschrijving]:[MCC3_CODE]],2,0)","v":{"$error":"#N/A"}},{"$f":"VLOOKUP(N888,Tabel10[],3,0)","v":{"$error":"#N/A"}},null,null,null,null,null,null,null,"EUR",null,null,null,{"$error":"#DIV/0!"},0,0,null,"","","","","","","","","","",null,null,null,null,null,null,null,null,null,null,null,null,null,null,6,"None","Parcel","ZWO"]
[null,null,null,null,null,null,null,null,null,null,null,null,null,null,{"$f":"VLOOKUP(N889,Tabel10[[korte omschrijving]:[MCC3_CODE]],2,0)","v":{"$error":"#N/A"}},{"$f":"VLOOKUP(N889,Tabel10[],3,0)","v":{"$error":"#N/A"}},null,null,null,null,null,null,null,"EUR",null,null,null,{"$error":"#DIV/0!"},0,0,null,"","","","","","","","","","",null,null,null,null,null,null,null,null,null,null,null,null,null,null,6,"None","Parcel","ZWO"]
[null,null,null,null,null,null,null,null,null,null,null,null,null,null,{"$f":"VLOOKUP(N890,Tabel10[[korte omschrijving]:[MCC3_CODE]],2,0)","v":{"$error":"#N/A"}},{"$f":"VLOOKUP(N890,Tabel10[],3,0)","v":{"$error":"#N/A"}},null,null,null,null,null,null,null,"EUR",null,null,null,{"$error":"#DIV/0!"},0,0,null,"","","","","","","","","","",null,null,null,null,null,null,null,null,null,null,null,null,null,null,6,"None","Parcel","ZWO"]
[null,null,null,null,null,null,null,null,null,null,null,null,null,null,{"$f":"VLOOKUP(N891,Tabel10[[korte omschrijving]:[MCC3_CODE]],2,0)","v":{"$error":"#N/A"}},{"$f":"VLOOKUP(N891,Tabel10[],3,0)","v":{"$error":"#N/A"}},null,null,null,null,null,null,null,"EUR",null,null,null,{"$error":"#DIV/0!"},0,0,null,"","","","","","","","","","",null,null,null,null,null,null,null,null,null,null,null,null,null,null,6,"None","Parcel","ZWO"]
[null,null,null,null,null,null,null,null,null,null,null,null,null,null,{"$f":"VLOOKUP(N892,Tabel10[[korte omschrijving]:[MCC3_CODE]],2,0)","v":{"$error":"#N/A"}},{"$f":"VLOOKUP(N892,Tabel10[],3,0)","v":{"$error":"#N/A"}},null,null,null,null,null,null,null,"EUR",null,null,null,{"$error":"#DIV/0!"},0,0,null,"","","","","","","","","","",null,null,null,null,null,null,null,null,null,null,null,null,null,null,6,"None","Parcel","ZWO"]
[null,null,null,null,null,null,null,null,null,null,null,null,null,null,{"$f":"VLOOKUP(N893,Tabel10[[korte omschrijving]:[MCC3_CODE]],2,0)","v":{"$error":"#N/A"}},{"$f":"VLOOKUP(N893,Tabel10[],3,0)","v":{"$error":"#N/A"}},null,null,null,null,null,null,null,"EUR",null,null,null,{"$error":"#DIV/0!"},0,0,null,"","","","","","","","","","",null,null,null,null,null,null,null,null,null,null,null,null,null,null,6,"None","Parcel","ZWO"]
[null,null,null,null,null,null,null,null,null,null,null,null,null,null,{"$f":"VLOOKUP(N894,Tabel10[[korte omschrijving]:[MCC3_CODE]],2,0)","v":{"$error":"#N/A"}},{"$f":"VLOOKUP(N894,Tabel10[],3,0)","v":{"$error":"#N/A"}},null,null,null,null,null,null,null,"EUR",null,null,null,{"$error":"#DIV/0!"},0,0,null,"","","","","","","","","","",null,null,null,null,null,null,null,null,null,null,null,null,null,null,6,"None","Parcel","ZWO"]
[null,null,null,null,null,null,null,null,null,null,null,null,null,null,{"$f":"VLOOKUP(N895,Tabel10[[korte omschrijving]:[MCC3_CODE]],2,0)","v":{"$error":"#N/A"}},{"$f":"VLOOKUP(N895,Tabel10[],3,0)","v":{"$error":"#N/A"}},null,null,null,null,null,null,null,"EUR",null,null,null,{"$error":"#DIV/0!"},0,0,null,"","","","","","","","","","",null,null,null,null,null,null,null,null,null,null,null,null,null,null,6,"None","Parcel","ZWO"]
[null,null,null,null,null,null,null,null,null,null,null,null,null,null,{"$f":"VLOOKUP(N896,Tabel10[[korte omschrijving]:[MCC3_CODE]],2,0)","v":{"$error":"#N/A"}},{"$f":"VLOOKUP(N896,Tabel10[],3,0)","v":{"$error":"#N/A"}},null,null,null,null,null,null,null,"EUR",null,null,null,{"$error":"#DIV/0!"},0,0,null,"","","","","","","","","","",null,null,null,null,null,null,null,null,null,null,null,null,null,null,6,"None","Parcel","ZWO"]
[null,null,null,null,null,null,null,null,null,null,null,null,null,null,{"$f":"VLOOKUP(N897,Tabel10[[korte omschrijving]:[MCC3_CODE]],2,0)","v":{"$error":"#N/A"}},{"$f":"VLOOKUP(N897,Tabel10[],3,0)","v":{"$error":"#N/A"}},null,null,null,null,null,null,null,"EUR",null,null,null,{"$error":"#DIV/0!"},0,0,null,"","","","","","","","","","",null,null,null,null,null,null,null,null,null,null,null,null,null,null,6,"None","Parcel","ZWO"]
[null,null,null,null,null,null,null,null,null,null,null,null,null,null,{"$f":"VLOOKUP(N898,Tabel10[[korte omschrijving]:[MCC3_CODE]],2,0)","v":{"$error":"#N/A"}},{"$f":"VLOOKUP(N898,Tabel10[],3,0)","v":{"$error":"#N/A"}},null,null,null,null,null,null,null,"EUR",null,null,null,{"$error":"#DIV/0!"},0,0,null,"","","","","","","","","","",null,null,null,null,null,null,null,null,null,null,null,null,null,null,6,"None","Parcel","ZWO"]
[null,null,null,null,null,null,null,null,null,null,null,null,null,null,{"$f":"VLOOKUP(N899,Tabel10[[korte omschrijving]:[MCC3_CODE]],2,0)","v":{"$error":"#N/A"}},{"$f":"VLOOKUP(N899,Tabel10[],3,0)","v":{"$error":"#N/A"}},null,null,null,null,null,null,null,"EUR",null,null,null,{"$error":"#DIV/0!"},0,0,null,"","","","","","","","","","",null,null,null,null,null,null,null,null,null,null,null,null,null,null,6,"None","Parcel","ZWO"]
[null,null,null,null,null,null,null,null,null,null,null,null,null,null,{"$f":"VLOOKUP(N900,Tabel10[[korte omschrijving]:[MCC3_CODE]],2,0)","v":{"$error":"#N/A"}},{"$f":"VLOOKUP(N900,Tabel10[],3,0)","v":{"$error":"#N/A"}},null,null,null,null,null,null,null,"EUR",null,null,null,{"$error":"#DIV/0!"},0,0,null,"","","","","","","","","","",null,null,null,null,null,null,null,null,null,null,null,null,null,null,6,"None","Parcel","ZWO"]
[null,null,null,null,null,null,null,null,null,null,null,null,null,null,{"$f":"VLOOKUP(N901,Tabel10[[korte omschrijving]:[MCC3_CODE]],2,0)","v":{"$error":"#N/A"}},{"$f":"VLOOKUP(N901,Tabel10[],3,0)","v":{"$error":"#N/A"}},null,null,null,null,null,null,null,"EUR",null,null,null,{"$error":"#DIV/0!"},0,0,null,"","","","","","","","","","",null,null,null,null,null,null,null,null,null,null,null,null,null,null,6,"None","Parcel","ZWO"]
[null,null,null,null,null,null,null,null,null,null,null,null,null,null,{"$f":"VLOOKUP(N902,Tabel10[[korte omschrijving]:[MCC3_CODE]],2,0)","v":{"$error":"#N/A"}},{"$f":"VLOOKUP(N902,Tabel10[],3,0)","v":{"$error":"#N/A"}},null,null,null,null,null,null,null,"EUR",null,null,null,{"$error":"#DIV/0!"},0,0,null,"","","","","","","","","","",null,null,null,null,null,null,null,null,null,null,null,null,null,null,6,"None","Parcel","ZWO"]
[null,null,null,null,null,null,null,null,null,null,null,null,null,null,{"$f":"VLOOKUP(N903,Tabel10[[korte omschrijving]:[MCC3_CODE]],2,0)","v":{"$error":"#N/A"}},{"$f":"VLOOKUP(N903,Tabel10[],3,0)","v":{"$error":"#N/A"}},null,null,null,null,null,null,null,"EUR",null,null,null,{"$f":"AA903/Y903","v":{"$error":"#DIV/0!"}},{"$f":"T903*Y903","v":0},{"$f":"T903*AA903","v":0},null,{"$f":"IF(AE903 <> \"\",\n    IF(ISNUMBER(VALUE(LEFT(AE903, FIND(\"%\", AE903)-1))),\n        VALUE(LEFT(AE903, FIND(\"%\", AE903)-1)),\n        \"Invalid format\"),\n    \"\")","v":""},{"$f":"IF(AE903 <> \"\",\n    IF(ISNUMBER(VALUE(LEFT(AE903, FIND(\"%\", AE903)-1))) * ISNUMBER(FIND(\"%\", AE903 & \"wol\")) > 0,\n        TRIM(MID(AE903, FIND(\"%\", AE903)+1, FIND(\"/\", AE903 & \"/\")-FIND(\"%\", AE903)-1)),\n        \"Invalid format\"),\n    \"\")","v":""},{"$f":"IF(AE903 <> \"\",\n    IF(ISNUMBER(VALUE(MID(AE903, FIND(\"/\", AE903) + 1, FIND(\"%\", AE903, FIND(\"/\", AE903)) - FIND(\"/\", AE903) - 1))),\n        VALUE(MID(AE903, FIND(\"/\", AE903) + 1, FIND(\"%\", AE903, FIND(\"/\", AE903)) - FIND(\"/\", AE903) - 1)),\n        \"\"),\n    \"\")","v":""},{"$f":"IF(AE903 <> \"\",\n    IFERROR(TRIM(MID(AE903, FIND(\"%\", AE903, FIND(\"/\", AE903)+1)+2,\n        IFERROR(FIND(\"/\", AE903 & \"/\", FIND(\"/\", AE903)+1)-FIND(\"%\", AE903, FIND(\"/\", AE903)+1)-2, LEN(AE903)-FIND(\"%\", AE903, FIND(\"/\", AE903)+1)-1))),\n        \"\"),\n    \"\")","v":""},{"$f":"IF(AE903 <> \"\",\n    IF(ISNUMBER(VALUE(MID(AE903, FIND(\"/\", AE903, FIND(\"/\", AE903)+1) + 1, FIND(\"%\", AE903, FIND(\"/\", AE903, FIND(\"/\", AE903)+1)) - FIND(\"/\", AE903, FIND(\"/\", AE903)+1) - 1))),\n        VALUE(MID(AE903, FIND(\"/\", AE903, FIND(\"/\", AE903)+1) + 1, FIND(\"%\", AE903, FIND(\"/\", AE903, FIND(\"/\", AE903)+1)) - FIND(\"/\", AE903, FIND(\"/\", AE903)+1) - 1)),\n        \"\"),\n    \"\")","v":""},{"$f":"IF(AE903 <> \"\",\n    IFERROR(\n        TRIM(MID(AE903,\n            FIND(\"%\", AE903, FIND(\"%\", AE903, FIND(\"%\", AE903)+1)+1)+1,\n            FIND(\"/\", AE903 & \"/\", FIND(\"%\", AE903, FIND(\"%\", AE903, FIND(\"%\", AE903)+1)+1))-FIND(\"%\", AE903, FIND(\"%\", AE903, FIND(\"%\", AE903)+1)+1)-1)\n        ),\n        \"\"\n    ),\n    \"\"\n)","v":""},{"$f":"IF(AE903 <> \"\",\n    IF(ISNUMBER(VALUE(MID(AE903, FIND(\"/\", AE903, FIND(\"/\", AE903, FIND(\"/\", AE903)+1)+1) + 1, FIND(\"%\", AE903, FIND(\"/\", AE903, FIND(\"/\", AE903, FIND(\"/\", AE903)+1)+1)) - FIND(\"/\", AE903, FIND(\"/\", AE903, FIND(\"/\", AE903)+1)+1) - 1))),\n        VALUE(MID(AE903, FIND(\"/\", AE903, FIND(\"/\", AE903, FIND(\"/\", AE903)+1)+1) + 1, FIND(\"%\", AE903, FIND(\"/\", AE903, FIND(\"/\", AE903, FIND(\"/\", AE903)+1)+1)) - FIND(\"/\", AE903, FIND(\"/\", AE903, FIND(\"/\", AE903)+1)+1) - 1)),\n        \"\"),\n    \"\")","v":""},{"$f":"IF(AE903 <> \"\",\n    IFERROR(TRIM(MID(AE903, FIND(\"%\", AE903, FIND(\"/\", AE903, FIND(\"/\", AE903, FIND(\"/\", AE903)+1)+1)+1)+2,\n        IFERROR(FIND(\"/\", AE903, FIND(\"/\", AE903, FIND(\"/\", AE903, FIND(\"/\", AE903)+1)+1)+1)-FIND(\"%\", AE903, FIND(\"/\", AE903, FIND(\"/\", AE903, FIND(\"/\", AE903)+1)+1)+1)-2, LEN(AE903)-FIND(\"%\", AE903, FIND(\"/\", AE903, FIND(\"/\", AE903, FIND(\"/\", AE903)+1)+1)+1)-1))),\n        \"\"),\n    \"\")","v":""},{"$f":"IF(AE903 <> \"\",\n    IF(ISNUMBER(VALUE(MID(AE903, FIND(\"/\", AE903, FIND(\"/\", AE903, FIND(\"/\", AE903, FIND(\"/\", AE903)+1)+1)+1) + 1, FIND(\"%\", AE903, FIND(\"/\", AE903, FIND(\"/\", AE903, FIND(\"/\", AE903, FIND(\"/\", AE903)+1)+1)+1)) - FIND(\"/\", AE903, FIND(\"/\", AE903, FIND(\"/\", AE903, FIND(\"/\", AE903)+1)+1)+1) - 1))),\n        VALUE(MID(AE903, FIND(\"/\", AE903, FIND(\"/\", AE903, FIND(\"/\", AE903, FIND(\"/\", AE903)+1)+1)+1) + 1, FIND(\"%\", AE903, FIND(\"/\", AE903, FIND(\"/\", AE903, FIND(\"/\", AE903, FIND(\"/\", AE903)+1)+1)+1)) - FIND(\"/\", AE903, FIND(\"/\", AE903, FIND(\"/\", AE903, FIND(\"/\", AE903)+1)+1)+1) - 1)),\n        \"\"),\n    \"\")","v":""},{"$f":"IF(AE903 = \"\", \"\",\n    IFERROR(TRIM(\n        MID(\n            AE903,\n            FIND(\"%\", AE903, FIND(\"/\", AE903, FIND(\"/\", AE903, FIND(\"/\", AE903, FIND(\"/\", AE903)+1)+1)+1)+1) + 1,\n            FIND(\"/\", AE903 & \"/\", FIND(\"%\", AE903, FIND(\"/\", AE903, FIND(\"/\", AE903, FIND(\"/\", AE903, FIND(\"/\", AE903)+1)+1)+1)+1)) -\n            FIND(\"%\", AE903, FIND(\"/\", AE903, FIND(\"/\", AE903, FIND(\"/\", AE903, FIND(\"/\", AE903)+1)+1)+1)+1) - 1\n        )\n    ),\n    \"\")\n)","v":""},null,null,null,null,null,null,null,null,null,null,null,null,null,null,6,"None","Parcel","ZWO"]
[null,null,null,null,null,null,null,null,null,null,null,null,null,null,{"$f":"VLOOKUP(N904,Tabel10[[korte omschrijving]:[MCC3_CODE]],2,0)","v":{"$error":"#N/A"}},{"$f":"VLOOKUP(N904,Tabel10[],3,0)","v":{"$error":"#N/A"}},null,null,null,null,null,null,null,"EUR",null,null,null,{"$error":"#DIV/0!"},0,0,null,"","","","","","","","","","",null,null,null,null,null,null,null,null,null,null,null,null,null,null,6,"None","Parcel","ZWO"]
[null,null,null,null,null,null,null,null,null,null,null,null,null,null,{"$f":"VLOOKUP(N905,Tabel10[[korte omschrijving]:[MCC3_CODE]],2,0)","v":{"$error":"#N/A"}},{"$f":"VLOOKUP(N905,Tabel10[],3,0)","v":{"$error":"#N/A"}},null,null,null,null,null,null,null,"EUR",null,null,null,{"$error":"#DIV/0!"},0,0,null,"","","","","","","","","","",null,null,null,null,null,null,null,null,null,null,null,null,null,null,6,"None","Parcel","ZWO"]
[null,null,null,null,null,null,null,null,null,null,null,null,null,null,{"$f":"VLOOKUP(N906,Tabel10[[korte omschrijving]:[MCC3_CODE]],2,0)","v":{"$error":"#N/A"}},{"$f":"VLOOKUP(N906,Tabel10[],3,0)","v":{"$error":"#N/A"}},null,null,null,null,null,null,null,"EUR",null,null,null,{"$error":"#DIV/0!"},0,0,null,"","","","","","","","","","",null,null,null,null,null,null,null,null,null,null,null,null,null,null,6,"None","Parcel","ZWO"]
[null,null,null,null,null,null,null,null,null,null,null,null,null,null,{"$f":"VLOOKUP(N907,Tabel10[[korte omschrijving]:[MCC3_CODE]],2,0)","v":{"$error":"#N/A"}},{"$f":"VLOOKUP(N907,Tabel10[],3,0)","v":{"$error":"#N/A"}},null,null,null,null,null,null,null,"EUR",null,null,null,{"$error":"#DIV/0!"},0,0,null,"","","","","","","","","","",null,null,null,null,null,null,null,null,null,null,null,null,null,null,6,"None","Parcel","ZWO"]
[null,null,null,null,null,null,null,null,null,null,null,null,null,null,{"$f":"VLOOKUP(N908,Tabel10[[korte omschrijving]:[MCC3_CODE]],2,0)","v":{"$error":"#N/A"}},{"$f":"VLOOKUP(N908,Tabel10[],3,0)","v":{"$error":"#N/A"}},null,null,null,null,null,null,null,"EUR",null,null,null,{"$error":"#DIV/0!"},0,0,null,"","","","","","","","","","",null,null,null,null,null,null,null,null,null,null,null,null,null,null,6,"None","Parcel","ZWO"]
[null,null,null,null,null,null,null,null,null,null,null,null,null,null,{"$f":"VLOOKUP(N909,Tabel10[[korte omschrijving]:[MCC3_CODE]],2,0)","v":{"$error":"#N/A"}},{"$f":"VLOOKUP(N909,Tabel10[],3,0)","v":{"$error":"#N/A"}},null,null,null,null,null,null,null,"EUR",null,null,null,{"$error":"#DIV/0!"},0,0,null,"","","","","","","","","","",null,null,null,null,null,null,null,null,null,null,null,null,null,null,6,"None","Parcel","ZWO"]
[null,null,null,null,null,null,null,null,null,null,null,null,null,null,{"$f":"VLOOKUP(N910,Tabel10[[korte omschrijving]:[MCC3_CODE]],2,0)","v":{"$error":"#N/A"}},{"$f":"VLOOKUP(N910,Tabel10[],3,0)","v":{"$error":"#N/A"}},null,null,null,null,null,null,null,"EUR",null,null,null,{"$error":"#DIV/0!"},0,0,null,"","","","","","","","","","",null,null,null,null,null,null,null,null,null,null,null,null,null,null,6,"None","Parcel","ZWO"]
[null,null,null,null,null,null,null,null,null,null,null,null,null,null,{"$f":"VLOOKUP(N911,Tabel10[[korte omschrijving]:[MCC3_CODE]],2,0)","v":{"$error":"#N/A"}},{"$f":"VLOOKUP(N911,Tabel10[],3,0)","v":{"$error":"#N/A"}},null,null,null,null,null,null,null,"EUR",null,null,null,{"$error":"#DIV/0!"},0,0,null,"","","","","","","","","","",null,null,null,null,null,null,null,null,null,null,null,null,null,null,6,"None","Parcel","ZWO"]
[null,null,null,null,null,null,null,null,null,null,null,null,null,null,{"$f":"VLOOKUP(N912,Tabel10[[korte omschrijving]:[MCC3_CODE]],2,0)","v":{"$error":"#N/A"}},{"$f":"VLOOKUP(N912,Tabel10[],3,0)","v":{"$error":"#N/A"}},null,null,null,null,null,null,null,"EUR",null,null,null,{"$error":"#DIV/0!"},0,0,null,"","","","","","","","","","",null,null,null,null,null,null,null,null,null,null,null,null,null,null,6,"None","Parcel","ZWO"]
[null,null,null,null,null,null,null,null,null,null,null,null,null,null,{"$f":"VLOOKUP(N913,Tabel10[[korte omschrijving]:[MCC3_CODE]],2,0)","v":{"$error":"#N/A"}},{"$f":"VLOOKUP(N913,Tabel10[],3,0)","v":{"$error":"#N/A"}},null,null,null,null,null,null,null,"EUR",null,null,null,{"$error":"#DIV/0!"},0,0,null,"","","","","","","","","","",null,null,null,null,null,null,null,null,null,null,null,null,null,null,6,"None","Parcel","ZWO"]
[null,null,null,null,null,null,null,null,null,null,null,null,null,null,{"$f":"VLOOKUP(N914,Tabel10[[korte omschrijving]:[MCC3_CODE]],2,0)","v":{"$error":"#N/A"}},{"$f":"VLOOKUP(N914,Tabel10[],3,0)","v":{"$error":"#N/A"}},null,null,null,null,null,null,null,"EUR",null,null,null,{"$error":"#DIV/0!"},0,0,null,"","","","","","","","","","",null,null,null,null,null,null,null,null,null,null,null,null,null,null,6,"None","Parcel","ZWO"]
[null,null,null,null,null,null,null,null,null,null,null,null,null,null,{"$f":"VLOOKUP(N915,Tabel10[[korte omschrijving]:[MCC3_CODE]],2,0)","v":{"$error":"#N/A"}},{"$f":"VLOOKUP(N915,Tabel10[],3,0)","v":{"$error":"#N/A"}},null,null,null,null,null,null,null,"EUR",null,null,null,{"$error":"#DIV/0!"},0,0,null,"","","","","","","","","","",null,null,null,null,null,null,null,null,null,null,null,null,null,null,6,"None","Parcel","ZWO"]
[null,null,null,null,null,null,null,null,null,null,null,null,null,null,{"$f":"VLOOKUP(N916,Tabel10[[korte omschrijving]:[MCC3_CODE]],2,0)","v":{"$error":"#N/A"}},{"$f":"VLOOKUP(N916,Tabel10[],3,0)","v":{"$error":"#N/A"}},null,null,null,null,null,null,null,"EUR",null,null,null,{"$error":"#DIV/0!"},0,0,null,"","","","","","","","","","",null,null,null,null,null,null,null,null,null,null,null,null,null,null,6,"None","Parcel","ZWO"]
[null,null,null,null,null,null,null,null,null,null,null,null,null,null,{"$f":"VLOOKUP(N917,Tabel10[[korte omschrijving]:[MCC3_CODE]],2,0)","v":{"$error":"#N/A"}},{"$f":"VLOOKUP(N917,Tabel10[],3,0)","v":{"$error":"#N/A"}},null,null,null,null,null,null,null,"EUR",null,null,null,{"$error":"#DIV/0!"},0,0,null,"","","","","","","","","","",null,null,null,null,null,null,null,null,null,null,null,null,null,null,6,"None","Parcel","ZWO"]
[null,null,null,null,null,null,null,null,null,null,null,null,null,null,{"$f":"VLOOKUP(N918,Tabel10[[korte omschrijving]:[MCC3_CODE]],2,0)","v":{"$error":"#N/A"}},{"$f":"VLOOKUP(N918,Tabel10[],3,0)","v":{"$error":"#N/A"}},null,null,null,null,null,null,null,"EUR",null,null,null,{"$error":"#DIV/0!"},0,0,null,"","","","","","","","","","",null,null,null,null,null,null,null,null,null,null,null,null,null,null,6,"None","Parcel","ZWO"]
[null,null,null,null,null,null,null,null,null,null,null,null,null,null,{"$f":"VLOOKUP(N919,Tabel10[[korte omschrijving]:[MCC3_CODE]],2,0)","v":{"$error":"#N/A"}},{"$f":"VLOOKUP(N919,Tabel10[],3,0)","v":{"$error":"#N/A"}},null,null,null,null,null,null,null,"EUR",null,null,null,{"$error":"#DIV/0!"},0,0,null,"","","","","","","","","","",null,null,null,null,null,null,null,null,null,null,null,null,null,null,6,"None","Parcel","ZWO"]
[null,null,null,null,null,null,null,null,null,null,null,null,null,null,{"$f":"VLOOKUP(N920,Tabel10[[korte omschrijving]:[MCC3_CODE]],2,0)","v":{"$error":"#N/A"}},{"$f":"VLOOKUP(N920,Tabel10[],3,0)","v":{"$error":"#N/A"}},null,null,null,null,null,null,null,"EUR",null,null,null,{"$error":"#DIV/0!"},0,0,null,"","","","","","","","","","",null,null,null,null,null,null,null,null,null,null,null,null,null,null,6,"None","Parcel","ZWO"]
[null,null,null,null,null,null,null,null,null,null,null,null,null,null,{"$f":"VLOOKUP(N921,Tabel10[[korte omschrijving]:[MCC3_CODE]],2,0)","v":{"$error":"#N/A"}},{"$f":"VLOOKUP(N921,Tabel10[],3,0)","v":{"$error":"#N/A"}},null,null,null,null,null,null,null,"EUR",null,null,null,{"$error":"#DIV/0!"},0,0,null,"","","","","","","","","","",null,null,null,null,null,null,null,null,null,null,null,null,null,null,6,"None","Parcel","ZWO"]
[null,null,null,null,null,null,null,null,null,null,null,null,null,null,{"$f":"VLOOKUP(N922,Tabel10[[korte omschrijving]:[MCC3_CODE]],2,0)","v":{"$error":"#N/A"}},{"$f":"VLOOKUP(N922,Tabel10[],3,0)","v":{"$error":"#N/A"}},null,null,null,null,null,null,null,"EUR",null,null,null,{"$error":"#DIV/0!"},0,0,null,"","","","","","","","","","",null,null,null,null,null,null,null,null,null,null,null,null,null,null,6,"None","Parcel","ZWO"]
[null,null,null,null,null,null,null,null,null,null,null,null,null,null,{"$f":"VLOOKUP(N923,Tabel10[[korte omschrijving]:[MCC3_CODE]],2,0)","v":{"$error":"#N/A"}},{"$f":"VLOOKUP(N923,Tabel10[],3,0)","v":{"$error":"#N/A"}},null,null,null,null,null,null,null,"EUR",null,null,null,{"$error":"#DIV/0!"},0,0,null,"","","","","","","","","","",null,null,null,null,null,null,null,null,null,null,null,null,null,null,6,"None","Parcel","ZWO"]
[null,null,null,null,null,null,null,null,null,null,null,null,null,null,{"$f":"VLOOKUP(N924,Tabel10[[korte omschrijving]:[MCC3_CODE]],2,0)","v":{"$error":"#N/A"}},{"$f":"VLOOKUP(N924,Tabel10[],3,0)","v":{"$error":"#N/A"}},null,null,null,null,null,null,null,"EUR",null,null,null,{"$error":"#DIV/0!"},0,0,null,"","","","","","","","","","",null,null,null,null,null,null,null,null,null,null,null,null,null,null,6,"None","Parcel","ZWO"]
[null,null,null,null,null,null,null,null,null,null,null,null,null,null,{"$f":"VLOOKUP(N925,Tabel10[[korte omschrijving]:[MCC3_CODE]],2,0)","v":{"$error":"#N/A"}},{"$f":"VLOOKUP(N925,Tabel10[],3,0)","v":{"$error":"#N/A"}},null,null,null,null,null,null,null,"EUR",null,null,null,{"$error":"#DIV/0!"},0,0,null,"","","","","","","","","","",null,null,null,null,null,null,null,null,null,null,null,null,null,null,6,"None","Parcel","ZWO"]
[null,null,null,null,null,null,null,null,null,null,null,null,null,null,{"$f":"VLOOKUP(N926,Tabel10[[korte omschrijving]:[MCC3_CODE]],2,0)","v":{"$error":"#N/A"}},{"$f":"VLOOKUP(N926,Tabel10[],3,0)","v":{"$error":"#N/A"}},null,null,null,null,null,null,null,"EUR",null,null,null,{"$error":"#DIV/0!"},0,0,null,"","","","","","","","","","",null,null,null,null,null,null,null,null,null,null,null,null,null,null,6,"None","Parcel","ZWO"]
[null,null,null,null,null,null,null,null,null,null,null,null,null,null,{"$f":"VLOOKUP(N927,Tabel10[[korte omschrijving]:[MCC3_CODE]],2,0)","v":{"$error":"#N/A"}},{"$f":"VLOOKUP(N927,Tabel10[],3,0)","v":{"$error":"#N/A"}},null,null,null,null,null,null,null,"EUR",null,null,null,{"$error":"#DIV/0!"},0,0,null,"","","","","","","","","","",null,null,null,null,null,null,null,null,null,null,null,null,null,null,6,"None","Parcel","ZWO"]
[null,null,null,null,null,null,null,null,null,null,null,null,null,null,{"$f":"VLOOKUP(N928,Tabel10[[korte omschrijving]:[MCC3_CODE]],2,0)","v":{"$error":"#N/A"}},{"$f":"VLOOKUP(N928,Tabel10[],3,0)","v":{"$error":"#N/A"}},null,null,null,null,null,null,null,"EUR",null,null,null,{"$error":"#DIV/0!"},0,0,null,"","","","","","","","","","",null,null,null,null,null,null,null,null,null,null,null,null,null,null,6,"None","Parcel","ZWO"]
[null,null,null,null,null,null,null,null,null,null,null,null,null,null,{"$f":"VLOOKUP(N929,Tabel10[[korte omschrijving]:[MCC3_CODE]],2,0)","v":{"$error":"#N/A"}},{"$f":"VLOOKUP(N929,Tabel10[],3,0)","v":{"$error":"#N/A"}},null,null,null,null,null,null,null,"EUR",null,null,null,{"$error":"#DIV/0!"},0,0,null,"","","","","","","","","","",null,null,null,null,null,null,null,null,null,null,null,null,null,null,6,"None","Parcel","ZWO"]
[null,null,null,null,null,null,null,null,null,null,null,null,null,null,{"$f":"VLOOKUP(N930,Tabel10[[korte omschrijving]:[MCC3_CODE]],2,0)","v":{"$error":"#N/A"}},{"$f":"VLOOKUP(N930,Tabel10[],3,0)","v":{"$error":"#N/A"}},null,null,null,null,null,null,null,"EUR",null,null,null,{"$error":"#DIV/0!"},0,0,null,"","","","","","","","","","",null,null,null,null,null,null,null,null,null,null,null,null,null,null,6,"None","Parcel","ZWO"]
[null,null,null,null,null,null,null,null,null,null,null,null,null,null,{"$f":"VLOOKUP(N931,Tabel10[[korte omschrijving]:[MCC3_CODE]],2,0)","v":{"$error":"#N/A"}},{"$f":"VLOOKUP(N931,Tabel10[],3,0)","v":{"$error":"#N/A"}},null,null,null,null,null,null,null,"EUR",null,null,null,{"$error":"#DIV/0!"},0,0,null,"","","","","","","","","","",null,null,null,null,null,null,null,null,null,null,null,null,null,null,6,"None","Parcel","ZWO"]
[null,null,null,null,null,null,null,null,null,null,null,null,null,null,{"$f":"VLOOKUP(N932,Tabel10[[korte omschrijving]:[MCC3_CODE]],2,0)","v":{"$error":"#N/A"}},{"$f":"VLOOKUP(N932,Tabel10[],3,0)","v":{"$error":"#N/A"}},null,null,null,null,null,null,null,"EUR",null,null,null,{"$error":"#DIV/0!"},0,0,null,"","","","","","","","","","",null,null,null,null,null,null,null,null,null,null,null,null,null,null,6,"None","Parcel","ZWO"]
[null,null,null,null,null,null,null,null,null,null,null,null,null,null,{"$f":"VLOOKUP(N933,Tabel10[[korte omschrijving]:[MCC3_CODE]],2,0)","v":{"$error":"#N/A"}},{"$f":"VLOOKUP(N933,Tabel10[],3,0)","v":{"$error":"#N/A"}},null,null,null,null,null,null,null,"EUR",null,null,null,{"$error":"#DIV/0!"},0,0,null,"","","","","","","","","","",null,null,null,null,null,null,null,null,null,null,null,null,null,null,6,"None","Parcel","ZWO"]
[null,null,null,null,null,null,null,null,null,null,null,null,null,null,{"$f":"VLOOKUP(N934,Tabel10[[korte omschrijving]:[MCC3_CODE]],2,0)","v":{"$error":"#N/A"}},{"$f":"VLOOKUP(N934,Tabel10[],3,0)","v":{"$error":"#N/A"}},null,null,null,null,null,null,null,"EUR",null,null,null,{"$error":"#DIV/0!"},0,0,null,"","","","","","","","","","",null,null,null,null,null,null,null,null,null,null,null,null,null,null,6,"None","Parcel","ZWO"]
[null,null,null,null,null,null,null,null,null,null,null,null,null,null,{"$f":"VLOOKUP(N935,Tabel10[[korte omschrijving]:[MCC3_CODE]],2,0)","v":{"$error":"#N/A"}},{"$f":"VLOOKUP(N935,Tabel10[],3,0)","v":{"$error":"#N/A"}},null,null,null,null,null,null,null,"EUR",null,null,null,{"$error":"#DIV/0!"},0,0,null,"","","","","","","","","","",null,null,null,null,null,null,null,null,null,null,null,null,null,null,6,"None","Parcel","ZWO"]
[null,null,null,null,null,null,null,null,null,null,null,null,null,null,{"$f":"VLOOKUP(N936,Tabel10[[korte omschrijving]:[MCC3_CODE]],2,0)","v":{"$error":"#N/A"}},{"$f":"VLOOKUP(N936,Tabel10[],3,0)","v":{"$error":"#N/A"}},null,null,null,null,null,null,null,"EUR",null,null,null,{"$error":"#DIV/0!"},0,0,null,"","","","","","","","","","",null,null,null,null,null,null,null,null,null,null,null,null,null,null,6,"None","Parcel","ZWO"]
[null,null,null,null,null,null,null,null,null,null,null,null,null,null,{"$f":"VLOOKUP(N937,Tabel10[[korte omschrijving]:[MCC3_CODE]],2,0)","v":{"$error":"#N/A"}},{"$f":"VLOOKUP(N937,Tabel10[],3,0)","v":{"$error":"#N/A"}},null,null,null,null,null,null,null,"EUR",null,null,null,{"$error":"#DIV/0!"},0,0,null,"","","","","","","","","","",null,null,null,null,null,null,null,null,null,null,null,null,null,null,6,"None","Parcel","ZWO"]
[null,null,null,null,null,null,null,null,null,null,null,null,null,null,{"$f":"VLOOKUP(N938,Tabel10[[korte omschrijving]:[MCC3_CODE]],2,0)","v":{"$error":"#N/A"}},{"$f":"VLOOKUP(N938,Tabel10[],3,0)","v":{"$error":"#N/A"}},null,null,null,null,null,null,null,"EUR",null,null,null,{"$error":"#DIV/0!"},0,0,null,"","","","","","","","","","",null,null,null,null,null,null,null,null,null,null,null,null,null,null,6,"None","Parcel","ZWO"]
[null,null,null,null,null,null,null,null,null,null,null,null,null,null,{"$f":"VLOOKUP(N939,Tabel10[[korte omschrijving]:[MCC3_CODE]],2,0)","v":{"$error":"#N/A"}},{"$f":"VLOOKUP(N939,Tabel10[],3,0)","v":{"$error":"#N/A"}},null,null,null,null,null,null,null,"EUR",null,null,null,{"$error":"#DIV/0!"},0,0,null,"","","","","","","","","","",null,null,null,null,null,null,null,null,null,null,null,null,null,null,6,"None","Parcel","ZWO"]
[null,null,null,null,null,null,null,null,null,null,null,null,null,null,{"$f":"VLOOKUP(N940,Tabel10[[korte omschrijving]:[MCC3_CODE]],2,0)","v":{"$error":"#N/A"}},{"$f":"VLOOKUP(N940,Tabel10[],3,0)","v":{"$error":"#N/A"}},null,null,null,null,null,null,null,"EUR",null,null,null,{"$error":"#DIV/0!"},0,0,null,"","","","","","","","","","",null,null,null,null,null,null,null,null,null,null,null,null,null,null,6,"None","Parcel","ZWO"]
[null,null,null,null,null,null,null,null,null,null,null,null,null,null,{"$f":"VLOOKUP(N941,Tabel10[[korte omschrijving]:[MCC3_CODE]],2,0)","v":{"$error":"#N/A"}},{"$f":"VLOOKUP(N941,Tabel10[],3,0)","v":{"$error":"#N/A"}},null,null,null,null,null,null,null,"EUR",null,null,null,{"$error":"#DIV/0!"},0,0,null,"","","","","","","","","","",null,null,null,null,null,null,null,null,null,null,null,null,null,null,6,"None","Parcel","ZWO"]
[null,null,null,null,null,null,null,null,null,null,null,null,null,null,{"$f":"VLOOKUP(N942,Tabel10[[korte omschrijving]:[MCC3_CODE]],2,0)","v":{"$error":"#N/A"}},{"$f":"VLOOKUP(N942,Tabel10[],3,0)","v":{"$error":"#N/A"}},null,null,null,null,null,null,null,"EUR",null,null,null,{"$error":"#DIV/0!"},0,0,null,"","","","","","","","","","",null,null,null,null,null,null,null,null,null,null,null,null,null,null,6,"None","Parcel","ZWO"]
[null,null,null,null,null,null,null,null,null,null,null,null,null,null,{"$f":"VLOOKUP(N943,Tabel10[[korte omschrijving]:[MCC3_CODE]],2,0)","v":{"$error":"#N/A"}},{"$f":"VLOOKUP(N943,Tabel10[],3,0)","v":{"$error":"#N/A"}},null,null,null,null,null,null,null,"EUR",null,null,null,{"$error":"#DIV/0!"},0,0,null,"","","","","","","","","","",null,null,null,null,null,null,null,null,null,null,null,null,null,null,6,"None","Parcel","ZWO"]
[null,null,null,null,null,null,null,null,null,null,null,null,null,null,{"$f":"VLOOKUP(N944,Tabel10[[korte omschrijving]:[MCC3_CODE]],2,0)","v":{"$error":"#N/A"}},{"$f":"VLOOKUP(N944,Tabel10[],3,0)","v":{"$error":"#N/A"}},null,null,null,null,null,null,null,"EUR",null,null,null,{"$error":"#DIV/0!"},0,0,null,"","","","","","","","","","",null,null,null,null,null,null,null,null,null,null,null,null,null,null,6,"None","Parcel","ZWO"]
[null,null,null,null,null,null,null,null,null,null,null,null,null,null,{"$f":"VLOOKUP(N945,Tabel10[[korte omschrijving]:[MCC3_CODE]],2,0)","v":{"$error":"#N/A"}},{"$f":"VLOOKUP(N945,Tabel10[],3,0)","v":{"$error":"#N/A"}},null,null,null,null,null,null,null,"EUR",null,null,null,{"$error":"#DIV/0!"},0,0,null,"","","","","","","","","","",null,null,null,null,null,null,null,null,null,null,null,null,null,null,6,"None","Parcel","ZWO"]
[null,null,null,null,null,null,null,null,null,null,null,null,null,null,{"$f":"VLOOKUP(N946,Tabel10[[korte omschrijving]:[MCC3_CODE]],2,0)","v":{"$error":"#N/A"}},{"$f":"VLOOKUP(N946,Tabel10[],3,0)","v":{"$error":"#N/A"}},null,null,null,null,null,null,null,"EUR",null,null,null,{"$error":"#DIV/0!"},0,0,null,"","","","","","","","","","",null,null,null,null,null,null,null,null,null,null,null,null,null,null,6,"None","Parcel","ZWO"]
[null,null,null,null,null,null,null,null,null,null,null,null,null,null,{"$f":"VLOOKUP(N947,Tabel10[[korte omschrijving]:[MCC3_CODE]],2,0)","v":{"$error":"#N/A"}},{"$f":"VLOOKUP(N947,Tabel10[],3,0)","v":{"$error":"#N/A"}},null,null,null,null,null,null,null,"EUR",null,null,null,{"$error":"#DIV/0!"},0,0,null,"","","","","","","","","","",null,null,null,null,null,null,null,null,null,null,null,null,null,null,6,"None","Parcel","ZWO"]
[null,null,null,null,null,null,null,null,null,null,null,null,null,null,{"$f":"VLOOKUP(N948,Tabel10[[korte omschrijving]:[MCC3_CODE]],2,0)","v":{"$error":"#N/A"}},{"$f":"VLOOKUP(N948,Tabel10[],3,0)","v":{"$error":"#N/A"}},null,null,null,null,null,null,null,"EUR",null,null,null,{"$error":"#DIV/0!"},0,0,null,"","","","","","","","","","",null,null,null,null,null,null,null,null,null,null,null,null,null,null,6,"None","Parcel","ZWO"]
[null,null,null,null,null,null,null,null,null,null,null,null,null,null,{"$f":"VLOOKUP(N949,Tabel10[[korte omschrijving]:[MCC3_CODE]],2,0)","v":{"$error":"#N/A"}},{"$f":"VLOOKUP(N949,Tabel10[],3,0)","v":{"$error":"#N/A"}},null,null,null,null,null,null,null,"EUR",null,null,null,{"$error":"#DIV/0!"},0,0,null,"","","","","","","","","","",null,null,null,null,null,null,null,null,null,null,null,null,null,null,6,"None","Parcel","ZWO"]
[null,null,null,null,null,null,null,null,null,null,null,null,null,null,{"$f":"VLOOKUP(N950,Tabel10[[korte omschrijving]:[MCC3_CODE]],2,0)","v":{"$error":"#N/A"}},{"$f":"VLOOKUP(N950,Tabel10[],3,0)","v":{"$error":"#N/A"}},null,null,null,null,null,null,null,"EUR",null,null,null,{"$error":"#DIV/0!"},0,0,null,"","","","","","","","","","",null,null,null,null,null,null,null,null,null,null,null,null,null,null,6,"None","Parcel","ZWO"]
[null,null,null,null,null,null,null,null,null,null,null,null,null,null,{"$f":"VLOOKUP(N951,Tabel10[[korte omschrijving]:[MCC3_CODE]],2,0)","v":{"$error":"#N/A"}},{"$f":"VLOOKUP(N951,Tabel10[],3,0)","v":{"$error":"#N/A"}},null,null,null,null,null,null,null,"EUR",null,null,null,{"$error":"#DIV/0!"},0,0,null,"","","","","","","","","","",null,null,null,null,null,null,null,null,null,null,null,null,null,null,6,"None","Parcel","ZWO"]
[null,null,null,null,null,null,null,null,null,null,null,null,null,null,{"$f":"VLOOKUP(N952,Tabel10[[korte omschrijving]:[MCC3_CODE]],2,0)","v":{"$error":"#N/A"}},{"$f":"VLOOKUP(N952,Tabel10[],3,0)","v":{"$error":"#N/A"}},null,null,null,null,null,null,null,"EUR",null,null,null,{"$error":"#DIV/0!"},0,0,null,"","","","","","","","","","",null,null,null,null,null,null,null,null,null,null,null,null,null,null,6,"None","Parcel","ZWO"]
[null,null,null,null,null,null,null,null,null,null,null,null,null,null,{"$f":"VLOOKUP(N953,Tabel10[[korte omschrijving]:[MCC3_CODE]],2,0)","v":{"$error":"#N/A"}},{"$f":"VLOOKUP(N953,Tabel10[],3,0)","v":{"$error":"#N/A"}},null,null,null,null,null,null,null,"EUR",null,null,null,{"$error":"#DIV/0!"},0,0,null,"","","","","","","","","","",null,null,null,null,null,null,null,null,null,null,null,null,null,null,6,"None","Parcel","ZWO"]
[null,null,null,null,null,null,null,null,null,null,null,null,null,null,{"$f":"VLOOKUP(N954,Tabel10[[korte omschrijving]:[MCC3_CODE]],2,0)","v":{"$error":"#N/A"}},{"$f":"VLOOKUP(N954,Tabel10[],3,0)","v":{"$error":"#N/A"}},null,null,null,null,null,null,null,"EUR",null,null,null,{"$error":"#DIV/0!"},0,0,null,"","","","","","","","","","",null,null,null,null,null,null,null,null,null,null,null,null,null,null,6,"None","Parcel","ZWO"]
[null,null,null,null,null,null,null,null,null,null,null,null,null,null,{"$f":"VLOOKUP(N955,Tabel10[[korte omschrijving]:[MCC3_CODE]],2,0)","v":{"$error":"#N/A"}},{"$f":"VLOOKUP(N955,Tabel10[],3,0)","v":{"$error":"#N/A"}},null,null,null,null,null,null,null,"EUR",null,null,null,{"$error":"#DIV/0!"},0,0,null,"","","","","","","","","","",null,null,null,null,null,null,null,null,null,null,null,null,null,null,6,"None","Parcel","ZWO"]
[null,null,null,null,null,null,null,null,null,null,null,null,null,null,{"$f":"VLOOKUP(N956,Tabel10[[korte omschrijving]:[MCC3_CODE]],2,0)","v":{"$error":"#N/A"}},{"$f":"VLOOKUP(N956,Tabel10[],3,0)","v":{"$error":"#N/A"}},null,null,null,null,null,null,null,"EUR",null,null,null,{"$error":"#DIV/0!"},0,0,null,"","","","","","","","","","",null,null,null,null,null,null,null,null,null,null,null,null,null,null,6,"None","Parcel","ZWO"]
[null,null,null,null,null,null,null,null,null,null,null,null,null,null,{"$f":"VLOOKUP(N957,Tabel10[[korte omschrijving]:[MCC3_CODE]],2,0)","v":{"$error":"#N/A"}},{"$f":"VLOOKUP(N957,Tabel10[],3,0)","v":{"$error":"#N/A"}},null,null,null,null,null,null,null,"EUR",null,null,null,{"$error":"#DIV/0!"},0,0,null,"","","","","","","","","","",null,null,null,null,null,null,null,null,null,null,null,null,null,null,6,"None","Parcel","ZWO"]
[null,null,null,null,null,null,null,null,null,null,null,null,null,null,{"$f":"VLOOKUP(N958,Tabel10[[korte omschrijving]:[MCC3_CODE]],2,0)","v":{"$error":"#N/A"}},{"$f":"VLOOKUP(N958,Tabel10[],3,0)","v":{"$error":"#N/A"}},null,null,null,null,null,null,null,"EUR",null,null,null,{"$error":"#DIV/0!"},0,0,null,"","","","","","","","","","",null,null,null,null,null,null,null,null,null,null,null,null,null,null,6,"None","Parcel","ZWO"]
[null,null,null,null,null,null,null,null,null,null,null,null,null,null,{"$f":"VLOOKUP(N959,Tabel10[[korte omschrijving]:[MCC3_CODE]],2,0)","v":{"$error":"#N/A"}},{"$f":"VLOOKUP(N959,Tabel10[],3,0)","v":{"$error":"#N/A"}},null,null,null,null,null,null,null,"EUR",null,null,null,{"$error":"#DIV/0!"},0,0,null,"","","","","","","","","","",null,null,null,null,null,null,null,null,null,null,null,null,null,null,6,"None","Parcel","ZWO"]
[null,null,null,null,null,null,null,null,null,null,null,null,null,null,{"$f":"VLOOKUP(N960,Tabel10[[korte omschrijving]:[MCC3_CODE]],2,0)","v":{"$error":"#N/A"}},{"$f":"VLOOKUP(N960,Tabel10[],3,0)","v":{"$error":"#N/A"}},null,null,null,null,null,null,null,"EUR",null,null,null,{"$error":"#DIV/0!"},0,0,null,"","","","","","","","","","",null,null,null,null,null,null,null,null,null,null,null,null,null,null,6,"None","Parcel","ZWO"]
[null,null,null,null,null,null,null,null,null,null,null,null,null,null,{"$f":"VLOOKUP(N961,Tabel10[[korte omschrijving]:[MCC3_CODE]],2,0)","v":{"$error":"#N/A"}},{"$f":"VLOOKUP(N961,Tabel10[],3,0)","v":{"$error":"#N/A"}},null,null,null,null,null,null,null,"EUR",null,null,null,{"$error":"#DIV/0!"},0,0,null,"","","","","","","","","","",null,null,null,null,null,null,null,null,null,null,null,null,null,null,6,"None","Parcel","ZWO"]
[null,null,null,null,null,null,null,null,null,null,null,null,null,null,{"$f":"VLOOKUP(N962,Tabel10[[korte omschrijving]:[MCC3_CODE]],2,0)","v":{"$error":"#N/A"}},{"$f":"VLOOKUP(N962,Tabel10[],3,0)","v":{"$error":"#N/A"}},null,null,null,null,null,null,null,"EUR",null,null,null,{"$error":"#DIV/0!"},0,0,null,"","","","","","","","","","",null,null,null,null,null,null,null,null,null,null,null,null,null,null,6,"None","Parcel","ZWO"]
[null,null,null,null,null,null,null,null,null,null,null,null,null,null,{"$f":"VLOOKUP(N963,Tabel10[[korte omschrijving]:[MCC3_CODE]],2,0)","v":{"$error":"#N/A"}},{"$f":"VLOOKUP(N963,Tabel10[],3,0)","v":{"$error":"#N/A"}},null,null,null,null,null,null,null,"EUR",null,null,null,{"$error":"#DIV/0!"},0,0,null,"","","","","","","","","","",null,null,null,null,null,null,null,null,null,null,null,null,null,null,6,"None","Parcel","ZWO"]
[null,null,null,null,null,null,null,null,null,null,null,null,null,null,{"$f":"VLOOKUP(N964,Tabel10[[korte omschrijving]:[MCC3_CODE]],2,0)","v":{"$error":"#N/A"}},{"$f":"VLOOKUP(N964,Tabel10[],3,0)","v":{"$error":"#N/A"}},null,null,null,null,null,null,null,"EUR",null,null,null,{"$error":"#DIV/0!"},0,0,null,"","","","","","","","","","",null,null,null,null,null,null,null,null,null,null,null,null,null,null,6,"None","Parcel","ZWO"]
[null,null,null,null,null,null,null,null,null,null,null,null,null,null,{"$f":"VLOOKUP(N965,Tabel10[[korte omschrijving]:[MCC3_CODE]],2,0)","v":{"$error":"#N/A"}},{"$f":"VLOOKUP(N965,Tabel10[],3,0)","v":{"$error":"#N/A"}},null,null,null,null,null,null,null,"EUR",null,null,null,{"$error":"#DIV/0!"},0,0,null,"","","","","","","","","","",null,null,null,null,null,null,null,null,null,null,null,null,null,null,6,"None","Parcel","ZWO"]
[null,null,null,null,null,null,null,null,null,null,null,null,null,null,{"$f":"VLOOKUP(N966,Tabel10[[korte omschrijving]:[MCC3_CODE]],2,0)","v":{"$error":"#N/A"}},{"$f":"VLOOKUP(N966,Tabel10[],3,0)","v":{"$error":"#N/A"}},null,null,null,null,null,null,null,"EUR",null,null,null,{"$error":"#DIV/0!"},0,0,null,"","","","","","","","","","",null,null,null,null,null,null,null,null,null,null,null,null,null,null,6,"None","Parcel","ZWO"]
[null,null,null,null,null,null,null,null,null,null,null,null,null,null,{"$f":"VLOOKUP(N967,Tabel10[[korte omschrijving]:[MCC3_CODE]],2,0)","v":{"$error":"#N/A"}},{"$f":"VLOOKUP(N967,Tabel10[],3,0)","v":{"$error":"#N/A"}},null,null,null,null,null,null,null,"EUR",null,null,null,{"$f":"AA967/Y967","v":{"$error":"#DIV/0!"}},{"$f":"T967*Y967","v":0},{"$f":"T967*AA967","v":0},null,{"$f":"IF(AE967 <> \"\",\n    IF(ISNUMBER(VALUE(LEFT(AE967, FIND(\"%\", AE967)-1))),\n        VALUE(LEFT(AE967, FIND(\"%\", AE967)-1)),\n        \"Invalid format\"),\n    \"\")","v":""},{"$f":"IF(AE967 <> \"\",\n    IF(ISNUMBER(VALUE(LEFT(AE967, FIND(\"%\", AE967)-1))) * ISNUMBER(FIND(\"%\", AE967 & \"wol\")) > 0,\n        TRIM(MID(AE967, FIND(\"%\", AE967)+1, FIND(\"/\", AE967 & \"/\")-FIND(\"%\", AE967)-1)),\n        \"Invalid format\"),\n    \"\")","v":""},{"$f":"IF(AE967 <> \"\",\n    IF(ISNUMBER(VALUE(MID(AE967, FIND(\"/\", AE967) + 1, FIND(\"%\", AE967, FIND(\"/\", AE967)) - FIND(\"/\", AE967) - 1))),\n        VALUE(MID(AE967, FIND(\"/\", AE967) + 1, FIND(\"%\", AE967, FIND(\"/\", AE967)) - FIND(\"/\", AE967) - 1)),\n        \"\"),\n    \"\")","v":""},{"$f":"IF(AE967 <> \"\",\n    IFERROR(TRIM(MID(AE967, FIND(\"%\", AE967, FIND(\"/\", AE967)+1)+2,\n        IFERROR(FIND(\"/\", AE967 & \"/\", FIND(\"/\", AE967)+1)-FIND(\"%\", AE967, FIND(\"/\", AE967)+1)-2, LEN(AE967)-FIND(\"%\", AE967, FIND(\"/\", AE967)+1)-1))),\n        \"\"),\n    \"\")","v":""},{"$f":"IF(AE967 <> \"\",\n    IF(ISNUMBER(VALUE(MID(AE967, FIND(\"/\", AE967, FIND(\"/\", AE967)+1) + 1, FIND(\"%\", AE967, FIND(\"/\", AE967, FIND(\"/\", AE967)+1)) - FIND(\"/\", AE967, FIND(\"/\", AE967)+1) - 1))),\n        VALUE(MID(AE967, FIND(\"/\", AE967, FIND(\"/\", AE967)+1) + 1, FIND(\"%\", AE967, FIND(\"/\", AE967, FIND(\"/\", AE967)+1)) - FIND(\"/\", AE967, FIND(\"/\", AE967)+1) - 1)),\n        \"\"),\n    \"\")","v":""},{"$f":"IF(AE967 <> \"\",\n    IFERROR(\n        TRIM(MID(AE967,\n            FIND(\"%\", AE967, FIND(\"%\", AE967, FIND(\"%\", AE967)+1)+1)+1,\n            FIND(\"/\", AE967 & \"/\", FIND(\"%\", AE967, FIND(\"%\", AE967, FIND(\"%\", AE967)+1)+1))-FIND(\"%\", AE967, FIND(\"%\", AE967, FIND(\"%\", AE967)+1)+1)-1)\n        ),\n        \"\"\n    ),\n    \"\"\n)","v":""},{"$f":"IF(AE967 <> \"\",\n    IF(ISNUMBER(VALUE(MID(AE967, FIND(\"/\", AE967, FIND(\"/\", AE967, FIND(\"/\", AE967)+1)+1) + 1, FIND(\"%\", AE967, FIND(\"/\", AE967, FIND(\"/\", AE967, FIND(\"/\", AE967)+1)+1)) - FIND(\"/\", AE967, FIND(\"/\", AE967, FIND(\"/\", AE967)+1)+1) - 1))),\n        VALUE(MID(AE967, FIND(\"/\", AE967, FIND(\"/\", AE967, FIND(\"/\", AE967)+1)+1) + 1, FIND(\"%\", AE967, FIND(\"/\", AE967, FIND(\"/\", AE967, FIND(\"/\", AE967)+1)+1)) - FIND(\"/\", AE967, FIND(\"/\", AE967, FIND(\"/\", AE967)+1)+1) - 1)),\n        \"\"),\n    \"\")","v":""},{"$f":"IF(AE967 <> \"\",\n    IFERROR(TRIM(MID(AE967, FIND(\"%\", AE967, FIND(\"/\", AE967, FIND(\"/\", AE967, FIND(\"/\", AE967)+1)+1)+1)+2,\n        IFERROR(FIND(\"/\", AE967, FIND(\"/\", AE967, FIND(\"/\", AE967, FIND(\"/\", AE967)+1)+1)+1)-FIND(\"%\", AE967, FIND(\"/\", AE967, FIND(\"/\", AE967, FIND(\"/\", AE967)+1)+1)+1)-2, LEN(AE967)-FIND(\"%\", AE967, FIND(\"/\", AE967, FIND(\"/\", AE967, FIND(\"/\", AE967)+1)+1)+1)-1))),\n        \"\"),\n    \"\")","v":""},{"$f":"IF(AE967 <> \"\",\n    IF(ISNUMBER(VALUE(MID(AE967, FIND(\"/\", AE967, FIND(\"/\", AE967, FIND(\"/\", AE967, FIND(\"/\", AE967)+1)+1)+1) + 1, FIND(\"%\", AE967, FIND(\"/\", AE967, FIND(\"/\", AE967, FIND(\"/\", AE967, FIND(\"/\", AE967)+1)+1)+1)) - FIND(\"/\", AE967, FIND(\"/\", AE967, FIND(\"/\", AE967, FIND(\"/\", AE967)+1)+1)+1) - 1))),\n        VALUE(MID(AE967, FIND(\"/\", AE967, FIND(\"/\", AE967, FIND(\"/\", AE967, FIND(\"/\", AE967)+1)+1)+1) + 1, FIND(\"%\", AE967, FIND(\"/\", AE967, FIND(\"/\", AE967, FIND(\"/\", AE967, FIND(\"/\", AE967)+1)+1)+1)) - FIND(\"/\", AE967, FIND(\"/\", AE967, FIND(\"/\", AE967, FIND(\"/\", AE967)+1)+1)+1) - 1)),\n        \"\"),\n    \"\")","v":""},{"$f":"IF(AE967 = \"\", \"\",\n    IFERROR(TRIM(\n        MID(\n            AE967,\n            FIND(\"%\", AE967, FIND(\"/\", AE967, FIND(\"/\", AE967, FIND(\"/\", AE967, FIND(\"/\", AE967)+1)+1)+1)+1) + 1,\n            FIND(\"/\", AE967 & \"/\", FIND(\"%\", AE967, FIND(\"/\", AE967, FIND(\"/\", AE967, FIND(\"/\", AE967, FIND(\"/\", AE967)+1)+1)+1)+1)) -\n            FIND(\"%\", AE967, FIND(\"/\", AE967, FIND(\"/\", AE967, FIND(\"/\", AE967, FIND(\"/\", AE967)+1)+1)+1)+1) - 1\n        )\n    ),\n    \"\")\n)","v":""},null,null,null,null,null,null,null,null,null,null,null,null,null,null,6,"None","Parcel","ZWO"]
[null,null,null,null,null,null,null,null,null,null,null,null,null,null,{"$f":"VLOOKUP(N968,Tabel10[[korte omschrijving]:[MCC3_CODE]],2,0)","v":{"$error":"#N/A"}},{"$f":"VLOOKUP(N968,Tabel10[],3,0)","v":{"$error":"#N/A"}},null,null,null,null,null,null,null,"EUR",null,null,null,{"$error":"#DIV/0!"},0,0,null,"","","","","","","","","","",null,null,null,null,null,null,null,null,null,null,null,null,null,null,6,"None","Parcel","ZWO"]
[null,null,null,null,null,null,null,null,null,null,null,null,null,null,{"$f":"VLOOKUP(N969,Tabel10[[korte omschrijving]:[MCC3_CODE]],2,0)","v":{"$error":"#N/A"}},{"$f":"VLOOKUP(N969,Tabel10[],3,0)","v":{"$error":"#N/A"}},null,null,null,null,null,null,null,"EUR",null,null,null,{"$error":"#DIV/0!"},0,0,null,"","","","","","","","","","",null,null,null,null,null,null,null,null,null,null,null,null,null,null,6,"None","Parcel","ZWO"]
[null,null,null,null,null,null,null,null,null,null,null,null,null,null,{"$f":"VLOOKUP(N970,Tabel10[[korte omschrijving]:[MCC3_CODE]],2,0)","v":{"$error":"#N/A"}},{"$f":"VLOOKUP(N970,Tabel10[],3,0)","v":{"$error":"#N/A"}},null,null,null,null,null,null,null,"EUR",null,null,null,{"$error":"#DIV/0!"},0,0,null,"","","","","","","","","","",null,null,null,null,null,null,null,null,null,null,null,null,null,null,6,"None","Parcel","ZWO"]
[null,null,null,null,null,null,null,null,null,null,null,null,null,null,{"$f":"VLOOKUP(N971,Tabel10[[korte omschrijving]:[MCC3_CODE]],2,0)","v":{"$error":"#N/A"}},{"$f":"VLOOKUP(N971,Tabel10[],3,0)","v":{"$error":"#N/A"}},null,null,null,null,null,null,null,"EUR",null,null,null,{"$error":"#DIV/0!"},0,0,null,"","","","","","","","","","",null,null,null,null,null,null,null,null,null,null,null,null,null,null,6,"None","Parcel","ZWO"]
[null,null,null,null,null,null,null,null,null,null,null,null,null,null,{"$f":"VLOOKUP(N972,Tabel10[[korte omschrijving]:[MCC3_CODE]],2,0)","v":{"$error":"#N/A"}},{"$f":"VLOOKUP(N972,Tabel10[],3,0)","v":{"$error":"#N/A"}},null,null,null,null,null,null,null,"EUR",null,null,null,{"$error":"#DIV/0!"},0,0,null,"","","","","","","","","","",null,null,null,null,null,null,null,null,null,null,null,null,null,null,6,"None","Parcel","ZWO"]
[null,null,null,null,null,null,null,null,null,null,null,null,null,null,{"$f":"VLOOKUP(N973,Tabel10[[korte omschrijving]:[MCC3_CODE]],2,0)","v":{"$error":"#N/A"}},{"$f":"VLOOKUP(N973,Tabel10[],3,0)","v":{"$error":"#N/A"}},null,null,null,null,null,null,null,"EUR",null,null,null,{"$error":"#DIV/0!"},0,0,null,"","","","","","","","","","",null,null,null,null,null,null,null,null,null,null,null,null,null,null,6,"None","Parcel","ZWO"]
[null,null,null,null,null,null,null,null,null,null,null,null,null,null,{"$f":"VLOOKUP(N974,Tabel10[[korte omschrijving]:[MCC3_CODE]],2,0)","v":{"$error":"#N/A"}},{"$f":"VLOOKUP(N974,Tabel10[],3,0)","v":{"$error":"#N/A"}},null,null,null,null,null,null,null,"EUR",null,null,null,{"$error":"#DIV/0!"},0,0,null,"","","","","","","","","","",null,null,null,null,null,null,null,null,null,null,null,null,null,null,6,"None","Parcel","ZWO"]
[null,null,null,null,null,null,null,null,null,null,null,null,null,null,{"$f":"VLOOKUP(N975,Tabel10[[korte omschrijving]:[MCC3_CODE]],2,0)","v":{"$error":"#N/A"}},{"$f":"VLOOKUP(N975,Tabel10[],3,0)","v":{"$error":"#N/A"}},null,null,null,null,null,null,null,"EUR",null,null,null,{"$error":"#DIV/0!"},0,0,null,"","","","","","","","","","",null,null,null,null,null,null,null,null,null,null,null,null,null,null,6,"None","Parcel","ZWO"]
[null,null,null,null,null,null,null,null,null,null,null,null,null,null,{"$f":"VLOOKUP(N976,Tabel10[[korte omschrijving]:[MCC3_CODE]],2,0)","v":{"$error":"#N/A"}},{"$f":"VLOOKUP(N976,Tabel10[],3,0)","v":{"$error":"#N/A"}},null,null,null,null,null,null,null,"EUR",null,null,null,{"$error":"#DIV/0!"},0,0,null,"","","","","","","","","","",null,null,null,null,null,null,null,null,null,null,null,null,null,null,6,"None","Parcel","ZWO"]
[null,null,null,null,null,null,null,null,null,null,null,null,null,null,{"$f":"VLOOKUP(N977,Tabel10[[korte omschrijving]:[MCC3_CODE]],2,0)","v":{"$error":"#N/A"}},{"$f":"VLOOKUP(N977,Tabel10[],3,0)","v":{"$error":"#N/A"}},null,null,null,null,null,null,null,"EUR",null,null,null,{"$error":"#DIV/0!"},0,0,null,"","","","","","","","","","",null,null,null,null,null,null,null,null,null,null,null,null,null,null,6,"None","Parcel","ZWO"]
[null,null,null,null,null,null,null,null,null,null,null,null,null,null,{"$f":"VLOOKUP(N978,Tabel10[[korte omschrijving]:[MCC3_CODE]],2,0)","v":{"$error":"#N/A"}},{"$f":"VLOOKUP(N978,Tabel10[],3,0)","v":{"$error":"#N/A"}},null,null,null,null,null,null,null,"EUR",null,null,null,{"$error":"#DIV/0!"},0,0,null,"","","","","","","","","","",null,null,null,null,null,null,null,null,null,null,null,null,null,null,6,"None","Parcel","ZWO"]
[null,null,null,null,null,null,null,null,null,null,null,null,null,null,{"$f":"VLOOKUP(N979,Tabel10[[korte omschrijving]:[MCC3_CODE]],2,0)","v":{"$error":"#N/A"}},{"$f":"VLOOKUP(N979,Tabel10[],3,0)","v":{"$error":"#N/A"}},null,null,null,null,null,null,null,"EUR",null,null,null,{"$error":"#DIV/0!"},0,0,null,"","","","","","","","","","",null,null,null,null,null,null,null,null,null,null,null,null,null,null,6,"None","Parcel","ZWO"]
[null,null,null,null,null,null,null,null,null,null,null,null,null,null,{"$f":"VLOOKUP(N980,Tabel10[[korte omschrijving]:[MCC3_CODE]],2,0)","v":{"$error":"#N/A"}},{"$f":"VLOOKUP(N980,Tabel10[],3,0)","v":{"$error":"#N/A"}},null,null,null,null,null,null,null,"EUR",null,null,null,{"$error":"#DIV/0!"},0,0,null,"","","","","","","","","","",null,null,null,null,null,null,null,null,null,null,null,null,null,null,6,"None","Parcel","ZWO"]
[null,null,null,null,null,null,null,null,null,null,null,null,null,null,{"$f":"VLOOKUP(N981,Tabel10[[korte omschrijving]:[MCC3_CODE]],2,0)","v":{"$error":"#N/A"}},{"$f":"VLOOKUP(N981,Tabel10[],3,0)","v":{"$error":"#N/A"}},null,null,null,null,null,null,null,"EUR",null,null,null,{"$error":"#DIV/0!"},0,0,null,"","","","","","","","","","",null,null,null,null,null,null,null,null,null,null,null,null,null,null,6,"None","Parcel","ZWO"]
[null,null,null,null,null,null,null,null,null,null,null,null,null,null,{"$f":"VLOOKUP(N982,Tabel10[[korte omschrijving]:[MCC3_CODE]],2,0)","v":{"$error":"#N/A"}},{"$f":"VLOOKUP(N982,Tabel10[],3,0)","v":{"$error":"#N/A"}},null,null,null,null,null,null,null,"EUR",null,null,null,{"$error":"#DIV/0!"},0,0,null,"","","","","","","","","","",null,null,null,null,null,null,null,null,null,null,null,null,null,null,6,"None","Parcel","ZWO"]
[null,null,null,null,null,null,null,null,null,null,null,null,null,null,{"$f":"VLOOKUP(N983,Tabel10[[korte omschrijving]:[MCC3_CODE]],2,0)","v":{"$error":"#N/A"}},{"$f":"VLOOKUP(N983,Tabel10[],3,0)","v":{"$error":"#N/A"}},null,null,null,null,null,null,null,"EUR",null,null,null,{"$error":"#DIV/0!"},0,0,null,"","","","","","","","","","",null,null,null,null,null,null,null,null,null,null,null,null,null,null,6,"None","Parcel","ZWO"]
[null,null,null,null,null,null,null,null,null,null,null,null,null,null,{"$f":"VLOOKUP(N984,Tabel10[[korte omschrijving]:[MCC3_CODE]],2,0)","v":{"$error":"#N/A"}},{"$f":"VLOOKUP(N984,Tabel10[],3,0)","v":{"$error":"#N/A"}},null,null,null,null,null,null,null,"EUR",null,null,null,{"$error":"#DIV/0!"},0,0,null,"","","","","","","","","","",null,null,null,null,null,null,null,null,null,null,null,null,null,null,6,"None","Parcel","ZWO"]
[null,null,null,null,null,null,null,null,null,null,null,null,null,null,{"$f":"VLOOKUP(N985,Tabel10[[korte omschrijving]:[MCC3_CODE]],2,0)","v":{"$error":"#N/A"}},{"$f":"VLOOKUP(N985,Tabel10[],3,0)","v":{"$error":"#N/A"}},null,null,null,null,null,null,null,"EUR",null,null,null,{"$error":"#DIV/0!"},0,0,null,"","","","","","","","","","",null,null,null,null,null,null,null,null,null,null,null,null,null,null,6,"None","Parcel","ZWO"]
[null,null,null,null,null,null,null,null,null,null,null,null,null,null,{"$f":"VLOOKUP(N986,Tabel10[[korte omschrijving]:[MCC3_CODE]],2,0)","v":{"$error":"#N/A"}},{"$f":"VLOOKUP(N986,Tabel10[],3,0)","v":{"$error":"#N/A"}},null,null,null,null,null,null,null,"EUR",null,null,null,{"$error":"#DIV/0!"},0,0,null,"","","","","","","","","","",null,null,null,null,null,null,null,null,null,null,null,null,null,null,6,"None","Parcel","ZWO"]
[null,null,null,null,null,null,null,null,null,null,null,null,null,null,{"$f":"VLOOKUP(N987,Tabel10[[korte omschrijving]:[MCC3_CODE]],2,0)","v":{"$error":"#N/A"}},{"$f":"VLOOKUP(N987,Tabel10[],3,0)","v":{"$error":"#N/A"}},null,null,null,null,null,null,null,"EUR",null,null,null,{"$error":"#DIV/0!"},0,0,null,"","","","","","","","","","",null,null,null,null,null,null,null,null,null,null,null,null,null,null,6,"None","Parcel","ZWO"]
[null,null,null,null,null,null,null,null,null,null,null,null,null,null,{"$f":"VLOOKUP(N988,Tabel10[[korte omschrijving]:[MCC3_CODE]],2,0)","v":{"$error":"#N/A"}},{"$f":"VLOOKUP(N988,Tabel10[],3,0)","v":{"$error":"#N/A"}},null,null,null,null,null,null,null,"EUR",null,null,null,{"$error":"#DIV/0!"},0,0,null,"","","","","","","","","","",null,null,null,null,null,null,null,null,null,null,null,null,null,null,6,"None","Parcel","ZWO"]
[null,null,null,null,null,null,null,null,null,null,null,null,null,null,{"$f":"VLOOKUP(N989,Tabel10[[korte omschrijving]:[MCC3_CODE]],2,0)","v":{"$error":"#N/A"}},{"$f":"VLOOKUP(N989,Tabel10[],3,0)","v":{"$error":"#N/A"}},null,null,null,null,null,null,null,"EUR",null,null,null,{"$error":"#DIV/0!"},0,0,null,"","","","","","","","","","",null,null,null,null,null,null,null,null,null,null,null,null,null,null,6,"None","Parcel","ZWO"]
[null,null,null,null,null,null,null,null,null,null,null,null,null,null,{"$f":"VLOOKUP(N990,Tabel10[[korte omschrijving]:[MCC3_CODE]],2,0)","v":{"$error":"#N/A"}},{"$f":"VLOOKUP(N990,Tabel10[],3,0)","v":{"$error":"#N/A"}},null,null,null,null,null,null,null,"EUR",null,null,null,{"$error":"#DIV/0!"},0,0,null,"","","","","","","","","","",null,null,null,null,null,null,null,null,null,null,null,null,null,null,6,"None","Parcel","ZWO"]
[null,null,null,null,null,null,null,null,null,null,null,null,null,null,{"$f":"VLOOKUP(N991,Tabel10[[korte omschrijving]:[MCC3_CODE]],2,0)","v":{"$error":"#N/A"}},{"$f":"VLOOKUP(N991,Tabel10[],3,0)","v":{"$error":"#N/A"}},null,null,null,null,null,null,null,"EUR",null,null,null,{"$error":"#DIV/0!"},0,0,null,"","","","","","","","","","",null,null,null,null,null,null,null,null,null,null,null,null,null,null,6,"None","Parcel","ZWO"]
[null,null,null,null,null,null,null,null,null,null,null,null,null,null,{"$f":"VLOOKUP(N992,Tabel10[[korte omschrijving]:[MCC3_CODE]],2,0)","v":{"$error":"#N/A"}},{"$f":"VLOOKUP(N992,Tabel10[],3,0)","v":{"$error":"#N/A"}},null,null,null,null,null,null,null,"EUR",null,null,null,{"$error":"#DIV/0!"},0,0,null,"","","","","","","","","","",null,null,null,null,null,null,null,null,null,null,null,null,null,null,6,"None","Parcel","ZWO"]
[null,null,null,null,null,null,null,null,null,null,null,null,null,null,{"$f":"VLOOKUP(N993,Tabel10[[korte omschrijving]:[MCC3_CODE]],2,0)","v":{"$error":"#N/A"}},{"$f":"VLOOKUP(N993,Tabel10[],3,0)","v":{"$error":"#N/A"}},null,null,null,null,null,null,null,"EUR",null,null,null,{"$error":"#DIV/0!"},0,0,null,"","","","","","","","","","",null,null,null,null,null,null,null,null,null,null,null,null,null,null,6,"None","Parcel","ZWO"]
[null,null,null,null,null,null,null,null,null,null,null,null,null,null,{"$f":"VLOOKUP(N994,Tabel10[[korte omschrijving]:[MCC3_CODE]],2,0)","v":{"$error":"#N/A"}},{"$f":"VLOOKUP(N994,Tabel10[],3,0)","v":{"$error":"#N/A"}},null,null,null,null,null,null,null,"EUR",null,null,null,{"$error":"#DIV/0!"},0,0,null,"","","","","","","","","","",null,null,null,null,null,null,null,null,null,null,null,null,null,null,6,"None","Parcel","ZWO"]
[null,null,null,null,null,null,null,null,null,null,null,null,null,null,{"$f":"VLOOKUP(N995,Tabel10[[korte omschrijving]:[MCC3_CODE]],2,0)","v":{"$error":"#N/A"}},{"$f":"VLOOKUP(N995,Tabel10[],3,0)","v":{"$error":"#N/A"}},null,null,null,null,null,null,null,"EUR",null,null,null,{"$error":"#DIV/0!"},0,0,null,"","","","","","","","","","",null,null,null,null,null,null,null,null,null,null,null,null,null,null,6,"None","Parcel","ZWO"]
[null,null,null,null,null,null,null,null,null,null,null,null,null,null,{"$f":"VLOOKUP(N996,Tabel10[[korte omschrijving]:[MCC3_CODE]],2,0)","v":{"$error":"#N/A"}},{"$f":"VLOOKUP(N996,Tabel10[],3,0)","v":{"$error":"#N/A"}},null,null,null,null,null,null,null,"EUR",null,null,null,{"$error":"#DIV/0!"},0,0,null,"","","","","","","","","","",null,null,null,null,null,null,null,null,null,null,null,null,null,null,6,"None","Parcel","ZWO"]
[null,null,null,null,null,null,null,null,null,null,null,null,null,null,{"$f":"VLOOKUP(N997,Tabel10[[korte omschrijving]:[MCC3_CODE]],2,0)","v":{"$error":"#N/A"}},{"$f":"VLOOKUP(N997,Tabel10[],3,0)","v":{"$error":"#N/A"}},null,null,null,null,null,null,null,"EUR",null,null,null,{"$error":"#DIV/0!"},0,0,null,"","","","","","","","","","",null,null,null,null,null,null,null,null,null,null,null,null,null,null,6,"None","Parcel","ZWO"]
[null,null,null,null,null,null,null,null,null,null,null,null,null,null,{"$f":"VLOOKUP(N998,Tabel10[[korte omschrijving]:[MCC3_CODE]],2,0)","v":{"$error":"#N/A"}},{"$f":"VLOOKUP(N998,Tabel10[],3,0)","v":{"$error":"#N/A"}},null,null,null,null,null,null,null,"EUR",null,null,null,{"$error":"#DIV/0!"},0,0,null,"","","","","","","","","","",null,null,null,null,null,null,null,null,null,null,null,null,null,null,6,"None","Parcel","ZWO"]
[null,null,null,null,null,null,null,null,null,null,null,null,null,null,{"$f":"VLOOKUP(N999,Tabel10[[korte omschrijving]:[MCC3_CODE]],2,0)","v":{"$error":"#N/A"}},{"$f":"VLOOKUP(N999,Tabel10[],3,0)","v":{"$error":"#N/A"}},null,null,null,null,null,null,null,"EUR",null,null,null,{"$error":"#DIV/0!"},0,0,null,"","","","","","","","","","",null,null,null,null,null,null,null,null,null,null,null,null,null,null,6,"None","Parcel","ZWO"]
[null,null,null,null,null,null,null,null,null,null,null,null,null,null,{"$f":"VLOOKUP(N1000,Tabel10[[korte omschrijving]:[MCC3_CODE]],2,0)","v":{"$error":"#N/A"}},{"$f":"VLOOKUP(N1000,Tabel10[],3,0)","v":{"$error":"#N/A"}},null,null,null,null,null,null,null,"EUR",null,null,null,{"$error":"#DIV/0!"},0,0,null,"","","","","","","","","","",null,null,null,null,null,null,null,null,null,null,null,null,null,null,6,"None","Parcel","ZWO"]
[null,null,null,null,null,null,null,null,null,null,null,null,null,null,{"$f":"VLOOKUP(N1001,Tabel10[[korte omschrijving]:[MCC3_CODE]],2,0)","v":{"$error":"#N/A"}},{"$f":"VLOOKUP(N1001,Tabel10[],3,0)","v":{"$error":"#N/A"}},null,null,null,null,null,null,null,"EUR",null,null,null,{"$error":"#DIV/0!"},0,0,null,"","","","","","","","","","",null,null,null,null,null,null,null,null,null,null,null,null,null,null,6,"None","Parcel","ZWO"]
[null,null,null,null,null,null,null,null,null,null,null,null,null,null,{"$f":"VLOOKUP(N1002,Tabel10[[korte omschrijving]:[MCC3_CODE]],2,0)","v":{"$error":"#N/A"}},{"$f":"VLOOKUP(N1002,Tabel10[],3,0)","v":{"$error":"#N/A"}},null,null,null,null,null,null,null,"EUR",null,null,null,{"$error":"#DIV/0!"},0,0,null,"","","","","","","","","","",null,null,null,null,null,null,null,null,null,null,null,null,null,null,6,"None","Parcel","ZWO"]
[null,null,null,null,null,null,null,null,null,null,null,null,null,null,{"$f":"VLOOKUP(N1003,Tabel10[[korte omschrijving]:[MCC3_CODE]],2,0)","v":{"$error":"#N/A"}},{"$f":"VLOOKUP(N1003,Tabel10[],3,0)","v":{"$error":"#N/A"}},null,null,null,null,null,null,null,"EUR",null,null,null,{"$error":"#DIV/0!"},0,0,null,"","","","","","","","","","",null,null,null,null,null,null,null,null,null,null,null,null,null,null,6,"None","Parcel","ZWO"]
[null,null,null,null,null,null,null,null,null,null,null,null,null,null,{"$f":"VLOOKUP(N1004,Tabel10[[korte omschrijving]:[MCC3_CODE]],2,0)","v":{"$error":"#N/A"}},{"$f":"VLOOKUP(N1004,Tabel10[],3,0)","v":{"$error":"#N/A"}},null,null,null,null,null,null,null,"EUR",null,null,null,{"$error":"#DIV/0!"},0,0,null,"","","","","","","","","","",null,null,null,null,null,null,null,null,null,null,null,null,null,null,6,"None","Parcel","ZWO"]
[null,null,null,null,null,null,null,null,null,null,null,null,null,null,{"$f":"VLOOKUP(N1005,Tabel10[[korte omschrijving]:[MCC3_CODE]],2,0)","v":{"$error":"#N/A"}},{"$f":"VLOOKUP(N1005,Tabel10[],3,0)","v":{"$error":"#N/A"}},null,null,null,null,null,null,null,"EUR",null,null,null,{"$error":"#DIV/0!"},0,0,null,"","","","","","","","","","",null,null,null,null,null,null,null,null,null,null,null,null,null,null,6,"None","Parcel","ZWO"]
[null,null,null,null,null,null,null,null,null,null,null,null,null,null,{"$f":"VLOOKUP(N1006,Tabel10[[korte omschrijving]:[MCC3_CODE]],2,0)","v":{"$error":"#N/A"}},{"$f":"VLOOKUP(N1006,Tabel10[],3,0)","v":{"$error":"#N/A"}},null,null,null,null,null,null,null,"EUR",null,null,null,{"$error":"#DIV/0!"},0,0,null,"","","","","","","","","","",null,null,null,null,null,null,null,null,null,null,null,null,null,null,6,"None","Parcel","ZWO"]
[null,null,null,null,null,null,null,null,null,null,null,null,null,null,{"$f":"VLOOKUP(N1007,Tabel10[[korte omschrijving]:[MCC3_CODE]],2,0)","v":{"$error":"#N/A"}},{"$f":"VLOOKUP(N1007,Tabel10[],3,0)","v":{"$error":"#N/A"}},null,null,null,null,null,null,null,"EUR",null,null,null,{"$error":"#DIV/0!"},0,0,null,"","","","","","","","","","",null,null,null,null,null,null,null,null,null,null,null,null,null,null,6,"None","Parcel","ZWO"]
[null,null,null,null,null,null,null,null,null,null,null,null,null,null,{"$f":"VLOOKUP(N1008,Tabel10[[korte omschrijving]:[MCC3_CODE]],2,0)","v":{"$error":"#N/A"}},{"$f":"VLOOKUP(N1008,Tabel10[],3,0)","v":{"$error":"#N/A"}},null,null,null,null,null,null,null,"EUR",null,null,null,{"$error":"#DIV/0!"},0,0,null,"","","","","","","","","","",null,null,null,null,null,null,null,null,null,null,null,null,null,null,6,"None","Parcel","ZWO"]
[null,null,null,null,null,null,null,null,null,null,null,null,null,null,{"$f":"VLOOKUP(N1009,Tabel10[[korte omschrijving]:[MCC3_CODE]],2,0)","v":{"$error":"#N/A"}},{"$f":"VLOOKUP(N1009,Tabel10[],3,0)","v":{"$error":"#N/A"}},null,null,null,null,null,null,null,"EUR",null,null,null,{"$error":"#DIV/0!"},0,0,null,"","","","","","","","","","",null,null,null,null,null,null,null,null,null,null,null,null,null,null,6,"None","Parcel","ZWO"]
[null,null,null,null,null,null,null,null,null,null,null,null,null,null,{"$f":"VLOOKUP(N1010,Tabel10[[korte omschrijving]:[MCC3_CODE]],2,0)","v":{"$error":"#N/A"}},{"$f":"VLOOKUP(N1010,Tabel10[],3,0)","v":{"$error":"#N/A"}},null,null,null,null,null,null,null,"EUR",null,null,null,{"$error":"#DIV/0!"},0,0,null,"","","","","","","","","","",null,null,null,null,null,null,null,null,null,null,null,null,null,null,6,"None","Parcel","ZWO"]
[null,null,null,null,null,null,null,null,null,null,null,null,null,null,{"$f":"VLOOKUP(N1011,Tabel10[[korte omschrijving]:[MCC3_CODE]],2,0)","v":{"$error":"#N/A"}},{"$f":"VLOOKUP(N1011,Tabel10[],3,0)","v":{"$error":"#N/A"}},null,null,null,null,null,null,null,"EUR",null,null,null,{"$error":"#DIV/0!"},0,0,null,"","","","","","","","","","",null,null,null,null,null,null,null,null,null,null,null,null,null,null,6,"None","Parcel","ZWO"]
[null,null,null,null,null,null,null,null,null,null,null,null,null,null,{"$f":"VLOOKUP(N1012,Tabel10[[korte omschrijving]:[MCC3_CODE]],2,0)","v":{"$error":"#N/A"}},{"$f":"VLOOKUP(N1012,Tabel10[],3,0)","v":{"$error":"#N/A"}},null,null,null,null,null,null,null,"EUR",null,null,null,{"$error":"#DIV/0!"},0,0,null,"","","","","","","","","","",null,null,null,null,null,null,null,null,null,null,null,null,null,null,6,"None","Parcel","ZWO"]
[null,null,null,null,null,null,null,null,null,null,null,null,null,null,{"$f":"VLOOKUP(N1013,Tabel10[[korte omschrijving]:[MCC3_CODE]],2,0)","v":{"$error":"#N/A"}},{"$f":"VLOOKUP(N1013,Tabel10[],3,0)","v":{"$error":"#N/A"}},null,null,null,null,null,null,null,"EUR",null,null,null,{"$error":"#DIV/0!"},0,0,null,"","","","","","","","","","",null,null,null,null,null,null,null,null,null,null,null,null,null,null,6,"None","Parcel","ZWO"]
[null,null,null,null,null,null,null,null,null,null,null,null,null,null,{"$f":"VLOOKUP(N1014,Tabel10[[korte omschrijving]:[MCC3_CODE]],2,0)","v":{"$error":"#N/A"}},{"$f":"VLOOKUP(N1014,Tabel10[],3,0)","v":{"$error":"#N/A"}},null,null,null,null,null,null,null,"EUR",null,null,null,{"$error":"#DIV/0!"},0,0,null,"","","","","","","","","","",null,null,null,null,null,null,null,null,null,null,null,null,null,null,6,"None","Parcel","ZWO"]
[null,null,null,null,null,null,null,null,null,null,null,null,null,null,{"$f":"VLOOKUP(N1015,Tabel10[[korte omschrijving]:[MCC3_CODE]],2,0)","v":{"$error":"#N/A"}},{"$f":"VLOOKUP(N1015,Tabel10[],3,0)","v":{"$error":"#N/A"}},null,null,null,null,null,null,null,"EUR",null,null,null,{"$error":"#DIV/0!"},0,0,null,"","","","","","","","","","",null,null,null,null,null,null,null,null,null,null,null,null,null,null,6,"None","Parcel","ZWO"]
[null,null,null,null,null,null,null,null,null,null,null,null,null,null,{"$f":"VLOOKUP(N1016,Tabel10[[korte omschrijving]:[MCC3_CODE]],2,0)","v":{"$error":"#N/A"}},{"$f":"VLOOKUP(N1016,Tabel10[],3,0)","v":{"$error":"#N/A"}},null,null,null,null,null,null,null,"EUR",null,null,null,{"$error":"#DIV/0!"},0,0,null,"","","","","","","","","","",null,null,null,null,null,null,null,null,null,null,null,null,null,null,6,"None","Parcel","ZWO"]
[null,null,null,null,null,null,null,null,null,null,null,null,null,null,{"$f":"VLOOKUP(N1017,Tabel10[[korte omschrijving]:[MCC3_CODE]],2,0)","v":{"$error":"#N/A"}},{"$f":"VLOOKUP(N1017,Tabel10[],3,0)","v":{"$error":"#N/A"}},null,null,null,null,null,null,null,"EUR",null,null,null,{"$error":"#DIV/0!"},0,0,null,"","","","","","","","","","",null,null,null,null,null,null,null,null,null,null,null,null,null,null,6,"None","Parcel","ZWO"]
[null,null,null,null,null,null,null,null,null,null,null,null,null,null,{"$f":"VLOOKUP(N1018,Tabel10[[korte omschrijving]:[MCC3_CODE]],2,0)","v":{"$error":"#N/A"}},{"$f":"VLOOKUP(N1018,Tabel10[],3,0)","v":{"$error":"#N/A"}},null,null,null,null,null,null,null,"EUR",null,null,null,{"$error":"#DIV/0!"},0,0,null,"","","","","","","","","","",null,null,null,null,null,null,null,null,null,null,null,null,null,null,6,"None","Parcel","ZWO"]
[null,null,null,null,null,null,null,null,null,null,null,null,null,null,{"$f":"VLOOKUP(N1019,Tabel10[[korte omschrijving]:[MCC3_CODE]],2,0)","v":{"$error":"#N/A"}},{"$f":"VLOOKUP(N1019,Tabel10[],3,0)","v":{"$error":"#N/A"}},null,null,null,null,null,null,null,"EUR",null,null,null,{"$error":"#DIV/0!"},0,0,null,"","","","","","","","","","",null,null,null,null,null,null,null,null,null,null,null,null,null,null,6,"None","Parcel","ZWO"]
[null,null,null,null,null,null,null,null,null,null,null,null,null,null,{"$f":"VLOOKUP(N1020,Tabel10[[korte omschrijving]:[MCC3_CODE]],2,0)","v":{"$error":"#N/A"}},{"$f":"VLOOKUP(N1020,Tabel10[],3,0)","v":{"$error":"#N/A"}},null,null,null,null,null,null,null,"EUR",null,null,null,{"$error":"#DIV/0!"},0,0,null,"","","","","","","","","","",null,null,null,null,null,null,null,null,null,null,null,null,null,null,6,"None","Parcel","ZWO"]
[null,null,null,null,null,null,null,null,null,null,null,null,null,null,{"$f":"VLOOKUP(N1021,Tabel10[[korte omschrijving]:[MCC3_CODE]],2,0)","v":{"$error":"#N/A"}},{"$f":"VLOOKUP(N1021,Tabel10[],3,0)","v":{"$error":"#N/A"}},null,null,null,null,null,null,null,"EUR",null,null,null,{"$error":"#DIV/0!"},0,0,null,"","","","","","","","","","",null,null,null,null,null,null,null,null,null,null,null,null,null,null,6,"None","Parcel","ZWO"]
[null,null,null,null,null,null,null,null,null,null,null,null,null,null,{"$f":"VLOOKUP(N1022,Tabel10[[korte omschrijving]:[MCC3_CODE]],2,0)","v":{"$error":"#N/A"}},{"$f":"VLOOKUP(N1022,Tabel10[],3,0)","v":{"$error":"#N/A"}},null,null,null,null,null,null,null,"EUR",null,null,null,{"$error":"#DIV/0!"},0,0,null,"","","","","","","","","","",null,null,null,null,null,null,null,null,null,null,null,null,null,null,6,"None","Parcel","ZWO"]
[null,null,null,null,null,null,null,null,null,null,null,null,null,null,{"$f":"VLOOKUP(N1023,Tabel10[[korte omschrijving]:[MCC3_CODE]],2,0)","v":{"$error":"#N/A"}},{"$f":"VLOOKUP(N1023,Tabel10[],3,0)","v":{"$error":"#N/A"}},null,null,null,null,null,null,null,"EUR",null,null,null,{"$error":"#DIV/0!"},0,0,null,"","","","","","","","","","",null,null,null,null,null,null,null,null,null,null,null,null,null,null,6,"None","Parcel","ZWO"]
[null,null,null,null,null,null,null,null,null,null,null,null,null,null,{"$f":"VLOOKUP(N1024,Tabel10[[korte omschrijving]:[MCC3_CODE]],2,0)","v":{"$error":"#N/A"}},{"$f":"VLOOKUP(N1024,Tabel10[],3,0)","v":{"$error":"#N/A"}},null,null,null,null,null,null,null,"EUR",null,null,null,{"$error":"#DIV/0!"},0,0,null,"","","","","","","","","","",null,null,null,null,null,null,null,null,null,null,null,null,null,null,6,"None","Parcel","ZWO"]
[null,null,null,null,null,null,null,null,null,null,null,null,null,null,{"$f":"VLOOKUP(N1025,Tabel10[[korte omschrijving]:[MCC3_CODE]],2,0)","v":{"$error":"#N/A"}},{"$f":"VLOOKUP(N1025,Tabel10[],3,0)","v":{"$error":"#N/A"}},null,null,null,null,null,null,null,"EUR",null,null,null,{"$error":"#DIV/0!"},0,0,null,"","","","","","","","","","",null,null,null,null,null,null,null,null,null,null,null,null,null,null,6,"None","Parcel","ZWO"]
[null,null,null,null,null,null,null,null,null,null,null,null,null,null,{"$f":"VLOOKUP(N1026,Tabel10[[korte omschrijving]:[MCC3_CODE]],2,0)","v":{"$error":"#N/A"}},{"$f":"VLOOKUP(N1026,Tabel10[],3,0)","v":{"$error":"#N/A"}},null,null,null,null,null,null,null,"EUR",null,null,null,{"$error":"#DIV/0!"},0,0,null,"","","","","","","","","","",null,null,null,null,null,null,null,null,null,null,null,null,null,null,6,"None","Parcel","ZWO"]
[null,null,null,null,null,null,null,null,null,null,null,null,null,null,{"$f":"VLOOKUP(N1027,Tabel10[[korte omschrijving]:[MCC3_CODE]],2,0)","v":{"$error":"#N/A"}},{"$f":"VLOOKUP(N1027,Tabel10[],3,0)","v":{"$error":"#N/A"}},null,null,null,null,null,null,null,"EUR",null,null,null,{"$error":"#DIV/0!"},0,0,null,"","","","","","","","","","",null,null,null,null,null,null,null,null,null,null,null,null,null,null,6,"None","Parcel","ZWO"]
[null,null,null,null,null,null,null,null,null,null,null,null,null,null,{"$f":"VLOOKUP(N1028,Tabel10[[korte omschrijving]:[MCC3_CODE]],2,0)","v":{"$error":"#N/A"}},{"$f":"VLOOKUP(N1028,Tabel10[],3,0)","v":{"$error":"#N/A"}},null,null,null,null,null,null,null,"EUR",null,null,null,{"$error":"#DIV/0!"},0,0,null,"","","","","","","","","","",null,null,null,null,null,null,null,null,null,null,null,null,null,null,6,"None","Parcel","ZWO"]
[null,null,null,null,null,null,null,null,null,null,null,null,null,null,{"$f":"VLOOKUP(N1029,Tabel10[[korte omschrijving]:[MCC3_CODE]],2,0)","v":{"$error":"#N/A"}},{"$f":"VLOOKUP(N1029,Tabel10[],3,0)","v":{"$error":"#N/A"}},null,null,null,null,null,null,null,"EUR",null,null,null,{"$error":"#DIV/0!"},0,0,null,"","","","","","","","","","",null,null,null,null,null,null,null,null,null,null,null,null,null,null,6,"None","Parcel","ZWO"]
[null,null,null,null,null,null,null,null,null,null,null,null,null,null,{"$f":"VLOOKUP(N1030,Tabel10[[korte omschrijving]:[MCC3_CODE]],2,0)","v":{"$error":"#N/A"}},{"$f":"VLOOKUP(N1030,Tabel10[],3,0)","v":{"$error":"#N/A"}},null,null,null,null,null,null,null,"EUR",null,null,null,{"$error":"#DIV/0!"},0,0,null,"","","","","","","","","","",null,null,null,null,null,null,null,null,null,null,null,null,null,null,6,"None","Parcel","ZWO"]
[null,null,null,null,null,null,null,null,null,null,null,null,null,null,{"$f":"VLOOKUP(N1031,Tabel10[[korte omschrijving]:[MCC3_CODE]],2,0)","v":{"$error":"#N/A"}},{"$f":"VLOOKUP(N1031,Tabel10[],3,0)","v":{"$error":"#N/A"}},null,null,null,null,null,null,null,"EUR",null,null,null,{"$f":"AA1031/Y1031","v":{"$error":"#DIV/0!"}},{"$f":"T1031*Y1031","v":0},{"$f":"T1031*AA1031","v":0},null,{"$f":"IF(AE1031 <> \"\",\n    IF(ISNUMBER(VALUE(LEFT(AE1031, FIND(\"%\", AE1031)-1))),\n        VALUE(LEFT(AE1031, FIND(\"%\", AE1031)-1)),\n        \"Invalid format\"),\n    \"\")","v":""},{"$f":"IF(AE1031 <> \"\",\n    IF(ISNUMBER(VALUE(LEFT(AE1031, FIND(\"%\", AE1031)-1))) * ISNUMBER(FIND(\"%\", AE1031 & \"wol\")) > 0,\n        TRIM(MID(AE1031, FIND(\"%\", AE1031)+1, FIND(\"/\", AE1031 & \"/\")-FIND(\"%\", AE1031)-1)),\n        \"Invalid format\"),\n    \"\")","v":""},{"$f":"IF(AE1031 <> \"\",\n    IF(ISNUMBER(VALUE(MID(AE1031, FIND(\"/\", AE1031) + 1, FIND(\"%\", AE1031, FIND(\"/\", AE1031)) - FIND(\"/\", AE1031) - 1))),\n        VALUE(MID(AE1031, FIND(\"/\", AE1031) + 1, FIND(\"%\", AE1031, FIND(\"/\", AE1031)) - FIND(\"/\", AE1031) - 1)),\n        \"\"),\n    \"\")","v":""},{"$f":"IF(AE1031 <> \"\",\n    IFERROR(TRIM(MID(AE1031, FIND(\"%\", AE1031, FIND(\"/\", AE1031)+1)+2,\n        IFERROR(FIND(\"/\", AE1031 & \"/\", FIND(\"/\", AE1031)+1)-FIND(\"%\", AE1031, FIND(\"/\", AE1031)+1)-2, LEN(AE1031)-FIND(\"%\", AE1031, FIND(\"/\", AE1031)+1)-1))),\n        \"\"),\n    \"\")","v":""},{"$f":"IF(AE1031 <> \"\",\n    IF(ISNUMBER(VALUE(MID(AE1031, FIND(\"/\", AE1031, FIND(\"/\", AE1031)+1) + 1, FIND(\"%\", AE1031, FIND(\"/\", AE1031, FIND(\"/\", AE1031)+1)) - FIND(\"/\", AE1031, FIND(\"/\", AE1031)+1) - 1))),\n        VALUE(MID(AE1031, FIND(\"/\", AE1031, FIND(\"/\", AE1031)+1) + 1, FIND(\"%\", AE1031, FIND(\"/\", AE1031, FIND(\"/\", AE1031)+1)) - FIND(\"/\", AE1031, FIND(\"/\", AE1031)+1) - 1)),\n        \"\"),\n    \"\")","v":""},{"$f":"IF(AE1031 <> \"\",\n    IFERROR(\n        TRIM(MID(AE1031,\n            FIND(\"%\", AE1031, FIND(\"%\", AE1031, FIND(\"%\", AE1031)+1)+1)+1,\n            FIND(\"/\", AE1031 & \"/\", FIND(\"%\", AE1031, FIND(\"%\", AE1031, FIND(\"%\", AE1031)+1)+1))-FIND(\"%\", AE1031, FIND(\"%\", AE1031, FIND(\"%\", AE1031)+1)+1)-1)\n        ),\n        \"\"\n    ),\n    \"\"\n)","v":""},{"$f":"IF(AE1031 <> \"\",\n    IF(ISNUMBER(VALUE(MID(AE1031, FIND(\"/\", AE1031, FIND(\"/\", AE1031, FIND(\"/\", AE1031)+1)+1) + 1, FIND(\"%\", AE1031, FIND(\"/\", AE1031, FIND(\"/\", AE1031, FIND(\"/\", AE1031)+1)+1)) - FIND(\"/\", AE1031, FIND(\"/\", AE1031, FIND(\"/\", AE1031)+1)+1) - 1))),\n        VALUE(MID(AE1031, FIND(\"/\", AE1031, FIND(\"/\", AE1031, FIND(\"/\", AE1031)+1)+1) + 1, FIND(\"%\", AE1031, FIND(\"/\", AE1031, FIND(\"/\", AE1031, FIND(\"/\", AE1031)+1)+1)) - FIND(\"/\", AE1031, FIND(\"/\", AE1031, FIND(\"/\", AE1031)+1)+1) - 1)),\n        \"\"),\n    \"\")","v":""},{"$f":"IF(AE1031 <> \"\",\n    IFERROR(TRIM(MID(AE1031, FIND(\"%\", AE1031, FIND(\"/\", AE1031, FIND(\"/\", AE1031, FIND(\"/\", AE1031)+1)+1)+1)+2,\n        IFERROR(FIND(\"/\", AE1031, FIND(\"/\", AE1031, FIND(\"/\", AE1031, FIND(\"/\", AE1031)+1)+1)+1)-FIND(\"%\", AE1031, FIND(\"/\", AE1031, FIND(\"/\", AE1031, FIND(\"/\", AE1031)+1)+1)+1)-2, LEN(AE1031)-FIND(\"%\", AE1031, FIND(\"/\", AE1031, FIND(\"/\", AE1031, FIND(\"/\", AE1031)+1)+1)+1)-1))),\n        \"\"),\n    \"\")","v":""},{"$f":"IF(AE1031 <> \"\",\n    IF(ISNUMBER(VALUE(MID(AE1031, FIND(\"/\", AE1031, FIND(\"/\", AE1031, FIND(\"/\", AE1031, FIND(\"/\", AE1031)+1)+1)+1) + 1, FIND(\"%\", AE1031, FIND(\"/\", AE1031, FIND(\"/\", AE1031, FIND(\"/\", AE1031, FIND(\"/\", AE1031)+1)+1)+1)) - FIND(\"/\", AE1031, FIND(\"/\", AE1031, FIND(\"/\", AE1031, FIND(\"/\", AE1031)+1)+1)+1) - 1))),\n        VALUE(MID(AE1031, FIND(\"/\", AE1031, FIND(\"/\", AE1031, FIND(\"/\", AE1031, FIND(\"/\", AE1031)+1)+1)+1) + 1, FIND(\"%\", AE1031, FIND(\"/\", AE1031, FIND(\"/\", AE1031, FIND(\"/\", AE1031, FIND(\"/\", AE1031)+1)+1)+1)) - FIND(\"/\", AE1031, FIND(\"/\", AE1031, FIND(\"/\", AE1031, FIND(\"/\", AE1031)+1)+1)+1) - 1)),\n        \"\"),\n    \"\")","v":""},{"$f":"IF(AE1031 = \"\", \"\",\n    IFERROR(TRIM(\n        MID(\n            AE1031,\n            FIND(\"%\", AE1031, FIND(\"/\", AE1031, FIND(\"/\", AE1031, FIND(\"/\", AE1031, FIND(\"/\", AE1031)+1)+1)+1)+1) + 1,\n            FIND(\"/\", AE1031 & \"/\", FIND(\"%\", AE1031, FIND(\"/\", AE1031, FIND(\"/\", AE1031, FIND(\"/\", AE1031, FIND(\"/\", AE1031)+1)+1)+1)+1)) -\n            FIND(\"%\", AE1031, FIND(\"/\", AE1031, FIND(\"/\", AE1031, FIND(\"/\", AE1031, FIND(\"/\", AE1031)+1)+1)+1)+1) - 1\n        )\n    ),\n    \"\")\n)","v":""},null,null,null,null,null,null,null,null,null,null,null,null,null,null,6,"None","Parcel","ZWO"]
[null,null,null,null,null,null,null,null,null,null,null,null,null,null,{"$f":"VLOOKUP(N1032,Tabel10[[korte omschrijving]:[MCC3_CODE]],2,0)","v":{"$error":"#N/A"}},{"$f":"VLOOKUP(N1032,Tabel10[],3,0)","v":{"$error":"#N/A"}},null,null,null,null,null,null,null,"EUR",null,null,null,{"$error":"#DIV/0!"},0,0,null,"","","","","","","","","","",null,null,null,null,null,null,null,null,null,null,null,null,null,null,6,"None","Parcel","ZWO"]
[null,null,null,null,null,null,null,null,null,null,null,null,null,null,{"$f":"VLOOKUP(N1033,Tabel10[[korte omschrijving]:[MCC3_CODE]],2,0)","v":{"$error":"#N/A"}},{"$f":"VLOOKUP(N1033,Tabel10[],3,0)","v":{"$error":"#N/A"}},null,null,null,null,null,null,null,"EUR",null,null,null,{"$error":"#DIV/0!"},0,0,null,"","","","","","","","","","",null,null,null,null,null,null,null,null,null,null,null,null,null,null,6,"None","Parcel","ZWO"]
[null,null,null,null,null,null,null,null,null,null,null,null,null,null,{"$f":"VLOOKUP(N1034,Tabel10[[korte omschrijving]:[MCC3_CODE]],2,0)","v":{"$error":"#N/A"}},{"$f":"VLOOKUP(N1034,Tabel10[],3,0)","v":{"$error":"#N/A"}},null,null,null,null,null,null,null,"EUR",null,null,null,{"$error":"#DIV/0!"},0,0,null,"","","","","","","","","","",null,null,null,null,null,null,null,null,null,null,null,null,null,null,6,"None","Parcel","ZWO"]
[null,null,null,null,null,null,null,null,null,null,null,null,null,null,{"$f":"VLOOKUP(N1035,Tabel10[[korte omschrijving]:[MCC3_CODE]],2,0)","v":{"$error":"#N/A"}},{"$f":"VLOOKUP(N1035,Tabel10[],3,0)","v":{"$error":"#N/A"}},null,null,null,null,null,null,null,"EUR",null,null,null,{"$error":"#DIV/0!"},0,0,null,"","","","","","","","","","",null,null,null,null,null,null,null,null,null,null,null,null,null,null,6,"None","Parcel","ZWO"]
[null,null,null,null,null,null,null,null,null,null,null,null,null,null,{"$f":"VLOOKUP(N1036,Tabel10[[korte omschrijving]:[MCC3_CODE]],2,0)","v":{"$error":"#N/A"}},{"$f":"VLOOKUP(N1036,Tabel10[],3,0)","v":{"$error":"#N/A"}},null,null,null,null,null,null,null,"EUR",null,null,null,{"$error":"#DIV/0!"},0,0,null,"","","","","","","","","","",null,null,null,null,null,null,null,null,null,null,null,null,null,null,6,"None","Parcel","ZWO"]
[null,null,null,null,null,null,null,null,null,null,null,null,null,null,{"$f":"VLOOKUP(N1037,Tabel10[[korte omschrijving]:[MCC3_CODE]],2,0)","v":{"$error":"#N/A"}},{"$f":"VLOOKUP(N1037,Tabel10[],3,0)","v":{"$error":"#N/A"}},null,null,null,null,null,null,null,"EUR",null,null,null,{"$error":"#DIV/0!"},0,0,null,"","","","","","","","","","",null,null,null,null,null,null,null,null,null,null,null,null,null,null,6,"None","Parcel","ZWO"]
[null,null,null,null,null,null,null,null,null,null,null,null,null,null,{"$f":"VLOOKUP(N1038,Tabel10[[korte omschrijving]:[MCC3_CODE]],2,0)","v":{"$error":"#N/A"}},{"$f":"VLOOKUP(N1038,Tabel10[],3,0)","v":{"$error":"#N/A"}},null,null,null,null,null,null,null,"EUR",null,null,null,{"$error":"#DIV/0!"},0,0,null,"","","","","","","","","","",null,null,null,null,null,null,null,null,null,null,null,null,null,null,6,"None","Parcel","ZWO"]
[null,null,null,null,null,null,null,null,null,null,null,null,null,null,{"$f":"VLOOKUP(N1039,Tabel10[[korte omschrijving]:[MCC3_CODE]],2,0)","v":{"$error":"#N/A"}},{"$f":"VLOOKUP(N1039,Tabel10[],3,0)","v":{"$error":"#N/A"}},null,null,null,null,null,null,null,"EUR",null,null,null,{"$error":"#DIV/0!"},0,0,null,"","","","","","","","","","",null,null,null,null,null,null,null,null,null,null,null,null,null,null,6,"None","Parcel","ZWO"]
[null,null,null,null,null,null,null,null,null,null,null,null,null,null,{"$f":"VLOOKUP(N1040,Tabel10[[korte omschrijving]:[MCC3_CODE]],2,0)","v":{"$error":"#N/A"}},{"$f":"VLOOKUP(N1040,Tabel10[],3,0)","v":{"$error":"#N/A"}},null,null,null,null,null,null,null,"EUR",null,null,null,{"$error":"#DIV/0!"},0,0,null,"","","","","","","","","","",null,null,null,null,null,null,null,null,null,null,null,null,null,null,6,"None","Parcel","ZWO"]
[null,null,null,null,null,null,null,null,null,null,null,null,null,null,{"$f":"VLOOKUP(N1041,Tabel10[[korte omschrijving]:[MCC3_CODE]],2,0)","v":{"$error":"#N/A"}},{"$f":"VLOOKUP(N1041,Tabel10[],3,0)","v":{"$error":"#N/A"}},null,null,null,null,null,null,null,"EUR",null,null,null,{"$error":"#DIV/0!"},0,0,null,"","","","","","","","","","",null,null,null,null,null,null,null,null,null,null,null,null,null,null,6,"None","Parcel","ZWO"]
[null,null,null,null,null,null,null,null,null,null,null,null,null,null,{"$f":"VLOOKUP(N1042,Tabel10[[korte omschrijving]:[MCC3_CODE]],2,0)","v":{"$error":"#N/A"}},{"$f":"VLOOKUP(N1042,Tabel10[],3,0)","v":{"$error":"#N/A"}},null,null,null,null,null,null,null,"EUR",null,null,null,{"$error":"#DIV/0!"},0,0,null,"","","","","","","","","","",null,null,null,null,null,null,null,null,null,null,null,null,null,null,6,"None","Parcel","ZWO"]
[null,null,null,null,null,null,null,null,null,null,null,null,null,null,{"$f":"VLOOKUP(N1043,Tabel10[[korte omschrijving]:[MCC3_CODE]],2,0)","v":{"$error":"#N/A"}},{"$f":"VLOOKUP(N1043,Tabel10[],3,0)","v":{"$error":"#N/A"}},null,null,null,null,null,null,null,"EUR",null,null,null,{"$error":"#DIV/0!"},0,0,null,"","","","","","","","","","",null,null,null,null,null,null,null,null,null,null,null,null,null,null,6,"None","Parcel","ZWO"]
[null,null,null,null,null,null,null,null,null,null,null,null,null,null,{"$f":"VLOOKUP(N1044,Tabel10[[korte omschrijving]:[MCC3_CODE]],2,0)","v":{"$error":"#N/A"}},{"$f":"VLOOKUP(N1044,Tabel10[],3,0)","v":{"$error":"#N/A"}},null,null,null,null,null,null,null,"EUR",null,null,null,{"$error":"#DIV/0!"},0,0,null,"","","","","","","","","","",null,null,null,null,null,null,null,null,null,null,null,null,null,null,6,"None","Parcel","ZWO"]
[null,null,null,null,null,null,null,null,null,null,null,null,null,null,{"$f":"VLOOKUP(N1045,Tabel10[[korte omschrijving]:[MCC3_CODE]],2,0)","v":{"$error":"#N/A"}},{"$f":"VLOOKUP(N1045,Tabel10[],3,0)","v":{"$error":"#N/A"}},null,null,null,null,null,null,null,"EUR",null,null,null,{"$error":"#DIV/0!"},0,0,null,"","","","","","","","","","",null,null,null,null,null,null,null,null,null,null,null,null,null,null,6,"None","Parcel","ZWO"]
[null,null,null,null,null,null,null,null,null,null,null,null,null,null,{"$f":"VLOOKUP(N1046,Tabel10[[korte omschrijving]:[MCC3_CODE]],2,0)","v":{"$error":"#N/A"}},{"$f":"VLOOKUP(N1046,Tabel10[],3,0)","v":{"$error":"#N/A"}},null,null,null,null,null,null,null,"EUR",null,null,null,{"$error":"#DIV/0!"},0,0,null,"","","","","","","","","","",null,null,null,null,null,null,null,null,null,null,null,null,null,null,6,"None","Parcel","ZWO"]
[null,null,null,null,null,null,null,null,null,null,null,null,null,null,{"$f":"VLOOKUP(N1047,Tabel10[[korte omschrijving]:[MCC3_CODE]],2,0)","v":{"$error":"#N/A"}},{"$f":"VLOOKUP(N1047,Tabel10[],3,0)","v":{"$error":"#N/A"}},null,null,null,null,null,null,null,"EUR",null,null,null,{"$error":"#DIV/0!"},0,0,null,"","","","","","","","","","",null,null,null,null,null,null,null,null,null,null,null,null,null,null,6,"None","Parcel","ZWO"]
[null,null,null,null,null,null,null,null,null,null,null,null,null,null,{"$f":"VLOOKUP(N1048,Tabel10[[korte omschrijving]:[MCC3_CODE]],2,0)","v":{"$error":"#N/A"}},{"$f":"VLOOKUP(N1048,Tabel10[],3,0)","v":{"$error":"#N/A"}},null,null,null,null,null,null,null,"EUR",null,null,null,{"$error":"#DIV/0!"},0,0,null,"","","","","","","","","","",null,null,null,null,null,null,null,null,null,null,null,null,null,null,6,"None","Parcel","ZWO"]
[null,null,null,null,null,null,null,null,null,null,null,null,null,null,{"$f":"VLOOKUP(N1049,Tabel10[[korte omschrijving]:[MCC3_CODE]],2,0)","v":{"$error":"#N/A"}},{"$f":"VLOOKUP(N1049,Tabel10[],3,0)","v":{"$error":"#N/A"}},null,null,null,null,null,null,null,"EUR",null,null,null,{"$error":"#DIV/0!"},0,0,null,"","","","","","","","","","",null,null,null,null,null,null,null,null,null,null,null,null,null,null,6,"None","Parcel","ZWO"]
[null,null,null,null,null,null,null,null,null,null,null,null,null,null,{"$f":"VLOOKUP(N1050,Tabel10[[korte omschrijving]:[MCC3_CODE]],2,0)","v":{"$error":"#N/A"}},{"$f":"VLOOKUP(N1050,Tabel10[],3,0)","v":{"$error":"#N/A"}},null,null,null,null,null,null,null,"EUR",null,null,null,{"$error":"#DIV/0!"},0,0,null,"","","","","","","","","","",null,null,null,null,null,null,null,null,null,null,null,null,null,null,6,"None","Parcel","ZWO"]
[null,null,null,null,null,null,null,null,null,null,null,null,null,null,{"$f":"VLOOKUP(N1051,Tabel10[[korte omschrijving]:[MCC3_CODE]],2,0)","v":{"$error":"#N/A"}},{"$f":"VLOOKUP(N1051,Tabel10[],3,0)","v":{"$error":"#N/A"}},null,null,null,null,null,null,null,"EUR",null,null,null,{"$error":"#DIV/0!"},0,0,null,"","","","","","","","","","",null,null,null,null,null,null,null,null,null,null,null,null,null,null,6,"None","Parcel","ZWO"]
[null,null,null,null,null,null,null,null,null,null,null,null,null,null,{"$f":"VLOOKUP(N1052,Tabel10[[korte omschrijving]:[MCC3_CODE]],2,0)","v":{"$error":"#N/A"}},{"$f":"VLOOKUP(N1052,Tabel10[],3,0)","v":{"$error":"#N/A"}},null,null,null,null,null,null,null,"EUR",null,null,null,{"$error":"#DIV/0!"},0,0,null,"","","","","","","","","","",null,null,null,null,null,null,null,null,null,null,null,null,null,null,6,"None","Parcel","ZWO"]
[null,null,null,null,null,null,null,null,null,null,null,null,null,null,{"$f":"VLOOKUP(N1053,Tabel10[[korte omschrijving]:[MCC3_CODE]],2,0)","v":{"$error":"#N/A"}},{"$f":"VLOOKUP(N1053,Tabel10[],3,0)","v":{"$error":"#N/A"}},null,null,null,null,null,null,null,"EUR",null,null,null,{"$error":"#DIV/0!"},0,0,null,"","","","","","","","","","",null,null,null,null,null,null,null,null,null,null,null,null,null,null,6,"None","Parcel","ZWO"]
[null,null,null,null,null,null,null,null,null,null,null,null,null,null,{"$f":"VLOOKUP(N1054,Tabel10[[korte omschrijving]:[MCC3_CODE]],2,0)","v":{"$error":"#N/A"}},{"$f":"VLOOKUP(N1054,Tabel10[],3,0)","v":{"$error":"#N/A"}},null,null,null,null,null,null,null,"EUR",null,null,null,{"$error":"#DIV/0!"},0,0,null,"","","","","","","","","","",null,null,null,null,null,null,null,null,null,null,null,null,null,null,6,"None","Parcel","ZWO"]
[null,null,null,null,null,null,null,null,null,null,null,null,null,null,{"$f":"VLOOKUP(N1055,Tabel10[[korte omschrijving]:[MCC3_CODE]],2,0)","v":{"$error":"#N/A"}},{"$f":"VLOOKUP(N1055,Tabel10[],3,0)","v":{"$error":"#N/A"}},null,null,null,null,null,null,null,"EUR",null,null,null,{"$error":"#DIV/0!"},0,0,null,"","","","","","","","","","",null,null,null,null,null,null,null,null,null,null,null,null,null,null,6,"None","Parcel","ZWO"]
[null,null,null,null,null,null,null,null,null,null,null,null,null,null,{"$f":"VLOOKUP(N1056,Tabel10[[korte omschrijving]:[MCC3_CODE]],2,0)","v":{"$error":"#N/A"}},{"$f":"VLOOKUP(N1056,Tabel10[],3,0)","v":{"$error":"#N/A"}},null,null,null,null,null,null,null,"EUR",null,null,null,{"$error":"#DIV/0!"},0,0,null,"","","","","","","","","","",null,null,null,null,null,null,null,null,null,null,null,null,null,null,6,"None","Parcel","ZWO"]
[null,null,null,null,null,null,null,null,null,null,null,null,null,null,{"$f":"VLOOKUP(N1057,Tabel10[[korte omschrijving]:[MCC3_CODE]],2,0)","v":{"$error":"#N/A"}},{"$f":"VLOOKUP(N1057,Tabel10[],3,0)","v":{"$error":"#N/A"}},null,null,null,null,null,null,null,"EUR",null,null,null,{"$error":"#DIV/0!"},0,0,null,"","","","","","","","","","",null,null,null,null,null,null,null,null,null,null,null,null,null,null,6,"None","Parcel","ZWO"]
[null,null,null,null,null,null,null,null,null,null,null,null,null,null,{"$f":"VLOOKUP(N1058,Tabel10[[korte omschrijving]:[MCC3_CODE]],2,0)","v":{"$error":"#N/A"}},{"$f":"VLOOKUP(N1058,Tabel10[],3,0)","v":{"$error":"#N/A"}},null,null,null,null,null,null,null,"EUR",null,null,null,{"$error":"#DIV/0!"},0,0,null,"","","","","","","","","","",null,null,null,null,null,null,null,null,null,null,null,null,null,null,6,"None","Parcel","ZWO"]
[null,null,null,null,null,null,null,null,null,null,null,null,null,null,{"$f":"VLOOKUP(N1059,Tabel10[[korte omschrijving]:[MCC3_CODE]],2,0)","v":{"$error":"#N/A"}},{"$f":"VLOOKUP(N1059,Tabel10[],3,0)","v":{"$error":"#N/A"}},null,null,null,null,null,null,null,"EUR",null,null,null,{"$error":"#DIV/0!"},0,0,null,"","","","","","","","","","",null,null,null,null,null,null,null,null,null,null,null,null,null,null,6,"None","Parcel","ZWO"]
[null,null,null,null,null,null,null,null,null,null,null,null,null,null,{"$f":"VLOOKUP(N1060,Tabel10[[korte omschrijving]:[MCC3_CODE]],2,0)","v":{"$error":"#N/A"}},{"$f":"VLOOKUP(N1060,Tabel10[],3,0)","v":{"$error":"#N/A"}},null,null,null,null,null,null,null,"EUR",null,null,null,{"$error":"#DIV/0!"},0,0,null,"","","","","","","","","","",null,null,null,null,null,null,null,null,null,null,null,null,null,null,6,"None","Parcel","ZWO"]
[null,null,null,null,null,null,null,null,null,null,null,null,null,null,{"$f":"VLOOKUP(N1061,Tabel10[[korte omschrijving]:[MCC3_CODE]],2,0)","v":{"$error":"#N/A"}},{"$f":"VLOOKUP(N1061,Tabel10[],3,0)","v":{"$error":"#N/A"}},null,null,null,null,null,null,null,"EUR",null,null,null,{"$error":"#DIV/0!"},0,0,null,"","","","","","","","","","",null,null,null,null,null,null,null,null,null,null,null,null,null,null,6,"None","Parcel","ZWO"]
[null,null,null,null,null,null,null,null,null,null,null,null,null,null,{"$f":"VLOOKUP(N1062,Tabel10[[korte omschrijving]:[MCC3_CODE]],2,0)","v":{"$error":"#N/A"}},{"$f":"VLOOKUP(N1062,Tabel10[],3,0)","v":{"$error":"#N/A"}},null,null,null,null,null,null,null,"EUR",null,null,null,{"$error":"#DIV/0!"},0,0,null,"","","","","","","","","","",null,null,null,null,null,null,null,null,null,null,null,null,null,null,6,"None","Parcel","ZWO"]
[null,null,null,null,null,null,null,null,null,null,null,null,null,null,{"$f":"VLOOKUP(N1063,Tabel10[[korte omschrijving]:[MCC3_CODE]],2,0)","v":{"$error":"#N/A"}},{"$f":"VLOOKUP(N1063,Tabel10[],3,0)","v":{"$error":"#N/A"}},null,null,null,null,null,null,null,"EUR",null,null,null,{"$error":"#DIV/0!"},0,0,null,"","","","","","","","","","",null,null,null,null,null,null,null,null,null,null,null,null,null,null,6,"None","Parcel","ZWO"]
[null,null,null,null,null,null,null,null,null,null,null,null,null,null,{"$f":"VLOOKUP(N1064,Tabel10[[korte omschrijving]:[MCC3_CODE]],2,0)","v":{"$error":"#N/A"}},{"$f":"VLOOKUP(N1064,Tabel10[],3,0)","v":{"$error":"#N/A"}},null,null,null,null,null,null,null,"EUR",null,null,null,{"$error":"#DIV/0!"},0,0,null,"","","","","","","","","","",null,null,null,null,null,null,null,null,null,null,null,null,null,null,6,"None","Parcel","ZWO"]
[null,null,null,null,null,null,null,null,null,null,null,null,null,null,{"$f":"VLOOKUP(N1065,Tabel10[[korte omschrijving]:[MCC3_CODE]],2,0)","v":{"$error":"#N/A"}},{"$f":"VLOOKUP(N1065,Tabel10[],3,0)","v":{"$error":"#N/A"}},null,null,null,null,null,null,null,"EUR",null,null,null,{"$error":"#DIV/0!"},0,0,null,"","","","","","","","","","",null,null,null,null,null,null,null,null,null,null,null,null,null,null,6,"None","Parcel","ZWO"]
[null,null,null,null,null,null,null,null,null,null,null,null,null,null,{"$f":"VLOOKUP(N1066,Tabel10[[korte omschrijving]:[MCC3_CODE]],2,0)","v":{"$error":"#N/A"}},{"$f":"VLOOKUP(N1066,Tabel10[],3,0)","v":{"$error":"#N/A"}},null,null,null,null,null,null,null,"EUR",null,null,null,{"$error":"#DIV/0!"},0,0,null,"","","","","","","","","","",null,null,null,null,null,null,null,null,null,null,null,null,null,null,6,"None","Parcel","ZWO"]
[null,null,null,null,null,null,null,null,null,null,null,null,null,null,{"$f":"VLOOKUP(N1067,Tabel10[[korte omschrijving]:[MCC3_CODE]],2,0)","v":{"$error":"#N/A"}},{"$f":"VLOOKUP(N1067,Tabel10[],3,0)","v":{"$error":"#N/A"}},null,null,null,null,null,null,null,"EUR",null,null,null,{"$error":"#DIV/0!"},0,0,null,"","","","","","","","","","",null,null,null,null,null,null,null,null,null,null,null,null,null,null,6,"None","Parcel","ZWO"]
[null,null,null,null,null,null,null,null,null,null,null,null,null,null,{"$f":"VLOOKUP(N1068,Tabel10[[korte omschrijving]:[MCC3_CODE]],2,0)","v":{"$error":"#N/A"}},{"$f":"VLOOKUP(N1068,Tabel10[],3,0)","v":{"$error":"#N/A"}},null,null,null,null,null,null,null,"EUR",null,null,null,{"$error":"#DIV/0!"},0,0,null,"","","","","","","","","","",null,null,null,null,null,null,null,null,null,null,null,null,null,null,6,"None","Parcel","ZWO"]
[null,null,null,null,null,null,null,null,null,null,null,null,null,null,{"$f":"VLOOKUP(N1069,Tabel10[[korte omschrijving]:[MCC3_CODE]],2,0)","v":{"$error":"#N/A"}},{"$f":"VLOOKUP(N1069,Tabel10[],3,0)","v":{"$error":"#N/A"}},null,null,null,null,null,null,null,"EUR",null,null,null,{"$error":"#DIV/0!"},0,0,null,"","","","","","","","","","",null,null,null,null,null,null,null,null,null,null,null,null,null,null,6,"None","Parcel","ZWO"]
[null,null,null,null,null,null,null,null,null,null,null,null,null,null,{"$f":"VLOOKUP(N1070,Tabel10[[korte omschrijving]:[MCC3_CODE]],2,0)","v":{"$error":"#N/A"}},{"$f":"VLOOKUP(N1070,Tabel10[],3,0)","v":{"$error":"#N/A"}},null,null,null,null,null,null,null,"EUR",null,null,null,{"$error":"#DIV/0!"},0,0,null,"","","","","","","","","","",null,null,null,null,null,null,null,null,null,null,null,null,null,null,6,"None","Parcel","ZWO"]
[null,null,null,null,null,null,null,null,null,null,null,null,null,null,{"$f":"VLOOKUP(N1071,Tabel10[[korte omschrijving]:[MCC3_CODE]],2,0)","v":{"$error":"#N/A"}},{"$f":"VLOOKUP(N1071,Tabel10[],3,0)","v":{"$error":"#N/A"}},null,null,null,null,null,null,null,"EUR",null,null,null,{"$error":"#DIV/0!"},0,0,null,"","","","","","","","","","",null,null,null,null,null,null,null,null,null,null,null,null,null,null,6,"None","Parcel","ZWO"]
[null,null,null,null,null,null,null,null,null,null,null,null,null,null,{"$f":"VLOOKUP(N1072,Tabel10[[korte omschrijving]:[MCC3_CODE]],2,0)","v":{"$error":"#N/A"}},{"$f":"VLOOKUP(N1072,Tabel10[],3,0)","v":{"$error":"#N/A"}},null,null,null,null,null,null,null,"EUR",null,null,null,{"$error":"#DIV/0!"},0,0,null,"","","","","","","","","","",null,null,null,null,null,null,null,null,null,null,null,null,null,null,6,"None","Parcel","ZWO"]
[null,null,null,null,null,null,null,null,null,null,null,null,null,null,{"$f":"VLOOKUP(N1073,Tabel10[[korte omschrijving]:[MCC3_CODE]],2,0)","v":{"$error":"#N/A"}},{"$f":"VLOOKUP(N1073,Tabel10[],3,0)","v":{"$error":"#N/A"}},null,null,null,null,null,null,null,"EUR",null,null,null,{"$error":"#DIV/0!"},0,0,null,"","","","","","","","","","",null,null,null,null,null,null,null,null,null,null,null,null,null,null,6,"None","Parcel","ZWO"]
[null,null,null,null,null,null,null,null,null,null,null,null,null,null,{"$f":"VLOOKUP(N1074,Tabel10[[korte omschrijving]:[MCC3_CODE]],2,0)","v":{"$error":"#N/A"}},{"$f":"VLOOKUP(N1074,Tabel10[],3,0)","v":{"$error":"#N/A"}},null,null,null,null,null,null,null,"EUR",null,null,null,{"$error":"#DIV/0!"},0,0,null,"","","","","","","","","","",null,null,null,null,null,null,null,null,null,null,null,null,null,null,6,"None","Parcel","ZWO"]
[null,null,null,null,null,null,null,null,null,null,null,null,null,null,{"$f":"VLOOKUP(N1075,Tabel10[[korte omschrijving]:[MCC3_CODE]],2,0)","v":{"$error":"#N/A"}},{"$f":"VLOOKUP(N1075,Tabel10[],3,0)","v":{"$error":"#N/A"}},null,null,null,null,null,null,null,"EUR",null,null,null,{"$error":"#DIV/0!"},0,0,null,"","","","","","","","","","",null,null,null,null,null,null,null,null,null,null,null,null,null,null,6,"None","Parcel","ZWO"]
[null,null,null,null,null,null,null,null,null,null,null,null,null,null,{"$f":"VLOOKUP(N1076,Tabel10[[korte omschrijving]:[MCC3_CODE]],2,0)","v":{"$error":"#N/A"}},{"$f":"VLOOKUP(N1076,Tabel10[],3,0)","v":{"$error":"#N/A"}},null,null,null,null,null,null,null,"EUR",null,null,null,{"$error":"#DIV/0!"},0,0,null,"","","","","","","","","","",null,null,null,null,null,null,null,null,null,null,null,null,null,null,6,"None","Parcel","ZWO"]
[null,null,null,null,null,null,null,null,null,null,null,null,null,null,{"$f":"VLOOKUP(N1077,Tabel10[[korte omschrijving]:[MCC3_CODE]],2,0)","v":{"$error":"#N/A"}},{"$f":"VLOOKUP(N1077,Tabel10[],3,0)","v":{"$error":"#N/A"}},null,null,null,null,null,null,null,"EUR",null,null,null,{"$error":"#DIV/0!"},0,0,null,"","","","","","","","","","",null,null,null,null,null,null,null,null,null,null,null,null,null,null,6,"None","Parcel","ZWO"]
[null,null,null,null,null,null,null,null,null,null,null,null,null,null,{"$f":"VLOOKUP(N1078,Tabel10[[korte omschrijving]:[MCC3_CODE]],2,0)","v":{"$error":"#N/A"}},{"$f":"VLOOKUP(N1078,Tabel10[],3,0)","v":{"$error":"#N/A"}},null,null,null,null,null,null,null,"EUR",null,null,null,{"$error":"#DIV/0!"},0,0,null,"","","","","","","","","","",null,null,null,null,null,null,null,null,null,null,null,null,null,null,6,"None","Parcel","ZWO"]
[null,null,null,null,null,null,null,null,null,null,null,null,null,null,{"$f":"VLOOKUP(N1079,Tabel10[[korte omschrijving]:[MCC3_CODE]],2,0)","v":{"$error":"#N/A"}},{"$f":"VLOOKUP(N1079,Tabel10[],3,0)","v":{"$error":"#N/A"}},null,null,null,null,null,null,null,"EUR",null,null,null,{"$error":"#DIV/0!"},0,0,null,"","","","","","","","","","",null,null,null,null,null,null,null,null,null,null,null,null,null,null,6,"None","Parcel","ZWO"]
[null,null,null,null,null,null,null,null,null,null,null,null,null,null,{"$f":"VLOOKUP(N1080,Tabel10[[korte omschrijving]:[MCC3_CODE]],2,0)","v":{"$error":"#N/A"}},{"$f":"VLOOKUP(N1080,Tabel10[],3,0)","v":{"$error":"#N/A"}},null,null,null,null,null,null,null,"EUR",null,null,null,{"$error":"#DIV/0!"},0,0,null,"","","","","","","","","","",null,null,null,null,null,null,null,null,null,null,null,null,null,null,6,"None","Parcel","ZWO"]
[null,null,null,null,null,null,null,null,null,null,null,null,null,null,{"$f":"VLOOKUP(N1081,Tabel10[[korte omschrijving]:[MCC3_CODE]],2,0)","v":{"$error":"#N/A"}},{"$f":"VLOOKUP(N1081,Tabel10[],3,0)","v":{"$error":"#N/A"}},null,null,null,null,null,null,null,"EUR",null,null,null,{"$error":"#DIV/0!"},0,0,null,"","","","","","","","","","",null,null,null,null,null,null,null,null,null,null,null,null,null,null,6,"None","Parcel","ZWO"]
[null,null,null,null,null,null,null,null,null,null,null,null,null,null,{"$f":"VLOOKUP(N1082,Tabel10[[korte omschrijving]:[MCC3_CODE]],2,0)","v":{"$error":"#N/A"}},{"$f":"VLOOKUP(N1082,Tabel10[],3,0)","v":{"$error":"#N/A"}},null,null,null,null,null,null,null,"EUR",null,null,null,{"$error":"#DIV/0!"},0,0,null,"","","","","","","","","","",null,null,null,null,null,null,null,null,null,null,null,null,null,null,6,"None","Parcel","ZWO"]
[null,null,null,null,null,null,null,null,null,null,null,null,null,null,{"$f":"VLOOKUP(N1083,Tabel10[[korte omschrijving]:[MCC3_CODE]],2,0)","v":{"$error":"#N/A"}},{"$f":"VLOOKUP(N1083,Tabel10[],3,0)","v":{"$error":"#N/A"}},null,null,null,null,null,null,null,"EUR",null,null,null,{"$error":"#DIV/0!"},0,0,null,"","","","","","","","","","",null,null,null,null,null,null,null,null,null,null,null,null,null,null,6,"None","Parcel","ZWO"]
[null,null,null,null,null,null,null,null,null,null,null,null,null,null,{"$f":"VLOOKUP(N1084,Tabel10[[korte omschrijving]:[MCC3_CODE]],2,0)","v":{"$error":"#N/A"}},{"$f":"VLOOKUP(N1084,Tabel10[],3,0)","v":{"$error":"#N/A"}},null,null,null,null,null,null,null,"EUR",null,null,null,{"$error":"#DIV/0!"},0,0,null,"","","","","","","","","","",null,null,null,null,null,null,null,null,null,null,null,null,null,null,6,"None","Parcel","ZWO"]
[null,null,null,null,null,null,null,null,null,null,null,null,null,null,{"$f":"VLOOKUP(N1085,Tabel10[[korte omschrijving]:[MCC3_CODE]],2,0)","v":{"$error":"#N/A"}},{"$f":"VLOOKUP(N1085,Tabel10[],3,0)","v":{"$error":"#N/A"}},null,null,null,null,null,null,null,"EUR",null,null,null,{"$error":"#DIV/0!"},0,0,null,"","","","","","","","","","",null,null,null,null,null,null,null,null,null,null,null,null,null,null,6,"None","Parcel","ZWO"]
[null,null,null,null,null,null,null,null,null,null,null,null,null,null,{"$f":"VLOOKUP(N1086,Tabel10[[korte omschrijving]:[MCC3_CODE]],2,0)","v":{"$error":"#N/A"}},{"$f":"VLOOKUP(N1086,Tabel10[],3,0)","v":{"$error":"#N/A"}},null,null,null,null,null,null,null,"EUR",null,null,null,{"$error":"#DIV/0!"},0,0,null,"","","","","","","","","","",null,null,null,null,null,null,null,null,null,null,null,null,null,null,6,"None","Parcel","ZWO"]
[null,null,null,null,null,null,null,null,null,null,null,null,null,null,{"$f":"VLOOKUP(N1087,Tabel10[[korte omschrijving]:[MCC3_CODE]],2,0)","v":{"$error":"#N/A"}},{"$f":"VLOOKUP(N1087,Tabel10[],3,0)","v":{"$error":"#N/A"}},null,null,null,null,null,null,null,"EUR",null,null,null,{"$error":"#DIV/0!"},0,0,null,"","","","","","","","","","",null,null,null,null,null,null,null,null,null,null,null,null,null,null,6,"None","Parcel","ZWO"]
[null,null,null,null,null,null,null,null,null,null,null,null,null,null,{"$f":"VLOOKUP(N1088,Tabel10[[korte omschrijving]:[MCC3_CODE]],2,0)","v":{"$error":"#N/A"}},{"$f":"VLOOKUP(N1088,Tabel10[],3,0)","v":{"$error":"#N/A"}},null,null,null,null,null,null,null,"EUR",null,null,null,{"$error":"#DIV/0!"},0,0,null,"","","","","","","","","","",null,null,null,null,null,null,null,null,null,null,null,null,null,null,6,"None","Parcel","ZWO"]
[null,null,null,null,null,null,null,null,null,null,null,null,null,null,{"$f":"VLOOKUP(N1089,Tabel10[[korte omschrijving]:[MCC3_CODE]],2,0)","v":{"$error":"#N/A"}},{"$f":"VLOOKUP(N1089,Tabel10[],3,0)","v":{"$error":"#N/A"}},null,null,null,null,null,null,null,"EUR",null,null,null,{"$error":"#DIV/0!"},0,0,null,"","","","","","","","","","",null,null,null,null,null,null,null,null,null,null,null,null,null,null,6,"None","Parcel","ZWO"]
[null,null,null,null,null,null,null,null,null,null,null,null,null,null,{"$f":"VLOOKUP(N1090,Tabel10[[korte omschrijving]:[MCC3_CODE]],2,0)","v":{"$error":"#N/A"}},{"$f":"VLOOKUP(N1090,Tabel10[],3,0)","v":{"$error":"#N/A"}},null,null,null,null,null,null,null,"EUR",null,null,null,{"$error":"#DIV/0!"},0,0,null,"","","","","","","","","","",null,null,null,null,null,null,null,null,null,null,null,null,null,null,6,"None","Parcel","ZWO"]
[null,null,null,null,null,null,null,null,null,null,null,null,null,null,{"$f":"VLOOKUP(N1091,Tabel10[[korte omschrijving]:[MCC3_CODE]],2,0)","v":{"$error":"#N/A"}},{"$f":"VLOOKUP(N1091,Tabel10[],3,0)","v":{"$error":"#N/A"}},null,null,null,null,null,null,null,"EUR",null,null,null,{"$error":"#DIV/0!"},0,0,null,"","","","","","","","","","",null,null,null,null,null,null,null,null,null,null,null,null,null,null,6,"None","Parcel","ZWO"]
[null,null,null,null,null,null,null,null,null,null,null,null,null,null,{"$f":"VLOOKUP(N1092,Tabel10[[korte omschrijving]:[MCC3_CODE]],2,0)","v":{"$error":"#N/A"}},{"$f":"VLOOKUP(N1092,Tabel10[],3,0)","v":{"$error":"#N/A"}},null,null,null,null,null,null,null,"EUR",null,null,null,{"$error":"#DIV/0!"},0,0,null,"","","","","","","","","","",null,null,null,null,null,null,null,null,null,null,null,null,null,null,6,"None","Parcel","ZWO"]
[null,null,null,null,null,null,null,null,null,null,null,null,null,null,{"$f":"VLOOKUP(N1093,Tabel10[[korte omschrijving]:[MCC3_CODE]],2,0)","v":{"$error":"#N/A"}},{"$f":"VLOOKUP(N1093,Tabel10[],3,0)","v":{"$error":"#N/A"}},null,null,null,null,null,null,null,"EUR",null,null,null,{"$error":"#DIV/0!"},0,0,null,"","","","","","","","","","",null,null,null,null,null,null,null,null,null,null,null,null,null,null,6,"None","Parcel","ZWO"]
[null,null,null,null,null,null,null,null,null,null,null,null,null,null,{"$f":"VLOOKUP(N1094,Tabel10[[korte omschrijving]:[MCC3_CODE]],2,0)","v":{"$error":"#N/A"}},{"$f":"VLOOKUP(N1094,Tabel10[],3,0)","v":{"$error":"#N/A"}},null,null,null,null,null,null,null,"EUR",null,null,null,{"$error":"#DIV/0!"},0,0,null,"","","","","","","","","","",null,null,null,null,null,null,null,null,null,null,null,null,null,null,6,"None","Parcel","ZWO"]
[null,null,null,null,null,null,null,null,null,null,null,null,null,null,{"$f":"VLOOKUP(N1095,Tabel10[[korte omschrijving]:[MCC3_CODE]],2,0)","v":{"$error":"#N/A"}},{"$f":"VLOOKUP(N1095,Tabel10[],3,0)","v":{"$error":"#N/A"}},null,null,null,null,null,null,null,"EUR",null,null,null,{"$f":"AA1095/Y1095","v":{"$error":"#DIV/0!"}},{"$f":"T1095*Y1095","v":0},{"$f":"T1095*AA1095","v":0},null,{"$f":"IF(AE1095 <> \"\",\n    IF(ISNUMBER(VALUE(LEFT(AE1095, FIND(\"%\", AE1095)-1))),\n        VALUE(LEFT(AE1095, FIND(\"%\", AE1095)-1)),\n        \"Invalid format\"),\n    \"\")","v":""},{"$f":"IF(AE1095 <> \"\",\n    IF(ISNUMBER(VALUE(LEFT(AE1095, FIND(\"%\", AE1095)-1))) * ISNUMBER(FIND(\"%\", AE1095 & \"wol\")) > 0,\n        TRIM(MID(AE1095, FIND(\"%\", AE1095)+1, FIND(\"/\", AE1095 & \"/\")-FIND(\"%\", AE1095)-1)),\n        \"Invalid format\"),\n    \"\")","v":""},{"$f":"IF(AE1095 <> \"\",\n    IF(ISNUMBER(VALUE(MID(AE1095, FIND(\"/\", AE1095) + 1, FIND(\"%\", AE1095, FIND(\"/\", AE1095)) - FIND(\"/\", AE1095) - 1))),\n        VALUE(MID(AE1095, FIND(\"/\", AE1095) + 1, FIND(\"%\", AE1095, FIND(\"/\", AE1095)) - FIND(\"/\", AE1095) - 1)),\n        \"\"),\n    \"\")","v":""},{"$f":"IF(AE1095 <> \"\",\n    IFERROR(TRIM(MID(AE1095, FIND(\"%\", AE1095, FIND(\"/\", AE1095)+1)+2,\n        IFERROR(FIND(\"/\", AE1095 & \"/\", FIND(\"/\", AE1095)+1)-FIND(\"%\", AE1095, FIND(\"/\", AE1095)+1)-2, LEN(AE1095)-FIND(\"%\", AE1095, FIND(\"/\", AE1095)+1)-1))),\n        \"\"),\n    \"\")","v":""},{"$f":"IF(AE1095 <> \"\",\n    IF(ISNUMBER(VALUE(MID(AE1095, FIND(\"/\", AE1095, FIND(\"/\", AE1095)+1) + 1, FIND(\"%\", AE1095, FIND(\"/\", AE1095, FIND(\"/\", AE1095)+1)) - FIND(\"/\", AE1095, FIND(\"/\", AE1095)+1) - 1))),\n        VALUE(MID(AE1095, FIND(\"/\", AE1095, FIND(\"/\", AE1095)+1) + 1, FIND(\"%\", AE1095, FIND(\"/\", AE1095, FIND(\"/\", AE1095)+1)) - FIND(\"/\", AE1095, FIND(\"/\", AE1095)+1) - 1)),\n        \"\"),\n    \"\")","v":""},{"$f":"IF(AE1095 <> \"\",\n    IFERROR(\n        TRIM(MID(AE1095,\n            FIND(\"%\", AE1095, FIND(\"%\", AE1095, FIND(\"%\", AE1095)+1)+1)+1,\n            FIND(\"/\", AE1095 & \"/\", FIND(\"%\", AE1095, FIND(\"%\", AE1095, FIND(\"%\", AE1095)+1)+1))-FIND(\"%\", AE1095, FIND(\"%\", AE1095, FIND(\"%\", AE1095)+1)+1)-1)\n        ),\n        \"\"\n    ),\n    \"\"\n)","v":""},{"$f":"IF(AE1095 <> \"\",\n    IF(ISNUMBER(VALUE(MID(AE1095, FIND(\"/\", AE1095, FIND(\"/\", AE1095, FIND(\"/\", AE1095)+1)+1) + 1, FIND(\"%\", AE1095, FIND(\"/\", AE1095, FIND(\"/\", AE1095, FIND(\"/\", AE1095)+1)+1)) - FIND(\"/\", AE1095, FIND(\"/\", AE1095, FIND(\"/\", AE1095)+1)+1) - 1))),\n        VALUE(MID(AE1095, FIND(\"/\", AE1095, FIND(\"/\", AE1095, FIND(\"/\", AE1095)+1)+1) + 1, FIND(\"%\", AE1095, FIND(\"/\", AE1095, FIND(\"/\", AE1095, FIND(\"/\", AE1095)+1)+1)) - FIND(\"/\", AE1095, FIND(\"/\", AE1095, FIND(\"/\", AE1095)+1)+1) - 1)),\n        \"\"),\n    \"\")","v":""},{"$f":"IF(AE1095 <> \"\",\n    IFERROR(TRIM(MID(AE1095, FIND(\"%\", AE1095, FIND(\"/\", AE1095, FIND(\"/\", AE1095, FIND(\"/\", AE1095)+1)+1)+1)+2,\n        IFERROR(FIND(\"/\", AE1095, FIND(\"/\", AE1095, FIND(\"/\", AE1095, FIND(\"/\", AE1095)+1)+1)+1)-FIND(\"%\", AE1095, FIND(\"/\", AE1095, FIND(\"/\", AE1095, FIND(\"/\", AE1095)+1)+1)+1)-2, LEN(AE1095)-FIND(\"%\", AE1095, FIND(\"/\", AE1095, FIND(\"/\", AE1095, FIND(\"/\", AE1095)+1)+1)+1)-1))),\n        \"\"),\n    \"\")","v":""},{"$f":"IF(AE1095 <> \"\",\n    IF(ISNUMBER(VALUE(MID(AE1095, FIND(\"/\", AE1095, FIND(\"/\", AE1095, FIND(\"/\", AE1095, FIND(\"/\", AE1095)+1)+1)+1) + 1, FIND(\"%\", AE1095, FIND(\"/\", AE1095, FIND(\"/\", AE1095, FIND(\"/\", AE1095, FIND(\"/\", AE1095)+1)+1)+1)) - FIND(\"/\", AE1095, FIND(\"/\", AE1095, FIND(\"/\", AE1095, FIND(\"/\", AE1095)+1)+1)+1) - 1))),\n        VALUE(MID(AE1095, FIND(\"/\", AE1095, FIND(\"/\", AE1095, FIND(\"/\", AE1095, FIND(\"/\", AE1095)+1)+1)+1) + 1, FIND(\"%\", AE1095, FIND(\"/\", AE1095, FIND(\"/\", AE1095, FIND(\"/\", AE1095, FIND(\"/\", AE1095)+1)+1)+1)) - FIND(\"/\", AE1095, FIND(\"/\", AE1095, FIND(\"/\", AE1095, FIND(\"/\", AE1095)+1)+1)+1) - 1)),\n        \"\"),\n    \"\")","v":""},{"$f":"IF(AE1095 = \"\", \"\",\n    IFERROR(TRIM(\n        MID(\n            AE1095,\n            FIND(\"%\", AE1095, FIND(\"/\", AE1095, FIND(\"/\", AE1095, FIND(\"/\", AE1095, FIND(\"/\", AE1095)+1)+1)+1)+1) + 1,\n            FIND(\"/\", AE1095 & \"/\", FIND(\"%\", AE1095, FIND(\"/\", AE1095, FIND(\"/\", AE1095, FIND(\"/\", AE1095, FIND(\"/\", AE1095)+1)+1)+1)+1)) -\n            FIND(\"%\", AE1095, FIND(\"/\", AE1095, FIND(\"/\", AE1095, FIND(\"/\", AE1095, FIND(\"/\", AE1095)+1)+1)+1)+1) - 1\n        )\n    ),\n    \"\")\n)","v":""},null,null,null,null,null,null,null,null,null,null,null,null,null,null,6,"None","Parcel","ZWO"]
[null,null,null,null,null,null,null,null,null,null,null,null,null,null,{"$f":"VLOOKUP(N1096,Tabel10[[korte omschrijving]:[MCC3_CODE]],2,0)","v":{"$error":"#N/A"}},{"$f":"VLOOKUP(N1096,Tabel10[],3,0)","v":{"$error":"#N/A"}},null,null,null,null,null,null,null,"EUR",null,null,null,{"$error":"#DIV/0!"},0,0,null,"","","","","","","","","","",null,null,null,null,null,null,null,null,null,null,null,null,null,null,6,"None","Parcel","ZWO"]
[null,null,null,null,null,null,null,null,null,null,null,null,null,null,{"$f":"VLOOKUP(N1097,Tabel10[[korte omschrijving]:[MCC3_CODE]],2,0)","v":{"$error":"#N/A"}},{"$f":"VLOOKUP(N1097,Tabel10[],3,0)","v":{"$error":"#N/A"}},null,null,null,null,null,null,null,"EUR",null,null,null,{"$error":"#DIV/0!"},0,0,null,"","","","","","","","","","",null,null,null,null,null,null,null,null,null,null,null,null,null,null,6,"None","Parcel","ZWO"]
[null,null,null,null,null,null,null,null,null,null,null,null,null,null,{"$f":"VLOOKUP(N1098,Tabel10[[korte omschrijving]:[MCC3_CODE]],2,0)","v":{"$error":"#N/A"}},{"$f":"VLOOKUP(N1098,Tabel10[],3,0)","v":{"$error":"#N/A"}},null,null,null,null,null,null,null,"EUR",null,null,null,{"$error":"#DIV/0!"},0,0,null,"","","","","","","","","","",null,null,null,null,null,null,null,null,null,null,null,null,null,null,6,"None","Parcel","ZWO"]
[null,null,null,null,null,null,null,null,null,null,null,null,null,null,{"$f":"VLOOKUP(N1099,Tabel10[[korte omschrijving]:[MCC3_CODE]],2,0)","v":{"$error":"#N/A"}},{"$f":"VLOOKUP(N1099,Tabel10[],3,0)","v":{"$error":"#N/A"}},null,null,null,null,null,null,null,"EUR",null,null,null,{"$error":"#DIV/0!"},0,0,null,"","","","","","","","","","",null,null,null,null,null,null,null,null,null,null,null,null,null,null,6,"None","Parcel","ZWO"]
[null,null,null,null,null,null,null,null,null,null,null,null,null,null,{"$f":"VLOOKUP(N1100,Tabel10[[korte omschrijving]:[MCC3_CODE]],2,0)","v":{"$error":"#N/A"}},{"$f":"VLOOKUP(N1100,Tabel10[],3,0)","v":{"$error":"#N/A"}},null,null,null,null,null,null,null,"EUR",null,null,null,{"$error":"#DIV/0!"},0,0,null,"","","","","","","","","","",null,null,null,null,null,null,null,null,null,null,null,null,null,null,6,"None","Parcel","ZWO"]
[null,null,null,null,null,null,null,null,null,null,null,null,null,null,{"$f":"VLOOKUP(N1101,Tabel10[[korte omschrijving]:[MCC3_CODE]],2,0)","v":{"$error":"#N/A"}},{"$f":"VLOOKUP(N1101,Tabel10[],3,0)","v":{"$error":"#N/A"}},null,null,null,null,null,null,null,"EUR",null,null,null,{"$error":"#DIV/0!"},0,0,null,"","","","","","","","","","",null,null,null,null,null,null,null,null,null,null,null,null,null,null,6,"None","Parcel","ZWO"]
[null,null,null,null,null,null,null,null,null,null,null,null,null,null,{"$f":"VLOOKUP(N1102,Tabel10[[korte omschrijving]:[MCC3_CODE]],2,0)","v":{"$error":"#N/A"}},{"$f":"VLOOKUP(N1102,Tabel10[],3,0)","v":{"$error":"#N/A"}},null,null,null,null,null,null,null,"EUR",null,null,null,{"$error":"#DIV/0!"},0,0,null,"","","","","","","","","","",null,null,null,null,null,null,null,null,null,null,null,null,null,null,6,"None","Parcel","ZWO"]
[null,null,null,null,null,null,null,null,null,null,null,null,null,null,{"$f":"VLOOKUP(N1103,Tabel10[[korte omschrijving]:[MCC3_CODE]],2,0)","v":{"$error":"#N/A"}},{"$f":"VLOOKUP(N1103,Tabel10[],3,0)","v":{"$error":"#N/A"}},null,null,null,null,null,null,null,"EUR",null,null,null,{"$error":"#DIV/0!"},0,0,null,"","","","","","","","","","",null,null,null,null,null,null,null,null,null,null,null,null,null,null,6,"None","Parcel","ZWO"]
[null,null,null,null,null,null,null,null,null,null,null,null,null,null,{"$f":"VLOOKUP(N1104,Tabel10[[korte omschrijving]:[MCC3_CODE]],2,0)","v":{"$error":"#N/A"}},{"$f":"VLOOKUP(N1104,Tabel10[],3,0)","v":{"$error":"#N/A"}},null,null,null,null,null,null,null,"EUR",null,null,null,{"$error":"#DIV/0!"},0,0,null,"","","","","","","","","","",null,null,null,null,null,null,null,null,null,null,null,null,null,null,6,"None","Parcel","ZWO"]
[null,null,null,null,null,null,null,null,null,null,null,null,null,null,{"$f":"VLOOKUP(N1105,Tabel10[[korte omschrijving]:[MCC3_CODE]],2,0)","v":{"$error":"#N/A"}},{"$f":"VLOOKUP(N1105,Tabel10[],3,0)","v":{"$error":"#N/A"}},null,null,null,null,null,null,null,"EUR",null,null,null,{"$error":"#DIV/0!"},0,0,null,"","","","","","","","","","",null,null,null,null,null,null,null,null,null,null,null,null,null,null,6,"None","Parcel","ZWO"]
[null,null,null,null,null,null,null,null,null,null,null,null,null,null,{"$f":"VLOOKUP(N1106,Tabel10[[korte omschrijving]:[MCC3_CODE]],2,0)","v":{"$error":"#N/A"}},{"$f":"VLOOKUP(N1106,Tabel10[],3,0)","v":{"$error":"#N/A"}},null,null,null,null,null,null,null,"EUR",null,null,null,{"$error":"#DIV/0!"},0,0,null,"","","","","","","","","","",null,null,null,null,null,null,null,null,null,null,null,null,null,null,6,"None","Parcel","ZWO"]
[null,null,null,null,null,null,null,null,null,null,null,null,null,null,{"$f":"VLOOKUP(N1107,Tabel10[[korte omschrijving]:[MCC3_CODE]],2,0)","v":{"$error":"#N/A"}},{"$f":"VLOOKUP(N1107,Tabel10[],3,0)","v":{"$error":"#N/A"}},null,null,null,null,null,null,null,"EUR",null,null,null,{"$error":"#DIV/0!"},0,0,null,"","","","","","","","","","",null,null,null,null,null,null,null,null,null,null,null,null,null,null,6,"None","Parcel","ZWO"]
[null,null,null,null,null,null,null,null,null,null,null,null,null,null,{"$f":"VLOOKUP(N1108,Tabel10[[korte omschrijving]:[MCC3_CODE]],2,0)","v":{"$error":"#N/A"}},{"$f":"VLOOKUP(N1108,Tabel10[],3,0)","v":{"$error":"#N/A"}},null,null,null,null,null,null,null,"EUR",null,null,null,{"$error":"#DIV/0!"},0,0,null,"","","","","","","","","","",null,null,null,null,null,null,null,null,null,null,null,null,null,null,6,"None","Parcel","ZWO"]
[null,null,null,null,null,null,null,null,null,null,null,null,null,null,{"$f":"VLOOKUP(N1109,Tabel10[[korte omschrijving]:[MCC3_CODE]],2,0)","v":{"$error":"#N/A"}},{"$f":"VLOOKUP(N1109,Tabel10[],3,0)","v":{"$error":"#N/A"}},null,null,null,null,null,null,null,"EUR",null,null,null,{"$error":"#DIV/0!"},0,0,null,"","","","","","","","","","",null,null,null,null,null,null,null,null,null,null,null,null,null,null,6,"None","Parcel","ZWO"]
[null,null,null,null,null,null,null,null,null,null,null,null,null,null,{"$f":"VLOOKUP(N1110,Tabel10[[korte omschrijving]:[MCC3_CODE]],2,0)","v":{"$error":"#N/A"}},{"$f":"VLOOKUP(N1110,Tabel10[],3,0)","v":{"$error":"#N/A"}},null,null,null,null,null,null,null,"EUR",null,null,null,{"$error":"#DIV/0!"},0,0,null,"","","","","","","","","","",null,null,null,null,null,null,null,null,null,null,null,null,null,null,6,"None","Parcel","ZWO"]
[null,null,null,null,null,null,null,null,null,null,null,null,null,null,{"$f":"VLOOKUP(N1111,Tabel10[[korte omschrijving]:[MCC3_CODE]],2,0)","v":{"$error":"#N/A"}},{"$f":"VLOOKUP(N1111,Tabel10[],3,0)","v":{"$error":"#N/A"}},null,null,null,null,null,null,null,"EUR",null,null,null,{"$error":"#DIV/0!"},0,0,null,"","","","","","","","","","",null,null,null,null,null,null,null,null,null,null,null,null,null,null,6,"None","Parcel","ZWO"]
[null,null,null,null,null,null,null,null,null,null,null,null,null,null,{"$f":"VLOOKUP(N1112,Tabel10[[korte omschrijving]:[MCC3_CODE]],2,0)","v":{"$error":"#N/A"}},{"$f":"VLOOKUP(N1112,Tabel10[],3,0)","v":{"$error":"#N/A"}},null,null,null,null,null,null,null,"EUR",null,null,null,{"$error":"#DIV/0!"},0,0,null,"","","","","","","","","","",null,null,null,null,null,null,null,null,null,null,null,null,null,null,6,"None","Parcel","ZWO"]
[null,null,null,null,null,null,null,null,null,null,null,null,null,null,{"$f":"VLOOKUP(N1113,Tabel10[[korte omschrijving]:[MCC3_CODE]],2,0)","v":{"$error":"#N/A"}},{"$f":"VLOOKUP(N1113,Tabel10[],3,0)","v":{"$error":"#N/A"}},null,null,null,null,null,null,null,"EUR",null,null,null,{"$error":"#DIV/0!"},0,0,null,"","","","","","","","","","",null,null,null,null,null,null,null,null,null,null,null,null,null,null,6,"None","Parcel","ZWO"]
[null,null,null,null,null,null,null,null,null,null,null,null,null,null,{"$f":"VLOOKUP(N1114,Tabel10[[korte omschrijving]:[MCC3_CODE]],2,0)","v":{"$error":"#N/A"}},{"$f":"VLOOKUP(N1114,Tabel10[],3,0)","v":{"$error":"#N/A"}},null,null,null,null,null,null,null,"EUR",null,null,null,{"$error":"#DIV/0!"},0,0,null,"","","","","","","","","","",null,null,null,null,null,null,null,null,null,null,null,null,null,null,6,"None","Parcel","ZWO"]
[null,null,null,null,null,null,null,null,null,null,null,null,null,null,{"$f":"VLOOKUP(N1115,Tabel10[[korte omschrijving]:[MCC3_CODE]],2,0)","v":{"$error":"#N/A"}},{"$f":"VLOOKUP(N1115,Tabel10[],3,0)","v":{"$error":"#N/A"}},null,null,null,null,null,null,null,"EUR",null,null,null,{"$error":"#DIV/0!"},0,0,null,"","","","","","","","","","",null,null,null,null,null,null,null,null,null,null,null,null,null,null,6,"None","Parcel","ZWO"]
[null,null,null,null,null,null,null,null,null,null,null,null,null,null,{"$f":"VLOOKUP(N1116,Tabel10[[korte omschrijving]:[MCC3_CODE]],2,0)","v":{"$error":"#N/A"}},{"$f":"VLOOKUP(N1116,Tabel10[],3,0)","v":{"$error":"#N/A"}},null,null,null,null,null,null,null,"EUR",null,null,null,{"$error":"#DIV/0!"},0,0,null,"","","","","","","","","","",null,null,null,null,null,null,null,null,null,null,null,null,null,null,6,"None","Parcel","ZWO"]
[null,null,null,null,null,null,null,null,null,null,null,null,null,null,{"$f":"VLOOKUP(N1117,Tabel10[[korte omschrijving]:[MCC3_CODE]],2,0)","v":{"$error":"#N/A"}},{"$f":"VLOOKUP(N1117,Tabel10[],3,0)","v":{"$error":"#N/A"}},null,null,null,null,null,null,null,"EUR",null,null,null,{"$error":"#DIV/0!"},0,0,null,"","","","","","","","","","",null,null,null,null,null,null,null,null,null,null,null,null,null,null,6,"None","Parcel","ZWO"]
[null,null,null,null,null,null,null,null,null,null,null,null,null,null,{"$f":"VLOOKUP(N1118,Tabel10[[korte omschrijving]:[MCC3_CODE]],2,0)","v":{"$error":"#N/A"}},{"$f":"VLOOKUP(N1118,Tabel10[],3,0)","v":{"$error":"#N/A"}},null,null,null,null,null,null,null,"EUR",null,null,null,{"$error":"#DIV/0!"},0,0,null,"","","","","","","","","","",null,null,null,null,null,null,null,null,null,null,null,null,null,null,6,"None","Parcel","ZWO"]
[null,null,null,null,null,null,null,null,null,null,null,null,null,null,{"$f":"VLOOKUP(N1119,Tabel10[[korte omschrijving]:[MCC3_CODE]],2,0)","v":{"$error":"#N/A"}},{"$f":"VLOOKUP(N1119,Tabel10[],3,0)","v":{"$error":"#N/A"}},null,null,null,null,null,null,null,"EUR",null,null,null,{"$error":"#DIV/0!"},0,0,null,"","","","","","","","","","",null,null,null,null,null,null,null,null,null,null,null,null,null,null,6,"None","Parcel","ZWO"]
[null,null,null,null,null,null,null,null,null,null,null,null,null,null,{"$f":"VLOOKUP(N1120,Tabel10[[korte omschrijving]:[MCC3_CODE]],2,0)","v":{"$error":"#N/A"}},{"$f":"VLOOKUP(N1120,Tabel10[],3,0)","v":{"$error":"#N/A"}},null,null,null,null,null,null,null,"EUR",null,null,null,{"$error":"#DIV/0!"},0,0,null,"","","","","","","","","","",null,null,null,null,null,null,null,null,null,null,null,null,null,null,6,"None","Parcel","ZWO"]
[null,null,null,null,null,null,null,null,null,null,null,null,null,null,{"$f":"VLOOKUP(N1121,Tabel10[[korte omschrijving]:[MCC3_CODE]],2,0)","v":{"$error":"#N/A"}},{"$f":"VLOOKUP(N1121,Tabel10[],3,0)","v":{"$error":"#N/A"}},null,null,null,null,null,null,null,"EUR",null,null,null,{"$error":"#DIV/0!"},0,0,null,"","","","","","","","","","",null,null,null,null,null,null,null,null,null,null,null,null,null,null,6,"None","Parcel","ZWO"]
[null,null,null,null,null,null,null,null,null,null,null,null,null,null,{"$f":"VLOOKUP(N1122,Tabel10[[korte omschrijving]:[MCC3_CODE]],2,0)","v":{"$error":"#N/A"}},{"$f":"VLOOKUP(N1122,Tabel10[],3,0)","v":{"$error":"#N/A"}},null,null,null,null,null,null,null,"EUR",null,null,null,{"$error":"#DIV/0!"},0,0,null,"","","","","","","","","","",null,null,null,null,null,null,null,null,null,null,null,null,null,null,6,"None","Parcel","ZWO"]
[null,null,null,null,null,null,null,null,null,null,null,null,null,null,{"$f":"VLOOKUP(N1123,Tabel10[[korte omschrijving]:[MCC3_CODE]],2,0)","v":{"$error":"#N/A"}},{"$f":"VLOOKUP(N1123,Tabel10[],3,0)","v":{"$error":"#N/A"}},null,null,null,null,null,null,null,"EUR",null,null,null,{"$error":"#DIV/0!"},0,0,null,"","","","","","","","","","",null,null,null,null,null,null,null,null,null,null,null,null,null,null,6,"None","Parcel","ZWO"]
[null,null,null,null,null,null,null,null,null,null,null,null,null,null,{"$f":"VLOOKUP(N1124,Tabel10[[korte omschrijving]:[MCC3_CODE]],2,0)","v":{"$error":"#N/A"}},{"$f":"VLOOKUP(N1124,Tabel10[],3,0)","v":{"$error":"#N/A"}},null,null,null,null,null,null,null,"EUR",null,null,null,{"$error":"#DIV/0!"},0,0,null,"","","","","","","","","","",null,null,null,null,null,null,null,null,null,null,null,null,null,null,6,"None","Parcel","ZWO"]
[null,null,null,null,null,null,null,null,null,null,null,null,null,null,{"$f":"VLOOKUP(N1125,Tabel10[[korte omschrijving]:[MCC3_CODE]],2,0)","v":{"$error":"#N/A"}},{"$f":"VLOOKUP(N1125,Tabel10[],3,0)","v":{"$error":"#N/A"}},null,null,null,null,null,null,null,"EUR",null,null,null,{"$error":"#DIV/0!"},0,0,null,"","","","","","","","","","",null,null,null,null,null,null,null,null,null,null,null,null,null,null,6,"None","Parcel","ZWO"]
[null,null,null,null,null,null,null,null,null,null,null,null,null,null,{"$f":"VLOOKUP(N1126,Tabel10[[korte omschrijving]:[MCC3_CODE]],2,0)","v":{"$error":"#N/A"}},{"$f":"VLOOKUP(N1126,Tabel10[],3,0)","v":{"$error":"#N/A"}},null,null,null,null,null,null,null,"EUR",null,null,null,{"$error":"#DIV/0!"},0,0,null,"","","","","","","","","","",null,null,null,null,null,null,null,null,null,null,null,null,null,null,6,"None","Parcel","ZWO"]
[null,null,null,null,null,null,null,null,null,null,null,null,null,null,{"$f":"VLOOKUP(N1127,Tabel10[[korte omschrijving]:[MCC3_CODE]],2,0)","v":{"$error":"#N/A"}},{"$f":"VLOOKUP(N1127,Tabel10[],3,0)","v":{"$error":"#N/A"}},null,null,null,null,null,null,null,"EUR",null,null,null,{"$error":"#DIV/0!"},0,0,null,"","","","","","","","","","",null,null,null,null,null,null,null,null,null,null,null,null,null,null,6,"None","Parcel","ZWO"]
[null,null,null,null,null,null,null,null,null,null,null,null,null,null,{"$f":"VLOOKUP(N1128,Tabel10[[korte omschrijving]:[MCC3_CODE]],2,0)","v":{"$error":"#N/A"}},{"$f":"VLOOKUP(N1128,Tabel10[],3,0)","v":{"$error":"#N/A"}},null,null,null,null,null,null,null,"EUR",null,null,null,{"$error":"#DIV/0!"},0,0,null,"","","","","","","","","","",null,null,null,null,null,null,null,null,null,null,null,null,null,null,6,"None","Parcel","ZWO"]
[null,null,null,null,null,null,null,null,null,null,null,null,null,null,{"$f":"VLOOKUP(N1129,Tabel10[[korte omschrijving]:[MCC3_CODE]],2,0)","v":{"$error":"#N/A"}},{"$f":"VLOOKUP(N1129,Tabel10[],3,0)","v":{"$error":"#N/A"}},null,null,null,null,null,null,null,"EUR",null,null,null,{"$error":"#DIV/0!"},0,0,null,"","","","","","","","","","",null,null,null,null,null,null,null,null,null,null,null,null,null,null,6,"None","Parcel","ZWO"]
[null,null,null,null,null,null,null,null,null,null,null,null,null,null,{"$f":"VLOOKUP(N1130,Tabel10[[korte omschrijving]:[MCC3_CODE]],2,0)","v":{"$error":"#N/A"}},{"$f":"VLOOKUP(N1130,Tabel10[],3,0)","v":{"$error":"#N/A"}},null,null,null,null,null,null,null,"EUR",null,null,null,{"$error":"#DIV/0!"},0,0,null,"","","","","","","","","","",null,null,null,null,null,null,null,null,null,null,null,null,null,null,6,"None","Parcel","ZWO"]
[null,null,null,null,null,null,null,null,null,null,null,null,null,null,{"$f":"VLOOKUP(N1131,Tabel10[[korte omschrijving]:[MCC3_CODE]],2,0)","v":{"$error":"#N/A"}},{"$f":"VLOOKUP(N1131,Tabel10[],3,0)","v":{"$error":"#N/A"}},null,null,null,null,null,null,null,"EUR",null,null,null,{"$error":"#DIV/0!"},0,0,null,"","","","","","","","","","",null,null,null,null,null,null,null,null,null,null,null,null,null,null,6,"None","Parcel","ZWO"]
[null,null,null,null,null,null,null,null,null,null,null,null,null,null,{"$f":"VLOOKUP(N1132,Tabel10[[korte omschrijving]:[MCC3_CODE]],2,0)","v":{"$error":"#N/A"}},{"$f":"VLOOKUP(N1132,Tabel10[],3,0)","v":{"$error":"#N/A"}},null,null,null,null,null,null,null,"EUR",null,null,null,{"$error":"#DIV/0!"},0,0,null,"","","","","","","","","","",null,null,null,null,null,null,null,null,null,null,null,null,null,null,6,"None","Parcel","ZWO"]
[null,null,null,null,null,null,null,null,null,null,null,null,null,null,{"$f":"VLOOKUP(N1133,Tabel10[[korte omschrijving]:[MCC3_CODE]],2,0)","v":{"$error":"#N/A"}},{"$f":"VLOOKUP(N1133,Tabel10[],3,0)","v":{"$error":"#N/A"}},null,null,null,null,null,null,null,"EUR",null,null,null,{"$error":"#DIV/0!"},0,0,null,"","","","","","","","","","",null,null,null,null,null,null,null,null,null,null,null,null,null,null,6,"None","Parcel","ZWO"]
[null,null,null,null,null,null,null,null,null,null,null,null,null,null,{"$f":"VLOOKUP(N1134,Tabel10[[korte omschrijving]:[MCC3_CODE]],2,0)","v":{"$error":"#N/A"}},{"$f":"VLOOKUP(N1134,Tabel10[],3,0)","v":{"$error":"#N/A"}},null,null,null,null,null,null,null,"EUR",null,null,null,{"$error":"#DIV/0!"},0,0,null,"","","","","","","","","","",null,null,null,null,null,null,null,null,null,null,null,null,null,null,6,"None","Parcel","ZWO"]
[null,null,null,null,null,null,null,null,null,null,null,null,null,null,{"$f":"VLOOKUP(N1135,Tabel10[[korte omschrijving]:[MCC3_CODE]],2,0)","v":{"$error":"#N/A"}},{"$f":"VLOOKUP(N1135,Tabel10[],3,0)","v":{"$error":"#N/A"}},null,null,null,null,null,null,null,"EUR",null,null,null,{"$error":"#DIV/0!"},0,0,null,"","","","","","","","","","",null,null,null,null,null,null,null,null,null,null,null,null,null,null,6,"None","Parcel","ZWO"]
[null,null,null,null,null,null,null,null,null,null,null,null,null,null,{"$f":"VLOOKUP(N1136,Tabel10[[korte omschrijving]:[MCC3_CODE]],2,0)","v":{"$error":"#N/A"}},{"$f":"VLOOKUP(N1136,Tabel10[],3,0)","v":{"$error":"#N/A"}},null,null,null,null,null,null,null,"EUR",null,null,null,{"$error":"#DIV/0!"},0,0,null,"","","","","","","","","","",null,null,null,null,null,null,null,null,null,null,null,null,null,null,6,"None","Parcel","ZWO"]
[null,null,null,null,null,null,null,null,null,null,null,null,null,null,{"$f":"VLOOKUP(N1137,Tabel10[[korte omschrijving]:[MCC3_CODE]],2,0)","v":{"$error":"#N/A"}},{"$f":"VLOOKUP(N1137,Tabel10[],3,0)","v":{"$error":"#N/A"}},null,null,null,null,null,null,null,"EUR",null,null,null,{"$error":"#DIV/0!"},0,0,null,"","","","","","","","","","",null,null,null,null,null,null,null,null,null,null,null,null,null,null,6,"None","Parcel","ZWO"]
[null,null,null,null,null,null,null,null,null,null,null,null,null,null,{"$f":"VLOOKUP(N1138,Tabel10[[korte omschrijving]:[MCC3_CODE]],2,0)","v":{"$error":"#N/A"}},{"$f":"VLOOKUP(N1138,Tabel10[],3,0)","v":{"$error":"#N/A"}},null,null,null,null,null,null,null,"EUR",null,null,null,{"$error":"#DIV/0!"},0,0,null,"","","","","","","","","","",null,null,null,null,null,null,null,null,null,null,null,null,null,null,6,"None","Parcel","ZWO"]
[null,null,null,null,null,null,null,null,null,null,null,null,null,null,{"$f":"VLOOKUP(N1139,Tabel10[[korte omschrijving]:[MCC3_CODE]],2,0)","v":{"$error":"#N/A"}},{"$f":"VLOOKUP(N1139,Tabel10[],3,0)","v":{"$error":"#N/A"}},null,null,null,null,null,null,null,"EUR",null,null,null,{"$error":"#DIV/0!"},0,0,null,"","","","","","","","","","",null,null,null,null,null,null,null,null,null,null,null,null,null,null,6,"None","Parcel","ZWO"]
[null,null,null,null,null,null,null,null,null,null,null,null,null,null,{"$f":"VLOOKUP(N1140,Tabel10[[korte omschrijving]:[MCC3_CODE]],2,0)","v":{"$error":"#N/A"}},{"$f":"VLOOKUP(N1140,Tabel10[],3,0)","v":{"$error":"#N/A"}},null,null,null,null,null,null,null,"EUR",null,null,null,{"$error":"#DIV/0!"},0,0,null,"","","","","","","","","","",null,null,null,null,null,null,null,null,null,null,null,null,null,null,6,"None","Parcel","ZWO"]
[null,null,null,null,null,null,null,null,null,null,null,null,null,null,{"$f":"VLOOKUP(N1141,Tabel10[[korte omschrijving]:[MCC3_CODE]],2,0)","v":{"$error":"#N/A"}},{"$f":"VLOOKUP(N1141,Tabel10[],3,0)","v":{"$error":"#N/A"}},null,null,null,null,null,null,null,"EUR",null,null,null,{"$error":"#DIV/0!"},0,0,null,"","","","","","","","","","",null,null,null,null,null,null,null,null,null,null,null,null,null,null,6,"None","Parcel","ZWO"]
[null,null,null,null,null,null,null,null,null,null,null,null,null,null,{"$f":"VLOOKUP(N1142,Tabel10[[korte omschrijving]:[MCC3_CODE]],2,0)","v":{"$error":"#N/A"}},{"$f":"VLOOKUP(N1142,Tabel10[],3,0)","v":{"$error":"#N/A"}},null,null,null,null,null,null,null,"EUR",null,null,null,{"$error":"#DIV/0!"},0,0,null,"","","","","","","","","","",null,null,null,null,null,null,null,null,null,null,null,null,null,null,6,"None","Parcel","ZWO"]
[null,null,null,null,null,null,null,null,null,null,null,null,null,null,{"$f":"VLOOKUP(N1143,Tabel10[[korte omschrijving]:[MCC3_CODE]],2,0)","v":{"$error":"#N/A"}},{"$f":"VLOOKUP(N1143,Tabel10[],3,0)","v":{"$error":"#N/A"}},null,null,null,null,null,null,null,"EUR",null,null,null,{"$error":"#DIV/0!"},0,0,null,"","","","","","","","","","",null,null,null,null,null,null,null,null,null,null,null,null,null,null,6,"None","Parcel","ZWO"]
[null,null,null,null,null,null,null,null,null,null,null,null,null,null,{"$f":"VLOOKUP(N1144,Tabel10[[korte omschrijving]:[MCC3_CODE]],2,0)","v":{"$error":"#N/A"}},{"$f":"VLOOKUP(N1144,Tabel10[],3,0)","v":{"$error":"#N/A"}},null,null,null,null,null,null,null,"EUR",null,null,null,{"$error":"#DIV/0!"},0,0,null,"","","","","","","","","","",null,null,null,null,null,null,null,null,null,null,null,null,null,null,6,"None","Parcel","ZWO"]
[null,null,null,null,null,null,null,null,null,null,null,null,null,null,{"$f":"VLOOKUP(N1145,Tabel10[[korte omschrijving]:[MCC3_CODE]],2,0)","v":{"$error":"#N/A"}},{"$f":"VLOOKUP(N1145,Tabel10[],3,0)","v":{"$error":"#N/A"}},null,null,null,null,null,null,null,"EUR",null,null,null,{"$error":"#DIV/0!"},0,0,null,"","","","","","","","","","",null,null,null,null,null,null,null,null,null,null,null,null,null,null,6,"None","Parcel","ZWO"]
[null,null,null,null,null,null,null,null,null,null,null,null,null,null,{"$f":"VLOOKUP(N1146,Tabel10[[korte omschrijving]:[MCC3_CODE]],2,0)","v":{"$error":"#N/A"}},{"$f":"VLOOKUP(N1146,Tabel10[],3,0)","v":{"$error":"#N/A"}},null,null,null,null,null,null,null,"EUR",null,null,null,{"$error":"#DIV/0!"},0,0,null,"","","","","","","","","","",null,null,null,null,null,null,null,null,null,null,null,null,null,null,6,"None","Parcel","ZWO"]
[null,null,null,null,null,null,null,null,null,null,null,null,null,null,{"$f":"VLOOKUP(N1147,Tabel10[[korte omschrijving]:[MCC3_CODE]],2,0)","v":{"$error":"#N/A"}},{"$f":"VLOOKUP(N1147,Tabel10[],3,0)","v":{"$error":"#N/A"}},null,null,null,null,null,null,null,"EUR",null,null,null,{"$error":"#DIV/0!"},0,0,null,"","","","","","","","","","",null,null,null,null,null,null,null,null,null,null,null,null,null,null,6,"None","Parcel","ZWO"]
[null,null,null,null,null,null,null,null,null,null,null,null,null,null,{"$f":"VLOOKUP(N1148,Tabel10[[korte omschrijving]:[MCC3_CODE]],2,0)","v":{"$error":"#N/A"}},{"$f":"VLOOKUP(N1148,Tabel10[],3,0)","v":{"$error":"#N/A"}},null,null,null,null,null,null,null,"EUR",null,null,null,{"$error":"#DIV/0!"},0,0,null,"","","","","","","","","","",null,null,null,null,null,null,null,null,null,null,null,null,null,null,6,"None","Parcel","ZWO"]
[null,null,null,null,null,null,null,null,null,null,null,null,null,null,{"$f":"VLOOKUP(N1149,Tabel10[[korte omschrijving]:[MCC3_CODE]],2,0)","v":{"$error":"#N/A"}},{"$f":"VLOOKUP(N1149,Tabel10[],3,0)","v":{"$error":"#N/A"}},null,null,null,null,null,null,null,"EUR",null,null,null,{"$error":"#DIV/0!"},0,0,null,"","","","","","","","","","",null,null,null,null,null,null,null,null,null,null,null,null,null,null,6,"None","Parcel","ZWO"]
[null,null,null,null,null,null,null,null,null,null,null,null,null,null,{"$f":"VLOOKUP(N1150,Tabel10[[korte omschrijving]:[MCC3_CODE]],2,0)","v":{"$error":"#N/A"}},{"$f":"VLOOKUP(N1150,Tabel10[],3,0)","v":{"$error":"#N/A"}},null,null,null,null,null,null,null,"EUR",null,null,null,{"$error":"#DIV/0!"},0,0,null,"","","","","","","","","","",null,null,null,null,null,null,null,null,null,null,null,null,null,null,6,"None","Parcel","ZWO"]
[null,null,null,null,null,null,null,null,null,null,null,null,null,null,{"$f":"VLOOKUP(N1151,Tabel10[[korte omschrijving]:[MCC3_CODE]],2,0)","v":{"$error":"#N/A"}},{"$f":"VLOOKUP(N1151,Tabel10[],3,0)","v":{"$error":"#N/A"}},null,null,null,null,null,null,null,"EUR",null,null,null,{"$error":"#DIV/0!"},0,0,null,"","","","","","","","","","",null,null,null,null,null,null,null,null,null,null,null,null,null,null,6,"None","Parcel","ZWO"]
[null,null,null,null,null,null,null,null,null,null,null,null,null,null,{"$f":"VLOOKUP(N1152,Tabel10[[korte omschrijving]:[MCC3_CODE]],2,0)","v":{"$error":"#N/A"}},{"$f":"VLOOKUP(N1152,Tabel10[],3,0)","v":{"$error":"#N/A"}},null,null,null,null,null,null,null,"EUR",null,null,null,{"$error":"#DIV/0!"},0,0,null,"","","","","","","","","","",null,null,null,null,null,null,null,null,null,null,null,null,null,null,6,"None","Parcel","ZWO"]
[null,null,null,null,null,null,null,null,null,null,null,null,null,null,{"$f":"VLOOKUP(N1153,Tabel10[[korte omschrijving]:[MCC3_CODE]],2,0)","v":{"$error":"#N/A"}},{"$f":"VLOOKUP(N1153,Tabel10[],3,0)","v":{"$error":"#N/A"}},null,null,null,null,null,null,null,"EUR",null,null,null,{"$error":"#DIV/0!"},0,0,null,"","","","","","","","","","",null,null,null,null,null,null,null,null,null,null,null,null,null,null,6,"None","Parcel","ZWO"]
[null,null,null,null,null,null,null,null,null,null,null,null,null,null,{"$f":"VLOOKUP(N1154,Tabel10[[korte omschrijving]:[MCC3_CODE]],2,0)","v":{"$error":"#N/A"}},{"$f":"VLOOKUP(N1154,Tabel10[],3,0)","v":{"$error":"#N/A"}},null,null,null,null,null,null,null,"EUR",null,null,null,{"$error":"#DIV/0!"},0,0,null,"","","","","","","","","","",null,null,null,null,null,null,null,null,null,null,null,null,null,null,6,"None","Parcel","ZWO"]
[null,null,null,null,null,null,null,null,null,null,null,null,null,null,{"$f":"VLOOKUP(N1155,Tabel10[[korte omschrijving]:[MCC3_CODE]],2,0)","v":{"$error":"#N/A"}},{"$f":"VLOOKUP(N1155,Tabel10[],3,0)","v":{"$error":"#N/A"}},null,null,null,null,null,null,null,"EUR",null,null,null,{"$error":"#DIV/0!"},0,0,null,"","","","","","","","","","",null,null,null,null,null,null,null,null,null,null,null,null,null,null,6,"None","Parcel","ZWO"]
[null,null,null,null,null,null,null,null,null,null,null,null,null,null,{"$f":"VLOOKUP(N1156,Tabel10[[korte omschrijving]:[MCC3_CODE]],2,0)","v":{"$error":"#N/A"}},{"$f":"VLOOKUP(N1156,Tabel10[],3,0)","v":{"$error":"#N/A"}},null,null,null,null,null,null,null,"EUR",null,null,null,{"$error":"#DIV/0!"},0,0,null,"","","","","","","","","","",null,null,null,null,null,null,null,null,null,null,null,null,null,null,6,"None","Parcel","ZWO"]
[null,null,null,null,null,null,null,null,null,null,null,null,null,null,{"$f":"VLOOKUP(N1157,Tabel10[[korte omschrijving]:[MCC3_CODE]],2,0)","v":{"$error":"#N/A"}},{"$f":"VLOOKUP(N1157,Tabel10[],3,0)","v":{"$error":"#N/A"}},null,null,null,null,null,null,null,"EUR",null,null,null,{"$error":"#DIV/0!"},0,0,null,"","","","","","","","","","",null,null,null,null,null,null,null,null,null,null,null,null,null,null,6,"None","Parcel","ZWO"]
[null,null,null,null,null,null,null,null,null,null,null,null,null,null,{"$f":"VLOOKUP(N1158,Tabel10[[korte omschrijving]:[MCC3_CODE]],2,0)","v":{"$error":"#N/A"}},{"$f":"VLOOKUP(N1158,Tabel10[],3,0)","v":{"$error":"#N/A"}},null,null,null,null,null,null,null,"EUR",null,null,null,{"$error":"#DIV/0!"},0,0,null,"","","","","","","","","","",null,null,null,null,null,null,null,null,null,null,null,null,null,null,6,"None","Parcel","ZWO"]
[null,null,null,null,null,null,null,null,null,null,null,null,null,null,{"$f":"VLOOKUP(N1159,Tabel10[[korte omschrijving]:[MCC3_CODE]],2,0)","v":{"$error":"#N/A"}},{"$f":"VLOOKUP(N1159,Tabel10[],3,0)","v":{"$error":"#N/A"}},null,null,null,null,null,null,null,"EUR",null,null,null,{"$f":"AA1159/Y1159","v":{"$error":"#DIV/0!"}},{"$f":"T1159*Y1159","v":0},{"$f":"T1159*AA1159","v":0},null,{"$f":"IF(AE1159 <> \"\",\n    IF(ISNUMBER(VALUE(LEFT(AE1159, FIND(\"%\", AE1159)-1))),\n        VALUE(LEFT(AE1159, FIND(\"%\", AE1159)-1)),\n        \"Invalid format\"),\n    \"\")","v":""},{"$f":"IF(AE1159 <> \"\",\n    IF(ISNUMBER(VALUE(LEFT(AE1159, FIND(\"%\", AE1159)-1))) * ISNUMBER(FIND(\"%\", AE1159 & \"wol\")) > 0,\n        TRIM(MID(AE1159, FIND(\"%\", AE1159)+1, FIND(\"/\", AE1159 & \"/\")-FIND(\"%\", AE1159)-1)),\n        \"Invalid format\"),\n    \"\")","v":""},{"$f":"IF(AE1159 <> \"\",\n    IF(ISNUMBER(VALUE(MID(AE1159, FIND(\"/\", AE1159) + 1, FIND(\"%\", AE1159, FIND(\"/\", AE1159)) - FIND(\"/\", AE1159) - 1))),\n        VALUE(MID(AE1159, FIND(\"/\", AE1159) + 1, FIND(\"%\", AE1159, FIND(\"/\", AE1159)) - FIND(\"/\", AE1159) - 1)),\n        \"\"),\n    \"\")","v":""},{"$f":"IF(AE1159 <> \"\",\n    IFERROR(TRIM(MID(AE1159, FIND(\"%\", AE1159, FIND(\"/\", AE1159)+1)+2,\n        IFERROR(FIND(\"/\", AE1159 & \"/\", FIND(\"/\", AE1159)+1)-FIND(\"%\", AE1159, FIND(\"/\", AE1159)+1)-2, LEN(AE1159)-FIND(\"%\", AE1159, FIND(\"/\", AE1159)+1)-1))),\n        \"\"),\n    \"\")","v":""},{"$f":"IF(AE1159 <> \"\",\n    IF(ISNUMBER(VALUE(MID(AE1159, FIND(\"/\", AE1159, FIND(\"/\", AE1159)+1) + 1, FIND(\"%\", AE1159, FIND(\"/\", AE1159, FIND(\"/\", AE1159)+1)) - FIND(\"/\", AE1159, FIND(\"/\", AE1159)+1) - 1))),\n        VALUE(MID(AE1159, FIND(\"/\", AE1159, FIND(\"/\", AE1159)+1) + 1, FIND(\"%\", AE1159, FIND(\"/\", AE1159, FIND(\"/\", AE1159)+1)) - FIND(\"/\", AE1159, FIND(\"/\", AE1159)+1) - 1)),\n        \"\"),\n    \"\")","v":""},{"$f":"IF(AE1159 <> \"\",\n    IFERROR(\n        TRIM(MID(AE1159,\n            FIND(\"%\", AE1159, FIND(\"%\", AE1159, FIND(\"%\", AE1159)+1)+1)+1,\n            FIND(\"/\", AE1159 & \"/\", FIND(\"%\", AE1159, FIND(\"%\", AE1159, FIND(\"%\", AE1159)+1)+1))-FIND(\"%\", AE1159, FIND(\"%\", AE1159, FIND(\"%\", AE1159)+1)+1)-1)\n        ),\n        \"\"\n    ),\n    \"\"\n)","v":""},{"$f":"IF(AE1159 <> \"\",\n    IF(ISNUMBER(VALUE(MID(AE1159, FIND(\"/\", AE1159, FIND(\"/\", AE1159, FIND(\"/\", AE1159)+1)+1) + 1, FIND(\"%\", AE1159, FIND(\"/\", AE1159, FIND(\"/\", AE1159, FIND(\"/\", AE1159)+1)+1)) - FIND(\"/\", AE1159, FIND(\"/\", AE1159, FIND(\"/\", AE1159)+1)+1) - 1))),\n        VALUE(MID(AE1159, FIND(\"/\", AE1159, FIND(\"/\", AE1159, FIND(\"/\", AE1159)+1)+1) + 1, FIND(\"%\", AE1159, FIND(\"/\", AE1159, FIND(\"/\", AE1159, FIND(\"/\", AE1159)+1)+1)) - FIND(\"/\", AE1159, FIND(\"/\", AE1159, FIND(\"/\", AE1159)+1)+1) - 1)),\n        \"\"),\n    \"\")","v":""},{"$f":"IF(AE1159 <> \"\",\n    IFERROR(TRIM(MID(AE1159, FIND(\"%\", AE1159, FIND(\"/\", AE1159, FIND(\"/\", AE1159, FIND(\"/\", AE1159)+1)+1)+1)+2,\n        IFERROR(FIND(\"/\", AE1159, FIND(\"/\", AE1159, FIND(\"/\", AE1159, FIND(\"/\", AE1159)+1)+1)+1)-FIND(\"%\", AE1159, FIND(\"/\", AE1159, FIND(\"/\", AE1159, FIND(\"/\", AE1159)+1)+1)+1)-2, LEN(AE1159)-FIND(\"%\", AE1159, FIND(\"/\", AE1159, FIND(\"/\", AE1159, FIND(\"/\", AE1159)+1)+1)+1)-1))),\n        \"\"),\n    \"\")","v":""},{"$f":"IF(AE1159 <> \"\",\n    IF(ISNUMBER(VALUE(MID(AE1159, FIND(\"/\", AE1159, FIND(\"/\", AE1159, FIND(\"/\", AE1159, FIND(\"/\", AE1159)+1)+1)+1) + 1, FIND(\"%\", AE1159, FIND(\"/\", AE1159, FIND(\"/\", AE1159, FIND(\"/\", AE1159, FIND(\"/\", AE1159)+1)+1)+1)) - FIND(\"/\", AE1159, FIND(\"/\", AE1159, FIND(\"/\", AE1159, FIND(\"/\", AE1159)+1)+1)+1) - 1))),\n        VALUE(MID(AE1159, FIND(\"/\", AE1159, FIND(\"/\", AE1159, FIND(\"/\", AE1159, FIND(\"/\", AE1159)+1)+1)+1) + 1, FIND(\"%\", AE1159, FIND(\"/\", AE1159, FIND(\"/\", AE1159, FIND(\"/\", AE1159, FIND(\"/\", AE1159)+1)+1)+1)) - FIND(\"/\", AE1159, FIND(\"/\", AE1159, FIND(\"/\", AE1159, FIND(\"/\", AE1159)+1)+1)+1) - 1)),\n        \"\"),\n    \"\")","v":""},{"$f":"IF(AE1159 = \"\", \"\",\n    IFERROR(TRIM(\n        MID(\n            AE1159,\n            FIND(\"%\", AE1159, FIND(\"/\", AE1159, FIND(\"/\", AE1159, FIND(\"/\", AE1159, FIND(\"/\", AE1159)+1)+1)+1)+1) + 1,\n            FIND(\"/\", AE1159 & \"/\", FIND(\"%\", AE1159, FIND(\"/\", AE1159, FIND(\"/\", AE1159, FIND(\"/\", AE1159, FIND(\"/\", AE1159)+1)+1)+1)+1)) -\n            FIND(\"%\", AE1159, FIND(\"/\", AE1159, FIND(\"/\", AE1159, FIND(\"/\", AE1159, FIND(\"/\", AE1159)+1)+1)+1)+1) - 1\n        )\n    ),\n    \"\")\n)","v":""},null,null,null,null,null,null,null,null,null,null,null,null,null,null,6,"None","Parcel","ZWO"]
[null,null,null,null,null,null,null,null,null,null,null,null,null,null,{"$f":"VLOOKUP(N1160,Tabel10[[korte omschrijving]:[MCC3_CODE]],2,0)","v":{"$error":"#N/A"}},{"$f":"VLOOKUP(N1160,Tabel10[],3,0)","v":{"$error":"#N/A"}},null,null,null,null,null,null,null,"EUR",null,null,null,{"$error":"#DIV/0!"},0,0,null,"","","","","","","","","","",null,null,null,null,null,null,null,null,null,null,null,null,null,null,6,"None","Parcel","ZWO"]
[null,null,null,null,null,null,null,null,null,null,null,null,null,null,{"$f":"VLOOKUP(N1161,Tabel10[[korte omschrijving]:[MCC3_CODE]],2,0)","v":{"$error":"#N/A"}},{"$f":"VLOOKUP(N1161,Tabel10[],3,0)","v":{"$error":"#N/A"}},null,null,null,null,null,null,null,"EUR",null,null,null,{"$error":"#DIV/0!"},0,0,null,"","","","","","","","","","",null,null,null,null,null,null,null,null,null,null,null,null,null,null,6,"None","Parcel","ZWO"]
[null,null,null,null,null,null,null,null,null,null,null,null,null,null,{"$f":"VLOOKUP(N1162,Tabel10[[korte omschrijving]:[MCC3_CODE]],2,0)","v":{"$error":"#N/A"}},{"$f":"VLOOKUP(N1162,Tabel10[],3,0)","v":{"$error":"#N/A"}},null,null,null,null,null,null,null,"EUR",null,null,null,{"$error":"#DIV/0!"},0,0,null,"","","","","","","","","","",null,null,null,null,null,null,null,null,null,null,null,null,null,null,6,"None","Parcel","ZWO"]
[null,null,null,null,null,null,null,null,null,null,null,null,null,null,{"$f":"VLOOKUP(N1163,Tabel10[[korte omschrijving]:[MCC3_CODE]],2,0)","v":{"$error":"#N/A"}},{"$f":"VLOOKUP(N1163,Tabel10[],3,0)","v":{"$error":"#N/A"}},null,null,null,null,null,null,null,"EUR",null,null,null,{"$error":"#DIV/0!"},0,0,null,"","","","","","","","","","",null,null,null,null,null,null,null,null,null,null,null,null,null,null,6,"None","Parcel","ZWO"]
[null,null,null,null,null,null,null,null,null,null,null,null,null,null,{"$f":"VLOOKUP(N1164,Tabel10[[korte omschrijving]:[MCC3_CODE]],2,0)","v":{"$error":"#N/A"}},{"$f":"VLOOKUP(N1164,Tabel10[],3,0)","v":{"$error":"#N/A"}},null,null,null,null,null,null,null,"EUR",null,null,null,{"$error":"#DIV/0!"},0,0,null,"","","","","","","","","","",null,null,null,null,null,null,null,null,null,null,null,null,null,null,6,"None","Parcel","ZWO"]
[null,null,null,null,null,null,null,null,null,null,null,null,null,null,{"$f":"VLOOKUP(N1165,Tabel10[[korte omschrijving]:[MCC3_CODE]],2,0)","v":{"$error":"#N/A"}},{"$f":"VLOOKUP(N1165,Tabel10[],3,0)","v":{"$error":"#N/A"}},null,null,null,null,null,null,null,"EUR",null,null,null,{"$error":"#DIV/0!"},0,0,null,"","","","","","","","","","",null,null,null,null,null,null,null,null,null,null,null,null,null,null,6,"None","Parcel","ZWO"]
[null,null,null,null,null,null,null,null,null,null,null,null,null,null,{"$f":"VLOOKUP(N1166,Tabel10[[korte omschrijving]:[MCC3_CODE]],2,0)","v":{"$error":"#N/A"}},{"$f":"VLOOKUP(N1166,Tabel10[],3,0)","v":{"$error":"#N/A"}},null,null,null,null,null,null,null,"EUR",null,null,null,{"$error":"#DIV/0!"},0,0,null,"","","","","","","","","","",null,null,null,null,null,null,null,null,null,null,null,null,null,null,6,"None","Parcel","ZWO"]
[null,null,null,null,null,null,null,null,null,null,null,null,null,null,{"$f":"VLOOKUP(N1167,Tabel10[[korte omschrijving]:[MCC3_CODE]],2,0)","v":{"$error":"#N/A"}},{"$f":"VLOOKUP(N1167,Tabel10[],3,0)","v":{"$error":"#N/A"}},null,null,null,null,null,null,null,"EUR",null,null,null,{"$error":"#DIV/0!"},0,0,null,"","","","","","","","","","",null,null,null,null,null,null,null,null,null,null,null,null,null,null,6,"None","Parcel","ZWO"]
[null,null,null,null,null,null,null,null,null,null,null,null,null,null,{"$f":"VLOOKUP(N1168,Tabel10[[korte omschrijving]:[MCC3_CODE]],2,0)","v":{"$error":"#N/A"}},{"$f":"VLOOKUP(N1168,Tabel10[],3,0)","v":{"$error":"#N/A"}},null,null,null,null,null,null,null,"EUR",null,null,null,{"$error":"#DIV/0!"},0,0,null,"","","","","","","","","","",null,null,null,null,null,null,null,null,null,null,null,null,null,null,6,"None","Parcel","ZWO"]
[null,null,null,null,null,null,null,null,null,null,null,null,null,null,{"$f":"VLOOKUP(N1169,Tabel10[[korte omschrijving]:[MCC3_CODE]],2,0)","v":{"$error":"#N/A"}},{"$f":"VLOOKUP(N1169,Tabel10[],3,0)","v":{"$error":"#N/A"}},null,null,null,null,null,null,null,"EUR",null,null,null,{"$error":"#DIV/0!"},0,0,null,"","","","","","","","","","",null,null,null,null,null,null,null,null,null,null,null,null,null,null,6,"None","Parcel","ZWO"]
[null,null,null,null,null,null,null,null,null,null,null,null,null,null,{"$f":"VLOOKUP(N1170,Tabel10[[korte omschrijving]:[MCC3_CODE]],2,0)","v":{"$error":"#N/A"}},{"$f":"VLOOKUP(N1170,Tabel10[],3,0)","v":{"$error":"#N/A"}},null,null,null,null,null,null,null,"EUR",null,null,null,{"$error":"#DIV/0!"},0,0,null,"","","","","","","","","","",null,null,null,null,null,null,null,null,null,null,null,null,null,null,6,"None","Parcel","ZWO"]
[null,null,null,null,null,null,null,null,null,null,null,null,null,null,{"$f":"VLOOKUP(N1171,Tabel10[[korte omschrijving]:[MCC3_CODE]],2,0)","v":{"$error":"#N/A"}},{"$f":"VLOOKUP(N1171,Tabel10[],3,0)","v":{"$error":"#N/A"}},null,null,null,null,null,null,null,"EUR",null,null,null,{"$error":"#DIV/0!"},0,0,null,"","","","","","","","","","",null,null,null,null,null,null,null,null,null,null,null,null,null,null,6,"None","Parcel","ZWO"]
[null,null,null,null,null,null,null,null,null,null,null,null,null,null,{"$f":"VLOOKUP(N1172,Tabel10[[korte omschrijving]:[MCC3_CODE]],2,0)","v":{"$error":"#N/A"}},{"$f":"VLOOKUP(N1172,Tabel10[],3,0)","v":{"$error":"#N/A"}},null,null,null,null,null,null,null,"EUR",null,null,null,{"$error":"#DIV/0!"},0,0,null,"","","","","","","","","","",null,null,null,null,null,null,null,null,null,null,null,null,null,null,6,"None","Parcel","ZWO"]
[null,null,null,null,null,null,null,null,null,null,null,null,null,null,{"$f":"VLOOKUP(N1173,Tabel10[[korte omschrijving]:[MCC3_CODE]],2,0)","v":{"$error":"#N/A"}},{"$f":"VLOOKUP(N1173,Tabel10[],3,0)","v":{"$error":"#N/A"}},null,null,null,null,null,null,null,"EUR",null,null,null,{"$error":"#DIV/0!"},0,0,null,"","","","","","","","","","",null,null,null,null,null,null,null,null,null,null,null,null,null,null,6,"None","Parcel","ZWO"]
[null,null,null,null,null,null,null,null,null,null,null,null,null,null,{"$f":"VLOOKUP(N1174,Tabel10[[korte omschrijving]:[MCC3_CODE]],2,0)","v":{"$error":"#N/A"}},{"$f":"VLOOKUP(N1174,Tabel10[],3,0)","v":{"$error":"#N/A"}},null,null,null,null,null,null,null,"EUR",null,null,null,{"$error":"#DIV/0!"},0,0,null,"","","","","","","","","","",null,null,null,null,null,null,null,null,null,null,null,null,null,null,6,"None","Parcel","ZWO"]
[null,null,null,null,null,null,null,null,null,null,null,null,null,null,{"$f":"VLOOKUP(N1175,Tabel10[[korte omschrijving]:[MCC3_CODE]],2,0)","v":{"$error":"#N/A"}},{"$f":"VLOOKUP(N1175,Tabel10[],3,0)","v":{"$error":"#N/A"}},null,null,null,null,null,null,null,"EUR",null,null,null,{"$error":"#DIV/0!"},0,0,null,"","","","","","","","","","",null,null,null,null,null,null,null,null,null,null,null,null,null,null,6,"None","Parcel","ZWO"]
[null,null,null,null,null,null,null,null,null,null,null,null,null,null,{"$f":"VLOOKUP(N1176,Tabel10[[korte omschrijving]:[MCC3_CODE]],2,0)","v":{"$error":"#N/A"}},{"$f":"VLOOKUP(N1176,Tabel10[],3,0)","v":{"$error":"#N/A"}},null,null,null,null,null,null,null,"EUR",null,null,null,{"$error":"#DIV/0!"},0,0,null,"","","","","","","","","","",null,null,null,null,null,null,null,null,null,null,null,null,null,null,6,"None","Parcel","ZWO"]
[null,null,null,null,null,null,null,null,null,null,null,null,null,null,{"$f":"VLOOKUP(N1177,Tabel10[[korte omschrijving]:[MCC3_CODE]],2,0)","v":{"$error":"#N/A"}},{"$f":"VLOOKUP(N1177,Tabel10[],3,0)","v":{"$error":"#N/A"}},null,null,null,null,null,null,null,"EUR",null,null,null,{"$error":"#DIV/0!"},0,0,null,"","","","","","","","","","",null,null,null,null,null,null,null,null,null,null,null,null,null,null,6,"None","Parcel","ZWO"]
[null,null,null,null,null,null,null,null,null,null,null,null,null,null,{"$f":"VLOOKUP(N1178,Tabel10[[korte omschrijving]:[MCC3_CODE]],2,0)","v":{"$error":"#N/A"}},{"$f":"VLOOKUP(N1178,Tabel10[],3,0)","v":{"$error":"#N/A"}},null,null,null,null,null,null,null,"EUR",null,null,null,{"$error":"#DIV/0!"},0,0,null,"","","","","","","","","","",null,null,null,null,null,null,null,null,null,null,null,null,null,null,6,"None","Parcel","ZWO"]
[null,null,null,null,null,null,null,null,null,null,null,null,null,null,{"$f":"VLOOKUP(N1179,Tabel10[[korte omschrijving]:[MCC3_CODE]],2,0)","v":{"$error":"#N/A"}},{"$f":"VLOOKUP(N1179,Tabel10[],3,0)","v":{"$error":"#N/A"}},null,null,null,null,null,null,null,"EUR",null,null,null,{"$error":"#DIV/0!"},0,0,null,"","","","","","","","","","",null,null,null,null,null,null,null,null,null,null,null,null,null,null,6,"None","Parcel","ZWO"]
[null,null,null,null,null,null,null,null,null,null,null,null,null,null,{"$f":"VLOOKUP(N1180,Tabel10[[korte omschrijving]:[MCC3_CODE]],2,0)","v":{"$error":"#N/A"}},{"$f":"VLOOKUP(N1180,Tabel10[],3,0)","v":{"$error":"#N/A"}},null,null,null,null,null,null,null,"EUR",null,null,null,{"$error":"#DIV/0!"},0,0,null,"","","","","","","","","","",null,null,null,null,null,null,null,null,null,null,null,null,null,null,6,"None","Parcel","ZWO"]
[null,null,null,null,null,null,null,null,null,null,null,null,null,null,{"$f":"VLOOKUP(N1181,Tabel10[[korte omschrijving]:[MCC3_CODE]],2,0)","v":{"$error":"#N/A"}},{"$f":"VLOOKUP(N1181,Tabel10[],3,0)","v":{"$error":"#N/A"}},null,null,null,null,null,null,null,"EUR",null,null,null,{"$error":"#DIV/0!"},0,0,null,"","","","","","","","","","",null,null,null,null,null,null,null,null,null,null,null,null,null,null,6,"None","Parcel","ZWO"]
[null,null,null,null,null,null,null,null,null,null,null,null,null,null,{"$f":"VLOOKUP(N1182,Tabel10[[korte omschrijving]:[MCC3_CODE]],2,0)","v":{"$error":"#N/A"}},{"$f":"VLOOKUP(N1182,Tabel10[],3,0)","v":{"$error":"#N/A"}},null,null,null,null,null,null,null,"EUR",null,null,null,{"$error":"#DIV/0!"},0,0,null,"","","","","","","","","","",null,null,null,null,null,null,null,null,null,null,null,null,null,null,6,"None","Parcel","ZWO"]
[null,null,null,null,null,null,null,null,null,null,null,null,null,null,{"$f":"VLOOKUP(N1183,Tabel10[[korte omschrijving]:[MCC3_CODE]],2,0)","v":{"$error":"#N/A"}},{"$f":"VLOOKUP(N1183,Tabel10[],3,0)","v":{"$error":"#N/A"}},null,null,null,null,null,null,null,"EUR",null,null,null,{"$error":"#DIV/0!"},0,0,null,"","","","","","","","","","",null,null,null,null,null,null,null,null,null,null,null,null,null,null,6,"None","Parcel","ZWO"]
[null,null,null,null,null,null,null,null,null,null,null,null,null,null,{"$f":"VLOOKUP(N1184,Tabel10[[korte omschrijving]:[MCC3_CODE]],2,0)","v":{"$error":"#N/A"}},{"$f":"VLOOKUP(N1184,Tabel10[],3,0)","v":{"$error":"#N/A"}},null,null,null,null,null,null,null,"EUR",null,null,null,{"$error":"#DIV/0!"},0,0,null,"","","","","","","","","","",null,null,null,null,null,null,null,null,null,null,null,null,null,null,6,"None","Parcel","ZWO"]
[null,null,null,null,null,null,null,null,null,null,null,null,null,null,{"$f":"VLOOKUP(N1185,Tabel10[[korte omschrijving]:[MCC3_CODE]],2,0)","v":{"$error":"#N/A"}},{"$f":"VLOOKUP(N1185,Tabel10[],3,0)","v":{"$error":"#N/A"}},null,null,null,null,null,null,null,"EUR",null,null,null,{"$error":"#DIV/0!"},0,0,null,"","","","","","","","","","",null,null,null,null,null,null,null,null,null,null,null,null,null,null,6,"None","Parcel","ZWO"]
[null,null,null,null,null,null,null,null,null,null,null,null,null,null,{"$f":"VLOOKUP(N1186,Tabel10[[korte omschrijving]:[MCC3_CODE]],2,0)","v":{"$error":"#N/A"}},{"$f":"VLOOKUP(N1186,Tabel10[],3,0)","v":{"$error":"#N/A"}},null,null,null,null,null,null,null,"EUR",null,null,null,{"$error":"#DIV/0!"},0,0,null,"","","","","","","","","","",null,null,null,null,null,null,null,null,null,null,null,null,null,null,6,"None","Parcel","ZWO"]
[null,null,null,null,null,null,null,null,null,null,null,null,null,null,{"$f":"VLOOKUP(N1187,Tabel10[[korte omschrijving]:[MCC3_CODE]],2,0)","v":{"$error":"#N/A"}},{"$f":"VLOOKUP(N1187,Tabel10[],3,0)","v":{"$error":"#N/A"}},null,null,null,null,null,null,null,"EUR",null,null,null,{"$error":"#DIV/0!"},0,0,null,"","","","","","","","","","",null,null,null,null,null,null,null,null,null,null,null,null,null,null,6,"None","Parcel","ZWO"]
[null,null,null,null,null,null,null,null,null,null,null,null,null,null,{"$f":"VLOOKUP(N1188,Tabel10[[korte omschrijving]:[MCC3_CODE]],2,0)","v":{"$error":"#N/A"}},{"$f":"VLOOKUP(N1188,Tabel10[],3,0)","v":{"$error":"#N/A"}},null,null,null,null,null,null,null,"EUR",null,null,null,{"$error":"#DIV/0!"},0,0,null,"","","","","","","","","","",null,null,null,null,null,null,null,null,null,null,null,null,null,null,6,"None","Parcel","ZWO"]
[null,null,null,null,null,null,null,null,null,null,null,null,null,null,{"$f":"VLOOKUP(N1189,Tabel10[[korte omschrijving]:[MCC3_CODE]],2,0)","v":{"$error":"#N/A"}},{"$f":"VLOOKUP(N1189,Tabel10[],3,0)","v":{"$error":"#N/A"}},null,null,null,null,null,null,null,"EUR",null,null,null,{"$error":"#DIV/0!"},0,0,null,"","","","","","","","","","",null,null,null,null,null,null,null,null,null,null,null,null,null,null,6,"None","Parcel","ZWO"]
[null,null,null,null,null,null,null,null,null,null,null,null,null,null,{"$f":"VLOOKUP(N1190,Tabel10[[korte omschrijving]:[MCC3_CODE]],2,0)","v":{"$error":"#N/A"}},{"$f":"VLOOKUP(N1190,Tabel10[],3,0)","v":{"$error":"#N/A"}},null,null,null,null,null,null,null,"EUR",null,null,null,{"$error":"#DIV/0!"},0,0,null,"","","","","","","","","","",null,null,null,null,null,null,null,null,null,null,null,null,null,null,6,"None","Parcel","ZWO"]
[null,null,null,null,null,null,null,null,null,null,null,null,null,null,{"$f":"VLOOKUP(N1191,Tabel10[[korte omschrijving]:[MCC3_CODE]],2,0)","v":{"$error":"#N/A"}},{"$f":"VLOOKUP(N1191,Tabel10[],3,0)","v":{"$error":"#N/A"}},null,null,null,null,null,null,null,"EUR",null,null,null,{"$error":"#DIV/0!"},0,0,null,"","","","","","","","","","",null,null,null,null,null,null,null,null,null,null,null,null,null,null,6,"None","Parcel","ZWO"]
[null,null,null,null,null,null,null,null,null,null,null,null,null,null,{"$f":"VLOOKUP(N1192,Tabel10[[korte omschrijving]:[MCC3_CODE]],2,0)","v":{"$error":"#N/A"}},{"$f":"VLOOKUP(N1192,Tabel10[],3,0)","v":{"$error":"#N/A"}},null,null,null,null,null,null,null,"EUR",null,null,null,{"$error":"#DIV/0!"},0,0,null,"","","","","","","","","","",null,null,null,null,null,null,null,null,null,null,null,null,null,null,6,"None","Parcel","ZWO"]
[null,null,null,null,null,null,null,null,null,null,null,null,null,null,{"$f":"VLOOKUP(N1193,Tabel10[[korte omschrijving]:[MCC3_CODE]],2,0)","v":{"$error":"#N/A"}},{"$f":"VLOOKUP(N1193,Tabel10[],3,0)","v":{"$error":"#N/A"}},null,null,null,null,null,null,null,"EUR",null,null,null,{"$error":"#DIV/0!"},0,0,null,"","","","","","","","","","",null,null,null,null,null,null,null,null,null,null,null,null,null,null,6,"None","Parcel","ZWO"]
[null,null,null,null,null,null,null,null,null,null,null,null,null,null,{"$f":"VLOOKUP(N1194,Tabel10[[korte omschrijving]:[MCC3_CODE]],2,0)","v":{"$error":"#N/A"}},{"$f":"VLOOKUP(N1194,Tabel10[],3,0)","v":{"$error":"#N/A"}},null,null,null,null,null,null,null,"EUR",null,null,null,{"$error":"#DIV/0!"},0,0,null,"","","","","","","","","","",null,null,null,null,null,null,null,null,null,null,null,null,null,null,6,"None","Parcel","ZWO"]
[null,null,null,null,null,null,null,null,null,null,null,null,null,null,{"$f":"VLOOKUP(N1195,Tabel10[[korte omschrijving]:[MCC3_CODE]],2,0)","v":{"$error":"#N/A"}},{"$f":"VLOOKUP(N1195,Tabel10[],3,0)","v":{"$error":"#N/A"}},null,null,null,null,null,null,null,"EUR",null,null,null,{"$error":"#DIV/0!"},0,0,null,"","","","","","","","","","",null,null,null,null,null,null,null,null,null,null,null,null,null,null,6,"None","Parcel","ZWO"]
[null,null,null,null,null,null,null,null,null,null,null,null,null,null,{"$f":"VLOOKUP(N1196,Tabel10[[korte omschrijving]:[MCC3_CODE]],2,0)","v":{"$error":"#N/A"}},{"$f":"VLOOKUP(N1196,Tabel10[],3,0)","v":{"$error":"#N/A"}},null,null,null,null,null,null,null,"EUR",null,null,null,{"$error":"#DIV/0!"},0,0,null,"","","","","","","","","","",null,null,null,null,null,null,null,null,null,null,null,null,null,null,6,"None","Parcel","ZWO"]
[null,null,null,null,null,null,null,null,null,null,null,null,null,null,{"$f":"VLOOKUP(N1197,Tabel10[[korte omschrijving]:[MCC3_CODE]],2,0)","v":{"$error":"#N/A"}},{"$f":"VLOOKUP(N1197,Tabel10[],3,0)","v":{"$error":"#N/A"}},null,null,null,null,null,null,null,"EUR",null,null,null,{"$error":"#DIV/0!"},0,0,null,"","","","","","","","","","",null,null,null,null,null,null,null,null,null,null,null,null,null,null,6,"None","Parcel","ZWO"]
[null,null,null,null,null,null,null,null,null,null,null,null,null,null,{"$f":"VLOOKUP(N1198,Tabel10[[korte omschrijving]:[MCC3_CODE]],2,0)","v":{"$error":"#N/A"}},{"$f":"VLOOKUP(N1198,Tabel10[],3,0)","v":{"$error":"#N/A"}},null,null,null,null,null,null,null,"EUR",null,null,null,{"$error":"#DIV/0!"},0,0,null,"","","","","","","","","","",null,null,null,null,null,null,null,null,null,null,null,null,null,null,6,"None","Parcel","ZWO"]
[null,null,null,null,null,null,null,null,null,null,null,null,null,null,{"$f":"VLOOKUP(N1199,Tabel10[[korte omschrijving]:[MCC3_CODE]],2,0)","v":{"$error":"#N/A"}},{"$f":"VLOOKUP(N1199,Tabel10[],3,0)","v":{"$error":"#N/A"}},null,null,null,null,null,null,null,"EUR",null,null,null,{"$error":"#DIV/0!"},0,0,null,"","","","","","","","","","",null,null,null,null,null,null,null,null,null,null,null,null,null,null,6,"None","Parcel","ZWO"]
[null,null,null,null,null,null,null,null,null,null,null,null,null,null,{"$f":"VLOOKUP(N1200,Tabel10[[korte omschrijving]:[MCC3_CODE]],2,0)","v":{"$error":"#N/A"}},{"$f":"VLOOKUP(N1200,Tabel10[],3,0)","v":{"$error":"#N/A"}},null,null,null,null,null,null,null,"EUR",null,null,null,{"$error":"#DIV/0!"},0,0,null,"","","","","","","","","","",null,null,null,null,null,null,null,null,null,null,null,null,null,null,6,"None","Parcel","ZWO"]
[null,null,null,null,null,null,null,null,null,null,null,null,null,null,{"$f":"VLOOKUP(N1201,Tabel10[[korte omschrijving]:[MCC3_CODE]],2,0)","v":{"$error":"#N/A"}},{"$f":"VLOOKUP(N1201,Tabel10[],3,0)","v":{"$error":"#N/A"}},null,null,null,null,null,null,null,"EUR",null,null,null,{"$error":"#DIV/0!"},0,0,null,"","","","","","","","","","",null,null,null,null,null,null,null,null,null,null,null,null,null,null,6,"None","Parcel","ZWO"]
[null,null,null,null,null,null,null,null,null,null,null,null,null,null,{"$f":"VLOOKUP(N1202,Tabel10[[korte omschrijving]:[MCC3_CODE]],2,0)","v":{"$error":"#N/A"}},{"$f":"VLOOKUP(N1202,Tabel10[],3,0)","v":{"$error":"#N/A"}},null,null,null,null,null,null,null,"EUR",null,null,null,{"$error":"#DIV/0!"},0,0,null,"","","","","","","","","","",null,null,null,null,null,null,null,null,null,null,null,null,null,null,6,"None","Parcel","ZWO"]
[null,null,null,null,null,null,null,null,null,null,null,null,null,null,{"$f":"VLOOKUP(N1203,Tabel10[[korte omschrijving]:[MCC3_CODE]],2,0)","v":{"$error":"#N/A"}},{"$f":"VLOOKUP(N1203,Tabel10[],3,0)","v":{"$error":"#N/A"}},null,null,null,null,null,null,null,"EUR",null,null,null,{"$error":"#DIV/0!"},0,0,null,"","","","","","","","","","",null,null,null,null,null,null,null,null,null,null,null,null,null,null,6,"None","Parcel","ZWO"]
[null,null,null,null,null,null,null,null,null,null,null,null,null,null,{"$f":"VLOOKUP(N1204,Tabel10[[korte omschrijving]:[MCC3_CODE]],2,0)","v":{"$error":"#N/A"}},{"$f":"VLOOKUP(N1204,Tabel10[],3,0)","v":{"$error":"#N/A"}},null,null,null,null,null,null,null,"EUR",null,null,null,{"$error":"#DIV/0!"},0,0,null,"","","","","","","","","","",null,null,null,null,null,null,null,null,null,null,null,null,null,null,6,"None","Parcel","ZWO"]
[null,null,null,null,null,null,null,null,null,null,null,null,null,null,{"$f":"VLOOKUP(N1205,Tabel10[[korte omschrijving]:[MCC3_CODE]],2,0)","v":{"$error":"#N/A"}},{"$f":"VLOOKUP(N1205,Tabel10[],3,0)","v":{"$error":"#N/A"}},null,null,null,null,null,null,null,"EUR",null,null,null,{"$error":"#DIV/0!"},0,0,null,"","","","","","","","","","",null,null,null,null,null,null,null,null,null,null,null,null,null,null,6,"None","Parcel","ZWO"]
[null,null,null,null,null,null,null,null,null,null,null,null,null,null,{"$f":"VLOOKUP(N1206,Tabel10[[korte omschrijving]:[MCC3_CODE]],2,0)","v":{"$error":"#N/A"}},{"$f":"VLOOKUP(N1206,Tabel10[],3,0)","v":{"$error":"#N/A"}},null,null,null,null,null,null,null,"EUR",null,null,null,{"$error":"#DIV/0!"},0,0,null,"","","","","","","","","","",null,null,null,null,null,null,null,null,null,null,null,null,null,null,6,"None","Parcel","ZWO"]
[null,null,null,null,null,null,null,null,null,null,null,null,null,null,{"$f":"VLOOKUP(N1207,Tabel10[[korte omschrijving]:[MCC3_CODE]],2,0)","v":{"$error":"#N/A"}},{"$f":"VLOOKUP(N1207,Tabel10[],3,0)","v":{"$error":"#N/A"}},null,null,null,null,null,null,null,"EUR",null,null,null,{"$error":"#DIV/0!"},0,0,null,"","","","","","","","","","",null,null,null,null,null,null,null,null,null,null,null,null,null,null,6,"None","Parcel","ZWO"]
[null,null,null,null,null,null,null,null,null,null,null,null,null,null,{"$f":"VLOOKUP(N1208,Tabel10[[korte omschrijving]:[MCC3_CODE]],2,0)","v":{"$error":"#N/A"}},{"$f":"VLOOKUP(N1208,Tabel10[],3,0)","v":{"$error":"#N/A"}},null,null,null,null,null,null,null,"EUR",null,null,null,{"$error":"#DIV/0!"},0,0,null,"","","","","","","","","","",null,null,null,null,null,null,null,null,null,null,null,null,null,null,6,"None","Parcel","ZWO"]
[null,null,null,null,null,null,null,null,null,null,null,null,null,null,{"$f":"VLOOKUP(N1209,Tabel10[[korte omschrijving]:[MCC3_CODE]],2,0)","v":{"$error":"#N/A"}},{"$f":"VLOOKUP(N1209,Tabel10[],3,0)","v":{"$error":"#N/A"}},null,null,null,null,null,null,null,"EUR",null,null,null,{"$error":"#DIV/0!"},0,0,null,"","","","","","","","","","",null,null,null,null,null,null,null,null,null,null,null,null,null,null,6,"None","Parcel","ZWO"]
[null,null,null,null,null,null,null,null,null,null,null,null,null,null,{"$f":"VLOOKUP(N1210,Tabel10[[korte omschrijving]:[MCC3_CODE]],2,0)","v":{"$error":"#N/A"}},{"$f":"VLOOKUP(N1210,Tabel10[],3,0)","v":{"$error":"#N/A"}},null,null,null,null,null,null,null,"EUR",null,null,null,{"$error":"#DIV/0!"},0,0,null,"","","","","","","","","","",null,null,null,null,null,null,null,null,null,null,null,null,null,null,6,"None","Parcel","ZWO"]
[null,null,null,null,null,null,null,null,null,null,null,null,null,null,{"$f":"VLOOKUP(N1211,Tabel10[[korte omschrijving]:[MCC3_CODE]],2,0)","v":{"$error":"#N/A"}},{"$f":"VLOOKUP(N1211,Tabel10[],3,0)","v":{"$error":"#N/A"}},null,null,null,null,null,null,null,"EUR",null,null,null,{"$error":"#DIV/0!"},0,0,null,"","","","","","","","","","",null,null,null,null,null,null,null,null,null,null,null,null,null,null,6,"None","Parcel","ZWO"]
[null,null,null,null,null,null,null,null,null,null,null,null,null,null,{"$f":"VLOOKUP(N1212,Tabel10[[korte omschrijving]:[MCC3_CODE]],2,0)","v":{"$error":"#N/A"}},{"$f":"VLOOKUP(N1212,Tabel10[],3,0)","v":{"$error":"#N/A"}},null,null,null,null,null,null,null,"EUR",null,null,null,{"$error":"#DIV/0!"},0,0,null,"","","","","","","","","","",null,null,null,null,null,null,null,null,null,null,null,null,null,null,6,"None","Parcel","ZWO"]
[null,null,null,null,null,null,null,null,null,null,null,null,null,null,{"$f":"VLOOKUP(N1213,Tabel10[[korte omschrijving]:[MCC3_CODE]],2,0)","v":{"$error":"#N/A"}},{"$f":"VLOOKUP(N1213,Tabel10[],3,0)","v":{"$error":"#N/A"}},null,null,null,null,null,null,null,"EUR",null,null,null,{"$error":"#DIV/0!"},0,0,null,"","","","","","","","","","",null,null,null,null,null,null,null,null,null,null,null,null,null,null,6,"None","Parcel","ZWO"]
[null,null,null,null,null,null,null,null,null,null,null,null,null,null,{"$f":"VLOOKUP(N1214,Tabel10[[korte omschrijving]:[MCC3_CODE]],2,0)","v":{"$error":"#N/A"}},{"$f":"VLOOKUP(N1214,Tabel10[],3,0)","v":{"$error":"#N/A"}},null,null,null,null,null,null,null,"EUR",null,null,null,{"$error":"#DIV/0!"},0,0,null,"","","","","","","","","","",null,null,null,null,null,null,null,null,null,null,null,null,null,null,6,"None","Parcel","ZWO"]
[null,null,null,null,null,null,null,null,null,null,null,null,null,null,{"$f":"VLOOKUP(N1215,Tabel10[[korte omschrijving]:[MCC3_CODE]],2,0)","v":{"$error":"#N/A"}},{"$f":"VLOOKUP(N1215,Tabel10[],3,0)","v":{"$error":"#N/A"}},null,null,null,null,null,null,null,"EUR",null,null,null,{"$error":"#DIV/0!"},0,0,null,"","","","","","","","","","",null,null,null,null,null,null,null,null,null,null,null,null,null,null,6,"None","Parcel","ZWO"]
[null,null,null,null,null,null,null,null,null,null,null,null,null,null,{"$f":"VLOOKUP(N1216,Tabel10[[korte omschrijving]:[MCC3_CODE]],2,0)","v":{"$error":"#N/A"}},{"$f":"VLOOKUP(N1216,Tabel10[],3,0)","v":{"$error":"#N/A"}},null,null,null,null,null,null,null,"EUR",null,null,null,{"$error":"#DIV/0!"},0,0,null,"","","","","","","","","","",null,null,null,null,null,null,null,null,null,null,null,null,null,null,6,"None","Parcel","ZWO"]
[null,null,null,null,null,null,null,null,null,null,null,null,null,null,{"$f":"VLOOKUP(N1217,Tabel10[[korte omschrijving]:[MCC3_CODE]],2,0)","v":{"$error":"#N/A"}},{"$f":"VLOOKUP(N1217,Tabel10[],3,0)","v":{"$error":"#N/A"}},null,null,null,null,null,null,null,"EUR",null,null,null,{"$error":"#DIV/0!"},0,0,null,"","","","","","","","","","",null,null,null,null,null,null,null,null,null,null,null,null,null,null,6,"None","Parcel","ZWO"]
[null,null,null,null,null,null,null,null,null,null,null,null,null,null,{"$f":"VLOOKUP(N1218,Tabel10[[korte omschrijving]:[MCC3_CODE]],2,0)","v":{"$error":"#N/A"}},{"$f":"VLOOKUP(N1218,Tabel10[],3,0)","v":{"$error":"#N/A"}},null,null,null,null,null,null,null,"EUR",null,null,null,{"$error":"#DIV/0!"},0,0,null,"","","","","","","","","","",null,null,null,null,null,null,null,null,null,null,null,null,null,null,6,"None","Parcel","ZWO"]
[null,null,null,null,null,null,null,null,null,null,null,null,null,null,{"$f":"VLOOKUP(N1219,Tabel10[[korte omschrijving]:[MCC3_CODE]],2,0)","v":{"$error":"#N/A"}},{"$f":"VLOOKUP(N1219,Tabel10[],3,0)","v":{"$error":"#N/A"}},null,null,null,null,null,null,null,"EUR",null,null,null,{"$error":"#DIV/0!"},0,0,null,"","","","","","","","","","",null,null,null,null,null,null,null,null,null,null,null,null,null,null,6,"None","Parcel","ZWO"]
[null,null,null,null,null,null,null,null,null,null,null,null,null,null,{"$f":"VLOOKUP(N1220,Tabel10[[korte omschrijving]:[MCC3_CODE]],2,0)","v":{"$error":"#N/A"}},{"$f":"VLOOKUP(N1220,Tabel10[],3,0)","v":{"$error":"#N/A"}},null,null,null,null,null,null,null,"EUR",null,null,null,{"$error":"#DIV/0!"},0,0,null,"","","","","","","","","","",null,null,null,null,null,null,null,null,null,null,null,null,null,null,6,"None","Parcel","ZWO"]
[null,null,null,null,null,null,null,null,null,null,null,null,null,null,{"$f":"VLOOKUP(N1221,Tabel10[[korte omschrijving]:[MCC3_CODE]],2,0)","v":{"$error":"#N/A"}},{"$f":"VLOOKUP(N1221,Tabel10[],3,0)","v":{"$error":"#N/A"}},null,null,null,null,null,null,null,"EUR",null,null,null,{"$error":"#DIV/0!"},0,0,null,"","","","","","","","","","",null,null,null,null,null,null,null,null,null,null,null,null,null,null,6,"None","Parcel","ZWO"]
[null,null,null,null,null,null,null,null,null,null,null,null,null,null,{"$f":"VLOOKUP(N1222,Tabel10[[korte omschrijving]:[MCC3_CODE]],2,0)","v":{"$error":"#N/A"}},{"$f":"VLOOKUP(N1222,Tabel10[],3,0)","v":{"$error":"#N/A"}},null,null,null,null,null,null,null,"EUR",null,null,null,{"$error":"#DIV/0!"},0,0,null,"","","","","","","","","","",null,null,null,null,null,null,null,null,null,null,null,null,null,null,6,"None","Parcel","ZWO"]
[null,null,null,null,null,null,null,null,null,null,null,null,null,null,{"$f":"VLOOKUP(N1223,Tabel10[[korte omschrijving]:[MCC3_CODE]],2,0)","v":{"$error":"#N/A"}},{"$f":"VLOOKUP(N1223,Tabel10[],3,0)","v":{"$error":"#N/A"}},null,null,null,null,null,null,null,"EUR",null,null,null,{"$f":"AA1223/Y1223","v":{"$error":"#DIV/0!"}},{"$f":"T1223*Y1223","v":0},{"$f":"T1223*AA1223","v":0},null,{"$f":"IF(AE1223 <> \"\",\n    IF(ISNUMBER(VALUE(LEFT(AE1223, FIND(\"%\", AE1223)-1))),\n        VALUE(LEFT(AE1223, FIND(\"%\", AE1223)-1)),\n        \"Invalid format\"),\n    \"\")","v":""},{"$f":"IF(AE1223 <> \"\",\n    IF(ISNUMBER(VALUE(LEFT(AE1223, FIND(\"%\", AE1223)-1))) * ISNUMBER(FIND(\"%\", AE1223 & \"wol\")) > 0,\n        TRIM(MID(AE1223, FIND(\"%\", AE1223)+1, FIND(\"/\", AE1223 & \"/\")-FIND(\"%\", AE1223)-1)),\n        \"Invalid format\"),\n    \"\")","v":""},{"$f":"IF(AE1223 <> \"\",\n    IF(ISNUMBER(VALUE(MID(AE1223, FIND(\"/\", AE1223) + 1, FIND(\"%\", AE1223, FIND(\"/\", AE1223)) - FIND(\"/\", AE1223) - 1))),\n        VALUE(MID(AE1223, FIND(\"/\", AE1223) + 1, FIND(\"%\", AE1223, FIND(\"/\", AE1223)) - FIND(\"/\", AE1223) - 1)),\n        \"\"),\n    \"\")","v":""},{"$f":"IF(AE1223 <> \"\",\n    IFERROR(TRIM(MID(AE1223, FIND(\"%\", AE1223, FIND(\"/\", AE1223)+1)+2,\n        IFERROR(FIND(\"/\", AE1223 & \"/\", FIND(\"/\", AE1223)+1)-FIND(\"%\", AE1223, FIND(\"/\", AE1223)+1)-2, LEN(AE1223)-FIND(\"%\", AE1223, FIND(\"/\", AE1223)+1)-1))),\n        \"\"),\n    \"\")","v":""},{"$f":"IF(AE1223 <> \"\",\n    IF(ISNUMBER(VALUE(MID(AE1223, FIND(\"/\", AE1223, FIND(\"/\", AE1223)+1) + 1, FIND(\"%\", AE1223, FIND(\"/\", AE1223, FIND(\"/\", AE1223)+1)) - FIND(\"/\", AE1223, FIND(\"/\", AE1223)+1) - 1))),\n        VALUE(MID(AE1223, FIND(\"/\", AE1223, FIND(\"/\", AE1223)+1) + 1, FIND(\"%\", AE1223, FIND(\"/\", AE1223, FIND(\"/\", AE1223)+1)) - FIND(\"/\", AE1223, FIND(\"/\", AE1223)+1) - 1)),\n        \"\"),\n    \"\")","v":""},{"$f":"IF(AE1223 <> \"\",\n    IFERROR(\n        TRIM(MID(AE1223,\n            FIND(\"%\", AE1223, FIND(\"%\", AE1223, FIND(\"%\", AE1223)+1)+1)+1,\n            FIND(\"/\", AE1223 & \"/\", FIND(\"%\", AE1223, FIND(\"%\", AE1223, FIND(\"%\", AE1223)+1)+1))-FIND(\"%\", AE1223, FIND(\"%\", AE1223, FIND(\"%\", AE1223)+1)+1)-1)\n        ),\n        \"\"\n    ),\n    \"\"\n)","v":""},{"$f":"IF(AE1223 <> \"\",\n    IF(ISNUMBER(VALUE(MID(AE1223, FIND(\"/\", AE1223, FIND(\"/\", AE1223, FIND(\"/\", AE1223)+1)+1) + 1, FIND(\"%\", AE1223, FIND(\"/\", AE1223, FIND(\"/\", AE1223, FIND(\"/\", AE1223)+1)+1)) - FIND(\"/\", AE1223, FIND(\"/\", AE1223, FIND(\"/\", AE1223)+1)+1) - 1))),\n        VALUE(MID(AE1223, FIND(\"/\", AE1223, FIND(\"/\", AE1223, FIND(\"/\", AE1223)+1)+1) + 1, FIND(\"%\", AE1223, FIND(\"/\", AE1223, FIND(\"/\", AE1223, FIND(\"/\", AE1223)+1)+1)) - FIND(\"/\", AE1223, FIND(\"/\", AE1223, FIND(\"/\", AE1223)+1)+1) - 1)),\n        \"\"),\n    \"\")","v":""},{"$f":"IF(AE1223 <> \"\",\n    IFERROR(TRIM(MID(AE1223, FIND(\"%\", AE1223, FIND(\"/\", AE1223, FIND(\"/\", AE1223, FIND(\"/\", AE1223)+1)+1)+1)+2,\n        IFERROR(FIND(\"/\", AE1223, FIND(\"/\", AE1223, FIND(\"/\", AE1223, FIND(\"/\", AE1223)+1)+1)+1)-FIND(\"%\", AE1223, FIND(\"/\", AE1223, FIND(\"/\", AE1223, FIND(\"/\", AE1223)+1)+1)+1)-2, LEN(AE1223)-FIND(\"%\", AE1223, FIND(\"/\", AE1223, FIND(\"/\", AE1223, FIND(\"/\", AE1223)+1)+1)+1)-1))),\n        \"\"),\n    \"\")","v":""},{"$f":"IF(AE1223 <> \"\",\n    IF(ISNUMBER(VALUE(MID(AE1223, FIND(\"/\", AE1223, FIND(\"/\", AE1223, FIND(\"/\", AE1223, FIND(\"/\", AE1223)+1)+1)+1) + 1, FIND(\"%\", AE1223, FIND(\"/\", AE1223, FIND(\"/\", AE1223, FIND(\"/\", AE1223, FIND(\"/\", AE1223)+1)+1)+1)) - FIND(\"/\", AE1223, FIND(\"/\", AE1223, FIND(\"/\", AE1223, FIND(\"/\", AE1223)+1)+1)+1) - 1))),\n        VALUE(MID(AE1223, FIND(\"/\", AE1223, FIND(\"/\", AE1223, FIND(\"/\", AE1223, FIND(\"/\", AE1223)+1)+1)+1) + 1, FIND(\"%\", AE1223, FIND(\"/\", AE1223, FIND(\"/\", AE1223, FIND(\"/\", AE1223, FIND(\"/\", AE1223)+1)+1)+1)) - FIND(\"/\", AE1223, FIND(\"/\", AE1223, FIND(\"/\", AE1223, FIND(\"/\", AE1223)+1)+1)+1) - 1)),\n        \"\"),\n    \"\")","v":""},{"$f":"IF(AE1223 = \"\", \"\",\n    IFERROR(TRIM(\n        MID(\n            AE1223,\n            FIND(\"%\", AE1223, FIND(\"/\", AE1223, FIND(\"/\", AE1223, FIND(\"/\", AE1223, FIND(\"/\", AE1223)+1)+1)+1)+1) + 1,\n            FIND(\"/\", AE1223 & \"/\", FIND(\"%\", AE1223, FIND(\"/\", AE1223, FIND(\"/\", AE1223, FIND(\"/\", AE1223, FIND(\"/\", AE1223)+1)+1)+1)+1)) -\n            FIND(\"%\", AE1223, FIND(\"/\", AE1223, FIND(\"/\", AE1223, FIND(\"/\", AE1223, FIND(\"/\", AE1223)+1)+1)+1)+1) - 1\n        )\n    ),\n    \"\")\n)","v":""},null,null,null,null,null,null,null,null,null,null,null,null,null,null,6,"None","Parcel","ZWO"]
[null,null,null,null,null,null,null,null,null,null,null,null,null,null,{"$f":"VLOOKUP(N1224,Tabel10[[korte omschrijving]:[MCC3_CODE]],2,0)","v":{"$error":"#N/A"}},{"$f":"VLOOKUP(N1224,Tabel10[],3,0)","v":{"$error":"#N/A"}},null,null,null,null,null,null,null,"EUR",null,null,null,{"$error":"#DIV/0!"},0,0,null,"","","","","","","","","","",null,null,null,null,null,null,null,null,null,null,null,null,null,null,6,"None","Parcel","ZWO"]
[null,null,null,null,null,null,null,null,null,null,null,null,null,null,{"$f":"VLOOKUP(N1225,Tabel10[[korte omschrijving]:[MCC3_CODE]],2,0)","v":{"$error":"#N/A"}},{"$f":"VLOOKUP(N1225,Tabel10[],3,0)","v":{"$error":"#N/A"}},null,null,null,null,null,null,null,"EUR",null,null,null,{"$error":"#DIV/0!"},0,0,null,"","","","","","","","","","",null,null,null,null,null,null,null,null,null,null,null,null,null,null,6,"None","Parcel","ZWO"]
[null,null,null,null,null,null,null,null,null,null,null,null,null,null,{"$f":"VLOOKUP(N1226,Tabel10[[korte omschrijving]:[MCC3_CODE]],2,0)","v":{"$error":"#N/A"}},{"$f":"VLOOKUP(N1226,Tabel10[],3,0)","v":{"$error":"#N/A"}},null,null,null,null,null,null,null,"EUR",null,null,null,{"$error":"#DIV/0!"},0,0,null,"","","","","","","","","","",null,null,null,null,null,null,null,null,null,null,null,null,null,null,6,"None","Parcel","ZWO"]
[null,null,null,null,null,null,null,null,null,null,null,null,null,null,{"$f":"VLOOKUP(N1227,Tabel10[[korte omschrijving]:[MCC3_CODE]],2,0)","v":{"$error":"#N/A"}},{"$f":"VLOOKUP(N1227,Tabel10[],3,0)","v":{"$error":"#N/A"}},null,null,null,null,null,null,null,"EUR",null,null,null,{"$error":"#DIV/0!"},0,0,null,"","","","","","","","","","",null,null,null,null,null,null,null,null,null,null,null,null,null,null,6,"None","Parcel","ZWO"]
[null,null,null,null,null,null,null,null,null,null,null,null,null,null,{"$f":"VLOOKUP(N1228,Tabel10[[korte omschrijving]:[MCC3_CODE]],2,0)","v":{"$error":"#N/A"}},{"$f":"VLOOKUP(N1228,Tabel10[],3,0)","v":{"$error":"#N/A"}},null,null,null,null,null,null,null,"EUR",null,null,null,{"$error":"#DIV/0!"},0,0,null,"","","","","","","","","","",null,null,null,null,null,null,null,null,null,null,null,null,null,null,6,"None","Parcel","ZWO"]
[null,null,null,null,null,null,null,null,null,null,null,null,null,null,{"$f":"VLOOKUP(N1229,Tabel10[[korte omschrijving]:[MCC3_CODE]],2,0)","v":{"$error":"#N/A"}},{"$f":"VLOOKUP(N1229,Tabel10[],3,0)","v":{"$error":"#N/A"}},null,null,null,null,null,null,null,"EUR",null,null,null,{"$error":"#DIV/0!"},0,0,null,"","","","","","","","","","",null,null,null,null,null,null,null,null,null,null,null,null,null,null,6,"None","Parcel","ZWO"]
[null,null,null,null,null,null,null,null,null,null,null,null,null,null,{"$f":"VLOOKUP(N1230,Tabel10[[korte omschrijving]:[MCC3_CODE]],2,0)","v":{"$error":"#N/A"}},{"$f":"VLOOKUP(N1230,Tabel10[],3,0)","v":{"$error":"#N/A"}},null,null,null,null,null,null,null,"EUR",null,null,null,{"$error":"#DIV/0!"},0,0,null,"","","","","","","","","","",null,null,null,null,null,null,null,null,null,null,null,null,null,null,6,"None","Parcel","ZWO"]
[null,null,null,null,null,null,null,null,null,null,null,null,null,null,{"$f":"VLOOKUP(N1231,Tabel10[[korte omschrijving]:[MCC3_CODE]],2,0)","v":{"$error":"#N/A"}},{"$f":"VLOOKUP(N1231,Tabel10[],3,0)","v":{"$error":"#N/A"}},null,null,null,null,null,null,null,"EUR",null,null,null,{"$error":"#DIV/0!"},0,0,null,"","","","","","","","","","",null,null,null,null,null,null,null,null,null,null,null,null,null,null,6,"None","Parcel","ZWO"]
[null,null,null,null,null,null,null,null,null,null,null,null,null,null,{"$f":"VLOOKUP(N1232,Tabel10[[korte omschrijving]:[MCC3_CODE]],2,0)","v":{"$error":"#N/A"}},{"$f":"VLOOKUP(N1232,Tabel10[],3,0)","v":{"$error":"#N/A"}},null,null,null,null,null,null,null,"EUR",null,null,null,{"$error":"#DIV/0!"},0,0,null,"","","","","","","","","","",null,null,null,null,null,null,null,null,null,null,null,null,null,null,6,"None","Parcel","ZWO"]
[null,null,null,null,null,null,null,null,null,null,null,null,null,null,{"$f":"VLOOKUP(N1233,Tabel10[[korte omschrijving]:[MCC3_CODE]],2,0)","v":{"$error":"#N/A"}},{"$f":"VLOOKUP(N1233,Tabel10[],3,0)","v":{"$error":"#N/A"}},null,null,null,null,null,null,null,"EUR",null,null,null,{"$error":"#DIV/0!"},0,0,null,"","","","","","","","","","",null,null,null,null,null,null,null,null,null,null,null,null,null,null,6,"None","Parcel","ZWO"]
[null,null,null,null,null,null,null,null,null,null,null,null,null,null,{"$f":"VLOOKUP(N1234,Tabel10[[korte omschrijving]:[MCC3_CODE]],2,0)","v":{"$error":"#N/A"}},{"$f":"VLOOKUP(N1234,Tabel10[],3,0)","v":{"$error":"#N/A"}},null,null,null,null,null,null,null,"EUR",null,null,null,{"$error":"#DIV/0!"},0,0,null,"","","","","","","","","","",null,null,null,null,null,null,null,null,null,null,null,null,null,null,6,"None","Parcel","ZWO"]
[null,null,null,null,null,null,null,null,null,null,null,null,null,null,{"$f":"VLOOKUP(N1235,Tabel10[[korte omschrijving]:[MCC3_CODE]],2,0)","v":{"$error":"#N/A"}},{"$f":"VLOOKUP(N1235,Tabel10[],3,0)","v":{"$error":"#N/A"}},null,null,null,null,null,null,null,"EUR",null,null,null,{"$error":"#DIV/0!"},0,0,null,"","","","","","","","","","",null,null,null,null,null,null,null,null,null,null,null,null,null,null,6,"None","Parcel","ZWO"]
[null,null,null,null,null,null,null,null,null,null,null,null,null,null,{"$f":"VLOOKUP(N1236,Tabel10[[korte omschrijving]:[MCC3_CODE]],2,0)","v":{"$error":"#N/A"}},{"$f":"VLOOKUP(N1236,Tabel10[],3,0)","v":{"$error":"#N/A"}},null,null,null,null,null,null,null,"EUR",null,null,null,{"$error":"#DIV/0!"},0,0,null,"","","","","","","","","","",null,null,null,null,null,null,null,null,null,null,null,null,null,null,6,"None","Parcel","ZWO"]
[null,null,null,null,null,null,null,null,null,null,null,null,null,null,{"$f":"VLOOKUP(N1237,Tabel10[[korte omschrijving]:[MCC3_CODE]],2,0)","v":{"$error":"#N/A"}},{"$f":"VLOOKUP(N1237,Tabel10[],3,0)","v":{"$error":"#N/A"}},null,null,null,null,null,null,null,"EUR",null,null,null,{"$error":"#DIV/0!"},0,0,null,"","","","","","","","","","",null,null,null,null,null,null,null,null,null,null,null,null,null,null,6,"None","Parcel","ZWO"]
[null,null,null,null,null,null,null,null,null,null,null,null,null,null,{"$f":"VLOOKUP(N1238,Tabel10[[korte omschrijving]:[MCC3_CODE]],2,0)","v":{"$error":"#N/A"}},{"$f":"VLOOKUP(N1238,Tabel10[],3,0)","v":{"$error":"#N/A"}},null,null,null,null,null,null,null,"EUR",null,null,null,{"$error":"#DIV/0!"},0,0,null,"","","","","","","","","","",null,null,null,null,null,null,null,null,null,null,null,null,null,null,6,"None","Parcel","ZWO"]
[null,null,null,null,null,null,null,null,null,null,null,null,null,null,{"$f":"VLOOKUP(N1239,Tabel10[[korte omschrijving]:[MCC3_CODE]],2,0)","v":{"$error":"#N/A"}},{"$f":"VLOOKUP(N1239,Tabel10[],3,0)","v":{"$error":"#N/A"}},null,null,null,null,null,null,null,"EUR",null,null,null,{"$error":"#DIV/0!"},0,0,null,"","","","","","","","","","",null,null,null,null,null,null,null,null,null,null,null,null,null,null,6,"None","Parcel","ZWO"]
[null,null,null,null,null,null,null,null,null,null,null,null,null,null,{"$f":"VLOOKUP(N1240,Tabel10[[korte omschrijving]:[MCC3_CODE]],2,0)","v":{"$error":"#N/A"}},{"$f":"VLOOKUP(N1240,Tabel10[],3,0)","v":{"$error":"#N/A"}},null,null,null,null,null,null,null,"EUR",null,null,null,{"$error":"#DIV/0!"},0,0,null,"","","","","","","","","","",null,null,null,null,null,null,null,null,null,null,null,null,null,null,6,"None","Parcel","ZWO"]
[null,null,null,null,null,null,null,null,null,null,null,null,null,null,{"$f":"VLOOKUP(N1241,Tabel10[[korte omschrijving]:[MCC3_CODE]],2,0)","v":{"$error":"#N/A"}},{"$f":"VLOOKUP(N1241,Tabel10[],3,0)","v":{"$error":"#N/A"}},null,null,null,null,null,null,null,"EUR",null,null,null,{"$error":"#DIV/0!"},0,0,null,"","","","","","","","","","",null,null,null,null,null,null,null,null,null,null,null,null,null,null,6,"None","Parcel","ZWO"]
[null,null,null,null,null,null,null,null,null,null,null,null,null,null,{"$f":"VLOOKUP(N1242,Tabel10[[korte omschrijving]:[MCC3_CODE]],2,0)","v":{"$error":"#N/A"}},{"$f":"VLOOKUP(N1242,Tabel10[],3,0)","v":{"$error":"#N/A"}},null,null,null,null,null,null,null,"EUR",null,null,null,{"$error":"#DIV/0!"},0,0,null,"","","","","","","","","","",null,null,null,null,null,null,null,null,null,null,null,null,null,null,6,"None","Parcel","ZWO"]
[null,null,null,null,null,null,null,null,null,null,null,null,null,null,{"$f":"VLOOKUP(N1243,Tabel10[[korte omschrijving]:[MCC3_CODE]],2,0)","v":{"$error":"#N/A"}},{"$f":"VLOOKUP(N1243,Tabel10[],3,0)","v":{"$error":"#N/A"}},null,null,null,null,null,null,null,"EUR",null,null,null,{"$error":"#DIV/0!"},0,0,null,"","","","","","","","","","",null,null,null,null,null,null,null,null,null,null,null,null,null,null,6,"None","Parcel","ZWO"]
[null,null,null,null,null,null,null,null,null,null,null,null,null,null,{"$f":"VLOOKUP(N1244,Tabel10[[korte omschrijving]:[MCC3_CODE]],2,0)","v":{"$error":"#N/A"}},{"$f":"VLOOKUP(N1244,Tabel10[],3,0)","v":{"$error":"#N/A"}},null,null,null,null,null,null,null,"EUR",null,null,null,{"$error":"#DIV/0!"},0,0,null,"","","","","","","","","","",null,null,null,null,null,null,null,null,null,null,null,null,null,null,6,"None","Parcel","ZWO"]
[null,null,null,null,null,null,null,null,null,null,null,null,null,null,{"$f":"VLOOKUP(N1245,Tabel10[[korte omschrijving]:[MCC3_CODE]],2,0)","v":{"$error":"#N/A"}},{"$f":"VLOOKUP(N1245,Tabel10[],3,0)","v":{"$error":"#N/A"}},null,null,null,null,null,null,null,"EUR",null,null,null,{"$error":"#DIV/0!"},0,0,null,"","","","","","","","","","",null,null,null,null,null,null,null,null,null,null,null,null,null,null,6,"None","Parcel","ZWO"]
[null,null,null,null,null,null,null,null,null,null,null,null,null,null,{"$f":"VLOOKUP(N1246,Tabel10[[korte omschrijving]:[MCC3_CODE]],2,0)","v":{"$error":"#N/A"}},{"$f":"VLOOKUP(N1246,Tabel10[],3,0)","v":{"$error":"#N/A"}},null,null,null,null,null,null,null,"EUR",null,null,null,{"$error":"#DIV/0!"},0,0,null,"","","","","","","","","","",null,null,null,null,null,null,null,null,null,null,null,null,null,null,6,"None","Parcel","ZWO"]
[null,null,null,null,null,null,null,null,null,null,null,null,null,null,{"$f":"VLOOKUP(N1247,Tabel10[[korte omschrijving]:[MCC3_CODE]],2,0)","v":{"$error":"#N/A"}},{"$f":"VLOOKUP(N1247,Tabel10[],3,0)","v":{"$error":"#N/A"}},null,null,null,null,null,null,null,"EUR",null,null,null,{"$error":"#DIV/0!"},0,0,null,"","","","","","","","","","",null,null,null,null,null,null,null,null,null,null,null,null,null,null,6,"None","Parcel","ZWO"]
[null,null,null,null,null,null,null,null,null,null,null,null,null,null,{"$f":"VLOOKUP(N1248,Tabel10[[korte omschrijving]:[MCC3_CODE]],2,0)","v":{"$error":"#N/A"}},{"$f":"VLOOKUP(N1248,Tabel10[],3,0)","v":{"$error":"#N/A"}},null,null,null,null,null,null,null,"EUR",null,null,null,{"$error":"#DIV/0!"},0,0,null,"","","","","","","","","","",null,null,null,null,null,null,null,null,null,null,null,null,null,null,6,"None","Parcel","ZWO"]
[null,null,null,null,null,null,null,null,null,null,null,null,null,null,{"$f":"VLOOKUP(N1249,Tabel10[[korte omschrijving]:[MCC3_CODE]],2,0)","v":{"$error":"#N/A"}},{"$f":"VLOOKUP(N1249,Tabel10[],3,0)","v":{"$error":"#N/A"}},null,null,null,null,null,null,null,"EUR",null,null,null,{"$error":"#DIV/0!"},0,0,null,"","","","","","","","","","",null,null,null,null,null,null,null,null,null,null,null,null,null,null,6,"None","Parcel","ZWO"]
[null,null,null,null,null,null,null,null,null,null,null,null,null,null,{"$f":"VLOOKUP(N1250,Tabel10[[korte omschrijving]:[MCC3_CODE]],2,0)","v":{"$error":"#N/A"}},{"$f":"VLOOKUP(N1250,Tabel10[],3,0)","v":{"$error":"#N/A"}},null,null,null,null,null,null,null,"EUR",null,null,null,{"$error":"#DIV/0!"},0,0,null,"","","","","","","","","","",null,null,null,null,null,null,null,null,null,null,null,null,null,null,6,"None","Parcel","ZWO"]
[null,null,null,null,null,null,null,null,null,null,null,null,null,null,{"$f":"VLOOKUP(N1251,Tabel10[[korte omschrijving]:[MCC3_CODE]],2,0)","v":{"$error":"#N/A"}},{"$f":"VLOOKUP(N1251,Tabel10[],3,0)","v":{"$error":"#N/A"}},null,null,null,null,null,null,null,"EUR",null,null,null,{"$error":"#DIV/0!"},0,0,null,"","","","","","","","","","",null,null,null,null,null,null,null,null,null,null,null,null,null,null,6,"None","Parcel","ZWO"]
[null,null,null,null,null,null,null,null,null,null,null,null,null,null,{"$f":"VLOOKUP(N1252,Tabel10[[korte omschrijving]:[MCC3_CODE]],2,0)","v":{"$error":"#N/A"}},{"$f":"VLOOKUP(N1252,Tabel10[],3,0)","v":{"$error":"#N/A"}},null,null,null,null,null,null,null,"EUR",null,null,null,{"$error":"#DIV/0!"},0,0,null,"","","","","","","","","","",null,null,null,null,null,null,null,null,null,null,null,null,null,null,6,"None","Parcel","ZWO"]
[null,null,null,null,null,null,null,null,null,null,null,null,null,null,{"$f":"VLOOKUP(N1253,Tabel10[[korte omschrijving]:[MCC3_CODE]],2,0)","v":{"$error":"#N/A"}},{"$f":"VLOOKUP(N1253,Tabel10[],3,0)","v":{"$error":"#N/A"}},null,null,null,null,null,null,null,"EUR",null,null,null,{"$error":"#DIV/0!"},0,0,null,"","","","","","","","","","",null,null,null,null,null,null,null,null,null,null,null,null,null,null,6,"None","Parcel","ZWO"]
[null,null,null,null,null,null,null,null,null,null,null,null,null,null,{"$f":"VLOOKUP(N1254,Tabel10[[korte omschrijving]:[MCC3_CODE]],2,0)","v":{"$error":"#N/A"}},{"$f":"VLOOKUP(N1254,Tabel10[],3,0)","v":{"$error":"#N/A"}},null,null,null,null,null,null,null,"EUR",null,null,null,{"$error":"#DIV/0!"},0,0,null,"","","","","","","","","","",null,null,null,null,null,null,null,null,null,null,null,null,null,null,6,"None","Parcel","ZWO"]
[null,null,null,null,null,null,null,null,null,null,null,null,null,null,{"$f":"VLOOKUP(N1255,Tabel10[[korte omschrijving]:[MCC3_CODE]],2,0)","v":{"$error":"#N/A"}},{"$f":"VLOOKUP(N1255,Tabel10[],3,0)","v":{"$error":"#N/A"}},null,null,null,null,null,null,null,"EUR",null,null,null,{"$error":"#DIV/0!"},0,0,null,"","","","","","","","","","",null,null,null,null,null,null,null,null,null,null,null,null,null,null,6,"None","Parcel","ZWO"]
[null,null,null,null,null,null,null,null,null,null,null,null,null,null,{"$f":"VLOOKUP(N1256,Tabel10[[korte omschrijving]:[MCC3_CODE]],2,0)","v":{"$error":"#N/A"}},{"$f":"VLOOKUP(N1256,Tabel10[],3,0)","v":{"$error":"#N/A"}},null,null,null,null,null,null,null,"EUR",null,null,null,{"$error":"#DIV/0!"},0,0,null,"","","","","","","","","","",null,null,null,null,null,null,null,null,null,null,null,null,null,null,6,"None","Parcel","ZWO"]
[null,null,null,null,null,null,null,null,null,null,null,null,null,null,{"$f":"VLOOKUP(N1257,Tabel10[[korte omschrijving]:[MCC3_CODE]],2,0)","v":{"$error":"#N/A"}},{"$f":"VLOOKUP(N1257,Tabel10[],3,0)","v":{"$error":"#N/A"}},null,null,null,null,null,null,null,"EUR",null,null,null,{"$error":"#DIV/0!"},0,0,null,"","","","","","","","","","",null,null,null,null,null,null,null,null,null,null,null,null,null,null,6,"None","Parcel","ZWO"]
[null,null,null,null,null,null,null,null,null,null,null,null,null,null,{"$f":"VLOOKUP(N1258,Tabel10[[korte omschrijving]:[MCC3_CODE]],2,0)","v":{"$error":"#N/A"}},{"$f":"VLOOKUP(N1258,Tabel10[],3,0)","v":{"$error":"#N/A"}},null,null,null,null,null,null,null,"EUR",null,null,null,{"$error":"#DIV/0!"},0,0,null,"","","","","","","","","","",null,null,null,null,null,null,null,null,null,null,null,null,null,null,6,"None","Parcel","ZWO"]
[null,null,null,null,null,null,null,null,null,null,null,null,null,null,{"$f":"VLOOKUP(N1259,Tabel10[[korte omschrijving]:[MCC3_CODE]],2,0)","v":{"$error":"#N/A"}},{"$f":"VLOOKUP(N1259,Tabel10[],3,0)","v":{"$error":"#N/A"}},null,null,null,null,null,null,null,"EUR",null,null,null,{"$error":"#DIV/0!"},0,0,null,"","","","","","","","","","",null,null,null,null,null,null,null,null,null,null,null,null,null,null,6,"None","Parcel","ZWO"]
[null,null,null,null,null,null,null,null,null,null,null,null,null,null,{"$f":"VLOOKUP(N1260,Tabel10[[korte omschrijving]:[MCC3_CODE]],2,0)","v":{"$error":"#N/A"}},{"$f":"VLOOKUP(N1260,Tabel10[],3,0)","v":{"$error":"#N/A"}},null,null,null,null,null,null,null,"EUR",null,null,null,{"$error":"#DIV/0!"},0,0,null,"","","","","","","","","","",null,null,null,null,null,null,null,null,null,null,null,null,null,null,6,"None","Parcel","ZWO"]
[null,null,null,null,null,null,null,null,null,null,null,null,null,null,{"$f":"VLOOKUP(N1261,Tabel10[[korte omschrijving]:[MCC3_CODE]],2,0)","v":{"$error":"#N/A"}},{"$f":"VLOOKUP(N1261,Tabel10[],3,0)","v":{"$error":"#N/A"}},null,null,null,null,null,null,null,"EUR",null,null,null,{"$error":"#DIV/0!"},0,0,null,"","","","","","","","","","",null,null,null,null,null,null,null,null,null,null,null,null,null,null,6,"None","Parcel","ZWO"]
[null,null,null,null,null,null,null,null,null,null,null,null,null,null,{"$f":"VLOOKUP(N1262,Tabel10[[korte omschrijving]:[MCC3_CODE]],2,0)","v":{"$error":"#N/A"}},{"$f":"VLOOKUP(N1262,Tabel10[],3,0)","v":{"$error":"#N/A"}},null,null,null,null,null,null,null,"EUR",null,null,null,{"$error":"#DIV/0!"},0,0,null,"","","","","","","","","","",null,null,null,null,null,null,null,null,null,null,null,null,null,null,6,"None","Parcel","ZWO"]
[null,null,null,null,null,null,null,null,null,null,null,null,null,null,{"$f":"VLOOKUP(N1263,Tabel10[[korte omschrijving]:[MCC3_CODE]],2,0)","v":{"$error":"#N/A"}},{"$f":"VLOOKUP(N1263,Tabel10[],3,0)","v":{"$error":"#N/A"}},null,null,null,null,null,null,null,"EUR",null,null,null,{"$error":"#DIV/0!"},0,0,null,"","","","","","","","","","",null,null,null,null,null,null,null,null,null,null,null,null,null,null,6,"None","Parcel","ZWO"]
[null,null,null,null,null,null,null,null,null,null,null,null,null,null,{"$f":"VLOOKUP(N1264,Tabel10[[korte omschrijving]:[MCC3_CODE]],2,0)","v":{"$error":"#N/A"}},{"$f":"VLOOKUP(N1264,Tabel10[],3,0)","v":{"$error":"#N/A"}},null,null,null,null,null,null,null,"EUR",null,null,null,{"$error":"#DIV/0!"},0,0,null,"","","","","","","","","","",null,null,null,null,null,null,null,null,null,null,null,null,null,null,6,"None","Parcel","ZWO"]
[null,null,null,null,null,null,null,null,null,null,null,null,null,null,{"$f":"VLOOKUP(N1265,Tabel10[[korte omschrijving]:[MCC3_CODE]],2,0)","v":{"$error":"#N/A"}},{"$f":"VLOOKUP(N1265,Tabel10[],3,0)","v":{"$error":"#N/A"}},null,null,null,null,null,null,null,"EUR",null,null,null,{"$error":"#DIV/0!"},0,0,null,"","","","","","","","","","",null,null,null,null,null,null,null,null,null,null,null,null,null,null,6,"None","Parcel","ZWO"]
[null,null,null,null,null,null,null,null,null,null,null,null,null,null,{"$f":"VLOOKUP(N1266,Tabel10[[korte omschrijving]:[MCC3_CODE]],2,0)","v":{"$error":"#N/A"}},{"$f":"VLOOKUP(N1266,Tabel10[],3,0)","v":{"$error":"#N/A"}},null,null,null,null,null,null,null,"EUR",null,null,null,{"$error":"#DIV/0!"},0,0,null,"","","","","","","","","","",null,null,null,null,null,null,null,null,null,null,null,null,null,null,6,"None","Parcel","ZWO"]
[null,null,null,null,null,null,null,null,null,null,null,null,null,null,{"$f":"VLOOKUP(N1267,Tabel10[[korte omschrijving]:[MCC3_CODE]],2,0)","v":{"$error":"#N/A"}},{"$f":"VLOOKUP(N1267,Tabel10[],3,0)","v":{"$error":"#N/A"}},null,null,null,null,null,null,null,"EUR",null,null,null,{"$error":"#DIV/0!"},0,0,null,"","","","","","","","","","",null,null,null,null,null,null,null,null,null,null,null,null,null,null,6,"None","Parcel","ZWO"]
[null,null,null,null,null,null,null,null,null,null,null,null,null,null,{"$f":"VLOOKUP(N1268,Tabel10[[korte omschrijving]:[MCC3_CODE]],2,0)","v":{"$error":"#N/A"}},{"$f":"VLOOKUP(N1268,Tabel10[],3,0)","v":{"$error":"#N/A"}},null,null,null,null,null,null,null,"EUR",null,null,null,{"$error":"#DIV/0!"},0,0,null,"","","","","","","","","","",null,null,null,null,null,null,null,null,null,null,null,null,null,null,6,"None","Parcel","ZWO"]
[null,null,null,null,null,null,null,null,null,null,null,null,null,null,{"$f":"VLOOKUP(N1269,Tabel10[[korte omschrijving]:[MCC3_CODE]],2,0)","v":{"$error":"#N/A"}},{"$f":"VLOOKUP(N1269,Tabel10[],3,0)","v":{"$error":"#N/A"}},null,null,null,null,null,null,null,"EUR",null,null,null,{"$error":"#DIV/0!"},0,0,null,"","","","","","","","","","",null,null,null,null,null,null,null,null,null,null,null,null,null,null,6,"None","Parcel","ZWO"]
[null,null,null,null,null,null,null,null,null,null,null,null,null,null,{"$f":"VLOOKUP(N1270,Tabel10[[korte omschrijving]:[MCC3_CODE]],2,0)","v":{"$error":"#N/A"}},{"$f":"VLOOKUP(N1270,Tabel10[],3,0)","v":{"$error":"#N/A"}},null,null,null,null,null,null,null,"EUR",null,null,null,{"$error":"#DIV/0!"},0,0,null,"","","","","","","","","","",null,null,null,null,null,null,null,null,null,null,null,null,null,null,6,"None","Parcel","ZWO"]
[null,null,null,null,null,null,null,null,null,null,null,null,null,null,{"$f":"VLOOKUP(N1271,Tabel10[[korte omschrijving]:[MCC3_CODE]],2,0)","v":{"$error":"#N/A"}},{"$f":"VLOOKUP(N1271,Tabel10[],3,0)","v":{"$error":"#N/A"}},null,null,null,null,null,null,null,"EUR",null,null,null,{"$error":"#DIV/0!"},0,0,null,"","","","","","","","","","",null,null,null,null,null,null,null,null,null,null,null,null,null,null,6,"None","Parcel","ZWO"]
[null,null,null,null,null,null,null,null,null,null,null,null,null,null,{"$f":"VLOOKUP(N1272,Tabel10[[korte omschrijving]:[MCC3_CODE]],2,0)","v":{"$error":"#N/A"}},{"$f":"VLOOKUP(N1272,Tabel10[],3,0)","v":{"$error":"#N/A"}},null,null,null,null,null,null,null,"EUR",null,null,null,{"$error":"#DIV/0!"},0,0,null,"","","","","","","","","","",null,null,null,null,null,null,null,null,null,null,null,null,null,null,6,"None","Parcel","ZWO"]
[null,null,null,null,null,null,null,null,null,null,null,null,null,null,{"$f":"VLOOKUP(N1273,Tabel10[[korte omschrijving]:[MCC3_CODE]],2,0)","v":{"$error":"#N/A"}},{"$f":"VLOOKUP(N1273,Tabel10[],3,0)","v":{"$error":"#N/A"}},null,null,null,null,null,null,null,"EUR",null,null,null,{"$error":"#DIV/0!"},0,0,null,"","","","","","","","","","",null,null,null,null,null,null,null,null,null,null,null,null,null,null,6,"None","Parcel","ZWO"]
[null,null,null,null,null,null,null,null,null,null,null,null,null,null,{"$f":"VLOOKUP(N1274,Tabel10[[korte omschrijving]:[MCC3_CODE]],2,0)","v":{"$error":"#N/A"}},{"$f":"VLOOKUP(N1274,Tabel10[],3,0)","v":{"$error":"#N/A"}},null,null,null,null,null,null,null,"EUR",null,null,null,{"$error":"#DIV/0!"},0,0,null,"","","","","","","","","","",null,null,null,null,null,null,null,null,null,null,null,null,null,null,6,"None","Parcel","ZWO"]
[null,null,null,null,null,null,null,null,null,null,null,null,null,null,{"$f":"VLOOKUP(N1275,Tabel10[[korte omschrijving]:[MCC3_CODE]],2,0)","v":{"$error":"#N/A"}},{"$f":"VLOOKUP(N1275,Tabel10[],3,0)","v":{"$error":"#N/A"}},null,null,null,null,null,null,null,"EUR",null,null,null,{"$error":"#DIV/0!"},0,0,null,"","","","","","","","","","",null,null,null,null,null,null,null,null,null,null,null,null,null,null,6,"None","Parcel","ZWO"]
[null,null,null,null,null,null,null,null,null,null,null,null,null,null,{"$f":"VLOOKUP(N1276,Tabel10[[korte omschrijving]:[MCC3_CODE]],2,0)","v":{"$error":"#N/A"}},{"$f":"VLOOKUP(N1276,Tabel10[],3,0)","v":{"$error":"#N/A"}},null,null,null,null,null,null,null,"EUR",null,null,null,{"$error":"#DIV/0!"},0,0,null,"","","","","","","","","","",null,null,null,null,null,null,null,null,null,null,null,null,null,null,6,"None","Parcel","ZWO"]
[null,null,null,null,null,null,null,null,null,null,null,null,null,null,{"$f":"VLOOKUP(N1277,Tabel10[[korte omschrijving]:[MCC3_CODE]],2,0)","v":{"$error":"#N/A"}},{"$f":"VLOOKUP(N1277,Tabel10[],3,0)","v":{"$error":"#N/A"}},null,null,null,null,null,null,null,"EUR",null,null,null,{"$error":"#DIV/0!"},0,0,null,"","","","","","","","","","",null,null,null,null,null,null,null,null,null,null,null,null,null,null,6,"None","Parcel","ZWO"]
[null,null,null,null,null,null,null,null,null,null,null,null,null,null,{"$f":"VLOOKUP(N1278,Tabel10[[korte omschrijving]:[MCC3_CODE]],2,0)","v":{"$error":"#N/A"}},{"$f":"VLOOKUP(N1278,Tabel10[],3,0)","v":{"$error":"#N/A"}},null,null,null,null,null,null,null,"EUR",null,null,null,{"$error":"#DIV/0!"},0,0,null,"","","","","","","","","","",null,null,null,null,null,null,null,null,null,null,null,null,null,null,6,"None","Parcel","ZWO"]
[null,null,null,null,null,null,null,null,null,null,null,null,null,null,{"$f":"VLOOKUP(N1279,Tabel10[[korte omschrijving]:[MCC3_CODE]],2,0)","v":{"$error":"#N/A"}},{"$f":"VLOOKUP(N1279,Tabel10[],3,0)","v":{"$error":"#N/A"}},null,null,null,null,null,null,null,"EUR",null,null,null,{"$error":"#DIV/0!"},0,0,null,"","","","","","","","","","",null,null,null,null,null,null,null,null,null,null,null,null,null,null,6,"None","Parcel","ZWO"]
[null,null,null,null,null,null,null,null,null,null,null,null,null,null,{"$f":"VLOOKUP(N1280,Tabel10[[korte omschrijving]:[MCC3_CODE]],2,0)","v":{"$error":"#N/A"}},{"$f":"VLOOKUP(N1280,Tabel10[],3,0)","v":{"$error":"#N/A"}},null,null,null,null,null,null,null,"EUR",null,null,null,{"$error":"#DIV/0!"},0,0,null,"","","","","","","","","","",null,null,null,null,null,null,null,null,null,null,null,null,null,null,6,"None","Parcel","ZWO"]
[null,null,null,null,null,null,null,null,null,null,null,null,null,null,{"$f":"VLOOKUP(N1281,Tabel10[[korte omschrijving]:[MCC3_CODE]],2,0)","v":{"$error":"#N/A"}},{"$f":"VLOOKUP(N1281,Tabel10[],3,0)","v":{"$error":"#N/A"}},null,null,null,null,null,null,null,"EUR",null,null,null,{"$error":"#DIV/0!"},0,0,null,"","","","","","","","","","",null,null,null,null,null,null,null,null,null,null,null,null,null,null,6,"None","Parcel","ZWO"]
[null,null,null,null,null,null,null,null,null,null,null,null,null,null,{"$f":"VLOOKUP(N1282,Tabel10[[korte omschrijving]:[MCC3_CODE]],2,0)","v":{"$error":"#N/A"}},{"$f":"VLOOKUP(N1282,Tabel10[],3,0)","v":{"$error":"#N/A"}},null,null,null,null,null,null,null,"EUR",null,null,null,{"$error":"#DIV/0!"},0,0,null,"","","","","","","","","","",null,null,null,null,null,null,null,null,null,null,null,null,null,null,6,"None","Parcel","ZWO"]
[null,null,null,null,null,null,null,null,null,null,null,null,null,null,{"$f":"VLOOKUP(N1283,Tabel10[[korte omschrijving]:[MCC3_CODE]],2,0)","v":{"$error":"#N/A"}},{"$f":"VLOOKUP(N1283,Tabel10[],3,0)","v":{"$error":"#N/A"}},null,null,null,null,null,null,null,"EUR",null,null,null,{"$error":"#DIV/0!"},0,0,null,"","","","","","","","","","",null,null,null,null,null,null,null,null,null,null,null,null,null,null,6,"None","Parcel","ZWO"]
[null,null,null,null,null,null,null,null,null,null,null,null,null,null,{"$f":"VLOOKUP(N1284,Tabel10[[korte omschrijving]:[MCC3_CODE]],2,0)","v":{"$error":"#N/A"}},{"$f":"VLOOKUP(N1284,Tabel10[],3,0)","v":{"$error":"#N/A"}},null,null,null,null,null,null,null,"EUR",null,null,null,{"$error":"#DIV/0!"},0,0,null,"","","","","","","","","","",null,null,null,null,null,null,null,null,null,null,null,null,null,null,6,"None","Parcel","ZWO"]
[null,null,null,null,null,null,null,null,null,null,null,null,null,null,{"$f":"VLOOKUP(N1285,Tabel10[[korte omschrijving]:[MCC3_CODE]],2,0)","v":{"$error":"#N/A"}},{"$f":"VLOOKUP(N1285,Tabel10[],3,0)","v":{"$error":"#N/A"}},null,null,null,null,null,null,null,"EUR",null,null,null,{"$error":"#DIV/0!"},0,0,null,"","","","","","","","","","",null,null,null,null,null,null,null,null,null,null,null,null,null,null,6,"None","Parcel","ZWO"]
[null,null,null,null,null,null,null,null,null,null,null,null,null,null,{"$f":"VLOOKUP(N1286,Tabel10[[korte omschrijving]:[MCC3_CODE]],2,0)","v":{"$error":"#N/A"}},{"$f":"VLOOKUP(N1286,Tabel10[],3,0)","v":{"$error":"#N/A"}},null,null,null,null,null,null,null,"EUR",null,null,null,{"$error":"#DIV/0!"},0,0,null,"","","","","","","","","","",null,null,null,null,null,null,null,null,null,null,null,null,null,null,6,"None","Parcel","ZWO"]
[null,null,null,null,null,null,null,null,null,null,null,null,null,null,{"$f":"VLOOKUP(N1287,Tabel10[[korte omschrijving]:[MCC3_CODE]],2,0)","v":{"$error":"#N/A"}},{"$f":"VLOOKUP(N1287,Tabel10[],3,0)","v":{"$error":"#N/A"}},null,null,null,null,null,null,null,"EUR",null,null,null,{"$f":"AA1287/Y1287","v":{"$error":"#DIV/0!"}},{"$f":"T1287*Y1287","v":0},{"$f":"T1287*AA1287","v":0},null,{"$f":"IF(AE1287 <> \"\",\n    IF(ISNUMBER(VALUE(LEFT(AE1287, FIND(\"%\", AE1287)-1))),\n        VALUE(LEFT(AE1287, FIND(\"%\", AE1287)-1)),\n        \"Invalid format\"),\n    \"\")","v":""},{"$f":"IF(AE1287 <> \"\",\n    IF(ISNUMBER(VALUE(LEFT(AE1287, FIND(\"%\", AE1287)-1))) * ISNUMBER(FIND(\"%\", AE1287 & \"wol\")) > 0,\n        TRIM(MID(AE1287, FIND(\"%\", AE1287)+1, FIND(\"/\", AE1287 & \"/\")-FIND(\"%\", AE1287)-1)),\n        \"Invalid format\"),\n    \"\")","v":""},{"$f":"IF(AE1287 <> \"\",\n    IF(ISNUMBER(VALUE(MID(AE1287, FIND(\"/\", AE1287) + 1, FIND(\"%\", AE1287, FIND(\"/\", AE1287)) - FIND(\"/\", AE1287) - 1))),\n        VALUE(MID(AE1287, FIND(\"/\", AE1287) + 1, FIND(\"%\", AE1287, FIND(\"/\", AE1287)) - FIND(\"/\", AE1287) - 1)),\n        \"\"),\n    \"\")","v":""},{"$f":"IF(AE1287 <> \"\",\n    IFERROR(TRIM(MID(AE1287, FIND(\"%\", AE1287, FIND(\"/\", AE1287)+1)+2,\n        IFERROR(FIND(\"/\", AE1287 & \"/\", FIND(\"/\", AE1287)+1)-FIND(\"%\", AE1287, FIND(\"/\", AE1287)+1)-2, LEN(AE1287)-FIND(\"%\", AE1287, FIND(\"/\", AE1287)+1)-1))),\n        \"\"),\n    \"\")","v":""},{"$f":"IF(AE1287 <> \"\",\n    IF(ISNUMBER(VALUE(MID(AE1287, FIND(\"/\", AE1287, FIND(\"/\", AE1287)+1) + 1, FIND(\"%\", AE1287, FIND(\"/\", AE1287, FIND(\"/\", AE1287)+1)) - FIND(\"/\", AE1287, FIND(\"/\", AE1287)+1) - 1))),\n        VALUE(MID(AE1287, FIND(\"/\", AE1287, FIND(\"/\", AE1287)+1) + 1, FIND(\"%\", AE1287, FIND(\"/\", AE1287, FIND(\"/\", AE1287)+1)) - FIND(\"/\", AE1287, FIND(\"/\", AE1287)+1) - 1)),\n        \"\"),\n    \"\")","v":""},{"$f":"IF(AE1287 <> \"\",\n    IFERROR(\n        TRIM(MID(AE1287,\n            FIND(\"%\", AE1287, FIND(\"%\", AE1287, FIND(\"%\", AE1287)+1)+1)+1,\n            FIND(\"/\", AE1287 & \"/\", FIND(\"%\", AE1287, FIND(\"%\", AE1287, FIND(\"%\", AE1287)+1)+1))-FIND(\"%\", AE1287, FIND(\"%\", AE1287, FIND(\"%\", AE1287)+1)+1)-1)\n        ),\n        \"\"\n    ),\n    \"\"\n)","v":""},{"$f":"IF(AE1287 <> \"\",\n    IF(ISNUMBER(VALUE(MID(AE1287, FIND(\"/\", AE1287, FIND(\"/\", AE1287, FIND(\"/\", AE1287)+1)+1) + 1, FIND(\"%\", AE1287, FIND(\"/\", AE1287, FIND(\"/\", AE1287, FIND(\"/\", AE1287)+1)+1)) - FIND(\"/\", AE1287, FIND(\"/\", AE1287, FIND(\"/\", AE1287)+1)+1) - 1))),\n        VALUE(MID(AE1287, FIND(\"/\", AE1287, FIND(\"/\", AE1287, FIND(\"/\", AE1287)+1)+1) + 1, FIND(\"%\", AE1287, FIND(\"/\", AE1287, FIND(\"/\", AE1287, FIND(\"/\", AE1287)+1)+1)) - FIND(\"/\", AE1287, FIND(\"/\", AE1287, FIND(\"/\", AE1287)+1)+1) - 1)),\n        \"\"),\n    \"\")","v":""},{"$f":"IF(AE1287 <> \"\",\n    IFERROR(TRIM(MID(AE1287, FIND(\"%\", AE1287, FIND(\"/\", AE1287, FIND(\"/\", AE1287, FIND(\"/\", AE1287)+1)+1)+1)+2,\n        IFERROR(FIND(\"/\", AE1287, FIND(\"/\", AE1287, FIND(\"/\", AE1287, FIND(\"/\", AE1287)+1)+1)+1)-FIND(\"%\", AE1287, FIND(\"/\", AE1287, FIND(\"/\", AE1287, FIND(\"/\", AE1287)+1)+1)+1)-2, LEN(AE1287)-FIND(\"%\", AE1287, FIND(\"/\", AE1287, FIND(\"/\", AE1287, FIND(\"/\", AE1287)+1)+1)+1)-1))),\n        \"\"),\n    \"\")","v":""},{"$f":"IF(AE1287 <> \"\",\n    IF(ISNUMBER(VALUE(MID(AE1287, FIND(\"/\", AE1287, FIND(\"/\", AE1287, FIND(\"/\", AE1287, FIND(\"/\", AE1287)+1)+1)+1) + 1, FIND(\"%\", AE1287, FIND(\"/\", AE1287, FIND(\"/\", AE1287, FIND(\"/\", AE1287, FIND(\"/\", AE1287)+1)+1)+1)) - FIND(\"/\", AE1287, FIND(\"/\", AE1287, FIND(\"/\", AE1287, FIND(\"/\", AE1287)+1)+1)+1) - 1))),\n        VALUE(MID(AE1287, FIND(\"/\", AE1287, FIND(\"/\", AE1287, FIND(\"/\", AE1287, FIND(\"/\", AE1287)+1)+1)+1) + 1, FIND(\"%\", AE1287, FIND(\"/\", AE1287, FIND(\"/\", AE1287, FIND(\"/\", AE1287, FIND(\"/\", AE1287)+1)+1)+1)) - FIND(\"/\", AE1287, FIND(\"/\", AE1287, FIND(\"/\", AE1287, FIND(\"/\", AE1287)+1)+1)+1) - 1)),\n        \"\"),\n    \"\")","v":""},{"$f":"IF(AE1287 = \"\", \"\",\n    IFERROR(TRIM(\n        MID(\n            AE1287,\n            FIND(\"%\", AE1287, FIND(\"/\", AE1287, FIND(\"/\", AE1287, FIND(\"/\", AE1287, FIND(\"/\", AE1287)+1)+1)+1)+1) + 1,\n            FIND(\"/\", AE1287 & \"/\", FIND(\"%\", AE1287, FIND(\"/\", AE1287, FIND(\"/\", AE1287, FIND(\"/\", AE1287, FIND(\"/\", AE1287)+1)+1)+1)+1)) -\n            FIND(\"%\", AE1287, FIND(\"/\", AE1287, FIND(\"/\", AE1287, FIND(\"/\", AE1287, FIND(\"/\", AE1287)+1)+1)+1)+1) - 1\n        )\n    ),\n    \"\")\n)","v":""},null,null,null,null,null,null,null,null,null,null,null,null,null,null,6,"None","Parcel","ZWO"]
[null,null,null,null,null,null,null,null,null,null,null,null,null,null,{"$f":"VLOOKUP(N1288,Tabel10[[korte omschrijving]:[MCC3_CODE]],2,0)","v":{"$error":"#N/A"}},{"$f":"VLOOKUP(N1288,Tabel10[],3,0)","v":{"$error":"#N/A"}},null,null,null,null,null,null,null,"EUR",null,null,null,{"$error":"#DIV/0!"},0,0,null,"","","","","","","","","","",null,null,null,null,null,null,null,null,null,null,null,null,null,null,6,"None","Parcel","ZWO"]
[null,null,null,null,null,null,null,null,null,null,null,null,null,null,{"$f":"VLOOKUP(N1289,Tabel10[[korte omschrijving]:[MCC3_CODE]],2,0)","v":{"$error":"#N/A"}},{"$f":"VLOOKUP(N1289,Tabel10[],3,0)","v":{"$error":"#N/A"}},null,null,null,null,null,null,null,"EUR",null,null,null,{"$error":"#DIV/0!"},0,0,null,"","","","","","","","","","",null,null,null,null,null,null,null,null,null,null,null,null,null,null,6,"None","Parcel","ZWO"]
[null,null,null,null,null,null,null,null,null,null,null,null,null,null,{"$f":"VLOOKUP(N1290,Tabel10[[korte omschrijving]:[MCC3_CODE]],2,0)","v":{"$error":"#N/A"}},{"$f":"VLOOKUP(N1290,Tabel10[],3,0)","v":{"$error":"#N/A"}},null,null,null,null,null,null,null,"EUR",null,null,null,{"$error":"#DIV/0!"},0,0,null,"","","","","","","","","","",null,null,null,null,null,null,null,null,null,null,null,null,null,null,6,"None","Parcel","ZWO"]
[null,null,null,null,null,null,null,null,null,null,null,null,null,null,{"$f":"VLOOKUP(N1291,Tabel10[[korte omschrijving]:[MCC3_CODE]],2,0)","v":{"$error":"#N/A"}},{"$f":"VLOOKUP(N1291,Tabel10[],3,0)","v":{"$error":"#N/A"}},null,null,null,null,null,null,null,"EUR",null,null,null,{"$error":"#DIV/0!"},0,0,null,"","","","","","","","","","",null,null,null,null,null,null,null,null,null,null,null,null,null,null,6,"None","Parcel","ZWO"]
[null,null,null,null,null,null,null,null,null,null,null,null,null,null,{"$f":"VLOOKUP(N1292,Tabel10[[korte omschrijving]:[MCC3_CODE]],2,0)","v":{"$error":"#N/A"}},{"$f":"VLOOKUP(N1292,Tabel10[],3,0)","v":{"$error":"#N/A"}},null,null,null,null,null,null,null,"EUR",null,null,null,{"$error":"#DIV/0!"},0,0,null,"","","","","","","","","","",null,null,null,null,null,null,null,null,null,null,null,null,null,null,6,"None","Parcel","ZWO"]
[null,null,null,null,null,null,null,null,null,null,null,null,null,null,{"$f":"VLOOKUP(N1293,Tabel10[[korte omschrijving]:[MCC3_CODE]],2,0)","v":{"$error":"#N/A"}},{"$f":"VLOOKUP(N1293,Tabel10[],3,0)","v":{"$error":"#N/A"}},null,null,null,null,null,null,null,"EUR",null,null,null,{"$error":"#DIV/0!"},0,0,null,"","","","","","","","","","",null,null,null,null,null,null,null,null,null,null,null,null,null,null,6,"None","Parcel","ZWO"]
[null,null,null,null,null,null,null,null,null,null,null,null,null,null,{"$f":"VLOOKUP(N1294,Tabel10[[korte omschrijving]:[MCC3_CODE]],2,0)","v":{"$error":"#N/A"}},{"$f":"VLOOKUP(N1294,Tabel10[],3,0)","v":{"$error":"#N/A"}},null,null,null,null,null,null,null,"EUR",null,null,null,{"$error":"#DIV/0!"},0,0,null,"","","","","","","","","","",null,null,null,null,null,null,null,null,null,null,null,null,null,null,6,"None","Parcel","ZWO"]
[null,null,null,null,null,null,null,null,null,null,null,null,null,null,{"$f":"VLOOKUP(N1295,Tabel10[[korte omschrijving]:[MCC3_CODE]],2,0)","v":{"$error":"#N/A"}},{"$f":"VLOOKUP(N1295,Tabel10[],3,0)","v":{"$error":"#N/A"}},null,null,null,null,null,null,null,"EUR",null,null,null,{"$error":"#DIV/0!"},0,0,null,"","","","","","","","","","",null,null,null,null,null,null,null,null,null,null,null,null,null,null,6,"None","Parcel","ZWO"]
[null,null,null,null,null,null,null,null,null,null,null,null,null,null,{"$f":"VLOOKUP(N1296,Tabel10[[korte omschrijving]:[MCC3_CODE]],2,0)","v":{"$error":"#N/A"}},{"$f":"VLOOKUP(N1296,Tabel10[],3,0)","v":{"$error":"#N/A"}},null,null,null,null,null,null,null,"EUR",null,null,null,{"$error":"#DIV/0!"},0,0,null,"","","","","","","","","","",null,null,null,null,null,null,null,null,null,null,null,null,null,null,6,"None","Parcel","ZWO"]
[null,null,null,null,null,null,null,null,null,null,null,null,null,null,{"$f":"VLOOKUP(N1297,Tabel10[[korte omschrijving]:[MCC3_CODE]],2,0)","v":{"$error":"#N/A"}},{"$f":"VLOOKUP(N1297,Tabel10[],3,0)","v":{"$error":"#N/A"}},null,null,null,null,null,null,null,"EUR",null,null,null,{"$error":"#DIV/0!"},0,0,null,"","","","","","","","","","",null,null,null,null,null,null,null,null,null,null,null,null,null,null,6,"None","Parcel","ZWO"]
[null,null,null,null,null,null,null,null,null,null,null,null,null,null,{"$f":"VLOOKUP(N1298,Tabel10[[korte omschrijving]:[MCC3_CODE]],2,0)","v":{"$error":"#N/A"}},{"$f":"VLOOKUP(N1298,Tabel10[],3,0)","v":{"$error":"#N/A"}},null,null,null,null,null,null,null,"EUR",null,null,null,{"$error":"#DIV/0!"},0,0,null,"","","","","","","","","","",null,null,null,null,null,null,null,null,null,null,null,null,null,null,6,"None","Parcel","ZWO"]
[null,null,null,null,null,null,null,null,null,null,null,null,null,null,{"$f":"VLOOKUP(N1299,Tabel10[[korte omschrijving]:[MCC3_CODE]],2,0)","v":{"$error":"#N/A"}},{"$f":"VLOOKUP(N1299,Tabel10[],3,0)","v":{"$error":"#N/A"}},null,null,null,null,null,null,null,"EUR",null,null,null,{"$error":"#DIV/0!"},0,0,null,"","","","","","","","","","",null,null,null,null,null,null,null,null,null,null,null,null,null,null,6,"None","Parcel","ZWO"]
[null,null,null,null,null,null,null,null,null,null,null,null,null,null,{"$f":"VLOOKUP(N1300,Tabel10[[korte omschrijving]:[MCC3_CODE]],2,0)","v":{"$error":"#N/A"}},{"$f":"VLOOKUP(N1300,Tabel10[],3,0)","v":{"$error":"#N/A"}},null,null,null,null,null,null,null,"EUR",null,null,null,{"$error":"#DIV/0!"},0,0,null,"","","","","","","","","","",null,null,null,null,null,null,null,null,null,null,null,null,null,null,6,"None","Parcel","ZWO"]
[null,null,null,null,null,null,null,null,null,null,null,null,null,null,{"$f":"VLOOKUP(N1301,Tabel10[[korte omschrijving]:[MCC3_CODE]],2,0)","v":{"$error":"#N/A"}},{"$f":"VLOOKUP(N1301,Tabel10[],3,0)","v":{"$error":"#N/A"}},null,null,null,null,null,null,null,"EUR",null,null,null,{"$error":"#DIV/0!"},0,0,null,"","","","","","","","","","",null,null,null,null,null,null,null,null,null,null,null,null,null,null,6,"None","Parcel","ZWO"]
[null,null,null,null,null,null,null,null,null,null,null,null,null,null,{"$f":"VLOOKUP(N1302,Tabel10[[korte omschrijving]:[MCC3_CODE]],2,0)","v":{"$error":"#N/A"}},{"$f":"VLOOKUP(N1302,Tabel10[],3,0)","v":{"$error":"#N/A"}},null,null,null,null,null,null,null,"EUR",null,null,null,{"$error":"#DIV/0!"},0,0,null,"","","","","","","","","","",null,null,null,null,null,null,null,null,null,null,null,null,null,null,6,"None","Parcel","ZWO"]
[null,null,null,null,null,null,null,null,null,null,null,null,null,null,{"$f":"VLOOKUP(N1303,Tabel10[[korte omschrijving]:[MCC3_CODE]],2,0)","v":{"$error":"#N/A"}},{"$f":"VLOOKUP(N1303,Tabel10[],3,0)","v":{"$error":"#N/A"}},null,null,null,null,null,null,null,"EUR",null,null,null,{"$error":"#DIV/0!"},0,0,null,"","","","","","","","","","",null,null,null,null,null,null,null,null,null,null,null,null,null,null,6,"None","Parcel","ZWO"]
[null,null,null,null,null,null,null,null,null,null,null,null,null,null,{"$f":"VLOOKUP(N1304,Tabel10[[korte omschrijving]:[MCC3_CODE]],2,0)","v":{"$error":"#N/A"}},{"$f":"VLOOKUP(N1304,Tabel10[],3,0)","v":{"$error":"#N/A"}},null,null,null,null,null,null,null,"EUR",null,null,null,{"$error":"#DIV/0!"},0,0,null,"","","","","","","","","","",null,null,null,null,null,null,null,null,null,null,null,null,null,null,6,"None","Parcel","ZWO"]
[null,null,null,null,null,null,null,null,null,null,null,null,null,null,{"$f":"VLOOKUP(N1305,Tabel10[[korte omschrijving]:[MCC3_CODE]],2,0)","v":{"$error":"#N/A"}},{"$f":"VLOOKUP(N1305,Tabel10[],3,0)","v":{"$error":"#N/A"}},null,null,null,null,null,null,null,"EUR",null,null,null,{"$error":"#DIV/0!"},0,0,null,"","","","","","","","","","",null,null,null,null,null,null,null,null,null,null,null,null,null,null,6,"None","Parcel","ZWO"]
[null,null,null,null,null,null,null,null,null,null,null,null,null,null,{"$f":"VLOOKUP(N1306,Tabel10[[korte omschrijving]:[MCC3_CODE]],2,0)","v":{"$error":"#N/A"}},{"$f":"VLOOKUP(N1306,Tabel10[],3,0)","v":{"$error":"#N/A"}},null,null,null,null,null,null,null,"EUR",null,null,null,{"$error":"#DIV/0!"},0,0,null,"","","","","","","","","","",null,null,null,null,null,null,null,null,null,null,null,null,null,null,6,"None","Parcel","ZWO"]
[null,null,null,null,null,null,null,null,null,null,null,null,null,null,{"$f":"VLOOKUP(N1307,Tabel10[[korte omschrijving]:[MCC3_CODE]],2,0)","v":{"$error":"#N/A"}},{"$f":"VLOOKUP(N1307,Tabel10[],3,0)","v":{"$error":"#N/A"}},null,null,null,null,null,null,null,"EUR",null,null,null,{"$error":"#DIV/0!"},0,0,null,"","","","","","","","","","",null,null,null,null,null,null,null,null,null,null,null,null,null,null,6,"None","Parcel","ZWO"]
[null,null,null,null,null,null,null,null,null,null,null,null,null,null,{"$f":"VLOOKUP(N1308,Tabel10[[korte omschrijving]:[MCC3_CODE]],2,0)","v":{"$error":"#N/A"}},{"$f":"VLOOKUP(N1308,Tabel10[],3,0)","v":{"$error":"#N/A"}},null,null,null,null,null,null,null,"EUR",null,null,null,{"$error":"#DIV/0!"},0,0,null,"","","","","","","","","","",null,null,null,null,null,null,null,null,null,null,null,null,null,null,6,"None","Parcel","ZWO"]
[null,null,null,null,null,null,null,null,null,null,null,null,null,null,{"$f":"VLOOKUP(N1309,Tabel10[[korte omschrijving]:[MCC3_CODE]],2,0)","v":{"$error":"#N/A"}},{"$f":"VLOOKUP(N1309,Tabel10[],3,0)","v":{"$error":"#N/A"}},null,null,null,null,null,null,null,"EUR",null,null,null,{"$error":"#DIV/0!"},0,0,null,"","","","","","","","","","",null,null,null,null,null,null,null,null,null,null,null,null,null,null,6,"None","Parcel","ZWO"]
[null,null,null,null,null,null,null,null,null,null,null,null,null,null,{"$f":"VLOOKUP(N1310,Tabel10[[korte omschrijving]:[MCC3_CODE]],2,0)","v":{"$error":"#N/A"}},{"$f":"VLOOKUP(N1310,Tabel10[],3,0)","v":{"$error":"#N/A"}},null,null,null,null,null,null,null,"EUR",null,null,null,{"$error":"#DIV/0!"},0,0,null,"","","","","","","","","","",null,null,null,null,null,null,null,null,null,null,null,null,null,null,6,"None","Parcel","ZWO"]
[null,null,null,null,null,null,null,null,null,null,null,null,null,null,{"$f":"VLOOKUP(N1311,Tabel10[[korte omschrijving]:[MCC3_CODE]],2,0)","v":{"$error":"#N/A"}},{"$f":"VLOOKUP(N1311,Tabel10[],3,0)","v":{"$error":"#N/A"}},null,null,null,null,null,null,null,"EUR",null,null,null,{"$error":"#DIV/0!"},0,0,null,"","","","","","","","","","",null,null,null,null,null,null,null,null,null,null,null,null,null,null,6,"None","Parcel","ZWO"]
[null,null,null,null,null,null,null,null,null,null,null,null,null,null,{"$f":"VLOOKUP(N1312,Tabel10[[korte omschrijving]:[MCC3_CODE]],2,0)","v":{"$error":"#N/A"}},{"$f":"VLOOKUP(N1312,Tabel10[],3,0)","v":{"$error":"#N/A"}},null,null,null,null,null,null,null,"EUR",null,null,null,{"$error":"#DIV/0!"},0,0,null,"","","","","","","","","","",null,null,null,null,null,null,null,null,null,null,null,null,null,null,6,"None","Parcel","ZWO"]
[null,null,null,null,null,null,null,null,null,null,null,null,null,null,{"$f":"VLOOKUP(N1313,Tabel10[[korte omschrijving]:[MCC3_CODE]],2,0)","v":{"$error":"#N/A"}},{"$f":"VLOOKUP(N1313,Tabel10[],3,0)","v":{"$error":"#N/A"}},null,null,null,null,null,null,null,"EUR",null,null,null,{"$error":"#DIV/0!"},0,0,null,"","","","","","","","","","",null,null,null,null,null,null,null,null,null,null,null,null,null,null,6,"None","Parcel","ZWO"]
[null,null,null,null,null,null,null,null,null,null,null,null,null,null,{"$f":"VLOOKUP(N1314,Tabel10[[korte omschrijving]:[MCC3_CODE]],2,0)","v":{"$error":"#N/A"}},{"$f":"VLOOKUP(N1314,Tabel10[],3,0)","v":{"$error":"#N/A"}},null,null,null,null,null,null,null,"EUR",null,null,null,{"$error":"#DIV/0!"},0,0,null,"","","","","","","","","","",null,null,null,null,null,null,null,null,null,null,null,null,null,null,6,"None","Parcel","ZWO"]
[null,null,null,null,null,null,null,null,null,null,null,null,null,null,{"$f":"VLOOKUP(N1315,Tabel10[[korte omschrijving]:[MCC3_CODE]],2,0)","v":{"$error":"#N/A"}},{"$f":"VLOOKUP(N1315,Tabel10[],3,0)","v":{"$error":"#N/A"}},null,null,null,null,null,null,null,"EUR",null,null,null,{"$error":"#DIV/0!"},0,0,null,"","","","","","","","","","",null,null,null,null,null,null,null,null,null,null,null,null,null,null,6,"None","Parcel","ZWO"]
[null,null,null,null,null,null,null,null,null,null,null,null,null,null,{"$f":"VLOOKUP(N1316,Tabel10[[korte omschrijving]:[MCC3_CODE]],2,0)","v":{"$error":"#N/A"}},{"$f":"VLOOKUP(N1316,Tabel10[],3,0)","v":{"$error":"#N/A"}},null,null,null,null,null,null,null,"EUR",null,null,null,{"$error":"#DIV/0!"},0,0,null,"","","","","","","","","","",null,null,null,null,null,null,null,null,null,null,null,null,null,null,6,"None","Parcel","ZWO"]
[null,null,null,null,null,null,null,null,null,null,null,null,null,null,{"$f":"VLOOKUP(N1317,Tabel10[[korte omschrijving]:[MCC3_CODE]],2,0)","v":{"$error":"#N/A"}},{"$f":"VLOOKUP(N1317,Tabel10[],3,0)","v":{"$error":"#N/A"}},null,null,null,null,null,null,null,"EUR",null,null,null,{"$error":"#DIV/0!"},0,0,null,"","","","","","","","","","",null,null,null,null,null,null,null,null,null,null,null,null,null,null,6,"None","Parcel","ZWO"]
[null,null,null,null,null,null,null,null,null,null,null,null,null,null,{"$f":"VLOOKUP(N1318,Tabel10[[korte omschrijving]:[MCC3_CODE]],2,0)","v":{"$error":"#N/A"}},{"$f":"VLOOKUP(N1318,Tabel10[],3,0)","v":{"$error":"#N/A"}},null,null,null,null,null,null,null,"EUR",null,null,null,{"$error":"#DIV/0!"},0,0,null,"","","","","","","","","","",null,null,null,null,null,null,null,null,null,null,null,null,null,null,6,"None","Parcel","ZWO"]
[null,null,null,null,null,null,null,null,null,null,null,null,null,null,{"$f":"VLOOKUP(N1319,Tabel10[[korte omschrijving]:[MCC3_CODE]],2,0)","v":{"$error":"#N/A"}},{"$f":"VLOOKUP(N1319,Tabel10[],3,0)","v":{"$error":"#N/A"}},null,null,null,null,null,null,null,"EUR",null,null,null,{"$error":"#DIV/0!"},0,0,null,"","","","","","","","","","",null,null,null,null,null,null,null,null,null,null,null,null,null,null,6,"None","Parcel","ZWO"]
[null,null,null,null,null,null,null,null,null,null,null,null,null,null,{"$f":"VLOOKUP(N1320,Tabel10[[korte omschrijving]:[MCC3_CODE]],2,0)","v":{"$error":"#N/A"}},{"$f":"VLOOKUP(N1320,Tabel10[],3,0)","v":{"$error":"#N/A"}},null,null,null,null,null,null,null,"EUR",null,null,null,{"$error":"#DIV/0!"},0,0,null,"","","","","","","","","","",null,null,null,null,null,null,null,null,null,null,null,null,null,null,6,"None","Parcel","ZWO"]
[null,null,null,null,null,null,null,null,null,null,null,null,null,null,{"$f":"VLOOKUP(N1321,Tabel10[[korte omschrijving]:[MCC3_CODE]],2,0)","v":{"$error":"#N/A"}},{"$f":"VLOOKUP(N1321,Tabel10[],3,0)","v":{"$error":"#N/A"}},null,null,null,null,null,null,null,"EUR",null,null,null,{"$error":"#DIV/0!"},0,0,null,"","","","","","","","","","",null,null,null,null,null,null,null,null,null,null,null,null,null,null,6,"None","Parcel","ZWO"]
[null,null,null,null,null,null,null,null,null,null,null,null,null,null,{"$f":"VLOOKUP(N1322,Tabel10[[korte omschrijving]:[MCC3_CODE]],2,0)","v":{"$error":"#N/A"}},{"$f":"VLOOKUP(N1322,Tabel10[],3,0)","v":{"$error":"#N/A"}},null,null,null,null,null,null,null,"EUR",null,null,null,{"$error":"#DIV/0!"},0,0,null,"","","","","","","","","","",null,null,null,null,null,null,null,null,null,null,null,null,null,null,6,"None","Parcel","ZWO"]
[null,null,null,null,null,null,null,null,null,null,null,null,null,null,{"$f":"VLOOKUP(N1323,Tabel10[[korte omschrijving]:[MCC3_CODE]],2,0)","v":{"$error":"#N/A"}},{"$f":"VLOOKUP(N1323,Tabel10[],3,0)","v":{"$error":"#N/A"}},null,null,null,null,null,null,null,"EUR",null,null,null,{"$error":"#DIV/0!"},0,0,null,"","","","","","","","","","",null,null,null,null,null,null,null,null,null,null,null,null,null,null,6,"None","Parcel","ZWO"]
[null,null,null,null,null,null,null,null,null,null,null,null,null,null,{"$f":"VLOOKUP(N1324,Tabel10[[korte omschrijving]:[MCC3_CODE]],2,0)","v":{"$error":"#N/A"}},{"$f":"VLOOKUP(N1324,Tabel10[],3,0)","v":{"$error":"#N/A"}},null,null,null,null,null,null,null,"EUR",null,null,null,{"$error":"#DIV/0!"},0,0,null,"","","","","","","","","","",null,null,null,null,null,null,null,null,null,null,null,null,null,null,6,"None","Parcel","ZWO"]
[null,null,null,null,null,null,null,null,null,null,null,null,null,null,{"$f":"VLOOKUP(N1325,Tabel10[[korte omschrijving]:[MCC3_CODE]],2,0)","v":{"$error":"#N/A"}},{"$f":"VLOOKUP(N1325,Tabel10[],3,0)","v":{"$error":"#N/A"}},null,null,null,null,null,null,null,"EUR",null,null,null,{"$error":"#DIV/0!"},0,0,null,"","","","","","","","","","",null,null,null,null,null,null,null,null,null,null,null,null,null,null,6,"None","Parcel","ZWO"]
[null,null,null,null,null,null,null,null,null,null,null,null,null,null,{"$f":"VLOOKUP(N1326,Tabel10[[korte omschrijving]:[MCC3_CODE]],2,0)","v":{"$error":"#N/A"}},{"$f":"VLOOKUP(N1326,Tabel10[],3,0)","v":{"$error":"#N/A"}},null,null,null,null,null,null,null,"EUR",null,null,null,{"$error":"#DIV/0!"},0,0,null,"","","","","","","","","","",null,null,null,null,null,null,null,null,null,null,null,null,null,null,6,"None","Parcel","ZWO"]
[null,null,null,null,null,null,null,null,null,null,null,null,null,null,{"$f":"VLOOKUP(N1327,Tabel10[[korte omschrijving]:[MCC3_CODE]],2,0)","v":{"$error":"#N/A"}},{"$f":"VLOOKUP(N1327,Tabel10[],3,0)","v":{"$error":"#N/A"}},null,null,null,null,null,null,null,"EUR",null,null,null,{"$error":"#DIV/0!"},0,0,null,"","","","","","","","","","",null,null,null,null,null,null,null,null,null,null,null,null,null,null,6,"None","Parcel","ZWO"]
[null,null,null,null,null,null,null,null,null,null,null,null,null,null,{"$f":"VLOOKUP(N1328,Tabel10[[korte omschrijving]:[MCC3_CODE]],2,0)","v":{"$error":"#N/A"}},{"$f":"VLOOKUP(N1328,Tabel10[],3,0)","v":{"$error":"#N/A"}},null,null,null,null,null,null,null,"EUR",null,null,null,{"$error":"#DIV/0!"},0,0,null,"","","","","","","","","","",null,null,null,null,null,null,null,null,null,null,null,null,null,null,6,"None","Parcel","ZWO"]
[null,null,null,null,null,null,null,null,null,null,null,null,null,null,{"$f":"VLOOKUP(N1329,Tabel10[[korte omschrijving]:[MCC3_CODE]],2,0)","v":{"$error":"#N/A"}},{"$f":"VLOOKUP(N1329,Tabel10[],3,0)","v":{"$error":"#N/A"}},null,null,null,null,null,null,null,"EUR",null,null,null,{"$error":"#DIV/0!"},0,0,null,"","","","","","","","","","",null,null,null,null,null,null,null,null,null,null,null,null,null,null,6,"None","Parcel","ZWO"]
[null,null,null,null,null,null,null,null,null,null,null,null,null,null,{"$f":"VLOOKUP(N1330,Tabel10[[korte omschrijving]:[MCC3_CODE]],2,0)","v":{"$error":"#N/A"}},{"$f":"VLOOKUP(N1330,Tabel10[],3,0)","v":{"$error":"#N/A"}},null,null,null,null,null,null,null,"EUR",null,null,null,{"$error":"#DIV/0!"},0,0,null,"","","","","","","","","","",null,null,null,null,null,null,null,null,null,null,null,null,null,null,6,"None","Parcel","ZWO"]
[null,null,null,null,null,null,null,null,null,null,null,null,null,null,{"$f":"VLOOKUP(N1331,Tabel10[[korte omschrijving]:[MCC3_CODE]],2,0)","v":{"$error":"#N/A"}},{"$f":"VLOOKUP(N1331,Tabel10[],3,0)","v":{"$error":"#N/A"}},null,null,null,null,null,null,null,"EUR",null,null,null,{"$error":"#DIV/0!"},0,0,null,"","","","","","","","","","",null,null,null,null,null,null,null,null,null,null,null,null,null,null,6,"None","Parcel","ZWO"]
[null,null,null,null,null,null,null,null,null,null,null,null,null,null,{"$f":"VLOOKUP(N1332,Tabel10[[korte omschrijving]:[MCC3_CODE]],2,0)","v":{"$error":"#N/A"}},{"$f":"VLOOKUP(N1332,Tabel10[],3,0)","v":{"$error":"#N/A"}},null,null,null,null,null,null,null,"EUR",null,null,null,{"$error":"#DIV/0!"},0,0,null,"","","","","","","","","","",null,null,null,null,null,null,null,null,null,null,null,null,null,null,6,"None","Parcel","ZWO"]
[null,null,null,null,null,null,null,null,null,null,null,null,null,null,{"$f":"VLOOKUP(N1333,Tabel10[[korte omschrijving]:[MCC3_CODE]],2,0)","v":{"$error":"#N/A"}},{"$f":"VLOOKUP(N1333,Tabel10[],3,0)","v":{"$error":"#N/A"}},null,null,null,null,null,null,null,"EUR",null,null,null,{"$error":"#DIV/0!"},0,0,null,"","","","","","","","","","",null,null,null,null,null,null,null,null,null,null,null,null,null,null,6,"None","Parcel","ZWO"]
[null,null,null,null,null,null,null,null,null,null,null,null,null,null,{"$f":"VLOOKUP(N1334,Tabel10[[korte omschrijving]:[MCC3_CODE]],2,0)","v":{"$error":"#N/A"}},{"$f":"VLOOKUP(N1334,Tabel10[],3,0)","v":{"$error":"#N/A"}},null,null,null,null,null,null,null,"EUR",null,null,null,{"$error":"#DIV/0!"},0,0,null,"","","","","","","","","","",null,null,null,null,null,null,null,null,null,null,null,null,null,null,6,"None","Parcel","ZWO"]
[null,null,null,null,null,null,null,null,null,null,null,null,null,null,{"$f":"VLOOKUP(N1335,Tabel10[[korte omschrijving]:[MCC3_CODE]],2,0)","v":{"$error":"#N/A"}},{"$f":"VLOOKUP(N1335,Tabel10[],3,0)","v":{"$error":"#N/A"}},null,null,null,null,null,null,null,"EUR",null,null,null,{"$error":"#DIV/0!"},0,0,null,"","","","","","","","","","",null,null,null,null,null,null,null,null,null,null,null,null,null,null,6,"None","Parcel","ZWO"]
[null,null,null,null,null,null,null,null,null,null,null,null,null,null,{"$f":"VLOOKUP(N1336,Tabel10[[korte omschrijving]:[MCC3_CODE]],2,0)","v":{"$error":"#N/A"}},{"$f":"VLOOKUP(N1336,Tabel10[],3,0)","v":{"$error":"#N/A"}},null,null,null,null,null,null,null,"EUR",null,null,null,{"$error":"#DIV/0!"},0,0,null,"","","","","","","","","","",null,null,null,null,null,null,null,null,null,null,null,null,null,null,6,"None","Parcel","ZWO"]
[null,null,null,null,null,null,null,null,null,null,null,null,null,null,{"$f":"VLOOKUP(N1337,Tabel10[[korte omschrijving]:[MCC3_CODE]],2,0)","v":{"$error":"#N/A"}},{"$f":"VLOOKUP(N1337,Tabel10[],3,0)","v":{"$error":"#N/A"}},null,null,null,null,null,null,null,"EUR",null,null,null,{"$error":"#DIV/0!"},0,0,null,"","","","","","","","","","",null,null,null,null,null,null,null,null,null,null,null,null,null,null,6,"None","Parcel","ZWO"]
[null,null,null,null,null,null,null,null,null,null,null,null,null,null,{"$f":"VLOOKUP(N1338,Tabel10[[korte omschrijving]:[MCC3_CODE]],2,0)","v":{"$error":"#N/A"}},{"$f":"VLOOKUP(N1338,Tabel10[],3,0)","v":{"$error":"#N/A"}},null,null,null,null,null,null,null,"EUR",null,null,null,{"$error":"#DIV/0!"},0,0,null,"","","","","","","","","","",null,null,null,null,null,null,null,null,null,null,null,null,null,null,6,"None","Parcel","ZWO"]
[null,null,null,null,null,null,null,null,null,null,null,null,null,null,{"$f":"VLOOKUP(N1339,Tabel10[[korte omschrijving]:[MCC3_CODE]],2,0)","v":{"$error":"#N/A"}},{"$f":"VLOOKUP(N1339,Tabel10[],3,0)","v":{"$error":"#N/A"}},null,null,null,null,null,null,null,"EUR",null,null,null,{"$error":"#DIV/0!"},0,0,null,"","","","","","","","","","",null,null,null,null,null,null,null,null,null,null,null,null,null,null,6,"None","Parcel","ZWO"]
[null,null,null,null,null,null,null,null,null,null,null,null,null,null,{"$f":"VLOOKUP(N1340,Tabel10[[korte omschrijving]:[MCC3_CODE]],2,0)","v":{"$error":"#N/A"}},{"$f":"VLOOKUP(N1340,Tabel10[],3,0)","v":{"$error":"#N/A"}},null,null,null,null,null,null,null,"EUR",null,null,null,{"$error":"#DIV/0!"},0,0,null,"","","","","","","","","","",null,null,null,null,null,null,null,null,null,null,null,null,null,null,6,"None","Parcel","ZWO"]
[null,null,null,null,null,null,null,null,null,null,null,null,null,null,{"$f":"VLOOKUP(N1341,Tabel10[[korte omschrijving]:[MCC3_CODE]],2,0)","v":{"$error":"#N/A"}},{"$f":"VLOOKUP(N1341,Tabel10[],3,0)","v":{"$error":"#N/A"}},null,null,null,null,null,null,null,"EUR",null,null,null,{"$error":"#DIV/0!"},0,0,null,"","","","","","","","","","",null,null,null,null,null,null,null,null,null,null,null,null,null,null,6,"None","Parcel","ZWO"]
[null,null,null,null,null,null,null,null,null,null,null,null,null,null,{"$f":"VLOOKUP(N1342,Tabel10[[korte omschrijving]:[MCC3_CODE]],2,0)","v":{"$error":"#N/A"}},{"$f":"VLOOKUP(N1342,Tabel10[],3,0)","v":{"$error":"#N/A"}},null,null,null,null,null,null,null,"EUR",null,null,null,{"$error":"#DIV/0!"},0,0,null,"","","","","","","","","","",null,null,null,null,null,null,null,null,null,null,null,null,null,null,6,"None","Parcel","ZWO"]
[null,null,null,null,null,null,null,null,null,null,null,null,null,null,{"$f":"VLOOKUP(N1343,Tabel10[[korte omschrijving]:[MCC3_CODE]],2,0)","v":{"$error":"#N/A"}},{"$f":"VLOOKUP(N1343,Tabel10[],3,0)","v":{"$error":"#N/A"}},null,null,null,null,null,null,null,"EUR",null,null,null,{"$error":"#DIV/0!"},0,0,null,"","","","","","","","","","",null,null,null,null,null,null,null,null,null,null,null,null,null,null,6,"None","Parcel","ZWO"]
[null,null,null,null,null,null,null,null,null,null,null,null,null,null,{"$f":"VLOOKUP(N1344,Tabel10[[korte omschrijving]:[MCC3_CODE]],2,0)","v":{"$error":"#N/A"}},{"$f":"VLOOKUP(N1344,Tabel10[],3,0)","v":{"$error":"#N/A"}},null,null,null,null,null,null,null,"EUR",null,null,null,{"$error":"#DIV/0!"},0,0,null,"","","","","","","","","","",null,null,null,null,null,null,null,null,null,null,null,null,null,null,6,"None","Parcel","ZWO"]
[null,null,null,null,null,null,null,null,null,null,null,null,null,null,{"$f":"VLOOKUP(N1345,Tabel10[[korte omschrijving]:[MCC3_CODE]],2,0)","v":{"$error":"#N/A"}},{"$f":"VLOOKUP(N1345,Tabel10[],3,0)","v":{"$error":"#N/A"}},null,null,null,null,null,null,null,"EUR",null,null,null,{"$error":"#DIV/0!"},0,0,null,"","","","","","","","","","",null,null,null,null,null,null,null,null,null,null,null,null,null,null,6,"None","Parcel","ZWO"]
[null,null,null,null,null,null,null,null,null,null,null,null,null,null,{"$f":"VLOOKUP(N1346,Tabel10[[korte omschrijving]:[MCC3_CODE]],2,0)","v":{"$error":"#N/A"}},{"$f":"VLOOKUP(N1346,Tabel10[],3,0)","v":{"$error":"#N/A"}},null,null,null,null,null,null,null,"EUR",null,null,null,{"$error":"#DIV/0!"},0,0,null,"","","","","","","","","","",null,null,null,null,null,null,null,null,null,null,null,null,null,null,6,"None","Parcel","ZWO"]
[null,null,null,null,null,null,null,null,null,null,null,null,null,null,{"$f":"VLOOKUP(N1347,Tabel10[[korte omschrijving]:[MCC3_CODE]],2,0)","v":{"$error":"#N/A"}},{"$f":"VLOOKUP(N1347,Tabel10[],3,0)","v":{"$error":"#N/A"}},null,null,null,null,null,null,null,"EUR",null,null,null,{"$error":"#DIV/0!"},0,0,null,"","","","","","","","","","",null,null,null,null,null,null,null,null,null,null,null,null,null,null,6,"None","Parcel","ZWO"]
[null,null,null,null,null,null,null,null,null,null,null,null,null,null,{"$f":"VLOOKUP(N1348,Tabel10[[korte omschrijving]:[MCC3_CODE]],2,0)","v":{"$error":"#N/A"}},{"$f":"VLOOKUP(N1348,Tabel10[],3,0)","v":{"$error":"#N/A"}},null,null,null,null,null,null,null,"EUR",null,null,null,{"$error":"#DIV/0!"},0,0,null,"","","","","","","","","","",null,null,null,null,null,null,null,null,null,null,null,null,null,null,6,"None","Parcel","ZWO"]
[null,null,null,null,null,null,null,null,null,null,null,null,null,null,{"$f":"VLOOKUP(N1349,Tabel10[[korte omschrijving]:[MCC3_CODE]],2,0)","v":{"$error":"#N/A"}},{"$f":"VLOOKUP(N1349,Tabel10[],3,0)","v":{"$error":"#N/A"}},null,null,null,null,null,null,null,"EUR",null,null,null,{"$error":"#DIV/0!"},0,0,null,"","","","","","","","","","",null,null,null,null,null,null,null,null,null,null,null,null,null,null,6,"None","Parcel","ZWO"]
[null,null,null,null,null,null,null,null,null,null,null,null,null,null,{"$f":"VLOOKUP(N1350,Tabel10[[korte omschrijving]:[MCC3_CODE]],2,0)","v":{"$error":"#N/A"}},{"$f":"VLOOKUP(N1350,Tabel10[],3,0)","v":{"$error":"#N/A"}},null,null,null,null,null,null,null,"EUR",null,null,null,{"$error":"#DIV/0!"},0,0,null,"","","","","","","","","","",null,null,null,null,null,null,null,null,null,null,null,null,null,null,6,"None","Parcel","ZWO"]
[null,null,null,null,null,null,null,null,null,null,null,null,null,null,{"$f":"VLOOKUP(N1351,Tabel10[[korte omschrijving]:[MCC3_CODE]],2,0)","v":{"$error":"#N/A"}},{"$f":"VLOOKUP(N1351,Tabel10[],3,0)","v":{"$error":"#N/A"}},null,null,null,null,null,null,null,"EUR",null,null,null,{"$f":"AA1351/Y1351","v":{"$error":"#DIV/0!"}},{"$f":"T1351*Y1351","v":0},{"$f":"T1351*AA1351","v":0},null,{"$f":"IF(AE1351 <> \"\",\n    IF(ISNUMBER(VALUE(LEFT(AE1351, FIND(\"%\", AE1351)-1))),\n        VALUE(LEFT(AE1351, FIND(\"%\", AE1351)-1)),\n        \"Invalid format\"),\n    \"\")","v":""},{"$f":"IF(AE1351 <> \"\",\n    IF(ISNUMBER(VALUE(LEFT(AE1351, FIND(\"%\", AE1351)-1))) * ISNUMBER(FIND(\"%\", AE1351 & \"wol\")) > 0,\n        TRIM(MID(AE1351, FIND(\"%\", AE1351)+1, FIND(\"/\", AE1351 & \"/\")-FIND(\"%\", AE1351)-1)),\n        \"Invalid format\"),\n    \"\")","v":""},{"$f":"IF(AE1351 <> \"\",\n    IF(ISNUMBER(VALUE(MID(AE1351, FIND(\"/\", AE1351) + 1, FIND(\"%\", AE1351, FIND(\"/\", AE1351)) - FIND(\"/\", AE1351) - 1))),\n        VALUE(MID(AE1351, FIND(\"/\", AE1351) + 1, FIND(\"%\", AE1351, FIND(\"/\", AE1351)) - FIND(\"/\", AE1351) - 1)),\n        \"\"),\n    \"\")","v":""},{"$f":"IF(AE1351 <> \"\",\n    IFERROR(TRIM(MID(AE1351, FIND(\"%\", AE1351, FIND(\"/\", AE1351)+1)+2,\n        IFERROR(FIND(\"/\", AE1351 & \"/\", FIND(\"/\", AE1351)+1)-FIND(\"%\", AE1351, FIND(\"/\", AE1351)+1)-2, LEN(AE1351)-FIND(\"%\", AE1351, FIND(\"/\", AE1351)+1)-1))),\n        \"\"),\n    \"\")","v":""},{"$f":"IF(AE1351 <> \"\",\n    IF(ISNUMBER(VALUE(MID(AE1351, FIND(\"/\", AE1351, FIND(\"/\", AE1351)+1) + 1, FIND(\"%\", AE1351, FIND(\"/\", AE1351, FIND(\"/\", AE1351)+1)) - FIND(\"/\", AE1351, FIND(\"/\", AE1351)+1) - 1))),\n        VALUE(MID(AE1351, FIND(\"/\", AE1351, FIND(\"/\", AE1351)+1) + 1, FIND(\"%\", AE1351, FIND(\"/\", AE1351, FIND(\"/\", AE1351)+1)) - FIND(\"/\", AE1351, FIND(\"/\", AE1351)+1) - 1)),\n        \"\"),\n    \"\")","v":""},{"$f":"IF(AE1351 <> \"\",\n    IFERROR(\n        TRIM(MID(AE1351,\n            FIND(\"%\", AE1351, FIND(\"%\", AE1351, FIND(\"%\", AE1351)+1)+1)+1,\n            FIND(\"/\", AE1351 & \"/\", FIND(\"%\", AE1351, FIND(\"%\", AE1351, FIND(\"%\", AE1351)+1)+1))-FIND(\"%\", AE1351, FIND(\"%\", AE1351, FIND(\"%\", AE1351)+1)+1)-1)\n        ),\n        \"\"\n    ),\n    \"\"\n)","v":""},{"$f":"IF(AE1351 <> \"\",\n    IF(ISNUMBER(VALUE(MID(AE1351, FIND(\"/\", AE1351, FIND(\"/\", AE1351, FIND(\"/\", AE1351)+1)+1) + 1, FIND(\"%\", AE1351, FIND(\"/\", AE1351, FIND(\"/\", AE1351, FIND(\"/\", AE1351)+1)+1)) - FIND(\"/\", AE1351, FIND(\"/\", AE1351, FIND(\"/\", AE1351)+1)+1) - 1))),\n        VALUE(MID(AE1351, FIND(\"/\", AE1351, FIND(\"/\", AE1351, FIND(\"/\", AE1351)+1)+1) + 1, FIND(\"%\", AE1351, FIND(\"/\", AE1351, FIND(\"/\", AE1351, FIND(\"/\", AE1351)+1)+1)) - FIND(\"/\", AE1351, FIND(\"/\", AE1351, FIND(\"/\", AE1351)+1)+1) - 1)),\n        \"\"),\n    \"\")","v":""},{"$f":"IF(AE1351 <> \"\",\n    IFERROR(TRIM(MID(AE1351, FIND(\"%\", AE1351, FIND(\"/\", AE1351, FIND(\"/\", AE1351, FIND(\"/\", AE1351)+1)+1)+1)+2,\n        IFERROR(FIND(\"/\", AE1351, FIND(\"/\", AE1351, FIND(\"/\", AE1351, FIND(\"/\", AE1351)+1)+1)+1)-FIND(\"%\", AE1351, FIND(\"/\", AE1351, FIND(\"/\", AE1351, FIND(\"/\", AE1351)+1)+1)+1)-2, LEN(AE1351)-FIND(\"%\", AE1351, FIND(\"/\", AE1351, FIND(\"/\", AE1351, FIND(\"/\", AE1351)+1)+1)+1)-1))),\n        \"\"),\n    \"\")","v":""},{"$f":"IF(AE1351 <> \"\",\n    IF(ISNUMBER(VALUE(MID(AE1351, FIND(\"/\", AE1351, FIND(\"/\", AE1351, FIND(\"/\", AE1351, FIND(\"/\", AE1351)+1)+1)+1) + 1, FIND(\"%\", AE1351, FIND(\"/\", AE1351, FIND(\"/\", AE1351, FIND(\"/\", AE1351, FIND(\"/\", AE1351)+1)+1)+1)) - FIND(\"/\", AE1351, FIND(\"/\", AE1351, FIND(\"/\", AE1351, FIND(\"/\", AE1351)+1)+1)+1) - 1))),\n        VALUE(MID(AE1351, FIND(\"/\", AE1351, FIND(\"/\", AE1351, FIND(\"/\", AE1351, FIND(\"/\", AE1351)+1)+1)+1) + 1, FIND(\"%\", AE1351, FIND(\"/\", AE1351, FIND(\"/\", AE1351, FIND(\"/\", AE1351, FIND(\"/\", AE1351)+1)+1)+1)) - FIND(\"/\", AE1351, FIND(\"/\", AE1351, FIND(\"/\", AE1351, FIND(\"/\", AE1351)+1)+1)+1) - 1)),\n        \"\"),\n    \"\")","v":""},{"$f":"IF(AE1351 = \"\", \"\",\n    IFERROR(TRIM(\n        MID(\n            AE1351,\n            FIND(\"%\", AE1351, FIND(\"/\", AE1351, FIND(\"/\", AE1351, FIND(\"/\", AE1351, FIND(\"/\", AE1351)+1)+1)+1)+1) + 1,\n            FIND(\"/\", AE1351 & \"/\", FIND(\"%\", AE1351, FIND(\"/\", AE1351, FIND(\"/\", AE1351, FIND(\"/\", AE1351, FIND(\"/\", AE1351)+1)+1)+1)+1)) -\n            FIND(\"%\", AE1351, FIND(\"/\", AE1351, FIND(\"/\", AE1351, FIND(\"/\", AE1351, FIND(\"/\", AE1351)+1)+1)+1)+1) - 1\n        )\n    ),\n    \"\")\n)","v":""},null,null,null,null,null,null,null,null,null,null,null,null,null,null,6,"None","Parcel","ZWO"]
[null,null,null,null,null,null,null,null,null,null,null,null,null,null,{"$f":"VLOOKUP(N1352,Tabel10[[korte omschrijving]:[MCC3_CODE]],2,0)","v":{"$error":"#N/A"}},{"$f":"VLOOKUP(N1352,Tabel10[],3,0)","v":{"$error":"#N/A"}},null,null,null,null,null,null,null,"EUR",null,null,null,{"$error":"#DIV/0!"},0,0,null,"","","","","","","","","","",null,null,null,null,null,null,null,null,null,null,null,null,null,null,6,"None","Parcel","ZWO"]
[null,null,null,null,null,null,null,null,null,null,null,null,null,null,{"$f":"VLOOKUP(N1353,Tabel10[[korte omschrijving]:[MCC3_CODE]],2,0)","v":{"$error":"#N/A"}},{"$f":"VLOOKUP(N1353,Tabel10[],3,0)","v":{"$error":"#N/A"}},null,null,null,null,null,null,null,"EUR",null,null,null,{"$error":"#DIV/0!"},0,0,null,"","","","","","","","","","",null,null,null,null,null,null,null,null,null,null,null,null,null,null,6,"None","Parcel","ZWO"]
[null,null,null,null,null,null,null,null,null,null,null,null,null,null,{"$f":"VLOOKUP(N1354,Tabel10[[korte omschrijving]:[MCC3_CODE]],2,0)","v":{"$error":"#N/A"}},{"$f":"VLOOKUP(N1354,Tabel10[],3,0)","v":{"$error":"#N/A"}},null,null,null,null,null,null,null,"EUR",null,null,null,{"$error":"#DIV/0!"},0,0,null,"","","","","","","","","","",null,null,null,null,null,null,null,null,null,null,null,null,null,null,6,"None","Parcel","ZWO"]
[null,null,null,null,null,null,null,null,null,null,null,null,null,null,{"$f":"VLOOKUP(N1355,Tabel10[[korte omschrijving]:[MCC3_CODE]],2,0)","v":{"$error":"#N/A"}},{"$f":"VLOOKUP(N1355,Tabel10[],3,0)","v":{"$error":"#N/A"}},null,null,null,null,null,null,null,"EUR",null,null,null,{"$error":"#DIV/0!"},0,0,null,"","","","","","","","","","",null,null,null,null,null,null,null,null,null,null,null,null,null,null,6,"None","Parcel","ZWO"]
[null,null,null,null,null,null,null,null,null,null,null,null,null,null,{"$f":"VLOOKUP(N1356,Tabel10[[korte omschrijving]:[MCC3_CODE]],2,0)","v":{"$error":"#N/A"}},{"$f":"VLOOKUP(N1356,Tabel10[],3,0)","v":{"$error":"#N/A"}},null,null,null,null,null,null,null,"EUR",null,null,null,{"$error":"#DIV/0!"},0,0,null,"","","","","","","","","","",null,null,null,null,null,null,null,null,null,null,null,null,null,null,6,"None","Parcel","ZWO"]
[null,null,null,null,null,null,null,null,null,null,null,null,null,null,{"$f":"VLOOKUP(N1357,Tabel10[[korte omschrijving]:[MCC3_CODE]],2,0)","v":{"$error":"#N/A"}},{"$f":"VLOOKUP(N1357,Tabel10[],3,0)","v":{"$error":"#N/A"}},null,null,null,null,null,null,null,"EUR",null,null,null,{"$error":"#DIV/0!"},0,0,null,"","","","","","","","","","",null,null,null,null,null,null,null,null,null,null,null,null,null,null,6,"None","Parcel","ZWO"]
[null,null,null,null,null,null,null,null,null,null,null,null,null,null,{"$f":"VLOOKUP(N1358,Tabel10[[korte omschrijving]:[MCC3_CODE]],2,0)","v":{"$error":"#N/A"}},{"$f":"VLOOKUP(N1358,Tabel10[],3,0)","v":{"$error":"#N/A"}},null,null,null,null,null,null,null,"EUR",null,null,null,{"$error":"#DIV/0!"},0,0,null,"","","","","","","","","","",null,null,null,null,null,null,null,null,null,null,null,null,null,null,6,"None","Parcel","ZWO"]
[null,null,null,null,null,null,null,null,null,null,null,null,null,null,{"$f":"VLOOKUP(N1359,Tabel10[[korte omschrijving]:[MCC3_CODE]],2,0)","v":{"$error":"#N/A"}},{"$f":"VLOOKUP(N1359,Tabel10[],3,0)","v":{"$error":"#N/A"}},null,null,null,null,null,null,null,"EUR",null,null,null,{"$error":"#DIV/0!"},0,0,null,"","","","","","","","","","",null,null,null,null,null,null,null,null,null,null,null,null,null,null,6,"None","Parcel","ZWO"]
[null,null,null,null,null,null,null,null,null,null,null,null,null,null,{"$f":"VLOOKUP(N1360,Tabel10[[korte omschrijving]:[MCC3_CODE]],2,0)","v":{"$error":"#N/A"}},{"$f":"VLOOKUP(N1360,Tabel10[],3,0)","v":{"$error":"#N/A"}},null,null,null,null,null,null,null,"EUR",null,null,null,{"$error":"#DIV/0!"},0,0,null,"","","","","","","","","","",null,null,null,null,null,null,null,null,null,null,null,null,null,null,6,"None","Parcel","ZWO"]
[null,null,null,null,null,null,null,null,null,null,null,null,null,null,{"$f":"VLOOKUP(N1361,Tabel10[[korte omschrijving]:[MCC3_CODE]],2,0)","v":{"$error":"#N/A"}},{"$f":"VLOOKUP(N1361,Tabel10[],3,0)","v":{"$error":"#N/A"}},null,null,null,null,null,null,null,"EUR",null,null,null,{"$error":"#DIV/0!"},0,0,null,"","","","","","","","","","",null,null,null,null,null,null,null,null,null,null,null,null,null,null,6,"None","Parcel","ZWO"]
[null,null,null,null,null,null,null,null,null,null,null,null,null,null,{"$f":"VLOOKUP(N1362,Tabel10[[korte omschrijving]:[MCC3_CODE]],2,0)","v":{"$error":"#N/A"}},{"$f":"VLOOKUP(N1362,Tabel10[],3,0)","v":{"$error":"#N/A"}},null,null,null,null,null,null,null,"EUR",null,null,null,{"$error":"#DIV/0!"},0,0,null,"","","","","","","","","","",null,null,null,null,null,null,null,null,null,null,null,null,null,null,6,"None","Parcel","ZWO"]
[null,null,null,null,null,null,null,null,null,null,null,null,null,null,{"$f":"VLOOKUP(N1363,Tabel10[[korte omschrijving]:[MCC3_CODE]],2,0)","v":{"$error":"#N/A"}},{"$f":"VLOOKUP(N1363,Tabel10[],3,0)","v":{"$error":"#N/A"}},null,null,null,null,null,null,null,"EUR",null,null,null,{"$error":"#DIV/0!"},0,0,null,"","","","","","","","","","",null,null,null,null,null,null,null,null,null,null,null,null,null,null,6,"None","Parcel","ZWO"]
[null,null,null,null,null,null,null,null,null,null,null,null,null,null,{"$f":"VLOOKUP(N1364,Tabel10[[korte omschrijving]:[MCC3_CODE]],2,0)","v":{"$error":"#N/A"}},{"$f":"VLOOKUP(N1364,Tabel10[],3,0)","v":{"$error":"#N/A"}},null,null,null,null,null,null,null,"EUR",null,null,null,{"$error":"#DIV/0!"},0,0,null,"","","","","","","","","","",null,null,null,null,null,null,null,null,null,null,null,null,null,null,6,"None","Parcel","ZWO"]
[null,null,null,null,null,null,null,null,null,null,null,null,null,null,{"$f":"VLOOKUP(N1365,Tabel10[[korte omschrijving]:[MCC3_CODE]],2,0)","v":{"$error":"#N/A"}},{"$f":"VLOOKUP(N1365,Tabel10[],3,0)","v":{"$error":"#N/A"}},null,null,null,null,null,null,null,"EUR",null,null,null,{"$error":"#DIV/0!"},0,0,null,"","","","","","","","","","",null,null,null,null,null,null,null,null,null,null,null,null,null,null,6,"None","Parcel","ZWO"]
[null,null,null,null,null,null,null,null,null,null,null,null,null,null,{"$f":"VLOOKUP(N1366,Tabel10[[korte omschrijving]:[MCC3_CODE]],2,0)","v":{"$error":"#N/A"}},{"$f":"VLOOKUP(N1366,Tabel10[],3,0)","v":{"$error":"#N/A"}},null,null,null,null,null,null,null,"EUR",null,null,null,{"$error":"#DIV/0!"},0,0,null,"","","","","","","","","","",null,null,null,null,null,null,null,null,null,null,null,null,null,null,6,"None","Parcel","ZWO"]
[null,null,null,null,null,null,null,null,null,null,null,null,null,null,{"$f":"VLOOKUP(N1367,Tabel10[[korte omschrijving]:[MCC3_CODE]],2,0)","v":{"$error":"#N/A"}},{"$f":"VLOOKUP(N1367,Tabel10[],3,0)","v":{"$error":"#N/A"}},null,null,null,null,null,null,null,"EUR",null,null,null,{"$error":"#DIV/0!"},0,0,null,"","","","","","","","","","",null,null,null,null,null,null,null,null,null,null,null,null,null,null,6,"None","Parcel","ZWO"]
[null,null,null,null,null,null,null,null,null,null,null,null,null,null,{"$f":"VLOOKUP(N1368,Tabel10[[korte omschrijving]:[MCC3_CODE]],2,0)","v":{"$error":"#N/A"}},{"$f":"VLOOKUP(N1368,Tabel10[],3,0)","v":{"$error":"#N/A"}},null,null,null,null,null,null,null,"EUR",null,null,null,{"$error":"#DIV/0!"},0,0,null,"","","","","","","","","","",null,null,null,null,null,null,null,null,null,null,null,null,null,null,6,"None","Parcel","ZWO"]
[null,null,null,null,null,null,null,null,null,null,null,null,null,null,{"$f":"VLOOKUP(N1369,Tabel10[[korte omschrijving]:[MCC3_CODE]],2,0)","v":{"$error":"#N/A"}},{"$f":"VLOOKUP(N1369,Tabel10[],3,0)","v":{"$error":"#N/A"}},null,null,null,null,null,null,null,"EUR",null,null,null,{"$error":"#DIV/0!"},0,0,null,"","","","","","","","","","",null,null,null,null,null,null,null,null,null,null,null,null,null,null,6,"None","Parcel","ZWO"]
[null,null,null,null,null,null,null,null,null,null,null,null,null,null,{"$f":"VLOOKUP(N1370,Tabel10[[korte omschrijving]:[MCC3_CODE]],2,0)","v":{"$error":"#N/A"}},{"$f":"VLOOKUP(N1370,Tabel10[],3,0)","v":{"$error":"#N/A"}},null,null,null,null,null,null,null,"EUR",null,null,null,{"$error":"#DIV/0!"},0,0,null,"","","","","","","","","","",null,null,null,null,null,null,null,null,null,null,null,null,null,null,6,"None","Parcel","ZWO"]
[null,null,null,null,null,null,null,null,null,null,null,null,null,null,{"$f":"VLOOKUP(N1371,Tabel10[[korte omschrijving]:[MCC3_CODE]],2,0)","v":{"$error":"#N/A"}},{"$f":"VLOOKUP(N1371,Tabel10[],3,0)","v":{"$error":"#N/A"}},null,null,null,null,null,null,null,"EUR",null,null,null,{"$error":"#DIV/0!"},0,0,null,"","","","","","","","","","",null,null,null,null,null,null,null,null,null,null,null,null,null,null,6,"None","Parcel","ZWO"]
[null,null,null,null,null,null,null,null,null,null,null,null,null,null,{"$f":"VLOOKUP(N1372,Tabel10[[korte omschrijving]:[MCC3_CODE]],2,0)","v":{"$error":"#N/A"}},{"$f":"VLOOKUP(N1372,Tabel10[],3,0)","v":{"$error":"#N/A"}},null,null,null,null,null,null,null,"EUR",null,null,null,{"$error":"#DIV/0!"},0,0,null,"","","","","","","","","","",null,null,null,null,null,null,null,null,null,null,null,null,null,null,6,"None","Parcel","ZWO"]
[null,null,null,null,null,null,null,null,null,null,null,null,null,null,{"$f":"VLOOKUP(N1373,Tabel10[[korte omschrijving]:[MCC3_CODE]],2,0)","v":{"$error":"#N/A"}},{"$f":"VLOOKUP(N1373,Tabel10[],3,0)","v":{"$error":"#N/A"}},null,null,null,null,null,null,null,"EUR",null,null,null,{"$error":"#DIV/0!"},0,0,null,"","","","","","","","","","",null,null,null,null,null,null,null,null,null,null,null,null,null,null,6,"None","Parcel","ZWO"]
[null,null,null,null,null,null,null,null,null,null,null,null,null,null,{"$f":"VLOOKUP(N1374,Tabel10[[korte omschrijving]:[MCC3_CODE]],2,0)","v":{"$error":"#N/A"}},{"$f":"VLOOKUP(N1374,Tabel10[],3,0)","v":{"$error":"#N/A"}},null,null,null,null,null,null,null,"EUR",null,null,null,{"$error":"#DIV/0!"},0,0,null,"","","","","","","","","","",null,null,null,null,null,null,null,null,null,null,null,null,null,null,6,"None","Parcel","ZWO"]
[null,null,null,null,null,null,null,null,null,null,null,null,null,null,{"$f":"VLOOKUP(N1375,Tabel10[[korte omschrijving]:[MCC3_CODE]],2,0)","v":{"$error":"#N/A"}},{"$f":"VLOOKUP(N1375,Tabel10[],3,0)","v":{"$error":"#N/A"}},null,null,null,null,null,null,null,"EUR",null,null,null,{"$error":"#DIV/0!"},0,0,null,"","","","","","","","","","",null,null,null,null,null,null,null,null,null,null,null,null,null,null,6,"None","Parcel","ZWO"]
[null,null,null,null,null,null,null,null,null,null,null,null,null,null,{"$f":"VLOOKUP(N1376,Tabel10[[korte omschrijving]:[MCC3_CODE]],2,0)","v":{"$error":"#N/A"}},{"$f":"VLOOKUP(N1376,Tabel10[],3,0)","v":{"$error":"#N/A"}},null,null,null,null,null,null,null,"EUR",null,null,null,{"$error":"#DIV/0!"},0,0,null,"","","","","","","","","","",null,null,null,null,null,null,null,null,null,null,null,null,null,null,6,"None","Parcel","ZWO"]
[null,null,null,null,null,null,null,null,null,null,null,null,null,null,{"$f":"VLOOKUP(N1377,Tabel10[[korte omschrijving]:[MCC3_CODE]],2,0)","v":{"$error":"#N/A"}},{"$f":"VLOOKUP(N1377,Tabel10[],3,0)","v":{"$error":"#N/A"}},null,null,null,null,null,null,null,"EUR",null,null,null,{"$error":"#DIV/0!"},0,0,null,"","","","","","","","","","",null,null,null,null,null,null,null,null,null,null,null,null,null,null,6,"None","Parcel","ZWO"]
[null,null,null,null,null,null,null,null,null,null,null,null,null,null,{"$f":"VLOOKUP(N1378,Tabel10[[korte omschrijving]:[MCC3_CODE]],2,0)","v":{"$error":"#N/A"}},{"$f":"VLOOKUP(N1378,Tabel10[],3,0)","v":{"$error":"#N/A"}},null,null,null,null,null,null,null,"EUR",null,null,null,{"$error":"#DIV/0!"},0,0,null,"","","","","","","","","","",null,null,null,null,null,null,null,null,null,null,null,null,null,null,6,"None","Parcel","ZWO"]
[null,null,null,null,null,null,null,null,null,null,null,null,null,null,{"$f":"VLOOKUP(N1379,Tabel10[[korte omschrijving]:[MCC3_CODE]],2,0)","v":{"$error":"#N/A"}},{"$f":"VLOOKUP(N1379,Tabel10[],3,0)","v":{"$error":"#N/A"}},null,null,null,null,null,null,null,"EUR",null,null,null,{"$error":"#DIV/0!"},0,0,null,"","","","","","","","","","",null,null,null,null,null,null,null,null,null,null,null,null,null,null,6,"None","Parcel","ZWO"]
[null,null,null,null,null,null,null,null,null,null,null,null,null,null,{"$f":"VLOOKUP(N1380,Tabel10[[korte omschrijving]:[MCC3_CODE]],2,0)","v":{"$error":"#N/A"}},{"$f":"VLOOKUP(N1380,Tabel10[],3,0)","v":{"$error":"#N/A"}},null,null,null,null,null,null,null,"EUR",null,null,null,{"$error":"#DIV/0!"},0,0,null,"","","","","","","","","","",null,null,null,null,null,null,null,null,null,null,null,null,null,null,6,"None","Parcel","ZWO"]
[null,null,null,null,null,null,null,null,null,null,null,null,null,null,{"$f":"VLOOKUP(N1381,Tabel10[[korte omschrijving]:[MCC3_CODE]],2,0)","v":{"$error":"#N/A"}},{"$f":"VLOOKUP(N1381,Tabel10[],3,0)","v":{"$error":"#N/A"}},null,null,null,null,null,null,null,"EUR",null,null,null,{"$error":"#DIV/0!"},0,0,null,"","","","","","","","","","",null,null,null,null,null,null,null,null,null,null,null,null,null,null,6,"None","Parcel","ZWO"]
[null,null,null,null,null,null,null,null,null,null,null,null,null,null,{"$f":"VLOOKUP(N1382,Tabel10[[korte omschrijving]:[MCC3_CODE]],2,0)","v":{"$error":"#N/A"}},{"$f":"VLOOKUP(N1382,Tabel10[],3,0)","v":{"$error":"#N/A"}},null,null,null,null,null,null,null,"EUR",null,null,null,{"$error":"#DIV/0!"},0,0,null,"","","","","","","","","","",null,null,null,null,null,null,null,null,null,null,null,null,null,null,6,"None","Parcel","ZWO"]
[null,null,null,null,null,null,null,null,null,null,null,null,null,null,{"$f":"VLOOKUP(N1383,Tabel10[[korte omschrijving]:[MCC3_CODE]],2,0)","v":{"$error":"#N/A"}},{"$f":"VLOOKUP(N1383,Tabel10[],3,0)","v":{"$error":"#N/A"}},null,null,null,null,null,null,null,"EUR",null,null,null,{"$error":"#DIV/0!"},0,0,null,"","","","","","","","","","",null,null,null,null,null,null,null,null,null,null,null,null,null,null,6,"None","Parcel","ZWO"]
[null,null,null,null,null,null,null,null,null,null,null,null,null,null,{"$f":"VLOOKUP(N1384,Tabel10[[korte omschrijving]:[MCC3_CODE]],2,0)","v":{"$error":"#N/A"}},{"$f":"VLOOKUP(N1384,Tabel10[],3,0)","v":{"$error":"#N/A"}},null,null,null,null,null,null,null,"EUR",null,null,null,{"$error":"#DIV/0!"},0,0,null,"","","","","","","","","","",null,null,null,null,null,null,null,null,null,null,null,null,null,null,6,"None","Parcel","ZWO"]
[null,null,null,null,null,null,null,null,null,null,null,null,null,null,{"$f":"VLOOKUP(N1385,Tabel10[[korte omschrijving]:[MCC3_CODE]],2,0)","v":{"$error":"#N/A"}},{"$f":"VLOOKUP(N1385,Tabel10[],3,0)","v":{"$error":"#N/A"}},null,null,null,null,null,null,null,"EUR",null,null,null,{"$error":"#DIV/0!"},0,0,null,"","","","","","","","","","",null,null,null,null,null,null,null,null,null,null,null,null,null,null,6,"None","Parcel","ZWO"]
[null,null,null,null,null,null,null,null,null,null,null,null,null,null,{"$f":"VLOOKUP(N1386,Tabel10[[korte omschrijving]:[MCC3_CODE]],2,0)","v":{"$error":"#N/A"}},{"$f":"VLOOKUP(N1386,Tabel10[],3,0)","v":{"$error":"#N/A"}},null,null,null,null,null,null,null,"EUR",null,null,null,{"$error":"#DIV/0!"},0,0,null,"","","","","","","","","","",null,null,null,null,null,null,null,null,null,null,null,null,null,null,6,"None","Parcel","ZWO"]
[null,null,null,null,null,null,null,null,null,null,null,null,null,null,{"$f":"VLOOKUP(N1387,Tabel10[[korte omschrijving]:[MCC3_CODE]],2,0)","v":{"$error":"#N/A"}},{"$f":"VLOOKUP(N1387,Tabel10[],3,0)","v":{"$error":"#N/A"}},null,null,null,null,null,null,null,"EUR",null,null,null,{"$error":"#DIV/0!"},0,0,null,"","","","","","","","","","",null,null,null,null,null,null,null,null,null,null,null,null,null,null,6,"None","Parcel","ZWO"]
[null,null,null,null,null,null,null,null,null,null,null,null,null,null,{"$f":"VLOOKUP(N1388,Tabel10[[korte omschrijving]:[MCC3_CODE]],2,0)","v":{"$error":"#N/A"}},{"$f":"VLOOKUP(N1388,Tabel10[],3,0)","v":{"$error":"#N/A"}},null,null,null,null,null,null,null,"EUR",null,null,null,{"$error":"#DIV/0!"},0,0,null,"","","","","","","","","","",null,null,null,null,null,null,null,null,null,null,null,null,null,null,6,"None","Parcel","ZWO"]
[null,null,null,null,null,null,null,null,null,null,null,null,null,null,{"$f":"VLOOKUP(N1389,Tabel10[[korte omschrijving]:[MCC3_CODE]],2,0)","v":{"$error":"#N/A"}},{"$f":"VLOOKUP(N1389,Tabel10[],3,0)","v":{"$error":"#N/A"}},null,null,null,null,null,null,null,"EUR",null,null,null,{"$error":"#DIV/0!"},0,0,null,"","","","","","","","","","",null,null,null,null,null,null,null,null,null,null,null,null,null,null,6,"None","Parcel","ZWO"]
[null,null,null,null,null,null,null,null,null,null,null,null,null,null,{"$f":"VLOOKUP(N1390,Tabel10[[korte omschrijving]:[MCC3_CODE]],2,0)","v":{"$error":"#N/A"}},{"$f":"VLOOKUP(N1390,Tabel10[],3,0)","v":{"$error":"#N/A"}},null,null,null,null,null,null,null,"EUR",null,null,null,{"$error":"#DIV/0!"},0,0,null,"","","","","","","","","","",null,null,null,null,null,null,null,null,null,null,null,null,null,null,6,"None","Parcel","ZWO"]
[null,null,null,null,null,null,null,null,null,null,null,null,null,null,{"$f":"VLOOKUP(N1391,Tabel10[[korte omschrijving]:[MCC3_CODE]],2,0)","v":{"$error":"#N/A"}},{"$f":"VLOOKUP(N1391,Tabel10[],3,0)","v":{"$error":"#N/A"}},null,null,null,null,null,null,null,"EUR",null,null,null,{"$error":"#DIV/0!"},0,0,null,"","","","","","","","","","",null,null,null,null,null,null,null,null,null,null,null,null,null,null,6,"None","Parcel","ZWO"]
[null,null,null,null,null,null,null,null,null,null,null,null,null,null,{"$f":"VLOOKUP(N1392,Tabel10[[korte omschrijving]:[MCC3_CODE]],2,0)","v":{"$error":"#N/A"}},{"$f":"VLOOKUP(N1392,Tabel10[],3,0)","v":{"$error":"#N/A"}},null,null,null,null,null,null,null,"EUR",null,null,null,{"$error":"#DIV/0!"},0,0,null,"","","","","","","","","","",null,null,null,null,null,null,null,null,null,null,null,null,null,null,6,"None","Parcel","ZWO"]
[null,null,null,null,null,null,null,null,null,null,null,null,null,null,{"$f":"VLOOKUP(N1393,Tabel10[[korte omschrijving]:[MCC3_CODE]],2,0)","v":{"$error":"#N/A"}},{"$f":"VLOOKUP(N1393,Tabel10[],3,0)","v":{"$error":"#N/A"}},null,null,null,null,null,null,null,"EUR",null,null,null,{"$error":"#DIV/0!"},0,0,null,"","","","","","","","","","",null,null,null,null,null,null,null,null,null,null,null,null,null,null,6,"None","Parcel","ZWO"]
[null,null,null,null,null,null,null,null,null,null,null,null,null,null,{"$f":"VLOOKUP(N1394,Tabel10[[korte omschrijving]:[MCC3_CODE]],2,0)","v":{"$error":"#N/A"}},{"$f":"VLOOKUP(N1394,Tabel10[],3,0)","v":{"$error":"#N/A"}},null,null,null,null,null,null,null,"EUR",null,null,null,{"$error":"#DIV/0!"},0,0,null,"","","","","","","","","","",null,null,null,null,null,null,null,null,null,null,null,null,null,null,6,"None","Parcel","ZWO"]
[null,null,null,null,null,null,null,null,null,null,null,null,null,null,{"$f":"VLOOKUP(N1395,Tabel10[[korte omschrijving]:[MCC3_CODE]],2,0)","v":{"$error":"#N/A"}},{"$f":"VLOOKUP(N1395,Tabel10[],3,0)","v":{"$error":"#N/A"}},null,null,null,null,null,null,null,"EUR",null,null,null,{"$error":"#DIV/0!"},0,0,null,"","","","","","","","","","",null,null,null,null,null,null,null,null,null,null,null,null,null,null,6,"None","Parcel","ZWO"]
[null,null,null,null,null,null,null,null,null,null,null,null,null,null,{"$f":"VLOOKUP(N1396,Tabel10[[korte omschrijving]:[MCC3_CODE]],2,0)","v":{"$error":"#N/A"}},{"$f":"VLOOKUP(N1396,Tabel10[],3,0)","v":{"$error":"#N/A"}},null,null,null,null,null,null,null,"EUR",null,null,null,{"$error":"#DIV/0!"},0,0,null,"","","","","","","","","","",null,null,null,null,null,null,null,null,null,null,null,null,null,null,6,"None","Parcel","ZWO"]
[null,null,null,null,null,null,null,null,null,null,null,null,null,null,{"$f":"VLOOKUP(N1397,Tabel10[[korte omschrijving]:[MCC3_CODE]],2,0)","v":{"$error":"#N/A"}},{"$f":"VLOOKUP(N1397,Tabel10[],3,0)","v":{"$error":"#N/A"}},null,null,null,null,null,null,null,"EUR",null,null,null,{"$error":"#DIV/0!"},0,0,null,"","","","","","","","","","",null,null,null,null,null,null,null,null,null,null,null,null,null,null,6,"None","Parcel","ZWO"]
[null,null,null,null,null,null,null,null,null,null,null,null,null,null,{"$f":"VLOOKUP(N1398,Tabel10[[korte omschrijving]:[MCC3_CODE]],2,0)","v":{"$error":"#N/A"}},{"$f":"VLOOKUP(N1398,Tabel10[],3,0)","v":{"$error":"#N/A"}},null,null,null,null,null,null,null,"EUR",null,null,null,{"$error":"#DIV/0!"},0,0,null,"","","","","","","","","","",null,null,null,null,null,null,null,null,null,null,null,null,null,null,6,"None","Parcel","ZWO"]
[null,null,null,null,null,null,null,null,null,null,null,null,null,null,{"$f":"VLOOKUP(N1399,Tabel10[[korte omschrijving]:[MCC3_CODE]],2,0)","v":{"$error":"#N/A"}},{"$f":"VLOOKUP(N1399,Tabel10[],3,0)","v":{"$error":"#N/A"}},null,null,null,null,null,null,null,"EUR",null,null,null,{"$error":"#DIV/0!"},0,0,null,"","","","","","","","","","",null,null,null,null,null,null,null,null,null,null,null,null,null,null,6,"None","Parcel","ZWO"]
[null,null,null,null,null,null,null,null,null,null,null,null,null,null,{"$f":"VLOOKUP(N1400,Tabel10[[korte omschrijving]:[MCC3_CODE]],2,0)","v":{"$error":"#N/A"}},{"$f":"VLOOKUP(N1400,Tabel10[],3,0)","v":{"$error":"#N/A"}},null,null,null,null,null,null,null,"EUR",null,null,null,{"$error":"#DIV/0!"},0,0,null,"","","","","","","","","","",null,null,null,null,null,null,null,null,null,null,null,null,null,null,6,"None","Parcel","ZWO"]
[null,null,null,null,null,null,null,null,null,null,null,null,null,null,{"$f":"VLOOKUP(N1401,Tabel10[[korte omschrijving]:[MCC3_CODE]],2,0)","v":{"$error":"#N/A"}},{"$f":"VLOOKUP(N1401,Tabel10[],3,0)","v":{"$error":"#N/A"}},null,null,null,null,null,null,null,"EUR",null,null,null,{"$error":"#DIV/0!"},0,0,null,"","","","","","","","","","",null,null,null,null,null,null,null,null,null,null,null,null,null,null,6,"None","Parcel","ZWO"]
[null,null,null,null,null,null,null,null,null,null,null,null,null,null,{"$f":"VLOOKUP(N1402,Tabel10[[korte omschrijving]:[MCC3_CODE]],2,0)","v":{"$error":"#N/A"}},{"$f":"VLOOKUP(N1402,Tabel10[],3,0)","v":{"$error":"#N/A"}},null,null,null,null,null,null,null,"EUR",null,null,null,{"$error":"#DIV/0!"},0,0,null,"","","","","","","","","","",null,null,null,null,null,null,null,null,null,null,null,null,null,null,6,"None","Parcel","ZWO"]
[null,null,null,null,null,null,null,null,null,null,null,null,null,null,{"$f":"VLOOKUP(N1403,Tabel10[[korte omschrijving]:[MCC3_CODE]],2,0)","v":{"$error":"#N/A"}},{"$f":"VLOOKUP(N1403,Tabel10[],3,0)","v":{"$error":"#N/A"}},null,null,null,null,null,null,null,"EUR",null,null,null,{"$error":"#DIV/0!"},0,0,null,"","","","","","","","","","",null,null,null,null,null,null,null,null,null,null,null,null,null,null,6,"None","Parcel","ZWO"]
[null,null,null,null,null,null,null,null,null,null,null,null,null,null,{"$f":"VLOOKUP(N1404,Tabel10[[korte omschrijving]:[MCC3_CODE]],2,0)","v":{"$error":"#N/A"}},{"$f":"VLOOKUP(N1404,Tabel10[],3,0)","v":{"$error":"#N/A"}},null,null,null,null,null,null,null,"EUR",null,null,null,{"$error":"#DIV/0!"},0,0,null,"","","","","","","","","","",null,null,null,null,null,null,null,null,null,null,null,null,null,null,6,"None","Parcel","ZWO"]
[null,null,null,null,null,null,null,null,null,null,null,null,null,null,{"$f":"VLOOKUP(N1405,Tabel10[[korte omschrijving]:[MCC3_CODE]],2,0)","v":{"$error":"#N/A"}},{"$f":"VLOOKUP(N1405,Tabel10[],3,0)","v":{"$error":"#N/A"}},null,null,null,null,null,null,null,"EUR",null,null,null,{"$error":"#DIV/0!"},0,0,null,"","","","","","","","","","",null,null,null,null,null,null,null,null,null,null,null,null,null,null,6,"None","Parcel","ZWO"]
[null,null,null,null,null,null,null,null,null,null,null,null,null,null,{"$f":"VLOOKUP(N1406,Tabel10[[korte omschrijving]:[MCC3_CODE]],2,0)","v":{"$error":"#N/A"}},{"$f":"VLOOKUP(N1406,Tabel10[],3,0)","v":{"$error":"#N/A"}},null,null,null,null,null,null,null,"EUR",null,null,null,{"$error":"#DIV/0!"},0,0,null,"","","","","","","","","","",null,null,null,null,null,null,null,null,null,null,null,null,null,null,6,"None","Parcel","ZWO"]
[null,null,null,null,null,null,null,null,null,null,null,null,null,null,{"$f":"VLOOKUP(N1407,Tabel10[[korte omschrijving]:[MCC3_CODE]],2,0)","v":{"$error":"#N/A"}},{"$f":"VLOOKUP(N1407,Tabel10[],3,0)","v":{"$error":"#N/A"}},null,null,null,null,null,null,null,"EUR",null,null,null,{"$error":"#DIV/0!"},0,0,null,"","","","","","","","","","",null,null,null,null,null,null,null,null,null,null,null,null,null,null,6,"None","Parcel","ZWO"]
[null,null,null,null,null,null,null,null,null,null,null,null,null,null,{"$f":"VLOOKUP(N1408,Tabel10[[korte omschrijving]:[MCC3_CODE]],2,0)","v":{"$error":"#N/A"}},{"$f":"VLOOKUP(N1408,Tabel10[],3,0)","v":{"$error":"#N/A"}},null,null,null,null,null,null,null,"EUR",null,null,null,{"$error":"#DIV/0!"},0,0,null,"","","","","","","","","","",null,null,null,null,null,null,null,null,null,null,null,null,null,null,6,"None","Parcel","ZWO"]
[null,null,null,null,null,null,null,null,null,null,null,null,null,null,{"$f":"VLOOKUP(N1409,Tabel10[[korte omschrijving]:[MCC3_CODE]],2,0)","v":{"$error":"#N/A"}},{"$f":"VLOOKUP(N1409,Tabel10[],3,0)","v":{"$error":"#N/A"}},null,null,null,null,null,null,null,"EUR",null,null,null,{"$error":"#DIV/0!"},0,0,null,"","","","","","","","","","",null,null,null,null,null,null,null,null,null,null,null,null,null,null,6,"None","Parcel","ZWO"]
[null,null,null,null,null,null,null,null,null,null,null,null,null,null,{"$f":"VLOOKUP(N1410,Tabel10[[korte omschrijving]:[MCC3_CODE]],2,0)","v":{"$error":"#N/A"}},{"$f":"VLOOKUP(N1410,Tabel10[],3,0)","v":{"$error":"#N/A"}},null,null,null,null,null,null,null,"EUR",null,null,null,{"$error":"#DIV/0!"},0,0,null,"","","","","","","","","","",null,null,null,null,null,null,null,null,null,null,null,null,null,null,6,"None","Parcel","ZWO"]
[null,null,null,null,null,null,null,null,null,null,null,null,null,null,{"$f":"VLOOKUP(N1411,Tabel10[[korte omschrijving]:[MCC3_CODE]],2,0)","v":{"$error":"#N/A"}},{"$f":"VLOOKUP(N1411,Tabel10[],3,0)","v":{"$error":"#N/A"}},null,null,null,null,null,null,null,"EUR",null,null,null,{"$error":"#DIV/0!"},0,0,null,"","","","","","","","","","",null,null,null,null,null,null,null,null,null,null,null,null,null,null,6,"None","Parcel","ZWO"]
[null,null,null,null,null,null,null,null,null,null,null,null,null,null,{"$f":"VLOOKUP(N1412,Tabel10[[korte omschrijving]:[MCC3_CODE]],2,0)","v":{"$error":"#N/A"}},{"$f":"VLOOKUP(N1412,Tabel10[],3,0)","v":{"$error":"#N/A"}},null,null,null,null,null,null,null,"EUR",null,null,null,{"$error":"#DIV/0!"},0,0,null,"","","","","","","","","","",null,null,null,null,null,null,null,null,null,null,null,null,null,null,6,"None","Parcel","ZWO"]
[null,null,null,null,null,null,null,null,null,null,null,null,null,null,{"$f":"VLOOKUP(N1413,Tabel10[[korte omschrijving]:[MCC3_CODE]],2,0)","v":{"$error":"#N/A"}},{"$f":"VLOOKUP(N1413,Tabel10[],3,0)","v":{"$error":"#N/A"}},null,null,null,null,null,null,null,"EUR",null,null,null,{"$error":"#DIV/0!"},0,0,null,"","","","","","","","","","",null,null,null,null,null,null,null,null,null,null,null,null,null,null,6,"None","Parcel","ZWO"]
[null,null,null,null,null,null,null,null,null,null,null,null,null,null,{"$f":"VLOOKUP(N1414,Tabel10[[korte omschrijving]:[MCC3_CODE]],2,0)","v":{"$error":"#N/A"}},{"$f":"VLOOKUP(N1414,Tabel10[],3,0)","v":{"$error":"#N/A"}},null,null,null,null,null,null,null,"EUR",null,null,null,{"$error":"#DIV/0!"},0,0,null,"","","","","","","","","","",null,null,null,null,null,null,null,null,null,null,null,null,null,null,6,"None","Parcel","ZWO"]
[null,null,null,null,null,null,null,null,null,null,null,null,null,null,{"$f":"VLOOKUP(N1415,Tabel10[[korte omschrijving]:[MCC3_CODE]],2,0)","v":{"$error":"#N/A"}},{"$f":"VLOOKUP(N1415,Tabel10[],3,0)","v":{"$error":"#N/A"}},null,null,null,null,null,null,null,"EUR",null,null,null,{"$f":"AA1415/Y1415","v":{"$error":"#DIV/0!"}},{"$f":"T1415*Y1415","v":0},{"$f":"T1415*AA1415","v":0},null,{"$f":"IF(AE1415 <> \"\",\n    IF(ISNUMBER(VALUE(LEFT(AE1415, FIND(\"%\", AE1415)-1))),\n        VALUE(LEFT(AE1415, FIND(\"%\", AE1415)-1)),\n        \"Invalid format\"),\n    \"\")","v":""},{"$f":"IF(AE1415 <> \"\",\n    IF(ISNUMBER(VALUE(LEFT(AE1415, FIND(\"%\", AE1415)-1))) * ISNUMBER(FIND(\"%\", AE1415 & \"wol\")) > 0,\n        TRIM(MID(AE1415, FIND(\"%\", AE1415)+1, FIND(\"/\", AE1415 & \"/\")-FIND(\"%\", AE1415)-1)),\n        \"Invalid format\"),\n    \"\")","v":""},{"$f":"IF(AE1415 <> \"\",\n    IF(ISNUMBER(VALUE(MID(AE1415, FIND(\"/\", AE1415) + 1, FIND(\"%\", AE1415, FIND(\"/\", AE1415)) - FIND(\"/\", AE1415) - 1))),\n        VALUE(MID(AE1415, FIND(\"/\", AE1415) + 1, FIND(\"%\", AE1415, FIND(\"/\", AE1415)) - FIND(\"/\", AE1415) - 1)),\n        \"\"),\n    \"\")","v":""},{"$f":"IF(AE1415 <> \"\",\n    IFERROR(TRIM(MID(AE1415, FIND(\"%\", AE1415, FIND(\"/\", AE1415)+1)+2,\n        IFERROR(FIND(\"/\", AE1415 & \"/\", FIND(\"/\", AE1415)+1)-FIND(\"%\", AE1415, FIND(\"/\", AE1415)+1)-2, LEN(AE1415)-FIND(\"%\", AE1415, FIND(\"/\", AE1415)+1)-1))),\n        \"\"),\n    \"\")","v":""},{"$f":"IF(AE1415 <> \"\",\n    IF(ISNUMBER(VALUE(MID(AE1415, FIND(\"/\", AE1415, FIND(\"/\", AE1415)+1) + 1, FIND(\"%\", AE1415, FIND(\"/\", AE1415, FIND(\"/\", AE1415)+1)) - FIND(\"/\", AE1415, FIND(\"/\", AE1415)+1) - 1))),\n        VALUE(MID(AE1415, FIND(\"/\", AE1415, FIND(\"/\", AE1415)+1) + 1, FIND(\"%\", AE1415, FIND(\"/\", AE1415, FIND(\"/\", AE1415)+1)) - FIND(\"/\", AE1415, FIND(\"/\", AE1415)+1) - 1)),\n        \"\"),\n    \"\")","v":""},{"$f":"IF(AE1415 <> \"\",\n    IFERROR(\n        TRIM(MID(AE1415,\n            FIND(\"%\", AE1415, FIND(\"%\", AE1415, FIND(\"%\", AE1415)+1)+1)+1,\n            FIND(\"/\", AE1415 & \"/\", FIND(\"%\", AE1415, FIND(\"%\", AE1415, FIND(\"%\", AE1415)+1)+1))-FIND(\"%\", AE1415, FIND(\"%\", AE1415, FIND(\"%\", AE1415)+1)+1)-1)\n        ),\n        \"\"\n    ),\n    \"\"\n)","v":""},{"$f":"IF(AE1415 <> \"\",\n    IF(ISNUMBER(VALUE(MID(AE1415, FIND(\"/\", AE1415, FIND(\"/\", AE1415, FIND(\"/\", AE1415)+1)+1) + 1, FIND(\"%\", AE1415, FIND(\"/\", AE1415, FIND(\"/\", AE1415, FIND(\"/\", AE1415)+1)+1)) - FIND(\"/\", AE1415, FIND(\"/\", AE1415, FIND(\"/\", AE1415)+1)+1) - 1))),\n        VALUE(MID(AE1415, FIND(\"/\", AE1415, FIND(\"/\", AE1415, FIND(\"/\", AE1415)+1)+1) + 1, FIND(\"%\", AE1415, FIND(\"/\", AE1415, FIND(\"/\", AE1415, FIND(\"/\", AE1415)+1)+1)) - FIND(\"/\", AE1415, FIND(\"/\", AE1415, FIND(\"/\", AE1415)+1)+1) - 1)),\n        \"\"),\n    \"\")","v":""},{"$f":"IF(AE1415 <> \"\",\n    IFERROR(TRIM(MID(AE1415, FIND(\"%\", AE1415, FIND(\"/\", AE1415, FIND(\"/\", AE1415, FIND(\"/\", AE1415)+1)+1)+1)+2,\n        IFERROR(FIND(\"/\", AE1415, FIND(\"/\", AE1415, FIND(\"/\", AE1415, FIND(\"/\", AE1415)+1)+1)+1)-FIND(\"%\", AE1415, FIND(\"/\", AE1415, FIND(\"/\", AE1415, FIND(\"/\", AE1415)+1)+1)+1)-2, LEN(AE1415)-FIND(\"%\", AE1415, FIND(\"/\", AE1415, FIND(\"/\", AE1415, FIND(\"/\", AE1415)+1)+1)+1)-1))),\n        \"\"),\n    \"\")","v":""},{"$f":"IF(AE1415 <> \"\",\n    IF(ISNUMBER(VALUE(MID(AE1415, FIND(\"/\", AE1415, FIND(\"/\", AE1415, FIND(\"/\", AE1415, FIND(\"/\", AE1415)+1)+1)+1) + 1, FIND(\"%\", AE1415, FIND(\"/\", AE1415, FIND(\"/\", AE1415, FIND(\"/\", AE1415, FIND(\"/\", AE1415)+1)+1)+1)) - FIND(\"/\", AE1415, FIND(\"/\", AE1415, FIND(\"/\", AE1415, FIND(\"/\", AE1415)+1)+1)+1) - 1))),\n        VALUE(MID(AE1415, FIND(\"/\", AE1415, FIND(\"/\", AE1415, FIND(\"/\", AE1415, FIND(\"/\", AE1415)+1)+1)+1) + 1, FIND(\"%\", AE1415, FIND(\"/\", AE1415, FIND(\"/\", AE1415, FIND(\"/\", AE1415, FIND(\"/\", AE1415)+1)+1)+1)) - FIND(\"/\", AE1415, FIND(\"/\", AE1415, FIND(\"/\", AE1415, FIND(\"/\", AE1415)+1)+1)+1) - 1)),\n        \"\"),\n    \"\")","v":""},{"$f":"IF(AE1415 = \"\", \"\",\n    IFERROR(TRIM(\n        MID(\n            AE1415,\n            FIND(\"%\", AE1415, FIND(\"/\", AE1415, FIND(\"/\", AE1415, FIND(\"/\", AE1415, FIND(\"/\", AE1415)+1)+1)+1)+1) + 1,\n            FIND(\"/\", AE1415 & \"/\", FIND(\"%\", AE1415, FIND(\"/\", AE1415, FIND(\"/\", AE1415, FIND(\"/\", AE1415, FIND(\"/\", AE1415)+1)+1)+1)+1)) -\n            FIND(\"%\", AE1415, FIND(\"/\", AE1415, FIND(\"/\", AE1415, FIND(\"/\", AE1415, FIND(\"/\", AE1415)+1)+1)+1)+1) - 1\n        )\n    ),\n    \"\")\n)","v":""},null,null,null,null,null,null,null,null,null,null,null,null,null,null,6,"None","Parcel","ZWO"]
[null,null,null,null,null,null,null,null,null,null,null,null,null,null,{"$f":"VLOOKUP(N1416,Tabel10[[korte omschrijving]:[MCC3_CODE]],2,0)","v":{"$error":"#N/A"}},{"$f":"VLOOKUP(N1416,Tabel10[],3,0)","v":{"$error":"#N/A"}},null,null,null,null,null,null,null,"EUR",null,null,null,{"$error":"#DIV/0!"},0,0,null,"","","","","","","","","","",null,null,null,null,null,null,null,null,null,null,null,null,null,null,6,"None","Parcel","ZWO"]
[null,null,null,null,null,null,null,null,null,null,null,null,null,null,{"$f":"VLOOKUP(N1417,Tabel10[[korte omschrijving]:[MCC3_CODE]],2,0)","v":{"$error":"#N/A"}},{"$f":"VLOOKUP(N1417,Tabel10[],3,0)","v":{"$error":"#N/A"}},null,null,null,null,null,null,null,"EUR",null,null,null,{"$error":"#DIV/0!"},0,0,null,"","","","","","","","","","",null,null,null,null,null,null,null,null,null,null,null,null,null,null,6,"None","Parcel","ZWO"]
[null,null,null,null,null,null,null,null,null,null,null,null,null,null,{"$f":"VLOOKUP(N1418,Tabel10[[korte omschrijving]:[MCC3_CODE]],2,0)","v":{"$error":"#N/A"}},{"$f":"VLOOKUP(N1418,Tabel10[],3,0)","v":{"$error":"#N/A"}},null,null,null,null,null,null,null,"EUR",null,null,null,{"$error":"#DIV/0!"},0,0,null,"","","","","","","","","","",null,null,null,null,null,null,null,null,null,null,null,null,null,null,6,"None","Parcel","ZWO"]
[null,null,null,null,null,null,null,null,null,null,null,null,null,null,{"$f":"VLOOKUP(N1419,Tabel10[[korte omschrijving]:[MCC3_CODE]],2,0)","v":{"$error":"#N/A"}},{"$f":"VLOOKUP(N1419,Tabel10[],3,0)","v":{"$error":"#N/A"}},null,null,null,null,null,null,null,"EUR",null,null,null,{"$error":"#DIV/0!"},0,0,null,"","","","","","","","","","",null,null,null,null,null,null,null,null,null,null,null,null,null,null,6,"None","Parcel","ZWO"]
[null,null,null,null,null,null,null,null,null,null,null,null,null,null,{"$f":"VLOOKUP(N1420,Tabel10[[korte omschrijving]:[MCC3_CODE]],2,0)","v":{"$error":"#N/A"}},{"$f":"VLOOKUP(N1420,Tabel10[],3,0)","v":{"$error":"#N/A"}},null,null,null,null,null,null,null,"EUR",null,null,null,{"$error":"#DIV/0!"},0,0,null,"","","","","","","","","","",null,null,null,null,null,null,null,null,null,null,null,null,null,null,6,"None","Parcel","ZWO"]
[null,null,null,null,null,null,null,null,null,null,null,null,null,null,{"$f":"VLOOKUP(N1421,Tabel10[[korte omschrijving]:[MCC3_CODE]],2,0)","v":{"$error":"#N/A"}},{"$f":"VLOOKUP(N1421,Tabel10[],3,0)","v":{"$error":"#N/A"}},null,null,null,null,null,null,null,"EUR",null,null,null,{"$error":"#DIV/0!"},0,0,null,"","","","","","","","","","",null,null,null,null,null,null,null,null,null,null,null,null,null,null,6,"None","Parcel","ZWO"]
[null,null,null,null,null,null,null,null,null,null,null,null,null,null,{"$f":"VLOOKUP(N1422,Tabel10[[korte omschrijving]:[MCC3_CODE]],2,0)","v":{"$error":"#N/A"}},{"$f":"VLOOKUP(N1422,Tabel10[],3,0)","v":{"$error":"#N/A"}},null,null,null,null,null,null,null,"EUR",null,null,null,{"$error":"#DIV/0!"},0,0,null,"","","","","","","","","","",null,null,null,null,null,null,null,null,null,null,null,null,null,null,6,"None","Parcel","ZWO"]
[null,null,null,null,null,null,null,null,null,null,null,null,null,null,{"$f":"VLOOKUP(N1423,Tabel10[[korte omschrijving]:[MCC3_CODE]],2,0)","v":{"$error":"#N/A"}},{"$f":"VLOOKUP(N1423,Tabel10[],3,0)","v":{"$error":"#N/A"}},null,null,null,null,null,null,null,"EUR",null,null,null,{"$error":"#DIV/0!"},0,0,null,"","","","","","","","","","",null,null,null,null,null,null,null,null,null,null,null,null,null,null,6,"None","Parcel","ZWO"]
[null,null,null,null,null,null,null,null,null,null,null,null,null,null,{"$f":"VLOOKUP(N1424,Tabel10[[korte omschrijving]:[MCC3_CODE]],2,0)","v":{"$error":"#N/A"}},{"$f":"VLOOKUP(N1424,Tabel10[],3,0)","v":{"$error":"#N/A"}},null,null,null,null,null,null,null,"EUR",null,null,null,{"$error":"#DIV/0!"},0,0,null,"","","","","","","","","","",null,null,null,null,null,null,null,null,null,null,null,null,null,null,6,"None","Parcel","ZWO"]
[null,null,null,null,null,null,null,null,null,null,null,null,null,null,{"$f":"VLOOKUP(N1425,Tabel10[[korte omschrijving]:[MCC3_CODE]],2,0)","v":{"$error":"#N/A"}},{"$f":"VLOOKUP(N1425,Tabel10[],3,0)","v":{"$error":"#N/A"}},null,null,null,null,null,null,null,"EUR",null,null,null,{"$error":"#DIV/0!"},0,0,null,"","","","","","","","","","",null,null,null,null,null,null,null,null,null,null,null,null,null,null,6,"None","Parcel","ZWO"]
[null,null,null,null,null,null,null,null,null,null,null,null,null,null,{"$f":"VLOOKUP(N1426,Tabel10[[korte omschrijving]:[MCC3_CODE]],2,0)","v":{"$error":"#N/A"}},{"$f":"VLOOKUP(N1426,Tabel10[],3,0)","v":{"$error":"#N/A"}},null,null,null,null,null,null,null,"EUR",null,null,null,{"$error":"#DIV/0!"},0,0,null,"","","","","","","","","","",null,null,null,null,null,null,null,null,null,null,null,null,null,null,6,"None","Parcel","ZWO"]
[null,null,null,null,null,null,null,null,null,null,null,null,null,null,{"$f":"VLOOKUP(N1427,Tabel10[[korte omschrijving]:[MCC3_CODE]],2,0)","v":{"$error":"#N/A"}},{"$f":"VLOOKUP(N1427,Tabel10[],3,0)","v":{"$error":"#N/A"}},null,null,null,null,null,null,null,"EUR",null,null,null,{"$error":"#DIV/0!"},0,0,null,"","","","","","","","","","",null,null,null,null,null,null,null,null,null,null,null,null,null,null,6,"None","Parcel","ZWO"]
[null,null,null,null,null,null,null,null,null,null,null,null,null,null,{"$f":"VLOOKUP(N1428,Tabel10[[korte omschrijving]:[MCC3_CODE]],2,0)","v":{"$error":"#N/A"}},{"$f":"VLOOKUP(N1428,Tabel10[],3,0)","v":{"$error":"#N/A"}},null,null,null,null,null,null,null,"EUR",null,null,null,{"$error":"#DIV/0!"},0,0,null,"","","","","","","","","","",null,null,null,null,null,null,null,null,null,null,null,null,null,null,6,"None","Parcel","ZWO"]
[null,null,null,null,null,null,null,null,null,null,null,null,null,null,{"$f":"VLOOKUP(N1429,Tabel10[[korte omschrijving]:[MCC3_CODE]],2,0)","v":{"$error":"#N/A"}},{"$f":"VLOOKUP(N1429,Tabel10[],3,0)","v":{"$error":"#N/A"}},null,null,null,null,null,null,null,"EUR",null,null,null,{"$error":"#DIV/0!"},0,0,null,"","","","","","","","","","",null,null,null,null,null,null,null,null,null,null,null,null,null,null,6,"None","Parcel","ZWO"]
[null,null,null,null,null,null,null,null,null,null,null,null,null,null,{"$f":"VLOOKUP(N1430,Tabel10[[korte omschrijving]:[MCC3_CODE]],2,0)","v":{"$error":"#N/A"}},{"$f":"VLOOKUP(N1430,Tabel10[],3,0)","v":{"$error":"#N/A"}},null,null,null,null,null,null,null,"EUR",null,null,null,{"$error":"#DIV/0!"},0,0,null,"","","","","","","","","","",null,null,null,null,null,null,null,null,null,null,null,null,null,null,6,"None","Parcel","ZWO"]
[null,null,null,null,null,null,null,null,null,null,null,null,null,null,{"$f":"VLOOKUP(N1431,Tabel10[[korte omschrijving]:[MCC3_CODE]],2,0)","v":{"$error":"#N/A"}},{"$f":"VLOOKUP(N1431,Tabel10[],3,0)","v":{"$error":"#N/A"}},null,null,null,null,null,null,null,"EUR",null,null,null,{"$error":"#DIV/0!"},0,0,null,"","","","","","","","","","",null,null,null,null,null,null,null,null,null,null,null,null,null,null,6,"None","Parcel","ZWO"]
[null,null,null,null,null,null,null,null,null,null,null,null,null,null,{"$f":"VLOOKUP(N1432,Tabel10[[korte omschrijving]:[MCC3_CODE]],2,0)","v":{"$error":"#N/A"}},{"$f":"VLOOKUP(N1432,Tabel10[],3,0)","v":{"$error":"#N/A"}},null,null,null,null,null,null,null,"EUR",null,null,null,{"$error":"#DIV/0!"},0,0,null,"","","","","","","","","","",null,null,null,null,null,null,null,null,null,null,null,null,null,null,6,"None","Parcel","ZWO"]
[null,null,null,null,null,null,null,null,null,null,null,null,null,null,{"$f":"VLOOKUP(N1433,Tabel10[[korte omschrijving]:[MCC3_CODE]],2,0)","v":{"$error":"#N/A"}},{"$f":"VLOOKUP(N1433,Tabel10[],3,0)","v":{"$error":"#N/A"}},null,null,null,null,null,null,null,"EUR",null,null,null,{"$error":"#DIV/0!"},0,0,null,"","","","","","","","","","",null,null,null,null,null,null,null,null,null,null,null,null,null,null,6,"None","Parcel","ZWO"]
[null,null,null,null,null,null,null,null,null,null,null,null,null,null,{"$f":"VLOOKUP(N1434,Tabel10[[korte omschrijving]:[MCC3_CODE]],2,0)","v":{"$error":"#N/A"}},{"$f":"VLOOKUP(N1434,Tabel10[],3,0)","v":{"$error":"#N/A"}},null,null,null,null,null,null,null,"EUR",null,null,null,{"$error":"#DIV/0!"},0,0,null,"","","","","","","","","","",null,null,null,null,null,null,null,null,null,null,null,null,null,null,6,"None","Parcel","ZWO"]
[null,null,null,null,null,null,null,null,null,null,null,null,null,null,{"$f":"VLOOKUP(N1435,Tabel10[[korte omschrijving]:[MCC3_CODE]],2,0)","v":{"$error":"#N/A"}},{"$f":"VLOOKUP(N1435,Tabel10[],3,0)","v":{"$error":"#N/A"}},null,null,null,null,null,null,null,"EUR",null,null,null,{"$error":"#DIV/0!"},0,0,null,"","","","","","","","","","",null,null,null,null,null,null,null,null,null,null,null,null,null,null,6,"None","Parcel","ZWO"]
[null,null,null,null,null,null,null,null,null,null,null,null,null,null,{"$f":"VLOOKUP(N1436,Tabel10[[korte omschrijving]:[MCC3_CODE]],2,0)","v":{"$error":"#N/A"}},{"$f":"VLOOKUP(N1436,Tabel10[],3,0)","v":{"$error":"#N/A"}},null,null,null,null,null,null,null,"EUR",null,null,null,{"$error":"#DIV/0!"},0,0,null,"","","","","","","","","","",null,null,null,null,null,null,null,null,null,null,null,null,null,null,6,"None","Parcel","ZWO"]
[null,null,null,null,null,null,null,null,null,null,null,null,null,null,{"$f":"VLOOKUP(N1437,Tabel10[[korte omschrijving]:[MCC3_CODE]],2,0)","v":{"$error":"#N/A"}},{"$f":"VLOOKUP(N1437,Tabel10[],3,0)","v":{"$error":"#N/A"}},null,null,null,null,null,null,null,"EUR",null,null,null,{"$error":"#DIV/0!"},0,0,null,"","","","","","","","","","",null,null,null,null,null,null,null,null,null,null,null,null,null,null,6,"None","Parcel","ZWO"]
[null,null,null,null,null,null,null,null,null,null,null,null,null,null,{"$f":"VLOOKUP(N1438,Tabel10[[korte omschrijving]:[MCC3_CODE]],2,0)","v":{"$error":"#N/A"}},{"$f":"VLOOKUP(N1438,Tabel10[],3,0)","v":{"$error":"#N/A"}},null,null,null,null,null,null,null,"EUR",null,null,null,{"$error":"#DIV/0!"},0,0,null,"","","","","","","","","","",null,null,null,null,null,null,null,null,null,null,null,null,null,null,6,"None","Parcel","ZWO"]
[null,null,null,null,null,null,null,null,null,null,null,null,null,null,{"$f":"VLOOKUP(N1439,Tabel10[[korte omschrijving]:[MCC3_CODE]],2,0)","v":{"$error":"#N/A"}},{"$f":"VLOOKUP(N1439,Tabel10[],3,0)","v":{"$error":"#N/A"}},null,null,null,null,null,null,null,"EUR",null,null,null,{"$error":"#DIV/0!"},0,0,null,"","","","","","","","","","",null,null,null,null,null,null,null,null,null,null,null,null,null,null,6,"None","Parcel","ZWO"]
[null,null,null,null,null,null,null,null,null,null,null,null,null,null,{"$f":"VLOOKUP(N1440,Tabel10[[korte omschrijving]:[MCC3_CODE]],2,0)","v":{"$error":"#N/A"}},{"$f":"VLOOKUP(N1440,Tabel10[],3,0)","v":{"$error":"#N/A"}},null,null,null,null,null,null,null,"EUR",null,null,null,{"$error":"#DIV/0!"},0,0,null,"","","","","","","","","","",null,null,null,null,null,null,null,null,null,null,null,null,null,null,6,"None","Parcel","ZWO"]
[null,null,null,null,null,null,null,null,null,null,null,null,null,null,{"$f":"VLOOKUP(N1441,Tabel10[[korte omschrijving]:[MCC3_CODE]],2,0)","v":{"$error":"#N/A"}},{"$f":"VLOOKUP(N1441,Tabel10[],3,0)","v":{"$error":"#N/A"}},null,null,null,null,null,null,null,"EUR",null,null,null,{"$error":"#DIV/0!"},0,0,null,"","","","","","","","","","",null,null,null,null,null,null,null,null,null,null,null,null,null,null,6,"None","Parcel","ZWO"]
[null,null,null,null,null,null,null,null,null,null,null,null,null,null,{"$f":"VLOOKUP(N1442,Tabel10[[korte omschrijving]:[MCC3_CODE]],2,0)","v":{"$error":"#N/A"}},{"$f":"VLOOKUP(N1442,Tabel10[],3,0)","v":{"$error":"#N/A"}},null,null,null,null,null,null,null,"EUR",null,null,null,{"$error":"#DIV/0!"},0,0,null,"","","","","","","","","","",null,null,null,null,null,null,null,null,null,null,null,null,null,null,6,"None","Parcel","ZWO"]
[null,null,null,null,null,null,null,null,null,null,null,null,null,null,{"$f":"VLOOKUP(N1443,Tabel10[[korte omschrijving]:[MCC3_CODE]],2,0)","v":{"$error":"#N/A"}},{"$f":"VLOOKUP(N1443,Tabel10[],3,0)","v":{"$error":"#N/A"}},null,null,null,null,null,null,null,"EUR",null,null,null,{"$error":"#DIV/0!"},0,0,null,"","","","","","","","","","",null,null,null,null,null,null,null,null,null,null,null,null,null,null,6,"None","Parcel","ZWO"]
[null,null,null,null,null,null,null,null,null,null,null,null,null,null,{"$f":"VLOOKUP(N1444,Tabel10[[korte omschrijving]:[MCC3_CODE]],2,0)","v":{"$error":"#N/A"}},{"$f":"VLOOKUP(N1444,Tabel10[],3,0)","v":{"$error":"#N/A"}},null,null,null,null,null,null,null,"EUR",null,null,null,{"$error":"#DIV/0!"},0,0,null,"","","","","","","","","","",null,null,null,null,null,null,null,null,null,null,null,null,null,null,6,"None","Parcel","ZWO"]
[null,null,null,null,null,null,null,null,null,null,null,null,null,null,{"$f":"VLOOKUP(N1445,Tabel10[[korte omschrijving]:[MCC3_CODE]],2,0)","v":{"$error":"#N/A"}},{"$f":"VLOOKUP(N1445,Tabel10[],3,0)","v":{"$error":"#N/A"}},null,null,null,null,null,null,null,"EUR",null,null,null,{"$error":"#DIV/0!"},0,0,null,"","","","","","","","","","",null,null,null,null,null,null,null,null,null,null,null,null,null,null,6,"None","Parcel","ZWO"]
[null,null,null,null,null,null,null,null,null,null,null,null,null,null,{"$f":"VLOOKUP(N1446,Tabel10[[korte omschrijving]:[MCC3_CODE]],2,0)","v":{"$error":"#N/A"}},{"$f":"VLOOKUP(N1446,Tabel10[],3,0)","v":{"$error":"#N/A"}},null,null,null,null,null,null,null,"EUR",null,null,null,{"$error":"#DIV/0!"},0,0,null,"","","","","","","","","","",null,null,null,null,null,null,null,null,null,null,null,null,null,null,6,"None","Parcel","ZWO"]
[null,null,null,null,null,null,null,null,null,null,null,null,null,null,{"$f":"VLOOKUP(N1447,Tabel10[[korte omschrijving]:[MCC3_CODE]],2,0)","v":{"$error":"#N/A"}},{"$f":"VLOOKUP(N1447,Tabel10[],3,0)","v":{"$error":"#N/A"}},null,null,null,null,null,null,null,"EUR",null,null,null,{"$error":"#DIV/0!"},0,0,null,"","","","","","","","","","",null,null,null,null,null,null,null,null,null,null,null,null,null,null,6,"None","Parcel","ZWO"]
[null,null,null,null,null,null,null,null,null,null,null,null,null,null,{"$f":"VLOOKUP(N1448,Tabel10[[korte omschrijving]:[MCC3_CODE]],2,0)","v":{"$error":"#N/A"}},{"$f":"VLOOKUP(N1448,Tabel10[],3,0)","v":{"$error":"#N/A"}},null,null,null,null,null,null,null,"EUR",null,null,null,{"$error":"#DIV/0!"},0,0,null,"","","","","","","","","","",null,null,null,null,null,null,null,null,null,null,null,null,null,null,6,"None","Parcel","ZWO"]
[null,null,null,null,null,null,null,null,null,null,null,null,null,null,{"$f":"VLOOKUP(N1449,Tabel10[[korte omschrijving]:[MCC3_CODE]],2,0)","v":{"$error":"#N/A"}},{"$f":"VLOOKUP(N1449,Tabel10[],3,0)","v":{"$error":"#N/A"}},null,null,null,null,null,null,null,"EUR",null,null,null,{"$error":"#DIV/0!"},0,0,null,"","","","","","","","","","",null,null,null,null,null,null,null,null,null,null,null,null,null,null,6,"None","Parcel","ZWO"]
[null,null,null,null,null,null,null,null,null,null,null,null,null,null,{"$f":"VLOOKUP(N1450,Tabel10[[korte omschrijving]:[MCC3_CODE]],2,0)","v":{"$error":"#N/A"}},{"$f":"VLOOKUP(N1450,Tabel10[],3,0)","v":{"$error":"#N/A"}},null,null,null,null,null,null,null,"EUR",null,null,null,{"$error":"#DIV/0!"},0,0,null,"","","","","","","","","","",null,null,null,null,null,null,null,null,null,null,null,null,null,null,6,"None","Parcel","ZWO"]
[null,null,null,null,null,null,null,null,null,null,null,null,null,null,{"$f":"VLOOKUP(N1451,Tabel10[[korte omschrijving]:[MCC3_CODE]],2,0)","v":{"$error":"#N/A"}},{"$f":"VLOOKUP(N1451,Tabel10[],3,0)","v":{"$error":"#N/A"}},null,null,null,null,null,null,null,"EUR",null,null,null,{"$error":"#DIV/0!"},0,0,null,"","","","","","","","","","",null,null,null,null,null,null,null,null,null,null,null,null,null,null,6,"None","Parcel","ZWO"]
[null,null,null,null,null,null,null,null,null,null,null,null,null,null,{"$f":"VLOOKUP(N1452,Tabel10[[korte omschrijving]:[MCC3_CODE]],2,0)","v":{"$error":"#N/A"}},{"$f":"VLOOKUP(N1452,Tabel10[],3,0)","v":{"$error":"#N/A"}},null,null,null,null,null,null,null,"EUR",null,null,null,{"$error":"#DIV/0!"},0,0,null,"","","","","","","","","","",null,null,null,null,null,null,null,null,null,null,null,null,null,null,6,"None","Parcel","ZWO"]
[null,null,null,null,null,null,null,null,null,null,null,null,null,null,{"$f":"VLOOKUP(N1453,Tabel10[[korte omschrijving]:[MCC3_CODE]],2,0)","v":{"$error":"#N/A"}},{"$f":"VLOOKUP(N1453,Tabel10[],3,0)","v":{"$error":"#N/A"}},null,null,null,null,null,null,null,"EUR",null,null,null,{"$error":"#DIV/0!"},0,0,null,"","","","","","","","","","",null,null,null,null,null,null,null,null,null,null,null,null,null,null,6,"None","Parcel","ZWO"]
[null,null,null,null,null,null,null,null,null,null,null,null,null,null,{"$f":"VLOOKUP(N1454,Tabel10[[korte omschrijving]:[MCC3_CODE]],2,0)","v":{"$error":"#N/A"}},{"$f":"VLOOKUP(N1454,Tabel10[],3,0)","v":{"$error":"#N/A"}},null,null,null,null,null,null,null,"EUR",null,null,null,{"$error":"#DIV/0!"},0,0,null,"","","","","","","","","","",null,null,null,null,null,null,null,null,null,null,null,null,null,null,6,"None","Parcel","ZWO"]
[null,null,null,null,null,null,null,null,null,null,null,null,null,null,{"$f":"VLOOKUP(N1455,Tabel10[[korte omschrijving]:[MCC3_CODE]],2,0)","v":{"$error":"#N/A"}},{"$f":"VLOOKUP(N1455,Tabel10[],3,0)","v":{"$error":"#N/A"}},null,null,null,null,null,null,null,"EUR",null,null,null,{"$error":"#DIV/0!"},0,0,null,"","","","","","","","","","",null,null,null,null,null,null,null,null,null,null,null,null,null,null,6,"None","Parcel","ZWO"]
[null,null,null,null,null,null,null,null,null,null,null,null,null,null,{"$f":"VLOOKUP(N1456,Tabel10[[korte omschrijving]:[MCC3_CODE]],2,0)","v":{"$error":"#N/A"}},{"$f":"VLOOKUP(N1456,Tabel10[],3,0)","v":{"$error":"#N/A"}},null,null,null,null,null,null,null,"EUR",null,null,null,{"$error":"#DIV/0!"},0,0,null,"","","","","","","","","","",null,null,null,null,null,null,null,null,null,null,null,null,null,null,6,"None","Parcel","ZWO"]
[null,null,null,null,null,null,null,null,null,null,null,null,null,null,{"$f":"VLOOKUP(N1457,Tabel10[[korte omschrijving]:[MCC3_CODE]],2,0)","v":{"$error":"#N/A"}},{"$f":"VLOOKUP(N1457,Tabel10[],3,0)","v":{"$error":"#N/A"}},null,null,null,null,null,null,null,"EUR",null,null,null,{"$error":"#DIV/0!"},0,0,null,"","","","","","","","","","",null,null,null,null,null,null,null,null,null,null,null,null,null,null,6,"None","Parcel","ZWO"]
[null,null,null,null,null,null,null,null,null,null,null,null,null,null,{"$f":"VLOOKUP(N1458,Tabel10[[korte omschrijving]:[MCC3_CODE]],2,0)","v":{"$error":"#N/A"}},{"$f":"VLOOKUP(N1458,Tabel10[],3,0)","v":{"$error":"#N/A"}},null,null,null,null,null,null,null,"EUR",null,null,null,{"$error":"#DIV/0!"},0,0,null,"","","","","","","","","","",null,null,null,null,null,null,null,null,null,null,null,null,null,null,6,"None","Parcel","ZWO"]
[null,null,null,null,null,null,null,null,null,null,null,null,null,null,{"$f":"VLOOKUP(N1459,Tabel10[[korte omschrijving]:[MCC3_CODE]],2,0)","v":{"$error":"#N/A"}},{"$f":"VLOOKUP(N1459,Tabel10[],3,0)","v":{"$error":"#N/A"}},null,null,null,null,null,null,null,"EUR",null,null,null,{"$error":"#DIV/0!"},0,0,null,"","","","","","","","","","",null,null,null,null,null,null,null,null,null,null,null,null,null,null,6,"None","Parcel","ZWO"]
[null,null,null,null,null,null,null,null,null,null,null,null,null,null,{"$f":"VLOOKUP(N1460,Tabel10[[korte omschrijving]:[MCC3_CODE]],2,0)","v":{"$error":"#N/A"}},{"$f":"VLOOKUP(N1460,Tabel10[],3,0)","v":{"$error":"#N/A"}},null,null,null,null,null,null,null,"EUR",null,null,null,{"$error":"#DIV/0!"},0,0,null,"","","","","","","","","","",null,null,null,null,null,null,null,null,null,null,null,null,null,null,6,"None","Parcel","ZWO"]
[null,null,null,null,null,null,null,null,null,null,null,null,null,null,{"$f":"VLOOKUP(N1461,Tabel10[[korte omschrijving]:[MCC3_CODE]],2,0)","v":{"$error":"#N/A"}},{"$f":"VLOOKUP(N1461,Tabel10[],3,0)","v":{"$error":"#N/A"}},null,null,null,null,null,null,null,"EUR",null,null,null,{"$error":"#DIV/0!"},0,0,null,"","","","","","","","","","",null,null,null,null,null,null,null,null,null,null,null,null,null,null,6,"None","Parcel","ZWO"]
[null,null,null,null,null,null,null,null,null,null,null,null,null,null,{"$f":"VLOOKUP(N1462,Tabel10[[korte omschrijving]:[MCC3_CODE]],2,0)","v":{"$error":"#N/A"}},{"$f":"VLOOKUP(N1462,Tabel10[],3,0)","v":{"$error":"#N/A"}},null,null,null,null,null,null,null,"EUR",null,null,null,{"$error":"#DIV/0!"},0,0,null,"","","","","","","","","","",null,null,null,null,null,null,null,null,null,null,null,null,null,null,6,"None","Parcel","ZWO"]
[null,null,null,null,null,null,null,null,null,null,null,null,null,null,{"$f":"VLOOKUP(N1463,Tabel10[[korte omschrijving]:[MCC3_CODE]],2,0)","v":{"$error":"#N/A"}},{"$f":"VLOOKUP(N1463,Tabel10[],3,0)","v":{"$error":"#N/A"}},null,null,null,null,null,null,null,"EUR",null,null,null,{"$error":"#DIV/0!"},0,0,null,"","","","","","","","","","",null,null,null,null,null,null,null,null,null,null,null,null,null,null,6,"None","Parcel","ZWO"]
[null,null,null,null,null,null,null,null,null,null,null,null,null,null,{"$f":"VLOOKUP(N1464,Tabel10[[korte omschrijving]:[MCC3_CODE]],2,0)","v":{"$error":"#N/A"}},{"$f":"VLOOKUP(N1464,Tabel10[],3,0)","v":{"$error":"#N/A"}},null,null,null,null,null,null,null,"EUR",null,null,null,{"$error":"#DIV/0!"},0,0,null,"","","","","","","","","","",null,null,null,null,null,null,null,null,null,null,null,null,null,null,6,"None","Parcel","ZWO"]
[null,null,null,null,null,null,null,null,null,null,null,null,null,null,{"$f":"VLOOKUP(N1465,Tabel10[[korte omschrijving]:[MCC3_CODE]],2,0)","v":{"$error":"#N/A"}},{"$f":"VLOOKUP(N1465,Tabel10[],3,0)","v":{"$error":"#N/A"}},null,null,null,null,null,null,null,"EUR",null,null,null,{"$error":"#DIV/0!"},0,0,null,"","","","","","","","","","",null,null,null,null,null,null,null,null,null,null,null,null,null,null,6,"None","Parcel","ZWO"]
[null,null,null,null,null,null,null,null,null,null,null,null,null,null,{"$f":"VLOOKUP(N1466,Tabel10[[korte omschrijving]:[MCC3_CODE]],2,0)","v":{"$error":"#N/A"}},{"$f":"VLOOKUP(N1466,Tabel10[],3,0)","v":{"$error":"#N/A"}},null,null,null,null,null,null,null,"EUR",null,null,null,{"$error":"#DIV/0!"},0,0,null,"","","","","","","","","","",null,null,null,null,null,null,null,null,null,null,null,null,null,null,6,"None","Parcel","ZWO"]
[null,null,null,null,null,null,null,null,null,null,null,null,null,null,{"$f":"VLOOKUP(N1467,Tabel10[[korte omschrijving]:[MCC3_CODE]],2,0)","v":{"$error":"#N/A"}},{"$f":"VLOOKUP(N1467,Tabel10[],3,0)","v":{"$error":"#N/A"}},null,null,null,null,null,null,null,"EUR",null,null,null,{"$error":"#DIV/0!"},0,0,null,"","","","","","","","","","",null,null,null,null,null,null,null,null,null,null,null,null,null,null,6,"None","Parcel","ZWO"]
[null,null,null,null,null,null,null,null,null,null,null,null,null,null,{"$f":"VLOOKUP(N1468,Tabel10[[korte omschrijving]:[MCC3_CODE]],2,0)","v":{"$error":"#N/A"}},{"$f":"VLOOKUP(N1468,Tabel10[],3,0)","v":{"$error":"#N/A"}},null,null,null,null,null,null,null,"EUR",null,null,null,{"$error":"#DIV/0!"},0,0,null,"","","","","","","","","","",null,null,null,null,null,null,null,null,null,null,null,null,null,null,6,"None","Parcel","ZWO"]
[null,null,null,null,null,null,null,null,null,null,null,null,null,null,{"$f":"VLOOKUP(N1469,Tabel10[[korte omschrijving]:[MCC3_CODE]],2,0)","v":{"$error":"#N/A"}},{"$f":"VLOOKUP(N1469,Tabel10[],3,0)","v":{"$error":"#N/A"}},null,null,null,null,null,null,null,"EUR",null,null,null,{"$error":"#DIV/0!"},0,0,null,"","","","","","","","","","",null,null,null,null,null,null,null,null,null,null,null,null,null,null,6,"None","Parcel","ZWO"]
[null,null,null,null,null,null,null,null,null,null,null,null,null,null,{"$f":"VLOOKUP(N1470,Tabel10[[korte omschrijving]:[MCC3_CODE]],2,0)","v":{"$error":"#N/A"}},{"$f":"VLOOKUP(N1470,Tabel10[],3,0)","v":{"$error":"#N/A"}},null,null,null,null,null,null,null,"EUR",null,null,null,{"$error":"#DIV/0!"},0,0,null,"","","","","","","","","","",null,null,null,null,null,null,null,null,null,null,null,null,null,null,6,"None","Parcel","ZWO"]
[null,null,null,null,null,null,null,null,null,null,null,null,null,null,{"$f":"VLOOKUP(N1471,Tabel10[[korte omschrijving]:[MCC3_CODE]],2,0)","v":{"$error":"#N/A"}},{"$f":"VLOOKUP(N1471,Tabel10[],3,0)","v":{"$error":"#N/A"}},null,null,null,null,null,null,null,"EUR",null,null,null,{"$error":"#DIV/0!"},0,0,null,"","","","","","","","","","",null,null,null,null,null,null,null,null,null,null,null,null,null,null,6,"None","Parcel","ZWO"]
[null,null,null,null,null,null,null,null,null,null,null,null,null,null,{"$f":"VLOOKUP(N1472,Tabel10[[korte omschrijving]:[MCC3_CODE]],2,0)","v":{"$error":"#N/A"}},{"$f":"VLOOKUP(N1472,Tabel10[],3,0)","v":{"$error":"#N/A"}},null,null,null,null,null,null,null,"EUR",null,null,null,{"$error":"#DIV/0!"},0,0,null,"","","","","","","","","","",null,null,null,null,null,null,null,null,null,null,null,null,null,null,6,"None","Parcel","ZWO"]
[null,null,null,null,null,null,null,null,null,null,null,null,null,null,{"$f":"VLOOKUP(N1473,Tabel10[[korte omschrijving]:[MCC3_CODE]],2,0)","v":{"$error":"#N/A"}},{"$f":"VLOOKUP(N1473,Tabel10[],3,0)","v":{"$error":"#N/A"}},null,null,null,null,null,null,null,"EUR",null,null,null,{"$error":"#DIV/0!"},0,0,null,"","","","","","","","","","",null,null,null,null,null,null,null,null,null,null,null,null,null,null,6,"None","Parcel","ZWO"]
[null,null,null,null,null,null,null,null,null,null,null,null,null,null,{"$f":"VLOOKUP(N1474,Tabel10[[korte omschrijving]:[MCC3_CODE]],2,0)","v":{"$error":"#N/A"}},{"$f":"VLOOKUP(N1474,Tabel10[],3,0)","v":{"$error":"#N/A"}},null,null,null,null,null,null,null,"EUR",null,null,null,{"$error":"#DIV/0!"},0,0,null,"","","","","","","","","","",null,null,null,null,null,null,null,null,null,null,null,null,null,null,6,"None","Parcel","ZWO"]
[null,null,null,null,null,null,null,null,null,null,null,null,null,null,{"$f":"VLOOKUP(N1475,Tabel10[[korte omschrijving]:[MCC3_CODE]],2,0)","v":{"$error":"#N/A"}},{"$f":"VLOOKUP(N1475,Tabel10[],3,0)","v":{"$error":"#N/A"}},null,null,null,null,null,null,null,"EUR",null,null,null,{"$error":"#DIV/0!"},0,0,null,"","","","","","","","","","",null,null,null,null,null,null,null,null,null,null,null,null,null,null,6,"None","Parcel","ZWO"]
[null,null,null,null,null,null,null,null,null,null,null,null,null,null,{"$f":"VLOOKUP(N1476,Tabel10[[korte omschrijving]:[MCC3_CODE]],2,0)","v":{"$error":"#N/A"}},{"$f":"VLOOKUP(N1476,Tabel10[],3,0)","v":{"$error":"#N/A"}},null,null,null,null,null,null,null,"EUR",null,null,null,{"$error":"#DIV/0!"},0,0,null,"","","","","","","","","","",null,null,null,null,null,null,null,null,null,null,null,null,null,null,6,"None","Parcel","ZWO"]
[null,null,null,null,null,null,null,null,null,null,null,null,null,null,{"$f":"VLOOKUP(N1477,Tabel10[[korte omschrijving]:[MCC3_CODE]],2,0)","v":{"$error":"#N/A"}},{"$f":"VLOOKUP(N1477,Tabel10[],3,0)","v":{"$error":"#N/A"}},null,null,null,null,null,null,null,"EUR",null,null,null,{"$error":"#DIV/0!"},0,0,null,"","","","","","","","","","",null,null,null,null,null,null,null,null,null,null,null,null,null,null,6,"None","Parcel","ZWO"]
[null,null,null,null,null,null,null,null,null,null,null,null,null,null,{"$f":"VLOOKUP(N1478,Tabel10[[korte omschrijving]:[MCC3_CODE]],2,0)","v":{"$error":"#N/A"}},{"$f":"VLOOKUP(N1478,Tabel10[],3,0)","v":{"$error":"#N/A"}},null,null,null,null,null,null,null,"EUR",null,null,null,{"$error":"#DIV/0!"},0,0,null,"","","","","","","","","","",null,null,null,null,null,null,null,null,null,null,null,null,null,null,6,"None","Parcel","ZWO"]
[null,null,null,null,null,null,null,null,null,null,null,null,null,null,{"$f":"VLOOKUP(N1479,Tabel10[[korte omschrijving]:[MCC3_CODE]],2,0)","v":{"$error":"#N/A"}},{"$f":"VLOOKUP(N1479,Tabel10[],3,0)","v":{"$error":"#N/A"}},null,null,null,null,null,null,null,"EUR",null,null,null,{"$f":"AA1479/Y1479","v":{"$error":"#DIV/0!"}},{"$f":"T1479*Y1479","v":0},{"$f":"T1479*AA1479","v":0},null,{"$f":"IF(AE1479 <> \"\",\n    IF(ISNUMBER(VALUE(LEFT(AE1479, FIND(\"%\", AE1479)-1))),\n        VALUE(LEFT(AE1479, FIND(\"%\", AE1479)-1)),\n        \"Invalid format\"),\n    \"\")","v":""},{"$f":"IF(AE1479 <> \"\",\n    IF(ISNUMBER(VALUE(LEFT(AE1479, FIND(\"%\", AE1479)-1))) * ISNUMBER(FIND(\"%\", AE1479 & \"wol\")) > 0,\n        TRIM(MID(AE1479, FIND(\"%\", AE1479)+1, FIND(\"/\", AE1479 & \"/\")-FIND(\"%\", AE1479)-1)),\n        \"Invalid format\"),\n    \"\")","v":""},{"$f":"IF(AE1479 <> \"\",\n    IF(ISNUMBER(VALUE(MID(AE1479, FIND(\"/\", AE1479) + 1, FIND(\"%\", AE1479, FIND(\"/\", AE1479)) - FIND(\"/\", AE1479) - 1))),\n        VALUE(MID(AE1479, FIND(\"/\", AE1479) + 1, FIND(\"%\", AE1479, FIND(\"/\", AE1479)) - FIND(\"/\", AE1479) - 1)),\n        \"\"),\n    \"\")","v":""},{"$f":"IF(AE1479 <> \"\",\n    IFERROR(TRIM(MID(AE1479, FIND(\"%\", AE1479, FIND(\"/\", AE1479)+1)+2,\n        IFERROR(FIND(\"/\", AE1479 & \"/\", FIND(\"/\", AE1479)+1)-FIND(\"%\", AE1479, FIND(\"/\", AE1479)+1)-2, LEN(AE1479)-FIND(\"%\", AE1479, FIND(\"/\", AE1479)+1)-1))),\n        \"\"),\n    \"\")","v":""},{"$f":"IF(AE1479 <> \"\",\n    IF(ISNUMBER(VALUE(MID(AE1479, FIND(\"/\", AE1479, FIND(\"/\", AE1479)+1) + 1, FIND(\"%\", AE1479, FIND(\"/\", AE1479, FIND(\"/\", AE1479)+1)) - FIND(\"/\", AE1479, FIND(\"/\", AE1479)+1) - 1))),\n        VALUE(MID(AE1479, FIND(\"/\", AE1479, FIND(\"/\", AE1479)+1) + 1, FIND(\"%\", AE1479, FIND(\"/\", AE1479, FIND(\"/\", AE1479)+1)) - FIND(\"/\", AE1479, FIND(\"/\", AE1479)+1) - 1)),\n        \"\"),\n    \"\")","v":""},{"$f":"IF(AE1479 <> \"\",\n    IFERROR(\n        TRIM(MID(AE1479,\n            FIND(\"%\", AE1479, FIND(\"%\", AE1479, FIND(\"%\", AE1479)+1)+1)+1,\n            FIND(\"/\", AE1479 & \"/\", FIND(\"%\", AE1479, FIND(\"%\", AE1479, FIND(\"%\", AE1479)+1)+1))-FIND(\"%\", AE1479, FIND(\"%\", AE1479, FIND(\"%\", AE1479)+1)+1)-1)\n        ),\n        \"\"\n    ),\n    \"\"\n)","v":""},{"$f":"IF(AE1479 <> \"\",\n    IF(ISNUMBER(VALUE(MID(AE1479, FIND(\"/\", AE1479, FIND(\"/\", AE1479, FIND(\"/\", AE1479)+1)+1) + 1, FIND(\"%\", AE1479, FIND(\"/\", AE1479, FIND(\"/\", AE1479, FIND(\"/\", AE1479)+1)+1)) - FIND(\"/\", AE1479, FIND(\"/\", AE1479, FIND(\"/\", AE1479)+1)+1) - 1))),\n        VALUE(MID(AE1479, FIND(\"/\", AE1479, FIND(\"/\", AE1479, FIND(\"/\", AE1479)+1)+1) + 1, FIND(\"%\", AE1479, FIND(\"/\", AE1479, FIND(\"/\", AE1479, FIND(\"/\", AE1479)+1)+1)) - FIND(\"/\", AE1479, FIND(\"/\", AE1479, FIND(\"/\", AE1479)+1)+1) - 1)),\n        \"\"),\n    \"\")","v":""},{"$f":"IF(AE1479 <> \"\",\n    IFERROR(TRIM(MID(AE1479, FIND(\"%\", AE1479, FIND(\"/\", AE1479, FIND(\"/\", AE1479, FIND(\"/\", AE1479)+1)+1)+1)+2,\n        IFERROR(FIND(\"/\", AE1479, FIND(\"/\", AE1479, FIND(\"/\", AE1479, FIND(\"/\", AE1479)+1)+1)+1)-FIND(\"%\", AE1479, FIND(\"/\", AE1479, FIND(\"/\", AE1479, FIND(\"/\", AE1479)+1)+1)+1)-2, LEN(AE1479)-FIND(\"%\", AE1479, FIND(\"/\", AE1479, FIND(\"/\", AE1479, FIND(\"/\", AE1479)+1)+1)+1)-1))),\n        \"\"),\n    \"\")","v":""},{"$f":"IF(AE1479 <> \"\",\n    IF(ISNUMBER(VALUE(MID(AE1479, FIND(\"/\", AE1479, FIND(\"/\", AE1479, FIND(\"/\", AE1479, FIND(\"/\", AE1479)+1)+1)+1) + 1, FIND(\"%\", AE1479, FIND(\"/\", AE1479, FIND(\"/\", AE1479, FIND(\"/\", AE1479, FIND(\"/\", AE1479)+1)+1)+1)) - FIND(\"/\", AE1479, FIND(\"/\", AE1479, FIND(\"/\", AE1479, FIND(\"/\", AE1479)+1)+1)+1) - 1))),\n        VALUE(MID(AE1479, FIND(\"/\", AE1479, FIND(\"/\", AE1479, FIND(\"/\", AE1479, FIND(\"/\", AE1479)+1)+1)+1) + 1, FIND(\"%\", AE1479, FIND(\"/\", AE1479, FIND(\"/\", AE1479, FIND(\"/\", AE1479, FIND(\"/\", AE1479)+1)+1)+1)) - FIND(\"/\", AE1479, FIND(\"/\", AE1479, FIND(\"/\", AE1479, FIND(\"/\", AE1479)+1)+1)+1) - 1)),\n        \"\"),\n    \"\")","v":""},{"$f":"IF(AE1479 = \"\", \"\",\n    IFERROR(TRIM(\n        MID(\n            AE1479,\n            FIND(\"%\", AE1479, FIND(\"/\", AE1479, FIND(\"/\", AE1479, FIND(\"/\", AE1479, FIND(\"/\", AE1479)+1)+1)+1)+1) + 1,\n            FIND(\"/\", AE1479 & \"/\", FIND(\"%\", AE1479, FIND(\"/\", AE1479, FIND(\"/\", AE1479, FIND(\"/\", AE1479, FIND(\"/\", AE1479)+1)+1)+1)+1)) -\n            FIND(\"%\", AE1479, FIND(\"/\", AE1479, FIND(\"/\", AE1479, FIND(\"/\", AE1479, FIND(\"/\", AE1479)+1)+1)+1)+1) - 1\n        )\n    ),\n    \"\")\n)","v":""},null,null,null,null,null,null,null,null,null,null,null,null,null,null,6,"None","Parcel","ZWO"]
[null,null,null,null,null,null,null,null,null,null,null,null,null,null,{"$f":"VLOOKUP(N1480,Tabel10[[korte omschrijving]:[MCC3_CODE]],2,0)","v":{"$error":"#N/A"}},{"$f":"VLOOKUP(N1480,Tabel10[],3,0)","v":{"$error":"#N/A"}},null,null,null,null,null,null,null,"EUR",null,null,null,{"$error":"#DIV/0!"},0,0,null,"","","","","","","","","","",null,null,null,null,null,null,null,null,null,null,null,null,null,null,6,"None","Parcel","ZWO"]
[null,null,null,null,null,null,null,null,null,null,null,null,null,null,{"$f":"VLOOKUP(N1481,Tabel10[[korte omschrijving]:[MCC3_CODE]],2,0)","v":{"$error":"#N/A"}},{"$f":"VLOOKUP(N1481,Tabel10[],3,0)","v":{"$error":"#N/A"}},null,null,null,null,null,null,null,"EUR",null,null,null,{"$error":"#DIV/0!"},0,0,null,"","","","","","","","","","",null,null,null,null,null,null,null,null,null,null,null,null,null,null,6,"None","Parcel","ZWO"]
[null,null,null,null,null,null,null,null,null,null,null,null,null,null,{"$f":"VLOOKUP(N1482,Tabel10[[korte omschrijving]:[MCC3_CODE]],2,0)","v":{"$error":"#N/A"}},{"$f":"VLOOKUP(N1482,Tabel10[],3,0)","v":{"$error":"#N/A"}},null,null,null,null,null,null,null,"EUR",null,null,null,{"$error":"#DIV/0!"},0,0,null,"","","","","","","","","","",null,null,null,null,null,null,null,null,null,null,null,null,null,null,6,"None","Parcel","ZWO"]
[null,null,null,null,null,null,null,null,null,null,null,null,null,null,{"$f":"VLOOKUP(N1483,Tabel10[[korte omschrijving]:[MCC3_CODE]],2,0)","v":{"$error":"#N/A"}},{"$f":"VLOOKUP(N1483,Tabel10[],3,0)","v":{"$error":"#N/A"}},null,null,null,null,null,null,null,"EUR",null,null,null,{"$error":"#DIV/0!"},0,0,null,"","","","","","","","","","",null,null,null,null,null,null,null,null,null,null,null,null,null,null,6,"None","Parcel","ZWO"]
[null,null,null,null,null,null,null,null,null,null,null,null,null,null,{"$f":"VLOOKUP(N1484,Tabel10[[korte omschrijving]:[MCC3_CODE]],2,0)","v":{"$error":"#N/A"}},{"$f":"VLOOKUP(N1484,Tabel10[],3,0)","v":{"$error":"#N/A"}},null,null,null,null,null,null,null,"EUR",null,null,null,{"$error":"#DIV/0!"},0,0,null,"","","","","","","","","","",null,null,null,null,null,null,null,null,null,null,null,null,null,null,6,"None","Parcel","ZWO"]
[null,null,null,null,null,null,null,null,null,null,null,null,null,null,{"$f":"VLOOKUP(N1485,Tabel10[[korte omschrijving]:[MCC3_CODE]],2,0)","v":{"$error":"#N/A"}},{"$f":"VLOOKUP(N1485,Tabel10[],3,0)","v":{"$error":"#N/A"}},null,null,null,null,null,null,null,"EUR",null,null,null,{"$error":"#DIV/0!"},0,0,null,"","","","","","","","","","",null,null,null,null,null,null,null,null,null,null,null,null,null,null,6,"None","Parcel","ZWO"]
[null,null,null,null,null,null,null,null,null,null,null,null,null,null,{"$f":"VLOOKUP(N1486,Tabel10[[korte omschrijving]:[MCC3_CODE]],2,0)","v":{"$error":"#N/A"}},{"$f":"VLOOKUP(N1486,Tabel10[],3,0)","v":{"$error":"#N/A"}},null,null,null,null,null,null,null,"EUR",null,null,null,{"$error":"#DIV/0!"},0,0,null,"","","","","","","","","","",null,null,null,null,null,null,null,null,null,null,null,null,null,null,6,"None","Parcel","ZWO"]
[null,null,null,null,null,null,null,null,null,null,null,null,null,null,{"$f":"VLOOKUP(N1487,Tabel10[[korte omschrijving]:[MCC3_CODE]],2,0)","v":{"$error":"#N/A"}},{"$f":"VLOOKUP(N1487,Tabel10[],3,0)","v":{"$error":"#N/A"}},null,null,null,null,null,null,null,"EUR",null,null,null,{"$error":"#DIV/0!"},0,0,null,"","","","","","","","","","",null,null,null,null,null,null,null,null,null,null,null,null,null,null,6,"None","Parcel","ZWO"]
[null,null,null,null,null,null,null,null,null,null,null,null,null,null,{"$f":"VLOOKUP(N1488,Tabel10[[korte omschrijving]:[MCC3_CODE]],2,0)","v":{"$error":"#N/A"}},{"$f":"VLOOKUP(N1488,Tabel10[],3,0)","v":{"$error":"#N/A"}},null,null,null,null,null,null,null,"EUR",null,null,null,{"$error":"#DIV/0!"},0,0,null,"","","","","","","","","","",null,null,null,null,null,null,null,null,null,null,null,null,null,null,6,"None","Parcel","ZWO"]
[null,null,null,null,null,null,null,null,null,null,null,null,null,null,{"$f":"VLOOKUP(N1489,Tabel10[[korte omschrijving]:[MCC3_CODE]],2,0)","v":{"$error":"#N/A"}},{"$f":"VLOOKUP(N1489,Tabel10[],3,0)","v":{"$error":"#N/A"}},null,null,null,null,null,null,null,"EUR",null,null,null,{"$error":"#DIV/0!"},0,0,null,"","","","","","","","","","",null,null,null,null,null,null,null,null,null,null,null,null,null,null,6,"None","Parcel","ZWO"]
[null,null,null,null,null,null,null,null,null,null,null,null,null,null,{"$f":"VLOOKUP(N1490,Tabel10[[korte omschrijving]:[MCC3_CODE]],2,0)","v":{"$error":"#N/A"}},{"$f":"VLOOKUP(N1490,Tabel10[],3,0)","v":{"$error":"#N/A"}},null,null,null,null,null,null,null,"EUR",null,null,null,{"$error":"#DIV/0!"},0,0,null,"","","","","","","","","","",null,null,null,null,null,null,null,null,null,null,null,null,null,null,6,"None","Parcel","ZWO"]
[null,null,null,null,null,null,null,null,null,null,null,null,null,null,{"$f":"VLOOKUP(N1491,Tabel10[[korte omschrijving]:[MCC3_CODE]],2,0)","v":{"$error":"#N/A"}},{"$f":"VLOOKUP(N1491,Tabel10[],3,0)","v":{"$error":"#N/A"}},null,null,null,null,null,null,null,"EUR",null,null,null,{"$error":"#DIV/0!"},0,0,null,"","","","","","","","","","",null,null,null,null,null,null,null,null,null,null,null,null,null,null,6,"None","Parcel","ZWO"]
[null,null,null,null,null,null,null,null,null,null,null,null,null,null,{"$f":"VLOOKUP(N1492,Tabel10[[korte omschrijving]:[MCC3_CODE]],2,0)","v":{"$error":"#N/A"}},{"$f":"VLOOKUP(N1492,Tabel10[],3,0)","v":{"$error":"#N/A"}},null,null,null,null,null,null,null,"EUR",null,null,null,{"$error":"#DIV/0!"},0,0,null,"","","","","","","","","","",null,null,null,null,null,null,null,null,null,null,null,null,null,null,6,"None","Parcel","ZWO"]
[null,null,null,null,null,null,null,null,null,null,null,null,null,null,{"$f":"VLOOKUP(N1493,Tabel10[[korte omschrijving]:[MCC3_CODE]],2,0)","v":{"$error":"#N/A"}},{"$f":"VLOOKUP(N1493,Tabel10[],3,0)","v":{"$error":"#N/A"}},null,null,null,null,null,null,null,"EUR",null,null,null,{"$error":"#DIV/0!"},0,0,null,"","","","","","","","","","",null,null,null,null,null,null,null,null,null,null,null,null,null,null,6,"None","Parcel","ZWO"]
[null,null,null,null,null,null,null,null,null,null,null,null,null,null,{"$f":"VLOOKUP(N1494,Tabel10[[korte omschrijving]:[MCC3_CODE]],2,0)","v":{"$error":"#N/A"}},{"$f":"VLOOKUP(N1494,Tabel10[],3,0)","v":{"$error":"#N/A"}},null,null,null,null,null,null,null,"EUR",null,null,null,{"$error":"#DIV/0!"},0,0,null,"","","","","","","","","","",null,null,null,null,null,null,null,null,null,null,null,null,null,null,6,"None","Parcel","ZWO"]
[null,null,null,null,null,null,null,null,null,null,null,null,null,null,{"$f":"VLOOKUP(N1495,Tabel10[[korte omschrijving]:[MCC3_CODE]],2,0)","v":{"$error":"#N/A"}},{"$f":"VLOOKUP(N1495,Tabel10[],3,0)","v":{"$error":"#N/A"}},null,null,null,null,null,null,null,"EUR",null,null,null,{"$error":"#DIV/0!"},0,0,null,"","","","","","","","","","",null,null,null,null,null,null,null,null,null,null,null,null,null,null,6,"None","Parcel","ZWO"]
[null,null,null,null,null,null,null,null,null,null,null,null,null,null,{"$f":"VLOOKUP(N1496,Tabel10[[korte omschrijving]:[MCC3_CODE]],2,0)","v":{"$error":"#N/A"}},{"$f":"VLOOKUP(N1496,Tabel10[],3,0)","v":{"$error":"#N/A"}},null,null,null,null,null,null,null,"EUR",null,null,null,{"$error":"#DIV/0!"},0,0,null,"","","","","","","","","","",null,null,null,null,null,null,null,null,null,null,null,null,null,null,6,"None","Parcel","ZWO"]
[null,null,null,null,null,null,null,null,null,null,null,null,null,null,{"$f":"VLOOKUP(N1497,Tabel10[[korte omschrijving]:[MCC3_CODE]],2,0)","v":{"$error":"#N/A"}},{"$f":"VLOOKUP(N1497,Tabel10[],3,0)","v":{"$error":"#N/A"}},null,null,null,null,null,null,null,"EUR",null,null,null,{"$error":"#DIV/0!"},0,0,null,"","","","","","","","","","",null,null,null,null,null,null,null,null,null,null,null,null,null,null,6,"None","Parcel","ZWO"]
[null,null,null,null,null,null,null,null,null,null,null,null,null,null,{"$f":"VLOOKUP(N1498,Tabel10[[korte omschrijving]:[MCC3_CODE]],2,0)","v":{"$error":"#N/A"}},{"$f":"VLOOKUP(N1498,Tabel10[],3,0)","v":{"$error":"#N/A"}},null,null,null,null,null,null,null,"EUR",null,null,null,{"$error":"#DIV/0!"},0,0,null,"","","","","","","","","","",null,null,null,null,null,null,null,null,null,null,null,null,null,null,6,"None","Parcel","ZWO"]
[null,null,null,null,null,null,null,null,null,null,null,null,null,null,{"$f":"VLOOKUP(N1499,Tabel10[[korte omschrijving]:[MCC3_CODE]],2,0)","v":{"$error":"#N/A"}},{"$f":"VLOOKUP(N1499,Tabel10[],3,0)","v":{"$error":"#N/A"}},null,null,null,null,null,null,null,"EUR",null,null,null,{"$error":"#DIV/0!"},0,0,null,"","","","","","","","","","",null,null,null,null,null,null,null,null,null,null,null,null,null,null,6,"None","Parcel","ZWO"]
[null,null,null,null,null,null,null,null,null,null,null,null,null,null,{"$f":"VLOOKUP(N1500,Tabel10[[korte omschrijving]:[MCC3_CODE]],2,0)","v":{"$error":"#N/A"}},{"$f":"VLOOKUP(N1500,Tabel10[],3,0)","v":{"$error":"#N/A"}},null,null,null,null,null,null,null,"EUR",null,null,null,{"$error":"#DIV/0!"},0,0,null,"","","","","","","","","","",null,null,null,null,null,null,null,null,null,null,null,null,null,null,6,"None","Parcel","ZWO"]
[null,null,null,null,null,null,null,null,null,null,null,null,null,null,{"$f":"VLOOKUP(N1501,Tabel10[[korte omschrijving]:[MCC3_CODE]],2,0)","v":{"$error":"#N/A"}},{"$f":"VLOOKUP(N1501,Tabel10[],3,0)","v":{"$error":"#N/A"}},null,null,null,null,null,null,null,"EUR",null,null,null,{"$error":"#DIV/0!"},0,0,null,"","","","","","","","","","",null,null,null,null,null,null,null,null,null,null,null,null,null,null,6,"None","Parcel","ZWO"]
[null,null,null,null,null,null,null,null,null,null,null,null,null,null,{"$f":"VLOOKUP(N1502,Tabel10[[korte omschrijving]:[MCC3_CODE]],2,0)","v":{"$error":"#N/A"}},{"$f":"VLOOKUP(N1502,Tabel10[],3,0)","v":{"$error":"#N/A"}},null,null,null,null,null,null,null,"EUR",null,null,null,{"$error":"#DIV/0!"},0,0,null,"","","","","","","","","","",null,null,null,null,null,null,null,null,null,null,null,null,null,null,6,"None","Parcel","ZWO"]

{"sheet":"2. Content (NL)","index":2,"n_rows":1500,"n_cols":26,"rows_kept":1500,"cut":false,"hidden":false,"merged":[[0,22,0,25],[0,5,0,16],[0,0,0,4],[0,17,0,21]]}
["PRODUCTINFORMATIE",null,null,null,null,"ALGEMENE CONTENT",null,null,null,null,null,null,null,null,null,null,null,"BH'S/TOPS",null,null,null,null,"SLIPS/BOXERS"]
["Wehkampartikelnummer","Leveranciers artikelnummer","AX Inkooptekst","Inkoopkleur","EAN","Filterkleur","Kleur","Filtermateriaal","Materiaal ","Print","Set (Lingerie)","Multipack","Aantal stuks in verpakking","Giftbox","Naadloos","Corrigerend","Mate van correctie","Multi: Soort bh","Beugel","Voorgevormd","Impactlevel","Kraagvorm","Multi: Soort onderbroek","Materiaal achterkant","Materiaal voorkant","Multi: Absorptieniveau"]
[{"$f":"IF('1. Order'!B6=\"\",\"\",'1. Order'!B6)","v":""},{"$f":"IF('1. Order'!I6=\"\",\"\",'1. Order'!I6)","v":""},{"$f":"IF('1. Order'!J6=\"\",\"\",'1. Order'!J6)","v":""},{"$f":"IF('1. Order'!K6=\"\",\"\",'1. Order'!K6)","v":""},{"$f":"IF('1. Order'!M6=\"\",\"\",'1. Order'!M6)","v":""},null,null,{"$f":"IF('1. Order'!AR6=\"\",\"\",'1. Order'!AR6)","v":""},{"$f":"IF('1. Order'!AE6=\"\",\"\",'1. Order'!AE6)","v":""}]
[{"$f":"IF('1. Order'!B7=\"\",\"\",'1. Order'!B7)","v":""},{"$f":"IF('1. Order'!I7=\"\",\"\",'1. Order'!I7)","v":""},{"$f":"IF('1. Order'!J7=\"\",\"\",'1. Order'!J7)","v":""},{"$f":"IF('1. Order'!K7=\"\",\"\",'1. Order'!K7)","v":""},{"$f":"IF('1. Order'!M7=\"\",\"\",'1. Order'!M7)","v":""},null,null,{"$f":"IF('1. Order'!AR7=\"\",\"\",'1. Order'!AR7)","v":""},{"$f":"IF('1. Order'!AE7=\"\",\"\",'1. Order'!AE7)","v":""}]
[{"$f":"IF('1. Order'!B8=\"\",\"\",'1. Order'!B8)","v":""},{"$f":"IF('1. Order'!I8=\"\",\"\",'1. Order'!I8)","v":""},{"$f":"IF('1. Order'!J8=\"\",\"\",'1. Order'!J8)","v":""},{"$f":"IF('1. Order'!K8=\"\",\"\",'1. Order'!K8)","v":""},{"$f":"IF('1. Order'!M8=\"\",\"\",'1. Order'!M8)","v":""},null,null,{"$f":"IF('1. Order'!AR8=\"\",\"\",'1. Order'!AR8)","v":""},{"$f":"IF('1. Order'!AE8=\"\",\"\",'1. Order'!AE8)","v":""}]
[{"$f":"IF('1. Order'!B9=\"\",\"\",'1. Order'!B9)","v":""},{"$f":"IF('1. Order'!I9=\"\",\"\",'1. Order'!I9)","v":""},{"$f":"IF('1. Order'!J9=\"\",\"\",'1. Order'!J9)","v":""},{"$f":"IF('1. Order'!K9=\"\",\"\",'1. Order'!K9)","v":""},{"$f":"IF('1. Order'!M9=\"\",\"\",'1. Order'!M9)","v":""},null,null,{"$f":"IF('1. Order'!AR9=\"\",\"\",'1. Order'!AR9)","v":""},{"$f":"IF('1. Order'!AE9=\"\",\"\",'1. Order'!AE9)","v":""}]
[{"$f":"IF('1. Order'!B10=\"\",\"\",'1. Order'!B10)","v":""},{"$f":"IF('1. Order'!I10=\"\",\"\",'1. Order'!I10)","v":""},{"$f":"IF('1. Order'!J10=\"\",\"\",'1. Order'!J10)","v":""},{"$f":"IF('1. Order'!K10=\"\",\"\",'1. Order'!K10)","v":""},{"$f":"IF('1. Order'!M10=\"\",\"\",'1. Order'!M10)","v":""},null,null,{"$f":"IF('1. Order'!AR10=\"\",\"\",'1. Order'!AR10)","v":""},{"$f":"IF('1. Order'!AE10=\"\",\"\",'1. Order'!AE10)","v":""}]
[{"$f":"IF('1. Order'!B11=\"\",\"\",'1. Order'!B11)","v":""},{"$f":"IF('1. Order'!I11=\"\",\"\",'1. Order'!I11)","v":""},{"$f":"IF('1. Order'!J11=\"\",\"\",'1. Order'!J11)","v":""},{"$f":"IF('1. Order'!K11=\"\",\"\",'1. Order'!K11)","v":""},{"$f":"IF('1. Order'!M11=\"\",\"\",'1. Order'!M11)","v":""},null,null,{"$f":"IF('1. Order'!AR11=\"\",\"\",'1. Order'!AR11)","v":""},{"$f":"IF('1. Order'!AE11=\"\",\"\",'1. Order'!AE11)","v":""}]
[{"$f":"IF('1. Order'!B12=\"\",\"\",'1. Order'!B12)","v":""},{"$f":"IF('1. Order'!I12=\"\",\"\",'1. Order'!I12)","v":""},{"$f":"IF('1. Order'!J12=\"\",\"\",'1. Order'!J12)","v":""},{"$f":"IF('1. Order'!K12=\"\",\"\",'1. Order'!K12)","v":""},{"$f":"IF('1. Order'!M12=\"\",\"\",'1. Order'!M12)","v":""},null,null,{"$f":"IF('1. Order'!AR12=\"\",\"\",'1. Order'!AR12)","v":""},{"$f":"IF('1. Order'!AE12=\"\",\"\",'1. Order'!AE12)","v":""}]
[{"$f":"IF('1. Order'!B13=\"\",\"\",'1. Order'!B13)","v":""},{"$f":"IF('1. Order'!I13=\"\",\"\",'1. Order'!I13)","v":""},{"$f":"IF('1. Order'!J13=\"\",\"\",'1. Order'!J13)","v":""},{"$f":"IF('1. Order'!K13=\"\",\"\",'1. Order'!K13)","v":""},{"$f":"IF('1. Order'!M13=\"\",\"\",'1. Order'!M13)","v":""},null,null,{"$f":"IF('1. Order'!AR13=\"\",\"\",'1. Order'!AR13)","v":""},{"$f":"IF('1. Order'!AE13=\"\",\"\",'1. Order'!AE13)","v":""}]
[{"$f":"IF('1. Order'!B14=\"\",\"\",'1. Order'!B14)","v":""},{"$f":"IF('1. Order'!I14=\"\",\"\",'1. Order'!I14)","v":""},{"$f":"IF('1. Order'!J14=\"\",\"\",'1. Order'!J14)","v":""},{"$f":"IF('1. Order'!K14=\"\",\"\",'1. Order'!K14)","v":""},{"$f":"IF('1. Order'!M14=\"\",\"\",'1. Order'!M14)","v":""},null,null,{"$f":"IF('1. Order'!AR14=\"\",\"\",'1. Order'!AR14)","v":""},{"$f":"IF('1. Order'!AE14=\"\",\"\",'1. Order'!AE14)","v":""}]
[{"$f":"IF('1. Order'!B15=\"\",\"\",'1. Order'!B15)","v":""},{"$f":"IF('1. Order'!I15=\"\",\"\",'1. Order'!I15)","v":""},{"$f":"IF('1. Order'!J15=\"\",\"\",'1. Order'!J15)","v":""},{"$f":"IF('1. Order'!K15=\"\",\"\",'1. Order'!K15)","v":""},{"$f":"IF('1. Order'!M15=\"\",\"\",'1. Order'!M15)","v":""},null,null,{"$f":"IF('1. Order'!AR15=\"\",\"\",'1. Order'!AR15)","v":""},{"$f":"IF('1. Order'!AE15=\"\",\"\",'1. Order'!AE15)","v":""}]
[{"$f":"IF('1. Order'!B16=\"\",\"\",'1. Order'!B16)","v":""},{"$f":"IF('1. Order'!I16=\"\",\"\",'1. Order'!I16)","v":""},{"$f":"IF('1. Order'!J16=\"\",\"\",'1. Order'!J16)","v":""},{"$f":"IF('1. Order'!K16=\"\",\"\",'1. Order'!K16)","v":""},{"$f":"IF('1. Order'!M16=\"\",\"\",'1. Order'!M16)","v":""},null,null,{"$f":"IF('1. Order'!AR16=\"\",\"\",'1. Order'!AR16)","v":""},{"$f":"IF('1. Order'!AE16=\"\",\"\",'1. Order'!AE16)","v":""}]
[{"$f":"IF('1. Order'!B17=\"\",\"\",'1. Order'!B17)","v":""},{"$f":"IF('1. Order'!I17=\"\",\"\",'1. Order'!I17)","v":""},{"$f":"IF('1. Order'!J17=\"\",\"\",'1. Order'!J17)","v":""},{"$f":"IF('1. Order'!K17=\"\",\"\",'1. Order'!K17)","v":""},{"$f":"IF('1. Order'!M17=\"\",\"\",'1. Order'!M17)","v":""},null,null,{"$f":"IF('1. Order'!AR17=\"\",\"\",'1. Order'!AR17)","v":""},{"$f":"IF('1. Order'!AE17=\"\",\"\",'1. Order'!AE17)","v":""}]
[{"$f":"IF('1. Order'!B18=\"\",\"\",'1. Order'!B18)","v":""},{"$f":"IF('1. Order'!I18=\"\",\"\",'1. Order'!I18)","v":""},{"$f":"IF('1. Order'!J18=\"\",\"\",'1. Order'!J18)","v":""},{"$f":"IF('1. Order'!K18=\"\",\"\",'1. Order'!K18)","v":""},{"$f":"IF('1. Order'!M18=\"\",\"\",'1. Order'!M18)","v":""},null,null,{"$f":"IF('1. Order'!AR18=\"\",\"\",'1. Order'!AR18)","v":""},{"$f":"IF('1. Order'!AE18=\"\",\"\",'1. Order'!AE18)","v":""}]
[{"$f":"IF('1. Order'!B19=\"\",\"\",'1. Order'!B19)","v":""},{"$f":"IF('1. Order'!I19=\"\",\"\",'1. Order'!I19)","v":""},{"$f":"IF('1. Order'!J19=\"\",\"\",'1. Order'!J19)","v":""},{"$f":"IF('1. Order'!K19=\"\",\"\",'1. Order'!K19)","v":""},{"$f":"IF('1. Order'!M19=\"\",\"\",'1. Order'!M19)","v":""},null,null,{"$f":"IF('1. Order'!AR19=\"\",\"\",'1. Order'!AR19)","v":""},{"$f":"IF('1. Order'!AE19=\"\",\"\",'1. Order'!AE19)","v":""}]
[{"$f":"IF('1. Order'!B20=\"\",\"\",'1. Order'!B20)","v":""},{"$f":"IF('1. Order'!I20=\"\",\"\",'1. Order'!I20)","v":""},{"$f":"IF('1. Order'!J20=\"\",\"\",'1. Order'!J20)","v":""},{"$f":"IF('1. Order'!K20=\"\",\"\",'1. Order'!K20)","v":""},{"$f":"IF('1. Order'!M20=\"\",\"\",'1. Order'!M20)","v":""},null,null,{"$f":"IF('1. Order'!AR20=\"\",\"\",'1. Order'!AR20)","v":""},{"$f":"IF('1. Order'!AE20=\"\",\"\",'1. Order'!AE20)","v":""}]
[{"$f":"IF('1. Order'!B21=\"\",\"\",'1. Order'!B21)","v":""},{"$f":"IF('1. Order'!I21=\"\",\"\",'1. Order'!I21)","v":""},{"$f":"IF('1. Order'!J21=\"\",\"\",'1. Order'!J21)","v":""},{"$f":"IF('1. Order'!K21=\"\",\"\",'1. Order'!K21)","v":""},{"$f":"IF('1. Order'!M21=\"\",\"\",'1. Order'!M21)","v":""},null,null,{"$f":"IF('1. Order'!AR21=\"\",\"\",'1. Order'!AR21)","v":""},{"$f":"IF('1. Order'!AE21=\"\",\"\",'1. Order'!AE21)","v":""}]
[{"$f":"IF('1. Order'!B22=\"\",\"\",'1. Order'!B22)","v":""},{"$f":"IF('1. Order'!I22=\"\",\"\",'1. Order'!I22)","v":""},{"$f":"IF('1. Order'!J22=\"\",\"\",'1. Order'!J22)","v":""},{"$f":"IF('1. Order'!K22=\"\",\"\",'1. Order'!K22)","v":""},{"$f":"IF('1. Order'!M22=\"\",\"\",'1. Order'!M22)","v":""},null,null,{"$f":"IF('1. Order'!AR22=\"\",\"\",'1. Order'!AR22)","v":""},{"$f":"IF('1. Order'!AE22=\"\",\"\",'1. Order'!AE22)","v":""}]
[{"$f":"IF('1. Order'!B23=\"\",\"\",'1. Order'!B23)","v":""},{"$f":"IF('1. Order'!I23=\"\",\"\",'1. Order'!I23)","v":""},{"$f":"IF('1. Order'!J23=\"\",\"\",'1. Order'!J23)","v":""},{"$f":"IF('1. Order'!K23=\"\",\"\",'1. Order'!K23)","v":""},{"$f":"IF('1. Order'!M23=\"\",\"\",'1. Order'!M23)","v":""},null,null,{"$f":"IF('1. Order'!AR23=\"\",\"\",'1. Order'!AR23)","v":""},{"$f":"IF('1. Order'!AE23=\"\",\"\",'1. Order'!AE23)","v":""}]
[{"$f":"IF('1. Order'!B24=\"\",\"\",'1. Order'!B24)","v":""},{"$f":"IF('1. Order'!I24=\"\",\"\",'1. Order'!I24)","v":""},{"$f":"IF('1. Order'!J24=\"\",\"\",'1. Order'!J24)","v":""},{"$f":"IF('1. Order'!K24=\"\",\"\",'1. Order'!K24)","v":""},{"$f":"IF('1. Order'!M24=\"\",\"\",'1. Order'!M24)","v":""},null,null,{"$f":"IF('1. Order'!AR24=\"\",\"\",'1. Order'!AR24)","v":""},{"$f":"IF('1. Order'!AE24=\"\",\"\",'1. Order'!AE24)","v":""}]
[{"$f":"IF('1. Order'!B25=\"\",\"\",'1. Order'!B25)","v":""},{"$f":"IF('1. Order'!I25=\"\",\"\",'1. Order'!I25)","v":""},{"$f":"IF('1. Order'!J25=\"\",\"\",'1. Order'!J25)","v":""},{"$f":"IF('1. Order'!K25=\"\",\"\",'1. Order'!K25)","v":""},{"$f":"IF('1. Order'!M25=\"\",\"\",'1. Order'!M25)","v":""},null,null,{"$f":"IF('1. Order'!AR25=\"\",\"\",'1. Order'!AR25)","v":""},{"$f":"IF('1. Order'!AE25=\"\",\"\",'1. Order'!AE25)","v":""}]
[{"$f":"IF('1. Order'!B26=\"\",\"\",'1. Order'!B26)","v":""},{"$f":"IF('1. Order'!I26=\"\",\"\",'1. Order'!I26)","v":""},{"$f":"IF('1. Order'!J26=\"\",\"\",'1. Order'!J26)","v":""},{"$f":"IF('1. Order'!K26=\"\",\"\",'1. Order'!K26)","v":""},{"$f":"IF('1. Order'!M26=\"\",\"\",'1. Order'!M26)","v":""},null,null,{"$f":"IF('1. Order'!AR26=\"\",\"\",'1. Order'!AR26)","v":""},{"$f":"IF('1. Order'!AE26=\"\",\"\",'1. Order'!AE26)","v":""}]
[{"$f":"IF('1. Order'!B27=\"\",\"\",'1. Order'!B27)","v":""},{"$f":"IF('1. Order'!I27=\"\",\"\",'1. Order'!I27)","v":""},{"$f":"IF('1. Order'!J27=\"\",\"\",'1. Order'!J27)","v":""},{"$f":"IF('1. Order'!K27=\"\",\"\",'1. Order'!K27)","v":""},{"$f":"IF('1. Order'!M27=\"\",\"\",'1. Order'!M27)","v":""},null,null,{"$f":"IF('1. Order'!AR27=\"\",\"\",'1. Order'!AR27)","v":""},{"$f":"IF('1. Order'!AE27=\"\",\"\",'1. Order'!AE27)","v":""}]
[{"$f":"IF('1. Order'!B28=\"\",\"\",'1. Order'!B28)","v":""},{"$f":"IF('1. Order'!I28=\"\",\"\",'1. Order'!I28)","v":""},{"$f":"IF('1. Order'!J28=\"\",\"\",'1. Order'!J28)","v":""},{"$f":"IF('1. Order'!K28=\"\",\"\",'1. Order'!K28)","v":""},{"$f":"IF('1. Order'!M28=\"\",\"\",'1. Order'!M28)","v":""},null,null,{"$f":"IF('1. Order'!AR28=\"\",\"\",'1. Order'!AR28)","v":""},{"$f":"IF('1. Order'!AE28=\"\",\"\",'1. Order'!AE28)","v":""}]
[{"$f":"IF('1. Order'!B29=\"\",\"\",'1. Order'!B29)","v":""},{"$f":"IF('1. Order'!I29=\"\",\"\",'1. Order'!I29)","v":""},{"$f":"IF('1. Order'!J29=\"\",\"\",'1. Order'!J29)","v":""},{"$f":"IF('1. Order'!K29=\"\",\"\",'1. Order'!K29)","v":""},{"$f":"IF('1. Order'!M29=\"\",\"\",'1. Order'!M29)","v":""},null,null,{"$f":"IF('1. Order'!AR29=\"\",\"\",'1. Order'!AR29)","v":""},{"$f":"IF('1. Order'!AE29=\"\",\"\",'1. Order'!AE29)","v":""}]
[{"$f":"IF('1. Order'!B30=\"\",\"\",'1. Order'!B30)","v":""},{"$f":"IF('1. Order'!I30=\"\",\"\",'1. Order'!I30)","v":""},{"$f":"IF('1. Order'!J30=\"\",\"\",'1. Order'!J30)","v":""},{"$f":"IF('1. Order'!K30=\"\",\"\",'1. Order'!K30)","v":""},{"$f":"IF('1. Order'!M30=\"\",\"\",'1. Order'!M30)","v":""},null,null,{"$f":"IF('1. Order'!AR30=\"\",\"\",'1. Order'!AR30)","v":""},{"$f":"IF('1. Order'!AE30=\"\",\"\",'1. Order'!AE30)","v":""}]
[{"$f":"IF('1. Order'!B31=\"\",\"\",'1. Order'!B31)","v":""},{"$f":"IF('1. Order'!I31=\"\",\"\",'1. Order'!I31)","v":""},{"$f":"IF('1. Order'!J31=\"\",\"\",'1. Order'!J31)","v":""},{"$f":"IF('1. Order'!K31=\"\",\"\",'1. Order'!K31)","v":""},{"$f":"IF('1. Order'!M31=\"\",\"\",'1. Order'!M31)","v":""},null,null,{"$f":"IF('1. Order'!AR31=\"\",\"\",'1. Order'!AR31)","v":""},{"$f":"IF('1. Order'!AE31=\"\",\"\",'1. Order'!AE31)","v":""}]
[{"$f":"IF('1. Order'!B32=\"\",\"\",'1. Order'!B32)","v":""},{"$f":"IF('1. Order'!I32=\"\",\"\",'1. Order'!I32)","v":""},{"$f":"IF('1. Order'!J32=\"\",\"\",'1. Order'!J32)","v":""},{"$f":"IF('1. Order'!K32=\"\",\"\",'1. Order'!K32)","v":""},{"$f":"IF('1. Order'!M32=\"\",\"\",'1. Order'!M32)","v":""},null,null,{"$f":"IF('1. Order'!AR32=\"\",\"\",'1. Order'!AR32)","v":""},{"$f":"IF('1. Order'!AE32=\"\",\"\",'1. Order'!AE32)","v":""}]
[{"$f":"IF('1. Order'!B33=\"\",\"\",'1. Order'!B33)","v":""},{"$f":"IF('1. Order'!I33=\"\",\"\",'1. Order'!I33)","v":""},{"$f":"IF('1. Order'!J33=\"\",\"\",'1. Order'!J33)","v":""},{"$f":"IF('1. Order'!K33=\"\",\"\",'1. Order'!K33)","v":""},{"$f":"IF('1. Order'!M33=\"\",\"\",'1. Order'!M33)","v":""},null,null,{"$f":"IF('1. Order'!AR33=\"\",\"\",'1. Order'!AR33)","v":""},{"$f":"IF('1. Order'!AE33=\"\",\"\",'1. Order'!AE33)","v":""}]
[{"$f":"IF('1. Order'!B34=\"\",\"\",'1. Order'!B34)","v":""},{"$f":"IF('1. Order'!I34=\"\",\"\",'1. Order'!I34)","v":""},{"$f":"IF('1. Order'!J34=\"\",\"\",'1. Order'!J34)","v":""},{"$f":"IF('1. Order'!K34=\"\",\"\",'1. Order'!K34)","v":""},{"$f":"IF('1. Order'!M34=\"\",\"\",'1. Order'!M34)","v":""},null,null,{"$f":"IF('1. Order'!AR34=\"\",\"\",'1. Order'!AR34)","v":""},{"$f":"IF('1. Order'!AE34=\"\",\"\",'1. Order'!AE34)","v":""}]
[{"$f":"IF('1. Order'!B35=\"\",\"\",'1. Order'!B35)","v":""},{"$f":"IF('1. Order'!I35=\"\",\"\",'1. Order'!I35)","v":""},{"$f":"IF('1. Order'!J35=\"\",\"\",'1. Order'!J35)","v":""},{"$f":"IF('1. Order'!K35=\"\",\"\",'1. Order'!K35)","v":""},{"$f":"IF('1. Order'!M35=\"\",\"\",'1. Order'!M35)","v":""},null,null,{"$f":"IF('1. Order'!AR35=\"\",\"\",'1. Order'!AR35)","v":""},{"$f":"IF('1. Order'!AE35=\"\",\"\",'1. Order'!AE35)","v":""}]
[{"$f":"IF('1. Order'!B36=\"\",\"\",'1. Order'!B36)","v":""},{"$f":"IF('1. Order'!I36=\"\",\"\",'1. Order'!I36)","v":""},{"$f":"IF('1. Order'!J36=\"\",\"\",'1. Order'!J36)","v":""},{"$f":"IF('1. Order'!K36=\"\",\"\",'1. Order'!K36)","v":""},{"$f":"IF('1. Order'!M36=\"\",\"\",'1. Order'!M36)","v":""},null,null,{"$f":"IF('1. Order'!AR36=\"\",\"\",'1. Order'!AR36)","v":""},{"$f":"IF('1. Order'!AE36=\"\",\"\",'1. Order'!AE36)","v":""}]
[{"$f":"IF('1. Order'!B37=\"\",\"\",'1. Order'!B37)","v":""},{"$f":"IF('1. Order'!I37=\"\",\"\",'1. Order'!I37)","v":""},{"$f":"IF('1. Order'!J37=\"\",\"\",'1. Order'!J37)","v":""},{"$f":"IF('1. Order'!K37=\"\",\"\",'1. Order'!K37)","v":""},{"$f":"IF('1. Order'!M37=\"\",\"\",'1. Order'!M37)","v":""},null,null,{"$f":"IF('1. Order'!AR37=\"\",\"\",'1. Order'!AR37)","v":""},{"$f":"IF('1. Order'!AE37=\"\",\"\",'1. Order'!AE37)","v":""}]
[{"$f":"IF('1. Order'!B38=\"\",\"\",'1. Order'!B38)","v":""},{"$f":"IF('1. Order'!I38=\"\",\"\",'1. Order'!I38)","v":""},{"$f":"IF('1. Order'!J38=\"\",\"\",'1. Order'!J38)","v":""},{"$f":"IF('1. Order'!K38=\"\",\"\",'1. Order'!K38)","v":""},{"$f":"IF('1. Order'!M38=\"\",\"\",'1. Order'!M38)","v":""},null,null,{"$f":"IF('1. Order'!AR38=\"\",\"\",'1. Order'!AR38)","v":""},{"$f":"IF('1. Order'!AE38=\"\",\"\",'1. Order'!AE38)","v":""}]
[{"$f":"IF('1. Order'!B39=\"\",\"\",'1. Order'!B39)","v":""},{"$f":"IF('1. Order'!I39=\"\",\"\",'1. Order'!I39)","v":""},{"$f":"IF('1. Order'!J39=\"\",\"\",'1. Order'!J39)","v":""},{"$f":"IF('1. Order'!K39=\"\",\"\",'1. Order'!K39)","v":""},{"$f":"IF('1. Order'!M39=\"\",\"\",'1. Order'!M39)","v":""},null,null,{"$f":"IF('1. Order'!AR39=\"\",\"\",'1. Order'!AR39)","v":""},{"$f":"IF('1. Order'!AE39=\"\",\"\",'1. Order'!AE39)","v":""}]
[{"$f":"IF('1. Order'!B40=\"\",\"\",'1. Order'!B40)","v":""},{"$f":"IF('1. Order'!I40=\"\",\"\",'1. Order'!I40)","v":""},{"$f":"IF('1. Order'!J40=\"\",\"\",'1. Order'!J40)","v":""},{"$f":"IF('1. Order'!K40=\"\",\"\",'1. Order'!K40)","v":""},{"$f":"IF('1. Order'!M40=\"\",\"\",'1. Order'!M40)","v":""},null,null,{"$f":"IF('1. Order'!AR40=\"\",\"\",'1. Order'!AR40)","v":""},{"$f":"IF('1. Order'!AE40=\"\",\"\",'1. Order'!AE40)","v":""}]
[{"$f":"IF('1. Order'!B41=\"\",\"\",'1. Order'!B41)","v":""},{"$f":"IF('1. Order'!I41=\"\",\"\",'1. Order'!I41)","v":""},{"$f":"IF('1. Order'!J41=\"\",\"\",'1. Order'!J41)","v":""},{"$f":"IF('1. Order'!K41=\"\",\"\",'1. Order'!K41)","v":""},{"$f":"IF('1. Order'!M41=\"\",\"\",'1. Order'!M41)","v":""},null,null,{"$f":"IF('1. Order'!AR41=\"\",\"\",'1. Order'!AR41)","v":""},{"$f":"IF('1. Order'!AE41=\"\",\"\",'1. Order'!AE41)","v":""}]
[{"$f":"IF('1. Order'!B42=\"\",\"\",'1. Order'!B42)","v":""},{"$f":"IF('1. Order'!I42=\"\",\"\",'1. Order'!I42)","v":""},{"$f":"IF('1. Order'!J42=\"\",\"\",'1. Order'!J42)","v":""},{"$f":"IF('1. Order'!K42=\"\",\"\",'1. Order'!K42)","v":""},{"$f":"IF('1. Order'!M42=\"\",\"\",'1. Order'!M42)","v":""},null,null,{"$f":"IF('1. Order'!AR42=\"\",\"\",'1. Order'!AR42)","v":""},{"$f":"IF('1. Order'!AE42=\"\",\"\",'1. Order'!AE42)","v":""}]
[{"$f":"IF('1. Order'!B43=\"\",\"\",'1. Order'!B43)","v":""},{"$f":"IF('1. Order'!I43=\"\",\"\",'1. Order'!I43)","v":""},{"$f":"IF('1. Order'!J43=\"\",\"\",'1. Order'!J43)","v":""},{"$f":"IF('1. Order'!K43=\"\",\"\",'1. Order'!K43)","v":""},{"$f":"IF('1. Order'!M43=\"\",\"\",'1. Order'!M43)","v":""},null,null,{"$f":"IF('1. Order'!AR43=\"\",\"\",'1. Order'!AR43)","v":""},{"$f":"IF('1. Order'!AE43=\"\",\"\",'1. Order'!AE43)","v":""}]
[{"$f":"IF('1. Order'!B44=\"\",\"\",'1. Order'!B44)","v":""},{"$f":"IF('1. Order'!I44=\"\",\"\",'1. Order'!I44)","v":""},{"$f":"IF('1. Order'!J44=\"\",\"\",'1. Order'!J44)","v":""},{"$f":"IF('1. Order'!K44=\"\",\"\",'1. Order'!K44)","v":""},{"$f":"IF('1. Order'!M44=\"\",\"\",'1. Order'!M44)","v":""},null,null,{"$f":"IF('1. Order'!AR44=\"\",\"\",'1. Order'!AR44)","v":""},{"$f":"IF('1. Order'!AE44=\"\",\"\",'1. Order'!AE44)","v":""}]
[{"$f":"IF('1. Order'!B45=\"\",\"\",'1. Order'!B45)","v":""},{"$f":"IF('1. Order'!I45=\"\",\"\",'1. Order'!I45)","v":""},{"$f":"IF('1. Order'!J45=\"\",\"\",'1. Order'!J45)","v":""},{"$f":"IF('1. Order'!K45=\"\",\"\",'1. Order'!K45)","v":""},{"$f":"IF('1. Order'!M45=\"\",\"\",'1. Order'!M45)","v":""},null,null,{"$f":"IF('1. Order'!AR45=\"\",\"\",'1. Order'!AR45)","v":""},{"$f":"IF('1. Order'!AE45=\"\",\"\",'1. Order'!AE45)","v":""}]
[{"$f":"IF('1. Order'!B46=\"\",\"\",'1. Order'!B46)","v":""},{"$f":"IF('1. Order'!I46=\"\",\"\",'1. Order'!I46)","v":""},{"$f":"IF('1. Order'!J46=\"\",\"\",'1. Order'!J46)","v":""},{"$f":"IF('1. Order'!K46=\"\",\"\",'1. Order'!K46)","v":""},{"$f":"IF('1. Order'!M46=\"\",\"\",'1. Order'!M46)","v":""},null,null,{"$f":"IF('1. Order'!AR46=\"\",\"\",'1. Order'!AR46)","v":""},{"$f":"IF('1. Order'!AE46=\"\",\"\",'1. Order'!AE46)","v":""}]
[{"$f":"IF('1. Order'!B47=\"\",\"\",'1. Order'!B47)","v":""},{"$f":"IF('1. Order'!I47=\"\",\"\",'1. Order'!I47)","v":""},{"$f":"IF('1. Order'!J47=\"\",\"\",'1. Order'!J47)","v":""},{"$f":"IF('1. Order'!K47=\"\",\"\",'1. Order'!K47)","v":""},{"$f":"IF('1. Order'!M47=\"\",\"\",'1. Order'!M47)","v":""},null,null,{"$f":"IF('1. Order'!AR47=\"\",\"\",'1. Order'!AR47)","v":""},{"$f":"IF('1. Order'!AE47=\"\",\"\",'1. Order'!AE47)","v":""}]
[{"$f":"IF('1. Order'!B48=\"\",\"\",'1. Order'!B48)","v":""},{"$f":"IF('1. Order'!I48=\"\",\"\",'1. Order'!I48)","v":""},{"$f":"IF('1. Order'!J48=\"\",\"\",'1. Order'!J48)","v":""},{"$f":"IF('1. Order'!K48=\"\",\"\",'1. Order'!K48)","v":""},{"$f":"IF('1. Order'!M48=\"\",\"\",'1. Order'!M48)","v":""},null,null,{"$f":"IF('1. Order'!AR48=\"\",\"\",'1. Order'!AR48)","v":""},{"$f":"IF('1. Order'!AE48=\"\",\"\",'1. Order'!AE48)","v":""}]
[{"$f":"IF('1. Order'!B49=\"\",\"\",'1. Order'!B49)","v":""},{"$f":"IF('1. Order'!I49=\"\",\"\",'1. Order'!I49)","v":""},{"$f":"IF('1. Order'!J49=\"\",\"\",'1. Order'!J49)","v":""},{"$f":"IF('1. Order'!K49=\"\",\"\",'1. Order'!K49)","v":""},{"$f":"IF('1. Order'!M49=\"\",\"\",'1. Order'!M49)","v":""},null,null,{"$f":"IF('1. Order'!AR49=\"\",\"\",'1. Order'!AR49)","v":""},{"$f":"IF('1. Order'!AE49=\"\",\"\",'1. Order'!AE49)","v":""}]
[{"$f":"IF('1. Order'!B50=\"\",\"\",'1. Order'!B50)","v":""},{"$f":"IF('1. Order'!I50=\"\",\"\",'1. Order'!I50)","v":""},{"$f":"IF('1. Order'!J50=\"\",\"\",'1. Order'!J50)","v":""},{"$f":"IF('1. Order'!K50=\"\",\"\",'1. Order'!K50)","v":""},{"$f":"IF('1. Order'!M50=\"\",\"\",'1. Order'!M50)","v":""},null,null,{"$f":"IF('1. Order'!AR50=\"\",\"\",'1. Order'!AR50)","v":""},{"$f":"IF('1. Order'!AE50=\"\",\"\",'1. Order'!AE50)","v":""}]
[{"$f":"IF('1. Order'!B51=\"\",\"\",'1. Order'!B51)","v":""},{"$f":"IF('1. Order'!I51=\"\",\"\",'1. Order'!I51)","v":""},{"$f":"IF('1. Order'!J51=\"\",\"\",'1. Order'!J51)","v":""},{"$f":"IF('1. Order'!K51=\"\",\"\",'1. Order'!K51)","v":""},{"$f":"IF('1. Order'!M51=\"\",\"\",'1. Order'!M51)","v":""},null,null,{"$f":"IF('1. Order'!AR51=\"\",\"\",'1. Order'!AR51)","v":""},{"$f":"IF('1. Order'!AE51=\"\",\"\",'1. Order'!AE51)","v":""}]
[{"$f":"IF('1. Order'!B52=\"\",\"\",'1. Order'!B52)","v":""},{"$f":"IF('1. Order'!I52=\"\",\"\",'1. Order'!I52)","v":""},{"$f":"IF('1. Order'!J52=\"\",\"\",'1. Order'!J52)","v":""},{"$f":"IF('1. Order'!K52=\"\",\"\",'1. Order'!K52)","v":""},{"$f":"IF('1. Order'!M52=\"\",\"\",'1. Order'!M52)","v":""},null,null,{"$f":"IF('1. Order'!AR52=\"\",\"\",'1. Order'!AR52)","v":""},{"$f":"IF('1. Order'!AE52=\"\",\"\",'1. Order'!AE52)","v":""}]
[{"$f":"IF('1. Order'!B53=\"\",\"\",'1. Order'!B53)","v":""},{"$f":"IF('1. Order'!I53=\"\",\"\",'1. Order'!I53)","v":""},{"$f":"IF('1. Order'!J53=\"\",\"\",'1. Order'!J53)","v":""},{"$f":"IF('1. Order'!K53=\"\",\"\",'1. Order'!K53)","v":""},{"$f":"IF('1. Order'!M53=\"\",\"\",'1. Order'!M53)","v":""},null,null,{"$f":"IF('1. Order'!AR53=\"\",\"\",'1. Order'!AR53)","v":""},{"$f":"IF('1. Order'!AE53=\"\",\"\",'1. Order'!AE53)","v":""}]
[{"$f":"IF('1. Order'!B54=\"\",\"\",'1. Order'!B54)","v":""},{"$f":"IF('1. Order'!I54=\"\",\"\",'1. Order'!I54)","v":""},{"$f":"IF('1. Order'!J54=\"\",\"\",'1. Order'!J54)","v":""},{"$f":"IF('1. Order'!K54=\"\",\"\",'1. Order'!K54)","v":""},{"$f":"IF('1. Order'!M54=\"\",\"\",'1. Order'!M54)","v":""},null,null,{"$f":"IF('1. Order'!AR54=\"\",\"\",'1. Order'!AR54)","v":""},{"$f":"IF('1. Order'!AE54=\"\",\"\",'1. Order'!AE54)","v":""}]
[{"$f":"IF('1. Order'!B55=\"\",\"\",'1. Order'!B55)","v":""},{"$f":"IF('1. Order'!I55=\"\",\"\",'1. Order'!I55)","v":""},{"$f":"IF('1. Order'!J55=\"\",\"\",'1. Order'!J55)","v":""},{"$f":"IF('1. Order'!K55=\"\",\"\",'1. Order'!K55)","v":""},{"$f":"IF('1. Order'!M55=\"\",\"\",'1. Order'!M55)","v":""},null,null,{"$f":"IF('1. Order'!AR55=\"\",\"\",'1. Order'!AR55)","v":""},{"$f":"IF('1. Order'!AE55=\"\",\"\",'1. Order'!AE55)","v":""}]
[{"$f":"IF('1. Order'!B56=\"\",\"\",'1. Order'!B56)","v":""},{"$f":"IF('1. Order'!I56=\"\",\"\",'1. Order'!I56)","v":""},{"$f":"IF('1. Order'!J56=\"\",\"\",'1. Order'!J56)","v":""},{"$f":"IF('1. Order'!K56=\"\",\"\",'1. Order'!K56)","v":""},{"$f":"IF('1. Order'!M56=\"\",\"\",'1. Order'!M56)","v":""},null,null,{"$f":"IF('1. Order'!AR56=\"\",\"\",'1. Order'!AR56)","v":""},{"$f":"IF('1. Order'!AE56=\"\",\"\",'1. Order'!AE56)","v":""}]
[{"$f":"IF('1. Order'!B57=\"\",\"\",'1. Order'!B57)","v":""},{"$f":"IF('1. Order'!I57=\"\",\"\",'1. Order'!I57)","v":""},{"$f":"IF('1. Order'!J57=\"\",\"\",'1. Order'!J57)","v":""},{"$f":"IF('1. Order'!K57=\"\",\"\",'1. Order'!K57)","v":""},{"$f":"IF('1. Order'!M57=\"\",\"\",'1. Order'!M57)","v":""},null,null,{"$f":"IF('1. Order'!AR57=\"\",\"\",'1. Order'!AR57)","v":""},{"$f":"IF('1. Order'!AE57=\"\",\"\",'1. Order'!AE57)","v":""}]
[{"$f":"IF('1. Order'!B58=\"\",\"\",'1. Order'!B58)","v":""},{"$f":"IF('1. Order'!I58=\"\",\"\",'1. Order'!I58)","v":""},{"$f":"IF('1. Order'!J58=\"\",\"\",'1. Order'!J58)","v":""},{"$f":"IF('1. Order'!K58=\"\",\"\",'1. Order'!K58)","v":""},{"$f":"IF('1. Order'!M58=\"\",\"\",'1. Order'!M58)","v":""},null,null,{"$f":"IF('1. Order'!AR58=\"\",\"\",'1. Order'!AR58)","v":""},{"$f":"IF('1. Order'!AE58=\"\",\"\",'1. Order'!AE58)","v":""}]
[{"$f":"IF('1. Order'!B59=\"\",\"\",'1. Order'!B59)","v":""},{"$f":"IF('1. Order'!I59=\"\",\"\",'1. Order'!I59)","v":""},{"$f":"IF('1. Order'!J59=\"\",\"\",'1. Order'!J59)","v":""},{"$f":"IF('1. Order'!K59=\"\",\"\",'1. Order'!K59)","v":""},{"$f":"IF('1. Order'!M59=\"\",\"\",'1. Order'!M59)","v":""},null,null,{"$f":"IF('1. Order'!AR59=\"\",\"\",'1. Order'!AR59)","v":""},{"$f":"IF('1. Order'!AE59=\"\",\"\",'1. Order'!AE59)","v":""}]
[{"$f":"IF('1. Order'!B60=\"\",\"\",'1. Order'!B60)","v":""},{"$f":"IF('1. Order'!I60=\"\",\"\",'1. Order'!I60)","v":""},{"$f":"IF('1. Order'!J60=\"\",\"\",'1. Order'!J60)","v":""},{"$f":"IF('1. Order'!K60=\"\",\"\",'1. Order'!K60)","v":""},{"$f":"IF('1. Order'!M60=\"\",\"\",'1. Order'!M60)","v":""},null,null,{"$f":"IF('1. Order'!AR60=\"\",\"\",'1. Order'!AR60)","v":""},{"$f":"IF('1. Order'!AE60=\"\",\"\",'1. Order'!AE60)","v":""}]
[{"$f":"IF('1. Order'!B61=\"\",\"\",'1. Order'!B61)","v":""},{"$f":"IF('1. Order'!I61=\"\",\"\",'1. Order'!I61)","v":""},{"$f":"IF('1. Order'!J61=\"\",\"\",'1. Order'!J61)","v":""},{"$f":"IF('1. Order'!K61=\"\",\"\",'1. Order'!K61)","v":""},{"$f":"IF('1. Order'!M61=\"\",\"\",'1. Order'!M61)","v":""},null,null,{"$f":"IF('1. Order'!AR61=\"\",\"\",'1. Order'!AR61)","v":""},{"$f":"IF('1. Order'!AE61=\"\",\"\",'1. Order'!AE61)","v":""}]
[{"$f":"IF('1. Order'!B62=\"\",\"\",'1. Order'!B62)","v":""},{"$f":"IF('1. Order'!I62=\"\",\"\",'1. Order'!I62)","v":""},{"$f":"IF('1. Order'!J62=\"\",\"\",'1. Order'!J62)","v":""},{"$f":"IF('1. Order'!K62=\"\",\"\",'1. Order'!K62)","v":""},{"$f":"IF('1. Order'!M62=\"\",\"\",'1. Order'!M62)","v":""},null,null,{"$f":"IF('1. Order'!AR62=\"\",\"\",'1. Order'!AR62)","v":""},{"$f":"IF('1. Order'!AE62=\"\",\"\",'1. Order'!AE62)","v":""}]
[{"$f":"IF('1. Order'!B63=\"\",\"\",'1. Order'!B63)","v":""},{"$f":"IF('1. Order'!I63=\"\",\"\",'1. Order'!I63)","v":""},{"$f":"IF('1. Order'!J63=\"\",\"\",'1. Order'!J63)","v":""},{"$f":"IF('1. Order'!K63=\"\",\"\",'1. Order'!K63)","v":""},{"$f":"IF('1. Order'!M63=\"\",\"\",'1. Order'!M63)","v":""},null,null,{"$f":"IF('1. Order'!AR63=\"\",\"\",'1. Order'!AR63)","v":""},{"$f":"IF('1. Order'!AE63=\"\",\"\",'1. Order'!AE63)","v":""}]
[{"$f":"IF('1. Order'!B64=\"\",\"\",'1. Order'!B64)","v":""},{"$f":"IF('1. Order'!I64=\"\",\"\",'1. Order'!I64)","v":""},{"$f":"IF('1. Order'!J64=\"\",\"\",'1. Order'!J64)","v":""},{"$f":"IF('1. Order'!K64=\"\",\"\",'1. Order'!K64)","v":""},{"$f":"IF('1. Order'!M64=\"\",\"\",'1. Order'!M64)","v":""},null,null,{"$f":"IF('1. Order'!AR64=\"\",\"\",'1. Order'!AR64)","v":""},{"$f":"IF('1. Order'!AE64=\"\",\"\",'1. Order'!AE64)","v":""}]
[{"$f":"IF('1. Order'!B65=\"\",\"\",'1. Order'!B65)","v":""},{"$f":"IF('1. Order'!I65=\"\",\"\",'1. Order'!I65)","v":""},{"$f":"IF('1. Order'!J65=\"\",\"\",'1. Order'!J65)","v":""},{"$f":"IF('1. Order'!K65=\"\",\"\",'1. Order'!K65)","v":""},{"$f":"IF('1. Order'!M65=\"\",\"\",'1. Order'!M65)","v":""},null,null,{"$f":"IF('1. Order'!AR65=\"\",\"\",'1. Order'!AR65)","v":""},{"$f":"IF('1. Order'!AE65=\"\",\"\",'1. Order'!AE65)","v":""}]
[{"$f":"IF('1. Order'!B66=\"\",\"\",'1. Order'!B66)","v":""},{"$f":"IF('1. Order'!I66=\"\",\"\",'1. Order'!I66)","v":""},{"$f":"IF('1. Order'!J66=\"\",\"\",'1. Order'!J66)","v":""},{"$f":"IF('1. Order'!K66=\"\",\"\",'1. Order'!K66)","v":""},{"$f":"IF('1. Order'!M66=\"\",\"\",'1. Order'!M66)","v":""},null,null,{"$f":"IF('1. Order'!AR66=\"\",\"\",'1. Order'!AR66)","v":""},{"$f":"IF('1. Order'!AE66=\"\",\"\",'1. Order'!AE66)","v":""}]
[{"$f":"IF('1. Order'!B67=\"\",\"\",'1. Order'!B67)","v":""},{"$f":"IF('1. Order'!I67=\"\",\"\",'1. Order'!I67)","v":""},{"$f":"IF('1. Order'!J67=\"\",\"\",'1. Order'!J67)","v":""},{"$f":"IF('1. Order'!K67=\"\",\"\",'1. Order'!K67)","v":""},{"$f":"IF('1. Order'!M67=\"\",\"\",'1. Order'!M67)","v":""},null,null,{"$f":"IF('1. Order'!AR67=\"\",\"\",'1. Order'!AR67)","v":""},{"$f":"IF('1. Order'!AE67=\"\",\"\",'1. Order'!AE67)","v":""}]
[{"$f":"IF('1. Order'!B68=\"\",\"\",'1. Order'!B68)","v":""},{"$f":"IF('1. Order'!I68=\"\",\"\",'1. Order'!I68)","v":""},{"$f":"IF('1. Order'!J68=\"\",\"\",'1. Order'!J68)","v":""},{"$f":"IF('1. Order'!K68=\"\",\"\",'1. Order'!K68)","v":""},{"$f":"IF('1. Order'!M68=\"\",\"\",'1. Order'!M68)","v":""},null,null,{"$f":"IF('1. Order'!AR68=\"\",\"\",'1. Order'!AR68)","v":""},{"$f":"IF('1. Order'!AE68=\"\",\"\",'1. Order'!AE68)","v":""}]
[{"$f":"IF('1. Order'!B69=\"\",\"\",'1. Order'!B69)","v":""},{"$f":"IF('1. Order'!I69=\"\",\"\",'1. Order'!I69)","v":""},{"$f":"IF('1. Order'!J69=\"\",\"\",'1. Order'!J69)","v":""},{"$f":"IF('1. Order'!K69=\"\",\"\",'1. Order'!K69)","v":""},{"$f":"IF('1. Order'!M69=\"\",\"\",'1. Order'!M69)","v":""},null,null,{"$f":"IF('1. Order'!AR69=\"\",\"\",'1. Order'!AR69)","v":""},{"$f":"IF('1. Order'!AE69=\"\",\"\",'1. Order'!AE69)","v":""}]
[{"$f":"IF('1. Order'!B70=\"\",\"\",'1. Order'!B70)","v":""},{"$f":"IF('1. Order'!I70=\"\",\"\",'1. Order'!I70)","v":""},{"$f":"IF('1. Order'!J70=\"\",\"\",'1. Order'!J70)","v":""},{"$f":"IF('1. Order'!K70=\"\",\"\",'1. Order'!K70)","v":""},{"$f":"IF('1. Order'!M70=\"\",\"\",'1. Order'!M70)","v":""},null,null,{"$f":"IF('1. Order'!AR70=\"\",\"\",'1. Order'!AR70)","v":""},{"$f":"IF('1. Order'!AE70=\"\",\"\",'1. Order'!AE70)","v":""}]
[{"$f":"IF('1. Order'!B71=\"\",\"\",'1. Order'!B71)","v":""},{"$f":"IF('1. Order'!I71=\"\",\"\",'1. Order'!I71)","v":""},{"$f":"IF('1. Order'!J71=\"\",\"\",'1. Order'!J71)","v":""},{"$f":"IF('1. Order'!K71=\"\",\"\",'1. Order'!K71)","v":""},{"$f":"IF('1. Order'!M71=\"\",\"\",'1. Order'!M71)","v":""},null,null,{"$f":"IF('1. Order'!AR71=\"\",\"\",'1. Order'!AR71)","v":""},{"$f":"IF('1. Order'!AE71=\"\",\"\",'1. Order'!AE71)","v":""}]
[{"$f":"IF('1. Order'!B72=\"\",\"\",'1. Order'!B72)","v":""},{"$f":"IF('1. Order'!I72=\"\",\"\",'1. Order'!I72)","v":""},{"$f":"IF('1. Order'!J72=\"\",\"\",'1. Order'!J72)","v":""},{"$f":"IF('1. Order'!K72=\"\",\"\",'1. Order'!K72)","v":""},{"$f":"IF('1. Order'!M72=\"\",\"\",'1. Order'!M72)","v":""},null,null,{"$f":"IF('1. Order'!AR72=\"\",\"\",'1. Order'!AR72)","v":""},{"$f":"IF('1. Order'!AE72=\"\",\"\",'1. Order'!AE72)","v":""}]
[{"$f":"IF('1. Order'!B73=\"\",\"\",'1. Order'!B73)","v":""},{"$f":"IF('1. Order'!I73=\"\",\"\",'1. Order'!I73)","v":""},{"$f":"IF('1. Order'!J73=\"\",\"\",'1. Order'!J73)","v":""},{"$f":"IF('1. Order'!K73=\"\",\"\",'1. Order'!K73)","v":""},{"$f":"IF('1. Order'!M73=\"\",\"\",'1. Order'!M73)","v":""},null,null,{"$f":"IF('1. Order'!AR73=\"\",\"\",'1. Order'!AR73)","v":""},{"$f":"IF('1. Order'!AE73=\"\",\"\",'1. Order'!AE73)","v":""}]
[{"$f":"IF('1. Order'!B74=\"\",\"\",'1. Order'!B74)","v":""},{"$f":"IF('1. Order'!I74=\"\",\"\",'1. Order'!I74)","v":""},{"$f":"IF('1. Order'!J74=\"\",\"\",'1. Order'!J74)","v":""},{"$f":"IF('1. Order'!K74=\"\",\"\",'1. Order'!K74)","v":""},{"$f":"IF('1. Order'!M74=\"\",\"\",'1. Order'!M74)","v":""},null,null,{"$f":"IF('1. Order'!AR74=\"\",\"\",'1. Order'!AR74)","v":""},{"$f":"IF('1. Order'!AE74=\"\",\"\",'1. Order'!AE74)","v":""}]
[{"$f":"IF('1. Order'!B75=\"\",\"\",'1. Order'!B75)","v":""},{"$f":"IF('1. Order'!I75=\"\",\"\",'1. Order'!I75)","v":""},{"$f":"IF('1. Order'!J75=\"\",\"\",'1. Order'!J75)","v":""},{"$f":"IF('1. Order'!K75=\"\",\"\",'1. Order'!K75)","v":""},{"$f":"IF('1. Order'!M75=\"\",\"\",'1. Order'!M75)","v":""},null,null,{"$f":"IF('1. Order'!AR75=\"\",\"\",'1. Order'!AR75)","v":""},{"$f":"IF('1. Order'!AE75=\"\",\"\",'1. Order'!AE75)","v":""}]
[{"$f":"IF('1. Order'!B76=\"\",\"\",'1. Order'!B76)","v":""},{"$f":"IF('1. Order'!I76=\"\",\"\",'1. Order'!I76)","v":""},{"$f":"IF('1. Order'!J76=\"\",\"\",'1. Order'!J76)","v":""},{"$f":"IF('1. Order'!K76=\"\",\"\",'1. Order'!K76)","v":""},{"$f":"IF('1. Order'!M76=\"\",\"\",'1. Order'!M76)","v":""},null,null,{"$f":"IF('1. Order'!AR76=\"\",\"\",'1. Order'!AR76)","v":""},{"$f":"IF('1. Order'!AE76=\"\",\"\",'1. Order'!AE76)","v":""}]
[{"$f":"IF('1. Order'!B77=\"\",\"\",'1. Order'!B77)","v":""},{"$f":"IF('1. Order'!I77=\"\",\"\",'1. Order'!I77)","v":""},{"$f":"IF('1. Order'!J77=\"\",\"\",'1. Order'!J77)","v":""},{"$f":"IF('1. Order'!K77=\"\",\"\",'1. Order'!K77)","v":""},{"$f":"IF('1. Order'!M77=\"\",\"\",'1. Order'!M77)","v":""},null,null,{"$f":"IF('1. Order'!AR77=\"\",\"\",'1. Order'!AR77)","v":""},{"$f":"IF('1. Order'!AE77=\"\",\"\",'1. Order'!AE77)","v":""}]
[{"$f":"IF('1. Order'!B78=\"\",\"\",'1. Order'!B78)","v":""},{"$f":"IF('1. Order'!I78=\"\",\"\",'1. Order'!I78)","v":""},{"$f":"IF('1. Order'!J78=\"\",\"\",'1. Order'!J78)","v":""},{"$f":"IF('1. Order'!K78=\"\",\"\",'1. Order'!K78)","v":""},{"$f":"IF('1. Order'!M78=\"\",\"\",'1. Order'!M78)","v":""},null,null,{"$f":"IF('1. Order'!AR78=\"\",\"\",'1. Order'!AR78)","v":""},{"$f":"IF('1. Order'!AE78=\"\",\"\",'1. Order'!AE78)","v":""}]
[{"$f":"IF('1. Order'!B79=\"\",\"\",'1. Order'!B79)","v":""},{"$f":"IF('1. Order'!I79=\"\",\"\",'1. Order'!I79)","v":""},{"$f":"IF('1. Order'!J79=\"\",\"\",'1. Order'!J79)","v":""},{"$f":"IF('1. Order'!K79=\"\",\"\",'1. Order'!K79)","v":""},{"$f":"IF('1. Order'!M79=\"\",\"\",'1. Order'!M79)","v":""},null,null,{"$f":"IF('1. Order'!AR79=\"\",\"\",'1. Order'!AR79)","v":""},{"$f":"IF('1. Order'!AE79=\"\",\"\",'1. Order'!AE79)","v":""}]
[{"$f":"IF('1. Order'!B80=\"\",\"\",'1. Order'!B80)","v":""},{"$f":"IF('1. Order'!I80=\"\",\"\",'1. Order'!I80)","v":""},{"$f":"IF('1. Order'!J80=\"\",\"\",'1. Order'!J80)","v":""},{"$f":"IF('1. Order'!K80=\"\",\"\",'1. Order'!K80)","v":""},{"$f":"IF('1. Order'!M80=\"\",\"\",'1. Order'!M80)","v":""},null,null,{"$f":"IF('1. Order'!AR80=\"\",\"\",'1. Order'!AR80)","v":""},{"$f":"IF('1. Order'!AE80=\"\",\"\",'1. Order'!AE80)","v":""}]
[{"$f":"IF('1. Order'!B81=\"\",\"\",'1. Order'!B81)","v":""},{"$f":"IF('1. Order'!I81=\"\",\"\",'1. Order'!I81)","v":""},{"$f":"IF('1. Order'!J81=\"\",\"\",'1. Order'!J81)","v":""},{"$f":"IF('1. Order'!K81=\"\",\"\",'1. Order'!K81)","v":""},{"$f":"IF('1. Order'!M81=\"\",\"\",'1. Order'!M81)","v":""},null,null,{"$f":"IF('1. Order'!AR81=\"\",\"\",'1. Order'!AR81)","v":""},{"$f":"IF('1. Order'!AE81=\"\",\"\",'1. Order'!AE81)","v":""}]
[{"$f":"IF('1. Order'!B82=\"\",\"\",'1. Order'!B82)","v":""},{"$f":"IF('1. Order'!I82=\"\",\"\",'1. Order'!I82)","v":""},{"$f":"IF('1. Order'!J82=\"\",\"\",'1. Order'!J82)","v":""},{"$f":"IF('1. Order'!K82=\"\",\"\",'1. Order'!K82)","v":""},{"$f":"IF('1. Order'!M82=\"\",\"\",'1. Order'!M82)","v":""},null,null,{"$f":"IF('1. Order'!AR82=\"\",\"\",'1. Order'!AR82)","v":""},{"$f":"IF('1. Order'!AE82=\"\",\"\",'1. Order'!AE82)","v":""}]
[{"$f":"IF('1. Order'!B83=\"\",\"\",'1. Order'!B83)","v":""},{"$f":"IF('1. Order'!I83=\"\",\"\",'1. Order'!I83)","v":""},{"$f":"IF('1. Order'!J83=\"\",\"\",'1. Order'!J83)","v":""},{"$f":"IF('1. Order'!K83=\"\",\"\",'1. Order'!K83)","v":""},{"$f":"IF('1. Order'!M83=\"\",\"\",'1. Order'!M83)","v":""},null,null,{"$f":"IF('1. Order'!AR83=\"\",\"\",'1. Order'!AR83)","v":""},{"$f":"IF('1. Order'!AE83=\"\",\"\",'1. Order'!AE83)","v":""}]
[{"$f":"IF('1. Order'!B84=\"\",\"\",'1. Order'!B84)","v":""},{"$f":"IF('1. Order'!I84=\"\",\"\",'1. Order'!I84)","v":""},{"$f":"IF('1. Order'!J84=\"\",\"\",'1. Order'!J84)","v":""},{"$f":"IF('1. Order'!K84=\"\",\"\",'1. Order'!K84)","v":""},{"$f":"IF('1. Order'!M84=\"\",\"\",'1. Order'!M84)","v":""},null,null,{"$f":"IF('1. Order'!AR84=\"\",\"\",'1. Order'!AR84)","v":""},{"$f":"IF('1. Order'!AE84=\"\",\"\",'1. Order'!AE84)","v":""}]
[{"$f":"IF('1. Order'!B85=\"\",\"\",'1. Order'!B85)","v":""},{"$f":"IF('1. Order'!I85=\"\",\"\",'1. Order'!I85)","v":""},{"$f":"IF('1. Order'!J85=\"\",\"\",'1. Order'!J85)","v":""},{"$f":"IF('1. Order'!K85=\"\",\"\",'1. Order'!K85)","v":""},{"$f":"IF('1. Order'!M85=\"\",\"\",'1. Order'!M85)","v":""},null,null,{"$f":"IF('1. Order'!AR85=\"\",\"\",'1. Order'!AR85)","v":""},{"$f":"IF('1. Order'!AE85=\"\",\"\",'1. Order'!AE85)","v":""}]
[{"$f":"IF('1. Order'!B86=\"\",\"\",'1. Order'!B86)","v":""},{"$f":"IF('1. Order'!I86=\"\",\"\",'1. Order'!I86)","v":""},{"$f":"IF('1. Order'!J86=\"\",\"\",'1. Order'!J86)","v":""},{"$f":"IF('1. Order'!K86=\"\",\"\",'1. Order'!K86)","v":""},{"$f":"IF('1. Order'!M86=\"\",\"\",'1. Order'!M86)","v":""},null,null,{"$f":"IF('1. Order'!AR86=\"\",\"\",'1. Order'!AR86)","v":""},{"$f":"IF('1. Order'!AE86=\"\",\"\",'1. Order'!AE86)","v":""}]
[{"$f":"IF('1. Order'!B87=\"\",\"\",'1. Order'!B87)","v":""},{"$f":"IF('1. Order'!I87=\"\",\"\",'1. Order'!I87)","v":""},{"$f":"IF('1. Order'!J87=\"\",\"\",'1. Order'!J87)","v":""},{"$f":"IF('1. Order'!K87=\"\",\"\",'1. Order'!K87)","v":""},{"$f":"IF('1. Order'!M87=\"\",\"\",'1. Order'!M87)","v":""},null,null,{"$f":"IF('1. Order'!AR87=\"\",\"\",'1. Order'!AR87)","v":""},{"$f":"IF('1. Order'!AE87=\"\",\"\",'1. Order'!AE87)","v":""}]
[{"$f":"IF('1. Order'!B88=\"\",\"\",'1. Order'!B88)","v":""},{"$f":"IF('1. Order'!I88=\"\",\"\",'1. Order'!I88)","v":""},{"$f":"IF('1. Order'!J88=\"\",\"\",'1. Order'!J88)","v":""},{"$f":"IF('1. Order'!K88=\"\",\"\",'1. Order'!K88)","v":""},{"$f":"IF('1. Order'!M88=\"\",\"\",'1. Order'!M88)","v":""},null,null,{"$f":"IF('1. Order'!AR88=\"\",\"\",'1. Order'!AR88)","v":""},{"$f":"IF('1. Order'!AE88=\"\",\"\",'1. Order'!AE88)","v":""}]
[{"$f":"IF('1. Order'!B89=\"\",\"\",'1. Order'!B89)","v":""},{"$f":"IF('1. Order'!I89=\"\",\"\",'1. Order'!I89)","v":""},{"$f":"IF('1. Order'!J89=\"\",\"\",'1. Order'!J89)","v":""},{"$f":"IF('1. Order'!K89=\"\",\"\",'1. Order'!K89)","v":""},{"$f":"IF('1. Order'!M89=\"\",\"\",'1. Order'!M89)","v":""},null,null,{"$f":"IF('1. Order'!AR89=\"\",\"\",'1. Order'!AR89)","v":""},{"$f":"IF('1. Order'!AE89=\"\",\"\",'1. Order'!AE89)","v":""}]
[{"$f":"IF('1. Order'!B90=\"\",\"\",'1. Order'!B90)","v":""},{"$f":"IF('1. Order'!I90=\"\",\"\",'1. Order'!I90)","v":""},{"$f":"IF('1. Order'!J90=\"\",\"\",'1. Order'!J90)","v":""},{"$f":"IF('1. Order'!K90=\"\",\"\",'1. Order'!K90)","v":""},{"$f":"IF('1. Order'!M90=\"\",\"\",'1. Order'!M90)","v":""},null,null,{"$f":"IF('1. Order'!AR90=\"\",\"\",'1. Order'!AR90)","v":""},{"$f":"IF('1. Order'!AE90=\"\",\"\",'1. Order'!AE90)","v":""}]
[{"$f":"IF('1. Order'!B91=\"\",\"\",'1. Order'!B91)","v":""},{"$f":"IF('1. Order'!I91=\"\",\"\",'1. Order'!I91)","v":""},{"$f":"IF('1. Order'!J91=\"\",\"\",'1. Order'!J91)","v":""},{"$f":"IF('1. Order'!K91=\"\",\"\",'1. Order'!K91)","v":""},{"$f":"IF('1. Order'!M91=\"\",\"\",'1. Order'!M91)","v":""},null,null,{"$f":"IF('1. Order'!AR91=\"\",\"\",'1. Order'!AR91)","v":""},{"$f":"IF('1. Order'!AE91=\"\",\"\",'1. Order'!AE91)","v":""}]
[{"$f":"IF('1. Order'!B92=\"\",\"\",'1. Order'!B92)","v":""},{"$f":"IF('1. Order'!I92=\"\",\"\",'1. Order'!I92)","v":""},{"$f":"IF('1. Order'!J92=\"\",\"\",'1. Order'!J92)","v":""},{"$f":"IF('1. Order'!K92=\"\",\"\",'1. Order'!K92)","v":""},{"$f":"IF('1. Order'!M92=\"\",\"\",'1. Order'!M92)","v":""},null,null,{"$f":"IF('1. Order'!AR92=\"\",\"\",'1. Order'!AR92)","v":""},{"$f":"IF('1. Order'!AE92=\"\",\"\",'1. Order'!AE92)","v":""}]
[{"$f":"IF('1. Order'!B93=\"\",\"\",'1. Order'!B93)","v":""},{"$f":"IF('1. Order'!I93=\"\",\"\",'1. Order'!I93)","v":""},{"$f":"IF('1. Order'!J93=\"\",\"\",'1. Order'!J93)","v":""},{"$f":"IF('1. Order'!K93=\"\",\"\",'1. Order'!K93)","v":""},{"$f":"IF('1. Order'!M93=\"\",\"\",'1. Order'!M93)","v":""},null,null,{"$f":"IF('1. Order'!AR93=\"\",\"\",'1. Order'!AR93)","v":""},{"$f":"IF('1. Order'!AE93=\"\",\"\",'1. Order'!AE93)","v":""}]
[{"$f":"IF('1. Order'!B94=\"\",\"\",'1. Order'!B94)","v":""},{"$f":"IF('1. Order'!I94=\"\",\"\",'1. Order'!I94)","v":""},{"$f":"IF('1. Order'!J94=\"\",\"\",'1. Order'!J94)","v":""},{"$f":"IF('1. Order'!K94=\"\",\"\",'1. Order'!K94)","v":""},{"$f":"IF('1. Order'!M94=\"\",\"\",'1. Order'!M94)","v":""},null,null,{"$f":"IF('1. Order'!AR94=\"\",\"\",'1. Order'!AR94)","v":""},{"$f":"IF('1. Order'!AE94=\"\",\"\",'1. Order'!AE94)","v":""}]
[{"$f":"IF('1. Order'!B95=\"\",\"\",'1. Order'!B95)","v":""},{"$f":"IF('1. Order'!I95=\"\",\"\",'1. Order'!I95)","v":""},{"$f":"IF('1. Order'!J95=\"\",\"\",'1. Order'!J95)","v":""},{"$f":"IF('1. Order'!K95=\"\",\"\",'1. Order'!K95)","v":""},{"$f":"IF('1. Order'!M95=\"\",\"\",'1. Order'!M95)","v":""},null,null,{"$f":"IF('1. Order'!AR95=\"\",\"\",'1. Order'!AR95)","v":""},{"$f":"IF('1. Order'!AE95=\"\",\"\",'1. Order'!AE95)","v":""}]
[{"$f":"IF('1. Order'!B96=\"\",\"\",'1. Order'!B96)","v":""},{"$f":"IF('1. Order'!I96=\"\",\"\",'1. Order'!I96)","v":""},{"$f":"IF('1. Order'!J96=\"\",\"\",'1. Order'!J96)","v":""},{"$f":"IF('1. Order'!K96=\"\",\"\",'1. Order'!K96)","v":""},{"$f":"IF('1. Order'!M96=\"\",\"\",'1. Order'!M96)","v":""},null,null,{"$f":"IF('1. Order'!AR96=\"\",\"\",'1. Order'!AR96)","v":""},{"$f":"IF('1. Order'!AE96=\"\",\"\",'1. Order'!AE96)","v":""}]
[{"$f":"IF('1. Order'!B97=\"\",\"\",'1. Order'!B97)","v":""},{"$f":"IF('1. Order'!I97=\"\",\"\",'1. Order'!I97)","v":""},{"$f":"IF('1. Order'!J97=\"\",\"\",'1. Order'!J97)","v":""},{"$f":"IF('1. Order'!K97=\"\",\"\",'1. Order'!K97)","v":""},{"$f":"IF('1. Order'!M97=\"\",\"\",'1. Order'!M97)","v":""},null,null,{"$f":"IF('1. Order'!AR97=\"\",\"\",'1. Order'!AR97)","v":""},{"$f":"IF('1. Order'!AE97=\"\",\"\",'1. Order'!AE97)","v":""}]
[{"$f":"IF('1. Order'!B98=\"\",\"\",'1. Order'!B98)","v":""},{"$f":"IF('1. Order'!I98=\"\",\"\",'1. Order'!I98)","v":""},{"$f":"IF('1. Order'!J98=\"\",\"\",'1. Order'!J98)","v":""},{"$f":"IF('1. Order'!K98=\"\",\"\",'1. Order'!K98)","v":""},{"$f":"IF('1. Order'!M98=\"\",\"\",'1. Order'!M98)","v":""},null,null,{"$f":"IF('1. Order'!AR98=\"\",\"\",'1. Order'!AR98)","v":""},{"$f":"IF('1. Order'!AE98=\"\",\"\",'1. Order'!AE98)","v":""}]
[{"$f":"IF('1. Order'!B99=\"\",\"\",'1. Order'!B99)","v":""},{"$f":"IF('1. Order'!I99=\"\",\"\",'1. Order'!I99)","v":""},{"$f":"IF('1. Order'!J99=\"\",\"\",'1. Order'!J99)","v":""},{"$f":"IF('1. Order'!K99=\"\",\"\",'1. Order'!K99)","v":""},{"$f":"IF('1. Order'!M99=\"\",\"\",'1. Order'!M99)","v":""},null,null,{"$f":"IF('1. Order'!AR99=\"\",\"\",'1. Order'!AR99)","v":""},{"$f":"IF('1. Order'!AE99=\"\",\"\",'1. Order'!AE99)","v":""}]
[{"$f":"IF('1. Order'!B100=\"\",\"\",'1. Order'!B100)","v":""},{"$f":"IF('1. Order'!I100=\"\",\"\",'1. Order'!I100)","v":""},{"$f":"IF('1. Order'!J100=\"\",\"\",'1. Order'!J100)","v":""},{"$f":"IF('1. Order'!K100=\"\",\"\",'1. Order'!K100)","v":""},{"$f":"IF('1. Order'!M100=\"\",\"\",'1. Order'!M100)","v":""},null,null,{"$f":"IF('1. Order'!AR100=\"\",\"\",'1. Order'!AR100)","v":""},{"$f":"IF('1. Order'!AE100=\"\",\"\",'1. Order'!AE100)","v":""}]
[{"$f":"IF('1. Order'!B101=\"\",\"\",'1. Order'!B101)","v":""},{"$f":"IF('1. Order'!I101=\"\",\"\",'1. Order'!I101)","v":""},{"$f":"IF('1. Order'!J101=\"\",\"\",'1. Order'!J101)","v":""},{"$f":"IF('1. Order'!K101=\"\",\"\",'1. Order'!K101)","v":""},{"$f":"IF('1. Order'!M101=\"\",\"\",'1. Order'!M101)","v":""},null,null,{"$f":"IF('1. Order'!AR101=\"\",\"\",'1. Order'!AR101)","v":""},{"$f":"IF('1. Order'!AE101=\"\",\"\",'1. Order'!AE101)","v":""}]
[{"$f":"IF('1. Order'!B102=\"\",\"\",'1. Order'!B102)","v":""},{"$f":"IF('1. Order'!I102=\"\",\"\",'1. Order'!I102)","v":""},{"$f":"IF('1. Order'!J102=\"\",\"\",'1. Order'!J102)","v":""},{"$f":"IF('1. Order'!K102=\"\",\"\",'1. Order'!K102)","v":""},{"$f":"IF('1. Order'!M102=\"\",\"\",'1. Order'!M102)","v":""},null,null,{"$f":"IF('1. Order'!AR102=\"\",\"\",'1. Order'!AR102)","v":""},{"$f":"IF('1. Order'!AE102=\"\",\"\",'1. Order'!AE102)","v":""}]
[{"$f":"IF('1. Order'!B103=\"\",\"\",'1. Order'!B103)","v":""},{"$f":"IF('1. Order'!I103=\"\",\"\",'1. Order'!I103)","v":""},{"$f":"IF('1. Order'!J103=\"\",\"\",'1. Order'!J103)","v":""},{"$f":"IF('1. Order'!K103=\"\",\"\",'1. Order'!K103)","v":""},{"$f":"IF('1. Order'!M103=\"\",\"\",'1. Order'!M103)","v":""},null,null,{"$f":"IF('1. Order'!AR103=\"\",\"\",'1. Order'!AR103)","v":""},{"$f":"IF('1. Order'!AE103=\"\",\"\",'1. Order'!AE103)","v":""}]
[{"$f":"IF('1. Order'!B104=\"\",\"\",'1. Order'!B104)","v":""},{"$f":"IF('1. Order'!I104=\"\",\"\",'1. Order'!I104)","v":""},{"$f":"IF('1. Order'!J104=\"\",\"\",'1. Order'!J104)","v":""},{"$f":"IF('1. Order'!K104=\"\",\"\",'1. Order'!K104)","v":""},{"$f":"IF('1. Order'!M104=\"\",\"\",'1. Order'!M104)","v":""},null,null,{"$f":"IF('1. Order'!AR104=\"\",\"\",'1. Order'!AR104)","v":""},{"$f":"IF('1. Order'!AE104=\"\",\"\",'1. Order'!AE104)","v":""}]
[{"$f":"IF('1. Order'!B105=\"\",\"\",'1. Order'!B105)","v":""},{"$f":"IF('1. Order'!I105=\"\",\"\",'1. Order'!I105)","v":""},{"$f":"IF('1. Order'!J105=\"\",\"\",'1. Order'!J105)","v":""},{"$f":"IF('1. Order'!K105=\"\",\"\",'1. Order'!K105)","v":""},{"$f":"IF('1. Order'!M105=\"\",\"\",'1. Order'!M105)","v":""},null,null,{"$f":"IF('1. Order'!AR105=\"\",\"\",'1. Order'!AR105)","v":""},{"$f":"IF('1. Order'!AE105=\"\",\"\",'1. Order'!AE105)","v":""}]
[{"$f":"IF('1. Order'!B106=\"\",\"\",'1. Order'!B106)","v":""},{"$f":"IF('1. Order'!I106=\"\",\"\",'1. Order'!I106)","v":""},{"$f":"IF('1. Order'!J106=\"\",\"\",'1. Order'!J106)","v":""},{"$f":"IF('1. Order'!K106=\"\",\"\",'1. Order'!K106)","v":""},{"$f":"IF('1. Order'!M106=\"\",\"\",'1. Order'!M106)","v":""},null,null,{"$f":"IF('1. Order'!AR106=\"\",\"\",'1. Order'!AR106)","v":""},{"$f":"IF('1. Order'!AE106=\"\",\"\",'1. Order'!AE106)","v":""}]
[{"$f":"IF('1. Order'!B107=\"\",\"\",'1. Order'!B107)","v":""},{"$f":"IF('1. Order'!I107=\"\",\"\",'1. Order'!I107)","v":""},{"$f":"IF('1. Order'!J107=\"\",\"\",'1. Order'!J107)","v":""},{"$f":"IF('1. Order'!K107=\"\",\"\",'1. Order'!K107)","v":""},{"$f":"IF('1. Order'!M107=\"\",\"\",'1. Order'!M107)","v":""},null,null,{"$f":"IF('1. Order'!AR107=\"\",\"\",'1. Order'!AR107)","v":""},{"$f":"IF('1. Order'!AE107=\"\",\"\",'1. Order'!AE107)","v":""}]
[{"$f":"IF('1. Order'!B108=\"\",\"\",'1. Order'!B108)","v":""},{"$f":"IF('1. Order'!I108=\"\",\"\",'1. Order'!I108)","v":""},{"$f":"IF('1. Order'!J108=\"\",\"\",'1. Order'!J108)","v":""},{"$f":"IF('1. Order'!K108=\"\",\"\",'1. Order'!K108)","v":""},{"$f":"IF('1. Order'!M108=\"\",\"\",'1. Order'!M108)","v":""},null,null,{"$f":"IF('1. Order'!AR108=\"\",\"\",'1. Order'!AR108)","v":""},{"$f":"IF('1. Order'!AE108=\"\",\"\",'1. Order'!AE108)","v":""}]
[{"$f":"IF('1. Order'!B109=\"\",\"\",'1. Order'!B109)","v":""},{"$f":"IF('1. Order'!I109=\"\",\"\",'1. Order'!I109)","v":""},{"$f":"IF('1. Order'!J109=\"\",\"\",'1. Order'!J109)","v":""},{"$f":"IF('1. Order'!K109=\"\",\"\",'1. Order'!K109)","v":""},{"$f":"IF('1. Order'!M109=\"\",\"\",'1. Order'!M109)","v":""},null,null,{"$f":"IF('1. Order'!AR109=\"\",\"\",'1. Order'!AR109)","v":""},{"$f":"IF('1. Order'!AE109=\"\",\"\",'1. Order'!AE109)","v":""}]
[{"$f":"IF('1. Order'!B110=\"\",\"\",'1. Order'!B110)","v":""},{"$f":"IF('1. Order'!I110=\"\",\"\",'1. Order'!I110)","v":""},{"$f":"IF('1. Order'!J110=\"\",\"\",'1. Order'!J110)","v":""},{"$f":"IF('1. Order'!K110=\"\",\"\",'1. Order'!K110)","v":""},{"$f":"IF('1. Order'!M110=\"\",\"\",'1. Order'!M110)","v":""},null,null,{"$f":"IF('1. Order'!AR110=\"\",\"\",'1. Order'!AR110)","v":""},{"$f":"IF('1. Order'!AE110=\"\",\"\",'1. Order'!AE110)","v":""}]
[{"$f":"IF('1. Order'!B111=\"\",\"\",'1. Order'!B111)","v":""},{"$f":"IF('1. Order'!I111=\"\",\"\",'1. Order'!I111)","v":""},{"$f":"IF('1. Order'!J111=\"\",\"\",'1. Order'!J111)","v":""},{"$f":"IF('1. Order'!K111=\"\",\"\",'1. Order'!K111)","v":""},{"$f":"IF('1. Order'!M111=\"\",\"\",'1. Order'!M111)","v":""},null,null,{"$f":"IF('1. Order'!AR111=\"\",\"\",'1. Order'!AR111)","v":""},{"$f":"IF('1. Order'!AE111=\"\",\"\",'1. Order'!AE111)","v":""}]
[{"$f":"IF('1. Order'!B112=\"\",\"\",'1. Order'!B112)","v":""},{"$f":"IF('1. Order'!I112=\"\",\"\",'1. Order'!I112)","v":""},{"$f":"IF('1. Order'!J112=\"\",\"\",'1. Order'!J112)","v":""},{"$f":"IF('1. Order'!K112=\"\",\"\",'1. Order'!K112)","v":""},{"$f":"IF('1. Order'!M112=\"\",\"\",'1. Order'!M112)","v":""},null,null,{"$f":"IF('1. Order'!AR112=\"\",\"\",'1. Order'!AR112)","v":""},{"$f":"IF('1. Order'!AE112=\"\",\"\",'1. Order'!AE112)","v":""}]
[{"$f":"IF('1. Order'!B113=\"\",\"\",'1. Order'!B113)","v":""},{"$f":"IF('1. Order'!I113=\"\",\"\",'1. Order'!I113)","v":""},{"$f":"IF('1. Order'!J113=\"\",\"\",'1. Order'!J113)","v":""},{"$f":"IF('1. Order'!K113=\"\",\"\",'1. Order'!K113)","v":""},{"$f":"IF('1. Order'!M113=\"\",\"\",'1. Order'!M113)","v":""},null,null,{"$f":"IF('1. Order'!AR113=\"\",\"\",'1. Order'!AR113)","v":""},{"$f":"IF('1. Order'!AE113=\"\",\"\",'1. Order'!AE113)","v":""}]
[{"$f":"IF('1. Order'!B114=\"\",\"\",'1. Order'!B114)","v":""},{"$f":"IF('1. Order'!I114=\"\",\"\",'1. Order'!I114)","v":""},{"$f":"IF('1. Order'!J114=\"\",\"\",'1. Order'!J114)","v":""},{"$f":"IF('1. Order'!K114=\"\",\"\",'1. Order'!K114)","v":""},{"$f":"IF('1. Order'!M114=\"\",\"\",'1. Order'!M114)","v":""},null,null,{"$f":"IF('1. Order'!AR114=\"\",\"\",'1. Order'!AR114)","v":""},{"$f":"IF('1. Order'!AE114=\"\",\"\",'1. Order'!AE114)","v":""}]
[{"$f":"IF('1. Order'!B115=\"\",\"\",'1. Order'!B115)","v":""},{"$f":"IF('1. Order'!I115=\"\",\"\",'1. Order'!I115)","v":""},{"$f":"IF('1. Order'!J115=\"\",\"\",'1. Order'!J115)","v":""},{"$f":"IF('1. Order'!K115=\"\",\"\",'1. Order'!K115)","v":""},{"$f":"IF('1. Order'!M115=\"\",\"\",'1. Order'!M115)","v":""},null,null,{"$f":"IF('1. Order'!AR115=\"\",\"\",'1. Order'!AR115)","v":""},{"$f":"IF('1. Order'!AE115=\"\",\"\",'1. Order'!AE115)","v":""}]
[{"$f":"IF('1. Order'!B116=\"\",\"\",'1. Order'!B116)","v":""},{"$f":"IF('1. Order'!I116=\"\",\"\",'1. Order'!I116)","v":""},{"$f":"IF('1. Order'!J116=\"\",\"\",'1. Order'!J116)","v":""},{"$f":"IF('1. Order'!K116=\"\",\"\",'1. Order'!K116)","v":""},{"$f":"IF('1. Order'!M116=\"\",\"\",'1. Order'!M116)","v":""},null,null,{"$f":"IF('1. Order'!AR116=\"\",\"\",'1. Order'!AR116)","v":""},{"$f":"IF('1. Order'!AE116=\"\",\"\",'1. Order'!AE116)","v":""}]
[{"$f":"IF('1. Order'!B117=\"\",\"\",'1. Order'!B117)","v":""},{"$f":"IF('1. Order'!I117=\"\",\"\",'1. Order'!I117)","v":""},{"$f":"IF('1. Order'!J117=\"\",\"\",'1. Order'!J117)","v":""},{"$f":"IF('1. Order'!K117=\"\",\"\",'1. Order'!K117)","v":""},{"$f":"IF('1. Order'!M117=\"\",\"\",'1. Order'!M117)","v":""},null,null,{"$f":"IF('1. Order'!AR117=\"\",\"\",'1. Order'!AR117)","v":""},{"$f":"IF('1. Order'!AE117=\"\",\"\",'1. Order'!AE117)","v":""}]
[{"$f":"IF('1. Order'!B118=\"\",\"\",'1. Order'!B118)","v":""},{"$f":"IF('1. Order'!I118=\"\",\"\",'1. Order'!I118)","v":""},{"$f":"IF('1. Order'!J118=\"\",\"\",'1. Order'!J118)","v":""},{"$f":"IF('1. Order'!K118=\"\",\"\",'1. Order'!K118)","v":""},{"$f":"IF('1. Order'!M118=\"\",\"\",'1. Order'!M118)","v":""},null,null,{"$f":"IF('1. Order'!AR118=\"\",\"\",'1. Order'!AR118)","v":""},{"$f":"IF('1. Order'!AE118=\"\",\"\",'1. Order'!AE118)","v":""}]
[{"$f":"IF('1. Order'!B119=\"\",\"\",'1. Order'!B119)","v":""},{"$f":"IF('1. Order'!I119=\"\",\"\",'1. Order'!I119)","v":""},{"$f":"IF('1. Order'!J119=\"\",\"\",'1. Order'!J119)","v":""},{"$f":"IF('1. Order'!K119=\"\",\"\",'1. Order'!K119)","v":""},{"$f":"IF('1. Order'!M119=\"\",\"\",'1. Order'!M119)","v":""},null,null,{"$f":"IF('1. Order'!AR119=\"\",\"\",'1. Order'!AR119)","v":""},{"$f":"IF('1. Order'!AE119=\"\",\"\",'1. Order'!AE119)","v":""}]
[{"$f":"IF('1. Order'!B120=\"\",\"\",'1. Order'!B120)","v":""},{"$f":"IF('1. Order'!I120=\"\",\"\",'1. Order'!I120)","v":""},{"$f":"IF('1. Order'!J120=\"\",\"\",'1. Order'!J120)","v":""},{"$f":"IF('1. Order'!K120=\"\",\"\",'1. Order'!K120)","v":""},{"$f":"IF('1. Order'!M120=\"\",\"\",'1. Order'!M120)","v":""},null,null,{"$f":"IF('1. Order'!AR120=\"\",\"\",'1. Order'!AR120)","v":""},{"$f":"IF('1. Order'!AE120=\"\",\"\",'1. Order'!AE120)","v":""}]
[{"$f":"IF('1. Order'!B121=\"\",\"\",'1. Order'!B121)","v":""},{"$f":"IF('1. Order'!I121=\"\",\"\",'1. Order'!I121)","v":""},{"$f":"IF('1. Order'!J121=\"\",\"\",'1. Order'!J121)","v":""},{"$f":"IF('1. Order'!K121=\"\",\"\",'1. Order'!K121)","v":""},{"$f":"IF('1. Order'!M121=\"\",\"\",'1. Order'!M121)","v":""},null,null,{"$f":"IF('1. Order'!AR121=\"\",\"\",'1. Order'!AR121)","v":""},{"$f":"IF('1. Order'!AE121=\"\",\"\",'1. Order'!AE121)","v":""}]
[{"$f":"IF('1. Order'!B122=\"\",\"\",'1. Order'!B122)","v":""},{"$f":"IF('1. Order'!I122=\"\",\"\",'1. Order'!I122)","v":""},{"$f":"IF('1. Order'!J122=\"\",\"\",'1. Order'!J122)","v":""},{"$f":"IF('1. Order'!K122=\"\",\"\",'1. Order'!K122)","v":""},{"$f":"IF('1. Order'!M122=\"\",\"\",'1. Order'!M122)","v":""},null,null,{"$f":"IF('1. Order'!AR122=\"\",\"\",'1. Order'!AR122)","v":""},{"$f":"IF('1. Order'!AE122=\"\",\"\",'1. Order'!AE122)","v":""}]
[{"$f":"IF('1. Order'!B123=\"\",\"\",'1. Order'!B123)","v":""},{"$f":"IF('1. Order'!I123=\"\",\"\",'1. Order'!I123)","v":""},{"$f":"IF('1. Order'!J123=\"\",\"\",'1. Order'!J123)","v":""},{"$f":"IF('1. Order'!K123=\"\",\"\",'1. Order'!K123)","v":""},{"$f":"IF('1. Order'!M123=\"\",\"\",'1. Order'!M123)","v":""},null,null,{"$f":"IF('1. Order'!AR123=\"\",\"\",'1. Order'!AR123)","v":""},{"$f":"IF('1. Order'!AE123=\"\",\"\",'1. Order'!AE123)","v":""}]
[{"$f":"IF('1. Order'!B124=\"\",\"\",'1. Order'!B124)","v":""},{"$f":"IF('1. Order'!I124=\"\",\"\",'1. Order'!I124)","v":""},{"$f":"IF('1. Order'!J124=\"\",\"\",'1. Order'!J124)","v":""},{"$f":"IF('1. Order'!K124=\"\",\"\",'1. Order'!K124)","v":""},{"$f":"IF('1. Order'!M124=\"\",\"\",'1. Order'!M124)","v":""},null,null,{"$f":"IF('1. Order'!AR124=\"\",\"\",'1. Order'!AR124)","v":""},{"$f":"IF('1. Order'!AE124=\"\",\"\",'1. Order'!AE124)","v":""}]
[{"$f":"IF('1. Order'!B125=\"\",\"\",'1. Order'!B125)","v":""},{"$f":"IF('1. Order'!I125=\"\",\"\",'1. Order'!I125)","v":""},{"$f":"IF('1. Order'!J125=\"\",\"\",'1. Order'!J125)","v":""},{"$f":"IF('1. Order'!K125=\"\",\"\",'1. Order'!K125)","v":""},{"$f":"IF('1. Order'!M125=\"\",\"\",'1. Order'!M125)","v":""},null,null,{"$f":"IF('1. Order'!AR125=\"\",\"\",'1. Order'!AR125)","v":""},{"$f":"IF('1. Order'!AE125=\"\",\"\",'1. Order'!AE125)","v":""}]
[{"$f":"IF('1. Order'!B126=\"\",\"\",'1. Order'!B126)","v":""},{"$f":"IF('1. Order'!I126=\"\",\"\",'1. Order'!I126)","v":""},{"$f":"IF('1. Order'!J126=\"\",\"\",'1. Order'!J126)","v":""},{"$f":"IF('1. Order'!K126=\"\",\"\",'1. Order'!K126)","v":""},{"$f":"IF('1. Order'!M126=\"\",\"\",'1. Order'!M126)","v":""},null,null,{"$f":"IF('1. Order'!AR126=\"\",\"\",'1. Order'!AR126)","v":""},{"$f":"IF('1. Order'!AE126=\"\",\"\",'1. Order'!AE126)","v":""}]
[{"$f":"IF('1. Order'!B127=\"\",\"\",'1. Order'!B127)","v":""},{"$f":"IF('1. Order'!I127=\"\",\"\",'1. Order'!I127)","v":""},{"$f":"IF('1. Order'!J127=\"\",\"\",'1. Order'!J127)","v":""},{"$f":"IF('1. Order'!K127=\"\",\"\",'1. Order'!K127)","v":""},{"$f":"IF('1. Order'!M127=\"\",\"\",'1. Order'!M127)","v":""},null,null,{"$f":"IF('1. Order'!AR127=\"\",\"\",'1. Order'!AR127)","v":""},{"$f":"IF('1. Order'!AE127=\"\",\"\",'1. Order'!AE127)","v":""}]
[{"$f":"IF('1. Order'!B128=\"\",\"\",'1. Order'!B128)","v":""},{"$f":"IF('1. Order'!I128=\"\",\"\",'1. Order'!I128)","v":""},{"$f":"IF('1. Order'!J128=\"\",\"\",'1. Order'!J128)","v":""},{"$f":"IF('1. Order'!K128=\"\",\"\",'1. Order'!K128)","v":""},{"$f":"IF('1. Order'!M128=\"\",\"\",'1. Order'!M128)","v":""},null,null,{"$f":"IF('1. Order'!AR128=\"\",\"\",'1. Order'!AR128)","v":""},{"$f":"IF('1. Order'!AE128=\"\",\"\",'1. Order'!AE128)","v":""}]
[{"$f":"IF('1. Order'!B129=\"\",\"\",'1. Order'!B129)","v":""},{"$f":"IF('1. Order'!I129=\"\",\"\",'1. Order'!I129)","v":""},{"$f":"IF('1. Order'!J129=\"\",\"\",'1. Order'!J129)","v":""},{"$f":"IF('1. Order'!K129=\"\",\"\",'1. Order'!K129)","v":""},{"$f":"IF('1. Order'!M129=\"\",\"\",'1. Order'!M129)","v":""},null,null,{"$f":"IF('1. Order'!AR129=\"\",\"\",'1. Order'!AR129)","v":""},{"$f":"IF('1. Order'!AE129=\"\",\"\",'1. Order'!AE129)","v":""}]
[{"$f":"IF('1. Order'!B130=\"\",\"\",'1. Order'!B130)","v":""},{"$f":"IF('1. Order'!I130=\"\",\"\",'1. Order'!I130)","v":""},{"$f":"IF('1. Order'!J130=\"\",\"\",'1. Order'!J130)","v":""},{"$f":"IF('1. Order'!K130=\"\",\"\",'1. Order'!K130)","v":""},{"$f":"IF('1. Order'!M130=\"\",\"\",'1. Order'!M130)","v":""},null,null,{"$f":"IF('1. Order'!AR130=\"\",\"\",'1. Order'!AR130)","v":""},{"$f":"IF('1. Order'!AE130=\"\",\"\",'1. Order'!AE130)","v":""}]
[{"$f":"IF('1. Order'!B131=\"\",\"\",'1. Order'!B131)","v":""},{"$f":"IF('1. Order'!I131=\"\",\"\",'1. Order'!I131)","v":""},{"$f":"IF('1. Order'!J131=\"\",\"\",'1. Order'!J131)","v":""},{"$f":"IF('1. Order'!K131=\"\",\"\",'1. Order'!K131)","v":""},{"$f":"IF('1. Order'!M131=\"\",\"\",'1. Order'!M131)","v":""},null,null,{"$f":"IF('1. Order'!AR131=\"\",\"\",'1. Order'!AR131)","v":""},{"$f":"IF('1. Order'!AE131=\"\",\"\",'1. Order'!AE131)","v":""}]
[{"$f":"IF('1. Order'!B132=\"\",\"\",'1. Order'!B132)","v":""},{"$f":"IF('1. Order'!I132=\"\",\"\",'1. Order'!I132)","v":""},{"$f":"IF('1. Order'!J132=\"\",\"\",'1. Order'!J132)","v":""},{"$f":"IF('1. Order'!K132=\"\",\"\",'1. Order'!K132)","v":""},{"$f":"IF('1. Order'!M132=\"\",\"\",'1. Order'!M132)","v":""},null,null,{"$f":"IF('1. Order'!AR132=\"\",\"\",'1. Order'!AR132)","v":""},{"$f":"IF('1. Order'!AE132=\"\",\"\",'1. Order'!AE132)","v":""}]
[{"$f":"IF('1. Order'!B133=\"\",\"\",'1. Order'!B133)","v":""},{"$f":"IF('1. Order'!I133=\"\",\"\",'1. Order'!I133)","v":""},{"$f":"IF('1. Order'!J133=\"\",\"\",'1. Order'!J133)","v":""},{"$f":"IF('1. Order'!K133=\"\",\"\",'1. Order'!K133)","v":""},{"$f":"IF('1. Order'!M133=\"\",\"\",'1. Order'!M133)","v":""},null,null,{"$f":"IF('1. Order'!AR133=\"\",\"\",'1. Order'!AR133)","v":""},{"$f":"IF('1. Order'!AE133=\"\",\"\",'1. Order'!AE133)","v":""}]
[{"$f":"IF('1. Order'!B134=\"\",\"\",'1. Order'!B134)","v":""},{"$f":"IF('1. Order'!I134=\"\",\"\",'1. Order'!I134)","v":""},{"$f":"IF('1. Order'!J134=\"\",\"\",'1. Order'!J134)","v":""},{"$f":"IF('1. Order'!K134=\"\",\"\",'1. Order'!K134)","v":""},{"$f":"IF('1. Order'!M134=\"\",\"\",'1. Order'!M134)","v":""},null,null,{"$f":"IF('1. Order'!AR134=\"\",\"\",'1. Order'!AR134)","v":""},{"$f":"IF('1. Order'!AE134=\"\",\"\",'1. Order'!AE134)","v":""}]
[{"$f":"IF('1. Order'!B135=\"\",\"\",'1. Order'!B135)","v":""},{"$f":"IF('1. Order'!I135=\"\",\"\",'1. Order'!I135)","v":""},{"$f":"IF('1. Order'!J135=\"\",\"\",'1. Order'!J135)","v":""},{"$f":"IF('1. Order'!K135=\"\",\"\",'1. Order'!K135)","v":""},{"$f":"IF('1. Order'!M135=\"\",\"\",'1. Order'!M135)","v":""},null,null,{"$f":"IF('1. Order'!AR135=\"\",\"\",'1. Order'!AR135)","v":""},{"$f":"IF('1. Order'!AE135=\"\",\"\",'1. Order'!AE135)","v":""}]
[{"$f":"IF('1. Order'!B136=\"\",\"\",'1. Order'!B136)","v":""},{"$f":"IF('1. Order'!I136=\"\",\"\",'1. Order'!I136)","v":""},{"$f":"IF('1. Order'!J136=\"\",\"\",'1. Order'!J136)","v":""},{"$f":"IF('1. Order'!K136=\"\",\"\",'1. Order'!K136)","v":""},{"$f":"IF('1. Order'!M136=\"\",\"\",'1. Order'!M136)","v":""},null,null,{"$f":"IF('1. Order'!AR136=\"\",\"\",'1. Order'!AR136)","v":""},{"$f":"IF('1. Order'!AE136=\"\",\"\",'1. Order'!AE136)","v":""}]
[{"$f":"IF('1. Order'!B137=\"\",\"\",'1. Order'!B137)","v":""},{"$f":"IF('1. Order'!I137=\"\",\"\",'1. Order'!I137)","v":""},{"$f":"IF('1. Order'!J137=\"\",\"\",'1. Order'!J137)","v":""},{"$f":"IF('1. Order'!K137=\"\",\"\",'1. Order'!K137)","v":""},{"$f":"IF('1. Order'!M137=\"\",\"\",'1. Order'!M137)","v":""},null,null,{"$f":"IF('1. Order'!AR137=\"\",\"\",'1. Order'!AR137)","v":""},{"$f":"IF('1. Order'!AE137=\"\",\"\",'1. Order'!AE137)","v":""}]
[{"$f":"IF('1. Order'!B138=\"\",\"\",'1. Order'!B138)","v":""},{"$f":"IF('1. Order'!I138=\"\",\"\",'1. Order'!I138)","v":""},{"$f":"IF('1. Order'!J138=\"\",\"\",'1. Order'!J138)","v":""},{"$f":"IF('1. Order'!K138=\"\",\"\",'1. Order'!K138)","v":""},{"$f":"IF('1. Order'!M138=\"\",\"\",'1. Order'!M138)","v":""},null,null,{"$f":"IF('1. Order'!AR138=\"\",\"\",'1. Order'!AR138)","v":""},{"$f":"IF('1. Order'!AE138=\"\",\"\",'1. Order'!AE138)","v":""}]
[{"$f":"IF('1. Order'!B139=\"\",\"\",'1. Order'!B139)","v":""},{"$f":"IF('1. Order'!I139=\"\",\"\",'1. Order'!I139)","v":""},{"$f":"IF('1. Order'!J139=\"\",\"\",'1. Order'!J139)","v":""},{"$f":"IF('1. Order'!K139=\"\",\"\",'1. Order'!K139)","v":""},{"$f":"IF('1. Order'!M139=\"\",\"\",'1. Order'!M139)","v":""},null,null,{"$f":"IF('1. Order'!AR139=\"\",\"\",'1. Order'!AR139)","v":""},{"$f":"IF('1. Order'!AE139=\"\",\"\",'1. Order'!AE139)","v":""}]
[{"$f":"IF('1. Order'!B140=\"\",\"\",'1. Order'!B140)","v":""},{"$f":"IF('1. Order'!I140=\"\",\"\",'1. Order'!I140)","v":""},{"$f":"IF('1. Order'!J140=\"\",\"\",'1. Order'!J140)","v":""},{"$f":"IF('1. Order'!K140=\"\",\"\",'1. Order'!K140)","v":""},{"$f":"IF('1. Order'!M140=\"\",\"\",'1. Order'!M140)","v":""},null,null,{"$f":"IF('1. Order'!AR140=\"\",\"\",'1. Order'!AR140)","v":""},{"$f":"IF('1. Order'!AE140=\"\",\"\",'1. Order'!AE140)","v":""}]
[{"$f":"IF('1. Order'!B141=\"\",\"\",'1. Order'!B141)","v":""},{"$f":"IF('1. Order'!I141=\"\",\"\",'1. Order'!I141)","v":""},{"$f":"IF('1. Order'!J141=\"\",\"\",'1. Order'!J141)","v":""},{"$f":"IF('1. Order'!K141=\"\",\"\",'1. Order'!K141)","v":""},{"$f":"IF('1. Order'!M141=\"\",\"\",'1. Order'!M141)","v":""},null,null,{"$f":"IF('1. Order'!AR141=\"\",\"\",'1. Order'!AR141)","v":""},{"$f":"IF('1. Order'!AE141=\"\",\"\",'1. Order'!AE141)","v":""}]
[{"$f":"IF('1. Order'!B142=\"\",\"\",'1. Order'!B142)","v":""},{"$f":"IF('1. Order'!I142=\"\",\"\",'1. Order'!I142)","v":""},{"$f":"IF('1. Order'!J142=\"\",\"\",'1. Order'!J142)","v":""},{"$f":"IF('1. Order'!K142=\"\",\"\",'1. Order'!K142)","v":""},{"$f":"IF('1. Order'!M142=\"\",\"\",'1. Order'!M142)","v":""},null,null,{"$f":"IF('1. Order'!AR142=\"\",\"\",'1. Order'!AR142)","v":""},{"$f":"IF('1. Order'!AE142=\"\",\"\",'1. Order'!AE142)","v":""}]
[{"$f":"IF('1. Order'!B143=\"\",\"\",'1. Order'!B143)","v":""},{"$f":"IF('1. Order'!I143=\"\",\"\",'1. Order'!I143)","v":""},{"$f":"IF('1. Order'!J143=\"\",\"\",'1. Order'!J143)","v":""},{"$f":"IF('1. Order'!K143=\"\",\"\",'1. Order'!K143)","v":""},{"$f":"IF('1. Order'!M143=\"\",\"\",'1. Order'!M143)","v":""},null,null,{"$f":"IF('1. Order'!AR143=\"\",\"\",'1. Order'!AR143)","v":""},{"$f":"IF('1. Order'!AE143=\"\",\"\",'1. Order'!AE143)","v":""}]
[{"$f":"IF('1. Order'!B144=\"\",\"\",'1. Order'!B144)","v":""},{"$f":"IF('1. Order'!I144=\"\",\"\",'1. Order'!I144)","v":""},{"$f":"IF('1. Order'!J144=\"\",\"\",'1. Order'!J144)","v":""},{"$f":"IF('1. Order'!K144=\"\",\"\",'1. Order'!K144)","v":""},{"$f":"IF('1. Order'!M144=\"\",\"\",'1. Order'!M144)","v":""},null,null,{"$f":"IF('1. Order'!AR144=\"\",\"\",'1. Order'!AR144)","v":""},{"$f":"IF('1. Order'!AE144=\"\",\"\",'1. Order'!AE144)","v":""}]
[{"$f":"IF('1. Order'!B145=\"\",\"\",'1. Order'!B145)","v":""},{"$f":"IF('1. Order'!I145=\"\",\"\",'1. Order'!I145)","v":""},{"$f":"IF('1. Order'!J145=\"\",\"\",'1. Order'!J145)","v":""},{"$f":"IF('1. Order'!K145=\"\",\"\",'1. Order'!K145)","v":""},{"$f":"IF('1. Order'!M145=\"\",\"\",'1. Order'!M145)","v":""},null,null,{"$f":"IF('1. Order'!AR145=\"\",\"\",'1. Order'!AR145)","v":""},{"$f":"IF('1. Order'!AE145=\"\",\"\",'1. Order'!AE145)","v":""}]
[{"$f":"IF('1. Order'!B146=\"\",\"\",'1. Order'!B146)","v":""},{"$f":"IF('1. Order'!I146=\"\",\"\",'1. Order'!I146)","v":""},{"$f":"IF('1. Order'!J146=\"\",\"\",'1. Order'!J146)","v":""},{"$f":"IF('1. Order'!K146=\"\",\"\",'1. Order'!K146)","v":""},{"$f":"IF('1. Order'!M146=\"\",\"\",'1. Order'!M146)","v":""},null,null,{"$f":"IF('1. Order'!AR146=\"\",\"\",'1. Order'!AR146)","v":""},{"$f":"IF('1. Order'!AE146=\"\",\"\",'1. Order'!AE146)","v":""}]
[{"$f":"IF('1. Order'!B147=\"\",\"\",'1. Order'!B147)","v":""},{"$f":"IF('1. Order'!I147=\"\",\"\",'1. Order'!I147)","v":""},{"$f":"IF('1. Order'!J147=\"\",\"\",'1. Order'!J147)","v":""},{"$f":"IF('1. Order'!K147=\"\",\"\",'1. Order'!K147)","v":""},{"$f":"IF('1. Order'!M147=\"\",\"\",'1. Order'!M147)","v":""},null,null,{"$f":"IF('1. Order'!AR147=\"\",\"\",'1. Order'!AR147)","v":""},{"$f":"IF('1. Order'!AE147=\"\",\"\",'1. Order'!AE147)","v":""}]
[{"$f":"IF('1. Order'!B148=\"\",\"\",'1. Order'!B148)","v":""},{"$f":"IF('1. Order'!I148=\"\",\"\",'1. Order'!I148)","v":""},{"$f":"IF('1. Order'!J148=\"\",\"\",'1. Order'!J148)","v":""},{"$f":"IF('1. Order'!K148=\"\",\"\",'1. Order'!K148)","v":""},{"$f":"IF('1. Order'!M148=\"\",\"\",'1. Order'!M148)","v":""},null,null,{"$f":"IF('1. Order'!AR148=\"\",\"\",'1. Order'!AR148)","v":""},{"$f":"IF('1. Order'!AE148=\"\",\"\",'1. Order'!AE148)","v":""}]
[{"$f":"IF('1. Order'!B149=\"\",\"\",'1. Order'!B149)","v":""},{"$f":"IF('1. Order'!I149=\"\",\"\",'1. Order'!I149)","v":""},{"$f":"IF('1. Order'!J149=\"\",\"\",'1. Order'!J149)","v":""},{"$f":"IF('1. Order'!K149=\"\",\"\",'1. Order'!K149)","v":""},{"$f":"IF('1. Order'!M149=\"\",\"\",'1. Order'!M149)","v":""},null,null,{"$f":"IF('1. Order'!AR149=\"\",\"\",'1. Order'!AR149)","v":""},{"$f":"IF('1. Order'!AE149=\"\",\"\",'1. Order'!AE149)","v":""}]
[{"$f":"IF('1. Order'!B150=\"\",\"\",'1. Order'!B150)","v":""},{"$f":"IF('1. Order'!I150=\"\",\"\",'1. Order'!I150)","v":""},{"$f":"IF('1. Order'!J150=\"\",\"\",'1. Order'!J150)","v":""},{"$f":"IF('1. Order'!K150=\"\",\"\",'1. Order'!K150)","v":""},{"$f":"IF('1. Order'!M150=\"\",\"\",'1. Order'!M150)","v":""},null,null,{"$f":"IF('1. Order'!AR150=\"\",\"\",'1. Order'!AR150)","v":""},{"$f":"IF('1. Order'!AE150=\"\",\"\",'1. Order'!AE150)","v":""}]
[{"$f":"IF('1. Order'!B151=\"\",\"\",'1. Order'!B151)","v":""},{"$f":"IF('1. Order'!I151=\"\",\"\",'1. Order'!I151)","v":""},{"$f":"IF('1. Order'!J151=\"\",\"\",'1. Order'!J151)","v":""},{"$f":"IF('1. Order'!K151=\"\",\"\",'1. Order'!K151)","v":""},{"$f":"IF('1. Order'!M151=\"\",\"\",'1. Order'!M151)","v":""},null,null,{"$f":"IF('1. Order'!AR151=\"\",\"\",'1. Order'!AR151)","v":""},{"$f":"IF('1. Order'!AE151=\"\",\"\",'1. Order'!AE151)","v":""}]
[{"$f":"IF('1. Order'!B152=\"\",\"\",'1. Order'!B152)","v":""},{"$f":"IF('1. Order'!I152=\"\",\"\",'1. Order'!I152)","v":""},{"$f":"IF('1. Order'!J152=\"\",\"\",'1. Order'!J152)","v":""},{"$f":"IF('1. Order'!K152=\"\",\"\",'1. Order'!K152)","v":""},{"$f":"IF('1. Order'!M152=\"\",\"\",'1. Order'!M152)","v":""},null,null,{"$f":"IF('1. Order'!AR152=\"\",\"\",'1. Order'!AR152)","v":""},{"$f":"IF('1. Order'!AE152=\"\",\"\",'1. Order'!AE152)","v":""}]
[{"$f":"IF('1. Order'!B153=\"\",\"\",'1. Order'!B153)","v":""},{"$f":"IF('1. Order'!I153=\"\",\"\",'1. Order'!I153)","v":""},{"$f":"IF('1. Order'!J153=\"\",\"\",'1. Order'!J153)","v":""},{"$f":"IF('1. Order'!K153=\"\",\"\",'1. Order'!K153)","v":""},{"$f":"IF('1. Order'!M153=\"\",\"\",'1. Order'!M153)","v":""},null,null,{"$f":"IF('1. Order'!AR153=\"\",\"\",'1. Order'!AR153)","v":""},{"$f":"IF('1. Order'!AE153=\"\",\"\",'1. Order'!AE153)","v":""}]
[{"$f":"IF('1. Order'!B154=\"\",\"\",'1. Order'!B154)","v":""},{"$f":"IF('1. Order'!I154=\"\",\"\",'1. Order'!I154)","v":""},{"$f":"IF('1. Order'!J154=\"\",\"\",'1. Order'!J154)","v":""},{"$f":"IF('1. Order'!K154=\"\",\"\",'1. Order'!K154)","v":""},{"$f":"IF('1. Order'!M154=\"\",\"\",'1. Order'!M154)","v":""},null,null,{"$f":"IF('1. Order'!AR154=\"\",\"\",'1. Order'!AR154)","v":""},{"$f":"IF('1. Order'!AE154=\"\",\"\",'1. Order'!AE154)","v":""}]
[{"$f":"IF('1. Order'!B155=\"\",\"\",'1. Order'!B155)","v":""},{"$f":"IF('1. Order'!I155=\"\",\"\",'1. Order'!I155)","v":""},{"$f":"IF('1. Order'!J155=\"\",\"\",'1. Order'!J155)","v":""},{"$f":"IF('1. Order'!K155=\"\",\"\",'1. Order'!K155)","v":""},{"$f":"IF('1. Order'!M155=\"\",\"\",'1. Order'!M155)","v":""},null,null,{"$f":"IF('1. Order'!AR155=\"\",\"\",'1. Order'!AR155)","v":""},{"$f":"IF('1. Order'!AE155=\"\",\"\",'1. Order'!AE155)","v":""}]
[{"$f":"IF('1. Order'!B156=\"\",\"\",'1. Order'!B156)","v":""},{"$f":"IF('1. Order'!I156=\"\",\"\",'1. Order'!I156)","v":""},{"$f":"IF('1. Order'!J156=\"\",\"\",'1. Order'!J156)","v":""},{"$f":"IF('1. Order'!K156=\"\",\"\",'1. Order'!K156)","v":""},{"$f":"IF('1. Order'!M156=\"\",\"\",'1. Order'!M156)","v":""},null,null,{"$f":"IF('1. Order'!AR156=\"\",\"\",'1. Order'!AR156)","v":""},{"$f":"IF('1. Order'!AE156=\"\",\"\",'1. Order'!AE156)","v":""}]
[{"$f":"IF('1. Order'!B157=\"\",\"\",'1. Order'!B157)","v":""},{"$f":"IF('1. Order'!I157=\"\",\"\",'1. Order'!I157)","v":""},{"$f":"IF('1. Order'!J157=\"\",\"\",'1. Order'!J157)","v":""},{"$f":"IF('1. Order'!K157=\"\",\"\",'1. Order'!K157)","v":""},{"$f":"IF('1. Order'!M157=\"\",\"\",'1. Order'!M157)","v":""},null,null,{"$f":"IF('1. Order'!AR157=\"\",\"\",'1. Order'!AR157)","v":""},{"$f":"IF('1. Order'!AE157=\"\",\"\",'1. Order'!AE157)","v":""}]
[{"$f":"IF('1. Order'!B158=\"\",\"\",'1. Order'!B158)","v":""},{"$f":"IF('1. Order'!I158=\"\",\"\",'1. Order'!I158)","v":""},{"$f":"IF('1. Order'!J158=\"\",\"\",'1. Order'!J158)","v":""},{"$f":"IF('1. Order'!K158=\"\",\"\",'1. Order'!K158)","v":""},{"$f":"IF('1. Order'!M158=\"\",\"\",'1. Order'!M158)","v":""},null,null,{"$f":"IF('1. Order'!AR158=\"\",\"\",'1. Order'!AR158)","v":""},{"$f":"IF('1. Order'!AE158=\"\",\"\",'1. Order'!AE158)","v":""}]
[{"$f":"IF('1. Order'!B159=\"\",\"\",'1. Order'!B159)","v":""},{"$f":"IF('1. Order'!I159=\"\",\"\",'1. Order'!I159)","v":""},{"$f":"IF('1. Order'!J159=\"\",\"\",'1. Order'!J159)","v":""},{"$f":"IF('1. Order'!K159=\"\",\"\",'1. Order'!K159)","v":""},{"$f":"IF('1. Order'!M159=\"\",\"\",'1. Order'!M159)","v":""},null,null,{"$f":"IF('1. Order'!AR159=\"\",\"\",'1. Order'!AR159)","v":""},{"$f":"IF('1. Order'!AE159=\"\",\"\",'1. Order'!AE159)","v":""}]
[{"$f":"IF('1. Order'!B160=\"\",\"\",'1. Order'!B160)","v":""},{"$f":"IF('1. Order'!I160=\"\",\"\",'1. Order'!I160)","v":""},{"$f":"IF('1. Order'!J160=\"\",\"\",'1. Order'!J160)","v":""},{"$f":"IF('1. Order'!K160=\"\",\"\",'1. Order'!K160)","v":""},{"$f":"IF('1. Order'!M160=\"\",\"\",'1. Order'!M160)","v":""},null,null,{"$f":"IF('1. Order'!AR160=\"\",\"\",'1. Order'!AR160)","v":""},{"$f":"IF('1. Order'!AE160=\"\",\"\",'1. Order'!AE160)","v":""}]
[{"$f":"IF('1. Order'!B161=\"\",\"\",'1. Order'!B161)","v":""},{"$f":"IF('1. Order'!I161=\"\",\"\",'1. Order'!I161)","v":""},{"$f":"IF('1. Order'!J161=\"\",\"\",'1. Order'!J161)","v":""},{"$f":"IF('1. Order'!K161=\"\",\"\",'1. Order'!K161)","v":""},{"$f":"IF('1. Order'!M161=\"\",\"\",'1. Order'!M161)","v":""},null,null,{"$f":"IF('1. Order'!AR161=\"\",\"\",'1. Order'!AR161)","v":""},{"$f":"IF('1. Order'!AE161=\"\",\"\",'1. Order'!AE161)","v":""}]
[{"$f":"IF('1. Order'!B162=\"\",\"\",'1. Order'!B162)","v":""},{"$f":"IF('1. Order'!I162=\"\",\"\",'1. Order'!I162)","v":""},{"$f":"IF('1. Order'!J162=\"\",\"\",'1. Order'!J162)","v":""},{"$f":"IF('1. Order'!K162=\"\",\"\",'1. Order'!K162)","v":""},{"$f":"IF('1. Order'!M162=\"\",\"\",'1. Order'!M162)","v":""},null,null,{"$f":"IF('1. Order'!AR162=\"\",\"\",'1. Order'!AR162)","v":""},{"$f":"IF('1. Order'!AE162=\"\",\"\",'1. Order'!AE162)","v":""}]
[{"$f":"IF('1. Order'!B163=\"\",\"\",'1. Order'!B163)","v":""},{"$f":"IF('1. Order'!I163=\"\",\"\",'1. Order'!I163)","v":""},{"$f":"IF('1. Order'!J163=\"\",\"\",'1. Order'!J163)","v":""},{"$f":"IF('1. Order'!K163=\"\",\"\",'1. Order'!K163)","v":""},{"$f":"IF('1. Order'!M163=\"\",\"\",'1. Order'!M163)","v":""},null,null,{"$f":"IF('1. Order'!AR163=\"\",\"\",'1. Order'!AR163)","v":""},{"$f":"IF('1. Order'!AE163=\"\",\"\",'1. Order'!AE163)","v":""}]
[{"$f":"IF('1. Order'!B164=\"\",\"\",'1. Order'!B164)","v":""},{"$f":"IF('1. Order'!I164=\"\",\"\",'1. Order'!I164)","v":""},{"$f":"IF('1. Order'!J164=\"\",\"\",'1. Order'!J164)","v":""},{"$f":"IF('1. Order'!K164=\"\",\"\",'1. Order'!K164)","v":""},{"$f":"IF('1. Order'!M164=\"\",\"\",'1. Order'!M164)","v":""},null,null,{"$f":"IF('1. Order'!AR164=\"\",\"\",'1. Order'!AR164)","v":""},{"$f":"IF('1. Order'!AE164=\"\",\"\",'1. Order'!AE164)","v":""}]
[{"$f":"IF('1. Order'!B165=\"\",\"\",'1. Order'!B165)","v":""},{"$f":"IF('1. Order'!I165=\"\",\"\",'1. Order'!I165)","v":""},{"$f":"IF('1. Order'!J165=\"\",\"\",'1. Order'!J165)","v":""},{"$f":"IF('1. Order'!K165=\"\",\"\",'1. Order'!K165)","v":""},{"$f":"IF('1. Order'!M165=\"\",\"\",'1. Order'!M165)","v":""},null,null,{"$f":"IF('1. Order'!AR165=\"\",\"\",'1. Order'!AR165)","v":""},{"$f":"IF('1. Order'!AE165=\"\",\"\",'1. Order'!AE165)","v":""}]
[{"$f":"IF('1. Order'!B166=\"\",\"\",'1. Order'!B166)","v":""},{"$f":"IF('1. Order'!I166=\"\",\"\",'1. Order'!I166)","v":""},{"$f":"IF('1. Order'!J166=\"\",\"\",'1. Order'!J166)","v":""},{"$f":"IF('1. Order'!K166=\"\",\"\",'1. Order'!K166)","v":""},{"$f":"IF('1. Order'!M166=\"\",\"\",'1. Order'!M166)","v":""},null,null,{"$f":"IF('1. Order'!AR166=\"\",\"\",'1. Order'!AR166)","v":""},{"$f":"IF('1. Order'!AE166=\"\",\"\",'1. Order'!AE166)","v":""}]
[{"$f":"IF('1. Order'!B167=\"\",\"\",'1. Order'!B167)","v":""},{"$f":"IF('1. Order'!I167=\"\",\"\",'1. Order'!I167)","v":""},{"$f":"IF('1. Order'!J167=\"\",\"\",'1. Order'!J167)","v":""},{"$f":"IF('1. Order'!K167=\"\",\"\",'1. Order'!K167)","v":""},{"$f":"IF('1. Order'!M167=\"\",\"\",'1. Order'!M167)","v":""},null,null,{"$f":"IF('1. Order'!AR167=\"\",\"\",'1. Order'!AR167)","v":""},{"$f":"IF('1. Order'!AE167=\"\",\"\",'1. Order'!AE167)","v":""}]
[{"$f":"IF('1. Order'!B168=\"\",\"\",'1. Order'!B168)","v":""},{"$f":"IF('1. Order'!I168=\"\",\"\",'1. Order'!I168)","v":""},{"$f":"IF('1. Order'!J168=\"\",\"\",'1. Order'!J168)","v":""},{"$f":"IF('1. Order'!K168=\"\",\"\",'1. Order'!K168)","v":""},{"$f":"IF('1. Order'!M168=\"\",\"\",'1. Order'!M168)","v":""},null,null,{"$f":"IF('1. Order'!AR168=\"\",\"\",'1. Order'!AR168)","v":""},{"$f":"IF('1. Order'!AE168=\"\",\"\",'1. Order'!AE168)","v":""}]
[{"$f":"IF('1. Order'!B169=\"\",\"\",'1. Order'!B169)","v":""},{"$f":"IF('1. Order'!I169=\"\",\"\",'1. Order'!I169)","v":""},{"$f":"IF('1. Order'!J169=\"\",\"\",'1. Order'!J169)","v":""},{"$f":"IF('1. Order'!K169=\"\",\"\",'1. Order'!K169)","v":""},{"$f":"IF('1. Order'!M169=\"\",\"\",'1. Order'!M169)","v":""},null,null,{"$f":"IF('1. Order'!AR169=\"\",\"\",'1. Order'!AR169)","v":""},{"$f":"IF('1. Order'!AE169=\"\",\"\",'1. Order'!AE169)","v":""}]
[{"$f":"IF('1. Order'!B170=\"\",\"\",'1. Order'!B170)","v":""},{"$f":"IF('1. Order'!I170=\"\",\"\",'1. Order'!I170)","v":""},{"$f":"IF('1. Order'!J170=\"\",\"\",'1. Order'!J170)","v":""},{"$f":"IF('1. Order'!K170=\"\",\"\",'1. Order'!K170)","v":""},{"$f":"IF('1. Order'!M170=\"\",\"\",'1. Order'!M170)","v":""},null,null,{"$f":"IF('1. Order'!AR170=\"\",\"\",'1. Order'!AR170)","v":""},{"$f":"IF('1. Order'!AE170=\"\",\"\",'1. Order'!AE170)","v":""}]
[{"$f":"IF('1. Order'!B171=\"\",\"\",'1. Order'!B171)","v":""},{"$f":"IF('1. Order'!I171=\"\",\"\",'1. Order'!I171)","v":""},{"$f":"IF('1. Order'!J171=\"\",\"\",'1. Order'!J171)","v":""},{"$f":"IF('1. Order'!K171=\"\",\"\",'1. Order'!K171)","v":""},{"$f":"IF('1. Order'!M171=\"\",\"\",'1. Order'!M171)","v":""},null,null,{"$f":"IF('1. Order'!AR171=\"\",\"\",'1. Order'!AR171)","v":""},{"$f":"IF('1. Order'!AE171=\"\",\"\",'1. Order'!AE171)","v":""}]
[{"$f":"IF('1. Order'!B172=\"\",\"\",'1. Order'!B172)","v":""},{"$f":"IF('1. Order'!I172=\"\",\"\",'1. Order'!I172)","v":""},{"$f":"IF('1. Order'!J172=\"\",\"\",'1. Order'!J172)","v":""},{"$f":"IF('1. Order'!K172=\"\",\"\",'1. Order'!K172)","v":""},{"$f":"IF('1. Order'!M172=\"\",\"\",'1. Order'!M172)","v":""},null,null,{"$f":"IF('1. Order'!AR172=\"\",\"\",'1. Order'!AR172)","v":""},{"$f":"IF('1. Order'!AE172=\"\",\"\",'1. Order'!AE172)","v":""}]
[{"$f":"IF('1. Order'!B173=\"\",\"\",'1. Order'!B173)","v":""},{"$f":"IF('1. Order'!I173=\"\",\"\",'1. Order'!I173)","v":""},{"$f":"IF('1. Order'!J173=\"\",\"\",'1. Order'!J173)","v":""},{"$f":"IF('1. Order'!K173=\"\",\"\",'1. Order'!K173)","v":""},{"$f":"IF('1. Order'!M173=\"\",\"\",'1. Order'!M173)","v":""},null,null,{"$f":"IF('1. Order'!AR173=\"\",\"\",'1. Order'!AR173)","v":""},{"$f":"IF('1. Order'!AE173=\"\",\"\",'1. Order'!AE173)","v":""}]
[{"$f":"IF('1. Order'!B174=\"\",\"\",'1. Order'!B174)","v":""},{"$f":"IF('1. Order'!I174=\"\",\"\",'1. Order'!I174)","v":""},{"$f":"IF('1. Order'!J174=\"\",\"\",'1. Order'!J174)","v":""},{"$f":"IF('1. Order'!K174=\"\",\"\",'1. Order'!K174)","v":""},{"$f":"IF('1. Order'!M174=\"\",\"\",'1. Order'!M174)","v":""},null,null,{"$f":"IF('1. Order'!AR174=\"\",\"\",'1. Order'!AR174)","v":""},{"$f":"IF('1. Order'!AE174=\"\",\"\",'1. Order'!AE174)","v":""}]
[{"$f":"IF('1. Order'!B175=\"\",\"\",'1. Order'!B175)","v":""},{"$f":"IF('1. Order'!I175=\"\",\"\",'1. Order'!I175)","v":""},{"$f":"IF('1. Order'!J175=\"\",\"\",'1. Order'!J175)","v":""},{"$f":"IF('1. Order'!K175=\"\",\"\",'1. Order'!K175)","v":""},{"$f":"IF('1. Order'!M175=\"\",\"\",'1. Order'!M175)","v":""},null,null,{"$f":"IF('1. Order'!AR175=\"\",\"\",'1. Order'!AR175)","v":""},{"$f":"IF('1. Order'!AE175=\"\",\"\",'1. Order'!AE175)","v":""}]
[{"$f":"IF('1. Order'!B176=\"\",\"\",'1. Order'!B176)","v":""},{"$f":"IF('1. Order'!I176=\"\",\"\",'1. Order'!I176)","v":""},{"$f":"IF('1. Order'!J176=\"\",\"\",'1. Order'!J176)","v":""},{"$f":"IF('1. Order'!K176=\"\",\"\",'1. Order'!K176)","v":""},{"$f":"IF('1. Order'!M176=\"\",\"\",'1. Order'!M176)","v":""},null,null,{"$f":"IF('1. Order'!AR176=\"\",\"\",'1. Order'!AR176)","v":""},{"$f":"IF('1. Order'!AE176=\"\",\"\",'1. Order'!AE176)","v":""}]
[{"$f":"IF('1. Order'!B177=\"\",\"\",'1. Order'!B177)","v":""},{"$f":"IF('1. Order'!I177=\"\",\"\",'1. Order'!I177)","v":""},{"$f":"IF('1. Order'!J177=\"\",\"\",'1. Order'!J177)","v":""},{"$f":"IF('1. Order'!K177=\"\",\"\",'1. Order'!K177)","v":""},{"$f":"IF('1. Order'!M177=\"\",\"\",'1. Order'!M177)","v":""},null,null,{"$f":"IF('1. Order'!AR177=\"\",\"\",'1. Order'!AR177)","v":""},{"$f":"IF('1. Order'!AE177=\"\",\"\",'1. Order'!AE177)","v":""}]
[{"$f":"IF('1. Order'!B178=\"\",\"\",'1. Order'!B178)","v":""},{"$f":"IF('1. Order'!I178=\"\",\"\",'1. Order'!I178)","v":""},{"$f":"IF('1. Order'!J178=\"\",\"\",'1. Order'!J178)","v":""},{"$f":"IF('1. Order'!K178=\"\",\"\",'1. Order'!K178)","v":""},{"$f":"IF('1. Order'!M178=\"\",\"\",'1. Order'!M178)","v":""},null,null,{"$f":"IF('1. Order'!AR178=\"\",\"\",'1. Order'!AR178)","v":""},{"$f":"IF('1. Order'!AE178=\"\",\"\",'1. Order'!AE178)","v":""}]
[{"$f":"IF('1. Order'!B179=\"\",\"\",'1. Order'!B179)","v":""},{"$f":"IF('1. Order'!I179=\"\",\"\",'1. Order'!I179)","v":""},{"$f":"IF('1. Order'!J179=\"\",\"\",'1. Order'!J179)","v":""},{"$f":"IF('1. Order'!K179=\"\",\"\",'1. Order'!K179)","v":""},{"$f":"IF('1. Order'!M179=\"\",\"\",'1. Order'!M179)","v":""},null,null,{"$f":"IF('1. Order'!AR179=\"\",\"\",'1. Order'!AR179)","v":""},{"$f":"IF('1. Order'!AE179=\"\",\"\",'1. Order'!AE179)","v":""}]
[{"$f":"IF('1. Order'!B180=\"\",\"\",'1. Order'!B180)","v":""},{"$f":"IF('1. Order'!I180=\"\",\"\",'1. Order'!I180)","v":""},{"$f":"IF('1. Order'!J180=\"\",\"\",'1. Order'!J180)","v":""},{"$f":"IF('1. Order'!K180=\"\",\"\",'1. Order'!K180)","v":""},{"$f":"IF('1. Order'!M180=\"\",\"\",'1. Order'!M180)","v":""},null,null,{"$f":"IF('1. Order'!AR180=\"\",\"\",'1. Order'!AR180)","v":""},{"$f":"IF('1. Order'!AE180=\"\",\"\",'1. Order'!AE180)","v":""}]
[{"$f":"IF('1. Order'!B181=\"\",\"\",'1. Order'!B181)","v":""},{"$f":"IF('1. Order'!I181=\"\",\"\",'1. Order'!I181)","v":""},{"$f":"IF('1. Order'!J181=\"\",\"\",'1. Order'!J181)","v":""},{"$f":"IF('1. Order'!K181=\"\",\"\",'1. Order'!K181)","v":""},{"$f":"IF('1. Order'!M181=\"\",\"\",'1. Order'!M181)","v":""},null,null,{"$f":"IF('1. Order'!AR181=\"\",\"\",'1. Order'!AR181)","v":""},{"$f":"IF('1. Order'!AE181=\"\",\"\",'1. Order'!AE181)","v":""}]
[{"$f":"IF('1. Order'!B182=\"\",\"\",'1. Order'!B182)","v":""},{"$f":"IF('1. Order'!I182=\"\",\"\",'1. Order'!I182)","v":""},{"$f":"IF('1. Order'!J182=\"\",\"\",'1. Order'!J182)","v":""},{"$f":"IF('1. Order'!K182=\"\",\"\",'1. Order'!K182)","v":""},{"$f":"IF('1. Order'!M182=\"\",\"\",'1. Order'!M182)","v":""},null,null,{"$f":"IF('1. Order'!AR182=\"\",\"\",'1. Order'!AR182)","v":""},{"$f":"IF('1. Order'!AE182=\"\",\"\",'1. Order'!AE182)","v":""}]
[{"$f":"IF('1. Order'!B183=\"\",\"\",'1. Order'!B183)","v":""},{"$f":"IF('1. Order'!I183=\"\",\"\",'1. Order'!I183)","v":""},{"$f":"IF('1. Order'!J183=\"\",\"\",'1. Order'!J183)","v":""},{"$f":"IF('1. Order'!K183=\"\",\"\",'1. Order'!K183)","v":""},{"$f":"IF('1. Order'!M183=\"\",\"\",'1. Order'!M183)","v":""},null,null,{"$f":"IF('1. Order'!AR183=\"\",\"\",'1. Order'!AR183)","v":""},{"$f":"IF('1. Order'!AE183=\"\",\"\",'1. Order'!AE183)","v":""}]
[{"$f":"IF('1. Order'!B184=\"\",\"\",'1. Order'!B184)","v":""},{"$f":"IF('1. Order'!I184=\"\",\"\",'1. Order'!I184)","v":""},{"$f":"IF('1. Order'!J184=\"\",\"\",'1. Order'!J184)","v":""},{"$f":"IF('1. Order'!K184=\"\",\"\",'1. Order'!K184)","v":""},{"$f":"IF('1. Order'!M184=\"\",\"\",'1. Order'!M184)","v":""},null,null,{"$f":"IF('1. Order'!AR184=\"\",\"\",'1. Order'!AR184)","v":""},{"$f":"IF('1. Order'!AE184=\"\",\"\",'1. Order'!AE184)","v":""}]
[{"$f":"IF('1. Order'!B185=\"\",\"\",'1. Order'!B185)","v":""},{"$f":"IF('1. Order'!I185=\"\",\"\",'1. Order'!I185)","v":""},{"$f":"IF('1. Order'!J185=\"\",\"\",'1. Order'!J185)","v":""},{"$f":"IF('1. Order'!K185=\"\",\"\",'1. Order'!K185)","v":""},{"$f":"IF('1. Order'!M185=\"\",\"\",'1. Order'!M185)","v":""},null,null,{"$f":"IF('1. Order'!AR185=\"\",\"\",'1. Order'!AR185)","v":""},{"$f":"IF('1. Order'!AE185=\"\",\"\",'1. Order'!AE185)","v":""}]
[{"$f":"IF('1. Order'!B186=\"\",\"\",'1. Order'!B186)","v":""},{"$f":"IF('1. Order'!I186=\"\",\"\",'1. Order'!I186)","v":""},{"$f":"IF('1. Order'!J186=\"\",\"\",'1. Order'!J186)","v":""},{"$f":"IF('1. Order'!K186=\"\",\"\",'1. Order'!K186)","v":""},{"$f":"IF('1. Order'!M186=\"\",\"\",'1. Order'!M186)","v":""},null,null,{"$f":"IF('1. Order'!AR186=\"\",\"\",'1. Order'!AR186)","v":""},{"$f":"IF('1. Order'!AE186=\"\",\"\",'1. Order'!AE186)","v":""}]
[{"$f":"IF('1. Order'!B187=\"\",\"\",'1. Order'!B187)","v":""},{"$f":"IF('1. Order'!I187=\"\",\"\",'1. Order'!I187)","v":""},{"$f":"IF('1. Order'!J187=\"\",\"\",'1. Order'!J187)","v":""},{"$f":"IF('1. Order'!K187=\"\",\"\",'1. Order'!K187)","v":""},{"$f":"IF('1. Order'!M187=\"\",\"\",'1. Order'!M187)","v":""},null,null,{"$f":"IF('1. Order'!AR187=\"\",\"\",'1. Order'!AR187)","v":""},{"$f":"IF('1. Order'!AE187=\"\",\"\",'1. Order'!AE187)","v":""}]
[{"$f":"IF('1. Order'!B188=\"\",\"\",'1. Order'!B188)","v":""},{"$f":"IF('1. Order'!I188=\"\",\"\",'1. Order'!I188)","v":""},{"$f":"IF('1. Order'!J188=\"\",\"\",'1. Order'!J188)","v":""},{"$f":"IF('1. Order'!K188=\"\",\"\",'1. Order'!K188)","v":""},{"$f":"IF('1. Order'!M188=\"\",\"\",'1. Order'!M188)","v":""},null,null,{"$f":"IF('1. Order'!AR188=\"\",\"\",'1. Order'!AR188)","v":""},{"$f":"IF('1. Order'!AE188=\"\",\"\",'1. Order'!AE188)","v":""}]
[{"$f":"IF('1. Order'!B189=\"\",\"\",'1. Order'!B189)","v":""},{"$f":"IF('1. Order'!I189=\"\",\"\",'1. Order'!I189)","v":""},{"$f":"IF('1. Order'!J189=\"\",\"\",'1. Order'!J189)","v":""},{"$f":"IF('1. Order'!K189=\"\",\"\",'1. Order'!K189)","v":""},{"$f":"IF('1. Order'!M189=\"\",\"\",'1. Order'!M189)","v":""},null,null,{"$f":"IF('1. Order'!AR189=\"\",\"\",'1. Order'!AR189)","v":""},{"$f":"IF('1. Order'!AE189=\"\",\"\",'1. Order'!AE189)","v":""}]
[{"$f":"IF('1. Order'!B190=\"\",\"\",'1. Order'!B190)","v":""},{"$f":"IF('1. Order'!I190=\"\",\"\",'1. Order'!I190)","v":""},{"$f":"IF('1. Order'!J190=\"\",\"\",'1. Order'!J190)","v":""},{"$f":"IF('1. Order'!K190=\"\",\"\",'1. Order'!K190)","v":""},{"$f":"IF('1. Order'!M190=\"\",\"\",'1. Order'!M190)","v":""},null,null,{"$f":"IF('1. Order'!AR190=\"\",\"\",'1. Order'!AR190)","v":""},{"$f":"IF('1. Order'!AE190=\"\",\"\",'1. Order'!AE190)","v":""}]
[{"$f":"IF('1. Order'!B191=\"\",\"\",'1. Order'!B191)","v":""},{"$f":"IF('1. Order'!I191=\"\",\"\",'1. Order'!I191)","v":""},{"$f":"IF('1. Order'!J191=\"\",\"\",'1. Order'!J191)","v":""},{"$f":"IF('1. Order'!K191=\"\",\"\",'1. Order'!K191)","v":""},{"$f":"IF('1. Order'!M191=\"\",\"\",'1. Order'!M191)","v":""},null,null,{"$f":"IF('1. Order'!AR191=\"\",\"\",'1. Order'!AR191)","v":""},{"$f":"IF('1. Order'!AE191=\"\",\"\",'1. Order'!AE191)","v":""}]
[{"$f":"IF('1. Order'!B192=\"\",\"\",'1. Order'!B192)","v":""},{"$f":"IF('1. Order'!I192=\"\",\"\",'1. Order'!I192)","v":""},{"$f":"IF('1. Order'!J192=\"\",\"\",'1. Order'!J192)","v":""},{"$f":"IF('1. Order'!K192=\"\",\"\",'1. Order'!K192)","v":""},{"$f":"IF('1. Order'!M192=\"\",\"\",'1. Order'!M192)","v":""},null,null,{"$f":"IF('1. Order'!AR192=\"\",\"\",'1. Order'!AR192)","v":""},{"$f":"IF('1. Order'!AE192=\"\",\"\",'1. Order'!AE192)","v":""}]
[{"$f":"IF('1. Order'!B193=\"\",\"\",'1. Order'!B193)","v":""},{"$f":"IF('1. Order'!I193=\"\",\"\",'1. Order'!I193)","v":""},{"$f":"IF('1. Order'!J193=\"\",\"\",'1. Order'!J193)","v":""},{"$f":"IF('1. Order'!K193=\"\",\"\",'1. Order'!K193)","v":""},{"$f":"IF('1. Order'!M193=\"\",\"\",'1. Order'!M193)","v":""},null,null,{"$f":"IF('1. Order'!AR193=\"\",\"\",'1. Order'!AR193)","v":""},{"$f":"IF('1. Order'!AE193=\"\",\"\",'1. Order'!AE193)","v":""}]
[{"$f":"IF('1. Order'!B194=\"\",\"\",'1. Order'!B194)","v":""},{"$f":"IF('1. Order'!I194=\"\",\"\",'1. Order'!I194)","v":""},{"$f":"IF('1. Order'!J194=\"\",\"\",'1. Order'!J194)","v":""},{"$f":"IF('1. Order'!K194=\"\",\"\",'1. Order'!K194)","v":""},{"$f":"IF('1. Order'!M194=\"\",\"\",'1. Order'!M194)","v":""},null,null,{"$f":"IF('1. Order'!AR194=\"\",\"\",'1. Order'!AR194)","v":""},{"$f":"IF('1. Order'!AE194=\"\",\"\",'1. Order'!AE194)","v":""}]
[{"$f":"IF('1. Order'!B195=\"\",\"\",'1. Order'!B195)","v":""},{"$f":"IF('1. Order'!I195=\"\",\"\",'1. Order'!I195)","v":""},{"$f":"IF('1. Order'!J195=\"\",\"\",'1. Order'!J195)","v":""},{"$f":"IF('1. Order'!K195=\"\",\"\",'1. Order'!K195)","v":""},{"$f":"IF('1. Order'!M195=\"\",\"\",'1. Order'!M195)","v":""},null,null,{"$f":"IF('1. Order'!AR195=\"\",\"\",'1. Order'!AR195)","v":""},{"$f":"IF('1. Order'!AE195=\"\",\"\",'1. Order'!AE195)","v":""}]
[{"$f":"IF('1. Order'!B196=\"\",\"\",'1. Order'!B196)","v":""},{"$f":"IF('1. Order'!I196=\"\",\"\",'1. Order'!I196)","v":""},{"$f":"IF('1. Order'!J196=\"\",\"\",'1. Order'!J196)","v":""},{"$f":"IF('1. Order'!K196=\"\",\"\",'1. Order'!K196)","v":""},{"$f":"IF('1. Order'!M196=\"\",\"\",'1. Order'!M196)","v":""},null,null,{"$f":"IF('1. Order'!AR196=\"\",\"\",'1. Order'!AR196)","v":""},{"$f":"IF('1. Order'!AE196=\"\",\"\",'1. Order'!AE196)","v":""}]
[{"$f":"IF('1. Order'!B197=\"\",\"\",'1. Order'!B197)","v":""},{"$f":"IF('1. Order'!I197=\"\",\"\",'1. Order'!I197)","v":""},{"$f":"IF('1. Order'!J197=\"\",\"\",'1. Order'!J197)","v":""},{"$f":"IF('1. Order'!K197=\"\",\"\",'1. Order'!K197)","v":""},{"$f":"IF('1. Order'!M197=\"\",\"\",'1. Order'!M197)","v":""},null,null,{"$f":"IF('1. Order'!AR197=\"\",\"\",'1. Order'!AR197)","v":""},{"$f":"IF('1. Order'!AE197=\"\",\"\",'1. Order'!AE197)","v":""}]
[{"$f":"IF('1. Order'!B198=\"\",\"\",'1. Order'!B198)","v":""},{"$f":"IF('1. Order'!I198=\"\",\"\",'1. Order'!I198)","v":""},{"$f":"IF('1. Order'!J198=\"\",\"\",'1. Order'!J198)","v":""},{"$f":"IF('1. Order'!K198=\"\",\"\",'1. Order'!K198)","v":""},{"$f":"IF('1. Order'!M198=\"\",\"\",'1. Order'!M198)","v":""},null,null,{"$f":"IF('1. Order'!AR198=\"\",\"\",'1. Order'!AR198)","v":""},{"$f":"IF('1. Order'!AE198=\"\",\"\",'1. Order'!AE198)","v":""}]
[{"$f":"IF('1. Order'!B199=\"\",\"\",'1. Order'!B199)","v":""},{"$f":"IF('1. Order'!I199=\"\",\"\",'1. Order'!I199)","v":""},{"$f":"IF('1. Order'!J199=\"\",\"\",'1. Order'!J199)","v":""},{"$f":"IF('1. Order'!K199=\"\",\"\",'1. Order'!K199)","v":""},{"$f":"IF('1. Order'!M199=\"\",\"\",'1. Order'!M199)","v":""},null,null,{"$f":"IF('1. Order'!AR199=\"\",\"\",'1. Order'!AR199)","v":""},{"$f":"IF('1. Order'!AE199=\"\",\"\",'1. Order'!AE199)","v":""}]
[{"$f":"IF('1. Order'!B200=\"\",\"\",'1. Order'!B200)","v":""},{"$f":"IF('1. Order'!I200=\"\",\"\",'1. Order'!I200)","v":""},{"$f":"IF('1. Order'!J200=\"\",\"\",'1. Order'!J200)","v":""},{"$f":"IF('1. Order'!K200=\"\",\"\",'1. Order'!K200)","v":""},{"$f":"IF('1. Order'!M200=\"\",\"\",'1. Order'!M200)","v":""},null,null,{"$f":"IF('1. Order'!AR200=\"\",\"\",'1. Order'!AR200)","v":""},{"$f":"IF('1. Order'!AE200=\"\",\"\",'1. Order'!AE200)","v":""}]
[{"$f":"IF('1. Order'!B201=\"\",\"\",'1. Order'!B201)","v":""},{"$f":"IF('1. Order'!I201=\"\",\"\",'1. Order'!I201)","v":""},{"$f":"IF('1. Order'!J201=\"\",\"\",'1. Order'!J201)","v":""},{"$f":"IF('1. Order'!K201=\"\",\"\",'1. Order'!K201)","v":""},{"$f":"IF('1. Order'!M201=\"\",\"\",'1. Order'!M201)","v":""},null,null,{"$f":"IF('1. Order'!AR201=\"\",\"\",'1. Order'!AR201)","v":""},{"$f":"IF('1. Order'!AE201=\"\",\"\",'1. Order'!AE201)","v":""}]
[{"$f":"IF('1. Order'!B202=\"\",\"\",'1. Order'!B202)","v":""},{"$f":"IF('1. Order'!I202=\"\",\"\",'1. Order'!I202)","v":""},{"$f":"IF('1. Order'!J202=\"\",\"\",'1. Order'!J202)","v":""},{"$f":"IF('1. Order'!K202=\"\",\"\",'1. Order'!K202)","v":""},{"$f":"IF('1. Order'!M202=\"\",\"\",'1. Order'!M202)","v":""},null,null,{"$f":"IF('1. Order'!AR202=\"\",\"\",'1. Order'!AR202)","v":""},{"$f":"IF('1. Order'!AE202=\"\",\"\",'1. Order'!AE202)","v":""}]
[{"$f":"IF('1. Order'!B203=\"\",\"\",'1. Order'!B203)","v":""},{"$f":"IF('1. Order'!I203=\"\",\"\",'1. Order'!I203)","v":""},{"$f":"IF('1. Order'!J203=\"\",\"\",'1. Order'!J203)","v":""},{"$f":"IF('1. Order'!K203=\"\",\"\",'1. Order'!K203)","v":""},{"$f":"IF('1. Order'!M203=\"\",\"\",'1. Order'!M203)","v":""},null,null,{"$f":"IF('1. Order'!AR203=\"\",\"\",'1. Order'!AR203)","v":""},{"$f":"IF('1. Order'!AE203=\"\",\"\",'1. Order'!AE203)","v":""}]
[{"$f":"IF('1. Order'!B204=\"\",\"\",'1. Order'!B204)","v":""},{"$f":"IF('1. Order'!I204=\"\",\"\",'1. Order'!I204)","v":""},{"$f":"IF('1. Order'!J204=\"\",\"\",'1. Order'!J204)","v":""},{"$f":"IF('1. Order'!K204=\"\",\"\",'1. Order'!K204)","v":""},{"$f":"IF('1. Order'!M204=\"\",\"\",'1. Order'!M204)","v":""},null,null,{"$f":"IF('1. Order'!AR204=\"\",\"\",'1. Order'!AR204)","v":""},{"$f":"IF('1. Order'!AE204=\"\",\"\",'1. Order'!AE204)","v":""}]
[{"$f":"IF('1. Order'!B205=\"\",\"\",'1. Order'!B205)","v":""},{"$f":"IF('1. Order'!I205=\"\",\"\",'1. Order'!I205)","v":""},{"$f":"IF('1. Order'!J205=\"\",\"\",'1. Order'!J205)","v":""},{"$f":"IF('1. Order'!K205=\"\",\"\",'1. Order'!K205)","v":""},{"$f":"IF('1. Order'!M205=\"\",\"\",'1. Order'!M205)","v":""},null,null,{"$f":"IF('1. Order'!AR205=\"\",\"\",'1. Order'!AR205)","v":""},{"$f":"IF('1. Order'!AE205=\"\",\"\",'1. Order'!AE205)","v":""}]
[{"$f":"IF('1. Order'!B206=\"\",\"\",'1. Order'!B206)","v":""},{"$f":"IF('1. Order'!I206=\"\",\"\",'1. Order'!I206)","v":""},{"$f":"IF('1. Order'!J206=\"\",\"\",'1. Order'!J206)","v":""},{"$f":"IF('1. Order'!K206=\"\",\"\",'1. Order'!K206)","v":""},{"$f":"IF('1. Order'!M206=\"\",\"\",'1. Order'!M206)","v":""},null,null,{"$f":"IF('1. Order'!AR206=\"\",\"\",'1. Order'!AR206)","v":""},{"$f":"IF('1. Order'!AE206=\"\",\"\",'1. Order'!AE206)","v":""}]
[{"$f":"IF('1. Order'!B207=\"\",\"\",'1. Order'!B207)","v":""},{"$f":"IF('1. Order'!I207=\"\",\"\",'1. Order'!I207)","v":""},{"$f":"IF('1. Order'!J207=\"\",\"\",'1. Order'!J207)","v":""},{"$f":"IF('1. Order'!K207=\"\",\"\",'1. Order'!K207)","v":""},{"$f":"IF('1. Order'!M207=\"\",\"\",'1. Order'!M207)","v":""},null,null,{"$f":"IF('1. Order'!AR207=\"\",\"\",'1. Order'!AR207)","v":""},{"$f":"IF('1. Order'!AE207=\"\",\"\",'1. Order'!AE207)","v":""}]
[{"$f":"IF('1. Order'!B208=\"\",\"\",'1. Order'!B208)","v":""},{"$f":"IF('1. Order'!I208=\"\",\"\",'1. Order'!I208)","v":""},{"$f":"IF('1. Order'!J208=\"\",\"\",'1. Order'!J208)","v":""},{"$f":"IF('1. Order'!K208=\"\",\"\",'1. Order'!K208)","v":""},{"$f":"IF('1. Order'!M208=\"\",\"\",'1. Order'!M208)","v":""},null,null,{"$f":"IF('1. Order'!AR208=\"\",\"\",'1. Order'!AR208)","v":""},{"$f":"IF('1. Order'!AE208=\"\",\"\",'1. Order'!AE208)","v":""}]
[{"$f":"IF('1. Order'!B209=\"\",\"\",'1. Order'!B209)","v":""},{"$f":"IF('1. Order'!I209=\"\",\"\",'1. Order'!I209)","v":""},{"$f":"IF('1. Order'!J209=\"\",\"\",'1. Order'!J209)","v":""},{"$f":"IF('1. Order'!K209=\"\",\"\",'1. Order'!K209)","v":""},{"$f":"IF('1. Order'!M209=\"\",\"\",'1. Order'!M209)","v":""},null,null,{"$f":"IF('1. Order'!AR209=\"\",\"\",'1. Order'!AR209)","v":""},{"$f":"IF('1. Order'!AE209=\"\",\"\",'1. Order'!AE209)","v":""}]
[{"$f":"IF('1. Order'!B210=\"\",\"\",'1. Order'!B210)","v":""},{"$f":"IF('1. Order'!I210=\"\",\"\",'1. Order'!I210)","v":""},{"$f":"IF('1. Order'!J210=\"\",\"\",'1. Order'!J210)","v":""},{"$f":"IF('1. Order'!K210=\"\",\"\",'1. Order'!K210)","v":""},{"$f":"IF('1. Order'!M210=\"\",\"\",'1. Order'!M210)","v":""},null,null,{"$f":"IF('1. Order'!AR210=\"\",\"\",'1. Order'!AR210)","v":""},{"$f":"IF('1. Order'!AE210=\"\",\"\",'1. Order'!AE210)","v":""}]
[{"$f":"IF('1. Order'!B211=\"\",\"\",'1. Order'!B211)","v":""},{"$f":"IF('1. Order'!I211=\"\",\"\",'1. Order'!I211)","v":""},{"$f":"IF('1. Order'!J211=\"\",\"\",'1. Order'!J211)","v":""},{"$f":"IF('1. Order'!K211=\"\",\"\",'1. Order'!K211)","v":""},{"$f":"IF('1. Order'!M211=\"\",\"\",'1. Order'!M211)","v":""},null,null,{"$f":"IF('1. Order'!AR211=\"\",\"\",'1. Order'!AR211)","v":""},{"$f":"IF('1. Order'!AE211=\"\",\"\",'1. Order'!AE211)","v":""}]
[{"$f":"IF('1. Order'!B212=\"\",\"\",'1. Order'!B212)","v":""},{"$f":"IF('1. Order'!I212=\"\",\"\",'1. Order'!I212)","v":""},{"$f":"IF('1. Order'!J212=\"\",\"\",'1. Order'!J212)","v":""},{"$f":"IF('1. Order'!K212=\"\",\"\",'1. Order'!K212)","v":""},{"$f":"IF('1. Order'!M212=\"\",\"\",'1. Order'!M212)","v":""},null,null,{"$f":"IF('1. Order'!AR212=\"\",\"\",'1. Order'!AR212)","v":""},{"$f":"IF('1. Order'!AE212=\"\",\"\",'1. Order'!AE212)","v":""}]
[{"$f":"IF('1. Order'!B213=\"\",\"\",'1. Order'!B213)","v":""},{"$f":"IF('1. Order'!I213=\"\",\"\",'1. Order'!I213)","v":""},{"$f":"IF('1. Order'!J213=\"\",\"\",'1. Order'!J213)","v":""},{"$f":"IF('1. Order'!K213=\"\",\"\",'1. Order'!K213)","v":""},{"$f":"IF('1. Order'!M213=\"\",\"\",'1. Order'!M213)","v":""},null,null,{"$f":"IF('1. Order'!AR213=\"\",\"\",'1. Order'!AR213)","v":""},{"$f":"IF('1. Order'!AE213=\"\",\"\",'1. Order'!AE213)","v":""}]
[{"$f":"IF('1. Order'!B214=\"\",\"\",'1. Order'!B214)","v":""},{"$f":"IF('1. Order'!I214=\"\",\"\",'1. Order'!I214)","v":""},{"$f":"IF('1. Order'!J214=\"\",\"\",'1. Order'!J214)","v":""},{"$f":"IF('1. Order'!K214=\"\",\"\",'1. Order'!K214)","v":""},{"$f":"IF('1. Order'!M214=\"\",\"\",'1. Order'!M214)","v":""},null,null,{"$f":"IF('1. Order'!AR214=\"\",\"\",'1. Order'!AR214)","v":""},{"$f":"IF('1. Order'!AE214=\"\",\"\",'1. Order'!AE214)","v":""}]
[{"$f":"IF('1. Order'!B215=\"\",\"\",'1. Order'!B215)","v":""},{"$f":"IF('1. Order'!I215=\"\",\"\",'1. Order'!I215)","v":""},{"$f":"IF('1. Order'!J215=\"\",\"\",'1. Order'!J215)","v":""},{"$f":"IF('1. Order'!K215=\"\",\"\",'1. Order'!K215)","v":""},{"$f":"IF('1. Order'!M215=\"\",\"\",'1. Order'!M215)","v":""},null,null,{"$f":"IF('1. Order'!AR215=\"\",\"\",'1. Order'!AR215)","v":""},{"$f":"IF('1. Order'!AE215=\"\",\"\",'1. Order'!AE215)","v":""}]
[{"$f":"IF('1. Order'!B216=\"\",\"\",'1. Order'!B216)","v":""},{"$f":"IF('1. Order'!I216=\"\",\"\",'1. Order'!I216)","v":""},{"$f":"IF('1. Order'!J216=\"\",\"\",'1. Order'!J216)","v":""},{"$f":"IF('1. Order'!K216=\"\",\"\",'1. Order'!K216)","v":""},{"$f":"IF('1. Order'!M216=\"\",\"\",'1. Order'!M216)","v":""},null,null,{"$f":"IF('1. Order'!AR216=\"\",\"\",'1. Order'!AR216)","v":""},{"$f":"IF('1. Order'!AE216=\"\",\"\",'1. Order'!AE216)","v":""}]
[{"$f":"IF('1. Order'!B217=\"\",\"\",'1. Order'!B217)","v":""},{"$f":"IF('1. Order'!I217=\"\",\"\",'1. Order'!I217)","v":""},{"$f":"IF('1. Order'!J217=\"\",\"\",'1. Order'!J217)","v":""},{"$f":"IF('1. Order'!K217=\"\",\"\",'1. Order'!K217)","v":""},{"$f":"IF('1. Order'!M217=\"\",\"\",'1. Order'!M217)","v":""},null,null,{"$f":"IF('1. Order'!AR217=\"\",\"\",'1. Order'!AR217)","v":""},{"$f":"IF('1. Order'!AE217=\"\",\"\",'1. Order'!AE217)","v":""}]
[{"$f":"IF('1. Order'!B218=\"\",\"\",'1. Order'!B218)","v":""},{"$f":"IF('1. Order'!I218=\"\",\"\",'1. Order'!I218)","v":""},{"$f":"IF('1. Order'!J218=\"\",\"\",'1. Order'!J218)","v":""},{"$f":"IF('1. Order'!K218=\"\",\"\",'1. Order'!K218)","v":""},{"$f":"IF('1. Order'!M218=\"\",\"\",'1. Order'!M218)","v":""},null,null,{"$f":"IF('1. Order'!AR218=\"\",\"\",'1. Order'!AR218)","v":""},{"$f":"IF('1. Order'!AE218=\"\",\"\",'1. Order'!AE218)","v":""}]
[{"$f":"IF('1. Order'!B219=\"\",\"\",'1. Order'!B219)","v":""},{"$f":"IF('1. Order'!I219=\"\",\"\",'1. Order'!I219)","v":""},{"$f":"IF('1. Order'!J219=\"\",\"\",'1. Order'!J219)","v":""},{"$f":"IF('1. Order'!K219=\"\",\"\",'1. Order'!K219)","v":""},{"$f":"IF('1. Order'!M219=\"\",\"\",'1. Order'!M219)","v":""},null,null,{"$f":"IF('1. Order'!AR219=\"\",\"\",'1. Order'!AR219)","v":""},{"$f":"IF('1. Order'!AE219=\"\",\"\",'1. Order'!AE219)","v":""}]
[{"$f":"IF('1. Order'!B220=\"\",\"\",'1. Order'!B220)","v":""},{"$f":"IF('1. Order'!I220=\"\",\"\",'1. Order'!I220)","v":""},{"$f":"IF('1. Order'!J220=\"\",\"\",'1. Order'!J220)","v":""},{"$f":"IF('1. Order'!K220=\"\",\"\",'1. Order'!K220)","v":""},{"$f":"IF('1. Order'!M220=\"\",\"\",'1. Order'!M220)","v":""},null,null,{"$f":"IF('1. Order'!AR220=\"\",\"\",'1. Order'!AR220)","v":""},{"$f":"IF('1. Order'!AE220=\"\",\"\",'1. Order'!AE220)","v":""}]
[{"$f":"IF('1. Order'!B221=\"\",\"\",'1. Order'!B221)","v":""},{"$f":"IF('1. Order'!I221=\"\",\"\",'1. Order'!I221)","v":""},{"$f":"IF('1. Order'!J221=\"\",\"\",'1. Order'!J221)","v":""},{"$f":"IF('1. Order'!K221=\"\",\"\",'1. Order'!K221)","v":""},{"$f":"IF('1. Order'!M221=\"\",\"\",'1. Order'!M221)","v":""},null,null,{"$f":"IF('1. Order'!AR221=\"\",\"\",'1. Order'!AR221)","v":""},{"$f":"IF('1. Order'!AE221=\"\",\"\",'1. Order'!AE221)","v":""}]
[{"$f":"IF('1. Order'!B222=\"\",\"\",'1. Order'!B222)","v":""},{"$f":"IF('1. Order'!I222=\"\",\"\",'1. Order'!I222)","v":""},{"$f":"IF('1. Order'!J222=\"\",\"\",'1. Order'!J222)","v":""},{"$f":"IF('1. Order'!K222=\"\",\"\",'1. Order'!K222)","v":""},{"$f":"IF('1. Order'!M222=\"\",\"\",'1. Order'!M222)","v":""},null,null,{"$f":"IF('1. Order'!AR222=\"\",\"\",'1. Order'!AR222)","v":""},{"$f":"IF('1. Order'!AE222=\"\",\"\",'1. Order'!AE222)","v":""}]
[{"$f":"IF('1. Order'!B223=\"\",\"\",'1. Order'!B223)","v":""},{"$f":"IF('1. Order'!I223=\"\",\"\",'1. Order'!I223)","v":""},{"$f":"IF('1. Order'!J223=\"\",\"\",'1. Order'!J223)","v":""},{"$f":"IF('1. Order'!K223=\"\",\"\",'1. Order'!K223)","v":""},{"$f":"IF('1. Order'!M223=\"\",\"\",'1. Order'!M223)","v":""},null,null,{"$f":"IF('1. Order'!AR223=\"\",\"\",'1. Order'!AR223)","v":""},{"$f":"IF('1. Order'!AE223=\"\",\"\",'1. Order'!AE223)","v":""}]
[{"$f":"IF('1. Order'!B224=\"\",\"\",'1. Order'!B224)","v":""},{"$f":"IF('1. Order'!I224=\"\",\"\",'1. Order'!I224)","v":""},{"$f":"IF('1. Order'!J224=\"\",\"\",'1. Order'!J224)","v":""},{"$f":"IF('1. Order'!K224=\"\",\"\",'1. Order'!K224)","v":""},{"$f":"IF('1. Order'!M224=\"\",\"\",'1. Order'!M224)","v":""},null,null,{"$f":"IF('1. Order'!AR224=\"\",\"\",'1. Order'!AR224)","v":""},{"$f":"IF('1. Order'!AE224=\"\",\"\",'1. Order'!AE224)","v":""}]
[{"$f":"IF('1. Order'!B225=\"\",\"\",'1. Order'!B225)","v":""},{"$f":"IF('1. Order'!I225=\"\",\"\",'1. Order'!I225)","v":""},{"$f":"IF('1. Order'!J225=\"\",\"\",'1. Order'!J225)","v":""},{"$f":"IF('1. Order'!K225=\"\",\"\",'1. Order'!K225)","v":""},{"$f":"IF('1. Order'!M225=\"\",\"\",'1. Order'!M225)","v":""},null,null,{"$f":"IF('1. Order'!AR225=\"\",\"\",'1. Order'!AR225)","v":""},{"$f":"IF('1. Order'!AE225=\"\",\"\",'1. Order'!AE225)","v":""}]
[{"$f":"IF('1. Order'!B226=\"\",\"\",'1. Order'!B226)","v":""},{"$f":"IF('1. Order'!I226=\"\",\"\",'1. Order'!I226)","v":""},{"$f":"IF('1. Order'!J226=\"\",\"\",'1. Order'!J226)","v":""},{"$f":"IF('1. Order'!K226=\"\",\"\",'1. Order'!K226)","v":""},{"$f":"IF('1. Order'!M226=\"\",\"\",'1. Order'!M226)","v":""},null,null,{"$f":"IF('1. Order'!AR226=\"\",\"\",'1. Order'!AR226)","v":""},{"$f":"IF('1. Order'!AE226=\"\",\"\",'1. Order'!AE226)","v":""}]
[{"$f":"IF('1. Order'!B227=\"\",\"\",'1. Order'!B227)","v":""},{"$f":"IF('1. Order'!I227=\"\",\"\",'1. Order'!I227)","v":""},{"$f":"IF('1. Order'!J227=\"\",\"\",'1. Order'!J227)","v":""},{"$f":"IF('1. Order'!K227=\"\",\"\",'1. Order'!K227)","v":""},{"$f":"IF('1. Order'!M227=\"\",\"\",'1. Order'!M227)","v":""},null,null,{"$f":"IF('1. Order'!AR227=\"\",\"\",'1. Order'!AR227)","v":""},{"$f":"IF('1. Order'!AE227=\"\",\"\",'1. Order'!AE227)","v":""}]
[{"$f":"IF('1. Order'!B228=\"\",\"\",'1. Order'!B228)","v":""},{"$f":"IF('1. Order'!I228=\"\",\"\",'1. Order'!I228)","v":""},{"$f":"IF('1. Order'!J228=\"\",\"\",'1. Order'!J228)","v":""},{"$f":"IF('1. Order'!K228=\"\",\"\",'1. Order'!K228)","v":""},{"$f":"IF('1. Order'!M228=\"\",\"\",'1. Order'!M228)","v":""},null,null,{"$f":"IF('1. Order'!AR228=\"\",\"\",'1. Order'!AR228)","v":""},{"$f":"IF('1. Order'!AE228=\"\",\"\",'1. Order'!AE228)","v":""}]
[{"$f":"IF('1. Order'!B229=\"\",\"\",'1. Order'!B229)","v":""},{"$f":"IF('1. Order'!I229=\"\",\"\",'1. Order'!I229)","v":""},{"$f":"IF('1. Order'!J229=\"\",\"\",'1. Order'!J229)","v":""},{"$f":"IF('1. Order'!K229=\"\",\"\",'1. Order'!K229)","v":""},{"$f":"IF('1. Order'!M229=\"\",\"\",'1. Order'!M229)","v":""},null,null,{"$f":"IF('1. Order'!AR229=\"\",\"\",'1. Order'!AR229)","v":""},{"$f":"IF('1. Order'!AE229=\"\",\"\",'1. Order'!AE229)","v":""}]
[{"$f":"IF('1. Order'!B230=\"\",\"\",'1. Order'!B230)","v":""},{"$f":"IF('1. Order'!I230=\"\",\"\",'1. Order'!I230)","v":""},{"$f":"IF('1. Order'!J230=\"\",\"\",'1. Order'!J230)","v":""},{"$f":"IF('1. Order'!K230=\"\",\"\",'1. Order'!K230)","v":""},{"$f":"IF('1. Order'!M230=\"\",\"\",'1. Order'!M230)","v":""},null,null,{"$f":"IF('1. Order'!AR230=\"\",\"\",'1. Order'!AR230)","v":""},{"$f":"IF('1. Order'!AE230=\"\",\"\",'1. Order'!AE230)","v":""}]
[{"$f":"IF('1. Order'!B231=\"\",\"\",'1. Order'!B231)","v":""},{"$f":"IF('1. Order'!I231=\"\",\"\",'1. Order'!I231)","v":""},{"$f":"IF('1. Order'!J231=\"\",\"\",'1. Order'!J231)","v":""},{"$f":"IF('1. Order'!K231=\"\",\"\",'1. Order'!K231)","v":""},{"$f":"IF('1. Order'!M231=\"\",\"\",'1. Order'!M231)","v":""},null,null,{"$f":"IF('1. Order'!AR231=\"\",\"\",'1. Order'!AR231)","v":""},{"$f":"IF('1. Order'!AE231=\"\",\"\",'1. Order'!AE231)","v":""}]
[{"$f":"IF('1. Order'!B232=\"\",\"\",'1. Order'!B232)","v":""},{"$f":"IF('1. Order'!I232=\"\",\"\",'1. Order'!I232)","v":""},{"$f":"IF('1. Order'!J232=\"\",\"\",'1. Order'!J232)","v":""},{"$f":"IF('1. Order'!K232=\"\",\"\",'1. Order'!K232)","v":""},{"$f":"IF('1. Order'!M232=\"\",\"\",'1. Order'!M232)","v":""},null,null,{"$f":"IF('1. Order'!AR232=\"\",\"\",'1. Order'!AR232)","v":""},{"$f":"IF('1. Order'!AE232=\"\",\"\",'1. Order'!AE232)","v":""}]
[{"$f":"IF('1. Order'!B233=\"\",\"\",'1. Order'!B233)","v":""},{"$f":"IF('1. Order'!I233=\"\",\"\",'1. Order'!I233)","v":""},{"$f":"IF('1. Order'!J233=\"\",\"\",'1. Order'!J233)","v":""},{"$f":"IF('1. Order'!K233=\"\",\"\",'1. Order'!K233)","v":""},{"$f":"IF('1. Order'!M233=\"\",\"\",'1. Order'!M233)","v":""},null,null,{"$f":"IF('1. Order'!AR233=\"\",\"\",'1. Order'!AR233)","v":""},{"$f":"IF('1. Order'!AE233=\"\",\"\",'1. Order'!AE233)","v":""}]
[{"$f":"IF('1. Order'!B234=\"\",\"\",'1. Order'!B234)","v":""},{"$f":"IF('1. Order'!I234=\"\",\"\",'1. Order'!I234)","v":""},{"$f":"IF('1. Order'!J234=\"\",\"\",'1. Order'!J234)","v":""},{"$f":"IF('1. Order'!K234=\"\",\"\",'1. Order'!K234)","v":""},{"$f":"IF('1. Order'!M234=\"\",\"\",'1. Order'!M234)","v":""},null,null,{"$f":"IF('1. Order'!AR234=\"\",\"\",'1. Order'!AR234)","v":""},{"$f":"IF('1. Order'!AE234=\"\",\"\",'1. Order'!AE234)","v":""}]
[{"$f":"IF('1. Order'!B235=\"\",\"\",'1. Order'!B235)","v":""},{"$f":"IF('1. Order'!I235=\"\",\"\",'1. Order'!I235)","v":""},{"$f":"IF('1. Order'!J235=\"\",\"\",'1. Order'!J235)","v":""},{"$f":"IF('1. Order'!K235=\"\",\"\",'1. Order'!K235)","v":""},{"$f":"IF('1. Order'!M235=\"\",\"\",'1. Order'!M235)","v":""},null,null,{"$f":"IF('1. Order'!AR235=\"\",\"\",'1. Order'!AR235)","v":""},{"$f":"IF('1. Order'!AE235=\"\",\"\",'1. Order'!AE235)","v":""}]
[{"$f":"IF('1. Order'!B236=\"\",\"\",'1. Order'!B236)","v":""},{"$f":"IF('1. Order'!I236=\"\",\"\",'1. Order'!I236)","v":""},{"$f":"IF('1. Order'!J236=\"\",\"\",'1. Order'!J236)","v":""},{"$f":"IF('1. Order'!K236=\"\",\"\",'1. Order'!K236)","v":""},{"$f":"IF('1. Order'!M236=\"\",\"\",'1. Order'!M236)","v":""},null,null,{"$f":"IF('1. Order'!AR236=\"\",\"\",'1. Order'!AR236)","v":""},{"$f":"IF('1. Order'!AE236=\"\",\"\",'1. Order'!AE236)","v":""}]
[{"$f":"IF('1. Order'!B237=\"\",\"\",'1. Order'!B237)","v":""},{"$f":"IF('1. Order'!I237=\"\",\"\",'1. Order'!I237)","v":""},{"$f":"IF('1. Order'!J237=\"\",\"\",'1. Order'!J237)","v":""},{"$f":"IF('1. Order'!K237=\"\",\"\",'1. Order'!K237)","v":""},{"$f":"IF('1. Order'!M237=\"\",\"\",'1. Order'!M237)","v":""},null,null,{"$f":"IF('1. Order'!AR237=\"\",\"\",'1. Order'!AR237)","v":""},{"$f":"IF('1. Order'!AE237=\"\",\"\",'1. Order'!AE237)","v":""}]
[{"$f":"IF('1. Order'!B238=\"\",\"\",'1. Order'!B238)","v":""},{"$f":"IF('1. Order'!I238=\"\",\"\",'1. Order'!I238)","v":""},{"$f":"IF('1. Order'!J238=\"\",\"\",'1. Order'!J238)","v":""},{"$f":"IF('1. Order'!K238=\"\",\"\",'1. Order'!K238)","v":""},{"$f":"IF('1. Order'!M238=\"\",\"\",'1. Order'!M238)","v":""},null,null,{"$f":"IF('1. Order'!AR238=\"\",\"\",'1. Order'!AR238)","v":""},{"$f":"IF('1. Order'!AE238=\"\",\"\",'1. Order'!AE238)","v":""}]
[{"$f":"IF('1. Order'!B239=\"\",\"\",'1. Order'!B239)","v":""},{"$f":"IF('1. Order'!I239=\"\",\"\",'1. Order'!I239)","v":""},{"$f":"IF('1. Order'!J239=\"\",\"\",'1. Order'!J239)","v":""},{"$f":"IF('1. Order'!K239=\"\",\"\",'1. Order'!K239)","v":""},{"$f":"IF('1. Order'!M239=\"\",\"\",'1. Order'!M239)","v":""},null,null,{"$f":"IF('1. Order'!AR239=\"\",\"\",'1. Order'!AR239)","v":""},{"$f":"IF('1. Order'!AE239=\"\",\"\",'1. Order'!AE239)","v":""}]
[{"$f":"IF('1. Order'!B240=\"\",\"\",'1. Order'!B240)","v":""},{"$f":"IF('1. Order'!I240=\"\",\"\",'1. Order'!I240)","v":""},{"$f":"IF('1. Order'!J240=\"\",\"\",'1. Order'!J240)","v":""},{"$f":"IF('1. Order'!K240=\"\",\"\",'1. Order'!K240)","v":""},{"$f":"IF('1. Order'!M240=\"\",\"\",'1. Order'!M240)","v":""},null,null,{"$f":"IF('1. Order'!AR240=\"\",\"\",'1. Order'!AR240)","v":""},{"$f":"IF('1. Order'!AE240=\"\",\"\",'1. Order'!AE240)","v":""}]
[{"$f":"IF('1. Order'!B241=\"\",\"\",'1. Order'!B241)","v":""},{"$f":"IF('1. Order'!I241=\"\",\"\",'1. Order'!I241)","v":""},{"$f":"IF('1. Order'!J241=\"\",\"\",'1. Order'!J241)","v":""},{"$f":"IF('1. Order'!K241=\"\",\"\",'1. Order'!K241)","v":""},{"$f":"IF('1. Order'!M241=\"\",\"\",'1. Order'!M241)","v":""},null,null,{"$f":"IF('1. Order'!AR241=\"\",\"\",'1. Order'!AR241)","v":""},{"$f":"IF('1. Order'!AE241=\"\",\"\",'1. Order'!AE241)","v":""}]
[{"$f":"IF('1. Order'!B242=\"\",\"\",'1. Order'!B242)","v":""},{"$f":"IF('1. Order'!I242=\"\",\"\",'1. Order'!I242)","v":""},{"$f":"IF('1. Order'!J242=\"\",\"\",'1. Order'!J242)","v":""},{"$f":"IF('1. Order'!K242=\"\",\"\",'1. Order'!K242)","v":""},{"$f":"IF('1. Order'!M242=\"\",\"\",'1. Order'!M242)","v":""},null,null,{"$f":"IF('1. Order'!AR242=\"\",\"\",'1. Order'!AR242)","v":""},{"$f":"IF('1. Order'!AE242=\"\",\"\",'1. Order'!AE242)","v":""}]
[{"$f":"IF('1. Order'!B243=\"\",\"\",'1. Order'!B243)","v":""},{"$f":"IF('1. Order'!I243=\"\",\"\",'1. Order'!I243)","v":""},{"$f":"IF('1. Order'!J243=\"\",\"\",'1. Order'!J243)","v":""},{"$f":"IF('1. Order'!K243=\"\",\"\",'1. Order'!K243)","v":""},{"$f":"IF('1. Order'!M243=\"\",\"\",'1. Order'!M243)","v":""},null,null,{"$f":"IF('1. Order'!AR243=\"\",\"\",'1. Order'!AR243)","v":""},{"$f":"IF('1. Order'!AE243=\"\",\"\",'1. Order'!AE243)","v":""}]
[{"$f":"IF('1. Order'!B244=\"\",\"\",'1. Order'!B244)","v":""},{"$f":"IF('1. Order'!I244=\"\",\"\",'1. Order'!I244)","v":""},{"$f":"IF('1. Order'!J244=\"\",\"\",'1. Order'!J244)","v":""},{"$f":"IF('1. Order'!K244=\"\",\"\",'1. Order'!K244)","v":""},{"$f":"IF('1. Order'!M244=\"\",\"\",'1. Order'!M244)","v":""},null,null,{"$f":"IF('1. Order'!AR244=\"\",\"\",'1. Order'!AR244)","v":""},{"$f":"IF('1. Order'!AE244=\"\",\"\",'1. Order'!AE244)","v":""}]
[{"$f":"IF('1. Order'!B245=\"\",\"\",'1. Order'!B245)","v":""},{"$f":"IF('1. Order'!I245=\"\",\"\",'1. Order'!I245)","v":""},{"$f":"IF('1. Order'!J245=\"\",\"\",'1. Order'!J245)","v":""},{"$f":"IF('1. Order'!K245=\"\",\"\",'1. Order'!K245)","v":""},{"$f":"IF('1. Order'!M245=\"\",\"\",'1. Order'!M245)","v":""},null,null,{"$f":"IF('1. Order'!AR245=\"\",\"\",'1. Order'!AR245)","v":""},{"$f":"IF('1. Order'!AE245=\"\",\"\",'1. Order'!AE245)","v":""}]
[{"$f":"IF('1. Order'!B246=\"\",\"\",'1. Order'!B246)","v":""},{"$f":"IF('1. Order'!I246=\"\",\"\",'1. Order'!I246)","v":""},{"$f":"IF('1. Order'!J246=\"\",\"\",'1. Order'!J246)","v":""},{"$f":"IF('1. Order'!K246=\"\",\"\",'1. Order'!K246)","v":""},{"$f":"IF('1. Order'!M246=\"\",\"\",'1. Order'!M246)","v":""},null,null,{"$f":"IF('1. Order'!AR246=\"\",\"\",'1. Order'!AR246)","v":""},{"$f":"IF('1. Order'!AE246=\"\",\"\",'1. Order'!AE246)","v":""}]
[{"$f":"IF('1. Order'!B247=\"\",\"\",'1. Order'!B247)","v":""},{"$f":"IF('1. Order'!I247=\"\",\"\",'1. Order'!I247)","v":""},{"$f":"IF('1. Order'!J247=\"\",\"\",'1. Order'!J247)","v":""},{"$f":"IF('1. Order'!K247=\"\",\"\",'1. Order'!K247)","v":""},{"$f":"IF('1. Order'!M247=\"\",\"\",'1. Order'!M247)","v":""},null,null,{"$f":"IF('1. Order'!AR247=\"\",\"\",'1. Order'!AR247)","v":""},{"$f":"IF('1. Order'!AE247=\"\",\"\",'1. Order'!AE247)","v":""}]
[{"$f":"IF('1. Order'!B248=\"\",\"\",'1. Order'!B248)","v":""},{"$f":"IF('1. Order'!I248=\"\",\"\",'1. Order'!I248)","v":""},{"$f":"IF('1. Order'!J248=\"\",\"\",'1. Order'!J248)","v":""},{"$f":"IF('1. Order'!K248=\"\",\"\",'1. Order'!K248)","v":""},{"$f":"IF('1. Order'!M248=\"\",\"\",'1. Order'!M248)","v":""},null,null,{"$f":"IF('1. Order'!AR248=\"\",\"\",'1. Order'!AR248)","v":""},{"$f":"IF('1. Order'!AE248=\"\",\"\",'1. Order'!AE248)","v":""}]
[{"$f":"IF('1. Order'!B249=\"\",\"\",'1. Order'!B249)","v":""},{"$f":"IF('1. Order'!I249=\"\",\"\",'1. Order'!I249)","v":""},{"$f":"IF('1. Order'!J249=\"\",\"\",'1. Order'!J249)","v":""},{"$f":"IF('1. Order'!K249=\"\",\"\",'1. Order'!K249)","v":""},{"$f":"IF('1. Order'!M249=\"\",\"\",'1. Order'!M249)","v":""},null,null,{"$f":"IF('1. Order'!AR249=\"\",\"\",'1. Order'!AR249)","v":""},{"$f":"IF('1. Order'!AE249=\"\",\"\",'1. Order'!AE249)","v":""}]
[{"$f":"IF('1. Order'!B250=\"\",\"\",'1. Order'!B250)","v":""},{"$f":"IF('1. Order'!I250=\"\",\"\",'1. Order'!I250)","v":""},{"$f":"IF('1. Order'!J250=\"\",\"\",'1. Order'!J250)","v":""},{"$f":"IF('1. Order'!K250=\"\",\"\",'1. Order'!K250)","v":""},{"$f":"IF('1. Order'!M250=\"\",\"\",'1. Order'!M250)","v":""},null,null,{"$f":"IF('1. Order'!AR250=\"\",\"\",'1. Order'!AR250)","v":""},{"$f":"IF('1. Order'!AE250=\"\",\"\",'1. Order'!AE250)","v":""}]
[{"$f":"IF('1. Order'!B251=\"\",\"\",'1. Order'!B251)","v":""},{"$f":"IF('1. Order'!I251=\"\",\"\",'1. Order'!I251)","v":""},{"$f":"IF('1. Order'!J251=\"\",\"\",'1. Order'!J251)","v":""},{"$f":"IF('1. Order'!K251=\"\",\"\",'1. Order'!K251)","v":""},{"$f":"IF('1. Order'!M251=\"\",\"\",'1. Order'!M251)","v":""},null,null,{"$f":"IF('1. Order'!AR251=\"\",\"\",'1. Order'!AR251)","v":""},{"$f":"IF('1. Order'!AE251=\"\",\"\",'1. Order'!AE251)","v":""}]
[{"$f":"IF('1. Order'!B252=\"\",\"\",'1. Order'!B252)","v":""},{"$f":"IF('1. Order'!I252=\"\",\"\",'1. Order'!I252)","v":""},{"$f":"IF('1. Order'!J252=\"\",\"\",'1. Order'!J252)","v":""},{"$f":"IF('1. Order'!K252=\"\",\"\",'1. Order'!K252)","v":""},{"$f":"IF('1. Order'!M252=\"\",\"\",'1. Order'!M252)","v":""},null,null,{"$f":"IF('1. Order'!AR252=\"\",\"\",'1. Order'!AR252)","v":""},{"$f":"IF('1. Order'!AE252=\"\",\"\",'1. Order'!AE252)","v":""}]
[{"$f":"IF('1. Order'!B253=\"\",\"\",'1. Order'!B253)","v":""},{"$f":"IF('1. Order'!I253=\"\",\"\",'1. Order'!I253)","v":""},{"$f":"IF('1. Order'!J253=\"\",\"\",'1. Order'!J253)","v":""},{"$f":"IF('1. Order'!K253=\"\",\"\",'1. Order'!K253)","v":""},{"$f":"IF('1. Order'!M253=\"\",\"\",'1. Order'!M253)","v":""},null,null,{"$f":"IF('1. Order'!AR253=\"\",\"\",'1. Order'!AR253)","v":""},{"$f":"IF('1. Order'!AE253=\"\",\"\",'1. Order'!AE253)","v":""}]
[{"$f":"IF('1. Order'!B254=\"\",\"\",'1. Order'!B254)","v":""},{"$f":"IF('1. Order'!I254=\"\",\"\",'1. Order'!I254)","v":""},{"$f":"IF('1. Order'!J254=\"\",\"\",'1. Order'!J254)","v":""},{"$f":"IF('1. Order'!K254=\"\",\"\",'1. Order'!K254)","v":""},{"$f":"IF('1. Order'!M254=\"\",\"\",'1. Order'!M254)","v":""},null,null,{"$f":"IF('1. Order'!AR254=\"\",\"\",'1. Order'!AR254)","v":""},{"$f":"IF('1. Order'!AE254=\"\",\"\",'1. Order'!AE254)","v":""}]
[{"$f":"IF('1. Order'!B255=\"\",\"\",'1. Order'!B255)","v":""},{"$f":"IF('1. Order'!I255=\"\",\"\",'1. Order'!I255)","v":""},{"$f":"IF('1. Order'!J255=\"\",\"\",'1. Order'!J255)","v":""},{"$f":"IF('1. Order'!K255=\"\",\"\",'1. Order'!K255)","v":""},{"$f":"IF('1. Order'!M255=\"\",\"\",'1. Order'!M255)","v":""},null,null,{"$f":"IF('1. Order'!AR255=\"\",\"\",'1. Order'!AR255)","v":""},{"$f":"IF('1. Order'!AE255=\"\",\"\",'1. Order'!AE255)","v":""}]
[{"$f":"IF('1. Order'!B256=\"\",\"\",'1. Order'!B256)","v":""},{"$f":"IF('1. Order'!I256=\"\",\"\",'1. Order'!I256)","v":""},{"$f":"IF('1. Order'!J256=\"\",\"\",'1. Order'!J256)","v":""},{"$f":"IF('1. Order'!K256=\"\",\"\",'1. Order'!K256)","v":""},{"$f":"IF('1. Order'!M256=\"\",\"\",'1. Order'!M256)","v":""},null,null,{"$f":"IF('1. Order'!AR256=\"\",\"\",'1. Order'!AR256)","v":""},{"$f":"IF('1. Order'!AE256=\"\",\"\",'1. Order'!AE256)","v":""}]
[{"$f":"IF('1. Order'!B257=\"\",\"\",'1. Order'!B257)","v":""},{"$f":"IF('1. Order'!I257=\"\",\"\",'1. Order'!I257)","v":""},{"$f":"IF('1. Order'!J257=\"\",\"\",'1. Order'!J257)","v":""},{"$f":"IF('1. Order'!K257=\"\",\"\",'1. Order'!K257)","v":""},{"$f":"IF('1. Order'!M257=\"\",\"\",'1. Order'!M257)","v":""},null,null,{"$f":"IF('1. Order'!AR257=\"\",\"\",'1. Order'!AR257)","v":""},{"$f":"IF('1. Order'!AE257=\"\",\"\",'1. Order'!AE257)","v":""}]
[{"$f":"IF('1. Order'!B258=\"\",\"\",'1. Order'!B258)","v":""},{"$f":"IF('1. Order'!I258=\"\",\"\",'1. Order'!I258)","v":""},{"$f":"IF('1. Order'!J258=\"\",\"\",'1. Order'!J258)","v":""},{"$f":"IF('1. Order'!K258=\"\",\"\",'1. Order'!K258)","v":""},{"$f":"IF('1. Order'!M258=\"\",\"\",'1. Order'!M258)","v":""},null,null,{"$f":"IF('1. Order'!AR258=\"\",\"\",'1. Order'!AR258)","v":""},{"$f":"IF('1. Order'!AE258=\"\",\"\",'1. Order'!AE258)","v":""}]
[{"$f":"IF('1. Order'!B259=\"\",\"\",'1. Order'!B259)","v":""},{"$f":"IF('1. Order'!I259=\"\",\"\",'1. Order'!I259)","v":""},{"$f":"IF('1. Order'!J259=\"\",\"\",'1. Order'!J259)","v":""},{"$f":"IF('1. Order'!K259=\"\",\"\",'1. Order'!K259)","v":""},{"$f":"IF('1. Order'!M259=\"\",\"\",'1. Order'!M259)","v":""},null,null,{"$f":"IF('1. Order'!AR259=\"\",\"\",'1. Order'!AR259)","v":""},{"$f":"IF('1. Order'!AE259=\"\",\"\",'1. Order'!AE259)","v":""}]
[{"$f":"IF('1. Order'!B260=\"\",\"\",'1. Order'!B260)","v":""},{"$f":"IF('1. Order'!I260=\"\",\"\",'1. Order'!I260)","v":""},{"$f":"IF('1. Order'!J260=\"\",\"\",'1. Order'!J260)","v":""},{"$f":"IF('1. Order'!K260=\"\",\"\",'1. Order'!K260)","v":""},{"$f":"IF('1. Order'!M260=\"\",\"\",'1. Order'!M260)","v":""},null,null,{"$f":"IF('1. Order'!AR260=\"\",\"\",'1. Order'!AR260)","v":""},{"$f":"IF('1. Order'!AE260=\"\",\"\",'1. Order'!AE260)","v":""}]
[{"$f":"IF('1. Order'!B261=\"\",\"\",'1. Order'!B261)","v":""},{"$f":"IF('1. Order'!I261=\"\",\"\",'1. Order'!I261)","v":""},{"$f":"IF('1. Order'!J261=\"\",\"\",'1. Order'!J261)","v":""},{"$f":"IF('1. Order'!K261=\"\",\"\",'1. Order'!K261)","v":""},{"$f":"IF('1. Order'!M261=\"\",\"\",'1. Order'!M261)","v":""},null,null,{"$f":"IF('1. Order'!AR261=\"\",\"\",'1. Order'!AR261)","v":""},{"$f":"IF('1. Order'!AE261=\"\",\"\",'1. Order'!AE261)","v":""}]
[{"$f":"IF('1. Order'!B262=\"\",\"\",'1. Order'!B262)","v":""},{"$f":"IF('1. Order'!I262=\"\",\"\",'1. Order'!I262)","v":""},{"$f":"IF('1. Order'!J262=\"\",\"\",'1. Order'!J262)","v":""},{"$f":"IF('1. Order'!K262=\"\",\"\",'1. Order'!K262)","v":""},{"$f":"IF('1. Order'!M262=\"\",\"\",'1. Order'!M262)","v":""},null,null,{"$f":"IF('1. Order'!AR262=\"\",\"\",'1. Order'!AR262)","v":""},{"$f":"IF('1. Order'!AE262=\"\",\"\",'1. Order'!AE262)","v":""}]
[{"$f":"IF('1. Order'!B263=\"\",\"\",'1. Order'!B263)","v":""},{"$f":"IF('1. Order'!I263=\"\",\"\",'1. Order'!I263)","v":""},{"$f":"IF('1. Order'!J263=\"\",\"\",'1. Order'!J263)","v":""},{"$f":"IF('1. Order'!K263=\"\",\"\",'1. Order'!K263)","v":""},{"$f":"IF('1. Order'!M263=\"\",\"\",'1. Order'!M263)","v":""},null,null,{"$f":"IF('1. Order'!AR263=\"\",\"\",'1. Order'!AR263)","v":""},{"$f":"IF('1. Order'!AE263=\"\",\"\",'1. Order'!AE263)","v":""}]
[{"$f":"IF('1. Order'!B264=\"\",\"\",'1. Order'!B264)","v":""},{"$f":"IF('1. Order'!I264=\"\",\"\",'1. Order'!I264)","v":""},{"$f":"IF('1. Order'!J264=\"\",\"\",'1. Order'!J264)","v":""},{"$f":"IF('1. Order'!K264=\"\",\"\",'1. Order'!K264)","v":""},{"$f":"IF('1. Order'!M264=\"\",\"\",'1. Order'!M264)","v":""},null,null,{"$f":"IF('1. Order'!AR264=\"\",\"\",'1. Order'!AR264)","v":""},{"$f":"IF('1. Order'!AE264=\"\",\"\",'1. Order'!AE264)","v":""}]
[{"$f":"IF('1. Order'!B265=\"\",\"\",'1. Order'!B265)","v":""},{"$f":"IF('1. Order'!I265=\"\",\"\",'1. Order'!I265)","v":""},{"$f":"IF('1. Order'!J265=\"\",\"\",'1. Order'!J265)","v":""},{"$f":"IF('1. Order'!K265=\"\",\"\",'1. Order'!K265)","v":""},{"$f":"IF('1. Order'!M265=\"\",\"\",'1. Order'!M265)","v":""},null,null,{"$f":"IF('1. Order'!AR265=\"\",\"\",'1. Order'!AR265)","v":""},{"$f":"IF('1. Order'!AE265=\"\",\"\",'1. Order'!AE265)","v":""}]
[{"$f":"IF('1. Order'!B266=\"\",\"\",'1. Order'!B266)","v":""},{"$f":"IF('1. Order'!I266=\"\",\"\",'1. Order'!I266)","v":""},{"$f":"IF('1. Order'!J266=\"\",\"\",'1. Order'!J266)","v":""},{"$f":"IF('1. Order'!K266=\"\",\"\",'1. Order'!K266)","v":""},{"$f":"IF('1. Order'!M266=\"\",\"\",'1. Order'!M266)","v":""},null,null,{"$f":"IF('1. Order'!AR266=\"\",\"\",'1. Order'!AR266)","v":""},{"$f":"IF('1. Order'!AE266=\"\",\"\",'1. Order'!AE266)","v":""}]
[{"$f":"IF('1. Order'!B267=\"\",\"\",'1. Order'!B267)","v":""},{"$f":"IF('1. Order'!I267=\"\",\"\",'1. Order'!I267)","v":""},{"$f":"IF('1. Order'!J267=\"\",\"\",'1. Order'!J267)","v":""},{"$f":"IF('1. Order'!K267=\"\",\"\",'1. Order'!K267)","v":""},{"$f":"IF('1. Order'!M267=\"\",\"\",'1. Order'!M267)","v":""},null,null,{"$f":"IF('1. Order'!AR267=\"\",\"\",'1. Order'!AR267)","v":""},{"$f":"IF('1. Order'!AE267=\"\",\"\",'1. Order'!AE267)","v":""}]
[{"$f":"IF('1. Order'!B268=\"\",\"\",'1. Order'!B268)","v":""},{"$f":"IF('1. Order'!I268=\"\",\"\",'1. Order'!I268)","v":""},{"$f":"IF('1. Order'!J268=\"\",\"\",'1. Order'!J268)","v":""},{"$f":"IF('1. Order'!K268=\"\",\"\",'1. Order'!K268)","v":""},{"$f":"IF('1. Order'!M268=\"\",\"\",'1. Order'!M268)","v":""},null,null,{"$f":"IF('1. Order'!AR268=\"\",\"\",'1. Order'!AR268)","v":""},{"$f":"IF('1. Order'!AE268=\"\",\"\",'1. Order'!AE268)","v":""}]
[{"$f":"IF('1. Order'!B269=\"\",\"\",'1. Order'!B269)","v":""},{"$f":"IF('1. Order'!I269=\"\",\"\",'1. Order'!I269)","v":""},{"$f":"IF('1. Order'!J269=\"\",\"\",'1. Order'!J269)","v":""},{"$f":"IF('1. Order'!K269=\"\",\"\",'1. Order'!K269)","v":""},{"$f":"IF('1. Order'!M269=\"\",\"\",'1. Order'!M269)","v":""},null,null,{"$f":"IF('1. Order'!AR269=\"\",\"\",'1. Order'!AR269)","v":""},{"$f":"IF('1. Order'!AE269=\"\",\"\",'1. Order'!AE269)","v":""}]
[{"$f":"IF('1. Order'!B270=\"\",\"\",'1. Order'!B270)","v":""},{"$f":"IF('1. Order'!I270=\"\",\"\",'1. Order'!I270)","v":""},{"$f":"IF('1. Order'!J270=\"\",\"\",'1. Order'!J270)","v":""},{"$f":"IF('1. Order'!K270=\"\",\"\",'1. Order'!K270)","v":""},{"$f":"IF('1. Order'!M270=\"\",\"\",'1. Order'!M270)","v":""},null,null,{"$f":"IF('1. Order'!AR270=\"\",\"\",'1. Order'!AR270)","v":""},{"$f":"IF('1. Order'!AE270=\"\",\"\",'1. Order'!AE270)","v":""}]
[{"$f":"IF('1. Order'!B271=\"\",\"\",'1. Order'!B271)","v":""},{"$f":"IF('1. Order'!I271=\"\",\"\",'1. Order'!I271)","v":""},{"$f":"IF('1. Order'!J271=\"\",\"\",'1. Order'!J271)","v":""},{"$f":"IF('1. Order'!K271=\"\",\"\",'1. Order'!K271)","v":""},{"$f":"IF('1. Order'!M271=\"\",\"\",'1. Order'!M271)","v":""},null,null,{"$f":"IF('1. Order'!AR271=\"\",\"\",'1. Order'!AR271)","v":""},{"$f":"IF('1. Order'!AE271=\"\",\"\",'1. Order'!AE271)","v":""}]
[{"$f":"IF('1. Order'!B272=\"\",\"\",'1. Order'!B272)","v":""},{"$f":"IF('1. Order'!I272=\"\",\"\",'1. Order'!I272)","v":""},{"$f":"IF('1. Order'!J272=\"\",\"\",'1. Order'!J272)","v":""},{"$f":"IF('1. Order'!K272=\"\",\"\",'1. Order'!K272)","v":""},{"$f":"IF('1. Order'!M272=\"\",\"\",'1. Order'!M272)","v":""},null,null,{"$f":"IF('1. Order'!AR272=\"\",\"\",'1. Order'!AR272)","v":""},{"$f":"IF('1. Order'!AE272=\"\",\"\",'1. Order'!AE272)","v":""}]
[{"$f":"IF('1. Order'!B273=\"\",\"\",'1. Order'!B273)","v":""},{"$f":"IF('1. Order'!I273=\"\",\"\",'1. Order'!I273)","v":""},{"$f":"IF('1. Order'!J273=\"\",\"\",'1. Order'!J273)","v":""},{"$f":"IF('1. Order'!K273=\"\",\"\",'1. Order'!K273)","v":""},{"$f":"IF('1. Order'!M273=\"\",\"\",'1. Order'!M273)","v":""},null,null,{"$f":"IF('1. Order'!AR273=\"\",\"\",'1. Order'!AR273)","v":""},{"$f":"IF('1. Order'!AE273=\"\",\"\",'1. Order'!AE273)","v":""}]
[{"$f":"IF('1. Order'!B274=\"\",\"\",'1. Order'!B274)","v":""},{"$f":"IF('1. Order'!I274=\"\",\"\",'1. Order'!I274)","v":""},{"$f":"IF('1. Order'!J274=\"\",\"\",'1. Order'!J274)","v":""},{"$f":"IF('1. Order'!K274=\"\",\"\",'1. Order'!K274)","v":""},{"$f":"IF('1. Order'!M274=\"\",\"\",'1. Order'!M274)","v":""},null,null,{"$f":"IF('1. Order'!AR274=\"\",\"\",'1. Order'!AR274)","v":""},{"$f":"IF('1. Order'!AE274=\"\",\"\",'1. Order'!AE274)","v":""}]
[{"$f":"IF('1. Order'!B275=\"\",\"\",'1. Order'!B275)","v":""},{"$f":"IF('1. Order'!I275=\"\",\"\",'1. Order'!I275)","v":""},{"$f":"IF('1. Order'!J275=\"\",\"\",'1. Order'!J275)","v":""},{"$f":"IF('1. Order'!K275=\"\",\"\",'1. Order'!K275)","v":""},{"$f":"IF('1. Order'!M275=\"\",\"\",'1. Order'!M275)","v":""},null,null,{"$f":"IF('1. Order'!AR275=\"\",\"\",'1. Order'!AR275)","v":""},{"$f":"IF('1. Order'!AE275=\"\",\"\",'1. Order'!AE275)","v":""}]
[{"$f":"IF('1. Order'!B276=\"\",\"\",'1. Order'!B276)","v":""},{"$f":"IF('1. Order'!I276=\"\",\"\",'1. Order'!I276)","v":""},{"$f":"IF('1. Order'!J276=\"\",\"\",'1. Order'!J276)","v":""},{"$f":"IF('1. Order'!K276=\"\",\"\",'1. Order'!K276)","v":""},{"$f":"IF('1. Order'!M276=\"\",\"\",'1. Order'!M276)","v":""},null,null,{"$f":"IF('1. Order'!AR276=\"\",\"\",'1. Order'!AR276)","v":""},{"$f":"IF('1. Order'!AE276=\"\",\"\",'1. Order'!AE276)","v":""}]
[{"$f":"IF('1. Order'!B277=\"\",\"\",'1. Order'!B277)","v":""},{"$f":"IF('1. Order'!I277=\"\",\"\",'1. Order'!I277)","v":""},{"$f":"IF('1. Order'!J277=\"\",\"\",'1. Order'!J277)","v":""},{"$f":"IF('1. Order'!K277=\"\",\"\",'1. Order'!K277)","v":""},{"$f":"IF('1. Order'!M277=\"\",\"\",'1. Order'!M277)","v":""},null,null,{"$f":"IF('1. Order'!AR277=\"\",\"\",'1. Order'!AR277)","v":""},{"$f":"IF('1. Order'!AE277=\"\",\"\",'1. Order'!AE277)","v":""}]
[{"$f":"IF('1. Order'!B278=\"\",\"\",'1. Order'!B278)","v":""},{"$f":"IF('1. Order'!I278=\"\",\"\",'1. Order'!I278)","v":""},{"$f":"IF('1. Order'!J278=\"\",\"\",'1. Order'!J278)","v":""},{"$f":"IF('1. Order'!K278=\"\",\"\",'1. Order'!K278)","v":""},{"$f":"IF('1. Order'!M278=\"\",\"\",'1. Order'!M278)","v":""},null,null,{"$f":"IF('1. Order'!AR278=\"\",\"\",'1. Order'!AR278)","v":""},{"$f":"IF('1. Order'!AE278=\"\",\"\",'1. Order'!AE278)","v":""}]
[{"$f":"IF('1. Order'!B279=\"\",\"\",'1. Order'!B279)","v":""},{"$f":"IF('1. Order'!I279=\"\",\"\",'1. Order'!I279)","v":""},{"$f":"IF('1. Order'!J279=\"\",\"\",'1. Order'!J279)","v":""},{"$f":"IF('1. Order'!K279=\"\",\"\",'1. Order'!K279)","v":""},{"$f":"IF('1. Order'!M279=\"\",\"\",'1. Order'!M279)","v":""},null,null,{"$f":"IF('1. Order'!AR279=\"\",\"\",'1. Order'!AR279)","v":""},{"$f":"IF('1. Order'!AE279=\"\",\"\",'1. Order'!AE279)","v":""}]
[{"$f":"IF('1. Order'!B280=\"\",\"\",'1. Order'!B280)","v":""},{"$f":"IF('1. Order'!I280=\"\",\"\",'1. Order'!I280)","v":""},{"$f":"IF('1. Order'!J280=\"\",\"\",'1. Order'!J280)","v":""},{"$f":"IF('1. Order'!K280=\"\",\"\",'1. Order'!K280)","v":""},{"$f":"IF('1. Order'!M280=\"\",\"\",'1. Order'!M280)","v":""},null,null,{"$f":"IF('1. Order'!AR280=\"\",\"\",'1. Order'!AR280)","v":""},{"$f":"IF('1. Order'!AE280=\"\",\"\",'1. Order'!AE280)","v":""}]
[{"$f":"IF('1. Order'!B281=\"\",\"\",'1. Order'!B281)","v":""},{"$f":"IF('1. Order'!I281=\"\",\"\",'1. Order'!I281)","v":""},{"$f":"IF('1. Order'!J281=\"\",\"\",'1. Order'!J281)","v":""},{"$f":"IF('1. Order'!K281=\"\",\"\",'1. Order'!K281)","v":""},{"$f":"IF('1. Order'!M281=\"\",\"\",'1. Order'!M281)","v":""},null,null,{"$f":"IF('1. Order'!AR281=\"\",\"\",'1. Order'!AR281)","v":""},{"$f":"IF('1. Order'!AE281=\"\",\"\",'1. Order'!AE281)","v":""}]
[{"$f":"IF('1. Order'!B282=\"\",\"\",'1. Order'!B282)","v":""},{"$f":"IF('1. Order'!I282=\"\",\"\",'1. Order'!I282)","v":""},{"$f":"IF('1. Order'!J282=\"\",\"\",'1. Order'!J282)","v":""},{"$f":"IF('1. Order'!K282=\"\",\"\",'1. Order'!K282)","v":""},{"$f":"IF('1. Order'!M282=\"\",\"\",'1. Order'!M282)","v":""},null,null,{"$f":"IF('1. Order'!AR282=\"\",\"\",'1. Order'!AR282)","v":""},{"$f":"IF('1. Order'!AE282=\"\",\"\",'1. Order'!AE282)","v":""}]
[{"$f":"IF('1. Order'!B283=\"\",\"\",'1. Order'!B283)","v":""},{"$f":"IF('1. Order'!I283=\"\",\"\",'1. Order'!I283)","v":""},{"$f":"IF('1. Order'!J283=\"\",\"\",'1. Order'!J283)","v":""},{"$f":"IF('1. Order'!K283=\"\",\"\",'1. Order'!K283)","v":""},{"$f":"IF('1. Order'!M283=\"\",\"\",'1. Order'!M283)","v":""},null,null,{"$f":"IF('1. Order'!AR283=\"\",\"\",'1. Order'!AR283)","v":""},{"$f":"IF('1. Order'!AE283=\"\",\"\",'1. Order'!AE283)","v":""}]
[{"$f":"IF('1. Order'!B284=\"\",\"\",'1. Order'!B284)","v":""},{"$f":"IF('1. Order'!I284=\"\",\"\",'1. Order'!I284)","v":""},{"$f":"IF('1. Order'!J284=\"\",\"\",'1. Order'!J284)","v":""},{"$f":"IF('1. Order'!K284=\"\",\"\",'1. Order'!K284)","v":""},{"$f":"IF('1. Order'!M284=\"\",\"\",'1. Order'!M284)","v":""},null,null,{"$f":"IF('1. Order'!AR284=\"\",\"\",'1. Order'!AR284)","v":""},{"$f":"IF('1. Order'!AE284=\"\",\"\",'1. Order'!AE284)","v":""}]
[{"$f":"IF('1. Order'!B285=\"\",\"\",'1. Order'!B285)","v":""},{"$f":"IF('1. Order'!I285=\"\",\"\",'1. Order'!I285)","v":""},{"$f":"IF('1. Order'!J285=\"\",\"\",'1. Order'!J285)","v":""},{"$f":"IF('1. Order'!K285=\"\",\"\",'1. Order'!K285)","v":""},{"$f":"IF('1. Order'!M285=\"\",\"\",'1. Order'!M285)","v":""},null,null,{"$f":"IF('1. Order'!AR285=\"\",\"\",'1. Order'!AR285)","v":""},{"$f":"IF('1. Order'!AE285=\"\",\"\",'1. Order'!AE285)","v":""}]
[{"$f":"IF('1. Order'!B286=\"\",\"\",'1. Order'!B286)","v":""},{"$f":"IF('1. Order'!I286=\"\",\"\",'1. Order'!I286)","v":""},{"$f":"IF('1. Order'!J286=\"\",\"\",'1. Order'!J286)","v":""},{"$f":"IF('1. Order'!K286=\"\",\"\",'1. Order'!K286)","v":""},{"$f":"IF('1. Order'!M286=\"\",\"\",'1. Order'!M286)","v":""},null,null,{"$f":"IF('1. Order'!AR286=\"\",\"\",'1. Order'!AR286)","v":""},{"$f":"IF('1. Order'!AE286=\"\",\"\",'1. Order'!AE286)","v":""}]
[{"$f":"IF('1. Order'!B287=\"\",\"\",'1. Order'!B287)","v":""},{"$f":"IF('1. Order'!I287=\"\",\"\",'1. Order'!I287)","v":""},{"$f":"IF('1. Order'!J287=\"\",\"\",'1. Order'!J287)","v":""},{"$f":"IF('1. Order'!K287=\"\",\"\",'1. Order'!K287)","v":""},{"$f":"IF('1. Order'!M287=\"\",\"\",'1. Order'!M287)","v":""},null,null,{"$f":"IF('1. Order'!AR287=\"\",\"\",'1. Order'!AR287)","v":""},{"$f":"IF('1. Order'!AE287=\"\",\"\",'1. Order'!AE287)","v":""}]
[{"$f":"IF('1. Order'!B288=\"\",\"\",'1. Order'!B288)","v":""},{"$f":"IF('1. Order'!I288=\"\",\"\",'1. Order'!I288)","v":""},{"$f":"IF('1. Order'!J288=\"\",\"\",'1. Order'!J288)","v":""},{"$f":"IF('1. Order'!K288=\"\",\"\",'1. Order'!K288)","v":""},{"$f":"IF('1. Order'!M288=\"\",\"\",'1. Order'!M288)","v":""},null,null,{"$f":"IF('1. Order'!AR288=\"\",\"\",'1. Order'!AR288)","v":""},{"$f":"IF('1. Order'!AE288=\"\",\"\",'1. Order'!AE288)","v":""}]
[{"$f":"IF('1. Order'!B289=\"\",\"\",'1. Order'!B289)","v":""},{"$f":"IF('1. Order'!I289=\"\",\"\",'1. Order'!I289)","v":""},{"$f":"IF('1. Order'!J289=\"\",\"\",'1. Order'!J289)","v":""},{"$f":"IF('1. Order'!K289=\"\",\"\",'1. Order'!K289)","v":""},{"$f":"IF('1. Order'!M289=\"\",\"\",'1. Order'!M289)","v":""},null,null,{"$f":"IF('1. Order'!AR289=\"\",\"\",'1. Order'!AR289)","v":""},{"$f":"IF('1. Order'!AE289=\"\",\"\",'1. Order'!AE289)","v":""}]
[{"$f":"IF('1. Order'!B290=\"\",\"\",'1. Order'!B290)","v":""},{"$f":"IF('1. Order'!I290=\"\",\"\",'1. Order'!I290)","v":""},{"$f":"IF('1. Order'!J290=\"\",\"\",'1. Order'!J290)","v":""},{"$f":"IF('1. Order'!K290=\"\",\"\",'1. Order'!K290)","v":""},{"$f":"IF('1. Order'!M290=\"\",\"\",'1. Order'!M290)","v":""},null,null,{"$f":"IF('1. Order'!AR290=\"\",\"\",'1. Order'!AR290)","v":""},{"$f":"IF('1. Order'!AE290=\"\",\"\",'1. Order'!AE290)","v":""}]
[{"$f":"IF('1. Order'!B291=\"\",\"\",'1. Order'!B291)","v":""},{"$f":"IF('1. Order'!I291=\"\",\"\",'1. Order'!I291)","v":""},{"$f":"IF('1. Order'!J291=\"\",\"\",'1. Order'!J291)","v":""},{"$f":"IF('1. Order'!K291=\"\",\"\",'1. Order'!K291)","v":""},{"$f":"IF('1. Order'!M291=\"\",\"\",'1. Order'!M291)","v":""},null,null,{"$f":"IF('1. Order'!AR291=\"\",\"\",'1. Order'!AR291)","v":""},{"$f":"IF('1. Order'!AE291=\"\",\"\",'1. Order'!AE291)","v":""}]
[{"$f":"IF('1. Order'!B292=\"\",\"\",'1. Order'!B292)","v":""},{"$f":"IF('1. Order'!I292=\"\",\"\",'1. Order'!I292)","v":""},{"$f":"IF('1. Order'!J292=\"\",\"\",'1. Order'!J292)","v":""},{"$f":"IF('1. Order'!K292=\"\",\"\",'1. Order'!K292)","v":""},{"$f":"IF('1. Order'!M292=\"\",\"\",'1. Order'!M292)","v":""},null,null,{"$f":"IF('1. Order'!AR292=\"\",\"\",'1. Order'!AR292)","v":""},{"$f":"IF('1. Order'!AE292=\"\",\"\",'1. Order'!AE292)","v":""}]
[{"$f":"IF('1. Order'!B293=\"\",\"\",'1. Order'!B293)","v":""},{"$f":"IF('1. Order'!I293=\"\",\"\",'1. Order'!I293)","v":""},{"$f":"IF('1. Order'!J293=\"\",\"\",'1. Order'!J293)","v":""},{"$f":"IF('1. Order'!K293=\"\",\"\",'1. Order'!K293)","v":""},{"$f":"IF('1. Order'!M293=\"\",\"\",'1. Order'!M293)","v":""},null,null,{"$f":"IF('1. Order'!AR293=\"\",\"\",'1. Order'!AR293)","v":""},{"$f":"IF('1. Order'!AE293=\"\",\"\",'1. Order'!AE293)","v":""}]
[{"$f":"IF('1. Order'!B294=\"\",\"\",'1. Order'!B294)","v":""},{"$f":"IF('1. Order'!I294=\"\",\"\",'1. Order'!I294)","v":""},{"$f":"IF('1. Order'!J294=\"\",\"\",'1. Order'!J294)","v":""},{"$f":"IF('1. Order'!K294=\"\",\"\",'1. Order'!K294)","v":""},{"$f":"IF('1. Order'!M294=\"\",\"\",'1. Order'!M294)","v":""},null,null,{"$f":"IF('1. Order'!AR294=\"\",\"\",'1. Order'!AR294)","v":""},{"$f":"IF('1. Order'!AE294=\"\",\"\",'1. Order'!AE294)","v":""}]
[{"$f":"IF('1. Order'!B295=\"\",\"\",'1. Order'!B295)","v":""},{"$f":"IF('1. Order'!I295=\"\",\"\",'1. Order'!I295)","v":""},{"$f":"IF('1. Order'!J295=\"\",\"\",'1. Order'!J295)","v":""},{"$f":"IF('1. Order'!K295=\"\",\"\",'1. Order'!K295)","v":""},{"$f":"IF('1. Order'!M295=\"\",\"\",'1. Order'!M295)","v":""},null,null,{"$f":"IF('1. Order'!AR295=\"\",\"\",'1. Order'!AR295)","v":""},{"$f":"IF('1. Order'!AE295=\"\",\"\",'1. Order'!AE295)","v":""}]
[{"$f":"IF('1. Order'!B296=\"\",\"\",'1. Order'!B296)","v":""},{"$f":"IF('1. Order'!I296=\"\",\"\",'1. Order'!I296)","v":""},{"$f":"IF('1. Order'!J296=\"\",\"\",'1. Order'!J296)","v":""},{"$f":"IF('1. Order'!K296=\"\",\"\",'1. Order'!K296)","v":""},{"$f":"IF('1. Order'!M296=\"\",\"\",'1. Order'!M296)","v":""},null,null,{"$f":"IF('1. Order'!AR296=\"\",\"\",'1. Order'!AR296)","v":""},{"$f":"IF('1. Order'!AE296=\"\",\"\",'1. Order'!AE296)","v":""}]
[{"$f":"IF('1. Order'!B297=\"\",\"\",'1. Order'!B297)","v":""},{"$f":"IF('1. Order'!I297=\"\",\"\",'1. Order'!I297)","v":""},{"$f":"IF('1. Order'!J297=\"\",\"\",'1. Order'!J297)","v":""},{"$f":"IF('1. Order'!K297=\"\",\"\",'1. Order'!K297)","v":""},{"$f":"IF('1. Order'!M297=\"\",\"\",'1. Order'!M297)","v":""},null,null,{"$f":"IF('1. Order'!AR297=\"\",\"\",'1. Order'!AR297)","v":""},{"$f":"IF('1. Order'!AE297=\"\",\"\",'1. Order'!AE297)","v":""}]
[{"$f":"IF('1. Order'!B298=\"\",\"\",'1. Order'!B298)","v":""},{"$f":"IF('1. Order'!I298=\"\",\"\",'1. Order'!I298)","v":""},{"$f":"IF('1. Order'!J298=\"\",\"\",'1. Order'!J298)","v":""},{"$f":"IF('1. Order'!K298=\"\",\"\",'1. Order'!K298)","v":""},{"$f":"IF('1. Order'!M298=\"\",\"\",'1. Order'!M298)","v":""},null,null,{"$f":"IF('1. Order'!AR298=\"\",\"\",'1. Order'!AR298)","v":""},{"$f":"IF('1. Order'!AE298=\"\",\"\",'1. Order'!AE298)","v":""}]
[{"$f":"IF('1. Order'!B299=\"\",\"\",'1. Order'!B299)","v":""},{"$f":"IF('1. Order'!I299=\"\",\"\",'1. Order'!I299)","v":""},{"$f":"IF('1. Order'!J299=\"\",\"\",'1. Order'!J299)","v":""},{"$f":"IF('1. Order'!K299=\"\",\"\",'1. Order'!K299)","v":""},{"$f":"IF('1. Order'!M299=\"\",\"\",'1. Order'!M299)","v":""},null,null,{"$f":"IF('1. Order'!AR299=\"\",\"\",'1. Order'!AR299)","v":""},{"$f":"IF('1. Order'!AE299=\"\",\"\",'1. Order'!AE299)","v":""}]
[{"$f":"IF('1. Order'!B300=\"\",\"\",'1. Order'!B300)","v":""},{"$f":"IF('1. Order'!I300=\"\",\"\",'1. Order'!I300)","v":""},{"$f":"IF('1. Order'!J300=\"\",\"\",'1. Order'!J300)","v":""},{"$f":"IF('1. Order'!K300=\"\",\"\",'1. Order'!K300)","v":""},{"$f":"IF('1. Order'!M300=\"\",\"\",'1. Order'!M300)","v":""},null,null,{"$f":"IF('1. Order'!AR300=\"\",\"\",'1. Order'!AR300)","v":""},{"$f":"IF('1. Order'!AE300=\"\",\"\",'1. Order'!AE300)","v":""}]
[{"$f":"IF('1. Order'!B301=\"\",\"\",'1. Order'!B301)","v":""},{"$f":"IF('1. Order'!I301=\"\",\"\",'1. Order'!I301)","v":""},{"$f":"IF('1. Order'!J301=\"\",\"\",'1. Order'!J301)","v":""},{"$f":"IF('1. Order'!K301=\"\",\"\",'1. Order'!K301)","v":""},{"$f":"IF('1. Order'!M301=\"\",\"\",'1. Order'!M301)","v":""},null,null,{"$f":"IF('1. Order'!AR301=\"\",\"\",'1. Order'!AR301)","v":""},{"$f":"IF('1. Order'!AE301=\"\",\"\",'1. Order'!AE301)","v":""}]
[{"$f":"IF('1. Order'!B302=\"\",\"\",'1. Order'!B302)","v":""},{"$f":"IF('1. Order'!I302=\"\",\"\",'1. Order'!I302)","v":""},{"$f":"IF('1. Order'!J302=\"\",\"\",'1. Order'!J302)","v":""},{"$f":"IF('1. Order'!K302=\"\",\"\",'1. Order'!K302)","v":""},{"$f":"IF('1. Order'!M302=\"\",\"\",'1. Order'!M302)","v":""},null,null,{"$f":"IF('1. Order'!AR302=\"\",\"\",'1. Order'!AR302)","v":""},{"$f":"IF('1. Order'!AE302=\"\",\"\",'1. Order'!AE302)","v":""}]
[{"$f":"IF('1. Order'!B303=\"\",\"\",'1. Order'!B303)","v":""},{"$f":"IF('1. Order'!I303=\"\",\"\",'1. Order'!I303)","v":""},{"$f":"IF('1. Order'!J303=\"\",\"\",'1. Order'!J303)","v":""},{"$f":"IF('1. Order'!K303=\"\",\"\",'1. Order'!K303)","v":""},{"$f":"IF('1. Order'!M303=\"\",\"\",'1. Order'!M303)","v":""},null,null,{"$f":"IF('1. Order'!AR303=\"\",\"\",'1. Order'!AR303)","v":""},{"$f":"IF('1. Order'!AE303=\"\",\"\",'1. Order'!AE303)","v":""}]
[{"$f":"IF('1. Order'!B304=\"\",\"\",'1. Order'!B304)","v":""},{"$f":"IF('1. Order'!I304=\"\",\"\",'1. Order'!I304)","v":""},{"$f":"IF('1. Order'!J304=\"\",\"\",'1. Order'!J304)","v":""},{"$f":"IF('1. Order'!K304=\"\",\"\",'1. Order'!K304)","v":""},{"$f":"IF('1. Order'!M304=\"\",\"\",'1. Order'!M304)","v":""},null,null,{"$f":"IF('1. Order'!AR304=\"\",\"\",'1. Order'!AR304)","v":""},{"$f":"IF('1. Order'!AE304=\"\",\"\",'1. Order'!AE304)","v":""}]
[{"$f":"IF('1. Order'!B305=\"\",\"\",'1. Order'!B305)","v":""},{"$f":"IF('1. Order'!I305=\"\",\"\",'1. Order'!I305)","v":""},{"$f":"IF('1. Order'!J305=\"\",\"\",'1. Order'!J305)","v":""},{"$f":"IF('1. Order'!K305=\"\",\"\",'1. Order'!K305)","v":""},{"$f":"IF('1. Order'!M305=\"\",\"\",'1. Order'!M305)","v":""},null,null,{"$f":"IF('1. Order'!AR305=\"\",\"\",'1. Order'!AR305)","v":""},{"$f":"IF('1. Order'!AE305=\"\",\"\",'1. Order'!AE305)","v":""}]
[{"$f":"IF('1. Order'!B306=\"\",\"\",'1. Order'!B306)","v":""},{"$f":"IF('1. Order'!I306=\"\",\"\",'1. Order'!I306)","v":""},{"$f":"IF('1. Order'!J306=\"\",\"\",'1. Order'!J306)","v":""},{"$f":"IF('1. Order'!K306=\"\",\"\",'1. Order'!K306)","v":""},{"$f":"IF('1. Order'!M306=\"\",\"\",'1. Order'!M306)","v":""},null,null,{"$f":"IF('1. Order'!AR306=\"\",\"\",'1. Order'!AR306)","v":""},{"$f":"IF('1. Order'!AE306=\"\",\"\",'1. Order'!AE306)","v":""}]
[{"$f":"IF('1. Order'!B307=\"\",\"\",'1. Order'!B307)","v":""},{"$f":"IF('1. Order'!I307=\"\",\"\",'1. Order'!I307)","v":""},{"$f":"IF('1. Order'!J307=\"\",\"\",'1. Order'!J307)","v":""},{"$f":"IF('1. Order'!K307=\"\",\"\",'1. Order'!K307)","v":""},{"$f":"IF('1. Order'!M307=\"\",\"\",'1. Order'!M307)","v":""},null,null,{"$f":"IF('1. Order'!AR307=\"\",\"\",'1. Order'!AR307)","v":""},{"$f":"IF('1. Order'!AE307=\"\",\"\",'1. Order'!AE307)","v":""}]
[{"$f":"IF('1. Order'!B308=\"\",\"\",'1. Order'!B308)","v":""},{"$f":"IF('1. Order'!I308=\"\",\"\",'1. Order'!I308)","v":""},{"$f":"IF('1. Order'!J308=\"\",\"\",'1. Order'!J308)","v":""},{"$f":"IF('1. Order'!K308=\"\",\"\",'1. Order'!K308)","v":""},{"$f":"IF('1. Order'!M308=\"\",\"\",'1. Order'!M308)","v":""},null,null,{"$f":"IF('1. Order'!AR308=\"\",\"\",'1. Order'!AR308)","v":""},{"$f":"IF('1. Order'!AE308=\"\",\"\",'1. Order'!AE308)","v":""}]
[{"$f":"IF('1. Order'!B309=\"\",\"\",'1. Order'!B309)","v":""},{"$f":"IF('1. Order'!I309=\"\",\"\",'1. Order'!I309)","v":""},{"$f":"IF('1. Order'!J309=\"\",\"\",'1. Order'!J309)","v":""},{"$f":"IF('1. Order'!K309=\"\",\"\",'1. Order'!K309)","v":""},{"$f":"IF('1. Order'!M309=\"\",\"\",'1. Order'!M309)","v":""},null,null,{"$f":"IF('1. Order'!AR309=\"\",\"\",'1. Order'!AR309)","v":""},{"$f":"IF('1. Order'!AE309=\"\",\"\",'1. Order'!AE309)","v":""}]
[{"$f":"IF('1. Order'!B310=\"\",\"\",'1. Order'!B310)","v":""},{"$f":"IF('1. Order'!I310=\"\",\"\",'1. Order'!I310)","v":""},{"$f":"IF('1. Order'!J310=\"\",\"\",'1. Order'!J310)","v":""},{"$f":"IF('1. Order'!K310=\"\",\"\",'1. Order'!K310)","v":""},{"$f":"IF('1. Order'!M310=\"\",\"\",'1. Order'!M310)","v":""},null,null,{"$f":"IF('1. Order'!AR310=\"\",\"\",'1. Order'!AR310)","v":""},{"$f":"IF('1. Order'!AE310=\"\",\"\",'1. Order'!AE310)","v":""}]
[{"$f":"IF('1. Order'!B311=\"\",\"\",'1. Order'!B311)","v":""},{"$f":"IF('1. Order'!I311=\"\",\"\",'1. Order'!I311)","v":""},{"$f":"IF('1. Order'!J311=\"\",\"\",'1. Order'!J311)","v":""},{"$f":"IF('1. Order'!K311=\"\",\"\",'1. Order'!K311)","v":""},{"$f":"IF('1. Order'!M311=\"\",\"\",'1. Order'!M311)","v":""},null,null,{"$f":"IF('1. Order'!AR311=\"\",\"\",'1. Order'!AR311)","v":""},{"$f":"IF('1. Order'!AE311=\"\",\"\",'1. Order'!AE311)","v":""}]
[{"$f":"IF('1. Order'!B312=\"\",\"\",'1. Order'!B312)","v":""},{"$f":"IF('1. Order'!I312=\"\",\"\",'1. Order'!I312)","v":""},{"$f":"IF('1. Order'!J312=\"\",\"\",'1. Order'!J312)","v":""},{"$f":"IF('1. Order'!K312=\"\",\"\",'1. Order'!K312)","v":""},{"$f":"IF('1. Order'!M312=\"\",\"\",'1. Order'!M312)","v":""},null,null,{"$f":"IF('1. Order'!AR312=\"\",\"\",'1. Order'!AR312)","v":""},{"$f":"IF('1. Order'!AE312=\"\",\"\",'1. Order'!AE312)","v":""}]
[{"$f":"IF('1. Order'!B313=\"\",\"\",'1. Order'!B313)","v":""},{"$f":"IF('1. Order'!I313=\"\",\"\",'1. Order'!I313)","v":""},{"$f":"IF('1. Order'!J313=\"\",\"\",'1. Order'!J313)","v":""},{"$f":"IF('1. Order'!K313=\"\",\"\",'1. Order'!K313)","v":""},{"$f":"IF('1. Order'!M313=\"\",\"\",'1. Order'!M313)","v":""},null,null,{"$f":"IF('1. Order'!AR313=\"\",\"\",'1. Order'!AR313)","v":""},{"$f":"IF('1. Order'!AE313=\"\",\"\",'1. Order'!AE313)","v":""}]
[{"$f":"IF('1. Order'!B314=\"\",\"\",'1. Order'!B314)","v":""},{"$f":"IF('1. Order'!I314=\"\",\"\",'1. Order'!I314)","v":""},{"$f":"IF('1. Order'!J314=\"\",\"\",'1. Order'!J314)","v":""},{"$f":"IF('1. Order'!K314=\"\",\"\",'1. Order'!K314)","v":""},{"$f":"IF('1. Order'!M314=\"\",\"\",'1. Order'!M314)","v":""},null,null,{"$f":"IF('1. Order'!AR314=\"\",\"\",'1. Order'!AR314)","v":""},{"$f":"IF('1. Order'!AE314=\"\",\"\",'1. Order'!AE314)","v":""}]
[{"$f":"IF('1. Order'!B315=\"\",\"\",'1. Order'!B315)","v":""},{"$f":"IF('1. Order'!I315=\"\",\"\",'1. Order'!I315)","v":""},{"$f":"IF('1. Order'!J315=\"\",\"\",'1. Order'!J315)","v":""},{"$f":"IF('1. Order'!K315=\"\",\"\",'1. Order'!K315)","v":""},{"$f":"IF('1. Order'!M315=\"\",\"\",'1. Order'!M315)","v":""},null,null,{"$f":"IF('1. Order'!AR315=\"\",\"\",'1. Order'!AR315)","v":""},{"$f":"IF('1. Order'!AE315=\"\",\"\",'1. Order'!AE315)","v":""}]
[{"$f":"IF('1. Order'!B316=\"\",\"\",'1. Order'!B316)","v":""},{"$f":"IF('1. Order'!I316=\"\",\"\",'1. Order'!I316)","v":""},{"$f":"IF('1. Order'!J316=\"\",\"\",'1. Order'!J316)","v":""},{"$f":"IF('1. Order'!K316=\"\",\"\",'1. Order'!K316)","v":""},{"$f":"IF('1. Order'!M316=\"\",\"\",'1. Order'!M316)","v":""},null,null,{"$f":"IF('1. Order'!AR316=\"\",\"\",'1. Order'!AR316)","v":""},{"$f":"IF('1. Order'!AE316=\"\",\"\",'1. Order'!AE316)","v":""}]
[{"$f":"IF('1. Order'!B317=\"\",\"\",'1. Order'!B317)","v":""},{"$f":"IF('1. Order'!I317=\"\",\"\",'1. Order'!I317)","v":""},{"$f":"IF('1. Order'!J317=\"\",\"\",'1. Order'!J317)","v":""},{"$f":"IF('1. Order'!K317=\"\",\"\",'1. Order'!K317)","v":""},{"$f":"IF('1. Order'!M317=\"\",\"\",'1. Order'!M317)","v":""},null,null,{"$f":"IF('1. Order'!AR317=\"\",\"\",'1. Order'!AR317)","v":""},{"$f":"IF('1. Order'!AE317=\"\",\"\",'1. Order'!AE317)","v":""}]
[{"$f":"IF('1. Order'!B318=\"\",\"\",'1. Order'!B318)","v":""},{"$f":"IF('1. Order'!I318=\"\",\"\",'1. Order'!I318)","v":""},{"$f":"IF('1. Order'!J318=\"\",\"\",'1. Order'!J318)","v":""},{"$f":"IF('1. Order'!K318=\"\",\"\",'1. Order'!K318)","v":""},{"$f":"IF('1. Order'!M318=\"\",\"\",'1. Order'!M318)","v":""},null,null,{"$f":"IF('1. Order'!AR318=\"\",\"\",'1. Order'!AR318)","v":""},{"$f":"IF('1. Order'!AE318=\"\",\"\",'1. Order'!AE318)","v":""}]
[{"$f":"IF('1. Order'!B319=\"\",\"\",'1. Order'!B319)","v":""},{"$f":"IF('1. Order'!I319=\"\",\"\",'1. Order'!I319)","v":""},{"$f":"IF('1. Order'!J319=\"\",\"\",'1. Order'!J319)","v":""},{"$f":"IF('1. Order'!K319=\"\",\"\",'1. Order'!K319)","v":""},{"$f":"IF('1. Order'!M319=\"\",\"\",'1. Order'!M319)","v":""},null,null,{"$f":"IF('1. Order'!AR319=\"\",\"\",'1. Order'!AR319)","v":""},{"$f":"IF('1. Order'!AE319=\"\",\"\",'1. Order'!AE319)","v":""}]
[{"$f":"IF('1. Order'!B320=\"\",\"\",'1. Order'!B320)","v":""},{"$f":"IF('1. Order'!I320=\"\",\"\",'1. Order'!I320)","v":""},{"$f":"IF('1. Order'!J320=\"\",\"\",'1. Order'!J320)","v":""},{"$f":"IF('1. Order'!K320=\"\",\"\",'1. Order'!K320)","v":""},{"$f":"IF('1. Order'!M320=\"\",\"\",'1. Order'!M320)","v":""},null,null,{"$f":"IF('1. Order'!AR320=\"\",\"\",'1. Order'!AR320)","v":""},{"$f":"IF('1. Order'!AE320=\"\",\"\",'1. Order'!AE320)","v":""}]
[{"$f":"IF('1. Order'!B321=\"\",\"\",'1. Order'!B321)","v":""},{"$f":"IF('1. Order'!I321=\"\",\"\",'1. Order'!I321)","v":""},{"$f":"IF('1. Order'!J321=\"\",\"\",'1. Order'!J321)","v":""},{"$f":"IF('1. Order'!K321=\"\",\"\",'1. Order'!K321)","v":""},{"$f":"IF('1. Order'!M321=\"\",\"\",'1. Order'!M321)","v":""},null,null,{"$f":"IF('1. Order'!AR321=\"\",\"\",'1. Order'!AR321)","v":""},{"$f":"IF('1. Order'!AE321=\"\",\"\",'1. Order'!AE321)","v":""}]
[{"$f":"IF('1. Order'!B322=\"\",\"\",'1. Order'!B322)","v":""},{"$f":"IF('1. Order'!I322=\"\",\"\",'1. Order'!I322)","v":""},{"$f":"IF('1. Order'!J322=\"\",\"\",'1. Order'!J322)","v":""},{"$f":"IF('1. Order'!K322=\"\",\"\",'1. Order'!K322)","v":""},{"$f":"IF('1. Order'!M322=\"\",\"\",'1. Order'!M322)","v":""},null,null,{"$f":"IF('1. Order'!AR322=\"\",\"\",'1. Order'!AR322)","v":""},{"$f":"IF('1. Order'!AE322=\"\",\"\",'1. Order'!AE322)","v":""}]
[{"$f":"IF('1. Order'!B323=\"\",\"\",'1. Order'!B323)","v":""},{"$f":"IF('1. Order'!I323=\"\",\"\",'1. Order'!I323)","v":""},{"$f":"IF('1. Order'!J323=\"\",\"\",'1. Order'!J323)","v":""},{"$f":"IF('1. Order'!K323=\"\",\"\",'1. Order'!K323)","v":""},{"$f":"IF('1. Order'!M323=\"\",\"\",'1. Order'!M323)","v":""},null,null,{"$f":"IF('1. Order'!AR323=\"\",\"\",'1. Order'!AR323)","v":""},{"$f":"IF('1. Order'!AE323=\"\",\"\",'1. Order'!AE323)","v":""}]
[{"$f":"IF('1. Order'!B324=\"\",\"\",'1. Order'!B324)","v":""},{"$f":"IF('1. Order'!I324=\"\",\"\",'1. Order'!I324)","v":""},{"$f":"IF('1. Order'!J324=\"\",\"\",'1. Order'!J324)","v":""},{"$f":"IF('1. Order'!K324=\"\",\"\",'1. Order'!K324)","v":""},{"$f":"IF('1. Order'!M324=\"\",\"\",'1. Order'!M324)","v":""},null,null,{"$f":"IF('1. Order'!AR324=\"\",\"\",'1. Order'!AR324)","v":""},{"$f":"IF('1. Order'!AE324=\"\",\"\",'1. Order'!AE324)","v":""}]
[{"$f":"IF('1. Order'!B325=\"\",\"\",'1. Order'!B325)","v":""},{"$f":"IF('1. Order'!I325=\"\",\"\",'1. Order'!I325)","v":""},{"$f":"IF('1. Order'!J325=\"\",\"\",'1. Order'!J325)","v":""},{"$f":"IF('1. Order'!K325=\"\",\"\",'1. Order'!K325)","v":""},{"$f":"IF('1. Order'!M325=\"\",\"\",'1. Order'!M325)","v":""},null,null,{"$f":"IF('1. Order'!AR325=\"\",\"\",'1. Order'!AR325)","v":""},{"$f":"IF('1. Order'!AE325=\"\",\"\",'1. Order'!AE325)","v":""}]
[{"$f":"IF('1. Order'!B326=\"\",\"\",'1. Order'!B326)","v":""},{"$f":"IF('1. Order'!I326=\"\",\"\",'1. Order'!I326)","v":""},{"$f":"IF('1. Order'!J326=\"\",\"\",'1. Order'!J326)","v":""},{"$f":"IF('1. Order'!K326=\"\",\"\",'1. Order'!K326)","v":""},{"$f":"IF('1. Order'!M326=\"\",\"\",'1. Order'!M326)","v":""},null,null,{"$f":"IF('1. Order'!AR326=\"\",\"\",'1. Order'!AR326)","v":""},{"$f":"IF('1. Order'!AE326=\"\",\"\",'1. Order'!AE326)","v":""}]
[{"$f":"IF('1. Order'!B327=\"\",\"\",'1. Order'!B327)","v":""},{"$f":"IF('1. Order'!I327=\"\",\"\",'1. Order'!I327)","v":""},{"$f":"IF('1. Order'!J327=\"\",\"\",'1. Order'!J327)","v":""},{"$f":"IF('1. Order'!K327=\"\",\"\",'1. Order'!K327)","v":""},{"$f":"IF('1. Order'!M327=\"\",\"\",'1. Order'!M327)","v":""},null,null,{"$f":"IF('1. Order'!AR327=\"\",\"\",'1. Order'!AR327)","v":""},{"$f":"IF('1. Order'!AE327=\"\",\"\",'1. Order'!AE327)","v":""}]
[{"$f":"IF('1. Order'!B328=\"\",\"\",'1. Order'!B328)","v":""},{"$f":"IF('1. Order'!I328=\"\",\"\",'1. Order'!I328)","v":""},{"$f":"IF('1. Order'!J328=\"\",\"\",'1. Order'!J328)","v":""},{"$f":"IF('1. Order'!K328=\"\",\"\",'1. Order'!K328)","v":""},{"$f":"IF('1. Order'!M328=\"\",\"\",'1. Order'!M328)","v":""},null,null,{"$f":"IF('1. Order'!AR328=\"\",\"\",'1. Order'!AR328)","v":""},{"$f":"IF('1. Order'!AE328=\"\",\"\",'1. Order'!AE328)","v":""}]
[{"$f":"IF('1. Order'!B329=\"\",\"\",'1. Order'!B329)","v":""},{"$f":"IF('1. Order'!I329=\"\",\"\",'1. Order'!I329)","v":""},{"$f":"IF('1. Order'!J329=\"\",\"\",'1. Order'!J329)","v":""},{"$f":"IF('1. Order'!K329=\"\",\"\",'1. Order'!K329)","v":""},{"$f":"IF('1. Order'!M329=\"\",\"\",'1. Order'!M329)","v":""},null,null,{"$f":"IF('1. Order'!AR329=\"\",\"\",'1. Order'!AR329)","v":""},{"$f":"IF('1. Order'!AE329=\"\",\"\",'1. Order'!AE329)","v":""}]
[{"$f":"IF('1. Order'!B330=\"\",\"\",'1. Order'!B330)","v":""},{"$f":"IF('1. Order'!I330=\"\",\"\",'1. Order'!I330)","v":""},{"$f":"IF('1. Order'!J330=\"\",\"\",'1. Order'!J330)","v":""},{"$f":"IF('1. Order'!K330=\"\",\"\",'1. Order'!K330)","v":""},{"$f":"IF('1. Order'!M330=\"\",\"\",'1. Order'!M330)","v":""},null,null,{"$f":"IF('1. Order'!AR330=\"\",\"\",'1. Order'!AR330)","v":""},{"$f":"IF('1. Order'!AE330=\"\",\"\",'1. Order'!AE330)","v":""}]
[{"$f":"IF('1. Order'!B331=\"\",\"\",'1. Order'!B331)","v":""},{"$f":"IF('1. Order'!I331=\"\",\"\",'1. Order'!I331)","v":""},{"$f":"IF('1. Order'!J331=\"\",\"\",'1. Order'!J331)","v":""},{"$f":"IF('1. Order'!K331=\"\",\"\",'1. Order'!K331)","v":""},{"$f":"IF('1. Order'!M331=\"\",\"\",'1. Order'!M331)","v":""},null,null,{"$f":"IF('1. Order'!AR331=\"\",\"\",'1. Order'!AR331)","v":""},{"$f":"IF('1. Order'!AE331=\"\",\"\",'1. Order'!AE331)","v":""}]
[{"$f":"IF('1. Order'!B332=\"\",\"\",'1. Order'!B332)","v":""},{"$f":"IF('1. Order'!I332=\"\",\"\",'1. Order'!I332)","v":""},{"$f":"IF('1. Order'!J332=\"\",\"\",'1. Order'!J332)","v":""},{"$f":"IF('1. Order'!K332=\"\",\"\",'1. Order'!K332)","v":""},{"$f":"IF('1. Order'!M332=\"\",\"\",'1. Order'!M332)","v":""},null,null,{"$f":"IF('1. Order'!AR332=\"\",\"\",'1. Order'!AR332)","v":""},{"$f":"IF('1. Order'!AE332=\"\",\"\",'1. Order'!AE332)","v":""}]
[{"$f":"IF('1. Order'!B333=\"\",\"\",'1. Order'!B333)","v":""},{"$f":"IF('1. Order'!I333=\"\",\"\",'1. Order'!I333)","v":""},{"$f":"IF('1. Order'!J333=\"\",\"\",'1. Order'!J333)","v":""},{"$f":"IF('1. Order'!K333=\"\",\"\",'1. Order'!K333)","v":""},{"$f":"IF('1. Order'!M333=\"\",\"\",'1. Order'!M333)","v":""},null,null,{"$f":"IF('1. Order'!AR333=\"\",\"\",'1. Order'!AR333)","v":""},{"$f":"IF('1. Order'!AE333=\"\",\"\",'1. Order'!AE333)","v":""}]
[{"$f":"IF('1. Order'!B334=\"\",\"\",'1. Order'!B334)","v":""},{"$f":"IF('1. Order'!I334=\"\",\"\",'1. Order'!I334)","v":""},{"$f":"IF('1. Order'!J334=\"\",\"\",'1. Order'!J334)","v":""},{"$f":"IF('1. Order'!K334=\"\",\"\",'1. Order'!K334)","v":""},{"$f":"IF('1. Order'!M334=\"\",\"\",'1. Order'!M334)","v":""},null,null,{"$f":"IF('1. Order'!AR334=\"\",\"\",'1. Order'!AR334)","v":""},{"$f":"IF('1. Order'!AE334=\"\",\"\",'1. Order'!AE334)","v":""}]
[{"$f":"IF('1. Order'!B335=\"\",\"\",'1. Order'!B335)","v":""},{"$f":"IF('1. Order'!I335=\"\",\"\",'1. Order'!I335)","v":""},{"$f":"IF('1. Order'!J335=\"\",\"\",'1. Order'!J335)","v":""},{"$f":"IF('1. Order'!K335=\"\",\"\",'1. Order'!K335)","v":""},{"$f":"IF('1. Order'!M335=\"\",\"\",'1. Order'!M335)","v":""},null,null,{"$f":"IF('1. Order'!AR335=\"\",\"\",'1. Order'!AR335)","v":""},{"$f":"IF('1. Order'!AE335=\"\",\"\",'1. Order'!AE335)","v":""}]
[{"$f":"IF('1. Order'!B336=\"\",\"\",'1. Order'!B336)","v":""},{"$f":"IF('1. Order'!I336=\"\",\"\",'1. Order'!I336)","v":""},{"$f":"IF('1. Order'!J336=\"\",\"\",'1. Order'!J336)","v":""},{"$f":"IF('1. Order'!K336=\"\",\"\",'1. Order'!K336)","v":""},{"$f":"IF('1. Order'!M336=\"\",\"\",'1. Order'!M336)","v":""},null,null,{"$f":"IF('1. Order'!AR336=\"\",\"\",'1. Order'!AR336)","v":""},{"$f":"IF('1. Order'!AE336=\"\",\"\",'1. Order'!AE336)","v":""}]
[{"$f":"IF('1. Order'!B337=\"\",\"\",'1. Order'!B337)","v":""},{"$f":"IF('1. Order'!I337=\"\",\"\",'1. Order'!I337)","v":""},{"$f":"IF('1. Order'!J337=\"\",\"\",'1. Order'!J337)","v":""},{"$f":"IF('1. Order'!K337=\"\",\"\",'1. Order'!K337)","v":""},{"$f":"IF('1. Order'!M337=\"\",\"\",'1. Order'!M337)","v":""},null,null,{"$f":"IF('1. Order'!AR337=\"\",\"\",'1. Order'!AR337)","v":""},{"$f":"IF('1. Order'!AE337=\"\",\"\",'1. Order'!AE337)","v":""}]
[{"$f":"IF('1. Order'!B338=\"\",\"\",'1. Order'!B338)","v":""},{"$f":"IF('1. Order'!I338=\"\",\"\",'1. Order'!I338)","v":""},{"$f":"IF('1. Order'!J338=\"\",\"\",'1. Order'!J338)","v":""},{"$f":"IF('1. Order'!K338=\"\",\"\",'1. Order'!K338)","v":""},{"$f":"IF('1. Order'!M338=\"\",\"\",'1. Order'!M338)","v":""},null,null,{"$f":"IF('1. Order'!AR338=\"\",\"\",'1. Order'!AR338)","v":""},{"$f":"IF('1. Order'!AE338=\"\",\"\",'1. Order'!AE338)","v":""}]
[{"$f":"IF('1. Order'!B339=\"\",\"\",'1. Order'!B339)","v":""},{"$f":"IF('1. Order'!I339=\"\",\"\",'1. Order'!I339)","v":""},{"$f":"IF('1. Order'!J339=\"\",\"\",'1. Order'!J339)","v":""},{"$f":"IF('1. Order'!K339=\"\",\"\",'1. Order'!K339)","v":""},{"$f":"IF('1. Order'!M339=\"\",\"\",'1. Order'!M339)","v":""},null,null,{"$f":"IF('1. Order'!AR339=\"\",\"\",'1. Order'!AR339)","v":""},{"$f":"IF('1. Order'!AE339=\"\",\"\",'1. Order'!AE339)","v":""}]
[{"$f":"IF('1. Order'!B340=\"\",\"\",'1. Order'!B340)","v":""},{"$f":"IF('1. Order'!I340=\"\",\"\",'1. Order'!I340)","v":""},{"$f":"IF('1. Order'!J340=\"\",\"\",'1. Order'!J340)","v":""},{"$f":"IF('1. Order'!K340=\"\",\"\",'1. Order'!K340)","v":""},{"$f":"IF('1. Order'!M340=\"\",\"\",'1. Order'!M340)","v":""},null,null,{"$f":"IF('1. Order'!AR340=\"\",\"\",'1. Order'!AR340)","v":""},{"$f":"IF('1. Order'!AE340=\"\",\"\",'1. Order'!AE340)","v":""}]
[{"$f":"IF('1. Order'!B341=\"\",\"\",'1. Order'!B341)","v":""},{"$f":"IF('1. Order'!I341=\"\",\"\",'1. Order'!I341)","v":""},{"$f":"IF('1. Order'!J341=\"\",\"\",'1. Order'!J341)","v":""},{"$f":"IF('1. Order'!K341=\"\",\"\",'1. Order'!K341)","v":""},{"$f":"IF('1. Order'!M341=\"\",\"\",'1. Order'!M341)","v":""},null,null,{"$f":"IF('1. Order'!AR341=\"\",\"\",'1. Order'!AR341)","v":""},{"$f":"IF('1. Order'!AE341=\"\",\"\",'1. Order'!AE341)","v":""}]
[{"$f":"IF('1. Order'!B342=\"\",\"\",'1. Order'!B342)","v":""},{"$f":"IF('1. Order'!I342=\"\",\"\",'1. Order'!I342)","v":""},{"$f":"IF('1. Order'!J342=\"\",\"\",'1. Order'!J342)","v":""},{"$f":"IF('1. Order'!K342=\"\",\"\",'1. Order'!K342)","v":""},{"$f":"IF('1. Order'!M342=\"\",\"\",'1. Order'!M342)","v":""},null,null,{"$f":"IF('1. Order'!AR342=\"\",\"\",'1. Order'!AR342)","v":""},{"$f":"IF('1. Order'!AE342=\"\",\"\",'1. Order'!AE342)","v":""}]
[{"$f":"IF('1. Order'!B343=\"\",\"\",'1. Order'!B343)","v":""},{"$f":"IF('1. Order'!I343=\"\",\"\",'1. Order'!I343)","v":""},{"$f":"IF('1. Order'!J343=\"\",\"\",'1. Order'!J343)","v":""},{"$f":"IF('1. Order'!K343=\"\",\"\",'1. Order'!K343)","v":""},{"$f":"IF('1. Order'!M343=\"\",\"\",'1. Order'!M343)","v":""},null,null,{"$f":"IF('1. Order'!AR343=\"\",\"\",'1. Order'!AR343)","v":""},{"$f":"IF('1. Order'!AE343=\"\",\"\",'1. Order'!AE343)","v":""}]
[{"$f":"IF('1. Order'!B344=\"\",\"\",'1. Order'!B344)","v":""},{"$f":"IF('1. Order'!I344=\"\",\"\",'1. Order'!I344)","v":""},{"$f":"IF('1. Order'!J344=\"\",\"\",'1. Order'!J344)","v":""},{"$f":"IF('1. Order'!K344=\"\",\"\",'1. Order'!K344)","v":""},{"$f":"IF('1. Order'!M344=\"\",\"\",'1. Order'!M344)","v":""},null,null,{"$f":"IF('1. Order'!AR344=\"\",\"\",'1. Order'!AR344)","v":""},{"$f":"IF('1. Order'!AE344=\"\",\"\",'1. Order'!AE344)","v":""}]
[{"$f":"IF('1. Order'!B345=\"\",\"\",'1. Order'!B345)","v":""},{"$f":"IF('1. Order'!I345=\"\",\"\",'1. Order'!I345)","v":""},{"$f":"IF('1. Order'!J345=\"\",\"\",'1. Order'!J345)","v":""},{"$f":"IF('1. Order'!K345=\"\",\"\",'1. Order'!K345)","v":""},{"$f":"IF('1. Order'!M345=\"\",\"\",'1. Order'!M345)","v":""},null,null,{"$f":"IF('1. Order'!AR345=\"\",\"\",'1. Order'!AR345)","v":""},{"$f":"IF('1. Order'!AE345=\"\",\"\",'1. Order'!AE345)","v":""}]
[{"$f":"IF('1. Order'!B346=\"\",\"\",'1. Order'!B346)","v":""},{"$f":"IF('1. Order'!I346=\"\",\"\",'1. Order'!I346)","v":""},{"$f":"IF('1. Order'!J346=\"\",\"\",'1. Order'!J346)","v":""},{"$f":"IF('1. Order'!K346=\"\",\"\",'1. Order'!K346)","v":""},{"$f":"IF('1. Order'!M346=\"\",\"\",'1. Order'!M346)","v":""},null,null,{"$f":"IF('1. Order'!AR346=\"\",\"\",'1. Order'!AR346)","v":""},{"$f":"IF('1. Order'!AE346=\"\",\"\",'1. Order'!AE346)","v":""}]
[{"$f":"IF('1. Order'!B347=\"\",\"\",'1. Order'!B347)","v":""},{"$f":"IF('1. Order'!I347=\"\",\"\",'1. Order'!I347)","v":""},{"$f":"IF('1. Order'!J347=\"\",\"\",'1. Order'!J347)","v":""},{"$f":"IF('1. Order'!K347=\"\",\"\",'1. Order'!K347)","v":""},{"$f":"IF('1. Order'!M347=\"\",\"\",'1. Order'!M347)","v":""},null,null,{"$f":"IF('1. Order'!AR347=\"\",\"\",'1. Order'!AR347)","v":""},{"$f":"IF('1. Order'!AE347=\"\",\"\",'1. Order'!AE347)","v":""}]
[{"$f":"IF('1. Order'!B348=\"\",\"\",'1. Order'!B348)","v":""},{"$f":"IF('1. Order'!I348=\"\",\"\",'1. Order'!I348)","v":""},{"$f":"IF('1. Order'!J348=\"\",\"\",'1. Order'!J348)","v":""},{"$f":"IF('1. Order'!K348=\"\",\"\",'1. Order'!K348)","v":""},{"$f":"IF('1. Order'!M348=\"\",\"\",'1. Order'!M348)","v":""},null,null,{"$f":"IF('1. Order'!AR348=\"\",\"\",'1. Order'!AR348)","v":""},{"$f":"IF('1. Order'!AE348=\"\",\"\",'1. Order'!AE348)","v":""}]
[{"$f":"IF('1. Order'!B349=\"\",\"\",'1. Order'!B349)","v":""},{"$f":"IF('1. Order'!I349=\"\",\"\",'1. Order'!I349)","v":""},{"$f":"IF('1. Order'!J349=\"\",\"\",'1. Order'!J349)","v":""},{"$f":"IF('1. Order'!K349=\"\",\"\",'1. Order'!K349)","v":""},{"$f":"IF('1. Order'!M349=\"\",\"\",'1. Order'!M349)","v":""},null,null,{"$f":"IF('1. Order'!AR349=\"\",\"\",'1. Order'!AR349)","v":""},{"$f":"IF('1. Order'!AE349=\"\",\"\",'1. Order'!AE349)","v":""}]
[{"$f":"IF('1. Order'!B350=\"\",\"\",'1. Order'!B350)","v":""},{"$f":"IF('1. Order'!I350=\"\",\"\",'1. Order'!I350)","v":""},{"$f":"IF('1. Order'!J350=\"\",\"\",'1. Order'!J350)","v":""},{"$f":"IF('1. Order'!K350=\"\",\"\",'1. Order'!K350)","v":""},{"$f":"IF('1. Order'!M350=\"\",\"\",'1. Order'!M350)","v":""},null,null,{"$f":"IF('1. Order'!AR350=\"\",\"\",'1. Order'!AR350)","v":""},{"$f":"IF('1. Order'!AE350=\"\",\"\",'1. Order'!AE350)","v":""}]
[{"$f":"IF('1. Order'!B351=\"\",\"\",'1. Order'!B351)","v":""},{"$f":"IF('1. Order'!I351=\"\",\"\",'1. Order'!I351)","v":""},{"$f":"IF('1. Order'!J351=\"\",\"\",'1. Order'!J351)","v":""},{"$f":"IF('1. Order'!K351=\"\",\"\",'1. Order'!K351)","v":""},{"$f":"IF('1. Order'!M351=\"\",\"\",'1. Order'!M351)","v":""},null,null,{"$f":"IF('1. Order'!AR351=\"\",\"\",'1. Order'!AR351)","v":""},{"$f":"IF('1. Order'!AE351=\"\",\"\",'1. Order'!AE351)","v":""}]
[{"$f":"IF('1. Order'!B352=\"\",\"\",'1. Order'!B352)","v":""},{"$f":"IF('1. Order'!I352=\"\",\"\",'1. Order'!I352)","v":""},{"$f":"IF('1. Order'!J352=\"\",\"\",'1. Order'!J352)","v":""},{"$f":"IF('1. Order'!K352=\"\",\"\",'1. Order'!K352)","v":""},{"$f":"IF('1. Order'!M352=\"\",\"\",'1. Order'!M352)","v":""},null,null,{"$f":"IF('1. Order'!AR352=\"\",\"\",'1. Order'!AR352)","v":""},{"$f":"IF('1. Order'!AE352=\"\",\"\",'1. Order'!AE352)","v":""}]
[{"$f":"IF('1. Order'!B353=\"\",\"\",'1. Order'!B353)","v":""},{"$f":"IF('1. Order'!I353=\"\",\"\",'1. Order'!I353)","v":""},{"$f":"IF('1. Order'!J353=\"\",\"\",'1. Order'!J353)","v":""},{"$f":"IF('1. Order'!K353=\"\",\"\",'1. Order'!K353)","v":""},{"$f":"IF('1. Order'!M353=\"\",\"\",'1. Order'!M353)","v":""},null,null,{"$f":"IF('1. Order'!AR353=\"\",\"\",'1. Order'!AR353)","v":""},{"$f":"IF('1. Order'!AE353=\"\",\"\",'1. Order'!AE353)","v":""}]
[{"$f":"IF('1. Order'!B354=\"\",\"\",'1. Order'!B354)","v":""},{"$f":"IF('1. Order'!I354=\"\",\"\",'1. Order'!I354)","v":""},{"$f":"IF('1. Order'!J354=\"\",\"\",'1. Order'!J354)","v":""},{"$f":"IF('1. Order'!K354=\"\",\"\",'1. Order'!K354)","v":""},{"$f":"IF('1. Order'!M354=\"\",\"\",'1. Order'!M354)","v":""},null,null,{"$f":"IF('1. Order'!AR354=\"\",\"\",'1. Order'!AR354)","v":""},{"$f":"IF('1. Order'!AE354=\"\",\"\",'1. Order'!AE354)","v":""}]
[{"$f":"IF('1. Order'!B355=\"\",\"\",'1. Order'!B355)","v":""},{"$f":"IF('1. Order'!I355=\"\",\"\",'1. Order'!I355)","v":""},{"$f":"IF('1. Order'!J355=\"\",\"\",'1. Order'!J355)","v":""},{"$f":"IF('1. Order'!K355=\"\",\"\",'1. Order'!K355)","v":""},{"$f":"IF('1. Order'!M355=\"\",\"\",'1. Order'!M355)","v":""},null,null,{"$f":"IF('1. Order'!AR355=\"\",\"\",'1. Order'!AR355)","v":""},{"$f":"IF('1. Order'!AE355=\"\",\"\",'1. Order'!AE355)","v":""}]
[{"$f":"IF('1. Order'!B356=\"\",\"\",'1. Order'!B356)","v":""},{"$f":"IF('1. Order'!I356=\"\",\"\",'1. Order'!I356)","v":""},{"$f":"IF('1. Order'!J356=\"\",\"\",'1. Order'!J356)","v":""},{"$f":"IF('1. Order'!K356=\"\",\"\",'1. Order'!K356)","v":""},{"$f":"IF('1. Order'!M356=\"\",\"\",'1. Order'!M356)","v":""},null,null,{"$f":"IF('1. Order'!AR356=\"\",\"\",'1. Order'!AR356)","v":""},{"$f":"IF('1. Order'!AE356=\"\",\"\",'1. Order'!AE356)","v":""}]
[{"$f":"IF('1. Order'!B357=\"\",\"\",'1. Order'!B357)","v":""},{"$f":"IF('1. Order'!I357=\"\",\"\",'1. Order'!I357)","v":""},{"$f":"IF('1. Order'!J357=\"\",\"\",'1. Order'!J357)","v":""},{"$f":"IF('1. Order'!K357=\"\",\"\",'1. Order'!K357)","v":""},{"$f":"IF('1. Order'!M357=\"\",\"\",'1. Order'!M357)","v":""},null,null,{"$f":"IF('1. Order'!AR357=\"\",\"\",'1. Order'!AR357)","v":""},{"$f":"IF('1. Order'!AE357=\"\",\"\",'1. Order'!AE357)","v":""}]
[{"$f":"IF('1. Order'!B358=\"\",\"\",'1. Order'!B358)","v":""},{"$f":"IF('1. Order'!I358=\"\",\"\",'1. Order'!I358)","v":""},{"$f":"IF('1. Order'!J358=\"\",\"\",'1. Order'!J358)","v":""},{"$f":"IF('1. Order'!K358=\"\",\"\",'1. Order'!K358)","v":""},{"$f":"IF('1. Order'!M358=\"\",\"\",'1. Order'!M358)","v":""},null,null,{"$f":"IF('1. Order'!AR358=\"\",\"\",'1. Order'!AR358)","v":""},{"$f":"IF('1. Order'!AE358=\"\",\"\",'1. Order'!AE358)","v":""}]
[{"$f":"IF('1. Order'!B359=\"\",\"\",'1. Order'!B359)","v":""},{"$f":"IF('1. Order'!I359=\"\",\"\",'1. Order'!I359)","v":""},{"$f":"IF('1. Order'!J359=\"\",\"\",'1. Order'!J359)","v":""},{"$f":"IF('1. Order'!K359=\"\",\"\",'1. Order'!K359)","v":""},{"$f":"IF('1. Order'!M359=\"\",\"\",'1. Order'!M359)","v":""},null,null,{"$f":"IF('1. Order'!AR359=\"\",\"\",'1. Order'!AR359)","v":""},{"$f":"IF('1. Order'!AE359=\"\",\"\",'1. Order'!AE359)","v":""}]
[{"$f":"IF('1. Order'!B360=\"\",\"\",'1. Order'!B360)","v":""},{"$f":"IF('1. Order'!I360=\"\",\"\",'1. Order'!I360)","v":""},{"$f":"IF('1. Order'!J360=\"\",\"\",'1. Order'!J360)","v":""},{"$f":"IF('1. Order'!K360=\"\",\"\",'1. Order'!K360)","v":""},{"$f":"IF('1. Order'!M360=\"\",\"\",'1. Order'!M360)","v":""},null,null,{"$f":"IF('1. Order'!AR360=\"\",\"\",'1. Order'!AR360)","v":""},{"$f":"IF('1. Order'!AE360=\"\",\"\",'1. Order'!AE360)","v":""}]
[{"$f":"IF('1. Order'!B361=\"\",\"\",'1. Order'!B361)","v":""},{"$f":"IF('1. Order'!I361=\"\",\"\",'1. Order'!I361)","v":""},{"$f":"IF('1. Order'!J361=\"\",\"\",'1. Order'!J361)","v":""},{"$f":"IF('1. Order'!K361=\"\",\"\",'1. Order'!K361)","v":""},{"$f":"IF('1. Order'!M361=\"\",\"\",'1. Order'!M361)","v":""},null,null,{"$f":"IF('1. Order'!AR361=\"\",\"\",'1. Order'!AR361)","v":""},{"$f":"IF('1. Order'!AE361=\"\",\"\",'1. Order'!AE361)","v":""}]
[{"$f":"IF('1. Order'!B362=\"\",\"\",'1. Order'!B362)","v":""},{"$f":"IF('1. Order'!I362=\"\",\"\",'1. Order'!I362)","v":""},{"$f":"IF('1. Order'!J362=\"\",\"\",'1. Order'!J362)","v":""},{"$f":"IF('1. Order'!K362=\"\",\"\",'1. Order'!K362)","v":""},{"$f":"IF('1. Order'!M362=\"\",\"\",'1. Order'!M362)","v":""},null,null,{"$f":"IF('1. Order'!AR362=\"\",\"\",'1. Order'!AR362)","v":""},{"$f":"IF('1. Order'!AE362=\"\",\"\",'1. Order'!AE362)","v":""}]
[{"$f":"IF('1. Order'!B363=\"\",\"\",'1. Order'!B363)","v":""},{"$f":"IF('1. Order'!I363=\"\",\"\",'1. Order'!I363)","v":""},{"$f":"IF('1. Order'!J363=\"\",\"\",'1. Order'!J363)","v":""},{"$f":"IF('1. Order'!K363=\"\",\"\",'1. Order'!K363)","v":""},{"$f":"IF('1. Order'!M363=\"\",\"\",'1. Order'!M363)","v":""},null,null,{"$f":"IF('1. Order'!AR363=\"\",\"\",'1. Order'!AR363)","v":""},{"$f":"IF('1. Order'!AE363=\"\",\"\",'1. Order'!AE363)","v":""}]
[{"$f":"IF('1. Order'!B364=\"\",\"\",'1. Order'!B364)","v":""},{"$f":"IF('1. Order'!I364=\"\",\"\",'1. Order'!I364)","v":""},{"$f":"IF('1. Order'!J364=\"\",\"\",'1. Order'!J364)","v":""},{"$f":"IF('1. Order'!K364=\"\",\"\",'1. Order'!K364)","v":""},{"$f":"IF('1. Order'!M364=\"\",\"\",'1. Order'!M364)","v":""},null,null,{"$f":"IF('1. Order'!AR364=\"\",\"\",'1. Order'!AR364)","v":""},{"$f":"IF('1. Order'!AE364=\"\",\"\",'1. Order'!AE364)","v":""}]
[{"$f":"IF('1. Order'!B365=\"\",\"\",'1. Order'!B365)","v":""},{"$f":"IF('1. Order'!I365=\"\",\"\",'1. Order'!I365)","v":""},{"$f":"IF('1. Order'!J365=\"\",\"\",'1. Order'!J365)","v":""},{"$f":"IF('1. Order'!K365=\"\",\"\",'1. Order'!K365)","v":""},{"$f":"IF('1. Order'!M365=\"\",\"\",'1. Order'!M365)","v":""},null,null,{"$f":"IF('1. Order'!AR365=\"\",\"\",'1. Order'!AR365)","v":""},{"$f":"IF('1. Order'!AE365=\"\",\"\",'1. Order'!AE365)","v":""}]
[{"$f":"IF('1. Order'!B366=\"\",\"\",'1. Order'!B366)","v":""},{"$f":"IF('1. Order'!I366=\"\",\"\",'1. Order'!I366)","v":""},{"$f":"IF('1. Order'!J366=\"\",\"\",'1. Order'!J366)","v":""},{"$f":"IF('1. Order'!K366=\"\",\"\",'1. Order'!K366)","v":""},{"$f":"IF('1. Order'!M366=\"\",\"\",'1. Order'!M366)","v":""},null,null,{"$f":"IF('1. Order'!AR366=\"\",\"\",'1. Order'!AR366)","v":""},{"$f":"IF('1. Order'!AE366=\"\",\"\",'1. Order'!AE366)","v":""}]
[{"$f":"IF('1. Order'!B367=\"\",\"\",'1. Order'!B367)","v":""},{"$f":"IF('1. Order'!I367=\"\",\"\",'1. Order'!I367)","v":""},{"$f":"IF('1. Order'!J367=\"\",\"\",'1. Order'!J367)","v":""},{"$f":"IF('1. Order'!K367=\"\",\"\",'1. Order'!K367)","v":""},{"$f":"IF('1. Order'!M367=\"\",\"\",'1. Order'!M367)","v":""},null,null,{"$f":"IF('1. Order'!AR367=\"\",\"\",'1. Order'!AR367)","v":""},{"$f":"IF('1. Order'!AE367=\"\",\"\",'1. Order'!AE367)","v":""}]
[{"$f":"IF('1. Order'!B368=\"\",\"\",'1. Order'!B368)","v":""},{"$f":"IF('1. Order'!I368=\"\",\"\",'1. Order'!I368)","v":""},{"$f":"IF('1. Order'!J368=\"\",\"\",'1. Order'!J368)","v":""},{"$f":"IF('1. Order'!K368=\"\",\"\",'1. Order'!K368)","v":""},{"$f":"IF('1. Order'!M368=\"\",\"\",'1. Order'!M368)","v":""},null,null,{"$f":"IF('1. Order'!AR368=\"\",\"\",'1. Order'!AR368)","v":""},{"$f":"IF('1. Order'!AE368=\"\",\"\",'1. Order'!AE368)","v":""}]
[{"$f":"IF('1. Order'!B369=\"\",\"\",'1. Order'!B369)","v":""},{"$f":"IF('1. Order'!I369=\"\",\"\",'1. Order'!I369)","v":""},{"$f":"IF('1. Order'!J369=\"\",\"\",'1. Order'!J369)","v":""},{"$f":"IF('1. Order'!K369=\"\",\"\",'1. Order'!K369)","v":""},{"$f":"IF('1. Order'!M369=\"\",\"\",'1. Order'!M369)","v":""},null,null,{"$f":"IF('1. Order'!AR369=\"\",\"\",'1. Order'!AR369)","v":""},{"$f":"IF('1. Order'!AE369=\"\",\"\",'1. Order'!AE369)","v":""}]
[{"$f":"IF('1. Order'!B370=\"\",\"\",'1. Order'!B370)","v":""},{"$f":"IF('1. Order'!I370=\"\",\"\",'1. Order'!I370)","v":""},{"$f":"IF('1. Order'!J370=\"\",\"\",'1. Order'!J370)","v":""},{"$f":"IF('1. Order'!K370=\"\",\"\",'1. Order'!K370)","v":""},{"$f":"IF('1. Order'!M370=\"\",\"\",'1. Order'!M370)","v":""},null,null,{"$f":"IF('1. Order'!AR370=\"\",\"\",'1. Order'!AR370)","v":""},{"$f":"IF('1. Order'!AE370=\"\",\"\",'1. Order'!AE370)","v":""}]
[{"$f":"IF('1. Order'!B371=\"\",\"\",'1. Order'!B371)","v":""},{"$f":"IF('1. Order'!I371=\"\",\"\",'1. Order'!I371)","v":""},{"$f":"IF('1. Order'!J371=\"\",\"\",'1. Order'!J371)","v":""},{"$f":"IF('1. Order'!K371=\"\",\"\",'1. Order'!K371)","v":""},{"$f":"IF('1. Order'!M371=\"\",\"\",'1. Order'!M371)","v":""},null,null,{"$f":"IF('1. Order'!AR371=\"\",\"\",'1. Order'!AR371)","v":""},{"$f":"IF('1. Order'!AE371=\"\",\"\",'1. Order'!AE371)","v":""}]
[{"$f":"IF('1. Order'!B372=\"\",\"\",'1. Order'!B372)","v":""},{"$f":"IF('1. Order'!I372=\"\",\"\",'1. Order'!I372)","v":""},{"$f":"IF('1. Order'!J372=\"\",\"\",'1. Order'!J372)","v":""},{"$f":"IF('1. Order'!K372=\"\",\"\",'1. Order'!K372)","v":""},{"$f":"IF('1. Order'!M372=\"\",\"\",'1. Order'!M372)","v":""},null,null,{"$f":"IF('1. Order'!AR372=\"\",\"\",'1. Order'!AR372)","v":""},{"$f":"IF('1. Order'!AE372=\"\",\"\",'1. Order'!AE372)","v":""}]
[{"$f":"IF('1. Order'!B373=\"\",\"\",'1. Order'!B373)","v":""},{"$f":"IF('1. Order'!I373=\"\",\"\",'1. Order'!I373)","v":""},{"$f":"IF('1. Order'!J373=\"\",\"\",'1. Order'!J373)","v":""},{"$f":"IF('1. Order'!K373=\"\",\"\",'1. Order'!K373)","v":""},{"$f":"IF('1. Order'!M373=\"\",\"\",'1. Order'!M373)","v":""},null,null,{"$f":"IF('1. Order'!AR373=\"\",\"\",'1. Order'!AR373)","v":""},{"$f":"IF('1. Order'!AE373=\"\",\"\",'1. Order'!AE373)","v":""}]
[{"$f":"IF('1. Order'!B374=\"\",\"\",'1. Order'!B374)","v":""},{"$f":"IF('1. Order'!I374=\"\",\"\",'1. Order'!I374)","v":""},{"$f":"IF('1. Order'!J374=\"\",\"\",'1. Order'!J374)","v":""},{"$f":"IF('1. Order'!K374=\"\",\"\",'1. Order'!K374)","v":""},{"$f":"IF('1. Order'!M374=\"\",\"\",'1. Order'!M374)","v":""},null,null,{"$f":"IF('1. Order'!AR374=\"\",\"\",'1. Order'!AR374)","v":""},{"$f":"IF('1. Order'!AE374=\"\",\"\",'1. Order'!AE374)","v":""}]
[{"$f":"IF('1. Order'!B375=\"\",\"\",'1. Order'!B375)","v":""},{"$f":"IF('1. Order'!I375=\"\",\"\",'1. Order'!I375)","v":""},{"$f":"IF('1. Order'!J375=\"\",\"\",'1. Order'!J375)","v":""},{"$f":"IF('1. Order'!K375=\"\",\"\",'1. Order'!K375)","v":""},{"$f":"IF('1. Order'!M375=\"\",\"\",'1. Order'!M375)","v":""},null,null,{"$f":"IF('1. Order'!AR375=\"\",\"\",'1. Order'!AR375)","v":""},{"$f":"IF('1. Order'!AE375=\"\",\"\",'1. Order'!AE375)","v":""}]
[{"$f":"IF('1. Order'!B376=\"\",\"\",'1. Order'!B376)","v":""},{"$f":"IF('1. Order'!I376=\"\",\"\",'1. Order'!I376)","v":""},{"$f":"IF('1. Order'!J376=\"\",\"\",'1. Order'!J376)","v":""},{"$f":"IF('1. Order'!K376=\"\",\"\",'1. Order'!K376)","v":""},{"$f":"IF('1. Order'!M376=\"\",\"\",'1. Order'!M376)","v":""},null,null,{"$f":"IF('1. Order'!AR376=\"\",\"\",'1. Order'!AR376)","v":""},{"$f":"IF('1. Order'!AE376=\"\",\"\",'1. Order'!AE376)","v":""}]
[{"$f":"IF('1. Order'!B377=\"\",\"\",'1. Order'!B377)","v":""},{"$f":"IF('1. Order'!I377=\"\",\"\",'1. Order'!I377)","v":""},{"$f":"IF('1. Order'!J377=\"\",\"\",'1. Order'!J377)","v":""},{"$f":"IF('1. Order'!K377=\"\",\"\",'1. Order'!K377)","v":""},{"$f":"IF('1. Order'!M377=\"\",\"\",'1. Order'!M377)","v":""},null,null,{"$f":"IF('1. Order'!AR377=\"\",\"\",'1. Order'!AR377)","v":""},{"$f":"IF('1. Order'!AE377=\"\",\"\",'1. Order'!AE377)","v":""}]
[{"$f":"IF('1. Order'!B378=\"\",\"\",'1. Order'!B378)","v":""},{"$f":"IF('1. Order'!I378=\"\",\"\",'1. Order'!I378)","v":""},{"$f":"IF('1. Order'!J378=\"\",\"\",'1. Order'!J378)","v":""},{"$f":"IF('1. Order'!K378=\"\",\"\",'1. Order'!K378)","v":""},{"$f":"IF('1. Order'!M378=\"\",\"\",'1. Order'!M378)","v":""},null,null,{"$f":"IF('1. Order'!AR378=\"\",\"\",'1. Order'!AR378)","v":""},{"$f":"IF('1. Order'!AE378=\"\",\"\",'1. Order'!AE378)","v":""}]
[{"$f":"IF('1. Order'!B379=\"\",\"\",'1. Order'!B379)","v":""},{"$f":"IF('1. Order'!I379=\"\",\"\",'1. Order'!I379)","v":""},{"$f":"IF('1. Order'!J379=\"\",\"\",'1. Order'!J379)","v":""},{"$f":"IF('1. Order'!K379=\"\",\"\",'1. Order'!K379)","v":""},{"$f":"IF('1. Order'!M379=\"\",\"\",'1. Order'!M379)","v":""},null,null,{"$f":"IF('1. Order'!AR379=\"\",\"\",'1. Order'!AR379)","v":""},{"$f":"IF('1. Order'!AE379=\"\",\"\",'1. Order'!AE379)","v":""}]
[{"$f":"IF('1. Order'!B380=\"\",\"\",'1. Order'!B380)","v":""},{"$f":"IF('1. Order'!I380=\"\",\"\",'1. Order'!I380)","v":""},{"$f":"IF('1. Order'!J380=\"\",\"\",'1. Order'!J380)","v":""},{"$f":"IF('1. Order'!K380=\"\",\"\",'1. Order'!K380)","v":""},{"$f":"IF('1. Order'!M380=\"\",\"\",'1. Order'!M380)","v":""},null,null,{"$f":"IF('1. Order'!AR380=\"\",\"\",'1. Order'!AR380)","v":""},{"$f":"IF('1. Order'!AE380=\"\",\"\",'1. Order'!AE380)","v":""}]
[{"$f":"IF('1. Order'!B381=\"\",\"\",'1. Order'!B381)","v":""},{"$f":"IF('1. Order'!I381=\"\",\"\",'1. Order'!I381)","v":""},{"$f":"IF('1. Order'!J381=\"\",\"\",'1. Order'!J381)","v":""},{"$f":"IF('1. Order'!K381=\"\",\"\",'1. Order'!K381)","v":""},{"$f":"IF('1. Order'!M381=\"\",\"\",'1. Order'!M381)","v":""},null,null,{"$f":"IF('1. Order'!AR381=\"\",\"\",'1. Order'!AR381)","v":""},{"$f":"IF('1. Order'!AE381=\"\",\"\",'1. Order'!AE381)","v":""}]
[{"$f":"IF('1. Order'!B382=\"\",\"\",'1. Order'!B382)","v":""},{"$f":"IF('1. Order'!I382=\"\",\"\",'1. Order'!I382)","v":""},{"$f":"IF('1. Order'!J382=\"\",\"\",'1. Order'!J382)","v":""},{"$f":"IF('1. Order'!K382=\"\",\"\",'1. Order'!K382)","v":""},{"$f":"IF('1. Order'!M382=\"\",\"\",'1. Order'!M382)","v":""},null,null,{"$f":"IF('1. Order'!AR382=\"\",\"\",'1. Order'!AR382)","v":""},{"$f":"IF('1. Order'!AE382=\"\",\"\",'1. Order'!AE382)","v":""}]
[{"$f":"IF('1. Order'!B383=\"\",\"\",'1. Order'!B383)","v":""},{"$f":"IF('1. Order'!I383=\"\",\"\",'1. Order'!I383)","v":""},{"$f":"IF('1. Order'!J383=\"\",\"\",'1. Order'!J383)","v":""},{"$f":"IF('1. Order'!K383=\"\",\"\",'1. Order'!K383)","v":""},{"$f":"IF('1. Order'!M383=\"\",\"\",'1. Order'!M383)","v":""},null,null,{"$f":"IF('1. Order'!AR383=\"\",\"\",'1. Order'!AR383)","v":""},{"$f":"IF('1. Order'!AE383=\"\",\"\",'1. Order'!AE383)","v":""}]
[{"$f":"IF('1. Order'!B384=\"\",\"\",'1. Order'!B384)","v":""},{"$f":"IF('1. Order'!I384=\"\",\"\",'1. Order'!I384)","v":""},{"$f":"IF('1. Order'!J384=\"\",\"\",'1. Order'!J384)","v":""},{"$f":"IF('1. Order'!K384=\"\",\"\",'1. Order'!K384)","v":""},{"$f":"IF('1. Order'!M384=\"\",\"\",'1. Order'!M384)","v":""},null,null,{"$f":"IF('1. Order'!AR384=\"\",\"\",'1. Order'!AR384)","v":""},{"$f":"IF('1. Order'!AE384=\"\",\"\",'1. Order'!AE384)","v":""}]
[{"$f":"IF('1. Order'!B385=\"\",\"\",'1. Order'!B385)","v":""},{"$f":"IF('1. Order'!I385=\"\",\"\",'1. Order'!I385)","v":""},{"$f":"IF('1. Order'!J385=\"\",\"\",'1. Order'!J385)","v":""},{"$f":"IF('1. Order'!K385=\"\",\"\",'1. Order'!K385)","v":""},{"$f":"IF('1. Order'!M385=\"\",\"\",'1. Order'!M385)","v":""},null,null,{"$f":"IF('1. Order'!AR385=\"\",\"\",'1. Order'!AR385)","v":""},{"$f":"IF('1. Order'!AE385=\"\",\"\",'1. Order'!AE385)","v":""}]
[{"$f":"IF('1. Order'!B386=\"\",\"\",'1. Order'!B386)","v":""},{"$f":"IF('1. Order'!I386=\"\",\"\",'1. Order'!I386)","v":""},{"$f":"IF('1. Order'!J386=\"\",\"\",'1. Order'!J386)","v":""},{"$f":"IF('1. Order'!K386=\"\",\"\",'1. Order'!K386)","v":""},{"$f":"IF('1. Order'!M386=\"\",\"\",'1. Order'!M386)","v":""},null,null,{"$f":"IF('1. Order'!AR386=\"\",\"\",'1. Order'!AR386)","v":""},{"$f":"IF('1. Order'!AE386=\"\",\"\",'1. Order'!AE386)","v":""}]
[{"$f":"IF('1. Order'!B387=\"\",\"\",'1. Order'!B387)","v":""},{"$f":"IF('1. Order'!I387=\"\",\"\",'1. Order'!I387)","v":""},{"$f":"IF('1. Order'!J387=\"\",\"\",'1. Order'!J387)","v":""},{"$f":"IF('1. Order'!K387=\"\",\"\",'1. Order'!K387)","v":""},{"$f":"IF('1. Order'!M387=\"\",\"\",'1. Order'!M387)","v":""},null,null,{"$f":"IF('1. Order'!AR387=\"\",\"\",'1. Order'!AR387)","v":""},{"$f":"IF('1. Order'!AE387=\"\",\"\",'1. Order'!AE387)","v":""}]
[{"$f":"IF('1. Order'!B388=\"\",\"\",'1. Order'!B388)","v":""},{"$f":"IF('1. Order'!I388=\"\",\"\",'1. Order'!I388)","v":""},{"$f":"IF('1. Order'!J388=\"\",\"\",'1. Order'!J388)","v":""},{"$f":"IF('1. Order'!K388=\"\",\"\",'1. Order'!K388)","v":""},{"$f":"IF('1. Order'!M388=\"\",\"\",'1. Order'!M388)","v":""},null,null,{"$f":"IF('1. Order'!AR388=\"\",\"\",'1. Order'!AR388)","v":""},{"$f":"IF('1. Order'!AE388=\"\",\"\",'1. Order'!AE388)","v":""}]
[{"$f":"IF('1. Order'!B389=\"\",\"\",'1. Order'!B389)","v":""},{"$f":"IF('1. Order'!I389=\"\",\"\",'1. Order'!I389)","v":""},{"$f":"IF('1. Order'!J389=\"\",\"\",'1. Order'!J389)","v":""},{"$f":"IF('1. Order'!K389=\"\",\"\",'1. Order'!K389)","v":""},{"$f":"IF('1. Order'!M389=\"\",\"\",'1. Order'!M389)","v":""},null,null,{"$f":"IF('1. Order'!AR389=\"\",\"\",'1. Order'!AR389)","v":""},{"$f":"IF('1. Order'!AE389=\"\",\"\",'1. Order'!AE389)","v":""}]
[{"$f":"IF('1. Order'!B390=\"\",\"\",'1. Order'!B390)","v":""},{"$f":"IF('1. Order'!I390=\"\",\"\",'1. Order'!I390)","v":""},{"$f":"IF('1. Order'!J390=\"\",\"\",'1. Order'!J390)","v":""},{"$f":"IF('1. Order'!K390=\"\",\"\",'1. Order'!K390)","v":""},{"$f":"IF('1. Order'!M390=\"\",\"\",'1. Order'!M390)","v":""},null,null,{"$f":"IF('1. Order'!AR390=\"\",\"\",'1. Order'!AR390)","v":""},{"$f":"IF('1. Order'!AE390=\"\",\"\",'1. Order'!AE390)","v":""}]
[{"$f":"IF('1. Order'!B391=\"\",\"\",'1. Order'!B391)","v":""},{"$f":"IF('1. Order'!I391=\"\",\"\",'1. Order'!I391)","v":""},{"$f":"IF('1. Order'!J391=\"\",\"\",'1. Order'!J391)","v":""},{"$f":"IF('1. Order'!K391=\"\",\"\",'1. Order'!K391)","v":""},{"$f":"IF('1. Order'!M391=\"\",\"\",'1. Order'!M391)","v":""},null,null,{"$f":"IF('1. Order'!AR391=\"\",\"\",'1. Order'!AR391)","v":""},{"$f":"IF('1. Order'!AE391=\"\",\"\",'1. Order'!AE391)","v":""}]
[{"$f":"IF('1. Order'!B392=\"\",\"\",'1. Order'!B392)","v":""},{"$f":"IF('1. Order'!I392=\"\",\"\",'1. Order'!I392)","v":""},{"$f":"IF('1. Order'!J392=\"\",\"\",'1. Order'!J392)","v":""},{"$f":"IF('1. Order'!K392=\"\",\"\",'1. Order'!K392)","v":""},{"$f":"IF('1. Order'!M392=\"\",\"\",'1. Order'!M392)","v":""},null,null,{"$f":"IF('1. Order'!AR392=\"\",\"\",'1. Order'!AR392)","v":""},{"$f":"IF('1. Order'!AE392=\"\",\"\",'1. Order'!AE392)","v":""}]
[{"$f":"IF('1. Order'!B393=\"\",\"\",'1. Order'!B393)","v":""},{"$f":"IF('1. Order'!I393=\"\",\"\",'1. Order'!I393)","v":""},{"$f":"IF('1. Order'!J393=\"\",\"\",'1. Order'!J393)","v":""},{"$f":"IF('1. Order'!K393=\"\",\"\",'1. Order'!K393)","v":""},{"$f":"IF('1. Order'!M393=\"\",\"\",'1. Order'!M393)","v":""},null,null,{"$f":"IF('1. Order'!AR393=\"\",\"\",'1. Order'!AR393)","v":""},{"$f":"IF('1. Order'!AE393=\"\",\"\",'1. Order'!AE393)","v":""}]
[{"$f":"IF('1. Order'!B394=\"\",\"\",'1. Order'!B394)","v":""},{"$f":"IF('1. Order'!I394=\"\",\"\",'1. Order'!I394)","v":""},{"$f":"IF('1. Order'!J394=\"\",\"\",'1. Order'!J394)","v":""},{"$f":"IF('1. Order'!K394=\"\",\"\",'1. Order'!K394)","v":""},{"$f":"IF('1. Order'!M394=\"\",\"\",'1. Order'!M394)","v":""},null,null,{"$f":"IF('1. Order'!AR394=\"\",\"\",'1. Order'!AR394)","v":""},{"$f":"IF('1. Order'!AE394=\"\",\"\",'1. Order'!AE394)","v":""}]
[{"$f":"IF('1. Order'!B395=\"\",\"\",'1. Order'!B395)","v":""},{"$f":"IF('1. Order'!I395=\"\",\"\",'1. Order'!I395)","v":""},{"$f":"IF('1. Order'!J395=\"\",\"\",'1. Order'!J395)","v":""},{"$f":"IF('1. Order'!K395=\"\",\"\",'1. Order'!K395)","v":""},{"$f":"IF('1. Order'!M395=\"\",\"\",'1. Order'!M395)","v":""},null,null,{"$f":"IF('1. Order'!AR395=\"\",\"\",'1. Order'!AR395)","v":""},{"$f":"IF('1. Order'!AE395=\"\",\"\",'1. Order'!AE395)","v":""}]
[{"$f":"IF('1. Order'!B396=\"\",\"\",'1. Order'!B396)","v":""},{"$f":"IF('1. Order'!I396=\"\",\"\",'1. Order'!I396)","v":""},{"$f":"IF('1. Order'!J396=\"\",\"\",'1. Order'!J396)","v":""},{"$f":"IF('1. Order'!K396=\"\",\"\",'1. Order'!K396)","v":""},{"$f":"IF('1. Order'!M396=\"\",\"\",'1. Order'!M396)","v":""},null,null,{"$f":"IF('1. Order'!AR396=\"\",\"\",'1. Order'!AR396)","v":""},{"$f":"IF('1. Order'!AE396=\"\",\"\",'1. Order'!AE396)","v":""}]
[{"$f":"IF('1. Order'!B397=\"\",\"\",'1. Order'!B397)","v":""},{"$f":"IF('1. Order'!I397=\"\",\"\",'1. Order'!I397)","v":""},{"$f":"IF('1. Order'!J397=\"\",\"\",'1. Order'!J397)","v":""},{"$f":"IF('1. Order'!K397=\"\",\"\",'1. Order'!K397)","v":""},{"$f":"IF('1. Order'!M397=\"\",\"\",'1. Order'!M397)","v":""},null,null,{"$f":"IF('1. Order'!AR397=\"\",\"\",'1. Order'!AR397)","v":""},{"$f":"IF('1. Order'!AE397=\"\",\"\",'1. Order'!AE397)","v":""}]
[{"$f":"IF('1. Order'!B398=\"\",\"\",'1. Order'!B398)","v":""},{"$f":"IF('1. Order'!I398=\"\",\"\",'1. Order'!I398)","v":""},{"$f":"IF('1. Order'!J398=\"\",\"\",'1. Order'!J398)","v":""},{"$f":"IF('1. Order'!K398=\"\",\"\",'1. Order'!K398)","v":""},{"$f":"IF('1. Order'!M398=\"\",\"\",'1. Order'!M398)","v":""},null,null,{"$f":"IF('1. Order'!AR398=\"\",\"\",'1. Order'!AR398)","v":""},{"$f":"IF('1. Order'!AE398=\"\",\"\",'1. Order'!AE398)","v":""}]
[{"$f":"IF('1. Order'!B399=\"\",\"\",'1. Order'!B399)","v":""},{"$f":"IF('1. Order'!I399=\"\",\"\",'1. Order'!I399)","v":""},{"$f":"IF('1. Order'!J399=\"\",\"\",'1. Order'!J399)","v":""},{"$f":"IF('1. Order'!K399=\"\",\"\",'1. Order'!K399)","v":""},{"$f":"IF('1. Order'!M399=\"\",\"\",'1. Order'!M399)","v":""},null,null,{"$f":"IF('1. Order'!AR399=\"\",\"\",'1. Order'!AR399)","v":""},{"$f":"IF('1. Order'!AE399=\"\",\"\",'1. Order'!AE399)","v":""}]
[{"$f":"IF('1. Order'!B400=\"\",\"\",'1. Order'!B400)","v":""},{"$f":"IF('1. Order'!I400=\"\",\"\",'1. Order'!I400)","v":""},{"$f":"IF('1. Order'!J400=\"\",\"\",'1. Order'!J400)","v":""},{"$f":"IF('1. Order'!K400=\"\",\"\",'1. Order'!K400)","v":""},{"$f":"IF('1. Order'!M400=\"\",\"\",'1. Order'!M400)","v":""},null,null,{"$f":"IF('1. Order'!AR400=\"\",\"\",'1. Order'!AR400)","v":""},{"$f":"IF('1. Order'!AE400=\"\",\"\",'1. Order'!AE400)","v":""}]
[{"$f":"IF('1. Order'!B401=\"\",\"\",'1. Order'!B401)","v":""},{"$f":"IF('1. Order'!I401=\"\",\"\",'1. Order'!I401)","v":""},{"$f":"IF('1. Order'!J401=\"\",\"\",'1. Order'!J401)","v":""},{"$f":"IF('1. Order'!K401=\"\",\"\",'1. Order'!K401)","v":""},{"$f":"IF('1. Order'!M401=\"\",\"\",'1. Order'!M401)","v":""},null,null,{"$f":"IF('1. Order'!AR401=\"\",\"\",'1. Order'!AR401)","v":""},{"$f":"IF('1. Order'!AE401=\"\",\"\",'1. Order'!AE401)","v":""}]
[{"$f":"IF('1. Order'!B402=\"\",\"\",'1. Order'!B402)","v":""},{"$f":"IF('1. Order'!I402=\"\",\"\",'1. Order'!I402)","v":""},{"$f":"IF('1. Order'!J402=\"\",\"\",'1. Order'!J402)","v":""},{"$f":"IF('1. Order'!K402=\"\",\"\",'1. Order'!K402)","v":""},{"$f":"IF('1. Order'!M402=\"\",\"\",'1. Order'!M402)","v":""},null,null,{"$f":"IF('1. Order'!AR402=\"\",\"\",'1. Order'!AR402)","v":""},{"$f":"IF('1. Order'!AE402=\"\",\"\",'1. Order'!AE402)","v":""}]
[{"$f":"IF('1. Order'!B403=\"\",\"\",'1. Order'!B403)","v":""},{"$f":"IF('1. Order'!I403=\"\",\"\",'1. Order'!I403)","v":""},{"$f":"IF('1. Order'!J403=\"\",\"\",'1. Order'!J403)","v":""},{"$f":"IF('1. Order'!K403=\"\",\"\",'1. Order'!K403)","v":""},{"$f":"IF('1. Order'!M403=\"\",\"\",'1. Order'!M403)","v":""},null,null,{"$f":"IF('1. Order'!AR403=\"\",\"\",'1. Order'!AR403)","v":""},{"$f":"IF('1. Order'!AE403=\"\",\"\",'1. Order'!AE403)","v":""}]
[{"$f":"IF('1. Order'!B404=\"\",\"\",'1. Order'!B404)","v":""},{"$f":"IF('1. Order'!I404=\"\",\"\",'1. Order'!I404)","v":""},{"$f":"IF('1. Order'!J404=\"\",\"\",'1. Order'!J404)","v":""},{"$f":"IF('1. Order'!K404=\"\",\"\",'1. Order'!K404)","v":""},{"$f":"IF('1. Order'!M404=\"\",\"\",'1. Order'!M404)","v":""},null,null,{"$f":"IF('1. Order'!AR404=\"\",\"\",'1. Order'!AR404)","v":""},{"$f":"IF('1. Order'!AE404=\"\",\"\",'1. Order'!AE404)","v":""}]
[{"$f":"IF('1. Order'!B405=\"\",\"\",'1. Order'!B405)","v":""},{"$f":"IF('1. Order'!I405=\"\",\"\",'1. Order'!I405)","v":""},{"$f":"IF('1. Order'!J405=\"\",\"\",'1. Order'!J405)","v":""},{"$f":"IF('1. Order'!K405=\"\",\"\",'1. Order'!K405)","v":""},{"$f":"IF('1. Order'!M405=\"\",\"\",'1. Order'!M405)","v":""},null,null,{"$f":"IF('1. Order'!AR405=\"\",\"\",'1. Order'!AR405)","v":""},{"$f":"IF('1. Order'!AE405=\"\",\"\",'1. Order'!AE405)","v":""}]
[{"$f":"IF('1. Order'!B406=\"\",\"\",'1. Order'!B406)","v":""},{"$f":"IF('1. Order'!I406=\"\",\"\",'1. Order'!I406)","v":""},{"$f":"IF('1. Order'!J406=\"\",\"\",'1. Order'!J406)","v":""},{"$f":"IF('1. Order'!K406=\"\",\"\",'1. Order'!K406)","v":""},{"$f":"IF('1. Order'!M406=\"\",\"\",'1. Order'!M406)","v":""},null,null,{"$f":"IF('1. Order'!AR406=\"\",\"\",'1. Order'!AR406)","v":""},{"$f":"IF('1. Order'!AE406=\"\",\"\",'1. Order'!AE406)","v":""}]
[{"$f":"IF('1. Order'!B407=\"\",\"\",'1. Order'!B407)","v":""},{"$f":"IF('1. Order'!I407=\"\",\"\",'1. Order'!I407)","v":""},{"$f":"IF('1. Order'!J407=\"\",\"\",'1. Order'!J407)","v":""},{"$f":"IF('1. Order'!K407=\"\",\"\",'1. Order'!K407)","v":""},{"$f":"IF('1. Order'!M407=\"\",\"\",'1. Order'!M407)","v":""},null,null,{"$f":"IF('1. Order'!AR407=\"\",\"\",'1. Order'!AR407)","v":""},{"$f":"IF('1. Order'!AE407=\"\",\"\",'1. Order'!AE407)","v":""}]
[{"$f":"IF('1. Order'!B408=\"\",\"\",'1. Order'!B408)","v":""},{"$f":"IF('1. Order'!I408=\"\",\"\",'1. Order'!I408)","v":""},{"$f":"IF('1. Order'!J408=\"\",\"\",'1. Order'!J408)","v":""},{"$f":"IF('1. Order'!K408=\"\",\"\",'1. Order'!K408)","v":""},{"$f":"IF('1. Order'!M408=\"\",\"\",'1. Order'!M408)","v":""},null,null,{"$f":"IF('1. Order'!AR408=\"\",\"\",'1. Order'!AR408)","v":""},{"$f":"IF('1. Order'!AE408=\"\",\"\",'1. Order'!AE408)","v":""}]
[{"$f":"IF('1. Order'!B409=\"\",\"\",'1. Order'!B409)","v":""},{"$f":"IF('1. Order'!I409=\"\",\"\",'1. Order'!I409)","v":""},{"$f":"IF('1. Order'!J409=\"\",\"\",'1. Order'!J409)","v":""},{"$f":"IF('1. Order'!K409=\"\",\"\",'1. Order'!K409)","v":""},{"$f":"IF('1. Order'!M409=\"\",\"\",'1. Order'!M409)","v":""},null,null,{"$f":"IF('1. Order'!AR409=\"\",\"\",'1. Order'!AR409)","v":""},{"$f":"IF('1. Order'!AE409=\"\",\"\",'1. Order'!AE409)","v":""}]
[{"$f":"IF('1. Order'!B410=\"\",\"\",'1. Order'!B410)","v":""},{"$f":"IF('1. Order'!I410=\"\",\"\",'1. Order'!I410)","v":""},{"$f":"IF('1. Order'!J410=\"\",\"\",'1. Order'!J410)","v":""},{"$f":"IF('1. Order'!K410=\"\",\"\",'1. Order'!K410)","v":""},{"$f":"IF('1. Order'!M410=\"\",\"\",'1. Order'!M410)","v":""},null,null,{"$f":"IF('1. Order'!AR410=\"\",\"\",'1. Order'!AR410)","v":""},{"$f":"IF('1. Order'!AE410=\"\",\"\",'1. Order'!AE410)","v":""}]
[{"$f":"IF('1. Order'!B411=\"\",\"\",'1. Order'!B411)","v":""},{"$f":"IF('1. Order'!I411=\"\",\"\",'1. Order'!I411)","v":""},{"$f":"IF('1. Order'!J411=\"\",\"\",'1. Order'!J411)","v":""},{"$f":"IF('1. Order'!K411=\"\",\"\",'1. Order'!K411)","v":""},{"$f":"IF('1. Order'!M411=\"\",\"\",'1. Order'!M411)","v":""},null,null,{"$f":"IF('1. Order'!AR411=\"\",\"\",'1. Order'!AR411)","v":""},{"$f":"IF('1. Order'!AE411=\"\",\"\",'1. Order'!AE411)","v":""}]
[{"$f":"IF('1. Order'!B412=\"\",\"\",'1. Order'!B412)","v":""},{"$f":"IF('1. Order'!I412=\"\",\"\",'1. Order'!I412)","v":""},{"$f":"IF('1. Order'!J412=\"\",\"\",'1. Order'!J412)","v":""},{"$f":"IF('1. Order'!K412=\"\",\"\",'1. Order'!K412)","v":""},{"$f":"IF('1. Order'!M412=\"\",\"\",'1. Order'!M412)","v":""},null,null,{"$f":"IF('1. Order'!AR412=\"\",\"\",'1. Order'!AR412)","v":""},{"$f":"IF('1. Order'!AE412=\"\",\"\",'1. Order'!AE412)","v":""}]
[{"$f":"IF('1. Order'!B413=\"\",\"\",'1. Order'!B413)","v":""},{"$f":"IF('1. Order'!I413=\"\",\"\",'1. Order'!I413)","v":""},{"$f":"IF('1. Order'!J413=\"\",\"\",'1. Order'!J413)","v":""},{"$f":"IF('1. Order'!K413=\"\",\"\",'1. Order'!K413)","v":""},{"$f":"IF('1. Order'!M413=\"\",\"\",'1. Order'!M413)","v":""},null,null,{"$f":"IF('1. Order'!AR413=\"\",\"\",'1. Order'!AR413)","v":""},{"$f":"IF('1. Order'!AE413=\"\",\"\",'1. Order'!AE413)","v":""}]
[{"$f":"IF('1. Order'!B414=\"\",\"\",'1. Order'!B414)","v":""},{"$f":"IF('1. Order'!I414=\"\",\"\",'1. Order'!I414)","v":""},{"$f":"IF('1. Order'!J414=\"\",\"\",'1. Order'!J414)","v":""},{"$f":"IF('1. Order'!K414=\"\",\"\",'1. Order'!K414)","v":""},{"$f":"IF('1. Order'!M414=\"\",\"\",'1. Order'!M414)","v":""},null,null,{"$f":"IF('1. Order'!AR414=\"\",\"\",'1. Order'!AR414)","v":""},{"$f":"IF('1. Order'!AE414=\"\",\"\",'1. Order'!AE414)","v":""}]
[{"$f":"IF('1. Order'!B415=\"\",\"\",'1. Order'!B415)","v":""},{"$f":"IF('1. Order'!I415=\"\",\"\",'1. Order'!I415)","v":""},{"$f":"IF('1. Order'!J415=\"\",\"\",'1. Order'!J415)","v":""},{"$f":"IF('1. Order'!K415=\"\",\"\",'1. Order'!K415)","v":""},{"$f":"IF('1. Order'!M415=\"\",\"\",'1. Order'!M415)","v":""},null,null,{"$f":"IF('1. Order'!AR415=\"\",\"\",'1. Order'!AR415)","v":""},{"$f":"IF('1. Order'!AE415=\"\",\"\",'1. Order'!AE415)","v":""}]
[{"$f":"IF('1. Order'!B416=\"\",\"\",'1. Order'!B416)","v":""},{"$f":"IF('1. Order'!I416=\"\",\"\",'1. Order'!I416)","v":""},{"$f":"IF('1. Order'!J416=\"\",\"\",'1. Order'!J416)","v":""},{"$f":"IF('1. Order'!K416=\"\",\"\",'1. Order'!K416)","v":""},{"$f":"IF('1. Order'!M416=\"\",\"\",'1. Order'!M416)","v":""},null,null,{"$f":"IF('1. Order'!AR416=\"\",\"\",'1. Order'!AR416)","v":""},{"$f":"IF('1. Order'!AE416=\"\",\"\",'1. Order'!AE416)","v":""}]
[{"$f":"IF('1. Order'!B417=\"\",\"\",'1. Order'!B417)","v":""},{"$f":"IF('1. Order'!I417=\"\",\"\",'1. Order'!I417)","v":""},{"$f":"IF('1. Order'!J417=\"\",\"\",'1. Order'!J417)","v":""},{"$f":"IF('1. Order'!K417=\"\",\"\",'1. Order'!K417)","v":""},{"$f":"IF('1. Order'!M417=\"\",\"\",'1. Order'!M417)","v":""},null,null,{"$f":"IF('1. Order'!AR417=\"\",\"\",'1. Order'!AR417)","v":""},{"$f":"IF('1. Order'!AE417=\"\",\"\",'1. Order'!AE417)","v":""}]
[{"$f":"IF('1. Order'!B418=\"\",\"\",'1. Order'!B418)","v":""},{"$f":"IF('1. Order'!I418=\"\",\"\",'1. Order'!I418)","v":""},{"$f":"IF('1. Order'!J418=\"\",\"\",'1. Order'!J418)","v":""},{"$f":"IF('1. Order'!K418=\"\",\"\",'1. Order'!K418)","v":""},{"$f":"IF('1. Order'!M418=\"\",\"\",'1. Order'!M418)","v":""},null,null,{"$f":"IF('1. Order'!AR418=\"\",\"\",'1. Order'!AR418)","v":""},{"$f":"IF('1. Order'!AE418=\"\",\"\",'1. Order'!AE418)","v":""}]
[{"$f":"IF('1. Order'!B419=\"\",\"\",'1. Order'!B419)","v":""},{"$f":"IF('1. Order'!I419=\"\",\"\",'1. Order'!I419)","v":""},{"$f":"IF('1. Order'!J419=\"\",\"\",'1. Order'!J419)","v":""},{"$f":"IF('1. Order'!K419=\"\",\"\",'1. Order'!K419)","v":""},{"$f":"IF('1. Order'!M419=\"\",\"\",'1. Order'!M419)","v":""},null,null,{"$f":"IF('1. Order'!AR419=\"\",\"\",'1. Order'!AR419)","v":""},{"$f":"IF('1. Order'!AE419=\"\",\"\",'1. Order'!AE419)","v":""}]
[{"$f":"IF('1. Order'!B420=\"\",\"\",'1. Order'!B420)","v":""},{"$f":"IF('1. Order'!I420=\"\",\"\",'1. Order'!I420)","v":""},{"$f":"IF('1. Order'!J420=\"\",\"\",'1. Order'!J420)","v":""},{"$f":"IF('1. Order'!K420=\"\",\"\",'1. Order'!K420)","v":""},{"$f":"IF('1. Order'!M420=\"\",\"\",'1. Order'!M420)","v":""},null,null,{"$f":"IF('1. Order'!AR420=\"\",\"\",'1. Order'!AR420)","v":""},{"$f":"IF('1. Order'!AE420=\"\",\"\",'1. Order'!AE420)","v":""}]
[{"$f":"IF('1. Order'!B421=\"\",\"\",'1. Order'!B421)","v":""},{"$f":"IF('1. Order'!I421=\"\",\"\",'1. Order'!I421)","v":""},{"$f":"IF('1. Order'!J421=\"\",\"\",'1. Order'!J421)","v":""},{"$f":"IF('1. Order'!K421=\"\",\"\",'1. Order'!K421)","v":""},{"$f":"IF('1. Order'!M421=\"\",\"\",'1. Order'!M421)","v":""},null,null,{"$f":"IF('1. Order'!AR421=\"\",\"\",'1. Order'!AR421)","v":""},{"$f":"IF('1. Order'!AE421=\"\",\"\",'1. Order'!AE421)","v":""}]
[{"$f":"IF('1. Order'!B422=\"\",\"\",'1. Order'!B422)","v":""},{"$f":"IF('1. Order'!I422=\"\",\"\",'1. Order'!I422)","v":""},{"$f":"IF('1. Order'!J422=\"\",\"\",'1. Order'!J422)","v":""},{"$f":"IF('1. Order'!K422=\"\",\"\",'1. Order'!K422)","v":""},{"$f":"IF('1. Order'!M422=\"\",\"\",'1. Order'!M422)","v":""},null,null,{"$f":"IF('1. Order'!AR422=\"\",\"\",'1. Order'!AR422)","v":""},{"$f":"IF('1. Order'!AE422=\"\",\"\",'1. Order'!AE422)","v":""}]
[{"$f":"IF('1. Order'!B423=\"\",\"\",'1. Order'!B423)","v":""},{"$f":"IF('1. Order'!I423=\"\",\"\",'1. Order'!I423)","v":""},{"$f":"IF('1. Order'!J423=\"\",\"\",'1. Order'!J423)","v":""},{"$f":"IF('1. Order'!K423=\"\",\"\",'1. Order'!K423)","v":""},{"$f":"IF('1. Order'!M423=\"\",\"\",'1. Order'!M423)","v":""},null,null,{"$f":"IF('1. Order'!AR423=\"\",\"\",'1. Order'!AR423)","v":""},{"$f":"IF('1. Order'!AE423=\"\",\"\",'1. Order'!AE423)","v":""}]
[{"$f":"IF('1. Order'!B424=\"\",\"\",'1. Order'!B424)","v":""},{"$f":"IF('1. Order'!I424=\"\",\"\",'1. Order'!I424)","v":""},{"$f":"IF('1. Order'!J424=\"\",\"\",'1. Order'!J424)","v":""},{"$f":"IF('1. Order'!K424=\"\",\"\",'1. Order'!K424)","v":""},{"$f":"IF('1. Order'!M424=\"\",\"\",'1. Order'!M424)","v":""},null,null,{"$f":"IF('1. Order'!AR424=\"\",\"\",'1. Order'!AR424)","v":""},{"$f":"IF('1. Order'!AE424=\"\",\"\",'1. Order'!AE424)","v":""}]
[{"$f":"IF('1. Order'!B425=\"\",\"\",'1. Order'!B425)","v":""},{"$f":"IF('1. Order'!I425=\"\",\"\",'1. Order'!I425)","v":""},{"$f":"IF('1. Order'!J425=\"\",\"\",'1. Order'!J425)","v":""},{"$f":"IF('1. Order'!K425=\"\",\"\",'1. Order'!K425)","v":""},{"$f":"IF('1. Order'!M425=\"\",\"\",'1. Order'!M425)","v":""},null,null,{"$f":"IF('1. Order'!AR425=\"\",\"\",'1. Order'!AR425)","v":""},{"$f":"IF('1. Order'!AE425=\"\",\"\",'1. Order'!AE425)","v":""}]
[{"$f":"IF('1. Order'!B426=\"\",\"\",'1. Order'!B426)","v":""},{"$f":"IF('1. Order'!I426=\"\",\"\",'1. Order'!I426)","v":""},{"$f":"IF('1. Order'!J426=\"\",\"\",'1. Order'!J426)","v":""},{"$f":"IF('1. Order'!K426=\"\",\"\",'1. Order'!K426)","v":""},{"$f":"IF('1. Order'!M426=\"\",\"\",'1. Order'!M426)","v":""},null,null,{"$f":"IF('1. Order'!AR426=\"\",\"\",'1. Order'!AR426)","v":""},{"$f":"IF('1. Order'!AE426=\"\",\"\",'1. Order'!AE426)","v":""}]
[{"$f":"IF('1. Order'!B427=\"\",\"\",'1. Order'!B427)","v":""},{"$f":"IF('1. Order'!I427=\"\",\"\",'1. Order'!I427)","v":""},{"$f":"IF('1. Order'!J427=\"\",\"\",'1. Order'!J427)","v":""},{"$f":"IF('1. Order'!K427=\"\",\"\",'1. Order'!K427)","v":""},{"$f":"IF('1. Order'!M427=\"\",\"\",'1. Order'!M427)","v":""},null,null,{"$f":"IF('1. Order'!AR427=\"\",\"\",'1. Order'!AR427)","v":""},{"$f":"IF('1. Order'!AE427=\"\",\"\",'1. Order'!AE427)","v":""}]
[{"$f":"IF('1. Order'!B428=\"\",\"\",'1. Order'!B428)","v":""},{"$f":"IF('1. Order'!I428=\"\",\"\",'1. Order'!I428)","v":""},{"$f":"IF('1. Order'!J428=\"\",\"\",'1. Order'!J428)","v":""},{"$f":"IF('1. Order'!K428=\"\",\"\",'1. Order'!K428)","v":""},{"$f":"IF('1. Order'!M428=\"\",\"\",'1. Order'!M428)","v":""},null,null,{"$f":"IF('1. Order'!AR428=\"\",\"\",'1. Order'!AR428)","v":""},{"$f":"IF('1. Order'!AE428=\"\",\"\",'1. Order'!AE428)","v":""}]
[{"$f":"IF('1. Order'!B429=\"\",\"\",'1. Order'!B429)","v":""},{"$f":"IF('1. Order'!I429=\"\",\"\",'1. Order'!I429)","v":""},{"$f":"IF('1. Order'!J429=\"\",\"\",'1. Order'!J429)","v":""},{"$f":"IF('1. Order'!K429=\"\",\"\",'1. Order'!K429)","v":""},{"$f":"IF('1. Order'!M429=\"\",\"\",'1. Order'!M429)","v":""},null,null,{"$f":"IF('1. Order'!AR429=\"\",\"\",'1. Order'!AR429)","v":""},{"$f":"IF('1. Order'!AE429=\"\",\"\",'1. Order'!AE429)","v":""}]
[{"$f":"IF('1. Order'!B430=\"\",\"\",'1. Order'!B430)","v":""},{"$f":"IF('1. Order'!I430=\"\",\"\",'1. Order'!I430)","v":""},{"$f":"IF('1. Order'!J430=\"\",\"\",'1. Order'!J430)","v":""},{"$f":"IF('1. Order'!K430=\"\",\"\",'1. Order'!K430)","v":""},{"$f":"IF('1. Order'!M430=\"\",\"\",'1. Order'!M430)","v":""},null,null,{"$f":"IF('1. Order'!AR430=\"\",\"\",'1. Order'!AR430)","v":""},{"$f":"IF('1. Order'!AE430=\"\",\"\",'1. Order'!AE430)","v":""}]
[{"$f":"IF('1. Order'!B431=\"\",\"\",'1. Order'!B431)","v":""},{"$f":"IF('1. Order'!I431=\"\",\"\",'1. Order'!I431)","v":""},{"$f":"IF('1. Order'!J431=\"\",\"\",'1. Order'!J431)","v":""},{"$f":"IF('1. Order'!K431=\"\",\"\",'1. Order'!K431)","v":""},{"$f":"IF('1. Order'!M431=\"\",\"\",'1. Order'!M431)","v":""},null,null,{"$f":"IF('1. Order'!AR431=\"\",\"\",'1. Order'!AR431)","v":""},{"$f":"IF('1. Order'!AE431=\"\",\"\",'1. Order'!AE431)","v":""}]
[{"$f":"IF('1. Order'!B432=\"\",\"\",'1. Order'!B432)","v":""},{"$f":"IF('1. Order'!I432=\"\",\"\",'1. Order'!I432)","v":""},{"$f":"IF('1. Order'!J432=\"\",\"\",'1. Order'!J432)","v":""},{"$f":"IF('1. Order'!K432=\"\",\"\",'1. Order'!K432)","v":""},{"$f":"IF('1. Order'!M432=\"\",\"\",'1. Order'!M432)","v":""},null,null,{"$f":"IF('1. Order'!AR432=\"\",\"\",'1. Order'!AR432)","v":""},{"$f":"IF('1. Order'!AE432=\"\",\"\",'1. Order'!AE432)","v":""}]
[{"$f":"IF('1. Order'!B433=\"\",\"\",'1. Order'!B433)","v":""},{"$f":"IF('1. Order'!I433=\"\",\"\",'1. Order'!I433)","v":""},{"$f":"IF('1. Order'!J433=\"\",\"\",'1. Order'!J433)","v":""},{"$f":"IF('1. Order'!K433=\"\",\"\",'1. Order'!K433)","v":""},{"$f":"IF('1. Order'!M433=\"\",\"\",'1. Order'!M433)","v":""},null,null,{"$f":"IF('1. Order'!AR433=\"\",\"\",'1. Order'!AR433)","v":""},{"$f":"IF('1. Order'!AE433=\"\",\"\",'1. Order'!AE433)","v":""}]
[{"$f":"IF('1. Order'!B434=\"\",\"\",'1. Order'!B434)","v":""},{"$f":"IF('1. Order'!I434=\"\",\"\",'1. Order'!I434)","v":""},{"$f":"IF('1. Order'!J434=\"\",\"\",'1. Order'!J434)","v":""},{"$f":"IF('1. Order'!K434=\"\",\"\",'1. Order'!K434)","v":""},{"$f":"IF('1. Order'!M434=\"\",\"\",'1. Order'!M434)","v":""},null,null,{"$f":"IF('1. Order'!AR434=\"\",\"\",'1. Order'!AR434)","v":""},{"$f":"IF('1. Order'!AE434=\"\",\"\",'1. Order'!AE434)","v":""}]
[{"$f":"IF('1. Order'!B435=\"\",\"\",'1. Order'!B435)","v":""},{"$f":"IF('1. Order'!I435=\"\",\"\",'1. Order'!I435)","v":""},{"$f":"IF('1. Order'!J435=\"\",\"\",'1. Order'!J435)","v":""},{"$f":"IF('1. Order'!K435=\"\",\"\",'1. Order'!K435)","v":""},{"$f":"IF('1. Order'!M435=\"\",\"\",'1. Order'!M435)","v":""},null,null,{"$f":"IF('1. Order'!AR435=\"\",\"\",'1. Order'!AR435)","v":""},{"$f":"IF('1. Order'!AE435=\"\",\"\",'1. Order'!AE435)","v":""}]
[{"$f":"IF('1. Order'!B436=\"\",\"\",'1. Order'!B436)","v":""},{"$f":"IF('1. Order'!I436=\"\",\"\",'1. Order'!I436)","v":""},{"$f":"IF('1. Order'!J436=\"\",\"\",'1. Order'!J436)","v":""},{"$f":"IF('1. Order'!K436=\"\",\"\",'1. Order'!K436)","v":""},{"$f":"IF('1. Order'!M436=\"\",\"\",'1. Order'!M436)","v":""},null,null,{"$f":"IF('1. Order'!AR436=\"\",\"\",'1. Order'!AR436)","v":""},{"$f":"IF('1. Order'!AE436=\"\",\"\",'1. Order'!AE436)","v":""}]
[{"$f":"IF('1. Order'!B437=\"\",\"\",'1. Order'!B437)","v":""},{"$f":"IF('1. Order'!I437=\"\",\"\",'1. Order'!I437)","v":""},{"$f":"IF('1. Order'!J437=\"\",\"\",'1. Order'!J437)","v":""},{"$f":"IF('1. Order'!K437=\"\",\"\",'1. Order'!K437)","v":""},{"$f":"IF('1. Order'!M437=\"\",\"\",'1. Order'!M437)","v":""},null,null,{"$f":"IF('1. Order'!AR437=\"\",\"\",'1. Order'!AR437)","v":""},{"$f":"IF('1. Order'!AE437=\"\",\"\",'1. Order'!AE437)","v":""}]
[{"$f":"IF('1. Order'!B438=\"\",\"\",'1. Order'!B438)","v":""},{"$f":"IF('1. Order'!I438=\"\",\"\",'1. Order'!I438)","v":""},{"$f":"IF('1. Order'!J438=\"\",\"\",'1. Order'!J438)","v":""},{"$f":"IF('1. Order'!K438=\"\",\"\",'1. Order'!K438)","v":""},{"$f":"IF('1. Order'!M438=\"\",\"\",'1. Order'!M438)","v":""},null,null,{"$f":"IF('1. Order'!AR438=\"\",\"\",'1. Order'!AR438)","v":""},{"$f":"IF('1. Order'!AE438=\"\",\"\",'1. Order'!AE438)","v":""}]
[{"$f":"IF('1. Order'!B439=\"\",\"\",'1. Order'!B439)","v":""},{"$f":"IF('1. Order'!I439=\"\",\"\",'1. Order'!I439)","v":""},{"$f":"IF('1. Order'!J439=\"\",\"\",'1. Order'!J439)","v":""},{"$f":"IF('1. Order'!K439=\"\",\"\",'1. Order'!K439)","v":""},{"$f":"IF('1. Order'!M439=\"\",\"\",'1. Order'!M439)","v":""},null,null,{"$f":"IF('1. Order'!AR439=\"\",\"\",'1. Order'!AR439)","v":""},{"$f":"IF('1. Order'!AE439=\"\",\"\",'1. Order'!AE439)","v":""}]
[{"$f":"IF('1. Order'!B440=\"\",\"\",'1. Order'!B440)","v":""},{"$f":"IF('1. Order'!I440=\"\",\"\",'1. Order'!I440)","v":""},{"$f":"IF('1. Order'!J440=\"\",\"\",'1. Order'!J440)","v":""},{"$f":"IF('1. Order'!K440=\"\",\"\",'1. Order'!K440)","v":""},{"$f":"IF('1. Order'!M440=\"\",\"\",'1. Order'!M440)","v":""},null,null,{"$f":"IF('1. Order'!AR440=\"\",\"\",'1. Order'!AR440)","v":""},{"$f":"IF('1. Order'!AE440=\"\",\"\",'1. Order'!AE440)","v":""}]
[{"$f":"IF('1. Order'!B441=\"\",\"\",'1. Order'!B441)","v":""},{"$f":"IF('1. Order'!I441=\"\",\"\",'1. Order'!I441)","v":""},{"$f":"IF('1. Order'!J441=\"\",\"\",'1. Order'!J441)","v":""},{"$f":"IF('1. Order'!K441=\"\",\"\",'1. Order'!K441)","v":""},{"$f":"IF('1. Order'!M441=\"\",\"\",'1. Order'!M441)","v":""},null,null,{"$f":"IF('1. Order'!AR441=\"\",\"\",'1. Order'!AR441)","v":""},{"$f":"IF('1. Order'!AE441=\"\",\"\",'1. Order'!AE441)","v":""}]
[{"$f":"IF('1. Order'!B442=\"\",\"\",'1. Order'!B442)","v":""},{"$f":"IF('1. Order'!I442=\"\",\"\",'1. Order'!I442)","v":""},{"$f":"IF('1. Order'!J442=\"\",\"\",'1. Order'!J442)","v":""},{"$f":"IF('1. Order'!K442=\"\",\"\",'1. Order'!K442)","v":""},{"$f":"IF('1. Order'!M442=\"\",\"\",'1. Order'!M442)","v":""},null,null,{"$f":"IF('1. Order'!AR442=\"\",\"\",'1. Order'!AR442)","v":""},{"$f":"IF('1. Order'!AE442=\"\",\"\",'1. Order'!AE442)","v":""}]
[{"$f":"IF('1. Order'!B443=\"\",\"\",'1. Order'!B443)","v":""},{"$f":"IF('1. Order'!I443=\"\",\"\",'1. Order'!I443)","v":""},{"$f":"IF('1. Order'!J443=\"\",\"\",'1. Order'!J443)","v":""},{"$f":"IF('1. Order'!K443=\"\",\"\",'1. Order'!K443)","v":""},{"$f":"IF('1. Order'!M443=\"\",\"\",'1. Order'!M443)","v":""},null,null,{"$f":"IF('1. Order'!AR443=\"\",\"\",'1. Order'!AR443)","v":""},{"$f":"IF('1. Order'!AE443=\"\",\"\",'1. Order'!AE443)","v":""}]
[{"$f":"IF('1. Order'!B444=\"\",\"\",'1. Order'!B444)","v":""},{"$f":"IF('1. Order'!I444=\"\",\"\",'1. Order'!I444)","v":""},{"$f":"IF('1. Order'!J444=\"\",\"\",'1. Order'!J444)","v":""},{"$f":"IF('1. Order'!K444=\"\",\"\",'1. Order'!K444)","v":""},{"$f":"IF('1. Order'!M444=\"\",\"\",'1. Order'!M444)","v":""},null,null,{"$f":"IF('1. Order'!AR444=\"\",\"\",'1. Order'!AR444)","v":""},{"$f":"IF('1. Order'!AE444=\"\",\"\",'1. Order'!AE444)","v":""}]
[{"$f":"IF('1. Order'!B445=\"\",\"\",'1. Order'!B445)","v":""},{"$f":"IF('1. Order'!I445=\"\",\"\",'1. Order'!I445)","v":""},{"$f":"IF('1. Order'!J445=\"\",\"\",'1. Order'!J445)","v":""},{"$f":"IF('1. Order'!K445=\"\",\"\",'1. Order'!K445)","v":""},{"$f":"IF('1. Order'!M445=\"\",\"\",'1. Order'!M445)","v":""},null,null,{"$f":"IF('1. Order'!AR445=\"\",\"\",'1. Order'!AR445)","v":""},{"$f":"IF('1. Order'!AE445=\"\",\"\",'1. Order'!AE445)","v":""}]
[{"$f":"IF('1. Order'!B446=\"\",\"\",'1. Order'!B446)","v":""},{"$f":"IF('1. Order'!I446=\"\",\"\",'1. Order'!I446)","v":""},{"$f":"IF('1. Order'!J446=\"\",\"\",'1. Order'!J446)","v":""},{"$f":"IF('1. Order'!K446=\"\",\"\",'1. Order'!K446)","v":""},{"$f":"IF('1. Order'!M446=\"\",\"\",'1. Order'!M446)","v":""},null,null,{"$f":"IF('1. Order'!AR446=\"\",\"\",'1. Order'!AR446)","v":""},{"$f":"IF('1. Order'!AE446=\"\",\"\",'1. Order'!AE446)","v":""}]
[{"$f":"IF('1. Order'!B447=\"\",\"\",'1. Order'!B447)","v":""},{"$f":"IF('1. Order'!I447=\"\",\"\",'1. Order'!I447)","v":""},{"$f":"IF('1. Order'!J447=\"\",\"\",'1. Order'!J447)","v":""},{"$f":"IF('1. Order'!K447=\"\",\"\",'1. Order'!K447)","v":""},{"$f":"IF('1. Order'!M447=\"\",\"\",'1. Order'!M447)","v":""},null,null,{"$f":"IF('1. Order'!AR447=\"\",\"\",'1. Order'!AR447)","v":""},{"$f":"IF('1. Order'!AE447=\"\",\"\",'1. Order'!AE447)","v":""}]
[{"$f":"IF('1. Order'!B448=\"\",\"\",'1. Order'!B448)","v":""},{"$f":"IF('1. Order'!I448=\"\",\"\",'1. Order'!I448)","v":""},{"$f":"IF('1. Order'!J448=\"\",\"\",'1. Order'!J448)","v":""},{"$f":"IF('1. Order'!K448=\"\",\"\",'1. Order'!K448)","v":""},{"$f":"IF('1. Order'!M448=\"\",\"\",'1. Order'!M448)","v":""},null,null,{"$f":"IF('1. Order'!AR448=\"\",\"\",'1. Order'!AR448)","v":""},{"$f":"IF('1. Order'!AE448=\"\",\"\",'1. Order'!AE448)","v":""}]
[{"$f":"IF('1. Order'!B449=\"\",\"\",'1. Order'!B449)","v":""},{"$f":"IF('1. Order'!I449=\"\",\"\",'1. Order'!I449)","v":""},{"$f":"IF('1. Order'!J449=\"\",\"\",'1. Order'!J449)","v":""},{"$f":"IF('1. Order'!K449=\"\",\"\",'1. Order'!K449)","v":""},{"$f":"IF('1. Order'!M449=\"\",\"\",'1. Order'!M449)","v":""},null,null,{"$f":"IF('1. Order'!AR449=\"\",\"\",'1. Order'!AR449)","v":""},{"$f":"IF('1. Order'!AE449=\"\",\"\",'1. Order'!AE449)","v":""}]
[{"$f":"IF('1. Order'!B450=\"\",\"\",'1. Order'!B450)","v":""},{"$f":"IF('1. Order'!I450=\"\",\"\",'1. Order'!I450)","v":""},{"$f":"IF('1. Order'!J450=\"\",\"\",'1. Order'!J450)","v":""},{"$f":"IF('1. Order'!K450=\"\",\"\",'1. Order'!K450)","v":""},{"$f":"IF('1. Order'!M450=\"\",\"\",'1. Order'!M450)","v":""},null,null,{"$f":"IF('1. Order'!AR450=\"\",\"\",'1. Order'!AR450)","v":""},{"$f":"IF('1. Order'!AE450=\"\",\"\",'1. Order'!AE450)","v":""}]
[{"$f":"IF('1. Order'!B451=\"\",\"\",'1. Order'!B451)","v":""},{"$f":"IF('1. Order'!I451=\"\",\"\",'1. Order'!I451)","v":""},{"$f":"IF('1. Order'!J451=\"\",\"\",'1. Order'!J451)","v":""},{"$f":"IF('1. Order'!K451=\"\",\"\",'1. Order'!K451)","v":""},{"$f":"IF('1. Order'!M451=\"\",\"\",'1. Order'!M451)","v":""},null,null,{"$f":"IF('1. Order'!AR451=\"\",\"\",'1. Order'!AR451)","v":""},{"$f":"IF('1. Order'!AE451=\"\",\"\",'1. Order'!AE451)","v":""}]
[{"$f":"IF('1. Order'!B452=\"\",\"\",'1. Order'!B452)","v":""},{"$f":"IF('1. Order'!I452=\"\",\"\",'1. Order'!I452)","v":""},{"$f":"IF('1. Order'!J452=\"\",\"\",'1. Order'!J452)","v":""},{"$f":"IF('1. Order'!K452=\"\",\"\",'1. Order'!K452)","v":""},{"$f":"IF('1. Order'!M452=\"\",\"\",'1. Order'!M452)","v":""},null,null,{"$f":"IF('1. Order'!AR452=\"\",\"\",'1. Order'!AR452)","v":""},{"$f":"IF('1. Order'!AE452=\"\",\"\",'1. Order'!AE452)","v":""}]
[{"$f":"IF('1. Order'!B453=\"\",\"\",'1. Order'!B453)","v":""},{"$f":"IF('1. Order'!I453=\"\",\"\",'1. Order'!I453)","v":""},{"$f":"IF('1. Order'!J453=\"\",\"\",'1. Order'!J453)","v":""},{"$f":"IF('1. Order'!K453=\"\",\"\",'1. Order'!K453)","v":""},{"$f":"IF('1. Order'!M453=\"\",\"\",'1. Order'!M453)","v":""},null,null,{"$f":"IF('1. Order'!AR453=\"\",\"\",'1. Order'!AR453)","v":""},{"$f":"IF('1. Order'!AE453=\"\",\"\",'1. Order'!AE453)","v":""}]
[{"$f":"IF('1. Order'!B454=\"\",\"\",'1. Order'!B454)","v":""},{"$f":"IF('1. Order'!I454=\"\",\"\",'1. Order'!I454)","v":""},{"$f":"IF('1. Order'!J454=\"\",\"\",'1. Order'!J454)","v":""},{"$f":"IF('1. Order'!K454=\"\",\"\",'1. Order'!K454)","v":""},{"$f":"IF('1. Order'!M454=\"\",\"\",'1. Order'!M454)","v":""},null,null,{"$f":"IF('1. Order'!AR454=\"\",\"\",'1. Order'!AR454)","v":""},{"$f":"IF('1. Order'!AE454=\"\",\"\",'1. Order'!AE454)","v":""}]
[{"$f":"IF('1. Order'!B455=\"\",\"\",'1. Order'!B455)","v":""},{"$f":"IF('1. Order'!I455=\"\",\"\",'1. Order'!I455)","v":""},{"$f":"IF('1. Order'!J455=\"\",\"\",'1. Order'!J455)","v":""},{"$f":"IF('1. Order'!K455=\"\",\"\",'1. Order'!K455)","v":""},{"$f":"IF('1. Order'!M455=\"\",\"\",'1. Order'!M455)","v":""},null,null,{"$f":"IF('1. Order'!AR455=\"\",\"\",'1. Order'!AR455)","v":""},{"$f":"IF('1. Order'!AE455=\"\",\"\",'1. Order'!AE455)","v":""}]
[{"$f":"IF('1. Order'!B456=\"\",\"\",'1. Order'!B456)","v":""},{"$f":"IF('1. Order'!I456=\"\",\"\",'1. Order'!I456)","v":""},{"$f":"IF('1. Order'!J456=\"\",\"\",'1. Order'!J456)","v":""},{"$f":"IF('1. Order'!K456=\"\",\"\",'1. Order'!K456)","v":""},{"$f":"IF('1. Order'!M456=\"\",\"\",'1. Order'!M456)","v":""},null,null,{"$f":"IF('1. Order'!AR456=\"\",\"\",'1. Order'!AR456)","v":""},{"$f":"IF('1. Order'!AE456=\"\",\"\",'1. Order'!AE456)","v":""}]
[{"$f":"IF('1. Order'!B457=\"\",\"\",'1. Order'!B457)","v":""},{"$f":"IF('1. Order'!I457=\"\",\"\",'1. Order'!I457)","v":""},{"$f":"IF('1. Order'!J457=\"\",\"\",'1. Order'!J457)","v":""},{"$f":"IF('1. Order'!K457=\"\",\"\",'1. Order'!K457)","v":""},{"$f":"IF('1. Order'!M457=\"\",\"\",'1. Order'!M457)","v":""},null,null,{"$f":"IF('1. Order'!AR457=\"\",\"\",'1. Order'!AR457)","v":""},{"$f":"IF('1. Order'!AE457=\"\",\"\",'1. Order'!AE457)","v":""}]
[{"$f":"IF('1. Order'!B458=\"\",\"\",'1. Order'!B458)","v":""},{"$f":"IF('1. Order'!I458=\"\",\"\",'1. Order'!I458)","v":""},{"$f":"IF('1. Order'!J458=\"\",\"\",'1. Order'!J458)","v":""},{"$f":"IF('1. Order'!K458=\"\",\"\",'1. Order'!K458)","v":""},{"$f":"IF('1. Order'!M458=\"\",\"\",'1. Order'!M458)","v":""},null,null,{"$f":"IF('1. Order'!AR458=\"\",\"\",'1. Order'!AR458)","v":""},{"$f":"IF('1. Order'!AE458=\"\",\"\",'1. Order'!AE458)","v":""}]
[{"$f":"IF('1. Order'!B459=\"\",\"\",'1. Order'!B459)","v":""},{"$f":"IF('1. Order'!I459=\"\",\"\",'1. Order'!I459)","v":""},{"$f":"IF('1. Order'!J459=\"\",\"\",'1. Order'!J459)","v":""},{"$f":"IF('1. Order'!K459=\"\",\"\",'1. Order'!K459)","v":""},{"$f":"IF('1. Order'!M459=\"\",\"\",'1. Order'!M459)","v":""},null,null,{"$f":"IF('1. Order'!AR459=\"\",\"\",'1. Order'!AR459)","v":""},{"$f":"IF('1. Order'!AE459=\"\",\"\",'1. Order'!AE459)","v":""}]
[{"$f":"IF('1. Order'!B460=\"\",\"\",'1. Order'!B460)","v":""},{"$f":"IF('1. Order'!I460=\"\",\"\",'1. Order'!I460)","v":""},{"$f":"IF('1. Order'!J460=\"\",\"\",'1. Order'!J460)","v":""},{"$f":"IF('1. Order'!K460=\"\",\"\",'1. Order'!K460)","v":""},{"$f":"IF('1. Order'!M460=\"\",\"\",'1. Order'!M460)","v":""},null,null,{"$f":"IF('1. Order'!AR460=\"\",\"\",'1. Order'!AR460)","v":""},{"$f":"IF('1. Order'!AE460=\"\",\"\",'1. Order'!AE460)","v":""}]
[{"$f":"IF('1. Order'!B461=\"\",\"\",'1. Order'!B461)","v":""},{"$f":"IF('1. Order'!I461=\"\",\"\",'1. Order'!I461)","v":""},{"$f":"IF('1. Order'!J461=\"\",\"\",'1. Order'!J461)","v":""},{"$f":"IF('1. Order'!K461=\"\",\"\",'1. Order'!K461)","v":""},{"$f":"IF('1. Order'!M461=\"\",\"\",'1. Order'!M461)","v":""},null,null,{"$f":"IF('1. Order'!AR461=\"\",\"\",'1. Order'!AR461)","v":""},{"$f":"IF('1. Order'!AE461=\"\",\"\",'1. Order'!AE461)","v":""}]
[{"$f":"IF('1. Order'!B462=\"\",\"\",'1. Order'!B462)","v":""},{"$f":"IF('1. Order'!I462=\"\",\"\",'1. Order'!I462)","v":""},{"$f":"IF('1. Order'!J462=\"\",\"\",'1. Order'!J462)","v":""},{"$f":"IF('1. Order'!K462=\"\",\"\",'1. Order'!K462)","v":""},{"$f":"IF('1. Order'!M462=\"\",\"\",'1. Order'!M462)","v":""},null,null,{"$f":"IF('1. Order'!AR462=\"\",\"\",'1. Order'!AR462)","v":""},{"$f":"IF('1. Order'!AE462=\"\",\"\",'1. Order'!AE462)","v":""}]
[{"$f":"IF('1. Order'!B463=\"\",\"\",'1. Order'!B463)","v":""},{"$f":"IF('1. Order'!I463=\"\",\"\",'1. Order'!I463)","v":""},{"$f":"IF('1. Order'!J463=\"\",\"\",'1. Order'!J463)","v":""},{"$f":"IF('1. Order'!K463=\"\",\"\",'1. Order'!K463)","v":""},{"$f":"IF('1. Order'!M463=\"\",\"\",'1. Order'!M463)","v":""},null,null,{"$f":"IF('1. Order'!AR463=\"\",\"\",'1. Order'!AR463)","v":""},{"$f":"IF('1. Order'!AE463=\"\",\"\",'1. Order'!AE463)","v":""}]
[{"$f":"IF('1. Order'!B464=\"\",\"\",'1. Order'!B464)","v":""},{"$f":"IF('1. Order'!I464=\"\",\"\",'1. Order'!I464)","v":""},{"$f":"IF('1. Order'!J464=\"\",\"\",'1. Order'!J464)","v":""},{"$f":"IF('1. Order'!K464=\"\",\"\",'1. Order'!K464)","v":""},{"$f":"IF('1. Order'!M464=\"\",\"\",'1. Order'!M464)","v":""},null,null,{"$f":"IF('1. Order'!AR464=\"\",\"\",'1. Order'!AR464)","v":""},{"$f":"IF('1. Order'!AE464=\"\",\"\",'1. Order'!AE464)","v":""}]
[{"$f":"IF('1. Order'!B465=\"\",\"\",'1. Order'!B465)","v":""},{"$f":"IF('1. Order'!I465=\"\",\"\",'1. Order'!I465)","v":""},{"$f":"IF('1. Order'!J465=\"\",\"\",'1. Order'!J465)","v":""},{"$f":"IF('1. Order'!K465=\"\",\"\",'1. Order'!K465)","v":""},{"$f":"IF('1. Order'!M465=\"\",\"\",'1. Order'!M465)","v":""},null,null,{"$f":"IF('1. Order'!AR465=\"\",\"\",'1. Order'!AR465)","v":""},{"$f":"IF('1. Order'!AE465=\"\",\"\",'1. Order'!AE465)","v":""}]
[{"$f":"IF('1. Order'!B466=\"\",\"\",'1. Order'!B466)","v":""},{"$f":"IF('1. Order'!I466=\"\",\"\",'1. Order'!I466)","v":""},{"$f":"IF('1. Order'!J466=\"\",\"\",'1. Order'!J466)","v":""},{"$f":"IF('1. Order'!K466=\"\",\"\",'1. Order'!K466)","v":""},{"$f":"IF('1. Order'!M466=\"\",\"\",'1. Order'!M466)","v":""},null,null,{"$f":"IF('1. Order'!AR466=\"\",\"\",'1. Order'!AR466)","v":""},{"$f":"IF('1. Order'!AE466=\"\",\"\",'1. Order'!AE466)","v":""}]
[{"$f":"IF('1. Order'!B467=\"\",\"\",'1. Order'!B467)","v":""},{"$f":"IF('1. Order'!I467=\"\",\"\",'1. Order'!I467)","v":""},{"$f":"IF('1. Order'!J467=\"\",\"\",'1. Order'!J467)","v":""},{"$f":"IF('1. Order'!K467=\"\",\"\",'1. Order'!K467)","v":""},{"$f":"IF('1. Order'!M467=\"\",\"\",'1. Order'!M467)","v":""},null,null,{"$f":"IF('1. Order'!AR467=\"\",\"\",'1. Order'!AR467)","v":""},{"$f":"IF('1. Order'!AE467=\"\",\"\",'1. Order'!AE467)","v":""}]
[{"$f":"IF('1. Order'!B468=\"\",\"\",'1. Order'!B468)","v":""},{"$f":"IF('1. Order'!I468=\"\",\"\",'1. Order'!I468)","v":""},{"$f":"IF('1. Order'!J468=\"\",\"\",'1. Order'!J468)","v":""},{"$f":"IF('1. Order'!K468=\"\",\"\",'1. Order'!K468)","v":""},{"$f":"IF('1. Order'!M468=\"\",\"\",'1. Order'!M468)","v":""},null,null,{"$f":"IF('1. Order'!AR468=\"\",\"\",'1. Order'!AR468)","v":""},{"$f":"IF('1. Order'!AE468=\"\",\"\",'1. Order'!AE468)","v":""}]
[{"$f":"IF('1. Order'!B469=\"\",\"\",'1. Order'!B469)","v":""},{"$f":"IF('1. Order'!I469=\"\",\"\",'1. Order'!I469)","v":""},{"$f":"IF('1. Order'!J469=\"\",\"\",'1. Order'!J469)","v":""},{"$f":"IF('1. Order'!K469=\"\",\"\",'1. Order'!K469)","v":""},{"$f":"IF('1. Order'!M469=\"\",\"\",'1. Order'!M469)","v":""},null,null,{"$f":"IF('1. Order'!AR469=\"\",\"\",'1. Order'!AR469)","v":""},{"$f":"IF('1. Order'!AE469=\"\",\"\",'1. Order'!AE469)","v":""}]
[{"$f":"IF('1. Order'!B470=\"\",\"\",'1. Order'!B470)","v":""},{"$f":"IF('1. Order'!I470=\"\",\"\",'1. Order'!I470)","v":""},{"$f":"IF('1. Order'!J470=\"\",\"\",'1. Order'!J470)","v":""},{"$f":"IF('1. Order'!K470=\"\",\"\",'1. Order'!K470)","v":""},{"$f":"IF('1. Order'!M470=\"\",\"\",'1. Order'!M470)","v":""},null,null,{"$f":"IF('1. Order'!AR470=\"\",\"\",'1. Order'!AR470)","v":""},{"$f":"IF('1. Order'!AE470=\"\",\"\",'1. Order'!AE470)","v":""}]
[{"$f":"IF('1. Order'!B471=\"\",\"\",'1. Order'!B471)","v":""},{"$f":"IF('1. Order'!I471=\"\",\"\",'1. Order'!I471)","v":""},{"$f":"IF('1. Order'!J471=\"\",\"\",'1. Order'!J471)","v":""},{"$f":"IF('1. Order'!K471=\"\",\"\",'1. Order'!K471)","v":""},{"$f":"IF('1. Order'!M471=\"\",\"\",'1. Order'!M471)","v":""},null,null,{"$f":"IF('1. Order'!AR471=\"\",\"\",'1. Order'!AR471)","v":""},{"$f":"IF('1. Order'!AE471=\"\",\"\",'1. Order'!AE471)","v":""}]
[{"$f":"IF('1. Order'!B472=\"\",\"\",'1. Order'!B472)","v":""},{"$f":"IF('1. Order'!I472=\"\",\"\",'1. Order'!I472)","v":""},{"$f":"IF('1. Order'!J472=\"\",\"\",'1. Order'!J472)","v":""},{"$f":"IF('1. Order'!K472=\"\",\"\",'1. Order'!K472)","v":""},{"$f":"IF('1. Order'!M472=\"\",\"\",'1. Order'!M472)","v":""},null,null,{"$f":"IF('1. Order'!AR472=\"\",\"\",'1. Order'!AR472)","v":""},{"$f":"IF('1. Order'!AE472=\"\",\"\",'1. Order'!AE472)","v":""}]
[{"$f":"IF('1. Order'!B473=\"\",\"\",'1. Order'!B473)","v":""},{"$f":"IF('1. Order'!I473=\"\",\"\",'1. Order'!I473)","v":""},{"$f":"IF('1. Order'!J473=\"\",\"\",'1. Order'!J473)","v":""},{"$f":"IF('1. Order'!K473=\"\",\"\",'1. Order'!K473)","v":""},{"$f":"IF('1. Order'!M473=\"\",\"\",'1. Order'!M473)","v":""},null,null,{"$f":"IF('1. Order'!AR473=\"\",\"\",'1. Order'!AR473)","v":""},{"$f":"IF('1. Order'!AE473=\"\",\"\",'1. Order'!AE473)","v":""}]
[{"$f":"IF('1. Order'!B474=\"\",\"\",'1. Order'!B474)","v":""},{"$f":"IF('1. Order'!I474=\"\",\"\",'1. Order'!I474)","v":""},{"$f":"IF('1. Order'!J474=\"\",\"\",'1. Order'!J474)","v":""},{"$f":"IF('1. Order'!K474=\"\",\"\",'1. Order'!K474)","v":""},{"$f":"IF('1. Order'!M474=\"\",\"\",'1. Order'!M474)","v":""},null,null,{"$f":"IF('1. Order'!AR474=\"\",\"\",'1. Order'!AR474)","v":""},{"$f":"IF('1. Order'!AE474=\"\",\"\",'1. Order'!AE474)","v":""}]
[{"$f":"IF('1. Order'!B475=\"\",\"\",'1. Order'!B475)","v":""},{"$f":"IF('1. Order'!I475=\"\",\"\",'1. Order'!I475)","v":""},{"$f":"IF('1. Order'!J475=\"\",\"\",'1. Order'!J475)","v":""},{"$f":"IF('1. Order'!K475=\"\",\"\",'1. Order'!K475)","v":""},{"$f":"IF('1. Order'!M475=\"\",\"\",'1. Order'!M475)","v":""},null,null,{"$f":"IF('1. Order'!AR475=\"\",\"\",'1. Order'!AR475)","v":""},{"$f":"IF('1. Order'!AE475=\"\",\"\",'1. Order'!AE475)","v":""}]
[{"$f":"IF('1. Order'!B476=\"\",\"\",'1. Order'!B476)","v":""},{"$f":"IF('1. Order'!I476=\"\",\"\",'1. Order'!I476)","v":""},{"$f":"IF('1. Order'!J476=\"\",\"\",'1. Order'!J476)","v":""},{"$f":"IF('1. Order'!K476=\"\",\"\",'1. Order'!K476)","v":""},{"$f":"IF('1. Order'!M476=\"\",\"\",'1. Order'!M476)","v":""},null,null,{"$f":"IF('1. Order'!AR476=\"\",\"\",'1. Order'!AR476)","v":""},{"$f":"IF('1. Order'!AE476=\"\",\"\",'1. Order'!AE476)","v":""}]
[{"$f":"IF('1. Order'!B477=\"\",\"\",'1. Order'!B477)","v":""},{"$f":"IF('1. Order'!I477=\"\",\"\",'1. Order'!I477)","v":""},{"$f":"IF('1. Order'!J477=\"\",\"\",'1. Order'!J477)","v":""},{"$f":"IF('1. Order'!K477=\"\",\"\",'1. Order'!K477)","v":""},{"$f":"IF('1. Order'!M477=\"\",\"\",'1. Order'!M477)","v":""},null,null,{"$f":"IF('1. Order'!AR477=\"\",\"\",'1. Order'!AR477)","v":""},{"$f":"IF('1. Order'!AE477=\"\",\"\",'1. Order'!AE477)","v":""}]
[{"$f":"IF('1. Order'!B478=\"\",\"\",'1. Order'!B478)","v":""},{"$f":"IF('1. Order'!I478=\"\",\"\",'1. Order'!I478)","v":""},{"$f":"IF('1. Order'!J478=\"\",\"\",'1. Order'!J478)","v":""},{"$f":"IF('1. Order'!K478=\"\",\"\",'1. Order'!K478)","v":""},{"$f":"IF('1. Order'!M478=\"\",\"\",'1. Order'!M478)","v":""},null,null,{"$f":"IF('1. Order'!AR478=\"\",\"\",'1. Order'!AR478)","v":""},{"$f":"IF('1. Order'!AE478=\"\",\"\",'1. Order'!AE478)","v":""}]
[{"$f":"IF('1. Order'!B479=\"\",\"\",'1. Order'!B479)","v":""},{"$f":"IF('1. Order'!I479=\"\",\"\",'1. Order'!I479)","v":""},{"$f":"IF('1. Order'!J479=\"\",\"\",'1. Order'!J479)","v":""},{"$f":"IF('1. Order'!K479=\"\",\"\",'1. Order'!K479)","v":""},{"$f":"IF('1. Order'!M479=\"\",\"\",'1. Order'!M479)","v":""},null,null,{"$f":"IF('1. Order'!AR479=\"\",\"\",'1. Order'!AR479)","v":""},{"$f":"IF('1. Order'!AE479=\"\",\"\",'1. Order'!AE479)","v":""}]
[{"$f":"IF('1. Order'!B480=\"\",\"\",'1. Order'!B480)","v":""},{"$f":"IF('1. Order'!I480=\"\",\"\",'1. Order'!I480)","v":""},{"$f":"IF('1. Order'!J480=\"\",\"\",'1. Order'!J480)","v":""},{"$f":"IF('1. Order'!K480=\"\",\"\",'1. Order'!K480)","v":""},{"$f":"IF('1. Order'!M480=\"\",\"\",'1. Order'!M480)","v":""},null,null,{"$f":"IF('1. Order'!AR480=\"\",\"\",'1. Order'!AR480)","v":""},{"$f":"IF('1. Order'!AE480=\"\",\"\",'1. Order'!AE480)","v":""}]
[{"$f":"IF('1. Order'!B481=\"\",\"\",'1. Order'!B481)","v":""},{"$f":"IF('1. Order'!I481=\"\",\"\",'1. Order'!I481)","v":""},{"$f":"IF('1. Order'!J481=\"\",\"\",'1. Order'!J481)","v":""},{"$f":"IF('1. Order'!K481=\"\",\"\",'1. Order'!K481)","v":""},{"$f":"IF('1. Order'!M481=\"\",\"\",'1. Order'!M481)","v":""},null,null,{"$f":"IF('1. Order'!AR481=\"\",\"\",'1. Order'!AR481)","v":""},{"$f":"IF('1. Order'!AE481=\"\",\"\",'1. Order'!AE481)","v":""}]
[{"$f":"IF('1. Order'!B482=\"\",\"\",'1. Order'!B482)","v":""},{"$f":"IF('1. Order'!I482=\"\",\"\",'1. Order'!I482)","v":""},{"$f":"IF('1. Order'!J482=\"\",\"\",'1. Order'!J482)","v":""},{"$f":"IF('1. Order'!K482=\"\",\"\",'1. Order'!K482)","v":""},{"$f":"IF('1. Order'!M482=\"\",\"\",'1. Order'!M482)","v":""},null,null,{"$f":"IF('1. Order'!AR482=\"\",\"\",'1. Order'!AR482)","v":""},{"$f":"IF('1. Order'!AE482=\"\",\"\",'1. Order'!AE482)","v":""}]
[{"$f":"IF('1. Order'!B483=\"\",\"\",'1. Order'!B483)","v":""},{"$f":"IF('1. Order'!I483=\"\",\"\",'1. Order'!I483)","v":""},{"$f":"IF('1. Order'!J483=\"\",\"\",'1. Order'!J483)","v":""},{"$f":"IF('1. Order'!K483=\"\",\"\",'1. Order'!K483)","v":""},{"$f":"IF('1. Order'!M483=\"\",\"\",'1. Order'!M483)","v":""},null,null,{"$f":"IF('1. Order'!AR483=\"\",\"\",'1. Order'!AR483)","v":""},{"$f":"IF('1. Order'!AE483=\"\",\"\",'1. Order'!AE483)","v":""}]
[{"$f":"IF('1. Order'!B484=\"\",\"\",'1. Order'!B484)","v":""},{"$f":"IF('1. Order'!I484=\"\",\"\",'1. Order'!I484)","v":""},{"$f":"IF('1. Order'!J484=\"\",\"\",'1. Order'!J484)","v":""},{"$f":"IF('1. Order'!K484=\"\",\"\",'1. Order'!K484)","v":""},{"$f":"IF('1. Order'!M484=\"\",\"\",'1. Order'!M484)","v":""},null,null,{"$f":"IF('1. Order'!AR484=\"\",\"\",'1. Order'!AR484)","v":""},{"$f":"IF('1. Order'!AE484=\"\",\"\",'1. Order'!AE484)","v":""}]
[{"$f":"IF('1. Order'!B485=\"\",\"\",'1. Order'!B485)","v":""},{"$f":"IF('1. Order'!I485=\"\",\"\",'1. Order'!I485)","v":""},{"$f":"IF('1. Order'!J485=\"\",\"\",'1. Order'!J485)","v":""},{"$f":"IF('1. Order'!K485=\"\",\"\",'1. Order'!K485)","v":""},{"$f":"IF('1. Order'!M485=\"\",\"\",'1. Order'!M485)","v":""},null,null,{"$f":"IF('1. Order'!AR485=\"\",\"\",'1. Order'!AR485)","v":""},{"$f":"IF('1. Order'!AE485=\"\",\"\",'1. Order'!AE485)","v":""}]
[{"$f":"IF('1. Order'!B486=\"\",\"\",'1. Order'!B486)","v":""},{"$f":"IF('1. Order'!I486=\"\",\"\",'1. Order'!I486)","v":""},{"$f":"IF('1. Order'!J486=\"\",\"\",'1. Order'!J486)","v":""},{"$f":"IF('1. Order'!K486=\"\",\"\",'1. Order'!K486)","v":""},{"$f":"IF('1. Order'!M486=\"\",\"\",'1. Order'!M486)","v":""},null,null,{"$f":"IF('1. Order'!AR486=\"\",\"\",'1. Order'!AR486)","v":""},{"$f":"IF('1. Order'!AE486=\"\",\"\",'1. Order'!AE486)","v":""}]
[{"$f":"IF('1. Order'!B487=\"\",\"\",'1. Order'!B487)","v":""},{"$f":"IF('1. Order'!I487=\"\",\"\",'1. Order'!I487)","v":""},{"$f":"IF('1. Order'!J487=\"\",\"\",'1. Order'!J487)","v":""},{"$f":"IF('1. Order'!K487=\"\",\"\",'1. Order'!K487)","v":""},{"$f":"IF('1. Order'!M487=\"\",\"\",'1. Order'!M487)","v":""},null,null,{"$f":"IF('1. Order'!AR487=\"\",\"\",'1. Order'!AR487)","v":""},{"$f":"IF('1. Order'!AE487=\"\",\"\",'1. Order'!AE487)","v":""}]
[{"$f":"IF('1. Order'!B488=\"\",\"\",'1. Order'!B488)","v":""},{"$f":"IF('1. Order'!I488=\"\",\"\",'1. Order'!I488)","v":""},{"$f":"IF('1. Order'!J488=\"\",\"\",'1. Order'!J488)","v":""},{"$f":"IF('1. Order'!K488=\"\",\"\",'1. Order'!K488)","v":""},{"$f":"IF('1. Order'!M488=\"\",\"\",'1. Order'!M488)","v":""},null,null,{"$f":"IF('1. Order'!AR488=\"\",\"\",'1. Order'!AR488)","v":""},{"$f":"IF('1. Order'!AE488=\"\",\"\",'1. Order'!AE488)","v":""}]
[{"$f":"IF('1. Order'!B489=\"\",\"\",'1. Order'!B489)","v":""},{"$f":"IF('1. Order'!I489=\"\",\"\",'1. Order'!I489)","v":""},{"$f":"IF('1. Order'!J489=\"\",\"\",'1. Order'!J489)","v":""},{"$f":"IF('1. Order'!K489=\"\",\"\",'1. Order'!K489)","v":""},{"$f":"IF('1. Order'!M489=\"\",\"\",'1. Order'!M489)","v":""},null,null,{"$f":"IF('1. Order'!AR489=\"\",\"\",'1. Order'!AR489)","v":""},{"$f":"IF('1. Order'!AE489=\"\",\"\",'1. Order'!AE489)","v":""}]
[{"$f":"IF('1. Order'!B490=\"\",\"\",'1. Order'!B490)","v":""},{"$f":"IF('1. Order'!I490=\"\",\"\",'1. Order'!I490)","v":""},{"$f":"IF('1. Order'!J490=\"\",\"\",'1. Order'!J490)","v":""},{"$f":"IF('1. Order'!K490=\"\",\"\",'1. Order'!K490)","v":""},{"$f":"IF('1. Order'!M490=\"\",\"\",'1. Order'!M490)","v":""},null,null,{"$f":"IF('1. Order'!AR490=\"\",\"\",'1. Order'!AR490)","v":""},{"$f":"IF('1. Order'!AE490=\"\",\"\",'1. Order'!AE490)","v":""}]
[{"$f":"IF('1. Order'!B491=\"\",\"\",'1. Order'!B491)","v":""},{"$f":"IF('1. Order'!I491=\"\",\"\",'1. Order'!I491)","v":""},{"$f":"IF('1. Order'!J491=\"\",\"\",'1. Order'!J491)","v":""},{"$f":"IF('1. Order'!K491=\"\",\"\",'1. Order'!K491)","v":""},{"$f":"IF('1. Order'!M491=\"\",\"\",'1. Order'!M491)","v":""},null,null,{"$f":"IF('1. Order'!AR491=\"\",\"\",'1. Order'!AR491)","v":""},{"$f":"IF('1. Order'!AE491=\"\",\"\",'1. Order'!AE491)","v":""}]
[{"$f":"IF('1. Order'!B492=\"\",\"\",'1. Order'!B492)","v":""},{"$f":"IF('1. Order'!I492=\"\",\"\",'1. Order'!I492)","v":""},{"$f":"IF('1. Order'!J492=\"\",\"\",'1. Order'!J492)","v":""},{"$f":"IF('1. Order'!K492=\"\",\"\",'1. Order'!K492)","v":""},{"$f":"IF('1. Order'!M492=\"\",\"\",'1. Order'!M492)","v":""},null,null,{"$f":"IF('1. Order'!AR492=\"\",\"\",'1. Order'!AR492)","v":""},{"$f":"IF('1. Order'!AE492=\"\",\"\",'1. Order'!AE492)","v":""}]
[{"$f":"IF('1. Order'!B493=\"\",\"\",'1. Order'!B493)","v":""},{"$f":"IF('1. Order'!I493=\"\",\"\",'1. Order'!I493)","v":""},{"$f":"IF('1. Order'!J493=\"\",\"\",'1. Order'!J493)","v":""},{"$f":"IF('1. Order'!K493=\"\",\"\",'1. Order'!K493)","v":""},{"$f":"IF('1. Order'!M493=\"\",\"\",'1. Order'!M493)","v":""},null,null,{"$f":"IF('1. Order'!AR493=\"\",\"\",'1. Order'!AR493)","v":""},{"$f":"IF('1. Order'!AE493=\"\",\"\",'1. Order'!AE493)","v":""}]
[{"$f":"IF('1. Order'!B494=\"\",\"\",'1. Order'!B494)","v":""},{"$f":"IF('1. Order'!I494=\"\",\"\",'1. Order'!I494)","v":""},{"$f":"IF('1. Order'!J494=\"\",\"\",'1. Order'!J494)","v":""},{"$f":"IF('1. Order'!K494=\"\",\"\",'1. Order'!K494)","v":""},{"$f":"IF('1. Order'!M494=\"\",\"\",'1. Order'!M494)","v":""},null,null,{"$f":"IF('1. Order'!AR494=\"\",\"\",'1. Order'!AR494)","v":""},{"$f":"IF('1. Order'!AE494=\"\",\"\",'1. Order'!AE494)","v":""}]
[{"$f":"IF('1. Order'!B495=\"\",\"\",'1. Order'!B495)","v":""},{"$f":"IF('1. Order'!I495=\"\",\"\",'1. Order'!I495)","v":""},{"$f":"IF('1. Order'!J495=\"\",\"\",'1. Order'!J495)","v":""},{"$f":"IF('1. Order'!K495=\"\",\"\",'1. Order'!K495)","v":""},{"$f":"IF('1. Order'!M495=\"\",\"\",'1. Order'!M495)","v":""},null,null,{"$f":"IF('1. Order'!AR495=\"\",\"\",'1. Order'!AR495)","v":""},{"$f":"IF('1. Order'!AE495=\"\",\"\",'1. Order'!AE495)","v":""}]
[{"$f":"IF('1. Order'!B496=\"\",\"\",'1. Order'!B496)","v":""},{"$f":"IF('1. Order'!I496=\"\",\"\",'1. Order'!I496)","v":""},{"$f":"IF('1. Order'!J496=\"\",\"\",'1. Order'!J496)","v":""},{"$f":"IF('1. Order'!K496=\"\",\"\",'1. Order'!K496)","v":""},{"$f":"IF('1. Order'!M496=\"\",\"\",'1. Order'!M496)","v":""},null,null,{"$f":"IF('1. Order'!AR496=\"\",\"\",'1. Order'!AR496)","v":""},{"$f":"IF('1. Order'!AE496=\"\",\"\",'1. Order'!AE496)","v":""}]
[{"$f":"IF('1. Order'!B497=\"\",\"\",'1. Order'!B497)","v":""},{"$f":"IF('1. Order'!I497=\"\",\"\",'1. Order'!I497)","v":""},{"$f":"IF('1. Order'!J497=\"\",\"\",'1. Order'!J497)","v":""},{"$f":"IF('1. Order'!K497=\"\",\"\",'1. Order'!K497)","v":""},{"$f":"IF('1. Order'!M497=\"\",\"\",'1. Order'!M497)","v":""},null,null,{"$f":"IF('1. Order'!AR497=\"\",\"\",'1. Order'!AR497)","v":""},{"$f":"IF('1. Order'!AE497=\"\",\"\",'1. Order'!AE497)","v":""}]
[{"$f":"IF('1. Order'!B498=\"\",\"\",'1. Order'!B498)","v":""},{"$f":"IF('1. Order'!I498=\"\",\"\",'1. Order'!I498)","v":""},{"$f":"IF('1. Order'!J498=\"\",\"\",'1. Order'!J498)","v":""},{"$f":"IF('1. Order'!K498=\"\",\"\",'1. Order'!K498)","v":""},{"$f":"IF('1. Order'!M498=\"\",\"\",'1. Order'!M498)","v":""},null,null,{"$f":"IF('1. Order'!AR498=\"\",\"\",'1. Order'!AR498)","v":""},{"$f":"IF('1. Order'!AE498=\"\",\"\",'1. Order'!AE498)","v":""}]
[{"$f":"IF('1. Order'!B499=\"\",\"\",'1. Order'!B499)","v":""},{"$f":"IF('1. Order'!I499=\"\",\"\",'1. Order'!I499)","v":""},{"$f":"IF('1. Order'!J499=\"\",\"\",'1. Order'!J499)","v":""},{"$f":"IF('1. Order'!K499=\"\",\"\",'1. Order'!K499)","v":""},{"$f":"IF('1. Order'!M499=\"\",\"\",'1. Order'!M499)","v":""},null,null,{"$f":"IF('1. Order'!AR499=\"\",\"\",'1. Order'!AR499)","v":""},{"$f":"IF('1. Order'!AE499=\"\",\"\",'1. Order'!AE499)","v":""}]
[{"$f":"IF('1. Order'!B500=\"\",\"\",'1. Order'!B500)","v":""},{"$f":"IF('1. Order'!I500=\"\",\"\",'1. Order'!I500)","v":""},{"$f":"IF('1. Order'!J500=\"\",\"\",'1. Order'!J500)","v":""},{"$f":"IF('1. Order'!K500=\"\",\"\",'1. Order'!K500)","v":""},{"$f":"IF('1. Order'!M500=\"\",\"\",'1. Order'!M500)","v":""},null,null,{"$f":"IF('1. Order'!AR500=\"\",\"\",'1. Order'!AR500)","v":""},{"$f":"IF('1. Order'!AE500=\"\",\"\",'1. Order'!AE500)","v":""}]
[{"$f":"IF('1. Order'!B501=\"\",\"\",'1. Order'!B501)","v":""},{"$f":"IF('1. Order'!I501=\"\",\"\",'1. Order'!I501)","v":""},{"$f":"IF('1. Order'!J501=\"\",\"\",'1. Order'!J501)","v":""},{"$f":"IF('1. Order'!K501=\"\",\"\",'1. Order'!K501)","v":""},{"$f":"IF('1. Order'!M501=\"\",\"\",'1. Order'!M501)","v":""},null,null,{"$f":"IF('1. Order'!AR501=\"\",\"\",'1. Order'!AR501)","v":""},{"$f":"IF('1. Order'!AE501=\"\",\"\",'1. Order'!AE501)","v":""}]
[{"$f":"IF('1. Order'!B502=\"\",\"\",'1. Order'!B502)","v":""},{"$f":"IF('1. Order'!I502=\"\",\"\",'1. Order'!I502)","v":""},{"$f":"IF('1. Order'!J502=\"\",\"\",'1. Order'!J502)","v":""},{"$f":"IF('1. Order'!K502=\"\",\"\",'1. Order'!K502)","v":""},{"$f":"IF('1. Order'!M502=\"\",\"\",'1. Order'!M502)","v":""},null,null,{"$f":"IF('1. Order'!AR502=\"\",\"\",'1. Order'!AR502)","v":""},{"$f":"IF('1. Order'!AE502=\"\",\"\",'1. Order'!AE502)","v":""}]
[{"$f":"IF('1. Order'!B503=\"\",\"\",'1. Order'!B503)","v":""},{"$f":"IF('1. Order'!I503=\"\",\"\",'1. Order'!I503)","v":""},{"$f":"IF('1. Order'!J503=\"\",\"\",'1. Order'!J503)","v":""},{"$f":"IF('1. Order'!K503=\"\",\"\",'1. Order'!K503)","v":""},{"$f":"IF('1. Order'!M503=\"\",\"\",'1. Order'!M503)","v":""},null,null,{"$f":"IF('1. Order'!AR503=\"\",\"\",'1. Order'!AR503)","v":""},{"$f":"IF('1. Order'!AE503=\"\",\"\",'1. Order'!AE503)","v":""}]
[{"$f":"IF('1. Order'!B504=\"\",\"\",'1. Order'!B504)","v":""},{"$f":"IF('1. Order'!I504=\"\",\"\",'1. Order'!I504)","v":""},{"$f":"IF('1. Order'!J504=\"\",\"\",'1. Order'!J504)","v":""},{"$f":"IF('1. Order'!K504=\"\",\"\",'1. Order'!K504)","v":""},{"$f":"IF('1. Order'!M504=\"\",\"\",'1. Order'!M504)","v":""},null,null,{"$f":"IF('1. Order'!AR504=\"\",\"\",'1. Order'!AR504)","v":""},{"$f":"IF('1. Order'!AE504=\"\",\"\",'1. Order'!AE504)","v":""}]
[{"$f":"IF('1. Order'!B505=\"\",\"\",'1. Order'!B505)","v":""},{"$f":"IF('1. Order'!I505=\"\",\"\",'1. Order'!I505)","v":""},{"$f":"IF('1. Order'!J505=\"\",\"\",'1. Order'!J505)","v":""},{"$f":"IF('1. Order'!K505=\"\",\"\",'1. Order'!K505)","v":""},{"$f":"IF('1. Order'!M505=\"\",\"\",'1. Order'!M505)","v":""},null,null,{"$f":"IF('1. Order'!AR505=\"\",\"\",'1. Order'!AR505)","v":""},{"$f":"IF('1. Order'!AE505=\"\",\"\",'1. Order'!AE505)","v":""}]
[{"$f":"IF('1. Order'!B506=\"\",\"\",'1. Order'!B506)","v":""},{"$f":"IF('1. Order'!I506=\"\",\"\",'1. Order'!I506)","v":""},{"$f":"IF('1. Order'!J506=\"\",\"\",'1. Order'!J506)","v":""},{"$f":"IF('1. Order'!K506=\"\",\"\",'1. Order'!K506)","v":""},{"$f":"IF('1. Order'!M506=\"\",\"\",'1. Order'!M506)","v":""},null,null,{"$f":"IF('1. Order'!AR506=\"\",\"\",'1. Order'!AR506)","v":""},{"$f":"IF('1. Order'!AE506=\"\",\"\",'1. Order'!AE506)","v":""}]
[{"$f":"IF('1. Order'!B507=\"\",\"\",'1. Order'!B507)","v":""},{"$f":"IF('1. Order'!I507=\"\",\"\",'1. Order'!I507)","v":""},{"$f":"IF('1. Order'!J507=\"\",\"\",'1. Order'!J507)","v":""},{"$f":"IF('1. Order'!K507=\"\",\"\",'1. Order'!K507)","v":""},{"$f":"IF('1. Order'!M507=\"\",\"\",'1. Order'!M507)","v":""},null,null,{"$f":"IF('1. Order'!AR507=\"\",\"\",'1. Order'!AR507)","v":""},{"$f":"IF('1. Order'!AE507=\"\",\"\",'1. Order'!AE507)","v":""}]
[{"$f":"IF('1. Order'!B508=\"\",\"\",'1. Order'!B508)","v":""},{"$f":"IF('1. Order'!I508=\"\",\"\",'1. Order'!I508)","v":""},{"$f":"IF('1. Order'!J508=\"\",\"\",'1. Order'!J508)","v":""},{"$f":"IF('1. Order'!K508=\"\",\"\",'1. Order'!K508)","v":""},{"$f":"IF('1. Order'!M508=\"\",\"\",'1. Order'!M508)","v":""},null,null,{"$f":"IF('1. Order'!AR508=\"\",\"\",'1. Order'!AR508)","v":""},{"$f":"IF('1. Order'!AE508=\"\",\"\",'1. Order'!AE508)","v":""}]
[{"$f":"IF('1. Order'!B509=\"\",\"\",'1. Order'!B509)","v":""},{"$f":"IF('1. Order'!I509=\"\",\"\",'1. Order'!I509)","v":""},{"$f":"IF('1. Order'!J509=\"\",\"\",'1. Order'!J509)","v":""},{"$f":"IF('1. Order'!K509=\"\",\"\",'1. Order'!K509)","v":""},{"$f":"IF('1. Order'!M509=\"\",\"\",'1. Order'!M509)","v":""},null,null,{"$f":"IF('1. Order'!AR509=\"\",\"\",'1. Order'!AR509)","v":""},{"$f":"IF('1. Order'!AE509=\"\",\"\",'1. Order'!AE509)","v":""}]
[{"$f":"IF('1. Order'!B510=\"\",\"\",'1. Order'!B510)","v":""},{"$f":"IF('1. Order'!I510=\"\",\"\",'1. Order'!I510)","v":""},{"$f":"IF('1. Order'!J510=\"\",\"\",'1. Order'!J510)","v":""},{"$f":"IF('1. Order'!K510=\"\",\"\",'1. Order'!K510)","v":""},{"$f":"IF('1. Order'!M510=\"\",\"\",'1. Order'!M510)","v":""},null,null,{"$f":"IF('1. Order'!AR510=\"\",\"\",'1. Order'!AR510)","v":""},{"$f":"IF('1. Order'!AE510=\"\",\"\",'1. Order'!AE510)","v":""}]
[{"$f":"IF('1. Order'!B511=\"\",\"\",'1. Order'!B511)","v":""},{"$f":"IF('1. Order'!I511=\"\",\"\",'1. Order'!I511)","v":""},{"$f":"IF('1. Order'!J511=\"\",\"\",'1. Order'!J511)","v":""},{"$f":"IF('1. Order'!K511=\"\",\"\",'1. Order'!K511)","v":""},{"$f":"IF('1. Order'!M511=\"\",\"\",'1. Order'!M511)","v":""},null,null,{"$f":"IF('1. Order'!AR511=\"\",\"\",'1. Order'!AR511)","v":""},{"$f":"IF('1. Order'!AE511=\"\",\"\",'1. Order'!AE511)","v":""}]
[{"$f":"IF('1. Order'!B512=\"\",\"\",'1. Order'!B512)","v":""},{"$f":"IF('1. Order'!I512=\"\",\"\",'1. Order'!I512)","v":""},{"$f":"IF('1. Order'!J512=\"\",\"\",'1. Order'!J512)","v":""},{"$f":"IF('1. Order'!K512=\"\",\"\",'1. Order'!K512)","v":""},{"$f":"IF('1. Order'!M512=\"\",\"\",'1. Order'!M512)","v":""},null,null,{"$f":"IF('1. Order'!AR512=\"\",\"\",'1. Order'!AR512)","v":""},{"$f":"IF('1. Order'!AE512=\"\",\"\",'1. Order'!AE512)","v":""}]
[{"$f":"IF('1. Order'!B513=\"\",\"\",'1. Order'!B513)","v":""},{"$f":"IF('1. Order'!I513=\"\",\"\",'1. Order'!I513)","v":""},{"$f":"IF('1. Order'!J513=\"\",\"\",'1. Order'!J513)","v":""},{"$f":"IF('1. Order'!K513=\"\",\"\",'1. Order'!K513)","v":""},{"$f":"IF('1. Order'!M513=\"\",\"\",'1. Order'!M513)","v":""},null,null,{"$f":"IF('1. Order'!AR513=\"\",\"\",'1. Order'!AR513)","v":""},{"$f":"IF('1. Order'!AE513=\"\",\"\",'1. Order'!AE513)","v":""}]
[{"$f":"IF('1. Order'!B514=\"\",\"\",'1. Order'!B514)","v":""},{"$f":"IF('1. Order'!I514=\"\",\"\",'1. Order'!I514)","v":""},{"$f":"IF('1. Order'!J514=\"\",\"\",'1. Order'!J514)","v":""},{"$f":"IF('1. Order'!K514=\"\",\"\",'1. Order'!K514)","v":""},{"$f":"IF('1. Order'!M514=\"\",\"\",'1. Order'!M514)","v":""},null,null,{"$f":"IF('1. Order'!AR514=\"\",\"\",'1. Order'!AR514)","v":""},{"$f":"IF('1. Order'!AE514=\"\",\"\",'1. Order'!AE514)","v":""}]
[{"$f":"IF('1. Order'!B515=\"\",\"\",'1. Order'!B515)","v":""},{"$f":"IF('1. Order'!I515=\"\",\"\",'1. Order'!I515)","v":""},{"$f":"IF('1. Order'!J515=\"\",\"\",'1. Order'!J515)","v":""},{"$f":"IF('1. Order'!K515=\"\",\"\",'1. Order'!K515)","v":""},{"$f":"IF('1. Order'!M515=\"\",\"\",'1. Order'!M515)","v":""},null,null,{"$f":"IF('1. Order'!AR515=\"\",\"\",'1. Order'!AR515)","v":""},{"$f":"IF('1. Order'!AE515=\"\",\"\",'1. Order'!AE515)","v":""}]
[{"$f":"IF('1. Order'!B516=\"\",\"\",'1. Order'!B516)","v":""},{"$f":"IF('1. Order'!I516=\"\",\"\",'1. Order'!I516)","v":""},{"$f":"IF('1. Order'!J516=\"\",\"\",'1. Order'!J516)","v":""},{"$f":"IF('1. Order'!K516=\"\",\"\",'1. Order'!K516)","v":""},{"$f":"IF('1. Order'!M516=\"\",\"\",'1. Order'!M516)","v":""},null,null,{"$f":"IF('1. Order'!AR516=\"\",\"\",'1. Order'!AR516)","v":""},{"$f":"IF('1. Order'!AE516=\"\",\"\",'1. Order'!AE516)","v":""}]
[{"$f":"IF('1. Order'!B517=\"\",\"\",'1. Order'!B517)","v":""},{"$f":"IF('1. Order'!I517=\"\",\"\",'1. Order'!I517)","v":""},{"$f":"IF('1. Order'!J517=\"\",\"\",'1. Order'!J517)","v":""},{"$f":"IF('1. Order'!K517=\"\",\"\",'1. Order'!K517)","v":""},{"$f":"IF('1. Order'!M517=\"\",\"\",'1. Order'!M517)","v":""},null,null,{"$f":"IF('1. Order'!AR517=\"\",\"\",'1. Order'!AR517)","v":""},{"$f":"IF('1. Order'!AE517=\"\",\"\",'1. Order'!AE517)","v":""}]
[{"$f":"IF('1. Order'!B518=\"\",\"\",'1. Order'!B518)","v":""},{"$f":"IF('1. Order'!I518=\"\",\"\",'1. Order'!I518)","v":""},{"$f":"IF('1. Order'!J518=\"\",\"\",'1. Order'!J518)","v":""},{"$f":"IF('1. Order'!K518=\"\",\"\",'1. Order'!K518)","v":""},{"$f":"IF('1. Order'!M518=\"\",\"\",'1. Order'!M518)","v":""},null,null,{"$f":"IF('1. Order'!AR518=\"\",\"\",'1. Order'!AR518)","v":""},{"$f":"IF('1. Order'!AE518=\"\",\"\",'1. Order'!AE518)","v":""}]
[{"$f":"IF('1. Order'!B519=\"\",\"\",'1. Order'!B519)","v":""},{"$f":"IF('1. Order'!I519=\"\",\"\",'1. Order'!I519)","v":""},{"$f":"IF('1. Order'!J519=\"\",\"\",'1. Order'!J519)","v":""},{"$f":"IF('1. Order'!K519=\"\",\"\",'1. Order'!K519)","v":""},{"$f":"IF('1. Order'!M519=\"\",\"\",'1. Order'!M519)","v":""},null,null,{"$f":"IF('1. Order'!AR519=\"\",\"\",'1. Order'!AR519)","v":""},{"$f":"IF('1. Order'!AE519=\"\",\"\",'1. Order'!AE519)","v":""}]
[{"$f":"IF('1. Order'!B520=\"\",\"\",'1. Order'!B520)","v":""},{"$f":"IF('1. Order'!I520=\"\",\"\",'1. Order'!I520)","v":""},{"$f":"IF('1. Order'!J520=\"\",\"\",'1. Order'!J520)","v":""},{"$f":"IF('1. Order'!K520=\"\",\"\",'1. Order'!K520)","v":""},{"$f":"IF('1. Order'!M520=\"\",\"\",'1. Order'!M520)","v":""},null,null,{"$f":"IF('1. Order'!AR520=\"\",\"\",'1. Order'!AR520)","v":""},{"$f":"IF('1. Order'!AE520=\"\",\"\",'1. Order'!AE520)","v":""}]
[{"$f":"IF('1. Order'!B521=\"\",\"\",'1. Order'!B521)","v":""},{"$f":"IF('1. Order'!I521=\"\",\"\",'1. Order'!I521)","v":""},{"$f":"IF('1. Order'!J521=\"\",\"\",'1. Order'!J521)","v":""},{"$f":"IF('1. Order'!K521=\"\",\"\",'1. Order'!K521)","v":""},{"$f":"IF('1. Order'!M521=\"\",\"\",'1. Order'!M521)","v":""},null,null,{"$f":"IF('1. Order'!AR521=\"\",\"\",'1. Order'!AR521)","v":""},{"$f":"IF('1. Order'!AE521=\"\",\"\",'1. Order'!AE521)","v":""}]
[{"$f":"IF('1. Order'!B522=\"\",\"\",'1. Order'!B522)","v":""},{"$f":"IF('1. Order'!I522=\"\",\"\",'1. Order'!I522)","v":""},{"$f":"IF('1. Order'!J522=\"\",\"\",'1. Order'!J522)","v":""},{"$f":"IF('1. Order'!K522=\"\",\"\",'1. Order'!K522)","v":""},{"$f":"IF('1. Order'!M522=\"\",\"\",'1. Order'!M522)","v":""},null,null,{"$f":"IF('1. Order'!AR522=\"\",\"\",'1. Order'!AR522)","v":""},{"$f":"IF('1. Order'!AE522=\"\",\"\",'1. Order'!AE522)","v":""}]
[{"$f":"IF('1. Order'!B523=\"\",\"\",'1. Order'!B523)","v":""},{"$f":"IF('1. Order'!I523=\"\",\"\",'1. Order'!I523)","v":""},{"$f":"IF('1. Order'!J523=\"\",\"\",'1. Order'!J523)","v":""},{"$f":"IF('1. Order'!K523=\"\",\"\",'1. Order'!K523)","v":""},{"$f":"IF('1. Order'!M523=\"\",\"\",'1. Order'!M523)","v":""},null,null,{"$f":"IF('1. Order'!AR523=\"\",\"\",'1. Order'!AR523)","v":""},{"$f":"IF('1. Order'!AE523=\"\",\"\",'1. Order'!AE523)","v":""}]
[{"$f":"IF('1. Order'!B524=\"\",\"\",'1. Order'!B524)","v":""},{"$f":"IF('1. Order'!I524=\"\",\"\",'1. Order'!I524)","v":""},{"$f":"IF('1. Order'!J524=\"\",\"\",'1. Order'!J524)","v":""},{"$f":"IF('1. Order'!K524=\"\",\"\",'1. Order'!K524)","v":""},{"$f":"IF('1. Order'!M524=\"\",\"\",'1. Order'!M524)","v":""},null,null,{"$f":"IF('1. Order'!AR524=\"\",\"\",'1. Order'!AR524)","v":""},{"$f":"IF('1. Order'!AE524=\"\",\"\",'1. Order'!AE524)","v":""}]
[{"$f":"IF('1. Order'!B525=\"\",\"\",'1. Order'!B525)","v":""},{"$f":"IF('1. Order'!I525=\"\",\"\",'1. Order'!I525)","v":""},{"$f":"IF('1. Order'!J525=\"\",\"\",'1. Order'!J525)","v":""},{"$f":"IF('1. Order'!K525=\"\",\"\",'1. Order'!K525)","v":""},{"$f":"IF('1. Order'!M525=\"\",\"\",'1. Order'!M525)","v":""},null,null,{"$f":"IF('1. Order'!AR525=\"\",\"\",'1. Order'!AR525)","v":""},{"$f":"IF('1. Order'!AE525=\"\",\"\",'1. Order'!AE525)","v":""}]
[{"$f":"IF('1. Order'!B526=\"\",\"\",'1. Order'!B526)","v":""},{"$f":"IF('1. Order'!I526=\"\",\"\",'1. Order'!I526)","v":""},{"$f":"IF('1. Order'!J526=\"\",\"\",'1. Order'!J526)","v":""},{"$f":"IF('1. Order'!K526=\"\",\"\",'1. Order'!K526)","v":""},{"$f":"IF('1. Order'!M526=\"\",\"\",'1. Order'!M526)","v":""},null,null,{"$f":"IF('1. Order'!AR526=\"\",\"\",'1. Order'!AR526)","v":""},{"$f":"IF('1. Order'!AE526=\"\",\"\",'1. Order'!AE526)","v":""}]
[{"$f":"IF('1. Order'!B527=\"\",\"\",'1. Order'!B527)","v":""},{"$f":"IF('1. Order'!I527=\"\",\"\",'1. Order'!I527)","v":""},{"$f":"IF('1. Order'!J527=\"\",\"\",'1. Order'!J527)","v":""},{"$f":"IF('1. Order'!K527=\"\",\"\",'1. Order'!K527)","v":""},{"$f":"IF('1. Order'!M527=\"\",\"\",'1. Order'!M527)","v":""},null,null,{"$f":"IF('1. Order'!AR527=\"\",\"\",'1. Order'!AR527)","v":""},{"$f":"IF('1. Order'!AE527=\"\",\"\",'1. Order'!AE527)","v":""}]
[{"$f":"IF('1. Order'!B528=\"\",\"\",'1. Order'!B528)","v":""},{"$f":"IF('1. Order'!I528=\"\",\"\",'1. Order'!I528)","v":""},{"$f":"IF('1. Order'!J528=\"\",\"\",'1. Order'!J528)","v":""},{"$f":"IF('1. Order'!K528=\"\",\"\",'1. Order'!K528)","v":""},{"$f":"IF('1. Order'!M528=\"\",\"\",'1. Order'!M528)","v":""},null,null,{"$f":"IF('1. Order'!AR528=\"\",\"\",'1. Order'!AR528)","v":""},{"$f":"IF('1. Order'!AE528=\"\",\"\",'1. Order'!AE528)","v":""}]
[{"$f":"IF('1. Order'!B529=\"\",\"\",'1. Order'!B529)","v":""},{"$f":"IF('1. Order'!I529=\"\",\"\",'1. Order'!I529)","v":""},{"$f":"IF('1. Order'!J529=\"\",\"\",'1. Order'!J529)","v":""},{"$f":"IF('1. Order'!K529=\"\",\"\",'1. Order'!K529)","v":""},{"$f":"IF('1. Order'!M529=\"\",\"\",'1. Order'!M529)","v":""},null,null,{"$f":"IF('1. Order'!AR529=\"\",\"\",'1. Order'!AR529)","v":""},{"$f":"IF('1. Order'!AE529=\"\",\"\",'1. Order'!AE529)","v":""}]
[{"$f":"IF('1. Order'!B530=\"\",\"\",'1. Order'!B530)","v":""},{"$f":"IF('1. Order'!I530=\"\",\"\",'1. Order'!I530)","v":""},{"$f":"IF('1. Order'!J530=\"\",\"\",'1. Order'!J530)","v":""},{"$f":"IF('1. Order'!K530=\"\",\"\",'1. Order'!K530)","v":""},{"$f":"IF('1. Order'!M530=\"\",\"\",'1. Order'!M530)","v":""},null,null,{"$f":"IF('1. Order'!AR530=\"\",\"\",'1. Order'!AR530)","v":""},{"$f":"IF('1. Order'!AE530=\"\",\"\",'1. Order'!AE530)","v":""}]
[{"$f":"IF('1. Order'!B531=\"\",\"\",'1. Order'!B531)","v":""},{"$f":"IF('1. Order'!I531=\"\",\"\",'1. Order'!I531)","v":""},{"$f":"IF('1. Order'!J531=\"\",\"\",'1. Order'!J531)","v":""},{"$f":"IF('1. Order'!K531=\"\",\"\",'1. Order'!K531)","v":""},{"$f":"IF('1. Order'!M531=\"\",\"\",'1. Order'!M531)","v":""},null,null,{"$f":"IF('1. Order'!AR531=\"\",\"\",'1. Order'!AR531)","v":""},{"$f":"IF('1. Order'!AE531=\"\",\"\",'1. Order'!AE531)","v":""}]
[{"$f":"IF('1. Order'!B532=\"\",\"\",'1. Order'!B532)","v":""},{"$f":"IF('1. Order'!I532=\"\",\"\",'1. Order'!I532)","v":""},{"$f":"IF('1. Order'!J532=\"\",\"\",'1. Order'!J532)","v":""},{"$f":"IF('1. Order'!K532=\"\",\"\",'1. Order'!K532)","v":""},{"$f":"IF('1. Order'!M532=\"\",\"\",'1. Order'!M532)","v":""},null,null,{"$f":"IF('1. Order'!AR532=\"\",\"\",'1. Order'!AR532)","v":""},{"$f":"IF('1. Order'!AE532=\"\",\"\",'1. Order'!AE532)","v":""}]
[{"$f":"IF('1. Order'!B533=\"\",\"\",'1. Order'!B533)","v":""},{"$f":"IF('1. Order'!I533=\"\",\"\",'1. Order'!I533)","v":""},{"$f":"IF('1. Order'!J533=\"\",\"\",'1. Order'!J533)","v":""},{"$f":"IF('1. Order'!K533=\"\",\"\",'1. Order'!K533)","v":""},{"$f":"IF('1. Order'!M533=\"\",\"\",'1. Order'!M533)","v":""},null,null,{"$f":"IF('1. Order'!AR533=\"\",\"\",'1. Order'!AR533)","v":""},{"$f":"IF('1. Order'!AE533=\"\",\"\",'1. Order'!AE533)","v":""}]
[{"$f":"IF('1. Order'!B534=\"\",\"\",'1. Order'!B534)","v":""},{"$f":"IF('1. Order'!I534=\"\",\"\",'1. Order'!I534)","v":""},{"$f":"IF('1. Order'!J534=\"\",\"\",'1. Order'!J534)","v":""},{"$f":"IF('1. Order'!K534=\"\",\"\",'1. Order'!K534)","v":""},{"$f":"IF('1. Order'!M534=\"\",\"\",'1. Order'!M534)","v":""},null,null,{"$f":"IF('1. Order'!AR534=\"\",\"\",'1. Order'!AR534)","v":""},{"$f":"IF('1. Order'!AE534=\"\",\"\",'1. Order'!AE534)","v":""}]
[{"$f":"IF('1. Order'!B535=\"\",\"\",'1. Order'!B535)","v":""},{"$f":"IF('1. Order'!I535=\"\",\"\",'1. Order'!I535)","v":""},{"$f":"IF('1. Order'!J535=\"\",\"\",'1. Order'!J535)","v":""},{"$f":"IF('1. Order'!K535=\"\",\"\",'1. Order'!K535)","v":""},{"$f":"IF('1. Order'!M535=\"\",\"\",'1. Order'!M535)","v":""},null,null,{"$f":"IF('1. Order'!AR535=\"\",\"\",'1. Order'!AR535)","v":""},{"$f":"IF('1. Order'!AE535=\"\",\"\",'1. Order'!AE535)","v":""}]
[{"$f":"IF('1. Order'!B536=\"\",\"\",'1. Order'!B536)","v":""},{"$f":"IF('1. Order'!I536=\"\",\"\",'1. Order'!I536)","v":""},{"$f":"IF('1. Order'!J536=\"\",\"\",'1. Order'!J536)","v":""},{"$f":"IF('1. Order'!K536=\"\",\"\",'1. Order'!K536)","v":""},{"$f":"IF('1. Order'!M536=\"\",\"\",'1. Order'!M536)","v":""},null,null,{"$f":"IF('1. Order'!AR536=\"\",\"\",'1. Order'!AR536)","v":""},{"$f":"IF('1. Order'!AE536=\"\",\"\",'1. Order'!AE536)","v":""}]
[{"$f":"IF('1. Order'!B537=\"\",\"\",'1. Order'!B537)","v":""},{"$f":"IF('1. Order'!I537=\"\",\"\",'1. Order'!I537)","v":""},{"$f":"IF('1. Order'!J537=\"\",\"\",'1. Order'!J537)","v":""},{"$f":"IF('1. Order'!K537=\"\",\"\",'1. Order'!K537)","v":""},{"$f":"IF('1. Order'!M537=\"\",\"\",'1. Order'!M537)","v":""},null,null,{"$f":"IF('1. Order'!AR537=\"\",\"\",'1. Order'!AR537)","v":""},{"$f":"IF('1. Order'!AE537=\"\",\"\",'1. Order'!AE537)","v":""}]
[{"$f":"IF('1. Order'!B538=\"\",\"\",'1. Order'!B538)","v":""},{"$f":"IF('1. Order'!I538=\"\",\"\",'1. Order'!I538)","v":""},{"$f":"IF('1. Order'!J538=\"\",\"\",'1. Order'!J538)","v":""},{"$f":"IF('1. Order'!K538=\"\",\"\",'1. Order'!K538)","v":""},{"$f":"IF('1. Order'!M538=\"\",\"\",'1. Order'!M538)","v":""},null,null,{"$f":"IF('1. Order'!AR538=\"\",\"\",'1. Order'!AR538)","v":""},{"$f":"IF('1. Order'!AE538=\"\",\"\",'1. Order'!AE538)","v":""}]
[{"$f":"IF('1. Order'!B539=\"\",\"\",'1. Order'!B539)","v":""},{"$f":"IF('1. Order'!I539=\"\",\"\",'1. Order'!I539)","v":""},{"$f":"IF('1. Order'!J539=\"\",\"\",'1. Order'!J539)","v":""},{"$f":"IF('1. Order'!K539=\"\",\"\",'1. Order'!K539)","v":""},{"$f":"IF('1. Order'!M539=\"\",\"\",'1. Order'!M539)","v":""},null,null,{"$f":"IF('1. Order'!AR539=\"\",\"\",'1. Order'!AR539)","v":""},{"$f":"IF('1. Order'!AE539=\"\",\"\",'1. Order'!AE539)","v":""}]
[{"$f":"IF('1. Order'!B540=\"\",\"\",'1. Order'!B540)","v":""},{"$f":"IF('1. Order'!I540=\"\",\"\",'1. Order'!I540)","v":""},{"$f":"IF('1. Order'!J540=\"\",\"\",'1. Order'!J540)","v":""},{"$f":"IF('1. Order'!K540=\"\",\"\",'1. Order'!K540)","v":""},{"$f":"IF('1. Order'!M540=\"\",\"\",'1. Order'!M540)","v":""},null,null,{"$f":"IF('1. Order'!AR540=\"\",\"\",'1. Order'!AR540)","v":""},{"$f":"IF('1. Order'!AE540=\"\",\"\",'1. Order'!AE540)","v":""}]
[{"$f":"IF('1. Order'!B541=\"\",\"\",'1. Order'!B541)","v":""},{"$f":"IF('1. Order'!I541=\"\",\"\",'1. Order'!I541)","v":""},{"$f":"IF('1. Order'!J541=\"\",\"\",'1. Order'!J541)","v":""},{"$f":"IF('1. Order'!K541=\"\",\"\",'1. Order'!K541)","v":""},{"$f":"IF('1. Order'!M541=\"\",\"\",'1. Order'!M541)","v":""},null,null,{"$f":"IF('1. Order'!AR541=\"\",\"\",'1. Order'!AR541)","v":""},{"$f":"IF('1. Order'!AE541=\"\",\"\",'1. Order'!AE541)","v":""}]
[{"$f":"IF('1. Order'!B542=\"\",\"\",'1. Order'!B542)","v":""},{"$f":"IF('1. Order'!I542=\"\",\"\",'1. Order'!I542)","v":""},{"$f":"IF('1. Order'!J542=\"\",\"\",'1. Order'!J542)","v":""},{"$f":"IF('1. Order'!K542=\"\",\"\",'1. Order'!K542)","v":""},{"$f":"IF('1. Order'!M542=\"\",\"\",'1. Order'!M542)","v":""},null,null,{"$f":"IF('1. Order'!AR542=\"\",\"\",'1. Order'!AR542)","v":""},{"$f":"IF('1. Order'!AE542=\"\",\"\",'1. Order'!AE542)","v":""}]
[{"$f":"IF('1. Order'!B543=\"\",\"\",'1. Order'!B543)","v":""},{"$f":"IF('1. Order'!I543=\"\",\"\",'1. Order'!I543)","v":""},{"$f":"IF('1. Order'!J543=\"\",\"\",'1. Order'!J543)","v":""},{"$f":"IF('1. Order'!K543=\"\",\"\",'1. Order'!K543)","v":""},{"$f":"IF('1. Order'!M543=\"\",\"\",'1. Order'!M543)","v":""},null,null,{"$f":"IF('1. Order'!AR543=\"\",\"\",'1. Order'!AR543)","v":""},{"$f":"IF('1. Order'!AE543=\"\",\"\",'1. Order'!AE543)","v":""}]
[{"$f":"IF('1. Order'!B544=\"\",\"\",'1. Order'!B544)","v":""},{"$f":"IF('1. Order'!I544=\"\",\"\",'1. Order'!I544)","v":""},{"$f":"IF('1. Order'!J544=\"\",\"\",'1. Order'!J544)","v":""},{"$f":"IF('1. Order'!K544=\"\",\"\",'1. Order'!K544)","v":""},{"$f":"IF('1. Order'!M544=\"\",\"\",'1. Order'!M544)","v":""},null,null,{"$f":"IF('1. Order'!AR544=\"\",\"\",'1. Order'!AR544)","v":""},{"$f":"IF('1. Order'!AE544=\"\",\"\",'1. Order'!AE544)","v":""}]
[{"$f":"IF('1. Order'!B545=\"\",\"\",'1. Order'!B545)","v":""},{"$f":"IF('1. Order'!I545=\"\",\"\",'1. Order'!I545)","v":""},{"$f":"IF('1. Order'!J545=\"\",\"\",'1. Order'!J545)","v":""},{"$f":"IF('1. Order'!K545=\"\",\"\",'1. Order'!K545)","v":""},{"$f":"IF('1. Order'!M545=\"\",\"\",'1. Order'!M545)","v":""},null,null,{"$f":"IF('1. Order'!AR545=\"\",\"\",'1. Order'!AR545)","v":""},{"$f":"IF('1. Order'!AE545=\"\",\"\",'1. Order'!AE545)","v":""}]
[{"$f":"IF('1. Order'!B546=\"\",\"\",'1. Order'!B546)","v":""},{"$f":"IF('1. Order'!I546=\"\",\"\",'1. Order'!I546)","v":""},{"$f":"IF('1. Order'!J546=\"\",\"\",'1. Order'!J546)","v":""},{"$f":"IF('1. Order'!K546=\"\",\"\",'1. Order'!K546)","v":""},{"$f":"IF('1. Order'!M546=\"\",\"\",'1. Order'!M546)","v":""},null,null,{"$f":"IF('1. Order'!AR546=\"\",\"\",'1. Order'!AR546)","v":""},{"$f":"IF('1. Order'!AE546=\"\",\"\",'1. Order'!AE546)","v":""}]
[{"$f":"IF('1. Order'!B547=\"\",\"\",'1. Order'!B547)","v":""},{"$f":"IF('1. Order'!I547=\"\",\"\",'1. Order'!I547)","v":""},{"$f":"IF('1. Order'!J547=\"\",\"\",'1. Order'!J547)","v":""},{"$f":"IF('1. Order'!K547=\"\",\"\",'1. Order'!K547)","v":""},{"$f":"IF('1. Order'!M547=\"\",\"\",'1. Order'!M547)","v":""},null,null,{"$f":"IF('1. Order'!AR547=\"\",\"\",'1. Order'!AR547)","v":""},{"$f":"IF('1. Order'!AE547=\"\",\"\",'1. Order'!AE547)","v":""}]
[{"$f":"IF('1. Order'!B548=\"\",\"\",'1. Order'!B548)","v":""},{"$f":"IF('1. Order'!I548=\"\",\"\",'1. Order'!I548)","v":""},{"$f":"IF('1. Order'!J548=\"\",\"\",'1. Order'!J548)","v":""},{"$f":"IF('1. Order'!K548=\"\",\"\",'1. Order'!K548)","v":""},{"$f":"IF('1. Order'!M548=\"\",\"\",'1. Order'!M548)","v":""},null,null,{"$f":"IF('1. Order'!AR548=\"\",\"\",'1. Order'!AR548)","v":""},{"$f":"IF('1. Order'!AE548=\"\",\"\",'1. Order'!AE548)","v":""}]
[{"$f":"IF('1. Order'!B549=\"\",\"\",'1. Order'!B549)","v":""},{"$f":"IF('1. Order'!I549=\"\",\"\",'1. Order'!I549)","v":""},{"$f":"IF('1. Order'!J549=\"\",\"\",'1. Order'!J549)","v":""},{"$f":"IF('1. Order'!K549=\"\",\"\",'1. Order'!K549)","v":""},{"$f":"IF('1. Order'!M549=\"\",\"\",'1. Order'!M549)","v":""},null,null,{"$f":"IF('1. Order'!AR549=\"\",\"\",'1. Order'!AR549)","v":""},{"$f":"IF('1. Order'!AE549=\"\",\"\",'1. Order'!AE549)","v":""}]
[{"$f":"IF('1. Order'!B550=\"\",\"\",'1. Order'!B550)","v":""},{"$f":"IF('1. Order'!I550=\"\",\"\",'1. Order'!I550)","v":""},{"$f":"IF('1. Order'!J550=\"\",\"\",'1. Order'!J550)","v":""},{"$f":"IF('1. Order'!K550=\"\",\"\",'1. Order'!K550)","v":""},{"$f":"IF('1. Order'!M550=\"\",\"\",'1. Order'!M550)","v":""},null,null,{"$f":"IF('1. Order'!AR550=\"\",\"\",'1. Order'!AR550)","v":""},{"$f":"IF('1. Order'!AE550=\"\",\"\",'1. Order'!AE550)","v":""}]
[{"$f":"IF('1. Order'!B551=\"\",\"\",'1. Order'!B551)","v":""},{"$f":"IF('1. Order'!I551=\"\",\"\",'1. Order'!I551)","v":""},{"$f":"IF('1. Order'!J551=\"\",\"\",'1. Order'!J551)","v":""},{"$f":"IF('1. Order'!K551=\"\",\"\",'1. Order'!K551)","v":""},{"$f":"IF('1. Order'!M551=\"\",\"\",'1. Order'!M551)","v":""},null,null,{"$f":"IF('1. Order'!AR551=\"\",\"\",'1. Order'!AR551)","v":""},{"$f":"IF('1. Order'!AE551=\"\",\"\",'1. Order'!AE551)","v":""}]
[{"$f":"IF('1. Order'!B552=\"\",\"\",'1. Order'!B552)","v":""},{"$f":"IF('1. Order'!I552=\"\",\"\",'1. Order'!I552)","v":""},{"$f":"IF('1. Order'!J552=\"\",\"\",'1. Order'!J552)","v":""},{"$f":"IF('1. Order'!K552=\"\",\"\",'1. Order'!K552)","v":""},{"$f":"IF('1. Order'!M552=\"\",\"\",'1. Order'!M552)","v":""},null,null,{"$f":"IF('1. Order'!AR552=\"\",\"\",'1. Order'!AR552)","v":""},{"$f":"IF('1. Order'!AE552=\"\",\"\",'1. Order'!AE552)","v":""}]
[{"$f":"IF('1. Order'!B553=\"\",\"\",'1. Order'!B553)","v":""},{"$f":"IF('1. Order'!I553=\"\",\"\",'1. Order'!I553)","v":""},{"$f":"IF('1. Order'!J553=\"\",\"\",'1. Order'!J553)","v":""},{"$f":"IF('1. Order'!K553=\"\",\"\",'1. Order'!K553)","v":""},{"$f":"IF('1. Order'!M553=\"\",\"\",'1. Order'!M553)","v":""},null,null,{"$f":"IF('1. Order'!AR553=\"\",\"\",'1. Order'!AR553)","v":""},{"$f":"IF('1. Order'!AE553=\"\",\"\",'1. Order'!AE553)","v":""}]
[{"$f":"IF('1. Order'!B554=\"\",\"\",'1. Order'!B554)","v":""},{"$f":"IF('1. Order'!I554=\"\",\"\",'1. Order'!I554)","v":""},{"$f":"IF('1. Order'!J554=\"\",\"\",'1. Order'!J554)","v":""},{"$f":"IF('1. Order'!K554=\"\",\"\",'1. Order'!K554)","v":""},{"$f":"IF('1. Order'!M554=\"\",\"\",'1. Order'!M554)","v":""},null,null,{"$f":"IF('1. Order'!AR554=\"\",\"\",'1. Order'!AR554)","v":""},{"$f":"IF('1. Order'!AE554=\"\",\"\",'1. Order'!AE554)","v":""}]
[{"$f":"IF('1. Order'!B555=\"\",\"\",'1. Order'!B555)","v":""},{"$f":"IF('1. Order'!I555=\"\",\"\",'1. Order'!I555)","v":""},{"$f":"IF('1. Order'!J555=\"\",\"\",'1. Order'!J555)","v":""},{"$f":"IF('1. Order'!K555=\"\",\"\",'1. Order'!K555)","v":""},{"$f":"IF('1. Order'!M555=\"\",\"\",'1. Order'!M555)","v":""},null,null,{"$f":"IF('1. Order'!AR555=\"\",\"\",'1. Order'!AR555)","v":""},{"$f":"IF('1. Order'!AE555=\"\",\"\",'1. Order'!AE555)","v":""}]
[{"$f":"IF('1. Order'!B556=\"\",\"\",'1. Order'!B556)","v":""},{"$f":"IF('1. Order'!I556=\"\",\"\",'1. Order'!I556)","v":""},{"$f":"IF('1. Order'!J556=\"\",\"\",'1. Order'!J556)","v":""},{"$f":"IF('1. Order'!K556=\"\",\"\",'1. Order'!K556)","v":""},{"$f":"IF('1. Order'!M556=\"\",\"\",'1. Order'!M556)","v":""},null,null,{"$f":"IF('1. Order'!AR556=\"\",\"\",'1. Order'!AR556)","v":""},{"$f":"IF('1. Order'!AE556=\"\",\"\",'1. Order'!AE556)","v":""}]
[{"$f":"IF('1. Order'!B557=\"\",\"\",'1. Order'!B557)","v":""},{"$f":"IF('1. Order'!I557=\"\",\"\",'1. Order'!I557)","v":""},{"$f":"IF('1. Order'!J557=\"\",\"\",'1. Order'!J557)","v":""},{"$f":"IF('1. Order'!K557=\"\",\"\",'1. Order'!K557)","v":""},{"$f":"IF('1. Order'!M557=\"\",\"\",'1. Order'!M557)","v":""},null,null,{"$f":"IF('1. Order'!AR557=\"\",\"\",'1. Order'!AR557)","v":""},{"$f":"IF('1. Order'!AE557=\"\",\"\",'1. Order'!AE557)","v":""}]
[{"$f":"IF('1. Order'!B558=\"\",\"\",'1. Order'!B558)","v":""},{"$f":"IF('1. Order'!I558=\"\",\"\",'1. Order'!I558)","v":""},{"$f":"IF('1. Order'!J558=\"\",\"\",'1. Order'!J558)","v":""},{"$f":"IF('1. Order'!K558=\"\",\"\",'1. Order'!K558)","v":""},{"$f":"IF('1. Order'!M558=\"\",\"\",'1. Order'!M558)","v":""},null,null,{"$f":"IF('1. Order'!AR558=\"\",\"\",'1. Order'!AR558)","v":""},{"$f":"IF('1. Order'!AE558=\"\",\"\",'1. Order'!AE558)","v":""}]
[{"$f":"IF('1. Order'!B559=\"\",\"\",'1. Order'!B559)","v":""},{"$f":"IF('1. Order'!I559=\"\",\"\",'1. Order'!I559)","v":""},{"$f":"IF('1. Order'!J559=\"\",\"\",'1. Order'!J559)","v":""},{"$f":"IF('1. Order'!K559=\"\",\"\",'1. Order'!K559)","v":""},{"$f":"IF('1. Order'!M559=\"\",\"\",'1. Order'!M559)","v":""},null,null,{"$f":"IF('1. Order'!AR559=\"\",\"\",'1. Order'!AR559)","v":""},{"$f":"IF('1. Order'!AE559=\"\",\"\",'1. Order'!AE559)","v":""}]
[{"$f":"IF('1. Order'!B560=\"\",\"\",'1. Order'!B560)","v":""},{"$f":"IF('1. Order'!I560=\"\",\"\",'1. Order'!I560)","v":""},{"$f":"IF('1. Order'!J560=\"\",\"\",'1. Order'!J560)","v":""},{"$f":"IF('1. Order'!K560=\"\",\"\",'1. Order'!K560)","v":""},{"$f":"IF('1. Order'!M560=\"\",\"\",'1. Order'!M560)","v":""},null,null,{"$f":"IF('1. Order'!AR560=\"\",\"\",'1. Order'!AR560)","v":""},{"$f":"IF('1. Order'!AE560=\"\",\"\",'1. Order'!AE560)","v":""}]
[{"$f":"IF('1. Order'!B561=\"\",\"\",'1. Order'!B561)","v":""},{"$f":"IF('1. Order'!I561=\"\",\"\",'1. Order'!I561)","v":""},{"$f":"IF('1. Order'!J561=\"\",\"\",'1. Order'!J561)","v":""},{"$f":"IF('1. Order'!K561=\"\",\"\",'1. Order'!K561)","v":""},{"$f":"IF('1. Order'!M561=\"\",\"\",'1. Order'!M561)","v":""},null,null,{"$f":"IF('1. Order'!AR561=\"\",\"\",'1. Order'!AR561)","v":""},{"$f":"IF('1. Order'!AE561=\"\",\"\",'1. Order'!AE561)","v":""}]
[{"$f":"IF('1. Order'!B562=\"\",\"\",'1. Order'!B562)","v":""},{"$f":"IF('1. Order'!I562=\"\",\"\",'1. Order'!I562)","v":""},{"$f":"IF('1. Order'!J562=\"\",\"\",'1. Order'!J562)","v":""},{"$f":"IF('1. Order'!K562=\"\",\"\",'1. Order'!K562)","v":""},{"$f":"IF('1. Order'!M562=\"\",\"\",'1. Order'!M562)","v":""},null,null,{"$f":"IF('1. Order'!AR562=\"\",\"\",'1. Order'!AR562)","v":""},{"$f":"IF('1. Order'!AE562=\"\",\"\",'1. Order'!AE562)","v":""}]
[{"$f":"IF('1. Order'!B563=\"\",\"\",'1. Order'!B563)","v":""},{"$f":"IF('1. Order'!I563=\"\",\"\",'1. Order'!I563)","v":""},{"$f":"IF('1. Order'!J563=\"\",\"\",'1. Order'!J563)","v":""},{"$f":"IF('1. Order'!K563=\"\",\"\",'1. Order'!K563)","v":""},{"$f":"IF('1. Order'!M563=\"\",\"\",'1. Order'!M563)","v":""},null,null,{"$f":"IF('1. Order'!AR563=\"\",\"\",'1. Order'!AR563)","v":""},{"$f":"IF('1. Order'!AE563=\"\",\"\",'1. Order'!AE563)","v":""}]
[{"$f":"IF('1. Order'!B564=\"\",\"\",'1. Order'!B564)","v":""},{"$f":"IF('1. Order'!I564=\"\",\"\",'1. Order'!I564)","v":""},{"$f":"IF('1. Order'!J564=\"\",\"\",'1. Order'!J564)","v":""},{"$f":"IF('1. Order'!K564=\"\",\"\",'1. Order'!K564)","v":""},{"$f":"IF('1. Order'!M564=\"\",\"\",'1. Order'!M564)","v":""},null,null,{"$f":"IF('1. Order'!AR564=\"\",\"\",'1. Order'!AR564)","v":""},{"$f":"IF('1. Order'!AE564=\"\",\"\",'1. Order'!AE564)","v":""}]
[{"$f":"IF('1. Order'!B565=\"\",\"\",'1. Order'!B565)","v":""},{"$f":"IF('1. Order'!I565=\"\",\"\",'1. Order'!I565)","v":""},{"$f":"IF('1. Order'!J565=\"\",\"\",'1. Order'!J565)","v":""},{"$f":"IF('1. Order'!K565=\"\",\"\",'1. Order'!K565)","v":""},{"$f":"IF('1. Order'!M565=\"\",\"\",'1. Order'!M565)","v":""},null,null,{"$f":"IF('1. Order'!AR565=\"\",\"\",'1. Order'!AR565)","v":""},{"$f":"IF('1. Order'!AE565=\"\",\"\",'1. Order'!AE565)","v":""}]
[{"$f":"IF('1. Order'!B566=\"\",\"\",'1. Order'!B566)","v":""},{"$f":"IF('1. Order'!I566=\"\",\"\",'1. Order'!I566)","v":""},{"$f":"IF('1. Order'!J566=\"\",\"\",'1. Order'!J566)","v":""},{"$f":"IF('1. Order'!K566=\"\",\"\",'1. Order'!K566)","v":""},{"$f":"IF('1. Order'!M566=\"\",\"\",'1. Order'!M566)","v":""},null,null,{"$f":"IF('1. Order'!AR566=\"\",\"\",'1. Order'!AR566)","v":""},{"$f":"IF('1. Order'!AE566=\"\",\"\",'1. Order'!AE566)","v":""}]
[{"$f":"IF('1. Order'!B567=\"\",\"\",'1. Order'!B567)","v":""},{"$f":"IF('1. Order'!I567=\"\",\"\",'1. Order'!I567)","v":""},{"$f":"IF('1. Order'!J567=\"\",\"\",'1. Order'!J567)","v":""},{"$f":"IF('1. Order'!K567=\"\",\"\",'1. Order'!K567)","v":""},{"$f":"IF('1. Order'!M567=\"\",\"\",'1. Order'!M567)","v":""},null,null,{"$f":"IF('1. Order'!AR567=\"\",\"\",'1. Order'!AR567)","v":""},{"$f":"IF('1. Order'!AE567=\"\",\"\",'1. Order'!AE567)","v":""}]
[{"$f":"IF('1. Order'!B568=\"\",\"\",'1. Order'!B568)","v":""},{"$f":"IF('1. Order'!I568=\"\",\"\",'1. Order'!I568)","v":""},{"$f":"IF('1. Order'!J568=\"\",\"\",'1. Order'!J568)","v":""},{"$f":"IF('1. Order'!K568=\"\",\"\",'1. Order'!K568)","v":""},{"$f":"IF('1. Order'!M568=\"\",\"\",'1. Order'!M568)","v":""},null,null,{"$f":"IF('1. Order'!AR568=\"\",\"\",'1. Order'!AR568)","v":""},{"$f":"IF('1. Order'!AE568=\"\",\"\",'1. Order'!AE568)","v":""}]
[{"$f":"IF('1. Order'!B569=\"\",\"\",'1. Order'!B569)","v":""},{"$f":"IF('1. Order'!I569=\"\",\"\",'1. Order'!I569)","v":""},{"$f":"IF('1. Order'!J569=\"\",\"\",'1. Order'!J569)","v":""},{"$f":"IF('1. Order'!K569=\"\",\"\",'1. Order'!K569)","v":""},{"$f":"IF('1. Order'!M569=\"\",\"\",'1. Order'!M569)","v":""},null,null,{"$f":"IF('1. Order'!AR569=\"\",\"\",'1. Order'!AR569)","v":""},{"$f":"IF('1. Order'!AE569=\"\",\"\",'1. Order'!AE569)","v":""}]
[{"$f":"IF('1. Order'!B570=\"\",\"\",'1. Order'!B570)","v":""},{"$f":"IF('1. Order'!I570=\"\",\"\",'1. Order'!I570)","v":""},{"$f":"IF('1. Order'!J570=\"\",\"\",'1. Order'!J570)","v":""},{"$f":"IF('1. Order'!K570=\"\",\"\",'1. Order'!K570)","v":""},{"$f":"IF('1. Order'!M570=\"\",\"\",'1. Order'!M570)","v":""},null,null,{"$f":"IF('1. Order'!AR570=\"\",\"\",'1. Order'!AR570)","v":""},{"$f":"IF('1. Order'!AE570=\"\",\"\",'1. Order'!AE570)","v":""}]
[{"$f":"IF('1. Order'!B571=\"\",\"\",'1. Order'!B571)","v":""},{"$f":"IF('1. Order'!I571=\"\",\"\",'1. Order'!I571)","v":""},{"$f":"IF('1. Order'!J571=\"\",\"\",'1. Order'!J571)","v":""},{"$f":"IF('1. Order'!K571=\"\",\"\",'1. Order'!K571)","v":""},{"$f":"IF('1. Order'!M571=\"\",\"\",'1. Order'!M571)","v":""},null,null,{"$f":"IF('1. Order'!AR571=\"\",\"\",'1. Order'!AR571)","v":""},{"$f":"IF('1. Order'!AE571=\"\",\"\",'1. Order'!AE571)","v":""}]
[{"$f":"IF('1. Order'!B572=\"\",\"\",'1. Order'!B572)","v":""},{"$f":"IF('1. Order'!I572=\"\",\"\",'1. Order'!I572)","v":""},{"$f":"IF('1. Order'!J572=\"\",\"\",'1. Order'!J572)","v":""},{"$f":"IF('1. Order'!K572=\"\",\"\",'1. Order'!K572)","v":""},{"$f":"IF('1. Order'!M572=\"\",\"\",'1. Order'!M572)","v":""},null,null,{"$f":"IF('1. Order'!AR572=\"\",\"\",'1. Order'!AR572)","v":""},{"$f":"IF('1. Order'!AE572=\"\",\"\",'1. Order'!AE572)","v":""}]
[{"$f":"IF('1. Order'!B573=\"\",\"\",'1. Order'!B573)","v":""},{"$f":"IF('1. Order'!I573=\"\",\"\",'1. Order'!I573)","v":""},{"$f":"IF('1. Order'!J573=\"\",\"\",'1. Order'!J573)","v":""},{"$f":"IF('1. Order'!K573=\"\",\"\",'1. Order'!K573)","v":""},{"$f":"IF('1. Order'!M573=\"\",\"\",'1. Order'!M573)","v":""},null,null,{"$f":"IF('1. Order'!AR573=\"\",\"\",'1. Order'!AR573)","v":""},{"$f":"IF('1. Order'!AE573=\"\",\"\",'1. Order'!AE573)","v":""}]
[{"$f":"IF('1. Order'!B574=\"\",\"\",'1. Order'!B574)","v":""},{"$f":"IF('1. Order'!I574=\"\",\"\",'1. Order'!I574)","v":""},{"$f":"IF('1. Order'!J574=\"\",\"\",'1. Order'!J574)","v":""},{"$f":"IF('1. Order'!K574=\"\",\"\",'1. Order'!K574)","v":""},{"$f":"IF('1. Order'!M574=\"\",\"\",'1. Order'!M574)","v":""},null,null,{"$f":"IF('1. Order'!AR574=\"\",\"\",'1. Order'!AR574)","v":""},{"$f":"IF('1. Order'!AE574=\"\",\"\",'1. Order'!AE574)","v":""}]
[{"$f":"IF('1. Order'!B575=\"\",\"\",'1. Order'!B575)","v":""},{"$f":"IF('1. Order'!I575=\"\",\"\",'1. Order'!I575)","v":""},{"$f":"IF('1. Order'!J575=\"\",\"\",'1. Order'!J575)","v":""},{"$f":"IF('1. Order'!K575=\"\",\"\",'1. Order'!K575)","v":""},{"$f":"IF('1. Order'!M575=\"\",\"\",'1. Order'!M575)","v":""},null,null,{"$f":"IF('1. Order'!AR575=\"\",\"\",'1. Order'!AR575)","v":""},{"$f":"IF('1. Order'!AE575=\"\",\"\",'1. Order'!AE575)","v":""}]
[{"$f":"IF('1. Order'!B576=\"\",\"\",'1. Order'!B576)","v":""},{"$f":"IF('1. Order'!I576=\"\",\"\",'1. Order'!I576)","v":""},{"$f":"IF('1. Order'!J576=\"\",\"\",'1. Order'!J576)","v":""},{"$f":"IF('1. Order'!K576=\"\",\"\",'1. Order'!K576)","v":""},{"$f":"IF('1. Order'!M576=\"\",\"\",'1. Order'!M576)","v":""},null,null,{"$f":"IF('1. Order'!AR576=\"\",\"\",'1. Order'!AR576)","v":""},{"$f":"IF('1. Order'!AE576=\"\",\"\",'1. Order'!AE576)","v":""}]
[{"$f":"IF('1. Order'!B577=\"\",\"\",'1. Order'!B577)","v":""},{"$f":"IF('1. Order'!I577=\"\",\"\",'1. Order'!I577)","v":""},{"$f":"IF('1. Order'!J577=\"\",\"\",'1. Order'!J577)","v":""},{"$f":"IF('1. Order'!K577=\"\",\"\",'1. Order'!K577)","v":""},{"$f":"IF('1. Order'!M577=\"\",\"\",'1. Order'!M577)","v":""},null,null,{"$f":"IF('1. Order'!AR577=\"\",\"\",'1. Order'!AR577)","v":""},{"$f":"IF('1. Order'!AE577=\"\",\"\",'1. Order'!AE577)","v":""}]
[{"$f":"IF('1. Order'!B578=\"\",\"\",'1. Order'!B578)","v":""},{"$f":"IF('1. Order'!I578=\"\",\"\",'1. Order'!I578)","v":""},{"$f":"IF('1. Order'!J578=\"\",\"\",'1. Order'!J578)","v":""},{"$f":"IF('1. Order'!K578=\"\",\"\",'1. Order'!K578)","v":""},{"$f":"IF('1. Order'!M578=\"\",\"\",'1. Order'!M578)","v":""},null,null,{"$f":"IF('1. Order'!AR578=\"\",\"\",'1. Order'!AR578)","v":""},{"$f":"IF('1. Order'!AE578=\"\",\"\",'1. Order'!AE578)","v":""}]
[{"$f":"IF('1. Order'!B579=\"\",\"\",'1. Order'!B579)","v":""},{"$f":"IF('1. Order'!I579=\"\",\"\",'1. Order'!I579)","v":""},{"$f":"IF('1. Order'!J579=\"\",\"\",'1. Order'!J579)","v":""},{"$f":"IF('1. Order'!K579=\"\",\"\",'1. Order'!K579)","v":""},{"$f":"IF('1. Order'!M579=\"\",\"\",'1. Order'!M579)","v":""},null,null,{"$f":"IF('1. Order'!AR579=\"\",\"\",'1. Order'!AR579)","v":""},{"$f":"IF('1. Order'!AE579=\"\",\"\",'1. Order'!AE579)","v":""}]
[{"$f":"IF('1. Order'!B580=\"\",\"\",'1. Order'!B580)","v":""},{"$f":"IF('1. Order'!I580=\"\",\"\",'1. Order'!I580)","v":""},{"$f":"IF('1. Order'!J580=\"\",\"\",'1. Order'!J580)","v":""},{"$f":"IF('1. Order'!K580=\"\",\"\",'1. Order'!K580)","v":""},{"$f":"IF('1. Order'!M580=\"\",\"\",'1. Order'!M580)","v":""},null,null,{"$f":"IF('1. Order'!AR580=\"\",\"\",'1. Order'!AR580)","v":""},{"$f":"IF('1. Order'!AE580=\"\",\"\",'1. Order'!AE580)","v":""}]
[{"$f":"IF('1. Order'!B581=\"\",\"\",'1. Order'!B581)","v":""},{"$f":"IF('1. Order'!I581=\"\",\"\",'1. Order'!I581)","v":""},{"$f":"IF('1. Order'!J581=\"\",\"\",'1. Order'!J581)","v":""},{"$f":"IF('1. Order'!K581=\"\",\"\",'1. Order'!K581)","v":""},{"$f":"IF('1. Order'!M581=\"\",\"\",'1. Order'!M581)","v":""},null,null,{"$f":"IF('1. Order'!AR581=\"\",\"\",'1. Order'!AR581)","v":""},{"$f":"IF('1. Order'!AE581=\"\",\"\",'1. Order'!AE581)","v":""}]
[{"$f":"IF('1. Order'!B582=\"\",\"\",'1. Order'!B582)","v":""},{"$f":"IF('1. Order'!I582=\"\",\"\",'1. Order'!I582)","v":""},{"$f":"IF('1. Order'!J582=\"\",\"\",'1. Order'!J582)","v":""},{"$f":"IF('1. Order'!K582=\"\",\"\",'1. Order'!K582)","v":""},{"$f":"IF('1. Order'!M582=\"\",\"\",'1. Order'!M582)","v":""},null,null,{"$f":"IF('1. Order'!AR582=\"\",\"\",'1. Order'!AR582)","v":""},{"$f":"IF('1. Order'!AE582=\"\",\"\",'1. Order'!AE582)","v":""}]
[{"$f":"IF('1. Order'!B583=\"\",\"\",'1. Order'!B583)","v":""},{"$f":"IF('1. Order'!I583=\"\",\"\",'1. Order'!I583)","v":""},{"$f":"IF('1. Order'!J583=\"\",\"\",'1. Order'!J583)","v":""},{"$f":"IF('1. Order'!K583=\"\",\"\",'1. Order'!K583)","v":""},{"$f":"IF('1. Order'!M583=\"\",\"\",'1. Order'!M583)","v":""},null,null,{"$f":"IF('1. Order'!AR583=\"\",\"\",'1. Order'!AR583)","v":""},{"$f":"IF('1. Order'!AE583=\"\",\"\",'1. Order'!AE583)","v":""}]
[{"$f":"IF('1. Order'!B584=\"\",\"\",'1. Order'!B584)","v":""},{"$f":"IF('1. Order'!I584=\"\",\"\",'1. Order'!I584)","v":""},{"$f":"IF('1. Order'!J584=\"\",\"\",'1. Order'!J584)","v":""},{"$f":"IF('1. Order'!K584=\"\",\"\",'1. Order'!K584)","v":""},{"$f":"IF('1. Order'!M584=\"\",\"\",'1. Order'!M584)","v":""},null,null,{"$f":"IF('1. Order'!AR584=\"\",\"\",'1. Order'!AR584)","v":""},{"$f":"IF('1. Order'!AE584=\"\",\"\",'1. Order'!AE584)","v":""}]
[{"$f":"IF('1. Order'!B585=\"\",\"\",'1. Order'!B585)","v":""},{"$f":"IF('1. Order'!I585=\"\",\"\",'1. Order'!I585)","v":""},{"$f":"IF('1. Order'!J585=\"\",\"\",'1. Order'!J585)","v":""},{"$f":"IF('1. Order'!K585=\"\",\"\",'1. Order'!K585)","v":""},{"$f":"IF('1. Order'!M585=\"\",\"\",'1. Order'!M585)","v":""},null,null,{"$f":"IF('1. Order'!AR585=\"\",\"\",'1. Order'!AR585)","v":""},{"$f":"IF('1. Order'!AE585=\"\",\"\",'1. Order'!AE585)","v":""}]
[{"$f":"IF('1. Order'!B586=\"\",\"\",'1. Order'!B586)","v":""},{"$f":"IF('1. Order'!I586=\"\",\"\",'1. Order'!I586)","v":""},{"$f":"IF('1. Order'!J586=\"\",\"\",'1. Order'!J586)","v":""},{"$f":"IF('1. Order'!K586=\"\",\"\",'1. Order'!K586)","v":""},{"$f":"IF('1. Order'!M586=\"\",\"\",'1. Order'!M586)","v":""},null,null,{"$f":"IF('1. Order'!AR586=\"\",\"\",'1. Order'!AR586)","v":""},{"$f":"IF('1. Order'!AE586=\"\",\"\",'1. Order'!AE586)","v":""}]
[{"$f":"IF('1. Order'!B587=\"\",\"\",'1. Order'!B587)","v":""},{"$f":"IF('1. Order'!I587=\"\",\"\",'1. Order'!I587)","v":""},{"$f":"IF('1. Order'!J587=\"\",\"\",'1. Order'!J587)","v":""},{"$f":"IF('1. Order'!K587=\"\",\"\",'1. Order'!K587)","v":""},{"$f":"IF('1. Order'!M587=\"\",\"\",'1. Order'!M587)","v":""},null,null,{"$f":"IF('1. Order'!AR587=\"\",\"\",'1. Order'!AR587)","v":""},{"$f":"IF('1. Order'!AE587=\"\",\"\",'1. Order'!AE587)","v":""}]
[{"$f":"IF('1. Order'!B588=\"\",\"\",'1. Order'!B588)","v":""},{"$f":"IF('1. Order'!I588=\"\",\"\",'1. Order'!I588)","v":""},{"$f":"IF('1. Order'!J588=\"\",\"\",'1. Order'!J588)","v":""},{"$f":"IF('1. Order'!K588=\"\",\"\",'1. Order'!K588)","v":""},{"$f":"IF('1. Order'!M588=\"\",\"\",'1. Order'!M588)","v":""},null,null,{"$f":"IF('1. Order'!AR588=\"\",\"\",'1. Order'!AR588)","v":""},{"$f":"IF('1. Order'!AE588=\"\",\"\",'1. Order'!AE588)","v":""}]
[{"$f":"IF('1. Order'!B589=\"\",\"\",'1. Order'!B589)","v":""},{"$f":"IF('1. Order'!I589=\"\",\"\",'1. Order'!I589)","v":""},{"$f":"IF('1. Order'!J589=\"\",\"\",'1. Order'!J589)","v":""},{"$f":"IF('1. Order'!K589=\"\",\"\",'1. Order'!K589)","v":""},{"$f":"IF('1. Order'!M589=\"\",\"\",'1. Order'!M589)","v":""},null,null,{"$f":"IF('1. Order'!AR589=\"\",\"\",'1. Order'!AR589)","v":""},{"$f":"IF('1. Order'!AE589=\"\",\"\",'1. Order'!AE589)","v":""}]
[{"$f":"IF('1. Order'!B590=\"\",\"\",'1. Order'!B590)","v":""},{"$f":"IF('1. Order'!I590=\"\",\"\",'1. Order'!I590)","v":""},{"$f":"IF('1. Order'!J590=\"\",\"\",'1. Order'!J590)","v":""},{"$f":"IF('1. Order'!K590=\"\",\"\",'1. Order'!K590)","v":""},{"$f":"IF('1. Order'!M590=\"\",\"\",'1. Order'!M590)","v":""},null,null,{"$f":"IF('1. Order'!AR590=\"\",\"\",'1. Order'!AR590)","v":""},{"$f":"IF('1. Order'!AE590=\"\",\"\",'1. Order'!AE590)","v":""}]
[{"$f":"IF('1. Order'!B591=\"\",\"\",'1. Order'!B591)","v":""},{"$f":"IF('1. Order'!I591=\"\",\"\",'1. Order'!I591)","v":""},{"$f":"IF('1. Order'!J591=\"\",\"\",'1. Order'!J591)","v":""},{"$f":"IF('1. Order'!K591=\"\",\"\",'1. Order'!K591)","v":""},{"$f":"IF('1. Order'!M591=\"\",\"\",'1. Order'!M591)","v":""},null,null,{"$f":"IF('1. Order'!AR591=\"\",\"\",'1. Order'!AR591)","v":""},{"$f":"IF('1. Order'!AE591=\"\",\"\",'1. Order'!AE591)","v":""}]
[{"$f":"IF('1. Order'!B592=\"\",\"\",'1. Order'!B592)","v":""},{"$f":"IF('1. Order'!I592=\"\",\"\",'1. Order'!I592)","v":""},{"$f":"IF('1. Order'!J592=\"\",\"\",'1. Order'!J592)","v":""},{"$f":"IF('1. Order'!K592=\"\",\"\",'1. Order'!K592)","v":""},{"$f":"IF('1. Order'!M592=\"\",\"\",'1. Order'!M592)","v":""},null,null,{"$f":"IF('1. Order'!AR592=\"\",\"\",'1. Order'!AR592)","v":""},{"$f":"IF('1. Order'!AE592=\"\",\"\",'1. Order'!AE592)","v":""}]
[{"$f":"IF('1. Order'!B593=\"\",\"\",'1. Order'!B593)","v":""},{"$f":"IF('1. Order'!I593=\"\",\"\",'1. Order'!I593)","v":""},{"$f":"IF('1. Order'!J593=\"\",\"\",'1. Order'!J593)","v":""},{"$f":"IF('1. Order'!K593=\"\",\"\",'1. Order'!K593)","v":""},{"$f":"IF('1. Order'!M593=\"\",\"\",'1. Order'!M593)","v":""},null,null,{"$f":"IF('1. Order'!AR593=\"\",\"\",'1. Order'!AR593)","v":""},{"$f":"IF('1. Order'!AE593=\"\",\"\",'1. Order'!AE593)","v":""}]
[{"$f":"IF('1. Order'!B594=\"\",\"\",'1. Order'!B594)","v":""},{"$f":"IF('1. Order'!I594=\"\",\"\",'1. Order'!I594)","v":""},{"$f":"IF('1. Order'!J594=\"\",\"\",'1. Order'!J594)","v":""},{"$f":"IF('1. Order'!K594=\"\",\"\",'1. Order'!K594)","v":""},{"$f":"IF('1. Order'!M594=\"\",\"\",'1. Order'!M594)","v":""},null,null,{"$f":"IF('1. Order'!AR594=\"\",\"\",'1. Order'!AR594)","v":""},{"$f":"IF('1. Order'!AE594=\"\",\"\",'1. Order'!AE594)","v":""}]
[{"$f":"IF('1. Order'!B595=\"\",\"\",'1. Order'!B595)","v":""},{"$f":"IF('1. Order'!I595=\"\",\"\",'1. Order'!I595)","v":""},{"$f":"IF('1. Order'!J595=\"\",\"\",'1. Order'!J595)","v":""},{"$f":"IF('1. Order'!K595=\"\",\"\",'1. Order'!K595)","v":""},{"$f":"IF('1. Order'!M595=\"\",\"\",'1. Order'!M595)","v":""},null,null,{"$f":"IF('1. Order'!AR595=\"\",\"\",'1. Order'!AR595)","v":""},{"$f":"IF('1. Order'!AE595=\"\",\"\",'1. Order'!AE595)","v":""}]
[{"$f":"IF('1. Order'!B596=\"\",\"\",'1. Order'!B596)","v":""},{"$f":"IF('1. Order'!I596=\"\",\"\",'1. Order'!I596)","v":""},{"$f":"IF('1. Order'!J596=\"\",\"\",'1. Order'!J596)","v":""},{"$f":"IF('1. Order'!K596=\"\",\"\",'1. Order'!K596)","v":""},{"$f":"IF('1. Order'!M596=\"\",\"\",'1. Order'!M596)","v":""},null,null,{"$f":"IF('1. Order'!AR596=\"\",\"\",'1. Order'!AR596)","v":""},{"$f":"IF('1. Order'!AE596=\"\",\"\",'1. Order'!AE596)","v":""}]
[{"$f":"IF('1. Order'!B597=\"\",\"\",'1. Order'!B597)","v":""},{"$f":"IF('1. Order'!I597=\"\",\"\",'1. Order'!I597)","v":""},{"$f":"IF('1. Order'!J597=\"\",\"\",'1. Order'!J597)","v":""},{"$f":"IF('1. Order'!K597=\"\",\"\",'1. Order'!K597)","v":""},{"$f":"IF('1. Order'!M597=\"\",\"\",'1. Order'!M597)","v":""},null,null,{"$f":"IF('1. Order'!AR597=\"\",\"\",'1. Order'!AR597)","v":""},{"$f":"IF('1. Order'!AE597=\"\",\"\",'1. Order'!AE597)","v":""}]
[{"$f":"IF('1. Order'!B598=\"\",\"\",'1. Order'!B598)","v":""},{"$f":"IF('1. Order'!I598=\"\",\"\",'1. Order'!I598)","v":""},{"$f":"IF('1. Order'!J598=\"\",\"\",'1. Order'!J598)","v":""},{"$f":"IF('1. Order'!K598=\"\",\"\",'1. Order'!K598)","v":""},{"$f":"IF('1. Order'!M598=\"\",\"\",'1. Order'!M598)","v":""},null,null,{"$f":"IF('1. Order'!AR598=\"\",\"\",'1. Order'!AR598)","v":""},{"$f":"IF('1. Order'!AE598=\"\",\"\",'1. Order'!AE598)","v":""}]
[{"$f":"IF('1. Order'!B599=\"\",\"\",'1. Order'!B599)","v":""},{"$f":"IF('1. Order'!I599=\"\",\"\",'1. Order'!I599)","v":""},{"$f":"IF('1. Order'!J599=\"\",\"\",'1. Order'!J599)","v":""},{"$f":"IF('1. Order'!K599=\"\",\"\",'1. Order'!K599)","v":""},{"$f":"IF('1. Order'!M599=\"\",\"\",'1. Order'!M599)","v":""},null,null,{"$f":"IF('1. Order'!AR599=\"\",\"\",'1. Order'!AR599)","v":""},{"$f":"IF('1. Order'!AE599=\"\",\"\",'1. Order'!AE599)","v":""}]
[{"$f":"IF('1. Order'!B600=\"\",\"\",'1. Order'!B600)","v":""},{"$f":"IF('1. Order'!I600=\"\",\"\",'1. Order'!I600)","v":""},{"$f":"IF('1. Order'!J600=\"\",\"\",'1. Order'!J600)","v":""},{"$f":"IF('1. Order'!K600=\"\",\"\",'1. Order'!K600)","v":""},{"$f":"IF('1. Order'!M600=\"\",\"\",'1. Order'!M600)","v":""},null,null,{"$f":"IF('1. Order'!AR600=\"\",\"\",'1. Order'!AR600)","v":""},{"$f":"IF('1. Order'!AE600=\"\",\"\",'1. Order'!AE600)","v":""}]
[{"$f":"IF('1. Order'!B601=\"\",\"\",'1. Order'!B601)","v":""},{"$f":"IF('1. Order'!I601=\"\",\"\",'1. Order'!I601)","v":""},{"$f":"IF('1. Order'!J601=\"\",\"\",'1. Order'!J601)","v":""},{"$f":"IF('1. Order'!K601=\"\",\"\",'1. Order'!K601)","v":""},{"$f":"IF('1. Order'!M601=\"\",\"\",'1. Order'!M601)","v":""},null,null,{"$f":"IF('1. Order'!AR601=\"\",\"\",'1. Order'!AR601)","v":""},{"$f":"IF('1. Order'!AE601=\"\",\"\",'1. Order'!AE601)","v":""}]
[{"$f":"IF('1. Order'!B602=\"\",\"\",'1. Order'!B602)","v":""},{"$f":"IF('1. Order'!I602=\"\",\"\",'1. Order'!I602)","v":""},{"$f":"IF('1. Order'!J602=\"\",\"\",'1. Order'!J602)","v":""},{"$f":"IF('1. Order'!K602=\"\",\"\",'1. Order'!K602)","v":""},{"$f":"IF('1. Order'!M602=\"\",\"\",'1. Order'!M602)","v":""},null,null,{"$f":"IF('1. Order'!AR602=\"\",\"\",'1. Order'!AR602)","v":""},{"$f":"IF('1. Order'!AE602=\"\",\"\",'1. Order'!AE602)","v":""}]
[{"$f":"IF('1. Order'!B603=\"\",\"\",'1. Order'!B603)","v":""},{"$f":"IF('1. Order'!I603=\"\",\"\",'1. Order'!I603)","v":""},{"$f":"IF('1. Order'!J603=\"\",\"\",'1. Order'!J603)","v":""},{"$f":"IF('1. Order'!K603=\"\",\"\",'1. Order'!K603)","v":""},{"$f":"IF('1. Order'!M603=\"\",\"\",'1. Order'!M603)","v":""},null,null,{"$f":"IF('1. Order'!AR603=\"\",\"\",'1. Order'!AR603)","v":""},{"$f":"IF('1. Order'!AE603=\"\",\"\",'1. Order'!AE603)","v":""}]
[{"$f":"IF('1. Order'!B604=\"\",\"\",'1. Order'!B604)","v":""},{"$f":"IF('1. Order'!I604=\"\",\"\",'1. Order'!I604)","v":""},{"$f":"IF('1. Order'!J604=\"\",\"\",'1. Order'!J604)","v":""},{"$f":"IF('1. Order'!K604=\"\",\"\",'1. Order'!K604)","v":""},{"$f":"IF('1. Order'!M604=\"\",\"\",'1. Order'!M604)","v":""},null,null,{"$f":"IF('1. Order'!AR604=\"\",\"\",'1. Order'!AR604)","v":""},{"$f":"IF('1. Order'!AE604=\"\",\"\",'1. Order'!AE604)","v":""}]
[{"$f":"IF('1. Order'!B605=\"\",\"\",'1. Order'!B605)","v":""},{"$f":"IF('1. Order'!I605=\"\",\"\",'1. Order'!I605)","v":""},{"$f":"IF('1. Order'!J605=\"\",\"\",'1. Order'!J605)","v":""},{"$f":"IF('1. Order'!K605=\"\",\"\",'1. Order'!K605)","v":""},{"$f":"IF('1. Order'!M605=\"\",\"\",'1. Order'!M605)","v":""},null,null,{"$f":"IF('1. Order'!AR605=\"\",\"\",'1. Order'!AR605)","v":""},{"$f":"IF('1. Order'!AE605=\"\",\"\",'1. Order'!AE605)","v":""}]
[{"$f":"IF('1. Order'!B606=\"\",\"\",'1. Order'!B606)","v":""},{"$f":"IF('1. Order'!I606=\"\",\"\",'1. Order'!I606)","v":""},{"$f":"IF('1. Order'!J606=\"\",\"\",'1. Order'!J606)","v":""},{"$f":"IF('1. Order'!K606=\"\",\"\",'1. Order'!K606)","v":""},{"$f":"IF('1. Order'!M606=\"\",\"\",'1. Order'!M606)","v":""},null,null,{"$f":"IF('1. Order'!AR606=\"\",\"\",'1. Order'!AR606)","v":""},{"$f":"IF('1. Order'!AE606=\"\",\"\",'1. Order'!AE606)","v":""}]
[{"$f":"IF('1. Order'!B607=\"\",\"\",'1. Order'!B607)","v":""},{"$f":"IF('1. Order'!I607=\"\",\"\",'1. Order'!I607)","v":""},{"$f":"IF('1. Order'!J607=\"\",\"\",'1. Order'!J607)","v":""},{"$f":"IF('1. Order'!K607=\"\",\"\",'1. Order'!K607)","v":""},{"$f":"IF('1. Order'!M607=\"\",\"\",'1. Order'!M607)","v":""},null,null,{"$f":"IF('1. Order'!AR607=\"\",\"\",'1. Order'!AR607)","v":""},{"$f":"IF('1. Order'!AE607=\"\",\"\",'1. Order'!AE607)","v":""}]
[{"$f":"IF('1. Order'!B608=\"\",\"\",'1. Order'!B608)","v":""},{"$f":"IF('1. Order'!I608=\"\",\"\",'1. Order'!I608)","v":""},{"$f":"IF('1. Order'!J608=\"\",\"\",'1. Order'!J608)","v":""},{"$f":"IF('1. Order'!K608=\"\",\"\",'1. Order'!K608)","v":""},{"$f":"IF('1. Order'!M608=\"\",\"\",'1. Order'!M608)","v":""},null,null,{"$f":"IF('1. Order'!AR608=\"\",\"\",'1. Order'!AR608)","v":""},{"$f":"IF('1. Order'!AE608=\"\",\"\",'1. Order'!AE608)","v":""}]
[{"$f":"IF('1. Order'!B609=\"\",\"\",'1. Order'!B609)","v":""},{"$f":"IF('1. Order'!I609=\"\",\"\",'1. Order'!I609)","v":""},{"$f":"IF('1. Order'!J609=\"\",\"\",'1. Order'!J609)","v":""},{"$f":"IF('1. Order'!K609=\"\",\"\",'1. Order'!K609)","v":""},{"$f":"IF('1. Order'!M609=\"\",\"\",'1. Order'!M609)","v":""},null,null,{"$f":"IF('1. Order'!AR609=\"\",\"\",'1. Order'!AR609)","v":""},{"$f":"IF('1. Order'!AE609=\"\",\"\",'1. Order'!AE609)","v":""}]
[{"$f":"IF('1. Order'!B610=\"\",\"\",'1. Order'!B610)","v":""},{"$f":"IF('1. Order'!I610=\"\",\"\",'1. Order'!I610)","v":""},{"$f":"IF('1. Order'!J610=\"\",\"\",'1. Order'!J610)","v":""},{"$f":"IF('1. Order'!K610=\"\",\"\",'1. Order'!K610)","v":""},{"$f":"IF('1. Order'!M610=\"\",\"\",'1. Order'!M610)","v":""},null,null,{"$f":"IF('1. Order'!AR610=\"\",\"\",'1. Order'!AR610)","v":""},{"$f":"IF('1. Order'!AE610=\"\",\"\",'1. Order'!AE610)","v":""}]
[{"$f":"IF('1. Order'!B611=\"\",\"\",'1. Order'!B611)","v":""},{"$f":"IF('1. Order'!I611=\"\",\"\",'1. Order'!I611)","v":""},{"$f":"IF('1. Order'!J611=\"\",\"\",'1. Order'!J611)","v":""},{"$f":"IF('1. Order'!K611=\"\",\"\",'1. Order'!K611)","v":""},{"$f":"IF('1. Order'!M611=\"\",\"\",'1. Order'!M611)","v":""},null,null,{"$f":"IF('1. Order'!AR611=\"\",\"\",'1. Order'!AR611)","v":""},{"$f":"IF('1. Order'!AE611=\"\",\"\",'1. Order'!AE611)","v":""}]
[{"$f":"IF('1. Order'!B612=\"\",\"\",'1. Order'!B612)","v":""},{"$f":"IF('1. Order'!I612=\"\",\"\",'1. Order'!I612)","v":""},{"$f":"IF('1. Order'!J612=\"\",\"\",'1. Order'!J612)","v":""},{"$f":"IF('1. Order'!K612=\"\",\"\",'1. Order'!K612)","v":""},{"$f":"IF('1. Order'!M612=\"\",\"\",'1. Order'!M612)","v":""},null,null,{"$f":"IF('1. Order'!AR612=\"\",\"\",'1. Order'!AR612)","v":""},{"$f":"IF('1. Order'!AE612=\"\",\"\",'1. Order'!AE612)","v":""}]
[{"$f":"IF('1. Order'!B613=\"\",\"\",'1. Order'!B613)","v":""},{"$f":"IF('1. Order'!I613=\"\",\"\",'1. Order'!I613)","v":""},{"$f":"IF('1. Order'!J613=\"\",\"\",'1. Order'!J613)","v":""},{"$f":"IF('1. Order'!K613=\"\",\"\",'1. Order'!K613)","v":""},{"$f":"IF('1. Order'!M613=\"\",\"\",'1. Order'!M613)","v":""},null,null,{"$f":"IF('1. Order'!AR613=\"\",\"\",'1. Order'!AR613)","v":""},{"$f":"IF('1. Order'!AE613=\"\",\"\",'1. Order'!AE613)","v":""}]
[{"$f":"IF('1. Order'!B614=\"\",\"\",'1. Order'!B614)","v":""},{"$f":"IF('1. Order'!I614=\"\",\"\",'1. Order'!I614)","v":""},{"$f":"IF('1. Order'!J614=\"\",\"\",'1. Order'!J614)","v":""},{"$f":"IF('1. Order'!K614=\"\",\"\",'1. Order'!K614)","v":""},{"$f":"IF('1. Order'!M614=\"\",\"\",'1. Order'!M614)","v":""},null,null,{"$f":"IF('1. Order'!AR614=\"\",\"\",'1. Order'!AR614)","v":""},{"$f":"IF('1. Order'!AE614=\"\",\"\",'1. Order'!AE614)","v":""}]
[{"$f":"IF('1. Order'!B615=\"\",\"\",'1. Order'!B615)","v":""},{"$f":"IF('1. Order'!I615=\"\",\"\",'1. Order'!I615)","v":""},{"$f":"IF('1. Order'!J615=\"\",\"\",'1. Order'!J615)","v":""},{"$f":"IF('1. Order'!K615=\"\",\"\",'1. Order'!K615)","v":""},{"$f":"IF('1. Order'!M615=\"\",\"\",'1. Order'!M615)","v":""},null,null,{"$f":"IF('1. Order'!AR615=\"\",\"\",'1. Order'!AR615)","v":""},{"$f":"IF('1. Order'!AE615=\"\",\"\",'1. Order'!AE615)","v":""}]
[{"$f":"IF('1. Order'!B616=\"\",\"\",'1. Order'!B616)","v":""},{"$f":"IF('1. Order'!I616=\"\",\"\",'1. Order'!I616)","v":""},{"$f":"IF('1. Order'!J616=\"\",\"\",'1. Order'!J616)","v":""},{"$f":"IF('1. Order'!K616=\"\",\"\",'1. Order'!K616)","v":""},{"$f":"IF('1. Order'!M616=\"\",\"\",'1. Order'!M616)","v":""},null,null,{"$f":"IF('1. Order'!AR616=\"\",\"\",'1. Order'!AR616)","v":""},{"$f":"IF('1. Order'!AE616=\"\",\"\",'1. Order'!AE616)","v":""}]
[{"$f":"IF('1. Order'!B617=\"\",\"\",'1. Order'!B617)","v":""},{"$f":"IF('1. Order'!I617=\"\",\"\",'1. Order'!I617)","v":""},{"$f":"IF('1. Order'!J617=\"\",\"\",'1. Order'!J617)","v":""},{"$f":"IF('1. Order'!K617=\"\",\"\",'1. Order'!K617)","v":""},{"$f":"IF('1. Order'!M617=\"\",\"\",'1. Order'!M617)","v":""},null,null,{"$f":"IF('1. Order'!AR617=\"\",\"\",'1. Order'!AR617)","v":""},{"$f":"IF('1. Order'!AE617=\"\",\"\",'1. Order'!AE617)","v":""}]
[{"$f":"IF('1. Order'!B618=\"\",\"\",'1. Order'!B618)","v":""},{"$f":"IF('1. Order'!I618=\"\",\"\",'1. Order'!I618)","v":""},{"$f":"IF('1. Order'!J618=\"\",\"\",'1. Order'!J618)","v":""},{"$f":"IF('1. Order'!K618=\"\",\"\",'1. Order'!K618)","v":""},{"$f":"IF('1. Order'!M618=\"\",\"\",'1. Order'!M618)","v":""},null,null,{"$f":"IF('1. Order'!AR618=\"\",\"\",'1. Order'!AR618)","v":""},{"$f":"IF('1. Order'!AE618=\"\",\"\",'1. Order'!AE618)","v":""}]
[{"$f":"IF('1. Order'!B619=\"\",\"\",'1. Order'!B619)","v":""},{"$f":"IF('1. Order'!I619=\"\",\"\",'1. Order'!I619)","v":""},{"$f":"IF('1. Order'!J619=\"\",\"\",'1. Order'!J619)","v":""},{"$f":"IF('1. Order'!K619=\"\",\"\",'1. Order'!K619)","v":""},{"$f":"IF('1. Order'!M619=\"\",\"\",'1. Order'!M619)","v":""},null,null,{"$f":"IF('1. Order'!AR619=\"\",\"\",'1. Order'!AR619)","v":""},{"$f":"IF('1. Order'!AE619=\"\",\"\",'1. Order'!AE619)","v":""}]
[{"$f":"IF('1. Order'!B620=\"\",\"\",'1. Order'!B620)","v":""},{"$f":"IF('1. Order'!I620=\"\",\"\",'1. Order'!I620)","v":""},{"$f":"IF('1. Order'!J620=\"\",\"\",'1. Order'!J620)","v":""},{"$f":"IF('1. Order'!K620=\"\",\"\",'1. Order'!K620)","v":""},{"$f":"IF('1. Order'!M620=\"\",\"\",'1. Order'!M620)","v":""},null,null,{"$f":"IF('1. Order'!AR620=\"\",\"\",'1. Order'!AR620)","v":""},{"$f":"IF('1. Order'!AE620=\"\",\"\",'1. Order'!AE620)","v":""}]
[{"$f":"IF('1. Order'!B621=\"\",\"\",'1. Order'!B621)","v":""},{"$f":"IF('1. Order'!I621=\"\",\"\",'1. Order'!I621)","v":""},{"$f":"IF('1. Order'!J621=\"\",\"\",'1. Order'!J621)","v":""},{"$f":"IF('1. Order'!K621=\"\",\"\",'1. Order'!K621)","v":""},{"$f":"IF('1. Order'!M621=\"\",\"\",'1. Order'!M621)","v":""},null,null,{"$f":"IF('1. Order'!AR621=\"\",\"\",'1. Order'!AR621)","v":""},{"$f":"IF('1. Order'!AE621=\"\",\"\",'1. Order'!AE621)","v":""}]
[{"$f":"IF('1. Order'!B622=\"\",\"\",'1. Order'!B622)","v":""},{"$f":"IF('1. Order'!I622=\"\",\"\",'1. Order'!I622)","v":""},{"$f":"IF('1. Order'!J622=\"\",\"\",'1. Order'!J622)","v":""},{"$f":"IF('1. Order'!K622=\"\",\"\",'1. Order'!K622)","v":""},{"$f":"IF('1. Order'!M622=\"\",\"\",'1. Order'!M622)","v":""},null,null,{"$f":"IF('1. Order'!AR622=\"\",\"\",'1. Order'!AR622)","v":""},{"$f":"IF('1. Order'!AE622=\"\",\"\",'1. Order'!AE622)","v":""}]
[{"$f":"IF('1. Order'!B623=\"\",\"\",'1. Order'!B623)","v":""},{"$f":"IF('1. Order'!I623=\"\",\"\",'1. Order'!I623)","v":""},{"$f":"IF('1. Order'!J623=\"\",\"\",'1. Order'!J623)","v":""},{"$f":"IF('1. Order'!K623=\"\",\"\",'1. Order'!K623)","v":""},{"$f":"IF('1. Order'!M623=\"\",\"\",'1. Order'!M623)","v":""},null,null,{"$f":"IF('1. Order'!AR623=\"\",\"\",'1. Order'!AR623)","v":""},{"$f":"IF('1. Order'!AE623=\"\",\"\",'1. Order'!AE623)","v":""}]
[{"$f":"IF('1. Order'!B624=\"\",\"\",'1. Order'!B624)","v":""},{"$f":"IF('1. Order'!I624=\"\",\"\",'1. Order'!I624)","v":""},{"$f":"IF('1. Order'!J624=\"\",\"\",'1. Order'!J624)","v":""},{"$f":"IF('1. Order'!K624=\"\",\"\",'1. Order'!K624)","v":""},{"$f":"IF('1. Order'!M624=\"\",\"\",'1. Order'!M624)","v":""},null,null,{"$f":"IF('1. Order'!AR624=\"\",\"\",'1. Order'!AR624)","v":""},{"$f":"IF('1. Order'!AE624=\"\",\"\",'1. Order'!AE624)","v":""}]
[{"$f":"IF('1. Order'!B625=\"\",\"\",'1. Order'!B625)","v":""},{"$f":"IF('1. Order'!I625=\"\",\"\",'1. Order'!I625)","v":""},{"$f":"IF('1. Order'!J625=\"\",\"\",'1. Order'!J625)","v":""},{"$f":"IF('1. Order'!K625=\"\",\"\",'1. Order'!K625)","v":""},{"$f":"IF('1. Order'!M625=\"\",\"\",'1. Order'!M625)","v":""},null,null,{"$f":"IF('1. Order'!AR625=\"\",\"\",'1. Order'!AR625)","v":""},{"$f":"IF('1. Order'!AE625=\"\",\"\",'1. Order'!AE625)","v":""}]
[{"$f":"IF('1. Order'!B626=\"\",\"\",'1. Order'!B626)","v":""},{"$f":"IF('1. Order'!I626=\"\",\"\",'1. Order'!I626)","v":""},{"$f":"IF('1. Order'!J626=\"\",\"\",'1. Order'!J626)","v":""},{"$f":"IF('1. Order'!K626=\"\",\"\",'1. Order'!K626)","v":""},{"$f":"IF('1. Order'!M626=\"\",\"\",'1. Order'!M626)","v":""},null,null,{"$f":"IF('1. Order'!AR626=\"\",\"\",'1. Order'!AR626)","v":""},{"$f":"IF('1. Order'!AE626=\"\",\"\",'1. Order'!AE626)","v":""}]
[{"$f":"IF('1. Order'!B627=\"\",\"\",'1. Order'!B627)","v":""},{"$f":"IF('1. Order'!I627=\"\",\"\",'1. Order'!I627)","v":""},{"$f":"IF('1. Order'!J627=\"\",\"\",'1. Order'!J627)","v":""},{"$f":"IF('1. Order'!K627=\"\",\"\",'1. Order'!K627)","v":""},{"$f":"IF('1. Order'!M627=\"\",\"\",'1. Order'!M627)","v":""},null,null,{"$f":"IF('1. Order'!AR627=\"\",\"\",'1. Order'!AR627)","v":""},{"$f":"IF('1. Order'!AE627=\"\",\"\",'1. Order'!AE627)","v":""}]
[{"$f":"IF('1. Order'!B628=\"\",\"\",'1. Order'!B628)","v":""},{"$f":"IF('1. Order'!I628=\"\",\"\",'1. Order'!I628)","v":""},{"$f":"IF('1. Order'!J628=\"\",\"\",'1. Order'!J628)","v":""},{"$f":"IF('1. Order'!K628=\"\",\"\",'1. Order'!K628)","v":""},{"$f":"IF('1. Order'!M628=\"\",\"\",'1. Order'!M628)","v":""},null,null,{"$f":"IF('1. Order'!AR628=\"\",\"\",'1. Order'!AR628)","v":""},{"$f":"IF('1. Order'!AE628=\"\",\"\",'1. Order'!AE628)","v":""}]
[{"$f":"IF('1. Order'!B629=\"\",\"\",'1. Order'!B629)","v":""},{"$f":"IF('1. Order'!I629=\"\",\"\",'1. Order'!I629)","v":""},{"$f":"IF('1. Order'!J629=\"\",\"\",'1. Order'!J629)","v":""},{"$f":"IF('1. Order'!K629=\"\",\"\",'1. Order'!K629)","v":""},{"$f":"IF('1. Order'!M629=\"\",\"\",'1. Order'!M629)","v":""},null,null,{"$f":"IF('1. Order'!AR629=\"\",\"\",'1. Order'!AR629)","v":""},{"$f":"IF('1. Order'!AE629=\"\",\"\",'1. Order'!AE629)","v":""}]
[{"$f":"IF('1. Order'!B630=\"\",\"\",'1. Order'!B630)","v":""},{"$f":"IF('1. Order'!I630=\"\",\"\",'1. Order'!I630)","v":""},{"$f":"IF('1. Order'!J630=\"\",\"\",'1. Order'!J630)","v":""},{"$f":"IF('1. Order'!K630=\"\",\"\",'1. Order'!K630)","v":""},{"$f":"IF('1. Order'!M630=\"\",\"\",'1. Order'!M630)","v":""},null,null,{"$f":"IF('1. Order'!AR630=\"\",\"\",'1. Order'!AR630)","v":""},{"$f":"IF('1. Order'!AE630=\"\",\"\",'1. Order'!AE630)","v":""}]
[{"$f":"IF('1. Order'!B631=\"\",\"\",'1. Order'!B631)","v":""},{"$f":"IF('1. Order'!I631=\"\",\"\",'1. Order'!I631)","v":""},{"$f":"IF('1. Order'!J631=\"\",\"\",'1. Order'!J631)","v":""},{"$f":"IF('1. Order'!K631=\"\",\"\",'1. Order'!K631)","v":""},{"$f":"IF('1. Order'!M631=\"\",\"\",'1. Order'!M631)","v":""},null,null,{"$f":"IF('1. Order'!AR631=\"\",\"\",'1. Order'!AR631)","v":""},{"$f":"IF('1. Order'!AE631=\"\",\"\",'1. Order'!AE631)","v":""}]
[{"$f":"IF('1. Order'!B632=\"\",\"\",'1. Order'!B632)","v":""},{"$f":"IF('1. Order'!I632=\"\",\"\",'1. Order'!I632)","v":""},{"$f":"IF('1. Order'!J632=\"\",\"\",'1. Order'!J632)","v":""},{"$f":"IF('1. Order'!K632=\"\",\"\",'1. Order'!K632)","v":""},{"$f":"IF('1. Order'!M632=\"\",\"\",'1. Order'!M632)","v":""},null,null,{"$f":"IF('1. Order'!AR632=\"\",\"\",'1. Order'!AR632)","v":""},{"$f":"IF('1. Order'!AE632=\"\",\"\",'1. Order'!AE632)","v":""}]
[{"$f":"IF('1. Order'!B633=\"\",\"\",'1. Order'!B633)","v":""},{"$f":"IF('1. Order'!I633=\"\",\"\",'1. Order'!I633)","v":""},{"$f":"IF('1. Order'!J633=\"\",\"\",'1. Order'!J633)","v":""},{"$f":"IF('1. Order'!K633=\"\",\"\",'1. Order'!K633)","v":""},{"$f":"IF('1. Order'!M633=\"\",\"\",'1. Order'!M633)","v":""},null,null,{"$f":"IF('1. Order'!AR633=\"\",\"\",'1. Order'!AR633)","v":""},{"$f":"IF('1. Order'!AE633=\"\",\"\",'1. Order'!AE633)","v":""}]
[{"$f":"IF('1. Order'!B634=\"\",\"\",'1. Order'!B634)","v":""},{"$f":"IF('1. Order'!I634=\"\",\"\",'1. Order'!I634)","v":""},{"$f":"IF('1. Order'!J634=\"\",\"\",'1. Order'!J634)","v":""},{"$f":"IF('1. Order'!K634=\"\",\"\",'1. Order'!K634)","v":""},{"$f":"IF('1. Order'!M634=\"\",\"\",'1. Order'!M634)","v":""},null,null,{"$f":"IF('1. Order'!AR634=\"\",\"\",'1. Order'!AR634)","v":""},{"$f":"IF('1. Order'!AE634=\"\",\"\",'1. Order'!AE634)","v":""}]
[{"$f":"IF('1. Order'!B635=\"\",\"\",'1. Order'!B635)","v":""},{"$f":"IF('1. Order'!I635=\"\",\"\",'1. Order'!I635)","v":""},{"$f":"IF('1. Order'!J635=\"\",\"\",'1. Order'!J635)","v":""},{"$f":"IF('1. Order'!K635=\"\",\"\",'1. Order'!K635)","v":""},{"$f":"IF('1. Order'!M635=\"\",\"\",'1. Order'!M635)","v":""},null,null,{"$f":"IF('1. Order'!AR635=\"\",\"\",'1. Order'!AR635)","v":""},{"$f":"IF('1. Order'!AE635=\"\",\"\",'1. Order'!AE635)","v":""}]
[{"$f":"IF('1. Order'!B636=\"\",\"\",'1. Order'!B636)","v":""},{"$f":"IF('1. Order'!I636=\"\",\"\",'1. Order'!I636)","v":""},{"$f":"IF('1. Order'!J636=\"\",\"\",'1. Order'!J636)","v":""},{"$f":"IF('1. Order'!K636=\"\",\"\",'1. Order'!K636)","v":""},{"$f":"IF('1. Order'!M636=\"\",\"\",'1. Order'!M636)","v":""},null,null,{"$f":"IF('1. Order'!AR636=\"\",\"\",'1. Order'!AR636)","v":""},{"$f":"IF('1. Order'!AE636=\"\",\"\",'1. Order'!AE636)","v":""}]
[{"$f":"IF('1. Order'!B637=\"\",\"\",'1. Order'!B637)","v":""},{"$f":"IF('1. Order'!I637=\"\",\"\",'1. Order'!I637)","v":""},{"$f":"IF('1. Order'!J637=\"\",\"\",'1. Order'!J637)","v":""},{"$f":"IF('1. Order'!K637=\"\",\"\",'1. Order'!K637)","v":""},{"$f":"IF('1. Order'!M637=\"\",\"\",'1. Order'!M637)","v":""},null,null,{"$f":"IF('1. Order'!AR637=\"\",\"\",'1. Order'!AR637)","v":""},{"$f":"IF('1. Order'!AE637=\"\",\"\",'1. Order'!AE637)","v":""}]
[{"$f":"IF('1. Order'!B638=\"\",\"\",'1. Order'!B638)","v":""},{"$f":"IF('1. Order'!I638=\"\",\"\",'1. Order'!I638)","v":""},{"$f":"IF('1. Order'!J638=\"\",\"\",'1. Order'!J638)","v":""},{"$f":"IF('1. Order'!K638=\"\",\"\",'1. Order'!K638)","v":""},{"$f":"IF('1. Order'!M638=\"\",\"\",'1. Order'!M638)","v":""},null,null,{"$f":"IF('1. Order'!AR638=\"\",\"\",'1. Order'!AR638)","v":""},{"$f":"IF('1. Order'!AE638=\"\",\"\",'1. Order'!AE638)","v":""}]
[{"$f":"IF('1. Order'!B639=\"\",\"\",'1. Order'!B639)","v":""},{"$f":"IF('1. Order'!I639=\"\",\"\",'1. Order'!I639)","v":""},{"$f":"IF('1. Order'!J639=\"\",\"\",'1. Order'!J639)","v":""},{"$f":"IF('1. Order'!K639=\"\",\"\",'1. Order'!K639)","v":""},{"$f":"IF('1. Order'!M639=\"\",\"\",'1. Order'!M639)","v":""},null,null,{"$f":"IF('1. Order'!AR639=\"\",\"\",'1. Order'!AR639)","v":""},{"$f":"IF('1. Order'!AE639=\"\",\"\",'1. Order'!AE639)","v":""}]
[{"$f":"IF('1. Order'!B640=\"\",\"\",'1. Order'!B640)","v":""},{"$f":"IF('1. Order'!I640=\"\",\"\",'1. Order'!I640)","v":""},{"$f":"IF('1. Order'!J640=\"\",\"\",'1. Order'!J640)","v":""},{"$f":"IF('1. Order'!K640=\"\",\"\",'1. Order'!K640)","v":""},{"$f":"IF('1. Order'!M640=\"\",\"\",'1. Order'!M640)","v":""},null,null,{"$f":"IF('1. Order'!AR640=\"\",\"\",'1. Order'!AR640)","v":""},{"$f":"IF('1. Order'!AE640=\"\",\"\",'1. Order'!AE640)","v":""}]
[{"$f":"IF('1. Order'!B641=\"\",\"\",'1. Order'!B641)","v":""},{"$f":"IF('1. Order'!I641=\"\",\"\",'1. Order'!I641)","v":""},{"$f":"IF('1. Order'!J641=\"\",\"\",'1. Order'!J641)","v":""},{"$f":"IF('1. Order'!K641=\"\",\"\",'1. Order'!K641)","v":""},{"$f":"IF('1. Order'!M641=\"\",\"\",'1. Order'!M641)","v":""},null,null,{"$f":"IF('1. Order'!AR641=\"\",\"\",'1. Order'!AR641)","v":""},{"$f":"IF('1. Order'!AE641=\"\",\"\",'1. Order'!AE641)","v":""}]
[{"$f":"IF('1. Order'!B642=\"\",\"\",'1. Order'!B642)","v":""},{"$f":"IF('1. Order'!I642=\"\",\"\",'1. Order'!I642)","v":""},{"$f":"IF('1. Order'!J642=\"\",\"\",'1. Order'!J642)","v":""},{"$f":"IF('1. Order'!K642=\"\",\"\",'1. Order'!K642)","v":""},{"$f":"IF('1. Order'!M642=\"\",\"\",'1. Order'!M642)","v":""},null,null,{"$f":"IF('1. Order'!AR642=\"\",\"\",'1. Order'!AR642)","v":""},{"$f":"IF('1. Order'!AE642=\"\",\"\",'1. Order'!AE642)","v":""}]
[{"$f":"IF('1. Order'!B643=\"\",\"\",'1. Order'!B643)","v":""},{"$f":"IF('1. Order'!I643=\"\",\"\",'1. Order'!I643)","v":""},{"$f":"IF('1. Order'!J643=\"\",\"\",'1. Order'!J643)","v":""},{"$f":"IF('1. Order'!K643=\"\",\"\",'1. Order'!K643)","v":""},{"$f":"IF('1. Order'!M643=\"\",\"\",'1. Order'!M643)","v":""},null,null,{"$f":"IF('1. Order'!AR643=\"\",\"\",'1. Order'!AR643)","v":""},{"$f":"IF('1. Order'!AE643=\"\",\"\",'1. Order'!AE643)","v":""}]
[{"$f":"IF('1. Order'!B644=\"\",\"\",'1. Order'!B644)","v":""},{"$f":"IF('1. Order'!I644=\"\",\"\",'1. Order'!I644)","v":""},{"$f":"IF('1. Order'!J644=\"\",\"\",'1. Order'!J644)","v":""},{"$f":"IF('1. Order'!K644=\"\",\"\",'1. Order'!K644)","v":""},{"$f":"IF('1. Order'!M644=\"\",\"\",'1. Order'!M644)","v":""},null,null,{"$f":"IF('1. Order'!AR644=\"\",\"\",'1. Order'!AR644)","v":""},{"$f":"IF('1. Order'!AE644=\"\",\"\",'1. Order'!AE644)","v":""}]
[{"$f":"IF('1. Order'!B645=\"\",\"\",'1. Order'!B645)","v":""},{"$f":"IF('1. Order'!I645=\"\",\"\",'1. Order'!I645)","v":""},{"$f":"IF('1. Order'!J645=\"\",\"\",'1. Order'!J645)","v":""},{"$f":"IF('1. Order'!K645=\"\",\"\",'1. Order'!K645)","v":""},{"$f":"IF('1. Order'!M645=\"\",\"\",'1. Order'!M645)","v":""},null,null,{"$f":"IF('1. Order'!AR645=\"\",\"\",'1. Order'!AR645)","v":""},{"$f":"IF('1. Order'!AE645=\"\",\"\",'1. Order'!AE645)","v":""}]
[{"$f":"IF('1. Order'!B646=\"\",\"\",'1. Order'!B646)","v":""},{"$f":"IF('1. Order'!I646=\"\",\"\",'1. Order'!I646)","v":""},{"$f":"IF('1. Order'!J646=\"\",\"\",'1. Order'!J646)","v":""},{"$f":"IF('1. Order'!K646=\"\",\"\",'1. Order'!K646)","v":""},{"$f":"IF('1. Order'!M646=\"\",\"\",'1. Order'!M646)","v":""},null,null,{"$f":"IF('1. Order'!AR646=\"\",\"\",'1. Order'!AR646)","v":""},{"$f":"IF('1. Order'!AE646=\"\",\"\",'1. Order'!AE646)","v":""}]
[{"$f":"IF('1. Order'!B647=\"\",\"\",'1. Order'!B647)","v":""},{"$f":"IF('1. Order'!I647=\"\",\"\",'1. Order'!I647)","v":""},{"$f":"IF('1. Order'!J647=\"\",\"\",'1. Order'!J647)","v":""},{"$f":"IF('1. Order'!K647=\"\",\"\",'1. Order'!K647)","v":""},{"$f":"IF('1. Order'!M647=\"\",\"\",'1. Order'!M647)","v":""},null,null,{"$f":"IF('1. Order'!AR647=\"\",\"\",'1. Order'!AR647)","v":""},{"$f":"IF('1. Order'!AE647=\"\",\"\",'1. Order'!AE647)","v":""}]
[{"$f":"IF('1. Order'!B648=\"\",\"\",'1. Order'!B648)","v":""},{"$f":"IF('1. Order'!I648=\"\",\"\",'1. Order'!I648)","v":""},{"$f":"IF('1. Order'!J648=\"\",\"\",'1. Order'!J648)","v":""},{"$f":"IF('1. Order'!K648=\"\",\"\",'1. Order'!K648)","v":""},{"$f":"IF('1. Order'!M648=\"\",\"\",'1. Order'!M648)","v":""},null,null,{"$f":"IF('1. Order'!AR648=\"\",\"\",'1. Order'!AR648)","v":""},{"$f":"IF('1. Order'!AE648=\"\",\"\",'1. Order'!AE648)","v":""}]
[{"$f":"IF('1. Order'!B649=\"\",\"\",'1. Order'!B649)","v":""},{"$f":"IF('1. Order'!I649=\"\",\"\",'1. Order'!I649)","v":""},{"$f":"IF('1. Order'!J649=\"\",\"\",'1. Order'!J649)","v":""},{"$f":"IF('1. Order'!K649=\"\",\"\",'1. Order'!K649)","v":""},{"$f":"IF('1. Order'!M649=\"\",\"\",'1. Order'!M649)","v":""},null,null,{"$f":"IF('1. Order'!AR649=\"\",\"\",'1. Order'!AR649)","v":""},{"$f":"IF('1. Order'!AE649=\"\",\"\",'1. Order'!AE649)","v":""}]
[{"$f":"IF('1. Order'!B650=\"\",\"\",'1. Order'!B650)","v":""},{"$f":"IF('1. Order'!I650=\"\",\"\",'1. Order'!I650)","v":""},{"$f":"IF('1. Order'!J650=\"\",\"\",'1. Order'!J650)","v":""},{"$f":"IF('1. Order'!K650=\"\",\"\",'1. Order'!K650)","v":""},{"$f":"IF('1. Order'!M650=\"\",\"\",'1. Order'!M650)","v":""},null,null,{"$f":"IF('1. Order'!AR650=\"\",\"\",'1. Order'!AR650)","v":""},{"$f":"IF('1. Order'!AE650=\"\",\"\",'1. Order'!AE650)","v":""}]
[{"$f":"IF('1. Order'!B651=\"\",\"\",'1. Order'!B651)","v":""},{"$f":"IF('1. Order'!I651=\"\",\"\",'1. Order'!I651)","v":""},{"$f":"IF('1. Order'!J651=\"\",\"\",'1. Order'!J651)","v":""},{"$f":"IF('1. Order'!K651=\"\",\"\",'1. Order'!K651)","v":""},{"$f":"IF('1. Order'!M651=\"\",\"\",'1. Order'!M651)","v":""},null,null,{"$f":"IF('1. Order'!AR651=\"\",\"\",'1. Order'!AR651)","v":""},{"$f":"IF('1. Order'!AE651=\"\",\"\",'1. Order'!AE651)","v":""}]
[{"$f":"IF('1. Order'!B652=\"\",\"\",'1. Order'!B652)","v":""},{"$f":"IF('1. Order'!I652=\"\",\"\",'1. Order'!I652)","v":""},{"$f":"IF('1. Order'!J652=\"\",\"\",'1. Order'!J652)","v":""},{"$f":"IF('1. Order'!K652=\"\",\"\",'1. Order'!K652)","v":""},{"$f":"IF('1. Order'!M652=\"\",\"\",'1. Order'!M652)","v":""},null,null,{"$f":"IF('1. Order'!AR652=\"\",\"\",'1. Order'!AR652)","v":""},{"$f":"IF('1. Order'!AE652=\"\",\"\",'1. Order'!AE652)","v":""}]
[{"$f":"IF('1. Order'!B653=\"\",\"\",'1. Order'!B653)","v":""},{"$f":"IF('1. Order'!I653=\"\",\"\",'1. Order'!I653)","v":""},{"$f":"IF('1. Order'!J653=\"\",\"\",'1. Order'!J653)","v":""},{"$f":"IF('1. Order'!K653=\"\",\"\",'1. Order'!K653)","v":""},{"$f":"IF('1. Order'!M653=\"\",\"\",'1. Order'!M653)","v":""},null,null,{"$f":"IF('1. Order'!AR653=\"\",\"\",'1. Order'!AR653)","v":""},{"$f":"IF('1. Order'!AE653=\"\",\"\",'1. Order'!AE653)","v":""}]
[{"$f":"IF('1. Order'!B654=\"\",\"\",'1. Order'!B654)","v":""},{"$f":"IF('1. Order'!I654=\"\",\"\",'1. Order'!I654)","v":""},{"$f":"IF('1. Order'!J654=\"\",\"\",'1. Order'!J654)","v":""},{"$f":"IF('1. Order'!K654=\"\",\"\",'1. Order'!K654)","v":""},{"$f":"IF('1. Order'!M654=\"\",\"\",'1. Order'!M654)","v":""},null,null,{"$f":"IF('1. Order'!AR654=\"\",\"\",'1. Order'!AR654)","v":""},{"$f":"IF('1. Order'!AE654=\"\",\"\",'1. Order'!AE654)","v":""}]
[{"$f":"IF('1. Order'!B655=\"\",\"\",'1. Order'!B655)","v":""},{"$f":"IF('1. Order'!I655=\"\",\"\",'1. Order'!I655)","v":""},{"$f":"IF('1. Order'!J655=\"\",\"\",'1. Order'!J655)","v":""},{"$f":"IF('1. Order'!K655=\"\",\"\",'1. Order'!K655)","v":""},{"$f":"IF('1. Order'!M655=\"\",\"\",'1. Order'!M655)","v":""},null,null,{"$f":"IF('1. Order'!AR655=\"\",\"\",'1. Order'!AR655)","v":""},{"$f":"IF('1. Order'!AE655=\"\",\"\",'1. Order'!AE655)","v":""}]
[{"$f":"IF('1. Order'!B656=\"\",\"\",'1. Order'!B656)","v":""},{"$f":"IF('1. Order'!I656=\"\",\"\",'1. Order'!I656)","v":""},{"$f":"IF('1. Order'!J656=\"\",\"\",'1. Order'!J656)","v":""},{"$f":"IF('1. Order'!K656=\"\",\"\",'1. Order'!K656)","v":""},{"$f":"IF('1. Order'!M656=\"\",\"\",'1. Order'!M656)","v":""},null,null,{"$f":"IF('1. Order'!AR656=\"\",\"\",'1. Order'!AR656)","v":""},{"$f":"IF('1. Order'!AE656=\"\",\"\",'1. Order'!AE656)","v":""}]
[{"$f":"IF('1. Order'!B657=\"\",\"\",'1. Order'!B657)","v":""},{"$f":"IF('1. Order'!I657=\"\",\"\",'1. Order'!I657)","v":""},{"$f":"IF('1. Order'!J657=\"\",\"\",'1. Order'!J657)","v":""},{"$f":"IF('1. Order'!K657=\"\",\"\",'1. Order'!K657)","v":""},{"$f":"IF('1. Order'!M657=\"\",\"\",'1. Order'!M657)","v":""},null,null,{"$f":"IF('1. Order'!AR657=\"\",\"\",'1. Order'!AR657)","v":""},{"$f":"IF('1. Order'!AE657=\"\",\"\",'1. Order'!AE657)","v":""}]
[{"$f":"IF('1. Order'!B658=\"\",\"\",'1. Order'!B658)","v":""},{"$f":"IF('1. Order'!I658=\"\",\"\",'1. Order'!I658)","v":""},{"$f":"IF('1. Order'!J658=\"\",\"\",'1. Order'!J658)","v":""},{"$f":"IF('1. Order'!K658=\"\",\"\",'1. Order'!K658)","v":""},{"$f":"IF('1. Order'!M658=\"\",\"\",'1. Order'!M658)","v":""},null,null,{"$f":"IF('1. Order'!AR658=\"\",\"\",'1. Order'!AR658)","v":""},{"$f":"IF('1. Order'!AE658=\"\",\"\",'1. Order'!AE658)","v":""}]
[{"$f":"IF('1. Order'!B659=\"\",\"\",'1. Order'!B659)","v":""},{"$f":"IF('1. Order'!I659=\"\",\"\",'1. Order'!I659)","v":""},{"$f":"IF('1. Order'!J659=\"\",\"\",'1. Order'!J659)","v":""},{"$f":"IF('1. Order'!K659=\"\",\"\",'1. Order'!K659)","v":""},{"$f":"IF('1. Order'!M659=\"\",\"\",'1. Order'!M659)","v":""},null,null,{"$f":"IF('1. Order'!AR659=\"\",\"\",'1. Order'!AR659)","v":""},{"$f":"IF('1. Order'!AE659=\"\",\"\",'1. Order'!AE659)","v":""}]
[{"$f":"IF('1. Order'!B660=\"\",\"\",'1. Order'!B660)","v":""},{"$f":"IF('1. Order'!I660=\"\",\"\",'1. Order'!I660)","v":""},{"$f":"IF('1. Order'!J660=\"\",\"\",'1. Order'!J660)","v":""},{"$f":"IF('1. Order'!K660=\"\",\"\",'1. Order'!K660)","v":""},{"$f":"IF('1. Order'!M660=\"\",\"\",'1. Order'!M660)","v":""},null,null,{"$f":"IF('1. Order'!AR660=\"\",\"\",'1. Order'!AR660)","v":""},{"$f":"IF('1. Order'!AE660=\"\",\"\",'1. Order'!AE660)","v":""}]
[{"$f":"IF('1. Order'!B661=\"\",\"\",'1. Order'!B661)","v":""},{"$f":"IF('1. Order'!I661=\"\",\"\",'1. Order'!I661)","v":""},{"$f":"IF('1. Order'!J661=\"\",\"\",'1. Order'!J661)","v":""},{"$f":"IF('1. Order'!K661=\"\",\"\",'1. Order'!K661)","v":""},{"$f":"IF('1. Order'!M661=\"\",\"\",'1. Order'!M661)","v":""},null,null,{"$f":"IF('1. Order'!AR661=\"\",\"\",'1. Order'!AR661)","v":""},{"$f":"IF('1. Order'!AE661=\"\",\"\",'1. Order'!AE661)","v":""}]
[{"$f":"IF('1. Order'!B662=\"\",\"\",'1. Order'!B662)","v":""},{"$f":"IF('1. Order'!I662=\"\",\"\",'1. Order'!I662)","v":""},{"$f":"IF('1. Order'!J662=\"\",\"\",'1. Order'!J662)","v":""},{"$f":"IF('1. Order'!K662=\"\",\"\",'1. Order'!K662)","v":""},{"$f":"IF('1. Order'!M662=\"\",\"\",'1. Order'!M662)","v":""},null,null,{"$f":"IF('1. Order'!AR662=\"\",\"\",'1. Order'!AR662)","v":""},{"$f":"IF('1. Order'!AE662=\"\",\"\",'1. Order'!AE662)","v":""}]
[{"$f":"IF('1. Order'!B663=\"\",\"\",'1. Order'!B663)","v":""},{"$f":"IF('1. Order'!I663=\"\",\"\",'1. Order'!I663)","v":""},{"$f":"IF('1. Order'!J663=\"\",\"\",'1. Order'!J663)","v":""},{"$f":"IF('1. Order'!K663=\"\",\"\",'1. Order'!K663)","v":""},{"$f":"IF('1. Order'!M663=\"\",\"\",'1. Order'!M663)","v":""},null,null,{"$f":"IF('1. Order'!AR663=\"\",\"\",'1. Order'!AR663)","v":""},{"$f":"IF('1. Order'!AE663=\"\",\"\",'1. Order'!AE663)","v":""}]
[{"$f":"IF('1. Order'!B664=\"\",\"\",'1. Order'!B664)","v":""},{"$f":"IF('1. Order'!I664=\"\",\"\",'1. Order'!I664)","v":""},{"$f":"IF('1. Order'!J664=\"\",\"\",'1. Order'!J664)","v":""},{"$f":"IF('1. Order'!K664=\"\",\"\",'1. Order'!K664)","v":""},{"$f":"IF('1. Order'!M664=\"\",\"\",'1. Order'!M664)","v":""},null,null,{"$f":"IF('1. Order'!AR664=\"\",\"\",'1. Order'!AR664)","v":""},{"$f":"IF('1. Order'!AE664=\"\",\"\",'1. Order'!AE664)","v":""}]
[{"$f":"IF('1. Order'!B665=\"\",\"\",'1. Order'!B665)","v":""},{"$f":"IF('1. Order'!I665=\"\",\"\",'1. Order'!I665)","v":""},{"$f":"IF('1. Order'!J665=\"\",\"\",'1. Order'!J665)","v":""},{"$f":"IF('1. Order'!K665=\"\",\"\",'1. Order'!K665)","v":""},{"$f":"IF('1. Order'!M665=\"\",\"\",'1. Order'!M665)","v":""},null,null,{"$f":"IF('1. Order'!AR665=\"\",\"\",'1. Order'!AR665)","v":""},{"$f":"IF('1. Order'!AE665=\"\",\"\",'1. Order'!AE665)","v":""}]
[{"$f":"IF('1. Order'!B666=\"\",\"\",'1. Order'!B666)","v":""},{"$f":"IF('1. Order'!I666=\"\",\"\",'1. Order'!I666)","v":""},{"$f":"IF('1. Order'!J666=\"\",\"\",'1. Order'!J666)","v":""},{"$f":"IF('1. Order'!K666=\"\",\"\",'1. Order'!K666)","v":""},{"$f":"IF('1. Order'!M666=\"\",\"\",'1. Order'!M666)","v":""},null,null,{"$f":"IF('1. Order'!AR666=\"\",\"\",'1. Order'!AR666)","v":""},{"$f":"IF('1. Order'!AE666=\"\",\"\",'1. Order'!AE666)","v":""}]
[{"$f":"IF('1. Order'!B667=\"\",\"\",'1. Order'!B667)","v":""},{"$f":"IF('1. Order'!I667=\"\",\"\",'1. Order'!I667)","v":""},{"$f":"IF('1. Order'!J667=\"\",\"\",'1. Order'!J667)","v":""},{"$f":"IF('1. Order'!K667=\"\",\"\",'1. Order'!K667)","v":""},{"$f":"IF('1. Order'!M667=\"\",\"\",'1. Order'!M667)","v":""},null,null,{"$f":"IF('1. Order'!AR667=\"\",\"\",'1. Order'!AR667)","v":""},{"$f":"IF('1. Order'!AE667=\"\",\"\",'1. Order'!AE667)","v":""}]
[{"$f":"IF('1. Order'!B668=\"\",\"\",'1. Order'!B668)","v":""},{"$f":"IF('1. Order'!I668=\"\",\"\",'1. Order'!I668)","v":""},{"$f":"IF('1. Order'!J668=\"\",\"\",'1. Order'!J668)","v":""},{"$f":"IF('1. Order'!K668=\"\",\"\",'1. Order'!K668)","v":""},{"$f":"IF('1. Order'!M668=\"\",\"\",'1. Order'!M668)","v":""},null,null,{"$f":"IF('1. Order'!AR668=\"\",\"\",'1. Order'!AR668)","v":""},{"$f":"IF('1. Order'!AE668=\"\",\"\",'1. Order'!AE668)","v":""}]
[{"$f":"IF('1. Order'!B669=\"\",\"\",'1. Order'!B669)","v":""},{"$f":"IF('1. Order'!I669=\"\",\"\",'1. Order'!I669)","v":""},{"$f":"IF('1. Order'!J669=\"\",\"\",'1. Order'!J669)","v":""},{"$f":"IF('1. Order'!K669=\"\",\"\",'1. Order'!K669)","v":""},{"$f":"IF('1. Order'!M669=\"\",\"\",'1. Order'!M669)","v":""},null,null,{"$f":"IF('1. Order'!AR669=\"\",\"\",'1. Order'!AR669)","v":""},{"$f":"IF('1. Order'!AE669=\"\",\"\",'1. Order'!AE669)","v":""}]
[{"$f":"IF('1. Order'!B670=\"\",\"\",'1. Order'!B670)","v":""},{"$f":"IF('1. Order'!I670=\"\",\"\",'1. Order'!I670)","v":""},{"$f":"IF('1. Order'!J670=\"\",\"\",'1. Order'!J670)","v":""},{"$f":"IF('1. Order'!K670=\"\",\"\",'1. Order'!K670)","v":""},{"$f":"IF('1. Order'!M670=\"\",\"\",'1. Order'!M670)","v":""},null,null,{"$f":"IF('1. Order'!AR670=\"\",\"\",'1. Order'!AR670)","v":""},{"$f":"IF('1. Order'!AE670=\"\",\"\",'1. Order'!AE670)","v":""}]
[{"$f":"IF('1. Order'!B671=\"\",\"\",'1. Order'!B671)","v":""},{"$f":"IF('1. Order'!I671=\"\",\"\",'1. Order'!I671)","v":""},{"$f":"IF('1. Order'!J671=\"\",\"\",'1. Order'!J671)","v":""},{"$f":"IF('1. Order'!K671=\"\",\"\",'1. Order'!K671)","v":""},{"$f":"IF('1. Order'!M671=\"\",\"\",'1. Order'!M671)","v":""},null,null,{"$f":"IF('1. Order'!AR671=\"\",\"\",'1. Order'!AR671)","v":""},{"$f":"IF('1. Order'!AE671=\"\",\"\",'1. Order'!AE671)","v":""}]
[{"$f":"IF('1. Order'!B672=\"\",\"\",'1. Order'!B672)","v":""},{"$f":"IF('1. Order'!I672=\"\",\"\",'1. Order'!I672)","v":""},{"$f":"IF('1. Order'!J672=\"\",\"\",'1. Order'!J672)","v":""},{"$f":"IF('1. Order'!K672=\"\",\"\",'1. Order'!K672)","v":""},{"$f":"IF('1. Order'!M672=\"\",\"\",'1. Order'!M672)","v":""},null,null,{"$f":"IF('1. Order'!AR672=\"\",\"\",'1. Order'!AR672)","v":""},{"$f":"IF('1. Order'!AE672=\"\",\"\",'1. Order'!AE672)","v":""}]
[{"$f":"IF('1. Order'!B673=\"\",\"\",'1. Order'!B673)","v":""},{"$f":"IF('1. Order'!I673=\"\",\"\",'1. Order'!I673)","v":""},{"$f":"IF('1. Order'!J673=\"\",\"\",'1. Order'!J673)","v":""},{"$f":"IF('1. Order'!K673=\"\",\"\",'1. Order'!K673)","v":""},{"$f":"IF('1. Order'!M673=\"\",\"\",'1. Order'!M673)","v":""},null,null,{"$f":"IF('1. Order'!AR673=\"\",\"\",'1. Order'!AR673)","v":""},{"$f":"IF('1. Order'!AE673=\"\",\"\",'1. Order'!AE673)","v":""}]
[{"$f":"IF('1. Order'!B674=\"\",\"\",'1. Order'!B674)","v":""},{"$f":"IF('1. Order'!I674=\"\",\"\",'1. Order'!I674)","v":""},{"$f":"IF('1. Order'!J674=\"\",\"\",'1. Order'!J674)","v":""},{"$f":"IF('1. Order'!K674=\"\",\"\",'1. Order'!K674)","v":""},{"$f":"IF('1. Order'!M674=\"\",\"\",'1. Order'!M674)","v":""},null,null,{"$f":"IF('1. Order'!AR674=\"\",\"\",'1. Order'!AR674)","v":""},{"$f":"IF('1. Order'!AE674=\"\",\"\",'1. Order'!AE674)","v":""}]
[{"$f":"IF('1. Order'!B675=\"\",\"\",'1. Order'!B675)","v":""},{"$f":"IF('1. Order'!I675=\"\",\"\",'1. Order'!I675)","v":""},{"$f":"IF('1. Order'!J675=\"\",\"\",'1. Order'!J675)","v":""},{"$f":"IF('1. Order'!K675=\"\",\"\",'1. Order'!K675)","v":""},{"$f":"IF('1. Order'!M675=\"\",\"\",'1. Order'!M675)","v":""},null,null,{"$f":"IF('1. Order'!AR675=\"\",\"\",'1. Order'!AR675)","v":""},{"$f":"IF('1. Order'!AE675=\"\",\"\",'1. Order'!AE675)","v":""}]
[{"$f":"IF('1. Order'!B676=\"\",\"\",'1. Order'!B676)","v":""},{"$f":"IF('1. Order'!I676=\"\",\"\",'1. Order'!I676)","v":""},{"$f":"IF('1. Order'!J676=\"\",\"\",'1. Order'!J676)","v":""},{"$f":"IF('1. Order'!K676=\"\",\"\",'1. Order'!K676)","v":""},{"$f":"IF('1. Order'!M676=\"\",\"\",'1. Order'!M676)","v":""},null,null,{"$f":"IF('1. Order'!AR676=\"\",\"\",'1. Order'!AR676)","v":""},{"$f":"IF('1. Order'!AE676=\"\",\"\",'1. Order'!AE676)","v":""}]
[{"$f":"IF('1. Order'!B677=\"\",\"\",'1. Order'!B677)","v":""},{"$f":"IF('1. Order'!I677=\"\",\"\",'1. Order'!I677)","v":""},{"$f":"IF('1. Order'!J677=\"\",\"\",'1. Order'!J677)","v":""},{"$f":"IF('1. Order'!K677=\"\",\"\",'1. Order'!K677)","v":""},{"$f":"IF('1. Order'!M677=\"\",\"\",'1. Order'!M677)","v":""},null,null,{"$f":"IF('1. Order'!AR677=\"\",\"\",'1. Order'!AR677)","v":""},{"$f":"IF('1. Order'!AE677=\"\",\"\",'1. Order'!AE677)","v":""}]
[{"$f":"IF('1. Order'!B678=\"\",\"\",'1. Order'!B678)","v":""},{"$f":"IF('1. Order'!I678=\"\",\"\",'1. Order'!I678)","v":""},{"$f":"IF('1. Order'!J678=\"\",\"\",'1. Order'!J678)","v":""},{"$f":"IF('1. Order'!K678=\"\",\"\",'1. Order'!K678)","v":""},{"$f":"IF('1. Order'!M678=\"\",\"\",'1. Order'!M678)","v":""},null,null,{"$f":"IF('1. Order'!AR678=\"\",\"\",'1. Order'!AR678)","v":""},{"$f":"IF('1. Order'!AE678=\"\",\"\",'1. Order'!AE678)","v":""}]
[{"$f":"IF('1. Order'!B679=\"\",\"\",'1. Order'!B679)","v":""},{"$f":"IF('1. Order'!I679=\"\",\"\",'1. Order'!I679)","v":""},{"$f":"IF('1. Order'!J679=\"\",\"\",'1. Order'!J679)","v":""},{"$f":"IF('1. Order'!K679=\"\",\"\",'1. Order'!K679)","v":""},{"$f":"IF('1. Order'!M679=\"\",\"\",'1. Order'!M679)","v":""},null,null,{"$f":"IF('1. Order'!AR679=\"\",\"\",'1. Order'!AR679)","v":""},{"$f":"IF('1. Order'!AE679=\"\",\"\",'1. Order'!AE679)","v":""}]
[{"$f":"IF('1. Order'!B680=\"\",\"\",'1. Order'!B680)","v":""},{"$f":"IF('1. Order'!I680=\"\",\"\",'1. Order'!I680)","v":""},{"$f":"IF('1. Order'!J680=\"\",\"\",'1. Order'!J680)","v":""},{"$f":"IF('1. Order'!K680=\"\",\"\",'1. Order'!K680)","v":""},{"$f":"IF('1. Order'!M680=\"\",\"\",'1. Order'!M680)","v":""},null,null,{"$f":"IF('1. Order'!AR680=\"\",\"\",'1. Order'!AR680)","v":""},{"$f":"IF('1. Order'!AE680=\"\",\"\",'1. Order'!AE680)","v":""}]
[{"$f":"IF('1. Order'!B681=\"\",\"\",'1. Order'!B681)","v":""},{"$f":"IF('1. Order'!I681=\"\",\"\",'1. Order'!I681)","v":""},{"$f":"IF('1. Order'!J681=\"\",\"\",'1. Order'!J681)","v":""},{"$f":"IF('1. Order'!K681=\"\",\"\",'1. Order'!K681)","v":""},{"$f":"IF('1. Order'!M681=\"\",\"\",'1. Order'!M681)","v":""},null,null,{"$f":"IF('1. Order'!AR681=\"\",\"\",'1. Order'!AR681)","v":""},{"$f":"IF('1. Order'!AE681=\"\",\"\",'1. Order'!AE681)","v":""}]
[{"$f":"IF('1. Order'!B682=\"\",\"\",'1. Order'!B682)","v":""},{"$f":"IF('1. Order'!I682=\"\",\"\",'1. Order'!I682)","v":""},{"$f":"IF('1. Order'!J682=\"\",\"\",'1. Order'!J682)","v":""},{"$f":"IF('1. Order'!K682=\"\",\"\",'1. Order'!K682)","v":""},{"$f":"IF('1. Order'!M682=\"\",\"\",'1. Order'!M682)","v":""},null,null,{"$f":"IF('1. Order'!AR682=\"\",\"\",'1. Order'!AR682)","v":""},{"$f":"IF('1. Order'!AE682=\"\",\"\",'1. Order'!AE682)","v":""}]
[{"$f":"IF('1. Order'!B683=\"\",\"\",'1. Order'!B683)","v":""},{"$f":"IF('1. Order'!I683=\"\",\"\",'1. Order'!I683)","v":""},{"$f":"IF('1. Order'!J683=\"\",\"\",'1. Order'!J683)","v":""},{"$f":"IF('1. Order'!K683=\"\",\"\",'1. Order'!K683)","v":""},{"$f":"IF('1. Order'!M683=\"\",\"\",'1. Order'!M683)","v":""},null,null,{"$f":"IF('1. Order'!AR683=\"\",\"\",'1. Order'!AR683)","v":""},{"$f":"IF('1. Order'!AE683=\"\",\"\",'1. Order'!AE683)","v":""}]
[{"$f":"IF('1. Order'!B684=\"\",\"\",'1. Order'!B684)","v":""},{"$f":"IF('1. Order'!I684=\"\",\"\",'1. Order'!I684)","v":""},{"$f":"IF('1. Order'!J684=\"\",\"\",'1. Order'!J684)","v":""},{"$f":"IF('1. Order'!K684=\"\",\"\",'1. Order'!K684)","v":""},{"$f":"IF('1. Order'!M684=\"\",\"\",'1. Order'!M684)","v":""},null,null,{"$f":"IF('1. Order'!AR684=\"\",\"\",'1. Order'!AR684)","v":""},{"$f":"IF('1. Order'!AE684=\"\",\"\",'1. Order'!AE684)","v":""}]
[{"$f":"IF('1. Order'!B685=\"\",\"\",'1. Order'!B685)","v":""},{"$f":"IF('1. Order'!I685=\"\",\"\",'1. Order'!I685)","v":""},{"$f":"IF('1. Order'!J685=\"\",\"\",'1. Order'!J685)","v":""},{"$f":"IF('1. Order'!K685=\"\",\"\",'1. Order'!K685)","v":""},{"$f":"IF('1. Order'!M685=\"\",\"\",'1. Order'!M685)","v":""},null,null,{"$f":"IF('1. Order'!AR685=\"\",\"\",'1. Order'!AR685)","v":""},{"$f":"IF('1. Order'!AE685=\"\",\"\",'1. Order'!AE685)","v":""}]
[{"$f":"IF('1. Order'!B686=\"\",\"\",'1. Order'!B686)","v":""},{"$f":"IF('1. Order'!I686=\"\",\"\",'1. Order'!I686)","v":""},{"$f":"IF('1. Order'!J686=\"\",\"\",'1. Order'!J686)","v":""},{"$f":"IF('1. Order'!K686=\"\",\"\",'1. Order'!K686)","v":""},{"$f":"IF('1. Order'!M686=\"\",\"\",'1. Order'!M686)","v":""},null,null,{"$f":"IF('1. Order'!AR686=\"\",\"\",'1. Order'!AR686)","v":""},{"$f":"IF('1. Order'!AE686=\"\",\"\",'1. Order'!AE686)","v":""}]
[{"$f":"IF('1. Order'!B687=\"\",\"\",'1. Order'!B687)","v":""},{"$f":"IF('1. Order'!I687=\"\",\"\",'1. Order'!I687)","v":""},{"$f":"IF('1. Order'!J687=\"\",\"\",'1. Order'!J687)","v":""},{"$f":"IF('1. Order'!K687=\"\",\"\",'1. Order'!K687)","v":""},{"$f":"IF('1. Order'!M687=\"\",\"\",'1. Order'!M687)","v":""},null,null,{"$f":"IF('1. Order'!AR687=\"\",\"\",'1. Order'!AR687)","v":""},{"$f":"IF('1. Order'!AE687=\"\",\"\",'1. Order'!AE687)","v":""}]
[{"$f":"IF('1. Order'!B688=\"\",\"\",'1. Order'!B688)","v":""},{"$f":"IF('1. Order'!I688=\"\",\"\",'1. Order'!I688)","v":""},{"$f":"IF('1. Order'!J688=\"\",\"\",'1. Order'!J688)","v":""},{"$f":"IF('1. Order'!K688=\"\",\"\",'1. Order'!K688)","v":""},{"$f":"IF('1. Order'!M688=\"\",\"\",'1. Order'!M688)","v":""},null,null,{"$f":"IF('1. Order'!AR688=\"\",\"\",'1. Order'!AR688)","v":""},{"$f":"IF('1. Order'!AE688=\"\",\"\",'1. Order'!AE688)","v":""}]
[{"$f":"IF('1. Order'!B689=\"\",\"\",'1. Order'!B689)","v":""},{"$f":"IF('1. Order'!I689=\"\",\"\",'1. Order'!I689)","v":""},{"$f":"IF('1. Order'!J689=\"\",\"\",'1. Order'!J689)","v":""},{"$f":"IF('1. Order'!K689=\"\",\"\",'1. Order'!K689)","v":""},{"$f":"IF('1. Order'!M689=\"\",\"\",'1. Order'!M689)","v":""},null,null,{"$f":"IF('1. Order'!AR689=\"\",\"\",'1. Order'!AR689)","v":""},{"$f":"IF('1. Order'!AE689=\"\",\"\",'1. Order'!AE689)","v":""}]
[{"$f":"IF('1. Order'!B690=\"\",\"\",'1. Order'!B690)","v":""},{"$f":"IF('1. Order'!I690=\"\",\"\",'1. Order'!I690)","v":""},{"$f":"IF('1. Order'!J690=\"\",\"\",'1. Order'!J690)","v":""},{"$f":"IF('1. Order'!K690=\"\",\"\",'1. Order'!K690)","v":""},{"$f":"IF('1. Order'!M690=\"\",\"\",'1. Order'!M690)","v":""},null,null,{"$f":"IF('1. Order'!AR690=\"\",\"\",'1. Order'!AR690)","v":""},{"$f":"IF('1. Order'!AE690=\"\",\"\",'1. Order'!AE690)","v":""}]
[{"$f":"IF('1. Order'!B691=\"\",\"\",'1. Order'!B691)","v":""},{"$f":"IF('1. Order'!I691=\"\",\"\",'1. Order'!I691)","v":""},{"$f":"IF('1. Order'!J691=\"\",\"\",'1. Order'!J691)","v":""},{"$f":"IF('1. Order'!K691=\"\",\"\",'1. Order'!K691)","v":""},{"$f":"IF('1. Order'!M691=\"\",\"\",'1. Order'!M691)","v":""},null,null,{"$f":"IF('1. Order'!AR691=\"\",\"\",'1. Order'!AR691)","v":""},{"$f":"IF('1. Order'!AE691=\"\",\"\",'1. Order'!AE691)","v":""}]
[{"$f":"IF('1. Order'!B692=\"\",\"\",'1. Order'!B692)","v":""},{"$f":"IF('1. Order'!I692=\"\",\"\",'1. Order'!I692)","v":""},{"$f":"IF('1. Order'!J692=\"\",\"\",'1. Order'!J692)","v":""},{"$f":"IF('1. Order'!K692=\"\",\"\",'1. Order'!K692)","v":""},{"$f":"IF('1. Order'!M692=\"\",\"\",'1. Order'!M692)","v":""},null,null,{"$f":"IF('1. Order'!AR692=\"\",\"\",'1. Order'!AR692)","v":""},{"$f":"IF('1. Order'!AE692=\"\",\"\",'1. Order'!AE692)","v":""}]
[{"$f":"IF('1. Order'!B693=\"\",\"\",'1. Order'!B693)","v":""},{"$f":"IF('1. Order'!I693=\"\",\"\",'1. Order'!I693)","v":""},{"$f":"IF('1. Order'!J693=\"\",\"\",'1. Order'!J693)","v":""},{"$f":"IF('1. Order'!K693=\"\",\"\",'1. Order'!K693)","v":""},{"$f":"IF('1. Order'!M693=\"\",\"\",'1. Order'!M693)","v":""},null,null,{"$f":"IF('1. Order'!AR693=\"\",\"\",'1. Order'!AR693)","v":""},{"$f":"IF('1. Order'!AE693=\"\",\"\",'1. Order'!AE693)","v":""}]
[{"$f":"IF('1. Order'!B694=\"\",\"\",'1. Order'!B694)","v":""},{"$f":"IF('1. Order'!I694=\"\",\"\",'1. Order'!I694)","v":""},{"$f":"IF('1. Order'!J694=\"\",\"\",'1. Order'!J694)","v":""},{"$f":"IF('1. Order'!K694=\"\",\"\",'1. Order'!K694)","v":""},{"$f":"IF('1. Order'!M694=\"\",\"\",'1. Order'!M694)","v":""},null,null,{"$f":"IF('1. Order'!AR694=\"\",\"\",'1. Order'!AR694)","v":""},{"$f":"IF('1. Order'!AE694=\"\",\"\",'1. Order'!AE694)","v":""}]
[{"$f":"IF('1. Order'!B695=\"\",\"\",'1. Order'!B695)","v":""},{"$f":"IF('1. Order'!I695=\"\",\"\",'1. Order'!I695)","v":""},{"$f":"IF('1. Order'!J695=\"\",\"\",'1. Order'!J695)","v":""},{"$f":"IF('1. Order'!K695=\"\",\"\",'1. Order'!K695)","v":""},{"$f":"IF('1. Order'!M695=\"\",\"\",'1. Order'!M695)","v":""},null,null,{"$f":"IF('1. Order'!AR695=\"\",\"\",'1. Order'!AR695)","v":""},{"$f":"IF('1. Order'!AE695=\"\",\"\",'1. Order'!AE695)","v":""}]
[{"$f":"IF('1. Order'!B696=\"\",\"\",'1. Order'!B696)","v":""},{"$f":"IF('1. Order'!I696=\"\",\"\",'1. Order'!I696)","v":""},{"$f":"IF('1. Order'!J696=\"\",\"\",'1. Order'!J696)","v":""},{"$f":"IF('1. Order'!K696=\"\",\"\",'1. Order'!K696)","v":""},{"$f":"IF('1. Order'!M696=\"\",\"\",'1. Order'!M696)","v":""},null,null,{"$f":"IF('1. Order'!AR696=\"\",\"\",'1. Order'!AR696)","v":""},{"$f":"IF('1. Order'!AE696=\"\",\"\",'1. Order'!AE696)","v":""}]
[{"$f":"IF('1. Order'!B697=\"\",\"\",'1. Order'!B697)","v":""},{"$f":"IF('1. Order'!I697=\"\",\"\",'1. Order'!I697)","v":""},{"$f":"IF('1. Order'!J697=\"\",\"\",'1. Order'!J697)","v":""},{"$f":"IF('1. Order'!K697=\"\",\"\",'1. Order'!K697)","v":""},{"$f":"IF('1. Order'!M697=\"\",\"\",'1. Order'!M697)","v":""},null,null,{"$f":"IF('1. Order'!AR697=\"\",\"\",'1. Order'!AR697)","v":""},{"$f":"IF('1. Order'!AE697=\"\",\"\",'1. Order'!AE697)","v":""}]
[{"$f":"IF('1. Order'!B698=\"\",\"\",'1. Order'!B698)","v":""},{"$f":"IF('1. Order'!I698=\"\",\"\",'1. Order'!I698)","v":""},{"$f":"IF('1. Order'!J698=\"\",\"\",'1. Order'!J698)","v":""},{"$f":"IF('1. Order'!K698=\"\",\"\",'1. Order'!K698)","v":""},{"$f":"IF('1. Order'!M698=\"\",\"\",'1. Order'!M698)","v":""},null,null,{"$f":"IF('1. Order'!AR698=\"\",\"\",'1. Order'!AR698)","v":""},{"$f":"IF('1. Order'!AE698=\"\",\"\",'1. Order'!AE698)","v":""}]
[{"$f":"IF('1. Order'!B699=\"\",\"\",'1. Order'!B699)","v":""},{"$f":"IF('1. Order'!I699=\"\",\"\",'1. Order'!I699)","v":""},{"$f":"IF('1. Order'!J699=\"\",\"\",'1. Order'!J699)","v":""},{"$f":"IF('1. Order'!K699=\"\",\"\",'1. Order'!K699)","v":""},{"$f":"IF('1. Order'!M699=\"\",\"\",'1. Order'!M699)","v":""},null,null,{"$f":"IF('1. Order'!AR699=\"\",\"\",'1. Order'!AR699)","v":""},{"$f":"IF('1. Order'!AE699=\"\",\"\",'1. Order'!AE699)","v":""}]
[{"$f":"IF('1. Order'!B700=\"\",\"\",'1. Order'!B700)","v":""},{"$f":"IF('1. Order'!I700=\"\",\"\",'1. Order'!I700)","v":""},{"$f":"IF('1. Order'!J700=\"\",\"\",'1. Order'!J700)","v":""},{"$f":"IF('1. Order'!K700=\"\",\"\",'1. Order'!K700)","v":""},{"$f":"IF('1. Order'!M700=\"\",\"\",'1. Order'!M700)","v":""},null,null,{"$f":"IF('1. Order'!AR700=\"\",\"\",'1. Order'!AR700)","v":""},{"$f":"IF('1. Order'!AE700=\"\",\"\",'1. Order'!AE700)","v":""}]
[{"$f":"IF('1. Order'!B701=\"\",\"\",'1. Order'!B701)","v":""},{"$f":"IF('1. Order'!I701=\"\",\"\",'1. Order'!I701)","v":""},{"$f":"IF('1. Order'!J701=\"\",\"\",'1. Order'!J701)","v":""},{"$f":"IF('1. Order'!K701=\"\",\"\",'1. Order'!K701)","v":""},{"$f":"IF('1. Order'!M701=\"\",\"\",'1. Order'!M701)","v":""},null,null,{"$f":"IF('1. Order'!AR701=\"\",\"\",'1. Order'!AR701)","v":""},{"$f":"IF('1. Order'!AE701=\"\",\"\",'1. Order'!AE701)","v":""}]
[{"$f":"IF('1. Order'!B702=\"\",\"\",'1. Order'!B702)","v":""},{"$f":"IF('1. Order'!I702=\"\",\"\",'1. Order'!I702)","v":""},{"$f":"IF('1. Order'!J702=\"\",\"\",'1. Order'!J702)","v":""},{"$f":"IF('1. Order'!K702=\"\",\"\",'1. Order'!K702)","v":""},{"$f":"IF('1. Order'!M702=\"\",\"\",'1. Order'!M702)","v":""},null,null,{"$f":"IF('1. Order'!AR702=\"\",\"\",'1. Order'!AR702)","v":""},{"$f":"IF('1. Order'!AE702=\"\",\"\",'1. Order'!AE702)","v":""}]
[{"$f":"IF('1. Order'!B703=\"\",\"\",'1. Order'!B703)","v":""},{"$f":"IF('1. Order'!I703=\"\",\"\",'1. Order'!I703)","v":""},{"$f":"IF('1. Order'!J703=\"\",\"\",'1. Order'!J703)","v":""},{"$f":"IF('1. Order'!K703=\"\",\"\",'1. Order'!K703)","v":""},{"$f":"IF('1. Order'!M703=\"\",\"\",'1. Order'!M703)","v":""},null,null,{"$f":"IF('1. Order'!AR703=\"\",\"\",'1. Order'!AR703)","v":""},{"$f":"IF('1. Order'!AE703=\"\",\"\",'1. Order'!AE703)","v":""}]
[{"$f":"IF('1. Order'!B704=\"\",\"\",'1. Order'!B704)","v":""},{"$f":"IF('1. Order'!I704=\"\",\"\",'1. Order'!I704)","v":""},{"$f":"IF('1. Order'!J704=\"\",\"\",'1. Order'!J704)","v":""},{"$f":"IF('1. Order'!K704=\"\",\"\",'1. Order'!K704)","v":""},{"$f":"IF('1. Order'!M704=\"\",\"\",'1. Order'!M704)","v":""},null,null,{"$f":"IF('1. Order'!AR704=\"\",\"\",'1. Order'!AR704)","v":""},{"$f":"IF('1. Order'!AE704=\"\",\"\",'1. Order'!AE704)","v":""}]
[{"$f":"IF('1. Order'!B705=\"\",\"\",'1. Order'!B705)","v":""},{"$f":"IF('1. Order'!I705=\"\",\"\",'1. Order'!I705)","v":""},{"$f":"IF('1. Order'!J705=\"\",\"\",'1. Order'!J705)","v":""},{"$f":"IF('1. Order'!K705=\"\",\"\",'1. Order'!K705)","v":""},{"$f":"IF('1. Order'!M705=\"\",\"\",'1. Order'!M705)","v":""},null,null,{"$f":"IF('1. Order'!AR705=\"\",\"\",'1. Order'!AR705)","v":""},{"$f":"IF('1. Order'!AE705=\"\",\"\",'1. Order'!AE705)","v":""}]
[{"$f":"IF('1. Order'!B706=\"\",\"\",'1. Order'!B706)","v":""},{"$f":"IF('1. Order'!I706=\"\",\"\",'1. Order'!I706)","v":""},{"$f":"IF('1. Order'!J706=\"\",\"\",'1. Order'!J706)","v":""},{"$f":"IF('1. Order'!K706=\"\",\"\",'1. Order'!K706)","v":""},{"$f":"IF('1. Order'!M706=\"\",\"\",'1. Order'!M706)","v":""},null,null,{"$f":"IF('1. Order'!AR706=\"\",\"\",'1. Order'!AR706)","v":""},{"$f":"IF('1. Order'!AE706=\"\",\"\",'1. Order'!AE706)","v":""}]
[{"$f":"IF('1. Order'!B707=\"\",\"\",'1. Order'!B707)","v":""},{"$f":"IF('1. Order'!I707=\"\",\"\",'1. Order'!I707)","v":""},{"$f":"IF('1. Order'!J707=\"\",\"\",'1. Order'!J707)","v":""},{"$f":"IF('1. Order'!K707=\"\",\"\",'1. Order'!K707)","v":""},{"$f":"IF('1. Order'!M707=\"\",\"\",'1. Order'!M707)","v":""},null,null,{"$f":"IF('1. Order'!AR707=\"\",\"\",'1. Order'!AR707)","v":""},{"$f":"IF('1. Order'!AE707=\"\",\"\",'1. Order'!AE707)","v":""}]
[{"$f":"IF('1. Order'!B708=\"\",\"\",'1. Order'!B708)","v":""},{"$f":"IF('1. Order'!I708=\"\",\"\",'1. Order'!I708)","v":""},{"$f":"IF('1. Order'!J708=\"\",\"\",'1. Order'!J708)","v":""},{"$f":"IF('1. Order'!K708=\"\",\"\",'1. Order'!K708)","v":""},{"$f":"IF('1. Order'!M708=\"\",\"\",'1. Order'!M708)","v":""},null,null,{"$f":"IF('1. Order'!AR708=\"\",\"\",'1. Order'!AR708)","v":""},{"$f":"IF('1. Order'!AE708=\"\",\"\",'1. Order'!AE708)","v":""}]
[{"$f":"IF('1. Order'!B709=\"\",\"\",'1. Order'!B709)","v":""},{"$f":"IF('1. Order'!I709=\"\",\"\",'1. Order'!I709)","v":""},{"$f":"IF('1. Order'!J709=\"\",\"\",'1. Order'!J709)","v":""},{"$f":"IF('1. Order'!K709=\"\",\"\",'1. Order'!K709)","v":""},{"$f":"IF('1. Order'!M709=\"\",\"\",'1. Order'!M709)","v":""},null,null,{"$f":"IF('1. Order'!AR709=\"\",\"\",'1. Order'!AR709)","v":""},{"$f":"IF('1. Order'!AE709=\"\",\"\",'1. Order'!AE709)","v":""}]
[{"$f":"IF('1. Order'!B710=\"\",\"\",'1. Order'!B710)","v":""},{"$f":"IF('1. Order'!I710=\"\",\"\",'1. Order'!I710)","v":""},{"$f":"IF('1. Order'!J710=\"\",\"\",'1. Order'!J710)","v":""},{"$f":"IF('1. Order'!K710=\"\",\"\",'1. Order'!K710)","v":""},{"$f":"IF('1. Order'!M710=\"\",\"\",'1. Order'!M710)","v":""},null,null,{"$f":"IF('1. Order'!AR710=\"\",\"\",'1. Order'!AR710)","v":""},{"$f":"IF('1. Order'!AE710=\"\",\"\",'1. Order'!AE710)","v":""}]
[{"$f":"IF('1. Order'!B711=\"\",\"\",'1. Order'!B711)","v":""},{"$f":"IF('1. Order'!I711=\"\",\"\",'1. Order'!I711)","v":""},{"$f":"IF('1. Order'!J711=\"\",\"\",'1. Order'!J711)","v":""},{"$f":"IF('1. Order'!K711=\"\",\"\",'1. Order'!K711)","v":""},{"$f":"IF('1. Order'!M711=\"\",\"\",'1. Order'!M711)","v":""},null,null,{"$f":"IF('1. Order'!AR711=\"\",\"\",'1. Order'!AR711)","v":""},{"$f":"IF('1. Order'!AE711=\"\",\"\",'1. Order'!AE711)","v":""}]
[{"$f":"IF('1. Order'!B712=\"\",\"\",'1. Order'!B712)","v":""},{"$f":"IF('1. Order'!I712=\"\",\"\",'1. Order'!I712)","v":""},{"$f":"IF('1. Order'!J712=\"\",\"\",'1. Order'!J712)","v":""},{"$f":"IF('1. Order'!K712=\"\",\"\",'1. Order'!K712)","v":""},{"$f":"IF('1. Order'!M712=\"\",\"\",'1. Order'!M712)","v":""},null,null,{"$f":"IF('1. Order'!AR712=\"\",\"\",'1. Order'!AR712)","v":""},{"$f":"IF('1. Order'!AE712=\"\",\"\",'1. Order'!AE712)","v":""}]
[{"$f":"IF('1. Order'!B713=\"\",\"\",'1. Order'!B713)","v":""},{"$f":"IF('1. Order'!I713=\"\",\"\",'1. Order'!I713)","v":""},{"$f":"IF('1. Order'!J713=\"\",\"\",'1. Order'!J713)","v":""},{"$f":"IF('1. Order'!K713=\"\",\"\",'1. Order'!K713)","v":""},{"$f":"IF('1. Order'!M713=\"\",\"\",'1. Order'!M713)","v":""},null,null,{"$f":"IF('1. Order'!AR713=\"\",\"\",'1. Order'!AR713)","v":""},{"$f":"IF('1. Order'!AE713=\"\",\"\",'1. Order'!AE713)","v":""}]
[{"$f":"IF('1. Order'!B714=\"\",\"\",'1. Order'!B714)","v":""},{"$f":"IF('1. Order'!I714=\"\",\"\",'1. Order'!I714)","v":""},{"$f":"IF('1. Order'!J714=\"\",\"\",'1. Order'!J714)","v":""},{"$f":"IF('1. Order'!K714=\"\",\"\",'1. Order'!K714)","v":""},{"$f":"IF('1. Order'!M714=\"\",\"\",'1. Order'!M714)","v":""},null,null,{"$f":"IF('1. Order'!AR714=\"\",\"\",'1. Order'!AR714)","v":""},{"$f":"IF('1. Order'!AE714=\"\",\"\",'1. Order'!AE714)","v":""}]
[{"$f":"IF('1. Order'!B715=\"\",\"\",'1. Order'!B715)","v":""},{"$f":"IF('1. Order'!I715=\"\",\"\",'1. Order'!I715)","v":""},{"$f":"IF('1. Order'!J715=\"\",\"\",'1. Order'!J715)","v":""},{"$f":"IF('1. Order'!K715=\"\",\"\",'1. Order'!K715)","v":""},{"$f":"IF('1. Order'!M715=\"\",\"\",'1. Order'!M715)","v":""},null,null,{"$f":"IF('1. Order'!AR715=\"\",\"\",'1. Order'!AR715)","v":""},{"$f":"IF('1. Order'!AE715=\"\",\"\",'1. Order'!AE715)","v":""}]
[{"$f":"IF('1. Order'!B716=\"\",\"\",'1. Order'!B716)","v":""},{"$f":"IF('1. Order'!I716=\"\",\"\",'1. Order'!I716)","v":""},{"$f":"IF('1. Order'!J716=\"\",\"\",'1. Order'!J716)","v":""},{"$f":"IF('1. Order'!K716=\"\",\"\",'1. Order'!K716)","v":""},{"$f":"IF('1. Order'!M716=\"\",\"\",'1. Order'!M716)","v":""},null,null,{"$f":"IF('1. Order'!AR716=\"\",\"\",'1. Order'!AR716)","v":""},{"$f":"IF('1. Order'!AE716=\"\",\"\",'1. Order'!AE716)","v":""}]
[{"$f":"IF('1. Order'!B717=\"\",\"\",'1. Order'!B717)","v":""},{"$f":"IF('1. Order'!I717=\"\",\"\",'1. Order'!I717)","v":""},{"$f":"IF('1. Order'!J717=\"\",\"\",'1. Order'!J717)","v":""},{"$f":"IF('1. Order'!K717=\"\",\"\",'1. Order'!K717)","v":""},{"$f":"IF('1. Order'!M717=\"\",\"\",'1. Order'!M717)","v":""},null,null,{"$f":"IF('1. Order'!AR717=\"\",\"\",'1. Order'!AR717)","v":""},{"$f":"IF('1. Order'!AE717=\"\",\"\",'1. Order'!AE717)","v":""}]
[{"$f":"IF('1. Order'!B718=\"\",\"\",'1. Order'!B718)","v":""},{"$f":"IF('1. Order'!I718=\"\",\"\",'1. Order'!I718)","v":""},{"$f":"IF('1. Order'!J718=\"\",\"\",'1. Order'!J718)","v":""},{"$f":"IF('1. Order'!K718=\"\",\"\",'1. Order'!K718)","v":""},{"$f":"IF('1. Order'!M718=\"\",\"\",'1. Order'!M718)","v":""},null,null,{"$f":"IF('1. Order'!AR718=\"\",\"\",'1. Order'!AR718)","v":""},{"$f":"IF('1. Order'!AE718=\"\",\"\",'1. Order'!AE718)","v":""}]
[{"$f":"IF('1. Order'!B719=\"\",\"\",'1. Order'!B719)","v":""},{"$f":"IF('1. Order'!I719=\"\",\"\",'1. Order'!I719)","v":""},{"$f":"IF('1. Order'!J719=\"\",\"\",'1. Order'!J719)","v":""},{"$f":"IF('1. Order'!K719=\"\",\"\",'1. Order'!K719)","v":""},{"$f":"IF('1. Order'!M719=\"\",\"\",'1. Order'!M719)","v":""},null,null,{"$f":"IF('1. Order'!AR719=\"\",\"\",'1. Order'!AR719)","v":""},{"$f":"IF('1. Order'!AE719=\"\",\"\",'1. Order'!AE719)","v":""}]
[{"$f":"IF('1. Order'!B720=\"\",\"\",'1. Order'!B720)","v":""},{"$f":"IF('1. Order'!I720=\"\",\"\",'1. Order'!I720)","v":""},{"$f":"IF('1. Order'!J720=\"\",\"\",'1. Order'!J720)","v":""},{"$f":"IF('1. Order'!K720=\"\",\"\",'1. Order'!K720)","v":""},{"$f":"IF('1. Order'!M720=\"\",\"\",'1. Order'!M720)","v":""},null,null,{"$f":"IF('1. Order'!AR720=\"\",\"\",'1. Order'!AR720)","v":""},{"$f":"IF('1. Order'!AE720=\"\",\"\",'1. Order'!AE720)","v":""}]
[{"$f":"IF('1. Order'!B721=\"\",\"\",'1. Order'!B721)","v":""},{"$f":"IF('1. Order'!I721=\"\",\"\",'1. Order'!I721)","v":""},{"$f":"IF('1. Order'!J721=\"\",\"\",'1. Order'!J721)","v":""},{"$f":"IF('1. Order'!K721=\"\",\"\",'1. Order'!K721)","v":""},{"$f":"IF('1. Order'!M721=\"\",\"\",'1. Order'!M721)","v":""},null,null,{"$f":"IF('1. Order'!AR721=\"\",\"\",'1. Order'!AR721)","v":""},{"$f":"IF('1. Order'!AE721=\"\",\"\",'1. Order'!AE721)","v":""}]
[{"$f":"IF('1. Order'!B722=\"\",\"\",'1. Order'!B722)","v":""},{"$f":"IF('1. Order'!I722=\"\",\"\",'1. Order'!I722)","v":""},{"$f":"IF('1. Order'!J722=\"\",\"\",'1. Order'!J722)","v":""},{"$f":"IF('1. Order'!K722=\"\",\"\",'1. Order'!K722)","v":""},{"$f":"IF('1. Order'!M722=\"\",\"\",'1. Order'!M722)","v":""},null,null,{"$f":"IF('1. Order'!AR722=\"\",\"\",'1. Order'!AR722)","v":""},{"$f":"IF('1. Order'!AE722=\"\",\"\",'1. Order'!AE722)","v":""}]
[{"$f":"IF('1. Order'!B723=\"\",\"\",'1. Order'!B723)","v":""},{"$f":"IF('1. Order'!I723=\"\",\"\",'1. Order'!I723)","v":""},{"$f":"IF('1. Order'!J723=\"\",\"\",'1. Order'!J723)","v":""},{"$f":"IF('1. Order'!K723=\"\",\"\",'1. Order'!K723)","v":""},{"$f":"IF('1. Order'!M723=\"\",\"\",'1. Order'!M723)","v":""},null,null,{"$f":"IF('1. Order'!AR723=\"\",\"\",'1. Order'!AR723)","v":""},{"$f":"IF('1. Order'!AE723=\"\",\"\",'1. Order'!AE723)","v":""}]
[{"$f":"IF('1. Order'!B724=\"\",\"\",'1. Order'!B724)","v":""},{"$f":"IF('1. Order'!I724=\"\",\"\",'1. Order'!I724)","v":""},{"$f":"IF('1. Order'!J724=\"\",\"\",'1. Order'!J724)","v":""},{"$f":"IF('1. Order'!K724=\"\",\"\",'1. Order'!K724)","v":""},{"$f":"IF('1. Order'!M724=\"\",\"\",'1. Order'!M724)","v":""},null,null,{"$f":"IF('1. Order'!AR724=\"\",\"\",'1. Order'!AR724)","v":""},{"$f":"IF('1. Order'!AE724=\"\",\"\",'1. Order'!AE724)","v":""}]
[{"$f":"IF('1. Order'!B725=\"\",\"\",'1. Order'!B725)","v":""},{"$f":"IF('1. Order'!I725=\"\",\"\",'1. Order'!I725)","v":""},{"$f":"IF('1. Order'!J725=\"\",\"\",'1. Order'!J725)","v":""},{"$f":"IF('1. Order'!K725=\"\",\"\",'1. Order'!K725)","v":""},{"$f":"IF('1. Order'!M725=\"\",\"\",'1. Order'!M725)","v":""},null,null,{"$f":"IF('1. Order'!AR725=\"\",\"\",'1. Order'!AR725)","v":""},{"$f":"IF('1. Order'!AE725=\"\",\"\",'1. Order'!AE725)","v":""}]
[{"$f":"IF('1. Order'!B726=\"\",\"\",'1. Order'!B726)","v":""},{"$f":"IF('1. Order'!I726=\"\",\"\",'1. Order'!I726)","v":""},{"$f":"IF('1. Order'!J726=\"\",\"\",'1. Order'!J726)","v":""},{"$f":"IF('1. Order'!K726=\"\",\"\",'1. Order'!K726)","v":""},{"$f":"IF('1. Order'!M726=\"\",\"\",'1. Order'!M726)","v":""},null,null,{"$f":"IF('1. Order'!AR726=\"\",\"\",'1. Order'!AR726)","v":""},{"$f":"IF('1. Order'!AE726=\"\",\"\",'1. Order'!AE726)","v":""}]
[{"$f":"IF('1. Order'!B727=\"\",\"\",'1. Order'!B727)","v":""},{"$f":"IF('1. Order'!I727=\"\",\"\",'1. Order'!I727)","v":""},{"$f":"IF('1. Order'!J727=\"\",\"\",'1. Order'!J727)","v":""},{"$f":"IF('1. Order'!K727=\"\",\"\",'1. Order'!K727)","v":""},{"$f":"IF('1. Order'!M727=\"\",\"\",'1. Order'!M727)","v":""},null,null,{"$f":"IF('1. Order'!AR727=\"\",\"\",'1. Order'!AR727)","v":""},{"$f":"IF('1. Order'!AE727=\"\",\"\",'1. Order'!AE727)","v":""}]
[{"$f":"IF('1. Order'!B728=\"\",\"\",'1. Order'!B728)","v":""},{"$f":"IF('1. Order'!I728=\"\",\"\",'1. Order'!I728)","v":""},{"$f":"IF('1. Order'!J728=\"\",\"\",'1. Order'!J728)","v":""},{"$f":"IF('1. Order'!K728=\"\",\"\",'1. Order'!K728)","v":""},{"$f":"IF('1. Order'!M728=\"\",\"\",'1. Order'!M728)","v":""},null,null,{"$f":"IF('1. Order'!AR728=\"\",\"\",'1. Order'!AR728)","v":""},{"$f":"IF('1. Order'!AE728=\"\",\"\",'1. Order'!AE728)","v":""}]
[{"$f":"IF('1. Order'!B729=\"\",\"\",'1. Order'!B729)","v":""},{"$f":"IF('1. Order'!I729=\"\",\"\",'1. Order'!I729)","v":""},{"$f":"IF('1. Order'!J729=\"\",\"\",'1. Order'!J729)","v":""},{"$f":"IF('1. Order'!K729=\"\",\"\",'1. Order'!K729)","v":""},{"$f":"IF('1. Order'!M729=\"\",\"\",'1. Order'!M729)","v":""},null,null,{"$f":"IF('1. Order'!AR729=\"\",\"\",'1. Order'!AR729)","v":""},{"$f":"IF('1. Order'!AE729=\"\",\"\",'1. Order'!AE729)","v":""}]
[{"$f":"IF('1. Order'!B730=\"\",\"\",'1. Order'!B730)","v":""},{"$f":"IF('1. Order'!I730=\"\",\"\",'1. Order'!I730)","v":""},{"$f":"IF('1. Order'!J730=\"\",\"\",'1. Order'!J730)","v":""},{"$f":"IF('1. Order'!K730=\"\",\"\",'1. Order'!K730)","v":""},{"$f":"IF('1. Order'!M730=\"\",\"\",'1. Order'!M730)","v":""},null,null,{"$f":"IF('1. Order'!AR730=\"\",\"\",'1. Order'!AR730)","v":""},{"$f":"IF('1. Order'!AE730=\"\",\"\",'1. Order'!AE730)","v":""}]
[{"$f":"IF('1. Order'!B731=\"\",\"\",'1. Order'!B731)","v":""},{"$f":"IF('1. Order'!I731=\"\",\"\",'1. Order'!I731)","v":""},{"$f":"IF('1. Order'!J731=\"\",\"\",'1. Order'!J731)","v":""},{"$f":"IF('1. Order'!K731=\"\",\"\",'1. Order'!K731)","v":""},{"$f":"IF('1. Order'!M731=\"\",\"\",'1. Order'!M731)","v":""},null,null,{"$f":"IF('1. Order'!AR731=\"\",\"\",'1. Order'!AR731)","v":""},{"$f":"IF('1. Order'!AE731=\"\",\"\",'1. Order'!AE731)","v":""}]
[{"$f":"IF('1. Order'!B732=\"\",\"\",'1. Order'!B732)","v":""},{"$f":"IF('1. Order'!I732=\"\",\"\",'1. Order'!I732)","v":""},{"$f":"IF('1. Order'!J732=\"\",\"\",'1. Order'!J732)","v":""},{"$f":"IF('1. Order'!K732=\"\",\"\",'1. Order'!K732)","v":""},{"$f":"IF('1. Order'!M732=\"\",\"\",'1. Order'!M732)","v":""},null,null,{"$f":"IF('1. Order'!AR732=\"\",\"\",'1. Order'!AR732)","v":""},{"$f":"IF('1. Order'!AE732=\"\",\"\",'1. Order'!AE732)","v":""}]
[{"$f":"IF('1. Order'!B733=\"\",\"\",'1. Order'!B733)","v":""},{"$f":"IF('1. Order'!I733=\"\",\"\",'1. Order'!I733)","v":""},{"$f":"IF('1. Order'!J733=\"\",\"\",'1. Order'!J733)","v":""},{"$f":"IF('1. Order'!K733=\"\",\"\",'1. Order'!K733)","v":""},{"$f":"IF('1. Order'!M733=\"\",\"\",'1. Order'!M733)","v":""},null,null,{"$f":"IF('1. Order'!AR733=\"\",\"\",'1. Order'!AR733)","v":""},{"$f":"IF('1. Order'!AE733=\"\",\"\",'1. Order'!AE733)","v":""}]
[{"$f":"IF('1. Order'!B734=\"\",\"\",'1. Order'!B734)","v":""},{"$f":"IF('1. Order'!I734=\"\",\"\",'1. Order'!I734)","v":""},{"$f":"IF('1. Order'!J734=\"\",\"\",'1. Order'!J734)","v":""},{"$f":"IF('1. Order'!K734=\"\",\"\",'1. Order'!K734)","v":""},{"$f":"IF('1. Order'!M734=\"\",\"\",'1. Order'!M734)","v":""},null,null,{"$f":"IF('1. Order'!AR734=\"\",\"\",'1. Order'!AR734)","v":""},{"$f":"IF('1. Order'!AE734=\"\",\"\",'1. Order'!AE734)","v":""}]
[{"$f":"IF('1. Order'!B735=\"\",\"\",'1. Order'!B735)","v":""},{"$f":"IF('1. Order'!I735=\"\",\"\",'1. Order'!I735)","v":""},{"$f":"IF('1. Order'!J735=\"\",\"\",'1. Order'!J735)","v":""},{"$f":"IF('1. Order'!K735=\"\",\"\",'1. Order'!K735)","v":""},{"$f":"IF('1. Order'!M735=\"\",\"\",'1. Order'!M735)","v":""},null,null,{"$f":"IF('1. Order'!AR735=\"\",\"\",'1. Order'!AR735)","v":""},{"$f":"IF('1. Order'!AE735=\"\",\"\",'1. Order'!AE735)","v":""}]
[{"$f":"IF('1. Order'!B736=\"\",\"\",'1. Order'!B736)","v":""},{"$f":"IF('1. Order'!I736=\"\",\"\",'1. Order'!I736)","v":""},{"$f":"IF('1. Order'!J736=\"\",\"\",'1. Order'!J736)","v":""},{"$f":"IF('1. Order'!K736=\"\",\"\",'1. Order'!K736)","v":""},{"$f":"IF('1. Order'!M736=\"\",\"\",'1. Order'!M736)","v":""},null,null,{"$f":"IF('1. Order'!AR736=\"\",\"\",'1. Order'!AR736)","v":""},{"$f":"IF('1. Order'!AE736=\"\",\"\",'1. Order'!AE736)","v":""}]
[{"$f":"IF('1. Order'!B737=\"\",\"\",'1. Order'!B737)","v":""},{"$f":"IF('1. Order'!I737=\"\",\"\",'1. Order'!I737)","v":""},{"$f":"IF('1. Order'!J737=\"\",\"\",'1. Order'!J737)","v":""},{"$f":"IF('1. Order'!K737=\"\",\"\",'1. Order'!K737)","v":""},{"$f":"IF('1. Order'!M737=\"\",\"\",'1. Order'!M737)","v":""},null,null,{"$f":"IF('1. Order'!AR737=\"\",\"\",'1. Order'!AR737)","v":""},{"$f":"IF('1. Order'!AE737=\"\",\"\",'1. Order'!AE737)","v":""}]
[{"$f":"IF('1. Order'!B738=\"\",\"\",'1. Order'!B738)","v":""},{"$f":"IF('1. Order'!I738=\"\",\"\",'1. Order'!I738)","v":""},{"$f":"IF('1. Order'!J738=\"\",\"\",'1. Order'!J738)","v":""},{"$f":"IF('1. Order'!K738=\"\",\"\",'1. Order'!K738)","v":""},{"$f":"IF('1. Order'!M738=\"\",\"\",'1. Order'!M738)","v":""},null,null,{"$f":"IF('1. Order'!AR738=\"\",\"\",'1. Order'!AR738)","v":""},{"$f":"IF('1. Order'!AE738=\"\",\"\",'1. Order'!AE738)","v":""}]
[{"$f":"IF('1. Order'!B739=\"\",\"\",'1. Order'!B739)","v":""},{"$f":"IF('1. Order'!I739=\"\",\"\",'1. Order'!I739)","v":""},{"$f":"IF('1. Order'!J739=\"\",\"\",'1. Order'!J739)","v":""},{"$f":"IF('1. Order'!K739=\"\",\"\",'1. Order'!K739)","v":""},{"$f":"IF('1. Order'!M739=\"\",\"\",'1. Order'!M739)","v":""},null,null,{"$f":"IF('1. Order'!AR739=\"\",\"\",'1. Order'!AR739)","v":""},{"$f":"IF('1. Order'!AE739=\"\",\"\",'1. Order'!AE739)","v":""}]
[{"$f":"IF('1. Order'!B740=\"\",\"\",'1. Order'!B740)","v":""},{"$f":"IF('1. Order'!I740=\"\",\"\",'1. Order'!I740)","v":""},{"$f":"IF('1. Order'!J740=\"\",\"\",'1. Order'!J740)","v":""},{"$f":"IF('1. Order'!K740=\"\",\"\",'1. Order'!K740)","v":""},{"$f":"IF('1. Order'!M740=\"\",\"\",'1. Order'!M740)","v":""},null,null,{"$f":"IF('1. Order'!AR740=\"\",\"\",'1. Order'!AR740)","v":""},{"$f":"IF('1. Order'!AE740=\"\",\"\",'1. Order'!AE740)","v":""}]
[{"$f":"IF('1. Order'!B741=\"\",\"\",'1. Order'!B741)","v":""},{"$f":"IF('1. Order'!I741=\"\",\"\",'1. Order'!I741)","v":""},{"$f":"IF('1. Order'!J741=\"\",\"\",'1. Order'!J741)","v":""},{"$f":"IF('1. Order'!K741=\"\",\"\",'1. Order'!K741)","v":""},{"$f":"IF('1. Order'!M741=\"\",\"\",'1. Order'!M741)","v":""},null,null,{"$f":"IF('1. Order'!AR741=\"\",\"\",'1. Order'!AR741)","v":""},{"$f":"IF('1. Order'!AE741=\"\",\"\",'1. Order'!AE741)","v":""}]
[{"$f":"IF('1. Order'!B742=\"\",\"\",'1. Order'!B742)","v":""},{"$f":"IF('1. Order'!I742=\"\",\"\",'1. Order'!I742)","v":""},{"$f":"IF('1. Order'!J742=\"\",\"\",'1. Order'!J742)","v":""},{"$f":"IF('1. Order'!K742=\"\",\"\",'1. Order'!K742)","v":""},{"$f":"IF('1. Order'!M742=\"\",\"\",'1. Order'!M742)","v":""},null,null,{"$f":"IF('1. Order'!AR742=\"\",\"\",'1. Order'!AR742)","v":""},{"$f":"IF('1. Order'!AE742=\"\",\"\",'1. Order'!AE742)","v":""}]
[{"$f":"IF('1. Order'!B743=\"\",\"\",'1. Order'!B743)","v":""},{"$f":"IF('1. Order'!I743=\"\",\"\",'1. Order'!I743)","v":""},{"$f":"IF('1. Order'!J743=\"\",\"\",'1. Order'!J743)","v":""},{"$f":"IF('1. Order'!K743=\"\",\"\",'1. Order'!K743)","v":""},{"$f":"IF('1. Order'!M743=\"\",\"\",'1. Order'!M743)","v":""},null,null,{"$f":"IF('1. Order'!AR743=\"\",\"\",'1. Order'!AR743)","v":""},{"$f":"IF('1. Order'!AE743=\"\",\"\",'1. Order'!AE743)","v":""}]
[{"$f":"IF('1. Order'!B744=\"\",\"\",'1. Order'!B744)","v":""},{"$f":"IF('1. Order'!I744=\"\",\"\",'1. Order'!I744)","v":""},{"$f":"IF('1. Order'!J744=\"\",\"\",'1. Order'!J744)","v":""},{"$f":"IF('1. Order'!K744=\"\",\"\",'1. Order'!K744)","v":""},{"$f":"IF('1. Order'!M744=\"\",\"\",'1. Order'!M744)","v":""},null,null,{"$f":"IF('1. Order'!AR744=\"\",\"\",'1. Order'!AR744)","v":""},{"$f":"IF('1. Order'!AE744=\"\",\"\",'1. Order'!AE744)","v":""}]
[{"$f":"IF('1. Order'!B745=\"\",\"\",'1. Order'!B745)","v":""},{"$f":"IF('1. Order'!I745=\"\",\"\",'1. Order'!I745)","v":""},{"$f":"IF('1. Order'!J745=\"\",\"\",'1. Order'!J745)","v":""},{"$f":"IF('1. Order'!K745=\"\",\"\",'1. Order'!K745)","v":""},{"$f":"IF('1. Order'!M745=\"\",\"\",'1. Order'!M745)","v":""},null,null,{"$f":"IF('1. Order'!AR745=\"\",\"\",'1. Order'!AR745)","v":""},{"$f":"IF('1. Order'!AE745=\"\",\"\",'1. Order'!AE745)","v":""}]
[{"$f":"IF('1. Order'!B746=\"\",\"\",'1. Order'!B746)","v":""},{"$f":"IF('1. Order'!I746=\"\",\"\",'1. Order'!I746)","v":""},{"$f":"IF('1. Order'!J746=\"\",\"\",'1. Order'!J746)","v":""},{"$f":"IF('1. Order'!K746=\"\",\"\",'1. Order'!K746)","v":""},{"$f":"IF('1. Order'!M746=\"\",\"\",'1. Order'!M746)","v":""},null,null,{"$f":"IF('1. Order'!AR746=\"\",\"\",'1. Order'!AR746)","v":""},{"$f":"IF('1. Order'!AE746=\"\",\"\",'1. Order'!AE746)","v":""}]
[{"$f":"IF('1. Order'!B747=\"\",\"\",'1. Order'!B747)","v":""},{"$f":"IF('1. Order'!I747=\"\",\"\",'1. Order'!I747)","v":""},{"$f":"IF('1. Order'!J747=\"\",\"\",'1. Order'!J747)","v":""},{"$f":"IF('1. Order'!K747=\"\",\"\",'1. Order'!K747)","v":""},{"$f":"IF('1. Order'!M747=\"\",\"\",'1. Order'!M747)","v":""},null,null,{"$f":"IF('1. Order'!AR747=\"\",\"\",'1. Order'!AR747)","v":""},{"$f":"IF('1. Order'!AE747=\"\",\"\",'1. Order'!AE747)","v":""}]
[{"$f":"IF('1. Order'!B748=\"\",\"\",'1. Order'!B748)","v":""},{"$f":"IF('1. Order'!I748=\"\",\"\",'1. Order'!I748)","v":""},{"$f":"IF('1. Order'!J748=\"\",\"\",'1. Order'!J748)","v":""},{"$f":"IF('1. Order'!K748=\"\",\"\",'1. Order'!K748)","v":""},{"$f":"IF('1. Order'!M748=\"\",\"\",'1. Order'!M748)","v":""},null,null,{"$f":"IF('1. Order'!AR748=\"\",\"\",'1. Order'!AR748)","v":""},{"$f":"IF('1. Order'!AE748=\"\",\"\",'1. Order'!AE748)","v":""}]
[{"$f":"IF('1. Order'!B749=\"\",\"\",'1. Order'!B749)","v":""},{"$f":"IF('1. Order'!I749=\"\",\"\",'1. Order'!I749)","v":""},{"$f":"IF('1. Order'!J749=\"\",\"\",'1. Order'!J749)","v":""},{"$f":"IF('1. Order'!K749=\"\",\"\",'1. Order'!K749)","v":""},{"$f":"IF('1. Order'!M749=\"\",\"\",'1. Order'!M749)","v":""},null,null,{"$f":"IF('1. Order'!AR749=\"\",\"\",'1. Order'!AR749)","v":""},{"$f":"IF('1. Order'!AE749=\"\",\"\",'1. Order'!AE749)","v":""}]
[{"$f":"IF('1. Order'!B750=\"\",\"\",'1. Order'!B750)","v":""},{"$f":"IF('1. Order'!I750=\"\",\"\",'1. Order'!I750)","v":""},{"$f":"IF('1. Order'!J750=\"\",\"\",'1. Order'!J750)","v":""},{"$f":"IF('1. Order'!K750=\"\",\"\",'1. Order'!K750)","v":""},{"$f":"IF('1. Order'!M750=\"\",\"\",'1. Order'!M750)","v":""},null,null,{"$f":"IF('1. Order'!AR750=\"\",\"\",'1. Order'!AR750)","v":""},{"$f":"IF('1. Order'!AE750=\"\",\"\",'1. Order'!AE750)","v":""}]
[{"$f":"IF('1. Order'!B751=\"\",\"\",'1. Order'!B751)","v":""},{"$f":"IF('1. Order'!I751=\"\",\"\",'1. Order'!I751)","v":""},{"$f":"IF('1. Order'!J751=\"\",\"\",'1. Order'!J751)","v":""},{"$f":"IF('1. Order'!K751=\"\",\"\",'1. Order'!K751)","v":""},{"$f":"IF('1. Order'!M751=\"\",\"\",'1. Order'!M751)","v":""},null,null,{"$f":"IF('1. Order'!AR751=\"\",\"\",'1. Order'!AR751)","v":""},{"$f":"IF('1. Order'!AE751=\"\",\"\",'1. Order'!AE751)","v":""}]
[{"$f":"IF('1. Order'!B752=\"\",\"\",'1. Order'!B752)","v":""},{"$f":"IF('1. Order'!I752=\"\",\"\",'1. Order'!I752)","v":""},{"$f":"IF('1. Order'!J752=\"\",\"\",'1. Order'!J752)","v":""},{"$f":"IF('1. Order'!K752=\"\",\"\",'1. Order'!K752)","v":""},{"$f":"IF('1. Order'!M752=\"\",\"\",'1. Order'!M752)","v":""},null,null,{"$f":"IF('1. Order'!AR752=\"\",\"\",'1. Order'!AR752)","v":""},{"$f":"IF('1. Order'!AE752=\"\",\"\",'1. Order'!AE752)","v":""}]
[{"$f":"IF('1. Order'!B753=\"\",\"\",'1. Order'!B753)","v":""},{"$f":"IF('1. Order'!I753=\"\",\"\",'1. Order'!I753)","v":""},{"$f":"IF('1. Order'!J753=\"\",\"\",'1. Order'!J753)","v":""},{"$f":"IF('1. Order'!K753=\"\",\"\",'1. Order'!K753)","v":""},{"$f":"IF('1. Order'!M753=\"\",\"\",'1. Order'!M753)","v":""},null,null,{"$f":"IF('1. Order'!AR753=\"\",\"\",'1. Order'!AR753)","v":""},{"$f":"IF('1. Order'!AE753=\"\",\"\",'1. Order'!AE753)","v":""}]
[{"$f":"IF('1. Order'!B754=\"\",\"\",'1. Order'!B754)","v":""},{"$f":"IF('1. Order'!I754=\"\",\"\",'1. Order'!I754)","v":""},{"$f":"IF('1. Order'!J754=\"\",\"\",'1. Order'!J754)","v":""},{"$f":"IF('1. Order'!K754=\"\",\"\",'1. Order'!K754)","v":""},{"$f":"IF('1. Order'!M754=\"\",\"\",'1. Order'!M754)","v":""},null,null,{"$f":"IF('1. Order'!AR754=\"\",\"\",'1. Order'!AR754)","v":""},{"$f":"IF('1. Order'!AE754=\"\",\"\",'1. Order'!AE754)","v":""}]
[{"$f":"IF('1. Order'!B755=\"\",\"\",'1. Order'!B755)","v":""},{"$f":"IF('1. Order'!I755=\"\",\"\",'1. Order'!I755)","v":""},{"$f":"IF('1. Order'!J755=\"\",\"\",'1. Order'!J755)","v":""},{"$f":"IF('1. Order'!K755=\"\",\"\",'1. Order'!K755)","v":""},{"$f":"IF('1. Order'!M755=\"\",\"\",'1. Order'!M755)","v":""},null,null,{"$f":"IF('1. Order'!AR755=\"\",\"\",'1. Order'!AR755)","v":""},{"$f":"IF('1. Order'!AE755=\"\",\"\",'1. Order'!AE755)","v":""}]
[{"$f":"IF('1. Order'!B756=\"\",\"\",'1. Order'!B756)","v":""},{"$f":"IF('1. Order'!I756=\"\",\"\",'1. Order'!I756)","v":""},{"$f":"IF('1. Order'!J756=\"\",\"\",'1. Order'!J756)","v":""},{"$f":"IF('1. Order'!K756=\"\",\"\",'1. Order'!K756)","v":""},{"$f":"IF('1. Order'!M756=\"\",\"\",'1. Order'!M756)","v":""},null,null,{"$f":"IF('1. Order'!AR756=\"\",\"\",'1. Order'!AR756)","v":""},{"$f":"IF('1. Order'!AE756=\"\",\"\",'1. Order'!AE756)","v":""}]
[{"$f":"IF('1. Order'!B757=\"\",\"\",'1. Order'!B757)","v":""},{"$f":"IF('1. Order'!I757=\"\",\"\",'1. Order'!I757)","v":""},{"$f":"IF('1. Order'!J757=\"\",\"\",'1. Order'!J757)","v":""},{"$f":"IF('1. Order'!K757=\"\",\"\",'1. Order'!K757)","v":""},{"$f":"IF('1. Order'!M757=\"\",\"\",'1. Order'!M757)","v":""},null,null,{"$f":"IF('1. Order'!AR757=\"\",\"\",'1. Order'!AR757)","v":""},{"$f":"IF('1. Order'!AE757=\"\",\"\",'1. Order'!AE757)","v":""}]
[{"$f":"IF('1. Order'!B758=\"\",\"\",'1. Order'!B758)","v":""},{"$f":"IF('1. Order'!I758=\"\",\"\",'1. Order'!I758)","v":""},{"$f":"IF('1. Order'!J758=\"\",\"\",'1. Order'!J758)","v":""},{"$f":"IF('1. Order'!K758=\"\",\"\",'1. Order'!K758)","v":""},{"$f":"IF('1. Order'!M758=\"\",\"\",'1. Order'!M758)","v":""},null,null,{"$f":"IF('1. Order'!AR758=\"\",\"\",'1. Order'!AR758)","v":""},{"$f":"IF('1. Order'!AE758=\"\",\"\",'1. Order'!AE758)","v":""}]
[{"$f":"IF('1. Order'!B759=\"\",\"\",'1. Order'!B759)","v":""},{"$f":"IF('1. Order'!I759=\"\",\"\",'1. Order'!I759)","v":""},{"$f":"IF('1. Order'!J759=\"\",\"\",'1. Order'!J759)","v":""},{"$f":"IF('1. Order'!K759=\"\",\"\",'1. Order'!K759)","v":""},{"$f":"IF('1. Order'!M759=\"\",\"\",'1. Order'!M759)","v":""},null,null,{"$f":"IF('1. Order'!AR759=\"\",\"\",'1. Order'!AR759)","v":""},{"$f":"IF('1. Order'!AE759=\"\",\"\",'1. Order'!AE759)","v":""}]
[{"$f":"IF('1. Order'!B760=\"\",\"\",'1. Order'!B760)","v":""},{"$f":"IF('1. Order'!I760=\"\",\"\",'1. Order'!I760)","v":""},{"$f":"IF('1. Order'!J760=\"\",\"\",'1. Order'!J760)","v":""},{"$f":"IF('1. Order'!K760=\"\",\"\",'1. Order'!K760)","v":""},{"$f":"IF('1. Order'!M760=\"\",\"\",'1. Order'!M760)","v":""},null,null,{"$f":"IF('1. Order'!AR760=\"\",\"\",'1. Order'!AR760)","v":""},{"$f":"IF('1. Order'!AE760=\"\",\"\",'1. Order'!AE760)","v":""}]
[{"$f":"IF('1. Order'!B761=\"\",\"\",'1. Order'!B761)","v":""},{"$f":"IF('1. Order'!I761=\"\",\"\",'1. Order'!I761)","v":""},{"$f":"IF('1. Order'!J761=\"\",\"\",'1. Order'!J761)","v":""},{"$f":"IF('1. Order'!K761=\"\",\"\",'1. Order'!K761)","v":""},{"$f":"IF('1. Order'!M761=\"\",\"\",'1. Order'!M761)","v":""},null,null,{"$f":"IF('1. Order'!AR761=\"\",\"\",'1. Order'!AR761)","v":""},{"$f":"IF('1. Order'!AE761=\"\",\"\",'1. Order'!AE761)","v":""}]
[{"$f":"IF('1. Order'!B762=\"\",\"\",'1. Order'!B762)","v":""},{"$f":"IF('1. Order'!I762=\"\",\"\",'1. Order'!I762)","v":""},{"$f":"IF('1. Order'!J762=\"\",\"\",'1. Order'!J762)","v":""},{"$f":"IF('1. Order'!K762=\"\",\"\",'1. Order'!K762)","v":""},{"$f":"IF('1. Order'!M762=\"\",\"\",'1. Order'!M762)","v":""},null,null,{"$f":"IF('1. Order'!AR762=\"\",\"\",'1. Order'!AR762)","v":""},{"$f":"IF('1. Order'!AE762=\"\",\"\",'1. Order'!AE762)","v":""}]
[{"$f":"IF('1. Order'!B763=\"\",\"\",'1. Order'!B763)","v":""},{"$f":"IF('1. Order'!I763=\"\",\"\",'1. Order'!I763)","v":""},{"$f":"IF('1. Order'!J763=\"\",\"\",'1. Order'!J763)","v":""},{"$f":"IF('1. Order'!K763=\"\",\"\",'1. Order'!K763)","v":""},{"$f":"IF('1. Order'!M763=\"\",\"\",'1. Order'!M763)","v":""},null,null,{"$f":"IF('1. Order'!AR763=\"\",\"\",'1. Order'!AR763)","v":""},{"$f":"IF('1. Order'!AE763=\"\",\"\",'1. Order'!AE763)","v":""}]
[{"$f":"IF('1. Order'!B764=\"\",\"\",'1. Order'!B764)","v":""},{"$f":"IF('1. Order'!I764=\"\",\"\",'1. Order'!I764)","v":""},{"$f":"IF('1. Order'!J764=\"\",\"\",'1. Order'!J764)","v":""},{"$f":"IF('1. Order'!K764=\"\",\"\",'1. Order'!K764)","v":""},{"$f":"IF('1. Order'!M764=\"\",\"\",'1. Order'!M764)","v":""},null,null,{"$f":"IF('1. Order'!AR764=\"\",\"\",'1. Order'!AR764)","v":""},{"$f":"IF('1. Order'!AE764=\"\",\"\",'1. Order'!AE764)","v":""}]
[{"$f":"IF('1. Order'!B765=\"\",\"\",'1. Order'!B765)","v":""},{"$f":"IF('1. Order'!I765=\"\",\"\",'1. Order'!I765)","v":""},{"$f":"IF('1. Order'!J765=\"\",\"\",'1. Order'!J765)","v":""},{"$f":"IF('1. Order'!K765=\"\",\"\",'1. Order'!K765)","v":""},{"$f":"IF('1. Order'!M765=\"\",\"\",'1. Order'!M765)","v":""},null,null,{"$f":"IF('1. Order'!AR765=\"\",\"\",'1. Order'!AR765)","v":""},{"$f":"IF('1. Order'!AE765=\"\",\"\",'1. Order'!AE765)","v":""}]
[{"$f":"IF('1. Order'!B766=\"\",\"\",'1. Order'!B766)","v":""},{"$f":"IF('1. Order'!I766=\"\",\"\",'1. Order'!I766)","v":""},{"$f":"IF('1. Order'!J766=\"\",\"\",'1. Order'!J766)","v":""},{"$f":"IF('1. Order'!K766=\"\",\"\",'1. Order'!K766)","v":""},{"$f":"IF('1. Order'!M766=\"\",\"\",'1. Order'!M766)","v":""},null,null,{"$f":"IF('1. Order'!AR766=\"\",\"\",'1. Order'!AR766)","v":""},{"$f":"IF('1. Order'!AE766=\"\",\"\",'1. Order'!AE766)","v":""}]
[{"$f":"IF('1. Order'!B767=\"\",\"\",'1. Order'!B767)","v":""},{"$f":"IF('1. Order'!I767=\"\",\"\",'1. Order'!I767)","v":""},{"$f":"IF('1. Order'!J767=\"\",\"\",'1. Order'!J767)","v":""},{"$f":"IF('1. Order'!K767=\"\",\"\",'1. Order'!K767)","v":""},{"$f":"IF('1. Order'!M767=\"\",\"\",'1. Order'!M767)","v":""},null,null,{"$f":"IF('1. Order'!AR767=\"\",\"\",'1. Order'!AR767)","v":""},{"$f":"IF('1. Order'!AE767=\"\",\"\",'1. Order'!AE767)","v":""}]
[{"$f":"IF('1. Order'!B768=\"\",\"\",'1. Order'!B768)","v":""},{"$f":"IF('1. Order'!I768=\"\",\"\",'1. Order'!I768)","v":""},{"$f":"IF('1. Order'!J768=\"\",\"\",'1. Order'!J768)","v":""},{"$f":"IF('1. Order'!K768=\"\",\"\",'1. Order'!K768)","v":""},{"$f":"IF('1. Order'!M768=\"\",\"\",'1. Order'!M768)","v":""},null,null,{"$f":"IF('1. Order'!AR768=\"\",\"\",'1. Order'!AR768)","v":""},{"$f":"IF('1. Order'!AE768=\"\",\"\",'1. Order'!AE768)","v":""}]
[{"$f":"IF('1. Order'!B769=\"\",\"\",'1. Order'!B769)","v":""},{"$f":"IF('1. Order'!I769=\"\",\"\",'1. Order'!I769)","v":""},{"$f":"IF('1. Order'!J769=\"\",\"\",'1. Order'!J769)","v":""},{"$f":"IF('1. Order'!K769=\"\",\"\",'1. Order'!K769)","v":""},{"$f":"IF('1. Order'!M769=\"\",\"\",'1. Order'!M769)","v":""},null,null,{"$f":"IF('1. Order'!AR769=\"\",\"\",'1. Order'!AR769)","v":""},{"$f":"IF('1. Order'!AE769=\"\",\"\",'1. Order'!AE769)","v":""}]
[{"$f":"IF('1. Order'!B770=\"\",\"\",'1. Order'!B770)","v":""},{"$f":"IF('1. Order'!I770=\"\",\"\",'1. Order'!I770)","v":""},{"$f":"IF('1. Order'!J770=\"\",\"\",'1. Order'!J770)","v":""},{"$f":"IF('1. Order'!K770=\"\",\"\",'1. Order'!K770)","v":""},{"$f":"IF('1. Order'!M770=\"\",\"\",'1. Order'!M770)","v":""},null,null,{"$f":"IF('1. Order'!AR770=\"\",\"\",'1. Order'!AR770)","v":""},{"$f":"IF('1. Order'!AE770=\"\",\"\",'1. Order'!AE770)","v":""}]
[{"$f":"IF('1. Order'!B771=\"\",\"\",'1. Order'!B771)","v":""},{"$f":"IF('1. Order'!I771=\"\",\"\",'1. Order'!I771)","v":""},{"$f":"IF('1. Order'!J771=\"\",\"\",'1. Order'!J771)","v":""},{"$f":"IF('1. Order'!K771=\"\",\"\",'1. Order'!K771)","v":""},{"$f":"IF('1. Order'!M771=\"\",\"\",'1. Order'!M771)","v":""},null,null,{"$f":"IF('1. Order'!AR771=\"\",\"\",'1. Order'!AR771)","v":""},{"$f":"IF('1. Order'!AE771=\"\",\"\",'1. Order'!AE771)","v":""}]
[{"$f":"IF('1. Order'!B772=\"\",\"\",'1. Order'!B772)","v":""},{"$f":"IF('1. Order'!I772=\"\",\"\",'1. Order'!I772)","v":""},{"$f":"IF('1. Order'!J772=\"\",\"\",'1. Order'!J772)","v":""},{"$f":"IF('1. Order'!K772=\"\",\"\",'1. Order'!K772)","v":""},{"$f":"IF('1. Order'!M772=\"\",\"\",'1. Order'!M772)","v":""},null,null,{"$f":"IF('1. Order'!AR772=\"\",\"\",'1. Order'!AR772)","v":""},{"$f":"IF('1. Order'!AE772=\"\",\"\",'1. Order'!AE772)","v":""}]
[{"$f":"IF('1. Order'!B773=\"\",\"\",'1. Order'!B773)","v":""},{"$f":"IF('1. Order'!I773=\"\",\"\",'1. Order'!I773)","v":""},{"$f":"IF('1. Order'!J773=\"\",\"\",'1. Order'!J773)","v":""},{"$f":"IF('1. Order'!K773=\"\",\"\",'1. Order'!K773)","v":""},{"$f":"IF('1. Order'!M773=\"\",\"\",'1. Order'!M773)","v":""},null,null,{"$f":"IF('1. Order'!AR773=\"\",\"\",'1. Order'!AR773)","v":""},{"$f":"IF('1. Order'!AE773=\"\",\"\",'1. Order'!AE773)","v":""}]
[{"$f":"IF('1. Order'!B774=\"\",\"\",'1. Order'!B774)","v":""},{"$f":"IF('1. Order'!I774=\"\",\"\",'1. Order'!I774)","v":""},{"$f":"IF('1. Order'!J774=\"\",\"\",'1. Order'!J774)","v":""},{"$f":"IF('1. Order'!K774=\"\",\"\",'1. Order'!K774)","v":""},{"$f":"IF('1. Order'!M774=\"\",\"\",'1. Order'!M774)","v":""},null,null,{"$f":"IF('1. Order'!AR774=\"\",\"\",'1. Order'!AR774)","v":""},{"$f":"IF('1. Order'!AE774=\"\",\"\",'1. Order'!AE774)","v":""}]
[{"$f":"IF('1. Order'!B775=\"\",\"\",'1. Order'!B775)","v":""},{"$f":"IF('1. Order'!I775=\"\",\"\",'1. Order'!I775)","v":""},{"$f":"IF('1. Order'!J775=\"\",\"\",'1. Order'!J775)","v":""},{"$f":"IF('1. Order'!K775=\"\",\"\",'1. Order'!K775)","v":""},{"$f":"IF('1. Order'!M775=\"\",\"\",'1. Order'!M775)","v":""},null,null,{"$f":"IF('1. Order'!AR775=\"\",\"\",'1. Order'!AR775)","v":""},{"$f":"IF('1. Order'!AE775=\"\",\"\",'1. Order'!AE775)","v":""}]
[{"$f":"IF('1. Order'!B776=\"\",\"\",'1. Order'!B776)","v":""},{"$f":"IF('1. Order'!I776=\"\",\"\",'1. Order'!I776)","v":""},{"$f":"IF('1. Order'!J776=\"\",\"\",'1. Order'!J776)","v":""},{"$f":"IF('1. Order'!K776=\"\",\"\",'1. Order'!K776)","v":""},{"$f":"IF('1. Order'!M776=\"\",\"\",'1. Order'!M776)","v":""},null,null,{"$f":"IF('1. Order'!AR776=\"\",\"\",'1. Order'!AR776)","v":""},{"$f":"IF('1. Order'!AE776=\"\",\"\",'1. Order'!AE776)","v":""}]
[{"$f":"IF('1. Order'!B777=\"\",\"\",'1. Order'!B777)","v":""},{"$f":"IF('1. Order'!I777=\"\",\"\",'1. Order'!I777)","v":""},{"$f":"IF('1. Order'!J777=\"\",\"\",'1. Order'!J777)","v":""},{"$f":"IF('1. Order'!K777=\"\",\"\",'1. Order'!K777)","v":""},{"$f":"IF('1. Order'!M777=\"\",\"\",'1. Order'!M777)","v":""},null,null,{"$f":"IF('1. Order'!AR777=\"\",\"\",'1. Order'!AR777)","v":""},{"$f":"IF('1. Order'!AE777=\"\",\"\",'1. Order'!AE777)","v":""}]
[{"$f":"IF('1. Order'!B778=\"\",\"\",'1. Order'!B778)","v":""},{"$f":"IF('1. Order'!I778=\"\",\"\",'1. Order'!I778)","v":""},{"$f":"IF('1. Order'!J778=\"\",\"\",'1. Order'!J778)","v":""},{"$f":"IF('1. Order'!K778=\"\",\"\",'1. Order'!K778)","v":""},{"$f":"IF('1. Order'!M778=\"\",\"\",'1. Order'!M778)","v":""},null,null,{"$f":"IF('1. Order'!AR778=\"\",\"\",'1. Order'!AR778)","v":""},{"$f":"IF('1. Order'!AE778=\"\",\"\",'1. Order'!AE778)","v":""}]
[{"$f":"IF('1. Order'!B779=\"\",\"\",'1. Order'!B779)","v":""},{"$f":"IF('1. Order'!I779=\"\",\"\",'1. Order'!I779)","v":""},{"$f":"IF('1. Order'!J779=\"\",\"\",'1. Order'!J779)","v":""},{"$f":"IF('1. Order'!K779=\"\",\"\",'1. Order'!K779)","v":""},{"$f":"IF('1. Order'!M779=\"\",\"\",'1. Order'!M779)","v":""},null,null,{"$f":"IF('1. Order'!AR779=\"\",\"\",'1. Order'!AR779)","v":""},{"$f":"IF('1. Order'!AE779=\"\",\"\",'1. Order'!AE779)","v":""}]
[{"$f":"IF('1. Order'!B780=\"\",\"\",'1. Order'!B780)","v":""},{"$f":"IF('1. Order'!I780=\"\",\"\",'1. Order'!I780)","v":""},{"$f":"IF('1. Order'!J780=\"\",\"\",'1. Order'!J780)","v":""},{"$f":"IF('1. Order'!K780=\"\",\"\",'1. Order'!K780)","v":""},{"$f":"IF('1. Order'!M780=\"\",\"\",'1. Order'!M780)","v":""},null,null,{"$f":"IF('1. Order'!AR780=\"\",\"\",'1. Order'!AR780)","v":""},{"$f":"IF('1. Order'!AE780=\"\",\"\",'1. Order'!AE780)","v":""}]
[{"$f":"IF('1. Order'!B781=\"\",\"\",'1. Order'!B781)","v":""},{"$f":"IF('1. Order'!I781=\"\",\"\",'1. Order'!I781)","v":""},{"$f":"IF('1. Order'!J781=\"\",\"\",'1. Order'!J781)","v":""},{"$f":"IF('1. Order'!K781=\"\",\"\",'1. Order'!K781)","v":""},{"$f":"IF('1. Order'!M781=\"\",\"\",'1. Order'!M781)","v":""},null,null,{"$f":"IF('1. Order'!AR781=\"\",\"\",'1. Order'!AR781)","v":""},{"$f":"IF('1. Order'!AE781=\"\",\"\",'1. Order'!AE781)","v":""}]
[{"$f":"IF('1. Order'!B782=\"\",\"\",'1. Order'!B782)","v":""},{"$f":"IF('1. Order'!I782=\"\",\"\",'1. Order'!I782)","v":""},{"$f":"IF('1. Order'!J782=\"\",\"\",'1. Order'!J782)","v":""},{"$f":"IF('1. Order'!K782=\"\",\"\",'1. Order'!K782)","v":""},{"$f":"IF('1. Order'!M782=\"\",\"\",'1. Order'!M782)","v":""},null,null,{"$f":"IF('1. Order'!AR782=\"\",\"\",'1. Order'!AR782)","v":""},{"$f":"IF('1. Order'!AE782=\"\",\"\",'1. Order'!AE782)","v":""}]
[{"$f":"IF('1. Order'!B783=\"\",\"\",'1. Order'!B783)","v":""},{"$f":"IF('1. Order'!I783=\"\",\"\",'1. Order'!I783)","v":""},{"$f":"IF('1. Order'!J783=\"\",\"\",'1. Order'!J783)","v":""},{"$f":"IF('1. Order'!K783=\"\",\"\",'1. Order'!K783)","v":""},{"$f":"IF('1. Order'!M783=\"\",\"\",'1. Order'!M783)","v":""},null,null,{"$f":"IF('1. Order'!AR783=\"\",\"\",'1. Order'!AR783)","v":""},{"$f":"IF('1. Order'!AE783=\"\",\"\",'1. Order'!AE783)","v":""}]
[{"$f":"IF('1. Order'!B784=\"\",\"\",'1. Order'!B784)","v":""},{"$f":"IF('1. Order'!I784=\"\",\"\",'1. Order'!I784)","v":""},{"$f":"IF('1. Order'!J784=\"\",\"\",'1. Order'!J784)","v":""},{"$f":"IF('1. Order'!K784=\"\",\"\",'1. Order'!K784)","v":""},{"$f":"IF('1. Order'!M784=\"\",\"\",'1. Order'!M784)","v":""},null,null,{"$f":"IF('1. Order'!AR784=\"\",\"\",'1. Order'!AR784)","v":""},{"$f":"IF('1. Order'!AE784=\"\",\"\",'1. Order'!AE784)","v":""}]
[{"$f":"IF('1. Order'!B785=\"\",\"\",'1. Order'!B785)","v":""},{"$f":"IF('1. Order'!I785=\"\",\"\",'1. Order'!I785)","v":""},{"$f":"IF('1. Order'!J785=\"\",\"\",'1. Order'!J785)","v":""},{"$f":"IF('1. Order'!K785=\"\",\"\",'1. Order'!K785)","v":""},{"$f":"IF('1. Order'!M785=\"\",\"\",'1. Order'!M785)","v":""},null,null,{"$f":"IF('1. Order'!AR785=\"\",\"\",'1. Order'!AR785)","v":""},{"$f":"IF('1. Order'!AE785=\"\",\"\",'1. Order'!AE785)","v":""}]
[{"$f":"IF('1. Order'!B786=\"\",\"\",'1. Order'!B786)","v":""},{"$f":"IF('1. Order'!I786=\"\",\"\",'1. Order'!I786)","v":""},{"$f":"IF('1. Order'!J786=\"\",\"\",'1. Order'!J786)","v":""},{"$f":"IF('1. Order'!K786=\"\",\"\",'1. Order'!K786)","v":""},{"$f":"IF('1. Order'!M786=\"\",\"\",'1. Order'!M786)","v":""},null,null,{"$f":"IF('1. Order'!AR786=\"\",\"\",'1. Order'!AR786)","v":""},{"$f":"IF('1. Order'!AE786=\"\",\"\",'1. Order'!AE786)","v":""}]
[{"$f":"IF('1. Order'!B787=\"\",\"\",'1. Order'!B787)","v":""},{"$f":"IF('1. Order'!I787=\"\",\"\",'1. Order'!I787)","v":""},{"$f":"IF('1. Order'!J787=\"\",\"\",'1. Order'!J787)","v":""},{"$f":"IF('1. Order'!K787=\"\",\"\",'1. Order'!K787)","v":""},{"$f":"IF('1. Order'!M787=\"\",\"\",'1. Order'!M787)","v":""},null,null,{"$f":"IF('1. Order'!AR787=\"\",\"\",'1. Order'!AR787)","v":""},{"$f":"IF('1. Order'!AE787=\"\",\"\",'1. Order'!AE787)","v":""}]
[{"$f":"IF('1. Order'!B788=\"\",\"\",'1. Order'!B788)","v":""},{"$f":"IF('1. Order'!I788=\"\",\"\",'1. Order'!I788)","v":""},{"$f":"IF('1. Order'!J788=\"\",\"\",'1. Order'!J788)","v":""},{"$f":"IF('1. Order'!K788=\"\",\"\",'1. Order'!K788)","v":""},{"$f":"IF('1. Order'!M788=\"\",\"\",'1. Order'!M788)","v":""},null,null,{"$f":"IF('1. Order'!AR788=\"\",\"\",'1. Order'!AR788)","v":""},{"$f":"IF('1. Order'!AE788=\"\",\"\",'1. Order'!AE788)","v":""}]
[{"$f":"IF('1. Order'!B789=\"\",\"\",'1. Order'!B789)","v":""},{"$f":"IF('1. Order'!I789=\"\",\"\",'1. Order'!I789)","v":""},{"$f":"IF('1. Order'!J789=\"\",\"\",'1. Order'!J789)","v":""},{"$f":"IF('1. Order'!K789=\"\",\"\",'1. Order'!K789)","v":""},{"$f":"IF('1. Order'!M789=\"\",\"\",'1. Order'!M789)","v":""},null,null,{"$f":"IF('1. Order'!AR789=\"\",\"\",'1. Order'!AR789)","v":""},{"$f":"IF('1. Order'!AE789=\"\",\"\",'1. Order'!AE789)","v":""}]
[{"$f":"IF('1. Order'!B790=\"\",\"\",'1. Order'!B790)","v":""},{"$f":"IF('1. Order'!I790=\"\",\"\",'1. Order'!I790)","v":""},{"$f":"IF('1. Order'!J790=\"\",\"\",'1. Order'!J790)","v":""},{"$f":"IF('1. Order'!K790=\"\",\"\",'1. Order'!K790)","v":""},{"$f":"IF('1. Order'!M790=\"\",\"\",'1. Order'!M790)","v":""},null,null,{"$f":"IF('1. Order'!AR790=\"\",\"\",'1. Order'!AR790)","v":""},{"$f":"IF('1. Order'!AE790=\"\",\"\",'1. Order'!AE790)","v":""}]
[{"$f":"IF('1. Order'!B791=\"\",\"\",'1. Order'!B791)","v":""},{"$f":"IF('1. Order'!I791=\"\",\"\",'1. Order'!I791)","v":""},{"$f":"IF('1. Order'!J791=\"\",\"\",'1. Order'!J791)","v":""},{"$f":"IF('1. Order'!K791=\"\",\"\",'1. Order'!K791)","v":""},{"$f":"IF('1. Order'!M791=\"\",\"\",'1. Order'!M791)","v":""},null,null,{"$f":"IF('1. Order'!AR791=\"\",\"\",'1. Order'!AR791)","v":""},{"$f":"IF('1. Order'!AE791=\"\",\"\",'1. Order'!AE791)","v":""}]
[{"$f":"IF('1. Order'!B792=\"\",\"\",'1. Order'!B792)","v":""},{"$f":"IF('1. Order'!I792=\"\",\"\",'1. Order'!I792)","v":""},{"$f":"IF('1. Order'!J792=\"\",\"\",'1. Order'!J792)","v":""},{"$f":"IF('1. Order'!K792=\"\",\"\",'1. Order'!K792)","v":""},{"$f":"IF('1. Order'!M792=\"\",\"\",'1. Order'!M792)","v":""},null,null,{"$f":"IF('1. Order'!AR792=\"\",\"\",'1. Order'!AR792)","v":""},{"$f":"IF('1. Order'!AE792=\"\",\"\",'1. Order'!AE792)","v":""}]
[{"$f":"IF('1. Order'!B793=\"\",\"\",'1. Order'!B793)","v":""},{"$f":"IF('1. Order'!I793=\"\",\"\",'1. Order'!I793)","v":""},{"$f":"IF('1. Order'!J793=\"\",\"\",'1. Order'!J793)","v":""},{"$f":"IF('1. Order'!K793=\"\",\"\",'1. Order'!K793)","v":""},{"$f":"IF('1. Order'!M793=\"\",\"\",'1. Order'!M793)","v":""},null,null,{"$f":"IF('1. Order'!AR793=\"\",\"\",'1. Order'!AR793)","v":""},{"$f":"IF('1. Order'!AE793=\"\",\"\",'1. Order'!AE793)","v":""}]
[{"$f":"IF('1. Order'!B794=\"\",\"\",'1. Order'!B794)","v":""},{"$f":"IF('1. Order'!I794=\"\",\"\",'1. Order'!I794)","v":""},{"$f":"IF('1. Order'!J794=\"\",\"\",'1. Order'!J794)","v":""},{"$f":"IF('1. Order'!K794=\"\",\"\",'1. Order'!K794)","v":""},{"$f":"IF('1. Order'!M794=\"\",\"\",'1. Order'!M794)","v":""},null,null,{"$f":"IF('1. Order'!AR794=\"\",\"\",'1. Order'!AR794)","v":""},{"$f":"IF('1. Order'!AE794=\"\",\"\",'1. Order'!AE794)","v":""}]
[{"$f":"IF('1. Order'!B795=\"\",\"\",'1. Order'!B795)","v":""},{"$f":"IF('1. Order'!I795=\"\",\"\",'1. Order'!I795)","v":""},{"$f":"IF('1. Order'!J795=\"\",\"\",'1. Order'!J795)","v":""},{"$f":"IF('1. Order'!K795=\"\",\"\",'1. Order'!K795)","v":""},{"$f":"IF('1. Order'!M795=\"\",\"\",'1. Order'!M795)","v":""},null,null,{"$f":"IF('1. Order'!AR795=\"\",\"\",'1. Order'!AR795)","v":""},{"$f":"IF('1. Order'!AE795=\"\",\"\",'1. Order'!AE795)","v":""}]
[{"$f":"IF('1. Order'!B796=\"\",\"\",'1. Order'!B796)","v":""},{"$f":"IF('1. Order'!I796=\"\",\"\",'1. Order'!I796)","v":""},{"$f":"IF('1. Order'!J796=\"\",\"\",'1. Order'!J796)","v":""},{"$f":"IF('1. Order'!K796=\"\",\"\",'1. Order'!K796)","v":""},{"$f":"IF('1. Order'!M796=\"\",\"\",'1. Order'!M796)","v":""},null,null,{"$f":"IF('1. Order'!AR796=\"\",\"\",'1. Order'!AR796)","v":""},{"$f":"IF('1. Order'!AE796=\"\",\"\",'1. Order'!AE796)","v":""}]
[{"$f":"IF('1. Order'!B797=\"\",\"\",'1. Order'!B797)","v":""},{"$f":"IF('1. Order'!I797=\"\",\"\",'1. Order'!I797)","v":""},{"$f":"IF('1. Order'!J797=\"\",\"\",'1. Order'!J797)","v":""},{"$f":"IF('1. Order'!K797=\"\",\"\",'1. Order'!K797)","v":""},{"$f":"IF('1. Order'!M797=\"\",\"\",'1. Order'!M797)","v":""},null,null,{"$f":"IF('1. Order'!AR797=\"\",\"\",'1. Order'!AR797)","v":""},{"$f":"IF('1. Order'!AE797=\"\",\"\",'1. Order'!AE797)","v":""}]
[{"$f":"IF('1. Order'!B798=\"\",\"\",'1. Order'!B798)","v":""},{"$f":"IF('1. Order'!I798=\"\",\"\",'1. Order'!I798)","v":""},{"$f":"IF('1. Order'!J798=\"\",\"\",'1. Order'!J798)","v":""},{"$f":"IF('1. Order'!K798=\"\",\"\",'1. Order'!K798)","v":""},{"$f":"IF('1. Order'!M798=\"\",\"\",'1. Order'!M798)","v":""},null,null,{"$f":"IF('1. Order'!AR798=\"\",\"\",'1. Order'!AR798)","v":""},{"$f":"IF('1. Order'!AE798=\"\",\"\",'1. Order'!AE798)","v":""}]
[{"$f":"IF('1. Order'!B799=\"\",\"\",'1. Order'!B799)","v":""},{"$f":"IF('1. Order'!I799=\"\",\"\",'1. Order'!I799)","v":""},{"$f":"IF('1. Order'!J799=\"\",\"\",'1. Order'!J799)","v":""},{"$f":"IF('1. Order'!K799=\"\",\"\",'1. Order'!K799)","v":""},{"$f":"IF('1. Order'!M799=\"\",\"\",'1. Order'!M799)","v":""},null,null,{"$f":"IF('1. Order'!AR799=\"\",\"\",'1. Order'!AR799)","v":""},{"$f":"IF('1. Order'!AE799=\"\",\"\",'1. Order'!AE799)","v":""}]
[{"$f":"IF('1. Order'!B800=\"\",\"\",'1. Order'!B800)","v":""},{"$f":"IF('1. Order'!I800=\"\",\"\",'1. Order'!I800)","v":""},{"$f":"IF('1. Order'!J800=\"\",\"\",'1. Order'!J800)","v":""},{"$f":"IF('1. Order'!K800=\"\",\"\",'1. Order'!K800)","v":""},{"$f":"IF('1. Order'!M800=\"\",\"\",'1. Order'!M800)","v":""},null,null,{"$f":"IF('1. Order'!AR800=\"\",\"\",'1. Order'!AR800)","v":""},{"$f":"IF('1. Order'!AE800=\"\",\"\",'1. Order'!AE800)","v":""}]
[{"$f":"IF('1. Order'!B801=\"\",\"\",'1. Order'!B801)","v":""},{"$f":"IF('1. Order'!I801=\"\",\"\",'1. Order'!I801)","v":""},{"$f":"IF('1. Order'!J801=\"\",\"\",'1. Order'!J801)","v":""},{"$f":"IF('1. Order'!K801=\"\",\"\",'1. Order'!K801)","v":""},{"$f":"IF('1. Order'!M801=\"\",\"\",'1. Order'!M801)","v":""},null,null,{"$f":"IF('1. Order'!AR801=\"\",\"\",'1. Order'!AR801)","v":""},{"$f":"IF('1. Order'!AE801=\"\",\"\",'1. Order'!AE801)","v":""}]
[{"$f":"IF('1. Order'!B802=\"\",\"\",'1. Order'!B802)","v":""},{"$f":"IF('1. Order'!I802=\"\",\"\",'1. Order'!I802)","v":""},{"$f":"IF('1. Order'!J802=\"\",\"\",'1. Order'!J802)","v":""},{"$f":"IF('1. Order'!K802=\"\",\"\",'1. Order'!K802)","v":""},{"$f":"IF('1. Order'!M802=\"\",\"\",'1. Order'!M802)","v":""},null,null,{"$f":"IF('1. Order'!AR802=\"\",\"\",'1. Order'!AR802)","v":""},{"$f":"IF('1. Order'!AE802=\"\",\"\",'1. Order'!AE802)","v":""}]
[{"$f":"IF('1. Order'!B803=\"\",\"\",'1. Order'!B803)","v":""},{"$f":"IF('1. Order'!I803=\"\",\"\",'1. Order'!I803)","v":""},{"$f":"IF('1. Order'!J803=\"\",\"\",'1. Order'!J803)","v":""},{"$f":"IF('1. Order'!K803=\"\",\"\",'1. Order'!K803)","v":""},{"$f":"IF('1. Order'!M803=\"\",\"\",'1. Order'!M803)","v":""},null,null,{"$f":"IF('1. Order'!AR803=\"\",\"\",'1. Order'!AR803)","v":""},{"$f":"IF('1. Order'!AE803=\"\",\"\",'1. Order'!AE803)","v":""}]
[{"$f":"IF('1. Order'!B804=\"\",\"\",'1. Order'!B804)","v":""},{"$f":"IF('1. Order'!I804=\"\",\"\",'1. Order'!I804)","v":""},{"$f":"IF('1. Order'!J804=\"\",\"\",'1. Order'!J804)","v":""},{"$f":"IF('1. Order'!K804=\"\",\"\",'1. Order'!K804)","v":""},{"$f":"IF('1. Order'!M804=\"\",\"\",'1. Order'!M804)","v":""},null,null,{"$f":"IF('1. Order'!AR804=\"\",\"\",'1. Order'!AR804)","v":""},{"$f":"IF('1. Order'!AE804=\"\",\"\",'1. Order'!AE804)","v":""}]
[{"$f":"IF('1. Order'!B805=\"\",\"\",'1. Order'!B805)","v":""},{"$f":"IF('1. Order'!I805=\"\",\"\",'1. Order'!I805)","v":""},{"$f":"IF('1. Order'!J805=\"\",\"\",'1. Order'!J805)","v":""},{"$f":"IF('1. Order'!K805=\"\",\"\",'1. Order'!K805)","v":""},{"$f":"IF('1. Order'!M805=\"\",\"\",'1. Order'!M805)","v":""},null,null,{"$f":"IF('1. Order'!AR805=\"\",\"\",'1. Order'!AR805)","v":""},{"$f":"IF('1. Order'!AE805=\"\",\"\",'1. Order'!AE805)","v":""}]
[{"$f":"IF('1. Order'!B806=\"\",\"\",'1. Order'!B806)","v":""},{"$f":"IF('1. Order'!I806=\"\",\"\",'1. Order'!I806)","v":""},{"$f":"IF('1. Order'!J806=\"\",\"\",'1. Order'!J806)","v":""},{"$f":"IF('1. Order'!K806=\"\",\"\",'1. Order'!K806)","v":""},{"$f":"IF('1. Order'!M806=\"\",\"\",'1. Order'!M806)","v":""},null,null,{"$f":"IF('1. Order'!AR806=\"\",\"\",'1. Order'!AR806)","v":""},{"$f":"IF('1. Order'!AE806=\"\",\"\",'1. Order'!AE806)","v":""}]
[{"$f":"IF('1. Order'!B807=\"\",\"\",'1. Order'!B807)","v":""},{"$f":"IF('1. Order'!I807=\"\",\"\",'1. Order'!I807)","v":""},{"$f":"IF('1. Order'!J807=\"\",\"\",'1. Order'!J807)","v":""},{"$f":"IF('1. Order'!K807=\"\",\"\",'1. Order'!K807)","v":""},{"$f":"IF('1. Order'!M807=\"\",\"\",'1. Order'!M807)","v":""},null,null,{"$f":"IF('1. Order'!AR807=\"\",\"\",'1. Order'!AR807)","v":""},{"$f":"IF('1. Order'!AE807=\"\",\"\",'1. Order'!AE807)","v":""}]
[{"$f":"IF('1. Order'!B808=\"\",\"\",'1. Order'!B808)","v":""},{"$f":"IF('1. Order'!I808=\"\",\"\",'1. Order'!I808)","v":""},{"$f":"IF('1. Order'!J808=\"\",\"\",'1. Order'!J808)","v":""},{"$f":"IF('1. Order'!K808=\"\",\"\",'1. Order'!K808)","v":""},{"$f":"IF('1. Order'!M808=\"\",\"\",'1. Order'!M808)","v":""},null,null,{"$f":"IF('1. Order'!AR808=\"\",\"\",'1. Order'!AR808)","v":""},{"$f":"IF('1. Order'!AE808=\"\",\"\",'1. Order'!AE808)","v":""}]
[{"$f":"IF('1. Order'!B809=\"\",\"\",'1. Order'!B809)","v":""},{"$f":"IF('1. Order'!I809=\"\",\"\",'1. Order'!I809)","v":""},{"$f":"IF('1. Order'!J809=\"\",\"\",'1. Order'!J809)","v":""},{"$f":"IF('1. Order'!K809=\"\",\"\",'1. Order'!K809)","v":""},{"$f":"IF('1. Order'!M809=\"\",\"\",'1. Order'!M809)","v":""},null,null,{"$f":"IF('1. Order'!AR809=\"\",\"\",'1. Order'!AR809)","v":""},{"$f":"IF('1. Order'!AE809=\"\",\"\",'1. Order'!AE809)","v":""}]
[{"$f":"IF('1. Order'!B810=\"\",\"\",'1. Order'!B810)","v":""},{"$f":"IF('1. Order'!I810=\"\",\"\",'1. Order'!I810)","v":""},{"$f":"IF('1. Order'!J810=\"\",\"\",'1. Order'!J810)","v":""},{"$f":"IF('1. Order'!K810=\"\",\"\",'1. Order'!K810)","v":""},{"$f":"IF('1. Order'!M810=\"\",\"\",'1. Order'!M810)","v":""},null,null,{"$f":"IF('1. Order'!AR810=\"\",\"\",'1. Order'!AR810)","v":""},{"$f":"IF('1. Order'!AE810=\"\",\"\",'1. Order'!AE810)","v":""}]
[{"$f":"IF('1. Order'!B811=\"\",\"\",'1. Order'!B811)","v":""},{"$f":"IF('1. Order'!I811=\"\",\"\",'1. Order'!I811)","v":""},{"$f":"IF('1. Order'!J811=\"\",\"\",'1. Order'!J811)","v":""},{"$f":"IF('1. Order'!K811=\"\",\"\",'1. Order'!K811)","v":""},{"$f":"IF('1. Order'!M811=\"\",\"\",'1. Order'!M811)","v":""},null,null,{"$f":"IF('1. Order'!AR811=\"\",\"\",'1. Order'!AR811)","v":""},{"$f":"IF('1. Order'!AE811=\"\",\"\",'1. Order'!AE811)","v":""}]
[{"$f":"IF('1. Order'!B812=\"\",\"\",'1. Order'!B812)","v":""},{"$f":"IF('1. Order'!I812=\"\",\"\",'1. Order'!I812)","v":""},{"$f":"IF('1. Order'!J812=\"\",\"\",'1. Order'!J812)","v":""},{"$f":"IF('1. Order'!K812=\"\",\"\",'1. Order'!K812)","v":""},{"$f":"IF('1. Order'!M812=\"\",\"\",'1. Order'!M812)","v":""},null,null,{"$f":"IF('1. Order'!AR812=\"\",\"\",'1. Order'!AR812)","v":""},{"$f":"IF('1. Order'!AE812=\"\",\"\",'1. Order'!AE812)","v":""}]
[{"$f":"IF('1. Order'!B813=\"\",\"\",'1. Order'!B813)","v":""},{"$f":"IF('1. Order'!I813=\"\",\"\",'1. Order'!I813)","v":""},{"$f":"IF('1. Order'!J813=\"\",\"\",'1. Order'!J813)","v":""},{"$f":"IF('1. Order'!K813=\"\",\"\",'1. Order'!K813)","v":""},{"$f":"IF('1. Order'!M813=\"\",\"\",'1. Order'!M813)","v":""},null,null,{"$f":"IF('1. Order'!AR813=\"\",\"\",'1. Order'!AR813)","v":""},{"$f":"IF('1. Order'!AE813=\"\",\"\",'1. Order'!AE813)","v":""}]
[{"$f":"IF('1. Order'!B814=\"\",\"\",'1. Order'!B814)","v":""},{"$f":"IF('1. Order'!I814=\"\",\"\",'1. Order'!I814)","v":""},{"$f":"IF('1. Order'!J814=\"\",\"\",'1. Order'!J814)","v":""},{"$f":"IF('1. Order'!K814=\"\",\"\",'1. Order'!K814)","v":""},{"$f":"IF('1. Order'!M814=\"\",\"\",'1. Order'!M814)","v":""},null,null,{"$f":"IF('1. Order'!AR814=\"\",\"\",'1. Order'!AR814)","v":""},{"$f":"IF('1. Order'!AE814=\"\",\"\",'1. Order'!AE814)","v":""}]
[{"$f":"IF('1. Order'!B815=\"\",\"\",'1. Order'!B815)","v":""},{"$f":"IF('1. Order'!I815=\"\",\"\",'1. Order'!I815)","v":""},{"$f":"IF('1. Order'!J815=\"\",\"\",'1. Order'!J815)","v":""},{"$f":"IF('1. Order'!K815=\"\",\"\",'1. Order'!K815)","v":""},{"$f":"IF('1. Order'!M815=\"\",\"\",'1. Order'!M815)","v":""},null,null,{"$f":"IF('1. Order'!AR815=\"\",\"\",'1. Order'!AR815)","v":""},{"$f":"IF('1. Order'!AE815=\"\",\"\",'1. Order'!AE815)","v":""}]
[{"$f":"IF('1. Order'!B816=\"\",\"\",'1. Order'!B816)","v":""},{"$f":"IF('1. Order'!I816=\"\",\"\",'1. Order'!I816)","v":""},{"$f":"IF('1. Order'!J816=\"\",\"\",'1. Order'!J816)","v":""},{"$f":"IF('1. Order'!K816=\"\",\"\",'1. Order'!K816)","v":""},{"$f":"IF('1. Order'!M816=\"\",\"\",'1. Order'!M816)","v":""},null,null,{"$f":"IF('1. Order'!AR816=\"\",\"\",'1. Order'!AR816)","v":""},{"$f":"IF('1. Order'!AE816=\"\",\"\",'1. Order'!AE816)","v":""}]
[{"$f":"IF('1. Order'!B817=\"\",\"\",'1. Order'!B817)","v":""},{"$f":"IF('1. Order'!I817=\"\",\"\",'1. Order'!I817)","v":""},{"$f":"IF('1. Order'!J817=\"\",\"\",'1. Order'!J817)","v":""},{"$f":"IF('1. Order'!K817=\"\",\"\",'1. Order'!K817)","v":""},{"$f":"IF('1. Order'!M817=\"\",\"\",'1. Order'!M817)","v":""},null,null,{"$f":"IF('1. Order'!AR817=\"\",\"\",'1. Order'!AR817)","v":""},{"$f":"IF('1. Order'!AE817=\"\",\"\",'1. Order'!AE817)","v":""}]
[{"$f":"IF('1. Order'!B818=\"\",\"\",'1. Order'!B818)","v":""},{"$f":"IF('1. Order'!I818=\"\",\"\",'1. Order'!I818)","v":""},{"$f":"IF('1. Order'!J818=\"\",\"\",'1. Order'!J818)","v":""},{"$f":"IF('1. Order'!K818=\"\",\"\",'1. Order'!K818)","v":""},{"$f":"IF('1. Order'!M818=\"\",\"\",'1. Order'!M818)","v":""},null,null,{"$f":"IF('1. Order'!AR818=\"\",\"\",'1. Order'!AR818)","v":""},{"$f":"IF('1. Order'!AE818=\"\",\"\",'1. Order'!AE818)","v":""}]
[{"$f":"IF('1. Order'!B819=\"\",\"\",'1. Order'!B819)","v":""},{"$f":"IF('1. Order'!I819=\"\",\"\",'1. Order'!I819)","v":""},{"$f":"IF('1. Order'!J819=\"\",\"\",'1. Order'!J819)","v":""},{"$f":"IF('1. Order'!K819=\"\",\"\",'1. Order'!K819)","v":""},{"$f":"IF('1. Order'!M819=\"\",\"\",'1. Order'!M819)","v":""},null,null,{"$f":"IF('1. Order'!AR819=\"\",\"\",'1. Order'!AR819)","v":""},{"$f":"IF('1. Order'!AE819=\"\",\"\",'1. Order'!AE819)","v":""}]
[{"$f":"IF('1. Order'!B820=\"\",\"\",'1. Order'!B820)","v":""},{"$f":"IF('1. Order'!I820=\"\",\"\",'1. Order'!I820)","v":""},{"$f":"IF('1. Order'!J820=\"\",\"\",'1. Order'!J820)","v":""},{"$f":"IF('1. Order'!K820=\"\",\"\",'1. Order'!K820)","v":""},{"$f":"IF('1. Order'!M820=\"\",\"\",'1. Order'!M820)","v":""},null,null,{"$f":"IF('1. Order'!AR820=\"\",\"\",'1. Order'!AR820)","v":""},{"$f":"IF('1. Order'!AE820=\"\",\"\",'1. Order'!AE820)","v":""}]
[{"$f":"IF('1. Order'!B821=\"\",\"\",'1. Order'!B821)","v":""},{"$f":"IF('1. Order'!I821=\"\",\"\",'1. Order'!I821)","v":""},{"$f":"IF('1. Order'!J821=\"\",\"\",'1. Order'!J821)","v":""},{"$f":"IF('1. Order'!K821=\"\",\"\",'1. Order'!K821)","v":""},{"$f":"IF('1. Order'!M821=\"\",\"\",'1. Order'!M821)","v":""},null,null,{"$f":"IF('1. Order'!AR821=\"\",\"\",'1. Order'!AR821)","v":""},{"$f":"IF('1. Order'!AE821=\"\",\"\",'1. Order'!AE821)","v":""}]
[{"$f":"IF('1. Order'!B822=\"\",\"\",'1. Order'!B822)","v":""},{"$f":"IF('1. Order'!I822=\"\",\"\",'1. Order'!I822)","v":""},{"$f":"IF('1. Order'!J822=\"\",\"\",'1. Order'!J822)","v":""},{"$f":"IF('1. Order'!K822=\"\",\"\",'1. Order'!K822)","v":""},{"$f":"IF('1. Order'!M822=\"\",\"\",'1. Order'!M822)","v":""},null,null,{"$f":"IF('1. Order'!AR822=\"\",\"\",'1. Order'!AR822)","v":""},{"$f":"IF('1. Order'!AE822=\"\",\"\",'1. Order'!AE822)","v":""}]
[{"$f":"IF('1. Order'!B823=\"\",\"\",'1. Order'!B823)","v":""},{"$f":"IF('1. Order'!I823=\"\",\"\",'1. Order'!I823)","v":""},{"$f":"IF('1. Order'!J823=\"\",\"\",'1. Order'!J823)","v":""},{"$f":"IF('1. Order'!K823=\"\",\"\",'1. Order'!K823)","v":""},{"$f":"IF('1. Order'!M823=\"\",\"\",'1. Order'!M823)","v":""},null,null,{"$f":"IF('1. Order'!AR823=\"\",\"\",'1. Order'!AR823)","v":""},{"$f":"IF('1. Order'!AE823=\"\",\"\",'1. Order'!AE823)","v":""}]
[{"$f":"IF('1. Order'!B824=\"\",\"\",'1. Order'!B824)","v":""},{"$f":"IF('1. Order'!I824=\"\",\"\",'1. Order'!I824)","v":""},{"$f":"IF('1. Order'!J824=\"\",\"\",'1. Order'!J824)","v":""},{"$f":"IF('1. Order'!K824=\"\",\"\",'1. Order'!K824)","v":""},{"$f":"IF('1. Order'!M824=\"\",\"\",'1. Order'!M824)","v":""},null,null,{"$f":"IF('1. Order'!AR824=\"\",\"\",'1. Order'!AR824)","v":""},{"$f":"IF('1. Order'!AE824=\"\",\"\",'1. Order'!AE824)","v":""}]
[{"$f":"IF('1. Order'!B825=\"\",\"\",'1. Order'!B825)","v":""},{"$f":"IF('1. Order'!I825=\"\",\"\",'1. Order'!I825)","v":""},{"$f":"IF('1. Order'!J825=\"\",\"\",'1. Order'!J825)","v":""},{"$f":"IF('1. Order'!K825=\"\",\"\",'1. Order'!K825)","v":""},{"$f":"IF('1. Order'!M825=\"\",\"\",'1. Order'!M825)","v":""},null,null,{"$f":"IF('1. Order'!AR825=\"\",\"\",'1. Order'!AR825)","v":""},{"$f":"IF('1. Order'!AE825=\"\",\"\",'1. Order'!AE825)","v":""}]
[{"$f":"IF('1. Order'!B826=\"\",\"\",'1. Order'!B826)","v":""},{"$f":"IF('1. Order'!I826=\"\",\"\",'1. Order'!I826)","v":""},{"$f":"IF('1. Order'!J826=\"\",\"\",'1. Order'!J826)","v":""},{"$f":"IF('1. Order'!K826=\"\",\"\",'1. Order'!K826)","v":""},{"$f":"IF('1. Order'!M826=\"\",\"\",'1. Order'!M826)","v":""},null,null,{"$f":"IF('1. Order'!AR826=\"\",\"\",'1. Order'!AR826)","v":""},{"$f":"IF('1. Order'!AE826=\"\",\"\",'1. Order'!AE826)","v":""}]
[{"$f":"IF('1. Order'!B827=\"\",\"\",'1. Order'!B827)","v":""},{"$f":"IF('1. Order'!I827=\"\",\"\",'1. Order'!I827)","v":""},{"$f":"IF('1. Order'!J827=\"\",\"\",'1. Order'!J827)","v":""},{"$f":"IF('1. Order'!K827=\"\",\"\",'1. Order'!K827)","v":""},{"$f":"IF('1. Order'!M827=\"\",\"\",'1. Order'!M827)","v":""},null,null,{"$f":"IF('1. Order'!AR827=\"\",\"\",'1. Order'!AR827)","v":""},{"$f":"IF('1. Order'!AE827=\"\",\"\",'1. Order'!AE827)","v":""}]
[{"$f":"IF('1. Order'!B828=\"\",\"\",'1. Order'!B828)","v":""},{"$f":"IF('1. Order'!I828=\"\",\"\",'1. Order'!I828)","v":""},{"$f":"IF('1. Order'!J828=\"\",\"\",'1. Order'!J828)","v":""},{"$f":"IF('1. Order'!K828=\"\",\"\",'1. Order'!K828)","v":""},{"$f":"IF('1. Order'!M828=\"\",\"\",'1. Order'!M828)","v":""},null,null,{"$f":"IF('1. Order'!AR828=\"\",\"\",'1. Order'!AR828)","v":""},{"$f":"IF('1. Order'!AE828=\"\",\"\",'1. Order'!AE828)","v":""}]
[{"$f":"IF('1. Order'!B829=\"\",\"\",'1. Order'!B829)","v":""},{"$f":"IF('1. Order'!I829=\"\",\"\",'1. Order'!I829)","v":""},{"$f":"IF('1. Order'!J829=\"\",\"\",'1. Order'!J829)","v":""},{"$f":"IF('1. Order'!K829=\"\",\"\",'1. Order'!K829)","v":""},{"$f":"IF('1. Order'!M829=\"\",\"\",'1. Order'!M829)","v":""},null,null,{"$f":"IF('1. Order'!AR829=\"\",\"\",'1. Order'!AR829)","v":""},{"$f":"IF('1. Order'!AE829=\"\",\"\",'1. Order'!AE829)","v":""}]
[{"$f":"IF('1. Order'!B830=\"\",\"\",'1. Order'!B830)","v":""},{"$f":"IF('1. Order'!I830=\"\",\"\",'1. Order'!I830)","v":""},{"$f":"IF('1. Order'!J830=\"\",\"\",'1. Order'!J830)","v":""},{"$f":"IF('1. Order'!K830=\"\",\"\",'1. Order'!K830)","v":""},{"$f":"IF('1. Order'!M830=\"\",\"\",'1. Order'!M830)","v":""},null,null,{"$f":"IF('1. Order'!AR830=\"\",\"\",'1. Order'!AR830)","v":""},{"$f":"IF('1. Order'!AE830=\"\",\"\",'1. Order'!AE830)","v":""}]
[{"$f":"IF('1. Order'!B831=\"\",\"\",'1. Order'!B831)","v":""},{"$f":"IF('1. Order'!I831=\"\",\"\",'1. Order'!I831)","v":""},{"$f":"IF('1. Order'!J831=\"\",\"\",'1. Order'!J831)","v":""},{"$f":"IF('1. Order'!K831=\"\",\"\",'1. Order'!K831)","v":""},{"$f":"IF('1. Order'!M831=\"\",\"\",'1. Order'!M831)","v":""},null,null,{"$f":"IF('1. Order'!AR831=\"\",\"\",'1. Order'!AR831)","v":""},{"$f":"IF('1. Order'!AE831=\"\",\"\",'1. Order'!AE831)","v":""}]
[{"$f":"IF('1. Order'!B832=\"\",\"\",'1. Order'!B832)","v":""},{"$f":"IF('1. Order'!I832=\"\",\"\",'1. Order'!I832)","v":""},{"$f":"IF('1. Order'!J832=\"\",\"\",'1. Order'!J832)","v":""},{"$f":"IF('1. Order'!K832=\"\",\"\",'1. Order'!K832)","v":""},{"$f":"IF('1. Order'!M832=\"\",\"\",'1. Order'!M832)","v":""},null,null,{"$f":"IF('1. Order'!AR832=\"\",\"\",'1. Order'!AR832)","v":""},{"$f":"IF('1. Order'!AE832=\"\",\"\",'1. Order'!AE832)","v":""}]
[{"$f":"IF('1. Order'!B833=\"\",\"\",'1. Order'!B833)","v":""},{"$f":"IF('1. Order'!I833=\"\",\"\",'1. Order'!I833)","v":""},{"$f":"IF('1. Order'!J833=\"\",\"\",'1. Order'!J833)","v":""},{"$f":"IF('1. Order'!K833=\"\",\"\",'1. Order'!K833)","v":""},{"$f":"IF('1. Order'!M833=\"\",\"\",'1. Order'!M833)","v":""},null,null,{"$f":"IF('1. Order'!AR833=\"\",\"\",'1. Order'!AR833)","v":""},{"$f":"IF('1. Order'!AE833=\"\",\"\",'1. Order'!AE833)","v":""}]
[{"$f":"IF('1. Order'!B834=\"\",\"\",'1. Order'!B834)","v":""},{"$f":"IF('1. Order'!I834=\"\",\"\",'1. Order'!I834)","v":""},{"$f":"IF('1. Order'!J834=\"\",\"\",'1. Order'!J834)","v":""},{"$f":"IF('1. Order'!K834=\"\",\"\",'1. Order'!K834)","v":""},{"$f":"IF('1. Order'!M834=\"\",\"\",'1. Order'!M834)","v":""},null,null,{"$f":"IF('1. Order'!AR834=\"\",\"\",'1. Order'!AR834)","v":""},{"$f":"IF('1. Order'!AE834=\"\",\"\",'1. Order'!AE834)","v":""}]
[{"$f":"IF('1. Order'!B835=\"\",\"\",'1. Order'!B835)","v":""},{"$f":"IF('1. Order'!I835=\"\",\"\",'1. Order'!I835)","v":""},{"$f":"IF('1. Order'!J835=\"\",\"\",'1. Order'!J835)","v":""},{"$f":"IF('1. Order'!K835=\"\",\"\",'1. Order'!K835)","v":""},{"$f":"IF('1. Order'!M835=\"\",\"\",'1. Order'!M835)","v":""},null,null,{"$f":"IF('1. Order'!AR835=\"\",\"\",'1. Order'!AR835)","v":""},{"$f":"IF('1. Order'!AE835=\"\",\"\",'1. Order'!AE835)","v":""}]
[{"$f":"IF('1. Order'!B836=\"\",\"\",'1. Order'!B836)","v":""},{"$f":"IF('1. Order'!I836=\"\",\"\",'1. Order'!I836)","v":""},{"$f":"IF('1. Order'!J836=\"\",\"\",'1. Order'!J836)","v":""},{"$f":"IF('1. Order'!K836=\"\",\"\",'1. Order'!K836)","v":""},{"$f":"IF('1. Order'!M836=\"\",\"\",'1. Order'!M836)","v":""},null,null,{"$f":"IF('1. Order'!AR836=\"\",\"\",'1. Order'!AR836)","v":""},{"$f":"IF('1. Order'!AE836=\"\",\"\",'1. Order'!AE836)","v":""}]
[{"$f":"IF('1. Order'!B837=\"\",\"\",'1. Order'!B837)","v":""},{"$f":"IF('1. Order'!I837=\"\",\"\",'1. Order'!I837)","v":""},{"$f":"IF('1. Order'!J837=\"\",\"\",'1. Order'!J837)","v":""},{"$f":"IF('1. Order'!K837=\"\",\"\",'1. Order'!K837)","v":""},{"$f":"IF('1. Order'!M837=\"\",\"\",'1. Order'!M837)","v":""},null,null,{"$f":"IF('1. Order'!AR837=\"\",\"\",'1. Order'!AR837)","v":""},{"$f":"IF('1. Order'!AE837=\"\",\"\",'1. Order'!AE837)","v":""}]
[{"$f":"IF('1. Order'!B838=\"\",\"\",'1. Order'!B838)","v":""},{"$f":"IF('1. Order'!I838=\"\",\"\",'1. Order'!I838)","v":""},{"$f":"IF('1. Order'!J838=\"\",\"\",'1. Order'!J838)","v":""},{"$f":"IF('1. Order'!K838=\"\",\"\",'1. Order'!K838)","v":""},{"$f":"IF('1. Order'!M838=\"\",\"\",'1. Order'!M838)","v":""},null,null,{"$f":"IF('1. Order'!AR838=\"\",\"\",'1. Order'!AR838)","v":""},{"$f":"IF('1. Order'!AE838=\"\",\"\",'1. Order'!AE838)","v":""}]
[{"$f":"IF('1. Order'!B839=\"\",\"\",'1. Order'!B839)","v":""},{"$f":"IF('1. Order'!I839=\"\",\"\",'1. Order'!I839)","v":""},{"$f":"IF('1. Order'!J839=\"\",\"\",'1. Order'!J839)","v":""},{"$f":"IF('1. Order'!K839=\"\",\"\",'1. Order'!K839)","v":""},{"$f":"IF('1. Order'!M839=\"\",\"\",'1. Order'!M839)","v":""},null,null,{"$f":"IF('1. Order'!AR839=\"\",\"\",'1. Order'!AR839)","v":""},{"$f":"IF('1. Order'!AE839=\"\",\"\",'1. Order'!AE839)","v":""}]
[{"$f":"IF('1. Order'!B840=\"\",\"\",'1. Order'!B840)","v":""},{"$f":"IF('1. Order'!I840=\"\",\"\",'1. Order'!I840)","v":""},{"$f":"IF('1. Order'!J840=\"\",\"\",'1. Order'!J840)","v":""},{"$f":"IF('1. Order'!K840=\"\",\"\",'1. Order'!K840)","v":""},{"$f":"IF('1. Order'!M840=\"\",\"\",'1. Order'!M840)","v":""},null,null,{"$f":"IF('1. Order'!AR840=\"\",\"\",'1. Order'!AR840)","v":""},{"$f":"IF('1. Order'!AE840=\"\",\"\",'1. Order'!AE840)","v":""}]
[{"$f":"IF('1. Order'!B841=\"\",\"\",'1. Order'!B841)","v":""},{"$f":"IF('1. Order'!I841=\"\",\"\",'1. Order'!I841)","v":""},{"$f":"IF('1. Order'!J841=\"\",\"\",'1. Order'!J841)","v":""},{"$f":"IF('1. Order'!K841=\"\",\"\",'1. Order'!K841)","v":""},{"$f":"IF('1. Order'!M841=\"\",\"\",'1. Order'!M841)","v":""},null,null,{"$f":"IF('1. Order'!AR841=\"\",\"\",'1. Order'!AR841)","v":""},{"$f":"IF('1. Order'!AE841=\"\",\"\",'1. Order'!AE841)","v":""}]
[{"$f":"IF('1. Order'!B842=\"\",\"\",'1. Order'!B842)","v":""},{"$f":"IF('1. Order'!I842=\"\",\"\",'1. Order'!I842)","v":""},{"$f":"IF('1. Order'!J842=\"\",\"\",'1. Order'!J842)","v":""},{"$f":"IF('1. Order'!K842=\"\",\"\",'1. Order'!K842)","v":""},{"$f":"IF('1. Order'!M842=\"\",\"\",'1. Order'!M842)","v":""},null,null,{"$f":"IF('1. Order'!AR842=\"\",\"\",'1. Order'!AR842)","v":""},{"$f":"IF('1. Order'!AE842=\"\",\"\",'1. Order'!AE842)","v":""}]
[{"$f":"IF('1. Order'!B843=\"\",\"\",'1. Order'!B843)","v":""},{"$f":"IF('1. Order'!I843=\"\",\"\",'1. Order'!I843)","v":""},{"$f":"IF('1. Order'!J843=\"\",\"\",'1. Order'!J843)","v":""},{"$f":"IF('1. Order'!K843=\"\",\"\",'1. Order'!K843)","v":""},{"$f":"IF('1. Order'!M843=\"\",\"\",'1. Order'!M843)","v":""},null,null,{"$f":"IF('1. Order'!AR843=\"\",\"\",'1. Order'!AR843)","v":""},{"$f":"IF('1. Order'!AE843=\"\",\"\",'1. Order'!AE843)","v":""}]
[{"$f":"IF('1. Order'!B844=\"\",\"\",'1. Order'!B844)","v":""},{"$f":"IF('1. Order'!I844=\"\",\"\",'1. Order'!I844)","v":""},{"$f":"IF('1. Order'!J844=\"\",\"\",'1. Order'!J844)","v":""},{"$f":"IF('1. Order'!K844=\"\",\"\",'1. Order'!K844)","v":""},{"$f":"IF('1. Order'!M844=\"\",\"\",'1. Order'!M844)","v":""},null,null,{"$f":"IF('1. Order'!AR844=\"\",\"\",'1. Order'!AR844)","v":""},{"$f":"IF('1. Order'!AE844=\"\",\"\",'1. Order'!AE844)","v":""}]
[{"$f":"IF('1. Order'!B845=\"\",\"\",'1. Order'!B845)","v":""},{"$f":"IF('1. Order'!I845=\"\",\"\",'1. Order'!I845)","v":""},{"$f":"IF('1. Order'!J845=\"\",\"\",'1. Order'!J845)","v":""},{"$f":"IF('1. Order'!K845=\"\",\"\",'1. Order'!K845)","v":""},{"$f":"IF('1. Order'!M845=\"\",\"\",'1. Order'!M845)","v":""},null,null,{"$f":"IF('1. Order'!AR845=\"\",\"\",'1. Order'!AR845)","v":""},{"$f":"IF('1. Order'!AE845=\"\",\"\",'1. Order'!AE845)","v":""}]
[{"$f":"IF('1. Order'!B846=\"\",\"\",'1. Order'!B846)","v":""},{"$f":"IF('1. Order'!I846=\"\",\"\",'1. Order'!I846)","v":""},{"$f":"IF('1. Order'!J846=\"\",\"\",'1. Order'!J846)","v":""},{"$f":"IF('1. Order'!K846=\"\",\"\",'1. Order'!K846)","v":""},{"$f":"IF('1. Order'!M846=\"\",\"\",'1. Order'!M846)","v":""},null,null,{"$f":"IF('1. Order'!AR846=\"\",\"\",'1. Order'!AR846)","v":""},{"$f":"IF('1. Order'!AE846=\"\",\"\",'1. Order'!AE846)","v":""}]
[{"$f":"IF('1. Order'!B847=\"\",\"\",'1. Order'!B847)","v":""},{"$f":"IF('1. Order'!I847=\"\",\"\",'1. Order'!I847)","v":""},{"$f":"IF('1. Order'!J847=\"\",\"\",'1. Order'!J847)","v":""},{"$f":"IF('1. Order'!K847=\"\",\"\",'1. Order'!K847)","v":""},{"$f":"IF('1. Order'!M847=\"\",\"\",'1. Order'!M847)","v":""},null,null,{"$f":"IF('1. Order'!AR847=\"\",\"\",'1. Order'!AR847)","v":""},{"$f":"IF('1. Order'!AE847=\"\",\"\",'1. Order'!AE847)","v":""}]
[{"$f":"IF('1. Order'!B848=\"\",\"\",'1. Order'!B848)","v":""},{"$f":"IF('1. Order'!I848=\"\",\"\",'1. Order'!I848)","v":""},{"$f":"IF('1. Order'!J848=\"\",\"\",'1. Order'!J848)","v":""},{"$f":"IF('1. Order'!K848=\"\",\"\",'1. Order'!K848)","v":""},{"$f":"IF('1. Order'!M848=\"\",\"\",'1. Order'!M848)","v":""},null,null,{"$f":"IF('1. Order'!AR848=\"\",\"\",'1. Order'!AR848)","v":""},{"$f":"IF('1. Order'!AE848=\"\",\"\",'1. Order'!AE848)","v":""}]
[{"$f":"IF('1. Order'!B849=\"\",\"\",'1. Order'!B849)","v":""},{"$f":"IF('1. Order'!I849=\"\",\"\",'1. Order'!I849)","v":""},{"$f":"IF('1. Order'!J849=\"\",\"\",'1. Order'!J849)","v":""},{"$f":"IF('1. Order'!K849=\"\",\"\",'1. Order'!K849)","v":""},{"$f":"IF('1. Order'!M849=\"\",\"\",'1. Order'!M849)","v":""},null,null,{"$f":"IF('1. Order'!AR849=\"\",\"\",'1. Order'!AR849)","v":""},{"$f":"IF('1. Order'!AE849=\"\",\"\",'1. Order'!AE849)","v":""}]
[{"$f":"IF('1. Order'!B850=\"\",\"\",'1. Order'!B850)","v":""},{"$f":"IF('1. Order'!I850=\"\",\"\",'1. Order'!I850)","v":""},{"$f":"IF('1. Order'!J850=\"\",\"\",'1. Order'!J850)","v":""},{"$f":"IF('1. Order'!K850=\"\",\"\",'1. Order'!K850)","v":""},{"$f":"IF('1. Order'!M850=\"\",\"\",'1. Order'!M850)","v":""},null,null,{"$f":"IF('1. Order'!AR850=\"\",\"\",'1. Order'!AR850)","v":""},{"$f":"IF('1. Order'!AE850=\"\",\"\",'1. Order'!AE850)","v":""}]
[{"$f":"IF('1. Order'!B851=\"\",\"\",'1. Order'!B851)","v":""},{"$f":"IF('1. Order'!I851=\"\",\"\",'1. Order'!I851)","v":""},{"$f":"IF('1. Order'!J851=\"\",\"\",'1. Order'!J851)","v":""},{"$f":"IF('1. Order'!K851=\"\",\"\",'1. Order'!K851)","v":""},{"$f":"IF('1. Order'!M851=\"\",\"\",'1. Order'!M851)","v":""},null,null,{"$f":"IF('1. Order'!AR851=\"\",\"\",'1. Order'!AR851)","v":""},{"$f":"IF('1. Order'!AE851=\"\",\"\",'1. Order'!AE851)","v":""}]
[{"$f":"IF('1. Order'!B852=\"\",\"\",'1. Order'!B852)","v":""},{"$f":"IF('1. Order'!I852=\"\",\"\",'1. Order'!I852)","v":""},{"$f":"IF('1. Order'!J852=\"\",\"\",'1. Order'!J852)","v":""},{"$f":"IF('1. Order'!K852=\"\",\"\",'1. Order'!K852)","v":""},{"$f":"IF('1. Order'!M852=\"\",\"\",'1. Order'!M852)","v":""},null,null,{"$f":"IF('1. Order'!AR852=\"\",\"\",'1. Order'!AR852)","v":""},{"$f":"IF('1. Order'!AE852=\"\",\"\",'1. Order'!AE852)","v":""}]
[{"$f":"IF('1. Order'!B853=\"\",\"\",'1. Order'!B853)","v":""},{"$f":"IF('1. Order'!I853=\"\",\"\",'1. Order'!I853)","v":""},{"$f":"IF('1. Order'!J853=\"\",\"\",'1. Order'!J853)","v":""},{"$f":"IF('1. Order'!K853=\"\",\"\",'1. Order'!K853)","v":""},{"$f":"IF('1. Order'!M853=\"\",\"\",'1. Order'!M853)","v":""},null,null,{"$f":"IF('1. Order'!AR853=\"\",\"\",'1. Order'!AR853)","v":""},{"$f":"IF('1. Order'!AE853=\"\",\"\",'1. Order'!AE853)","v":""}]
[{"$f":"IF('1. Order'!B854=\"\",\"\",'1. Order'!B854)","v":""},{"$f":"IF('1. Order'!I854=\"\",\"\",'1. Order'!I854)","v":""},{"$f":"IF('1. Order'!J854=\"\",\"\",'1. Order'!J854)","v":""},{"$f":"IF('1. Order'!K854=\"\",\"\",'1. Order'!K854)","v":""},{"$f":"IF('1. Order'!M854=\"\",\"\",'1. Order'!M854)","v":""},null,null,{"$f":"IF('1. Order'!AR854=\"\",\"\",'1. Order'!AR854)","v":""},{"$f":"IF('1. Order'!AE854=\"\",\"\",'1. Order'!AE854)","v":""}]
[{"$f":"IF('1. Order'!B855=\"\",\"\",'1. Order'!B855)","v":""},{"$f":"IF('1. Order'!I855=\"\",\"\",'1. Order'!I855)","v":""},{"$f":"IF('1. Order'!J855=\"\",\"\",'1. Order'!J855)","v":""},{"$f":"IF('1. Order'!K855=\"\",\"\",'1. Order'!K855)","v":""},{"$f":"IF('1. Order'!M855=\"\",\"\",'1. Order'!M855)","v":""},null,null,{"$f":"IF('1. Order'!AR855=\"\",\"\",'1. Order'!AR855)","v":""},{"$f":"IF('1. Order'!AE855=\"\",\"\",'1. Order'!AE855)","v":""}]
[{"$f":"IF('1. Order'!B856=\"\",\"\",'1. Order'!B856)","v":""},{"$f":"IF('1. Order'!I856=\"\",\"\",'1. Order'!I856)","v":""},{"$f":"IF('1. Order'!J856=\"\",\"\",'1. Order'!J856)","v":""},{"$f":"IF('1. Order'!K856=\"\",\"\",'1. Order'!K856)","v":""},{"$f":"IF('1. Order'!M856=\"\",\"\",'1. Order'!M856)","v":""},null,null,{"$f":"IF('1. Order'!AR856=\"\",\"\",'1. Order'!AR856)","v":""},{"$f":"IF('1. Order'!AE856=\"\",\"\",'1. Order'!AE856)","v":""}]
[{"$f":"IF('1. Order'!B857=\"\",\"\",'1. Order'!B857)","v":""},{"$f":"IF('1. Order'!I857=\"\",\"\",'1. Order'!I857)","v":""},{"$f":"IF('1. Order'!J857=\"\",\"\",'1. Order'!J857)","v":""},{"$f":"IF('1. Order'!K857=\"\",\"\",'1. Order'!K857)","v":""},{"$f":"IF('1. Order'!M857=\"\",\"\",'1. Order'!M857)","v":""},null,null,{"$f":"IF('1. Order'!AR857=\"\",\"\",'1. Order'!AR857)","v":""},{"$f":"IF('1. Order'!AE857=\"\",\"\",'1. Order'!AE857)","v":""}]
[{"$f":"IF('1. Order'!B858=\"\",\"\",'1. Order'!B858)","v":""},{"$f":"IF('1. Order'!I858=\"\",\"\",'1. Order'!I858)","v":""},{"$f":"IF('1. Order'!J858=\"\",\"\",'1. Order'!J858)","v":""},{"$f":"IF('1. Order'!K858=\"\",\"\",'1. Order'!K858)","v":""},{"$f":"IF('1. Order'!M858=\"\",\"\",'1. Order'!M858)","v":""},null,null,{"$f":"IF('1. Order'!AR858=\"\",\"\",'1. Order'!AR858)","v":""},{"$f":"IF('1. Order'!AE858=\"\",\"\",'1. Order'!AE858)","v":""}]
[{"$f":"IF('1. Order'!B859=\"\",\"\",'1. Order'!B859)","v":""},{"$f":"IF('1. Order'!I859=\"\",\"\",'1. Order'!I859)","v":""},{"$f":"IF('1. Order'!J859=\"\",\"\",'1. Order'!J859)","v":""},{"$f":"IF('1. Order'!K859=\"\",\"\",'1. Order'!K859)","v":""},{"$f":"IF('1. Order'!M859=\"\",\"\",'1. Order'!M859)","v":""},null,null,{"$f":"IF('1. Order'!AR859=\"\",\"\",'1. Order'!AR859)","v":""},{"$f":"IF('1. Order'!AE859=\"\",\"\",'1. Order'!AE859)","v":""}]
[{"$f":"IF('1. Order'!B860=\"\",\"\",'1. Order'!B860)","v":""},{"$f":"IF('1. Order'!I860=\"\",\"\",'1. Order'!I860)","v":""},{"$f":"IF('1. Order'!J860=\"\",\"\",'1. Order'!J860)","v":""},{"$f":"IF('1. Order'!K860=\"\",\"\",'1. Order'!K860)","v":""},{"$f":"IF('1. Order'!M860=\"\",\"\",'1. Order'!M860)","v":""},null,null,{"$f":"IF('1. Order'!AR860=\"\",\"\",'1. Order'!AR860)","v":""},{"$f":"IF('1. Order'!AE860=\"\",\"\",'1. Order'!AE860)","v":""}]
[{"$f":"IF('1. Order'!B861=\"\",\"\",'1. Order'!B861)","v":""},{"$f":"IF('1. Order'!I861=\"\",\"\",'1. Order'!I861)","v":""},{"$f":"IF('1. Order'!J861=\"\",\"\",'1. Order'!J861)","v":""},{"$f":"IF('1. Order'!K861=\"\",\"\",'1. Order'!K861)","v":""},{"$f":"IF('1. Order'!M861=\"\",\"\",'1. Order'!M861)","v":""},null,null,{"$f":"IF('1. Order'!AR861=\"\",\"\",'1. Order'!AR861)","v":""},{"$f":"IF('1. Order'!AE861=\"\",\"\",'1. Order'!AE861)","v":""}]
[{"$f":"IF('1. Order'!B862=\"\",\"\",'1. Order'!B862)","v":""},{"$f":"IF('1. Order'!I862=\"\",\"\",'1. Order'!I862)","v":""},{"$f":"IF('1. Order'!J862=\"\",\"\",'1. Order'!J862)","v":""},{"$f":"IF('1. Order'!K862=\"\",\"\",'1. Order'!K862)","v":""},{"$f":"IF('1. Order'!M862=\"\",\"\",'1. Order'!M862)","v":""},null,null,{"$f":"IF('1. Order'!AR862=\"\",\"\",'1. Order'!AR862)","v":""},{"$f":"IF('1. Order'!AE862=\"\",\"\",'1. Order'!AE862)","v":""}]
[{"$f":"IF('1. Order'!B863=\"\",\"\",'1. Order'!B863)","v":""},{"$f":"IF('1. Order'!I863=\"\",\"\",'1. Order'!I863)","v":""},{"$f":"IF('1. Order'!J863=\"\",\"\",'1. Order'!J863)","v":""},{"$f":"IF('1. Order'!K863=\"\",\"\",'1. Order'!K863)","v":""},{"$f":"IF('1. Order'!M863=\"\",\"\",'1. Order'!M863)","v":""},null,null,{"$f":"IF('1. Order'!AR863=\"\",\"\",'1. Order'!AR863)","v":""},{"$f":"IF('1. Order'!AE863=\"\",\"\",'1. Order'!AE863)","v":""}]
[{"$f":"IF('1. Order'!B864=\"\",\"\",'1. Order'!B864)","v":""},{"$f":"IF('1. Order'!I864=\"\",\"\",'1. Order'!I864)","v":""},{"$f":"IF('1. Order'!J864=\"\",\"\",'1. Order'!J864)","v":""},{"$f":"IF('1. Order'!K864=\"\",\"\",'1. Order'!K864)","v":""},{"$f":"IF('1. Order'!M864=\"\",\"\",'1. Order'!M864)","v":""},null,null,{"$f":"IF('1. Order'!AR864=\"\",\"\",'1. Order'!AR864)","v":""},{"$f":"IF('1. Order'!AE864=\"\",\"\",'1. Order'!AE864)","v":""}]
[{"$f":"IF('1. Order'!B865=\"\",\"\",'1. Order'!B865)","v":""},{"$f":"IF('1. Order'!I865=\"\",\"\",'1. Order'!I865)","v":""},{"$f":"IF('1. Order'!J865=\"\",\"\",'1. Order'!J865)","v":""},{"$f":"IF('1. Order'!K865=\"\",\"\",'1. Order'!K865)","v":""},{"$f":"IF('1. Order'!M865=\"\",\"\",'1. Order'!M865)","v":""},null,null,{"$f":"IF('1. Order'!AR865=\"\",\"\",'1. Order'!AR865)","v":""},{"$f":"IF('1. Order'!AE865=\"\",\"\",'1. Order'!AE865)","v":""}]
[{"$f":"IF('1. Order'!B866=\"\",\"\",'1. Order'!B866)","v":""},{"$f":"IF('1. Order'!I866=\"\",\"\",'1. Order'!I866)","v":""},{"$f":"IF('1. Order'!J866=\"\",\"\",'1. Order'!J866)","v":""},{"$f":"IF('1. Order'!K866=\"\",\"\",'1. Order'!K866)","v":""},{"$f":"IF('1. Order'!M866=\"\",\"\",'1. Order'!M866)","v":""},null,null,{"$f":"IF('1. Order'!AR866=\"\",\"\",'1. Order'!AR866)","v":""},{"$f":"IF('1. Order'!AE866=\"\",\"\",'1. Order'!AE866)","v":""}]
[{"$f":"IF('1. Order'!B867=\"\",\"\",'1. Order'!B867)","v":""},{"$f":"IF('1. Order'!I867=\"\",\"\",'1. Order'!I867)","v":""},{"$f":"IF('1. Order'!J867=\"\",\"\",'1. Order'!J867)","v":""},{"$f":"IF('1. Order'!K867=\"\",\"\",'1. Order'!K867)","v":""},{"$f":"IF('1. Order'!M867=\"\",\"\",'1. Order'!M867)","v":""},null,null,{"$f":"IF('1. Order'!AR867=\"\",\"\",'1. Order'!AR867)","v":""},{"$f":"IF('1. Order'!AE867=\"\",\"\",'1. Order'!AE867)","v":""}]
[{"$f":"IF('1. Order'!B868=\"\",\"\",'1. Order'!B868)","v":""},{"$f":"IF('1. Order'!I868=\"\",\"\",'1. Order'!I868)","v":""},{"$f":"IF('1. Order'!J868=\"\",\"\",'1. Order'!J868)","v":""},{"$f":"IF('1. Order'!K868=\"\",\"\",'1. Order'!K868)","v":""},{"$f":"IF('1. Order'!M868=\"\",\"\",'1. Order'!M868)","v":""},null,null,{"$f":"IF('1. Order'!AR868=\"\",\"\",'1. Order'!AR868)","v":""},{"$f":"IF('1. Order'!AE868=\"\",\"\",'1. Order'!AE868)","v":""}]
[{"$f":"IF('1. Order'!B869=\"\",\"\",'1. Order'!B869)","v":""},{"$f":"IF('1. Order'!I869=\"\",\"\",'1. Order'!I869)","v":""},{"$f":"IF('1. Order'!J869=\"\",\"\",'1. Order'!J869)","v":""},{"$f":"IF('1. Order'!K869=\"\",\"\",'1. Order'!K869)","v":""},{"$f":"IF('1. Order'!M869=\"\",\"\",'1. Order'!M869)","v":""},null,null,{"$f":"IF('1. Order'!AR869=\"\",\"\",'1. Order'!AR869)","v":""},{"$f":"IF('1. Order'!AE869=\"\",\"\",'1. Order'!AE869)","v":""}]
[{"$f":"IF('1. Order'!B870=\"\",\"\",'1. Order'!B870)","v":""},{"$f":"IF('1. Order'!I870=\"\",\"\",'1. Order'!I870)","v":""},{"$f":"IF('1. Order'!J870=\"\",\"\",'1. Order'!J870)","v":""},{"$f":"IF('1. Order'!K870=\"\",\"\",'1. Order'!K870)","v":""},{"$f":"IF('1. Order'!M870=\"\",\"\",'1. Order'!M870)","v":""},null,null,{"$f":"IF('1. Order'!AR870=\"\",\"\",'1. Order'!AR870)","v":""},{"$f":"IF('1. Order'!AE870=\"\",\"\",'1. Order'!AE870)","v":""}]
[{"$f":"IF('1. Order'!B871=\"\",\"\",'1. Order'!B871)","v":""},{"$f":"IF('1. Order'!I871=\"\",\"\",'1. Order'!I871)","v":""},{"$f":"IF('1. Order'!J871=\"\",\"\",'1. Order'!J871)","v":""},{"$f":"IF('1. Order'!K871=\"\",\"\",'1. Order'!K871)","v":""},{"$f":"IF('1. Order'!M871=\"\",\"\",'1. Order'!M871)","v":""},null,null,{"$f":"IF('1. Order'!AR871=\"\",\"\",'1. Order'!AR871)","v":""},{"$f":"IF('1. Order'!AE871=\"\",\"\",'1. Order'!AE871)","v":""}]
[{"$f":"IF('1. Order'!B872=\"\",\"\",'1. Order'!B872)","v":""},{"$f":"IF('1. Order'!I872=\"\",\"\",'1. Order'!I872)","v":""},{"$f":"IF('1. Order'!J872=\"\",\"\",'1. Order'!J872)","v":""},{"$f":"IF('1. Order'!K872=\"\",\"\",'1. Order'!K872)","v":""},{"$f":"IF('1. Order'!M872=\"\",\"\",'1. Order'!M872)","v":""},null,null,{"$f":"IF('1. Order'!AR872=\"\",\"\",'1. Order'!AR872)","v":""},{"$f":"IF('1. Order'!AE872=\"\",\"\",'1. Order'!AE872)","v":""}]
[{"$f":"IF('1. Order'!B873=\"\",\"\",'1. Order'!B873)","v":""},{"$f":"IF('1. Order'!I873=\"\",\"\",'1. Order'!I873)","v":""},{"$f":"IF('1. Order'!J873=\"\",\"\",'1. Order'!J873)","v":""},{"$f":"IF('1. Order'!K873=\"\",\"\",'1. Order'!K873)","v":""},{"$f":"IF('1. Order'!M873=\"\",\"\",'1. Order'!M873)","v":""},null,null,{"$f":"IF('1. Order'!AR873=\"\",\"\",'1. Order'!AR873)","v":""},{"$f":"IF('1. Order'!AE873=\"\",\"\",'1. Order'!AE873)","v":""}]
[{"$f":"IF('1. Order'!B874=\"\",\"\",'1. Order'!B874)","v":""},{"$f":"IF('1. Order'!I874=\"\",\"\",'1. Order'!I874)","v":""},{"$f":"IF('1. Order'!J874=\"\",\"\",'1. Order'!J874)","v":""},{"$f":"IF('1. Order'!K874=\"\",\"\",'1. Order'!K874)","v":""},{"$f":"IF('1. Order'!M874=\"\",\"\",'1. Order'!M874)","v":""},null,null,{"$f":"IF('1. Order'!AR874=\"\",\"\",'1. Order'!AR874)","v":""},{"$f":"IF('1. Order'!AE874=\"\",\"\",'1. Order'!AE874)","v":""}]
[{"$f":"IF('1. Order'!B875=\"\",\"\",'1. Order'!B875)","v":""},{"$f":"IF('1. Order'!I875=\"\",\"\",'1. Order'!I875)","v":""},{"$f":"IF('1. Order'!J875=\"\",\"\",'1. Order'!J875)","v":""},{"$f":"IF('1. Order'!K875=\"\",\"\",'1. Order'!K875)","v":""},{"$f":"IF('1. Order'!M875=\"\",\"\",'1. Order'!M875)","v":""},null,null,{"$f":"IF('1. Order'!AR875=\"\",\"\",'1. Order'!AR875)","v":""},{"$f":"IF('1. Order'!AE875=\"\",\"\",'1. Order'!AE875)","v":""}]
[{"$f":"IF('1. Order'!B876=\"\",\"\",'1. Order'!B876)","v":""},{"$f":"IF('1. Order'!I876=\"\",\"\",'1. Order'!I876)","v":""},{"$f":"IF('1. Order'!J876=\"\",\"\",'1. Order'!J876)","v":""},{"$f":"IF('1. Order'!K876=\"\",\"\",'1. Order'!K876)","v":""},{"$f":"IF('1. Order'!M876=\"\",\"\",'1. Order'!M876)","v":""},null,null,{"$f":"IF('1. Order'!AR876=\"\",\"\",'1. Order'!AR876)","v":""},{"$f":"IF('1. Order'!AE876=\"\",\"\",'1. Order'!AE876)","v":""}]
[{"$f":"IF('1. Order'!B877=\"\",\"\",'1. Order'!B877)","v":""},{"$f":"IF('1. Order'!I877=\"\",\"\",'1. Order'!I877)","v":""},{"$f":"IF('1. Order'!J877=\"\",\"\",'1. Order'!J877)","v":""},{"$f":"IF('1. Order'!K877=\"\",\"\",'1. Order'!K877)","v":""},{"$f":"IF('1. Order'!M877=\"\",\"\",'1. Order'!M877)","v":""},null,null,{"$f":"IF('1. Order'!AR877=\"\",\"\",'1. Order'!AR877)","v":""},{"$f":"IF('1. Order'!AE877=\"\",\"\",'1. Order'!AE877)","v":""}]
[{"$f":"IF('1. Order'!B878=\"\",\"\",'1. Order'!B878)","v":""},{"$f":"IF('1. Order'!I878=\"\",\"\",'1. Order'!I878)","v":""},{"$f":"IF('1. Order'!J878=\"\",\"\",'1. Order'!J878)","v":""},{"$f":"IF('1. Order'!K878=\"\",\"\",'1. Order'!K878)","v":""},{"$f":"IF('1. Order'!M878=\"\",\"\",'1. Order'!M878)","v":""},null,null,{"$f":"IF('1. Order'!AR878=\"\",\"\",'1. Order'!AR878)","v":""},{"$f":"IF('1. Order'!AE878=\"\",\"\",'1. Order'!AE878)","v":""}]
[{"$f":"IF('1. Order'!B879=\"\",\"\",'1. Order'!B879)","v":""},{"$f":"IF('1. Order'!I879=\"\",\"\",'1. Order'!I879)","v":""},{"$f":"IF('1. Order'!J879=\"\",\"\",'1. Order'!J879)","v":""},{"$f":"IF('1. Order'!K879=\"\",\"\",'1. Order'!K879)","v":""},{"$f":"IF('1. Order'!M879=\"\",\"\",'1. Order'!M879)","v":""},null,null,{"$f":"IF('1. Order'!AR879=\"\",\"\",'1. Order'!AR879)","v":""},{"$f":"IF('1. Order'!AE879=\"\",\"\",'1. Order'!AE879)","v":""}]
[{"$f":"IF('1. Order'!B880=\"\",\"\",'1. Order'!B880)","v":""},{"$f":"IF('1. Order'!I880=\"\",\"\",'1. Order'!I880)","v":""},{"$f":"IF('1. Order'!J880=\"\",\"\",'1. Order'!J880)","v":""},{"$f":"IF('1. Order'!K880=\"\",\"\",'1. Order'!K880)","v":""},{"$f":"IF('1. Order'!M880=\"\",\"\",'1. Order'!M880)","v":""},null,null,{"$f":"IF('1. Order'!AR880=\"\",\"\",'1. Order'!AR880)","v":""},{"$f":"IF('1. Order'!AE880=\"\",\"\",'1. Order'!AE880)","v":""}]
[{"$f":"IF('1. Order'!B881=\"\",\"\",'1. Order'!B881)","v":""},{"$f":"IF('1. Order'!I881=\"\",\"\",'1. Order'!I881)","v":""},{"$f":"IF('1. Order'!J881=\"\",\"\",'1. Order'!J881)","v":""},{"$f":"IF('1. Order'!K881=\"\",\"\",'1. Order'!K881)","v":""},{"$f":"IF('1. Order'!M881=\"\",\"\",'1. Order'!M881)","v":""},null,null,{"$f":"IF('1. Order'!AR881=\"\",\"\",'1. Order'!AR881)","v":""},{"$f":"IF('1. Order'!AE881=\"\",\"\",'1. Order'!AE881)","v":""}]
[{"$f":"IF('1. Order'!B882=\"\",\"\",'1. Order'!B882)","v":""},{"$f":"IF('1. Order'!I882=\"\",\"\",'1. Order'!I882)","v":""},{"$f":"IF('1. Order'!J882=\"\",\"\",'1. Order'!J882)","v":""},{"$f":"IF('1. Order'!K882=\"\",\"\",'1. Order'!K882)","v":""},{"$f":"IF('1. Order'!M882=\"\",\"\",'1. Order'!M882)","v":""},null,null,{"$f":"IF('1. Order'!AR882=\"\",\"\",'1. Order'!AR882)","v":""},{"$f":"IF('1. Order'!AE882=\"\",\"\",'1. Order'!AE882)","v":""}]
[{"$f":"IF('1. Order'!B883=\"\",\"\",'1. Order'!B883)","v":""},{"$f":"IF('1. Order'!I883=\"\",\"\",'1. Order'!I883)","v":""},{"$f":"IF('1. Order'!J883=\"\",\"\",'1. Order'!J883)","v":""},{"$f":"IF('1. Order'!K883=\"\",\"\",'1. Order'!K883)","v":""},{"$f":"IF('1. Order'!M883=\"\",\"\",'1. Order'!M883)","v":""},null,null,{"$f":"IF('1. Order'!AR883=\"\",\"\",'1. Order'!AR883)","v":""},{"$f":"IF('1. Order'!AE883=\"\",\"\",'1. Order'!AE883)","v":""}]
[{"$f":"IF('1. Order'!B884=\"\",\"\",'1. Order'!B884)","v":""},{"$f":"IF('1. Order'!I884=\"\",\"\",'1. Order'!I884)","v":""},{"$f":"IF('1. Order'!J884=\"\",\"\",'1. Order'!J884)","v":""},{"$f":"IF('1. Order'!K884=\"\",\"\",'1. Order'!K884)","v":""},{"$f":"IF('1. Order'!M884=\"\",\"\",'1. Order'!M884)","v":""},null,null,{"$f":"IF('1. Order'!AR884=\"\",\"\",'1. Order'!AR884)","v":""},{"$f":"IF('1. Order'!AE884=\"\",\"\",'1. Order'!AE884)","v":""}]
[{"$f":"IF('1. Order'!B885=\"\",\"\",'1. Order'!B885)","v":""},{"$f":"IF('1. Order'!I885=\"\",\"\",'1. Order'!I885)","v":""},{"$f":"IF('1. Order'!J885=\"\",\"\",'1. Order'!J885)","v":""},{"$f":"IF('1. Order'!K885=\"\",\"\",'1. Order'!K885)","v":""},{"$f":"IF('1. Order'!M885=\"\",\"\",'1. Order'!M885)","v":""},null,null,{"$f":"IF('1. Order'!AR885=\"\",\"\",'1. Order'!AR885)","v":""},{"$f":"IF('1. Order'!AE885=\"\",\"\",'1. Order'!AE885)","v":""}]
[{"$f":"IF('1. Order'!B886=\"\",\"\",'1. Order'!B886)","v":""},{"$f":"IF('1. Order'!I886=\"\",\"\",'1. Order'!I886)","v":""},{"$f":"IF('1. Order'!J886=\"\",\"\",'1. Order'!J886)","v":""},{"$f":"IF('1. Order'!K886=\"\",\"\",'1. Order'!K886)","v":""},{"$f":"IF('1. Order'!M886=\"\",\"\",'1. Order'!M886)","v":""},null,null,{"$f":"IF('1. Order'!AR886=\"\",\"\",'1. Order'!AR886)","v":""},{"$f":"IF('1. Order'!AE886=\"\",\"\",'1. Order'!AE886)","v":""}]
[{"$f":"IF('1. Order'!B887=\"\",\"\",'1. Order'!B887)","v":""},{"$f":"IF('1. Order'!I887=\"\",\"\",'1. Order'!I887)","v":""},{"$f":"IF('1. Order'!J887=\"\",\"\",'1. Order'!J887)","v":""},{"$f":"IF('1. Order'!K887=\"\",\"\",'1. Order'!K887)","v":""},{"$f":"IF('1. Order'!M887=\"\",\"\",'1. Order'!M887)","v":""},null,null,{"$f":"IF('1. Order'!AR887=\"\",\"\",'1. Order'!AR887)","v":""},{"$f":"IF('1. Order'!AE887=\"\",\"\",'1. Order'!AE887)","v":""}]
[{"$f":"IF('1. Order'!B888=\"\",\"\",'1. Order'!B888)","v":""},{"$f":"IF('1. Order'!I888=\"\",\"\",'1. Order'!I888)","v":""},{"$f":"IF('1. Order'!J888=\"\",\"\",'1. Order'!J888)","v":""},{"$f":"IF('1. Order'!K888=\"\",\"\",'1. Order'!K888)","v":""},{"$f":"IF('1. Order'!M888=\"\",\"\",'1. Order'!M888)","v":""},null,null,{"$f":"IF('1. Order'!AR888=\"\",\"\",'1. Order'!AR888)","v":""},{"$f":"IF('1. Order'!AE888=\"\",\"\",'1. Order'!AE888)","v":""}]
[{"$f":"IF('1. Order'!B889=\"\",\"\",'1. Order'!B889)","v":""},{"$f":"IF('1. Order'!I889=\"\",\"\",'1. Order'!I889)","v":""},{"$f":"IF('1. Order'!J889=\"\",\"\",'1. Order'!J889)","v":""},{"$f":"IF('1. Order'!K889=\"\",\"\",'1. Order'!K889)","v":""},{"$f":"IF('1. Order'!M889=\"\",\"\",'1. Order'!M889)","v":""},null,null,{"$f":"IF('1. Order'!AR889=\"\",\"\",'1. Order'!AR889)","v":""},{"$f":"IF('1. Order'!AE889=\"\",\"\",'1. Order'!AE889)","v":""}]
[{"$f":"IF('1. Order'!B890=\"\",\"\",'1. Order'!B890)","v":""},{"$f":"IF('1. Order'!I890=\"\",\"\",'1. Order'!I890)","v":""},{"$f":"IF('1. Order'!J890=\"\",\"\",'1. Order'!J890)","v":""},{"$f":"IF('1. Order'!K890=\"\",\"\",'1. Order'!K890)","v":""},{"$f":"IF('1. Order'!M890=\"\",\"\",'1. Order'!M890)","v":""},null,null,{"$f":"IF('1. Order'!AR890=\"\",\"\",'1. Order'!AR890)","v":""},{"$f":"IF('1. Order'!AE890=\"\",\"\",'1. Order'!AE890)","v":""}]
[{"$f":"IF('1. Order'!B891=\"\",\"\",'1. Order'!B891)","v":""},{"$f":"IF('1. Order'!I891=\"\",\"\",'1. Order'!I891)","v":""},{"$f":"IF('1. Order'!J891=\"\",\"\",'1. Order'!J891)","v":""},{"$f":"IF('1. Order'!K891=\"\",\"\",'1. Order'!K891)","v":""},{"$f":"IF('1. Order'!M891=\"\",\"\",'1. Order'!M891)","v":""},null,null,{"$f":"IF('1. Order'!AR891=\"\",\"\",'1. Order'!AR891)","v":""},{"$f":"IF('1. Order'!AE891=\"\",\"\",'1. Order'!AE891)","v":""}]
[{"$f":"IF('1. Order'!B892=\"\",\"\",'1. Order'!B892)","v":""},{"$f":"IF('1. Order'!I892=\"\",\"\",'1. Order'!I892)","v":""},{"$f":"IF('1. Order'!J892=\"\",\"\",'1. Order'!J892)","v":""},{"$f":"IF('1. Order'!K892=\"\",\"\",'1. Order'!K892)","v":""},{"$f":"IF('1. Order'!M892=\"\",\"\",'1. Order'!M892)","v":""},null,null,{"$f":"IF('1. Order'!AR892=\"\",\"\",'1. Order'!AR892)","v":""},{"$f":"IF('1. Order'!AE892=\"\",\"\",'1. Order'!AE892)","v":""}]
[{"$f":"IF('1. Order'!B893=\"\",\"\",'1. Order'!B893)","v":""},{"$f":"IF('1. Order'!I893=\"\",\"\",'1. Order'!I893)","v":""},{"$f":"IF('1. Order'!J893=\"\",\"\",'1. Order'!J893)","v":""},{"$f":"IF('1. Order'!K893=\"\",\"\",'1. Order'!K893)","v":""},{"$f":"IF('1. Order'!M893=\"\",\"\",'1. Order'!M893)","v":""},null,null,{"$f":"IF('1. Order'!AR893=\"\",\"\",'1. Order'!AR893)","v":""},{"$f":"IF('1. Order'!AE893=\"\",\"\",'1. Order'!AE893)","v":""}]
[{"$f":"IF('1. Order'!B894=\"\",\"\",'1. Order'!B894)","v":""},{"$f":"IF('1. Order'!I894=\"\",\"\",'1. Order'!I894)","v":""},{"$f":"IF('1. Order'!J894=\"\",\"\",'1. Order'!J894)","v":""},{"$f":"IF('1. Order'!K894=\"\",\"\",'1. Order'!K894)","v":""},{"$f":"IF('1. Order'!M894=\"\",\"\",'1. Order'!M894)","v":""},null,null,{"$f":"IF('1. Order'!AR894=\"\",\"\",'1. Order'!AR894)","v":""},{"$f":"IF('1. Order'!AE894=\"\",\"\",'1. Order'!AE894)","v":""}]
[{"$f":"IF('1. Order'!B895=\"\",\"\",'1. Order'!B895)","v":""},{"$f":"IF('1. Order'!I895=\"\",\"\",'1. Order'!I895)","v":""},{"$f":"IF('1. Order'!J895=\"\",\"\",'1. Order'!J895)","v":""},{"$f":"IF('1. Order'!K895=\"\",\"\",'1. Order'!K895)","v":""},{"$f":"IF('1. Order'!M895=\"\",\"\",'1. Order'!M895)","v":""},null,null,{"$f":"IF('1. Order'!AR895=\"\",\"\",'1. Order'!AR895)","v":""},{"$f":"IF('1. Order'!AE895=\"\",\"\",'1. Order'!AE895)","v":""}]
[{"$f":"IF('1. Order'!B896=\"\",\"\",'1. Order'!B896)","v":""},{"$f":"IF('1. Order'!I896=\"\",\"\",'1. Order'!I896)","v":""},{"$f":"IF('1. Order'!J896=\"\",\"\",'1. Order'!J896)","v":""},{"$f":"IF('1. Order'!K896=\"\",\"\",'1. Order'!K896)","v":""},{"$f":"IF('1. Order'!M896=\"\",\"\",'1. Order'!M896)","v":""},null,null,{"$f":"IF('1. Order'!AR896=\"\",\"\",'1. Order'!AR896)","v":""},{"$f":"IF('1. Order'!AE896=\"\",\"\",'1. Order'!AE896)","v":""}]
[{"$f":"IF('1. Order'!B897=\"\",\"\",'1. Order'!B897)","v":""},{"$f":"IF('1. Order'!I897=\"\",\"\",'1. Order'!I897)","v":""},{"$f":"IF('1. Order'!J897=\"\",\"\",'1. Order'!J897)","v":""},{"$f":"IF('1. Order'!K897=\"\",\"\",'1. Order'!K897)","v":""},{"$f":"IF('1. Order'!M897=\"\",\"\",'1. Order'!M897)","v":""},null,null,{"$f":"IF('1. Order'!AR897=\"\",\"\",'1. Order'!AR897)","v":""},{"$f":"IF('1. Order'!AE897=\"\",\"\",'1. Order'!AE897)","v":""}]
[{"$f":"IF('1. Order'!B898=\"\",\"\",'1. Order'!B898)","v":""},{"$f":"IF('1. Order'!I898=\"\",\"\",'1. Order'!I898)","v":""},{"$f":"IF('1. Order'!J898=\"\",\"\",'1. Order'!J898)","v":""},{"$f":"IF('1. Order'!K898=\"\",\"\",'1. Order'!K898)","v":""},{"$f":"IF('1. Order'!M898=\"\",\"\",'1. Order'!M898)","v":""},null,null,{"$f":"IF('1. Order'!AR898=\"\",\"\",'1. Order'!AR898)","v":""},{"$f":"IF('1. Order'!AE898=\"\",\"\",'1. Order'!AE898)","v":""}]
[{"$f":"IF('1. Order'!B899=\"\",\"\",'1. Order'!B899)","v":""},{"$f":"IF('1. Order'!I899=\"\",\"\",'1. Order'!I899)","v":""},{"$f":"IF('1. Order'!J899=\"\",\"\",'1. Order'!J899)","v":""},{"$f":"IF('1. Order'!K899=\"\",\"\",'1. Order'!K899)","v":""},{"$f":"IF('1. Order'!M899=\"\",\"\",'1. Order'!M899)","v":""},null,null,{"$f":"IF('1. Order'!AR899=\"\",\"\",'1. Order'!AR899)","v":""},{"$f":"IF('1. Order'!AE899=\"\",\"\",'1. Order'!AE899)","v":""}]
[{"$f":"IF('1. Order'!B900=\"\",\"\",'1. Order'!B900)","v":""},{"$f":"IF('1. Order'!I900=\"\",\"\",'1. Order'!I900)","v":""},{"$f":"IF('1. Order'!J900=\"\",\"\",'1. Order'!J900)","v":""},{"$f":"IF('1. Order'!K900=\"\",\"\",'1. Order'!K900)","v":""},{"$f":"IF('1. Order'!M900=\"\",\"\",'1. Order'!M900)","v":""},null,null,{"$f":"IF('1. Order'!AR900=\"\",\"\",'1. Order'!AR900)","v":""},{"$f":"IF('1. Order'!AE900=\"\",\"\",'1. Order'!AE900)","v":""}]
[{"$f":"IF('1. Order'!B901=\"\",\"\",'1. Order'!B901)","v":""},{"$f":"IF('1. Order'!I901=\"\",\"\",'1. Order'!I901)","v":""},{"$f":"IF('1. Order'!J901=\"\",\"\",'1. Order'!J901)","v":""},{"$f":"IF('1. Order'!K901=\"\",\"\",'1. Order'!K901)","v":""},{"$f":"IF('1. Order'!M901=\"\",\"\",'1. Order'!M901)","v":""},null,null,{"$f":"IF('1. Order'!AR901=\"\",\"\",'1. Order'!AR901)","v":""},{"$f":"IF('1. Order'!AE901=\"\",\"\",'1. Order'!AE901)","v":""}]
[{"$f":"IF('1. Order'!B902=\"\",\"\",'1. Order'!B902)","v":""},{"$f":"IF('1. Order'!I902=\"\",\"\",'1. Order'!I902)","v":""},{"$f":"IF('1. Order'!J902=\"\",\"\",'1. Order'!J902)","v":""},{"$f":"IF('1. Order'!K902=\"\",\"\",'1. Order'!K902)","v":""},{"$f":"IF('1. Order'!M902=\"\",\"\",'1. Order'!M902)","v":""},null,null,{"$f":"IF('1. Order'!AR902=\"\",\"\",'1. Order'!AR902)","v":""},{"$f":"IF('1. Order'!AE902=\"\",\"\",'1. Order'!AE902)","v":""}]
[{"$f":"IF('1. Order'!B903=\"\",\"\",'1. Order'!B903)","v":""},{"$f":"IF('1. Order'!I903=\"\",\"\",'1. Order'!I903)","v":""},{"$f":"IF('1. Order'!J903=\"\",\"\",'1. Order'!J903)","v":""},{"$f":"IF('1. Order'!K903=\"\",\"\",'1. Order'!K903)","v":""},{"$f":"IF('1. Order'!M903=\"\",\"\",'1. Order'!M903)","v":""},null,null,{"$f":"IF('1. Order'!AR903=\"\",\"\",'1. Order'!AR903)","v":""},{"$f":"IF('1. Order'!AE903=\"\",\"\",'1. Order'!AE903)","v":""}]
[{"$f":"IF('1. Order'!B904=\"\",\"\",'1. Order'!B904)","v":""},{"$f":"IF('1. Order'!I904=\"\",\"\",'1. Order'!I904)","v":""},{"$f":"IF('1. Order'!J904=\"\",\"\",'1. Order'!J904)","v":""},{"$f":"IF('1. Order'!K904=\"\",\"\",'1. Order'!K904)","v":""},{"$f":"IF('1. Order'!M904=\"\",\"\",'1. Order'!M904)","v":""},null,null,{"$f":"IF('1. Order'!AR904=\"\",\"\",'1. Order'!AR904)","v":""},{"$f":"IF('1. Order'!AE904=\"\",\"\",'1. Order'!AE904)","v":""}]
[{"$f":"IF('1. Order'!B905=\"\",\"\",'1. Order'!B905)","v":""},{"$f":"IF('1. Order'!I905=\"\",\"\",'1. Order'!I905)","v":""},{"$f":"IF('1. Order'!J905=\"\",\"\",'1. Order'!J905)","v":""},{"$f":"IF('1. Order'!K905=\"\",\"\",'1. Order'!K905)","v":""},{"$f":"IF('1. Order'!M905=\"\",\"\",'1. Order'!M905)","v":""},null,null,{"$f":"IF('1. Order'!AR905=\"\",\"\",'1. Order'!AR905)","v":""},{"$f":"IF('1. Order'!AE905=\"\",\"\",'1. Order'!AE905)","v":""}]
[{"$f":"IF('1. Order'!B906=\"\",\"\",'1. Order'!B906)","v":""},{"$f":"IF('1. Order'!I906=\"\",\"\",'1. Order'!I906)","v":""},{"$f":"IF('1. Order'!J906=\"\",\"\",'1. Order'!J906)","v":""},{"$f":"IF('1. Order'!K906=\"\",\"\",'1. Order'!K906)","v":""},{"$f":"IF('1. Order'!M906=\"\",\"\",'1. Order'!M906)","v":""},null,null,{"$f":"IF('1. Order'!AR906=\"\",\"\",'1. Order'!AR906)","v":""},{"$f":"IF('1. Order'!AE906=\"\",\"\",'1. Order'!AE906)","v":""}]
[{"$f":"IF('1. Order'!B907=\"\",\"\",'1. Order'!B907)","v":""},{"$f":"IF('1. Order'!I907=\"\",\"\",'1. Order'!I907)","v":""},{"$f":"IF('1. Order'!J907=\"\",\"\",'1. Order'!J907)","v":""},{"$f":"IF('1. Order'!K907=\"\",\"\",'1. Order'!K907)","v":""},{"$f":"IF('1. Order'!M907=\"\",\"\",'1. Order'!M907)","v":""},null,null,{"$f":"IF('1. Order'!AR907=\"\",\"\",'1. Order'!AR907)","v":""},{"$f":"IF('1. Order'!AE907=\"\",\"\",'1. Order'!AE907)","v":""}]
[{"$f":"IF('1. Order'!B908=\"\",\"\",'1. Order'!B908)","v":""},{"$f":"IF('1. Order'!I908=\"\",\"\",'1. Order'!I908)","v":""},{"$f":"IF('1. Order'!J908=\"\",\"\",'1. Order'!J908)","v":""},{"$f":"IF('1. Order'!K908=\"\",\"\",'1. Order'!K908)","v":""},{"$f":"IF('1. Order'!M908=\"\",\"\",'1. Order'!M908)","v":""},null,null,{"$f":"IF('1. Order'!AR908=\"\",\"\",'1. Order'!AR908)","v":""},{"$f":"IF('1. Order'!AE908=\"\",\"\",'1. Order'!AE908)","v":""}]
[{"$f":"IF('1. Order'!B909=\"\",\"\",'1. Order'!B909)","v":""},{"$f":"IF('1. Order'!I909=\"\",\"\",'1. Order'!I909)","v":""},{"$f":"IF('1. Order'!J909=\"\",\"\",'1. Order'!J909)","v":""},{"$f":"IF('1. Order'!K909=\"\",\"\",'1. Order'!K909)","v":""},{"$f":"IF('1. Order'!M909=\"\",\"\",'1. Order'!M909)","v":""},null,null,{"$f":"IF('1. Order'!AR909=\"\",\"\",'1. Order'!AR909)","v":""},{"$f":"IF('1. Order'!AE909=\"\",\"\",'1. Order'!AE909)","v":""}]
[{"$f":"IF('1. Order'!B910=\"\",\"\",'1. Order'!B910)","v":""},{"$f":"IF('1. Order'!I910=\"\",\"\",'1. Order'!I910)","v":""},{"$f":"IF('1. Order'!J910=\"\",\"\",'1. Order'!J910)","v":""},{"$f":"IF('1. Order'!K910=\"\",\"\",'1. Order'!K910)","v":""},{"$f":"IF('1. Order'!M910=\"\",\"\",'1. Order'!M910)","v":""},null,null,{"$f":"IF('1. Order'!AR910=\"\",\"\",'1. Order'!AR910)","v":""},{"$f":"IF('1. Order'!AE910=\"\",\"\",'1. Order'!AE910)","v":""}]
[{"$f":"IF('1. Order'!B911=\"\",\"\",'1. Order'!B911)","v":""},{"$f":"IF('1. Order'!I911=\"\",\"\",'1. Order'!I911)","v":""},{"$f":"IF('1. Order'!J911=\"\",\"\",'1. Order'!J911)","v":""},{"$f":"IF('1. Order'!K911=\"\",\"\",'1. Order'!K911)","v":""},{"$f":"IF('1. Order'!M911=\"\",\"\",'1. Order'!M911)","v":""},null,null,{"$f":"IF('1. Order'!AR911=\"\",\"\",'1. Order'!AR911)","v":""},{"$f":"IF('1. Order'!AE911=\"\",\"\",'1. Order'!AE911)","v":""}]
[{"$f":"IF('1. Order'!B912=\"\",\"\",'1. Order'!B912)","v":""},{"$f":"IF('1. Order'!I912=\"\",\"\",'1. Order'!I912)","v":""},{"$f":"IF('1. Order'!J912=\"\",\"\",'1. Order'!J912)","v":""},{"$f":"IF('1. Order'!K912=\"\",\"\",'1. Order'!K912)","v":""},{"$f":"IF('1. Order'!M912=\"\",\"\",'1. Order'!M912)","v":""},null,null,{"$f":"IF('1. Order'!AR912=\"\",\"\",'1. Order'!AR912)","v":""},{"$f":"IF('1. Order'!AE912=\"\",\"\",'1. Order'!AE912)","v":""}]
[{"$f":"IF('1. Order'!B913=\"\",\"\",'1. Order'!B913)","v":""},{"$f":"IF('1. Order'!I913=\"\",\"\",'1. Order'!I913)","v":""},{"$f":"IF('1. Order'!J913=\"\",\"\",'1. Order'!J913)","v":""},{"$f":"IF('1. Order'!K913=\"\",\"\",'1. Order'!K913)","v":""},{"$f":"IF('1. Order'!M913=\"\",\"\",'1. Order'!M913)","v":""},null,null,{"$f":"IF('1. Order'!AR913=\"\",\"\",'1. Order'!AR913)","v":""},{"$f":"IF('1. Order'!AE913=\"\",\"\",'1. Order'!AE913)","v":""}]
[{"$f":"IF('1. Order'!B914=\"\",\"\",'1. Order'!B914)","v":""},{"$f":"IF('1. Order'!I914=\"\",\"\",'1. Order'!I914)","v":""},{"$f":"IF('1. Order'!J914=\"\",\"\",'1. Order'!J914)","v":""},{"$f":"IF('1. Order'!K914=\"\",\"\",'1. Order'!K914)","v":""},{"$f":"IF('1. Order'!M914=\"\",\"\",'1. Order'!M914)","v":""},null,null,{"$f":"IF('1. Order'!AR914=\"\",\"\",'1. Order'!AR914)","v":""},{"$f":"IF('1. Order'!AE914=\"\",\"\",'1. Order'!AE914)","v":""}]
[{"$f":"IF('1. Order'!B915=\"\",\"\",'1. Order'!B915)","v":""},{"$f":"IF('1. Order'!I915=\"\",\"\",'1. Order'!I915)","v":""},{"$f":"IF('1. Order'!J915=\"\",\"\",'1. Order'!J915)","v":""},{"$f":"IF('1. Order'!K915=\"\",\"\",'1. Order'!K915)","v":""},{"$f":"IF('1. Order'!M915=\"\",\"\",'1. Order'!M915)","v":""},null,null,{"$f":"IF('1. Order'!AR915=\"\",\"\",'1. Order'!AR915)","v":""},{"$f":"IF('1. Order'!AE915=\"\",\"\",'1. Order'!AE915)","v":""}]
[{"$f":"IF('1. Order'!B916=\"\",\"\",'1. Order'!B916)","v":""},{"$f":"IF('1. Order'!I916=\"\",\"\",'1. Order'!I916)","v":""},{"$f":"IF('1. Order'!J916=\"\",\"\",'1. Order'!J916)","v":""},{"$f":"IF('1. Order'!K916=\"\",\"\",'1. Order'!K916)","v":""},{"$f":"IF('1. Order'!M916=\"\",\"\",'1. Order'!M916)","v":""},null,null,{"$f":"IF('1. Order'!AR916=\"\",\"\",'1. Order'!AR916)","v":""},{"$f":"IF('1. Order'!AE916=\"\",\"\",'1. Order'!AE916)","v":""}]
[{"$f":"IF('1. Order'!B917=\"\",\"\",'1. Order'!B917)","v":""},{"$f":"IF('1. Order'!I917=\"\",\"\",'1. Order'!I917)","v":""},{"$f":"IF('1. Order'!J917=\"\",\"\",'1. Order'!J917)","v":""},{"$f":"IF('1. Order'!K917=\"\",\"\",'1. Order'!K917)","v":""},{"$f":"IF('1. Order'!M917=\"\",\"\",'1. Order'!M917)","v":""},null,null,{"$f":"IF('1. Order'!AR917=\"\",\"\",'1. Order'!AR917)","v":""},{"$f":"IF('1. Order'!AE917=\"\",\"\",'1. Order'!AE917)","v":""}]
[{"$f":"IF('1. Order'!B918=\"\",\"\",'1. Order'!B918)","v":""},{"$f":"IF('1. Order'!I918=\"\",\"\",'1. Order'!I918)","v":""},{"$f":"IF('1. Order'!J918=\"\",\"\",'1. Order'!J918)","v":""},{"$f":"IF('1. Order'!K918=\"\",\"\",'1. Order'!K918)","v":""},{"$f":"IF('1. Order'!M918=\"\",\"\",'1. Order'!M918)","v":""},null,null,{"$f":"IF('1. Order'!AR918=\"\",\"\",'1. Order'!AR918)","v":""},{"$f":"IF('1. Order'!AE918=\"\",\"\",'1. Order'!AE918)","v":""}]
[{"$f":"IF('1. Order'!B919=\"\",\"\",'1. Order'!B919)","v":""},{"$f":"IF('1. Order'!I919=\"\",\"\",'1. Order'!I919)","v":""},{"$f":"IF('1. Order'!J919=\"\",\"\",'1. Order'!J919)","v":""},{"$f":"IF('1. Order'!K919=\"\",\"\",'1. Order'!K919)","v":""},{"$f":"IF('1. Order'!M919=\"\",\"\",'1. Order'!M919)","v":""},null,null,{"$f":"IF('1. Order'!AR919=\"\",\"\",'1. Order'!AR919)","v":""},{"$f":"IF('1. Order'!AE919=\"\",\"\",'1. Order'!AE919)","v":""}]
[{"$f":"IF('1. Order'!B920=\"\",\"\",'1. Order'!B920)","v":""},{"$f":"IF('1. Order'!I920=\"\",\"\",'1. Order'!I920)","v":""},{"$f":"IF('1. Order'!J920=\"\",\"\",'1. Order'!J920)","v":""},{"$f":"IF('1. Order'!K920=\"\",\"\",'1. Order'!K920)","v":""},{"$f":"IF('1. Order'!M920=\"\",\"\",'1. Order'!M920)","v":""},null,null,{"$f":"IF('1. Order'!AR920=\"\",\"\",'1. Order'!AR920)","v":""},{"$f":"IF('1. Order'!AE920=\"\",\"\",'1. Order'!AE920)","v":""}]
[{"$f":"IF('1. Order'!B921=\"\",\"\",'1. Order'!B921)","v":""},{"$f":"IF('1. Order'!I921=\"\",\"\",'1. Order'!I921)","v":""},{"$f":"IF('1. Order'!J921=\"\",\"\",'1. Order'!J921)","v":""},{"$f":"IF('1. Order'!K921=\"\",\"\",'1. Order'!K921)","v":""},{"$f":"IF('1. Order'!M921=\"\",\"\",'1. Order'!M921)","v":""},null,null,{"$f":"IF('1. Order'!AR921=\"\",\"\",'1. Order'!AR921)","v":""},{"$f":"IF('1. Order'!AE921=\"\",\"\",'1. Order'!AE921)","v":""}]
[{"$f":"IF('1. Order'!B922=\"\",\"\",'1. Order'!B922)","v":""},{"$f":"IF('1. Order'!I922=\"\",\"\",'1. Order'!I922)","v":""},{"$f":"IF('1. Order'!J922=\"\",\"\",'1. Order'!J922)","v":""},{"$f":"IF('1. Order'!K922=\"\",\"\",'1. Order'!K922)","v":""},{"$f":"IF('1. Order'!M922=\"\",\"\",'1. Order'!M922)","v":""},null,null,{"$f":"IF('1. Order'!AR922=\"\",\"\",'1. Order'!AR922)","v":""},{"$f":"IF('1. Order'!AE922=\"\",\"\",'1. Order'!AE922)","v":""}]
[{"$f":"IF('1. Order'!B923=\"\",\"\",'1. Order'!B923)","v":""},{"$f":"IF('1. Order'!I923=\"\",\"\",'1. Order'!I923)","v":""},{"$f":"IF('1. Order'!J923=\"\",\"\",'1. Order'!J923)","v":""},{"$f":"IF('1. Order'!K923=\"\",\"\",'1. Order'!K923)","v":""},{"$f":"IF('1. Order'!M923=\"\",\"\",'1. Order'!M923)","v":""},null,null,{"$f":"IF('1. Order'!AR923=\"\",\"\",'1. Order'!AR923)","v":""},{"$f":"IF('1. Order'!AE923=\"\",\"\",'1. Order'!AE923)","v":""}]
[{"$f":"IF('1. Order'!B924=\"\",\"\",'1. Order'!B924)","v":""},{"$f":"IF('1. Order'!I924=\"\",\"\",'1. Order'!I924)","v":""},{"$f":"IF('1. Order'!J924=\"\",\"\",'1. Order'!J924)","v":""},{"$f":"IF('1. Order'!K924=\"\",\"\",'1. Order'!K924)","v":""},{"$f":"IF('1. Order'!M924=\"\",\"\",'1. Order'!M924)","v":""},null,null,{"$f":"IF('1. Order'!AR924=\"\",\"\",'1. Order'!AR924)","v":""},{"$f":"IF('1. Order'!AE924=\"\",\"\",'1. Order'!AE924)","v":""}]
[{"$f":"IF('1. Order'!B925=\"\",\"\",'1. Order'!B925)","v":""},{"$f":"IF('1. Order'!I925=\"\",\"\",'1. Order'!I925)","v":""},{"$f":"IF('1. Order'!J925=\"\",\"\",'1. Order'!J925)","v":""},{"$f":"IF('1. Order'!K925=\"\",\"\",'1. Order'!K925)","v":""},{"$f":"IF('1. Order'!M925=\"\",\"\",'1. Order'!M925)","v":""},null,null,{"$f":"IF('1. Order'!AR925=\"\",\"\",'1. Order'!AR925)","v":""},{"$f":"IF('1. Order'!AE925=\"\",\"\",'1. Order'!AE925)","v":""}]
[{"$f":"IF('1. Order'!B926=\"\",\"\",'1. Order'!B926)","v":""},{"$f":"IF('1. Order'!I926=\"\",\"\",'1. Order'!I926)","v":""},{"$f":"IF('1. Order'!J926=\"\",\"\",'1. Order'!J926)","v":""},{"$f":"IF('1. Order'!K926=\"\",\"\",'1. Order'!K926)","v":""},{"$f":"IF('1. Order'!M926=\"\",\"\",'1. Order'!M926)","v":""},null,null,{"$f":"IF('1. Order'!AR926=\"\",\"\",'1. Order'!AR926)","v":""},{"$f":"IF('1. Order'!AE926=\"\",\"\",'1. Order'!AE926)","v":""}]
[{"$f":"IF('1. Order'!B927=\"\",\"\",'1. Order'!B927)","v":""},{"$f":"IF('1. Order'!I927=\"\",\"\",'1. Order'!I927)","v":""},{"$f":"IF('1. Order'!J927=\"\",\"\",'1. Order'!J927)","v":""},{"$f":"IF('1. Order'!K927=\"\",\"\",'1. Order'!K927)","v":""},{"$f":"IF('1. Order'!M927=\"\",\"\",'1. Order'!M927)","v":""},null,null,{"$f":"IF('1. Order'!AR927=\"\",\"\",'1. Order'!AR927)","v":""},{"$f":"IF('1. Order'!AE927=\"\",\"\",'1. Order'!AE927)","v":""}]
[{"$f":"IF('1. Order'!B928=\"\",\"\",'1. Order'!B928)","v":""},{"$f":"IF('1. Order'!I928=\"\",\"\",'1. Order'!I928)","v":""},{"$f":"IF('1. Order'!J928=\"\",\"\",'1. Order'!J928)","v":""},{"$f":"IF('1. Order'!K928=\"\",\"\",'1. Order'!K928)","v":""},{"$f":"IF('1. Order'!M928=\"\",\"\",'1. Order'!M928)","v":""},null,null,{"$f":"IF('1. Order'!AR928=\"\",\"\",'1. Order'!AR928)","v":""},{"$f":"IF('1. Order'!AE928=\"\",\"\",'1. Order'!AE928)","v":""}]
[{"$f":"IF('1. Order'!B929=\"\",\"\",'1. Order'!B929)","v":""},{"$f":"IF('1. Order'!I929=\"\",\"\",'1. Order'!I929)","v":""},{"$f":"IF('1. Order'!J929=\"\",\"\",'1. Order'!J929)","v":""},{"$f":"IF('1. Order'!K929=\"\",\"\",'1. Order'!K929)","v":""},{"$f":"IF('1. Order'!M929=\"\",\"\",'1. Order'!M929)","v":""},null,null,{"$f":"IF('1. Order'!AR929=\"\",\"\",'1. Order'!AR929)","v":""},{"$f":"IF('1. Order'!AE929=\"\",\"\",'1. Order'!AE929)","v":""}]
[{"$f":"IF('1. Order'!B930=\"\",\"\",'1. Order'!B930)","v":""},{"$f":"IF('1. Order'!I930=\"\",\"\",'1. Order'!I930)","v":""},{"$f":"IF('1. Order'!J930=\"\",\"\",'1. Order'!J930)","v":""},{"$f":"IF('1. Order'!K930=\"\",\"\",'1. Order'!K930)","v":""},{"$f":"IF('1. Order'!M930=\"\",\"\",'1. Order'!M930)","v":""},null,null,{"$f":"IF('1. Order'!AR930=\"\",\"\",'1. Order'!AR930)","v":""},{"$f":"IF('1. Order'!AE930=\"\",\"\",'1. Order'!AE930)","v":""}]
[{"$f":"IF('1. Order'!B931=\"\",\"\",'1. Order'!B931)","v":""},{"$f":"IF('1. Order'!I931=\"\",\"\",'1. Order'!I931)","v":""},{"$f":"IF('1. Order'!J931=\"\",\"\",'1. Order'!J931)","v":""},{"$f":"IF('1. Order'!K931=\"\",\"\",'1. Order'!K931)","v":""},{"$f":"IF('1. Order'!M931=\"\",\"\",'1. Order'!M931)","v":""},null,null,{"$f":"IF('1. Order'!AR931=\"\",\"\",'1. Order'!AR931)","v":""},{"$f":"IF('1. Order'!AE931=\"\",\"\",'1. Order'!AE931)","v":""}]
[{"$f":"IF('1. Order'!B932=\"\",\"\",'1. Order'!B932)","v":""},{"$f":"IF('1. Order'!I932=\"\",\"\",'1. Order'!I932)","v":""},{"$f":"IF('1. Order'!J932=\"\",\"\",'1. Order'!J932)","v":""},{"$f":"IF('1. Order'!K932=\"\",\"\",'1. Order'!K932)","v":""},{"$f":"IF('1. Order'!M932=\"\",\"\",'1. Order'!M932)","v":""},null,null,{"$f":"IF('1. Order'!AR932=\"\",\"\",'1. Order'!AR932)","v":""},{"$f":"IF('1. Order'!AE932=\"\",\"\",'1. Order'!AE932)","v":""}]
[{"$f":"IF('1. Order'!B933=\"\",\"\",'1. Order'!B933)","v":""},{"$f":"IF('1. Order'!I933=\"\",\"\",'1. Order'!I933)","v":""},{"$f":"IF('1. Order'!J933=\"\",\"\",'1. Order'!J933)","v":""},{"$f":"IF('1. Order'!K933=\"\",\"\",'1. Order'!K933)","v":""},{"$f":"IF('1. Order'!M933=\"\",\"\",'1. Order'!M933)","v":""},null,null,{"$f":"IF('1. Order'!AR933=\"\",\"\",'1. Order'!AR933)","v":""},{"$f":"IF('1. Order'!AE933=\"\",\"\",'1. Order'!AE933)","v":""}]
[{"$f":"IF('1. Order'!B934=\"\",\"\",'1. Order'!B934)","v":""},{"$f":"IF('1. Order'!I934=\"\",\"\",'1. Order'!I934)","v":""},{"$f":"IF('1. Order'!J934=\"\",\"\",'1. Order'!J934)","v":""},{"$f":"IF('1. Order'!K934=\"\",\"\",'1. Order'!K934)","v":""},{"$f":"IF('1. Order'!M934=\"\",\"\",'1. Order'!M934)","v":""},null,null,{"$f":"IF('1. Order'!AR934=\"\",\"\",'1. Order'!AR934)","v":""},{"$f":"IF('1. Order'!AE934=\"\",\"\",'1. Order'!AE934)","v":""}]
[{"$f":"IF('1. Order'!B935=\"\",\"\",'1. Order'!B935)","v":""},{"$f":"IF('1. Order'!I935=\"\",\"\",'1. Order'!I935)","v":""},{"$f":"IF('1. Order'!J935=\"\",\"\",'1. Order'!J935)","v":""},{"$f":"IF('1. Order'!K935=\"\",\"\",'1. Order'!K935)","v":""},{"$f":"IF('1. Order'!M935=\"\",\"\",'1. Order'!M935)","v":""},null,null,{"$f":"IF('1. Order'!AR935=\"\",\"\",'1. Order'!AR935)","v":""},{"$f":"IF('1. Order'!AE935=\"\",\"\",'1. Order'!AE935)","v":""}]
[{"$f":"IF('1. Order'!B936=\"\",\"\",'1. Order'!B936)","v":""},{"$f":"IF('1. Order'!I936=\"\",\"\",'1. Order'!I936)","v":""},{"$f":"IF('1. Order'!J936=\"\",\"\",'1. Order'!J936)","v":""},{"$f":"IF('1. Order'!K936=\"\",\"\",'1. Order'!K936)","v":""},{"$f":"IF('1. Order'!M936=\"\",\"\",'1. Order'!M936)","v":""},null,null,{"$f":"IF('1. Order'!AR936=\"\",\"\",'1. Order'!AR936)","v":""},{"$f":"IF('1. Order'!AE936=\"\",\"\",'1. Order'!AE936)","v":""}]
[{"$f":"IF('1. Order'!B937=\"\",\"\",'1. Order'!B937)","v":""},{"$f":"IF('1. Order'!I937=\"\",\"\",'1. Order'!I937)","v":""},{"$f":"IF('1. Order'!J937=\"\",\"\",'1. Order'!J937)","v":""},{"$f":"IF('1. Order'!K937=\"\",\"\",'1. Order'!K937)","v":""},{"$f":"IF('1. Order'!M937=\"\",\"\",'1. Order'!M937)","v":""},null,null,{"$f":"IF('1. Order'!AR937=\"\",\"\",'1. Order'!AR937)","v":""},{"$f":"IF('1. Order'!AE937=\"\",\"\",'1. Order'!AE937)","v":""}]
[{"$f":"IF('1. Order'!B938=\"\",\"\",'1. Order'!B938)","v":""},{"$f":"IF('1. Order'!I938=\"\",\"\",'1. Order'!I938)","v":""},{"$f":"IF('1. Order'!J938=\"\",\"\",'1. Order'!J938)","v":""},{"$f":"IF('1. Order'!K938=\"\",\"\",'1. Order'!K938)","v":""},{"$f":"IF('1. Order'!M938=\"\",\"\",'1. Order'!M938)","v":""},null,null,{"$f":"IF('1. Order'!AR938=\"\",\"\",'1. Order'!AR938)","v":""},{"$f":"IF('1. Order'!AE938=\"\",\"\",'1. Order'!AE938)","v":""}]
[{"$f":"IF('1. Order'!B939=\"\",\"\",'1. Order'!B939)","v":""},{"$f":"IF('1. Order'!I939=\"\",\"\",'1. Order'!I939)","v":""},{"$f":"IF('1. Order'!J939=\"\",\"\",'1. Order'!J939)","v":""},{"$f":"IF('1. Order'!K939=\"\",\"\",'1. Order'!K939)","v":""},{"$f":"IF('1. Order'!M939=\"\",\"\",'1. Order'!M939)","v":""},null,null,{"$f":"IF('1. Order'!AR939=\"\",\"\",'1. Order'!AR939)","v":""},{"$f":"IF('1. Order'!AE939=\"\",\"\",'1. Order'!AE939)","v":""}]
[{"$f":"IF('1. Order'!B940=\"\",\"\",'1. Order'!B940)","v":""},{"$f":"IF('1. Order'!I940=\"\",\"\",'1. Order'!I940)","v":""},{"$f":"IF('1. Order'!J940=\"\",\"\",'1. Order'!J940)","v":""},{"$f":"IF('1. Order'!K940=\"\",\"\",'1. Order'!K940)","v":""},{"$f":"IF('1. Order'!M940=\"\",\"\",'1. Order'!M940)","v":""},null,null,{"$f":"IF('1. Order'!AR940=\"\",\"\",'1. Order'!AR940)","v":""},{"$f":"IF('1. Order'!AE940=\"\",\"\",'1. Order'!AE940)","v":""}]
[{"$f":"IF('1. Order'!B941=\"\",\"\",'1. Order'!B941)","v":""},{"$f":"IF('1. Order'!I941=\"\",\"\",'1. Order'!I941)","v":""},{"$f":"IF('1. Order'!J941=\"\",\"\",'1. Order'!J941)","v":""},{"$f":"IF('1. Order'!K941=\"\",\"\",'1. Order'!K941)","v":""},{"$f":"IF('1. Order'!M941=\"\",\"\",'1. Order'!M941)","v":""},null,null,{"$f":"IF('1. Order'!AR941=\"\",\"\",'1. Order'!AR941)","v":""},{"$f":"IF('1. Order'!AE941=\"\",\"\",'1. Order'!AE941)","v":""}]
[{"$f":"IF('1. Order'!B942=\"\",\"\",'1. Order'!B942)","v":""},{"$f":"IF('1. Order'!I942=\"\",\"\",'1. Order'!I942)","v":""},{"$f":"IF('1. Order'!J942=\"\",\"\",'1. Order'!J942)","v":""},{"$f":"IF('1. Order'!K942=\"\",\"\",'1. Order'!K942)","v":""},{"$f":"IF('1. Order'!M942=\"\",\"\",'1. Order'!M942)","v":""},null,null,{"$f":"IF('1. Order'!AR942=\"\",\"\",'1. Order'!AR942)","v":""},{"$f":"IF('1. Order'!AE942=\"\",\"\",'1. Order'!AE942)","v":""}]
[{"$f":"IF('1. Order'!B943=\"\",\"\",'1. Order'!B943)","v":""},{"$f":"IF('1. Order'!I943=\"\",\"\",'1. Order'!I943)","v":""},{"$f":"IF('1. Order'!J943=\"\",\"\",'1. Order'!J943)","v":""},{"$f":"IF('1. Order'!K943=\"\",\"\",'1. Order'!K943)","v":""},{"$f":"IF('1. Order'!M943=\"\",\"\",'1. Order'!M943)","v":""},null,null,{"$f":"IF('1. Order'!AR943=\"\",\"\",'1. Order'!AR943)","v":""},{"$f":"IF('1. Order'!AE943=\"\",\"\",'1. Order'!AE943)","v":""}]
[{"$f":"IF('1. Order'!B944=\"\",\"\",'1. Order'!B944)","v":""},{"$f":"IF('1. Order'!I944=\"\",\"\",'1. Order'!I944)","v":""},{"$f":"IF('1. Order'!J944=\"\",\"\",'1. Order'!J944)","v":""},{"$f":"IF('1. Order'!K944=\"\",\"\",'1. Order'!K944)","v":""},{"$f":"IF('1. Order'!M944=\"\",\"\",'1. Order'!M944)","v":""},null,null,{"$f":"IF('1. Order'!AR944=\"\",\"\",'1. Order'!AR944)","v":""},{"$f":"IF('1. Order'!AE944=\"\",\"\",'1. Order'!AE944)","v":""}]
[{"$f":"IF('1. Order'!B945=\"\",\"\",'1. Order'!B945)","v":""},{"$f":"IF('1. Order'!I945=\"\",\"\",'1. Order'!I945)","v":""},{"$f":"IF('1. Order'!J945=\"\",\"\",'1. Order'!J945)","v":""},{"$f":"IF('1. Order'!K945=\"\",\"\",'1. Order'!K945)","v":""},{"$f":"IF('1. Order'!M945=\"\",\"\",'1. Order'!M945)","v":""},null,null,{"$f":"IF('1. Order'!AR945=\"\",\"\",'1. Order'!AR945)","v":""},{"$f":"IF('1. Order'!AE945=\"\",\"\",'1. Order'!AE945)","v":""}]
[{"$f":"IF('1. Order'!B946=\"\",\"\",'1. Order'!B946)","v":""},{"$f":"IF('1. Order'!I946=\"\",\"\",'1. Order'!I946)","v":""},{"$f":"IF('1. Order'!J946=\"\",\"\",'1. Order'!J946)","v":""},{"$f":"IF('1. Order'!K946=\"\",\"\",'1. Order'!K946)","v":""},{"$f":"IF('1. Order'!M946=\"\",\"\",'1. Order'!M946)","v":""},null,null,{"$f":"IF('1. Order'!AR946=\"\",\"\",'1. Order'!AR946)","v":""},{"$f":"IF('1. Order'!AE946=\"\",\"\",'1. Order'!AE946)","v":""}]
[{"$f":"IF('1. Order'!B947=\"\",\"\",'1. Order'!B947)","v":""},{"$f":"IF('1. Order'!I947=\"\",\"\",'1. Order'!I947)","v":""},{"$f":"IF('1. Order'!J947=\"\",\"\",'1. Order'!J947)","v":""},{"$f":"IF('1. Order'!K947=\"\",\"\",'1. Order'!K947)","v":""},{"$f":"IF('1. Order'!M947=\"\",\"\",'1. Order'!M947)","v":""},null,null,{"$f":"IF('1. Order'!AR947=\"\",\"\",'1. Order'!AR947)","v":""},{"$f":"IF('1. Order'!AE947=\"\",\"\",'1. Order'!AE947)","v":""}]
[{"$f":"IF('1. Order'!B948=\"\",\"\",'1. Order'!B948)","v":""},{"$f":"IF('1. Order'!I948=\"\",\"\",'1. Order'!I948)","v":""},{"$f":"IF('1. Order'!J948=\"\",\"\",'1. Order'!J948)","v":""},{"$f":"IF('1. Order'!K948=\"\",\"\",'1. Order'!K948)","v":""},{"$f":"IF('1. Order'!M948=\"\",\"\",'1. Order'!M948)","v":""},null,null,{"$f":"IF('1. Order'!AR948=\"\",\"\",'1. Order'!AR948)","v":""},{"$f":"IF('1. Order'!AE948=\"\",\"\",'1. Order'!AE948)","v":""}]
[{"$f":"IF('1. Order'!B949=\"\",\"\",'1. Order'!B949)","v":""},{"$f":"IF('1. Order'!I949=\"\",\"\",'1. Order'!I949)","v":""},{"$f":"IF('1. Order'!J949=\"\",\"\",'1. Order'!J949)","v":""},{"$f":"IF('1. Order'!K949=\"\",\"\",'1. Order'!K949)","v":""},{"$f":"IF('1. Order'!M949=\"\",\"\",'1. Order'!M949)","v":""},null,null,{"$f":"IF('1. Order'!AR949=\"\",\"\",'1. Order'!AR949)","v":""},{"$f":"IF('1. Order'!AE949=\"\",\"\",'1. Order'!AE949)","v":""}]
[{"$f":"IF('1. Order'!B950=\"\",\"\",'1. Order'!B950)","v":""},{"$f":"IF('1. Order'!I950=\"\",\"\",'1. Order'!I950)","v":""},{"$f":"IF('1. Order'!J950=\"\",\"\",'1. Order'!J950)","v":""},{"$f":"IF('1. Order'!K950=\"\",\"\",'1. Order'!K950)","v":""},{"$f":"IF('1. Order'!M950=\"\",\"\",'1. Order'!M950)","v":""},null,null,{"$f":"IF('1. Order'!AR950=\"\",\"\",'1. Order'!AR950)","v":""},{"$f":"IF('1. Order'!AE950=\"\",\"\",'1. Order'!AE950)","v":""}]
[{"$f":"IF('1. Order'!B951=\"\",\"\",'1. Order'!B951)","v":""},{"$f":"IF('1. Order'!I951=\"\",\"\",'1. Order'!I951)","v":""},{"$f":"IF('1. Order'!J951=\"\",\"\",'1. Order'!J951)","v":""},{"$f":"IF('1. Order'!K951=\"\",\"\",'1. Order'!K951)","v":""},{"$f":"IF('1. Order'!M951=\"\",\"\",'1. Order'!M951)","v":""},null,null,{"$f":"IF('1. Order'!AR951=\"\",\"\",'1. Order'!AR951)","v":""},{"$f":"IF('1. Order'!AE951=\"\",\"\",'1. Order'!AE951)","v":""}]
[{"$f":"IF('1. Order'!B952=\"\",\"\",'1. Order'!B952)","v":""},{"$f":"IF('1. Order'!I952=\"\",\"\",'1. Order'!I952)","v":""},{"$f":"IF('1. Order'!J952=\"\",\"\",'1. Order'!J952)","v":""},{"$f":"IF('1. Order'!K952=\"\",\"\",'1. Order'!K952)","v":""},{"$f":"IF('1. Order'!M952=\"\",\"\",'1. Order'!M952)","v":""},null,null,{"$f":"IF('1. Order'!AR952=\"\",\"\",'1. Order'!AR952)","v":""},{"$f":"IF('1. Order'!AE952=\"\",\"\",'1. Order'!AE952)","v":""}]
[{"$f":"IF('1. Order'!B953=\"\",\"\",'1. Order'!B953)","v":""},{"$f":"IF('1. Order'!I953=\"\",\"\",'1. Order'!I953)","v":""},{"$f":"IF('1. Order'!J953=\"\",\"\",'1. Order'!J953)","v":""},{"$f":"IF('1. Order'!K953=\"\",\"\",'1. Order'!K953)","v":""},{"$f":"IF('1. Order'!M953=\"\",\"\",'1. Order'!M953)","v":""},null,null,{"$f":"IF('1. Order'!AR953=\"\",\"\",'1. Order'!AR953)","v":""},{"$f":"IF('1. Order'!AE953=\"\",\"\",'1. Order'!AE953)","v":""}]
[{"$f":"IF('1. Order'!B954=\"\",\"\",'1. Order'!B954)","v":""},{"$f":"IF('1. Order'!I954=\"\",\"\",'1. Order'!I954)","v":""},{"$f":"IF('1. Order'!J954=\"\",\"\",'1. Order'!J954)","v":""},{"$f":"IF('1. Order'!K954=\"\",\"\",'1. Order'!K954)","v":""},{"$f":"IF('1. Order'!M954=\"\",\"\",'1. Order'!M954)","v":""},null,null,{"$f":"IF('1. Order'!AR954=\"\",\"\",'1. Order'!AR954)","v":""},{"$f":"IF('1. Order'!AE954=\"\",\"\",'1. Order'!AE954)","v":""}]
[{"$f":"IF('1. Order'!B955=\"\",\"\",'1. Order'!B955)","v":""},{"$f":"IF('1. Order'!I955=\"\",\"\",'1. Order'!I955)","v":""},{"$f":"IF('1. Order'!J955=\"\",\"\",'1. Order'!J955)","v":""},{"$f":"IF('1. Order'!K955=\"\",\"\",'1. Order'!K955)","v":""},{"$f":"IF('1. Order'!M955=\"\",\"\",'1. Order'!M955)","v":""},null,null,{"$f":"IF('1. Order'!AR955=\"\",\"\",'1. Order'!AR955)","v":""},{"$f":"IF('1. Order'!AE955=\"\",\"\",'1. Order'!AE955)","v":""}]
[{"$f":"IF('1. Order'!B956=\"\",\"\",'1. Order'!B956)","v":""},{"$f":"IF('1. Order'!I956=\"\",\"\",'1. Order'!I956)","v":""},{"$f":"IF('1. Order'!J956=\"\",\"\",'1. Order'!J956)","v":""},{"$f":"IF('1. Order'!K956=\"\",\"\",'1. Order'!K956)","v":""},{"$f":"IF('1. Order'!M956=\"\",\"\",'1. Order'!M956)","v":""},null,null,{"$f":"IF('1. Order'!AR956=\"\",\"\",'1. Order'!AR956)","v":""},{"$f":"IF('1. Order'!AE956=\"\",\"\",'1. Order'!AE956)","v":""}]
[{"$f":"IF('1. Order'!B957=\"\",\"\",'1. Order'!B957)","v":""},{"$f":"IF('1. Order'!I957=\"\",\"\",'1. Order'!I957)","v":""},{"$f":"IF('1. Order'!J957=\"\",\"\",'1. Order'!J957)","v":""},{"$f":"IF('1. Order'!K957=\"\",\"\",'1. Order'!K957)","v":""},{"$f":"IF('1. Order'!M957=\"\",\"\",'1. Order'!M957)","v":""},null,null,{"$f":"IF('1. Order'!AR957=\"\",\"\",'1. Order'!AR957)","v":""},{"$f":"IF('1. Order'!AE957=\"\",\"\",'1. Order'!AE957)","v":""}]
[{"$f":"IF('1. Order'!B958=\"\",\"\",'1. Order'!B958)","v":""},{"$f":"IF('1. Order'!I958=\"\",\"\",'1. Order'!I958)","v":""},{"$f":"IF('1. Order'!J958=\"\",\"\",'1. Order'!J958)","v":""},{"$f":"IF('1. Order'!K958=\"\",\"\",'1. Order'!K958)","v":""},{"$f":"IF('1. Order'!M958=\"\",\"\",'1. Order'!M958)","v":""},null,null,{"$f":"IF('1. Order'!AR958=\"\",\"\",'1. Order'!AR958)","v":""},{"$f":"IF('1. Order'!AE958=\"\",\"\",'1. Order'!AE958)","v":""}]
[{"$f":"IF('1. Order'!B959=\"\",\"\",'1. Order'!B959)","v":""},{"$f":"IF('1. Order'!I959=\"\",\"\",'1. Order'!I959)","v":""},{"$f":"IF('1. Order'!J959=\"\",\"\",'1. Order'!J959)","v":""},{"$f":"IF('1. Order'!K959=\"\",\"\",'1. Order'!K959)","v":""},{"$f":"IF('1. Order'!M959=\"\",\"\",'1. Order'!M959)","v":""},null,null,{"$f":"IF('1. Order'!AR959=\"\",\"\",'1. Order'!AR959)","v":""},{"$f":"IF('1. Order'!AE959=\"\",\"\",'1. Order'!AE959)","v":""}]
[{"$f":"IF('1. Order'!B960=\"\",\"\",'1. Order'!B960)","v":""},{"$f":"IF('1. Order'!I960=\"\",\"\",'1. Order'!I960)","v":""},{"$f":"IF('1. Order'!J960=\"\",\"\",'1. Order'!J960)","v":""},{"$f":"IF('1. Order'!K960=\"\",\"\",'1. Order'!K960)","v":""},{"$f":"IF('1. Order'!M960=\"\",\"\",'1. Order'!M960)","v":""},null,null,{"$f":"IF('1. Order'!AR960=\"\",\"\",'1. Order'!AR960)","v":""},{"$f":"IF('1. Order'!AE960=\"\",\"\",'1. Order'!AE960)","v":""}]
[{"$f":"IF('1. Order'!B961=\"\",\"\",'1. Order'!B961)","v":""},{"$f":"IF('1. Order'!I961=\"\",\"\",'1. Order'!I961)","v":""},{"$f":"IF('1. Order'!J961=\"\",\"\",'1. Order'!J961)","v":""},{"$f":"IF('1. Order'!K961=\"\",\"\",'1. Order'!K961)","v":""},{"$f":"IF('1. Order'!M961=\"\",\"\",'1. Order'!M961)","v":""},null,null,{"$f":"IF('1. Order'!AR961=\"\",\"\",'1. Order'!AR961)","v":""},{"$f":"IF('1. Order'!AE961=\"\",\"\",'1. Order'!AE961)","v":""}]
[{"$f":"IF('1. Order'!B962=\"\",\"\",'1. Order'!B962)","v":""},{"$f":"IF('1. Order'!I962=\"\",\"\",'1. Order'!I962)","v":""},{"$f":"IF('1. Order'!J962=\"\",\"\",'1. Order'!J962)","v":""},{"$f":"IF('1. Order'!K962=\"\",\"\",'1. Order'!K962)","v":""},{"$f":"IF('1. Order'!M962=\"\",\"\",'1. Order'!M962)","v":""},null,null,{"$f":"IF('1. Order'!AR962=\"\",\"\",'1. Order'!AR962)","v":""},{"$f":"IF('1. Order'!AE962=\"\",\"\",'1. Order'!AE962)","v":""}]
[{"$f":"IF('1. Order'!B963=\"\",\"\",'1. Order'!B963)","v":""},{"$f":"IF('1. Order'!I963=\"\",\"\",'1. Order'!I963)","v":""},{"$f":"IF('1. Order'!J963=\"\",\"\",'1. Order'!J963)","v":""},{"$f":"IF('1. Order'!K963=\"\",\"\",'1. Order'!K963)","v":""},{"$f":"IF('1. Order'!M963=\"\",\"\",'1. Order'!M963)","v":""},null,null,{"$f":"IF('1. Order'!AR963=\"\",\"\",'1. Order'!AR963)","v":""},{"$f":"IF('1. Order'!AE963=\"\",\"\",'1. Order'!AE963)","v":""}]
[{"$f":"IF('1. Order'!B964=\"\",\"\",'1. Order'!B964)","v":""},{"$f":"IF('1. Order'!I964=\"\",\"\",'1. Order'!I964)","v":""},{"$f":"IF('1. Order'!J964=\"\",\"\",'1. Order'!J964)","v":""},{"$f":"IF('1. Order'!K964=\"\",\"\",'1. Order'!K964)","v":""},{"$f":"IF('1. Order'!M964=\"\",\"\",'1. Order'!M964)","v":""},null,null,{"$f":"IF('1. Order'!AR964=\"\",\"\",'1. Order'!AR964)","v":""},{"$f":"IF('1. Order'!AE964=\"\",\"\",'1. Order'!AE964)","v":""}]
[{"$f":"IF('1. Order'!B965=\"\",\"\",'1. Order'!B965)","v":""},{"$f":"IF('1. Order'!I965=\"\",\"\",'1. Order'!I965)","v":""},{"$f":"IF('1. Order'!J965=\"\",\"\",'1. Order'!J965)","v":""},{"$f":"IF('1. Order'!K965=\"\",\"\",'1. Order'!K965)","v":""},{"$f":"IF('1. Order'!M965=\"\",\"\",'1. Order'!M965)","v":""},null,null,{"$f":"IF('1. Order'!AR965=\"\",\"\",'1. Order'!AR965)","v":""},{"$f":"IF('1. Order'!AE965=\"\",\"\",'1. Order'!AE965)","v":""}]
[{"$f":"IF('1. Order'!B966=\"\",\"\",'1. Order'!B966)","v":""},{"$f":"IF('1. Order'!I966=\"\",\"\",'1. Order'!I966)","v":""},{"$f":"IF('1. Order'!J966=\"\",\"\",'1. Order'!J966)","v":""},{"$f":"IF('1. Order'!K966=\"\",\"\",'1. Order'!K966)","v":""},{"$f":"IF('1. Order'!M966=\"\",\"\",'1. Order'!M966)","v":""},null,null,{"$f":"IF('1. Order'!AR966=\"\",\"\",'1. Order'!AR966)","v":""},{"$f":"IF('1. Order'!AE966=\"\",\"\",'1. Order'!AE966)","v":""}]
[{"$f":"IF('1. Order'!B967=\"\",\"\",'1. Order'!B967)","v":""},{"$f":"IF('1. Order'!I967=\"\",\"\",'1. Order'!I967)","v":""},{"$f":"IF('1. Order'!J967=\"\",\"\",'1. Order'!J967)","v":""},{"$f":"IF('1. Order'!K967=\"\",\"\",'1. Order'!K967)","v":""},{"$f":"IF('1. Order'!M967=\"\",\"\",'1. Order'!M967)","v":""},null,null,{"$f":"IF('1. Order'!AR967=\"\",\"\",'1. Order'!AR967)","v":""},{"$f":"IF('1. Order'!AE967=\"\",\"\",'1. Order'!AE967)","v":""}]
[{"$f":"IF('1. Order'!B968=\"\",\"\",'1. Order'!B968)","v":""},{"$f":"IF('1. Order'!I968=\"\",\"\",'1. Order'!I968)","v":""},{"$f":"IF('1. Order'!J968=\"\",\"\",'1. Order'!J968)","v":""},{"$f":"IF('1. Order'!K968=\"\",\"\",'1. Order'!K968)","v":""},{"$f":"IF('1. Order'!M968=\"\",\"\",'1. Order'!M968)","v":""},null,null,{"$f":"IF('1. Order'!AR968=\"\",\"\",'1. Order'!AR968)","v":""},{"$f":"IF('1. Order'!AE968=\"\",\"\",'1. Order'!AE968)","v":""}]
[{"$f":"IF('1. Order'!B969=\"\",\"\",'1. Order'!B969)","v":""},{"$f":"IF('1. Order'!I969=\"\",\"\",'1. Order'!I969)","v":""},{"$f":"IF('1. Order'!J969=\"\",\"\",'1. Order'!J969)","v":""},{"$f":"IF('1. Order'!K969=\"\",\"\",'1. Order'!K969)","v":""},{"$f":"IF('1. Order'!M969=\"\",\"\",'1. Order'!M969)","v":""},null,null,{"$f":"IF('1. Order'!AR969=\"\",\"\",'1. Order'!AR969)","v":""},{"$f":"IF('1. Order'!AE969=\"\",\"\",'1. Order'!AE969)","v":""}]
[{"$f":"IF('1. Order'!B970=\"\",\"\",'1. Order'!B970)","v":""},{"$f":"IF('1. Order'!I970=\"\",\"\",'1. Order'!I970)","v":""},{"$f":"IF('1. Order'!J970=\"\",\"\",'1. Order'!J970)","v":""},{"$f":"IF('1. Order'!K970=\"\",\"\",'1. Order'!K970)","v":""},{"$f":"IF('1. Order'!M970=\"\",\"\",'1. Order'!M970)","v":""},null,null,{"$f":"IF('1. Order'!AR970=\"\",\"\",'1. Order'!AR970)","v":""},{"$f":"IF('1. Order'!AE970=\"\",\"\",'1. Order'!AE970)","v":""}]
[{"$f":"IF('1. Order'!B971=\"\",\"\",'1. Order'!B971)","v":""},{"$f":"IF('1. Order'!I971=\"\",\"\",'1. Order'!I971)","v":""},{"$f":"IF('1. Order'!J971=\"\",\"\",'1. Order'!J971)","v":""},{"$f":"IF('1. Order'!K971=\"\",\"\",'1. Order'!K971)","v":""},{"$f":"IF('1. Order'!M971=\"\",\"\",'1. Order'!M971)","v":""},null,null,{"$f":"IF('1. Order'!AR971=\"\",\"\",'1. Order'!AR971)","v":""},{"$f":"IF('1. Order'!AE971=\"\",\"\",'1. Order'!AE971)","v":""}]
[{"$f":"IF('1. Order'!B972=\"\",\"\",'1. Order'!B972)","v":""},{"$f":"IF('1. Order'!I972=\"\",\"\",'1. Order'!I972)","v":""},{"$f":"IF('1. Order'!J972=\"\",\"\",'1. Order'!J972)","v":""},{"$f":"IF('1. Order'!K972=\"\",\"\",'1. Order'!K972)","v":""},{"$f":"IF('1. Order'!M972=\"\",\"\",'1. Order'!M972)","v":""},null,null,{"$f":"IF('1. Order'!AR972=\"\",\"\",'1. Order'!AR972)","v":""},{"$f":"IF('1. Order'!AE972=\"\",\"\",'1. Order'!AE972)","v":""}]
[{"$f":"IF('1. Order'!B973=\"\",\"\",'1. Order'!B973)","v":""},{"$f":"IF('1. Order'!I973=\"\",\"\",'1. Order'!I973)","v":""},{"$f":"IF('1. Order'!J973=\"\",\"\",'1. Order'!J973)","v":""},{"$f":"IF('1. Order'!K973=\"\",\"\",'1. Order'!K973)","v":""},{"$f":"IF('1. Order'!M973=\"\",\"\",'1. Order'!M973)","v":""},null,null,{"$f":"IF('1. Order'!AR973=\"\",\"\",'1. Order'!AR973)","v":""},{"$f":"IF('1. Order'!AE973=\"\",\"\",'1. Order'!AE973)","v":""}]
[{"$f":"IF('1. Order'!B974=\"\",\"\",'1. Order'!B974)","v":""},{"$f":"IF('1. Order'!I974=\"\",\"\",'1. Order'!I974)","v":""},{"$f":"IF('1. Order'!J974=\"\",\"\",'1. Order'!J974)","v":""},{"$f":"IF('1. Order'!K974=\"\",\"\",'1. Order'!K974)","v":""},{"$f":"IF('1. Order'!M974=\"\",\"\",'1. Order'!M974)","v":""},null,null,{"$f":"IF('1. Order'!AR974=\"\",\"\",'1. Order'!AR974)","v":""},{"$f":"IF('1. Order'!AE974=\"\",\"\",'1. Order'!AE974)","v":""}]
[{"$f":"IF('1. Order'!B975=\"\",\"\",'1. Order'!B975)","v":""},{"$f":"IF('1. Order'!I975=\"\",\"\",'1. Order'!I975)","v":""},{"$f":"IF('1. Order'!J975=\"\",\"\",'1. Order'!J975)","v":""},{"$f":"IF('1. Order'!K975=\"\",\"\",'1. Order'!K975)","v":""},{"$f":"IF('1. Order'!M975=\"\",\"\",'1. Order'!M975)","v":""},null,null,{"$f":"IF('1. Order'!AR975=\"\",\"\",'1. Order'!AR975)","v":""},{"$f":"IF('1. Order'!AE975=\"\",\"\",'1. Order'!AE975)","v":""}]
[{"$f":"IF('1. Order'!B976=\"\",\"\",'1. Order'!B976)","v":""},{"$f":"IF('1. Order'!I976=\"\",\"\",'1. Order'!I976)","v":""},{"$f":"IF('1. Order'!J976=\"\",\"\",'1. Order'!J976)","v":""},{"$f":"IF('1. Order'!K976=\"\",\"\",'1. Order'!K976)","v":""},{"$f":"IF('1. Order'!M976=\"\",\"\",'1. Order'!M976)","v":""},null,null,{"$f":"IF('1. Order'!AR976=\"\",\"\",'1. Order'!AR976)","v":""},{"$f":"IF('1. Order'!AE976=\"\",\"\",'1. Order'!AE976)","v":""}]
[{"$f":"IF('1. Order'!B977=\"\",\"\",'1. Order'!B977)","v":""},{"$f":"IF('1. Order'!I977=\"\",\"\",'1. Order'!I977)","v":""},{"$f":"IF('1. Order'!J977=\"\",\"\",'1. Order'!J977)","v":""},{"$f":"IF('1. Order'!K977=\"\",\"\",'1. Order'!K977)","v":""},{"$f":"IF('1. Order'!M977=\"\",\"\",'1. Order'!M977)","v":""},null,null,{"$f":"IF('1. Order'!AR977=\"\",\"\",'1. Order'!AR977)","v":""},{"$f":"IF('1. Order'!AE977=\"\",\"\",'1. Order'!AE977)","v":""}]
[{"$f":"IF('1. Order'!B978=\"\",\"\",'1. Order'!B978)","v":""},{"$f":"IF('1. Order'!I978=\"\",\"\",'1. Order'!I978)","v":""},{"$f":"IF('1. Order'!J978=\"\",\"\",'1. Order'!J978)","v":""},{"$f":"IF('1. Order'!K978=\"\",\"\",'1. Order'!K978)","v":""},{"$f":"IF('1. Order'!M978=\"\",\"\",'1. Order'!M978)","v":""},null,null,{"$f":"IF('1. Order'!AR978=\"\",\"\",'1. Order'!AR978)","v":""},{"$f":"IF('1. Order'!AE978=\"\",\"\",'1. Order'!AE978)","v":""}]
[{"$f":"IF('1. Order'!B979=\"\",\"\",'1. Order'!B979)","v":""},{"$f":"IF('1. Order'!I979=\"\",\"\",'1. Order'!I979)","v":""},{"$f":"IF('1. Order'!J979=\"\",\"\",'1. Order'!J979)","v":""},{"$f":"IF('1. Order'!K979=\"\",\"\",'1. Order'!K979)","v":""},{"$f":"IF('1. Order'!M979=\"\",\"\",'1. Order'!M979)","v":""},null,null,{"$f":"IF('1. Order'!AR979=\"\",\"\",'1. Order'!AR979)","v":""},{"$f":"IF('1. Order'!AE979=\"\",\"\",'1. Order'!AE979)","v":""}]
[{"$f":"IF('1. Order'!B980=\"\",\"\",'1. Order'!B980)","v":""},{"$f":"IF('1. Order'!I980=\"\",\"\",'1. Order'!I980)","v":""},{"$f":"IF('1. Order'!J980=\"\",\"\",'1. Order'!J980)","v":""},{"$f":"IF('1. Order'!K980=\"\",\"\",'1. Order'!K980)","v":""},{"$f":"IF('1. Order'!M980=\"\",\"\",'1. Order'!M980)","v":""},null,null,{"$f":"IF('1. Order'!AR980=\"\",\"\",'1. Order'!AR980)","v":""},{"$f":"IF('1. Order'!AE980=\"\",\"\",'1. Order'!AE980)","v":""}]
[{"$f":"IF('1. Order'!B981=\"\",\"\",'1. Order'!B981)","v":""},{"$f":"IF('1. Order'!I981=\"\",\"\",'1. Order'!I981)","v":""},{"$f":"IF('1. Order'!J981=\"\",\"\",'1. Order'!J981)","v":""},{"$f":"IF('1. Order'!K981=\"\",\"\",'1. Order'!K981)","v":""},{"$f":"IF('1. Order'!M981=\"\",\"\",'1. Order'!M981)","v":""},null,null,{"$f":"IF('1. Order'!AR981=\"\",\"\",'1. Order'!AR981)","v":""},{"$f":"IF('1. Order'!AE981=\"\",\"\",'1. Order'!AE981)","v":""}]
[{"$f":"IF('1. Order'!B982=\"\",\"\",'1. Order'!B982)","v":""},{"$f":"IF('1. Order'!I982=\"\",\"\",'1. Order'!I982)","v":""},{"$f":"IF('1. Order'!J982=\"\",\"\",'1. Order'!J982)","v":""},{"$f":"IF('1. Order'!K982=\"\",\"\",'1. Order'!K982)","v":""},{"$f":"IF('1. Order'!M982=\"\",\"\",'1. Order'!M982)","v":""},null,null,{"$f":"IF('1. Order'!AR982=\"\",\"\",'1. Order'!AR982)","v":""},{"$f":"IF('1. Order'!AE982=\"\",\"\",'1. Order'!AE982)","v":""}]
[{"$f":"IF('1. Order'!B983=\"\",\"\",'1. Order'!B983)","v":""},{"$f":"IF('1. Order'!I983=\"\",\"\",'1. Order'!I983)","v":""},{"$f":"IF('1. Order'!J983=\"\",\"\",'1. Order'!J983)","v":""},{"$f":"IF('1. Order'!K983=\"\",\"\",'1. Order'!K983)","v":""},{"$f":"IF('1. Order'!M983=\"\",\"\",'1. Order'!M983)","v":""},null,null,{"$f":"IF('1. Order'!AR983=\"\",\"\",'1. Order'!AR983)","v":""},{"$f":"IF('1. Order'!AE983=\"\",\"\",'1. Order'!AE983)","v":""}]
[{"$f":"IF('1. Order'!B984=\"\",\"\",'1. Order'!B984)","v":""},{"$f":"IF('1. Order'!I984=\"\",\"\",'1. Order'!I984)","v":""},{"$f":"IF('1. Order'!J984=\"\",\"\",'1. Order'!J984)","v":""},{"$f":"IF('1. Order'!K984=\"\",\"\",'1. Order'!K984)","v":""},{"$f":"IF('1. Order'!M984=\"\",\"\",'1. Order'!M984)","v":""},null,null,{"$f":"IF('1. Order'!AR984=\"\",\"\",'1. Order'!AR984)","v":""},{"$f":"IF('1. Order'!AE984=\"\",\"\",'1. Order'!AE984)","v":""}]
[{"$f":"IF('1. Order'!B985=\"\",\"\",'1. Order'!B985)","v":""},{"$f":"IF('1. Order'!I985=\"\",\"\",'1. Order'!I985)","v":""},{"$f":"IF('1. Order'!J985=\"\",\"\",'1. Order'!J985)","v":""},{"$f":"IF('1. Order'!K985=\"\",\"\",'1. Order'!K985)","v":""},{"$f":"IF('1. Order'!M985=\"\",\"\",'1. Order'!M985)","v":""},null,null,{"$f":"IF('1. Order'!AR985=\"\",\"\",'1. Order'!AR985)","v":""},{"$f":"IF('1. Order'!AE985=\"\",\"\",'1. Order'!AE985)","v":""}]
[{"$f":"IF('1. Order'!B986=\"\",\"\",'1. Order'!B986)","v":""},{"$f":"IF('1. Order'!I986=\"\",\"\",'1. Order'!I986)","v":""},{"$f":"IF('1. Order'!J986=\"\",\"\",'1. Order'!J986)","v":""},{"$f":"IF('1. Order'!K986=\"\",\"\",'1. Order'!K986)","v":""},{"$f":"IF('1. Order'!M986=\"\",\"\",'1. Order'!M986)","v":""},null,null,{"$f":"IF('1. Order'!AR986=\"\",\"\",'1. Order'!AR986)","v":""},{"$f":"IF('1. Order'!AE986=\"\",\"\",'1. Order'!AE986)","v":""}]
[{"$f":"IF('1. Order'!B987=\"\",\"\",'1. Order'!B987)","v":""},{"$f":"IF('1. Order'!I987=\"\",\"\",'1. Order'!I987)","v":""},{"$f":"IF('1. Order'!J987=\"\",\"\",'1. Order'!J987)","v":""},{"$f":"IF('1. Order'!K987=\"\",\"\",'1. Order'!K987)","v":""},{"$f":"IF('1. Order'!M987=\"\",\"\",'1. Order'!M987)","v":""},null,null,{"$f":"IF('1. Order'!AR987=\"\",\"\",'1. Order'!AR987)","v":""},{"$f":"IF('1. Order'!AE987=\"\",\"\",'1. Order'!AE987)","v":""}]
[{"$f":"IF('1. Order'!B988=\"\",\"\",'1. Order'!B988)","v":""},{"$f":"IF('1. Order'!I988=\"\",\"\",'1. Order'!I988)","v":""},{"$f":"IF('1. Order'!J988=\"\",\"\",'1. Order'!J988)","v":""},{"$f":"IF('1. Order'!K988=\"\",\"\",'1. Order'!K988)","v":""},{"$f":"IF('1. Order'!M988=\"\",\"\",'1. Order'!M988)","v":""},null,null,{"$f":"IF('1. Order'!AR988=\"\",\"\",'1. Order'!AR988)","v":""},{"$f":"IF('1. Order'!AE988=\"\",\"\",'1. Order'!AE988)","v":""}]
[{"$f":"IF('1. Order'!B989=\"\",\"\",'1. Order'!B989)","v":""},{"$f":"IF('1. Order'!I989=\"\",\"\",'1. Order'!I989)","v":""},{"$f":"IF('1. Order'!J989=\"\",\"\",'1. Order'!J989)","v":""},{"$f":"IF('1. Order'!K989=\"\",\"\",'1. Order'!K989)","v":""},{"$f":"IF('1. Order'!M989=\"\",\"\",'1. Order'!M989)","v":""},null,null,{"$f":"IF('1. Order'!AR989=\"\",\"\",'1. Order'!AR989)","v":""},{"$f":"IF('1. Order'!AE989=\"\",\"\",'1. Order'!AE989)","v":""}]
[{"$f":"IF('1. Order'!B990=\"\",\"\",'1. Order'!B990)","v":""},{"$f":"IF('1. Order'!I990=\"\",\"\",'1. Order'!I990)","v":""},{"$f":"IF('1. Order'!J990=\"\",\"\",'1. Order'!J990)","v":""},{"$f":"IF('1. Order'!K990=\"\",\"\",'1. Order'!K990)","v":""},{"$f":"IF('1. Order'!M990=\"\",\"\",'1. Order'!M990)","v":""},null,null,{"$f":"IF('1. Order'!AR990=\"\",\"\",'1. Order'!AR990)","v":""},{"$f":"IF('1. Order'!AE990=\"\",\"\",'1. Order'!AE990)","v":""}]
[{"$f":"IF('1. Order'!B991=\"\",\"\",'1. Order'!B991)","v":""},{"$f":"IF('1. Order'!I991=\"\",\"\",'1. Order'!I991)","v":""},{"$f":"IF('1. Order'!J991=\"\",\"\",'1. Order'!J991)","v":""},{"$f":"IF('1. Order'!K991=\"\",\"\",'1. Order'!K991)","v":""},{"$f":"IF('1. Order'!M991=\"\",\"\",'1. Order'!M991)","v":""},null,null,{"$f":"IF('1. Order'!AR991=\"\",\"\",'1. Order'!AR991)","v":""},{"$f":"IF('1. Order'!AE991=\"\",\"\",'1. Order'!AE991)","v":""}]
[{"$f":"IF('1. Order'!B992=\"\",\"\",'1. Order'!B992)","v":""},{"$f":"IF('1. Order'!I992=\"\",\"\",'1. Order'!I992)","v":""},{"$f":"IF('1. Order'!J992=\"\",\"\",'1. Order'!J992)","v":""},{"$f":"IF('1. Order'!K992=\"\",\"\",'1. Order'!K992)","v":""},{"$f":"IF('1. Order'!M992=\"\",\"\",'1. Order'!M992)","v":""},null,null,{"$f":"IF('1. Order'!AR992=\"\",\"\",'1. Order'!AR992)","v":""},{"$f":"IF('1. Order'!AE992=\"\",\"\",'1. Order'!AE992)","v":""}]
[{"$f":"IF('1. Order'!B993=\"\",\"\",'1. Order'!B993)","v":""},{"$f":"IF('1. Order'!I993=\"\",\"\",'1. Order'!I993)","v":""},{"$f":"IF('1. Order'!J993=\"\",\"\",'1. Order'!J993)","v":""},{"$f":"IF('1. Order'!K993=\"\",\"\",'1. Order'!K993)","v":""},{"$f":"IF('1. Order'!M993=\"\",\"\",'1. Order'!M993)","v":""},null,null,{"$f":"IF('1. Order'!AR993=\"\",\"\",'1. Order'!AR993)","v":""},{"$f":"IF('1. Order'!AE993=\"\",\"\",'1. Order'!AE993)","v":""}]
[{"$f":"IF('1. Order'!B994=\"\",\"\",'1. Order'!B994)","v":""},{"$f":"IF('1. Order'!I994=\"\",\"\",'1. Order'!I994)","v":""},{"$f":"IF('1. Order'!J994=\"\",\"\",'1. Order'!J994)","v":""},{"$f":"IF('1. Order'!K994=\"\",\"\",'1. Order'!K994)","v":""},{"$f":"IF('1. Order'!M994=\"\",\"\",'1. Order'!M994)","v":""},null,null,{"$f":"IF('1. Order'!AR994=\"\",\"\",'1. Order'!AR994)","v":""},{"$f":"IF('1. Order'!AE994=\"\",\"\",'1. Order'!AE994)","v":""}]
[{"$f":"IF('1. Order'!B995=\"\",\"\",'1. Order'!B995)","v":""},{"$f":"IF('1. Order'!I995=\"\",\"\",'1. Order'!I995)","v":""},{"$f":"IF('1. Order'!J995=\"\",\"\",'1. Order'!J995)","v":""},{"$f":"IF('1. Order'!K995=\"\",\"\",'1. Order'!K995)","v":""},{"$f":"IF('1. Order'!M995=\"\",\"\",'1. Order'!M995)","v":""},null,null,{"$f":"IF('1. Order'!AR995=\"\",\"\",'1. Order'!AR995)","v":""},{"$f":"IF('1. Order'!AE995=\"\",\"\",'1. Order'!AE995)","v":""}]
[{"$f":"IF('1. Order'!B996=\"\",\"\",'1. Order'!B996)","v":""},{"$f":"IF('1. Order'!I996=\"\",\"\",'1. Order'!I996)","v":""},{"$f":"IF('1. Order'!J996=\"\",\"\",'1. Order'!J996)","v":""},{"$f":"IF('1. Order'!K996=\"\",\"\",'1. Order'!K996)","v":""},{"$f":"IF('1. Order'!M996=\"\",\"\",'1. Order'!M996)","v":""},null,null,{"$f":"IF('1. Order'!AR996=\"\",\"\",'1. Order'!AR996)","v":""},{"$f":"IF('1. Order'!AE996=\"\",\"\",'1. Order'!AE996)","v":""}]
[{"$f":"IF('1. Order'!B997=\"\",\"\",'1. Order'!B997)","v":""},{"$f":"IF('1. Order'!I997=\"\",\"\",'1. Order'!I997)","v":""},{"$f":"IF('1. Order'!J997=\"\",\"\",'1. Order'!J997)","v":""},{"$f":"IF('1. Order'!K997=\"\",\"\",'1. Order'!K997)","v":""},{"$f":"IF('1. Order'!M997=\"\",\"\",'1. Order'!M997)","v":""},null,null,{"$f":"IF('1. Order'!AR997=\"\",\"\",'1. Order'!AR997)","v":""},{"$f":"IF('1. Order'!AE997=\"\",\"\",'1. Order'!AE997)","v":""}]
[{"$f":"IF('1. Order'!B998=\"\",\"\",'1. Order'!B998)","v":""},{"$f":"IF('1. Order'!I998=\"\",\"\",'1. Order'!I998)","v":""},{"$f":"IF('1. Order'!J998=\"\",\"\",'1. Order'!J998)","v":""},{"$f":"IF('1. Order'!K998=\"\",\"\",'1. Order'!K998)","v":""},{"$f":"IF('1. Order'!M998=\"\",\"\",'1. Order'!M998)","v":""},null,null,{"$f":"IF('1. Order'!AR998=\"\",\"\",'1. Order'!AR998)","v":""},{"$f":"IF('1. Order'!AE998=\"\",\"\",'1. Order'!AE998)","v":""}]
[{"$f":"IF('1. Order'!B999=\"\",\"\",'1. Order'!B999)","v":""},{"$f":"IF('1. Order'!I999=\"\",\"\",'1. Order'!I999)","v":""},{"$f":"IF('1. Order'!J999=\"\",\"\",'1. Order'!J999)","v":""},{"$f":"IF('1. Order'!K999=\"\",\"\",'1. Order'!K999)","v":""},{"$f":"IF('1. Order'!M999=\"\",\"\",'1. Order'!M999)","v":""},null,null,{"$f":"IF('1. Order'!AR999=\"\",\"\",'1. Order'!AR999)","v":""},{"$f":"IF('1. Order'!AE999=\"\",\"\",'1. Order'!AE999)","v":""}]
[{"$f":"IF('1. Order'!B1000=\"\",\"\",'1. Order'!B1000)","v":""},{"$f":"IF('1. Order'!I1000=\"\",\"\",'1. Order'!I1000)","v":""},{"$f":"IF('1. Order'!J1000=\"\",\"\",'1. Order'!J1000)","v":""},{"$f":"IF('1. Order'!K1000=\"\",\"\",'1. Order'!K1000)","v":""},{"$f":"IF('1. Order'!M1000=\"\",\"\",'1. Order'!M1000)","v":""},null,null,{"$f":"IF('1. Order'!AR1000=\"\",\"\",'1. Order'!AR1000)","v":""},{"$f":"IF('1. Order'!AE1000=\"\",\"\",'1. Order'!AE1000)","v":""}]
[{"$f":"IF('1. Order'!B1001=\"\",\"\",'1. Order'!B1001)","v":""},{"$f":"IF('1. Order'!I1001=\"\",\"\",'1. Order'!I1001)","v":""},{"$f":"IF('1. Order'!J1001=\"\",\"\",'1. Order'!J1001)","v":""},{"$f":"IF('1. Order'!K1001=\"\",\"\",'1. Order'!K1001)","v":""},{"$f":"IF('1. Order'!M1001=\"\",\"\",'1. Order'!M1001)","v":""},null,null,{"$f":"IF('1. Order'!AR1001=\"\",\"\",'1. Order'!AR1001)","v":""},{"$f":"IF('1. Order'!AE1001=\"\",\"\",'1. Order'!AE1001)","v":""}]
[{"$f":"IF('1. Order'!B1002=\"\",\"\",'1. Order'!B1002)","v":""},{"$f":"IF('1. Order'!I1002=\"\",\"\",'1. Order'!I1002)","v":""},{"$f":"IF('1. Order'!J1002=\"\",\"\",'1. Order'!J1002)","v":""},{"$f":"IF('1. Order'!K1002=\"\",\"\",'1. Order'!K1002)","v":""},{"$f":"IF('1. Order'!M1002=\"\",\"\",'1. Order'!M1002)","v":""},null,null,{"$f":"IF('1. Order'!AR1002=\"\",\"\",'1. Order'!AR1002)","v":""},{"$f":"IF('1. Order'!AE1002=\"\",\"\",'1. Order'!AE1002)","v":""}]
[{"$f":"IF('1. Order'!B1003=\"\",\"\",'1. Order'!B1003)","v":""},{"$f":"IF('1. Order'!I1003=\"\",\"\",'1. Order'!I1003)","v":""},{"$f":"IF('1. Order'!J1003=\"\",\"\",'1. Order'!J1003)","v":""},{"$f":"IF('1. Order'!K1003=\"\",\"\",'1. Order'!K1003)","v":""},{"$f":"IF('1. Order'!M1003=\"\",\"\",'1. Order'!M1003)","v":""},null,null,{"$f":"IF('1. Order'!AR1003=\"\",\"\",'1. Order'!AR1003)","v":""},{"$f":"IF('1. Order'!AE1003=\"\",\"\",'1. Order'!AE1003)","v":""}]
[{"$f":"IF('1. Order'!B1004=\"\",\"\",'1. Order'!B1004)","v":""},{"$f":"IF('1. Order'!I1004=\"\",\"\",'1. Order'!I1004)","v":""},{"$f":"IF('1. Order'!J1004=\"\",\"\",'1. Order'!J1004)","v":""},{"$f":"IF('1. Order'!K1004=\"\",\"\",'1. Order'!K1004)","v":""},{"$f":"IF('1. Order'!M1004=\"\",\"\",'1. Order'!M1004)","v":""},null,null,{"$f":"IF('1. Order'!AR1004=\"\",\"\",'1. Order'!AR1004)","v":""},{"$f":"IF('1. Order'!AE1004=\"\",\"\",'1. Order'!AE1004)","v":""}]
[{"$f":"IF('1. Order'!B1005=\"\",\"\",'1. Order'!B1005)","v":""},{"$f":"IF('1. Order'!I1005=\"\",\"\",'1. Order'!I1005)","v":""},{"$f":"IF('1. Order'!J1005=\"\",\"\",'1. Order'!J1005)","v":""},{"$f":"IF('1. Order'!K1005=\"\",\"\",'1. Order'!K1005)","v":""},{"$f":"IF('1. Order'!M1005=\"\",\"\",'1. Order'!M1005)","v":""},null,null,{"$f":"IF('1. Order'!AR1005=\"\",\"\",'1. Order'!AR1005)","v":""},{"$f":"IF('1. Order'!AE1005=\"\",\"\",'1. Order'!AE1005)","v":""}]
[{"$f":"IF('1. Order'!B1006=\"\",\"\",'1. Order'!B1006)","v":""},{"$f":"IF('1. Order'!I1006=\"\",\"\",'1. Order'!I1006)","v":""},{"$f":"IF('1. Order'!J1006=\"\",\"\",'1. Order'!J1006)","v":""},{"$f":"IF('1. Order'!K1006=\"\",\"\",'1. Order'!K1006)","v":""},{"$f":"IF('1. Order'!M1006=\"\",\"\",'1. Order'!M1006)","v":""},null,null,{"$f":"IF('1. Order'!AR1006=\"\",\"\",'1. Order'!AR1006)","v":""},{"$f":"IF('1. Order'!AE1006=\"\",\"\",'1. Order'!AE1006)","v":""}]
[{"$f":"IF('1. Order'!B1007=\"\",\"\",'1. Order'!B1007)","v":""},{"$f":"IF('1. Order'!I1007=\"\",\"\",'1. Order'!I1007)","v":""},{"$f":"IF('1. Order'!J1007=\"\",\"\",'1. Order'!J1007)","v":""},{"$f":"IF('1. Order'!K1007=\"\",\"\",'1. Order'!K1007)","v":""},{"$f":"IF('1. Order'!M1007=\"\",\"\",'1. Order'!M1007)","v":""},null,null,{"$f":"IF('1. Order'!AR1007=\"\",\"\",'1. Order'!AR1007)","v":""},{"$f":"IF('1. Order'!AE1007=\"\",\"\",'1. Order'!AE1007)","v":""}]
[{"$f":"IF('1. Order'!B1008=\"\",\"\",'1. Order'!B1008)","v":""},{"$f":"IF('1. Order'!I1008=\"\",\"\",'1. Order'!I1008)","v":""},{"$f":"IF('1. Order'!J1008=\"\",\"\",'1. Order'!J1008)","v":""},{"$f":"IF('1. Order'!K1008=\"\",\"\",'1. Order'!K1008)","v":""},{"$f":"IF('1. Order'!M1008=\"\",\"\",'1. Order'!M1008)","v":""},null,null,{"$f":"IF('1. Order'!AR1008=\"\",\"\",'1. Order'!AR1008)","v":""},{"$f":"IF('1. Order'!AE1008=\"\",\"\",'1. Order'!AE1008)","v":""}]
[{"$f":"IF('1. Order'!B1009=\"\",\"\",'1. Order'!B1009)","v":""},{"$f":"IF('1. Order'!I1009=\"\",\"\",'1. Order'!I1009)","v":""},{"$f":"IF('1. Order'!J1009=\"\",\"\",'1. Order'!J1009)","v":""},{"$f":"IF('1. Order'!K1009=\"\",\"\",'1. Order'!K1009)","v":""},{"$f":"IF('1. Order'!M1009=\"\",\"\",'1. Order'!M1009)","v":""},null,null,{"$f":"IF('1. Order'!AR1009=\"\",\"\",'1. Order'!AR1009)","v":""},{"$f":"IF('1. Order'!AE1009=\"\",\"\",'1. Order'!AE1009)","v":""}]
[{"$f":"IF('1. Order'!B1010=\"\",\"\",'1. Order'!B1010)","v":""},{"$f":"IF('1. Order'!I1010=\"\",\"\",'1. Order'!I1010)","v":""},{"$f":"IF('1. Order'!J1010=\"\",\"\",'1. Order'!J1010)","v":""},{"$f":"IF('1. Order'!K1010=\"\",\"\",'1. Order'!K1010)","v":""},{"$f":"IF('1. Order'!M1010=\"\",\"\",'1. Order'!M1010)","v":""},null,null,{"$f":"IF('1. Order'!AR1010=\"\",\"\",'1. Order'!AR1010)","v":""},{"$f":"IF('1. Order'!AE1010=\"\",\"\",'1. Order'!AE1010)","v":""}]
[{"$f":"IF('1. Order'!B1011=\"\",\"\",'1. Order'!B1011)","v":""},{"$f":"IF('1. Order'!I1011=\"\",\"\",'1. Order'!I1011)","v":""},{"$f":"IF('1. Order'!J1011=\"\",\"\",'1. Order'!J1011)","v":""},{"$f":"IF('1. Order'!K1011=\"\",\"\",'1. Order'!K1011)","v":""},{"$f":"IF('1. Order'!M1011=\"\",\"\",'1. Order'!M1011)","v":""},null,null,{"$f":"IF('1. Order'!AR1011=\"\",\"\",'1. Order'!AR1011)","v":""},{"$f":"IF('1. Order'!AE1011=\"\",\"\",'1. Order'!AE1011)","v":""}]
[{"$f":"IF('1. Order'!B1012=\"\",\"\",'1. Order'!B1012)","v":""},{"$f":"IF('1. Order'!I1012=\"\",\"\",'1. Order'!I1012)","v":""},{"$f":"IF('1. Order'!J1012=\"\",\"\",'1. Order'!J1012)","v":""},{"$f":"IF('1. Order'!K1012=\"\",\"\",'1. Order'!K1012)","v":""},{"$f":"IF('1. Order'!M1012=\"\",\"\",'1. Order'!M1012)","v":""},null,null,{"$f":"IF('1. Order'!AR1012=\"\",\"\",'1. Order'!AR1012)","v":""},{"$f":"IF('1. Order'!AE1012=\"\",\"\",'1. Order'!AE1012)","v":""}]
[{"$f":"IF('1. Order'!B1013=\"\",\"\",'1. Order'!B1013)","v":""},{"$f":"IF('1. Order'!I1013=\"\",\"\",'1. Order'!I1013)","v":""},{"$f":"IF('1. Order'!J1013=\"\",\"\",'1. Order'!J1013)","v":""},{"$f":"IF('1. Order'!K1013=\"\",\"\",'1. Order'!K1013)","v":""},{"$f":"IF('1. Order'!M1013=\"\",\"\",'1. Order'!M1013)","v":""},null,null,{"$f":"IF('1. Order'!AR1013=\"\",\"\",'1. Order'!AR1013)","v":""},{"$f":"IF('1. Order'!AE1013=\"\",\"\",'1. Order'!AE1013)","v":""}]
[{"$f":"IF('1. Order'!B1014=\"\",\"\",'1. Order'!B1014)","v":""},{"$f":"IF('1. Order'!I1014=\"\",\"\",'1. Order'!I1014)","v":""},{"$f":"IF('1. Order'!J1014=\"\",\"\",'1. Order'!J1014)","v":""},{"$f":"IF('1. Order'!K1014=\"\",\"\",'1. Order'!K1014)","v":""},{"$f":"IF('1. Order'!M1014=\"\",\"\",'1. Order'!M1014)","v":""},null,null,{"$f":"IF('1. Order'!AR1014=\"\",\"\",'1. Order'!AR1014)","v":""},{"$f":"IF('1. Order'!AE1014=\"\",\"\",'1. Order'!AE1014)","v":""}]
[{"$f":"IF('1. Order'!B1015=\"\",\"\",'1. Order'!B1015)","v":""},{"$f":"IF('1. Order'!I1015=\"\",\"\",'1. Order'!I1015)","v":""},{"$f":"IF('1. Order'!J1015=\"\",\"\",'1. Order'!J1015)","v":""},{"$f":"IF('1. Order'!K1015=\"\",\"\",'1. Order'!K1015)","v":""},{"$f":"IF('1. Order'!M1015=\"\",\"\",'1. Order'!M1015)","v":""},null,null,{"$f":"IF('1. Order'!AR1015=\"\",\"\",'1. Order'!AR1015)","v":""},{"$f":"IF('1. Order'!AE1015=\"\",\"\",'1. Order'!AE1015)","v":""}]
[{"$f":"IF('1. Order'!B1016=\"\",\"\",'1. Order'!B1016)","v":""},{"$f":"IF('1. Order'!I1016=\"\",\"\",'1. Order'!I1016)","v":""},{"$f":"IF('1. Order'!J1016=\"\",\"\",'1. Order'!J1016)","v":""},{"$f":"IF('1. Order'!K1016=\"\",\"\",'1. Order'!K1016)","v":""},{"$f":"IF('1. Order'!M1016=\"\",\"\",'1. Order'!M1016)","v":""},null,null,{"$f":"IF('1. Order'!AR1016=\"\",\"\",'1. Order'!AR1016)","v":""},{"$f":"IF('1. Order'!AE1016=\"\",\"\",'1. Order'!AE1016)","v":""}]
[{"$f":"IF('1. Order'!B1017=\"\",\"\",'1. Order'!B1017)","v":""},{"$f":"IF('1. Order'!I1017=\"\",\"\",'1. Order'!I1017)","v":""},{"$f":"IF('1. Order'!J1017=\"\",\"\",'1. Order'!J1017)","v":""},{"$f":"IF('1. Order'!K1017=\"\",\"\",'1. Order'!K1017)","v":""},{"$f":"IF('1. Order'!M1017=\"\",\"\",'1. Order'!M1017)","v":""},null,null,{"$f":"IF('1. Order'!AR1017=\"\",\"\",'1. Order'!AR1017)","v":""},{"$f":"IF('1. Order'!AE1017=\"\",\"\",'1. Order'!AE1017)","v":""}]
[{"$f":"IF('1. Order'!B1018=\"\",\"\",'1. Order'!B1018)","v":""},{"$f":"IF('1. Order'!I1018=\"\",\"\",'1. Order'!I1018)","v":""},{"$f":"IF('1. Order'!J1018=\"\",\"\",'1. Order'!J1018)","v":""},{"$f":"IF('1. Order'!K1018=\"\",\"\",'1. Order'!K1018)","v":""},{"$f":"IF('1. Order'!M1018=\"\",\"\",'1. Order'!M1018)","v":""},null,null,{"$f":"IF('1. Order'!AR1018=\"\",\"\",'1. Order'!AR1018)","v":""},{"$f":"IF('1. Order'!AE1018=\"\",\"\",'1. Order'!AE1018)","v":""}]
[{"$f":"IF('1. Order'!B1019=\"\",\"\",'1. Order'!B1019)","v":""},{"$f":"IF('1. Order'!I1019=\"\",\"\",'1. Order'!I1019)","v":""},{"$f":"IF('1. Order'!J1019=\"\",\"\",'1. Order'!J1019)","v":""},{"$f":"IF('1. Order'!K1019=\"\",\"\",'1. Order'!K1019)","v":""},{"$f":"IF('1. Order'!M1019=\"\",\"\",'1. Order'!M1019)","v":""},null,null,{"$f":"IF('1. Order'!AR1019=\"\",\"\",'1. Order'!AR1019)","v":""},{"$f":"IF('1. Order'!AE1019=\"\",\"\",'1. Order'!AE1019)","v":""}]
[{"$f":"IF('1. Order'!B1020=\"\",\"\",'1. Order'!B1020)","v":""},{"$f":"IF('1. Order'!I1020=\"\",\"\",'1. Order'!I1020)","v":""},{"$f":"IF('1. Order'!J1020=\"\",\"\",'1. Order'!J1020)","v":""},{"$f":"IF('1. Order'!K1020=\"\",\"\",'1. Order'!K1020)","v":""},{"$f":"IF('1. Order'!M1020=\"\",\"\",'1. Order'!M1020)","v":""},null,null,{"$f":"IF('1. Order'!AR1020=\"\",\"\",'1. Order'!AR1020)","v":""},{"$f":"IF('1. Order'!AE1020=\"\",\"\",'1. Order'!AE1020)","v":""}]
[{"$f":"IF('1. Order'!B1021=\"\",\"\",'1. Order'!B1021)","v":""},{"$f":"IF('1. Order'!I1021=\"\",\"\",'1. Order'!I1021)","v":""},{"$f":"IF('1. Order'!J1021=\"\",\"\",'1. Order'!J1021)","v":""},{"$f":"IF('1. Order'!K1021=\"\",\"\",'1. Order'!K1021)","v":""},{"$f":"IF('1. Order'!M1021=\"\",\"\",'1. Order'!M1021)","v":""},null,null,{"$f":"IF('1. Order'!AR1021=\"\",\"\",'1. Order'!AR1021)","v":""},{"$f":"IF('1. Order'!AE1021=\"\",\"\",'1. Order'!AE1021)","v":""}]
[{"$f":"IF('1. Order'!B1022=\"\",\"\",'1. Order'!B1022)","v":""},{"$f":"IF('1. Order'!I1022=\"\",\"\",'1. Order'!I1022)","v":""},{"$f":"IF('1. Order'!J1022=\"\",\"\",'1. Order'!J1022)","v":""},{"$f":"IF('1. Order'!K1022=\"\",\"\",'1. Order'!K1022)","v":""},{"$f":"IF('1. Order'!M1022=\"\",\"\",'1. Order'!M1022)","v":""},null,null,{"$f":"IF('1. Order'!AR1022=\"\",\"\",'1. Order'!AR1022)","v":""},{"$f":"IF('1. Order'!AE1022=\"\",\"\",'1. Order'!AE1022)","v":""}]
[{"$f":"IF('1. Order'!B1023=\"\",\"\",'1. Order'!B1023)","v":""},{"$f":"IF('1. Order'!I1023=\"\",\"\",'1. Order'!I1023)","v":""},{"$f":"IF('1. Order'!J1023=\"\",\"\",'1. Order'!J1023)","v":""},{"$f":"IF('1. Order'!K1023=\"\",\"\",'1. Order'!K1023)","v":""},{"$f":"IF('1. Order'!M1023=\"\",\"\",'1. Order'!M1023)","v":""},null,null,{"$f":"IF('1. Order'!AR1023=\"\",\"\",'1. Order'!AR1023)","v":""},{"$f":"IF('1. Order'!AE1023=\"\",\"\",'1. Order'!AE1023)","v":""}]
[{"$f":"IF('1. Order'!B1024=\"\",\"\",'1. Order'!B1024)","v":""},{"$f":"IF('1. Order'!I1024=\"\",\"\",'1. Order'!I1024)","v":""},{"$f":"IF('1. Order'!J1024=\"\",\"\",'1. Order'!J1024)","v":""},{"$f":"IF('1. Order'!K1024=\"\",\"\",'1. Order'!K1024)","v":""},{"$f":"IF('1. Order'!M1024=\"\",\"\",'1. Order'!M1024)","v":""},null,null,{"$f":"IF('1. Order'!AR1024=\"\",\"\",'1. Order'!AR1024)","v":""},{"$f":"IF('1. Order'!AE1024=\"\",\"\",'1. Order'!AE1024)","v":""}]
[{"$f":"IF('1. Order'!B1025=\"\",\"\",'1. Order'!B1025)","v":""},{"$f":"IF('1. Order'!I1025=\"\",\"\",'1. Order'!I1025)","v":""},{"$f":"IF('1. Order'!J1025=\"\",\"\",'1. Order'!J1025)","v":""},{"$f":"IF('1. Order'!K1025=\"\",\"\",'1. Order'!K1025)","v":""},{"$f":"IF('1. Order'!M1025=\"\",\"\",'1. Order'!M1025)","v":""},null,null,{"$f":"IF('1. Order'!AR1025=\"\",\"\",'1. Order'!AR1025)","v":""},{"$f":"IF('1. Order'!AE1025=\"\",\"\",'1. Order'!AE1025)","v":""}]
[{"$f":"IF('1. Order'!B1026=\"\",\"\",'1. Order'!B1026)","v":""},{"$f":"IF('1. Order'!I1026=\"\",\"\",'1. Order'!I1026)","v":""},{"$f":"IF('1. Order'!J1026=\"\",\"\",'1. Order'!J1026)","v":""},{"$f":"IF('1. Order'!K1026=\"\",\"\",'1. Order'!K1026)","v":""},{"$f":"IF('1. Order'!M1026=\"\",\"\",'1. Order'!M1026)","v":""},null,null,{"$f":"IF('1. Order'!AR1026=\"\",\"\",'1. Order'!AR1026)","v":""},{"$f":"IF('1. Order'!AE1026=\"\",\"\",'1. Order'!AE1026)","v":""}]
[{"$f":"IF('1. Order'!B1027=\"\",\"\",'1. Order'!B1027)","v":""},{"$f":"IF('1. Order'!I1027=\"\",\"\",'1. Order'!I1027)","v":""},{"$f":"IF('1. Order'!J1027=\"\",\"\",'1. Order'!J1027)","v":""},{"$f":"IF('1. Order'!K1027=\"\",\"\",'1. Order'!K1027)","v":""},{"$f":"IF('1. Order'!M1027=\"\",\"\",'1. Order'!M1027)","v":""},null,null,{"$f":"IF('1. Order'!AR1027=\"\",\"\",'1. Order'!AR1027)","v":""},{"$f":"IF('1. Order'!AE1027=\"\",\"\",'1. Order'!AE1027)","v":""}]
[{"$f":"IF('1. Order'!B1028=\"\",\"\",'1. Order'!B1028)","v":""},{"$f":"IF('1. Order'!I1028=\"\",\"\",'1. Order'!I1028)","v":""},{"$f":"IF('1. Order'!J1028=\"\",\"\",'1. Order'!J1028)","v":""},{"$f":"IF('1. Order'!K1028=\"\",\"\",'1. Order'!K1028)","v":""},{"$f":"IF('1. Order'!M1028=\"\",\"\",'1. Order'!M1028)","v":""},null,null,{"$f":"IF('1. Order'!AR1028=\"\",\"\",'1. Order'!AR1028)","v":""},{"$f":"IF('1. Order'!AE1028=\"\",\"\",'1. Order'!AE1028)","v":""}]
[{"$f":"IF('1. Order'!B1029=\"\",\"\",'1. Order'!B1029)","v":""},{"$f":"IF('1. Order'!I1029=\"\",\"\",'1. Order'!I1029)","v":""},{"$f":"IF('1. Order'!J1029=\"\",\"\",'1. Order'!J1029)","v":""},{"$f":"IF('1. Order'!K1029=\"\",\"\",'1. Order'!K1029)","v":""},{"$f":"IF('1. Order'!M1029=\"\",\"\",'1. Order'!M1029)","v":""},null,null,{"$f":"IF('1. Order'!AR1029=\"\",\"\",'1. Order'!AR1029)","v":""},{"$f":"IF('1. Order'!AE1029=\"\",\"\",'1. Order'!AE1029)","v":""}]
[{"$f":"IF('1. Order'!B1030=\"\",\"\",'1. Order'!B1030)","v":""},{"$f":"IF('1. Order'!I1030=\"\",\"\",'1. Order'!I1030)","v":""},{"$f":"IF('1. Order'!J1030=\"\",\"\",'1. Order'!J1030)","v":""},{"$f":"IF('1. Order'!K1030=\"\",\"\",'1. Order'!K1030)","v":""},{"$f":"IF('1. Order'!M1030=\"\",\"\",'1. Order'!M1030)","v":""},null,null,{"$f":"IF('1. Order'!AR1030=\"\",\"\",'1. Order'!AR1030)","v":""},{"$f":"IF('1. Order'!AE1030=\"\",\"\",'1. Order'!AE1030)","v":""}]
[{"$f":"IF('1. Order'!B1031=\"\",\"\",'1. Order'!B1031)","v":""},{"$f":"IF('1. Order'!I1031=\"\",\"\",'1. Order'!I1031)","v":""},{"$f":"IF('1. Order'!J1031=\"\",\"\",'1. Order'!J1031)","v":""},{"$f":"IF('1. Order'!K1031=\"\",\"\",'1. Order'!K1031)","v":""},{"$f":"IF('1. Order'!M1031=\"\",\"\",'1. Order'!M1031)","v":""},null,null,{"$f":"IF('1. Order'!AR1031=\"\",\"\",'1. Order'!AR1031)","v":""},{"$f":"IF('1. Order'!AE1031=\"\",\"\",'1. Order'!AE1031)","v":""}]
[{"$f":"IF('1. Order'!B1032=\"\",\"\",'1. Order'!B1032)","v":""},{"$f":"IF('1. Order'!I1032=\"\",\"\",'1. Order'!I1032)","v":""},{"$f":"IF('1. Order'!J1032=\"\",\"\",'1. Order'!J1032)","v":""},{"$f":"IF('1. Order'!K1032=\"\",\"\",'1. Order'!K1032)","v":""},{"$f":"IF('1. Order'!M1032=\"\",\"\",'1. Order'!M1032)","v":""},null,null,{"$f":"IF('1. Order'!AR1032=\"\",\"\",'1. Order'!AR1032)","v":""},{"$f":"IF('1. Order'!AE1032=\"\",\"\",'1. Order'!AE1032)","v":""}]
[{"$f":"IF('1. Order'!B1033=\"\",\"\",'1. Order'!B1033)","v":""},{"$f":"IF('1. Order'!I1033=\"\",\"\",'1. Order'!I1033)","v":""},{"$f":"IF('1. Order'!J1033=\"\",\"\",'1. Order'!J1033)","v":""},{"$f":"IF('1. Order'!K1033=\"\",\"\",'1. Order'!K1033)","v":""},{"$f":"IF('1. Order'!M1033=\"\",\"\",'1. Order'!M1033)","v":""},null,null,{"$f":"IF('1. Order'!AR1033=\"\",\"\",'1. Order'!AR1033)","v":""},{"$f":"IF('1. Order'!AE1033=\"\",\"\",'1. Order'!AE1033)","v":""}]
[{"$f":"IF('1. Order'!B1034=\"\",\"\",'1. Order'!B1034)","v":""},{"$f":"IF('1. Order'!I1034=\"\",\"\",'1. Order'!I1034)","v":""},{"$f":"IF('1. Order'!J1034=\"\",\"\",'1. Order'!J1034)","v":""},{"$f":"IF('1. Order'!K1034=\"\",\"\",'1. Order'!K1034)","v":""},{"$f":"IF('1. Order'!M1034=\"\",\"\",'1. Order'!M1034)","v":""},null,null,{"$f":"IF('1. Order'!AR1034=\"\",\"\",'1. Order'!AR1034)","v":""},{"$f":"IF('1. Order'!AE1034=\"\",\"\",'1. Order'!AE1034)","v":""}]
[{"$f":"IF('1. Order'!B1035=\"\",\"\",'1. Order'!B1035)","v":""},{"$f":"IF('1. Order'!I1035=\"\",\"\",'1. Order'!I1035)","v":""},{"$f":"IF('1. Order'!J1035=\"\",\"\",'1. Order'!J1035)","v":""},{"$f":"IF('1. Order'!K1035=\"\",\"\",'1. Order'!K1035)","v":""},{"$f":"IF('1. Order'!M1035=\"\",\"\",'1. Order'!M1035)","v":""},null,null,{"$f":"IF('1. Order'!AR1035=\"\",\"\",'1. Order'!AR1035)","v":""},{"$f":"IF('1. Order'!AE1035=\"\",\"\",'1. Order'!AE1035)","v":""}]
[{"$f":"IF('1. Order'!B1036=\"\",\"\",'1. Order'!B1036)","v":""},{"$f":"IF('1. Order'!I1036=\"\",\"\",'1. Order'!I1036)","v":""},{"$f":"IF('1. Order'!J1036=\"\",\"\",'1. Order'!J1036)","v":""},{"$f":"IF('1. Order'!K1036=\"\",\"\",'1. Order'!K1036)","v":""},{"$f":"IF('1. Order'!M1036=\"\",\"\",'1. Order'!M1036)","v":""},null,null,{"$f":"IF('1. Order'!AR1036=\"\",\"\",'1. Order'!AR1036)","v":""},{"$f":"IF('1. Order'!AE1036=\"\",\"\",'1. Order'!AE1036)","v":""}]
[{"$f":"IF('1. Order'!B1037=\"\",\"\",'1. Order'!B1037)","v":""},{"$f":"IF('1. Order'!I1037=\"\",\"\",'1. Order'!I1037)","v":""},{"$f":"IF('1. Order'!J1037=\"\",\"\",'1. Order'!J1037)","v":""},{"$f":"IF('1. Order'!K1037=\"\",\"\",'1. Order'!K1037)","v":""},{"$f":"IF('1. Order'!M1037=\"\",\"\",'1. Order'!M1037)","v":""},null,null,{"$f":"IF('1. Order'!AR1037=\"\",\"\",'1. Order'!AR1037)","v":""},{"$f":"IF('1. Order'!AE1037=\"\",\"\",'1. Order'!AE1037)","v":""}]
[{"$f":"IF('1. Order'!B1038=\"\",\"\",'1. Order'!B1038)","v":""},{"$f":"IF('1. Order'!I1038=\"\",\"\",'1. Order'!I1038)","v":""},{"$f":"IF('1. Order'!J1038=\"\",\"\",'1. Order'!J1038)","v":""},{"$f":"IF('1. Order'!K1038=\"\",\"\",'1. Order'!K1038)","v":""},{"$f":"IF('1. Order'!M1038=\"\",\"\",'1. Order'!M1038)","v":""},null,null,{"$f":"IF('1. Order'!AR1038=\"\",\"\",'1. Order'!AR1038)","v":""},{"$f":"IF('1. Order'!AE1038=\"\",\"\",'1. Order'!AE1038)","v":""}]
[{"$f":"IF('1. Order'!B1039=\"\",\"\",'1. Order'!B1039)","v":""},{"$f":"IF('1. Order'!I1039=\"\",\"\",'1. Order'!I1039)","v":""},{"$f":"IF('1. Order'!J1039=\"\",\"\",'1. Order'!J1039)","v":""},{"$f":"IF('1. Order'!K1039=\"\",\"\",'1. Order'!K1039)","v":""},{"$f":"IF('1. Order'!M1039=\"\",\"\",'1. Order'!M1039)","v":""},null,null,{"$f":"IF('1. Order'!AR1039=\"\",\"\",'1. Order'!AR1039)","v":""},{"$f":"IF('1. Order'!AE1039=\"\",\"\",'1. Order'!AE1039)","v":""}]
[{"$f":"IF('1. Order'!B1040=\"\",\"\",'1. Order'!B1040)","v":""},{"$f":"IF('1. Order'!I1040=\"\",\"\",'1. Order'!I1040)","v":""},{"$f":"IF('1. Order'!J1040=\"\",\"\",'1. Order'!J1040)","v":""},{"$f":"IF('1. Order'!K1040=\"\",\"\",'1. Order'!K1040)","v":""},{"$f":"IF('1. Order'!M1040=\"\",\"\",'1. Order'!M1040)","v":""},null,null,{"$f":"IF('1. Order'!AR1040=\"\",\"\",'1. Order'!AR1040)","v":""},{"$f":"IF('1. Order'!AE1040=\"\",\"\",'1. Order'!AE1040)","v":""}]
[{"$f":"IF('1. Order'!B1041=\"\",\"\",'1. Order'!B1041)","v":""},{"$f":"IF('1. Order'!I1041=\"\",\"\",'1. Order'!I1041)","v":""},{"$f":"IF('1. Order'!J1041=\"\",\"\",'1. Order'!J1041)","v":""},{"$f":"IF('1. Order'!K1041=\"\",\"\",'1. Order'!K1041)","v":""},{"$f":"IF('1. Order'!M1041=\"\",\"\",'1. Order'!M1041)","v":""},null,null,{"$f":"IF('1. Order'!AR1041=\"\",\"\",'1. Order'!AR1041)","v":""},{"$f":"IF('1. Order'!AE1041=\"\",\"\",'1. Order'!AE1041)","v":""}]
[{"$f":"IF('1. Order'!B1042=\"\",\"\",'1. Order'!B1042)","v":""},{"$f":"IF('1. Order'!I1042=\"\",\"\",'1. Order'!I1042)","v":""},{"$f":"IF('1. Order'!J1042=\"\",\"\",'1. Order'!J1042)","v":""},{"$f":"IF('1. Order'!K1042=\"\",\"\",'1. Order'!K1042)","v":""},{"$f":"IF('1. Order'!M1042=\"\",\"\",'1. Order'!M1042)","v":""},null,null,{"$f":"IF('1. Order'!AR1042=\"\",\"\",'1. Order'!AR1042)","v":""},{"$f":"IF('1. Order'!AE1042=\"\",\"\",'1. Order'!AE1042)","v":""}]
[{"$f":"IF('1. Order'!B1043=\"\",\"\",'1. Order'!B1043)","v":""},{"$f":"IF('1. Order'!I1043=\"\",\"\",'1. Order'!I1043)","v":""},{"$f":"IF('1. Order'!J1043=\"\",\"\",'1. Order'!J1043)","v":""},{"$f":"IF('1. Order'!K1043=\"\",\"\",'1. Order'!K1043)","v":""},{"$f":"IF('1. Order'!M1043=\"\",\"\",'1. Order'!M1043)","v":""},null,null,{"$f":"IF('1. Order'!AR1043=\"\",\"\",'1. Order'!AR1043)","v":""},{"$f":"IF('1. Order'!AE1043=\"\",\"\",'1. Order'!AE1043)","v":""}]
[{"$f":"IF('1. Order'!B1044=\"\",\"\",'1. Order'!B1044)","v":""},{"$f":"IF('1. Order'!I1044=\"\",\"\",'1. Order'!I1044)","v":""},{"$f":"IF('1. Order'!J1044=\"\",\"\",'1. Order'!J1044)","v":""},{"$f":"IF('1. Order'!K1044=\"\",\"\",'1. Order'!K1044)","v":""},{"$f":"IF('1. Order'!M1044=\"\",\"\",'1. Order'!M1044)","v":""},null,null,{"$f":"IF('1. Order'!AR1044=\"\",\"\",'1. Order'!AR1044)","v":""},{"$f":"IF('1. Order'!AE1044=\"\",\"\",'1. Order'!AE1044)","v":""}]
[{"$f":"IF('1. Order'!B1045=\"\",\"\",'1. Order'!B1045)","v":""},{"$f":"IF('1. Order'!I1045=\"\",\"\",'1. Order'!I1045)","v":""},{"$f":"IF('1. Order'!J1045=\"\",\"\",'1. Order'!J1045)","v":""},{"$f":"IF('1. Order'!K1045=\"\",\"\",'1. Order'!K1045)","v":""},{"$f":"IF('1. Order'!M1045=\"\",\"\",'1. Order'!M1045)","v":""},null,null,{"$f":"IF('1. Order'!AR1045=\"\",\"\",'1. Order'!AR1045)","v":""},{"$f":"IF('1. Order'!AE1045=\"\",\"\",'1. Order'!AE1045)","v":""}]
[{"$f":"IF('1. Order'!B1046=\"\",\"\",'1. Order'!B1046)","v":""},{"$f":"IF('1. Order'!I1046=\"\",\"\",'1. Order'!I1046)","v":""},{"$f":"IF('1. Order'!J1046=\"\",\"\",'1. Order'!J1046)","v":""},{"$f":"IF('1. Order'!K1046=\"\",\"\",'1. Order'!K1046)","v":""},{"$f":"IF('1. Order'!M1046=\"\",\"\",'1. Order'!M1046)","v":""},null,null,{"$f":"IF('1. Order'!AR1046=\"\",\"\",'1. Order'!AR1046)","v":""},{"$f":"IF('1. Order'!AE1046=\"\",\"\",'1. Order'!AE1046)","v":""}]
[{"$f":"IF('1. Order'!B1047=\"\",\"\",'1. Order'!B1047)","v":""},{"$f":"IF('1. Order'!I1047=\"\",\"\",'1. Order'!I1047)","v":""},{"$f":"IF('1. Order'!J1047=\"\",\"\",'1. Order'!J1047)","v":""},{"$f":"IF('1. Order'!K1047=\"\",\"\",'1. Order'!K1047)","v":""},{"$f":"IF('1. Order'!M1047=\"\",\"\",'1. Order'!M1047)","v":""},null,null,{"$f":"IF('1. Order'!AR1047=\"\",\"\",'1. Order'!AR1047)","v":""},{"$f":"IF('1. Order'!AE1047=\"\",\"\",'1. Order'!AE1047)","v":""}]
[{"$f":"IF('1. Order'!B1048=\"\",\"\",'1. Order'!B1048)","v":""},{"$f":"IF('1. Order'!I1048=\"\",\"\",'1. Order'!I1048)","v":""},{"$f":"IF('1. Order'!J1048=\"\",\"\",'1. Order'!J1048)","v":""},{"$f":"IF('1. Order'!K1048=\"\",\"\",'1. Order'!K1048)","v":""},{"$f":"IF('1. Order'!M1048=\"\",\"\",'1. Order'!M1048)","v":""},null,null,{"$f":"IF('1. Order'!AR1048=\"\",\"\",'1. Order'!AR1048)","v":""},{"$f":"IF('1. Order'!AE1048=\"\",\"\",'1. Order'!AE1048)","v":""}]
[{"$f":"IF('1. Order'!B1049=\"\",\"\",'1. Order'!B1049)","v":""},{"$f":"IF('1. Order'!I1049=\"\",\"\",'1. Order'!I1049)","v":""},{"$f":"IF('1. Order'!J1049=\"\",\"\",'1. Order'!J1049)","v":""},{"$f":"IF('1. Order'!K1049=\"\",\"\",'1. Order'!K1049)","v":""},{"$f":"IF('1. Order'!M1049=\"\",\"\",'1. Order'!M1049)","v":""},null,null,{"$f":"IF('1. Order'!AR1049=\"\",\"\",'1. Order'!AR1049)","v":""},{"$f":"IF('1. Order'!AE1049=\"\",\"\",'1. Order'!AE1049)","v":""}]
[{"$f":"IF('1. Order'!B1050=\"\",\"\",'1. Order'!B1050)","v":""},{"$f":"IF('1. Order'!I1050=\"\",\"\",'1. Order'!I1050)","v":""},{"$f":"IF('1. Order'!J1050=\"\",\"\",'1. Order'!J1050)","v":""},{"$f":"IF('1. Order'!K1050=\"\",\"\",'1. Order'!K1050)","v":""},{"$f":"IF('1. Order'!M1050=\"\",\"\",'1. Order'!M1050)","v":""},null,null,{"$f":"IF('1. Order'!AR1050=\"\",\"\",'1. Order'!AR1050)","v":""},{"$f":"IF('1. Order'!AE1050=\"\",\"\",'1. Order'!AE1050)","v":""}]
[{"$f":"IF('1. Order'!B1051=\"\",\"\",'1. Order'!B1051)","v":""},{"$f":"IF('1. Order'!I1051=\"\",\"\",'1. Order'!I1051)","v":""},{"$f":"IF('1. Order'!J1051=\"\",\"\",'1. Order'!J1051)","v":""},{"$f":"IF('1. Order'!K1051=\"\",\"\",'1. Order'!K1051)","v":""},{"$f":"IF('1. Order'!M1051=\"\",\"\",'1. Order'!M1051)","v":""},null,null,{"$f":"IF('1. Order'!AR1051=\"\",\"\",'1. Order'!AR1051)","v":""},{"$f":"IF('1. Order'!AE1051=\"\",\"\",'1. Order'!AE1051)","v":""}]
[{"$f":"IF('1. Order'!B1052=\"\",\"\",'1. Order'!B1052)","v":""},{"$f":"IF('1. Order'!I1052=\"\",\"\",'1. Order'!I1052)","v":""},{"$f":"IF('1. Order'!J1052=\"\",\"\",'1. Order'!J1052)","v":""},{"$f":"IF('1. Order'!K1052=\"\",\"\",'1. Order'!K1052)","v":""},{"$f":"IF('1. Order'!M1052=\"\",\"\",'1. Order'!M1052)","v":""},null,null,{"$f":"IF('1. Order'!AR1052=\"\",\"\",'1. Order'!AR1052)","v":""},{"$f":"IF('1. Order'!AE1052=\"\",\"\",'1. Order'!AE1052)","v":""}]
[{"$f":"IF('1. Order'!B1053=\"\",\"\",'1. Order'!B1053)","v":""},{"$f":"IF('1. Order'!I1053=\"\",\"\",'1. Order'!I1053)","v":""},{"$f":"IF('1. Order'!J1053=\"\",\"\",'1. Order'!J1053)","v":""},{"$f":"IF('1. Order'!K1053=\"\",\"\",'1. Order'!K1053)","v":""},{"$f":"IF('1. Order'!M1053=\"\",\"\",'1. Order'!M1053)","v":""},null,null,{"$f":"IF('1. Order'!AR1053=\"\",\"\",'1. Order'!AR1053)","v":""},{"$f":"IF('1. Order'!AE1053=\"\",\"\",'1. Order'!AE1053)","v":""}]
[{"$f":"IF('1. Order'!B1054=\"\",\"\",'1. Order'!B1054)","v":""},{"$f":"IF('1. Order'!I1054=\"\",\"\",'1. Order'!I1054)","v":""},{"$f":"IF('1. Order'!J1054=\"\",\"\",'1. Order'!J1054)","v":""},{"$f":"IF('1. Order'!K1054=\"\",\"\",'1. Order'!K1054)","v":""},{"$f":"IF('1. Order'!M1054=\"\",\"\",'1. Order'!M1054)","v":""},null,null,{"$f":"IF('1. Order'!AR1054=\"\",\"\",'1. Order'!AR1054)","v":""},{"$f":"IF('1. Order'!AE1054=\"\",\"\",'1. Order'!AE1054)","v":""}]
[{"$f":"IF('1. Order'!B1055=\"\",\"\",'1. Order'!B1055)","v":""},{"$f":"IF('1. Order'!I1055=\"\",\"\",'1. Order'!I1055)","v":""},{"$f":"IF('1. Order'!J1055=\"\",\"\",'1. Order'!J1055)","v":""},{"$f":"IF('1. Order'!K1055=\"\",\"\",'1. Order'!K1055)","v":""},{"$f":"IF('1. Order'!M1055=\"\",\"\",'1. Order'!M1055)","v":""},null,null,{"$f":"IF('1. Order'!AR1055=\"\",\"\",'1. Order'!AR1055)","v":""},{"$f":"IF('1. Order'!AE1055=\"\",\"\",'1. Order'!AE1055)","v":""}]
[{"$f":"IF('1. Order'!B1056=\"\",\"\",'1. Order'!B1056)","v":""},{"$f":"IF('1. Order'!I1056=\"\",\"\",'1. Order'!I1056)","v":""},{"$f":"IF('1. Order'!J1056=\"\",\"\",'1. Order'!J1056)","v":""},{"$f":"IF('1. Order'!K1056=\"\",\"\",'1. Order'!K1056)","v":""},{"$f":"IF('1. Order'!M1056=\"\",\"\",'1. Order'!M1056)","v":""},null,null,{"$f":"IF('1. Order'!AR1056=\"\",\"\",'1. Order'!AR1056)","v":""},{"$f":"IF('1. Order'!AE1056=\"\",\"\",'1. Order'!AE1056)","v":""}]
[{"$f":"IF('1. Order'!B1057=\"\",\"\",'1. Order'!B1057)","v":""},{"$f":"IF('1. Order'!I1057=\"\",\"\",'1. Order'!I1057)","v":""},{"$f":"IF('1. Order'!J1057=\"\",\"\",'1. Order'!J1057)","v":""},{"$f":"IF('1. Order'!K1057=\"\",\"\",'1. Order'!K1057)","v":""},{"$f":"IF('1. Order'!M1057=\"\",\"\",'1. Order'!M1057)","v":""},null,null,{"$f":"IF('1. Order'!AR1057=\"\",\"\",'1. Order'!AR1057)","v":""},{"$f":"IF('1. Order'!AE1057=\"\",\"\",'1. Order'!AE1057)","v":""}]
[{"$f":"IF('1. Order'!B1058=\"\",\"\",'1. Order'!B1058)","v":""},{"$f":"IF('1. Order'!I1058=\"\",\"\",'1. Order'!I1058)","v":""},{"$f":"IF('1. Order'!J1058=\"\",\"\",'1. Order'!J1058)","v":""},{"$f":"IF('1. Order'!K1058=\"\",\"\",'1. Order'!K1058)","v":""},{"$f":"IF('1. Order'!M1058=\"\",\"\",'1. Order'!M1058)","v":""},null,null,{"$f":"IF('1. Order'!AR1058=\"\",\"\",'1. Order'!AR1058)","v":""},{"$f":"IF('1. Order'!AE1058=\"\",\"\",'1. Order'!AE1058)","v":""}]
[{"$f":"IF('1. Order'!B1059=\"\",\"\",'1. Order'!B1059)","v":""},{"$f":"IF('1. Order'!I1059=\"\",\"\",'1. Order'!I1059)","v":""},{"$f":"IF('1. Order'!J1059=\"\",\"\",'1. Order'!J1059)","v":""},{"$f":"IF('1. Order'!K1059=\"\",\"\",'1. Order'!K1059)","v":""},{"$f":"IF('1. Order'!M1059=\"\",\"\",'1. Order'!M1059)","v":""},null,null,{"$f":"IF('1. Order'!AR1059=\"\",\"\",'1. Order'!AR1059)","v":""},{"$f":"IF('1. Order'!AE1059=\"\",\"\",'1. Order'!AE1059)","v":""}]
[{"$f":"IF('1. Order'!B1060=\"\",\"\",'1. Order'!B1060)","v":""},{"$f":"IF('1. Order'!I1060=\"\",\"\",'1. Order'!I1060)","v":""},{"$f":"IF('1. Order'!J1060=\"\",\"\",'1. Order'!J1060)","v":""},{"$f":"IF('1. Order'!K1060=\"\",\"\",'1. Order'!K1060)","v":""},{"$f":"IF('1. Order'!M1060=\"\",\"\",'1. Order'!M1060)","v":""},null,null,{"$f":"IF('1. Order'!AR1060=\"\",\"\",'1. Order'!AR1060)","v":""},{"$f":"IF('1. Order'!AE1060=\"\",\"\",'1. Order'!AE1060)","v":""}]
[{"$f":"IF('1. Order'!B1061=\"\",\"\",'1. Order'!B1061)","v":""},{"$f":"IF('1. Order'!I1061=\"\",\"\",'1. Order'!I1061)","v":""},{"$f":"IF('1. Order'!J1061=\"\",\"\",'1. Order'!J1061)","v":""},{"$f":"IF('1. Order'!K1061=\"\",\"\",'1. Order'!K1061)","v":""},{"$f":"IF('1. Order'!M1061=\"\",\"\",'1. Order'!M1061)","v":""},null,null,{"$f":"IF('1. Order'!AR1061=\"\",\"\",'1. Order'!AR1061)","v":""},{"$f":"IF('1. Order'!AE1061=\"\",\"\",'1. Order'!AE1061)","v":""}]
[{"$f":"IF('1. Order'!B1062=\"\",\"\",'1. Order'!B1062)","v":""},{"$f":"IF('1. Order'!I1062=\"\",\"\",'1. Order'!I1062)","v":""},{"$f":"IF('1. Order'!J1062=\"\",\"\",'1. Order'!J1062)","v":""},{"$f":"IF('1. Order'!K1062=\"\",\"\",'1. Order'!K1062)","v":""},{"$f":"IF('1. Order'!M1062=\"\",\"\",'1. Order'!M1062)","v":""},null,null,{"$f":"IF('1. Order'!AR1062=\"\",\"\",'1. Order'!AR1062)","v":""},{"$f":"IF('1. Order'!AE1062=\"\",\"\",'1. Order'!AE1062)","v":""}]
[{"$f":"IF('1. Order'!B1063=\"\",\"\",'1. Order'!B1063)","v":""},{"$f":"IF('1. Order'!I1063=\"\",\"\",'1. Order'!I1063)","v":""},{"$f":"IF('1. Order'!J1063=\"\",\"\",'1. Order'!J1063)","v":""},{"$f":"IF('1. Order'!K1063=\"\",\"\",'1. Order'!K1063)","v":""},{"$f":"IF('1. Order'!M1063=\"\",\"\",'1. Order'!M1063)","v":""},null,null,{"$f":"IF('1. Order'!AR1063=\"\",\"\",'1. Order'!AR1063)","v":""},{"$f":"IF('1. Order'!AE1063=\"\",\"\",'1. Order'!AE1063)","v":""}]
[{"$f":"IF('1. Order'!B1064=\"\",\"\",'1. Order'!B1064)","v":""},{"$f":"IF('1. Order'!I1064=\"\",\"\",'1. Order'!I1064)","v":""},{"$f":"IF('1. Order'!J1064=\"\",\"\",'1. Order'!J1064)","v":""},{"$f":"IF('1. Order'!K1064=\"\",\"\",'1. Order'!K1064)","v":""},{"$f":"IF('1. Order'!M1064=\"\",\"\",'1. Order'!M1064)","v":""},null,null,{"$f":"IF('1. Order'!AR1064=\"\",\"\",'1. Order'!AR1064)","v":""},{"$f":"IF('1. Order'!AE1064=\"\",\"\",'1. Order'!AE1064)","v":""}]
[{"$f":"IF('1. Order'!B1065=\"\",\"\",'1. Order'!B1065)","v":""},{"$f":"IF('1. Order'!I1065=\"\",\"\",'1. Order'!I1065)","v":""},{"$f":"IF('1. Order'!J1065=\"\",\"\",'1. Order'!J1065)","v":""},{"$f":"IF('1. Order'!K1065=\"\",\"\",'1. Order'!K1065)","v":""},{"$f":"IF('1. Order'!M1065=\"\",\"\",'1. Order'!M1065)","v":""},null,null,{"$f":"IF('1. Order'!AR1065=\"\",\"\",'1. Order'!AR1065)","v":""},{"$f":"IF('1. Order'!AE1065=\"\",\"\",'1. Order'!AE1065)","v":""}]
[{"$f":"IF('1. Order'!B1066=\"\",\"\",'1. Order'!B1066)","v":""},{"$f":"IF('1. Order'!I1066=\"\",\"\",'1. Order'!I1066)","v":""},{"$f":"IF('1. Order'!J1066=\"\",\"\",'1. Order'!J1066)","v":""},{"$f":"IF('1. Order'!K1066=\"\",\"\",'1. Order'!K1066)","v":""},{"$f":"IF('1. Order'!M1066=\"\",\"\",'1. Order'!M1066)","v":""},null,null,{"$f":"IF('1. Order'!AR1066=\"\",\"\",'1. Order'!AR1066)","v":""},{"$f":"IF('1. Order'!AE1066=\"\",\"\",'1. Order'!AE1066)","v":""}]
[{"$f":"IF('1. Order'!B1067=\"\",\"\",'1. Order'!B1067)","v":""},{"$f":"IF('1. Order'!I1067=\"\",\"\",'1. Order'!I1067)","v":""},{"$f":"IF('1. Order'!J1067=\"\",\"\",'1. Order'!J1067)","v":""},{"$f":"IF('1. Order'!K1067=\"\",\"\",'1. Order'!K1067)","v":""},{"$f":"IF('1. Order'!M1067=\"\",\"\",'1. Order'!M1067)","v":""},null,null,{"$f":"IF('1. Order'!AR1067=\"\",\"\",'1. Order'!AR1067)","v":""},{"$f":"IF('1. Order'!AE1067=\"\",\"\",'1. Order'!AE1067)","v":""}]
[{"$f":"IF('1. Order'!B1068=\"\",\"\",'1. Order'!B1068)","v":""},{"$f":"IF('1. Order'!I1068=\"\",\"\",'1. Order'!I1068)","v":""},{"$f":"IF('1. Order'!J1068=\"\",\"\",'1. Order'!J1068)","v":""},{"$f":"IF('1. Order'!K1068=\"\",\"\",'1. Order'!K1068)","v":""},{"$f":"IF('1. Order'!M1068=\"\",\"\",'1. Order'!M1068)","v":""},null,null,{"$f":"IF('1. Order'!AR1068=\"\",\"\",'1. Order'!AR1068)","v":""},{"$f":"IF('1. Order'!AE1068=\"\",\"\",'1. Order'!AE1068)","v":""}]
[{"$f":"IF('1. Order'!B1069=\"\",\"\",'1. Order'!B1069)","v":""},{"$f":"IF('1. Order'!I1069=\"\",\"\",'1. Order'!I1069)","v":""},{"$f":"IF('1. Order'!J1069=\"\",\"\",'1. Order'!J1069)","v":""},{"$f":"IF('1. Order'!K1069=\"\",\"\",'1. Order'!K1069)","v":""},{"$f":"IF('1. Order'!M1069=\"\",\"\",'1. Order'!M1069)","v":""},null,null,{"$f":"IF('1. Order'!AR1069=\"\",\"\",'1. Order'!AR1069)","v":""},{"$f":"IF('1. Order'!AE1069=\"\",\"\",'1. Order'!AE1069)","v":""}]
[{"$f":"IF('1. Order'!B1070=\"\",\"\",'1. Order'!B1070)","v":""},{"$f":"IF('1. Order'!I1070=\"\",\"\",'1. Order'!I1070)","v":""},{"$f":"IF('1. Order'!J1070=\"\",\"\",'1. Order'!J1070)","v":""},{"$f":"IF('1. Order'!K1070=\"\",\"\",'1. Order'!K1070)","v":""},{"$f":"IF('1. Order'!M1070=\"\",\"\",'1. Order'!M1070)","v":""},null,null,{"$f":"IF('1. Order'!AR1070=\"\",\"\",'1. Order'!AR1070)","v":""},{"$f":"IF('1. Order'!AE1070=\"\",\"\",'1. Order'!AE1070)","v":""}]
[{"$f":"IF('1. Order'!B1071=\"\",\"\",'1. Order'!B1071)","v":""},{"$f":"IF('1. Order'!I1071=\"\",\"\",'1. Order'!I1071)","v":""},{"$f":"IF('1. Order'!J1071=\"\",\"\",'1. Order'!J1071)","v":""},{"$f":"IF('1. Order'!K1071=\"\",\"\",'1. Order'!K1071)","v":""},{"$f":"IF('1. Order'!M1071=\"\",\"\",'1. Order'!M1071)","v":""},null,null,{"$f":"IF('1. Order'!AR1071=\"\",\"\",'1. Order'!AR1071)","v":""},{"$f":"IF('1. Order'!AE1071=\"\",\"\",'1. Order'!AE1071)","v":""}]
[{"$f":"IF('1. Order'!B1072=\"\",\"\",'1. Order'!B1072)","v":""},{"$f":"IF('1. Order'!I1072=\"\",\"\",'1. Order'!I1072)","v":""},{"$f":"IF('1. Order'!J1072=\"\",\"\",'1. Order'!J1072)","v":""},{"$f":"IF('1. Order'!K1072=\"\",\"\",'1. Order'!K1072)","v":""},{"$f":"IF('1. Order'!M1072=\"\",\"\",'1. Order'!M1072)","v":""},null,null,{"$f":"IF('1. Order'!AR1072=\"\",\"\",'1. Order'!AR1072)","v":""},{"$f":"IF('1. Order'!AE1072=\"\",\"\",'1. Order'!AE1072)","v":""}]
[{"$f":"IF('1. Order'!B1073=\"\",\"\",'1. Order'!B1073)","v":""},{"$f":"IF('1. Order'!I1073=\"\",\"\",'1. Order'!I1073)","v":""},{"$f":"IF('1. Order'!J1073=\"\",\"\",'1. Order'!J1073)","v":""},{"$f":"IF('1. Order'!K1073=\"\",\"\",'1. Order'!K1073)","v":""},{"$f":"IF('1. Order'!M1073=\"\",\"\",'1. Order'!M1073)","v":""},null,null,{"$f":"IF('1. Order'!AR1073=\"\",\"\",'1. Order'!AR1073)","v":""},{"$f":"IF('1. Order'!AE1073=\"\",\"\",'1. Order'!AE1073)","v":""}]
[{"$f":"IF('1. Order'!B1074=\"\",\"\",'1. Order'!B1074)","v":""},{"$f":"IF('1. Order'!I1074=\"\",\"\",'1. Order'!I1074)","v":""},{"$f":"IF('1. Order'!J1074=\"\",\"\",'1. Order'!J1074)","v":""},{"$f":"IF('1. Order'!K1074=\"\",\"\",'1. Order'!K1074)","v":""},{"$f":"IF('1. Order'!M1074=\"\",\"\",'1. Order'!M1074)","v":""},null,null,{"$f":"IF('1. Order'!AR1074=\"\",\"\",'1. Order'!AR1074)","v":""},{"$f":"IF('1. Order'!AE1074=\"\",\"\",'1. Order'!AE1074)","v":""}]
[{"$f":"IF('1. Order'!B1075=\"\",\"\",'1. Order'!B1075)","v":""},{"$f":"IF('1. Order'!I1075=\"\",\"\",'1. Order'!I1075)","v":""},{"$f":"IF('1. Order'!J1075=\"\",\"\",'1. Order'!J1075)","v":""},{"$f":"IF('1. Order'!K1075=\"\",\"\",'1. Order'!K1075)","v":""},{"$f":"IF('1. Order'!M1075=\"\",\"\",'1. Order'!M1075)","v":""},null,null,{"$f":"IF('1. Order'!AR1075=\"\",\"\",'1. Order'!AR1075)","v":""},{"$f":"IF('1. Order'!AE1075=\"\",\"\",'1. Order'!AE1075)","v":""}]
[{"$f":"IF('1. Order'!B1076=\"\",\"\",'1. Order'!B1076)","v":""},{"$f":"IF('1. Order'!I1076=\"\",\"\",'1. Order'!I1076)","v":""},{"$f":"IF('1. Order'!J1076=\"\",\"\",'1. Order'!J1076)","v":""},{"$f":"IF('1. Order'!K1076=\"\",\"\",'1. Order'!K1076)","v":""},{"$f":"IF('1. Order'!M1076=\"\",\"\",'1. Order'!M1076)","v":""},null,null,{"$f":"IF('1. Order'!AR1076=\"\",\"\",'1. Order'!AR1076)","v":""},{"$f":"IF('1. Order'!AE1076=\"\",\"\",'1. Order'!AE1076)","v":""}]
[{"$f":"IF('1. Order'!B1077=\"\",\"\",'1. Order'!B1077)","v":""},{"$f":"IF('1. Order'!I1077=\"\",\"\",'1. Order'!I1077)","v":""},{"$f":"IF('1. Order'!J1077=\"\",\"\",'1. Order'!J1077)","v":""},{"$f":"IF('1. Order'!K1077=\"\",\"\",'1. Order'!K1077)","v":""},{"$f":"IF('1. Order'!M1077=\"\",\"\",'1. Order'!M1077)","v":""},null,null,{"$f":"IF('1. Order'!AR1077=\"\",\"\",'1. Order'!AR1077)","v":""},{"$f":"IF('1. Order'!AE1077=\"\",\"\",'1. Order'!AE1077)","v":""}]
[{"$f":"IF('1. Order'!B1078=\"\",\"\",'1. Order'!B1078)","v":""},{"$f":"IF('1. Order'!I1078=\"\",\"\",'1. Order'!I1078)","v":""},{"$f":"IF('1. Order'!J1078=\"\",\"\",'1. Order'!J1078)","v":""},{"$f":"IF('1. Order'!K1078=\"\",\"\",'1. Order'!K1078)","v":""},{"$f":"IF('1. Order'!M1078=\"\",\"\",'1. Order'!M1078)","v":""},null,null,{"$f":"IF('1. Order'!AR1078=\"\",\"\",'1. Order'!AR1078)","v":""},{"$f":"IF('1. Order'!AE1078=\"\",\"\",'1. Order'!AE1078)","v":""}]
[{"$f":"IF('1. Order'!B1079=\"\",\"\",'1. Order'!B1079)","v":""},{"$f":"IF('1. Order'!I1079=\"\",\"\",'1. Order'!I1079)","v":""},{"$f":"IF('1. Order'!J1079=\"\",\"\",'1. Order'!J1079)","v":""},{"$f":"IF('1. Order'!K1079=\"\",\"\",'1. Order'!K1079)","v":""},{"$f":"IF('1. Order'!M1079=\"\",\"\",'1. Order'!M1079)","v":""},null,null,{"$f":"IF('1. Order'!AR1079=\"\",\"\",'1. Order'!AR1079)","v":""},{"$f":"IF('1. Order'!AE1079=\"\",\"\",'1. Order'!AE1079)","v":""}]
[{"$f":"IF('1. Order'!B1080=\"\",\"\",'1. Order'!B1080)","v":""},{"$f":"IF('1. Order'!I1080=\"\",\"\",'1. Order'!I1080)","v":""},{"$f":"IF('1. Order'!J1080=\"\",\"\",'1. Order'!J1080)","v":""},{"$f":"IF('1. Order'!K1080=\"\",\"\",'1. Order'!K1080)","v":""},{"$f":"IF('1. Order'!M1080=\"\",\"\",'1. Order'!M1080)","v":""},null,null,{"$f":"IF('1. Order'!AR1080=\"\",\"\",'1. Order'!AR1080)","v":""},{"$f":"IF('1. Order'!AE1080=\"\",\"\",'1. Order'!AE1080)","v":""}]
[{"$f":"IF('1. Order'!B1081=\"\",\"\",'1. Order'!B1081)","v":""},{"$f":"IF('1. Order'!I1081=\"\",\"\",'1. Order'!I1081)","v":""},{"$f":"IF('1. Order'!J1081=\"\",\"\",'1. Order'!J1081)","v":""},{"$f":"IF('1. Order'!K1081=\"\",\"\",'1. Order'!K1081)","v":""},{"$f":"IF('1. Order'!M1081=\"\",\"\",'1. Order'!M1081)","v":""},null,null,{"$f":"IF('1. Order'!AR1081=\"\",\"\",'1. Order'!AR1081)","v":""},{"$f":"IF('1. Order'!AE1081=\"\",\"\",'1. Order'!AE1081)","v":""}]
[{"$f":"IF('1. Order'!B1082=\"\",\"\",'1. Order'!B1082)","v":""},{"$f":"IF('1. Order'!I1082=\"\",\"\",'1. Order'!I1082)","v":""},{"$f":"IF('1. Order'!J1082=\"\",\"\",'1. Order'!J1082)","v":""},{"$f":"IF('1. Order'!K1082=\"\",\"\",'1. Order'!K1082)","v":""},{"$f":"IF('1. Order'!M1082=\"\",\"\",'1. Order'!M1082)","v":""},null,null,{"$f":"IF('1. Order'!AR1082=\"\",\"\",'1. Order'!AR1082)","v":""},{"$f":"IF('1. Order'!AE1082=\"\",\"\",'1. Order'!AE1082)","v":""}]
[{"$f":"IF('1. Order'!B1083=\"\",\"\",'1. Order'!B1083)","v":""},{"$f":"IF('1. Order'!I1083=\"\",\"\",'1. Order'!I1083)","v":""},{"$f":"IF('1. Order'!J1083=\"\",\"\",'1. Order'!J1083)","v":""},{"$f":"IF('1. Order'!K1083=\"\",\"\",'1. Order'!K1083)","v":""},{"$f":"IF('1. Order'!M1083=\"\",\"\",'1. Order'!M1083)","v":""},null,null,{"$f":"IF('1. Order'!AR1083=\"\",\"\",'1. Order'!AR1083)","v":""},{"$f":"IF('1. Order'!AE1083=\"\",\"\",'1. Order'!AE1083)","v":""}]
[{"$f":"IF('1. Order'!B1084=\"\",\"\",'1. Order'!B1084)","v":""},{"$f":"IF('1. Order'!I1084=\"\",\"\",'1. Order'!I1084)","v":""},{"$f":"IF('1. Order'!J1084=\"\",\"\",'1. Order'!J1084)","v":""},{"$f":"IF('1. Order'!K1084=\"\",\"\",'1. Order'!K1084)","v":""},{"$f":"IF('1. Order'!M1084=\"\",\"\",'1. Order'!M1084)","v":""},null,null,{"$f":"IF('1. Order'!AR1084=\"\",\"\",'1. Order'!AR1084)","v":""},{"$f":"IF('1. Order'!AE1084=\"\",\"\",'1. Order'!AE1084)","v":""}]
[{"$f":"IF('1. Order'!B1085=\"\",\"\",'1. Order'!B1085)","v":""},{"$f":"IF('1. Order'!I1085=\"\",\"\",'1. Order'!I1085)","v":""},{"$f":"IF('1. Order'!J1085=\"\",\"\",'1. Order'!J1085)","v":""},{"$f":"IF('1. Order'!K1085=\"\",\"\",'1. Order'!K1085)","v":""},{"$f":"IF('1. Order'!M1085=\"\",\"\",'1. Order'!M1085)","v":""},null,null,{"$f":"IF('1. Order'!AR1085=\"\",\"\",'1. Order'!AR1085)","v":""},{"$f":"IF('1. Order'!AE1085=\"\",\"\",'1. Order'!AE1085)","v":""}]
[{"$f":"IF('1. Order'!B1086=\"\",\"\",'1. Order'!B1086)","v":""},{"$f":"IF('1. Order'!I1086=\"\",\"\",'1. Order'!I1086)","v":""},{"$f":"IF('1. Order'!J1086=\"\",\"\",'1. Order'!J1086)","v":""},{"$f":"IF('1. Order'!K1086=\"\",\"\",'1. Order'!K1086)","v":""},{"$f":"IF('1. Order'!M1086=\"\",\"\",'1. Order'!M1086)","v":""},null,null,{"$f":"IF('1. Order'!AR1086=\"\",\"\",'1. Order'!AR1086)","v":""},{"$f":"IF('1. Order'!AE1086=\"\",\"\",'1. Order'!AE1086)","v":""}]
[{"$f":"IF('1. Order'!B1087=\"\",\"\",'1. Order'!B1087)","v":""},{"$f":"IF('1. Order'!I1087=\"\",\"\",'1. Order'!I1087)","v":""},{"$f":"IF('1. Order'!J1087=\"\",\"\",'1. Order'!J1087)","v":""},{"$f":"IF('1. Order'!K1087=\"\",\"\",'1. Order'!K1087)","v":""},{"$f":"IF('1. Order'!M1087=\"\",\"\",'1. Order'!M1087)","v":""},null,null,{"$f":"IF('1. Order'!AR1087=\"\",\"\",'1. Order'!AR1087)","v":""},{"$f":"IF('1. Order'!AE1087=\"\",\"\",'1. Order'!AE1087)","v":""}]
[{"$f":"IF('1. Order'!B1088=\"\",\"\",'1. Order'!B1088)","v":""},{"$f":"IF('1. Order'!I1088=\"\",\"\",'1. Order'!I1088)","v":""},{"$f":"IF('1. Order'!J1088=\"\",\"\",'1. Order'!J1088)","v":""},{"$f":"IF('1. Order'!K1088=\"\",\"\",'1. Order'!K1088)","v":""},{"$f":"IF('1. Order'!M1088=\"\",\"\",'1. Order'!M1088)","v":""},null,null,{"$f":"IF('1. Order'!AR1088=\"\",\"\",'1. Order'!AR1088)","v":""},{"$f":"IF('1. Order'!AE1088=\"\",\"\",'1. Order'!AE1088)","v":""}]
[{"$f":"IF('1. Order'!B1089=\"\",\"\",'1. Order'!B1089)","v":""},{"$f":"IF('1. Order'!I1089=\"\",\"\",'1. Order'!I1089)","v":""},{"$f":"IF('1. Order'!J1089=\"\",\"\",'1. Order'!J1089)","v":""},{"$f":"IF('1. Order'!K1089=\"\",\"\",'1. Order'!K1089)","v":""},{"$f":"IF('1. Order'!M1089=\"\",\"\",'1. Order'!M1089)","v":""},null,null,{"$f":"IF('1. Order'!AR1089=\"\",\"\",'1. Order'!AR1089)","v":""},{"$f":"IF('1. Order'!AE1089=\"\",\"\",'1. Order'!AE1089)","v":""}]
[{"$f":"IF('1. Order'!B1090=\"\",\"\",'1. Order'!B1090)","v":""},{"$f":"IF('1. Order'!I1090=\"\",\"\",'1. Order'!I1090)","v":""},{"$f":"IF('1. Order'!J1090=\"\",\"\",'1. Order'!J1090)","v":""},{"$f":"IF('1. Order'!K1090=\"\",\"\",'1. Order'!K1090)","v":""},{"$f":"IF('1. Order'!M1090=\"\",\"\",'1. Order'!M1090)","v":""},null,null,{"$f":"IF('1. Order'!AR1090=\"\",\"\",'1. Order'!AR1090)","v":""},{"$f":"IF('1. Order'!AE1090=\"\",\"\",'1. Order'!AE1090)","v":""}]
[{"$f":"IF('1. Order'!B1091=\"\",\"\",'1. Order'!B1091)","v":""},{"$f":"IF('1. Order'!I1091=\"\",\"\",'1. Order'!I1091)","v":""},{"$f":"IF('1. Order'!J1091=\"\",\"\",'1. Order'!J1091)","v":""},{"$f":"IF('1. Order'!K1091=\"\",\"\",'1. Order'!K1091)","v":""},{"$f":"IF('1. Order'!M1091=\"\",\"\",'1. Order'!M1091)","v":""},null,null,{"$f":"IF('1. Order'!AR1091=\"\",\"\",'1. Order'!AR1091)","v":""},{"$f":"IF('1. Order'!AE1091=\"\",\"\",'1. Order'!AE1091)","v":""}]
[{"$f":"IF('1. Order'!B1092=\"\",\"\",'1. Order'!B1092)","v":""},{"$f":"IF('1. Order'!I1092=\"\",\"\",'1. Order'!I1092)","v":""},{"$f":"IF('1. Order'!J1092=\"\",\"\",'1. Order'!J1092)","v":""},{"$f":"IF('1. Order'!K1092=\"\",\"\",'1. Order'!K1092)","v":""},{"$f":"IF('1. Order'!M1092=\"\",\"\",'1. Order'!M1092)","v":""},null,null,{"$f":"IF('1. Order'!AR1092=\"\",\"\",'1. Order'!AR1092)","v":""},{"$f":"IF('1. Order'!AE1092=\"\",\"\",'1. Order'!AE1092)","v":""}]
[{"$f":"IF('1. Order'!B1093=\"\",\"\",'1. Order'!B1093)","v":""},{"$f":"IF('1. Order'!I1093=\"\",\"\",'1. Order'!I1093)","v":""},{"$f":"IF('1. Order'!J1093=\"\",\"\",'1. Order'!J1093)","v":""},{"$f":"IF('1. Order'!K1093=\"\",\"\",'1. Order'!K1093)","v":""},{"$f":"IF('1. Order'!M1093=\"\",\"\",'1. Order'!M1093)","v":""},null,null,{"$f":"IF('1. Order'!AR1093=\"\",\"\",'1. Order'!AR1093)","v":""},{"$f":"IF('1. Order'!AE1093=\"\",\"\",'1. Order'!AE1093)","v":""}]
[{"$f":"IF('1. Order'!B1094=\"\",\"\",'1. Order'!B1094)","v":""},{"$f":"IF('1. Order'!I1094=\"\",\"\",'1. Order'!I1094)","v":""},{"$f":"IF('1. Order'!J1094=\"\",\"\",'1. Order'!J1094)","v":""},{"$f":"IF('1. Order'!K1094=\"\",\"\",'1. Order'!K1094)","v":""},{"$f":"IF('1. Order'!M1094=\"\",\"\",'1. Order'!M1094)","v":""},null,null,{"$f":"IF('1. Order'!AR1094=\"\",\"\",'1. Order'!AR1094)","v":""},{"$f":"IF('1. Order'!AE1094=\"\",\"\",'1. Order'!AE1094)","v":""}]
[{"$f":"IF('1. Order'!B1095=\"\",\"\",'1. Order'!B1095)","v":""},{"$f":"IF('1. Order'!I1095=\"\",\"\",'1. Order'!I1095)","v":""},{"$f":"IF('1. Order'!J1095=\"\",\"\",'1. Order'!J1095)","v":""},{"$f":"IF('1. Order'!K1095=\"\",\"\",'1. Order'!K1095)","v":""},{"$f":"IF('1. Order'!M1095=\"\",\"\",'1. Order'!M1095)","v":""},null,null,{"$f":"IF('1. Order'!AR1095=\"\",\"\",'1. Order'!AR1095)","v":""},{"$f":"IF('1. Order'!AE1095=\"\",\"\",'1. Order'!AE1095)","v":""}]
[{"$f":"IF('1. Order'!B1096=\"\",\"\",'1. Order'!B1096)","v":""},{"$f":"IF('1. Order'!I1096=\"\",\"\",'1. Order'!I1096)","v":""},{"$f":"IF('1. Order'!J1096=\"\",\"\",'1. Order'!J1096)","v":""},{"$f":"IF('1. Order'!K1096=\"\",\"\",'1. Order'!K1096)","v":""},{"$f":"IF('1. Order'!M1096=\"\",\"\",'1. Order'!M1096)","v":""},null,null,{"$f":"IF('1. Order'!AR1096=\"\",\"\",'1. Order'!AR1096)","v":""},{"$f":"IF('1. Order'!AE1096=\"\",\"\",'1. Order'!AE1096)","v":""}]
[{"$f":"IF('1. Order'!B1097=\"\",\"\",'1. Order'!B1097)","v":""},{"$f":"IF('1. Order'!I1097=\"\",\"\",'1. Order'!I1097)","v":""},{"$f":"IF('1. Order'!J1097=\"\",\"\",'1. Order'!J1097)","v":""},{"$f":"IF('1. Order'!K1097=\"\",\"\",'1. Order'!K1097)","v":""},{"$f":"IF('1. Order'!M1097=\"\",\"\",'1. Order'!M1097)","v":""},null,null,{"$f":"IF('1. Order'!AR1097=\"\",\"\",'1. Order'!AR1097)","v":""},{"$f":"IF('1. Order'!AE1097=\"\",\"\",'1. Order'!AE1097)","v":""}]
[{"$f":"IF('1. Order'!B1098=\"\",\"\",'1. Order'!B1098)","v":""},{"$f":"IF('1. Order'!I1098=\"\",\"\",'1. Order'!I1098)","v":""},{"$f":"IF('1. Order'!J1098=\"\",\"\",'1. Order'!J1098)","v":""},{"$f":"IF('1. Order'!K1098=\"\",\"\",'1. Order'!K1098)","v":""},{"$f":"IF('1. Order'!M1098=\"\",\"\",'1. Order'!M1098)","v":""},null,null,{"$f":"IF('1. Order'!AR1098=\"\",\"\",'1. Order'!AR1098)","v":""},{"$f":"IF('1. Order'!AE1098=\"\",\"\",'1. Order'!AE1098)","v":""}]
[{"$f":"IF('1. Order'!B1099=\"\",\"\",'1. Order'!B1099)","v":""},{"$f":"IF('1. Order'!I1099=\"\",\"\",'1. Order'!I1099)","v":""},{"$f":"IF('1. Order'!J1099=\"\",\"\",'1. Order'!J1099)","v":""},{"$f":"IF('1. Order'!K1099=\"\",\"\",'1. Order'!K1099)","v":""},{"$f":"IF('1. Order'!M1099=\"\",\"\",'1. Order'!M1099)","v":""},null,null,{"$f":"IF('1. Order'!AR1099=\"\",\"\",'1. Order'!AR1099)","v":""},{"$f":"IF('1. Order'!AE1099=\"\",\"\",'1. Order'!AE1099)","v":""}]
[{"$f":"IF('1. Order'!B1100=\"\",\"\",'1. Order'!B1100)","v":""},{"$f":"IF('1. Order'!I1100=\"\",\"\",'1. Order'!I1100)","v":""},{"$f":"IF('1. Order'!J1100=\"\",\"\",'1. Order'!J1100)","v":""},{"$f":"IF('1. Order'!K1100=\"\",\"\",'1. Order'!K1100)","v":""},{"$f":"IF('1. Order'!M1100=\"\",\"\",'1. Order'!M1100)","v":""},null,null,{"$f":"IF('1. Order'!AR1100=\"\",\"\",'1. Order'!AR1100)","v":""},{"$f":"IF('1. Order'!AE1100=\"\",\"\",'1. Order'!AE1100)","v":""}]
[{"$f":"IF('1. Order'!B1101=\"\",\"\",'1. Order'!B1101)","v":""},{"$f":"IF('1. Order'!I1101=\"\",\"\",'1. Order'!I1101)","v":""},{"$f":"IF('1. Order'!J1101=\"\",\"\",'1. Order'!J1101)","v":""},{"$f":"IF('1. Order'!K1101=\"\",\"\",'1. Order'!K1101)","v":""},{"$f":"IF('1. Order'!M1101=\"\",\"\",'1. Order'!M1101)","v":""},null,null,{"$f":"IF('1. Order'!AR1101=\"\",\"\",'1. Order'!AR1101)","v":""},{"$f":"IF('1. Order'!AE1101=\"\",\"\",'1. Order'!AE1101)","v":""}]
[{"$f":"IF('1. Order'!B1102=\"\",\"\",'1. Order'!B1102)","v":""},{"$f":"IF('1. Order'!I1102=\"\",\"\",'1. Order'!I1102)","v":""},{"$f":"IF('1. Order'!J1102=\"\",\"\",'1. Order'!J1102)","v":""},{"$f":"IF('1. Order'!K1102=\"\",\"\",'1. Order'!K1102)","v":""},{"$f":"IF('1. Order'!M1102=\"\",\"\",'1. Order'!M1102)","v":""},null,null,{"$f":"IF('1. Order'!AR1102=\"\",\"\",'1. Order'!AR1102)","v":""},{"$f":"IF('1. Order'!AE1102=\"\",\"\",'1. Order'!AE1102)","v":""}]
[{"$f":"IF('1. Order'!B1103=\"\",\"\",'1. Order'!B1103)","v":""},{"$f":"IF('1. Order'!I1103=\"\",\"\",'1. Order'!I1103)","v":""},{"$f":"IF('1. Order'!J1103=\"\",\"\",'1. Order'!J1103)","v":""},{"$f":"IF('1. Order'!K1103=\"\",\"\",'1. Order'!K1103)","v":""},{"$f":"IF('1. Order'!M1103=\"\",\"\",'1. Order'!M1103)","v":""},null,null,{"$f":"IF('1. Order'!AR1103=\"\",\"\",'1. Order'!AR1103)","v":""},{"$f":"IF('1. Order'!AE1103=\"\",\"\",'1. Order'!AE1103)","v":""}]
[{"$f":"IF('1. Order'!B1104=\"\",\"\",'1. Order'!B1104)","v":""},{"$f":"IF('1. Order'!I1104=\"\",\"\",'1. Order'!I1104)","v":""},{"$f":"IF('1. Order'!J1104=\"\",\"\",'1. Order'!J1104)","v":""},{"$f":"IF('1. Order'!K1104=\"\",\"\",'1. Order'!K1104)","v":""},{"$f":"IF('1. Order'!M1104=\"\",\"\",'1. Order'!M1104)","v":""},null,null,{"$f":"IF('1. Order'!AR1104=\"\",\"\",'1. Order'!AR1104)","v":""},{"$f":"IF('1. Order'!AE1104=\"\",\"\",'1. Order'!AE1104)","v":""}]
[{"$f":"IF('1. Order'!B1105=\"\",\"\",'1. Order'!B1105)","v":""},{"$f":"IF('1. Order'!I1105=\"\",\"\",'1. Order'!I1105)","v":""},{"$f":"IF('1. Order'!J1105=\"\",\"\",'1. Order'!J1105)","v":""},{"$f":"IF('1. Order'!K1105=\"\",\"\",'1. Order'!K1105)","v":""},{"$f":"IF('1. Order'!M1105=\"\",\"\",'1. Order'!M1105)","v":""},null,null,{"$f":"IF('1. Order'!AR1105=\"\",\"\",'1. Order'!AR1105)","v":""},{"$f":"IF('1. Order'!AE1105=\"\",\"\",'1. Order'!AE1105)","v":""}]
[{"$f":"IF('1. Order'!B1106=\"\",\"\",'1. Order'!B1106)","v":""},{"$f":"IF('1. Order'!I1106=\"\",\"\",'1. Order'!I1106)","v":""},{"$f":"IF('1. Order'!J1106=\"\",\"\",'1. Order'!J1106)","v":""},{"$f":"IF('1. Order'!K1106=\"\",\"\",'1. Order'!K1106)","v":""},{"$f":"IF('1. Order'!M1106=\"\",\"\",'1. Order'!M1106)","v":""},null,null,{"$f":"IF('1. Order'!AR1106=\"\",\"\",'1. Order'!AR1106)","v":""},{"$f":"IF('1. Order'!AE1106=\"\",\"\",'1. Order'!AE1106)","v":""}]
[{"$f":"IF('1. Order'!B1107=\"\",\"\",'1. Order'!B1107)","v":""},{"$f":"IF('1. Order'!I1107=\"\",\"\",'1. Order'!I1107)","v":""},{"$f":"IF('1. Order'!J1107=\"\",\"\",'1. Order'!J1107)","v":""},{"$f":"IF('1. Order'!K1107=\"\",\"\",'1. Order'!K1107)","v":""},{"$f":"IF('1. Order'!M1107=\"\",\"\",'1. Order'!M1107)","v":""},null,null,{"$f":"IF('1. Order'!AR1107=\"\",\"\",'1. Order'!AR1107)","v":""},{"$f":"IF('1. Order'!AE1107=\"\",\"\",'1. Order'!AE1107)","v":""}]
[{"$f":"IF('1. Order'!B1108=\"\",\"\",'1. Order'!B1108)","v":""},{"$f":"IF('1. Order'!I1108=\"\",\"\",'1. Order'!I1108)","v":""},{"$f":"IF('1. Order'!J1108=\"\",\"\",'1. Order'!J1108)","v":""},{"$f":"IF('1. Order'!K1108=\"\",\"\",'1. Order'!K1108)","v":""},{"$f":"IF('1. Order'!M1108=\"\",\"\",'1. Order'!M1108)","v":""},null,null,{"$f":"IF('1. Order'!AR1108=\"\",\"\",'1. Order'!AR1108)","v":""},{"$f":"IF('1. Order'!AE1108=\"\",\"\",'1. Order'!AE1108)","v":""}]
[{"$f":"IF('1. Order'!B1109=\"\",\"\",'1. Order'!B1109)","v":""},{"$f":"IF('1. Order'!I1109=\"\",\"\",'1. Order'!I1109)","v":""},{"$f":"IF('1. Order'!J1109=\"\",\"\",'1. Order'!J1109)","v":""},{"$f":"IF('1. Order'!K1109=\"\",\"\",'1. Order'!K1109)","v":""},{"$f":"IF('1. Order'!M1109=\"\",\"\",'1. Order'!M1109)","v":""},null,null,{"$f":"IF('1. Order'!AR1109=\"\",\"\",'1. Order'!AR1109)","v":""},{"$f":"IF('1. Order'!AE1109=\"\",\"\",'1. Order'!AE1109)","v":""}]
[{"$f":"IF('1. Order'!B1110=\"\",\"\",'1. Order'!B1110)","v":""},{"$f":"IF('1. Order'!I1110=\"\",\"\",'1. Order'!I1110)","v":""},{"$f":"IF('1. Order'!J1110=\"\",\"\",'1. Order'!J1110)","v":""},{"$f":"IF('1. Order'!K1110=\"\",\"\",'1. Order'!K1110)","v":""},{"$f":"IF('1. Order'!M1110=\"\",\"\",'1. Order'!M1110)","v":""},null,null,{"$f":"IF('1. Order'!AR1110=\"\",\"\",'1. Order'!AR1110)","v":""},{"$f":"IF('1. Order'!AE1110=\"\",\"\",'1. Order'!AE1110)","v":""}]
[{"$f":"IF('1. Order'!B1111=\"\",\"\",'1. Order'!B1111)","v":""},{"$f":"IF('1. Order'!I1111=\"\",\"\",'1. Order'!I1111)","v":""},{"$f":"IF('1. Order'!J1111=\"\",\"\",'1. Order'!J1111)","v":""},{"$f":"IF('1. Order'!K1111=\"\",\"\",'1. Order'!K1111)","v":""},{"$f":"IF('1. Order'!M1111=\"\",\"\",'1. Order'!M1111)","v":""},null,null,{"$f":"IF('1. Order'!AR1111=\"\",\"\",'1. Order'!AR1111)","v":""},{"$f":"IF('1. Order'!AE1111=\"\",\"\",'1. Order'!AE1111)","v":""}]
[{"$f":"IF('1. Order'!B1112=\"\",\"\",'1. Order'!B1112)","v":""},{"$f":"IF('1. Order'!I1112=\"\",\"\",'1. Order'!I1112)","v":""},{"$f":"IF('1. Order'!J1112=\"\",\"\",'1. Order'!J1112)","v":""},{"$f":"IF('1. Order'!K1112=\"\",\"\",'1. Order'!K1112)","v":""},{"$f":"IF('1. Order'!M1112=\"\",\"\",'1. Order'!M1112)","v":""},null,null,{"$f":"IF('1. Order'!AR1112=\"\",\"\",'1. Order'!AR1112)","v":""},{"$f":"IF('1. Order'!AE1112=\"\",\"\",'1. Order'!AE1112)","v":""}]
[{"$f":"IF('1. Order'!B1113=\"\",\"\",'1. Order'!B1113)","v":""},{"$f":"IF('1. Order'!I1113=\"\",\"\",'1. Order'!I1113)","v":""},{"$f":"IF('1. Order'!J1113=\"\",\"\",'1. Order'!J1113)","v":""},{"$f":"IF('1. Order'!K1113=\"\",\"\",'1. Order'!K1113)","v":""},{"$f":"IF('1. Order'!M1113=\"\",\"\",'1. Order'!M1113)","v":""},null,null,{"$f":"IF('1. Order'!AR1113=\"\",\"\",'1. Order'!AR1113)","v":""},{"$f":"IF('1. Order'!AE1113=\"\",\"\",'1. Order'!AE1113)","v":""}]
[{"$f":"IF('1. Order'!B1114=\"\",\"\",'1. Order'!B1114)","v":""},{"$f":"IF('1. Order'!I1114=\"\",\"\",'1. Order'!I1114)","v":""},{"$f":"IF('1. Order'!J1114=\"\",\"\",'1. Order'!J1114)","v":""},{"$f":"IF('1. Order'!K1114=\"\",\"\",'1. Order'!K1114)","v":""},{"$f":"IF('1. Order'!M1114=\"\",\"\",'1. Order'!M1114)","v":""},null,null,{"$f":"IF('1. Order'!AR1114=\"\",\"\",'1. Order'!AR1114)","v":""},{"$f":"IF('1. Order'!AE1114=\"\",\"\",'1. Order'!AE1114)","v":""}]
[{"$f":"IF('1. Order'!B1115=\"\",\"\",'1. Order'!B1115)","v":""},{"$f":"IF('1. Order'!I1115=\"\",\"\",'1. Order'!I1115)","v":""},{"$f":"IF('1. Order'!J1115=\"\",\"\",'1. Order'!J1115)","v":""},{"$f":"IF('1. Order'!K1115=\"\",\"\",'1. Order'!K1115)","v":""},{"$f":"IF('1. Order'!M1115=\"\",\"\",'1. Order'!M1115)","v":""},null,null,{"$f":"IF('1. Order'!AR1115=\"\",\"\",'1. Order'!AR1115)","v":""},{"$f":"IF('1. Order'!AE1115=\"\",\"\",'1. Order'!AE1115)","v":""}]
[{"$f":"IF('1. Order'!B1116=\"\",\"\",'1. Order'!B1116)","v":""},{"$f":"IF('1. Order'!I1116=\"\",\"\",'1. Order'!I1116)","v":""},{"$f":"IF('1. Order'!J1116=\"\",\"\",'1. Order'!J1116)","v":""},{"$f":"IF('1. Order'!K1116=\"\",\"\",'1. Order'!K1116)","v":""},{"$f":"IF('1. Order'!M1116=\"\",\"\",'1. Order'!M1116)","v":""},null,null,{"$f":"IF('1. Order'!AR1116=\"\",\"\",'1. Order'!AR1116)","v":""},{"$f":"IF('1. Order'!AE1116=\"\",\"\",'1. Order'!AE1116)","v":""}]
[{"$f":"IF('1. Order'!B1117=\"\",\"\",'1. Order'!B1117)","v":""},{"$f":"IF('1. Order'!I1117=\"\",\"\",'1. Order'!I1117)","v":""},{"$f":"IF('1. Order'!J1117=\"\",\"\",'1. Order'!J1117)","v":""},{"$f":"IF('1. Order'!K1117=\"\",\"\",'1. Order'!K1117)","v":""},{"$f":"IF('1. Order'!M1117=\"\",\"\",'1. Order'!M1117)","v":""},null,null,{"$f":"IF('1. Order'!AR1117=\"\",\"\",'1. Order'!AR1117)","v":""},{"$f":"IF('1. Order'!AE1117=\"\",\"\",'1. Order'!AE1117)","v":""}]
[{"$f":"IF('1. Order'!B1118=\"\",\"\",'1. Order'!B1118)","v":""},{"$f":"IF('1. Order'!I1118=\"\",\"\",'1. Order'!I1118)","v":""},{"$f":"IF('1. Order'!J1118=\"\",\"\",'1. Order'!J1118)","v":""},{"$f":"IF('1. Order'!K1118=\"\",\"\",'1. Order'!K1118)","v":""},{"$f":"IF('1. Order'!M1118=\"\",\"\",'1. Order'!M1118)","v":""},null,null,{"$f":"IF('1. Order'!AR1118=\"\",\"\",'1. Order'!AR1118)","v":""},{"$f":"IF('1. Order'!AE1118=\"\",\"\",'1. Order'!AE1118)","v":""}]
[{"$f":"IF('1. Order'!B1119=\"\",\"\",'1. Order'!B1119)","v":""},{"$f":"IF('1. Order'!I1119=\"\",\"\",'1. Order'!I1119)","v":""},{"$f":"IF('1. Order'!J1119=\"\",\"\",'1. Order'!J1119)","v":""},{"$f":"IF('1. Order'!K1119=\"\",\"\",'1. Order'!K1119)","v":""},{"$f":"IF('1. Order'!M1119=\"\",\"\",'1. Order'!M1119)","v":""},null,null,{"$f":"IF('1. Order'!AR1119=\"\",\"\",'1. Order'!AR1119)","v":""},{"$f":"IF('1. Order'!AE1119=\"\",\"\",'1. Order'!AE1119)","v":""}]
[{"$f":"IF('1. Order'!B1120=\"\",\"\",'1. Order'!B1120)","v":""},{"$f":"IF('1. Order'!I1120=\"\",\"\",'1. Order'!I1120)","v":""},{"$f":"IF('1. Order'!J1120=\"\",\"\",'1. Order'!J1120)","v":""},{"$f":"IF('1. Order'!K1120=\"\",\"\",'1. Order'!K1120)","v":""},{"$f":"IF('1. Order'!M1120=\"\",\"\",'1. Order'!M1120)","v":""},null,null,{"$f":"IF('1. Order'!AR1120=\"\",\"\",'1. Order'!AR1120)","v":""},{"$f":"IF('1. Order'!AE1120=\"\",\"\",'1. Order'!AE1120)","v":""}]
[{"$f":"IF('1. Order'!B1121=\"\",\"\",'1. Order'!B1121)","v":""},{"$f":"IF('1. Order'!I1121=\"\",\"\",'1. Order'!I1121)","v":""},{"$f":"IF('1. Order'!J1121=\"\",\"\",'1. Order'!J1121)","v":""},{"$f":"IF('1. Order'!K1121=\"\",\"\",'1. Order'!K1121)","v":""},{"$f":"IF('1. Order'!M1121=\"\",\"\",'1. Order'!M1121)","v":""},null,null,{"$f":"IF('1. Order'!AR1121=\"\",\"\",'1. Order'!AR1121)","v":""},{"$f":"IF('1. Order'!AE1121=\"\",\"\",'1. Order'!AE1121)","v":""}]
[{"$f":"IF('1. Order'!B1122=\"\",\"\",'1. Order'!B1122)","v":""},{"$f":"IF('1. Order'!I1122=\"\",\"\",'1. Order'!I1122)","v":""},{"$f":"IF('1. Order'!J1122=\"\",\"\",'1. Order'!J1122)","v":""},{"$f":"IF('1. Order'!K1122=\"\",\"\",'1. Order'!K1122)","v":""},{"$f":"IF('1. Order'!M1122=\"\",\"\",'1. Order'!M1122)","v":""},null,null,{"$f":"IF('1. Order'!AR1122=\"\",\"\",'1. Order'!AR1122)","v":""},{"$f":"IF('1. Order'!AE1122=\"\",\"\",'1. Order'!AE1122)","v":""}]
[{"$f":"IF('1. Order'!B1123=\"\",\"\",'1. Order'!B1123)","v":""},{"$f":"IF('1. Order'!I1123=\"\",\"\",'1. Order'!I1123)","v":""},{"$f":"IF('1. Order'!J1123=\"\",\"\",'1. Order'!J1123)","v":""},{"$f":"IF('1. Order'!K1123=\"\",\"\",'1. Order'!K1123)","v":""},{"$f":"IF('1. Order'!M1123=\"\",\"\",'1. Order'!M1123)","v":""},null,null,{"$f":"IF('1. Order'!AR1123=\"\",\"\",'1. Order'!AR1123)","v":""},{"$f":"IF('1. Order'!AE1123=\"\",\"\",'1. Order'!AE1123)","v":""}]
[{"$f":"IF('1. Order'!B1124=\"\",\"\",'1. Order'!B1124)","v":""},{"$f":"IF('1. Order'!I1124=\"\",\"\",'1. Order'!I1124)","v":""},{"$f":"IF('1. Order'!J1124=\"\",\"\",'1. Order'!J1124)","v":""},{"$f":"IF('1. Order'!K1124=\"\",\"\",'1. Order'!K1124)","v":""},{"$f":"IF('1. Order'!M1124=\"\",\"\",'1. Order'!M1124)","v":""},null,null,{"$f":"IF('1. Order'!AR1124=\"\",\"\",'1. Order'!AR1124)","v":""},{"$f":"IF('1. Order'!AE1124=\"\",\"\",'1. Order'!AE1124)","v":""}]
[{"$f":"IF('1. Order'!B1125=\"\",\"\",'1. Order'!B1125)","v":""},{"$f":"IF('1. Order'!I1125=\"\",\"\",'1. Order'!I1125)","v":""},{"$f":"IF('1. Order'!J1125=\"\",\"\",'1. Order'!J1125)","v":""},{"$f":"IF('1. Order'!K1125=\"\",\"\",'1. Order'!K1125)","v":""},{"$f":"IF('1. Order'!M1125=\"\",\"\",'1. Order'!M1125)","v":""},null,null,{"$f":"IF('1. Order'!AR1125=\"\",\"\",'1. Order'!AR1125)","v":""},{"$f":"IF('1. Order'!AE1125=\"\",\"\",'1. Order'!AE1125)","v":""}]
[{"$f":"IF('1. Order'!B1126=\"\",\"\",'1. Order'!B1126)","v":""},{"$f":"IF('1. Order'!I1126=\"\",\"\",'1. Order'!I1126)","v":""},{"$f":"IF('1. Order'!J1126=\"\",\"\",'1. Order'!J1126)","v":""},{"$f":"IF('1. Order'!K1126=\"\",\"\",'1. Order'!K1126)","v":""},{"$f":"IF('1. Order'!M1126=\"\",\"\",'1. Order'!M1126)","v":""},null,null,{"$f":"IF('1. Order'!AR1126=\"\",\"\",'1. Order'!AR1126)","v":""},{"$f":"IF('1. Order'!AE1126=\"\",\"\",'1. Order'!AE1126)","v":""}]
[{"$f":"IF('1. Order'!B1127=\"\",\"\",'1. Order'!B1127)","v":""},{"$f":"IF('1. Order'!I1127=\"\",\"\",'1. Order'!I1127)","v":""},{"$f":"IF('1. Order'!J1127=\"\",\"\",'1. Order'!J1127)","v":""},{"$f":"IF('1. Order'!K1127=\"\",\"\",'1. Order'!K1127)","v":""},{"$f":"IF('1. Order'!M1127=\"\",\"\",'1. Order'!M1127)","v":""},null,null,{"$f":"IF('1. Order'!AR1127=\"\",\"\",'1. Order'!AR1127)","v":""},{"$f":"IF('1. Order'!AE1127=\"\",\"\",'1. Order'!AE1127)","v":""}]
[{"$f":"IF('1. Order'!B1128=\"\",\"\",'1. Order'!B1128)","v":""},{"$f":"IF('1. Order'!I1128=\"\",\"\",'1. Order'!I1128)","v":""},{"$f":"IF('1. Order'!J1128=\"\",\"\",'1. Order'!J1128)","v":""},{"$f":"IF('1. Order'!K1128=\"\",\"\",'1. Order'!K1128)","v":""},{"$f":"IF('1. Order'!M1128=\"\",\"\",'1. Order'!M1128)","v":""},null,null,{"$f":"IF('1. Order'!AR1128=\"\",\"\",'1. Order'!AR1128)","v":""},{"$f":"IF('1. Order'!AE1128=\"\",\"\",'1. Order'!AE1128)","v":""}]
[{"$f":"IF('1. Order'!B1129=\"\",\"\",'1. Order'!B1129)","v":""},{"$f":"IF('1. Order'!I1129=\"\",\"\",'1. Order'!I1129)","v":""},{"$f":"IF('1. Order'!J1129=\"\",\"\",'1. Order'!J1129)","v":""},{"$f":"IF('1. Order'!K1129=\"\",\"\",'1. Order'!K1129)","v":""},{"$f":"IF('1. Order'!M1129=\"\",\"\",'1. Order'!M1129)","v":""},null,null,{"$f":"IF('1. Order'!AR1129=\"\",\"\",'1. Order'!AR1129)","v":""},{"$f":"IF('1. Order'!AE1129=\"\",\"\",'1. Order'!AE1129)","v":""}]
[{"$f":"IF('1. Order'!B1130=\"\",\"\",'1. Order'!B1130)","v":""},{"$f":"IF('1. Order'!I1130=\"\",\"\",'1. Order'!I1130)","v":""},{"$f":"IF('1. Order'!J1130=\"\",\"\",'1. Order'!J1130)","v":""},{"$f":"IF('1. Order'!K1130=\"\",\"\",'1. Order'!K1130)","v":""},{"$f":"IF('1. Order'!M1130=\"\",\"\",'1. Order'!M1130)","v":""},null,null,{"$f":"IF('1. Order'!AR1130=\"\",\"\",'1. Order'!AR1130)","v":""},{"$f":"IF('1. Order'!AE1130=\"\",\"\",'1. Order'!AE1130)","v":""}]
[{"$f":"IF('1. Order'!B1131=\"\",\"\",'1. Order'!B1131)","v":""},{"$f":"IF('1. Order'!I1131=\"\",\"\",'1. Order'!I1131)","v":""},{"$f":"IF('1. Order'!J1131=\"\",\"\",'1. Order'!J1131)","v":""},{"$f":"IF('1. Order'!K1131=\"\",\"\",'1. Order'!K1131)","v":""},{"$f":"IF('1. Order'!M1131=\"\",\"\",'1. Order'!M1131)","v":""},null,null,{"$f":"IF('1. Order'!AR1131=\"\",\"\",'1. Order'!AR1131)","v":""},{"$f":"IF('1. Order'!AE1131=\"\",\"\",'1. Order'!AE1131)","v":""}]
[{"$f":"IF('1. Order'!B1132=\"\",\"\",'1. Order'!B1132)","v":""},{"$f":"IF('1. Order'!I1132=\"\",\"\",'1. Order'!I1132)","v":""},{"$f":"IF('1. Order'!J1132=\"\",\"\",'1. Order'!J1132)","v":""},{"$f":"IF('1. Order'!K1132=\"\",\"\",'1. Order'!K1132)","v":""},{"$f":"IF('1. Order'!M1132=\"\",\"\",'1. Order'!M1132)","v":""},null,null,{"$f":"IF('1. Order'!AR1132=\"\",\"\",'1. Order'!AR1132)","v":""},{"$f":"IF('1. Order'!AE1132=\"\",\"\",'1. Order'!AE1132)","v":""}]
[{"$f":"IF('1. Order'!B1133=\"\",\"\",'1. Order'!B1133)","v":""},{"$f":"IF('1. Order'!I1133=\"\",\"\",'1. Order'!I1133)","v":""},{"$f":"IF('1. Order'!J1133=\"\",\"\",'1. Order'!J1133)","v":""},{"$f":"IF('1. Order'!K1133=\"\",\"\",'1. Order'!K1133)","v":""},{"$f":"IF('1. Order'!M1133=\"\",\"\",'1. Order'!M1133)","v":""},null,null,{"$f":"IF('1. Order'!AR1133=\"\",\"\",'1. Order'!AR1133)","v":""},{"$f":"IF('1. Order'!AE1133=\"\",\"\",'1. Order'!AE1133)","v":""}]
[{"$f":"IF('1. Order'!B1134=\"\",\"\",'1. Order'!B1134)","v":""},{"$f":"IF('1. Order'!I1134=\"\",\"\",'1. Order'!I1134)","v":""},{"$f":"IF('1. Order'!J1134=\"\",\"\",'1. Order'!J1134)","v":""},{"$f":"IF('1. Order'!K1134=\"\",\"\",'1. Order'!K1134)","v":""},{"$f":"IF('1. Order'!M1134=\"\",\"\",'1. Order'!M1134)","v":""},null,null,{"$f":"IF('1. Order'!AR1134=\"\",\"\",'1. Order'!AR1134)","v":""},{"$f":"IF('1. Order'!AE1134=\"\",\"\",'1. Order'!AE1134)","v":""}]
[{"$f":"IF('1. Order'!B1135=\"\",\"\",'1. Order'!B1135)","v":""},{"$f":"IF('1. Order'!I1135=\"\",\"\",'1. Order'!I1135)","v":""},{"$f":"IF('1. Order'!J1135=\"\",\"\",'1. Order'!J1135)","v":""},{"$f":"IF('1. Order'!K1135=\"\",\"\",'1. Order'!K1135)","v":""},{"$f":"IF('1. Order'!M1135=\"\",\"\",'1. Order'!M1135)","v":""},null,null,{"$f":"IF('1. Order'!AR1135=\"\",\"\",'1. Order'!AR1135)","v":""},{"$f":"IF('1. Order'!AE1135=\"\",\"\",'1. Order'!AE1135)","v":""}]
[{"$f":"IF('1. Order'!B1136=\"\",\"\",'1. Order'!B1136)","v":""},{"$f":"IF('1. Order'!I1136=\"\",\"\",'1. Order'!I1136)","v":""},{"$f":"IF('1. Order'!J1136=\"\",\"\",'1. Order'!J1136)","v":""},{"$f":"IF('1. Order'!K1136=\"\",\"\",'1. Order'!K1136)","v":""},{"$f":"IF('1. Order'!M1136=\"\",\"\",'1. Order'!M1136)","v":""},null,null,{"$f":"IF('1. Order'!AR1136=\"\",\"\",'1. Order'!AR1136)","v":""},{"$f":"IF('1. Order'!AE1136=\"\",\"\",'1. Order'!AE1136)","v":""}]
[{"$f":"IF('1. Order'!B1137=\"\",\"\",'1. Order'!B1137)","v":""},{"$f":"IF('1. Order'!I1137=\"\",\"\",'1. Order'!I1137)","v":""},{"$f":"IF('1. Order'!J1137=\"\",\"\",'1. Order'!J1137)","v":""},{"$f":"IF('1. Order'!K1137=\"\",\"\",'1. Order'!K1137)","v":""},{"$f":"IF('1. Order'!M1137=\"\",\"\",'1. Order'!M1137)","v":""},null,null,{"$f":"IF('1. Order'!AR1137=\"\",\"\",'1. Order'!AR1137)","v":""},{"$f":"IF('1. Order'!AE1137=\"\",\"\",'1. Order'!AE1137)","v":""}]
[{"$f":"IF('1. Order'!B1138=\"\",\"\",'1. Order'!B1138)","v":""},{"$f":"IF('1. Order'!I1138=\"\",\"\",'1. Order'!I1138)","v":""},{"$f":"IF('1. Order'!J1138=\"\",\"\",'1. Order'!J1138)","v":""},{"$f":"IF('1. Order'!K1138=\"\",\"\",'1. Order'!K1138)","v":""},{"$f":"IF('1. Order'!M1138=\"\",\"\",'1. Order'!M1138)","v":""},null,null,{"$f":"IF('1. Order'!AR1138=\"\",\"\",'1. Order'!AR1138)","v":""},{"$f":"IF('1. Order'!AE1138=\"\",\"\",'1. Order'!AE1138)","v":""}]
[{"$f":"IF('1. Order'!B1139=\"\",\"\",'1. Order'!B1139)","v":""},{"$f":"IF('1. Order'!I1139=\"\",\"\",'1. Order'!I1139)","v":""},{"$f":"IF('1. Order'!J1139=\"\",\"\",'1. Order'!J1139)","v":""},{"$f":"IF('1. Order'!K1139=\"\",\"\",'1. Order'!K1139)","v":""},{"$f":"IF('1. Order'!M1139=\"\",\"\",'1. Order'!M1139)","v":""},null,null,{"$f":"IF('1. Order'!AR1139=\"\",\"\",'1. Order'!AR1139)","v":""},{"$f":"IF('1. Order'!AE1139=\"\",\"\",'1. Order'!AE1139)","v":""}]
[{"$f":"IF('1. Order'!B1140=\"\",\"\",'1. Order'!B1140)","v":""},{"$f":"IF('1. Order'!I1140=\"\",\"\",'1. Order'!I1140)","v":""},{"$f":"IF('1. Order'!J1140=\"\",\"\",'1. Order'!J1140)","v":""},{"$f":"IF('1. Order'!K1140=\"\",\"\",'1. Order'!K1140)","v":""},{"$f":"IF('1. Order'!M1140=\"\",\"\",'1. Order'!M1140)","v":""},null,null,{"$f":"IF('1. Order'!AR1140=\"\",\"\",'1. Order'!AR1140)","v":""},{"$f":"IF('1. Order'!AE1140=\"\",\"\",'1. Order'!AE1140)","v":""}]
[{"$f":"IF('1. Order'!B1141=\"\",\"\",'1. Order'!B1141)","v":""},{"$f":"IF('1. Order'!I1141=\"\",\"\",'1. Order'!I1141)","v":""},{"$f":"IF('1. Order'!J1141=\"\",\"\",'1. Order'!J1141)","v":""},{"$f":"IF('1. Order'!K1141=\"\",\"\",'1. Order'!K1141)","v":""},{"$f":"IF('1. Order'!M1141=\"\",\"\",'1. Order'!M1141)","v":""},null,null,{"$f":"IF('1. Order'!AR1141=\"\",\"\",'1. Order'!AR1141)","v":""},{"$f":"IF('1. Order'!AE1141=\"\",\"\",'1. Order'!AE1141)","v":""}]
[{"$f":"IF('1. Order'!B1142=\"\",\"\",'1. Order'!B1142)","v":""},{"$f":"IF('1. Order'!I1142=\"\",\"\",'1. Order'!I1142)","v":""},{"$f":"IF('1. Order'!J1142=\"\",\"\",'1. Order'!J1142)","v":""},{"$f":"IF('1. Order'!K1142=\"\",\"\",'1. Order'!K1142)","v":""},{"$f":"IF('1. Order'!M1142=\"\",\"\",'1. Order'!M1142)","v":""},null,null,{"$f":"IF('1. Order'!AR1142=\"\",\"\",'1. Order'!AR1142)","v":""},{"$f":"IF('1. Order'!AE1142=\"\",\"\",'1. Order'!AE1142)","v":""}]
[{"$f":"IF('1. Order'!B1143=\"\",\"\",'1. Order'!B1143)","v":""},{"$f":"IF('1. Order'!I1143=\"\",\"\",'1. Order'!I1143)","v":""},{"$f":"IF('1. Order'!J1143=\"\",\"\",'1. Order'!J1143)","v":""},{"$f":"IF('1. Order'!K1143=\"\",\"\",'1. Order'!K1143)","v":""},{"$f":"IF('1. Order'!M1143=\"\",\"\",'1. Order'!M1143)","v":""},null,null,{"$f":"IF('1. Order'!AR1143=\"\",\"\",'1. Order'!AR1143)","v":""},{"$f":"IF('1. Order'!AE1143=\"\",\"\",'1. Order'!AE1143)","v":""}]
[{"$f":"IF('1. Order'!B1144=\"\",\"\",'1. Order'!B1144)","v":""},{"$f":"IF('1. Order'!I1144=\"\",\"\",'1. Order'!I1144)","v":""},{"$f":"IF('1. Order'!J1144=\"\",\"\",'1. Order'!J1144)","v":""},{"$f":"IF('1. Order'!K1144=\"\",\"\",'1. Order'!K1144)","v":""},{"$f":"IF('1. Order'!M1144=\"\",\"\",'1. Order'!M1144)","v":""},null,null,{"$f":"IF('1. Order'!AR1144=\"\",\"\",'1. Order'!AR1144)","v":""},{"$f":"IF('1. Order'!AE1144=\"\",\"\",'1. Order'!AE1144)","v":""}]
[{"$f":"IF('1. Order'!B1145=\"\",\"\",'1. Order'!B1145)","v":""},{"$f":"IF('1. Order'!I1145=\"\",\"\",'1. Order'!I1145)","v":""},{"$f":"IF('1. Order'!J1145=\"\",\"\",'1. Order'!J1145)","v":""},{"$f":"IF('1. Order'!K1145=\"\",\"\",'1. Order'!K1145)","v":""},{"$f":"IF('1. Order'!M1145=\"\",\"\",'1. Order'!M1145)","v":""},null,null,{"$f":"IF('1. Order'!AR1145=\"\",\"\",'1. Order'!AR1145)","v":""},{"$f":"IF('1. Order'!AE1145=\"\",\"\",'1. Order'!AE1145)","v":""}]
[{"$f":"IF('1. Order'!B1146=\"\",\"\",'1. Order'!B1146)","v":""},{"$f":"IF('1. Order'!I1146=\"\",\"\",'1. Order'!I1146)","v":""},{"$f":"IF('1. Order'!J1146=\"\",\"\",'1. Order'!J1146)","v":""},{"$f":"IF('1. Order'!K1146=\"\",\"\",'1. Order'!K1146)","v":""},{"$f":"IF('1. Order'!M1146=\"\",\"\",'1. Order'!M1146)","v":""},null,null,{"$f":"IF('1. Order'!AR1146=\"\",\"\",'1. Order'!AR1146)","v":""},{"$f":"IF('1. Order'!AE1146=\"\",\"\",'1. Order'!AE1146)","v":""}]
[{"$f":"IF('1. Order'!B1147=\"\",\"\",'1. Order'!B1147)","v":""},{"$f":"IF('1. Order'!I1147=\"\",\"\",'1. Order'!I1147)","v":""},{"$f":"IF('1. Order'!J1147=\"\",\"\",'1. Order'!J1147)","v":""},{"$f":"IF('1. Order'!K1147=\"\",\"\",'1. Order'!K1147)","v":""},{"$f":"IF('1. Order'!M1147=\"\",\"\",'1. Order'!M1147)","v":""},null,null,{"$f":"IF('1. Order'!AR1147=\"\",\"\",'1. Order'!AR1147)","v":""},{"$f":"IF('1. Order'!AE1147=\"\",\"\",'1. Order'!AE1147)","v":""}]
[{"$f":"IF('1. Order'!B1148=\"\",\"\",'1. Order'!B1148)","v":""},{"$f":"IF('1. Order'!I1148=\"\",\"\",'1. Order'!I1148)","v":""},{"$f":"IF('1. Order'!J1148=\"\",\"\",'1. Order'!J1148)","v":""},{"$f":"IF('1. Order'!K1148=\"\",\"\",'1. Order'!K1148)","v":""},{"$f":"IF('1. Order'!M1148=\"\",\"\",'1. Order'!M1148)","v":""},null,null,{"$f":"IF('1. Order'!AR1148=\"\",\"\",'1. Order'!AR1148)","v":""},{"$f":"IF('1. Order'!AE1148=\"\",\"\",'1. Order'!AE1148)","v":""}]
[{"$f":"IF('1. Order'!B1149=\"\",\"\",'1. Order'!B1149)","v":""},{"$f":"IF('1. Order'!I1149=\"\",\"\",'1. Order'!I1149)","v":""},{"$f":"IF('1. Order'!J1149=\"\",\"\",'1. Order'!J1149)","v":""},{"$f":"IF('1. Order'!K1149=\"\",\"\",'1. Order'!K1149)","v":""},{"$f":"IF('1. Order'!M1149=\"\",\"\",'1. Order'!M1149)","v":""},null,null,{"$f":"IF('1. Order'!AR1149=\"\",\"\",'1. Order'!AR1149)","v":""},{"$f":"IF('1. Order'!AE1149=\"\",\"\",'1. Order'!AE1149)","v":""}]
[{"$f":"IF('1. Order'!B1150=\"\",\"\",'1. Order'!B1150)","v":""},{"$f":"IF('1. Order'!I1150=\"\",\"\",'1. Order'!I1150)","v":""},{"$f":"IF('1. Order'!J1150=\"\",\"\",'1. Order'!J1150)","v":""},{"$f":"IF('1. Order'!K1150=\"\",\"\",'1. Order'!K1150)","v":""},{"$f":"IF('1. Order'!M1150=\"\",\"\",'1. Order'!M1150)","v":""},null,null,{"$f":"IF('1. Order'!AR1150=\"\",\"\",'1. Order'!AR1150)","v":""},{"$f":"IF('1. Order'!AE1150=\"\",\"\",'1. Order'!AE1150)","v":""}]
[{"$f":"IF('1. Order'!B1151=\"\",\"\",'1. Order'!B1151)","v":""},{"$f":"IF('1. Order'!I1151=\"\",\"\",'1. Order'!I1151)","v":""},{"$f":"IF('1. Order'!J1151=\"\",\"\",'1. Order'!J1151)","v":""},{"$f":"IF('1. Order'!K1151=\"\",\"\",'1. Order'!K1151)","v":""},{"$f":"IF('1. Order'!M1151=\"\",\"\",'1. Order'!M1151)","v":""},null,null,{"$f":"IF('1. Order'!AR1151=\"\",\"\",'1. Order'!AR1151)","v":""},{"$f":"IF('1. Order'!AE1151=\"\",\"\",'1. Order'!AE1151)","v":""}]
[{"$f":"IF('1. Order'!B1152=\"\",\"\",'1. Order'!B1152)","v":""},{"$f":"IF('1. Order'!I1152=\"\",\"\",'1. Order'!I1152)","v":""},{"$f":"IF('1. Order'!J1152=\"\",\"\",'1. Order'!J1152)","v":""},{"$f":"IF('1. Order'!K1152=\"\",\"\",'1. Order'!K1152)","v":""},{"$f":"IF('1. Order'!M1152=\"\",\"\",'1. Order'!M1152)","v":""},null,null,{"$f":"IF('1. Order'!AR1152=\"\",\"\",'1. Order'!AR1152)","v":""},{"$f":"IF('1. Order'!AE1152=\"\",\"\",'1. Order'!AE1152)","v":""}]
[{"$f":"IF('1. Order'!B1153=\"\",\"\",'1. Order'!B1153)","v":""},{"$f":"IF('1. Order'!I1153=\"\",\"\",'1. Order'!I1153)","v":""},{"$f":"IF('1. Order'!J1153=\"\",\"\",'1. Order'!J1153)","v":""},{"$f":"IF('1. Order'!K1153=\"\",\"\",'1. Order'!K1153)","v":""},{"$f":"IF('1. Order'!M1153=\"\",\"\",'1. Order'!M1153)","v":""},null,null,{"$f":"IF('1. Order'!AR1153=\"\",\"\",'1. Order'!AR1153)","v":""},{"$f":"IF('1. Order'!AE1153=\"\",\"\",'1. Order'!AE1153)","v":""}]
[{"$f":"IF('1. Order'!B1154=\"\",\"\",'1. Order'!B1154)","v":""},{"$f":"IF('1. Order'!I1154=\"\",\"\",'1. Order'!I1154)","v":""},{"$f":"IF('1. Order'!J1154=\"\",\"\",'1. Order'!J1154)","v":""},{"$f":"IF('1. Order'!K1154=\"\",\"\",'1. Order'!K1154)","v":""},{"$f":"IF('1. Order'!M1154=\"\",\"\",'1. Order'!M1154)","v":""},null,null,{"$f":"IF('1. Order'!AR1154=\"\",\"\",'1. Order'!AR1154)","v":""},{"$f":"IF('1. Order'!AE1154=\"\",\"\",'1. Order'!AE1154)","v":""}]
[{"$f":"IF('1. Order'!B1155=\"\",\"\",'1. Order'!B1155)","v":""},{"$f":"IF('1. Order'!I1155=\"\",\"\",'1. Order'!I1155)","v":""},{"$f":"IF('1. Order'!J1155=\"\",\"\",'1. Order'!J1155)","v":""},{"$f":"IF('1. Order'!K1155=\"\",\"\",'1. Order'!K1155)","v":""},{"$f":"IF('1. Order'!M1155=\"\",\"\",'1. Order'!M1155)","v":""},null,null,{"$f":"IF('1. Order'!AR1155=\"\",\"\",'1. Order'!AR1155)","v":""},{"$f":"IF('1. Order'!AE1155=\"\",\"\",'1. Order'!AE1155)","v":""}]
[{"$f":"IF('1. Order'!B1156=\"\",\"\",'1. Order'!B1156)","v":""},{"$f":"IF('1. Order'!I1156=\"\",\"\",'1. Order'!I1156)","v":""},{"$f":"IF('1. Order'!J1156=\"\",\"\",'1. Order'!J1156)","v":""},{"$f":"IF('1. Order'!K1156=\"\",\"\",'1. Order'!K1156)","v":""},{"$f":"IF('1. Order'!M1156=\"\",\"\",'1. Order'!M1156)","v":""},null,null,{"$f":"IF('1. Order'!AR1156=\"\",\"\",'1. Order'!AR1156)","v":""},{"$f":"IF('1. Order'!AE1156=\"\",\"\",'1. Order'!AE1156)","v":""}]
[{"$f":"IF('1. Order'!B1157=\"\",\"\",'1. Order'!B1157)","v":""},{"$f":"IF('1. Order'!I1157=\"\",\"\",'1. Order'!I1157)","v":""},{"$f":"IF('1. Order'!J1157=\"\",\"\",'1. Order'!J1157)","v":""},{"$f":"IF('1. Order'!K1157=\"\",\"\",'1. Order'!K1157)","v":""},{"$f":"IF('1. Order'!M1157=\"\",\"\",'1. Order'!M1157)","v":""},null,null,{"$f":"IF('1. Order'!AR1157=\"\",\"\",'1. Order'!AR1157)","v":""},{"$f":"IF('1. Order'!AE1157=\"\",\"\",'1. Order'!AE1157)","v":""}]
[{"$f":"IF('1. Order'!B1158=\"\",\"\",'1. Order'!B1158)","v":""},{"$f":"IF('1. Order'!I1158=\"\",\"\",'1. Order'!I1158)","v":""},{"$f":"IF('1. Order'!J1158=\"\",\"\",'1. Order'!J1158)","v":""},{"$f":"IF('1. Order'!K1158=\"\",\"\",'1. Order'!K1158)","v":""},{"$f":"IF('1. Order'!M1158=\"\",\"\",'1. Order'!M1158)","v":""},null,null,{"$f":"IF('1. Order'!AR1158=\"\",\"\",'1. Order'!AR1158)","v":""},{"$f":"IF('1. Order'!AE1158=\"\",\"\",'1. Order'!AE1158)","v":""}]
[{"$f":"IF('1. Order'!B1159=\"\",\"\",'1. Order'!B1159)","v":""},{"$f":"IF('1. Order'!I1159=\"\",\"\",'1. Order'!I1159)","v":""},{"$f":"IF('1. Order'!J1159=\"\",\"\",'1. Order'!J1159)","v":""},{"$f":"IF('1. Order'!K1159=\"\",\"\",'1. Order'!K1159)","v":""},{"$f":"IF('1. Order'!M1159=\"\",\"\",'1. Order'!M1159)","v":""},null,null,{"$f":"IF('1. Order'!AR1159=\"\",\"\",'1. Order'!AR1159)","v":""},{"$f":"IF('1. Order'!AE1159=\"\",\"\",'1. Order'!AE1159)","v":""}]
[{"$f":"IF('1. Order'!B1160=\"\",\"\",'1. Order'!B1160)","v":""},{"$f":"IF('1. Order'!I1160=\"\",\"\",'1. Order'!I1160)","v":""},{"$f":"IF('1. Order'!J1160=\"\",\"\",'1. Order'!J1160)","v":""},{"$f":"IF('1. Order'!K1160=\"\",\"\",'1. Order'!K1160)","v":""},{"$f":"IF('1. Order'!M1160=\"\",\"\",'1. Order'!M1160)","v":""},null,null,{"$f":"IF('1. Order'!AR1160=\"\",\"\",'1. Order'!AR1160)","v":""},{"$f":"IF('1. Order'!AE1160=\"\",\"\",'1. Order'!AE1160)","v":""}]
[{"$f":"IF('1. Order'!B1161=\"\",\"\",'1. Order'!B1161)","v":""},{"$f":"IF('1. Order'!I1161=\"\",\"\",'1. Order'!I1161)","v":""},{"$f":"IF('1. Order'!J1161=\"\",\"\",'1. Order'!J1161)","v":""},{"$f":"IF('1. Order'!K1161=\"\",\"\",'1. Order'!K1161)","v":""},{"$f":"IF('1. Order'!M1161=\"\",\"\",'1. Order'!M1161)","v":""},null,null,{"$f":"IF('1. Order'!AR1161=\"\",\"\",'1. Order'!AR1161)","v":""},{"$f":"IF('1. Order'!AE1161=\"\",\"\",'1. Order'!AE1161)","v":""}]
[{"$f":"IF('1. Order'!B1162=\"\",\"\",'1. Order'!B1162)","v":""},{"$f":"IF('1. Order'!I1162=\"\",\"\",'1. Order'!I1162)","v":""},{"$f":"IF('1. Order'!J1162=\"\",\"\",'1. Order'!J1162)","v":""},{"$f":"IF('1. Order'!K1162=\"\",\"\",'1. Order'!K1162)","v":""},{"$f":"IF('1. Order'!M1162=\"\",\"\",'1. Order'!M1162)","v":""},null,null,{"$f":"IF('1. Order'!AR1162=\"\",\"\",'1. Order'!AR1162)","v":""},{"$f":"IF('1. Order'!AE1162=\"\",\"\",'1. Order'!AE1162)","v":""}]
[{"$f":"IF('1. Order'!B1163=\"\",\"\",'1. Order'!B1163)","v":""},{"$f":"IF('1. Order'!I1163=\"\",\"\",'1. Order'!I1163)","v":""},{"$f":"IF('1. Order'!J1163=\"\",\"\",'1. Order'!J1163)","v":""},{"$f":"IF('1. Order'!K1163=\"\",\"\",'1. Order'!K1163)","v":""},{"$f":"IF('1. Order'!M1163=\"\",\"\",'1. Order'!M1163)","v":""},null,null,{"$f":"IF('1. Order'!AR1163=\"\",\"\",'1. Order'!AR1163)","v":""},{"$f":"IF('1. Order'!AE1163=\"\",\"\",'1. Order'!AE1163)","v":""}]
[{"$f":"IF('1. Order'!B1164=\"\",\"\",'1. Order'!B1164)","v":""},{"$f":"IF('1. Order'!I1164=\"\",\"\",'1. Order'!I1164)","v":""},{"$f":"IF('1. Order'!J1164=\"\",\"\",'1. Order'!J1164)","v":""},{"$f":"IF('1. Order'!K1164=\"\",\"\",'1. Order'!K1164)","v":""},{"$f":"IF('1. Order'!M1164=\"\",\"\",'1. Order'!M1164)","v":""},null,null,{"$f":"IF('1. Order'!AR1164=\"\",\"\",'1. Order'!AR1164)","v":""},{"$f":"IF('1. Order'!AE1164=\"\",\"\",'1. Order'!AE1164)","v":""}]
[{"$f":"IF('1. Order'!B1165=\"\",\"\",'1. Order'!B1165)","v":""},{"$f":"IF('1. Order'!I1165=\"\",\"\",'1. Order'!I1165)","v":""},{"$f":"IF('1. Order'!J1165=\"\",\"\",'1. Order'!J1165)","v":""},{"$f":"IF('1. Order'!K1165=\"\",\"\",'1. Order'!K1165)","v":""},{"$f":"IF('1. Order'!M1165=\"\",\"\",'1. Order'!M1165)","v":""},null,null,{"$f":"IF('1. Order'!AR1165=\"\",\"\",'1. Order'!AR1165)","v":""},{"$f":"IF('1. Order'!AE1165=\"\",\"\",'1. Order'!AE1165)","v":""}]
[{"$f":"IF('1. Order'!B1166=\"\",\"\",'1. Order'!B1166)","v":""},{"$f":"IF('1. Order'!I1166=\"\",\"\",'1. Order'!I1166)","v":""},{"$f":"IF('1. Order'!J1166=\"\",\"\",'1. Order'!J1166)","v":""},{"$f":"IF('1. Order'!K1166=\"\",\"\",'1. Order'!K1166)","v":""},{"$f":"IF('1. Order'!M1166=\"\",\"\",'1. Order'!M1166)","v":""},null,null,{"$f":"IF('1. Order'!AR1166=\"\",\"\",'1. Order'!AR1166)","v":""},{"$f":"IF('1. Order'!AE1166=\"\",\"\",'1. Order'!AE1166)","v":""}]
[{"$f":"IF('1. Order'!B1167=\"\",\"\",'1. Order'!B1167)","v":""},{"$f":"IF('1. Order'!I1167=\"\",\"\",'1. Order'!I1167)","v":""},{"$f":"IF('1. Order'!J1167=\"\",\"\",'1. Order'!J1167)","v":""},{"$f":"IF('1. Order'!K1167=\"\",\"\",'1. Order'!K1167)","v":""},{"$f":"IF('1. Order'!M1167=\"\",\"\",'1. Order'!M1167)","v":""},null,null,{"$f":"IF('1. Order'!AR1167=\"\",\"\",'1. Order'!AR1167)","v":""},{"$f":"IF('1. Order'!AE1167=\"\",\"\",'1. Order'!AE1167)","v":""}]
[{"$f":"IF('1. Order'!B1168=\"\",\"\",'1. Order'!B1168)","v":""},{"$f":"IF('1. Order'!I1168=\"\",\"\",'1. Order'!I1168)","v":""},{"$f":"IF('1. Order'!J1168=\"\",\"\",'1. Order'!J1168)","v":""},{"$f":"IF('1. Order'!K1168=\"\",\"\",'1. Order'!K1168)","v":""},{"$f":"IF('1. Order'!M1168=\"\",\"\",'1. Order'!M1168)","v":""},null,null,{"$f":"IF('1. Order'!AR1168=\"\",\"\",'1. Order'!AR1168)","v":""},{"$f":"IF('1. Order'!AE1168=\"\",\"\",'1. Order'!AE1168)","v":""}]
[{"$f":"IF('1. Order'!B1169=\"\",\"\",'1. Order'!B1169)","v":""},{"$f":"IF('1. Order'!I1169=\"\",\"\",'1. Order'!I1169)","v":""},{"$f":"IF('1. Order'!J1169=\"\",\"\",'1. Order'!J1169)","v":""},{"$f":"IF('1. Order'!K1169=\"\",\"\",'1. Order'!K1169)","v":""},{"$f":"IF('1. Order'!M1169=\"\",\"\",'1. Order'!M1169)","v":""},null,null,{"$f":"IF('1. Order'!AR1169=\"\",\"\",'1. Order'!AR1169)","v":""},{"$f":"IF('1. Order'!AE1169=\"\",\"\",'1. Order'!AE1169)","v":""}]
[{"$f":"IF('1. Order'!B1170=\"\",\"\",'1. Order'!B1170)","v":""},{"$f":"IF('1. Order'!I1170=\"\",\"\",'1. Order'!I1170)","v":""},{"$f":"IF('1. Order'!J1170=\"\",\"\",'1. Order'!J1170)","v":""},{"$f":"IF('1. Order'!K1170=\"\",\"\",'1. Order'!K1170)","v":""},{"$f":"IF('1. Order'!M1170=\"\",\"\",'1. Order'!M1170)","v":""},null,null,{"$f":"IF('1. Order'!AR1170=\"\",\"\",'1. Order'!AR1170)","v":""},{"$f":"IF('1. Order'!AE1170=\"\",\"\",'1. Order'!AE1170)","v":""}]
[{"$f":"IF('1. Order'!B1171=\"\",\"\",'1. Order'!B1171)","v":""},{"$f":"IF('1. Order'!I1171=\"\",\"\",'1. Order'!I1171)","v":""},{"$f":"IF('1. Order'!J1171=\"\",\"\",'1. Order'!J1171)","v":""},{"$f":"IF('1. Order'!K1171=\"\",\"\",'1. Order'!K1171)","v":""},{"$f":"IF('1. Order'!M1171=\"\",\"\",'1. Order'!M1171)","v":""},null,null,{"$f":"IF('1. Order'!AR1171=\"\",\"\",'1. Order'!AR1171)","v":""},{"$f":"IF('1. Order'!AE1171=\"\",\"\",'1. Order'!AE1171)","v":""}]
[{"$f":"IF('1. Order'!B1172=\"\",\"\",'1. Order'!B1172)","v":""},{"$f":"IF('1. Order'!I1172=\"\",\"\",'1. Order'!I1172)","v":""},{"$f":"IF('1. Order'!J1172=\"\",\"\",'1. Order'!J1172)","v":""},{"$f":"IF('1. Order'!K1172=\"\",\"\",'1. Order'!K1172)","v":""},{"$f":"IF('1. Order'!M1172=\"\",\"\",'1. Order'!M1172)","v":""},null,null,{"$f":"IF('1. Order'!AR1172=\"\",\"\",'1. Order'!AR1172)","v":""},{"$f":"IF('1. Order'!AE1172=\"\",\"\",'1. Order'!AE1172)","v":""}]
[{"$f":"IF('1. Order'!B1173=\"\",\"\",'1. Order'!B1173)","v":""},{"$f":"IF('1. Order'!I1173=\"\",\"\",'1. Order'!I1173)","v":""},{"$f":"IF('1. Order'!J1173=\"\",\"\",'1. Order'!J1173)","v":""},{"$f":"IF('1. Order'!K1173=\"\",\"\",'1. Order'!K1173)","v":""},{"$f":"IF('1. Order'!M1173=\"\",\"\",'1. Order'!M1173)","v":""},null,null,{"$f":"IF('1. Order'!AR1173=\"\",\"\",'1. Order'!AR1173)","v":""},{"$f":"IF('1. Order'!AE1173=\"\",\"\",'1. Order'!AE1173)","v":""}]
[{"$f":"IF('1. Order'!B1174=\"\",\"\",'1. Order'!B1174)","v":""},{"$f":"IF('1. Order'!I1174=\"\",\"\",'1. Order'!I1174)","v":""},{"$f":"IF('1. Order'!J1174=\"\",\"\",'1. Order'!J1174)","v":""},{"$f":"IF('1. Order'!K1174=\"\",\"\",'1. Order'!K1174)","v":""},{"$f":"IF('1. Order'!M1174=\"\",\"\",'1. Order'!M1174)","v":""},null,null,{"$f":"IF('1. Order'!AR1174=\"\",\"\",'1. Order'!AR1174)","v":""},{"$f":"IF('1. Order'!AE1174=\"\",\"\",'1. Order'!AE1174)","v":""}]
[{"$f":"IF('1. Order'!B1175=\"\",\"\",'1. Order'!B1175)","v":""},{"$f":"IF('1. Order'!I1175=\"\",\"\",'1. Order'!I1175)","v":""},{"$f":"IF('1. Order'!J1175=\"\",\"\",'1. Order'!J1175)","v":""},{"$f":"IF('1. Order'!K1175=\"\",\"\",'1. Order'!K1175)","v":""},{"$f":"IF('1. Order'!M1175=\"\",\"\",'1. Order'!M1175)","v":""},null,null,{"$f":"IF('1. Order'!AR1175=\"\",\"\",'1. Order'!AR1175)","v":""},{"$f":"IF('1. Order'!AE1175=\"\",\"\",'1. Order'!AE1175)","v":""}]
[{"$f":"IF('1. Order'!B1176=\"\",\"\",'1. Order'!B1176)","v":""},{"$f":"IF('1. Order'!I1176=\"\",\"\",'1. Order'!I1176)","v":""},{"$f":"IF('1. Order'!J1176=\"\",\"\",'1. Order'!J1176)","v":""},{"$f":"IF('1. Order'!K1176=\"\",\"\",'1. Order'!K1176)","v":""},{"$f":"IF('1. Order'!M1176=\"\",\"\",'1. Order'!M1176)","v":""},null,null,{"$f":"IF('1. Order'!AR1176=\"\",\"\",'1. Order'!AR1176)","v":""},{"$f":"IF('1. Order'!AE1176=\"\",\"\",'1. Order'!AE1176)","v":""}]
[{"$f":"IF('1. Order'!B1177=\"\",\"\",'1. Order'!B1177)","v":""},{"$f":"IF('1. Order'!I1177=\"\",\"\",'1. Order'!I1177)","v":""},{"$f":"IF('1. Order'!J1177=\"\",\"\",'1. Order'!J1177)","v":""},{"$f":"IF('1. Order'!K1177=\"\",\"\",'1. Order'!K1177)","v":""},{"$f":"IF('1. Order'!M1177=\"\",\"\",'1. Order'!M1177)","v":""},null,null,{"$f":"IF('1. Order'!AR1177=\"\",\"\",'1. Order'!AR1177)","v":""},{"$f":"IF('1. Order'!AE1177=\"\",\"\",'1. Order'!AE1177)","v":""}]
[{"$f":"IF('1. Order'!B1178=\"\",\"\",'1. Order'!B1178)","v":""},{"$f":"IF('1. Order'!I1178=\"\",\"\",'1. Order'!I1178)","v":""},{"$f":"IF('1. Order'!J1178=\"\",\"\",'1. Order'!J1178)","v":""},{"$f":"IF('1. Order'!K1178=\"\",\"\",'1. Order'!K1178)","v":""},{"$f":"IF('1. Order'!M1178=\"\",\"\",'1. Order'!M1178)","v":""},null,null,{"$f":"IF('1. Order'!AR1178=\"\",\"\",'1. Order'!AR1178)","v":""},{"$f":"IF('1. Order'!AE1178=\"\",\"\",'1. Order'!AE1178)","v":""}]
[{"$f":"IF('1. Order'!B1179=\"\",\"\",'1. Order'!B1179)","v":""},{"$f":"IF('1. Order'!I1179=\"\",\"\",'1. Order'!I1179)","v":""},{"$f":"IF('1. Order'!J1179=\"\",\"\",'1. Order'!J1179)","v":""},{"$f":"IF('1. Order'!K1179=\"\",\"\",'1. Order'!K1179)","v":""},{"$f":"IF('1. Order'!M1179=\"\",\"\",'1. Order'!M1179)","v":""},null,null,{"$f":"IF('1. Order'!AR1179=\"\",\"\",'1. Order'!AR1179)","v":""},{"$f":"IF('1. Order'!AE1179=\"\",\"\",'1. Order'!AE1179)","v":""}]
[{"$f":"IF('1. Order'!B1180=\"\",\"\",'1. Order'!B1180)","v":""},{"$f":"IF('1. Order'!I1180=\"\",\"\",'1. Order'!I1180)","v":""},{"$f":"IF('1. Order'!J1180=\"\",\"\",'1. Order'!J1180)","v":""},{"$f":"IF('1. Order'!K1180=\"\",\"\",'1. Order'!K1180)","v":""},{"$f":"IF('1. Order'!M1180=\"\",\"\",'1. Order'!M1180)","v":""},null,null,{"$f":"IF('1. Order'!AR1180=\"\",\"\",'1. Order'!AR1180)","v":""},{"$f":"IF('1. Order'!AE1180=\"\",\"\",'1. Order'!AE1180)","v":""}]
[{"$f":"IF('1. Order'!B1181=\"\",\"\",'1. Order'!B1181)","v":""},{"$f":"IF('1. Order'!I1181=\"\",\"\",'1. Order'!I1181)","v":""},{"$f":"IF('1. Order'!J1181=\"\",\"\",'1. Order'!J1181)","v":""},{"$f":"IF('1. Order'!K1181=\"\",\"\",'1. Order'!K1181)","v":""},{"$f":"IF('1. Order'!M1181=\"\",\"\",'1. Order'!M1181)","v":""},null,null,{"$f":"IF('1. Order'!AR1181=\"\",\"\",'1. Order'!AR1181)","v":""},{"$f":"IF('1. Order'!AE1181=\"\",\"\",'1. Order'!AE1181)","v":""}]
[{"$f":"IF('1. Order'!B1182=\"\",\"\",'1. Order'!B1182)","v":""},{"$f":"IF('1. Order'!I1182=\"\",\"\",'1. Order'!I1182)","v":""},{"$f":"IF('1. Order'!J1182=\"\",\"\",'1. Order'!J1182)","v":""},{"$f":"IF('1. Order'!K1182=\"\",\"\",'1. Order'!K1182)","v":""},{"$f":"IF('1. Order'!M1182=\"\",\"\",'1. Order'!M1182)","v":""},null,null,{"$f":"IF('1. Order'!AR1182=\"\",\"\",'1. Order'!AR1182)","v":""},{"$f":"IF('1. Order'!AE1182=\"\",\"\",'1. Order'!AE1182)","v":""}]
[{"$f":"IF('1. Order'!B1183=\"\",\"\",'1. Order'!B1183)","v":""},{"$f":"IF('1. Order'!I1183=\"\",\"\",'1. Order'!I1183)","v":""},{"$f":"IF('1. Order'!J1183=\"\",\"\",'1. Order'!J1183)","v":""},{"$f":"IF('1. Order'!K1183=\"\",\"\",'1. Order'!K1183)","v":""},{"$f":"IF('1. Order'!M1183=\"\",\"\",'1. Order'!M1183)","v":""},null,null,{"$f":"IF('1. Order'!AR1183=\"\",\"\",'1. Order'!AR1183)","v":""},{"$f":"IF('1. Order'!AE1183=\"\",\"\",'1. Order'!AE1183)","v":""}]
[{"$f":"IF('1. Order'!B1184=\"\",\"\",'1. Order'!B1184)","v":""},{"$f":"IF('1. Order'!I1184=\"\",\"\",'1. Order'!I1184)","v":""},{"$f":"IF('1. Order'!J1184=\"\",\"\",'1. Order'!J1184)","v":""},{"$f":"IF('1. Order'!K1184=\"\",\"\",'1. Order'!K1184)","v":""},{"$f":"IF('1. Order'!M1184=\"\",\"\",'1. Order'!M1184)","v":""},null,null,{"$f":"IF('1. Order'!AR1184=\"\",\"\",'1. Order'!AR1184)","v":""},{"$f":"IF('1. Order'!AE1184=\"\",\"\",'1. Order'!AE1184)","v":""}]
[{"$f":"IF('1. Order'!B1185=\"\",\"\",'1. Order'!B1185)","v":""},{"$f":"IF('1. Order'!I1185=\"\",\"\",'1. Order'!I1185)","v":""},{"$f":"IF('1. Order'!J1185=\"\",\"\",'1. Order'!J1185)","v":""},{"$f":"IF('1. Order'!K1185=\"\",\"\",'1. Order'!K1185)","v":""},{"$f":"IF('1. Order'!M1185=\"\",\"\",'1. Order'!M1185)","v":""},null,null,{"$f":"IF('1. Order'!AR1185=\"\",\"\",'1. Order'!AR1185)","v":""},{"$f":"IF('1. Order'!AE1185=\"\",\"\",'1. Order'!AE1185)","v":""}]
[{"$f":"IF('1. Order'!B1186=\"\",\"\",'1. Order'!B1186)","v":""},{"$f":"IF('1. Order'!I1186=\"\",\"\",'1. Order'!I1186)","v":""},{"$f":"IF('1. Order'!J1186=\"\",\"\",'1. Order'!J1186)","v":""},{"$f":"IF('1. Order'!K1186=\"\",\"\",'1. Order'!K1186)","v":""},{"$f":"IF('1. Order'!M1186=\"\",\"\",'1. Order'!M1186)","v":""},null,null,{"$f":"IF('1. Order'!AR1186=\"\",\"\",'1. Order'!AR1186)","v":""},{"$f":"IF('1. Order'!AE1186=\"\",\"\",'1. Order'!AE1186)","v":""}]
[{"$f":"IF('1. Order'!B1187=\"\",\"\",'1. Order'!B1187)","v":""},{"$f":"IF('1. Order'!I1187=\"\",\"\",'1. Order'!I1187)","v":""},{"$f":"IF('1. Order'!J1187=\"\",\"\",'1. Order'!J1187)","v":""},{"$f":"IF('1. Order'!K1187=\"\",\"\",'1. Order'!K1187)","v":""},{"$f":"IF('1. Order'!M1187=\"\",\"\",'1. Order'!M1187)","v":""},null,null,{"$f":"IF('1. Order'!AR1187=\"\",\"\",'1. Order'!AR1187)","v":""},{"$f":"IF('1. Order'!AE1187=\"\",\"\",'1. Order'!AE1187)","v":""}]
[{"$f":"IF('1. Order'!B1188=\"\",\"\",'1. Order'!B1188)","v":""},{"$f":"IF('1. Order'!I1188=\"\",\"\",'1. Order'!I1188)","v":""},{"$f":"IF('1. Order'!J1188=\"\",\"\",'1. Order'!J1188)","v":""},{"$f":"IF('1. Order'!K1188=\"\",\"\",'1. Order'!K1188)","v":""},{"$f":"IF('1. Order'!M1188=\"\",\"\",'1. Order'!M1188)","v":""},null,null,{"$f":"IF('1. Order'!AR1188=\"\",\"\",'1. Order'!AR1188)","v":""},{"$f":"IF('1. Order'!AE1188=\"\",\"\",'1. Order'!AE1188)","v":""}]
[{"$f":"IF('1. Order'!B1189=\"\",\"\",'1. Order'!B1189)","v":""},{"$f":"IF('1. Order'!I1189=\"\",\"\",'1. Order'!I1189)","v":""},{"$f":"IF('1. Order'!J1189=\"\",\"\",'1. Order'!J1189)","v":""},{"$f":"IF('1. Order'!K1189=\"\",\"\",'1. Order'!K1189)","v":""},{"$f":"IF('1. Order'!M1189=\"\",\"\",'1. Order'!M1189)","v":""},null,null,{"$f":"IF('1. Order'!AR1189=\"\",\"\",'1. Order'!AR1189)","v":""},{"$f":"IF('1. Order'!AE1189=\"\",\"\",'1. Order'!AE1189)","v":""}]
[{"$f":"IF('1. Order'!B1190=\"\",\"\",'1. Order'!B1190)","v":""},{"$f":"IF('1. Order'!I1190=\"\",\"\",'1. Order'!I1190)","v":""},{"$f":"IF('1. Order'!J1190=\"\",\"\",'1. Order'!J1190)","v":""},{"$f":"IF('1. Order'!K1190=\"\",\"\",'1. Order'!K1190)","v":""},{"$f":"IF('1. Order'!M1190=\"\",\"\",'1. Order'!M1190)","v":""},null,null,{"$f":"IF('1. Order'!AR1190=\"\",\"\",'1. Order'!AR1190)","v":""},{"$f":"IF('1. Order'!AE1190=\"\",\"\",'1. Order'!AE1190)","v":""}]
[{"$f":"IF('1. Order'!B1191=\"\",\"\",'1. Order'!B1191)","v":""},{"$f":"IF('1. Order'!I1191=\"\",\"\",'1. Order'!I1191)","v":""},{"$f":"IF('1. Order'!J1191=\"\",\"\",'1. Order'!J1191)","v":""},{"$f":"IF('1. Order'!K1191=\"\",\"\",'1. Order'!K1191)","v":""},{"$f":"IF('1. Order'!M1191=\"\",\"\",'1. Order'!M1191)","v":""},null,null,{"$f":"IF('1. Order'!AR1191=\"\",\"\",'1. Order'!AR1191)","v":""},{"$f":"IF('1. Order'!AE1191=\"\",\"\",'1. Order'!AE1191)","v":""}]
[{"$f":"IF('1. Order'!B1192=\"\",\"\",'1. Order'!B1192)","v":""},{"$f":"IF('1. Order'!I1192=\"\",\"\",'1. Order'!I1192)","v":""},{"$f":"IF('1. Order'!J1192=\"\",\"\",'1. Order'!J1192)","v":""},{"$f":"IF('1. Order'!K1192=\"\",\"\",'1. Order'!K1192)","v":""},{"$f":"IF('1. Order'!M1192=\"\",\"\",'1. Order'!M1192)","v":""},null,null,{"$f":"IF('1. Order'!AR1192=\"\",\"\",'1. Order'!AR1192)","v":""},{"$f":"IF('1. Order'!AE1192=\"\",\"\",'1. Order'!AE1192)","v":""}]
[{"$f":"IF('1. Order'!B1193=\"\",\"\",'1. Order'!B1193)","v":""},{"$f":"IF('1. Order'!I1193=\"\",\"\",'1. Order'!I1193)","v":""},{"$f":"IF('1. Order'!J1193=\"\",\"\",'1. Order'!J1193)","v":""},{"$f":"IF('1. Order'!K1193=\"\",\"\",'1. Order'!K1193)","v":""},{"$f":"IF('1. Order'!M1193=\"\",\"\",'1. Order'!M1193)","v":""},null,null,{"$f":"IF('1. Order'!AR1193=\"\",\"\",'1. Order'!AR1193)","v":""},{"$f":"IF('1. Order'!AE1193=\"\",\"\",'1. Order'!AE1193)","v":""}]
[{"$f":"IF('1. Order'!B1194=\"\",\"\",'1. Order'!B1194)","v":""},{"$f":"IF('1. Order'!I1194=\"\",\"\",'1. Order'!I1194)","v":""},{"$f":"IF('1. Order'!J1194=\"\",\"\",'1. Order'!J1194)","v":""},{"$f":"IF('1. Order'!K1194=\"\",\"\",'1. Order'!K1194)","v":""},{"$f":"IF('1. Order'!M1194=\"\",\"\",'1. Order'!M1194)","v":""},null,null,{"$f":"IF('1. Order'!AR1194=\"\",\"\",'1. Order'!AR1194)","v":""},{"$f":"IF('1. Order'!AE1194=\"\",\"\",'1. Order'!AE1194)","v":""}]
[{"$f":"IF('1. Order'!B1195=\"\",\"\",'1. Order'!B1195)","v":""},{"$f":"IF('1. Order'!I1195=\"\",\"\",'1. Order'!I1195)","v":""},{"$f":"IF('1. Order'!J1195=\"\",\"\",'1. Order'!J1195)","v":""},{"$f":"IF('1. Order'!K1195=\"\",\"\",'1. Order'!K1195)","v":""},{"$f":"IF('1. Order'!M1195=\"\",\"\",'1. Order'!M1195)","v":""},null,null,{"$f":"IF('1. Order'!AR1195=\"\",\"\",'1. Order'!AR1195)","v":""},{"$f":"IF('1. Order'!AE1195=\"\",\"\",'1. Order'!AE1195)","v":""}]
[{"$f":"IF('1. Order'!B1196=\"\",\"\",'1. Order'!B1196)","v":""},{"$f":"IF('1. Order'!I1196=\"\",\"\",'1. Order'!I1196)","v":""},{"$f":"IF('1. Order'!J1196=\"\",\"\",'1. Order'!J1196)","v":""},{"$f":"IF('1. Order'!K1196=\"\",\"\",'1. Order'!K1196)","v":""},{"$f":"IF('1. Order'!M1196=\"\",\"\",'1. Order'!M1196)","v":""},null,null,{"$f":"IF('1. Order'!AR1196=\"\",\"\",'1. Order'!AR1196)","v":""},{"$f":"IF('1. Order'!AE1196=\"\",\"\",'1. Order'!AE1196)","v":""}]
[{"$f":"IF('1. Order'!B1197=\"\",\"\",'1. Order'!B1197)","v":""},{"$f":"IF('1. Order'!I1197=\"\",\"\",'1. Order'!I1197)","v":""},{"$f":"IF('1. Order'!J1197=\"\",\"\",'1. Order'!J1197)","v":""},{"$f":"IF('1. Order'!K1197=\"\",\"\",'1. Order'!K1197)","v":""},{"$f":"IF('1. Order'!M1197=\"\",\"\",'1. Order'!M1197)","v":""},null,null,{"$f":"IF('1. Order'!AR1197=\"\",\"\",'1. Order'!AR1197)","v":""},{"$f":"IF('1. Order'!AE1197=\"\",\"\",'1. Order'!AE1197)","v":""}]
[{"$f":"IF('1. Order'!B1198=\"\",\"\",'1. Order'!B1198)","v":""},{"$f":"IF('1. Order'!I1198=\"\",\"\",'1. Order'!I1198)","v":""},{"$f":"IF('1. Order'!J1198=\"\",\"\",'1. Order'!J1198)","v":""},{"$f":"IF('1. Order'!K1198=\"\",\"\",'1. Order'!K1198)","v":""},{"$f":"IF('1. Order'!M1198=\"\",\"\",'1. Order'!M1198)","v":""},null,null,{"$f":"IF('1. Order'!AR1198=\"\",\"\",'1. Order'!AR1198)","v":""},{"$f":"IF('1. Order'!AE1198=\"\",\"\",'1. Order'!AE1198)","v":""}]
[{"$f":"IF('1. Order'!B1199=\"\",\"\",'1. Order'!B1199)","v":""},{"$f":"IF('1. Order'!I1199=\"\",\"\",'1. Order'!I1199)","v":""},{"$f":"IF('1. Order'!J1199=\"\",\"\",'1. Order'!J1199)","v":""},{"$f":"IF('1. Order'!K1199=\"\",\"\",'1. Order'!K1199)","v":""},{"$f":"IF('1. Order'!M1199=\"\",\"\",'1. Order'!M1199)","v":""},null,null,{"$f":"IF('1. Order'!AR1199=\"\",\"\",'1. Order'!AR1199)","v":""},{"$f":"IF('1. Order'!AE1199=\"\",\"\",'1. Order'!AE1199)","v":""}]
[{"$f":"IF('1. Order'!B1200=\"\",\"\",'1. Order'!B1200)","v":""},{"$f":"IF('1. Order'!I1200=\"\",\"\",'1. Order'!I1200)","v":""},{"$f":"IF('1. Order'!J1200=\"\",\"\",'1. Order'!J1200)","v":""},{"$f":"IF('1. Order'!K1200=\"\",\"\",'1. Order'!K1200)","v":""},{"$f":"IF('1. Order'!M1200=\"\",\"\",'1. Order'!M1200)","v":""},null,null,{"$f":"IF('1. Order'!AR1200=\"\",\"\",'1. Order'!AR1200)","v":""},{"$f":"IF('1. Order'!AE1200=\"\",\"\",'1. Order'!AE1200)","v":""}]
[{"$f":"IF('1. Order'!B1201=\"\",\"\",'1. Order'!B1201)","v":""},{"$f":"IF('1. Order'!I1201=\"\",\"\",'1. Order'!I1201)","v":""},{"$f":"IF('1. Order'!J1201=\"\",\"\",'1. Order'!J1201)","v":""},{"$f":"IF('1. Order'!K1201=\"\",\"\",'1. Order'!K1201)","v":""},{"$f":"IF('1. Order'!M1201=\"\",\"\",'1. Order'!M1201)","v":""},null,null,{"$f":"IF('1. Order'!AR1201=\"\",\"\",'1. Order'!AR1201)","v":""},{"$f":"IF('1. Order'!AE1201=\"\",\"\",'1. Order'!AE1201)","v":""}]
[{"$f":"IF('1. Order'!B1202=\"\",\"\",'1. Order'!B1202)","v":""},{"$f":"IF('1. Order'!I1202=\"\",\"\",'1. Order'!I1202)","v":""},{"$f":"IF('1. Order'!J1202=\"\",\"\",'1. Order'!J1202)","v":""},{"$f":"IF('1. Order'!K1202=\"\",\"\",'1. Order'!K1202)","v":""},{"$f":"IF('1. Order'!M1202=\"\",\"\",'1. Order'!M1202)","v":""},null,null,{"$f":"IF('1. Order'!AR1202=\"\",\"\",'1. Order'!AR1202)","v":""},{"$f":"IF('1. Order'!AE1202=\"\",\"\",'1. Order'!AE1202)","v":""}]
[{"$f":"IF('1. Order'!B1203=\"\",\"\",'1. Order'!B1203)","v":""},{"$f":"IF('1. Order'!I1203=\"\",\"\",'1. Order'!I1203)","v":""},{"$f":"IF('1. Order'!J1203=\"\",\"\",'1. Order'!J1203)","v":""},{"$f":"IF('1. Order'!K1203=\"\",\"\",'1. Order'!K1203)","v":""},{"$f":"IF('1. Order'!M1203=\"\",\"\",'1. Order'!M1203)","v":""},null,null,{"$f":"IF('1. Order'!AR1203=\"\",\"\",'1. Order'!AR1203)","v":""},{"$f":"IF('1. Order'!AE1203=\"\",\"\",'1. Order'!AE1203)","v":""}]
[{"$f":"IF('1. Order'!B1204=\"\",\"\",'1. Order'!B1204)","v":""},{"$f":"IF('1. Order'!I1204=\"\",\"\",'1. Order'!I1204)","v":""},{"$f":"IF('1. Order'!J1204=\"\",\"\",'1. Order'!J1204)","v":""},{"$f":"IF('1. Order'!K1204=\"\",\"\",'1. Order'!K1204)","v":""},{"$f":"IF('1. Order'!M1204=\"\",\"\",'1. Order'!M1204)","v":""},null,null,{"$f":"IF('1. Order'!AR1204=\"\",\"\",'1. Order'!AR1204)","v":""},{"$f":"IF('1. Order'!AE1204=\"\",\"\",'1. Order'!AE1204)","v":""}]
[{"$f":"IF('1. Order'!B1205=\"\",\"\",'1. Order'!B1205)","v":""},{"$f":"IF('1. Order'!I1205=\"\",\"\",'1. Order'!I1205)","v":""},{"$f":"IF('1. Order'!J1205=\"\",\"\",'1. Order'!J1205)","v":""},{"$f":"IF('1. Order'!K1205=\"\",\"\",'1. Order'!K1205)","v":""},{"$f":"IF('1. Order'!M1205=\"\",\"\",'1. Order'!M1205)","v":""},null,null,{"$f":"IF('1. Order'!AR1205=\"\",\"\",'1. Order'!AR1205)","v":""},{"$f":"IF('1. Order'!AE1205=\"\",\"\",'1. Order'!AE1205)","v":""}]
[{"$f":"IF('1. Order'!B1206=\"\",\"\",'1. Order'!B1206)","v":""},{"$f":"IF('1. Order'!I1206=\"\",\"\",'1. Order'!I1206)","v":""},{"$f":"IF('1. Order'!J1206=\"\",\"\",'1. Order'!J1206)","v":""},{"$f":"IF('1. Order'!K1206=\"\",\"\",'1. Order'!K1206)","v":""},{"$f":"IF('1. Order'!M1206=\"\",\"\",'1. Order'!M1206)","v":""},null,null,{"$f":"IF('1. Order'!AR1206=\"\",\"\",'1. Order'!AR1206)","v":""},{"$f":"IF('1. Order'!AE1206=\"\",\"\",'1. Order'!AE1206)","v":""}]
[{"$f":"IF('1. Order'!B1207=\"\",\"\",'1. Order'!B1207)","v":""},{"$f":"IF('1. Order'!I1207=\"\",\"\",'1. Order'!I1207)","v":""},{"$f":"IF('1. Order'!J1207=\"\",\"\",'1. Order'!J1207)","v":""},{"$f":"IF('1. Order'!K1207=\"\",\"\",'1. Order'!K1207)","v":""},{"$f":"IF('1. Order'!M1207=\"\",\"\",'1. Order'!M1207)","v":""},null,null,{"$f":"IF('1. Order'!AR1207=\"\",\"\",'1. Order'!AR1207)","v":""},{"$f":"IF('1. Order'!AE1207=\"\",\"\",'1. Order'!AE1207)","v":""}]
[{"$f":"IF('1. Order'!B1208=\"\",\"\",'1. Order'!B1208)","v":""},{"$f":"IF('1. Order'!I1208=\"\",\"\",'1. Order'!I1208)","v":""},{"$f":"IF('1. Order'!J1208=\"\",\"\",'1. Order'!J1208)","v":""},{"$f":"IF('1. Order'!K1208=\"\",\"\",'1. Order'!K1208)","v":""},{"$f":"IF('1. Order'!M1208=\"\",\"\",'1. Order'!M1208)","v":""},null,null,{"$f":"IF('1. Order'!AR1208=\"\",\"\",'1. Order'!AR1208)","v":""},{"$f":"IF('1. Order'!AE1208=\"\",\"\",'1. Order'!AE1208)","v":""}]
[{"$f":"IF('1. Order'!B1209=\"\",\"\",'1. Order'!B1209)","v":""},{"$f":"IF('1. Order'!I1209=\"\",\"\",'1. Order'!I1209)","v":""},{"$f":"IF('1. Order'!J1209=\"\",\"\",'1. Order'!J1209)","v":""},{"$f":"IF('1. Order'!K1209=\"\",\"\",'1. Order'!K1209)","v":""},{"$f":"IF('1. Order'!M1209=\"\",\"\",'1. Order'!M1209)","v":""},null,null,{"$f":"IF('1. Order'!AR1209=\"\",\"\",'1. Order'!AR1209)","v":""},{"$f":"IF('1. Order'!AE1209=\"\",\"\",'1. Order'!AE1209)","v":""}]
[{"$f":"IF('1. Order'!B1210=\"\",\"\",'1. Order'!B1210)","v":""},{"$f":"IF('1. Order'!I1210=\"\",\"\",'1. Order'!I1210)","v":""},{"$f":"IF('1. Order'!J1210=\"\",\"\",'1. Order'!J1210)","v":""},{"$f":"IF('1. Order'!K1210=\"\",\"\",'1. Order'!K1210)","v":""},{"$f":"IF('1. Order'!M1210=\"\",\"\",'1. Order'!M1210)","v":""},null,null,{"$f":"IF('1. Order'!AR1210=\"\",\"\",'1. Order'!AR1210)","v":""},{"$f":"IF('1. Order'!AE1210=\"\",\"\",'1. Order'!AE1210)","v":""}]
[{"$f":"IF('1. Order'!B1211=\"\",\"\",'1. Order'!B1211)","v":""},{"$f":"IF('1. Order'!I1211=\"\",\"\",'1. Order'!I1211)","v":""},{"$f":"IF('1. Order'!J1211=\"\",\"\",'1. Order'!J1211)","v":""},{"$f":"IF('1. Order'!K1211=\"\",\"\",'1. Order'!K1211)","v":""},{"$f":"IF('1. Order'!M1211=\"\",\"\",'1. Order'!M1211)","v":""},null,null,{"$f":"IF('1. Order'!AR1211=\"\",\"\",'1. Order'!AR1211)","v":""},{"$f":"IF('1. Order'!AE1211=\"\",\"\",'1. Order'!AE1211)","v":""}]
[{"$f":"IF('1. Order'!B1212=\"\",\"\",'1. Order'!B1212)","v":""},{"$f":"IF('1. Order'!I1212=\"\",\"\",'1. Order'!I1212)","v":""},{"$f":"IF('1. Order'!J1212=\"\",\"\",'1. Order'!J1212)","v":""},{"$f":"IF('1. Order'!K1212=\"\",\"\",'1. Order'!K1212)","v":""},{"$f":"IF('1. Order'!M1212=\"\",\"\",'1. Order'!M1212)","v":""},null,null,{"$f":"IF('1. Order'!AR1212=\"\",\"\",'1. Order'!AR1212)","v":""},{"$f":"IF('1. Order'!AE1212=\"\",\"\",'1. Order'!AE1212)","v":""}]
[{"$f":"IF('1. Order'!B1213=\"\",\"\",'1. Order'!B1213)","v":""},{"$f":"IF('1. Order'!I1213=\"\",\"\",'1. Order'!I1213)","v":""},{"$f":"IF('1. Order'!J1213=\"\",\"\",'1. Order'!J1213)","v":""},{"$f":"IF('1. Order'!K1213=\"\",\"\",'1. Order'!K1213)","v":""},{"$f":"IF('1. Order'!M1213=\"\",\"\",'1. Order'!M1213)","v":""},null,null,{"$f":"IF('1. Order'!AR1213=\"\",\"\",'1. Order'!AR1213)","v":""},{"$f":"IF('1. Order'!AE1213=\"\",\"\",'1. Order'!AE1213)","v":""}]
[{"$f":"IF('1. Order'!B1214=\"\",\"\",'1. Order'!B1214)","v":""},{"$f":"IF('1. Order'!I1214=\"\",\"\",'1. Order'!I1214)","v":""},{"$f":"IF('1. Order'!J1214=\"\",\"\",'1. Order'!J1214)","v":""},{"$f":"IF('1. Order'!K1214=\"\",\"\",'1. Order'!K1214)","v":""},{"$f":"IF('1. Order'!M1214=\"\",\"\",'1. Order'!M1214)","v":""},null,null,{"$f":"IF('1. Order'!AR1214=\"\",\"\",'1. Order'!AR1214)","v":""},{"$f":"IF('1. Order'!AE1214=\"\",\"\",'1. Order'!AE1214)","v":""}]
[{"$f":"IF('1. Order'!B1215=\"\",\"\",'1. Order'!B1215)","v":""},{"$f":"IF('1. Order'!I1215=\"\",\"\",'1. Order'!I1215)","v":""},{"$f":"IF('1. Order'!J1215=\"\",\"\",'1. Order'!J1215)","v":""},{"$f":"IF('1. Order'!K1215=\"\",\"\",'1. Order'!K1215)","v":""},{"$f":"IF('1. Order'!M1215=\"\",\"\",'1. Order'!M1215)","v":""},null,null,{"$f":"IF('1. Order'!AR1215=\"\",\"\",'1. Order'!AR1215)","v":""},{"$f":"IF('1. Order'!AE1215=\"\",\"\",'1. Order'!AE1215)","v":""}]
[{"$f":"IF('1. Order'!B1216=\"\",\"\",'1. Order'!B1216)","v":""},{"$f":"IF('1. Order'!I1216=\"\",\"\",'1. Order'!I1216)","v":""},{"$f":"IF('1. Order'!J1216=\"\",\"\",'1. Order'!J1216)","v":""},{"$f":"IF('1. Order'!K1216=\"\",\"\",'1. Order'!K1216)","v":""},{"$f":"IF('1. Order'!M1216=\"\",\"\",'1. Order'!M1216)","v":""},null,null,{"$f":"IF('1. Order'!AR1216=\"\",\"\",'1. Order'!AR1216)","v":""},{"$f":"IF('1. Order'!AE1216=\"\",\"\",'1. Order'!AE1216)","v":""}]
[{"$f":"IF('1. Order'!B1217=\"\",\"\",'1. Order'!B1217)","v":""},{"$f":"IF('1. Order'!I1217=\"\",\"\",'1. Order'!I1217)","v":""},{"$f":"IF('1. Order'!J1217=\"\",\"\",'1. Order'!J1217)","v":""},{"$f":"IF('1. Order'!K1217=\"\",\"\",'1. Order'!K1217)","v":""},{"$f":"IF('1. Order'!M1217=\"\",\"\",'1. Order'!M1217)","v":""},null,null,{"$f":"IF('1. Order'!AR1217=\"\",\"\",'1. Order'!AR1217)","v":""},{"$f":"IF('1. Order'!AE1217=\"\",\"\",'1. Order'!AE1217)","v":""}]
[{"$f":"IF('1. Order'!B1218=\"\",\"\",'1. Order'!B1218)","v":""},{"$f":"IF('1. Order'!I1218=\"\",\"\",'1. Order'!I1218)","v":""},{"$f":"IF('1. Order'!J1218=\"\",\"\",'1. Order'!J1218)","v":""},{"$f":"IF('1. Order'!K1218=\"\",\"\",'1. Order'!K1218)","v":""},{"$f":"IF('1. Order'!M1218=\"\",\"\",'1. Order'!M1218)","v":""},null,null,{"$f":"IF('1. Order'!AR1218=\"\",\"\",'1. Order'!AR1218)","v":""},{"$f":"IF('1. Order'!AE1218=\"\",\"\",'1. Order'!AE1218)","v":""}]
[{"$f":"IF('1. Order'!B1219=\"\",\"\",'1. Order'!B1219)","v":""},{"$f":"IF('1. Order'!I1219=\"\",\"\",'1. Order'!I1219)","v":""},{"$f":"IF('1. Order'!J1219=\"\",\"\",'1. Order'!J1219)","v":""},{"$f":"IF('1. Order'!K1219=\"\",\"\",'1. Order'!K1219)","v":""},{"$f":"IF('1. Order'!M1219=\"\",\"\",'1. Order'!M1219)","v":""},null,null,{"$f":"IF('1. Order'!AR1219=\"\",\"\",'1. Order'!AR1219)","v":""},{"$f":"IF('1. Order'!AE1219=\"\",\"\",'1. Order'!AE1219)","v":""}]
[{"$f":"IF('1. Order'!B1220=\"\",\"\",'1. Order'!B1220)","v":""},{"$f":"IF('1. Order'!I1220=\"\",\"\",'1. Order'!I1220)","v":""},{"$f":"IF('1. Order'!J1220=\"\",\"\",'1. Order'!J1220)","v":""},{"$f":"IF('1. Order'!K1220=\"\",\"\",'1. Order'!K1220)","v":""},{"$f":"IF('1. Order'!M1220=\"\",\"\",'1. Order'!M1220)","v":""},null,null,{"$f":"IF('1. Order'!AR1220=\"\",\"\",'1. Order'!AR1220)","v":""},{"$f":"IF('1. Order'!AE1220=\"\",\"\",'1. Order'!AE1220)","v":""}]
[{"$f":"IF('1. Order'!B1221=\"\",\"\",'1. Order'!B1221)","v":""},{"$f":"IF('1. Order'!I1221=\"\",\"\",'1. Order'!I1221)","v":""},{"$f":"IF('1. Order'!J1221=\"\",\"\",'1. Order'!J1221)","v":""},{"$f":"IF('1. Order'!K1221=\"\",\"\",'1. Order'!K1221)","v":""},{"$f":"IF('1. Order'!M1221=\"\",\"\",'1. Order'!M1221)","v":""},null,null,{"$f":"IF('1. Order'!AR1221=\"\",\"\",'1. Order'!AR1221)","v":""},{"$f":"IF('1. Order'!AE1221=\"\",\"\",'1. Order'!AE1221)","v":""}]
[{"$f":"IF('1. Order'!B1222=\"\",\"\",'1. Order'!B1222)","v":""},{"$f":"IF('1. Order'!I1222=\"\",\"\",'1. Order'!I1222)","v":""},{"$f":"IF('1. Order'!J1222=\"\",\"\",'1. Order'!J1222)","v":""},{"$f":"IF('1. Order'!K1222=\"\",\"\",'1. Order'!K1222)","v":""},{"$f":"IF('1. Order'!M1222=\"\",\"\",'1. Order'!M1222)","v":""},null,null,{"$f":"IF('1. Order'!AR1222=\"\",\"\",'1. Order'!AR1222)","v":""},{"$f":"IF('1. Order'!AE1222=\"\",\"\",'1. Order'!AE1222)","v":""}]
[{"$f":"IF('1. Order'!B1223=\"\",\"\",'1. Order'!B1223)","v":""},{"$f":"IF('1. Order'!I1223=\"\",\"\",'1. Order'!I1223)","v":""},{"$f":"IF('1. Order'!J1223=\"\",\"\",'1. Order'!J1223)","v":""},{"$f":"IF('1. Order'!K1223=\"\",\"\",'1. Order'!K1223)","v":""},{"$f":"IF('1. Order'!M1223=\"\",\"\",'1. Order'!M1223)","v":""},null,null,{"$f":"IF('1. Order'!AR1223=\"\",\"\",'1. Order'!AR1223)","v":""},{"$f":"IF('1. Order'!AE1223=\"\",\"\",'1. Order'!AE1223)","v":""}]
[{"$f":"IF('1. Order'!B1224=\"\",\"\",'1. Order'!B1224)","v":""},{"$f":"IF('1. Order'!I1224=\"\",\"\",'1. Order'!I1224)","v":""},{"$f":"IF('1. Order'!J1224=\"\",\"\",'1. Order'!J1224)","v":""},{"$f":"IF('1. Order'!K1224=\"\",\"\",'1. Order'!K1224)","v":""},{"$f":"IF('1. Order'!M1224=\"\",\"\",'1. Order'!M1224)","v":""},null,null,{"$f":"IF('1. Order'!AR1224=\"\",\"\",'1. Order'!AR1224)","v":""},{"$f":"IF('1. Order'!AE1224=\"\",\"\",'1. Order'!AE1224)","v":""}]
[{"$f":"IF('1. Order'!B1225=\"\",\"\",'1. Order'!B1225)","v":""},{"$f":"IF('1. Order'!I1225=\"\",\"\",'1. Order'!I1225)","v":""},{"$f":"IF('1. Order'!J1225=\"\",\"\",'1. Order'!J1225)","v":""},{"$f":"IF('1. Order'!K1225=\"\",\"\",'1. Order'!K1225)","v":""},{"$f":"IF('1. Order'!M1225=\"\",\"\",'1. Order'!M1225)","v":""},null,null,{"$f":"IF('1. Order'!AR1225=\"\",\"\",'1. Order'!AR1225)","v":""},{"$f":"IF('1. Order'!AE1225=\"\",\"\",'1. Order'!AE1225)","v":""}]
[{"$f":"IF('1. Order'!B1226=\"\",\"\",'1. Order'!B1226)","v":""},{"$f":"IF('1. Order'!I1226=\"\",\"\",'1. Order'!I1226)","v":""},{"$f":"IF('1. Order'!J1226=\"\",\"\",'1. Order'!J1226)","v":""},{"$f":"IF('1. Order'!K1226=\"\",\"\",'1. Order'!K1226)","v":""},{"$f":"IF('1. Order'!M1226=\"\",\"\",'1. Order'!M1226)","v":""},null,null,{"$f":"IF('1. Order'!AR1226=\"\",\"\",'1. Order'!AR1226)","v":""},{"$f":"IF('1. Order'!AE1226=\"\",\"\",'1. Order'!AE1226)","v":""}]
[{"$f":"IF('1. Order'!B1227=\"\",\"\",'1. Order'!B1227)","v":""},{"$f":"IF('1. Order'!I1227=\"\",\"\",'1. Order'!I1227)","v":""},{"$f":"IF('1. Order'!J1227=\"\",\"\",'1. Order'!J1227)","v":""},{"$f":"IF('1. Order'!K1227=\"\",\"\",'1. Order'!K1227)","v":""},{"$f":"IF('1. Order'!M1227=\"\",\"\",'1. Order'!M1227)","v":""},null,null,{"$f":"IF('1. Order'!AR1227=\"\",\"\",'1. Order'!AR1227)","v":""},{"$f":"IF('1. Order'!AE1227=\"\",\"\",'1. Order'!AE1227)","v":""}]
[{"$f":"IF('1. Order'!B1228=\"\",\"\",'1. Order'!B1228)","v":""},{"$f":"IF('1. Order'!I1228=\"\",\"\",'1. Order'!I1228)","v":""},{"$f":"IF('1. Order'!J1228=\"\",\"\",'1. Order'!J1228)","v":""},{"$f":"IF('1. Order'!K1228=\"\",\"\",'1. Order'!K1228)","v":""},{"$f":"IF('1. Order'!M1228=\"\",\"\",'1. Order'!M1228)","v":""},null,null,{"$f":"IF('1. Order'!AR1228=\"\",\"\",'1. Order'!AR1228)","v":""},{"$f":"IF('1. Order'!AE1228=\"\",\"\",'1. Order'!AE1228)","v":""}]
[{"$f":"IF('1. Order'!B1229=\"\",\"\",'1. Order'!B1229)","v":""},{"$f":"IF('1. Order'!I1229=\"\",\"\",'1. Order'!I1229)","v":""},{"$f":"IF('1. Order'!J1229=\"\",\"\",'1. Order'!J1229)","v":""},{"$f":"IF('1. Order'!K1229=\"\",\"\",'1. Order'!K1229)","v":""},{"$f":"IF('1. Order'!M1229=\"\",\"\",'1. Order'!M1229)","v":""},null,null,{"$f":"IF('1. Order'!AR1229=\"\",\"\",'1. Order'!AR1229)","v":""},{"$f":"IF('1. Order'!AE1229=\"\",\"\",'1. Order'!AE1229)","v":""}]
[{"$f":"IF('1. Order'!B1230=\"\",\"\",'1. Order'!B1230)","v":""},{"$f":"IF('1. Order'!I1230=\"\",\"\",'1. Order'!I1230)","v":""},{"$f":"IF('1. Order'!J1230=\"\",\"\",'1. Order'!J1230)","v":""},{"$f":"IF('1. Order'!K1230=\"\",\"\",'1. Order'!K1230)","v":""},{"$f":"IF('1. Order'!M1230=\"\",\"\",'1. Order'!M1230)","v":""},null,null,{"$f":"IF('1. Order'!AR1230=\"\",\"\",'1. Order'!AR1230)","v":""},{"$f":"IF('1. Order'!AE1230=\"\",\"\",'1. Order'!AE1230)","v":""}]
[{"$f":"IF('1. Order'!B1231=\"\",\"\",'1. Order'!B1231)","v":""},{"$f":"IF('1. Order'!I1231=\"\",\"\",'1. Order'!I1231)","v":""},{"$f":"IF('1. Order'!J1231=\"\",\"\",'1. Order'!J1231)","v":""},{"$f":"IF('1. Order'!K1231=\"\",\"\",'1. Order'!K1231)","v":""},{"$f":"IF('1. Order'!M1231=\"\",\"\",'1. Order'!M1231)","v":""},null,null,{"$f":"IF('1. Order'!AR1231=\"\",\"\",'1. Order'!AR1231)","v":""},{"$f":"IF('1. Order'!AE1231=\"\",\"\",'1. Order'!AE1231)","v":""}]
[{"$f":"IF('1. Order'!B1232=\"\",\"\",'1. Order'!B1232)","v":""},{"$f":"IF('1. Order'!I1232=\"\",\"\",'1. Order'!I1232)","v":""},{"$f":"IF('1. Order'!J1232=\"\",\"\",'1. Order'!J1232)","v":""},{"$f":"IF('1. Order'!K1232=\"\",\"\",'1. Order'!K1232)","v":""},{"$f":"IF('1. Order'!M1232=\"\",\"\",'1. Order'!M1232)","v":""},null,null,{"$f":"IF('1. Order'!AR1232=\"\",\"\",'1. Order'!AR1232)","v":""},{"$f":"IF('1. Order'!AE1232=\"\",\"\",'1. Order'!AE1232)","v":""}]
[{"$f":"IF('1. Order'!B1233=\"\",\"\",'1. Order'!B1233)","v":""},{"$f":"IF('1. Order'!I1233=\"\",\"\",'1. Order'!I1233)","v":""},{"$f":"IF('1. Order'!J1233=\"\",\"\",'1. Order'!J1233)","v":""},{"$f":"IF('1. Order'!K1233=\"\",\"\",'1. Order'!K1233)","v":""},{"$f":"IF('1. Order'!M1233=\"\",\"\",'1. Order'!M1233)","v":""},null,null,{"$f":"IF('1. Order'!AR1233=\"\",\"\",'1. Order'!AR1233)","v":""},{"$f":"IF('1. Order'!AE1233=\"\",\"\",'1. Order'!AE1233)","v":""}]
[{"$f":"IF('1. Order'!B1234=\"\",\"\",'1. Order'!B1234)","v":""},{"$f":"IF('1. Order'!I1234=\"\",\"\",'1. Order'!I1234)","v":""},{"$f":"IF('1. Order'!J1234=\"\",\"\",'1. Order'!J1234)","v":""},{"$f":"IF('1. Order'!K1234=\"\",\"\",'1. Order'!K1234)","v":""},{"$f":"IF('1. Order'!M1234=\"\",\"\",'1. Order'!M1234)","v":""},null,null,{"$f":"IF('1. Order'!AR1234=\"\",\"\",'1. Order'!AR1234)","v":""},{"$f":"IF('1. Order'!AE1234=\"\",\"\",'1. Order'!AE1234)","v":""}]
[{"$f":"IF('1. Order'!B1235=\"\",\"\",'1. Order'!B1235)","v":""},{"$f":"IF('1. Order'!I1235=\"\",\"\",'1. Order'!I1235)","v":""},{"$f":"IF('1. Order'!J1235=\"\",\"\",'1. Order'!J1235)","v":""},{"$f":"IF('1. Order'!K1235=\"\",\"\",'1. Order'!K1235)","v":""},{"$f":"IF('1. Order'!M1235=\"\",\"\",'1. Order'!M1235)","v":""},null,null,{"$f":"IF('1. Order'!AR1235=\"\",\"\",'1. Order'!AR1235)","v":""},{"$f":"IF('1. Order'!AE1235=\"\",\"\",'1. Order'!AE1235)","v":""}]
[{"$f":"IF('1. Order'!B1236=\"\",\"\",'1. Order'!B1236)","v":""},{"$f":"IF('1. Order'!I1236=\"\",\"\",'1. Order'!I1236)","v":""},{"$f":"IF('1. Order'!J1236=\"\",\"\",'1. Order'!J1236)","v":""},{"$f":"IF('1. Order'!K1236=\"\",\"\",'1. Order'!K1236)","v":""},{"$f":"IF('1. Order'!M1236=\"\",\"\",'1. Order'!M1236)","v":""},null,null,{"$f":"IF('1. Order'!AR1236=\"\",\"\",'1. Order'!AR1236)","v":""},{"$f":"IF('1. Order'!AE1236=\"\",\"\",'1. Order'!AE1236)","v":""}]
[{"$f":"IF('1. Order'!B1237=\"\",\"\",'1. Order'!B1237)","v":""},{"$f":"IF('1. Order'!I1237=\"\",\"\",'1. Order'!I1237)","v":""},{"$f":"IF('1. Order'!J1237=\"\",\"\",'1. Order'!J1237)","v":""},{"$f":"IF('1. Order'!K1237=\"\",\"\",'1. Order'!K1237)","v":""},{"$f":"IF('1. Order'!M1237=\"\",\"\",'1. Order'!M1237)","v":""},null,null,{"$f":"IF('1. Order'!AR1237=\"\",\"\",'1. Order'!AR1237)","v":""},{"$f":"IF('1. Order'!AE1237=\"\",\"\",'1. Order'!AE1237)","v":""}]
[{"$f":"IF('1. Order'!B1238=\"\",\"\",'1. Order'!B1238)","v":""},{"$f":"IF('1. Order'!I1238=\"\",\"\",'1. Order'!I1238)","v":""},{"$f":"IF('1. Order'!J1238=\"\",\"\",'1. Order'!J1238)","v":""},{"$f":"IF('1. Order'!K1238=\"\",\"\",'1. Order'!K1238)","v":""},{"$f":"IF('1. Order'!M1238=\"\",\"\",'1. Order'!M1238)","v":""},null,null,{"$f":"IF('1. Order'!AR1238=\"\",\"\",'1. Order'!AR1238)","v":""},{"$f":"IF('1. Order'!AE1238=\"\",\"\",'1. Order'!AE1238)","v":""}]
[{"$f":"IF('1. Order'!B1239=\"\",\"\",'1. Order'!B1239)","v":""},{"$f":"IF('1. Order'!I1239=\"\",\"\",'1. Order'!I1239)","v":""},{"$f":"IF('1. Order'!J1239=\"\",\"\",'1. Order'!J1239)","v":""},{"$f":"IF('1. Order'!K1239=\"\",\"\",'1. Order'!K1239)","v":""},{"$f":"IF('1. Order'!M1239=\"\",\"\",'1. Order'!M1239)","v":""},null,null,{"$f":"IF('1. Order'!AR1239=\"\",\"\",'1. Order'!AR1239)","v":""},{"$f":"IF('1. Order'!AE1239=\"\",\"\",'1. Order'!AE1239)","v":""}]
[{"$f":"IF('1. Order'!B1240=\"\",\"\",'1. Order'!B1240)","v":""},{"$f":"IF('1. Order'!I1240=\"\",\"\",'1. Order'!I1240)","v":""},{"$f":"IF('1. Order'!J1240=\"\",\"\",'1. Order'!J1240)","v":""},{"$f":"IF('1. Order'!K1240=\"\",\"\",'1. Order'!K1240)","v":""},{"$f":"IF('1. Order'!M1240=\"\",\"\",'1. Order'!M1240)","v":""},null,null,{"$f":"IF('1. Order'!AR1240=\"\",\"\",'1. Order'!AR1240)","v":""},{"$f":"IF('1. Order'!AE1240=\"\",\"\",'1. Order'!AE1240)","v":""}]
[{"$f":"IF('1. Order'!B1241=\"\",\"\",'1. Order'!B1241)","v":""},{"$f":"IF('1. Order'!I1241=\"\",\"\",'1. Order'!I1241)","v":""},{"$f":"IF('1. Order'!J1241=\"\",\"\",'1. Order'!J1241)","v":""},{"$f":"IF('1. Order'!K1241=\"\",\"\",'1. Order'!K1241)","v":""},{"$f":"IF('1. Order'!M1241=\"\",\"\",'1. Order'!M1241)","v":""},null,null,{"$f":"IF('1. Order'!AR1241=\"\",\"\",'1. Order'!AR1241)","v":""},{"$f":"IF('1. Order'!AE1241=\"\",\"\",'1. Order'!AE1241)","v":""}]
[{"$f":"IF('1. Order'!B1242=\"\",\"\",'1. Order'!B1242)","v":""},{"$f":"IF('1. Order'!I1242=\"\",\"\",'1. Order'!I1242)","v":""},{"$f":"IF('1. Order'!J1242=\"\",\"\",'1. Order'!J1242)","v":""},{"$f":"IF('1. Order'!K1242=\"\",\"\",'1. Order'!K1242)","v":""},{"$f":"IF('1. Order'!M1242=\"\",\"\",'1. Order'!M1242)","v":""},null,null,{"$f":"IF('1. Order'!AR1242=\"\",\"\",'1. Order'!AR1242)","v":""},{"$f":"IF('1. Order'!AE1242=\"\",\"\",'1. Order'!AE1242)","v":""}]
[{"$f":"IF('1. Order'!B1243=\"\",\"\",'1. Order'!B1243)","v":""},{"$f":"IF('1. Order'!I1243=\"\",\"\",'1. Order'!I1243)","v":""},{"$f":"IF('1. Order'!J1243=\"\",\"\",'1. Order'!J1243)","v":""},{"$f":"IF('1. Order'!K1243=\"\",\"\",'1. Order'!K1243)","v":""},{"$f":"IF('1. Order'!M1243=\"\",\"\",'1. Order'!M1243)","v":""},null,null,{"$f":"IF('1. Order'!AR1243=\"\",\"\",'1. Order'!AR1243)","v":""},{"$f":"IF('1. Order'!AE1243=\"\",\"\",'1. Order'!AE1243)","v":""}]
[{"$f":"IF('1. Order'!B1244=\"\",\"\",'1. Order'!B1244)","v":""},{"$f":"IF('1. Order'!I1244=\"\",\"\",'1. Order'!I1244)","v":""},{"$f":"IF('1. Order'!J1244=\"\",\"\",'1. Order'!J1244)","v":""},{"$f":"IF('1. Order'!K1244=\"\",\"\",'1. Order'!K1244)","v":""},{"$f":"IF('1. Order'!M1244=\"\",\"\",'1. Order'!M1244)","v":""},null,null,{"$f":"IF('1. Order'!AR1244=\"\",\"\",'1. Order'!AR1244)","v":""},{"$f":"IF('1. Order'!AE1244=\"\",\"\",'1. Order'!AE1244)","v":""}]
[{"$f":"IF('1. Order'!B1245=\"\",\"\",'1. Order'!B1245)","v":""},{"$f":"IF('1. Order'!I1245=\"\",\"\",'1. Order'!I1245)","v":""},{"$f":"IF('1. Order'!J1245=\"\",\"\",'1. Order'!J1245)","v":""},{"$f":"IF('1. Order'!K1245=\"\",\"\",'1. Order'!K1245)","v":""},{"$f":"IF('1. Order'!M1245=\"\",\"\",'1. Order'!M1245)","v":""},null,null,{"$f":"IF('1. Order'!AR1245=\"\",\"\",'1. Order'!AR1245)","v":""},{"$f":"IF('1. Order'!AE1245=\"\",\"\",'1. Order'!AE1245)","v":""}]
[{"$f":"IF('1. Order'!B1246=\"\",\"\",'1. Order'!B1246)","v":""},{"$f":"IF('1. Order'!I1246=\"\",\"\",'1. Order'!I1246)","v":""},{"$f":"IF('1. Order'!J1246=\"\",\"\",'1. Order'!J1246)","v":""},{"$f":"IF('1. Order'!K1246=\"\",\"\",'1. Order'!K1246)","v":""},{"$f":"IF('1. Order'!M1246=\"\",\"\",'1. Order'!M1246)","v":""},null,null,{"$f":"IF('1. Order'!AR1246=\"\",\"\",'1. Order'!AR1246)","v":""},{"$f":"IF('1. Order'!AE1246=\"\",\"\",'1. Order'!AE1246)","v":""}]
[{"$f":"IF('1. Order'!B1247=\"\",\"\",'1. Order'!B1247)","v":""},{"$f":"IF('1. Order'!I1247=\"\",\"\",'1. Order'!I1247)","v":""},{"$f":"IF('1. Order'!J1247=\"\",\"\",'1. Order'!J1247)","v":""},{"$f":"IF('1. Order'!K1247=\"\",\"\",'1. Order'!K1247)","v":""},{"$f":"IF('1. Order'!M1247=\"\",\"\",'1. Order'!M1247)","v":""},null,null,{"$f":"IF('1. Order'!AR1247=\"\",\"\",'1. Order'!AR1247)","v":""},{"$f":"IF('1. Order'!AE1247=\"\",\"\",'1. Order'!AE1247)","v":""}]
[{"$f":"IF('1. Order'!B1248=\"\",\"\",'1. Order'!B1248)","v":""},{"$f":"IF('1. Order'!I1248=\"\",\"\",'1. Order'!I1248)","v":""},{"$f":"IF('1. Order'!J1248=\"\",\"\",'1. Order'!J1248)","v":""},{"$f":"IF('1. Order'!K1248=\"\",\"\",'1. Order'!K1248)","v":""},{"$f":"IF('1. Order'!M1248=\"\",\"\",'1. Order'!M1248)","v":""},null,null,{"$f":"IF('1. Order'!AR1248=\"\",\"\",'1. Order'!AR1248)","v":""},{"$f":"IF('1. Order'!AE1248=\"\",\"\",'1. Order'!AE1248)","v":""}]
[{"$f":"IF('1. Order'!B1249=\"\",\"\",'1. Order'!B1249)","v":""},{"$f":"IF('1. Order'!I1249=\"\",\"\",'1. Order'!I1249)","v":""},{"$f":"IF('1. Order'!J1249=\"\",\"\",'1. Order'!J1249)","v":""},{"$f":"IF('1. Order'!K1249=\"\",\"\",'1. Order'!K1249)","v":""},{"$f":"IF('1. Order'!M1249=\"\",\"\",'1. Order'!M1249)","v":""},null,null,{"$f":"IF('1. Order'!AR1249=\"\",\"\",'1. Order'!AR1249)","v":""},{"$f":"IF('1. Order'!AE1249=\"\",\"\",'1. Order'!AE1249)","v":""}]
[{"$f":"IF('1. Order'!B1250=\"\",\"\",'1. Order'!B1250)","v":""},{"$f":"IF('1. Order'!I1250=\"\",\"\",'1. Order'!I1250)","v":""},{"$f":"IF('1. Order'!J1250=\"\",\"\",'1. Order'!J1250)","v":""},{"$f":"IF('1. Order'!K1250=\"\",\"\",'1. Order'!K1250)","v":""},{"$f":"IF('1. Order'!M1250=\"\",\"\",'1. Order'!M1250)","v":""},null,null,{"$f":"IF('1. Order'!AR1250=\"\",\"\",'1. Order'!AR1250)","v":""},{"$f":"IF('1. Order'!AE1250=\"\",\"\",'1. Order'!AE1250)","v":""}]
[{"$f":"IF('1. Order'!B1251=\"\",\"\",'1. Order'!B1251)","v":""},{"$f":"IF('1. Order'!I1251=\"\",\"\",'1. Order'!I1251)","v":""},{"$f":"IF('1. Order'!J1251=\"\",\"\",'1. Order'!J1251)","v":""},{"$f":"IF('1. Order'!K1251=\"\",\"\",'1. Order'!K1251)","v":""},{"$f":"IF('1. Order'!M1251=\"\",\"\",'1. Order'!M1251)","v":""},null,null,{"$f":"IF('1. Order'!AR1251=\"\",\"\",'1. Order'!AR1251)","v":""},{"$f":"IF('1. Order'!AE1251=\"\",\"\",'1. Order'!AE1251)","v":""}]
[{"$f":"IF('1. Order'!B1252=\"\",\"\",'1. Order'!B1252)","v":""},{"$f":"IF('1. Order'!I1252=\"\",\"\",'1. Order'!I1252)","v":""},{"$f":"IF('1. Order'!J1252=\"\",\"\",'1. Order'!J1252)","v":""},{"$f":"IF('1. Order'!K1252=\"\",\"\",'1. Order'!K1252)","v":""},{"$f":"IF('1. Order'!M1252=\"\",\"\",'1. Order'!M1252)","v":""},null,null,{"$f":"IF('1. Order'!AR1252=\"\",\"\",'1. Order'!AR1252)","v":""},{"$f":"IF('1. Order'!AE1252=\"\",\"\",'1. Order'!AE1252)","v":""}]
[{"$f":"IF('1. Order'!B1253=\"\",\"\",'1. Order'!B1253)","v":""},{"$f":"IF('1. Order'!I1253=\"\",\"\",'1. Order'!I1253)","v":""},{"$f":"IF('1. Order'!J1253=\"\",\"\",'1. Order'!J1253)","v":""},{"$f":"IF('1. Order'!K1253=\"\",\"\",'1. Order'!K1253)","v":""},{"$f":"IF('1. Order'!M1253=\"\",\"\",'1. Order'!M1253)","v":""},null,null,{"$f":"IF('1. Order'!AR1253=\"\",\"\",'1. Order'!AR1253)","v":""},{"$f":"IF('1. Order'!AE1253=\"\",\"\",'1. Order'!AE1253)","v":""}]
[{"$f":"IF('1. Order'!B1254=\"\",\"\",'1. Order'!B1254)","v":""},{"$f":"IF('1. Order'!I1254=\"\",\"\",'1. Order'!I1254)","v":""},{"$f":"IF('1. Order'!J1254=\"\",\"\",'1. Order'!J1254)","v":""},{"$f":"IF('1. Order'!K1254=\"\",\"\",'1. Order'!K1254)","v":""},{"$f":"IF('1. Order'!M1254=\"\",\"\",'1. Order'!M1254)","v":""},null,null,{"$f":"IF('1. Order'!AR1254=\"\",\"\",'1. Order'!AR1254)","v":""},{"$f":"IF('1. Order'!AE1254=\"\",\"\",'1. Order'!AE1254)","v":""}]
[{"$f":"IF('1. Order'!B1255=\"\",\"\",'1. Order'!B1255)","v":""},{"$f":"IF('1. Order'!I1255=\"\",\"\",'1. Order'!I1255)","v":""},{"$f":"IF('1. Order'!J1255=\"\",\"\",'1. Order'!J1255)","v":""},{"$f":"IF('1. Order'!K1255=\"\",\"\",'1. Order'!K1255)","v":""},{"$f":"IF('1. Order'!M1255=\"\",\"\",'1. Order'!M1255)","v":""},null,null,{"$f":"IF('1. Order'!AR1255=\"\",\"\",'1. Order'!AR1255)","v":""},{"$f":"IF('1. Order'!AE1255=\"\",\"\",'1. Order'!AE1255)","v":""}]
[{"$f":"IF('1. Order'!B1256=\"\",\"\",'1. Order'!B1256)","v":""},{"$f":"IF('1. Order'!I1256=\"\",\"\",'1. Order'!I1256)","v":""},{"$f":"IF('1. Order'!J1256=\"\",\"\",'1. Order'!J1256)","v":""},{"$f":"IF('1. Order'!K1256=\"\",\"\",'1. Order'!K1256)","v":""},{"$f":"IF('1. Order'!M1256=\"\",\"\",'1. Order'!M1256)","v":""},null,null,{"$f":"IF('1. Order'!AR1256=\"\",\"\",'1. Order'!AR1256)","v":""},{"$f":"IF('1. Order'!AE1256=\"\",\"\",'1. Order'!AE1256)","v":""}]
[{"$f":"IF('1. Order'!B1257=\"\",\"\",'1. Order'!B1257)","v":""},{"$f":"IF('1. Order'!I1257=\"\",\"\",'1. Order'!I1257)","v":""},{"$f":"IF('1. Order'!J1257=\"\",\"\",'1. Order'!J1257)","v":""},{"$f":"IF('1. Order'!K1257=\"\",\"\",'1. Order'!K1257)","v":""},{"$f":"IF('1. Order'!M1257=\"\",\"\",'1. Order'!M1257)","v":""},null,null,{"$f":"IF('1. Order'!AR1257=\"\",\"\",'1. Order'!AR1257)","v":""},{"$f":"IF('1. Order'!AE1257=\"\",\"\",'1. Order'!AE1257)","v":""}]
[{"$f":"IF('1. Order'!B1258=\"\",\"\",'1. Order'!B1258)","v":""},{"$f":"IF('1. Order'!I1258=\"\",\"\",'1. Order'!I1258)","v":""},{"$f":"IF('1. Order'!J1258=\"\",\"\",'1. Order'!J1258)","v":""},{"$f":"IF('1. Order'!K1258=\"\",\"\",'1. Order'!K1258)","v":""},{"$f":"IF('1. Order'!M1258=\"\",\"\",'1. Order'!M1258)","v":""},null,null,{"$f":"IF('1. Order'!AR1258=\"\",\"\",'1. Order'!AR1258)","v":""},{"$f":"IF('1. Order'!AE1258=\"\",\"\",'1. Order'!AE1258)","v":""}]
[{"$f":"IF('1. Order'!B1259=\"\",\"\",'1. Order'!B1259)","v":""},{"$f":"IF('1. Order'!I1259=\"\",\"\",'1. Order'!I1259)","v":""},{"$f":"IF('1. Order'!J1259=\"\",\"\",'1. Order'!J1259)","v":""},{"$f":"IF('1. Order'!K1259=\"\",\"\",'1. Order'!K1259)","v":""},{"$f":"IF('1. Order'!M1259=\"\",\"\",'1. Order'!M1259)","v":""},null,null,{"$f":"IF('1. Order'!AR1259=\"\",\"\",'1. Order'!AR1259)","v":""},{"$f":"IF('1. Order'!AE1259=\"\",\"\",'1. Order'!AE1259)","v":""}]
[{"$f":"IF('1. Order'!B1260=\"\",\"\",'1. Order'!B1260)","v":""},{"$f":"IF('1. Order'!I1260=\"\",\"\",'1. Order'!I1260)","v":""},{"$f":"IF('1. Order'!J1260=\"\",\"\",'1. Order'!J1260)","v":""},{"$f":"IF('1. Order'!K1260=\"\",\"\",'1. Order'!K1260)","v":""},{"$f":"IF('1. Order'!M1260=\"\",\"\",'1. Order'!M1260)","v":""},null,null,{"$f":"IF('1. Order'!AR1260=\"\",\"\",'1. Order'!AR1260)","v":""},{"$f":"IF('1. Order'!AE1260=\"\",\"\",'1. Order'!AE1260)","v":""}]
[{"$f":"IF('1. Order'!B1261=\"\",\"\",'1. Order'!B1261)","v":""},{"$f":"IF('1. Order'!I1261=\"\",\"\",'1. Order'!I1261)","v":""},{"$f":"IF('1. Order'!J1261=\"\",\"\",'1. Order'!J1261)","v":""},{"$f":"IF('1. Order'!K1261=\"\",\"\",'1. Order'!K1261)","v":""},{"$f":"IF('1. Order'!M1261=\"\",\"\",'1. Order'!M1261)","v":""},null,null,{"$f":"IF('1. Order'!AR1261=\"\",\"\",'1. Order'!AR1261)","v":""},{"$f":"IF('1. Order'!AE1261=\"\",\"\",'1. Order'!AE1261)","v":""}]
[{"$f":"IF('1. Order'!B1262=\"\",\"\",'1. Order'!B1262)","v":""},{"$f":"IF('1. Order'!I1262=\"\",\"\",'1. Order'!I1262)","v":""},{"$f":"IF('1. Order'!J1262=\"\",\"\",'1. Order'!J1262)","v":""},{"$f":"IF('1. Order'!K1262=\"\",\"\",'1. Order'!K1262)","v":""},{"$f":"IF('1. Order'!M1262=\"\",\"\",'1. Order'!M1262)","v":""},null,null,{"$f":"IF('1. Order'!AR1262=\"\",\"\",'1. Order'!AR1262)","v":""},{"$f":"IF('1. Order'!AE1262=\"\",\"\",'1. Order'!AE1262)","v":""}]
[{"$f":"IF('1. Order'!B1263=\"\",\"\",'1. Order'!B1263)","v":""},{"$f":"IF('1. Order'!I1263=\"\",\"\",'1. Order'!I1263)","v":""},{"$f":"IF('1. Order'!J1263=\"\",\"\",'1. Order'!J1263)","v":""},{"$f":"IF('1. Order'!K1263=\"\",\"\",'1. Order'!K1263)","v":""},{"$f":"IF('1. Order'!M1263=\"\",\"\",'1. Order'!M1263)","v":""},null,null,{"$f":"IF('1. Order'!AR1263=\"\",\"\",'1. Order'!AR1263)","v":""},{"$f":"IF('1. Order'!AE1263=\"\",\"\",'1. Order'!AE1263)","v":""}]
[{"$f":"IF('1. Order'!B1264=\"\",\"\",'1. Order'!B1264)","v":""},{"$f":"IF('1. Order'!I1264=\"\",\"\",'1. Order'!I1264)","v":""},{"$f":"IF('1. Order'!J1264=\"\",\"\",'1. Order'!J1264)","v":""},{"$f":"IF('1. Order'!K1264=\"\",\"\",'1. Order'!K1264)","v":""},{"$f":"IF('1. Order'!M1264=\"\",\"\",'1. Order'!M1264)","v":""},null,null,{"$f":"IF('1. Order'!AR1264=\"\",\"\",'1. Order'!AR1264)","v":""},{"$f":"IF('1. Order'!AE1264=\"\",\"\",'1. Order'!AE1264)","v":""}]
[{"$f":"IF('1. Order'!B1265=\"\",\"\",'1. Order'!B1265)","v":""},{"$f":"IF('1. Order'!I1265=\"\",\"\",'1. Order'!I1265)","v":""},{"$f":"IF('1. Order'!J1265=\"\",\"\",'1. Order'!J1265)","v":""},{"$f":"IF('1. Order'!K1265=\"\",\"\",'1. Order'!K1265)","v":""},{"$f":"IF('1. Order'!M1265=\"\",\"\",'1. Order'!M1265)","v":""},null,null,{"$f":"IF('1. Order'!AR1265=\"\",\"\",'1. Order'!AR1265)","v":""},{"$f":"IF('1. Order'!AE1265=\"\",\"\",'1. Order'!AE1265)","v":""}]
[{"$f":"IF('1. Order'!B1266=\"\",\"\",'1. Order'!B1266)","v":""},{"$f":"IF('1. Order'!I1266=\"\",\"\",'1. Order'!I1266)","v":""},{"$f":"IF('1. Order'!J1266=\"\",\"\",'1. Order'!J1266)","v":""},{"$f":"IF('1. Order'!K1266=\"\",\"\",'1. Order'!K1266)","v":""},{"$f":"IF('1. Order'!M1266=\"\",\"\",'1. Order'!M1266)","v":""},null,null,{"$f":"IF('1. Order'!AR1266=\"\",\"\",'1. Order'!AR1266)","v":""},{"$f":"IF('1. Order'!AE1266=\"\",\"\",'1. Order'!AE1266)","v":""}]
[{"$f":"IF('1. Order'!B1267=\"\",\"\",'1. Order'!B1267)","v":""},{"$f":"IF('1. Order'!I1267=\"\",\"\",'1. Order'!I1267)","v":""},{"$f":"IF('1. Order'!J1267=\"\",\"\",'1. Order'!J1267)","v":""},{"$f":"IF('1. Order'!K1267=\"\",\"\",'1. Order'!K1267)","v":""},{"$f":"IF('1. Order'!M1267=\"\",\"\",'1. Order'!M1267)","v":""},null,null,{"$f":"IF('1. Order'!AR1267=\"\",\"\",'1. Order'!AR1267)","v":""},{"$f":"IF('1. Order'!AE1267=\"\",\"\",'1. Order'!AE1267)","v":""}]
[{"$f":"IF('1. Order'!B1268=\"\",\"\",'1. Order'!B1268)","v":""},{"$f":"IF('1. Order'!I1268=\"\",\"\",'1. Order'!I1268)","v":""},{"$f":"IF('1. Order'!J1268=\"\",\"\",'1. Order'!J1268)","v":""},{"$f":"IF('1. Order'!K1268=\"\",\"\",'1. Order'!K1268)","v":""},{"$f":"IF('1. Order'!M1268=\"\",\"\",'1. Order'!M1268)","v":""},null,null,{"$f":"IF('1. Order'!AR1268=\"\",\"\",'1. Order'!AR1268)","v":""},{"$f":"IF('1. Order'!AE1268=\"\",\"\",'1. Order'!AE1268)","v":""}]
[{"$f":"IF('1. Order'!B1269=\"\",\"\",'1. Order'!B1269)","v":""},{"$f":"IF('1. Order'!I1269=\"\",\"\",'1. Order'!I1269)","v":""},{"$f":"IF('1. Order'!J1269=\"\",\"\",'1. Order'!J1269)","v":""},{"$f":"IF('1. Order'!K1269=\"\",\"\",'1. Order'!K1269)","v":""},{"$f":"IF('1. Order'!M1269=\"\",\"\",'1. Order'!M1269)","v":""},null,null,{"$f":"IF('1. Order'!AR1269=\"\",\"\",'1. Order'!AR1269)","v":""},{"$f":"IF('1. Order'!AE1269=\"\",\"\",'1. Order'!AE1269)","v":""}]
[{"$f":"IF('1. Order'!B1270=\"\",\"\",'1. Order'!B1270)","v":""},{"$f":"IF('1. Order'!I1270=\"\",\"\",'1. Order'!I1270)","v":""},{"$f":"IF('1. Order'!J1270=\"\",\"\",'1. Order'!J1270)","v":""},{"$f":"IF('1. Order'!K1270=\"\",\"\",'1. Order'!K1270)","v":""},{"$f":"IF('1. Order'!M1270=\"\",\"\",'1. Order'!M1270)","v":""},null,null,{"$f":"IF('1. Order'!AR1270=\"\",\"\",'1. Order'!AR1270)","v":""},{"$f":"IF('1. Order'!AE1270=\"\",\"\",'1. Order'!AE1270)","v":""}]
[{"$f":"IF('1. Order'!B1271=\"\",\"\",'1. Order'!B1271)","v":""},{"$f":"IF('1. Order'!I1271=\"\",\"\",'1. Order'!I1271)","v":""},{"$f":"IF('1. Order'!J1271=\"\",\"\",'1. Order'!J1271)","v":""},{"$f":"IF('1. Order'!K1271=\"\",\"\",'1. Order'!K1271)","v":""},{"$f":"IF('1. Order'!M1271=\"\",\"\",'1. Order'!M1271)","v":""},null,null,{"$f":"IF('1. Order'!AR1271=\"\",\"\",'1. Order'!AR1271)","v":""},{"$f":"IF('1. Order'!AE1271=\"\",\"\",'1. Order'!AE1271)","v":""}]
[{"$f":"IF('1. Order'!B1272=\"\",\"\",'1. Order'!B1272)","v":""},{"$f":"IF('1. Order'!I1272=\"\",\"\",'1. Order'!I1272)","v":""},{"$f":"IF('1. Order'!J1272=\"\",\"\",'1. Order'!J1272)","v":""},{"$f":"IF('1. Order'!K1272=\"\",\"\",'1. Order'!K1272)","v":""},{"$f":"IF('1. Order'!M1272=\"\",\"\",'1. Order'!M1272)","v":""},null,null,{"$f":"IF('1. Order'!AR1272=\"\",\"\",'1. Order'!AR1272)","v":""},{"$f":"IF('1. Order'!AE1272=\"\",\"\",'1. Order'!AE1272)","v":""}]
[{"$f":"IF('1. Order'!B1273=\"\",\"\",'1. Order'!B1273)","v":""},{"$f":"IF('1. Order'!I1273=\"\",\"\",'1. Order'!I1273)","v":""},{"$f":"IF('1. Order'!J1273=\"\",\"\",'1. Order'!J1273)","v":""},{"$f":"IF('1. Order'!K1273=\"\",\"\",'1. Order'!K1273)","v":""},{"$f":"IF('1. Order'!M1273=\"\",\"\",'1. Order'!M1273)","v":""},null,null,{"$f":"IF('1. Order'!AR1273=\"\",\"\",'1. Order'!AR1273)","v":""},{"$f":"IF('1. Order'!AE1273=\"\",\"\",'1. Order'!AE1273)","v":""}]
[{"$f":"IF('1. Order'!B1274=\"\",\"\",'1. Order'!B1274)","v":""},{"$f":"IF('1. Order'!I1274=\"\",\"\",'1. Order'!I1274)","v":""},{"$f":"IF('1. Order'!J1274=\"\",\"\",'1. Order'!J1274)","v":""},{"$f":"IF('1. Order'!K1274=\"\",\"\",'1. Order'!K1274)","v":""},{"$f":"IF('1. Order'!M1274=\"\",\"\",'1. Order'!M1274)","v":""},null,null,{"$f":"IF('1. Order'!AR1274=\"\",\"\",'1. Order'!AR1274)","v":""},{"$f":"IF('1. Order'!AE1274=\"\",\"\",'1. Order'!AE1274)","v":""}]
[{"$f":"IF('1. Order'!B1275=\"\",\"\",'1. Order'!B1275)","v":""},{"$f":"IF('1. Order'!I1275=\"\",\"\",'1. Order'!I1275)","v":""},{"$f":"IF('1. Order'!J1275=\"\",\"\",'1. Order'!J1275)","v":""},{"$f":"IF('1. Order'!K1275=\"\",\"\",'1. Order'!K1275)","v":""},{"$f":"IF('1. Order'!M1275=\"\",\"\",'1. Order'!M1275)","v":""},null,null,{"$f":"IF('1. Order'!AR1275=\"\",\"\",'1. Order'!AR1275)","v":""},{"$f":"IF('1. Order'!AE1275=\"\",\"\",'1. Order'!AE1275)","v":""}]
[{"$f":"IF('1. Order'!B1276=\"\",\"\",'1. Order'!B1276)","v":""},{"$f":"IF('1. Order'!I1276=\"\",\"\",'1. Order'!I1276)","v":""},{"$f":"IF('1. Order'!J1276=\"\",\"\",'1. Order'!J1276)","v":""},{"$f":"IF('1. Order'!K1276=\"\",\"\",'1. Order'!K1276)","v":""},{"$f":"IF('1. Order'!M1276=\"\",\"\",'1. Order'!M1276)","v":""},null,null,{"$f":"IF('1. Order'!AR1276=\"\",\"\",'1. Order'!AR1276)","v":""},{"$f":"IF('1. Order'!AE1276=\"\",\"\",'1. Order'!AE1276)","v":""}]
[{"$f":"IF('1. Order'!B1277=\"\",\"\",'1. Order'!B1277)","v":""},{"$f":"IF('1. Order'!I1277=\"\",\"\",'1. Order'!I1277)","v":""},{"$f":"IF('1. Order'!J1277=\"\",\"\",'1. Order'!J1277)","v":""},{"$f":"IF('1. Order'!K1277=\"\",\"\",'1. Order'!K1277)","v":""},{"$f":"IF('1. Order'!M1277=\"\",\"\",'1. Order'!M1277)","v":""},null,null,{"$f":"IF('1. Order'!AR1277=\"\",\"\",'1. Order'!AR1277)","v":""},{"$f":"IF('1. Order'!AE1277=\"\",\"\",'1. Order'!AE1277)","v":""}]
[{"$f":"IF('1. Order'!B1278=\"\",\"\",'1. Order'!B1278)","v":""},{"$f":"IF('1. Order'!I1278=\"\",\"\",'1. Order'!I1278)","v":""},{"$f":"IF('1. Order'!J1278=\"\",\"\",'1. Order'!J1278)","v":""},{"$f":"IF('1. Order'!K1278=\"\",\"\",'1. Order'!K1278)","v":""},{"$f":"IF('1. Order'!M1278=\"\",\"\",'1. Order'!M1278)","v":""},null,null,{"$f":"IF('1. Order'!AR1278=\"\",\"\",'1. Order'!AR1278)","v":""},{"$f":"IF('1. Order'!AE1278=\"\",\"\",'1. Order'!AE1278)","v":""}]
[{"$f":"IF('1. Order'!B1279=\"\",\"\",'1. Order'!B1279)","v":""},{"$f":"IF('1. Order'!I1279=\"\",\"\",'1. Order'!I1279)","v":""},{"$f":"IF('1. Order'!J1279=\"\",\"\",'1. Order'!J1279)","v":""},{"$f":"IF('1. Order'!K1279=\"\",\"\",'1. Order'!K1279)","v":""},{"$f":"IF('1. Order'!M1279=\"\",\"\",'1. Order'!M1279)","v":""},null,null,{"$f":"IF('1. Order'!AR1279=\"\",\"\",'1. Order'!AR1279)","v":""},{"$f":"IF('1. Order'!AE1279=\"\",\"\",'1. Order'!AE1279)","v":""}]
[{"$f":"IF('1. Order'!B1280=\"\",\"\",'1. Order'!B1280)","v":""},{"$f":"IF('1. Order'!I1280=\"\",\"\",'1. Order'!I1280)","v":""},{"$f":"IF('1. Order'!J1280=\"\",\"\",'1. Order'!J1280)","v":""},{"$f":"IF('1. Order'!K1280=\"\",\"\",'1. Order'!K1280)","v":""},{"$f":"IF('1. Order'!M1280=\"\",\"\",'1. Order'!M1280)","v":""},null,null,{"$f":"IF('1. Order'!AR1280=\"\",\"\",'1. Order'!AR1280)","v":""},{"$f":"IF('1. Order'!AE1280=\"\",\"\",'1. Order'!AE1280)","v":""}]
[{"$f":"IF('1. Order'!B1281=\"\",\"\",'1. Order'!B1281)","v":""},{"$f":"IF('1. Order'!I1281=\"\",\"\",'1. Order'!I1281)","v":""},{"$f":"IF('1. Order'!J1281=\"\",\"\",'1. Order'!J1281)","v":""},{"$f":"IF('1. Order'!K1281=\"\",\"\",'1. Order'!K1281)","v":""},{"$f":"IF('1. Order'!M1281=\"\",\"\",'1. Order'!M1281)","v":""},null,null,{"$f":"IF('1. Order'!AR1281=\"\",\"\",'1. Order'!AR1281)","v":""},{"$f":"IF('1. Order'!AE1281=\"\",\"\",'1. Order'!AE1281)","v":""}]
[{"$f":"IF('1. Order'!B1282=\"\",\"\",'1. Order'!B1282)","v":""},{"$f":"IF('1. Order'!I1282=\"\",\"\",'1. Order'!I1282)","v":""},{"$f":"IF('1. Order'!J1282=\"\",\"\",'1. Order'!J1282)","v":""},{"$f":"IF('1. Order'!K1282=\"\",\"\",'1. Order'!K1282)","v":""},{"$f":"IF('1. Order'!M1282=\"\",\"\",'1. Order'!M1282)","v":""},null,null,{"$f":"IF('1. Order'!AR1282=\"\",\"\",'1. Order'!AR1282)","v":""},{"$f":"IF('1. Order'!AE1282=\"\",\"\",'1. Order'!AE1282)","v":""}]
[{"$f":"IF('1. Order'!B1283=\"\",\"\",'1. Order'!B1283)","v":""},{"$f":"IF('1. Order'!I1283=\"\",\"\",'1. Order'!I1283)","v":""},{"$f":"IF('1. Order'!J1283=\"\",\"\",'1. Order'!J1283)","v":""},{"$f":"IF('1. Order'!K1283=\"\",\"\",'1. Order'!K1283)","v":""},{"$f":"IF('1. Order'!M1283=\"\",\"\",'1. Order'!M1283)","v":""},null,null,{"$f":"IF('1. Order'!AR1283=\"\",\"\",'1. Order'!AR1283)","v":""},{"$f":"IF('1. Order'!AE1283=\"\",\"\",'1. Order'!AE1283)","v":""}]
[{"$f":"IF('1. Order'!B1284=\"\",\"\",'1. Order'!B1284)","v":""},{"$f":"IF('1. Order'!I1284=\"\",\"\",'1. Order'!I1284)","v":""},{"$f":"IF('1. Order'!J1284=\"\",\"\",'1. Order'!J1284)","v":""},{"$f":"IF('1. Order'!K1284=\"\",\"\",'1. Order'!K1284)","v":""},{"$f":"IF('1. Order'!M1284=\"\",\"\",'1. Order'!M1284)","v":""},null,null,{"$f":"IF('1. Order'!AR1284=\"\",\"\",'1. Order'!AR1284)","v":""},{"$f":"IF('1. Order'!AE1284=\"\",\"\",'1. Order'!AE1284)","v":""}]
[{"$f":"IF('1. Order'!B1285=\"\",\"\",'1. Order'!B1285)","v":""},{"$f":"IF('1. Order'!I1285=\"\",\"\",'1. Order'!I1285)","v":""},{"$f":"IF('1. Order'!J1285=\"\",\"\",'1. Order'!J1285)","v":""},{"$f":"IF('1. Order'!K1285=\"\",\"\",'1. Order'!K1285)","v":""},{"$f":"IF('1. Order'!M1285=\"\",\"\",'1. Order'!M1285)","v":""},null,null,{"$f":"IF('1. Order'!AR1285=\"\",\"\",'1. Order'!AR1285)","v":""},{"$f":"IF('1. Order'!AE1285=\"\",\"\",'1. Order'!AE1285)","v":""}]
[{"$f":"IF('1. Order'!B1286=\"\",\"\",'1. Order'!B1286)","v":""},{"$f":"IF('1. Order'!I1286=\"\",\"\",'1. Order'!I1286)","v":""},{"$f":"IF('1. Order'!J1286=\"\",\"\",'1. Order'!J1286)","v":""},{"$f":"IF('1. Order'!K1286=\"\",\"\",'1. Order'!K1286)","v":""},{"$f":"IF('1. Order'!M1286=\"\",\"\",'1. Order'!M1286)","v":""},null,null,{"$f":"IF('1. Order'!AR1286=\"\",\"\",'1. Order'!AR1286)","v":""},{"$f":"IF('1. Order'!AE1286=\"\",\"\",'1. Order'!AE1286)","v":""}]
[{"$f":"IF('1. Order'!B1287=\"\",\"\",'1. Order'!B1287)","v":""},{"$f":"IF('1. Order'!I1287=\"\",\"\",'1. Order'!I1287)","v":""},{"$f":"IF('1. Order'!J1287=\"\",\"\",'1. Order'!J1287)","v":""},{"$f":"IF('1. Order'!K1287=\"\",\"\",'1. Order'!K1287)","v":""},{"$f":"IF('1. Order'!M1287=\"\",\"\",'1. Order'!M1287)","v":""},null,null,{"$f":"IF('1. Order'!AR1287=\"\",\"\",'1. Order'!AR1287)","v":""},{"$f":"IF('1. Order'!AE1287=\"\",\"\",'1. Order'!AE1287)","v":""}]
[{"$f":"IF('1. Order'!B1288=\"\",\"\",'1. Order'!B1288)","v":""},{"$f":"IF('1. Order'!I1288=\"\",\"\",'1. Order'!I1288)","v":""},{"$f":"IF('1. Order'!J1288=\"\",\"\",'1. Order'!J1288)","v":""},{"$f":"IF('1. Order'!K1288=\"\",\"\",'1. Order'!K1288)","v":""},{"$f":"IF('1. Order'!M1288=\"\",\"\",'1. Order'!M1288)","v":""},null,null,{"$f":"IF('1. Order'!AR1288=\"\",\"\",'1. Order'!AR1288)","v":""},{"$f":"IF('1. Order'!AE1288=\"\",\"\",'1. Order'!AE1288)","v":""}]
[{"$f":"IF('1. Order'!B1289=\"\",\"\",'1. Order'!B1289)","v":""},{"$f":"IF('1. Order'!I1289=\"\",\"\",'1. Order'!I1289)","v":""},{"$f":"IF('1. Order'!J1289=\"\",\"\",'1. Order'!J1289)","v":""},{"$f":"IF('1. Order'!K1289=\"\",\"\",'1. Order'!K1289)","v":""},{"$f":"IF('1. Order'!M1289=\"\",\"\",'1. Order'!M1289)","v":""},null,null,{"$f":"IF('1. Order'!AR1289=\"\",\"\",'1. Order'!AR1289)","v":""},{"$f":"IF('1. Order'!AE1289=\"\",\"\",'1. Order'!AE1289)","v":""}]
[{"$f":"IF('1. Order'!B1290=\"\",\"\",'1. Order'!B1290)","v":""},{"$f":"IF('1. Order'!I1290=\"\",\"\",'1. Order'!I1290)","v":""},{"$f":"IF('1. Order'!J1290=\"\",\"\",'1. Order'!J1290)","v":""},{"$f":"IF('1. Order'!K1290=\"\",\"\",'1. Order'!K1290)","v":""},{"$f":"IF('1. Order'!M1290=\"\",\"\",'1. Order'!M1290)","v":""},null,null,{"$f":"IF('1. Order'!AR1290=\"\",\"\",'1. Order'!AR1290)","v":""},{"$f":"IF('1. Order'!AE1290=\"\",\"\",'1. Order'!AE1290)","v":""}]
[{"$f":"IF('1. Order'!B1291=\"\",\"\",'1. Order'!B1291)","v":""},{"$f":"IF('1. Order'!I1291=\"\",\"\",'1. Order'!I1291)","v":""},{"$f":"IF('1. Order'!J1291=\"\",\"\",'1. Order'!J1291)","v":""},{"$f":"IF('1. Order'!K1291=\"\",\"\",'1. Order'!K1291)","v":""},{"$f":"IF('1. Order'!M1291=\"\",\"\",'1. Order'!M1291)","v":""},null,null,{"$f":"IF('1. Order'!AR1291=\"\",\"\",'1. Order'!AR1291)","v":""},{"$f":"IF('1. Order'!AE1291=\"\",\"\",'1. Order'!AE1291)","v":""}]
[{"$f":"IF('1. Order'!B1292=\"\",\"\",'1. Order'!B1292)","v":""},{"$f":"IF('1. Order'!I1292=\"\",\"\",'1. Order'!I1292)","v":""},{"$f":"IF('1. Order'!J1292=\"\",\"\",'1. Order'!J1292)","v":""},{"$f":"IF('1. Order'!K1292=\"\",\"\",'1. Order'!K1292)","v":""},{"$f":"IF('1. Order'!M1292=\"\",\"\",'1. Order'!M1292)","v":""},null,null,{"$f":"IF('1. Order'!AR1292=\"\",\"\",'1. Order'!AR1292)","v":""},{"$f":"IF('1. Order'!AE1292=\"\",\"\",'1. Order'!AE1292)","v":""}]
[{"$f":"IF('1. Order'!B1293=\"\",\"\",'1. Order'!B1293)","v":""},{"$f":"IF('1. Order'!I1293=\"\",\"\",'1. Order'!I1293)","v":""},{"$f":"IF('1. Order'!J1293=\"\",\"\",'1. Order'!J1293)","v":""},{"$f":"IF('1. Order'!K1293=\"\",\"\",'1. Order'!K1293)","v":""},{"$f":"IF('1. Order'!M1293=\"\",\"\",'1. Order'!M1293)","v":""},null,null,{"$f":"IF('1. Order'!AR1293=\"\",\"\",'1. Order'!AR1293)","v":""},{"$f":"IF('1. Order'!AE1293=\"\",\"\",'1. Order'!AE1293)","v":""}]
[{"$f":"IF('1. Order'!B1294=\"\",\"\",'1. Order'!B1294)","v":""},{"$f":"IF('1. Order'!I1294=\"\",\"\",'1. Order'!I1294)","v":""},{"$f":"IF('1. Order'!J1294=\"\",\"\",'1. Order'!J1294)","v":""},{"$f":"IF('1. Order'!K1294=\"\",\"\",'1. Order'!K1294)","v":""},{"$f":"IF('1. Order'!M1294=\"\",\"\",'1. Order'!M1294)","v":""},null,null,{"$f":"IF('1. Order'!AR1294=\"\",\"\",'1. Order'!AR1294)","v":""},{"$f":"IF('1. Order'!AE1294=\"\",\"\",'1. Order'!AE1294)","v":""}]
[{"$f":"IF('1. Order'!B1295=\"\",\"\",'1. Order'!B1295)","v":""},{"$f":"IF('1. Order'!I1295=\"\",\"\",'1. Order'!I1295)","v":""},{"$f":"IF('1. Order'!J1295=\"\",\"\",'1. Order'!J1295)","v":""},{"$f":"IF('1. Order'!K1295=\"\",\"\",'1. Order'!K1295)","v":""},{"$f":"IF('1. Order'!M1295=\"\",\"\",'1. Order'!M1295)","v":""},null,null,{"$f":"IF('1. Order'!AR1295=\"\",\"\",'1. Order'!AR1295)","v":""},{"$f":"IF('1. Order'!AE1295=\"\",\"\",'1. Order'!AE1295)","v":""}]
[{"$f":"IF('1. Order'!B1296=\"\",\"\",'1. Order'!B1296)","v":""},{"$f":"IF('1. Order'!I1296=\"\",\"\",'1. Order'!I1296)","v":""},{"$f":"IF('1. Order'!J1296=\"\",\"\",'1. Order'!J1296)","v":""},{"$f":"IF('1. Order'!K1296=\"\",\"\",'1. Order'!K1296)","v":""},{"$f":"IF('1. Order'!M1296=\"\",\"\",'1. Order'!M1296)","v":""},null,null,{"$f":"IF('1. Order'!AR1296=\"\",\"\",'1. Order'!AR1296)","v":""},{"$f":"IF('1. Order'!AE1296=\"\",\"\",'1. Order'!AE1296)","v":""}]
[{"$f":"IF('1. Order'!B1297=\"\",\"\",'1. Order'!B1297)","v":""},{"$f":"IF('1. Order'!I1297=\"\",\"\",'1. Order'!I1297)","v":""},{"$f":"IF('1. Order'!J1297=\"\",\"\",'1. Order'!J1297)","v":""},{"$f":"IF('1. Order'!K1297=\"\",\"\",'1. Order'!K1297)","v":""},{"$f":"IF('1. Order'!M1297=\"\",\"\",'1. Order'!M1297)","v":""},null,null,{"$f":"IF('1. Order'!AR1297=\"\",\"\",'1. Order'!AR1297)","v":""},{"$f":"IF('1. Order'!AE1297=\"\",\"\",'1. Order'!AE1297)","v":""}]
[{"$f":"IF('1. Order'!B1298=\"\",\"\",'1. Order'!B1298)","v":""},{"$f":"IF('1. Order'!I1298=\"\",\"\",'1. Order'!I1298)","v":""},{"$f":"IF('1. Order'!J1298=\"\",\"\",'1. Order'!J1298)","v":""},{"$f":"IF('1. Order'!K1298=\"\",\"\",'1. Order'!K1298)","v":""},{"$f":"IF('1. Order'!M1298=\"\",\"\",'1. Order'!M1298)","v":""},null,null,{"$f":"IF('1. Order'!AR1298=\"\",\"\",'1. Order'!AR1298)","v":""},{"$f":"IF('1. Order'!AE1298=\"\",\"\",'1. Order'!AE1298)","v":""}]
[{"$f":"IF('1. Order'!B1299=\"\",\"\",'1. Order'!B1299)","v":""},{"$f":"IF('1. Order'!I1299=\"\",\"\",'1. Order'!I1299)","v":""},{"$f":"IF('1. Order'!J1299=\"\",\"\",'1. Order'!J1299)","v":""},{"$f":"IF('1. Order'!K1299=\"\",\"\",'1. Order'!K1299)","v":""},{"$f":"IF('1. Order'!M1299=\"\",\"\",'1. Order'!M1299)","v":""},null,null,{"$f":"IF('1. Order'!AR1299=\"\",\"\",'1. Order'!AR1299)","v":""},{"$f":"IF('1. Order'!AE1299=\"\",\"\",'1. Order'!AE1299)","v":""}]
[{"$f":"IF('1. Order'!B1300=\"\",\"\",'1. Order'!B1300)","v":""},{"$f":"IF('1. Order'!I1300=\"\",\"\",'1. Order'!I1300)","v":""},{"$f":"IF('1. Order'!J1300=\"\",\"\",'1. Order'!J1300)","v":""},{"$f":"IF('1. Order'!K1300=\"\",\"\",'1. Order'!K1300)","v":""},{"$f":"IF('1. Order'!M1300=\"\",\"\",'1. Order'!M1300)","v":""},null,null,{"$f":"IF('1. Order'!AR1300=\"\",\"\",'1. Order'!AR1300)","v":""},{"$f":"IF('1. Order'!AE1300=\"\",\"\",'1. Order'!AE1300)","v":""}]
[{"$f":"IF('1. Order'!B1301=\"\",\"\",'1. Order'!B1301)","v":""},{"$f":"IF('1. Order'!I1301=\"\",\"\",'1. Order'!I1301)","v":""},{"$f":"IF('1. Order'!J1301=\"\",\"\",'1. Order'!J1301)","v":""},{"$f":"IF('1. Order'!K1301=\"\",\"\",'1. Order'!K1301)","v":""},{"$f":"IF('1. Order'!M1301=\"\",\"\",'1. Order'!M1301)","v":""},null,null,{"$f":"IF('1. Order'!AR1301=\"\",\"\",'1. Order'!AR1301)","v":""},{"$f":"IF('1. Order'!AE1301=\"\",\"\",'1. Order'!AE1301)","v":""}]
[{"$f":"IF('1. Order'!B1302=\"\",\"\",'1. Order'!B1302)","v":""},{"$f":"IF('1. Order'!I1302=\"\",\"\",'1. Order'!I1302)","v":""},{"$f":"IF('1. Order'!J1302=\"\",\"\",'1. Order'!J1302)","v":""},{"$f":"IF('1. Order'!K1302=\"\",\"\",'1. Order'!K1302)","v":""},{"$f":"IF('1. Order'!M1302=\"\",\"\",'1. Order'!M1302)","v":""},null,null,{"$f":"IF('1. Order'!AR1302=\"\",\"\",'1. Order'!AR1302)","v":""},{"$f":"IF('1. Order'!AE1302=\"\",\"\",'1. Order'!AE1302)","v":""}]
[{"$f":"IF('1. Order'!B1303=\"\",\"\",'1. Order'!B1303)","v":""},{"$f":"IF('1. Order'!I1303=\"\",\"\",'1. Order'!I1303)","v":""},{"$f":"IF('1. Order'!J1303=\"\",\"\",'1. Order'!J1303)","v":""},{"$f":"IF('1. Order'!K1303=\"\",\"\",'1. Order'!K1303)","v":""},{"$f":"IF('1. Order'!M1303=\"\",\"\",'1. Order'!M1303)","v":""},null,null,{"$f":"IF('1. Order'!AR1303=\"\",\"\",'1. Order'!AR1303)","v":""},{"$f":"IF('1. Order'!AE1303=\"\",\"\",'1. Order'!AE1303)","v":""}]
[{"$f":"IF('1. Order'!B1304=\"\",\"\",'1. Order'!B1304)","v":""},{"$f":"IF('1. Order'!I1304=\"\",\"\",'1. Order'!I1304)","v":""},{"$f":"IF('1. Order'!J1304=\"\",\"\",'1. Order'!J1304)","v":""},{"$f":"IF('1. Order'!K1304=\"\",\"\",'1. Order'!K1304)","v":""},{"$f":"IF('1. Order'!M1304=\"\",\"\",'1. Order'!M1304)","v":""},null,null,{"$f":"IF('1. Order'!AR1304=\"\",\"\",'1. Order'!AR1304)","v":""},{"$f":"IF('1. Order'!AE1304=\"\",\"\",'1. Order'!AE1304)","v":""}]
[{"$f":"IF('1. Order'!B1305=\"\",\"\",'1. Order'!B1305)","v":""},{"$f":"IF('1. Order'!I1305=\"\",\"\",'1. Order'!I1305)","v":""},{"$f":"IF('1. Order'!J1305=\"\",\"\",'1. Order'!J1305)","v":""},{"$f":"IF('1. Order'!K1305=\"\",\"\",'1. Order'!K1305)","v":""},{"$f":"IF('1. Order'!M1305=\"\",\"\",'1. Order'!M1305)","v":""},null,null,{"$f":"IF('1. Order'!AR1305=\"\",\"\",'1. Order'!AR1305)","v":""},{"$f":"IF('1. Order'!AE1305=\"\",\"\",'1. Order'!AE1305)","v":""}]
[{"$f":"IF('1. Order'!B1306=\"\",\"\",'1. Order'!B1306)","v":""},{"$f":"IF('1. Order'!I1306=\"\",\"\",'1. Order'!I1306)","v":""},{"$f":"IF('1. Order'!J1306=\"\",\"\",'1. Order'!J1306)","v":""},{"$f":"IF('1. Order'!K1306=\"\",\"\",'1. Order'!K1306)","v":""},{"$f":"IF('1. Order'!M1306=\"\",\"\",'1. Order'!M1306)","v":""},null,null,{"$f":"IF('1. Order'!AR1306=\"\",\"\",'1. Order'!AR1306)","v":""},{"$f":"IF('1. Order'!AE1306=\"\",\"\",'1. Order'!AE1306)","v":""}]
[{"$f":"IF('1. Order'!B1307=\"\",\"\",'1. Order'!B1307)","v":""},{"$f":"IF('1. Order'!I1307=\"\",\"\",'1. Order'!I1307)","v":""},{"$f":"IF('1. Order'!J1307=\"\",\"\",'1. Order'!J1307)","v":""},{"$f":"IF('1. Order'!K1307=\"\",\"\",'1. Order'!K1307)","v":""},{"$f":"IF('1. Order'!M1307=\"\",\"\",'1. Order'!M1307)","v":""},null,null,{"$f":"IF('1. Order'!AR1307=\"\",\"\",'1. Order'!AR1307)","v":""},{"$f":"IF('1. Order'!AE1307=\"\",\"\",'1. Order'!AE1307)","v":""}]
[{"$f":"IF('1. Order'!B1308=\"\",\"\",'1. Order'!B1308)","v":""},{"$f":"IF('1. Order'!I1308=\"\",\"\",'1. Order'!I1308)","v":""},{"$f":"IF('1. Order'!J1308=\"\",\"\",'1. Order'!J1308)","v":""},{"$f":"IF('1. Order'!K1308=\"\",\"\",'1. Order'!K1308)","v":""},{"$f":"IF('1. Order'!M1308=\"\",\"\",'1. Order'!M1308)","v":""},null,null,{"$f":"IF('1. Order'!AR1308=\"\",\"\",'1. Order'!AR1308)","v":""},{"$f":"IF('1. Order'!AE1308=\"\",\"\",'1. Order'!AE1308)","v":""}]
[{"$f":"IF('1. Order'!B1309=\"\",\"\",'1. Order'!B1309)","v":""},{"$f":"IF('1. Order'!I1309=\"\",\"\",'1. Order'!I1309)","v":""},{"$f":"IF('1. Order'!J1309=\"\",\"\",'1. Order'!J1309)","v":""},{"$f":"IF('1. Order'!K1309=\"\",\"\",'1. Order'!K1309)","v":""},{"$f":"IF('1. Order'!M1309=\"\",\"\",'1. Order'!M1309)","v":""},null,null,{"$f":"IF('1. Order'!AR1309=\"\",\"\",'1. Order'!AR1309)","v":""},{"$f":"IF('1. Order'!AE1309=\"\",\"\",'1. Order'!AE1309)","v":""}]
[{"$f":"IF('1. Order'!B1310=\"\",\"\",'1. Order'!B1310)","v":""},{"$f":"IF('1. Order'!I1310=\"\",\"\",'1. Order'!I1310)","v":""},{"$f":"IF('1. Order'!J1310=\"\",\"\",'1. Order'!J1310)","v":""},{"$f":"IF('1. Order'!K1310=\"\",\"\",'1. Order'!K1310)","v":""},{"$f":"IF('1. Order'!M1310=\"\",\"\",'1. Order'!M1310)","v":""},null,null,{"$f":"IF('1. Order'!AR1310=\"\",\"\",'1. Order'!AR1310)","v":""},{"$f":"IF('1. Order'!AE1310=\"\",\"\",'1. Order'!AE1310)","v":""}]
[{"$f":"IF('1. Order'!B1311=\"\",\"\",'1. Order'!B1311)","v":""},{"$f":"IF('1. Order'!I1311=\"\",\"\",'1. Order'!I1311)","v":""},{"$f":"IF('1. Order'!J1311=\"\",\"\",'1. Order'!J1311)","v":""},{"$f":"IF('1. Order'!K1311=\"\",\"\",'1. Order'!K1311)","v":""},{"$f":"IF('1. Order'!M1311=\"\",\"\",'1. Order'!M1311)","v":""},null,null,{"$f":"IF('1. Order'!AR1311=\"\",\"\",'1. Order'!AR1311)","v":""},{"$f":"IF('1. Order'!AE1311=\"\",\"\",'1. Order'!AE1311)","v":""}]
[{"$f":"IF('1. Order'!B1312=\"\",\"\",'1. Order'!B1312)","v":""},{"$f":"IF('1. Order'!I1312=\"\",\"\",'1. Order'!I1312)","v":""},{"$f":"IF('1. Order'!J1312=\"\",\"\",'1. Order'!J1312)","v":""},{"$f":"IF('1. Order'!K1312=\"\",\"\",'1. Order'!K1312)","v":""},{"$f":"IF('1. Order'!M1312=\"\",\"\",'1. Order'!M1312)","v":""},null,null,{"$f":"IF('1. Order'!AR1312=\"\",\"\",'1. Order'!AR1312)","v":""},{"$f":"IF('1. Order'!AE1312=\"\",\"\",'1. Order'!AE1312)","v":""}]
[{"$f":"IF('1. Order'!B1313=\"\",\"\",'1. Order'!B1313)","v":""},{"$f":"IF('1. Order'!I1313=\"\",\"\",'1. Order'!I1313)","v":""},{"$f":"IF('1. Order'!J1313=\"\",\"\",'1. Order'!J1313)","v":""},{"$f":"IF('1. Order'!K1313=\"\",\"\",'1. Order'!K1313)","v":""},{"$f":"IF('1. Order'!M1313=\"\",\"\",'1. Order'!M1313)","v":""},null,null,{"$f":"IF('1. Order'!AR1313=\"\",\"\",'1. Order'!AR1313)","v":""},{"$f":"IF('1. Order'!AE1313=\"\",\"\",'1. Order'!AE1313)","v":""}]
[{"$f":"IF('1. Order'!B1314=\"\",\"\",'1. Order'!B1314)","v":""},{"$f":"IF('1. Order'!I1314=\"\",\"\",'1. Order'!I1314)","v":""},{"$f":"IF('1. Order'!J1314=\"\",\"\",'1. Order'!J1314)","v":""},{"$f":"IF('1. Order'!K1314=\"\",\"\",'1. Order'!K1314)","v":""},{"$f":"IF('1. Order'!M1314=\"\",\"\",'1. Order'!M1314)","v":""},null,null,{"$f":"IF('1. Order'!AR1314=\"\",\"\",'1. Order'!AR1314)","v":""},{"$f":"IF('1. Order'!AE1314=\"\",\"\",'1. Order'!AE1314)","v":""}]
[{"$f":"IF('1. Order'!B1315=\"\",\"\",'1. Order'!B1315)","v":""},{"$f":"IF('1. Order'!I1315=\"\",\"\",'1. Order'!I1315)","v":""},{"$f":"IF('1. Order'!J1315=\"\",\"\",'1. Order'!J1315)","v":""},{"$f":"IF('1. Order'!K1315=\"\",\"\",'1. Order'!K1315)","v":""},{"$f":"IF('1. Order'!M1315=\"\",\"\",'1. Order'!M1315)","v":""},null,null,{"$f":"IF('1. Order'!AR1315=\"\",\"\",'1. Order'!AR1315)","v":""},{"$f":"IF('1. Order'!AE1315=\"\",\"\",'1. Order'!AE1315)","v":""}]
[{"$f":"IF('1. Order'!B1316=\"\",\"\",'1. Order'!B1316)","v":""},{"$f":"IF('1. Order'!I1316=\"\",\"\",'1. Order'!I1316)","v":""},{"$f":"IF('1. Order'!J1316=\"\",\"\",'1. Order'!J1316)","v":""},{"$f":"IF('1. Order'!K1316=\"\",\"\",'1. Order'!K1316)","v":""},{"$f":"IF('1. Order'!M1316=\"\",\"\",'1. Order'!M1316)","v":""},null,null,{"$f":"IF('1. Order'!AR1316=\"\",\"\",'1. Order'!AR1316)","v":""},{"$f":"IF('1. Order'!AE1316=\"\",\"\",'1. Order'!AE1316)","v":""}]
[{"$f":"IF('1. Order'!B1317=\"\",\"\",'1. Order'!B1317)","v":""},{"$f":"IF('1. Order'!I1317=\"\",\"\",'1. Order'!I1317)","v":""},{"$f":"IF('1. Order'!J1317=\"\",\"\",'1. Order'!J1317)","v":""},{"$f":"IF('1. Order'!K1317=\"\",\"\",'1. Order'!K1317)","v":""},{"$f":"IF('1. Order'!M1317=\"\",\"\",'1. Order'!M1317)","v":""},null,null,{"$f":"IF('1. Order'!AR1317=\"\",\"\",'1. Order'!AR1317)","v":""},{"$f":"IF('1. Order'!AE1317=\"\",\"\",'1. Order'!AE1317)","v":""}]
[{"$f":"IF('1. Order'!B1318=\"\",\"\",'1. Order'!B1318)","v":""},{"$f":"IF('1. Order'!I1318=\"\",\"\",'1. Order'!I1318)","v":""},{"$f":"IF('1. Order'!J1318=\"\",\"\",'1. Order'!J1318)","v":""},{"$f":"IF('1. Order'!K1318=\"\",\"\",'1. Order'!K1318)","v":""},{"$f":"IF('1. Order'!M1318=\"\",\"\",'1. Order'!M1318)","v":""},null,null,{"$f":"IF('1. Order'!AR1318=\"\",\"\",'1. Order'!AR1318)","v":""},{"$f":"IF('1. Order'!AE1318=\"\",\"\",'1. Order'!AE1318)","v":""}]
[{"$f":"IF('1. Order'!B1319=\"\",\"\",'1. Order'!B1319)","v":""},{"$f":"IF('1. Order'!I1319=\"\",\"\",'1. Order'!I1319)","v":""},{"$f":"IF('1. Order'!J1319=\"\",\"\",'1. Order'!J1319)","v":""},{"$f":"IF('1. Order'!K1319=\"\",\"\",'1. Order'!K1319)","v":""},{"$f":"IF('1. Order'!M1319=\"\",\"\",'1. Order'!M1319)","v":""},null,null,{"$f":"IF('1. Order'!AR1319=\"\",\"\",'1. Order'!AR1319)","v":""},{"$f":"IF('1. Order'!AE1319=\"\",\"\",'1. Order'!AE1319)","v":""}]
[{"$f":"IF('1. Order'!B1320=\"\",\"\",'1. Order'!B1320)","v":""},{"$f":"IF('1. Order'!I1320=\"\",\"\",'1. Order'!I1320)","v":""},{"$f":"IF('1. Order'!J1320=\"\",\"\",'1. Order'!J1320)","v":""},{"$f":"IF('1. Order'!K1320=\"\",\"\",'1. Order'!K1320)","v":""},{"$f":"IF('1. Order'!M1320=\"\",\"\",'1. Order'!M1320)","v":""},null,null,{"$f":"IF('1. Order'!AR1320=\"\",\"\",'1. Order'!AR1320)","v":""},{"$f":"IF('1. Order'!AE1320=\"\",\"\",'1. Order'!AE1320)","v":""}]
[{"$f":"IF('1. Order'!B1321=\"\",\"\",'1. Order'!B1321)","v":""},{"$f":"IF('1. Order'!I1321=\"\",\"\",'1. Order'!I1321)","v":""},{"$f":"IF('1. Order'!J1321=\"\",\"\",'1. Order'!J1321)","v":""},{"$f":"IF('1. Order'!K1321=\"\",\"\",'1. Order'!K1321)","v":""},{"$f":"IF('1. Order'!M1321=\"\",\"\",'1. Order'!M1321)","v":""},null,null,{"$f":"IF('1. Order'!AR1321=\"\",\"\",'1. Order'!AR1321)","v":""},{"$f":"IF('1. Order'!AE1321=\"\",\"\",'1. Order'!AE1321)","v":""}]
[{"$f":"IF('1. Order'!B1322=\"\",\"\",'1. Order'!B1322)","v":""},{"$f":"IF('1. Order'!I1322=\"\",\"\",'1. Order'!I1322)","v":""},{"$f":"IF('1. Order'!J1322=\"\",\"\",'1. Order'!J1322)","v":""},{"$f":"IF('1. Order'!K1322=\"\",\"\",'1. Order'!K1322)","v":""},{"$f":"IF('1. Order'!M1322=\"\",\"\",'1. Order'!M1322)","v":""},null,null,{"$f":"IF('1. Order'!AR1322=\"\",\"\",'1. Order'!AR1322)","v":""},{"$f":"IF('1. Order'!AE1322=\"\",\"\",'1. Order'!AE1322)","v":""}]
[{"$f":"IF('1. Order'!B1323=\"\",\"\",'1. Order'!B1323)","v":""},{"$f":"IF('1. Order'!I1323=\"\",\"\",'1. Order'!I1323)","v":""},{"$f":"IF('1. Order'!J1323=\"\",\"\",'1. Order'!J1323)","v":""},{"$f":"IF('1. Order'!K1323=\"\",\"\",'1. Order'!K1323)","v":""},{"$f":"IF('1. Order'!M1323=\"\",\"\",'1. Order'!M1323)","v":""},null,null,{"$f":"IF('1. Order'!AR1323=\"\",\"\",'1. Order'!AR1323)","v":""},{"$f":"IF('1. Order'!AE1323=\"\",\"\",'1. Order'!AE1323)","v":""}]
[{"$f":"IF('1. Order'!B1324=\"\",\"\",'1. Order'!B1324)","v":""},{"$f":"IF('1. Order'!I1324=\"\",\"\",'1. Order'!I1324)","v":""},{"$f":"IF('1. Order'!J1324=\"\",\"\",'1. Order'!J1324)","v":""},{"$f":"IF('1. Order'!K1324=\"\",\"\",'1. Order'!K1324)","v":""},{"$f":"IF('1. Order'!M1324=\"\",\"\",'1. Order'!M1324)","v":""},null,null,{"$f":"IF('1. Order'!AR1324=\"\",\"\",'1. Order'!AR1324)","v":""},{"$f":"IF('1. Order'!AE1324=\"\",\"\",'1. Order'!AE1324)","v":""}]
[{"$f":"IF('1. Order'!B1325=\"\",\"\",'1. Order'!B1325)","v":""},{"$f":"IF('1. Order'!I1325=\"\",\"\",'1. Order'!I1325)","v":""},{"$f":"IF('1. Order'!J1325=\"\",\"\",'1. Order'!J1325)","v":""},{"$f":"IF('1. Order'!K1325=\"\",\"\",'1. Order'!K1325)","v":""},{"$f":"IF('1. Order'!M1325=\"\",\"\",'1. Order'!M1325)","v":""},null,null,{"$f":"IF('1. Order'!AR1325=\"\",\"\",'1. Order'!AR1325)","v":""},{"$f":"IF('1. Order'!AE1325=\"\",\"\",'1. Order'!AE1325)","v":""}]
[{"$f":"IF('1. Order'!B1326=\"\",\"\",'1. Order'!B1326)","v":""},{"$f":"IF('1. Order'!I1326=\"\",\"\",'1. Order'!I1326)","v":""},{"$f":"IF('1. Order'!J1326=\"\",\"\",'1. Order'!J1326)","v":""},{"$f":"IF('1. Order'!K1326=\"\",\"\",'1. Order'!K1326)","v":""},{"$f":"IF('1. Order'!M1326=\"\",\"\",'1. Order'!M1326)","v":""},null,null,{"$f":"IF('1. Order'!AR1326=\"\",\"\",'1. Order'!AR1326)","v":""},{"$f":"IF('1. Order'!AE1326=\"\",\"\",'1. Order'!AE1326)","v":""}]
[{"$f":"IF('1. Order'!B1327=\"\",\"\",'1. Order'!B1327)","v":""},{"$f":"IF('1. Order'!I1327=\"\",\"\",'1. Order'!I1327)","v":""},{"$f":"IF('1. Order'!J1327=\"\",\"\",'1. Order'!J1327)","v":""},{"$f":"IF('1. Order'!K1327=\"\",\"\",'1. Order'!K1327)","v":""},{"$f":"IF('1. Order'!M1327=\"\",\"\",'1. Order'!M1327)","v":""},null,null,{"$f":"IF('1. Order'!AR1327=\"\",\"\",'1. Order'!AR1327)","v":""},{"$f":"IF('1. Order'!AE1327=\"\",\"\",'1. Order'!AE1327)","v":""}]
[{"$f":"IF('1. Order'!B1328=\"\",\"\",'1. Order'!B1328)","v":""},{"$f":"IF('1. Order'!I1328=\"\",\"\",'1. Order'!I1328)","v":""},{"$f":"IF('1. Order'!J1328=\"\",\"\",'1. Order'!J1328)","v":""},{"$f":"IF('1. Order'!K1328=\"\",\"\",'1. Order'!K1328)","v":""},{"$f":"IF('1. Order'!M1328=\"\",\"\",'1. Order'!M1328)","v":""},null,null,{"$f":"IF('1. Order'!AR1328=\"\",\"\",'1. Order'!AR1328)","v":""},{"$f":"IF('1. Order'!AE1328=\"\",\"\",'1. Order'!AE1328)","v":""}]
[{"$f":"IF('1. Order'!B1329=\"\",\"\",'1. Order'!B1329)","v":""},{"$f":"IF('1. Order'!I1329=\"\",\"\",'1. Order'!I1329)","v":""},{"$f":"IF('1. Order'!J1329=\"\",\"\",'1. Order'!J1329)","v":""},{"$f":"IF('1. Order'!K1329=\"\",\"\",'1. Order'!K1329)","v":""},{"$f":"IF('1. Order'!M1329=\"\",\"\",'1. Order'!M1329)","v":""},null,null,{"$f":"IF('1. Order'!AR1329=\"\",\"\",'1. Order'!AR1329)","v":""},{"$f":"IF('1. Order'!AE1329=\"\",\"\",'1. Order'!AE1329)","v":""}]
[{"$f":"IF('1. Order'!B1330=\"\",\"\",'1. Order'!B1330)","v":""},{"$f":"IF('1. Order'!I1330=\"\",\"\",'1. Order'!I1330)","v":""},{"$f":"IF('1. Order'!J1330=\"\",\"\",'1. Order'!J1330)","v":""},{"$f":"IF('1. Order'!K1330=\"\",\"\",'1. Order'!K1330)","v":""},{"$f":"IF('1. Order'!M1330=\"\",\"\",'1. Order'!M1330)","v":""},null,null,{"$f":"IF('1. Order'!AR1330=\"\",\"\",'1. Order'!AR1330)","v":""},{"$f":"IF('1. Order'!AE1330=\"\",\"\",'1. Order'!AE1330)","v":""}]
[{"$f":"IF('1. Order'!B1331=\"\",\"\",'1. Order'!B1331)","v":""},{"$f":"IF('1. Order'!I1331=\"\",\"\",'1. Order'!I1331)","v":""},{"$f":"IF('1. Order'!J1331=\"\",\"\",'1. Order'!J1331)","v":""},{"$f":"IF('1. Order'!K1331=\"\",\"\",'1. Order'!K1331)","v":""},{"$f":"IF('1. Order'!M1331=\"\",\"\",'1. Order'!M1331)","v":""},null,null,{"$f":"IF('1. Order'!AR1331=\"\",\"\",'1. Order'!AR1331)","v":""},{"$f":"IF('1. Order'!AE1331=\"\",\"\",'1. Order'!AE1331)","v":""}]
[{"$f":"IF('1. Order'!B1332=\"\",\"\",'1. Order'!B1332)","v":""},{"$f":"IF('1. Order'!I1332=\"\",\"\",'1. Order'!I1332)","v":""},{"$f":"IF('1. Order'!J1332=\"\",\"\",'1. Order'!J1332)","v":""},{"$f":"IF('1. Order'!K1332=\"\",\"\",'1. Order'!K1332)","v":""},{"$f":"IF('1. Order'!M1332=\"\",\"\",'1. Order'!M1332)","v":""},null,null,{"$f":"IF('1. Order'!AR1332=\"\",\"\",'1. Order'!AR1332)","v":""},{"$f":"IF('1. Order'!AE1332=\"\",\"\",'1. Order'!AE1332)","v":""}]
[{"$f":"IF('1. Order'!B1333=\"\",\"\",'1. Order'!B1333)","v":""},{"$f":"IF('1. Order'!I1333=\"\",\"\",'1. Order'!I1333)","v":""},{"$f":"IF('1. Order'!J1333=\"\",\"\",'1. Order'!J1333)","v":""},{"$f":"IF('1. Order'!K1333=\"\",\"\",'1. Order'!K1333)","v":""},{"$f":"IF('1. Order'!M1333=\"\",\"\",'1. Order'!M1333)","v":""},null,null,{"$f":"IF('1. Order'!AR1333=\"\",\"\",'1. Order'!AR1333)","v":""},{"$f":"IF('1. Order'!AE1333=\"\",\"\",'1. Order'!AE1333)","v":""}]
[{"$f":"IF('1. Order'!B1334=\"\",\"\",'1. Order'!B1334)","v":""},{"$f":"IF('1. Order'!I1334=\"\",\"\",'1. Order'!I1334)","v":""},{"$f":"IF('1. Order'!J1334=\"\",\"\",'1. Order'!J1334)","v":""},{"$f":"IF('1. Order'!K1334=\"\",\"\",'1. Order'!K1334)","v":""},{"$f":"IF('1. Order'!M1334=\"\",\"\",'1. Order'!M1334)","v":""},null,null,{"$f":"IF('1. Order'!AR1334=\"\",\"\",'1. Order'!AR1334)","v":""},{"$f":"IF('1. Order'!AE1334=\"\",\"\",'1. Order'!AE1334)","v":""}]
[{"$f":"IF('1. Order'!B1335=\"\",\"\",'1. Order'!B1335)","v":""},{"$f":"IF('1. Order'!I1335=\"\",\"\",'1. Order'!I1335)","v":""},{"$f":"IF('1. Order'!J1335=\"\",\"\",'1. Order'!J1335)","v":""},{"$f":"IF('1. Order'!K1335=\"\",\"\",'1. Order'!K1335)","v":""},{"$f":"IF('1. Order'!M1335=\"\",\"\",'1. Order'!M1335)","v":""},null,null,{"$f":"IF('1. Order'!AR1335=\"\",\"\",'1. Order'!AR1335)","v":""},{"$f":"IF('1. Order'!AE1335=\"\",\"\",'1. Order'!AE1335)","v":""}]
[{"$f":"IF('1. Order'!B1336=\"\",\"\",'1. Order'!B1336)","v":""},{"$f":"IF('1. Order'!I1336=\"\",\"\",'1. Order'!I1336)","v":""},{"$f":"IF('1. Order'!J1336=\"\",\"\",'1. Order'!J1336)","v":""},{"$f":"IF('1. Order'!K1336=\"\",\"\",'1. Order'!K1336)","v":""},{"$f":"IF('1. Order'!M1336=\"\",\"\",'1. Order'!M1336)","v":""},null,null,{"$f":"IF('1. Order'!AR1336=\"\",\"\",'1. Order'!AR1336)","v":""},{"$f":"IF('1. Order'!AE1336=\"\",\"\",'1. Order'!AE1336)","v":""}]
[{"$f":"IF('1. Order'!B1337=\"\",\"\",'1. Order'!B1337)","v":""},{"$f":"IF('1. Order'!I1337=\"\",\"\",'1. Order'!I1337)","v":""},{"$f":"IF('1. Order'!J1337=\"\",\"\",'1. Order'!J1337)","v":""},{"$f":"IF('1. Order'!K1337=\"\",\"\",'1. Order'!K1337)","v":""},{"$f":"IF('1. Order'!M1337=\"\",\"\",'1. Order'!M1337)","v":""},null,null,{"$f":"IF('1. Order'!AR1337=\"\",\"\",'1. Order'!AR1337)","v":""},{"$f":"IF('1. Order'!AE1337=\"\",\"\",'1. Order'!AE1337)","v":""}]
[{"$f":"IF('1. Order'!B1338=\"\",\"\",'1. Order'!B1338)","v":""},{"$f":"IF('1. Order'!I1338=\"\",\"\",'1. Order'!I1338)","v":""},{"$f":"IF('1. Order'!J1338=\"\",\"\",'1. Order'!J1338)","v":""},{"$f":"IF('1. Order'!K1338=\"\",\"\",'1. Order'!K1338)","v":""},{"$f":"IF('1. Order'!M1338=\"\",\"\",'1. Order'!M1338)","v":""},null,null,{"$f":"IF('1. Order'!AR1338=\"\",\"\",'1. Order'!AR1338)","v":""},{"$f":"IF('1. Order'!AE1338=\"\",\"\",'1. Order'!AE1338)","v":""}]
[{"$f":"IF('1. Order'!B1339=\"\",\"\",'1. Order'!B1339)","v":""},{"$f":"IF('1. Order'!I1339=\"\",\"\",'1. Order'!I1339)","v":""},{"$f":"IF('1. Order'!J1339=\"\",\"\",'1. Order'!J1339)","v":""},{"$f":"IF('1. Order'!K1339=\"\",\"\",'1. Order'!K1339)","v":""},{"$f":"IF('1. Order'!M1339=\"\",\"\",'1. Order'!M1339)","v":""},null,null,{"$f":"IF('1. Order'!AR1339=\"\",\"\",'1. Order'!AR1339)","v":""},{"$f":"IF('1. Order'!AE1339=\"\",\"\",'1. Order'!AE1339)","v":""}]
[{"$f":"IF('1. Order'!B1340=\"\",\"\",'1. Order'!B1340)","v":""},{"$f":"IF('1. Order'!I1340=\"\",\"\",'1. Order'!I1340)","v":""},{"$f":"IF('1. Order'!J1340=\"\",\"\",'1. Order'!J1340)","v":""},{"$f":"IF('1. Order'!K1340=\"\",\"\",'1. Order'!K1340)","v":""},{"$f":"IF('1. Order'!M1340=\"\",\"\",'1. Order'!M1340)","v":""},null,null,{"$f":"IF('1. Order'!AR1340=\"\",\"\",'1. Order'!AR1340)","v":""},{"$f":"IF('1. Order'!AE1340=\"\",\"\",'1. Order'!AE1340)","v":""}]
[{"$f":"IF('1. Order'!B1341=\"\",\"\",'1. Order'!B1341)","v":""},{"$f":"IF('1. Order'!I1341=\"\",\"\",'1. Order'!I1341)","v":""},{"$f":"IF('1. Order'!J1341=\"\",\"\",'1. Order'!J1341)","v":""},{"$f":"IF('1. Order'!K1341=\"\",\"\",'1. Order'!K1341)","v":""},{"$f":"IF('1. Order'!M1341=\"\",\"\",'1. Order'!M1341)","v":""},null,null,{"$f":"IF('1. Order'!AR1341=\"\",\"\",'1. Order'!AR1341)","v":""},{"$f":"IF('1. Order'!AE1341=\"\",\"\",'1. Order'!AE1341)","v":""}]
[{"$f":"IF('1. Order'!B1342=\"\",\"\",'1. Order'!B1342)","v":""},{"$f":"IF('1. Order'!I1342=\"\",\"\",'1. Order'!I1342)","v":""},{"$f":"IF('1. Order'!J1342=\"\",\"\",'1. Order'!J1342)","v":""},{"$f":"IF('1. Order'!K1342=\"\",\"\",'1. Order'!K1342)","v":""},{"$f":"IF('1. Order'!M1342=\"\",\"\",'1. Order'!M1342)","v":""},null,null,{"$f":"IF('1. Order'!AR1342=\"\",\"\",'1. Order'!AR1342)","v":""},{"$f":"IF('1. Order'!AE1342=\"\",\"\",'1. Order'!AE1342)","v":""}]
[{"$f":"IF('1. Order'!B1343=\"\",\"\",'1. Order'!B1343)","v":""},{"$f":"IF('1. Order'!I1343=\"\",\"\",'1. Order'!I1343)","v":""},{"$f":"IF('1. Order'!J1343=\"\",\"\",'1. Order'!J1343)","v":""},{"$f":"IF('1. Order'!K1343=\"\",\"\",'1. Order'!K1343)","v":""},{"$f":"IF('1. Order'!M1343=\"\",\"\",'1. Order'!M1343)","v":""},null,null,{"$f":"IF('1. Order'!AR1343=\"\",\"\",'1. Order'!AR1343)","v":""},{"$f":"IF('1. Order'!AE1343=\"\",\"\",'1. Order'!AE1343)","v":""}]
[{"$f":"IF('1. Order'!B1344=\"\",\"\",'1. Order'!B1344)","v":""},{"$f":"IF('1. Order'!I1344=\"\",\"\",'1. Order'!I1344)","v":""},{"$f":"IF('1. Order'!J1344=\"\",\"\",'1. Order'!J1344)","v":""},{"$f":"IF('1. Order'!K1344=\"\",\"\",'1. Order'!K1344)","v":""},{"$f":"IF('1. Order'!M1344=\"\",\"\",'1. Order'!M1344)","v":""},null,null,{"$f":"IF('1. Order'!AR1344=\"\",\"\",'1. Order'!AR1344)","v":""},{"$f":"IF('1. Order'!AE1344=\"\",\"\",'1. Order'!AE1344)","v":""}]
[{"$f":"IF('1. Order'!B1345=\"\",\"\",'1. Order'!B1345)","v":""},{"$f":"IF('1. Order'!I1345=\"\",\"\",'1. Order'!I1345)","v":""},{"$f":"IF('1. Order'!J1345=\"\",\"\",'1. Order'!J1345)","v":""},{"$f":"IF('1. Order'!K1345=\"\",\"\",'1. Order'!K1345)","v":""},{"$f":"IF('1. Order'!M1345=\"\",\"\",'1. Order'!M1345)","v":""},null,null,{"$f":"IF('1. Order'!AR1345=\"\",\"\",'1. Order'!AR1345)","v":""},{"$f":"IF('1. Order'!AE1345=\"\",\"\",'1. Order'!AE1345)","v":""}]
[{"$f":"IF('1. Order'!B1346=\"\",\"\",'1. Order'!B1346)","v":""},{"$f":"IF('1. Order'!I1346=\"\",\"\",'1. Order'!I1346)","v":""},{"$f":"IF('1. Order'!J1346=\"\",\"\",'1. Order'!J1346)","v":""},{"$f":"IF('1. Order'!K1346=\"\",\"\",'1. Order'!K1346)","v":""},{"$f":"IF('1. Order'!M1346=\"\",\"\",'1. Order'!M1346)","v":""},null,null,{"$f":"IF('1. Order'!AR1346=\"\",\"\",'1. Order'!AR1346)","v":""},{"$f":"IF('1. Order'!AE1346=\"\",\"\",'1. Order'!AE1346)","v":""}]
[{"$f":"IF('1. Order'!B1347=\"\",\"\",'1. Order'!B1347)","v":""},{"$f":"IF('1. Order'!I1347=\"\",\"\",'1. Order'!I1347)","v":""},{"$f":"IF('1. Order'!J1347=\"\",\"\",'1. Order'!J1347)","v":""},{"$f":"IF('1. Order'!K1347=\"\",\"\",'1. Order'!K1347)","v":""},{"$f":"IF('1. Order'!M1347=\"\",\"\",'1. Order'!M1347)","v":""},null,null,{"$f":"IF('1. Order'!AR1347=\"\",\"\",'1. Order'!AR1347)","v":""},{"$f":"IF('1. Order'!AE1347=\"\",\"\",'1. Order'!AE1347)","v":""}]
[{"$f":"IF('1. Order'!B1348=\"\",\"\",'1. Order'!B1348)","v":""},{"$f":"IF('1. Order'!I1348=\"\",\"\",'1. Order'!I1348)","v":""},{"$f":"IF('1. Order'!J1348=\"\",\"\",'1. Order'!J1348)","v":""},{"$f":"IF('1. Order'!K1348=\"\",\"\",'1. Order'!K1348)","v":""},{"$f":"IF('1. Order'!M1348=\"\",\"\",'1. Order'!M1348)","v":""},null,null,{"$f":"IF('1. Order'!AR1348=\"\",\"\",'1. Order'!AR1348)","v":""},{"$f":"IF('1. Order'!AE1348=\"\",\"\",'1. Order'!AE1348)","v":""}]
[{"$f":"IF('1. Order'!B1349=\"\",\"\",'1. Order'!B1349)","v":""},{"$f":"IF('1. Order'!I1349=\"\",\"\",'1. Order'!I1349)","v":""},{"$f":"IF('1. Order'!J1349=\"\",\"\",'1. Order'!J1349)","v":""},{"$f":"IF('1. Order'!K1349=\"\",\"\",'1. Order'!K1349)","v":""},{"$f":"IF('1. Order'!M1349=\"\",\"\",'1. Order'!M1349)","v":""},null,null,{"$f":"IF('1. Order'!AR1349=\"\",\"\",'1. Order'!AR1349)","v":""},{"$f":"IF('1. Order'!AE1349=\"\",\"\",'1. Order'!AE1349)","v":""}]
[{"$f":"IF('1. Order'!B1350=\"\",\"\",'1. Order'!B1350)","v":""},{"$f":"IF('1. Order'!I1350=\"\",\"\",'1. Order'!I1350)","v":""},{"$f":"IF('1. Order'!J1350=\"\",\"\",'1. Order'!J1350)","v":""},{"$f":"IF('1. Order'!K1350=\"\",\"\",'1. Order'!K1350)","v":""},{"$f":"IF('1. Order'!M1350=\"\",\"\",'1. Order'!M1350)","v":""},null,null,{"$f":"IF('1. Order'!AR1350=\"\",\"\",'1. Order'!AR1350)","v":""},{"$f":"IF('1. Order'!AE1350=\"\",\"\",'1. Order'!AE1350)","v":""}]
[{"$f":"IF('1. Order'!B1351=\"\",\"\",'1. Order'!B1351)","v":""},{"$f":"IF('1. Order'!I1351=\"\",\"\",'1. Order'!I1351)","v":""},{"$f":"IF('1. Order'!J1351=\"\",\"\",'1. Order'!J1351)","v":""},{"$f":"IF('1. Order'!K1351=\"\",\"\",'1. Order'!K1351)","v":""},{"$f":"IF('1. Order'!M1351=\"\",\"\",'1. Order'!M1351)","v":""},null,null,{"$f":"IF('1. Order'!AR1351=\"\",\"\",'1. Order'!AR1351)","v":""},{"$f":"IF('1. Order'!AE1351=\"\",\"\",'1. Order'!AE1351)","v":""}]
[{"$f":"IF('1. Order'!B1352=\"\",\"\",'1. Order'!B1352)","v":""},{"$f":"IF('1. Order'!I1352=\"\",\"\",'1. Order'!I1352)","v":""},{"$f":"IF('1. Order'!J1352=\"\",\"\",'1. Order'!J1352)","v":""},{"$f":"IF('1. Order'!K1352=\"\",\"\",'1. Order'!K1352)","v":""},{"$f":"IF('1. Order'!M1352=\"\",\"\",'1. Order'!M1352)","v":""},null,null,{"$f":"IF('1. Order'!AR1352=\"\",\"\",'1. Order'!AR1352)","v":""},{"$f":"IF('1. Order'!AE1352=\"\",\"\",'1. Order'!AE1352)","v":""}]
[{"$f":"IF('1. Order'!B1353=\"\",\"\",'1. Order'!B1353)","v":""},{"$f":"IF('1. Order'!I1353=\"\",\"\",'1. Order'!I1353)","v":""},{"$f":"IF('1. Order'!J1353=\"\",\"\",'1. Order'!J1353)","v":""},{"$f":"IF('1. Order'!K1353=\"\",\"\",'1. Order'!K1353)","v":""},{"$f":"IF('1. Order'!M1353=\"\",\"\",'1. Order'!M1353)","v":""},null,null,{"$f":"IF('1. Order'!AR1353=\"\",\"\",'1. Order'!AR1353)","v":""},{"$f":"IF('1. Order'!AE1353=\"\",\"\",'1. Order'!AE1353)","v":""}]
[{"$f":"IF('1. Order'!B1354=\"\",\"\",'1. Order'!B1354)","v":""},{"$f":"IF('1. Order'!I1354=\"\",\"\",'1. Order'!I1354)","v":""},{"$f":"IF('1. Order'!J1354=\"\",\"\",'1. Order'!J1354)","v":""},{"$f":"IF('1. Order'!K1354=\"\",\"\",'1. Order'!K1354)","v":""},{"$f":"IF('1. Order'!M1354=\"\",\"\",'1. Order'!M1354)","v":""},null,null,{"$f":"IF('1. Order'!AR1354=\"\",\"\",'1. Order'!AR1354)","v":""},{"$f":"IF('1. Order'!AE1354=\"\",\"\",'1. Order'!AE1354)","v":""}]
[{"$f":"IF('1. Order'!B1355=\"\",\"\",'1. Order'!B1355)","v":""},{"$f":"IF('1. Order'!I1355=\"\",\"\",'1. Order'!I1355)","v":""},{"$f":"IF('1. Order'!J1355=\"\",\"\",'1. Order'!J1355)","v":""},{"$f":"IF('1. Order'!K1355=\"\",\"\",'1. Order'!K1355)","v":""},{"$f":"IF('1. Order'!M1355=\"\",\"\",'1. Order'!M1355)","v":""},null,null,{"$f":"IF('1. Order'!AR1355=\"\",\"\",'1. Order'!AR1355)","v":""},{"$f":"IF('1. Order'!AE1355=\"\",\"\",'1. Order'!AE1355)","v":""}]
[{"$f":"IF('1. Order'!B1356=\"\",\"\",'1. Order'!B1356)","v":""},{"$f":"IF('1. Order'!I1356=\"\",\"\",'1. Order'!I1356)","v":""},{"$f":"IF('1. Order'!J1356=\"\",\"\",'1. Order'!J1356)","v":""},{"$f":"IF('1. Order'!K1356=\"\",\"\",'1. Order'!K1356)","v":""},{"$f":"IF('1. Order'!M1356=\"\",\"\",'1. Order'!M1356)","v":""},null,null,{"$f":"IF('1. Order'!AR1356=\"\",\"\",'1. Order'!AR1356)","v":""},{"$f":"IF('1. Order'!AE1356=\"\",\"\",'1. Order'!AE1356)","v":""}]
[{"$f":"IF('1. Order'!B1357=\"\",\"\",'1. Order'!B1357)","v":""},{"$f":"IF('1. Order'!I1357=\"\",\"\",'1. Order'!I1357)","v":""},{"$f":"IF('1. Order'!J1357=\"\",\"\",'1. Order'!J1357)","v":""},{"$f":"IF('1. Order'!K1357=\"\",\"\",'1. Order'!K1357)","v":""},{"$f":"IF('1. Order'!M1357=\"\",\"\",'1. Order'!M1357)","v":""},null,null,{"$f":"IF('1. Order'!AR1357=\"\",\"\",'1. Order'!AR1357)","v":""},{"$f":"IF('1. Order'!AE1357=\"\",\"\",'1. Order'!AE1357)","v":""}]
[{"$f":"IF('1. Order'!B1358=\"\",\"\",'1. Order'!B1358)","v":""},{"$f":"IF('1. Order'!I1358=\"\",\"\",'1. Order'!I1358)","v":""},{"$f":"IF('1. Order'!J1358=\"\",\"\",'1. Order'!J1358)","v":""},{"$f":"IF('1. Order'!K1358=\"\",\"\",'1. Order'!K1358)","v":""},{"$f":"IF('1. Order'!M1358=\"\",\"\",'1. Order'!M1358)","v":""},null,null,{"$f":"IF('1. Order'!AR1358=\"\",\"\",'1. Order'!AR1358)","v":""},{"$f":"IF('1. Order'!AE1358=\"\",\"\",'1. Order'!AE1358)","v":""}]
[{"$f":"IF('1. Order'!B1359=\"\",\"\",'1. Order'!B1359)","v":""},{"$f":"IF('1. Order'!I1359=\"\",\"\",'1. Order'!I1359)","v":""},{"$f":"IF('1. Order'!J1359=\"\",\"\",'1. Order'!J1359)","v":""},{"$f":"IF('1. Order'!K1359=\"\",\"\",'1. Order'!K1359)","v":""},{"$f":"IF('1. Order'!M1359=\"\",\"\",'1. Order'!M1359)","v":""},null,null,{"$f":"IF('1. Order'!AR1359=\"\",\"\",'1. Order'!AR1359)","v":""},{"$f":"IF('1. Order'!AE1359=\"\",\"\",'1. Order'!AE1359)","v":""}]
[{"$f":"IF('1. Order'!B1360=\"\",\"\",'1. Order'!B1360)","v":""},{"$f":"IF('1. Order'!I1360=\"\",\"\",'1. Order'!I1360)","v":""},{"$f":"IF('1. Order'!J1360=\"\",\"\",'1. Order'!J1360)","v":""},{"$f":"IF('1. Order'!K1360=\"\",\"\",'1. Order'!K1360)","v":""},{"$f":"IF('1. Order'!M1360=\"\",\"\",'1. Order'!M1360)","v":""},null,null,{"$f":"IF('1. Order'!AR1360=\"\",\"\",'1. Order'!AR1360)","v":""},{"$f":"IF('1. Order'!AE1360=\"\",\"\",'1. Order'!AE1360)","v":""}]
[{"$f":"IF('1. Order'!B1361=\"\",\"\",'1. Order'!B1361)","v":""},{"$f":"IF('1. Order'!I1361=\"\",\"\",'1. Order'!I1361)","v":""},{"$f":"IF('1. Order'!J1361=\"\",\"\",'1. Order'!J1361)","v":""},{"$f":"IF('1. Order'!K1361=\"\",\"\",'1. Order'!K1361)","v":""},{"$f":"IF('1. Order'!M1361=\"\",\"\",'1. Order'!M1361)","v":""},null,null,{"$f":"IF('1. Order'!AR1361=\"\",\"\",'1. Order'!AR1361)","v":""},{"$f":"IF('1. Order'!AE1361=\"\",\"\",'1. Order'!AE1361)","v":""}]
[{"$f":"IF('1. Order'!B1362=\"\",\"\",'1. Order'!B1362)","v":""},{"$f":"IF('1. Order'!I1362=\"\",\"\",'1. Order'!I1362)","v":""},{"$f":"IF('1. Order'!J1362=\"\",\"\",'1. Order'!J1362)","v":""},{"$f":"IF('1. Order'!K1362=\"\",\"\",'1. Order'!K1362)","v":""},{"$f":"IF('1. Order'!M1362=\"\",\"\",'1. Order'!M1362)","v":""},null,null,{"$f":"IF('1. Order'!AR1362=\"\",\"\",'1. Order'!AR1362)","v":""},{"$f":"IF('1. Order'!AE1362=\"\",\"\",'1. Order'!AE1362)","v":""}]
[{"$f":"IF('1. Order'!B1363=\"\",\"\",'1. Order'!B1363)","v":""},{"$f":"IF('1. Order'!I1363=\"\",\"\",'1. Order'!I1363)","v":""},{"$f":"IF('1. Order'!J1363=\"\",\"\",'1. Order'!J1363)","v":""},{"$f":"IF('1. Order'!K1363=\"\",\"\",'1. Order'!K1363)","v":""},{"$f":"IF('1. Order'!M1363=\"\",\"\",'1. Order'!M1363)","v":""},null,null,{"$f":"IF('1. Order'!AR1363=\"\",\"\",'1. Order'!AR1363)","v":""},{"$f":"IF('1. Order'!AE1363=\"\",\"\",'1. Order'!AE1363)","v":""}]
[{"$f":"IF('1. Order'!B1364=\"\",\"\",'1. Order'!B1364)","v":""},{"$f":"IF('1. Order'!I1364=\"\",\"\",'1. Order'!I1364)","v":""},{"$f":"IF('1. Order'!J1364=\"\",\"\",'1. Order'!J1364)","v":""},{"$f":"IF('1. Order'!K1364=\"\",\"\",'1. Order'!K1364)","v":""},{"$f":"IF('1. Order'!M1364=\"\",\"\",'1. Order'!M1364)","v":""},null,null,{"$f":"IF('1. Order'!AR1364=\"\",\"\",'1. Order'!AR1364)","v":""},{"$f":"IF('1. Order'!AE1364=\"\",\"\",'1. Order'!AE1364)","v":""}]
[{"$f":"IF('1. Order'!B1365=\"\",\"\",'1. Order'!B1365)","v":""},{"$f":"IF('1. Order'!I1365=\"\",\"\",'1. Order'!I1365)","v":""},{"$f":"IF('1. Order'!J1365=\"\",\"\",'1. Order'!J1365)","v":""},{"$f":"IF('1. Order'!K1365=\"\",\"\",'1. Order'!K1365)","v":""},{"$f":"IF('1. Order'!M1365=\"\",\"\",'1. Order'!M1365)","v":""},null,null,{"$f":"IF('1. Order'!AR1365=\"\",\"\",'1. Order'!AR1365)","v":""},{"$f":"IF('1. Order'!AE1365=\"\",\"\",'1. Order'!AE1365)","v":""}]
[{"$f":"IF('1. Order'!B1366=\"\",\"\",'1. Order'!B1366)","v":""},{"$f":"IF('1. Order'!I1366=\"\",\"\",'1. Order'!I1366)","v":""},{"$f":"IF('1. Order'!J1366=\"\",\"\",'1. Order'!J1366)","v":""},{"$f":"IF('1. Order'!K1366=\"\",\"\",'1. Order'!K1366)","v":""},{"$f":"IF('1. Order'!M1366=\"\",\"\",'1. Order'!M1366)","v":""},null,null,{"$f":"IF('1. Order'!AR1366=\"\",\"\",'1. Order'!AR1366)","v":""},{"$f":"IF('1. Order'!AE1366=\"\",\"\",'1. Order'!AE1366)","v":""}]
[{"$f":"IF('1. Order'!B1367=\"\",\"\",'1. Order'!B1367)","v":""},{"$f":"IF('1. Order'!I1367=\"\",\"\",'1. Order'!I1367)","v":""},{"$f":"IF('1. Order'!J1367=\"\",\"\",'1. Order'!J1367)","v":""},{"$f":"IF('1. Order'!K1367=\"\",\"\",'1. Order'!K1367)","v":""},{"$f":"IF('1. Order'!M1367=\"\",\"\",'1. Order'!M1367)","v":""},null,null,{"$f":"IF('1. Order'!AR1367=\"\",\"\",'1. Order'!AR1367)","v":""},{"$f":"IF('1. Order'!AE1367=\"\",\"\",'1. Order'!AE1367)","v":""}]
[{"$f":"IF('1. Order'!B1368=\"\",\"\",'1. Order'!B1368)","v":""},{"$f":"IF('1. Order'!I1368=\"\",\"\",'1. Order'!I1368)","v":""},{"$f":"IF('1. Order'!J1368=\"\",\"\",'1. Order'!J1368)","v":""},{"$f":"IF('1. Order'!K1368=\"\",\"\",'1. Order'!K1368)","v":""},{"$f":"IF('1. Order'!M1368=\"\",\"\",'1. Order'!M1368)","v":""},null,null,{"$f":"IF('1. Order'!AR1368=\"\",\"\",'1. Order'!AR1368)","v":""},{"$f":"IF('1. Order'!AE1368=\"\",\"\",'1. Order'!AE1368)","v":""}]
[{"$f":"IF('1. Order'!B1369=\"\",\"\",'1. Order'!B1369)","v":""},{"$f":"IF('1. Order'!I1369=\"\",\"\",'1. Order'!I1369)","v":""},{"$f":"IF('1. Order'!J1369=\"\",\"\",'1. Order'!J1369)","v":""},{"$f":"IF('1. Order'!K1369=\"\",\"\",'1. Order'!K1369)","v":""},{"$f":"IF('1. Order'!M1369=\"\",\"\",'1. Order'!M1369)","v":""},null,null,{"$f":"IF('1. Order'!AR1369=\"\",\"\",'1. Order'!AR1369)","v":""},{"$f":"IF('1. Order'!AE1369=\"\",\"\",'1. Order'!AE1369)","v":""}]
[{"$f":"IF('1. Order'!B1370=\"\",\"\",'1. Order'!B1370)","v":""},{"$f":"IF('1. Order'!I1370=\"\",\"\",'1. Order'!I1370)","v":""},{"$f":"IF('1. Order'!J1370=\"\",\"\",'1. Order'!J1370)","v":""},{"$f":"IF('1. Order'!K1370=\"\",\"\",'1. Order'!K1370)","v":""},{"$f":"IF('1. Order'!M1370=\"\",\"\",'1. Order'!M1370)","v":""},null,null,{"$f":"IF('1. Order'!AR1370=\"\",\"\",'1. Order'!AR1370)","v":""},{"$f":"IF('1. Order'!AE1370=\"\",\"\",'1. Order'!AE1370)","v":""}]
[{"$f":"IF('1. Order'!B1371=\"\",\"\",'1. Order'!B1371)","v":""},{"$f":"IF('1. Order'!I1371=\"\",\"\",'1. Order'!I1371)","v":""},{"$f":"IF('1. Order'!J1371=\"\",\"\",'1. Order'!J1371)","v":""},{"$f":"IF('1. Order'!K1371=\"\",\"\",'1. Order'!K1371)","v":""},{"$f":"IF('1. Order'!M1371=\"\",\"\",'1. Order'!M1371)","v":""},null,null,{"$f":"IF('1. Order'!AR1371=\"\",\"\",'1. Order'!AR1371)","v":""},{"$f":"IF('1. Order'!AE1371=\"\",\"\",'1. Order'!AE1371)","v":""}]
[{"$f":"IF('1. Order'!B1372=\"\",\"\",'1. Order'!B1372)","v":""},{"$f":"IF('1. Order'!I1372=\"\",\"\",'1. Order'!I1372)","v":""},{"$f":"IF('1. Order'!J1372=\"\",\"\",'1. Order'!J1372)","v":""},{"$f":"IF('1. Order'!K1372=\"\",\"\",'1. Order'!K1372)","v":""},{"$f":"IF('1. Order'!M1372=\"\",\"\",'1. Order'!M1372)","v":""},null,null,{"$f":"IF('1. Order'!AR1372=\"\",\"\",'1. Order'!AR1372)","v":""},{"$f":"IF('1. Order'!AE1372=\"\",\"\",'1. Order'!AE1372)","v":""}]
[{"$f":"IF('1. Order'!B1373=\"\",\"\",'1. Order'!B1373)","v":""},{"$f":"IF('1. Order'!I1373=\"\",\"\",'1. Order'!I1373)","v":""},{"$f":"IF('1. Order'!J1373=\"\",\"\",'1. Order'!J1373)","v":""},{"$f":"IF('1. Order'!K1373=\"\",\"\",'1. Order'!K1373)","v":""},{"$f":"IF('1. Order'!M1373=\"\",\"\",'1. Order'!M1373)","v":""},null,null,{"$f":"IF('1. Order'!AR1373=\"\",\"\",'1. Order'!AR1373)","v":""},{"$f":"IF('1. Order'!AE1373=\"\",\"\",'1. Order'!AE1373)","v":""}]
[{"$f":"IF('1. Order'!B1374=\"\",\"\",'1. Order'!B1374)","v":""},{"$f":"IF('1. Order'!I1374=\"\",\"\",'1. Order'!I1374)","v":""},{"$f":"IF('1. Order'!J1374=\"\",\"\",'1. Order'!J1374)","v":""},{"$f":"IF('1. Order'!K1374=\"\",\"\",'1. Order'!K1374)","v":""},{"$f":"IF('1. Order'!M1374=\"\",\"\",'1. Order'!M1374)","v":""},null,null,{"$f":"IF('1. Order'!AR1374=\"\",\"\",'1. Order'!AR1374)","v":""},{"$f":"IF('1. Order'!AE1374=\"\",\"\",'1. Order'!AE1374)","v":""}]
[{"$f":"IF('1. Order'!B1375=\"\",\"\",'1. Order'!B1375)","v":""},{"$f":"IF('1. Order'!I1375=\"\",\"\",'1. Order'!I1375)","v":""},{"$f":"IF('1. Order'!J1375=\"\",\"\",'1. Order'!J1375)","v":""},{"$f":"IF('1. Order'!K1375=\"\",\"\",'1. Order'!K1375)","v":""},{"$f":"IF('1. Order'!M1375=\"\",\"\",'1. Order'!M1375)","v":""},null,null,{"$f":"IF('1. Order'!AR1375=\"\",\"\",'1. Order'!AR1375)","v":""},{"$f":"IF('1. Order'!AE1375=\"\",\"\",'1. Order'!AE1375)","v":""}]
[{"$f":"IF('1. Order'!B1376=\"\",\"\",'1. Order'!B1376)","v":""},{"$f":"IF('1. Order'!I1376=\"\",\"\",'1. Order'!I1376)","v":""},{"$f":"IF('1. Order'!J1376=\"\",\"\",'1. Order'!J1376)","v":""},{"$f":"IF('1. Order'!K1376=\"\",\"\",'1. Order'!K1376)","v":""},{"$f":"IF('1. Order'!M1376=\"\",\"\",'1. Order'!M1376)","v":""},null,null,{"$f":"IF('1. Order'!AR1376=\"\",\"\",'1. Order'!AR1376)","v":""},{"$f":"IF('1. Order'!AE1376=\"\",\"\",'1. Order'!AE1376)","v":""}]
[{"$f":"IF('1. Order'!B1377=\"\",\"\",'1. Order'!B1377)","v":""},{"$f":"IF('1. Order'!I1377=\"\",\"\",'1. Order'!I1377)","v":""},{"$f":"IF('1. Order'!J1377=\"\",\"\",'1. Order'!J1377)","v":""},{"$f":"IF('1. Order'!K1377=\"\",\"\",'1. Order'!K1377)","v":""},{"$f":"IF('1. Order'!M1377=\"\",\"\",'1. Order'!M1377)","v":""},null,null,{"$f":"IF('1. Order'!AR1377=\"\",\"\",'1. Order'!AR1377)","v":""},{"$f":"IF('1. Order'!AE1377=\"\",\"\",'1. Order'!AE1377)","v":""}]
[{"$f":"IF('1. Order'!B1378=\"\",\"\",'1. Order'!B1378)","v":""},{"$f":"IF('1. Order'!I1378=\"\",\"\",'1. Order'!I1378)","v":""},{"$f":"IF('1. Order'!J1378=\"\",\"\",'1. Order'!J1378)","v":""},{"$f":"IF('1. Order'!K1378=\"\",\"\",'1. Order'!K1378)","v":""},{"$f":"IF('1. Order'!M1378=\"\",\"\",'1. Order'!M1378)","v":""},null,null,{"$f":"IF('1. Order'!AR1378=\"\",\"\",'1. Order'!AR1378)","v":""},{"$f":"IF('1. Order'!AE1378=\"\",\"\",'1. Order'!AE1378)","v":""}]
[{"$f":"IF('1. Order'!B1379=\"\",\"\",'1. Order'!B1379)","v":""},{"$f":"IF('1. Order'!I1379=\"\",\"\",'1. Order'!I1379)","v":""},{"$f":"IF('1. Order'!J1379=\"\",\"\",'1. Order'!J1379)","v":""},{"$f":"IF('1. Order'!K1379=\"\",\"\",'1. Order'!K1379)","v":""},{"$f":"IF('1. Order'!M1379=\"\",\"\",'1. Order'!M1379)","v":""},null,null,{"$f":"IF('1. Order'!AR1379=\"\",\"\",'1. Order'!AR1379)","v":""},{"$f":"IF('1. Order'!AE1379=\"\",\"\",'1. Order'!AE1379)","v":""}]
[{"$f":"IF('1. Order'!B1380=\"\",\"\",'1. Order'!B1380)","v":""},{"$f":"IF('1. Order'!I1380=\"\",\"\",'1. Order'!I1380)","v":""},{"$f":"IF('1. Order'!J1380=\"\",\"\",'1. Order'!J1380)","v":""},{"$f":"IF('1. Order'!K1380=\"\",\"\",'1. Order'!K1380)","v":""},{"$f":"IF('1. Order'!M1380=\"\",\"\",'1. Order'!M1380)","v":""},null,null,{"$f":"IF('1. Order'!AR1380=\"\",\"\",'1. Order'!AR1380)","v":""},{"$f":"IF('1. Order'!AE1380=\"\",\"\",'1. Order'!AE1380)","v":""}]
[{"$f":"IF('1. Order'!B1381=\"\",\"\",'1. Order'!B1381)","v":""},{"$f":"IF('1. Order'!I1381=\"\",\"\",'1. Order'!I1381)","v":""},{"$f":"IF('1. Order'!J1381=\"\",\"\",'1. Order'!J1381)","v":""},{"$f":"IF('1. Order'!K1381=\"\",\"\",'1. Order'!K1381)","v":""},{"$f":"IF('1. Order'!M1381=\"\",\"\",'1. Order'!M1381)","v":""},null,null,{"$f":"IF('1. Order'!AR1381=\"\",\"\",'1. Order'!AR1381)","v":""},{"$f":"IF('1. Order'!AE1381=\"\",\"\",'1. Order'!AE1381)","v":""}]
[{"$f":"IF('1. Order'!B1382=\"\",\"\",'1. Order'!B1382)","v":""},{"$f":"IF('1. Order'!I1382=\"\",\"\",'1. Order'!I1382)","v":""},{"$f":"IF('1. Order'!J1382=\"\",\"\",'1. Order'!J1382)","v":""},{"$f":"IF('1. Order'!K1382=\"\",\"\",'1. Order'!K1382)","v":""},{"$f":"IF('1. Order'!M1382=\"\",\"\",'1. Order'!M1382)","v":""},null,null,{"$f":"IF('1. Order'!AR1382=\"\",\"\",'1. Order'!AR1382)","v":""},{"$f":"IF('1. Order'!AE1382=\"\",\"\",'1. Order'!AE1382)","v":""}]
[{"$f":"IF('1. Order'!B1383=\"\",\"\",'1. Order'!B1383)","v":""},{"$f":"IF('1. Order'!I1383=\"\",\"\",'1. Order'!I1383)","v":""},{"$f":"IF('1. Order'!J1383=\"\",\"\",'1. Order'!J1383)","v":""},{"$f":"IF('1. Order'!K1383=\"\",\"\",'1. Order'!K1383)","v":""},{"$f":"IF('1. Order'!M1383=\"\",\"\",'1. Order'!M1383)","v":""},null,null,{"$f":"IF('1. Order'!AR1383=\"\",\"\",'1. Order'!AR1383)","v":""},{"$f":"IF('1. Order'!AE1383=\"\",\"\",'1. Order'!AE1383)","v":""}]
[{"$f":"IF('1. Order'!B1384=\"\",\"\",'1. Order'!B1384)","v":""},{"$f":"IF('1. Order'!I1384=\"\",\"\",'1. Order'!I1384)","v":""},{"$f":"IF('1. Order'!J1384=\"\",\"\",'1. Order'!J1384)","v":""},{"$f":"IF('1. Order'!K1384=\"\",\"\",'1. Order'!K1384)","v":""},{"$f":"IF('1. Order'!M1384=\"\",\"\",'1. Order'!M1384)","v":""},null,null,{"$f":"IF('1. Order'!AR1384=\"\",\"\",'1. Order'!AR1384)","v":""},{"$f":"IF('1. Order'!AE1384=\"\",\"\",'1. Order'!AE1384)","v":""}]
[{"$f":"IF('1. Order'!B1385=\"\",\"\",'1. Order'!B1385)","v":""},{"$f":"IF('1. Order'!I1385=\"\",\"\",'1. Order'!I1385)","v":""},{"$f":"IF('1. Order'!J1385=\"\",\"\",'1. Order'!J1385)","v":""},{"$f":"IF('1. Order'!K1385=\"\",\"\",'1. Order'!K1385)","v":""},{"$f":"IF('1. Order'!M1385=\"\",\"\",'1. Order'!M1385)","v":""},null,null,{"$f":"IF('1. Order'!AR1385=\"\",\"\",'1. Order'!AR1385)","v":""},{"$f":"IF('1. Order'!AE1385=\"\",\"\",'1. Order'!AE1385)","v":""}]
[{"$f":"IF('1. Order'!B1386=\"\",\"\",'1. Order'!B1386)","v":""},{"$f":"IF('1. Order'!I1386=\"\",\"\",'1. Order'!I1386)","v":""},{"$f":"IF('1. Order'!J1386=\"\",\"\",'1. Order'!J1386)","v":""},{"$f":"IF('1. Order'!K1386=\"\",\"\",'1. Order'!K1386)","v":""},{"$f":"IF('1. Order'!M1386=\"\",\"\",'1. Order'!M1386)","v":""},null,null,{"$f":"IF('1. Order'!AR1386=\"\",\"\",'1. Order'!AR1386)","v":""},{"$f":"IF('1. Order'!AE1386=\"\",\"\",'1. Order'!AE1386)","v":""}]
[{"$f":"IF('1. Order'!B1387=\"\",\"\",'1. Order'!B1387)","v":""},{"$f":"IF('1. Order'!I1387=\"\",\"\",'1. Order'!I1387)","v":""},{"$f":"IF('1. Order'!J1387=\"\",\"\",'1. Order'!J1387)","v":""},{"$f":"IF('1. Order'!K1387=\"\",\"\",'1. Order'!K1387)","v":""},{"$f":"IF('1. Order'!M1387=\"\",\"\",'1. Order'!M1387)","v":""},null,null,{"$f":"IF('1. Order'!AR1387=\"\",\"\",'1. Order'!AR1387)","v":""},{"$f":"IF('1. Order'!AE1387=\"\",\"\",'1. Order'!AE1387)","v":""}]
[{"$f":"IF('1. Order'!B1388=\"\",\"\",'1. Order'!B1388)","v":""},{"$f":"IF('1. Order'!I1388=\"\",\"\",'1. Order'!I1388)","v":""},{"$f":"IF('1. Order'!J1388=\"\",\"\",'1. Order'!J1388)","v":""},{"$f":"IF('1. Order'!K1388=\"\",\"\",'1. Order'!K1388)","v":""},{"$f":"IF('1. Order'!M1388=\"\",\"\",'1. Order'!M1388)","v":""},null,null,{"$f":"IF('1. Order'!AR1388=\"\",\"\",'1. Order'!AR1388)","v":""},{"$f":"IF('1. Order'!AE1388=\"\",\"\",'1. Order'!AE1388)","v":""}]
[{"$f":"IF('1. Order'!B1389=\"\",\"\",'1. Order'!B1389)","v":""},{"$f":"IF('1. Order'!I1389=\"\",\"\",'1. Order'!I1389)","v":""},{"$f":"IF('1. Order'!J1389=\"\",\"\",'1. Order'!J1389)","v":""},{"$f":"IF('1. Order'!K1389=\"\",\"\",'1. Order'!K1389)","v":""},{"$f":"IF('1. Order'!M1389=\"\",\"\",'1. Order'!M1389)","v":""},null,null,{"$f":"IF('1. Order'!AR1389=\"\",\"\",'1. Order'!AR1389)","v":""},{"$f":"IF('1. Order'!AE1389=\"\",\"\",'1. Order'!AE1389)","v":""}]
[{"$f":"IF('1. Order'!B1390=\"\",\"\",'1. Order'!B1390)","v":""},{"$f":"IF('1. Order'!I1390=\"\",\"\",'1. Order'!I1390)","v":""},{"$f":"IF('1. Order'!J1390=\"\",\"\",'1. Order'!J1390)","v":""},{"$f":"IF('1. Order'!K1390=\"\",\"\",'1. Order'!K1390)","v":""},{"$f":"IF('1. Order'!M1390=\"\",\"\",'1. Order'!M1390)","v":""},null,null,{"$f":"IF('1. Order'!AR1390=\"\",\"\",'1. Order'!AR1390)","v":""},{"$f":"IF('1. Order'!AE1390=\"\",\"\",'1. Order'!AE1390)","v":""}]
[{"$f":"IF('1. Order'!B1391=\"\",\"\",'1. Order'!B1391)","v":""},{"$f":"IF('1. Order'!I1391=\"\",\"\",'1. Order'!I1391)","v":""},{"$f":"IF('1. Order'!J1391=\"\",\"\",'1. Order'!J1391)","v":""},{"$f":"IF('1. Order'!K1391=\"\",\"\",'1. Order'!K1391)","v":""},{"$f":"IF('1. Order'!M1391=\"\",\"\",'1. Order'!M1391)","v":""},null,null,{"$f":"IF('1. Order'!AR1391=\"\",\"\",'1. Order'!AR1391)","v":""},{"$f":"IF('1. Order'!AE1391=\"\",\"\",'1. Order'!AE1391)","v":""}]
[{"$f":"IF('1. Order'!B1392=\"\",\"\",'1. Order'!B1392)","v":""},{"$f":"IF('1. Order'!I1392=\"\",\"\",'1. Order'!I1392)","v":""},{"$f":"IF('1. Order'!J1392=\"\",\"\",'1. Order'!J1392)","v":""},{"$f":"IF('1. Order'!K1392=\"\",\"\",'1. Order'!K1392)","v":""},{"$f":"IF('1. Order'!M1392=\"\",\"\",'1. Order'!M1392)","v":""},null,null,{"$f":"IF('1. Order'!AR1392=\"\",\"\",'1. Order'!AR1392)","v":""},{"$f":"IF('1. Order'!AE1392=\"\",\"\",'1. Order'!AE1392)","v":""}]
[{"$f":"IF('1. Order'!B1393=\"\",\"\",'1. Order'!B1393)","v":""},{"$f":"IF('1. Order'!I1393=\"\",\"\",'1. Order'!I1393)","v":""},{"$f":"IF('1. Order'!J1393=\"\",\"\",'1. Order'!J1393)","v":""},{"$f":"IF('1. Order'!K1393=\"\",\"\",'1. Order'!K1393)","v":""},{"$f":"IF('1. Order'!M1393=\"\",\"\",'1. Order'!M1393)","v":""},null,null,{"$f":"IF('1. Order'!AR1393=\"\",\"\",'1. Order'!AR1393)","v":""},{"$f":"IF('1. Order'!AE1393=\"\",\"\",'1. Order'!AE1393)","v":""}]
[{"$f":"IF('1. Order'!B1394=\"\",\"\",'1. Order'!B1394)","v":""},{"$f":"IF('1. Order'!I1394=\"\",\"\",'1. Order'!I1394)","v":""},{"$f":"IF('1. Order'!J1394=\"\",\"\",'1. Order'!J1394)","v":""},{"$f":"IF('1. Order'!K1394=\"\",\"\",'1. Order'!K1394)","v":""},{"$f":"IF('1. Order'!M1394=\"\",\"\",'1. Order'!M1394)","v":""},null,null,{"$f":"IF('1. Order'!AR1394=\"\",\"\",'1. Order'!AR1394)","v":""},{"$f":"IF('1. Order'!AE1394=\"\",\"\",'1. Order'!AE1394)","v":""}]
[{"$f":"IF('1. Order'!B1395=\"\",\"\",'1. Order'!B1395)","v":""},{"$f":"IF('1. Order'!I1395=\"\",\"\",'1. Order'!I1395)","v":""},{"$f":"IF('1. Order'!J1395=\"\",\"\",'1. Order'!J1395)","v":""},{"$f":"IF('1. Order'!K1395=\"\",\"\",'1. Order'!K1395)","v":""},{"$f":"IF('1. Order'!M1395=\"\",\"\",'1. Order'!M1395)","v":""},null,null,{"$f":"IF('1. Order'!AR1395=\"\",\"\",'1. Order'!AR1395)","v":""},{"$f":"IF('1. Order'!AE1395=\"\",\"\",'1. Order'!AE1395)","v":""}]
[{"$f":"IF('1. Order'!B1396=\"\",\"\",'1. Order'!B1396)","v":""},{"$f":"IF('1. Order'!I1396=\"\",\"\",'1. Order'!I1396)","v":""},{"$f":"IF('1. Order'!J1396=\"\",\"\",'1. Order'!J1396)","v":""},{"$f":"IF('1. Order'!K1396=\"\",\"\",'1. Order'!K1396)","v":""},{"$f":"IF('1. Order'!M1396=\"\",\"\",'1. Order'!M1396)","v":""},null,null,{"$f":"IF('1. Order'!AR1396=\"\",\"\",'1. Order'!AR1396)","v":""},{"$f":"IF('1. Order'!AE1396=\"\",\"\",'1. Order'!AE1396)","v":""}]
[{"$f":"IF('1. Order'!B1397=\"\",\"\",'1. Order'!B1397)","v":""},{"$f":"IF('1. Order'!I1397=\"\",\"\",'1. Order'!I1397)","v":""},{"$f":"IF('1. Order'!J1397=\"\",\"\",'1. Order'!J1397)","v":""},{"$f":"IF('1. Order'!K1397=\"\",\"\",'1. Order'!K1397)","v":""},{"$f":"IF('1. Order'!M1397=\"\",\"\",'1. Order'!M1397)","v":""},null,null,{"$f":"IF('1. Order'!AR1397=\"\",\"\",'1. Order'!AR1397)","v":""},{"$f":"IF('1. Order'!AE1397=\"\",\"\",'1. Order'!AE1397)","v":""}]
[{"$f":"IF('1. Order'!B1398=\"\",\"\",'1. Order'!B1398)","v":""},{"$f":"IF('1. Order'!I1398=\"\",\"\",'1. Order'!I1398)","v":""},{"$f":"IF('1. Order'!J1398=\"\",\"\",'1. Order'!J1398)","v":""},{"$f":"IF('1. Order'!K1398=\"\",\"\",'1. Order'!K1398)","v":""},{"$f":"IF('1. Order'!M1398=\"\",\"\",'1. Order'!M1398)","v":""},null,null,{"$f":"IF('1. Order'!AR1398=\"\",\"\",'1. Order'!AR1398)","v":""},{"$f":"IF('1. Order'!AE1398=\"\",\"\",'1. Order'!AE1398)","v":""}]
[{"$f":"IF('1. Order'!B1399=\"\",\"\",'1. Order'!B1399)","v":""},{"$f":"IF('1. Order'!I1399=\"\",\"\",'1. Order'!I1399)","v":""},{"$f":"IF('1. Order'!J1399=\"\",\"\",'1. Order'!J1399)","v":""},{"$f":"IF('1. Order'!K1399=\"\",\"\",'1. Order'!K1399)","v":""},{"$f":"IF('1. Order'!M1399=\"\",\"\",'1. Order'!M1399)","v":""},null,null,{"$f":"IF('1. Order'!AR1399=\"\",\"\",'1. Order'!AR1399)","v":""},{"$f":"IF('1. Order'!AE1399=\"\",\"\",'1. Order'!AE1399)","v":""}]
[{"$f":"IF('1. Order'!B1400=\"\",\"\",'1. Order'!B1400)","v":""},{"$f":"IF('1. Order'!I1400=\"\",\"\",'1. Order'!I1400)","v":""},{"$f":"IF('1. Order'!J1400=\"\",\"\",'1. Order'!J1400)","v":""},{"$f":"IF('1. Order'!K1400=\"\",\"\",'1. Order'!K1400)","v":""},{"$f":"IF('1. Order'!M1400=\"\",\"\",'1. Order'!M1400)","v":""},null,null,{"$f":"IF('1. Order'!AR1400=\"\",\"\",'1. Order'!AR1400)","v":""},{"$f":"IF('1. Order'!AE1400=\"\",\"\",'1. Order'!AE1400)","v":""}]
[{"$f":"IF('1. Order'!B1401=\"\",\"\",'1. Order'!B1401)","v":""},{"$f":"IF('1. Order'!I1401=\"\",\"\",'1. Order'!I1401)","v":""},{"$f":"IF('1. Order'!J1401=\"\",\"\",'1. Order'!J1401)","v":""},{"$f":"IF('1. Order'!K1401=\"\",\"\",'1. Order'!K1401)","v":""},{"$f":"IF('1. Order'!M1401=\"\",\"\",'1. Order'!M1401)","v":""},null,null,{"$f":"IF('1. Order'!AR1401=\"\",\"\",'1. Order'!AR1401)","v":""},{"$f":"IF('1. Order'!AE1401=\"\",\"\",'1. Order'!AE1401)","v":""}]
[{"$f":"IF('1. Order'!B1402=\"\",\"\",'1. Order'!B1402)","v":""},{"$f":"IF('1. Order'!I1402=\"\",\"\",'1. Order'!I1402)","v":""},{"$f":"IF('1. Order'!J1402=\"\",\"\",'1. Order'!J1402)","v":""},{"$f":"IF('1. Order'!K1402=\"\",\"\",'1. Order'!K1402)","v":""},{"$f":"IF('1. Order'!M1402=\"\",\"\",'1. Order'!M1402)","v":""},null,null,{"$f":"IF('1. Order'!AR1402=\"\",\"\",'1. Order'!AR1402)","v":""},{"$f":"IF('1. Order'!AE1402=\"\",\"\",'1. Order'!AE1402)","v":""}]
[{"$f":"IF('1. Order'!B1403=\"\",\"\",'1. Order'!B1403)","v":""},{"$f":"IF('1. Order'!I1403=\"\",\"\",'1. Order'!I1403)","v":""},{"$f":"IF('1. Order'!J1403=\"\",\"\",'1. Order'!J1403)","v":""},{"$f":"IF('1. Order'!K1403=\"\",\"\",'1. Order'!K1403)","v":""},{"$f":"IF('1. Order'!M1403=\"\",\"\",'1. Order'!M1403)","v":""},null,null,{"$f":"IF('1. Order'!AR1403=\"\",\"\",'1. Order'!AR1403)","v":""},{"$f":"IF('1. Order'!AE1403=\"\",\"\",'1. Order'!AE1403)","v":""}]
[{"$f":"IF('1. Order'!B1404=\"\",\"\",'1. Order'!B1404)","v":""},{"$f":"IF('1. Order'!I1404=\"\",\"\",'1. Order'!I1404)","v":""},{"$f":"IF('1. Order'!J1404=\"\",\"\",'1. Order'!J1404)","v":""},{"$f":"IF('1. Order'!K1404=\"\",\"\",'1. Order'!K1404)","v":""},{"$f":"IF('1. Order'!M1404=\"\",\"\",'1. Order'!M1404)","v":""},null,null,{"$f":"IF('1. Order'!AR1404=\"\",\"\",'1. Order'!AR1404)","v":""},{"$f":"IF('1. Order'!AE1404=\"\",\"\",'1. Order'!AE1404)","v":""}]
[{"$f":"IF('1. Order'!B1405=\"\",\"\",'1. Order'!B1405)","v":""},{"$f":"IF('1. Order'!I1405=\"\",\"\",'1. Order'!I1405)","v":""},{"$f":"IF('1. Order'!J1405=\"\",\"\",'1. Order'!J1405)","v":""},{"$f":"IF('1. Order'!K1405=\"\",\"\",'1. Order'!K1405)","v":""},{"$f":"IF('1. Order'!M1405=\"\",\"\",'1. Order'!M1405)","v":""},null,null,{"$f":"IF('1. Order'!AR1405=\"\",\"\",'1. Order'!AR1405)","v":""},{"$f":"IF('1. Order'!AE1405=\"\",\"\",'1. Order'!AE1405)","v":""}]
[{"$f":"IF('1. Order'!B1406=\"\",\"\",'1. Order'!B1406)","v":""},{"$f":"IF('1. Order'!I1406=\"\",\"\",'1. Order'!I1406)","v":""},{"$f":"IF('1. Order'!J1406=\"\",\"\",'1. Order'!J1406)","v":""},{"$f":"IF('1. Order'!K1406=\"\",\"\",'1. Order'!K1406)","v":""},{"$f":"IF('1. Order'!M1406=\"\",\"\",'1. Order'!M1406)","v":""},null,null,{"$f":"IF('1. Order'!AR1406=\"\",\"\",'1. Order'!AR1406)","v":""},{"$f":"IF('1. Order'!AE1406=\"\",\"\",'1. Order'!AE1406)","v":""}]
[{"$f":"IF('1. Order'!B1407=\"\",\"\",'1. Order'!B1407)","v":""},{"$f":"IF('1. Order'!I1407=\"\",\"\",'1. Order'!I1407)","v":""},{"$f":"IF('1. Order'!J1407=\"\",\"\",'1. Order'!J1407)","v":""},{"$f":"IF('1. Order'!K1407=\"\",\"\",'1. Order'!K1407)","v":""},{"$f":"IF('1. Order'!M1407=\"\",\"\",'1. Order'!M1407)","v":""},null,null,{"$f":"IF('1. Order'!AR1407=\"\",\"\",'1. Order'!AR1407)","v":""},{"$f":"IF('1. Order'!AE1407=\"\",\"\",'1. Order'!AE1407)","v":""}]
[{"$f":"IF('1. Order'!B1408=\"\",\"\",'1. Order'!B1408)","v":""},{"$f":"IF('1. Order'!I1408=\"\",\"\",'1. Order'!I1408)","v":""},{"$f":"IF('1. Order'!J1408=\"\",\"\",'1. Order'!J1408)","v":""},{"$f":"IF('1. Order'!K1408=\"\",\"\",'1. Order'!K1408)","v":""},{"$f":"IF('1. Order'!M1408=\"\",\"\",'1. Order'!M1408)","v":""},null,null,{"$f":"IF('1. Order'!AR1408=\"\",\"\",'1. Order'!AR1408)","v":""},{"$f":"IF('1. Order'!AE1408=\"\",\"\",'1. Order'!AE1408)","v":""}]
[{"$f":"IF('1. Order'!B1409=\"\",\"\",'1. Order'!B1409)","v":""},{"$f":"IF('1. Order'!I1409=\"\",\"\",'1. Order'!I1409)","v":""},{"$f":"IF('1. Order'!J1409=\"\",\"\",'1. Order'!J1409)","v":""},{"$f":"IF('1. Order'!K1409=\"\",\"\",'1. Order'!K1409)","v":""},{"$f":"IF('1. Order'!M1409=\"\",\"\",'1. Order'!M1409)","v":""},null,null,{"$f":"IF('1. Order'!AR1409=\"\",\"\",'1. Order'!AR1409)","v":""},{"$f":"IF('1. Order'!AE1409=\"\",\"\",'1. Order'!AE1409)","v":""}]
[{"$f":"IF('1. Order'!B1410=\"\",\"\",'1. Order'!B1410)","v":""},{"$f":"IF('1. Order'!I1410=\"\",\"\",'1. Order'!I1410)","v":""},{"$f":"IF('1. Order'!J1410=\"\",\"\",'1. Order'!J1410)","v":""},{"$f":"IF('1. Order'!K1410=\"\",\"\",'1. Order'!K1410)","v":""},{"$f":"IF('1. Order'!M1410=\"\",\"\",'1. Order'!M1410)","v":""},null,null,{"$f":"IF('1. Order'!AR1410=\"\",\"\",'1. Order'!AR1410)","v":""},{"$f":"IF('1. Order'!AE1410=\"\",\"\",'1. Order'!AE1410)","v":""}]
[{"$f":"IF('1. Order'!B1411=\"\",\"\",'1. Order'!B1411)","v":""},{"$f":"IF('1. Order'!I1411=\"\",\"\",'1. Order'!I1411)","v":""},{"$f":"IF('1. Order'!J1411=\"\",\"\",'1. Order'!J1411)","v":""},{"$f":"IF('1. Order'!K1411=\"\",\"\",'1. Order'!K1411)","v":""},{"$f":"IF('1. Order'!M1411=\"\",\"\",'1. Order'!M1411)","v":""},null,null,{"$f":"IF('1. Order'!AR1411=\"\",\"\",'1. Order'!AR1411)","v":""},{"$f":"IF('1. Order'!AE1411=\"\",\"\",'1. Order'!AE1411)","v":""}]
[{"$f":"IF('1. Order'!B1412=\"\",\"\",'1. Order'!B1412)","v":""},{"$f":"IF('1. Order'!I1412=\"\",\"\",'1. Order'!I1412)","v":""},{"$f":"IF('1. Order'!J1412=\"\",\"\",'1. Order'!J1412)","v":""},{"$f":"IF('1. Order'!K1412=\"\",\"\",'1. Order'!K1412)","v":""},{"$f":"IF('1. Order'!M1412=\"\",\"\",'1. Order'!M1412)","v":""},null,null,{"$f":"IF('1. Order'!AR1412=\"\",\"\",'1. Order'!AR1412)","v":""},{"$f":"IF('1. Order'!AE1412=\"\",\"\",'1. Order'!AE1412)","v":""}]
[{"$f":"IF('1. Order'!B1413=\"\",\"\",'1. Order'!B1413)","v":""},{"$f":"IF('1. Order'!I1413=\"\",\"\",'1. Order'!I1413)","v":""},{"$f":"IF('1. Order'!J1413=\"\",\"\",'1. Order'!J1413)","v":""},{"$f":"IF('1. Order'!K1413=\"\",\"\",'1. Order'!K1413)","v":""},{"$f":"IF('1. Order'!M1413=\"\",\"\",'1. Order'!M1413)","v":""},null,null,{"$f":"IF('1. Order'!AR1413=\"\",\"\",'1. Order'!AR1413)","v":""},{"$f":"IF('1. Order'!AE1413=\"\",\"\",'1. Order'!AE1413)","v":""}]
[{"$f":"IF('1. Order'!B1414=\"\",\"\",'1. Order'!B1414)","v":""},{"$f":"IF('1. Order'!I1414=\"\",\"\",'1. Order'!I1414)","v":""},{"$f":"IF('1. Order'!J1414=\"\",\"\",'1. Order'!J1414)","v":""},{"$f":"IF('1. Order'!K1414=\"\",\"\",'1. Order'!K1414)","v":""},{"$f":"IF('1. Order'!M1414=\"\",\"\",'1. Order'!M1414)","v":""},null,null,{"$f":"IF('1. Order'!AR1414=\"\",\"\",'1. Order'!AR1414)","v":""},{"$f":"IF('1. Order'!AE1414=\"\",\"\",'1. Order'!AE1414)","v":""}]
[{"$f":"IF('1. Order'!B1415=\"\",\"\",'1. Order'!B1415)","v":""},{"$f":"IF('1. Order'!I1415=\"\",\"\",'1. Order'!I1415)","v":""},{"$f":"IF('1. Order'!J1415=\"\",\"\",'1. Order'!J1415)","v":""},{"$f":"IF('1. Order'!K1415=\"\",\"\",'1. Order'!K1415)","v":""},{"$f":"IF('1. Order'!M1415=\"\",\"\",'1. Order'!M1415)","v":""},null,null,{"$f":"IF('1. Order'!AR1415=\"\",\"\",'1. Order'!AR1415)","v":""},{"$f":"IF('1. Order'!AE1415=\"\",\"\",'1. Order'!AE1415)","v":""}]
[{"$f":"IF('1. Order'!B1416=\"\",\"\",'1. Order'!B1416)","v":""},{"$f":"IF('1. Order'!I1416=\"\",\"\",'1. Order'!I1416)","v":""},{"$f":"IF('1. Order'!J1416=\"\",\"\",'1. Order'!J1416)","v":""},{"$f":"IF('1. Order'!K1416=\"\",\"\",'1. Order'!K1416)","v":""},{"$f":"IF('1. Order'!M1416=\"\",\"\",'1. Order'!M1416)","v":""},null,null,{"$f":"IF('1. Order'!AR1416=\"\",\"\",'1. Order'!AR1416)","v":""},{"$f":"IF('1. Order'!AE1416=\"\",\"\",'1. Order'!AE1416)","v":""}]
[{"$f":"IF('1. Order'!B1417=\"\",\"\",'1. Order'!B1417)","v":""},{"$f":"IF('1. Order'!I1417=\"\",\"\",'1. Order'!I1417)","v":""},{"$f":"IF('1. Order'!J1417=\"\",\"\",'1. Order'!J1417)","v":""},{"$f":"IF('1. Order'!K1417=\"\",\"\",'1. Order'!K1417)","v":""},{"$f":"IF('1. Order'!M1417=\"\",\"\",'1. Order'!M1417)","v":""},null,null,{"$f":"IF('1. Order'!AR1417=\"\",\"\",'1. Order'!AR1417)","v":""},{"$f":"IF('1. Order'!AE1417=\"\",\"\",'1. Order'!AE1417)","v":""}]
[{"$f":"IF('1. Order'!B1418=\"\",\"\",'1. Order'!B1418)","v":""},{"$f":"IF('1. Order'!I1418=\"\",\"\",'1. Order'!I1418)","v":""},{"$f":"IF('1. Order'!J1418=\"\",\"\",'1. Order'!J1418)","v":""},{"$f":"IF('1. Order'!K1418=\"\",\"\",'1. Order'!K1418)","v":""},{"$f":"IF('1. Order'!M1418=\"\",\"\",'1. Order'!M1418)","v":""},null,null,{"$f":"IF('1. Order'!AR1418=\"\",\"\",'1. Order'!AR1418)","v":""},{"$f":"IF('1. Order'!AE1418=\"\",\"\",'1. Order'!AE1418)","v":""}]
[{"$f":"IF('1. Order'!B1419=\"\",\"\",'1. Order'!B1419)","v":""},{"$f":"IF('1. Order'!I1419=\"\",\"\",'1. Order'!I1419)","v":""},{"$f":"IF('1. Order'!J1419=\"\",\"\",'1. Order'!J1419)","v":""},{"$f":"IF('1. Order'!K1419=\"\",\"\",'1. Order'!K1419)","v":""},{"$f":"IF('1. Order'!M1419=\"\",\"\",'1. Order'!M1419)","v":""},null,null,{"$f":"IF('1. Order'!AR1419=\"\",\"\",'1. Order'!AR1419)","v":""},{"$f":"IF('1. Order'!AE1419=\"\",\"\",'1. Order'!AE1419)","v":""}]
[{"$f":"IF('1. Order'!B1420=\"\",\"\",'1. Order'!B1420)","v":""},{"$f":"IF('1. Order'!I1420=\"\",\"\",'1. Order'!I1420)","v":""},{"$f":"IF('1. Order'!J1420=\"\",\"\",'1. Order'!J1420)","v":""},{"$f":"IF('1. Order'!K1420=\"\",\"\",'1. Order'!K1420)","v":""},{"$f":"IF('1. Order'!M1420=\"\",\"\",'1. Order'!M1420)","v":""},null,null,{"$f":"IF('1. Order'!AR1420=\"\",\"\",'1. Order'!AR1420)","v":""},{"$f":"IF('1. Order'!AE1420=\"\",\"\",'1. Order'!AE1420)","v":""}]
[{"$f":"IF('1. Order'!B1421=\"\",\"\",'1. Order'!B1421)","v":""},{"$f":"IF('1. Order'!I1421=\"\",\"\",'1. Order'!I1421)","v":""},{"$f":"IF('1. Order'!J1421=\"\",\"\",'1. Order'!J1421)","v":""},{"$f":"IF('1. Order'!K1421=\"\",\"\",'1. Order'!K1421)","v":""},{"$f":"IF('1. Order'!M1421=\"\",\"\",'1. Order'!M1421)","v":""},null,null,{"$f":"IF('1. Order'!AR1421=\"\",\"\",'1. Order'!AR1421)","v":""},{"$f":"IF('1. Order'!AE1421=\"\",\"\",'1. Order'!AE1421)","v":""}]
[{"$f":"IF('1. Order'!B1422=\"\",\"\",'1. Order'!B1422)","v":""},{"$f":"IF('1. Order'!I1422=\"\",\"\",'1. Order'!I1422)","v":""},{"$f":"IF('1. Order'!J1422=\"\",\"\",'1. Order'!J1422)","v":""},{"$f":"IF('1. Order'!K1422=\"\",\"\",'1. Order'!K1422)","v":""},{"$f":"IF('1. Order'!M1422=\"\",\"\",'1. Order'!M1422)","v":""},null,null,{"$f":"IF('1. Order'!AR1422=\"\",\"\",'1. Order'!AR1422)","v":""},{"$f":"IF('1. Order'!AE1422=\"\",\"\",'1. Order'!AE1422)","v":""}]
[{"$f":"IF('1. Order'!B1423=\"\",\"\",'1. Order'!B1423)","v":""},{"$f":"IF('1. Order'!I1423=\"\",\"\",'1. Order'!I1423)","v":""},{"$f":"IF('1. Order'!J1423=\"\",\"\",'1. Order'!J1423)","v":""},{"$f":"IF('1. Order'!K1423=\"\",\"\",'1. Order'!K1423)","v":""},{"$f":"IF('1. Order'!M1423=\"\",\"\",'1. Order'!M1423)","v":""},null,null,{"$f":"IF('1. Order'!AR1423=\"\",\"\",'1. Order'!AR1423)","v":""},{"$f":"IF('1. Order'!AE1423=\"\",\"\",'1. Order'!AE1423)","v":""}]
[{"$f":"IF('1. Order'!B1424=\"\",\"\",'1. Order'!B1424)","v":""},{"$f":"IF('1. Order'!I1424=\"\",\"\",'1. Order'!I1424)","v":""},{"$f":"IF('1. Order'!J1424=\"\",\"\",'1. Order'!J1424)","v":""},{"$f":"IF('1. Order'!K1424=\"\",\"\",'1. Order'!K1424)","v":""},{"$f":"IF('1. Order'!M1424=\"\",\"\",'1. Order'!M1424)","v":""},null,null,{"$f":"IF('1. Order'!AR1424=\"\",\"\",'1. Order'!AR1424)","v":""},{"$f":"IF('1. Order'!AE1424=\"\",\"\",'1. Order'!AE1424)","v":""}]
[{"$f":"IF('1. Order'!B1425=\"\",\"\",'1. Order'!B1425)","v":""},{"$f":"IF('1. Order'!I1425=\"\",\"\",'1. Order'!I1425)","v":""},{"$f":"IF('1. Order'!J1425=\"\",\"\",'1. Order'!J1425)","v":""},{"$f":"IF('1. Order'!K1425=\"\",\"\",'1. Order'!K1425)","v":""},{"$f":"IF('1. Order'!M1425=\"\",\"\",'1. Order'!M1425)","v":""},null,null,{"$f":"IF('1. Order'!AR1425=\"\",\"\",'1. Order'!AR1425)","v":""},{"$f":"IF('1. Order'!AE1425=\"\",\"\",'1. Order'!AE1425)","v":""}]
[{"$f":"IF('1. Order'!B1426=\"\",\"\",'1. Order'!B1426)","v":""},{"$f":"IF('1. Order'!I1426=\"\",\"\",'1. Order'!I1426)","v":""},{"$f":"IF('1. Order'!J1426=\"\",\"\",'1. Order'!J1426)","v":""},{"$f":"IF('1. Order'!K1426=\"\",\"\",'1. Order'!K1426)","v":""},{"$f":"IF('1. Order'!M1426=\"\",\"\",'1. Order'!M1426)","v":""},null,null,{"$f":"IF('1. Order'!AR1426=\"\",\"\",'1. Order'!AR1426)","v":""},{"$f":"IF('1. Order'!AE1426=\"\",\"\",'1. Order'!AE1426)","v":""}]
[{"$f":"IF('1. Order'!B1427=\"\",\"\",'1. Order'!B1427)","v":""},{"$f":"IF('1. Order'!I1427=\"\",\"\",'1. Order'!I1427)","v":""},{"$f":"IF('1. Order'!J1427=\"\",\"\",'1. Order'!J1427)","v":""},{"$f":"IF('1. Order'!K1427=\"\",\"\",'1. Order'!K1427)","v":""},{"$f":"IF('1. Order'!M1427=\"\",\"\",'1. Order'!M1427)","v":""},null,null,{"$f":"IF('1. Order'!AR1427=\"\",\"\",'1. Order'!AR1427)","v":""},{"$f":"IF('1. Order'!AE1427=\"\",\"\",'1. Order'!AE1427)","v":""}]
[{"$f":"IF('1. Order'!B1428=\"\",\"\",'1. Order'!B1428)","v":""},{"$f":"IF('1. Order'!I1428=\"\",\"\",'1. Order'!I1428)","v":""},{"$f":"IF('1. Order'!J1428=\"\",\"\",'1. Order'!J1428)","v":""},{"$f":"IF('1. Order'!K1428=\"\",\"\",'1. Order'!K1428)","v":""},{"$f":"IF('1. Order'!M1428=\"\",\"\",'1. Order'!M1428)","v":""},null,null,{"$f":"IF('1. Order'!AR1428=\"\",\"\",'1. Order'!AR1428)","v":""},{"$f":"IF('1. Order'!AE1428=\"\",\"\",'1. Order'!AE1428)","v":""}]
[{"$f":"IF('1. Order'!B1429=\"\",\"\",'1. Order'!B1429)","v":""},{"$f":"IF('1. Order'!I1429=\"\",\"\",'1. Order'!I1429)","v":""},{"$f":"IF('1. Order'!J1429=\"\",\"\",'1. Order'!J1429)","v":""},{"$f":"IF('1. Order'!K1429=\"\",\"\",'1. Order'!K1429)","v":""},{"$f":"IF('1. Order'!M1429=\"\",\"\",'1. Order'!M1429)","v":""},null,null,{"$f":"IF('1. Order'!AR1429=\"\",\"\",'1. Order'!AR1429)","v":""},{"$f":"IF('1. Order'!AE1429=\"\",\"\",'1. Order'!AE1429)","v":""}]
[{"$f":"IF('1. Order'!B1430=\"\",\"\",'1. Order'!B1430)","v":""},{"$f":"IF('1. Order'!I1430=\"\",\"\",'1. Order'!I1430)","v":""},{"$f":"IF('1. Order'!J1430=\"\",\"\",'1. Order'!J1430)","v":""},{"$f":"IF('1. Order'!K1430=\"\",\"\",'1. Order'!K1430)","v":""},{"$f":"IF('1. Order'!M1430=\"\",\"\",'1. Order'!M1430)","v":""},null,null,{"$f":"IF('1. Order'!AR1430=\"\",\"\",'1. Order'!AR1430)","v":""},{"$f":"IF('1. Order'!AE1430=\"\",\"\",'1. Order'!AE1430)","v":""}]
[{"$f":"IF('1. Order'!B1431=\"\",\"\",'1. Order'!B1431)","v":""},{"$f":"IF('1. Order'!I1431=\"\",\"\",'1. Order'!I1431)","v":""},{"$f":"IF('1. Order'!J1431=\"\",\"\",'1. Order'!J1431)","v":""},{"$f":"IF('1. Order'!K1431=\"\",\"\",'1. Order'!K1431)","v":""},{"$f":"IF('1. Order'!M1431=\"\",\"\",'1. Order'!M1431)","v":""},null,null,{"$f":"IF('1. Order'!AR1431=\"\",\"\",'1. Order'!AR1431)","v":""},{"$f":"IF('1. Order'!AE1431=\"\",\"\",'1. Order'!AE1431)","v":""}]
[{"$f":"IF('1. Order'!B1432=\"\",\"\",'1. Order'!B1432)","v":""},{"$f":"IF('1. Order'!I1432=\"\",\"\",'1. Order'!I1432)","v":""},{"$f":"IF('1. Order'!J1432=\"\",\"\",'1. Order'!J1432)","v":""},{"$f":"IF('1. Order'!K1432=\"\",\"\",'1. Order'!K1432)","v":""},{"$f":"IF('1. Order'!M1432=\"\",\"\",'1. Order'!M1432)","v":""},null,null,{"$f":"IF('1. Order'!AR1432=\"\",\"\",'1. Order'!AR1432)","v":""},{"$f":"IF('1. Order'!AE1432=\"\",\"\",'1. Order'!AE1432)","v":""}]
[{"$f":"IF('1. Order'!B1433=\"\",\"\",'1. Order'!B1433)","v":""},{"$f":"IF('1. Order'!I1433=\"\",\"\",'1. Order'!I1433)","v":""},{"$f":"IF('1. Order'!J1433=\"\",\"\",'1. Order'!J1433)","v":""},{"$f":"IF('1. Order'!K1433=\"\",\"\",'1. Order'!K1433)","v":""},{"$f":"IF('1. Order'!M1433=\"\",\"\",'1. Order'!M1433)","v":""},null,null,{"$f":"IF('1. Order'!AR1433=\"\",\"\",'1. Order'!AR1433)","v":""},{"$f":"IF('1. Order'!AE1433=\"\",\"\",'1. Order'!AE1433)","v":""}]
[{"$f":"IF('1. Order'!B1434=\"\",\"\",'1. Order'!B1434)","v":""},{"$f":"IF('1. Order'!I1434=\"\",\"\",'1. Order'!I1434)","v":""},{"$f":"IF('1. Order'!J1434=\"\",\"\",'1. Order'!J1434)","v":""},{"$f":"IF('1. Order'!K1434=\"\",\"\",'1. Order'!K1434)","v":""},{"$f":"IF('1. Order'!M1434=\"\",\"\",'1. Order'!M1434)","v":""},null,null,{"$f":"IF('1. Order'!AR1434=\"\",\"\",'1. Order'!AR1434)","v":""},{"$f":"IF('1. Order'!AE1434=\"\",\"\",'1. Order'!AE1434)","v":""}]
[{"$f":"IF('1. Order'!B1435=\"\",\"\",'1. Order'!B1435)","v":""},{"$f":"IF('1. Order'!I1435=\"\",\"\",'1. Order'!I1435)","v":""},{"$f":"IF('1. Order'!J1435=\"\",\"\",'1. Order'!J1435)","v":""},{"$f":"IF('1. Order'!K1435=\"\",\"\",'1. Order'!K1435)","v":""},{"$f":"IF('1. Order'!M1435=\"\",\"\",'1. Order'!M1435)","v":""},null,null,{"$f":"IF('1. Order'!AR1435=\"\",\"\",'1. Order'!AR1435)","v":""},{"$f":"IF('1. Order'!AE1435=\"\",\"\",'1. Order'!AE1435)","v":""}]
[{"$f":"IF('1. Order'!B1436=\"\",\"\",'1. Order'!B1436)","v":""},{"$f":"IF('1. Order'!I1436=\"\",\"\",'1. Order'!I1436)","v":""},{"$f":"IF('1. Order'!J1436=\"\",\"\",'1. Order'!J1436)","v":""},{"$f":"IF('1. Order'!K1436=\"\",\"\",'1. Order'!K1436)","v":""},{"$f":"IF('1. Order'!M1436=\"\",\"\",'1. Order'!M1436)","v":""},null,null,{"$f":"IF('1. Order'!AR1436=\"\",\"\",'1. Order'!AR1436)","v":""},{"$f":"IF('1. Order'!AE1436=\"\",\"\",'1. Order'!AE1436)","v":""}]
[{"$f":"IF('1. Order'!B1437=\"\",\"\",'1. Order'!B1437)","v":""},{"$f":"IF('1. Order'!I1437=\"\",\"\",'1. Order'!I1437)","v":""},{"$f":"IF('1. Order'!J1437=\"\",\"\",'1. Order'!J1437)","v":""},{"$f":"IF('1. Order'!K1437=\"\",\"\",'1. Order'!K1437)","v":""},{"$f":"IF('1. Order'!M1437=\"\",\"\",'1. Order'!M1437)","v":""},null,null,{"$f":"IF('1. Order'!AR1437=\"\",\"\",'1. Order'!AR1437)","v":""},{"$f":"IF('1. Order'!AE1437=\"\",\"\",'1. Order'!AE1437)","v":""}]
[{"$f":"IF('1. Order'!B1438=\"\",\"\",'1. Order'!B1438)","v":""},{"$f":"IF('1. Order'!I1438=\"\",\"\",'1. Order'!I1438)","v":""},{"$f":"IF('1. Order'!J1438=\"\",\"\",'1. Order'!J1438)","v":""},{"$f":"IF('1. Order'!K1438=\"\",\"\",'1. Order'!K1438)","v":""},{"$f":"IF('1. Order'!M1438=\"\",\"\",'1. Order'!M1438)","v":""},null,null,{"$f":"IF('1. Order'!AR1438=\"\",\"\",'1. Order'!AR1438)","v":""},{"$f":"IF('1. Order'!AE1438=\"\",\"\",'1. Order'!AE1438)","v":""}]
[{"$f":"IF('1. Order'!B1439=\"\",\"\",'1. Order'!B1439)","v":""},{"$f":"IF('1. Order'!I1439=\"\",\"\",'1. Order'!I1439)","v":""},{"$f":"IF('1. Order'!J1439=\"\",\"\",'1. Order'!J1439)","v":""},{"$f":"IF('1. Order'!K1439=\"\",\"\",'1. Order'!K1439)","v":""},{"$f":"IF('1. Order'!M1439=\"\",\"\",'1. Order'!M1439)","v":""},null,null,{"$f":"IF('1. Order'!AR1439=\"\",\"\",'1. Order'!AR1439)","v":""},{"$f":"IF('1. Order'!AE1439=\"\",\"\",'1. Order'!AE1439)","v":""}]
[{"$f":"IF('1. Order'!B1440=\"\",\"\",'1. Order'!B1440)","v":""},{"$f":"IF('1. Order'!I1440=\"\",\"\",'1. Order'!I1440)","v":""},{"$f":"IF('1. Order'!J1440=\"\",\"\",'1. Order'!J1440)","v":""},{"$f":"IF('1. Order'!K1440=\"\",\"\",'1. Order'!K1440)","v":""},{"$f":"IF('1. Order'!M1440=\"\",\"\",'1. Order'!M1440)","v":""},null,null,{"$f":"IF('1. Order'!AR1440=\"\",\"\",'1. Order'!AR1440)","v":""},{"$f":"IF('1. Order'!AE1440=\"\",\"\",'1. Order'!AE1440)","v":""}]
[{"$f":"IF('1. Order'!B1441=\"\",\"\",'1. Order'!B1441)","v":""},{"$f":"IF('1. Order'!I1441=\"\",\"\",'1. Order'!I1441)","v":""},{"$f":"IF('1. Order'!J1441=\"\",\"\",'1. Order'!J1441)","v":""},{"$f":"IF('1. Order'!K1441=\"\",\"\",'1. Order'!K1441)","v":""},{"$f":"IF('1. Order'!M1441=\"\",\"\",'1. Order'!M1441)","v":""},null,null,{"$f":"IF('1. Order'!AR1441=\"\",\"\",'1. Order'!AR1441)","v":""},{"$f":"IF('1. Order'!AE1441=\"\",\"\",'1. Order'!AE1441)","v":""}]
[{"$f":"IF('1. Order'!B1442=\"\",\"\",'1. Order'!B1442)","v":""},{"$f":"IF('1. Order'!I1442=\"\",\"\",'1. Order'!I1442)","v":""},{"$f":"IF('1. Order'!J1442=\"\",\"\",'1. Order'!J1442)","v":""},{"$f":"IF('1. Order'!K1442=\"\",\"\",'1. Order'!K1442)","v":""},{"$f":"IF('1. Order'!M1442=\"\",\"\",'1. Order'!M1442)","v":""},null,null,{"$f":"IF('1. Order'!AR1442=\"\",\"\",'1. Order'!AR1442)","v":""},{"$f":"IF('1. Order'!AE1442=\"\",\"\",'1. Order'!AE1442)","v":""}]
[{"$f":"IF('1. Order'!B1443=\"\",\"\",'1. Order'!B1443)","v":""},{"$f":"IF('1. Order'!I1443=\"\",\"\",'1. Order'!I1443)","v":""},{"$f":"IF('1. Order'!J1443=\"\",\"\",'1. Order'!J1443)","v":""},{"$f":"IF('1. Order'!K1443=\"\",\"\",'1. Order'!K1443)","v":""},{"$f":"IF('1. Order'!M1443=\"\",\"\",'1. Order'!M1443)","v":""},null,null,{"$f":"IF('1. Order'!AR1443=\"\",\"\",'1. Order'!AR1443)","v":""},{"$f":"IF('1. Order'!AE1443=\"\",\"\",'1. Order'!AE1443)","v":""}]
[{"$f":"IF('1. Order'!B1444=\"\",\"\",'1. Order'!B1444)","v":""},{"$f":"IF('1. Order'!I1444=\"\",\"\",'1. Order'!I1444)","v":""},{"$f":"IF('1. Order'!J1444=\"\",\"\",'1. Order'!J1444)","v":""},{"$f":"IF('1. Order'!K1444=\"\",\"\",'1. Order'!K1444)","v":""},{"$f":"IF('1. Order'!M1444=\"\",\"\",'1. Order'!M1444)","v":""},null,null,{"$f":"IF('1. Order'!AR1444=\"\",\"\",'1. Order'!AR1444)","v":""},{"$f":"IF('1. Order'!AE1444=\"\",\"\",'1. Order'!AE1444)","v":""}]
[{"$f":"IF('1. Order'!B1445=\"\",\"\",'1. Order'!B1445)","v":""},{"$f":"IF('1. Order'!I1445=\"\",\"\",'1. Order'!I1445)","v":""},{"$f":"IF('1. Order'!J1445=\"\",\"\",'1. Order'!J1445)","v":""},{"$f":"IF('1. Order'!K1445=\"\",\"\",'1. Order'!K1445)","v":""},{"$f":"IF('1. Order'!M1445=\"\",\"\",'1. Order'!M1445)","v":""},null,null,{"$f":"IF('1. Order'!AR1445=\"\",\"\",'1. Order'!AR1445)","v":""},{"$f":"IF('1. Order'!AE1445=\"\",\"\",'1. Order'!AE1445)","v":""}]
[{"$f":"IF('1. Order'!B1446=\"\",\"\",'1. Order'!B1446)","v":""},{"$f":"IF('1. Order'!I1446=\"\",\"\",'1. Order'!I1446)","v":""},{"$f":"IF('1. Order'!J1446=\"\",\"\",'1. Order'!J1446)","v":""},{"$f":"IF('1. Order'!K1446=\"\",\"\",'1. Order'!K1446)","v":""},{"$f":"IF('1. Order'!M1446=\"\",\"\",'1. Order'!M1446)","v":""},null,null,{"$f":"IF('1. Order'!AR1446=\"\",\"\",'1. Order'!AR1446)","v":""},{"$f":"IF('1. Order'!AE1446=\"\",\"\",'1. Order'!AE1446)","v":""}]
[{"$f":"IF('1. Order'!B1447=\"\",\"\",'1. Order'!B1447)","v":""},{"$f":"IF('1. Order'!I1447=\"\",\"\",'1. Order'!I1447)","v":""},{"$f":"IF('1. Order'!J1447=\"\",\"\",'1. Order'!J1447)","v":""},{"$f":"IF('1. Order'!K1447=\"\",\"\",'1. Order'!K1447)","v":""},{"$f":"IF('1. Order'!M1447=\"\",\"\",'1. Order'!M1447)","v":""},null,null,{"$f":"IF('1. Order'!AR1447=\"\",\"\",'1. Order'!AR1447)","v":""},{"$f":"IF('1. Order'!AE1447=\"\",\"\",'1. Order'!AE1447)","v":""}]
[{"$f":"IF('1. Order'!B1448=\"\",\"\",'1. Order'!B1448)","v":""},{"$f":"IF('1. Order'!I1448=\"\",\"\",'1. Order'!I1448)","v":""},{"$f":"IF('1. Order'!J1448=\"\",\"\",'1. Order'!J1448)","v":""},{"$f":"IF('1. Order'!K1448=\"\",\"\",'1. Order'!K1448)","v":""},{"$f":"IF('1. Order'!M1448=\"\",\"\",'1. Order'!M1448)","v":""},null,null,{"$f":"IF('1. Order'!AR1448=\"\",\"\",'1. Order'!AR1448)","v":""},{"$f":"IF('1. Order'!AE1448=\"\",\"\",'1. Order'!AE1448)","v":""}]
[{"$f":"IF('1. Order'!B1449=\"\",\"\",'1. Order'!B1449)","v":""},{"$f":"IF('1. Order'!I1449=\"\",\"\",'1. Order'!I1449)","v":""},{"$f":"IF('1. Order'!J1449=\"\",\"\",'1. Order'!J1449)","v":""},{"$f":"IF('1. Order'!K1449=\"\",\"\",'1. Order'!K1449)","v":""},{"$f":"IF('1. Order'!M1449=\"\",\"\",'1. Order'!M1449)","v":""},null,null,{"$f":"IF('1. Order'!AR1449=\"\",\"\",'1. Order'!AR1449)","v":""},{"$f":"IF('1. Order'!AE1449=\"\",\"\",'1. Order'!AE1449)","v":""}]
[{"$f":"IF('1. Order'!B1450=\"\",\"\",'1. Order'!B1450)","v":""},{"$f":"IF('1. Order'!I1450=\"\",\"\",'1. Order'!I1450)","v":""},{"$f":"IF('1. Order'!J1450=\"\",\"\",'1. Order'!J1450)","v":""},{"$f":"IF('1. Order'!K1450=\"\",\"\",'1. Order'!K1450)","v":""},{"$f":"IF('1. Order'!M1450=\"\",\"\",'1. Order'!M1450)","v":""},null,null,{"$f":"IF('1. Order'!AR1450=\"\",\"\",'1. Order'!AR1450)","v":""},{"$f":"IF('1. Order'!AE1450=\"\",\"\",'1. Order'!AE1450)","v":""}]
[{"$f":"IF('1. Order'!B1451=\"\",\"\",'1. Order'!B1451)","v":""},{"$f":"IF('1. Order'!I1451=\"\",\"\",'1. Order'!I1451)","v":""},{"$f":"IF('1. Order'!J1451=\"\",\"\",'1. Order'!J1451)","v":""},{"$f":"IF('1. Order'!K1451=\"\",\"\",'1. Order'!K1451)","v":""},{"$f":"IF('1. Order'!M1451=\"\",\"\",'1. Order'!M1451)","v":""},null,null,{"$f":"IF('1. Order'!AR1451=\"\",\"\",'1. Order'!AR1451)","v":""},{"$f":"IF('1. Order'!AE1451=\"\",\"\",'1. Order'!AE1451)","v":""}]
[{"$f":"IF('1. Order'!B1452=\"\",\"\",'1. Order'!B1452)","v":""},{"$f":"IF('1. Order'!I1452=\"\",\"\",'1. Order'!I1452)","v":""},{"$f":"IF('1. Order'!J1452=\"\",\"\",'1. Order'!J1452)","v":""},{"$f":"IF('1. Order'!K1452=\"\",\"\",'1. Order'!K1452)","v":""},{"$f":"IF('1. Order'!M1452=\"\",\"\",'1. Order'!M1452)","v":""},null,null,{"$f":"IF('1. Order'!AR1452=\"\",\"\",'1. Order'!AR1452)","v":""},{"$f":"IF('1. Order'!AE1452=\"\",\"\",'1. Order'!AE1452)","v":""}]
[{"$f":"IF('1. Order'!B1453=\"\",\"\",'1. Order'!B1453)","v":""},{"$f":"IF('1. Order'!I1453=\"\",\"\",'1. Order'!I1453)","v":""},{"$f":"IF('1. Order'!J1453=\"\",\"\",'1. Order'!J1453)","v":""},{"$f":"IF('1. Order'!K1453=\"\",\"\",'1. Order'!K1453)","v":""},{"$f":"IF('1. Order'!M1453=\"\",\"\",'1. Order'!M1453)","v":""},null,null,{"$f":"IF('1. Order'!AR1453=\"\",\"\",'1. Order'!AR1453)","v":""},{"$f":"IF('1. Order'!AE1453=\"\",\"\",'1. Order'!AE1453)","v":""}]
[{"$f":"IF('1. Order'!B1454=\"\",\"\",'1. Order'!B1454)","v":""},{"$f":"IF('1. Order'!I1454=\"\",\"\",'1. Order'!I1454)","v":""},{"$f":"IF('1. Order'!J1454=\"\",\"\",'1. Order'!J1454)","v":""},{"$f":"IF('1. Order'!K1454=\"\",\"\",'1. Order'!K1454)","v":""},{"$f":"IF('1. Order'!M1454=\"\",\"\",'1. Order'!M1454)","v":""},null,null,{"$f":"IF('1. Order'!AR1454=\"\",\"\",'1. Order'!AR1454)","v":""},{"$f":"IF('1. Order'!AE1454=\"\",\"\",'1. Order'!AE1454)","v":""}]
[{"$f":"IF('1. Order'!B1455=\"\",\"\",'1. Order'!B1455)","v":""},{"$f":"IF('1. Order'!I1455=\"\",\"\",'1. Order'!I1455)","v":""},{"$f":"IF('1. Order'!J1455=\"\",\"\",'1. Order'!J1455)","v":""},{"$f":"IF('1. Order'!K1455=\"\",\"\",'1. Order'!K1455)","v":""},{"$f":"IF('1. Order'!M1455=\"\",\"\",'1. Order'!M1455)","v":""},null,null,{"$f":"IF('1. Order'!AR1455=\"\",\"\",'1. Order'!AR1455)","v":""},{"$f":"IF('1. Order'!AE1455=\"\",\"\",'1. Order'!AE1455)","v":""}]
[{"$f":"IF('1. Order'!B1456=\"\",\"\",'1. Order'!B1456)","v":""},{"$f":"IF('1. Order'!I1456=\"\",\"\",'1. Order'!I1456)","v":""},{"$f":"IF('1. Order'!J1456=\"\",\"\",'1. Order'!J1456)","v":""},{"$f":"IF('1. Order'!K1456=\"\",\"\",'1. Order'!K1456)","v":""},{"$f":"IF('1. Order'!M1456=\"\",\"\",'1. Order'!M1456)","v":""},null,null,{"$f":"IF('1. Order'!AR1456=\"\",\"\",'1. Order'!AR1456)","v":""},{"$f":"IF('1. Order'!AE1456=\"\",\"\",'1. Order'!AE1456)","v":""}]
[{"$f":"IF('1. Order'!B1457=\"\",\"\",'1. Order'!B1457)","v":""},{"$f":"IF('1. Order'!I1457=\"\",\"\",'1. Order'!I1457)","v":""},{"$f":"IF('1. Order'!J1457=\"\",\"\",'1. Order'!J1457)","v":""},{"$f":"IF('1. Order'!K1457=\"\",\"\",'1. Order'!K1457)","v":""},{"$f":"IF('1. Order'!M1457=\"\",\"\",'1. Order'!M1457)","v":""},null,null,{"$f":"IF('1. Order'!AR1457=\"\",\"\",'1. Order'!AR1457)","v":""},{"$f":"IF('1. Order'!AE1457=\"\",\"\",'1. Order'!AE1457)","v":""}]
[{"$f":"IF('1. Order'!B1458=\"\",\"\",'1. Order'!B1458)","v":""},{"$f":"IF('1. Order'!I1458=\"\",\"\",'1. Order'!I1458)","v":""},{"$f":"IF('1. Order'!J1458=\"\",\"\",'1. Order'!J1458)","v":""},{"$f":"IF('1. Order'!K1458=\"\",\"\",'1. Order'!K1458)","v":""},{"$f":"IF('1. Order'!M1458=\"\",\"\",'1. Order'!M1458)","v":""},null,null,{"$f":"IF('1. Order'!AR1458=\"\",\"\",'1. Order'!AR1458)","v":""},{"$f":"IF('1. Order'!AE1458=\"\",\"\",'1. Order'!AE1458)","v":""}]
[{"$f":"IF('1. Order'!B1459=\"\",\"\",'1. Order'!B1459)","v":""},{"$f":"IF('1. Order'!I1459=\"\",\"\",'1. Order'!I1459)","v":""},{"$f":"IF('1. Order'!J1459=\"\",\"\",'1. Order'!J1459)","v":""},{"$f":"IF('1. Order'!K1459=\"\",\"\",'1. Order'!K1459)","v":""},{"$f":"IF('1. Order'!M1459=\"\",\"\",'1. Order'!M1459)","v":""},null,null,{"$f":"IF('1. Order'!AR1459=\"\",\"\",'1. Order'!AR1459)","v":""},{"$f":"IF('1. Order'!AE1459=\"\",\"\",'1. Order'!AE1459)","v":""}]
[{"$f":"IF('1. Order'!B1460=\"\",\"\",'1. Order'!B1460)","v":""},{"$f":"IF('1. Order'!I1460=\"\",\"\",'1. Order'!I1460)","v":""},{"$f":"IF('1. Order'!J1460=\"\",\"\",'1. Order'!J1460)","v":""},{"$f":"IF('1. Order'!K1460=\"\",\"\",'1. Order'!K1460)","v":""},{"$f":"IF('1. Order'!M1460=\"\",\"\",'1. Order'!M1460)","v":""},null,null,{"$f":"IF('1. Order'!AR1460=\"\",\"\",'1. Order'!AR1460)","v":""},{"$f":"IF('1. Order'!AE1460=\"\",\"\",'1. Order'!AE1460)","v":""}]
[{"$f":"IF('1. Order'!B1461=\"\",\"\",'1. Order'!B1461)","v":""},{"$f":"IF('1. Order'!I1461=\"\",\"\",'1. Order'!I1461)","v":""},{"$f":"IF('1. Order'!J1461=\"\",\"\",'1. Order'!J1461)","v":""},{"$f":"IF('1. Order'!K1461=\"\",\"\",'1. Order'!K1461)","v":""},{"$f":"IF('1. Order'!M1461=\"\",\"\",'1. Order'!M1461)","v":""},null,null,{"$f":"IF('1. Order'!AR1461=\"\",\"\",'1. Order'!AR1461)","v":""},{"$f":"IF('1. Order'!AE1461=\"\",\"\",'1. Order'!AE1461)","v":""}]
[{"$f":"IF('1. Order'!B1462=\"\",\"\",'1. Order'!B1462)","v":""},{"$f":"IF('1. Order'!I1462=\"\",\"\",'1. Order'!I1462)","v":""},{"$f":"IF('1. Order'!J1462=\"\",\"\",'1. Order'!J1462)","v":""},{"$f":"IF('1. Order'!K1462=\"\",\"\",'1. Order'!K1462)","v":""},{"$f":"IF('1. Order'!M1462=\"\",\"\",'1. Order'!M1462)","v":""},null,null,{"$f":"IF('1. Order'!AR1462=\"\",\"\",'1. Order'!AR1462)","v":""},{"$f":"IF('1. Order'!AE1462=\"\",\"\",'1. Order'!AE1462)","v":""}]
[{"$f":"IF('1. Order'!B1463=\"\",\"\",'1. Order'!B1463)","v":""},{"$f":"IF('1. Order'!I1463=\"\",\"\",'1. Order'!I1463)","v":""},{"$f":"IF('1. Order'!J1463=\"\",\"\",'1. Order'!J1463)","v":""},{"$f":"IF('1. Order'!K1463=\"\",\"\",'1. Order'!K1463)","v":""},{"$f":"IF('1. Order'!M1463=\"\",\"\",'1. Order'!M1463)","v":""},null,null,{"$f":"IF('1. Order'!AR1463=\"\",\"\",'1. Order'!AR1463)","v":""},{"$f":"IF('1. Order'!AE1463=\"\",\"\",'1. Order'!AE1463)","v":""}]
[{"$f":"IF('1. Order'!B1464=\"\",\"\",'1. Order'!B1464)","v":""},{"$f":"IF('1. Order'!I1464=\"\",\"\",'1. Order'!I1464)","v":""},{"$f":"IF('1. Order'!J1464=\"\",\"\",'1. Order'!J1464)","v":""},{"$f":"IF('1. Order'!K1464=\"\",\"\",'1. Order'!K1464)","v":""},{"$f":"IF('1. Order'!M1464=\"\",\"\",'1. Order'!M1464)","v":""},null,null,{"$f":"IF('1. Order'!AR1464=\"\",\"\",'1. Order'!AR1464)","v":""},{"$f":"IF('1. Order'!AE1464=\"\",\"\",'1. Order'!AE1464)","v":""}]
[{"$f":"IF('1. Order'!B1465=\"\",\"\",'1. Order'!B1465)","v":""},{"$f":"IF('1. Order'!I1465=\"\",\"\",'1. Order'!I1465)","v":""},{"$f":"IF('1. Order'!J1465=\"\",\"\",'1. Order'!J1465)","v":""},{"$f":"IF('1. Order'!K1465=\"\",\"\",'1. Order'!K1465)","v":""},{"$f":"IF('1. Order'!M1465=\"\",\"\",'1. Order'!M1465)","v":""},null,null,{"$f":"IF('1. Order'!AR1465=\"\",\"\",'1. Order'!AR1465)","v":""},{"$f":"IF('1. Order'!AE1465=\"\",\"\",'1. Order'!AE1465)","v":""}]
[{"$f":"IF('1. Order'!B1466=\"\",\"\",'1. Order'!B1466)","v":""},{"$f":"IF('1. Order'!I1466=\"\",\"\",'1. Order'!I1466)","v":""},{"$f":"IF('1. Order'!J1466=\"\",\"\",'1. Order'!J1466)","v":""},{"$f":"IF('1. Order'!K1466=\"\",\"\",'1. Order'!K1466)","v":""},{"$f":"IF('1. Order'!M1466=\"\",\"\",'1. Order'!M1466)","v":""},null,null,{"$f":"IF('1. Order'!AR1466=\"\",\"\",'1. Order'!AR1466)","v":""},{"$f":"IF('1. Order'!AE1466=\"\",\"\",'1. Order'!AE1466)","v":""}]
[{"$f":"IF('1. Order'!B1467=\"\",\"\",'1. Order'!B1467)","v":""},{"$f":"IF('1. Order'!I1467=\"\",\"\",'1. Order'!I1467)","v":""},{"$f":"IF('1. Order'!J1467=\"\",\"\",'1. Order'!J1467)","v":""},{"$f":"IF('1. Order'!K1467=\"\",\"\",'1. Order'!K1467)","v":""},{"$f":"IF('1. Order'!M1467=\"\",\"\",'1. Order'!M1467)","v":""},null,null,{"$f":"IF('1. Order'!AR1467=\"\",\"\",'1. Order'!AR1467)","v":""},{"$f":"IF('1. Order'!AE1467=\"\",\"\",'1. Order'!AE1467)","v":""}]
[{"$f":"IF('1. Order'!B1468=\"\",\"\",'1. Order'!B1468)","v":""},{"$f":"IF('1. Order'!I1468=\"\",\"\",'1. Order'!I1468)","v":""},{"$f":"IF('1. Order'!J1468=\"\",\"\",'1. Order'!J1468)","v":""},{"$f":"IF('1. Order'!K1468=\"\",\"\",'1. Order'!K1468)","v":""},{"$f":"IF('1. Order'!M1468=\"\",\"\",'1. Order'!M1468)","v":""},null,null,{"$f":"IF('1. Order'!AR1468=\"\",\"\",'1. Order'!AR1468)","v":""},{"$f":"IF('1. Order'!AE1468=\"\",\"\",'1. Order'!AE1468)","v":""}]
[{"$f":"IF('1. Order'!B1469=\"\",\"\",'1. Order'!B1469)","v":""},{"$f":"IF('1. Order'!I1469=\"\",\"\",'1. Order'!I1469)","v":""},{"$f":"IF('1. Order'!J1469=\"\",\"\",'1. Order'!J1469)","v":""},{"$f":"IF('1. Order'!K1469=\"\",\"\",'1. Order'!K1469)","v":""},{"$f":"IF('1. Order'!M1469=\"\",\"\",'1. Order'!M1469)","v":""},null,null,{"$f":"IF('1. Order'!AR1469=\"\",\"\",'1. Order'!AR1469)","v":""},{"$f":"IF('1. Order'!AE1469=\"\",\"\",'1. Order'!AE1469)","v":""}]
[{"$f":"IF('1. Order'!B1470=\"\",\"\",'1. Order'!B1470)","v":""},{"$f":"IF('1. Order'!I1470=\"\",\"\",'1. Order'!I1470)","v":""},{"$f":"IF('1. Order'!J1470=\"\",\"\",'1. Order'!J1470)","v":""},{"$f":"IF('1. Order'!K1470=\"\",\"\",'1. Order'!K1470)","v":""},{"$f":"IF('1. Order'!M1470=\"\",\"\",'1. Order'!M1470)","v":""},null,null,{"$f":"IF('1. Order'!AR1470=\"\",\"\",'1. Order'!AR1470)","v":""},{"$f":"IF('1. Order'!AE1470=\"\",\"\",'1. Order'!AE1470)","v":""}]
[{"$f":"IF('1. Order'!B1471=\"\",\"\",'1. Order'!B1471)","v":""},{"$f":"IF('1. Order'!I1471=\"\",\"\",'1. Order'!I1471)","v":""},{"$f":"IF('1. Order'!J1471=\"\",\"\",'1. Order'!J1471)","v":""},{"$f":"IF('1. Order'!K1471=\"\",\"\",'1. Order'!K1471)","v":""},{"$f":"IF('1. Order'!M1471=\"\",\"\",'1. Order'!M1471)","v":""},null,null,{"$f":"IF('1. Order'!AR1471=\"\",\"\",'1. Order'!AR1471)","v":""},{"$f":"IF('1. Order'!AE1471=\"\",\"\",'1. Order'!AE1471)","v":""}]
[{"$f":"IF('1. Order'!B1472=\"\",\"\",'1. Order'!B1472)","v":""},{"$f":"IF('1. Order'!I1472=\"\",\"\",'1. Order'!I1472)","v":""},{"$f":"IF('1. Order'!J1472=\"\",\"\",'1. Order'!J1472)","v":""},{"$f":"IF('1. Order'!K1472=\"\",\"\",'1. Order'!K1472)","v":""},{"$f":"IF('1. Order'!M1472=\"\",\"\",'1. Order'!M1472)","v":""},null,null,{"$f":"IF('1. Order'!AR1472=\"\",\"\",'1. Order'!AR1472)","v":""},{"$f":"IF('1. Order'!AE1472=\"\",\"\",'1. Order'!AE1472)","v":""}]
[{"$f":"IF('1. Order'!B1473=\"\",\"\",'1. Order'!B1473)","v":""},{"$f":"IF('1. Order'!I1473=\"\",\"\",'1. Order'!I1473)","v":""},{"$f":"IF('1. Order'!J1473=\"\",\"\",'1. Order'!J1473)","v":""},{"$f":"IF('1. Order'!K1473=\"\",\"\",'1. Order'!K1473)","v":""},{"$f":"IF('1. Order'!M1473=\"\",\"\",'1. Order'!M1473)","v":""},null,null,{"$f":"IF('1. Order'!AR1473=\"\",\"\",'1. Order'!AR1473)","v":""},{"$f":"IF('1. Order'!AE1473=\"\",\"\",'1. Order'!AE1473)","v":""}]
[{"$f":"IF('1. Order'!B1474=\"\",\"\",'1. Order'!B1474)","v":""},{"$f":"IF('1. Order'!I1474=\"\",\"\",'1. Order'!I1474)","v":""},{"$f":"IF('1. Order'!J1474=\"\",\"\",'1. Order'!J1474)","v":""},{"$f":"IF('1. Order'!K1474=\"\",\"\",'1. Order'!K1474)","v":""},{"$f":"IF('1. Order'!M1474=\"\",\"\",'1. Order'!M1474)","v":""},null,null,{"$f":"IF('1. Order'!AR1474=\"\",\"\",'1. Order'!AR1474)","v":""},{"$f":"IF('1. Order'!AE1474=\"\",\"\",'1. Order'!AE1474)","v":""}]
[{"$f":"IF('1. Order'!B1475=\"\",\"\",'1. Order'!B1475)","v":""},{"$f":"IF('1. Order'!I1475=\"\",\"\",'1. Order'!I1475)","v":""},{"$f":"IF('1. Order'!J1475=\"\",\"\",'1. Order'!J1475)","v":""},{"$f":"IF('1. Order'!K1475=\"\",\"\",'1. Order'!K1475)","v":""},{"$f":"IF('1. Order'!M1475=\"\",\"\",'1. Order'!M1475)","v":""},null,null,{"$f":"IF('1. Order'!AR1475=\"\",\"\",'1. Order'!AR1475)","v":""},{"$f":"IF('1. Order'!AE1475=\"\",\"\",'1. Order'!AE1475)","v":""}]
[{"$f":"IF('1. Order'!B1476=\"\",\"\",'1. Order'!B1476)","v":""},{"$f":"IF('1. Order'!I1476=\"\",\"\",'1. Order'!I1476)","v":""},{"$f":"IF('1. Order'!J1476=\"\",\"\",'1. Order'!J1476)","v":""},{"$f":"IF('1. Order'!K1476=\"\",\"\",'1. Order'!K1476)","v":""},{"$f":"IF('1. Order'!M1476=\"\",\"\",'1. Order'!M1476)","v":""},null,null,{"$f":"IF('1. Order'!AR1476=\"\",\"\",'1. Order'!AR1476)","v":""},{"$f":"IF('1. Order'!AE1476=\"\",\"\",'1. Order'!AE1476)","v":""}]
[{"$f":"IF('1. Order'!B1477=\"\",\"\",'1. Order'!B1477)","v":""},{"$f":"IF('1. Order'!I1477=\"\",\"\",'1. Order'!I1477)","v":""},{"$f":"IF('1. Order'!J1477=\"\",\"\",'1. Order'!J1477)","v":""},{"$f":"IF('1. Order'!K1477=\"\",\"\",'1. Order'!K1477)","v":""},{"$f":"IF('1. Order'!M1477=\"\",\"\",'1. Order'!M1477)","v":""},null,null,{"$f":"IF('1. Order'!AR1477=\"\",\"\",'1. Order'!AR1477)","v":""},{"$f":"IF('1. Order'!AE1477=\"\",\"\",'1. Order'!AE1477)","v":""}]
[{"$f":"IF('1. Order'!B1478=\"\",\"\",'1. Order'!B1478)","v":""},{"$f":"IF('1. Order'!I1478=\"\",\"\",'1. Order'!I1478)","v":""},{"$f":"IF('1. Order'!J1478=\"\",\"\",'1. Order'!J1478)","v":""},{"$f":"IF('1. Order'!K1478=\"\",\"\",'1. Order'!K1478)","v":""},{"$f":"IF('1. Order'!M1478=\"\",\"\",'1. Order'!M1478)","v":""},null,null,{"$f":"IF('1. Order'!AR1478=\"\",\"\",'1. Order'!AR1478)","v":""},{"$f":"IF('1. Order'!AE1478=\"\",\"\",'1. Order'!AE1478)","v":""}]
[{"$f":"IF('1. Order'!B1479=\"\",\"\",'1. Order'!B1479)","v":""},{"$f":"IF('1. Order'!I1479=\"\",\"\",'1. Order'!I1479)","v":""},{"$f":"IF('1. Order'!J1479=\"\",\"\",'1. Order'!J1479)","v":""},{"$f":"IF('1. Order'!K1479=\"\",\"\",'1. Order'!K1479)","v":""},{"$f":"IF('1. Order'!M1479=\"\",\"\",'1. Order'!M1479)","v":""},null,null,{"$f":"IF('1. Order'!AR1479=\"\",\"\",'1. Order'!AR1479)","v":""},{"$f":"IF('1. Order'!AE1479=\"\",\"\",'1. Order'!AE1479)","v":""}]
[{"$f":"IF('1. Order'!B1480=\"\",\"\",'1. Order'!B1480)","v":""},{"$f":"IF('1. Order'!I1480=\"\",\"\",'1. Order'!I1480)","v":""},{"$f":"IF('1. Order'!J1480=\"\",\"\",'1. Order'!J1480)","v":""},{"$f":"IF('1. Order'!K1480=\"\",\"\",'1. Order'!K1480)","v":""},{"$f":"IF('1. Order'!M1480=\"\",\"\",'1. Order'!M1480)","v":""},null,null,{"$f":"IF('1. Order'!AR1480=\"\",\"\",'1. Order'!AR1480)","v":""},{"$f":"IF('1. Order'!AE1480=\"\",\"\",'1. Order'!AE1480)","v":""}]
[{"$f":"IF('1. Order'!B1481=\"\",\"\",'1. Order'!B1481)","v":""},{"$f":"IF('1. Order'!I1481=\"\",\"\",'1. Order'!I1481)","v":""},{"$f":"IF('1. Order'!J1481=\"\",\"\",'1. Order'!J1481)","v":""},{"$f":"IF('1. Order'!K1481=\"\",\"\",'1. Order'!K1481)","v":""},{"$f":"IF('1. Order'!M1481=\"\",\"\",'1. Order'!M1481)","v":""},null,null,{"$f":"IF('1. Order'!AR1481=\"\",\"\",'1. Order'!AR1481)","v":""},{"$f":"IF('1. Order'!AE1481=\"\",\"\",'1. Order'!AE1481)","v":""}]
[{"$f":"IF('1. Order'!B1482=\"\",\"\",'1. Order'!B1482)","v":""},{"$f":"IF('1. Order'!I1482=\"\",\"\",'1. Order'!I1482)","v":""},{"$f":"IF('1. Order'!J1482=\"\",\"\",'1. Order'!J1482)","v":""},{"$f":"IF('1. Order'!K1482=\"\",\"\",'1. Order'!K1482)","v":""},{"$f":"IF('1. Order'!M1482=\"\",\"\",'1. Order'!M1482)","v":""},null,null,{"$f":"IF('1. Order'!AR1482=\"\",\"\",'1. Order'!AR1482)","v":""},{"$f":"IF('1. Order'!AE1482=\"\",\"\",'1. Order'!AE1482)","v":""}]
[{"$f":"IF('1. Order'!B1483=\"\",\"\",'1. Order'!B1483)","v":""},{"$f":"IF('1. Order'!I1483=\"\",\"\",'1. Order'!I1483)","v":""},{"$f":"IF('1. Order'!J1483=\"\",\"\",'1. Order'!J1483)","v":""},{"$f":"IF('1. Order'!K1483=\"\",\"\",'1. Order'!K1483)","v":""},{"$f":"IF('1. Order'!M1483=\"\",\"\",'1. Order'!M1483)","v":""},null,null,{"$f":"IF('1. Order'!AR1483=\"\",\"\",'1. Order'!AR1483)","v":""},{"$f":"IF('1. Order'!AE1483=\"\",\"\",'1. Order'!AE1483)","v":""}]
[{"$f":"IF('1. Order'!B1484=\"\",\"\",'1. Order'!B1484)","v":""},{"$f":"IF('1. Order'!I1484=\"\",\"\",'1. Order'!I1484)","v":""},{"$f":"IF('1. Order'!J1484=\"\",\"\",'1. Order'!J1484)","v":""},{"$f":"IF('1. Order'!K1484=\"\",\"\",'1. Order'!K1484)","v":""},{"$f":"IF('1. Order'!M1484=\"\",\"\",'1. Order'!M1484)","v":""},null,null,{"$f":"IF('1. Order'!AR1484=\"\",\"\",'1. Order'!AR1484)","v":""},{"$f":"IF('1. Order'!AE1484=\"\",\"\",'1. Order'!AE1484)","v":""}]
[{"$f":"IF('1. Order'!B1485=\"\",\"\",'1. Order'!B1485)","v":""},{"$f":"IF('1. Order'!I1485=\"\",\"\",'1. Order'!I1485)","v":""},{"$f":"IF('1. Order'!J1485=\"\",\"\",'1. Order'!J1485)","v":""},{"$f":"IF('1. Order'!K1485=\"\",\"\",'1. Order'!K1485)","v":""},{"$f":"IF('1. Order'!M1485=\"\",\"\",'1. Order'!M1485)","v":""},null,null,{"$f":"IF('1. Order'!AR1485=\"\",\"\",'1. Order'!AR1485)","v":""},{"$f":"IF('1. Order'!AE1485=\"\",\"\",'1. Order'!AE1485)","v":""}]
[{"$f":"IF('1. Order'!B1486=\"\",\"\",'1. Order'!B1486)","v":""},{"$f":"IF('1. Order'!I1486=\"\",\"\",'1. Order'!I1486)","v":""},{"$f":"IF('1. Order'!J1486=\"\",\"\",'1. Order'!J1486)","v":""},{"$f":"IF('1. Order'!K1486=\"\",\"\",'1. Order'!K1486)","v":""},{"$f":"IF('1. Order'!M1486=\"\",\"\",'1. Order'!M1486)","v":""},null,null,{"$f":"IF('1. Order'!AR1486=\"\",\"\",'1. Order'!AR1486)","v":""},{"$f":"IF('1. Order'!AE1486=\"\",\"\",'1. Order'!AE1486)","v":""}]
[{"$f":"IF('1. Order'!B1487=\"\",\"\",'1. Order'!B1487)","v":""},{"$f":"IF('1. Order'!I1487=\"\",\"\",'1. Order'!I1487)","v":""},{"$f":"IF('1. Order'!J1487=\"\",\"\",'1. Order'!J1487)","v":""},{"$f":"IF('1. Order'!K1487=\"\",\"\",'1. Order'!K1487)","v":""},{"$f":"IF('1. Order'!M1487=\"\",\"\",'1. Order'!M1487)","v":""},null,null,{"$f":"IF('1. Order'!AR1487=\"\",\"\",'1. Order'!AR1487)","v":""},{"$f":"IF('1. Order'!AE1487=\"\",\"\",'1. Order'!AE1487)","v":""}]
[{"$f":"IF('1. Order'!B1488=\"\",\"\",'1. Order'!B1488)","v":""},{"$f":"IF('1. Order'!I1488=\"\",\"\",'1. Order'!I1488)","v":""},{"$f":"IF('1. Order'!J1488=\"\",\"\",'1. Order'!J1488)","v":""},{"$f":"IF('1. Order'!K1488=\"\",\"\",'1. Order'!K1488)","v":""},{"$f":"IF('1. Order'!M1488=\"\",\"\",'1. Order'!M1488)","v":""},null,null,{"$f":"IF('1. Order'!AR1488=\"\",\"\",'1. Order'!AR1488)","v":""},{"$f":"IF('1. Order'!AE1488=\"\",\"\",'1. Order'!AE1488)","v":""}]
[{"$f":"IF('1. Order'!B1489=\"\",\"\",'1. Order'!B1489)","v":""},{"$f":"IF('1. Order'!I1489=\"\",\"\",'1. Order'!I1489)","v":""},{"$f":"IF('1. Order'!J1489=\"\",\"\",'1. Order'!J1489)","v":""},{"$f":"IF('1. Order'!K1489=\"\",\"\",'1. Order'!K1489)","v":""},{"$f":"IF('1. Order'!M1489=\"\",\"\",'1. Order'!M1489)","v":""},null,null,{"$f":"IF('1. Order'!AR1489=\"\",\"\",'1. Order'!AR1489)","v":""},{"$f":"IF('1. Order'!AE1489=\"\",\"\",'1. Order'!AE1489)","v":""}]
[{"$f":"IF('1. Order'!B1490=\"\",\"\",'1. Order'!B1490)","v":""},{"$f":"IF('1. Order'!I1490=\"\",\"\",'1. Order'!I1490)","v":""},{"$f":"IF('1. Order'!J1490=\"\",\"\",'1. Order'!J1490)","v":""},{"$f":"IF('1. Order'!K1490=\"\",\"\",'1. Order'!K1490)","v":""},{"$f":"IF('1. Order'!M1490=\"\",\"\",'1. Order'!M1490)","v":""},null,null,{"$f":"IF('1. Order'!AR1490=\"\",\"\",'1. Order'!AR1490)","v":""},{"$f":"IF('1. Order'!AE1490=\"\",\"\",'1. Order'!AE1490)","v":""}]
[{"$f":"IF('1. Order'!B1491=\"\",\"\",'1. Order'!B1491)","v":""},{"$f":"IF('1. Order'!I1491=\"\",\"\",'1. Order'!I1491)","v":""},{"$f":"IF('1. Order'!J1491=\"\",\"\",'1. Order'!J1491)","v":""},{"$f":"IF('1. Order'!K1491=\"\",\"\",'1. Order'!K1491)","v":""},{"$f":"IF('1. Order'!M1491=\"\",\"\",'1. Order'!M1491)","v":""},null,null,{"$f":"IF('1. Order'!AR1491=\"\",\"\",'1. Order'!AR1491)","v":""},{"$f":"IF('1. Order'!AE1491=\"\",\"\",'1. Order'!AE1491)","v":""}]
[{"$f":"IF('1. Order'!B1492=\"\",\"\",'1. Order'!B1492)","v":""},{"$f":"IF('1. Order'!I1492=\"\",\"\",'1. Order'!I1492)","v":""},{"$f":"IF('1. Order'!J1492=\"\",\"\",'1. Order'!J1492)","v":""},{"$f":"IF('1. Order'!K1492=\"\",\"\",'1. Order'!K1492)","v":""},{"$f":"IF('1. Order'!M1492=\"\",\"\",'1. Order'!M1492)","v":""},null,null,{"$f":"IF('1. Order'!AR1492=\"\",\"\",'1. Order'!AR1492)","v":""},{"$f":"IF('1. Order'!AE1492=\"\",\"\",'1. Order'!AE1492)","v":""}]
[{"$f":"IF('1. Order'!B1493=\"\",\"\",'1. Order'!B1493)","v":""},{"$f":"IF('1. Order'!I1493=\"\",\"\",'1. Order'!I1493)","v":""},{"$f":"IF('1. Order'!J1493=\"\",\"\",'1. Order'!J1493)","v":""},{"$f":"IF('1. Order'!K1493=\"\",\"\",'1. Order'!K1493)","v":""},{"$f":"IF('1. Order'!M1493=\"\",\"\",'1. Order'!M1493)","v":""},null,null,{"$f":"IF('1. Order'!AR1493=\"\",\"\",'1. Order'!AR1493)","v":""},{"$f":"IF('1. Order'!AE1493=\"\",\"\",'1. Order'!AE1493)","v":""}]
[{"$f":"IF('1. Order'!B1494=\"\",\"\",'1. Order'!B1494)","v":""},{"$f":"IF('1. Order'!I1494=\"\",\"\",'1. Order'!I1494)","v":""},{"$f":"IF('1. Order'!J1494=\"\",\"\",'1. Order'!J1494)","v":""},{"$f":"IF('1. Order'!K1494=\"\",\"\",'1. Order'!K1494)","v":""},{"$f":"IF('1. Order'!M1494=\"\",\"\",'1. Order'!M1494)","v":""},null,null,{"$f":"IF('1. Order'!AR1494=\"\",\"\",'1. Order'!AR1494)","v":""},{"$f":"IF('1. Order'!AE1494=\"\",\"\",'1. Order'!AE1494)","v":""}]
[{"$f":"IF('1. Order'!B1495=\"\",\"\",'1. Order'!B1495)","v":""},{"$f":"IF('1. Order'!I1495=\"\",\"\",'1. Order'!I1495)","v":""},{"$f":"IF('1. Order'!J1495=\"\",\"\",'1. Order'!J1495)","v":""},{"$f":"IF('1. Order'!K1495=\"\",\"\",'1. Order'!K1495)","v":""},{"$f":"IF('1. Order'!M1495=\"\",\"\",'1. Order'!M1495)","v":""},null,null,{"$f":"IF('1. Order'!AR1495=\"\",\"\",'1. Order'!AR1495)","v":""},{"$f":"IF('1. Order'!AE1495=\"\",\"\",'1. Order'!AE1495)","v":""}]
[{"$f":"IF('1. Order'!B1496=\"\",\"\",'1. Order'!B1496)","v":""},{"$f":"IF('1. Order'!I1496=\"\",\"\",'1. Order'!I1496)","v":""},{"$f":"IF('1. Order'!J1496=\"\",\"\",'1. Order'!J1496)","v":""},{"$f":"IF('1. Order'!K1496=\"\",\"\",'1. Order'!K1496)","v":""},{"$f":"IF('1. Order'!M1496=\"\",\"\",'1. Order'!M1496)","v":""},null,null,{"$f":"IF('1. Order'!AR1496=\"\",\"\",'1. Order'!AR1496)","v":""},{"$f":"IF('1. Order'!AE1496=\"\",\"\",'1. Order'!AE1496)","v":""}]
[{"$f":"IF('1. Order'!B1497=\"\",\"\",'1. Order'!B1497)","v":""},{"$f":"IF('1. Order'!I1497=\"\",\"\",'1. Order'!I1497)","v":""},{"$f":"IF('1. Order'!J1497=\"\",\"\",'1. Order'!J1497)","v":""},{"$f":"IF('1. Order'!K1497=\"\",\"\",'1. Order'!K1497)","v":""},{"$f":"IF('1. Order'!M1497=\"\",\"\",'1. Order'!M1497)","v":""},null,null,{"$f":"IF('1. Order'!AR1497=\"\",\"\",'1. Order'!AR1497)","v":""},{"$f":"IF('1. Order'!AE1497=\"\",\"\",'1. Order'!AE1497)","v":""}]
[{"$f":"IF('1. Order'!B1498=\"\",\"\",'1. Order'!B1498)","v":""},{"$f":"IF('1. Order'!I1498=\"\",\"\",'1. Order'!I1498)","v":""},{"$f":"IF('1. Order'!J1498=\"\",\"\",'1. Order'!J1498)","v":""},{"$f":"IF('1. Order'!K1498=\"\",\"\",'1. Order'!K1498)","v":""},{"$f":"IF('1. Order'!M1498=\"\",\"\",'1. Order'!M1498)","v":""},null,null,{"$f":"IF('1. Order'!AR1498=\"\",\"\",'1. Order'!AR1498)","v":""},{"$f":"IF('1. Order'!AE1498=\"\",\"\",'1. Order'!AE1498)","v":""}]
[{"$f":"IF('1. Order'!B1499=\"\",\"\",'1. Order'!B1499)","v":""},{"$f":"IF('1. Order'!I1499=\"\",\"\",'1. Order'!I1499)","v":""},{"$f":"IF('1. Order'!J1499=\"\",\"\",'1. Order'!J1499)","v":""},{"$f":"IF('1. Order'!K1499=\"\",\"\",'1. Order'!K1499)","v":""},{"$f":"IF('1. Order'!M1499=\"\",\"\",'1. Order'!M1499)","v":""},null,null,{"$f":"IF('1. Order'!AR1499=\"\",\"\",'1. Order'!AR1499)","v":""},{"$f":"IF('1. Order'!AE1499=\"\",\"\",'1. Order'!AE1499)","v":""}]
[{"$f":"IF('1. Order'!B1500=\"\",\"\",'1. Order'!B1500)","v":""},{"$f":"IF('1. Order'!I1500=\"\",\"\",'1. Order'!I1500)","v":""},{"$f":"IF('1. Order'!J1500=\"\",\"\",'1. Order'!J1500)","v":""},{"$f":"IF('1. Order'!K1500=\"\",\"\",'1. Order'!K1500)","v":""},{"$f":"IF('1. Order'!M1500=\"\",\"\",'1. Order'!M1500)","v":""},null,null,{"$f":"IF('1. Order'!AR1500=\"\",\"\",'1. Order'!AR1500)","v":""},{"$f":"IF('1. Order'!AE1500=\"\",\"\",'1. Order'!AE1500)","v":""}]
[{"$f":"IF('1. Order'!B1501=\"\",\"\",'1. Order'!B1501)","v":""},{"$f":"IF('1. Order'!I1501=\"\",\"\",'1. Order'!I1501)","v":""},{"$f":"IF('1. Order'!J1501=\"\",\"\",'1. Order'!J1501)","v":""},{"$f":"IF('1. Order'!K1501=\"\",\"\",'1. Order'!K1501)","v":""},{"$f":"IF('1. Order'!M1501=\"\",\"\",'1. Order'!M1501)","v":""},null,null,{"$f":"IF('1. Order'!AR1501=\"\",\"\",'1. Order'!AR1501)","v":""},{"$f":"IF('1. Order'!AE1501=\"\",\"\",'1. Order'!AE1501)","v":""}]
[{"$f":"IF('1. Order'!B1502=\"\",\"\",'1. Order'!B1502)","v":""},{"$f":"IF('1. Order'!I1502=\"\",\"\",'1. Order'!I1502)","v":""},{"$f":"IF('1. Order'!J1502=\"\",\"\",'1. Order'!J1502)","v":""},{"$f":"IF('1. Order'!K1502=\"\",\"\",'1. Order'!K1502)","v":""},{"$f":"IF('1. Order'!M1502=\"\",\"\",'1. Order'!M1502)","v":""},null,null,{"$f":"IF('1. Order'!AR1502=\"\",\"\",'1. Order'!AR1502)","v":""},{"$f":"IF('1. Order'!AE1502=\"\",\"\",'1. Order'!AE1502)","v":""}]
[{"$f":"IF('1. Order'!B1503=\"\",\"\",'1. Order'!B1503)","v":""},{"$f":"IF('1. Order'!I1503=\"\",\"\",'1. Order'!I1503)","v":""},{"$f":"IF('1. Order'!J1503=\"\",\"\",'1. Order'!J1503)","v":""},{"$f":"IF('1. Order'!K1503=\"\",\"\",'1. Order'!K1503)","v":""},{"$f":"IF('1. Order'!M1503=\"\",\"\",'1. Order'!M1503)","v":""},null,null,{"$f":"IF('1. Order'!AR1503=\"\",\"\",'1. Order'!AR1503)","v":""},{"$f":"IF('1. Order'!AE1503=\"\",\"\",'1. Order'!AE1503)","v":""}]

{"sheet":"2.1 Content (ENG)","index":3,"n_rows":1500,"n_cols":26,"rows_kept":1500,"cut":false,"hidden":false,"merged":[[0,0,0,4],[0,5,0,16],[0,17,0,21],[0,22,0,25]]}
["PRODUCTINFORMATIE",null,null,null,null,"GENERAL CONTENT",null,null,null,null,null,null,null,null,null,null,null,"BRAS/TOPS",null,null,null,null,"SLIPS/BOXERS"]
["Wehkamp article number","Style number","Style name","Colour number + name","EAN/UPC","Filter colour","Colour","Filtermaterial","Material","Print","Set (Lingerie)","Multipack","Number of pieces in pack","Giftbox","Seamless","Correcting","Level of correction","Multi: Type of bra","Wired","Padded","Impactlevel","Neckline","Multi: Type of slip","Back material","Front material","Multi: Absorption level"]
[{"$f":"IF('1. Order'!B6=\"\",\"\",'1. Order'!B6)","v":""},{"$f":"IF('1. Order'!I6=\"\",\"\",'1. Order'!I6)","v":""},{"$f":"IF('1. Order'!J6=\"\",\"\",'1. Order'!J6)","v":""},{"$f":"IF('1. Order'!K6=\"\",\"\",'1. Order'!K6)","v":""},{"$f":"IF('1. Order'!M6=\"\",\"\",'1. Order'!M6)","v":""},null,null,{"$f":"'1. Order'!AW6","v":0},{"$f":"IF('1. Order'!AE6=\"\",\"\",'1. Order'!AE6)","v":""}]
[{"$f":"IF('1. Order'!B7=\"\",\"\",'1. Order'!B7)","v":""},{"$f":"IF('1. Order'!I7=\"\",\"\",'1. Order'!I7)","v":""},{"$f":"IF('1. Order'!J7=\"\",\"\",'1. Order'!J7)","v":""},{"$f":"IF('1. Order'!K7=\"\",\"\",'1. Order'!K7)","v":""},{"$f":"IF('1. Order'!M7=\"\",\"\",'1. Order'!M7)","v":""},null,null,{"$f":"'1. Order'!AW7","v":0},{"$f":"IF('1. Order'!AE7=\"\",\"\",'1. Order'!AE7)","v":""}]
[{"$f":"IF('1. Order'!B8=\"\",\"\",'1. Order'!B8)","v":""},{"$f":"IF('1. Order'!I8=\"\",\"\",'1. Order'!I8)","v":""},{"$f":"IF('1. Order'!J8=\"\",\"\",'1. Order'!J8)","v":""},{"$f":"IF('1. Order'!K8=\"\",\"\",'1. Order'!K8)","v":""},{"$f":"IF('1. Order'!M8=\"\",\"\",'1. Order'!M8)","v":""},null,null,{"$f":"'1. Order'!AW8","v":0},{"$f":"IF('1. Order'!AE8=\"\",\"\",'1. Order'!AE8)","v":""}]
[{"$f":"IF('1. Order'!B9=\"\",\"\",'1. Order'!B9)","v":""},{"$f":"IF('1. Order'!I9=\"\",\"\",'1. Order'!I9)","v":""},{"$f":"IF('1. Order'!J9=\"\",\"\",'1. Order'!J9)","v":""},{"$f":"IF('1. Order'!K9=\"\",\"\",'1. Order'!K9)","v":""},{"$f":"IF('1. Order'!M9=\"\",\"\",'1. Order'!M9)","v":""},null,null,{"$f":"'1. Order'!AW9","v":0},{"$f":"IF('1. Order'!AE9=\"\",\"\",'1. Order'!AE9)","v":""}]
[{"$f":"IF('1. Order'!B10=\"\",\"\",'1. Order'!B10)","v":""},{"$f":"IF('1. Order'!I10=\"\",\"\",'1. Order'!I10)","v":""},{"$f":"IF('1. Order'!J10=\"\",\"\",'1. Order'!J10)","v":""},{"$f":"IF('1. Order'!K10=\"\",\"\",'1. Order'!K10)","v":""},{"$f":"IF('1. Order'!M10=\"\",\"\",'1. Order'!M10)","v":""},null,null,{"$f":"'1. Order'!AW10","v":0},{"$f":"IF('1. Order'!AE10=\"\",\"\",'1. Order'!AE10)","v":""}]
[{"$f":"IF('1. Order'!B11=\"\",\"\",'1. Order'!B11)","v":""},{"$f":"IF('1. Order'!I11=\"\",\"\",'1. Order'!I11)","v":""},{"$f":"IF('1. Order'!J11=\"\",\"\",'1. Order'!J11)","v":""},{"$f":"IF('1. Order'!K11=\"\",\"\",'1. Order'!K11)","v":""},{"$f":"IF('1. Order'!M11=\"\",\"\",'1. Order'!M11)","v":""},null,null,{"$f":"'1. Order'!AW11","v":0},{"$f":"IF('1. Order'!AE11=\"\",\"\",'1. Order'!AE11)","v":""}]
[{"$f":"IF('1. Order'!B12=\"\",\"\",'1. Order'!B12)","v":""},{"$f":"IF('1. Order'!I12=\"\",\"\",'1. Order'!I12)","v":""},{"$f":"IF('1. Order'!J12=\"\",\"\",'1. Order'!J12)","v":""},{"$f":"IF('1. Order'!K12=\"\",\"\",'1. Order'!K12)","v":""},{"$f":"IF('1. Order'!M12=\"\",\"\",'1. Order'!M12)","v":""},null,null,{"$f":"'1. Order'!AW12","v":0},{"$f":"IF('1. Order'!AE12=\"\",\"\",'1. Order'!AE12)","v":""}]
[{"$f":"IF('1. Order'!B13=\"\",\"\",'1. Order'!B13)","v":""},{"$f":"IF('1. Order'!I13=\"\",\"\",'1. Order'!I13)","v":""},{"$f":"IF('1. Order'!J13=\"\",\"\",'1. Order'!J13)","v":""},{"$f":"IF('1. Order'!K13=\"\",\"\",'1. Order'!K13)","v":""},{"$f":"IF('1. Order'!M13=\"\",\"\",'1. Order'!M13)","v":""},null,null,{"$f":"'1. Order'!AW13","v":0},{"$f":"IF('1. Order'!AE13=\"\",\"\",'1. Order'!AE13)","v":""}]
[{"$f":"IF('1. Order'!B14=\"\",\"\",'1. Order'!B14)","v":""},{"$f":"IF('1. Order'!I14=\"\",\"\",'1. Order'!I14)","v":""},{"$f":"IF('1. Order'!J14=\"\",\"\",'1. Order'!J14)","v":""},{"$f":"IF('1. Order'!K14=\"\",\"\",'1. Order'!K14)","v":""},{"$f":"IF('1. Order'!M14=\"\",\"\",'1. Order'!M14)","v":""},null,null,{"$f":"'1. Order'!AW14","v":0},{"$f":"IF('1. Order'!AE14=\"\",\"\",'1. Order'!AE14)","v":""}]
[{"$f":"IF('1. Order'!B15=\"\",\"\",'1. Order'!B15)","v":""},{"$f":"IF('1. Order'!I15=\"\",\"\",'1. Order'!I15)","v":""},{"$f":"IF('1. Order'!J15=\"\",\"\",'1. Order'!J15)","v":""},{"$f":"IF('1. Order'!K15=\"\",\"\",'1. Order'!K15)","v":""},{"$f":"IF('1. Order'!M15=\"\",\"\",'1. Order'!M15)","v":""},null,null,{"$f":"'1. Order'!AW15","v":0},{"$f":"IF('1. Order'!AE15=\"\",\"\",'1. Order'!AE15)","v":""}]
[{"$f":"IF('1. Order'!B16=\"\",\"\",'1. Order'!B16)","v":""},{"$f":"IF('1. Order'!I16=\"\",\"\",'1. Order'!I16)","v":""},{"$f":"IF('1. Order'!J16=\"\",\"\",'1. Order'!J16)","v":""},{"$f":"IF('1. Order'!K16=\"\",\"\",'1. Order'!K16)","v":""},{"$f":"IF('1. Order'!M16=\"\",\"\",'1. Order'!M16)","v":""},null,null,{"$f":"'1. Order'!AW16","v":0},{"$f":"IF('1. Order'!AE16=\"\",\"\",'1. Order'!AE16)","v":""}]
[{"$f":"IF('1. Order'!B17=\"\",\"\",'1. Order'!B17)","v":""},{"$f":"IF('1. Order'!I17=\"\",\"\",'1. Order'!I17)","v":""},{"$f":"IF('1. Order'!J17=\"\",\"\",'1. Order'!J17)","v":""},{"$f":"IF('1. Order'!K17=\"\",\"\",'1. Order'!K17)","v":""},{"$f":"IF('1. Order'!M17=\"\",\"\",'1. Order'!M17)","v":""},null,null,{"$f":"'1. Order'!AW17","v":0},{"$f":"IF('1. Order'!AE17=\"\",\"\",'1. Order'!AE17)","v":""}]
[{"$f":"IF('1. Order'!B18=\"\",\"\",'1. Order'!B18)","v":""},{"$f":"IF('1. Order'!I18=\"\",\"\",'1. Order'!I18)","v":""},{"$f":"IF('1. Order'!J18=\"\",\"\",'1. Order'!J18)","v":""},{"$f":"IF('1. Order'!K18=\"\",\"\",'1. Order'!K18)","v":""},{"$f":"IF('1. Order'!M18=\"\",\"\",'1. Order'!M18)","v":""},null,null,{"$f":"'1. Order'!AW18","v":0},{"$f":"IF('1. Order'!AE18=\"\",\"\",'1. Order'!AE18)","v":""}]
[{"$f":"IF('1. Order'!B19=\"\",\"\",'1. Order'!B19)","v":""},{"$f":"IF('1. Order'!I19=\"\",\"\",'1. Order'!I19)","v":""},{"$f":"IF('1. Order'!J19=\"\",\"\",'1. Order'!J19)","v":""},{"$f":"IF('1. Order'!K19=\"\",\"\",'1. Order'!K19)","v":""},{"$f":"IF('1. Order'!M19=\"\",\"\",'1. Order'!M19)","v":""},null,null,{"$f":"'1. Order'!AW19","v":0},{"$f":"IF('1. Order'!AE19=\"\",\"\",'1. Order'!AE19)","v":""}]
[{"$f":"IF('1. Order'!B20=\"\",\"\",'1. Order'!B20)","v":""},{"$f":"IF('1. Order'!I20=\"\",\"\",'1. Order'!I20)","v":""},{"$f":"IF('1. Order'!J20=\"\",\"\",'1. Order'!J20)","v":""},{"$f":"IF('1. Order'!K20=\"\",\"\",'1. Order'!K20)","v":""},{"$f":"IF('1. Order'!M20=\"\",\"\",'1. Order'!M20)","v":""},null,null,{"$f":"'1. Order'!AW20","v":0},{"$f":"IF('1. Order'!AE20=\"\",\"\",'1. Order'!AE20)","v":""}]
[{"$f":"IF('1. Order'!B21=\"\",\"\",'1. Order'!B21)","v":""},{"$f":"IF('1. Order'!I21=\"\",\"\",'1. Order'!I21)","v":""},{"$f":"IF('1. Order'!J21=\"\",\"\",'1. Order'!J21)","v":""},{"$f":"IF('1. Order'!K21=\"\",\"\",'1. Order'!K21)","v":""},{"$f":"IF('1. Order'!M21=\"\",\"\",'1. Order'!M21)","v":""},null,null,{"$f":"'1. Order'!AW21","v":0},{"$f":"IF('1. Order'!AE21=\"\",\"\",'1. Order'!AE21)","v":""}]
[{"$f":"IF('1. Order'!B22=\"\",\"\",'1. Order'!B22)","v":""},{"$f":"IF('1. Order'!I22=\"\",\"\",'1. Order'!I22)","v":""},{"$f":"IF('1. Order'!J22=\"\",\"\",'1. Order'!J22)","v":""},{"$f":"IF('1. Order'!K22=\"\",\"\",'1. Order'!K22)","v":""},{"$f":"IF('1. Order'!M22=\"\",\"\",'1. Order'!M22)","v":""},null,null,{"$f":"'1. Order'!AW22","v":0},{"$f":"IF('1. Order'!AE22=\"\",\"\",'1. Order'!AE22)","v":""}]
[{"$f":"IF('1. Order'!B23=\"\",\"\",'1. Order'!B23)","v":""},{"$f":"IF('1. Order'!I23=\"\",\"\",'1. Order'!I23)","v":""},{"$f":"IF('1. Order'!J23=\"\",\"\",'1. Order'!J23)","v":""},{"$f":"IF('1. Order'!K23=\"\",\"\",'1. Order'!K23)","v":""},{"$f":"IF('1. Order'!M23=\"\",\"\",'1. Order'!M23)","v":""},null,null,{"$f":"'1. Order'!AW23","v":0},{"$f":"IF('1. Order'!AE23=\"\",\"\",'1. Order'!AE23)","v":""}]
[{"$f":"IF('1. Order'!B24=\"\",\"\",'1. Order'!B24)","v":""},{"$f":"IF('1. Order'!I24=\"\",\"\",'1. Order'!I24)","v":""},{"$f":"IF('1. Order'!J24=\"\",\"\",'1. Order'!J24)","v":""},{"$f":"IF('1. Order'!K24=\"\",\"\",'1. Order'!K24)","v":""},{"$f":"IF('1. Order'!M24=\"\",\"\",'1. Order'!M24)","v":""},null,null,{"$f":"'1. Order'!AW24","v":0},{"$f":"IF('1. Order'!AE24=\"\",\"\",'1. Order'!AE24)","v":""}]
[{"$f":"IF('1. Order'!B25=\"\",\"\",'1. Order'!B25)","v":""},{"$f":"IF('1. Order'!I25=\"\",\"\",'1. Order'!I25)","v":""},{"$f":"IF('1. Order'!J25=\"\",\"\",'1. Order'!J25)","v":""},{"$f":"IF('1. Order'!K25=\"\",\"\",'1. Order'!K25)","v":""},{"$f":"IF('1. Order'!M25=\"\",\"\",'1. Order'!M25)","v":""},null,null,{"$f":"'1. Order'!AW25","v":0},{"$f":"IF('1. Order'!AE25=\"\",\"\",'1. Order'!AE25)","v":""}]
[{"$f":"IF('1. Order'!B26=\"\",\"\",'1. Order'!B26)","v":""},{"$f":"IF('1. Order'!I26=\"\",\"\",'1. Order'!I26)","v":""},{"$f":"IF('1. Order'!J26=\"\",\"\",'1. Order'!J26)","v":""},{"$f":"IF('1. Order'!K26=\"\",\"\",'1. Order'!K26)","v":""},{"$f":"IF('1. Order'!M26=\"\",\"\",'1. Order'!M26)","v":""},null,null,{"$f":"'1. Order'!AW26","v":0},{"$f":"IF('1. Order'!AE26=\"\",\"\",'1. Order'!AE26)","v":""}]
[{"$f":"IF('1. Order'!B27=\"\",\"\",'1. Order'!B27)","v":""},{"$f":"IF('1. Order'!I27=\"\",\"\",'1. Order'!I27)","v":""},{"$f":"IF('1. Order'!J27=\"\",\"\",'1. Order'!J27)","v":""},{"$f":"IF('1. Order'!K27=\"\",\"\",'1. Order'!K27)","v":""},{"$f":"IF('1. Order'!M27=\"\",\"\",'1. Order'!M27)","v":""},null,null,{"$f":"'1. Order'!AW27","v":0},{"$f":"IF('1. Order'!AE27=\"\",\"\",'1. Order'!AE27)","v":""}]
[{"$f":"IF('1. Order'!B28=\"\",\"\",'1. Order'!B28)","v":""},{"$f":"IF('1. Order'!I28=\"\",\"\",'1. Order'!I28)","v":""},{"$f":"IF('1. Order'!J28=\"\",\"\",'1. Order'!J28)","v":""},{"$f":"IF('1. Order'!K28=\"\",\"\",'1. Order'!K28)","v":""},{"$f":"IF('1. Order'!M28=\"\",\"\",'1. Order'!M28)","v":""},null,null,{"$f":"'1. Order'!AW28","v":0},{"$f":"IF('1. Order'!AE28=\"\",\"\",'1. Order'!AE28)","v":""}]
[{"$f":"IF('1. Order'!B29=\"\",\"\",'1. Order'!B29)","v":""},{"$f":"IF('1. Order'!I29=\"\",\"\",'1. Order'!I29)","v":""},{"$f":"IF('1. Order'!J29=\"\",\"\",'1. Order'!J29)","v":""},{"$f":"IF('1. Order'!K29=\"\",\"\",'1. Order'!K29)","v":""},{"$f":"IF('1. Order'!M29=\"\",\"\",'1. Order'!M29)","v":""},null,null,{"$f":"'1. Order'!AW29","v":0},{"$f":"IF('1. Order'!AE29=\"\",\"\",'1. Order'!AE29)","v":""}]
[{"$f":"IF('1. Order'!B30=\"\",\"\",'1. Order'!B30)","v":""},{"$f":"IF('1. Order'!I30=\"\",\"\",'1. Order'!I30)","v":""},{"$f":"IF('1. Order'!J30=\"\",\"\",'1. Order'!J30)","v":""},{"$f":"IF('1. Order'!K30=\"\",\"\",'1. Order'!K30)","v":""},{"$f":"IF('1. Order'!M30=\"\",\"\",'1. Order'!M30)","v":""},null,null,{"$f":"'1. Order'!AW30","v":0},{"$f":"IF('1. Order'!AE30=\"\",\"\",'1. Order'!AE30)","v":""}]
[{"$f":"IF('1. Order'!B31=\"\",\"\",'1. Order'!B31)","v":""},{"$f":"IF('1. Order'!I31=\"\",\"\",'1. Order'!I31)","v":""},{"$f":"IF('1. Order'!J31=\"\",\"\",'1. Order'!J31)","v":""},{"$f":"IF('1. Order'!K31=\"\",\"\",'1. Order'!K31)","v":""},{"$f":"IF('1. Order'!M31=\"\",\"\",'1. Order'!M31)","v":""},null,null,{"$f":"'1. Order'!AW31","v":0},{"$f":"IF('1. Order'!AE31=\"\",\"\",'1. Order'!AE31)","v":""}]
[{"$f":"IF('1. Order'!B32=\"\",\"\",'1. Order'!B32)","v":""},{"$f":"IF('1. Order'!I32=\"\",\"\",'1. Order'!I32)","v":""},{"$f":"IF('1. Order'!J32=\"\",\"\",'1. Order'!J32)","v":""},{"$f":"IF('1. Order'!K32=\"\",\"\",'1. Order'!K32)","v":""},{"$f":"IF('1. Order'!M32=\"\",\"\",'1. Order'!M32)","v":""},null,null,{"$f":"'1. Order'!AW32","v":0},{"$f":"IF('1. Order'!AE32=\"\",\"\",'1. Order'!AE32)","v":""}]
[{"$f":"IF('1. Order'!B33=\"\",\"\",'1. Order'!B33)","v":""},{"$f":"IF('1. Order'!I33=\"\",\"\",'1. Order'!I33)","v":""},{"$f":"IF('1. Order'!J33=\"\",\"\",'1. Order'!J33)","v":""},{"$f":"IF('1. Order'!K33=\"\",\"\",'1. Order'!K33)","v":""},{"$f":"IF('1. Order'!M33=\"\",\"\",'1. Order'!M33)","v":""},null,null,{"$f":"'1. Order'!AW33","v":0},{"$f":"IF('1. Order'!AE33=\"\",\"\",'1. Order'!AE33)","v":""}]
[{"$f":"IF('1. Order'!B34=\"\",\"\",'1. Order'!B34)","v":""},{"$f":"IF('1. Order'!I34=\"\",\"\",'1. Order'!I34)","v":""},{"$f":"IF('1. Order'!J34=\"\",\"\",'1. Order'!J34)","v":""},{"$f":"IF('1. Order'!K34=\"\",\"\",'1. Order'!K34)","v":""},{"$f":"IF('1. Order'!M34=\"\",\"\",'1. Order'!M34)","v":""},null,null,{"$f":"'1. Order'!AW34","v":0},{"$f":"IF('1. Order'!AE34=\"\",\"\",'1. Order'!AE34)","v":""}]
[{"$f":"IF('1. Order'!B35=\"\",\"\",'1. Order'!B35)","v":""},{"$f":"IF('1. Order'!I35=\"\",\"\",'1. Order'!I35)","v":""},{"$f":"IF('1. Order'!J35=\"\",\"\",'1. Order'!J35)","v":""},{"$f":"IF('1. Order'!K35=\"\",\"\",'1. Order'!K35)","v":""},{"$f":"IF('1. Order'!M35=\"\",\"\",'1. Order'!M35)","v":""},null,null,{"$f":"'1. Order'!AW35","v":0},{"$f":"IF('1. Order'!AE35=\"\",\"\",'1. Order'!AE35)","v":""}]
[{"$f":"IF('1. Order'!B36=\"\",\"\",'1. Order'!B36)","v":""},{"$f":"IF('1. Order'!I36=\"\",\"\",'1. Order'!I36)","v":""},{"$f":"IF('1. Order'!J36=\"\",\"\",'1. Order'!J36)","v":""},{"$f":"IF('1. Order'!K36=\"\",\"\",'1. Order'!K36)","v":""},{"$f":"IF('1. Order'!M36=\"\",\"\",'1. Order'!M36)","v":""},null,null,{"$f":"'1. Order'!AW36","v":0},{"$f":"IF('1. Order'!AE36=\"\",\"\",'1. Order'!AE36)","v":""}]
[{"$f":"IF('1. Order'!B37=\"\",\"\",'1. Order'!B37)","v":""},{"$f":"IF('1. Order'!I37=\"\",\"\",'1. Order'!I37)","v":""},{"$f":"IF('1. Order'!J37=\"\",\"\",'1. Order'!J37)","v":""},{"$f":"IF('1. Order'!K37=\"\",\"\",'1. Order'!K37)","v":""},{"$f":"IF('1. Order'!M37=\"\",\"\",'1. Order'!M37)","v":""},null,null,{"$f":"'1. Order'!AW37","v":0},{"$f":"IF('1. Order'!AE37=\"\",\"\",'1. Order'!AE37)","v":""}]
[{"$f":"IF('1. Order'!B38=\"\",\"\",'1. Order'!B38)","v":""},{"$f":"IF('1. Order'!I38=\"\",\"\",'1. Order'!I38)","v":""},{"$f":"IF('1. Order'!J38=\"\",\"\",'1. Order'!J38)","v":""},{"$f":"IF('1. Order'!K38=\"\",\"\",'1. Order'!K38)","v":""},{"$f":"IF('1. Order'!M38=\"\",\"\",'1. Order'!M38)","v":""},null,null,{"$f":"'1. Order'!AW38","v":0},{"$f":"IF('1. Order'!AE38=\"\",\"\",'1. Order'!AE38)","v":""}]
[{"$f":"IF('1. Order'!B39=\"\",\"\",'1. Order'!B39)","v":""},{"$f":"IF('1. Order'!I39=\"\",\"\",'1. Order'!I39)","v":""},{"$f":"IF('1. Order'!J39=\"\",\"\",'1. Order'!J39)","v":""},{"$f":"IF('1. Order'!K39=\"\",\"\",'1. Order'!K39)","v":""},{"$f":"IF('1. Order'!M39=\"\",\"\",'1. Order'!M39)","v":""},null,null,{"$f":"'1. Order'!AW39","v":0},{"$f":"IF('1. Order'!AE39=\"\",\"\",'1. Order'!AE39)","v":""}]
[{"$f":"IF('1. Order'!B40=\"\",\"\",'1. Order'!B40)","v":""},{"$f":"IF('1. Order'!I40=\"\",\"\",'1. Order'!I40)","v":""},{"$f":"IF('1. Order'!J40=\"\",\"\",'1. Order'!J40)","v":""},{"$f":"IF('1. Order'!K40=\"\",\"\",'1. Order'!K40)","v":""},{"$f":"IF('1. Order'!M40=\"\",\"\",'1. Order'!M40)","v":""},null,null,{"$f":"'1. Order'!AW40","v":0},{"$f":"IF('1. Order'!AE40=\"\",\"\",'1. Order'!AE40)","v":""}]
[{"$f":"IF('1. Order'!B41=\"\",\"\",'1. Order'!B41)","v":""},{"$f":"IF('1. Order'!I41=\"\",\"\",'1. Order'!I41)","v":""},{"$f":"IF('1. Order'!J41=\"\",\"\",'1. Order'!J41)","v":""},{"$f":"IF('1. Order'!K41=\"\",\"\",'1. Order'!K41)","v":""},{"$f":"IF('1. Order'!M41=\"\",\"\",'1. Order'!M41)","v":""},null,null,{"$f":"'1. Order'!AW41","v":0},{"$f":"IF('1. Order'!AE41=\"\",\"\",'1. Order'!AE41)","v":""}]
[{"$f":"IF('1. Order'!B42=\"\",\"\",'1. Order'!B42)","v":""},{"$f":"IF('1. Order'!I42=\"\",\"\",'1. Order'!I42)","v":""},{"$f":"IF('1. Order'!J42=\"\",\"\",'1. Order'!J42)","v":""},{"$f":"IF('1. Order'!K42=\"\",\"\",'1. Order'!K42)","v":""},{"$f":"IF('1. Order'!M42=\"\",\"\",'1. Order'!M42)","v":""},null,null,{"$f":"'1. Order'!AW42","v":0},{"$f":"IF('1. Order'!AE42=\"\",\"\",'1. Order'!AE42)","v":""}]
[{"$f":"IF('1. Order'!B43=\"\",\"\",'1. Order'!B43)","v":""},{"$f":"IF('1. Order'!I43=\"\",\"\",'1. Order'!I43)","v":""},{"$f":"IF('1. Order'!J43=\"\",\"\",'1. Order'!J43)","v":""},{"$f":"IF('1. Order'!K43=\"\",\"\",'1. Order'!K43)","v":""},{"$f":"IF('1. Order'!M43=\"\",\"\",'1. Order'!M43)","v":""},null,null,{"$f":"'1. Order'!AW43","v":0},{"$f":"IF('1. Order'!AE43=\"\",\"\",'1. Order'!AE43)","v":""}]
[{"$f":"IF('1. Order'!B44=\"\",\"\",'1. Order'!B44)","v":""},{"$f":"IF('1. Order'!I44=\"\",\"\",'1. Order'!I44)","v":""},{"$f":"IF('1. Order'!J44=\"\",\"\",'1. Order'!J44)","v":""},{"$f":"IF('1. Order'!K44=\"\",\"\",'1. Order'!K44)","v":""},{"$f":"IF('1. Order'!M44=\"\",\"\",'1. Order'!M44)","v":""},null,null,{"$f":"'1. Order'!AW44","v":0},{"$f":"IF('1. Order'!AE44=\"\",\"\",'1. Order'!AE44)","v":""}]
[{"$f":"IF('1. Order'!B45=\"\",\"\",'1. Order'!B45)","v":""},{"$f":"IF('1. Order'!I45=\"\",\"\",'1. Order'!I45)","v":""},{"$f":"IF('1. Order'!J45=\"\",\"\",'1. Order'!J45)","v":""},{"$f":"IF('1. Order'!K45=\"\",\"\",'1. Order'!K45)","v":""},{"$f":"IF('1. Order'!M45=\"\",\"\",'1. Order'!M45)","v":""},null,null,{"$f":"'1. Order'!AW45","v":0},{"$f":"IF('1. Order'!AE45=\"\",\"\",'1. Order'!AE45)","v":""}]
[{"$f":"IF('1. Order'!B46=\"\",\"\",'1. Order'!B46)","v":""},{"$f":"IF('1. Order'!I46=\"\",\"\",'1. Order'!I46)","v":""},{"$f":"IF('1. Order'!J46=\"\",\"\",'1. Order'!J46)","v":""},{"$f":"IF('1. Order'!K46=\"\",\"\",'1. Order'!K46)","v":""},{"$f":"IF('1. Order'!M46=\"\",\"\",'1. Order'!M46)","v":""},null,null,{"$f":"'1. Order'!AW46","v":0},{"$f":"IF('1. Order'!AE46=\"\",\"\",'1. Order'!AE46)","v":""}]
[{"$f":"IF('1. Order'!B47=\"\",\"\",'1. Order'!B47)","v":""},{"$f":"IF('1. Order'!I47=\"\",\"\",'1. Order'!I47)","v":""},{"$f":"IF('1. Order'!J47=\"\",\"\",'1. Order'!J47)","v":""},{"$f":"IF('1. Order'!K47=\"\",\"\",'1. Order'!K47)","v":""},{"$f":"IF('1. Order'!M47=\"\",\"\",'1. Order'!M47)","v":""},null,null,{"$f":"'1. Order'!AW47","v":0},{"$f":"IF('1. Order'!AE47=\"\",\"\",'1. Order'!AE47)","v":""}]
[{"$f":"IF('1. Order'!B48=\"\",\"\",'1. Order'!B48)","v":""},{"$f":"IF('1. Order'!I48=\"\",\"\",'1. Order'!I48)","v":""},{"$f":"IF('1. Order'!J48=\"\",\"\",'1. Order'!J48)","v":""},{"$f":"IF('1. Order'!K48=\"\",\"\",'1. Order'!K48)","v":""},{"$f":"IF('1. Order'!M48=\"\",\"\",'1. Order'!M48)","v":""},null,null,{"$f":"'1. Order'!AW48","v":0},{"$f":"IF('1. Order'!AE48=\"\",\"\",'1. Order'!AE48)","v":""}]
[{"$f":"IF('1. Order'!B49=\"\",\"\",'1. Order'!B49)","v":""},{"$f":"IF('1. Order'!I49=\"\",\"\",'1. Order'!I49)","v":""},{"$f":"IF('1. Order'!J49=\"\",\"\",'1. Order'!J49)","v":""},{"$f":"IF('1. Order'!K49=\"\",\"\",'1. Order'!K49)","v":""},{"$f":"IF('1. Order'!M49=\"\",\"\",'1. Order'!M49)","v":""},null,null,{"$f":"'1. Order'!AW49","v":0},{"$f":"IF('1. Order'!AE49=\"\",\"\",'1. Order'!AE49)","v":""}]
[{"$f":"IF('1. Order'!B50=\"\",\"\",'1. Order'!B50)","v":""},{"$f":"IF('1. Order'!I50=\"\",\"\",'1. Order'!I50)","v":""},{"$f":"IF('1. Order'!J50=\"\",\"\",'1. Order'!J50)","v":""},{"$f":"IF('1. Order'!K50=\"\",\"\",'1. Order'!K50)","v":""},{"$f":"IF('1. Order'!M50=\"\",\"\",'1. Order'!M50)","v":""},null,null,{"$f":"'1. Order'!AW50","v":0},{"$f":"IF('1. Order'!AE50=\"\",\"\",'1. Order'!AE50)","v":""}]
[{"$f":"IF('1. Order'!B51=\"\",\"\",'1. Order'!B51)","v":""},{"$f":"IF('1. Order'!I51=\"\",\"\",'1. Order'!I51)","v":""},{"$f":"IF('1. Order'!J51=\"\",\"\",'1. Order'!J51)","v":""},{"$f":"IF('1. Order'!K51=\"\",\"\",'1. Order'!K51)","v":""},{"$f":"IF('1. Order'!M51=\"\",\"\",'1. Order'!M51)","v":""},null,null,{"$f":"'1. Order'!AW51","v":0},{"$f":"IF('1. Order'!AE51=\"\",\"\",'1. Order'!AE51)","v":""}]
[{"$f":"IF('1. Order'!B52=\"\",\"\",'1. Order'!B52)","v":""},{"$f":"IF('1. Order'!I52=\"\",\"\",'1. Order'!I52)","v":""},{"$f":"IF('1. Order'!J52=\"\",\"\",'1. Order'!J52)","v":""},{"$f":"IF('1. Order'!K52=\"\",\"\",'1. Order'!K52)","v":""},{"$f":"IF('1. Order'!M52=\"\",\"\",'1. Order'!M52)","v":""},null,null,{"$f":"'1. Order'!AW52","v":0},{"$f":"IF('1. Order'!AE52=\"\",\"\",'1. Order'!AE52)","v":""}]
[{"$f":"IF('1. Order'!B53=\"\",\"\",'1. Order'!B53)","v":""},{"$f":"IF('1. Order'!I53=\"\",\"\",'1. Order'!I53)","v":""},{"$f":"IF('1. Order'!J53=\"\",\"\",'1. Order'!J53)","v":""},{"$f":"IF('1. Order'!K53=\"\",\"\",'1. Order'!K53)","v":""},{"$f":"IF('1. Order'!M53=\"\",\"\",'1. Order'!M53)","v":""},null,null,{"$f":"'1. Order'!AW53","v":0},{"$f":"IF('1. Order'!AE53=\"\",\"\",'1. Order'!AE53)","v":""}]
[{"$f":"IF('1. Order'!B54=\"\",\"\",'1. Order'!B54)","v":""},{"$f":"IF('1. Order'!I54=\"\",\"\",'1. Order'!I54)","v":""},{"$f":"IF('1. Order'!J54=\"\",\"\",'1. Order'!J54)","v":""},{"$f":"IF('1. Order'!K54=\"\",\"\",'1. Order'!K54)","v":""},{"$f":"IF('1. Order'!M54=\"\",\"\",'1. Order'!M54)","v":""},null,null,{"$f":"'1. Order'!AW54","v":0},{"$f":"IF('1. Order'!AE54=\"\",\"\",'1. Order'!AE54)","v":""}]
[{"$f":"IF('1. Order'!B55=\"\",\"\",'1. Order'!B55)","v":""},{"$f":"IF('1. Order'!I55=\"\",\"\",'1. Order'!I55)","v":""},{"$f":"IF('1. Order'!J55=\"\",\"\",'1. Order'!J55)","v":""},{"$f":"IF('1. Order'!K55=\"\",\"\",'1. Order'!K55)","v":""},{"$f":"IF('1. Order'!M55=\"\",\"\",'1. Order'!M55)","v":""},null,null,{"$f":"'1. Order'!AW55","v":0},{"$f":"IF('1. Order'!AE55=\"\",\"\",'1. Order'!AE55)","v":""}]
[{"$f":"IF('1. Order'!B56=\"\",\"\",'1. Order'!B56)","v":""},{"$f":"IF('1. Order'!I56=\"\",\"\",'1. Order'!I56)","v":""},{"$f":"IF('1. Order'!J56=\"\",\"\",'1. Order'!J56)","v":""},{"$f":"IF('1. Order'!K56=\"\",\"\",'1. Order'!K56)","v":""},{"$f":"IF('1. Order'!M56=\"\",\"\",'1. Order'!M56)","v":""},null,null,{"$f":"'1. Order'!AW56","v":0},{"$f":"IF('1. Order'!AE56=\"\",\"\",'1. Order'!AE56)","v":""}]
[{"$f":"IF('1. Order'!B57=\"\",\"\",'1. Order'!B57)","v":""},{"$f":"IF('1. Order'!I57=\"\",\"\",'1. Order'!I57)","v":""},{"$f":"IF('1. Order'!J57=\"\",\"\",'1. Order'!J57)","v":""},{"$f":"IF('1. Order'!K57=\"\",\"\",'1. Order'!K57)","v":""},{"$f":"IF('1. Order'!M57=\"\",\"\",'1. Order'!M57)","v":""},null,null,{"$f":"'1. Order'!AW57","v":0},{"$f":"IF('1. Order'!AE57=\"\",\"\",'1. Order'!AE57)","v":""}]
[{"$f":"IF('1. Order'!B58=\"\",\"\",'1. Order'!B58)","v":""},{"$f":"IF('1. Order'!I58=\"\",\"\",'1. Order'!I58)","v":""},{"$f":"IF('1. Order'!J58=\"\",\"\",'1. Order'!J58)","v":""},{"$f":"IF('1. Order'!K58=\"\",\"\",'1. Order'!K58)","v":""},{"$f":"IF('1. Order'!M58=\"\",\"\",'1. Order'!M58)","v":""},null,null,{"$f":"'1. Order'!AW58","v":0},{"$f":"IF('1. Order'!AE58=\"\",\"\",'1. Order'!AE58)","v":""}]
[{"$f":"IF('1. Order'!B59=\"\",\"\",'1. Order'!B59)","v":""},{"$f":"IF('1. Order'!I59=\"\",\"\",'1. Order'!I59)","v":""},{"$f":"IF('1. Order'!J59=\"\",\"\",'1. Order'!J59)","v":""},{"$f":"IF('1. Order'!K59=\"\",\"\",'1. Order'!K59)","v":""},{"$f":"IF('1. Order'!M59=\"\",\"\",'1. Order'!M59)","v":""},null,null,{"$f":"'1. Order'!AW59","v":0},{"$f":"IF('1. Order'!AE59=\"\",\"\",'1. Order'!AE59)","v":""}]
[{"$f":"IF('1. Order'!B60=\"\",\"\",'1. Order'!B60)","v":""},{"$f":"IF('1. Order'!I60=\"\",\"\",'1. Order'!I60)","v":""},{"$f":"IF('1. Order'!J60=\"\",\"\",'1. Order'!J60)","v":""},{"$f":"IF('1. Order'!K60=\"\",\"\",'1. Order'!K60)","v":""},{"$f":"IF('1. Order'!M60=\"\",\"\",'1. Order'!M60)","v":""},null,null,{"$f":"'1. Order'!AW60","v":0},{"$f":"IF('1. Order'!AE60=\"\",\"\",'1. Order'!AE60)","v":""}]
[{"$f":"IF('1. Order'!B61=\"\",\"\",'1. Order'!B61)","v":""},{"$f":"IF('1. Order'!I61=\"\",\"\",'1. Order'!I61)","v":""},{"$f":"IF('1. Order'!J61=\"\",\"\",'1. Order'!J61)","v":""},{"$f":"IF('1. Order'!K61=\"\",\"\",'1. Order'!K61)","v":""},{"$f":"IF('1. Order'!M61=\"\",\"\",'1. Order'!M61)","v":""},null,null,{"$f":"'1. Order'!AW61","v":0},{"$f":"IF('1. Order'!AE61=\"\",\"\",'1. Order'!AE61)","v":""}]
[{"$f":"IF('1. Order'!B62=\"\",\"\",'1. Order'!B62)","v":""},{"$f":"IF('1. Order'!I62=\"\",\"\",'1. Order'!I62)","v":""},{"$f":"IF('1. Order'!J62=\"\",\"\",'1. Order'!J62)","v":""},{"$f":"IF('1. Order'!K62=\"\",\"\",'1. Order'!K62)","v":""},{"$f":"IF('1. Order'!M62=\"\",\"\",'1. Order'!M62)","v":""},null,null,{"$f":"'1. Order'!AW62","v":0},{"$f":"IF('1. Order'!AE62=\"\",\"\",'1. Order'!AE62)","v":""}]
[{"$f":"IF('1. Order'!B63=\"\",\"\",'1. Order'!B63)","v":""},{"$f":"IF('1. Order'!I63=\"\",\"\",'1. Order'!I63)","v":""},{"$f":"IF('1. Order'!J63=\"\",\"\",'1. Order'!J63)","v":""},{"$f":"IF('1. Order'!K63=\"\",\"\",'1. Order'!K63)","v":""},{"$f":"IF('1. Order'!M63=\"\",\"\",'1. Order'!M63)","v":""},null,null,{"$f":"'1. Order'!AW63","v":0},{"$f":"IF('1. Order'!AE63=\"\",\"\",'1. Order'!AE63)","v":""}]
[{"$f":"IF('1. Order'!B64=\"\",\"\",'1. Order'!B64)","v":""},{"$f":"IF('1. Order'!I64=\"\",\"\",'1. Order'!I64)","v":""},{"$f":"IF('1. Order'!J64=\"\",\"\",'1. Order'!J64)","v":""},{"$f":"IF('1. Order'!K64=\"\",\"\",'1. Order'!K64)","v":""},{"$f":"IF('1. Order'!M64=\"\",\"\",'1. Order'!M64)","v":""},null,null,{"$f":"'1. Order'!AW64","v":0},{"$f":"IF('1. Order'!AE64=\"\",\"\",'1. Order'!AE64)","v":""}]
[{"$f":"IF('1. Order'!B65=\"\",\"\",'1. Order'!B65)","v":""},{"$f":"IF('1. Order'!I65=\"\",\"\",'1. Order'!I65)","v":""},{"$f":"IF('1. Order'!J65=\"\",\"\",'1. Order'!J65)","v":""},{"$f":"IF('1. Order'!K65=\"\",\"\",'1. Order'!K65)","v":""},{"$f":"IF('1. Order'!M65=\"\",\"\",'1. Order'!M65)","v":""},null,null,{"$f":"'1. Order'!AW65","v":0},{"$f":"IF('1. Order'!AE65=\"\",\"\",'1. Order'!AE65)","v":""}]
[{"$f":"IF('1. Order'!B66=\"\",\"\",'1. Order'!B66)","v":""},{"$f":"IF('1. Order'!I66=\"\",\"\",'1. Order'!I66)","v":""},{"$f":"IF('1. Order'!J66=\"\",\"\",'1. Order'!J66)","v":""},{"$f":"IF('1. Order'!K66=\"\",\"\",'1. Order'!K66)","v":""},{"$f":"IF('1. Order'!M66=\"\",\"\",'1. Order'!M66)","v":""},null,null,{"$f":"'1. Order'!AW66","v":0},{"$f":"IF('1. Order'!AE66=\"\",\"\",'1. Order'!AE66)","v":""}]
[{"$f":"IF('1. Order'!B67=\"\",\"\",'1. Order'!B67)","v":""},{"$f":"IF('1. Order'!I67=\"\",\"\",'1. Order'!I67)","v":""},{"$f":"IF('1. Order'!J67=\"\",\"\",'1. Order'!J67)","v":""},{"$f":"IF('1. Order'!K67=\"\",\"\",'1. Order'!K67)","v":""},{"$f":"IF('1. Order'!M67=\"\",\"\",'1. Order'!M67)","v":""},null,null,{"$f":"'1. Order'!AW67","v":0},{"$f":"IF('1. Order'!AE67=\"\",\"\",'1. Order'!AE67)","v":""}]
[{"$f":"IF('1. Order'!B68=\"\",\"\",'1. Order'!B68)","v":""},{"$f":"IF('1. Order'!I68=\"\",\"\",'1. Order'!I68)","v":""},{"$f":"IF('1. Order'!J68=\"\",\"\",'1. Order'!J68)","v":""},{"$f":"IF('1. Order'!K68=\"\",\"\",'1. Order'!K68)","v":""},{"$f":"IF('1. Order'!M68=\"\",\"\",'1. Order'!M68)","v":""},null,null,{"$f":"'1. Order'!AW68","v":0},{"$f":"IF('1. Order'!AE68=\"\",\"\",'1. Order'!AE68)","v":""}]
[{"$f":"IF('1. Order'!B69=\"\",\"\",'1. Order'!B69)","v":""},{"$f":"IF('1. Order'!I69=\"\",\"\",'1. Order'!I69)","v":""},{"$f":"IF('1. Order'!J69=\"\",\"\",'1. Order'!J69)","v":""},{"$f":"IF('1. Order'!K69=\"\",\"\",'1. Order'!K69)","v":""},{"$f":"IF('1. Order'!M69=\"\",\"\",'1. Order'!M69)","v":""},null,null,{"$f":"'1. Order'!AW69","v":0},{"$f":"IF('1. Order'!AE69=\"\",\"\",'1. Order'!AE69)","v":""}]
[{"$f":"IF('1. Order'!B70=\"\",\"\",'1. Order'!B70)","v":""},{"$f":"IF('1. Order'!I70=\"\",\"\",'1. Order'!I70)","v":""},{"$f":"IF('1. Order'!J70=\"\",\"\",'1. Order'!J70)","v":""},{"$f":"IF('1. Order'!K70=\"\",\"\",'1. Order'!K70)","v":""},{"$f":"IF('1. Order'!M70=\"\",\"\",'1. Order'!M70)","v":""},null,null,{"$f":"'1. Order'!AW70","v":0},{"$f":"IF('1. Order'!AE70=\"\",\"\",'1. Order'!AE70)","v":""}]
[{"$f":"IF('1. Order'!B71=\"\",\"\",'1. Order'!B71)","v":""},{"$f":"IF('1. Order'!I71=\"\",\"\",'1. Order'!I71)","v":""},{"$f":"IF('1. Order'!J71=\"\",\"\",'1. Order'!J71)","v":""},{"$f":"IF('1. Order'!K71=\"\",\"\",'1. Order'!K71)","v":""},{"$f":"IF('1. Order'!M71=\"\",\"\",'1. Order'!M71)","v":""},null,null,{"$f":"'1. Order'!AW71","v":0},{"$f":"IF('1. Order'!AE71=\"\",\"\",'1. Order'!AE71)","v":""}]
[{"$f":"IF('1. Order'!B72=\"\",\"\",'1. Order'!B72)","v":""},{"$f":"IF('1. Order'!I72=\"\",\"\",'1. Order'!I72)","v":""},{"$f":"IF('1. Order'!J72=\"\",\"\",'1. Order'!J72)","v":""},{"$f":"IF('1. Order'!K72=\"\",\"\",'1. Order'!K72)","v":""},{"$f":"IF('1. Order'!M72=\"\",\"\",'1. Order'!M72)","v":""},null,null,{"$f":"'1. Order'!AW72","v":0},{"$f":"IF('1. Order'!AE72=\"\",\"\",'1. Order'!AE72)","v":""}]
[{"$f":"IF('1. Order'!B73=\"\",\"\",'1. Order'!B73)","v":""},{"$f":"IF('1. Order'!I73=\"\",\"\",'1. Order'!I73)","v":""},{"$f":"IF('1. Order'!J73=\"\",\"\",'1. Order'!J73)","v":""},{"$f":"IF('1. Order'!K73=\"\",\"\",'1. Order'!K73)","v":""},{"$f":"IF('1. Order'!M73=\"\",\"\",'1. Order'!M73)","v":""},null,null,{"$f":"'1. Order'!AW73","v":0},{"$f":"IF('1. Order'!AE73=\"\",\"\",'1. Order'!AE73)","v":""}]
[{"$f":"IF('1. Order'!B74=\"\",\"\",'1. Order'!B74)","v":""},{"$f":"IF('1. Order'!I74=\"\",\"\",'1. Order'!I74)","v":""},{"$f":"IF('1. Order'!J74=\"\",\"\",'1. Order'!J74)","v":""},{"$f":"IF('1. Order'!K74=\"\",\"\",'1. Order'!K74)","v":""},{"$f":"IF('1. Order'!M74=\"\",\"\",'1. Order'!M74)","v":""},null,null,{"$f":"'1. Order'!AW74","v":0},{"$f":"IF('1. Order'!AE74=\"\",\"\",'1. Order'!AE74)","v":""}]
[{"$f":"IF('1. Order'!B75=\"\",\"\",'1. Order'!B75)","v":""},{"$f":"IF('1. Order'!I75=\"\",\"\",'1. Order'!I75)","v":""},{"$f":"IF('1. Order'!J75=\"\",\"\",'1. Order'!J75)","v":""},{"$f":"IF('1. Order'!K75=\"\",\"\",'1. Order'!K75)","v":""},{"$f":"IF('1. Order'!M75=\"\",\"\",'1. Order'!M75)","v":""},null,null,{"$f":"'1. Order'!AW75","v":0},{"$f":"IF('1. Order'!AE75=\"\",\"\",'1. Order'!AE75)","v":""}]
[{"$f":"IF('1. Order'!B76=\"\",\"\",'1. Order'!B76)","v":""},{"$f":"IF('1. Order'!I76=\"\",\"\",'1. Order'!I76)","v":""},{"$f":"IF('1. Order'!J76=\"\",\"\",'1. Order'!J76)","v":""},{"$f":"IF('1. Order'!K76=\"\",\"\",'1. Order'!K76)","v":""},{"$f":"IF('1. Order'!M76=\"\",\"\",'1. Order'!M76)","v":""},null,null,{"$f":"'1. Order'!AW76","v":0},{"$f":"IF('1. Order'!AE76=\"\",\"\",'1. Order'!AE76)","v":""}]
[{"$f":"IF('1. Order'!B77=\"\",\"\",'1. Order'!B77)","v":""},{"$f":"IF('1. Order'!I77=\"\",\"\",'1. Order'!I77)","v":""},{"$f":"IF('1. Order'!J77=\"\",\"\",'1. Order'!J77)","v":""},{"$f":"IF('1. Order'!K77=\"\",\"\",'1. Order'!K77)","v":""},{"$f":"IF('1. Order'!M77=\"\",\"\",'1. Order'!M77)","v":""},null,null,{"$f":"'1. Order'!AW77","v":0},{"$f":"IF('1. Order'!AE77=\"\",\"\",'1. Order'!AE77)","v":""}]
[{"$f":"IF('1. Order'!B78=\"\",\"\",'1. Order'!B78)","v":""},{"$f":"IF('1. Order'!I78=\"\",\"\",'1. Order'!I78)","v":""},{"$f":"IF('1. Order'!J78=\"\",\"\",'1. Order'!J78)","v":""},{"$f":"IF('1. Order'!K78=\"\",\"\",'1. Order'!K78)","v":""},{"$f":"IF('1. Order'!M78=\"\",\"\",'1. Order'!M78)","v":""},null,null,{"$f":"'1. Order'!AW78","v":0},{"$f":"IF('1. Order'!AE78=\"\",\"\",'1. Order'!AE78)","v":""}]
[{"$f":"IF('1. Order'!B79=\"\",\"\",'1. Order'!B79)","v":""},{"$f":"IF('1. Order'!I79=\"\",\"\",'1. Order'!I79)","v":""},{"$f":"IF('1. Order'!J79=\"\",\"\",'1. Order'!J79)","v":""},{"$f":"IF('1. Order'!K79=\"\",\"\",'1. Order'!K79)","v":""},{"$f":"IF('1. Order'!M79=\"\",\"\",'1. Order'!M79)","v":""},null,null,{"$f":"'1. Order'!AW79","v":0},{"$f":"IF('1. Order'!AE79=\"\",\"\",'1. Order'!AE79)","v":""}]
[{"$f":"IF('1. Order'!B80=\"\",\"\",'1. Order'!B80)","v":""},{"$f":"IF('1. Order'!I80=\"\",\"\",'1. Order'!I80)","v":""},{"$f":"IF('1. Order'!J80=\"\",\"\",'1. Order'!J80)","v":""},{"$f":"IF('1. Order'!K80=\"\",\"\",'1. Order'!K80)","v":""},{"$f":"IF('1. Order'!M80=\"\",\"\",'1. Order'!M80)","v":""},null,null,{"$f":"'1. Order'!AW80","v":0},{"$f":"IF('1. Order'!AE80=\"\",\"\",'1. Order'!AE80)","v":""}]
[{"$f":"IF('1. Order'!B81=\"\",\"\",'1. Order'!B81)","v":""},{"$f":"IF('1. Order'!I81=\"\",\"\",'1. Order'!I81)","v":""},{"$f":"IF('1. Order'!J81=\"\",\"\",'1. Order'!J81)","v":""},{"$f":"IF('1. Order'!K81=\"\",\"\",'1. Order'!K81)","v":""},{"$f":"IF('1. Order'!M81=\"\",\"\",'1. Order'!M81)","v":""},null,null,{"$f":"'1. Order'!AW81","v":0},{"$f":"IF('1. Order'!AE81=\"\",\"\",'1. Order'!AE81)","v":""}]
[{"$f":"IF('1. Order'!B82=\"\",\"\",'1. Order'!B82)","v":""},{"$f":"IF('1. Order'!I82=\"\",\"\",'1. Order'!I82)","v":""},{"$f":"IF('1. Order'!J82=\"\",\"\",'1. Order'!J82)","v":""},{"$f":"IF('1. Order'!K82=\"\",\"\",'1. Order'!K82)","v":""},{"$f":"IF('1. Order'!M82=\"\",\"\",'1. Order'!M82)","v":""},null,null,{"$f":"'1. Order'!AW82","v":0},{"$f":"IF('1. Order'!AE82=\"\",\"\",'1. Order'!AE82)","v":""}]
[{"$f":"IF('1. Order'!B83=\"\",\"\",'1. Order'!B83)","v":""},{"$f":"IF('1. Order'!I83=\"\",\"\",'1. Order'!I83)","v":""},{"$f":"IF('1. Order'!J83=\"\",\"\",'1. Order'!J83)","v":""},{"$f":"IF('1. Order'!K83=\"\",\"\",'1. Order'!K83)","v":""},{"$f":"IF('1. Order'!M83=\"\",\"\",'1. Order'!M83)","v":""},null,null,{"$f":"'1. Order'!AW83","v":0},{"$f":"IF('1. Order'!AE83=\"\",\"\",'1. Order'!AE83)","v":""}]
[{"$f":"IF('1. Order'!B84=\"\",\"\",'1. Order'!B84)","v":""},{"$f":"IF('1. Order'!I84=\"\",\"\",'1. Order'!I84)","v":""},{"$f":"IF('1. Order'!J84=\"\",\"\",'1. Order'!J84)","v":""},{"$f":"IF('1. Order'!K84=\"\",\"\",'1. Order'!K84)","v":""},{"$f":"IF('1. Order'!M84=\"\",\"\",'1. Order'!M84)","v":""},null,null,{"$f":"'1. Order'!AW84","v":0},{"$f":"IF('1. Order'!AE84=\"\",\"\",'1. Order'!AE84)","v":""}]
[{"$f":"IF('1. Order'!B85=\"\",\"\",'1. Order'!B85)","v":""},{"$f":"IF('1. Order'!I85=\"\",\"\",'1. Order'!I85)","v":""},{"$f":"IF('1. Order'!J85=\"\",\"\",'1. Order'!J85)","v":""},{"$f":"IF('1. Order'!K85=\"\",\"\",'1. Order'!K85)","v":""},{"$f":"IF('1. Order'!M85=\"\",\"\",'1. Order'!M85)","v":""},null,null,{"$f":"'1. Order'!AW85","v":0},{"$f":"IF('1. Order'!AE85=\"\",\"\",'1. Order'!AE85)","v":""}]
[{"$f":"IF('1. Order'!B86=\"\",\"\",'1. Order'!B86)","v":""},{"$f":"IF('1. Order'!I86=\"\",\"\",'1. Order'!I86)","v":""},{"$f":"IF('1. Order'!J86=\"\",\"\",'1. Order'!J86)","v":""},{"$f":"IF('1. Order'!K86=\"\",\"\",'1. Order'!K86)","v":""},{"$f":"IF('1. Order'!M86=\"\",\"\",'1. Order'!M86)","v":""},null,null,{"$f":"'1. Order'!AW86","v":0},{"$f":"IF('1. Order'!AE86=\"\",\"\",'1. Order'!AE86)","v":""}]
[{"$f":"IF('1. Order'!B87=\"\",\"\",'1. Order'!B87)","v":""},{"$f":"IF('1. Order'!I87=\"\",\"\",'1. Order'!I87)","v":""},{"$f":"IF('1. Order'!J87=\"\",\"\",'1. Order'!J87)","v":""},{"$f":"IF('1. Order'!K87=\"\",\"\",'1. Order'!K87)","v":""},{"$f":"IF('1. Order'!M87=\"\",\"\",'1. Order'!M87)","v":""},null,null,{"$f":"'1. Order'!AW87","v":0},{"$f":"IF('1. Order'!AE87=\"\",\"\",'1. Order'!AE87)","v":""}]
[{"$f":"IF('1. Order'!B88=\"\",\"\",'1. Order'!B88)","v":""},{"$f":"IF('1. Order'!I88=\"\",\"\",'1. Order'!I88)","v":""},{"$f":"IF('1. Order'!J88=\"\",\"\",'1. Order'!J88)","v":""},{"$f":"IF('1. Order'!K88=\"\",\"\",'1. Order'!K88)","v":""},{"$f":"IF('1. Order'!M88=\"\",\"\",'1. Order'!M88)","v":""},null,null,{"$f":"'1. Order'!AW88","v":0},{"$f":"IF('1. Order'!AE88=\"\",\"\",'1. Order'!AE88)","v":""}]
[{"$f":"IF('1. Order'!B89=\"\",\"\",'1. Order'!B89)","v":""},{"$f":"IF('1. Order'!I89=\"\",\"\",'1. Order'!I89)","v":""},{"$f":"IF('1. Order'!J89=\"\",\"\",'1. Order'!J89)","v":""},{"$f":"IF('1. Order'!K89=\"\",\"\",'1. Order'!K89)","v":""},{"$f":"IF('1. Order'!M89=\"\",\"\",'1. Order'!M89)","v":""},null,null,{"$f":"'1. Order'!AW89","v":0},{"$f":"IF('1. Order'!AE89=\"\",\"\",'1. Order'!AE89)","v":""}]
[{"$f":"IF('1. Order'!B90=\"\",\"\",'1. Order'!B90)","v":""},{"$f":"IF('1. Order'!I90=\"\",\"\",'1. Order'!I90)","v":""},{"$f":"IF('1. Order'!J90=\"\",\"\",'1. Order'!J90)","v":""},{"$f":"IF('1. Order'!K90=\"\",\"\",'1. Order'!K90)","v":""},{"$f":"IF('1. Order'!M90=\"\",\"\",'1. Order'!M90)","v":""},null,null,{"$f":"'1. Order'!AW90","v":0},{"$f":"IF('1. Order'!AE90=\"\",\"\",'1. Order'!AE90)","v":""}]
[{"$f":"IF('1. Order'!B91=\"\",\"\",'1. Order'!B91)","v":""},{"$f":"IF('1. Order'!I91=\"\",\"\",'1. Order'!I91)","v":""},{"$f":"IF('1. Order'!J91=\"\",\"\",'1. Order'!J91)","v":""},{"$f":"IF('1. Order'!K91=\"\",\"\",'1. Order'!K91)","v":""},{"$f":"IF('1. Order'!M91=\"\",\"\",'1. Order'!M91)","v":""},null,null,{"$f":"'1. Order'!AW91","v":0},{"$f":"IF('1. Order'!AE91=\"\",\"\",'1. Order'!AE91)","v":""}]
[{"$f":"IF('1. Order'!B92=\"\",\"\",'1. Order'!B92)","v":""},{"$f":"IF('1. Order'!I92=\"\",\"\",'1. Order'!I92)","v":""},{"$f":"IF('1. Order'!J92=\"\",\"\",'1. Order'!J92)","v":""},{"$f":"IF('1. Order'!K92=\"\",\"\",'1. Order'!K92)","v":""},{"$f":"IF('1. Order'!M92=\"\",\"\",'1. Order'!M92)","v":""},null,null,{"$f":"'1. Order'!AW92","v":0},{"$f":"IF('1. Order'!AE92=\"\",\"\",'1. Order'!AE92)","v":""}]
[{"$f":"IF('1. Order'!B93=\"\",\"\",'1. Order'!B93)","v":""},{"$f":"IF('1. Order'!I93=\"\",\"\",'1. Order'!I93)","v":""},{"$f":"IF('1. Order'!J93=\"\",\"\",'1. Order'!J93)","v":""},{"$f":"IF('1. Order'!K93=\"\",\"\",'1. Order'!K93)","v":""},{"$f":"IF('1. Order'!M93=\"\",\"\",'1. Order'!M93)","v":""},null,null,{"$f":"'1. Order'!AW93","v":0},{"$f":"IF('1. Order'!AE93=\"\",\"\",'1. Order'!AE93)","v":""}]
[{"$f":"IF('1. Order'!B94=\"\",\"\",'1. Order'!B94)","v":""},{"$f":"IF('1. Order'!I94=\"\",\"\",'1. Order'!I94)","v":""},{"$f":"IF('1. Order'!J94=\"\",\"\",'1. Order'!J94)","v":""},{"$f":"IF('1. Order'!K94=\"\",\"\",'1. Order'!K94)","v":""},{"$f":"IF('1. Order'!M94=\"\",\"\",'1. Order'!M94)","v":""},null,null,{"$f":"'1. Order'!AW94","v":0},{"$f":"IF('1. Order'!AE94=\"\",\"\",'1. Order'!AE94)","v":""}]
[{"$f":"IF('1. Order'!B95=\"\",\"\",'1. Order'!B95)","v":""},{"$f":"IF('1. Order'!I95=\"\",\"\",'1. Order'!I95)","v":""},{"$f":"IF('1. Order'!J95=\"\",\"\",'1. Order'!J95)","v":""},{"$f":"IF('1. Order'!K95=\"\",\"\",'1. Order'!K95)","v":""},{"$f":"IF('1. Order'!M95=\"\",\"\",'1. Order'!M95)","v":""},null,null,{"$f":"'1. Order'!AW95","v":0},{"$f":"IF('1. Order'!AE95=\"\",\"\",'1. Order'!AE95)","v":""}]
[{"$f":"IF('1. Order'!B96=\"\",\"\",'1. Order'!B96)","v":""},{"$f":"IF('1. Order'!I96=\"\",\"\",'1. Order'!I96)","v":""},{"$f":"IF('1. Order'!J96=\"\",\"\",'1. Order'!J96)","v":""},{"$f":"IF('1. Order'!K96=\"\",\"\",'1. Order'!K96)","v":""},{"$f":"IF('1. Order'!M96=\"\",\"\",'1. Order'!M96)","v":""},null,null,{"$f":"'1. Order'!AW96","v":0},{"$f":"IF('1. Order'!AE96=\"\",\"\",'1. Order'!AE96)","v":""}]
[{"$f":"IF('1. Order'!B97=\"\",\"\",'1. Order'!B97)","v":""},{"$f":"IF('1. Order'!I97=\"\",\"\",'1. Order'!I97)","v":""},{"$f":"IF('1. Order'!J97=\"\",\"\",'1. Order'!J97)","v":""},{"$f":"IF('1. Order'!K97=\"\",\"\",'1. Order'!K97)","v":""},{"$f":"IF('1. Order'!M97=\"\",\"\",'1. Order'!M97)","v":""},null,null,{"$f":"'1. Order'!AW97","v":0},{"$f":"IF('1. Order'!AE97=\"\",\"\",'1. Order'!AE97)","v":""}]
[{"$f":"IF('1. Order'!B98=\"\",\"\",'1. Order'!B98)","v":""},{"$f":"IF('1. Order'!I98=\"\",\"\",'1. Order'!I98)","v":""},{"$f":"IF('1. Order'!J98=\"\",\"\",'1. Order'!J98)","v":""},{"$f":"IF('1. Order'!K98=\"\",\"\",'1. Order'!K98)","v":""},{"$f":"IF('1. Order'!M98=\"\",\"\",'1. Order'!M98)","v":""},null,null,{"$f":"'1. Order'!AW98","v":0},{"$f":"IF('1. Order'!AE98=\"\",\"\",'1. Order'!AE98)","v":""}]
[{"$f":"IF('1. Order'!B99=\"\",\"\",'1. Order'!B99)","v":""},{"$f":"IF('1. Order'!I99=\"\",\"\",'1. Order'!I99)","v":""},{"$f":"IF('1. Order'!J99=\"\",\"\",'1. Order'!J99)","v":""},{"$f":"IF('1. Order'!K99=\"\",\"\",'1. Order'!K99)","v":""},{"$f":"IF('1. Order'!M99=\"\",\"\",'1. Order'!M99)","v":""},null,null,{"$f":"'1. Order'!AW99","v":0},{"$f":"IF('1. Order'!AE99=\"\",\"\",'1. Order'!AE99)","v":""}]
[{"$f":"IF('1. Order'!B100=\"\",\"\",'1. Order'!B100)","v":""},{"$f":"IF('1. Order'!I100=\"\",\"\",'1. Order'!I100)","v":""},{"$f":"IF('1. Order'!J100=\"\",\"\",'1. Order'!J100)","v":""},{"$f":"IF('1. Order'!K100=\"\",\"\",'1. Order'!K100)","v":""},{"$f":"IF('1. Order'!M100=\"\",\"\",'1. Order'!M100)","v":""},null,null,{"$f":"'1. Order'!AW100","v":0},{"$f":"IF('1. Order'!AE100=\"\",\"\",'1. Order'!AE100)","v":""}]
[{"$f":"IF('1. Order'!B101=\"\",\"\",'1. Order'!B101)","v":""},{"$f":"IF('1. Order'!I101=\"\",\"\",'1. Order'!I101)","v":""},{"$f":"IF('1. Order'!J101=\"\",\"\",'1. Order'!J101)","v":""},{"$f":"IF('1. Order'!K101=\"\",\"\",'1. Order'!K101)","v":""},{"$f":"IF('1. Order'!M101=\"\",\"\",'1. Order'!M101)","v":""},null,null,{"$f":"'1. Order'!AW101","v":0},{"$f":"IF('1. Order'!AE101=\"\",\"\",'1. Order'!AE101)","v":""}]
[{"$f":"IF('1. Order'!B102=\"\",\"\",'1. Order'!B102)","v":""},{"$f":"IF('1. Order'!I102=\"\",\"\",'1. Order'!I102)","v":""},{"$f":"IF('1. Order'!J102=\"\",\"\",'1. Order'!J102)","v":""},{"$f":"IF('1. Order'!K102=\"\",\"\",'1. Order'!K102)","v":""},{"$f":"IF('1. Order'!M102=\"\",\"\",'1. Order'!M102)","v":""},null,null,{"$f":"'1. Order'!AW102","v":0},{"$f":"IF('1. Order'!AE102=\"\",\"\",'1. Order'!AE102)","v":""}]
[{"$f":"IF('1. Order'!B103=\"\",\"\",'1. Order'!B103)","v":""},{"$f":"IF('1. Order'!I103=\"\",\"\",'1. Order'!I103)","v":""},{"$f":"IF('1. Order'!J103=\"\",\"\",'1. Order'!J103)","v":""},{"$f":"IF('1. Order'!K103=\"\",\"\",'1. Order'!K103)","v":""},{"$f":"IF('1. Order'!M103=\"\",\"\",'1. Order'!M103)","v":""},null,null,{"$f":"'1. Order'!AW103","v":0},{"$f":"IF('1. Order'!AE103=\"\",\"\",'1. Order'!AE103)","v":""}]
[{"$f":"IF('1. Order'!B104=\"\",\"\",'1. Order'!B104)","v":""},{"$f":"IF('1. Order'!I104=\"\",\"\",'1. Order'!I104)","v":""},{"$f":"IF('1. Order'!J104=\"\",\"\",'1. Order'!J104)","v":""},{"$f":"IF('1. Order'!K104=\"\",\"\",'1. Order'!K104)","v":""},{"$f":"IF('1. Order'!M104=\"\",\"\",'1. Order'!M104)","v":""},null,null,{"$f":"'1. Order'!AW104","v":0},{"$f":"IF('1. Order'!AE104=\"\",\"\",'1. Order'!AE104)","v":""}]
[{"$f":"IF('1. Order'!B105=\"\",\"\",'1. Order'!B105)","v":""},{"$f":"IF('1. Order'!I105=\"\",\"\",'1. Order'!I105)","v":""},{"$f":"IF('1. Order'!J105=\"\",\"\",'1. Order'!J105)","v":""},{"$f":"IF('1. Order'!K105=\"\",\"\",'1. Order'!K105)","v":""},{"$f":"IF('1. Order'!M105=\"\",\"\",'1. Order'!M105)","v":""},null,null,{"$f":"'1. Order'!AW105","v":0},{"$f":"IF('1. Order'!AE105=\"\",\"\",'1. Order'!AE105)","v":""}]
[{"$f":"IF('1. Order'!B106=\"\",\"\",'1. Order'!B106)","v":""},{"$f":"IF('1. Order'!I106=\"\",\"\",'1. Order'!I106)","v":""},{"$f":"IF('1. Order'!J106=\"\",\"\",'1. Order'!J106)","v":""},{"$f":"IF('1. Order'!K106=\"\",\"\",'1. Order'!K106)","v":""},{"$f":"IF('1. Order'!M106=\"\",\"\",'1. Order'!M106)","v":""},null,null,{"$f":"'1. Order'!AW106","v":0},{"$f":"IF('1. Order'!AE106=\"\",\"\",'1. Order'!AE106)","v":""}]
[{"$f":"IF('1. Order'!B107=\"\",\"\",'1. Order'!B107)","v":""},{"$f":"IF('1. Order'!I107=\"\",\"\",'1. Order'!I107)","v":""},{"$f":"IF('1. Order'!J107=\"\",\"\",'1. Order'!J107)","v":""},{"$f":"IF('1. Order'!K107=\"\",\"\",'1. Order'!K107)","v":""},{"$f":"IF('1. Order'!M107=\"\",\"\",'1. Order'!M107)","v":""},null,null,{"$f":"'1. Order'!AW107","v":0},{"$f":"IF('1. Order'!AE107=\"\",\"\",'1. Order'!AE107)","v":""}]
[{"$f":"IF('1. Order'!B108=\"\",\"\",'1. Order'!B108)","v":""},{"$f":"IF('1. Order'!I108=\"\",\"\",'1. Order'!I108)","v":""},{"$f":"IF('1. Order'!J108=\"\",\"\",'1. Order'!J108)","v":""},{"$f":"IF('1. Order'!K108=\"\",\"\",'1. Order'!K108)","v":""},{"$f":"IF('1. Order'!M108=\"\",\"\",'1. Order'!M108)","v":""},null,null,{"$f":"'1. Order'!AW108","v":0},{"$f":"IF('1. Order'!AE108=\"\",\"\",'1. Order'!AE108)","v":""}]
[{"$f":"IF('1. Order'!B109=\"\",\"\",'1. Order'!B109)","v":""},{"$f":"IF('1. Order'!I109=\"\",\"\",'1. Order'!I109)","v":""},{"$f":"IF('1. Order'!J109=\"\",\"\",'1. Order'!J109)","v":""},{"$f":"IF('1. Order'!K109=\"\",\"\",'1. Order'!K109)","v":""},{"$f":"IF('1. Order'!M109=\"\",\"\",'1. Order'!M109)","v":""},null,null,{"$f":"'1. Order'!AW109","v":0},{"$f":"IF('1. Order'!AE109=\"\",\"\",'1. Order'!AE109)","v":""}]
[{"$f":"IF('1. Order'!B110=\"\",\"\",'1. Order'!B110)","v":""},{"$f":"IF('1. Order'!I110=\"\",\"\",'1. Order'!I110)","v":""},{"$f":"IF('1. Order'!J110=\"\",\"\",'1. Order'!J110)","v":""},{"$f":"IF('1. Order'!K110=\"\",\"\",'1. Order'!K110)","v":""},{"$f":"IF('1. Order'!M110=\"\",\"\",'1. Order'!M110)","v":""},null,null,{"$f":"'1. Order'!AW110","v":0},{"$f":"IF('1. Order'!AE110=\"\",\"\",'1. Order'!AE110)","v":""}]
[{"$f":"IF('1. Order'!B111=\"\",\"\",'1. Order'!B111)","v":""},{"$f":"IF('1. Order'!I111=\"\",\"\",'1. Order'!I111)","v":""},{"$f":"IF('1. Order'!J111=\"\",\"\",'1. Order'!J111)","v":""},{"$f":"IF('1. Order'!K111=\"\",\"\",'1. Order'!K111)","v":""},{"$f":"IF('1. Order'!M111=\"\",\"\",'1. Order'!M111)","v":""},null,null,{"$f":"'1. Order'!AW111","v":0},{"$f":"IF('1. Order'!AE111=\"\",\"\",'1. Order'!AE111)","v":""}]
[{"$f":"IF('1. Order'!B112=\"\",\"\",'1. Order'!B112)","v":""},{"$f":"IF('1. Order'!I112=\"\",\"\",'1. Order'!I112)","v":""},{"$f":"IF('1. Order'!J112=\"\",\"\",'1. Order'!J112)","v":""},{"$f":"IF('1. Order'!K112=\"\",\"\",'1. Order'!K112)","v":""},{"$f":"IF('1. Order'!M112=\"\",\"\",'1. Order'!M112)","v":""},null,null,{"$f":"'1. Order'!AW112","v":0},{"$f":"IF('1. Order'!AE112=\"\",\"\",'1. Order'!AE112)","v":""}]
[{"$f":"IF('1. Order'!B113=\"\",\"\",'1. Order'!B113)","v":""},{"$f":"IF('1. Order'!I113=\"\",\"\",'1. Order'!I113)","v":""},{"$f":"IF('1. Order'!J113=\"\",\"\",'1. Order'!J113)","v":""},{"$f":"IF('1. Order'!K113=\"\",\"\",'1. Order'!K113)","v":""},{"$f":"IF('1. Order'!M113=\"\",\"\",'1. Order'!M113)","v":""},null,null,{"$f":"'1. Order'!AW113","v":0},{"$f":"IF('1. Order'!AE113=\"\",\"\",'1. Order'!AE113)","v":""}]
[{"$f":"IF('1. Order'!B114=\"\",\"\",'1. Order'!B114)","v":""},{"$f":"IF('1. Order'!I114=\"\",\"\",'1. Order'!I114)","v":""},{"$f":"IF('1. Order'!J114=\"\",\"\",'1. Order'!J114)","v":""},{"$f":"IF('1. Order'!K114=\"\",\"\",'1. Order'!K114)","v":""},{"$f":"IF('1. Order'!M114=\"\",\"\",'1. Order'!M114)","v":""},null,null,{"$f":"'1. Order'!AW114","v":0},{"$f":"IF('1. Order'!AE114=\"\",\"\",'1. Order'!AE114)","v":""}]
[{"$f":"IF('1. Order'!B115=\"\",\"\",'1. Order'!B115)","v":""},{"$f":"IF('1. Order'!I115=\"\",\"\",'1. Order'!I115)","v":""},{"$f":"IF('1. Order'!J115=\"\",\"\",'1. Order'!J115)","v":""},{"$f":"IF('1. Order'!K115=\"\",\"\",'1. Order'!K115)","v":""},{"$f":"IF('1. Order'!M115=\"\",\"\",'1. Order'!M115)","v":""},null,null,{"$f":"'1. Order'!AW115","v":0},{"$f":"IF('1. Order'!AE115=\"\",\"\",'1. Order'!AE115)","v":""}]
[{"$f":"IF('1. Order'!B116=\"\",\"\",'1. Order'!B116)","v":""},{"$f":"IF('1. Order'!I116=\"\",\"\",'1. Order'!I116)","v":""},{"$f":"IF('1. Order'!J116=\"\",\"\",'1. Order'!J116)","v":""},{"$f":"IF('1. Order'!K116=\"\",\"\",'1. Order'!K116)","v":""},{"$f":"IF('1. Order'!M116=\"\",\"\",'1. Order'!M116)","v":""},null,null,{"$f":"'1. Order'!AW116","v":0},{"$f":"IF('1. Order'!AE116=\"\",\"\",'1. Order'!AE116)","v":""}]
[{"$f":"IF('1. Order'!B117=\"\",\"\",'1. Order'!B117)","v":""},{"$f":"IF('1. Order'!I117=\"\",\"\",'1. Order'!I117)","v":""},{"$f":"IF('1. Order'!J117=\"\",\"\",'1. Order'!J117)","v":""},{"$f":"IF('1. Order'!K117=\"\",\"\",'1. Order'!K117)","v":""},{"$f":"IF('1. Order'!M117=\"\",\"\",'1. Order'!M117)","v":""},null,null,{"$f":"'1. Order'!AW117","v":0},{"$f":"IF('1. Order'!AE117=\"\",\"\",'1. Order'!AE117)","v":""}]
[{"$f":"IF('1. Order'!B118=\"\",\"\",'1. Order'!B118)","v":""},{"$f":"IF('1. Order'!I118=\"\",\"\",'1. Order'!I118)","v":""},{"$f":"IF('1. Order'!J118=\"\",\"\",'1. Order'!J118)","v":""},{"$f":"IF('1. Order'!K118=\"\",\"\",'1. Order'!K118)","v":""},{"$f":"IF('1. Order'!M118=\"\",\"\",'1. Order'!M118)","v":""},null,null,{"$f":"'1. Order'!AW118","v":0},{"$f":"IF('1. Order'!AE118=\"\",\"\",'1. Order'!AE118)","v":""}]
[{"$f":"IF('1. Order'!B119=\"\",\"\",'1. Order'!B119)","v":""},{"$f":"IF('1. Order'!I119=\"\",\"\",'1. Order'!I119)","v":""},{"$f":"IF('1. Order'!J119=\"\",\"\",'1. Order'!J119)","v":""},{"$f":"IF('1. Order'!K119=\"\",\"\",'1. Order'!K119)","v":""},{"$f":"IF('1. Order'!M119=\"\",\"\",'1. Order'!M119)","v":""},null,null,{"$f":"'1. Order'!AW119","v":0},{"$f":"IF('1. Order'!AE119=\"\",\"\",'1. Order'!AE119)","v":""}]
[{"$f":"IF('1. Order'!B120=\"\",\"\",'1. Order'!B120)","v":""},{"$f":"IF('1. Order'!I120=\"\",\"\",'1. Order'!I120)","v":""},{"$f":"IF('1. Order'!J120=\"\",\"\",'1. Order'!J120)","v":""},{"$f":"IF('1. Order'!K120=\"\",\"\",'1. Order'!K120)","v":""},{"$f":"IF('1. Order'!M120=\"\",\"\",'1. Order'!M120)","v":""},null,null,{"$f":"'1. Order'!AW120","v":0},{"$f":"IF('1. Order'!AE120=\"\",\"\",'1. Order'!AE120)","v":""}]
[{"$f":"IF('1. Order'!B121=\"\",\"\",'1. Order'!B121)","v":""},{"$f":"IF('1. Order'!I121=\"\",\"\",'1. Order'!I121)","v":""},{"$f":"IF('1. Order'!J121=\"\",\"\",'1. Order'!J121)","v":""},{"$f":"IF('1. Order'!K121=\"\",\"\",'1. Order'!K121)","v":""},{"$f":"IF('1. Order'!M121=\"\",\"\",'1. Order'!M121)","v":""},null,null,{"$f":"'1. Order'!AW121","v":0},{"$f":"IF('1. Order'!AE121=\"\",\"\",'1. Order'!AE121)","v":""}]
[{"$f":"IF('1. Order'!B122=\"\",\"\",'1. Order'!B122)","v":""},{"$f":"IF('1. Order'!I122=\"\",\"\",'1. Order'!I122)","v":""},{"$f":"IF('1. Order'!J122=\"\",\"\",'1. Order'!J122)","v":""},{"$f":"IF('1. Order'!K122=\"\",\"\",'1. Order'!K122)","v":""},{"$f":"IF('1. Order'!M122=\"\",\"\",'1. Order'!M122)","v":""},null,null,{"$f":"'1. Order'!AW122","v":0},{"$f":"IF('1. Order'!AE122=\"\",\"\",'1. Order'!AE122)","v":""}]
[{"$f":"IF('1. Order'!B123=\"\",\"\",'1. Order'!B123)","v":""},{"$f":"IF('1. Order'!I123=\"\",\"\",'1. Order'!I123)","v":""},{"$f":"IF('1. Order'!J123=\"\",\"\",'1. Order'!J123)","v":""},{"$f":"IF('1. Order'!K123=\"\",\"\",'1. Order'!K123)","v":""},{"$f":"IF('1. Order'!M123=\"\",\"\",'1. Order'!M123)","v":""},null,null,{"$f":"'1. Order'!AW123","v":0},{"$f":"IF('1. Order'!AE123=\"\",\"\",'1. Order'!AE123)","v":""}]
[{"$f":"IF('1. Order'!B124=\"\",\"\",'1. Order'!B124)","v":""},{"$f":"IF('1. Order'!I124=\"\",\"\",'1. Order'!I124)","v":""},{"$f":"IF('1. Order'!J124=\"\",\"\",'1. Order'!J124)","v":""},{"$f":"IF('1. Order'!K124=\"\",\"\",'1. Order'!K124)","v":""},{"$f":"IF('1. Order'!M124=\"\",\"\",'1. Order'!M124)","v":""},null,null,{"$f":"'1. Order'!AW124","v":0},{"$f":"IF('1. Order'!AE124=\"\",\"\",'1. Order'!AE124)","v":""}]
[{"$f":"IF('1. Order'!B125=\"\",\"\",'1. Order'!B125)","v":""},{"$f":"IF('1. Order'!I125=\"\",\"\",'1. Order'!I125)","v":""},{"$f":"IF('1. Order'!J125=\"\",\"\",'1. Order'!J125)","v":""},{"$f":"IF('1. Order'!K125=\"\",\"\",'1. Order'!K125)","v":""},{"$f":"IF('1. Order'!M125=\"\",\"\",'1. Order'!M125)","v":""},null,null,{"$f":"'1. Order'!AW125","v":0},{"$f":"IF('1. Order'!AE125=\"\",\"\",'1. Order'!AE125)","v":""}]
[{"$f":"IF('1. Order'!B126=\"\",\"\",'1. Order'!B126)","v":""},{"$f":"IF('1. Order'!I126=\"\",\"\",'1. Order'!I126)","v":""},{"$f":"IF('1. Order'!J126=\"\",\"\",'1. Order'!J126)","v":""},{"$f":"IF('1. Order'!K126=\"\",\"\",'1. Order'!K126)","v":""},{"$f":"IF('1. Order'!M126=\"\",\"\",'1. Order'!M126)","v":""},null,null,{"$f":"'1. Order'!AW126","v":0},{"$f":"IF('1. Order'!AE126=\"\",\"\",'1. Order'!AE126)","v":""}]
[{"$f":"IF('1. Order'!B127=\"\",\"\",'1. Order'!B127)","v":""},{"$f":"IF('1. Order'!I127=\"\",\"\",'1. Order'!I127)","v":""},{"$f":"IF('1. Order'!J127=\"\",\"\",'1. Order'!J127)","v":""},{"$f":"IF('1. Order'!K127=\"\",\"\",'1. Order'!K127)","v":""},{"$f":"IF('1. Order'!M127=\"\",\"\",'1. Order'!M127)","v":""},null,null,{"$f":"'1. Order'!AW127","v":0},{"$f":"IF('1. Order'!AE127=\"\",\"\",'1. Order'!AE127)","v":""}]
[{"$f":"IF('1. Order'!B128=\"\",\"\",'1. Order'!B128)","v":""},{"$f":"IF('1. Order'!I128=\"\",\"\",'1. Order'!I128)","v":""},{"$f":"IF('1. Order'!J128=\"\",\"\",'1. Order'!J128)","v":""},{"$f":"IF('1. Order'!K128=\"\",\"\",'1. Order'!K128)","v":""},{"$f":"IF('1. Order'!M128=\"\",\"\",'1. Order'!M128)","v":""},null,null,{"$f":"'1. Order'!AW128","v":0},{"$f":"IF('1. Order'!AE128=\"\",\"\",'1. Order'!AE128)","v":""}]
[{"$f":"IF('1. Order'!B129=\"\",\"\",'1. Order'!B129)","v":""},{"$f":"IF('1. Order'!I129=\"\",\"\",'1. Order'!I129)","v":""},{"$f":"IF('1. Order'!J129=\"\",\"\",'1. Order'!J129)","v":""},{"$f":"IF('1. Order'!K129=\"\",\"\",'1. Order'!K129)","v":""},{"$f":"IF('1. Order'!M129=\"\",\"\",'1. Order'!M129)","v":""},null,null,{"$f":"'1. Order'!AW129","v":0},{"$f":"IF('1. Order'!AE129=\"\",\"\",'1. Order'!AE129)","v":""}]
[{"$f":"IF('1. Order'!B130=\"\",\"\",'1. Order'!B130)","v":""},{"$f":"IF('1. Order'!I130=\"\",\"\",'1. Order'!I130)","v":""},{"$f":"IF('1. Order'!J130=\"\",\"\",'1. Order'!J130)","v":""},{"$f":"IF('1. Order'!K130=\"\",\"\",'1. Order'!K130)","v":""},{"$f":"IF('1. Order'!M130=\"\",\"\",'1. Order'!M130)","v":""},null,null,{"$f":"'1. Order'!AW130","v":0},{"$f":"IF('1. Order'!AE130=\"\",\"\",'1. Order'!AE130)","v":""}]
[{"$f":"IF('1. Order'!B131=\"\",\"\",'1. Order'!B131)","v":""},{"$f":"IF('1. Order'!I131=\"\",\"\",'1. Order'!I131)","v":""},{"$f":"IF('1. Order'!J131=\"\",\"\",'1. Order'!J131)","v":""},{"$f":"IF('1. Order'!K131=\"\",\"\",'1. Order'!K131)","v":""},{"$f":"IF('1. Order'!M131=\"\",\"\",'1. Order'!M131)","v":""},null,null,{"$f":"'1. Order'!AW131","v":0},{"$f":"IF('1. Order'!AE131=\"\",\"\",'1. Order'!AE131)","v":""}]
[{"$f":"IF('1. Order'!B132=\"\",\"\",'1. Order'!B132)","v":""},{"$f":"IF('1. Order'!I132=\"\",\"\",'1. Order'!I132)","v":""},{"$f":"IF('1. Order'!J132=\"\",\"\",'1. Order'!J132)","v":""},{"$f":"IF('1. Order'!K132=\"\",\"\",'1. Order'!K132)","v":""},{"$f":"IF('1. Order'!M132=\"\",\"\",'1. Order'!M132)","v":""},null,null,{"$f":"'1. Order'!AW132","v":0},{"$f":"IF('1. Order'!AE132=\"\",\"\",'1. Order'!AE132)","v":""}]
[{"$f":"IF('1. Order'!B133=\"\",\"\",'1. Order'!B133)","v":""},{"$f":"IF('1. Order'!I133=\"\",\"\",'1. Order'!I133)","v":""},{"$f":"IF('1. Order'!J133=\"\",\"\",'1. Order'!J133)","v":""},{"$f":"IF('1. Order'!K133=\"\",\"\",'1. Order'!K133)","v":""},{"$f":"IF('1. Order'!M133=\"\",\"\",'1. Order'!M133)","v":""},null,null,{"$f":"'1. Order'!AW133","v":0},{"$f":"IF('1. Order'!AE133=\"\",\"\",'1. Order'!AE133)","v":""}]
[{"$f":"IF('1. Order'!B134=\"\",\"\",'1. Order'!B134)","v":""},{"$f":"IF('1. Order'!I134=\"\",\"\",'1. Order'!I134)","v":""},{"$f":"IF('1. Order'!J134=\"\",\"\",'1. Order'!J134)","v":""},{"$f":"IF('1. Order'!K134=\"\",\"\",'1. Order'!K134)","v":""},{"$f":"IF('1. Order'!M134=\"\",\"\",'1. Order'!M134)","v":""},null,null,{"$f":"'1. Order'!AW134","v":0},{"$f":"IF('1. Order'!AE134=\"\",\"\",'1. Order'!AE134)","v":""}]
[{"$f":"IF('1. Order'!B135=\"\",\"\",'1. Order'!B135)","v":""},{"$f":"IF('1. Order'!I135=\"\",\"\",'1. Order'!I135)","v":""},{"$f":"IF('1. Order'!J135=\"\",\"\",'1. Order'!J135)","v":""},{"$f":"IF('1. Order'!K135=\"\",\"\",'1. Order'!K135)","v":""},{"$f":"IF('1. Order'!M135=\"\",\"\",'1. Order'!M135)","v":""},null,null,{"$f":"'1. Order'!AW135","v":0},{"$f":"IF('1. Order'!AE135=\"\",\"\",'1. Order'!AE135)","v":""}]
[{"$f":"IF('1. Order'!B136=\"\",\"\",'1. Order'!B136)","v":""},{"$f":"IF('1. Order'!I136=\"\",\"\",'1. Order'!I136)","v":""},{"$f":"IF('1. Order'!J136=\"\",\"\",'1. Order'!J136)","v":""},{"$f":"IF('1. Order'!K136=\"\",\"\",'1. Order'!K136)","v":""},{"$f":"IF('1. Order'!M136=\"\",\"\",'1. Order'!M136)","v":""},null,null,{"$f":"'1. Order'!AW136","v":0},{"$f":"IF('1. Order'!AE136=\"\",\"\",'1. Order'!AE136)","v":""}]
[{"$f":"IF('1. Order'!B137=\"\",\"\",'1. Order'!B137)","v":""},{"$f":"IF('1. Order'!I137=\"\",\"\",'1. Order'!I137)","v":""},{"$f":"IF('1. Order'!J137=\"\",\"\",'1. Order'!J137)","v":""},{"$f":"IF('1. Order'!K137=\"\",\"\",'1. Order'!K137)","v":""},{"$f":"IF('1. Order'!M137=\"\",\"\",'1. Order'!M137)","v":""},null,null,{"$f":"'1. Order'!AW137","v":0},{"$f":"IF('1. Order'!AE137=\"\",\"\",'1. Order'!AE137)","v":""}]
[{"$f":"IF('1. Order'!B138=\"\",\"\",'1. Order'!B138)","v":""},{"$f":"IF('1. Order'!I138=\"\",\"\",'1. Order'!I138)","v":""},{"$f":"IF('1. Order'!J138=\"\",\"\",'1. Order'!J138)","v":""},{"$f":"IF('1. Order'!K138=\"\",\"\",'1. Order'!K138)","v":""},{"$f":"IF('1. Order'!M138=\"\",\"\",'1. Order'!M138)","v":""},null,null,{"$f":"'1. Order'!AW138","v":0},{"$f":"IF('1. Order'!AE138=\"\",\"\",'1. Order'!AE138)","v":""}]
[{"$f":"IF('1. Order'!B139=\"\",\"\",'1. Order'!B139)","v":""},{"$f":"IF('1. Order'!I139=\"\",\"\",'1. Order'!I139)","v":""},{"$f":"IF('1. Order'!J139=\"\",\"\",'1. Order'!J139)","v":""},{"$f":"IF('1. Order'!K139=\"\",\"\",'1. Order'!K139)","v":""},{"$f":"IF('1. Order'!M139=\"\",\"\",'1. Order'!M139)","v":""},null,null,{"$f":"'1. Order'!AW139","v":0},{"$f":"IF('1. Order'!AE139=\"\",\"\",'1. Order'!AE139)","v":""}]
[{"$f":"IF('1. Order'!B140=\"\",\"\",'1. Order'!B140)","v":""},{"$f":"IF('1. Order'!I140=\"\",\"\",'1. Order'!I140)","v":""},{"$f":"IF('1. Order'!J140=\"\",\"\",'1. Order'!J140)","v":""},{"$f":"IF('1. Order'!K140=\"\",\"\",'1. Order'!K140)","v":""},{"$f":"IF('1. Order'!M140=\"\",\"\",'1. Order'!M140)","v":""},null,null,{"$f":"'1. Order'!AW140","v":0},{"$f":"IF('1. Order'!AE140=\"\",\"\",'1. Order'!AE140)","v":""}]
[{"$f":"IF('1. Order'!B141=\"\",\"\",'1. Order'!B141)","v":""},{"$f":"IF('1. Order'!I141=\"\",\"\",'1. Order'!I141)","v":""},{"$f":"IF('1. Order'!J141=\"\",\"\",'1. Order'!J141)","v":""},{"$f":"IF('1. Order'!K141=\"\",\"\",'1. Order'!K141)","v":""},{"$f":"IF('1. Order'!M141=\"\",\"\",'1. Order'!M141)","v":""},null,null,{"$f":"'1. Order'!AW141","v":0},{"$f":"IF('1. Order'!AE141=\"\",\"\",'1. Order'!AE141)","v":""}]
[{"$f":"IF('1. Order'!B142=\"\",\"\",'1. Order'!B142)","v":""},{"$f":"IF('1. Order'!I142=\"\",\"\",'1. Order'!I142)","v":""},{"$f":"IF('1. Order'!J142=\"\",\"\",'1. Order'!J142)","v":""},{"$f":"IF('1. Order'!K142=\"\",\"\",'1. Order'!K142)","v":""},{"$f":"IF('1. Order'!M142=\"\",\"\",'1. Order'!M142)","v":""},null,null,{"$f":"'1. Order'!AW142","v":0},{"$f":"IF('1. Order'!AE142=\"\",\"\",'1. Order'!AE142)","v":""}]
[{"$f":"IF('1. Order'!B143=\"\",\"\",'1. Order'!B143)","v":""},{"$f":"IF('1. Order'!I143=\"\",\"\",'1. Order'!I143)","v":""},{"$f":"IF('1. Order'!J143=\"\",\"\",'1. Order'!J143)","v":""},{"$f":"IF('1. Order'!K143=\"\",\"\",'1. Order'!K143)","v":""},{"$f":"IF('1. Order'!M143=\"\",\"\",'1. Order'!M143)","v":""},null,null,{"$f":"'1. Order'!AW143","v":0},{"$f":"IF('1. Order'!AE143=\"\",\"\",'1. Order'!AE143)","v":""}]
[{"$f":"IF('1. Order'!B144=\"\",\"\",'1. Order'!B144)","v":""},{"$f":"IF('1. Order'!I144=\"\",\"\",'1. Order'!I144)","v":""},{"$f":"IF('1. Order'!J144=\"\",\"\",'1. Order'!J144)","v":""},{"$f":"IF('1. Order'!K144=\"\",\"\",'1. Order'!K144)","v":""},{"$f":"IF('1. Order'!M144=\"\",\"\",'1. Order'!M144)","v":""},null,null,{"$f":"'1. Order'!AW144","v":0},{"$f":"IF('1. Order'!AE144=\"\",\"\",'1. Order'!AE144)","v":""}]
[{"$f":"IF('1. Order'!B145=\"\",\"\",'1. Order'!B145)","v":""},{"$f":"IF('1. Order'!I145=\"\",\"\",'1. Order'!I145)","v":""},{"$f":"IF('1. Order'!J145=\"\",\"\",'1. Order'!J145)","v":""},{"$f":"IF('1. Order'!K145=\"\",\"\",'1. Order'!K145)","v":""},{"$f":"IF('1. Order'!M145=\"\",\"\",'1. Order'!M145)","v":""},null,null,{"$f":"'1. Order'!AW145","v":0},{"$f":"IF('1. Order'!AE145=\"\",\"\",'1. Order'!AE145)","v":""}]
[{"$f":"IF('1. Order'!B146=\"\",\"\",'1. Order'!B146)","v":""},{"$f":"IF('1. Order'!I146=\"\",\"\",'1. Order'!I146)","v":""},{"$f":"IF('1. Order'!J146=\"\",\"\",'1. Order'!J146)","v":""},{"$f":"IF('1. Order'!K146=\"\",\"\",'1. Order'!K146)","v":""},{"$f":"IF('1. Order'!M146=\"\",\"\",'1. Order'!M146)","v":""},null,null,{"$f":"'1. Order'!AW146","v":0},{"$f":"IF('1. Order'!AE146=\"\",\"\",'1. Order'!AE146)","v":""}]
[{"$f":"IF('1. Order'!B147=\"\",\"\",'1. Order'!B147)","v":""},{"$f":"IF('1. Order'!I147=\"\",\"\",'1. Order'!I147)","v":""},{"$f":"IF('1. Order'!J147=\"\",\"\",'1. Order'!J147)","v":""},{"$f":"IF('1. Order'!K147=\"\",\"\",'1. Order'!K147)","v":""},{"$f":"IF('1. Order'!M147=\"\",\"\",'1. Order'!M147)","v":""},null,null,{"$f":"'1. Order'!AW147","v":0},{"$f":"IF('1. Order'!AE147=\"\",\"\",'1. Order'!AE147)","v":""}]
[{"$f":"IF('1. Order'!B148=\"\",\"\",'1. Order'!B148)","v":""},{"$f":"IF('1. Order'!I148=\"\",\"\",'1. Order'!I148)","v":""},{"$f":"IF('1. Order'!J148=\"\",\"\",'1. Order'!J148)","v":""},{"$f":"IF('1. Order'!K148=\"\",\"\",'1. Order'!K148)","v":""},{"$f":"IF('1. Order'!M148=\"\",\"\",'1. Order'!M148)","v":""},null,null,{"$f":"'1. Order'!AW148","v":0},{"$f":"IF('1. Order'!AE148=\"\",\"\",'1. Order'!AE148)","v":""}]
[{"$f":"IF('1. Order'!B149=\"\",\"\",'1. Order'!B149)","v":""},{"$f":"IF('1. Order'!I149=\"\",\"\",'1. Order'!I149)","v":""},{"$f":"IF('1. Order'!J149=\"\",\"\",'1. Order'!J149)","v":""},{"$f":"IF('1. Order'!K149=\"\",\"\",'1. Order'!K149)","v":""},{"$f":"IF('1. Order'!M149=\"\",\"\",'1. Order'!M149)","v":""},null,null,{"$f":"'1. Order'!AW149","v":0},{"$f":"IF('1. Order'!AE149=\"\",\"\",'1. Order'!AE149)","v":""}]
[{"$f":"IF('1. Order'!B150=\"\",\"\",'1. Order'!B150)","v":""},{"$f":"IF('1. Order'!I150=\"\",\"\",'1. Order'!I150)","v":""},{"$f":"IF('1. Order'!J150=\"\",\"\",'1. Order'!J150)","v":""},{"$f":"IF('1. Order'!K150=\"\",\"\",'1. Order'!K150)","v":""},{"$f":"IF('1. Order'!M150=\"\",\"\",'1. Order'!M150)","v":""},null,null,{"$f":"'1. Order'!AW150","v":0},{"$f":"IF('1. Order'!AE150=\"\",\"\",'1. Order'!AE150)","v":""}]
[{"$f":"IF('1. Order'!B151=\"\",\"\",'1. Order'!B151)","v":""},{"$f":"IF('1. Order'!I151=\"\",\"\",'1. Order'!I151)","v":""},{"$f":"IF('1. Order'!J151=\"\",\"\",'1. Order'!J151)","v":""},{"$f":"IF('1. Order'!K151=\"\",\"\",'1. Order'!K151)","v":""},{"$f":"IF('1. Order'!M151=\"\",\"\",'1. Order'!M151)","v":""},null,null,{"$f":"'1. Order'!AW151","v":0},{"$f":"IF('1. Order'!AE151=\"\",\"\",'1. Order'!AE151)","v":""}]
[{"$f":"IF('1. Order'!B152=\"\",\"\",'1. Order'!B152)","v":""},{"$f":"IF('1. Order'!I152=\"\",\"\",'1. Order'!I152)","v":""},{"$f":"IF('1. Order'!J152=\"\",\"\",'1. Order'!J152)","v":""},{"$f":"IF('1. Order'!K152=\"\",\"\",'1. Order'!K152)","v":""},{"$f":"IF('1. Order'!M152=\"\",\"\",'1. Order'!M152)","v":""},null,null,{"$f":"'1. Order'!AW152","v":0},{"$f":"IF('1. Order'!AE152=\"\",\"\",'1. Order'!AE152)","v":""}]
[{"$f":"IF('1. Order'!B153=\"\",\"\",'1. Order'!B153)","v":""},{"$f":"IF('1. Order'!I153=\"\",\"\",'1. Order'!I153)","v":""},{"$f":"IF('1. Order'!J153=\"\",\"\",'1. Order'!J153)","v":""},{"$f":"IF('1. Order'!K153=\"\",\"\",'1. Order'!K153)","v":""},{"$f":"IF('1. Order'!M153=\"\",\"\",'1. Order'!M153)","v":""},null,null,{"$f":"'1. Order'!AW153","v":0},{"$f":"IF('1. Order'!AE153=\"\",\"\",'1. Order'!AE153)","v":""}]
[{"$f":"IF('1. Order'!B154=\"\",\"\",'1. Order'!B154)","v":""},{"$f":"IF('1. Order'!I154=\"\",\"\",'1. Order'!I154)","v":""},{"$f":"IF('1. Order'!J154=\"\",\"\",'1. Order'!J154)","v":""},{"$f":"IF('1. Order'!K154=\"\",\"\",'1. Order'!K154)","v":""},{"$f":"IF('1. Order'!M154=\"\",\"\",'1. Order'!M154)","v":""},null,null,{"$f":"'1. Order'!AW154","v":0},{"$f":"IF('1. Order'!AE154=\"\",\"\",'1. Order'!AE154)","v":""}]
[{"$f":"IF('1. Order'!B155=\"\",\"\",'1. Order'!B155)","v":""},{"$f":"IF('1. Order'!I155=\"\",\"\",'1. Order'!I155)","v":""},{"$f":"IF('1. Order'!J155=\"\",\"\",'1. Order'!J155)","v":""},{"$f":"IF('1. Order'!K155=\"\",\"\",'1. Order'!K155)","v":""},{"$f":"IF('1. Order'!M155=\"\",\"\",'1. Order'!M155)","v":""},null,null,{"$f":"'1. Order'!AW155","v":0},{"$f":"IF('1. Order'!AE155=\"\",\"\",'1. Order'!AE155)","v":""}]
[{"$f":"IF('1. Order'!B156=\"\",\"\",'1. Order'!B156)","v":""},{"$f":"IF('1. Order'!I156=\"\",\"\",'1. Order'!I156)","v":""},{"$f":"IF('1. Order'!J156=\"\",\"\",'1. Order'!J156)","v":""},{"$f":"IF('1. Order'!K156=\"\",\"\",'1. Order'!K156)","v":""},{"$f":"IF('1. Order'!M156=\"\",\"\",'1. Order'!M156)","v":""},null,null,{"$f":"'1. Order'!AW156","v":0},{"$f":"IF('1. Order'!AE156=\"\",\"\",'1. Order'!AE156)","v":""}]
[{"$f":"IF('1. Order'!B157=\"\",\"\",'1. Order'!B157)","v":""},{"$f":"IF('1. Order'!I157=\"\",\"\",'1. Order'!I157)","v":""},{"$f":"IF('1. Order'!J157=\"\",\"\",'1. Order'!J157)","v":""},{"$f":"IF('1. Order'!K157=\"\",\"\",'1. Order'!K157)","v":""},{"$f":"IF('1. Order'!M157=\"\",\"\",'1. Order'!M157)","v":""},null,null,{"$f":"'1. Order'!AW157","v":0},{"$f":"IF('1. Order'!AE157=\"\",\"\",'1. Order'!AE157)","v":""}]
[{"$f":"IF('1. Order'!B158=\"\",\"\",'1. Order'!B158)","v":""},{"$f":"IF('1. Order'!I158=\"\",\"\",'1. Order'!I158)","v":""},{"$f":"IF('1. Order'!J158=\"\",\"\",'1. Order'!J158)","v":""},{"$f":"IF('1. Order'!K158=\"\",\"\",'1. Order'!K158)","v":""},{"$f":"IF('1. Order'!M158=\"\",\"\",'1. Order'!M158)","v":""},null,null,{"$f":"'1. Order'!AW158","v":0},{"$f":"IF('1. Order'!AE158=\"\",\"\",'1. Order'!AE158)","v":""}]
[{"$f":"IF('1. Order'!B159=\"\",\"\",'1. Order'!B159)","v":""},{"$f":"IF('1. Order'!I159=\"\",\"\",'1. Order'!I159)","v":""},{"$f":"IF('1. Order'!J159=\"\",\"\",'1. Order'!J159)","v":""},{"$f":"IF('1. Order'!K159=\"\",\"\",'1. Order'!K159)","v":""},{"$f":"IF('1. Order'!M159=\"\",\"\",'1. Order'!M159)","v":""},null,null,{"$f":"'1. Order'!AW159","v":0},{"$f":"IF('1. Order'!AE159=\"\",\"\",'1. Order'!AE159)","v":""}]
[{"$f":"IF('1. Order'!B160=\"\",\"\",'1. Order'!B160)","v":""},{"$f":"IF('1. Order'!I160=\"\",\"\",'1. Order'!I160)","v":""},{"$f":"IF('1. Order'!J160=\"\",\"\",'1. Order'!J160)","v":""},{"$f":"IF('1. Order'!K160=\"\",\"\",'1. Order'!K160)","v":""},{"$f":"IF('1. Order'!M160=\"\",\"\",'1. Order'!M160)","v":""},null,null,{"$f":"'1. Order'!AW160","v":0},{"$f":"IF('1. Order'!AE160=\"\",\"\",'1. Order'!AE160)","v":""}]
[{"$f":"IF('1. Order'!B161=\"\",\"\",'1. Order'!B161)","v":""},{"$f":"IF('1. Order'!I161=\"\",\"\",'1. Order'!I161)","v":""},{"$f":"IF('1. Order'!J161=\"\",\"\",'1. Order'!J161)","v":""},{"$f":"IF('1. Order'!K161=\"\",\"\",'1. Order'!K161)","v":""},{"$f":"IF('1. Order'!M161=\"\",\"\",'1. Order'!M161)","v":""},null,null,{"$f":"'1. Order'!AW161","v":0},{"$f":"IF('1. Order'!AE161=\"\",\"\",'1. Order'!AE161)","v":""}]
[{"$f":"IF('1. Order'!B162=\"\",\"\",'1. Order'!B162)","v":""},{"$f":"IF('1. Order'!I162=\"\",\"\",'1. Order'!I162)","v":""},{"$f":"IF('1. Order'!J162=\"\",\"\",'1. Order'!J162)","v":""},{"$f":"IF('1. Order'!K162=\"\",\"\",'1. Order'!K162)","v":""},{"$f":"IF('1. Order'!M162=\"\",\"\",'1. Order'!M162)","v":""},null,null,{"$f":"'1. Order'!AW162","v":0},{"$f":"IF('1. Order'!AE162=\"\",\"\",'1. Order'!AE162)","v":""}]
[{"$f":"IF('1. Order'!B163=\"\",\"\",'1. Order'!B163)","v":""},{"$f":"IF('1. Order'!I163=\"\",\"\",'1. Order'!I163)","v":""},{"$f":"IF('1. Order'!J163=\"\",\"\",'1. Order'!J163)","v":""},{"$f":"IF('1. Order'!K163=\"\",\"\",'1. Order'!K163)","v":""},{"$f":"IF('1. Order'!M163=\"\",\"\",'1. Order'!M163)","v":""},null,null,{"$f":"'1. Order'!AW163","v":0},{"$f":"IF('1. Order'!AE163=\"\",\"\",'1. Order'!AE163)","v":""}]
[{"$f":"IF('1. Order'!B164=\"\",\"\",'1. Order'!B164)","v":""},{"$f":"IF('1. Order'!I164=\"\",\"\",'1. Order'!I164)","v":""},{"$f":"IF('1. Order'!J164=\"\",\"\",'1. Order'!J164)","v":""},{"$f":"IF('1. Order'!K164=\"\",\"\",'1. Order'!K164)","v":""},{"$f":"IF('1. Order'!M164=\"\",\"\",'1. Order'!M164)","v":""},null,null,{"$f":"'1. Order'!AW164","v":0},{"$f":"IF('1. Order'!AE164=\"\",\"\",'1. Order'!AE164)","v":""}]
[{"$f":"IF('1. Order'!B165=\"\",\"\",'1. Order'!B165)","v":""},{"$f":"IF('1. Order'!I165=\"\",\"\",'1. Order'!I165)","v":""},{"$f":"IF('1. Order'!J165=\"\",\"\",'1. Order'!J165)","v":""},{"$f":"IF('1. Order'!K165=\"\",\"\",'1. Order'!K165)","v":""},{"$f":"IF('1. Order'!M165=\"\",\"\",'1. Order'!M165)","v":""},null,null,{"$f":"'1. Order'!AW165","v":0},{"$f":"IF('1. Order'!AE165=\"\",\"\",'1. Order'!AE165)","v":""}]
[{"$f":"IF('1. Order'!B166=\"\",\"\",'1. Order'!B166)","v":""},{"$f":"IF('1. Order'!I166=\"\",\"\",'1. Order'!I166)","v":""},{"$f":"IF('1. Order'!J166=\"\",\"\",'1. Order'!J166)","v":""},{"$f":"IF('1. Order'!K166=\"\",\"\",'1. Order'!K166)","v":""},{"$f":"IF('1. Order'!M166=\"\",\"\",'1. Order'!M166)","v":""},null,null,{"$f":"'1. Order'!AW166","v":0},{"$f":"IF('1. Order'!AE166=\"\",\"\",'1. Order'!AE166)","v":""}]
[{"$f":"IF('1. Order'!B167=\"\",\"\",'1. Order'!B167)","v":""},{"$f":"IF('1. Order'!I167=\"\",\"\",'1. Order'!I167)","v":""},{"$f":"IF('1. Order'!J167=\"\",\"\",'1. Order'!J167)","v":""},{"$f":"IF('1. Order'!K167=\"\",\"\",'1. Order'!K167)","v":""},{"$f":"IF('1. Order'!M167=\"\",\"\",'1. Order'!M167)","v":""},null,null,{"$f":"'1. Order'!AW167","v":0},{"$f":"IF('1. Order'!AE167=\"\",\"\",'1. Order'!AE167)","v":""}]
[{"$f":"IF('1. Order'!B168=\"\",\"\",'1. Order'!B168)","v":""},{"$f":"IF('1. Order'!I168=\"\",\"\",'1. Order'!I168)","v":""},{"$f":"IF('1. Order'!J168=\"\",\"\",'1. Order'!J168)","v":""},{"$f":"IF('1. Order'!K168=\"\",\"\",'1. Order'!K168)","v":""},{"$f":"IF('1. Order'!M168=\"\",\"\",'1. Order'!M168)","v":""},null,null,{"$f":"'1. Order'!AW168","v":0},{"$f":"IF('1. Order'!AE168=\"\",\"\",'1. Order'!AE168)","v":""}]
[{"$f":"IF('1. Order'!B169=\"\",\"\",'1. Order'!B169)","v":""},{"$f":"IF('1. Order'!I169=\"\",\"\",'1. Order'!I169)","v":""},{"$f":"IF('1. Order'!J169=\"\",\"\",'1. Order'!J169)","v":""},{"$f":"IF('1. Order'!K169=\"\",\"\",'1. Order'!K169)","v":""},{"$f":"IF('1. Order'!M169=\"\",\"\",'1. Order'!M169)","v":""},null,null,{"$f":"'1. Order'!AW169","v":0},{"$f":"IF('1. Order'!AE169=\"\",\"\",'1. Order'!AE169)","v":""}]
[{"$f":"IF('1. Order'!B170=\"\",\"\",'1. Order'!B170)","v":""},{"$f":"IF('1. Order'!I170=\"\",\"\",'1. Order'!I170)","v":""},{"$f":"IF('1. Order'!J170=\"\",\"\",'1. Order'!J170)","v":""},{"$f":"IF('1. Order'!K170=\"\",\"\",'1. Order'!K170)","v":""},{"$f":"IF('1. Order'!M170=\"\",\"\",'1. Order'!M170)","v":""},null,null,{"$f":"'1. Order'!AW170","v":0},{"$f":"IF('1. Order'!AE170=\"\",\"\",'1. Order'!AE170)","v":""}]
[{"$f":"IF('1. Order'!B171=\"\",\"\",'1. Order'!B171)","v":""},{"$f":"IF('1. Order'!I171=\"\",\"\",'1. Order'!I171)","v":""},{"$f":"IF('1. Order'!J171=\"\",\"\",'1. Order'!J171)","v":""},{"$f":"IF('1. Order'!K171=\"\",\"\",'1. Order'!K171)","v":""},{"$f":"IF('1. Order'!M171=\"\",\"\",'1. Order'!M171)","v":""},null,null,{"$f":"'1. Order'!AW171","v":0},{"$f":"IF('1. Order'!AE171=\"\",\"\",'1. Order'!AE171)","v":""}]
[{"$f":"IF('1. Order'!B172=\"\",\"\",'1. Order'!B172)","v":""},{"$f":"IF('1. Order'!I172=\"\",\"\",'1. Order'!I172)","v":""},{"$f":"IF('1. Order'!J172=\"\",\"\",'1. Order'!J172)","v":""},{"$f":"IF('1. Order'!K172=\"\",\"\",'1. Order'!K172)","v":""},{"$f":"IF('1. Order'!M172=\"\",\"\",'1. Order'!M172)","v":""},null,null,{"$f":"'1. Order'!AW172","v":0},{"$f":"IF('1. Order'!AE172=\"\",\"\",'1. Order'!AE172)","v":""}]
[{"$f":"IF('1. Order'!B173=\"\",\"\",'1. Order'!B173)","v":""},{"$f":"IF('1. Order'!I173=\"\",\"\",'1. Order'!I173)","v":""},{"$f":"IF('1. Order'!J173=\"\",\"\",'1. Order'!J173)","v":""},{"$f":"IF('1. Order'!K173=\"\",\"\",'1. Order'!K173)","v":""},{"$f":"IF('1. Order'!M173=\"\",\"\",'1. Order'!M173)","v":""},null,null,{"$f":"'1. Order'!AW173","v":0},{"$f":"IF('1. Order'!AE173=\"\",\"\",'1. Order'!AE173)","v":""}]
[{"$f":"IF('1. Order'!B174=\"\",\"\",'1. Order'!B174)","v":""},{"$f":"IF('1. Order'!I174=\"\",\"\",'1. Order'!I174)","v":""},{"$f":"IF('1. Order'!J174=\"\",\"\",'1. Order'!J174)","v":""},{"$f":"IF('1. Order'!K174=\"\",\"\",'1. Order'!K174)","v":""},{"$f":"IF('1. Order'!M174=\"\",\"\",'1. Order'!M174)","v":""},null,null,{"$f":"'1. Order'!AW174","v":0},{"$f":"IF('1. Order'!AE174=\"\",\"\",'1. Order'!AE174)","v":""}]
[{"$f":"IF('1. Order'!B175=\"\",\"\",'1. Order'!B175)","v":""},{"$f":"IF('1. Order'!I175=\"\",\"\",'1. Order'!I175)","v":""},{"$f":"IF('1. Order'!J175=\"\",\"\",'1. Order'!J175)","v":""},{"$f":"IF('1. Order'!K175=\"\",\"\",'1. Order'!K175)","v":""},{"$f":"IF('1. Order'!M175=\"\",\"\",'1. Order'!M175)","v":""},null,null,{"$f":"'1. Order'!AW175","v":0},{"$f":"IF('1. Order'!AE175=\"\",\"\",'1. Order'!AE175)","v":""}]
[{"$f":"IF('1. Order'!B176=\"\",\"\",'1. Order'!B176)","v":""},{"$f":"IF('1. Order'!I176=\"\",\"\",'1. Order'!I176)","v":""},{"$f":"IF('1. Order'!J176=\"\",\"\",'1. Order'!J176)","v":""},{"$f":"IF('1. Order'!K176=\"\",\"\",'1. Order'!K176)","v":""},{"$f":"IF('1. Order'!M176=\"\",\"\",'1. Order'!M176)","v":""},null,null,{"$f":"'1. Order'!AW176","v":0},{"$f":"IF('1. Order'!AE176=\"\",\"\",'1. Order'!AE176)","v":""}]
[{"$f":"IF('1. Order'!B177=\"\",\"\",'1. Order'!B177)","v":""},{"$f":"IF('1. Order'!I177=\"\",\"\",'1. Order'!I177)","v":""},{"$f":"IF('1. Order'!J177=\"\",\"\",'1. Order'!J177)","v":""},{"$f":"IF('1. Order'!K177=\"\",\"\",'1. Order'!K177)","v":""},{"$f":"IF('1. Order'!M177=\"\",\"\",'1. Order'!M177)","v":""},null,null,{"$f":"'1. Order'!AW177","v":0},{"$f":"IF('1. Order'!AE177=\"\",\"\",'1. Order'!AE177)","v":""}]
[{"$f":"IF('1. Order'!B178=\"\",\"\",'1. Order'!B178)","v":""},{"$f":"IF('1. Order'!I178=\"\",\"\",'1. Order'!I178)","v":""},{"$f":"IF('1. Order'!J178=\"\",\"\",'1. Order'!J178)","v":""},{"$f":"IF('1. Order'!K178=\"\",\"\",'1. Order'!K178)","v":""},{"$f":"IF('1. Order'!M178=\"\",\"\",'1. Order'!M178)","v":""},null,null,{"$f":"'1. Order'!AW178","v":0},{"$f":"IF('1. Order'!AE178=\"\",\"\",'1. Order'!AE178)","v":""}]
[{"$f":"IF('1. Order'!B179=\"\",\"\",'1. Order'!B179)","v":""},{"$f":"IF('1. Order'!I179=\"\",\"\",'1. Order'!I179)","v":""},{"$f":"IF('1. Order'!J179=\"\",\"\",'1. Order'!J179)","v":""},{"$f":"IF('1. Order'!K179=\"\",\"\",'1. Order'!K179)","v":""},{"$f":"IF('1. Order'!M179=\"\",\"\",'1. Order'!M179)","v":""},null,null,{"$f":"'1. Order'!AW179","v":0},{"$f":"IF('1. Order'!AE179=\"\",\"\",'1. Order'!AE179)","v":""}]
[{"$f":"IF('1. Order'!B180=\"\",\"\",'1. Order'!B180)","v":""},{"$f":"IF('1. Order'!I180=\"\",\"\",'1. Order'!I180)","v":""},{"$f":"IF('1. Order'!J180=\"\",\"\",'1. Order'!J180)","v":""},{"$f":"IF('1. Order'!K180=\"\",\"\",'1. Order'!K180)","v":""},{"$f":"IF('1. Order'!M180=\"\",\"\",'1. Order'!M180)","v":""},null,null,{"$f":"'1. Order'!AW180","v":0},{"$f":"IF('1. Order'!AE180=\"\",\"\",'1. Order'!AE180)","v":""}]
[{"$f":"IF('1. Order'!B181=\"\",\"\",'1. Order'!B181)","v":""},{"$f":"IF('1. Order'!I181=\"\",\"\",'1. Order'!I181)","v":""},{"$f":"IF('1. Order'!J181=\"\",\"\",'1. Order'!J181)","v":""},{"$f":"IF('1. Order'!K181=\"\",\"\",'1. Order'!K181)","v":""},{"$f":"IF('1. Order'!M181=\"\",\"\",'1. Order'!M181)","v":""},null,null,{"$f":"'1. Order'!AW181","v":0},{"$f":"IF('1. Order'!AE181=\"\",\"\",'1. Order'!AE181)","v":""}]
[{"$f":"IF('1. Order'!B182=\"\",\"\",'1. Order'!B182)","v":""},{"$f":"IF('1. Order'!I182=\"\",\"\",'1. Order'!I182)","v":""},{"$f":"IF('1. Order'!J182=\"\",\"\",'1. Order'!J182)","v":""},{"$f":"IF('1. Order'!K182=\"\",\"\",'1. Order'!K182)","v":""},{"$f":"IF('1. Order'!M182=\"\",\"\",'1. Order'!M182)","v":""},null,null,{"$f":"'1. Order'!AW182","v":0},{"$f":"IF('1. Order'!AE182=\"\",\"\",'1. Order'!AE182)","v":""}]
[{"$f":"IF('1. Order'!B183=\"\",\"\",'1. Order'!B183)","v":""},{"$f":"IF('1. Order'!I183=\"\",\"\",'1. Order'!I183)","v":""},{"$f":"IF('1. Order'!J183=\"\",\"\",'1. Order'!J183)","v":""},{"$f":"IF('1. Order'!K183=\"\",\"\",'1. Order'!K183)","v":""},{"$f":"IF('1. Order'!M183=\"\",\"\",'1. Order'!M183)","v":""},null,null,{"$f":"'1. Order'!AW183","v":0},{"$f":"IF('1. Order'!AE183=\"\",\"\",'1. Order'!AE183)","v":""}]
[{"$f":"IF('1. Order'!B184=\"\",\"\",'1. Order'!B184)","v":""},{"$f":"IF('1. Order'!I184=\"\",\"\",'1. Order'!I184)","v":""},{"$f":"IF('1. Order'!J184=\"\",\"\",'1. Order'!J184)","v":""},{"$f":"IF('1. Order'!K184=\"\",\"\",'1. Order'!K184)","v":""},{"$f":"IF('1. Order'!M184=\"\",\"\",'1. Order'!M184)","v":""},null,null,{"$f":"'1. Order'!AW184","v":0},{"$f":"IF('1. Order'!AE184=\"\",\"\",'1. Order'!AE184)","v":""}]
[{"$f":"IF('1. Order'!B185=\"\",\"\",'1. Order'!B185)","v":""},{"$f":"IF('1. Order'!I185=\"\",\"\",'1. Order'!I185)","v":""},{"$f":"IF('1. Order'!J185=\"\",\"\",'1. Order'!J185)","v":""},{"$f":"IF('1. Order'!K185=\"\",\"\",'1. Order'!K185)","v":""},{"$f":"IF('1. Order'!M185=\"\",\"\",'1. Order'!M185)","v":""},null,null,{"$f":"'1. Order'!AW185","v":0},{"$f":"IF('1. Order'!AE185=\"\",\"\",'1. Order'!AE185)","v":""}]
[{"$f":"IF('1. Order'!B186=\"\",\"\",'1. Order'!B186)","v":""},{"$f":"IF('1. Order'!I186=\"\",\"\",'1. Order'!I186)","v":""},{"$f":"IF('1. Order'!J186=\"\",\"\",'1. Order'!J186)","v":""},{"$f":"IF('1. Order'!K186=\"\",\"\",'1. Order'!K186)","v":""},{"$f":"IF('1. Order'!M186=\"\",\"\",'1. Order'!M186)","v":""},null,null,{"$f":"'1. Order'!AW186","v":0},{"$f":"IF('1. Order'!AE186=\"\",\"\",'1. Order'!AE186)","v":""}]
[{"$f":"IF('1. Order'!B187=\"\",\"\",'1. Order'!B187)","v":""},{"$f":"IF('1. Order'!I187=\"\",\"\",'1. Order'!I187)","v":""},{"$f":"IF('1. Order'!J187=\"\",\"\",'1. Order'!J187)","v":""},{"$f":"IF('1. Order'!K187=\"\",\"\",'1. Order'!K187)","v":""},{"$f":"IF('1. Order'!M187=\"\",\"\",'1. Order'!M187)","v":""},null,null,{"$f":"'1. Order'!AW187","v":0},{"$f":"IF('1. Order'!AE187=\"\",\"\",'1. Order'!AE187)","v":""}]
[{"$f":"IF('1. Order'!B188=\"\",\"\",'1. Order'!B188)","v":""},{"$f":"IF('1. Order'!I188=\"\",\"\",'1. Order'!I188)","v":""},{"$f":"IF('1. Order'!J188=\"\",\"\",'1. Order'!J188)","v":""},{"$f":"IF('1. Order'!K188=\"\",\"\",'1. Order'!K188)","v":""},{"$f":"IF('1. Order'!M188=\"\",\"\",'1. Order'!M188)","v":""},null,null,{"$f":"'1. Order'!AW188","v":0},{"$f":"IF('1. Order'!AE188=\"\",\"\",'1. Order'!AE188)","v":""}]
[{"$f":"IF('1. Order'!B189=\"\",\"\",'1. Order'!B189)","v":""},{"$f":"IF('1. Order'!I189=\"\",\"\",'1. Order'!I189)","v":""},{"$f":"IF('1. Order'!J189=\"\",\"\",'1. Order'!J189)","v":""},{"$f":"IF('1. Order'!K189=\"\",\"\",'1. Order'!K189)","v":""},{"$f":"IF('1. Order'!M189=\"\",\"\",'1. Order'!M189)","v":""},null,null,{"$f":"'1. Order'!AW189","v":0},{"$f":"IF('1. Order'!AE189=\"\",\"\",'1. Order'!AE189)","v":""}]
[{"$f":"IF('1. Order'!B190=\"\",\"\",'1. Order'!B190)","v":""},{"$f":"IF('1. Order'!I190=\"\",\"\",'1. Order'!I190)","v":""},{"$f":"IF('1. Order'!J190=\"\",\"\",'1. Order'!J190)","v":""},{"$f":"IF('1. Order'!K190=\"\",\"\",'1. Order'!K190)","v":""},{"$f":"IF('1. Order'!M190=\"\",\"\",'1. Order'!M190)","v":""},null,null,{"$f":"'1. Order'!AW190","v":0},{"$f":"IF('1. Order'!AE190=\"\",\"\",'1. Order'!AE190)","v":""}]
[{"$f":"IF('1. Order'!B191=\"\",\"\",'1. Order'!B191)","v":""},{"$f":"IF('1. Order'!I191=\"\",\"\",'1. Order'!I191)","v":""},{"$f":"IF('1. Order'!J191=\"\",\"\",'1. Order'!J191)","v":""},{"$f":"IF('1. Order'!K191=\"\",\"\",'1. Order'!K191)","v":""},{"$f":"IF('1. Order'!M191=\"\",\"\",'1. Order'!M191)","v":""},null,null,{"$f":"'1. Order'!AW191","v":0},{"$f":"IF('1. Order'!AE191=\"\",\"\",'1. Order'!AE191)","v":""}]
[{"$f":"IF('1. Order'!B192=\"\",\"\",'1. Order'!B192)","v":""},{"$f":"IF('1. Order'!I192=\"\",\"\",'1. Order'!I192)","v":""},{"$f":"IF('1. Order'!J192=\"\",\"\",'1. Order'!J192)","v":""},{"$f":"IF('1. Order'!K192=\"\",\"\",'1. Order'!K192)","v":""},{"$f":"IF('1. Order'!M192=\"\",\"\",'1. Order'!M192)","v":""},null,null,{"$f":"'1. Order'!AW192","v":0},{"$f":"IF('1. Order'!AE192=\"\",\"\",'1. Order'!AE192)","v":""}]
[{"$f":"IF('1. Order'!B193=\"\",\"\",'1. Order'!B193)","v":""},{"$f":"IF('1. Order'!I193=\"\",\"\",'1. Order'!I193)","v":""},{"$f":"IF('1. Order'!J193=\"\",\"\",'1. Order'!J193)","v":""},{"$f":"IF('1. Order'!K193=\"\",\"\",'1. Order'!K193)","v":""},{"$f":"IF('1. Order'!M193=\"\",\"\",'1. Order'!M193)","v":""},null,null,{"$f":"'1. Order'!AW193","v":0},{"$f":"IF('1. Order'!AE193=\"\",\"\",'1. Order'!AE193)","v":""}]
[{"$f":"IF('1. Order'!B194=\"\",\"\",'1. Order'!B194)","v":""},{"$f":"IF('1. Order'!I194=\"\",\"\",'1. Order'!I194)","v":""},{"$f":"IF('1. Order'!J194=\"\",\"\",'1. Order'!J194)","v":""},{"$f":"IF('1. Order'!K194=\"\",\"\",'1. Order'!K194)","v":""},{"$f":"IF('1. Order'!M194=\"\",\"\",'1. Order'!M194)","v":""},null,null,{"$f":"'1. Order'!AW194","v":0},{"$f":"IF('1. Order'!AE194=\"\",\"\",'1. Order'!AE194)","v":""}]
[{"$f":"IF('1. Order'!B195=\"\",\"\",'1. Order'!B195)","v":""},{"$f":"IF('1. Order'!I195=\"\",\"\",'1. Order'!I195)","v":""},{"$f":"IF('1. Order'!J195=\"\",\"\",'1. Order'!J195)","v":""},{"$f":"IF('1. Order'!K195=\"\",\"\",'1. Order'!K195)","v":""},{"$f":"IF('1. Order'!M195=\"\",\"\",'1. Order'!M195)","v":""},null,null,{"$f":"'1. Order'!AW195","v":0},{"$f":"IF('1. Order'!AE195=\"\",\"\",'1. Order'!AE195)","v":""}]
[{"$f":"IF('1. Order'!B196=\"\",\"\",'1. Order'!B196)","v":""},{"$f":"IF('1. Order'!I196=\"\",\"\",'1. Order'!I196)","v":""},{"$f":"IF('1. Order'!J196=\"\",\"\",'1. Order'!J196)","v":""},{"$f":"IF('1. Order'!K196=\"\",\"\",'1. Order'!K196)","v":""},{"$f":"IF('1. Order'!M196=\"\",\"\",'1. Order'!M196)","v":""},null,null,{"$f":"'1. Order'!AW196","v":0},{"$f":"IF('1. Order'!AE196=\"\",\"\",'1. Order'!AE196)","v":""}]
[{"$f":"IF('1. Order'!B197=\"\",\"\",'1. Order'!B197)","v":""},{"$f":"IF('1. Order'!I197=\"\",\"\",'1. Order'!I197)","v":""},{"$f":"IF('1. Order'!J197=\"\",\"\",'1. Order'!J197)","v":""},{"$f":"IF('1. Order'!K197=\"\",\"\",'1. Order'!K197)","v":""},{"$f":"IF('1. Order'!M197=\"\",\"\",'1. Order'!M197)","v":""},null,null,{"$f":"'1. Order'!AW197","v":0},{"$f":"IF('1. Order'!AE197=\"\",\"\",'1. Order'!AE197)","v":""}]
[{"$f":"IF('1. Order'!B198=\"\",\"\",'1. Order'!B198)","v":""},{"$f":"IF('1. Order'!I198=\"\",\"\",'1. Order'!I198)","v":""},{"$f":"IF('1. Order'!J198=\"\",\"\",'1. Order'!J198)","v":""},{"$f":"IF('1. Order'!K198=\"\",\"\",'1. Order'!K198)","v":""},{"$f":"IF('1. Order'!M198=\"\",\"\",'1. Order'!M198)","v":""},null,null,{"$f":"'1. Order'!AW198","v":0},{"$f":"IF('1. Order'!AE198=\"\",\"\",'1. Order'!AE198)","v":""}]
[{"$f":"IF('1. Order'!B199=\"\",\"\",'1. Order'!B199)","v":""},{"$f":"IF('1. Order'!I199=\"\",\"\",'1. Order'!I199)","v":""},{"$f":"IF('1. Order'!J199=\"\",\"\",'1. Order'!J199)","v":""},{"$f":"IF('1. Order'!K199=\"\",\"\",'1. Order'!K199)","v":""},{"$f":"IF('1. Order'!M199=\"\",\"\",'1. Order'!M199)","v":""},null,null,{"$f":"'1. Order'!AW199","v":0},{"$f":"IF('1. Order'!AE199=\"\",\"\",'1. Order'!AE199)","v":""}]
[{"$f":"IF('1. Order'!B200=\"\",\"\",'1. Order'!B200)","v":""},{"$f":"IF('1. Order'!I200=\"\",\"\",'1. Order'!I200)","v":""},{"$f":"IF('1. Order'!J200=\"\",\"\",'1. Order'!J200)","v":""},{"$f":"IF('1. Order'!K200=\"\",\"\",'1. Order'!K200)","v":""},{"$f":"IF('1. Order'!M200=\"\",\"\",'1. Order'!M200)","v":""},null,null,{"$f":"'1. Order'!AW200","v":0},{"$f":"IF('1. Order'!AE200=\"\",\"\",'1. Order'!AE200)","v":""}]
[{"$f":"IF('1. Order'!B201=\"\",\"\",'1. Order'!B201)","v":""},{"$f":"IF('1. Order'!I201=\"\",\"\",'1. Order'!I201)","v":""},{"$f":"IF('1. Order'!J201=\"\",\"\",'1. Order'!J201)","v":""},{"$f":"IF('1. Order'!K201=\"\",\"\",'1. Order'!K201)","v":""},{"$f":"IF('1. Order'!M201=\"\",\"\",'1. Order'!M201)","v":""},null,null,{"$f":"'1. Order'!AW201","v":0},{"$f":"IF('1. Order'!AE201=\"\",\"\",'1. Order'!AE201)","v":""}]
[{"$f":"IF('1. Order'!B202=\"\",\"\",'1. Order'!B202)","v":""},{"$f":"IF('1. Order'!I202=\"\",\"\",'1. Order'!I202)","v":""},{"$f":"IF('1. Order'!J202=\"\",\"\",'1. Order'!J202)","v":""},{"$f":"IF('1. Order'!K202=\"\",\"\",'1. Order'!K202)","v":""},{"$f":"IF('1. Order'!M202=\"\",\"\",'1. Order'!M202)","v":""},null,null,{"$f":"'1. Order'!AW202","v":0},{"$f":"IF('1. Order'!AE202=\"\",\"\",'1. Order'!AE202)","v":""}]
[{"$f":"IF('1. Order'!B203=\"\",\"\",'1. Order'!B203)","v":""},{"$f":"IF('1. Order'!I203=\"\",\"\",'1. Order'!I203)","v":""},{"$f":"IF('1. Order'!J203=\"\",\"\",'1. Order'!J203)","v":""},{"$f":"IF('1. Order'!K203=\"\",\"\",'1. Order'!K203)","v":""},{"$f":"IF('1. Order'!M203=\"\",\"\",'1. Order'!M203)","v":""},null,null,{"$f":"'1. Order'!AW203","v":0},{"$f":"IF('1. Order'!AE203=\"\",\"\",'1. Order'!AE203)","v":""}]
[{"$f":"IF('1. Order'!B204=\"\",\"\",'1. Order'!B204)","v":""},{"$f":"IF('1. Order'!I204=\"\",\"\",'1. Order'!I204)","v":""},{"$f":"IF('1. Order'!J204=\"\",\"\",'1. Order'!J204)","v":""},{"$f":"IF('1. Order'!K204=\"\",\"\",'1. Order'!K204)","v":""},{"$f":"IF('1. Order'!M204=\"\",\"\",'1. Order'!M204)","v":""},null,null,{"$f":"'1. Order'!AW204","v":0},{"$f":"IF('1. Order'!AE204=\"\",\"\",'1. Order'!AE204)","v":""}]
[{"$f":"IF('1. Order'!B205=\"\",\"\",'1. Order'!B205)","v":""},{"$f":"IF('1. Order'!I205=\"\",\"\",'1. Order'!I205)","v":""},{"$f":"IF('1. Order'!J205=\"\",\"\",'1. Order'!J205)","v":""},{"$f":"IF('1. Order'!K205=\"\",\"\",'1. Order'!K205)","v":""},{"$f":"IF('1. Order'!M205=\"\",\"\",'1. Order'!M205)","v":""},null,null,{"$f":"'1. Order'!AW205","v":0},{"$f":"IF('1. Order'!AE205=\"\",\"\",'1. Order'!AE205)","v":""}]
[{"$f":"IF('1. Order'!B206=\"\",\"\",'1. Order'!B206)","v":""},{"$f":"IF('1. Order'!I206=\"\",\"\",'1. Order'!I206)","v":""},{"$f":"IF('1. Order'!J206=\"\",\"\",'1. Order'!J206)","v":""},{"$f":"IF('1. Order'!K206=\"\",\"\",'1. Order'!K206)","v":""},{"$f":"IF('1. Order'!M206=\"\",\"\",'1. Order'!M206)","v":""},null,null,{"$f":"'1. Order'!AW206","v":0},{"$f":"IF('1. Order'!AE206=\"\",\"\",'1. Order'!AE206)","v":""}]
[{"$f":"IF('1. Order'!B207=\"\",\"\",'1. Order'!B207)","v":""},{"$f":"IF('1. Order'!I207=\"\",\"\",'1. Order'!I207)","v":""},{"$f":"IF('1. Order'!J207=\"\",\"\",'1. Order'!J207)","v":""},{"$f":"IF('1. Order'!K207=\"\",\"\",'1. Order'!K207)","v":""},{"$f":"IF('1. Order'!M207=\"\",\"\",'1. Order'!M207)","v":""},null,null,{"$f":"'1. Order'!AW207","v":0},{"$f":"IF('1. Order'!AE207=\"\",\"\",'1. Order'!AE207)","v":""}]
[{"$f":"IF('1. Order'!B208=\"\",\"\",'1. Order'!B208)","v":""},{"$f":"IF('1. Order'!I208=\"\",\"\",'1. Order'!I208)","v":""},{"$f":"IF('1. Order'!J208=\"\",\"\",'1. Order'!J208)","v":""},{"$f":"IF('1. Order'!K208=\"\",\"\",'1. Order'!K208)","v":""},{"$f":"IF('1. Order'!M208=\"\",\"\",'1. Order'!M208)","v":""},null,null,{"$f":"'1. Order'!AW208","v":0},{"$f":"IF('1. Order'!AE208=\"\",\"\",'1. Order'!AE208)","v":""}]
[{"$f":"IF('1. Order'!B209=\"\",\"\",'1. Order'!B209)","v":""},{"$f":"IF('1. Order'!I209=\"\",\"\",'1. Order'!I209)","v":""},{"$f":"IF('1. Order'!J209=\"\",\"\",'1. Order'!J209)","v":""},{"$f":"IF('1. Order'!K209=\"\",\"\",'1. Order'!K209)","v":""},{"$f":"IF('1. Order'!M209=\"\",\"\",'1. Order'!M209)","v":""},null,null,{"$f":"'1. Order'!AW209","v":0},{"$f":"IF('1. Order'!AE209=\"\",\"\",'1. Order'!AE209)","v":""}]
[{"$f":"IF('1. Order'!B210=\"\",\"\",'1. Order'!B210)","v":""},{"$f":"IF('1. Order'!I210=\"\",\"\",'1. Order'!I210)","v":""},{"$f":"IF('1. Order'!J210=\"\",\"\",'1. Order'!J210)","v":""},{"$f":"IF('1. Order'!K210=\"\",\"\",'1. Order'!K210)","v":""},{"$f":"IF('1. Order'!M210=\"\",\"\",'1. Order'!M210)","v":""},null,null,{"$f":"'1. Order'!AW210","v":0},{"$f":"IF('1. Order'!AE210=\"\",\"\",'1. Order'!AE210)","v":""}]
[{"$f":"IF('1. Order'!B211=\"\",\"\",'1. Order'!B211)","v":""},{"$f":"IF('1. Order'!I211=\"\",\"\",'1. Order'!I211)","v":""},{"$f":"IF('1. Order'!J211=\"\",\"\",'1. Order'!J211)","v":""},{"$f":"IF('1. Order'!K211=\"\",\"\",'1. Order'!K211)","v":""},{"$f":"IF('1. Order'!M211=\"\",\"\",'1. Order'!M211)","v":""},null,null,{"$f":"'1. Order'!AW211","v":0},{"$f":"IF('1. Order'!AE211=\"\",\"\",'1. Order'!AE211)","v":""}]
[{"$f":"IF('1. Order'!B212=\"\",\"\",'1. Order'!B212)","v":""},{"$f":"IF('1. Order'!I212=\"\",\"\",'1. Order'!I212)","v":""},{"$f":"IF('1. Order'!J212=\"\",\"\",'1. Order'!J212)","v":""},{"$f":"IF('1. Order'!K212=\"\",\"\",'1. Order'!K212)","v":""},{"$f":"IF('1. Order'!M212=\"\",\"\",'1. Order'!M212)","v":""},null,null,{"$f":"'1. Order'!AW212","v":0},{"$f":"IF('1. Order'!AE212=\"\",\"\",'1. Order'!AE212)","v":""}]
[{"$f":"IF('1. Order'!B213=\"\",\"\",'1. Order'!B213)","v":""},{"$f":"IF('1. Order'!I213=\"\",\"\",'1. Order'!I213)","v":""},{"$f":"IF('1. Order'!J213=\"\",\"\",'1. Order'!J213)","v":""},{"$f":"IF('1. Order'!K213=\"\",\"\",'1. Order'!K213)","v":""},{"$f":"IF('1. Order'!M213=\"\",\"\",'1. Order'!M213)","v":""},null,null,{"$f":"'1. Order'!AW213","v":0},{"$f":"IF('1. Order'!AE213=\"\",\"\",'1. Order'!AE213)","v":""}]
[{"$f":"IF('1. Order'!B214=\"\",\"\",'1. Order'!B214)","v":""},{"$f":"IF('1. Order'!I214=\"\",\"\",'1. Order'!I214)","v":""},{"$f":"IF('1. Order'!J214=\"\",\"\",'1. Order'!J214)","v":""},{"$f":"IF('1. Order'!K214=\"\",\"\",'1. Order'!K214)","v":""},{"$f":"IF('1. Order'!M214=\"\",\"\",'1. Order'!M214)","v":""},null,null,{"$f":"'1. Order'!AW214","v":0},{"$f":"IF('1. Order'!AE214=\"\",\"\",'1. Order'!AE214)","v":""}]
[{"$f":"IF('1. Order'!B215=\"\",\"\",'1. Order'!B215)","v":""},{"$f":"IF('1. Order'!I215=\"\",\"\",'1. Order'!I215)","v":""},{"$f":"IF('1. Order'!J215=\"\",\"\",'1. Order'!J215)","v":""},{"$f":"IF('1. Order'!K215=\"\",\"\",'1. Order'!K215)","v":""},{"$f":"IF('1. Order'!M215=\"\",\"\",'1. Order'!M215)","v":""},null,null,{"$f":"'1. Order'!AW215","v":0},{"$f":"IF('1. Order'!AE215=\"\",\"\",'1. Order'!AE215)","v":""}]
[{"$f":"IF('1. Order'!B216=\"\",\"\",'1. Order'!B216)","v":""},{"$f":"IF('1. Order'!I216=\"\",\"\",'1. Order'!I216)","v":""},{"$f":"IF('1. Order'!J216=\"\",\"\",'1. Order'!J216)","v":""},{"$f":"IF('1. Order'!K216=\"\",\"\",'1. Order'!K216)","v":""},{"$f":"IF('1. Order'!M216=\"\",\"\",'1. Order'!M216)","v":""},null,null,{"$f":"'1. Order'!AW216","v":0},{"$f":"IF('1. Order'!AE216=\"\",\"\",'1. Order'!AE216)","v":""}]
[{"$f":"IF('1. Order'!B217=\"\",\"\",'1. Order'!B217)","v":""},{"$f":"IF('1. Order'!I217=\"\",\"\",'1. Order'!I217)","v":""},{"$f":"IF('1. Order'!J217=\"\",\"\",'1. Order'!J217)","v":""},{"$f":"IF('1. Order'!K217=\"\",\"\",'1. Order'!K217)","v":""},{"$f":"IF('1. Order'!M217=\"\",\"\",'1. Order'!M217)","v":""},null,null,{"$f":"'1. Order'!AW217","v":0},{"$f":"IF('1. Order'!AE217=\"\",\"\",'1. Order'!AE217)","v":""}]
[{"$f":"IF('1. Order'!B218=\"\",\"\",'1. Order'!B218)","v":""},{"$f":"IF('1. Order'!I218=\"\",\"\",'1. Order'!I218)","v":""},{"$f":"IF('1. Order'!J218=\"\",\"\",'1. Order'!J218)","v":""},{"$f":"IF('1. Order'!K218=\"\",\"\",'1. Order'!K218)","v":""},{"$f":"IF('1. Order'!M218=\"\",\"\",'1. Order'!M218)","v":""},null,null,{"$f":"'1. Order'!AW218","v":0},{"$f":"IF('1. Order'!AE218=\"\",\"\",'1. Order'!AE218)","v":""}]
[{"$f":"IF('1. Order'!B219=\"\",\"\",'1. Order'!B219)","v":""},{"$f":"IF('1. Order'!I219=\"\",\"\",'1. Order'!I219)","v":""},{"$f":"IF('1. Order'!J219=\"\",\"\",'1. Order'!J219)","v":""},{"$f":"IF('1. Order'!K219=\"\",\"\",'1. Order'!K219)","v":""},{"$f":"IF('1. Order'!M219=\"\",\"\",'1. Order'!M219)","v":""},null,null,{"$f":"'1. Order'!AW219","v":0},{"$f":"IF('1. Order'!AE219=\"\",\"\",'1. Order'!AE219)","v":""}]
[{"$f":"IF('1. Order'!B220=\"\",\"\",'1. Order'!B220)","v":""},{"$f":"IF('1. Order'!I220=\"\",\"\",'1. Order'!I220)","v":""},{"$f":"IF('1. Order'!J220=\"\",\"\",'1. Order'!J220)","v":""},{"$f":"IF('1. Order'!K220=\"\",\"\",'1. Order'!K220)","v":""},{"$f":"IF('1. Order'!M220=\"\",\"\",'1. Order'!M220)","v":""},null,null,{"$f":"'1. Order'!AW220","v":0},{"$f":"IF('1. Order'!AE220=\"\",\"\",'1. Order'!AE220)","v":""}]
[{"$f":"IF('1. Order'!B221=\"\",\"\",'1. Order'!B221)","v":""},{"$f":"IF('1. Order'!I221=\"\",\"\",'1. Order'!I221)","v":""},{"$f":"IF('1. Order'!J221=\"\",\"\",'1. Order'!J221)","v":""},{"$f":"IF('1. Order'!K221=\"\",\"\",'1. Order'!K221)","v":""},{"$f":"IF('1. Order'!M221=\"\",\"\",'1. Order'!M221)","v":""},null,null,{"$f":"'1. Order'!AW221","v":0},{"$f":"IF('1. Order'!AE221=\"\",\"\",'1. Order'!AE221)","v":""}]
[{"$f":"IF('1. Order'!B222=\"\",\"\",'1. Order'!B222)","v":""},{"$f":"IF('1. Order'!I222=\"\",\"\",'1. Order'!I222)","v":""},{"$f":"IF('1. Order'!J222=\"\",\"\",'1. Order'!J222)","v":""},{"$f":"IF('1. Order'!K222=\"\",\"\",'1. Order'!K222)","v":""},{"$f":"IF('1. Order'!M222=\"\",\"\",'1. Order'!M222)","v":""},null,null,{"$f":"'1. Order'!AW222","v":0},{"$f":"IF('1. Order'!AE222=\"\",\"\",'1. Order'!AE222)","v":""}]
[{"$f":"IF('1. Order'!B223=\"\",\"\",'1. Order'!B223)","v":""},{"$f":"IF('1. Order'!I223=\"\",\"\",'1. Order'!I223)","v":""},{"$f":"IF('1. Order'!J223=\"\",\"\",'1. Order'!J223)","v":""},{"$f":"IF('1. Order'!K223=\"\",\"\",'1. Order'!K223)","v":""},{"$f":"IF('1. Order'!M223=\"\",\"\",'1. Order'!M223)","v":""},null,null,{"$f":"'1. Order'!AW223","v":0},{"$f":"IF('1. Order'!AE223=\"\",\"\",'1. Order'!AE223)","v":""}]
[{"$f":"IF('1. Order'!B224=\"\",\"\",'1. Order'!B224)","v":""},{"$f":"IF('1. Order'!I224=\"\",\"\",'1. Order'!I224)","v":""},{"$f":"IF('1. Order'!J224=\"\",\"\",'1. Order'!J224)","v":""},{"$f":"IF('1. Order'!K224=\"\",\"\",'1. Order'!K224)","v":""},{"$f":"IF('1. Order'!M224=\"\",\"\",'1. Order'!M224)","v":""},null,null,{"$f":"'1. Order'!AW224","v":0},{"$f":"IF('1. Order'!AE224=\"\",\"\",'1. Order'!AE224)","v":""}]
[{"$f":"IF('1. Order'!B225=\"\",\"\",'1. Order'!B225)","v":""},{"$f":"IF('1. Order'!I225=\"\",\"\",'1. Order'!I225)","v":""},{"$f":"IF('1. Order'!J225=\"\",\"\",'1. Order'!J225)","v":""},{"$f":"IF('1. Order'!K225=\"\",\"\",'1. Order'!K225)","v":""},{"$f":"IF('1. Order'!M225=\"\",\"\",'1. Order'!M225)","v":""},null,null,{"$f":"'1. Order'!AW225","v":0},{"$f":"IF('1. Order'!AE225=\"\",\"\",'1. Order'!AE225)","v":""}]
[{"$f":"IF('1. Order'!B226=\"\",\"\",'1. Order'!B226)","v":""},{"$f":"IF('1. Order'!I226=\"\",\"\",'1. Order'!I226)","v":""},{"$f":"IF('1. Order'!J226=\"\",\"\",'1. Order'!J226)","v":""},{"$f":"IF('1. Order'!K226=\"\",\"\",'1. Order'!K226)","v":""},{"$f":"IF('1. Order'!M226=\"\",\"\",'1. Order'!M226)","v":""},null,null,{"$f":"'1. Order'!AW226","v":0},{"$f":"IF('1. Order'!AE226=\"\",\"\",'1. Order'!AE226)","v":""}]
[{"$f":"IF('1. Order'!B227=\"\",\"\",'1. Order'!B227)","v":""},{"$f":"IF('1. Order'!I227=\"\",\"\",'1. Order'!I227)","v":""},{"$f":"IF('1. Order'!J227=\"\",\"\",'1. Order'!J227)","v":""},{"$f":"IF('1. Order'!K227=\"\",\"\",'1. Order'!K227)","v":""},{"$f":"IF('1. Order'!M227=\"\",\"\",'1. Order'!M227)","v":""},null,null,{"$f":"'1. Order'!AW227","v":0},{"$f":"IF('1. Order'!AE227=\"\",\"\",'1. Order'!AE227)","v":""}]
[{"$f":"IF('1. Order'!B228=\"\",\"\",'1. Order'!B228)","v":""},{"$f":"IF('1. Order'!I228=\"\",\"\",'1. Order'!I228)","v":""},{"$f":"IF('1. Order'!J228=\"\",\"\",'1. Order'!J228)","v":""},{"$f":"IF('1. Order'!K228=\"\",\"\",'1. Order'!K228)","v":""},{"$f":"IF('1. Order'!M228=\"\",\"\",'1. Order'!M228)","v":""},null,null,{"$f":"'1. Order'!AW228","v":0},{"$f":"IF('1. Order'!AE228=\"\",\"\",'1. Order'!AE228)","v":""}]
[{"$f":"IF('1. Order'!B229=\"\",\"\",'1. Order'!B229)","v":""},{"$f":"IF('1. Order'!I229=\"\",\"\",'1. Order'!I229)","v":""},{"$f":"IF('1. Order'!J229=\"\",\"\",'1. Order'!J229)","v":""},{"$f":"IF('1. Order'!K229=\"\",\"\",'1. Order'!K229)","v":""},{"$f":"IF('1. Order'!M229=\"\",\"\",'1. Order'!M229)","v":""},null,null,{"$f":"'1. Order'!AW229","v":0},{"$f":"IF('1. Order'!AE229=\"\",\"\",'1. Order'!AE229)","v":""}]
[{"$f":"IF('1. Order'!B230=\"\",\"\",'1. Order'!B230)","v":""},{"$f":"IF('1. Order'!I230=\"\",\"\",'1. Order'!I230)","v":""},{"$f":"IF('1. Order'!J230=\"\",\"\",'1. Order'!J230)","v":""},{"$f":"IF('1. Order'!K230=\"\",\"\",'1. Order'!K230)","v":""},{"$f":"IF('1. Order'!M230=\"\",\"\",'1. Order'!M230)","v":""},null,null,{"$f":"'1. Order'!AW230","v":0},{"$f":"IF('1. Order'!AE230=\"\",\"\",'1. Order'!AE230)","v":""}]
[{"$f":"IF('1. Order'!B231=\"\",\"\",'1. Order'!B231)","v":""},{"$f":"IF('1. Order'!I231=\"\",\"\",'1. Order'!I231)","v":""},{"$f":"IF('1. Order'!J231=\"\",\"\",'1. Order'!J231)","v":""},{"$f":"IF('1. Order'!K231=\"\",\"\",'1. Order'!K231)","v":""},{"$f":"IF('1. Order'!M231=\"\",\"\",'1. Order'!M231)","v":""},null,null,{"$f":"'1. Order'!AW231","v":0},{"$f":"IF('1. Order'!AE231=\"\",\"\",'1. Order'!AE231)","v":""}]
[{"$f":"IF('1. Order'!B232=\"\",\"\",'1. Order'!B232)","v":""},{"$f":"IF('1. Order'!I232=\"\",\"\",'1. Order'!I232)","v":""},{"$f":"IF('1. Order'!J232=\"\",\"\",'1. Order'!J232)","v":""},{"$f":"IF('1. Order'!K232=\"\",\"\",'1. Order'!K232)","v":""},{"$f":"IF('1. Order'!M232=\"\",\"\",'1. Order'!M232)","v":""},null,null,{"$f":"'1. Order'!AW232","v":0},{"$f":"IF('1. Order'!AE232=\"\",\"\",'1. Order'!AE232)","v":""}]
[{"$f":"IF('1. Order'!B233=\"\",\"\",'1. Order'!B233)","v":""},{"$f":"IF('1. Order'!I233=\"\",\"\",'1. Order'!I233)","v":""},{"$f":"IF('1. Order'!J233=\"\",\"\",'1. Order'!J233)","v":""},{"$f":"IF('1. Order'!K233=\"\",\"\",'1. Order'!K233)","v":""},{"$f":"IF('1. Order'!M233=\"\",\"\",'1. Order'!M233)","v":""},null,null,{"$f":"'1. Order'!AW233","v":0},{"$f":"IF('1. Order'!AE233=\"\",\"\",'1. Order'!AE233)","v":""}]
[{"$f":"IF('1. Order'!B234=\"\",\"\",'1. Order'!B234)","v":""},{"$f":"IF('1. Order'!I234=\"\",\"\",'1. Order'!I234)","v":""},{"$f":"IF('1. Order'!J234=\"\",\"\",'1. Order'!J234)","v":""},{"$f":"IF('1. Order'!K234=\"\",\"\",'1. Order'!K234)","v":""},{"$f":"IF('1. Order'!M234=\"\",\"\",'1. Order'!M234)","v":""},null,null,{"$f":"'1. Order'!AW234","v":0},{"$f":"IF('1. Order'!AE234=\"\",\"\",'1. Order'!AE234)","v":""}]
[{"$f":"IF('1. Order'!B235=\"\",\"\",'1. Order'!B235)","v":""},{"$f":"IF('1. Order'!I235=\"\",\"\",'1. Order'!I235)","v":""},{"$f":"IF('1. Order'!J235=\"\",\"\",'1. Order'!J235)","v":""},{"$f":"IF('1. Order'!K235=\"\",\"\",'1. Order'!K235)","v":""},{"$f":"IF('1. Order'!M235=\"\",\"\",'1. Order'!M235)","v":""},null,null,{"$f":"'1. Order'!AW235","v":0},{"$f":"IF('1. Order'!AE235=\"\",\"\",'1. Order'!AE235)","v":""}]
[{"$f":"IF('1. Order'!B236=\"\",\"\",'1. Order'!B236)","v":""},{"$f":"IF('1. Order'!I236=\"\",\"\",'1. Order'!I236)","v":""},{"$f":"IF('1. Order'!J236=\"\",\"\",'1. Order'!J236)","v":""},{"$f":"IF('1. Order'!K236=\"\",\"\",'1. Order'!K236)","v":""},{"$f":"IF('1. Order'!M236=\"\",\"\",'1. Order'!M236)","v":""},null,null,{"$f":"'1. Order'!AW236","v":0},{"$f":"IF('1. Order'!AE236=\"\",\"\",'1. Order'!AE236)","v":""}]
[{"$f":"IF('1. Order'!B237=\"\",\"\",'1. Order'!B237)","v":""},{"$f":"IF('1. Order'!I237=\"\",\"\",'1. Order'!I237)","v":""},{"$f":"IF('1. Order'!J237=\"\",\"\",'1. Order'!J237)","v":""},{"$f":"IF('1. Order'!K237=\"\",\"\",'1. Order'!K237)","v":""},{"$f":"IF('1. Order'!M237=\"\",\"\",'1. Order'!M237)","v":""},null,null,{"$f":"'1. Order'!AW237","v":0},{"$f":"IF('1. Order'!AE237=\"\",\"\",'1. Order'!AE237)","v":""}]
[{"$f":"IF('1. Order'!B238=\"\",\"\",'1. Order'!B238)","v":""},{"$f":"IF('1. Order'!I238=\"\",\"\",'1. Order'!I238)","v":""},{"$f":"IF('1. Order'!J238=\"\",\"\",'1. Order'!J238)","v":""},{"$f":"IF('1. Order'!K238=\"\",\"\",'1. Order'!K238)","v":""},{"$f":"IF('1. Order'!M238=\"\",\"\",'1. Order'!M238)","v":""},null,null,{"$f":"'1. Order'!AW238","v":0},{"$f":"IF('1. Order'!AE238=\"\",\"\",'1. Order'!AE238)","v":""}]
[{"$f":"IF('1. Order'!B239=\"\",\"\",'1. Order'!B239)","v":""},{"$f":"IF('1. Order'!I239=\"\",\"\",'1. Order'!I239)","v":""},{"$f":"IF('1. Order'!J239=\"\",\"\",'1. Order'!J239)","v":""},{"$f":"IF('1. Order'!K239=\"\",\"\",'1. Order'!K239)","v":""},{"$f":"IF('1. Order'!M239=\"\",\"\",'1. Order'!M239)","v":""},null,null,{"$f":"'1. Order'!AW239","v":0},{"$f":"IF('1. Order'!AE239=\"\",\"\",'1. Order'!AE239)","v":""}]
[{"$f":"IF('1. Order'!B240=\"\",\"\",'1. Order'!B240)","v":""},{"$f":"IF('1. Order'!I240=\"\",\"\",'1. Order'!I240)","v":""},{"$f":"IF('1. Order'!J240=\"\",\"\",'1. Order'!J240)","v":""},{"$f":"IF('1. Order'!K240=\"\",\"\",'1. Order'!K240)","v":""},{"$f":"IF('1. Order'!M240=\"\",\"\",'1. Order'!M240)","v":""},null,null,{"$f":"'1. Order'!AW240","v":0},{"$f":"IF('1. Order'!AE240=\"\",\"\",'1. Order'!AE240)","v":""}]
[{"$f":"IF('1. Order'!B241=\"\",\"\",'1. Order'!B241)","v":""},{"$f":"IF('1. Order'!I241=\"\",\"\",'1. Order'!I241)","v":""},{"$f":"IF('1. Order'!J241=\"\",\"\",'1. Order'!J241)","v":""},{"$f":"IF('1. Order'!K241=\"\",\"\",'1. Order'!K241)","v":""},{"$f":"IF('1. Order'!M241=\"\",\"\",'1. Order'!M241)","v":""},null,null,{"$f":"'1. Order'!AW241","v":0},{"$f":"IF('1. Order'!AE241=\"\",\"\",'1. Order'!AE241)","v":""}]
[{"$f":"IF('1. Order'!B242=\"\",\"\",'1. Order'!B242)","v":""},{"$f":"IF('1. Order'!I242=\"\",\"\",'1. Order'!I242)","v":""},{"$f":"IF('1. Order'!J242=\"\",\"\",'1. Order'!J242)","v":""},{"$f":"IF('1. Order'!K242=\"\",\"\",'1. Order'!K242)","v":""},{"$f":"IF('1. Order'!M242=\"\",\"\",'1. Order'!M242)","v":""},null,null,{"$f":"'1. Order'!AW242","v":0},{"$f":"IF('1. Order'!AE242=\"\",\"\",'1. Order'!AE242)","v":""}]
[{"$f":"IF('1. Order'!B243=\"\",\"\",'1. Order'!B243)","v":""},{"$f":"IF('1. Order'!I243=\"\",\"\",'1. Order'!I243)","v":""},{"$f":"IF('1. Order'!J243=\"\",\"\",'1. Order'!J243)","v":""},{"$f":"IF('1. Order'!K243=\"\",\"\",'1. Order'!K243)","v":""},{"$f":"IF('1. Order'!M243=\"\",\"\",'1. Order'!M243)","v":""},null,null,{"$f":"'1. Order'!AW243","v":0},{"$f":"IF('1. Order'!AE243=\"\",\"\",'1. Order'!AE243)","v":""}]
[{"$f":"IF('1. Order'!B244=\"\",\"\",'1. Order'!B244)","v":""},{"$f":"IF('1. Order'!I244=\"\",\"\",'1. Order'!I244)","v":""},{"$f":"IF('1. Order'!J244=\"\",\"\",'1. Order'!J244)","v":""},{"$f":"IF('1. Order'!K244=\"\",\"\",'1. Order'!K244)","v":""},{"$f":"IF('1. Order'!M244=\"\",\"\",'1. Order'!M244)","v":""},null,null,{"$f":"'1. Order'!AW244","v":0},{"$f":"IF('1. Order'!AE244=\"\",\"\",'1. Order'!AE244)","v":""}]
[{"$f":"IF('1. Order'!B245=\"\",\"\",'1. Order'!B245)","v":""},{"$f":"IF('1. Order'!I245=\"\",\"\",'1. Order'!I245)","v":""},{"$f":"IF('1. Order'!J245=\"\",\"\",'1. Order'!J245)","v":""},{"$f":"IF('1. Order'!K245=\"\",\"\",'1. Order'!K245)","v":""},{"$f":"IF('1. Order'!M245=\"\",\"\",'1. Order'!M245)","v":""},null,null,{"$f":"'1. Order'!AW245","v":0},{"$f":"IF('1. Order'!AE245=\"\",\"\",'1. Order'!AE245)","v":""}]
[{"$f":"IF('1. Order'!B246=\"\",\"\",'1. Order'!B246)","v":""},{"$f":"IF('1. Order'!I246=\"\",\"\",'1. Order'!I246)","v":""},{"$f":"IF('1. Order'!J246=\"\",\"\",'1. Order'!J246)","v":""},{"$f":"IF('1. Order'!K246=\"\",\"\",'1. Order'!K246)","v":""},{"$f":"IF('1. Order'!M246=\"\",\"\",'1. Order'!M246)","v":""},null,null,{"$f":"'1. Order'!AW246","v":0},{"$f":"IF('1. Order'!AE246=\"\",\"\",'1. Order'!AE246)","v":""}]
[{"$f":"IF('1. Order'!B247=\"\",\"\",'1. Order'!B247)","v":""},{"$f":"IF('1. Order'!I247=\"\",\"\",'1. Order'!I247)","v":""},{"$f":"IF('1. Order'!J247=\"\",\"\",'1. Order'!J247)","v":""},{"$f":"IF('1. Order'!K247=\"\",\"\",'1. Order'!K247)","v":""},{"$f":"IF('1. Order'!M247=\"\",\"\",'1. Order'!M247)","v":""},null,null,{"$f":"'1. Order'!AW247","v":0},{"$f":"IF('1. Order'!AE247=\"\",\"\",'1. Order'!AE247)","v":""}]
[{"$f":"IF('1. Order'!B248=\"\",\"\",'1. Order'!B248)","v":""},{"$f":"IF('1. Order'!I248=\"\",\"\",'1. Order'!I248)","v":""},{"$f":"IF('1. Order'!J248=\"\",\"\",'1. Order'!J248)","v":""},{"$f":"IF('1. Order'!K248=\"\",\"\",'1. Order'!K248)","v":""},{"$f":"IF('1. Order'!M248=\"\",\"\",'1. Order'!M248)","v":""},null,null,{"$f":"'1. Order'!AW248","v":0},{"$f":"IF('1. Order'!AE248=\"\",\"\",'1. Order'!AE248)","v":""}]
[{"$f":"IF('1. Order'!B249=\"\",\"\",'1. Order'!B249)","v":""},{"$f":"IF('1. Order'!I249=\"\",\"\",'1. Order'!I249)","v":""},{"$f":"IF('1. Order'!J249=\"\",\"\",'1. Order'!J249)","v":""},{"$f":"IF('1. Order'!K249=\"\",\"\",'1. Order'!K249)","v":""},{"$f":"IF('1. Order'!M249=\"\",\"\",'1. Order'!M249)","v":""},null,null,{"$f":"'1. Order'!AW249","v":0},{"$f":"IF('1. Order'!AE249=\"\",\"\",'1. Order'!AE249)","v":""}]
[{"$f":"IF('1. Order'!B250=\"\",\"\",'1. Order'!B250)","v":""},{"$f":"IF('1. Order'!I250=\"\",\"\",'1. Order'!I250)","v":""},{"$f":"IF('1. Order'!J250=\"\",\"\",'1. Order'!J250)","v":""},{"$f":"IF('1. Order'!K250=\"\",\"\",'1. Order'!K250)","v":""},{"$f":"IF('1. Order'!M250=\"\",\"\",'1. Order'!M250)","v":""},null,null,{"$f":"'1. Order'!AW250","v":0},{"$f":"IF('1. Order'!AE250=\"\",\"\",'1. Order'!AE250)","v":""}]
[{"$f":"IF('1. Order'!B251=\"\",\"\",'1. Order'!B251)","v":""},{"$f":"IF('1. Order'!I251=\"\",\"\",'1. Order'!I251)","v":""},{"$f":"IF('1. Order'!J251=\"\",\"\",'1. Order'!J251)","v":""},{"$f":"IF('1. Order'!K251=\"\",\"\",'1. Order'!K251)","v":""},{"$f":"IF('1. Order'!M251=\"\",\"\",'1. Order'!M251)","v":""},null,null,{"$f":"'1. Order'!AW251","v":0},{"$f":"IF('1. Order'!AE251=\"\",\"\",'1. Order'!AE251)","v":""}]
[{"$f":"IF('1. Order'!B252=\"\",\"\",'1. Order'!B252)","v":""},{"$f":"IF('1. Order'!I252=\"\",\"\",'1. Order'!I252)","v":""},{"$f":"IF('1. Order'!J252=\"\",\"\",'1. Order'!J252)","v":""},{"$f":"IF('1. Order'!K252=\"\",\"\",'1. Order'!K252)","v":""},{"$f":"IF('1. Order'!M252=\"\",\"\",'1. Order'!M252)","v":""},null,null,{"$f":"'1. Order'!AW252","v":0},{"$f":"IF('1. Order'!AE252=\"\",\"\",'1. Order'!AE252)","v":""}]
[{"$f":"IF('1. Order'!B253=\"\",\"\",'1. Order'!B253)","v":""},{"$f":"IF('1. Order'!I253=\"\",\"\",'1. Order'!I253)","v":""},{"$f":"IF('1. Order'!J253=\"\",\"\",'1. Order'!J253)","v":""},{"$f":"IF('1. Order'!K253=\"\",\"\",'1. Order'!K253)","v":""},{"$f":"IF('1. Order'!M253=\"\",\"\",'1. Order'!M253)","v":""},null,null,{"$f":"'1. Order'!AW253","v":0},{"$f":"IF('1. Order'!AE253=\"\",\"\",'1. Order'!AE253)","v":""}]
[{"$f":"IF('1. Order'!B254=\"\",\"\",'1. Order'!B254)","v":""},{"$f":"IF('1. Order'!I254=\"\",\"\",'1. Order'!I254)","v":""},{"$f":"IF('1. Order'!J254=\"\",\"\",'1. Order'!J254)","v":""},{"$f":"IF('1. Order'!K254=\"\",\"\",'1. Order'!K254)","v":""},{"$f":"IF('1. Order'!M254=\"\",\"\",'1. Order'!M254)","v":""},null,null,{"$f":"'1. Order'!AW254","v":0},{"$f":"IF('1. Order'!AE254=\"\",\"\",'1. Order'!AE254)","v":""}]
[{"$f":"IF('1. Order'!B255=\"\",\"\",'1. Order'!B255)","v":""},{"$f":"IF('1. Order'!I255=\"\",\"\",'1. Order'!I255)","v":""},{"$f":"IF('1. Order'!J255=\"\",\"\",'1. Order'!J255)","v":""},{"$f":"IF('1. Order'!K255=\"\",\"\",'1. Order'!K255)","v":""},{"$f":"IF('1. Order'!M255=\"\",\"\",'1. Order'!M255)","v":""},null,null,{"$f":"'1. Order'!AW255","v":0},{"$f":"IF('1. Order'!AE255=\"\",\"\",'1. Order'!AE255)","v":""}]
[{"$f":"IF('1. Order'!B256=\"\",\"\",'1. Order'!B256)","v":""},{"$f":"IF('1. Order'!I256=\"\",\"\",'1. Order'!I256)","v":""},{"$f":"IF('1. Order'!J256=\"\",\"\",'1. Order'!J256)","v":""},{"$f":"IF('1. Order'!K256=\"\",\"\",'1. Order'!K256)","v":""},{"$f":"IF('1. Order'!M256=\"\",\"\",'1. Order'!M256)","v":""},null,null,{"$f":"'1. Order'!AW256","v":0},{"$f":"IF('1. Order'!AE256=\"\",\"\",'1. Order'!AE256)","v":""}]
[{"$f":"IF('1. Order'!B257=\"\",\"\",'1. Order'!B257)","v":""},{"$f":"IF('1. Order'!I257=\"\",\"\",'1. Order'!I257)","v":""},{"$f":"IF('1. Order'!J257=\"\",\"\",'1. Order'!J257)","v":""},{"$f":"IF('1. Order'!K257=\"\",\"\",'1. Order'!K257)","v":""},{"$f":"IF('1. Order'!M257=\"\",\"\",'1. Order'!M257)","v":""},null,null,{"$f":"'1. Order'!AW257","v":0},{"$f":"IF('1. Order'!AE257=\"\",\"\",'1. Order'!AE257)","v":""}]
[{"$f":"IF('1. Order'!B258=\"\",\"\",'1. Order'!B258)","v":""},{"$f":"IF('1. Order'!I258=\"\",\"\",'1. Order'!I258)","v":""},{"$f":"IF('1. Order'!J258=\"\",\"\",'1. Order'!J258)","v":""},{"$f":"IF('1. Order'!K258=\"\",\"\",'1. Order'!K258)","v":""},{"$f":"IF('1. Order'!M258=\"\",\"\",'1. Order'!M258)","v":""},null,null,{"$f":"'1. Order'!AW258","v":0},{"$f":"IF('1. Order'!AE258=\"\",\"\",'1. Order'!AE258)","v":""}]
[{"$f":"IF('1. Order'!B259=\"\",\"\",'1. Order'!B259)","v":""},{"$f":"IF('1. Order'!I259=\"\",\"\",'1. Order'!I259)","v":""},{"$f":"IF('1. Order'!J259=\"\",\"\",'1. Order'!J259)","v":""},{"$f":"IF('1. Order'!K259=\"\",\"\",'1. Order'!K259)","v":""},{"$f":"IF('1. Order'!M259=\"\",\"\",'1. Order'!M259)","v":""},null,null,{"$f":"'1. Order'!AW259","v":0},{"$f":"IF('1. Order'!AE259=\"\",\"\",'1. Order'!AE259)","v":""}]
[{"$f":"IF('1. Order'!B260=\"\",\"\",'1. Order'!B260)","v":""},{"$f":"IF('1. Order'!I260=\"\",\"\",'1. Order'!I260)","v":""},{"$f":"IF('1. Order'!J260=\"\",\"\",'1. Order'!J260)","v":""},{"$f":"IF('1. Order'!K260=\"\",\"\",'1. Order'!K260)","v":""},{"$f":"IF('1. Order'!M260=\"\",\"\",'1. Order'!M260)","v":""},null,null,{"$f":"'1. Order'!AW260","v":0},{"$f":"IF('1. Order'!AE260=\"\",\"\",'1. Order'!AE260)","v":""}]
[{"$f":"IF('1. Order'!B261=\"\",\"\",'1. Order'!B261)","v":""},{"$f":"IF('1. Order'!I261=\"\",\"\",'1. Order'!I261)","v":""},{"$f":"IF('1. Order'!J261=\"\",\"\",'1. Order'!J261)","v":""},{"$f":"IF('1. Order'!K261=\"\",\"\",'1. Order'!K261)","v":""},{"$f":"IF('1. Order'!M261=\"\",\"\",'1. Order'!M261)","v":""},null,null,{"$f":"'1. Order'!AW261","v":0},{"$f":"IF('1. Order'!AE261=\"\",\"\",'1. Order'!AE261)","v":""}]
[{"$f":"IF('1. Order'!B262=\"\",\"\",'1. Order'!B262)","v":""},{"$f":"IF('1. Order'!I262=\"\",\"\",'1. Order'!I262)","v":""},{"$f":"IF('1. Order'!J262=\"\",\"\",'1. Order'!J262)","v":""},{"$f":"IF('1. Order'!K262=\"\",\"\",'1. Order'!K262)","v":""},{"$f":"IF('1. Order'!M262=\"\",\"\",'1. Order'!M262)","v":""},null,null,{"$f":"'1. Order'!AW262","v":0},{"$f":"IF('1. Order'!AE262=\"\",\"\",'1. Order'!AE262)","v":""}]
[{"$f":"IF('1. Order'!B263=\"\",\"\",'1. Order'!B263)","v":""},{"$f":"IF('1. Order'!I263=\"\",\"\",'1. Order'!I263)","v":""},{"$f":"IF('1. Order'!J263=\"\",\"\",'1. Order'!J263)","v":""},{"$f":"IF('1. Order'!K263=\"\",\"\",'1. Order'!K263)","v":""},{"$f":"IF('1. Order'!M263=\"\",\"\",'1. Order'!M263)","v":""},null,null,{"$f":"'1. Order'!AW263","v":0},{"$f":"IF('1. Order'!AE263=\"\",\"\",'1. Order'!AE263)","v":""}]
[{"$f":"IF('1. Order'!B264=\"\",\"\",'1. Order'!B264)","v":""},{"$f":"IF('1. Order'!I264=\"\",\"\",'1. Order'!I264)","v":""},{"$f":"IF('1. Order'!J264=\"\",\"\",'1. Order'!J264)","v":""},{"$f":"IF('1. Order'!K264=\"\",\"\",'1. Order'!K264)","v":""},{"$f":"IF('1. Order'!M264=\"\",\"\",'1. Order'!M264)","v":""},null,null,{"$f":"'1. Order'!AW264","v":0},{"$f":"IF('1. Order'!AE264=\"\",\"\",'1. Order'!AE264)","v":""}]
[{"$f":"IF('1. Order'!B265=\"\",\"\",'1. Order'!B265)","v":""},{"$f":"IF('1. Order'!I265=\"\",\"\",'1. Order'!I265)","v":""},{"$f":"IF('1. Order'!J265=\"\",\"\",'1. Order'!J265)","v":""},{"$f":"IF('1. Order'!K265=\"\",\"\",'1. Order'!K265)","v":""},{"$f":"IF('1. Order'!M265=\"\",\"\",'1. Order'!M265)","v":""},null,null,{"$f":"'1. Order'!AW265","v":0},{"$f":"IF('1. Order'!AE265=\"\",\"\",'1. Order'!AE265)","v":""}]
[{"$f":"IF('1. Order'!B266=\"\",\"\",'1. Order'!B266)","v":""},{"$f":"IF('1. Order'!I266=\"\",\"\",'1. Order'!I266)","v":""},{"$f":"IF('1. Order'!J266=\"\",\"\",'1. Order'!J266)","v":""},{"$f":"IF('1. Order'!K266=\"\",\"\",'1. Order'!K266)","v":""},{"$f":"IF('1. Order'!M266=\"\",\"\",'1. Order'!M266)","v":""},null,null,{"$f":"'1. Order'!AW266","v":0},{"$f":"IF('1. Order'!AE266=\"\",\"\",'1. Order'!AE266)","v":""}]
[{"$f":"IF('1. Order'!B267=\"\",\"\",'1. Order'!B267)","v":""},{"$f":"IF('1. Order'!I267=\"\",\"\",'1. Order'!I267)","v":""},{"$f":"IF('1. Order'!J267=\"\",\"\",'1. Order'!J267)","v":""},{"$f":"IF('1. Order'!K267=\"\",\"\",'1. Order'!K267)","v":""},{"$f":"IF('1. Order'!M267=\"\",\"\",'1. Order'!M267)","v":""},null,null,{"$f":"'1. Order'!AW267","v":0},{"$f":"IF('1. Order'!AE267=\"\",\"\",'1. Order'!AE267)","v":""}]
[{"$f":"IF('1. Order'!B268=\"\",\"\",'1. Order'!B268)","v":""},{"$f":"IF('1. Order'!I268=\"\",\"\",'1. Order'!I268)","v":""},{"$f":"IF('1. Order'!J268=\"\",\"\",'1. Order'!J268)","v":""},{"$f":"IF('1. Order'!K268=\"\",\"\",'1. Order'!K268)","v":""},{"$f":"IF('1. Order'!M268=\"\",\"\",'1. Order'!M268)","v":""},null,null,{"$f":"'1. Order'!AW268","v":0},{"$f":"IF('1. Order'!AE268=\"\",\"\",'1. Order'!AE268)","v":""}]
[{"$f":"IF('1. Order'!B269=\"\",\"\",'1. Order'!B269)","v":""},{"$f":"IF('1. Order'!I269=\"\",\"\",'1. Order'!I269)","v":""},{"$f":"IF('1. Order'!J269=\"\",\"\",'1. Order'!J269)","v":""},{"$f":"IF('1. Order'!K269=\"\",\"\",'1. Order'!K269)","v":""},{"$f":"IF('1. Order'!M269=\"\",\"\",'1. Order'!M269)","v":""},null,null,{"$f":"'1. Order'!AW269","v":0},{"$f":"IF('1. Order'!AE269=\"\",\"\",'1. Order'!AE269)","v":""}]
[{"$f":"IF('1. Order'!B270=\"\",\"\",'1. Order'!B270)","v":""},{"$f":"IF('1. Order'!I270=\"\",\"\",'1. Order'!I270)","v":""},{"$f":"IF('1. Order'!J270=\"\",\"\",'1. Order'!J270)","v":""},{"$f":"IF('1. Order'!K270=\"\",\"\",'1. Order'!K270)","v":""},{"$f":"IF('1. Order'!M270=\"\",\"\",'1. Order'!M270)","v":""},null,null,{"$f":"'1. Order'!AW270","v":0},{"$f":"IF('1. Order'!AE270=\"\",\"\",'1. Order'!AE270)","v":""}]
[{"$f":"IF('1. Order'!B271=\"\",\"\",'1. Order'!B271)","v":""},{"$f":"IF('1. Order'!I271=\"\",\"\",'1. Order'!I271)","v":""},{"$f":"IF('1. Order'!J271=\"\",\"\",'1. Order'!J271)","v":""},{"$f":"IF('1. Order'!K271=\"\",\"\",'1. Order'!K271)","v":""},{"$f":"IF('1. Order'!M271=\"\",\"\",'1. Order'!M271)","v":""},null,null,{"$f":"'1. Order'!AW271","v":0},{"$f":"IF('1. Order'!AE271=\"\",\"\",'1. Order'!AE271)","v":""}]
[{"$f":"IF('1. Order'!B272=\"\",\"\",'1. Order'!B272)","v":""},{"$f":"IF('1. Order'!I272=\"\",\"\",'1. Order'!I272)","v":""},{"$f":"IF('1. Order'!J272=\"\",\"\",'1. Order'!J272)","v":""},{"$f":"IF('1. Order'!K272=\"\",\"\",'1. Order'!K272)","v":""},{"$f":"IF('1. Order'!M272=\"\",\"\",'1. Order'!M272)","v":""},null,null,{"$f":"'1. Order'!AW272","v":0},{"$f":"IF('1. Order'!AE272=\"\",\"\",'1. Order'!AE272)","v":""}]
[{"$f":"IF('1. Order'!B273=\"\",\"\",'1. Order'!B273)","v":""},{"$f":"IF('1. Order'!I273=\"\",\"\",'1. Order'!I273)","v":""},{"$f":"IF('1. Order'!J273=\"\",\"\",'1. Order'!J273)","v":""},{"$f":"IF('1. Order'!K273=\"\",\"\",'1. Order'!K273)","v":""},{"$f":"IF('1. Order'!M273=\"\",\"\",'1. Order'!M273)","v":""},null,null,{"$f":"'1. Order'!AW273","v":0},{"$f":"IF('1. Order'!AE273=\"\",\"\",'1. Order'!AE273)","v":""}]
[{"$f":"IF('1. Order'!B274=\"\",\"\",'1. Order'!B274)","v":""},{"$f":"IF('1. Order'!I274=\"\",\"\",'1. Order'!I274)","v":""},{"$f":"IF('1. Order'!J274=\"\",\"\",'1. Order'!J274)","v":""},{"$f":"IF('1. Order'!K274=\"\",\"\",'1. Order'!K274)","v":""},{"$f":"IF('1. Order'!M274=\"\",\"\",'1. Order'!M274)","v":""},null,null,{"$f":"'1. Order'!AW274","v":0},{"$f":"IF('1. Order'!AE274=\"\",\"\",'1. Order'!AE274)","v":""}]
[{"$f":"IF('1. Order'!B275=\"\",\"\",'1. Order'!B275)","v":""},{"$f":"IF('1. Order'!I275=\"\",\"\",'1. Order'!I275)","v":""},{"$f":"IF('1. Order'!J275=\"\",\"\",'1. Order'!J275)","v":""},{"$f":"IF('1. Order'!K275=\"\",\"\",'1. Order'!K275)","v":""},{"$f":"IF('1. Order'!M275=\"\",\"\",'1. Order'!M275)","v":""},null,null,{"$f":"'1. Order'!AW275","v":0},{"$f":"IF('1. Order'!AE275=\"\",\"\",'1. Order'!AE275)","v":""}]
[{"$f":"IF('1. Order'!B276=\"\",\"\",'1. Order'!B276)","v":""},{"$f":"IF('1. Order'!I276=\"\",\"\",'1. Order'!I276)","v":""},{"$f":"IF('1. Order'!J276=\"\",\"\",'1. Order'!J276)","v":""},{"$f":"IF('1. Order'!K276=\"\",\"\",'1. Order'!K276)","v":""},{"$f":"IF('1. Order'!M276=\"\",\"\",'1. Order'!M276)","v":""},null,null,{"$f":"'1. Order'!AW276","v":0},{"$f":"IF('1. Order'!AE276=\"\",\"\",'1. Order'!AE276)","v":""}]
[{"$f":"IF('1. Order'!B277=\"\",\"\",'1. Order'!B277)","v":""},{"$f":"IF('1. Order'!I277=\"\",\"\",'1. Order'!I277)","v":""},{"$f":"IF('1. Order'!J277=\"\",\"\",'1. Order'!J277)","v":""},{"$f":"IF('1. Order'!K277=\"\",\"\",'1. Order'!K277)","v":""},{"$f":"IF('1. Order'!M277=\"\",\"\",'1. Order'!M277)","v":""},null,null,{"$f":"'1. Order'!AW277","v":0},{"$f":"IF('1. Order'!AE277=\"\",\"\",'1. Order'!AE277)","v":""}]
[{"$f":"IF('1. Order'!B278=\"\",\"\",'1. Order'!B278)","v":""},{"$f":"IF('1. Order'!I278=\"\",\"\",'1. Order'!I278)","v":""},{"$f":"IF('1. Order'!J278=\"\",\"\",'1. Order'!J278)","v":""},{"$f":"IF('1. Order'!K278=\"\",\"\",'1. Order'!K278)","v":""},{"$f":"IF('1. Order'!M278=\"\",\"\",'1. Order'!M278)","v":""},null,null,{"$f":"'1. Order'!AW278","v":0},{"$f":"IF('1. Order'!AE278=\"\",\"\",'1. Order'!AE278)","v":""}]
[{"$f":"IF('1. Order'!B279=\"\",\"\",'1. Order'!B279)","v":""},{"$f":"IF('1. Order'!I279=\"\",\"\",'1. Order'!I279)","v":""},{"$f":"IF('1. Order'!J279=\"\",\"\",'1. Order'!J279)","v":""},{"$f":"IF('1. Order'!K279=\"\",\"\",'1. Order'!K279)","v":""},{"$f":"IF('1. Order'!M279=\"\",\"\",'1. Order'!M279)","v":""},null,null,{"$f":"'1. Order'!AW279","v":0},{"$f":"IF('1. Order'!AE279=\"\",\"\",'1. Order'!AE279)","v":""}]
[{"$f":"IF('1. Order'!B280=\"\",\"\",'1. Order'!B280)","v":""},{"$f":"IF('1. Order'!I280=\"\",\"\",'1. Order'!I280)","v":""},{"$f":"IF('1. Order'!J280=\"\",\"\",'1. Order'!J280)","v":""},{"$f":"IF('1. Order'!K280=\"\",\"\",'1. Order'!K280)","v":""},{"$f":"IF('1. Order'!M280=\"\",\"\",'1. Order'!M280)","v":""},null,null,{"$f":"'1. Order'!AW280","v":0},{"$f":"IF('1. Order'!AE280=\"\",\"\",'1. Order'!AE280)","v":""}]
[{"$f":"IF('1. Order'!B281=\"\",\"\",'1. Order'!B281)","v":""},{"$f":"IF('1. Order'!I281=\"\",\"\",'1. Order'!I281)","v":""},{"$f":"IF('1. Order'!J281=\"\",\"\",'1. Order'!J281)","v":""},{"$f":"IF('1. Order'!K281=\"\",\"\",'1. Order'!K281)","v":""},{"$f":"IF('1. Order'!M281=\"\",\"\",'1. Order'!M281)","v":""},null,null,{"$f":"'1. Order'!AW281","v":0},{"$f":"IF('1. Order'!AE281=\"\",\"\",'1. Order'!AE281)","v":""}]
[{"$f":"IF('1. Order'!B282=\"\",\"\",'1. Order'!B282)","v":""},{"$f":"IF('1. Order'!I282=\"\",\"\",'1. Order'!I282)","v":""},{"$f":"IF('1. Order'!J282=\"\",\"\",'1. Order'!J282)","v":""},{"$f":"IF('1. Order'!K282=\"\",\"\",'1. Order'!K282)","v":""},{"$f":"IF('1. Order'!M282=\"\",\"\",'1. Order'!M282)","v":""},null,null,{"$f":"'1. Order'!AW282","v":0},{"$f":"IF('1. Order'!AE282=\"\",\"\",'1. Order'!AE282)","v":""}]
[{"$f":"IF('1. Order'!B283=\"\",\"\",'1. Order'!B283)","v":""},{"$f":"IF('1. Order'!I283=\"\",\"\",'1. Order'!I283)","v":""},{"$f":"IF('1. Order'!J283=\"\",\"\",'1. Order'!J283)","v":""},{"$f":"IF('1. Order'!K283=\"\",\"\",'1. Order'!K283)","v":""},{"$f":"IF('1. Order'!M283=\"\",\"\",'1. Order'!M283)","v":""},null,null,{"$f":"'1. Order'!AW283","v":0},{"$f":"IF('1. Order'!AE283=\"\",\"\",'1. Order'!AE283)","v":""}]
[{"$f":"IF('1. Order'!B284=\"\",\"\",'1. Order'!B284)","v":""},{"$f":"IF('1. Order'!I284=\"\",\"\",'1. Order'!I284)","v":""},{"$f":"IF('1. Order'!J284=\"\",\"\",'1. Order'!J284)","v":""},{"$f":"IF('1. Order'!K284=\"\",\"\",'1. Order'!K284)","v":""},{"$f":"IF('1. Order'!M284=\"\",\"\",'1. Order'!M284)","v":""},null,null,{"$f":"'1. Order'!AW284","v":0},{"$f":"IF('1. Order'!AE284=\"\",\"\",'1. Order'!AE284)","v":""}]
[{"$f":"IF('1. Order'!B285=\"\",\"\",'1. Order'!B285)","v":""},{"$f":"IF('1. Order'!I285=\"\",\"\",'1. Order'!I285)","v":""},{"$f":"IF('1. Order'!J285=\"\",\"\",'1. Order'!J285)","v":""},{"$f":"IF('1. Order'!K285=\"\",\"\",'1. Order'!K285)","v":""},{"$f":"IF('1. Order'!M285=\"\",\"\",'1. Order'!M285)","v":""},null,null,{"$f":"'1. Order'!AW285","v":0},{"$f":"IF('1. Order'!AE285=\"\",\"\",'1. Order'!AE285)","v":""}]
[{"$f":"IF('1. Order'!B286=\"\",\"\",'1. Order'!B286)","v":""},{"$f":"IF('1. Order'!I286=\"\",\"\",'1. Order'!I286)","v":""},{"$f":"IF('1. Order'!J286=\"\",\"\",'1. Order'!J286)","v":""},{"$f":"IF('1. Order'!K286=\"\",\"\",'1. Order'!K286)","v":""},{"$f":"IF('1. Order'!M286=\"\",\"\",'1. Order'!M286)","v":""},null,null,{"$f":"'1. Order'!AW286","v":0},{"$f":"IF('1. Order'!AE286=\"\",\"\",'1. Order'!AE286)","v":""}]
[{"$f":"IF('1. Order'!B287=\"\",\"\",'1. Order'!B287)","v":""},{"$f":"IF('1. Order'!I287=\"\",\"\",'1. Order'!I287)","v":""},{"$f":"IF('1. Order'!J287=\"\",\"\",'1. Order'!J287)","v":""},{"$f":"IF('1. Order'!K287=\"\",\"\",'1. Order'!K287)","v":""},{"$f":"IF('1. Order'!M287=\"\",\"\",'1. Order'!M287)","v":""},null,null,{"$f":"'1. Order'!AW287","v":0},{"$f":"IF('1. Order'!AE287=\"\",\"\",'1. Order'!AE287)","v":""}]
[{"$f":"IF('1. Order'!B288=\"\",\"\",'1. Order'!B288)","v":""},{"$f":"IF('1. Order'!I288=\"\",\"\",'1. Order'!I288)","v":""},{"$f":"IF('1. Order'!J288=\"\",\"\",'1. Order'!J288)","v":""},{"$f":"IF('1. Order'!K288=\"\",\"\",'1. Order'!K288)","v":""},{"$f":"IF('1. Order'!M288=\"\",\"\",'1. Order'!M288)","v":""},null,null,{"$f":"'1. Order'!AW288","v":0},{"$f":"IF('1. Order'!AE288=\"\",\"\",'1. Order'!AE288)","v":""}]
[{"$f":"IF('1. Order'!B289=\"\",\"\",'1. Order'!B289)","v":""},{"$f":"IF('1. Order'!I289=\"\",\"\",'1. Order'!I289)","v":""},{"$f":"IF('1. Order'!J289=\"\",\"\",'1. Order'!J289)","v":""},{"$f":"IF('1. Order'!K289=\"\",\"\",'1. Order'!K289)","v":""},{"$f":"IF('1. Order'!M289=\"\",\"\",'1. Order'!M289)","v":""},null,null,{"$f":"'1. Order'!AW289","v":0},{"$f":"IF('1. Order'!AE289=\"\",\"\",'1. Order'!AE289)","v":""}]
[{"$f":"IF('1. Order'!B290=\"\",\"\",'1. Order'!B290)","v":""},{"$f":"IF('1. Order'!I290=\"\",\"\",'1. Order'!I290)","v":""},{"$f":"IF('1. Order'!J290=\"\",\"\",'1. Order'!J290)","v":""},{"$f":"IF('1. Order'!K290=\"\",\"\",'1. Order'!K290)","v":""},{"$f":"IF('1. Order'!M290=\"\",\"\",'1. Order'!M290)","v":""},null,null,{"$f":"'1. Order'!AW290","v":0},{"$f":"IF('1. Order'!AE290=\"\",\"\",'1. Order'!AE290)","v":""}]
[{"$f":"IF('1. Order'!B291=\"\",\"\",'1. Order'!B291)","v":""},{"$f":"IF('1. Order'!I291=\"\",\"\",'1. Order'!I291)","v":""},{"$f":"IF('1. Order'!J291=\"\",\"\",'1. Order'!J291)","v":""},{"$f":"IF('1. Order'!K291=\"\",\"\",'1. Order'!K291)","v":""},{"$f":"IF('1. Order'!M291=\"\",\"\",'1. Order'!M291)","v":""},null,null,{"$f":"'1. Order'!AW291","v":0},{"$f":"IF('1. Order'!AE291=\"\",\"\",'1. Order'!AE291)","v":""}]
[{"$f":"IF('1. Order'!B292=\"\",\"\",'1. Order'!B292)","v":""},{"$f":"IF('1. Order'!I292=\"\",\"\",'1. Order'!I292)","v":""},{"$f":"IF('1. Order'!J292=\"\",\"\",'1. Order'!J292)","v":""},{"$f":"IF('1. Order'!K292=\"\",\"\",'1. Order'!K292)","v":""},{"$f":"IF('1. Order'!M292=\"\",\"\",'1. Order'!M292)","v":""},null,null,{"$f":"'1. Order'!AW292","v":0},{"$f":"IF('1. Order'!AE292=\"\",\"\",'1. Order'!AE292)","v":""}]
[{"$f":"IF('1. Order'!B293=\"\",\"\",'1. Order'!B293)","v":""},{"$f":"IF('1. Order'!I293=\"\",\"\",'1. Order'!I293)","v":""},{"$f":"IF('1. Order'!J293=\"\",\"\",'1. Order'!J293)","v":""},{"$f":"IF('1. Order'!K293=\"\",\"\",'1. Order'!K293)","v":""},{"$f":"IF('1. Order'!M293=\"\",\"\",'1. Order'!M293)","v":""},null,null,{"$f":"'1. Order'!AW293","v":0},{"$f":"IF('1. Order'!AE293=\"\",\"\",'1. Order'!AE293)","v":""}]
[{"$f":"IF('1. Order'!B294=\"\",\"\",'1. Order'!B294)","v":""},{"$f":"IF('1. Order'!I294=\"\",\"\",'1. Order'!I294)","v":""},{"$f":"IF('1. Order'!J294=\"\",\"\",'1. Order'!J294)","v":""},{"$f":"IF('1. Order'!K294=\"\",\"\",'1. Order'!K294)","v":""},{"$f":"IF('1. Order'!M294=\"\",\"\",'1. Order'!M294)","v":""},null,null,{"$f":"'1. Order'!AW294","v":0},{"$f":"IF('1. Order'!AE294=\"\",\"\",'1. Order'!AE294)","v":""}]
[{"$f":"IF('1. Order'!B295=\"\",\"\",'1. Order'!B295)","v":""},{"$f":"IF('1. Order'!I295=\"\",\"\",'1. Order'!I295)","v":""},{"$f":"IF('1. Order'!J295=\"\",\"\",'1. Order'!J295)","v":""},{"$f":"IF('1. Order'!K295=\"\",\"\",'1. Order'!K295)","v":""},{"$f":"IF('1. Order'!M295=\"\",\"\",'1. Order'!M295)","v":""},null,null,{"$f":"'1. Order'!AW295","v":0},{"$f":"IF('1. Order'!AE295=\"\",\"\",'1. Order'!AE295)","v":""}]
[{"$f":"IF('1. Order'!B296=\"\",\"\",'1. Order'!B296)","v":""},{"$f":"IF('1. Order'!I296=\"\",\"\",'1. Order'!I296)","v":""},{"$f":"IF('1. Order'!J296=\"\",\"\",'1. Order'!J296)","v":""},{"$f":"IF('1. Order'!K296=\"\",\"\",'1. Order'!K296)","v":""},{"$f":"IF('1. Order'!M296=\"\",\"\",'1. Order'!M296)","v":""},null,null,{"$f":"'1. Order'!AW296","v":0},{"$f":"IF('1. Order'!AE296=\"\",\"\",'1. Order'!AE296)","v":""}]
[{"$f":"IF('1. Order'!B297=\"\",\"\",'1. Order'!B297)","v":""},{"$f":"IF('1. Order'!I297=\"\",\"\",'1. Order'!I297)","v":""},{"$f":"IF('1. Order'!J297=\"\",\"\",'1. Order'!J297)","v":""},{"$f":"IF('1. Order'!K297=\"\",\"\",'1. Order'!K297)","v":""},{"$f":"IF('1. Order'!M297=\"\",\"\",'1. Order'!M297)","v":""},null,null,{"$f":"'1. Order'!AW297","v":0},{"$f":"IF('1. Order'!AE297=\"\",\"\",'1. Order'!AE297)","v":""}]
[{"$f":"IF('1. Order'!B298=\"\",\"\",'1. Order'!B298)","v":""},{"$f":"IF('1. Order'!I298=\"\",\"\",'1. Order'!I298)","v":""},{"$f":"IF('1. Order'!J298=\"\",\"\",'1. Order'!J298)","v":""},{"$f":"IF('1. Order'!K298=\"\",\"\",'1. Order'!K298)","v":""},{"$f":"IF('1. Order'!M298=\"\",\"\",'1. Order'!M298)","v":""},null,null,{"$f":"'1. Order'!AW298","v":0},{"$f":"IF('1. Order'!AE298=\"\",\"\",'1. Order'!AE298)","v":""}]
[{"$f":"IF('1. Order'!B299=\"\",\"\",'1. Order'!B299)","v":""},{"$f":"IF('1. Order'!I299=\"\",\"\",'1. Order'!I299)","v":""},{"$f":"IF('1. Order'!J299=\"\",\"\",'1. Order'!J299)","v":""},{"$f":"IF('1. Order'!K299=\"\",\"\",'1. Order'!K299)","v":""},{"$f":"IF('1. Order'!M299=\"\",\"\",'1. Order'!M299)","v":""},null,null,{"$f":"'1. Order'!AW299","v":0},{"$f":"IF('1. Order'!AE299=\"\",\"\",'1. Order'!AE299)","v":""}]
[{"$f":"IF('1. Order'!B300=\"\",\"\",'1. Order'!B300)","v":""},{"$f":"IF('1. Order'!I300=\"\",\"\",'1. Order'!I300)","v":""},{"$f":"IF('1. Order'!J300=\"\",\"\",'1. Order'!J300)","v":""},{"$f":"IF('1. Order'!K300=\"\",\"\",'1. Order'!K300)","v":""},{"$f":"IF('1. Order'!M300=\"\",\"\",'1. Order'!M300)","v":""},null,null,{"$f":"'1. Order'!AW300","v":0},{"$f":"IF('1. Order'!AE300=\"\",\"\",'1. Order'!AE300)","v":""}]
[{"$f":"IF('1. Order'!B301=\"\",\"\",'1. Order'!B301)","v":""},{"$f":"IF('1. Order'!I301=\"\",\"\",'1. Order'!I301)","v":""},{"$f":"IF('1. Order'!J301=\"\",\"\",'1. Order'!J301)","v":""},{"$f":"IF('1. Order'!K301=\"\",\"\",'1. Order'!K301)","v":""},{"$f":"IF('1. Order'!M301=\"\",\"\",'1. Order'!M301)","v":""},null,null,{"$f":"'1. Order'!AW301","v":0},{"$f":"IF('1. Order'!AE301=\"\",\"\",'1. Order'!AE301)","v":""}]
[{"$f":"IF('1. Order'!B302=\"\",\"\",'1. Order'!B302)","v":""},{"$f":"IF('1. Order'!I302=\"\",\"\",'1. Order'!I302)","v":""},{"$f":"IF('1. Order'!J302=\"\",\"\",'1. Order'!J302)","v":""},{"$f":"IF('1. Order'!K302=\"\",\"\",'1. Order'!K302)","v":""},{"$f":"IF('1. Order'!M302=\"\",\"\",'1. Order'!M302)","v":""},null,null,{"$f":"'1. Order'!AW302","v":0},{"$f":"IF('1. Order'!AE302=\"\",\"\",'1. Order'!AE302)","v":""}]
[{"$f":"IF('1. Order'!B303=\"\",\"\",'1. Order'!B303)","v":""},{"$f":"IF('1. Order'!I303=\"\",\"\",'1. Order'!I303)","v":""},{"$f":"IF('1. Order'!J303=\"\",\"\",'1. Order'!J303)","v":""},{"$f":"IF('1. Order'!K303=\"\",\"\",'1. Order'!K303)","v":""},{"$f":"IF('1. Order'!M303=\"\",\"\",'1. Order'!M303)","v":""},null,null,{"$f":"'1. Order'!AW303","v":0},{"$f":"IF('1. Order'!AE303=\"\",\"\",'1. Order'!AE303)","v":""}]
[{"$f":"IF('1. Order'!B304=\"\",\"\",'1. Order'!B304)","v":""},{"$f":"IF('1. Order'!I304=\"\",\"\",'1. Order'!I304)","v":""},{"$f":"IF('1. Order'!J304=\"\",\"\",'1. Order'!J304)","v":""},{"$f":"IF('1. Order'!K304=\"\",\"\",'1. Order'!K304)","v":""},{"$f":"IF('1. Order'!M304=\"\",\"\",'1. Order'!M304)","v":""},null,null,{"$f":"'1. Order'!AW304","v":0},{"$f":"IF('1. Order'!AE304=\"\",\"\",'1. Order'!AE304)","v":""}]
[{"$f":"IF('1. Order'!B305=\"\",\"\",'1. Order'!B305)","v":""},{"$f":"IF('1. Order'!I305=\"\",\"\",'1. Order'!I305)","v":""},{"$f":"IF('1. Order'!J305=\"\",\"\",'1. Order'!J305)","v":""},{"$f":"IF('1. Order'!K305=\"\",\"\",'1. Order'!K305)","v":""},{"$f":"IF('1. Order'!M305=\"\",\"\",'1. Order'!M305)","v":""},null,null,{"$f":"'1. Order'!AW305","v":0},{"$f":"IF('1. Order'!AE305=\"\",\"\",'1. Order'!AE305)","v":""}]
[{"$f":"IF('1. Order'!B306=\"\",\"\",'1. Order'!B306)","v":""},{"$f":"IF('1. Order'!I306=\"\",\"\",'1. Order'!I306)","v":""},{"$f":"IF('1. Order'!J306=\"\",\"\",'1. Order'!J306)","v":""},{"$f":"IF('1. Order'!K306=\"\",\"\",'1. Order'!K306)","v":""},{"$f":"IF('1. Order'!M306=\"\",\"\",'1. Order'!M306)","v":""},null,null,{"$f":"'1. Order'!AW306","v":0},{"$f":"IF('1. Order'!AE306=\"\",\"\",'1. Order'!AE306)","v":""}]
[{"$f":"IF('1. Order'!B307=\"\",\"\",'1. Order'!B307)","v":""},{"$f":"IF('1. Order'!I307=\"\",\"\",'1. Order'!I307)","v":""},{"$f":"IF('1. Order'!J307=\"\",\"\",'1. Order'!J307)","v":""},{"$f":"IF('1. Order'!K307=\"\",\"\",'1. Order'!K307)","v":""},{"$f":"IF('1. Order'!M307=\"\",\"\",'1. Order'!M307)","v":""},null,null,{"$f":"'1. Order'!AW307","v":0},{"$f":"IF('1. Order'!AE307=\"\",\"\",'1. Order'!AE307)","v":""}]
[{"$f":"IF('1. Order'!B308=\"\",\"\",'1. Order'!B308)","v":""},{"$f":"IF('1. Order'!I308=\"\",\"\",'1. Order'!I308)","v":""},{"$f":"IF('1. Order'!J308=\"\",\"\",'1. Order'!J308)","v":""},{"$f":"IF('1. Order'!K308=\"\",\"\",'1. Order'!K308)","v":""},{"$f":"IF('1. Order'!M308=\"\",\"\",'1. Order'!M308)","v":""},null,null,{"$f":"'1. Order'!AW308","v":0},{"$f":"IF('1. Order'!AE308=\"\",\"\",'1. Order'!AE308)","v":""}]
[{"$f":"IF('1. Order'!B309=\"\",\"\",'1. Order'!B309)","v":""},{"$f":"IF('1. Order'!I309=\"\",\"\",'1. Order'!I309)","v":""},{"$f":"IF('1. Order'!J309=\"\",\"\",'1. Order'!J309)","v":""},{"$f":"IF('1. Order'!K309=\"\",\"\",'1. Order'!K309)","v":""},{"$f":"IF('1. Order'!M309=\"\",\"\",'1. Order'!M309)","v":""},null,null,{"$f":"'1. Order'!AW309","v":0},{"$f":"IF('1. Order'!AE309=\"\",\"\",'1. Order'!AE309)","v":""}]
[{"$f":"IF('1. Order'!B310=\"\",\"\",'1. Order'!B310)","v":""},{"$f":"IF('1. Order'!I310=\"\",\"\",'1. Order'!I310)","v":""},{"$f":"IF('1. Order'!J310=\"\",\"\",'1. Order'!J310)","v":""},{"$f":"IF('1. Order'!K310=\"\",\"\",'1. Order'!K310)","v":""},{"$f":"IF('1. Order'!M310=\"\",\"\",'1. Order'!M310)","v":""},null,null,{"$f":"'1. Order'!AW310","v":0},{"$f":"IF('1. Order'!AE310=\"\",\"\",'1. Order'!AE310)","v":""}]
[{"$f":"IF('1. Order'!B311=\"\",\"\",'1. Order'!B311)","v":""},{"$f":"IF('1. Order'!I311=\"\",\"\",'1. Order'!I311)","v":""},{"$f":"IF('1. Order'!J311=\"\",\"\",'1. Order'!J311)","v":""},{"$f":"IF('1. Order'!K311=\"\",\"\",'1. Order'!K311)","v":""},{"$f":"IF('1. Order'!M311=\"\",\"\",'1. Order'!M311)","v":""},null,null,{"$f":"'1. Order'!AW311","v":0},{"$f":"IF('1. Order'!AE311=\"\",\"\",'1. Order'!AE311)","v":""}]
[{"$f":"IF('1. Order'!B312=\"\",\"\",'1. Order'!B312)","v":""},{"$f":"IF('1. Order'!I312=\"\",\"\",'1. Order'!I312)","v":""},{"$f":"IF('1. Order'!J312=\"\",\"\",'1. Order'!J312)","v":""},{"$f":"IF('1. Order'!K312=\"\",\"\",'1. Order'!K312)","v":""},{"$f":"IF('1. Order'!M312=\"\",\"\",'1. Order'!M312)","v":""},null,null,{"$f":"'1. Order'!AW312","v":0},{"$f":"IF('1. Order'!AE312=\"\",\"\",'1. Order'!AE312)","v":""}]
[{"$f":"IF('1. Order'!B313=\"\",\"\",'1. Order'!B313)","v":""},{"$f":"IF('1. Order'!I313=\"\",\"\",'1. Order'!I313)","v":""},{"$f":"IF('1. Order'!J313=\"\",\"\",'1. Order'!J313)","v":""},{"$f":"IF('1. Order'!K313=\"\",\"\",'1. Order'!K313)","v":""},{"$f":"IF('1. Order'!M313=\"\",\"\",'1. Order'!M313)","v":""},null,null,{"$f":"'1. Order'!AW313","v":0},{"$f":"IF('1. Order'!AE313=\"\",\"\",'1. Order'!AE313)","v":""}]
[{"$f":"IF('1. Order'!B314=\"\",\"\",'1. Order'!B314)","v":""},{"$f":"IF('1. Order'!I314=\"\",\"\",'1. Order'!I314)","v":""},{"$f":"IF('1. Order'!J314=\"\",\"\",'1. Order'!J314)","v":""},{"$f":"IF('1. Order'!K314=\"\",\"\",'1. Order'!K314)","v":""},{"$f":"IF('1. Order'!M314=\"\",\"\",'1. Order'!M314)","v":""},null,null,{"$f":"'1. Order'!AW314","v":0},{"$f":"IF('1. Order'!AE314=\"\",\"\",'1. Order'!AE314)","v":""}]
[{"$f":"IF('1. Order'!B315=\"\",\"\",'1. Order'!B315)","v":""},{"$f":"IF('1. Order'!I315=\"\",\"\",'1. Order'!I315)","v":""},{"$f":"IF('1. Order'!J315=\"\",\"\",'1. Order'!J315)","v":""},{"$f":"IF('1. Order'!K315=\"\",\"\",'1. Order'!K315)","v":""},{"$f":"IF('1. Order'!M315=\"\",\"\",'1. Order'!M315)","v":""},null,null,{"$f":"'1. Order'!AW315","v":0},{"$f":"IF('1. Order'!AE315=\"\",\"\",'1. Order'!AE315)","v":""}]
[{"$f":"IF('1. Order'!B316=\"\",\"\",'1. Order'!B316)","v":""},{"$f":"IF('1. Order'!I316=\"\",\"\",'1. Order'!I316)","v":""},{"$f":"IF('1. Order'!J316=\"\",\"\",'1. Order'!J316)","v":""},{"$f":"IF('1. Order'!K316=\"\",\"\",'1. Order'!K316)","v":""},{"$f":"IF('1. Order'!M316=\"\",\"\",'1. Order'!M316)","v":""},null,null,{"$f":"'1. Order'!AW316","v":0},{"$f":"IF('1. Order'!AE316=\"\",\"\",'1. Order'!AE316)","v":""}]
[{"$f":"IF('1. Order'!B317=\"\",\"\",'1. Order'!B317)","v":""},{"$f":"IF('1. Order'!I317=\"\",\"\",'1. Order'!I317)","v":""},{"$f":"IF('1. Order'!J317=\"\",\"\",'1. Order'!J317)","v":""},{"$f":"IF('1. Order'!K317=\"\",\"\",'1. Order'!K317)","v":""},{"$f":"IF('1. Order'!M317=\"\",\"\",'1. Order'!M317)","v":""},null,null,{"$f":"'1. Order'!AW317","v":0},{"$f":"IF('1. Order'!AE317=\"\",\"\",'1. Order'!AE317)","v":""}]
[{"$f":"IF('1. Order'!B318=\"\",\"\",'1. Order'!B318)","v":""},{"$f":"IF('1. Order'!I318=\"\",\"\",'1. Order'!I318)","v":""},{"$f":"IF('1. Order'!J318=\"\",\"\",'1. Order'!J318)","v":""},{"$f":"IF('1. Order'!K318=\"\",\"\",'1. Order'!K318)","v":""},{"$f":"IF('1. Order'!M318=\"\",\"\",'1. Order'!M318)","v":""},null,null,{"$f":"'1. Order'!AW318","v":0},{"$f":"IF('1. Order'!AE318=\"\",\"\",'1. Order'!AE318)","v":""}]
[{"$f":"IF('1. Order'!B319=\"\",\"\",'1. Order'!B319)","v":""},{"$f":"IF('1. Order'!I319=\"\",\"\",'1. Order'!I319)","v":""},{"$f":"IF('1. Order'!J319=\"\",\"\",'1. Order'!J319)","v":""},{"$f":"IF('1. Order'!K319=\"\",\"\",'1. Order'!K319)","v":""},{"$f":"IF('1. Order'!M319=\"\",\"\",'1. Order'!M319)","v":""},null,null,{"$f":"'1. Order'!AW319","v":0},{"$f":"IF('1. Order'!AE319=\"\",\"\",'1. Order'!AE319)","v":""}]
[{"$f":"IF('1. Order'!B320=\"\",\"\",'1. Order'!B320)","v":""},{"$f":"IF('1. Order'!I320=\"\",\"\",'1. Order'!I320)","v":""},{"$f":"IF('1. Order'!J320=\"\",\"\",'1. Order'!J320)","v":""},{"$f":"IF('1. Order'!K320=\"\",\"\",'1. Order'!K320)","v":""},{"$f":"IF('1. Order'!M320=\"\",\"\",'1. Order'!M320)","v":""},null,null,{"$f":"'1. Order'!AW320","v":0},{"$f":"IF('1. Order'!AE320=\"\",\"\",'1. Order'!AE320)","v":""}]
[{"$f":"IF('1. Order'!B321=\"\",\"\",'1. Order'!B321)","v":""},{"$f":"IF('1. Order'!I321=\"\",\"\",'1. Order'!I321)","v":""},{"$f":"IF('1. Order'!J321=\"\",\"\",'1. Order'!J321)","v":""},{"$f":"IF('1. Order'!K321=\"\",\"\",'1. Order'!K321)","v":""},{"$f":"IF('1. Order'!M321=\"\",\"\",'1. Order'!M321)","v":""},null,null,{"$f":"'1. Order'!AW321","v":0},{"$f":"IF('1. Order'!AE321=\"\",\"\",'1. Order'!AE321)","v":""}]
[{"$f":"IF('1. Order'!B322=\"\",\"\",'1. Order'!B322)","v":""},{"$f":"IF('1. Order'!I322=\"\",\"\",'1. Order'!I322)","v":""},{"$f":"IF('1. Order'!J322=\"\",\"\",'1. Order'!J322)","v":""},{"$f":"IF('1. Order'!K322=\"\",\"\",'1. Order'!K322)","v":""},{"$f":"IF('1. Order'!M322=\"\",\"\",'1. Order'!M322)","v":""},null,null,{"$f":"'1. Order'!AW322","v":0},{"$f":"IF('1. Order'!AE322=\"\",\"\",'1. Order'!AE322)","v":""}]
[{"$f":"IF('1. Order'!B323=\"\",\"\",'1. Order'!B323)","v":""},{"$f":"IF('1. Order'!I323=\"\",\"\",'1. Order'!I323)","v":""},{"$f":"IF('1. Order'!J323=\"\",\"\",'1. Order'!J323)","v":""},{"$f":"IF('1. Order'!K323=\"\",\"\",'1. Order'!K323)","v":""},{"$f":"IF('1. Order'!M323=\"\",\"\",'1. Order'!M323)","v":""},null,null,{"$f":"'1. Order'!AW323","v":0},{"$f":"IF('1. Order'!AE323=\"\",\"\",'1. Order'!AE323)","v":""}]
[{"$f":"IF('1. Order'!B324=\"\",\"\",'1. Order'!B324)","v":""},{"$f":"IF('1. Order'!I324=\"\",\"\",'1. Order'!I324)","v":""},{"$f":"IF('1. Order'!J324=\"\",\"\",'1. Order'!J324)","v":""},{"$f":"IF('1. Order'!K324=\"\",\"\",'1. Order'!K324)","v":""},{"$f":"IF('1. Order'!M324=\"\",\"\",'1. Order'!M324)","v":""},null,null,{"$f":"'1. Order'!AW324","v":0},{"$f":"IF('1. Order'!AE324=\"\",\"\",'1. Order'!AE324)","v":""}]
[{"$f":"IF('1. Order'!B325=\"\",\"\",'1. Order'!B325)","v":""},{"$f":"IF('1. Order'!I325=\"\",\"\",'1. Order'!I325)","v":""},{"$f":"IF('1. Order'!J325=\"\",\"\",'1. Order'!J325)","v":""},{"$f":"IF('1. Order'!K325=\"\",\"\",'1. Order'!K325)","v":""},{"$f":"IF('1. Order'!M325=\"\",\"\",'1. Order'!M325)","v":""},null,null,{"$f":"'1. Order'!AW325","v":0},{"$f":"IF('1. Order'!AE325=\"\",\"\",'1. Order'!AE325)","v":""}]
[{"$f":"IF('1. Order'!B326=\"\",\"\",'1. Order'!B326)","v":""},{"$f":"IF('1. Order'!I326=\"\",\"\",'1. Order'!I326)","v":""},{"$f":"IF('1. Order'!J326=\"\",\"\",'1. Order'!J326)","v":""},{"$f":"IF('1. Order'!K326=\"\",\"\",'1. Order'!K326)","v":""},{"$f":"IF('1. Order'!M326=\"\",\"\",'1. Order'!M326)","v":""},null,null,{"$f":"'1. Order'!AW326","v":0},{"$f":"IF('1. Order'!AE326=\"\",\"\",'1. Order'!AE326)","v":""}]
[{"$f":"IF('1. Order'!B327=\"\",\"\",'1. Order'!B327)","v":""},{"$f":"IF('1. Order'!I327=\"\",\"\",'1. Order'!I327)","v":""},{"$f":"IF('1. Order'!J327=\"\",\"\",'1. Order'!J327)","v":""},{"$f":"IF('1. Order'!K327=\"\",\"\",'1. Order'!K327)","v":""},{"$f":"IF('1. Order'!M327=\"\",\"\",'1. Order'!M327)","v":""},null,null,{"$f":"'1. Order'!AW327","v":0},{"$f":"IF('1. Order'!AE327=\"\",\"\",'1. Order'!AE327)","v":""}]
[{"$f":"IF('1. Order'!B328=\"\",\"\",'1. Order'!B328)","v":""},{"$f":"IF('1. Order'!I328=\"\",\"\",'1. Order'!I328)","v":""},{"$f":"IF('1. Order'!J328=\"\",\"\",'1. Order'!J328)","v":""},{"$f":"IF('1. Order'!K328=\"\",\"\",'1. Order'!K328)","v":""},{"$f":"IF('1. Order'!M328=\"\",\"\",'1. Order'!M328)","v":""},null,null,{"$f":"'1. Order'!AW328","v":0},{"$f":"IF('1. Order'!AE328=\"\",\"\",'1. Order'!AE328)","v":""}]
[{"$f":"IF('1. Order'!B329=\"\",\"\",'1. Order'!B329)","v":""},{"$f":"IF('1. Order'!I329=\"\",\"\",'1. Order'!I329)","v":""},{"$f":"IF('1. Order'!J329=\"\",\"\",'1. Order'!J329)","v":""},{"$f":"IF('1. Order'!K329=\"\",\"\",'1. Order'!K329)","v":""},{"$f":"IF('1. Order'!M329=\"\",\"\",'1. Order'!M329)","v":""},null,null,{"$f":"'1. Order'!AW329","v":0},{"$f":"IF('1. Order'!AE329=\"\",\"\",'1. Order'!AE329)","v":""}]
[{"$f":"IF('1. Order'!B330=\"\",\"\",'1. Order'!B330)","v":""},{"$f":"IF('1. Order'!I330=\"\",\"\",'1. Order'!I330)","v":""},{"$f":"IF('1. Order'!J330=\"\",\"\",'1. Order'!J330)","v":""},{"$f":"IF('1. Order'!K330=\"\",\"\",'1. Order'!K330)","v":""},{"$f":"IF('1. Order'!M330=\"\",\"\",'1. Order'!M330)","v":""},null,null,{"$f":"'1. Order'!AW330","v":0},{"$f":"IF('1. Order'!AE330=\"\",\"\",'1. Order'!AE330)","v":""}]
[{"$f":"IF('1. Order'!B331=\"\",\"\",'1. Order'!B331)","v":""},{"$f":"IF('1. Order'!I331=\"\",\"\",'1. Order'!I331)","v":""},{"$f":"IF('1. Order'!J331=\"\",\"\",'1. Order'!J331)","v":""},{"$f":"IF('1. Order'!K331=\"\",\"\",'1. Order'!K331)","v":""},{"$f":"IF('1. Order'!M331=\"\",\"\",'1. Order'!M331)","v":""},null,null,{"$f":"'1. Order'!AW331","v":0},{"$f":"IF('1. Order'!AE331=\"\",\"\",'1. Order'!AE331)","v":""}]
[{"$f":"IF('1. Order'!B332=\"\",\"\",'1. Order'!B332)","v":""},{"$f":"IF('1. Order'!I332=\"\",\"\",'1. Order'!I332)","v":""},{"$f":"IF('1. Order'!J332=\"\",\"\",'1. Order'!J332)","v":""},{"$f":"IF('1. Order'!K332=\"\",\"\",'1. Order'!K332)","v":""},{"$f":"IF('1. Order'!M332=\"\",\"\",'1. Order'!M332)","v":""},null,null,{"$f":"'1. Order'!AW332","v":0},{"$f":"IF('1. Order'!AE332=\"\",\"\",'1. Order'!AE332)","v":""}]
[{"$f":"IF('1. Order'!B333=\"\",\"\",'1. Order'!B333)","v":""},{"$f":"IF('1. Order'!I333=\"\",\"\",'1. Order'!I333)","v":""},{"$f":"IF('1. Order'!J333=\"\",\"\",'1. Order'!J333)","v":""},{"$f":"IF('1. Order'!K333=\"\",\"\",'1. Order'!K333)","v":""},{"$f":"IF('1. Order'!M333=\"\",\"\",'1. Order'!M333)","v":""},null,null,{"$f":"'1. Order'!AW333","v":0},{"$f":"IF('1. Order'!AE333=\"\",\"\",'1. Order'!AE333)","v":""}]
[{"$f":"IF('1. Order'!B334=\"\",\"\",'1. Order'!B334)","v":""},{"$f":"IF('1. Order'!I334=\"\",\"\",'1. Order'!I334)","v":""},{"$f":"IF('1. Order'!J334=\"\",\"\",'1. Order'!J334)","v":""},{"$f":"IF('1. Order'!K334=\"\",\"\",'1. Order'!K334)","v":""},{"$f":"IF('1. Order'!M334=\"\",\"\",'1. Order'!M334)","v":""},null,null,{"$f":"'1. Order'!AW334","v":0},{"$f":"IF('1. Order'!AE334=\"\",\"\",'1. Order'!AE334)","v":""}]
[{"$f":"IF('1. Order'!B335=\"\",\"\",'1. Order'!B335)","v":""},{"$f":"IF('1. Order'!I335=\"\",\"\",'1. Order'!I335)","v":""},{"$f":"IF('1. Order'!J335=\"\",\"\",'1. Order'!J335)","v":""},{"$f":"IF('1. Order'!K335=\"\",\"\",'1. Order'!K335)","v":""},{"$f":"IF('1. Order'!M335=\"\",\"\",'1. Order'!M335)","v":""},null,null,{"$f":"'1. Order'!AW335","v":0},{"$f":"IF('1. Order'!AE335=\"\",\"\",'1. Order'!AE335)","v":""}]
[{"$f":"IF('1. Order'!B336=\"\",\"\",'1. Order'!B336)","v":""},{"$f":"IF('1. Order'!I336=\"\",\"\",'1. Order'!I336)","v":""},{"$f":"IF('1. Order'!J336=\"\",\"\",'1. Order'!J336)","v":""},{"$f":"IF('1. Order'!K336=\"\",\"\",'1. Order'!K336)","v":""},{"$f":"IF('1. Order'!M336=\"\",\"\",'1. Order'!M336)","v":""},null,null,{"$f":"'1. Order'!AW336","v":0},{"$f":"IF('1. Order'!AE336=\"\",\"\",'1. Order'!AE336)","v":""}]
[{"$f":"IF('1. Order'!B337=\"\",\"\",'1. Order'!B337)","v":""},{"$f":"IF('1. Order'!I337=\"\",\"\",'1. Order'!I337)","v":""},{"$f":"IF('1. Order'!J337=\"\",\"\",'1. Order'!J337)","v":""},{"$f":"IF('1. Order'!K337=\"\",\"\",'1. Order'!K337)","v":""},{"$f":"IF('1. Order'!M337=\"\",\"\",'1. Order'!M337)","v":""},null,null,{"$f":"'1. Order'!AW337","v":0},{"$f":"IF('1. Order'!AE337=\"\",\"\",'1. Order'!AE337)","v":""}]
[{"$f":"IF('1. Order'!B338=\"\",\"\",'1. Order'!B338)","v":""},{"$f":"IF('1. Order'!I338=\"\",\"\",'1. Order'!I338)","v":""},{"$f":"IF('1. Order'!J338=\"\",\"\",'1. Order'!J338)","v":""},{"$f":"IF('1. Order'!K338=\"\",\"\",'1. Order'!K338)","v":""},{"$f":"IF('1. Order'!M338=\"\",\"\",'1. Order'!M338)","v":""},null,null,{"$f":"'1. Order'!AW338","v":0},{"$f":"IF('1. Order'!AE338=\"\",\"\",'1. Order'!AE338)","v":""}]
[{"$f":"IF('1. Order'!B339=\"\",\"\",'1. Order'!B339)","v":""},{"$f":"IF('1. Order'!I339=\"\",\"\",'1. Order'!I339)","v":""},{"$f":"IF('1. Order'!J339=\"\",\"\",'1. Order'!J339)","v":""},{"$f":"IF('1. Order'!K339=\"\",\"\",'1. Order'!K339)","v":""},{"$f":"IF('1. Order'!M339=\"\",\"\",'1. Order'!M339)","v":""},null,null,{"$f":"'1. Order'!AW339","v":0},{"$f":"IF('1. Order'!AE339=\"\",\"\",'1. Order'!AE339)","v":""}]
[{"$f":"IF('1. Order'!B340=\"\",\"\",'1. Order'!B340)","v":""},{"$f":"IF('1. Order'!I340=\"\",\"\",'1. Order'!I340)","v":""},{"$f":"IF('1. Order'!J340=\"\",\"\",'1. Order'!J340)","v":""},{"$f":"IF('1. Order'!K340=\"\",\"\",'1. Order'!K340)","v":""},{"$f":"IF('1. Order'!M340=\"\",\"\",'1. Order'!M340)","v":""},null,null,{"$f":"'1. Order'!AW340","v":0},{"$f":"IF('1. Order'!AE340=\"\",\"\",'1. Order'!AE340)","v":""}]
[{"$f":"IF('1. Order'!B341=\"\",\"\",'1. Order'!B341)","v":""},{"$f":"IF('1. Order'!I341=\"\",\"\",'1. Order'!I341)","v":""},{"$f":"IF('1. Order'!J341=\"\",\"\",'1. Order'!J341)","v":""},{"$f":"IF('1. Order'!K341=\"\",\"\",'1. Order'!K341)","v":""},{"$f":"IF('1. Order'!M341=\"\",\"\",'1. Order'!M341)","v":""},null,null,{"$f":"'1. Order'!AW341","v":0},{"$f":"IF('1. Order'!AE341=\"\",\"\",'1. Order'!AE341)","v":""}]
[{"$f":"IF('1. Order'!B342=\"\",\"\",'1. Order'!B342)","v":""},{"$f":"IF('1. Order'!I342=\"\",\"\",'1. Order'!I342)","v":""},{"$f":"IF('1. Order'!J342=\"\",\"\",'1. Order'!J342)","v":""},{"$f":"IF('1. Order'!K342=\"\",\"\",'1. Order'!K342)","v":""},{"$f":"IF('1. Order'!M342=\"\",\"\",'1. Order'!M342)","v":""},null,null,{"$f":"'1. Order'!AW342","v":0},{"$f":"IF('1. Order'!AE342=\"\",\"\",'1. Order'!AE342)","v":""}]
[{"$f":"IF('1. Order'!B343=\"\",\"\",'1. Order'!B343)","v":""},{"$f":"IF('1. Order'!I343=\"\",\"\",'1. Order'!I343)","v":""},{"$f":"IF('1. Order'!J343=\"\",\"\",'1. Order'!J343)","v":""},{"$f":"IF('1. Order'!K343=\"\",\"\",'1. Order'!K343)","v":""},{"$f":"IF('1. Order'!M343=\"\",\"\",'1. Order'!M343)","v":""},null,null,{"$f":"'1. Order'!AW343","v":0},{"$f":"IF('1. Order'!AE343=\"\",\"\",'1. Order'!AE343)","v":""}]
[{"$f":"IF('1. Order'!B344=\"\",\"\",'1. Order'!B344)","v":""},{"$f":"IF('1. Order'!I344=\"\",\"\",'1. Order'!I344)","v":""},{"$f":"IF('1. Order'!J344=\"\",\"\",'1. Order'!J344)","v":""},{"$f":"IF('1. Order'!K344=\"\",\"\",'1. Order'!K344)","v":""},{"$f":"IF('1. Order'!M344=\"\",\"\",'1. Order'!M344)","v":""},null,null,{"$f":"'1. Order'!AW344","v":0},{"$f":"IF('1. Order'!AE344=\"\",\"\",'1. Order'!AE344)","v":""}]
[{"$f":"IF('1. Order'!B345=\"\",\"\",'1. Order'!B345)","v":""},{"$f":"IF('1. Order'!I345=\"\",\"\",'1. Order'!I345)","v":""},{"$f":"IF('1. Order'!J345=\"\",\"\",'1. Order'!J345)","v":""},{"$f":"IF('1. Order'!K345=\"\",\"\",'1. Order'!K345)","v":""},{"$f":"IF('1. Order'!M345=\"\",\"\",'1. Order'!M345)","v":""},null,null,{"$f":"'1. Order'!AW345","v":0},{"$f":"IF('1. Order'!AE345=\"\",\"\",'1. Order'!AE345)","v":""}]
[{"$f":"IF('1. Order'!B346=\"\",\"\",'1. Order'!B346)","v":""},{"$f":"IF('1. Order'!I346=\"\",\"\",'1. Order'!I346)","v":""},{"$f":"IF('1. Order'!J346=\"\",\"\",'1. Order'!J346)","v":""},{"$f":"IF('1. Order'!K346=\"\",\"\",'1. Order'!K346)","v":""},{"$f":"IF('1. Order'!M346=\"\",\"\",'1. Order'!M346)","v":""},null,null,{"$f":"'1. Order'!AW346","v":0},{"$f":"IF('1. Order'!AE346=\"\",\"\",'1. Order'!AE346)","v":""}]
[{"$f":"IF('1. Order'!B347=\"\",\"\",'1. Order'!B347)","v":""},{"$f":"IF('1. Order'!I347=\"\",\"\",'1. Order'!I347)","v":""},{"$f":"IF('1. Order'!J347=\"\",\"\",'1. Order'!J347)","v":""},{"$f":"IF('1. Order'!K347=\"\",\"\",'1. Order'!K347)","v":""},{"$f":"IF('1. Order'!M347=\"\",\"\",'1. Order'!M347)","v":""},null,null,{"$f":"'1. Order'!AW347","v":0},{"$f":"IF('1. Order'!AE347=\"\",\"\",'1. Order'!AE347)","v":""}]
[{"$f":"IF('1. Order'!B348=\"\",\"\",'1. Order'!B348)","v":""},{"$f":"IF('1. Order'!I348=\"\",\"\",'1. Order'!I348)","v":""},{"$f":"IF('1. Order'!J348=\"\",\"\",'1. Order'!J348)","v":""},{"$f":"IF('1. Order'!K348=\"\",\"\",'1. Order'!K348)","v":""},{"$f":"IF('1. Order'!M348=\"\",\"\",'1. Order'!M348)","v":""},null,null,{"$f":"'1. Order'!AW348","v":0},{"$f":"IF('1. Order'!AE348=\"\",\"\",'1. Order'!AE348)","v":""}]
[{"$f":"IF('1. Order'!B349=\"\",\"\",'1. Order'!B349)","v":""},{"$f":"IF('1. Order'!I349=\"\",\"\",'1. Order'!I349)","v":""},{"$f":"IF('1. Order'!J349=\"\",\"\",'1. Order'!J349)","v":""},{"$f":"IF('1. Order'!K349=\"\",\"\",'1. Order'!K349)","v":""},{"$f":"IF('1. Order'!M349=\"\",\"\",'1. Order'!M349)","v":""},null,null,{"$f":"'1. Order'!AW349","v":0},{"$f":"IF('1. Order'!AE349=\"\",\"\",'1. Order'!AE349)","v":""}]
[{"$f":"IF('1. Order'!B350=\"\",\"\",'1. Order'!B350)","v":""},{"$f":"IF('1. Order'!I350=\"\",\"\",'1. Order'!I350)","v":""},{"$f":"IF('1. Order'!J350=\"\",\"\",'1. Order'!J350)","v":""},{"$f":"IF('1. Order'!K350=\"\",\"\",'1. Order'!K350)","v":""},{"$f":"IF('1. Order'!M350=\"\",\"\",'1. Order'!M350)","v":""},null,null,{"$f":"'1. Order'!AW350","v":0},{"$f":"IF('1. Order'!AE350=\"\",\"\",'1. Order'!AE350)","v":""}]
[{"$f":"IF('1. Order'!B351=\"\",\"\",'1. Order'!B351)","v":""},{"$f":"IF('1. Order'!I351=\"\",\"\",'1. Order'!I351)","v":""},{"$f":"IF('1. Order'!J351=\"\",\"\",'1. Order'!J351)","v":""},{"$f":"IF('1. Order'!K351=\"\",\"\",'1. Order'!K351)","v":""},{"$f":"IF('1. Order'!M351=\"\",\"\",'1. Order'!M351)","v":""},null,null,{"$f":"'1. Order'!AW351","v":0},{"$f":"IF('1. Order'!AE351=\"\",\"\",'1. Order'!AE351)","v":""}]
[{"$f":"IF('1. Order'!B352=\"\",\"\",'1. Order'!B352)","v":""},{"$f":"IF('1. Order'!I352=\"\",\"\",'1. Order'!I352)","v":""},{"$f":"IF('1. Order'!J352=\"\",\"\",'1. Order'!J352)","v":""},{"$f":"IF('1. Order'!K352=\"\",\"\",'1. Order'!K352)","v":""},{"$f":"IF('1. Order'!M352=\"\",\"\",'1. Order'!M352)","v":""},null,null,{"$f":"'1. Order'!AW352","v":0},{"$f":"IF('1. Order'!AE352=\"\",\"\",'1. Order'!AE352)","v":""}]
[{"$f":"IF('1. Order'!B353=\"\",\"\",'1. Order'!B353)","v":""},{"$f":"IF('1. Order'!I353=\"\",\"\",'1. Order'!I353)","v":""},{"$f":"IF('1. Order'!J353=\"\",\"\",'1. Order'!J353)","v":""},{"$f":"IF('1. Order'!K353=\"\",\"\",'1. Order'!K353)","v":""},{"$f":"IF('1. Order'!M353=\"\",\"\",'1. Order'!M353)","v":""},null,null,{"$f":"'1. Order'!AW353","v":0},{"$f":"IF('1. Order'!AE353=\"\",\"\",'1. Order'!AE353)","v":""}]
[{"$f":"IF('1. Order'!B354=\"\",\"\",'1. Order'!B354)","v":""},{"$f":"IF('1. Order'!I354=\"\",\"\",'1. Order'!I354)","v":""},{"$f":"IF('1. Order'!J354=\"\",\"\",'1. Order'!J354)","v":""},{"$f":"IF('1. Order'!K354=\"\",\"\",'1. Order'!K354)","v":""},{"$f":"IF('1. Order'!M354=\"\",\"\",'1. Order'!M354)","v":""},null,null,{"$f":"'1. Order'!AW354","v":0},{"$f":"IF('1. Order'!AE354=\"\",\"\",'1. Order'!AE354)","v":""}]
[{"$f":"IF('1. Order'!B355=\"\",\"\",'1. Order'!B355)","v":""},{"$f":"IF('1. Order'!I355=\"\",\"\",'1. Order'!I355)","v":""},{"$f":"IF('1. Order'!J355=\"\",\"\",'1. Order'!J355)","v":""},{"$f":"IF('1. Order'!K355=\"\",\"\",'1. Order'!K355)","v":""},{"$f":"IF('1. Order'!M355=\"\",\"\",'1. Order'!M355)","v":""},null,null,{"$f":"'1. Order'!AW355","v":0},{"$f":"IF('1. Order'!AE355=\"\",\"\",'1. Order'!AE355)","v":""}]
[{"$f":"IF('1. Order'!B356=\"\",\"\",'1. Order'!B356)","v":""},{"$f":"IF('1. Order'!I356=\"\",\"\",'1. Order'!I356)","v":""},{"$f":"IF('1. Order'!J356=\"\",\"\",'1. Order'!J356)","v":""},{"$f":"IF('1. Order'!K356=\"\",\"\",'1. Order'!K356)","v":""},{"$f":"IF('1. Order'!M356=\"\",\"\",'1. Order'!M356)","v":""},null,null,{"$f":"'1. Order'!AW356","v":0},{"$f":"IF('1. Order'!AE356=\"\",\"\",'1. Order'!AE356)","v":""}]
[{"$f":"IF('1. Order'!B357=\"\",\"\",'1. Order'!B357)","v":""},{"$f":"IF('1. Order'!I357=\"\",\"\",'1. Order'!I357)","v":""},{"$f":"IF('1. Order'!J357=\"\",\"\",'1. Order'!J357)","v":""},{"$f":"IF('1. Order'!K357=\"\",\"\",'1. Order'!K357)","v":""},{"$f":"IF('1. Order'!M357=\"\",\"\",'1. Order'!M357)","v":""},null,null,{"$f":"'1. Order'!AW357","v":0},{"$f":"IF('1. Order'!AE357=\"\",\"\",'1. Order'!AE357)","v":""}]
[{"$f":"IF('1. Order'!B358=\"\",\"\",'1. Order'!B358)","v":""},{"$f":"IF('1. Order'!I358=\"\",\"\",'1. Order'!I358)","v":""},{"$f":"IF('1. Order'!J358=\"\",\"\",'1. Order'!J358)","v":""},{"$f":"IF('1. Order'!K358=\"\",\"\",'1. Order'!K358)","v":""},{"$f":"IF('1. Order'!M358=\"\",\"\",'1. Order'!M358)","v":""},null,null,{"$f":"'1. Order'!AW358","v":0},{"$f":"IF('1. Order'!AE358=\"\",\"\",'1. Order'!AE358)","v":""}]
[{"$f":"IF('1. Order'!B359=\"\",\"\",'1. Order'!B359)","v":""},{"$f":"IF('1. Order'!I359=\"\",\"\",'1. Order'!I359)","v":""},{"$f":"IF('1. Order'!J359=\"\",\"\",'1. Order'!J359)","v":""},{"$f":"IF('1. Order'!K359=\"\",\"\",'1. Order'!K359)","v":""},{"$f":"IF('1. Order'!M359=\"\",\"\",'1. Order'!M359)","v":""},null,null,{"$f":"'1. Order'!AW359","v":0},{"$f":"IF('1. Order'!AE359=\"\",\"\",'1. Order'!AE359)","v":""}]
[{"$f":"IF('1. Order'!B360=\"\",\"\",'1. Order'!B360)","v":""},{"$f":"IF('1. Order'!I360=\"\",\"\",'1. Order'!I360)","v":""},{"$f":"IF('1. Order'!J360=\"\",\"\",'1. Order'!J360)","v":""},{"$f":"IF('1. Order'!K360=\"\",\"\",'1. Order'!K360)","v":""},{"$f":"IF('1. Order'!M360=\"\",\"\",'1. Order'!M360)","v":""},null,null,{"$f":"'1. Order'!AW360","v":0},{"$f":"IF('1. Order'!AE360=\"\",\"\",'1. Order'!AE360)","v":""}]
[{"$f":"IF('1. Order'!B361=\"\",\"\",'1. Order'!B361)","v":""},{"$f":"IF('1. Order'!I361=\"\",\"\",'1. Order'!I361)","v":""},{"$f":"IF('1. Order'!J361=\"\",\"\",'1. Order'!J361)","v":""},{"$f":"IF('1. Order'!K361=\"\",\"\",'1. Order'!K361)","v":""},{"$f":"IF('1. Order'!M361=\"\",\"\",'1. Order'!M361)","v":""},null,null,{"$f":"'1. Order'!AW361","v":0},{"$f":"IF('1. Order'!AE361=\"\",\"\",'1. Order'!AE361)","v":""}]
[{"$f":"IF('1. Order'!B362=\"\",\"\",'1. Order'!B362)","v":""},{"$f":"IF('1. Order'!I362=\"\",\"\",'1. Order'!I362)","v":""},{"$f":"IF('1. Order'!J362=\"\",\"\",'1. Order'!J362)","v":""},{"$f":"IF('1. Order'!K362=\"\",\"\",'1. Order'!K362)","v":""},{"$f":"IF('1. Order'!M362=\"\",\"\",'1. Order'!M362)","v":""},null,null,{"$f":"'1. Order'!AW362","v":0},{"$f":"IF('1. Order'!AE362=\"\",\"\",'1. Order'!AE362)","v":""}]
[{"$f":"IF('1. Order'!B363=\"\",\"\",'1. Order'!B363)","v":""},{"$f":"IF('1. Order'!I363=\"\",\"\",'1. Order'!I363)","v":""},{"$f":"IF('1. Order'!J363=\"\",\"\",'1. Order'!J363)","v":""},{"$f":"IF('1. Order'!K363=\"\",\"\",'1. Order'!K363)","v":""},{"$f":"IF('1. Order'!M363=\"\",\"\",'1. Order'!M363)","v":""},null,null,{"$f":"'1. Order'!AW363","v":0},{"$f":"IF('1. Order'!AE363=\"\",\"\",'1. Order'!AE363)","v":""}]
[{"$f":"IF('1. Order'!B364=\"\",\"\",'1. Order'!B364)","v":""},{"$f":"IF('1. Order'!I364=\"\",\"\",'1. Order'!I364)","v":""},{"$f":"IF('1. Order'!J364=\"\",\"\",'1. Order'!J364)","v":""},{"$f":"IF('1. Order'!K364=\"\",\"\",'1. Order'!K364)","v":""},{"$f":"IF('1. Order'!M364=\"\",\"\",'1. Order'!M364)","v":""},null,null,{"$f":"'1. Order'!AW364","v":0},{"$f":"IF('1. Order'!AE364=\"\",\"\",'1. Order'!AE364)","v":""}]
[{"$f":"IF('1. Order'!B365=\"\",\"\",'1. Order'!B365)","v":""},{"$f":"IF('1. Order'!I365=\"\",\"\",'1. Order'!I365)","v":""},{"$f":"IF('1. Order'!J365=\"\",\"\",'1. Order'!J365)","v":""},{"$f":"IF('1. Order'!K365=\"\",\"\",'1. Order'!K365)","v":""},{"$f":"IF('1. Order'!M365=\"\",\"\",'1. Order'!M365)","v":""},null,null,{"$f":"'1. Order'!AW365","v":0},{"$f":"IF('1. Order'!AE365=\"\",\"\",'1. Order'!AE365)","v":""}]
[{"$f":"IF('1. Order'!B366=\"\",\"\",'1. Order'!B366)","v":""},{"$f":"IF('1. Order'!I366=\"\",\"\",'1. Order'!I366)","v":""},{"$f":"IF('1. Order'!J366=\"\",\"\",'1. Order'!J366)","v":""},{"$f":"IF('1. Order'!K366=\"\",\"\",'1. Order'!K366)","v":""},{"$f":"IF('1. Order'!M366=\"\",\"\",'1. Order'!M366)","v":""},null,null,{"$f":"'1. Order'!AW366","v":0},{"$f":"IF('1. Order'!AE366=\"\",\"\",'1. Order'!AE366)","v":""}]
[{"$f":"IF('1. Order'!B367=\"\",\"\",'1. Order'!B367)","v":""},{"$f":"IF('1. Order'!I367=\"\",\"\",'1. Order'!I367)","v":""},{"$f":"IF('1. Order'!J367=\"\",\"\",'1. Order'!J367)","v":""},{"$f":"IF('1. Order'!K367=\"\",\"\",'1. Order'!K367)","v":""},{"$f":"IF('1. Order'!M367=\"\",\"\",'1. Order'!M367)","v":""},null,null,{"$f":"'1. Order'!AW367","v":0},{"$f":"IF('1. Order'!AE367=\"\",\"\",'1. Order'!AE367)","v":""}]
[{"$f":"IF('1. Order'!B368=\"\",\"\",'1. Order'!B368)","v":""},{"$f":"IF('1. Order'!I368=\"\",\"\",'1. Order'!I368)","v":""},{"$f":"IF('1. Order'!J368=\"\",\"\",'1. Order'!J368)","v":""},{"$f":"IF('1. Order'!K368=\"\",\"\",'1. Order'!K368)","v":""},{"$f":"IF('1. Order'!M368=\"\",\"\",'1. Order'!M368)","v":""},null,null,{"$f":"'1. Order'!AW368","v":0},{"$f":"IF('1. Order'!AE368=\"\",\"\",'1. Order'!AE368)","v":""}]
[{"$f":"IF('1. Order'!B369=\"\",\"\",'1. Order'!B369)","v":""},{"$f":"IF('1. Order'!I369=\"\",\"\",'1. Order'!I369)","v":""},{"$f":"IF('1. Order'!J369=\"\",\"\",'1. Order'!J369)","v":""},{"$f":"IF('1. Order'!K369=\"\",\"\",'1. Order'!K369)","v":""},{"$f":"IF('1. Order'!M369=\"\",\"\",'1. Order'!M369)","v":""},null,null,{"$f":"'1. Order'!AW369","v":0},{"$f":"IF('1. Order'!AE369=\"\",\"\",'1. Order'!AE369)","v":""}]
[{"$f":"IF('1. Order'!B370=\"\",\"\",'1. Order'!B370)","v":""},{"$f":"IF('1. Order'!I370=\"\",\"\",'1. Order'!I370)","v":""},{"$f":"IF('1. Order'!J370=\"\",\"\",'1. Order'!J370)","v":""},{"$f":"IF('1. Order'!K370=\"\",\"\",'1. Order'!K370)","v":""},{"$f":"IF('1. Order'!M370=\"\",\"\",'1. Order'!M370)","v":""},null,null,{"$f":"'1. Order'!AW370","v":0},{"$f":"IF('1. Order'!AE370=\"\",\"\",'1. Order'!AE370)","v":""}]
[{"$f":"IF('1. Order'!B371=\"\",\"\",'1. Order'!B371)","v":""},{"$f":"IF('1. Order'!I371=\"\",\"\",'1. Order'!I371)","v":""},{"$f":"IF('1. Order'!J371=\"\",\"\",'1. Order'!J371)","v":""},{"$f":"IF('1. Order'!K371=\"\",\"\",'1. Order'!K371)","v":""},{"$f":"IF('1. Order'!M371=\"\",\"\",'1. Order'!M371)","v":""},null,null,{"$f":"'1. Order'!AW371","v":0},{"$f":"IF('1. Order'!AE371=\"\",\"\",'1. Order'!AE371)","v":""}]
[{"$f":"IF('1. Order'!B372=\"\",\"\",'1. Order'!B372)","v":""},{"$f":"IF('1. Order'!I372=\"\",\"\",'1. Order'!I372)","v":""},{"$f":"IF('1. Order'!J372=\"\",\"\",'1. Order'!J372)","v":""},{"$f":"IF('1. Order'!K372=\"\",\"\",'1. Order'!K372)","v":""},{"$f":"IF('1. Order'!M372=\"\",\"\",'1. Order'!M372)","v":""},null,null,{"$f":"'1. Order'!AW372","v":0},{"$f":"IF('1. Order'!AE372=\"\",\"\",'1. Order'!AE372)","v":""}]
[{"$f":"IF('1. Order'!B373=\"\",\"\",'1. Order'!B373)","v":""},{"$f":"IF('1. Order'!I373=\"\",\"\",'1. Order'!I373)","v":""},{"$f":"IF('1. Order'!J373=\"\",\"\",'1. Order'!J373)","v":""},{"$f":"IF('1. Order'!K373=\"\",\"\",'1. Order'!K373)","v":""},{"$f":"IF('1. Order'!M373=\"\",\"\",'1. Order'!M373)","v":""},null,null,{"$f":"'1. Order'!AW373","v":0},{"$f":"IF('1. Order'!AE373=\"\",\"\",'1. Order'!AE373)","v":""}]
[{"$f":"IF('1. Order'!B374=\"\",\"\",'1. Order'!B374)","v":""},{"$f":"IF('1. Order'!I374=\"\",\"\",'1. Order'!I374)","v":""},{"$f":"IF('1. Order'!J374=\"\",\"\",'1. Order'!J374)","v":""},{"$f":"IF('1. Order'!K374=\"\",\"\",'1. Order'!K374)","v":""},{"$f":"IF('1. Order'!M374=\"\",\"\",'1. Order'!M374)","v":""},null,null,{"$f":"'1. Order'!AW374","v":0},{"$f":"IF('1. Order'!AE374=\"\",\"\",'1. Order'!AE374)","v":""}]
[{"$f":"IF('1. Order'!B375=\"\",\"\",'1. Order'!B375)","v":""},{"$f":"IF('1. Order'!I375=\"\",\"\",'1. Order'!I375)","v":""},{"$f":"IF('1. Order'!J375=\"\",\"\",'1. Order'!J375)","v":""},{"$f":"IF('1. Order'!K375=\"\",\"\",'1. Order'!K375)","v":""},{"$f":"IF('1. Order'!M375=\"\",\"\",'1. Order'!M375)","v":""},null,null,{"$f":"'1. Order'!AW375","v":0},{"$f":"IF('1. Order'!AE375=\"\",\"\",'1. Order'!AE375)","v":""}]
[{"$f":"IF('1. Order'!B376=\"\",\"\",'1. Order'!B376)","v":""},{"$f":"IF('1. Order'!I376=\"\",\"\",'1. Order'!I376)","v":""},{"$f":"IF('1. Order'!J376=\"\",\"\",'1. Order'!J376)","v":""},{"$f":"IF('1. Order'!K376=\"\",\"\",'1. Order'!K376)","v":""},{"$f":"IF('1. Order'!M376=\"\",\"\",'1. Order'!M376)","v":""},null,null,{"$f":"'1. Order'!AW376","v":0},{"$f":"IF('1. Order'!AE376=\"\",\"\",'1. Order'!AE376)","v":""}]
[{"$f":"IF('1. Order'!B377=\"\",\"\",'1. Order'!B377)","v":""},{"$f":"IF('1. Order'!I377=\"\",\"\",'1. Order'!I377)","v":""},{"$f":"IF('1. Order'!J377=\"\",\"\",'1. Order'!J377)","v":""},{"$f":"IF('1. Order'!K377=\"\",\"\",'1. Order'!K377)","v":""},{"$f":"IF('1. Order'!M377=\"\",\"\",'1. Order'!M377)","v":""},null,null,{"$f":"'1. Order'!AW377","v":0},{"$f":"IF('1. Order'!AE377=\"\",\"\",'1. Order'!AE377)","v":""}]
[{"$f":"IF('1. Order'!B378=\"\",\"\",'1. Order'!B378)","v":""},{"$f":"IF('1. Order'!I378=\"\",\"\",'1. Order'!I378)","v":""},{"$f":"IF('1. Order'!J378=\"\",\"\",'1. Order'!J378)","v":""},{"$f":"IF('1. Order'!K378=\"\",\"\",'1. Order'!K378)","v":""},{"$f":"IF('1. Order'!M378=\"\",\"\",'1. Order'!M378)","v":""},null,null,{"$f":"'1. Order'!AW378","v":0},{"$f":"IF('1. Order'!AE378=\"\",\"\",'1. Order'!AE378)","v":""}]
[{"$f":"IF('1. Order'!B379=\"\",\"\",'1. Order'!B379)","v":""},{"$f":"IF('1. Order'!I379=\"\",\"\",'1. Order'!I379)","v":""},{"$f":"IF('1. Order'!J379=\"\",\"\",'1. Order'!J379)","v":""},{"$f":"IF('1. Order'!K379=\"\",\"\",'1. Order'!K379)","v":""},{"$f":"IF('1. Order'!M379=\"\",\"\",'1. Order'!M379)","v":""},null,null,{"$f":"'1. Order'!AW379","v":0},{"$f":"IF('1. Order'!AE379=\"\",\"\",'1. Order'!AE379)","v":""}]
[{"$f":"IF('1. Order'!B380=\"\",\"\",'1. Order'!B380)","v":""},{"$f":"IF('1. Order'!I380=\"\",\"\",'1. Order'!I380)","v":""},{"$f":"IF('1. Order'!J380=\"\",\"\",'1. Order'!J380)","v":""},{"$f":"IF('1. Order'!K380=\"\",\"\",'1. Order'!K380)","v":""},{"$f":"IF('1. Order'!M380=\"\",\"\",'1. Order'!M380)","v":""},null,null,{"$f":"'1. Order'!AW380","v":0},{"$f":"IF('1. Order'!AE380=\"\",\"\",'1. Order'!AE380)","v":""}]
[{"$f":"IF('1. Order'!B381=\"\",\"\",'1. Order'!B381)","v":""},{"$f":"IF('1. Order'!I381=\"\",\"\",'1. Order'!I381)","v":""},{"$f":"IF('1. Order'!J381=\"\",\"\",'1. Order'!J381)","v":""},{"$f":"IF('1. Order'!K381=\"\",\"\",'1. Order'!K381)","v":""},{"$f":"IF('1. Order'!M381=\"\",\"\",'1. Order'!M381)","v":""},null,null,{"$f":"'1. Order'!AW381","v":0},{"$f":"IF('1. Order'!AE381=\"\",\"\",'1. Order'!AE381)","v":""}]
[{"$f":"IF('1. Order'!B382=\"\",\"\",'1. Order'!B382)","v":""},{"$f":"IF('1. Order'!I382=\"\",\"\",'1. Order'!I382)","v":""},{"$f":"IF('1. Order'!J382=\"\",\"\",'1. Order'!J382)","v":""},{"$f":"IF('1. Order'!K382=\"\",\"\",'1. Order'!K382)","v":""},{"$f":"IF('1. Order'!M382=\"\",\"\",'1. Order'!M382)","v":""},null,null,{"$f":"'1. Order'!AW382","v":0},{"$f":"IF('1. Order'!AE382=\"\",\"\",'1. Order'!AE382)","v":""}]
[{"$f":"IF('1. Order'!B383=\"\",\"\",'1. Order'!B383)","v":""},{"$f":"IF('1. Order'!I383=\"\",\"\",'1. Order'!I383)","v":""},{"$f":"IF('1. Order'!J383=\"\",\"\",'1. Order'!J383)","v":""},{"$f":"IF('1. Order'!K383=\"\",\"\",'1. Order'!K383)","v":""},{"$f":"IF('1. Order'!M383=\"\",\"\",'1. Order'!M383)","v":""},null,null,{"$f":"'1. Order'!AW383","v":0},{"$f":"IF('1. Order'!AE383=\"\",\"\",'1. Order'!AE383)","v":""}]
[{"$f":"IF('1. Order'!B384=\"\",\"\",'1. Order'!B384)","v":""},{"$f":"IF('1. Order'!I384=\"\",\"\",'1. Order'!I384)","v":""},{"$f":"IF('1. Order'!J384=\"\",\"\",'1. Order'!J384)","v":""},{"$f":"IF('1. Order'!K384=\"\",\"\",'1. Order'!K384)","v":""},{"$f":"IF('1. Order'!M384=\"\",\"\",'1. Order'!M384)","v":""},null,null,{"$f":"'1. Order'!AW384","v":0},{"$f":"IF('1. Order'!AE384=\"\",\"\",'1. Order'!AE384)","v":""}]
[{"$f":"IF('1. Order'!B385=\"\",\"\",'1. Order'!B385)","v":""},{"$f":"IF('1. Order'!I385=\"\",\"\",'1. Order'!I385)","v":""},{"$f":"IF('1. Order'!J385=\"\",\"\",'1. Order'!J385)","v":""},{"$f":"IF('1. Order'!K385=\"\",\"\",'1. Order'!K385)","v":""},{"$f":"IF('1. Order'!M385=\"\",\"\",'1. Order'!M385)","v":""},null,null,{"$f":"'1. Order'!AW385","v":0},{"$f":"IF('1. Order'!AE385=\"\",\"\",'1. Order'!AE385)","v":""}]
[{"$f":"IF('1. Order'!B386=\"\",\"\",'1. Order'!B386)","v":""},{"$f":"IF('1. Order'!I386=\"\",\"\",'1. Order'!I386)","v":""},{"$f":"IF('1. Order'!J386=\"\",\"\",'1. Order'!J386)","v":""},{"$f":"IF('1. Order'!K386=\"\",\"\",'1. Order'!K386)","v":""},{"$f":"IF('1. Order'!M386=\"\",\"\",'1. Order'!M386)","v":""},null,null,{"$f":"'1. Order'!AW386","v":0},{"$f":"IF('1. Order'!AE386=\"\",\"\",'1. Order'!AE386)","v":""}]
[{"$f":"IF('1. Order'!B387=\"\",\"\",'1. Order'!B387)","v":""},{"$f":"IF('1. Order'!I387=\"\",\"\",'1. Order'!I387)","v":""},{"$f":"IF('1. Order'!J387=\"\",\"\",'1. Order'!J387)","v":""},{"$f":"IF('1. Order'!K387=\"\",\"\",'1. Order'!K387)","v":""},{"$f":"IF('1. Order'!M387=\"\",\"\",'1. Order'!M387)","v":""},null,null,{"$f":"'1. Order'!AW387","v":0},{"$f":"IF('1. Order'!AE387=\"\",\"\",'1. Order'!AE387)","v":""}]
[{"$f":"IF('1. Order'!B388=\"\",\"\",'1. Order'!B388)","v":""},{"$f":"IF('1. Order'!I388=\"\",\"\",'1. Order'!I388)","v":""},{"$f":"IF('1. Order'!J388=\"\",\"\",'1. Order'!J388)","v":""},{"$f":"IF('1. Order'!K388=\"\",\"\",'1. Order'!K388)","v":""},{"$f":"IF('1. Order'!M388=\"\",\"\",'1. Order'!M388)","v":""},null,null,{"$f":"'1. Order'!AW388","v":0},{"$f":"IF('1. Order'!AE388=\"\",\"\",'1. Order'!AE388)","v":""}]
[{"$f":"IF('1. Order'!B389=\"\",\"\",'1. Order'!B389)","v":""},{"$f":"IF('1. Order'!I389=\"\",\"\",'1. Order'!I389)","v":""},{"$f":"IF('1. Order'!J389=\"\",\"\",'1. Order'!J389)","v":""},{"$f":"IF('1. Order'!K389=\"\",\"\",'1. Order'!K389)","v":""},{"$f":"IF('1. Order'!M389=\"\",\"\",'1. Order'!M389)","v":""},null,null,{"$f":"'1. Order'!AW389","v":0},{"$f":"IF('1. Order'!AE389=\"\",\"\",'1. Order'!AE389)","v":""}]
[{"$f":"IF('1. Order'!B390=\"\",\"\",'1. Order'!B390)","v":""},{"$f":"IF('1. Order'!I390=\"\",\"\",'1. Order'!I390)","v":""},{"$f":"IF('1. Order'!J390=\"\",\"\",'1. Order'!J390)","v":""},{"$f":"IF('1. Order'!K390=\"\",\"\",'1. Order'!K390)","v":""},{"$f":"IF('1. Order'!M390=\"\",\"\",'1. Order'!M390)","v":""},null,null,{"$f":"'1. Order'!AW390","v":0},{"$f":"IF('1. Order'!AE390=\"\",\"\",'1. Order'!AE390)","v":""}]
[{"$f":"IF('1. Order'!B391=\"\",\"\",'1. Order'!B391)","v":""},{"$f":"IF('1. Order'!I391=\"\",\"\",'1. Order'!I391)","v":""},{"$f":"IF('1. Order'!J391=\"\",\"\",'1. Order'!J391)","v":""},{"$f":"IF('1. Order'!K391=\"\",\"\",'1. Order'!K391)","v":""},{"$f":"IF('1. Order'!M391=\"\",\"\",'1. Order'!M391)","v":""},null,null,{"$f":"'1. Order'!AW391","v":0},{"$f":"IF('1. Order'!AE391=\"\",\"\",'1. Order'!AE391)","v":""}]
[{"$f":"IF('1. Order'!B392=\"\",\"\",'1. Order'!B392)","v":""},{"$f":"IF('1. Order'!I392=\"\",\"\",'1. Order'!I392)","v":""},{"$f":"IF('1. Order'!J392=\"\",\"\",'1. Order'!J392)","v":""},{"$f":"IF('1. Order'!K392=\"\",\"\",'1. Order'!K392)","v":""},{"$f":"IF('1. Order'!M392=\"\",\"\",'1. Order'!M392)","v":""},null,null,{"$f":"'1. Order'!AW392","v":0},{"$f":"IF('1. Order'!AE392=\"\",\"\",'1. Order'!AE392)","v":""}]
[{"$f":"IF('1. Order'!B393=\"\",\"\",'1. Order'!B393)","v":""},{"$f":"IF('1. Order'!I393=\"\",\"\",'1. Order'!I393)","v":""},{"$f":"IF('1. Order'!J393=\"\",\"\",'1. Order'!J393)","v":""},{"$f":"IF('1. Order'!K393=\"\",\"\",'1. Order'!K393)","v":""},{"$f":"IF('1. Order'!M393=\"\",\"\",'1. Order'!M393)","v":""},null,null,{"$f":"'1. Order'!AW393","v":0},{"$f":"IF('1. Order'!AE393=\"\",\"\",'1. Order'!AE393)","v":""}]
[{"$f":"IF('1. Order'!B394=\"\",\"\",'1. Order'!B394)","v":""},{"$f":"IF('1. Order'!I394=\"\",\"\",'1. Order'!I394)","v":""},{"$f":"IF('1. Order'!J394=\"\",\"\",'1. Order'!J394)","v":""},{"$f":"IF('1. Order'!K394=\"\",\"\",'1. Order'!K394)","v":""},{"$f":"IF('1. Order'!M394=\"\",\"\",'1. Order'!M394)","v":""},null,null,{"$f":"'1. Order'!AW394","v":0},{"$f":"IF('1. Order'!AE394=\"\",\"\",'1. Order'!AE394)","v":""}]
[{"$f":"IF('1. Order'!B395=\"\",\"\",'1. Order'!B395)","v":""},{"$f":"IF('1. Order'!I395=\"\",\"\",'1. Order'!I395)","v":""},{"$f":"IF('1. Order'!J395=\"\",\"\",'1. Order'!J395)","v":""},{"$f":"IF('1. Order'!K395=\"\",\"\",'1. Order'!K395)","v":""},{"$f":"IF('1. Order'!M395=\"\",\"\",'1. Order'!M395)","v":""},null,null,{"$f":"'1. Order'!AW395","v":0},{"$f":"IF('1. Order'!AE395=\"\",\"\",'1. Order'!AE395)","v":""}]
[{"$f":"IF('1. Order'!B396=\"\",\"\",'1. Order'!B396)","v":""},{"$f":"IF('1. Order'!I396=\"\",\"\",'1. Order'!I396)","v":""},{"$f":"IF('1. Order'!J396=\"\",\"\",'1. Order'!J396)","v":""},{"$f":"IF('1. Order'!K396=\"\",\"\",'1. Order'!K396)","v":""},{"$f":"IF('1. Order'!M396=\"\",\"\",'1. Order'!M396)","v":""},null,null,{"$f":"'1. Order'!AW396","v":0},{"$f":"IF('1. Order'!AE396=\"\",\"\",'1. Order'!AE396)","v":""}]
[{"$f":"IF('1. Order'!B397=\"\",\"\",'1. Order'!B397)","v":""},{"$f":"IF('1. Order'!I397=\"\",\"\",'1. Order'!I397)","v":""},{"$f":"IF('1. Order'!J397=\"\",\"\",'1. Order'!J397)","v":""},{"$f":"IF('1. Order'!K397=\"\",\"\",'1. Order'!K397)","v":""},{"$f":"IF('1. Order'!M397=\"\",\"\",'1. Order'!M397)","v":""},null,null,{"$f":"'1. Order'!AW397","v":0},{"$f":"IF('1. Order'!AE397=\"\",\"\",'1. Order'!AE397)","v":""}]
[{"$f":"IF('1. Order'!B398=\"\",\"\",'1. Order'!B398)","v":""},{"$f":"IF('1. Order'!I398=\"\",\"\",'1. Order'!I398)","v":""},{"$f":"IF('1. Order'!J398=\"\",\"\",'1. Order'!J398)","v":""},{"$f":"IF('1. Order'!K398=\"\",\"\",'1. Order'!K398)","v":""},{"$f":"IF('1. Order'!M398=\"\",\"\",'1. Order'!M398)","v":""},null,null,{"$f":"'1. Order'!AW398","v":0},{"$f":"IF('1. Order'!AE398=\"\",\"\",'1. Order'!AE398)","v":""}]
[{"$f":"IF('1. Order'!B399=\"\",\"\",'1. Order'!B399)","v":""},{"$f":"IF('1. Order'!I399=\"\",\"\",'1. Order'!I399)","v":""},{"$f":"IF('1. Order'!J399=\"\",\"\",'1. Order'!J399)","v":""},{"$f":"IF('1. Order'!K399=\"\",\"\",'1. Order'!K399)","v":""},{"$f":"IF('1. Order'!M399=\"\",\"\",'1. Order'!M399)","v":""},null,null,{"$f":"'1. Order'!AW399","v":0},{"$f":"IF('1. Order'!AE399=\"\",\"\",'1. Order'!AE399)","v":""}]
[{"$f":"IF('1. Order'!B400=\"\",\"\",'1. Order'!B400)","v":""},{"$f":"IF('1. Order'!I400=\"\",\"\",'1. Order'!I400)","v":""},{"$f":"IF('1. Order'!J400=\"\",\"\",'1. Order'!J400)","v":""},{"$f":"IF('1. Order'!K400=\"\",\"\",'1. Order'!K400)","v":""},{"$f":"IF('1. Order'!M400=\"\",\"\",'1. Order'!M400)","v":""},null,null,{"$f":"'1. Order'!AW400","v":0},{"$f":"IF('1. Order'!AE400=\"\",\"\",'1. Order'!AE400)","v":""}]
[{"$f":"IF('1. Order'!B401=\"\",\"\",'1. Order'!B401)","v":""},{"$f":"IF('1. Order'!I401=\"\",\"\",'1. Order'!I401)","v":""},{"$f":"IF('1. Order'!J401=\"\",\"\",'1. Order'!J401)","v":""},{"$f":"IF('1. Order'!K401=\"\",\"\",'1. Order'!K401)","v":""},{"$f":"IF('1. Order'!M401=\"\",\"\",'1. Order'!M401)","v":""},null,null,{"$f":"'1. Order'!AW401","v":0},{"$f":"IF('1. Order'!AE401=\"\",\"\",'1. Order'!AE401)","v":""}]
[{"$f":"IF('1. Order'!B402=\"\",\"\",'1. Order'!B402)","v":""},{"$f":"IF('1. Order'!I402=\"\",\"\",'1. Order'!I402)","v":""},{"$f":"IF('1. Order'!J402=\"\",\"\",'1. Order'!J402)","v":""},{"$f":"IF('1. Order'!K402=\"\",\"\",'1. Order'!K402)","v":""},{"$f":"IF('1. Order'!M402=\"\",\"\",'1. Order'!M402)","v":""},null,null,{"$f":"'1. Order'!AW402","v":0},{"$f":"IF('1. Order'!AE402=\"\",\"\",'1. Order'!AE402)","v":""}]
[{"$f":"IF('1. Order'!B403=\"\",\"\",'1. Order'!B403)","v":""},{"$f":"IF('1. Order'!I403=\"\",\"\",'1. Order'!I403)","v":""},{"$f":"IF('1. Order'!J403=\"\",\"\",'1. Order'!J403)","v":""},{"$f":"IF('1. Order'!K403=\"\",\"\",'1. Order'!K403)","v":""},{"$f":"IF('1. Order'!M403=\"\",\"\",'1. Order'!M403)","v":""},null,null,{"$f":"'1. Order'!AW403","v":0},{"$f":"IF('1. Order'!AE403=\"\",\"\",'1. Order'!AE403)","v":""}]
[{"$f":"IF('1. Order'!B404=\"\",\"\",'1. Order'!B404)","v":""},{"$f":"IF('1. Order'!I404=\"\",\"\",'1. Order'!I404)","v":""},{"$f":"IF('1. Order'!J404=\"\",\"\",'1. Order'!J404)","v":""},{"$f":"IF('1. Order'!K404=\"\",\"\",'1. Order'!K404)","v":""},{"$f":"IF('1. Order'!M404=\"\",\"\",'1. Order'!M404)","v":""},null,null,{"$f":"'1. Order'!AW404","v":0},{"$f":"IF('1. Order'!AE404=\"\",\"\",'1. Order'!AE404)","v":""}]
[{"$f":"IF('1. Order'!B405=\"\",\"\",'1. Order'!B405)","v":""},{"$f":"IF('1. Order'!I405=\"\",\"\",'1. Order'!I405)","v":""},{"$f":"IF('1. Order'!J405=\"\",\"\",'1. Order'!J405)","v":""},{"$f":"IF('1. Order'!K405=\"\",\"\",'1. Order'!K405)","v":""},{"$f":"IF('1. Order'!M405=\"\",\"\",'1. Order'!M405)","v":""},null,null,{"$f":"'1. Order'!AW405","v":0},{"$f":"IF('1. Order'!AE405=\"\",\"\",'1. Order'!AE405)","v":""}]
[{"$f":"IF('1. Order'!B406=\"\",\"\",'1. Order'!B406)","v":""},{"$f":"IF('1. Order'!I406=\"\",\"\",'1. Order'!I406)","v":""},{"$f":"IF('1. Order'!J406=\"\",\"\",'1. Order'!J406)","v":""},{"$f":"IF('1. Order'!K406=\"\",\"\",'1. Order'!K406)","v":""},{"$f":"IF('1. Order'!M406=\"\",\"\",'1. Order'!M406)","v":""},null,null,{"$f":"'1. Order'!AW406","v":0},{"$f":"IF('1. Order'!AE406=\"\",\"\",'1. Order'!AE406)","v":""}]
[{"$f":"IF('1. Order'!B407=\"\",\"\",'1. Order'!B407)","v":""},{"$f":"IF('1. Order'!I407=\"\",\"\",'1. Order'!I407)","v":""},{"$f":"IF('1. Order'!J407=\"\",\"\",'1. Order'!J407)","v":""},{"$f":"IF('1. Order'!K407=\"\",\"\",'1. Order'!K407)","v":""},{"$f":"IF('1. Order'!M407=\"\",\"\",'1. Order'!M407)","v":""},null,null,{"$f":"'1. Order'!AW407","v":0},{"$f":"IF('1. Order'!AE407=\"\",\"\",'1. Order'!AE407)","v":""}]
[{"$f":"IF('1. Order'!B408=\"\",\"\",'1. Order'!B408)","v":""},{"$f":"IF('1. Order'!I408=\"\",\"\",'1. Order'!I408)","v":""},{"$f":"IF('1. Order'!J408=\"\",\"\",'1. Order'!J408)","v":""},{"$f":"IF('1. Order'!K408=\"\",\"\",'1. Order'!K408)","v":""},{"$f":"IF('1. Order'!M408=\"\",\"\",'1. Order'!M408)","v":""},null,null,{"$f":"'1. Order'!AW408","v":0},{"$f":"IF('1. Order'!AE408=\"\",\"\",'1. Order'!AE408)","v":""}]
[{"$f":"IF('1. Order'!B409=\"\",\"\",'1. Order'!B409)","v":""},{"$f":"IF('1. Order'!I409=\"\",\"\",'1. Order'!I409)","v":""},{"$f":"IF('1. Order'!J409=\"\",\"\",'1. Order'!J409)","v":""},{"$f":"IF('1. Order'!K409=\"\",\"\",'1. Order'!K409)","v":""},{"$f":"IF('1. Order'!M409=\"\",\"\",'1. Order'!M409)","v":""},null,null,{"$f":"'1. Order'!AW409","v":0},{"$f":"IF('1. Order'!AE409=\"\",\"\",'1. Order'!AE409)","v":""}]
[{"$f":"IF('1. Order'!B410=\"\",\"\",'1. Order'!B410)","v":""},{"$f":"IF('1. Order'!I410=\"\",\"\",'1. Order'!I410)","v":""},{"$f":"IF('1. Order'!J410=\"\",\"\",'1. Order'!J410)","v":""},{"$f":"IF('1. Order'!K410=\"\",\"\",'1. Order'!K410)","v":""},{"$f":"IF('1. Order'!M410=\"\",\"\",'1. Order'!M410)","v":""},null,null,{"$f":"'1. Order'!AW410","v":0},{"$f":"IF('1. Order'!AE410=\"\",\"\",'1. Order'!AE410)","v":""}]
[{"$f":"IF('1. Order'!B411=\"\",\"\",'1. Order'!B411)","v":""},{"$f":"IF('1. Order'!I411=\"\",\"\",'1. Order'!I411)","v":""},{"$f":"IF('1. Order'!J411=\"\",\"\",'1. Order'!J411)","v":""},{"$f":"IF('1. Order'!K411=\"\",\"\",'1. Order'!K411)","v":""},{"$f":"IF('1. Order'!M411=\"\",\"\",'1. Order'!M411)","v":""},null,null,{"$f":"'1. Order'!AW411","v":0},{"$f":"IF('1. Order'!AE411=\"\",\"\",'1. Order'!AE411)","v":""}]
[{"$f":"IF('1. Order'!B412=\"\",\"\",'1. Order'!B412)","v":""},{"$f":"IF('1. Order'!I412=\"\",\"\",'1. Order'!I412)","v":""},{"$f":"IF('1. Order'!J412=\"\",\"\",'1. Order'!J412)","v":""},{"$f":"IF('1. Order'!K412=\"\",\"\",'1. Order'!K412)","v":""},{"$f":"IF('1. Order'!M412=\"\",\"\",'1. Order'!M412)","v":""},null,null,{"$f":"'1. Order'!AW412","v":0},{"$f":"IF('1. Order'!AE412=\"\",\"\",'1. Order'!AE412)","v":""}]
[{"$f":"IF('1. Order'!B413=\"\",\"\",'1. Order'!B413)","v":""},{"$f":"IF('1. Order'!I413=\"\",\"\",'1. Order'!I413)","v":""},{"$f":"IF('1. Order'!J413=\"\",\"\",'1. Order'!J413)","v":""},{"$f":"IF('1. Order'!K413=\"\",\"\",'1. Order'!K413)","v":""},{"$f":"IF('1. Order'!M413=\"\",\"\",'1. Order'!M413)","v":""},null,null,{"$f":"'1. Order'!AW413","v":0},{"$f":"IF('1. Order'!AE413=\"\",\"\",'1. Order'!AE413)","v":""}]
[{"$f":"IF('1. Order'!B414=\"\",\"\",'1. Order'!B414)","v":""},{"$f":"IF('1. Order'!I414=\"\",\"\",'1. Order'!I414)","v":""},{"$f":"IF('1. Order'!J414=\"\",\"\",'1. Order'!J414)","v":""},{"$f":"IF('1. Order'!K414=\"\",\"\",'1. Order'!K414)","v":""},{"$f":"IF('1. Order'!M414=\"\",\"\",'1. Order'!M414)","v":""},null,null,{"$f":"'1. Order'!AW414","v":0},{"$f":"IF('1. Order'!AE414=\"\",\"\",'1. Order'!AE414)","v":""}]
[{"$f":"IF('1. Order'!B415=\"\",\"\",'1. Order'!B415)","v":""},{"$f":"IF('1. Order'!I415=\"\",\"\",'1. Order'!I415)","v":""},{"$f":"IF('1. Order'!J415=\"\",\"\",'1. Order'!J415)","v":""},{"$f":"IF('1. Order'!K415=\"\",\"\",'1. Order'!K415)","v":""},{"$f":"IF('1. Order'!M415=\"\",\"\",'1. Order'!M415)","v":""},null,null,{"$f":"'1. Order'!AW415","v":0},{"$f":"IF('1. Order'!AE415=\"\",\"\",'1. Order'!AE415)","v":""}]
[{"$f":"IF('1. Order'!B416=\"\",\"\",'1. Order'!B416)","v":""},{"$f":"IF('1. Order'!I416=\"\",\"\",'1. Order'!I416)","v":""},{"$f":"IF('1. Order'!J416=\"\",\"\",'1. Order'!J416)","v":""},{"$f":"IF('1. Order'!K416=\"\",\"\",'1. Order'!K416)","v":""},{"$f":"IF('1. Order'!M416=\"\",\"\",'1. Order'!M416)","v":""},null,null,{"$f":"'1. Order'!AW416","v":0},{"$f":"IF('1. Order'!AE416=\"\",\"\",'1. Order'!AE416)","v":""}]
[{"$f":"IF('1. Order'!B417=\"\",\"\",'1. Order'!B417)","v":""},{"$f":"IF('1. Order'!I417=\"\",\"\",'1. Order'!I417)","v":""},{"$f":"IF('1. Order'!J417=\"\",\"\",'1. Order'!J417)","v":""},{"$f":"IF('1. Order'!K417=\"\",\"\",'1. Order'!K417)","v":""},{"$f":"IF('1. Order'!M417=\"\",\"\",'1. Order'!M417)","v":""},null,null,{"$f":"'1. Order'!AW417","v":0},{"$f":"IF('1. Order'!AE417=\"\",\"\",'1. Order'!AE417)","v":""}]
[{"$f":"IF('1. Order'!B418=\"\",\"\",'1. Order'!B418)","v":""},{"$f":"IF('1. Order'!I418=\"\",\"\",'1. Order'!I418)","v":""},{"$f":"IF('1. Order'!J418=\"\",\"\",'1. Order'!J418)","v":""},{"$f":"IF('1. Order'!K418=\"\",\"\",'1. Order'!K418)","v":""},{"$f":"IF('1. Order'!M418=\"\",\"\",'1. Order'!M418)","v":""},null,null,{"$f":"'1. Order'!AW418","v":0},{"$f":"IF('1. Order'!AE418=\"\",\"\",'1. Order'!AE418)","v":""}]
[{"$f":"IF('1. Order'!B419=\"\",\"\",'1. Order'!B419)","v":""},{"$f":"IF('1. Order'!I419=\"\",\"\",'1. Order'!I419)","v":""},{"$f":"IF('1. Order'!J419=\"\",\"\",'1. Order'!J419)","v":""},{"$f":"IF('1. Order'!K419=\"\",\"\",'1. Order'!K419)","v":""},{"$f":"IF('1. Order'!M419=\"\",\"\",'1. Order'!M419)","v":""},null,null,{"$f":"'1. Order'!AW419","v":0},{"$f":"IF('1. Order'!AE419=\"\",\"\",'1. Order'!AE419)","v":""}]
[{"$f":"IF('1. Order'!B420=\"\",\"\",'1. Order'!B420)","v":""},{"$f":"IF('1. Order'!I420=\"\",\"\",'1. Order'!I420)","v":""},{"$f":"IF('1. Order'!J420=\"\",\"\",'1. Order'!J420)","v":""},{"$f":"IF('1. Order'!K420=\"\",\"\",'1. Order'!K420)","v":""},{"$f":"IF('1. Order'!M420=\"\",\"\",'1. Order'!M420)","v":""},null,null,{"$f":"'1. Order'!AW420","v":0},{"$f":"IF('1. Order'!AE420=\"\",\"\",'1. Order'!AE420)","v":""}]
[{"$f":"IF('1. Order'!B421=\"\",\"\",'1. Order'!B421)","v":""},{"$f":"IF('1. Order'!I421=\"\",\"\",'1. Order'!I421)","v":""},{"$f":"IF('1. Order'!J421=\"\",\"\",'1. Order'!J421)","v":""},{"$f":"IF('1. Order'!K421=\"\",\"\",'1. Order'!K421)","v":""},{"$f":"IF('1. Order'!M421=\"\",\"\",'1. Order'!M421)","v":""},null,null,{"$f":"'1. Order'!AW421","v":0},{"$f":"IF('1. Order'!AE421=\"\",\"\",'1. Order'!AE421)","v":""}]
[{"$f":"IF('1. Order'!B422=\"\",\"\",'1. Order'!B422)","v":""},{"$f":"IF('1. Order'!I422=\"\",\"\",'1. Order'!I422)","v":""},{"$f":"IF('1. Order'!J422=\"\",\"\",'1. Order'!J422)","v":""},{"$f":"IF('1. Order'!K422=\"\",\"\",'1. Order'!K422)","v":""},{"$f":"IF('1. Order'!M422=\"\",\"\",'1. Order'!M422)","v":""},null,null,{"$f":"'1. Order'!AW422","v":0},{"$f":"IF('1. Order'!AE422=\"\",\"\",'1. Order'!AE422)","v":""}]
[{"$f":"IF('1. Order'!B423=\"\",\"\",'1. Order'!B423)","v":""},{"$f":"IF('1. Order'!I423=\"\",\"\",'1. Order'!I423)","v":""},{"$f":"IF('1. Order'!J423=\"\",\"\",'1. Order'!J423)","v":""},{"$f":"IF('1. Order'!K423=\"\",\"\",'1. Order'!K423)","v":""},{"$f":"IF('1. Order'!M423=\"\",\"\",'1. Order'!M423)","v":""},null,null,{"$f":"'1. Order'!AW423","v":0},{"$f":"IF('1. Order'!AE423=\"\",\"\",'1. Order'!AE423)","v":""}]
[{"$f":"IF('1. Order'!B424=\"\",\"\",'1. Order'!B424)","v":""},{"$f":"IF('1. Order'!I424=\"\",\"\",'1. Order'!I424)","v":""},{"$f":"IF('1. Order'!J424=\"\",\"\",'1. Order'!J424)","v":""},{"$f":"IF('1. Order'!K424=\"\",\"\",'1. Order'!K424)","v":""},{"$f":"IF('1. Order'!M424=\"\",\"\",'1. Order'!M424)","v":""},null,null,{"$f":"'1. Order'!AW424","v":0},{"$f":"IF('1. Order'!AE424=\"\",\"\",'1. Order'!AE424)","v":""}]
[{"$f":"IF('1. Order'!B425=\"\",\"\",'1. Order'!B425)","v":""},{"$f":"IF('1. Order'!I425=\"\",\"\",'1. Order'!I425)","v":""},{"$f":"IF('1. Order'!J425=\"\",\"\",'1. Order'!J425)","v":""},{"$f":"IF('1. Order'!K425=\"\",\"\",'1. Order'!K425)","v":""},{"$f":"IF('1. Order'!M425=\"\",\"\",'1. Order'!M425)","v":""},null,null,{"$f":"'1. Order'!AW425","v":0},{"$f":"IF('1. Order'!AE425=\"\",\"\",'1. Order'!AE425)","v":""}]
[{"$f":"IF('1. Order'!B426=\"\",\"\",'1. Order'!B426)","v":""},{"$f":"IF('1. Order'!I426=\"\",\"\",'1. Order'!I426)","v":""},{"$f":"IF('1. Order'!J426=\"\",\"\",'1. Order'!J426)","v":""},{"$f":"IF('1. Order'!K426=\"\",\"\",'1. Order'!K426)","v":""},{"$f":"IF('1. Order'!M426=\"\",\"\",'1. Order'!M426)","v":""},null,null,{"$f":"'1. Order'!AW426","v":0},{"$f":"IF('1. Order'!AE426=\"\",\"\",'1. Order'!AE426)","v":""}]
[{"$f":"IF('1. Order'!B427=\"\",\"\",'1. Order'!B427)","v":""},{"$f":"IF('1. Order'!I427=\"\",\"\",'1. Order'!I427)","v":""},{"$f":"IF('1. Order'!J427=\"\",\"\",'1. Order'!J427)","v":""},{"$f":"IF('1. Order'!K427=\"\",\"\",'1. Order'!K427)","v":""},{"$f":"IF('1. Order'!M427=\"\",\"\",'1. Order'!M427)","v":""},null,null,{"$f":"'1. Order'!AW427","v":0},{"$f":"IF('1. Order'!AE427=\"\",\"\",'1. Order'!AE427)","v":""}]
[{"$f":"IF('1. Order'!B428=\"\",\"\",'1. Order'!B428)","v":""},{"$f":"IF('1. Order'!I428=\"\",\"\",'1. Order'!I428)","v":""},{"$f":"IF('1. Order'!J428=\"\",\"\",'1. Order'!J428)","v":""},{"$f":"IF('1. Order'!K428=\"\",\"\",'1. Order'!K428)","v":""},{"$f":"IF('1. Order'!M428=\"\",\"\",'1. Order'!M428)","v":""},null,null,{"$f":"'1. Order'!AW428","v":0},{"$f":"IF('1. Order'!AE428=\"\",\"\",'1. Order'!AE428)","v":""}]
[{"$f":"IF('1. Order'!B429=\"\",\"\",'1. Order'!B429)","v":""},{"$f":"IF('1. Order'!I429=\"\",\"\",'1. Order'!I429)","v":""},{"$f":"IF('1. Order'!J429=\"\",\"\",'1. Order'!J429)","v":""},{"$f":"IF('1. Order'!K429=\"\",\"\",'1. Order'!K429)","v":""},{"$f":"IF('1. Order'!M429=\"\",\"\",'1. Order'!M429)","v":""},null,null,{"$f":"'1. Order'!AW429","v":0},{"$f":"IF('1. Order'!AE429=\"\",\"\",'1. Order'!AE429)","v":""}]
[{"$f":"IF('1. Order'!B430=\"\",\"\",'1. Order'!B430)","v":""},{"$f":"IF('1. Order'!I430=\"\",\"\",'1. Order'!I430)","v":""},{"$f":"IF('1. Order'!J430=\"\",\"\",'1. Order'!J430)","v":""},{"$f":"IF('1. Order'!K430=\"\",\"\",'1. Order'!K430)","v":""},{"$f":"IF('1. Order'!M430=\"\",\"\",'1. Order'!M430)","v":""},null,null,{"$f":"'1. Order'!AW430","v":0},{"$f":"IF('1. Order'!AE430=\"\",\"\",'1. Order'!AE430)","v":""}]
[{"$f":"IF('1. Order'!B431=\"\",\"\",'1. Order'!B431)","v":""},{"$f":"IF('1. Order'!I431=\"\",\"\",'1. Order'!I431)","v":""},{"$f":"IF('1. Order'!J431=\"\",\"\",'1. Order'!J431)","v":""},{"$f":"IF('1. Order'!K431=\"\",\"\",'1. Order'!K431)","v":""},{"$f":"IF('1. Order'!M431=\"\",\"\",'1. Order'!M431)","v":""},null,null,{"$f":"'1. Order'!AW431","v":0},{"$f":"IF('1. Order'!AE431=\"\",\"\",'1. Order'!AE431)","v":""}]
[{"$f":"IF('1. Order'!B432=\"\",\"\",'1. Order'!B432)","v":""},{"$f":"IF('1. Order'!I432=\"\",\"\",'1. Order'!I432)","v":""},{"$f":"IF('1. Order'!J432=\"\",\"\",'1. Order'!J432)","v":""},{"$f":"IF('1. Order'!K432=\"\",\"\",'1. Order'!K432)","v":""},{"$f":"IF('1. Order'!M432=\"\",\"\",'1. Order'!M432)","v":""},null,null,{"$f":"'1. Order'!AW432","v":0},{"$f":"IF('1. Order'!AE432=\"\",\"\",'1. Order'!AE432)","v":""}]
[{"$f":"IF('1. Order'!B433=\"\",\"\",'1. Order'!B433)","v":""},{"$f":"IF('1. Order'!I433=\"\",\"\",'1. Order'!I433)","v":""},{"$f":"IF('1. Order'!J433=\"\",\"\",'1. Order'!J433)","v":""},{"$f":"IF('1. Order'!K433=\"\",\"\",'1. Order'!K433)","v":""},{"$f":"IF('1. Order'!M433=\"\",\"\",'1. Order'!M433)","v":""},null,null,{"$f":"'1. Order'!AW433","v":0},{"$f":"IF('1. Order'!AE433=\"\",\"\",'1. Order'!AE433)","v":""}]
[{"$f":"IF('1. Order'!B434=\"\",\"\",'1. Order'!B434)","v":""},{"$f":"IF('1. Order'!I434=\"\",\"\",'1. Order'!I434)","v":""},{"$f":"IF('1. Order'!J434=\"\",\"\",'1. Order'!J434)","v":""},{"$f":"IF('1. Order'!K434=\"\",\"\",'1. Order'!K434)","v":""},{"$f":"IF('1. Order'!M434=\"\",\"\",'1. Order'!M434)","v":""},null,null,{"$f":"'1. Order'!AW434","v":0},{"$f":"IF('1. Order'!AE434=\"\",\"\",'1. Order'!AE434)","v":""}]
[{"$f":"IF('1. Order'!B435=\"\",\"\",'1. Order'!B435)","v":""},{"$f":"IF('1. Order'!I435=\"\",\"\",'1. Order'!I435)","v":""},{"$f":"IF('1. Order'!J435=\"\",\"\",'1. Order'!J435)","v":""},{"$f":"IF('1. Order'!K435=\"\",\"\",'1. Order'!K435)","v":""},{"$f":"IF('1. Order'!M435=\"\",\"\",'1. Order'!M435)","v":""},null,null,{"$f":"'1. Order'!AW435","v":0},{"$f":"IF('1. Order'!AE435=\"\",\"\",'1. Order'!AE435)","v":""}]
[{"$f":"IF('1. Order'!B436=\"\",\"\",'1. Order'!B436)","v":""},{"$f":"IF('1. Order'!I436=\"\",\"\",'1. Order'!I436)","v":""},{"$f":"IF('1. Order'!J436=\"\",\"\",'1. Order'!J436)","v":""},{"$f":"IF('1. Order'!K436=\"\",\"\",'1. Order'!K436)","v":""},{"$f":"IF('1. Order'!M436=\"\",\"\",'1. Order'!M436)","v":""},null,null,{"$f":"'1. Order'!AW436","v":0},{"$f":"IF('1. Order'!AE436=\"\",\"\",'1. Order'!AE436)","v":""}]
[{"$f":"IF('1. Order'!B437=\"\",\"\",'1. Order'!B437)","v":""},{"$f":"IF('1. Order'!I437=\"\",\"\",'1. Order'!I437)","v":""},{"$f":"IF('1. Order'!J437=\"\",\"\",'1. Order'!J437)","v":""},{"$f":"IF('1. Order'!K437=\"\",\"\",'1. Order'!K437)","v":""},{"$f":"IF('1. Order'!M437=\"\",\"\",'1. Order'!M437)","v":""},null,null,{"$f":"'1. Order'!AW437","v":0},{"$f":"IF('1. Order'!AE437=\"\",\"\",'1. Order'!AE437)","v":""}]
[{"$f":"IF('1. Order'!B438=\"\",\"\",'1. Order'!B438)","v":""},{"$f":"IF('1. Order'!I438=\"\",\"\",'1. Order'!I438)","v":""},{"$f":"IF('1. Order'!J438=\"\",\"\",'1. Order'!J438)","v":""},{"$f":"IF('1. Order'!K438=\"\",\"\",'1. Order'!K438)","v":""},{"$f":"IF('1. Order'!M438=\"\",\"\",'1. Order'!M438)","v":""},null,null,{"$f":"'1. Order'!AW438","v":0},{"$f":"IF('1. Order'!AE438=\"\",\"\",'1. Order'!AE438)","v":""}]
[{"$f":"IF('1. Order'!B439=\"\",\"\",'1. Order'!B439)","v":""},{"$f":"IF('1. Order'!I439=\"\",\"\",'1. Order'!I439)","v":""},{"$f":"IF('1. Order'!J439=\"\",\"\",'1. Order'!J439)","v":""},{"$f":"IF('1. Order'!K439=\"\",\"\",'1. Order'!K439)","v":""},{"$f":"IF('1. Order'!M439=\"\",\"\",'1. Order'!M439)","v":""},null,null,{"$f":"'1. Order'!AW439","v":0},{"$f":"IF('1. Order'!AE439=\"\",\"\",'1. Order'!AE439)","v":""}]
[{"$f":"IF('1. Order'!B440=\"\",\"\",'1. Order'!B440)","v":""},{"$f":"IF('1. Order'!I440=\"\",\"\",'1. Order'!I440)","v":""},{"$f":"IF('1. Order'!J440=\"\",\"\",'1. Order'!J440)","v":""},{"$f":"IF('1. Order'!K440=\"\",\"\",'1. Order'!K440)","v":""},{"$f":"IF('1. Order'!M440=\"\",\"\",'1. Order'!M440)","v":""},null,null,{"$f":"'1. Order'!AW440","v":0},{"$f":"IF('1. Order'!AE440=\"\",\"\",'1. Order'!AE440)","v":""}]
[{"$f":"IF('1. Order'!B441=\"\",\"\",'1. Order'!B441)","v":""},{"$f":"IF('1. Order'!I441=\"\",\"\",'1. Order'!I441)","v":""},{"$f":"IF('1. Order'!J441=\"\",\"\",'1. Order'!J441)","v":""},{"$f":"IF('1. Order'!K441=\"\",\"\",'1. Order'!K441)","v":""},{"$f":"IF('1. Order'!M441=\"\",\"\",'1. Order'!M441)","v":""},null,null,{"$f":"'1. Order'!AW441","v":0},{"$f":"IF('1. Order'!AE441=\"\",\"\",'1. Order'!AE441)","v":""}]
[{"$f":"IF('1. Order'!B442=\"\",\"\",'1. Order'!B442)","v":""},{"$f":"IF('1. Order'!I442=\"\",\"\",'1. Order'!I442)","v":""},{"$f":"IF('1. Order'!J442=\"\",\"\",'1. Order'!J442)","v":""},{"$f":"IF('1. Order'!K442=\"\",\"\",'1. Order'!K442)","v":""},{"$f":"IF('1. Order'!M442=\"\",\"\",'1. Order'!M442)","v":""},null,null,{"$f":"'1. Order'!AW442","v":0},{"$f":"IF('1. Order'!AE442=\"\",\"\",'1. Order'!AE442)","v":""}]
[{"$f":"IF('1. Order'!B443=\"\",\"\",'1. Order'!B443)","v":""},{"$f":"IF('1. Order'!I443=\"\",\"\",'1. Order'!I443)","v":""},{"$f":"IF('1. Order'!J443=\"\",\"\",'1. Order'!J443)","v":""},{"$f":"IF('1. Order'!K443=\"\",\"\",'1. Order'!K443)","v":""},{"$f":"IF('1. Order'!M443=\"\",\"\",'1. Order'!M443)","v":""},null,null,{"$f":"'1. Order'!AW443","v":0},{"$f":"IF('1. Order'!AE443=\"\",\"\",'1. Order'!AE443)","v":""}]
[{"$f":"IF('1. Order'!B444=\"\",\"\",'1. Order'!B444)","v":""},{"$f":"IF('1. Order'!I444=\"\",\"\",'1. Order'!I444)","v":""},{"$f":"IF('1. Order'!J444=\"\",\"\",'1. Order'!J444)","v":""},{"$f":"IF('1. Order'!K444=\"\",\"\",'1. Order'!K444)","v":""},{"$f":"IF('1. Order'!M444=\"\",\"\",'1. Order'!M444)","v":""},null,null,{"$f":"'1. Order'!AW444","v":0},{"$f":"IF('1. Order'!AE444=\"\",\"\",'1. Order'!AE444)","v":""}]
[{"$f":"IF('1. Order'!B445=\"\",\"\",'1. Order'!B445)","v":""},{"$f":"IF('1. Order'!I445=\"\",\"\",'1. Order'!I445)","v":""},{"$f":"IF('1. Order'!J445=\"\",\"\",'1. Order'!J445)","v":""},{"$f":"IF('1. Order'!K445=\"\",\"\",'1. Order'!K445)","v":""},{"$f":"IF('1. Order'!M445=\"\",\"\",'1. Order'!M445)","v":""},null,null,{"$f":"'1. Order'!AW445","v":0},{"$f":"IF('1. Order'!AE445=\"\",\"\",'1. Order'!AE445)","v":""}]
[{"$f":"IF('1. Order'!B446=\"\",\"\",'1. Order'!B446)","v":""},{"$f":"IF('1. Order'!I446=\"\",\"\",'1. Order'!I446)","v":""},{"$f":"IF('1. Order'!J446=\"\",\"\",'1. Order'!J446)","v":""},{"$f":"IF('1. Order'!K446=\"\",\"\",'1. Order'!K446)","v":""},{"$f":"IF('1. Order'!M446=\"\",\"\",'1. Order'!M446)","v":""},null,null,{"$f":"'1. Order'!AW446","v":0},{"$f":"IF('1. Order'!AE446=\"\",\"\",'1. Order'!AE446)","v":""}]
[{"$f":"IF('1. Order'!B447=\"\",\"\",'1. Order'!B447)","v":""},{"$f":"IF('1. Order'!I447=\"\",\"\",'1. Order'!I447)","v":""},{"$f":"IF('1. Order'!J447=\"\",\"\",'1. Order'!J447)","v":""},{"$f":"IF('1. Order'!K447=\"\",\"\",'1. Order'!K447)","v":""},{"$f":"IF('1. Order'!M447=\"\",\"\",'1. Order'!M447)","v":""},null,null,{"$f":"'1. Order'!AW447","v":0},{"$f":"IF('1. Order'!AE447=\"\",\"\",'1. Order'!AE447)","v":""}]
[{"$f":"IF('1. Order'!B448=\"\",\"\",'1. Order'!B448)","v":""},{"$f":"IF('1. Order'!I448=\"\",\"\",'1. Order'!I448)","v":""},{"$f":"IF('1. Order'!J448=\"\",\"\",'1. Order'!J448)","v":""},{"$f":"IF('1. Order'!K448=\"\",\"\",'1. Order'!K448)","v":""},{"$f":"IF('1. Order'!M448=\"\",\"\",'1. Order'!M448)","v":""},null,null,{"$f":"'1. Order'!AW448","v":0},{"$f":"IF('1. Order'!AE448=\"\",\"\",'1. Order'!AE448)","v":""}]
[{"$f":"IF('1. Order'!B449=\"\",\"\",'1. Order'!B449)","v":""},{"$f":"IF('1. Order'!I449=\"\",\"\",'1. Order'!I449)","v":""},{"$f":"IF('1. Order'!J449=\"\",\"\",'1. Order'!J449)","v":""},{"$f":"IF('1. Order'!K449=\"\",\"\",'1. Order'!K449)","v":""},{"$f":"IF('1. Order'!M449=\"\",\"\",'1. Order'!M449)","v":""},null,null,{"$f":"'1. Order'!AW449","v":0},{"$f":"IF('1. Order'!AE449=\"\",\"\",'1. Order'!AE449)","v":""}]
[{"$f":"IF('1. Order'!B450=\"\",\"\",'1. Order'!B450)","v":""},{"$f":"IF('1. Order'!I450=\"\",\"\",'1. Order'!I450)","v":""},{"$f":"IF('1. Order'!J450=\"\",\"\",'1. Order'!J450)","v":""},{"$f":"IF('1. Order'!K450=\"\",\"\",'1. Order'!K450)","v":""},{"$f":"IF('1. Order'!M450=\"\",\"\",'1. Order'!M450)","v":""},null,null,{"$f":"'1. Order'!AW450","v":0},{"$f":"IF('1. Order'!AE450=\"\",\"\",'1. Order'!AE450)","v":""}]
[{"$f":"IF('1. Order'!B451=\"\",\"\",'1. Order'!B451)","v":""},{"$f":"IF('1. Order'!I451=\"\",\"\",'1. Order'!I451)","v":""},{"$f":"IF('1. Order'!J451=\"\",\"\",'1. Order'!J451)","v":""},{"$f":"IF('1. Order'!K451=\"\",\"\",'1. Order'!K451)","v":""},{"$f":"IF('1. Order'!M451=\"\",\"\",'1. Order'!M451)","v":""},null,null,{"$f":"'1. Order'!AW451","v":0},{"$f":"IF('1. Order'!AE451=\"\",\"\",'1. Order'!AE451)","v":""}]
[{"$f":"IF('1. Order'!B452=\"\",\"\",'1. Order'!B452)","v":""},{"$f":"IF('1. Order'!I452=\"\",\"\",'1. Order'!I452)","v":""},{"$f":"IF('1. Order'!J452=\"\",\"\",'1. Order'!J452)","v":""},{"$f":"IF('1. Order'!K452=\"\",\"\",'1. Order'!K452)","v":""},{"$f":"IF('1. Order'!M452=\"\",\"\",'1. Order'!M452)","v":""},null,null,{"$f":"'1. Order'!AW452","v":0},{"$f":"IF('1. Order'!AE452=\"\",\"\",'1. Order'!AE452)","v":""}]
[{"$f":"IF('1. Order'!B453=\"\",\"\",'1. Order'!B453)","v":""},{"$f":"IF('1. Order'!I453=\"\",\"\",'1. Order'!I453)","v":""},{"$f":"IF('1. Order'!J453=\"\",\"\",'1. Order'!J453)","v":""},{"$f":"IF('1. Order'!K453=\"\",\"\",'1. Order'!K453)","v":""},{"$f":"IF('1. Order'!M453=\"\",\"\",'1. Order'!M453)","v":""},null,null,{"$f":"'1. Order'!AW453","v":0},{"$f":"IF('1. Order'!AE453=\"\",\"\",'1. Order'!AE453)","v":""}]
[{"$f":"IF('1. Order'!B454=\"\",\"\",'1. Order'!B454)","v":""},{"$f":"IF('1. Order'!I454=\"\",\"\",'1. Order'!I454)","v":""},{"$f":"IF('1. Order'!J454=\"\",\"\",'1. Order'!J454)","v":""},{"$f":"IF('1. Order'!K454=\"\",\"\",'1. Order'!K454)","v":""},{"$f":"IF('1. Order'!M454=\"\",\"\",'1. Order'!M454)","v":""},null,null,{"$f":"'1. Order'!AW454","v":0},{"$f":"IF('1. Order'!AE454=\"\",\"\",'1. Order'!AE454)","v":""}]
[{"$f":"IF('1. Order'!B455=\"\",\"\",'1. Order'!B455)","v":""},{"$f":"IF('1. Order'!I455=\"\",\"\",'1. Order'!I455)","v":""},{"$f":"IF('1. Order'!J455=\"\",\"\",'1. Order'!J455)","v":""},{"$f":"IF('1. Order'!K455=\"\",\"\",'1. Order'!K455)","v":""},{"$f":"IF('1. Order'!M455=\"\",\"\",'1. Order'!M455)","v":""},null,null,{"$f":"'1. Order'!AW455","v":0},{"$f":"IF('1. Order'!AE455=\"\",\"\",'1. Order'!AE455)","v":""}]
[{"$f":"IF('1. Order'!B456=\"\",\"\",'1. Order'!B456)","v":""},{"$f":"IF('1. Order'!I456=\"\",\"\",'1. Order'!I456)","v":""},{"$f":"IF('1. Order'!J456=\"\",\"\",'1. Order'!J456)","v":""},{"$f":"IF('1. Order'!K456=\"\",\"\",'1. Order'!K456)","v":""},{"$f":"IF('1. Order'!M456=\"\",\"\",'1. Order'!M456)","v":""},null,null,{"$f":"'1. Order'!AW456","v":0},{"$f":"IF('1. Order'!AE456=\"\",\"\",'1. Order'!AE456)","v":""}]
[{"$f":"IF('1. Order'!B457=\"\",\"\",'1. Order'!B457)","v":""},{"$f":"IF('1. Order'!I457=\"\",\"\",'1. Order'!I457)","v":""},{"$f":"IF('1. Order'!J457=\"\",\"\",'1. Order'!J457)","v":""},{"$f":"IF('1. Order'!K457=\"\",\"\",'1. Order'!K457)","v":""},{"$f":"IF('1. Order'!M457=\"\",\"\",'1. Order'!M457)","v":""},null,null,{"$f":"'1. Order'!AW457","v":0},{"$f":"IF('1. Order'!AE457=\"\",\"\",'1. Order'!AE457)","v":""}]
[{"$f":"IF('1. Order'!B458=\"\",\"\",'1. Order'!B458)","v":""},{"$f":"IF('1. Order'!I458=\"\",\"\",'1. Order'!I458)","v":""},{"$f":"IF('1. Order'!J458=\"\",\"\",'1. Order'!J458)","v":""},{"$f":"IF('1. Order'!K458=\"\",\"\",'1. Order'!K458)","v":""},{"$f":"IF('1. Order'!M458=\"\",\"\",'1. Order'!M458)","v":""},null,null,{"$f":"'1. Order'!AW458","v":0},{"$f":"IF('1. Order'!AE458=\"\",\"\",'1. Order'!AE458)","v":""}]
[{"$f":"IF('1. Order'!B459=\"\",\"\",'1. Order'!B459)","v":""},{"$f":"IF('1. Order'!I459=\"\",\"\",'1. Order'!I459)","v":""},{"$f":"IF('1. Order'!J459=\"\",\"\",'1. Order'!J459)","v":""},{"$f":"IF('1. Order'!K459=\"\",\"\",'1. Order'!K459)","v":""},{"$f":"IF('1. Order'!M459=\"\",\"\",'1. Order'!M459)","v":""},null,null,{"$f":"'1. Order'!AW459","v":0},{"$f":"IF('1. Order'!AE459=\"\",\"\",'1. Order'!AE459)","v":""}]
[{"$f":"IF('1. Order'!B460=\"\",\"\",'1. Order'!B460)","v":""},{"$f":"IF('1. Order'!I460=\"\",\"\",'1. Order'!I460)","v":""},{"$f":"IF('1. Order'!J460=\"\",\"\",'1. Order'!J460)","v":""},{"$f":"IF('1. Order'!K460=\"\",\"\",'1. Order'!K460)","v":""},{"$f":"IF('1. Order'!M460=\"\",\"\",'1. Order'!M460)","v":""},null,null,{"$f":"'1. Order'!AW460","v":0},{"$f":"IF('1. Order'!AE460=\"\",\"\",'1. Order'!AE460)","v":""}]
[{"$f":"IF('1. Order'!B461=\"\",\"\",'1. Order'!B461)","v":""},{"$f":"IF('1. Order'!I461=\"\",\"\",'1. Order'!I461)","v":""},{"$f":"IF('1. Order'!J461=\"\",\"\",'1. Order'!J461)","v":""},{"$f":"IF('1. Order'!K461=\"\",\"\",'1. Order'!K461)","v":""},{"$f":"IF('1. Order'!M461=\"\",\"\",'1. Order'!M461)","v":""},null,null,{"$f":"'1. Order'!AW461","v":0},{"$f":"IF('1. Order'!AE461=\"\",\"\",'1. Order'!AE461)","v":""}]
[{"$f":"IF('1. Order'!B462=\"\",\"\",'1. Order'!B462)","v":""},{"$f":"IF('1. Order'!I462=\"\",\"\",'1. Order'!I462)","v":""},{"$f":"IF('1. Order'!J462=\"\",\"\",'1. Order'!J462)","v":""},{"$f":"IF('1. Order'!K462=\"\",\"\",'1. Order'!K462)","v":""},{"$f":"IF('1. Order'!M462=\"\",\"\",'1. Order'!M462)","v":""},null,null,{"$f":"'1. Order'!AW462","v":0},{"$f":"IF('1. Order'!AE462=\"\",\"\",'1. Order'!AE462)","v":""}]
[{"$f":"IF('1. Order'!B463=\"\",\"\",'1. Order'!B463)","v":""},{"$f":"IF('1. Order'!I463=\"\",\"\",'1. Order'!I463)","v":""},{"$f":"IF('1. Order'!J463=\"\",\"\",'1. Order'!J463)","v":""},{"$f":"IF('1. Order'!K463=\"\",\"\",'1. Order'!K463)","v":""},{"$f":"IF('1. Order'!M463=\"\",\"\",'1. Order'!M463)","v":""},null,null,{"$f":"'1. Order'!AW463","v":0},{"$f":"IF('1. Order'!AE463=\"\",\"\",'1. Order'!AE463)","v":""}]
[{"$f":"IF('1. Order'!B464=\"\",\"\",'1. Order'!B464)","v":""},{"$f":"IF('1. Order'!I464=\"\",\"\",'1. Order'!I464)","v":""},{"$f":"IF('1. Order'!J464=\"\",\"\",'1. Order'!J464)","v":""},{"$f":"IF('1. Order'!K464=\"\",\"\",'1. Order'!K464)","v":""},{"$f":"IF('1. Order'!M464=\"\",\"\",'1. Order'!M464)","v":""},null,null,{"$f":"'1. Order'!AW464","v":0},{"$f":"IF('1. Order'!AE464=\"\",\"\",'1. Order'!AE464)","v":""}]
[{"$f":"IF('1. Order'!B465=\"\",\"\",'1. Order'!B465)","v":""},{"$f":"IF('1. Order'!I465=\"\",\"\",'1. Order'!I465)","v":""},{"$f":"IF('1. Order'!J465=\"\",\"\",'1. Order'!J465)","v":""},{"$f":"IF('1. Order'!K465=\"\",\"\",'1. Order'!K465)","v":""},{"$f":"IF('1. Order'!M465=\"\",\"\",'1. Order'!M465)","v":""},null,null,{"$f":"'1. Order'!AW465","v":0},{"$f":"IF('1. Order'!AE465=\"\",\"\",'1. Order'!AE465)","v":""}]
[{"$f":"IF('1. Order'!B466=\"\",\"\",'1. Order'!B466)","v":""},{"$f":"IF('1. Order'!I466=\"\",\"\",'1. Order'!I466)","v":""},{"$f":"IF('1. Order'!J466=\"\",\"\",'1. Order'!J466)","v":""},{"$f":"IF('1. Order'!K466=\"\",\"\",'1. Order'!K466)","v":""},{"$f":"IF('1. Order'!M466=\"\",\"\",'1. Order'!M466)","v":""},null,null,{"$f":"'1. Order'!AW466","v":0},{"$f":"IF('1. Order'!AE466=\"\",\"\",'1. Order'!AE466)","v":""}]
[{"$f":"IF('1. Order'!B467=\"\",\"\",'1. Order'!B467)","v":""},{"$f":"IF('1. Order'!I467=\"\",\"\",'1. Order'!I467)","v":""},{"$f":"IF('1. Order'!J467=\"\",\"\",'1. Order'!J467)","v":""},{"$f":"IF('1. Order'!K467=\"\",\"\",'1. Order'!K467)","v":""},{"$f":"IF('1. Order'!M467=\"\",\"\",'1. Order'!M467)","v":""},null,null,{"$f":"'1. Order'!AW467","v":0},{"$f":"IF('1. Order'!AE467=\"\",\"\",'1. Order'!AE467)","v":""}]
[{"$f":"IF('1. Order'!B468=\"\",\"\",'1. Order'!B468)","v":""},{"$f":"IF('1. Order'!I468=\"\",\"\",'1. Order'!I468)","v":""},{"$f":"IF('1. Order'!J468=\"\",\"\",'1. Order'!J468)","v":""},{"$f":"IF('1. Order'!K468=\"\",\"\",'1. Order'!K468)","v":""},{"$f":"IF('1. Order'!M468=\"\",\"\",'1. Order'!M468)","v":""},null,null,{"$f":"'1. Order'!AW468","v":0},{"$f":"IF('1. Order'!AE468=\"\",\"\",'1. Order'!AE468)","v":""}]
[{"$f":"IF('1. Order'!B469=\"\",\"\",'1. Order'!B469)","v":""},{"$f":"IF('1. Order'!I469=\"\",\"\",'1. Order'!I469)","v":""},{"$f":"IF('1. Order'!J469=\"\",\"\",'1. Order'!J469)","v":""},{"$f":"IF('1. Order'!K469=\"\",\"\",'1. Order'!K469)","v":""},{"$f":"IF('1. Order'!M469=\"\",\"\",'1. Order'!M469)","v":""},null,null,{"$f":"'1. Order'!AW469","v":0},{"$f":"IF('1. Order'!AE469=\"\",\"\",'1. Order'!AE469)","v":""}]
[{"$f":"IF('1. Order'!B470=\"\",\"\",'1. Order'!B470)","v":""},{"$f":"IF('1. Order'!I470=\"\",\"\",'1. Order'!I470)","v":""},{"$f":"IF('1. Order'!J470=\"\",\"\",'1. Order'!J470)","v":""},{"$f":"IF('1. Order'!K470=\"\",\"\",'1. Order'!K470)","v":""},{"$f":"IF('1. Order'!M470=\"\",\"\",'1. Order'!M470)","v":""},null,null,{"$f":"'1. Order'!AW470","v":0},{"$f":"IF('1. Order'!AE470=\"\",\"\",'1. Order'!AE470)","v":""}]
[{"$f":"IF('1. Order'!B471=\"\",\"\",'1. Order'!B471)","v":""},{"$f":"IF('1. Order'!I471=\"\",\"\",'1. Order'!I471)","v":""},{"$f":"IF('1. Order'!J471=\"\",\"\",'1. Order'!J471)","v":""},{"$f":"IF('1. Order'!K471=\"\",\"\",'1. Order'!K471)","v":""},{"$f":"IF('1. Order'!M471=\"\",\"\",'1. Order'!M471)","v":""},null,null,{"$f":"'1. Order'!AW471","v":0},{"$f":"IF('1. Order'!AE471=\"\",\"\",'1. Order'!AE471)","v":""}]
[{"$f":"IF('1. Order'!B472=\"\",\"\",'1. Order'!B472)","v":""},{"$f":"IF('1. Order'!I472=\"\",\"\",'1. Order'!I472)","v":""},{"$f":"IF('1. Order'!J472=\"\",\"\",'1. Order'!J472)","v":""},{"$f":"IF('1. Order'!K472=\"\",\"\",'1. Order'!K472)","v":""},{"$f":"IF('1. Order'!M472=\"\",\"\",'1. Order'!M472)","v":""},null,null,{"$f":"'1. Order'!AW472","v":0},{"$f":"IF('1. Order'!AE472=\"\",\"\",'1. Order'!AE472)","v":""}]
[{"$f":"IF('1. Order'!B473=\"\",\"\",'1. Order'!B473)","v":""},{"$f":"IF('1. Order'!I473=\"\",\"\",'1. Order'!I473)","v":""},{"$f":"IF('1. Order'!J473=\"\",\"\",'1. Order'!J473)","v":""},{"$f":"IF('1. Order'!K473=\"\",\"\",'1. Order'!K473)","v":""},{"$f":"IF('1. Order'!M473=\"\",\"\",'1. Order'!M473)","v":""},null,null,{"$f":"'1. Order'!AW473","v":0},{"$f":"IF('1. Order'!AE473=\"\",\"\",'1. Order'!AE473)","v":""}]
[{"$f":"IF('1. Order'!B474=\"\",\"\",'1. Order'!B474)","v":""},{"$f":"IF('1. Order'!I474=\"\",\"\",'1. Order'!I474)","v":""},{"$f":"IF('1. Order'!J474=\"\",\"\",'1. Order'!J474)","v":""},{"$f":"IF('1. Order'!K474=\"\",\"\",'1. Order'!K474)","v":""},{"$f":"IF('1. Order'!M474=\"\",\"\",'1. Order'!M474)","v":""},null,null,{"$f":"'1. Order'!AW474","v":0},{"$f":"IF('1. Order'!AE474=\"\",\"\",'1. Order'!AE474)","v":""}]
[{"$f":"IF('1. Order'!B475=\"\",\"\",'1. Order'!B475)","v":""},{"$f":"IF('1. Order'!I475=\"\",\"\",'1. Order'!I475)","v":""},{"$f":"IF('1. Order'!J475=\"\",\"\",'1. Order'!J475)","v":""},{"$f":"IF('1. Order'!K475=\"\",\"\",'1. Order'!K475)","v":""},{"$f":"IF('1. Order'!M475=\"\",\"\",'1. Order'!M475)","v":""},null,null,{"$f":"'1. Order'!AW475","v":0},{"$f":"IF('1. Order'!AE475=\"\",\"\",'1. Order'!AE475)","v":""}]
[{"$f":"IF('1. Order'!B476=\"\",\"\",'1. Order'!B476)","v":""},{"$f":"IF('1. Order'!I476=\"\",\"\",'1. Order'!I476)","v":""},{"$f":"IF('1. Order'!J476=\"\",\"\",'1. Order'!J476)","v":""},{"$f":"IF('1. Order'!K476=\"\",\"\",'1. Order'!K476)","v":""},{"$f":"IF('1. Order'!M476=\"\",\"\",'1. Order'!M476)","v":""},null,null,{"$f":"'1. Order'!AW476","v":0},{"$f":"IF('1. Order'!AE476=\"\",\"\",'1. Order'!AE476)","v":""}]
[{"$f":"IF('1. Order'!B477=\"\",\"\",'1. Order'!B477)","v":""},{"$f":"IF('1. Order'!I477=\"\",\"\",'1. Order'!I477)","v":""},{"$f":"IF('1. Order'!J477=\"\",\"\",'1. Order'!J477)","v":""},{"$f":"IF('1. Order'!K477=\"\",\"\",'1. Order'!K477)","v":""},{"$f":"IF('1. Order'!M477=\"\",\"\",'1. Order'!M477)","v":""},null,null,{"$f":"'1. Order'!AW477","v":0},{"$f":"IF('1. Order'!AE477=\"\",\"\",'1. Order'!AE477)","v":""}]
[{"$f":"IF('1. Order'!B478=\"\",\"\",'1. Order'!B478)","v":""},{"$f":"IF('1. Order'!I478=\"\",\"\",'1. Order'!I478)","v":""},{"$f":"IF('1. Order'!J478=\"\",\"\",'1. Order'!J478)","v":""},{"$f":"IF('1. Order'!K478=\"\",\"\",'1. Order'!K478)","v":""},{"$f":"IF('1. Order'!M478=\"\",\"\",'1. Order'!M478)","v":""},null,null,{"$f":"'1. Order'!AW478","v":0},{"$f":"IF('1. Order'!AE478=\"\",\"\",'1. Order'!AE478)","v":""}]
[{"$f":"IF('1. Order'!B479=\"\",\"\",'1. Order'!B479)","v":""},{"$f":"IF('1. Order'!I479=\"\",\"\",'1. Order'!I479)","v":""},{"$f":"IF('1. Order'!J479=\"\",\"\",'1. Order'!J479)","v":""},{"$f":"IF('1. Order'!K479=\"\",\"\",'1. Order'!K479)","v":""},{"$f":"IF('1. Order'!M479=\"\",\"\",'1. Order'!M479)","v":""},null,null,{"$f":"'1. Order'!AW479","v":0},{"$f":"IF('1. Order'!AE479=\"\",\"\",'1. Order'!AE479)","v":""}]
[{"$f":"IF('1. Order'!B480=\"\",\"\",'1. Order'!B480)","v":""},{"$f":"IF('1. Order'!I480=\"\",\"\",'1. Order'!I480)","v":""},{"$f":"IF('1. Order'!J480=\"\",\"\",'1. Order'!J480)","v":""},{"$f":"IF('1. Order'!K480=\"\",\"\",'1. Order'!K480)","v":""},{"$f":"IF('1. Order'!M480=\"\",\"\",'1. Order'!M480)","v":""},null,null,{"$f":"'1. Order'!AW480","v":0},{"$f":"IF('1. Order'!AE480=\"\",\"\",'1. Order'!AE480)","v":""}]
[{"$f":"IF('1. Order'!B481=\"\",\"\",'1. Order'!B481)","v":""},{"$f":"IF('1. Order'!I481=\"\",\"\",'1. Order'!I481)","v":""},{"$f":"IF('1. Order'!J481=\"\",\"\",'1. Order'!J481)","v":""},{"$f":"IF('1. Order'!K481=\"\",\"\",'1. Order'!K481)","v":""},{"$f":"IF('1. Order'!M481=\"\",\"\",'1. Order'!M481)","v":""},null,null,{"$f":"'1. Order'!AW481","v":0},{"$f":"IF('1. Order'!AE481=\"\",\"\",'1. Order'!AE481)","v":""}]
[{"$f":"IF('1. Order'!B482=\"\",\"\",'1. Order'!B482)","v":""},{"$f":"IF('1. Order'!I482=\"\",\"\",'1. Order'!I482)","v":""},{"$f":"IF('1. Order'!J482=\"\",\"\",'1. Order'!J482)","v":""},{"$f":"IF('1. Order'!K482=\"\",\"\",'1. Order'!K482)","v":""},{"$f":"IF('1. Order'!M482=\"\",\"\",'1. Order'!M482)","v":""},null,null,{"$f":"'1. Order'!AW482","v":0},{"$f":"IF('1. Order'!AE482=\"\",\"\",'1. Order'!AE482)","v":""}]
[{"$f":"IF('1. Order'!B483=\"\",\"\",'1. Order'!B483)","v":""},{"$f":"IF('1. Order'!I483=\"\",\"\",'1. Order'!I483)","v":""},{"$f":"IF('1. Order'!J483=\"\",\"\",'1. Order'!J483)","v":""},{"$f":"IF('1. Order'!K483=\"\",\"\",'1. Order'!K483)","v":""},{"$f":"IF('1. Order'!M483=\"\",\"\",'1. Order'!M483)","v":""},null,null,{"$f":"'1. Order'!AW483","v":0},{"$f":"IF('1. Order'!AE483=\"\",\"\",'1. Order'!AE483)","v":""}]
[{"$f":"IF('1. Order'!B484=\"\",\"\",'1. Order'!B484)","v":""},{"$f":"IF('1. Order'!I484=\"\",\"\",'1. Order'!I484)","v":""},{"$f":"IF('1. Order'!J484=\"\",\"\",'1. Order'!J484)","v":""},{"$f":"IF('1. Order'!K484=\"\",\"\",'1. Order'!K484)","v":""},{"$f":"IF('1. Order'!M484=\"\",\"\",'1. Order'!M484)","v":""},null,null,{"$f":"'1. Order'!AW484","v":0},{"$f":"IF('1. Order'!AE484=\"\",\"\",'1. Order'!AE484)","v":""}]
[{"$f":"IF('1. Order'!B485=\"\",\"\",'1. Order'!B485)","v":""},{"$f":"IF('1. Order'!I485=\"\",\"\",'1. Order'!I485)","v":""},{"$f":"IF('1. Order'!J485=\"\",\"\",'1. Order'!J485)","v":""},{"$f":"IF('1. Order'!K485=\"\",\"\",'1. Order'!K485)","v":""},{"$f":"IF('1. Order'!M485=\"\",\"\",'1. Order'!M485)","v":""},null,null,{"$f":"'1. Order'!AW485","v":0},{"$f":"IF('1. Order'!AE485=\"\",\"\",'1. Order'!AE485)","v":""}]
[{"$f":"IF('1. Order'!B486=\"\",\"\",'1. Order'!B486)","v":""},{"$f":"IF('1. Order'!I486=\"\",\"\",'1. Order'!I486)","v":""},{"$f":"IF('1. Order'!J486=\"\",\"\",'1. Order'!J486)","v":""},{"$f":"IF('1. Order'!K486=\"\",\"\",'1. Order'!K486)","v":""},{"$f":"IF('1. Order'!M486=\"\",\"\",'1. Order'!M486)","v":""},null,null,{"$f":"'1. Order'!AW486","v":0},{"$f":"IF('1. Order'!AE486=\"\",\"\",'1. Order'!AE486)","v":""}]
[{"$f":"IF('1. Order'!B487=\"\",\"\",'1. Order'!B487)","v":""},{"$f":"IF('1. Order'!I487=\"\",\"\",'1. Order'!I487)","v":""},{"$f":"IF('1. Order'!J487=\"\",\"\",'1. Order'!J487)","v":""},{"$f":"IF('1. Order'!K487=\"\",\"\",'1. Order'!K487)","v":""},{"$f":"IF('1. Order'!M487=\"\",\"\",'1. Order'!M487)","v":""},null,null,{"$f":"'1. Order'!AW487","v":0},{"$f":"IF('1. Order'!AE487=\"\",\"\",'1. Order'!AE487)","v":""}]
[{"$f":"IF('1. Order'!B488=\"\",\"\",'1. Order'!B488)","v":""},{"$f":"IF('1. Order'!I488=\"\",\"\",'1. Order'!I488)","v":""},{"$f":"IF('1. Order'!J488=\"\",\"\",'1. Order'!J488)","v":""},{"$f":"IF('1. Order'!K488=\"\",\"\",'1. Order'!K488)","v":""},{"$f":"IF('1. Order'!M488=\"\",\"\",'1. Order'!M488)","v":""},null,null,{"$f":"'1. Order'!AW488","v":0},{"$f":"IF('1. Order'!AE488=\"\",\"\",'1. Order'!AE488)","v":""}]
[{"$f":"IF('1. Order'!B489=\"\",\"\",'1. Order'!B489)","v":""},{"$f":"IF('1. Order'!I489=\"\",\"\",'1. Order'!I489)","v":""},{"$f":"IF('1. Order'!J489=\"\",\"\",'1. Order'!J489)","v":""},{"$f":"IF('1. Order'!K489=\"\",\"\",'1. Order'!K489)","v":""},{"$f":"IF('1. Order'!M489=\"\",\"\",'1. Order'!M489)","v":""},null,null,{"$f":"'1. Order'!AW489","v":0},{"$f":"IF('1. Order'!AE489=\"\",\"\",'1. Order'!AE489)","v":""}]
[{"$f":"IF('1. Order'!B490=\"\",\"\",'1. Order'!B490)","v":""},{"$f":"IF('1. Order'!I490=\"\",\"\",'1. Order'!I490)","v":""},{"$f":"IF('1. Order'!J490=\"\",\"\",'1. Order'!J490)","v":""},{"$f":"IF('1. Order'!K490=\"\",\"\",'1. Order'!K490)","v":""},{"$f":"IF('1. Order'!M490=\"\",\"\",'1. Order'!M490)","v":""},null,null,{"$f":"'1. Order'!AW490","v":0},{"$f":"IF('1. Order'!AE490=\"\",\"\",'1. Order'!AE490)","v":""}]
[{"$f":"IF('1. Order'!B491=\"\",\"\",'1. Order'!B491)","v":""},{"$f":"IF('1. Order'!I491=\"\",\"\",'1. Order'!I491)","v":""},{"$f":"IF('1. Order'!J491=\"\",\"\",'1. Order'!J491)","v":""},{"$f":"IF('1. Order'!K491=\"\",\"\",'1. Order'!K491)","v":""},{"$f":"IF('1. Order'!M491=\"\",\"\",'1. Order'!M491)","v":""},null,null,{"$f":"'1. Order'!AW491","v":0},{"$f":"IF('1. Order'!AE491=\"\",\"\",'1. Order'!AE491)","v":""}]
[{"$f":"IF('1. Order'!B492=\"\",\"\",'1. Order'!B492)","v":""},{"$f":"IF('1. Order'!I492=\"\",\"\",'1. Order'!I492)","v":""},{"$f":"IF('1. Order'!J492=\"\",\"\",'1. Order'!J492)","v":""},{"$f":"IF('1. Order'!K492=\"\",\"\",'1. Order'!K492)","v":""},{"$f":"IF('1. Order'!M492=\"\",\"\",'1. Order'!M492)","v":""},null,null,{"$f":"'1. Order'!AW492","v":0},{"$f":"IF('1. Order'!AE492=\"\",\"\",'1. Order'!AE492)","v":""}]
[{"$f":"IF('1. Order'!B493=\"\",\"\",'1. Order'!B493)","v":""},{"$f":"IF('1. Order'!I493=\"\",\"\",'1. Order'!I493)","v":""},{"$f":"IF('1. Order'!J493=\"\",\"\",'1. Order'!J493)","v":""},{"$f":"IF('1. Order'!K493=\"\",\"\",'1. Order'!K493)","v":""},{"$f":"IF('1. Order'!M493=\"\",\"\",'1. Order'!M493)","v":""},null,null,{"$f":"'1. Order'!AW493","v":0},{"$f":"IF('1. Order'!AE493=\"\",\"\",'1. Order'!AE493)","v":""}]
[{"$f":"IF('1. Order'!B494=\"\",\"\",'1. Order'!B494)","v":""},{"$f":"IF('1. Order'!I494=\"\",\"\",'1. Order'!I494)","v":""},{"$f":"IF('1. Order'!J494=\"\",\"\",'1. Order'!J494)","v":""},{"$f":"IF('1. Order'!K494=\"\",\"\",'1. Order'!K494)","v":""},{"$f":"IF('1. Order'!M494=\"\",\"\",'1. Order'!M494)","v":""},null,null,{"$f":"'1. Order'!AW494","v":0},{"$f":"IF('1. Order'!AE494=\"\",\"\",'1. Order'!AE494)","v":""}]
[{"$f":"IF('1. Order'!B495=\"\",\"\",'1. Order'!B495)","v":""},{"$f":"IF('1. Order'!I495=\"\",\"\",'1. Order'!I495)","v":""},{"$f":"IF('1. Order'!J495=\"\",\"\",'1. Order'!J495)","v":""},{"$f":"IF('1. Order'!K495=\"\",\"\",'1. Order'!K495)","v":""},{"$f":"IF('1. Order'!M495=\"\",\"\",'1. Order'!M495)","v":""},null,null,{"$f":"'1. Order'!AW495","v":0},{"$f":"IF('1. Order'!AE495=\"\",\"\",'1. Order'!AE495)","v":""}]
[{"$f":"IF('1. Order'!B496=\"\",\"\",'1. Order'!B496)","v":""},{"$f":"IF('1. Order'!I496=\"\",\"\",'1. Order'!I496)","v":""},{"$f":"IF('1. Order'!J496=\"\",\"\",'1. Order'!J496)","v":""},{"$f":"IF('1. Order'!K496=\"\",\"\",'1. Order'!K496)","v":""},{"$f":"IF('1. Order'!M496=\"\",\"\",'1. Order'!M496)","v":""},null,null,{"$f":"'1. Order'!AW496","v":0},{"$f":"IF('1. Order'!AE496=\"\",\"\",'1. Order'!AE496)","v":""}]
[{"$f":"IF('1. Order'!B497=\"\",\"\",'1. Order'!B497)","v":""},{"$f":"IF('1. Order'!I497=\"\",\"\",'1. Order'!I497)","v":""},{"$f":"IF('1. Order'!J497=\"\",\"\",'1. Order'!J497)","v":""},{"$f":"IF('1. Order'!K497=\"\",\"\",'1. Order'!K497)","v":""},{"$f":"IF('1. Order'!M497=\"\",\"\",'1. Order'!M497)","v":""},null,null,{"$f":"'1. Order'!AW497","v":0},{"$f":"IF('1. Order'!AE497=\"\",\"\",'1. Order'!AE497)","v":""}]
[{"$f":"IF('1. Order'!B498=\"\",\"\",'1. Order'!B498)","v":""},{"$f":"IF('1. Order'!I498=\"\",\"\",'1. Order'!I498)","v":""},{"$f":"IF('1. Order'!J498=\"\",\"\",'1. Order'!J498)","v":""},{"$f":"IF('1. Order'!K498=\"\",\"\",'1. Order'!K498)","v":""},{"$f":"IF('1. Order'!M498=\"\",\"\",'1. Order'!M498)","v":""},null,null,{"$f":"'1. Order'!AW498","v":0},{"$f":"IF('1. Order'!AE498=\"\",\"\",'1. Order'!AE498)","v":""}]
[{"$f":"IF('1. Order'!B499=\"\",\"\",'1. Order'!B499)","v":""},{"$f":"IF('1. Order'!I499=\"\",\"\",'1. Order'!I499)","v":""},{"$f":"IF('1. Order'!J499=\"\",\"\",'1. Order'!J499)","v":""},{"$f":"IF('1. Order'!K499=\"\",\"\",'1. Order'!K499)","v":""},{"$f":"IF('1. Order'!M499=\"\",\"\",'1. Order'!M499)","v":""},null,null,{"$f":"'1. Order'!AW499","v":0},{"$f":"IF('1. Order'!AE499=\"\",\"\",'1. Order'!AE499)","v":""}]
[{"$f":"IF('1. Order'!B500=\"\",\"\",'1. Order'!B500)","v":""},{"$f":"IF('1. Order'!I500=\"\",\"\",'1. Order'!I500)","v":""},{"$f":"IF('1. Order'!J500=\"\",\"\",'1. Order'!J500)","v":""},{"$f":"IF('1. Order'!K500=\"\",\"\",'1. Order'!K500)","v":""},{"$f":"IF('1. Order'!M500=\"\",\"\",'1. Order'!M500)","v":""},null,null,{"$f":"'1. Order'!AW500","v":0},{"$f":"IF('1. Order'!AE500=\"\",\"\",'1. Order'!AE500)","v":""}]
[{"$f":"IF('1. Order'!B501=\"\",\"\",'1. Order'!B501)","v":""},{"$f":"IF('1. Order'!I501=\"\",\"\",'1. Order'!I501)","v":""},{"$f":"IF('1. Order'!J501=\"\",\"\",'1. Order'!J501)","v":""},{"$f":"IF('1. Order'!K501=\"\",\"\",'1. Order'!K501)","v":""},{"$f":"IF('1. Order'!M501=\"\",\"\",'1. Order'!M501)","v":""},null,null,{"$f":"'1. Order'!AW501","v":0},{"$f":"IF('1. Order'!AE501=\"\",\"\",'1. Order'!AE501)","v":""}]
[{"$f":"IF('1. Order'!B502=\"\",\"\",'1. Order'!B502)","v":""},{"$f":"IF('1. Order'!I502=\"\",\"\",'1. Order'!I502)","v":""},{"$f":"IF('1. Order'!J502=\"\",\"\",'1. Order'!J502)","v":""},{"$f":"IF('1. Order'!K502=\"\",\"\",'1. Order'!K502)","v":""},{"$f":"IF('1. Order'!M502=\"\",\"\",'1. Order'!M502)","v":""},null,null,{"$f":"'1. Order'!AW502","v":0},{"$f":"IF('1. Order'!AE502=\"\",\"\",'1. Order'!AE502)","v":""}]
[{"$f":"IF('1. Order'!B503=\"\",\"\",'1. Order'!B503)","v":""},{"$f":"IF('1. Order'!I503=\"\",\"\",'1. Order'!I503)","v":""},{"$f":"IF('1. Order'!J503=\"\",\"\",'1. Order'!J503)","v":""},{"$f":"IF('1. Order'!K503=\"\",\"\",'1. Order'!K503)","v":""},{"$f":"IF('1. Order'!M503=\"\",\"\",'1. Order'!M503)","v":""},null,null,{"$f":"'1. Order'!AW503","v":0},{"$f":"IF('1. Order'!AE503=\"\",\"\",'1. Order'!AE503)","v":""}]
[{"$f":"IF('1. Order'!B504=\"\",\"\",'1. Order'!B504)","v":""},{"$f":"IF('1. Order'!I504=\"\",\"\",'1. Order'!I504)","v":""},{"$f":"IF('1. Order'!J504=\"\",\"\",'1. Order'!J504)","v":""},{"$f":"IF('1. Order'!K504=\"\",\"\",'1. Order'!K504)","v":""},{"$f":"IF('1. Order'!M504=\"\",\"\",'1. Order'!M504)","v":""},null,null,{"$f":"'1. Order'!AW504","v":0},{"$f":"IF('1. Order'!AE504=\"\",\"\",'1. Order'!AE504)","v":""}]
[{"$f":"IF('1. Order'!B505=\"\",\"\",'1. Order'!B505)","v":""},{"$f":"IF('1. Order'!I505=\"\",\"\",'1. Order'!I505)","v":""},{"$f":"IF('1. Order'!J505=\"\",\"\",'1. Order'!J505)","v":""},{"$f":"IF('1. Order'!K505=\"\",\"\",'1. Order'!K505)","v":""},{"$f":"IF('1. Order'!M505=\"\",\"\",'1. Order'!M505)","v":""},null,null,{"$f":"'1. Order'!AW505","v":0},{"$f":"IF('1. Order'!AE505=\"\",\"\",'1. Order'!AE505)","v":""}]
[{"$f":"IF('1. Order'!B506=\"\",\"\",'1. Order'!B506)","v":""},{"$f":"IF('1. Order'!I506=\"\",\"\",'1. Order'!I506)","v":""},{"$f":"IF('1. Order'!J506=\"\",\"\",'1. Order'!J506)","v":""},{"$f":"IF('1. Order'!K506=\"\",\"\",'1. Order'!K506)","v":""},{"$f":"IF('1. Order'!M506=\"\",\"\",'1. Order'!M506)","v":""},null,null,{"$f":"'1. Order'!AW506","v":0},{"$f":"IF('1. Order'!AE506=\"\",\"\",'1. Order'!AE506)","v":""}]
[{"$f":"IF('1. Order'!B507=\"\",\"\",'1. Order'!B507)","v":""},{"$f":"IF('1. Order'!I507=\"\",\"\",'1. Order'!I507)","v":""},{"$f":"IF('1. Order'!J507=\"\",\"\",'1. Order'!J507)","v":""},{"$f":"IF('1. Order'!K507=\"\",\"\",'1. Order'!K507)","v":""},{"$f":"IF('1. Order'!M507=\"\",\"\",'1. Order'!M507)","v":""},null,null,{"$f":"'1. Order'!AW507","v":0},{"$f":"IF('1. Order'!AE507=\"\",\"\",'1. Order'!AE507)","v":""}]
[{"$f":"IF('1. Order'!B508=\"\",\"\",'1. Order'!B508)","v":""},{"$f":"IF('1. Order'!I508=\"\",\"\",'1. Order'!I508)","v":""},{"$f":"IF('1. Order'!J508=\"\",\"\",'1. Order'!J508)","v":""},{"$f":"IF('1. Order'!K508=\"\",\"\",'1. Order'!K508)","v":""},{"$f":"IF('1. Order'!M508=\"\",\"\",'1. Order'!M508)","v":""},null,null,{"$f":"'1. Order'!AW508","v":0},{"$f":"IF('1. Order'!AE508=\"\",\"\",'1. Order'!AE508)","v":""}]
[{"$f":"IF('1. Order'!B509=\"\",\"\",'1. Order'!B509)","v":""},{"$f":"IF('1. Order'!I509=\"\",\"\",'1. Order'!I509)","v":""},{"$f":"IF('1. Order'!J509=\"\",\"\",'1. Order'!J509)","v":""},{"$f":"IF('1. Order'!K509=\"\",\"\",'1. Order'!K509)","v":""},{"$f":"IF('1. Order'!M509=\"\",\"\",'1. Order'!M509)","v":""},null,null,{"$f":"'1. Order'!AW509","v":0},{"$f":"IF('1. Order'!AE509=\"\",\"\",'1. Order'!AE509)","v":""}]
[{"$f":"IF('1. Order'!B510=\"\",\"\",'1. Order'!B510)","v":""},{"$f":"IF('1. Order'!I510=\"\",\"\",'1. Order'!I510)","v":""},{"$f":"IF('1. Order'!J510=\"\",\"\",'1. Order'!J510)","v":""},{"$f":"IF('1. Order'!K510=\"\",\"\",'1. Order'!K510)","v":""},{"$f":"IF('1. Order'!M510=\"\",\"\",'1. Order'!M510)","v":""},null,null,{"$f":"'1. Order'!AW510","v":0},{"$f":"IF('1. Order'!AE510=\"\",\"\",'1. Order'!AE510)","v":""}]
[{"$f":"IF('1. Order'!B511=\"\",\"\",'1. Order'!B511)","v":""},{"$f":"IF('1. Order'!I511=\"\",\"\",'1. Order'!I511)","v":""},{"$f":"IF('1. Order'!J511=\"\",\"\",'1. Order'!J511)","v":""},{"$f":"IF('1. Order'!K511=\"\",\"\",'1. Order'!K511)","v":""},{"$f":"IF('1. Order'!M511=\"\",\"\",'1. Order'!M511)","v":""},null,null,{"$f":"'1. Order'!AW511","v":0},{"$f":"IF('1. Order'!AE511=\"\",\"\",'1. Order'!AE511)","v":""}]
[{"$f":"IF('1. Order'!B512=\"\",\"\",'1. Order'!B512)","v":""},{"$f":"IF('1. Order'!I512=\"\",\"\",'1. Order'!I512)","v":""},{"$f":"IF('1. Order'!J512=\"\",\"\",'1. Order'!J512)","v":""},{"$f":"IF('1. Order'!K512=\"\",\"\",'1. Order'!K512)","v":""},{"$f":"IF('1. Order'!M512=\"\",\"\",'1. Order'!M512)","v":""},null,null,{"$f":"'1. Order'!AW512","v":0},{"$f":"IF('1. Order'!AE512=\"\",\"\",'1. Order'!AE512)","v":""}]
[{"$f":"IF('1. Order'!B513=\"\",\"\",'1. Order'!B513)","v":""},{"$f":"IF('1. Order'!I513=\"\",\"\",'1. Order'!I513)","v":""},{"$f":"IF('1. Order'!J513=\"\",\"\",'1. Order'!J513)","v":""},{"$f":"IF('1. Order'!K513=\"\",\"\",'1. Order'!K513)","v":""},{"$f":"IF('1. Order'!M513=\"\",\"\",'1. Order'!M513)","v":""},null,null,{"$f":"'1. Order'!AW513","v":0},{"$f":"IF('1. Order'!AE513=\"\",\"\",'1. Order'!AE513)","v":""}]
[{"$f":"IF('1. Order'!B514=\"\",\"\",'1. Order'!B514)","v":""},{"$f":"IF('1. Order'!I514=\"\",\"\",'1. Order'!I514)","v":""},{"$f":"IF('1. Order'!J514=\"\",\"\",'1. Order'!J514)","v":""},{"$f":"IF('1. Order'!K514=\"\",\"\",'1. Order'!K514)","v":""},{"$f":"IF('1. Order'!M514=\"\",\"\",'1. Order'!M514)","v":""},null,null,{"$f":"'1. Order'!AW514","v":0},{"$f":"IF('1. Order'!AE514=\"\",\"\",'1. Order'!AE514)","v":""}]
[{"$f":"IF('1. Order'!B515=\"\",\"\",'1. Order'!B515)","v":""},{"$f":"IF('1. Order'!I515=\"\",\"\",'1. Order'!I515)","v":""},{"$f":"IF('1. Order'!J515=\"\",\"\",'1. Order'!J515)","v":""},{"$f":"IF('1. Order'!K515=\"\",\"\",'1. Order'!K515)","v":""},{"$f":"IF('1. Order'!M515=\"\",\"\",'1. Order'!M515)","v":""},null,null,{"$f":"'1. Order'!AW515","v":0},{"$f":"IF('1. Order'!AE515=\"\",\"\",'1. Order'!AE515)","v":""}]
[{"$f":"IF('1. Order'!B516=\"\",\"\",'1. Order'!B516)","v":""},{"$f":"IF('1. Order'!I516=\"\",\"\",'1. Order'!I516)","v":""},{"$f":"IF('1. Order'!J516=\"\",\"\",'1. Order'!J516)","v":""},{"$f":"IF('1. Order'!K516=\"\",\"\",'1. Order'!K516)","v":""},{"$f":"IF('1. Order'!M516=\"\",\"\",'1. Order'!M516)","v":""},null,null,{"$f":"'1. Order'!AW516","v":0},{"$f":"IF('1. Order'!AE516=\"\",\"\",'1. Order'!AE516)","v":""}]
[{"$f":"IF('1. Order'!B517=\"\",\"\",'1. Order'!B517)","v":""},{"$f":"IF('1. Order'!I517=\"\",\"\",'1. Order'!I517)","v":""},{"$f":"IF('1. Order'!J517=\"\",\"\",'1. Order'!J517)","v":""},{"$f":"IF('1. Order'!K517=\"\",\"\",'1. Order'!K517)","v":""},{"$f":"IF('1. Order'!M517=\"\",\"\",'1. Order'!M517)","v":""},null,null,{"$f":"'1. Order'!AW517","v":0},{"$f":"IF('1. Order'!AE517=\"\",\"\",'1. Order'!AE517)","v":""}]
[{"$f":"IF('1. Order'!B518=\"\",\"\",'1. Order'!B518)","v":""},{"$f":"IF('1. Order'!I518=\"\",\"\",'1. Order'!I518)","v":""},{"$f":"IF('1. Order'!J518=\"\",\"\",'1. Order'!J518)","v":""},{"$f":"IF('1. Order'!K518=\"\",\"\",'1. Order'!K518)","v":""},{"$f":"IF('1. Order'!M518=\"\",\"\",'1. Order'!M518)","v":""},null,null,{"$f":"'1. Order'!AW518","v":0},{"$f":"IF('1. Order'!AE518=\"\",\"\",'1. Order'!AE518)","v":""}]
[{"$f":"IF('1. Order'!B519=\"\",\"\",'1. Order'!B519)","v":""},{"$f":"IF('1. Order'!I519=\"\",\"\",'1. Order'!I519)","v":""},{"$f":"IF('1. Order'!J519=\"\",\"\",'1. Order'!J519)","v":""},{"$f":"IF('1. Order'!K519=\"\",\"\",'1. Order'!K519)","v":""},{"$f":"IF('1. Order'!M519=\"\",\"\",'1. Order'!M519)","v":""},null,null,{"$f":"'1. Order'!AW519","v":0},{"$f":"IF('1. Order'!AE519=\"\",\"\",'1. Order'!AE519)","v":""}]
[{"$f":"IF('1. Order'!B520=\"\",\"\",'1. Order'!B520)","v":""},{"$f":"IF('1. Order'!I520=\"\",\"\",'1. Order'!I520)","v":""},{"$f":"IF('1. Order'!J520=\"\",\"\",'1. Order'!J520)","v":""},{"$f":"IF('1. Order'!K520=\"\",\"\",'1. Order'!K520)","v":""},{"$f":"IF('1. Order'!M520=\"\",\"\",'1. Order'!M520)","v":""},null,null,{"$f":"'1. Order'!AW520","v":0},{"$f":"IF('1. Order'!AE520=\"\",\"\",'1. Order'!AE520)","v":""}]
[{"$f":"IF('1. Order'!B521=\"\",\"\",'1. Order'!B521)","v":""},{"$f":"IF('1. Order'!I521=\"\",\"\",'1. Order'!I521)","v":""},{"$f":"IF('1. Order'!J521=\"\",\"\",'1. Order'!J521)","v":""},{"$f":"IF('1. Order'!K521=\"\",\"\",'1. Order'!K521)","v":""},{"$f":"IF('1. Order'!M521=\"\",\"\",'1. Order'!M521)","v":""},null,null,{"$f":"'1. Order'!AW521","v":0},{"$f":"IF('1. Order'!AE521=\"\",\"\",'1. Order'!AE521)","v":""}]
[{"$f":"IF('1. Order'!B522=\"\",\"\",'1. Order'!B522)","v":""},{"$f":"IF('1. Order'!I522=\"\",\"\",'1. Order'!I522)","v":""},{"$f":"IF('1. Order'!J522=\"\",\"\",'1. Order'!J522)","v":""},{"$f":"IF('1. Order'!K522=\"\",\"\",'1. Order'!K522)","v":""},{"$f":"IF('1. Order'!M522=\"\",\"\",'1. Order'!M522)","v":""},null,null,{"$f":"'1. Order'!AW522","v":0},{"$f":"IF('1. Order'!AE522=\"\",\"\",'1. Order'!AE522)","v":""}]
[{"$f":"IF('1. Order'!B523=\"\",\"\",'1. Order'!B523)","v":""},{"$f":"IF('1. Order'!I523=\"\",\"\",'1. Order'!I523)","v":""},{"$f":"IF('1. Order'!J523=\"\",\"\",'1. Order'!J523)","v":""},{"$f":"IF('1. Order'!K523=\"\",\"\",'1. Order'!K523)","v":""},{"$f":"IF('1. Order'!M523=\"\",\"\",'1. Order'!M523)","v":""},null,null,{"$f":"'1. Order'!AW523","v":0},{"$f":"IF('1. Order'!AE523=\"\",\"\",'1. Order'!AE523)","v":""}]
[{"$f":"IF('1. Order'!B524=\"\",\"\",'1. Order'!B524)","v":""},{"$f":"IF('1. Order'!I524=\"\",\"\",'1. Order'!I524)","v":""},{"$f":"IF('1. Order'!J524=\"\",\"\",'1. Order'!J524)","v":""},{"$f":"IF('1. Order'!K524=\"\",\"\",'1. Order'!K524)","v":""},{"$f":"IF('1. Order'!M524=\"\",\"\",'1. Order'!M524)","v":""},null,null,{"$f":"'1. Order'!AW524","v":0},{"$f":"IF('1. Order'!AE524=\"\",\"\",'1. Order'!AE524)","v":""}]
[{"$f":"IF('1. Order'!B525=\"\",\"\",'1. Order'!B525)","v":""},{"$f":"IF('1. Order'!I525=\"\",\"\",'1. Order'!I525)","v":""},{"$f":"IF('1. Order'!J525=\"\",\"\",'1. Order'!J525)","v":""},{"$f":"IF('1. Order'!K525=\"\",\"\",'1. Order'!K525)","v":""},{"$f":"IF('1. Order'!M525=\"\",\"\",'1. Order'!M525)","v":""},null,null,{"$f":"'1. Order'!AW525","v":0},{"$f":"IF('1. Order'!AE525=\"\",\"\",'1. Order'!AE525)","v":""}]
[{"$f":"IF('1. Order'!B526=\"\",\"\",'1. Order'!B526)","v":""},{"$f":"IF('1. Order'!I526=\"\",\"\",'1. Order'!I526)","v":""},{"$f":"IF('1. Order'!J526=\"\",\"\",'1. Order'!J526)","v":""},{"$f":"IF('1. Order'!K526=\"\",\"\",'1. Order'!K526)","v":""},{"$f":"IF('1. Order'!M526=\"\",\"\",'1. Order'!M526)","v":""},null,null,{"$f":"'1. Order'!AW526","v":0},{"$f":"IF('1. Order'!AE526=\"\",\"\",'1. Order'!AE526)","v":""}]
[{"$f":"IF('1. Order'!B527=\"\",\"\",'1. Order'!B527)","v":""},{"$f":"IF('1. Order'!I527=\"\",\"\",'1. Order'!I527)","v":""},{"$f":"IF('1. Order'!J527=\"\",\"\",'1. Order'!J527)","v":""},{"$f":"IF('1. Order'!K527=\"\",\"\",'1. Order'!K527)","v":""},{"$f":"IF('1. Order'!M527=\"\",\"\",'1. Order'!M527)","v":""},null,null,{"$f":"'1. Order'!AW527","v":0},{"$f":"IF('1. Order'!AE527=\"\",\"\",'1. Order'!AE527)","v":""}]
[{"$f":"IF('1. Order'!B528=\"\",\"\",'1. Order'!B528)","v":""},{"$f":"IF('1. Order'!I528=\"\",\"\",'1. Order'!I528)","v":""},{"$f":"IF('1. Order'!J528=\"\",\"\",'1. Order'!J528)","v":""},{"$f":"IF('1. Order'!K528=\"\",\"\",'1. Order'!K528)","v":""},{"$f":"IF('1. Order'!M528=\"\",\"\",'1. Order'!M528)","v":""},null,null,{"$f":"'1. Order'!AW528","v":0},{"$f":"IF('1. Order'!AE528=\"\",\"\",'1. Order'!AE528)","v":""}]
[{"$f":"IF('1. Order'!B529=\"\",\"\",'1. Order'!B529)","v":""},{"$f":"IF('1. Order'!I529=\"\",\"\",'1. Order'!I529)","v":""},{"$f":"IF('1. Order'!J529=\"\",\"\",'1. Order'!J529)","v":""},{"$f":"IF('1. Order'!K529=\"\",\"\",'1. Order'!K529)","v":""},{"$f":"IF('1. Order'!M529=\"\",\"\",'1. Order'!M529)","v":""},null,null,{"$f":"'1. Order'!AW529","v":0},{"$f":"IF('1. Order'!AE529=\"\",\"\",'1. Order'!AE529)","v":""}]
[{"$f":"IF('1. Order'!B530=\"\",\"\",'1. Order'!B530)","v":""},{"$f":"IF('1. Order'!I530=\"\",\"\",'1. Order'!I530)","v":""},{"$f":"IF('1. Order'!J530=\"\",\"\",'1. Order'!J530)","v":""},{"$f":"IF('1. Order'!K530=\"\",\"\",'1. Order'!K530)","v":""},{"$f":"IF('1. Order'!M530=\"\",\"\",'1. Order'!M530)","v":""},null,null,{"$f":"'1. Order'!AW530","v":0},{"$f":"IF('1. Order'!AE530=\"\",\"\",'1. Order'!AE530)","v":""}]
[{"$f":"IF('1. Order'!B531=\"\",\"\",'1. Order'!B531)","v":""},{"$f":"IF('1. Order'!I531=\"\",\"\",'1. Order'!I531)","v":""},{"$f":"IF('1. Order'!J531=\"\",\"\",'1. Order'!J531)","v":""},{"$f":"IF('1. Order'!K531=\"\",\"\",'1. Order'!K531)","v":""},{"$f":"IF('1. Order'!M531=\"\",\"\",'1. Order'!M531)","v":""},null,null,{"$f":"'1. Order'!AW531","v":0},{"$f":"IF('1. Order'!AE531=\"\",\"\",'1. Order'!AE531)","v":""}]
[{"$f":"IF('1. Order'!B532=\"\",\"\",'1. Order'!B532)","v":""},{"$f":"IF('1. Order'!I532=\"\",\"\",'1. Order'!I532)","v":""},{"$f":"IF('1. Order'!J532=\"\",\"\",'1. Order'!J532)","v":""},{"$f":"IF('1. Order'!K532=\"\",\"\",'1. Order'!K532)","v":""},{"$f":"IF('1. Order'!M532=\"\",\"\",'1. Order'!M532)","v":""},null,null,{"$f":"'1. Order'!AW532","v":0},{"$f":"IF('1. Order'!AE532=\"\",\"\",'1. Order'!AE532)","v":""}]
[{"$f":"IF('1. Order'!B533=\"\",\"\",'1. Order'!B533)","v":""},{"$f":"IF('1. Order'!I533=\"\",\"\",'1. Order'!I533)","v":""},{"$f":"IF('1. Order'!J533=\"\",\"\",'1. Order'!J533)","v":""},{"$f":"IF('1. Order'!K533=\"\",\"\",'1. Order'!K533)","v":""},{"$f":"IF('1. Order'!M533=\"\",\"\",'1. Order'!M533)","v":""},null,null,{"$f":"'1. Order'!AW533","v":0},{"$f":"IF('1. Order'!AE533=\"\",\"\",'1. Order'!AE533)","v":""}]
[{"$f":"IF('1. Order'!B534=\"\",\"\",'1. Order'!B534)","v":""},{"$f":"IF('1. Order'!I534=\"\",\"\",'1. Order'!I534)","v":""},{"$f":"IF('1. Order'!J534=\"\",\"\",'1. Order'!J534)","v":""},{"$f":"IF('1. Order'!K534=\"\",\"\",'1. Order'!K534)","v":""},{"$f":"IF('1. Order'!M534=\"\",\"\",'1. Order'!M534)","v":""},null,null,{"$f":"'1. Order'!AW534","v":0},{"$f":"IF('1. Order'!AE534=\"\",\"\",'1. Order'!AE534)","v":""}]
[{"$f":"IF('1. Order'!B535=\"\",\"\",'1. Order'!B535)","v":""},{"$f":"IF('1. Order'!I535=\"\",\"\",'1. Order'!I535)","v":""},{"$f":"IF('1. Order'!J535=\"\",\"\",'1. Order'!J535)","v":""},{"$f":"IF('1. Order'!K535=\"\",\"\",'1. Order'!K535)","v":""},{"$f":"IF('1. Order'!M535=\"\",\"\",'1. Order'!M535)","v":""},null,null,{"$f":"'1. Order'!AW535","v":0},{"$f":"IF('1. Order'!AE535=\"\",\"\",'1. Order'!AE535)","v":""}]
[{"$f":"IF('1. Order'!B536=\"\",\"\",'1. Order'!B536)","v":""},{"$f":"IF('1. Order'!I536=\"\",\"\",'1. Order'!I536)","v":""},{"$f":"IF('1. Order'!J536=\"\",\"\",'1. Order'!J536)","v":""},{"$f":"IF('1. Order'!K536=\"\",\"\",'1. Order'!K536)","v":""},{"$f":"IF('1. Order'!M536=\"\",\"\",'1. Order'!M536)","v":""},null,null,{"$f":"'1. Order'!AW536","v":0},{"$f":"IF('1. Order'!AE536=\"\",\"\",'1. Order'!AE536)","v":""}]
[{"$f":"IF('1. Order'!B537=\"\",\"\",'1. Order'!B537)","v":""},{"$f":"IF('1. Order'!I537=\"\",\"\",'1. Order'!I537)","v":""},{"$f":"IF('1. Order'!J537=\"\",\"\",'1. Order'!J537)","v":""},{"$f":"IF('1. Order'!K537=\"\",\"\",'1. Order'!K537)","v":""},{"$f":"IF('1. Order'!M537=\"\",\"\",'1. Order'!M537)","v":""},null,null,{"$f":"'1. Order'!AW537","v":0},{"$f":"IF('1. Order'!AE537=\"\",\"\",'1. Order'!AE537)","v":""}]
[{"$f":"IF('1. Order'!B538=\"\",\"\",'1. Order'!B538)","v":""},{"$f":"IF('1. Order'!I538=\"\",\"\",'1. Order'!I538)","v":""},{"$f":"IF('1. Order'!J538=\"\",\"\",'1. Order'!J538)","v":""},{"$f":"IF('1. Order'!K538=\"\",\"\",'1. Order'!K538)","v":""},{"$f":"IF('1. Order'!M538=\"\",\"\",'1. Order'!M538)","v":""},null,null,{"$f":"'1. Order'!AW538","v":0},{"$f":"IF('1. Order'!AE538=\"\",\"\",'1. Order'!AE538)","v":""}]
[{"$f":"IF('1. Order'!B539=\"\",\"\",'1. Order'!B539)","v":""},{"$f":"IF('1. Order'!I539=\"\",\"\",'1. Order'!I539)","v":""},{"$f":"IF('1. Order'!J539=\"\",\"\",'1. Order'!J539)","v":""},{"$f":"IF('1. Order'!K539=\"\",\"\",'1. Order'!K539)","v":""},{"$f":"IF('1. Order'!M539=\"\",\"\",'1. Order'!M539)","v":""},null,null,{"$f":"'1. Order'!AW539","v":0},{"$f":"IF('1. Order'!AE539=\"\",\"\",'1. Order'!AE539)","v":""}]
[{"$f":"IF('1. Order'!B540=\"\",\"\",'1. Order'!B540)","v":""},{"$f":"IF('1. Order'!I540=\"\",\"\",'1. Order'!I540)","v":""},{"$f":"IF('1. Order'!J540=\"\",\"\",'1. Order'!J540)","v":""},{"$f":"IF('1. Order'!K540=\"\",\"\",'1. Order'!K540)","v":""},{"$f":"IF('1. Order'!M540=\"\",\"\",'1. Order'!M540)","v":""},null,null,{"$f":"'1. Order'!AW540","v":0},{"$f":"IF('1. Order'!AE540=\"\",\"\",'1. Order'!AE540)","v":""}]
[{"$f":"IF('1. Order'!B541=\"\",\"\",'1. Order'!B541)","v":""},{"$f":"IF('1. Order'!I541=\"\",\"\",'1. Order'!I541)","v":""},{"$f":"IF('1. Order'!J541=\"\",\"\",'1. Order'!J541)","v":""},{"$f":"IF('1. Order'!K541=\"\",\"\",'1. Order'!K541)","v":""},{"$f":"IF('1. Order'!M541=\"\",\"\",'1. Order'!M541)","v":""},null,null,{"$f":"'1. Order'!AW541","v":0},{"$f":"IF('1. Order'!AE541=\"\",\"\",'1. Order'!AE541)","v":""}]
[{"$f":"IF('1. Order'!B542=\"\",\"\",'1. Order'!B542)","v":""},{"$f":"IF('1. Order'!I542=\"\",\"\",'1. Order'!I542)","v":""},{"$f":"IF('1. Order'!J542=\"\",\"\",'1. Order'!J542)","v":""},{"$f":"IF('1. Order'!K542=\"\",\"\",'1. Order'!K542)","v":""},{"$f":"IF('1. Order'!M542=\"\",\"\",'1. Order'!M542)","v":""},null,null,{"$f":"'1. Order'!AW542","v":0},{"$f":"IF('1. Order'!AE542=\"\",\"\",'1. Order'!AE542)","v":""}]
[{"$f":"IF('1. Order'!B543=\"\",\"\",'1. Order'!B543)","v":""},{"$f":"IF('1. Order'!I543=\"\",\"\",'1. Order'!I543)","v":""},{"$f":"IF('1. Order'!J543=\"\",\"\",'1. Order'!J543)","v":""},{"$f":"IF('1. Order'!K543=\"\",\"\",'1. Order'!K543)","v":""},{"$f":"IF('1. Order'!M543=\"\",\"\",'1. Order'!M543)","v":""},null,null,{"$f":"'1. Order'!AW543","v":0},{"$f":"IF('1. Order'!AE543=\"\",\"\",'1. Order'!AE543)","v":""}]
[{"$f":"IF('1. Order'!B544=\"\",\"\",'1. Order'!B544)","v":""},{"$f":"IF('1. Order'!I544=\"\",\"\",'1. Order'!I544)","v":""},{"$f":"IF('1. Order'!J544=\"\",\"\",'1. Order'!J544)","v":""},{"$f":"IF('1. Order'!K544=\"\",\"\",'1. Order'!K544)","v":""},{"$f":"IF('1. Order'!M544=\"\",\"\",'1. Order'!M544)","v":""},null,null,{"$f":"'1. Order'!AW544","v":0},{"$f":"IF('1. Order'!AE544=\"\",\"\",'1. Order'!AE544)","v":""}]
[{"$f":"IF('1. Order'!B545=\"\",\"\",'1. Order'!B545)","v":""},{"$f":"IF('1. Order'!I545=\"\",\"\",'1. Order'!I545)","v":""},{"$f":"IF('1. Order'!J545=\"\",\"\",'1. Order'!J545)","v":""},{"$f":"IF('1. Order'!K545=\"\",\"\",'1. Order'!K545)","v":""},{"$f":"IF('1. Order'!M545=\"\",\"\",'1. Order'!M545)","v":""},null,null,{"$f":"'1. Order'!AW545","v":0},{"$f":"IF('1. Order'!AE545=\"\",\"\",'1. Order'!AE545)","v":""}]
[{"$f":"IF('1. Order'!B546=\"\",\"\",'1. Order'!B546)","v":""},{"$f":"IF('1. Order'!I546=\"\",\"\",'1. Order'!I546)","v":""},{"$f":"IF('1. Order'!J546=\"\",\"\",'1. Order'!J546)","v":""},{"$f":"IF('1. Order'!K546=\"\",\"\",'1. Order'!K546)","v":""},{"$f":"IF('1. Order'!M546=\"\",\"\",'1. Order'!M546)","v":""},null,null,{"$f":"'1. Order'!AW546","v":0},{"$f":"IF('1. Order'!AE546=\"\",\"\",'1. Order'!AE546)","v":""}]
[{"$f":"IF('1. Order'!B547=\"\",\"\",'1. Order'!B547)","v":""},{"$f":"IF('1. Order'!I547=\"\",\"\",'1. Order'!I547)","v":""},{"$f":"IF('1. Order'!J547=\"\",\"\",'1. Order'!J547)","v":""},{"$f":"IF('1. Order'!K547=\"\",\"\",'1. Order'!K547)","v":""},{"$f":"IF('1. Order'!M547=\"\",\"\",'1. Order'!M547)","v":""},null,null,{"$f":"'1. Order'!AW547","v":0},{"$f":"IF('1. Order'!AE547=\"\",\"\",'1. Order'!AE547)","v":""}]
[{"$f":"IF('1. Order'!B548=\"\",\"\",'1. Order'!B548)","v":""},{"$f":"IF('1. Order'!I548=\"\",\"\",'1. Order'!I548)","v":""},{"$f":"IF('1. Order'!J548=\"\",\"\",'1. Order'!J548)","v":""},{"$f":"IF('1. Order'!K548=\"\",\"\",'1. Order'!K548)","v":""},{"$f":"IF('1. Order'!M548=\"\",\"\",'1. Order'!M548)","v":""},null,null,{"$f":"'1. Order'!AW548","v":0},{"$f":"IF('1. Order'!AE548=\"\",\"\",'1. Order'!AE548)","v":""}]
[{"$f":"IF('1. Order'!B549=\"\",\"\",'1. Order'!B549)","v":""},{"$f":"IF('1. Order'!I549=\"\",\"\",'1. Order'!I549)","v":""},{"$f":"IF('1. Order'!J549=\"\",\"\",'1. Order'!J549)","v":""},{"$f":"IF('1. Order'!K549=\"\",\"\",'1. Order'!K549)","v":""},{"$f":"IF('1. Order'!M549=\"\",\"\",'1. Order'!M549)","v":""},null,null,{"$f":"'1. Order'!AW549","v":0},{"$f":"IF('1. Order'!AE549=\"\",\"\",'1. Order'!AE549)","v":""}]
[{"$f":"IF('1. Order'!B550=\"\",\"\",'1. Order'!B550)","v":""},{"$f":"IF('1. Order'!I550=\"\",\"\",'1. Order'!I550)","v":""},{"$f":"IF('1. Order'!J550=\"\",\"\",'1. Order'!J550)","v":""},{"$f":"IF('1. Order'!K550=\"\",\"\",'1. Order'!K550)","v":""},{"$f":"IF('1. Order'!M550=\"\",\"\",'1. Order'!M550)","v":""},null,null,{"$f":"'1. Order'!AW550","v":0},{"$f":"IF('1. Order'!AE550=\"\",\"\",'1. Order'!AE550)","v":""}]
[{"$f":"IF('1. Order'!B551=\"\",\"\",'1. Order'!B551)","v":""},{"$f":"IF('1. Order'!I551=\"\",\"\",'1. Order'!I551)","v":""},{"$f":"IF('1. Order'!J551=\"\",\"\",'1. Order'!J551)","v":""},{"$f":"IF('1. Order'!K551=\"\",\"\",'1. Order'!K551)","v":""},{"$f":"IF('1. Order'!M551=\"\",\"\",'1. Order'!M551)","v":""},null,null,{"$f":"'1. Order'!AW551","v":0},{"$f":"IF('1. Order'!AE551=\"\",\"\",'1. Order'!AE551)","v":""}]
[{"$f":"IF('1. Order'!B552=\"\",\"\",'1. Order'!B552)","v":""},{"$f":"IF('1. Order'!I552=\"\",\"\",'1. Order'!I552)","v":""},{"$f":"IF('1. Order'!J552=\"\",\"\",'1. Order'!J552)","v":""},{"$f":"IF('1. Order'!K552=\"\",\"\",'1. Order'!K552)","v":""},{"$f":"IF('1. Order'!M552=\"\",\"\",'1. Order'!M552)","v":""},null,null,{"$f":"'1. Order'!AW552","v":0},{"$f":"IF('1. Order'!AE552=\"\",\"\",'1. Order'!AE552)","v":""}]
[{"$f":"IF('1. Order'!B553=\"\",\"\",'1. Order'!B553)","v":""},{"$f":"IF('1. Order'!I553=\"\",\"\",'1. Order'!I553)","v":""},{"$f":"IF('1. Order'!J553=\"\",\"\",'1. Order'!J553)","v":""},{"$f":"IF('1. Order'!K553=\"\",\"\",'1. Order'!K553)","v":""},{"$f":"IF('1. Order'!M553=\"\",\"\",'1. Order'!M553)","v":""},null,null,{"$f":"'1. Order'!AW553","v":0},{"$f":"IF('1. Order'!AE553=\"\",\"\",'1. Order'!AE553)","v":""}]
[{"$f":"IF('1. Order'!B554=\"\",\"\",'1. Order'!B554)","v":""},{"$f":"IF('1. Order'!I554=\"\",\"\",'1. Order'!I554)","v":""},{"$f":"IF('1. Order'!J554=\"\",\"\",'1. Order'!J554)","v":""},{"$f":"IF('1. Order'!K554=\"\",\"\",'1. Order'!K554)","v":""},{"$f":"IF('1. Order'!M554=\"\",\"\",'1. Order'!M554)","v":""},null,null,{"$f":"'1. Order'!AW554","v":0},{"$f":"IF('1. Order'!AE554=\"\",\"\",'1. Order'!AE554)","v":""}]
[{"$f":"IF('1. Order'!B555=\"\",\"\",'1. Order'!B555)","v":""},{"$f":"IF('1. Order'!I555=\"\",\"\",'1. Order'!I555)","v":""},{"$f":"IF('1. Order'!J555=\"\",\"\",'1. Order'!J555)","v":""},{"$f":"IF('1. Order'!K555=\"\",\"\",'1. Order'!K555)","v":""},{"$f":"IF('1. Order'!M555=\"\",\"\",'1. Order'!M555)","v":""},null,null,{"$f":"'1. Order'!AW555","v":0},{"$f":"IF('1. Order'!AE555=\"\",\"\",'1. Order'!AE555)","v":""}]
[{"$f":"IF('1. Order'!B556=\"\",\"\",'1. Order'!B556)","v":""},{"$f":"IF('1. Order'!I556=\"\",\"\",'1. Order'!I556)","v":""},{"$f":"IF('1. Order'!J556=\"\",\"\",'1. Order'!J556)","v":""},{"$f":"IF('1. Order'!K556=\"\",\"\",'1. Order'!K556)","v":""},{"$f":"IF('1. Order'!M556=\"\",\"\",'1. Order'!M556)","v":""},null,null,{"$f":"'1. Order'!AW556","v":0},{"$f":"IF('1. Order'!AE556=\"\",\"\",'1. Order'!AE556)","v":""}]
[{"$f":"IF('1. Order'!B557=\"\",\"\",'1. Order'!B557)","v":""},{"$f":"IF('1. Order'!I557=\"\",\"\",'1. Order'!I557)","v":""},{"$f":"IF('1. Order'!J557=\"\",\"\",'1. Order'!J557)","v":""},{"$f":"IF('1. Order'!K557=\"\",\"\",'1. Order'!K557)","v":""},{"$f":"IF('1. Order'!M557=\"\",\"\",'1. Order'!M557)","v":""},null,null,{"$f":"'1. Order'!AW557","v":0},{"$f":"IF('1. Order'!AE557=\"\",\"\",'1. Order'!AE557)","v":""}]
[{"$f":"IF('1. Order'!B558=\"\",\"\",'1. Order'!B558)","v":""},{"$f":"IF('1. Order'!I558=\"\",\"\",'1. Order'!I558)","v":""},{"$f":"IF('1. Order'!J558=\"\",\"\",'1. Order'!J558)","v":""},{"$f":"IF('1. Order'!K558=\"\",\"\",'1. Order'!K558)","v":""},{"$f":"IF('1. Order'!M558=\"\",\"\",'1. Order'!M558)","v":""},null,null,{"$f":"'1. Order'!AW558","v":0},{"$f":"IF('1. Order'!AE558=\"\",\"\",'1. Order'!AE558)","v":""}]
[{"$f":"IF('1. Order'!B559=\"\",\"\",'1. Order'!B559)","v":""},{"$f":"IF('1. Order'!I559=\"\",\"\",'1. Order'!I559)","v":""},{"$f":"IF('1. Order'!J559=\"\",\"\",'1. Order'!J559)","v":""},{"$f":"IF('1. Order'!K559=\"\",\"\",'1. Order'!K559)","v":""},{"$f":"IF('1. Order'!M559=\"\",\"\",'1. Order'!M559)","v":""},null,null,{"$f":"'1. Order'!AW559","v":0},{"$f":"IF('1. Order'!AE559=\"\",\"\",'1. Order'!AE559)","v":""}]
[{"$f":"IF('1. Order'!B560=\"\",\"\",'1. Order'!B560)","v":""},{"$f":"IF('1. Order'!I560=\"\",\"\",'1. Order'!I560)","v":""},{"$f":"IF('1. Order'!J560=\"\",\"\",'1. Order'!J560)","v":""},{"$f":"IF('1. Order'!K560=\"\",\"\",'1. Order'!K560)","v":""},{"$f":"IF('1. Order'!M560=\"\",\"\",'1. Order'!M560)","v":""},null,null,{"$f":"'1. Order'!AW560","v":0},{"$f":"IF('1. Order'!AE560=\"\",\"\",'1. Order'!AE560)","v":""}]
[{"$f":"IF('1. Order'!B561=\"\",\"\",'1. Order'!B561)","v":""},{"$f":"IF('1. Order'!I561=\"\",\"\",'1. Order'!I561)","v":""},{"$f":"IF('1. Order'!J561=\"\",\"\",'1. Order'!J561)","v":""},{"$f":"IF('1. Order'!K561=\"\",\"\",'1. Order'!K561)","v":""},{"$f":"IF('1. Order'!M561=\"\",\"\",'1. Order'!M561)","v":""},null,null,{"$f":"'1. Order'!AW561","v":0},{"$f":"IF('1. Order'!AE561=\"\",\"\",'1. Order'!AE561)","v":""}]
[{"$f":"IF('1. Order'!B562=\"\",\"\",'1. Order'!B562)","v":""},{"$f":"IF('1. Order'!I562=\"\",\"\",'1. Order'!I562)","v":""},{"$f":"IF('1. Order'!J562=\"\",\"\",'1. Order'!J562)","v":""},{"$f":"IF('1. Order'!K562=\"\",\"\",'1. Order'!K562)","v":""},{"$f":"IF('1. Order'!M562=\"\",\"\",'1. Order'!M562)","v":""},null,null,{"$f":"'1. Order'!AW562","v":0},{"$f":"IF('1. Order'!AE562=\"\",\"\",'1. Order'!AE562)","v":""}]
[{"$f":"IF('1. Order'!B563=\"\",\"\",'1. Order'!B563)","v":""},{"$f":"IF('1. Order'!I563=\"\",\"\",'1. Order'!I563)","v":""},{"$f":"IF('1. Order'!J563=\"\",\"\",'1. Order'!J563)","v":""},{"$f":"IF('1. Order'!K563=\"\",\"\",'1. Order'!K563)","v":""},{"$f":"IF('1. Order'!M563=\"\",\"\",'1. Order'!M563)","v":""},null,null,{"$f":"'1. Order'!AW563","v":0},{"$f":"IF('1. Order'!AE563=\"\",\"\",'1. Order'!AE563)","v":""}]
[{"$f":"IF('1. Order'!B564=\"\",\"\",'1. Order'!B564)","v":""},{"$f":"IF('1. Order'!I564=\"\",\"\",'1. Order'!I564)","v":""},{"$f":"IF('1. Order'!J564=\"\",\"\",'1. Order'!J564)","v":""},{"$f":"IF('1. Order'!K564=\"\",\"\",'1. Order'!K564)","v":""},{"$f":"IF('1. Order'!M564=\"\",\"\",'1. Order'!M564)","v":""},null,null,{"$f":"'1. Order'!AW564","v":0},{"$f":"IF('1. Order'!AE564=\"\",\"\",'1. Order'!AE564)","v":""}]
[{"$f":"IF('1. Order'!B565=\"\",\"\",'1. Order'!B565)","v":""},{"$f":"IF('1. Order'!I565=\"\",\"\",'1. Order'!I565)","v":""},{"$f":"IF('1. Order'!J565=\"\",\"\",'1. Order'!J565)","v":""},{"$f":"IF('1. Order'!K565=\"\",\"\",'1. Order'!K565)","v":""},{"$f":"IF('1. Order'!M565=\"\",\"\",'1. Order'!M565)","v":""},null,null,{"$f":"'1. Order'!AW565","v":0},{"$f":"IF('1. Order'!AE565=\"\",\"\",'1. Order'!AE565)","v":""}]
[{"$f":"IF('1. Order'!B566=\"\",\"\",'1. Order'!B566)","v":""},{"$f":"IF('1. Order'!I566=\"\",\"\",'1. Order'!I566)","v":""},{"$f":"IF('1. Order'!J566=\"\",\"\",'1. Order'!J566)","v":""},{"$f":"IF('1. Order'!K566=\"\",\"\",'1. Order'!K566)","v":""},{"$f":"IF('1. Order'!M566=\"\",\"\",'1. Order'!M566)","v":""},null,null,{"$f":"'1. Order'!AW566","v":0},{"$f":"IF('1. Order'!AE566=\"\",\"\",'1. Order'!AE566)","v":""}]
[{"$f":"IF('1. Order'!B567=\"\",\"\",'1. Order'!B567)","v":""},{"$f":"IF('1. Order'!I567=\"\",\"\",'1. Order'!I567)","v":""},{"$f":"IF('1. Order'!J567=\"\",\"\",'1. Order'!J567)","v":""},{"$f":"IF('1. Order'!K567=\"\",\"\",'1. Order'!K567)","v":""},{"$f":"IF('1. Order'!M567=\"\",\"\",'1. Order'!M567)","v":""},null,null,{"$f":"'1. Order'!AW567","v":0},{"$f":"IF('1. Order'!AE567=\"\",\"\",'1. Order'!AE567)","v":""}]
[{"$f":"IF('1. Order'!B568=\"\",\"\",'1. Order'!B568)","v":""},{"$f":"IF('1. Order'!I568=\"\",\"\",'1. Order'!I568)","v":""},{"$f":"IF('1. Order'!J568=\"\",\"\",'1. Order'!J568)","v":""},{"$f":"IF('1. Order'!K568=\"\",\"\",'1. Order'!K568)","v":""},{"$f":"IF('1. Order'!M568=\"\",\"\",'1. Order'!M568)","v":""},null,null,{"$f":"'1. Order'!AW568","v":0},{"$f":"IF('1. Order'!AE568=\"\",\"\",'1. Order'!AE568)","v":""}]
[{"$f":"IF('1. Order'!B569=\"\",\"\",'1. Order'!B569)","v":""},{"$f":"IF('1. Order'!I569=\"\",\"\",'1. Order'!I569)","v":""},{"$f":"IF('1. Order'!J569=\"\",\"\",'1. Order'!J569)","v":""},{"$f":"IF('1. Order'!K569=\"\",\"\",'1. Order'!K569)","v":""},{"$f":"IF('1. Order'!M569=\"\",\"\",'1. Order'!M569)","v":""},null,null,{"$f":"'1. Order'!AW569","v":0},{"$f":"IF('1. Order'!AE569=\"\",\"\",'1. Order'!AE569)","v":""}]
[{"$f":"IF('1. Order'!B570=\"\",\"\",'1. Order'!B570)","v":""},{"$f":"IF('1. Order'!I570=\"\",\"\",'1. Order'!I570)","v":""},{"$f":"IF('1. Order'!J570=\"\",\"\",'1. Order'!J570)","v":""},{"$f":"IF('1. Order'!K570=\"\",\"\",'1. Order'!K570)","v":""},{"$f":"IF('1. Order'!M570=\"\",\"\",'1. Order'!M570)","v":""},null,null,{"$f":"'1. Order'!AW570","v":0},{"$f":"IF('1. Order'!AE570=\"\",\"\",'1. Order'!AE570)","v":""}]
[{"$f":"IF('1. Order'!B571=\"\",\"\",'1. Order'!B571)","v":""},{"$f":"IF('1. Order'!I571=\"\",\"\",'1. Order'!I571)","v":""},{"$f":"IF('1. Order'!J571=\"\",\"\",'1. Order'!J571)","v":""},{"$f":"IF('1. Order'!K571=\"\",\"\",'1. Order'!K571)","v":""},{"$f":"IF('1. Order'!M571=\"\",\"\",'1. Order'!M571)","v":""},null,null,{"$f":"'1. Order'!AW571","v":0},{"$f":"IF('1. Order'!AE571=\"\",\"\",'1. Order'!AE571)","v":""}]
[{"$f":"IF('1. Order'!B572=\"\",\"\",'1. Order'!B572)","v":""},{"$f":"IF('1. Order'!I572=\"\",\"\",'1. Order'!I572)","v":""},{"$f":"IF('1. Order'!J572=\"\",\"\",'1. Order'!J572)","v":""},{"$f":"IF('1. Order'!K572=\"\",\"\",'1. Order'!K572)","v":""},{"$f":"IF('1. Order'!M572=\"\",\"\",'1. Order'!M572)","v":""},null,null,{"$f":"'1. Order'!AW572","v":0},{"$f":"IF('1. Order'!AE572=\"\",\"\",'1. Order'!AE572)","v":""}]
[{"$f":"IF('1. Order'!B573=\"\",\"\",'1. Order'!B573)","v":""},{"$f":"IF('1. Order'!I573=\"\",\"\",'1. Order'!I573)","v":""},{"$f":"IF('1. Order'!J573=\"\",\"\",'1. Order'!J573)","v":""},{"$f":"IF('1. Order'!K573=\"\",\"\",'1. Order'!K573)","v":""},{"$f":"IF('1. Order'!M573=\"\",\"\",'1. Order'!M573)","v":""},null,null,{"$f":"'1. Order'!AW573","v":0},{"$f":"IF('1. Order'!AE573=\"\",\"\",'1. Order'!AE573)","v":""}]
[{"$f":"IF('1. Order'!B574=\"\",\"\",'1. Order'!B574)","v":""},{"$f":"IF('1. Order'!I574=\"\",\"\",'1. Order'!I574)","v":""},{"$f":"IF('1. Order'!J574=\"\",\"\",'1. Order'!J574)","v":""},{"$f":"IF('1. Order'!K574=\"\",\"\",'1. Order'!K574)","v":""},{"$f":"IF('1. Order'!M574=\"\",\"\",'1. Order'!M574)","v":""},null,null,{"$f":"'1. Order'!AW574","v":0},{"$f":"IF('1. Order'!AE574=\"\",\"\",'1. Order'!AE574)","v":""}]
[{"$f":"IF('1. Order'!B575=\"\",\"\",'1. Order'!B575)","v":""},{"$f":"IF('1. Order'!I575=\"\",\"\",'1. Order'!I575)","v":""},{"$f":"IF('1. Order'!J575=\"\",\"\",'1. Order'!J575)","v":""},{"$f":"IF('1. Order'!K575=\"\",\"\",'1. Order'!K575)","v":""},{"$f":"IF('1. Order'!M575=\"\",\"\",'1. Order'!M575)","v":""},null,null,{"$f":"'1. Order'!AW575","v":0},{"$f":"IF('1. Order'!AE575=\"\",\"\",'1. Order'!AE575)","v":""}]
[{"$f":"IF('1. Order'!B576=\"\",\"\",'1. Order'!B576)","v":""},{"$f":"IF('1. Order'!I576=\"\",\"\",'1. Order'!I576)","v":""},{"$f":"IF('1. Order'!J576=\"\",\"\",'1. Order'!J576)","v":""},{"$f":"IF('1. Order'!K576=\"\",\"\",'1. Order'!K576)","v":""},{"$f":"IF('1. Order'!M576=\"\",\"\",'1. Order'!M576)","v":""},null,null,{"$f":"'1. Order'!AW576","v":0},{"$f":"IF('1. Order'!AE576=\"\",\"\",'1. Order'!AE576)","v":""}]
[{"$f":"IF('1. Order'!B577=\"\",\"\",'1. Order'!B577)","v":""},{"$f":"IF('1. Order'!I577=\"\",\"\",'1. Order'!I577)","v":""},{"$f":"IF('1. Order'!J577=\"\",\"\",'1. Order'!J577)","v":""},{"$f":"IF('1. Order'!K577=\"\",\"\",'1. Order'!K577)","v":""},{"$f":"IF('1. Order'!M577=\"\",\"\",'1. Order'!M577)","v":""},null,null,{"$f":"'1. Order'!AW577","v":0},{"$f":"IF('1. Order'!AE577=\"\",\"\",'1. Order'!AE577)","v":""}]
[{"$f":"IF('1. Order'!B578=\"\",\"\",'1. Order'!B578)","v":""},{"$f":"IF('1. Order'!I578=\"\",\"\",'1. Order'!I578)","v":""},{"$f":"IF('1. Order'!J578=\"\",\"\",'1. Order'!J578)","v":""},{"$f":"IF('1. Order'!K578=\"\",\"\",'1. Order'!K578)","v":""},{"$f":"IF('1. Order'!M578=\"\",\"\",'1. Order'!M578)","v":""},null,null,{"$f":"'1. Order'!AW578","v":0},{"$f":"IF('1. Order'!AE578=\"\",\"\",'1. Order'!AE578)","v":""}]
[{"$f":"IF('1. Order'!B579=\"\",\"\",'1. Order'!B579)","v":""},{"$f":"IF('1. Order'!I579=\"\",\"\",'1. Order'!I579)","v":""},{"$f":"IF('1. Order'!J579=\"\",\"\",'1. Order'!J579)","v":""},{"$f":"IF('1. Order'!K579=\"\",\"\",'1. Order'!K579)","v":""},{"$f":"IF('1. Order'!M579=\"\",\"\",'1. Order'!M579)","v":""},null,null,{"$f":"'1. Order'!AW579","v":0},{"$f":"IF('1. Order'!AE579=\"\",\"\",'1. Order'!AE579)","v":""}]
[{"$f":"IF('1. Order'!B580=\"\",\"\",'1. Order'!B580)","v":""},{"$f":"IF('1. Order'!I580=\"\",\"\",'1. Order'!I580)","v":""},{"$f":"IF('1. Order'!J580=\"\",\"\",'1. Order'!J580)","v":""},{"$f":"IF('1. Order'!K580=\"\",\"\",'1. Order'!K580)","v":""},{"$f":"IF('1. Order'!M580=\"\",\"\",'1. Order'!M580)","v":""},null,null,{"$f":"'1. Order'!AW580","v":0},{"$f":"IF('1. Order'!AE580=\"\",\"\",'1. Order'!AE580)","v":""}]
[{"$f":"IF('1. Order'!B581=\"\",\"\",'1. Order'!B581)","v":""},{"$f":"IF('1. Order'!I581=\"\",\"\",'1. Order'!I581)","v":""},{"$f":"IF('1. Order'!J581=\"\",\"\",'1. Order'!J581)","v":""},{"$f":"IF('1. Order'!K581=\"\",\"\",'1. Order'!K581)","v":""},{"$f":"IF('1. Order'!M581=\"\",\"\",'1. Order'!M581)","v":""},null,null,{"$f":"'1. Order'!AW581","v":0},{"$f":"IF('1. Order'!AE581=\"\",\"\",'1. Order'!AE581)","v":""}]
[{"$f":"IF('1. Order'!B582=\"\",\"\",'1. Order'!B582)","v":""},{"$f":"IF('1. Order'!I582=\"\",\"\",'1. Order'!I582)","v":""},{"$f":"IF('1. Order'!J582=\"\",\"\",'1. Order'!J582)","v":""},{"$f":"IF('1. Order'!K582=\"\",\"\",'1. Order'!K582)","v":""},{"$f":"IF('1. Order'!M582=\"\",\"\",'1. Order'!M582)","v":""},null,null,{"$f":"'1. Order'!AW582","v":0},{"$f":"IF('1. Order'!AE582=\"\",\"\",'1. Order'!AE582)","v":""}]
[{"$f":"IF('1. Order'!B583=\"\",\"\",'1. Order'!B583)","v":""},{"$f":"IF('1. Order'!I583=\"\",\"\",'1. Order'!I583)","v":""},{"$f":"IF('1. Order'!J583=\"\",\"\",'1. Order'!J583)","v":""},{"$f":"IF('1. Order'!K583=\"\",\"\",'1. Order'!K583)","v":""},{"$f":"IF('1. Order'!M583=\"\",\"\",'1. Order'!M583)","v":""},null,null,{"$f":"'1. Order'!AW583","v":0},{"$f":"IF('1. Order'!AE583=\"\",\"\",'1. Order'!AE583)","v":""}]
[{"$f":"IF('1. Order'!B584=\"\",\"\",'1. Order'!B584)","v":""},{"$f":"IF('1. Order'!I584=\"\",\"\",'1. Order'!I584)","v":""},{"$f":"IF('1. Order'!J584=\"\",\"\",'1. Order'!J584)","v":""},{"$f":"IF('1. Order'!K584=\"\",\"\",'1. Order'!K584)","v":""},{"$f":"IF('1. Order'!M584=\"\",\"\",'1. Order'!M584)","v":""},null,null,{"$f":"'1. Order'!AW584","v":0},{"$f":"IF('1. Order'!AE584=\"\",\"\",'1. Order'!AE584)","v":""}]
[{"$f":"IF('1. Order'!B585=\"\",\"\",'1. Order'!B585)","v":""},{"$f":"IF('1. Order'!I585=\"\",\"\",'1. Order'!I585)","v":""},{"$f":"IF('1. Order'!J585=\"\",\"\",'1. Order'!J585)","v":""},{"$f":"IF('1. Order'!K585=\"\",\"\",'1. Order'!K585)","v":""},{"$f":"IF('1. Order'!M585=\"\",\"\",'1. Order'!M585)","v":""},null,null,{"$f":"'1. Order'!AW585","v":0},{"$f":"IF('1. Order'!AE585=\"\",\"\",'1. Order'!AE585)","v":""}]
[{"$f":"IF('1. Order'!B586=\"\",\"\",'1. Order'!B586)","v":""},{"$f":"IF('1. Order'!I586=\"\",\"\",'1. Order'!I586)","v":""},{"$f":"IF('1. Order'!J586=\"\",\"\",'1. Order'!J586)","v":""},{"$f":"IF('1. Order'!K586=\"\",\"\",'1. Order'!K586)","v":""},{"$f":"IF('1. Order'!M586=\"\",\"\",'1. Order'!M586)","v":""},null,null,{"$f":"'1. Order'!AW586","v":0},{"$f":"IF('1. Order'!AE586=\"\",\"\",'1. Order'!AE586)","v":""}]
[{"$f":"IF('1. Order'!B587=\"\",\"\",'1. Order'!B587)","v":""},{"$f":"IF('1. Order'!I587=\"\",\"\",'1. Order'!I587)","v":""},{"$f":"IF('1. Order'!J587=\"\",\"\",'1. Order'!J587)","v":""},{"$f":"IF('1. Order'!K587=\"\",\"\",'1. Order'!K587)","v":""},{"$f":"IF('1. Order'!M587=\"\",\"\",'1. Order'!M587)","v":""},null,null,{"$f":"'1. Order'!AW587","v":0},{"$f":"IF('1. Order'!AE587=\"\",\"\",'1. Order'!AE587)","v":""}]
[{"$f":"IF('1. Order'!B588=\"\",\"\",'1. Order'!B588)","v":""},{"$f":"IF('1. Order'!I588=\"\",\"\",'1. Order'!I588)","v":""},{"$f":"IF('1. Order'!J588=\"\",\"\",'1. Order'!J588)","v":""},{"$f":"IF('1. Order'!K588=\"\",\"\",'1. Order'!K588)","v":""},{"$f":"IF('1. Order'!M588=\"\",\"\",'1. Order'!M588)","v":""},null,null,{"$f":"'1. Order'!AW588","v":0},{"$f":"IF('1. Order'!AE588=\"\",\"\",'1. Order'!AE588)","v":""}]
[{"$f":"IF('1. Order'!B589=\"\",\"\",'1. Order'!B589)","v":""},{"$f":"IF('1. Order'!I589=\"\",\"\",'1. Order'!I589)","v":""},{"$f":"IF('1. Order'!J589=\"\",\"\",'1. Order'!J589)","v":""},{"$f":"IF('1. Order'!K589=\"\",\"\",'1. Order'!K589)","v":""},{"$f":"IF('1. Order'!M589=\"\",\"\",'1. Order'!M589)","v":""},null,null,{"$f":"'1. Order'!AW589","v":0},{"$f":"IF('1. Order'!AE589=\"\",\"\",'1. Order'!AE589)","v":""}]
[{"$f":"IF('1. Order'!B590=\"\",\"\",'1. Order'!B590)","v":""},{"$f":"IF('1. Order'!I590=\"\",\"\",'1. Order'!I590)","v":""},{"$f":"IF('1. Order'!J590=\"\",\"\",'1. Order'!J590)","v":""},{"$f":"IF('1. Order'!K590=\"\",\"\",'1. Order'!K590)","v":""},{"$f":"IF('1. Order'!M590=\"\",\"\",'1. Order'!M590)","v":""},null,null,{"$f":"'1. Order'!AW590","v":0},{"$f":"IF('1. Order'!AE590=\"\",\"\",'1. Order'!AE590)","v":""}]
[{"$f":"IF('1. Order'!B591=\"\",\"\",'1. Order'!B591)","v":""},{"$f":"IF('1. Order'!I591=\"\",\"\",'1. Order'!I591)","v":""},{"$f":"IF('1. Order'!J591=\"\",\"\",'1. Order'!J591)","v":""},{"$f":"IF('1. Order'!K591=\"\",\"\",'1. Order'!K591)","v":""},{"$f":"IF('1. Order'!M591=\"\",\"\",'1. Order'!M591)","v":""},null,null,{"$f":"'1. Order'!AW591","v":0},{"$f":"IF('1. Order'!AE591=\"\",\"\",'1. Order'!AE591)","v":""}]
[{"$f":"IF('1. Order'!B592=\"\",\"\",'1. Order'!B592)","v":""},{"$f":"IF('1. Order'!I592=\"\",\"\",'1. Order'!I592)","v":""},{"$f":"IF('1. Order'!J592=\"\",\"\",'1. Order'!J592)","v":""},{"$f":"IF('1. Order'!K592=\"\",\"\",'1. Order'!K592)","v":""},{"$f":"IF('1. Order'!M592=\"\",\"\",'1. Order'!M592)","v":""},null,null,{"$f":"'1. Order'!AW592","v":0},{"$f":"IF('1. Order'!AE592=\"\",\"\",'1. Order'!AE592)","v":""}]
[{"$f":"IF('1. Order'!B593=\"\",\"\",'1. Order'!B593)","v":""},{"$f":"IF('1. Order'!I593=\"\",\"\",'1. Order'!I593)","v":""},{"$f":"IF('1. Order'!J593=\"\",\"\",'1. Order'!J593)","v":""},{"$f":"IF('1. Order'!K593=\"\",\"\",'1. Order'!K593)","v":""},{"$f":"IF('1. Order'!M593=\"\",\"\",'1. Order'!M593)","v":""},null,null,{"$f":"'1. Order'!AW593","v":0},{"$f":"IF('1. Order'!AE593=\"\",\"\",'1. Order'!AE593)","v":""}]
[{"$f":"IF('1. Order'!B594=\"\",\"\",'1. Order'!B594)","v":""},{"$f":"IF('1. Order'!I594=\"\",\"\",'1. Order'!I594)","v":""},{"$f":"IF('1. Order'!J594=\"\",\"\",'1. Order'!J594)","v":""},{"$f":"IF('1. Order'!K594=\"\",\"\",'1. Order'!K594)","v":""},{"$f":"IF('1. Order'!M594=\"\",\"\",'1. Order'!M594)","v":""},null,null,{"$f":"'1. Order'!AW594","v":0},{"$f":"IF('1. Order'!AE594=\"\",\"\",'1. Order'!AE594)","v":""}]
[{"$f":"IF('1. Order'!B595=\"\",\"\",'1. Order'!B595)","v":""},{"$f":"IF('1. Order'!I595=\"\",\"\",'1. Order'!I595)","v":""},{"$f":"IF('1. Order'!J595=\"\",\"\",'1. Order'!J595)","v":""},{"$f":"IF('1. Order'!K595=\"\",\"\",'1. Order'!K595)","v":""},{"$f":"IF('1. Order'!M595=\"\",\"\",'1. Order'!M595)","v":""},null,null,{"$f":"'1. Order'!AW595","v":0},{"$f":"IF('1. Order'!AE595=\"\",\"\",'1. Order'!AE595)","v":""}]
[{"$f":"IF('1. Order'!B596=\"\",\"\",'1. Order'!B596)","v":""},{"$f":"IF('1. Order'!I596=\"\",\"\",'1. Order'!I596)","v":""},{"$f":"IF('1. Order'!J596=\"\",\"\",'1. Order'!J596)","v":""},{"$f":"IF('1. Order'!K596=\"\",\"\",'1. Order'!K596)","v":""},{"$f":"IF('1. Order'!M596=\"\",\"\",'1. Order'!M596)","v":""},null,null,{"$f":"'1. Order'!AW596","v":0},{"$f":"IF('1. Order'!AE596=\"\",\"\",'1. Order'!AE596)","v":""}]
[{"$f":"IF('1. Order'!B597=\"\",\"\",'1. Order'!B597)","v":""},{"$f":"IF('1. Order'!I597=\"\",\"\",'1. Order'!I597)","v":""},{"$f":"IF('1. Order'!J597=\"\",\"\",'1. Order'!J597)","v":""},{"$f":"IF('1. Order'!K597=\"\",\"\",'1. Order'!K597)","v":""},{"$f":"IF('1. Order'!M597=\"\",\"\",'1. Order'!M597)","v":""},null,null,{"$f":"'1. Order'!AW597","v":0},{"$f":"IF('1. Order'!AE597=\"\",\"\",'1. Order'!AE597)","v":""}]
[{"$f":"IF('1. Order'!B598=\"\",\"\",'1. Order'!B598)","v":""},{"$f":"IF('1. Order'!I598=\"\",\"\",'1. Order'!I598)","v":""},{"$f":"IF('1. Order'!J598=\"\",\"\",'1. Order'!J598)","v":""},{"$f":"IF('1. Order'!K598=\"\",\"\",'1. Order'!K598)","v":""},{"$f":"IF('1. Order'!M598=\"\",\"\",'1. Order'!M598)","v":""},null,null,{"$f":"'1. Order'!AW598","v":0},{"$f":"IF('1. Order'!AE598=\"\",\"\",'1. Order'!AE598)","v":""}]
[{"$f":"IF('1. Order'!B599=\"\",\"\",'1. Order'!B599)","v":""},{"$f":"IF('1. Order'!I599=\"\",\"\",'1. Order'!I599)","v":""},{"$f":"IF('1. Order'!J599=\"\",\"\",'1. Order'!J599)","v":""},{"$f":"IF('1. Order'!K599=\"\",\"\",'1. Order'!K599)","v":""},{"$f":"IF('1. Order'!M599=\"\",\"\",'1. Order'!M599)","v":""},null,null,{"$f":"'1. Order'!AW599","v":0},{"$f":"IF('1. Order'!AE599=\"\",\"\",'1. Order'!AE599)","v":""}]
[{"$f":"IF('1. Order'!B600=\"\",\"\",'1. Order'!B600)","v":""},{"$f":"IF('1. Order'!I600=\"\",\"\",'1. Order'!I600)","v":""},{"$f":"IF('1. Order'!J600=\"\",\"\",'1. Order'!J600)","v":""},{"$f":"IF('1. Order'!K600=\"\",\"\",'1. Order'!K600)","v":""},{"$f":"IF('1. Order'!M600=\"\",\"\",'1. Order'!M600)","v":""},null,null,{"$f":"'1. Order'!AW600","v":0},{"$f":"IF('1. Order'!AE600=\"\",\"\",'1. Order'!AE600)","v":""}]
[{"$f":"IF('1. Order'!B601=\"\",\"\",'1. Order'!B601)","v":""},{"$f":"IF('1. Order'!I601=\"\",\"\",'1. Order'!I601)","v":""},{"$f":"IF('1. Order'!J601=\"\",\"\",'1. Order'!J601)","v":""},{"$f":"IF('1. Order'!K601=\"\",\"\",'1. Order'!K601)","v":""},{"$f":"IF('1. Order'!M601=\"\",\"\",'1. Order'!M601)","v":""},null,null,{"$f":"'1. Order'!AW601","v":0},{"$f":"IF('1. Order'!AE601=\"\",\"\",'1. Order'!AE601)","v":""}]
[{"$f":"IF('1. Order'!B602=\"\",\"\",'1. Order'!B602)","v":""},{"$f":"IF('1. Order'!I602=\"\",\"\",'1. Order'!I602)","v":""},{"$f":"IF('1. Order'!J602=\"\",\"\",'1. Order'!J602)","v":""},{"$f":"IF('1. Order'!K602=\"\",\"\",'1. Order'!K602)","v":""},{"$f":"IF('1. Order'!M602=\"\",\"\",'1. Order'!M602)","v":""},null,null,{"$f":"'1. Order'!AW602","v":0},{"$f":"IF('1. Order'!AE602=\"\",\"\",'1. Order'!AE602)","v":""}]
[{"$f":"IF('1. Order'!B603=\"\",\"\",'1. Order'!B603)","v":""},{"$f":"IF('1. Order'!I603=\"\",\"\",'1. Order'!I603)","v":""},{"$f":"IF('1. Order'!J603=\"\",\"\",'1. Order'!J603)","v":""},{"$f":"IF('1. Order'!K603=\"\",\"\",'1. Order'!K603)","v":""},{"$f":"IF('1. Order'!M603=\"\",\"\",'1. Order'!M603)","v":""},null,null,{"$f":"'1. Order'!AW603","v":0},{"$f":"IF('1. Order'!AE603=\"\",\"\",'1. Order'!AE603)","v":""}]
[{"$f":"IF('1. Order'!B604=\"\",\"\",'1. Order'!B604)","v":""},{"$f":"IF('1. Order'!I604=\"\",\"\",'1. Order'!I604)","v":""},{"$f":"IF('1. Order'!J604=\"\",\"\",'1. Order'!J604)","v":""},{"$f":"IF('1. Order'!K604=\"\",\"\",'1. Order'!K604)","v":""},{"$f":"IF('1. Order'!M604=\"\",\"\",'1. Order'!M604)","v":""},null,null,{"$f":"'1. Order'!AW604","v":0},{"$f":"IF('1. Order'!AE604=\"\",\"\",'1. Order'!AE604)","v":""}]
[{"$f":"IF('1. Order'!B605=\"\",\"\",'1. Order'!B605)","v":""},{"$f":"IF('1. Order'!I605=\"\",\"\",'1. Order'!I605)","v":""},{"$f":"IF('1. Order'!J605=\"\",\"\",'1. Order'!J605)","v":""},{"$f":"IF('1. Order'!K605=\"\",\"\",'1. Order'!K605)","v":""},{"$f":"IF('1. Order'!M605=\"\",\"\",'1. Order'!M605)","v":""},null,null,{"$f":"'1. Order'!AW605","v":0},{"$f":"IF('1. Order'!AE605=\"\",\"\",'1. Order'!AE605)","v":""}]
[{"$f":"IF('1. Order'!B606=\"\",\"\",'1. Order'!B606)","v":""},{"$f":"IF('1. Order'!I606=\"\",\"\",'1. Order'!I606)","v":""},{"$f":"IF('1. Order'!J606=\"\",\"\",'1. Order'!J606)","v":""},{"$f":"IF('1. Order'!K606=\"\",\"\",'1. Order'!K606)","v":""},{"$f":"IF('1. Order'!M606=\"\",\"\",'1. Order'!M606)","v":""},null,null,{"$f":"'1. Order'!AW606","v":0},{"$f":"IF('1. Order'!AE606=\"\",\"\",'1. Order'!AE606)","v":""}]
[{"$f":"IF('1. Order'!B607=\"\",\"\",'1. Order'!B607)","v":""},{"$f":"IF('1. Order'!I607=\"\",\"\",'1. Order'!I607)","v":""},{"$f":"IF('1. Order'!J607=\"\",\"\",'1. Order'!J607)","v":""},{"$f":"IF('1. Order'!K607=\"\",\"\",'1. Order'!K607)","v":""},{"$f":"IF('1. Order'!M607=\"\",\"\",'1. Order'!M607)","v":""},null,null,{"$f":"'1. Order'!AW607","v":0},{"$f":"IF('1. Order'!AE607=\"\",\"\",'1. Order'!AE607)","v":""}]
[{"$f":"IF('1. Order'!B608=\"\",\"\",'1. Order'!B608)","v":""},{"$f":"IF('1. Order'!I608=\"\",\"\",'1. Order'!I608)","v":""},{"$f":"IF('1. Order'!J608=\"\",\"\",'1. Order'!J608)","v":""},{"$f":"IF('1. Order'!K608=\"\",\"\",'1. Order'!K608)","v":""},{"$f":"IF('1. Order'!M608=\"\",\"\",'1. Order'!M608)","v":""},null,null,{"$f":"'1. Order'!AW608","v":0},{"$f":"IF('1. Order'!AE608=\"\",\"\",'1. Order'!AE608)","v":""}]
[{"$f":"IF('1. Order'!B609=\"\",\"\",'1. Order'!B609)","v":""},{"$f":"IF('1. Order'!I609=\"\",\"\",'1. Order'!I609)","v":""},{"$f":"IF('1. Order'!J609=\"\",\"\",'1. Order'!J609)","v":""},{"$f":"IF('1. Order'!K609=\"\",\"\",'1. Order'!K609)","v":""},{"$f":"IF('1. Order'!M609=\"\",\"\",'1. Order'!M609)","v":""},null,null,{"$f":"'1. Order'!AW609","v":0},{"$f":"IF('1. Order'!AE609=\"\",\"\",'1. Order'!AE609)","v":""}]
[{"$f":"IF('1. Order'!B610=\"\",\"\",'1. Order'!B610)","v":""},{"$f":"IF('1. Order'!I610=\"\",\"\",'1. Order'!I610)","v":""},{"$f":"IF('1. Order'!J610=\"\",\"\",'1. Order'!J610)","v":""},{"$f":"IF('1. Order'!K610=\"\",\"\",'1. Order'!K610)","v":""},{"$f":"IF('1. Order'!M610=\"\",\"\",'1. Order'!M610)","v":""},null,null,{"$f":"'1. Order'!AW610","v":0},{"$f":"IF('1. Order'!AE610=\"\",\"\",'1. Order'!AE610)","v":""}]
[{"$f":"IF('1. Order'!B611=\"\",\"\",'1. Order'!B611)","v":""},{"$f":"IF('1. Order'!I611=\"\",\"\",'1. Order'!I611)","v":""},{"$f":"IF('1. Order'!J611=\"\",\"\",'1. Order'!J611)","v":""},{"$f":"IF('1. Order'!K611=\"\",\"\",'1. Order'!K611)","v":""},{"$f":"IF('1. Order'!M611=\"\",\"\",'1. Order'!M611)","v":""},null,null,{"$f":"'1. Order'!AW611","v":0},{"$f":"IF('1. Order'!AE611=\"\",\"\",'1. Order'!AE611)","v":""}]
[{"$f":"IF('1. Order'!B612=\"\",\"\",'1. Order'!B612)","v":""},{"$f":"IF('1. Order'!I612=\"\",\"\",'1. Order'!I612)","v":""},{"$f":"IF('1. Order'!J612=\"\",\"\",'1. Order'!J612)","v":""},{"$f":"IF('1. Order'!K612=\"\",\"\",'1. Order'!K612)","v":""},{"$f":"IF('1. Order'!M612=\"\",\"\",'1. Order'!M612)","v":""},null,null,{"$f":"'1. Order'!AW612","v":0},{"$f":"IF('1. Order'!AE612=\"\",\"\",'1. Order'!AE612)","v":""}]
[{"$f":"IF('1. Order'!B613=\"\",\"\",'1. Order'!B613)","v":""},{"$f":"IF('1. Order'!I613=\"\",\"\",'1. Order'!I613)","v":""},{"$f":"IF('1. Order'!J613=\"\",\"\",'1. Order'!J613)","v":""},{"$f":"IF('1. Order'!K613=\"\",\"\",'1. Order'!K613)","v":""},{"$f":"IF('1. Order'!M613=\"\",\"\",'1. Order'!M613)","v":""},null,null,{"$f":"'1. Order'!AW613","v":0},{"$f":"IF('1. Order'!AE613=\"\",\"\",'1. Order'!AE613)","v":""}]
[{"$f":"IF('1. Order'!B614=\"\",\"\",'1. Order'!B614)","v":""},{"$f":"IF('1. Order'!I614=\"\",\"\",'1. Order'!I614)","v":""},{"$f":"IF('1. Order'!J614=\"\",\"\",'1. Order'!J614)","v":""},{"$f":"IF('1. Order'!K614=\"\",\"\",'1. Order'!K614)","v":""},{"$f":"IF('1. Order'!M614=\"\",\"\",'1. Order'!M614)","v":""},null,null,{"$f":"'1. Order'!AW614","v":0},{"$f":"IF('1. Order'!AE614=\"\",\"\",'1. Order'!AE614)","v":""}]
[{"$f":"IF('1. Order'!B615=\"\",\"\",'1. Order'!B615)","v":""},{"$f":"IF('1. Order'!I615=\"\",\"\",'1. Order'!I615)","v":""},{"$f":"IF('1. Order'!J615=\"\",\"\",'1. Order'!J615)","v":""},{"$f":"IF('1. Order'!K615=\"\",\"\",'1. Order'!K615)","v":""},{"$f":"IF('1. Order'!M615=\"\",\"\",'1. Order'!M615)","v":""},null,null,{"$f":"'1. Order'!AW615","v":0},{"$f":"IF('1. Order'!AE615=\"\",\"\",'1. Order'!AE615)","v":""}]
[{"$f":"IF('1. Order'!B616=\"\",\"\",'1. Order'!B616)","v":""},{"$f":"IF('1. Order'!I616=\"\",\"\",'1. Order'!I616)","v":""},{"$f":"IF('1. Order'!J616=\"\",\"\",'1. Order'!J616)","v":""},{"$f":"IF('1. Order'!K616=\"\",\"\",'1. Order'!K616)","v":""},{"$f":"IF('1. Order'!M616=\"\",\"\",'1. Order'!M616)","v":""},null,null,{"$f":"'1. Order'!AW616","v":0},{"$f":"IF('1. Order'!AE616=\"\",\"\",'1. Order'!AE616)","v":""}]
[{"$f":"IF('1. Order'!B617=\"\",\"\",'1. Order'!B617)","v":""},{"$f":"IF('1. Order'!I617=\"\",\"\",'1. Order'!I617)","v":""},{"$f":"IF('1. Order'!J617=\"\",\"\",'1. Order'!J617)","v":""},{"$f":"IF('1. Order'!K617=\"\",\"\",'1. Order'!K617)","v":""},{"$f":"IF('1. Order'!M617=\"\",\"\",'1. Order'!M617)","v":""},null,null,{"$f":"'1. Order'!AW617","v":0},{"$f":"IF('1. Order'!AE617=\"\",\"\",'1. Order'!AE617)","v":""}]
[{"$f":"IF('1. Order'!B618=\"\",\"\",'1. Order'!B618)","v":""},{"$f":"IF('1. Order'!I618=\"\",\"\",'1. Order'!I618)","v":""},{"$f":"IF('1. Order'!J618=\"\",\"\",'1. Order'!J618)","v":""},{"$f":"IF('1. Order'!K618=\"\",\"\",'1. Order'!K618)","v":""},{"$f":"IF('1. Order'!M618=\"\",\"\",'1. Order'!M618)","v":""},null,null,{"$f":"'1. Order'!AW618","v":0},{"$f":"IF('1. Order'!AE618=\"\",\"\",'1. Order'!AE618)","v":""}]
[{"$f":"IF('1. Order'!B619=\"\",\"\",'1. Order'!B619)","v":""},{"$f":"IF('1. Order'!I619=\"\",\"\",'1. Order'!I619)","v":""},{"$f":"IF('1. Order'!J619=\"\",\"\",'1. Order'!J619)","v":""},{"$f":"IF('1. Order'!K619=\"\",\"\",'1. Order'!K619)","v":""},{"$f":"IF('1. Order'!M619=\"\",\"\",'1. Order'!M619)","v":""},null,null,{"$f":"'1. Order'!AW619","v":0},{"$f":"IF('1. Order'!AE619=\"\",\"\",'1. Order'!AE619)","v":""}]
[{"$f":"IF('1. Order'!B620=\"\",\"\",'1. Order'!B620)","v":""},{"$f":"IF('1. Order'!I620=\"\",\"\",'1. Order'!I620)","v":""},{"$f":"IF('1. Order'!J620=\"\",\"\",'1. Order'!J620)","v":""},{"$f":"IF('1. Order'!K620=\"\",\"\",'1. Order'!K620)","v":""},{"$f":"IF('1. Order'!M620=\"\",\"\",'1. Order'!M620)","v":""},null,null,{"$f":"'1. Order'!AW620","v":0},{"$f":"IF('1. Order'!AE620=\"\",\"\",'1. Order'!AE620)","v":""}]
[{"$f":"IF('1. Order'!B621=\"\",\"\",'1. Order'!B621)","v":""},{"$f":"IF('1. Order'!I621=\"\",\"\",'1. Order'!I621)","v":""},{"$f":"IF('1. Order'!J621=\"\",\"\",'1. Order'!J621)","v":""},{"$f":"IF('1. Order'!K621=\"\",\"\",'1. Order'!K621)","v":""},{"$f":"IF('1. Order'!M621=\"\",\"\",'1. Order'!M621)","v":""},null,null,{"$f":"'1. Order'!AW621","v":0},{"$f":"IF('1. Order'!AE621=\"\",\"\",'1. Order'!AE621)","v":""}]
[{"$f":"IF('1. Order'!B622=\"\",\"\",'1. Order'!B622)","v":""},{"$f":"IF('1. Order'!I622=\"\",\"\",'1. Order'!I622)","v":""},{"$f":"IF('1. Order'!J622=\"\",\"\",'1. Order'!J622)","v":""},{"$f":"IF('1. Order'!K622=\"\",\"\",'1. Order'!K622)","v":""},{"$f":"IF('1. Order'!M622=\"\",\"\",'1. Order'!M622)","v":""},null,null,{"$f":"'1. Order'!AW622","v":0},{"$f":"IF('1. Order'!AE622=\"\",\"\",'1. Order'!AE622)","v":""}]
[{"$f":"IF('1. Order'!B623=\"\",\"\",'1. Order'!B623)","v":""},{"$f":"IF('1. Order'!I623=\"\",\"\",'1. Order'!I623)","v":""},{"$f":"IF('1. Order'!J623=\"\",\"\",'1. Order'!J623)","v":""},{"$f":"IF('1. Order'!K623=\"\",\"\",'1. Order'!K623)","v":""},{"$f":"IF('1. Order'!M623=\"\",\"\",'1. Order'!M623)","v":""},null,null,{"$f":"'1. Order'!AW623","v":0},{"$f":"IF('1. Order'!AE623=\"\",\"\",'1. Order'!AE623)","v":""}]
[{"$f":"IF('1. Order'!B624=\"\",\"\",'1. Order'!B624)","v":""},{"$f":"IF('1. Order'!I624=\"\",\"\",'1. Order'!I624)","v":""},{"$f":"IF('1. Order'!J624=\"\",\"\",'1. Order'!J624)","v":""},{"$f":"IF('1. Order'!K624=\"\",\"\",'1. Order'!K624)","v":""},{"$f":"IF('1. Order'!M624=\"\",\"\",'1. Order'!M624)","v":""},null,null,{"$f":"'1. Order'!AW624","v":0},{"$f":"IF('1. Order'!AE624=\"\",\"\",'1. Order'!AE624)","v":""}]
[{"$f":"IF('1. Order'!B625=\"\",\"\",'1. Order'!B625)","v":""},{"$f":"IF('1. Order'!I625=\"\",\"\",'1. Order'!I625)","v":""},{"$f":"IF('1. Order'!J625=\"\",\"\",'1. Order'!J625)","v":""},{"$f":"IF('1. Order'!K625=\"\",\"\",'1. Order'!K625)","v":""},{"$f":"IF('1. Order'!M625=\"\",\"\",'1. Order'!M625)","v":""},null,null,{"$f":"'1. Order'!AW625","v":0},{"$f":"IF('1. Order'!AE625=\"\",\"\",'1. Order'!AE625)","v":""}]
[{"$f":"IF('1. Order'!B626=\"\",\"\",'1. Order'!B626)","v":""},{"$f":"IF('1. Order'!I626=\"\",\"\",'1. Order'!I626)","v":""},{"$f":"IF('1. Order'!J626=\"\",\"\",'1. Order'!J626)","v":""},{"$f":"IF('1. Order'!K626=\"\",\"\",'1. Order'!K626)","v":""},{"$f":"IF('1. Order'!M626=\"\",\"\",'1. Order'!M626)","v":""},null,null,{"$f":"'1. Order'!AW626","v":0},{"$f":"IF('1. Order'!AE626=\"\",\"\",'1. Order'!AE626)","v":""}]
[{"$f":"IF('1. Order'!B627=\"\",\"\",'1. Order'!B627)","v":""},{"$f":"IF('1. Order'!I627=\"\",\"\",'1. Order'!I627)","v":""},{"$f":"IF('1. Order'!J627=\"\",\"\",'1. Order'!J627)","v":""},{"$f":"IF('1. Order'!K627=\"\",\"\",'1. Order'!K627)","v":""},{"$f":"IF('1. Order'!M627=\"\",\"\",'1. Order'!M627)","v":""},null,null,{"$f":"'1. Order'!AW627","v":0},{"$f":"IF('1. Order'!AE627=\"\",\"\",'1. Order'!AE627)","v":""}]
[{"$f":"IF('1. Order'!B628=\"\",\"\",'1. Order'!B628)","v":""},{"$f":"IF('1. Order'!I628=\"\",\"\",'1. Order'!I628)","v":""},{"$f":"IF('1. Order'!J628=\"\",\"\",'1. Order'!J628)","v":""},{"$f":"IF('1. Order'!K628=\"\",\"\",'1. Order'!K628)","v":""},{"$f":"IF('1. Order'!M628=\"\",\"\",'1. Order'!M628)","v":""},null,null,{"$f":"'1. Order'!AW628","v":0},{"$f":"IF('1. Order'!AE628=\"\",\"\",'1. Order'!AE628)","v":""}]
[{"$f":"IF('1. Order'!B629=\"\",\"\",'1. Order'!B629)","v":""},{"$f":"IF('1. Order'!I629=\"\",\"\",'1. Order'!I629)","v":""},{"$f":"IF('1. Order'!J629=\"\",\"\",'1. Order'!J629)","v":""},{"$f":"IF('1. Order'!K629=\"\",\"\",'1. Order'!K629)","v":""},{"$f":"IF('1. Order'!M629=\"\",\"\",'1. Order'!M629)","v":""},null,null,{"$f":"'1. Order'!AW629","v":0},{"$f":"IF('1. Order'!AE629=\"\",\"\",'1. Order'!AE629)","v":""}]
[{"$f":"IF('1. Order'!B630=\"\",\"\",'1. Order'!B630)","v":""},{"$f":"IF('1. Order'!I630=\"\",\"\",'1. Order'!I630)","v":""},{"$f":"IF('1. Order'!J630=\"\",\"\",'1. Order'!J630)","v":""},{"$f":"IF('1. Order'!K630=\"\",\"\",'1. Order'!K630)","v":""},{"$f":"IF('1. Order'!M630=\"\",\"\",'1. Order'!M630)","v":""},null,null,{"$f":"'1. Order'!AW630","v":0},{"$f":"IF('1. Order'!AE630=\"\",\"\",'1. Order'!AE630)","v":""}]
[{"$f":"IF('1. Order'!B631=\"\",\"\",'1. Order'!B631)","v":""},{"$f":"IF('1. Order'!I631=\"\",\"\",'1. Order'!I631)","v":""},{"$f":"IF('1. Order'!J631=\"\",\"\",'1. Order'!J631)","v":""},{"$f":"IF('1. Order'!K631=\"\",\"\",'1. Order'!K631)","v":""},{"$f":"IF('1. Order'!M631=\"\",\"\",'1. Order'!M631)","v":""},null,null,{"$f":"'1. Order'!AW631","v":0},{"$f":"IF('1. Order'!AE631=\"\",\"\",'1. Order'!AE631)","v":""}]
[{"$f":"IF('1. Order'!B632=\"\",\"\",'1. Order'!B632)","v":""},{"$f":"IF('1. Order'!I632=\"\",\"\",'1. Order'!I632)","v":""},{"$f":"IF('1. Order'!J632=\"\",\"\",'1. Order'!J632)","v":""},{"$f":"IF('1. Order'!K632=\"\",\"\",'1. Order'!K632)","v":""},{"$f":"IF('1. Order'!M632=\"\",\"\",'1. Order'!M632)","v":""},null,null,{"$f":"'1. Order'!AW632","v":0},{"$f":"IF('1. Order'!AE632=\"\",\"\",'1. Order'!AE632)","v":""}]
[{"$f":"IF('1. Order'!B633=\"\",\"\",'1. Order'!B633)","v":""},{"$f":"IF('1. Order'!I633=\"\",\"\",'1. Order'!I633)","v":""},{"$f":"IF('1. Order'!J633=\"\",\"\",'1. Order'!J633)","v":""},{"$f":"IF('1. Order'!K633=\"\",\"\",'1. Order'!K633)","v":""},{"$f":"IF('1. Order'!M633=\"\",\"\",'1. Order'!M633)","v":""},null,null,{"$f":"'1. Order'!AW633","v":0},{"$f":"IF('1. Order'!AE633=\"\",\"\",'1. Order'!AE633)","v":""}]
[{"$f":"IF('1. Order'!B634=\"\",\"\",'1. Order'!B634)","v":""},{"$f":"IF('1. Order'!I634=\"\",\"\",'1. Order'!I634)","v":""},{"$f":"IF('1. Order'!J634=\"\",\"\",'1. Order'!J634)","v":""},{"$f":"IF('1. Order'!K634=\"\",\"\",'1. Order'!K634)","v":""},{"$f":"IF('1. Order'!M634=\"\",\"\",'1. Order'!M634)","v":""},null,null,{"$f":"'1. Order'!AW634","v":0},{"$f":"IF('1. Order'!AE634=\"\",\"\",'1. Order'!AE634)","v":""}]
[{"$f":"IF('1. Order'!B635=\"\",\"\",'1. Order'!B635)","v":""},{"$f":"IF('1. Order'!I635=\"\",\"\",'1. Order'!I635)","v":""},{"$f":"IF('1. Order'!J635=\"\",\"\",'1. Order'!J635)","v":""},{"$f":"IF('1. Order'!K635=\"\",\"\",'1. Order'!K635)","v":""},{"$f":"IF('1. Order'!M635=\"\",\"\",'1. Order'!M635)","v":""},null,null,{"$f":"'1. Order'!AW635","v":0},{"$f":"IF('1. Order'!AE635=\"\",\"\",'1. Order'!AE635)","v":""}]
[{"$f":"IF('1. Order'!B636=\"\",\"\",'1. Order'!B636)","v":""},{"$f":"IF('1. Order'!I636=\"\",\"\",'1. Order'!I636)","v":""},{"$f":"IF('1. Order'!J636=\"\",\"\",'1. Order'!J636)","v":""},{"$f":"IF('1. Order'!K636=\"\",\"\",'1. Order'!K636)","v":""},{"$f":"IF('1. Order'!M636=\"\",\"\",'1. Order'!M636)","v":""},null,null,{"$f":"'1. Order'!AW636","v":0},{"$f":"IF('1. Order'!AE636=\"\",\"\",'1. Order'!AE636)","v":""}]
[{"$f":"IF('1. Order'!B637=\"\",\"\",'1. Order'!B637)","v":""},{"$f":"IF('1. Order'!I637=\"\",\"\",'1. Order'!I637)","v":""},{"$f":"IF('1. Order'!J637=\"\",\"\",'1. Order'!J637)","v":""},{"$f":"IF('1. Order'!K637=\"\",\"\",'1. Order'!K637)","v":""},{"$f":"IF('1. Order'!M637=\"\",\"\",'1. Order'!M637)","v":""},null,null,{"$f":"'1. Order'!AW637","v":0},{"$f":"IF('1. Order'!AE637=\"\",\"\",'1. Order'!AE637)","v":""}]
[{"$f":"IF('1. Order'!B638=\"\",\"\",'1. Order'!B638)","v":""},{"$f":"IF('1. Order'!I638=\"\",\"\",'1. Order'!I638)","v":""},{"$f":"IF('1. Order'!J638=\"\",\"\",'1. Order'!J638)","v":""},{"$f":"IF('1. Order'!K638=\"\",\"\",'1. Order'!K638)","v":""},{"$f":"IF('1. Order'!M638=\"\",\"\",'1. Order'!M638)","v":""},null,null,{"$f":"'1. Order'!AW638","v":0},{"$f":"IF('1. Order'!AE638=\"\",\"\",'1. Order'!AE638)","v":""}]
[{"$f":"IF('1. Order'!B639=\"\",\"\",'1. Order'!B639)","v":""},{"$f":"IF('1. Order'!I639=\"\",\"\",'1. Order'!I639)","v":""},{"$f":"IF('1. Order'!J639=\"\",\"\",'1. Order'!J639)","v":""},{"$f":"IF('1. Order'!K639=\"\",\"\",'1. Order'!K639)","v":""},{"$f":"IF('1. Order'!M639=\"\",\"\",'1. Order'!M639)","v":""},null,null,{"$f":"'1. Order'!AW639","v":0},{"$f":"IF('1. Order'!AE639=\"\",\"\",'1. Order'!AE639)","v":""}]
[{"$f":"IF('1. Order'!B640=\"\",\"\",'1. Order'!B640)","v":""},{"$f":"IF('1. Order'!I640=\"\",\"\",'1. Order'!I640)","v":""},{"$f":"IF('1. Order'!J640=\"\",\"\",'1. Order'!J640)","v":""},{"$f":"IF('1. Order'!K640=\"\",\"\",'1. Order'!K640)","v":""},{"$f":"IF('1. Order'!M640=\"\",\"\",'1. Order'!M640)","v":""},null,null,{"$f":"'1. Order'!AW640","v":0},{"$f":"IF('1. Order'!AE640=\"\",\"\",'1. Order'!AE640)","v":""}]
[{"$f":"IF('1. Order'!B641=\"\",\"\",'1. Order'!B641)","v":""},{"$f":"IF('1. Order'!I641=\"\",\"\",'1. Order'!I641)","v":""},{"$f":"IF('1. Order'!J641=\"\",\"\",'1. Order'!J641)","v":""},{"$f":"IF('1. Order'!K641=\"\",\"\",'1. Order'!K641)","v":""},{"$f":"IF('1. Order'!M641=\"\",\"\",'1. Order'!M641)","v":""},null,null,{"$f":"'1. Order'!AW641","v":0},{"$f":"IF('1. Order'!AE641=\"\",\"\",'1. Order'!AE641)","v":""}]
[{"$f":"IF('1. Order'!B642=\"\",\"\",'1. Order'!B642)","v":""},{"$f":"IF('1. Order'!I642=\"\",\"\",'1. Order'!I642)","v":""},{"$f":"IF('1. Order'!J642=\"\",\"\",'1. Order'!J642)","v":""},{"$f":"IF('1. Order'!K642=\"\",\"\",'1. Order'!K642)","v":""},{"$f":"IF('1. Order'!M642=\"\",\"\",'1. Order'!M642)","v":""},null,null,{"$f":"'1. Order'!AW642","v":0},{"$f":"IF('1. Order'!AE642=\"\",\"\",'1. Order'!AE642)","v":""}]
[{"$f":"IF('1. Order'!B643=\"\",\"\",'1. Order'!B643)","v":""},{"$f":"IF('1. Order'!I643=\"\",\"\",'1. Order'!I643)","v":""},{"$f":"IF('1. Order'!J643=\"\",\"\",'1. Order'!J643)","v":""},{"$f":"IF('1. Order'!K643=\"\",\"\",'1. Order'!K643)","v":""},{"$f":"IF('1. Order'!M643=\"\",\"\",'1. Order'!M643)","v":""},null,null,{"$f":"'1. Order'!AW643","v":0},{"$f":"IF('1. Order'!AE643=\"\",\"\",'1. Order'!AE643)","v":""}]
[{"$f":"IF('1. Order'!B644=\"\",\"\",'1. Order'!B644)","v":""},{"$f":"IF('1. Order'!I644=\"\",\"\",'1. Order'!I644)","v":""},{"$f":"IF('1. Order'!J644=\"\",\"\",'1. Order'!J644)","v":""},{"$f":"IF('1. Order'!K644=\"\",\"\",'1. Order'!K644)","v":""},{"$f":"IF('1. Order'!M644=\"\",\"\",'1. Order'!M644)","v":""},null,null,{"$f":"'1. Order'!AW644","v":0},{"$f":"IF('1. Order'!AE644=\"\",\"\",'1. Order'!AE644)","v":""}]
[{"$f":"IF('1. Order'!B645=\"\",\"\",'1. Order'!B645)","v":""},{"$f":"IF('1. Order'!I645=\"\",\"\",'1. Order'!I645)","v":""},{"$f":"IF('1. Order'!J645=\"\",\"\",'1. Order'!J645)","v":""},{"$f":"IF('1. Order'!K645=\"\",\"\",'1. Order'!K645)","v":""},{"$f":"IF('1. Order'!M645=\"\",\"\",'1. Order'!M645)","v":""},null,null,{"$f":"'1. Order'!AW645","v":0},{"$f":"IF('1. Order'!AE645=\"\",\"\",'1. Order'!AE645)","v":""}]
[{"$f":"IF('1. Order'!B646=\"\",\"\",'1. Order'!B646)","v":""},{"$f":"IF('1. Order'!I646=\"\",\"\",'1. Order'!I646)","v":""},{"$f":"IF('1. Order'!J646=\"\",\"\",'1. Order'!J646)","v":""},{"$f":"IF('1. Order'!K646=\"\",\"\",'1. Order'!K646)","v":""},{"$f":"IF('1. Order'!M646=\"\",\"\",'1. Order'!M646)","v":""},null,null,{"$f":"'1. Order'!AW646","v":0},{"$f":"IF('1. Order'!AE646=\"\",\"\",'1. Order'!AE646)","v":""}]
[{"$f":"IF('1. Order'!B647=\"\",\"\",'1. Order'!B647)","v":""},{"$f":"IF('1. Order'!I647=\"\",\"\",'1. Order'!I647)","v":""},{"$f":"IF('1. Order'!J647=\"\",\"\",'1. Order'!J647)","v":""},{"$f":"IF('1. Order'!K647=\"\",\"\",'1. Order'!K647)","v":""},{"$f":"IF('1. Order'!M647=\"\",\"\",'1. Order'!M647)","v":""},null,null,{"$f":"'1. Order'!AW647","v":0},{"$f":"IF('1. Order'!AE647=\"\",\"\",'1. Order'!AE647)","v":""}]
[{"$f":"IF('1. Order'!B648=\"\",\"\",'1. Order'!B648)","v":""},{"$f":"IF('1. Order'!I648=\"\",\"\",'1. Order'!I648)","v":""},{"$f":"IF('1. Order'!J648=\"\",\"\",'1. Order'!J648)","v":""},{"$f":"IF('1. Order'!K648=\"\",\"\",'1. Order'!K648)","v":""},{"$f":"IF('1. Order'!M648=\"\",\"\",'1. Order'!M648)","v":""},null,null,{"$f":"'1. Order'!AW648","v":0},{"$f":"IF('1. Order'!AE648=\"\",\"\",'1. Order'!AE648)","v":""}]
[{"$f":"IF('1. Order'!B649=\"\",\"\",'1. Order'!B649)","v":""},{"$f":"IF('1. Order'!I649=\"\",\"\",'1. Order'!I649)","v":""},{"$f":"IF('1. Order'!J649=\"\",\"\",'1. Order'!J649)","v":""},{"$f":"IF('1. Order'!K649=\"\",\"\",'1. Order'!K649)","v":""},{"$f":"IF('1. Order'!M649=\"\",\"\",'1. Order'!M649)","v":""},null,null,{"$f":"'1. Order'!AW649","v":0},{"$f":"IF('1. Order'!AE649=\"\",\"\",'1. Order'!AE649)","v":""}]
[{"$f":"IF('1. Order'!B650=\"\",\"\",'1. Order'!B650)","v":""},{"$f":"IF('1. Order'!I650=\"\",\"\",'1. Order'!I650)","v":""},{"$f":"IF('1. Order'!J650=\"\",\"\",'1. Order'!J650)","v":""},{"$f":"IF('1. Order'!K650=\"\",\"\",'1. Order'!K650)","v":""},{"$f":"IF('1. Order'!M650=\"\",\"\",'1. Order'!M650)","v":""},null,null,{"$f":"'1. Order'!AW650","v":0},{"$f":"IF('1. Order'!AE650=\"\",\"\",'1. Order'!AE650)","v":""}]
[{"$f":"IF('1. Order'!B651=\"\",\"\",'1. Order'!B651)","v":""},{"$f":"IF('1. Order'!I651=\"\",\"\",'1. Order'!I651)","v":""},{"$f":"IF('1. Order'!J651=\"\",\"\",'1. Order'!J651)","v":""},{"$f":"IF('1. Order'!K651=\"\",\"\",'1. Order'!K651)","v":""},{"$f":"IF('1. Order'!M651=\"\",\"\",'1. Order'!M651)","v":""},null,null,{"$f":"'1. Order'!AW651","v":0},{"$f":"IF('1. Order'!AE651=\"\",\"\",'1. Order'!AE651)","v":""}]
[{"$f":"IF('1. Order'!B652=\"\",\"\",'1. Order'!B652)","v":""},{"$f":"IF('1. Order'!I652=\"\",\"\",'1. Order'!I652)","v":""},{"$f":"IF('1. Order'!J652=\"\",\"\",'1. Order'!J652)","v":""},{"$f":"IF('1. Order'!K652=\"\",\"\",'1. Order'!K652)","v":""},{"$f":"IF('1. Order'!M652=\"\",\"\",'1. Order'!M652)","v":""},null,null,{"$f":"'1. Order'!AW652","v":0},{"$f":"IF('1. Order'!AE652=\"\",\"\",'1. Order'!AE652)","v":""}]
[{"$f":"IF('1. Order'!B653=\"\",\"\",'1. Order'!B653)","v":""},{"$f":"IF('1. Order'!I653=\"\",\"\",'1. Order'!I653)","v":""},{"$f":"IF('1. Order'!J653=\"\",\"\",'1. Order'!J653)","v":""},{"$f":"IF('1. Order'!K653=\"\",\"\",'1. Order'!K653)","v":""},{"$f":"IF('1. Order'!M653=\"\",\"\",'1. Order'!M653)","v":""},null,null,{"$f":"'1. Order'!AW653","v":0},{"$f":"IF('1. Order'!AE653=\"\",\"\",'1. Order'!AE653)","v":""}]
[{"$f":"IF('1. Order'!B654=\"\",\"\",'1. Order'!B654)","v":""},{"$f":"IF('1. Order'!I654=\"\",\"\",'1. Order'!I654)","v":""},{"$f":"IF('1. Order'!J654=\"\",\"\",'1. Order'!J654)","v":""},{"$f":"IF('1. Order'!K654=\"\",\"\",'1. Order'!K654)","v":""},{"$f":"IF('1. Order'!M654=\"\",\"\",'1. Order'!M654)","v":""},null,null,{"$f":"'1. Order'!AW654","v":0},{"$f":"IF('1. Order'!AE654=\"\",\"\",'1. Order'!AE654)","v":""}]
[{"$f":"IF('1. Order'!B655=\"\",\"\",'1. Order'!B655)","v":""},{"$f":"IF('1. Order'!I655=\"\",\"\",'1. Order'!I655)","v":""},{"$f":"IF('1. Order'!J655=\"\",\"\",'1. Order'!J655)","v":""},{"$f":"IF('1. Order'!K655=\"\",\"\",'1. Order'!K655)","v":""},{"$f":"IF('1. Order'!M655=\"\",\"\",'1. Order'!M655)","v":""},null,null,{"$f":"'1. Order'!AW655","v":0},{"$f":"IF('1. Order'!AE655=\"\",\"\",'1. Order'!AE655)","v":""}]
[{"$f":"IF('1. Order'!B656=\"\",\"\",'1. Order'!B656)","v":""},{"$f":"IF('1. Order'!I656=\"\",\"\",'1. Order'!I656)","v":""},{"$f":"IF('1. Order'!J656=\"\",\"\",'1. Order'!J656)","v":""},{"$f":"IF('1. Order'!K656=\"\",\"\",'1. Order'!K656)","v":""},{"$f":"IF('1. Order'!M656=\"\",\"\",'1. Order'!M656)","v":""},null,null,{"$f":"'1. Order'!AW656","v":0},{"$f":"IF('1. Order'!AE656=\"\",\"\",'1. Order'!AE656)","v":""}]
[{"$f":"IF('1. Order'!B657=\"\",\"\",'1. Order'!B657)","v":""},{"$f":"IF('1. Order'!I657=\"\",\"\",'1. Order'!I657)","v":""},{"$f":"IF('1. Order'!J657=\"\",\"\",'1. Order'!J657)","v":""},{"$f":"IF('1. Order'!K657=\"\",\"\",'1. Order'!K657)","v":""},{"$f":"IF('1. Order'!M657=\"\",\"\",'1. Order'!M657)","v":""},null,null,{"$f":"'1. Order'!AW657","v":0},{"$f":"IF('1. Order'!AE657=\"\",\"\",'1. Order'!AE657)","v":""}]
[{"$f":"IF('1. Order'!B658=\"\",\"\",'1. Order'!B658)","v":""},{"$f":"IF('1. Order'!I658=\"\",\"\",'1. Order'!I658)","v":""},{"$f":"IF('1. Order'!J658=\"\",\"\",'1. Order'!J658)","v":""},{"$f":"IF('1. Order'!K658=\"\",\"\",'1. Order'!K658)","v":""},{"$f":"IF('1. Order'!M658=\"\",\"\",'1. Order'!M658)","v":""},null,null,{"$f":"'1. Order'!AW658","v":0},{"$f":"IF('1. Order'!AE658=\"\",\"\",'1. Order'!AE658)","v":""}]
[{"$f":"IF('1. Order'!B659=\"\",\"\",'1. Order'!B659)","v":""},{"$f":"IF('1. Order'!I659=\"\",\"\",'1. Order'!I659)","v":""},{"$f":"IF('1. Order'!J659=\"\",\"\",'1. Order'!J659)","v":""},{"$f":"IF('1. Order'!K659=\"\",\"\",'1. Order'!K659)","v":""},{"$f":"IF('1. Order'!M659=\"\",\"\",'1. Order'!M659)","v":""},null,null,{"$f":"'1. Order'!AW659","v":0},{"$f":"IF('1. Order'!AE659=\"\",\"\",'1. Order'!AE659)","v":""}]
[{"$f":"IF('1. Order'!B660=\"\",\"\",'1. Order'!B660)","v":""},{"$f":"IF('1. Order'!I660=\"\",\"\",'1. Order'!I660)","v":""},{"$f":"IF('1. Order'!J660=\"\",\"\",'1. Order'!J660)","v":""},{"$f":"IF('1. Order'!K660=\"\",\"\",'1. Order'!K660)","v":""},{"$f":"IF('1. Order'!M660=\"\",\"\",'1. Order'!M660)","v":""},null,null,{"$f":"'1. Order'!AW660","v":0},{"$f":"IF('1. Order'!AE660=\"\",\"\",'1. Order'!AE660)","v":""}]
[{"$f":"IF('1. Order'!B661=\"\",\"\",'1. Order'!B661)","v":""},{"$f":"IF('1. Order'!I661=\"\",\"\",'1. Order'!I661)","v":""},{"$f":"IF('1. Order'!J661=\"\",\"\",'1. Order'!J661)","v":""},{"$f":"IF('1. Order'!K661=\"\",\"\",'1. Order'!K661)","v":""},{"$f":"IF('1. Order'!M661=\"\",\"\",'1. Order'!M661)","v":""},null,null,{"$f":"'1. Order'!AW661","v":0},{"$f":"IF('1. Order'!AE661=\"\",\"\",'1. Order'!AE661)","v":""}]
[{"$f":"IF('1. Order'!B662=\"\",\"\",'1. Order'!B662)","v":""},{"$f":"IF('1. Order'!I662=\"\",\"\",'1. Order'!I662)","v":""},{"$f":"IF('1. Order'!J662=\"\",\"\",'1. Order'!J662)","v":""},{"$f":"IF('1. Order'!K662=\"\",\"\",'1. Order'!K662)","v":""},{"$f":"IF('1. Order'!M662=\"\",\"\",'1. Order'!M662)","v":""},null,null,{"$f":"'1. Order'!AW662","v":0},{"$f":"IF('1. Order'!AE662=\"\",\"\",'1. Order'!AE662)","v":""}]
[{"$f":"IF('1. Order'!B663=\"\",\"\",'1. Order'!B663)","v":""},{"$f":"IF('1. Order'!I663=\"\",\"\",'1. Order'!I663)","v":""},{"$f":"IF('1. Order'!J663=\"\",\"\",'1. Order'!J663)","v":""},{"$f":"IF('1. Order'!K663=\"\",\"\",'1. Order'!K663)","v":""},{"$f":"IF('1. Order'!M663=\"\",\"\",'1. Order'!M663)","v":""},null,null,{"$f":"'1. Order'!AW663","v":0},{"$f":"IF('1. Order'!AE663=\"\",\"\",'1. Order'!AE663)","v":""}]
[{"$f":"IF('1. Order'!B664=\"\",\"\",'1. Order'!B664)","v":""},{"$f":"IF('1. Order'!I664=\"\",\"\",'1. Order'!I664)","v":""},{"$f":"IF('1. Order'!J664=\"\",\"\",'1. Order'!J664)","v":""},{"$f":"IF('1. Order'!K664=\"\",\"\",'1. Order'!K664)","v":""},{"$f":"IF('1. Order'!M664=\"\",\"\",'1. Order'!M664)","v":""},null,null,{"$f":"'1. Order'!AW664","v":0},{"$f":"IF('1. Order'!AE664=\"\",\"\",'1. Order'!AE664)","v":""}]
[{"$f":"IF('1. Order'!B665=\"\",\"\",'1. Order'!B665)","v":""},{"$f":"IF('1. Order'!I665=\"\",\"\",'1. Order'!I665)","v":""},{"$f":"IF('1. Order'!J665=\"\",\"\",'1. Order'!J665)","v":""},{"$f":"IF('1. Order'!K665=\"\",\"\",'1. Order'!K665)","v":""},{"$f":"IF('1. Order'!M665=\"\",\"\",'1. Order'!M665)","v":""},null,null,{"$f":"'1. Order'!AW665","v":0},{"$f":"IF('1. Order'!AE665=\"\",\"\",'1. Order'!AE665)","v":""}]
[{"$f":"IF('1. Order'!B666=\"\",\"\",'1. Order'!B666)","v":""},{"$f":"IF('1. Order'!I666=\"\",\"\",'1. Order'!I666)","v":""},{"$f":"IF('1. Order'!J666=\"\",\"\",'1. Order'!J666)","v":""},{"$f":"IF('1. Order'!K666=\"\",\"\",'1. Order'!K666)","v":""},{"$f":"IF('1. Order'!M666=\"\",\"\",'1. Order'!M666)","v":""},null,null,{"$f":"'1. Order'!AW666","v":0},{"$f":"IF('1. Order'!AE666=\"\",\"\",'1. Order'!AE666)","v":""}]
[{"$f":"IF('1. Order'!B667=\"\",\"\",'1. Order'!B667)","v":""},{"$f":"IF('1. Order'!I667=\"\",\"\",'1. Order'!I667)","v":""},{"$f":"IF('1. Order'!J667=\"\",\"\",'1. Order'!J667)","v":""},{"$f":"IF('1. Order'!K667=\"\",\"\",'1. Order'!K667)","v":""},{"$f":"IF('1. Order'!M667=\"\",\"\",'1. Order'!M667)","v":""},null,null,{"$f":"'1. Order'!AW667","v":0},{"$f":"IF('1. Order'!AE667=\"\",\"\",'1. Order'!AE667)","v":""}]
[{"$f":"IF('1. Order'!B668=\"\",\"\",'1. Order'!B668)","v":""},{"$f":"IF('1. Order'!I668=\"\",\"\",'1. Order'!I668)","v":""},{"$f":"IF('1. Order'!J668=\"\",\"\",'1. Order'!J668)","v":""},{"$f":"IF('1. Order'!K668=\"\",\"\",'1. Order'!K668)","v":""},{"$f":"IF('1. Order'!M668=\"\",\"\",'1. Order'!M668)","v":""},null,null,{"$f":"'1. Order'!AW668","v":0},{"$f":"IF('1. Order'!AE668=\"\",\"\",'1. Order'!AE668)","v":""}]
[{"$f":"IF('1. Order'!B669=\"\",\"\",'1. Order'!B669)","v":""},{"$f":"IF('1. Order'!I669=\"\",\"\",'1. Order'!I669)","v":""},{"$f":"IF('1. Order'!J669=\"\",\"\",'1. Order'!J669)","v":""},{"$f":"IF('1. Order'!K669=\"\",\"\",'1. Order'!K669)","v":""},{"$f":"IF('1. Order'!M669=\"\",\"\",'1. Order'!M669)","v":""},null,null,{"$f":"'1. Order'!AW669","v":0},{"$f":"IF('1. Order'!AE669=\"\",\"\",'1. Order'!AE669)","v":""}]
[{"$f":"IF('1. Order'!B670=\"\",\"\",'1. Order'!B670)","v":""},{"$f":"IF('1. Order'!I670=\"\",\"\",'1. Order'!I670)","v":""},{"$f":"IF('1. Order'!J670=\"\",\"\",'1. Order'!J670)","v":""},{"$f":"IF('1. Order'!K670=\"\",\"\",'1. Order'!K670)","v":""},{"$f":"IF('1. Order'!M670=\"\",\"\",'1. Order'!M670)","v":""},null,null,{"$f":"'1. Order'!AW670","v":0},{"$f":"IF('1. Order'!AE670=\"\",\"\",'1. Order'!AE670)","v":""}]
[{"$f":"IF('1. Order'!B671=\"\",\"\",'1. Order'!B671)","v":""},{"$f":"IF('1. Order'!I671=\"\",\"\",'1. Order'!I671)","v":""},{"$f":"IF('1. Order'!J671=\"\",\"\",'1. Order'!J671)","v":""},{"$f":"IF('1. Order'!K671=\"\",\"\",'1. Order'!K671)","v":""},{"$f":"IF('1. Order'!M671=\"\",\"\",'1. Order'!M671)","v":""},null,null,{"$f":"'1. Order'!AW671","v":0},{"$f":"IF('1. Order'!AE671=\"\",\"\",'1. Order'!AE671)","v":""}]
[{"$f":"IF('1. Order'!B672=\"\",\"\",'1. Order'!B672)","v":""},{"$f":"IF('1. Order'!I672=\"\",\"\",'1. Order'!I672)","v":""},{"$f":"IF('1. Order'!J672=\"\",\"\",'1. Order'!J672)","v":""},{"$f":"IF('1. Order'!K672=\"\",\"\",'1. Order'!K672)","v":""},{"$f":"IF('1. Order'!M672=\"\",\"\",'1. Order'!M672)","v":""},null,null,{"$f":"'1. Order'!AW672","v":0},{"$f":"IF('1. Order'!AE672=\"\",\"\",'1. Order'!AE672)","v":""}]
[{"$f":"IF('1. Order'!B673=\"\",\"\",'1. Order'!B673)","v":""},{"$f":"IF('1. Order'!I673=\"\",\"\",'1. Order'!I673)","v":""},{"$f":"IF('1. Order'!J673=\"\",\"\",'1. Order'!J673)","v":""},{"$f":"IF('1. Order'!K673=\"\",\"\",'1. Order'!K673)","v":""},{"$f":"IF('1. Order'!M673=\"\",\"\",'1. Order'!M673)","v":""},null,null,{"$f":"'1. Order'!AW673","v":0},{"$f":"IF('1. Order'!AE673=\"\",\"\",'1. Order'!AE673)","v":""}]
[{"$f":"IF('1. Order'!B674=\"\",\"\",'1. Order'!B674)","v":""},{"$f":"IF('1. Order'!I674=\"\",\"\",'1. Order'!I674)","v":""},{"$f":"IF('1. Order'!J674=\"\",\"\",'1. Order'!J674)","v":""},{"$f":"IF('1. Order'!K674=\"\",\"\",'1. Order'!K674)","v":""},{"$f":"IF('1. Order'!M674=\"\",\"\",'1. Order'!M674)","v":""},null,null,{"$f":"'1. Order'!AW674","v":0},{"$f":"IF('1. Order'!AE674=\"\",\"\",'1. Order'!AE674)","v":""}]
[{"$f":"IF('1. Order'!B675=\"\",\"\",'1. Order'!B675)","v":""},{"$f":"IF('1. Order'!I675=\"\",\"\",'1. Order'!I675)","v":""},{"$f":"IF('1. Order'!J675=\"\",\"\",'1. Order'!J675)","v":""},{"$f":"IF('1. Order'!K675=\"\",\"\",'1. Order'!K675)","v":""},{"$f":"IF('1. Order'!M675=\"\",\"\",'1. Order'!M675)","v":""},null,null,{"$f":"'1. Order'!AW675","v":0},{"$f":"IF('1. Order'!AE675=\"\",\"\",'1. Order'!AE675)","v":""}]
[{"$f":"IF('1. Order'!B676=\"\",\"\",'1. Order'!B676)","v":""},{"$f":"IF('1. Order'!I676=\"\",\"\",'1. Order'!I676)","v":""},{"$f":"IF('1. Order'!J676=\"\",\"\",'1. Order'!J676)","v":""},{"$f":"IF('1. Order'!K676=\"\",\"\",'1. Order'!K676)","v":""},{"$f":"IF('1. Order'!M676=\"\",\"\",'1. Order'!M676)","v":""},null,null,{"$f":"'1. Order'!AW676","v":0},{"$f":"IF('1. Order'!AE676=\"\",\"\",'1. Order'!AE676)","v":""}]
[{"$f":"IF('1. Order'!B677=\"\",\"\",'1. Order'!B677)","v":""},{"$f":"IF('1. Order'!I677=\"\",\"\",'1. Order'!I677)","v":""},{"$f":"IF('1. Order'!J677=\"\",\"\",'1. Order'!J677)","v":""},{"$f":"IF('1. Order'!K677=\"\",\"\",'1. Order'!K677)","v":""},{"$f":"IF('1. Order'!M677=\"\",\"\",'1. Order'!M677)","v":""},null,null,{"$f":"'1. Order'!AW677","v":0},{"$f":"IF('1. Order'!AE677=\"\",\"\",'1. Order'!AE677)","v":""}]
[{"$f":"IF('1. Order'!B678=\"\",\"\",'1. Order'!B678)","v":""},{"$f":"IF('1. Order'!I678=\"\",\"\",'1. Order'!I678)","v":""},{"$f":"IF('1. Order'!J678=\"\",\"\",'1. Order'!J678)","v":""},{"$f":"IF('1. Order'!K678=\"\",\"\",'1. Order'!K678)","v":""},{"$f":"IF('1. Order'!M678=\"\",\"\",'1. Order'!M678)","v":""},null,null,{"$f":"'1. Order'!AW678","v":0},{"$f":"IF('1. Order'!AE678=\"\",\"\",'1. Order'!AE678)","v":""}]
[{"$f":"IF('1. Order'!B679=\"\",\"\",'1. Order'!B679)","v":""},{"$f":"IF('1. Order'!I679=\"\",\"\",'1. Order'!I679)","v":""},{"$f":"IF('1. Order'!J679=\"\",\"\",'1. Order'!J679)","v":""},{"$f":"IF('1. Order'!K679=\"\",\"\",'1. Order'!K679)","v":""},{"$f":"IF('1. Order'!M679=\"\",\"\",'1. Order'!M679)","v":""},null,null,{"$f":"'1. Order'!AW679","v":0},{"$f":"IF('1. Order'!AE679=\"\",\"\",'1. Order'!AE679)","v":""}]
[{"$f":"IF('1. Order'!B680=\"\",\"\",'1. Order'!B680)","v":""},{"$f":"IF('1. Order'!I680=\"\",\"\",'1. Order'!I680)","v":""},{"$f":"IF('1. Order'!J680=\"\",\"\",'1. Order'!J680)","v":""},{"$f":"IF('1. Order'!K680=\"\",\"\",'1. Order'!K680)","v":""},{"$f":"IF('1. Order'!M680=\"\",\"\",'1. Order'!M680)","v":""},null,null,{"$f":"'1. Order'!AW680","v":0},{"$f":"IF('1. Order'!AE680=\"\",\"\",'1. Order'!AE680)","v":""}]
[{"$f":"IF('1. Order'!B681=\"\",\"\",'1. Order'!B681)","v":""},{"$f":"IF('1. Order'!I681=\"\",\"\",'1. Order'!I681)","v":""},{"$f":"IF('1. Order'!J681=\"\",\"\",'1. Order'!J681)","v":""},{"$f":"IF('1. Order'!K681=\"\",\"\",'1. Order'!K681)","v":""},{"$f":"IF('1. Order'!M681=\"\",\"\",'1. Order'!M681)","v":""},null,null,{"$f":"'1. Order'!AW681","v":0},{"$f":"IF('1. Order'!AE681=\"\",\"\",'1. Order'!AE681)","v":""}]
[{"$f":"IF('1. Order'!B682=\"\",\"\",'1. Order'!B682)","v":""},{"$f":"IF('1. Order'!I682=\"\",\"\",'1. Order'!I682)","v":""},{"$f":"IF('1. Order'!J682=\"\",\"\",'1. Order'!J682)","v":""},{"$f":"IF('1. Order'!K682=\"\",\"\",'1. Order'!K682)","v":""},{"$f":"IF('1. Order'!M682=\"\",\"\",'1. Order'!M682)","v":""},null,null,{"$f":"'1. Order'!AW682","v":0},{"$f":"IF('1. Order'!AE682=\"\",\"\",'1. Order'!AE682)","v":""}]
[{"$f":"IF('1. Order'!B683=\"\",\"\",'1. Order'!B683)","v":""},{"$f":"IF('1. Order'!I683=\"\",\"\",'1. Order'!I683)","v":""},{"$f":"IF('1. Order'!J683=\"\",\"\",'1. Order'!J683)","v":""},{"$f":"IF('1. Order'!K683=\"\",\"\",'1. Order'!K683)","v":""},{"$f":"IF('1. Order'!M683=\"\",\"\",'1. Order'!M683)","v":""},null,null,{"$f":"'1. Order'!AW683","v":0},{"$f":"IF('1. Order'!AE683=\"\",\"\",'1. Order'!AE683)","v":""}]
[{"$f":"IF('1. Order'!B684=\"\",\"\",'1. Order'!B684)","v":""},{"$f":"IF('1. Order'!I684=\"\",\"\",'1. Order'!I684)","v":""},{"$f":"IF('1. Order'!J684=\"\",\"\",'1. Order'!J684)","v":""},{"$f":"IF('1. Order'!K684=\"\",\"\",'1. Order'!K684)","v":""},{"$f":"IF('1. Order'!M684=\"\",\"\",'1. Order'!M684)","v":""},null,null,{"$f":"'1. Order'!AW684","v":0},{"$f":"IF('1. Order'!AE684=\"\",\"\",'1. Order'!AE684)","v":""}]
[{"$f":"IF('1. Order'!B685=\"\",\"\",'1. Order'!B685)","v":""},{"$f":"IF('1. Order'!I685=\"\",\"\",'1. Order'!I685)","v":""},{"$f":"IF('1. Order'!J685=\"\",\"\",'1. Order'!J685)","v":""},{"$f":"IF('1. Order'!K685=\"\",\"\",'1. Order'!K685)","v":""},{"$f":"IF('1. Order'!M685=\"\",\"\",'1. Order'!M685)","v":""},null,null,{"$f":"'1. Order'!AW685","v":0},{"$f":"IF('1. Order'!AE685=\"\",\"\",'1. Order'!AE685)","v":""}]
[{"$f":"IF('1. Order'!B686=\"\",\"\",'1. Order'!B686)","v":""},{"$f":"IF('1. Order'!I686=\"\",\"\",'1. Order'!I686)","v":""},{"$f":"IF('1. Order'!J686=\"\",\"\",'1. Order'!J686)","v":""},{"$f":"IF('1. Order'!K686=\"\",\"\",'1. Order'!K686)","v":""},{"$f":"IF('1. Order'!M686=\"\",\"\",'1. Order'!M686)","v":""},null,null,{"$f":"'1. Order'!AW686","v":0},{"$f":"IF('1. Order'!AE686=\"\",\"\",'1. Order'!AE686)","v":""}]
[{"$f":"IF('1. Order'!B687=\"\",\"\",'1. Order'!B687)","v":""},{"$f":"IF('1. Order'!I687=\"\",\"\",'1. Order'!I687)","v":""},{"$f":"IF('1. Order'!J687=\"\",\"\",'1. Order'!J687)","v":""},{"$f":"IF('1. Order'!K687=\"\",\"\",'1. Order'!K687)","v":""},{"$f":"IF('1. Order'!M687=\"\",\"\",'1. Order'!M687)","v":""},null,null,{"$f":"'1. Order'!AW687","v":0},{"$f":"IF('1. Order'!AE687=\"\",\"\",'1. Order'!AE687)","v":""}]
[{"$f":"IF('1. Order'!B688=\"\",\"\",'1. Order'!B688)","v":""},{"$f":"IF('1. Order'!I688=\"\",\"\",'1. Order'!I688)","v":""},{"$f":"IF('1. Order'!J688=\"\",\"\",'1. Order'!J688)","v":""},{"$f":"IF('1. Order'!K688=\"\",\"\",'1. Order'!K688)","v":""},{"$f":"IF('1. Order'!M688=\"\",\"\",'1. Order'!M688)","v":""},null,null,{"$f":"'1. Order'!AW688","v":0},{"$f":"IF('1. Order'!AE688=\"\",\"\",'1. Order'!AE688)","v":""}]
[{"$f":"IF('1. Order'!B689=\"\",\"\",'1. Order'!B689)","v":""},{"$f":"IF('1. Order'!I689=\"\",\"\",'1. Order'!I689)","v":""},{"$f":"IF('1. Order'!J689=\"\",\"\",'1. Order'!J689)","v":""},{"$f":"IF('1. Order'!K689=\"\",\"\",'1. Order'!K689)","v":""},{"$f":"IF('1. Order'!M689=\"\",\"\",'1. Order'!M689)","v":""},null,null,{"$f":"'1. Order'!AW689","v":0},{"$f":"IF('1. Order'!AE689=\"\",\"\",'1. Order'!AE689)","v":""}]
[{"$f":"IF('1. Order'!B690=\"\",\"\",'1. Order'!B690)","v":""},{"$f":"IF('1. Order'!I690=\"\",\"\",'1. Order'!I690)","v":""},{"$f":"IF('1. Order'!J690=\"\",\"\",'1. Order'!J690)","v":""},{"$f":"IF('1. Order'!K690=\"\",\"\",'1. Order'!K690)","v":""},{"$f":"IF('1. Order'!M690=\"\",\"\",'1. Order'!M690)","v":""},null,null,{"$f":"'1. Order'!AW690","v":0},{"$f":"IF('1. Order'!AE690=\"\",\"\",'1. Order'!AE690)","v":""}]
[{"$f":"IF('1. Order'!B691=\"\",\"\",'1. Order'!B691)","v":""},{"$f":"IF('1. Order'!I691=\"\",\"\",'1. Order'!I691)","v":""},{"$f":"IF('1. Order'!J691=\"\",\"\",'1. Order'!J691)","v":""},{"$f":"IF('1. Order'!K691=\"\",\"\",'1. Order'!K691)","v":""},{"$f":"IF('1. Order'!M691=\"\",\"\",'1. Order'!M691)","v":""},null,null,{"$f":"'1. Order'!AW691","v":0},{"$f":"IF('1. Order'!AE691=\"\",\"\",'1. Order'!AE691)","v":""}]
[{"$f":"IF('1. Order'!B692=\"\",\"\",'1. Order'!B692)","v":""},{"$f":"IF('1. Order'!I692=\"\",\"\",'1. Order'!I692)","v":""},{"$f":"IF('1. Order'!J692=\"\",\"\",'1. Order'!J692)","v":""},{"$f":"IF('1. Order'!K692=\"\",\"\",'1. Order'!K692)","v":""},{"$f":"IF('1. Order'!M692=\"\",\"\",'1. Order'!M692)","v":""},null,null,{"$f":"'1. Order'!AW692","v":0},{"$f":"IF('1. Order'!AE692=\"\",\"\",'1. Order'!AE692)","v":""}]
[{"$f":"IF('1. Order'!B693=\"\",\"\",'1. Order'!B693)","v":""},{"$f":"IF('1. Order'!I693=\"\",\"\",'1. Order'!I693)","v":""},{"$f":"IF('1. Order'!J693=\"\",\"\",'1. Order'!J693)","v":""},{"$f":"IF('1. Order'!K693=\"\",\"\",'1. Order'!K693)","v":""},{"$f":"IF('1. Order'!M693=\"\",\"\",'1. Order'!M693)","v":""},null,null,{"$f":"'1. Order'!AW693","v":0},{"$f":"IF('1. Order'!AE693=\"\",\"\",'1. Order'!AE693)","v":""}]
[{"$f":"IF('1. Order'!B694=\"\",\"\",'1. Order'!B694)","v":""},{"$f":"IF('1. Order'!I694=\"\",\"\",'1. Order'!I694)","v":""},{"$f":"IF('1. Order'!J694=\"\",\"\",'1. Order'!J694)","v":""},{"$f":"IF('1. Order'!K694=\"\",\"\",'1. Order'!K694)","v":""},{"$f":"IF('1. Order'!M694=\"\",\"\",'1. Order'!M694)","v":""},null,null,{"$f":"'1. Order'!AW694","v":0},{"$f":"IF('1. Order'!AE694=\"\",\"\",'1. Order'!AE694)","v":""}]
[{"$f":"IF('1. Order'!B695=\"\",\"\",'1. Order'!B695)","v":""},{"$f":"IF('1. Order'!I695=\"\",\"\",'1. Order'!I695)","v":""},{"$f":"IF('1. Order'!J695=\"\",\"\",'1. Order'!J695)","v":""},{"$f":"IF('1. Order'!K695=\"\",\"\",'1. Order'!K695)","v":""},{"$f":"IF('1. Order'!M695=\"\",\"\",'1. Order'!M695)","v":""},null,null,{"$f":"'1. Order'!AW695","v":0},{"$f":"IF('1. Order'!AE695=\"\",\"\",'1. Order'!AE695)","v":""}]
[{"$f":"IF('1. Order'!B696=\"\",\"\",'1. Order'!B696)","v":""},{"$f":"IF('1. Order'!I696=\"\",\"\",'1. Order'!I696)","v":""},{"$f":"IF('1. Order'!J696=\"\",\"\",'1. Order'!J696)","v":""},{"$f":"IF('1. Order'!K696=\"\",\"\",'1. Order'!K696)","v":""},{"$f":"IF('1. Order'!M696=\"\",\"\",'1. Order'!M696)","v":""},null,null,{"$f":"'1. Order'!AW696","v":0},{"$f":"IF('1. Order'!AE696=\"\",\"\",'1. Order'!AE696)","v":""}]
[{"$f":"IF('1. Order'!B697=\"\",\"\",'1. Order'!B697)","v":""},{"$f":"IF('1. Order'!I697=\"\",\"\",'1. Order'!I697)","v":""},{"$f":"IF('1. Order'!J697=\"\",\"\",'1. Order'!J697)","v":""},{"$f":"IF('1. Order'!K697=\"\",\"\",'1. Order'!K697)","v":""},{"$f":"IF('1. Order'!M697=\"\",\"\",'1. Order'!M697)","v":""},null,null,{"$f":"'1. Order'!AW697","v":0},{"$f":"IF('1. Order'!AE697=\"\",\"\",'1. Order'!AE697)","v":""}]
[{"$f":"IF('1. Order'!B698=\"\",\"\",'1. Order'!B698)","v":""},{"$f":"IF('1. Order'!I698=\"\",\"\",'1. Order'!I698)","v":""},{"$f":"IF('1. Order'!J698=\"\",\"\",'1. Order'!J698)","v":""},{"$f":"IF('1. Order'!K698=\"\",\"\",'1. Order'!K698)","v":""},{"$f":"IF('1. Order'!M698=\"\",\"\",'1. Order'!M698)","v":""},null,null,{"$f":"'1. Order'!AW698","v":0},{"$f":"IF('1. Order'!AE698=\"\",\"\",'1. Order'!AE698)","v":""}]
[{"$f":"IF('1. Order'!B699=\"\",\"\",'1. Order'!B699)","v":""},{"$f":"IF('1. Order'!I699=\"\",\"\",'1. Order'!I699)","v":""},{"$f":"IF('1. Order'!J699=\"\",\"\",'1. Order'!J699)","v":""},{"$f":"IF('1. Order'!K699=\"\",\"\",'1. Order'!K699)","v":""},{"$f":"IF('1. Order'!M699=\"\",\"\",'1. Order'!M699)","v":""},null,null,{"$f":"'1. Order'!AW699","v":0},{"$f":"IF('1. Order'!AE699=\"\",\"\",'1. Order'!AE699)","v":""}]
[{"$f":"IF('1. Order'!B700=\"\",\"\",'1. Order'!B700)","v":""},{"$f":"IF('1. Order'!I700=\"\",\"\",'1. Order'!I700)","v":""},{"$f":"IF('1. Order'!J700=\"\",\"\",'1. Order'!J700)","v":""},{"$f":"IF('1. Order'!K700=\"\",\"\",'1. Order'!K700)","v":""},{"$f":"IF('1. Order'!M700=\"\",\"\",'1. Order'!M700)","v":""},null,null,{"$f":"'1. Order'!AW700","v":0},{"$f":"IF('1. Order'!AE700=\"\",\"\",'1. Order'!AE700)","v":""}]
[{"$f":"IF('1. Order'!B701=\"\",\"\",'1. Order'!B701)","v":""},{"$f":"IF('1. Order'!I701=\"\",\"\",'1. Order'!I701)","v":""},{"$f":"IF('1. Order'!J701=\"\",\"\",'1. Order'!J701)","v":""},{"$f":"IF('1. Order'!K701=\"\",\"\",'1. Order'!K701)","v":""},{"$f":"IF('1. Order'!M701=\"\",\"\",'1. Order'!M701)","v":""},null,null,{"$f":"'1. Order'!AW701","v":0},{"$f":"IF('1. Order'!AE701=\"\",\"\",'1. Order'!AE701)","v":""}]
[{"$f":"IF('1. Order'!B702=\"\",\"\",'1. Order'!B702)","v":""},{"$f":"IF('1. Order'!I702=\"\",\"\",'1. Order'!I702)","v":""},{"$f":"IF('1. Order'!J702=\"\",\"\",'1. Order'!J702)","v":""},{"$f":"IF('1. Order'!K702=\"\",\"\",'1. Order'!K702)","v":""},{"$f":"IF('1. Order'!M702=\"\",\"\",'1. Order'!M702)","v":""},null,null,{"$f":"'1. Order'!AW702","v":0},{"$f":"IF('1. Order'!AE702=\"\",\"\",'1. Order'!AE702)","v":""}]
[{"$f":"IF('1. Order'!B703=\"\",\"\",'1. Order'!B703)","v":""},{"$f":"IF('1. Order'!I703=\"\",\"\",'1. Order'!I703)","v":""},{"$f":"IF('1. Order'!J703=\"\",\"\",'1. Order'!J703)","v":""},{"$f":"IF('1. Order'!K703=\"\",\"\",'1. Order'!K703)","v":""},{"$f":"IF('1. Order'!M703=\"\",\"\",'1. Order'!M703)","v":""},null,null,{"$f":"'1. Order'!AW703","v":0},{"$f":"IF('1. Order'!AE703=\"\",\"\",'1. Order'!AE703)","v":""}]
[{"$f":"IF('1. Order'!B704=\"\",\"\",'1. Order'!B704)","v":""},{"$f":"IF('1. Order'!I704=\"\",\"\",'1. Order'!I704)","v":""},{"$f":"IF('1. Order'!J704=\"\",\"\",'1. Order'!J704)","v":""},{"$f":"IF('1. Order'!K704=\"\",\"\",'1. Order'!K704)","v":""},{"$f":"IF('1. Order'!M704=\"\",\"\",'1. Order'!M704)","v":""},null,null,{"$f":"'1. Order'!AW704","v":0},{"$f":"IF('1. Order'!AE704=\"\",\"\",'1. Order'!AE704)","v":""}]
[{"$f":"IF('1. Order'!B705=\"\",\"\",'1. Order'!B705)","v":""},{"$f":"IF('1. Order'!I705=\"\",\"\",'1. Order'!I705)","v":""},{"$f":"IF('1. Order'!J705=\"\",\"\",'1. Order'!J705)","v":""},{"$f":"IF('1. Order'!K705=\"\",\"\",'1. Order'!K705)","v":""},{"$f":"IF('1. Order'!M705=\"\",\"\",'1. Order'!M705)","v":""},null,null,{"$f":"'1. Order'!AW705","v":0},{"$f":"IF('1. Order'!AE705=\"\",\"\",'1. Order'!AE705)","v":""}]
[{"$f":"IF('1. Order'!B706=\"\",\"\",'1. Order'!B706)","v":""},{"$f":"IF('1. Order'!I706=\"\",\"\",'1. Order'!I706)","v":""},{"$f":"IF('1. Order'!J706=\"\",\"\",'1. Order'!J706)","v":""},{"$f":"IF('1. Order'!K706=\"\",\"\",'1. Order'!K706)","v":""},{"$f":"IF('1. Order'!M706=\"\",\"\",'1. Order'!M706)","v":""},null,null,{"$f":"'1. Order'!AW706","v":0},{"$f":"IF('1. Order'!AE706=\"\",\"\",'1. Order'!AE706)","v":""}]
[{"$f":"IF('1. Order'!B707=\"\",\"\",'1. Order'!B707)","v":""},{"$f":"IF('1. Order'!I707=\"\",\"\",'1. Order'!I707)","v":""},{"$f":"IF('1. Order'!J707=\"\",\"\",'1. Order'!J707)","v":""},{"$f":"IF('1. Order'!K707=\"\",\"\",'1. Order'!K707)","v":""},{"$f":"IF('1. Order'!M707=\"\",\"\",'1. Order'!M707)","v":""},null,null,{"$f":"'1. Order'!AW707","v":0},{"$f":"IF('1. Order'!AE707=\"\",\"\",'1. Order'!AE707)","v":""}]
[{"$f":"IF('1. Order'!B708=\"\",\"\",'1. Order'!B708)","v":""},{"$f":"IF('1. Order'!I708=\"\",\"\",'1. Order'!I708)","v":""},{"$f":"IF('1. Order'!J708=\"\",\"\",'1. Order'!J708)","v":""},{"$f":"IF('1. Order'!K708=\"\",\"\",'1. Order'!K708)","v":""},{"$f":"IF('1. Order'!M708=\"\",\"\",'1. Order'!M708)","v":""},null,null,{"$f":"'1. Order'!AW708","v":0},{"$f":"IF('1. Order'!AE708=\"\",\"\",'1. Order'!AE708)","v":""}]
[{"$f":"IF('1. Order'!B709=\"\",\"\",'1. Order'!B709)","v":""},{"$f":"IF('1. Order'!I709=\"\",\"\",'1. Order'!I709)","v":""},{"$f":"IF('1. Order'!J709=\"\",\"\",'1. Order'!J709)","v":""},{"$f":"IF('1. Order'!K709=\"\",\"\",'1. Order'!K709)","v":""},{"$f":"IF('1. Order'!M709=\"\",\"\",'1. Order'!M709)","v":""},null,null,{"$f":"'1. Order'!AW709","v":0},{"$f":"IF('1. Order'!AE709=\"\",\"\",'1. Order'!AE709)","v":""}]
[{"$f":"IF('1. Order'!B710=\"\",\"\",'1. Order'!B710)","v":""},{"$f":"IF('1. Order'!I710=\"\",\"\",'1. Order'!I710)","v":""},{"$f":"IF('1. Order'!J710=\"\",\"\",'1. Order'!J710)","v":""},{"$f":"IF('1. Order'!K710=\"\",\"\",'1. Order'!K710)","v":""},{"$f":"IF('1. Order'!M710=\"\",\"\",'1. Order'!M710)","v":""},null,null,{"$f":"'1. Order'!AW710","v":0},{"$f":"IF('1. Order'!AE710=\"\",\"\",'1. Order'!AE710)","v":""}]
[{"$f":"IF('1. Order'!B711=\"\",\"\",'1. Order'!B711)","v":""},{"$f":"IF('1. Order'!I711=\"\",\"\",'1. Order'!I711)","v":""},{"$f":"IF('1. Order'!J711=\"\",\"\",'1. Order'!J711)","v":""},{"$f":"IF('1. Order'!K711=\"\",\"\",'1. Order'!K711)","v":""},{"$f":"IF('1. Order'!M711=\"\",\"\",'1. Order'!M711)","v":""},null,null,{"$f":"'1. Order'!AW711","v":0},{"$f":"IF('1. Order'!AE711=\"\",\"\",'1. Order'!AE711)","v":""}]
[{"$f":"IF('1. Order'!B712=\"\",\"\",'1. Order'!B712)","v":""},{"$f":"IF('1. Order'!I712=\"\",\"\",'1. Order'!I712)","v":""},{"$f":"IF('1. Order'!J712=\"\",\"\",'1. Order'!J712)","v":""},{"$f":"IF('1. Order'!K712=\"\",\"\",'1. Order'!K712)","v":""},{"$f":"IF('1. Order'!M712=\"\",\"\",'1. Order'!M712)","v":""},null,null,{"$f":"'1. Order'!AW712","v":0},{"$f":"IF('1. Order'!AE712=\"\",\"\",'1. Order'!AE712)","v":""}]
[{"$f":"IF('1. Order'!B713=\"\",\"\",'1. Order'!B713)","v":""},{"$f":"IF('1. Order'!I713=\"\",\"\",'1. Order'!I713)","v":""},{"$f":"IF('1. Order'!J713=\"\",\"\",'1. Order'!J713)","v":""},{"$f":"IF('1. Order'!K713=\"\",\"\",'1. Order'!K713)","v":""},{"$f":"IF('1. Order'!M713=\"\",\"\",'1. Order'!M713)","v":""},null,null,{"$f":"'1. Order'!AW713","v":0},{"$f":"IF('1. Order'!AE713=\"\",\"\",'1. Order'!AE713)","v":""}]
[{"$f":"IF('1. Order'!B714=\"\",\"\",'1. Order'!B714)","v":""},{"$f":"IF('1. Order'!I714=\"\",\"\",'1. Order'!I714)","v":""},{"$f":"IF('1. Order'!J714=\"\",\"\",'1. Order'!J714)","v":""},{"$f":"IF('1. Order'!K714=\"\",\"\",'1. Order'!K714)","v":""},{"$f":"IF('1. Order'!M714=\"\",\"\",'1. Order'!M714)","v":""},null,null,{"$f":"'1. Order'!AW714","v":0},{"$f":"IF('1. Order'!AE714=\"\",\"\",'1. Order'!AE714)","v":""}]
[{"$f":"IF('1. Order'!B715=\"\",\"\",'1. Order'!B715)","v":""},{"$f":"IF('1. Order'!I715=\"\",\"\",'1. Order'!I715)","v":""},{"$f":"IF('1. Order'!J715=\"\",\"\",'1. Order'!J715)","v":""},{"$f":"IF('1. Order'!K715=\"\",\"\",'1. Order'!K715)","v":""},{"$f":"IF('1. Order'!M715=\"\",\"\",'1. Order'!M715)","v":""},null,null,{"$f":"'1. Order'!AW715","v":0},{"$f":"IF('1. Order'!AE715=\"\",\"\",'1. Order'!AE715)","v":""}]
[{"$f":"IF('1. Order'!B716=\"\",\"\",'1. Order'!B716)","v":""},{"$f":"IF('1. Order'!I716=\"\",\"\",'1. Order'!I716)","v":""},{"$f":"IF('1. Order'!J716=\"\",\"\",'1. Order'!J716)","v":""},{"$f":"IF('1. Order'!K716=\"\",\"\",'1. Order'!K716)","v":""},{"$f":"IF('1. Order'!M716=\"\",\"\",'1. Order'!M716)","v":""},null,null,{"$f":"'1. Order'!AW716","v":0},{"$f":"IF('1. Order'!AE716=\"\",\"\",'1. Order'!AE716)","v":""}]
[{"$f":"IF('1. Order'!B717=\"\",\"\",'1. Order'!B717)","v":""},{"$f":"IF('1. Order'!I717=\"\",\"\",'1. Order'!I717)","v":""},{"$f":"IF('1. Order'!J717=\"\",\"\",'1. Order'!J717)","v":""},{"$f":"IF('1. Order'!K717=\"\",\"\",'1. Order'!K717)","v":""},{"$f":"IF('1. Order'!M717=\"\",\"\",'1. Order'!M717)","v":""},null,null,{"$f":"'1. Order'!AW717","v":0},{"$f":"IF('1. Order'!AE717=\"\",\"\",'1. Order'!AE717)","v":""}]
[{"$f":"IF('1. Order'!B718=\"\",\"\",'1. Order'!B718)","v":""},{"$f":"IF('1. Order'!I718=\"\",\"\",'1. Order'!I718)","v":""},{"$f":"IF('1. Order'!J718=\"\",\"\",'1. Order'!J718)","v":""},{"$f":"IF('1. Order'!K718=\"\",\"\",'1. Order'!K718)","v":""},{"$f":"IF('1. Order'!M718=\"\",\"\",'1. Order'!M718)","v":""},null,null,{"$f":"'1. Order'!AW718","v":0},{"$f":"IF('1. Order'!AE718=\"\",\"\",'1. Order'!AE718)","v":""}]
[{"$f":"IF('1. Order'!B719=\"\",\"\",'1. Order'!B719)","v":""},{"$f":"IF('1. Order'!I719=\"\",\"\",'1. Order'!I719)","v":""},{"$f":"IF('1. Order'!J719=\"\",\"\",'1. Order'!J719)","v":""},{"$f":"IF('1. Order'!K719=\"\",\"\",'1. Order'!K719)","v":""},{"$f":"IF('1. Order'!M719=\"\",\"\",'1. Order'!M719)","v":""},null,null,{"$f":"'1. Order'!AW719","v":0},{"$f":"IF('1. Order'!AE719=\"\",\"\",'1. Order'!AE719)","v":""}]
[{"$f":"IF('1. Order'!B720=\"\",\"\",'1. Order'!B720)","v":""},{"$f":"IF('1. Order'!I720=\"\",\"\",'1. Order'!I720)","v":""},{"$f":"IF('1. Order'!J720=\"\",\"\",'1. Order'!J720)","v":""},{"$f":"IF('1. Order'!K720=\"\",\"\",'1. Order'!K720)","v":""},{"$f":"IF('1. Order'!M720=\"\",\"\",'1. Order'!M720)","v":""},null,null,{"$f":"'1. Order'!AW720","v":0},{"$f":"IF('1. Order'!AE720=\"\",\"\",'1. Order'!AE720)","v":""}]
[{"$f":"IF('1. Order'!B721=\"\",\"\",'1. Order'!B721)","v":""},{"$f":"IF('1. Order'!I721=\"\",\"\",'1. Order'!I721)","v":""},{"$f":"IF('1. Order'!J721=\"\",\"\",'1. Order'!J721)","v":""},{"$f":"IF('1. Order'!K721=\"\",\"\",'1. Order'!K721)","v":""},{"$f":"IF('1. Order'!M721=\"\",\"\",'1. Order'!M721)","v":""},null,null,{"$f":"'1. Order'!AW721","v":0},{"$f":"IF('1. Order'!AE721=\"\",\"\",'1. Order'!AE721)","v":""}]
[{"$f":"IF('1. Order'!B722=\"\",\"\",'1. Order'!B722)","v":""},{"$f":"IF('1. Order'!I722=\"\",\"\",'1. Order'!I722)","v":""},{"$f":"IF('1. Order'!J722=\"\",\"\",'1. Order'!J722)","v":""},{"$f":"IF('1. Order'!K722=\"\",\"\",'1. Order'!K722)","v":""},{"$f":"IF('1. Order'!M722=\"\",\"\",'1. Order'!M722)","v":""},null,null,{"$f":"'1. Order'!AW722","v":0},{"$f":"IF('1. Order'!AE722=\"\",\"\",'1. Order'!AE722)","v":""}]
[{"$f":"IF('1. Order'!B723=\"\",\"\",'1. Order'!B723)","v":""},{"$f":"IF('1. Order'!I723=\"\",\"\",'1. Order'!I723)","v":""},{"$f":"IF('1. Order'!J723=\"\",\"\",'1. Order'!J723)","v":""},{"$f":"IF('1. Order'!K723=\"\",\"\",'1. Order'!K723)","v":""},{"$f":"IF('1. Order'!M723=\"\",\"\",'1. Order'!M723)","v":""},null,null,{"$f":"'1. Order'!AW723","v":0},{"$f":"IF('1. Order'!AE723=\"\",\"\",'1. Order'!AE723)","v":""}]
[{"$f":"IF('1. Order'!B724=\"\",\"\",'1. Order'!B724)","v":""},{"$f":"IF('1. Order'!I724=\"\",\"\",'1. Order'!I724)","v":""},{"$f":"IF('1. Order'!J724=\"\",\"\",'1. Order'!J724)","v":""},{"$f":"IF('1. Order'!K724=\"\",\"\",'1. Order'!K724)","v":""},{"$f":"IF('1. Order'!M724=\"\",\"\",'1. Order'!M724)","v":""},null,null,{"$f":"'1. Order'!AW724","v":0},{"$f":"IF('1. Order'!AE724=\"\",\"\",'1. Order'!AE724)","v":""}]
[{"$f":"IF('1. Order'!B725=\"\",\"\",'1. Order'!B725)","v":""},{"$f":"IF('1. Order'!I725=\"\",\"\",'1. Order'!I725)","v":""},{"$f":"IF('1. Order'!J725=\"\",\"\",'1. Order'!J725)","v":""},{"$f":"IF('1. Order'!K725=\"\",\"\",'1. Order'!K725)","v":""},{"$f":"IF('1. Order'!M725=\"\",\"\",'1. Order'!M725)","v":""},null,null,{"$f":"'1. Order'!AW725","v":0},{"$f":"IF('1. Order'!AE725=\"\",\"\",'1. Order'!AE725)","v":""}]
[{"$f":"IF('1. Order'!B726=\"\",\"\",'1. Order'!B726)","v":""},{"$f":"IF('1. Order'!I726=\"\",\"\",'1. Order'!I726)","v":""},{"$f":"IF('1. Order'!J726=\"\",\"\",'1. Order'!J726)","v":""},{"$f":"IF('1. Order'!K726=\"\",\"\",'1. Order'!K726)","v":""},{"$f":"IF('1. Order'!M726=\"\",\"\",'1. Order'!M726)","v":""},null,null,{"$f":"'1. Order'!AW726","v":0},{"$f":"IF('1. Order'!AE726=\"\",\"\",'1. Order'!AE726)","v":""}]
[{"$f":"IF('1. Order'!B727=\"\",\"\",'1. Order'!B727)","v":""},{"$f":"IF('1. Order'!I727=\"\",\"\",'1. Order'!I727)","v":""},{"$f":"IF('1. Order'!J727=\"\",\"\",'1. Order'!J727)","v":""},{"$f":"IF('1. Order'!K727=\"\",\"\",'1. Order'!K727)","v":""},{"$f":"IF('1. Order'!M727=\"\",\"\",'1. Order'!M727)","v":""},null,null,{"$f":"'1. Order'!AW727","v":0},{"$f":"IF('1. Order'!AE727=\"\",\"\",'1. Order'!AE727)","v":""}]
[{"$f":"IF('1. Order'!B728=\"\",\"\",'1. Order'!B728)","v":""},{"$f":"IF('1. Order'!I728=\"\",\"\",'1. Order'!I728)","v":""},{"$f":"IF('1. Order'!J728=\"\",\"\",'1. Order'!J728)","v":""},{"$f":"IF('1. Order'!K728=\"\",\"\",'1. Order'!K728)","v":""},{"$f":"IF('1. Order'!M728=\"\",\"\",'1. Order'!M728)","v":""},null,null,{"$f":"'1. Order'!AW728","v":0},{"$f":"IF('1. Order'!AE728=\"\",\"\",'1. Order'!AE728)","v":""}]
[{"$f":"IF('1. Order'!B729=\"\",\"\",'1. Order'!B729)","v":""},{"$f":"IF('1. Order'!I729=\"\",\"\",'1. Order'!I729)","v":""},{"$f":"IF('1. Order'!J729=\"\",\"\",'1. Order'!J729)","v":""},{"$f":"IF('1. Order'!K729=\"\",\"\",'1. Order'!K729)","v":""},{"$f":"IF('1. Order'!M729=\"\",\"\",'1. Order'!M729)","v":""},null,null,{"$f":"'1. Order'!AW729","v":0},{"$f":"IF('1. Order'!AE729=\"\",\"\",'1. Order'!AE729)","v":""}]
[{"$f":"IF('1. Order'!B730=\"\",\"\",'1. Order'!B730)","v":""},{"$f":"IF('1. Order'!I730=\"\",\"\",'1. Order'!I730)","v":""},{"$f":"IF('1. Order'!J730=\"\",\"\",'1. Order'!J730)","v":""},{"$f":"IF('1. Order'!K730=\"\",\"\",'1. Order'!K730)","v":""},{"$f":"IF('1. Order'!M730=\"\",\"\",'1. Order'!M730)","v":""},null,null,{"$f":"'1. Order'!AW730","v":0},{"$f":"IF('1. Order'!AE730=\"\",\"\",'1. Order'!AE730)","v":""}]
[{"$f":"IF('1. Order'!B731=\"\",\"\",'1. Order'!B731)","v":""},{"$f":"IF('1. Order'!I731=\"\",\"\",'1. Order'!I731)","v":""},{"$f":"IF('1. Order'!J731=\"\",\"\",'1. Order'!J731)","v":""},{"$f":"IF('1. Order'!K731=\"\",\"\",'1. Order'!K731)","v":""},{"$f":"IF('1. Order'!M731=\"\",\"\",'1. Order'!M731)","v":""},null,null,{"$f":"'1. Order'!AW731","v":0},{"$f":"IF('1. Order'!AE731=\"\",\"\",'1. Order'!AE731)","v":""}]
[{"$f":"IF('1. Order'!B732=\"\",\"\",'1. Order'!B732)","v":""},{"$f":"IF('1. Order'!I732=\"\",\"\",'1. Order'!I732)","v":""},{"$f":"IF('1. Order'!J732=\"\",\"\",'1. Order'!J732)","v":""},{"$f":"IF('1. Order'!K732=\"\",\"\",'1. Order'!K732)","v":""},{"$f":"IF('1. Order'!M732=\"\",\"\",'1. Order'!M732)","v":""},null,null,{"$f":"'1. Order'!AW732","v":0},{"$f":"IF('1. Order'!AE732=\"\",\"\",'1. Order'!AE732)","v":""}]
[{"$f":"IF('1. Order'!B733=\"\",\"\",'1. Order'!B733)","v":""},{"$f":"IF('1. Order'!I733=\"\",\"\",'1. Order'!I733)","v":""},{"$f":"IF('1. Order'!J733=\"\",\"\",'1. Order'!J733)","v":""},{"$f":"IF('1. Order'!K733=\"\",\"\",'1. Order'!K733)","v":""},{"$f":"IF('1. Order'!M733=\"\",\"\",'1. Order'!M733)","v":""},null,null,{"$f":"'1. Order'!AW733","v":0},{"$f":"IF('1. Order'!AE733=\"\",\"\",'1. Order'!AE733)","v":""}]
[{"$f":"IF('1. Order'!B734=\"\",\"\",'1. Order'!B734)","v":""},{"$f":"IF('1. Order'!I734=\"\",\"\",'1. Order'!I734)","v":""},{"$f":"IF('1. Order'!J734=\"\",\"\",'1. Order'!J734)","v":""},{"$f":"IF('1. Order'!K734=\"\",\"\",'1. Order'!K734)","v":""},{"$f":"IF('1. Order'!M734=\"\",\"\",'1. Order'!M734)","v":""},null,null,{"$f":"'1. Order'!AW734","v":0},{"$f":"IF('1. Order'!AE734=\"\",\"\",'1. Order'!AE734)","v":""}]
[{"$f":"IF('1. Order'!B735=\"\",\"\",'1. Order'!B735)","v":""},{"$f":"IF('1. Order'!I735=\"\",\"\",'1. Order'!I735)","v":""},{"$f":"IF('1. Order'!J735=\"\",\"\",'1. Order'!J735)","v":""},{"$f":"IF('1. Order'!K735=\"\",\"\",'1. Order'!K735)","v":""},{"$f":"IF('1. Order'!M735=\"\",\"\",'1. Order'!M735)","v":""},null,null,{"$f":"'1. Order'!AW735","v":0},{"$f":"IF('1. Order'!AE735=\"\",\"\",'1. Order'!AE735)","v":""}]
[{"$f":"IF('1. Order'!B736=\"\",\"\",'1. Order'!B736)","v":""},{"$f":"IF('1. Order'!I736=\"\",\"\",'1. Order'!I736)","v":""},{"$f":"IF('1. Order'!J736=\"\",\"\",'1. Order'!J736)","v":""},{"$f":"IF('1. Order'!K736=\"\",\"\",'1. Order'!K736)","v":""},{"$f":"IF('1. Order'!M736=\"\",\"\",'1. Order'!M736)","v":""},null,null,{"$f":"'1. Order'!AW736","v":0},{"$f":"IF('1. Order'!AE736=\"\",\"\",'1. Order'!AE736)","v":""}]
[{"$f":"IF('1. Order'!B737=\"\",\"\",'1. Order'!B737)","v":""},{"$f":"IF('1. Order'!I737=\"\",\"\",'1. Order'!I737)","v":""},{"$f":"IF('1. Order'!J737=\"\",\"\",'1. Order'!J737)","v":""},{"$f":"IF('1. Order'!K737=\"\",\"\",'1. Order'!K737)","v":""},{"$f":"IF('1. Order'!M737=\"\",\"\",'1. Order'!M737)","v":""},null,null,{"$f":"'1. Order'!AW737","v":0},{"$f":"IF('1. Order'!AE737=\"\",\"\",'1. Order'!AE737)","v":""}]
[{"$f":"IF('1. Order'!B738=\"\",\"\",'1. Order'!B738)","v":""},{"$f":"IF('1. Order'!I738=\"\",\"\",'1. Order'!I738)","v":""},{"$f":"IF('1. Order'!J738=\"\",\"\",'1. Order'!J738)","v":""},{"$f":"IF('1. Order'!K738=\"\",\"\",'1. Order'!K738)","v":""},{"$f":"IF('1. Order'!M738=\"\",\"\",'1. Order'!M738)","v":""},null,null,{"$f":"'1. Order'!AW738","v":0},{"$f":"IF('1. Order'!AE738=\"\",\"\",'1. Order'!AE738)","v":""}]
[{"$f":"IF('1. Order'!B739=\"\",\"\",'1. Order'!B739)","v":""},{"$f":"IF('1. Order'!I739=\"\",\"\",'1. Order'!I739)","v":""},{"$f":"IF('1. Order'!J739=\"\",\"\",'1. Order'!J739)","v":""},{"$f":"IF('1. Order'!K739=\"\",\"\",'1. Order'!K739)","v":""},{"$f":"IF('1. Order'!M739=\"\",\"\",'1. Order'!M739)","v":""},null,null,{"$f":"'1. Order'!AW739","v":0},{"$f":"IF('1. Order'!AE739=\"\",\"\",'1. Order'!AE739)","v":""}]
[{"$f":"IF('1. Order'!B740=\"\",\"\",'1. Order'!B740)","v":""},{"$f":"IF('1. Order'!I740=\"\",\"\",'1. Order'!I740)","v":""},{"$f":"IF('1. Order'!J740=\"\",\"\",'1. Order'!J740)","v":""},{"$f":"IF('1. Order'!K740=\"\",\"\",'1. Order'!K740)","v":""},{"$f":"IF('1. Order'!M740=\"\",\"\",'1. Order'!M740)","v":""},null,null,{"$f":"'1. Order'!AW740","v":0},{"$f":"IF('1. Order'!AE740=\"\",\"\",'1. Order'!AE740)","v":""}]
[{"$f":"IF('1. Order'!B741=\"\",\"\",'1. Order'!B741)","v":""},{"$f":"IF('1. Order'!I741=\"\",\"\",'1. Order'!I741)","v":""},{"$f":"IF('1. Order'!J741=\"\",\"\",'1. Order'!J741)","v":""},{"$f":"IF('1. Order'!K741=\"\",\"\",'1. Order'!K741)","v":""},{"$f":"IF('1. Order'!M741=\"\",\"\",'1. Order'!M741)","v":""},null,null,{"$f":"'1. Order'!AW741","v":0},{"$f":"IF('1. Order'!AE741=\"\",\"\",'1. Order'!AE741)","v":""}]
[{"$f":"IF('1. Order'!B742=\"\",\"\",'1. Order'!B742)","v":""},{"$f":"IF('1. Order'!I742=\"\",\"\",'1. Order'!I742)","v":""},{"$f":"IF('1. Order'!J742=\"\",\"\",'1. Order'!J742)","v":""},{"$f":"IF('1. Order'!K742=\"\",\"\",'1. Order'!K742)","v":""},{"$f":"IF('1. Order'!M742=\"\",\"\",'1. Order'!M742)","v":""},null,null,{"$f":"'1. Order'!AW742","v":0},{"$f":"IF('1. Order'!AE742=\"\",\"\",'1. Order'!AE742)","v":""}]
[{"$f":"IF('1. Order'!B743=\"\",\"\",'1. Order'!B743)","v":""},{"$f":"IF('1. Order'!I743=\"\",\"\",'1. Order'!I743)","v":""},{"$f":"IF('1. Order'!J743=\"\",\"\",'1. Order'!J743)","v":""},{"$f":"IF('1. Order'!K743=\"\",\"\",'1. Order'!K743)","v":""},{"$f":"IF('1. Order'!M743=\"\",\"\",'1. Order'!M743)","v":""},null,null,{"$f":"'1. Order'!AW743","v":0},{"$f":"IF('1. Order'!AE743=\"\",\"\",'1. Order'!AE743)","v":""}]
[{"$f":"IF('1. Order'!B744=\"\",\"\",'1. Order'!B744)","v":""},{"$f":"IF('1. Order'!I744=\"\",\"\",'1. Order'!I744)","v":""},{"$f":"IF('1. Order'!J744=\"\",\"\",'1. Order'!J744)","v":""},{"$f":"IF('1. Order'!K744=\"\",\"\",'1. Order'!K744)","v":""},{"$f":"IF('1. Order'!M744=\"\",\"\",'1. Order'!M744)","v":""},null,null,{"$f":"'1. Order'!AW744","v":0},{"$f":"IF('1. Order'!AE744=\"\",\"\",'1. Order'!AE744)","v":""}]
[{"$f":"IF('1. Order'!B745=\"\",\"\",'1. Order'!B745)","v":""},{"$f":"IF('1. Order'!I745=\"\",\"\",'1. Order'!I745)","v":""},{"$f":"IF('1. Order'!J745=\"\",\"\",'1. Order'!J745)","v":""},{"$f":"IF('1. Order'!K745=\"\",\"\",'1. Order'!K745)","v":""},{"$f":"IF('1. Order'!M745=\"\",\"\",'1. Order'!M745)","v":""},null,null,{"$f":"'1. Order'!AW745","v":0},{"$f":"IF('1. Order'!AE745=\"\",\"\",'1. Order'!AE745)","v":""}]
[{"$f":"IF('1. Order'!B746=\"\",\"\",'1. Order'!B746)","v":""},{"$f":"IF('1. Order'!I746=\"\",\"\",'1. Order'!I746)","v":""},{"$f":"IF('1. Order'!J746=\"\",\"\",'1. Order'!J746)","v":""},{"$f":"IF('1. Order'!K746=\"\",\"\",'1. Order'!K746)","v":""},{"$f":"IF('1. Order'!M746=\"\",\"\",'1. Order'!M746)","v":""},null,null,{"$f":"'1. Order'!AW746","v":0},{"$f":"IF('1. Order'!AE746=\"\",\"\",'1. Order'!AE746)","v":""}]
[{"$f":"IF('1. Order'!B747=\"\",\"\",'1. Order'!B747)","v":""},{"$f":"IF('1. Order'!I747=\"\",\"\",'1. Order'!I747)","v":""},{"$f":"IF('1. Order'!J747=\"\",\"\",'1. Order'!J747)","v":""},{"$f":"IF('1. Order'!K747=\"\",\"\",'1. Order'!K747)","v":""},{"$f":"IF('1. Order'!M747=\"\",\"\",'1. Order'!M747)","v":""},null,null,{"$f":"'1. Order'!AW747","v":0},{"$f":"IF('1. Order'!AE747=\"\",\"\",'1. Order'!AE747)","v":""}]
[{"$f":"IF('1. Order'!B748=\"\",\"\",'1. Order'!B748)","v":""},{"$f":"IF('1. Order'!I748=\"\",\"\",'1. Order'!I748)","v":""},{"$f":"IF('1. Order'!J748=\"\",\"\",'1. Order'!J748)","v":""},{"$f":"IF('1. Order'!K748=\"\",\"\",'1. Order'!K748)","v":""},{"$f":"IF('1. Order'!M748=\"\",\"\",'1. Order'!M748)","v":""},null,null,{"$f":"'1. Order'!AW748","v":0},{"$f":"IF('1. Order'!AE748=\"\",\"\",'1. Order'!AE748)","v":""}]
[{"$f":"IF('1. Order'!B749=\"\",\"\",'1. Order'!B749)","v":""},{"$f":"IF('1. Order'!I749=\"\",\"\",'1. Order'!I749)","v":""},{"$f":"IF('1. Order'!J749=\"\",\"\",'1. Order'!J749)","v":""},{"$f":"IF('1. Order'!K749=\"\",\"\",'1. Order'!K749)","v":""},{"$f":"IF('1. Order'!M749=\"\",\"\",'1. Order'!M749)","v":""},null,null,{"$f":"'1. Order'!AW749","v":0},{"$f":"IF('1. Order'!AE749=\"\",\"\",'1. Order'!AE749)","v":""}]
[{"$f":"IF('1. Order'!B750=\"\",\"\",'1. Order'!B750)","v":""},{"$f":"IF('1. Order'!I750=\"\",\"\",'1. Order'!I750)","v":""},{"$f":"IF('1. Order'!J750=\"\",\"\",'1. Order'!J750)","v":""},{"$f":"IF('1. Order'!K750=\"\",\"\",'1. Order'!K750)","v":""},{"$f":"IF('1. Order'!M750=\"\",\"\",'1. Order'!M750)","v":""},null,null,{"$f":"'1. Order'!AW750","v":0},{"$f":"IF('1. Order'!AE750=\"\",\"\",'1. Order'!AE750)","v":""}]
[{"$f":"IF('1. Order'!B751=\"\",\"\",'1. Order'!B751)","v":""},{"$f":"IF('1. Order'!I751=\"\",\"\",'1. Order'!I751)","v":""},{"$f":"IF('1. Order'!J751=\"\",\"\",'1. Order'!J751)","v":""},{"$f":"IF('1. Order'!K751=\"\",\"\",'1. Order'!K751)","v":""},{"$f":"IF('1. Order'!M751=\"\",\"\",'1. Order'!M751)","v":""},null,null,{"$f":"'1. Order'!AW751","v":0},{"$f":"IF('1. Order'!AE751=\"\",\"\",'1. Order'!AE751)","v":""}]
[{"$f":"IF('1. Order'!B752=\"\",\"\",'1. Order'!B752)","v":""},{"$f":"IF('1. Order'!I752=\"\",\"\",'1. Order'!I752)","v":""},{"$f":"IF('1. Order'!J752=\"\",\"\",'1. Order'!J752)","v":""},{"$f":"IF('1. Order'!K752=\"\",\"\",'1. Order'!K752)","v":""},{"$f":"IF('1. Order'!M752=\"\",\"\",'1. Order'!M752)","v":""},null,null,{"$f":"'1. Order'!AW752","v":0},{"$f":"IF('1. Order'!AE752=\"\",\"\",'1. Order'!AE752)","v":""}]
[{"$f":"IF('1. Order'!B753=\"\",\"\",'1. Order'!B753)","v":""},{"$f":"IF('1. Order'!I753=\"\",\"\",'1. Order'!I753)","v":""},{"$f":"IF('1. Order'!J753=\"\",\"\",'1. Order'!J753)","v":""},{"$f":"IF('1. Order'!K753=\"\",\"\",'1. Order'!K753)","v":""},{"$f":"IF('1. Order'!M753=\"\",\"\",'1. Order'!M753)","v":""},null,null,{"$f":"'1. Order'!AW753","v":0},{"$f":"IF('1. Order'!AE753=\"\",\"\",'1. Order'!AE753)","v":""}]
[{"$f":"IF('1. Order'!B754=\"\",\"\",'1. Order'!B754)","v":""},{"$f":"IF('1. Order'!I754=\"\",\"\",'1. Order'!I754)","v":""},{"$f":"IF('1. Order'!J754=\"\",\"\",'1. Order'!J754)","v":""},{"$f":"IF('1. Order'!K754=\"\",\"\",'1. Order'!K754)","v":""},{"$f":"IF('1. Order'!M754=\"\",\"\",'1. Order'!M754)","v":""},null,null,{"$f":"'1. Order'!AW754","v":0},{"$f":"IF('1. Order'!AE754=\"\",\"\",'1. Order'!AE754)","v":""}]
[{"$f":"IF('1. Order'!B755=\"\",\"\",'1. Order'!B755)","v":""},{"$f":"IF('1. Order'!I755=\"\",\"\",'1. Order'!I755)","v":""},{"$f":"IF('1. Order'!J755=\"\",\"\",'1. Order'!J755)","v":""},{"$f":"IF('1. Order'!K755=\"\",\"\",'1. Order'!K755)","v":""},{"$f":"IF('1. Order'!M755=\"\",\"\",'1. Order'!M755)","v":""},null,null,{"$f":"'1. Order'!AW755","v":0},{"$f":"IF('1. Order'!AE755=\"\",\"\",'1. Order'!AE755)","v":""}]
[{"$f":"IF('1. Order'!B756=\"\",\"\",'1. Order'!B756)","v":""},{"$f":"IF('1. Order'!I756=\"\",\"\",'1. Order'!I756)","v":""},{"$f":"IF('1. Order'!J756=\"\",\"\",'1. Order'!J756)","v":""},{"$f":"IF('1. Order'!K756=\"\",\"\",'1. Order'!K756)","v":""},{"$f":"IF('1. Order'!M756=\"\",\"\",'1. Order'!M756)","v":""},null,null,{"$f":"'1. Order'!AW756","v":0},{"$f":"IF('1. Order'!AE756=\"\",\"\",'1. Order'!AE756)","v":""}]
[{"$f":"IF('1. Order'!B757=\"\",\"\",'1. Order'!B757)","v":""},{"$f":"IF('1. Order'!I757=\"\",\"\",'1. Order'!I757)","v":""},{"$f":"IF('1. Order'!J757=\"\",\"\",'1. Order'!J757)","v":""},{"$f":"IF('1. Order'!K757=\"\",\"\",'1. Order'!K757)","v":""},{"$f":"IF('1. Order'!M757=\"\",\"\",'1. Order'!M757)","v":""},null,null,{"$f":"'1. Order'!AW757","v":0},{"$f":"IF('1. Order'!AE757=\"\",\"\",'1. Order'!AE757)","v":""}]
[{"$f":"IF('1. Order'!B758=\"\",\"\",'1. Order'!B758)","v":""},{"$f":"IF('1. Order'!I758=\"\",\"\",'1. Order'!I758)","v":""},{"$f":"IF('1. Order'!J758=\"\",\"\",'1. Order'!J758)","v":""},{"$f":"IF('1. Order'!K758=\"\",\"\",'1. Order'!K758)","v":""},{"$f":"IF('1. Order'!M758=\"\",\"\",'1. Order'!M758)","v":""},null,null,{"$f":"'1. Order'!AW758","v":0},{"$f":"IF('1. Order'!AE758=\"\",\"\",'1. Order'!AE758)","v":""}]
[{"$f":"IF('1. Order'!B759=\"\",\"\",'1. Order'!B759)","v":""},{"$f":"IF('1. Order'!I759=\"\",\"\",'1. Order'!I759)","v":""},{"$f":"IF('1. Order'!J759=\"\",\"\",'1. Order'!J759)","v":""},{"$f":"IF('1. Order'!K759=\"\",\"\",'1. Order'!K759)","v":""},{"$f":"IF('1. Order'!M759=\"\",\"\",'1. Order'!M759)","v":""},null,null,{"$f":"'1. Order'!AW759","v":0},{"$f":"IF('1. Order'!AE759=\"\",\"\",'1. Order'!AE759)","v":""}]
[{"$f":"IF('1. Order'!B760=\"\",\"\",'1. Order'!B760)","v":""},{"$f":"IF('1. Order'!I760=\"\",\"\",'1. Order'!I760)","v":""},{"$f":"IF('1. Order'!J760=\"\",\"\",'1. Order'!J760)","v":""},{"$f":"IF('1. Order'!K760=\"\",\"\",'1. Order'!K760)","v":""},{"$f":"IF('1. Order'!M760=\"\",\"\",'1. Order'!M760)","v":""},null,null,{"$f":"'1. Order'!AW760","v":0},{"$f":"IF('1. Order'!AE760=\"\",\"\",'1. Order'!AE760)","v":""}]
[{"$f":"IF('1. Order'!B761=\"\",\"\",'1. Order'!B761)","v":""},{"$f":"IF('1. Order'!I761=\"\",\"\",'1. Order'!I761)","v":""},{"$f":"IF('1. Order'!J761=\"\",\"\",'1. Order'!J761)","v":""},{"$f":"IF('1. Order'!K761=\"\",\"\",'1. Order'!K761)","v":""},{"$f":"IF('1. Order'!M761=\"\",\"\",'1. Order'!M761)","v":""},null,null,{"$f":"'1. Order'!AW761","v":0},{"$f":"IF('1. Order'!AE761=\"\",\"\",'1. Order'!AE761)","v":""}]
[{"$f":"IF('1. Order'!B762=\"\",\"\",'1. Order'!B762)","v":""},{"$f":"IF('1. Order'!I762=\"\",\"\",'1. Order'!I762)","v":""},{"$f":"IF('1. Order'!J762=\"\",\"\",'1. Order'!J762)","v":""},{"$f":"IF('1. Order'!K762=\"\",\"\",'1. Order'!K762)","v":""},{"$f":"IF('1. Order'!M762=\"\",\"\",'1. Order'!M762)","v":""},null,null,{"$f":"'1. Order'!AW762","v":0},{"$f":"IF('1. Order'!AE762=\"\",\"\",'1. Order'!AE762)","v":""}]
[{"$f":"IF('1. Order'!B763=\"\",\"\",'1. Order'!B763)","v":""},{"$f":"IF('1. Order'!I763=\"\",\"\",'1. Order'!I763)","v":""},{"$f":"IF('1. Order'!J763=\"\",\"\",'1. Order'!J763)","v":""},{"$f":"IF('1. Order'!K763=\"\",\"\",'1. Order'!K763)","v":""},{"$f":"IF('1. Order'!M763=\"\",\"\",'1. Order'!M763)","v":""},null,null,{"$f":"'1. Order'!AW763","v":0},{"$f":"IF('1. Order'!AE763=\"\",\"\",'1. Order'!AE763)","v":""}]
[{"$f":"IF('1. Order'!B764=\"\",\"\",'1. Order'!B764)","v":""},{"$f":"IF('1. Order'!I764=\"\",\"\",'1. Order'!I764)","v":""},{"$f":"IF('1. Order'!J764=\"\",\"\",'1. Order'!J764)","v":""},{"$f":"IF('1. Order'!K764=\"\",\"\",'1. Order'!K764)","v":""},{"$f":"IF('1. Order'!M764=\"\",\"\",'1. Order'!M764)","v":""},null,null,{"$f":"'1. Order'!AW764","v":0},{"$f":"IF('1. Order'!AE764=\"\",\"\",'1. Order'!AE764)","v":""}]
[{"$f":"IF('1. Order'!B765=\"\",\"\",'1. Order'!B765)","v":""},{"$f":"IF('1. Order'!I765=\"\",\"\",'1. Order'!I765)","v":""},{"$f":"IF('1. Order'!J765=\"\",\"\",'1. Order'!J765)","v":""},{"$f":"IF('1. Order'!K765=\"\",\"\",'1. Order'!K765)","v":""},{"$f":"IF('1. Order'!M765=\"\",\"\",'1. Order'!M765)","v":""},null,null,{"$f":"'1. Order'!AW765","v":0},{"$f":"IF('1. Order'!AE765=\"\",\"\",'1. Order'!AE765)","v":""}]
[{"$f":"IF('1. Order'!B766=\"\",\"\",'1. Order'!B766)","v":""},{"$f":"IF('1. Order'!I766=\"\",\"\",'1. Order'!I766)","v":""},{"$f":"IF('1. Order'!J766=\"\",\"\",'1. Order'!J766)","v":""},{"$f":"IF('1. Order'!K766=\"\",\"\",'1. Order'!K766)","v":""},{"$f":"IF('1. Order'!M766=\"\",\"\",'1. Order'!M766)","v":""},null,null,{"$f":"'1. Order'!AW766","v":0},{"$f":"IF('1. Order'!AE766=\"\",\"\",'1. Order'!AE766)","v":""}]
[{"$f":"IF('1. Order'!B767=\"\",\"\",'1. Order'!B767)","v":""},{"$f":"IF('1. Order'!I767=\"\",\"\",'1. Order'!I767)","v":""},{"$f":"IF('1. Order'!J767=\"\",\"\",'1. Order'!J767)","v":""},{"$f":"IF('1. Order'!K767=\"\",\"\",'1. Order'!K767)","v":""},{"$f":"IF('1. Order'!M767=\"\",\"\",'1. Order'!M767)","v":""},null,null,{"$f":"'1. Order'!AW767","v":0},{"$f":"IF('1. Order'!AE767=\"\",\"\",'1. Order'!AE767)","v":""}]
[{"$f":"IF('1. Order'!B768=\"\",\"\",'1. Order'!B768)","v":""},{"$f":"IF('1. Order'!I768=\"\",\"\",'1. Order'!I768)","v":""},{"$f":"IF('1. Order'!J768=\"\",\"\",'1. Order'!J768)","v":""},{"$f":"IF('1. Order'!K768=\"\",\"\",'1. Order'!K768)","v":""},{"$f":"IF('1. Order'!M768=\"\",\"\",'1. Order'!M768)","v":""},null,null,{"$f":"'1. Order'!AW768","v":0},{"$f":"IF('1. Order'!AE768=\"\",\"\",'1. Order'!AE768)","v":""}]
[{"$f":"IF('1. Order'!B769=\"\",\"\",'1. Order'!B769)","v":""},{"$f":"IF('1. Order'!I769=\"\",\"\",'1. Order'!I769)","v":""},{"$f":"IF('1. Order'!J769=\"\",\"\",'1. Order'!J769)","v":""},{"$f":"IF('1. Order'!K769=\"\",\"\",'1. Order'!K769)","v":""},{"$f":"IF('1. Order'!M769=\"\",\"\",'1. Order'!M769)","v":""},null,null,{"$f":"'1. Order'!AW769","v":0},{"$f":"IF('1. Order'!AE769=\"\",\"\",'1. Order'!AE769)","v":""}]
[{"$f":"IF('1. Order'!B770=\"\",\"\",'1. Order'!B770)","v":""},{"$f":"IF('1. Order'!I770=\"\",\"\",'1. Order'!I770)","v":""},{"$f":"IF('1. Order'!J770=\"\",\"\",'1. Order'!J770)","v":""},{"$f":"IF('1. Order'!K770=\"\",\"\",'1. Order'!K770)","v":""},{"$f":"IF('1. Order'!M770=\"\",\"\",'1. Order'!M770)","v":""},null,null,{"$f":"'1. Order'!AW770","v":0},{"$f":"IF('1. Order'!AE770=\"\",\"\",'1. Order'!AE770)","v":""}]
[{"$f":"IF('1. Order'!B771=\"\",\"\",'1. Order'!B771)","v":""},{"$f":"IF('1. Order'!I771=\"\",\"\",'1. Order'!I771)","v":""},{"$f":"IF('1. Order'!J771=\"\",\"\",'1. Order'!J771)","v":""},{"$f":"IF('1. Order'!K771=\"\",\"\",'1. Order'!K771)","v":""},{"$f":"IF('1. Order'!M771=\"\",\"\",'1. Order'!M771)","v":""},null,null,{"$f":"'1. Order'!AW771","v":0},{"$f":"IF('1. Order'!AE771=\"\",\"\",'1. Order'!AE771)","v":""}]
[{"$f":"IF('1. Order'!B772=\"\",\"\",'1. Order'!B772)","v":""},{"$f":"IF('1. Order'!I772=\"\",\"\",'1. Order'!I772)","v":""},{"$f":"IF('1. Order'!J772=\"\",\"\",'1. Order'!J772)","v":""},{"$f":"IF('1. Order'!K772=\"\",\"\",'1. Order'!K772)","v":""},{"$f":"IF('1. Order'!M772=\"\",\"\",'1. Order'!M772)","v":""},null,null,{"$f":"'1. Order'!AW772","v":0},{"$f":"IF('1. Order'!AE772=\"\",\"\",'1. Order'!AE772)","v":""}]
[{"$f":"IF('1. Order'!B773=\"\",\"\",'1. Order'!B773)","v":""},{"$f":"IF('1. Order'!I773=\"\",\"\",'1. Order'!I773)","v":""},{"$f":"IF('1. Order'!J773=\"\",\"\",'1. Order'!J773)","v":""},{"$f":"IF('1. Order'!K773=\"\",\"\",'1. Order'!K773)","v":""},{"$f":"IF('1. Order'!M773=\"\",\"\",'1. Order'!M773)","v":""},null,null,{"$f":"'1. Order'!AW773","v":0},{"$f":"IF('1. Order'!AE773=\"\",\"\",'1. Order'!AE773)","v":""}]
[{"$f":"IF('1. Order'!B774=\"\",\"\",'1. Order'!B774)","v":""},{"$f":"IF('1. Order'!I774=\"\",\"\",'1. Order'!I774)","v":""},{"$f":"IF('1. Order'!J774=\"\",\"\",'1. Order'!J774)","v":""},{"$f":"IF('1. Order'!K774=\"\",\"\",'1. Order'!K774)","v":""},{"$f":"IF('1. Order'!M774=\"\",\"\",'1. Order'!M774)","v":""},null,null,{"$f":"'1. Order'!AW774","v":0},{"$f":"IF('1. Order'!AE774=\"\",\"\",'1. Order'!AE774)","v":""}]
[{"$f":"IF('1. Order'!B775=\"\",\"\",'1. Order'!B775)","v":""},{"$f":"IF('1. Order'!I775=\"\",\"\",'1. Order'!I775)","v":""},{"$f":"IF('1. Order'!J775=\"\",\"\",'1. Order'!J775)","v":""},{"$f":"IF('1. Order'!K775=\"\",\"\",'1. Order'!K775)","v":""},{"$f":"IF('1. Order'!M775=\"\",\"\",'1. Order'!M775)","v":""},null,null,{"$f":"'1. Order'!AW775","v":0},{"$f":"IF('1. Order'!AE775=\"\",\"\",'1. Order'!AE775)","v":""}]
[{"$f":"IF('1. Order'!B776=\"\",\"\",'1. Order'!B776)","v":""},{"$f":"IF('1. Order'!I776=\"\",\"\",'1. Order'!I776)","v":""},{"$f":"IF('1. Order'!J776=\"\",\"\",'1. Order'!J776)","v":""},{"$f":"IF('1. Order'!K776=\"\",\"\",'1. Order'!K776)","v":""},{"$f":"IF('1. Order'!M776=\"\",\"\",'1. Order'!M776)","v":""},null,null,{"$f":"'1. Order'!AW776","v":0},{"$f":"IF('1. Order'!AE776=\"\",\"\",'1. Order'!AE776)","v":""}]
[{"$f":"IF('1. Order'!B777=\"\",\"\",'1. Order'!B777)","v":""},{"$f":"IF('1. Order'!I777=\"\",\"\",'1. Order'!I777)","v":""},{"$f":"IF('1. Order'!J777=\"\",\"\",'1. Order'!J777)","v":""},{"$f":"IF('1. Order'!K777=\"\",\"\",'1. Order'!K777)","v":""},{"$f":"IF('1. Order'!M777=\"\",\"\",'1. Order'!M777)","v":""},null,null,{"$f":"'1. Order'!AW777","v":0},{"$f":"IF('1. Order'!AE777=\"\",\"\",'1. Order'!AE777)","v":""}]
[{"$f":"IF('1. Order'!B778=\"\",\"\",'1. Order'!B778)","v":""},{"$f":"IF('1. Order'!I778=\"\",\"\",'1. Order'!I778)","v":""},{"$f":"IF('1. Order'!J778=\"\",\"\",'1. Order'!J778)","v":""},{"$f":"IF('1. Order'!K778=\"\",\"\",'1. Order'!K778)","v":""},{"$f":"IF('1. Order'!M778=\"\",\"\",'1. Order'!M778)","v":""},null,null,{"$f":"'1. Order'!AW778","v":0},{"$f":"IF('1. Order'!AE778=\"\",\"\",'1. Order'!AE778)","v":""}]
[{"$f":"IF('1. Order'!B779=\"\",\"\",'1. Order'!B779)","v":""},{"$f":"IF('1. Order'!I779=\"\",\"\",'1. Order'!I779)","v":""},{"$f":"IF('1. Order'!J779=\"\",\"\",'1. Order'!J779)","v":""},{"$f":"IF('1. Order'!K779=\"\",\"\",'1. Order'!K779)","v":""},{"$f":"IF('1. Order'!M779=\"\",\"\",'1. Order'!M779)","v":""},null,null,{"$f":"'1. Order'!AW779","v":0},{"$f":"IF('1. Order'!AE779=\"\",\"\",'1. Order'!AE779)","v":""}]
[{"$f":"IF('1. Order'!B780=\"\",\"\",'1. Order'!B780)","v":""},{"$f":"IF('1. Order'!I780=\"\",\"\",'1. Order'!I780)","v":""},{"$f":"IF('1. Order'!J780=\"\",\"\",'1. Order'!J780)","v":""},{"$f":"IF('1. Order'!K780=\"\",\"\",'1. Order'!K780)","v":""},{"$f":"IF('1. Order'!M780=\"\",\"\",'1. Order'!M780)","v":""},null,null,{"$f":"'1. Order'!AW780","v":0},{"$f":"IF('1. Order'!AE780=\"\",\"\",'1. Order'!AE780)","v":""}]
[{"$f":"IF('1. Order'!B781=\"\",\"\",'1. Order'!B781)","v":""},{"$f":"IF('1. Order'!I781=\"\",\"\",'1. Order'!I781)","v":""},{"$f":"IF('1. Order'!J781=\"\",\"\",'1. Order'!J781)","v":""},{"$f":"IF('1. Order'!K781=\"\",\"\",'1. Order'!K781)","v":""},{"$f":"IF('1. Order'!M781=\"\",\"\",'1. Order'!M781)","v":""},null,null,{"$f":"'1. Order'!AW781","v":0},{"$f":"IF('1. Order'!AE781=\"\",\"\",'1. Order'!AE781)","v":""}]
[{"$f":"IF('1. Order'!B782=\"\",\"\",'1. Order'!B782)","v":""},{"$f":"IF('1. Order'!I782=\"\",\"\",'1. Order'!I782)","v":""},{"$f":"IF('1. Order'!J782=\"\",\"\",'1. Order'!J782)","v":""},{"$f":"IF('1. Order'!K782=\"\",\"\",'1. Order'!K782)","v":""},{"$f":"IF('1. Order'!M782=\"\",\"\",'1. Order'!M782)","v":""},null,null,{"$f":"'1. Order'!AW782","v":0},{"$f":"IF('1. Order'!AE782=\"\",\"\",'1. Order'!AE782)","v":""}]
[{"$f":"IF('1. Order'!B783=\"\",\"\",'1. Order'!B783)","v":""},{"$f":"IF('1. Order'!I783=\"\",\"\",'1. Order'!I783)","v":""},{"$f":"IF('1. Order'!J783=\"\",\"\",'1. Order'!J783)","v":""},{"$f":"IF('1. Order'!K783=\"\",\"\",'1. Order'!K783)","v":""},{"$f":"IF('1. Order'!M783=\"\",\"\",'1. Order'!M783)","v":""},null,null,{"$f":"'1. Order'!AW783","v":0},{"$f":"IF('1. Order'!AE783=\"\",\"\",'1. Order'!AE783)","v":""}]
[{"$f":"IF('1. Order'!B784=\"\",\"\",'1. Order'!B784)","v":""},{"$f":"IF('1. Order'!I784=\"\",\"\",'1. Order'!I784)","v":""},{"$f":"IF('1. Order'!J784=\"\",\"\",'1. Order'!J784)","v":""},{"$f":"IF('1. Order'!K784=\"\",\"\",'1. Order'!K784)","v":""},{"$f":"IF('1. Order'!M784=\"\",\"\",'1. Order'!M784)","v":""},null,null,{"$f":"'1. Order'!AW784","v":0},{"$f":"IF('1. Order'!AE784=\"\",\"\",'1. Order'!AE784)","v":""}]
[{"$f":"IF('1. Order'!B785=\"\",\"\",'1. Order'!B785)","v":""},{"$f":"IF('1. Order'!I785=\"\",\"\",'1. Order'!I785)","v":""},{"$f":"IF('1. Order'!J785=\"\",\"\",'1. Order'!J785)","v":""},{"$f":"IF('1. Order'!K785=\"\",\"\",'1. Order'!K785)","v":""},{"$f":"IF('1. Order'!M785=\"\",\"\",'1. Order'!M785)","v":""},null,null,{"$f":"'1. Order'!AW785","v":0},{"$f":"IF('1. Order'!AE785=\"\",\"\",'1. Order'!AE785)","v":""}]
[{"$f":"IF('1. Order'!B786=\"\",\"\",'1. Order'!B786)","v":""},{"$f":"IF('1. Order'!I786=\"\",\"\",'1. Order'!I786)","v":""},{"$f":"IF('1. Order'!J786=\"\",\"\",'1. Order'!J786)","v":""},{"$f":"IF('1. Order'!K786=\"\",\"\",'1. Order'!K786)","v":""},{"$f":"IF('1. Order'!M786=\"\",\"\",'1. Order'!M786)","v":""},null,null,{"$f":"'1. Order'!AW786","v":0},{"$f":"IF('1. Order'!AE786=\"\",\"\",'1. Order'!AE786)","v":""}]
[{"$f":"IF('1. Order'!B787=\"\",\"\",'1. Order'!B787)","v":""},{"$f":"IF('1. Order'!I787=\"\",\"\",'1. Order'!I787)","v":""},{"$f":"IF('1. Order'!J787=\"\",\"\",'1. Order'!J787)","v":""},{"$f":"IF('1. Order'!K787=\"\",\"\",'1. Order'!K787)","v":""},{"$f":"IF('1. Order'!M787=\"\",\"\",'1. Order'!M787)","v":""},null,null,{"$f":"'1. Order'!AW787","v":0},{"$f":"IF('1. Order'!AE787=\"\",\"\",'1. Order'!AE787)","v":""}]
[{"$f":"IF('1. Order'!B788=\"\",\"\",'1. Order'!B788)","v":""},{"$f":"IF('1. Order'!I788=\"\",\"\",'1. Order'!I788)","v":""},{"$f":"IF('1. Order'!J788=\"\",\"\",'1. Order'!J788)","v":""},{"$f":"IF('1. Order'!K788=\"\",\"\",'1. Order'!K788)","v":""},{"$f":"IF('1. Order'!M788=\"\",\"\",'1. Order'!M788)","v":""},null,null,{"$f":"'1. Order'!AW788","v":0},{"$f":"IF('1. Order'!AE788=\"\",\"\",'1. Order'!AE788)","v":""}]
[{"$f":"IF('1. Order'!B789=\"\",\"\",'1. Order'!B789)","v":""},{"$f":"IF('1. Order'!I789=\"\",\"\",'1. Order'!I789)","v":""},{"$f":"IF('1. Order'!J789=\"\",\"\",'1. Order'!J789)","v":""},{"$f":"IF('1. Order'!K789=\"\",\"\",'1. Order'!K789)","v":""},{"$f":"IF('1. Order'!M789=\"\",\"\",'1. Order'!M789)","v":""},null,null,{"$f":"'1. Order'!AW789","v":0},{"$f":"IF('1. Order'!AE789=\"\",\"\",'1. Order'!AE789)","v":""}]
[{"$f":"IF('1. Order'!B790=\"\",\"\",'1. Order'!B790)","v":""},{"$f":"IF('1. Order'!I790=\"\",\"\",'1. Order'!I790)","v":""},{"$f":"IF('1. Order'!J790=\"\",\"\",'1. Order'!J790)","v":""},{"$f":"IF('1. Order'!K790=\"\",\"\",'1. Order'!K790)","v":""},{"$f":"IF('1. Order'!M790=\"\",\"\",'1. Order'!M790)","v":""},null,null,{"$f":"'1. Order'!AW790","v":0},{"$f":"IF('1. Order'!AE790=\"\",\"\",'1. Order'!AE790)","v":""}]
[{"$f":"IF('1. Order'!B791=\"\",\"\",'1. Order'!B791)","v":""},{"$f":"IF('1. Order'!I791=\"\",\"\",'1. Order'!I791)","v":""},{"$f":"IF('1. Order'!J791=\"\",\"\",'1. Order'!J791)","v":""},{"$f":"IF('1. Order'!K791=\"\",\"\",'1. Order'!K791)","v":""},{"$f":"IF('1. Order'!M791=\"\",\"\",'1. Order'!M791)","v":""},null,null,{"$f":"'1. Order'!AW791","v":0},{"$f":"IF('1. Order'!AE791=\"\",\"\",'1. Order'!AE791)","v":""}]
[{"$f":"IF('1. Order'!B792=\"\",\"\",'1. Order'!B792)","v":""},{"$f":"IF('1. Order'!I792=\"\",\"\",'1. Order'!I792)","v":""},{"$f":"IF('1. Order'!J792=\"\",\"\",'1. Order'!J792)","v":""},{"$f":"IF('1. Order'!K792=\"\",\"\",'1. Order'!K792)","v":""},{"$f":"IF('1. Order'!M792=\"\",\"\",'1. Order'!M792)","v":""},null,null,{"$f":"'1. Order'!AW792","v":0},{"$f":"IF('1. Order'!AE792=\"\",\"\",'1. Order'!AE792)","v":""}]
[{"$f":"IF('1. Order'!B793=\"\",\"\",'1. Order'!B793)","v":""},{"$f":"IF('1. Order'!I793=\"\",\"\",'1. Order'!I793)","v":""},{"$f":"IF('1. Order'!J793=\"\",\"\",'1. Order'!J793)","v":""},{"$f":"IF('1. Order'!K793=\"\",\"\",'1. Order'!K793)","v":""},{"$f":"IF('1. Order'!M793=\"\",\"\",'1. Order'!M793)","v":""},null,null,{"$f":"'1. Order'!AW793","v":0},{"$f":"IF('1. Order'!AE793=\"\",\"\",'1. Order'!AE793)","v":""}]
[{"$f":"IF('1. Order'!B794=\"\",\"\",'1. Order'!B794)","v":""},{"$f":"IF('1. Order'!I794=\"\",\"\",'1. Order'!I794)","v":""},{"$f":"IF('1. Order'!J794=\"\",\"\",'1. Order'!J794)","v":""},{"$f":"IF('1. Order'!K794=\"\",\"\",'1. Order'!K794)","v":""},{"$f":"IF('1. Order'!M794=\"\",\"\",'1. Order'!M794)","v":""},null,null,{"$f":"'1. Order'!AW794","v":0},{"$f":"IF('1. Order'!AE794=\"\",\"\",'1. Order'!AE794)","v":""}]
[{"$f":"IF('1. Order'!B795=\"\",\"\",'1. Order'!B795)","v":""},{"$f":"IF('1. Order'!I795=\"\",\"\",'1. Order'!I795)","v":""},{"$f":"IF('1. Order'!J795=\"\",\"\",'1. Order'!J795)","v":""},{"$f":"IF('1. Order'!K795=\"\",\"\",'1. Order'!K795)","v":""},{"$f":"IF('1. Order'!M795=\"\",\"\",'1. Order'!M795)","v":""},null,null,{"$f":"'1. Order'!AW795","v":0},{"$f":"IF('1. Order'!AE795=\"\",\"\",'1. Order'!AE795)","v":""}]
[{"$f":"IF('1. Order'!B796=\"\",\"\",'1. Order'!B796)","v":""},{"$f":"IF('1. Order'!I796=\"\",\"\",'1. Order'!I796)","v":""},{"$f":"IF('1. Order'!J796=\"\",\"\",'1. Order'!J796)","v":""},{"$f":"IF('1. Order'!K796=\"\",\"\",'1. Order'!K796)","v":""},{"$f":"IF('1. Order'!M796=\"\",\"\",'1. Order'!M796)","v":""},null,null,{"$f":"'1. Order'!AW796","v":0},{"$f":"IF('1. Order'!AE796=\"\",\"\",'1. Order'!AE796)","v":""}]
[{"$f":"IF('1. Order'!B797=\"\",\"\",'1. Order'!B797)","v":""},{"$f":"IF('1. Order'!I797=\"\",\"\",'1. Order'!I797)","v":""},{"$f":"IF('1. Order'!J797=\"\",\"\",'1. Order'!J797)","v":""},{"$f":"IF('1. Order'!K797=\"\",\"\",'1. Order'!K797)","v":""},{"$f":"IF('1. Order'!M797=\"\",\"\",'1. Order'!M797)","v":""},null,null,{"$f":"'1. Order'!AW797","v":0},{"$f":"IF('1. Order'!AE797=\"\",\"\",'1. Order'!AE797)","v":""}]
[{"$f":"IF('1. Order'!B798=\"\",\"\",'1. Order'!B798)","v":""},{"$f":"IF('1. Order'!I798=\"\",\"\",'1. Order'!I798)","v":""},{"$f":"IF('1. Order'!J798=\"\",\"\",'1. Order'!J798)","v":""},{"$f":"IF('1. Order'!K798=\"\",\"\",'1. Order'!K798)","v":""},{"$f":"IF('1. Order'!M798=\"\",\"\",'1. Order'!M798)","v":""},null,null,{"$f":"'1. Order'!AW798","v":0},{"$f":"IF('1. Order'!AE798=\"\",\"\",'1. Order'!AE798)","v":""}]
[{"$f":"IF('1. Order'!B799=\"\",\"\",'1. Order'!B799)","v":""},{"$f":"IF('1. Order'!I799=\"\",\"\",'1. Order'!I799)","v":""},{"$f":"IF('1. Order'!J799=\"\",\"\",'1. Order'!J799)","v":""},{"$f":"IF('1. Order'!K799=\"\",\"\",'1. Order'!K799)","v":""},{"$f":"IF('1. Order'!M799=\"\",\"\",'1. Order'!M799)","v":""},null,null,{"$f":"'1. Order'!AW799","v":0},{"$f":"IF('1. Order'!AE799=\"\",\"\",'1. Order'!AE799)","v":""}]
[{"$f":"IF('1. Order'!B800=\"\",\"\",'1. Order'!B800)","v":""},{"$f":"IF('1. Order'!I800=\"\",\"\",'1. Order'!I800)","v":""},{"$f":"IF('1. Order'!J800=\"\",\"\",'1. Order'!J800)","v":""},{"$f":"IF('1. Order'!K800=\"\",\"\",'1. Order'!K800)","v":""},{"$f":"IF('1. Order'!M800=\"\",\"\",'1. Order'!M800)","v":""},null,null,{"$f":"'1. Order'!AW800","v":0},{"$f":"IF('1. Order'!AE800=\"\",\"\",'1. Order'!AE800)","v":""}]
[{"$f":"IF('1. Order'!B801=\"\",\"\",'1. Order'!B801)","v":""},{"$f":"IF('1. Order'!I801=\"\",\"\",'1. Order'!I801)","v":""},{"$f":"IF('1. Order'!J801=\"\",\"\",'1. Order'!J801)","v":""},{"$f":"IF('1. Order'!K801=\"\",\"\",'1. Order'!K801)","v":""},{"$f":"IF('1. Order'!M801=\"\",\"\",'1. Order'!M801)","v":""},null,null,{"$f":"'1. Order'!AW801","v":0},{"$f":"IF('1. Order'!AE801=\"\",\"\",'1. Order'!AE801)","v":""}]
[{"$f":"IF('1. Order'!B802=\"\",\"\",'1. Order'!B802)","v":""},{"$f":"IF('1. Order'!I802=\"\",\"\",'1. Order'!I802)","v":""},{"$f":"IF('1. Order'!J802=\"\",\"\",'1. Order'!J802)","v":""},{"$f":"IF('1. Order'!K802=\"\",\"\",'1. Order'!K802)","v":""},{"$f":"IF('1. Order'!M802=\"\",\"\",'1. Order'!M802)","v":""},null,null,{"$f":"'1. Order'!AW802","v":0},{"$f":"IF('1. Order'!AE802=\"\",\"\",'1. Order'!AE802)","v":""}]
[{"$f":"IF('1. Order'!B803=\"\",\"\",'1. Order'!B803)","v":""},{"$f":"IF('1. Order'!I803=\"\",\"\",'1. Order'!I803)","v":""},{"$f":"IF('1. Order'!J803=\"\",\"\",'1. Order'!J803)","v":""},{"$f":"IF('1. Order'!K803=\"\",\"\",'1. Order'!K803)","v":""},{"$f":"IF('1. Order'!M803=\"\",\"\",'1. Order'!M803)","v":""},null,null,{"$f":"'1. Order'!AW803","v":0},{"$f":"IF('1. Order'!AE803=\"\",\"\",'1. Order'!AE803)","v":""}]
[{"$f":"IF('1. Order'!B804=\"\",\"\",'1. Order'!B804)","v":""},{"$f":"IF('1. Order'!I804=\"\",\"\",'1. Order'!I804)","v":""},{"$f":"IF('1. Order'!J804=\"\",\"\",'1. Order'!J804)","v":""},{"$f":"IF('1. Order'!K804=\"\",\"\",'1. Order'!K804)","v":""},{"$f":"IF('1. Order'!M804=\"\",\"\",'1. Order'!M804)","v":""},null,null,{"$f":"'1. Order'!AW804","v":0},{"$f":"IF('1. Order'!AE804=\"\",\"\",'1. Order'!AE804)","v":""}]
[{"$f":"IF('1. Order'!B805=\"\",\"\",'1. Order'!B805)","v":""},{"$f":"IF('1. Order'!I805=\"\",\"\",'1. Order'!I805)","v":""},{"$f":"IF('1. Order'!J805=\"\",\"\",'1. Order'!J805)","v":""},{"$f":"IF('1. Order'!K805=\"\",\"\",'1. Order'!K805)","v":""},{"$f":"IF('1. Order'!M805=\"\",\"\",'1. Order'!M805)","v":""},null,null,{"$f":"'1. Order'!AW805","v":0},{"$f":"IF('1. Order'!AE805=\"\",\"\",'1. Order'!AE805)","v":""}]
[{"$f":"IF('1. Order'!B806=\"\",\"\",'1. Order'!B806)","v":""},{"$f":"IF('1. Order'!I806=\"\",\"\",'1. Order'!I806)","v":""},{"$f":"IF('1. Order'!J806=\"\",\"\",'1. Order'!J806)","v":""},{"$f":"IF('1. Order'!K806=\"\",\"\",'1. Order'!K806)","v":""},{"$f":"IF('1. Order'!M806=\"\",\"\",'1. Order'!M806)","v":""},null,null,{"$f":"'1. Order'!AW806","v":0},{"$f":"IF('1. Order'!AE806=\"\",\"\",'1. Order'!AE806)","v":""}]
[{"$f":"IF('1. Order'!B807=\"\",\"\",'1. Order'!B807)","v":""},{"$f":"IF('1. Order'!I807=\"\",\"\",'1. Order'!I807)","v":""},{"$f":"IF('1. Order'!J807=\"\",\"\",'1. Order'!J807)","v":""},{"$f":"IF('1. Order'!K807=\"\",\"\",'1. Order'!K807)","v":""},{"$f":"IF('1. Order'!M807=\"\",\"\",'1. Order'!M807)","v":""},null,null,{"$f":"'1. Order'!AW807","v":0},{"$f":"IF('1. Order'!AE807=\"\",\"\",'1. Order'!AE807)","v":""}]
[{"$f":"IF('1. Order'!B808=\"\",\"\",'1. Order'!B808)","v":""},{"$f":"IF('1. Order'!I808=\"\",\"\",'1. Order'!I808)","v":""},{"$f":"IF('1. Order'!J808=\"\",\"\",'1. Order'!J808)","v":""},{"$f":"IF('1. Order'!K808=\"\",\"\",'1. Order'!K808)","v":""},{"$f":"IF('1. Order'!M808=\"\",\"\",'1. Order'!M808)","v":""},null,null,{"$f":"'1. Order'!AW808","v":0},{"$f":"IF('1. Order'!AE808=\"\",\"\",'1. Order'!AE808)","v":""}]
[{"$f":"IF('1. Order'!B809=\"\",\"\",'1. Order'!B809)","v":""},{"$f":"IF('1. Order'!I809=\"\",\"\",'1. Order'!I809)","v":""},{"$f":"IF('1. Order'!J809=\"\",\"\",'1. Order'!J809)","v":""},{"$f":"IF('1. Order'!K809=\"\",\"\",'1. Order'!K809)","v":""},{"$f":"IF('1. Order'!M809=\"\",\"\",'1. Order'!M809)","v":""},null,null,{"$f":"'1. Order'!AW809","v":0},{"$f":"IF('1. Order'!AE809=\"\",\"\",'1. Order'!AE809)","v":""}]
[{"$f":"IF('1. Order'!B810=\"\",\"\",'1. Order'!B810)","v":""},{"$f":"IF('1. Order'!I810=\"\",\"\",'1. Order'!I810)","v":""},{"$f":"IF('1. Order'!J810=\"\",\"\",'1. Order'!J810)","v":""},{"$f":"IF('1. Order'!K810=\"\",\"\",'1. Order'!K810)","v":""},{"$f":"IF('1. Order'!M810=\"\",\"\",'1. Order'!M810)","v":""},null,null,{"$f":"'1. Order'!AW810","v":0},{"$f":"IF('1. Order'!AE810=\"\",\"\",'1. Order'!AE810)","v":""}]
[{"$f":"IF('1. Order'!B811=\"\",\"\",'1. Order'!B811)","v":""},{"$f":"IF('1. Order'!I811=\"\",\"\",'1. Order'!I811)","v":""},{"$f":"IF('1. Order'!J811=\"\",\"\",'1. Order'!J811)","v":""},{"$f":"IF('1. Order'!K811=\"\",\"\",'1. Order'!K811)","v":""},{"$f":"IF('1. Order'!M811=\"\",\"\",'1. Order'!M811)","v":""},null,null,{"$f":"'1. Order'!AW811","v":0},{"$f":"IF('1. Order'!AE811=\"\",\"\",'1. Order'!AE811)","v":""}]
[{"$f":"IF('1. Order'!B812=\"\",\"\",'1. Order'!B812)","v":""},{"$f":"IF('1. Order'!I812=\"\",\"\",'1. Order'!I812)","v":""},{"$f":"IF('1. Order'!J812=\"\",\"\",'1. Order'!J812)","v":""},{"$f":"IF('1. Order'!K812=\"\",\"\",'1. Order'!K812)","v":""},{"$f":"IF('1. Order'!M812=\"\",\"\",'1. Order'!M812)","v":""},null,null,{"$f":"'1. Order'!AW812","v":0},{"$f":"IF('1. Order'!AE812=\"\",\"\",'1. Order'!AE812)","v":""}]
[{"$f":"IF('1. Order'!B813=\"\",\"\",'1. Order'!B813)","v":""},{"$f":"IF('1. Order'!I813=\"\",\"\",'1. Order'!I813)","v":""},{"$f":"IF('1. Order'!J813=\"\",\"\",'1. Order'!J813)","v":""},{"$f":"IF('1. Order'!K813=\"\",\"\",'1. Order'!K813)","v":""},{"$f":"IF('1. Order'!M813=\"\",\"\",'1. Order'!M813)","v":""},null,null,{"$f":"'1. Order'!AW813","v":0},{"$f":"IF('1. Order'!AE813=\"\",\"\",'1. Order'!AE813)","v":""}]
[{"$f":"IF('1. Order'!B814=\"\",\"\",'1. Order'!B814)","v":""},{"$f":"IF('1. Order'!I814=\"\",\"\",'1. Order'!I814)","v":""},{"$f":"IF('1. Order'!J814=\"\",\"\",'1. Order'!J814)","v":""},{"$f":"IF('1. Order'!K814=\"\",\"\",'1. Order'!K814)","v":""},{"$f":"IF('1. Order'!M814=\"\",\"\",'1. Order'!M814)","v":""},null,null,{"$f":"'1. Order'!AW814","v":0},{"$f":"IF('1. Order'!AE814=\"\",\"\",'1. Order'!AE814)","v":""}]
[{"$f":"IF('1. Order'!B815=\"\",\"\",'1. Order'!B815)","v":""},{"$f":"IF('1. Order'!I815=\"\",\"\",'1. Order'!I815)","v":""},{"$f":"IF('1. Order'!J815=\"\",\"\",'1. Order'!J815)","v":""},{"$f":"IF('1. Order'!K815=\"\",\"\",'1. Order'!K815)","v":""},{"$f":"IF('1. Order'!M815=\"\",\"\",'1. Order'!M815)","v":""},null,null,{"$f":"'1. Order'!AW815","v":0},{"$f":"IF('1. Order'!AE815=\"\",\"\",'1. Order'!AE815)","v":""}]
[{"$f":"IF('1. Order'!B816=\"\",\"\",'1. Order'!B816)","v":""},{"$f":"IF('1. Order'!I816=\"\",\"\",'1. Order'!I816)","v":""},{"$f":"IF('1. Order'!J816=\"\",\"\",'1. Order'!J816)","v":""},{"$f":"IF('1. Order'!K816=\"\",\"\",'1. Order'!K816)","v":""},{"$f":"IF('1. Order'!M816=\"\",\"\",'1. Order'!M816)","v":""},null,null,{"$f":"'1. Order'!AW816","v":0},{"$f":"IF('1. Order'!AE816=\"\",\"\",'1. Order'!AE816)","v":""}]
[{"$f":"IF('1. Order'!B817=\"\",\"\",'1. Order'!B817)","v":""},{"$f":"IF('1. Order'!I817=\"\",\"\",'1. Order'!I817)","v":""},{"$f":"IF('1. Order'!J817=\"\",\"\",'1. Order'!J817)","v":""},{"$f":"IF('1. Order'!K817=\"\",\"\",'1. Order'!K817)","v":""},{"$f":"IF('1. Order'!M817=\"\",\"\",'1. Order'!M817)","v":""},null,null,{"$f":"'1. Order'!AW817","v":0},{"$f":"IF('1. Order'!AE817=\"\",\"\",'1. Order'!AE817)","v":""}]
[{"$f":"IF('1. Order'!B818=\"\",\"\",'1. Order'!B818)","v":""},{"$f":"IF('1. Order'!I818=\"\",\"\",'1. Order'!I818)","v":""},{"$f":"IF('1. Order'!J818=\"\",\"\",'1. Order'!J818)","v":""},{"$f":"IF('1. Order'!K818=\"\",\"\",'1. Order'!K818)","v":""},{"$f":"IF('1. Order'!M818=\"\",\"\",'1. Order'!M818)","v":""},null,null,{"$f":"'1. Order'!AW818","v":0},{"$f":"IF('1. Order'!AE818=\"\",\"\",'1. Order'!AE818)","v":""}]
[{"$f":"IF('1. Order'!B819=\"\",\"\",'1. Order'!B819)","v":""},{"$f":"IF('1. Order'!I819=\"\",\"\",'1. Order'!I819)","v":""},{"$f":"IF('1. Order'!J819=\"\",\"\",'1. Order'!J819)","v":""},{"$f":"IF('1. Order'!K819=\"\",\"\",'1. Order'!K819)","v":""},{"$f":"IF('1. Order'!M819=\"\",\"\",'1. Order'!M819)","v":""},null,null,{"$f":"'1. Order'!AW819","v":0},{"$f":"IF('1. Order'!AE819=\"\",\"\",'1. Order'!AE819)","v":""}]
[{"$f":"IF('1. Order'!B820=\"\",\"\",'1. Order'!B820)","v":""},{"$f":"IF('1. Order'!I820=\"\",\"\",'1. Order'!I820)","v":""},{"$f":"IF('1. Order'!J820=\"\",\"\",'1. Order'!J820)","v":""},{"$f":"IF('1. Order'!K820=\"\",\"\",'1. Order'!K820)","v":""},{"$f":"IF('1. Order'!M820=\"\",\"\",'1. Order'!M820)","v":""},null,null,{"$f":"'1. Order'!AW820","v":0},{"$f":"IF('1. Order'!AE820=\"\",\"\",'1. Order'!AE820)","v":""}]
[{"$f":"IF('1. Order'!B821=\"\",\"\",'1. Order'!B821)","v":""},{"$f":"IF('1. Order'!I821=\"\",\"\",'1. Order'!I821)","v":""},{"$f":"IF('1. Order'!J821=\"\",\"\",'1. Order'!J821)","v":""},{"$f":"IF('1. Order'!K821=\"\",\"\",'1. Order'!K821)","v":""},{"$f":"IF('1. Order'!M821=\"\",\"\",'1. Order'!M821)","v":""},null,null,{"$f":"'1. Order'!AW821","v":0},{"$f":"IF('1. Order'!AE821=\"\",\"\",'1. Order'!AE821)","v":""}]
[{"$f":"IF('1. Order'!B822=\"\",\"\",'1. Order'!B822)","v":""},{"$f":"IF('1. Order'!I822=\"\",\"\",'1. Order'!I822)","v":""},{"$f":"IF('1. Order'!J822=\"\",\"\",'1. Order'!J822)","v":""},{"$f":"IF('1. Order'!K822=\"\",\"\",'1. Order'!K822)","v":""},{"$f":"IF('1. Order'!M822=\"\",\"\",'1. Order'!M822)","v":""},null,null,{"$f":"'1. Order'!AW822","v":0},{"$f":"IF('1. Order'!AE822=\"\",\"\",'1. Order'!AE822)","v":""}]
[{"$f":"IF('1. Order'!B823=\"\",\"\",'1. Order'!B823)","v":""},{"$f":"IF('1. Order'!I823=\"\",\"\",'1. Order'!I823)","v":""},{"$f":"IF('1. Order'!J823=\"\",\"\",'1. Order'!J823)","v":""},{"$f":"IF('1. Order'!K823=\"\",\"\",'1. Order'!K823)","v":""},{"$f":"IF('1. Order'!M823=\"\",\"\",'1. Order'!M823)","v":""},null,null,{"$f":"'1. Order'!AW823","v":0},{"$f":"IF('1. Order'!AE823=\"\",\"\",'1. Order'!AE823)","v":""}]
[{"$f":"IF('1. Order'!B824=\"\",\"\",'1. Order'!B824)","v":""},{"$f":"IF('1. Order'!I824=\"\",\"\",'1. Order'!I824)","v":""},{"$f":"IF('1. Order'!J824=\"\",\"\",'1. Order'!J824)","v":""},{"$f":"IF('1. Order'!K824=\"\",\"\",'1. Order'!K824)","v":""},{"$f":"IF('1. Order'!M824=\"\",\"\",'1. Order'!M824)","v":""},null,null,{"$f":"'1. Order'!AW824","v":0},{"$f":"IF('1. Order'!AE824=\"\",\"\",'1. Order'!AE824)","v":""}]
[{"$f":"IF('1. Order'!B825=\"\",\"\",'1. Order'!B825)","v":""},{"$f":"IF('1. Order'!I825=\"\",\"\",'1. Order'!I825)","v":""},{"$f":"IF('1. Order'!J825=\"\",\"\",'1. Order'!J825)","v":""},{"$f":"IF('1. Order'!K825=\"\",\"\",'1. Order'!K825)","v":""},{"$f":"IF('1. Order'!M825=\"\",\"\",'1. Order'!M825)","v":""},null,null,{"$f":"'1. Order'!AW825","v":0},{"$f":"IF('1. Order'!AE825=\"\",\"\",'1. Order'!AE825)","v":""}]
[{"$f":"IF('1. Order'!B826=\"\",\"\",'1. Order'!B826)","v":""},{"$f":"IF('1. Order'!I826=\"\",\"\",'1. Order'!I826)","v":""},{"$f":"IF('1. Order'!J826=\"\",\"\",'1. Order'!J826)","v":""},{"$f":"IF('1. Order'!K826=\"\",\"\",'1. Order'!K826)","v":""},{"$f":"IF('1. Order'!M826=\"\",\"\",'1. Order'!M826)","v":""},null,null,{"$f":"'1. Order'!AW826","v":0},{"$f":"IF('1. Order'!AE826=\"\",\"\",'1. Order'!AE826)","v":""}]
[{"$f":"IF('1. Order'!B827=\"\",\"\",'1. Order'!B827)","v":""},{"$f":"IF('1. Order'!I827=\"\",\"\",'1. Order'!I827)","v":""},{"$f":"IF('1. Order'!J827=\"\",\"\",'1. Order'!J827)","v":""},{"$f":"IF('1. Order'!K827=\"\",\"\",'1. Order'!K827)","v":""},{"$f":"IF('1. Order'!M827=\"\",\"\",'1. Order'!M827)","v":""},null,null,{"$f":"'1. Order'!AW827","v":0},{"$f":"IF('1. Order'!AE827=\"\",\"\",'1. Order'!AE827)","v":""}]
[{"$f":"IF('1. Order'!B828=\"\",\"\",'1. Order'!B828)","v":""},{"$f":"IF('1. Order'!I828=\"\",\"\",'1. Order'!I828)","v":""},{"$f":"IF('1. Order'!J828=\"\",\"\",'1. Order'!J828)","v":""},{"$f":"IF('1. Order'!K828=\"\",\"\",'1. Order'!K828)","v":""},{"$f":"IF('1. Order'!M828=\"\",\"\",'1. Order'!M828)","v":""},null,null,{"$f":"'1. Order'!AW828","v":0},{"$f":"IF('1. Order'!AE828=\"\",\"\",'1. Order'!AE828)","v":""}]
[{"$f":"IF('1. Order'!B829=\"\",\"\",'1. Order'!B829)","v":""},{"$f":"IF('1. Order'!I829=\"\",\"\",'1. Order'!I829)","v":""},{"$f":"IF('1. Order'!J829=\"\",\"\",'1. Order'!J829)","v":""},{"$f":"IF('1. Order'!K829=\"\",\"\",'1. Order'!K829)","v":""},{"$f":"IF('1. Order'!M829=\"\",\"\",'1. Order'!M829)","v":""},null,null,{"$f":"'1. Order'!AW829","v":0},{"$f":"IF('1. Order'!AE829=\"\",\"\",'1. Order'!AE829)","v":""}]
[{"$f":"IF('1. Order'!B830=\"\",\"\",'1. Order'!B830)","v":""},{"$f":"IF('1. Order'!I830=\"\",\"\",'1. Order'!I830)","v":""},{"$f":"IF('1. Order'!J830=\"\",\"\",'1. Order'!J830)","v":""},{"$f":"IF('1. Order'!K830=\"\",\"\",'1. Order'!K830)","v":""},{"$f":"IF('1. Order'!M830=\"\",\"\",'1. Order'!M830)","v":""},null,null,{"$f":"'1. Order'!AW830","v":0},{"$f":"IF('1. Order'!AE830=\"\",\"\",'1. Order'!AE830)","v":""}]
[{"$f":"IF('1. Order'!B831=\"\",\"\",'1. Order'!B831)","v":""},{"$f":"IF('1. Order'!I831=\"\",\"\",'1. Order'!I831)","v":""},{"$f":"IF('1. Order'!J831=\"\",\"\",'1. Order'!J831)","v":""},{"$f":"IF('1. Order'!K831=\"\",\"\",'1. Order'!K831)","v":""},{"$f":"IF('1. Order'!M831=\"\",\"\",'1. Order'!M831)","v":""},null,null,{"$f":"'1. Order'!AW831","v":0},{"$f":"IF('1. Order'!AE831=\"\",\"\",'1. Order'!AE831)","v":""}]
[{"$f":"IF('1. Order'!B832=\"\",\"\",'1. Order'!B832)","v":""},{"$f":"IF('1. Order'!I832=\"\",\"\",'1. Order'!I832)","v":""},{"$f":"IF('1. Order'!J832=\"\",\"\",'1. Order'!J832)","v":""},{"$f":"IF('1. Order'!K832=\"\",\"\",'1. Order'!K832)","v":""},{"$f":"IF('1. Order'!M832=\"\",\"\",'1. Order'!M832)","v":""},null,null,{"$f":"'1. Order'!AW832","v":0},{"$f":"IF('1. Order'!AE832=\"\",\"\",'1. Order'!AE832)","v":""}]
[{"$f":"IF('1. Order'!B833=\"\",\"\",'1. Order'!B833)","v":""},{"$f":"IF('1. Order'!I833=\"\",\"\",'1. Order'!I833)","v":""},{"$f":"IF('1. Order'!J833=\"\",\"\",'1. Order'!J833)","v":""},{"$f":"IF('1. Order'!K833=\"\",\"\",'1. Order'!K833)","v":""},{"$f":"IF('1. Order'!M833=\"\",\"\",'1. Order'!M833)","v":""},null,null,{"$f":"'1. Order'!AW833","v":0},{"$f":"IF('1. Order'!AE833=\"\",\"\",'1. Order'!AE833)","v":""}]
[{"$f":"IF('1. Order'!B834=\"\",\"\",'1. Order'!B834)","v":""},{"$f":"IF('1. Order'!I834=\"\",\"\",'1. Order'!I834)","v":""},{"$f":"IF('1. Order'!J834=\"\",\"\",'1. Order'!J834)","v":""},{"$f":"IF('1. Order'!K834=\"\",\"\",'1. Order'!K834)","v":""},{"$f":"IF('1. Order'!M834=\"\",\"\",'1. Order'!M834)","v":""},null,null,{"$f":"'1. Order'!AW834","v":0},{"$f":"IF('1. Order'!AE834=\"\",\"\",'1. Order'!AE834)","v":""}]
[{"$f":"IF('1. Order'!B835=\"\",\"\",'1. Order'!B835)","v":""},{"$f":"IF('1. Order'!I835=\"\",\"\",'1. Order'!I835)","v":""},{"$f":"IF('1. Order'!J835=\"\",\"\",'1. Order'!J835)","v":""},{"$f":"IF('1. Order'!K835=\"\",\"\",'1. Order'!K835)","v":""},{"$f":"IF('1. Order'!M835=\"\",\"\",'1. Order'!M835)","v":""},null,null,{"$f":"'1. Order'!AW835","v":0},{"$f":"IF('1. Order'!AE835=\"\",\"\",'1. Order'!AE835)","v":""}]
[{"$f":"IF('1. Order'!B836=\"\",\"\",'1. Order'!B836)","v":""},{"$f":"IF('1. Order'!I836=\"\",\"\",'1. Order'!I836)","v":""},{"$f":"IF('1. Order'!J836=\"\",\"\",'1. Order'!J836)","v":""},{"$f":"IF('1. Order'!K836=\"\",\"\",'1. Order'!K836)","v":""},{"$f":"IF('1. Order'!M836=\"\",\"\",'1. Order'!M836)","v":""},null,null,{"$f":"'1. Order'!AW836","v":0},{"$f":"IF('1. Order'!AE836=\"\",\"\",'1. Order'!AE836)","v":""}]
[{"$f":"IF('1. Order'!B837=\"\",\"\",'1. Order'!B837)","v":""},{"$f":"IF('1. Order'!I837=\"\",\"\",'1. Order'!I837)","v":""},{"$f":"IF('1. Order'!J837=\"\",\"\",'1. Order'!J837)","v":""},{"$f":"IF('1. Order'!K837=\"\",\"\",'1. Order'!K837)","v":""},{"$f":"IF('1. Order'!M837=\"\",\"\",'1. Order'!M837)","v":""},null,null,{"$f":"'1. Order'!AW837","v":0},{"$f":"IF('1. Order'!AE837=\"\",\"\",'1. Order'!AE837)","v":""}]
[{"$f":"IF('1. Order'!B838=\"\",\"\",'1. Order'!B838)","v":""},{"$f":"IF('1. Order'!I838=\"\",\"\",'1. Order'!I838)","v":""},{"$f":"IF('1. Order'!J838=\"\",\"\",'1. Order'!J838)","v":""},{"$f":"IF('1. Order'!K838=\"\",\"\",'1. Order'!K838)","v":""},{"$f":"IF('1. Order'!M838=\"\",\"\",'1. Order'!M838)","v":""},null,null,{"$f":"'1. Order'!AW838","v":0},{"$f":"IF('1. Order'!AE838=\"\",\"\",'1. Order'!AE838)","v":""}]
[{"$f":"IF('1. Order'!B839=\"\",\"\",'1. Order'!B839)","v":""},{"$f":"IF('1. Order'!I839=\"\",\"\",'1. Order'!I839)","v":""},{"$f":"IF('1. Order'!J839=\"\",\"\",'1. Order'!J839)","v":""},{"$f":"IF('1. Order'!K839=\"\",\"\",'1. Order'!K839)","v":""},{"$f":"IF('1. Order'!M839=\"\",\"\",'1. Order'!M839)","v":""},null,null,{"$f":"'1. Order'!AW839","v":0},{"$f":"IF('1. Order'!AE839=\"\",\"\",'1. Order'!AE839)","v":""}]
[{"$f":"IF('1. Order'!B840=\"\",\"\",'1. Order'!B840)","v":""},{"$f":"IF('1. Order'!I840=\"\",\"\",'1. Order'!I840)","v":""},{"$f":"IF('1. Order'!J840=\"\",\"\",'1. Order'!J840)","v":""},{"$f":"IF('1. Order'!K840=\"\",\"\",'1. Order'!K840)","v":""},{"$f":"IF('1. Order'!M840=\"\",\"\",'1. Order'!M840)","v":""},null,null,{"$f":"'1. Order'!AW840","v":0},{"$f":"IF('1. Order'!AE840=\"\",\"\",'1. Order'!AE840)","v":""}]
[{"$f":"IF('1. Order'!B841=\"\",\"\",'1. Order'!B841)","v":""},{"$f":"IF('1. Order'!I841=\"\",\"\",'1. Order'!I841)","v":""},{"$f":"IF('1. Order'!J841=\"\",\"\",'1. Order'!J841)","v":""},{"$f":"IF('1. Order'!K841=\"\",\"\",'1. Order'!K841)","v":""},{"$f":"IF('1. Order'!M841=\"\",\"\",'1. Order'!M841)","v":""},null,null,{"$f":"'1. Order'!AW841","v":0},{"$f":"IF('1. Order'!AE841=\"\",\"\",'1. Order'!AE841)","v":""}]
[{"$f":"IF('1. Order'!B842=\"\",\"\",'1. Order'!B842)","v":""},{"$f":"IF('1. Order'!I842=\"\",\"\",'1. Order'!I842)","v":""},{"$f":"IF('1. Order'!J842=\"\",\"\",'1. Order'!J842)","v":""},{"$f":"IF('1. Order'!K842=\"\",\"\",'1. Order'!K842)","v":""},{"$f":"IF('1. Order'!M842=\"\",\"\",'1. Order'!M842)","v":""},null,null,{"$f":"'1. Order'!AW842","v":0},{"$f":"IF('1. Order'!AE842=\"\",\"\",'1. Order'!AE842)","v":""}]
[{"$f":"IF('1. Order'!B843=\"\",\"\",'1. Order'!B843)","v":""},{"$f":"IF('1. Order'!I843=\"\",\"\",'1. Order'!I843)","v":""},{"$f":"IF('1. Order'!J843=\"\",\"\",'1. Order'!J843)","v":""},{"$f":"IF('1. Order'!K843=\"\",\"\",'1. Order'!K843)","v":""},{"$f":"IF('1. Order'!M843=\"\",\"\",'1. Order'!M843)","v":""},null,null,{"$f":"'1. Order'!AW843","v":0},{"$f":"IF('1. Order'!AE843=\"\",\"\",'1. Order'!AE843)","v":""}]
[{"$f":"IF('1. Order'!B844=\"\",\"\",'1. Order'!B844)","v":""},{"$f":"IF('1. Order'!I844=\"\",\"\",'1. Order'!I844)","v":""},{"$f":"IF('1. Order'!J844=\"\",\"\",'1. Order'!J844)","v":""},{"$f":"IF('1. Order'!K844=\"\",\"\",'1. Order'!K844)","v":""},{"$f":"IF('1. Order'!M844=\"\",\"\",'1. Order'!M844)","v":""},null,null,{"$f":"'1. Order'!AW844","v":0},{"$f":"IF('1. Order'!AE844=\"\",\"\",'1. Order'!AE844)","v":""}]
[{"$f":"IF('1. Order'!B845=\"\",\"\",'1. Order'!B845)","v":""},{"$f":"IF('1. Order'!I845=\"\",\"\",'1. Order'!I845)","v":""},{"$f":"IF('1. Order'!J845=\"\",\"\",'1. Order'!J845)","v":""},{"$f":"IF('1. Order'!K845=\"\",\"\",'1. Order'!K845)","v":""},{"$f":"IF('1. Order'!M845=\"\",\"\",'1. Order'!M845)","v":""},null,null,{"$f":"'1. Order'!AW845","v":0},{"$f":"IF('1. Order'!AE845=\"\",\"\",'1. Order'!AE845)","v":""}]
[{"$f":"IF('1. Order'!B846=\"\",\"\",'1. Order'!B846)","v":""},{"$f":"IF('1. Order'!I846=\"\",\"\",'1. Order'!I846)","v":""},{"$f":"IF('1. Order'!J846=\"\",\"\",'1. Order'!J846)","v":""},{"$f":"IF('1. Order'!K846=\"\",\"\",'1. Order'!K846)","v":""},{"$f":"IF('1. Order'!M846=\"\",\"\",'1. Order'!M846)","v":""},null,null,{"$f":"'1. Order'!AW846","v":0},{"$f":"IF('1. Order'!AE846=\"\",\"\",'1. Order'!AE846)","v":""}]
[{"$f":"IF('1. Order'!B847=\"\",\"\",'1. Order'!B847)","v":""},{"$f":"IF('1. Order'!I847=\"\",\"\",'1. Order'!I847)","v":""},{"$f":"IF('1. Order'!J847=\"\",\"\",'1. Order'!J847)","v":""},{"$f":"IF('1. Order'!K847=\"\",\"\",'1. Order'!K847)","v":""},{"$f":"IF('1. Order'!M847=\"\",\"\",'1. Order'!M847)","v":""},null,null,{"$f":"'1. Order'!AW847","v":0},{"$f":"IF('1. Order'!AE847=\"\",\"\",'1. Order'!AE847)","v":""}]
[{"$f":"IF('1. Order'!B848=\"\",\"\",'1. Order'!B848)","v":""},{"$f":"IF('1. Order'!I848=\"\",\"\",'1. Order'!I848)","v":""},{"$f":"IF('1. Order'!J848=\"\",\"\",'1. Order'!J848)","v":""},{"$f":"IF('1. Order'!K848=\"\",\"\",'1. Order'!K848)","v":""},{"$f":"IF('1. Order'!M848=\"\",\"\",'1. Order'!M848)","v":""},null,null,{"$f":"'1. Order'!AW848","v":0},{"$f":"IF('1. Order'!AE848=\"\",\"\",'1. Order'!AE848)","v":""}]
[{"$f":"IF('1. Order'!B849=\"\",\"\",'1. Order'!B849)","v":""},{"$f":"IF('1. Order'!I849=\"\",\"\",'1. Order'!I849)","v":""},{"$f":"IF('1. Order'!J849=\"\",\"\",'1. Order'!J849)","v":""},{"$f":"IF('1. Order'!K849=\"\",\"\",'1. Order'!K849)","v":""},{"$f":"IF('1. Order'!M849=\"\",\"\",'1. Order'!M849)","v":""},null,null,{"$f":"'1. Order'!AW849","v":0},{"$f":"IF('1. Order'!AE849=\"\",\"\",'1. Order'!AE849)","v":""}]
[{"$f":"IF('1. Order'!B850=\"\",\"\",'1. Order'!B850)","v":""},{"$f":"IF('1. Order'!I850=\"\",\"\",'1. Order'!I850)","v":""},{"$f":"IF('1. Order'!J850=\"\",\"\",'1. Order'!J850)","v":""},{"$f":"IF('1. Order'!K850=\"\",\"\",'1. Order'!K850)","v":""},{"$f":"IF('1. Order'!M850=\"\",\"\",'1. Order'!M850)","v":""},null,null,{"$f":"'1. Order'!AW850","v":0},{"$f":"IF('1. Order'!AE850=\"\",\"\",'1. Order'!AE850)","v":""}]
[{"$f":"IF('1. Order'!B851=\"\",\"\",'1. Order'!B851)","v":""},{"$f":"IF('1. Order'!I851=\"\",\"\",'1. Order'!I851)","v":""},{"$f":"IF('1. Order'!J851=\"\",\"\",'1. Order'!J851)","v":""},{"$f":"IF('1. Order'!K851=\"\",\"\",'1. Order'!K851)","v":""},{"$f":"IF('1. Order'!M851=\"\",\"\",'1. Order'!M851)","v":""},null,null,{"$f":"'1. Order'!AW851","v":0},{"$f":"IF('1. Order'!AE851=\"\",\"\",'1. Order'!AE851)","v":""}]
[{"$f":"IF('1. Order'!B852=\"\",\"\",'1. Order'!B852)","v":""},{"$f":"IF('1. Order'!I852=\"\",\"\",'1. Order'!I852)","v":""},{"$f":"IF('1. Order'!J852=\"\",\"\",'1. Order'!J852)","v":""},{"$f":"IF('1. Order'!K852=\"\",\"\",'1. Order'!K852)","v":""},{"$f":"IF('1. Order'!M852=\"\",\"\",'1. Order'!M852)","v":""},null,null,{"$f":"'1. Order'!AW852","v":0},{"$f":"IF('1. Order'!AE852=\"\",\"\",'1. Order'!AE852)","v":""}]
[{"$f":"IF('1. Order'!B853=\"\",\"\",'1. Order'!B853)","v":""},{"$f":"IF('1. Order'!I853=\"\",\"\",'1. Order'!I853)","v":""},{"$f":"IF('1. Order'!J853=\"\",\"\",'1. Order'!J853)","v":""},{"$f":"IF('1. Order'!K853=\"\",\"\",'1. Order'!K853)","v":""},{"$f":"IF('1. Order'!M853=\"\",\"\",'1. Order'!M853)","v":""},null,null,{"$f":"'1. Order'!AW853","v":0},{"$f":"IF('1. Order'!AE853=\"\",\"\",'1. Order'!AE853)","v":""}]
[{"$f":"IF('1. Order'!B854=\"\",\"\",'1. Order'!B854)","v":""},{"$f":"IF('1. Order'!I854=\"\",\"\",'1. Order'!I854)","v":""},{"$f":"IF('1. Order'!J854=\"\",\"\",'1. Order'!J854)","v":""},{"$f":"IF('1. Order'!K854=\"\",\"\",'1. Order'!K854)","v":""},{"$f":"IF('1. Order'!M854=\"\",\"\",'1. Order'!M854)","v":""},null,null,{"$f":"'1. Order'!AW854","v":0},{"$f":"IF('1. Order'!AE854=\"\",\"\",'1. Order'!AE854)","v":""}]
[{"$f":"IF('1. Order'!B855=\"\",\"\",'1. Order'!B855)","v":""},{"$f":"IF('1. Order'!I855=\"\",\"\",'1. Order'!I855)","v":""},{"$f":"IF('1. Order'!J855=\"\",\"\",'1. Order'!J855)","v":""},{"$f":"IF('1. Order'!K855=\"\",\"\",'1. Order'!K855)","v":""},{"$f":"IF('1. Order'!M855=\"\",\"\",'1. Order'!M855)","v":""},null,null,{"$f":"'1. Order'!AW855","v":0},{"$f":"IF('1. Order'!AE855=\"\",\"\",'1. Order'!AE855)","v":""}]
[{"$f":"IF('1. Order'!B856=\"\",\"\",'1. Order'!B856)","v":""},{"$f":"IF('1. Order'!I856=\"\",\"\",'1. Order'!I856)","v":""},{"$f":"IF('1. Order'!J856=\"\",\"\",'1. Order'!J856)","v":""},{"$f":"IF('1. Order'!K856=\"\",\"\",'1. Order'!K856)","v":""},{"$f":"IF('1. Order'!M856=\"\",\"\",'1. Order'!M856)","v":""},null,null,{"$f":"'1. Order'!AW856","v":0},{"$f":"IF('1. Order'!AE856=\"\",\"\",'1. Order'!AE856)","v":""}]
[{"$f":"IF('1. Order'!B857=\"\",\"\",'1. Order'!B857)","v":""},{"$f":"IF('1. Order'!I857=\"\",\"\",'1. Order'!I857)","v":""},{"$f":"IF('1. Order'!J857=\"\",\"\",'1. Order'!J857)","v":""},{"$f":"IF('1. Order'!K857=\"\",\"\",'1. Order'!K857)","v":""},{"$f":"IF('1. Order'!M857=\"\",\"\",'1. Order'!M857)","v":""},null,null,{"$f":"'1. Order'!AW857","v":0},{"$f":"IF('1. Order'!AE857=\"\",\"\",'1. Order'!AE857)","v":""}]
[{"$f":"IF('1. Order'!B858=\"\",\"\",'1. Order'!B858)","v":""},{"$f":"IF('1. Order'!I858=\"\",\"\",'1. Order'!I858)","v":""},{"$f":"IF('1. Order'!J858=\"\",\"\",'1. Order'!J858)","v":""},{"$f":"IF('1. Order'!K858=\"\",\"\",'1. Order'!K858)","v":""},{"$f":"IF('1. Order'!M858=\"\",\"\",'1. Order'!M858)","v":""},null,null,{"$f":"'1. Order'!AW858","v":0},{"$f":"IF('1. Order'!AE858=\"\",\"\",'1. Order'!AE858)","v":""}]
[{"$f":"IF('1. Order'!B859=\"\",\"\",'1. Order'!B859)","v":""},{"$f":"IF('1. Order'!I859=\"\",\"\",'1. Order'!I859)","v":""},{"$f":"IF('1. Order'!J859=\"\",\"\",'1. Order'!J859)","v":""},{"$f":"IF('1. Order'!K859=\"\",\"\",'1. Order'!K859)","v":""},{"$f":"IF('1. Order'!M859=\"\",\"\",'1. Order'!M859)","v":""},null,null,{"$f":"'1. Order'!AW859","v":0},{"$f":"IF('1. Order'!AE859=\"\",\"\",'1. Order'!AE859)","v":""}]
[{"$f":"IF('1. Order'!B860=\"\",\"\",'1. Order'!B860)","v":""},{"$f":"IF('1. Order'!I860=\"\",\"\",'1. Order'!I860)","v":""},{"$f":"IF('1. Order'!J860=\"\",\"\",'1. Order'!J860)","v":""},{"$f":"IF('1. Order'!K860=\"\",\"\",'1. Order'!K860)","v":""},{"$f":"IF('1. Order'!M860=\"\",\"\",'1. Order'!M860)","v":""},null,null,{"$f":"'1. Order'!AW860","v":0},{"$f":"IF('1. Order'!AE860=\"\",\"\",'1. Order'!AE860)","v":""}]
[{"$f":"IF('1. Order'!B861=\"\",\"\",'1. Order'!B861)","v":""},{"$f":"IF('1. Order'!I861=\"\",\"\",'1. Order'!I861)","v":""},{"$f":"IF('1. Order'!J861=\"\",\"\",'1. Order'!J861)","v":""},{"$f":"IF('1. Order'!K861=\"\",\"\",'1. Order'!K861)","v":""},{"$f":"IF('1. Order'!M861=\"\",\"\",'1. Order'!M861)","v":""},null,null,{"$f":"'1. Order'!AW861","v":0},{"$f":"IF('1. Order'!AE861=\"\",\"\",'1. Order'!AE861)","v":""}]
[{"$f":"IF('1. Order'!B862=\"\",\"\",'1. Order'!B862)","v":""},{"$f":"IF('1. Order'!I862=\"\",\"\",'1. Order'!I862)","v":""},{"$f":"IF('1. Order'!J862=\"\",\"\",'1. Order'!J862)","v":""},{"$f":"IF('1. Order'!K862=\"\",\"\",'1. Order'!K862)","v":""},{"$f":"IF('1. Order'!M862=\"\",\"\",'1. Order'!M862)","v":""},null,null,{"$f":"'1. Order'!AW862","v":0},{"$f":"IF('1. Order'!AE862=\"\",\"\",'1. Order'!AE862)","v":""}]
[{"$f":"IF('1. Order'!B863=\"\",\"\",'1. Order'!B863)","v":""},{"$f":"IF('1. Order'!I863=\"\",\"\",'1. Order'!I863)","v":""},{"$f":"IF('1. Order'!J863=\"\",\"\",'1. Order'!J863)","v":""},{"$f":"IF('1. Order'!K863=\"\",\"\",'1. Order'!K863)","v":""},{"$f":"IF('1. Order'!M863=\"\",\"\",'1. Order'!M863)","v":""},null,null,{"$f":"'1. Order'!AW863","v":0},{"$f":"IF('1. Order'!AE863=\"\",\"\",'1. Order'!AE863)","v":""}]
[{"$f":"IF('1. Order'!B864=\"\",\"\",'1. Order'!B864)","v":""},{"$f":"IF('1. Order'!I864=\"\",\"\",'1. Order'!I864)","v":""},{"$f":"IF('1. Order'!J864=\"\",\"\",'1. Order'!J864)","v":""},{"$f":"IF('1. Order'!K864=\"\",\"\",'1. Order'!K864)","v":""},{"$f":"IF('1. Order'!M864=\"\",\"\",'1. Order'!M864)","v":""},null,null,{"$f":"'1. Order'!AW864","v":0},{"$f":"IF('1. Order'!AE864=\"\",\"\",'1. Order'!AE864)","v":""}]
[{"$f":"IF('1. Order'!B865=\"\",\"\",'1. Order'!B865)","v":""},{"$f":"IF('1. Order'!I865=\"\",\"\",'1. Order'!I865)","v":""},{"$f":"IF('1. Order'!J865=\"\",\"\",'1. Order'!J865)","v":""},{"$f":"IF('1. Order'!K865=\"\",\"\",'1. Order'!K865)","v":""},{"$f":"IF('1. Order'!M865=\"\",\"\",'1. Order'!M865)","v":""},null,null,{"$f":"'1. Order'!AW865","v":0},{"$f":"IF('1. Order'!AE865=\"\",\"\",'1. Order'!AE865)","v":""}]
[{"$f":"IF('1. Order'!B866=\"\",\"\",'1. Order'!B866)","v":""},{"$f":"IF('1. Order'!I866=\"\",\"\",'1. Order'!I866)","v":""},{"$f":"IF('1. Order'!J866=\"\",\"\",'1. Order'!J866)","v":""},{"$f":"IF('1. Order'!K866=\"\",\"\",'1. Order'!K866)","v":""},{"$f":"IF('1. Order'!M866=\"\",\"\",'1. Order'!M866)","v":""},null,null,{"$f":"'1. Order'!AW866","v":0},{"$f":"IF('1. Order'!AE866=\"\",\"\",'1. Order'!AE866)","v":""}]
[{"$f":"IF('1. Order'!B867=\"\",\"\",'1. Order'!B867)","v":""},{"$f":"IF('1. Order'!I867=\"\",\"\",'1. Order'!I867)","v":""},{"$f":"IF('1. Order'!J867=\"\",\"\",'1. Order'!J867)","v":""},{"$f":"IF('1. Order'!K867=\"\",\"\",'1. Order'!K867)","v":""},{"$f":"IF('1. Order'!M867=\"\",\"\",'1. Order'!M867)","v":""},null,null,{"$f":"'1. Order'!AW867","v":0},{"$f":"IF('1. Order'!AE867=\"\",\"\",'1. Order'!AE867)","v":""}]
[{"$f":"IF('1. Order'!B868=\"\",\"\",'1. Order'!B868)","v":""},{"$f":"IF('1. Order'!I868=\"\",\"\",'1. Order'!I868)","v":""},{"$f":"IF('1. Order'!J868=\"\",\"\",'1. Order'!J868)","v":""},{"$f":"IF('1. Order'!K868=\"\",\"\",'1. Order'!K868)","v":""},{"$f":"IF('1. Order'!M868=\"\",\"\",'1. Order'!M868)","v":""},null,null,{"$f":"'1. Order'!AW868","v":0},{"$f":"IF('1. Order'!AE868=\"\",\"\",'1. Order'!AE868)","v":""}]
[{"$f":"IF('1. Order'!B869=\"\",\"\",'1. Order'!B869)","v":""},{"$f":"IF('1. Order'!I869=\"\",\"\",'1. Order'!I869)","v":""},{"$f":"IF('1. Order'!J869=\"\",\"\",'1. Order'!J869)","v":""},{"$f":"IF('1. Order'!K869=\"\",\"\",'1. Order'!K869)","v":""},{"$f":"IF('1. Order'!M869=\"\",\"\",'1. Order'!M869)","v":""},null,null,{"$f":"'1. Order'!AW869","v":0},{"$f":"IF('1. Order'!AE869=\"\",\"\",'1. Order'!AE869)","v":""}]
[{"$f":"IF('1. Order'!B870=\"\",\"\",'1. Order'!B870)","v":""},{"$f":"IF('1. Order'!I870=\"\",\"\",'1. Order'!I870)","v":""},{"$f":"IF('1. Order'!J870=\"\",\"\",'1. Order'!J870)","v":""},{"$f":"IF('1. Order'!K870=\"\",\"\",'1. Order'!K870)","v":""},{"$f":"IF('1. Order'!M870=\"\",\"\",'1. Order'!M870)","v":""},null,null,{"$f":"'1. Order'!AW870","v":0},{"$f":"IF('1. Order'!AE870=\"\",\"\",'1. Order'!AE870)","v":""}]
[{"$f":"IF('1. Order'!B871=\"\",\"\",'1. Order'!B871)","v":""},{"$f":"IF('1. Order'!I871=\"\",\"\",'1. Order'!I871)","v":""},{"$f":"IF('1. Order'!J871=\"\",\"\",'1. Order'!J871)","v":""},{"$f":"IF('1. Order'!K871=\"\",\"\",'1. Order'!K871)","v":""},{"$f":"IF('1. Order'!M871=\"\",\"\",'1. Order'!M871)","v":""},null,null,{"$f":"'1. Order'!AW871","v":0},{"$f":"IF('1. Order'!AE871=\"\",\"\",'1. Order'!AE871)","v":""}]
[{"$f":"IF('1. Order'!B872=\"\",\"\",'1. Order'!B872)","v":""},{"$f":"IF('1. Order'!I872=\"\",\"\",'1. Order'!I872)","v":""},{"$f":"IF('1. Order'!J872=\"\",\"\",'1. Order'!J872)","v":""},{"$f":"IF('1. Order'!K872=\"\",\"\",'1. Order'!K872)","v":""},{"$f":"IF('1. Order'!M872=\"\",\"\",'1. Order'!M872)","v":""},null,null,{"$f":"'1. Order'!AW872","v":0},{"$f":"IF('1. Order'!AE872=\"\",\"\",'1. Order'!AE872)","v":""}]
[{"$f":"IF('1. Order'!B873=\"\",\"\",'1. Order'!B873)","v":""},{"$f":"IF('1. Order'!I873=\"\",\"\",'1. Order'!I873)","v":""},{"$f":"IF('1. Order'!J873=\"\",\"\",'1. Order'!J873)","v":""},{"$f":"IF('1. Order'!K873=\"\",\"\",'1. Order'!K873)","v":""},{"$f":"IF('1. Order'!M873=\"\",\"\",'1. Order'!M873)","v":""},null,null,{"$f":"'1. Order'!AW873","v":0},{"$f":"IF('1. Order'!AE873=\"\",\"\",'1. Order'!AE873)","v":""}]
[{"$f":"IF('1. Order'!B874=\"\",\"\",'1. Order'!B874)","v":""},{"$f":"IF('1. Order'!I874=\"\",\"\",'1. Order'!I874)","v":""},{"$f":"IF('1. Order'!J874=\"\",\"\",'1. Order'!J874)","v":""},{"$f":"IF('1. Order'!K874=\"\",\"\",'1. Order'!K874)","v":""},{"$f":"IF('1. Order'!M874=\"\",\"\",'1. Order'!M874)","v":""},null,null,{"$f":"'1. Order'!AW874","v":0},{"$f":"IF('1. Order'!AE874=\"\",\"\",'1. Order'!AE874)","v":""}]
[{"$f":"IF('1. Order'!B875=\"\",\"\",'1. Order'!B875)","v":""},{"$f":"IF('1. Order'!I875=\"\",\"\",'1. Order'!I875)","v":""},{"$f":"IF('1. Order'!J875=\"\",\"\",'1. Order'!J875)","v":""},{"$f":"IF('1. Order'!K875=\"\",\"\",'1. Order'!K875)","v":""},{"$f":"IF('1. Order'!M875=\"\",\"\",'1. Order'!M875)","v":""},null,null,{"$f":"'1. Order'!AW875","v":0},{"$f":"IF('1. Order'!AE875=\"\",\"\",'1. Order'!AE875)","v":""}]
[{"$f":"IF('1. Order'!B876=\"\",\"\",'1. Order'!B876)","v":""},{"$f":"IF('1. Order'!I876=\"\",\"\",'1. Order'!I876)","v":""},{"$f":"IF('1. Order'!J876=\"\",\"\",'1. Order'!J876)","v":""},{"$f":"IF('1. Order'!K876=\"\",\"\",'1. Order'!K876)","v":""},{"$f":"IF('1. Order'!M876=\"\",\"\",'1. Order'!M876)","v":""},null,null,{"$f":"'1. Order'!AW876","v":0},{"$f":"IF('1. Order'!AE876=\"\",\"\",'1. Order'!AE876)","v":""}]
[{"$f":"IF('1. Order'!B877=\"\",\"\",'1. Order'!B877)","v":""},{"$f":"IF('1. Order'!I877=\"\",\"\",'1. Order'!I877)","v":""},{"$f":"IF('1. Order'!J877=\"\",\"\",'1. Order'!J877)","v":""},{"$f":"IF('1. Order'!K877=\"\",\"\",'1. Order'!K877)","v":""},{"$f":"IF('1. Order'!M877=\"\",\"\",'1. Order'!M877)","v":""},null,null,{"$f":"'1. Order'!AW877","v":0},{"$f":"IF('1. Order'!AE877=\"\",\"\",'1. Order'!AE877)","v":""}]
[{"$f":"IF('1. Order'!B878=\"\",\"\",'1. Order'!B878)","v":""},{"$f":"IF('1. Order'!I878=\"\",\"\",'1. Order'!I878)","v":""},{"$f":"IF('1. Order'!J878=\"\",\"\",'1. Order'!J878)","v":""},{"$f":"IF('1. Order'!K878=\"\",\"\",'1. Order'!K878)","v":""},{"$f":"IF('1. Order'!M878=\"\",\"\",'1. Order'!M878)","v":""},null,null,{"$f":"'1. Order'!AW878","v":0},{"$f":"IF('1. Order'!AE878=\"\",\"\",'1. Order'!AE878)","v":""}]
[{"$f":"IF('1. Order'!B879=\"\",\"\",'1. Order'!B879)","v":""},{"$f":"IF('1. Order'!I879=\"\",\"\",'1. Order'!I879)","v":""},{"$f":"IF('1. Order'!J879=\"\",\"\",'1. Order'!J879)","v":""},{"$f":"IF('1. Order'!K879=\"\",\"\",'1. Order'!K879)","v":""},{"$f":"IF('1. Order'!M879=\"\",\"\",'1. Order'!M879)","v":""},null,null,{"$f":"'1. Order'!AW879","v":0},{"$f":"IF('1. Order'!AE879=\"\",\"\",'1. Order'!AE879)","v":""}]
[{"$f":"IF('1. Order'!B880=\"\",\"\",'1. Order'!B880)","v":""},{"$f":"IF('1. Order'!I880=\"\",\"\",'1. Order'!I880)","v":""},{"$f":"IF('1. Order'!J880=\"\",\"\",'1. Order'!J880)","v":""},{"$f":"IF('1. Order'!K880=\"\",\"\",'1. Order'!K880)","v":""},{"$f":"IF('1. Order'!M880=\"\",\"\",'1. Order'!M880)","v":""},null,null,{"$f":"'1. Order'!AW880","v":0},{"$f":"IF('1. Order'!AE880=\"\",\"\",'1. Order'!AE880)","v":""}]
[{"$f":"IF('1. Order'!B881=\"\",\"\",'1. Order'!B881)","v":""},{"$f":"IF('1. Order'!I881=\"\",\"\",'1. Order'!I881)","v":""},{"$f":"IF('1. Order'!J881=\"\",\"\",'1. Order'!J881)","v":""},{"$f":"IF('1. Order'!K881=\"\",\"\",'1. Order'!K881)","v":""},{"$f":"IF('1. Order'!M881=\"\",\"\",'1. Order'!M881)","v":""},null,null,{"$f":"'1. Order'!AW881","v":0},{"$f":"IF('1. Order'!AE881=\"\",\"\",'1. Order'!AE881)","v":""}]
[{"$f":"IF('1. Order'!B882=\"\",\"\",'1. Order'!B882)","v":""},{"$f":"IF('1. Order'!I882=\"\",\"\",'1. Order'!I882)","v":""},{"$f":"IF('1. Order'!J882=\"\",\"\",'1. Order'!J882)","v":""},{"$f":"IF('1. Order'!K882=\"\",\"\",'1. Order'!K882)","v":""},{"$f":"IF('1. Order'!M882=\"\",\"\",'1. Order'!M882)","v":""},null,null,{"$f":"'1. Order'!AW882","v":0},{"$f":"IF('1. Order'!AE882=\"\",\"\",'1. Order'!AE882)","v":""}]
[{"$f":"IF('1. Order'!B883=\"\",\"\",'1. Order'!B883)","v":""},{"$f":"IF('1. Order'!I883=\"\",\"\",'1. Order'!I883)","v":""},{"$f":"IF('1. Order'!J883=\"\",\"\",'1. Order'!J883)","v":""},{"$f":"IF('1. Order'!K883=\"\",\"\",'1. Order'!K883)","v":""},{"$f":"IF('1. Order'!M883=\"\",\"\",'1. Order'!M883)","v":""},null,null,{"$f":"'1. Order'!AW883","v":0},{"$f":"IF('1. Order'!AE883=\"\",\"\",'1. Order'!AE883)","v":""}]
[{"$f":"IF('1. Order'!B884=\"\",\"\",'1. Order'!B884)","v":""},{"$f":"IF('1. Order'!I884=\"\",\"\",'1. Order'!I884)","v":""},{"$f":"IF('1. Order'!J884=\"\",\"\",'1. Order'!J884)","v":""},{"$f":"IF('1. Order'!K884=\"\",\"\",'1. Order'!K884)","v":""},{"$f":"IF('1. Order'!M884=\"\",\"\",'1. Order'!M884)","v":""},null,null,{"$f":"'1. Order'!AW884","v":0},{"$f":"IF('1. Order'!AE884=\"\",\"\",'1. Order'!AE884)","v":""}]
[{"$f":"IF('1. Order'!B885=\"\",\"\",'1. Order'!B885)","v":""},{"$f":"IF('1. Order'!I885=\"\",\"\",'1. Order'!I885)","v":""},{"$f":"IF('1. Order'!J885=\"\",\"\",'1. Order'!J885)","v":""},{"$f":"IF('1. Order'!K885=\"\",\"\",'1. Order'!K885)","v":""},{"$f":"IF('1. Order'!M885=\"\",\"\",'1. Order'!M885)","v":""},null,null,{"$f":"'1. Order'!AW885","v":0},{"$f":"IF('1. Order'!AE885=\"\",\"\",'1. Order'!AE885)","v":""}]
[{"$f":"IF('1. Order'!B886=\"\",\"\",'1. Order'!B886)","v":""},{"$f":"IF('1. Order'!I886=\"\",\"\",'1. Order'!I886)","v":""},{"$f":"IF('1. Order'!J886=\"\",\"\",'1. Order'!J886)","v":""},{"$f":"IF('1. Order'!K886=\"\",\"\",'1. Order'!K886)","v":""},{"$f":"IF('1. Order'!M886=\"\",\"\",'1. Order'!M886)","v":""},null,null,{"$f":"'1. Order'!AW886","v":0},{"$f":"IF('1. Order'!AE886=\"\",\"\",'1. Order'!AE886)","v":""}]
[{"$f":"IF('1. Order'!B887=\"\",\"\",'1. Order'!B887)","v":""},{"$f":"IF('1. Order'!I887=\"\",\"\",'1. Order'!I887)","v":""},{"$f":"IF('1. Order'!J887=\"\",\"\",'1. Order'!J887)","v":""},{"$f":"IF('1. Order'!K887=\"\",\"\",'1. Order'!K887)","v":""},{"$f":"IF('1. Order'!M887=\"\",\"\",'1. Order'!M887)","v":""},null,null,{"$f":"'1. Order'!AW887","v":0},{"$f":"IF('1. Order'!AE887=\"\",\"\",'1. Order'!AE887)","v":""}]
[{"$f":"IF('1. Order'!B888=\"\",\"\",'1. Order'!B888)","v":""},{"$f":"IF('1. Order'!I888=\"\",\"\",'1. Order'!I888)","v":""},{"$f":"IF('1. Order'!J888=\"\",\"\",'1. Order'!J888)","v":""},{"$f":"IF('1. Order'!K888=\"\",\"\",'1. Order'!K888)","v":""},{"$f":"IF('1. Order'!M888=\"\",\"\",'1. Order'!M888)","v":""},null,null,{"$f":"'1. Order'!AW888","v":0},{"$f":"IF('1. Order'!AE888=\"\",\"\",'1. Order'!AE888)","v":""}]
[{"$f":"IF('1. Order'!B889=\"\",\"\",'1. Order'!B889)","v":""},{"$f":"IF('1. Order'!I889=\"\",\"\",'1. Order'!I889)","v":""},{"$f":"IF('1. Order'!J889=\"\",\"\",'1. Order'!J889)","v":""},{"$f":"IF('1. Order'!K889=\"\",\"\",'1. Order'!K889)","v":""},{"$f":"IF('1. Order'!M889=\"\",\"\",'1. Order'!M889)","v":""},null,null,{"$f":"'1. Order'!AW889","v":0},{"$f":"IF('1. Order'!AE889=\"\",\"\",'1. Order'!AE889)","v":""}]
[{"$f":"IF('1. Order'!B890=\"\",\"\",'1. Order'!B890)","v":""},{"$f":"IF('1. Order'!I890=\"\",\"\",'1. Order'!I890)","v":""},{"$f":"IF('1. Order'!J890=\"\",\"\",'1. Order'!J890)","v":""},{"$f":"IF('1. Order'!K890=\"\",\"\",'1. Order'!K890)","v":""},{"$f":"IF('1. Order'!M890=\"\",\"\",'1. Order'!M890)","v":""},null,null,{"$f":"'1. Order'!AW890","v":0},{"$f":"IF('1. Order'!AE890=\"\",\"\",'1. Order'!AE890)","v":""}]
[{"$f":"IF('1. Order'!B891=\"\",\"\",'1. Order'!B891)","v":""},{"$f":"IF('1. Order'!I891=\"\",\"\",'1. Order'!I891)","v":""},{"$f":"IF('1. Order'!J891=\"\",\"\",'1. Order'!J891)","v":""},{"$f":"IF('1. Order'!K891=\"\",\"\",'1. Order'!K891)","v":""},{"$f":"IF('1. Order'!M891=\"\",\"\",'1. Order'!M891)","v":""},null,null,{"$f":"'1. Order'!AW891","v":0},{"$f":"IF('1. Order'!AE891=\"\",\"\",'1. Order'!AE891)","v":""}]
[{"$f":"IF('1. Order'!B892=\"\",\"\",'1. Order'!B892)","v":""},{"$f":"IF('1. Order'!I892=\"\",\"\",'1. Order'!I892)","v":""},{"$f":"IF('1. Order'!J892=\"\",\"\",'1. Order'!J892)","v":""},{"$f":"IF('1. Order'!K892=\"\",\"\",'1. Order'!K892)","v":""},{"$f":"IF('1. Order'!M892=\"\",\"\",'1. Order'!M892)","v":""},null,null,{"$f":"'1. Order'!AW892","v":0},{"$f":"IF('1. Order'!AE892=\"\",\"\",'1. Order'!AE892)","v":""}]
[{"$f":"IF('1. Order'!B893=\"\",\"\",'1. Order'!B893)","v":""},{"$f":"IF('1. Order'!I893=\"\",\"\",'1. Order'!I893)","v":""},{"$f":"IF('1. Order'!J893=\"\",\"\",'1. Order'!J893)","v":""},{"$f":"IF('1. Order'!K893=\"\",\"\",'1. Order'!K893)","v":""},{"$f":"IF('1. Order'!M893=\"\",\"\",'1. Order'!M893)","v":""},null,null,{"$f":"'1. Order'!AW893","v":0},{"$f":"IF('1. Order'!AE893=\"\",\"\",'1. Order'!AE893)","v":""}]
[{"$f":"IF('1. Order'!B894=\"\",\"\",'1. Order'!B894)","v":""},{"$f":"IF('1. Order'!I894=\"\",\"\",'1. Order'!I894)","v":""},{"$f":"IF('1. Order'!J894=\"\",\"\",'1. Order'!J894)","v":""},{"$f":"IF('1. Order'!K894=\"\",\"\",'1. Order'!K894)","v":""},{"$f":"IF('1. Order'!M894=\"\",\"\",'1. Order'!M894)","v":""},null,null,{"$f":"'1. Order'!AW894","v":0},{"$f":"IF('1. Order'!AE894=\"\",\"\",'1. Order'!AE894)","v":""}]
[{"$f":"IF('1. Order'!B895=\"\",\"\",'1. Order'!B895)","v":""},{"$f":"IF('1. Order'!I895=\"\",\"\",'1. Order'!I895)","v":""},{"$f":"IF('1. Order'!J895=\"\",\"\",'1. Order'!J895)","v":""},{"$f":"IF('1. Order'!K895=\"\",\"\",'1. Order'!K895)","v":""},{"$f":"IF('1. Order'!M895=\"\",\"\",'1. Order'!M895)","v":""},null,null,{"$f":"'1. Order'!AW895","v":0},{"$f":"IF('1. Order'!AE895=\"\",\"\",'1. Order'!AE895)","v":""}]
[{"$f":"IF('1. Order'!B896=\"\",\"\",'1. Order'!B896)","v":""},{"$f":"IF('1. Order'!I896=\"\",\"\",'1. Order'!I896)","v":""},{"$f":"IF('1. Order'!J896=\"\",\"\",'1. Order'!J896)","v":""},{"$f":"IF('1. Order'!K896=\"\",\"\",'1. Order'!K896)","v":""},{"$f":"IF('1. Order'!M896=\"\",\"\",'1. Order'!M896)","v":""},null,null,{"$f":"'1. Order'!AW896","v":0},{"$f":"IF('1. Order'!AE896=\"\",\"\",'1. Order'!AE896)","v":""}]
[{"$f":"IF('1. Order'!B897=\"\",\"\",'1. Order'!B897)","v":""},{"$f":"IF('1. Order'!I897=\"\",\"\",'1. Order'!I897)","v":""},{"$f":"IF('1. Order'!J897=\"\",\"\",'1. Order'!J897)","v":""},{"$f":"IF('1. Order'!K897=\"\",\"\",'1. Order'!K897)","v":""},{"$f":"IF('1. Order'!M897=\"\",\"\",'1. Order'!M897)","v":""},null,null,{"$f":"'1. Order'!AW897","v":0},{"$f":"IF('1. Order'!AE897=\"\",\"\",'1. Order'!AE897)","v":""}]
[{"$f":"IF('1. Order'!B898=\"\",\"\",'1. Order'!B898)","v":""},{"$f":"IF('1. Order'!I898=\"\",\"\",'1. Order'!I898)","v":""},{"$f":"IF('1. Order'!J898=\"\",\"\",'1. Order'!J898)","v":""},{"$f":"IF('1. Order'!K898=\"\",\"\",'1. Order'!K898)","v":""},{"$f":"IF('1. Order'!M898=\"\",\"\",'1. Order'!M898)","v":""},null,null,{"$f":"'1. Order'!AW898","v":0},{"$f":"IF('1. Order'!AE898=\"\",\"\",'1. Order'!AE898)","v":""}]
[{"$f":"IF('1. Order'!B899=\"\",\"\",'1. Order'!B899)","v":""},{"$f":"IF('1. Order'!I899=\"\",\"\",'1. Order'!I899)","v":""},{"$f":"IF('1. Order'!J899=\"\",\"\",'1. Order'!J899)","v":""},{"$f":"IF('1. Order'!K899=\"\",\"\",'1. Order'!K899)","v":""},{"$f":"IF('1. Order'!M899=\"\",\"\",'1. Order'!M899)","v":""},null,null,{"$f":"'1. Order'!AW899","v":0},{"$f":"IF('1. Order'!AE899=\"\",\"\",'1. Order'!AE899)","v":""}]
[{"$f":"IF('1. Order'!B900=\"\",\"\",'1. Order'!B900)","v":""},{"$f":"IF('1. Order'!I900=\"\",\"\",'1. Order'!I900)","v":""},{"$f":"IF('1. Order'!J900=\"\",\"\",'1. Order'!J900)","v":""},{"$f":"IF('1. Order'!K900=\"\",\"\",'1. Order'!K900)","v":""},{"$f":"IF('1. Order'!M900=\"\",\"\",'1. Order'!M900)","v":""},null,null,{"$f":"'1. Order'!AW900","v":0},{"$f":"IF('1. Order'!AE900=\"\",\"\",'1. Order'!AE900)","v":""}]
[{"$f":"IF('1. Order'!B901=\"\",\"\",'1. Order'!B901)","v":""},{"$f":"IF('1. Order'!I901=\"\",\"\",'1. Order'!I901)","v":""},{"$f":"IF('1. Order'!J901=\"\",\"\",'1. Order'!J901)","v":""},{"$f":"IF('1. Order'!K901=\"\",\"\",'1. Order'!K901)","v":""},{"$f":"IF('1. Order'!M901=\"\",\"\",'1. Order'!M901)","v":""},null,null,{"$f":"'1. Order'!AW901","v":0},{"$f":"IF('1. Order'!AE901=\"\",\"\",'1. Order'!AE901)","v":""}]
[{"$f":"IF('1. Order'!B902=\"\",\"\",'1. Order'!B902)","v":""},{"$f":"IF('1. Order'!I902=\"\",\"\",'1. Order'!I902)","v":""},{"$f":"IF('1. Order'!J902=\"\",\"\",'1. Order'!J902)","v":""},{"$f":"IF('1. Order'!K902=\"\",\"\",'1. Order'!K902)","v":""},{"$f":"IF('1. Order'!M902=\"\",\"\",'1. Order'!M902)","v":""},null,null,{"$f":"'1. Order'!AW902","v":0},{"$f":"IF('1. Order'!AE902=\"\",\"\",'1. Order'!AE902)","v":""}]
[{"$f":"IF('1. Order'!B903=\"\",\"\",'1. Order'!B903)","v":""},{"$f":"IF('1. Order'!I903=\"\",\"\",'1. Order'!I903)","v":""},{"$f":"IF('1. Order'!J903=\"\",\"\",'1. Order'!J903)","v":""},{"$f":"IF('1. Order'!K903=\"\",\"\",'1. Order'!K903)","v":""},{"$f":"IF('1. Order'!M903=\"\",\"\",'1. Order'!M903)","v":""},null,null,{"$f":"'1. Order'!AW903","v":0},{"$f":"IF('1. Order'!AE903=\"\",\"\",'1. Order'!AE903)","v":""}]
[{"$f":"IF('1. Order'!B904=\"\",\"\",'1. Order'!B904)","v":""},{"$f":"IF('1. Order'!I904=\"\",\"\",'1. Order'!I904)","v":""},{"$f":"IF('1. Order'!J904=\"\",\"\",'1. Order'!J904)","v":""},{"$f":"IF('1. Order'!K904=\"\",\"\",'1. Order'!K904)","v":""},{"$f":"IF('1. Order'!M904=\"\",\"\",'1. Order'!M904)","v":""},null,null,{"$f":"'1. Order'!AW904","v":0},{"$f":"IF('1. Order'!AE904=\"\",\"\",'1. Order'!AE904)","v":""}]
[{"$f":"IF('1. Order'!B905=\"\",\"\",'1. Order'!B905)","v":""},{"$f":"IF('1. Order'!I905=\"\",\"\",'1. Order'!I905)","v":""},{"$f":"IF('1. Order'!J905=\"\",\"\",'1. Order'!J905)","v":""},{"$f":"IF('1. Order'!K905=\"\",\"\",'1. Order'!K905)","v":""},{"$f":"IF('1. Order'!M905=\"\",\"\",'1. Order'!M905)","v":""},null,null,{"$f":"'1. Order'!AW905","v":0},{"$f":"IF('1. Order'!AE905=\"\",\"\",'1. Order'!AE905)","v":""}]
[{"$f":"IF('1. Order'!B906=\"\",\"\",'1. Order'!B906)","v":""},{"$f":"IF('1. Order'!I906=\"\",\"\",'1. Order'!I906)","v":""},{"$f":"IF('1. Order'!J906=\"\",\"\",'1. Order'!J906)","v":""},{"$f":"IF('1. Order'!K906=\"\",\"\",'1. Order'!K906)","v":""},{"$f":"IF('1. Order'!M906=\"\",\"\",'1. Order'!M906)","v":""},null,null,{"$f":"'1. Order'!AW906","v":0},{"$f":"IF('1. Order'!AE906=\"\",\"\",'1. Order'!AE906)","v":""}]
[{"$f":"IF('1. Order'!B907=\"\",\"\",'1. Order'!B907)","v":""},{"$f":"IF('1. Order'!I907=\"\",\"\",'1. Order'!I907)","v":""},{"$f":"IF('1. Order'!J907=\"\",\"\",'1. Order'!J907)","v":""},{"$f":"IF('1. Order'!K907=\"\",\"\",'1. Order'!K907)","v":""},{"$f":"IF('1. Order'!M907=\"\",\"\",'1. Order'!M907)","v":""},null,null,{"$f":"'1. Order'!AW907","v":0},{"$f":"IF('1. Order'!AE907=\"\",\"\",'1. Order'!AE907)","v":""}]
[{"$f":"IF('1. Order'!B908=\"\",\"\",'1. Order'!B908)","v":""},{"$f":"IF('1. Order'!I908=\"\",\"\",'1. Order'!I908)","v":""},{"$f":"IF('1. Order'!J908=\"\",\"\",'1. Order'!J908)","v":""},{"$f":"IF('1. Order'!K908=\"\",\"\",'1. Order'!K908)","v":""},{"$f":"IF('1. Order'!M908=\"\",\"\",'1. Order'!M908)","v":""},null,null,{"$f":"'1. Order'!AW908","v":0},{"$f":"IF('1. Order'!AE908=\"\",\"\",'1. Order'!AE908)","v":""}]
[{"$f":"IF('1. Order'!B909=\"\",\"\",'1. Order'!B909)","v":""},{"$f":"IF('1. Order'!I909=\"\",\"\",'1. Order'!I909)","v":""},{"$f":"IF('1. Order'!J909=\"\",\"\",'1. Order'!J909)","v":""},{"$f":"IF('1. Order'!K909=\"\",\"\",'1. Order'!K909)","v":""},{"$f":"IF('1. Order'!M909=\"\",\"\",'1. Order'!M909)","v":""},null,null,{"$f":"'1. Order'!AW909","v":0},{"$f":"IF('1. Order'!AE909=\"\",\"\",'1. Order'!AE909)","v":""}]
[{"$f":"IF('1. Order'!B910=\"\",\"\",'1. Order'!B910)","v":""},{"$f":"IF('1. Order'!I910=\"\",\"\",'1. Order'!I910)","v":""},{"$f":"IF('1. Order'!J910=\"\",\"\",'1. Order'!J910)","v":""},{"$f":"IF('1. Order'!K910=\"\",\"\",'1. Order'!K910)","v":""},{"$f":"IF('1. Order'!M910=\"\",\"\",'1. Order'!M910)","v":""},null,null,{"$f":"'1. Order'!AW910","v":0},{"$f":"IF('1. Order'!AE910=\"\",\"\",'1. Order'!AE910)","v":""}]
[{"$f":"IF('1. Order'!B911=\"\",\"\",'1. Order'!B911)","v":""},{"$f":"IF('1. Order'!I911=\"\",\"\",'1. Order'!I911)","v":""},{"$f":"IF('1. Order'!J911=\"\",\"\",'1. Order'!J911)","v":""},{"$f":"IF('1. Order'!K911=\"\",\"\",'1. Order'!K911)","v":""},{"$f":"IF('1. Order'!M911=\"\",\"\",'1. Order'!M911)","v":""},null,null,{"$f":"'1. Order'!AW911","v":0},{"$f":"IF('1. Order'!AE911=\"\",\"\",'1. Order'!AE911)","v":""}]
[{"$f":"IF('1. Order'!B912=\"\",\"\",'1. Order'!B912)","v":""},{"$f":"IF('1. Order'!I912=\"\",\"\",'1. Order'!I912)","v":""},{"$f":"IF('1. Order'!J912=\"\",\"\",'1. Order'!J912)","v":""},{"$f":"IF('1. Order'!K912=\"\",\"\",'1. Order'!K912)","v":""},{"$f":"IF('1. Order'!M912=\"\",\"\",'1. Order'!M912)","v":""},null,null,{"$f":"'1. Order'!AW912","v":0},{"$f":"IF('1. Order'!AE912=\"\",\"\",'1. Order'!AE912)","v":""}]
[{"$f":"IF('1. Order'!B913=\"\",\"\",'1. Order'!B913)","v":""},{"$f":"IF('1. Order'!I913=\"\",\"\",'1. Order'!I913)","v":""},{"$f":"IF('1. Order'!J913=\"\",\"\",'1. Order'!J913)","v":""},{"$f":"IF('1. Order'!K913=\"\",\"\",'1. Order'!K913)","v":""},{"$f":"IF('1. Order'!M913=\"\",\"\",'1. Order'!M913)","v":""},null,null,{"$f":"'1. Order'!AW913","v":0},{"$f":"IF('1. Order'!AE913=\"\",\"\",'1. Order'!AE913)","v":""}]
[{"$f":"IF('1. Order'!B914=\"\",\"\",'1. Order'!B914)","v":""},{"$f":"IF('1. Order'!I914=\"\",\"\",'1. Order'!I914)","v":""},{"$f":"IF('1. Order'!J914=\"\",\"\",'1. Order'!J914)","v":""},{"$f":"IF('1. Order'!K914=\"\",\"\",'1. Order'!K914)","v":""},{"$f":"IF('1. Order'!M914=\"\",\"\",'1. Order'!M914)","v":""},null,null,{"$f":"'1. Order'!AW914","v":0},{"$f":"IF('1. Order'!AE914=\"\",\"\",'1. Order'!AE914)","v":""}]
[{"$f":"IF('1. Order'!B915=\"\",\"\",'1. Order'!B915)","v":""},{"$f":"IF('1. Order'!I915=\"\",\"\",'1. Order'!I915)","v":""},{"$f":"IF('1. Order'!J915=\"\",\"\",'1. Order'!J915)","v":""},{"$f":"IF('1. Order'!K915=\"\",\"\",'1. Order'!K915)","v":""},{"$f":"IF('1. Order'!M915=\"\",\"\",'1. Order'!M915)","v":""},null,null,{"$f":"'1. Order'!AW915","v":0},{"$f":"IF('1. Order'!AE915=\"\",\"\",'1. Order'!AE915)","v":""}]
[{"$f":"IF('1. Order'!B916=\"\",\"\",'1. Order'!B916)","v":""},{"$f":"IF('1. Order'!I916=\"\",\"\",'1. Order'!I916)","v":""},{"$f":"IF('1. Order'!J916=\"\",\"\",'1. Order'!J916)","v":""},{"$f":"IF('1. Order'!K916=\"\",\"\",'1. Order'!K916)","v":""},{"$f":"IF('1. Order'!M916=\"\",\"\",'1. Order'!M916)","v":""},null,null,{"$f":"'1. Order'!AW916","v":0},{"$f":"IF('1. Order'!AE916=\"\",\"\",'1. Order'!AE916)","v":""}]
[{"$f":"IF('1. Order'!B917=\"\",\"\",'1. Order'!B917)","v":""},{"$f":"IF('1. Order'!I917=\"\",\"\",'1. Order'!I917)","v":""},{"$f":"IF('1. Order'!J917=\"\",\"\",'1. Order'!J917)","v":""},{"$f":"IF('1. Order'!K917=\"\",\"\",'1. Order'!K917)","v":""},{"$f":"IF('1. Order'!M917=\"\",\"\",'1. Order'!M917)","v":""},null,null,{"$f":"'1. Order'!AW917","v":0},{"$f":"IF('1. Order'!AE917=\"\",\"\",'1. Order'!AE917)","v":""}]
[{"$f":"IF('1. Order'!B918=\"\",\"\",'1. Order'!B918)","v":""},{"$f":"IF('1. Order'!I918=\"\",\"\",'1. Order'!I918)","v":""},{"$f":"IF('1. Order'!J918=\"\",\"\",'1. Order'!J918)","v":""},{"$f":"IF('1. Order'!K918=\"\",\"\",'1. Order'!K918)","v":""},{"$f":"IF('1. Order'!M918=\"\",\"\",'1. Order'!M918)","v":""},null,null,{"$f":"'1. Order'!AW918","v":0},{"$f":"IF('1. Order'!AE918=\"\",\"\",'1. Order'!AE918)","v":""}]
[{"$f":"IF('1. Order'!B919=\"\",\"\",'1. Order'!B919)","v":""},{"$f":"IF('1. Order'!I919=\"\",\"\",'1. Order'!I919)","v":""},{"$f":"IF('1. Order'!J919=\"\",\"\",'1. Order'!J919)","v":""},{"$f":"IF('1. Order'!K919=\"\",\"\",'1. Order'!K919)","v":""},{"$f":"IF('1. Order'!M919=\"\",\"\",'1. Order'!M919)","v":""},null,null,{"$f":"'1. Order'!AW919","v":0},{"$f":"IF('1. Order'!AE919=\"\",\"\",'1. Order'!AE919)","v":""}]
[{"$f":"IF('1. Order'!B920=\"\",\"\",'1. Order'!B920)","v":""},{"$f":"IF('1. Order'!I920=\"\",\"\",'1. Order'!I920)","v":""},{"$f":"IF('1. Order'!J920=\"\",\"\",'1. Order'!J920)","v":""},{"$f":"IF('1. Order'!K920=\"\",\"\",'1. Order'!K920)","v":""},{"$f":"IF('1. Order'!M920=\"\",\"\",'1. Order'!M920)","v":""},null,null,{"$f":"'1. Order'!AW920","v":0},{"$f":"IF('1. Order'!AE920=\"\",\"\",'1. Order'!AE920)","v":""}]
[{"$f":"IF('1. Order'!B921=\"\",\"\",'1. Order'!B921)","v":""},{"$f":"IF('1. Order'!I921=\"\",\"\",'1. Order'!I921)","v":""},{"$f":"IF('1. Order'!J921=\"\",\"\",'1. Order'!J921)","v":""},{"$f":"IF('1. Order'!K921=\"\",\"\",'1. Order'!K921)","v":""},{"$f":"IF('1. Order'!M921=\"\",\"\",'1. Order'!M921)","v":""},null,null,{"$f":"'1. Order'!AW921","v":0},{"$f":"IF('1. Order'!AE921=\"\",\"\",'1. Order'!AE921)","v":""}]
[{"$f":"IF('1. Order'!B922=\"\",\"\",'1. Order'!B922)","v":""},{"$f":"IF('1. Order'!I922=\"\",\"\",'1. Order'!I922)","v":""},{"$f":"IF('1. Order'!J922=\"\",\"\",'1. Order'!J922)","v":""},{"$f":"IF('1. Order'!K922=\"\",\"\",'1. Order'!K922)","v":""},{"$f":"IF('1. Order'!M922=\"\",\"\",'1. Order'!M922)","v":""},null,null,{"$f":"'1. Order'!AW922","v":0},{"$f":"IF('1. Order'!AE922=\"\",\"\",'1. Order'!AE922)","v":""}]
[{"$f":"IF('1. Order'!B923=\"\",\"\",'1. Order'!B923)","v":""},{"$f":"IF('1. Order'!I923=\"\",\"\",'1. Order'!I923)","v":""},{"$f":"IF('1. Order'!J923=\"\",\"\",'1. Order'!J923)","v":""},{"$f":"IF('1. Order'!K923=\"\",\"\",'1. Order'!K923)","v":""},{"$f":"IF('1. Order'!M923=\"\",\"\",'1. Order'!M923)","v":""},null,null,{"$f":"'1. Order'!AW923","v":0},{"$f":"IF('1. Order'!AE923=\"\",\"\",'1. Order'!AE923)","v":""}]
[{"$f":"IF('1. Order'!B924=\"\",\"\",'1. Order'!B924)","v":""},{"$f":"IF('1. Order'!I924=\"\",\"\",'1. Order'!I924)","v":""},{"$f":"IF('1. Order'!J924=\"\",\"\",'1. Order'!J924)","v":""},{"$f":"IF('1. Order'!K924=\"\",\"\",'1. Order'!K924)","v":""},{"$f":"IF('1. Order'!M924=\"\",\"\",'1. Order'!M924)","v":""},null,null,{"$f":"'1. Order'!AW924","v":0},{"$f":"IF('1. Order'!AE924=\"\",\"\",'1. Order'!AE924)","v":""}]
[{"$f":"IF('1. Order'!B925=\"\",\"\",'1. Order'!B925)","v":""},{"$f":"IF('1. Order'!I925=\"\",\"\",'1. Order'!I925)","v":""},{"$f":"IF('1. Order'!J925=\"\",\"\",'1. Order'!J925)","v":""},{"$f":"IF('1. Order'!K925=\"\",\"\",'1. Order'!K925)","v":""},{"$f":"IF('1. Order'!M925=\"\",\"\",'1. Order'!M925)","v":""},null,null,{"$f":"'1. Order'!AW925","v":0},{"$f":"IF('1. Order'!AE925=\"\",\"\",'1. Order'!AE925)","v":""}]
[{"$f":"IF('1. Order'!B926=\"\",\"\",'1. Order'!B926)","v":""},{"$f":"IF('1. Order'!I926=\"\",\"\",'1. Order'!I926)","v":""},{"$f":"IF('1. Order'!J926=\"\",\"\",'1. Order'!J926)","v":""},{"$f":"IF('1. Order'!K926=\"\",\"\",'1. Order'!K926)","v":""},{"$f":"IF('1. Order'!M926=\"\",\"\",'1. Order'!M926)","v":""},null,null,{"$f":"'1. Order'!AW926","v":0},{"$f":"IF('1. Order'!AE926=\"\",\"\",'1. Order'!AE926)","v":""}]
[{"$f":"IF('1. Order'!B927=\"\",\"\",'1. Order'!B927)","v":""},{"$f":"IF('1. Order'!I927=\"\",\"\",'1. Order'!I927)","v":""},{"$f":"IF('1. Order'!J927=\"\",\"\",'1. Order'!J927)","v":""},{"$f":"IF('1. Order'!K927=\"\",\"\",'1. Order'!K927)","v":""},{"$f":"IF('1. Order'!M927=\"\",\"\",'1. Order'!M927)","v":""},null,null,{"$f":"'1. Order'!AW927","v":0},{"$f":"IF('1. Order'!AE927=\"\",\"\",'1. Order'!AE927)","v":""}]
[{"$f":"IF('1. Order'!B928=\"\",\"\",'1. Order'!B928)","v":""},{"$f":"IF('1. Order'!I928=\"\",\"\",'1. Order'!I928)","v":""},{"$f":"IF('1. Order'!J928=\"\",\"\",'1. Order'!J928)","v":""},{"$f":"IF('1. Order'!K928=\"\",\"\",'1. Order'!K928)","v":""},{"$f":"IF('1. Order'!M928=\"\",\"\",'1. Order'!M928)","v":""},null,null,{"$f":"'1. Order'!AW928","v":0},{"$f":"IF('1. Order'!AE928=\"\",\"\",'1. Order'!AE928)","v":""}]
[{"$f":"IF('1. Order'!B929=\"\",\"\",'1. Order'!B929)","v":""},{"$f":"IF('1. Order'!I929=\"\",\"\",'1. Order'!I929)","v":""},{"$f":"IF('1. Order'!J929=\"\",\"\",'1. Order'!J929)","v":""},{"$f":"IF('1. Order'!K929=\"\",\"\",'1. Order'!K929)","v":""},{"$f":"IF('1. Order'!M929=\"\",\"\",'1. Order'!M929)","v":""},null,null,{"$f":"'1. Order'!AW929","v":0},{"$f":"IF('1. Order'!AE929=\"\",\"\",'1. Order'!AE929)","v":""}]
[{"$f":"IF('1. Order'!B930=\"\",\"\",'1. Order'!B930)","v":""},{"$f":"IF('1. Order'!I930=\"\",\"\",'1. Order'!I930)","v":""},{"$f":"IF('1. Order'!J930=\"\",\"\",'1. Order'!J930)","v":""},{"$f":"IF('1. Order'!K930=\"\",\"\",'1. Order'!K930)","v":""},{"$f":"IF('1. Order'!M930=\"\",\"\",'1. Order'!M930)","v":""},null,null,{"$f":"'1. Order'!AW930","v":0},{"$f":"IF('1. Order'!AE930=\"\",\"\",'1. Order'!AE930)","v":""}]
[{"$f":"IF('1. Order'!B931=\"\",\"\",'1. Order'!B931)","v":""},{"$f":"IF('1. Order'!I931=\"\",\"\",'1. Order'!I931)","v":""},{"$f":"IF('1. Order'!J931=\"\",\"\",'1. Order'!J931)","v":""},{"$f":"IF('1. Order'!K931=\"\",\"\",'1. Order'!K931)","v":""},{"$f":"IF('1. Order'!M931=\"\",\"\",'1. Order'!M931)","v":""},null,null,{"$f":"'1. Order'!AW931","v":0},{"$f":"IF('1. Order'!AE931=\"\",\"\",'1. Order'!AE931)","v":""}]
[{"$f":"IF('1. Order'!B932=\"\",\"\",'1. Order'!B932)","v":""},{"$f":"IF('1. Order'!I932=\"\",\"\",'1. Order'!I932)","v":""},{"$f":"IF('1. Order'!J932=\"\",\"\",'1. Order'!J932)","v":""},{"$f":"IF('1. Order'!K932=\"\",\"\",'1. Order'!K932)","v":""},{"$f":"IF('1. Order'!M932=\"\",\"\",'1. Order'!M932)","v":""},null,null,{"$f":"'1. Order'!AW932","v":0},{"$f":"IF('1. Order'!AE932=\"\",\"\",'1. Order'!AE932)","v":""}]
[{"$f":"IF('1. Order'!B933=\"\",\"\",'1. Order'!B933)","v":""},{"$f":"IF('1. Order'!I933=\"\",\"\",'1. Order'!I933)","v":""},{"$f":"IF('1. Order'!J933=\"\",\"\",'1. Order'!J933)","v":""},{"$f":"IF('1. Order'!K933=\"\",\"\",'1. Order'!K933)","v":""},{"$f":"IF('1. Order'!M933=\"\",\"\",'1. Order'!M933)","v":""},null,null,{"$f":"'1. Order'!AW933","v":0},{"$f":"IF('1. Order'!AE933=\"\",\"\",'1. Order'!AE933)","v":""}]
[{"$f":"IF('1. Order'!B934=\"\",\"\",'1. Order'!B934)","v":""},{"$f":"IF('1. Order'!I934=\"\",\"\",'1. Order'!I934)","v":""},{"$f":"IF('1. Order'!J934=\"\",\"\",'1. Order'!J934)","v":""},{"$f":"IF('1. Order'!K934=\"\",\"\",'1. Order'!K934)","v":""},{"$f":"IF('1. Order'!M934=\"\",\"\",'1. Order'!M934)","v":""},null,null,{"$f":"'1. Order'!AW934","v":0},{"$f":"IF('1. Order'!AE934=\"\",\"\",'1. Order'!AE934)","v":""}]
[{"$f":"IF('1. Order'!B935=\"\",\"\",'1. Order'!B935)","v":""},{"$f":"IF('1. Order'!I935=\"\",\"\",'1. Order'!I935)","v":""},{"$f":"IF('1. Order'!J935=\"\",\"\",'1. Order'!J935)","v":""},{"$f":"IF('1. Order'!K935=\"\",\"\",'1. Order'!K935)","v":""},{"$f":"IF('1. Order'!M935=\"\",\"\",'1. Order'!M935)","v":""},null,null,{"$f":"'1. Order'!AW935","v":0},{"$f":"IF('1. Order'!AE935=\"\",\"\",'1. Order'!AE935)","v":""}]
[{"$f":"IF('1. Order'!B936=\"\",\"\",'1. Order'!B936)","v":""},{"$f":"IF('1. Order'!I936=\"\",\"\",'1. Order'!I936)","v":""},{"$f":"IF('1. Order'!J936=\"\",\"\",'1. Order'!J936)","v":""},{"$f":"IF('1. Order'!K936=\"\",\"\",'1. Order'!K936)","v":""},{"$f":"IF('1. Order'!M936=\"\",\"\",'1. Order'!M936)","v":""},null,null,{"$f":"'1. Order'!AW936","v":0},{"$f":"IF('1. Order'!AE936=\"\",\"\",'1. Order'!AE936)","v":""}]
[{"$f":"IF('1. Order'!B937=\"\",\"\",'1. Order'!B937)","v":""},{"$f":"IF('1. Order'!I937=\"\",\"\",'1. Order'!I937)","v":""},{"$f":"IF('1. Order'!J937=\"\",\"\",'1. Order'!J937)","v":""},{"$f":"IF('1. Order'!K937=\"\",\"\",'1. Order'!K937)","v":""},{"$f":"IF('1. Order'!M937=\"\",\"\",'1. Order'!M937)","v":""},null,null,{"$f":"'1. Order'!AW937","v":0},{"$f":"IF('1. Order'!AE937=\"\",\"\",'1. Order'!AE937)","v":""}]
[{"$f":"IF('1. Order'!B938=\"\",\"\",'1. Order'!B938)","v":""},{"$f":"IF('1. Order'!I938=\"\",\"\",'1. Order'!I938)","v":""},{"$f":"IF('1. Order'!J938=\"\",\"\",'1. Order'!J938)","v":""},{"$f":"IF('1. Order'!K938=\"\",\"\",'1. Order'!K938)","v":""},{"$f":"IF('1. Order'!M938=\"\",\"\",'1. Order'!M938)","v":""},null,null,{"$f":"'1. Order'!AW938","v":0},{"$f":"IF('1. Order'!AE938=\"\",\"\",'1. Order'!AE938)","v":""}]
[{"$f":"IF('1. Order'!B939=\"\",\"\",'1. Order'!B939)","v":""},{"$f":"IF('1. Order'!I939=\"\",\"\",'1. Order'!I939)","v":""},{"$f":"IF('1. Order'!J939=\"\",\"\",'1. Order'!J939)","v":""},{"$f":"IF('1. Order'!K939=\"\",\"\",'1. Order'!K939)","v":""},{"$f":"IF('1. Order'!M939=\"\",\"\",'1. Order'!M939)","v":""},null,null,{"$f":"'1. Order'!AW939","v":0},{"$f":"IF('1. Order'!AE939=\"\",\"\",'1. Order'!AE939)","v":""}]
[{"$f":"IF('1. Order'!B940=\"\",\"\",'1. Order'!B940)","v":""},{"$f":"IF('1. Order'!I940=\"\",\"\",'1. Order'!I940)","v":""},{"$f":"IF('1. Order'!J940=\"\",\"\",'1. Order'!J940)","v":""},{"$f":"IF('1. Order'!K940=\"\",\"\",'1. Order'!K940)","v":""},{"$f":"IF('1. Order'!M940=\"\",\"\",'1. Order'!M940)","v":""},null,null,{"$f":"'1. Order'!AW940","v":0},{"$f":"IF('1. Order'!AE940=\"\",\"\",'1. Order'!AE940)","v":""}]
[{"$f":"IF('1. Order'!B941=\"\",\"\",'1. Order'!B941)","v":""},{"$f":"IF('1. Order'!I941=\"\",\"\",'1. Order'!I941)","v":""},{"$f":"IF('1. Order'!J941=\"\",\"\",'1. Order'!J941)","v":""},{"$f":"IF('1. Order'!K941=\"\",\"\",'1. Order'!K941)","v":""},{"$f":"IF('1. Order'!M941=\"\",\"\",'1. Order'!M941)","v":""},null,null,{"$f":"'1. Order'!AW941","v":0},{"$f":"IF('1. Order'!AE941=\"\",\"\",'1. Order'!AE941)","v":""}]
[{"$f":"IF('1. Order'!B942=\"\",\"\",'1. Order'!B942)","v":""},{"$f":"IF('1. Order'!I942=\"\",\"\",'1. Order'!I942)","v":""},{"$f":"IF('1. Order'!J942=\"\",\"\",'1. Order'!J942)","v":""},{"$f":"IF('1. Order'!K942=\"\",\"\",'1. Order'!K942)","v":""},{"$f":"IF('1. Order'!M942=\"\",\"\",'1. Order'!M942)","v":""},null,null,{"$f":"'1. Order'!AW942","v":0},{"$f":"IF('1. Order'!AE942=\"\",\"\",'1. Order'!AE942)","v":""}]
[{"$f":"IF('1. Order'!B943=\"\",\"\",'1. Order'!B943)","v":""},{"$f":"IF('1. Order'!I943=\"\",\"\",'1. Order'!I943)","v":""},{"$f":"IF('1. Order'!J943=\"\",\"\",'1. Order'!J943)","v":""},{"$f":"IF('1. Order'!K943=\"\",\"\",'1. Order'!K943)","v":""},{"$f":"IF('1. Order'!M943=\"\",\"\",'1. Order'!M943)","v":""},null,null,{"$f":"'1. Order'!AW943","v":0},{"$f":"IF('1. Order'!AE943=\"\",\"\",'1. Order'!AE943)","v":""}]
[{"$f":"IF('1. Order'!B944=\"\",\"\",'1. Order'!B944)","v":""},{"$f":"IF('1. Order'!I944=\"\",\"\",'1. Order'!I944)","v":""},{"$f":"IF('1. Order'!J944=\"\",\"\",'1. Order'!J944)","v":""},{"$f":"IF('1. Order'!K944=\"\",\"\",'1. Order'!K944)","v":""},{"$f":"IF('1. Order'!M944=\"\",\"\",'1. Order'!M944)","v":""},null,null,{"$f":"'1. Order'!AW944","v":0},{"$f":"IF('1. Order'!AE944=\"\",\"\",'1. Order'!AE944)","v":""}]
[{"$f":"IF('1. Order'!B945=\"\",\"\",'1. Order'!B945)","v":""},{"$f":"IF('1. Order'!I945=\"\",\"\",'1. Order'!I945)","v":""},{"$f":"IF('1. Order'!J945=\"\",\"\",'1. Order'!J945)","v":""},{"$f":"IF('1. Order'!K945=\"\",\"\",'1. Order'!K945)","v":""},{"$f":"IF('1. Order'!M945=\"\",\"\",'1. Order'!M945)","v":""},null,null,{"$f":"'1. Order'!AW945","v":0},{"$f":"IF('1. Order'!AE945=\"\",\"\",'1. Order'!AE945)","v":""}]
[{"$f":"IF('1. Order'!B946=\"\",\"\",'1. Order'!B946)","v":""},{"$f":"IF('1. Order'!I946=\"\",\"\",'1. Order'!I946)","v":""},{"$f":"IF('1. Order'!J946=\"\",\"\",'1. Order'!J946)","v":""},{"$f":"IF('1. Order'!K946=\"\",\"\",'1. Order'!K946)","v":""},{"$f":"IF('1. Order'!M946=\"\",\"\",'1. Order'!M946)","v":""},null,null,{"$f":"'1. Order'!AW946","v":0},{"$f":"IF('1. Order'!AE946=\"\",\"\",'1. Order'!AE946)","v":""}]
[{"$f":"IF('1. Order'!B947=\"\",\"\",'1. Order'!B947)","v":""},{"$f":"IF('1. Order'!I947=\"\",\"\",'1. Order'!I947)","v":""},{"$f":"IF('1. Order'!J947=\"\",\"\",'1. Order'!J947)","v":""},{"$f":"IF('1. Order'!K947=\"\",\"\",'1. Order'!K947)","v":""},{"$f":"IF('1. Order'!M947=\"\",\"\",'1. Order'!M947)","v":""},null,null,{"$f":"'1. Order'!AW947","v":0},{"$f":"IF('1. Order'!AE947=\"\",\"\",'1. Order'!AE947)","v":""}]
[{"$f":"IF('1. Order'!B948=\"\",\"\",'1. Order'!B948)","v":""},{"$f":"IF('1. Order'!I948=\"\",\"\",'1. Order'!I948)","v":""},{"$f":"IF('1. Order'!J948=\"\",\"\",'1. Order'!J948)","v":""},{"$f":"IF('1. Order'!K948=\"\",\"\",'1. Order'!K948)","v":""},{"$f":"IF('1. Order'!M948=\"\",\"\",'1. Order'!M948)","v":""},null,null,{"$f":"'1. Order'!AW948","v":0},{"$f":"IF('1. Order'!AE948=\"\",\"\",'1. Order'!AE948)","v":""}]
[{"$f":"IF('1. Order'!B949=\"\",\"\",'1. Order'!B949)","v":""},{"$f":"IF('1. Order'!I949=\"\",\"\",'1. Order'!I949)","v":""},{"$f":"IF('1. Order'!J949=\"\",\"\",'1. Order'!J949)","v":""},{"$f":"IF('1. Order'!K949=\"\",\"\",'1. Order'!K949)","v":""},{"$f":"IF('1. Order'!M949=\"\",\"\",'1. Order'!M949)","v":""},null,null,{"$f":"'1. Order'!AW949","v":0},{"$f":"IF('1. Order'!AE949=\"\",\"\",'1. Order'!AE949)","v":""}]
[{"$f":"IF('1. Order'!B950=\"\",\"\",'1. Order'!B950)","v":""},{"$f":"IF('1. Order'!I950=\"\",\"\",'1. Order'!I950)","v":""},{"$f":"IF('1. Order'!J950=\"\",\"\",'1. Order'!J950)","v":""},{"$f":"IF('1. Order'!K950=\"\",\"\",'1. Order'!K950)","v":""},{"$f":"IF('1. Order'!M950=\"\",\"\",'1. Order'!M950)","v":""},null,null,{"$f":"'1. Order'!AW950","v":0},{"$f":"IF('1. Order'!AE950=\"\",\"\",'1. Order'!AE950)","v":""}]
[{"$f":"IF('1. Order'!B951=\"\",\"\",'1. Order'!B951)","v":""},{"$f":"IF('1. Order'!I951=\"\",\"\",'1. Order'!I951)","v":""},{"$f":"IF('1. Order'!J951=\"\",\"\",'1. Order'!J951)","v":""},{"$f":"IF('1. Order'!K951=\"\",\"\",'1. Order'!K951)","v":""},{"$f":"IF('1. Order'!M951=\"\",\"\",'1. Order'!M951)","v":""},null,null,{"$f":"'1. Order'!AW951","v":0},{"$f":"IF('1. Order'!AE951=\"\",\"\",'1. Order'!AE951)","v":""}]
[{"$f":"IF('1. Order'!B952=\"\",\"\",'1. Order'!B952)","v":""},{"$f":"IF('1. Order'!I952=\"\",\"\",'1. Order'!I952)","v":""},{"$f":"IF('1. Order'!J952=\"\",\"\",'1. Order'!J952)","v":""},{"$f":"IF('1. Order'!K952=\"\",\"\",'1. Order'!K952)","v":""},{"$f":"IF('1. Order'!M952=\"\",\"\",'1. Order'!M952)","v":""},null,null,{"$f":"'1. Order'!AW952","v":0},{"$f":"IF('1. Order'!AE952=\"\",\"\",'1. Order'!AE952)","v":""}]
[{"$f":"IF('1. Order'!B953=\"\",\"\",'1. Order'!B953)","v":""},{"$f":"IF('1. Order'!I953=\"\",\"\",'1. Order'!I953)","v":""},{"$f":"IF('1. Order'!J953=\"\",\"\",'1. Order'!J953)","v":""},{"$f":"IF('1. Order'!K953=\"\",\"\",'1. Order'!K953)","v":""},{"$f":"IF('1. Order'!M953=\"\",\"\",'1. Order'!M953)","v":""},null,null,{"$f":"'1. Order'!AW953","v":0},{"$f":"IF('1. Order'!AE953=\"\",\"\",'1. Order'!AE953)","v":""}]
[{"$f":"IF('1. Order'!B954=\"\",\"\",'1. Order'!B954)","v":""},{"$f":"IF('1. Order'!I954=\"\",\"\",'1. Order'!I954)","v":""},{"$f":"IF('1. Order'!J954=\"\",\"\",'1. Order'!J954)","v":""},{"$f":"IF('1. Order'!K954=\"\",\"\",'1. Order'!K954)","v":""},{"$f":"IF('1. Order'!M954=\"\",\"\",'1. Order'!M954)","v":""},null,null,{"$f":"'1. Order'!AW954","v":0},{"$f":"IF('1. Order'!AE954=\"\",\"\",'1. Order'!AE954)","v":""}]
[{"$f":"IF('1. Order'!B955=\"\",\"\",'1. Order'!B955)","v":""},{"$f":"IF('1. Order'!I955=\"\",\"\",'1. Order'!I955)","v":""},{"$f":"IF('1. Order'!J955=\"\",\"\",'1. Order'!J955)","v":""},{"$f":"IF('1. Order'!K955=\"\",\"\",'1. Order'!K955)","v":""},{"$f":"IF('1. Order'!M955=\"\",\"\",'1. Order'!M955)","v":""},null,null,{"$f":"'1. Order'!AW955","v":0},{"$f":"IF('1. Order'!AE955=\"\",\"\",'1. Order'!AE955)","v":""}]
[{"$f":"IF('1. Order'!B956=\"\",\"\",'1. Order'!B956)","v":""},{"$f":"IF('1. Order'!I956=\"\",\"\",'1. Order'!I956)","v":""},{"$f":"IF('1. Order'!J956=\"\",\"\",'1. Order'!J956)","v":""},{"$f":"IF('1. Order'!K956=\"\",\"\",'1. Order'!K956)","v":""},{"$f":"IF('1. Order'!M956=\"\",\"\",'1. Order'!M956)","v":""},null,null,{"$f":"'1. Order'!AW956","v":0},{"$f":"IF('1. Order'!AE956=\"\",\"\",'1. Order'!AE956)","v":""}]
[{"$f":"IF('1. Order'!B957=\"\",\"\",'1. Order'!B957)","v":""},{"$f":"IF('1. Order'!I957=\"\",\"\",'1. Order'!I957)","v":""},{"$f":"IF('1. Order'!J957=\"\",\"\",'1. Order'!J957)","v":""},{"$f":"IF('1. Order'!K957=\"\",\"\",'1. Order'!K957)","v":""},{"$f":"IF('1. Order'!M957=\"\",\"\",'1. Order'!M957)","v":""},null,null,{"$f":"'1. Order'!AW957","v":0},{"$f":"IF('1. Order'!AE957=\"\",\"\",'1. Order'!AE957)","v":""}]
[{"$f":"IF('1. Order'!B958=\"\",\"\",'1. Order'!B958)","v":""},{"$f":"IF('1. Order'!I958=\"\",\"\",'1. Order'!I958)","v":""},{"$f":"IF('1. Order'!J958=\"\",\"\",'1. Order'!J958)","v":""},{"$f":"IF('1. Order'!K958=\"\",\"\",'1. Order'!K958)","v":""},{"$f":"IF('1. Order'!M958=\"\",\"\",'1. Order'!M958)","v":""},null,null,{"$f":"'1. Order'!AW958","v":0},{"$f":"IF('1. Order'!AE958=\"\",\"\",'1. Order'!AE958)","v":""}]
[{"$f":"IF('1. Order'!B959=\"\",\"\",'1. Order'!B959)","v":""},{"$f":"IF('1. Order'!I959=\"\",\"\",'1. Order'!I959)","v":""},{"$f":"IF('1. Order'!J959=\"\",\"\",'1. Order'!J959)","v":""},{"$f":"IF('1. Order'!K959=\"\",\"\",'1. Order'!K959)","v":""},{"$f":"IF('1. Order'!M959=\"\",\"\",'1. Order'!M959)","v":""},null,null,{"$f":"'1. Order'!AW959","v":0},{"$f":"IF('1. Order'!AE959=\"\",\"\",'1. Order'!AE959)","v":""}]
[{"$f":"IF('1. Order'!B960=\"\",\"\",'1. Order'!B960)","v":""},{"$f":"IF('1. Order'!I960=\"\",\"\",'1. Order'!I960)","v":""},{"$f":"IF('1. Order'!J960=\"\",\"\",'1. Order'!J960)","v":""},{"$f":"IF('1. Order'!K960=\"\",\"\",'1. Order'!K960)","v":""},{"$f":"IF('1. Order'!M960=\"\",\"\",'1. Order'!M960)","v":""},null,null,{"$f":"'1. Order'!AW960","v":0},{"$f":"IF('1. Order'!AE960=\"\",\"\",'1. Order'!AE960)","v":""}]
[{"$f":"IF('1. Order'!B961=\"\",\"\",'1. Order'!B961)","v":""},{"$f":"IF('1. Order'!I961=\"\",\"\",'1. Order'!I961)","v":""},{"$f":"IF('1. Order'!J961=\"\",\"\",'1. Order'!J961)","v":""},{"$f":"IF('1. Order'!K961=\"\",\"\",'1. Order'!K961)","v":""},{"$f":"IF('1. Order'!M961=\"\",\"\",'1. Order'!M961)","v":""},null,null,{"$f":"'1. Order'!AW961","v":0},{"$f":"IF('1. Order'!AE961=\"\",\"\",'1. Order'!AE961)","v":""}]
[{"$f":"IF('1. Order'!B962=\"\",\"\",'1. Order'!B962)","v":""},{"$f":"IF('1. Order'!I962=\"\",\"\",'1. Order'!I962)","v":""},{"$f":"IF('1. Order'!J962=\"\",\"\",'1. Order'!J962)","v":""},{"$f":"IF('1. Order'!K962=\"\",\"\",'1. Order'!K962)","v":""},{"$f":"IF('1. Order'!M962=\"\",\"\",'1. Order'!M962)","v":""},null,null,{"$f":"'1. Order'!AW962","v":0},{"$f":"IF('1. Order'!AE962=\"\",\"\",'1. Order'!AE962)","v":""}]
[{"$f":"IF('1. Order'!B963=\"\",\"\",'1. Order'!B963)","v":""},{"$f":"IF('1. Order'!I963=\"\",\"\",'1. Order'!I963)","v":""},{"$f":"IF('1. Order'!J963=\"\",\"\",'1. Order'!J963)","v":""},{"$f":"IF('1. Order'!K963=\"\",\"\",'1. Order'!K963)","v":""},{"$f":"IF('1. Order'!M963=\"\",\"\",'1. Order'!M963)","v":""},null,null,{"$f":"'1. Order'!AW963","v":0},{"$f":"IF('1. Order'!AE963=\"\",\"\",'1. Order'!AE963)","v":""}]
[{"$f":"IF('1. Order'!B964=\"\",\"\",'1. Order'!B964)","v":""},{"$f":"IF('1. Order'!I964=\"\",\"\",'1. Order'!I964)","v":""},{"$f":"IF('1. Order'!J964=\"\",\"\",'1. Order'!J964)","v":""},{"$f":"IF('1. Order'!K964=\"\",\"\",'1. Order'!K964)","v":""},{"$f":"IF('1. Order'!M964=\"\",\"\",'1. Order'!M964)","v":""},null,null,{"$f":"'1. Order'!AW964","v":0},{"$f":"IF('1. Order'!AE964=\"\",\"\",'1. Order'!AE964)","v":""}]
[{"$f":"IF('1. Order'!B965=\"\",\"\",'1. Order'!B965)","v":""},{"$f":"IF('1. Order'!I965=\"\",\"\",'1. Order'!I965)","v":""},{"$f":"IF('1. Order'!J965=\"\",\"\",'1. Order'!J965)","v":""},{"$f":"IF('1. Order'!K965=\"\",\"\",'1. Order'!K965)","v":""},{"$f":"IF('1. Order'!M965=\"\",\"\",'1. Order'!M965)","v":""},null,null,{"$f":"'1. Order'!AW965","v":0},{"$f":"IF('1. Order'!AE965=\"\",\"\",'1. Order'!AE965)","v":""}]
[{"$f":"IF('1. Order'!B966=\"\",\"\",'1. Order'!B966)","v":""},{"$f":"IF('1. Order'!I966=\"\",\"\",'1. Order'!I966)","v":""},{"$f":"IF('1. Order'!J966=\"\",\"\",'1. Order'!J966)","v":""},{"$f":"IF('1. Order'!K966=\"\",\"\",'1. Order'!K966)","v":""},{"$f":"IF('1. Order'!M966=\"\",\"\",'1. Order'!M966)","v":""},null,null,{"$f":"'1. Order'!AW966","v":0},{"$f":"IF('1. Order'!AE966=\"\",\"\",'1. Order'!AE966)","v":""}]
[{"$f":"IF('1. Order'!B967=\"\",\"\",'1. Order'!B967)","v":""},{"$f":"IF('1. Order'!I967=\"\",\"\",'1. Order'!I967)","v":""},{"$f":"IF('1. Order'!J967=\"\",\"\",'1. Order'!J967)","v":""},{"$f":"IF('1. Order'!K967=\"\",\"\",'1. Order'!K967)","v":""},{"$f":"IF('1. Order'!M967=\"\",\"\",'1. Order'!M967)","v":""},null,null,{"$f":"'1. Order'!AW967","v":0},{"$f":"IF('1. Order'!AE967=\"\",\"\",'1. Order'!AE967)","v":""}]
[{"$f":"IF('1. Order'!B968=\"\",\"\",'1. Order'!B968)","v":""},{"$f":"IF('1. Order'!I968=\"\",\"\",'1. Order'!I968)","v":""},{"$f":"IF('1. Order'!J968=\"\",\"\",'1. Order'!J968)","v":""},{"$f":"IF('1. Order'!K968=\"\",\"\",'1. Order'!K968)","v":""},{"$f":"IF('1. Order'!M968=\"\",\"\",'1. Order'!M968)","v":""},null,null,{"$f":"'1. Order'!AW968","v":0},{"$f":"IF('1. Order'!AE968=\"\",\"\",'1. Order'!AE968)","v":""}]
[{"$f":"IF('1. Order'!B969=\"\",\"\",'1. Order'!B969)","v":""},{"$f":"IF('1. Order'!I969=\"\",\"\",'1. Order'!I969)","v":""},{"$f":"IF('1. Order'!J969=\"\",\"\",'1. Order'!J969)","v":""},{"$f":"IF('1. Order'!K969=\"\",\"\",'1. Order'!K969)","v":""},{"$f":"IF('1. Order'!M969=\"\",\"\",'1. Order'!M969)","v":""},null,null,{"$f":"'1. Order'!AW969","v":0},{"$f":"IF('1. Order'!AE969=\"\",\"\",'1. Order'!AE969)","v":""}]
[{"$f":"IF('1. Order'!B970=\"\",\"\",'1. Order'!B970)","v":""},{"$f":"IF('1. Order'!I970=\"\",\"\",'1. Order'!I970)","v":""},{"$f":"IF('1. Order'!J970=\"\",\"\",'1. Order'!J970)","v":""},{"$f":"IF('1. Order'!K970=\"\",\"\",'1. Order'!K970)","v":""},{"$f":"IF('1. Order'!M970=\"\",\"\",'1. Order'!M970)","v":""},null,null,{"$f":"'1. Order'!AW970","v":0},{"$f":"IF('1. Order'!AE970=\"\",\"\",'1. Order'!AE970)","v":""}]
[{"$f":"IF('1. Order'!B971=\"\",\"\",'1. Order'!B971)","v":""},{"$f":"IF('1. Order'!I971=\"\",\"\",'1. Order'!I971)","v":""},{"$f":"IF('1. Order'!J971=\"\",\"\",'1. Order'!J971)","v":""},{"$f":"IF('1. Order'!K971=\"\",\"\",'1. Order'!K971)","v":""},{"$f":"IF('1. Order'!M971=\"\",\"\",'1. Order'!M971)","v":""},null,null,{"$f":"'1. Order'!AW971","v":0},{"$f":"IF('1. Order'!AE971=\"\",\"\",'1. Order'!AE971)","v":""}]
[{"$f":"IF('1. Order'!B972=\"\",\"\",'1. Order'!B972)","v":""},{"$f":"IF('1. Order'!I972=\"\",\"\",'1. Order'!I972)","v":""},{"$f":"IF('1. Order'!J972=\"\",\"\",'1. Order'!J972)","v":""},{"$f":"IF('1. Order'!K972=\"\",\"\",'1. Order'!K972)","v":""},{"$f":"IF('1. Order'!M972=\"\",\"\",'1. Order'!M972)","v":""},null,null,{"$f":"'1. Order'!AW972","v":0},{"$f":"IF('1. Order'!AE972=\"\",\"\",'1. Order'!AE972)","v":""}]
[{"$f":"IF('1. Order'!B973=\"\",\"\",'1. Order'!B973)","v":""},{"$f":"IF('1. Order'!I973=\"\",\"\",'1. Order'!I973)","v":""},{"$f":"IF('1. Order'!J973=\"\",\"\",'1. Order'!J973)","v":""},{"$f":"IF('1. Order'!K973=\"\",\"\",'1. Order'!K973)","v":""},{"$f":"IF('1. Order'!M973=\"\",\"\",'1. Order'!M973)","v":""},null,null,{"$f":"'1. Order'!AW973","v":0},{"$f":"IF('1. Order'!AE973=\"\",\"\",'1. Order'!AE973)","v":""}]
[{"$f":"IF('1. Order'!B974=\"\",\"\",'1. Order'!B974)","v":""},{"$f":"IF('1. Order'!I974=\"\",\"\",'1. Order'!I974)","v":""},{"$f":"IF('1. Order'!J974=\"\",\"\",'1. Order'!J974)","v":""},{"$f":"IF('1. Order'!K974=\"\",\"\",'1. Order'!K974)","v":""},{"$f":"IF('1. Order'!M974=\"\",\"\",'1. Order'!M974)","v":""},null,null,{"$f":"'1. Order'!AW974","v":0},{"$f":"IF('1. Order'!AE974=\"\",\"\",'1. Order'!AE974)","v":""}]
[{"$f":"IF('1. Order'!B975=\"\",\"\",'1. Order'!B975)","v":""},{"$f":"IF('1. Order'!I975=\"\",\"\",'1. Order'!I975)","v":""},{"$f":"IF('1. Order'!J975=\"\",\"\",'1. Order'!J975)","v":""},{"$f":"IF('1. Order'!K975=\"\",\"\",'1. Order'!K975)","v":""},{"$f":"IF('1. Order'!M975=\"\",\"\",'1. Order'!M975)","v":""},null,null,{"$f":"'1. Order'!AW975","v":0},{"$f":"IF('1. Order'!AE975=\"\",\"\",'1. Order'!AE975)","v":""}]
[{"$f":"IF('1. Order'!B976=\"\",\"\",'1. Order'!B976)","v":""},{"$f":"IF('1. Order'!I976=\"\",\"\",'1. Order'!I976)","v":""},{"$f":"IF('1. Order'!J976=\"\",\"\",'1. Order'!J976)","v":""},{"$f":"IF('1. Order'!K976=\"\",\"\",'1. Order'!K976)","v":""},{"$f":"IF('1. Order'!M976=\"\",\"\",'1. Order'!M976)","v":""},null,null,{"$f":"'1. Order'!AW976","v":0},{"$f":"IF('1. Order'!AE976=\"\",\"\",'1. Order'!AE976)","v":""}]
[{"$f":"IF('1. Order'!B977=\"\",\"\",'1. Order'!B977)","v":""},{"$f":"IF('1. Order'!I977=\"\",\"\",'1. Order'!I977)","v":""},{"$f":"IF('1. Order'!J977=\"\",\"\",'1. Order'!J977)","v":""},{"$f":"IF('1. Order'!K977=\"\",\"\",'1. Order'!K977)","v":""},{"$f":"IF('1. Order'!M977=\"\",\"\",'1. Order'!M977)","v":""},null,null,{"$f":"'1. Order'!AW977","v":0},{"$f":"IF('1. Order'!AE977=\"\",\"\",'1. Order'!AE977)","v":""}]
[{"$f":"IF('1. Order'!B978=\"\",\"\",'1. Order'!B978)","v":""},{"$f":"IF('1. Order'!I978=\"\",\"\",'1. Order'!I978)","v":""},{"$f":"IF('1. Order'!J978=\"\",\"\",'1. Order'!J978)","v":""},{"$f":"IF('1. Order'!K978=\"\",\"\",'1. Order'!K978)","v":""},{"$f":"IF('1. Order'!M978=\"\",\"\",'1. Order'!M978)","v":""},null,null,{"$f":"'1. Order'!AW978","v":0},{"$f":"IF('1. Order'!AE978=\"\",\"\",'1. Order'!AE978)","v":""}]
[{"$f":"IF('1. Order'!B979=\"\",\"\",'1. Order'!B979)","v":""},{"$f":"IF('1. Order'!I979=\"\",\"\",'1. Order'!I979)","v":""},{"$f":"IF('1. Order'!J979=\"\",\"\",'1. Order'!J979)","v":""},{"$f":"IF('1. Order'!K979=\"\",\"\",'1. Order'!K979)","v":""},{"$f":"IF('1. Order'!M979=\"\",\"\",'1. Order'!M979)","v":""},null,null,{"$f":"'1. Order'!AW979","v":0},{"$f":"IF('1. Order'!AE979=\"\",\"\",'1. Order'!AE979)","v":""}]
[{"$f":"IF('1. Order'!B980=\"\",\"\",'1. Order'!B980)","v":""},{"$f":"IF('1. Order'!I980=\"\",\"\",'1. Order'!I980)","v":""},{"$f":"IF('1. Order'!J980=\"\",\"\",'1. Order'!J980)","v":""},{"$f":"IF('1. Order'!K980=\"\",\"\",'1. Order'!K980)","v":""},{"$f":"IF('1. Order'!M980=\"\",\"\",'1. Order'!M980)","v":""},null,null,{"$f":"'1. Order'!AW980","v":0},{"$f":"IF('1. Order'!AE980=\"\",\"\",'1. Order'!AE980)","v":""}]
[{"$f":"IF('1. Order'!B981=\"\",\"\",'1. Order'!B981)","v":""},{"$f":"IF('1. Order'!I981=\"\",\"\",'1. Order'!I981)","v":""},{"$f":"IF('1. Order'!J981=\"\",\"\",'1. Order'!J981)","v":""},{"$f":"IF('1. Order'!K981=\"\",\"\",'1. Order'!K981)","v":""},{"$f":"IF('1. Order'!M981=\"\",\"\",'1. Order'!M981)","v":""},null,null,{"$f":"'1. Order'!AW981","v":0},{"$f":"IF('1. Order'!AE981=\"\",\"\",'1. Order'!AE981)","v":""}]
[{"$f":"IF('1. Order'!B982=\"\",\"\",'1. Order'!B982)","v":""},{"$f":"IF('1. Order'!I982=\"\",\"\",'1. Order'!I982)","v":""},{"$f":"IF('1. Order'!J982=\"\",\"\",'1. Order'!J982)","v":""},{"$f":"IF('1. Order'!K982=\"\",\"\",'1. Order'!K982)","v":""},{"$f":"IF('1. Order'!M982=\"\",\"\",'1. Order'!M982)","v":""},null,null,{"$f":"'1. Order'!AW982","v":0},{"$f":"IF('1. Order'!AE982=\"\",\"\",'1. Order'!AE982)","v":""}]
[{"$f":"IF('1. Order'!B983=\"\",\"\",'1. Order'!B983)","v":""},{"$f":"IF('1. Order'!I983=\"\",\"\",'1. Order'!I983)","v":""},{"$f":"IF('1. Order'!J983=\"\",\"\",'1. Order'!J983)","v":""},{"$f":"IF('1. Order'!K983=\"\",\"\",'1. Order'!K983)","v":""},{"$f":"IF('1. Order'!M983=\"\",\"\",'1. Order'!M983)","v":""},null,null,{"$f":"'1. Order'!AW983","v":0},{"$f":"IF('1. Order'!AE983=\"\",\"\",'1. Order'!AE983)","v":""}]
[{"$f":"IF('1. Order'!B984=\"\",\"\",'1. Order'!B984)","v":""},{"$f":"IF('1. Order'!I984=\"\",\"\",'1. Order'!I984)","v":""},{"$f":"IF('1. Order'!J984=\"\",\"\",'1. Order'!J984)","v":""},{"$f":"IF('1. Order'!K984=\"\",\"\",'1. Order'!K984)","v":""},{"$f":"IF('1. Order'!M984=\"\",\"\",'1. Order'!M984)","v":""},null,null,{"$f":"'1. Order'!AW984","v":0},{"$f":"IF('1. Order'!AE984=\"\",\"\",'1. Order'!AE984)","v":""}]
[{"$f":"IF('1. Order'!B985=\"\",\"\",'1. Order'!B985)","v":""},{"$f":"IF('1. Order'!I985=\"\",\"\",'1. Order'!I985)","v":""},{"$f":"IF('1. Order'!J985=\"\",\"\",'1. Order'!J985)","v":""},{"$f":"IF('1. Order'!K985=\"\",\"\",'1. Order'!K985)","v":""},{"$f":"IF('1. Order'!M985=\"\",\"\",'1. Order'!M985)","v":""},null,null,{"$f":"'1. Order'!AW985","v":0},{"$f":"IF('1. Order'!AE985=\"\",\"\",'1. Order'!AE985)","v":""}]
[{"$f":"IF('1. Order'!B986=\"\",\"\",'1. Order'!B986)","v":""},{"$f":"IF('1. Order'!I986=\"\",\"\",'1. Order'!I986)","v":""},{"$f":"IF('1. Order'!J986=\"\",\"\",'1. Order'!J986)","v":""},{"$f":"IF('1. Order'!K986=\"\",\"\",'1. Order'!K986)","v":""},{"$f":"IF('1. Order'!M986=\"\",\"\",'1. Order'!M986)","v":""},null,null,{"$f":"'1. Order'!AW986","v":0},{"$f":"IF('1. Order'!AE986=\"\",\"\",'1. Order'!AE986)","v":""}]
[{"$f":"IF('1. Order'!B987=\"\",\"\",'1. Order'!B987)","v":""},{"$f":"IF('1. Order'!I987=\"\",\"\",'1. Order'!I987)","v":""},{"$f":"IF('1. Order'!J987=\"\",\"\",'1. Order'!J987)","v":""},{"$f":"IF('1. Order'!K987=\"\",\"\",'1. Order'!K987)","v":""},{"$f":"IF('1. Order'!M987=\"\",\"\",'1. Order'!M987)","v":""},null,null,{"$f":"'1. Order'!AW987","v":0},{"$f":"IF('1. Order'!AE987=\"\",\"\",'1. Order'!AE987)","v":""}]
[{"$f":"IF('1. Order'!B988=\"\",\"\",'1. Order'!B988)","v":""},{"$f":"IF('1. Order'!I988=\"\",\"\",'1. Order'!I988)","v":""},{"$f":"IF('1. Order'!J988=\"\",\"\",'1. Order'!J988)","v":""},{"$f":"IF('1. Order'!K988=\"\",\"\",'1. Order'!K988)","v":""},{"$f":"IF('1. Order'!M988=\"\",\"\",'1. Order'!M988)","v":""},null,null,{"$f":"'1. Order'!AW988","v":0},{"$f":"IF('1. Order'!AE988=\"\",\"\",'1. Order'!AE988)","v":""}]
[{"$f":"IF('1. Order'!B989=\"\",\"\",'1. Order'!B989)","v":""},{"$f":"IF('1. Order'!I989=\"\",\"\",'1. Order'!I989)","v":""},{"$f":"IF('1. Order'!J989=\"\",\"\",'1. Order'!J989)","v":""},{"$f":"IF('1. Order'!K989=\"\",\"\",'1. Order'!K989)","v":""},{"$f":"IF('1. Order'!M989=\"\",\"\",'1. Order'!M989)","v":""},null,null,{"$f":"'1. Order'!AW989","v":0},{"$f":"IF('1. Order'!AE989=\"\",\"\",'1. Order'!AE989)","v":""}]
[{"$f":"IF('1. Order'!B990=\"\",\"\",'1. Order'!B990)","v":""},{"$f":"IF('1. Order'!I990=\"\",\"\",'1. Order'!I990)","v":""},{"$f":"IF('1. Order'!J990=\"\",\"\",'1. Order'!J990)","v":""},{"$f":"IF('1. Order'!K990=\"\",\"\",'1. Order'!K990)","v":""},{"$f":"IF('1. Order'!M990=\"\",\"\",'1. Order'!M990)","v":""},null,null,{"$f":"'1. Order'!AW990","v":0},{"$f":"IF('1. Order'!AE990=\"\",\"\",'1. Order'!AE990)","v":""}]
[{"$f":"IF('1. Order'!B991=\"\",\"\",'1. Order'!B991)","v":""},{"$f":"IF('1. Order'!I991=\"\",\"\",'1. Order'!I991)","v":""},{"$f":"IF('1. Order'!J991=\"\",\"\",'1. Order'!J991)","v":""},{"$f":"IF('1. Order'!K991=\"\",\"\",'1. Order'!K991)","v":""},{"$f":"IF('1. Order'!M991=\"\",\"\",'1. Order'!M991)","v":""},null,null,{"$f":"'1. Order'!AW991","v":0},{"$f":"IF('1. Order'!AE991=\"\",\"\",'1. Order'!AE991)","v":""}]
[{"$f":"IF('1. Order'!B992=\"\",\"\",'1. Order'!B992)","v":""},{"$f":"IF('1. Order'!I992=\"\",\"\",'1. Order'!I992)","v":""},{"$f":"IF('1. Order'!J992=\"\",\"\",'1. Order'!J992)","v":""},{"$f":"IF('1. Order'!K992=\"\",\"\",'1. Order'!K992)","v":""},{"$f":"IF('1. Order'!M992=\"\",\"\",'1. Order'!M992)","v":""},null,null,{"$f":"'1. Order'!AW992","v":0},{"$f":"IF('1. Order'!AE992=\"\",\"\",'1. Order'!AE992)","v":""}]
[{"$f":"IF('1. Order'!B993=\"\",\"\",'1. Order'!B993)","v":""},{"$f":"IF('1. Order'!I993=\"\",\"\",'1. Order'!I993)","v":""},{"$f":"IF('1. Order'!J993=\"\",\"\",'1. Order'!J993)","v":""},{"$f":"IF('1. Order'!K993=\"\",\"\",'1. Order'!K993)","v":""},{"$f":"IF('1. Order'!M993=\"\",\"\",'1. Order'!M993)","v":""},null,null,{"$f":"'1. Order'!AW993","v":0},{"$f":"IF('1. Order'!AE993=\"\",\"\",'1. Order'!AE993)","v":""}]
[{"$f":"IF('1. Order'!B994=\"\",\"\",'1. Order'!B994)","v":""},{"$f":"IF('1. Order'!I994=\"\",\"\",'1. Order'!I994)","v":""},{"$f":"IF('1. Order'!J994=\"\",\"\",'1. Order'!J994)","v":""},{"$f":"IF('1. Order'!K994=\"\",\"\",'1. Order'!K994)","v":""},{"$f":"IF('1. Order'!M994=\"\",\"\",'1. Order'!M994)","v":""},null,null,{"$f":"'1. Order'!AW994","v":0},{"$f":"IF('1. Order'!AE994=\"\",\"\",'1. Order'!AE994)","v":""}]
[{"$f":"IF('1. Order'!B995=\"\",\"\",'1. Order'!B995)","v":""},{"$f":"IF('1. Order'!I995=\"\",\"\",'1. Order'!I995)","v":""},{"$f":"IF('1. Order'!J995=\"\",\"\",'1. Order'!J995)","v":""},{"$f":"IF('1. Order'!K995=\"\",\"\",'1. Order'!K995)","v":""},{"$f":"IF('1. Order'!M995=\"\",\"\",'1. Order'!M995)","v":""},null,null,{"$f":"'1. Order'!AW995","v":0},{"$f":"IF('1. Order'!AE995=\"\",\"\",'1. Order'!AE995)","v":""}]
[{"$f":"IF('1. Order'!B996=\"\",\"\",'1. Order'!B996)","v":""},{"$f":"IF('1. Order'!I996=\"\",\"\",'1. Order'!I996)","v":""},{"$f":"IF('1. Order'!J996=\"\",\"\",'1. Order'!J996)","v":""},{"$f":"IF('1. Order'!K996=\"\",\"\",'1. Order'!K996)","v":""},{"$f":"IF('1. Order'!M996=\"\",\"\",'1. Order'!M996)","v":""},null,null,{"$f":"'1. Order'!AW996","v":0},{"$f":"IF('1. Order'!AE996=\"\",\"\",'1. Order'!AE996)","v":""}]
[{"$f":"IF('1. Order'!B997=\"\",\"\",'1. Order'!B997)","v":""},{"$f":"IF('1. Order'!I997=\"\",\"\",'1. Order'!I997)","v":""},{"$f":"IF('1. Order'!J997=\"\",\"\",'1. Order'!J997)","v":""},{"$f":"IF('1. Order'!K997=\"\",\"\",'1. Order'!K997)","v":""},{"$f":"IF('1. Order'!M997=\"\",\"\",'1. Order'!M997)","v":""},null,null,{"$f":"'1. Order'!AW997","v":0},{"$f":"IF('1. Order'!AE997=\"\",\"\",'1. Order'!AE997)","v":""}]
[{"$f":"IF('1. Order'!B998=\"\",\"\",'1. Order'!B998)","v":""},{"$f":"IF('1. Order'!I998=\"\",\"\",'1. Order'!I998)","v":""},{"$f":"IF('1. Order'!J998=\"\",\"\",'1. Order'!J998)","v":""},{"$f":"IF('1. Order'!K998=\"\",\"\",'1. Order'!K998)","v":""},{"$f":"IF('1. Order'!M998=\"\",\"\",'1. Order'!M998)","v":""},null,null,{"$f":"'1. Order'!AW998","v":0},{"$f":"IF('1. Order'!AE998=\"\",\"\",'1. Order'!AE998)","v":""}]
[{"$f":"IF('1. Order'!B999=\"\",\"\",'1. Order'!B999)","v":""},{"$f":"IF('1. Order'!I999=\"\",\"\",'1. Order'!I999)","v":""},{"$f":"IF('1. Order'!J999=\"\",\"\",'1. Order'!J999)","v":""},{"$f":"IF('1. Order'!K999=\"\",\"\",'1. Order'!K999)","v":""},{"$f":"IF('1. Order'!M999=\"\",\"\",'1. Order'!M999)","v":""},null,null,{"$f":"'1. Order'!AW999","v":0},{"$f":"IF('1. Order'!AE999=\"\",\"\",'1. Order'!AE999)","v":""}]
[{"$f":"IF('1. Order'!B1000=\"\",\"\",'1. Order'!B1000)","v":""},{"$f":"IF('1. Order'!I1000=\"\",\"\",'1. Order'!I1000)","v":""},{"$f":"IF('1. Order'!J1000=\"\",\"\",'1. Order'!J1000)","v":""},{"$f":"IF('1. Order'!K1000=\"\",\"\",'1. Order'!K1000)","v":""},{"$f":"IF('1. Order'!M1000=\"\",\"\",'1. Order'!M1000)","v":""},null,null,{"$f":"'1. Order'!AW1000","v":0},{"$f":"IF('1. Order'!AE1000=\"\",\"\",'1. Order'!AE1000)","v":""}]
[{"$f":"IF('1. Order'!B1001=\"\",\"\",'1. Order'!B1001)","v":""},{"$f":"IF('1. Order'!I1001=\"\",\"\",'1. Order'!I1001)","v":""},{"$f":"IF('1. Order'!J1001=\"\",\"\",'1. Order'!J1001)","v":""},{"$f":"IF('1. Order'!K1001=\"\",\"\",'1. Order'!K1001)","v":""},{"$f":"IF('1. Order'!M1001=\"\",\"\",'1. Order'!M1001)","v":""},null,null,{"$f":"'1. Order'!AW1001","v":0},{"$f":"IF('1. Order'!AE1001=\"\",\"\",'1. Order'!AE1001)","v":""}]
[{"$f":"IF('1. Order'!B1002=\"\",\"\",'1. Order'!B1002)","v":""},{"$f":"IF('1. Order'!I1002=\"\",\"\",'1. Order'!I1002)","v":""},{"$f":"IF('1. Order'!J1002=\"\",\"\",'1. Order'!J1002)","v":""},{"$f":"IF('1. Order'!K1002=\"\",\"\",'1. Order'!K1002)","v":""},{"$f":"IF('1. Order'!M1002=\"\",\"\",'1. Order'!M1002)","v":""},null,null,{"$f":"'1. Order'!AW1002","v":0},{"$f":"IF('1. Order'!AE1002=\"\",\"\",'1. Order'!AE1002)","v":""}]
[{"$f":"IF('1. Order'!B1003=\"\",\"\",'1. Order'!B1003)","v":""},{"$f":"IF('1. Order'!I1003=\"\",\"\",'1. Order'!I1003)","v":""},{"$f":"IF('1. Order'!J1003=\"\",\"\",'1. Order'!J1003)","v":""},{"$f":"IF('1. Order'!K1003=\"\",\"\",'1. Order'!K1003)","v":""},{"$f":"IF('1. Order'!M1003=\"\",\"\",'1. Order'!M1003)","v":""},null,null,{"$f":"'1. Order'!AW1003","v":0},{"$f":"IF('1. Order'!AE1003=\"\",\"\",'1. Order'!AE1003)","v":""}]
[{"$f":"IF('1. Order'!B1004=\"\",\"\",'1. Order'!B1004)","v":""},{"$f":"IF('1. Order'!I1004=\"\",\"\",'1. Order'!I1004)","v":""},{"$f":"IF('1. Order'!J1004=\"\",\"\",'1. Order'!J1004)","v":""},{"$f":"IF('1. Order'!K1004=\"\",\"\",'1. Order'!K1004)","v":""},{"$f":"IF('1. Order'!M1004=\"\",\"\",'1. Order'!M1004)","v":""},null,null,{"$f":"'1. Order'!AW1004","v":0},{"$f":"IF('1. Order'!AE1004=\"\",\"\",'1. Order'!AE1004)","v":""}]
[{"$f":"IF('1. Order'!B1005=\"\",\"\",'1. Order'!B1005)","v":""},{"$f":"IF('1. Order'!I1005=\"\",\"\",'1. Order'!I1005)","v":""},{"$f":"IF('1. Order'!J1005=\"\",\"\",'1. Order'!J1005)","v":""},{"$f":"IF('1. Order'!K1005=\"\",\"\",'1. Order'!K1005)","v":""},{"$f":"IF('1. Order'!M1005=\"\",\"\",'1. Order'!M1005)","v":""},null,null,{"$f":"'1. Order'!AW1005","v":0},{"$f":"IF('1. Order'!AE1005=\"\",\"\",'1. Order'!AE1005)","v":""}]
[{"$f":"IF('1. Order'!B1006=\"\",\"\",'1. Order'!B1006)","v":""},{"$f":"IF('1. Order'!I1006=\"\",\"\",'1. Order'!I1006)","v":""},{"$f":"IF('1. Order'!J1006=\"\",\"\",'1. Order'!J1006)","v":""},{"$f":"IF('1. Order'!K1006=\"\",\"\",'1. Order'!K1006)","v":""},{"$f":"IF('1. Order'!M1006=\"\",\"\",'1. Order'!M1006)","v":""},null,null,{"$f":"'1. Order'!AW1006","v":0},{"$f":"IF('1. Order'!AE1006=\"\",\"\",'1. Order'!AE1006)","v":""}]
[{"$f":"IF('1. Order'!B1007=\"\",\"\",'1. Order'!B1007)","v":""},{"$f":"IF('1. Order'!I1007=\"\",\"\",'1. Order'!I1007)","v":""},{"$f":"IF('1. Order'!J1007=\"\",\"\",'1. Order'!J1007)","v":""},{"$f":"IF('1. Order'!K1007=\"\",\"\",'1. Order'!K1007)","v":""},{"$f":"IF('1. Order'!M1007=\"\",\"\",'1. Order'!M1007)","v":""},null,null,{"$f":"'1. Order'!AW1007","v":0},{"$f":"IF('1. Order'!AE1007=\"\",\"\",'1. Order'!AE1007)","v":""}]
[{"$f":"IF('1. Order'!B1008=\"\",\"\",'1. Order'!B1008)","v":""},{"$f":"IF('1. Order'!I1008=\"\",\"\",'1. Order'!I1008)","v":""},{"$f":"IF('1. Order'!J1008=\"\",\"\",'1. Order'!J1008)","v":""},{"$f":"IF('1. Order'!K1008=\"\",\"\",'1. Order'!K1008)","v":""},{"$f":"IF('1. Order'!M1008=\"\",\"\",'1. Order'!M1008)","v":""},null,null,{"$f":"'1. Order'!AW1008","v":0},{"$f":"IF('1. Order'!AE1008=\"\",\"\",'1. Order'!AE1008)","v":""}]
[{"$f":"IF('1. Order'!B1009=\"\",\"\",'1. Order'!B1009)","v":""},{"$f":"IF('1. Order'!I1009=\"\",\"\",'1. Order'!I1009)","v":""},{"$f":"IF('1. Order'!J1009=\"\",\"\",'1. Order'!J1009)","v":""},{"$f":"IF('1. Order'!K1009=\"\",\"\",'1. Order'!K1009)","v":""},{"$f":"IF('1. Order'!M1009=\"\",\"\",'1. Order'!M1009)","v":""},null,null,{"$f":"'1. Order'!AW1009","v":0},{"$f":"IF('1. Order'!AE1009=\"\",\"\",'1. Order'!AE1009)","v":""}]
[{"$f":"IF('1. Order'!B1010=\"\",\"\",'1. Order'!B1010)","v":""},{"$f":"IF('1. Order'!I1010=\"\",\"\",'1. Order'!I1010)","v":""},{"$f":"IF('1. Order'!J1010=\"\",\"\",'1. Order'!J1010)","v":""},{"$f":"IF('1. Order'!K1010=\"\",\"\",'1. Order'!K1010)","v":""},{"$f":"IF('1. Order'!M1010=\"\",\"\",'1. Order'!M1010)","v":""},null,null,{"$f":"'1. Order'!AW1010","v":0},{"$f":"IF('1. Order'!AE1010=\"\",\"\",'1. Order'!AE1010)","v":""}]
[{"$f":"IF('1. Order'!B1011=\"\",\"\",'1. Order'!B1011)","v":""},{"$f":"IF('1. Order'!I1011=\"\",\"\",'1. Order'!I1011)","v":""},{"$f":"IF('1. Order'!J1011=\"\",\"\",'1. Order'!J1011)","v":""},{"$f":"IF('1. Order'!K1011=\"\",\"\",'1. Order'!K1011)","v":""},{"$f":"IF('1. Order'!M1011=\"\",\"\",'1. Order'!M1011)","v":""},null,null,{"$f":"'1. Order'!AW1011","v":0},{"$f":"IF('1. Order'!AE1011=\"\",\"\",'1. Order'!AE1011)","v":""}]
[{"$f":"IF('1. Order'!B1012=\"\",\"\",'1. Order'!B1012)","v":""},{"$f":"IF('1. Order'!I1012=\"\",\"\",'1. Order'!I1012)","v":""},{"$f":"IF('1. Order'!J1012=\"\",\"\",'1. Order'!J1012)","v":""},{"$f":"IF('1. Order'!K1012=\"\",\"\",'1. Order'!K1012)","v":""},{"$f":"IF('1. Order'!M1012=\"\",\"\",'1. Order'!M1012)","v":""},null,null,{"$f":"'1. Order'!AW1012","v":0},{"$f":"IF('1. Order'!AE1012=\"\",\"\",'1. Order'!AE1012)","v":""}]
[{"$f":"IF('1. Order'!B1013=\"\",\"\",'1. Order'!B1013)","v":""},{"$f":"IF('1. Order'!I1013=\"\",\"\",'1. Order'!I1013)","v":""},{"$f":"IF('1. Order'!J1013=\"\",\"\",'1. Order'!J1013)","v":""},{"$f":"IF('1. Order'!K1013=\"\",\"\",'1. Order'!K1013)","v":""},{"$f":"IF('1. Order'!M1013=\"\",\"\",'1. Order'!M1013)","v":""},null,null,{"$f":"'1. Order'!AW1013","v":0},{"$f":"IF('1. Order'!AE1013=\"\",\"\",'1. Order'!AE1013)","v":""}]
[{"$f":"IF('1. Order'!B1014=\"\",\"\",'1. Order'!B1014)","v":""},{"$f":"IF('1. Order'!I1014=\"\",\"\",'1. Order'!I1014)","v":""},{"$f":"IF('1. Order'!J1014=\"\",\"\",'1. Order'!J1014)","v":""},{"$f":"IF('1. Order'!K1014=\"\",\"\",'1. Order'!K1014)","v":""},{"$f":"IF('1. Order'!M1014=\"\",\"\",'1. Order'!M1014)","v":""},null,null,{"$f":"'1. Order'!AW1014","v":0},{"$f":"IF('1. Order'!AE1014=\"\",\"\",'1. Order'!AE1014)","v":""}]
[{"$f":"IF('1. Order'!B1015=\"\",\"\",'1. Order'!B1015)","v":""},{"$f":"IF('1. Order'!I1015=\"\",\"\",'1. Order'!I1015)","v":""},{"$f":"IF('1. Order'!J1015=\"\",\"\",'1. Order'!J1015)","v":""},{"$f":"IF('1. Order'!K1015=\"\",\"\",'1. Order'!K1015)","v":""},{"$f":"IF('1. Order'!M1015=\"\",\"\",'1. Order'!M1015)","v":""},null,null,{"$f":"'1. Order'!AW1015","v":0},{"$f":"IF('1. Order'!AE1015=\"\",\"\",'1. Order'!AE1015)","v":""}]
[{"$f":"IF('1. Order'!B1016=\"\",\"\",'1. Order'!B1016)","v":""},{"$f":"IF('1. Order'!I1016=\"\",\"\",'1. Order'!I1016)","v":""},{"$f":"IF('1. Order'!J1016=\"\",\"\",'1. Order'!J1016)","v":""},{"$f":"IF('1. Order'!K1016=\"\",\"\",'1. Order'!K1016)","v":""},{"$f":"IF('1. Order'!M1016=\"\",\"\",'1. Order'!M1016)","v":""},null,null,{"$f":"'1. Order'!AW1016","v":0},{"$f":"IF('1. Order'!AE1016=\"\",\"\",'1. Order'!AE1016)","v":""}]
[{"$f":"IF('1. Order'!B1017=\"\",\"\",'1. Order'!B1017)","v":""},{"$f":"IF('1. Order'!I1017=\"\",\"\",'1. Order'!I1017)","v":""},{"$f":"IF('1. Order'!J1017=\"\",\"\",'1. Order'!J1017)","v":""},{"$f":"IF('1. Order'!K1017=\"\",\"\",'1. Order'!K1017)","v":""},{"$f":"IF('1. Order'!M1017=\"\",\"\",'1. Order'!M1017)","v":""},null,null,{"$f":"'1. Order'!AW1017","v":0},{"$f":"IF('1. Order'!AE1017=\"\",\"\",'1. Order'!AE1017)","v":""}]
[{"$f":"IF('1. Order'!B1018=\"\",\"\",'1. Order'!B1018)","v":""},{"$f":"IF('1. Order'!I1018=\"\",\"\",'1. Order'!I1018)","v":""},{"$f":"IF('1. Order'!J1018=\"\",\"\",'1. Order'!J1018)","v":""},{"$f":"IF('1. Order'!K1018=\"\",\"\",'1. Order'!K1018)","v":""},{"$f":"IF('1. Order'!M1018=\"\",\"\",'1. Order'!M1018)","v":""},null,null,{"$f":"'1. Order'!AW1018","v":0},{"$f":"IF('1. Order'!AE1018=\"\",\"\",'1. Order'!AE1018)","v":""}]
[{"$f":"IF('1. Order'!B1019=\"\",\"\",'1. Order'!B1019)","v":""},{"$f":"IF('1. Order'!I1019=\"\",\"\",'1. Order'!I1019)","v":""},{"$f":"IF('1. Order'!J1019=\"\",\"\",'1. Order'!J1019)","v":""},{"$f":"IF('1. Order'!K1019=\"\",\"\",'1. Order'!K1019)","v":""},{"$f":"IF('1. Order'!M1019=\"\",\"\",'1. Order'!M1019)","v":""},null,null,{"$f":"'1. Order'!AW1019","v":0},{"$f":"IF('1. Order'!AE1019=\"\",\"\",'1. Order'!AE1019)","v":""}]
[{"$f":"IF('1. Order'!B1020=\"\",\"\",'1. Order'!B1020)","v":""},{"$f":"IF('1. Order'!I1020=\"\",\"\",'1. Order'!I1020)","v":""},{"$f":"IF('1. Order'!J1020=\"\",\"\",'1. Order'!J1020)","v":""},{"$f":"IF('1. Order'!K1020=\"\",\"\",'1. Order'!K1020)","v":""},{"$f":"IF('1. Order'!M1020=\"\",\"\",'1. Order'!M1020)","v":""},null,null,{"$f":"'1. Order'!AW1020","v":0},{"$f":"IF('1. Order'!AE1020=\"\",\"\",'1. Order'!AE1020)","v":""}]
[{"$f":"IF('1. Order'!B1021=\"\",\"\",'1. Order'!B1021)","v":""},{"$f":"IF('1. Order'!I1021=\"\",\"\",'1. Order'!I1021)","v":""},{"$f":"IF('1. Order'!J1021=\"\",\"\",'1. Order'!J1021)","v":""},{"$f":"IF('1. Order'!K1021=\"\",\"\",'1. Order'!K1021)","v":""},{"$f":"IF('1. Order'!M1021=\"\",\"\",'1. Order'!M1021)","v":""},null,null,{"$f":"'1. Order'!AW1021","v":0},{"$f":"IF('1. Order'!AE1021=\"\",\"\",'1. Order'!AE1021)","v":""}]
[{"$f":"IF('1. Order'!B1022=\"\",\"\",'1. Order'!B1022)","v":""},{"$f":"IF('1. Order'!I1022=\"\",\"\",'1. Order'!I1022)","v":""},{"$f":"IF('1. Order'!J1022=\"\",\"\",'1. Order'!J1022)","v":""},{"$f":"IF('1. Order'!K1022=\"\",\"\",'1. Order'!K1022)","v":""},{"$f":"IF('1. Order'!M1022=\"\",\"\",'1. Order'!M1022)","v":""},null,null,{"$f":"'1. Order'!AW1022","v":0},{"$f":"IF('1. Order'!AE1022=\"\",\"\",'1. Order'!AE1022)","v":""}]
[{"$f":"IF('1. Order'!B1023=\"\",\"\",'1. Order'!B1023)","v":""},{"$f":"IF('1. Order'!I1023=\"\",\"\",'1. Order'!I1023)","v":""},{"$f":"IF('1. Order'!J1023=\"\",\"\",'1. Order'!J1023)","v":""},{"$f":"IF('1. Order'!K1023=\"\",\"\",'1. Order'!K1023)","v":""},{"$f":"IF('1. Order'!M1023=\"\",\"\",'1. Order'!M1023)","v":""},null,null,{"$f":"'1. Order'!AW1023","v":0},{"$f":"IF('1. Order'!AE1023=\"\",\"\",'1. Order'!AE1023)","v":""}]
[{"$f":"IF('1. Order'!B1024=\"\",\"\",'1. Order'!B1024)","v":""},{"$f":"IF('1. Order'!I1024=\"\",\"\",'1. Order'!I1024)","v":""},{"$f":"IF('1. Order'!J1024=\"\",\"\",'1. Order'!J1024)","v":""},{"$f":"IF('1. Order'!K1024=\"\",\"\",'1. Order'!K1024)","v":""},{"$f":"IF('1. Order'!M1024=\"\",\"\",'1. Order'!M1024)","v":""},null,null,{"$f":"'1. Order'!AW1024","v":0},{"$f":"IF('1. Order'!AE1024=\"\",\"\",'1. Order'!AE1024)","v":""}]
[{"$f":"IF('1. Order'!B1025=\"\",\"\",'1. Order'!B1025)","v":""},{"$f":"IF('1. Order'!I1025=\"\",\"\",'1. Order'!I1025)","v":""},{"$f":"IF('1. Order'!J1025=\"\",\"\",'1. Order'!J1025)","v":""},{"$f":"IF('1. Order'!K1025=\"\",\"\",'1. Order'!K1025)","v":""},{"$f":"IF('1. Order'!M1025=\"\",\"\",'1. Order'!M1025)","v":""},null,null,{"$f":"'1. Order'!AW1025","v":0},{"$f":"IF('1. Order'!AE1025=\"\",\"\",'1. Order'!AE1025)","v":""}]
[{"$f":"IF('1. Order'!B1026=\"\",\"\",'1. Order'!B1026)","v":""},{"$f":"IF('1. Order'!I1026=\"\",\"\",'1. Order'!I1026)","v":""},{"$f":"IF('1. Order'!J1026=\"\",\"\",'1. Order'!J1026)","v":""},{"$f":"IF('1. Order'!K1026=\"\",\"\",'1. Order'!K1026)","v":""},{"$f":"IF('1. Order'!M1026=\"\",\"\",'1. Order'!M1026)","v":""},null,null,{"$f":"'1. Order'!AW1026","v":0},{"$f":"IF('1. Order'!AE1026=\"\",\"\",'1. Order'!AE1026)","v":""}]
[{"$f":"IF('1. Order'!B1027=\"\",\"\",'1. Order'!B1027)","v":""},{"$f":"IF('1. Order'!I1027=\"\",\"\",'1. Order'!I1027)","v":""},{"$f":"IF('1. Order'!J1027=\"\",\"\",'1. Order'!J1027)","v":""},{"$f":"IF('1. Order'!K1027=\"\",\"\",'1. Order'!K1027)","v":""},{"$f":"IF('1. Order'!M1027=\"\",\"\",'1. Order'!M1027)","v":""},null,null,{"$f":"'1. Order'!AW1027","v":0},{"$f":"IF('1. Order'!AE1027=\"\",\"\",'1. Order'!AE1027)","v":""}]
[{"$f":"IF('1. Order'!B1028=\"\",\"\",'1. Order'!B1028)","v":""},{"$f":"IF('1. Order'!I1028=\"\",\"\",'1. Order'!I1028)","v":""},{"$f":"IF('1. Order'!J1028=\"\",\"\",'1. Order'!J1028)","v":""},{"$f":"IF('1. Order'!K1028=\"\",\"\",'1. Order'!K1028)","v":""},{"$f":"IF('1. Order'!M1028=\"\",\"\",'1. Order'!M1028)","v":""},null,null,{"$f":"'1. Order'!AW1028","v":0},{"$f":"IF('1. Order'!AE1028=\"\",\"\",'1. Order'!AE1028)","v":""}]
[{"$f":"IF('1. Order'!B1029=\"\",\"\",'1. Order'!B1029)","v":""},{"$f":"IF('1. Order'!I1029=\"\",\"\",'1. Order'!I1029)","v":""},{"$f":"IF('1. Order'!J1029=\"\",\"\",'1. Order'!J1029)","v":""},{"$f":"IF('1. Order'!K1029=\"\",\"\",'1. Order'!K1029)","v":""},{"$f":"IF('1. Order'!M1029=\"\",\"\",'1. Order'!M1029)","v":""},null,null,{"$f":"'1. Order'!AW1029","v":0},{"$f":"IF('1. Order'!AE1029=\"\",\"\",'1. Order'!AE1029)","v":""}]
[{"$f":"IF('1. Order'!B1030=\"\",\"\",'1. Order'!B1030)","v":""},{"$f":"IF('1. Order'!I1030=\"\",\"\",'1. Order'!I1030)","v":""},{"$f":"IF('1. Order'!J1030=\"\",\"\",'1. Order'!J1030)","v":""},{"$f":"IF('1. Order'!K1030=\"\",\"\",'1. Order'!K1030)","v":""},{"$f":"IF('1. Order'!M1030=\"\",\"\",'1. Order'!M1030)","v":""},null,null,{"$f":"'1. Order'!AW1030","v":0},{"$f":"IF('1. Order'!AE1030=\"\",\"\",'1. Order'!AE1030)","v":""}]
[{"$f":"IF('1. Order'!B1031=\"\",\"\",'1. Order'!B1031)","v":""},{"$f":"IF('1. Order'!I1031=\"\",\"\",'1. Order'!I1031)","v":""},{"$f":"IF('1. Order'!J1031=\"\",\"\",'1. Order'!J1031)","v":""},{"$f":"IF('1. Order'!K1031=\"\",\"\",'1. Order'!K1031)","v":""},{"$f":"IF('1. Order'!M1031=\"\",\"\",'1. Order'!M1031)","v":""},null,null,{"$f":"'1. Order'!AW1031","v":0},{"$f":"IF('1. Order'!AE1031=\"\",\"\",'1. Order'!AE1031)","v":""}]
[{"$f":"IF('1. Order'!B1032=\"\",\"\",'1. Order'!B1032)","v":""},{"$f":"IF('1. Order'!I1032=\"\",\"\",'1. Order'!I1032)","v":""},{"$f":"IF('1. Order'!J1032=\"\",\"\",'1. Order'!J1032)","v":""},{"$f":"IF('1. Order'!K1032=\"\",\"\",'1. Order'!K1032)","v":""},{"$f":"IF('1. Order'!M1032=\"\",\"\",'1. Order'!M1032)","v":""},null,null,{"$f":"'1. Order'!AW1032","v":0},{"$f":"IF('1. Order'!AE1032=\"\",\"\",'1. Order'!AE1032)","v":""}]
[{"$f":"IF('1. Order'!B1033=\"\",\"\",'1. Order'!B1033)","v":""},{"$f":"IF('1. Order'!I1033=\"\",\"\",'1. Order'!I1033)","v":""},{"$f":"IF('1. Order'!J1033=\"\",\"\",'1. Order'!J1033)","v":""},{"$f":"IF('1. Order'!K1033=\"\",\"\",'1. Order'!K1033)","v":""},{"$f":"IF('1. Order'!M1033=\"\",\"\",'1. Order'!M1033)","v":""},null,null,{"$f":"'1. Order'!AW1033","v":0},{"$f":"IF('1. Order'!AE1033=\"\",\"\",'1. Order'!AE1033)","v":""}]
[{"$f":"IF('1. Order'!B1034=\"\",\"\",'1. Order'!B1034)","v":""},{"$f":"IF('1. Order'!I1034=\"\",\"\",'1. Order'!I1034)","v":""},{"$f":"IF('1. Order'!J1034=\"\",\"\",'1. Order'!J1034)","v":""},{"$f":"IF('1. Order'!K1034=\"\",\"\",'1. Order'!K1034)","v":""},{"$f":"IF('1. Order'!M1034=\"\",\"\",'1. Order'!M1034)","v":""},null,null,{"$f":"'1. Order'!AW1034","v":0},{"$f":"IF('1. Order'!AE1034=\"\",\"\",'1. Order'!AE1034)","v":""}]
[{"$f":"IF('1. Order'!B1035=\"\",\"\",'1. Order'!B1035)","v":""},{"$f":"IF('1. Order'!I1035=\"\",\"\",'1. Order'!I1035)","v":""},{"$f":"IF('1. Order'!J1035=\"\",\"\",'1. Order'!J1035)","v":""},{"$f":"IF('1. Order'!K1035=\"\",\"\",'1. Order'!K1035)","v":""},{"$f":"IF('1. Order'!M1035=\"\",\"\",'1. Order'!M1035)","v":""},null,null,{"$f":"'1. Order'!AW1035","v":0},{"$f":"IF('1. Order'!AE1035=\"\",\"\",'1. Order'!AE1035)","v":""}]
[{"$f":"IF('1. Order'!B1036=\"\",\"\",'1. Order'!B1036)","v":""},{"$f":"IF('1. Order'!I1036=\"\",\"\",'1. Order'!I1036)","v":""},{"$f":"IF('1. Order'!J1036=\"\",\"\",'1. Order'!J1036)","v":""},{"$f":"IF('1. Order'!K1036=\"\",\"\",'1. Order'!K1036)","v":""},{"$f":"IF('1. Order'!M1036=\"\",\"\",'1. Order'!M1036)","v":""},null,null,{"$f":"'1. Order'!AW1036","v":0},{"$f":"IF('1. Order'!AE1036=\"\",\"\",'1. Order'!AE1036)","v":""}]
[{"$f":"IF('1. Order'!B1037=\"\",\"\",'1. Order'!B1037)","v":""},{"$f":"IF('1. Order'!I1037=\"\",\"\",'1. Order'!I1037)","v":""},{"$f":"IF('1. Order'!J1037=\"\",\"\",'1. Order'!J1037)","v":""},{"$f":"IF('1. Order'!K1037=\"\",\"\",'1. Order'!K1037)","v":""},{"$f":"IF('1. Order'!M1037=\"\",\"\",'1. Order'!M1037)","v":""},null,null,{"$f":"'1. Order'!AW1037","v":0},{"$f":"IF('1. Order'!AE1037=\"\",\"\",'1. Order'!AE1037)","v":""}]
[{"$f":"IF('1. Order'!B1038=\"\",\"\",'1. Order'!B1038)","v":""},{"$f":"IF('1. Order'!I1038=\"\",\"\",'1. Order'!I1038)","v":""},{"$f":"IF('1. Order'!J1038=\"\",\"\",'1. Order'!J1038)","v":""},{"$f":"IF('1. Order'!K1038=\"\",\"\",'1. Order'!K1038)","v":""},{"$f":"IF('1. Order'!M1038=\"\",\"\",'1. Order'!M1038)","v":""},null,null,{"$f":"'1. Order'!AW1038","v":0},{"$f":"IF('1. Order'!AE1038=\"\",\"\",'1. Order'!AE1038)","v":""}]
[{"$f":"IF('1. Order'!B1039=\"\",\"\",'1. Order'!B1039)","v":""},{"$f":"IF('1. Order'!I1039=\"\",\"\",'1. Order'!I1039)","v":""},{"$f":"IF('1. Order'!J1039=\"\",\"\",'1. Order'!J1039)","v":""},{"$f":"IF('1. Order'!K1039=\"\",\"\",'1. Order'!K1039)","v":""},{"$f":"IF('1. Order'!M1039=\"\",\"\",'1. Order'!M1039)","v":""},null,null,{"$f":"'1. Order'!AW1039","v":0},{"$f":"IF('1. Order'!AE1039=\"\",\"\",'1. Order'!AE1039)","v":""}]
[{"$f":"IF('1. Order'!B1040=\"\",\"\",'1. Order'!B1040)","v":""},{"$f":"IF('1. Order'!I1040=\"\",\"\",'1. Order'!I1040)","v":""},{"$f":"IF('1. Order'!J1040=\"\",\"\",'1. Order'!J1040)","v":""},{"$f":"IF('1. Order'!K1040=\"\",\"\",'1. Order'!K1040)","v":""},{"$f":"IF('1. Order'!M1040=\"\",\"\",'1. Order'!M1040)","v":""},null,null,{"$f":"'1. Order'!AW1040","v":0},{"$f":"IF('1. Order'!AE1040=\"\",\"\",'1. Order'!AE1040)","v":""}]
[{"$f":"IF('1. Order'!B1041=\"\",\"\",'1. Order'!B1041)","v":""},{"$f":"IF('1. Order'!I1041=\"\",\"\",'1. Order'!I1041)","v":""},{"$f":"IF('1. Order'!J1041=\"\",\"\",'1. Order'!J1041)","v":""},{"$f":"IF('1. Order'!K1041=\"\",\"\",'1. Order'!K1041)","v":""},{"$f":"IF('1. Order'!M1041=\"\",\"\",'1. Order'!M1041)","v":""},null,null,{"$f":"'1. Order'!AW1041","v":0},{"$f":"IF('1. Order'!AE1041=\"\",\"\",'1. Order'!AE1041)","v":""}]
[{"$f":"IF('1. Order'!B1042=\"\",\"\",'1. Order'!B1042)","v":""},{"$f":"IF('1. Order'!I1042=\"\",\"\",'1. Order'!I1042)","v":""},{"$f":"IF('1. Order'!J1042=\"\",\"\",'1. Order'!J1042)","v":""},{"$f":"IF('1. Order'!K1042=\"\",\"\",'1. Order'!K1042)","v":""},{"$f":"IF('1. Order'!M1042=\"\",\"\",'1. Order'!M1042)","v":""},null,null,{"$f":"'1. Order'!AW1042","v":0},{"$f":"IF('1. Order'!AE1042=\"\",\"\",'1. Order'!AE1042)","v":""}]
[{"$f":"IF('1. Order'!B1043=\"\",\"\",'1. Order'!B1043)","v":""},{"$f":"IF('1. Order'!I1043=\"\",\"\",'1. Order'!I1043)","v":""},{"$f":"IF('1. Order'!J1043=\"\",\"\",'1. Order'!J1043)","v":""},{"$f":"IF('1. Order'!K1043=\"\",\"\",'1. Order'!K1043)","v":""},{"$f":"IF('1. Order'!M1043=\"\",\"\",'1. Order'!M1043)","v":""},null,null,{"$f":"'1. Order'!AW1043","v":0},{"$f":"IF('1. Order'!AE1043=\"\",\"\",'1. Order'!AE1043)","v":""}]
[{"$f":"IF('1. Order'!B1044=\"\",\"\",'1. Order'!B1044)","v":""},{"$f":"IF('1. Order'!I1044=\"\",\"\",'1. Order'!I1044)","v":""},{"$f":"IF('1. Order'!J1044=\"\",\"\",'1. Order'!J1044)","v":""},{"$f":"IF('1. Order'!K1044=\"\",\"\",'1. Order'!K1044)","v":""},{"$f":"IF('1. Order'!M1044=\"\",\"\",'1. Order'!M1044)","v":""},null,null,{"$f":"'1. Order'!AW1044","v":0},{"$f":"IF('1. Order'!AE1044=\"\",\"\",'1. Order'!AE1044)","v":""}]
[{"$f":"IF('1. Order'!B1045=\"\",\"\",'1. Order'!B1045)","v":""},{"$f":"IF('1. Order'!I1045=\"\",\"\",'1. Order'!I1045)","v":""},{"$f":"IF('1. Order'!J1045=\"\",\"\",'1. Order'!J1045)","v":""},{"$f":"IF('1. Order'!K1045=\"\",\"\",'1. Order'!K1045)","v":""},{"$f":"IF('1. Order'!M1045=\"\",\"\",'1. Order'!M1045)","v":""},null,null,{"$f":"'1. Order'!AW1045","v":0},{"$f":"IF('1. Order'!AE1045=\"\",\"\",'1. Order'!AE1045)","v":""}]
[{"$f":"IF('1. Order'!B1046=\"\",\"\",'1. Order'!B1046)","v":""},{"$f":"IF('1. Order'!I1046=\"\",\"\",'1. Order'!I1046)","v":""},{"$f":"IF('1. Order'!J1046=\"\",\"\",'1. Order'!J1046)","v":""},{"$f":"IF('1. Order'!K1046=\"\",\"\",'1. Order'!K1046)","v":""},{"$f":"IF('1. Order'!M1046=\"\",\"\",'1. Order'!M1046)","v":""},null,null,{"$f":"'1. Order'!AW1046","v":0},{"$f":"IF('1. Order'!AE1046=\"\",\"\",'1. Order'!AE1046)","v":""}]
[{"$f":"IF('1. Order'!B1047=\"\",\"\",'1. Order'!B1047)","v":""},{"$f":"IF('1. Order'!I1047=\"\",\"\",'1. Order'!I1047)","v":""},{"$f":"IF('1. Order'!J1047=\"\",\"\",'1. Order'!J1047)","v":""},{"$f":"IF('1. Order'!K1047=\"\",\"\",'1. Order'!K1047)","v":""},{"$f":"IF('1. Order'!M1047=\"\",\"\",'1. Order'!M1047)","v":""},null,null,{"$f":"'1. Order'!AW1047","v":0},{"$f":"IF('1. Order'!AE1047=\"\",\"\",'1. Order'!AE1047)","v":""}]
[{"$f":"IF('1. Order'!B1048=\"\",\"\",'1. Order'!B1048)","v":""},{"$f":"IF('1. Order'!I1048=\"\",\"\",'1. Order'!I1048)","v":""},{"$f":"IF('1. Order'!J1048=\"\",\"\",'1. Order'!J1048)","v":""},{"$f":"IF('1. Order'!K1048=\"\",\"\",'1. Order'!K1048)","v":""},{"$f":"IF('1. Order'!M1048=\"\",\"\",'1. Order'!M1048)","v":""},null,null,{"$f":"'1. Order'!AW1048","v":0},{"$f":"IF('1. Order'!AE1048=\"\",\"\",'1. Order'!AE1048)","v":""}]
[{"$f":"IF('1. Order'!B1049=\"\",\"\",'1. Order'!B1049)","v":""},{"$f":"IF('1. Order'!I1049=\"\",\"\",'1. Order'!I1049)","v":""},{"$f":"IF('1. Order'!J1049=\"\",\"\",'1. Order'!J1049)","v":""},{"$f":"IF('1. Order'!K1049=\"\",\"\",'1. Order'!K1049)","v":""},{"$f":"IF('1. Order'!M1049=\"\",\"\",'1. Order'!M1049)","v":""},null,null,{"$f":"'1. Order'!AW1049","v":0},{"$f":"IF('1. Order'!AE1049=\"\",\"\",'1. Order'!AE1049)","v":""}]
[{"$f":"IF('1. Order'!B1050=\"\",\"\",'1. Order'!B1050)","v":""},{"$f":"IF('1. Order'!I1050=\"\",\"\",'1. Order'!I1050)","v":""},{"$f":"IF('1. Order'!J1050=\"\",\"\",'1. Order'!J1050)","v":""},{"$f":"IF('1. Order'!K1050=\"\",\"\",'1. Order'!K1050)","v":""},{"$f":"IF('1. Order'!M1050=\"\",\"\",'1. Order'!M1050)","v":""},null,null,{"$f":"'1. Order'!AW1050","v":0},{"$f":"IF('1. Order'!AE1050=\"\",\"\",'1. Order'!AE1050)","v":""}]
[{"$f":"IF('1. Order'!B1051=\"\",\"\",'1. Order'!B1051)","v":""},{"$f":"IF('1. Order'!I1051=\"\",\"\",'1. Order'!I1051)","v":""},{"$f":"IF('1. Order'!J1051=\"\",\"\",'1. Order'!J1051)","v":""},{"$f":"IF('1. Order'!K1051=\"\",\"\",'1. Order'!K1051)","v":""},{"$f":"IF('1. Order'!M1051=\"\",\"\",'1. Order'!M1051)","v":""},null,null,{"$f":"'1. Order'!AW1051","v":0},{"$f":"IF('1. Order'!AE1051=\"\",\"\",'1. Order'!AE1051)","v":""}]
[{"$f":"IF('1. Order'!B1052=\"\",\"\",'1. Order'!B1052)","v":""},{"$f":"IF('1. Order'!I1052=\"\",\"\",'1. Order'!I1052)","v":""},{"$f":"IF('1. Order'!J1052=\"\",\"\",'1. Order'!J1052)","v":""},{"$f":"IF('1. Order'!K1052=\"\",\"\",'1. Order'!K1052)","v":""},{"$f":"IF('1. Order'!M1052=\"\",\"\",'1. Order'!M1052)","v":""},null,null,{"$f":"'1. Order'!AW1052","v":0},{"$f":"IF('1. Order'!AE1052=\"\",\"\",'1. Order'!AE1052)","v":""}]
[{"$f":"IF('1. Order'!B1053=\"\",\"\",'1. Order'!B1053)","v":""},{"$f":"IF('1. Order'!I1053=\"\",\"\",'1. Order'!I1053)","v":""},{"$f":"IF('1. Order'!J1053=\"\",\"\",'1. Order'!J1053)","v":""},{"$f":"IF('1. Order'!K1053=\"\",\"\",'1. Order'!K1053)","v":""},{"$f":"IF('1. Order'!M1053=\"\",\"\",'1. Order'!M1053)","v":""},null,null,{"$f":"'1. Order'!AW1053","v":0},{"$f":"IF('1. Order'!AE1053=\"\",\"\",'1. Order'!AE1053)","v":""}]
[{"$f":"IF('1. Order'!B1054=\"\",\"\",'1. Order'!B1054)","v":""},{"$f":"IF('1. Order'!I1054=\"\",\"\",'1. Order'!I1054)","v":""},{"$f":"IF('1. Order'!J1054=\"\",\"\",'1. Order'!J1054)","v":""},{"$f":"IF('1. Order'!K1054=\"\",\"\",'1. Order'!K1054)","v":""},{"$f":"IF('1. Order'!M1054=\"\",\"\",'1. Order'!M1054)","v":""},null,null,{"$f":"'1. Order'!AW1054","v":0},{"$f":"IF('1. Order'!AE1054=\"\",\"\",'1. Order'!AE1054)","v":""}]
[{"$f":"IF('1. Order'!B1055=\"\",\"\",'1. Order'!B1055)","v":""},{"$f":"IF('1. Order'!I1055=\"\",\"\",'1. Order'!I1055)","v":""},{"$f":"IF('1. Order'!J1055=\"\",\"\",'1. Order'!J1055)","v":""},{"$f":"IF('1. Order'!K1055=\"\",\"\",'1. Order'!K1055)","v":""},{"$f":"IF('1. Order'!M1055=\"\",\"\",'1. Order'!M1055)","v":""},null,null,{"$f":"'1. Order'!AW1055","v":0},{"$f":"IF('1. Order'!AE1055=\"\",\"\",'1. Order'!AE1055)","v":""}]
[{"$f":"IF('1. Order'!B1056=\"\",\"\",'1. Order'!B1056)","v":""},{"$f":"IF('1. Order'!I1056=\"\",\"\",'1. Order'!I1056)","v":""},{"$f":"IF('1. Order'!J1056=\"\",\"\",'1. Order'!J1056)","v":""},{"$f":"IF('1. Order'!K1056=\"\",\"\",'1. Order'!K1056)","v":""},{"$f":"IF('1. Order'!M1056=\"\",\"\",'1. Order'!M1056)","v":""},null,null,{"$f":"'1. Order'!AW1056","v":0},{"$f":"IF('1. Order'!AE1056=\"\",\"\",'1. Order'!AE1056)","v":""}]
[{"$f":"IF('1. Order'!B1057=\"\",\"\",'1. Order'!B1057)","v":""},{"$f":"IF('1. Order'!I1057=\"\",\"\",'1. Order'!I1057)","v":""},{"$f":"IF('1. Order'!J1057=\"\",\"\",'1. Order'!J1057)","v":""},{"$f":"IF('1. Order'!K1057=\"\",\"\",'1. Order'!K1057)","v":""},{"$f":"IF('1. Order'!M1057=\"\",\"\",'1. Order'!M1057)","v":""},null,null,{"$f":"'1. Order'!AW1057","v":0},{"$f":"IF('1. Order'!AE1057=\"\",\"\",'1. Order'!AE1057)","v":""}]
[{"$f":"IF('1. Order'!B1058=\"\",\"\",'1. Order'!B1058)","v":""},{"$f":"IF('1. Order'!I1058=\"\",\"\",'1. Order'!I1058)","v":""},{"$f":"IF('1. Order'!J1058=\"\",\"\",'1. Order'!J1058)","v":""},{"$f":"IF('1. Order'!K1058=\"\",\"\",'1. Order'!K1058)","v":""},{"$f":"IF('1. Order'!M1058=\"\",\"\",'1. Order'!M1058)","v":""},null,null,{"$f":"'1. Order'!AW1058","v":0},{"$f":"IF('1. Order'!AE1058=\"\",\"\",'1. Order'!AE1058)","v":""}]
[{"$f":"IF('1. Order'!B1059=\"\",\"\",'1. Order'!B1059)","v":""},{"$f":"IF('1. Order'!I1059=\"\",\"\",'1. Order'!I1059)","v":""},{"$f":"IF('1. Order'!J1059=\"\",\"\",'1. Order'!J1059)","v":""},{"$f":"IF('1. Order'!K1059=\"\",\"\",'1. Order'!K1059)","v":""},{"$f":"IF('1. Order'!M1059=\"\",\"\",'1. Order'!M1059)","v":""},null,null,{"$f":"'1. Order'!AW1059","v":0},{"$f":"IF('1. Order'!AE1059=\"\",\"\",'1. Order'!AE1059)","v":""}]
[{"$f":"IF('1. Order'!B1060=\"\",\"\",'1. Order'!B1060)","v":""},{"$f":"IF('1. Order'!I1060=\"\",\"\",'1. Order'!I1060)","v":""},{"$f":"IF('1. Order'!J1060=\"\",\"\",'1. Order'!J1060)","v":""},{"$f":"IF('1. Order'!K1060=\"\",\"\",'1. Order'!K1060)","v":""},{"$f":"IF('1. Order'!M1060=\"\",\"\",'1. Order'!M1060)","v":""},null,null,{"$f":"'1. Order'!AW1060","v":0},{"$f":"IF('1. Order'!AE1060=\"\",\"\",'1. Order'!AE1060)","v":""}]
[{"$f":"IF('1. Order'!B1061=\"\",\"\",'1. Order'!B1061)","v":""},{"$f":"IF('1. Order'!I1061=\"\",\"\",'1. Order'!I1061)","v":""},{"$f":"IF('1. Order'!J1061=\"\",\"\",'1. Order'!J1061)","v":""},{"$f":"IF('1. Order'!K1061=\"\",\"\",'1. Order'!K1061)","v":""},{"$f":"IF('1. Order'!M1061=\"\",\"\",'1. Order'!M1061)","v":""},null,null,{"$f":"'1. Order'!AW1061","v":0},{"$f":"IF('1. Order'!AE1061=\"\",\"\",'1. Order'!AE1061)","v":""}]
[{"$f":"IF('1. Order'!B1062=\"\",\"\",'1. Order'!B1062)","v":""},{"$f":"IF('1. Order'!I1062=\"\",\"\",'1. Order'!I1062)","v":""},{"$f":"IF('1. Order'!J1062=\"\",\"\",'1. Order'!J1062)","v":""},{"$f":"IF('1. Order'!K1062=\"\",\"\",'1. Order'!K1062)","v":""},{"$f":"IF('1. Order'!M1062=\"\",\"\",'1. Order'!M1062)","v":""},null,null,{"$f":"'1. Order'!AW1062","v":0},{"$f":"IF('1. Order'!AE1062=\"\",\"\",'1. Order'!AE1062)","v":""}]
[{"$f":"IF('1. Order'!B1063=\"\",\"\",'1. Order'!B1063)","v":""},{"$f":"IF('1. Order'!I1063=\"\",\"\",'1. Order'!I1063)","v":""},{"$f":"IF('1. Order'!J1063=\"\",\"\",'1. Order'!J1063)","v":""},{"$f":"IF('1. Order'!K1063=\"\",\"\",'1. Order'!K1063)","v":""},{"$f":"IF('1. Order'!M1063=\"\",\"\",'1. Order'!M1063)","v":""},null,null,{"$f":"'1. Order'!AW1063","v":0},{"$f":"IF('1. Order'!AE1063=\"\",\"\",'1. Order'!AE1063)","v":""}]
[{"$f":"IF('1. Order'!B1064=\"\",\"\",'1. Order'!B1064)","v":""},{"$f":"IF('1. Order'!I1064=\"\",\"\",'1. Order'!I1064)","v":""},{"$f":"IF('1. Order'!J1064=\"\",\"\",'1. Order'!J1064)","v":""},{"$f":"IF('1. Order'!K1064=\"\",\"\",'1. Order'!K1064)","v":""},{"$f":"IF('1. Order'!M1064=\"\",\"\",'1. Order'!M1064)","v":""},null,null,{"$f":"'1. Order'!AW1064","v":0},{"$f":"IF('1. Order'!AE1064=\"\",\"\",'1. Order'!AE1064)","v":""}]
[{"$f":"IF('1. Order'!B1065=\"\",\"\",'1. Order'!B1065)","v":""},{"$f":"IF('1. Order'!I1065=\"\",\"\",'1. Order'!I1065)","v":""},{"$f":"IF('1. Order'!J1065=\"\",\"\",'1. Order'!J1065)","v":""},{"$f":"IF('1. Order'!K1065=\"\",\"\",'1. Order'!K1065)","v":""},{"$f":"IF('1. Order'!M1065=\"\",\"\",'1. Order'!M1065)","v":""},null,null,{"$f":"'1. Order'!AW1065","v":0},{"$f":"IF('1. Order'!AE1065=\"\",\"\",'1. Order'!AE1065)","v":""}]
[{"$f":"IF('1. Order'!B1066=\"\",\"\",'1. Order'!B1066)","v":""},{"$f":"IF('1. Order'!I1066=\"\",\"\",'1. Order'!I1066)","v":""},{"$f":"IF('1. Order'!J1066=\"\",\"\",'1. Order'!J1066)","v":""},{"$f":"IF('1. Order'!K1066=\"\",\"\",'1. Order'!K1066)","v":""},{"$f":"IF('1. Order'!M1066=\"\",\"\",'1. Order'!M1066)","v":""},null,null,{"$f":"'1. Order'!AW1066","v":0},{"$f":"IF('1. Order'!AE1066=\"\",\"\",'1. Order'!AE1066)","v":""}]
[{"$f":"IF('1. Order'!B1067=\"\",\"\",'1. Order'!B1067)","v":""},{"$f":"IF('1. Order'!I1067=\"\",\"\",'1. Order'!I1067)","v":""},{"$f":"IF('1. Order'!J1067=\"\",\"\",'1. Order'!J1067)","v":""},{"$f":"IF('1. Order'!K1067=\"\",\"\",'1. Order'!K1067)","v":""},{"$f":"IF('1. Order'!M1067=\"\",\"\",'1. Order'!M1067)","v":""},null,null,{"$f":"'1. Order'!AW1067","v":0},{"$f":"IF('1. Order'!AE1067=\"\",\"\",'1. Order'!AE1067)","v":""}]
[{"$f":"IF('1. Order'!B1068=\"\",\"\",'1. Order'!B1068)","v":""},{"$f":"IF('1. Order'!I1068=\"\",\"\",'1. Order'!I1068)","v":""},{"$f":"IF('1. Order'!J1068=\"\",\"\",'1. Order'!J1068)","v":""},{"$f":"IF('1. Order'!K1068=\"\",\"\",'1. Order'!K1068)","v":""},{"$f":"IF('1. Order'!M1068=\"\",\"\",'1. Order'!M1068)","v":""},null,null,{"$f":"'1. Order'!AW1068","v":0},{"$f":"IF('1. Order'!AE1068=\"\",\"\",'1. Order'!AE1068)","v":""}]
[{"$f":"IF('1. Order'!B1069=\"\",\"\",'1. Order'!B1069)","v":""},{"$f":"IF('1. Order'!I1069=\"\",\"\",'1. Order'!I1069)","v":""},{"$f":"IF('1. Order'!J1069=\"\",\"\",'1. Order'!J1069)","v":""},{"$f":"IF('1. Order'!K1069=\"\",\"\",'1. Order'!K1069)","v":""},{"$f":"IF('1. Order'!M1069=\"\",\"\",'1. Order'!M1069)","v":""},null,null,{"$f":"'1. Order'!AW1069","v":0},{"$f":"IF('1. Order'!AE1069=\"\",\"\",'1. Order'!AE1069)","v":""}]
[{"$f":"IF('1. Order'!B1070=\"\",\"\",'1. Order'!B1070)","v":""},{"$f":"IF('1. Order'!I1070=\"\",\"\",'1. Order'!I1070)","v":""},{"$f":"IF('1. Order'!J1070=\"\",\"\",'1. Order'!J1070)","v":""},{"$f":"IF('1. Order'!K1070=\"\",\"\",'1. Order'!K1070)","v":""},{"$f":"IF('1. Order'!M1070=\"\",\"\",'1. Order'!M1070)","v":""},null,null,{"$f":"'1. Order'!AW1070","v":0},{"$f":"IF('1. Order'!AE1070=\"\",\"\",'1. Order'!AE1070)","v":""}]
[{"$f":"IF('1. Order'!B1071=\"\",\"\",'1. Order'!B1071)","v":""},{"$f":"IF('1. Order'!I1071=\"\",\"\",'1. Order'!I1071)","v":""},{"$f":"IF('1. Order'!J1071=\"\",\"\",'1. Order'!J1071)","v":""},{"$f":"IF('1. Order'!K1071=\"\",\"\",'1. Order'!K1071)","v":""},{"$f":"IF('1. Order'!M1071=\"\",\"\",'1. Order'!M1071)","v":""},null,null,{"$f":"'1. Order'!AW1071","v":0},{"$f":"IF('1. Order'!AE1071=\"\",\"\",'1. Order'!AE1071)","v":""}]
[{"$f":"IF('1. Order'!B1072=\"\",\"\",'1. Order'!B1072)","v":""},{"$f":"IF('1. Order'!I1072=\"\",\"\",'1. Order'!I1072)","v":""},{"$f":"IF('1. Order'!J1072=\"\",\"\",'1. Order'!J1072)","v":""},{"$f":"IF('1. Order'!K1072=\"\",\"\",'1. Order'!K1072)","v":""},{"$f":"IF('1. Order'!M1072=\"\",\"\",'1. Order'!M1072)","v":""},null,null,{"$f":"'1. Order'!AW1072","v":0},{"$f":"IF('1. Order'!AE1072=\"\",\"\",'1. Order'!AE1072)","v":""}]
[{"$f":"IF('1. Order'!B1073=\"\",\"\",'1. Order'!B1073)","v":""},{"$f":"IF('1. Order'!I1073=\"\",\"\",'1. Order'!I1073)","v":""},{"$f":"IF('1. Order'!J1073=\"\",\"\",'1. Order'!J1073)","v":""},{"$f":"IF('1. Order'!K1073=\"\",\"\",'1. Order'!K1073)","v":""},{"$f":"IF('1. Order'!M1073=\"\",\"\",'1. Order'!M1073)","v":""},null,null,{"$f":"'1. Order'!AW1073","v":0},{"$f":"IF('1. Order'!AE1073=\"\",\"\",'1. Order'!AE1073)","v":""}]
[{"$f":"IF('1. Order'!B1074=\"\",\"\",'1. Order'!B1074)","v":""},{"$f":"IF('1. Order'!I1074=\"\",\"\",'1. Order'!I1074)","v":""},{"$f":"IF('1. Order'!J1074=\"\",\"\",'1. Order'!J1074)","v":""},{"$f":"IF('1. Order'!K1074=\"\",\"\",'1. Order'!K1074)","v":""},{"$f":"IF('1. Order'!M1074=\"\",\"\",'1. Order'!M1074)","v":""},null,null,{"$f":"'1. Order'!AW1074","v":0},{"$f":"IF('1. Order'!AE1074=\"\",\"\",'1. Order'!AE1074)","v":""}]
[{"$f":"IF('1. Order'!B1075=\"\",\"\",'1. Order'!B1075)","v":""},{"$f":"IF('1. Order'!I1075=\"\",\"\",'1. Order'!I1075)","v":""},{"$f":"IF('1. Order'!J1075=\"\",\"\",'1. Order'!J1075)","v":""},{"$f":"IF('1. Order'!K1075=\"\",\"\",'1. Order'!K1075)","v":""},{"$f":"IF('1. Order'!M1075=\"\",\"\",'1. Order'!M1075)","v":""},null,null,{"$f":"'1. Order'!AW1075","v":0},{"$f":"IF('1. Order'!AE1075=\"\",\"\",'1. Order'!AE1075)","v":""}]
[{"$f":"IF('1. Order'!B1076=\"\",\"\",'1. Order'!B1076)","v":""},{"$f":"IF('1. Order'!I1076=\"\",\"\",'1. Order'!I1076)","v":""},{"$f":"IF('1. Order'!J1076=\"\",\"\",'1. Order'!J1076)","v":""},{"$f":"IF('1. Order'!K1076=\"\",\"\",'1. Order'!K1076)","v":""},{"$f":"IF('1. Order'!M1076=\"\",\"\",'1. Order'!M1076)","v":""},null,null,{"$f":"'1. Order'!AW1076","v":0},{"$f":"IF('1. Order'!AE1076=\"\",\"\",'1. Order'!AE1076)","v":""}]
[{"$f":"IF('1. Order'!B1077=\"\",\"\",'1. Order'!B1077)","v":""},{"$f":"IF('1. Order'!I1077=\"\",\"\",'1. Order'!I1077)","v":""},{"$f":"IF('1. Order'!J1077=\"\",\"\",'1. Order'!J1077)","v":""},{"$f":"IF('1. Order'!K1077=\"\",\"\",'1. Order'!K1077)","v":""},{"$f":"IF('1. Order'!M1077=\"\",\"\",'1. Order'!M1077)","v":""},null,null,{"$f":"'1. Order'!AW1077","v":0},{"$f":"IF('1. Order'!AE1077=\"\",\"\",'1. Order'!AE1077)","v":""}]
[{"$f":"IF('1. Order'!B1078=\"\",\"\",'1. Order'!B1078)","v":""},{"$f":"IF('1. Order'!I1078=\"\",\"\",'1. Order'!I1078)","v":""},{"$f":"IF('1. Order'!J1078=\"\",\"\",'1. Order'!J1078)","v":""},{"$f":"IF('1. Order'!K1078=\"\",\"\",'1. Order'!K1078)","v":""},{"$f":"IF('1. Order'!M1078=\"\",\"\",'1. Order'!M1078)","v":""},null,null,{"$f":"'1. Order'!AW1078","v":0},{"$f":"IF('1. Order'!AE1078=\"\",\"\",'1. Order'!AE1078)","v":""}]
[{"$f":"IF('1. Order'!B1079=\"\",\"\",'1. Order'!B1079)","v":""},{"$f":"IF('1. Order'!I1079=\"\",\"\",'1. Order'!I1079)","v":""},{"$f":"IF('1. Order'!J1079=\"\",\"\",'1. Order'!J1079)","v":""},{"$f":"IF('1. Order'!K1079=\"\",\"\",'1. Order'!K1079)","v":""},{"$f":"IF('1. Order'!M1079=\"\",\"\",'1. Order'!M1079)","v":""},null,null,{"$f":"'1. Order'!AW1079","v":0},{"$f":"IF('1. Order'!AE1079=\"\",\"\",'1. Order'!AE1079)","v":""}]
[{"$f":"IF('1. Order'!B1080=\"\",\"\",'1. Order'!B1080)","v":""},{"$f":"IF('1. Order'!I1080=\"\",\"\",'1. Order'!I1080)","v":""},{"$f":"IF('1. Order'!J1080=\"\",\"\",'1. Order'!J1080)","v":""},{"$f":"IF('1. Order'!K1080=\"\",\"\",'1. Order'!K1080)","v":""},{"$f":"IF('1. Order'!M1080=\"\",\"\",'1. Order'!M1080)","v":""},null,null,{"$f":"'1. Order'!AW1080","v":0},{"$f":"IF('1. Order'!AE1080=\"\",\"\",'1. Order'!AE1080)","v":""}]
[{"$f":"IF('1. Order'!B1081=\"\",\"\",'1. Order'!B1081)","v":""},{"$f":"IF('1. Order'!I1081=\"\",\"\",'1. Order'!I1081)","v":""},{"$f":"IF('1. Order'!J1081=\"\",\"\",'1. Order'!J1081)","v":""},{"$f":"IF('1. Order'!K1081=\"\",\"\",'1. Order'!K1081)","v":""},{"$f":"IF('1. Order'!M1081=\"\",\"\",'1. Order'!M1081)","v":""},null,null,{"$f":"'1. Order'!AW1081","v":0},{"$f":"IF('1. Order'!AE1081=\"\",\"\",'1. Order'!AE1081)","v":""}]
[{"$f":"IF('1. Order'!B1082=\"\",\"\",'1. Order'!B1082)","v":""},{"$f":"IF('1. Order'!I1082=\"\",\"\",'1. Order'!I1082)","v":""},{"$f":"IF('1. Order'!J1082=\"\",\"\",'1. Order'!J1082)","v":""},{"$f":"IF('1. Order'!K1082=\"\",\"\",'1. Order'!K1082)","v":""},{"$f":"IF('1. Order'!M1082=\"\",\"\",'1. Order'!M1082)","v":""},null,null,{"$f":"'1. Order'!AW1082","v":0},{"$f":"IF('1. Order'!AE1082=\"\",\"\",'1. Order'!AE1082)","v":""}]
[{"$f":"IF('1. Order'!B1083=\"\",\"\",'1. Order'!B1083)","v":""},{"$f":"IF('1. Order'!I1083=\"\",\"\",'1. Order'!I1083)","v":""},{"$f":"IF('1. Order'!J1083=\"\",\"\",'1. Order'!J1083)","v":""},{"$f":"IF('1. Order'!K1083=\"\",\"\",'1. Order'!K1083)","v":""},{"$f":"IF('1. Order'!M1083=\"\",\"\",'1. Order'!M1083)","v":""},null,null,{"$f":"'1. Order'!AW1083","v":0},{"$f":"IF('1. Order'!AE1083=\"\",\"\",'1. Order'!AE1083)","v":""}]
[{"$f":"IF('1. Order'!B1084=\"\",\"\",'1. Order'!B1084)","v":""},{"$f":"IF('1. Order'!I1084=\"\",\"\",'1. Order'!I1084)","v":""},{"$f":"IF('1. Order'!J1084=\"\",\"\",'1. Order'!J1084)","v":""},{"$f":"IF('1. Order'!K1084=\"\",\"\",'1. Order'!K1084)","v":""},{"$f":"IF('1. Order'!M1084=\"\",\"\",'1. Order'!M1084)","v":""},null,null,{"$f":"'1. Order'!AW1084","v":0},{"$f":"IF('1. Order'!AE1084=\"\",\"\",'1. Order'!AE1084)","v":""}]
[{"$f":"IF('1. Order'!B1085=\"\",\"\",'1. Order'!B1085)","v":""},{"$f":"IF('1. Order'!I1085=\"\",\"\",'1. Order'!I1085)","v":""},{"$f":"IF('1. Order'!J1085=\"\",\"\",'1. Order'!J1085)","v":""},{"$f":"IF('1. Order'!K1085=\"\",\"\",'1. Order'!K1085)","v":""},{"$f":"IF('1. Order'!M1085=\"\",\"\",'1. Order'!M1085)","v":""},null,null,{"$f":"'1. Order'!AW1085","v":0},{"$f":"IF('1. Order'!AE1085=\"\",\"\",'1. Order'!AE1085)","v":""}]
[{"$f":"IF('1. Order'!B1086=\"\",\"\",'1. Order'!B1086)","v":""},{"$f":"IF('1. Order'!I1086=\"\",\"\",'1. Order'!I1086)","v":""},{"$f":"IF('1. Order'!J1086=\"\",\"\",'1. Order'!J1086)","v":""},{"$f":"IF('1. Order'!K1086=\"\",\"\",'1. Order'!K1086)","v":""},{"$f":"IF('1. Order'!M1086=\"\",\"\",'1. Order'!M1086)","v":""},null,null,{"$f":"'1. Order'!AW1086","v":0},{"$f":"IF('1. Order'!AE1086=\"\",\"\",'1. Order'!AE1086)","v":""}]
[{"$f":"IF('1. Order'!B1087=\"\",\"\",'1. Order'!B1087)","v":""},{"$f":"IF('1. Order'!I1087=\"\",\"\",'1. Order'!I1087)","v":""},{"$f":"IF('1. Order'!J1087=\"\",\"\",'1. Order'!J1087)","v":""},{"$f":"IF('1. Order'!K1087=\"\",\"\",'1. Order'!K1087)","v":""},{"$f":"IF('1. Order'!M1087=\"\",\"\",'1. Order'!M1087)","v":""},null,null,{"$f":"'1. Order'!AW1087","v":0},{"$f":"IF('1. Order'!AE1087=\"\",\"\",'1. Order'!AE1087)","v":""}]
[{"$f":"IF('1. Order'!B1088=\"\",\"\",'1. Order'!B1088)","v":""},{"$f":"IF('1. Order'!I1088=\"\",\"\",'1. Order'!I1088)","v":""},{"$f":"IF('1. Order'!J1088=\"\",\"\",'1. Order'!J1088)","v":""},{"$f":"IF('1. Order'!K1088=\"\",\"\",'1. Order'!K1088)","v":""},{"$f":"IF('1. Order'!M1088=\"\",\"\",'1. Order'!M1088)","v":""},null,null,{"$f":"'1. Order'!AW1088","v":0},{"$f":"IF('1. Order'!AE1088=\"\",\"\",'1. Order'!AE1088)","v":""}]
[{"$f":"IF('1. Order'!B1089=\"\",\"\",'1. Order'!B1089)","v":""},{"$f":"IF('1. Order'!I1089=\"\",\"\",'1. Order'!I1089)","v":""},{"$f":"IF('1. Order'!J1089=\"\",\"\",'1. Order'!J1089)","v":""},{"$f":"IF('1. Order'!K1089=\"\",\"\",'1. Order'!K1089)","v":""},{"$f":"IF('1. Order'!M1089=\"\",\"\",'1. Order'!M1089)","v":""},null,null,{"$f":"'1. Order'!AW1089","v":0},{"$f":"IF('1. Order'!AE1089=\"\",\"\",'1. Order'!AE1089)","v":""}]
[{"$f":"IF('1. Order'!B1090=\"\",\"\",'1. Order'!B1090)","v":""},{"$f":"IF('1. Order'!I1090=\"\",\"\",'1. Order'!I1090)","v":""},{"$f":"IF('1. Order'!J1090=\"\",\"\",'1. Order'!J1090)","v":""},{"$f":"IF('1. Order'!K1090=\"\",\"\",'1. Order'!K1090)","v":""},{"$f":"IF('1. Order'!M1090=\"\",\"\",'1. Order'!M1090)","v":""},null,null,{"$f":"'1. Order'!AW1090","v":0},{"$f":"IF('1. Order'!AE1090=\"\",\"\",'1. Order'!AE1090)","v":""}]
[{"$f":"IF('1. Order'!B1091=\"\",\"\",'1. Order'!B1091)","v":""},{"$f":"IF('1. Order'!I1091=\"\",\"\",'1. Order'!I1091)","v":""},{"$f":"IF('1. Order'!J1091=\"\",\"\",'1. Order'!J1091)","v":""},{"$f":"IF('1. Order'!K1091=\"\",\"\",'1. Order'!K1091)","v":""},{"$f":"IF('1. Order'!M1091=\"\",\"\",'1. Order'!M1091)","v":""},null,null,{"$f":"'1. Order'!AW1091","v":0},{"$f":"IF('1. Order'!AE1091=\"\",\"\",'1. Order'!AE1091)","v":""}]
[{"$f":"IF('1. Order'!B1092=\"\",\"\",'1. Order'!B1092)","v":""},{"$f":"IF('1. Order'!I1092=\"\",\"\",'1. Order'!I1092)","v":""},{"$f":"IF('1. Order'!J1092=\"\",\"\",'1. Order'!J1092)","v":""},{"$f":"IF('1. Order'!K1092=\"\",\"\",'1. Order'!K1092)","v":""},{"$f":"IF('1. Order'!M1092=\"\",\"\",'1. Order'!M1092)","v":""},null,null,{"$f":"'1. Order'!AW1092","v":0},{"$f":"IF('1. Order'!AE1092=\"\",\"\",'1. Order'!AE1092)","v":""}]
[{"$f":"IF('1. Order'!B1093=\"\",\"\",'1. Order'!B1093)","v":""},{"$f":"IF('1. Order'!I1093=\"\",\"\",'1. Order'!I1093)","v":""},{"$f":"IF('1. Order'!J1093=\"\",\"\",'1. Order'!J1093)","v":""},{"$f":"IF('1. Order'!K1093=\"\",\"\",'1. Order'!K1093)","v":""},{"$f":"IF('1. Order'!M1093=\"\",\"\",'1. Order'!M1093)","v":""},null,null,{"$f":"'1. Order'!AW1093","v":0},{"$f":"IF('1. Order'!AE1093=\"\",\"\",'1. Order'!AE1093)","v":""}]
[{"$f":"IF('1. Order'!B1094=\"\",\"\",'1. Order'!B1094)","v":""},{"$f":"IF('1. Order'!I1094=\"\",\"\",'1. Order'!I1094)","v":""},{"$f":"IF('1. Order'!J1094=\"\",\"\",'1. Order'!J1094)","v":""},{"$f":"IF('1. Order'!K1094=\"\",\"\",'1. Order'!K1094)","v":""},{"$f":"IF('1. Order'!M1094=\"\",\"\",'1. Order'!M1094)","v":""},null,null,{"$f":"'1. Order'!AW1094","v":0},{"$f":"IF('1. Order'!AE1094=\"\",\"\",'1. Order'!AE1094)","v":""}]
[{"$f":"IF('1. Order'!B1095=\"\",\"\",'1. Order'!B1095)","v":""},{"$f":"IF('1. Order'!I1095=\"\",\"\",'1. Order'!I1095)","v":""},{"$f":"IF('1. Order'!J1095=\"\",\"\",'1. Order'!J1095)","v":""},{"$f":"IF('1. Order'!K1095=\"\",\"\",'1. Order'!K1095)","v":""},{"$f":"IF('1. Order'!M1095=\"\",\"\",'1. Order'!M1095)","v":""},null,null,{"$f":"'1. Order'!AW1095","v":0},{"$f":"IF('1. Order'!AE1095=\"\",\"\",'1. Order'!AE1095)","v":""}]
[{"$f":"IF('1. Order'!B1096=\"\",\"\",'1. Order'!B1096)","v":""},{"$f":"IF('1. Order'!I1096=\"\",\"\",'1. Order'!I1096)","v":""},{"$f":"IF('1. Order'!J1096=\"\",\"\",'1. Order'!J1096)","v":""},{"$f":"IF('1. Order'!K1096=\"\",\"\",'1. Order'!K1096)","v":""},{"$f":"IF('1. Order'!M1096=\"\",\"\",'1. Order'!M1096)","v":""},null,null,{"$f":"'1. Order'!AW1096","v":0},{"$f":"IF('1. Order'!AE1096=\"\",\"\",'1. Order'!AE1096)","v":""}]
[{"$f":"IF('1. Order'!B1097=\"\",\"\",'1. Order'!B1097)","v":""},{"$f":"IF('1. Order'!I1097=\"\",\"\",'1. Order'!I1097)","v":""},{"$f":"IF('1. Order'!J1097=\"\",\"\",'1. Order'!J1097)","v":""},{"$f":"IF('1. Order'!K1097=\"\",\"\",'1. Order'!K1097)","v":""},{"$f":"IF('1. Order'!M1097=\"\",\"\",'1. Order'!M1097)","v":""},null,null,{"$f":"'1. Order'!AW1097","v":0},{"$f":"IF('1. Order'!AE1097=\"\",\"\",'1. Order'!AE1097)","v":""}]
[{"$f":"IF('1. Order'!B1098=\"\",\"\",'1. Order'!B1098)","v":""},{"$f":"IF('1. Order'!I1098=\"\",\"\",'1. Order'!I1098)","v":""},{"$f":"IF('1. Order'!J1098=\"\",\"\",'1. Order'!J1098)","v":""},{"$f":"IF('1. Order'!K1098=\"\",\"\",'1. Order'!K1098)","v":""},{"$f":"IF('1. Order'!M1098=\"\",\"\",'1. Order'!M1098)","v":""},null,null,{"$f":"'1. Order'!AW1098","v":0},{"$f":"IF('1. Order'!AE1098=\"\",\"\",'1. Order'!AE1098)","v":""}]
[{"$f":"IF('1. Order'!B1099=\"\",\"\",'1. Order'!B1099)","v":""},{"$f":"IF('1. Order'!I1099=\"\",\"\",'1. Order'!I1099)","v":""},{"$f":"IF('1. Order'!J1099=\"\",\"\",'1. Order'!J1099)","v":""},{"$f":"IF('1. Order'!K1099=\"\",\"\",'1. Order'!K1099)","v":""},{"$f":"IF('1. Order'!M1099=\"\",\"\",'1. Order'!M1099)","v":""},null,null,{"$f":"'1. Order'!AW1099","v":0},{"$f":"IF('1. Order'!AE1099=\"\",\"\",'1. Order'!AE1099)","v":""}]
[{"$f":"IF('1. Order'!B1100=\"\",\"\",'1. Order'!B1100)","v":""},{"$f":"IF('1. Order'!I1100=\"\",\"\",'1. Order'!I1100)","v":""},{"$f":"IF('1. Order'!J1100=\"\",\"\",'1. Order'!J1100)","v":""},{"$f":"IF('1. Order'!K1100=\"\",\"\",'1. Order'!K1100)","v":""},{"$f":"IF('1. Order'!M1100=\"\",\"\",'1. Order'!M1100)","v":""},null,null,{"$f":"'1. Order'!AW1100","v":0},{"$f":"IF('1. Order'!AE1100=\"\",\"\",'1. Order'!AE1100)","v":""}]
[{"$f":"IF('1. Order'!B1101=\"\",\"\",'1. Order'!B1101)","v":""},{"$f":"IF('1. Order'!I1101=\"\",\"\",'1. Order'!I1101)","v":""},{"$f":"IF('1. Order'!J1101=\"\",\"\",'1. Order'!J1101)","v":""},{"$f":"IF('1. Order'!K1101=\"\",\"\",'1. Order'!K1101)","v":""},{"$f":"IF('1. Order'!M1101=\"\",\"\",'1. Order'!M1101)","v":""},null,null,{"$f":"'1. Order'!AW1101","v":0},{"$f":"IF('1. Order'!AE1101=\"\",\"\",'1. Order'!AE1101)","v":""}]
[{"$f":"IF('1. Order'!B1102=\"\",\"\",'1. Order'!B1102)","v":""},{"$f":"IF('1. Order'!I1102=\"\",\"\",'1. Order'!I1102)","v":""},{"$f":"IF('1. Order'!J1102=\"\",\"\",'1. Order'!J1102)","v":""},{"$f":"IF('1. Order'!K1102=\"\",\"\",'1. Order'!K1102)","v":""},{"$f":"IF('1. Order'!M1102=\"\",\"\",'1. Order'!M1102)","v":""},null,null,{"$f":"'1. Order'!AW1102","v":0},{"$f":"IF('1. Order'!AE1102=\"\",\"\",'1. Order'!AE1102)","v":""}]
[{"$f":"IF('1. Order'!B1103=\"\",\"\",'1. Order'!B1103)","v":""},{"$f":"IF('1. Order'!I1103=\"\",\"\",'1. Order'!I1103)","v":""},{"$f":"IF('1. Order'!J1103=\"\",\"\",'1. Order'!J1103)","v":""},{"$f":"IF('1. Order'!K1103=\"\",\"\",'1. Order'!K1103)","v":""},{"$f":"IF('1. Order'!M1103=\"\",\"\",'1. Order'!M1103)","v":""},null,null,{"$f":"'1. Order'!AW1103","v":0},{"$f":"IF('1. Order'!AE1103=\"\",\"\",'1. Order'!AE1103)","v":""}]
[{"$f":"IF('1. Order'!B1104=\"\",\"\",'1. Order'!B1104)","v":""},{"$f":"IF('1. Order'!I1104=\"\",\"\",'1. Order'!I1104)","v":""},{"$f":"IF('1. Order'!J1104=\"\",\"\",'1. Order'!J1104)","v":""},{"$f":"IF('1. Order'!K1104=\"\",\"\",'1. Order'!K1104)","v":""},{"$f":"IF('1. Order'!M1104=\"\",\"\",'1. Order'!M1104)","v":""},null,null,{"$f":"'1. Order'!AW1104","v":0},{"$f":"IF('1. Order'!AE1104=\"\",\"\",'1. Order'!AE1104)","v":""}]
[{"$f":"IF('1. Order'!B1105=\"\",\"\",'1. Order'!B1105)","v":""},{"$f":"IF('1. Order'!I1105=\"\",\"\",'1. Order'!I1105)","v":""},{"$f":"IF('1. Order'!J1105=\"\",\"\",'1. Order'!J1105)","v":""},{"$f":"IF('1. Order'!K1105=\"\",\"\",'1. Order'!K1105)","v":""},{"$f":"IF('1. Order'!M1105=\"\",\"\",'1. Order'!M1105)","v":""},null,null,{"$f":"'1. Order'!AW1105","v":0},{"$f":"IF('1. Order'!AE1105=\"\",\"\",'1. Order'!AE1105)","v":""}]
[{"$f":"IF('1. Order'!B1106=\"\",\"\",'1. Order'!B1106)","v":""},{"$f":"IF('1. Order'!I1106=\"\",\"\",'1. Order'!I1106)","v":""},{"$f":"IF('1. Order'!J1106=\"\",\"\",'1. Order'!J1106)","v":""},{"$f":"IF('1. Order'!K1106=\"\",\"\",'1. Order'!K1106)","v":""},{"$f":"IF('1. Order'!M1106=\"\",\"\",'1. Order'!M1106)","v":""},null,null,{"$f":"'1. Order'!AW1106","v":0},{"$f":"IF('1. Order'!AE1106=\"\",\"\",'1. Order'!AE1106)","v":""}]
[{"$f":"IF('1. Order'!B1107=\"\",\"\",'1. Order'!B1107)","v":""},{"$f":"IF('1. Order'!I1107=\"\",\"\",'1. Order'!I1107)","v":""},{"$f":"IF('1. Order'!J1107=\"\",\"\",'1. Order'!J1107)","v":""},{"$f":"IF('1. Order'!K1107=\"\",\"\",'1. Order'!K1107)","v":""},{"$f":"IF('1. Order'!M1107=\"\",\"\",'1. Order'!M1107)","v":""},null,null,{"$f":"'1. Order'!AW1107","v":0},{"$f":"IF('1. Order'!AE1107=\"\",\"\",'1. Order'!AE1107)","v":""}]
[{"$f":"IF('1. Order'!B1108=\"\",\"\",'1. Order'!B1108)","v":""},{"$f":"IF('1. Order'!I1108=\"\",\"\",'1. Order'!I1108)","v":""},{"$f":"IF('1. Order'!J1108=\"\",\"\",'1. Order'!J1108)","v":""},{"$f":"IF('1. Order'!K1108=\"\",\"\",'1. Order'!K1108)","v":""},{"$f":"IF('1. Order'!M1108=\"\",\"\",'1. Order'!M1108)","v":""},null,null,{"$f":"'1. Order'!AW1108","v":0},{"$f":"IF('1. Order'!AE1108=\"\",\"\",'1. Order'!AE1108)","v":""}]
[{"$f":"IF('1. Order'!B1109=\"\",\"\",'1. Order'!B1109)","v":""},{"$f":"IF('1. Order'!I1109=\"\",\"\",'1. Order'!I1109)","v":""},{"$f":"IF('1. Order'!J1109=\"\",\"\",'1. Order'!J1109)","v":""},{"$f":"IF('1. Order'!K1109=\"\",\"\",'1. Order'!K1109)","v":""},{"$f":"IF('1. Order'!M1109=\"\",\"\",'1. Order'!M1109)","v":""},null,null,{"$f":"'1. Order'!AW1109","v":0},{"$f":"IF('1. Order'!AE1109=\"\",\"\",'1. Order'!AE1109)","v":""}]
[{"$f":"IF('1. Order'!B1110=\"\",\"\",'1. Order'!B1110)","v":""},{"$f":"IF('1. Order'!I1110=\"\",\"\",'1. Order'!I1110)","v":""},{"$f":"IF('1. Order'!J1110=\"\",\"\",'1. Order'!J1110)","v":""},{"$f":"IF('1. Order'!K1110=\"\",\"\",'1. Order'!K1110)","v":""},{"$f":"IF('1. Order'!M1110=\"\",\"\",'1. Order'!M1110)","v":""},null,null,{"$f":"'1. Order'!AW1110","v":0},{"$f":"IF('1. Order'!AE1110=\"\",\"\",'1. Order'!AE1110)","v":""}]
[{"$f":"IF('1. Order'!B1111=\"\",\"\",'1. Order'!B1111)","v":""},{"$f":"IF('1. Order'!I1111=\"\",\"\",'1. Order'!I1111)","v":""},{"$f":"IF('1. Order'!J1111=\"\",\"\",'1. Order'!J1111)","v":""},{"$f":"IF('1. Order'!K1111=\"\",\"\",'1. Order'!K1111)","v":""},{"$f":"IF('1. Order'!M1111=\"\",\"\",'1. Order'!M1111)","v":""},null,null,{"$f":"'1. Order'!AW1111","v":0},{"$f":"IF('1. Order'!AE1111=\"\",\"\",'1. Order'!AE1111)","v":""}]
[{"$f":"IF('1. Order'!B1112=\"\",\"\",'1. Order'!B1112)","v":""},{"$f":"IF('1. Order'!I1112=\"\",\"\",'1. Order'!I1112)","v":""},{"$f":"IF('1. Order'!J1112=\"\",\"\",'1. Order'!J1112)","v":""},{"$f":"IF('1. Order'!K1112=\"\",\"\",'1. Order'!K1112)","v":""},{"$f":"IF('1. Order'!M1112=\"\",\"\",'1. Order'!M1112)","v":""},null,null,{"$f":"'1. Order'!AW1112","v":0},{"$f":"IF('1. Order'!AE1112=\"\",\"\",'1. Order'!AE1112)","v":""}]
[{"$f":"IF('1. Order'!B1113=\"\",\"\",'1. Order'!B1113)","v":""},{"$f":"IF('1. Order'!I1113=\"\",\"\",'1. Order'!I1113)","v":""},{"$f":"IF('1. Order'!J1113=\"\",\"\",'1. Order'!J1113)","v":""},{"$f":"IF('1. Order'!K1113=\"\",\"\",'1. Order'!K1113)","v":""},{"$f":"IF('1. Order'!M1113=\"\",\"\",'1. Order'!M1113)","v":""},null,null,{"$f":"'1. Order'!AW1113","v":0},{"$f":"IF('1. Order'!AE1113=\"\",\"\",'1. Order'!AE1113)","v":""}]
[{"$f":"IF('1. Order'!B1114=\"\",\"\",'1. Order'!B1114)","v":""},{"$f":"IF('1. Order'!I1114=\"\",\"\",'1. Order'!I1114)","v":""},{"$f":"IF('1. Order'!J1114=\"\",\"\",'1. Order'!J1114)","v":""},{"$f":"IF('1. Order'!K1114=\"\",\"\",'1. Order'!K1114)","v":""},{"$f":"IF('1. Order'!M1114=\"\",\"\",'1. Order'!M1114)","v":""},null,null,{"$f":"'1. Order'!AW1114","v":0},{"$f":"IF('1. Order'!AE1114=\"\",\"\",'1. Order'!AE1114)","v":""}]
[{"$f":"IF('1. Order'!B1115=\"\",\"\",'1. Order'!B1115)","v":""},{"$f":"IF('1. Order'!I1115=\"\",\"\",'1. Order'!I1115)","v":""},{"$f":"IF('1. Order'!J1115=\"\",\"\",'1. Order'!J1115)","v":""},{"$f":"IF('1. Order'!K1115=\"\",\"\",'1. Order'!K1115)","v":""},{"$f":"IF('1. Order'!M1115=\"\",\"\",'1. Order'!M1115)","v":""},null,null,{"$f":"'1. Order'!AW1115","v":0},{"$f":"IF('1. Order'!AE1115=\"\",\"\",'1. Order'!AE1115)","v":""}]
[{"$f":"IF('1. Order'!B1116=\"\",\"\",'1. Order'!B1116)","v":""},{"$f":"IF('1. Order'!I1116=\"\",\"\",'1. Order'!I1116)","v":""},{"$f":"IF('1. Order'!J1116=\"\",\"\",'1. Order'!J1116)","v":""},{"$f":"IF('1. Order'!K1116=\"\",\"\",'1. Order'!K1116)","v":""},{"$f":"IF('1. Order'!M1116=\"\",\"\",'1. Order'!M1116)","v":""},null,null,{"$f":"'1. Order'!AW1116","v":0},{"$f":"IF('1. Order'!AE1116=\"\",\"\",'1. Order'!AE1116)","v":""}]
[{"$f":"IF('1. Order'!B1117=\"\",\"\",'1. Order'!B1117)","v":""},{"$f":"IF('1. Order'!I1117=\"\",\"\",'1. Order'!I1117)","v":""},{"$f":"IF('1. Order'!J1117=\"\",\"\",'1. Order'!J1117)","v":""},{"$f":"IF('1. Order'!K1117=\"\",\"\",'1. Order'!K1117)","v":""},{"$f":"IF('1. Order'!M1117=\"\",\"\",'1. Order'!M1117)","v":""},null,null,{"$f":"'1. Order'!AW1117","v":0},{"$f":"IF('1. Order'!AE1117=\"\",\"\",'1. Order'!AE1117)","v":""}]
[{"$f":"IF('1. Order'!B1118=\"\",\"\",'1. Order'!B1118)","v":""},{"$f":"IF('1. Order'!I1118=\"\",\"\",'1. Order'!I1118)","v":""},{"$f":"IF('1. Order'!J1118=\"\",\"\",'1. Order'!J1118)","v":""},{"$f":"IF('1. Order'!K1118=\"\",\"\",'1. Order'!K1118)","v":""},{"$f":"IF('1. Order'!M1118=\"\",\"\",'1. Order'!M1118)","v":""},null,null,{"$f":"'1. Order'!AW1118","v":0},{"$f":"IF('1. Order'!AE1118=\"\",\"\",'1. Order'!AE1118)","v":""}]
[{"$f":"IF('1. Order'!B1119=\"\",\"\",'1. Order'!B1119)","v":""},{"$f":"IF('1. Order'!I1119=\"\",\"\",'1. Order'!I1119)","v":""},{"$f":"IF('1. Order'!J1119=\"\",\"\",'1. Order'!J1119)","v":""},{"$f":"IF('1. Order'!K1119=\"\",\"\",'1. Order'!K1119)","v":""},{"$f":"IF('1. Order'!M1119=\"\",\"\",'1. Order'!M1119)","v":""},null,null,{"$f":"'1. Order'!AW1119","v":0},{"$f":"IF('1. Order'!AE1119=\"\",\"\",'1. Order'!AE1119)","v":""}]
[{"$f":"IF('1. Order'!B1120=\"\",\"\",'1. Order'!B1120)","v":""},{"$f":"IF('1. Order'!I1120=\"\",\"\",'1. Order'!I1120)","v":""},{"$f":"IF('1. Order'!J1120=\"\",\"\",'1. Order'!J1120)","v":""},{"$f":"IF('1. Order'!K1120=\"\",\"\",'1. Order'!K1120)","v":""},{"$f":"IF('1. Order'!M1120=\"\",\"\",'1. Order'!M1120)","v":""},null,null,{"$f":"'1. Order'!AW1120","v":0},{"$f":"IF('1. Order'!AE1120=\"\",\"\",'1. Order'!AE1120)","v":""}]
[{"$f":"IF('1. Order'!B1121=\"\",\"\",'1. Order'!B1121)","v":""},{"$f":"IF('1. Order'!I1121=\"\",\"\",'1. Order'!I1121)","v":""},{"$f":"IF('1. Order'!J1121=\"\",\"\",'1. Order'!J1121)","v":""},{"$f":"IF('1. Order'!K1121=\"\",\"\",'1. Order'!K1121)","v":""},{"$f":"IF('1. Order'!M1121=\"\",\"\",'1. Order'!M1121)","v":""},null,null,{"$f":"'1. Order'!AW1121","v":0},{"$f":"IF('1. Order'!AE1121=\"\",\"\",'1. Order'!AE1121)","v":""}]
[{"$f":"IF('1. Order'!B1122=\"\",\"\",'1. Order'!B1122)","v":""},{"$f":"IF('1. Order'!I1122=\"\",\"\",'1. Order'!I1122)","v":""},{"$f":"IF('1. Order'!J1122=\"\",\"\",'1. Order'!J1122)","v":""},{"$f":"IF('1. Order'!K1122=\"\",\"\",'1. Order'!K1122)","v":""},{"$f":"IF('1. Order'!M1122=\"\",\"\",'1. Order'!M1122)","v":""},null,null,{"$f":"'1. Order'!AW1122","v":0},{"$f":"IF('1. Order'!AE1122=\"\",\"\",'1. Order'!AE1122)","v":""}]
[{"$f":"IF('1. Order'!B1123=\"\",\"\",'1. Order'!B1123)","v":""},{"$f":"IF('1. Order'!I1123=\"\",\"\",'1. Order'!I1123)","v":""},{"$f":"IF('1. Order'!J1123=\"\",\"\",'1. Order'!J1123)","v":""},{"$f":"IF('1. Order'!K1123=\"\",\"\",'1. Order'!K1123)","v":""},{"$f":"IF('1. Order'!M1123=\"\",\"\",'1. Order'!M1123)","v":""},null,null,{"$f":"'1. Order'!AW1123","v":0},{"$f":"IF('1. Order'!AE1123=\"\",\"\",'1. Order'!AE1123)","v":""}]
[{"$f":"IF('1. Order'!B1124=\"\",\"\",'1. Order'!B1124)","v":""},{"$f":"IF('1. Order'!I1124=\"\",\"\",'1. Order'!I1124)","v":""},{"$f":"IF('1. Order'!J1124=\"\",\"\",'1. Order'!J1124)","v":""},{"$f":"IF('1. Order'!K1124=\"\",\"\",'1. Order'!K1124)","v":""},{"$f":"IF('1. Order'!M1124=\"\",\"\",'1. Order'!M1124)","v":""},null,null,{"$f":"'1. Order'!AW1124","v":0},{"$f":"IF('1. Order'!AE1124=\"\",\"\",'1. Order'!AE1124)","v":""}]
[{"$f":"IF('1. Order'!B1125=\"\",\"\",'1. Order'!B1125)","v":""},{"$f":"IF('1. Order'!I1125=\"\",\"\",'1. Order'!I1125)","v":""},{"$f":"IF('1. Order'!J1125=\"\",\"\",'1. Order'!J1125)","v":""},{"$f":"IF('1. Order'!K1125=\"\",\"\",'1. Order'!K1125)","v":""},{"$f":"IF('1. Order'!M1125=\"\",\"\",'1. Order'!M1125)","v":""},null,null,{"$f":"'1. Order'!AW1125","v":0},{"$f":"IF('1. Order'!AE1125=\"\",\"\",'1. Order'!AE1125)","v":""}]
[{"$f":"IF('1. Order'!B1126=\"\",\"\",'1. Order'!B1126)","v":""},{"$f":"IF('1. Order'!I1126=\"\",\"\",'1. Order'!I1126)","v":""},{"$f":"IF('1. Order'!J1126=\"\",\"\",'1. Order'!J1126)","v":""},{"$f":"IF('1. Order'!K1126=\"\",\"\",'1. Order'!K1126)","v":""},{"$f":"IF('1. Order'!M1126=\"\",\"\",'1. Order'!M1126)","v":""},null,null,{"$f":"'1. Order'!AW1126","v":0},{"$f":"IF('1. Order'!AE1126=\"\",\"\",'1. Order'!AE1126)","v":""}]
[{"$f":"IF('1. Order'!B1127=\"\",\"\",'1. Order'!B1127)","v":""},{"$f":"IF('1. Order'!I1127=\"\",\"\",'1. Order'!I1127)","v":""},{"$f":"IF('1. Order'!J1127=\"\",\"\",'1. Order'!J1127)","v":""},{"$f":"IF('1. Order'!K1127=\"\",\"\",'1. Order'!K1127)","v":""},{"$f":"IF('1. Order'!M1127=\"\",\"\",'1. Order'!M1127)","v":""},null,null,{"$f":"'1. Order'!AW1127","v":0},{"$f":"IF('1. Order'!AE1127=\"\",\"\",'1. Order'!AE1127)","v":""}]
[{"$f":"IF('1. Order'!B1128=\"\",\"\",'1. Order'!B1128)","v":""},{"$f":"IF('1. Order'!I1128=\"\",\"\",'1. Order'!I1128)","v":""},{"$f":"IF('1. Order'!J1128=\"\",\"\",'1. Order'!J1128)","v":""},{"$f":"IF('1. Order'!K1128=\"\",\"\",'1. Order'!K1128)","v":""},{"$f":"IF('1. Order'!M1128=\"\",\"\",'1. Order'!M1128)","v":""},null,null,{"$f":"'1. Order'!AW1128","v":0},{"$f":"IF('1. Order'!AE1128=\"\",\"\",'1. Order'!AE1128)","v":""}]
[{"$f":"IF('1. Order'!B1129=\"\",\"\",'1. Order'!B1129)","v":""},{"$f":"IF('1. Order'!I1129=\"\",\"\",'1. Order'!I1129)","v":""},{"$f":"IF('1. Order'!J1129=\"\",\"\",'1. Order'!J1129)","v":""},{"$f":"IF('1. Order'!K1129=\"\",\"\",'1. Order'!K1129)","v":""},{"$f":"IF('1. Order'!M1129=\"\",\"\",'1. Order'!M1129)","v":""},null,null,{"$f":"'1. Order'!AW1129","v":0},{"$f":"IF('1. Order'!AE1129=\"\",\"\",'1. Order'!AE1129)","v":""}]
[{"$f":"IF('1. Order'!B1130=\"\",\"\",'1. Order'!B1130)","v":""},{"$f":"IF('1. Order'!I1130=\"\",\"\",'1. Order'!I1130)","v":""},{"$f":"IF('1. Order'!J1130=\"\",\"\",'1. Order'!J1130)","v":""},{"$f":"IF('1. Order'!K1130=\"\",\"\",'1. Order'!K1130)","v":""},{"$f":"IF('1. Order'!M1130=\"\",\"\",'1. Order'!M1130)","v":""},null,null,{"$f":"'1. Order'!AW1130","v":0},{"$f":"IF('1. Order'!AE1130=\"\",\"\",'1. Order'!AE1130)","v":""}]
[{"$f":"IF('1. Order'!B1131=\"\",\"\",'1. Order'!B1131)","v":""},{"$f":"IF('1. Order'!I1131=\"\",\"\",'1. Order'!I1131)","v":""},{"$f":"IF('1. Order'!J1131=\"\",\"\",'1. Order'!J1131)","v":""},{"$f":"IF('1. Order'!K1131=\"\",\"\",'1. Order'!K1131)","v":""},{"$f":"IF('1. Order'!M1131=\"\",\"\",'1. Order'!M1131)","v":""},null,null,{"$f":"'1. Order'!AW1131","v":0},{"$f":"IF('1. Order'!AE1131=\"\",\"\",'1. Order'!AE1131)","v":""}]
[{"$f":"IF('1. Order'!B1132=\"\",\"\",'1. Order'!B1132)","v":""},{"$f":"IF('1. Order'!I1132=\"\",\"\",'1. Order'!I1132)","v":""},{"$f":"IF('1. Order'!J1132=\"\",\"\",'1. Order'!J1132)","v":""},{"$f":"IF('1. Order'!K1132=\"\",\"\",'1. Order'!K1132)","v":""},{"$f":"IF('1. Order'!M1132=\"\",\"\",'1. Order'!M1132)","v":""},null,null,{"$f":"'1. Order'!AW1132","v":0},{"$f":"IF('1. Order'!AE1132=\"\",\"\",'1. Order'!AE1132)","v":""}]
[{"$f":"IF('1. Order'!B1133=\"\",\"\",'1. Order'!B1133)","v":""},{"$f":"IF('1. Order'!I1133=\"\",\"\",'1. Order'!I1133)","v":""},{"$f":"IF('1. Order'!J1133=\"\",\"\",'1. Order'!J1133)","v":""},{"$f":"IF('1. Order'!K1133=\"\",\"\",'1. Order'!K1133)","v":""},{"$f":"IF('1. Order'!M1133=\"\",\"\",'1. Order'!M1133)","v":""},null,null,{"$f":"'1. Order'!AW1133","v":0},{"$f":"IF('1. Order'!AE1133=\"\",\"\",'1. Order'!AE1133)","v":""}]
[{"$f":"IF('1. Order'!B1134=\"\",\"\",'1. Order'!B1134)","v":""},{"$f":"IF('1. Order'!I1134=\"\",\"\",'1. Order'!I1134)","v":""},{"$f":"IF('1. Order'!J1134=\"\",\"\",'1. Order'!J1134)","v":""},{"$f":"IF('1. Order'!K1134=\"\",\"\",'1. Order'!K1134)","v":""},{"$f":"IF('1. Order'!M1134=\"\",\"\",'1. Order'!M1134)","v":""},null,null,{"$f":"'1. Order'!AW1134","v":0},{"$f":"IF('1. Order'!AE1134=\"\",\"\",'1. Order'!AE1134)","v":""}]
[{"$f":"IF('1. Order'!B1135=\"\",\"\",'1. Order'!B1135)","v":""},{"$f":"IF('1. Order'!I1135=\"\",\"\",'1. Order'!I1135)","v":""},{"$f":"IF('1. Order'!J1135=\"\",\"\",'1. Order'!J1135)","v":""},{"$f":"IF('1. Order'!K1135=\"\",\"\",'1. Order'!K1135)","v":""},{"$f":"IF('1. Order'!M1135=\"\",\"\",'1. Order'!M1135)","v":""},null,null,{"$f":"'1. Order'!AW1135","v":0},{"$f":"IF('1. Order'!AE1135=\"\",\"\",'1. Order'!AE1135)","v":""}]
[{"$f":"IF('1. Order'!B1136=\"\",\"\",'1. Order'!B1136)","v":""},{"$f":"IF('1. Order'!I1136=\"\",\"\",'1. Order'!I1136)","v":""},{"$f":"IF('1. Order'!J1136=\"\",\"\",'1. Order'!J1136)","v":""},{"$f":"IF('1. Order'!K1136=\"\",\"\",'1. Order'!K1136)","v":""},{"$f":"IF('1. Order'!M1136=\"\",\"\",'1. Order'!M1136)","v":""},null,null,{"$f":"'1. Order'!AW1136","v":0},{"$f":"IF('1. Order'!AE1136=\"\",\"\",'1. Order'!AE1136)","v":""}]
[{"$f":"IF('1. Order'!B1137=\"\",\"\",'1. Order'!B1137)","v":""},{"$f":"IF('1. Order'!I1137=\"\",\"\",'1. Order'!I1137)","v":""},{"$f":"IF('1. Order'!J1137=\"\",\"\",'1. Order'!J1137)","v":""},{"$f":"IF('1. Order'!K1137=\"\",\"\",'1. Order'!K1137)","v":""},{"$f":"IF('1. Order'!M1137=\"\",\"\",'1. Order'!M1137)","v":""},null,null,{"$f":"'1. Order'!AW1137","v":0},{"$f":"IF('1. Order'!AE1137=\"\",\"\",'1. Order'!AE1137)","v":""}]
[{"$f":"IF('1. Order'!B1138=\"\",\"\",'1. Order'!B1138)","v":""},{"$f":"IF('1. Order'!I1138=\"\",\"\",'1. Order'!I1138)","v":""},{"$f":"IF('1. Order'!J1138=\"\",\"\",'1. Order'!J1138)","v":""},{"$f":"IF('1. Order'!K1138=\"\",\"\",'1. Order'!K1138)","v":""},{"$f":"IF('1. Order'!M1138=\"\",\"\",'1. Order'!M1138)","v":""},null,null,{"$f":"'1. Order'!AW1138","v":0},{"$f":"IF('1. Order'!AE1138=\"\",\"\",'1. Order'!AE1138)","v":""}]
[{"$f":"IF('1. Order'!B1139=\"\",\"\",'1. Order'!B1139)","v":""},{"$f":"IF('1. Order'!I1139=\"\",\"\",'1. Order'!I1139)","v":""},{"$f":"IF('1. Order'!J1139=\"\",\"\",'1. Order'!J1139)","v":""},{"$f":"IF('1. Order'!K1139=\"\",\"\",'1. Order'!K1139)","v":""},{"$f":"IF('1. Order'!M1139=\"\",\"\",'1. Order'!M1139)","v":""},null,null,{"$f":"'1. Order'!AW1139","v":0},{"$f":"IF('1. Order'!AE1139=\"\",\"\",'1. Order'!AE1139)","v":""}]
[{"$f":"IF('1. Order'!B1140=\"\",\"\",'1. Order'!B1140)","v":""},{"$f":"IF('1. Order'!I1140=\"\",\"\",'1. Order'!I1140)","v":""},{"$f":"IF('1. Order'!J1140=\"\",\"\",'1. Order'!J1140)","v":""},{"$f":"IF('1. Order'!K1140=\"\",\"\",'1. Order'!K1140)","v":""},{"$f":"IF('1. Order'!M1140=\"\",\"\",'1. Order'!M1140)","v":""},null,null,{"$f":"'1. Order'!AW1140","v":0},{"$f":"IF('1. Order'!AE1140=\"\",\"\",'1. Order'!AE1140)","v":""}]
[{"$f":"IF('1. Order'!B1141=\"\",\"\",'1. Order'!B1141)","v":""},{"$f":"IF('1. Order'!I1141=\"\",\"\",'1. Order'!I1141)","v":""},{"$f":"IF('1. Order'!J1141=\"\",\"\",'1. Order'!J1141)","v":""},{"$f":"IF('1. Order'!K1141=\"\",\"\",'1. Order'!K1141)","v":""},{"$f":"IF('1. Order'!M1141=\"\",\"\",'1. Order'!M1141)","v":""},null,null,{"$f":"'1. Order'!AW1141","v":0},{"$f":"IF('1. Order'!AE1141=\"\",\"\",'1. Order'!AE1141)","v":""}]
[{"$f":"IF('1. Order'!B1142=\"\",\"\",'1. Order'!B1142)","v":""},{"$f":"IF('1. Order'!I1142=\"\",\"\",'1. Order'!I1142)","v":""},{"$f":"IF('1. Order'!J1142=\"\",\"\",'1. Order'!J1142)","v":""},{"$f":"IF('1. Order'!K1142=\"\",\"\",'1. Order'!K1142)","v":""},{"$f":"IF('1. Order'!M1142=\"\",\"\",'1. Order'!M1142)","v":""},null,null,{"$f":"'1. Order'!AW1142","v":0},{"$f":"IF('1. Order'!AE1142=\"\",\"\",'1. Order'!AE1142)","v":""}]
[{"$f":"IF('1. Order'!B1143=\"\",\"\",'1. Order'!B1143)","v":""},{"$f":"IF('1. Order'!I1143=\"\",\"\",'1. Order'!I1143)","v":""},{"$f":"IF('1. Order'!J1143=\"\",\"\",'1. Order'!J1143)","v":""},{"$f":"IF('1. Order'!K1143=\"\",\"\",'1. Order'!K1143)","v":""},{"$f":"IF('1. Order'!M1143=\"\",\"\",'1. Order'!M1143)","v":""},null,null,{"$f":"'1. Order'!AW1143","v":0},{"$f":"IF('1. Order'!AE1143=\"\",\"\",'1. Order'!AE1143)","v":""}]
[{"$f":"IF('1. Order'!B1144=\"\",\"\",'1. Order'!B1144)","v":""},{"$f":"IF('1. Order'!I1144=\"\",\"\",'1. Order'!I1144)","v":""},{"$f":"IF('1. Order'!J1144=\"\",\"\",'1. Order'!J1144)","v":""},{"$f":"IF('1. Order'!K1144=\"\",\"\",'1. Order'!K1144)","v":""},{"$f":"IF('1. Order'!M1144=\"\",\"\",'1. Order'!M1144)","v":""},null,null,{"$f":"'1. Order'!AW1144","v":0},{"$f":"IF('1. Order'!AE1144=\"\",\"\",'1. Order'!AE1144)","v":""}]
[{"$f":"IF('1. Order'!B1145=\"\",\"\",'1. Order'!B1145)","v":""},{"$f":"IF('1. Order'!I1145=\"\",\"\",'1. Order'!I1145)","v":""},{"$f":"IF('1. Order'!J1145=\"\",\"\",'1. Order'!J1145)","v":""},{"$f":"IF('1. Order'!K1145=\"\",\"\",'1. Order'!K1145)","v":""},{"$f":"IF('1. Order'!M1145=\"\",\"\",'1. Order'!M1145)","v":""},null,null,{"$f":"'1. Order'!AW1145","v":0},{"$f":"IF('1. Order'!AE1145=\"\",\"\",'1. Order'!AE1145)","v":""}]
[{"$f":"IF('1. Order'!B1146=\"\",\"\",'1. Order'!B1146)","v":""},{"$f":"IF('1. Order'!I1146=\"\",\"\",'1. Order'!I1146)","v":""},{"$f":"IF('1. Order'!J1146=\"\",\"\",'1. Order'!J1146)","v":""},{"$f":"IF('1. Order'!K1146=\"\",\"\",'1. Order'!K1146)","v":""},{"$f":"IF('1. Order'!M1146=\"\",\"\",'1. Order'!M1146)","v":""},null,null,{"$f":"'1. Order'!AW1146","v":0},{"$f":"IF('1. Order'!AE1146=\"\",\"\",'1. Order'!AE1146)","v":""}]
[{"$f":"IF('1. Order'!B1147=\"\",\"\",'1. Order'!B1147)","v":""},{"$f":"IF('1. Order'!I1147=\"\",\"\",'1. Order'!I1147)","v":""},{"$f":"IF('1. Order'!J1147=\"\",\"\",'1. Order'!J1147)","v":""},{"$f":"IF('1. Order'!K1147=\"\",\"\",'1. Order'!K1147)","v":""},{"$f":"IF('1. Order'!M1147=\"\",\"\",'1. Order'!M1147)","v":""},null,null,{"$f":"'1. Order'!AW1147","v":0},{"$f":"IF('1. Order'!AE1147=\"\",\"\",'1. Order'!AE1147)","v":""}]
[{"$f":"IF('1. Order'!B1148=\"\",\"\",'1. Order'!B1148)","v":""},{"$f":"IF('1. Order'!I1148=\"\",\"\",'1. Order'!I1148)","v":""},{"$f":"IF('1. Order'!J1148=\"\",\"\",'1. Order'!J1148)","v":""},{"$f":"IF('1. Order'!K1148=\"\",\"\",'1. Order'!K1148)","v":""},{"$f":"IF('1. Order'!M1148=\"\",\"\",'1. Order'!M1148)","v":""},null,null,{"$f":"'1. Order'!AW1148","v":0},{"$f":"IF('1. Order'!AE1148=\"\",\"\",'1. Order'!AE1148)","v":""}]
[{"$f":"IF('1. Order'!B1149=\"\",\"\",'1. Order'!B1149)","v":""},{"$f":"IF('1. Order'!I1149=\"\",\"\",'1. Order'!I1149)","v":""},{"$f":"IF('1. Order'!J1149=\"\",\"\",'1. Order'!J1149)","v":""},{"$f":"IF('1. Order'!K1149=\"\",\"\",'1. Order'!K1149)","v":""},{"$f":"IF('1. Order'!M1149=\"\",\"\",'1. Order'!M1149)","v":""},null,null,{"$f":"'1. Order'!AW1149","v":0},{"$f":"IF('1. Order'!AE1149=\"\",\"\",'1. Order'!AE1149)","v":""}]
[{"$f":"IF('1. Order'!B1150=\"\",\"\",'1. Order'!B1150)","v":""},{"$f":"IF('1. Order'!I1150=\"\",\"\",'1. Order'!I1150)","v":""},{"$f":"IF('1. Order'!J1150=\"\",\"\",'1. Order'!J1150)","v":""},{"$f":"IF('1. Order'!K1150=\"\",\"\",'1. Order'!K1150)","v":""},{"$f":"IF('1. Order'!M1150=\"\",\"\",'1. Order'!M1150)","v":""},null,null,{"$f":"'1. Order'!AW1150","v":0},{"$f":"IF('1. Order'!AE1150=\"\",\"\",'1. Order'!AE1150)","v":""}]
[{"$f":"IF('1. Order'!B1151=\"\",\"\",'1. Order'!B1151)","v":""},{"$f":"IF('1. Order'!I1151=\"\",\"\",'1. Order'!I1151)","v":""},{"$f":"IF('1. Order'!J1151=\"\",\"\",'1. Order'!J1151)","v":""},{"$f":"IF('1. Order'!K1151=\"\",\"\",'1. Order'!K1151)","v":""},{"$f":"IF('1. Order'!M1151=\"\",\"\",'1. Order'!M1151)","v":""},null,null,{"$f":"'1. Order'!AW1151","v":0},{"$f":"IF('1. Order'!AE1151=\"\",\"\",'1. Order'!AE1151)","v":""}]
[{"$f":"IF('1. Order'!B1152=\"\",\"\",'1. Order'!B1152)","v":""},{"$f":"IF('1. Order'!I1152=\"\",\"\",'1. Order'!I1152)","v":""},{"$f":"IF('1. Order'!J1152=\"\",\"\",'1. Order'!J1152)","v":""},{"$f":"IF('1. Order'!K1152=\"\",\"\",'1. Order'!K1152)","v":""},{"$f":"IF('1. Order'!M1152=\"\",\"\",'1. Order'!M1152)","v":""},null,null,{"$f":"'1. Order'!AW1152","v":0},{"$f":"IF('1. Order'!AE1152=\"\",\"\",'1. Order'!AE1152)","v":""}]
[{"$f":"IF('1. Order'!B1153=\"\",\"\",'1. Order'!B1153)","v":""},{"$f":"IF('1. Order'!I1153=\"\",\"\",'1. Order'!I1153)","v":""},{"$f":"IF('1. Order'!J1153=\"\",\"\",'1. Order'!J1153)","v":""},{"$f":"IF('1. Order'!K1153=\"\",\"\",'1. Order'!K1153)","v":""},{"$f":"IF('1. Order'!M1153=\"\",\"\",'1. Order'!M1153)","v":""},null,null,{"$f":"'1. Order'!AW1153","v":0},{"$f":"IF('1. Order'!AE1153=\"\",\"\",'1. Order'!AE1153)","v":""}]
[{"$f":"IF('1. Order'!B1154=\"\",\"\",'1. Order'!B1154)","v":""},{"$f":"IF('1. Order'!I1154=\"\",\"\",'1. Order'!I1154)","v":""},{"$f":"IF('1. Order'!J1154=\"\",\"\",'1. Order'!J1154)","v":""},{"$f":"IF('1. Order'!K1154=\"\",\"\",'1. Order'!K1154)","v":""},{"$f":"IF('1. Order'!M1154=\"\",\"\",'1. Order'!M1154)","v":""},null,null,{"$f":"'1. Order'!AW1154","v":0},{"$f":"IF('1. Order'!AE1154=\"\",\"\",'1. Order'!AE1154)","v":""}]
[{"$f":"IF('1. Order'!B1155=\"\",\"\",'1. Order'!B1155)","v":""},{"$f":"IF('1. Order'!I1155=\"\",\"\",'1. Order'!I1155)","v":""},{"$f":"IF('1. Order'!J1155=\"\",\"\",'1. Order'!J1155)","v":""},{"$f":"IF('1. Order'!K1155=\"\",\"\",'1. Order'!K1155)","v":""},{"$f":"IF('1. Order'!M1155=\"\",\"\",'1. Order'!M1155)","v":""},null,null,{"$f":"'1. Order'!AW1155","v":0},{"$f":"IF('1. Order'!AE1155=\"\",\"\",'1. Order'!AE1155)","v":""}]
[{"$f":"IF('1. Order'!B1156=\"\",\"\",'1. Order'!B1156)","v":""},{"$f":"IF('1. Order'!I1156=\"\",\"\",'1. Order'!I1156)","v":""},{"$f":"IF('1. Order'!J1156=\"\",\"\",'1. Order'!J1156)","v":""},{"$f":"IF('1. Order'!K1156=\"\",\"\",'1. Order'!K1156)","v":""},{"$f":"IF('1. Order'!M1156=\"\",\"\",'1. Order'!M1156)","v":""},null,null,{"$f":"'1. Order'!AW1156","v":0},{"$f":"IF('1. Order'!AE1156=\"\",\"\",'1. Order'!AE1156)","v":""}]
[{"$f":"IF('1. Order'!B1157=\"\",\"\",'1. Order'!B1157)","v":""},{"$f":"IF('1. Order'!I1157=\"\",\"\",'1. Order'!I1157)","v":""},{"$f":"IF('1. Order'!J1157=\"\",\"\",'1. Order'!J1157)","v":""},{"$f":"IF('1. Order'!K1157=\"\",\"\",'1. Order'!K1157)","v":""},{"$f":"IF('1. Order'!M1157=\"\",\"\",'1. Order'!M1157)","v":""},null,null,{"$f":"'1. Order'!AW1157","v":0},{"$f":"IF('1. Order'!AE1157=\"\",\"\",'1. Order'!AE1157)","v":""}]
[{"$f":"IF('1. Order'!B1158=\"\",\"\",'1. Order'!B1158)","v":""},{"$f":"IF('1. Order'!I1158=\"\",\"\",'1. Order'!I1158)","v":""},{"$f":"IF('1. Order'!J1158=\"\",\"\",'1. Order'!J1158)","v":""},{"$f":"IF('1. Order'!K1158=\"\",\"\",'1. Order'!K1158)","v":""},{"$f":"IF('1. Order'!M1158=\"\",\"\",'1. Order'!M1158)","v":""},null,null,{"$f":"'1. Order'!AW1158","v":0},{"$f":"IF('1. Order'!AE1158=\"\",\"\",'1. Order'!AE1158)","v":""}]
[{"$f":"IF('1. Order'!B1159=\"\",\"\",'1. Order'!B1159)","v":""},{"$f":"IF('1. Order'!I1159=\"\",\"\",'1. Order'!I1159)","v":""},{"$f":"IF('1. Order'!J1159=\"\",\"\",'1. Order'!J1159)","v":""},{"$f":"IF('1. Order'!K1159=\"\",\"\",'1. Order'!K1159)","v":""},{"$f":"IF('1. Order'!M1159=\"\",\"\",'1. Order'!M1159)","v":""},null,null,{"$f":"'1. Order'!AW1159","v":0},{"$f":"IF('1. Order'!AE1159=\"\",\"\",'1. Order'!AE1159)","v":""}]
[{"$f":"IF('1. Order'!B1160=\"\",\"\",'1. Order'!B1160)","v":""},{"$f":"IF('1. Order'!I1160=\"\",\"\",'1. Order'!I1160)","v":""},{"$f":"IF('1. Order'!J1160=\"\",\"\",'1. Order'!J1160)","v":""},{"$f":"IF('1. Order'!K1160=\"\",\"\",'1. Order'!K1160)","v":""},{"$f":"IF('1. Order'!M1160=\"\",\"\",'1. Order'!M1160)","v":""},null,null,{"$f":"'1. Order'!AW1160","v":0},{"$f":"IF('1. Order'!AE1160=\"\",\"\",'1. Order'!AE1160)","v":""}]
[{"$f":"IF('1. Order'!B1161=\"\",\"\",'1. Order'!B1161)","v":""},{"$f":"IF('1. Order'!I1161=\"\",\"\",'1. Order'!I1161)","v":""},{"$f":"IF('1. Order'!J1161=\"\",\"\",'1. Order'!J1161)","v":""},{"$f":"IF('1. Order'!K1161=\"\",\"\",'1. Order'!K1161)","v":""},{"$f":"IF('1. Order'!M1161=\"\",\"\",'1. Order'!M1161)","v":""},null,null,{"$f":"'1. Order'!AW1161","v":0},{"$f":"IF('1. Order'!AE1161=\"\",\"\",'1. Order'!AE1161)","v":""}]
[{"$f":"IF('1. Order'!B1162=\"\",\"\",'1. Order'!B1162)","v":""},{"$f":"IF('1. Order'!I1162=\"\",\"\",'1. Order'!I1162)","v":""},{"$f":"IF('1. Order'!J1162=\"\",\"\",'1. Order'!J1162)","v":""},{"$f":"IF('1. Order'!K1162=\"\",\"\",'1. Order'!K1162)","v":""},{"$f":"IF('1. Order'!M1162=\"\",\"\",'1. Order'!M1162)","v":""},null,null,{"$f":"'1. Order'!AW1162","v":0},{"$f":"IF('1. Order'!AE1162=\"\",\"\",'1. Order'!AE1162)","v":""}]
[{"$f":"IF('1. Order'!B1163=\"\",\"\",'1. Order'!B1163)","v":""},{"$f":"IF('1. Order'!I1163=\"\",\"\",'1. Order'!I1163)","v":""},{"$f":"IF('1. Order'!J1163=\"\",\"\",'1. Order'!J1163)","v":""},{"$f":"IF('1. Order'!K1163=\"\",\"\",'1. Order'!K1163)","v":""},{"$f":"IF('1. Order'!M1163=\"\",\"\",'1. Order'!M1163)","v":""},null,null,{"$f":"'1. Order'!AW1163","v":0},{"$f":"IF('1. Order'!AE1163=\"\",\"\",'1. Order'!AE1163)","v":""}]
[{"$f":"IF('1. Order'!B1164=\"\",\"\",'1. Order'!B1164)","v":""},{"$f":"IF('1. Order'!I1164=\"\",\"\",'1. Order'!I1164)","v":""},{"$f":"IF('1. Order'!J1164=\"\",\"\",'1. Order'!J1164)","v":""},{"$f":"IF('1. Order'!K1164=\"\",\"\",'1. Order'!K1164)","v":""},{"$f":"IF('1. Order'!M1164=\"\",\"\",'1. Order'!M1164)","v":""},null,null,{"$f":"'1. Order'!AW1164","v":0},{"$f":"IF('1. Order'!AE1164=\"\",\"\",'1. Order'!AE1164)","v":""}]
[{"$f":"IF('1. Order'!B1165=\"\",\"\",'1. Order'!B1165)","v":""},{"$f":"IF('1. Order'!I1165=\"\",\"\",'1. Order'!I1165)","v":""},{"$f":"IF('1. Order'!J1165=\"\",\"\",'1. Order'!J1165)","v":""},{"$f":"IF('1. Order'!K1165=\"\",\"\",'1. Order'!K1165)","v":""},{"$f":"IF('1. Order'!M1165=\"\",\"\",'1. Order'!M1165)","v":""},null,null,{"$f":"'1. Order'!AW1165","v":0},{"$f":"IF('1. Order'!AE1165=\"\",\"\",'1. Order'!AE1165)","v":""}]
[{"$f":"IF('1. Order'!B1166=\"\",\"\",'1. Order'!B1166)","v":""},{"$f":"IF('1. Order'!I1166=\"\",\"\",'1. Order'!I1166)","v":""},{"$f":"IF('1. Order'!J1166=\"\",\"\",'1. Order'!J1166)","v":""},{"$f":"IF('1. Order'!K1166=\"\",\"\",'1. Order'!K1166)","v":""},{"$f":"IF('1. Order'!M1166=\"\",\"\",'1. Order'!M1166)","v":""},null,null,{"$f":"'1. Order'!AW1166","v":0},{"$f":"IF('1. Order'!AE1166=\"\",\"\",'1. Order'!AE1166)","v":""}]
[{"$f":"IF('1. Order'!B1167=\"\",\"\",'1. Order'!B1167)","v":""},{"$f":"IF('1. Order'!I1167=\"\",\"\",'1. Order'!I1167)","v":""},{"$f":"IF('1. Order'!J1167=\"\",\"\",'1. Order'!J1167)","v":""},{"$f":"IF('1. Order'!K1167=\"\",\"\",'1. Order'!K1167)","v":""},{"$f":"IF('1. Order'!M1167=\"\",\"\",'1. Order'!M1167)","v":""},null,null,{"$f":"'1. Order'!AW1167","v":0},{"$f":"IF('1. Order'!AE1167=\"\",\"\",'1. Order'!AE1167)","v":""}]
[{"$f":"IF('1. Order'!B1168=\"\",\"\",'1. Order'!B1168)","v":""},{"$f":"IF('1. Order'!I1168=\"\",\"\",'1. Order'!I1168)","v":""},{"$f":"IF('1. Order'!J1168=\"\",\"\",'1. Order'!J1168)","v":""},{"$f":"IF('1. Order'!K1168=\"\",\"\",'1. Order'!K1168)","v":""},{"$f":"IF('1. Order'!M1168=\"\",\"\",'1. Order'!M1168)","v":""},null,null,{"$f":"'1. Order'!AW1168","v":0},{"$f":"IF('1. Order'!AE1168=\"\",\"\",'1. Order'!AE1168)","v":""}]
[{"$f":"IF('1. Order'!B1169=\"\",\"\",'1. Order'!B1169)","v":""},{"$f":"IF('1. Order'!I1169=\"\",\"\",'1. Order'!I1169)","v":""},{"$f":"IF('1. Order'!J1169=\"\",\"\",'1. Order'!J1169)","v":""},{"$f":"IF('1. Order'!K1169=\"\",\"\",'1. Order'!K1169)","v":""},{"$f":"IF('1. Order'!M1169=\"\",\"\",'1. Order'!M1169)","v":""},null,null,{"$f":"'1. Order'!AW1169","v":0},{"$f":"IF('1. Order'!AE1169=\"\",\"\",'1. Order'!AE1169)","v":""}]
[{"$f":"IF('1. Order'!B1170=\"\",\"\",'1. Order'!B1170)","v":""},{"$f":"IF('1. Order'!I1170=\"\",\"\",'1. Order'!I1170)","v":""},{"$f":"IF('1. Order'!J1170=\"\",\"\",'1. Order'!J1170)","v":""},{"$f":"IF('1. Order'!K1170=\"\",\"\",'1. Order'!K1170)","v":""},{"$f":"IF('1. Order'!M1170=\"\",\"\",'1. Order'!M1170)","v":""},null,null,{"$f":"'1. Order'!AW1170","v":0},{"$f":"IF('1. Order'!AE1170=\"\",\"\",'1. Order'!AE1170)","v":""}]
[{"$f":"IF('1. Order'!B1171=\"\",\"\",'1. Order'!B1171)","v":""},{"$f":"IF('1. Order'!I1171=\"\",\"\",'1. Order'!I1171)","v":""},{"$f":"IF('1. Order'!J1171=\"\",\"\",'1. Order'!J1171)","v":""},{"$f":"IF('1. Order'!K1171=\"\",\"\",'1. Order'!K1171)","v":""},{"$f":"IF('1. Order'!M1171=\"\",\"\",'1. Order'!M1171)","v":""},null,null,{"$f":"'1. Order'!AW1171","v":0},{"$f":"IF('1. Order'!AE1171=\"\",\"\",'1. Order'!AE1171)","v":""}]
[{"$f":"IF('1. Order'!B1172=\"\",\"\",'1. Order'!B1172)","v":""},{"$f":"IF('1. Order'!I1172=\"\",\"\",'1. Order'!I1172)","v":""},{"$f":"IF('1. Order'!J1172=\"\",\"\",'1. Order'!J1172)","v":""},{"$f":"IF('1. Order'!K1172=\"\",\"\",'1. Order'!K1172)","v":""},{"$f":"IF('1. Order'!M1172=\"\",\"\",'1. Order'!M1172)","v":""},null,null,{"$f":"'1. Order'!AW1172","v":0},{"$f":"IF('1. Order'!AE1172=\"\",\"\",'1. Order'!AE1172)","v":""}]
[{"$f":"IF('1. Order'!B1173=\"\",\"\",'1. Order'!B1173)","v":""},{"$f":"IF('1. Order'!I1173=\"\",\"\",'1. Order'!I1173)","v":""},{"$f":"IF('1. Order'!J1173=\"\",\"\",'1. Order'!J1173)","v":""},{"$f":"IF('1. Order'!K1173=\"\",\"\",'1. Order'!K1173)","v":""},{"$f":"IF('1. Order'!M1173=\"\",\"\",'1. Order'!M1173)","v":""},null,null,{"$f":"'1. Order'!AW1173","v":0},{"$f":"IF('1. Order'!AE1173=\"\",\"\",'1. Order'!AE1173)","v":""}]
[{"$f":"IF('1. Order'!B1174=\"\",\"\",'1. Order'!B1174)","v":""},{"$f":"IF('1. Order'!I1174=\"\",\"\",'1. Order'!I1174)","v":""},{"$f":"IF('1. Order'!J1174=\"\",\"\",'1. Order'!J1174)","v":""},{"$f":"IF('1. Order'!K1174=\"\",\"\",'1. Order'!K1174)","v":""},{"$f":"IF('1. Order'!M1174=\"\",\"\",'1. Order'!M1174)","v":""},null,null,{"$f":"'1. Order'!AW1174","v":0},{"$f":"IF('1. Order'!AE1174=\"\",\"\",'1. Order'!AE1174)","v":""}]
[{"$f":"IF('1. Order'!B1175=\"\",\"\",'1. Order'!B1175)","v":""},{"$f":"IF('1. Order'!I1175=\"\",\"\",'1. Order'!I1175)","v":""},{"$f":"IF('1. Order'!J1175=\"\",\"\",'1. Order'!J1175)","v":""},{"$f":"IF('1. Order'!K1175=\"\",\"\",'1. Order'!K1175)","v":""},{"$f":"IF('1. Order'!M1175=\"\",\"\",'1. Order'!M1175)","v":""},null,null,{"$f":"'1. Order'!AW1175","v":0},{"$f":"IF('1. Order'!AE1175=\"\",\"\",'1. Order'!AE1175)","v":""}]
[{"$f":"IF('1. Order'!B1176=\"\",\"\",'1. Order'!B1176)","v":""},{"$f":"IF('1. Order'!I1176=\"\",\"\",'1. Order'!I1176)","v":""},{"$f":"IF('1. Order'!J1176=\"\",\"\",'1. Order'!J1176)","v":""},{"$f":"IF('1. Order'!K1176=\"\",\"\",'1. Order'!K1176)","v":""},{"$f":"IF('1. Order'!M1176=\"\",\"\",'1. Order'!M1176)","v":""},null,null,{"$f":"'1. Order'!AW1176","v":0},{"$f":"IF('1. Order'!AE1176=\"\",\"\",'1. Order'!AE1176)","v":""}]
[{"$f":"IF('1. Order'!B1177=\"\",\"\",'1. Order'!B1177)","v":""},{"$f":"IF('1. Order'!I1177=\"\",\"\",'1. Order'!I1177)","v":""},{"$f":"IF('1. Order'!J1177=\"\",\"\",'1. Order'!J1177)","v":""},{"$f":"IF('1. Order'!K1177=\"\",\"\",'1. Order'!K1177)","v":""},{"$f":"IF('1. Order'!M1177=\"\",\"\",'1. Order'!M1177)","v":""},null,null,{"$f":"'1. Order'!AW1177","v":0},{"$f":"IF('1. Order'!AE1177=\"\",\"\",'1. Order'!AE1177)","v":""}]
[{"$f":"IF('1. Order'!B1178=\"\",\"\",'1. Order'!B1178)","v":""},{"$f":"IF('1. Order'!I1178=\"\",\"\",'1. Order'!I1178)","v":""},{"$f":"IF('1. Order'!J1178=\"\",\"\",'1. Order'!J1178)","v":""},{"$f":"IF('1. Order'!K1178=\"\",\"\",'1. Order'!K1178)","v":""},{"$f":"IF('1. Order'!M1178=\"\",\"\",'1. Order'!M1178)","v":""},null,null,{"$f":"'1. Order'!AW1178","v":0},{"$f":"IF('1. Order'!AE1178=\"\",\"\",'1. Order'!AE1178)","v":""}]
[{"$f":"IF('1. Order'!B1179=\"\",\"\",'1. Order'!B1179)","v":""},{"$f":"IF('1. Order'!I1179=\"\",\"\",'1. Order'!I1179)","v":""},{"$f":"IF('1. Order'!J1179=\"\",\"\",'1. Order'!J1179)","v":""},{"$f":"IF('1. Order'!K1179=\"\",\"\",'1. Order'!K1179)","v":""},{"$f":"IF('1. Order'!M1179=\"\",\"\",'1. Order'!M1179)","v":""},null,null,{"$f":"'1. Order'!AW1179","v":0},{"$f":"IF('1. Order'!AE1179=\"\",\"\",'1. Order'!AE1179)","v":""}]
[{"$f":"IF('1. Order'!B1180=\"\",\"\",'1. Order'!B1180)","v":""},{"$f":"IF('1. Order'!I1180=\"\",\"\",'1. Order'!I1180)","v":""},{"$f":"IF('1. Order'!J1180=\"\",\"\",'1. Order'!J1180)","v":""},{"$f":"IF('1. Order'!K1180=\"\",\"\",'1. Order'!K1180)","v":""},{"$f":"IF('1. Order'!M1180=\"\",\"\",'1. Order'!M1180)","v":""},null,null,{"$f":"'1. Order'!AW1180","v":0},{"$f":"IF('1. Order'!AE1180=\"\",\"\",'1. Order'!AE1180)","v":""}]
[{"$f":"IF('1. Order'!B1181=\"\",\"\",'1. Order'!B1181)","v":""},{"$f":"IF('1. Order'!I1181=\"\",\"\",'1. Order'!I1181)","v":""},{"$f":"IF('1. Order'!J1181=\"\",\"\",'1. Order'!J1181)","v":""},{"$f":"IF('1. Order'!K1181=\"\",\"\",'1. Order'!K1181)","v":""},{"$f":"IF('1. Order'!M1181=\"\",\"\",'1. Order'!M1181)","v":""},null,null,{"$f":"'1. Order'!AW1181","v":0},{"$f":"IF('1. Order'!AE1181=\"\",\"\",'1. Order'!AE1181)","v":""}]
[{"$f":"IF('1. Order'!B1182=\"\",\"\",'1. Order'!B1182)","v":""},{"$f":"IF('1. Order'!I1182=\"\",\"\",'1. Order'!I1182)","v":""},{"$f":"IF('1. Order'!J1182=\"\",\"\",'1. Order'!J1182)","v":""},{"$f":"IF('1. Order'!K1182=\"\",\"\",'1. Order'!K1182)","v":""},{"$f":"IF('1. Order'!M1182=\"\",\"\",'1. Order'!M1182)","v":""},null,null,{"$f":"'1. Order'!AW1182","v":0},{"$f":"IF('1. Order'!AE1182=\"\",\"\",'1. Order'!AE1182)","v":""}]
[{"$f":"IF('1. Order'!B1183=\"\",\"\",'1. Order'!B1183)","v":""},{"$f":"IF('1. Order'!I1183=\"\",\"\",'1. Order'!I1183)","v":""},{"$f":"IF('1. Order'!J1183=\"\",\"\",'1. Order'!J1183)","v":""},{"$f":"IF('1. Order'!K1183=\"\",\"\",'1. Order'!K1183)","v":""},{"$f":"IF('1. Order'!M1183=\"\",\"\",'1. Order'!M1183)","v":""},null,null,{"$f":"'1. Order'!AW1183","v":0},{"$f":"IF('1. Order'!AE1183=\"\",\"\",'1. Order'!AE1183)","v":""}]
[{"$f":"IF('1. Order'!B1184=\"\",\"\",'1. Order'!B1184)","v":""},{"$f":"IF('1. Order'!I1184=\"\",\"\",'1. Order'!I1184)","v":""},{"$f":"IF('1. Order'!J1184=\"\",\"\",'1. Order'!J1184)","v":""},{"$f":"IF('1. Order'!K1184=\"\",\"\",'1. Order'!K1184)","v":""},{"$f":"IF('1. Order'!M1184=\"\",\"\",'1. Order'!M1184)","v":""},null,null,{"$f":"'1. Order'!AW1184","v":0},{"$f":"IF('1. Order'!AE1184=\"\",\"\",'1. Order'!AE1184)","v":""}]
[{"$f":"IF('1. Order'!B1185=\"\",\"\",'1. Order'!B1185)","v":""},{"$f":"IF('1. Order'!I1185=\"\",\"\",'1. Order'!I1185)","v":""},{"$f":"IF('1. Order'!J1185=\"\",\"\",'1. Order'!J1185)","v":""},{"$f":"IF('1. Order'!K1185=\"\",\"\",'1. Order'!K1185)","v":""},{"$f":"IF('1. Order'!M1185=\"\",\"\",'1. Order'!M1185)","v":""},null,null,{"$f":"'1. Order'!AW1185","v":0},{"$f":"IF('1. Order'!AE1185=\"\",\"\",'1. Order'!AE1185)","v":""}]
[{"$f":"IF('1. Order'!B1186=\"\",\"\",'1. Order'!B1186)","v":""},{"$f":"IF('1. Order'!I1186=\"\",\"\",'1. Order'!I1186)","v":""},{"$f":"IF('1. Order'!J1186=\"\",\"\",'1. Order'!J1186)","v":""},{"$f":"IF('1. Order'!K1186=\"\",\"\",'1. Order'!K1186)","v":""},{"$f":"IF('1. Order'!M1186=\"\",\"\",'1. Order'!M1186)","v":""},null,null,{"$f":"'1. Order'!AW1186","v":0},{"$f":"IF('1. Order'!AE1186=\"\",\"\",'1. Order'!AE1186)","v":""}]
[{"$f":"IF('1. Order'!B1187=\"\",\"\",'1. Order'!B1187)","v":""},{"$f":"IF('1. Order'!I1187=\"\",\"\",'1. Order'!I1187)","v":""},{"$f":"IF('1. Order'!J1187=\"\",\"\",'1. Order'!J1187)","v":""},{"$f":"IF('1. Order'!K1187=\"\",\"\",'1. Order'!K1187)","v":""},{"$f":"IF('1. Order'!M1187=\"\",\"\",'1. Order'!M1187)","v":""},null,null,{"$f":"'1. Order'!AW1187","v":0},{"$f":"IF('1. Order'!AE1187=\"\",\"\",'1. Order'!AE1187)","v":""}]
[{"$f":"IF('1. Order'!B1188=\"\",\"\",'1. Order'!B1188)","v":""},{"$f":"IF('1. Order'!I1188=\"\",\"\",'1. Order'!I1188)","v":""},{"$f":"IF('1. Order'!J1188=\"\",\"\",'1. Order'!J1188)","v":""},{"$f":"IF('1. Order'!K1188=\"\",\"\",'1. Order'!K1188)","v":""},{"$f":"IF('1. Order'!M1188=\"\",\"\",'1. Order'!M1188)","v":""},null,null,{"$f":"'1. Order'!AW1188","v":0},{"$f":"IF('1. Order'!AE1188=\"\",\"\",'1. Order'!AE1188)","v":""}]
[{"$f":"IF('1. Order'!B1189=\"\",\"\",'1. Order'!B1189)","v":""},{"$f":"IF('1. Order'!I1189=\"\",\"\",'1. Order'!I1189)","v":""},{"$f":"IF('1. Order'!J1189=\"\",\"\",'1. Order'!J1189)","v":""},{"$f":"IF('1. Order'!K1189=\"\",\"\",'1. Order'!K1189)","v":""},{"$f":"IF('1. Order'!M1189=\"\",\"\",'1. Order'!M1189)","v":""},null,null,{"$f":"'1. Order'!AW1189","v":0},{"$f":"IF('1. Order'!AE1189=\"\",\"\",'1. Order'!AE1189)","v":""}]
[{"$f":"IF('1. Order'!B1190=\"\",\"\",'1. Order'!B1190)","v":""},{"$f":"IF('1. Order'!I1190=\"\",\"\",'1. Order'!I1190)","v":""},{"$f":"IF('1. Order'!J1190=\"\",\"\",'1. Order'!J1190)","v":""},{"$f":"IF('1. Order'!K1190=\"\",\"\",'1. Order'!K1190)","v":""},{"$f":"IF('1. Order'!M1190=\"\",\"\",'1. Order'!M1190)","v":""},null,null,{"$f":"'1. Order'!AW1190","v":0},{"$f":"IF('1. Order'!AE1190=\"\",\"\",'1. Order'!AE1190)","v":""}]
[{"$f":"IF('1. Order'!B1191=\"\",\"\",'1. Order'!B1191)","v":""},{"$f":"IF('1. Order'!I1191=\"\",\"\",'1. Order'!I1191)","v":""},{"$f":"IF('1. Order'!J1191=\"\",\"\",'1. Order'!J1191)","v":""},{"$f":"IF('1. Order'!K1191=\"\",\"\",'1. Order'!K1191)","v":""},{"$f":"IF('1. Order'!M1191=\"\",\"\",'1. Order'!M1191)","v":""},null,null,{"$f":"'1. Order'!AW1191","v":0},{"$f":"IF('1. Order'!AE1191=\"\",\"\",'1. Order'!AE1191)","v":""}]
[{"$f":"IF('1. Order'!B1192=\"\",\"\",'1. Order'!B1192)","v":""},{"$f":"IF('1. Order'!I1192=\"\",\"\",'1. Order'!I1192)","v":""},{"$f":"IF('1. Order'!J1192=\"\",\"\",'1. Order'!J1192)","v":""},{"$f":"IF('1. Order'!K1192=\"\",\"\",'1. Order'!K1192)","v":""},{"$f":"IF('1. Order'!M1192=\"\",\"\",'1. Order'!M1192)","v":""},null,null,{"$f":"'1. Order'!AW1192","v":0},{"$f":"IF('1. Order'!AE1192=\"\",\"\",'1. Order'!AE1192)","v":""}]
[{"$f":"IF('1. Order'!B1193=\"\",\"\",'1. Order'!B1193)","v":""},{"$f":"IF('1. Order'!I1193=\"\",\"\",'1. Order'!I1193)","v":""},{"$f":"IF('1. Order'!J1193=\"\",\"\",'1. Order'!J1193)","v":""},{"$f":"IF('1. Order'!K1193=\"\",\"\",'1. Order'!K1193)","v":""},{"$f":"IF('1. Order'!M1193=\"\",\"\",'1. Order'!M1193)","v":""},null,null,{"$f":"'1. Order'!AW1193","v":0},{"$f":"IF('1. Order'!AE1193=\"\",\"\",'1. Order'!AE1193)","v":""}]
[{"$f":"IF('1. Order'!B1194=\"\",\"\",'1. Order'!B1194)","v":""},{"$f":"IF('1. Order'!I1194=\"\",\"\",'1. Order'!I1194)","v":""},{"$f":"IF('1. Order'!J1194=\"\",\"\",'1. Order'!J1194)","v":""},{"$f":"IF('1. Order'!K1194=\"\",\"\",'1. Order'!K1194)","v":""},{"$f":"IF('1. Order'!M1194=\"\",\"\",'1. Order'!M1194)","v":""},null,null,{"$f":"'1. Order'!AW1194","v":0},{"$f":"IF('1. Order'!AE1194=\"\",\"\",'1. Order'!AE1194)","v":""}]
[{"$f":"IF('1. Order'!B1195=\"\",\"\",'1. Order'!B1195)","v":""},{"$f":"IF('1. Order'!I1195=\"\",\"\",'1. Order'!I1195)","v":""},{"$f":"IF('1. Order'!J1195=\"\",\"\",'1. Order'!J1195)","v":""},{"$f":"IF('1. Order'!K1195=\"\",\"\",'1. Order'!K1195)","v":""},{"$f":"IF('1. Order'!M1195=\"\",\"\",'1. Order'!M1195)","v":""},null,null,{"$f":"'1. Order'!AW1195","v":0},{"$f":"IF('1. Order'!AE1195=\"\",\"\",'1. Order'!AE1195)","v":""}]
[{"$f":"IF('1. Order'!B1196=\"\",\"\",'1. Order'!B1196)","v":""},{"$f":"IF('1. Order'!I1196=\"\",\"\",'1. Order'!I1196)","v":""},{"$f":"IF('1. Order'!J1196=\"\",\"\",'1. Order'!J1196)","v":""},{"$f":"IF('1. Order'!K1196=\"\",\"\",'1. Order'!K1196)","v":""},{"$f":"IF('1. Order'!M1196=\"\",\"\",'1. Order'!M1196)","v":""},null,null,{"$f":"'1. Order'!AW1196","v":0},{"$f":"IF('1. Order'!AE1196=\"\",\"\",'1. Order'!AE1196)","v":""}]
[{"$f":"IF('1. Order'!B1197=\"\",\"\",'1. Order'!B1197)","v":""},{"$f":"IF('1. Order'!I1197=\"\",\"\",'1. Order'!I1197)","v":""},{"$f":"IF('1. Order'!J1197=\"\",\"\",'1. Order'!J1197)","v":""},{"$f":"IF('1. Order'!K1197=\"\",\"\",'1. Order'!K1197)","v":""},{"$f":"IF('1. Order'!M1197=\"\",\"\",'1. Order'!M1197)","v":""},null,null,{"$f":"'1. Order'!AW1197","v":0},{"$f":"IF('1. Order'!AE1197=\"\",\"\",'1. Order'!AE1197)","v":""}]
[{"$f":"IF('1. Order'!B1198=\"\",\"\",'1. Order'!B1198)","v":""},{"$f":"IF('1. Order'!I1198=\"\",\"\",'1. Order'!I1198)","v":""},{"$f":"IF('1. Order'!J1198=\"\",\"\",'1. Order'!J1198)","v":""},{"$f":"IF('1. Order'!K1198=\"\",\"\",'1. Order'!K1198)","v":""},{"$f":"IF('1. Order'!M1198=\"\",\"\",'1. Order'!M1198)","v":""},null,null,{"$f":"'1. Order'!AW1198","v":0},{"$f":"IF('1. Order'!AE1198=\"\",\"\",'1. Order'!AE1198)","v":""}]
[{"$f":"IF('1. Order'!B1199=\"\",\"\",'1. Order'!B1199)","v":""},{"$f":"IF('1. Order'!I1199=\"\",\"\",'1. Order'!I1199)","v":""},{"$f":"IF('1. Order'!J1199=\"\",\"\",'1. Order'!J1199)","v":""},{"$f":"IF('1. Order'!K1199=\"\",\"\",'1. Order'!K1199)","v":""},{"$f":"IF('1. Order'!M1199=\"\",\"\",'1. Order'!M1199)","v":""},null,null,{"$f":"'1. Order'!AW1199","v":0},{"$f":"IF('1. Order'!AE1199=\"\",\"\",'1. Order'!AE1199)","v":""}]
[{"$f":"IF('1. Order'!B1200=\"\",\"\",'1. Order'!B1200)","v":""},{"$f":"IF('1. Order'!I1200=\"\",\"\",'1. Order'!I1200)","v":""},{"$f":"IF('1. Order'!J1200=\"\",\"\",'1. Order'!J1200)","v":""},{"$f":"IF('1. Order'!K1200=\"\",\"\",'1. Order'!K1200)","v":""},{"$f":"IF('1. Order'!M1200=\"\",\"\",'1. Order'!M1200)","v":""},null,null,{"$f":"'1. Order'!AW1200","v":0},{"$f":"IF('1. Order'!AE1200=\"\",\"\",'1. Order'!AE1200)","v":""}]
[{"$f":"IF('1. Order'!B1201=\"\",\"\",'1. Order'!B1201)","v":""},{"$f":"IF('1. Order'!I1201=\"\",\"\",'1. Order'!I1201)","v":""},{"$f":"IF('1. Order'!J1201=\"\",\"\",'1. Order'!J1201)","v":""},{"$f":"IF('1. Order'!K1201=\"\",\"\",'1. Order'!K1201)","v":""},{"$f":"IF('1. Order'!M1201=\"\",\"\",'1. Order'!M1201)","v":""},null,null,{"$f":"'1. Order'!AW1201","v":0},{"$f":"IF('1. Order'!AE1201=\"\",\"\",'1. Order'!AE1201)","v":""}]
[{"$f":"IF('1. Order'!B1202=\"\",\"\",'1. Order'!B1202)","v":""},{"$f":"IF('1. Order'!I1202=\"\",\"\",'1. Order'!I1202)","v":""},{"$f":"IF('1. Order'!J1202=\"\",\"\",'1. Order'!J1202)","v":""},{"$f":"IF('1. Order'!K1202=\"\",\"\",'1. Order'!K1202)","v":""},{"$f":"IF('1. Order'!M1202=\"\",\"\",'1. Order'!M1202)","v":""},null,null,{"$f":"'1. Order'!AW1202","v":0},{"$f":"IF('1. Order'!AE1202=\"\",\"\",'1. Order'!AE1202)","v":""}]
[{"$f":"IF('1. Order'!B1203=\"\",\"\",'1. Order'!B1203)","v":""},{"$f":"IF('1. Order'!I1203=\"\",\"\",'1. Order'!I1203)","v":""},{"$f":"IF('1. Order'!J1203=\"\",\"\",'1. Order'!J1203)","v":""},{"$f":"IF('1. Order'!K1203=\"\",\"\",'1. Order'!K1203)","v":""},{"$f":"IF('1. Order'!M1203=\"\",\"\",'1. Order'!M1203)","v":""},null,null,{"$f":"'1. Order'!AW1203","v":0},{"$f":"IF('1. Order'!AE1203=\"\",\"\",'1. Order'!AE1203)","v":""}]
[{"$f":"IF('1. Order'!B1204=\"\",\"\",'1. Order'!B1204)","v":""},{"$f":"IF('1. Order'!I1204=\"\",\"\",'1. Order'!I1204)","v":""},{"$f":"IF('1. Order'!J1204=\"\",\"\",'1. Order'!J1204)","v":""},{"$f":"IF('1. Order'!K1204=\"\",\"\",'1. Order'!K1204)","v":""},{"$f":"IF('1. Order'!M1204=\"\",\"\",'1. Order'!M1204)","v":""},null,null,{"$f":"'1. Order'!AW1204","v":0},{"$f":"IF('1. Order'!AE1204=\"\",\"\",'1. Order'!AE1204)","v":""}]
[{"$f":"IF('1. Order'!B1205=\"\",\"\",'1. Order'!B1205)","v":""},{"$f":"IF('1. Order'!I1205=\"\",\"\",'1. Order'!I1205)","v":""},{"$f":"IF('1. Order'!J1205=\"\",\"\",'1. Order'!J1205)","v":""},{"$f":"IF('1. Order'!K1205=\"\",\"\",'1. Order'!K1205)","v":""},{"$f":"IF('1. Order'!M1205=\"\",\"\",'1. Order'!M1205)","v":""},null,null,{"$f":"'1. Order'!AW1205","v":0},{"$f":"IF('1. Order'!AE1205=\"\",\"\",'1. Order'!AE1205)","v":""}]
[{"$f":"IF('1. Order'!B1206=\"\",\"\",'1. Order'!B1206)","v":""},{"$f":"IF('1. Order'!I1206=\"\",\"\",'1. Order'!I1206)","v":""},{"$f":"IF('1. Order'!J1206=\"\",\"\",'1. Order'!J1206)","v":""},{"$f":"IF('1. Order'!K1206=\"\",\"\",'1. Order'!K1206)","v":""},{"$f":"IF('1. Order'!M1206=\"\",\"\",'1. Order'!M1206)","v":""},null,null,{"$f":"'1. Order'!AW1206","v":0},{"$f":"IF('1. Order'!AE1206=\"\",\"\",'1. Order'!AE1206)","v":""}]
[{"$f":"IF('1. Order'!B1207=\"\",\"\",'1. Order'!B1207)","v":""},{"$f":"IF('1. Order'!I1207=\"\",\"\",'1. Order'!I1207)","v":""},{"$f":"IF('1. Order'!J1207=\"\",\"\",'1. Order'!J1207)","v":""},{"$f":"IF('1. Order'!K1207=\"\",\"\",'1. Order'!K1207)","v":""},{"$f":"IF('1. Order'!M1207=\"\",\"\",'1. Order'!M1207)","v":""},null,null,{"$f":"'1. Order'!AW1207","v":0},{"$f":"IF('1. Order'!AE1207=\"\",\"\",'1. Order'!AE1207)","v":""}]
[{"$f":"IF('1. Order'!B1208=\"\",\"\",'1. Order'!B1208)","v":""},{"$f":"IF('1. Order'!I1208=\"\",\"\",'1. Order'!I1208)","v":""},{"$f":"IF('1. Order'!J1208=\"\",\"\",'1. Order'!J1208)","v":""},{"$f":"IF('1. Order'!K1208=\"\",\"\",'1. Order'!K1208)","v":""},{"$f":"IF('1. Order'!M1208=\"\",\"\",'1. Order'!M1208)","v":""},null,null,{"$f":"'1. Order'!AW1208","v":0},{"$f":"IF('1. Order'!AE1208=\"\",\"\",'1. Order'!AE1208)","v":""}]
[{"$f":"IF('1. Order'!B1209=\"\",\"\",'1. Order'!B1209)","v":""},{"$f":"IF('1. Order'!I1209=\"\",\"\",'1. Order'!I1209)","v":""},{"$f":"IF('1. Order'!J1209=\"\",\"\",'1. Order'!J1209)","v":""},{"$f":"IF('1. Order'!K1209=\"\",\"\",'1. Order'!K1209)","v":""},{"$f":"IF('1. Order'!M1209=\"\",\"\",'1. Order'!M1209)","v":""},null,null,{"$f":"'1. Order'!AW1209","v":0},{"$f":"IF('1. Order'!AE1209=\"\",\"\",'1. Order'!AE1209)","v":""}]
[{"$f":"IF('1. Order'!B1210=\"\",\"\",'1. Order'!B1210)","v":""},{"$f":"IF('1. Order'!I1210=\"\",\"\",'1. Order'!I1210)","v":""},{"$f":"IF('1. Order'!J1210=\"\",\"\",'1. Order'!J1210)","v":""},{"$f":"IF('1. Order'!K1210=\"\",\"\",'1. Order'!K1210)","v":""},{"$f":"IF('1. Order'!M1210=\"\",\"\",'1. Order'!M1210)","v":""},null,null,{"$f":"'1. Order'!AW1210","v":0},{"$f":"IF('1. Order'!AE1210=\"\",\"\",'1. Order'!AE1210)","v":""}]
[{"$f":"IF('1. Order'!B1211=\"\",\"\",'1. Order'!B1211)","v":""},{"$f":"IF('1. Order'!I1211=\"\",\"\",'1. Order'!I1211)","v":""},{"$f":"IF('1. Order'!J1211=\"\",\"\",'1. Order'!J1211)","v":""},{"$f":"IF('1. Order'!K1211=\"\",\"\",'1. Order'!K1211)","v":""},{"$f":"IF('1. Order'!M1211=\"\",\"\",'1. Order'!M1211)","v":""},null,null,{"$f":"'1. Order'!AW1211","v":0},{"$f":"IF('1. Order'!AE1211=\"\",\"\",'1. Order'!AE1211)","v":""}]
[{"$f":"IF('1. Order'!B1212=\"\",\"\",'1. Order'!B1212)","v":""},{"$f":"IF('1. Order'!I1212=\"\",\"\",'1. Order'!I1212)","v":""},{"$f":"IF('1. Order'!J1212=\"\",\"\",'1. Order'!J1212)","v":""},{"$f":"IF('1. Order'!K1212=\"\",\"\",'1. Order'!K1212)","v":""},{"$f":"IF('1. Order'!M1212=\"\",\"\",'1. Order'!M1212)","v":""},null,null,{"$f":"'1. Order'!AW1212","v":0},{"$f":"IF('1. Order'!AE1212=\"\",\"\",'1. Order'!AE1212)","v":""}]
[{"$f":"IF('1. Order'!B1213=\"\",\"\",'1. Order'!B1213)","v":""},{"$f":"IF('1. Order'!I1213=\"\",\"\",'1. Order'!I1213)","v":""},{"$f":"IF('1. Order'!J1213=\"\",\"\",'1. Order'!J1213)","v":""},{"$f":"IF('1. Order'!K1213=\"\",\"\",'1. Order'!K1213)","v":""},{"$f":"IF('1. Order'!M1213=\"\",\"\",'1. Order'!M1213)","v":""},null,null,{"$f":"'1. Order'!AW1213","v":0},{"$f":"IF('1. Order'!AE1213=\"\",\"\",'1. Order'!AE1213)","v":""}]
[{"$f":"IF('1. Order'!B1214=\"\",\"\",'1. Order'!B1214)","v":""},{"$f":"IF('1. Order'!I1214=\"\",\"\",'1. Order'!I1214)","v":""},{"$f":"IF('1. Order'!J1214=\"\",\"\",'1. Order'!J1214)","v":""},{"$f":"IF('1. Order'!K1214=\"\",\"\",'1. Order'!K1214)","v":""},{"$f":"IF('1. Order'!M1214=\"\",\"\",'1. Order'!M1214)","v":""},null,null,{"$f":"'1. Order'!AW1214","v":0},{"$f":"IF('1. Order'!AE1214=\"\",\"\",'1. Order'!AE1214)","v":""}]
[{"$f":"IF('1. Order'!B1215=\"\",\"\",'1. Order'!B1215)","v":""},{"$f":"IF('1. Order'!I1215=\"\",\"\",'1. Order'!I1215)","v":""},{"$f":"IF('1. Order'!J1215=\"\",\"\",'1. Order'!J1215)","v":""},{"$f":"IF('1. Order'!K1215=\"\",\"\",'1. Order'!K1215)","v":""},{"$f":"IF('1. Order'!M1215=\"\",\"\",'1. Order'!M1215)","v":""},null,null,{"$f":"'1. Order'!AW1215","v":0},{"$f":"IF('1. Order'!AE1215=\"\",\"\",'1. Order'!AE1215)","v":""}]
[{"$f":"IF('1. Order'!B1216=\"\",\"\",'1. Order'!B1216)","v":""},{"$f":"IF('1. Order'!I1216=\"\",\"\",'1. Order'!I1216)","v":""},{"$f":"IF('1. Order'!J1216=\"\",\"\",'1. Order'!J1216)","v":""},{"$f":"IF('1. Order'!K1216=\"\",\"\",'1. Order'!K1216)","v":""},{"$f":"IF('1. Order'!M1216=\"\",\"\",'1. Order'!M1216)","v":""},null,null,{"$f":"'1. Order'!AW1216","v":0},{"$f":"IF('1. Order'!AE1216=\"\",\"\",'1. Order'!AE1216)","v":""}]
[{"$f":"IF('1. Order'!B1217=\"\",\"\",'1. Order'!B1217)","v":""},{"$f":"IF('1. Order'!I1217=\"\",\"\",'1. Order'!I1217)","v":""},{"$f":"IF('1. Order'!J1217=\"\",\"\",'1. Order'!J1217)","v":""},{"$f":"IF('1. Order'!K1217=\"\",\"\",'1. Order'!K1217)","v":""},{"$f":"IF('1. Order'!M1217=\"\",\"\",'1. Order'!M1217)","v":""},null,null,{"$f":"'1. Order'!AW1217","v":0},{"$f":"IF('1. Order'!AE1217=\"\",\"\",'1. Order'!AE1217)","v":""}]
[{"$f":"IF('1. Order'!B1218=\"\",\"\",'1. Order'!B1218)","v":""},{"$f":"IF('1. Order'!I1218=\"\",\"\",'1. Order'!I1218)","v":""},{"$f":"IF('1. Order'!J1218=\"\",\"\",'1. Order'!J1218)","v":""},{"$f":"IF('1. Order'!K1218=\"\",\"\",'1. Order'!K1218)","v":""},{"$f":"IF('1. Order'!M1218=\"\",\"\",'1. Order'!M1218)","v":""},null,null,{"$f":"'1. Order'!AW1218","v":0},{"$f":"IF('1. Order'!AE1218=\"\",\"\",'1. Order'!AE1218)","v":""}]
[{"$f":"IF('1. Order'!B1219=\"\",\"\",'1. Order'!B1219)","v":""},{"$f":"IF('1. Order'!I1219=\"\",\"\",'1. Order'!I1219)","v":""},{"$f":"IF('1. Order'!J1219=\"\",\"\",'1. Order'!J1219)","v":""},{"$f":"IF('1. Order'!K1219=\"\",\"\",'1. Order'!K1219)","v":""},{"$f":"IF('1. Order'!M1219=\"\",\"\",'1. Order'!M1219)","v":""},null,null,{"$f":"'1. Order'!AW1219","v":0},{"$f":"IF('1. Order'!AE1219=\"\",\"\",'1. Order'!AE1219)","v":""}]
[{"$f":"IF('1. Order'!B1220=\"\",\"\",'1. Order'!B1220)","v":""},{"$f":"IF('1. Order'!I1220=\"\",\"\",'1. Order'!I1220)","v":""},{"$f":"IF('1. Order'!J1220=\"\",\"\",'1. Order'!J1220)","v":""},{"$f":"IF('1. Order'!K1220=\"\",\"\",'1. Order'!K1220)","v":""},{"$f":"IF('1. Order'!M1220=\"\",\"\",'1. Order'!M1220)","v":""},null,null,{"$f":"'1. Order'!AW1220","v":0},{"$f":"IF('1. Order'!AE1220=\"\",\"\",'1. Order'!AE1220)","v":""}]
[{"$f":"IF('1. Order'!B1221=\"\",\"\",'1. Order'!B1221)","v":""},{"$f":"IF('1. Order'!I1221=\"\",\"\",'1. Order'!I1221)","v":""},{"$f":"IF('1. Order'!J1221=\"\",\"\",'1. Order'!J1221)","v":""},{"$f":"IF('1. Order'!K1221=\"\",\"\",'1. Order'!K1221)","v":""},{"$f":"IF('1. Order'!M1221=\"\",\"\",'1. Order'!M1221)","v":""},null,null,{"$f":"'1. Order'!AW1221","v":0},{"$f":"IF('1. Order'!AE1221=\"\",\"\",'1. Order'!AE1221)","v":""}]
[{"$f":"IF('1. Order'!B1222=\"\",\"\",'1. Order'!B1222)","v":""},{"$f":"IF('1. Order'!I1222=\"\",\"\",'1. Order'!I1222)","v":""},{"$f":"IF('1. Order'!J1222=\"\",\"\",'1. Order'!J1222)","v":""},{"$f":"IF('1. Order'!K1222=\"\",\"\",'1. Order'!K1222)","v":""},{"$f":"IF('1. Order'!M1222=\"\",\"\",'1. Order'!M1222)","v":""},null,null,{"$f":"'1. Order'!AW1222","v":0},{"$f":"IF('1. Order'!AE1222=\"\",\"\",'1. Order'!AE1222)","v":""}]
[{"$f":"IF('1. Order'!B1223=\"\",\"\",'1. Order'!B1223)","v":""},{"$f":"IF('1. Order'!I1223=\"\",\"\",'1. Order'!I1223)","v":""},{"$f":"IF('1. Order'!J1223=\"\",\"\",'1. Order'!J1223)","v":""},{"$f":"IF('1. Order'!K1223=\"\",\"\",'1. Order'!K1223)","v":""},{"$f":"IF('1. Order'!M1223=\"\",\"\",'1. Order'!M1223)","v":""},null,null,{"$f":"'1. Order'!AW1223","v":0},{"$f":"IF('1. Order'!AE1223=\"\",\"\",'1. Order'!AE1223)","v":""}]
[{"$f":"IF('1. Order'!B1224=\"\",\"\",'1. Order'!B1224)","v":""},{"$f":"IF('1. Order'!I1224=\"\",\"\",'1. Order'!I1224)","v":""},{"$f":"IF('1. Order'!J1224=\"\",\"\",'1. Order'!J1224)","v":""},{"$f":"IF('1. Order'!K1224=\"\",\"\",'1. Order'!K1224)","v":""},{"$f":"IF('1. Order'!M1224=\"\",\"\",'1. Order'!M1224)","v":""},null,null,{"$f":"'1. Order'!AW1224","v":0},{"$f":"IF('1. Order'!AE1224=\"\",\"\",'1. Order'!AE1224)","v":""}]
[{"$f":"IF('1. Order'!B1225=\"\",\"\",'1. Order'!B1225)","v":""},{"$f":"IF('1. Order'!I1225=\"\",\"\",'1. Order'!I1225)","v":""},{"$f":"IF('1. Order'!J1225=\"\",\"\",'1. Order'!J1225)","v":""},{"$f":"IF('1. Order'!K1225=\"\",\"\",'1. Order'!K1225)","v":""},{"$f":"IF('1. Order'!M1225=\"\",\"\",'1. Order'!M1225)","v":""},null,null,{"$f":"'1. Order'!AW1225","v":0},{"$f":"IF('1. Order'!AE1225=\"\",\"\",'1. Order'!AE1225)","v":""}]
[{"$f":"IF('1. Order'!B1226=\"\",\"\",'1. Order'!B1226)","v":""},{"$f":"IF('1. Order'!I1226=\"\",\"\",'1. Order'!I1226)","v":""},{"$f":"IF('1. Order'!J1226=\"\",\"\",'1. Order'!J1226)","v":""},{"$f":"IF('1. Order'!K1226=\"\",\"\",'1. Order'!K1226)","v":""},{"$f":"IF('1. Order'!M1226=\"\",\"\",'1. Order'!M1226)","v":""},null,null,{"$f":"'1. Order'!AW1226","v":0},{"$f":"IF('1. Order'!AE1226=\"\",\"\",'1. Order'!AE1226)","v":""}]
[{"$f":"IF('1. Order'!B1227=\"\",\"\",'1. Order'!B1227)","v":""},{"$f":"IF('1. Order'!I1227=\"\",\"\",'1. Order'!I1227)","v":""},{"$f":"IF('1. Order'!J1227=\"\",\"\",'1. Order'!J1227)","v":""},{"$f":"IF('1. Order'!K1227=\"\",\"\",'1. Order'!K1227)","v":""},{"$f":"IF('1. Order'!M1227=\"\",\"\",'1. Order'!M1227)","v":""},null,null,{"$f":"'1. Order'!AW1227","v":0},{"$f":"IF('1. Order'!AE1227=\"\",\"\",'1. Order'!AE1227)","v":""}]
[{"$f":"IF('1. Order'!B1228=\"\",\"\",'1. Order'!B1228)","v":""},{"$f":"IF('1. Order'!I1228=\"\",\"\",'1. Order'!I1228)","v":""},{"$f":"IF('1. Order'!J1228=\"\",\"\",'1. Order'!J1228)","v":""},{"$f":"IF('1. Order'!K1228=\"\",\"\",'1. Order'!K1228)","v":""},{"$f":"IF('1. Order'!M1228=\"\",\"\",'1. Order'!M1228)","v":""},null,null,{"$f":"'1. Order'!AW1228","v":0},{"$f":"IF('1. Order'!AE1228=\"\",\"\",'1. Order'!AE1228)","v":""}]
[{"$f":"IF('1. Order'!B1229=\"\",\"\",'1. Order'!B1229)","v":""},{"$f":"IF('1. Order'!I1229=\"\",\"\",'1. Order'!I1229)","v":""},{"$f":"IF('1. Order'!J1229=\"\",\"\",'1. Order'!J1229)","v":""},{"$f":"IF('1. Order'!K1229=\"\",\"\",'1. Order'!K1229)","v":""},{"$f":"IF('1. Order'!M1229=\"\",\"\",'1. Order'!M1229)","v":""},null,null,{"$f":"'1. Order'!AW1229","v":0},{"$f":"IF('1. Order'!AE1229=\"\",\"\",'1. Order'!AE1229)","v":""}]
[{"$f":"IF('1. Order'!B1230=\"\",\"\",'1. Order'!B1230)","v":""},{"$f":"IF('1. Order'!I1230=\"\",\"\",'1. Order'!I1230)","v":""},{"$f":"IF('1. Order'!J1230=\"\",\"\",'1. Order'!J1230)","v":""},{"$f":"IF('1. Order'!K1230=\"\",\"\",'1. Order'!K1230)","v":""},{"$f":"IF('1. Order'!M1230=\"\",\"\",'1. Order'!M1230)","v":""},null,null,{"$f":"'1. Order'!AW1230","v":0},{"$f":"IF('1. Order'!AE1230=\"\",\"\",'1. Order'!AE1230)","v":""}]
[{"$f":"IF('1. Order'!B1231=\"\",\"\",'1. Order'!B1231)","v":""},{"$f":"IF('1. Order'!I1231=\"\",\"\",'1. Order'!I1231)","v":""},{"$f":"IF('1. Order'!J1231=\"\",\"\",'1. Order'!J1231)","v":""},{"$f":"IF('1. Order'!K1231=\"\",\"\",'1. Order'!K1231)","v":""},{"$f":"IF('1. Order'!M1231=\"\",\"\",'1. Order'!M1231)","v":""},null,null,{"$f":"'1. Order'!AW1231","v":0},{"$f":"IF('1. Order'!AE1231=\"\",\"\",'1. Order'!AE1231)","v":""}]
[{"$f":"IF('1. Order'!B1232=\"\",\"\",'1. Order'!B1232)","v":""},{"$f":"IF('1. Order'!I1232=\"\",\"\",'1. Order'!I1232)","v":""},{"$f":"IF('1. Order'!J1232=\"\",\"\",'1. Order'!J1232)","v":""},{"$f":"IF('1. Order'!K1232=\"\",\"\",'1. Order'!K1232)","v":""},{"$f":"IF('1. Order'!M1232=\"\",\"\",'1. Order'!M1232)","v":""},null,null,{"$f":"'1. Order'!AW1232","v":0},{"$f":"IF('1. Order'!AE1232=\"\",\"\",'1. Order'!AE1232)","v":""}]
[{"$f":"IF('1. Order'!B1233=\"\",\"\",'1. Order'!B1233)","v":""},{"$f":"IF('1. Order'!I1233=\"\",\"\",'1. Order'!I1233)","v":""},{"$f":"IF('1. Order'!J1233=\"\",\"\",'1. Order'!J1233)","v":""},{"$f":"IF('1. Order'!K1233=\"\",\"\",'1. Order'!K1233)","v":""},{"$f":"IF('1. Order'!M1233=\"\",\"\",'1. Order'!M1233)","v":""},null,null,{"$f":"'1. Order'!AW1233","v":0},{"$f":"IF('1. Order'!AE1233=\"\",\"\",'1. Order'!AE1233)","v":""}]
[{"$f":"IF('1. Order'!B1234=\"\",\"\",'1. Order'!B1234)","v":""},{"$f":"IF('1. Order'!I1234=\"\",\"\",'1. Order'!I1234)","v":""},{"$f":"IF('1. Order'!J1234=\"\",\"\",'1. Order'!J1234)","v":""},{"$f":"IF('1. Order'!K1234=\"\",\"\",'1. Order'!K1234)","v":""},{"$f":"IF('1. Order'!M1234=\"\",\"\",'1. Order'!M1234)","v":""},null,null,{"$f":"'1. Order'!AW1234","v":0},{"$f":"IF('1. Order'!AE1234=\"\",\"\",'1. Order'!AE1234)","v":""}]
[{"$f":"IF('1. Order'!B1235=\"\",\"\",'1. Order'!B1235)","v":""},{"$f":"IF('1. Order'!I1235=\"\",\"\",'1. Order'!I1235)","v":""},{"$f":"IF('1. Order'!J1235=\"\",\"\",'1. Order'!J1235)","v":""},{"$f":"IF('1. Order'!K1235=\"\",\"\",'1. Order'!K1235)","v":""},{"$f":"IF('1. Order'!M1235=\"\",\"\",'1. Order'!M1235)","v":""},null,null,{"$f":"'1. Order'!AW1235","v":0},{"$f":"IF('1. Order'!AE1235=\"\",\"\",'1. Order'!AE1235)","v":""}]
[{"$f":"IF('1. Order'!B1236=\"\",\"\",'1. Order'!B1236)","v":""},{"$f":"IF('1. Order'!I1236=\"\",\"\",'1. Order'!I1236)","v":""},{"$f":"IF('1. Order'!J1236=\"\",\"\",'1. Order'!J1236)","v":""},{"$f":"IF('1. Order'!K1236=\"\",\"\",'1. Order'!K1236)","v":""},{"$f":"IF('1. Order'!M1236=\"\",\"\",'1. Order'!M1236)","v":""},null,null,{"$f":"'1. Order'!AW1236","v":0},{"$f":"IF('1. Order'!AE1236=\"\",\"\",'1. Order'!AE1236)","v":""}]
[{"$f":"IF('1. Order'!B1237=\"\",\"\",'1. Order'!B1237)","v":""},{"$f":"IF('1. Order'!I1237=\"\",\"\",'1. Order'!I1237)","v":""},{"$f":"IF('1. Order'!J1237=\"\",\"\",'1. Order'!J1237)","v":""},{"$f":"IF('1. Order'!K1237=\"\",\"\",'1. Order'!K1237)","v":""},{"$f":"IF('1. Order'!M1237=\"\",\"\",'1. Order'!M1237)","v":""},null,null,{"$f":"'1. Order'!AW1237","v":0},{"$f":"IF('1. Order'!AE1237=\"\",\"\",'1. Order'!AE1237)","v":""}]
[{"$f":"IF('1. Order'!B1238=\"\",\"\",'1. Order'!B1238)","v":""},{"$f":"IF('1. Order'!I1238=\"\",\"\",'1. Order'!I1238)","v":""},{"$f":"IF('1. Order'!J1238=\"\",\"\",'1. Order'!J1238)","v":""},{"$f":"IF('1. Order'!K1238=\"\",\"\",'1. Order'!K1238)","v":""},{"$f":"IF('1. Order'!M1238=\"\",\"\",'1. Order'!M1238)","v":""},null,null,{"$f":"'1. Order'!AW1238","v":0},{"$f":"IF('1. Order'!AE1238=\"\",\"\",'1. Order'!AE1238)","v":""}]
[{"$f":"IF('1. Order'!B1239=\"\",\"\",'1. Order'!B1239)","v":""},{"$f":"IF('1. Order'!I1239=\"\",\"\",'1. Order'!I1239)","v":""},{"$f":"IF('1. Order'!J1239=\"\",\"\",'1. Order'!J1239)","v":""},{"$f":"IF('1. Order'!K1239=\"\",\"\",'1. Order'!K1239)","v":""},{"$f":"IF('1. Order'!M1239=\"\",\"\",'1. Order'!M1239)","v":""},null,null,{"$f":"'1. Order'!AW1239","v":0},{"$f":"IF('1. Order'!AE1239=\"\",\"\",'1. Order'!AE1239)","v":""}]
[{"$f":"IF('1. Order'!B1240=\"\",\"\",'1. Order'!B1240)","v":""},{"$f":"IF('1. Order'!I1240=\"\",\"\",'1. Order'!I1240)","v":""},{"$f":"IF('1. Order'!J1240=\"\",\"\",'1. Order'!J1240)","v":""},{"$f":"IF('1. Order'!K1240=\"\",\"\",'1. Order'!K1240)","v":""},{"$f":"IF('1. Order'!M1240=\"\",\"\",'1. Order'!M1240)","v":""},null,null,{"$f":"'1. Order'!AW1240","v":0},{"$f":"IF('1. Order'!AE1240=\"\",\"\",'1. Order'!AE1240)","v":""}]
[{"$f":"IF('1. Order'!B1241=\"\",\"\",'1. Order'!B1241)","v":""},{"$f":"IF('1. Order'!I1241=\"\",\"\",'1. Order'!I1241)","v":""},{"$f":"IF('1. Order'!J1241=\"\",\"\",'1. Order'!J1241)","v":""},{"$f":"IF('1. Order'!K1241=\"\",\"\",'1. Order'!K1241)","v":""},{"$f":"IF('1. Order'!M1241=\"\",\"\",'1. Order'!M1241)","v":""},null,null,{"$f":"'1. Order'!AW1241","v":0},{"$f":"IF('1. Order'!AE1241=\"\",\"\",'1. Order'!AE1241)","v":""}]
[{"$f":"IF('1. Order'!B1242=\"\",\"\",'1. Order'!B1242)","v":""},{"$f":"IF('1. Order'!I1242=\"\",\"\",'1. Order'!I1242)","v":""},{"$f":"IF('1. Order'!J1242=\"\",\"\",'1. Order'!J1242)","v":""},{"$f":"IF('1. Order'!K1242=\"\",\"\",'1. Order'!K1242)","v":""},{"$f":"IF('1. Order'!M1242=\"\",\"\",'1. Order'!M1242)","v":""},null,null,{"$f":"'1. Order'!AW1242","v":0},{"$f":"IF('1. Order'!AE1242=\"\",\"\",'1. Order'!AE1242)","v":""}]
[{"$f":"IF('1. Order'!B1243=\"\",\"\",'1. Order'!B1243)","v":""},{"$f":"IF('1. Order'!I1243=\"\",\"\",'1. Order'!I1243)","v":""},{"$f":"IF('1. Order'!J1243=\"\",\"\",'1. Order'!J1243)","v":""},{"$f":"IF('1. Order'!K1243=\"\",\"\",'1. Order'!K1243)","v":""},{"$f":"IF('1. Order'!M1243=\"\",\"\",'1. Order'!M1243)","v":""},null,null,{"$f":"'1. Order'!AW1243","v":0},{"$f":"IF('1. Order'!AE1243=\"\",\"\",'1. Order'!AE1243)","v":""}]
[{"$f":"IF('1. Order'!B1244=\"\",\"\",'1. Order'!B1244)","v":""},{"$f":"IF('1. Order'!I1244=\"\",\"\",'1. Order'!I1244)","v":""},{"$f":"IF('1. Order'!J1244=\"\",\"\",'1. Order'!J1244)","v":""},{"$f":"IF('1. Order'!K1244=\"\",\"\",'1. Order'!K1244)","v":""},{"$f":"IF('1. Order'!M1244=\"\",\"\",'1. Order'!M1244)","v":""},null,null,{"$f":"'1. Order'!AW1244","v":0},{"$f":"IF('1. Order'!AE1244=\"\",\"\",'1. Order'!AE1244)","v":""}]
[{"$f":"IF('1. Order'!B1245=\"\",\"\",'1. Order'!B1245)","v":""},{"$f":"IF('1. Order'!I1245=\"\",\"\",'1. Order'!I1245)","v":""},{"$f":"IF('1. Order'!J1245=\"\",\"\",'1. Order'!J1245)","v":""},{"$f":"IF('1. Order'!K1245=\"\",\"\",'1. Order'!K1245)","v":""},{"$f":"IF('1. Order'!M1245=\"\",\"\",'1. Order'!M1245)","v":""},null,null,{"$f":"'1. Order'!AW1245","v":0},{"$f":"IF('1. Order'!AE1245=\"\",\"\",'1. Order'!AE1245)","v":""}]
[{"$f":"IF('1. Order'!B1246=\"\",\"\",'1. Order'!B1246)","v":""},{"$f":"IF('1. Order'!I1246=\"\",\"\",'1. Order'!I1246)","v":""},{"$f":"IF('1. Order'!J1246=\"\",\"\",'1. Order'!J1246)","v":""},{"$f":"IF('1. Order'!K1246=\"\",\"\",'1. Order'!K1246)","v":""},{"$f":"IF('1. Order'!M1246=\"\",\"\",'1. Order'!M1246)","v":""},null,null,{"$f":"'1. Order'!AW1246","v":0},{"$f":"IF('1. Order'!AE1246=\"\",\"\",'1. Order'!AE1246)","v":""}]
[{"$f":"IF('1. Order'!B1247=\"\",\"\",'1. Order'!B1247)","v":""},{"$f":"IF('1. Order'!I1247=\"\",\"\",'1. Order'!I1247)","v":""},{"$f":"IF('1. Order'!J1247=\"\",\"\",'1. Order'!J1247)","v":""},{"$f":"IF('1. Order'!K1247=\"\",\"\",'1. Order'!K1247)","v":""},{"$f":"IF('1. Order'!M1247=\"\",\"\",'1. Order'!M1247)","v":""},null,null,{"$f":"'1. Order'!AW1247","v":0},{"$f":"IF('1. Order'!AE1247=\"\",\"\",'1. Order'!AE1247)","v":""}]
[{"$f":"IF('1. Order'!B1248=\"\",\"\",'1. Order'!B1248)","v":""},{"$f":"IF('1. Order'!I1248=\"\",\"\",'1. Order'!I1248)","v":""},{"$f":"IF('1. Order'!J1248=\"\",\"\",'1. Order'!J1248)","v":""},{"$f":"IF('1. Order'!K1248=\"\",\"\",'1. Order'!K1248)","v":""},{"$f":"IF('1. Order'!M1248=\"\",\"\",'1. Order'!M1248)","v":""},null,null,{"$f":"'1. Order'!AW1248","v":0},{"$f":"IF('1. Order'!AE1248=\"\",\"\",'1. Order'!AE1248)","v":""}]
[{"$f":"IF('1. Order'!B1249=\"\",\"\",'1. Order'!B1249)","v":""},{"$f":"IF('1. Order'!I1249=\"\",\"\",'1. Order'!I1249)","v":""},{"$f":"IF('1. Order'!J1249=\"\",\"\",'1. Order'!J1249)","v":""},{"$f":"IF('1. Order'!K1249=\"\",\"\",'1. Order'!K1249)","v":""},{"$f":"IF('1. Order'!M1249=\"\",\"\",'1. Order'!M1249)","v":""},null,null,{"$f":"'1. Order'!AW1249","v":0},{"$f":"IF('1. Order'!AE1249=\"\",\"\",'1. Order'!AE1249)","v":""}]
[{"$f":"IF('1. Order'!B1250=\"\",\"\",'1. Order'!B1250)","v":""},{"$f":"IF('1. Order'!I1250=\"\",\"\",'1. Order'!I1250)","v":""},{"$f":"IF('1. Order'!J1250=\"\",\"\",'1. Order'!J1250)","v":""},{"$f":"IF('1. Order'!K1250=\"\",\"\",'1. Order'!K1250)","v":""},{"$f":"IF('1. Order'!M1250=\"\",\"\",'1. Order'!M1250)","v":""},null,null,{"$f":"'1. Order'!AW1250","v":0},{"$f":"IF('1. Order'!AE1250=\"\",\"\",'1. Order'!AE1250)","v":""}]
[{"$f":"IF('1. Order'!B1251=\"\",\"\",'1. Order'!B1251)","v":""},{"$f":"IF('1. Order'!I1251=\"\",\"\",'1. Order'!I1251)","v":""},{"$f":"IF('1. Order'!J1251=\"\",\"\",'1. Order'!J1251)","v":""},{"$f":"IF('1. Order'!K1251=\"\",\"\",'1. Order'!K1251)","v":""},{"$f":"IF('1. Order'!M1251=\"\",\"\",'1. Order'!M1251)","v":""},null,null,{"$f":"'1. Order'!AW1251","v":0},{"$f":"IF('1. Order'!AE1251=\"\",\"\",'1. Order'!AE1251)","v":""}]
[{"$f":"IF('1. Order'!B1252=\"\",\"\",'1. Order'!B1252)","v":""},{"$f":"IF('1. Order'!I1252=\"\",\"\",'1. Order'!I1252)","v":""},{"$f":"IF('1. Order'!J1252=\"\",\"\",'1. Order'!J1252)","v":""},{"$f":"IF('1. Order'!K1252=\"\",\"\",'1. Order'!K1252)","v":""},{"$f":"IF('1. Order'!M1252=\"\",\"\",'1. Order'!M1252)","v":""},null,null,{"$f":"'1. Order'!AW1252","v":0},{"$f":"IF('1. Order'!AE1252=\"\",\"\",'1. Order'!AE1252)","v":""}]
[{"$f":"IF('1. Order'!B1253=\"\",\"\",'1. Order'!B1253)","v":""},{"$f":"IF('1. Order'!I1253=\"\",\"\",'1. Order'!I1253)","v":""},{"$f":"IF('1. Order'!J1253=\"\",\"\",'1. Order'!J1253)","v":""},{"$f":"IF('1. Order'!K1253=\"\",\"\",'1. Order'!K1253)","v":""},{"$f":"IF('1. Order'!M1253=\"\",\"\",'1. Order'!M1253)","v":""},null,null,{"$f":"'1. Order'!AW1253","v":0},{"$f":"IF('1. Order'!AE1253=\"\",\"\",'1. Order'!AE1253)","v":""}]
[{"$f":"IF('1. Order'!B1254=\"\",\"\",'1. Order'!B1254)","v":""},{"$f":"IF('1. Order'!I1254=\"\",\"\",'1. Order'!I1254)","v":""},{"$f":"IF('1. Order'!J1254=\"\",\"\",'1. Order'!J1254)","v":""},{"$f":"IF('1. Order'!K1254=\"\",\"\",'1. Order'!K1254)","v":""},{"$f":"IF('1. Order'!M1254=\"\",\"\",'1. Order'!M1254)","v":""},null,null,{"$f":"'1. Order'!AW1254","v":0},{"$f":"IF('1. Order'!AE1254=\"\",\"\",'1. Order'!AE1254)","v":""}]
[{"$f":"IF('1. Order'!B1255=\"\",\"\",'1. Order'!B1255)","v":""},{"$f":"IF('1. Order'!I1255=\"\",\"\",'1. Order'!I1255)","v":""},{"$f":"IF('1. Order'!J1255=\"\",\"\",'1. Order'!J1255)","v":""},{"$f":"IF('1. Order'!K1255=\"\",\"\",'1. Order'!K1255)","v":""},{"$f":"IF('1. Order'!M1255=\"\",\"\",'1. Order'!M1255)","v":""},null,null,{"$f":"'1. Order'!AW1255","v":0},{"$f":"IF('1. Order'!AE1255=\"\",\"\",'1. Order'!AE1255)","v":""}]
[{"$f":"IF('1. Order'!B1256=\"\",\"\",'1. Order'!B1256)","v":""},{"$f":"IF('1. Order'!I1256=\"\",\"\",'1. Order'!I1256)","v":""},{"$f":"IF('1. Order'!J1256=\"\",\"\",'1. Order'!J1256)","v":""},{"$f":"IF('1. Order'!K1256=\"\",\"\",'1. Order'!K1256)","v":""},{"$f":"IF('1. Order'!M1256=\"\",\"\",'1. Order'!M1256)","v":""},null,null,{"$f":"'1. Order'!AW1256","v":0},{"$f":"IF('1. Order'!AE1256=\"\",\"\",'1. Order'!AE1256)","v":""}]
[{"$f":"IF('1. Order'!B1257=\"\",\"\",'1. Order'!B1257)","v":""},{"$f":"IF('1. Order'!I1257=\"\",\"\",'1. Order'!I1257)","v":""},{"$f":"IF('1. Order'!J1257=\"\",\"\",'1. Order'!J1257)","v":""},{"$f":"IF('1. Order'!K1257=\"\",\"\",'1. Order'!K1257)","v":""},{"$f":"IF('1. Order'!M1257=\"\",\"\",'1. Order'!M1257)","v":""},null,null,{"$f":"'1. Order'!AW1257","v":0},{"$f":"IF('1. Order'!AE1257=\"\",\"\",'1. Order'!AE1257)","v":""}]
[{"$f":"IF('1. Order'!B1258=\"\",\"\",'1. Order'!B1258)","v":""},{"$f":"IF('1. Order'!I1258=\"\",\"\",'1. Order'!I1258)","v":""},{"$f":"IF('1. Order'!J1258=\"\",\"\",'1. Order'!J1258)","v":""},{"$f":"IF('1. Order'!K1258=\"\",\"\",'1. Order'!K1258)","v":""},{"$f":"IF('1. Order'!M1258=\"\",\"\",'1. Order'!M1258)","v":""},null,null,{"$f":"'1. Order'!AW1258","v":0},{"$f":"IF('1. Order'!AE1258=\"\",\"\",'1. Order'!AE1258)","v":""}]
[{"$f":"IF('1. Order'!B1259=\"\",\"\",'1. Order'!B1259)","v":""},{"$f":"IF('1. Order'!I1259=\"\",\"\",'1. Order'!I1259)","v":""},{"$f":"IF('1. Order'!J1259=\"\",\"\",'1. Order'!J1259)","v":""},{"$f":"IF('1. Order'!K1259=\"\",\"\",'1. Order'!K1259)","v":""},{"$f":"IF('1. Order'!M1259=\"\",\"\",'1. Order'!M1259)","v":""},null,null,{"$f":"'1. Order'!AW1259","v":0},{"$f":"IF('1. Order'!AE1259=\"\",\"\",'1. Order'!AE1259)","v":""}]
[{"$f":"IF('1. Order'!B1260=\"\",\"\",'1. Order'!B1260)","v":""},{"$f":"IF('1. Order'!I1260=\"\",\"\",'1. Order'!I1260)","v":""},{"$f":"IF('1. Order'!J1260=\"\",\"\",'1. Order'!J1260)","v":""},{"$f":"IF('1. Order'!K1260=\"\",\"\",'1. Order'!K1260)","v":""},{"$f":"IF('1. Order'!M1260=\"\",\"\",'1. Order'!M1260)","v":""},null,null,{"$f":"'1. Order'!AW1260","v":0},{"$f":"IF('1. Order'!AE1260=\"\",\"\",'1. Order'!AE1260)","v":""}]
[{"$f":"IF('1. Order'!B1261=\"\",\"\",'1. Order'!B1261)","v":""},{"$f":"IF('1. Order'!I1261=\"\",\"\",'1. Order'!I1261)","v":""},{"$f":"IF('1. Order'!J1261=\"\",\"\",'1. Order'!J1261)","v":""},{"$f":"IF('1. Order'!K1261=\"\",\"\",'1. Order'!K1261)","v":""},{"$f":"IF('1. Order'!M1261=\"\",\"\",'1. Order'!M1261)","v":""},null,null,{"$f":"'1. Order'!AW1261","v":0},{"$f":"IF('1. Order'!AE1261=\"\",\"\",'1. Order'!AE1261)","v":""}]
[{"$f":"IF('1. Order'!B1262=\"\",\"\",'1. Order'!B1262)","v":""},{"$f":"IF('1. Order'!I1262=\"\",\"\",'1. Order'!I1262)","v":""},{"$f":"IF('1. Order'!J1262=\"\",\"\",'1. Order'!J1262)","v":""},{"$f":"IF('1. Order'!K1262=\"\",\"\",'1. Order'!K1262)","v":""},{"$f":"IF('1. Order'!M1262=\"\",\"\",'1. Order'!M1262)","v":""},null,null,{"$f":"'1. Order'!AW1262","v":0},{"$f":"IF('1. Order'!AE1262=\"\",\"\",'1. Order'!AE1262)","v":""}]
[{"$f":"IF('1. Order'!B1263=\"\",\"\",'1. Order'!B1263)","v":""},{"$f":"IF('1. Order'!I1263=\"\",\"\",'1. Order'!I1263)","v":""},{"$f":"IF('1. Order'!J1263=\"\",\"\",'1. Order'!J1263)","v":""},{"$f":"IF('1. Order'!K1263=\"\",\"\",'1. Order'!K1263)","v":""},{"$f":"IF('1. Order'!M1263=\"\",\"\",'1. Order'!M1263)","v":""},null,null,{"$f":"'1. Order'!AW1263","v":0},{"$f":"IF('1. Order'!AE1263=\"\",\"\",'1. Order'!AE1263)","v":""}]
[{"$f":"IF('1. Order'!B1264=\"\",\"\",'1. Order'!B1264)","v":""},{"$f":"IF('1. Order'!I1264=\"\",\"\",'1. Order'!I1264)","v":""},{"$f":"IF('1. Order'!J1264=\"\",\"\",'1. Order'!J1264)","v":""},{"$f":"IF('1. Order'!K1264=\"\",\"\",'1. Order'!K1264)","v":""},{"$f":"IF('1. Order'!M1264=\"\",\"\",'1. Order'!M1264)","v":""},null,null,{"$f":"'1. Order'!AW1264","v":0},{"$f":"IF('1. Order'!AE1264=\"\",\"\",'1. Order'!AE1264)","v":""}]
[{"$f":"IF('1. Order'!B1265=\"\",\"\",'1. Order'!B1265)","v":""},{"$f":"IF('1. Order'!I1265=\"\",\"\",'1. Order'!I1265)","v":""},{"$f":"IF('1. Order'!J1265=\"\",\"\",'1. Order'!J1265)","v":""},{"$f":"IF('1. Order'!K1265=\"\",\"\",'1. Order'!K1265)","v":""},{"$f":"IF('1. Order'!M1265=\"\",\"\",'1. Order'!M1265)","v":""},null,null,{"$f":"'1. Order'!AW1265","v":0},{"$f":"IF('1. Order'!AE1265=\"\",\"\",'1. Order'!AE1265)","v":""}]
[{"$f":"IF('1. Order'!B1266=\"\",\"\",'1. Order'!B1266)","v":""},{"$f":"IF('1. Order'!I1266=\"\",\"\",'1. Order'!I1266)","v":""},{"$f":"IF('1. Order'!J1266=\"\",\"\",'1. Order'!J1266)","v":""},{"$f":"IF('1. Order'!K1266=\"\",\"\",'1. Order'!K1266)","v":""},{"$f":"IF('1. Order'!M1266=\"\",\"\",'1. Order'!M1266)","v":""},null,null,{"$f":"'1. Order'!AW1266","v":0},{"$f":"IF('1. Order'!AE1266=\"\",\"\",'1. Order'!AE1266)","v":""}]
[{"$f":"IF('1. Order'!B1267=\"\",\"\",'1. Order'!B1267)","v":""},{"$f":"IF('1. Order'!I1267=\"\",\"\",'1. Order'!I1267)","v":""},{"$f":"IF('1. Order'!J1267=\"\",\"\",'1. Order'!J1267)","v":""},{"$f":"IF('1. Order'!K1267=\"\",\"\",'1. Order'!K1267)","v":""},{"$f":"IF('1. Order'!M1267=\"\",\"\",'1. Order'!M1267)","v":""},null,null,{"$f":"'1. Order'!AW1267","v":0},{"$f":"IF('1. Order'!AE1267=\"\",\"\",'1. Order'!AE1267)","v":""}]
[{"$f":"IF('1. Order'!B1268=\"\",\"\",'1. Order'!B1268)","v":""},{"$f":"IF('1. Order'!I1268=\"\",\"\",'1. Order'!I1268)","v":""},{"$f":"IF('1. Order'!J1268=\"\",\"\",'1. Order'!J1268)","v":""},{"$f":"IF('1. Order'!K1268=\"\",\"\",'1. Order'!K1268)","v":""},{"$f":"IF('1. Order'!M1268=\"\",\"\",'1. Order'!M1268)","v":""},null,null,{"$f":"'1. Order'!AW1268","v":0},{"$f":"IF('1. Order'!AE1268=\"\",\"\",'1. Order'!AE1268)","v":""}]
[{"$f":"IF('1. Order'!B1269=\"\",\"\",'1. Order'!B1269)","v":""},{"$f":"IF('1. Order'!I1269=\"\",\"\",'1. Order'!I1269)","v":""},{"$f":"IF('1. Order'!J1269=\"\",\"\",'1. Order'!J1269)","v":""},{"$f":"IF('1. Order'!K1269=\"\",\"\",'1. Order'!K1269)","v":""},{"$f":"IF('1. Order'!M1269=\"\",\"\",'1. Order'!M1269)","v":""},null,null,{"$f":"'1. Order'!AW1269","v":0},{"$f":"IF('1. Order'!AE1269=\"\",\"\",'1. Order'!AE1269)","v":""}]
[{"$f":"IF('1. Order'!B1270=\"\",\"\",'1. Order'!B1270)","v":""},{"$f":"IF('1. Order'!I1270=\"\",\"\",'1. Order'!I1270)","v":""},{"$f":"IF('1. Order'!J1270=\"\",\"\",'1. Order'!J1270)","v":""},{"$f":"IF('1. Order'!K1270=\"\",\"\",'1. Order'!K1270)","v":""},{"$f":"IF('1. Order'!M1270=\"\",\"\",'1. Order'!M1270)","v":""},null,null,{"$f":"'1. Order'!AW1270","v":0},{"$f":"IF('1. Order'!AE1270=\"\",\"\",'1. Order'!AE1270)","v":""}]
[{"$f":"IF('1. Order'!B1271=\"\",\"\",'1. Order'!B1271)","v":""},{"$f":"IF('1. Order'!I1271=\"\",\"\",'1. Order'!I1271)","v":""},{"$f":"IF('1. Order'!J1271=\"\",\"\",'1. Order'!J1271)","v":""},{"$f":"IF('1. Order'!K1271=\"\",\"\",'1. Order'!K1271)","v":""},{"$f":"IF('1. Order'!M1271=\"\",\"\",'1. Order'!M1271)","v":""},null,null,{"$f":"'1. Order'!AW1271","v":0},{"$f":"IF('1. Order'!AE1271=\"\",\"\",'1. Order'!AE1271)","v":""}]
[{"$f":"IF('1. Order'!B1272=\"\",\"\",'1. Order'!B1272)","v":""},{"$f":"IF('1. Order'!I1272=\"\",\"\",'1. Order'!I1272)","v":""},{"$f":"IF('1. Order'!J1272=\"\",\"\",'1. Order'!J1272)","v":""},{"$f":"IF('1. Order'!K1272=\"\",\"\",'1. Order'!K1272)","v":""},{"$f":"IF('1. Order'!M1272=\"\",\"\",'1. Order'!M1272)","v":""},null,null,{"$f":"'1. Order'!AW1272","v":0},{"$f":"IF('1. Order'!AE1272=\"\",\"\",'1. Order'!AE1272)","v":""}]
[{"$f":"IF('1. Order'!B1273=\"\",\"\",'1. Order'!B1273)","v":""},{"$f":"IF('1. Order'!I1273=\"\",\"\",'1. Order'!I1273)","v":""},{"$f":"IF('1. Order'!J1273=\"\",\"\",'1. Order'!J1273)","v":""},{"$f":"IF('1. Order'!K1273=\"\",\"\",'1. Order'!K1273)","v":""},{"$f":"IF('1. Order'!M1273=\"\",\"\",'1. Order'!M1273)","v":""},null,null,{"$f":"'1. Order'!AW1273","v":0},{"$f":"IF('1. Order'!AE1273=\"\",\"\",'1. Order'!AE1273)","v":""}]
[{"$f":"IF('1. Order'!B1274=\"\",\"\",'1. Order'!B1274)","v":""},{"$f":"IF('1. Order'!I1274=\"\",\"\",'1. Order'!I1274)","v":""},{"$f":"IF('1. Order'!J1274=\"\",\"\",'1. Order'!J1274)","v":""},{"$f":"IF('1. Order'!K1274=\"\",\"\",'1. Order'!K1274)","v":""},{"$f":"IF('1. Order'!M1274=\"\",\"\",'1. Order'!M1274)","v":""},null,null,{"$f":"'1. Order'!AW1274","v":0},{"$f":"IF('1. Order'!AE1274=\"\",\"\",'1. Order'!AE1274)","v":""}]
[{"$f":"IF('1. Order'!B1275=\"\",\"\",'1. Order'!B1275)","v":""},{"$f":"IF('1. Order'!I1275=\"\",\"\",'1. Order'!I1275)","v":""},{"$f":"IF('1. Order'!J1275=\"\",\"\",'1. Order'!J1275)","v":""},{"$f":"IF('1. Order'!K1275=\"\",\"\",'1. Order'!K1275)","v":""},{"$f":"IF('1. Order'!M1275=\"\",\"\",'1. Order'!M1275)","v":""},null,null,{"$f":"'1. Order'!AW1275","v":0},{"$f":"IF('1. Order'!AE1275=\"\",\"\",'1. Order'!AE1275)","v":""}]
[{"$f":"IF('1. Order'!B1276=\"\",\"\",'1. Order'!B1276)","v":""},{"$f":"IF('1. Order'!I1276=\"\",\"\",'1. Order'!I1276)","v":""},{"$f":"IF('1. Order'!J1276=\"\",\"\",'1. Order'!J1276)","v":""},{"$f":"IF('1. Order'!K1276=\"\",\"\",'1. Order'!K1276)","v":""},{"$f":"IF('1. Order'!M1276=\"\",\"\",'1. Order'!M1276)","v":""},null,null,{"$f":"'1. Order'!AW1276","v":0},{"$f":"IF('1. Order'!AE1276=\"\",\"\",'1. Order'!AE1276)","v":""}]
[{"$f":"IF('1. Order'!B1277=\"\",\"\",'1. Order'!B1277)","v":""},{"$f":"IF('1. Order'!I1277=\"\",\"\",'1. Order'!I1277)","v":""},{"$f":"IF('1. Order'!J1277=\"\",\"\",'1. Order'!J1277)","v":""},{"$f":"IF('1. Order'!K1277=\"\",\"\",'1. Order'!K1277)","v":""},{"$f":"IF('1. Order'!M1277=\"\",\"\",'1. Order'!M1277)","v":""},null,null,{"$f":"'1. Order'!AW1277","v":0},{"$f":"IF('1. Order'!AE1277=\"\",\"\",'1. Order'!AE1277)","v":""}]
[{"$f":"IF('1. Order'!B1278=\"\",\"\",'1. Order'!B1278)","v":""},{"$f":"IF('1. Order'!I1278=\"\",\"\",'1. Order'!I1278)","v":""},{"$f":"IF('1. Order'!J1278=\"\",\"\",'1. Order'!J1278)","v":""},{"$f":"IF('1. Order'!K1278=\"\",\"\",'1. Order'!K1278)","v":""},{"$f":"IF('1. Order'!M1278=\"\",\"\",'1. Order'!M1278)","v":""},null,null,{"$f":"'1. Order'!AW1278","v":0},{"$f":"IF('1. Order'!AE1278=\"\",\"\",'1. Order'!AE1278)","v":""}]
[{"$f":"IF('1. Order'!B1279=\"\",\"\",'1. Order'!B1279)","v":""},{"$f":"IF('1. Order'!I1279=\"\",\"\",'1. Order'!I1279)","v":""},{"$f":"IF('1. Order'!J1279=\"\",\"\",'1. Order'!J1279)","v":""},{"$f":"IF('1. Order'!K1279=\"\",\"\",'1. Order'!K1279)","v":""},{"$f":"IF('1. Order'!M1279=\"\",\"\",'1. Order'!M1279)","v":""},null,null,{"$f":"'1. Order'!AW1279","v":0},{"$f":"IF('1. Order'!AE1279=\"\",\"\",'1. Order'!AE1279)","v":""}]
[{"$f":"IF('1. Order'!B1280=\"\",\"\",'1. Order'!B1280)","v":""},{"$f":"IF('1. Order'!I1280=\"\",\"\",'1. Order'!I1280)","v":""},{"$f":"IF('1. Order'!J1280=\"\",\"\",'1. Order'!J1280)","v":""},{"$f":"IF('1. Order'!K1280=\"\",\"\",'1. Order'!K1280)","v":""},{"$f":"IF('1. Order'!M1280=\"\",\"\",'1. Order'!M1280)","v":""},null,null,{"$f":"'1. Order'!AW1280","v":0},{"$f":"IF('1. Order'!AE1280=\"\",\"\",'1. Order'!AE1280)","v":""}]
[{"$f":"IF('1. Order'!B1281=\"\",\"\",'1. Order'!B1281)","v":""},{"$f":"IF('1. Order'!I1281=\"\",\"\",'1. Order'!I1281)","v":""},{"$f":"IF('1. Order'!J1281=\"\",\"\",'1. Order'!J1281)","v":""},{"$f":"IF('1. Order'!K1281=\"\",\"\",'1. Order'!K1281)","v":""},{"$f":"IF('1. Order'!M1281=\"\",\"\",'1. Order'!M1281)","v":""},null,null,{"$f":"'1. Order'!AW1281","v":0},{"$f":"IF('1. Order'!AE1281=\"\",\"\",'1. Order'!AE1281)","v":""}]
[{"$f":"IF('1. Order'!B1282=\"\",\"\",'1. Order'!B1282)","v":""},{"$f":"IF('1. Order'!I1282=\"\",\"\",'1. Order'!I1282)","v":""},{"$f":"IF('1. Order'!J1282=\"\",\"\",'1. Order'!J1282)","v":""},{"$f":"IF('1. Order'!K1282=\"\",\"\",'1. Order'!K1282)","v":""},{"$f":"IF('1. Order'!M1282=\"\",\"\",'1. Order'!M1282)","v":""},null,null,{"$f":"'1. Order'!AW1282","v":0},{"$f":"IF('1. Order'!AE1282=\"\",\"\",'1. Order'!AE1282)","v":""}]
[{"$f":"IF('1. Order'!B1283=\"\",\"\",'1. Order'!B1283)","v":""},{"$f":"IF('1. Order'!I1283=\"\",\"\",'1. Order'!I1283)","v":""},{"$f":"IF('1. Order'!J1283=\"\",\"\",'1. Order'!J1283)","v":""},{"$f":"IF('1. Order'!K1283=\"\",\"\",'1. Order'!K1283)","v":""},{"$f":"IF('1. Order'!M1283=\"\",\"\",'1. Order'!M1283)","v":""},null,null,{"$f":"'1. Order'!AW1283","v":0},{"$f":"IF('1. Order'!AE1283=\"\",\"\",'1. Order'!AE1283)","v":""}]
[{"$f":"IF('1. Order'!B1284=\"\",\"\",'1. Order'!B1284)","v":""},{"$f":"IF('1. Order'!I1284=\"\",\"\",'1. Order'!I1284)","v":""},{"$f":"IF('1. Order'!J1284=\"\",\"\",'1. Order'!J1284)","v":""},{"$f":"IF('1. Order'!K1284=\"\",\"\",'1. Order'!K1284)","v":""},{"$f":"IF('1. Order'!M1284=\"\",\"\",'1. Order'!M1284)","v":""},null,null,{"$f":"'1. Order'!AW1284","v":0},{"$f":"IF('1. Order'!AE1284=\"\",\"\",'1. Order'!AE1284)","v":""}]
[{"$f":"IF('1. Order'!B1285=\"\",\"\",'1. Order'!B1285)","v":""},{"$f":"IF('1. Order'!I1285=\"\",\"\",'1. Order'!I1285)","v":""},{"$f":"IF('1. Order'!J1285=\"\",\"\",'1. Order'!J1285)","v":""},{"$f":"IF('1. Order'!K1285=\"\",\"\",'1. Order'!K1285)","v":""},{"$f":"IF('1. Order'!M1285=\"\",\"\",'1. Order'!M1285)","v":""},null,null,{"$f":"'1. Order'!AW1285","v":0},{"$f":"IF('1. Order'!AE1285=\"\",\"\",'1. Order'!AE1285)","v":""}]
[{"$f":"IF('1. Order'!B1286=\"\",\"\",'1. Order'!B1286)","v":""},{"$f":"IF('1. Order'!I1286=\"\",\"\",'1. Order'!I1286)","v":""},{"$f":"IF('1. Order'!J1286=\"\",\"\",'1. Order'!J1286)","v":""},{"$f":"IF('1. Order'!K1286=\"\",\"\",'1. Order'!K1286)","v":""},{"$f":"IF('1. Order'!M1286=\"\",\"\",'1. Order'!M1286)","v":""},null,null,{"$f":"'1. Order'!AW1286","v":0},{"$f":"IF('1. Order'!AE1286=\"\",\"\",'1. Order'!AE1286)","v":""}]
[{"$f":"IF('1. Order'!B1287=\"\",\"\",'1. Order'!B1287)","v":""},{"$f":"IF('1. Order'!I1287=\"\",\"\",'1. Order'!I1287)","v":""},{"$f":"IF('1. Order'!J1287=\"\",\"\",'1. Order'!J1287)","v":""},{"$f":"IF('1. Order'!K1287=\"\",\"\",'1. Order'!K1287)","v":""},{"$f":"IF('1. Order'!M1287=\"\",\"\",'1. Order'!M1287)","v":""},null,null,{"$f":"'1. Order'!AW1287","v":0},{"$f":"IF('1. Order'!AE1287=\"\",\"\",'1. Order'!AE1287)","v":""}]
[{"$f":"IF('1. Order'!B1288=\"\",\"\",'1. Order'!B1288)","v":""},{"$f":"IF('1. Order'!I1288=\"\",\"\",'1. Order'!I1288)","v":""},{"$f":"IF('1. Order'!J1288=\"\",\"\",'1. Order'!J1288)","v":""},{"$f":"IF('1. Order'!K1288=\"\",\"\",'1. Order'!K1288)","v":""},{"$f":"IF('1. Order'!M1288=\"\",\"\",'1. Order'!M1288)","v":""},null,null,{"$f":"'1. Order'!AW1288","v":0},{"$f":"IF('1. Order'!AE1288=\"\",\"\",'1. Order'!AE1288)","v":""}]
[{"$f":"IF('1. Order'!B1289=\"\",\"\",'1. Order'!B1289)","v":""},{"$f":"IF('1. Order'!I1289=\"\",\"\",'1. Order'!I1289)","v":""},{"$f":"IF('1. Order'!J1289=\"\",\"\",'1. Order'!J1289)","v":""},{"$f":"IF('1. Order'!K1289=\"\",\"\",'1. Order'!K1289)","v":""},{"$f":"IF('1. Order'!M1289=\"\",\"\",'1. Order'!M1289)","v":""},null,null,{"$f":"'1. Order'!AW1289","v":0},{"$f":"IF('1. Order'!AE1289=\"\",\"\",'1. Order'!AE1289)","v":""}]
[{"$f":"IF('1. Order'!B1290=\"\",\"\",'1. Order'!B1290)","v":""},{"$f":"IF('1. Order'!I1290=\"\",\"\",'1. Order'!I1290)","v":""},{"$f":"IF('1. Order'!J1290=\"\",\"\",'1. Order'!J1290)","v":""},{"$f":"IF('1. Order'!K1290=\"\",\"\",'1. Order'!K1290)","v":""},{"$f":"IF('1. Order'!M1290=\"\",\"\",'1. Order'!M1290)","v":""},null,null,{"$f":"'1. Order'!AW1290","v":0},{"$f":"IF('1. Order'!AE1290=\"\",\"\",'1. Order'!AE1290)","v":""}]
[{"$f":"IF('1. Order'!B1291=\"\",\"\",'1. Order'!B1291)","v":""},{"$f":"IF('1. Order'!I1291=\"\",\"\",'1. Order'!I1291)","v":""},{"$f":"IF('1. Order'!J1291=\"\",\"\",'1. Order'!J1291)","v":""},{"$f":"IF('1. Order'!K1291=\"\",\"\",'1. Order'!K1291)","v":""},{"$f":"IF('1. Order'!M1291=\"\",\"\",'1. Order'!M1291)","v":""},null,null,{"$f":"'1. Order'!AW1291","v":0},{"$f":"IF('1. Order'!AE1291=\"\",\"\",'1. Order'!AE1291)","v":""}]
[{"$f":"IF('1. Order'!B1292=\"\",\"\",'1. Order'!B1292)","v":""},{"$f":"IF('1. Order'!I1292=\"\",\"\",'1. Order'!I1292)","v":""},{"$f":"IF('1. Order'!J1292=\"\",\"\",'1. Order'!J1292)","v":""},{"$f":"IF('1. Order'!K1292=\"\",\"\",'1. Order'!K1292)","v":""},{"$f":"IF('1. Order'!M1292=\"\",\"\",'1. Order'!M1292)","v":""},null,null,{"$f":"'1. Order'!AW1292","v":0},{"$f":"IF('1. Order'!AE1292=\"\",\"\",'1. Order'!AE1292)","v":""}]
[{"$f":"IF('1. Order'!B1293=\"\",\"\",'1. Order'!B1293)","v":""},{"$f":"IF('1. Order'!I1293=\"\",\"\",'1. Order'!I1293)","v":""},{"$f":"IF('1. Order'!J1293=\"\",\"\",'1. Order'!J1293)","v":""},{"$f":"IF('1. Order'!K1293=\"\",\"\",'1. Order'!K1293)","v":""},{"$f":"IF('1. Order'!M1293=\"\",\"\",'1. Order'!M1293)","v":""},null,null,{"$f":"'1. Order'!AW1293","v":0},{"$f":"IF('1. Order'!AE1293=\"\",\"\",'1. Order'!AE1293)","v":""}]
[{"$f":"IF('1. Order'!B1294=\"\",\"\",'1. Order'!B1294)","v":""},{"$f":"IF('1. Order'!I1294=\"\",\"\",'1. Order'!I1294)","v":""},{"$f":"IF('1. Order'!J1294=\"\",\"\",'1. Order'!J1294)","v":""},{"$f":"IF('1. Order'!K1294=\"\",\"\",'1. Order'!K1294)","v":""},{"$f":"IF('1. Order'!M1294=\"\",\"\",'1. Order'!M1294)","v":""},null,null,{"$f":"'1. Order'!AW1294","v":0},{"$f":"IF('1. Order'!AE1294=\"\",\"\",'1. Order'!AE1294)","v":""}]
[{"$f":"IF('1. Order'!B1295=\"\",\"\",'1. Order'!B1295)","v":""},{"$f":"IF('1. Order'!I1295=\"\",\"\",'1. Order'!I1295)","v":""},{"$f":"IF('1. Order'!J1295=\"\",\"\",'1. Order'!J1295)","v":""},{"$f":"IF('1. Order'!K1295=\"\",\"\",'1. Order'!K1295)","v":""},{"$f":"IF('1. Order'!M1295=\"\",\"\",'1. Order'!M1295)","v":""},null,null,{"$f":"'1. Order'!AW1295","v":0},{"$f":"IF('1. Order'!AE1295=\"\",\"\",'1. Order'!AE1295)","v":""}]
[{"$f":"IF('1. Order'!B1296=\"\",\"\",'1. Order'!B1296)","v":""},{"$f":"IF('1. Order'!I1296=\"\",\"\",'1. Order'!I1296)","v":""},{"$f":"IF('1. Order'!J1296=\"\",\"\",'1. Order'!J1296)","v":""},{"$f":"IF('1. Order'!K1296=\"\",\"\",'1. Order'!K1296)","v":""},{"$f":"IF('1. Order'!M1296=\"\",\"\",'1. Order'!M1296)","v":""},null,null,{"$f":"'1. Order'!AW1296","v":0},{"$f":"IF('1. Order'!AE1296=\"\",\"\",'1. Order'!AE1296)","v":""}]
[{"$f":"IF('1. Order'!B1297=\"\",\"\",'1. Order'!B1297)","v":""},{"$f":"IF('1. Order'!I1297=\"\",\"\",'1. Order'!I1297)","v":""},{"$f":"IF('1. Order'!J1297=\"\",\"\",'1. Order'!J1297)","v":""},{"$f":"IF('1. Order'!K1297=\"\",\"\",'1. Order'!K1297)","v":""},{"$f":"IF('1. Order'!M1297=\"\",\"\",'1. Order'!M1297)","v":""},null,null,{"$f":"'1. Order'!AW1297","v":0},{"$f":"IF('1. Order'!AE1297=\"\",\"\",'1. Order'!AE1297)","v":""}]
[{"$f":"IF('1. Order'!B1298=\"\",\"\",'1. Order'!B1298)","v":""},{"$f":"IF('1. Order'!I1298=\"\",\"\",'1. Order'!I1298)","v":""},{"$f":"IF('1. Order'!J1298=\"\",\"\",'1. Order'!J1298)","v":""},{"$f":"IF('1. Order'!K1298=\"\",\"\",'1. Order'!K1298)","v":""},{"$f":"IF('1. Order'!M1298=\"\",\"\",'1. Order'!M1298)","v":""},null,null,{"$f":"'1. Order'!AW1298","v":0},{"$f":"IF('1. Order'!AE1298=\"\",\"\",'1. Order'!AE1298)","v":""}]
[{"$f":"IF('1. Order'!B1299=\"\",\"\",'1. Order'!B1299)","v":""},{"$f":"IF('1. Order'!I1299=\"\",\"\",'1. Order'!I1299)","v":""},{"$f":"IF('1. Order'!J1299=\"\",\"\",'1. Order'!J1299)","v":""},{"$f":"IF('1. Order'!K1299=\"\",\"\",'1. Order'!K1299)","v":""},{"$f":"IF('1. Order'!M1299=\"\",\"\",'1. Order'!M1299)","v":""},null,null,{"$f":"'1. Order'!AW1299","v":0},{"$f":"IF('1. Order'!AE1299=\"\",\"\",'1. Order'!AE1299)","v":""}]
[{"$f":"IF('1. Order'!B1300=\"\",\"\",'1. Order'!B1300)","v":""},{"$f":"IF('1. Order'!I1300=\"\",\"\",'1. Order'!I1300)","v":""},{"$f":"IF('1. Order'!J1300=\"\",\"\",'1. Order'!J1300)","v":""},{"$f":"IF('1. Order'!K1300=\"\",\"\",'1. Order'!K1300)","v":""},{"$f":"IF('1. Order'!M1300=\"\",\"\",'1. Order'!M1300)","v":""},null,null,{"$f":"'1. Order'!AW1300","v":0},{"$f":"IF('1. Order'!AE1300=\"\",\"\",'1. Order'!AE1300)","v":""}]
[{"$f":"IF('1. Order'!B1301=\"\",\"\",'1. Order'!B1301)","v":""},{"$f":"IF('1. Order'!I1301=\"\",\"\",'1. Order'!I1301)","v":""},{"$f":"IF('1. Order'!J1301=\"\",\"\",'1. Order'!J1301)","v":""},{"$f":"IF('1. Order'!K1301=\"\",\"\",'1. Order'!K1301)","v":""},{"$f":"IF('1. Order'!M1301=\"\",\"\",'1. Order'!M1301)","v":""},null,null,{"$f":"'1. Order'!AW1301","v":0},{"$f":"IF('1. Order'!AE1301=\"\",\"\",'1. Order'!AE1301)","v":""}]
[{"$f":"IF('1. Order'!B1302=\"\",\"\",'1. Order'!B1302)","v":""},{"$f":"IF('1. Order'!I1302=\"\",\"\",'1. Order'!I1302)","v":""},{"$f":"IF('1. Order'!J1302=\"\",\"\",'1. Order'!J1302)","v":""},{"$f":"IF('1. Order'!K1302=\"\",\"\",'1. Order'!K1302)","v":""},{"$f":"IF('1. Order'!M1302=\"\",\"\",'1. Order'!M1302)","v":""},null,null,{"$f":"'1. Order'!AW1302","v":0},{"$f":"IF('1. Order'!AE1302=\"\",\"\",'1. Order'!AE1302)","v":""}]
[{"$f":"IF('1. Order'!B1303=\"\",\"\",'1. Order'!B1303)","v":""},{"$f":"IF('1. Order'!I1303=\"\",\"\",'1. Order'!I1303)","v":""},{"$f":"IF('1. Order'!J1303=\"\",\"\",'1. Order'!J1303)","v":""},{"$f":"IF('1. Order'!K1303=\"\",\"\",'1. Order'!K1303)","v":""},{"$f":"IF('1. Order'!M1303=\"\",\"\",'1. Order'!M1303)","v":""},null,null,{"$f":"'1. Order'!AW1303","v":0},{"$f":"IF('1. Order'!AE1303=\"\",\"\",'1. Order'!AE1303)","v":""}]
[{"$f":"IF('1. Order'!B1304=\"\",\"\",'1. Order'!B1304)","v":""},{"$f":"IF('1. Order'!I1304=\"\",\"\",'1. Order'!I1304)","v":""},{"$f":"IF('1. Order'!J1304=\"\",\"\",'1. Order'!J1304)","v":""},{"$f":"IF('1. Order'!K1304=\"\",\"\",'1. Order'!K1304)","v":""},{"$f":"IF('1. Order'!M1304=\"\",\"\",'1. Order'!M1304)","v":""},null,null,{"$f":"'1. Order'!AW1304","v":0},{"$f":"IF('1. Order'!AE1304=\"\",\"\",'1. Order'!AE1304)","v":""}]
[{"$f":"IF('1. Order'!B1305=\"\",\"\",'1. Order'!B1305)","v":""},{"$f":"IF('1. Order'!I1305=\"\",\"\",'1. Order'!I1305)","v":""},{"$f":"IF('1. Order'!J1305=\"\",\"\",'1. Order'!J1305)","v":""},{"$f":"IF('1. Order'!K1305=\"\",\"\",'1. Order'!K1305)","v":""},{"$f":"IF('1. Order'!M1305=\"\",\"\",'1. Order'!M1305)","v":""},null,null,{"$f":"'1. Order'!AW1305","v":0},{"$f":"IF('1. Order'!AE1305=\"\",\"\",'1. Order'!AE1305)","v":""}]
[{"$f":"IF('1. Order'!B1306=\"\",\"\",'1. Order'!B1306)","v":""},{"$f":"IF('1. Order'!I1306=\"\",\"\",'1. Order'!I1306)","v":""},{"$f":"IF('1. Order'!J1306=\"\",\"\",'1. Order'!J1306)","v":""},{"$f":"IF('1. Order'!K1306=\"\",\"\",'1. Order'!K1306)","v":""},{"$f":"IF('1. Order'!M1306=\"\",\"\",'1. Order'!M1306)","v":""},null,null,{"$f":"'1. Order'!AW1306","v":0},{"$f":"IF('1. Order'!AE1306=\"\",\"\",'1. Order'!AE1306)","v":""}]
[{"$f":"IF('1. Order'!B1307=\"\",\"\",'1. Order'!B1307)","v":""},{"$f":"IF('1. Order'!I1307=\"\",\"\",'1. Order'!I1307)","v":""},{"$f":"IF('1. Order'!J1307=\"\",\"\",'1. Order'!J1307)","v":""},{"$f":"IF('1. Order'!K1307=\"\",\"\",'1. Order'!K1307)","v":""},{"$f":"IF('1. Order'!M1307=\"\",\"\",'1. Order'!M1307)","v":""},null,null,{"$f":"'1. Order'!AW1307","v":0},{"$f":"IF('1. Order'!AE1307=\"\",\"\",'1. Order'!AE1307)","v":""}]
[{"$f":"IF('1. Order'!B1308=\"\",\"\",'1. Order'!B1308)","v":""},{"$f":"IF('1. Order'!I1308=\"\",\"\",'1. Order'!I1308)","v":""},{"$f":"IF('1. Order'!J1308=\"\",\"\",'1. Order'!J1308)","v":""},{"$f":"IF('1. Order'!K1308=\"\",\"\",'1. Order'!K1308)","v":""},{"$f":"IF('1. Order'!M1308=\"\",\"\",'1. Order'!M1308)","v":""},null,null,{"$f":"'1. Order'!AW1308","v":0},{"$f":"IF('1. Order'!AE1308=\"\",\"\",'1. Order'!AE1308)","v":""}]
[{"$f":"IF('1. Order'!B1309=\"\",\"\",'1. Order'!B1309)","v":""},{"$f":"IF('1. Order'!I1309=\"\",\"\",'1. Order'!I1309)","v":""},{"$f":"IF('1. Order'!J1309=\"\",\"\",'1. Order'!J1309)","v":""},{"$f":"IF('1. Order'!K1309=\"\",\"\",'1. Order'!K1309)","v":""},{"$f":"IF('1. Order'!M1309=\"\",\"\",'1. Order'!M1309)","v":""},null,null,{"$f":"'1. Order'!AW1309","v":0},{"$f":"IF('1. Order'!AE1309=\"\",\"\",'1. Order'!AE1309)","v":""}]
[{"$f":"IF('1. Order'!B1310=\"\",\"\",'1. Order'!B1310)","v":""},{"$f":"IF('1. Order'!I1310=\"\",\"\",'1. Order'!I1310)","v":""},{"$f":"IF('1. Order'!J1310=\"\",\"\",'1. Order'!J1310)","v":""},{"$f":"IF('1. Order'!K1310=\"\",\"\",'1. Order'!K1310)","v":""},{"$f":"IF('1. Order'!M1310=\"\",\"\",'1. Order'!M1310)","v":""},null,null,{"$f":"'1. Order'!AW1310","v":0},{"$f":"IF('1. Order'!AE1310=\"\",\"\",'1. Order'!AE1310)","v":""}]
[{"$f":"IF('1. Order'!B1311=\"\",\"\",'1. Order'!B1311)","v":""},{"$f":"IF('1. Order'!I1311=\"\",\"\",'1. Order'!I1311)","v":""},{"$f":"IF('1. Order'!J1311=\"\",\"\",'1. Order'!J1311)","v":""},{"$f":"IF('1. Order'!K1311=\"\",\"\",'1. Order'!K1311)","v":""},{"$f":"IF('1. Order'!M1311=\"\",\"\",'1. Order'!M1311)","v":""},null,null,{"$f":"'1. Order'!AW1311","v":0},{"$f":"IF('1. Order'!AE1311=\"\",\"\",'1. Order'!AE1311)","v":""}]
[{"$f":"IF('1. Order'!B1312=\"\",\"\",'1. Order'!B1312)","v":""},{"$f":"IF('1. Order'!I1312=\"\",\"\",'1. Order'!I1312)","v":""},{"$f":"IF('1. Order'!J1312=\"\",\"\",'1. Order'!J1312)","v":""},{"$f":"IF('1. Order'!K1312=\"\",\"\",'1. Order'!K1312)","v":""},{"$f":"IF('1. Order'!M1312=\"\",\"\",'1. Order'!M1312)","v":""},null,null,{"$f":"'1. Order'!AW1312","v":0},{"$f":"IF('1. Order'!AE1312=\"\",\"\",'1. Order'!AE1312)","v":""}]
[{"$f":"IF('1. Order'!B1313=\"\",\"\",'1. Order'!B1313)","v":""},{"$f":"IF('1. Order'!I1313=\"\",\"\",'1. Order'!I1313)","v":""},{"$f":"IF('1. Order'!J1313=\"\",\"\",'1. Order'!J1313)","v":""},{"$f":"IF('1. Order'!K1313=\"\",\"\",'1. Order'!K1313)","v":""},{"$f":"IF('1. Order'!M1313=\"\",\"\",'1. Order'!M1313)","v":""},null,null,{"$f":"'1. Order'!AW1313","v":0},{"$f":"IF('1. Order'!AE1313=\"\",\"\",'1. Order'!AE1313)","v":""}]
[{"$f":"IF('1. Order'!B1314=\"\",\"\",'1. Order'!B1314)","v":""},{"$f":"IF('1. Order'!I1314=\"\",\"\",'1. Order'!I1314)","v":""},{"$f":"IF('1. Order'!J1314=\"\",\"\",'1. Order'!J1314)","v":""},{"$f":"IF('1. Order'!K1314=\"\",\"\",'1. Order'!K1314)","v":""},{"$f":"IF('1. Order'!M1314=\"\",\"\",'1. Order'!M1314)","v":""},null,null,{"$f":"'1. Order'!AW1314","v":0},{"$f":"IF('1. Order'!AE1314=\"\",\"\",'1. Order'!AE1314)","v":""}]
[{"$f":"IF('1. Order'!B1315=\"\",\"\",'1. Order'!B1315)","v":""},{"$f":"IF('1. Order'!I1315=\"\",\"\",'1. Order'!I1315)","v":""},{"$f":"IF('1. Order'!J1315=\"\",\"\",'1. Order'!J1315)","v":""},{"$f":"IF('1. Order'!K1315=\"\",\"\",'1. Order'!K1315)","v":""},{"$f":"IF('1. Order'!M1315=\"\",\"\",'1. Order'!M1315)","v":""},null,null,{"$f":"'1. Order'!AW1315","v":0},{"$f":"IF('1. Order'!AE1315=\"\",\"\",'1. Order'!AE1315)","v":""}]
[{"$f":"IF('1. Order'!B1316=\"\",\"\",'1. Order'!B1316)","v":""},{"$f":"IF('1. Order'!I1316=\"\",\"\",'1. Order'!I1316)","v":""},{"$f":"IF('1. Order'!J1316=\"\",\"\",'1. Order'!J1316)","v":""},{"$f":"IF('1. Order'!K1316=\"\",\"\",'1. Order'!K1316)","v":""},{"$f":"IF('1. Order'!M1316=\"\",\"\",'1. Order'!M1316)","v":""},null,null,{"$f":"'1. Order'!AW1316","v":0},{"$f":"IF('1. Order'!AE1316=\"\",\"\",'1. Order'!AE1316)","v":""}]
[{"$f":"IF('1. Order'!B1317=\"\",\"\",'1. Order'!B1317)","v":""},{"$f":"IF('1. Order'!I1317=\"\",\"\",'1. Order'!I1317)","v":""},{"$f":"IF('1. Order'!J1317=\"\",\"\",'1. Order'!J1317)","v":""},{"$f":"IF('1. Order'!K1317=\"\",\"\",'1. Order'!K1317)","v":""},{"$f":"IF('1. Order'!M1317=\"\",\"\",'1. Order'!M1317)","v":""},null,null,{"$f":"'1. Order'!AW1317","v":0},{"$f":"IF('1. Order'!AE1317=\"\",\"\",'1. Order'!AE1317)","v":""}]
[{"$f":"IF('1. Order'!B1318=\"\",\"\",'1. Order'!B1318)","v":""},{"$f":"IF('1. Order'!I1318=\"\",\"\",'1. Order'!I1318)","v":""},{"$f":"IF('1. Order'!J1318=\"\",\"\",'1. Order'!J1318)","v":""},{"$f":"IF('1. Order'!K1318=\"\",\"\",'1. Order'!K1318)","v":""},{"$f":"IF('1. Order'!M1318=\"\",\"\",'1. Order'!M1318)","v":""},null,null,{"$f":"'1. Order'!AW1318","v":0},{"$f":"IF('1. Order'!AE1318=\"\",\"\",'1. Order'!AE1318)","v":""}]
[{"$f":"IF('1. Order'!B1319=\"\",\"\",'1. Order'!B1319)","v":""},{"$f":"IF('1. Order'!I1319=\"\",\"\",'1. Order'!I1319)","v":""},{"$f":"IF('1. Order'!J1319=\"\",\"\",'1. Order'!J1319)","v":""},{"$f":"IF('1. Order'!K1319=\"\",\"\",'1. Order'!K1319)","v":""},{"$f":"IF('1. Order'!M1319=\"\",\"\",'1. Order'!M1319)","v":""},null,null,{"$f":"'1. Order'!AW1319","v":0},{"$f":"IF('1. Order'!AE1319=\"\",\"\",'1. Order'!AE1319)","v":""}]
[{"$f":"IF('1. Order'!B1320=\"\",\"\",'1. Order'!B1320)","v":""},{"$f":"IF('1. Order'!I1320=\"\",\"\",'1. Order'!I1320)","v":""},{"$f":"IF('1. Order'!J1320=\"\",\"\",'1. Order'!J1320)","v":""},{"$f":"IF('1. Order'!K1320=\"\",\"\",'1. Order'!K1320)","v":""},{"$f":"IF('1. Order'!M1320=\"\",\"\",'1. Order'!M1320)","v":""},null,null,{"$f":"'1. Order'!AW1320","v":0},{"$f":"IF('1. Order'!AE1320=\"\",\"\",'1. Order'!AE1320)","v":""}]
[{"$f":"IF('1. Order'!B1321=\"\",\"\",'1. Order'!B1321)","v":""},{"$f":"IF('1. Order'!I1321=\"\",\"\",'1. Order'!I1321)","v":""},{"$f":"IF('1. Order'!J1321=\"\",\"\",'1. Order'!J1321)","v":""},{"$f":"IF('1. Order'!K1321=\"\",\"\",'1. Order'!K1321)","v":""},{"$f":"IF('1. Order'!M1321=\"\",\"\",'1. Order'!M1321)","v":""},null,null,{"$f":"'1. Order'!AW1321","v":0},{"$f":"IF('1. Order'!AE1321=\"\",\"\",'1. Order'!AE1321)","v":""}]
[{"$f":"IF('1. Order'!B1322=\"\",\"\",'1. Order'!B1322)","v":""},{"$f":"IF('1. Order'!I1322=\"\",\"\",'1. Order'!I1322)","v":""},{"$f":"IF('1. Order'!J1322=\"\",\"\",'1. Order'!J1322)","v":""},{"$f":"IF('1. Order'!K1322=\"\",\"\",'1. Order'!K1322)","v":""},{"$f":"IF('1. Order'!M1322=\"\",\"\",'1. Order'!M1322)","v":""},null,null,{"$f":"'1. Order'!AW1322","v":0},{"$f":"IF('1. Order'!AE1322=\"\",\"\",'1. Order'!AE1322)","v":""}]
[{"$f":"IF('1. Order'!B1323=\"\",\"\",'1. Order'!B1323)","v":""},{"$f":"IF('1. Order'!I1323=\"\",\"\",'1. Order'!I1323)","v":""},{"$f":"IF('1. Order'!J1323=\"\",\"\",'1. Order'!J1323)","v":""},{"$f":"IF('1. Order'!K1323=\"\",\"\",'1. Order'!K1323)","v":""},{"$f":"IF('1. Order'!M1323=\"\",\"\",'1. Order'!M1323)","v":""},null,null,{"$f":"'1. Order'!AW1323","v":0},{"$f":"IF('1. Order'!AE1323=\"\",\"\",'1. Order'!AE1323)","v":""}]
[{"$f":"IF('1. Order'!B1324=\"\",\"\",'1. Order'!B1324)","v":""},{"$f":"IF('1. Order'!I1324=\"\",\"\",'1. Order'!I1324)","v":""},{"$f":"IF('1. Order'!J1324=\"\",\"\",'1. Order'!J1324)","v":""},{"$f":"IF('1. Order'!K1324=\"\",\"\",'1. Order'!K1324)","v":""},{"$f":"IF('1. Order'!M1324=\"\",\"\",'1. Order'!M1324)","v":""},null,null,{"$f":"'1. Order'!AW1324","v":0},{"$f":"IF('1. Order'!AE1324=\"\",\"\",'1. Order'!AE1324)","v":""}]
[{"$f":"IF('1. Order'!B1325=\"\",\"\",'1. Order'!B1325)","v":""},{"$f":"IF('1. Order'!I1325=\"\",\"\",'1. Order'!I1325)","v":""},{"$f":"IF('1. Order'!J1325=\"\",\"\",'1. Order'!J1325)","v":""},{"$f":"IF('1. Order'!K1325=\"\",\"\",'1. Order'!K1325)","v":""},{"$f":"IF('1. Order'!M1325=\"\",\"\",'1. Order'!M1325)","v":""},null,null,{"$f":"'1. Order'!AW1325","v":0},{"$f":"IF('1. Order'!AE1325=\"\",\"\",'1. Order'!AE1325)","v":""}]
[{"$f":"IF('1. Order'!B1326=\"\",\"\",'1. Order'!B1326)","v":""},{"$f":"IF('1. Order'!I1326=\"\",\"\",'1. Order'!I1326)","v":""},{"$f":"IF('1. Order'!J1326=\"\",\"\",'1. Order'!J1326)","v":""},{"$f":"IF('1. Order'!K1326=\"\",\"\",'1. Order'!K1326)","v":""},{"$f":"IF('1. Order'!M1326=\"\",\"\",'1. Order'!M1326)","v":""},null,null,{"$f":"'1. Order'!AW1326","v":0},{"$f":"IF('1. Order'!AE1326=\"\",\"\",'1. Order'!AE1326)","v":""}]
[{"$f":"IF('1. Order'!B1327=\"\",\"\",'1. Order'!B1327)","v":""},{"$f":"IF('1. Order'!I1327=\"\",\"\",'1. Order'!I1327)","v":""},{"$f":"IF('1. Order'!J1327=\"\",\"\",'1. Order'!J1327)","v":""},{"$f":"IF('1. Order'!K1327=\"\",\"\",'1. Order'!K1327)","v":""},{"$f":"IF('1. Order'!M1327=\"\",\"\",'1. Order'!M1327)","v":""},null,null,{"$f":"'1. Order'!AW1327","v":0},{"$f":"IF('1. Order'!AE1327=\"\",\"\",'1. Order'!AE1327)","v":""}]
[{"$f":"IF('1. Order'!B1328=\"\",\"\",'1. Order'!B1328)","v":""},{"$f":"IF('1. Order'!I1328=\"\",\"\",'1. Order'!I1328)","v":""},{"$f":"IF('1. Order'!J1328=\"\",\"\",'1. Order'!J1328)","v":""},{"$f":"IF('1. Order'!K1328=\"\",\"\",'1. Order'!K1328)","v":""},{"$f":"IF('1. Order'!M1328=\"\",\"\",'1. Order'!M1328)","v":""},null,null,{"$f":"'1. Order'!AW1328","v":0},{"$f":"IF('1. Order'!AE1328=\"\",\"\",'1. Order'!AE1328)","v":""}]
[{"$f":"IF('1. Order'!B1329=\"\",\"\",'1. Order'!B1329)","v":""},{"$f":"IF('1. Order'!I1329=\"\",\"\",'1. Order'!I1329)","v":""},{"$f":"IF('1. Order'!J1329=\"\",\"\",'1. Order'!J1329)","v":""},{"$f":"IF('1. Order'!K1329=\"\",\"\",'1. Order'!K1329)","v":""},{"$f":"IF('1. Order'!M1329=\"\",\"\",'1. Order'!M1329)","v":""},null,null,{"$f":"'1. Order'!AW1329","v":0},{"$f":"IF('1. Order'!AE1329=\"\",\"\",'1. Order'!AE1329)","v":""}]
[{"$f":"IF('1. Order'!B1330=\"\",\"\",'1. Order'!B1330)","v":""},{"$f":"IF('1. Order'!I1330=\"\",\"\",'1. Order'!I1330)","v":""},{"$f":"IF('1. Order'!J1330=\"\",\"\",'1. Order'!J1330)","v":""},{"$f":"IF('1. Order'!K1330=\"\",\"\",'1. Order'!K1330)","v":""},{"$f":"IF('1. Order'!M1330=\"\",\"\",'1. Order'!M1330)","v":""},null,null,{"$f":"'1. Order'!AW1330","v":0},{"$f":"IF('1. Order'!AE1330=\"\",\"\",'1. Order'!AE1330)","v":""}]
[{"$f":"IF('1. Order'!B1331=\"\",\"\",'1. Order'!B1331)","v":""},{"$f":"IF('1. Order'!I1331=\"\",\"\",'1. Order'!I1331)","v":""},{"$f":"IF('1. Order'!J1331=\"\",\"\",'1. Order'!J1331)","v":""},{"$f":"IF('1. Order'!K1331=\"\",\"\",'1. Order'!K1331)","v":""},{"$f":"IF('1. Order'!M1331=\"\",\"\",'1. Order'!M1331)","v":""},null,null,{"$f":"'1. Order'!AW1331","v":0},{"$f":"IF('1. Order'!AE1331=\"\",\"\",'1. Order'!AE1331)","v":""}]
[{"$f":"IF('1. Order'!B1332=\"\",\"\",'1. Order'!B1332)","v":""},{"$f":"IF('1. Order'!I1332=\"\",\"\",'1. Order'!I1332)","v":""},{"$f":"IF('1. Order'!J1332=\"\",\"\",'1. Order'!J1332)","v":""},{"$f":"IF('1. Order'!K1332=\"\",\"\",'1. Order'!K1332)","v":""},{"$f":"IF('1. Order'!M1332=\"\",\"\",'1. Order'!M1332)","v":""},null,null,{"$f":"'1. Order'!AW1332","v":0},{"$f":"IF('1. Order'!AE1332=\"\",\"\",'1. Order'!AE1332)","v":""}]
[{"$f":"IF('1. Order'!B1333=\"\",\"\",'1. Order'!B1333)","v":""},{"$f":"IF('1. Order'!I1333=\"\",\"\",'1. Order'!I1333)","v":""},{"$f":"IF('1. Order'!J1333=\"\",\"\",'1. Order'!J1333)","v":""},{"$f":"IF('1. Order'!K1333=\"\",\"\",'1. Order'!K1333)","v":""},{"$f":"IF('1. Order'!M1333=\"\",\"\",'1. Order'!M1333)","v":""},null,null,{"$f":"'1. Order'!AW1333","v":0},{"$f":"IF('1. Order'!AE1333=\"\",\"\",'1. Order'!AE1333)","v":""}]
[{"$f":"IF('1. Order'!B1334=\"\",\"\",'1. Order'!B1334)","v":""},{"$f":"IF('1. Order'!I1334=\"\",\"\",'1. Order'!I1334)","v":""},{"$f":"IF('1. Order'!J1334=\"\",\"\",'1. Order'!J1334)","v":""},{"$f":"IF('1. Order'!K1334=\"\",\"\",'1. Order'!K1334)","v":""},{"$f":"IF('1. Order'!M1334=\"\",\"\",'1. Order'!M1334)","v":""},null,null,{"$f":"'1. Order'!AW1334","v":0},{"$f":"IF('1. Order'!AE1334=\"\",\"\",'1. Order'!AE1334)","v":""}]
[{"$f":"IF('1. Order'!B1335=\"\",\"\",'1. Order'!B1335)","v":""},{"$f":"IF('1. Order'!I1335=\"\",\"\",'1. Order'!I1335)","v":""},{"$f":"IF('1. Order'!J1335=\"\",\"\",'1. Order'!J1335)","v":""},{"$f":"IF('1. Order'!K1335=\"\",\"\",'1. Order'!K1335)","v":""},{"$f":"IF('1. Order'!M1335=\"\",\"\",'1. Order'!M1335)","v":""},null,null,{"$f":"'1. Order'!AW1335","v":0},{"$f":"IF('1. Order'!AE1335=\"\",\"\",'1. Order'!AE1335)","v":""}]
[{"$f":"IF('1. Order'!B1336=\"\",\"\",'1. Order'!B1336)","v":""},{"$f":"IF('1. Order'!I1336=\"\",\"\",'1. Order'!I1336)","v":""},{"$f":"IF('1. Order'!J1336=\"\",\"\",'1. Order'!J1336)","v":""},{"$f":"IF('1. Order'!K1336=\"\",\"\",'1. Order'!K1336)","v":""},{"$f":"IF('1. Order'!M1336=\"\",\"\",'1. Order'!M1336)","v":""},null,null,{"$f":"'1. Order'!AW1336","v":0},{"$f":"IF('1. Order'!AE1336=\"\",\"\",'1. Order'!AE1336)","v":""}]
[{"$f":"IF('1. Order'!B1337=\"\",\"\",'1. Order'!B1337)","v":""},{"$f":"IF('1. Order'!I1337=\"\",\"\",'1. Order'!I1337)","v":""},{"$f":"IF('1. Order'!J1337=\"\",\"\",'1. Order'!J1337)","v":""},{"$f":"IF('1. Order'!K1337=\"\",\"\",'1. Order'!K1337)","v":""},{"$f":"IF('1. Order'!M1337=\"\",\"\",'1. Order'!M1337)","v":""},null,null,{"$f":"'1. Order'!AW1337","v":0},{"$f":"IF('1. Order'!AE1337=\"\",\"\",'1. Order'!AE1337)","v":""}]
[{"$f":"IF('1. Order'!B1338=\"\",\"\",'1. Order'!B1338)","v":""},{"$f":"IF('1. Order'!I1338=\"\",\"\",'1. Order'!I1338)","v":""},{"$f":"IF('1. Order'!J1338=\"\",\"\",'1. Order'!J1338)","v":""},{"$f":"IF('1. Order'!K1338=\"\",\"\",'1. Order'!K1338)","v":""},{"$f":"IF('1. Order'!M1338=\"\",\"\",'1. Order'!M1338)","v":""},null,null,{"$f":"'1. Order'!AW1338","v":0},{"$f":"IF('1. Order'!AE1338=\"\",\"\",'1. Order'!AE1338)","v":""}]
[{"$f":"IF('1. Order'!B1339=\"\",\"\",'1. Order'!B1339)","v":""},{"$f":"IF('1. Order'!I1339=\"\",\"\",'1. Order'!I1339)","v":""},{"$f":"IF('1. Order'!J1339=\"\",\"\",'1. Order'!J1339)","v":""},{"$f":"IF('1. Order'!K1339=\"\",\"\",'1. Order'!K1339)","v":""},{"$f":"IF('1. Order'!M1339=\"\",\"\",'1. Order'!M1339)","v":""},null,null,{"$f":"'1. Order'!AW1339","v":0},{"$f":"IF('1. Order'!AE1339=\"\",\"\",'1. Order'!AE1339)","v":""}]
[{"$f":"IF('1. Order'!B1340=\"\",\"\",'1. Order'!B1340)","v":""},{"$f":"IF('1. Order'!I1340=\"\",\"\",'1. Order'!I1340)","v":""},{"$f":"IF('1. Order'!J1340=\"\",\"\",'1. Order'!J1340)","v":""},{"$f":"IF('1. Order'!K1340=\"\",\"\",'1. Order'!K1340)","v":""},{"$f":"IF('1. Order'!M1340=\"\",\"\",'1. Order'!M1340)","v":""},null,null,{"$f":"'1. Order'!AW1340","v":0},{"$f":"IF('1. Order'!AE1340=\"\",\"\",'1. Order'!AE1340)","v":""}]
[{"$f":"IF('1. Order'!B1341=\"\",\"\",'1. Order'!B1341)","v":""},{"$f":"IF('1. Order'!I1341=\"\",\"\",'1. Order'!I1341)","v":""},{"$f":"IF('1. Order'!J1341=\"\",\"\",'1. Order'!J1341)","v":""},{"$f":"IF('1. Order'!K1341=\"\",\"\",'1. Order'!K1341)","v":""},{"$f":"IF('1. Order'!M1341=\"\",\"\",'1. Order'!M1341)","v":""},null,null,{"$f":"'1. Order'!AW1341","v":0},{"$f":"IF('1. Order'!AE1341=\"\",\"\",'1. Order'!AE1341)","v":""}]
[{"$f":"IF('1. Order'!B1342=\"\",\"\",'1. Order'!B1342)","v":""},{"$f":"IF('1. Order'!I1342=\"\",\"\",'1. Order'!I1342)","v":""},{"$f":"IF('1. Order'!J1342=\"\",\"\",'1. Order'!J1342)","v":""},{"$f":"IF('1. Order'!K1342=\"\",\"\",'1. Order'!K1342)","v":""},{"$f":"IF('1. Order'!M1342=\"\",\"\",'1. Order'!M1342)","v":""},null,null,{"$f":"'1. Order'!AW1342","v":0},{"$f":"IF('1. Order'!AE1342=\"\",\"\",'1. Order'!AE1342)","v":""}]
[{"$f":"IF('1. Order'!B1343=\"\",\"\",'1. Order'!B1343)","v":""},{"$f":"IF('1. Order'!I1343=\"\",\"\",'1. Order'!I1343)","v":""},{"$f":"IF('1. Order'!J1343=\"\",\"\",'1. Order'!J1343)","v":""},{"$f":"IF('1. Order'!K1343=\"\",\"\",'1. Order'!K1343)","v":""},{"$f":"IF('1. Order'!M1343=\"\",\"\",'1. Order'!M1343)","v":""},null,null,{"$f":"'1. Order'!AW1343","v":0},{"$f":"IF('1. Order'!AE1343=\"\",\"\",'1. Order'!AE1343)","v":""}]
[{"$f":"IF('1. Order'!B1344=\"\",\"\",'1. Order'!B1344)","v":""},{"$f":"IF('1. Order'!I1344=\"\",\"\",'1. Order'!I1344)","v":""},{"$f":"IF('1. Order'!J1344=\"\",\"\",'1. Order'!J1344)","v":""},{"$f":"IF('1. Order'!K1344=\"\",\"\",'1. Order'!K1344)","v":""},{"$f":"IF('1. Order'!M1344=\"\",\"\",'1. Order'!M1344)","v":""},null,null,{"$f":"'1. Order'!AW1344","v":0},{"$f":"IF('1. Order'!AE1344=\"\",\"\",'1. Order'!AE1344)","v":""}]
[{"$f":"IF('1. Order'!B1345=\"\",\"\",'1. Order'!B1345)","v":""},{"$f":"IF('1. Order'!I1345=\"\",\"\",'1. Order'!I1345)","v":""},{"$f":"IF('1. Order'!J1345=\"\",\"\",'1. Order'!J1345)","v":""},{"$f":"IF('1. Order'!K1345=\"\",\"\",'1. Order'!K1345)","v":""},{"$f":"IF('1. Order'!M1345=\"\",\"\",'1. Order'!M1345)","v":""},null,null,{"$f":"'1. Order'!AW1345","v":0},{"$f":"IF('1. Order'!AE1345=\"\",\"\",'1. Order'!AE1345)","v":""}]
[{"$f":"IF('1. Order'!B1346=\"\",\"\",'1. Order'!B1346)","v":""},{"$f":"IF('1. Order'!I1346=\"\",\"\",'1. Order'!I1346)","v":""},{"$f":"IF('1. Order'!J1346=\"\",\"\",'1. Order'!J1346)","v":""},{"$f":"IF('1. Order'!K1346=\"\",\"\",'1. Order'!K1346)","v":""},{"$f":"IF('1. Order'!M1346=\"\",\"\",'1. Order'!M1346)","v":""},null,null,{"$f":"'1. Order'!AW1346","v":0},{"$f":"IF('1. Order'!AE1346=\"\",\"\",'1. Order'!AE1346)","v":""}]
[{"$f":"IF('1. Order'!B1347=\"\",\"\",'1. Order'!B1347)","v":""},{"$f":"IF('1. Order'!I1347=\"\",\"\",'1. Order'!I1347)","v":""},{"$f":"IF('1. Order'!J1347=\"\",\"\",'1. Order'!J1347)","v":""},{"$f":"IF('1. Order'!K1347=\"\",\"\",'1. Order'!K1347)","v":""},{"$f":"IF('1. Order'!M1347=\"\",\"\",'1. Order'!M1347)","v":""},null,null,{"$f":"'1. Order'!AW1347","v":0},{"$f":"IF('1. Order'!AE1347=\"\",\"\",'1. Order'!AE1347)","v":""}]
[{"$f":"IF('1. Order'!B1348=\"\",\"\",'1. Order'!B1348)","v":""},{"$f":"IF('1. Order'!I1348=\"\",\"\",'1. Order'!I1348)","v":""},{"$f":"IF('1. Order'!J1348=\"\",\"\",'1. Order'!J1348)","v":""},{"$f":"IF('1. Order'!K1348=\"\",\"\",'1. Order'!K1348)","v":""},{"$f":"IF('1. Order'!M1348=\"\",\"\",'1. Order'!M1348)","v":""},null,null,{"$f":"'1. Order'!AW1348","v":0},{"$f":"IF('1. Order'!AE1348=\"\",\"\",'1. Order'!AE1348)","v":""}]
[{"$f":"IF('1. Order'!B1349=\"\",\"\",'1. Order'!B1349)","v":""},{"$f":"IF('1. Order'!I1349=\"\",\"\",'1. Order'!I1349)","v":""},{"$f":"IF('1. Order'!J1349=\"\",\"\",'1. Order'!J1349)","v":""},{"$f":"IF('1. Order'!K1349=\"\",\"\",'1. Order'!K1349)","v":""},{"$f":"IF('1. Order'!M1349=\"\",\"\",'1. Order'!M1349)","v":""},null,null,{"$f":"'1. Order'!AW1349","v":0},{"$f":"IF('1. Order'!AE1349=\"\",\"\",'1. Order'!AE1349)","v":""}]
[{"$f":"IF('1. Order'!B1350=\"\",\"\",'1. Order'!B1350)","v":""},{"$f":"IF('1. Order'!I1350=\"\",\"\",'1. Order'!I1350)","v":""},{"$f":"IF('1. Order'!J1350=\"\",\"\",'1. Order'!J1350)","v":""},{"$f":"IF('1. Order'!K1350=\"\",\"\",'1. Order'!K1350)","v":""},{"$f":"IF('1. Order'!M1350=\"\",\"\",'1. Order'!M1350)","v":""},null,null,{"$f":"'1. Order'!AW1350","v":0},{"$f":"IF('1. Order'!AE1350=\"\",\"\",'1. Order'!AE1350)","v":""}]
[{"$f":"IF('1. Order'!B1351=\"\",\"\",'1. Order'!B1351)","v":""},{"$f":"IF('1. Order'!I1351=\"\",\"\",'1. Order'!I1351)","v":""},{"$f":"IF('1. Order'!J1351=\"\",\"\",'1. Order'!J1351)","v":""},{"$f":"IF('1. Order'!K1351=\"\",\"\",'1. Order'!K1351)","v":""},{"$f":"IF('1. Order'!M1351=\"\",\"\",'1. Order'!M1351)","v":""},null,null,{"$f":"'1. Order'!AW1351","v":0},{"$f":"IF('1. Order'!AE1351=\"\",\"\",'1. Order'!AE1351)","v":""}]
[{"$f":"IF('1. Order'!B1352=\"\",\"\",'1. Order'!B1352)","v":""},{"$f":"IF('1. Order'!I1352=\"\",\"\",'1. Order'!I1352)","v":""},{"$f":"IF('1. Order'!J1352=\"\",\"\",'1. Order'!J1352)","v":""},{"$f":"IF('1. Order'!K1352=\"\",\"\",'1. Order'!K1352)","v":""},{"$f":"IF('1. Order'!M1352=\"\",\"\",'1. Order'!M1352)","v":""},null,null,{"$f":"'1. Order'!AW1352","v":0},{"$f":"IF('1. Order'!AE1352=\"\",\"\",'1. Order'!AE1352)","v":""}]
[{"$f":"IF('1. Order'!B1353=\"\",\"\",'1. Order'!B1353)","v":""},{"$f":"IF('1. Order'!I1353=\"\",\"\",'1. Order'!I1353)","v":""},{"$f":"IF('1. Order'!J1353=\"\",\"\",'1. Order'!J1353)","v":""},{"$f":"IF('1. Order'!K1353=\"\",\"\",'1. Order'!K1353)","v":""},{"$f":"IF('1. Order'!M1353=\"\",\"\",'1. Order'!M1353)","v":""},null,null,{"$f":"'1. Order'!AW1353","v":0},{"$f":"IF('1. Order'!AE1353=\"\",\"\",'1. Order'!AE1353)","v":""}]
[{"$f":"IF('1. Order'!B1354=\"\",\"\",'1. Order'!B1354)","v":""},{"$f":"IF('1. Order'!I1354=\"\",\"\",'1. Order'!I1354)","v":""},{"$f":"IF('1. Order'!J1354=\"\",\"\",'1. Order'!J1354)","v":""},{"$f":"IF('1. Order'!K1354=\"\",\"\",'1. Order'!K1354)","v":""},{"$f":"IF('1. Order'!M1354=\"\",\"\",'1. Order'!M1354)","v":""},null,null,{"$f":"'1. Order'!AW1354","v":0},{"$f":"IF('1. Order'!AE1354=\"\",\"\",'1. Order'!AE1354)","v":""}]
[{"$f":"IF('1. Order'!B1355=\"\",\"\",'1. Order'!B1355)","v":""},{"$f":"IF('1. Order'!I1355=\"\",\"\",'1. Order'!I1355)","v":""},{"$f":"IF('1. Order'!J1355=\"\",\"\",'1. Order'!J1355)","v":""},{"$f":"IF('1. Order'!K1355=\"\",\"\",'1. Order'!K1355)","v":""},{"$f":"IF('1. Order'!M1355=\"\",\"\",'1. Order'!M1355)","v":""},null,null,{"$f":"'1. Order'!AW1355","v":0},{"$f":"IF('1. Order'!AE1355=\"\",\"\",'1. Order'!AE1355)","v":""}]
[{"$f":"IF('1. Order'!B1356=\"\",\"\",'1. Order'!B1356)","v":""},{"$f":"IF('1. Order'!I1356=\"\",\"\",'1. Order'!I1356)","v":""},{"$f":"IF('1. Order'!J1356=\"\",\"\",'1. Order'!J1356)","v":""},{"$f":"IF('1. Order'!K1356=\"\",\"\",'1. Order'!K1356)","v":""},{"$f":"IF('1. Order'!M1356=\"\",\"\",'1. Order'!M1356)","v":""},null,null,{"$f":"'1. Order'!AW1356","v":0},{"$f":"IF('1. Order'!AE1356=\"\",\"\",'1. Order'!AE1356)","v":""}]
[{"$f":"IF('1. Order'!B1357=\"\",\"\",'1. Order'!B1357)","v":""},{"$f":"IF('1. Order'!I1357=\"\",\"\",'1. Order'!I1357)","v":""},{"$f":"IF('1. Order'!J1357=\"\",\"\",'1. Order'!J1357)","v":""},{"$f":"IF('1. Order'!K1357=\"\",\"\",'1. Order'!K1357)","v":""},{"$f":"IF('1. Order'!M1357=\"\",\"\",'1. Order'!M1357)","v":""},null,null,{"$f":"'1. Order'!AW1357","v":0},{"$f":"IF('1. Order'!AE1357=\"\",\"\",'1. Order'!AE1357)","v":""}]
[{"$f":"IF('1. Order'!B1358=\"\",\"\",'1. Order'!B1358)","v":""},{"$f":"IF('1. Order'!I1358=\"\",\"\",'1. Order'!I1358)","v":""},{"$f":"IF('1. Order'!J1358=\"\",\"\",'1. Order'!J1358)","v":""},{"$f":"IF('1. Order'!K1358=\"\",\"\",'1. Order'!K1358)","v":""},{"$f":"IF('1. Order'!M1358=\"\",\"\",'1. Order'!M1358)","v":""},null,null,{"$f":"'1. Order'!AW1358","v":0},{"$f":"IF('1. Order'!AE1358=\"\",\"\",'1. Order'!AE1358)","v":""}]
[{"$f":"IF('1. Order'!B1359=\"\",\"\",'1. Order'!B1359)","v":""},{"$f":"IF('1. Order'!I1359=\"\",\"\",'1. Order'!I1359)","v":""},{"$f":"IF('1. Order'!J1359=\"\",\"\",'1. Order'!J1359)","v":""},{"$f":"IF('1. Order'!K1359=\"\",\"\",'1. Order'!K1359)","v":""},{"$f":"IF('1. Order'!M1359=\"\",\"\",'1. Order'!M1359)","v":""},null,null,{"$f":"'1. Order'!AW1359","v":0},{"$f":"IF('1. Order'!AE1359=\"\",\"\",'1. Order'!AE1359)","v":""}]
[{"$f":"IF('1. Order'!B1360=\"\",\"\",'1. Order'!B1360)","v":""},{"$f":"IF('1. Order'!I1360=\"\",\"\",'1. Order'!I1360)","v":""},{"$f":"IF('1. Order'!J1360=\"\",\"\",'1. Order'!J1360)","v":""},{"$f":"IF('1. Order'!K1360=\"\",\"\",'1. Order'!K1360)","v":""},{"$f":"IF('1. Order'!M1360=\"\",\"\",'1. Order'!M1360)","v":""},null,null,{"$f":"'1. Order'!AW1360","v":0},{"$f":"IF('1. Order'!AE1360=\"\",\"\",'1. Order'!AE1360)","v":""}]
[{"$f":"IF('1. Order'!B1361=\"\",\"\",'1. Order'!B1361)","v":""},{"$f":"IF('1. Order'!I1361=\"\",\"\",'1. Order'!I1361)","v":""},{"$f":"IF('1. Order'!J1361=\"\",\"\",'1. Order'!J1361)","v":""},{"$f":"IF('1. Order'!K1361=\"\",\"\",'1. Order'!K1361)","v":""},{"$f":"IF('1. Order'!M1361=\"\",\"\",'1. Order'!M1361)","v":""},null,null,{"$f":"'1. Order'!AW1361","v":0},{"$f":"IF('1. Order'!AE1361=\"\",\"\",'1. Order'!AE1361)","v":""}]
[{"$f":"IF('1. Order'!B1362=\"\",\"\",'1. Order'!B1362)","v":""},{"$f":"IF('1. Order'!I1362=\"\",\"\",'1. Order'!I1362)","v":""},{"$f":"IF('1. Order'!J1362=\"\",\"\",'1. Order'!J1362)","v":""},{"$f":"IF('1. Order'!K1362=\"\",\"\",'1. Order'!K1362)","v":""},{"$f":"IF('1. Order'!M1362=\"\",\"\",'1. Order'!M1362)","v":""},null,null,{"$f":"'1. Order'!AW1362","v":0},{"$f":"IF('1. Order'!AE1362=\"\",\"\",'1. Order'!AE1362)","v":""}]
[{"$f":"IF('1. Order'!B1363=\"\",\"\",'1. Order'!B1363)","v":""},{"$f":"IF('1. Order'!I1363=\"\",\"\",'1. Order'!I1363)","v":""},{"$f":"IF('1. Order'!J1363=\"\",\"\",'1. Order'!J1363)","v":""},{"$f":"IF('1. Order'!K1363=\"\",\"\",'1. Order'!K1363)","v":""},{"$f":"IF('1. Order'!M1363=\"\",\"\",'1. Order'!M1363)","v":""},null,null,{"$f":"'1. Order'!AW1363","v":0},{"$f":"IF('1. Order'!AE1363=\"\",\"\",'1. Order'!AE1363)","v":""}]
[{"$f":"IF('1. Order'!B1364=\"\",\"\",'1. Order'!B1364)","v":""},{"$f":"IF('1. Order'!I1364=\"\",\"\",'1. Order'!I1364)","v":""},{"$f":"IF('1. Order'!J1364=\"\",\"\",'1. Order'!J1364)","v":""},{"$f":"IF('1. Order'!K1364=\"\",\"\",'1. Order'!K1364)","v":""},{"$f":"IF('1. Order'!M1364=\"\",\"\",'1. Order'!M1364)","v":""},null,null,{"$f":"'1. Order'!AW1364","v":0},{"$f":"IF('1. Order'!AE1364=\"\",\"\",'1. Order'!AE1364)","v":""}]
[{"$f":"IF('1. Order'!B1365=\"\",\"\",'1. Order'!B1365)","v":""},{"$f":"IF('1. Order'!I1365=\"\",\"\",'1. Order'!I1365)","v":""},{"$f":"IF('1. Order'!J1365=\"\",\"\",'1. Order'!J1365)","v":""},{"$f":"IF('1. Order'!K1365=\"\",\"\",'1. Order'!K1365)","v":""},{"$f":"IF('1. Order'!M1365=\"\",\"\",'1. Order'!M1365)","v":""},null,null,{"$f":"'1. Order'!AW1365","v":0},{"$f":"IF('1. Order'!AE1365=\"\",\"\",'1. Order'!AE1365)","v":""}]
[{"$f":"IF('1. Order'!B1366=\"\",\"\",'1. Order'!B1366)","v":""},{"$f":"IF('1. Order'!I1366=\"\",\"\",'1. Order'!I1366)","v":""},{"$f":"IF('1. Order'!J1366=\"\",\"\",'1. Order'!J1366)","v":""},{"$f":"IF('1. Order'!K1366=\"\",\"\",'1. Order'!K1366)","v":""},{"$f":"IF('1. Order'!M1366=\"\",\"\",'1. Order'!M1366)","v":""},null,null,{"$f":"'1. Order'!AW1366","v":0},{"$f":"IF('1. Order'!AE1366=\"\",\"\",'1. Order'!AE1366)","v":""}]
[{"$f":"IF('1. Order'!B1367=\"\",\"\",'1. Order'!B1367)","v":""},{"$f":"IF('1. Order'!I1367=\"\",\"\",'1. Order'!I1367)","v":""},{"$f":"IF('1. Order'!J1367=\"\",\"\",'1. Order'!J1367)","v":""},{"$f":"IF('1. Order'!K1367=\"\",\"\",'1. Order'!K1367)","v":""},{"$f":"IF('1. Order'!M1367=\"\",\"\",'1. Order'!M1367)","v":""},null,null,{"$f":"'1. Order'!AW1367","v":0},{"$f":"IF('1. Order'!AE1367=\"\",\"\",'1. Order'!AE1367)","v":""}]
[{"$f":"IF('1. Order'!B1368=\"\",\"\",'1. Order'!B1368)","v":""},{"$f":"IF('1. Order'!I1368=\"\",\"\",'1. Order'!I1368)","v":""},{"$f":"IF('1. Order'!J1368=\"\",\"\",'1. Order'!J1368)","v":""},{"$f":"IF('1. Order'!K1368=\"\",\"\",'1. Order'!K1368)","v":""},{"$f":"IF('1. Order'!M1368=\"\",\"\",'1. Order'!M1368)","v":""},null,null,{"$f":"'1. Order'!AW1368","v":0},{"$f":"IF('1. Order'!AE1368=\"\",\"\",'1. Order'!AE1368)","v":""}]
[{"$f":"IF('1. Order'!B1369=\"\",\"\",'1. Order'!B1369)","v":""},{"$f":"IF('1. Order'!I1369=\"\",\"\",'1. Order'!I1369)","v":""},{"$f":"IF('1. Order'!J1369=\"\",\"\",'1. Order'!J1369)","v":""},{"$f":"IF('1. Order'!K1369=\"\",\"\",'1. Order'!K1369)","v":""},{"$f":"IF('1. Order'!M1369=\"\",\"\",'1. Order'!M1369)","v":""},null,null,{"$f":"'1. Order'!AW1369","v":0},{"$f":"IF('1. Order'!AE1369=\"\",\"\",'1. Order'!AE1369)","v":""}]
[{"$f":"IF('1. Order'!B1370=\"\",\"\",'1. Order'!B1370)","v":""},{"$f":"IF('1. Order'!I1370=\"\",\"\",'1. Order'!I1370)","v":""},{"$f":"IF('1. Order'!J1370=\"\",\"\",'1. Order'!J1370)","v":""},{"$f":"IF('1. Order'!K1370=\"\",\"\",'1. Order'!K1370)","v":""},{"$f":"IF('1. Order'!M1370=\"\",\"\",'1. Order'!M1370)","v":""},null,null,{"$f":"'1. Order'!AW1370","v":0},{"$f":"IF('1. Order'!AE1370=\"\",\"\",'1. Order'!AE1370)","v":""}]
[{"$f":"IF('1. Order'!B1371=\"\",\"\",'1. Order'!B1371)","v":""},{"$f":"IF('1. Order'!I1371=\"\",\"\",'1. Order'!I1371)","v":""},{"$f":"IF('1. Order'!J1371=\"\",\"\",'1. Order'!J1371)","v":""},{"$f":"IF('1. Order'!K1371=\"\",\"\",'1. Order'!K1371)","v":""},{"$f":"IF('1. Order'!M1371=\"\",\"\",'1. Order'!M1371)","v":""},null,null,{"$f":"'1. Order'!AW1371","v":0},{"$f":"IF('1. Order'!AE1371=\"\",\"\",'1. Order'!AE1371)","v":""}]
[{"$f":"IF('1. Order'!B1372=\"\",\"\",'1. Order'!B1372)","v":""},{"$f":"IF('1. Order'!I1372=\"\",\"\",'1. Order'!I1372)","v":""},{"$f":"IF('1. Order'!J1372=\"\",\"\",'1. Order'!J1372)","v":""},{"$f":"IF('1. Order'!K1372=\"\",\"\",'1. Order'!K1372)","v":""},{"$f":"IF('1. Order'!M1372=\"\",\"\",'1. Order'!M1372)","v":""},null,null,{"$f":"'1. Order'!AW1372","v":0},{"$f":"IF('1. Order'!AE1372=\"\",\"\",'1. Order'!AE1372)","v":""}]
[{"$f":"IF('1. Order'!B1373=\"\",\"\",'1. Order'!B1373)","v":""},{"$f":"IF('1. Order'!I1373=\"\",\"\",'1. Order'!I1373)","v":""},{"$f":"IF('1. Order'!J1373=\"\",\"\",'1. Order'!J1373)","v":""},{"$f":"IF('1. Order'!K1373=\"\",\"\",'1. Order'!K1373)","v":""},{"$f":"IF('1. Order'!M1373=\"\",\"\",'1. Order'!M1373)","v":""},null,null,{"$f":"'1. Order'!AW1373","v":0},{"$f":"IF('1. Order'!AE1373=\"\",\"\",'1. Order'!AE1373)","v":""}]
[{"$f":"IF('1. Order'!B1374=\"\",\"\",'1. Order'!B1374)","v":""},{"$f":"IF('1. Order'!I1374=\"\",\"\",'1. Order'!I1374)","v":""},{"$f":"IF('1. Order'!J1374=\"\",\"\",'1. Order'!J1374)","v":""},{"$f":"IF('1. Order'!K1374=\"\",\"\",'1. Order'!K1374)","v":""},{"$f":"IF('1. Order'!M1374=\"\",\"\",'1. Order'!M1374)","v":""},null,null,{"$f":"'1. Order'!AW1374","v":0},{"$f":"IF('1. Order'!AE1374=\"\",\"\",'1. Order'!AE1374)","v":""}]
[{"$f":"IF('1. Order'!B1375=\"\",\"\",'1. Order'!B1375)","v":""},{"$f":"IF('1. Order'!I1375=\"\",\"\",'1. Order'!I1375)","v":""},{"$f":"IF('1. Order'!J1375=\"\",\"\",'1. Order'!J1375)","v":""},{"$f":"IF('1. Order'!K1375=\"\",\"\",'1. Order'!K1375)","v":""},{"$f":"IF('1. Order'!M1375=\"\",\"\",'1. Order'!M1375)","v":""},null,null,{"$f":"'1. Order'!AW1375","v":0},{"$f":"IF('1. Order'!AE1375=\"\",\"\",'1. Order'!AE1375)","v":""}]
[{"$f":"IF('1. Order'!B1376=\"\",\"\",'1. Order'!B1376)","v":""},{"$f":"IF('1. Order'!I1376=\"\",\"\",'1. Order'!I1376)","v":""},{"$f":"IF('1. Order'!J1376=\"\",\"\",'1. Order'!J1376)","v":""},{"$f":"IF('1. Order'!K1376=\"\",\"\",'1. Order'!K1376)","v":""},{"$f":"IF('1. Order'!M1376=\"\",\"\",'1. Order'!M1376)","v":""},null,null,{"$f":"'1. Order'!AW1376","v":0},{"$f":"IF('1. Order'!AE1376=\"\",\"\",'1. Order'!AE1376)","v":""}]
[{"$f":"IF('1. Order'!B1377=\"\",\"\",'1. Order'!B1377)","v":""},{"$f":"IF('1. Order'!I1377=\"\",\"\",'1. Order'!I1377)","v":""},{"$f":"IF('1. Order'!J1377=\"\",\"\",'1. Order'!J1377)","v":""},{"$f":"IF('1. Order'!K1377=\"\",\"\",'1. Order'!K1377)","v":""},{"$f":"IF('1. Order'!M1377=\"\",\"\",'1. Order'!M1377)","v":""},null,null,{"$f":"'1. Order'!AW1377","v":0},{"$f":"IF('1. Order'!AE1377=\"\",\"\",'1. Order'!AE1377)","v":""}]
[{"$f":"IF('1. Order'!B1378=\"\",\"\",'1. Order'!B1378)","v":""},{"$f":"IF('1. Order'!I1378=\"\",\"\",'1. Order'!I1378)","v":""},{"$f":"IF('1. Order'!J1378=\"\",\"\",'1. Order'!J1378)","v":""},{"$f":"IF('1. Order'!K1378=\"\",\"\",'1. Order'!K1378)","v":""},{"$f":"IF('1. Order'!M1378=\"\",\"\",'1. Order'!M1378)","v":""},null,null,{"$f":"'1. Order'!AW1378","v":0},{"$f":"IF('1. Order'!AE1378=\"\",\"\",'1. Order'!AE1378)","v":""}]
[{"$f":"IF('1. Order'!B1379=\"\",\"\",'1. Order'!B1379)","v":""},{"$f":"IF('1. Order'!I1379=\"\",\"\",'1. Order'!I1379)","v":""},{"$f":"IF('1. Order'!J1379=\"\",\"\",'1. Order'!J1379)","v":""},{"$f":"IF('1. Order'!K1379=\"\",\"\",'1. Order'!K1379)","v":""},{"$f":"IF('1. Order'!M1379=\"\",\"\",'1. Order'!M1379)","v":""},null,null,{"$f":"'1. Order'!AW1379","v":0},{"$f":"IF('1. Order'!AE1379=\"\",\"\",'1. Order'!AE1379)","v":""}]
[{"$f":"IF('1. Order'!B1380=\"\",\"\",'1. Order'!B1380)","v":""},{"$f":"IF('1. Order'!I1380=\"\",\"\",'1. Order'!I1380)","v":""},{"$f":"IF('1. Order'!J1380=\"\",\"\",'1. Order'!J1380)","v":""},{"$f":"IF('1. Order'!K1380=\"\",\"\",'1. Order'!K1380)","v":""},{"$f":"IF('1. Order'!M1380=\"\",\"\",'1. Order'!M1380)","v":""},null,null,{"$f":"'1. Order'!AW1380","v":0},{"$f":"IF('1. Order'!AE1380=\"\",\"\",'1. Order'!AE1380)","v":""}]
[{"$f":"IF('1. Order'!B1381=\"\",\"\",'1. Order'!B1381)","v":""},{"$f":"IF('1. Order'!I1381=\"\",\"\",'1. Order'!I1381)","v":""},{"$f":"IF('1. Order'!J1381=\"\",\"\",'1. Order'!J1381)","v":""},{"$f":"IF('1. Order'!K1381=\"\",\"\",'1. Order'!K1381)","v":""},{"$f":"IF('1. Order'!M1381=\"\",\"\",'1. Order'!M1381)","v":""},null,null,{"$f":"'1. Order'!AW1381","v":0},{"$f":"IF('1. Order'!AE1381=\"\",\"\",'1. Order'!AE1381)","v":""}]
[{"$f":"IF('1. Order'!B1382=\"\",\"\",'1. Order'!B1382)","v":""},{"$f":"IF('1. Order'!I1382=\"\",\"\",'1. Order'!I1382)","v":""},{"$f":"IF('1. Order'!J1382=\"\",\"\",'1. Order'!J1382)","v":""},{"$f":"IF('1. Order'!K1382=\"\",\"\",'1. Order'!K1382)","v":""},{"$f":"IF('1. Order'!M1382=\"\",\"\",'1. Order'!M1382)","v":""},null,null,{"$f":"'1. Order'!AW1382","v":0},{"$f":"IF('1. Order'!AE1382=\"\",\"\",'1. Order'!AE1382)","v":""}]
[{"$f":"IF('1. Order'!B1383=\"\",\"\",'1. Order'!B1383)","v":""},{"$f":"IF('1. Order'!I1383=\"\",\"\",'1. Order'!I1383)","v":""},{"$f":"IF('1. Order'!J1383=\"\",\"\",'1. Order'!J1383)","v":""},{"$f":"IF('1. Order'!K1383=\"\",\"\",'1. Order'!K1383)","v":""},{"$f":"IF('1. Order'!M1383=\"\",\"\",'1. Order'!M1383)","v":""},null,null,{"$f":"'1. Order'!AW1383","v":0},{"$f":"IF('1. Order'!AE1383=\"\",\"\",'1. Order'!AE1383)","v":""}]
[{"$f":"IF('1. Order'!B1384=\"\",\"\",'1. Order'!B1384)","v":""},{"$f":"IF('1. Order'!I1384=\"\",\"\",'1. Order'!I1384)","v":""},{"$f":"IF('1. Order'!J1384=\"\",\"\",'1. Order'!J1384)","v":""},{"$f":"IF('1. Order'!K1384=\"\",\"\",'1. Order'!K1384)","v":""},{"$f":"IF('1. Order'!M1384=\"\",\"\",'1. Order'!M1384)","v":""},null,null,{"$f":"'1. Order'!AW1384","v":0},{"$f":"IF('1. Order'!AE1384=\"\",\"\",'1. Order'!AE1384)","v":""}]
[{"$f":"IF('1. Order'!B1385=\"\",\"\",'1. Order'!B1385)","v":""},{"$f":"IF('1. Order'!I1385=\"\",\"\",'1. Order'!I1385)","v":""},{"$f":"IF('1. Order'!J1385=\"\",\"\",'1. Order'!J1385)","v":""},{"$f":"IF('1. Order'!K1385=\"\",\"\",'1. Order'!K1385)","v":""},{"$f":"IF('1. Order'!M1385=\"\",\"\",'1. Order'!M1385)","v":""},null,null,{"$f":"'1. Order'!AW1385","v":0},{"$f":"IF('1. Order'!AE1385=\"\",\"\",'1. Order'!AE1385)","v":""}]
[{"$f":"IF('1. Order'!B1386=\"\",\"\",'1. Order'!B1386)","v":""},{"$f":"IF('1. Order'!I1386=\"\",\"\",'1. Order'!I1386)","v":""},{"$f":"IF('1. Order'!J1386=\"\",\"\",'1. Order'!J1386)","v":""},{"$f":"IF('1. Order'!K1386=\"\",\"\",'1. Order'!K1386)","v":""},{"$f":"IF('1. Order'!M1386=\"\",\"\",'1. Order'!M1386)","v":""},null,null,{"$f":"'1. Order'!AW1386","v":0},{"$f":"IF('1. Order'!AE1386=\"\",\"\",'1. Order'!AE1386)","v":""}]
[{"$f":"IF('1. Order'!B1387=\"\",\"\",'1. Order'!B1387)","v":""},{"$f":"IF('1. Order'!I1387=\"\",\"\",'1. Order'!I1387)","v":""},{"$f":"IF('1. Order'!J1387=\"\",\"\",'1. Order'!J1387)","v":""},{"$f":"IF('1. Order'!K1387=\"\",\"\",'1. Order'!K1387)","v":""},{"$f":"IF('1. Order'!M1387=\"\",\"\",'1. Order'!M1387)","v":""},null,null,{"$f":"'1. Order'!AW1387","v":0},{"$f":"IF('1. Order'!AE1387=\"\",\"\",'1. Order'!AE1387)","v":""}]
[{"$f":"IF('1. Order'!B1388=\"\",\"\",'1. Order'!B1388)","v":""},{"$f":"IF('1. Order'!I1388=\"\",\"\",'1. Order'!I1388)","v":""},{"$f":"IF('1. Order'!J1388=\"\",\"\",'1. Order'!J1388)","v":""},{"$f":"IF('1. Order'!K1388=\"\",\"\",'1. Order'!K1388)","v":""},{"$f":"IF('1. Order'!M1388=\"\",\"\",'1. Order'!M1388)","v":""},null,null,{"$f":"'1. Order'!AW1388","v":0},{"$f":"IF('1. Order'!AE1388=\"\",\"\",'1. Order'!AE1388)","v":""}]
[{"$f":"IF('1. Order'!B1389=\"\",\"\",'1. Order'!B1389)","v":""},{"$f":"IF('1. Order'!I1389=\"\",\"\",'1. Order'!I1389)","v":""},{"$f":"IF('1. Order'!J1389=\"\",\"\",'1. Order'!J1389)","v":""},{"$f":"IF('1. Order'!K1389=\"\",\"\",'1. Order'!K1389)","v":""},{"$f":"IF('1. Order'!M1389=\"\",\"\",'1. Order'!M1389)","v":""},null,null,{"$f":"'1. Order'!AW1389","v":0},{"$f":"IF('1. Order'!AE1389=\"\",\"\",'1. Order'!AE1389)","v":""}]
[{"$f":"IF('1. Order'!B1390=\"\",\"\",'1. Order'!B1390)","v":""},{"$f":"IF('1. Order'!I1390=\"\",\"\",'1. Order'!I1390)","v":""},{"$f":"IF('1. Order'!J1390=\"\",\"\",'1. Order'!J1390)","v":""},{"$f":"IF('1. Order'!K1390=\"\",\"\",'1. Order'!K1390)","v":""},{"$f":"IF('1. Order'!M1390=\"\",\"\",'1. Order'!M1390)","v":""},null,null,{"$f":"'1. Order'!AW1390","v":0},{"$f":"IF('1. Order'!AE1390=\"\",\"\",'1. Order'!AE1390)","v":""}]
[{"$f":"IF('1. Order'!B1391=\"\",\"\",'1. Order'!B1391)","v":""},{"$f":"IF('1. Order'!I1391=\"\",\"\",'1. Order'!I1391)","v":""},{"$f":"IF('1. Order'!J1391=\"\",\"\",'1. Order'!J1391)","v":""},{"$f":"IF('1. Order'!K1391=\"\",\"\",'1. Order'!K1391)","v":""},{"$f":"IF('1. Order'!M1391=\"\",\"\",'1. Order'!M1391)","v":""},null,null,{"$f":"'1. Order'!AW1391","v":0},{"$f":"IF('1. Order'!AE1391=\"\",\"\",'1. Order'!AE1391)","v":""}]
[{"$f":"IF('1. Order'!B1392=\"\",\"\",'1. Order'!B1392)","v":""},{"$f":"IF('1. Order'!I1392=\"\",\"\",'1. Order'!I1392)","v":""},{"$f":"IF('1. Order'!J1392=\"\",\"\",'1. Order'!J1392)","v":""},{"$f":"IF('1. Order'!K1392=\"\",\"\",'1. Order'!K1392)","v":""},{"$f":"IF('1. Order'!M1392=\"\",\"\",'1. Order'!M1392)","v":""},null,null,{"$f":"'1. Order'!AW1392","v":0},{"$f":"IF('1. Order'!AE1392=\"\",\"\",'1. Order'!AE1392)","v":""}]
[{"$f":"IF('1. Order'!B1393=\"\",\"\",'1. Order'!B1393)","v":""},{"$f":"IF('1. Order'!I1393=\"\",\"\",'1. Order'!I1393)","v":""},{"$f":"IF('1. Order'!J1393=\"\",\"\",'1. Order'!J1393)","v":""},{"$f":"IF('1. Order'!K1393=\"\",\"\",'1. Order'!K1393)","v":""},{"$f":"IF('1. Order'!M1393=\"\",\"\",'1. Order'!M1393)","v":""},null,null,{"$f":"'1. Order'!AW1393","v":0},{"$f":"IF('1. Order'!AE1393=\"\",\"\",'1. Order'!AE1393)","v":""}]
[{"$f":"IF('1. Order'!B1394=\"\",\"\",'1. Order'!B1394)","v":""},{"$f":"IF('1. Order'!I1394=\"\",\"\",'1. Order'!I1394)","v":""},{"$f":"IF('1. Order'!J1394=\"\",\"\",'1. Order'!J1394)","v":""},{"$f":"IF('1. Order'!K1394=\"\",\"\",'1. Order'!K1394)","v":""},{"$f":"IF('1. Order'!M1394=\"\",\"\",'1. Order'!M1394)","v":""},null,null,{"$f":"'1. Order'!AW1394","v":0},{"$f":"IF('1. Order'!AE1394=\"\",\"\",'1. Order'!AE1394)","v":""}]
[{"$f":"IF('1. Order'!B1395=\"\",\"\",'1. Order'!B1395)","v":""},{"$f":"IF('1. Order'!I1395=\"\",\"\",'1. Order'!I1395)","v":""},{"$f":"IF('1. Order'!J1395=\"\",\"\",'1. Order'!J1395)","v":""},{"$f":"IF('1. Order'!K1395=\"\",\"\",'1. Order'!K1395)","v":""},{"$f":"IF('1. Order'!M1395=\"\",\"\",'1. Order'!M1395)","v":""},null,null,{"$f":"'1. Order'!AW1395","v":0},{"$f":"IF('1. Order'!AE1395=\"\",\"\",'1. Order'!AE1395)","v":""}]
[{"$f":"IF('1. Order'!B1396=\"\",\"\",'1. Order'!B1396)","v":""},{"$f":"IF('1. Order'!I1396=\"\",\"\",'1. Order'!I1396)","v":""},{"$f":"IF('1. Order'!J1396=\"\",\"\",'1. Order'!J1396)","v":""},{"$f":"IF('1. Order'!K1396=\"\",\"\",'1. Order'!K1396)","v":""},{"$f":"IF('1. Order'!M1396=\"\",\"\",'1. Order'!M1396)","v":""},null,null,{"$f":"'1. Order'!AW1396","v":0},{"$f":"IF('1. Order'!AE1396=\"\",\"\",'1. Order'!AE1396)","v":""}]
[{"$f":"IF('1. Order'!B1397=\"\",\"\",'1. Order'!B1397)","v":""},{"$f":"IF('1. Order'!I1397=\"\",\"\",'1. Order'!I1397)","v":""},{"$f":"IF('1. Order'!J1397=\"\",\"\",'1. Order'!J1397)","v":""},{"$f":"IF('1. Order'!K1397=\"\",\"\",'1. Order'!K1397)","v":""},{"$f":"IF('1. Order'!M1397=\"\",\"\",'1. Order'!M1397)","v":""},null,null,{"$f":"'1. Order'!AW1397","v":0},{"$f":"IF('1. Order'!AE1397=\"\",\"\",'1. Order'!AE1397)","v":""}]
[{"$f":"IF('1. Order'!B1398=\"\",\"\",'1. Order'!B1398)","v":""},{"$f":"IF('1. Order'!I1398=\"\",\"\",'1. Order'!I1398)","v":""},{"$f":"IF('1. Order'!J1398=\"\",\"\",'1. Order'!J1398)","v":""},{"$f":"IF('1. Order'!K1398=\"\",\"\",'1. Order'!K1398)","v":""},{"$f":"IF('1. Order'!M1398=\"\",\"\",'1. Order'!M1398)","v":""},null,null,{"$f":"'1. Order'!AW1398","v":0},{"$f":"IF('1. Order'!AE1398=\"\",\"\",'1. Order'!AE1398)","v":""}]
[{"$f":"IF('1. Order'!B1399=\"\",\"\",'1. Order'!B1399)","v":""},{"$f":"IF('1. Order'!I1399=\"\",\"\",'1. Order'!I1399)","v":""},{"$f":"IF('1. Order'!J1399=\"\",\"\",'1. Order'!J1399)","v":""},{"$f":"IF('1. Order'!K1399=\"\",\"\",'1. Order'!K1399)","v":""},{"$f":"IF('1. Order'!M1399=\"\",\"\",'1. Order'!M1399)","v":""},null,null,{"$f":"'1. Order'!AW1399","v":0},{"$f":"IF('1. Order'!AE1399=\"\",\"\",'1. Order'!AE1399)","v":""}]
[{"$f":"IF('1. Order'!B1400=\"\",\"\",'1. Order'!B1400)","v":""},{"$f":"IF('1. Order'!I1400=\"\",\"\",'1. Order'!I1400)","v":""},{"$f":"IF('1. Order'!J1400=\"\",\"\",'1. Order'!J1400)","v":""},{"$f":"IF('1. Order'!K1400=\"\",\"\",'1. Order'!K1400)","v":""},{"$f":"IF('1. Order'!M1400=\"\",\"\",'1. Order'!M1400)","v":""},null,null,{"$f":"'1. Order'!AW1400","v":0},{"$f":"IF('1. Order'!AE1400=\"\",\"\",'1. Order'!AE1400)","v":""}]
[{"$f":"IF('1. Order'!B1401=\"\",\"\",'1. Order'!B1401)","v":""},{"$f":"IF('1. Order'!I1401=\"\",\"\",'1. Order'!I1401)","v":""},{"$f":"IF('1. Order'!J1401=\"\",\"\",'1. Order'!J1401)","v":""},{"$f":"IF('1. Order'!K1401=\"\",\"\",'1. Order'!K1401)","v":""},{"$f":"IF('1. Order'!M1401=\"\",\"\",'1. Order'!M1401)","v":""},null,null,{"$f":"'1. Order'!AW1401","v":0},{"$f":"IF('1. Order'!AE1401=\"\",\"\",'1. Order'!AE1401)","v":""}]
[{"$f":"IF('1. Order'!B1402=\"\",\"\",'1. Order'!B1402)","v":""},{"$f":"IF('1. Order'!I1402=\"\",\"\",'1. Order'!I1402)","v":""},{"$f":"IF('1. Order'!J1402=\"\",\"\",'1. Order'!J1402)","v":""},{"$f":"IF('1. Order'!K1402=\"\",\"\",'1. Order'!K1402)","v":""},{"$f":"IF('1. Order'!M1402=\"\",\"\",'1. Order'!M1402)","v":""},null,null,{"$f":"'1. Order'!AW1402","v":0},{"$f":"IF('1. Order'!AE1402=\"\",\"\",'1. Order'!AE1402)","v":""}]
[{"$f":"IF('1. Order'!B1403=\"\",\"\",'1. Order'!B1403)","v":""},{"$f":"IF('1. Order'!I1403=\"\",\"\",'1. Order'!I1403)","v":""},{"$f":"IF('1. Order'!J1403=\"\",\"\",'1. Order'!J1403)","v":""},{"$f":"IF('1. Order'!K1403=\"\",\"\",'1. Order'!K1403)","v":""},{"$f":"IF('1. Order'!M1403=\"\",\"\",'1. Order'!M1403)","v":""},null,null,{"$f":"'1. Order'!AW1403","v":0},{"$f":"IF('1. Order'!AE1403=\"\",\"\",'1. Order'!AE1403)","v":""}]
[{"$f":"IF('1. Order'!B1404=\"\",\"\",'1. Order'!B1404)","v":""},{"$f":"IF('1. Order'!I1404=\"\",\"\",'1. Order'!I1404)","v":""},{"$f":"IF('1. Order'!J1404=\"\",\"\",'1. Order'!J1404)","v":""},{"$f":"IF('1. Order'!K1404=\"\",\"\",'1. Order'!K1404)","v":""},{"$f":"IF('1. Order'!M1404=\"\",\"\",'1. Order'!M1404)","v":""},null,null,{"$f":"'1. Order'!AW1404","v":0},{"$f":"IF('1. Order'!AE1404=\"\",\"\",'1. Order'!AE1404)","v":""}]
[{"$f":"IF('1. Order'!B1405=\"\",\"\",'1. Order'!B1405)","v":""},{"$f":"IF('1. Order'!I1405=\"\",\"\",'1. Order'!I1405)","v":""},{"$f":"IF('1. Order'!J1405=\"\",\"\",'1. Order'!J1405)","v":""},{"$f":"IF('1. Order'!K1405=\"\",\"\",'1. Order'!K1405)","v":""},{"$f":"IF('1. Order'!M1405=\"\",\"\",'1. Order'!M1405)","v":""},null,null,{"$f":"'1. Order'!AW1405","v":0},{"$f":"IF('1. Order'!AE1405=\"\",\"\",'1. Order'!AE1405)","v":""}]
[{"$f":"IF('1. Order'!B1406=\"\",\"\",'1. Order'!B1406)","v":""},{"$f":"IF('1. Order'!I1406=\"\",\"\",'1. Order'!I1406)","v":""},{"$f":"IF('1. Order'!J1406=\"\",\"\",'1. Order'!J1406)","v":""},{"$f":"IF('1. Order'!K1406=\"\",\"\",'1. Order'!K1406)","v":""},{"$f":"IF('1. Order'!M1406=\"\",\"\",'1. Order'!M1406)","v":""},null,null,{"$f":"'1. Order'!AW1406","v":0},{"$f":"IF('1. Order'!AE1406=\"\",\"\",'1. Order'!AE1406)","v":""}]
[{"$f":"IF('1. Order'!B1407=\"\",\"\",'1. Order'!B1407)","v":""},{"$f":"IF('1. Order'!I1407=\"\",\"\",'1. Order'!I1407)","v":""},{"$f":"IF('1. Order'!J1407=\"\",\"\",'1. Order'!J1407)","v":""},{"$f":"IF('1. Order'!K1407=\"\",\"\",'1. Order'!K1407)","v":""},{"$f":"IF('1. Order'!M1407=\"\",\"\",'1. Order'!M1407)","v":""},null,null,{"$f":"'1. Order'!AW1407","v":0},{"$f":"IF('1. Order'!AE1407=\"\",\"\",'1. Order'!AE1407)","v":""}]
[{"$f":"IF('1. Order'!B1408=\"\",\"\",'1. Order'!B1408)","v":""},{"$f":"IF('1. Order'!I1408=\"\",\"\",'1. Order'!I1408)","v":""},{"$f":"IF('1. Order'!J1408=\"\",\"\",'1. Order'!J1408)","v":""},{"$f":"IF('1. Order'!K1408=\"\",\"\",'1. Order'!K1408)","v":""},{"$f":"IF('1. Order'!M1408=\"\",\"\",'1. Order'!M1408)","v":""},null,null,{"$f":"'1. Order'!AW1408","v":0},{"$f":"IF('1. Order'!AE1408=\"\",\"\",'1. Order'!AE1408)","v":""}]
[{"$f":"IF('1. Order'!B1409=\"\",\"\",'1. Order'!B1409)","v":""},{"$f":"IF('1. Order'!I1409=\"\",\"\",'1. Order'!I1409)","v":""},{"$f":"IF('1. Order'!J1409=\"\",\"\",'1. Order'!J1409)","v":""},{"$f":"IF('1. Order'!K1409=\"\",\"\",'1. Order'!K1409)","v":""},{"$f":"IF('1. Order'!M1409=\"\",\"\",'1. Order'!M1409)","v":""},null,null,{"$f":"'1. Order'!AW1409","v":0},{"$f":"IF('1. Order'!AE1409=\"\",\"\",'1. Order'!AE1409)","v":""}]
[{"$f":"IF('1. Order'!B1410=\"\",\"\",'1. Order'!B1410)","v":""},{"$f":"IF('1. Order'!I1410=\"\",\"\",'1. Order'!I1410)","v":""},{"$f":"IF('1. Order'!J1410=\"\",\"\",'1. Order'!J1410)","v":""},{"$f":"IF('1. Order'!K1410=\"\",\"\",'1. Order'!K1410)","v":""},{"$f":"IF('1. Order'!M1410=\"\",\"\",'1. Order'!M1410)","v":""},null,null,{"$f":"'1. Order'!AW1410","v":0},{"$f":"IF('1. Order'!AE1410=\"\",\"\",'1. Order'!AE1410)","v":""}]
[{"$f":"IF('1. Order'!B1411=\"\",\"\",'1. Order'!B1411)","v":""},{"$f":"IF('1. Order'!I1411=\"\",\"\",'1. Order'!I1411)","v":""},{"$f":"IF('1. Order'!J1411=\"\",\"\",'1. Order'!J1411)","v":""},{"$f":"IF('1. Order'!K1411=\"\",\"\",'1. Order'!K1411)","v":""},{"$f":"IF('1. Order'!M1411=\"\",\"\",'1. Order'!M1411)","v":""},null,null,{"$f":"'1. Order'!AW1411","v":0},{"$f":"IF('1. Order'!AE1411=\"\",\"\",'1. Order'!AE1411)","v":""}]
[{"$f":"IF('1. Order'!B1412=\"\",\"\",'1. Order'!B1412)","v":""},{"$f":"IF('1. Order'!I1412=\"\",\"\",'1. Order'!I1412)","v":""},{"$f":"IF('1. Order'!J1412=\"\",\"\",'1. Order'!J1412)","v":""},{"$f":"IF('1. Order'!K1412=\"\",\"\",'1. Order'!K1412)","v":""},{"$f":"IF('1. Order'!M1412=\"\",\"\",'1. Order'!M1412)","v":""},null,null,{"$f":"'1. Order'!AW1412","v":0},{"$f":"IF('1. Order'!AE1412=\"\",\"\",'1. Order'!AE1412)","v":""}]
[{"$f":"IF('1. Order'!B1413=\"\",\"\",'1. Order'!B1413)","v":""},{"$f":"IF('1. Order'!I1413=\"\",\"\",'1. Order'!I1413)","v":""},{"$f":"IF('1. Order'!J1413=\"\",\"\",'1. Order'!J1413)","v":""},{"$f":"IF('1. Order'!K1413=\"\",\"\",'1. Order'!K1413)","v":""},{"$f":"IF('1. Order'!M1413=\"\",\"\",'1. Order'!M1413)","v":""},null,null,{"$f":"'1. Order'!AW1413","v":0},{"$f":"IF('1. Order'!AE1413=\"\",\"\",'1. Order'!AE1413)","v":""}]
[{"$f":"IF('1. Order'!B1414=\"\",\"\",'1. Order'!B1414)","v":""},{"$f":"IF('1. Order'!I1414=\"\",\"\",'1. Order'!I1414)","v":""},{"$f":"IF('1. Order'!J1414=\"\",\"\",'1. Order'!J1414)","v":""},{"$f":"IF('1. Order'!K1414=\"\",\"\",'1. Order'!K1414)","v":""},{"$f":"IF('1. Order'!M1414=\"\",\"\",'1. Order'!M1414)","v":""},null,null,{"$f":"'1. Order'!AW1414","v":0},{"$f":"IF('1. Order'!AE1414=\"\",\"\",'1. Order'!AE1414)","v":""}]
[{"$f":"IF('1. Order'!B1415=\"\",\"\",'1. Order'!B1415)","v":""},{"$f":"IF('1. Order'!I1415=\"\",\"\",'1. Order'!I1415)","v":""},{"$f":"IF('1. Order'!J1415=\"\",\"\",'1. Order'!J1415)","v":""},{"$f":"IF('1. Order'!K1415=\"\",\"\",'1. Order'!K1415)","v":""},{"$f":"IF('1. Order'!M1415=\"\",\"\",'1. Order'!M1415)","v":""},null,null,{"$f":"'1. Order'!AW1415","v":0},{"$f":"IF('1. Order'!AE1415=\"\",\"\",'1. Order'!AE1415)","v":""}]
[{"$f":"IF('1. Order'!B1416=\"\",\"\",'1. Order'!B1416)","v":""},{"$f":"IF('1. Order'!I1416=\"\",\"\",'1. Order'!I1416)","v":""},{"$f":"IF('1. Order'!J1416=\"\",\"\",'1. Order'!J1416)","v":""},{"$f":"IF('1. Order'!K1416=\"\",\"\",'1. Order'!K1416)","v":""},{"$f":"IF('1. Order'!M1416=\"\",\"\",'1. Order'!M1416)","v":""},null,null,{"$f":"'1. Order'!AW1416","v":0},{"$f":"IF('1. Order'!AE1416=\"\",\"\",'1. Order'!AE1416)","v":""}]
[{"$f":"IF('1. Order'!B1417=\"\",\"\",'1. Order'!B1417)","v":""},{"$f":"IF('1. Order'!I1417=\"\",\"\",'1. Order'!I1417)","v":""},{"$f":"IF('1. Order'!J1417=\"\",\"\",'1. Order'!J1417)","v":""},{"$f":"IF('1. Order'!K1417=\"\",\"\",'1. Order'!K1417)","v":""},{"$f":"IF('1. Order'!M1417=\"\",\"\",'1. Order'!M1417)","v":""},null,null,{"$f":"'1. Order'!AW1417","v":0},{"$f":"IF('1. Order'!AE1417=\"\",\"\",'1. Order'!AE1417)","v":""}]
[{"$f":"IF('1. Order'!B1418=\"\",\"\",'1. Order'!B1418)","v":""},{"$f":"IF('1. Order'!I1418=\"\",\"\",'1. Order'!I1418)","v":""},{"$f":"IF('1. Order'!J1418=\"\",\"\",'1. Order'!J1418)","v":""},{"$f":"IF('1. Order'!K1418=\"\",\"\",'1. Order'!K1418)","v":""},{"$f":"IF('1. Order'!M1418=\"\",\"\",'1. Order'!M1418)","v":""},null,null,{"$f":"'1. Order'!AW1418","v":0},{"$f":"IF('1. Order'!AE1418=\"\",\"\",'1. Order'!AE1418)","v":""}]
[{"$f":"IF('1. Order'!B1419=\"\",\"\",'1. Order'!B1419)","v":""},{"$f":"IF('1. Order'!I1419=\"\",\"\",'1. Order'!I1419)","v":""},{"$f":"IF('1. Order'!J1419=\"\",\"\",'1. Order'!J1419)","v":""},{"$f":"IF('1. Order'!K1419=\"\",\"\",'1. Order'!K1419)","v":""},{"$f":"IF('1. Order'!M1419=\"\",\"\",'1. Order'!M1419)","v":""},null,null,{"$f":"'1. Order'!AW1419","v":0},{"$f":"IF('1. Order'!AE1419=\"\",\"\",'1. Order'!AE1419)","v":""}]
[{"$f":"IF('1. Order'!B1420=\"\",\"\",'1. Order'!B1420)","v":""},{"$f":"IF('1. Order'!I1420=\"\",\"\",'1. Order'!I1420)","v":""},{"$f":"IF('1. Order'!J1420=\"\",\"\",'1. Order'!J1420)","v":""},{"$f":"IF('1. Order'!K1420=\"\",\"\",'1. Order'!K1420)","v":""},{"$f":"IF('1. Order'!M1420=\"\",\"\",'1. Order'!M1420)","v":""},null,null,{"$f":"'1. Order'!AW1420","v":0},{"$f":"IF('1. Order'!AE1420=\"\",\"\",'1. Order'!AE1420)","v":""}]
[{"$f":"IF('1. Order'!B1421=\"\",\"\",'1. Order'!B1421)","v":""},{"$f":"IF('1. Order'!I1421=\"\",\"\",'1. Order'!I1421)","v":""},{"$f":"IF('1. Order'!J1421=\"\",\"\",'1. Order'!J1421)","v":""},{"$f":"IF('1. Order'!K1421=\"\",\"\",'1. Order'!K1421)","v":""},{"$f":"IF('1. Order'!M1421=\"\",\"\",'1. Order'!M1421)","v":""},null,null,{"$f":"'1. Order'!AW1421","v":0},{"$f":"IF('1. Order'!AE1421=\"\",\"\",'1. Order'!AE1421)","v":""}]
[{"$f":"IF('1. Order'!B1422=\"\",\"\",'1. Order'!B1422)","v":""},{"$f":"IF('1. Order'!I1422=\"\",\"\",'1. Order'!I1422)","v":""},{"$f":"IF('1. Order'!J1422=\"\",\"\",'1. Order'!J1422)","v":""},{"$f":"IF('1. Order'!K1422=\"\",\"\",'1. Order'!K1422)","v":""},{"$f":"IF('1. Order'!M1422=\"\",\"\",'1. Order'!M1422)","v":""},null,null,{"$f":"'1. Order'!AW1422","v":0},{"$f":"IF('1. Order'!AE1422=\"\",\"\",'1. Order'!AE1422)","v":""}]
[{"$f":"IF('1. Order'!B1423=\"\",\"\",'1. Order'!B1423)","v":""},{"$f":"IF('1. Order'!I1423=\"\",\"\",'1. Order'!I1423)","v":""},{"$f":"IF('1. Order'!J1423=\"\",\"\",'1. Order'!J1423)","v":""},{"$f":"IF('1. Order'!K1423=\"\",\"\",'1. Order'!K1423)","v":""},{"$f":"IF('1. Order'!M1423=\"\",\"\",'1. Order'!M1423)","v":""},null,null,{"$f":"'1. Order'!AW1423","v":0},{"$f":"IF('1. Order'!AE1423=\"\",\"\",'1. Order'!AE1423)","v":""}]
[{"$f":"IF('1. Order'!B1424=\"\",\"\",'1. Order'!B1424)","v":""},{"$f":"IF('1. Order'!I1424=\"\",\"\",'1. Order'!I1424)","v":""},{"$f":"IF('1. Order'!J1424=\"\",\"\",'1. Order'!J1424)","v":""},{"$f":"IF('1. Order'!K1424=\"\",\"\",'1. Order'!K1424)","v":""},{"$f":"IF('1. Order'!M1424=\"\",\"\",'1. Order'!M1424)","v":""},null,null,{"$f":"'1. Order'!AW1424","v":0},{"$f":"IF('1. Order'!AE1424=\"\",\"\",'1. Order'!AE1424)","v":""}]
[{"$f":"IF('1. Order'!B1425=\"\",\"\",'1. Order'!B1425)","v":""},{"$f":"IF('1. Order'!I1425=\"\",\"\",'1. Order'!I1425)","v":""},{"$f":"IF('1. Order'!J1425=\"\",\"\",'1. Order'!J1425)","v":""},{"$f":"IF('1. Order'!K1425=\"\",\"\",'1. Order'!K1425)","v":""},{"$f":"IF('1. Order'!M1425=\"\",\"\",'1. Order'!M1425)","v":""},null,null,{"$f":"'1. Order'!AW1425","v":0},{"$f":"IF('1. Order'!AE1425=\"\",\"\",'1. Order'!AE1425)","v":""}]
[{"$f":"IF('1. Order'!B1426=\"\",\"\",'1. Order'!B1426)","v":""},{"$f":"IF('1. Order'!I1426=\"\",\"\",'1. Order'!I1426)","v":""},{"$f":"IF('1. Order'!J1426=\"\",\"\",'1. Order'!J1426)","v":""},{"$f":"IF('1. Order'!K1426=\"\",\"\",'1. Order'!K1426)","v":""},{"$f":"IF('1. Order'!M1426=\"\",\"\",'1. Order'!M1426)","v":""},null,null,{"$f":"'1. Order'!AW1426","v":0},{"$f":"IF('1. Order'!AE1426=\"\",\"\",'1. Order'!AE1426)","v":""}]
[{"$f":"IF('1. Order'!B1427=\"\",\"\",'1. Order'!B1427)","v":""},{"$f":"IF('1. Order'!I1427=\"\",\"\",'1. Order'!I1427)","v":""},{"$f":"IF('1. Order'!J1427=\"\",\"\",'1. Order'!J1427)","v":""},{"$f":"IF('1. Order'!K1427=\"\",\"\",'1. Order'!K1427)","v":""},{"$f":"IF('1. Order'!M1427=\"\",\"\",'1. Order'!M1427)","v":""},null,null,{"$f":"'1. Order'!AW1427","v":0},{"$f":"IF('1. Order'!AE1427=\"\",\"\",'1. Order'!AE1427)","v":""}]
[{"$f":"IF('1. Order'!B1428=\"\",\"\",'1. Order'!B1428)","v":""},{"$f":"IF('1. Order'!I1428=\"\",\"\",'1. Order'!I1428)","v":""},{"$f":"IF('1. Order'!J1428=\"\",\"\",'1. Order'!J1428)","v":""},{"$f":"IF('1. Order'!K1428=\"\",\"\",'1. Order'!K1428)","v":""},{"$f":"IF('1. Order'!M1428=\"\",\"\",'1. Order'!M1428)","v":""},null,null,{"$f":"'1. Order'!AW1428","v":0},{"$f":"IF('1. Order'!AE1428=\"\",\"\",'1. Order'!AE1428)","v":""}]
[{"$f":"IF('1. Order'!B1429=\"\",\"\",'1. Order'!B1429)","v":""},{"$f":"IF('1. Order'!I1429=\"\",\"\",'1. Order'!I1429)","v":""},{"$f":"IF('1. Order'!J1429=\"\",\"\",'1. Order'!J1429)","v":""},{"$f":"IF('1. Order'!K1429=\"\",\"\",'1. Order'!K1429)","v":""},{"$f":"IF('1. Order'!M1429=\"\",\"\",'1. Order'!M1429)","v":""},null,null,{"$f":"'1. Order'!AW1429","v":0},{"$f":"IF('1. Order'!AE1429=\"\",\"\",'1. Order'!AE1429)","v":""}]
[{"$f":"IF('1. Order'!B1430=\"\",\"\",'1. Order'!B1430)","v":""},{"$f":"IF('1. Order'!I1430=\"\",\"\",'1. Order'!I1430)","v":""},{"$f":"IF('1. Order'!J1430=\"\",\"\",'1. Order'!J1430)","v":""},{"$f":"IF('1. Order'!K1430=\"\",\"\",'1. Order'!K1430)","v":""},{"$f":"IF('1. Order'!M1430=\"\",\"\",'1. Order'!M1430)","v":""},null,null,{"$f":"'1. Order'!AW1430","v":0},{"$f":"IF('1. Order'!AE1430=\"\",\"\",'1. Order'!AE1430)","v":""}]
[{"$f":"IF('1. Order'!B1431=\"\",\"\",'1. Order'!B1431)","v":""},{"$f":"IF('1. Order'!I1431=\"\",\"\",'1. Order'!I1431)","v":""},{"$f":"IF('1. Order'!J1431=\"\",\"\",'1. Order'!J1431)","v":""},{"$f":"IF('1. Order'!K1431=\"\",\"\",'1. Order'!K1431)","v":""},{"$f":"IF('1. Order'!M1431=\"\",\"\",'1. Order'!M1431)","v":""},null,null,{"$f":"'1. Order'!AW1431","v":0},{"$f":"IF('1. Order'!AE1431=\"\",\"\",'1. Order'!AE1431)","v":""}]
[{"$f":"IF('1. Order'!B1432=\"\",\"\",'1. Order'!B1432)","v":""},{"$f":"IF('1. Order'!I1432=\"\",\"\",'1. Order'!I1432)","v":""},{"$f":"IF('1. Order'!J1432=\"\",\"\",'1. Order'!J1432)","v":""},{"$f":"IF('1. Order'!K1432=\"\",\"\",'1. Order'!K1432)","v":""},{"$f":"IF('1. Order'!M1432=\"\",\"\",'1. Order'!M1432)","v":""},null,null,{"$f":"'1. Order'!AW1432","v":0},{"$f":"IF('1. Order'!AE1432=\"\",\"\",'1. Order'!AE1432)","v":""}]
[{"$f":"IF('1. Order'!B1433=\"\",\"\",'1. Order'!B1433)","v":""},{"$f":"IF('1. Order'!I1433=\"\",\"\",'1. Order'!I1433)","v":""},{"$f":"IF('1. Order'!J1433=\"\",\"\",'1. Order'!J1433)","v":""},{"$f":"IF('1. Order'!K1433=\"\",\"\",'1. Order'!K1433)","v":""},{"$f":"IF('1. Order'!M1433=\"\",\"\",'1. Order'!M1433)","v":""},null,null,{"$f":"'1. Order'!AW1433","v":0},{"$f":"IF('1. Order'!AE1433=\"\",\"\",'1. Order'!AE1433)","v":""}]
[{"$f":"IF('1. Order'!B1434=\"\",\"\",'1. Order'!B1434)","v":""},{"$f":"IF('1. Order'!I1434=\"\",\"\",'1. Order'!I1434)","v":""},{"$f":"IF('1. Order'!J1434=\"\",\"\",'1. Order'!J1434)","v":""},{"$f":"IF('1. Order'!K1434=\"\",\"\",'1. Order'!K1434)","v":""},{"$f":"IF('1. Order'!M1434=\"\",\"\",'1. Order'!M1434)","v":""},null,null,{"$f":"'1. Order'!AW1434","v":0},{"$f":"IF('1. Order'!AE1434=\"\",\"\",'1. Order'!AE1434)","v":""}]
[{"$f":"IF('1. Order'!B1435=\"\",\"\",'1. Order'!B1435)","v":""},{"$f":"IF('1. Order'!I1435=\"\",\"\",'1. Order'!I1435)","v":""},{"$f":"IF('1. Order'!J1435=\"\",\"\",'1. Order'!J1435)","v":""},{"$f":"IF('1. Order'!K1435=\"\",\"\",'1. Order'!K1435)","v":""},{"$f":"IF('1. Order'!M1435=\"\",\"\",'1. Order'!M1435)","v":""},null,null,{"$f":"'1. Order'!AW1435","v":0},{"$f":"IF('1. Order'!AE1435=\"\",\"\",'1. Order'!AE1435)","v":""}]
[{"$f":"IF('1. Order'!B1436=\"\",\"\",'1. Order'!B1436)","v":""},{"$f":"IF('1. Order'!I1436=\"\",\"\",'1. Order'!I1436)","v":""},{"$f":"IF('1. Order'!J1436=\"\",\"\",'1. Order'!J1436)","v":""},{"$f":"IF('1. Order'!K1436=\"\",\"\",'1. Order'!K1436)","v":""},{"$f":"IF('1. Order'!M1436=\"\",\"\",'1. Order'!M1436)","v":""},null,null,{"$f":"'1. Order'!AW1436","v":0},{"$f":"IF('1. Order'!AE1436=\"\",\"\",'1. Order'!AE1436)","v":""}]
[{"$f":"IF('1. Order'!B1437=\"\",\"\",'1. Order'!B1437)","v":""},{"$f":"IF('1. Order'!I1437=\"\",\"\",'1. Order'!I1437)","v":""},{"$f":"IF('1. Order'!J1437=\"\",\"\",'1. Order'!J1437)","v":""},{"$f":"IF('1. Order'!K1437=\"\",\"\",'1. Order'!K1437)","v":""},{"$f":"IF('1. Order'!M1437=\"\",\"\",'1. Order'!M1437)","v":""},null,null,{"$f":"'1. Order'!AW1437","v":0},{"$f":"IF('1. Order'!AE1437=\"\",\"\",'1. Order'!AE1437)","v":""}]
[{"$f":"IF('1. Order'!B1438=\"\",\"\",'1. Order'!B1438)","v":""},{"$f":"IF('1. Order'!I1438=\"\",\"\",'1. Order'!I1438)","v":""},{"$f":"IF('1. Order'!J1438=\"\",\"\",'1. Order'!J1438)","v":""},{"$f":"IF('1. Order'!K1438=\"\",\"\",'1. Order'!K1438)","v":""},{"$f":"IF('1. Order'!M1438=\"\",\"\",'1. Order'!M1438)","v":""},null,null,{"$f":"'1. Order'!AW1438","v":0},{"$f":"IF('1. Order'!AE1438=\"\",\"\",'1. Order'!AE1438)","v":""}]
[{"$f":"IF('1. Order'!B1439=\"\",\"\",'1. Order'!B1439)","v":""},{"$f":"IF('1. Order'!I1439=\"\",\"\",'1. Order'!I1439)","v":""},{"$f":"IF('1. Order'!J1439=\"\",\"\",'1. Order'!J1439)","v":""},{"$f":"IF('1. Order'!K1439=\"\",\"\",'1. Order'!K1439)","v":""},{"$f":"IF('1. Order'!M1439=\"\",\"\",'1. Order'!M1439)","v":""},null,null,{"$f":"'1. Order'!AW1439","v":0},{"$f":"IF('1. Order'!AE1439=\"\",\"\",'1. Order'!AE1439)","v":""}]
[{"$f":"IF('1. Order'!B1440=\"\",\"\",'1. Order'!B1440)","v":""},{"$f":"IF('1. Order'!I1440=\"\",\"\",'1. Order'!I1440)","v":""},{"$f":"IF('1. Order'!J1440=\"\",\"\",'1. Order'!J1440)","v":""},{"$f":"IF('1. Order'!K1440=\"\",\"\",'1. Order'!K1440)","v":""},{"$f":"IF('1. Order'!M1440=\"\",\"\",'1. Order'!M1440)","v":""},null,null,{"$f":"'1. Order'!AW1440","v":0},{"$f":"IF('1. Order'!AE1440=\"\",\"\",'1. Order'!AE1440)","v":""}]
[{"$f":"IF('1. Order'!B1441=\"\",\"\",'1. Order'!B1441)","v":""},{"$f":"IF('1. Order'!I1441=\"\",\"\",'1. Order'!I1441)","v":""},{"$f":"IF('1. Order'!J1441=\"\",\"\",'1. Order'!J1441)","v":""},{"$f":"IF('1. Order'!K1441=\"\",\"\",'1. Order'!K1441)","v":""},{"$f":"IF('1. Order'!M1441=\"\",\"\",'1. Order'!M1441)","v":""},null,null,{"$f":"'1. Order'!AW1441","v":0},{"$f":"IF('1. Order'!AE1441=\"\",\"\",'1. Order'!AE1441)","v":""}]
[{"$f":"IF('1. Order'!B1442=\"\",\"\",'1. Order'!B1442)","v":""},{"$f":"IF('1. Order'!I1442=\"\",\"\",'1. Order'!I1442)","v":""},{"$f":"IF('1. Order'!J1442=\"\",\"\",'1. Order'!J1442)","v":""},{"$f":"IF('1. Order'!K1442=\"\",\"\",'1. Order'!K1442)","v":""},{"$f":"IF('1. Order'!M1442=\"\",\"\",'1. Order'!M1442)","v":""},null,null,{"$f":"'1. Order'!AW1442","v":0},{"$f":"IF('1. Order'!AE1442=\"\",\"\",'1. Order'!AE1442)","v":""}]
[{"$f":"IF('1. Order'!B1443=\"\",\"\",'1. Order'!B1443)","v":""},{"$f":"IF('1. Order'!I1443=\"\",\"\",'1. Order'!I1443)","v":""},{"$f":"IF('1. Order'!J1443=\"\",\"\",'1. Order'!J1443)","v":""},{"$f":"IF('1. Order'!K1443=\"\",\"\",'1. Order'!K1443)","v":""},{"$f":"IF('1. Order'!M1443=\"\",\"\",'1. Order'!M1443)","v":""},null,null,{"$f":"'1. Order'!AW1443","v":0},{"$f":"IF('1. Order'!AE1443=\"\",\"\",'1. Order'!AE1443)","v":""}]
[{"$f":"IF('1. Order'!B1444=\"\",\"\",'1. Order'!B1444)","v":""},{"$f":"IF('1. Order'!I1444=\"\",\"\",'1. Order'!I1444)","v":""},{"$f":"IF('1. Order'!J1444=\"\",\"\",'1. Order'!J1444)","v":""},{"$f":"IF('1. Order'!K1444=\"\",\"\",'1. Order'!K1444)","v":""},{"$f":"IF('1. Order'!M1444=\"\",\"\",'1. Order'!M1444)","v":""},null,null,{"$f":"'1. Order'!AW1444","v":0},{"$f":"IF('1. Order'!AE1444=\"\",\"\",'1. Order'!AE1444)","v":""}]
[{"$f":"IF('1. Order'!B1445=\"\",\"\",'1. Order'!B1445)","v":""},{"$f":"IF('1. Order'!I1445=\"\",\"\",'1. Order'!I1445)","v":""},{"$f":"IF('1. Order'!J1445=\"\",\"\",'1. Order'!J1445)","v":""},{"$f":"IF('1. Order'!K1445=\"\",\"\",'1. Order'!K1445)","v":""},{"$f":"IF('1. Order'!M1445=\"\",\"\",'1. Order'!M1445)","v":""},null,null,{"$f":"'1. Order'!AW1445","v":0},{"$f":"IF('1. Order'!AE1445=\"\",\"\",'1. Order'!AE1445)","v":""}]
[{"$f":"IF('1. Order'!B1446=\"\",\"\",'1. Order'!B1446)","v":""},{"$f":"IF('1. Order'!I1446=\"\",\"\",'1. Order'!I1446)","v":""},{"$f":"IF('1. Order'!J1446=\"\",\"\",'1. Order'!J1446)","v":""},{"$f":"IF('1. Order'!K1446=\"\",\"\",'1. Order'!K1446)","v":""},{"$f":"IF('1. Order'!M1446=\"\",\"\",'1. Order'!M1446)","v":""},null,null,{"$f":"'1. Order'!AW1446","v":0},{"$f":"IF('1. Order'!AE1446=\"\",\"\",'1. Order'!AE1446)","v":""}]
[{"$f":"IF('1. Order'!B1447=\"\",\"\",'1. Order'!B1447)","v":""},{"$f":"IF('1. Order'!I1447=\"\",\"\",'1. Order'!I1447)","v":""},{"$f":"IF('1. Order'!J1447=\"\",\"\",'1. Order'!J1447)","v":""},{"$f":"IF('1. Order'!K1447=\"\",\"\",'1. Order'!K1447)","v":""},{"$f":"IF('1. Order'!M1447=\"\",\"\",'1. Order'!M1447)","v":""},null,null,{"$f":"'1. Order'!AW1447","v":0},{"$f":"IF('1. Order'!AE1447=\"\",\"\",'1. Order'!AE1447)","v":""}]
[{"$f":"IF('1. Order'!B1448=\"\",\"\",'1. Order'!B1448)","v":""},{"$f":"IF('1. Order'!I1448=\"\",\"\",'1. Order'!I1448)","v":""},{"$f":"IF('1. Order'!J1448=\"\",\"\",'1. Order'!J1448)","v":""},{"$f":"IF('1. Order'!K1448=\"\",\"\",'1. Order'!K1448)","v":""},{"$f":"IF('1. Order'!M1448=\"\",\"\",'1. Order'!M1448)","v":""},null,null,{"$f":"'1. Order'!AW1448","v":0},{"$f":"IF('1. Order'!AE1448=\"\",\"\",'1. Order'!AE1448)","v":""}]
[{"$f":"IF('1. Order'!B1449=\"\",\"\",'1. Order'!B1449)","v":""},{"$f":"IF('1. Order'!I1449=\"\",\"\",'1. Order'!I1449)","v":""},{"$f":"IF('1. Order'!J1449=\"\",\"\",'1. Order'!J1449)","v":""},{"$f":"IF('1. Order'!K1449=\"\",\"\",'1. Order'!K1449)","v":""},{"$f":"IF('1. Order'!M1449=\"\",\"\",'1. Order'!M1449)","v":""},null,null,{"$f":"'1. Order'!AW1449","v":0},{"$f":"IF('1. Order'!AE1449=\"\",\"\",'1. Order'!AE1449)","v":""}]
[{"$f":"IF('1. Order'!B1450=\"\",\"\",'1. Order'!B1450)","v":""},{"$f":"IF('1. Order'!I1450=\"\",\"\",'1. Order'!I1450)","v":""},{"$f":"IF('1. Order'!J1450=\"\",\"\",'1. Order'!J1450)","v":""},{"$f":"IF('1. Order'!K1450=\"\",\"\",'1. Order'!K1450)","v":""},{"$f":"IF('1. Order'!M1450=\"\",\"\",'1. Order'!M1450)","v":""},null,null,{"$f":"'1. Order'!AW1450","v":0},{"$f":"IF('1. Order'!AE1450=\"\",\"\",'1. Order'!AE1450)","v":""}]
[{"$f":"IF('1. Order'!B1451=\"\",\"\",'1. Order'!B1451)","v":""},{"$f":"IF('1. Order'!I1451=\"\",\"\",'1. Order'!I1451)","v":""},{"$f":"IF('1. Order'!J1451=\"\",\"\",'1. Order'!J1451)","v":""},{"$f":"IF('1. Order'!K1451=\"\",\"\",'1. Order'!K1451)","v":""},{"$f":"IF('1. Order'!M1451=\"\",\"\",'1. Order'!M1451)","v":""},null,null,{"$f":"'1. Order'!AW1451","v":0},{"$f":"IF('1. Order'!AE1451=\"\",\"\",'1. Order'!AE1451)","v":""}]
[{"$f":"IF('1. Order'!B1452=\"\",\"\",'1. Order'!B1452)","v":""},{"$f":"IF('1. Order'!I1452=\"\",\"\",'1. Order'!I1452)","v":""},{"$f":"IF('1. Order'!J1452=\"\",\"\",'1. Order'!J1452)","v":""},{"$f":"IF('1. Order'!K1452=\"\",\"\",'1. Order'!K1452)","v":""},{"$f":"IF('1. Order'!M1452=\"\",\"\",'1. Order'!M1452)","v":""},null,null,{"$f":"'1. Order'!AW1452","v":0},{"$f":"IF('1. Order'!AE1452=\"\",\"\",'1. Order'!AE1452)","v":""}]
[{"$f":"IF('1. Order'!B1453=\"\",\"\",'1. Order'!B1453)","v":""},{"$f":"IF('1. Order'!I1453=\"\",\"\",'1. Order'!I1453)","v":""},{"$f":"IF('1. Order'!J1453=\"\",\"\",'1. Order'!J1453)","v":""},{"$f":"IF('1. Order'!K1453=\"\",\"\",'1. Order'!K1453)","v":""},{"$f":"IF('1. Order'!M1453=\"\",\"\",'1. Order'!M1453)","v":""},null,null,{"$f":"'1. Order'!AW1453","v":0},{"$f":"IF('1. Order'!AE1453=\"\",\"\",'1. Order'!AE1453)","v":""}]
[{"$f":"IF('1. Order'!B1454=\"\",\"\",'1. Order'!B1454)","v":""},{"$f":"IF('1. Order'!I1454=\"\",\"\",'1. Order'!I1454)","v":""},{"$f":"IF('1. Order'!J1454=\"\",\"\",'1. Order'!J1454)","v":""},{"$f":"IF('1. Order'!K1454=\"\",\"\",'1. Order'!K1454)","v":""},{"$f":"IF('1. Order'!M1454=\"\",\"\",'1. Order'!M1454)","v":""},null,null,{"$f":"'1. Order'!AW1454","v":0},{"$f":"IF('1. Order'!AE1454=\"\",\"\",'1. Order'!AE1454)","v":""}]
[{"$f":"IF('1. Order'!B1455=\"\",\"\",'1. Order'!B1455)","v":""},{"$f":"IF('1. Order'!I1455=\"\",\"\",'1. Order'!I1455)","v":""},{"$f":"IF('1. Order'!J1455=\"\",\"\",'1. Order'!J1455)","v":""},{"$f":"IF('1. Order'!K1455=\"\",\"\",'1. Order'!K1455)","v":""},{"$f":"IF('1. Order'!M1455=\"\",\"\",'1. Order'!M1455)","v":""},null,null,{"$f":"'1. Order'!AW1455","v":0},{"$f":"IF('1. Order'!AE1455=\"\",\"\",'1. Order'!AE1455)","v":""}]
[{"$f":"IF('1. Order'!B1456=\"\",\"\",'1. Order'!B1456)","v":""},{"$f":"IF('1. Order'!I1456=\"\",\"\",'1. Order'!I1456)","v":""},{"$f":"IF('1. Order'!J1456=\"\",\"\",'1. Order'!J1456)","v":""},{"$f":"IF('1. Order'!K1456=\"\",\"\",'1. Order'!K1456)","v":""},{"$f":"IF('1. Order'!M1456=\"\",\"\",'1. Order'!M1456)","v":""},null,null,{"$f":"'1. Order'!AW1456","v":0},{"$f":"IF('1. Order'!AE1456=\"\",\"\",'1. Order'!AE1456)","v":""}]
[{"$f":"IF('1. Order'!B1457=\"\",\"\",'1. Order'!B1457)","v":""},{"$f":"IF('1. Order'!I1457=\"\",\"\",'1. Order'!I1457)","v":""},{"$f":"IF('1. Order'!J1457=\"\",\"\",'1. Order'!J1457)","v":""},{"$f":"IF('1. Order'!K1457=\"\",\"\",'1. Order'!K1457)","v":""},{"$f":"IF('1. Order'!M1457=\"\",\"\",'1. Order'!M1457)","v":""},null,null,{"$f":"'1. Order'!AW1457","v":0},{"$f":"IF('1. Order'!AE1457=\"\",\"\",'1. Order'!AE1457)","v":""}]
[{"$f":"IF('1. Order'!B1458=\"\",\"\",'1. Order'!B1458)","v":""},{"$f":"IF('1. Order'!I1458=\"\",\"\",'1. Order'!I1458)","v":""},{"$f":"IF('1. Order'!J1458=\"\",\"\",'1. Order'!J1458)","v":""},{"$f":"IF('1. Order'!K1458=\"\",\"\",'1. Order'!K1458)","v":""},{"$f":"IF('1. Order'!M1458=\"\",\"\",'1. Order'!M1458)","v":""},null,null,{"$f":"'1. Order'!AW1458","v":0},{"$f":"IF('1. Order'!AE1458=\"\",\"\",'1. Order'!AE1458)","v":""}]
[{"$f":"IF('1. Order'!B1459=\"\",\"\",'1. Order'!B1459)","v":""},{"$f":"IF('1. Order'!I1459=\"\",\"\",'1. Order'!I1459)","v":""},{"$f":"IF('1. Order'!J1459=\"\",\"\",'1. Order'!J1459)","v":""},{"$f":"IF('1. Order'!K1459=\"\",\"\",'1. Order'!K1459)","v":""},{"$f":"IF('1. Order'!M1459=\"\",\"\",'1. Order'!M1459)","v":""},null,null,{"$f":"'1. Order'!AW1459","v":0},{"$f":"IF('1. Order'!AE1459=\"\",\"\",'1. Order'!AE1459)","v":""}]
[{"$f":"IF('1. Order'!B1460=\"\",\"\",'1. Order'!B1460)","v":""},{"$f":"IF('1. Order'!I1460=\"\",\"\",'1. Order'!I1460)","v":""},{"$f":"IF('1. Order'!J1460=\"\",\"\",'1. Order'!J1460)","v":""},{"$f":"IF('1. Order'!K1460=\"\",\"\",'1. Order'!K1460)","v":""},{"$f":"IF('1. Order'!M1460=\"\",\"\",'1. Order'!M1460)","v":""},null,null,{"$f":"'1. Order'!AW1460","v":0},{"$f":"IF('1. Order'!AE1460=\"\",\"\",'1. Order'!AE1460)","v":""}]
[{"$f":"IF('1. Order'!B1461=\"\",\"\",'1. Order'!B1461)","v":""},{"$f":"IF('1. Order'!I1461=\"\",\"\",'1. Order'!I1461)","v":""},{"$f":"IF('1. Order'!J1461=\"\",\"\",'1. Order'!J1461)","v":""},{"$f":"IF('1. Order'!K1461=\"\",\"\",'1. Order'!K1461)","v":""},{"$f":"IF('1. Order'!M1461=\"\",\"\",'1. Order'!M1461)","v":""},null,null,{"$f":"'1. Order'!AW1461","v":0},{"$f":"IF('1. Order'!AE1461=\"\",\"\",'1. Order'!AE1461)","v":""}]
[{"$f":"IF('1. Order'!B1462=\"\",\"\",'1. Order'!B1462)","v":""},{"$f":"IF('1. Order'!I1462=\"\",\"\",'1. Order'!I1462)","v":""},{"$f":"IF('1. Order'!J1462=\"\",\"\",'1. Order'!J1462)","v":""},{"$f":"IF('1. Order'!K1462=\"\",\"\",'1. Order'!K1462)","v":""},{"$f":"IF('1. Order'!M1462=\"\",\"\",'1. Order'!M1462)","v":""},null,null,{"$f":"'1. Order'!AW1462","v":0},{"$f":"IF('1. Order'!AE1462=\"\",\"\",'1. Order'!AE1462)","v":""}]
[{"$f":"IF('1. Order'!B1463=\"\",\"\",'1. Order'!B1463)","v":""},{"$f":"IF('1. Order'!I1463=\"\",\"\",'1. Order'!I1463)","v":""},{"$f":"IF('1. Order'!J1463=\"\",\"\",'1. Order'!J1463)","v":""},{"$f":"IF('1. Order'!K1463=\"\",\"\",'1. Order'!K1463)","v":""},{"$f":"IF('1. Order'!M1463=\"\",\"\",'1. Order'!M1463)","v":""},null,null,{"$f":"'1. Order'!AW1463","v":0},{"$f":"IF('1. Order'!AE1463=\"\",\"\",'1. Order'!AE1463)","v":""}]
[{"$f":"IF('1. Order'!B1464=\"\",\"\",'1. Order'!B1464)","v":""},{"$f":"IF('1. Order'!I1464=\"\",\"\",'1. Order'!I1464)","v":""},{"$f":"IF('1. Order'!J1464=\"\",\"\",'1. Order'!J1464)","v":""},{"$f":"IF('1. Order'!K1464=\"\",\"\",'1. Order'!K1464)","v":""},{"$f":"IF('1. Order'!M1464=\"\",\"\",'1. Order'!M1464)","v":""},null,null,{"$f":"'1. Order'!AW1464","v":0},{"$f":"IF('1. Order'!AE1464=\"\",\"\",'1. Order'!AE1464)","v":""}]
[{"$f":"IF('1. Order'!B1465=\"\",\"\",'1. Order'!B1465)","v":""},{"$f":"IF('1. Order'!I1465=\"\",\"\",'1. Order'!I1465)","v":""},{"$f":"IF('1. Order'!J1465=\"\",\"\",'1. Order'!J1465)","v":""},{"$f":"IF('1. Order'!K1465=\"\",\"\",'1. Order'!K1465)","v":""},{"$f":"IF('1. Order'!M1465=\"\",\"\",'1. Order'!M1465)","v":""},null,null,{"$f":"'1. Order'!AW1465","v":0},{"$f":"IF('1. Order'!AE1465=\"\",\"\",'1. Order'!AE1465)","v":""}]
[{"$f":"IF('1. Order'!B1466=\"\",\"\",'1. Order'!B1466)","v":""},{"$f":"IF('1. Order'!I1466=\"\",\"\",'1. Order'!I1466)","v":""},{"$f":"IF('1. Order'!J1466=\"\",\"\",'1. Order'!J1466)","v":""},{"$f":"IF('1. Order'!K1466=\"\",\"\",'1. Order'!K1466)","v":""},{"$f":"IF('1. Order'!M1466=\"\",\"\",'1. Order'!M1466)","v":""},null,null,{"$f":"'1. Order'!AW1466","v":0},{"$f":"IF('1. Order'!AE1466=\"\",\"\",'1. Order'!AE1466)","v":""}]
[{"$f":"IF('1. Order'!B1467=\"\",\"\",'1. Order'!B1467)","v":""},{"$f":"IF('1. Order'!I1467=\"\",\"\",'1. Order'!I1467)","v":""},{"$f":"IF('1. Order'!J1467=\"\",\"\",'1. Order'!J1467)","v":""},{"$f":"IF('1. Order'!K1467=\"\",\"\",'1. Order'!K1467)","v":""},{"$f":"IF('1. Order'!M1467=\"\",\"\",'1. Order'!M1467)","v":""},null,null,{"$f":"'1. Order'!AW1467","v":0},{"$f":"IF('1. Order'!AE1467=\"\",\"\",'1. Order'!AE1467)","v":""}]
[{"$f":"IF('1. Order'!B1468=\"\",\"\",'1. Order'!B1468)","v":""},{"$f":"IF('1. Order'!I1468=\"\",\"\",'1. Order'!I1468)","v":""},{"$f":"IF('1. Order'!J1468=\"\",\"\",'1. Order'!J1468)","v":""},{"$f":"IF('1. Order'!K1468=\"\",\"\",'1. Order'!K1468)","v":""},{"$f":"IF('1. Order'!M1468=\"\",\"\",'1. Order'!M1468)","v":""},null,null,{"$f":"'1. Order'!AW1468","v":0},{"$f":"IF('1. Order'!AE1468=\"\",\"\",'1. Order'!AE1468)","v":""}]
[{"$f":"IF('1. Order'!B1469=\"\",\"\",'1. Order'!B1469)","v":""},{"$f":"IF('1. Order'!I1469=\"\",\"\",'1. Order'!I1469)","v":""},{"$f":"IF('1. Order'!J1469=\"\",\"\",'1. Order'!J1469)","v":""},{"$f":"IF('1. Order'!K1469=\"\",\"\",'1. Order'!K1469)","v":""},{"$f":"IF('1. Order'!M1469=\"\",\"\",'1. Order'!M1469)","v":""},null,null,{"$f":"'1. Order'!AW1469","v":0},{"$f":"IF('1. Order'!AE1469=\"\",\"\",'1. Order'!AE1469)","v":""}]
[{"$f":"IF('1. Order'!B1470=\"\",\"\",'1. Order'!B1470)","v":""},{"$f":"IF('1. Order'!I1470=\"\",\"\",'1. Order'!I1470)","v":""},{"$f":"IF('1. Order'!J1470=\"\",\"\",'1. Order'!J1470)","v":""},{"$f":"IF('1. Order'!K1470=\"\",\"\",'1. Order'!K1470)","v":""},{"$f":"IF('1. Order'!M1470=\"\",\"\",'1. Order'!M1470)","v":""},null,null,{"$f":"'1. Order'!AW1470","v":0},{"$f":"IF('1. Order'!AE1470=\"\",\"\",'1. Order'!AE1470)","v":""}]
[{"$f":"IF('1. Order'!B1471=\"\",\"\",'1. Order'!B1471)","v":""},{"$f":"IF('1. Order'!I1471=\"\",\"\",'1. Order'!I1471)","v":""},{"$f":"IF('1. Order'!J1471=\"\",\"\",'1. Order'!J1471)","v":""},{"$f":"IF('1. Order'!K1471=\"\",\"\",'1. Order'!K1471)","v":""},{"$f":"IF('1. Order'!M1471=\"\",\"\",'1. Order'!M1471)","v":""},null,null,{"$f":"'1. Order'!AW1471","v":0},{"$f":"IF('1. Order'!AE1471=\"\",\"\",'1. Order'!AE1471)","v":""}]
[{"$f":"IF('1. Order'!B1472=\"\",\"\",'1. Order'!B1472)","v":""},{"$f":"IF('1. Order'!I1472=\"\",\"\",'1. Order'!I1472)","v":""},{"$f":"IF('1. Order'!J1472=\"\",\"\",'1. Order'!J1472)","v":""},{"$f":"IF('1. Order'!K1472=\"\",\"\",'1. Order'!K1472)","v":""},{"$f":"IF('1. Order'!M1472=\"\",\"\",'1. Order'!M1472)","v":""},null,null,{"$f":"'1. Order'!AW1472","v":0},{"$f":"IF('1. Order'!AE1472=\"\",\"\",'1. Order'!AE1472)","v":""}]
[{"$f":"IF('1. Order'!B1473=\"\",\"\",'1. Order'!B1473)","v":""},{"$f":"IF('1. Order'!I1473=\"\",\"\",'1. Order'!I1473)","v":""},{"$f":"IF('1. Order'!J1473=\"\",\"\",'1. Order'!J1473)","v":""},{"$f":"IF('1. Order'!K1473=\"\",\"\",'1. Order'!K1473)","v":""},{"$f":"IF('1. Order'!M1473=\"\",\"\",'1. Order'!M1473)","v":""},null,null,{"$f":"'1. Order'!AW1473","v":0},{"$f":"IF('1. Order'!AE1473=\"\",\"\",'1. Order'!AE1473)","v":""}]
[{"$f":"IF('1. Order'!B1474=\"\",\"\",'1. Order'!B1474)","v":""},{"$f":"IF('1. Order'!I1474=\"\",\"\",'1. Order'!I1474)","v":""},{"$f":"IF('1. Order'!J1474=\"\",\"\",'1. Order'!J1474)","v":""},{"$f":"IF('1. Order'!K1474=\"\",\"\",'1. Order'!K1474)","v":""},{"$f":"IF('1. Order'!M1474=\"\",\"\",'1. Order'!M1474)","v":""},null,null,{"$f":"'1. Order'!AW1474","v":0},{"$f":"IF('1. Order'!AE1474=\"\",\"\",'1. Order'!AE1474)","v":""}]
[{"$f":"IF('1. Order'!B1475=\"\",\"\",'1. Order'!B1475)","v":""},{"$f":"IF('1. Order'!I1475=\"\",\"\",'1. Order'!I1475)","v":""},{"$f":"IF('1. Order'!J1475=\"\",\"\",'1. Order'!J1475)","v":""},{"$f":"IF('1. Order'!K1475=\"\",\"\",'1. Order'!K1475)","v":""},{"$f":"IF('1. Order'!M1475=\"\",\"\",'1. Order'!M1475)","v":""},null,null,{"$f":"'1. Order'!AW1475","v":0},{"$f":"IF('1. Order'!AE1475=\"\",\"\",'1. Order'!AE1475)","v":""}]
[{"$f":"IF('1. Order'!B1476=\"\",\"\",'1. Order'!B1476)","v":""},{"$f":"IF('1. Order'!I1476=\"\",\"\",'1. Order'!I1476)","v":""},{"$f":"IF('1. Order'!J1476=\"\",\"\",'1. Order'!J1476)","v":""},{"$f":"IF('1. Order'!K1476=\"\",\"\",'1. Order'!K1476)","v":""},{"$f":"IF('1. Order'!M1476=\"\",\"\",'1. Order'!M1476)","v":""},null,null,{"$f":"'1. Order'!AW1476","v":0},{"$f":"IF('1. Order'!AE1476=\"\",\"\",'1. Order'!AE1476)","v":""}]
[{"$f":"IF('1. Order'!B1477=\"\",\"\",'1. Order'!B1477)","v":""},{"$f":"IF('1. Order'!I1477=\"\",\"\",'1. Order'!I1477)","v":""},{"$f":"IF('1. Order'!J1477=\"\",\"\",'1. Order'!J1477)","v":""},{"$f":"IF('1. Order'!K1477=\"\",\"\",'1. Order'!K1477)","v":""},{"$f":"IF('1. Order'!M1477=\"\",\"\",'1. Order'!M1477)","v":""},null,null,{"$f":"'1. Order'!AW1477","v":0},{"$f":"IF('1. Order'!AE1477=\"\",\"\",'1. Order'!AE1477)","v":""}]
[{"$f":"IF('1. Order'!B1478=\"\",\"\",'1. Order'!B1478)","v":""},{"$f":"IF('1. Order'!I1478=\"\",\"\",'1. Order'!I1478)","v":""},{"$f":"IF('1. Order'!J1478=\"\",\"\",'1. Order'!J1478)","v":""},{"$f":"IF('1. Order'!K1478=\"\",\"\",'1. Order'!K1478)","v":""},{"$f":"IF('1. Order'!M1478=\"\",\"\",'1. Order'!M1478)","v":""},null,null,{"$f":"'1. Order'!AW1478","v":0},{"$f":"IF('1. Order'!AE1478=\"\",\"\",'1. Order'!AE1478)","v":""}]
[{"$f":"IF('1. Order'!B1479=\"\",\"\",'1. Order'!B1479)","v":""},{"$f":"IF('1. Order'!I1479=\"\",\"\",'1. Order'!I1479)","v":""},{"$f":"IF('1. Order'!J1479=\"\",\"\",'1. Order'!J1479)","v":""},{"$f":"IF('1. Order'!K1479=\"\",\"\",'1. Order'!K1479)","v":""},{"$f":"IF('1. Order'!M1479=\"\",\"\",'1. Order'!M1479)","v":""},null,null,{"$f":"'1. Order'!AW1479","v":0},{"$f":"IF('1. Order'!AE1479=\"\",\"\",'1. Order'!AE1479)","v":""}]
[{"$f":"IF('1. Order'!B1480=\"\",\"\",'1. Order'!B1480)","v":""},{"$f":"IF('1. Order'!I1480=\"\",\"\",'1. Order'!I1480)","v":""},{"$f":"IF('1. Order'!J1480=\"\",\"\",'1. Order'!J1480)","v":""},{"$f":"IF('1. Order'!K1480=\"\",\"\",'1. Order'!K1480)","v":""},{"$f":"IF('1. Order'!M1480=\"\",\"\",'1. Order'!M1480)","v":""},null,null,{"$f":"'1. Order'!AW1480","v":0},{"$f":"IF('1. Order'!AE1480=\"\",\"\",'1. Order'!AE1480)","v":""}]
[{"$f":"IF('1. Order'!B1481=\"\",\"\",'1. Order'!B1481)","v":""},{"$f":"IF('1. Order'!I1481=\"\",\"\",'1. Order'!I1481)","v":""},{"$f":"IF('1. Order'!J1481=\"\",\"\",'1. Order'!J1481)","v":""},{"$f":"IF('1. Order'!K1481=\"\",\"\",'1. Order'!K1481)","v":""},{"$f":"IF('1. Order'!M1481=\"\",\"\",'1. Order'!M1481)","v":""},null,null,{"$f":"'1. Order'!AW1481","v":0},{"$f":"IF('1. Order'!AE1481=\"\",\"\",'1. Order'!AE1481)","v":""}]
[{"$f":"IF('1. Order'!B1482=\"\",\"\",'1. Order'!B1482)","v":""},{"$f":"IF('1. Order'!I1482=\"\",\"\",'1. Order'!I1482)","v":""},{"$f":"IF('1. Order'!J1482=\"\",\"\",'1. Order'!J1482)","v":""},{"$f":"IF('1. Order'!K1482=\"\",\"\",'1. Order'!K1482)","v":""},{"$f":"IF('1. Order'!M1482=\"\",\"\",'1. Order'!M1482)","v":""},null,null,{"$f":"'1. Order'!AW1482","v":0},{"$f":"IF('1. Order'!AE1482=\"\",\"\",'1. Order'!AE1482)","v":""}]
[{"$f":"IF('1. Order'!B1483=\"\",\"\",'1. Order'!B1483)","v":""},{"$f":"IF('1. Order'!I1483=\"\",\"\",'1. Order'!I1483)","v":""},{"$f":"IF('1. Order'!J1483=\"\",\"\",'1. Order'!J1483)","v":""},{"$f":"IF('1. Order'!K1483=\"\",\"\",'1. Order'!K1483)","v":""},{"$f":"IF('1. Order'!M1483=\"\",\"\",'1. Order'!M1483)","v":""},null,null,{"$f":"'1. Order'!AW1483","v":0},{"$f":"IF('1. Order'!AE1483=\"\",\"\",'1. Order'!AE1483)","v":""}]
[{"$f":"IF('1. Order'!B1484=\"\",\"\",'1. Order'!B1484)","v":""},{"$f":"IF('1. Order'!I1484=\"\",\"\",'1. Order'!I1484)","v":""},{"$f":"IF('1. Order'!J1484=\"\",\"\",'1. Order'!J1484)","v":""},{"$f":"IF('1. Order'!K1484=\"\",\"\",'1. Order'!K1484)","v":""},{"$f":"IF('1. Order'!M1484=\"\",\"\",'1. Order'!M1484)","v":""},null,null,{"$f":"'1. Order'!AW1484","v":0},{"$f":"IF('1. Order'!AE1484=\"\",\"\",'1. Order'!AE1484)","v":""}]
[{"$f":"IF('1. Order'!B1485=\"\",\"\",'1. Order'!B1485)","v":""},{"$f":"IF('1. Order'!I1485=\"\",\"\",'1. Order'!I1485)","v":""},{"$f":"IF('1. Order'!J1485=\"\",\"\",'1. Order'!J1485)","v":""},{"$f":"IF('1. Order'!K1485=\"\",\"\",'1. Order'!K1485)","v":""},{"$f":"IF('1. Order'!M1485=\"\",\"\",'1. Order'!M1485)","v":""},null,null,{"$f":"'1. Order'!AW1485","v":0},{"$f":"IF('1. Order'!AE1485=\"\",\"\",'1. Order'!AE1485)","v":""}]
[{"$f":"IF('1. Order'!B1486=\"\",\"\",'1. Order'!B1486)","v":""},{"$f":"IF('1. Order'!I1486=\"\",\"\",'1. Order'!I1486)","v":""},{"$f":"IF('1. Order'!J1486=\"\",\"\",'1. Order'!J1486)","v":""},{"$f":"IF('1. Order'!K1486=\"\",\"\",'1. Order'!K1486)","v":""},{"$f":"IF('1. Order'!M1486=\"\",\"\",'1. Order'!M1486)","v":""},null,null,{"$f":"'1. Order'!AW1486","v":0},{"$f":"IF('1. Order'!AE1486=\"\",\"\",'1. Order'!AE1486)","v":""}]
[{"$f":"IF('1. Order'!B1487=\"\",\"\",'1. Order'!B1487)","v":""},{"$f":"IF('1. Order'!I1487=\"\",\"\",'1. Order'!I1487)","v":""},{"$f":"IF('1. Order'!J1487=\"\",\"\",'1. Order'!J1487)","v":""},{"$f":"IF('1. Order'!K1487=\"\",\"\",'1. Order'!K1487)","v":""},{"$f":"IF('1. Order'!M1487=\"\",\"\",'1. Order'!M1487)","v":""},null,null,{"$f":"'1. Order'!AW1487","v":0},{"$f":"IF('1. Order'!AE1487=\"\",\"\",'1. Order'!AE1487)","v":""}]
[{"$f":"IF('1. Order'!B1488=\"\",\"\",'1. Order'!B1488)","v":""},{"$f":"IF('1. Order'!I1488=\"\",\"\",'1. Order'!I1488)","v":""},{"$f":"IF('1. Order'!J1488=\"\",\"\",'1. Order'!J1488)","v":""},{"$f":"IF('1. Order'!K1488=\"\",\"\",'1. Order'!K1488)","v":""},{"$f":"IF('1. Order'!M1488=\"\",\"\",'1. Order'!M1488)","v":""},null,null,{"$f":"'1. Order'!AW1488","v":0},{"$f":"IF('1. Order'!AE1488=\"\",\"\",'1. Order'!AE1488)","v":""}]
[{"$f":"IF('1. Order'!B1489=\"\",\"\",'1. Order'!B1489)","v":""},{"$f":"IF('1. Order'!I1489=\"\",\"\",'1. Order'!I1489)","v":""},{"$f":"IF('1. Order'!J1489=\"\",\"\",'1. Order'!J1489)","v":""},{"$f":"IF('1. Order'!K1489=\"\",\"\",'1. Order'!K1489)","v":""},{"$f":"IF('1. Order'!M1489=\"\",\"\",'1. Order'!M1489)","v":""},null,null,{"$f":"'1. Order'!AW1489","v":0},{"$f":"IF('1. Order'!AE1489=\"\",\"\",'1. Order'!AE1489)","v":""}]
[{"$f":"IF('1. Order'!B1490=\"\",\"\",'1. Order'!B1490)","v":""},{"$f":"IF('1. Order'!I1490=\"\",\"\",'1. Order'!I1490)","v":""},{"$f":"IF('1. Order'!J1490=\"\",\"\",'1. Order'!J1490)","v":""},{"$f":"IF('1. Order'!K1490=\"\",\"\",'1. Order'!K1490)","v":""},{"$f":"IF('1. Order'!M1490=\"\",\"\",'1. Order'!M1490)","v":""},null,null,{"$f":"'1. Order'!AW1490","v":0},{"$f":"IF('1. Order'!AE1490=\"\",\"\",'1. Order'!AE1490)","v":""}]
[{"$f":"IF('1. Order'!B1491=\"\",\"\",'1. Order'!B1491)","v":""},{"$f":"IF('1. Order'!I1491=\"\",\"\",'1. Order'!I1491)","v":""},{"$f":"IF('1. Order'!J1491=\"\",\"\",'1. Order'!J1491)","v":""},{"$f":"IF('1. Order'!K1491=\"\",\"\",'1. Order'!K1491)","v":""},{"$f":"IF('1. Order'!M1491=\"\",\"\",'1. Order'!M1491)","v":""},null,null,{"$f":"'1. Order'!AW1491","v":0},{"$f":"IF('1. Order'!AE1491=\"\",\"\",'1. Order'!AE1491)","v":""}]
[{"$f":"IF('1. Order'!B1492=\"\",\"\",'1. Order'!B1492)","v":""},{"$f":"IF('1. Order'!I1492=\"\",\"\",'1. Order'!I1492)","v":""},{"$f":"IF('1. Order'!J1492=\"\",\"\",'1. Order'!J1492)","v":""},{"$f":"IF('1. Order'!K1492=\"\",\"\",'1. Order'!K1492)","v":""},{"$f":"IF('1. Order'!M1492=\"\",\"\",'1. Order'!M1492)","v":""},null,null,{"$f":"'1. Order'!AW1492","v":0},{"$f":"IF('1. Order'!AE1492=\"\",\"\",'1. Order'!AE1492)","v":""}]
[{"$f":"IF('1. Order'!B1493=\"\",\"\",'1. Order'!B1493)","v":""},{"$f":"IF('1. Order'!I1493=\"\",\"\",'1. Order'!I1493)","v":""},{"$f":"IF('1. Order'!J1493=\"\",\"\",'1. Order'!J1493)","v":""},{"$f":"IF('1. Order'!K1493=\"\",\"\",'1. Order'!K1493)","v":""},{"$f":"IF('1. Order'!M1493=\"\",\"\",'1. Order'!M1493)","v":""},null,null,{"$f":"'1. Order'!AW1493","v":0},{"$f":"IF('1. Order'!AE1493=\"\",\"\",'1. Order'!AE1493)","v":""}]
[{"$f":"IF('1. Order'!B1494=\"\",\"\",'1. Order'!B1494)","v":""},{"$f":"IF('1. Order'!I1494=\"\",\"\",'1. Order'!I1494)","v":""},{"$f":"IF('1. Order'!J1494=\"\",\"\",'1. Order'!J1494)","v":""},{"$f":"IF('1. Order'!K1494=\"\",\"\",'1. Order'!K1494)","v":""},{"$f":"IF('1. Order'!M1494=\"\",\"\",'1. Order'!M1494)","v":""},null,null,{"$f":"'1. Order'!AW1494","v":0},{"$f":"IF('1. Order'!AE1494=\"\",\"\",'1. Order'!AE1494)","v":""}]
[{"$f":"IF('1. Order'!B1495=\"\",\"\",'1. Order'!B1495)","v":""},{"$f":"IF('1. Order'!I1495=\"\",\"\",'1. Order'!I1495)","v":""},{"$f":"IF('1. Order'!J1495=\"\",\"\",'1. Order'!J1495)","v":""},{"$f":"IF('1. Order'!K1495=\"\",\"\",'1. Order'!K1495)","v":""},{"$f":"IF('1. Order'!M1495=\"\",\"\",'1. Order'!M1495)","v":""},null,null,{"$f":"'1. Order'!AW1495","v":0},{"$f":"IF('1. Order'!AE1495=\"\",\"\",'1. Order'!AE1495)","v":""}]
[{"$f":"IF('1. Order'!B1496=\"\",\"\",'1. Order'!B1496)","v":""},{"$f":"IF('1. Order'!I1496=\"\",\"\",'1. Order'!I1496)","v":""},{"$f":"IF('1. Order'!J1496=\"\",\"\",'1. Order'!J1496)","v":""},{"$f":"IF('1. Order'!K1496=\"\",\"\",'1. Order'!K1496)","v":""},{"$f":"IF('1. Order'!M1496=\"\",\"\",'1. Order'!M1496)","v":""},null,null,{"$f":"'1. Order'!AW1496","v":0},{"$f":"IF('1. Order'!AE1496=\"\",\"\",'1. Order'!AE1496)","v":""}]
[{"$f":"IF('1. Order'!B1497=\"\",\"\",'1. Order'!B1497)","v":""},{"$f":"IF('1. Order'!I1497=\"\",\"\",'1. Order'!I1497)","v":""},{"$f":"IF('1. Order'!J1497=\"\",\"\",'1. Order'!J1497)","v":""},{"$f":"IF('1. Order'!K1497=\"\",\"\",'1. Order'!K1497)","v":""},{"$f":"IF('1. Order'!M1497=\"\",\"\",'1. Order'!M1497)","v":""},null,null,{"$f":"'1. Order'!AW1497","v":0},{"$f":"IF('1. Order'!AE1497=\"\",\"\",'1. Order'!AE1497)","v":""}]
[{"$f":"IF('1. Order'!B1498=\"\",\"\",'1. Order'!B1498)","v":""},{"$f":"IF('1. Order'!I1498=\"\",\"\",'1. Order'!I1498)","v":""},{"$f":"IF('1. Order'!J1498=\"\",\"\",'1. Order'!J1498)","v":""},{"$f":"IF('1. Order'!K1498=\"\",\"\",'1. Order'!K1498)","v":""},{"$f":"IF('1. Order'!M1498=\"\",\"\",'1. Order'!M1498)","v":""},null,null,{"$f":"'1. Order'!AW1498","v":0},{"$f":"IF('1. Order'!AE1498=\"\",\"\",'1. Order'!AE1498)","v":""}]
[{"$f":"IF('1. Order'!B1499=\"\",\"\",'1. Order'!B1499)","v":""},{"$f":"IF('1. Order'!I1499=\"\",\"\",'1. Order'!I1499)","v":""},{"$f":"IF('1. Order'!J1499=\"\",\"\",'1. Order'!J1499)","v":""},{"$f":"IF('1. Order'!K1499=\"\",\"\",'1. Order'!K1499)","v":""},{"$f":"IF('1. Order'!M1499=\"\",\"\",'1. Order'!M1499)","v":""},null,null,{"$f":"'1. Order'!AW1499","v":0},{"$f":"IF('1. Order'!AE1499=\"\",\"\",'1. Order'!AE1499)","v":""}]
[{"$f":"IF('1. Order'!B1500=\"\",\"\",'1. Order'!B1500)","v":""},{"$f":"IF('1. Order'!I1500=\"\",\"\",'1. Order'!I1500)","v":""},{"$f":"IF('1. Order'!J1500=\"\",\"\",'1. Order'!J1500)","v":""},{"$f":"IF('1. Order'!K1500=\"\",\"\",'1. Order'!K1500)","v":""},{"$f":"IF('1. Order'!M1500=\"\",\"\",'1. Order'!M1500)","v":""},null,null,{"$f":"'1. Order'!AW1500","v":0},{"$f":"IF('1. Order'!AE1500=\"\",\"\",'1. Order'!AE1500)","v":""}]
[{"$f":"IF('1. Order'!B1501=\"\",\"\",'1. Order'!B1501)","v":""},{"$f":"IF('1. Order'!I1501=\"\",\"\",'1. Order'!I1501)","v":""},{"$f":"IF('1. Order'!J1501=\"\",\"\",'1. Order'!J1501)","v":""},{"$f":"IF('1. Order'!K1501=\"\",\"\",'1. Order'!K1501)","v":""},{"$f":"IF('1. Order'!M1501=\"\",\"\",'1. Order'!M1501)","v":""},null,null,{"$f":"'1. Order'!AW1501","v":0},{"$f":"IF('1. Order'!AE1501=\"\",\"\",'1. Order'!AE1501)","v":""}]
[{"$f":"IF('1. Order'!B1502=\"\",\"\",'1. Order'!B1502)","v":""},{"$f":"IF('1. Order'!I1502=\"\",\"\",'1. Order'!I1502)","v":""},{"$f":"IF('1. Order'!J1502=\"\",\"\",'1. Order'!J1502)","v":""},{"$f":"IF('1. Order'!K1502=\"\",\"\",'1. Order'!K1502)","v":""},{"$f":"IF('1. Order'!M1502=\"\",\"\",'1. Order'!M1502)","v":""},null,null,{"$f":"'1. Order'!AW1502","v":0},{"$f":"IF('1. Order'!AE1502=\"\",\"\",'1. Order'!AE1502)","v":""}]
[{"$f":"IF('1. Order'!B1503=\"\",\"\",'1. Order'!B1503)","v":""},{"$f":"IF('1. Order'!I1503=\"\",\"\",'1. Order'!I1503)","v":""},{"$f":"IF('1. Order'!J1503=\"\",\"\",'1. Order'!J1503)","v":""},{"$f":"IF('1. Order'!K1503=\"\",\"\",'1. Order'!K1503)","v":""},{"$f":"IF('1. Order'!M1503=\"\",\"\",'1. Order'!M1503)","v":""},null,null,{"$f":"'1. Order'!AW1503","v":0},{"$f":"IF('1. Order'!AE1503=\"\",\"\",'1. Order'!AE1503)","v":""}]

{"sheet":"Article Onboarding","index":4,"n_rows":1500,"n_cols":39,"rows_kept":1500,"cut":false,"hidden":true,"merged":[]}
["Leverancier","Merk (volgens PIM)","Merklijn (volgens PIM)","Stijl nr","Inkooptekst","Leverancierskleur (max. 50 posities)","Darwin mover class (volgens PIM)","?","Omschrijving","Categorie","Taxon","Bestelmaat leverancier","Presentatiemaat ","Magazijnmaat (3 cijferig)","Veelvoud","MOQ","Valuta inkoopprijs","Inkoopprijs","Consumenten verkoopprijs","Oorspronkelijke verkoopprijs",null,"CustomCode","ProductWeightSize","Battery","BatteryType","BatteryWeight","BatteryButtonCell","PlugAvailable","Gewicht gram","Inkoopdoorlooptijd","Inkopersgroep","Supplychain planner",null,"OMID code","Opslagzone","LIG-code","Verzendkosten","Verzendmethode"]
["AX leveranciersnummer","Merk","Merklijn","Leveranciers artikelnummer","AX Inkooptekst","Inkoopkleur","DarwinMoverClass","EAN","AX Naam","Artikelgroep code","Taxon","SizeSupplier","SizeDescription","SizeWehkamp","QtyLowest","QtyMultiples","CurrencyCodePurchasePrice","PriceCAP","CVP","OVP","Scratchprice","CustomCode","ProductWeightSize","Battery","BatteryType","BatteryWeight","BatteryButtonCell","PlugAvailable","NetWeight","PurchaseLeadTime","BuyerGroup","SupplyChainPlanner","SalesSegment","OMID","StoreZone","LogisticItemGroup","ShippingCosts","WKShippingMethod","PreferredWarehouseIdentificationCode"]
[{"$f":"IF('1. Order'!F6=\"\",\"\",'1. Order'!F6)","v":""},{"$f":"IF('1. Order'!G6=\"\",\"\",'1. Order'!G6)","v":""},{"$f":"IF('1. Order'!H6=\"\",\"\",'1. Order'!H6)","v":""},{"$f":"IF('1. Order'!I6=\"\",\"\",'1. Order'!I6)","v":""},{"$f":"IF('1. Order'!J6=\"\",\"\",'1. Order'!J6)","v":""},{"$f":"IF('1. Order'!K6=\"\",\"\",'1. Order'!K6)","v":""},{"$f":"IF('1. Order'!L6=\"\",\"\",'1. Order'!L6)","v":""},{"$f":"IF('1. Order'!M6=\"\",\"\",'1. Order'!M6)","v":""},{"$f":"IF('1. Order'!N6=\"\",\"\",'1. Order'!N6)","v":""},{"$f":"IF('1. Order'!O6=\"\",\"\",'1. Order'!O6)","v":{"$error":"#N/A"}},{"$f":"IF('1. Order'!P6=\"\",\"\",'1. Order'!P6)","v":{"$error":"#N/A"}},{"$f":"IF('1. Order'!Q6=\"\",\"\",'1. Order'!Q6)","v":""},{"$f":"IF('1. Order'!R6=\"\",\"\",'1. Order'!R6)","v":""},{"$f":"IF('1. Order'!S6=\"\",\"\",'1. Order'!S6)","v":""},{"$f":"IF('1. Order'!V6=\"\",\"\",'1. Order'!V6)","v":""},{"$f":"IF('1. Order'!W6=\"\",\"\",'1. Order'!W6)","v":""},{"$f":"IF('1. Order'!X6=\"\",\"\",'1. Order'!X6)","v":"EUR"},{"$f":"IF('1. Order'!Y6=\"\",\"\",'1. Order'!Y6)","v":""},{"$f":"IF('1. Order'!Z6=\"\",\"\",'1. Order'!Z6)","v":""},{"$f":"IF('1. Order'!AA6=\"\",\"\",'1. Order'!AA6)","v":""},null,{"$f":"IF('1. Order'!AS6=\"\",\"\",'1. Order'!AS6)","v":""},{"$f":"IF('1. Order'!AT6=\"\",\"\",'1. Order'!AT6)","v":""},null,null,null,null,null,null,null,{"$f":"IF('1. Order'!AX6=\"\",\"\",'1. Order'!AX6)","v":""},{"$f":"IF('1. Order'!AY6=\"\",\"\",'1. Order'!AY6)","v":""},{"$f":"IF('1. Order'!AZ6=\"\",\"\",'1. Order'!AZ6)","v":""},{"$f":"IF('1. Order'!BA6=\"\",\"\",'1. Order'!BA6)","v":""},{"$f":"IF('1. Order'!BC6=\"\",\"\",'1. Order'!BC6)","v":""},{"$f":"IF('1. Order'!BD6=\"\",\"\",'1. Order'!BD6)","v":6},{"$f":"IF('1. Order'!BE6=\"\",\"\",'1. Order'!BE6)","v":"None"},{"$f":"IF('1. Order'!BF6=\"\",\"\",'1. Order'!BF6)","v":"Parcel"},{"$f":"IF('1. Order'!BG6=\"\",\"\",'1. Order'!BG6)","v":"ZWO"}]
[{"$f":"IF('1. Order'!F7=\"\",\"\",'1. Order'!F7)","v":""},{"$f":"IF('1. Order'!G7=\"\",\"\",'1. Order'!G7)","v":""},{"$f":"IF('1. Order'!H7=\"\",\"\",'1. Order'!H7)","v":""},{"$f":"IF('1. Order'!I7=\"\",\"\",'1. Order'!I7)","v":""},{"$f":"IF('1. Order'!J7=\"\",\"\",'1. Order'!J7)","v":""},{"$f":"IF('1. Order'!K7=\"\",\"\",'1. Order'!K7)","v":""},{"$f":"IF('1. Order'!L7=\"\",\"\",'1. Order'!L7)","v":""},{"$f":"IF('1. Order'!M7=\"\",\"\",'1. Order'!M7)","v":""},{"$f":"IF('1. Order'!N7=\"\",\"\",'1. Order'!N7)","v":""},{"$f":"IF('1. Order'!O7=\"\",\"\",'1. Order'!O7)","v":{"$error":"#N/A"}},{"$f":"IF('1. Order'!P7=\"\",\"\",'1. Order'!P7)","v":{"$error":"#N/A"}},{"$f":"IF('1. Order'!Q7=\"\",\"\",'1. Order'!Q7)","v":""},{"$f":"IF('1. Order'!R7=\"\",\"\",'1. Order'!R7)","v":""},{"$f":"IF('1. Order'!S7=\"\",\"\",'1. Order'!S7)","v":""},{"$f":"IF('1. Order'!V7=\"\",\"\",'1. Order'!V7)","v":""},{"$f":"IF('1. Order'!W7=\"\",\"\",'1. Order'!W7)","v":""},{"$f":"IF('1. Order'!X7=\"\",\"\",'1. Order'!X7)","v":"EUR"},{"$f":"IF('1. Order'!Y7=\"\",\"\",'1. Order'!Y7)","v":""},{"$f":"IF('1. Order'!Z7=\"\",\"\",'1. Order'!Z7)","v":""},{"$f":"IF('1. Order'!AA7=\"\",\"\",'1. Order'!AA7)","v":""},null,{"$f":"IF('1. Order'!AS7=\"\",\"\",'1. Order'!AS7)","v":""},{"$f":"IF('1. Order'!AT7=\"\",\"\",'1. Order'!AT7)","v":""},null,null,null,null,null,null,null,{"$f":"IF('1. Order'!AX7=\"\",\"\",'1. Order'!AX7)","v":""},{"$f":"IF('1. Order'!AY7=\"\",\"\",'1. Order'!AY7)","v":""},{"$f":"IF('1. Order'!AZ7=\"\",\"\",'1. Order'!AZ7)","v":""},{"$f":"IF('1. Order'!BA7=\"\",\"\",'1. Order'!BA7)","v":""},{"$f":"IF('1. Order'!BC7=\"\",\"\",'1. Order'!BC7)","v":""},{"$f":"IF('1. Order'!BD7=\"\",\"\",'1. Order'!BD7)","v":6},{"$f":"IF('1. Order'!BE7=\"\",\"\",'1. Order'!BE7)","v":"None"},{"$f":"IF('1. Order'!BF7=\"\",\"\",'1. Order'!BF7)","v":"Parcel"},{"$f":"IF('1. Order'!BG7=\"\",\"\",'1. Order'!BG7)","v":"ZWO"}]
[{"$f":"IF('1. Order'!F8=\"\",\"\",'1. Order'!F8)","v":""},{"$f":"IF('1. Order'!G8=\"\",\"\",'1. Order'!G8)","v":""},{"$f":"IF('1. Order'!H8=\"\",\"\",'1. Order'!H8)","v":""},{"$f":"IF('1. Order'!I8=\"\",\"\",'1. Order'!I8)","v":""},{"$f":"IF('1. Order'!J8=\"\",\"\",'1. Order'!J8)","v":""},{"$f":"IF('1. Order'!K8=\"\",\"\",'1. Order'!K8)","v":""},{"$f":"IF('1. Order'!L8=\"\",\"\",'1. Order'!L8)","v":""},{"$f":"IF('1. Order'!M8=\"\",\"\",'1. Order'!M8)","v":""},{"$f":"IF('1. Order'!N8=\"\",\"\",'1. Order'!N8)","v":""},{"$f":"IF('1. Order'!O8=\"\",\"\",'1. Order'!O8)","v":{"$error":"#N/A"}},{"$f":"IF('1. Order'!P8=\"\",\"\",'1. Order'!P8)","v":{"$error":"#N/A"}},{"$f":"IF('1. Order'!Q8=\"\",\"\",'1. Order'!Q8)","v":""},{"$f":"IF('1. Order'!R8=\"\",\"\",'1. Order'!R8)","v":""},{"$f":"IF('1. Order'!S8=\"\",\"\",'1. Order'!S8)","v":""},{"$f":"IF('1. Order'!V8=\"\",\"\",'1. Order'!V8)","v":""},{"$f":"IF('1. Order'!W8=\"\",\"\",'1. Order'!W8)","v":""},{"$f":"IF('1. Order'!X8=\"\",\"\",'1. Order'!X8)","v":"EUR"},{"$f":"IF('1. Order'!Y8=\"\",\"\",'1. Order'!Y8)","v":""},{"$f":"IF('1. Order'!Z8=\"\",\"\",'1. Order'!Z8)","v":""},{"$f":"IF('1. Order'!AA8=\"\",\"\",'1. Order'!AA8)","v":""},null,{"$f":"IF('1. Order'!AS8=\"\",\"\",'1. Order'!AS8)","v":""},{"$f":"IF('1. Order'!AT8=\"\",\"\",'1. Order'!AT8)","v":""},null,null,null,null,null,null,null,{"$f":"IF('1. Order'!AX8=\"\",\"\",'1. Order'!AX8)","v":""},{"$f":"IF('1. Order'!AY8=\"\",\"\",'1. Order'!AY8)","v":""},{"$f":"IF('1. Order'!AZ8=\"\",\"\",'1. Order'!AZ8)","v":""},{"$f":"IF('1. Order'!BA8=\"\",\"\",'1. Order'!BA8)","v":""},{"$f":"IF('1. Order'!BC8=\"\",\"\",'1. Order'!BC8)","v":""},{"$f":"IF('1. Order'!BD8=\"\",\"\",'1. Order'!BD8)","v":6},{"$f":"IF('1. Order'!BE8=\"\",\"\",'1. Order'!BE8)","v":"None"},{"$f":"IF('1. Order'!BF8=\"\",\"\",'1. Order'!BF8)","v":"Parcel"},{"$f":"IF('1. Order'!BG8=\"\",\"\",'1. Order'!BG8)","v":"ZWO"}]
[{"$f":"IF('1. Order'!F9=\"\",\"\",'1. Order'!F9)","v":""},{"$f":"IF('1. Order'!G9=\"\",\"\",'1. Order'!G9)","v":""},{"$f":"IF('1. Order'!H9=\"\",\"\",'1. Order'!H9)","v":""},{"$f":"IF('1. Order'!I9=\"\",\"\",'1. Order'!I9)","v":""},{"$f":"IF('1. Order'!J9=\"\",\"\",'1. Order'!J9)","v":""},{"$f":"IF('1. Order'!K9=\"\",\"\",'1. Order'!K9)","v":""},{"$f":"IF('1. Order'!L9=\"\",\"\",'1. Order'!L9)","v":""},{"$f":"IF('1. Order'!M9=\"\",\"\",'1. Order'!M9)","v":""},{"$f":"IF('1. Order'!N9=\"\",\"\",'1. Order'!N9)","v":""},{"$f":"IF('1. Order'!O9=\"\",\"\",'1. Order'!O9)","v":{"$error":"#N/A"}},{"$f":"IF('1. Order'!P9=\"\",\"\",'1. Order'!P9)","v":{"$error":"#N/A"}},{"$f":"IF('1. Order'!Q9=\"\",\"\",'1. Order'!Q9)","v":""},{"$f":"IF('1. Order'!R9=\"\",\"\",'1. Order'!R9)","v":""},{"$f":"IF('1. Order'!S9=\"\",\"\",'1. Order'!S9)","v":""},{"$f":"IF('1. Order'!V9=\"\",\"\",'1. Order'!V9)","v":""},{"$f":"IF('1. Order'!W9=\"\",\"\",'1. Order'!W9)","v":""},{"$f":"IF('1. Order'!X9=\"\",\"\",'1. Order'!X9)","v":"EUR"},{"$f":"IF('1. Order'!Y9=\"\",\"\",'1. Order'!Y9)","v":""},{"$f":"IF('1. Order'!Z9=\"\",\"\",'1. Order'!Z9)","v":""},{"$f":"IF('1. Order'!AA9=\"\",\"\",'1. Order'!AA9)","v":""},null,{"$f":"IF('1. Order'!AS9=\"\",\"\",'1. Order'!AS9)","v":""},{"$f":"IF('1. Order'!AT9=\"\",\"\",'1. Order'!AT9)","v":""},null,null,null,null,null,null,null,{"$f":"IF('1. Order'!AX9=\"\",\"\",'1. Order'!AX9)","v":""},{"$f":"IF('1. Order'!AY9=\"\",\"\",'1. Order'!AY9)","v":""},{"$f":"IF('1. Order'!AZ9=\"\",\"\",'1. Order'!AZ9)","v":""},{"$f":"IF('1. Order'!BA9=\"\",\"\",'1. Order'!BA9)","v":""},{"$f":"IF('1. Order'!BC9=\"\",\"\",'1. Order'!BC9)","v":""},{"$f":"IF('1. Order'!BD9=\"\",\"\",'1. Order'!BD9)","v":6},{"$f":"IF('1. Order'!BE9=\"\",\"\",'1. Order'!BE9)","v":"None"},{"$f":"IF('1. Order'!BF9=\"\",\"\",'1. Order'!BF9)","v":"Parcel"},{"$f":"IF('1. Order'!BG9=\"\",\"\",'1. Order'!BG9)","v":"ZWO"}]
[{"$f":"IF('1. Order'!F10=\"\",\"\",'1. Order'!F10)","v":""},{"$f":"IF('1. Order'!G10=\"\",\"\",'1. Order'!G10)","v":""},{"$f":"IF('1. Order'!H10=\"\",\"\",'1. Order'!H10)","v":""},{"$f":"IF('1. Order'!I10=\"\",\"\",'1. Order'!I10)","v":""},{"$f":"IF('1. Order'!J10=\"\",\"\",'1. Order'!J10)","v":""},{"$f":"IF('1. Order'!K10=\"\",\"\",'1. Order'!K10)","v":""},{"$f":"IF('1. Order'!L10=\"\",\"\",'1. Order'!L10)","v":""},{"$f":"IF('1. Order'!M10=\"\",\"\",'1. Order'!M10)","v":""},{"$f":"IF('1. Order'!N10=\"\",\"\",'1. Order'!N10)","v":""},{"$f":"IF('1. Order'!O10=\"\",\"\",'1. Order'!O10)","v":{"$error":"#N/A"}},{"$f":"IF('1. Order'!P10=\"\",\"\",'1. Order'!P10)","v":{"$error":"#N/A"}},{"$f":"IF('1. Order'!Q10=\"\",\"\",'1. Order'!Q10)","v":""},{"$f":"IF('1. Order'!R10=\"\",\"\",'1. Order'!R10)","v":""},{"$f":"IF('1. Order'!S10=\"\",\"\",'1. Order'!S10)","v":""},{"$f":"IF('1. Order'!V10=\"\",\"\",'1. Order'!V10)","v":""},{"$f":"IF('1. Order'!W10=\"\",\"\",'1. Order'!W10)","v":""},{"$f":"IF('1. Order'!X10=\"\",\"\",'1. Order'!X10)","v":"EUR"},{"$f":"IF('1. Order'!Y10=\"\",\"\",'1. Order'!Y10)","v":""},{"$f":"IF('1. Order'!Z10=\"\",\"\",'1. Order'!Z10)","v":""},{"$f":"IF('1. Order'!AA10=\"\",\"\",'1. Order'!AA10)","v":""},null,{"$f":"IF('1. Order'!AS10=\"\",\"\",'1. Order'!AS10)","v":""},{"$f":"IF('1. Order'!AT10=\"\",\"\",'1. Order'!AT10)","v":""},null,null,null,null,null,null,null,{"$f":"IF('1. Order'!AX10=\"\",\"\",'1. Order'!AX10)","v":""},{"$f":"IF('1. Order'!AY10=\"\",\"\",'1. Order'!AY10)","v":""},{"$f":"IF('1. Order'!AZ10=\"\",\"\",'1. Order'!AZ10)","v":""},{"$f":"IF('1. Order'!BA10=\"\",\"\",'1. Order'!BA10)","v":""},{"$f":"IF('1. Order'!BC10=\"\",\"\",'1. Order'!BC10)","v":""},{"$f":"IF('1. Order'!BD10=\"\",\"\",'1. Order'!BD10)","v":6},{"$f":"IF('1. Order'!BE10=\"\",\"\",'1. Order'!BE10)","v":"None"},{"$f":"IF('1. Order'!BF10=\"\",\"\",'1. Order'!BF10)","v":"Parcel"},{"$f":"IF('1. Order'!BG10=\"\",\"\",'1. Order'!BG10)","v":"ZWO"}]
[{"$f":"IF('1. Order'!F11=\"\",\"\",'1. Order'!F11)","v":""},{"$f":"IF('1. Order'!G11=\"\",\"\",'1. Order'!G11)","v":""},{"$f":"IF('1. Order'!H11=\"\",\"\",'1. Order'!H11)","v":""},{"$f":"IF('1. Order'!I11=\"\",\"\",'1. Order'!I11)","v":""},{"$f":"IF('1. Order'!J11=\"\",\"\",'1. Order'!J11)","v":""},{"$f":"IF('1. Order'!K11=\"\",\"\",'1. Order'!K11)","v":""},{"$f":"IF('1. Order'!L11=\"\",\"\",'1. Order'!L11)","v":""},{"$f":"IF('1. Order'!M11=\"\",\"\",'1. Order'!M11)","v":""},{"$f":"IF('1. Order'!N11=\"\",\"\",'1. Order'!N11)","v":""},{"$f":"IF('1. Order'!O11=\"\",\"\",'1. Order'!O11)","v":{"$error":"#N/A"}},{"$f":"IF('1. Order'!P11=\"\",\"\",'1. Order'!P11)","v":{"$error":"#N/A"}},{"$f":"IF('1. Order'!Q11=\"\",\"\",'1. Order'!Q11)","v":""},{"$f":"IF('1. Order'!R11=\"\",\"\",'1. Order'!R11)","v":""},{"$f":"IF('1. Order'!S11=\"\",\"\",'1. Order'!S11)","v":""},{"$f":"IF('1. Order'!V11=\"\",\"\",'1. Order'!V11)","v":""},{"$f":"IF('1. Order'!W11=\"\",\"\",'1. Order'!W11)","v":""},{"$f":"IF('1. Order'!X11=\"\",\"\",'1. Order'!X11)","v":"EUR"},{"$f":"IF('1. Order'!Y11=\"\",\"\",'1. Order'!Y11)","v":""},{"$f":"IF('1. Order'!Z11=\"\",\"\",'1. Order'!Z11)","v":""},{"$f":"IF('1. Order'!AA11=\"\",\"\",'1. Order'!AA11)","v":""},null,{"$f":"IF('1. Order'!AS11=\"\",\"\",'1. Order'!AS11)","v":""},{"$f":"IF('1. Order'!AT11=\"\",\"\",'1. Order'!AT11)","v":""},null,null,null,null,null,null,null,{"$f":"IF('1. Order'!AX11=\"\",\"\",'1. Order'!AX11)","v":""},{"$f":"IF('1. Order'!AY11=\"\",\"\",'1. Order'!AY11)","v":""},{"$f":"IF('1. Order'!AZ11=\"\",\"\",'1. Order'!AZ11)","v":""},{"$f":"IF('1. Order'!BA11=\"\",\"\",'1. Order'!BA11)","v":""},{"$f":"IF('1. Order'!BC11=\"\",\"\",'1. Order'!BC11)","v":""},{"$f":"IF('1. Order'!BD11=\"\",\"\",'1. Order'!BD11)","v":6},{"$f":"IF('1. Order'!BE11=\"\",\"\",'1. Order'!BE11)","v":"None"},{"$f":"IF('1. Order'!BF11=\"\",\"\",'1. Order'!BF11)","v":"Parcel"},{"$f":"IF('1. Order'!BG11=\"\",\"\",'1. Order'!BG11)","v":"ZWO"}]
[{"$f":"IF('1. Order'!F12=\"\",\"\",'1. Order'!F12)","v":""},{"$f":"IF('1. Order'!G12=\"\",\"\",'1. Order'!G12)","v":""},{"$f":"IF('1. Order'!H12=\"\",\"\",'1. Order'!H12)","v":""},{"$f":"IF('1. Order'!I12=\"\",\"\",'1. Order'!I12)","v":""},{"$f":"IF('1. Order'!J12=\"\",\"\",'1. Order'!J12)","v":""},{"$f":"IF('1. Order'!K12=\"\",\"\",'1. Order'!K12)","v":""},{"$f":"IF('1. Order'!L12=\"\",\"\",'1. Order'!L12)","v":""},{"$f":"IF('1. Order'!M12=\"\",\"\",'1. Order'!M12)","v":""},{"$f":"IF('1. Order'!N12=\"\",\"\",'1. Order'!N12)","v":""},{"$f":"IF('1. Order'!O12=\"\",\"\",'1. Order'!O12)","v":{"$error":"#N/A"}},{"$f":"IF('1. Order'!P12=\"\",\"\",'1. Order'!P12)","v":{"$error":"#N/A"}},{"$f":"IF('1. Order'!Q12=\"\",\"\",'1. Order'!Q12)","v":""},{"$f":"IF('1. Order'!R12=\"\",\"\",'1. Order'!R12)","v":""},{"$f":"IF('1. Order'!S12=\"\",\"\",'1. Order'!S12)","v":""},{"$f":"IF('1. Order'!V12=\"\",\"\",'1. Order'!V12)","v":""},{"$f":"IF('1. Order'!W12=\"\",\"\",'1. Order'!W12)","v":""},{"$f":"IF('1. Order'!X12=\"\",\"\",'1. Order'!X12)","v":"EUR"},{"$f":"IF('1. Order'!Y12=\"\",\"\",'1. Order'!Y12)","v":""},{"$f":"IF('1. Order'!Z12=\"\",\"\",'1. Order'!Z12)","v":""},{"$f":"IF('1. Order'!AA12=\"\",\"\",'1. Order'!AA12)","v":""},null,{"$f":"IF('1. Order'!AS12=\"\",\"\",'1. Order'!AS12)","v":""},{"$f":"IF('1. Order'!AT12=\"\",\"\",'1. Order'!AT12)","v":""},null,null,null,null,null,null,null,{"$f":"IF('1. Order'!AX12=\"\",\"\",'1. Order'!AX12)","v":""},{"$f":"IF('1. Order'!AY12=\"\",\"\",'1. Order'!AY12)","v":""},{"$f":"IF('1. Order'!AZ12=\"\",\"\",'1. Order'!AZ12)","v":""},{"$f":"IF('1. Order'!BA12=\"\",\"\",'1. Order'!BA12)","v":""},{"$f":"IF('1. Order'!BC12=\"\",\"\",'1. Order'!BC12)","v":""},{"$f":"IF('1. Order'!BD12=\"\",\"\",'1. Order'!BD12)","v":6},{"$f":"IF('1. Order'!BE12=\"\",\"\",'1. Order'!BE12)","v":"None"},{"$f":"IF('1. Order'!BF12=\"\",\"\",'1. Order'!BF12)","v":"Parcel"},{"$f":"IF('1. Order'!BG12=\"\",\"\",'1. Order'!BG12)","v":"ZWO"}]
[{"$f":"IF('1. Order'!F13=\"\",\"\",'1. Order'!F13)","v":""},{"$f":"IF('1. Order'!G13=\"\",\"\",'1. Order'!G13)","v":""},{"$f":"IF('1. Order'!H13=\"\",\"\",'1. Order'!H13)","v":""},{"$f":"IF('1. Order'!I13=\"\",\"\",'1. Order'!I13)","v":""},{"$f":"IF('1. Order'!J13=\"\",\"\",'1. Order'!J13)","v":""},{"$f":"IF('1. Order'!K13=\"\",\"\",'1. Order'!K13)","v":""},{"$f":"IF('1. Order'!L13=\"\",\"\",'1. Order'!L13)","v":""},{"$f":"IF('1. Order'!M13=\"\",\"\",'1. Order'!M13)","v":""},{"$f":"IF('1. Order'!N13=\"\",\"\",'1. Order'!N13)","v":""},{"$f":"IF('1. Order'!O13=\"\",\"\",'1. Order'!O13)","v":{"$error":"#N/A"}},{"$f":"IF('1. Order'!P13=\"\",\"\",'1. Order'!P13)","v":{"$error":"#N/A"}},{"$f":"IF('1. Order'!Q13=\"\",\"\",'1. Order'!Q13)","v":""},{"$f":"IF('1. Order'!R13=\"\",\"\",'1. Order'!R13)","v":""},{"$f":"IF('1. Order'!S13=\"\",\"\",'1. Order'!S13)","v":""},{"$f":"IF('1. Order'!V13=\"\",\"\",'1. Order'!V13)","v":""},{"$f":"IF('1. Order'!W13=\"\",\"\",'1. Order'!W13)","v":""},{"$f":"IF('1. Order'!X13=\"\",\"\",'1. Order'!X13)","v":"EUR"},{"$f":"IF('1. Order'!Y13=\"\",\"\",'1. Order'!Y13)","v":""},{"$f":"IF('1. Order'!Z13=\"\",\"\",'1. Order'!Z13)","v":""},{"$f":"IF('1. Order'!AA13=\"\",\"\",'1. Order'!AA13)","v":""},null,{"$f":"IF('1. Order'!AS13=\"\",\"\",'1. Order'!AS13)","v":""},{"$f":"IF('1. Order'!AT13=\"\",\"\",'1. Order'!AT13)","v":""},null,null,null,null,null,null,null,{"$f":"IF('1. Order'!AX13=\"\",\"\",'1. Order'!AX13)","v":""},{"$f":"IF('1. Order'!AY13=\"\",\"\",'1. Order'!AY13)","v":""},{"$f":"IF('1. Order'!AZ13=\"\",\"\",'1. Order'!AZ13)","v":""},{"$f":"IF('1. Order'!BA13=\"\",\"\",'1. Order'!BA13)","v":""},{"$f":"IF('1. Order'!BC13=\"\",\"\",'1. Order'!BC13)","v":""},{"$f":"IF('1. Order'!BD13=\"\",\"\",'1. Order'!BD13)","v":6},{"$f":"IF('1. Order'!BE13=\"\",\"\",'1. Order'!BE13)","v":"None"},{"$f":"IF('1. Order'!BF13=\"\",\"\",'1. Order'!BF13)","v":"Parcel"},{"$f":"IF('1. Order'!BG13=\"\",\"\",'1. Order'!BG13)","v":"ZWO"}]
[{"$f":"IF('1. Order'!F14=\"\",\"\",'1. Order'!F14)","v":""},{"$f":"IF('1. Order'!G14=\"\",\"\",'1. Order'!G14)","v":""},{"$f":"IF('1. Order'!H14=\"\",\"\",'1. Order'!H14)","v":""},{"$f":"IF('1. Order'!I14=\"\",\"\",'1. Order'!I14)","v":""},{"$f":"IF('1. Order'!J14=\"\",\"\",'1. Order'!J14)","v":""},{"$f":"IF('1. Order'!K14=\"\",\"\",'1. Order'!K14)","v":""},{"$f":"IF('1. Order'!L14=\"\",\"\",'1. Order'!L14)","v":""},{"$f":"IF('1. Order'!M14=\"\",\"\",'1. Order'!M14)","v":""},{"$f":"IF('1. Order'!N14=\"\",\"\",'1. Order'!N14)","v":""},{"$f":"IF('1. Order'!O14=\"\",\"\",'1. Order'!O14)","v":{"$error":"#N/A"}},{"$f":"IF('1. Order'!P14=\"\",\"\",'1. Order'!P14)","v":{"$error":"#N/A"}},{"$f":"IF('1. Order'!Q14=\"\",\"\",'1. Order'!Q14)","v":""},{"$f":"IF('1. Order'!R14=\"\",\"\",'1. Order'!R14)","v":""},{"$f":"IF('1. Order'!S14=\"\",\"\",'1. Order'!S14)","v":""},{"$f":"IF('1. Order'!V14=\"\",\"\",'1. Order'!V14)","v":""},{"$f":"IF('1. Order'!W14=\"\",\"\",'1. Order'!W14)","v":""},{"$f":"IF('1. Order'!X14=\"\",\"\",'1. Order'!X14)","v":"EUR"},{"$f":"IF('1. Order'!Y14=\"\",\"\",'1. Order'!Y14)","v":""},{"$f":"IF('1. Order'!Z14=\"\",\"\",'1. Order'!Z14)","v":""},{"$f":"IF('1. Order'!AA14=\"\",\"\",'1. Order'!AA14)","v":""},null,{"$f":"IF('1. Order'!AS14=\"\",\"\",'1. Order'!AS14)","v":""},{"$f":"IF('1. Order'!AT14=\"\",\"\",'1. Order'!AT14)","v":""},null,null,null,null,null,null,null,{"$f":"IF('1. Order'!AX14=\"\",\"\",'1. Order'!AX14)","v":""},{"$f":"IF('1. Order'!AY14=\"\",\"\",'1. Order'!AY14)","v":""},{"$f":"IF('1. Order'!AZ14=\"\",\"\",'1. Order'!AZ14)","v":""},{"$f":"IF('1. Order'!BA14=\"\",\"\",'1. Order'!BA14)","v":""},{"$f":"IF('1. Order'!BC14=\"\",\"\",'1. Order'!BC14)","v":""},{"$f":"IF('1. Order'!BD14=\"\",\"\",'1. Order'!BD14)","v":6},{"$f":"IF('1. Order'!BE14=\"\",\"\",'1. Order'!BE14)","v":"None"},{"$f":"IF('1. Order'!BF14=\"\",\"\",'1. Order'!BF14)","v":"Parcel"},{"$f":"IF('1. Order'!BG14=\"\",\"\",'1. Order'!BG14)","v":"ZWO"}]
[{"$f":"IF('1. Order'!F15=\"\",\"\",'1. Order'!F15)","v":""},{"$f":"IF('1. Order'!G15=\"\",\"\",'1. Order'!G15)","v":""},{"$f":"IF('1. Order'!H15=\"\",\"\",'1. Order'!H15)","v":""},{"$f":"IF('1. Order'!I15=\"\",\"\",'1. Order'!I15)","v":""},{"$f":"IF('1. Order'!J15=\"\",\"\",'1. Order'!J15)","v":""},{"$f":"IF('1. Order'!K15=\"\",\"\",'1. Order'!K15)","v":""},{"$f":"IF('1. Order'!L15=\"\",\"\",'1. Order'!L15)","v":""},{"$f":"IF('1. Order'!M15=\"\",\"\",'1. Order'!M15)","v":""},{"$f":"IF('1. Order'!N15=\"\",\"\",'1. Order'!N15)","v":""},{"$f":"IF('1. Order'!O15=\"\",\"\",'1. Order'!O15)","v":{"$error":"#N/A"}},{"$f":"IF('1. Order'!P15=\"\",\"\",'1. Order'!P15)","v":{"$error":"#N/A"}},{"$f":"IF('1. Order'!Q15=\"\",\"\",'1. Order'!Q15)","v":""},{"$f":"IF('1. Order'!R15=\"\",\"\",'1. Order'!R15)","v":""},{"$f":"IF('1. Order'!S15=\"\",\"\",'1. Order'!S15)","v":""},{"$f":"IF('1. Order'!V15=\"\",\"\",'1. Order'!V15)","v":""},{"$f":"IF('1. Order'!W15=\"\",\"\",'1. Order'!W15)","v":""},{"$f":"IF('1. Order'!X15=\"\",\"\",'1. Order'!X15)","v":"EUR"},{"$f":"IF('1. Order'!Y15=\"\",\"\",'1. Order'!Y15)","v":""},{"$f":"IF('1. Order'!Z15=\"\",\"\",'1. Order'!Z15)","v":""},{"$f":"IF('1. Order'!AA15=\"\",\"\",'1. Order'!AA15)","v":""},null,{"$f":"IF('1. Order'!AS15=\"\",\"\",'1. Order'!AS15)","v":""},{"$f":"IF('1. Order'!AT15=\"\",\"\",'1. Order'!AT15)","v":""},null,null,null,null,null,null,null,{"$f":"IF('1. Order'!AX15=\"\",\"\",'1. Order'!AX15)","v":""},{"$f":"IF('1. Order'!AY15=\"\",\"\",'1. Order'!AY15)","v":""},{"$f":"IF('1. Order'!AZ15=\"\",\"\",'1. Order'!AZ15)","v":""},{"$f":"IF('1. Order'!BA15=\"\",\"\",'1. Order'!BA15)","v":""},{"$f":"IF('1. Order'!BC15=\"\",\"\",'1. Order'!BC15)","v":""},{"$f":"IF('1. Order'!BD15=\"\",\"\",'1. Order'!BD15)","v":6},{"$f":"IF('1. Order'!BE15=\"\",\"\",'1. Order'!BE15)","v":"None"},{"$f":"IF('1. Order'!BF15=\"\",\"\",'1. Order'!BF15)","v":"Parcel"},{"$f":"IF('1. Order'!BG15=\"\",\"\",'1. Order'!BG15)","v":"ZWO"}]
[{"$f":"IF('1. Order'!F16=\"\",\"\",'1. Order'!F16)","v":""},{"$f":"IF('1. Order'!G16=\"\",\"\",'1. Order'!G16)","v":""},{"$f":"IF('1. Order'!H16=\"\",\"\",'1. Order'!H16)","v":""},{"$f":"IF('1. Order'!I16=\"\",\"\",'1. Order'!I16)","v":""},{"$f":"IF('1. Order'!J16=\"\",\"\",'1. Order'!J16)","v":""},{"$f":"IF('1. Order'!K16=\"\",\"\",'1. Order'!K16)","v":""},{"$f":"IF('1. Order'!L16=\"\",\"\",'1. Order'!L16)","v":""},{"$f":"IF('1. Order'!M16=\"\",\"\",'1. Order'!M16)","v":""},{"$f":"IF('1. Order'!N16=\"\",\"\",'1. Order'!N16)","v":""},{"$f":"IF('1. Order'!O16=\"\",\"\",'1. Order'!O16)","v":{"$error":"#N/A"}},{"$f":"IF('1. Order'!P16=\"\",\"\",'1. Order'!P16)","v":{"$error":"#N/A"}},{"$f":"IF('1. Order'!Q16=\"\",\"\",'1. Order'!Q16)","v":""},{"$f":"IF('1. Order'!R16=\"\",\"\",'1. Order'!R16)","v":""},{"$f":"IF('1. Order'!S16=\"\",\"\",'1. Order'!S16)","v":""},{"$f":"IF('1. Order'!V16=\"\",\"\",'1. Order'!V16)","v":""},{"$f":"IF('1. Order'!W16=\"\",\"\",'1. Order'!W16)","v":""},{"$f":"IF('1. Order'!X16=\"\",\"\",'1. Order'!X16)","v":"EUR"},{"$f":"IF('1. Order'!Y16=\"\",\"\",'1. Order'!Y16)","v":""},{"$f":"IF('1. Order'!Z16=\"\",\"\",'1. Order'!Z16)","v":""},{"$f":"IF('1. Order'!AA16=\"\",\"\",'1. Order'!AA16)","v":""},null,{"$f":"IF('1. Order'!AS16=\"\",\"\",'1. Order'!AS16)","v":""},{"$f":"IF('1. Order'!AT16=\"\",\"\",'1. Order'!AT16)","v":""},null,null,null,null,null,null,null,{"$f":"IF('1. Order'!AX16=\"\",\"\",'1. Order'!AX16)","v":""},{"$f":"IF('1. Order'!AY16=\"\",\"\",'1. Order'!AY16)","v":""},{"$f":"IF('1. Order'!AZ16=\"\",\"\",'1. Order'!AZ16)","v":""},{"$f":"IF('1. Order'!BA16=\"\",\"\",'1. Order'!BA16)","v":""},{"$f":"IF('1. Order'!BC16=\"\",\"\",'1. Order'!BC16)","v":""},{"$f":"IF('1. Order'!BD16=\"\",\"\",'1. Order'!BD16)","v":6},{"$f":"IF('1. Order'!BE16=\"\",\"\",'1. Order'!BE16)","v":"None"},{"$f":"IF('1. Order'!BF16=\"\",\"\",'1. Order'!BF16)","v":"Parcel"},{"$f":"IF('1. Order'!BG16=\"\",\"\",'1. Order'!BG16)","v":"ZWO"}]
[{"$f":"IF('1. Order'!F17=\"\",\"\",'1. Order'!F17)","v":""},{"$f":"IF('1. Order'!G17=\"\",\"\",'1. Order'!G17)","v":""},{"$f":"IF('1. Order'!H17=\"\",\"\",'1. Order'!H17)","v":""},{"$f":"IF('1. Order'!I17=\"\",\"\",'1. Order'!I17)","v":""},{"$f":"IF('1. Order'!J17=\"\",\"\",'1. Order'!J17)","v":""},{"$f":"IF('1. Order'!K17=\"\",\"\",'1. Order'!K17)","v":""},{"$f":"IF('1. Order'!L17=\"\",\"\",'1. Order'!L17)","v":""},{"$f":"IF('1. Order'!M17=\"\",\"\",'1. Order'!M17)","v":""},{"$f":"IF('1. Order'!N17=\"\",\"\",'1. Order'!N17)","v":""},{"$f":"IF('1. Order'!O17=\"\",\"\",'1. Order'!O17)","v":{"$error":"#N/A"}},{"$f":"IF('1. Order'!P17=\"\",\"\",'1. Order'!P17)","v":{"$error":"#N/A"}},{"$f":"IF('1. Order'!Q17=\"\",\"\",'1. Order'!Q17)","v":""},{"$f":"IF('1. Order'!R17=\"\",\"\",'1. Order'!R17)","v":""},{"$f":"IF('1. Order'!S17=\"\",\"\",'1. Order'!S17)","v":""},{"$f":"IF('1. Order'!V17=\"\",\"\",'1. Order'!V17)","v":""},{"$f":"IF('1. Order'!W17=\"\",\"\",'1. Order'!W17)","v":""},{"$f":"IF('1. Order'!X17=\"\",\"\",'1. Order'!X17)","v":"EUR"},{"$f":"IF('1. Order'!Y17=\"\",\"\",'1. Order'!Y17)","v":""},{"$f":"IF('1. Order'!Z17=\"\",\"\",'1. Order'!Z17)","v":""},{"$f":"IF('1. Order'!AA17=\"\",\"\",'1. Order'!AA17)","v":""},null,{"$f":"IF('1. Order'!AS17=\"\",\"\",'1. Order'!AS17)","v":""},{"$f":"IF('1. Order'!AT17=\"\",\"\",'1. Order'!AT17)","v":""},null,null,null,null,null,null,null,{"$f":"IF('1. Order'!AX17=\"\",\"\",'1. Order'!AX17)","v":""},{"$f":"IF('1. Order'!AY17=\"\",\"\",'1. Order'!AY17)","v":""},{"$f":"IF('1. Order'!AZ17=\"\",\"\",'1. Order'!AZ17)","v":""},{"$f":"IF('1. Order'!BA17=\"\",\"\",'1. Order'!BA17)","v":""},{"$f":"IF('1. Order'!BC17=\"\",\"\",'1. Order'!BC17)","v":""},{"$f":"IF('1. Order'!BD17=\"\",\"\",'1. Order'!BD17)","v":6},{"$f":"IF('1. Order'!BE17=\"\",\"\",'1. Order'!BE17)","v":"None"},{"$f":"IF('1. Order'!BF17=\"\",\"\",'1. Order'!BF17)","v":"Parcel"},{"$f":"IF('1. Order'!BG17=\"\",\"\",'1. Order'!BG17)","v":"ZWO"}]
[{"$f":"IF('1. Order'!F18=\"\",\"\",'1. Order'!F18)","v":""},{"$f":"IF('1. Order'!G18=\"\",\"\",'1. Order'!G18)","v":""},{"$f":"IF('1. Order'!H18=\"\",\"\",'1. Order'!H18)","v":""},{"$f":"IF('1. Order'!I18=\"\",\"\",'1. Order'!I18)","v":""},{"$f":"IF('1. Order'!J18=\"\",\"\",'1. Order'!J18)","v":""},{"$f":"IF('1. Order'!K18=\"\",\"\",'1. Order'!K18)","v":""},{"$f":"IF('1. Order'!L18=\"\",\"\",'1. Order'!L18)","v":""},{"$f":"IF('1. Order'!M18=\"\",\"\",'1. Order'!M18)","v":""},{"$f":"IF('1. Order'!N18=\"\",\"\",'1. Order'!N18)","v":""},{"$f":"IF('1. Order'!O18=\"\",\"\",'1. Order'!O18)","v":{"$error":"#N/A"}},{"$f":"IF('1. Order'!P18=\"\",\"\",'1. Order'!P18)","v":{"$error":"#N/A"}},{"$f":"IF('1. Order'!Q18=\"\",\"\",'1. Order'!Q18)","v":""},{"$f":"IF('1. Order'!R18=\"\",\"\",'1. Order'!R18)","v":""},{"$f":"IF('1. Order'!S18=\"\",\"\",'1. Order'!S18)","v":""},{"$f":"IF('1. Order'!V18=\"\",\"\",'1. Order'!V18)","v":""},{"$f":"IF('1. Order'!W18=\"\",\"\",'1. Order'!W18)","v":""},{"$f":"IF('1. Order'!X18=\"\",\"\",'1. Order'!X18)","v":"EUR"},{"$f":"IF('1. Order'!Y18=\"\",\"\",'1. Order'!Y18)","v":""},{"$f":"IF('1. Order'!Z18=\"\",\"\",'1. Order'!Z18)","v":""},{"$f":"IF('1. Order'!AA18=\"\",\"\",'1. Order'!AA18)","v":""},null,{"$f":"IF('1. Order'!AS18=\"\",\"\",'1. Order'!AS18)","v":""},{"$f":"IF('1. Order'!AT18=\"\",\"\",'1. Order'!AT18)","v":""},null,null,null,null,null,null,null,{"$f":"IF('1. Order'!AX18=\"\",\"\",'1. Order'!AX18)","v":""},{"$f":"IF('1. Order'!AY18=\"\",\"\",'1. Order'!AY18)","v":""},{"$f":"IF('1. Order'!AZ18=\"\",\"\",'1. Order'!AZ18)","v":""},{"$f":"IF('1. Order'!BA18=\"\",\"\",'1. Order'!BA18)","v":""},{"$f":"IF('1. Order'!BC18=\"\",\"\",'1. Order'!BC18)","v":""},{"$f":"IF('1. Order'!BD18=\"\",\"\",'1. Order'!BD18)","v":6},{"$f":"IF('1. Order'!BE18=\"\",\"\",'1. Order'!BE18)","v":"None"},{"$f":"IF('1. Order'!BF18=\"\",\"\",'1. Order'!BF18)","v":"Parcel"},{"$f":"IF('1. Order'!BG18=\"\",\"\",'1. Order'!BG18)","v":"ZWO"}]
[{"$f":"IF('1. Order'!F19=\"\",\"\",'1. Order'!F19)","v":""},{"$f":"IF('1. Order'!G19=\"\",\"\",'1. Order'!G19)","v":""},{"$f":"IF('1. Order'!H19=\"\",\"\",'1. Order'!H19)","v":""},{"$f":"IF('1. Order'!I19=\"\",\"\",'1. Order'!I19)","v":""},{"$f":"IF('1. Order'!J19=\"\",\"\",'1. Order'!J19)","v":""},{"$f":"IF('1. Order'!K19=\"\",\"\",'1. Order'!K19)","v":""},{"$f":"IF('1. Order'!L19=\"\",\"\",'1. Order'!L19)","v":""},{"$f":"IF('1. Order'!M19=\"\",\"\",'1. Order'!M19)","v":""},{"$f":"IF('1. Order'!N19=\"\",\"\",'1. Order'!N19)","v":""},{"$f":"IF('1. Order'!O19=\"\",\"\",'1. Order'!O19)","v":{"$error":"#N/A"}},{"$f":"IF('1. Order'!P19=\"\",\"\",'1. Order'!P19)","v":{"$error":"#N/A"}},{"$f":"IF('1. Order'!Q19=\"\",\"\",'1. Order'!Q19)","v":""},{"$f":"IF('1. Order'!R19=\"\",\"\",'1. Order'!R19)","v":""},{"$f":"IF('1. Order'!S19=\"\",\"\",'1. Order'!S19)","v":""},{"$f":"IF('1. Order'!V19=\"\",\"\",'1. Order'!V19)","v":""},{"$f":"IF('1. Order'!W19=\"\",\"\",'1. Order'!W19)","v":""},{"$f":"IF('1. Order'!X19=\"\",\"\",'1. Order'!X19)","v":"EUR"},{"$f":"IF('1. Order'!Y19=\"\",\"\",'1. Order'!Y19)","v":""},{"$f":"IF('1. Order'!Z19=\"\",\"\",'1. Order'!Z19)","v":""},{"$f":"IF('1. Order'!AA19=\"\",\"\",'1. Order'!AA19)","v":""},null,{"$f":"IF('1. Order'!AS19=\"\",\"\",'1. Order'!AS19)","v":""},{"$f":"IF('1. Order'!AT19=\"\",\"\",'1. Order'!AT19)","v":""},null,null,null,null,null,null,null,{"$f":"IF('1. Order'!AX19=\"\",\"\",'1. Order'!AX19)","v":""},{"$f":"IF('1. Order'!AY19=\"\",\"\",'1. Order'!AY19)","v":""},{"$f":"IF('1. Order'!AZ19=\"\",\"\",'1. Order'!AZ19)","v":""},{"$f":"IF('1. Order'!BA19=\"\",\"\",'1. Order'!BA19)","v":""},{"$f":"IF('1. Order'!BC19=\"\",\"\",'1. Order'!BC19)","v":""},{"$f":"IF('1. Order'!BD19=\"\",\"\",'1. Order'!BD19)","v":6},{"$f":"IF('1. Order'!BE19=\"\",\"\",'1. Order'!BE19)","v":"None"},{"$f":"IF('1. Order'!BF19=\"\",\"\",'1. Order'!BF19)","v":"Parcel"},{"$f":"IF('1. Order'!BG19=\"\",\"\",'1. Order'!BG19)","v":"ZWO"}]
[{"$f":"IF('1. Order'!F20=\"\",\"\",'1. Order'!F20)","v":""},{"$f":"IF('1. Order'!G20=\"\",\"\",'1. Order'!G20)","v":""},{"$f":"IF('1. Order'!H20=\"\",\"\",'1. Order'!H20)","v":""},{"$f":"IF('1. Order'!I20=\"\",\"\",'1. Order'!I20)","v":""},{"$f":"IF('1. Order'!J20=\"\",\"\",'1. Order'!J20)","v":""},{"$f":"IF('1. Order'!K20=\"\",\"\",'1. Order'!K20)","v":""},{"$f":"IF('1. Order'!L20=\"\",\"\",'1. Order'!L20)","v":""},{"$f":"IF('1. Order'!M20=\"\",\"\",'1. Order'!M20)","v":""},{"$f":"IF('1. Order'!N20=\"\",\"\",'1. Order'!N20)","v":""},{"$f":"IF('1. Order'!O20=\"\",\"\",'1. Order'!O20)","v":{"$error":"#N/A"}},{"$f":"IF('1. Order'!P20=\"\",\"\",'1. Order'!P20)","v":{"$error":"#N/A"}},{"$f":"IF('1. Order'!Q20=\"\",\"\",'1. Order'!Q20)","v":""},{"$f":"IF('1. Order'!R20=\"\",\"\",'1. Order'!R20)","v":""},{"$f":"IF('1. Order'!S20=\"\",\"\",'1. Order'!S20)","v":""},{"$f":"IF('1. Order'!V20=\"\",\"\",'1. Order'!V20)","v":""},{"$f":"IF('1. Order'!W20=\"\",\"\",'1. Order'!W20)","v":""},{"$f":"IF('1. Order'!X20=\"\",\"\",'1. Order'!X20)","v":"EUR"},{"$f":"IF('1. Order'!Y20=\"\",\"\",'1. Order'!Y20)","v":""},{"$f":"IF('1. Order'!Z20=\"\",\"\",'1. Order'!Z20)","v":""},{"$f":"IF('1. Order'!AA20=\"\",\"\",'1. Order'!AA20)","v":""},null,{"$f":"IF('1. Order'!AS20=\"\",\"\",'1. Order'!AS20)","v":""},{"$f":"IF('1. Order'!AT20=\"\",\"\",'1. Order'!AT20)","v":""},null,null,null,null,null,null,null,{"$f":"IF('1. Order'!AX20=\"\",\"\",'1. Order'!AX20)","v":""},{"$f":"IF('1. Order'!AY20=\"\",\"\",'1. Order'!AY20)","v":""},{"$f":"IF('1. Order'!AZ20=\"\",\"\",'1. Order'!AZ20)","v":""},{"$f":"IF('1. Order'!BA20=\"\",\"\",'1. Order'!BA20)","v":""},{"$f":"IF('1. Order'!BC20=\"\",\"\",'1. Order'!BC20)","v":""},{"$f":"IF('1. Order'!BD20=\"\",\"\",'1. Order'!BD20)","v":6},{"$f":"IF('1. Order'!BE20=\"\",\"\",'1. Order'!BE20)","v":"None"},{"$f":"IF('1. Order'!BF20=\"\",\"\",'1. Order'!BF20)","v":"Parcel"},{"$f":"IF('1. Order'!BG20=\"\",\"\",'1. Order'!BG20)","v":"ZWO"}]
[{"$f":"IF('1. Order'!F21=\"\",\"\",'1. Order'!F21)","v":""},{"$f":"IF('1. Order'!G21=\"\",\"\",'1. Order'!G21)","v":""},{"$f":"IF('1. Order'!H21=\"\",\"\",'1. Order'!H21)","v":""},{"$f":"IF('1. Order'!I21=\"\",\"\",'1. Order'!I21)","v":""},{"$f":"IF('1. Order'!J21=\"\",\"\",'1. Order'!J21)","v":""},{"$f":"IF('1. Order'!K21=\"\",\"\",'1. Order'!K21)","v":""},{"$f":"IF('1. Order'!L21=\"\",\"\",'1. Order'!L21)","v":""},{"$f":"IF('1. Order'!M21=\"\",\"\",'1. Order'!M21)","v":""},{"$f":"IF('1. Order'!N21=\"\",\"\",'1. Order'!N21)","v":""},{"$f":"IF('1. Order'!O21=\"\",\"\",'1. Order'!O21)","v":{"$error":"#N/A"}},{"$f":"IF('1. Order'!P21=\"\",\"\",'1. Order'!P21)","v":{"$error":"#N/A"}},{"$f":"IF('1. Order'!Q21=\"\",\"\",'1. Order'!Q21)","v":""},{"$f":"IF('1. Order'!R21=\"\",\"\",'1. Order'!R21)","v":""},{"$f":"IF('1. Order'!S21=\"\",\"\",'1. Order'!S21)","v":""},{"$f":"IF('1. Order'!V21=\"\",\"\",'1. Order'!V21)","v":""},{"$f":"IF('1. Order'!W21=\"\",\"\",'1. Order'!W21)","v":""},{"$f":"IF('1. Order'!X21=\"\",\"\",'1. Order'!X21)","v":"EUR"},{"$f":"IF('1. Order'!Y21=\"\",\"\",'1. Order'!Y21)","v":""},{"$f":"IF('1. Order'!Z21=\"\",\"\",'1. Order'!Z21)","v":""},{"$f":"IF('1. Order'!AA21=\"\",\"\",'1. Order'!AA21)","v":""},null,{"$f":"IF('1. Order'!AS21=\"\",\"\",'1. Order'!AS21)","v":""},{"$f":"IF('1. Order'!AT21=\"\",\"\",'1. Order'!AT21)","v":""},null,null,null,null,null,null,null,{"$f":"IF('1. Order'!AX21=\"\",\"\",'1. Order'!AX21)","v":""},{"$f":"IF('1. Order'!AY21=\"\",\"\",'1. Order'!AY21)","v":""},{"$f":"IF('1. Order'!AZ21=\"\",\"\",'1. Order'!AZ21)","v":""},{"$f":"IF('1. Order'!BA21=\"\",\"\",'1. Order'!BA21)","v":""},{"$f":"IF('1. Order'!BC21=\"\",\"\",'1. Order'!BC21)","v":""},{"$f":"IF('1. Order'!BD21=\"\",\"\",'1. Order'!BD21)","v":6},{"$f":"IF('1. Order'!BE21=\"\",\"\",'1. Order'!BE21)","v":"None"},{"$f":"IF('1. Order'!BF21=\"\",\"\",'1. Order'!BF21)","v":"Parcel"},{"$f":"IF('1. Order'!BG21=\"\",\"\",'1. Order'!BG21)","v":"ZWO"}]
[{"$f":"IF('1. Order'!F22=\"\",\"\",'1. Order'!F22)","v":""},{"$f":"IF('1. Order'!G22=\"\",\"\",'1. Order'!G22)","v":""},{"$f":"IF('1. Order'!H22=\"\",\"\",'1. Order'!H22)","v":""},{"$f":"IF('1. Order'!I22=\"\",\"\",'1. Order'!I22)","v":""},{"$f":"IF('1. Order'!J22=\"\",\"\",'1. Order'!J22)","v":""},{"$f":"IF('1. Order'!K22=\"\",\"\",'1. Order'!K22)","v":""},{"$f":"IF('1. Order'!L22=\"\",\"\",'1. Order'!L22)","v":""},{"$f":"IF('1. Order'!M22=\"\",\"\",'1. Order'!M22)","v":""},{"$f":"IF('1. Order'!N22=\"\",\"\",'1. Order'!N22)","v":""},{"$f":"IF('1. Order'!O22=\"\",\"\",'1. Order'!O22)","v":{"$error":"#N/A"}},{"$f":"IF('1. Order'!P22=\"\",\"\",'1. Order'!P22)","v":{"$error":"#N/A"}},{"$f":"IF('1. Order'!Q22=\"\",\"\",'1. Order'!Q22)","v":""},{"$f":"IF('1. Order'!R22=\"\",\"\",'1. Order'!R22)","v":""},{"$f":"IF('1. Order'!S22=\"\",\"\",'1. Order'!S22)","v":""},{"$f":"IF('1. Order'!V22=\"\",\"\",'1. Order'!V22)","v":""},{"$f":"IF('1. Order'!W22=\"\",\"\",'1. Order'!W22)","v":""},{"$f":"IF('1. Order'!X22=\"\",\"\",'1. Order'!X22)","v":"EUR"},{"$f":"IF('1. Order'!Y22=\"\",\"\",'1. Order'!Y22)","v":""},{"$f":"IF('1. Order'!Z22=\"\",\"\",'1. Order'!Z22)","v":""},{"$f":"IF('1. Order'!AA22=\"\",\"\",'1. Order'!AA22)","v":""},null,{"$f":"IF('1. Order'!AS22=\"\",\"\",'1. Order'!AS22)","v":""},{"$f":"IF('1. Order'!AT22=\"\",\"\",'1. Order'!AT22)","v":""},null,null,null,null,null,null,null,{"$f":"IF('1. Order'!AX22=\"\",\"\",'1. Order'!AX22)","v":""},{"$f":"IF('1. Order'!AY22=\"\",\"\",'1. Order'!AY22)","v":""},{"$f":"IF('1. Order'!AZ22=\"\",\"\",'1. Order'!AZ22)","v":""},{"$f":"IF('1. Order'!BA22=\"\",\"\",'1. Order'!BA22)","v":""},{"$f":"IF('1. Order'!BC22=\"\",\"\",'1. Order'!BC22)","v":""},{"$f":"IF('1. Order'!BD22=\"\",\"\",'1. Order'!BD22)","v":6},{"$f":"IF('1. Order'!BE22=\"\",\"\",'1. Order'!BE22)","v":"None"},{"$f":"IF('1. Order'!BF22=\"\",\"\",'1. Order'!BF22)","v":"Parcel"},{"$f":"IF('1. Order'!BG22=\"\",\"\",'1. Order'!BG22)","v":"ZWO"}]
[{"$f":"IF('1. Order'!F23=\"\",\"\",'1. Order'!F23)","v":""},{"$f":"IF('1. Order'!G23=\"\",\"\",'1. Order'!G23)","v":""},{"$f":"IF('1. Order'!H23=\"\",\"\",'1. Order'!H23)","v":""},{"$f":"IF('1. Order'!I23=\"\",\"\",'1. Order'!I23)","v":""},{"$f":"IF('1. Order'!J23=\"\",\"\",'1. Order'!J23)","v":""},{"$f":"IF('1. Order'!K23=\"\",\"\",'1. Order'!K23)","v":""},{"$f":"IF('1. Order'!L23=\"\",\"\",'1. Order'!L23)","v":""},{"$f":"IF('1. Order'!M23=\"\",\"\",'1. Order'!M23)","v":""},{"$f":"IF('1. Order'!N23=\"\",\"\",'1. Order'!N23)","v":""},{"$f":"IF('1. Order'!O23=\"\",\"\",'1. Order'!O23)","v":{"$error":"#N/A"}},{"$f":"IF('1. Order'!P23=\"\",\"\",'1. Order'!P23)","v":{"$error":"#N/A"}},{"$f":"IF('1. Order'!Q23=\"\",\"\",'1. Order'!Q23)","v":""},{"$f":"IF('1. Order'!R23=\"\",\"\",'1. Order'!R23)","v":""},{"$f":"IF('1. Order'!S23=\"\",\"\",'1. Order'!S23)","v":""},{"$f":"IF('1. Order'!V23=\"\",\"\",'1. Order'!V23)","v":""},{"$f":"IF('1. Order'!W23=\"\",\"\",'1. Order'!W23)","v":""},{"$f":"IF('1. Order'!X23=\"\",\"\",'1. Order'!X23)","v":"EUR"},{"$f":"IF('1. Order'!Y23=\"\",\"\",'1. Order'!Y23)","v":""},{"$f":"IF('1. Order'!Z23=\"\",\"\",'1. Order'!Z23)","v":""},{"$f":"IF('1. Order'!AA23=\"\",\"\",'1. Order'!AA23)","v":""},null,{"$f":"IF('1. Order'!AS23=\"\",\"\",'1. Order'!AS23)","v":""},{"$f":"IF('1. Order'!AT23=\"\",\"\",'1. Order'!AT23)","v":""},null,null,null,null,null,null,null,{"$f":"IF('1. Order'!AX23=\"\",\"\",'1. Order'!AX23)","v":""},{"$f":"IF('1. Order'!AY23=\"\",\"\",'1. Order'!AY23)","v":""},{"$f":"IF('1. Order'!AZ23=\"\",\"\",'1. Order'!AZ23)","v":""},{"$f":"IF('1. Order'!BA23=\"\",\"\",'1. Order'!BA23)","v":""},{"$f":"IF('1. Order'!BC23=\"\",\"\",'1. Order'!BC23)","v":""},{"$f":"IF('1. Order'!BD23=\"\",\"\",'1. Order'!BD23)","v":6},{"$f":"IF('1. Order'!BE23=\"\",\"\",'1. Order'!BE23)","v":"None"},{"$f":"IF('1. Order'!BF23=\"\",\"\",'1. Order'!BF23)","v":"Parcel"},{"$f":"IF('1. Order'!BG23=\"\",\"\",'1. Order'!BG23)","v":"ZWO"}]
[{"$f":"IF('1. Order'!F24=\"\",\"\",'1. Order'!F24)","v":""},{"$f":"IF('1. Order'!G24=\"\",\"\",'1. Order'!G24)","v":""},{"$f":"IF('1. Order'!H24=\"\",\"\",'1. Order'!H24)","v":""},{"$f":"IF('1. Order'!I24=\"\",\"\",'1. Order'!I24)","v":""},{"$f":"IF('1. Order'!J24=\"\",\"\",'1. Order'!J24)","v":""},{"$f":"IF('1. Order'!K24=\"\",\"\",'1. Order'!K24)","v":""},{"$f":"IF('1. Order'!L24=\"\",\"\",'1. Order'!L24)","v":""},{"$f":"IF('1. Order'!M24=\"\",\"\",'1. Order'!M24)","v":""},{"$f":"IF('1. Order'!N24=\"\",\"\",'1. Order'!N24)","v":""},{"$f":"IF('1. Order'!O24=\"\",\"\",'1. Order'!O24)","v":{"$error":"#N/A"}},{"$f":"IF('1. Order'!P24=\"\",\"\",'1. Order'!P24)","v":{"$error":"#N/A"}},{"$f":"IF('1. Order'!Q24=\"\",\"\",'1. Order'!Q24)","v":""},{"$f":"IF('1. Order'!R24=\"\",\"\",'1. Order'!R24)","v":""},{"$f":"IF('1. Order'!S24=\"\",\"\",'1. Order'!S24)","v":""},{"$f":"IF('1. Order'!V24=\"\",\"\",'1. Order'!V24)","v":""},{"$f":"IF('1. Order'!W24=\"\",\"\",'1. Order'!W24)","v":""},{"$f":"IF('1. Order'!X24=\"\",\"\",'1. Order'!X24)","v":"EUR"},{"$f":"IF('1. Order'!Y24=\"\",\"\",'1. Order'!Y24)","v":""},{"$f":"IF('1. Order'!Z24=\"\",\"\",'1. Order'!Z24)","v":""},{"$f":"IF('1. Order'!AA24=\"\",\"\",'1. Order'!AA24)","v":""},null,{"$f":"IF('1. Order'!AS24=\"\",\"\",'1. Order'!AS24)","v":""},{"$f":"IF('1. Order'!AT24=\"\",\"\",'1. Order'!AT24)","v":""},null,null,null,null,null,null,null,{"$f":"IF('1. Order'!AX24=\"\",\"\",'1. Order'!AX24)","v":""},{"$f":"IF('1. Order'!AY24=\"\",\"\",'1. Order'!AY24)","v":""},{"$f":"IF('1. Order'!AZ24=\"\",\"\",'1. Order'!AZ24)","v":""},{"$f":"IF('1. Order'!BA24=\"\",\"\",'1. Order'!BA24)","v":""},{"$f":"IF('1. Order'!BC24=\"\",\"\",'1. Order'!BC24)","v":""},{"$f":"IF('1. Order'!BD24=\"\",\"\",'1. Order'!BD24)","v":6},{"$f":"IF('1. Order'!BE24=\"\",\"\",'1. Order'!BE24)","v":"None"},{"$f":"IF('1. Order'!BF24=\"\",\"\",'1. Order'!BF24)","v":"Parcel"},{"$f":"IF('1. Order'!BG24=\"\",\"\",'1. Order'!BG24)","v":"ZWO"}]
[{"$f":"IF('1. Order'!F25=\"\",\"\",'1. Order'!F25)","v":""},{"$f":"IF('1. Order'!G25=\"\",\"\",'1. Order'!G25)","v":""},{"$f":"IF('1. Order'!H25=\"\",\"\",'1. Order'!H25)","v":""},{"$f":"IF('1. Order'!I25=\"\",\"\",'1. Order'!I25)","v":""},{"$f":"IF('1. Order'!J25=\"\",\"\",'1. Order'!J25)","v":""},{"$f":"IF('1. Order'!K25=\"\",\"\",'1. Order'!K25)","v":""},{"$f":"IF('1. Order'!L25=\"\",\"\",'1. Order'!L25)","v":""},{"$f":"IF('1. Order'!M25=\"\",\"\",'1. Order'!M25)","v":""},{"$f":"IF('1. Order'!N25=\"\",\"\",'1. Order'!N25)","v":""},{"$f":"IF('1. Order'!O25=\"\",\"\",'1. Order'!O25)","v":{"$error":"#N/A"}},{"$f":"IF('1. Order'!P25=\"\",\"\",'1. Order'!P25)","v":{"$error":"#N/A"}},{"$f":"IF('1. Order'!Q25=\"\",\"\",'1. Order'!Q25)","v":""},{"$f":"IF('1. Order'!R25=\"\",\"\",'1. Order'!R25)","v":""},{"$f":"IF('1. Order'!S25=\"\",\"\",'1. Order'!S25)","v":""},{"$f":"IF('1. Order'!V25=\"\",\"\",'1. Order'!V25)","v":""},{"$f":"IF('1. Order'!W25=\"\",\"\",'1. Order'!W25)","v":""},{"$f":"IF('1. Order'!X25=\"\",\"\",'1. Order'!X25)","v":"EUR"},{"$f":"IF('1. Order'!Y25=\"\",\"\",'1. Order'!Y25)","v":""},{"$f":"IF('1. Order'!Z25=\"\",\"\",'1. Order'!Z25)","v":""},{"$f":"IF('1. Order'!AA25=\"\",\"\",'1. Order'!AA25)","v":""},null,{"$f":"IF('1. Order'!AS25=\"\",\"\",'1. Order'!AS25)","v":""},{"$f":"IF('1. Order'!AT25=\"\",\"\",'1. Order'!AT25)","v":""},null,null,null,null,null,null,null,{"$f":"IF('1. Order'!AX25=\"\",\"\",'1. Order'!AX25)","v":""},{"$f":"IF('1. Order'!AY25=\"\",\"\",'1. Order'!AY25)","v":""},{"$f":"IF('1. Order'!AZ25=\"\",\"\",'1. Order'!AZ25)","v":""},{"$f":"IF('1. Order'!BA25=\"\",\"\",'1. Order'!BA25)","v":""},{"$f":"IF('1. Order'!BC25=\"\",\"\",'1. Order'!BC25)","v":""},{"$f":"IF('1. Order'!BD25=\"\",\"\",'1. Order'!BD25)","v":6},{"$f":"IF('1. Order'!BE25=\"\",\"\",'1. Order'!BE25)","v":"None"},{"$f":"IF('1. Order'!BF25=\"\",\"\",'1. Order'!BF25)","v":"Parcel"},{"$f":"IF('1. Order'!BG25=\"\",\"\",'1. Order'!BG25)","v":"ZWO"}]
[{"$f":"IF('1. Order'!F26=\"\",\"\",'1. Order'!F26)","v":""},{"$f":"IF('1. Order'!G26=\"\",\"\",'1. Order'!G26)","v":""},{"$f":"IF('1. Order'!H26=\"\",\"\",'1. Order'!H26)","v":""},{"$f":"IF('1. Order'!I26=\"\",\"\",'1. Order'!I26)","v":""},{"$f":"IF('1. Order'!J26=\"\",\"\",'1. Order'!J26)","v":""},{"$f":"IF('1. Order'!K26=\"\",\"\",'1. Order'!K26)","v":""},{"$f":"IF('1. Order'!L26=\"\",\"\",'1. Order'!L26)","v":""},{"$f":"IF('1. Order'!M26=\"\",\"\",'1. Order'!M26)","v":""},{"$f":"IF('1. Order'!N26=\"\",\"\",'1. Order'!N26)","v":""},{"$f":"IF('1. Order'!O26=\"\",\"\",'1. Order'!O26)","v":{"$error":"#N/A"}},{"$f":"IF('1. Order'!P26=\"\",\"\",'1. Order'!P26)","v":{"$error":"#N/A"}},{"$f":"IF('1. Order'!Q26=\"\",\"\",'1. Order'!Q26)","v":""},{"$f":"IF('1. Order'!R26=\"\",\"\",'1. Order'!R26)","v":""},{"$f":"IF('1. Order'!S26=\"\",\"\",'1. Order'!S26)","v":""},{"$f":"IF('1. Order'!V26=\"\",\"\",'1. Order'!V26)","v":""},{"$f":"IF('1. Order'!W26=\"\",\"\",'1. Order'!W26)","v":""},{"$f":"IF('1. Order'!X26=\"\",\"\",'1. Order'!X26)","v":"EUR"},{"$f":"IF('1. Order'!Y26=\"\",\"\",'1. Order'!Y26)","v":""},{"$f":"IF('1. Order'!Z26=\"\",\"\",'1. Order'!Z26)","v":""},{"$f":"IF('1. Order'!AA26=\"\",\"\",'1. Order'!AA26)","v":""},null,{"$f":"IF('1. Order'!AS26=\"\",\"\",'1. Order'!AS26)","v":""},{"$f":"IF('1. Order'!AT26=\"\",\"\",'1. Order'!AT26)","v":""},null,null,null,null,null,null,null,{"$f":"IF('1. Order'!AX26=\"\",\"\",'1. Order'!AX26)","v":""},{"$f":"IF('1. Order'!AY26=\"\",\"\",'1. Order'!AY26)","v":""},{"$f":"IF('1. Order'!AZ26=\"\",\"\",'1. Order'!AZ26)","v":""},{"$f":"IF('1. Order'!BA26=\"\",\"\",'1. Order'!BA26)","v":""},{"$f":"IF('1. Order'!BC26=\"\",\"\",'1. Order'!BC26)","v":""},{"$f":"IF('1. Order'!BD26=\"\",\"\",'1. Order'!BD26)","v":6},{"$f":"IF('1. Order'!BE26=\"\",\"\",'1. Order'!BE26)","v":"None"},{"$f":"IF('1. Order'!BF26=\"\",\"\",'1. Order'!BF26)","v":"Parcel"},{"$f":"IF('1. Order'!BG26=\"\",\"\",'1. Order'!BG26)","v":"ZWO"}]
[{"$f":"IF('1. Order'!F27=\"\",\"\",'1. Order'!F27)","v":""},{"$f":"IF('1. Order'!G27=\"\",\"\",'1. Order'!G27)","v":""},{"$f":"IF('1. Order'!H27=\"\",\"\",'1. Order'!H27)","v":""},{"$f":"IF('1. Order'!I27=\"\",\"\",'1. Order'!I27)","v":""},{"$f":"IF('1. Order'!J27=\"\",\"\",'1. Order'!J27)","v":""},{"$f":"IF('1. Order'!K27=\"\",\"\",'1. Order'!K27)","v":""},{"$f":"IF('1. Order'!L27=\"\",\"\",'1. Order'!L27)","v":""},{"$f":"IF('1. Order'!M27=\"\",\"\",'1. Order'!M27)","v":""},{"$f":"IF('1. Order'!N27=\"\",\"\",'1. Order'!N27)","v":""},{"$f":"IF('1. Order'!O27=\"\",\"\",'1. Order'!O27)","v":{"$error":"#N/A"}},{"$f":"IF('1. Order'!P27=\"\",\"\",'1. Order'!P27)","v":{"$error":"#N/A"}},{"$f":"IF('1. Order'!Q27=\"\",\"\",'1. Order'!Q27)","v":""},{"$f":"IF('1. Order'!R27=\"\",\"\",'1. Order'!R27)","v":""},{"$f":"IF('1. Order'!S27=\"\",\"\",'1. Order'!S27)","v":""},{"$f":"IF('1. Order'!V27=\"\",\"\",'1. Order'!V27)","v":""},{"$f":"IF('1. Order'!W27=\"\",\"\",'1. Order'!W27)","v":""},{"$f":"IF('1. Order'!X27=\"\",\"\",'1. Order'!X27)","v":"EUR"},{"$f":"IF('1. Order'!Y27=\"\",\"\",'1. Order'!Y27)","v":""},{"$f":"IF('1. Order'!Z27=\"\",\"\",'1. Order'!Z27)","v":""},{"$f":"IF('1. Order'!AA27=\"\",\"\",'1. Order'!AA27)","v":""},null,{"$f":"IF('1. Order'!AS27=\"\",\"\",'1. Order'!AS27)","v":""},{"$f":"IF('1. Order'!AT27=\"\",\"\",'1. Order'!AT27)","v":""},null,null,null,null,null,null,null,{"$f":"IF('1. Order'!AX27=\"\",\"\",'1. Order'!AX27)","v":""},{"$f":"IF('1. Order'!AY27=\"\",\"\",'1. Order'!AY27)","v":""},{"$f":"IF('1. Order'!AZ27=\"\",\"\",'1. Order'!AZ27)","v":""},{"$f":"IF('1. Order'!BA27=\"\",\"\",'1. Order'!BA27)","v":""},{"$f":"IF('1. Order'!BC27=\"\",\"\",'1. Order'!BC27)","v":""},{"$f":"IF('1. Order'!BD27=\"\",\"\",'1. Order'!BD27)","v":6},{"$f":"IF('1. Order'!BE27=\"\",\"\",'1. Order'!BE27)","v":"None"},{"$f":"IF('1. Order'!BF27=\"\",\"\",'1. Order'!BF27)","v":"Parcel"},{"$f":"IF('1. Order'!BG27=\"\",\"\",'1. Order'!BG27)","v":"ZWO"}]
[{"$f":"IF('1. Order'!F28=\"\",\"\",'1. Order'!F28)","v":""},{"$f":"IF('1. Order'!G28=\"\",\"\",'1. Order'!G28)","v":""},{"$f":"IF('1. Order'!H28=\"\",\"\",'1. Order'!H28)","v":""},{"$f":"IF('1. Order'!I28=\"\",\"\",'1. Order'!I28)","v":""},{"$f":"IF('1. Order'!J28=\"\",\"\",'1. Order'!J28)","v":""},{"$f":"IF('1. Order'!K28=\"\",\"\",'1. Order'!K28)","v":""},{"$f":"IF('1. Order'!L28=\"\",\"\",'1. Order'!L28)","v":""},{"$f":"IF('1. Order'!M28=\"\",\"\",'1. Order'!M28)","v":""},{"$f":"IF('1. Order'!N28=\"\",\"\",'1. Order'!N28)","v":""},{"$f":"IF('1. Order'!O28=\"\",\"\",'1. Order'!O28)","v":{"$error":"#N/A"}},{"$f":"IF('1. Order'!P28=\"\",\"\",'1. Order'!P28)","v":{"$error":"#N/A"}},{"$f":"IF('1. Order'!Q28=\"\",\"\",'1. Order'!Q28)","v":""},{"$f":"IF('1. Order'!R28=\"\",\"\",'1. Order'!R28)","v":""},{"$f":"IF('1. Order'!S28=\"\",\"\",'1. Order'!S28)","v":""},{"$f":"IF('1. Order'!V28=\"\",\"\",'1. Order'!V28)","v":""},{"$f":"IF('1. Order'!W28=\"\",\"\",'1. Order'!W28)","v":""},{"$f":"IF('1. Order'!X28=\"\",\"\",'1. Order'!X28)","v":"EUR"},{"$f":"IF('1. Order'!Y28=\"\",\"\",'1. Order'!Y28)","v":""},{"$f":"IF('1. Order'!Z28=\"\",\"\",'1. Order'!Z28)","v":""},{"$f":"IF('1. Order'!AA28=\"\",\"\",'1. Order'!AA28)","v":""},null,{"$f":"IF('1. Order'!AS28=\"\",\"\",'1. Order'!AS28)","v":""},{"$f":"IF('1. Order'!AT28=\"\",\"\",'1. Order'!AT28)","v":""},null,null,null,null,null,null,null,{"$f":"IF('1. Order'!AX28=\"\",\"\",'1. Order'!AX28)","v":""},{"$f":"IF('1. Order'!AY28=\"\",\"\",'1. Order'!AY28)","v":""},{"$f":"IF('1. Order'!AZ28=\"\",\"\",'1. Order'!AZ28)","v":""},{"$f":"IF('1. Order'!BA28=\"\",\"\",'1. Order'!BA28)","v":""},{"$f":"IF('1. Order'!BC28=\"\",\"\",'1. Order'!BC28)","v":""},{"$f":"IF('1. Order'!BD28=\"\",\"\",'1. Order'!BD28)","v":6},{"$f":"IF('1. Order'!BE28=\"\",\"\",'1. Order'!BE28)","v":"None"},{"$f":"IF('1. Order'!BF28=\"\",\"\",'1. Order'!BF28)","v":"Parcel"},{"$f":"IF('1. Order'!BG28=\"\",\"\",'1. Order'!BG28)","v":"ZWO"}]
[{"$f":"IF('1. Order'!F29=\"\",\"\",'1. Order'!F29)","v":""},{"$f":"IF('1. Order'!G29=\"\",\"\",'1. Order'!G29)","v":""},{"$f":"IF('1. Order'!H29=\"\",\"\",'1. Order'!H29)","v":""},{"$f":"IF('1. Order'!I29=\"\",\"\",'1. Order'!I29)","v":""},{"$f":"IF('1. Order'!J29=\"\",\"\",'1. Order'!J29)","v":""},{"$f":"IF('1. Order'!K29=\"\",\"\",'1. Order'!K29)","v":""},{"$f":"IF('1. Order'!L29=\"\",\"\",'1. Order'!L29)","v":""},{"$f":"IF('1. Order'!M29=\"\",\"\",'1. Order'!M29)","v":""},{"$f":"IF('1. Order'!N29=\"\",\"\",'1. Order'!N29)","v":""},{"$f":"IF('1. Order'!O29=\"\",\"\",'1. Order'!O29)","v":{"$error":"#N/A"}},{"$f":"IF('1. Order'!P29=\"\",\"\",'1. Order'!P29)","v":{"$error":"#N/A"}},{"$f":"IF('1. Order'!Q29=\"\",\"\",'1. Order'!Q29)","v":""},{"$f":"IF('1. Order'!R29=\"\",\"\",'1. Order'!R29)","v":""},{"$f":"IF('1. Order'!S29=\"\",\"\",'1. Order'!S29)","v":""},{"$f":"IF('1. Order'!V29=\"\",\"\",'1. Order'!V29)","v":""},{"$f":"IF('1. Order'!W29=\"\",\"\",'1. Order'!W29)","v":""},{"$f":"IF('1. Order'!X29=\"\",\"\",'1. Order'!X29)","v":"EUR"},{"$f":"IF('1. Order'!Y29=\"\",\"\",'1. Order'!Y29)","v":""},{"$f":"IF('1. Order'!Z29=\"\",\"\",'1. Order'!Z29)","v":""},{"$f":"IF('1. Order'!AA29=\"\",\"\",'1. Order'!AA29)","v":""},null,{"$f":"IF('1. Order'!AS29=\"\",\"\",'1. Order'!AS29)","v":""},{"$f":"IF('1. Order'!AT29=\"\",\"\",'1. Order'!AT29)","v":""},null,null,null,null,null,null,null,{"$f":"IF('1. Order'!AX29=\"\",\"\",'1. Order'!AX29)","v":""},{"$f":"IF('1. Order'!AY29=\"\",\"\",'1. Order'!AY29)","v":""},{"$f":"IF('1. Order'!AZ29=\"\",\"\",'1. Order'!AZ29)","v":""},{"$f":"IF('1. Order'!BA29=\"\",\"\",'1. Order'!BA29)","v":""},{"$f":"IF('1. Order'!BC29=\"\",\"\",'1. Order'!BC29)","v":""},{"$f":"IF('1. Order'!BD29=\"\",\"\",'1. Order'!BD29)","v":6},{"$f":"IF('1. Order'!BE29=\"\",\"\",'1. Order'!BE29)","v":"None"},{"$f":"IF('1. Order'!BF29=\"\",\"\",'1. Order'!BF29)","v":"Parcel"},{"$f":"IF('1. Order'!BG29=\"\",\"\",'1. Order'!BG29)","v":"ZWO"}]
[{"$f":"IF('1. Order'!F30=\"\",\"\",'1. Order'!F30)","v":""},{"$f":"IF('1. Order'!G30=\"\",\"\",'1. Order'!G30)","v":""},{"$f":"IF('1. Order'!H30=\"\",\"\",'1. Order'!H30)","v":""},{"$f":"IF('1. Order'!I30=\"\",\"\",'1. Order'!I30)","v":""},{"$f":"IF('1. Order'!J30=\"\",\"\",'1. Order'!J30)","v":""},{"$f":"IF('1. Order'!K30=\"\",\"\",'1. Order'!K30)","v":""},{"$f":"IF('1. Order'!L30=\"\",\"\",'1. Order'!L30)","v":""},{"$f":"IF('1. Order'!M30=\"\",\"\",'1. Order'!M30)","v":""},{"$f":"IF('1. Order'!N30=\"\",\"\",'1. Order'!N30)","v":""},{"$f":"IF('1. Order'!O30=\"\",\"\",'1. Order'!O30)","v":{"$error":"#N/A"}},{"$f":"IF('1. Order'!P30=\"\",\"\",'1. Order'!P30)","v":{"$error":"#N/A"}},{"$f":"IF('1. Order'!Q30=\"\",\"\",'1. Order'!Q30)","v":""},{"$f":"IF('1. Order'!R30=\"\",\"\",'1. Order'!R30)","v":""},{"$f":"IF('1. Order'!S30=\"\",\"\",'1. Order'!S30)","v":""},{"$f":"IF('1. Order'!V30=\"\",\"\",'1. Order'!V30)","v":""},{"$f":"IF('1. Order'!W30=\"\",\"\",'1. Order'!W30)","v":""},{"$f":"IF('1. Order'!X30=\"\",\"\",'1. Order'!X30)","v":"EUR"},{"$f":"IF('1. Order'!Y30=\"\",\"\",'1. Order'!Y30)","v":""},{"$f":"IF('1. Order'!Z30=\"\",\"\",'1. Order'!Z30)","v":""},{"$f":"IF('1. Order'!AA30=\"\",\"\",'1. Order'!AA30)","v":""},null,{"$f":"IF('1. Order'!AS30=\"\",\"\",'1. Order'!AS30)","v":""},{"$f":"IF('1. Order'!AT30=\"\",\"\",'1. Order'!AT30)","v":""},null,null,null,null,null,null,null,{"$f":"IF('1. Order'!AX30=\"\",\"\",'1. Order'!AX30)","v":""},{"$f":"IF('1. Order'!AY30=\"\",\"\",'1. Order'!AY30)","v":""},{"$f":"IF('1. Order'!AZ30=\"\",\"\",'1. Order'!AZ30)","v":""},{"$f":"IF('1. Order'!BA30=\"\",\"\",'1. Order'!BA30)","v":""},{"$f":"IF('1. Order'!BC30=\"\",\"\",'1. Order'!BC30)","v":""},{"$f":"IF('1. Order'!BD30=\"\",\"\",'1. Order'!BD30)","v":6},{"$f":"IF('1. Order'!BE30=\"\",\"\",'1. Order'!BE30)","v":"None"},{"$f":"IF('1. Order'!BF30=\"\",\"\",'1. Order'!BF30)","v":"Parcel"},{"$f":"IF('1. Order'!BG30=\"\",\"\",'1. Order'!BG30)","v":"ZWO"}]
[{"$f":"IF('1. Order'!F31=\"\",\"\",'1. Order'!F31)","v":""},{"$f":"IF('1. Order'!G31=\"\",\"\",'1. Order'!G31)","v":""},{"$f":"IF('1. Order'!H31=\"\",\"\",'1. Order'!H31)","v":""},{"$f":"IF('1. Order'!I31=\"\",\"\",'1. Order'!I31)","v":""},{"$f":"IF('1. Order'!J31=\"\",\"\",'1. Order'!J31)","v":""},{"$f":"IF('1. Order'!K31=\"\",\"\",'1. Order'!K31)","v":""},{"$f":"IF('1. Order'!L31=\"\",\"\",'1. Order'!L31)","v":""},{"$f":"IF('1. Order'!M31=\"\",\"\",'1. Order'!M31)","v":""},{"$f":"IF('1. Order'!N31=\"\",\"\",'1. Order'!N31)","v":""},{"$f":"IF('1. Order'!O31=\"\",\"\",'1. Order'!O31)","v":{"$error":"#N/A"}},{"$f":"IF('1. Order'!P31=\"\",\"\",'1. Order'!P31)","v":{"$error":"#N/A"}},{"$f":"IF('1. Order'!Q31=\"\",\"\",'1. Order'!Q31)","v":""},{"$f":"IF('1. Order'!R31=\"\",\"\",'1. Order'!R31)","v":""},{"$f":"IF('1. Order'!S31=\"\",\"\",'1. Order'!S31)","v":""},{"$f":"IF('1. Order'!V31=\"\",\"\",'1. Order'!V31)","v":""},{"$f":"IF('1. Order'!W31=\"\",\"\",'1. Order'!W31)","v":""},{"$f":"IF('1. Order'!X31=\"\",\"\",'1. Order'!X31)","v":"EUR"},{"$f":"IF('1. Order'!Y31=\"\",\"\",'1. Order'!Y31)","v":""},{"$f":"IF('1. Order'!Z31=\"\",\"\",'1. Order'!Z31)","v":""},{"$f":"IF('1. Order'!AA31=\"\",\"\",'1. Order'!AA31)","v":""},null,{"$f":"IF('1. Order'!AS31=\"\",\"\",'1. Order'!AS31)","v":""},{"$f":"IF('1. Order'!AT31=\"\",\"\",'1. Order'!AT31)","v":""},null,null,null,null,null,null,null,{"$f":"IF('1. Order'!AX31=\"\",\"\",'1. Order'!AX31)","v":""},{"$f":"IF('1. Order'!AY31=\"\",\"\",'1. Order'!AY31)","v":""},{"$f":"IF('1. Order'!AZ31=\"\",\"\",'1. Order'!AZ31)","v":""},{"$f":"IF('1. Order'!BA31=\"\",\"\",'1. Order'!BA31)","v":""},{"$f":"IF('1. Order'!BC31=\"\",\"\",'1. Order'!BC31)","v":""},{"$f":"IF('1. Order'!BD31=\"\",\"\",'1. Order'!BD31)","v":6},{"$f":"IF('1. Order'!BE31=\"\",\"\",'1. Order'!BE31)","v":"None"},{"$f":"IF('1. Order'!BF31=\"\",\"\",'1. Order'!BF31)","v":"Parcel"},{"$f":"IF('1. Order'!BG31=\"\",\"\",'1. Order'!BG31)","v":"ZWO"}]
[{"$f":"IF('1. Order'!F32=\"\",\"\",'1. Order'!F32)","v":""},{"$f":"IF('1. Order'!G32=\"\",\"\",'1. Order'!G32)","v":""},{"$f":"IF('1. Order'!H32=\"\",\"\",'1. Order'!H32)","v":""},{"$f":"IF('1. Order'!I32=\"\",\"\",'1. Order'!I32)","v":""},{"$f":"IF('1. Order'!J32=\"\",\"\",'1. Order'!J32)","v":""},{"$f":"IF('1. Order'!K32=\"\",\"\",'1. Order'!K32)","v":""},{"$f":"IF('1. Order'!L32=\"\",\"\",'1. Order'!L32)","v":""},{"$f":"IF('1. Order'!M32=\"\",\"\",'1. Order'!M32)","v":""},{"$f":"IF('1. Order'!N32=\"\",\"\",'1. Order'!N32)","v":""},{"$f":"IF('1. Order'!O32=\"\",\"\",'1. Order'!O32)","v":{"$error":"#N/A"}},{"$f":"IF('1. Order'!P32=\"\",\"\",'1. Order'!P32)","v":{"$error":"#N/A"}},{"$f":"IF('1. Order'!Q32=\"\",\"\",'1. Order'!Q32)","v":""},{"$f":"IF('1. Order'!R32=\"\",\"\",'1. Order'!R32)","v":""},{"$f":"IF('1. Order'!S32=\"\",\"\",'1. Order'!S32)","v":""},{"$f":"IF('1. Order'!V32=\"\",\"\",'1. Order'!V32)","v":""},{"$f":"IF('1. Order'!W32=\"\",\"\",'1. Order'!W32)","v":""},{"$f":"IF('1. Order'!X32=\"\",\"\",'1. Order'!X32)","v":"EUR"},{"$f":"IF('1. Order'!Y32=\"\",\"\",'1. Order'!Y32)","v":""},{"$f":"IF('1. Order'!Z32=\"\",\"\",'1. Order'!Z32)","v":""},{"$f":"IF('1. Order'!AA32=\"\",\"\",'1. Order'!AA32)","v":""},null,{"$f":"IF('1. Order'!AS32=\"\",\"\",'1. Order'!AS32)","v":""},{"$f":"IF('1. Order'!AT32=\"\",\"\",'1. Order'!AT32)","v":""},null,null,null,null,null,null,null,{"$f":"IF('1. Order'!AX32=\"\",\"\",'1. Order'!AX32)","v":""},{"$f":"IF('1. Order'!AY32=\"\",\"\",'1. Order'!AY32)","v":""},{"$f":"IF('1. Order'!AZ32=\"\",\"\",'1. Order'!AZ32)","v":""},{"$f":"IF('1. Order'!BA32=\"\",\"\",'1. Order'!BA32)","v":""},{"$f":"IF('1. Order'!BC32=\"\",\"\",'1. Order'!BC32)","v":""},{"$f":"IF('1. Order'!BD32=\"\",\"\",'1. Order'!BD32)","v":6},{"$f":"IF('1. Order'!BE32=\"\",\"\",'1. Order'!BE32)","v":"None"},{"$f":"IF('1. Order'!BF32=\"\",\"\",'1. Order'!BF32)","v":"Parcel"},{"$f":"IF('1. Order'!BG32=\"\",\"\",'1. Order'!BG32)","v":"ZWO"}]
[{"$f":"IF('1. Order'!F33=\"\",\"\",'1. Order'!F33)","v":""},{"$f":"IF('1. Order'!G33=\"\",\"\",'1. Order'!G33)","v":""},{"$f":"IF('1. Order'!H33=\"\",\"\",'1. Order'!H33)","v":""},{"$f":"IF('1. Order'!I33=\"\",\"\",'1. Order'!I33)","v":""},{"$f":"IF('1. Order'!J33=\"\",\"\",'1. Order'!J33)","v":""},{"$f":"IF('1. Order'!K33=\"\",\"\",'1. Order'!K33)","v":""},{"$f":"IF('1. Order'!L33=\"\",\"\",'1. Order'!L33)","v":""},{"$f":"IF('1. Order'!M33=\"\",\"\",'1. Order'!M33)","v":""},{"$f":"IF('1. Order'!N33=\"\",\"\",'1. Order'!N33)","v":""},{"$f":"IF('1. Order'!O33=\"\",\"\",'1. Order'!O33)","v":{"$error":"#N/A"}},{"$f":"IF('1. Order'!P33=\"\",\"\",'1. Order'!P33)","v":{"$error":"#N/A"}},{"$f":"IF('1. Order'!Q33=\"\",\"\",'1. Order'!Q33)","v":""},{"$f":"IF('1. Order'!R33=\"\",\"\",'1. Order'!R33)","v":""},{"$f":"IF('1. Order'!S33=\"\",\"\",'1. Order'!S33)","v":""},{"$f":"IF('1. Order'!V33=\"\",\"\",'1. Order'!V33)","v":""},{"$f":"IF('1. Order'!W33=\"\",\"\",'1. Order'!W33)","v":""},{"$f":"IF('1. Order'!X33=\"\",\"\",'1. Order'!X33)","v":"EUR"},{"$f":"IF('1. Order'!Y33=\"\",\"\",'1. Order'!Y33)","v":""},{"$f":"IF('1. Order'!Z33=\"\",\"\",'1. Order'!Z33)","v":""},{"$f":"IF('1. Order'!AA33=\"\",\"\",'1. Order'!AA33)","v":""},null,{"$f":"IF('1. Order'!AS33=\"\",\"\",'1. Order'!AS33)","v":""},{"$f":"IF('1. Order'!AT33=\"\",\"\",'1. Order'!AT33)","v":""},null,null,null,null,null,null,null,{"$f":"IF('1. Order'!AX33=\"\",\"\",'1. Order'!AX33)","v":""},{"$f":"IF('1. Order'!AY33=\"\",\"\",'1. Order'!AY33)","v":""},{"$f":"IF('1. Order'!AZ33=\"\",\"\",'1. Order'!AZ33)","v":""},{"$f":"IF('1. Order'!BA33=\"\",\"\",'1. Order'!BA33)","v":""},{"$f":"IF('1. Order'!BC33=\"\",\"\",'1. Order'!BC33)","v":""},{"$f":"IF('1. Order'!BD33=\"\",\"\",'1. Order'!BD33)","v":6},{"$f":"IF('1. Order'!BE33=\"\",\"\",'1. Order'!BE33)","v":"None"},{"$f":"IF('1. Order'!BF33=\"\",\"\",'1. Order'!BF33)","v":"Parcel"},{"$f":"IF('1. Order'!BG33=\"\",\"\",'1. Order'!BG33)","v":"ZWO"}]
[{"$f":"IF('1. Order'!F34=\"\",\"\",'1. Order'!F34)","v":""},{"$f":"IF('1. Order'!G34=\"\",\"\",'1. Order'!G34)","v":""},{"$f":"IF('1. Order'!H34=\"\",\"\",'1. Order'!H34)","v":""},{"$f":"IF('1. Order'!I34=\"\",\"\",'1. Order'!I34)","v":""},{"$f":"IF('1. Order'!J34=\"\",\"\",'1. Order'!J34)","v":""},{"$f":"IF('1. Order'!K34=\"\",\"\",'1. Order'!K34)","v":""},{"$f":"IF('1. Order'!L34=\"\",\"\",'1. Order'!L34)","v":""},{"$f":"IF('1. Order'!M34=\"\",\"\",'1. Order'!M34)","v":""},{"$f":"IF('1. Order'!N34=\"\",\"\",'1. Order'!N34)","v":""},{"$f":"IF('1. Order'!O34=\"\",\"\",'1. Order'!O34)","v":{"$error":"#N/A"}},{"$f":"IF('1. Order'!P34=\"\",\"\",'1. Order'!P34)","v":{"$error":"#N/A"}},{"$f":"IF('1. Order'!Q34=\"\",\"\",'1. Order'!Q34)","v":""},{"$f":"IF('1. Order'!R34=\"\",\"\",'1. Order'!R34)","v":""},{"$f":"IF('1. Order'!S34=\"\",\"\",'1. Order'!S34)","v":""},{"$f":"IF('1. Order'!V34=\"\",\"\",'1. Order'!V34)","v":""},{"$f":"IF('1. Order'!W34=\"\",\"\",'1. Order'!W34)","v":""},{"$f":"IF('1. Order'!X34=\"\",\"\",'1. Order'!X34)","v":"EUR"},{"$f":"IF('1. Order'!Y34=\"\",\"\",'1. Order'!Y34)","v":""},{"$f":"IF('1. Order'!Z34=\"\",\"\",'1. Order'!Z34)","v":""},{"$f":"IF('1. Order'!AA34=\"\",\"\",'1. Order'!AA34)","v":""},null,{"$f":"IF('1. Order'!AS34=\"\",\"\",'1. Order'!AS34)","v":""},{"$f":"IF('1. Order'!AT34=\"\",\"\",'1. Order'!AT34)","v":""},null,null,null,null,null,null,null,{"$f":"IF('1. Order'!AX34=\"\",\"\",'1. Order'!AX34)","v":""},{"$f":"IF('1. Order'!AY34=\"\",\"\",'1. Order'!AY34)","v":""},{"$f":"IF('1. Order'!AZ34=\"\",\"\",'1. Order'!AZ34)","v":""},{"$f":"IF('1. Order'!BA34=\"\",\"\",'1. Order'!BA34)","v":""},{"$f":"IF('1. Order'!BC34=\"\",\"\",'1. Order'!BC34)","v":""},{"$f":"IF('1. Order'!BD34=\"\",\"\",'1. Order'!BD34)","v":6},{"$f":"IF('1. Order'!BE34=\"\",\"\",'1. Order'!BE34)","v":"None"},{"$f":"IF('1. Order'!BF34=\"\",\"\",'1. Order'!BF34)","v":"Parcel"},{"$f":"IF('1. Order'!BG34=\"\",\"\",'1. Order'!BG34)","v":"ZWO"}]
[{"$f":"IF('1. Order'!F35=\"\",\"\",'1. Order'!F35)","v":""},{"$f":"IF('1. Order'!G35=\"\",\"\",'1. Order'!G35)","v":""},{"$f":"IF('1. Order'!H35=\"\",\"\",'1. Order'!H35)","v":""},{"$f":"IF('1. Order'!I35=\"\",\"\",'1. Order'!I35)","v":""},{"$f":"IF('1. Order'!J35=\"\",\"\",'1. Order'!J35)","v":""},{"$f":"IF('1. Order'!K35=\"\",\"\",'1. Order'!K35)","v":""},{"$f":"IF('1. Order'!L35=\"\",\"\",'1. Order'!L35)","v":""},{"$f":"IF('1. Order'!M35=\"\",\"\",'1. Order'!M35)","v":""},{"$f":"IF('1. Order'!N35=\"\",\"\",'1. Order'!N35)","v":""},{"$f":"IF('1. Order'!O35=\"\",\"\",'1. Order'!O35)","v":{"$error":"#N/A"}},{"$f":"IF('1. Order'!P35=\"\",\"\",'1. Order'!P35)","v":{"$error":"#N/A"}},{"$f":"IF('1. Order'!Q35=\"\",\"\",'1. Order'!Q35)","v":""},{"$f":"IF('1. Order'!R35=\"\",\"\",'1. Order'!R35)","v":""},{"$f":"IF('1. Order'!S35=\"\",\"\",'1. Order'!S35)","v":""},{"$f":"IF('1. Order'!V35=\"\",\"\",'1. Order'!V35)","v":""},{"$f":"IF('1. Order'!W35=\"\",\"\",'1. Order'!W35)","v":""},{"$f":"IF('1. Order'!X35=\"\",\"\",'1. Order'!X35)","v":"EUR"},{"$f":"IF('1. Order'!Y35=\"\",\"\",'1. Order'!Y35)","v":""},{"$f":"IF('1. Order'!Z35=\"\",\"\",'1. Order'!Z35)","v":""},{"$f":"IF('1. Order'!AA35=\"\",\"\",'1. Order'!AA35)","v":""},null,{"$f":"IF('1. Order'!AS35=\"\",\"\",'1. Order'!AS35)","v":""},{"$f":"IF('1. Order'!AT35=\"\",\"\",'1. Order'!AT35)","v":""},null,null,null,null,null,null,null,{"$f":"IF('1. Order'!AX35=\"\",\"\",'1. Order'!AX35)","v":""},{"$f":"IF('1. Order'!AY35=\"\",\"\",'1. Order'!AY35)","v":""},{"$f":"IF('1. Order'!AZ35=\"\",\"\",'1. Order'!AZ35)","v":""},{"$f":"IF('1. Order'!BA35=\"\",\"\",'1. Order'!BA35)","v":""},{"$f":"IF('1. Order'!BC35=\"\",\"\",'1. Order'!BC35)","v":""},{"$f":"IF('1. Order'!BD35=\"\",\"\",'1. Order'!BD35)","v":6},{"$f":"IF('1. Order'!BE35=\"\",\"\",'1. Order'!BE35)","v":"None"},{"$f":"IF('1. Order'!BF35=\"\",\"\",'1. Order'!BF35)","v":"Parcel"},{"$f":"IF('1. Order'!BG35=\"\",\"\",'1. Order'!BG35)","v":"ZWO"}]
[{"$f":"IF('1. Order'!F36=\"\",\"\",'1. Order'!F36)","v":""},{"$f":"IF('1. Order'!G36=\"\",\"\",'1. Order'!G36)","v":""},{"$f":"IF('1. Order'!H36=\"\",\"\",'1. Order'!H36)","v":""},{"$f":"IF('1. Order'!I36=\"\",\"\",'1. Order'!I36)","v":""},{"$f":"IF('1. Order'!J36=\"\",\"\",'1. Order'!J36)","v":""},{"$f":"IF('1. Order'!K36=\"\",\"\",'1. Order'!K36)","v":""},{"$f":"IF('1. Order'!L36=\"\",\"\",'1. Order'!L36)","v":""},{"$f":"IF('1. Order'!M36=\"\",\"\",'1. Order'!M36)","v":""},{"$f":"IF('1. Order'!N36=\"\",\"\",'1. Order'!N36)","v":""},{"$f":"IF('1. Order'!O36=\"\",\"\",'1. Order'!O36)","v":{"$error":"#N/A"}},{"$f":"IF('1. Order'!P36=\"\",\"\",'1. Order'!P36)","v":{"$error":"#N/A"}},{"$f":"IF('1. Order'!Q36=\"\",\"\",'1. Order'!Q36)","v":""},{"$f":"IF('1. Order'!R36=\"\",\"\",'1. Order'!R36)","v":""},{"$f":"IF('1. Order'!S36=\"\",\"\",'1. Order'!S36)","v":""},{"$f":"IF('1. Order'!V36=\"\",\"\",'1. Order'!V36)","v":""},{"$f":"IF('1. Order'!W36=\"\",\"\",'1. Order'!W36)","v":""},{"$f":"IF('1. Order'!X36=\"\",\"\",'1. Order'!X36)","v":"EUR"},{"$f":"IF('1. Order'!Y36=\"\",\"\",'1. Order'!Y36)","v":""},{"$f":"IF('1. Order'!Z36=\"\",\"\",'1. Order'!Z36)","v":""},{"$f":"IF('1. Order'!AA36=\"\",\"\",'1. Order'!AA36)","v":""},null,{"$f":"IF('1. Order'!AS36=\"\",\"\",'1. Order'!AS36)","v":""},{"$f":"IF('1. Order'!AT36=\"\",\"\",'1. Order'!AT36)","v":""},null,null,null,null,null,null,null,{"$f":"IF('1. Order'!AX36=\"\",\"\",'1. Order'!AX36)","v":""},{"$f":"IF('1. Order'!AY36=\"\",\"\",'1. Order'!AY36)","v":""},{"$f":"IF('1. Order'!AZ36=\"\",\"\",'1. Order'!AZ36)","v":""},{"$f":"IF('1. Order'!BA36=\"\",\"\",'1. Order'!BA36)","v":""},{"$f":"IF('1. Order'!BC36=\"\",\"\",'1. Order'!BC36)","v":""},{"$f":"IF('1. Order'!BD36=\"\",\"\",'1. Order'!BD36)","v":6},{"$f":"IF('1. Order'!BE36=\"\",\"\",'1. Order'!BE36)","v":"None"},{"$f":"IF('1. Order'!BF36=\"\",\"\",'1. Order'!BF36)","v":"Parcel"},{"$f":"IF('1. Order'!BG36=\"\",\"\",'1. Order'!BG36)","v":"ZWO"}]
[{"$f":"IF('1. Order'!F37=\"\",\"\",'1. Order'!F37)","v":""},{"$f":"IF('1. Order'!G37=\"\",\"\",'1. Order'!G37)","v":""},{"$f":"IF('1. Order'!H37=\"\",\"\",'1. Order'!H37)","v":""},{"$f":"IF('1. Order'!I37=\"\",\"\",'1. Order'!I37)","v":""},{"$f":"IF('1. Order'!J37=\"\",\"\",'1. Order'!J37)","v":""},{"$f":"IF('1. Order'!K37=\"\",\"\",'1. Order'!K37)","v":""},{"$f":"IF('1. Order'!L37=\"\",\"\",'1. Order'!L37)","v":""},{"$f":"IF('1. Order'!M37=\"\",\"\",'1. Order'!M37)","v":""},{"$f":"IF('1. Order'!N37=\"\",\"\",'1. Order'!N37)","v":""},{"$f":"IF('1. Order'!O37=\"\",\"\",'1. Order'!O37)","v":{"$error":"#N/A"}},{"$f":"IF('1. Order'!P37=\"\",\"\",'1. Order'!P37)","v":{"$error":"#N/A"}},{"$f":"IF('1. Order'!Q37=\"\",\"\",'1. Order'!Q37)","v":""},{"$f":"IF('1. Order'!R37=\"\",\"\",'1. Order'!R37)","v":""},{"$f":"IF('1. Order'!S37=\"\",\"\",'1. Order'!S37)","v":""},{"$f":"IF('1. Order'!V37=\"\",\"\",'1. Order'!V37)","v":""},{"$f":"IF('1. Order'!W37=\"\",\"\",'1. Order'!W37)","v":""},{"$f":"IF('1. Order'!X37=\"\",\"\",'1. Order'!X37)","v":"EUR"},{"$f":"IF('1. Order'!Y37=\"\",\"\",'1. Order'!Y37)","v":""},{"$f":"IF('1. Order'!Z37=\"\",\"\",'1. Order'!Z37)","v":""},{"$f":"IF('1. Order'!AA37=\"\",\"\",'1. Order'!AA37)","v":""},null,{"$f":"IF('1. Order'!AS37=\"\",\"\",'1. Order'!AS37)","v":""},{"$f":"IF('1. Order'!AT37=\"\",\"\",'1. Order'!AT37)","v":""},null,null,null,null,null,null,null,{"$f":"IF('1. Order'!AX37=\"\",\"\",'1. Order'!AX37)","v":""},{"$f":"IF('1. Order'!AY37=\"\",\"\",'1. Order'!AY37)","v":""},{"$f":"IF('1. Order'!AZ37=\"\",\"\",'1. Order'!AZ37)","v":""},{"$f":"IF('1. Order'!BA37=\"\",\"\",'1. Order'!BA37)","v":""},{"$f":"IF('1. Order'!BC37=\"\",\"\",'1. Order'!BC37)","v":""},{"$f":"IF('1. Order'!BD37=\"\",\"\",'1. Order'!BD37)","v":6},{"$f":"IF('1. Order'!BE37=\"\",\"\",'1. Order'!BE37)","v":"None"},{"$f":"IF('1. Order'!BF37=\"\",\"\",'1. Order'!BF37)","v":"Parcel"},{"$f":"IF('1. Order'!BG37=\"\",\"\",'1. Order'!BG37)","v":"ZWO"}]
[{"$f":"IF('1. Order'!F38=\"\",\"\",'1. Order'!F38)","v":""},{"$f":"IF('1. Order'!G38=\"\",\"\",'1. Order'!G38)","v":""},{"$f":"IF('1. Order'!H38=\"\",\"\",'1. Order'!H38)","v":""},{"$f":"IF('1. Order'!I38=\"\",\"\",'1. Order'!I38)","v":""},{"$f":"IF('1. Order'!J38=\"\",\"\",'1. Order'!J38)","v":""},{"$f":"IF('1. Order'!K38=\"\",\"\",'1. Order'!K38)","v":""},{"$f":"IF('1. Order'!L38=\"\",\"\",'1. Order'!L38)","v":""},{"$f":"IF('1. Order'!M38=\"\",\"\",'1. Order'!M38)","v":""},{"$f":"IF('1. Order'!N38=\"\",\"\",'1. Order'!N38)","v":""},{"$f":"IF('1. Order'!O38=\"\",\"\",'1. Order'!O38)","v":{"$error":"#N/A"}},{"$f":"IF('1. Order'!P38=\"\",\"\",'1. Order'!P38)","v":{"$error":"#N/A"}},{"$f":"IF('1. Order'!Q38=\"\",\"\",'1. Order'!Q38)","v":""},{"$f":"IF('1. Order'!R38=\"\",\"\",'1. Order'!R38)","v":""},{"$f":"IF('1. Order'!S38=\"\",\"\",'1. Order'!S38)","v":""},{"$f":"IF('1. Order'!V38=\"\",\"\",'1. Order'!V38)","v":""},{"$f":"IF('1. Order'!W38=\"\",\"\",'1. Order'!W38)","v":""},{"$f":"IF('1. Order'!X38=\"\",\"\",'1. Order'!X38)","v":"EUR"},{"$f":"IF('1. Order'!Y38=\"\",\"\",'1. Order'!Y38)","v":""},{"$f":"IF('1. Order'!Z38=\"\",\"\",'1. Order'!Z38)","v":""},{"$f":"IF('1. Order'!AA38=\"\",\"\",'1. Order'!AA38)","v":""},null,{"$f":"IF('1. Order'!AS38=\"\",\"\",'1. Order'!AS38)","v":""},{"$f":"IF('1. Order'!AT38=\"\",\"\",'1. Order'!AT38)","v":""},null,null,null,null,null,null,null,{"$f":"IF('1. Order'!AX38=\"\",\"\",'1. Order'!AX38)","v":""},{"$f":"IF('1. Order'!AY38=\"\",\"\",'1. Order'!AY38)","v":""},{"$f":"IF('1. Order'!AZ38=\"\",\"\",'1. Order'!AZ38)","v":""},{"$f":"IF('1. Order'!BA38=\"\",\"\",'1. Order'!BA38)","v":""},{"$f":"IF('1. Order'!BC38=\"\",\"\",'1. Order'!BC38)","v":""},{"$f":"IF('1. Order'!BD38=\"\",\"\",'1. Order'!BD38)","v":6},{"$f":"IF('1. Order'!BE38=\"\",\"\",'1. Order'!BE38)","v":"None"},{"$f":"IF('1. Order'!BF38=\"\",\"\",'1. Order'!BF38)","v":"Parcel"},{"$f":"IF('1. Order'!BG38=\"\",\"\",'1. Order'!BG38)","v":"ZWO"}]
[{"$f":"IF('1. Order'!F39=\"\",\"\",'1. Order'!F39)","v":""},{"$f":"IF('1. Order'!G39=\"\",\"\",'1. Order'!G39)","v":""},{"$f":"IF('1. Order'!H39=\"\",\"\",'1. Order'!H39)","v":""},{"$f":"IF('1. Order'!I39=\"\",\"\",'1. Order'!I39)","v":""},{"$f":"IF('1. Order'!J39=\"\",\"\",'1. Order'!J39)","v":""},{"$f":"IF('1. Order'!K39=\"\",\"\",'1. Order'!K39)","v":""},{"$f":"IF('1. Order'!L39=\"\",\"\",'1. Order'!L39)","v":""},{"$f":"IF('1. Order'!M39=\"\",\"\",'1. Order'!M39)","v":""},{"$f":"IF('1. Order'!N39=\"\",\"\",'1. Order'!N39)","v":""},{"$f":"IF('1. Order'!O39=\"\",\"\",'1. Order'!O39)","v":{"$error":"#N/A"}},{"$f":"IF('1. Order'!P39=\"\",\"\",'1. Order'!P39)","v":{"$error":"#N/A"}},{"$f":"IF('1. Order'!Q39=\"\",\"\",'1. Order'!Q39)","v":""},{"$f":"IF('1. Order'!R39=\"\",\"\",'1. Order'!R39)","v":""},{"$f":"IF('1. Order'!S39=\"\",\"\",'1. Order'!S39)","v":""},{"$f":"IF('1. Order'!V39=\"\",\"\",'1. Order'!V39)","v":""},{"$f":"IF('1. Order'!W39=\"\",\"\",'1. Order'!W39)","v":""},{"$f":"IF('1. Order'!X39=\"\",\"\",'1. Order'!X39)","v":"EUR"},{"$f":"IF('1. Order'!Y39=\"\",\"\",'1. Order'!Y39)","v":""},{"$f":"IF('1. Order'!Z39=\"\",\"\",'1. Order'!Z39)","v":""},{"$f":"IF('1. Order'!AA39=\"\",\"\",'1. Order'!AA39)","v":""},null,{"$f":"IF('1. Order'!AS39=\"\",\"\",'1. Order'!AS39)","v":""},{"$f":"IF('1. Order'!AT39=\"\",\"\",'1. Order'!AT39)","v":""},null,null,null,null,null,null,null,{"$f":"IF('1. Order'!AX39=\"\",\"\",'1. Order'!AX39)","v":""},{"$f":"IF('1. Order'!AY39=\"\",\"\",'1. Order'!AY39)","v":""},{"$f":"IF('1. Order'!AZ39=\"\",\"\",'1. Order'!AZ39)","v":""},{"$f":"IF('1. Order'!BA39=\"\",\"\",'1. Order'!BA39)","v":""},{"$f":"IF('1. Order'!BC39=\"\",\"\",'1. Order'!BC39)","v":""},{"$f":"IF('1. Order'!BD39=\"\",\"\",'1. Order'!BD39)","v":6},{"$f":"IF('1. Order'!BE39=\"\",\"\",'1. Order'!BE39)","v":"None"},{"$f":"IF('1. Order'!BF39=\"\",\"\",'1. Order'!BF39)","v":"Parcel"},{"$f":"IF('1. Order'!BG39=\"\",\"\",'1. Order'!BG39)","v":"ZWO"}]
[{"$f":"IF('1. Order'!F40=\"\",\"\",'1. Order'!F40)","v":""},{"$f":"IF('1. Order'!G40=\"\",\"\",'1. Order'!G40)","v":""},{"$f":"IF('1. Order'!H40=\"\",\"\",'1. Order'!H40)","v":""},{"$f":"IF('1. Order'!I40=\"\",\"\",'1. Order'!I40)","v":""},{"$f":"IF('1. Order'!J40=\"\",\"\",'1. Order'!J40)","v":""},{"$f":"IF('1. Order'!K40=\"\",\"\",'1. Order'!K40)","v":""},{"$f":"IF('1. Order'!L40=\"\",\"\",'1. Order'!L40)","v":""},{"$f":"IF('1. Order'!M40=\"\",\"\",'1. Order'!M40)","v":""},{"$f":"IF('1. Order'!N40=\"\",\"\",'1. Order'!N40)","v":""},{"$f":"IF('1. Order'!O40=\"\",\"\",'1. Order'!O40)","v":{"$error":"#N/A"}},{"$f":"IF('1. Order'!P40=\"\",\"\",'1. Order'!P40)","v":{"$error":"#N/A"}},{"$f":"IF('1. Order'!Q40=\"\",\"\",'1. Order'!Q40)","v":""},{"$f":"IF('1. Order'!R40=\"\",\"\",'1. Order'!R40)","v":""},{"$f":"IF('1. Order'!S40=\"\",\"\",'1. Order'!S40)","v":""},{"$f":"IF('1. Order'!V40=\"\",\"\",'1. Order'!V40)","v":""},{"$f":"IF('1. Order'!W40=\"\",\"\",'1. Order'!W40)","v":""},{"$f":"IF('1. Order'!X40=\"\",\"\",'1. Order'!X40)","v":"EUR"},{"$f":"IF('1. Order'!Y40=\"\",\"\",'1. Order'!Y40)","v":""},{"$f":"IF('1. Order'!Z40=\"\",\"\",'1. Order'!Z40)","v":""},{"$f":"IF('1. Order'!AA40=\"\",\"\",'1. Order'!AA40)","v":""},null,{"$f":"IF('1. Order'!AS40=\"\",\"\",'1. Order'!AS40)","v":""},{"$f":"IF('1. Order'!AT40=\"\",\"\",'1. Order'!AT40)","v":""},null,null,null,null,null,null,null,{"$f":"IF('1. Order'!AX40=\"\",\"\",'1. Order'!AX40)","v":""},{"$f":"IF('1. Order'!AY40=\"\",\"\",'1. Order'!AY40)","v":""},{"$f":"IF('1. Order'!AZ40=\"\",\"\",'1. Order'!AZ40)","v":""},{"$f":"IF('1. Order'!BA40=\"\",\"\",'1. Order'!BA40)","v":""},{"$f":"IF('1. Order'!BC40=\"\",\"\",'1. Order'!BC40)","v":""},{"$f":"IF('1. Order'!BD40=\"\",\"\",'1. Order'!BD40)","v":6},{"$f":"IF('1. Order'!BE40=\"\",\"\",'1. Order'!BE40)","v":"None"},{"$f":"IF('1. Order'!BF40=\"\",\"\",'1. Order'!BF40)","v":"Parcel"},{"$f":"IF('1. Order'!BG40=\"\",\"\",'1. Order'!BG40)","v":"ZWO"}]
[{"$f":"IF('1. Order'!F41=\"\",\"\",'1. Order'!F41)","v":""},{"$f":"IF('1. Order'!G41=\"\",\"\",'1. Order'!G41)","v":""},{"$f":"IF('1. Order'!H41=\"\",\"\",'1. Order'!H41)","v":""},{"$f":"IF('1. Order'!I41=\"\",\"\",'1. Order'!I41)","v":""},{"$f":"IF('1. Order'!J41=\"\",\"\",'1. Order'!J41)","v":""},{"$f":"IF('1. Order'!K41=\"\",\"\",'1. Order'!K41)","v":""},{"$f":"IF('1. Order'!L41=\"\",\"\",'1. Order'!L41)","v":""},{"$f":"IF('1. Order'!M41=\"\",\"\",'1. Order'!M41)","v":""},{"$f":"IF('1. Order'!N41=\"\",\"\",'1. Order'!N41)","v":""},{"$f":"IF('1. Order'!O41=\"\",\"\",'1. Order'!O41)","v":{"$error":"#N/A"}},{"$f":"IF('1. Order'!P41=\"\",\"\",'1. Order'!P41)","v":{"$error":"#N/A"}},{"$f":"IF('1. Order'!Q41=\"\",\"\",'1. Order'!Q41)","v":""},{"$f":"IF('1. Order'!R41=\"\",\"\",'1. Order'!R41)","v":""},{"$f":"IF('1. Order'!S41=\"\",\"\",'1. Order'!S41)","v":""},{"$f":"IF('1. Order'!V41=\"\",\"\",'1. Order'!V41)","v":""},{"$f":"IF('1. Order'!W41=\"\",\"\",'1. Order'!W41)","v":""},{"$f":"IF('1. Order'!X41=\"\",\"\",'1. Order'!X41)","v":"EUR"},{"$f":"IF('1. Order'!Y41=\"\",\"\",'1. Order'!Y41)","v":""},{"$f":"IF('1. Order'!Z41=\"\",\"\",'1. Order'!Z41)","v":""},{"$f":"IF('1. Order'!AA41=\"\",\"\",'1. Order'!AA41)","v":""},null,{"$f":"IF('1. Order'!AS41=\"\",\"\",'1. Order'!AS41)","v":""},{"$f":"IF('1. Order'!AT41=\"\",\"\",'1. Order'!AT41)","v":""},null,null,null,null,null,null,null,{"$f":"IF('1. Order'!AX41=\"\",\"\",'1. Order'!AX41)","v":""},{"$f":"IF('1. Order'!AY41=\"\",\"\",'1. Order'!AY41)","v":""},{"$f":"IF('1. Order'!AZ41=\"\",\"\",'1. Order'!AZ41)","v":""},{"$f":"IF('1. Order'!BA41=\"\",\"\",'1. Order'!BA41)","v":""},{"$f":"IF('1. Order'!BC41=\"\",\"\",'1. Order'!BC41)","v":""},{"$f":"IF('1. Order'!BD41=\"\",\"\",'1. Order'!BD41)","v":6},{"$f":"IF('1. Order'!BE41=\"\",\"\",'1. Order'!BE41)","v":"None"},{"$f":"IF('1. Order'!BF41=\"\",\"\",'1. Order'!BF41)","v":"Parcel"},{"$f":"IF('1. Order'!BG41=\"\",\"\",'1. Order'!BG41)","v":"ZWO"}]
[{"$f":"IF('1. Order'!F42=\"\",\"\",'1. Order'!F42)","v":""},{"$f":"IF('1. Order'!G42=\"\",\"\",'1. Order'!G42)","v":""},{"$f":"IF('1. Order'!H42=\"\",\"\",'1. Order'!H42)","v":""},{"$f":"IF('1. Order'!I42=\"\",\"\",'1. Order'!I42)","v":""},{"$f":"IF('1. Order'!J42=\"\",\"\",'1. Order'!J42)","v":""},{"$f":"IF('1. Order'!K42=\"\",\"\",'1. Order'!K42)","v":""},{"$f":"IF('1. Order'!L42=\"\",\"\",'1. Order'!L42)","v":""},{"$f":"IF('1. Order'!M42=\"\",\"\",'1. Order'!M42)","v":""},{"$f":"IF('1. Order'!N42=\"\",\"\",'1. Order'!N42)","v":""},{"$f":"IF('1. Order'!O42=\"\",\"\",'1. Order'!O42)","v":{"$error":"#N/A"}},{"$f":"IF('1. Order'!P42=\"\",\"\",'1. Order'!P42)","v":{"$error":"#N/A"}},{"$f":"IF('1. Order'!Q42=\"\",\"\",'1. Order'!Q42)","v":""},{"$f":"IF('1. Order'!R42=\"\",\"\",'1. Order'!R42)","v":""},{"$f":"IF('1. Order'!S42=\"\",\"\",'1. Order'!S42)","v":""},{"$f":"IF('1. Order'!V42=\"\",\"\",'1. Order'!V42)","v":""},{"$f":"IF('1. Order'!W42=\"\",\"\",'1. Order'!W42)","v":""},{"$f":"IF('1. Order'!X42=\"\",\"\",'1. Order'!X42)","v":"EUR"},{"$f":"IF('1. Order'!Y42=\"\",\"\",'1. Order'!Y42)","v":""},{"$f":"IF('1. Order'!Z42=\"\",\"\",'1. Order'!Z42)","v":""},{"$f":"IF('1. Order'!AA42=\"\",\"\",'1. Order'!AA42)","v":""},null,{"$f":"IF('1. Order'!AS42=\"\",\"\",'1. Order'!AS42)","v":""},{"$f":"IF('1. Order'!AT42=\"\",\"\",'1. Order'!AT42)","v":""},null,null,null,null,null,null,null,{"$f":"IF('1. Order'!AX42=\"\",\"\",'1. Order'!AX42)","v":""},{"$f":"IF('1. Order'!AY42=\"\",\"\",'1. Order'!AY42)","v":""},{"$f":"IF('1. Order'!AZ42=\"\",\"\",'1. Order'!AZ42)","v":""},{"$f":"IF('1. Order'!BA42=\"\",\"\",'1. Order'!BA42)","v":""},{"$f":"IF('1. Order'!BC42=\"\",\"\",'1. Order'!BC42)","v":""},{"$f":"IF('1. Order'!BD42=\"\",\"\",'1. Order'!BD42)","v":6},{"$f":"IF('1. Order'!BE42=\"\",\"\",'1. Order'!BE42)","v":"None"},{"$f":"IF('1. Order'!BF42=\"\",\"\",'1. Order'!BF42)","v":"Parcel"},{"$f":"IF('1. Order'!BG42=\"\",\"\",'1. Order'!BG42)","v":"ZWO"}]
[{"$f":"IF('1. Order'!F43=\"\",\"\",'1. Order'!F43)","v":""},{"$f":"IF('1. Order'!G43=\"\",\"\",'1. Order'!G43)","v":""},{"$f":"IF('1. Order'!H43=\"\",\"\",'1. Order'!H43)","v":""},{"$f":"IF('1. Order'!I43=\"\",\"\",'1. Order'!I43)","v":""},{"$f":"IF('1. Order'!J43=\"\",\"\",'1. Order'!J43)","v":""},{"$f":"IF('1. Order'!K43=\"\",\"\",'1. Order'!K43)","v":""},{"$f":"IF('1. Order'!L43=\"\",\"\",'1. Order'!L43)","v":""},{"$f":"IF('1. Order'!M43=\"\",\"\",'1. Order'!M43)","v":""},{"$f":"IF('1. Order'!N43=\"\",\"\",'1. Order'!N43)","v":""},{"$f":"IF('1. Order'!O43=\"\",\"\",'1. Order'!O43)","v":{"$error":"#N/A"}},{"$f":"IF('1. Order'!P43=\"\",\"\",'1. Order'!P43)","v":{"$error":"#N/A"}},{"$f":"IF('1. Order'!Q43=\"\",\"\",'1. Order'!Q43)","v":""},{"$f":"IF('1. Order'!R43=\"\",\"\",'1. Order'!R43)","v":""},{"$f":"IF('1. Order'!S43=\"\",\"\",'1. Order'!S43)","v":""},{"$f":"IF('1. Order'!V43=\"\",\"\",'1. Order'!V43)","v":""},{"$f":"IF('1. Order'!W43=\"\",\"\",'1. Order'!W43)","v":""},{"$f":"IF('1. Order'!X43=\"\",\"\",'1. Order'!X43)","v":"EUR"},{"$f":"IF('1. Order'!Y43=\"\",\"\",'1. Order'!Y43)","v":""},{"$f":"IF('1. Order'!Z43=\"\",\"\",'1. Order'!Z43)","v":""},{"$f":"IF('1. Order'!AA43=\"\",\"\",'1. Order'!AA43)","v":""},null,{"$f":"IF('1. Order'!AS43=\"\",\"\",'1. Order'!AS43)","v":""},{"$f":"IF('1. Order'!AT43=\"\",\"\",'1. Order'!AT43)","v":""},null,null,null,null,null,null,null,{"$f":"IF('1. Order'!AX43=\"\",\"\",'1. Order'!AX43)","v":""},{"$f":"IF('1. Order'!AY43=\"\",\"\",'1. Order'!AY43)","v":""},{"$f":"IF('1. Order'!AZ43=\"\",\"\",'1. Order'!AZ43)","v":""},{"$f":"IF('1. Order'!BA43=\"\",\"\",'1. Order'!BA43)","v":""},{"$f":"IF('1. Order'!BC43=\"\",\"\",'1. Order'!BC43)","v":""},{"$f":"IF('1. Order'!BD43=\"\",\"\",'1. Order'!BD43)","v":6},{"$f":"IF('1. Order'!BE43=\"\",\"\",'1. Order'!BE43)","v":"None"},{"$f":"IF('1. Order'!BF43=\"\",\"\",'1. Order'!BF43)","v":"Parcel"},{"$f":"IF('1. Order'!BG43=\"\",\"\",'1. Order'!BG43)","v":"ZWO"}]
[{"$f":"IF('1. Order'!F44=\"\",\"\",'1. Order'!F44)","v":""},{"$f":"IF('1. Order'!G44=\"\",\"\",'1. Order'!G44)","v":""},{"$f":"IF('1. Order'!H44=\"\",\"\",'1. Order'!H44)","v":""},{"$f":"IF('1. Order'!I44=\"\",\"\",'1. Order'!I44)","v":""},{"$f":"IF('1. Order'!J44=\"\",\"\",'1. Order'!J44)","v":""},{"$f":"IF('1. Order'!K44=\"\",\"\",'1. Order'!K44)","v":""},{"$f":"IF('1. Order'!L44=\"\",\"\",'1. Order'!L44)","v":""},{"$f":"IF('1. Order'!M44=\"\",\"\",'1. Order'!M44)","v":""},{"$f":"IF('1. Order'!N44=\"\",\"\",'1. Order'!N44)","v":""},{"$f":"IF('1. Order'!O44=\"\",\"\",'1. Order'!O44)","v":{"$error":"#N/A"}},{"$f":"IF('1. Order'!P44=\"\",\"\",'1. Order'!P44)","v":{"$error":"#N/A"}},{"$f":"IF('1. Order'!Q44=\"\",\"\",'1. Order'!Q44)","v":""},{"$f":"IF('1. Order'!R44=\"\",\"\",'1. Order'!R44)","v":""},{"$f":"IF('1. Order'!S44=\"\",\"\",'1. Order'!S44)","v":""},{"$f":"IF('1. Order'!V44=\"\",\"\",'1. Order'!V44)","v":""},{"$f":"IF('1. Order'!W44=\"\",\"\",'1. Order'!W44)","v":""},{"$f":"IF('1. Order'!X44=\"\",\"\",'1. Order'!X44)","v":"EUR"},{"$f":"IF('1. Order'!Y44=\"\",\"\",'1. Order'!Y44)","v":""},{"$f":"IF('1. Order'!Z44=\"\",\"\",'1. Order'!Z44)","v":""},{"$f":"IF('1. Order'!AA44=\"\",\"\",'1. Order'!AA44)","v":""},null,{"$f":"IF('1. Order'!AS44=\"\",\"\",'1. Order'!AS44)","v":""},{"$f":"IF('1. Order'!AT44=\"\",\"\",'1. Order'!AT44)","v":""},null,null,null,null,null,null,null,{"$f":"IF('1. Order'!AX44=\"\",\"\",'1. Order'!AX44)","v":""},{"$f":"IF('1. Order'!AY44=\"\",\"\",'1. Order'!AY44)","v":""},{"$f":"IF('1. Order'!AZ44=\"\",\"\",'1. Order'!AZ44)","v":""},{"$f":"IF('1. Order'!BA44=\"\",\"\",'1. Order'!BA44)","v":""},{"$f":"IF('1. Order'!BC44=\"\",\"\",'1. Order'!BC44)","v":""},{"$f":"IF('1. Order'!BD44=\"\",\"\",'1. Order'!BD44)","v":6},{"$f":"IF('1. Order'!BE44=\"\",\"\",'1. Order'!BE44)","v":"None"},{"$f":"IF('1. Order'!BF44=\"\",\"\",'1. Order'!BF44)","v":"Parcel"},{"$f":"IF('1. Order'!BG44=\"\",\"\",'1. Order'!BG44)","v":"ZWO"}]
[{"$f":"IF('1. Order'!F45=\"\",\"\",'1. Order'!F45)","v":""},{"$f":"IF('1. Order'!G45=\"\",\"\",'1. Order'!G45)","v":""},{"$f":"IF('1. Order'!H45=\"\",\"\",'1. Order'!H45)","v":""},{"$f":"IF('1. Order'!I45=\"\",\"\",'1. Order'!I45)","v":""},{"$f":"IF('1. Order'!J45=\"\",\"\",'1. Order'!J45)","v":""},{"$f":"IF('1. Order'!K45=\"\",\"\",'1. Order'!K45)","v":""},{"$f":"IF('1. Order'!L45=\"\",\"\",'1. Order'!L45)","v":""},{"$f":"IF('1. Order'!M45=\"\",\"\",'1. Order'!M45)","v":""},{"$f":"IF('1. Order'!N45=\"\",\"\",'1. Order'!N45)","v":""},{"$f":"IF('1. Order'!O45=\"\",\"\",'1. Order'!O45)","v":{"$error":"#N/A"}},{"$f":"IF('1. Order'!P45=\"\",\"\",'1. Order'!P45)","v":{"$error":"#N/A"}},{"$f":"IF('1. Order'!Q45=\"\",\"\",'1. Order'!Q45)","v":""},{"$f":"IF('1. Order'!R45=\"\",\"\",'1. Order'!R45)","v":""},{"$f":"IF('1. Order'!S45=\"\",\"\",'1. Order'!S45)","v":""},{"$f":"IF('1. Order'!V45=\"\",\"\",'1. Order'!V45)","v":""},{"$f":"IF('1. Order'!W45=\"\",\"\",'1. Order'!W45)","v":""},{"$f":"IF('1. Order'!X45=\"\",\"\",'1. Order'!X45)","v":"EUR"},{"$f":"IF('1. Order'!Y45=\"\",\"\",'1. Order'!Y45)","v":""},{"$f":"IF('1. Order'!Z45=\"\",\"\",'1. Order'!Z45)","v":""},{"$f":"IF('1. Order'!AA45=\"\",\"\",'1. Order'!AA45)","v":""},null,{"$f":"IF('1. Order'!AS45=\"\",\"\",'1. Order'!AS45)","v":""},{"$f":"IF('1. Order'!AT45=\"\",\"\",'1. Order'!AT45)","v":""},null,null,null,null,null,null,null,{"$f":"IF('1. Order'!AX45=\"\",\"\",'1. Order'!AX45)","v":""},{"$f":"IF('1. Order'!AY45=\"\",\"\",'1. Order'!AY45)","v":""},{"$f":"IF('1. Order'!AZ45=\"\",\"\",'1. Order'!AZ45)","v":""},{"$f":"IF('1. Order'!BA45=\"\",\"\",'1. Order'!BA45)","v":""},{"$f":"IF('1. Order'!BC45=\"\",\"\",'1. Order'!BC45)","v":""},{"$f":"IF('1. Order'!BD45=\"\",\"\",'1. Order'!BD45)","v":6},{"$f":"IF('1. Order'!BE45=\"\",\"\",'1. Order'!BE45)","v":"None"},{"$f":"IF('1. Order'!BF45=\"\",\"\",'1. Order'!BF45)","v":"Parcel"},{"$f":"IF('1. Order'!BG45=\"\",\"\",'1. Order'!BG45)","v":"ZWO"}]
[{"$f":"IF('1. Order'!F46=\"\",\"\",'1. Order'!F46)","v":""},{"$f":"IF('1. Order'!G46=\"\",\"\",'1. Order'!G46)","v":""},{"$f":"IF('1. Order'!H46=\"\",\"\",'1. Order'!H46)","v":""},{"$f":"IF('1. Order'!I46=\"\",\"\",'1. Order'!I46)","v":""},{"$f":"IF('1. Order'!J46=\"\",\"\",'1. Order'!J46)","v":""},{"$f":"IF('1. Order'!K46=\"\",\"\",'1. Order'!K46)","v":""},{"$f":"IF('1. Order'!L46=\"\",\"\",'1. Order'!L46)","v":""},{"$f":"IF('1. Order'!M46=\"\",\"\",'1. Order'!M46)","v":""},{"$f":"IF('1. Order'!N46=\"\",\"\",'1. Order'!N46)","v":""},{"$f":"IF('1. Order'!O46=\"\",\"\",'1. Order'!O46)","v":{"$error":"#N/A"}},{"$f":"IF('1. Order'!P46=\"\",\"\",'1. Order'!P46)","v":{"$error":"#N/A"}},{"$f":"IF('1. Order'!Q46=\"\",\"\",'1. Order'!Q46)","v":""},{"$f":"IF('1. Order'!R46=\"\",\"\",'1. Order'!R46)","v":""},{"$f":"IF('1. Order'!S46=\"\",\"\",'1. Order'!S46)","v":""},{"$f":"IF('1. Order'!V46=\"\",\"\",'1. Order'!V46)","v":""},{"$f":"IF('1. Order'!W46=\"\",\"\",'1. Order'!W46)","v":""},{"$f":"IF('1. Order'!X46=\"\",\"\",'1. Order'!X46)","v":"EUR"},{"$f":"IF('1. Order'!Y46=\"\",\"\",'1. Order'!Y46)","v":""},{"$f":"IF('1. Order'!Z46=\"\",\"\",'1. Order'!Z46)","v":""},{"$f":"IF('1. Order'!AA46=\"\",\"\",'1. Order'!AA46)","v":""},null,{"$f":"IF('1. Order'!AS46=\"\",\"\",'1. Order'!AS46)","v":""},{"$f":"IF('1. Order'!AT46=\"\",\"\",'1. Order'!AT46)","v":""},null,null,null,null,null,null,null,{"$f":"IF('1. Order'!AX46=\"\",\"\",'1. Order'!AX46)","v":""},{"$f":"IF('1. Order'!AY46=\"\",\"\",'1. Order'!AY46)","v":""},{"$f":"IF('1. Order'!AZ46=\"\",\"\",'1. Order'!AZ46)","v":""},{"$f":"IF('1. Order'!BA46=\"\",\"\",'1. Order'!BA46)","v":""},{"$f":"IF('1. Order'!BC46=\"\",\"\",'1. Order'!BC46)","v":""},{"$f":"IF('1. Order'!BD46=\"\",\"\",'1. Order'!BD46)","v":6},{"$f":"IF('1. Order'!BE46=\"\",\"\",'1. Order'!BE46)","v":"None"},{"$f":"IF('1. Order'!BF46=\"\",\"\",'1. Order'!BF46)","v":"Parcel"},{"$f":"IF('1. Order'!BG46=\"\",\"\",'1. Order'!BG46)","v":"ZWO"}]
[{"$f":"IF('1. Order'!F47=\"\",\"\",'1. Order'!F47)","v":""},{"$f":"IF('1. Order'!G47=\"\",\"\",'1. Order'!G47)","v":""},{"$f":"IF('1. Order'!H47=\"\",\"\",'1. Order'!H47)","v":""},{"$f":"IF('1. Order'!I47=\"\",\"\",'1. Order'!I47)","v":""},{"$f":"IF('1. Order'!J47=\"\",\"\",'1. Order'!J47)","v":""},{"$f":"IF('1. Order'!K47=\"\",\"\",'1. Order'!K47)","v":""},{"$f":"IF('1. Order'!L47=\"\",\"\",'1. Order'!L47)","v":""},{"$f":"IF('1. Order'!M47=\"\",\"\",'1. Order'!M47)","v":""},{"$f":"IF('1. Order'!N47=\"\",\"\",'1. Order'!N47)","v":""},{"$f":"IF('1. Order'!O47=\"\",\"\",'1. Order'!O47)","v":{"$error":"#N/A"}},{"$f":"IF('1. Order'!P47=\"\",\"\",'1. Order'!P47)","v":{"$error":"#N/A"}},{"$f":"IF('1. Order'!Q47=\"\",\"\",'1. Order'!Q47)","v":""},{"$f":"IF('1. Order'!R47=\"\",\"\",'1. Order'!R47)","v":""},{"$f":"IF('1. Order'!S47=\"\",\"\",'1. Order'!S47)","v":""},{"$f":"IF('1. Order'!V47=\"\",\"\",'1. Order'!V47)","v":""},{"$f":"IF('1. Order'!W47=\"\",\"\",'1. Order'!W47)","v":""},{"$f":"IF('1. Order'!X47=\"\",\"\",'1. Order'!X47)","v":"EUR"},{"$f":"IF('1. Order'!Y47=\"\",\"\",'1. Order'!Y47)","v":""},{"$f":"IF('1. Order'!Z47=\"\",\"\",'1. Order'!Z47)","v":""},{"$f":"IF('1. Order'!AA47=\"\",\"\",'1. Order'!AA47)","v":""},null,{"$f":"IF('1. Order'!AS47=\"\",\"\",'1. Order'!AS47)","v":""},{"$f":"IF('1. Order'!AT47=\"\",\"\",'1. Order'!AT47)","v":""},null,null,null,null,null,null,null,{"$f":"IF('1. Order'!AX47=\"\",\"\",'1. Order'!AX47)","v":""},{"$f":"IF('1. Order'!AY47=\"\",\"\",'1. Order'!AY47)","v":""},{"$f":"IF('1. Order'!AZ47=\"\",\"\",'1. Order'!AZ47)","v":""},{"$f":"IF('1. Order'!BA47=\"\",\"\",'1. Order'!BA47)","v":""},{"$f":"IF('1. Order'!BC47=\"\",\"\",'1. Order'!BC47)","v":""},{"$f":"IF('1. Order'!BD47=\"\",\"\",'1. Order'!BD47)","v":6},{"$f":"IF('1. Order'!BE47=\"\",\"\",'1. Order'!BE47)","v":"None"},{"$f":"IF('1. Order'!BF47=\"\",\"\",'1. Order'!BF47)","v":"Parcel"},{"$f":"IF('1. Order'!BG47=\"\",\"\",'1. Order'!BG47)","v":"ZWO"}]
[{"$f":"IF('1. Order'!F48=\"\",\"\",'1. Order'!F48)","v":""},{"$f":"IF('1. Order'!G48=\"\",\"\",'1. Order'!G48)","v":""},{"$f":"IF('1. Order'!H48=\"\",\"\",'1. Order'!H48)","v":""},{"$f":"IF('1. Order'!I48=\"\",\"\",'1. Order'!I48)","v":""},{"$f":"IF('1. Order'!J48=\"\",\"\",'1. Order'!J48)","v":""},{"$f":"IF('1. Order'!K48=\"\",\"\",'1. Order'!K48)","v":""},{"$f":"IF('1. Order'!L48=\"\",\"\",'1. Order'!L48)","v":""},{"$f":"IF('1. Order'!M48=\"\",\"\",'1. Order'!M48)","v":""},{"$f":"IF('1. Order'!N48=\"\",\"\",'1. Order'!N48)","v":""},{"$f":"IF('1. Order'!O48=\"\",\"\",'1. Order'!O48)","v":{"$error":"#N/A"}},{"$f":"IF('1. Order'!P48=\"\",\"\",'1. Order'!P48)","v":{"$error":"#N/A"}},{"$f":"IF('1. Order'!Q48=\"\",\"\",'1. Order'!Q48)","v":""},{"$f":"IF('1. Order'!R48=\"\",\"\",'1. Order'!R48)","v":""},{"$f":"IF('1. Order'!S48=\"\",\"\",'1. Order'!S48)","v":""},{"$f":"IF('1. Order'!V48=\"\",\"\",'1. Order'!V48)","v":""},{"$f":"IF('1. Order'!W48=\"\",\"\",'1. Order'!W48)","v":""},{"$f":"IF('1. Order'!X48=\"\",\"\",'1. Order'!X48)","v":"EUR"},{"$f":"IF('1. Order'!Y48=\"\",\"\",'1. Order'!Y48)","v":""},{"$f":"IF('1. Order'!Z48=\"\",\"\",'1. Order'!Z48)","v":""},{"$f":"IF('1. Order'!AA48=\"\",\"\",'1. Order'!AA48)","v":""},null,{"$f":"IF('1. Order'!AS48=\"\",\"\",'1. Order'!AS48)","v":""},{"$f":"IF('1. Order'!AT48=\"\",\"\",'1. Order'!AT48)","v":""},null,null,null,null,null,null,null,{"$f":"IF('1. Order'!AX48=\"\",\"\",'1. Order'!AX48)","v":""},{"$f":"IF('1. Order'!AY48=\"\",\"\",'1. Order'!AY48)","v":""},{"$f":"IF('1. Order'!AZ48=\"\",\"\",'1. Order'!AZ48)","v":""},{"$f":"IF('1. Order'!BA48=\"\",\"\",'1. Order'!BA48)","v":""},{"$f":"IF('1. Order'!BC48=\"\",\"\",'1. Order'!BC48)","v":""},{"$f":"IF('1. Order'!BD48=\"\",\"\",'1. Order'!BD48)","v":6},{"$f":"IF('1. Order'!BE48=\"\",\"\",'1. Order'!BE48)","v":"None"},{"$f":"IF('1. Order'!BF48=\"\",\"\",'1. Order'!BF48)","v":"Parcel"},{"$f":"IF('1. Order'!BG48=\"\",\"\",'1. Order'!BG48)","v":"ZWO"}]
[{"$f":"IF('1. Order'!F49=\"\",\"\",'1. Order'!F49)","v":""},{"$f":"IF('1. Order'!G49=\"\",\"\",'1. Order'!G49)","v":""},{"$f":"IF('1. Order'!H49=\"\",\"\",'1. Order'!H49)","v":""},{"$f":"IF('1. Order'!I49=\"\",\"\",'1. Order'!I49)","v":""},{"$f":"IF('1. Order'!J49=\"\",\"\",'1. Order'!J49)","v":""},{"$f":"IF('1. Order'!K49=\"\",\"\",'1. Order'!K49)","v":""},{"$f":"IF('1. Order'!L49=\"\",\"\",'1. Order'!L49)","v":""},{"$f":"IF('1. Order'!M49=\"\",\"\",'1. Order'!M49)","v":""},{"$f":"IF('1. Order'!N49=\"\",\"\",'1. Order'!N49)","v":""},{"$f":"IF('1. Order'!O49=\"\",\"\",'1. Order'!O49)","v":{"$error":"#N/A"}},{"$f":"IF('1. Order'!P49=\"\",\"\",'1. Order'!P49)","v":{"$error":"#N/A"}},{"$f":"IF('1. Order'!Q49=\"\",\"\",'1. Order'!Q49)","v":""},{"$f":"IF('1. Order'!R49=\"\",\"\",'1. Order'!R49)","v":""},{"$f":"IF('1. Order'!S49=\"\",\"\",'1. Order'!S49)","v":""},{"$f":"IF('1. Order'!V49=\"\",\"\",'1. Order'!V49)","v":""},{"$f":"IF('1. Order'!W49=\"\",\"\",'1. Order'!W49)","v":""},{"$f":"IF('1. Order'!X49=\"\",\"\",'1. Order'!X49)","v":"EUR"},{"$f":"IF('1. Order'!Y49=\"\",\"\",'1. Order'!Y49)","v":""},{"$f":"IF('1. Order'!Z49=\"\",\"\",'1. Order'!Z49)","v":""},{"$f":"IF('1. Order'!AA49=\"\",\"\",'1. Order'!AA49)","v":""},null,{"$f":"IF('1. Order'!AS49=\"\",\"\",'1. Order'!AS49)","v":""},{"$f":"IF('1. Order'!AT49=\"\",\"\",'1. Order'!AT49)","v":""},null,null,null,null,null,null,null,{"$f":"IF('1. Order'!AX49=\"\",\"\",'1. Order'!AX49)","v":""},{"$f":"IF('1. Order'!AY49=\"\",\"\",'1. Order'!AY49)","v":""},{"$f":"IF('1. Order'!AZ49=\"\",\"\",'1. Order'!AZ49)","v":""},{"$f":"IF('1. Order'!BA49=\"\",\"\",'1. Order'!BA49)","v":""},{"$f":"IF('1. Order'!BC49=\"\",\"\",'1. Order'!BC49)","v":""},{"$f":"IF('1. Order'!BD49=\"\",\"\",'1. Order'!BD49)","v":6},{"$f":"IF('1. Order'!BE49=\"\",\"\",'1. Order'!BE49)","v":"None"},{"$f":"IF('1. Order'!BF49=\"\",\"\",'1. Order'!BF49)","v":"Parcel"},{"$f":"IF('1. Order'!BG49=\"\",\"\",'1. Order'!BG49)","v":"ZWO"}]
[{"$f":"IF('1. Order'!F50=\"\",\"\",'1. Order'!F50)","v":""},{"$f":"IF('1. Order'!G50=\"\",\"\",'1. Order'!G50)","v":""},{"$f":"IF('1. Order'!H50=\"\",\"\",'1. Order'!H50)","v":""},{"$f":"IF('1. Order'!I50=\"\",\"\",'1. Order'!I50)","v":""},{"$f":"IF('1. Order'!J50=\"\",\"\",'1. Order'!J50)","v":""},{"$f":"IF('1. Order'!K50=\"\",\"\",'1. Order'!K50)","v":""},{"$f":"IF('1. Order'!L50=\"\",\"\",'1. Order'!L50)","v":""},{"$f":"IF('1. Order'!M50=\"\",\"\",'1. Order'!M50)","v":""},{"$f":"IF('1. Order'!N50=\"\",\"\",'1. Order'!N50)","v":""},{"$f":"IF('1. Order'!O50=\"\",\"\",'1. Order'!O50)","v":{"$error":"#N/A"}},{"$f":"IF('1. Order'!P50=\"\",\"\",'1. Order'!P50)","v":{"$error":"#N/A"}},{"$f":"IF('1. Order'!Q50=\"\",\"\",'1. Order'!Q50)","v":""},{"$f":"IF('1. Order'!R50=\"\",\"\",'1. Order'!R50)","v":""},{"$f":"IF('1. Order'!S50=\"\",\"\",'1. Order'!S50)","v":""},{"$f":"IF('1. Order'!V50=\"\",\"\",'1. Order'!V50)","v":""},{"$f":"IF('1. Order'!W50=\"\",\"\",'1. Order'!W50)","v":""},{"$f":"IF('1. Order'!X50=\"\",\"\",'1. Order'!X50)","v":"EUR"},{"$f":"IF('1. Order'!Y50=\"\",\"\",'1. Order'!Y50)","v":""},{"$f":"IF('1. Order'!Z50=\"\",\"\",'1. Order'!Z50)","v":""},{"$f":"IF('1. Order'!AA50=\"\",\"\",'1. Order'!AA50)","v":""},null,{"$f":"IF('1. Order'!AS50=\"\",\"\",'1. Order'!AS50)","v":""},{"$f":"IF('1. Order'!AT50=\"\",\"\",'1. Order'!AT50)","v":""},null,null,null,null,null,null,null,{"$f":"IF('1. Order'!AX50=\"\",\"\",'1. Order'!AX50)","v":""},{"$f":"IF('1. Order'!AY50=\"\",\"\",'1. Order'!AY50)","v":""},{"$f":"IF('1. Order'!AZ50=\"\",\"\",'1. Order'!AZ50)","v":""},{"$f":"IF('1. Order'!BA50=\"\",\"\",'1. Order'!BA50)","v":""},{"$f":"IF('1. Order'!BC50=\"\",\"\",'1. Order'!BC50)","v":""},{"$f":"IF('1. Order'!BD50=\"\",\"\",'1. Order'!BD50)","v":6},{"$f":"IF('1. Order'!BE50=\"\",\"\",'1. Order'!BE50)","v":"None"},{"$f":"IF('1. Order'!BF50=\"\",\"\",'1. Order'!BF50)","v":"Parcel"},{"$f":"IF('1. Order'!BG50=\"\",\"\",'1. Order'!BG50)","v":"ZWO"}]
[{"$f":"IF('1. Order'!F51=\"\",\"\",'1. Order'!F51)","v":""},{"$f":"IF('1. Order'!G51=\"\",\"\",'1. Order'!G51)","v":""},{"$f":"IF('1. Order'!H51=\"\",\"\",'1. Order'!H51)","v":""},{"$f":"IF('1. Order'!I51=\"\",\"\",'1. Order'!I51)","v":""},{"$f":"IF('1. Order'!J51=\"\",\"\",'1. Order'!J51)","v":""},{"$f":"IF('1. Order'!K51=\"\",\"\",'1. Order'!K51)","v":""},{"$f":"IF('1. Order'!L51=\"\",\"\",'1. Order'!L51)","v":""},{"$f":"IF('1. Order'!M51=\"\",\"\",'1. Order'!M51)","v":""},{"$f":"IF('1. Order'!N51=\"\",\"\",'1. Order'!N51)","v":""},{"$f":"IF('1. Order'!O51=\"\",\"\",'1. Order'!O51)","v":{"$error":"#N/A"}},{"$f":"IF('1. Order'!P51=\"\",\"\",'1. Order'!P51)","v":{"$error":"#N/A"}},{"$f":"IF('1. Order'!Q51=\"\",\"\",'1. Order'!Q51)","v":""},{"$f":"IF('1. Order'!R51=\"\",\"\",'1. Order'!R51)","v":""},{"$f":"IF('1. Order'!S51=\"\",\"\",'1. Order'!S51)","v":""},{"$f":"IF('1. Order'!V51=\"\",\"\",'1. Order'!V51)","v":""},{"$f":"IF('1. Order'!W51=\"\",\"\",'1. Order'!W51)","v":""},{"$f":"IF('1. Order'!X51=\"\",\"\",'1. Order'!X51)","v":"EUR"},{"$f":"IF('1. Order'!Y51=\"\",\"\",'1. Order'!Y51)","v":""},{"$f":"IF('1. Order'!Z51=\"\",\"\",'1. Order'!Z51)","v":""},{"$f":"IF('1. Order'!AA51=\"\",\"\",'1. Order'!AA51)","v":""},null,{"$f":"IF('1. Order'!AS51=\"\",\"\",'1. Order'!AS51)","v":""},{"$f":"IF('1. Order'!AT51=\"\",\"\",'1. Order'!AT51)","v":""},null,null,null,null,null,null,null,{"$f":"IF('1. Order'!AX51=\"\",\"\",'1. Order'!AX51)","v":""},{"$f":"IF('1. Order'!AY51=\"\",\"\",'1. Order'!AY51)","v":""},{"$f":"IF('1. Order'!AZ51=\"\",\"\",'1. Order'!AZ51)","v":""},{"$f":"IF('1. Order'!BA51=\"\",\"\",'1. Order'!BA51)","v":""},{"$f":"IF('1. Order'!BC51=\"\",\"\",'1. Order'!BC51)","v":""},{"$f":"IF('1. Order'!BD51=\"\",\"\",'1. Order'!BD51)","v":6},{"$f":"IF('1. Order'!BE51=\"\",\"\",'1. Order'!BE51)","v":"None"},{"$f":"IF('1. Order'!BF51=\"\",\"\",'1. Order'!BF51)","v":"Parcel"},{"$f":"IF('1. Order'!BG51=\"\",\"\",'1. Order'!BG51)","v":"ZWO"}]
[{"$f":"IF('1. Order'!F52=\"\",\"\",'1. Order'!F52)","v":""},{"$f":"IF('1. Order'!G52=\"\",\"\",'1. Order'!G52)","v":""},{"$f":"IF('1. Order'!H52=\"\",\"\",'1. Order'!H52)","v":""},{"$f":"IF('1. Order'!I52=\"\",\"\",'1. Order'!I52)","v":""},{"$f":"IF('1. Order'!J52=\"\",\"\",'1. Order'!J52)","v":""},{"$f":"IF('1. Order'!K52=\"\",\"\",'1. Order'!K52)","v":""},{"$f":"IF('1. Order'!L52=\"\",\"\",'1. Order'!L52)","v":""},{"$f":"IF('1. Order'!M52=\"\",\"\",'1. Order'!M52)","v":""},{"$f":"IF('1. Order'!N52=\"\",\"\",'1. Order'!N52)","v":""},{"$f":"IF('1. Order'!O52=\"\",\"\",'1. Order'!O52)","v":{"$error":"#N/A"}},{"$f":"IF('1. Order'!P52=\"\",\"\",'1. Order'!P52)","v":{"$error":"#N/A"}},{"$f":"IF('1. Order'!Q52=\"\",\"\",'1. Order'!Q52)","v":""},{"$f":"IF('1. Order'!R52=\"\",\"\",'1. Order'!R52)","v":""},{"$f":"IF('1. Order'!S52=\"\",\"\",'1. Order'!S52)","v":""},{"$f":"IF('1. Order'!V52=\"\",\"\",'1. Order'!V52)","v":""},{"$f":"IF('1. Order'!W52=\"\",\"\",'1. Order'!W52)","v":""},{"$f":"IF('1. Order'!X52=\"\",\"\",'1. Order'!X52)","v":"EUR"},{"$f":"IF('1. Order'!Y52=\"\",\"\",'1. Order'!Y52)","v":""},{"$f":"IF('1. Order'!Z52=\"\",\"\",'1. Order'!Z52)","v":""},{"$f":"IF('1. Order'!AA52=\"\",\"\",'1. Order'!AA52)","v":""},null,{"$f":"IF('1. Order'!AS52=\"\",\"\",'1. Order'!AS52)","v":""},{"$f":"IF('1. Order'!AT52=\"\",\"\",'1. Order'!AT52)","v":""},null,null,null,null,null,null,null,{"$f":"IF('1. Order'!AX52=\"\",\"\",'1. Order'!AX52)","v":""},{"$f":"IF('1. Order'!AY52=\"\",\"\",'1. Order'!AY52)","v":""},{"$f":"IF('1. Order'!AZ52=\"\",\"\",'1. Order'!AZ52)","v":""},{"$f":"IF('1. Order'!BA52=\"\",\"\",'1. Order'!BA52)","v":""},{"$f":"IF('1. Order'!BC52=\"\",\"\",'1. Order'!BC52)","v":""},{"$f":"IF('1. Order'!BD52=\"\",\"\",'1. Order'!BD52)","v":6},{"$f":"IF('1. Order'!BE52=\"\",\"\",'1. Order'!BE52)","v":"None"},{"$f":"IF('1. Order'!BF52=\"\",\"\",'1. Order'!BF52)","v":"Parcel"},{"$f":"IF('1. Order'!BG52=\"\",\"\",'1. Order'!BG52)","v":"ZWO"}]
[{"$f":"IF('1. Order'!F53=\"\",\"\",'1. Order'!F53)","v":""},{"$f":"IF('1. Order'!G53=\"\",\"\",'1. Order'!G53)","v":""},{"$f":"IF('1. Order'!H53=\"\",\"\",'1. Order'!H53)","v":""},{"$f":"IF('1. Order'!I53=\"\",\"\",'1. Order'!I53)","v":""},{"$f":"IF('1. Order'!J53=\"\",\"\",'1. Order'!J53)","v":""},{"$f":"IF('1. Order'!K53=\"\",\"\",'1. Order'!K53)","v":""},{"$f":"IF('1. Order'!L53=\"\",\"\",'1. Order'!L53)","v":""},{"$f":"IF('1. Order'!M53=\"\",\"\",'1. Order'!M53)","v":""},{"$f":"IF('1. Order'!N53=\"\",\"\",'1. Order'!N53)","v":""},{"$f":"IF('1. Order'!O53=\"\",\"\",'1. Order'!O53)","v":{"$error":"#N/A"}},{"$f":"IF('1. Order'!P53=\"\",\"\",'1. Order'!P53)","v":{"$error":"#N/A"}},{"$f":"IF('1. Order'!Q53=\"\",\"\",'1. Order'!Q53)","v":""},{"$f":"IF('1. Order'!R53=\"\",\"\",'1. Order'!R53)","v":""},{"$f":"IF('1. Order'!S53=\"\",\"\",'1. Order'!S53)","v":""},{"$f":"IF('1. Order'!V53=\"\",\"\",'1. Order'!V53)","v":""},{"$f":"IF('1. Order'!W53=\"\",\"\",'1. Order'!W53)","v":""},{"$f":"IF('1. Order'!X53=\"\",\"\",'1. Order'!X53)","v":"EUR"},{"$f":"IF('1. Order'!Y53=\"\",\"\",'1. Order'!Y53)","v":""},{"$f":"IF('1. Order'!Z53=\"\",\"\",'1. Order'!Z53)","v":""},{"$f":"IF('1. Order'!AA53=\"\",\"\",'1. Order'!AA53)","v":""},null,{"$f":"IF('1. Order'!AS53=\"\",\"\",'1. Order'!AS53)","v":""},{"$f":"IF('1. Order'!AT53=\"\",\"\",'1. Order'!AT53)","v":""},null,null,null,null,null,null,null,{"$f":"IF('1. Order'!AX53=\"\",\"\",'1. Order'!AX53)","v":""},{"$f":"IF('1. Order'!AY53=\"\",\"\",'1. Order'!AY53)","v":""},{"$f":"IF('1. Order'!AZ53=\"\",\"\",'1. Order'!AZ53)","v":""},{"$f":"IF('1. Order'!BA53=\"\",\"\",'1. Order'!BA53)","v":""},{"$f":"IF('1. Order'!BC53=\"\",\"\",'1. Order'!BC53)","v":""},{"$f":"IF('1. Order'!BD53=\"\",\"\",'1. Order'!BD53)","v":6},{"$f":"IF('1. Order'!BE53=\"\",\"\",'1. Order'!BE53)","v":"None"},{"$f":"IF('1. Order'!BF53=\"\",\"\",'1. Order'!BF53)","v":"Parcel"},{"$f":"IF('1. Order'!BG53=\"\",\"\",'1. Order'!BG53)","v":"ZWO"}]
[{"$f":"IF('1. Order'!F54=\"\",\"\",'1. Order'!F54)","v":""},{"$f":"IF('1. Order'!G54=\"\",\"\",'1. Order'!G54)","v":""},{"$f":"IF('1. Order'!H54=\"\",\"\",'1. Order'!H54)","v":""},{"$f":"IF('1. Order'!I54=\"\",\"\",'1. Order'!I54)","v":""},{"$f":"IF('1. Order'!J54=\"\",\"\",'1. Order'!J54)","v":""},{"$f":"IF('1. Order'!K54=\"\",\"\",'1. Order'!K54)","v":""},{"$f":"IF('1. Order'!L54=\"\",\"\",'1. Order'!L54)","v":""},{"$f":"IF('1. Order'!M54=\"\",\"\",'1. Order'!M54)","v":""},{"$f":"IF('1. Order'!N54=\"\",\"\",'1. Order'!N54)","v":""},{"$f":"IF('1. Order'!O54=\"\",\"\",'1. Order'!O54)","v":{"$error":"#N/A"}},{"$f":"IF('1. Order'!P54=\"\",\"\",'1. Order'!P54)","v":{"$error":"#N/A"}},{"$f":"IF('1. Order'!Q54=\"\",\"\",'1. Order'!Q54)","v":""},{"$f":"IF('1. Order'!R54=\"\",\"\",'1. Order'!R54)","v":""},{"$f":"IF('1. Order'!S54=\"\",\"\",'1. Order'!S54)","v":""},{"$f":"IF('1. Order'!V54=\"\",\"\",'1. Order'!V54)","v":""},{"$f":"IF('1. Order'!W54=\"\",\"\",'1. Order'!W54)","v":""},{"$f":"IF('1. Order'!X54=\"\",\"\",'1. Order'!X54)","v":"EUR"},{"$f":"IF('1. Order'!Y54=\"\",\"\",'1. Order'!Y54)","v":""},{"$f":"IF('1. Order'!Z54=\"\",\"\",'1. Order'!Z54)","v":""},{"$f":"IF('1. Order'!AA54=\"\",\"\",'1. Order'!AA54)","v":""},null,{"$f":"IF('1. Order'!AS54=\"\",\"\",'1. Order'!AS54)","v":""},{"$f":"IF('1. Order'!AT54=\"\",\"\",'1. Order'!AT54)","v":""},null,null,null,null,null,null,null,{"$f":"IF('1. Order'!AX54=\"\",\"\",'1. Order'!AX54)","v":""},{"$f":"IF('1. Order'!AY54=\"\",\"\",'1. Order'!AY54)","v":""},{"$f":"IF('1. Order'!AZ54=\"\",\"\",'1. Order'!AZ54)","v":""},{"$f":"IF('1. Order'!BA54=\"\",\"\",'1. Order'!BA54)","v":""},{"$f":"IF('1. Order'!BC54=\"\",\"\",'1. Order'!BC54)","v":""},{"$f":"IF('1. Order'!BD54=\"\",\"\",'1. Order'!BD54)","v":6},{"$f":"IF('1. Order'!BE54=\"\",\"\",'1. Order'!BE54)","v":"None"},{"$f":"IF('1. Order'!BF54=\"\",\"\",'1. Order'!BF54)","v":"Parcel"},{"$f":"IF('1. Order'!BG54=\"\",\"\",'1. Order'!BG54)","v":"ZWO"}]
[{"$f":"IF('1. Order'!F55=\"\",\"\",'1. Order'!F55)","v":""},{"$f":"IF('1. Order'!G55=\"\",\"\",'1. Order'!G55)","v":""},{"$f":"IF('1. Order'!H55=\"\",\"\",'1. Order'!H55)","v":""},{"$f":"IF('1. Order'!I55=\"\",\"\",'1. Order'!I55)","v":""},{"$f":"IF('1. Order'!J55=\"\",\"\",'1. Order'!J55)","v":""},{"$f":"IF('1. Order'!K55=\"\",\"\",'1. Order'!K55)","v":""},{"$f":"IF('1. Order'!L55=\"\",\"\",'1. Order'!L55)","v":""},{"$f":"IF('1. Order'!M55=\"\",\"\",'1. Order'!M55)","v":""},{"$f":"IF('1. Order'!N55=\"\",\"\",'1. Order'!N55)","v":""},{"$f":"IF('1. Order'!O55=\"\",\"\",'1. Order'!O55)","v":{"$error":"#N/A"}},{"$f":"IF('1. Order'!P55=\"\",\"\",'1. Order'!P55)","v":{"$error":"#N/A"}},{"$f":"IF('1. Order'!Q55=\"\",\"\",'1. Order'!Q55)","v":""},{"$f":"IF('1. Order'!R55=\"\",\"\",'1. Order'!R55)","v":""},{"$f":"IF('1. Order'!S55=\"\",\"\",'1. Order'!S55)","v":""},{"$f":"IF('1. Order'!V55=\"\",\"\",'1. Order'!V55)","v":""},{"$f":"IF('1. Order'!W55=\"\",\"\",'1. Order'!W55)","v":""},{"$f":"IF('1. Order'!X55=\"\",\"\",'1. Order'!X55)","v":"EUR"},{"$f":"IF('1. Order'!Y55=\"\",\"\",'1. Order'!Y55)","v":""},{"$f":"IF('1. Order'!Z55=\"\",\"\",'1. Order'!Z55)","v":""},{"$f":"IF('1. Order'!AA55=\"\",\"\",'1. Order'!AA55)","v":""},null,{"$f":"IF('1. Order'!AS55=\"\",\"\",'1. Order'!AS55)","v":""},{"$f":"IF('1. Order'!AT55=\"\",\"\",'1. Order'!AT55)","v":""},null,null,null,null,null,null,null,{"$f":"IF('1. Order'!AX55=\"\",\"\",'1. Order'!AX55)","v":""},{"$f":"IF('1. Order'!AY55=\"\",\"\",'1. Order'!AY55)","v":""},{"$f":"IF('1. Order'!AZ55=\"\",\"\",'1. Order'!AZ55)","v":""},{"$f":"IF('1. Order'!BA55=\"\",\"\",'1. Order'!BA55)","v":""},{"$f":"IF('1. Order'!BC55=\"\",\"\",'1. Order'!BC55)","v":""},{"$f":"IF('1. Order'!BD55=\"\",\"\",'1. Order'!BD55)","v":6},{"$f":"IF('1. Order'!BE55=\"\",\"\",'1. Order'!BE55)","v":"None"},{"$f":"IF('1. Order'!BF55=\"\",\"\",'1. Order'!BF55)","v":"Parcel"},{"$f":"IF('1. Order'!BG55=\"\",\"\",'1. Order'!BG55)","v":"ZWO"}]
[{"$f":"IF('1. Order'!F56=\"\",\"\",'1. Order'!F56)","v":""},{"$f":"IF('1. Order'!G56=\"\",\"\",'1. Order'!G56)","v":""},{"$f":"IF('1. Order'!H56=\"\",\"\",'1. Order'!H56)","v":""},{"$f":"IF('1. Order'!I56=\"\",\"\",'1. Order'!I56)","v":""},{"$f":"IF('1. Order'!J56=\"\",\"\",'1. Order'!J56)","v":""},{"$f":"IF('1. Order'!K56=\"\",\"\",'1. Order'!K56)","v":""},{"$f":"IF('1. Order'!L56=\"\",\"\",'1. Order'!L56)","v":""},{"$f":"IF('1. Order'!M56=\"\",\"\",'1. Order'!M56)","v":""},{"$f":"IF('1. Order'!N56=\"\",\"\",'1. Order'!N56)","v":""},{"$f":"IF('1. Order'!O56=\"\",\"\",'1. Order'!O56)","v":{"$error":"#N/A"}},{"$f":"IF('1. Order'!P56=\"\",\"\",'1. Order'!P56)","v":{"$error":"#N/A"}},{"$f":"IF('1. Order'!Q56=\"\",\"\",'1. Order'!Q56)","v":""},{"$f":"IF('1. Order'!R56=\"\",\"\",'1. Order'!R56)","v":""},{"$f":"IF('1. Order'!S56=\"\",\"\",'1. Order'!S56)","v":""},{"$f":"IF('1. Order'!V56=\"\",\"\",'1. Order'!V56)","v":""},{"$f":"IF('1. Order'!W56=\"\",\"\",'1. Order'!W56)","v":""},{"$f":"IF('1. Order'!X56=\"\",\"\",'1. Order'!X56)","v":"EUR"},{"$f":"IF('1. Order'!Y56=\"\",\"\",'1. Order'!Y56)","v":""},{"$f":"IF('1. Order'!Z56=\"\",\"\",'1. Order'!Z56)","v":""},{"$f":"IF('1. Order'!AA56=\"\",\"\",'1. Order'!AA56)","v":""},null,{"$f":"IF('1. Order'!AS56=\"\",\"\",'1. Order'!AS56)","v":""},{"$f":"IF('1. Order'!AT56=\"\",\"\",'1. Order'!AT56)","v":""},null,null,null,null,null,null,null,{"$f":"IF('1. Order'!AX56=\"\",\"\",'1. Order'!AX56)","v":""},{"$f":"IF('1. Order'!AY56=\"\",\"\",'1. Order'!AY56)","v":""},{"$f":"IF('1. Order'!AZ56=\"\",\"\",'1. Order'!AZ56)","v":""},{"$f":"IF('1. Order'!BA56=\"\",\"\",'1. Order'!BA56)","v":""},{"$f":"IF('1. Order'!BC56=\"\",\"\",'1. Order'!BC56)","v":""},{"$f":"IF('1. Order'!BD56=\"\",\"\",'1. Order'!BD56)","v":6},{"$f":"IF('1. Order'!BE56=\"\",\"\",'1. Order'!BE56)","v":"None"},{"$f":"IF('1. Order'!BF56=\"\",\"\",'1. Order'!BF56)","v":"Parcel"},{"$f":"IF('1. Order'!BG56=\"\",\"\",'1. Order'!BG56)","v":"ZWO"}]
[{"$f":"IF('1. Order'!F57=\"\",\"\",'1. Order'!F57)","v":""},{"$f":"IF('1. Order'!G57=\"\",\"\",'1. Order'!G57)","v":""},{"$f":"IF('1. Order'!H57=\"\",\"\",'1. Order'!H57)","v":""},{"$f":"IF('1. Order'!I57=\"\",\"\",'1. Order'!I57)","v":""},{"$f":"IF('1. Order'!J57=\"\",\"\",'1. Order'!J57)","v":""},{"$f":"IF('1. Order'!K57=\"\",\"\",'1. Order'!K57)","v":""},{"$f":"IF('1. Order'!L57=\"\",\"\",'1. Order'!L57)","v":""},{"$f":"IF('1. Order'!M57=\"\",\"\",'1. Order'!M57)","v":""},{"$f":"IF('1. Order'!N57=\"\",\"\",'1. Order'!N57)","v":""},{"$f":"IF('1. Order'!O57=\"\",\"\",'1. Order'!O57)","v":{"$error":"#N/A"}},{"$f":"IF('1. Order'!P57=\"\",\"\",'1. Order'!P57)","v":{"$error":"#N/A"}},{"$f":"IF('1. Order'!Q57=\"\",\"\",'1. Order'!Q57)","v":""},{"$f":"IF('1. Order'!R57=\"\",\"\",'1. Order'!R57)","v":""},{"$f":"IF('1. Order'!S57=\"\",\"\",'1. Order'!S57)","v":""},{"$f":"IF('1. Order'!V57=\"\",\"\",'1. Order'!V57)","v":""},{"$f":"IF('1. Order'!W57=\"\",\"\",'1. Order'!W57)","v":""},{"$f":"IF('1. Order'!X57=\"\",\"\",'1. Order'!X57)","v":"EUR"},{"$f":"IF('1. Order'!Y57=\"\",\"\",'1. Order'!Y57)","v":""},{"$f":"IF('1. Order'!Z57=\"\",\"\",'1. Order'!Z57)","v":""},{"$f":"IF('1. Order'!AA57=\"\",\"\",'1. Order'!AA57)","v":""},null,{"$f":"IF('1. Order'!AS57=\"\",\"\",'1. Order'!AS57)","v":""},{"$f":"IF('1. Order'!AT57=\"\",\"\",'1. Order'!AT57)","v":""},null,null,null,null,null,null,null,{"$f":"IF('1. Order'!AX57=\"\",\"\",'1. Order'!AX57)","v":""},{"$f":"IF('1. Order'!AY57=\"\",\"\",'1. Order'!AY57)","v":""},{"$f":"IF('1. Order'!AZ57=\"\",\"\",'1. Order'!AZ57)","v":""},{"$f":"IF('1. Order'!BA57=\"\",\"\",'1. Order'!BA57)","v":""},{"$f":"IF('1. Order'!BC57=\"\",\"\",'1. Order'!BC57)","v":""},{"$f":"IF('1. Order'!BD57=\"\",\"\",'1. Order'!BD57)","v":6},{"$f":"IF('1. Order'!BE57=\"\",\"\",'1. Order'!BE57)","v":"None"},{"$f":"IF('1. Order'!BF57=\"\",\"\",'1. Order'!BF57)","v":"Parcel"},{"$f":"IF('1. Order'!BG57=\"\",\"\",'1. Order'!BG57)","v":"ZWO"}]
[{"$f":"IF('1. Order'!F58=\"\",\"\",'1. Order'!F58)","v":""},{"$f":"IF('1. Order'!G58=\"\",\"\",'1. Order'!G58)","v":""},{"$f":"IF('1. Order'!H58=\"\",\"\",'1. Order'!H58)","v":""},{"$f":"IF('1. Order'!I58=\"\",\"\",'1. Order'!I58)","v":""},{"$f":"IF('1. Order'!J58=\"\",\"\",'1. Order'!J58)","v":""},{"$f":"IF('1. Order'!K58=\"\",\"\",'1. Order'!K58)","v":""},{"$f":"IF('1. Order'!L58=\"\",\"\",'1. Order'!L58)","v":""},{"$f":"IF('1. Order'!M58=\"\",\"\",'1. Order'!M58)","v":""},{"$f":"IF('1. Order'!N58=\"\",\"\",'1. Order'!N58)","v":""},{"$f":"IF('1. Order'!O58=\"\",\"\",'1. Order'!O58)","v":{"$error":"#N/A"}},{"$f":"IF('1. Order'!P58=\"\",\"\",'1. Order'!P58)","v":{"$error":"#N/A"}},{"$f":"IF('1. Order'!Q58=\"\",\"\",'1. Order'!Q58)","v":""},{"$f":"IF('1. Order'!R58=\"\",\"\",'1. Order'!R58)","v":""},{"$f":"IF('1. Order'!S58=\"\",\"\",'1. Order'!S58)","v":""},{"$f":"IF('1. Order'!V58=\"\",\"\",'1. Order'!V58)","v":""},{"$f":"IF('1. Order'!W58=\"\",\"\",'1. Order'!W58)","v":""},{"$f":"IF('1. Order'!X58=\"\",\"\",'1. Order'!X58)","v":"EUR"},{"$f":"IF('1. Order'!Y58=\"\",\"\",'1. Order'!Y58)","v":""},{"$f":"IF('1. Order'!Z58=\"\",\"\",'1. Order'!Z58)","v":""},{"$f":"IF('1. Order'!AA58=\"\",\"\",'1. Order'!AA58)","v":""},null,{"$f":"IF('1. Order'!AS58=\"\",\"\",'1. Order'!AS58)","v":""},{"$f":"IF('1. Order'!AT58=\"\",\"\",'1. Order'!AT58)","v":""},null,null,null,null,null,null,null,{"$f":"IF('1. Order'!AX58=\"\",\"\",'1. Order'!AX58)","v":""},{"$f":"IF('1. Order'!AY58=\"\",\"\",'1. Order'!AY58)","v":""},{"$f":"IF('1. Order'!AZ58=\"\",\"\",'1. Order'!AZ58)","v":""},{"$f":"IF('1. Order'!BA58=\"\",\"\",'1. Order'!BA58)","v":""},{"$f":"IF('1. Order'!BC58=\"\",\"\",'1. Order'!BC58)","v":""},{"$f":"IF('1. Order'!BD58=\"\",\"\",'1. Order'!BD58)","v":6},{"$f":"IF('1. Order'!BE58=\"\",\"\",'1. Order'!BE58)","v":"None"},{"$f":"IF('1. Order'!BF58=\"\",\"\",'1. Order'!BF58)","v":"Parcel"},{"$f":"IF('1. Order'!BG58=\"\",\"\",'1. Order'!BG58)","v":"ZWO"}]
[{"$f":"IF('1. Order'!F59=\"\",\"\",'1. Order'!F59)","v":""},{"$f":"IF('1. Order'!G59=\"\",\"\",'1. Order'!G59)","v":""},{"$f":"IF('1. Order'!H59=\"\",\"\",'1. Order'!H59)","v":""},{"$f":"IF('1. Order'!I59=\"\",\"\",'1. Order'!I59)","v":""},{"$f":"IF('1. Order'!J59=\"\",\"\",'1. Order'!J59)","v":""},{"$f":"IF('1. Order'!K59=\"\",\"\",'1. Order'!K59)","v":""},{"$f":"IF('1. Order'!L59=\"\",\"\",'1. Order'!L59)","v":""},{"$f":"IF('1. Order'!M59=\"\",\"\",'1. Order'!M59)","v":""},{"$f":"IF('1. Order'!N59=\"\",\"\",'1. Order'!N59)","v":""},{"$f":"IF('1. Order'!O59=\"\",\"\",'1. Order'!O59)","v":{"$error":"#N/A"}},{"$f":"IF('1. Order'!P59=\"\",\"\",'1. Order'!P59)","v":{"$error":"#N/A"}},{"$f":"IF('1. Order'!Q59=\"\",\"\",'1. Order'!Q59)","v":""},{"$f":"IF('1. Order'!R59=\"\",\"\",'1. Order'!R59)","v":""},{"$f":"IF('1. Order'!S59=\"\",\"\",'1. Order'!S59)","v":""},{"$f":"IF('1. Order'!V59=\"\",\"\",'1. Order'!V59)","v":""},{"$f":"IF('1. Order'!W59=\"\",\"\",'1. Order'!W59)","v":""},{"$f":"IF('1. Order'!X59=\"\",\"\",'1. Order'!X59)","v":"EUR"},{"$f":"IF('1. Order'!Y59=\"\",\"\",'1. Order'!Y59)","v":""},{"$f":"IF('1. Order'!Z59=\"\",\"\",'1. Order'!Z59)","v":""},{"$f":"IF('1. Order'!AA59=\"\",\"\",'1. Order'!AA59)","v":""},null,{"$f":"IF('1. Order'!AS59=\"\",\"\",'1. Order'!AS59)","v":""},{"$f":"IF('1. Order'!AT59=\"\",\"\",'1. Order'!AT59)","v":""},null,null,null,null,null,null,null,{"$f":"IF('1. Order'!AX59=\"\",\"\",'1. Order'!AX59)","v":""},{"$f":"IF('1. Order'!AY59=\"\",\"\",'1. Order'!AY59)","v":""},{"$f":"IF('1. Order'!AZ59=\"\",\"\",'1. Order'!AZ59)","v":""},{"$f":"IF('1. Order'!BA59=\"\",\"\",'1. Order'!BA59)","v":""},{"$f":"IF('1. Order'!BC59=\"\",\"\",'1. Order'!BC59)","v":""},{"$f":"IF('1. Order'!BD59=\"\",\"\",'1. Order'!BD59)","v":6},{"$f":"IF('1. Order'!BE59=\"\",\"\",'1. Order'!BE59)","v":"None"},{"$f":"IF('1. Order'!BF59=\"\",\"\",'1. Order'!BF59)","v":"Parcel"},{"$f":"IF('1. Order'!BG59=\"\",\"\",'1. Order'!BG59)","v":"ZWO"}]
[{"$f":"IF('1. Order'!F60=\"\",\"\",'1. Order'!F60)","v":""},{"$f":"IF('1. Order'!G60=\"\",\"\",'1. Order'!G60)","v":""},{"$f":"IF('1. Order'!H60=\"\",\"\",'1. Order'!H60)","v":""},{"$f":"IF('1. Order'!I60=\"\",\"\",'1. Order'!I60)","v":""},{"$f":"IF('1. Order'!J60=\"\",\"\",'1. Order'!J60)","v":""},{"$f":"IF('1. Order'!K60=\"\",\"\",'1. Order'!K60)","v":""},{"$f":"IF('1. Order'!L60=\"\",\"\",'1. Order'!L60)","v":""},{"$f":"IF('1. Order'!M60=\"\",\"\",'1. Order'!M60)","v":""},{"$f":"IF('1. Order'!N60=\"\",\"\",'1. Order'!N60)","v":""},{"$f":"IF('1. Order'!O60=\"\",\"\",'1. Order'!O60)","v":{"$error":"#N/A"}},{"$f":"IF('1. Order'!P60=\"\",\"\",'1. Order'!P60)","v":{"$error":"#N/A"}},{"$f":"IF('1. Order'!Q60=\"\",\"\",'1. Order'!Q60)","v":""},{"$f":"IF('1. Order'!R60=\"\",\"\",'1. Order'!R60)","v":""},{"$f":"IF('1. Order'!S60=\"\",\"\",'1. Order'!S60)","v":""},{"$f":"IF('1. Order'!V60=\"\",\"\",'1. Order'!V60)","v":""},{"$f":"IF('1. Order'!W60=\"\",\"\",'1. Order'!W60)","v":""},{"$f":"IF('1. Order'!X60=\"\",\"\",'1. Order'!X60)","v":"EUR"},{"$f":"IF('1. Order'!Y60=\"\",\"\",'1. Order'!Y60)","v":""},{"$f":"IF('1. Order'!Z60=\"\",\"\",'1. Order'!Z60)","v":""},{"$f":"IF('1. Order'!AA60=\"\",\"\",'1. Order'!AA60)","v":""},null,{"$f":"IF('1. Order'!AS60=\"\",\"\",'1. Order'!AS60)","v":""},{"$f":"IF('1. Order'!AT60=\"\",\"\",'1. Order'!AT60)","v":""},null,null,null,null,null,null,null,{"$f":"IF('1. Order'!AX60=\"\",\"\",'1. Order'!AX60)","v":""},{"$f":"IF('1. Order'!AY60=\"\",\"\",'1. Order'!AY60)","v":""},{"$f":"IF('1. Order'!AZ60=\"\",\"\",'1. Order'!AZ60)","v":""},{"$f":"IF('1. Order'!BA60=\"\",\"\",'1. Order'!BA60)","v":""},{"$f":"IF('1. Order'!BC60=\"\",\"\",'1. Order'!BC60)","v":""},{"$f":"IF('1. Order'!BD60=\"\",\"\",'1. Order'!BD60)","v":6},{"$f":"IF('1. Order'!BE60=\"\",\"\",'1. Order'!BE60)","v":"None"},{"$f":"IF('1. Order'!BF60=\"\",\"\",'1. Order'!BF60)","v":"Parcel"},{"$f":"IF('1. Order'!BG60=\"\",\"\",'1. Order'!BG60)","v":"ZWO"}]
[{"$f":"IF('1. Order'!F61=\"\",\"\",'1. Order'!F61)","v":""},{"$f":"IF('1. Order'!G61=\"\",\"\",'1. Order'!G61)","v":""},{"$f":"IF('1. Order'!H61=\"\",\"\",'1. Order'!H61)","v":""},{"$f":"IF('1. Order'!I61=\"\",\"\",'1. Order'!I61)","v":""},{"$f":"IF('1. Order'!J61=\"\",\"\",'1. Order'!J61)","v":""},{"$f":"IF('1. Order'!K61=\"\",\"\",'1. Order'!K61)","v":""},{"$f":"IF('1. Order'!L61=\"\",\"\",'1. Order'!L61)","v":""},{"$f":"IF('1. Order'!M61=\"\",\"\",'1. Order'!M61)","v":""},{"$f":"IF('1. Order'!N61=\"\",\"\",'1. Order'!N61)","v":""},{"$f":"IF('1. Order'!O61=\"\",\"\",'1. Order'!O61)","v":{"$error":"#N/A"}},{"$f":"IF('1. Order'!P61=\"\",\"\",'1. Order'!P61)","v":{"$error":"#N/A"}},{"$f":"IF('1. Order'!Q61=\"\",\"\",'1. Order'!Q61)","v":""},{"$f":"IF('1. Order'!R61=\"\",\"\",'1. Order'!R61)","v":""},{"$f":"IF('1. Order'!S61=\"\",\"\",'1. Order'!S61)","v":""},{"$f":"IF('1. Order'!V61=\"\",\"\",'1. Order'!V61)","v":""},{"$f":"IF('1. Order'!W61=\"\",\"\",'1. Order'!W61)","v":""},{"$f":"IF('1. Order'!X61=\"\",\"\",'1. Order'!X61)","v":"EUR"},{"$f":"IF('1. Order'!Y61=\"\",\"\",'1. Order'!Y61)","v":""},{"$f":"IF('1. Order'!Z61=\"\",\"\",'1. Order'!Z61)","v":""},{"$f":"IF('1. Order'!AA61=\"\",\"\",'1. Order'!AA61)","v":""},null,{"$f":"IF('1. Order'!AS61=\"\",\"\",'1. Order'!AS61)","v":""},{"$f":"IF('1. Order'!AT61=\"\",\"\",'1. Order'!AT61)","v":""},null,null,null,null,null,null,null,{"$f":"IF('1. Order'!AX61=\"\",\"\",'1. Order'!AX61)","v":""},{"$f":"IF('1. Order'!AY61=\"\",\"\",'1. Order'!AY61)","v":""},{"$f":"IF('1. Order'!AZ61=\"\",\"\",'1. Order'!AZ61)","v":""},{"$f":"IF('1. Order'!BA61=\"\",\"\",'1. Order'!BA61)","v":""},{"$f":"IF('1. Order'!BC61=\"\",\"\",'1. Order'!BC61)","v":""},{"$f":"IF('1. Order'!BD61=\"\",\"\",'1. Order'!BD61)","v":6},{"$f":"IF('1. Order'!BE61=\"\",\"\",'1. Order'!BE61)","v":"None"},{"$f":"IF('1. Order'!BF61=\"\",\"\",'1. Order'!BF61)","v":"Parcel"},{"$f":"IF('1. Order'!BG61=\"\",\"\",'1. Order'!BG61)","v":"ZWO"}]
[{"$f":"IF('1. Order'!F62=\"\",\"\",'1. Order'!F62)","v":""},{"$f":"IF('1. Order'!G62=\"\",\"\",'1. Order'!G62)","v":""},{"$f":"IF('1. Order'!H62=\"\",\"\",'1. Order'!H62)","v":""},{"$f":"IF('1. Order'!I62=\"\",\"\",'1. Order'!I62)","v":""},{"$f":"IF('1. Order'!J62=\"\",\"\",'1. Order'!J62)","v":""},{"$f":"IF('1. Order'!K62=\"\",\"\",'1. Order'!K62)","v":""},{"$f":"IF('1. Order'!L62=\"\",\"\",'1. Order'!L62)","v":""},{"$f":"IF('1. Order'!M62=\"\",\"\",'1. Order'!M62)","v":""},{"$f":"IF('1. Order'!N62=\"\",\"\",'1. Order'!N62)","v":""},{"$f":"IF('1. Order'!O62=\"\",\"\",'1. Order'!O62)","v":{"$error":"#N/A"}},{"$f":"IF('1. Order'!P62=\"\",\"\",'1. Order'!P62)","v":{"$error":"#N/A"}},{"$f":"IF('1. Order'!Q62=\"\",\"\",'1. Order'!Q62)","v":""},{"$f":"IF('1. Order'!R62=\"\",\"\",'1. Order'!R62)","v":""},{"$f":"IF('1. Order'!S62=\"\",\"\",'1. Order'!S62)","v":""},{"$f":"IF('1. Order'!V62=\"\",\"\",'1. Order'!V62)","v":""},{"$f":"IF('1. Order'!W62=\"\",\"\",'1. Order'!W62)","v":""},{"$f":"IF('1. Order'!X62=\"\",\"\",'1. Order'!X62)","v":"EUR"},{"$f":"IF('1. Order'!Y62=\"\",\"\",'1. Order'!Y62)","v":""},{"$f":"IF('1. Order'!Z62=\"\",\"\",'1. Order'!Z62)","v":""},{"$f":"IF('1. Order'!AA62=\"\",\"\",'1. Order'!AA62)","v":""},null,{"$f":"IF('1. Order'!AS62=\"\",\"\",'1. Order'!AS62)","v":""},{"$f":"IF('1. Order'!AT62=\"\",\"\",'1. Order'!AT62)","v":""},null,null,null,null,null,null,null,{"$f":"IF('1. Order'!AX62=\"\",\"\",'1. Order'!AX62)","v":""},{"$f":"IF('1. Order'!AY62=\"\",\"\",'1. Order'!AY62)","v":""},{"$f":"IF('1. Order'!AZ62=\"\",\"\",'1. Order'!AZ62)","v":""},{"$f":"IF('1. Order'!BA62=\"\",\"\",'1. Order'!BA62)","v":""},{"$f":"IF('1. Order'!BC62=\"\",\"\",'1. Order'!BC62)","v":""},{"$f":"IF('1. Order'!BD62=\"\",\"\",'1. Order'!BD62)","v":6},{"$f":"IF('1. Order'!BE62=\"\",\"\",'1. Order'!BE62)","v":"None"},{"$f":"IF('1. Order'!BF62=\"\",\"\",'1. Order'!BF62)","v":"Parcel"},{"$f":"IF('1. Order'!BG62=\"\",\"\",'1. Order'!BG62)","v":"ZWO"}]
[{"$f":"IF('1. Order'!F63=\"\",\"\",'1. Order'!F63)","v":""},{"$f":"IF('1. Order'!G63=\"\",\"\",'1. Order'!G63)","v":""},{"$f":"IF('1. Order'!H63=\"\",\"\",'1. Order'!H63)","v":""},{"$f":"IF('1. Order'!I63=\"\",\"\",'1. Order'!I63)","v":""},{"$f":"IF('1. Order'!J63=\"\",\"\",'1. Order'!J63)","v":""},{"$f":"IF('1. Order'!K63=\"\",\"\",'1. Order'!K63)","v":""},{"$f":"IF('1. Order'!L63=\"\",\"\",'1. Order'!L63)","v":""},{"$f":"IF('1. Order'!M63=\"\",\"\",'1. Order'!M63)","v":""},{"$f":"IF('1. Order'!N63=\"\",\"\",'1. Order'!N63)","v":""},{"$f":"IF('1. Order'!O63=\"\",\"\",'1. Order'!O63)","v":{"$error":"#N/A"}},{"$f":"IF('1. Order'!P63=\"\",\"\",'1. Order'!P63)","v":{"$error":"#N/A"}},{"$f":"IF('1. Order'!Q63=\"\",\"\",'1. Order'!Q63)","v":""},{"$f":"IF('1. Order'!R63=\"\",\"\",'1. Order'!R63)","v":""},{"$f":"IF('1. Order'!S63=\"\",\"\",'1. Order'!S63)","v":""},{"$f":"IF('1. Order'!V63=\"\",\"\",'1. Order'!V63)","v":""},{"$f":"IF('1. Order'!W63=\"\",\"\",'1. Order'!W63)","v":""},{"$f":"IF('1. Order'!X63=\"\",\"\",'1. Order'!X63)","v":"EUR"},{"$f":"IF('1. Order'!Y63=\"\",\"\",'1. Order'!Y63)","v":""},{"$f":"IF('1. Order'!Z63=\"\",\"\",'1. Order'!Z63)","v":""},{"$f":"IF('1. Order'!AA63=\"\",\"\",'1. Order'!AA63)","v":""},null,{"$f":"IF('1. Order'!AS63=\"\",\"\",'1. Order'!AS63)","v":""},{"$f":"IF('1. Order'!AT63=\"\",\"\",'1. Order'!AT63)","v":""},null,null,null,null,null,null,null,{"$f":"IF('1. Order'!AX63=\"\",\"\",'1. Order'!AX63)","v":""},{"$f":"IF('1. Order'!AY63=\"\",\"\",'1. Order'!AY63)","v":""},{"$f":"IF('1. Order'!AZ63=\"\",\"\",'1. Order'!AZ63)","v":""},{"$f":"IF('1. Order'!BA63=\"\",\"\",'1. Order'!BA63)","v":""},{"$f":"IF('1. Order'!BC63=\"\",\"\",'1. Order'!BC63)","v":""},{"$f":"IF('1. Order'!BD63=\"\",\"\",'1. Order'!BD63)","v":6},{"$f":"IF('1. Order'!BE63=\"\",\"\",'1. Order'!BE63)","v":"None"},{"$f":"IF('1. Order'!BF63=\"\",\"\",'1. Order'!BF63)","v":"Parcel"},{"$f":"IF('1. Order'!BG63=\"\",\"\",'1. Order'!BG63)","v":"ZWO"}]
[{"$f":"IF('1. Order'!F64=\"\",\"\",'1. Order'!F64)","v":""},{"$f":"IF('1. Order'!G64=\"\",\"\",'1. Order'!G64)","v":""},{"$f":"IF('1. Order'!H64=\"\",\"\",'1. Order'!H64)","v":""},{"$f":"IF('1. Order'!I64=\"\",\"\",'1. Order'!I64)","v":""},{"$f":"IF('1. Order'!J64=\"\",\"\",'1. Order'!J64)","v":""},{"$f":"IF('1. Order'!K64=\"\",\"\",'1. Order'!K64)","v":""},{"$f":"IF('1. Order'!L64=\"\",\"\",'1. Order'!L64)","v":""},{"$f":"IF('1. Order'!M64=\"\",\"\",'1. Order'!M64)","v":""},{"$f":"IF('1. Order'!N64=\"\",\"\",'1. Order'!N64)","v":""},{"$f":"IF('1. Order'!O64=\"\",\"\",'1. Order'!O64)","v":{"$error":"#N/A"}},{"$f":"IF('1. Order'!P64=\"\",\"\",'1. Order'!P64)","v":{"$error":"#N/A"}},{"$f":"IF('1. Order'!Q64=\"\",\"\",'1. Order'!Q64)","v":""},{"$f":"IF('1. Order'!R64=\"\",\"\",'1. Order'!R64)","v":""},{"$f":"IF('1. Order'!S64=\"\",\"\",'1. Order'!S64)","v":""},{"$f":"IF('1. Order'!V64=\"\",\"\",'1. Order'!V64)","v":""},{"$f":"IF('1. Order'!W64=\"\",\"\",'1. Order'!W64)","v":""},{"$f":"IF('1. Order'!X64=\"\",\"\",'1. Order'!X64)","v":"EUR"},{"$f":"IF('1. Order'!Y64=\"\",\"\",'1. Order'!Y64)","v":""},{"$f":"IF('1. Order'!Z64=\"\",\"\",'1. Order'!Z64)","v":""},{"$f":"IF('1. Order'!AA64=\"\",\"\",'1. Order'!AA64)","v":""},null,{"$f":"IF('1. Order'!AS64=\"\",\"\",'1. Order'!AS64)","v":""},{"$f":"IF('1. Order'!AT64=\"\",\"\",'1. Order'!AT64)","v":""},null,null,null,null,null,null,null,{"$f":"IF('1. Order'!AX64=\"\",\"\",'1. Order'!AX64)","v":""},{"$f":"IF('1. Order'!AY64=\"\",\"\",'1. Order'!AY64)","v":""},{"$f":"IF('1. Order'!AZ64=\"\",\"\",'1. Order'!AZ64)","v":""},{"$f":"IF('1. Order'!BA64=\"\",\"\",'1. Order'!BA64)","v":""},{"$f":"IF('1. Order'!BC64=\"\",\"\",'1. Order'!BC64)","v":""},{"$f":"IF('1. Order'!BD64=\"\",\"\",'1. Order'!BD64)","v":6},{"$f":"IF('1. Order'!BE64=\"\",\"\",'1. Order'!BE64)","v":"None"},{"$f":"IF('1. Order'!BF64=\"\",\"\",'1. Order'!BF64)","v":"Parcel"},{"$f":"IF('1. Order'!BG64=\"\",\"\",'1. Order'!BG64)","v":"ZWO"}]
[{"$f":"IF('1. Order'!F65=\"\",\"\",'1. Order'!F65)","v":""},{"$f":"IF('1. Order'!G65=\"\",\"\",'1. Order'!G65)","v":""},{"$f":"IF('1. Order'!H65=\"\",\"\",'1. Order'!H65)","v":""},{"$f":"IF('1. Order'!I65=\"\",\"\",'1. Order'!I65)","v":""},{"$f":"IF('1. Order'!J65=\"\",\"\",'1. Order'!J65)","v":""},{"$f":"IF('1. Order'!K65=\"\",\"\",'1. Order'!K65)","v":""},{"$f":"IF('1. Order'!L65=\"\",\"\",'1. Order'!L65)","v":""},{"$f":"IF('1. Order'!M65=\"\",\"\",'1. Order'!M65)","v":""},{"$f":"IF('1. Order'!N65=\"\",\"\",'1. Order'!N65)","v":""},{"$f":"IF('1. Order'!O65=\"\",\"\",'1. Order'!O65)","v":{"$error":"#N/A"}},{"$f":"IF('1. Order'!P65=\"\",\"\",'1. Order'!P65)","v":{"$error":"#N/A"}},{"$f":"IF('1. Order'!Q65=\"\",\"\",'1. Order'!Q65)","v":""},{"$f":"IF('1. Order'!R65=\"\",\"\",'1. Order'!R65)","v":""},{"$f":"IF('1. Order'!S65=\"\",\"\",'1. Order'!S65)","v":""},{"$f":"IF('1. Order'!V65=\"\",\"\",'1. Order'!V65)","v":""},{"$f":"IF('1. Order'!W65=\"\",\"\",'1. Order'!W65)","v":""},{"$f":"IF('1. Order'!X65=\"\",\"\",'1. Order'!X65)","v":"EUR"},{"$f":"IF('1. Order'!Y65=\"\",\"\",'1. Order'!Y65)","v":""},{"$f":"IF('1. Order'!Z65=\"\",\"\",'1. Order'!Z65)","v":""},{"$f":"IF('1. Order'!AA65=\"\",\"\",'1. Order'!AA65)","v":""},null,{"$f":"IF('1. Order'!AS65=\"\",\"\",'1. Order'!AS65)","v":""},{"$f":"IF('1. Order'!AT65=\"\",\"\",'1. Order'!AT65)","v":""},null,null,null,null,null,null,null,{"$f":"IF('1. Order'!AX65=\"\",\"\",'1. Order'!AX65)","v":""},{"$f":"IF('1. Order'!AY65=\"\",\"\",'1. Order'!AY65)","v":""},{"$f":"IF('1. Order'!AZ65=\"\",\"\",'1. Order'!AZ65)","v":""},{"$f":"IF('1. Order'!BA65=\"\",\"\",'1. Order'!BA65)","v":""},{"$f":"IF('1. Order'!BC65=\"\",\"\",'1. Order'!BC65)","v":""},{"$f":"IF('1. Order'!BD65=\"\",\"\",'1. Order'!BD65)","v":6},{"$f":"IF('1. Order'!BE65=\"\",\"\",'1. Order'!BE65)","v":"None"},{"$f":"IF('1. Order'!BF65=\"\",\"\",'1. Order'!BF65)","v":"Parcel"},{"$f":"IF('1. Order'!BG65=\"\",\"\",'1. Order'!BG65)","v":"ZWO"}]
[{"$f":"IF('1. Order'!F66=\"\",\"\",'1. Order'!F66)","v":""},{"$f":"IF('1. Order'!G66=\"\",\"\",'1. Order'!G66)","v":""},{"$f":"IF('1. Order'!H66=\"\",\"\",'1. Order'!H66)","v":""},{"$f":"IF('1. Order'!I66=\"\",\"\",'1. Order'!I66)","v":""},{"$f":"IF('1. Order'!J66=\"\",\"\",'1. Order'!J66)","v":""},{"$f":"IF('1. Order'!K66=\"\",\"\",'1. Order'!K66)","v":""},{"$f":"IF('1. Order'!L66=\"\",\"\",'1. Order'!L66)","v":""},{"$f":"IF('1. Order'!M66=\"\",\"\",'1. Order'!M66)","v":""},{"$f":"IF('1. Order'!N66=\"\",\"\",'1. Order'!N66)","v":""},{"$f":"IF('1. Order'!O66=\"\",\"\",'1. Order'!O66)","v":{"$error":"#N/A"}},{"$f":"IF('1. Order'!P66=\"\",\"\",'1. Order'!P66)","v":{"$error":"#N/A"}},{"$f":"IF('1. Order'!Q66=\"\",\"\",'1. Order'!Q66)","v":""},{"$f":"IF('1. Order'!R66=\"\",\"\",'1. Order'!R66)","v":""},{"$f":"IF('1. Order'!S66=\"\",\"\",'1. Order'!S66)","v":""},{"$f":"IF('1. Order'!V66=\"\",\"\",'1. Order'!V66)","v":""},{"$f":"IF('1. Order'!W66=\"\",\"\",'1. Order'!W66)","v":""},{"$f":"IF('1. Order'!X66=\"\",\"\",'1. Order'!X66)","v":"EUR"},{"$f":"IF('1. Order'!Y66=\"\",\"\",'1. Order'!Y66)","v":""},{"$f":"IF('1. Order'!Z66=\"\",\"\",'1. Order'!Z66)","v":""},{"$f":"IF('1. Order'!AA66=\"\",\"\",'1. Order'!AA66)","v":""},null,{"$f":"IF('1. Order'!AS66=\"\",\"\",'1. Order'!AS66)","v":""},{"$f":"IF('1. Order'!AT66=\"\",\"\",'1. Order'!AT66)","v":""},null,null,null,null,null,null,null,{"$f":"IF('1. Order'!AX66=\"\",\"\",'1. Order'!AX66)","v":""},{"$f":"IF('1. Order'!AY66=\"\",\"\",'1. Order'!AY66)","v":""},{"$f":"IF('1. Order'!AZ66=\"\",\"\",'1. Order'!AZ66)","v":""},{"$f":"IF('1. Order'!BA66=\"\",\"\",'1. Order'!BA66)","v":""},{"$f":"IF('1. Order'!BC66=\"\",\"\",'1. Order'!BC66)","v":""},{"$f":"IF('1. Order'!BD66=\"\",\"\",'1. Order'!BD66)","v":6},{"$f":"IF('1. Order'!BE66=\"\",\"\",'1. Order'!BE66)","v":"None"},{"$f":"IF('1. Order'!BF66=\"\",\"\",'1. Order'!BF66)","v":"Parcel"},{"$f":"IF('1. Order'!BG66=\"\",\"\",'1. Order'!BG66)","v":"ZWO"}]
[{"$f":"IF('1. Order'!F67=\"\",\"\",'1. Order'!F67)","v":""},{"$f":"IF('1. Order'!G67=\"\",\"\",'1. Order'!G67)","v":""},{"$f":"IF('1. Order'!H67=\"\",\"\",'1. Order'!H67)","v":""},{"$f":"IF('1. Order'!I67=\"\",\"\",'1. Order'!I67)","v":""},{"$f":"IF('1. Order'!J67=\"\",\"\",'1. Order'!J67)","v":""},{"$f":"IF('1. Order'!K67=\"\",\"\",'1. Order'!K67)","v":""},{"$f":"IF('1. Order'!L67=\"\",\"\",'1. Order'!L67)","v":""},{"$f":"IF('1. Order'!M67=\"\",\"\",'1. Order'!M67)","v":""},{"$f":"IF('1. Order'!N67=\"\",\"\",'1. Order'!N67)","v":""},{"$f":"IF('1. Order'!O67=\"\",\"\",'1. Order'!O67)","v":{"$error":"#N/A"}},{"$f":"IF('1. Order'!P67=\"\",\"\",'1. Order'!P67)","v":{"$error":"#N/A"}},{"$f":"IF('1. Order'!Q67=\"\",\"\",'1. Order'!Q67)","v":""},{"$f":"IF('1. Order'!R67=\"\",\"\",'1. Order'!R67)","v":""},{"$f":"IF('1. Order'!S67=\"\",\"\",'1. Order'!S67)","v":""},{"$f":"IF('1. Order'!V67=\"\",\"\",'1. Order'!V67)","v":""},{"$f":"IF('1. Order'!W67=\"\",\"\",'1. Order'!W67)","v":""},{"$f":"IF('1. Order'!X67=\"\",\"\",'1. Order'!X67)","v":"EUR"},{"$f":"IF('1. Order'!Y67=\"\",\"\",'1. Order'!Y67)","v":""},{"$f":"IF('1. Order'!Z67=\"\",\"\",'1. Order'!Z67)","v":""},{"$f":"IF('1. Order'!AA67=\"\",\"\",'1. Order'!AA67)","v":""},null,{"$f":"IF('1. Order'!AS67=\"\",\"\",'1. Order'!AS67)","v":""},{"$f":"IF('1. Order'!AT67=\"\",\"\",'1. Order'!AT67)","v":""},null,null,null,null,null,null,null,{"$f":"IF('1. Order'!AX67=\"\",\"\",'1. Order'!AX67)","v":""},{"$f":"IF('1. Order'!AY67=\"\",\"\",'1. Order'!AY67)","v":""},{"$f":"IF('1. Order'!AZ67=\"\",\"\",'1. Order'!AZ67)","v":""},{"$f":"IF('1. Order'!BA67=\"\",\"\",'1. Order'!BA67)","v":""},{"$f":"IF('1. Order'!BC67=\"\",\"\",'1. Order'!BC67)","v":""},{"$f":"IF('1. Order'!BD67=\"\",\"\",'1. Order'!BD67)","v":6},{"$f":"IF('1. Order'!BE67=\"\",\"\",'1. Order'!BE67)","v":"None"},{"$f":"IF('1. Order'!BF67=\"\",\"\",'1. Order'!BF67)","v":"Parcel"},{"$f":"IF('1. Order'!BG67=\"\",\"\",'1. Order'!BG67)","v":"ZWO"}]
[{"$f":"IF('1. Order'!F68=\"\",\"\",'1. Order'!F68)","v":""},{"$f":"IF('1. Order'!G68=\"\",\"\",'1. Order'!G68)","v":""},{"$f":"IF('1. Order'!H68=\"\",\"\",'1. Order'!H68)","v":""},{"$f":"IF('1. Order'!I68=\"\",\"\",'1. Order'!I68)","v":""},{"$f":"IF('1. Order'!J68=\"\",\"\",'1. Order'!J68)","v":""},{"$f":"IF('1. Order'!K68=\"\",\"\",'1. Order'!K68)","v":""},{"$f":"IF('1. Order'!L68=\"\",\"\",'1. Order'!L68)","v":""},{"$f":"IF('1. Order'!M68=\"\",\"\",'1. Order'!M68)","v":""},{"$f":"IF('1. Order'!N68=\"\",\"\",'1. Order'!N68)","v":""},{"$f":"IF('1. Order'!O68=\"\",\"\",'1. Order'!O68)","v":{"$error":"#N/A"}},{"$f":"IF('1. Order'!P68=\"\",\"\",'1. Order'!P68)","v":{"$error":"#N/A"}},{"$f":"IF('1. Order'!Q68=\"\",\"\",'1. Order'!Q68)","v":""},{"$f":"IF('1. Order'!R68=\"\",\"\",'1. Order'!R68)","v":""},{"$f":"IF('1. Order'!S68=\"\",\"\",'1. Order'!S68)","v":""},{"$f":"IF('1. Order'!V68=\"\",\"\",'1. Order'!V68)","v":""},{"$f":"IF('1. Order'!W68=\"\",\"\",'1. Order'!W68)","v":""},{"$f":"IF('1. Order'!X68=\"\",\"\",'1. Order'!X68)","v":"EUR"},{"$f":"IF('1. Order'!Y68=\"\",\"\",'1. Order'!Y68)","v":""},{"$f":"IF('1. Order'!Z68=\"\",\"\",'1. Order'!Z68)","v":""},{"$f":"IF('1. Order'!AA68=\"\",\"\",'1. Order'!AA68)","v":""},null,{"$f":"IF('1. Order'!AS68=\"\",\"\",'1. Order'!AS68)","v":""},{"$f":"IF('1. Order'!AT68=\"\",\"\",'1. Order'!AT68)","v":""},null,null,null,null,null,null,null,{"$f":"IF('1. Order'!AX68=\"\",\"\",'1. Order'!AX68)","v":""},{"$f":"IF('1. Order'!AY68=\"\",\"\",'1. Order'!AY68)","v":""},{"$f":"IF('1. Order'!AZ68=\"\",\"\",'1. Order'!AZ68)","v":""},{"$f":"IF('1. Order'!BA68=\"\",\"\",'1. Order'!BA68)","v":""},{"$f":"IF('1. Order'!BC68=\"\",\"\",'1. Order'!BC68)","v":""},{"$f":"IF('1. Order'!BD68=\"\",\"\",'1. Order'!BD68)","v":6},{"$f":"IF('1. Order'!BE68=\"\",\"\",'1. Order'!BE68)","v":"None"},{"$f":"IF('1. Order'!BF68=\"\",\"\",'1. Order'!BF68)","v":"Parcel"},{"$f":"IF('1. Order'!BG68=\"\",\"\",'1. Order'!BG68)","v":"ZWO"}]
[{"$f":"IF('1. Order'!F69=\"\",\"\",'1. Order'!F69)","v":""},{"$f":"IF('1. Order'!G69=\"\",\"\",'1. Order'!G69)","v":""},{"$f":"IF('1. Order'!H69=\"\",\"\",'1. Order'!H69)","v":""},{"$f":"IF('1. Order'!I69=\"\",\"\",'1. Order'!I69)","v":""},{"$f":"IF('1. Order'!J69=\"\",\"\",'1. Order'!J69)","v":""},{"$f":"IF('1. Order'!K69=\"\",\"\",'1. Order'!K69)","v":""},{"$f":"IF('1. Order'!L69=\"\",\"\",'1. Order'!L69)","v":""},{"$f":"IF('1. Order'!M69=\"\",\"\",'1. Order'!M69)","v":""},{"$f":"IF('1. Order'!N69=\"\",\"\",'1. Order'!N69)","v":""},{"$f":"IF('1. Order'!O69=\"\",\"\",'1. Order'!O69)","v":{"$error":"#N/A"}},{"$f":"IF('1. Order'!P69=\"\",\"\",'1. Order'!P69)","v":{"$error":"#N/A"}},{"$f":"IF('1. Order'!Q69=\"\",\"\",'1. Order'!Q69)","v":""},{"$f":"IF('1. Order'!R69=\"\",\"\",'1. Order'!R69)","v":""},{"$f":"IF('1. Order'!S69=\"\",\"\",'1. Order'!S69)","v":""},{"$f":"IF('1. Order'!V69=\"\",\"\",'1. Order'!V69)","v":""},{"$f":"IF('1. Order'!W69=\"\",\"\",'1. Order'!W69)","v":""},{"$f":"IF('1. Order'!X69=\"\",\"\",'1. Order'!X69)","v":"EUR"},{"$f":"IF('1. Order'!Y69=\"\",\"\",'1. Order'!Y69)","v":""},{"$f":"IF('1. Order'!Z69=\"\",\"\",'1. Order'!Z69)","v":""},{"$f":"IF('1. Order'!AA69=\"\",\"\",'1. Order'!AA69)","v":""},null,{"$f":"IF('1. Order'!AS69=\"\",\"\",'1. Order'!AS69)","v":""},{"$f":"IF('1. Order'!AT69=\"\",\"\",'1. Order'!AT69)","v":""},null,null,null,null,null,null,null,{"$f":"IF('1. Order'!AX69=\"\",\"\",'1. Order'!AX69)","v":""},{"$f":"IF('1. Order'!AY69=\"\",\"\",'1. Order'!AY69)","v":""},{"$f":"IF('1. Order'!AZ69=\"\",\"\",'1. Order'!AZ69)","v":""},{"$f":"IF('1. Order'!BA69=\"\",\"\",'1. Order'!BA69)","v":""},{"$f":"IF('1. Order'!BC69=\"\",\"\",'1. Order'!BC69)","v":""},{"$f":"IF('1. Order'!BD69=\"\",\"\",'1. Order'!BD69)","v":6},{"$f":"IF('1. Order'!BE69=\"\",\"\",'1. Order'!BE69)","v":"None"},{"$f":"IF('1. Order'!BF69=\"\",\"\",'1. Order'!BF69)","v":"Parcel"},{"$f":"IF('1. Order'!BG69=\"\",\"\",'1. Order'!BG69)","v":"ZWO"}]
[{"$f":"IF('1. Order'!F70=\"\",\"\",'1. Order'!F70)","v":""},{"$f":"IF('1. Order'!G70=\"\",\"\",'1. Order'!G70)","v":""},{"$f":"IF('1. Order'!H70=\"\",\"\",'1. Order'!H70)","v":""},{"$f":"IF('1. Order'!I70=\"\",\"\",'1. Order'!I70)","v":""},{"$f":"IF('1. Order'!J70=\"\",\"\",'1. Order'!J70)","v":""},{"$f":"IF('1. Order'!K70=\"\",\"\",'1. Order'!K70)","v":""},{"$f":"IF('1. Order'!L70=\"\",\"\",'1. Order'!L70)","v":""},{"$f":"IF('1. Order'!M70=\"\",\"\",'1. Order'!M70)","v":""},{"$f":"IF('1. Order'!N70=\"\",\"\",'1. Order'!N70)","v":""},{"$f":"IF('1. Order'!O70=\"\",\"\",'1. Order'!O70)","v":{"$error":"#N/A"}},{"$f":"IF('1. Order'!P70=\"\",\"\",'1. Order'!P70)","v":{"$error":"#N/A"}},{"$f":"IF('1. Order'!Q70=\"\",\"\",'1. Order'!Q70)","v":""},{"$f":"IF('1. Order'!R70=\"\",\"\",'1. Order'!R70)","v":""},{"$f":"IF('1. Order'!S70=\"\",\"\",'1. Order'!S70)","v":""},{"$f":"IF('1. Order'!V70=\"\",\"\",'1. Order'!V70)","v":""},{"$f":"IF('1. Order'!W70=\"\",\"\",'1. Order'!W70)","v":""},{"$f":"IF('1. Order'!X70=\"\",\"\",'1. Order'!X70)","v":"EUR"},{"$f":"IF('1. Order'!Y70=\"\",\"\",'1. Order'!Y70)","v":""},{"$f":"IF('1. Order'!Z70=\"\",\"\",'1. Order'!Z70)","v":""},{"$f":"IF('1. Order'!AA70=\"\",\"\",'1. Order'!AA70)","v":""},null,{"$f":"IF('1. Order'!AS70=\"\",\"\",'1. Order'!AS70)","v":""},{"$f":"IF('1. Order'!AT70=\"\",\"\",'1. Order'!AT70)","v":""},null,null,null,null,null,null,null,{"$f":"IF('1. Order'!AX70=\"\",\"\",'1. Order'!AX70)","v":""},{"$f":"IF('1. Order'!AY70=\"\",\"\",'1. Order'!AY70)","v":""},{"$f":"IF('1. Order'!AZ70=\"\",\"\",'1. Order'!AZ70)","v":""},{"$f":"IF('1. Order'!BA70=\"\",\"\",'1. Order'!BA70)","v":""},{"$f":"IF('1. Order'!BC70=\"\",\"\",'1. Order'!BC70)","v":""},{"$f":"IF('1. Order'!BD70=\"\",\"\",'1. Order'!BD70)","v":6},{"$f":"IF('1. Order'!BE70=\"\",\"\",'1. Order'!BE70)","v":"None"},{"$f":"IF('1. Order'!BF70=\"\",\"\",'1. Order'!BF70)","v":"Parcel"},{"$f":"IF('1. Order'!BG70=\"\",\"\",'1. Order'!BG70)","v":"ZWO"}]
[{"$f":"IF('1. Order'!F71=\"\",\"\",'1. Order'!F71)","v":""},{"$f":"IF('1. Order'!G71=\"\",\"\",'1. Order'!G71)","v":""},{"$f":"IF('1. Order'!H71=\"\",\"\",'1. Order'!H71)","v":""},{"$f":"IF('1. Order'!I71=\"\",\"\",'1. Order'!I71)","v":""},{"$f":"IF('1. Order'!J71=\"\",\"\",'1. Order'!J71)","v":""},{"$f":"IF('1. Order'!K71=\"\",\"\",'1. Order'!K71)","v":""},{"$f":"IF('1. Order'!L71=\"\",\"\",'1. Order'!L71)","v":""},{"$f":"IF('1. Order'!M71=\"\",\"\",'1. Order'!M71)","v":""},{"$f":"IF('1. Order'!N71=\"\",\"\",'1. Order'!N71)","v":""},{"$f":"IF('1. Order'!O71=\"\",\"\",'1. Order'!O71)","v":{"$error":"#N/A"}},{"$f":"IF('1. Order'!P71=\"\",\"\",'1. Order'!P71)","v":{"$error":"#N/A"}},{"$f":"IF('1. Order'!Q71=\"\",\"\",'1. Order'!Q71)","v":""},{"$f":"IF('1. Order'!R71=\"\",\"\",'1. Order'!R71)","v":""},{"$f":"IF('1. Order'!S71=\"\",\"\",'1. Order'!S71)","v":""},{"$f":"IF('1. Order'!V71=\"\",\"\",'1. Order'!V71)","v":""},{"$f":"IF('1. Order'!W71=\"\",\"\",'1. Order'!W71)","v":""},{"$f":"IF('1. Order'!X71=\"\",\"\",'1. Order'!X71)","v":"EUR"},{"$f":"IF('1. Order'!Y71=\"\",\"\",'1. Order'!Y71)","v":""},{"$f":"IF('1. Order'!Z71=\"\",\"\",'1. Order'!Z71)","v":""},{"$f":"IF('1. Order'!AA71=\"\",\"\",'1. Order'!AA71)","v":""},null,{"$f":"IF('1. Order'!AS71=\"\",\"\",'1. Order'!AS71)","v":""},{"$f":"IF('1. Order'!AT71=\"\",\"\",'1. Order'!AT71)","v":""},null,null,null,null,null,null,null,{"$f":"IF('1. Order'!AX71=\"\",\"\",'1. Order'!AX71)","v":""},{"$f":"IF('1. Order'!AY71=\"\",\"\",'1. Order'!AY71)","v":""},{"$f":"IF('1. Order'!AZ71=\"\",\"\",'1. Order'!AZ71)","v":""},{"$f":"IF('1. Order'!BA71=\"\",\"\",'1. Order'!BA71)","v":""},{"$f":"IF('1. Order'!BC71=\"\",\"\",'1. Order'!BC71)","v":""},{"$f":"IF('1. Order'!BD71=\"\",\"\",'1. Order'!BD71)","v":6},{"$f":"IF('1. Order'!BE71=\"\",\"\",'1. Order'!BE71)","v":"None"},{"$f":"IF('1. Order'!BF71=\"\",\"\",'1. Order'!BF71)","v":"Parcel"},{"$f":"IF('1. Order'!BG71=\"\",\"\",'1. Order'!BG71)","v":"ZWO"}]
[{"$f":"IF('1. Order'!F72=\"\",\"\",'1. Order'!F72)","v":""},{"$f":"IF('1. Order'!G72=\"\",\"\",'1. Order'!G72)","v":""},{"$f":"IF('1. Order'!H72=\"\",\"\",'1. Order'!H72)","v":""},{"$f":"IF('1. Order'!I72=\"\",\"\",'1. Order'!I72)","v":""},{"$f":"IF('1. Order'!J72=\"\",\"\",'1. Order'!J72)","v":""},{"$f":"IF('1. Order'!K72=\"\",\"\",'1. Order'!K72)","v":""},{"$f":"IF('1. Order'!L72=\"\",\"\",'1. Order'!L72)","v":""},{"$f":"IF('1. Order'!M72=\"\",\"\",'1. Order'!M72)","v":""},{"$f":"IF('1. Order'!N72=\"\",\"\",'1. Order'!N72)","v":""},{"$f":"IF('1. Order'!O72=\"\",\"\",'1. Order'!O72)","v":{"$error":"#N/A"}},{"$f":"IF('1. Order'!P72=\"\",\"\",'1. Order'!P72)","v":{"$error":"#N/A"}},{"$f":"IF('1. Order'!Q72=\"\",\"\",'1. Order'!Q72)","v":""},{"$f":"IF('1. Order'!R72=\"\",\"\",'1. Order'!R72)","v":""},{"$f":"IF('1. Order'!S72=\"\",\"\",'1. Order'!S72)","v":""},{"$f":"IF('1. Order'!V72=\"\",\"\",'1. Order'!V72)","v":""},{"$f":"IF('1. Order'!W72=\"\",\"\",'1. Order'!W72)","v":""},{"$f":"IF('1. Order'!X72=\"\",\"\",'1. Order'!X72)","v":"EUR"},{"$f":"IF('1. Order'!Y72=\"\",\"\",'1. Order'!Y72)","v":""},{"$f":"IF('1. Order'!Z72=\"\",\"\",'1. Order'!Z72)","v":""},{"$f":"IF('1. Order'!AA72=\"\",\"\",'1. Order'!AA72)","v":""},null,{"$f":"IF('1. Order'!AS72=\"\",\"\",'1. Order'!AS72)","v":""},{"$f":"IF('1. Order'!AT72=\"\",\"\",'1. Order'!AT72)","v":""},null,null,null,null,null,null,null,{"$f":"IF('1. Order'!AX72=\"\",\"\",'1. Order'!AX72)","v":""},{"$f":"IF('1. Order'!AY72=\"\",\"\",'1. Order'!AY72)","v":""},{"$f":"IF('1. Order'!AZ72=\"\",\"\",'1. Order'!AZ72)","v":""},{"$f":"IF('1. Order'!BA72=\"\",\"\",'1. Order'!BA72)","v":""},{"$f":"IF('1. Order'!BC72=\"\",\"\",'1. Order'!BC72)","v":""},{"$f":"IF('1. Order'!BD72=\"\",\"\",'1. Order'!BD72)","v":6},{"$f":"IF('1. Order'!BE72=\"\",\"\",'1. Order'!BE72)","v":"None"},{"$f":"IF('1. Order'!BF72=\"\",\"\",'1. Order'!BF72)","v":"Parcel"},{"$f":"IF('1. Order'!BG72=\"\",\"\",'1. Order'!BG72)","v":"ZWO"}]
[{"$f":"IF('1. Order'!F73=\"\",\"\",'1. Order'!F73)","v":""},{"$f":"IF('1. Order'!G73=\"\",\"\",'1. Order'!G73)","v":""},{"$f":"IF('1. Order'!H73=\"\",\"\",'1. Order'!H73)","v":""},{"$f":"IF('1. Order'!I73=\"\",\"\",'1. Order'!I73)","v":""},{"$f":"IF('1. Order'!J73=\"\",\"\",'1. Order'!J73)","v":""},{"$f":"IF('1. Order'!K73=\"\",\"\",'1. Order'!K73)","v":""},{"$f":"IF('1. Order'!L73=\"\",\"\",'1. Order'!L73)","v":""},{"$f":"IF('1. Order'!M73=\"\",\"\",'1. Order'!M73)","v":""},{"$f":"IF('1. Order'!N73=\"\",\"\",'1. Order'!N73)","v":""},{"$f":"IF('1. Order'!O73=\"\",\"\",'1. Order'!O73)","v":{"$error":"#N/A"}},{"$f":"IF('1. Order'!P73=\"\",\"\",'1. Order'!P73)","v":{"$error":"#N/A"}},{"$f":"IF('1. Order'!Q73=\"\",\"\",'1. Order'!Q73)","v":""},{"$f":"IF('1. Order'!R73=\"\",\"\",'1. Order'!R73)","v":""},{"$f":"IF('1. Order'!S73=\"\",\"\",'1. Order'!S73)","v":""},{"$f":"IF('1. Order'!V73=\"\",\"\",'1. Order'!V73)","v":""},{"$f":"IF('1. Order'!W73=\"\",\"\",'1. Order'!W73)","v":""},{"$f":"IF('1. Order'!X73=\"\",\"\",'1. Order'!X73)","v":"EUR"},{"$f":"IF('1. Order'!Y73=\"\",\"\",'1. Order'!Y73)","v":""},{"$f":"IF('1. Order'!Z73=\"\",\"\",'1. Order'!Z73)","v":""},{"$f":"IF('1. Order'!AA73=\"\",\"\",'1. Order'!AA73)","v":""},null,{"$f":"IF('1. Order'!AS73=\"\",\"\",'1. Order'!AS73)","v":""},{"$f":"IF('1. Order'!AT73=\"\",\"\",'1. Order'!AT73)","v":""},null,null,null,null,null,null,null,{"$f":"IF('1. Order'!AX73=\"\",\"\",'1. Order'!AX73)","v":""},{"$f":"IF('1. Order'!AY73=\"\",\"\",'1. Order'!AY73)","v":""},{"$f":"IF('1. Order'!AZ73=\"\",\"\",'1. Order'!AZ73)","v":""},{"$f":"IF('1. Order'!BA73=\"\",\"\",'1. Order'!BA73)","v":""},{"$f":"IF('1. Order'!BC73=\"\",\"\",'1. Order'!BC73)","v":""},{"$f":"IF('1. Order'!BD73=\"\",\"\",'1. Order'!BD73)","v":6},{"$f":"IF('1. Order'!BE73=\"\",\"\",'1. Order'!BE73)","v":"None"},{"$f":"IF('1. Order'!BF73=\"\",\"\",'1. Order'!BF73)","v":"Parcel"},{"$f":"IF('1. Order'!BG73=\"\",\"\",'1. Order'!BG73)","v":"ZWO"}]
[{"$f":"IF('1. Order'!F74=\"\",\"\",'1. Order'!F74)","v":""},{"$f":"IF('1. Order'!G74=\"\",\"\",'1. Order'!G74)","v":""},{"$f":"IF('1. Order'!H74=\"\",\"\",'1. Order'!H74)","v":""},{"$f":"IF('1. Order'!I74=\"\",\"\",'1. Order'!I74)","v":""},{"$f":"IF('1. Order'!J74=\"\",\"\",'1. Order'!J74)","v":""},{"$f":"IF('1. Order'!K74=\"\",\"\",'1. Order'!K74)","v":""},{"$f":"IF('1. Order'!L74=\"\",\"\",'1. Order'!L74)","v":""},{"$f":"IF('1. Order'!M74=\"\",\"\",'1. Order'!M74)","v":""},{"$f":"IF('1. Order'!N74=\"\",\"\",'1. Order'!N74)","v":""},{"$f":"IF('1. Order'!O74=\"\",\"\",'1. Order'!O74)","v":{"$error":"#N/A"}},{"$f":"IF('1. Order'!P74=\"\",\"\",'1. Order'!P74)","v":{"$error":"#N/A"}},{"$f":"IF('1. Order'!Q74=\"\",\"\",'1. Order'!Q74)","v":""},{"$f":"IF('1. Order'!R74=\"\",\"\",'1. Order'!R74)","v":""},{"$f":"IF('1. Order'!S74=\"\",\"\",'1. Order'!S74)","v":""},{"$f":"IF('1. Order'!V74=\"\",\"\",'1. Order'!V74)","v":""},{"$f":"IF('1. Order'!W74=\"\",\"\",'1. Order'!W74)","v":""},{"$f":"IF('1. Order'!X74=\"\",\"\",'1. Order'!X74)","v":"EUR"},{"$f":"IF('1. Order'!Y74=\"\",\"\",'1. Order'!Y74)","v":""},{"$f":"IF('1. Order'!Z74=\"\",\"\",'1. Order'!Z74)","v":""},{"$f":"IF('1. Order'!AA74=\"\",\"\",'1. Order'!AA74)","v":""},null,{"$f":"IF('1. Order'!AS74=\"\",\"\",'1. Order'!AS74)","v":""},{"$f":"IF('1. Order'!AT74=\"\",\"\",'1. Order'!AT74)","v":""},null,null,null,null,null,null,null,{"$f":"IF('1. Order'!AX74=\"\",\"\",'1. Order'!AX74)","v":""},{"$f":"IF('1. Order'!AY74=\"\",\"\",'1. Order'!AY74)","v":""},{"$f":"IF('1. Order'!AZ74=\"\",\"\",'1. Order'!AZ74)","v":""},{"$f":"IF('1. Order'!BA74=\"\",\"\",'1. Order'!BA74)","v":""},{"$f":"IF('1. Order'!BC74=\"\",\"\",'1. Order'!BC74)","v":""},{"$f":"IF('1. Order'!BD74=\"\",\"\",'1. Order'!BD74)","v":6},{"$f":"IF('1. Order'!BE74=\"\",\"\",'1. Order'!BE74)","v":"None"},{"$f":"IF('1. Order'!BF74=\"\",\"\",'1. Order'!BF74)","v":"Parcel"},{"$f":"IF('1. Order'!BG74=\"\",\"\",'1. Order'!BG74)","v":"ZWO"}]
[{"$f":"IF('1. Order'!F75=\"\",\"\",'1. Order'!F75)","v":""},{"$f":"IF('1. Order'!G75=\"\",\"\",'1. Order'!G75)","v":""},{"$f":"IF('1. Order'!H75=\"\",\"\",'1. Order'!H75)","v":""},{"$f":"IF('1. Order'!I75=\"\",\"\",'1. Order'!I75)","v":""},{"$f":"IF('1. Order'!J75=\"\",\"\",'1. Order'!J75)","v":""},{"$f":"IF('1. Order'!K75=\"\",\"\",'1. Order'!K75)","v":""},{"$f":"IF('1. Order'!L75=\"\",\"\",'1. Order'!L75)","v":""},{"$f":"IF('1. Order'!M75=\"\",\"\",'1. Order'!M75)","v":""},{"$f":"IF('1. Order'!N75=\"\",\"\",'1. Order'!N75)","v":""},{"$f":"IF('1. Order'!O75=\"\",\"\",'1. Order'!O75)","v":{"$error":"#N/A"}},{"$f":"IF('1. Order'!P75=\"\",\"\",'1. Order'!P75)","v":{"$error":"#N/A"}},{"$f":"IF('1. Order'!Q75=\"\",\"\",'1. Order'!Q75)","v":""},{"$f":"IF('1. Order'!R75=\"\",\"\",'1. Order'!R75)","v":""},{"$f":"IF('1. Order'!S75=\"\",\"\",'1. Order'!S75)","v":""},{"$f":"IF('1. Order'!V75=\"\",\"\",'1. Order'!V75)","v":""},{"$f":"IF('1. Order'!W75=\"\",\"\",'1. Order'!W75)","v":""},{"$f":"IF('1. Order'!X75=\"\",\"\",'1. Order'!X75)","v":"EUR"},{"$f":"IF('1. Order'!Y75=\"\",\"\",'1. Order'!Y75)","v":""},{"$f":"IF('1. Order'!Z75=\"\",\"\",'1. Order'!Z75)","v":""},{"$f":"IF('1. Order'!AA75=\"\",\"\",'1. Order'!AA75)","v":""},null,{"$f":"IF('1. Order'!AS75=\"\",\"\",'1. Order'!AS75)","v":""},{"$f":"IF('1. Order'!AT75=\"\",\"\",'1. Order'!AT75)","v":""},null,null,null,null,null,null,null,{"$f":"IF('1. Order'!AX75=\"\",\"\",'1. Order'!AX75)","v":""},{"$f":"IF('1. Order'!AY75=\"\",\"\",'1. Order'!AY75)","v":""},{"$f":"IF('1. Order'!AZ75=\"\",\"\",'1. Order'!AZ75)","v":""},{"$f":"IF('1. Order'!BA75=\"\",\"\",'1. Order'!BA75)","v":""},{"$f":"IF('1. Order'!BC75=\"\",\"\",'1. Order'!BC75)","v":""},{"$f":"IF('1. Order'!BD75=\"\",\"\",'1. Order'!BD75)","v":6},{"$f":"IF('1. Order'!BE75=\"\",\"\",'1. Order'!BE75)","v":"None"},{"$f":"IF('1. Order'!BF75=\"\",\"\",'1. Order'!BF75)","v":"Parcel"},{"$f":"IF('1. Order'!BG75=\"\",\"\",'1. Order'!BG75)","v":"ZWO"}]
[{"$f":"IF('1. Order'!F76=\"\",\"\",'1. Order'!F76)","v":""},{"$f":"IF('1. Order'!G76=\"\",\"\",'1. Order'!G76)","v":""},{"$f":"IF('1. Order'!H76=\"\",\"\",'1. Order'!H76)","v":""},{"$f":"IF('1. Order'!I76=\"\",\"\",'1. Order'!I76)","v":""},{"$f":"IF('1. Order'!J76=\"\",\"\",'1. Order'!J76)","v":""},{"$f":"IF('1. Order'!K76=\"\",\"\",'1. Order'!K76)","v":""},{"$f":"IF('1. Order'!L76=\"\",\"\",'1. Order'!L76)","v":""},{"$f":"IF('1. Order'!M76=\"\",\"\",'1. Order'!M76)","v":""},{"$f":"IF('1. Order'!N76=\"\",\"\",'1. Order'!N76)","v":""},{"$f":"IF('1. Order'!O76=\"\",\"\",'1. Order'!O76)","v":{"$error":"#N/A"}},{"$f":"IF('1. Order'!P76=\"\",\"\",'1. Order'!P76)","v":{"$error":"#N/A"}},{"$f":"IF('1. Order'!Q76=\"\",\"\",'1. Order'!Q76)","v":""},{"$f":"IF('1. Order'!R76=\"\",\"\",'1. Order'!R76)","v":""},{"$f":"IF('1. Order'!S76=\"\",\"\",'1. Order'!S76)","v":""},{"$f":"IF('1. Order'!V76=\"\",\"\",'1. Order'!V76)","v":""},{"$f":"IF('1. Order'!W76=\"\",\"\",'1. Order'!W76)","v":""},{"$f":"IF('1. Order'!X76=\"\",\"\",'1. Order'!X76)","v":"EUR"},{"$f":"IF('1. Order'!Y76=\"\",\"\",'1. Order'!Y76)","v":""},{"$f":"IF('1. Order'!Z76=\"\",\"\",'1. Order'!Z76)","v":""},{"$f":"IF('1. Order'!AA76=\"\",\"\",'1. Order'!AA76)","v":""},null,{"$f":"IF('1. Order'!AS76=\"\",\"\",'1. Order'!AS76)","v":""},{"$f":"IF('1. Order'!AT76=\"\",\"\",'1. Order'!AT76)","v":""},null,null,null,null,null,null,null,{"$f":"IF('1. Order'!AX76=\"\",\"\",'1. Order'!AX76)","v":""},{"$f":"IF('1. Order'!AY76=\"\",\"\",'1. Order'!AY76)","v":""},{"$f":"IF('1. Order'!AZ76=\"\",\"\",'1. Order'!AZ76)","v":""},{"$f":"IF('1. Order'!BA76=\"\",\"\",'1. Order'!BA76)","v":""},{"$f":"IF('1. Order'!BC76=\"\",\"\",'1. Order'!BC76)","v":""},{"$f":"IF('1. Order'!BD76=\"\",\"\",'1. Order'!BD76)","v":6},{"$f":"IF('1. Order'!BE76=\"\",\"\",'1. Order'!BE76)","v":"None"},{"$f":"IF('1. Order'!BF76=\"\",\"\",'1. Order'!BF76)","v":"Parcel"},{"$f":"IF('1. Order'!BG76=\"\",\"\",'1. Order'!BG76)","v":"ZWO"}]
[{"$f":"IF('1. Order'!F77=\"\",\"\",'1. Order'!F77)","v":""},{"$f":"IF('1. Order'!G77=\"\",\"\",'1. Order'!G77)","v":""},{"$f":"IF('1. Order'!H77=\"\",\"\",'1. Order'!H77)","v":""},{"$f":"IF('1. Order'!I77=\"\",\"\",'1. Order'!I77)","v":""},{"$f":"IF('1. Order'!J77=\"\",\"\",'1. Order'!J77)","v":""},{"$f":"IF('1. Order'!K77=\"\",\"\",'1. Order'!K77)","v":""},{"$f":"IF('1. Order'!L77=\"\",\"\",'1. Order'!L77)","v":""},{"$f":"IF('1. Order'!M77=\"\",\"\",'1. Order'!M77)","v":""},{"$f":"IF('1. Order'!N77=\"\",\"\",'1. Order'!N77)","v":""},{"$f":"IF('1. Order'!O77=\"\",\"\",'1. Order'!O77)","v":{"$error":"#N/A"}},{"$f":"IF('1. Order'!P77=\"\",\"\",'1. Order'!P77)","v":{"$error":"#N/A"}},{"$f":"IF('1. Order'!Q77=\"\",\"\",'1. Order'!Q77)","v":""},{"$f":"IF('1. Order'!R77=\"\",\"\",'1. Order'!R77)","v":""},{"$f":"IF('1. Order'!S77=\"\",\"\",'1. Order'!S77)","v":""},{"$f":"IF('1. Order'!V77=\"\",\"\",'1. Order'!V77)","v":""},{"$f":"IF('1. Order'!W77=\"\",\"\",'1. Order'!W77)","v":""},{"$f":"IF('1. Order'!X77=\"\",\"\",'1. Order'!X77)","v":"EUR"},{"$f":"IF('1. Order'!Y77=\"\",\"\",'1. Order'!Y77)","v":""},{"$f":"IF('1. Order'!Z77=\"\",\"\",'1. Order'!Z77)","v":""},{"$f":"IF('1. Order'!AA77=\"\",\"\",'1. Order'!AA77)","v":""},null,{"$f":"IF('1. Order'!AS77=\"\",\"\",'1. Order'!AS77)","v":""},{"$f":"IF('1. Order'!AT77=\"\",\"\",'1. Order'!AT77)","v":""},null,null,null,null,null,null,null,{"$f":"IF('1. Order'!AX77=\"\",\"\",'1. Order'!AX77)","v":""},{"$f":"IF('1. Order'!AY77=\"\",\"\",'1. Order'!AY77)","v":""},{"$f":"IF('1. Order'!AZ77=\"\",\"\",'1. Order'!AZ77)","v":""},{"$f":"IF('1. Order'!BA77=\"\",\"\",'1. Order'!BA77)","v":""},{"$f":"IF('1. Order'!BC77=\"\",\"\",'1. Order'!BC77)","v":""},{"$f":"IF('1. Order'!BD77=\"\",\"\",'1. Order'!BD77)","v":6},{"$f":"IF('1. Order'!BE77=\"\",\"\",'1. Order'!BE77)","v":"None"},{"$f":"IF('1. Order'!BF77=\"\",\"\",'1. Order'!BF77)","v":"Parcel"},{"$f":"IF('1. Order'!BG77=\"\",\"\",'1. Order'!BG77)","v":"ZWO"}]
[{"$f":"IF('1. Order'!F78=\"\",\"\",'1. Order'!F78)","v":""},{"$f":"IF('1. Order'!G78=\"\",\"\",'1. Order'!G78)","v":""},{"$f":"IF('1. Order'!H78=\"\",\"\",'1. Order'!H78)","v":""},{"$f":"IF('1. Order'!I78=\"\",\"\",'1. Order'!I78)","v":""},{"$f":"IF('1. Order'!J78=\"\",\"\",'1. Order'!J78)","v":""},{"$f":"IF('1. Order'!K78=\"\",\"\",'1. Order'!K78)","v":""},{"$f":"IF('1. Order'!L78=\"\",\"\",'1. Order'!L78)","v":""},{"$f":"IF('1. Order'!M78=\"\",\"\",'1. Order'!M78)","v":""},{"$f":"IF('1. Order'!N78=\"\",\"\",'1. Order'!N78)","v":""},{"$f":"IF('1. Order'!O78=\"\",\"\",'1. Order'!O78)","v":{"$error":"#N/A"}},{"$f":"IF('1. Order'!P78=\"\",\"\",'1. Order'!P78)","v":{"$error":"#N/A"}},{"$f":"IF('1. Order'!Q78=\"\",\"\",'1. Order'!Q78)","v":""},{"$f":"IF('1. Order'!R78=\"\",\"\",'1. Order'!R78)","v":""},{"$f":"IF('1. Order'!S78=\"\",\"\",'1. Order'!S78)","v":""},{"$f":"IF('1. Order'!V78=\"\",\"\",'1. Order'!V78)","v":""},{"$f":"IF('1. Order'!W78=\"\",\"\",'1. Order'!W78)","v":""},{"$f":"IF('1. Order'!X78=\"\",\"\",'1. Order'!X78)","v":"EUR"},{"$f":"IF('1. Order'!Y78=\"\",\"\",'1. Order'!Y78)","v":""},{"$f":"IF('1. Order'!Z78=\"\",\"\",'1. Order'!Z78)","v":""},{"$f":"IF('1. Order'!AA78=\"\",\"\",'1. Order'!AA78)","v":""},null,{"$f":"IF('1. Order'!AS78=\"\",\"\",'1. Order'!AS78)","v":""},{"$f":"IF('1. Order'!AT78=\"\",\"\",'1. Order'!AT78)","v":""},null,null,null,null,null,null,null,{"$f":"IF('1. Order'!AX78=\"\",\"\",'1. Order'!AX78)","v":""},{"$f":"IF('1. Order'!AY78=\"\",\"\",'1. Order'!AY78)","v":""},{"$f":"IF('1. Order'!AZ78=\"\",\"\",'1. Order'!AZ78)","v":""},{"$f":"IF('1. Order'!BA78=\"\",\"\",'1. Order'!BA78)","v":""},{"$f":"IF('1. Order'!BC78=\"\",\"\",'1. Order'!BC78)","v":""},{"$f":"IF('1. Order'!BD78=\"\",\"\",'1. Order'!BD78)","v":6},{"$f":"IF('1. Order'!BE78=\"\",\"\",'1. Order'!BE78)","v":"None"},{"$f":"IF('1. Order'!BF78=\"\",\"\",'1. Order'!BF78)","v":"Parcel"},{"$f":"IF('1. Order'!BG78=\"\",\"\",'1. Order'!BG78)","v":"ZWO"}]
[{"$f":"IF('1. Order'!F79=\"\",\"\",'1. Order'!F79)","v":""},{"$f":"IF('1. Order'!G79=\"\",\"\",'1. Order'!G79)","v":""},{"$f":"IF('1. Order'!H79=\"\",\"\",'1. Order'!H79)","v":""},{"$f":"IF('1. Order'!I79=\"\",\"\",'1. Order'!I79)","v":""},{"$f":"IF('1. Order'!J79=\"\",\"\",'1. Order'!J79)","v":""},{"$f":"IF('1. Order'!K79=\"\",\"\",'1. Order'!K79)","v":""},{"$f":"IF('1. Order'!L79=\"\",\"\",'1. Order'!L79)","v":""},{"$f":"IF('1. Order'!M79=\"\",\"\",'1. Order'!M79)","v":""},{"$f":"IF('1. Order'!N79=\"\",\"\",'1. Order'!N79)","v":""},{"$f":"IF('1. Order'!O79=\"\",\"\",'1. Order'!O79)","v":{"$error":"#N/A"}},{"$f":"IF('1. Order'!P79=\"\",\"\",'1. Order'!P79)","v":{"$error":"#N/A"}},{"$f":"IF('1. Order'!Q79=\"\",\"\",'1. Order'!Q79)","v":""},{"$f":"IF('1. Order'!R79=\"\",\"\",'1. Order'!R79)","v":""},{"$f":"IF('1. Order'!S79=\"\",\"\",'1. Order'!S79)","v":""},{"$f":"IF('1. Order'!V79=\"\",\"\",'1. Order'!V79)","v":""},{"$f":"IF('1. Order'!W79=\"\",\"\",'1. Order'!W79)","v":""},{"$f":"IF('1. Order'!X79=\"\",\"\",'1. Order'!X79)","v":"EUR"},{"$f":"IF('1. Order'!Y79=\"\",\"\",'1. Order'!Y79)","v":""},{"$f":"IF('1. Order'!Z79=\"\",\"\",'1. Order'!Z79)","v":""},{"$f":"IF('1. Order'!AA79=\"\",\"\",'1. Order'!AA79)","v":""},null,{"$f":"IF('1. Order'!AS79=\"\",\"\",'1. Order'!AS79)","v":""},{"$f":"IF('1. Order'!AT79=\"\",\"\",'1. Order'!AT79)","v":""},null,null,null,null,null,null,null,{"$f":"IF('1. Order'!AX79=\"\",\"\",'1. Order'!AX79)","v":""},{"$f":"IF('1. Order'!AY79=\"\",\"\",'1. Order'!AY79)","v":""},{"$f":"IF('1. Order'!AZ79=\"\",\"\",'1. Order'!AZ79)","v":""},{"$f":"IF('1. Order'!BA79=\"\",\"\",'1. Order'!BA79)","v":""},{"$f":"IF('1. Order'!BC79=\"\",\"\",'1. Order'!BC79)","v":""},{"$f":"IF('1. Order'!BD79=\"\",\"\",'1. Order'!BD79)","v":6},{"$f":"IF('1. Order'!BE79=\"\",\"\",'1. Order'!BE79)","v":"None"},{"$f":"IF('1. Order'!BF79=\"\",\"\",'1. Order'!BF79)","v":"Parcel"},{"$f":"IF('1. Order'!BG79=\"\",\"\",'1. Order'!BG79)","v":"ZWO"}]
[{"$f":"IF('1. Order'!F80=\"\",\"\",'1. Order'!F80)","v":""},{"$f":"IF('1. Order'!G80=\"\",\"\",'1. Order'!G80)","v":""},{"$f":"IF('1. Order'!H80=\"\",\"\",'1. Order'!H80)","v":""},{"$f":"IF('1. Order'!I80=\"\",\"\",'1. Order'!I80)","v":""},{"$f":"IF('1. Order'!J80=\"\",\"\",'1. Order'!J80)","v":""},{"$f":"IF('1. Order'!K80=\"\",\"\",'1. Order'!K80)","v":""},{"$f":"IF('1. Order'!L80=\"\",\"\",'1. Order'!L80)","v":""},{"$f":"IF('1. Order'!M80=\"\",\"\",'1. Order'!M80)","v":""},{"$f":"IF('1. Order'!N80=\"\",\"\",'1. Order'!N80)","v":""},{"$f":"IF('1. Order'!O80=\"\",\"\",'1. Order'!O80)","v":{"$error":"#N/A"}},{"$f":"IF('1. Order'!P80=\"\",\"\",'1. Order'!P80)","v":{"$error":"#N/A"}},{"$f":"IF('1. Order'!Q80=\"\",\"\",'1. Order'!Q80)","v":""},{"$f":"IF('1. Order'!R80=\"\",\"\",'1. Order'!R80)","v":""},{"$f":"IF('1. Order'!S80=\"\",\"\",'1. Order'!S80)","v":""},{"$f":"IF('1. Order'!V80=\"\",\"\",'1. Order'!V80)","v":""},{"$f":"IF('1. Order'!W80=\"\",\"\",'1. Order'!W80)","v":""},{"$f":"IF('1. Order'!X80=\"\",\"\",'1. Order'!X80)","v":"EUR"},{"$f":"IF('1. Order'!Y80=\"\",\"\",'1. Order'!Y80)","v":""},{"$f":"IF('1. Order'!Z80=\"\",\"\",'1. Order'!Z80)","v":""},{"$f":"IF('1. Order'!AA80=\"\",\"\",'1. Order'!AA80)","v":""},null,{"$f":"IF('1. Order'!AS80=\"\",\"\",'1. Order'!AS80)","v":""},{"$f":"IF('1. Order'!AT80=\"\",\"\",'1. Order'!AT80)","v":""},null,null,null,null,null,null,null,{"$f":"IF('1. Order'!AX80=\"\",\"\",'1. Order'!AX80)","v":""},{"$f":"IF('1. Order'!AY80=\"\",\"\",'1. Order'!AY80)","v":""},{"$f":"IF('1. Order'!AZ80=\"\",\"\",'1. Order'!AZ80)","v":""},{"$f":"IF('1. Order'!BA80=\"\",\"\",'1. Order'!BA80)","v":""},{"$f":"IF('1. Order'!BC80=\"\",\"\",'1. Order'!BC80)","v":""},{"$f":"IF('1. Order'!BD80=\"\",\"\",'1. Order'!BD80)","v":6},{"$f":"IF('1. Order'!BE80=\"\",\"\",'1. Order'!BE80)","v":"None"},{"$f":"IF('1. Order'!BF80=\"\",\"\",'1. Order'!BF80)","v":"Parcel"},{"$f":"IF('1. Order'!BG80=\"\",\"\",'1. Order'!BG80)","v":"ZWO"}]
[{"$f":"IF('1. Order'!F81=\"\",\"\",'1. Order'!F81)","v":""},{"$f":"IF('1. Order'!G81=\"\",\"\",'1. Order'!G81)","v":""},{"$f":"IF('1. Order'!H81=\"\",\"\",'1. Order'!H81)","v":""},{"$f":"IF('1. Order'!I81=\"\",\"\",'1. Order'!I81)","v":""},{"$f":"IF('1. Order'!J81=\"\",\"\",'1. Order'!J81)","v":""},{"$f":"IF('1. Order'!K81=\"\",\"\",'1. Order'!K81)","v":""},{"$f":"IF('1. Order'!L81=\"\",\"\",'1. Order'!L81)","v":""},{"$f":"IF('1. Order'!M81=\"\",\"\",'1. Order'!M81)","v":""},{"$f":"IF('1. Order'!N81=\"\",\"\",'1. Order'!N81)","v":""},{"$f":"IF('1. Order'!O81=\"\",\"\",'1. Order'!O81)","v":{"$error":"#N/A"}},{"$f":"IF('1. Order'!P81=\"\",\"\",'1. Order'!P81)","v":{"$error":"#N/A"}},{"$f":"IF('1. Order'!Q81=\"\",\"\",'1. Order'!Q81)","v":""},{"$f":"IF('1. Order'!R81=\"\",\"\",'1. Order'!R81)","v":""},{"$f":"IF('1. Order'!S81=\"\",\"\",'1. Order'!S81)","v":""},{"$f":"IF('1. Order'!V81=\"\",\"\",'1. Order'!V81)","v":""},{"$f":"IF('1. Order'!W81=\"\",\"\",'1. Order'!W81)","v":""},{"$f":"IF('1. Order'!X81=\"\",\"\",'1. Order'!X81)","v":"EUR"},{"$f":"IF('1. Order'!Y81=\"\",\"\",'1. Order'!Y81)","v":""},{"$f":"IF('1. Order'!Z81=\"\",\"\",'1. Order'!Z81)","v":""},{"$f":"IF('1. Order'!AA81=\"\",\"\",'1. Order'!AA81)","v":""},null,{"$f":"IF('1. Order'!AS81=\"\",\"\",'1. Order'!AS81)","v":""},{"$f":"IF('1. Order'!AT81=\"\",\"\",'1. Order'!AT81)","v":""},null,null,null,null,null,null,null,{"$f":"IF('1. Order'!AX81=\"\",\"\",'1. Order'!AX81)","v":""},{"$f":"IF('1. Order'!AY81=\"\",\"\",'1. Order'!AY81)","v":""},{"$f":"IF('1. Order'!AZ81=\"\",\"\",'1. Order'!AZ81)","v":""},{"$f":"IF('1. Order'!BA81=\"\",\"\",'1. Order'!BA81)","v":""},{"$f":"IF('1. Order'!BC81=\"\",\"\",'1. Order'!BC81)","v":""},{"$f":"IF('1. Order'!BD81=\"\",\"\",'1. Order'!BD81)","v":6},{"$f":"IF('1. Order'!BE81=\"\",\"\",'1. Order'!BE81)","v":"None"},{"$f":"IF('1. Order'!BF81=\"\",\"\",'1. Order'!BF81)","v":"Parcel"},{"$f":"IF('1. Order'!BG81=\"\",\"\",'1. Order'!BG81)","v":"ZWO"}]
[{"$f":"IF('1. Order'!F82=\"\",\"\",'1. Order'!F82)","v":""},{"$f":"IF('1. Order'!G82=\"\",\"\",'1. Order'!G82)","v":""},{"$f":"IF('1. Order'!H82=\"\",\"\",'1. Order'!H82)","v":""},{"$f":"IF('1. Order'!I82=\"\",\"\",'1. Order'!I82)","v":""},{"$f":"IF('1. Order'!J82=\"\",\"\",'1. Order'!J82)","v":""},{"$f":"IF('1. Order'!K82=\"\",\"\",'1. Order'!K82)","v":""},{"$f":"IF('1. Order'!L82=\"\",\"\",'1. Order'!L82)","v":""},{"$f":"IF('1. Order'!M82=\"\",\"\",'1. Order'!M82)","v":""},{"$f":"IF('1. Order'!N82=\"\",\"\",'1. Order'!N82)","v":""},{"$f":"IF('1. Order'!O82=\"\",\"\",'1. Order'!O82)","v":{"$error":"#N/A"}},{"$f":"IF('1. Order'!P82=\"\",\"\",'1. Order'!P82)","v":{"$error":"#N/A"}},{"$f":"IF('1. Order'!Q82=\"\",\"\",'1. Order'!Q82)","v":""},{"$f":"IF('1. Order'!R82=\"\",\"\",'1. Order'!R82)","v":""},{"$f":"IF('1. Order'!S82=\"\",\"\",'1. Order'!S82)","v":""},{"$f":"IF('1. Order'!V82=\"\",\"\",'1. Order'!V82)","v":""},{"$f":"IF('1. Order'!W82=\"\",\"\",'1. Order'!W82)","v":""},{"$f":"IF('1. Order'!X82=\"\",\"\",'1. Order'!X82)","v":"EUR"},{"$f":"IF('1. Order'!Y82=\"\",\"\",'1. Order'!Y82)","v":""},{"$f":"IF('1. Order'!Z82=\"\",\"\",'1. Order'!Z82)","v":""},{"$f":"IF('1. Order'!AA82=\"\",\"\",'1. Order'!AA82)","v":""},null,{"$f":"IF('1. Order'!AS82=\"\",\"\",'1. Order'!AS82)","v":""},{"$f":"IF('1. Order'!AT82=\"\",\"\",'1. Order'!AT82)","v":""},null,null,null,null,null,null,null,{"$f":"IF('1. Order'!AX82=\"\",\"\",'1. Order'!AX82)","v":""},{"$f":"IF('1. Order'!AY82=\"\",\"\",'1. Order'!AY82)","v":""},{"$f":"IF('1. Order'!AZ82=\"\",\"\",'1. Order'!AZ82)","v":""},{"$f":"IF('1. Order'!BA82=\"\",\"\",'1. Order'!BA82)","v":""},{"$f":"IF('1. Order'!BC82=\"\",\"\",'1. Order'!BC82)","v":""},{"$f":"IF('1. Order'!BD82=\"\",\"\",'1. Order'!BD82)","v":6},{"$f":"IF('1. Order'!BE82=\"\",\"\",'1. Order'!BE82)","v":"None"},{"$f":"IF('1. Order'!BF82=\"\",\"\",'1. Order'!BF82)","v":"Parcel"},{"$f":"IF('1. Order'!BG82=\"\",\"\",'1. Order'!BG82)","v":"ZWO"}]
[{"$f":"IF('1. Order'!F83=\"\",\"\",'1. Order'!F83)","v":""},{"$f":"IF('1. Order'!G83=\"\",\"\",'1. Order'!G83)","v":""},{"$f":"IF('1. Order'!H83=\"\",\"\",'1. Order'!H83)","v":""},{"$f":"IF('1. Order'!I83=\"\",\"\",'1. Order'!I83)","v":""},{"$f":"IF('1. Order'!J83=\"\",\"\",'1. Order'!J83)","v":""},{"$f":"IF('1. Order'!K83=\"\",\"\",'1. Order'!K83)","v":""},{"$f":"IF('1. Order'!L83=\"\",\"\",'1. Order'!L83)","v":""},{"$f":"IF('1. Order'!M83=\"\",\"\",'1. Order'!M83)","v":""},{"$f":"IF('1. Order'!N83=\"\",\"\",'1. Order'!N83)","v":""},{"$f":"IF('1. Order'!O83=\"\",\"\",'1. Order'!O83)","v":{"$error":"#N/A"}},{"$f":"IF('1. Order'!P83=\"\",\"\",'1. Order'!P83)","v":{"$error":"#N/A"}},{"$f":"IF('1. Order'!Q83=\"\",\"\",'1. Order'!Q83)","v":""},{"$f":"IF('1. Order'!R83=\"\",\"\",'1. Order'!R83)","v":""},{"$f":"IF('1. Order'!S83=\"\",\"\",'1. Order'!S83)","v":""},{"$f":"IF('1. Order'!V83=\"\",\"\",'1. Order'!V83)","v":""},{"$f":"IF('1. Order'!W83=\"\",\"\",'1. Order'!W83)","v":""},{"$f":"IF('1. Order'!X83=\"\",\"\",'1. Order'!X83)","v":"EUR"},{"$f":"IF('1. Order'!Y83=\"\",\"\",'1. Order'!Y83)","v":""},{"$f":"IF('1. Order'!Z83=\"\",\"\",'1. Order'!Z83)","v":""},{"$f":"IF('1. Order'!AA83=\"\",\"\",'1. Order'!AA83)","v":""},null,{"$f":"IF('1. Order'!AS83=\"\",\"\",'1. Order'!AS83)","v":""},{"$f":"IF('1. Order'!AT83=\"\",\"\",'1. Order'!AT83)","v":""},null,null,null,null,null,null,null,{"$f":"IF('1. Order'!AX83=\"\",\"\",'1. Order'!AX83)","v":""},{"$f":"IF('1. Order'!AY83=\"\",\"\",'1. Order'!AY83)","v":""},{"$f":"IF('1. Order'!AZ83=\"\",\"\",'1. Order'!AZ83)","v":""},{"$f":"IF('1. Order'!BA83=\"\",\"\",'1. Order'!BA83)","v":""},{"$f":"IF('1. Order'!BC83=\"\",\"\",'1. Order'!BC83)","v":""},{"$f":"IF('1. Order'!BD83=\"\",\"\",'1. Order'!BD83)","v":6},{"$f":"IF('1. Order'!BE83=\"\",\"\",'1. Order'!BE83)","v":"None"},{"$f":"IF('1. Order'!BF83=\"\",\"\",'1. Order'!BF83)","v":"Parcel"},{"$f":"IF('1. Order'!BG83=\"\",\"\",'1. Order'!BG83)","v":"ZWO"}]
[{"$f":"IF('1. Order'!F84=\"\",\"\",'1. Order'!F84)","v":""},{"$f":"IF('1. Order'!G84=\"\",\"\",'1. Order'!G84)","v":""},{"$f":"IF('1. Order'!H84=\"\",\"\",'1. Order'!H84)","v":""},{"$f":"IF('1. Order'!I84=\"\",\"\",'1. Order'!I84)","v":""},{"$f":"IF('1. Order'!J84=\"\",\"\",'1. Order'!J84)","v":""},{"$f":"IF('1. Order'!K84=\"\",\"\",'1. Order'!K84)","v":""},{"$f":"IF('1. Order'!L84=\"\",\"\",'1. Order'!L84)","v":""},{"$f":"IF('1. Order'!M84=\"\",\"\",'1. Order'!M84)","v":""},{"$f":"IF('1. Order'!N84=\"\",\"\",'1. Order'!N84)","v":""},{"$f":"IF('1. Order'!O84=\"\",\"\",'1. Order'!O84)","v":{"$error":"#N/A"}},{"$f":"IF('1. Order'!P84=\"\",\"\",'1. Order'!P84)","v":{"$error":"#N/A"}},{"$f":"IF('1. Order'!Q84=\"\",\"\",'1. Order'!Q84)","v":""},{"$f":"IF('1. Order'!R84=\"\",\"\",'1. Order'!R84)","v":""},{"$f":"IF('1. Order'!S84=\"\",\"\",'1. Order'!S84)","v":""},{"$f":"IF('1. Order'!V84=\"\",\"\",'1. Order'!V84)","v":""},{"$f":"IF('1. Order'!W84=\"\",\"\",'1. Order'!W84)","v":""},{"$f":"IF('1. Order'!X84=\"\",\"\",'1. Order'!X84)","v":"EUR"},{"$f":"IF('1. Order'!Y84=\"\",\"\",'1. Order'!Y84)","v":""},{"$f":"IF('1. Order'!Z84=\"\",\"\",'1. Order'!Z84)","v":""},{"$f":"IF('1. Order'!AA84=\"\",\"\",'1. Order'!AA84)","v":""},null,{"$f":"IF('1. Order'!AS84=\"\",\"\",'1. Order'!AS84)","v":""},{"$f":"IF('1. Order'!AT84=\"\",\"\",'1. Order'!AT84)","v":""},null,null,null,null,null,null,null,{"$f":"IF('1. Order'!AX84=\"\",\"\",'1. Order'!AX84)","v":""},{"$f":"IF('1. Order'!AY84=\"\",\"\",'1. Order'!AY84)","v":""},{"$f":"IF('1. Order'!AZ84=\"\",\"\",'1. Order'!AZ84)","v":""},{"$f":"IF('1. Order'!BA84=\"\",\"\",'1. Order'!BA84)","v":""},{"$f":"IF('1. Order'!BC84=\"\",\"\",'1. Order'!BC84)","v":""},{"$f":"IF('1. Order'!BD84=\"\",\"\",'1. Order'!BD84)","v":6},{"$f":"IF('1. Order'!BE84=\"\",\"\",'1. Order'!BE84)","v":"None"},{"$f":"IF('1. Order'!BF84=\"\",\"\",'1. Order'!BF84)","v":"Parcel"},{"$f":"IF('1. Order'!BG84=\"\",\"\",'1. Order'!BG84)","v":"ZWO"}]
[{"$f":"IF('1. Order'!F85=\"\",\"\",'1. Order'!F85)","v":""},{"$f":"IF('1. Order'!G85=\"\",\"\",'1. Order'!G85)","v":""},{"$f":"IF('1. Order'!H85=\"\",\"\",'1. Order'!H85)","v":""},{"$f":"IF('1. Order'!I85=\"\",\"\",'1. Order'!I85)","v":""},{"$f":"IF('1. Order'!J85=\"\",\"\",'1. Order'!J85)","v":""},{"$f":"IF('1. Order'!K85=\"\",\"\",'1. Order'!K85)","v":""},{"$f":"IF('1. Order'!L85=\"\",\"\",'1. Order'!L85)","v":""},{"$f":"IF('1. Order'!M85=\"\",\"\",'1. Order'!M85)","v":""},{"$f":"IF('1. Order'!N85=\"\",\"\",'1. Order'!N85)","v":""},{"$f":"IF('1. Order'!O85=\"\",\"\",'1. Order'!O85)","v":{"$error":"#N/A"}},{"$f":"IF('1. Order'!P85=\"\",\"\",'1. Order'!P85)","v":{"$error":"#N/A"}},{"$f":"IF('1. Order'!Q85=\"\",\"\",'1. Order'!Q85)","v":""},{"$f":"IF('1. Order'!R85=\"\",\"\",'1. Order'!R85)","v":""},{"$f":"IF('1. Order'!S85=\"\",\"\",'1. Order'!S85)","v":""},{"$f":"IF('1. Order'!V85=\"\",\"\",'1. Order'!V85)","v":""},{"$f":"IF('1. Order'!W85=\"\",\"\",'1. Order'!W85)","v":""},{"$f":"IF('1. Order'!X85=\"\",\"\",'1. Order'!X85)","v":"EUR"},{"$f":"IF('1. Order'!Y85=\"\",\"\",'1. Order'!Y85)","v":""},{"$f":"IF('1. Order'!Z85=\"\",\"\",'1. Order'!Z85)","v":""},{"$f":"IF('1. Order'!AA85=\"\",\"\",'1. Order'!AA85)","v":""},null,{"$f":"IF('1. Order'!AS85=\"\",\"\",'1. Order'!AS85)","v":""},{"$f":"IF('1. Order'!AT85=\"\",\"\",'1. Order'!AT85)","v":""},null,null,null,null,null,null,null,{"$f":"IF('1. Order'!AX85=\"\",\"\",'1. Order'!AX85)","v":""},{"$f":"IF('1. Order'!AY85=\"\",\"\",'1. Order'!AY85)","v":""},{"$f":"IF('1. Order'!AZ85=\"\",\"\",'1. Order'!AZ85)","v":""},{"$f":"IF('1. Order'!BA85=\"\",\"\",'1. Order'!BA85)","v":""},{"$f":"IF('1. Order'!BC85=\"\",\"\",'1. Order'!BC85)","v":""},{"$f":"IF('1. Order'!BD85=\"\",\"\",'1. Order'!BD85)","v":6},{"$f":"IF('1. Order'!BE85=\"\",\"\",'1. Order'!BE85)","v":"None"},{"$f":"IF('1. Order'!BF85=\"\",\"\",'1. Order'!BF85)","v":"Parcel"},{"$f":"IF('1. Order'!BG85=\"\",\"\",'1. Order'!BG85)","v":"ZWO"}]
[{"$f":"IF('1. Order'!F86=\"\",\"\",'1. Order'!F86)","v":""},{"$f":"IF('1. Order'!G86=\"\",\"\",'1. Order'!G86)","v":""},{"$f":"IF('1. Order'!H86=\"\",\"\",'1. Order'!H86)","v":""},{"$f":"IF('1. Order'!I86=\"\",\"\",'1. Order'!I86)","v":""},{"$f":"IF('1. Order'!J86=\"\",\"\",'1. Order'!J86)","v":""},{"$f":"IF('1. Order'!K86=\"\",\"\",'1. Order'!K86)","v":""},{"$f":"IF('1. Order'!L86=\"\",\"\",'1. Order'!L86)","v":""},{"$f":"IF('1. Order'!M86=\"\",\"\",'1. Order'!M86)","v":""},{"$f":"IF('1. Order'!N86=\"\",\"\",'1. Order'!N86)","v":""},{"$f":"IF('1. Order'!O86=\"\",\"\",'1. Order'!O86)","v":{"$error":"#N/A"}},{"$f":"IF('1. Order'!P86=\"\",\"\",'1. Order'!P86)","v":{"$error":"#N/A"}},{"$f":"IF('1. Order'!Q86=\"\",\"\",'1. Order'!Q86)","v":""},{"$f":"IF('1. Order'!R86=\"\",\"\",'1. Order'!R86)","v":""},{"$f":"IF('1. Order'!S86=\"\",\"\",'1. Order'!S86)","v":""},{"$f":"IF('1. Order'!V86=\"\",\"\",'1. Order'!V86)","v":""},{"$f":"IF('1. Order'!W86=\"\",\"\",'1. Order'!W86)","v":""},{"$f":"IF('1. Order'!X86=\"\",\"\",'1. Order'!X86)","v":"EUR"},{"$f":"IF('1. Order'!Y86=\"\",\"\",'1. Order'!Y86)","v":""},{"$f":"IF('1. Order'!Z86=\"\",\"\",'1. Order'!Z86)","v":""},{"$f":"IF('1. Order'!AA86=\"\",\"\",'1. Order'!AA86)","v":""},null,{"$f":"IF('1. Order'!AS86=\"\",\"\",'1. Order'!AS86)","v":""},{"$f":"IF('1. Order'!AT86=\"\",\"\",'1. Order'!AT86)","v":""},null,null,null,null,null,null,null,{"$f":"IF('1. Order'!AX86=\"\",\"\",'1. Order'!AX86)","v":""},{"$f":"IF('1. Order'!AY86=\"\",\"\",'1. Order'!AY86)","v":""},{"$f":"IF('1. Order'!AZ86=\"\",\"\",'1. Order'!AZ86)","v":""},{"$f":"IF('1. Order'!BA86=\"\",\"\",'1. Order'!BA86)","v":""},{"$f":"IF('1. Order'!BC86=\"\",\"\",'1. Order'!BC86)","v":""},{"$f":"IF('1. Order'!BD86=\"\",\"\",'1. Order'!BD86)","v":6},{"$f":"IF('1. Order'!BE86=\"\",\"\",'1. Order'!BE86)","v":"None"},{"$f":"IF('1. Order'!BF86=\"\",\"\",'1. Order'!BF86)","v":"Parcel"},{"$f":"IF('1. Order'!BG86=\"\",\"\",'1. Order'!BG86)","v":"ZWO"}]
[{"$f":"IF('1. Order'!F87=\"\",\"\",'1. Order'!F87)","v":""},{"$f":"IF('1. Order'!G87=\"\",\"\",'1. Order'!G87)","v":""},{"$f":"IF('1. Order'!H87=\"\",\"\",'1. Order'!H87)","v":""},{"$f":"IF('1. Order'!I87=\"\",\"\",'1. Order'!I87)","v":""},{"$f":"IF('1. Order'!J87=\"\",\"\",'1. Order'!J87)","v":""},{"$f":"IF('1. Order'!K87=\"\",\"\",'1. Order'!K87)","v":""},{"$f":"IF('1. Order'!L87=\"\",\"\",'1. Order'!L87)","v":""},{"$f":"IF('1. Order'!M87=\"\",\"\",'1. Order'!M87)","v":""},{"$f":"IF('1. Order'!N87=\"\",\"\",'1. Order'!N87)","v":""},{"$f":"IF('1. Order'!O87=\"\",\"\",'1. Order'!O87)","v":{"$error":"#N/A"}},{"$f":"IF('1. Order'!P87=\"\",\"\",'1. Order'!P87)","v":{"$error":"#N/A"}},{"$f":"IF('1. Order'!Q87=\"\",\"\",'1. Order'!Q87)","v":""},{"$f":"IF('1. Order'!R87=\"\",\"\",'1. Order'!R87)","v":""},{"$f":"IF('1. Order'!S87=\"\",\"\",'1. Order'!S87)","v":""},{"$f":"IF('1. Order'!V87=\"\",\"\",'1. Order'!V87)","v":""},{"$f":"IF('1. Order'!W87=\"\",\"\",'1. Order'!W87)","v":""},{"$f":"IF('1. Order'!X87=\"\",\"\",'1. Order'!X87)","v":"EUR"},{"$f":"IF('1. Order'!Y87=\"\",\"\",'1. Order'!Y87)","v":""},{"$f":"IF('1. Order'!Z87=\"\",\"\",'1. Order'!Z87)","v":""},{"$f":"IF('1. Order'!AA87=\"\",\"\",'1. Order'!AA87)","v":""},null,{"$f":"IF('1. Order'!AS87=\"\",\"\",'1. Order'!AS87)","v":""},{"$f":"IF('1. Order'!AT87=\"\",\"\",'1. Order'!AT87)","v":""},null,null,null,null,null,null,null,{"$f":"IF('1. Order'!AX87=\"\",\"\",'1. Order'!AX87)","v":""},{"$f":"IF('1. Order'!AY87=\"\",\"\",'1. Order'!AY87)","v":""},{"$f":"IF('1. Order'!AZ87=\"\",\"\",'1. Order'!AZ87)","v":""},{"$f":"IF('1. Order'!BA87=\"\",\"\",'1. Order'!BA87)","v":""},{"$f":"IF('1. Order'!BC87=\"\",\"\",'1. Order'!BC87)","v":""},{"$f":"IF('1. Order'!BD87=\"\",\"\",'1. Order'!BD87)","v":6},{"$f":"IF('1. Order'!BE87=\"\",\"\",'1. Order'!BE87)","v":"None"},{"$f":"IF('1. Order'!BF87=\"\",\"\",'1. Order'!BF87)","v":"Parcel"},{"$f":"IF('1. Order'!BG87=\"\",\"\",'1. Order'!BG87)","v":"ZWO"}]
[{"$f":"IF('1. Order'!F88=\"\",\"\",'1. Order'!F88)","v":""},{"$f":"IF('1. Order'!G88=\"\",\"\",'1. Order'!G88)","v":""},{"$f":"IF('1. Order'!H88=\"\",\"\",'1. Order'!H88)","v":""},{"$f":"IF('1. Order'!I88=\"\",\"\",'1. Order'!I88)","v":""},{"$f":"IF('1. Order'!J88=\"\",\"\",'1. Order'!J88)","v":""},{"$f":"IF('1. Order'!K88=\"\",\"\",'1. Order'!K88)","v":""},{"$f":"IF('1. Order'!L88=\"\",\"\",'1. Order'!L88)","v":""},{"$f":"IF('1. Order'!M88=\"\",\"\",'1. Order'!M88)","v":""},{"$f":"IF('1. Order'!N88=\"\",\"\",'1. Order'!N88)","v":""},{"$f":"IF('1. Order'!O88=\"\",\"\",'1. Order'!O88)","v":{"$error":"#N/A"}},{"$f":"IF('1. Order'!P88=\"\",\"\",'1. Order'!P88)","v":{"$error":"#N/A"}},{"$f":"IF('1. Order'!Q88=\"\",\"\",'1. Order'!Q88)","v":""},{"$f":"IF('1. Order'!R88=\"\",\"\",'1. Order'!R88)","v":""},{"$f":"IF('1. Order'!S88=\"\",\"\",'1. Order'!S88)","v":""},{"$f":"IF('1. Order'!V88=\"\",\"\",'1. Order'!V88)","v":""},{"$f":"IF('1. Order'!W88=\"\",\"\",'1. Order'!W88)","v":""},{"$f":"IF('1. Order'!X88=\"\",\"\",'1. Order'!X88)","v":"EUR"},{"$f":"IF('1. Order'!Y88=\"\",\"\",'1. Order'!Y88)","v":""},{"$f":"IF('1. Order'!Z88=\"\",\"\",'1. Order'!Z88)","v":""},{"$f":"IF('1. Order'!AA88=\"\",\"\",'1. Order'!AA88)","v":""},null,{"$f":"IF('1. Order'!AS88=\"\",\"\",'1. Order'!AS88)","v":""},{"$f":"IF('1. Order'!AT88=\"\",\"\",'1. Order'!AT88)","v":""},null,null,null,null,null,null,null,{"$f":"IF('1. Order'!AX88=\"\",\"\",'1. Order'!AX88)","v":""},{"$f":"IF('1. Order'!AY88=\"\",\"\",'1. Order'!AY88)","v":""},{"$f":"IF('1. Order'!AZ88=\"\",\"\",'1. Order'!AZ88)","v":""},{"$f":"IF('1. Order'!BA88=\"\",\"\",'1. Order'!BA88)","v":""},{"$f":"IF('1. Order'!BC88=\"\",\"\",'1. Order'!BC88)","v":""},{"$f":"IF('1. Order'!BD88=\"\",\"\",'1. Order'!BD88)","v":6},{"$f":"IF('1. Order'!BE88=\"\",\"\",'1. Order'!BE88)","v":"None"},{"$f":"IF('1. Order'!BF88=\"\",\"\",'1. Order'!BF88)","v":"Parcel"},{"$f":"IF('1. Order'!BG88=\"\",\"\",'1. Order'!BG88)","v":"ZWO"}]
[{"$f":"IF('1. Order'!F89=\"\",\"\",'1. Order'!F89)","v":""},{"$f":"IF('1. Order'!G89=\"\",\"\",'1. Order'!G89)","v":""},{"$f":"IF('1. Order'!H89=\"\",\"\",'1. Order'!H89)","v":""},{"$f":"IF('1. Order'!I89=\"\",\"\",'1. Order'!I89)","v":""},{"$f":"IF('1. Order'!J89=\"\",\"\",'1. Order'!J89)","v":""},{"$f":"IF('1. Order'!K89=\"\",\"\",'1. Order'!K89)","v":""},{"$f":"IF('1. Order'!L89=\"\",\"\",'1. Order'!L89)","v":""},{"$f":"IF('1. Order'!M89=\"\",\"\",'1. Order'!M89)","v":""},{"$f":"IF('1. Order'!N89=\"\",\"\",'1. Order'!N89)","v":""},{"$f":"IF('1. Order'!O89=\"\",\"\",'1. Order'!O89)","v":{"$error":"#N/A"}},{"$f":"IF('1. Order'!P89=\"\",\"\",'1. Order'!P89)","v":{"$error":"#N/A"}},{"$f":"IF('1. Order'!Q89=\"\",\"\",'1. Order'!Q89)","v":""},{"$f":"IF('1. Order'!R89=\"\",\"\",'1. Order'!R89)","v":""},{"$f":"IF('1. Order'!S89=\"\",\"\",'1. Order'!S89)","v":""},{"$f":"IF('1. Order'!V89=\"\",\"\",'1. Order'!V89)","v":""},{"$f":"IF('1. Order'!W89=\"\",\"\",'1. Order'!W89)","v":""},{"$f":"IF('1. Order'!X89=\"\",\"\",'1. Order'!X89)","v":"EUR"},{"$f":"IF('1. Order'!Y89=\"\",\"\",'1. Order'!Y89)","v":""},{"$f":"IF('1. Order'!Z89=\"\",\"\",'1. Order'!Z89)","v":""},{"$f":"IF('1. Order'!AA89=\"\",\"\",'1. Order'!AA89)","v":""},null,{"$f":"IF('1. Order'!AS89=\"\",\"\",'1. Order'!AS89)","v":""},{"$f":"IF('1. Order'!AT89=\"\",\"\",'1. Order'!AT89)","v":""},null,null,null,null,null,null,null,{"$f":"IF('1. Order'!AX89=\"\",\"\",'1. Order'!AX89)","v":""},{"$f":"IF('1. Order'!AY89=\"\",\"\",'1. Order'!AY89)","v":""},{"$f":"IF('1. Order'!AZ89=\"\",\"\",'1. Order'!AZ89)","v":""},{"$f":"IF('1. Order'!BA89=\"\",\"\",'1. Order'!BA89)","v":""},{"$f":"IF('1. Order'!BC89=\"\",\"\",'1. Order'!BC89)","v":""},{"$f":"IF('1. Order'!BD89=\"\",\"\",'1. Order'!BD89)","v":6},{"$f":"IF('1. Order'!BE89=\"\",\"\",'1. Order'!BE89)","v":"None"},{"$f":"IF('1. Order'!BF89=\"\",\"\",'1. Order'!BF89)","v":"Parcel"},{"$f":"IF('1. Order'!BG89=\"\",\"\",'1. Order'!BG89)","v":"ZWO"}]
[{"$f":"IF('1. Order'!F90=\"\",\"\",'1. Order'!F90)","v":""},{"$f":"IF('1. Order'!G90=\"\",\"\",'1. Order'!G90)","v":""},{"$f":"IF('1. Order'!H90=\"\",\"\",'1. Order'!H90)","v":""},{"$f":"IF('1. Order'!I90=\"\",\"\",'1. Order'!I90)","v":""},{"$f":"IF('1. Order'!J90=\"\",\"\",'1. Order'!J90)","v":""},{"$f":"IF('1. Order'!K90=\"\",\"\",'1. Order'!K90)","v":""},{"$f":"IF('1. Order'!L90=\"\",\"\",'1. Order'!L90)","v":""},{"$f":"IF('1. Order'!M90=\"\",\"\",'1. Order'!M90)","v":""},{"$f":"IF('1. Order'!N90=\"\",\"\",'1. Order'!N90)","v":""},{"$f":"IF('1. Order'!O90=\"\",\"\",'1. Order'!O90)","v":{"$error":"#N/A"}},{"$f":"IF('1. Order'!P90=\"\",\"\",'1. Order'!P90)","v":{"$error":"#N/A"}},{"$f":"IF('1. Order'!Q90=\"\",\"\",'1. Order'!Q90)","v":""},{"$f":"IF('1. Order'!R90=\"\",\"\",'1. Order'!R90)","v":""},{"$f":"IF('1. Order'!S90=\"\",\"\",'1. Order'!S90)","v":""},{"$f":"IF('1. Order'!V90=\"\",\"\",'1. Order'!V90)","v":""},{"$f":"IF('1. Order'!W90=\"\",\"\",'1. Order'!W90)","v":""},{"$f":"IF('1. Order'!X90=\"\",\"\",'1. Order'!X90)","v":"EUR"},{"$f":"IF('1. Order'!Y90=\"\",\"\",'1. Order'!Y90)","v":""},{"$f":"IF('1. Order'!Z90=\"\",\"\",'1. Order'!Z90)","v":""},{"$f":"IF('1. Order'!AA90=\"\",\"\",'1. Order'!AA90)","v":""},null,{"$f":"IF('1. Order'!AS90=\"\",\"\",'1. Order'!AS90)","v":""},{"$f":"IF('1. Order'!AT90=\"\",\"\",'1. Order'!AT90)","v":""},null,null,null,null,null,null,null,{"$f":"IF('1. Order'!AX90=\"\",\"\",'1. Order'!AX90)","v":""},{"$f":"IF('1. Order'!AY90=\"\",\"\",'1. Order'!AY90)","v":""},{"$f":"IF('1. Order'!AZ90=\"\",\"\",'1. Order'!AZ90)","v":""},{"$f":"IF('1. Order'!BA90=\"\",\"\",'1. Order'!BA90)","v":""},{"$f":"IF('1. Order'!BC90=\"\",\"\",'1. Order'!BC90)","v":""},{"$f":"IF('1. Order'!BD90=\"\",\"\",'1. Order'!BD90)","v":6},{"$f":"IF('1. Order'!BE90=\"\",\"\",'1. Order'!BE90)","v":"None"},{"$f":"IF('1. Order'!BF90=\"\",\"\",'1. Order'!BF90)","v":"Parcel"},{"$f":"IF('1. Order'!BG90=\"\",\"\",'1. Order'!BG90)","v":"ZWO"}]
[{"$f":"IF('1. Order'!F91=\"\",\"\",'1. Order'!F91)","v":""},{"$f":"IF('1. Order'!G91=\"\",\"\",'1. Order'!G91)","v":""},{"$f":"IF('1. Order'!H91=\"\",\"\",'1. Order'!H91)","v":""},{"$f":"IF('1. Order'!I91=\"\",\"\",'1. Order'!I91)","v":""},{"$f":"IF('1. Order'!J91=\"\",\"\",'1. Order'!J91)","v":""},{"$f":"IF('1. Order'!K91=\"\",\"\",'1. Order'!K91)","v":""},{"$f":"IF('1. Order'!L91=\"\",\"\",'1. Order'!L91)","v":""},{"$f":"IF('1. Order'!M91=\"\",\"\",'1. Order'!M91)","v":""},{"$f":"IF('1. Order'!N91=\"\",\"\",'1. Order'!N91)","v":""},{"$f":"IF('1. Order'!O91=\"\",\"\",'1. Order'!O91)","v":{"$error":"#N/A"}},{"$f":"IF('1. Order'!P91=\"\",\"\",'1. Order'!P91)","v":{"$error":"#N/A"}},{"$f":"IF('1. Order'!Q91=\"\",\"\",'1. Order'!Q91)","v":""},{"$f":"IF('1. Order'!R91=\"\",\"\",'1. Order'!R91)","v":""},{"$f":"IF('1. Order'!S91=\"\",\"\",'1. Order'!S91)","v":""},{"$f":"IF('1. Order'!V91=\"\",\"\",'1. Order'!V91)","v":""},{"$f":"IF('1. Order'!W91=\"\",\"\",'1. Order'!W91)","v":""},{"$f":"IF('1. Order'!X91=\"\",\"\",'1. Order'!X91)","v":"EUR"},{"$f":"IF('1. Order'!Y91=\"\",\"\",'1. Order'!Y91)","v":""},{"$f":"IF('1. Order'!Z91=\"\",\"\",'1. Order'!Z91)","v":""},{"$f":"IF('1. Order'!AA91=\"\",\"\",'1. Order'!AA91)","v":""},null,{"$f":"IF('1. Order'!AS91=\"\",\"\",'1. Order'!AS91)","v":""},{"$f":"IF('1. Order'!AT91=\"\",\"\",'1. Order'!AT91)","v":""},null,null,null,null,null,null,null,{"$f":"IF('1. Order'!AX91=\"\",\"\",'1. Order'!AX91)","v":""},{"$f":"IF('1. Order'!AY91=\"\",\"\",'1. Order'!AY91)","v":""},{"$f":"IF('1. Order'!AZ91=\"\",\"\",'1. Order'!AZ91)","v":""},{"$f":"IF('1. Order'!BA91=\"\",\"\",'1. Order'!BA91)","v":""},{"$f":"IF('1. Order'!BC91=\"\",\"\",'1. Order'!BC91)","v":""},{"$f":"IF('1. Order'!BD91=\"\",\"\",'1. Order'!BD91)","v":6},{"$f":"IF('1. Order'!BE91=\"\",\"\",'1. Order'!BE91)","v":"None"},{"$f":"IF('1. Order'!BF91=\"\",\"\",'1. Order'!BF91)","v":"Parcel"},{"$f":"IF('1. Order'!BG91=\"\",\"\",'1. Order'!BG91)","v":"ZWO"}]
[{"$f":"IF('1. Order'!F92=\"\",\"\",'1. Order'!F92)","v":""},{"$f":"IF('1. Order'!G92=\"\",\"\",'1. Order'!G92)","v":""},{"$f":"IF('1. Order'!H92=\"\",\"\",'1. Order'!H92)","v":""},{"$f":"IF('1. Order'!I92=\"\",\"\",'1. Order'!I92)","v":""},{"$f":"IF('1. Order'!J92=\"\",\"\",'1. Order'!J92)","v":""},{"$f":"IF('1. Order'!K92=\"\",\"\",'1. Order'!K92)","v":""},{"$f":"IF('1. Order'!L92=\"\",\"\",'1. Order'!L92)","v":""},{"$f":"IF('1. Order'!M92=\"\",\"\",'1. Order'!M92)","v":""},{"$f":"IF('1. Order'!N92=\"\",\"\",'1. Order'!N92)","v":""},{"$f":"IF('1. Order'!O92=\"\",\"\",'1. Order'!O92)","v":{"$error":"#N/A"}},{"$f":"IF('1. Order'!P92=\"\",\"\",'1. Order'!P92)","v":{"$error":"#N/A"}},{"$f":"IF('1. Order'!Q92=\"\",\"\",'1. Order'!Q92)","v":""},{"$f":"IF('1. Order'!R92=\"\",\"\",'1. Order'!R92)","v":""},{"$f":"IF('1. Order'!S92=\"\",\"\",'1. Order'!S92)","v":""},{"$f":"IF('1. Order'!V92=\"\",\"\",'1. Order'!V92)","v":""},{"$f":"IF('1. Order'!W92=\"\",\"\",'1. Order'!W92)","v":""},{"$f":"IF('1. Order'!X92=\"\",\"\",'1. Order'!X92)","v":"EUR"},{"$f":"IF('1. Order'!Y92=\"\",\"\",'1. Order'!Y92)","v":""},{"$f":"IF('1. Order'!Z92=\"\",\"\",'1. Order'!Z92)","v":""},{"$f":"IF('1. Order'!AA92=\"\",\"\",'1. Order'!AA92)","v":""},null,{"$f":"IF('1. Order'!AS92=\"\",\"\",'1. Order'!AS92)","v":""},{"$f":"IF('1. Order'!AT92=\"\",\"\",'1. Order'!AT92)","v":""},null,null,null,null,null,null,null,{"$f":"IF('1. Order'!AX92=\"\",\"\",'1. Order'!AX92)","v":""},{"$f":"IF('1. Order'!AY92=\"\",\"\",'1. Order'!AY92)","v":""},{"$f":"IF('1. Order'!AZ92=\"\",\"\",'1. Order'!AZ92)","v":""},{"$f":"IF('1. Order'!BA92=\"\",\"\",'1. Order'!BA92)","v":""},{"$f":"IF('1. Order'!BC92=\"\",\"\",'1. Order'!BC92)","v":""},{"$f":"IF('1. Order'!BD92=\"\",\"\",'1. Order'!BD92)","v":6},{"$f":"IF('1. Order'!BE92=\"\",\"\",'1. Order'!BE92)","v":"None"},{"$f":"IF('1. Order'!BF92=\"\",\"\",'1. Order'!BF92)","v":"Parcel"},{"$f":"IF('1. Order'!BG92=\"\",\"\",'1. Order'!BG92)","v":"ZWO"}]
[{"$f":"IF('1. Order'!F93=\"\",\"\",'1. Order'!F93)","v":""},{"$f":"IF('1. Order'!G93=\"\",\"\",'1. Order'!G93)","v":""},{"$f":"IF('1. Order'!H93=\"\",\"\",'1. Order'!H93)","v":""},{"$f":"IF('1. Order'!I93=\"\",\"\",'1. Order'!I93)","v":""},{"$f":"IF('1. Order'!J93=\"\",\"\",'1. Order'!J93)","v":""},{"$f":"IF('1. Order'!K93=\"\",\"\",'1. Order'!K93)","v":""},{"$f":"IF('1. Order'!L93=\"\",\"\",'1. Order'!L93)","v":""},{"$f":"IF('1. Order'!M93=\"\",\"\",'1. Order'!M93)","v":""},{"$f":"IF('1. Order'!N93=\"\",\"\",'1. Order'!N93)","v":""},{"$f":"IF('1. Order'!O93=\"\",\"\",'1. Order'!O93)","v":{"$error":"#N/A"}},{"$f":"IF('1. Order'!P93=\"\",\"\",'1. Order'!P93)","v":{"$error":"#N/A"}},{"$f":"IF('1. Order'!Q93=\"\",\"\",'1. Order'!Q93)","v":""},{"$f":"IF('1. Order'!R93=\"\",\"\",'1. Order'!R93)","v":""},{"$f":"IF('1. Order'!S93=\"\",\"\",'1. Order'!S93)","v":""},{"$f":"IF('1. Order'!V93=\"\",\"\",'1. Order'!V93)","v":""},{"$f":"IF('1. Order'!W93=\"\",\"\",'1. Order'!W93)","v":""},{"$f":"IF('1. Order'!X93=\"\",\"\",'1. Order'!X93)","v":"EUR"},{"$f":"IF('1. Order'!Y93=\"\",\"\",'1. Order'!Y93)","v":""},{"$f":"IF('1. Order'!Z93=\"\",\"\",'1. Order'!Z93)","v":""},{"$f":"IF('1. Order'!AA93=\"\",\"\",'1. Order'!AA93)","v":""},null,{"$f":"IF('1. Order'!AS93=\"\",\"\",'1. Order'!AS93)","v":""},{"$f":"IF('1. Order'!AT93=\"\",\"\",'1. Order'!AT93)","v":""},null,null,null,null,null,null,null,{"$f":"IF('1. Order'!AX93=\"\",\"\",'1. Order'!AX93)","v":""},{"$f":"IF('1. Order'!AY93=\"\",\"\",'1. Order'!AY93)","v":""},{"$f":"IF('1. Order'!AZ93=\"\",\"\",'1. Order'!AZ93)","v":""},{"$f":"IF('1. Order'!BA93=\"\",\"\",'1. Order'!BA93)","v":""},{"$f":"IF('1. Order'!BC93=\"\",\"\",'1. Order'!BC93)","v":""},{"$f":"IF('1. Order'!BD93=\"\",\"\",'1. Order'!BD93)","v":6},{"$f":"IF('1. Order'!BE93=\"\",\"\",'1. Order'!BE93)","v":"None"},{"$f":"IF('1. Order'!BF93=\"\",\"\",'1. Order'!BF93)","v":"Parcel"},{"$f":"IF('1. Order'!BG93=\"\",\"\",'1. Order'!BG93)","v":"ZWO"}]
[{"$f":"IF('1. Order'!F94=\"\",\"\",'1. Order'!F94)","v":""},{"$f":"IF('1. Order'!G94=\"\",\"\",'1. Order'!G94)","v":""},{"$f":"IF('1. Order'!H94=\"\",\"\",'1. Order'!H94)","v":""},{"$f":"IF('1. Order'!I94=\"\",\"\",'1. Order'!I94)","v":""},{"$f":"IF('1. Order'!J94=\"\",\"\",'1. Order'!J94)","v":""},{"$f":"IF('1. Order'!K94=\"\",\"\",'1. Order'!K94)","v":""},{"$f":"IF('1. Order'!L94=\"\",\"\",'1. Order'!L94)","v":""},{"$f":"IF('1. Order'!M94=\"\",\"\",'1. Order'!M94)","v":""},{"$f":"IF('1. Order'!N94=\"\",\"\",'1. Order'!N94)","v":""},{"$f":"IF('1. Order'!O94=\"\",\"\",'1. Order'!O94)","v":{"$error":"#N/A"}},{"$f":"IF('1. Order'!P94=\"\",\"\",'1. Order'!P94)","v":{"$error":"#N/A"}},{"$f":"IF('1. Order'!Q94=\"\",\"\",'1. Order'!Q94)","v":""},{"$f":"IF('1. Order'!R94=\"\",\"\",'1. Order'!R94)","v":""},{"$f":"IF('1. Order'!S94=\"\",\"\",'1. Order'!S94)","v":""},{"$f":"IF('1. Order'!V94=\"\",\"\",'1. Order'!V94)","v":""},{"$f":"IF('1. Order'!W94=\"\",\"\",'1. Order'!W94)","v":""},{"$f":"IF('1. Order'!X94=\"\",\"\",'1. Order'!X94)","v":"EUR"},{"$f":"IF('1. Order'!Y94=\"\",\"\",'1. Order'!Y94)","v":""},{"$f":"IF('1. Order'!Z94=\"\",\"\",'1. Order'!Z94)","v":""},{"$f":"IF('1. Order'!AA94=\"\",\"\",'1. Order'!AA94)","v":""},null,{"$f":"IF('1. Order'!AS94=\"\",\"\",'1. Order'!AS94)","v":""},{"$f":"IF('1. Order'!AT94=\"\",\"\",'1. Order'!AT94)","v":""},null,null,null,null,null,null,null,{"$f":"IF('1. Order'!AX94=\"\",\"\",'1. Order'!AX94)","v":""},{"$f":"IF('1. Order'!AY94=\"\",\"\",'1. Order'!AY94)","v":""},{"$f":"IF('1. Order'!AZ94=\"\",\"\",'1. Order'!AZ94)","v":""},{"$f":"IF('1. Order'!BA94=\"\",\"\",'1. Order'!BA94)","v":""},{"$f":"IF('1. Order'!BC94=\"\",\"\",'1. Order'!BC94)","v":""},{"$f":"IF('1. Order'!BD94=\"\",\"\",'1. Order'!BD94)","v":6},{"$f":"IF('1. Order'!BE94=\"\",\"\",'1. Order'!BE94)","v":"None"},{"$f":"IF('1. Order'!BF94=\"\",\"\",'1. Order'!BF94)","v":"Parcel"},{"$f":"IF('1. Order'!BG94=\"\",\"\",'1. Order'!BG94)","v":"ZWO"}]
[{"$f":"IF('1. Order'!F95=\"\",\"\",'1. Order'!F95)","v":""},{"$f":"IF('1. Order'!G95=\"\",\"\",'1. Order'!G95)","v":""},{"$f":"IF('1. Order'!H95=\"\",\"\",'1. Order'!H95)","v":""},{"$f":"IF('1. Order'!I95=\"\",\"\",'1. Order'!I95)","v":""},{"$f":"IF('1. Order'!J95=\"\",\"\",'1. Order'!J95)","v":""},{"$f":"IF('1. Order'!K95=\"\",\"\",'1. Order'!K95)","v":""},{"$f":"IF('1. Order'!L95=\"\",\"\",'1. Order'!L95)","v":""},{"$f":"IF('1. Order'!M95=\"\",\"\",'1. Order'!M95)","v":""},{"$f":"IF('1. Order'!N95=\"\",\"\",'1. Order'!N95)","v":""},{"$f":"IF('1. Order'!O95=\"\",\"\",'1. Order'!O95)","v":{"$error":"#N/A"}},{"$f":"IF('1. Order'!P95=\"\",\"\",'1. Order'!P95)","v":{"$error":"#N/A"}},{"$f":"IF('1. Order'!Q95=\"\",\"\",'1. Order'!Q95)","v":""},{"$f":"IF('1. Order'!R95=\"\",\"\",'1. Order'!R95)","v":""},{"$f":"IF('1. Order'!S95=\"\",\"\",'1. Order'!S95)","v":""},{"$f":"IF('1. Order'!V95=\"\",\"\",'1. Order'!V95)","v":""},{"$f":"IF('1. Order'!W95=\"\",\"\",'1. Order'!W95)","v":""},{"$f":"IF('1. Order'!X95=\"\",\"\",'1. Order'!X95)","v":"EUR"},{"$f":"IF('1. Order'!Y95=\"\",\"\",'1. Order'!Y95)","v":""},{"$f":"IF('1. Order'!Z95=\"\",\"\",'1. Order'!Z95)","v":""},{"$f":"IF('1. Order'!AA95=\"\",\"\",'1. Order'!AA95)","v":""},null,{"$f":"IF('1. Order'!AS95=\"\",\"\",'1. Order'!AS95)","v":""},{"$f":"IF('1. Order'!AT95=\"\",\"\",'1. Order'!AT95)","v":""},null,null,null,null,null,null,null,{"$f":"IF('1. Order'!AX95=\"\",\"\",'1. Order'!AX95)","v":""},{"$f":"IF('1. Order'!AY95=\"\",\"\",'1. Order'!AY95)","v":""},{"$f":"IF('1. Order'!AZ95=\"\",\"\",'1. Order'!AZ95)","v":""},{"$f":"IF('1. Order'!BA95=\"\",\"\",'1. Order'!BA95)","v":""},{"$f":"IF('1. Order'!BC95=\"\",\"\",'1. Order'!BC95)","v":""},{"$f":"IF('1. Order'!BD95=\"\",\"\",'1. Order'!BD95)","v":6},{"$f":"IF('1. Order'!BE95=\"\",\"\",'1. Order'!BE95)","v":"None"},{"$f":"IF('1. Order'!BF95=\"\",\"\",'1. Order'!BF95)","v":"Parcel"},{"$f":"IF('1. Order'!BG95=\"\",\"\",'1. Order'!BG95)","v":"ZWO"}]
[{"$f":"IF('1. Order'!F96=\"\",\"\",'1. Order'!F96)","v":""},{"$f":"IF('1. Order'!G96=\"\",\"\",'1. Order'!G96)","v":""},{"$f":"IF('1. Order'!H96=\"\",\"\",'1. Order'!H96)","v":""},{"$f":"IF('1. Order'!I96=\"\",\"\",'1. Order'!I96)","v":""},{"$f":"IF('1. Order'!J96=\"\",\"\",'1. Order'!J96)","v":""},{"$f":"IF('1. Order'!K96=\"\",\"\",'1. Order'!K96)","v":""},{"$f":"IF('1. Order'!L96=\"\",\"\",'1. Order'!L96)","v":""},{"$f":"IF('1. Order'!M96=\"\",\"\",'1. Order'!M96)","v":""},{"$f":"IF('1. Order'!N96=\"\",\"\",'1. Order'!N96)","v":""},{"$f":"IF('1. Order'!O96=\"\",\"\",'1. Order'!O96)","v":{"$error":"#N/A"}},{"$f":"IF('1. Order'!P96=\"\",\"\",'1. Order'!P96)","v":{"$error":"#N/A"}},{"$f":"IF('1. Order'!Q96=\"\",\"\",'1. Order'!Q96)","v":""},{"$f":"IF('1. Order'!R96=\"\",\"\",'1. Order'!R96)","v":""},{"$f":"IF('1. Order'!S96=\"\",\"\",'1. Order'!S96)","v":""},{"$f":"IF('1. Order'!V96=\"\",\"\",'1. Order'!V96)","v":""},{"$f":"IF('1. Order'!W96=\"\",\"\",'1. Order'!W96)","v":""},{"$f":"IF('1. Order'!X96=\"\",\"\",'1. Order'!X96)","v":"EUR"},{"$f":"IF('1. Order'!Y96=\"\",\"\",'1. Order'!Y96)","v":""},{"$f":"IF('1. Order'!Z96=\"\",\"\",'1. Order'!Z96)","v":""},{"$f":"IF('1. Order'!AA96=\"\",\"\",'1. Order'!AA96)","v":""},null,{"$f":"IF('1. Order'!AS96=\"\",\"\",'1. Order'!AS96)","v":""},{"$f":"IF('1. Order'!AT96=\"\",\"\",'1. Order'!AT96)","v":""},null,null,null,null,null,null,null,{"$f":"IF('1. Order'!AX96=\"\",\"\",'1. Order'!AX96)","v":""},{"$f":"IF('1. Order'!AY96=\"\",\"\",'1. Order'!AY96)","v":""},{"$f":"IF('1. Order'!AZ96=\"\",\"\",'1. Order'!AZ96)","v":""},{"$f":"IF('1. Order'!BA96=\"\",\"\",'1. Order'!BA96)","v":""},{"$f":"IF('1. Order'!BC96=\"\",\"\",'1. Order'!BC96)","v":""},{"$f":"IF('1. Order'!BD96=\"\",\"\",'1. Order'!BD96)","v":6},{"$f":"IF('1. Order'!BE96=\"\",\"\",'1. Order'!BE96)","v":"None"},{"$f":"IF('1. Order'!BF96=\"\",\"\",'1. Order'!BF96)","v":"Parcel"},{"$f":"IF('1. Order'!BG96=\"\",\"\",'1. Order'!BG96)","v":"ZWO"}]
[{"$f":"IF('1. Order'!F97=\"\",\"\",'1. Order'!F97)","v":""},{"$f":"IF('1. Order'!G97=\"\",\"\",'1. Order'!G97)","v":""},{"$f":"IF('1. Order'!H97=\"\",\"\",'1. Order'!H97)","v":""},{"$f":"IF('1. Order'!I97=\"\",\"\",'1. Order'!I97)","v":""},{"$f":"IF('1. Order'!J97=\"\",\"\",'1. Order'!J97)","v":""},{"$f":"IF('1. Order'!K97=\"\",\"\",'1. Order'!K97)","v":""},{"$f":"IF('1. Order'!L97=\"\",\"\",'1. Order'!L97)","v":""},{"$f":"IF('1. Order'!M97=\"\",\"\",'1. Order'!M97)","v":""},{"$f":"IF('1. Order'!N97=\"\",\"\",'1. Order'!N97)","v":""},{"$f":"IF('1. Order'!O97=\"\",\"\",'1. Order'!O97)","v":{"$error":"#N/A"}},{"$f":"IF('1. Order'!P97=\"\",\"\",'1. Order'!P97)","v":{"$error":"#N/A"}},{"$f":"IF('1. Order'!Q97=\"\",\"\",'1. Order'!Q97)","v":""},{"$f":"IF('1. Order'!R97=\"\",\"\",'1. Order'!R97)","v":""},{"$f":"IF('1. Order'!S97=\"\",\"\",'1. Order'!S97)","v":""},{"$f":"IF('1. Order'!V97=\"\",\"\",'1. Order'!V97)","v":""},{"$f":"IF('1. Order'!W97=\"\",\"\",'1. Order'!W97)","v":""},{"$f":"IF('1. Order'!X97=\"\",\"\",'1. Order'!X97)","v":"EUR"},{"$f":"IF('1. Order'!Y97=\"\",\"\",'1. Order'!Y97)","v":""},{"$f":"IF('1. Order'!Z97=\"\",\"\",'1. Order'!Z97)","v":""},{"$f":"IF('1. Order'!AA97=\"\",\"\",'1. Order'!AA97)","v":""},null,{"$f":"IF('1. Order'!AS97=\"\",\"\",'1. Order'!AS97)","v":""},{"$f":"IF('1. Order'!AT97=\"\",\"\",'1. Order'!AT97)","v":""},null,null,null,null,null,null,null,{"$f":"IF('1. Order'!AX97=\"\",\"\",'1. Order'!AX97)","v":""},{"$f":"IF('1. Order'!AY97=\"\",\"\",'1. Order'!AY97)","v":""},{"$f":"IF('1. Order'!AZ97=\"\",\"\",'1. Order'!AZ97)","v":""},{"$f":"IF('1. Order'!BA97=\"\",\"\",'1. Order'!BA97)","v":""},{"$f":"IF('1. Order'!BC97=\"\",\"\",'1. Order'!BC97)","v":""},{"$f":"IF('1. Order'!BD97=\"\",\"\",'1. Order'!BD97)","v":6},{"$f":"IF('1. Order'!BE97=\"\",\"\",'1. Order'!BE97)","v":"None"},{"$f":"IF('1. Order'!BF97=\"\",\"\",'1. Order'!BF97)","v":"Parcel"},{"$f":"IF('1. Order'!BG97=\"\",\"\",'1. Order'!BG97)","v":"ZWO"}]
[{"$f":"IF('1. Order'!F98=\"\",\"\",'1. Order'!F98)","v":""},{"$f":"IF('1. Order'!G98=\"\",\"\",'1. Order'!G98)","v":""},{"$f":"IF('1. Order'!H98=\"\",\"\",'1. Order'!H98)","v":""},{"$f":"IF('1. Order'!I98=\"\",\"\",'1. Order'!I98)","v":""},{"$f":"IF('1. Order'!J98=\"\",\"\",'1. Order'!J98)","v":""},{"$f":"IF('1. Order'!K98=\"\",\"\",'1. Order'!K98)","v":""},{"$f":"IF('1. Order'!L98=\"\",\"\",'1. Order'!L98)","v":""},{"$f":"IF('1. Order'!M98=\"\",\"\",'1. Order'!M98)","v":""},{"$f":"IF('1. Order'!N98=\"\",\"\",'1. Order'!N98)","v":""},{"$f":"IF('1. Order'!O98=\"\",\"\",'1. Order'!O98)","v":{"$error":"#N/A"}},{"$f":"IF('1. Order'!P98=\"\",\"\",'1. Order'!P98)","v":{"$error":"#N/A"}},{"$f":"IF('1. Order'!Q98=\"\",\"\",'1. Order'!Q98)","v":""},{"$f":"IF('1. Order'!R98=\"\",\"\",'1. Order'!R98)","v":""},{"$f":"IF('1. Order'!S98=\"\",\"\",'1. Order'!S98)","v":""},{"$f":"IF('1. Order'!V98=\"\",\"\",'1. Order'!V98)","v":""},{"$f":"IF('1. Order'!W98=\"\",\"\",'1. Order'!W98)","v":""},{"$f":"IF('1. Order'!X98=\"\",\"\",'1. Order'!X98)","v":"EUR"},{"$f":"IF('1. Order'!Y98=\"\",\"\",'1. Order'!Y98)","v":""},{"$f":"IF('1. Order'!Z98=\"\",\"\",'1. Order'!Z98)","v":""},{"$f":"IF('1. Order'!AA98=\"\",\"\",'1. Order'!AA98)","v":""},null,{"$f":"IF('1. Order'!AS98=\"\",\"\",'1. Order'!AS98)","v":""},{"$f":"IF('1. Order'!AT98=\"\",\"\",'1. Order'!AT98)","v":""},null,null,null,null,null,null,null,{"$f":"IF('1. Order'!AX98=\"\",\"\",'1. Order'!AX98)","v":""},{"$f":"IF('1. Order'!AY98=\"\",\"\",'1. Order'!AY98)","v":""},{"$f":"IF('1. Order'!AZ98=\"\",\"\",'1. Order'!AZ98)","v":""},{"$f":"IF('1. Order'!BA98=\"\",\"\",'1. Order'!BA98)","v":""},{"$f":"IF('1. Order'!BC98=\"\",\"\",'1. Order'!BC98)","v":""},{"$f":"IF('1. Order'!BD98=\"\",\"\",'1. Order'!BD98)","v":6},{"$f":"IF('1. Order'!BE98=\"\",\"\",'1. Order'!BE98)","v":"None"},{"$f":"IF('1. Order'!BF98=\"\",\"\",'1. Order'!BF98)","v":"Parcel"},{"$f":"IF('1. Order'!BG98=\"\",\"\",'1. Order'!BG98)","v":"ZWO"}]
[{"$f":"IF('1. Order'!F99=\"\",\"\",'1. Order'!F99)","v":""},{"$f":"IF('1. Order'!G99=\"\",\"\",'1. Order'!G99)","v":""},{"$f":"IF('1. Order'!H99=\"\",\"\",'1. Order'!H99)","v":""},{"$f":"IF('1. Order'!I99=\"\",\"\",'1. Order'!I99)","v":""},{"$f":"IF('1. Order'!J99=\"\",\"\",'1. Order'!J99)","v":""},{"$f":"IF('1. Order'!K99=\"\",\"\",'1. Order'!K99)","v":""},{"$f":"IF('1. Order'!L99=\"\",\"\",'1. Order'!L99)","v":""},{"$f":"IF('1. Order'!M99=\"\",\"\",'1. Order'!M99)","v":""},{"$f":"IF('1. Order'!N99=\"\",\"\",'1. Order'!N99)","v":""},{"$f":"IF('1. Order'!O99=\"\",\"\",'1. Order'!O99)","v":{"$error":"#N/A"}},{"$f":"IF('1. Order'!P99=\"\",\"\",'1. Order'!P99)","v":{"$error":"#N/A"}},{"$f":"IF('1. Order'!Q99=\"\",\"\",'1. Order'!Q99)","v":""},{"$f":"IF('1. Order'!R99=\"\",\"\",'1. Order'!R99)","v":""},{"$f":"IF('1. Order'!S99=\"\",\"\",'1. Order'!S99)","v":""},{"$f":"IF('1. Order'!V99=\"\",\"\",'1. Order'!V99)","v":""},{"$f":"IF('1. Order'!W99=\"\",\"\",'1. Order'!W99)","v":""},{"$f":"IF('1. Order'!X99=\"\",\"\",'1. Order'!X99)","v":"EUR"},{"$f":"IF('1. Order'!Y99=\"\",\"\",'1. Order'!Y99)","v":""},{"$f":"IF('1. Order'!Z99=\"\",\"\",'1. Order'!Z99)","v":""},{"$f":"IF('1. Order'!AA99=\"\",\"\",'1. Order'!AA99)","v":""},null,{"$f":"IF('1. Order'!AS99=\"\",\"\",'1. Order'!AS99)","v":""},{"$f":"IF('1. Order'!AT99=\"\",\"\",'1. Order'!AT99)","v":""},null,null,null,null,null,null,null,{"$f":"IF('1. Order'!AX99=\"\",\"\",'1. Order'!AX99)","v":""},{"$f":"IF('1. Order'!AY99=\"\",\"\",'1. Order'!AY99)","v":""},{"$f":"IF('1. Order'!AZ99=\"\",\"\",'1. Order'!AZ99)","v":""},{"$f":"IF('1. Order'!BA99=\"\",\"\",'1. Order'!BA99)","v":""},{"$f":"IF('1. Order'!BC99=\"\",\"\",'1. Order'!BC99)","v":""},{"$f":"IF('1. Order'!BD99=\"\",\"\",'1. Order'!BD99)","v":6},{"$f":"IF('1. Order'!BE99=\"\",\"\",'1. Order'!BE99)","v":"None"},{"$f":"IF('1. Order'!BF99=\"\",\"\",'1. Order'!BF99)","v":"Parcel"},{"$f":"IF('1. Order'!BG99=\"\",\"\",'1. Order'!BG99)","v":"ZWO"}]
[{"$f":"IF('1. Order'!F100=\"\",\"\",'1. Order'!F100)","v":""},{"$f":"IF('1. Order'!G100=\"\",\"\",'1. Order'!G100)","v":""},{"$f":"IF('1. Order'!H100=\"\",\"\",'1. Order'!H100)","v":""},{"$f":"IF('1. Order'!I100=\"\",\"\",'1. Order'!I100)","v":""},{"$f":"IF('1. Order'!J100=\"\",\"\",'1. Order'!J100)","v":""},{"$f":"IF('1. Order'!K100=\"\",\"\",'1. Order'!K100)","v":""},{"$f":"IF('1. Order'!L100=\"\",\"\",'1. Order'!L100)","v":""},{"$f":"IF('1. Order'!M100=\"\",\"\",'1. Order'!M100)","v":""},{"$f":"IF('1. Order'!N100=\"\",\"\",'1. Order'!N100)","v":""},{"$f":"IF('1. Order'!O100=\"\",\"\",'1. Order'!O100)","v":{"$error":"#N/A"}},{"$f":"IF('1. Order'!P100=\"\",\"\",'1. Order'!P100)","v":{"$error":"#N/A"}},{"$f":"IF('1. Order'!Q100=\"\",\"\",'1. Order'!Q100)","v":""},{"$f":"IF('1. Order'!R100=\"\",\"\",'1. Order'!R100)","v":""},{"$f":"IF('1. Order'!S100=\"\",\"\",'1. Order'!S100)","v":""},{"$f":"IF('1. Order'!V100=\"\",\"\",'1. Order'!V100)","v":""},{"$f":"IF('1. Order'!W100=\"\",\"\",'1. Order'!W100)","v":""},{"$f":"IF('1. Order'!X100=\"\",\"\",'1. Order'!X100)","v":"EUR"},{"$f":"IF('1. Order'!Y100=\"\",\"\",'1. Order'!Y100)","v":""},{"$f":"IF('1. Order'!Z100=\"\",\"\",'1. Order'!Z100)","v":""},{"$f":"IF('1. Order'!AA100=\"\",\"\",'1. Order'!AA100)","v":""},null,{"$f":"IF('1. Order'!AS100=\"\",\"\",'1. Order'!AS100)","v":""},{"$f":"IF('1. Order'!AT100=\"\",\"\",'1. Order'!AT100)","v":""},null,null,null,null,null,null,null,{"$f":"IF('1. Order'!AX100=\"\",\"\",'1. Order'!AX100)","v":""},{"$f":"IF('1. Order'!AY100=\"\",\"\",'1. Order'!AY100)","v":""},{"$f":"IF('1. Order'!AZ100=\"\",\"\",'1. Order'!AZ100)","v":""},{"$f":"IF('1. Order'!BA100=\"\",\"\",'1. Order'!BA100)","v":""},{"$f":"IF('1. Order'!BC100=\"\",\"\",'1. Order'!BC100)","v":""},{"$f":"IF('1. Order'!BD100=\"\",\"\",'1. Order'!BD100)","v":6},{"$f":"IF('1. Order'!BE100=\"\",\"\",'1. Order'!BE100)","v":"None"},{"$f":"IF('1. Order'!BF100=\"\",\"\",'1. Order'!BF100)","v":"Parcel"},{"$f":"IF('1. Order'!BG100=\"\",\"\",'1. Order'!BG100)","v":"ZWO"}]
[{"$f":"IF('1. Order'!F101=\"\",\"\",'1. Order'!F101)","v":""},{"$f":"IF('1. Order'!G101=\"\",\"\",'1. Order'!G101)","v":""},{"$f":"IF('1. Order'!H101=\"\",\"\",'1. Order'!H101)","v":""},{"$f":"IF('1. Order'!I101=\"\",\"\",'1. Order'!I101)","v":""},{"$f":"IF('1. Order'!J101=\"\",\"\",'1. Order'!J101)","v":""},{"$f":"IF('1. Order'!K101=\"\",\"\",'1. Order'!K101)","v":""},{"$f":"IF('1. Order'!L101=\"\",\"\",'1. Order'!L101)","v":""},{"$f":"IF('1. Order'!M101=\"\",\"\",'1. Order'!M101)","v":""},{"$f":"IF('1. Order'!N101=\"\",\"\",'1. Order'!N101)","v":""},{"$f":"IF('1. Order'!O101=\"\",\"\",'1. Order'!O101)","v":{"$error":"#N/A"}},{"$f":"IF('1. Order'!P101=\"\",\"\",'1. Order'!P101)","v":{"$error":"#N/A"}},{"$f":"IF('1. Order'!Q101=\"\",\"\",'1. Order'!Q101)","v":""},{"$f":"IF('1. Order'!R101=\"\",\"\",'1. Order'!R101)","v":""},{"$f":"IF('1. Order'!S101=\"\",\"\",'1. Order'!S101)","v":""},{"$f":"IF('1. Order'!V101=\"\",\"\",'1. Order'!V101)","v":""},{"$f":"IF('1. Order'!W101=\"\",\"\",'1. Order'!W101)","v":""},{"$f":"IF('1. Order'!X101=\"\",\"\",'1. Order'!X101)","v":"EUR"},{"$f":"IF('1. Order'!Y101=\"\",\"\",'1. Order'!Y101)","v":""},{"$f":"IF('1. Order'!Z101=\"\",\"\",'1. Order'!Z101)","v":""},{"$f":"IF('1. Order'!AA101=\"\",\"\",'1. Order'!AA101)","v":""},null,{"$f":"IF('1. Order'!AS101=\"\",\"\",'1. Order'!AS101)","v":""},{"$f":"IF('1. Order'!AT101=\"\",\"\",'1. Order'!AT101)","v":""},null,null,null,null,null,null,null,{"$f":"IF('1. Order'!AX101=\"\",\"\",'1. Order'!AX101)","v":""},{"$f":"IF('1. Order'!AY101=\"\",\"\",'1. Order'!AY101)","v":""},{"$f":"IF('1. Order'!AZ101=\"\",\"\",'1. Order'!AZ101)","v":""},{"$f":"IF('1. Order'!BA101=\"\",\"\",'1. Order'!BA101)","v":""},{"$f":"IF('1. Order'!BC101=\"\",\"\",'1. Order'!BC101)","v":""},{"$f":"IF('1. Order'!BD101=\"\",\"\",'1. Order'!BD101)","v":6},{"$f":"IF('1. Order'!BE101=\"\",\"\",'1. Order'!BE101)","v":"None"},{"$f":"IF('1. Order'!BF101=\"\",\"\",'1. Order'!BF101)","v":"Parcel"},{"$f":"IF('1. Order'!BG101=\"\",\"\",'1. Order'!BG101)","v":"ZWO"}]
[{"$f":"IF('1. Order'!F102=\"\",\"\",'1. Order'!F102)","v":""},{"$f":"IF('1. Order'!G102=\"\",\"\",'1. Order'!G102)","v":""},{"$f":"IF('1. Order'!H102=\"\",\"\",'1. Order'!H102)","v":""},{"$f":"IF('1. Order'!I102=\"\",\"\",'1. Order'!I102)","v":""},{"$f":"IF('1. Order'!J102=\"\",\"\",'1. Order'!J102)","v":""},{"$f":"IF('1. Order'!K102=\"\",\"\",'1. Order'!K102)","v":""},{"$f":"IF('1. Order'!L102=\"\",\"\",'1. Order'!L102)","v":""},{"$f":"IF('1. Order'!M102=\"\",\"\",'1. Order'!M102)","v":""},{"$f":"IF('1. Order'!N102=\"\",\"\",'1. Order'!N102)","v":""},{"$f":"IF('1. Order'!O102=\"\",\"\",'1. Order'!O102)","v":{"$error":"#N/A"}},{"$f":"IF('1. Order'!P102=\"\",\"\",'1. Order'!P102)","v":{"$error":"#N/A"}},{"$f":"IF('1. Order'!Q102=\"\",\"\",'1. Order'!Q102)","v":""},{"$f":"IF('1. Order'!R102=\"\",\"\",'1. Order'!R102)","v":""},{"$f":"IF('1. Order'!S102=\"\",\"\",'1. Order'!S102)","v":""},{"$f":"IF('1. Order'!V102=\"\",\"\",'1. Order'!V102)","v":""},{"$f":"IF('1. Order'!W102=\"\",\"\",'1. Order'!W102)","v":""},{"$f":"IF('1. Order'!X102=\"\",\"\",'1. Order'!X102)","v":"EUR"},{"$f":"IF('1. Order'!Y102=\"\",\"\",'1. Order'!Y102)","v":""},{"$f":"IF('1. Order'!Z102=\"\",\"\",'1. Order'!Z102)","v":""},{"$f":"IF('1. Order'!AA102=\"\",\"\",'1. Order'!AA102)","v":""},null,{"$f":"IF('1. Order'!AS102=\"\",\"\",'1. Order'!AS102)","v":""},{"$f":"IF('1. Order'!AT102=\"\",\"\",'1. Order'!AT102)","v":""},null,null,null,null,null,null,null,{"$f":"IF('1. Order'!AX102=\"\",\"\",'1. Order'!AX102)","v":""},{"$f":"IF('1. Order'!AY102=\"\",\"\",'1. Order'!AY102)","v":""},{"$f":"IF('1. Order'!AZ102=\"\",\"\",'1. Order'!AZ102)","v":""},{"$f":"IF('1. Order'!BA102=\"\",\"\",'1. Order'!BA102)","v":""},{"$f":"IF('1. Order'!BC102=\"\",\"\",'1. Order'!BC102)","v":""},{"$f":"IF('1. Order'!BD102=\"\",\"\",'1. Order'!BD102)","v":6},{"$f":"IF('1. Order'!BE102=\"\",\"\",'1. Order'!BE102)","v":"None"},{"$f":"IF('1. Order'!BF102=\"\",\"\",'1. Order'!BF102)","v":"Parcel"},{"$f":"IF('1. Order'!BG102=\"\",\"\",'1. Order'!BG102)","v":"ZWO"}]
[{"$f":"IF('1. Order'!F103=\"\",\"\",'1. Order'!F103)","v":""},{"$f":"IF('1. Order'!G103=\"\",\"\",'1. Order'!G103)","v":""},{"$f":"IF('1. Order'!H103=\"\",\"\",'1. Order'!H103)","v":""},{"$f":"IF('1. Order'!I103=\"\",\"\",'1. Order'!I103)","v":""},{"$f":"IF('1. Order'!J103=\"\",\"\",'1. Order'!J103)","v":""},{"$f":"IF('1. Order'!K103=\"\",\"\",'1. Order'!K103)","v":""},{"$f":"IF('1. Order'!L103=\"\",\"\",'1. Order'!L103)","v":""},{"$f":"IF('1. Order'!M103=\"\",\"\",'1. Order'!M103)","v":""},{"$f":"IF('1. Order'!N103=\"\",\"\",'1. Order'!N103)","v":""},{"$f":"IF('1. Order'!O103=\"\",\"\",'1. Order'!O103)","v":{"$error":"#N/A"}},{"$f":"IF('1. Order'!P103=\"\",\"\",'1. Order'!P103)","v":{"$error":"#N/A"}},{"$f":"IF('1. Order'!Q103=\"\",\"\",'1. Order'!Q103)","v":""},{"$f":"IF('1. Order'!R103=\"\",\"\",'1. Order'!R103)","v":""},{"$f":"IF('1. Order'!S103=\"\",\"\",'1. Order'!S103)","v":""},{"$f":"IF('1. Order'!V103=\"\",\"\",'1. Order'!V103)","v":""},{"$f":"IF('1. Order'!W103=\"\",\"\",'1. Order'!W103)","v":""},{"$f":"IF('1. Order'!X103=\"\",\"\",'1. Order'!X103)","v":"EUR"},{"$f":"IF('1. Order'!Y103=\"\",\"\",'1. Order'!Y103)","v":""},{"$f":"IF('1. Order'!Z103=\"\",\"\",'1. Order'!Z103)","v":""},{"$f":"IF('1. Order'!AA103=\"\",\"\",'1. Order'!AA103)","v":""},null,{"$f":"IF('1. Order'!AS103=\"\",\"\",'1. Order'!AS103)","v":""},{"$f":"IF('1. Order'!AT103=\"\",\"\",'1. Order'!AT103)","v":""},null,null,null,null,null,null,null,{"$f":"IF('1. Order'!AX103=\"\",\"\",'1. Order'!AX103)","v":""},{"$f":"IF('1. Order'!AY103=\"\",\"\",'1. Order'!AY103)","v":""},{"$f":"IF('1. Order'!AZ103=\"\",\"\",'1. Order'!AZ103)","v":""},{"$f":"IF('1. Order'!BA103=\"\",\"\",'1. Order'!BA103)","v":""},{"$f":"IF('1. Order'!BC103=\"\",\"\",'1. Order'!BC103)","v":""},{"$f":"IF('1. Order'!BD103=\"\",\"\",'1. Order'!BD103)","v":6},{"$f":"IF('1. Order'!BE103=\"\",\"\",'1. Order'!BE103)","v":"None"},{"$f":"IF('1. Order'!BF103=\"\",\"\",'1. Order'!BF103)","v":"Parcel"},{"$f":"IF('1. Order'!BG103=\"\",\"\",'1. Order'!BG103)","v":"ZWO"}]
[{"$f":"IF('1. Order'!F104=\"\",\"\",'1. Order'!F104)","v":""},{"$f":"IF('1. Order'!G104=\"\",\"\",'1. Order'!G104)","v":""},{"$f":"IF('1. Order'!H104=\"\",\"\",'1. Order'!H104)","v":""},{"$f":"IF('1. Order'!I104=\"\",\"\",'1. Order'!I104)","v":""},{"$f":"IF('1. Order'!J104=\"\",\"\",'1. Order'!J104)","v":""},{"$f":"IF('1. Order'!K104=\"\",\"\",'1. Order'!K104)","v":""},{"$f":"IF('1. Order'!L104=\"\",\"\",'1. Order'!L104)","v":""},{"$f":"IF('1. Order'!M104=\"\",\"\",'1. Order'!M104)","v":""},{"$f":"IF('1. Order'!N104=\"\",\"\",'1. Order'!N104)","v":""},{"$f":"IF('1. Order'!O104=\"\",\"\",'1. Order'!O104)","v":{"$error":"#N/A"}},{"$f":"IF('1. Order'!P104=\"\",\"\",'1. Order'!P104)","v":{"$error":"#N/A"}},{"$f":"IF('1. Order'!Q104=\"\",\"\",'1. Order'!Q104)","v":""},{"$f":"IF('1. Order'!R104=\"\",\"\",'1. Order'!R104)","v":""},{"$f":"IF('1. Order'!S104=\"\",\"\",'1. Order'!S104)","v":""},{"$f":"IF('1. Order'!V104=\"\",\"\",'1. Order'!V104)","v":""},{"$f":"IF('1. Order'!W104=\"\",\"\",'1. Order'!W104)","v":""},{"$f":"IF('1. Order'!X104=\"\",\"\",'1. Order'!X104)","v":"EUR"},{"$f":"IF('1. Order'!Y104=\"\",\"\",'1. Order'!Y104)","v":""},{"$f":"IF('1. Order'!Z104=\"\",\"\",'1. Order'!Z104)","v":""},{"$f":"IF('1. Order'!AA104=\"\",\"\",'1. Order'!AA104)","v":""},null,{"$f":"IF('1. Order'!AS104=\"\",\"\",'1. Order'!AS104)","v":""},{"$f":"IF('1. Order'!AT104=\"\",\"\",'1. Order'!AT104)","v":""},null,null,null,null,null,null,null,{"$f":"IF('1. Order'!AX104=\"\",\"\",'1. Order'!AX104)","v":""},{"$f":"IF('1. Order'!AY104=\"\",\"\",'1. Order'!AY104)","v":""},{"$f":"IF('1. Order'!AZ104=\"\",\"\",'1. Order'!AZ104)","v":""},{"$f":"IF('1. Order'!BA104=\"\",\"\",'1. Order'!BA104)","v":""},{"$f":"IF('1. Order'!BC104=\"\",\"\",'1. Order'!BC104)","v":""},{"$f":"IF('1. Order'!BD104=\"\",\"\",'1. Order'!BD104)","v":6},{"$f":"IF('1. Order'!BE104=\"\",\"\",'1. Order'!BE104)","v":"None"},{"$f":"IF('1. Order'!BF104=\"\",\"\",'1. Order'!BF104)","v":"Parcel"},{"$f":"IF('1. Order'!BG104=\"\",\"\",'1. Order'!BG104)","v":"ZWO"}]
[{"$f":"IF('1. Order'!F105=\"\",\"\",'1. Order'!F105)","v":""},{"$f":"IF('1. Order'!G105=\"\",\"\",'1. Order'!G105)","v":""},{"$f":"IF('1. Order'!H105=\"\",\"\",'1. Order'!H105)","v":""},{"$f":"IF('1. Order'!I105=\"\",\"\",'1. Order'!I105)","v":""},{"$f":"IF('1. Order'!J105=\"\",\"\",'1. Order'!J105)","v":""},{"$f":"IF('1. Order'!K105=\"\",\"\",'1. Order'!K105)","v":""},{"$f":"IF('1. Order'!L105=\"\",\"\",'1. Order'!L105)","v":""},{"$f":"IF('1. Order'!M105=\"\",\"\",'1. Order'!M105)","v":""},{"$f":"IF('1. Order'!N105=\"\",\"\",'1. Order'!N105)","v":""},{"$f":"IF('1. Order'!O105=\"\",\"\",'1. Order'!O105)","v":{"$error":"#N/A"}},{"$f":"IF('1. Order'!P105=\"\",\"\",'1. Order'!P105)","v":{"$error":"#N/A"}},{"$f":"IF('1. Order'!Q105=\"\",\"\",'1. Order'!Q105)","v":""},{"$f":"IF('1. Order'!R105=\"\",\"\",'1. Order'!R105)","v":""},{"$f":"IF('1. Order'!S105=\"\",\"\",'1. Order'!S105)","v":""},{"$f":"IF('1. Order'!V105=\"\",\"\",'1. Order'!V105)","v":""},{"$f":"IF('1. Order'!W105=\"\",\"\",'1. Order'!W105)","v":""},{"$f":"IF('1. Order'!X105=\"\",\"\",'1. Order'!X105)","v":"EUR"},{"$f":"IF('1. Order'!Y105=\"\",\"\",'1. Order'!Y105)","v":""},{"$f":"IF('1. Order'!Z105=\"\",\"\",'1. Order'!Z105)","v":""},{"$f":"IF('1. Order'!AA105=\"\",\"\",'1. Order'!AA105)","v":""},null,{"$f":"IF('1. Order'!AS105=\"\",\"\",'1. Order'!AS105)","v":""},{"$f":"IF('1. Order'!AT105=\"\",\"\",'1. Order'!AT105)","v":""},null,null,null,null,null,null,null,{"$f":"IF('1. Order'!AX105=\"\",\"\",'1. Order'!AX105)","v":""},{"$f":"IF('1. Order'!AY105=\"\",\"\",'1. Order'!AY105)","v":""},{"$f":"IF('1. Order'!AZ105=\"\",\"\",'1. Order'!AZ105)","v":""},{"$f":"IF('1. Order'!BA105=\"\",\"\",'1. Order'!BA105)","v":""},{"$f":"IF('1. Order'!BC105=\"\",\"\",'1. Order'!BC105)","v":""},{"$f":"IF('1. Order'!BD105=\"\",\"\",'1. Order'!BD105)","v":6},{"$f":"IF('1. Order'!BE105=\"\",\"\",'1. Order'!BE105)","v":"None"},{"$f":"IF('1. Order'!BF105=\"\",\"\",'1. Order'!BF105)","v":"Parcel"},{"$f":"IF('1. Order'!BG105=\"\",\"\",'1. Order'!BG105)","v":"ZWO"}]
[{"$f":"IF('1. Order'!F106=\"\",\"\",'1. Order'!F106)","v":""},{"$f":"IF('1. Order'!G106=\"\",\"\",'1. Order'!G106)","v":""},{"$f":"IF('1. Order'!H106=\"\",\"\",'1. Order'!H106)","v":""},{"$f":"IF('1. Order'!I106=\"\",\"\",'1. Order'!I106)","v":""},{"$f":"IF('1. Order'!J106=\"\",\"\",'1. Order'!J106)","v":""},{"$f":"IF('1. Order'!K106=\"\",\"\",'1. Order'!K106)","v":""},{"$f":"IF('1. Order'!L106=\"\",\"\",'1. Order'!L106)","v":""},{"$f":"IF('1. Order'!M106=\"\",\"\",'1. Order'!M106)","v":""},{"$f":"IF('1. Order'!N106=\"\",\"\",'1. Order'!N106)","v":""},{"$f":"IF('1. Order'!O106=\"\",\"\",'1. Order'!O106)","v":{"$error":"#N/A"}},{"$f":"IF('1. Order'!P106=\"\",\"\",'1. Order'!P106)","v":{"$error":"#N/A"}},{"$f":"IF('1. Order'!Q106=\"\",\"\",'1. Order'!Q106)","v":""},{"$f":"IF('1. Order'!R106=\"\",\"\",'1. Order'!R106)","v":""},{"$f":"IF('1. Order'!S106=\"\",\"\",'1. Order'!S106)","v":""},{"$f":"IF('1. Order'!V106=\"\",\"\",'1. Order'!V106)","v":""},{"$f":"IF('1. Order'!W106=\"\",\"\",'1. Order'!W106)","v":""},{"$f":"IF('1. Order'!X106=\"\",\"\",'1. Order'!X106)","v":"EUR"},{"$f":"IF('1. Order'!Y106=\"\",\"\",'1. Order'!Y106)","v":""},{"$f":"IF('1. Order'!Z106=\"\",\"\",'1. Order'!Z106)","v":""},{"$f":"IF('1. Order'!AA106=\"\",\"\",'1. Order'!AA106)","v":""},null,{"$f":"IF('1. Order'!AS106=\"\",\"\",'1. Order'!AS106)","v":""},{"$f":"IF('1. Order'!AT106=\"\",\"\",'1. Order'!AT106)","v":""},null,null,null,null,null,null,null,{"$f":"IF('1. Order'!AX106=\"\",\"\",'1. Order'!AX106)","v":""},{"$f":"IF('1. Order'!AY106=\"\",\"\",'1. Order'!AY106)","v":""},{"$f":"IF('1. Order'!AZ106=\"\",\"\",'1. Order'!AZ106)","v":""},{"$f":"IF('1. Order'!BA106=\"\",\"\",'1. Order'!BA106)","v":""},{"$f":"IF('1. Order'!BC106=\"\",\"\",'1. Order'!BC106)","v":""},{"$f":"IF('1. Order'!BD106=\"\",\"\",'1. Order'!BD106)","v":6},{"$f":"IF('1. Order'!BE106=\"\",\"\",'1. Order'!BE106)","v":"None"},{"$f":"IF('1. Order'!BF106=\"\",\"\",'1. Order'!BF106)","v":"Parcel"},{"$f":"IF('1. Order'!BG106=\"\",\"\",'1. Order'!BG106)","v":"ZWO"}]
[{"$f":"IF('1. Order'!F107=\"\",\"\",'1. Order'!F107)","v":""},{"$f":"IF('1. Order'!G107=\"\",\"\",'1. Order'!G107)","v":""},{"$f":"IF('1. Order'!H107=\"\",\"\",'1. Order'!H107)","v":""},{"$f":"IF('1. Order'!I107=\"\",\"\",'1. Order'!I107)","v":""},{"$f":"IF('1. Order'!J107=\"\",\"\",'1. Order'!J107)","v":""},{"$f":"IF('1. Order'!K107=\"\",\"\",'1. Order'!K107)","v":""},{"$f":"IF('1. Order'!L107=\"\",\"\",'1. Order'!L107)","v":""},{"$f":"IF('1. Order'!M107=\"\",\"\",'1. Order'!M107)","v":""},{"$f":"IF('1. Order'!N107=\"\",\"\",'1. Order'!N107)","v":""},{"$f":"IF('1. Order'!O107=\"\",\"\",'1. Order'!O107)","v":{"$error":"#N/A"}},{"$f":"IF('1. Order'!P107=\"\",\"\",'1. Order'!P107)","v":{"$error":"#N/A"}},{"$f":"IF('1. Order'!Q107=\"\",\"\",'1. Order'!Q107)","v":""},{"$f":"IF('1. Order'!R107=\"\",\"\",'1. Order'!R107)","v":""},{"$f":"IF('1. Order'!S107=\"\",\"\",'1. Order'!S107)","v":""},{"$f":"IF('1. Order'!V107=\"\",\"\",'1. Order'!V107)","v":""},{"$f":"IF('1. Order'!W107=\"\",\"\",'1. Order'!W107)","v":""},{"$f":"IF('1. Order'!X107=\"\",\"\",'1. Order'!X107)","v":"EUR"},{"$f":"IF('1. Order'!Y107=\"\",\"\",'1. Order'!Y107)","v":""},{"$f":"IF('1. Order'!Z107=\"\",\"\",'1. Order'!Z107)","v":""},{"$f":"IF('1. Order'!AA107=\"\",\"\",'1. Order'!AA107)","v":""},null,{"$f":"IF('1. Order'!AS107=\"\",\"\",'1. Order'!AS107)","v":""},{"$f":"IF('1. Order'!AT107=\"\",\"\",'1. Order'!AT107)","v":""},null,null,null,null,null,null,null,{"$f":"IF('1. Order'!AX107=\"\",\"\",'1. Order'!AX107)","v":""},{"$f":"IF('1. Order'!AY107=\"\",\"\",'1. Order'!AY107)","v":""},{"$f":"IF('1. Order'!AZ107=\"\",\"\",'1. Order'!AZ107)","v":""},{"$f":"IF('1. Order'!BA107=\"\",\"\",'1. Order'!BA107)","v":""},{"$f":"IF('1. Order'!BC107=\"\",\"\",'1. Order'!BC107)","v":""},{"$f":"IF('1. Order'!BD107=\"\",\"\",'1. Order'!BD107)","v":6},{"$f":"IF('1. Order'!BE107=\"\",\"\",'1. Order'!BE107)","v":"None"},{"$f":"IF('1. Order'!BF107=\"\",\"\",'1. Order'!BF107)","v":"Parcel"},{"$f":"IF('1. Order'!BG107=\"\",\"\",'1. Order'!BG107)","v":"ZWO"}]
[{"$f":"IF('1. Order'!F108=\"\",\"\",'1. Order'!F108)","v":""},{"$f":"IF('1. Order'!G108=\"\",\"\",'1. Order'!G108)","v":""},{"$f":"IF('1. Order'!H108=\"\",\"\",'1. Order'!H108)","v":""},{"$f":"IF('1. Order'!I108=\"\",\"\",'1. Order'!I108)","v":""},{"$f":"IF('1. Order'!J108=\"\",\"\",'1. Order'!J108)","v":""},{"$f":"IF('1. Order'!K108=\"\",\"\",'1. Order'!K108)","v":""},{"$f":"IF('1. Order'!L108=\"\",\"\",'1. Order'!L108)","v":""},{"$f":"IF('1. Order'!M108=\"\",\"\",'1. Order'!M108)","v":""},{"$f":"IF('1. Order'!N108=\"\",\"\",'1. Order'!N108)","v":""},{"$f":"IF('1. Order'!O108=\"\",\"\",'1. Order'!O108)","v":{"$error":"#N/A"}},{"$f":"IF('1. Order'!P108=\"\",\"\",'1. Order'!P108)","v":{"$error":"#N/A"}},{"$f":"IF('1. Order'!Q108=\"\",\"\",'1. Order'!Q108)","v":""},{"$f":"IF('1. Order'!R108=\"\",\"\",'1. Order'!R108)","v":""},{"$f":"IF('1. Order'!S108=\"\",\"\",'1. Order'!S108)","v":""},{"$f":"IF('1. Order'!V108=\"\",\"\",'1. Order'!V108)","v":""},{"$f":"IF('1. Order'!W108=\"\",\"\",'1. Order'!W108)","v":""},{"$f":"IF('1. Order'!X108=\"\",\"\",'1. Order'!X108)","v":"EUR"},{"$f":"IF('1. Order'!Y108=\"\",\"\",'1. Order'!Y108)","v":""},{"$f":"IF('1. Order'!Z108=\"\",\"\",'1. Order'!Z108)","v":""},{"$f":"IF('1. Order'!AA108=\"\",\"\",'1. Order'!AA108)","v":""},null,{"$f":"IF('1. Order'!AS108=\"\",\"\",'1. Order'!AS108)","v":""},{"$f":"IF('1. Order'!AT108=\"\",\"\",'1. Order'!AT108)","v":""},null,null,null,null,null,null,null,{"$f":"IF('1. Order'!AX108=\"\",\"\",'1. Order'!AX108)","v":""},{"$f":"IF('1. Order'!AY108=\"\",\"\",'1. Order'!AY108)","v":""},{"$f":"IF('1. Order'!AZ108=\"\",\"\",'1. Order'!AZ108)","v":""},{"$f":"IF('1. Order'!BA108=\"\",\"\",'1. Order'!BA108)","v":""},{"$f":"IF('1. Order'!BC108=\"\",\"\",'1. Order'!BC108)","v":""},{"$f":"IF('1. Order'!BD108=\"\",\"\",'1. Order'!BD108)","v":6},{"$f":"IF('1. Order'!BE108=\"\",\"\",'1. Order'!BE108)","v":"None"},{"$f":"IF('1. Order'!BF108=\"\",\"\",'1. Order'!BF108)","v":"Parcel"},{"$f":"IF('1. Order'!BG108=\"\",\"\",'1. Order'!BG108)","v":"ZWO"}]
[{"$f":"IF('1. Order'!F109=\"\",\"\",'1. Order'!F109)","v":""},{"$f":"IF('1. Order'!G109=\"\",\"\",'1. Order'!G109)","v":""},{"$f":"IF('1. Order'!H109=\"\",\"\",'1. Order'!H109)","v":""},{"$f":"IF('1. Order'!I109=\"\",\"\",'1. Order'!I109)","v":""},{"$f":"IF('1. Order'!J109=\"\",\"\",'1. Order'!J109)","v":""},{"$f":"IF('1. Order'!K109=\"\",\"\",'1. Order'!K109)","v":""},{"$f":"IF('1. Order'!L109=\"\",\"\",'1. Order'!L109)","v":""},{"$f":"IF('1. Order'!M109=\"\",\"\",'1. Order'!M109)","v":""},{"$f":"IF('1. Order'!N109=\"\",\"\",'1. Order'!N109)","v":""},{"$f":"IF('1. Order'!O109=\"\",\"\",'1. Order'!O109)","v":{"$error":"#N/A"}},{"$f":"IF('1. Order'!P109=\"\",\"\",'1. Order'!P109)","v":{"$error":"#N/A"}},{"$f":"IF('1. Order'!Q109=\"\",\"\",'1. Order'!Q109)","v":""},{"$f":"IF('1. Order'!R109=\"\",\"\",'1. Order'!R109)","v":""},{"$f":"IF('1. Order'!S109=\"\",\"\",'1. Order'!S109)","v":""},{"$f":"IF('1. Order'!V109=\"\",\"\",'1. Order'!V109)","v":""},{"$f":"IF('1. Order'!W109=\"\",\"\",'1. Order'!W109)","v":""},{"$f":"IF('1. Order'!X109=\"\",\"\",'1. Order'!X109)","v":"EUR"},{"$f":"IF('1. Order'!Y109=\"\",\"\",'1. Order'!Y109)","v":""},{"$f":"IF('1. Order'!Z109=\"\",\"\",'1. Order'!Z109)","v":""},{"$f":"IF('1. Order'!AA109=\"\",\"\",'1. Order'!AA109)","v":""},null,{"$f":"IF('1. Order'!AS109=\"\",\"\",'1. Order'!AS109)","v":""},{"$f":"IF('1. Order'!AT109=\"\",\"\",'1. Order'!AT109)","v":""},null,null,null,null,null,null,null,{"$f":"IF('1. Order'!AX109=\"\",\"\",'1. Order'!AX109)","v":""},{"$f":"IF('1. Order'!AY109=\"\",\"\",'1. Order'!AY109)","v":""},{"$f":"IF('1. Order'!AZ109=\"\",\"\",'1. Order'!AZ109)","v":""},{"$f":"IF('1. Order'!BA109=\"\",\"\",'1. Order'!BA109)","v":""},{"$f":"IF('1. Order'!BC109=\"\",\"\",'1. Order'!BC109)","v":""},{"$f":"IF('1. Order'!BD109=\"\",\"\",'1. Order'!BD109)","v":6},{"$f":"IF('1. Order'!BE109=\"\",\"\",'1. Order'!BE109)","v":"None"},{"$f":"IF('1. Order'!BF109=\"\",\"\",'1. Order'!BF109)","v":"Parcel"},{"$f":"IF('1. Order'!BG109=\"\",\"\",'1. Order'!BG109)","v":"ZWO"}]
[{"$f":"IF('1. Order'!F110=\"\",\"\",'1. Order'!F110)","v":""},{"$f":"IF('1. Order'!G110=\"\",\"\",'1. Order'!G110)","v":""},{"$f":"IF('1. Order'!H110=\"\",\"\",'1. Order'!H110)","v":""},{"$f":"IF('1. Order'!I110=\"\",\"\",'1. Order'!I110)","v":""},{"$f":"IF('1. Order'!J110=\"\",\"\",'1. Order'!J110)","v":""},{"$f":"IF('1. Order'!K110=\"\",\"\",'1. Order'!K110)","v":""},{"$f":"IF('1. Order'!L110=\"\",\"\",'1. Order'!L110)","v":""},{"$f":"IF('1. Order'!M110=\"\",\"\",'1. Order'!M110)","v":""},{"$f":"IF('1. Order'!N110=\"\",\"\",'1. Order'!N110)","v":""},{"$f":"IF('1. Order'!O110=\"\",\"\",'1. Order'!O110)","v":{"$error":"#N/A"}},{"$f":"IF('1. Order'!P110=\"\",\"\",'1. Order'!P110)","v":{"$error":"#N/A"}},{"$f":"IF('1. Order'!Q110=\"\",\"\",'1. Order'!Q110)","v":""},{"$f":"IF('1. Order'!R110=\"\",\"\",'1. Order'!R110)","v":""},{"$f":"IF('1. Order'!S110=\"\",\"\",'1. Order'!S110)","v":""},{"$f":"IF('1. Order'!V110=\"\",\"\",'1. Order'!V110)","v":""},{"$f":"IF('1. Order'!W110=\"\",\"\",'1. Order'!W110)","v":""},{"$f":"IF('1. Order'!X110=\"\",\"\",'1. Order'!X110)","v":"EUR"},{"$f":"IF('1. Order'!Y110=\"\",\"\",'1. Order'!Y110)","v":""},{"$f":"IF('1. Order'!Z110=\"\",\"\",'1. Order'!Z110)","v":""},{"$f":"IF('1. Order'!AA110=\"\",\"\",'1. Order'!AA110)","v":""},null,{"$f":"IF('1. Order'!AS110=\"\",\"\",'1. Order'!AS110)","v":""},{"$f":"IF('1. Order'!AT110=\"\",\"\",'1. Order'!AT110)","v":""},null,null,null,null,null,null,null,{"$f":"IF('1. Order'!AX110=\"\",\"\",'1. Order'!AX110)","v":""},{"$f":"IF('1. Order'!AY110=\"\",\"\",'1. Order'!AY110)","v":""},{"$f":"IF('1. Order'!AZ110=\"\",\"\",'1. Order'!AZ110)","v":""},{"$f":"IF('1. Order'!BA110=\"\",\"\",'1. Order'!BA110)","v":""},{"$f":"IF('1. Order'!BC110=\"\",\"\",'1. Order'!BC110)","v":""},{"$f":"IF('1. Order'!BD110=\"\",\"\",'1. Order'!BD110)","v":6},{"$f":"IF('1. Order'!BE110=\"\",\"\",'1. Order'!BE110)","v":"None"},{"$f":"IF('1. Order'!BF110=\"\",\"\",'1. Order'!BF110)","v":"Parcel"},{"$f":"IF('1. Order'!BG110=\"\",\"\",'1. Order'!BG110)","v":"ZWO"}]
[{"$f":"IF('1. Order'!F111=\"\",\"\",'1. Order'!F111)","v":""},{"$f":"IF('1. Order'!G111=\"\",\"\",'1. Order'!G111)","v":""},{"$f":"IF('1. Order'!H111=\"\",\"\",'1. Order'!H111)","v":""},{"$f":"IF('1. Order'!I111=\"\",\"\",'1. Order'!I111)","v":""},{"$f":"IF('1. Order'!J111=\"\",\"\",'1. Order'!J111)","v":""},{"$f":"IF('1. Order'!K111=\"\",\"\",'1. Order'!K111)","v":""},{"$f":"IF('1. Order'!L111=\"\",\"\",'1. Order'!L111)","v":""},{"$f":"IF('1. Order'!M111=\"\",\"\",'1. Order'!M111)","v":""},{"$f":"IF('1. Order'!N111=\"\",\"\",'1. Order'!N111)","v":""},{"$f":"IF('1. Order'!O111=\"\",\"\",'1. Order'!O111)","v":{"$error":"#N/A"}},{"$f":"IF('1. Order'!P111=\"\",\"\",'1. Order'!P111)","v":{"$error":"#N/A"}},{"$f":"IF('1. Order'!Q111=\"\",\"\",'1. Order'!Q111)","v":""},{"$f":"IF('1. Order'!R111=\"\",\"\",'1. Order'!R111)","v":""},{"$f":"IF('1. Order'!S111=\"\",\"\",'1. Order'!S111)","v":""},{"$f":"IF('1. Order'!V111=\"\",\"\",'1. Order'!V111)","v":""},{"$f":"IF('1. Order'!W111=\"\",\"\",'1. Order'!W111)","v":""},{"$f":"IF('1. Order'!X111=\"\",\"\",'1. Order'!X111)","v":"EUR"},{"$f":"IF('1. Order'!Y111=\"\",\"\",'1. Order'!Y111)","v":""},{"$f":"IF('1. Order'!Z111=\"\",\"\",'1. Order'!Z111)","v":""},{"$f":"IF('1. Order'!AA111=\"\",\"\",'1. Order'!AA111)","v":""},null,{"$f":"IF('1. Order'!AS111=\"\",\"\",'1. Order'!AS111)","v":""},{"$f":"IF('1. Order'!AT111=\"\",\"\",'1. Order'!AT111)","v":""},null,null,null,null,null,null,null,{"$f":"IF('1. Order'!AX111=\"\",\"\",'1. Order'!AX111)","v":""},{"$f":"IF('1. Order'!AY111=\"\",\"\",'1. Order'!AY111)","v":""},{"$f":"IF('1. Order'!AZ111=\"\",\"\",'1. Order'!AZ111)","v":""},{"$f":"IF('1. Order'!BA111=\"\",\"\",'1. Order'!BA111)","v":""},{"$f":"IF('1. Order'!BC111=\"\",\"\",'1. Order'!BC111)","v":""},{"$f":"IF('1. Order'!BD111=\"\",\"\",'1. Order'!BD111)","v":6},{"$f":"IF('1. Order'!BE111=\"\",\"\",'1. Order'!BE111)","v":"None"},{"$f":"IF('1. Order'!BF111=\"\",\"\",'1. Order'!BF111)","v":"Parcel"},{"$f":"IF('1. Order'!BG111=\"\",\"\",'1. Order'!BG111)","v":"ZWO"}]
[{"$f":"IF('1. Order'!F112=\"\",\"\",'1. Order'!F112)","v":""},{"$f":"IF('1. Order'!G112=\"\",\"\",'1. Order'!G112)","v":""},{"$f":"IF('1. Order'!H112=\"\",\"\",'1. Order'!H112)","v":""},{"$f":"IF('1. Order'!I112=\"\",\"\",'1. Order'!I112)","v":""},{"$f":"IF('1. Order'!J112=\"\",\"\",'1. Order'!J112)","v":""},{"$f":"IF('1. Order'!K112=\"\",\"\",'1. Order'!K112)","v":""},{"$f":"IF('1. Order'!L112=\"\",\"\",'1. Order'!L112)","v":""},{"$f":"IF('1. Order'!M112=\"\",\"\",'1. Order'!M112)","v":""},{"$f":"IF('1. Order'!N112=\"\",\"\",'1. Order'!N112)","v":""},{"$f":"IF('1. Order'!O112=\"\",\"\",'1. Order'!O112)","v":{"$error":"#N/A"}},{"$f":"IF('1. Order'!P112=\"\",\"\",'1. Order'!P112)","v":{"$error":"#N/A"}},{"$f":"IF('1. Order'!Q112=\"\",\"\",'1. Order'!Q112)","v":""},{"$f":"IF('1. Order'!R112=\"\",\"\",'1. Order'!R112)","v":""},{"$f":"IF('1. Order'!S112=\"\",\"\",'1. Order'!S112)","v":""},{"$f":"IF('1. Order'!V112=\"\",\"\",'1. Order'!V112)","v":""},{"$f":"IF('1. Order'!W112=\"\",\"\",'1. Order'!W112)","v":""},{"$f":"IF('1. Order'!X112=\"\",\"\",'1. Order'!X112)","v":"EUR"},{"$f":"IF('1. Order'!Y112=\"\",\"\",'1. Order'!Y112)","v":""},{"$f":"IF('1. Order'!Z112=\"\",\"\",'1. Order'!Z112)","v":""},{"$f":"IF('1. Order'!AA112=\"\",\"\",'1. Order'!AA112)","v":""},null,{"$f":"IF('1. Order'!AS112=\"\",\"\",'1. Order'!AS112)","v":""},{"$f":"IF('1. Order'!AT112=\"\",\"\",'1. Order'!AT112)","v":""},null,null,null,null,null,null,null,{"$f":"IF('1. Order'!AX112=\"\",\"\",'1. Order'!AX112)","v":""},{"$f":"IF('1. Order'!AY112=\"\",\"\",'1. Order'!AY112)","v":""},{"$f":"IF('1. Order'!AZ112=\"\",\"\",'1. Order'!AZ112)","v":""},{"$f":"IF('1. Order'!BA112=\"\",\"\",'1. Order'!BA112)","v":""},{"$f":"IF('1. Order'!BC112=\"\",\"\",'1. Order'!BC112)","v":""},{"$f":"IF('1. Order'!BD112=\"\",\"\",'1. Order'!BD112)","v":6},{"$f":"IF('1. Order'!BE112=\"\",\"\",'1. Order'!BE112)","v":"None"},{"$f":"IF('1. Order'!BF112=\"\",\"\",'1. Order'!BF112)","v":"Parcel"},{"$f":"IF('1. Order'!BG112=\"\",\"\",'1. Order'!BG112)","v":"ZWO"}]
[{"$f":"IF('1. Order'!F113=\"\",\"\",'1. Order'!F113)","v":""},{"$f":"IF('1. Order'!G113=\"\",\"\",'1. Order'!G113)","v":""},{"$f":"IF('1. Order'!H113=\"\",\"\",'1. Order'!H113)","v":""},{"$f":"IF('1. Order'!I113=\"\",\"\",'1. Order'!I113)","v":""},{"$f":"IF('1. Order'!J113=\"\",\"\",'1. Order'!J113)","v":""},{"$f":"IF('1. Order'!K113=\"\",\"\",'1. Order'!K113)","v":""},{"$f":"IF('1. Order'!L113=\"\",\"\",'1. Order'!L113)","v":""},{"$f":"IF('1. Order'!M113=\"\",\"\",'1. Order'!M113)","v":""},{"$f":"IF('1. Order'!N113=\"\",\"\",'1. Order'!N113)","v":""},{"$f":"IF('1. Order'!O113=\"\",\"\",'1. Order'!O113)","v":{"$error":"#N/A"}},{"$f":"IF('1. Order'!P113=\"\",\"\",'1. Order'!P113)","v":{"$error":"#N/A"}},{"$f":"IF('1. Order'!Q113=\"\",\"\",'1. Order'!Q113)","v":""},{"$f":"IF('1. Order'!R113=\"\",\"\",'1. Order'!R113)","v":""},{"$f":"IF('1. Order'!S113=\"\",\"\",'1. Order'!S113)","v":""},{"$f":"IF('1. Order'!V113=\"\",\"\",'1. Order'!V113)","v":""},{"$f":"IF('1. Order'!W113=\"\",\"\",'1. Order'!W113)","v":""},{"$f":"IF('1. Order'!X113=\"\",\"\",'1. Order'!X113)","v":"EUR"},{"$f":"IF('1. Order'!Y113=\"\",\"\",'1. Order'!Y113)","v":""},{"$f":"IF('1. Order'!Z113=\"\",\"\",'1. Order'!Z113)","v":""},{"$f":"IF('1. Order'!AA113=\"\",\"\",'1. Order'!AA113)","v":""},null,{"$f":"IF('1. Order'!AS113=\"\",\"\",'1. Order'!AS113)","v":""},{"$f":"IF('1. Order'!AT113=\"\",\"\",'1. Order'!AT113)","v":""},null,null,null,null,null,null,null,{"$f":"IF('1. Order'!AX113=\"\",\"\",'1. Order'!AX113)","v":""},{"$f":"IF('1. Order'!AY113=\"\",\"\",'1. Order'!AY113)","v":""},{"$f":"IF('1. Order'!AZ113=\"\",\"\",'1. Order'!AZ113)","v":""},{"$f":"IF('1. Order'!BA113=\"\",\"\",'1. Order'!BA113)","v":""},{"$f":"IF('1. Order'!BC113=\"\",\"\",'1. Order'!BC113)","v":""},{"$f":"IF('1. Order'!BD113=\"\",\"\",'1. Order'!BD113)","v":6},{"$f":"IF('1. Order'!BE113=\"\",\"\",'1. Order'!BE113)","v":"None"},{"$f":"IF('1. Order'!BF113=\"\",\"\",'1. Order'!BF113)","v":"Parcel"},{"$f":"IF('1. Order'!BG113=\"\",\"\",'1. Order'!BG113)","v":"ZWO"}]
[{"$f":"IF('1. Order'!F114=\"\",\"\",'1. Order'!F114)","v":""},{"$f":"IF('1. Order'!G114=\"\",\"\",'1. Order'!G114)","v":""},{"$f":"IF('1. Order'!H114=\"\",\"\",'1. Order'!H114)","v":""},{"$f":"IF('1. Order'!I114=\"\",\"\",'1. Order'!I114)","v":""},{"$f":"IF('1. Order'!J114=\"\",\"\",'1. Order'!J114)","v":""},{"$f":"IF('1. Order'!K114=\"\",\"\",'1. Order'!K114)","v":""},{"$f":"IF('1. Order'!L114=\"\",\"\",'1. Order'!L114)","v":""},{"$f":"IF('1. Order'!M114=\"\",\"\",'1. Order'!M114)","v":""},{"$f":"IF('1. Order'!N114=\"\",\"\",'1. Order'!N114)","v":""},{"$f":"IF('1. Order'!O114=\"\",\"\",'1. Order'!O114)","v":{"$error":"#N/A"}},{"$f":"IF('1. Order'!P114=\"\",\"\",'1. Order'!P114)","v":{"$error":"#N/A"}},{"$f":"IF('1. Order'!Q114=\"\",\"\",'1. Order'!Q114)","v":""},{"$f":"IF('1. Order'!R114=\"\",\"\",'1. Order'!R114)","v":""},{"$f":"IF('1. Order'!S114=\"\",\"\",'1. Order'!S114)","v":""},{"$f":"IF('1. Order'!V114=\"\",\"\",'1. Order'!V114)","v":""},{"$f":"IF('1. Order'!W114=\"\",\"\",'1. Order'!W114)","v":""},{"$f":"IF('1. Order'!X114=\"\",\"\",'1. Order'!X114)","v":"EUR"},{"$f":"IF('1. Order'!Y114=\"\",\"\",'1. Order'!Y114)","v":""},{"$f":"IF('1. Order'!Z114=\"\",\"\",'1. Order'!Z114)","v":""},{"$f":"IF('1. Order'!AA114=\"\",\"\",'1. Order'!AA114)","v":""},null,{"$f":"IF('1. Order'!AS114=\"\",\"\",'1. Order'!AS114)","v":""},{"$f":"IF('1. Order'!AT114=\"\",\"\",'1. Order'!AT114)","v":""},null,null,null,null,null,null,null,{"$f":"IF('1. Order'!AX114=\"\",\"\",'1. Order'!AX114)","v":""},{"$f":"IF('1. Order'!AY114=\"\",\"\",'1. Order'!AY114)","v":""},{"$f":"IF('1. Order'!AZ114=\"\",\"\",'1. Order'!AZ114)","v":""},{"$f":"IF('1. Order'!BA114=\"\",\"\",'1. Order'!BA114)","v":""},{"$f":"IF('1. Order'!BC114=\"\",\"\",'1. Order'!BC114)","v":""},{"$f":"IF('1. Order'!BD114=\"\",\"\",'1. Order'!BD114)","v":6},{"$f":"IF('1. Order'!BE114=\"\",\"\",'1. Order'!BE114)","v":"None"},{"$f":"IF('1. Order'!BF114=\"\",\"\",'1. Order'!BF114)","v":"Parcel"},{"$f":"IF('1. Order'!BG114=\"\",\"\",'1. Order'!BG114)","v":"ZWO"}]
[{"$f":"IF('1. Order'!F115=\"\",\"\",'1. Order'!F115)","v":""},{"$f":"IF('1. Order'!G115=\"\",\"\",'1. Order'!G115)","v":""},{"$f":"IF('1. Order'!H115=\"\",\"\",'1. Order'!H115)","v":""},{"$f":"IF('1. Order'!I115=\"\",\"\",'1. Order'!I115)","v":""},{"$f":"IF('1. Order'!J115=\"\",\"\",'1. Order'!J115)","v":""},{"$f":"IF('1. Order'!K115=\"\",\"\",'1. Order'!K115)","v":""},{"$f":"IF('1. Order'!L115=\"\",\"\",'1. Order'!L115)","v":""},{"$f":"IF('1. Order'!M115=\"\",\"\",'1. Order'!M115)","v":""},{"$f":"IF('1. Order'!N115=\"\",\"\",'1. Order'!N115)","v":""},{"$f":"IF('1. Order'!O115=\"\",\"\",'1. Order'!O115)","v":{"$error":"#N/A"}},{"$f":"IF('1. Order'!P115=\"\",\"\",'1. Order'!P115)","v":{"$error":"#N/A"}},{"$f":"IF('1. Order'!Q115=\"\",\"\",'1. Order'!Q115)","v":""},{"$f":"IF('1. Order'!R115=\"\",\"\",'1. Order'!R115)","v":""},{"$f":"IF('1. Order'!S115=\"\",\"\",'1. Order'!S115)","v":""},{"$f":"IF('1. Order'!V115=\"\",\"\",'1. Order'!V115)","v":""},{"$f":"IF('1. Order'!W115=\"\",\"\",'1. Order'!W115)","v":""},{"$f":"IF('1. Order'!X115=\"\",\"\",'1. Order'!X115)","v":"EUR"},{"$f":"IF('1. Order'!Y115=\"\",\"\",'1. Order'!Y115)","v":""},{"$f":"IF('1. Order'!Z115=\"\",\"\",'1. Order'!Z115)","v":""},{"$f":"IF('1. Order'!AA115=\"\",\"\",'1. Order'!AA115)","v":""},null,{"$f":"IF('1. Order'!AS115=\"\",\"\",'1. Order'!AS115)","v":""},{"$f":"IF('1. Order'!AT115=\"\",\"\",'1. Order'!AT115)","v":""},null,null,null,null,null,null,null,{"$f":"IF('1. Order'!AX115=\"\",\"\",'1. Order'!AX115)","v":""},{"$f":"IF('1. Order'!AY115=\"\",\"\",'1. Order'!AY115)","v":""},{"$f":"IF('1. Order'!AZ115=\"\",\"\",'1. Order'!AZ115)","v":""},{"$f":"IF('1. Order'!BA115=\"\",\"\",'1. Order'!BA115)","v":""},{"$f":"IF('1. Order'!BC115=\"\",\"\",'1. Order'!BC115)","v":""},{"$f":"IF('1. Order'!BD115=\"\",\"\",'1. Order'!BD115)","v":6},{"$f":"IF('1. Order'!BE115=\"\",\"\",'1. Order'!BE115)","v":"None"},{"$f":"IF('1. Order'!BF115=\"\",\"\",'1. Order'!BF115)","v":"Parcel"},{"$f":"IF('1. Order'!BG115=\"\",\"\",'1. Order'!BG115)","v":"ZWO"}]
[{"$f":"IF('1. Order'!F116=\"\",\"\",'1. Order'!F116)","v":""},{"$f":"IF('1. Order'!G116=\"\",\"\",'1. Order'!G116)","v":""},{"$f":"IF('1. Order'!H116=\"\",\"\",'1. Order'!H116)","v":""},{"$f":"IF('1. Order'!I116=\"\",\"\",'1. Order'!I116)","v":""},{"$f":"IF('1. Order'!J116=\"\",\"\",'1. Order'!J116)","v":""},{"$f":"IF('1. Order'!K116=\"\",\"\",'1. Order'!K116)","v":""},{"$f":"IF('1. Order'!L116=\"\",\"\",'1. Order'!L116)","v":""},{"$f":"IF('1. Order'!M116=\"\",\"\",'1. Order'!M116)","v":""},{"$f":"IF('1. Order'!N116=\"\",\"\",'1. Order'!N116)","v":""},{"$f":"IF('1. Order'!O116=\"\",\"\",'1. Order'!O116)","v":{"$error":"#N/A"}},{"$f":"IF('1. Order'!P116=\"\",\"\",'1. Order'!P116)","v":{"$error":"#N/A"}},{"$f":"IF('1. Order'!Q116=\"\",\"\",'1. Order'!Q116)","v":""},{"$f":"IF('1. Order'!R116=\"\",\"\",'1. Order'!R116)","v":""},{"$f":"IF('1. Order'!S116=\"\",\"\",'1. Order'!S116)","v":""},{"$f":"IF('1. Order'!V116=\"\",\"\",'1. Order'!V116)","v":""},{"$f":"IF('1. Order'!W116=\"\",\"\",'1. Order'!W116)","v":""},{"$f":"IF('1. Order'!X116=\"\",\"\",'1. Order'!X116)","v":"EUR"},{"$f":"IF('1. Order'!Y116=\"\",\"\",'1. Order'!Y116)","v":""},{"$f":"IF('1. Order'!Z116=\"\",\"\",'1. Order'!Z116)","v":""},{"$f":"IF('1. Order'!AA116=\"\",\"\",'1. Order'!AA116)","v":""},null,{"$f":"IF('1. Order'!AS116=\"\",\"\",'1. Order'!AS116)","v":""},{"$f":"IF('1. Order'!AT116=\"\",\"\",'1. Order'!AT116)","v":""},null,null,null,null,null,null,null,{"$f":"IF('1. Order'!AX116=\"\",\"\",'1. Order'!AX116)","v":""},{"$f":"IF('1. Order'!AY116=\"\",\"\",'1. Order'!AY116)","v":""},{"$f":"IF('1. Order'!AZ116=\"\",\"\",'1. Order'!AZ116)","v":""},{"$f":"IF('1. Order'!BA116=\"\",\"\",'1. Order'!BA116)","v":""},{"$f":"IF('1. Order'!BC116=\"\",\"\",'1. Order'!BC116)","v":""},{"$f":"IF('1. Order'!BD116=\"\",\"\",'1. Order'!BD116)","v":6},{"$f":"IF('1. Order'!BE116=\"\",\"\",'1. Order'!BE116)","v":"None"},{"$f":"IF('1. Order'!BF116=\"\",\"\",'1. Order'!BF116)","v":"Parcel"},{"$f":"IF('1. Order'!BG116=\"\",\"\",'1. Order'!BG116)","v":"ZWO"}]
[{"$f":"IF('1. Order'!F117=\"\",\"\",'1. Order'!F117)","v":""},{"$f":"IF('1. Order'!G117=\"\",\"\",'1. Order'!G117)","v":""},{"$f":"IF('1. Order'!H117=\"\",\"\",'1. Order'!H117)","v":""},{"$f":"IF('1. Order'!I117=\"\",\"\",'1. Order'!I117)","v":""},{"$f":"IF('1. Order'!J117=\"\",\"\",'1. Order'!J117)","v":""},{"$f":"IF('1. Order'!K117=\"\",\"\",'1. Order'!K117)","v":""},{"$f":"IF('1. Order'!L117=\"\",\"\",'1. Order'!L117)","v":""},{"$f":"IF('1. Order'!M117=\"\",\"\",'1. Order'!M117)","v":""},{"$f":"IF('1. Order'!N117=\"\",\"\",'1. Order'!N117)","v":""},{"$f":"IF('1. Order'!O117=\"\",\"\",'1. Order'!O117)","v":{"$error":"#N/A"}},{"$f":"IF('1. Order'!P117=\"\",\"\",'1. Order'!P117)","v":{"$error":"#N/A"}},{"$f":"IF('1. Order'!Q117=\"\",\"\",'1. Order'!Q117)","v":""},{"$f":"IF('1. Order'!R117=\"\",\"\",'1. Order'!R117)","v":""},{"$f":"IF('1. Order'!S117=\"\",\"\",'1. Order'!S117)","v":""},{"$f":"IF('1. Order'!V117=\"\",\"\",'1. Order'!V117)","v":""},{"$f":"IF('1. Order'!W117=\"\",\"\",'1. Order'!W117)","v":""},{"$f":"IF('1. Order'!X117=\"\",\"\",'1. Order'!X117)","v":"EUR"},{"$f":"IF('1. Order'!Y117=\"\",\"\",'1. Order'!Y117)","v":""},{"$f":"IF('1. Order'!Z117=\"\",\"\",'1. Order'!Z117)","v":""},{"$f":"IF('1. Order'!AA117=\"\",\"\",'1. Order'!AA117)","v":""},null,{"$f":"IF('1. Order'!AS117=\"\",\"\",'1. Order'!AS117)","v":""},{"$f":"IF('1. Order'!AT117=\"\",\"\",'1. Order'!AT117)","v":""},null,null,null,null,null,null,null,{"$f":"IF('1. Order'!AX117=\"\",\"\",'1. Order'!AX117)","v":""},{"$f":"IF('1. Order'!AY117=\"\",\"\",'1. Order'!AY117)","v":""},{"$f":"IF('1. Order'!AZ117=\"\",\"\",'1. Order'!AZ117)","v":""},{"$f":"IF('1. Order'!BA117=\"\",\"\",'1. Order'!BA117)","v":""},{"$f":"IF('1. Order'!BC117=\"\",\"\",'1. Order'!BC117)","v":""},{"$f":"IF('1. Order'!BD117=\"\",\"\",'1. Order'!BD117)","v":6},{"$f":"IF('1. Order'!BE117=\"\",\"\",'1. Order'!BE117)","v":"None"},{"$f":"IF('1. Order'!BF117=\"\",\"\",'1. Order'!BF117)","v":"Parcel"},{"$f":"IF('1. Order'!BG117=\"\",\"\",'1. Order'!BG117)","v":"ZWO"}]
[{"$f":"IF('1. Order'!F118=\"\",\"\",'1. Order'!F118)","v":""},{"$f":"IF('1. Order'!G118=\"\",\"\",'1. Order'!G118)","v":""},{"$f":"IF('1. Order'!H118=\"\",\"\",'1. Order'!H118)","v":""},{"$f":"IF('1. Order'!I118=\"\",\"\",'1. Order'!I118)","v":""},{"$f":"IF('1. Order'!J118=\"\",\"\",'1. Order'!J118)","v":""},{"$f":"IF('1. Order'!K118=\"\",\"\",'1. Order'!K118)","v":""},{"$f":"IF('1. Order'!L118=\"\",\"\",'1. Order'!L118)","v":""},{"$f":"IF('1. Order'!M118=\"\",\"\",'1. Order'!M118)","v":""},{"$f":"IF('1. Order'!N118=\"\",\"\",'1. Order'!N118)","v":""},{"$f":"IF('1. Order'!O118=\"\",\"\",'1. Order'!O118)","v":{"$error":"#N/A"}},{"$f":"IF('1. Order'!P118=\"\",\"\",'1. Order'!P118)","v":{"$error":"#N/A"}},{"$f":"IF('1. Order'!Q118=\"\",\"\",'1. Order'!Q118)","v":""},{"$f":"IF('1. Order'!R118=\"\",\"\",'1. Order'!R118)","v":""},{"$f":"IF('1. Order'!S118=\"\",\"\",'1. Order'!S118)","v":""},{"$f":"IF('1. Order'!V118=\"\",\"\",'1. Order'!V118)","v":""},{"$f":"IF('1. Order'!W118=\"\",\"\",'1. Order'!W118)","v":""},{"$f":"IF('1. Order'!X118=\"\",\"\",'1. Order'!X118)","v":"EUR"},{"$f":"IF('1. Order'!Y118=\"\",\"\",'1. Order'!Y118)","v":""},{"$f":"IF('1. Order'!Z118=\"\",\"\",'1. Order'!Z118)","v":""},{"$f":"IF('1. Order'!AA118=\"\",\"\",'1. Order'!AA118)","v":""},null,{"$f":"IF('1. Order'!AS118=\"\",\"\",'1. Order'!AS118)","v":""},{"$f":"IF('1. Order'!AT118=\"\",\"\",'1. Order'!AT118)","v":""},null,null,null,null,null,null,null,{"$f":"IF('1. Order'!AX118=\"\",\"\",'1. Order'!AX118)","v":""},{"$f":"IF('1. Order'!AY118=\"\",\"\",'1. Order'!AY118)","v":""},{"$f":"IF('1. Order'!AZ118=\"\",\"\",'1. Order'!AZ118)","v":""},{"$f":"IF('1. Order'!BA118=\"\",\"\",'1. Order'!BA118)","v":""},{"$f":"IF('1. Order'!BC118=\"\",\"\",'1. Order'!BC118)","v":""},{"$f":"IF('1. Order'!BD118=\"\",\"\",'1. Order'!BD118)","v":6},{"$f":"IF('1. Order'!BE118=\"\",\"\",'1. Order'!BE118)","v":"None"},{"$f":"IF('1. Order'!BF118=\"\",\"\",'1. Order'!BF118)","v":"Parcel"},{"$f":"IF('1. Order'!BG118=\"\",\"\",'1. Order'!BG118)","v":"ZWO"}]
[{"$f":"IF('1. Order'!F119=\"\",\"\",'1. Order'!F119)","v":""},{"$f":"IF('1. Order'!G119=\"\",\"\",'1. Order'!G119)","v":""},{"$f":"IF('1. Order'!H119=\"\",\"\",'1. Order'!H119)","v":""},{"$f":"IF('1. Order'!I119=\"\",\"\",'1. Order'!I119)","v":""},{"$f":"IF('1. Order'!J119=\"\",\"\",'1. Order'!J119)","v":""},{"$f":"IF('1. Order'!K119=\"\",\"\",'1. Order'!K119)","v":""},{"$f":"IF('1. Order'!L119=\"\",\"\",'1. Order'!L119)","v":""},{"$f":"IF('1. Order'!M119=\"\",\"\",'1. Order'!M119)","v":""},{"$f":"IF('1. Order'!N119=\"\",\"\",'1. Order'!N119)","v":""},{"$f":"IF('1. Order'!O119=\"\",\"\",'1. Order'!O119)","v":{"$error":"#N/A"}},{"$f":"IF('1. Order'!P119=\"\",\"\",'1. Order'!P119)","v":{"$error":"#N/A"}},{"$f":"IF('1. Order'!Q119=\"\",\"\",'1. Order'!Q119)","v":""},{"$f":"IF('1. Order'!R119=\"\",\"\",'1. Order'!R119)","v":""},{"$f":"IF('1. Order'!S119=\"\",\"\",'1. Order'!S119)","v":""},{"$f":"IF('1. Order'!V119=\"\",\"\",'1. Order'!V119)","v":""},{"$f":"IF('1. Order'!W119=\"\",\"\",'1. Order'!W119)","v":""},{"$f":"IF('1. Order'!X119=\"\",\"\",'1. Order'!X119)","v":"EUR"},{"$f":"IF('1. Order'!Y119=\"\",\"\",'1. Order'!Y119)","v":""},{"$f":"IF('1. Order'!Z119=\"\",\"\",'1. Order'!Z119)","v":""},{"$f":"IF('1. Order'!AA119=\"\",\"\",'1. Order'!AA119)","v":""},null,{"$f":"IF('1. Order'!AS119=\"\",\"\",'1. Order'!AS119)","v":""},{"$f":"IF('1. Order'!AT119=\"\",\"\",'1. Order'!AT119)","v":""},null,null,null,null,null,null,null,{"$f":"IF('1. Order'!AX119=\"\",\"\",'1. Order'!AX119)","v":""},{"$f":"IF('1. Order'!AY119=\"\",\"\",'1. Order'!AY119)","v":""},{"$f":"IF('1. Order'!AZ119=\"\",\"\",'1. Order'!AZ119)","v":""},{"$f":"IF('1. Order'!BA119=\"\",\"\",'1. Order'!BA119)","v":""},{"$f":"IF('1. Order'!BC119=\"\",\"\",'1. Order'!BC119)","v":""},{"$f":"IF('1. Order'!BD119=\"\",\"\",'1. Order'!BD119)","v":6},{"$f":"IF('1. Order'!BE119=\"\",\"\",'1. Order'!BE119)","v":"None"},{"$f":"IF('1. Order'!BF119=\"\",\"\",'1. Order'!BF119)","v":"Parcel"},{"$f":"IF('1. Order'!BG119=\"\",\"\",'1. Order'!BG119)","v":"ZWO"}]
[{"$f":"IF('1. Order'!F120=\"\",\"\",'1. Order'!F120)","v":""},{"$f":"IF('1. Order'!G120=\"\",\"\",'1. Order'!G120)","v":""},{"$f":"IF('1. Order'!H120=\"\",\"\",'1. Order'!H120)","v":""},{"$f":"IF('1. Order'!I120=\"\",\"\",'1. Order'!I120)","v":""},{"$f":"IF('1. Order'!J120=\"\",\"\",'1. Order'!J120)","v":""},{"$f":"IF('1. Order'!K120=\"\",\"\",'1. Order'!K120)","v":""},{"$f":"IF('1. Order'!L120=\"\",\"\",'1. Order'!L120)","v":""},{"$f":"IF('1. Order'!M120=\"\",\"\",'1. Order'!M120)","v":""},{"$f":"IF('1. Order'!N120=\"\",\"\",'1. Order'!N120)","v":""},{"$f":"IF('1. Order'!O120=\"\",\"\",'1. Order'!O120)","v":{"$error":"#N/A"}},{"$f":"IF('1. Order'!P120=\"\",\"\",'1. Order'!P120)","v":{"$error":"#N/A"}},{"$f":"IF('1. Order'!Q120=\"\",\"\",'1. Order'!Q120)","v":""},{"$f":"IF('1. Order'!R120=\"\",\"\",'1. Order'!R120)","v":""},{"$f":"IF('1. Order'!S120=\"\",\"\",'1. Order'!S120)","v":""},{"$f":"IF('1. Order'!V120=\"\",\"\",'1. Order'!V120)","v":""},{"$f":"IF('1. Order'!W120=\"\",\"\",'1. Order'!W120)","v":""},{"$f":"IF('1. Order'!X120=\"\",\"\",'1. Order'!X120)","v":"EUR"},{"$f":"IF('1. Order'!Y120=\"\",\"\",'1. Order'!Y120)","v":""},{"$f":"IF('1. Order'!Z120=\"\",\"\",'1. Order'!Z120)","v":""},{"$f":"IF('1. Order'!AA120=\"\",\"\",'1. Order'!AA120)","v":""},null,{"$f":"IF('1. Order'!AS120=\"\",\"\",'1. Order'!AS120)","v":""},{"$f":"IF('1. Order'!AT120=\"\",\"\",'1. Order'!AT120)","v":""},null,null,null,null,null,null,null,{"$f":"IF('1. Order'!AX120=\"\",\"\",'1. Order'!AX120)","v":""},{"$f":"IF('1. Order'!AY120=\"\",\"\",'1. Order'!AY120)","v":""},{"$f":"IF('1. Order'!AZ120=\"\",\"\",'1. Order'!AZ120)","v":""},{"$f":"IF('1. Order'!BA120=\"\",\"\",'1. Order'!BA120)","v":""},{"$f":"IF('1. Order'!BC120=\"\",\"\",'1. Order'!BC120)","v":""},{"$f":"IF('1. Order'!BD120=\"\",\"\",'1. Order'!BD120)","v":6},{"$f":"IF('1. Order'!BE120=\"\",\"\",'1. Order'!BE120)","v":"None"},{"$f":"IF('1. Order'!BF120=\"\",\"\",'1. Order'!BF120)","v":"Parcel"},{"$f":"IF('1. Order'!BG120=\"\",\"\",'1. Order'!BG120)","v":"ZWO"}]
[{"$f":"IF('1. Order'!F121=\"\",\"\",'1. Order'!F121)","v":""},{"$f":"IF('1. Order'!G121=\"\",\"\",'1. Order'!G121)","v":""},{"$f":"IF('1. Order'!H121=\"\",\"\",'1. Order'!H121)","v":""},{"$f":"IF('1. Order'!I121=\"\",\"\",'1. Order'!I121)","v":""},{"$f":"IF('1. Order'!J121=\"\",\"\",'1. Order'!J121)","v":""},{"$f":"IF('1. Order'!K121=\"\",\"\",'1. Order'!K121)","v":""},{"$f":"IF('1. Order'!L121=\"\",\"\",'1. Order'!L121)","v":""},{"$f":"IF('1. Order'!M121=\"\",\"\",'1. Order'!M121)","v":""},{"$f":"IF('1. Order'!N121=\"\",\"\",'1. Order'!N121)","v":""},{"$f":"IF('1. Order'!O121=\"\",\"\",'1. Order'!O121)","v":{"$error":"#N/A"}},{"$f":"IF('1. Order'!P121=\"\",\"\",'1. Order'!P121)","v":{"$error":"#N/A"}},{"$f":"IF('1. Order'!Q121=\"\",\"\",'1. Order'!Q121)","v":""},{"$f":"IF('1. Order'!R121=\"\",\"\",'1. Order'!R121)","v":""},{"$f":"IF('1. Order'!S121=\"\",\"\",'1. Order'!S121)","v":""},{"$f":"IF('1. Order'!V121=\"\",\"\",'1. Order'!V121)","v":""},{"$f":"IF('1. Order'!W121=\"\",\"\",'1. Order'!W121)","v":""},{"$f":"IF('1. Order'!X121=\"\",\"\",'1. Order'!X121)","v":"EUR"},{"$f":"IF('1. Order'!Y121=\"\",\"\",'1. Order'!Y121)","v":""},{"$f":"IF('1. Order'!Z121=\"\",\"\",'1. Order'!Z121)","v":""},{"$f":"IF('1. Order'!AA121=\"\",\"\",'1. Order'!AA121)","v":""},null,{"$f":"IF('1. Order'!AS121=\"\",\"\",'1. Order'!AS121)","v":""},{"$f":"IF('1. Order'!AT121=\"\",\"\",'1. Order'!AT121)","v":""},null,null,null,null,null,null,null,{"$f":"IF('1. Order'!AX121=\"\",\"\",'1. Order'!AX121)","v":""},{"$f":"IF('1. Order'!AY121=\"\",\"\",'1. Order'!AY121)","v":""},{"$f":"IF('1. Order'!AZ121=\"\",\"\",'1. Order'!AZ121)","v":""},{"$f":"IF('1. Order'!BA121=\"\",\"\",'1. Order'!BA121)","v":""},{"$f":"IF('1. Order'!BC121=\"\",\"\",'1. Order'!BC121)","v":""},{"$f":"IF('1. Order'!BD121=\"\",\"\",'1. Order'!BD121)","v":6},{"$f":"IF('1. Order'!BE121=\"\",\"\",'1. Order'!BE121)","v":"None"},{"$f":"IF('1. Order'!BF121=\"\",\"\",'1. Order'!BF121)","v":"Parcel"},{"$f":"IF('1. Order'!BG121=\"\",\"\",'1. Order'!BG121)","v":"ZWO"}]
[{"$f":"IF('1. Order'!F122=\"\",\"\",'1. Order'!F122)","v":""},{"$f":"IF('1. Order'!G122=\"\",\"\",'1. Order'!G122)","v":""},{"$f":"IF('1. Order'!H122=\"\",\"\",'1. Order'!H122)","v":""},{"$f":"IF('1. Order'!I122=\"\",\"\",'1. Order'!I122)","v":""},{"$f":"IF('1. Order'!J122=\"\",\"\",'1. Order'!J122)","v":""},{"$f":"IF('1. Order'!K122=\"\",\"\",'1. Order'!K122)","v":""},{"$f":"IF('1. Order'!L122=\"\",\"\",'1. Order'!L122)","v":""},{"$f":"IF('1. Order'!M122=\"\",\"\",'1. Order'!M122)","v":""},{"$f":"IF('1. Order'!N122=\"\",\"\",'1. Order'!N122)","v":""},{"$f":"IF('1. Order'!O122=\"\",\"\",'1. Order'!O122)","v":{"$error":"#N/A"}},{"$f":"IF('1. Order'!P122=\"\",\"\",'1. Order'!P122)","v":{"$error":"#N/A"}},{"$f":"IF('1. Order'!Q122=\"\",\"\",'1. Order'!Q122)","v":""},{"$f":"IF('1. Order'!R122=\"\",\"\",'1. Order'!R122)","v":""},{"$f":"IF('1. Order'!S122=\"\",\"\",'1. Order'!S122)","v":""},{"$f":"IF('1. Order'!V122=\"\",\"\",'1. Order'!V122)","v":""},{"$f":"IF('1. Order'!W122=\"\",\"\",'1. Order'!W122)","v":""},{"$f":"IF('1. Order'!X122=\"\",\"\",'1. Order'!X122)","v":"EUR"},{"$f":"IF('1. Order'!Y122=\"\",\"\",'1. Order'!Y122)","v":""},{"$f":"IF('1. Order'!Z122=\"\",\"\",'1. Order'!Z122)","v":""},{"$f":"IF('1. Order'!AA122=\"\",\"\",'1. Order'!AA122)","v":""},null,{"$f":"IF('1. Order'!AS122=\"\",\"\",'1. Order'!AS122)","v":""},{"$f":"IF('1. Order'!AT122=\"\",\"\",'1. Order'!AT122)","v":""},null,null,null,null,null,null,null,{"$f":"IF('1. Order'!AX122=\"\",\"\",'1. Order'!AX122)","v":""},{"$f":"IF('1. Order'!AY122=\"\",\"\",'1. Order'!AY122)","v":""},{"$f":"IF('1. Order'!AZ122=\"\",\"\",'1. Order'!AZ122)","v":""},{"$f":"IF('1. Order'!BA122=\"\",\"\",'1. Order'!BA122)","v":""},{"$f":"IF('1. Order'!BC122=\"\",\"\",'1. Order'!BC122)","v":""},{"$f":"IF('1. Order'!BD122=\"\",\"\",'1. Order'!BD122)","v":6},{"$f":"IF('1. Order'!BE122=\"\",\"\",'1. Order'!BE122)","v":"None"},{"$f":"IF('1. Order'!BF122=\"\",\"\",'1. Order'!BF122)","v":"Parcel"},{"$f":"IF('1. Order'!BG122=\"\",\"\",'1. Order'!BG122)","v":"ZWO"}]
[{"$f":"IF('1. Order'!F123=\"\",\"\",'1. Order'!F123)","v":""},{"$f":"IF('1. Order'!G123=\"\",\"\",'1. Order'!G123)","v":""},{"$f":"IF('1. Order'!H123=\"\",\"\",'1. Order'!H123)","v":""},{"$f":"IF('1. Order'!I123=\"\",\"\",'1. Order'!I123)","v":""},{"$f":"IF('1. Order'!J123=\"\",\"\",'1. Order'!J123)","v":""},{"$f":"IF('1. Order'!K123=\"\",\"\",'1. Order'!K123)","v":""},{"$f":"IF('1. Order'!L123=\"\",\"\",'1. Order'!L123)","v":""},{"$f":"IF('1. Order'!M123=\"\",\"\",'1. Order'!M123)","v":""},{"$f":"IF('1. Order'!N123=\"\",\"\",'1. Order'!N123)","v":""},{"$f":"IF('1. Order'!O123=\"\",\"\",'1. Order'!O123)","v":{"$error":"#N/A"}},{"$f":"IF('1. Order'!P123=\"\",\"\",'1. Order'!P123)","v":{"$error":"#N/A"}},{"$f":"IF('1. Order'!Q123=\"\",\"\",'1. Order'!Q123)","v":""},{"$f":"IF('1. Order'!R123=\"\",\"\",'1. Order'!R123)","v":""},{"$f":"IF('1. Order'!S123=\"\",\"\",'1. Order'!S123)","v":""},{"$f":"IF('1. Order'!V123=\"\",\"\",'1. Order'!V123)","v":""},{"$f":"IF('1. Order'!W123=\"\",\"\",'1. Order'!W123)","v":""},{"$f":"IF('1. Order'!X123=\"\",\"\",'1. Order'!X123)","v":"EUR"},{"$f":"IF('1. Order'!Y123=\"\",\"\",'1. Order'!Y123)","v":""},{"$f":"IF('1. Order'!Z123=\"\",\"\",'1. Order'!Z123)","v":""},{"$f":"IF('1. Order'!AA123=\"\",\"\",'1. Order'!AA123)","v":""},null,{"$f":"IF('1. Order'!AS123=\"\",\"\",'1. Order'!AS123)","v":""},{"$f":"IF('1. Order'!AT123=\"\",\"\",'1. Order'!AT123)","v":""},null,null,null,null,null,null,null,{"$f":"IF('1. Order'!AX123=\"\",\"\",'1. Order'!AX123)","v":""},{"$f":"IF('1. Order'!AY123=\"\",\"\",'1. Order'!AY123)","v":""},{"$f":"IF('1. Order'!AZ123=\"\",\"\",'1. Order'!AZ123)","v":""},{"$f":"IF('1. Order'!BA123=\"\",\"\",'1. Order'!BA123)","v":""},{"$f":"IF('1. Order'!BC123=\"\",\"\",'1. Order'!BC123)","v":""},{"$f":"IF('1. Order'!BD123=\"\",\"\",'1. Order'!BD123)","v":6},{"$f":"IF('1. Order'!BE123=\"\",\"\",'1. Order'!BE123)","v":"None"},{"$f":"IF('1. Order'!BF123=\"\",\"\",'1. Order'!BF123)","v":"Parcel"},{"$f":"IF('1. Order'!BG123=\"\",\"\",'1. Order'!BG123)","v":"ZWO"}]
[{"$f":"IF('1. Order'!F124=\"\",\"\",'1. Order'!F124)","v":""},{"$f":"IF('1. Order'!G124=\"\",\"\",'1. Order'!G124)","v":""},{"$f":"IF('1. Order'!H124=\"\",\"\",'1. Order'!H124)","v":""},{"$f":"IF('1. Order'!I124=\"\",\"\",'1. Order'!I124)","v":""},{"$f":"IF('1. Order'!J124=\"\",\"\",'1. Order'!J124)","v":""},{"$f":"IF('1. Order'!K124=\"\",\"\",'1. Order'!K124)","v":""},{"$f":"IF('1. Order'!L124=\"\",\"\",'1. Order'!L124)","v":""},{"$f":"IF('1. Order'!M124=\"\",\"\",'1. Order'!M124)","v":""},{"$f":"IF('1. Order'!N124=\"\",\"\",'1. Order'!N124)","v":""},{"$f":"IF('1. Order'!O124=\"\",\"\",'1. Order'!O124)","v":{"$error":"#N/A"}},{"$f":"IF('1. Order'!P124=\"\",\"\",'1. Order'!P124)","v":{"$error":"#N/A"}},{"$f":"IF('1. Order'!Q124=\"\",\"\",'1. Order'!Q124)","v":""},{"$f":"IF('1. Order'!R124=\"\",\"\",'1. Order'!R124)","v":""},{"$f":"IF('1. Order'!S124=\"\",\"\",'1. Order'!S124)","v":""},{"$f":"IF('1. Order'!V124=\"\",\"\",'1. Order'!V124)","v":""},{"$f":"IF('1. Order'!W124=\"\",\"\",'1. Order'!W124)","v":""},{"$f":"IF('1. Order'!X124=\"\",\"\",'1. Order'!X124)","v":"EUR"},{"$f":"IF('1. Order'!Y124=\"\",\"\",'1. Order'!Y124)","v":""},{"$f":"IF('1. Order'!Z124=\"\",\"\",'1. Order'!Z124)","v":""},{"$f":"IF('1. Order'!AA124=\"\",\"\",'1. Order'!AA124)","v":""},null,{"$f":"IF('1. Order'!AS124=\"\",\"\",'1. Order'!AS124)","v":""},{"$f":"IF('1. Order'!AT124=\"\",\"\",'1. Order'!AT124)","v":""},null,null,null,null,null,null,null,{"$f":"IF('1. Order'!AX124=\"\",\"\",'1. Order'!AX124)","v":""},{"$f":"IF('1. Order'!AY124=\"\",\"\",'1. Order'!AY124)","v":""},{"$f":"IF('1. Order'!AZ124=\"\",\"\",'1. Order'!AZ124)","v":""},{"$f":"IF('1. Order'!BA124=\"\",\"\",'1. Order'!BA124)","v":""},{"$f":"IF('1. Order'!BC124=\"\",\"\",'1. Order'!BC124)","v":""},{"$f":"IF('1. Order'!BD124=\"\",\"\",'1. Order'!BD124)","v":6},{"$f":"IF('1. Order'!BE124=\"\",\"\",'1. Order'!BE124)","v":"None"},{"$f":"IF('1. Order'!BF124=\"\",\"\",'1. Order'!BF124)","v":"Parcel"},{"$f":"IF('1. Order'!BG124=\"\",\"\",'1. Order'!BG124)","v":"ZWO"}]
[{"$f":"IF('1. Order'!F125=\"\",\"\",'1. Order'!F125)","v":""},{"$f":"IF('1. Order'!G125=\"\",\"\",'1. Order'!G125)","v":""},{"$f":"IF('1. Order'!H125=\"\",\"\",'1. Order'!H125)","v":""},{"$f":"IF('1. Order'!I125=\"\",\"\",'1. Order'!I125)","v":""},{"$f":"IF('1. Order'!J125=\"\",\"\",'1. Order'!J125)","v":""},{"$f":"IF('1. Order'!K125=\"\",\"\",'1. Order'!K125)","v":""},{"$f":"IF('1. Order'!L125=\"\",\"\",'1. Order'!L125)","v":""},{"$f":"IF('1. Order'!M125=\"\",\"\",'1. Order'!M125)","v":""},{"$f":"IF('1. Order'!N125=\"\",\"\",'1. Order'!N125)","v":""},{"$f":"IF('1. Order'!O125=\"\",\"\",'1. Order'!O125)","v":{"$error":"#N/A"}},{"$f":"IF('1. Order'!P125=\"\",\"\",'1. Order'!P125)","v":{"$error":"#N/A"}},{"$f":"IF('1. Order'!Q125=\"\",\"\",'1. Order'!Q125)","v":""},{"$f":"IF('1. Order'!R125=\"\",\"\",'1. Order'!R125)","v":""},{"$f":"IF('1. Order'!S125=\"\",\"\",'1. Order'!S125)","v":""},{"$f":"IF('1. Order'!V125=\"\",\"\",'1. Order'!V125)","v":""},{"$f":"IF('1. Order'!W125=\"\",\"\",'1. Order'!W125)","v":""},{"$f":"IF('1. Order'!X125=\"\",\"\",'1. Order'!X125)","v":"EUR"},{"$f":"IF('1. Order'!Y125=\"\",\"\",'1. Order'!Y125)","v":""},{"$f":"IF('1. Order'!Z125=\"\",\"\",'1. Order'!Z125)","v":""},{"$f":"IF('1. Order'!AA125=\"\",\"\",'1. Order'!AA125)","v":""},null,{"$f":"IF('1. Order'!AS125=\"\",\"\",'1. Order'!AS125)","v":""},{"$f":"IF('1. Order'!AT125=\"\",\"\",'1. Order'!AT125)","v":""},null,null,null,null,null,null,null,{"$f":"IF('1. Order'!AX125=\"\",\"\",'1. Order'!AX125)","v":""},{"$f":"IF('1. Order'!AY125=\"\",\"\",'1. Order'!AY125)","v":""},{"$f":"IF('1. Order'!AZ125=\"\",\"\",'1. Order'!AZ125)","v":""},{"$f":"IF('1. Order'!BA125=\"\",\"\",'1. Order'!BA125)","v":""},{"$f":"IF('1. Order'!BC125=\"\",\"\",'1. Order'!BC125)","v":""},{"$f":"IF('1. Order'!BD125=\"\",\"\",'1. Order'!BD125)","v":6},{"$f":"IF('1. Order'!BE125=\"\",\"\",'1. Order'!BE125)","v":"None"},{"$f":"IF('1. Order'!BF125=\"\",\"\",'1. Order'!BF125)","v":"Parcel"},{"$f":"IF('1. Order'!BG125=\"\",\"\",'1. Order'!BG125)","v":"ZWO"}]
[{"$f":"IF('1. Order'!F126=\"\",\"\",'1. Order'!F126)","v":""},{"$f":"IF('1. Order'!G126=\"\",\"\",'1. Order'!G126)","v":""},{"$f":"IF('1. Order'!H126=\"\",\"\",'1. Order'!H126)","v":""},{"$f":"IF('1. Order'!I126=\"\",\"\",'1. Order'!I126)","v":""},{"$f":"IF('1. Order'!J126=\"\",\"\",'1. Order'!J126)","v":""},{"$f":"IF('1. Order'!K126=\"\",\"\",'1. Order'!K126)","v":""},{"$f":"IF('1. Order'!L126=\"\",\"\",'1. Order'!L126)","v":""},{"$f":"IF('1. Order'!M126=\"\",\"\",'1. Order'!M126)","v":""},{"$f":"IF('1. Order'!N126=\"\",\"\",'1. Order'!N126)","v":""},{"$f":"IF('1. Order'!O126=\"\",\"\",'1. Order'!O126)","v":{"$error":"#N/A"}},{"$f":"IF('1. Order'!P126=\"\",\"\",'1. Order'!P126)","v":{"$error":"#N/A"}},{"$f":"IF('1. Order'!Q126=\"\",\"\",'1. Order'!Q126)","v":""},{"$f":"IF('1. Order'!R126=\"\",\"\",'1. Order'!R126)","v":""},{"$f":"IF('1. Order'!S126=\"\",\"\",'1. Order'!S126)","v":""},{"$f":"IF('1. Order'!V126=\"\",\"\",'1. Order'!V126)","v":""},{"$f":"IF('1. Order'!W126=\"\",\"\",'1. Order'!W126)","v":""},{"$f":"IF('1. Order'!X126=\"\",\"\",'1. Order'!X126)","v":"EUR"},{"$f":"IF('1. Order'!Y126=\"\",\"\",'1. Order'!Y126)","v":""},{"$f":"IF('1. Order'!Z126=\"\",\"\",'1. Order'!Z126)","v":""},{"$f":"IF('1. Order'!AA126=\"\",\"\",'1. Order'!AA126)","v":""},null,{"$f":"IF('1. Order'!AS126=\"\",\"\",'1. Order'!AS126)","v":""},{"$f":"IF('1. Order'!AT126=\"\",\"\",'1. Order'!AT126)","v":""},null,null,null,null,null,null,null,{"$f":"IF('1. Order'!AX126=\"\",\"\",'1. Order'!AX126)","v":""},{"$f":"IF('1. Order'!AY126=\"\",\"\",'1. Order'!AY126)","v":""},{"$f":"IF('1. Order'!AZ126=\"\",\"\",'1. Order'!AZ126)","v":""},{"$f":"IF('1. Order'!BA126=\"\",\"\",'1. Order'!BA126)","v":""},{"$f":"IF('1. Order'!BC126=\"\",\"\",'1. Order'!BC126)","v":""},{"$f":"IF('1. Order'!BD126=\"\",\"\",'1. Order'!BD126)","v":6},{"$f":"IF('1. Order'!BE126=\"\",\"\",'1. Order'!BE126)","v":"None"},{"$f":"IF('1. Order'!BF126=\"\",\"\",'1. Order'!BF126)","v":"Parcel"},{"$f":"IF('1. Order'!BG126=\"\",\"\",'1. Order'!BG126)","v":"ZWO"}]
[{"$f":"IF('1. Order'!F127=\"\",\"\",'1. Order'!F127)","v":""},{"$f":"IF('1. Order'!G127=\"\",\"\",'1. Order'!G127)","v":""},{"$f":"IF('1. Order'!H127=\"\",\"\",'1. Order'!H127)","v":""},{"$f":"IF('1. Order'!I127=\"\",\"\",'1. Order'!I127)","v":""},{"$f":"IF('1. Order'!J127=\"\",\"\",'1. Order'!J127)","v":""},{"$f":"IF('1. Order'!K127=\"\",\"\",'1. Order'!K127)","v":""},{"$f":"IF('1. Order'!L127=\"\",\"\",'1. Order'!L127)","v":""},{"$f":"IF('1. Order'!M127=\"\",\"\",'1. Order'!M127)","v":""},{"$f":"IF('1. Order'!N127=\"\",\"\",'1. Order'!N127)","v":""},{"$f":"IF('1. Order'!O127=\"\",\"\",'1. Order'!O127)","v":{"$error":"#N/A"}},{"$f":"IF('1. Order'!P127=\"\",\"\",'1. Order'!P127)","v":{"$error":"#N/A"}},{"$f":"IF('1. Order'!Q127=\"\",\"\",'1. Order'!Q127)","v":""},{"$f":"IF('1. Order'!R127=\"\",\"\",'1. Order'!R127)","v":""},{"$f":"IF('1. Order'!S127=\"\",\"\",'1. Order'!S127)","v":""},{"$f":"IF('1. Order'!V127=\"\",\"\",'1. Order'!V127)","v":""},{"$f":"IF('1. Order'!W127=\"\",\"\",'1. Order'!W127)","v":""},{"$f":"IF('1. Order'!X127=\"\",\"\",'1. Order'!X127)","v":"EUR"},{"$f":"IF('1. Order'!Y127=\"\",\"\",'1. Order'!Y127)","v":""},{"$f":"IF('1. Order'!Z127=\"\",\"\",'1. Order'!Z127)","v":""},{"$f":"IF('1. Order'!AA127=\"\",\"\",'1. Order'!AA127)","v":""},null,{"$f":"IF('1. Order'!AS127=\"\",\"\",'1. Order'!AS127)","v":""},{"$f":"IF('1. Order'!AT127=\"\",\"\",'1. Order'!AT127)","v":""},null,null,null,null,null,null,null,{"$f":"IF('1. Order'!AX127=\"\",\"\",'1. Order'!AX127)","v":""},{"$f":"IF('1. Order'!AY127=\"\",\"\",'1. Order'!AY127)","v":""},{"$f":"IF('1. Order'!AZ127=\"\",\"\",'1. Order'!AZ127)","v":""},{"$f":"IF('1. Order'!BA127=\"\",\"\",'1. Order'!BA127)","v":""},{"$f":"IF('1. Order'!BC127=\"\",\"\",'1. Order'!BC127)","v":""},{"$f":"IF('1. Order'!BD127=\"\",\"\",'1. Order'!BD127)","v":6},{"$f":"IF('1. Order'!BE127=\"\",\"\",'1. Order'!BE127)","v":"None"},{"$f":"IF('1. Order'!BF127=\"\",\"\",'1. Order'!BF127)","v":"Parcel"},{"$f":"IF('1. Order'!BG127=\"\",\"\",'1. Order'!BG127)","v":"ZWO"}]
[{"$f":"IF('1. Order'!F128=\"\",\"\",'1. Order'!F128)","v":""},{"$f":"IF('1. Order'!G128=\"\",\"\",'1. Order'!G128)","v":""},{"$f":"IF('1. Order'!H128=\"\",\"\",'1. Order'!H128)","v":""},{"$f":"IF('1. Order'!I128=\"\",\"\",'1. Order'!I128)","v":""},{"$f":"IF('1. Order'!J128=\"\",\"\",'1. Order'!J128)","v":""},{"$f":"IF('1. Order'!K128=\"\",\"\",'1. Order'!K128)","v":""},{"$f":"IF('1. Order'!L128=\"\",\"\",'1. Order'!L128)","v":""},{"$f":"IF('1. Order'!M128=\"\",\"\",'1. Order'!M128)","v":""},{"$f":"IF('1. Order'!N128=\"\",\"\",'1. Order'!N128)","v":""},{"$f":"IF('1. Order'!O128=\"\",\"\",'1. Order'!O128)","v":{"$error":"#N/A"}},{"$f":"IF('1. Order'!P128=\"\",\"\",'1. Order'!P128)","v":{"$error":"#N/A"}},{"$f":"IF('1. Order'!Q128=\"\",\"\",'1. Order'!Q128)","v":""},{"$f":"IF('1. Order'!R128=\"\",\"\",'1. Order'!R128)","v":""},{"$f":"IF('1. Order'!S128=\"\",\"\",'1. Order'!S128)","v":""},{"$f":"IF('1. Order'!V128=\"\",\"\",'1. Order'!V128)","v":""},{"$f":"IF('1. Order'!W128=\"\",\"\",'1. Order'!W128)","v":""},{"$f":"IF('1. Order'!X128=\"\",\"\",'1. Order'!X128)","v":"EUR"},{"$f":"IF('1. Order'!Y128=\"\",\"\",'1. Order'!Y128)","v":""},{"$f":"IF('1. Order'!Z128=\"\",\"\",'1. Order'!Z128)","v":""},{"$f":"IF('1. Order'!AA128=\"\",\"\",'1. Order'!AA128)","v":""},null,{"$f":"IF('1. Order'!AS128=\"\",\"\",'1. Order'!AS128)","v":""},{"$f":"IF('1. Order'!AT128=\"\",\"\",'1. Order'!AT128)","v":""},null,null,null,null,null,null,null,{"$f":"IF('1. Order'!AX128=\"\",\"\",'1. Order'!AX128)","v":""},{"$f":"IF('1. Order'!AY128=\"\",\"\",'1. Order'!AY128)","v":""},{"$f":"IF('1. Order'!AZ128=\"\",\"\",'1. Order'!AZ128)","v":""},{"$f":"IF('1. Order'!BA128=\"\",\"\",'1. Order'!BA128)","v":""},{"$f":"IF('1. Order'!BC128=\"\",\"\",'1. Order'!BC128)","v":""},{"$f":"IF('1. Order'!BD128=\"\",\"\",'1. Order'!BD128)","v":6},{"$f":"IF('1. Order'!BE128=\"\",\"\",'1. Order'!BE128)","v":"None"},{"$f":"IF('1. Order'!BF128=\"\",\"\",'1. Order'!BF128)","v":"Parcel"},{"$f":"IF('1. Order'!BG128=\"\",\"\",'1. Order'!BG128)","v":"ZWO"}]
[{"$f":"IF('1. Order'!F129=\"\",\"\",'1. Order'!F129)","v":""},{"$f":"IF('1. Order'!G129=\"\",\"\",'1. Order'!G129)","v":""},{"$f":"IF('1. Order'!H129=\"\",\"\",'1. Order'!H129)","v":""},{"$f":"IF('1. Order'!I129=\"\",\"\",'1. Order'!I129)","v":""},{"$f":"IF('1. Order'!J129=\"\",\"\",'1. Order'!J129)","v":""},{"$f":"IF('1. Order'!K129=\"\",\"\",'1. Order'!K129)","v":""},{"$f":"IF('1. Order'!L129=\"\",\"\",'1. Order'!L129)","v":""},{"$f":"IF('1. Order'!M129=\"\",\"\",'1. Order'!M129)","v":""},{"$f":"IF('1. Order'!N129=\"\",\"\",'1. Order'!N129)","v":""},{"$f":"IF('1. Order'!O129=\"\",\"\",'1. Order'!O129)","v":{"$error":"#N/A"}},{"$f":"IF('1. Order'!P129=\"\",\"\",'1. Order'!P129)","v":{"$error":"#N/A"}},{"$f":"IF('1. Order'!Q129=\"\",\"\",'1. Order'!Q129)","v":""},{"$f":"IF('1. Order'!R129=\"\",\"\",'1. Order'!R129)","v":""},{"$f":"IF('1. Order'!S129=\"\",\"\",'1. Order'!S129)","v":""},{"$f":"IF('1. Order'!V129=\"\",\"\",'1. Order'!V129)","v":""},{"$f":"IF('1. Order'!W129=\"\",\"\",'1. Order'!W129)","v":""},{"$f":"IF('1. Order'!X129=\"\",\"\",'1. Order'!X129)","v":"EUR"},{"$f":"IF('1. Order'!Y129=\"\",\"\",'1. Order'!Y129)","v":""},{"$f":"IF('1. Order'!Z129=\"\",\"\",'1. Order'!Z129)","v":""},{"$f":"IF('1. Order'!AA129=\"\",\"\",'1. Order'!AA129)","v":""},null,{"$f":"IF('1. Order'!AS129=\"\",\"\",'1. Order'!AS129)","v":""},{"$f":"IF('1. Order'!AT129=\"\",\"\",'1. Order'!AT129)","v":""},null,null,null,null,null,null,null,{"$f":"IF('1. Order'!AX129=\"\",\"\",'1. Order'!AX129)","v":""},{"$f":"IF('1. Order'!AY129=\"\",\"\",'1. Order'!AY129)","v":""},{"$f":"IF('1. Order'!AZ129=\"\",\"\",'1. Order'!AZ129)","v":""},{"$f":"IF('1. Order'!BA129=\"\",\"\",'1. Order'!BA129)","v":""},{"$f":"IF('1. Order'!BC129=\"\",\"\",'1. Order'!BC129)","v":""},{"$f":"IF('1. Order'!BD129=\"\",\"\",'1. Order'!BD129)","v":6},{"$f":"IF('1. Order'!BE129=\"\",\"\",'1. Order'!BE129)","v":"None"},{"$f":"IF('1. Order'!BF129=\"\",\"\",'1. Order'!BF129)","v":"Parcel"},{"$f":"IF('1. Order'!BG129=\"\",\"\",'1. Order'!BG129)","v":"ZWO"}]
[{"$f":"IF('1. Order'!F130=\"\",\"\",'1. Order'!F130)","v":""},{"$f":"IF('1. Order'!G130=\"\",\"\",'1. Order'!G130)","v":""},{"$f":"IF('1. Order'!H130=\"\",\"\",'1. Order'!H130)","v":""},{"$f":"IF('1. Order'!I130=\"\",\"\",'1. Order'!I130)","v":""},{"$f":"IF('1. Order'!J130=\"\",\"\",'1. Order'!J130)","v":""},{"$f":"IF('1. Order'!K130=\"\",\"\",'1. Order'!K130)","v":""},{"$f":"IF('1. Order'!L130=\"\",\"\",'1. Order'!L130)","v":""},{"$f":"IF('1. Order'!M130=\"\",\"\",'1. Order'!M130)","v":""},{"$f":"IF('1. Order'!N130=\"\",\"\",'1. Order'!N130)","v":""},{"$f":"IF('1. Order'!O130=\"\",\"\",'1. Order'!O130)","v":{"$error":"#N/A"}},{"$f":"IF('1. Order'!P130=\"\",\"\",'1. Order'!P130)","v":{"$error":"#N/A"}},{"$f":"IF('1. Order'!Q130=\"\",\"\",'1. Order'!Q130)","v":""},{"$f":"IF('1. Order'!R130=\"\",\"\",'1. Order'!R130)","v":""},{"$f":"IF('1. Order'!S130=\"\",\"\",'1. Order'!S130)","v":""},{"$f":"IF('1. Order'!V130=\"\",\"\",'1. Order'!V130)","v":""},{"$f":"IF('1. Order'!W130=\"\",\"\",'1. Order'!W130)","v":""},{"$f":"IF('1. Order'!X130=\"\",\"\",'1. Order'!X130)","v":"EUR"},{"$f":"IF('1. Order'!Y130=\"\",\"\",'1. Order'!Y130)","v":""},{"$f":"IF('1. Order'!Z130=\"\",\"\",'1. Order'!Z130)","v":""},{"$f":"IF('1. Order'!AA130=\"\",\"\",'1. Order'!AA130)","v":""},null,{"$f":"IF('1. Order'!AS130=\"\",\"\",'1. Order'!AS130)","v":""},{"$f":"IF('1. Order'!AT130=\"\",\"\",'1. Order'!AT130)","v":""},null,null,null,null,null,null,null,{"$f":"IF('1. Order'!AX130=\"\",\"\",'1. Order'!AX130)","v":""},{"$f":"IF('1. Order'!AY130=\"\",\"\",'1. Order'!AY130)","v":""},{"$f":"IF('1. Order'!AZ130=\"\",\"\",'1. Order'!AZ130)","v":""},{"$f":"IF('1. Order'!BA130=\"\",\"\",'1. Order'!BA130)","v":""},{"$f":"IF('1. Order'!BC130=\"\",\"\",'1. Order'!BC130)","v":""},{"$f":"IF('1. Order'!BD130=\"\",\"\",'1. Order'!BD130)","v":6},{"$f":"IF('1. Order'!BE130=\"\",\"\",'1. Order'!BE130)","v":"None"},{"$f":"IF('1. Order'!BF130=\"\",\"\",'1. Order'!BF130)","v":"Parcel"},{"$f":"IF('1. Order'!BG130=\"\",\"\",'1. Order'!BG130)","v":"ZWO"}]
[{"$f":"IF('1. Order'!F131=\"\",\"\",'1. Order'!F131)","v":""},{"$f":"IF('1. Order'!G131=\"\",\"\",'1. Order'!G131)","v":""},{"$f":"IF('1. Order'!H131=\"\",\"\",'1. Order'!H131)","v":""},{"$f":"IF('1. Order'!I131=\"\",\"\",'1. Order'!I131)","v":""},{"$f":"IF('1. Order'!J131=\"\",\"\",'1. Order'!J131)","v":""},{"$f":"IF('1. Order'!K131=\"\",\"\",'1. Order'!K131)","v":""},{"$f":"IF('1. Order'!L131=\"\",\"\",'1. Order'!L131)","v":""},{"$f":"IF('1. Order'!M131=\"\",\"\",'1. Order'!M131)","v":""},{"$f":"IF('1. Order'!N131=\"\",\"\",'1. Order'!N131)","v":""},{"$f":"IF('1. Order'!O131=\"\",\"\",'1. Order'!O131)","v":{"$error":"#N/A"}},{"$f":"IF('1. Order'!P131=\"\",\"\",'1. Order'!P131)","v":{"$error":"#N/A"}},{"$f":"IF('1. Order'!Q131=\"\",\"\",'1. Order'!Q131)","v":""},{"$f":"IF('1. Order'!R131=\"\",\"\",'1. Order'!R131)","v":""},{"$f":"IF('1. Order'!S131=\"\",\"\",'1. Order'!S131)","v":""},{"$f":"IF('1. Order'!V131=\"\",\"\",'1. Order'!V131)","v":""},{"$f":"IF('1. Order'!W131=\"\",\"\",'1. Order'!W131)","v":""},{"$f":"IF('1. Order'!X131=\"\",\"\",'1. Order'!X131)","v":"EUR"},{"$f":"IF('1. Order'!Y131=\"\",\"\",'1. Order'!Y131)","v":""},{"$f":"IF('1. Order'!Z131=\"\",\"\",'1. Order'!Z131)","v":""},{"$f":"IF('1. Order'!AA131=\"\",\"\",'1. Order'!AA131)","v":""},null,{"$f":"IF('1. Order'!AS131=\"\",\"\",'1. Order'!AS131)","v":""},{"$f":"IF('1. Order'!AT131=\"\",\"\",'1. Order'!AT131)","v":""},null,null,null,null,null,null,null,{"$f":"IF('1. Order'!AX131=\"\",\"\",'1. Order'!AX131)","v":""},{"$f":"IF('1. Order'!AY131=\"\",\"\",'1. Order'!AY131)","v":""},{"$f":"IF('1. Order'!AZ131=\"\",\"\",'1. Order'!AZ131)","v":""},{"$f":"IF('1. Order'!BA131=\"\",\"\",'1. Order'!BA131)","v":""},{"$f":"IF('1. Order'!BC131=\"\",\"\",'1. Order'!BC131)","v":""},{"$f":"IF('1. Order'!BD131=\"\",\"\",'1. Order'!BD131)","v":6},{"$f":"IF('1. Order'!BE131=\"\",\"\",'1. Order'!BE131)","v":"None"},{"$f":"IF('1. Order'!BF131=\"\",\"\",'1. Order'!BF131)","v":"Parcel"},{"$f":"IF('1. Order'!BG131=\"\",\"\",'1. Order'!BG131)","v":"ZWO"}]
[{"$f":"IF('1. Order'!F132=\"\",\"\",'1. Order'!F132)","v":""},{"$f":"IF('1. Order'!G132=\"\",\"\",'1. Order'!G132)","v":""},{"$f":"IF('1. Order'!H132=\"\",\"\",'1. Order'!H132)","v":""},{"$f":"IF('1. Order'!I132=\"\",\"\",'1. Order'!I132)","v":""},{"$f":"IF('1. Order'!J132=\"\",\"\",'1. Order'!J132)","v":""},{"$f":"IF('1. Order'!K132=\"\",\"\",'1. Order'!K132)","v":""},{"$f":"IF('1. Order'!L132=\"\",\"\",'1. Order'!L132)","v":""},{"$f":"IF('1. Order'!M132=\"\",\"\",'1. Order'!M132)","v":""},{"$f":"IF('1. Order'!N132=\"\",\"\",'1. Order'!N132)","v":""},{"$f":"IF('1. Order'!O132=\"\",\"\",'1. Order'!O132)","v":{"$error":"#N/A"}},{"$f":"IF('1. Order'!P132=\"\",\"\",'1. Order'!P132)","v":{"$error":"#N/A"}},{"$f":"IF('1. Order'!Q132=\"\",\"\",'1. Order'!Q132)","v":""},{"$f":"IF('1. Order'!R132=\"\",\"\",'1. Order'!R132)","v":""},{"$f":"IF('1. Order'!S132=\"\",\"\",'1. Order'!S132)","v":""},{"$f":"IF('1. Order'!V132=\"\",\"\",'1. Order'!V132)","v":""},{"$f":"IF('1. Order'!W132=\"\",\"\",'1. Order'!W132)","v":""},{"$f":"IF('1. Order'!X132=\"\",\"\",'1. Order'!X132)","v":"EUR"},{"$f":"IF('1. Order'!Y132=\"\",\"\",'1. Order'!Y132)","v":""},{"$f":"IF('1. Order'!Z132=\"\",\"\",'1. Order'!Z132)","v":""},{"$f":"IF('1. Order'!AA132=\"\",\"\",'1. Order'!AA132)","v":""},null,{"$f":"IF('1. Order'!AS132=\"\",\"\",'1. Order'!AS132)","v":""},{"$f":"IF('1. Order'!AT132=\"\",\"\",'1. Order'!AT132)","v":""},null,null,null,null,null,null,null,{"$f":"IF('1. Order'!AX132=\"\",\"\",'1. Order'!AX132)","v":""},{"$f":"IF('1. Order'!AY132=\"\",\"\",'1. Order'!AY132)","v":""},{"$f":"IF('1. Order'!AZ132=\"\",\"\",'1. Order'!AZ132)","v":""},{"$f":"IF('1. Order'!BA132=\"\",\"\",'1. Order'!BA132)","v":""},{"$f":"IF('1. Order'!BC132=\"\",\"\",'1. Order'!BC132)","v":""},{"$f":"IF('1. Order'!BD132=\"\",\"\",'1. Order'!BD132)","v":6},{"$f":"IF('1. Order'!BE132=\"\",\"\",'1. Order'!BE132)","v":"None"},{"$f":"IF('1. Order'!BF132=\"\",\"\",'1. Order'!BF132)","v":"Parcel"},{"$f":"IF('1. Order'!BG132=\"\",\"\",'1. Order'!BG132)","v":"ZWO"}]
[{"$f":"IF('1. Order'!F133=\"\",\"\",'1. Order'!F133)","v":""},{"$f":"IF('1. Order'!G133=\"\",\"\",'1. Order'!G133)","v":""},{"$f":"IF('1. Order'!H133=\"\",\"\",'1. Order'!H133)","v":""},{"$f":"IF('1. Order'!I133=\"\",\"\",'1. Order'!I133)","v":""},{"$f":"IF('1. Order'!J133=\"\",\"\",'1. Order'!J133)","v":""},{"$f":"IF('1. Order'!K133=\"\",\"\",'1. Order'!K133)","v":""},{"$f":"IF('1. Order'!L133=\"\",\"\",'1. Order'!L133)","v":""},{"$f":"IF('1. Order'!M133=\"\",\"\",'1. Order'!M133)","v":""},{"$f":"IF('1. Order'!N133=\"\",\"\",'1. Order'!N133)","v":""},{"$f":"IF('1. Order'!O133=\"\",\"\",'1. Order'!O133)","v":{"$error":"#N/A"}},{"$f":"IF('1. Order'!P133=\"\",\"\",'1. Order'!P133)","v":{"$error":"#N/A"}},{"$f":"IF('1. Order'!Q133=\"\",\"\",'1. Order'!Q133)","v":""},{"$f":"IF('1. Order'!R133=\"\",\"\",'1. Order'!R133)","v":""},{"$f":"IF('1. Order'!S133=\"\",\"\",'1. Order'!S133)","v":""},{"$f":"IF('1. Order'!V133=\"\",\"\",'1. Order'!V133)","v":""},{"$f":"IF('1. Order'!W133=\"\",\"\",'1. Order'!W133)","v":""},{"$f":"IF('1. Order'!X133=\"\",\"\",'1. Order'!X133)","v":"EUR"},{"$f":"IF('1. Order'!Y133=\"\",\"\",'1. Order'!Y133)","v":""},{"$f":"IF('1. Order'!Z133=\"\",\"\",'1. Order'!Z133)","v":""},{"$f":"IF('1. Order'!AA133=\"\",\"\",'1. Order'!AA133)","v":""},null,{"$f":"IF('1. Order'!AS133=\"\",\"\",'1. Order'!AS133)","v":""},{"$f":"IF('1. Order'!AT133=\"\",\"\",'1. Order'!AT133)","v":""},null,null,null,null,null,null,null,{"$f":"IF('1. Order'!AX133=\"\",\"\",'1. Order'!AX133)","v":""},{"$f":"IF('1. Order'!AY133=\"\",\"\",'1. Order'!AY133)","v":""},{"$f":"IF('1. Order'!AZ133=\"\",\"\",'1. Order'!AZ133)","v":""},{"$f":"IF('1. Order'!BA133=\"\",\"\",'1. Order'!BA133)","v":""},{"$f":"IF('1. Order'!BC133=\"\",\"\",'1. Order'!BC133)","v":""},{"$f":"IF('1. Order'!BD133=\"\",\"\",'1. Order'!BD133)","v":6},{"$f":"IF('1. Order'!BE133=\"\",\"\",'1. Order'!BE133)","v":"None"},{"$f":"IF('1. Order'!BF133=\"\",\"\",'1. Order'!BF133)","v":"Parcel"},{"$f":"IF('1. Order'!BG133=\"\",\"\",'1. Order'!BG133)","v":"ZWO"}]
[{"$f":"IF('1. Order'!F134=\"\",\"\",'1. Order'!F134)","v":""},{"$f":"IF('1. Order'!G134=\"\",\"\",'1. Order'!G134)","v":""},{"$f":"IF('1. Order'!H134=\"\",\"\",'1. Order'!H134)","v":""},{"$f":"IF('1. Order'!I134=\"\",\"\",'1. Order'!I134)","v":""},{"$f":"IF('1. Order'!J134=\"\",\"\",'1. Order'!J134)","v":""},{"$f":"IF('1. Order'!K134=\"\",\"\",'1. Order'!K134)","v":""},{"$f":"IF('1. Order'!L134=\"\",\"\",'1. Order'!L134)","v":""},{"$f":"IF('1. Order'!M134=\"\",\"\",'1. Order'!M134)","v":""},{"$f":"IF('1. Order'!N134=\"\",\"\",'1. Order'!N134)","v":""},{"$f":"IF('1. Order'!O134=\"\",\"\",'1. Order'!O134)","v":{"$error":"#N/A"}},{"$f":"IF('1. Order'!P134=\"\",\"\",'1. Order'!P134)","v":{"$error":"#N/A"}},{"$f":"IF('1. Order'!Q134=\"\",\"\",'1. Order'!Q134)","v":""},{"$f":"IF('1. Order'!R134=\"\",\"\",'1. Order'!R134)","v":""},{"$f":"IF('1. Order'!S134=\"\",\"\",'1. Order'!S134)","v":""},{"$f":"IF('1. Order'!V134=\"\",\"\",'1. Order'!V134)","v":""},{"$f":"IF('1. Order'!W134=\"\",\"\",'1. Order'!W134)","v":""},{"$f":"IF('1. Order'!X134=\"\",\"\",'1. Order'!X134)","v":"EUR"},{"$f":"IF('1. Order'!Y134=\"\",\"\",'1. Order'!Y134)","v":""},{"$f":"IF('1. Order'!Z134=\"\",\"\",'1. Order'!Z134)","v":""},{"$f":"IF('1. Order'!AA134=\"\",\"\",'1. Order'!AA134)","v":""},null,{"$f":"IF('1. Order'!AS134=\"\",\"\",'1. Order'!AS134)","v":""},{"$f":"IF('1. Order'!AT134=\"\",\"\",'1. Order'!AT134)","v":""},null,null,null,null,null,null,null,{"$f":"IF('1. Order'!AX134=\"\",\"\",'1. Order'!AX134)","v":""},{"$f":"IF('1. Order'!AY134=\"\",\"\",'1. Order'!AY134)","v":""},{"$f":"IF('1. Order'!AZ134=\"\",\"\",'1. Order'!AZ134)","v":""},{"$f":"IF('1. Order'!BA134=\"\",\"\",'1. Order'!BA134)","v":""},{"$f":"IF('1. Order'!BC134=\"\",\"\",'1. Order'!BC134)","v":""},{"$f":"IF('1. Order'!BD134=\"\",\"\",'1. Order'!BD134)","v":6},{"$f":"IF('1. Order'!BE134=\"\",\"\",'1. Order'!BE134)","v":"None"},{"$f":"IF('1. Order'!BF134=\"\",\"\",'1. Order'!BF134)","v":"Parcel"},{"$f":"IF('1. Order'!BG134=\"\",\"\",'1. Order'!BG134)","v":"ZWO"}]
[{"$f":"IF('1. Order'!F135=\"\",\"\",'1. Order'!F135)","v":""},{"$f":"IF('1. Order'!G135=\"\",\"\",'1. Order'!G135)","v":""},{"$f":"IF('1. Order'!H135=\"\",\"\",'1. Order'!H135)","v":""},{"$f":"IF('1. Order'!I135=\"\",\"\",'1. Order'!I135)","v":""},{"$f":"IF('1. Order'!J135=\"\",\"\",'1. Order'!J135)","v":""},{"$f":"IF('1. Order'!K135=\"\",\"\",'1. Order'!K135)","v":""},{"$f":"IF('1. Order'!L135=\"\",\"\",'1. Order'!L135)","v":""},{"$f":"IF('1. Order'!M135=\"\",\"\",'1. Order'!M135)","v":""},{"$f":"IF('1. Order'!N135=\"\",\"\",'1. Order'!N135)","v":""},{"$f":"IF('1. Order'!O135=\"\",\"\",'1. Order'!O135)","v":{"$error":"#N/A"}},{"$f":"IF('1. Order'!P135=\"\",\"\",'1. Order'!P135)","v":{"$error":"#N/A"}},{"$f":"IF('1. Order'!Q135=\"\",\"\",'1. Order'!Q135)","v":""},{"$f":"IF('1. Order'!R135=\"\",\"\",'1. Order'!R135)","v":""},{"$f":"IF('1. Order'!S135=\"\",\"\",'1. Order'!S135)","v":""},{"$f":"IF('1. Order'!V135=\"\",\"\",'1. Order'!V135)","v":""},{"$f":"IF('1. Order'!W135=\"\",\"\",'1. Order'!W135)","v":""},{"$f":"IF('1. Order'!X135=\"\",\"\",'1. Order'!X135)","v":"EUR"},{"$f":"IF('1. Order'!Y135=\"\",\"\",'1. Order'!Y135)","v":""},{"$f":"IF('1. Order'!Z135=\"\",\"\",'1. Order'!Z135)","v":""},{"$f":"IF('1. Order'!AA135=\"\",\"\",'1. Order'!AA135)","v":""},null,{"$f":"IF('1. Order'!AS135=\"\",\"\",'1. Order'!AS135)","v":""},{"$f":"IF('1. Order'!AT135=\"\",\"\",'1. Order'!AT135)","v":""},null,null,null,null,null,null,null,{"$f":"IF('1. Order'!AX135=\"\",\"\",'1. Order'!AX135)","v":""},{"$f":"IF('1. Order'!AY135=\"\",\"\",'1. Order'!AY135)","v":""},{"$f":"IF('1. Order'!AZ135=\"\",\"\",'1. Order'!AZ135)","v":""},{"$f":"IF('1. Order'!BA135=\"\",\"\",'1. Order'!BA135)","v":""},{"$f":"IF('1. Order'!BC135=\"\",\"\",'1. Order'!BC135)","v":""},{"$f":"IF('1. Order'!BD135=\"\",\"\",'1. Order'!BD135)","v":6},{"$f":"IF('1. Order'!BE135=\"\",\"\",'1. Order'!BE135)","v":"None"},{"$f":"IF('1. Order'!BF135=\"\",\"\",'1. Order'!BF135)","v":"Parcel"},{"$f":"IF('1. Order'!BG135=\"\",\"\",'1. Order'!BG135)","v":"ZWO"}]
[{"$f":"IF('1. Order'!F136=\"\",\"\",'1. Order'!F136)","v":""},{"$f":"IF('1. Order'!G136=\"\",\"\",'1. Order'!G136)","v":""},{"$f":"IF('1. Order'!H136=\"\",\"\",'1. Order'!H136)","v":""},{"$f":"IF('1. Order'!I136=\"\",\"\",'1. Order'!I136)","v":""},{"$f":"IF('1. Order'!J136=\"\",\"\",'1. Order'!J136)","v":""},{"$f":"IF('1. Order'!K136=\"\",\"\",'1. Order'!K136)","v":""},{"$f":"IF('1. Order'!L136=\"\",\"\",'1. Order'!L136)","v":""},{"$f":"IF('1. Order'!M136=\"\",\"\",'1. Order'!M136)","v":""},{"$f":"IF('1. Order'!N136=\"\",\"\",'1. Order'!N136)","v":""},{"$f":"IF('1. Order'!O136=\"\",\"\",'1. Order'!O136)","v":{"$error":"#N/A"}},{"$f":"IF('1. Order'!P136=\"\",\"\",'1. Order'!P136)","v":{"$error":"#N/A"}},{"$f":"IF('1. Order'!Q136=\"\",\"\",'1. Order'!Q136)","v":""},{"$f":"IF('1. Order'!R136=\"\",\"\",'1. Order'!R136)","v":""},{"$f":"IF('1. Order'!S136=\"\",\"\",'1. Order'!S136)","v":""},{"$f":"IF('1. Order'!V136=\"\",\"\",'1. Order'!V136)","v":""},{"$f":"IF('1. Order'!W136=\"\",\"\",'1. Order'!W136)","v":""},{"$f":"IF('1. Order'!X136=\"\",\"\",'1. Order'!X136)","v":"EUR"},{"$f":"IF('1. Order'!Y136=\"\",\"\",'1. Order'!Y136)","v":""},{"$f":"IF('1. Order'!Z136=\"\",\"\",'1. Order'!Z136)","v":""},{"$f":"IF('1. Order'!AA136=\"\",\"\",'1. Order'!AA136)","v":""},null,{"$f":"IF('1. Order'!AS136=\"\",\"\",'1. Order'!AS136)","v":""},{"$f":"IF('1. Order'!AT136=\"\",\"\",'1. Order'!AT136)","v":""},null,null,null,null,null,null,null,{"$f":"IF('1. Order'!AX136=\"\",\"\",'1. Order'!AX136)","v":""},{"$f":"IF('1. Order'!AY136=\"\",\"\",'1. Order'!AY136)","v":""},{"$f":"IF('1. Order'!AZ136=\"\",\"\",'1. Order'!AZ136)","v":""},{"$f":"IF('1. Order'!BA136=\"\",\"\",'1. Order'!BA136)","v":""},{"$f":"IF('1. Order'!BC136=\"\",\"\",'1. Order'!BC136)","v":""},{"$f":"IF('1. Order'!BD136=\"\",\"\",'1. Order'!BD136)","v":6},{"$f":"IF('1. Order'!BE136=\"\",\"\",'1. Order'!BE136)","v":"None"},{"$f":"IF('1. Order'!BF136=\"\",\"\",'1. Order'!BF136)","v":"Parcel"},{"$f":"IF('1. Order'!BG136=\"\",\"\",'1. Order'!BG136)","v":"ZWO"}]
[{"$f":"IF('1. Order'!F137=\"\",\"\",'1. Order'!F137)","v":""},{"$f":"IF('1. Order'!G137=\"\",\"\",'1. Order'!G137)","v":""},{"$f":"IF('1. Order'!H137=\"\",\"\",'1. Order'!H137)","v":""},{"$f":"IF('1. Order'!I137=\"\",\"\",'1. Order'!I137)","v":""},{"$f":"IF('1. Order'!J137=\"\",\"\",'1. Order'!J137)","v":""},{"$f":"IF('1. Order'!K137=\"\",\"\",'1. Order'!K137)","v":""},{"$f":"IF('1. Order'!L137=\"\",\"\",'1. Order'!L137)","v":""},{"$f":"IF('1. Order'!M137=\"\",\"\",'1. Order'!M137)","v":""},{"$f":"IF('1. Order'!N137=\"\",\"\",'1. Order'!N137)","v":""},{"$f":"IF('1. Order'!O137=\"\",\"\",'1. Order'!O137)","v":{"$error":"#N/A"}},{"$f":"IF('1. Order'!P137=\"\",\"\",'1. Order'!P137)","v":{"$error":"#N/A"}},{"$f":"IF('1. Order'!Q137=\"\",\"\",'1. Order'!Q137)","v":""},{"$f":"IF('1. Order'!R137=\"\",\"\",'1. Order'!R137)","v":""},{"$f":"IF('1. Order'!S137=\"\",\"\",'1. Order'!S137)","v":""},{"$f":"IF('1. Order'!V137=\"\",\"\",'1. Order'!V137)","v":""},{"$f":"IF('1. Order'!W137=\"\",\"\",'1. Order'!W137)","v":""},{"$f":"IF('1. Order'!X137=\"\",\"\",'1. Order'!X137)","v":"EUR"},{"$f":"IF('1. Order'!Y137=\"\",\"\",'1. Order'!Y137)","v":""},{"$f":"IF('1. Order'!Z137=\"\",\"\",'1. Order'!Z137)","v":""},{"$f":"IF('1. Order'!AA137=\"\",\"\",'1. Order'!AA137)","v":""},null,{"$f":"IF('1. Order'!AS137=\"\",\"\",'1. Order'!AS137)","v":""},{"$f":"IF('1. Order'!AT137=\"\",\"\",'1. Order'!AT137)","v":""},null,null,null,null,null,null,null,{"$f":"IF('1. Order'!AX137=\"\",\"\",'1. Order'!AX137)","v":""},{"$f":"IF('1. Order'!AY137=\"\",\"\",'1. Order'!AY137)","v":""},{"$f":"IF('1. Order'!AZ137=\"\",\"\",'1. Order'!AZ137)","v":""},{"$f":"IF('1. Order'!BA137=\"\",\"\",'1. Order'!BA137)","v":""},{"$f":"IF('1. Order'!BC137=\"\",\"\",'1. Order'!BC137)","v":""},{"$f":"IF('1. Order'!BD137=\"\",\"\",'1. Order'!BD137)","v":6},{"$f":"IF('1. Order'!BE137=\"\",\"\",'1. Order'!BE137)","v":"None"},{"$f":"IF('1. Order'!BF137=\"\",\"\",'1. Order'!BF137)","v":"Parcel"},{"$f":"IF('1. Order'!BG137=\"\",\"\",'1. Order'!BG137)","v":"ZWO"}]
[{"$f":"IF('1. Order'!F138=\"\",\"\",'1. Order'!F138)","v":""},{"$f":"IF('1. Order'!G138=\"\",\"\",'1. Order'!G138)","v":""},{"$f":"IF('1. Order'!H138=\"\",\"\",'1. Order'!H138)","v":""},{"$f":"IF('1. Order'!I138=\"\",\"\",'1. Order'!I138)","v":""},{"$f":"IF('1. Order'!J138=\"\",\"\",'1. Order'!J138)","v":""},{"$f":"IF('1. Order'!K138=\"\",\"\",'1. Order'!K138)","v":""},{"$f":"IF('1. Order'!L138=\"\",\"\",'1. Order'!L138)","v":""},{"$f":"IF('1. Order'!M138=\"\",\"\",'1. Order'!M138)","v":""},{"$f":"IF('1. Order'!N138=\"\",\"\",'1. Order'!N138)","v":""},{"$f":"IF('1. Order'!O138=\"\",\"\",'1. Order'!O138)","v":{"$error":"#N/A"}},{"$f":"IF('1. Order'!P138=\"\",\"\",'1. Order'!P138)","v":{"$error":"#N/A"}},{"$f":"IF('1. Order'!Q138=\"\",\"\",'1. Order'!Q138)","v":""},{"$f":"IF('1. Order'!R138=\"\",\"\",'1. Order'!R138)","v":""},{"$f":"IF('1. Order'!S138=\"\",\"\",'1. Order'!S138)","v":""},{"$f":"IF('1. Order'!V138=\"\",\"\",'1. Order'!V138)","v":""},{"$f":"IF('1. Order'!W138=\"\",\"\",'1. Order'!W138)","v":""},{"$f":"IF('1. Order'!X138=\"\",\"\",'1. Order'!X138)","v":"EUR"},{"$f":"IF('1. Order'!Y138=\"\",\"\",'1. Order'!Y138)","v":""},{"$f":"IF('1. Order'!Z138=\"\",\"\",'1. Order'!Z138)","v":""},{"$f":"IF('1. Order'!AA138=\"\",\"\",'1. Order'!AA138)","v":""},null,{"$f":"IF('1. Order'!AS138=\"\",\"\",'1. Order'!AS138)","v":""},{"$f":"IF('1. Order'!AT138=\"\",\"\",'1. Order'!AT138)","v":""},null,null,null,null,null,null,null,{"$f":"IF('1. Order'!AX138=\"\",\"\",'1. Order'!AX138)","v":""},{"$f":"IF('1. Order'!AY138=\"\",\"\",'1. Order'!AY138)","v":""},{"$f":"IF('1. Order'!AZ138=\"\",\"\",'1. Order'!AZ138)","v":""},{"$f":"IF('1. Order'!BA138=\"\",\"\",'1. Order'!BA138)","v":""},{"$f":"IF('1. Order'!BC138=\"\",\"\",'1. Order'!BC138)","v":""},{"$f":"IF('1. Order'!BD138=\"\",\"\",'1. Order'!BD138)","v":6},{"$f":"IF('1. Order'!BE138=\"\",\"\",'1. Order'!BE138)","v":"None"},{"$f":"IF('1. Order'!BF138=\"\",\"\",'1. Order'!BF138)","v":"Parcel"},{"$f":"IF('1. Order'!BG138=\"\",\"\",'1. Order'!BG138)","v":"ZWO"}]
[{"$f":"IF('1. Order'!F139=\"\",\"\",'1. Order'!F139)","v":""},{"$f":"IF('1. Order'!G139=\"\",\"\",'1. Order'!G139)","v":""},{"$f":"IF('1. Order'!H139=\"\",\"\",'1. Order'!H139)","v":""},{"$f":"IF('1. Order'!I139=\"\",\"\",'1. Order'!I139)","v":""},{"$f":"IF('1. Order'!J139=\"\",\"\",'1. Order'!J139)","v":""},{"$f":"IF('1. Order'!K139=\"\",\"\",'1. Order'!K139)","v":""},{"$f":"IF('1. Order'!L139=\"\",\"\",'1. Order'!L139)","v":""},{"$f":"IF('1. Order'!M139=\"\",\"\",'1. Order'!M139)","v":""},{"$f":"IF('1. Order'!N139=\"\",\"\",'1. Order'!N139)","v":""},{"$f":"IF('1. Order'!O139=\"\",\"\",'1. Order'!O139)","v":{"$error":"#N/A"}},{"$f":"IF('1. Order'!P139=\"\",\"\",'1. Order'!P139)","v":{"$error":"#N/A"}},{"$f":"IF('1. Order'!Q139=\"\",\"\",'1. Order'!Q139)","v":""},{"$f":"IF('1. Order'!R139=\"\",\"\",'1. Order'!R139)","v":""},{"$f":"IF('1. Order'!S139=\"\",\"\",'1. Order'!S139)","v":""},{"$f":"IF('1. Order'!V139=\"\",\"\",'1. Order'!V139)","v":""},{"$f":"IF('1. Order'!W139=\"\",\"\",'1. Order'!W139)","v":""},{"$f":"IF('1. Order'!X139=\"\",\"\",'1. Order'!X139)","v":"EUR"},{"$f":"IF('1. Order'!Y139=\"\",\"\",'1. Order'!Y139)","v":""},{"$f":"IF('1. Order'!Z139=\"\",\"\",'1. Order'!Z139)","v":""},{"$f":"IF('1. Order'!AA139=\"\",\"\",'1. Order'!AA139)","v":""},null,{"$f":"IF('1. Order'!AS139=\"\",\"\",'1. Order'!AS139)","v":""},{"$f":"IF('1. Order'!AT139=\"\",\"\",'1. Order'!AT139)","v":""},null,null,null,null,null,null,null,{"$f":"IF('1. Order'!AX139=\"\",\"\",'1. Order'!AX139)","v":""},{"$f":"IF('1. Order'!AY139=\"\",\"\",'1. Order'!AY139)","v":""},{"$f":"IF('1. Order'!AZ139=\"\",\"\",'1. Order'!AZ139)","v":""},{"$f":"IF('1. Order'!BA139=\"\",\"\",'1. Order'!BA139)","v":""},{"$f":"IF('1. Order'!BC139=\"\",\"\",'1. Order'!BC139)","v":""},{"$f":"IF('1. Order'!BD139=\"\",\"\",'1. Order'!BD139)","v":6},{"$f":"IF('1. Order'!BE139=\"\",\"\",'1. Order'!BE139)","v":"None"},{"$f":"IF('1. Order'!BF139=\"\",\"\",'1. Order'!BF139)","v":"Parcel"},{"$f":"IF('1. Order'!BG139=\"\",\"\",'1. Order'!BG139)","v":"ZWO"}]
[{"$f":"IF('1. Order'!F140=\"\",\"\",'1. Order'!F140)","v":""},{"$f":"IF('1. Order'!G140=\"\",\"\",'1. Order'!G140)","v":""},{"$f":"IF('1. Order'!H140=\"\",\"\",'1. Order'!H140)","v":""},{"$f":"IF('1. Order'!I140=\"\",\"\",'1. Order'!I140)","v":""},{"$f":"IF('1. Order'!J140=\"\",\"\",'1. Order'!J140)","v":""},{"$f":"IF('1. Order'!K140=\"\",\"\",'1. Order'!K140)","v":""},{"$f":"IF('1. Order'!L140=\"\",\"\",'1. Order'!L140)","v":""},{"$f":"IF('1. Order'!M140=\"\",\"\",'1. Order'!M140)","v":""},{"$f":"IF('1. Order'!N140=\"\",\"\",'1. Order'!N140)","v":""},{"$f":"IF('1. Order'!O140=\"\",\"\",'1. Order'!O140)","v":{"$error":"#N/A"}},{"$f":"IF('1. Order'!P140=\"\",\"\",'1. Order'!P140)","v":{"$error":"#N/A"}},{"$f":"IF('1. Order'!Q140=\"\",\"\",'1. Order'!Q140)","v":""},{"$f":"IF('1. Order'!R140=\"\",\"\",'1. Order'!R140)","v":""},{"$f":"IF('1. Order'!S140=\"\",\"\",'1. Order'!S140)","v":""},{"$f":"IF('1. Order'!V140=\"\",\"\",'1. Order'!V140)","v":""},{"$f":"IF('1. Order'!W140=\"\",\"\",'1. Order'!W140)","v":""},{"$f":"IF('1. Order'!X140=\"\",\"\",'1. Order'!X140)","v":"EUR"},{"$f":"IF('1. Order'!Y140=\"\",\"\",'1. Order'!Y140)","v":""},{"$f":"IF('1. Order'!Z140=\"\",\"\",'1. Order'!Z140)","v":""},{"$f":"IF('1. Order'!AA140=\"\",\"\",'1. Order'!AA140)","v":""},null,{"$f":"IF('1. Order'!AS140=\"\",\"\",'1. Order'!AS140)","v":""},{"$f":"IF('1. Order'!AT140=\"\",\"\",'1. Order'!AT140)","v":""},null,null,null,null,null,null,null,{"$f":"IF('1. Order'!AX140=\"\",\"\",'1. Order'!AX140)","v":""},{"$f":"IF('1. Order'!AY140=\"\",\"\",'1. Order'!AY140)","v":""},{"$f":"IF('1. Order'!AZ140=\"\",\"\",'1. Order'!AZ140)","v":""},{"$f":"IF('1. Order'!BA140=\"\",\"\",'1. Order'!BA140)","v":""},{"$f":"IF('1. Order'!BC140=\"\",\"\",'1. Order'!BC140)","v":""},{"$f":"IF('1. Order'!BD140=\"\",\"\",'1. Order'!BD140)","v":6},{"$f":"IF('1. Order'!BE140=\"\",\"\",'1. Order'!BE140)","v":"None"},{"$f":"IF('1. Order'!BF140=\"\",\"\",'1. Order'!BF140)","v":"Parcel"},{"$f":"IF('1. Order'!BG140=\"\",\"\",'1. Order'!BG140)","v":"ZWO"}]
[{"$f":"IF('1. Order'!F141=\"\",\"\",'1. Order'!F141)","v":""},{"$f":"IF('1. Order'!G141=\"\",\"\",'1. Order'!G141)","v":""},{"$f":"IF('1. Order'!H141=\"\",\"\",'1. Order'!H141)","v":""},{"$f":"IF('1. Order'!I141=\"\",\"\",'1. Order'!I141)","v":""},{"$f":"IF('1. Order'!J141=\"\",\"\",'1. Order'!J141)","v":""},{"$f":"IF('1. Order'!K141=\"\",\"\",'1. Order'!K141)","v":""},{"$f":"IF('1. Order'!L141=\"\",\"\",'1. Order'!L141)","v":""},{"$f":"IF('1. Order'!M141=\"\",\"\",'1. Order'!M141)","v":""},{"$f":"IF('1. Order'!N141=\"\",\"\",'1. Order'!N141)","v":""},{"$f":"IF('1. Order'!O141=\"\",\"\",'1. Order'!O141)","v":{"$error":"#N/A"}},{"$f":"IF('1. Order'!P141=\"\",\"\",'1. Order'!P141)","v":{"$error":"#N/A"}},{"$f":"IF('1. Order'!Q141=\"\",\"\",'1. Order'!Q141)","v":""},{"$f":"IF('1. Order'!R141=\"\",\"\",'1. Order'!R141)","v":""},{"$f":"IF('1. Order'!S141=\"\",\"\",'1. Order'!S141)","v":""},{"$f":"IF('1. Order'!V141=\"\",\"\",'1. Order'!V141)","v":""},{"$f":"IF('1. Order'!W141=\"\",\"\",'1. Order'!W141)","v":""},{"$f":"IF('1. Order'!X141=\"\",\"\",'1. Order'!X141)","v":"EUR"},{"$f":"IF('1. Order'!Y141=\"\",\"\",'1. Order'!Y141)","v":""},{"$f":"IF('1. Order'!Z141=\"\",\"\",'1. Order'!Z141)","v":""},{"$f":"IF('1. Order'!AA141=\"\",\"\",'1. Order'!AA141)","v":""},null,{"$f":"IF('1. Order'!AS141=\"\",\"\",'1. Order'!AS141)","v":""},{"$f":"IF('1. Order'!AT141=\"\",\"\",'1. Order'!AT141)","v":""},null,null,null,null,null,null,null,{"$f":"IF('1. Order'!AX141=\"\",\"\",'1. Order'!AX141)","v":""},{"$f":"IF('1. Order'!AY141=\"\",\"\",'1. Order'!AY141)","v":""},{"$f":"IF('1. Order'!AZ141=\"\",\"\",'1. Order'!AZ141)","v":""},{"$f":"IF('1. Order'!BA141=\"\",\"\",'1. Order'!BA141)","v":""},{"$f":"IF('1. Order'!BC141=\"\",\"\",'1. Order'!BC141)","v":""},{"$f":"IF('1. Order'!BD141=\"\",\"\",'1. Order'!BD141)","v":6},{"$f":"IF('1. Order'!BE141=\"\",\"\",'1. Order'!BE141)","v":"None"},{"$f":"IF('1. Order'!BF141=\"\",\"\",'1. Order'!BF141)","v":"Parcel"},{"$f":"IF('1. Order'!BG141=\"\",\"\",'1. Order'!BG141)","v":"ZWO"}]
[{"$f":"IF('1. Order'!F142=\"\",\"\",'1. Order'!F142)","v":""},{"$f":"IF('1. Order'!G142=\"\",\"\",'1. Order'!G142)","v":""},{"$f":"IF('1. Order'!H142=\"\",\"\",'1. Order'!H142)","v":""},{"$f":"IF('1. Order'!I142=\"\",\"\",'1. Order'!I142)","v":""},{"$f":"IF('1. Order'!J142=\"\",\"\",'1. Order'!J142)","v":""},{"$f":"IF('1. Order'!K142=\"\",\"\",'1. Order'!K142)","v":""},{"$f":"IF('1. Order'!L142=\"\",\"\",'1. Order'!L142)","v":""},{"$f":"IF('1. Order'!M142=\"\",\"\",'1. Order'!M142)","v":""},{"$f":"IF('1. Order'!N142=\"\",\"\",'1. Order'!N142)","v":""},{"$f":"IF('1. Order'!O142=\"\",\"\",'1. Order'!O142)","v":{"$error":"#N/A"}},{"$f":"IF('1. Order'!P142=\"\",\"\",'1. Order'!P142)","v":{"$error":"#N/A"}},{"$f":"IF('1. Order'!Q142=\"\",\"\",'1. Order'!Q142)","v":""},{"$f":"IF('1. Order'!R142=\"\",\"\",'1. Order'!R142)","v":""},{"$f":"IF('1. Order'!S142=\"\",\"\",'1. Order'!S142)","v":""},{"$f":"IF('1. Order'!V142=\"\",\"\",'1. Order'!V142)","v":""},{"$f":"IF('1. Order'!W142=\"\",\"\",'1. Order'!W142)","v":""},{"$f":"IF('1. Order'!X142=\"\",\"\",'1. Order'!X142)","v":"EUR"},{"$f":"IF('1. Order'!Y142=\"\",\"\",'1. Order'!Y142)","v":""},{"$f":"IF('1. Order'!Z142=\"\",\"\",'1. Order'!Z142)","v":""},{"$f":"IF('1. Order'!AA142=\"\",\"\",'1. Order'!AA142)","v":""},null,{"$f":"IF('1. Order'!AS142=\"\",\"\",'1. Order'!AS142)","v":""},{"$f":"IF('1. Order'!AT142=\"\",\"\",'1. Order'!AT142)","v":""},null,null,null,null,null,null,null,{"$f":"IF('1. Order'!AX142=\"\",\"\",'1. Order'!AX142)","v":""},{"$f":"IF('1. Order'!AY142=\"\",\"\",'1. Order'!AY142)","v":""},{"$f":"IF('1. Order'!AZ142=\"\",\"\",'1. Order'!AZ142)","v":""},{"$f":"IF('1. Order'!BA142=\"\",\"\",'1. Order'!BA142)","v":""},{"$f":"IF('1. Order'!BC142=\"\",\"\",'1. Order'!BC142)","v":""},{"$f":"IF('1. Order'!BD142=\"\",\"\",'1. Order'!BD142)","v":6},{"$f":"IF('1. Order'!BE142=\"\",\"\",'1. Order'!BE142)","v":"None"},{"$f":"IF('1. Order'!BF142=\"\",\"\",'1. Order'!BF142)","v":"Parcel"},{"$f":"IF('1. Order'!BG142=\"\",\"\",'1. Order'!BG142)","v":"ZWO"}]
[{"$f":"IF('1. Order'!F143=\"\",\"\",'1. Order'!F143)","v":""},{"$f":"IF('1. Order'!G143=\"\",\"\",'1. Order'!G143)","v":""},{"$f":"IF('1. Order'!H143=\"\",\"\",'1. Order'!H143)","v":""},{"$f":"IF('1. Order'!I143=\"\",\"\",'1. Order'!I143)","v":""},{"$f":"IF('1. Order'!J143=\"\",\"\",'1. Order'!J143)","v":""},{"$f":"IF('1. Order'!K143=\"\",\"\",'1. Order'!K143)","v":""},{"$f":"IF('1. Order'!L143=\"\",\"\",'1. Order'!L143)","v":""},{"$f":"IF('1. Order'!M143=\"\",\"\",'1. Order'!M143)","v":""},{"$f":"IF('1. Order'!N143=\"\",\"\",'1. Order'!N143)","v":""},{"$f":"IF('1. Order'!O143=\"\",\"\",'1. Order'!O143)","v":{"$error":"#N/A"}},{"$f":"IF('1. Order'!P143=\"\",\"\",'1. Order'!P143)","v":{"$error":"#N/A"}},{"$f":"IF('1. Order'!Q143=\"\",\"\",'1. Order'!Q143)","v":""},{"$f":"IF('1. Order'!R143=\"\",\"\",'1. Order'!R143)","v":""},{"$f":"IF('1. Order'!S143=\"\",\"\",'1. Order'!S143)","v":""},{"$f":"IF('1. Order'!V143=\"\",\"\",'1. Order'!V143)","v":""},{"$f":"IF('1. Order'!W143=\"\",\"\",'1. Order'!W143)","v":""},{"$f":"IF('1. Order'!X143=\"\",\"\",'1. Order'!X143)","v":"EUR"},{"$f":"IF('1. Order'!Y143=\"\",\"\",'1. Order'!Y143)","v":""},{"$f":"IF('1. Order'!Z143=\"\",\"\",'1. Order'!Z143)","v":""},{"$f":"IF('1. Order'!AA143=\"\",\"\",'1. Order'!AA143)","v":""},null,{"$f":"IF('1. Order'!AS143=\"\",\"\",'1. Order'!AS143)","v":""},{"$f":"IF('1. Order'!AT143=\"\",\"\",'1. Order'!AT143)","v":""},null,null,null,null,null,null,null,{"$f":"IF('1. Order'!AX143=\"\",\"\",'1. Order'!AX143)","v":""},{"$f":"IF('1. Order'!AY143=\"\",\"\",'1. Order'!AY143)","v":""},{"$f":"IF('1. Order'!AZ143=\"\",\"\",'1. Order'!AZ143)","v":""},{"$f":"IF('1. Order'!BA143=\"\",\"\",'1. Order'!BA143)","v":""},{"$f":"IF('1. Order'!BC143=\"\",\"\",'1. Order'!BC143)","v":""},{"$f":"IF('1. Order'!BD143=\"\",\"\",'1. Order'!BD143)","v":6},{"$f":"IF('1. Order'!BE143=\"\",\"\",'1. Order'!BE143)","v":"None"},{"$f":"IF('1. Order'!BF143=\"\",\"\",'1. Order'!BF143)","v":"Parcel"},{"$f":"IF('1. Order'!BG143=\"\",\"\",'1. Order'!BG143)","v":"ZWO"}]
[{"$f":"IF('1. Order'!F144=\"\",\"\",'1. Order'!F144)","v":""},{"$f":"IF('1. Order'!G144=\"\",\"\",'1. Order'!G144)","v":""},{"$f":"IF('1. Order'!H144=\"\",\"\",'1. Order'!H144)","v":""},{"$f":"IF('1. Order'!I144=\"\",\"\",'1. Order'!I144)","v":""},{"$f":"IF('1. Order'!J144=\"\",\"\",'1. Order'!J144)","v":""},{"$f":"IF('1. Order'!K144=\"\",\"\",'1. Order'!K144)","v":""},{"$f":"IF('1. Order'!L144=\"\",\"\",'1. Order'!L144)","v":""},{"$f":"IF('1. Order'!M144=\"\",\"\",'1. Order'!M144)","v":""},{"$f":"IF('1. Order'!N144=\"\",\"\",'1. Order'!N144)","v":""},{"$f":"IF('1. Order'!O144=\"\",\"\",'1. Order'!O144)","v":{"$error":"#N/A"}},{"$f":"IF('1. Order'!P144=\"\",\"\",'1. Order'!P144)","v":{"$error":"#N/A"}},{"$f":"IF('1. Order'!Q144=\"\",\"\",'1. Order'!Q144)","v":""},{"$f":"IF('1. Order'!R144=\"\",\"\",'1. Order'!R144)","v":""},{"$f":"IF('1. Order'!S144=\"\",\"\",'1. Order'!S144)","v":""},{"$f":"IF('1. Order'!V144=\"\",\"\",'1. Order'!V144)","v":""},{"$f":"IF('1. Order'!W144=\"\",\"\",'1. Order'!W144)","v":""},{"$f":"IF('1. Order'!X144=\"\",\"\",'1. Order'!X144)","v":"EUR"},{"$f":"IF('1. Order'!Y144=\"\",\"\",'1. Order'!Y144)","v":""},{"$f":"IF('1. Order'!Z144=\"\",\"\",'1. Order'!Z144)","v":""},{"$f":"IF('1. Order'!AA144=\"\",\"\",'1. Order'!AA144)","v":""},null,{"$f":"IF('1. Order'!AS144=\"\",\"\",'1. Order'!AS144)","v":""},{"$f":"IF('1. Order'!AT144=\"\",\"\",'1. Order'!AT144)","v":""},null,null,null,null,null,null,null,{"$f":"IF('1. Order'!AX144=\"\",\"\",'1. Order'!AX144)","v":""},{"$f":"IF('1. Order'!AY144=\"\",\"\",'1. Order'!AY144)","v":""},{"$f":"IF('1. Order'!AZ144=\"\",\"\",'1. Order'!AZ144)","v":""},{"$f":"IF('1. Order'!BA144=\"\",\"\",'1. Order'!BA144)","v":""},{"$f":"IF('1. Order'!BC144=\"\",\"\",'1. Order'!BC144)","v":""},{"$f":"IF('1. Order'!BD144=\"\",\"\",'1. Order'!BD144)","v":6},{"$f":"IF('1. Order'!BE144=\"\",\"\",'1. Order'!BE144)","v":"None"},{"$f":"IF('1. Order'!BF144=\"\",\"\",'1. Order'!BF144)","v":"Parcel"},{"$f":"IF('1. Order'!BG144=\"\",\"\",'1. Order'!BG144)","v":"ZWO"}]
[{"$f":"IF('1. Order'!F145=\"\",\"\",'1. Order'!F145)","v":""},{"$f":"IF('1. Order'!G145=\"\",\"\",'1. Order'!G145)","v":""},{"$f":"IF('1. Order'!H145=\"\",\"\",'1. Order'!H145)","v":""},{"$f":"IF('1. Order'!I145=\"\",\"\",'1. Order'!I145)","v":""},{"$f":"IF('1. Order'!J145=\"\",\"\",'1. Order'!J145)","v":""},{"$f":"IF('1. Order'!K145=\"\",\"\",'1. Order'!K145)","v":""},{"$f":"IF('1. Order'!L145=\"\",\"\",'1. Order'!L145)","v":""},{"$f":"IF('1. Order'!M145=\"\",\"\",'1. Order'!M145)","v":""},{"$f":"IF('1. Order'!N145=\"\",\"\",'1. Order'!N145)","v":""},{"$f":"IF('1. Order'!O145=\"\",\"\",'1. Order'!O145)","v":{"$error":"#N/A"}},{"$f":"IF('1. Order'!P145=\"\",\"\",'1. Order'!P145)","v":{"$error":"#N/A"}},{"$f":"IF('1. Order'!Q145=\"\",\"\",'1. Order'!Q145)","v":""},{"$f":"IF('1. Order'!R145=\"\",\"\",'1. Order'!R145)","v":""},{"$f":"IF('1. Order'!S145=\"\",\"\",'1. Order'!S145)","v":""},{"$f":"IF('1. Order'!V145=\"\",\"\",'1. Order'!V145)","v":""},{"$f":"IF('1. Order'!W145=\"\",\"\",'1. Order'!W145)","v":""},{"$f":"IF('1. Order'!X145=\"\",\"\",'1. Order'!X145)","v":"EUR"},{"$f":"IF('1. Order'!Y145=\"\",\"\",'1. Order'!Y145)","v":""},{"$f":"IF('1. Order'!Z145=\"\",\"\",'1. Order'!Z145)","v":""},{"$f":"IF('1. Order'!AA145=\"\",\"\",'1. Order'!AA145)","v":""},null,{"$f":"IF('1. Order'!AS145=\"\",\"\",'1. Order'!AS145)","v":""},{"$f":"IF('1. Order'!AT145=\"\",\"\",'1. Order'!AT145)","v":""},null,null,null,null,null,null,null,{"$f":"IF('1. Order'!AX145=\"\",\"\",'1. Order'!AX145)","v":""},{"$f":"IF('1. Order'!AY145=\"\",\"\",'1. Order'!AY145)","v":""},{"$f":"IF('1. Order'!AZ145=\"\",\"\",'1. Order'!AZ145)","v":""},{"$f":"IF('1. Order'!BA145=\"\",\"\",'1. Order'!BA145)","v":""},{"$f":"IF('1. Order'!BC145=\"\",\"\",'1. Order'!BC145)","v":""},{"$f":"IF('1. Order'!BD145=\"\",\"\",'1. Order'!BD145)","v":6},{"$f":"IF('1. Order'!BE145=\"\",\"\",'1. Order'!BE145)","v":"None"},{"$f":"IF('1. Order'!BF145=\"\",\"\",'1. Order'!BF145)","v":"Parcel"},{"$f":"IF('1. Order'!BG145=\"\",\"\",'1. Order'!BG145)","v":"ZWO"}]
[{"$f":"IF('1. Order'!F146=\"\",\"\",'1. Order'!F146)","v":""},{"$f":"IF('1. Order'!G146=\"\",\"\",'1. Order'!G146)","v":""},{"$f":"IF('1. Order'!H146=\"\",\"\",'1. Order'!H146)","v":""},{"$f":"IF('1. Order'!I146=\"\",\"\",'1. Order'!I146)","v":""},{"$f":"IF('1. Order'!J146=\"\",\"\",'1. Order'!J146)","v":""},{"$f":"IF('1. Order'!K146=\"\",\"\",'1. Order'!K146)","v":""},{"$f":"IF('1. Order'!L146=\"\",\"\",'1. Order'!L146)","v":""},{"$f":"IF('1. Order'!M146=\"\",\"\",'1. Order'!M146)","v":""},{"$f":"IF('1. Order'!N146=\"\",\"\",'1. Order'!N146)","v":""},{"$f":"IF('1. Order'!O146=\"\",\"\",'1. Order'!O146)","v":{"$error":"#N/A"}},{"$f":"IF('1. Order'!P146=\"\",\"\",'1. Order'!P146)","v":{"$error":"#N/A"}},{"$f":"IF('1. Order'!Q146=\"\",\"\",'1. Order'!Q146)","v":""},{"$f":"IF('1. Order'!R146=\"\",\"\",'1. Order'!R146)","v":""},{"$f":"IF('1. Order'!S146=\"\",\"\",'1. Order'!S146)","v":""},{"$f":"IF('1. Order'!V146=\"\",\"\",'1. Order'!V146)","v":""},{"$f":"IF('1. Order'!W146=\"\",\"\",'1. Order'!W146)","v":""},{"$f":"IF('1. Order'!X146=\"\",\"\",'1. Order'!X146)","v":"EUR"},{"$f":"IF('1. Order'!Y146=\"\",\"\",'1. Order'!Y146)","v":""},{"$f":"IF('1. Order'!Z146=\"\",\"\",'1. Order'!Z146)","v":""},{"$f":"IF('1. Order'!AA146=\"\",\"\",'1. Order'!AA146)","v":""},null,{"$f":"IF('1. Order'!AS146=\"\",\"\",'1. Order'!AS146)","v":""},{"$f":"IF('1. Order'!AT146=\"\",\"\",'1. Order'!AT146)","v":""},null,null,null,null,null,null,null,{"$f":"IF('1. Order'!AX146=\"\",\"\",'1. Order'!AX146)","v":""},{"$f":"IF('1. Order'!AY146=\"\",\"\",'1. Order'!AY146)","v":""},{"$f":"IF('1. Order'!AZ146=\"\",\"\",'1. Order'!AZ146)","v":""},{"$f":"IF('1. Order'!BA146=\"\",\"\",'1. Order'!BA146)","v":""},{"$f":"IF('1. Order'!BC146=\"\",\"\",'1. Order'!BC146)","v":""},{"$f":"IF('1. Order'!BD146=\"\",\"\",'1. Order'!BD146)","v":6},{"$f":"IF('1. Order'!BE146=\"\",\"\",'1. Order'!BE146)","v":"None"},{"$f":"IF('1. Order'!BF146=\"\",\"\",'1. Order'!BF146)","v":"Parcel"},{"$f":"IF('1. Order'!BG146=\"\",\"\",'1. Order'!BG146)","v":"ZWO"}]
[{"$f":"IF('1. Order'!F147=\"\",\"\",'1. Order'!F147)","v":""},{"$f":"IF('1. Order'!G147=\"\",\"\",'1. Order'!G147)","v":""},{"$f":"IF('1. Order'!H147=\"\",\"\",'1. Order'!H147)","v":""},{"$f":"IF('1. Order'!I147=\"\",\"\",'1. Order'!I147)","v":""},{"$f":"IF('1. Order'!J147=\"\",\"\",'1. Order'!J147)","v":""},{"$f":"IF('1. Order'!K147=\"\",\"\",'1. Order'!K147)","v":""},{"$f":"IF('1. Order'!L147=\"\",\"\",'1. Order'!L147)","v":""},{"$f":"IF('1. Order'!M147=\"\",\"\",'1. Order'!M147)","v":""},{"$f":"IF('1. Order'!N147=\"\",\"\",'1. Order'!N147)","v":""},{"$f":"IF('1. Order'!O147=\"\",\"\",'1. Order'!O147)","v":{"$error":"#N/A"}},{"$f":"IF('1. Order'!P147=\"\",\"\",'1. Order'!P147)","v":{"$error":"#N/A"}},{"$f":"IF('1. Order'!Q147=\"\",\"\",'1. Order'!Q147)","v":""},{"$f":"IF('1. Order'!R147=\"\",\"\",'1. Order'!R147)","v":""},{"$f":"IF('1. Order'!S147=\"\",\"\",'1. Order'!S147)","v":""},{"$f":"IF('1. Order'!V147=\"\",\"\",'1. Order'!V147)","v":""},{"$f":"IF('1. Order'!W147=\"\",\"\",'1. Order'!W147)","v":""},{"$f":"IF('1. Order'!X147=\"\",\"\",'1. Order'!X147)","v":"EUR"},{"$f":"IF('1. Order'!Y147=\"\",\"\",'1. Order'!Y147)","v":""},{"$f":"IF('1. Order'!Z147=\"\",\"\",'1. Order'!Z147)","v":""},{"$f":"IF('1. Order'!AA147=\"\",\"\",'1. Order'!AA147)","v":""},null,{"$f":"IF('1. Order'!AS147=\"\",\"\",'1. Order'!AS147)","v":""},{"$f":"IF('1. Order'!AT147=\"\",\"\",'1. Order'!AT147)","v":""},null,null,null,null,null,null,null,{"$f":"IF('1. Order'!AX147=\"\",\"\",'1. Order'!AX147)","v":""},{"$f":"IF('1. Order'!AY147=\"\",\"\",'1. Order'!AY147)","v":""},{"$f":"IF('1. Order'!AZ147=\"\",\"\",'1. Order'!AZ147)","v":""},{"$f":"IF('1. Order'!BA147=\"\",\"\",'1. Order'!BA147)","v":""},{"$f":"IF('1. Order'!BC147=\"\",\"\",'1. Order'!BC147)","v":""},{"$f":"IF('1. Order'!BD147=\"\",\"\",'1. Order'!BD147)","v":6},{"$f":"IF('1. Order'!BE147=\"\",\"\",'1. Order'!BE147)","v":"None"},{"$f":"IF('1. Order'!BF147=\"\",\"\",'1. Order'!BF147)","v":"Parcel"},{"$f":"IF('1. Order'!BG147=\"\",\"\",'1. Order'!BG147)","v":"ZWO"}]
[{"$f":"IF('1. Order'!F148=\"\",\"\",'1. Order'!F148)","v":""},{"$f":"IF('1. Order'!G148=\"\",\"\",'1. Order'!G148)","v":""},{"$f":"IF('1. Order'!H148=\"\",\"\",'1. Order'!H148)","v":""},{"$f":"IF('1. Order'!I148=\"\",\"\",'1. Order'!I148)","v":""},{"$f":"IF('1. Order'!J148=\"\",\"\",'1. Order'!J148)","v":""},{"$f":"IF('1. Order'!K148=\"\",\"\",'1. Order'!K148)","v":""},{"$f":"IF('1. Order'!L148=\"\",\"\",'1. Order'!L148)","v":""},{"$f":"IF('1. Order'!M148=\"\",\"\",'1. Order'!M148)","v":""},{"$f":"IF('1. Order'!N148=\"\",\"\",'1. Order'!N148)","v":""},{"$f":"IF('1. Order'!O148=\"\",\"\",'1. Order'!O148)","v":{"$error":"#N/A"}},{"$f":"IF('1. Order'!P148=\"\",\"\",'1. Order'!P148)","v":{"$error":"#N/A"}},{"$f":"IF('1. Order'!Q148=\"\",\"\",'1. Order'!Q148)","v":""},{"$f":"IF('1. Order'!R148=\"\",\"\",'1. Order'!R148)","v":""},{"$f":"IF('1. Order'!S148=\"\",\"\",'1. Order'!S148)","v":""},{"$f":"IF('1. Order'!V148=\"\",\"\",'1. Order'!V148)","v":""},{"$f":"IF('1. Order'!W148=\"\",\"\",'1. Order'!W148)","v":""},{"$f":"IF('1. Order'!X148=\"\",\"\",'1. Order'!X148)","v":"EUR"},{"$f":"IF('1. Order'!Y148=\"\",\"\",'1. Order'!Y148)","v":""},{"$f":"IF('1. Order'!Z148=\"\",\"\",'1. Order'!Z148)","v":""},{"$f":"IF('1. Order'!AA148=\"\",\"\",'1. Order'!AA148)","v":""},null,{"$f":"IF('1. Order'!AS148=\"\",\"\",'1. Order'!AS148)","v":""},{"$f":"IF('1. Order'!AT148=\"\",\"\",'1. Order'!AT148)","v":""},null,null,null,null,null,null,null,{"$f":"IF('1. Order'!AX148=\"\",\"\",'1. Order'!AX148)","v":""},{"$f":"IF('1. Order'!AY148=\"\",\"\",'1. Order'!AY148)","v":""},{"$f":"IF('1. Order'!AZ148=\"\",\"\",'1. Order'!AZ148)","v":""},{"$f":"IF('1. Order'!BA148=\"\",\"\",'1. Order'!BA148)","v":""},{"$f":"IF('1. Order'!BC148=\"\",\"\",'1. Order'!BC148)","v":""},{"$f":"IF('1. Order'!BD148=\"\",\"\",'1. Order'!BD148)","v":6},{"$f":"IF('1. Order'!BE148=\"\",\"\",'1. Order'!BE148)","v":"None"},{"$f":"IF('1. Order'!BF148=\"\",\"\",'1. Order'!BF148)","v":"Parcel"},{"$f":"IF('1. Order'!BG148=\"\",\"\",'1. Order'!BG148)","v":"ZWO"}]
[{"$f":"IF('1. Order'!F149=\"\",\"\",'1. Order'!F149)","v":""},{"$f":"IF('1. Order'!G149=\"\",\"\",'1. Order'!G149)","v":""},{"$f":"IF('1. Order'!H149=\"\",\"\",'1. Order'!H149)","v":""},{"$f":"IF('1. Order'!I149=\"\",\"\",'1. Order'!I149)","v":""},{"$f":"IF('1. Order'!J149=\"\",\"\",'1. Order'!J149)","v":""},{"$f":"IF('1. Order'!K149=\"\",\"\",'1. Order'!K149)","v":""},{"$f":"IF('1. Order'!L149=\"\",\"\",'1. Order'!L149)","v":""},{"$f":"IF('1. Order'!M149=\"\",\"\",'1. Order'!M149)","v":""},{"$f":"IF('1. Order'!N149=\"\",\"\",'1. Order'!N149)","v":""},{"$f":"IF('1. Order'!O149=\"\",\"\",'1. Order'!O149)","v":{"$error":"#N/A"}},{"$f":"IF('1. Order'!P149=\"\",\"\",'1. Order'!P149)","v":{"$error":"#N/A"}},{"$f":"IF('1. Order'!Q149=\"\",\"\",'1. Order'!Q149)","v":""},{"$f":"IF('1. Order'!R149=\"\",\"\",'1. Order'!R149)","v":""},{"$f":"IF('1. Order'!S149=\"\",\"\",'1. Order'!S149)","v":""},{"$f":"IF('1. Order'!V149=\"\",\"\",'1. Order'!V149)","v":""},{"$f":"IF('1. Order'!W149=\"\",\"\",'1. Order'!W149)","v":""},{"$f":"IF('1. Order'!X149=\"\",\"\",'1. Order'!X149)","v":"EUR"},{"$f":"IF('1. Order'!Y149=\"\",\"\",'1. Order'!Y149)","v":""},{"$f":"IF('1. Order'!Z149=\"\",\"\",'1. Order'!Z149)","v":""},{"$f":"IF('1. Order'!AA149=\"\",\"\",'1. Order'!AA149)","v":""},null,{"$f":"IF('1. Order'!AS149=\"\",\"\",'1. Order'!AS149)","v":""},{"$f":"IF('1. Order'!AT149=\"\",\"\",'1. Order'!AT149)","v":""},null,null,null,null,null,null,null,{"$f":"IF('1. Order'!AX149=\"\",\"\",'1. Order'!AX149)","v":""},{"$f":"IF('1. Order'!AY149=\"\",\"\",'1. Order'!AY149)","v":""},{"$f":"IF('1. Order'!AZ149=\"\",\"\",'1. Order'!AZ149)","v":""},{"$f":"IF('1. Order'!BA149=\"\",\"\",'1. Order'!BA149)","v":""},{"$f":"IF('1. Order'!BC149=\"\",\"\",'1. Order'!BC149)","v":""},{"$f":"IF('1. Order'!BD149=\"\",\"\",'1. Order'!BD149)","v":6},{"$f":"IF('1. Order'!BE149=\"\",\"\",'1. Order'!BE149)","v":"None"},{"$f":"IF('1. Order'!BF149=\"\",\"\",'1. Order'!BF149)","v":"Parcel"},{"$f":"IF('1. Order'!BG149=\"\",\"\",'1. Order'!BG149)","v":"ZWO"}]
[{"$f":"IF('1. Order'!F150=\"\",\"\",'1. Order'!F150)","v":""},{"$f":"IF('1. Order'!G150=\"\",\"\",'1. Order'!G150)","v":""},{"$f":"IF('1. Order'!H150=\"\",\"\",'1. Order'!H150)","v":""},{"$f":"IF('1. Order'!I150=\"\",\"\",'1. Order'!I150)","v":""},{"$f":"IF('1. Order'!J150=\"\",\"\",'1. Order'!J150)","v":""},{"$f":"IF('1. Order'!K150=\"\",\"\",'1. Order'!K150)","v":""},{"$f":"IF('1. Order'!L150=\"\",\"\",'1. Order'!L150)","v":""},{"$f":"IF('1. Order'!M150=\"\",\"\",'1. Order'!M150)","v":""},{"$f":"IF('1. Order'!N150=\"\",\"\",'1. Order'!N150)","v":""},{"$f":"IF('1. Order'!O150=\"\",\"\",'1. Order'!O150)","v":{"$error":"#N/A"}},{"$f":"IF('1. Order'!P150=\"\",\"\",'1. Order'!P150)","v":{"$error":"#N/A"}},{"$f":"IF('1. Order'!Q150=\"\",\"\",'1. Order'!Q150)","v":""},{"$f":"IF('1. Order'!R150=\"\",\"\",'1. Order'!R150)","v":""},{"$f":"IF('1. Order'!S150=\"\",\"\",'1. Order'!S150)","v":""},{"$f":"IF('1. Order'!V150=\"\",\"\",'1. Order'!V150)","v":""},{"$f":"IF('1. Order'!W150=\"\",\"\",'1. Order'!W150)","v":""},{"$f":"IF('1. Order'!X150=\"\",\"\",'1. Order'!X150)","v":"EUR"},{"$f":"IF('1. Order'!Y150=\"\",\"\",'1. Order'!Y150)","v":""},{"$f":"IF('1. Order'!Z150=\"\",\"\",'1. Order'!Z150)","v":""},{"$f":"IF('1. Order'!AA150=\"\",\"\",'1. Order'!AA150)","v":""},null,{"$f":"IF('1. Order'!AS150=\"\",\"\",'1. Order'!AS150)","v":""},{"$f":"IF('1. Order'!AT150=\"\",\"\",'1. Order'!AT150)","v":""},null,null,null,null,null,null,null,{"$f":"IF('1. Order'!AX150=\"\",\"\",'1. Order'!AX150)","v":""},{"$f":"IF('1. Order'!AY150=\"\",\"\",'1. Order'!AY150)","v":""},{"$f":"IF('1. Order'!AZ150=\"\",\"\",'1. Order'!AZ150)","v":""},{"$f":"IF('1. Order'!BA150=\"\",\"\",'1. Order'!BA150)","v":""},{"$f":"IF('1. Order'!BC150=\"\",\"\",'1. Order'!BC150)","v":""},{"$f":"IF('1. Order'!BD150=\"\",\"\",'1. Order'!BD150)","v":6},{"$f":"IF('1. Order'!BE150=\"\",\"\",'1. Order'!BE150)","v":"None"},{"$f":"IF('1. Order'!BF150=\"\",\"\",'1. Order'!BF150)","v":"Parcel"},{"$f":"IF('1. Order'!BG150=\"\",\"\",'1. Order'!BG150)","v":"ZWO"}]
[{"$f":"IF('1. Order'!F151=\"\",\"\",'1. Order'!F151)","v":""},{"$f":"IF('1. Order'!G151=\"\",\"\",'1. Order'!G151)","v":""},{"$f":"IF('1. Order'!H151=\"\",\"\",'1. Order'!H151)","v":""},{"$f":"IF('1. Order'!I151=\"\",\"\",'1. Order'!I151)","v":""},{"$f":"IF('1. Order'!J151=\"\",\"\",'1. Order'!J151)","v":""},{"$f":"IF('1. Order'!K151=\"\",\"\",'1. Order'!K151)","v":""},{"$f":"IF('1. Order'!L151=\"\",\"\",'1. Order'!L151)","v":""},{"$f":"IF('1. Order'!M151=\"\",\"\",'1. Order'!M151)","v":""},{"$f":"IF('1. Order'!N151=\"\",\"\",'1. Order'!N151)","v":""},{"$f":"IF('1. Order'!O151=\"\",\"\",'1. Order'!O151)","v":{"$error":"#N/A"}},{"$f":"IF('1. Order'!P151=\"\",\"\",'1. Order'!P151)","v":{"$error":"#N/A"}},{"$f":"IF('1. Order'!Q151=\"\",\"\",'1. Order'!Q151)","v":""},{"$f":"IF('1. Order'!R151=\"\",\"\",'1. Order'!R151)","v":""},{"$f":"IF('1. Order'!S151=\"\",\"\",'1. Order'!S151)","v":""},{"$f":"IF('1. Order'!V151=\"\",\"\",'1. Order'!V151)","v":""},{"$f":"IF('1. Order'!W151=\"\",\"\",'1. Order'!W151)","v":""},{"$f":"IF('1. Order'!X151=\"\",\"\",'1. Order'!X151)","v":"EUR"},{"$f":"IF('1. Order'!Y151=\"\",\"\",'1. Order'!Y151)","v":""},{"$f":"IF('1. Order'!Z151=\"\",\"\",'1. Order'!Z151)","v":""},{"$f":"IF('1. Order'!AA151=\"\",\"\",'1. Order'!AA151)","v":""},null,{"$f":"IF('1. Order'!AS151=\"\",\"\",'1. Order'!AS151)","v":""},{"$f":"IF('1. Order'!AT151=\"\",\"\",'1. Order'!AT151)","v":""},null,null,null,null,null,null,null,{"$f":"IF('1. Order'!AX151=\"\",\"\",'1. Order'!AX151)","v":""},{"$f":"IF('1. Order'!AY151=\"\",\"\",'1. Order'!AY151)","v":""},{"$f":"IF('1. Order'!AZ151=\"\",\"\",'1. Order'!AZ151)","v":""},{"$f":"IF('1. Order'!BA151=\"\",\"\",'1. Order'!BA151)","v":""},{"$f":"IF('1. Order'!BC151=\"\",\"\",'1. Order'!BC151)","v":""},{"$f":"IF('1. Order'!BD151=\"\",\"\",'1. Order'!BD151)","v":6},{"$f":"IF('1. Order'!BE151=\"\",\"\",'1. Order'!BE151)","v":"None"},{"$f":"IF('1. Order'!BF151=\"\",\"\",'1. Order'!BF151)","v":"Parcel"},{"$f":"IF('1. Order'!BG151=\"\",\"\",'1. Order'!BG151)","v":"ZWO"}]
[{"$f":"IF('1. Order'!F152=\"\",\"\",'1. Order'!F152)","v":""},{"$f":"IF('1. Order'!G152=\"\",\"\",'1. Order'!G152)","v":""},{"$f":"IF('1. Order'!H152=\"\",\"\",'1. Order'!H152)","v":""},{"$f":"IF('1. Order'!I152=\"\",\"\",'1. Order'!I152)","v":""},{"$f":"IF('1. Order'!J152=\"\",\"\",'1. Order'!J152)","v":""},{"$f":"IF('1. Order'!K152=\"\",\"\",'1. Order'!K152)","v":""},{"$f":"IF('1. Order'!L152=\"\",\"\",'1. Order'!L152)","v":""},{"$f":"IF('1. Order'!M152=\"\",\"\",'1. Order'!M152)","v":""},{"$f":"IF('1. Order'!N152=\"\",\"\",'1. Order'!N152)","v":""},{"$f":"IF('1. Order'!O152=\"\",\"\",'1. Order'!O152)","v":{"$error":"#N/A"}},{"$f":"IF('1. Order'!P152=\"\",\"\",'1. Order'!P152)","v":{"$error":"#N/A"}},{"$f":"IF('1. Order'!Q152=\"\",\"\",'1. Order'!Q152)","v":""},{"$f":"IF('1. Order'!R152=\"\",\"\",'1. Order'!R152)","v":""},{"$f":"IF('1. Order'!S152=\"\",\"\",'1. Order'!S152)","v":""},{"$f":"IF('1. Order'!V152=\"\",\"\",'1. Order'!V152)","v":""},{"$f":"IF('1. Order'!W152=\"\",\"\",'1. Order'!W152)","v":""},{"$f":"IF('1. Order'!X152=\"\",\"\",'1. Order'!X152)","v":"EUR"},{"$f":"IF('1. Order'!Y152=\"\",\"\",'1. Order'!Y152)","v":""},{"$f":"IF('1. Order'!Z152=\"\",\"\",'1. Order'!Z152)","v":""},{"$f":"IF('1. Order'!AA152=\"\",\"\",'1. Order'!AA152)","v":""},null,{"$f":"IF('1. Order'!AS152=\"\",\"\",'1. Order'!AS152)","v":""},{"$f":"IF('1. Order'!AT152=\"\",\"\",'1. Order'!AT152)","v":""},null,null,null,null,null,null,null,{"$f":"IF('1. Order'!AX152=\"\",\"\",'1. Order'!AX152)","v":""},{"$f":"IF('1. Order'!AY152=\"\",\"\",'1. Order'!AY152)","v":""},{"$f":"IF('1. Order'!AZ152=\"\",\"\",'1. Order'!AZ152)","v":""},{"$f":"IF('1. Order'!BA152=\"\",\"\",'1. Order'!BA152)","v":""},{"$f":"IF('1. Order'!BC152=\"\",\"\",'1. Order'!BC152)","v":""},{"$f":"IF('1. Order'!BD152=\"\",\"\",'1. Order'!BD152)","v":6},{"$f":"IF('1. Order'!BE152=\"\",\"\",'1. Order'!BE152)","v":"None"},{"$f":"IF('1. Order'!BF152=\"\",\"\",'1. Order'!BF152)","v":"Parcel"},{"$f":"IF('1. Order'!BG152=\"\",\"\",'1. Order'!BG152)","v":"ZWO"}]
[{"$f":"IF('1. Order'!F153=\"\",\"\",'1. Order'!F153)","v":""},{"$f":"IF('1. Order'!G153=\"\",\"\",'1. Order'!G153)","v":""},{"$f":"IF('1. Order'!H153=\"\",\"\",'1. Order'!H153)","v":""},{"$f":"IF('1. Order'!I153=\"\",\"\",'1. Order'!I153)","v":""},{"$f":"IF('1. Order'!J153=\"\",\"\",'1. Order'!J153)","v":""},{"$f":"IF('1. Order'!K153=\"\",\"\",'1. Order'!K153)","v":""},{"$f":"IF('1. Order'!L153=\"\",\"\",'1. Order'!L153)","v":""},{"$f":"IF('1. Order'!M153=\"\",\"\",'1. Order'!M153)","v":""},{"$f":"IF('1. Order'!N153=\"\",\"\",'1. Order'!N153)","v":""},{"$f":"IF('1. Order'!O153=\"\",\"\",'1. Order'!O153)","v":{"$error":"#N/A"}},{"$f":"IF('1. Order'!P153=\"\",\"\",'1. Order'!P153)","v":{"$error":"#N/A"}},{"$f":"IF('1. Order'!Q153=\"\",\"\",'1. Order'!Q153)","v":""},{"$f":"IF('1. Order'!R153=\"\",\"\",'1. Order'!R153)","v":""},{"$f":"IF('1. Order'!S153=\"\",\"\",'1. Order'!S153)","v":""},{"$f":"IF('1. Order'!V153=\"\",\"\",'1. Order'!V153)","v":""},{"$f":"IF('1. Order'!W153=\"\",\"\",'1. Order'!W153)","v":""},{"$f":"IF('1. Order'!X153=\"\",\"\",'1. Order'!X153)","v":"EUR"},{"$f":"IF('1. Order'!Y153=\"\",\"\",'1. Order'!Y153)","v":""},{"$f":"IF('1. Order'!Z153=\"\",\"\",'1. Order'!Z153)","v":""},{"$f":"IF('1. Order'!AA153=\"\",\"\",'1. Order'!AA153)","v":""},null,{"$f":"IF('1. Order'!AS153=\"\",\"\",'1. Order'!AS153)","v":""},{"$f":"IF('1. Order'!AT153=\"\",\"\",'1. Order'!AT153)","v":""},null,null,null,null,null,null,null,{"$f":"IF('1. Order'!AX153=\"\",\"\",'1. Order'!AX153)","v":""},{"$f":"IF('1. Order'!AY153=\"\",\"\",'1. Order'!AY153)","v":""},{"$f":"IF('1. Order'!AZ153=\"\",\"\",'1. Order'!AZ153)","v":""},{"$f":"IF('1. Order'!BA153=\"\",\"\",'1. Order'!BA153)","v":""},{"$f":"IF('1. Order'!BC153=\"\",\"\",'1. Order'!BC153)","v":""},{"$f":"IF('1. Order'!BD153=\"\",\"\",'1. Order'!BD153)","v":6},{"$f":"IF('1. Order'!BE153=\"\",\"\",'1. Order'!BE153)","v":"None"},{"$f":"IF('1. Order'!BF153=\"\",\"\",'1. Order'!BF153)","v":"Parcel"},{"$f":"IF('1. Order'!BG153=\"\",\"\",'1. Order'!BG153)","v":"ZWO"}]
[{"$f":"IF('1. Order'!F154=\"\",\"\",'1. Order'!F154)","v":""},{"$f":"IF('1. Order'!G154=\"\",\"\",'1. Order'!G154)","v":""},{"$f":"IF('1. Order'!H154=\"\",\"\",'1. Order'!H154)","v":""},{"$f":"IF('1. Order'!I154=\"\",\"\",'1. Order'!I154)","v":""},{"$f":"IF('1. Order'!J154=\"\",\"\",'1. Order'!J154)","v":""},{"$f":"IF('1. Order'!K154=\"\",\"\",'1. Order'!K154)","v":""},{"$f":"IF('1. Order'!L154=\"\",\"\",'1. Order'!L154)","v":""},{"$f":"IF('1. Order'!M154=\"\",\"\",'1. Order'!M154)","v":""},{"$f":"IF('1. Order'!N154=\"\",\"\",'1. Order'!N154)","v":""},{"$f":"IF('1. Order'!O154=\"\",\"\",'1. Order'!O154)","v":{"$error":"#N/A"}},{"$f":"IF('1. Order'!P154=\"\",\"\",'1. Order'!P154)","v":{"$error":"#N/A"}},{"$f":"IF('1. Order'!Q154=\"\",\"\",'1. Order'!Q154)","v":""},{"$f":"IF('1. Order'!R154=\"\",\"\",'1. Order'!R154)","v":""},{"$f":"IF('1. Order'!S154=\"\",\"\",'1. Order'!S154)","v":""},{"$f":"IF('1. Order'!V154=\"\",\"\",'1. Order'!V154)","v":""},{"$f":"IF('1. Order'!W154=\"\",\"\",'1. Order'!W154)","v":""},{"$f":"IF('1. Order'!X154=\"\",\"\",'1. Order'!X154)","v":"EUR"},{"$f":"IF('1. Order'!Y154=\"\",\"\",'1. Order'!Y154)","v":""},{"$f":"IF('1. Order'!Z154=\"\",\"\",'1. Order'!Z154)","v":""},{"$f":"IF('1. Order'!AA154=\"\",\"\",'1. Order'!AA154)","v":""},null,{"$f":"IF('1. Order'!AS154=\"\",\"\",'1. Order'!AS154)","v":""},{"$f":"IF('1. Order'!AT154=\"\",\"\",'1. Order'!AT154)","v":""},null,null,null,null,null,null,null,{"$f":"IF('1. Order'!AX154=\"\",\"\",'1. Order'!AX154)","v":""},{"$f":"IF('1. Order'!AY154=\"\",\"\",'1. Order'!AY154)","v":""},{"$f":"IF('1. Order'!AZ154=\"\",\"\",'1. Order'!AZ154)","v":""},{"$f":"IF('1. Order'!BA154=\"\",\"\",'1. Order'!BA154)","v":""},{"$f":"IF('1. Order'!BC154=\"\",\"\",'1. Order'!BC154)","v":""},{"$f":"IF('1. Order'!BD154=\"\",\"\",'1. Order'!BD154)","v":6},{"$f":"IF('1. Order'!BE154=\"\",\"\",'1. Order'!BE154)","v":"None"},{"$f":"IF('1. Order'!BF154=\"\",\"\",'1. Order'!BF154)","v":"Parcel"},{"$f":"IF('1. Order'!BG154=\"\",\"\",'1. Order'!BG154)","v":"ZWO"}]
[{"$f":"IF('1. Order'!F155=\"\",\"\",'1. Order'!F155)","v":""},{"$f":"IF('1. Order'!G155=\"\",\"\",'1. Order'!G155)","v":""},{"$f":"IF('1. Order'!H155=\"\",\"\",'1. Order'!H155)","v":""},{"$f":"IF('1. Order'!I155=\"\",\"\",'1. Order'!I155)","v":""},{"$f":"IF('1. Order'!J155=\"\",\"\",'1. Order'!J155)","v":""},{"$f":"IF('1. Order'!K155=\"\",\"\",'1. Order'!K155)","v":""},{"$f":"IF('1. Order'!L155=\"\",\"\",'1. Order'!L155)","v":""},{"$f":"IF('1. Order'!M155=\"\",\"\",'1. Order'!M155)","v":""},{"$f":"IF('1. Order'!N155=\"\",\"\",'1. Order'!N155)","v":""},{"$f":"IF('1. Order'!O155=\"\",\"\",'1. Order'!O155)","v":{"$error":"#N/A"}},{"$f":"IF('1. Order'!P155=\"\",\"\",'1. Order'!P155)","v":{"$error":"#N/A"}},{"$f":"IF('1. Order'!Q155=\"\",\"\",'1. Order'!Q155)","v":""},{"$f":"IF('1. Order'!R155=\"\",\"\",'1. Order'!R155)","v":""},{"$f":"IF('1. Order'!S155=\"\",\"\",'1. Order'!S155)","v":""},{"$f":"IF('1. Order'!V155=\"\",\"\",'1. Order'!V155)","v":""},{"$f":"IF('1. Order'!W155=\"\",\"\",'1. Order'!W155)","v":""},{"$f":"IF('1. Order'!X155=\"\",\"\",'1. Order'!X155)","v":"EUR"},{"$f":"IF('1. Order'!Y155=\"\",\"\",'1. Order'!Y155)","v":""},{"$f":"IF('1. Order'!Z155=\"\",\"\",'1. Order'!Z155)","v":""},{"$f":"IF('1. Order'!AA155=\"\",\"\",'1. Order'!AA155)","v":""},null,{"$f":"IF('1. Order'!AS155=\"\",\"\",'1. Order'!AS155)","v":""},{"$f":"IF('1. Order'!AT155=\"\",\"\",'1. Order'!AT155)","v":""},null,null,null,null,null,null,null,{"$f":"IF('1. Order'!AX155=\"\",\"\",'1. Order'!AX155)","v":""},{"$f":"IF('1. Order'!AY155=\"\",\"\",'1. Order'!AY155)","v":""},{"$f":"IF('1. Order'!AZ155=\"\",\"\",'1. Order'!AZ155)","v":""},{"$f":"IF('1. Order'!BA155=\"\",\"\",'1. Order'!BA155)","v":""},{"$f":"IF('1. Order'!BC155=\"\",\"\",'1. Order'!BC155)","v":""},{"$f":"IF('1. Order'!BD155=\"\",\"\",'1. Order'!BD155)","v":6},{"$f":"IF('1. Order'!BE155=\"\",\"\",'1. Order'!BE155)","v":"None"},{"$f":"IF('1. Order'!BF155=\"\",\"\",'1. Order'!BF155)","v":"Parcel"},{"$f":"IF('1. Order'!BG155=\"\",\"\",'1. Order'!BG155)","v":"ZWO"}]
[{"$f":"IF('1. Order'!F156=\"\",\"\",'1. Order'!F156)","v":""},{"$f":"IF('1. Order'!G156=\"\",\"\",'1. Order'!G156)","v":""},{"$f":"IF('1. Order'!H156=\"\",\"\",'1. Order'!H156)","v":""},{"$f":"IF('1. Order'!I156=\"\",\"\",'1. Order'!I156)","v":""},{"$f":"IF('1. Order'!J156=\"\",\"\",'1. Order'!J156)","v":""},{"$f":"IF('1. Order'!K156=\"\",\"\",'1. Order'!K156)","v":""},{"$f":"IF('1. Order'!L156=\"\",\"\",'1. Order'!L156)","v":""},{"$f":"IF('1. Order'!M156=\"\",\"\",'1. Order'!M156)","v":""},{"$f":"IF('1. Order'!N156=\"\",\"\",'1. Order'!N156)","v":""},{"$f":"IF('1. Order'!O156=\"\",\"\",'1. Order'!O156)","v":{"$error":"#N/A"}},{"$f":"IF('1. Order'!P156=\"\",\"\",'1. Order'!P156)","v":{"$error":"#N/A"}},{"$f":"IF('1. Order'!Q156=\"\",\"\",'1. Order'!Q156)","v":""},{"$f":"IF('1. Order'!R156=\"\",\"\",'1. Order'!R156)","v":""},{"$f":"IF('1. Order'!S156=\"\",\"\",'1. Order'!S156)","v":""},{"$f":"IF('1. Order'!V156=\"\",\"\",'1. Order'!V156)","v":""},{"$f":"IF('1. Order'!W156=\"\",\"\",'1. Order'!W156)","v":""},{"$f":"IF('1. Order'!X156=\"\",\"\",'1. Order'!X156)","v":"EUR"},{"$f":"IF('1. Order'!Y156=\"\",\"\",'1. Order'!Y156)","v":""},{"$f":"IF('1. Order'!Z156=\"\",\"\",'1. Order'!Z156)","v":""},{"$f":"IF('1. Order'!AA156=\"\",\"\",'1. Order'!AA156)","v":""},null,{"$f":"IF('1. Order'!AS156=\"\",\"\",'1. Order'!AS156)","v":""},{"$f":"IF('1. Order'!AT156=\"\",\"\",'1. Order'!AT156)","v":""},null,null,null,null,null,null,null,{"$f":"IF('1. Order'!AX156=\"\",\"\",'1. Order'!AX156)","v":""},{"$f":"IF('1. Order'!AY156=\"\",\"\",'1. Order'!AY156)","v":""},{"$f":"IF('1. Order'!AZ156=\"\",\"\",'1. Order'!AZ156)","v":""},{"$f":"IF('1. Order'!BA156=\"\",\"\",'1. Order'!BA156)","v":""},{"$f":"IF('1. Order'!BC156=\"\",\"\",'1. Order'!BC156)","v":""},{"$f":"IF('1. Order'!BD156=\"\",\"\",'1. Order'!BD156)","v":6},{"$f":"IF('1. Order'!BE156=\"\",\"\",'1. Order'!BE156)","v":"None"},{"$f":"IF('1. Order'!BF156=\"\",\"\",'1. Order'!BF156)","v":"Parcel"},{"$f":"IF('1. Order'!BG156=\"\",\"\",'1. Order'!BG156)","v":"ZWO"}]
[{"$f":"IF('1. Order'!F157=\"\",\"\",'1. Order'!F157)","v":""},{"$f":"IF('1. Order'!G157=\"\",\"\",'1. Order'!G157)","v":""},{"$f":"IF('1. Order'!H157=\"\",\"\",'1. Order'!H157)","v":""},{"$f":"IF('1. Order'!I157=\"\",\"\",'1. Order'!I157)","v":""},{"$f":"IF('1. Order'!J157=\"\",\"\",'1. Order'!J157)","v":""},{"$f":"IF('1. Order'!K157=\"\",\"\",'1. Order'!K157)","v":""},{"$f":"IF('1. Order'!L157=\"\",\"\",'1. Order'!L157)","v":""},{"$f":"IF('1. Order'!M157=\"\",\"\",'1. Order'!M157)","v":""},{"$f":"IF('1. Order'!N157=\"\",\"\",'1. Order'!N157)","v":""},{"$f":"IF('1. Order'!O157=\"\",\"\",'1. Order'!O157)","v":{"$error":"#N/A"}},{"$f":"IF('1. Order'!P157=\"\",\"\",'1. Order'!P157)","v":{"$error":"#N/A"}},{"$f":"IF('1. Order'!Q157=\"\",\"\",'1. Order'!Q157)","v":""},{"$f":"IF('1. Order'!R157=\"\",\"\",'1. Order'!R157)","v":""},{"$f":"IF('1. Order'!S157=\"\",\"\",'1. Order'!S157)","v":""},{"$f":"IF('1. Order'!V157=\"\",\"\",'1. Order'!V157)","v":""},{"$f":"IF('1. Order'!W157=\"\",\"\",'1. Order'!W157)","v":""},{"$f":"IF('1. Order'!X157=\"\",\"\",'1. Order'!X157)","v":"EUR"},{"$f":"IF('1. Order'!Y157=\"\",\"\",'1. Order'!Y157)","v":""},{"$f":"IF('1. Order'!Z157=\"\",\"\",'1. Order'!Z157)","v":""},{"$f":"IF('1. Order'!AA157=\"\",\"\",'1. Order'!AA157)","v":""},null,{"$f":"IF('1. Order'!AS157=\"\",\"\",'1. Order'!AS157)","v":""},{"$f":"IF('1. Order'!AT157=\"\",\"\",'1. Order'!AT157)","v":""},null,null,null,null,null,null,null,{"$f":"IF('1. Order'!AX157=\"\",\"\",'1. Order'!AX157)","v":""},{"$f":"IF('1. Order'!AY157=\"\",\"\",'1. Order'!AY157)","v":""},{"$f":"IF('1. Order'!AZ157=\"\",\"\",'1. Order'!AZ157)","v":""},{"$f":"IF('1. Order'!BA157=\"\",\"\",'1. Order'!BA157)","v":""},{"$f":"IF('1. Order'!BC157=\"\",\"\",'1. Order'!BC157)","v":""},{"$f":"IF('1. Order'!BD157=\"\",\"\",'1. Order'!BD157)","v":6},{"$f":"IF('1. Order'!BE157=\"\",\"\",'1. Order'!BE157)","v":"None"},{"$f":"IF('1. Order'!BF157=\"\",\"\",'1. Order'!BF157)","v":"Parcel"},{"$f":"IF('1. Order'!BG157=\"\",\"\",'1. Order'!BG157)","v":"ZWO"}]
[{"$f":"IF('1. Order'!F158=\"\",\"\",'1. Order'!F158)","v":""},{"$f":"IF('1. Order'!G158=\"\",\"\",'1. Order'!G158)","v":""},{"$f":"IF('1. Order'!H158=\"\",\"\",'1. Order'!H158)","v":""},{"$f":"IF('1. Order'!I158=\"\",\"\",'1. Order'!I158)","v":""},{"$f":"IF('1. Order'!J158=\"\",\"\",'1. Order'!J158)","v":""},{"$f":"IF('1. Order'!K158=\"\",\"\",'1. Order'!K158)","v":""},{"$f":"IF('1. Order'!L158=\"\",\"\",'1. Order'!L158)","v":""},{"$f":"IF('1. Order'!M158=\"\",\"\",'1. Order'!M158)","v":""},{"$f":"IF('1. Order'!N158=\"\",\"\",'1. Order'!N158)","v":""},{"$f":"IF('1. Order'!O158=\"\",\"\",'1. Order'!O158)","v":{"$error":"#N/A"}},{"$f":"IF('1. Order'!P158=\"\",\"\",'1. Order'!P158)","v":{"$error":"#N/A"}},{"$f":"IF('1. Order'!Q158=\"\",\"\",'1. Order'!Q158)","v":""},{"$f":"IF('1. Order'!R158=\"\",\"\",'1. Order'!R158)","v":""},{"$f":"IF('1. Order'!S158=\"\",\"\",'1. Order'!S158)","v":""},{"$f":"IF('1. Order'!V158=\"\",\"\",'1. Order'!V158)","v":""},{"$f":"IF('1. Order'!W158=\"\",\"\",'1. Order'!W158)","v":""},{"$f":"IF('1. Order'!X158=\"\",\"\",'1. Order'!X158)","v":"EUR"},{"$f":"IF('1. Order'!Y158=\"\",\"\",'1. Order'!Y158)","v":""},{"$f":"IF('1. Order'!Z158=\"\",\"\",'1. Order'!Z158)","v":""},{"$f":"IF('1. Order'!AA158=\"\",\"\",'1. Order'!AA158)","v":""},null,{"$f":"IF('1. Order'!AS158=\"\",\"\",'1. Order'!AS158)","v":""},{"$f":"IF('1. Order'!AT158=\"\",\"\",'1. Order'!AT158)","v":""},null,null,null,null,null,null,null,{"$f":"IF('1. Order'!AX158=\"\",\"\",'1. Order'!AX158)","v":""},{"$f":"IF('1. Order'!AY158=\"\",\"\",'1. Order'!AY158)","v":""},{"$f":"IF('1. Order'!AZ158=\"\",\"\",'1. Order'!AZ158)","v":""},{"$f":"IF('1. Order'!BA158=\"\",\"\",'1. Order'!BA158)","v":""},{"$f":"IF('1. Order'!BC158=\"\",\"\",'1. Order'!BC158)","v":""},{"$f":"IF('1. Order'!BD158=\"\",\"\",'1. Order'!BD158)","v":6},{"$f":"IF('1. Order'!BE158=\"\",\"\",'1. Order'!BE158)","v":"None"},{"$f":"IF('1. Order'!BF158=\"\",\"\",'1. Order'!BF158)","v":"Parcel"},{"$f":"IF('1. Order'!BG158=\"\",\"\",'1. Order'!BG158)","v":"ZWO"}]
[{"$f":"IF('1. Order'!F159=\"\",\"\",'1. Order'!F159)","v":""},{"$f":"IF('1. Order'!G159=\"\",\"\",'1. Order'!G159)","v":""},{"$f":"IF('1. Order'!H159=\"\",\"\",'1. Order'!H159)","v":""},{"$f":"IF('1. Order'!I159=\"\",\"\",'1. Order'!I159)","v":""},{"$f":"IF('1. Order'!J159=\"\",\"\",'1. Order'!J159)","v":""},{"$f":"IF('1. Order'!K159=\"\",\"\",'1. Order'!K159)","v":""},{"$f":"IF('1. Order'!L159=\"\",\"\",'1. Order'!L159)","v":""},{"$f":"IF('1. Order'!M159=\"\",\"\",'1. Order'!M159)","v":""},{"$f":"IF('1. Order'!N159=\"\",\"\",'1. Order'!N159)","v":""},{"$f":"IF('1. Order'!O159=\"\",\"\",'1. Order'!O159)","v":{"$error":"#N/A"}},{"$f":"IF('1. Order'!P159=\"\",\"\",'1. Order'!P159)","v":{"$error":"#N/A"}},{"$f":"IF('1. Order'!Q159=\"\",\"\",'1. Order'!Q159)","v":""},{"$f":"IF('1. Order'!R159=\"\",\"\",'1. Order'!R159)","v":""},{"$f":"IF('1. Order'!S159=\"\",\"\",'1. Order'!S159)","v":""},{"$f":"IF('1. Order'!V159=\"\",\"\",'1. Order'!V159)","v":""},{"$f":"IF('1. Order'!W159=\"\",\"\",'1. Order'!W159)","v":""},{"$f":"IF('1. Order'!X159=\"\",\"\",'1. Order'!X159)","v":"EUR"},{"$f":"IF('1. Order'!Y159=\"\",\"\",'1. Order'!Y159)","v":""},{"$f":"IF('1. Order'!Z159=\"\",\"\",'1. Order'!Z159)","v":""},{"$f":"IF('1. Order'!AA159=\"\",\"\",'1. Order'!AA159)","v":""},null,{"$f":"IF('1. Order'!AS159=\"\",\"\",'1. Order'!AS159)","v":""},{"$f":"IF('1. Order'!AT159=\"\",\"\",'1. Order'!AT159)","v":""},null,null,null,null,null,null,null,{"$f":"IF('1. Order'!AX159=\"\",\"\",'1. Order'!AX159)","v":""},{"$f":"IF('1. Order'!AY159=\"\",\"\",'1. Order'!AY159)","v":""},{"$f":"IF('1. Order'!AZ159=\"\",\"\",'1. Order'!AZ159)","v":""},{"$f":"IF('1. Order'!BA159=\"\",\"\",'1. Order'!BA159)","v":""},{"$f":"IF('1. Order'!BC159=\"\",\"\",'1. Order'!BC159)","v":""},{"$f":"IF('1. Order'!BD159=\"\",\"\",'1. Order'!BD159)","v":6},{"$f":"IF('1. Order'!BE159=\"\",\"\",'1. Order'!BE159)","v":"None"},{"$f":"IF('1. Order'!BF159=\"\",\"\",'1. Order'!BF159)","v":"Parcel"},{"$f":"IF('1. Order'!BG159=\"\",\"\",'1. Order'!BG159)","v":"ZWO"}]
[{"$f":"IF('1. Order'!F160=\"\",\"\",'1. Order'!F160)","v":""},{"$f":"IF('1. Order'!G160=\"\",\"\",'1. Order'!G160)","v":""},{"$f":"IF('1. Order'!H160=\"\",\"\",'1. Order'!H160)","v":""},{"$f":"IF('1. Order'!I160=\"\",\"\",'1. Order'!I160)","v":""},{"$f":"IF('1. Order'!J160=\"\",\"\",'1. Order'!J160)","v":""},{"$f":"IF('1. Order'!K160=\"\",\"\",'1. Order'!K160)","v":""},{"$f":"IF('1. Order'!L160=\"\",\"\",'1. Order'!L160)","v":""},{"$f":"IF('1. Order'!M160=\"\",\"\",'1. Order'!M160)","v":""},{"$f":"IF('1. Order'!N160=\"\",\"\",'1. Order'!N160)","v":""},{"$f":"IF('1. Order'!O160=\"\",\"\",'1. Order'!O160)","v":{"$error":"#N/A"}},{"$f":"IF('1. Order'!P160=\"\",\"\",'1. Order'!P160)","v":{"$error":"#N/A"}},{"$f":"IF('1. Order'!Q160=\"\",\"\",'1. Order'!Q160)","v":""},{"$f":"IF('1. Order'!R160=\"\",\"\",'1. Order'!R160)","v":""},{"$f":"IF('1. Order'!S160=\"\",\"\",'1. Order'!S160)","v":""},{"$f":"IF('1. Order'!V160=\"\",\"\",'1. Order'!V160)","v":""},{"$f":"IF('1. Order'!W160=\"\",\"\",'1. Order'!W160)","v":""},{"$f":"IF('1. Order'!X160=\"\",\"\",'1. Order'!X160)","v":"EUR"},{"$f":"IF('1. Order'!Y160=\"\",\"\",'1. Order'!Y160)","v":""},{"$f":"IF('1. Order'!Z160=\"\",\"\",'1. Order'!Z160)","v":""},{"$f":"IF('1. Order'!AA160=\"\",\"\",'1. Order'!AA160)","v":""},null,{"$f":"IF('1. Order'!AS160=\"\",\"\",'1. Order'!AS160)","v":""},{"$f":"IF('1. Order'!AT160=\"\",\"\",'1. Order'!AT160)","v":""},null,null,null,null,null,null,null,{"$f":"IF('1. Order'!AX160=\"\",\"\",'1. Order'!AX160)","v":""},{"$f":"IF('1. Order'!AY160=\"\",\"\",'1. Order'!AY160)","v":""},{"$f":"IF('1. Order'!AZ160=\"\",\"\",'1. Order'!AZ160)","v":""},{"$f":"IF('1. Order'!BA160=\"\",\"\",'1. Order'!BA160)","v":""},{"$f":"IF('1. Order'!BC160=\"\",\"\",'1. Order'!BC160)","v":""},{"$f":"IF('1. Order'!BD160=\"\",\"\",'1. Order'!BD160)","v":6},{"$f":"IF('1. Order'!BE160=\"\",\"\",'1. Order'!BE160)","v":"None"},{"$f":"IF('1. Order'!BF160=\"\",\"\",'1. Order'!BF160)","v":"Parcel"},{"$f":"IF('1. Order'!BG160=\"\",\"\",'1. Order'!BG160)","v":"ZWO"}]
[{"$f":"IF('1. Order'!F161=\"\",\"\",'1. Order'!F161)","v":""},{"$f":"IF('1. Order'!G161=\"\",\"\",'1. Order'!G161)","v":""},{"$f":"IF('1. Order'!H161=\"\",\"\",'1. Order'!H161)","v":""},{"$f":"IF('1. Order'!I161=\"\",\"\",'1. Order'!I161)","v":""},{"$f":"IF('1. Order'!J161=\"\",\"\",'1. Order'!J161)","v":""},{"$f":"IF('1. Order'!K161=\"\",\"\",'1. Order'!K161)","v":""},{"$f":"IF('1. Order'!L161=\"\",\"\",'1. Order'!L161)","v":""},{"$f":"IF('1. Order'!M161=\"\",\"\",'1. Order'!M161)","v":""},{"$f":"IF('1. Order'!N161=\"\",\"\",'1. Order'!N161)","v":""},{"$f":"IF('1. Order'!O161=\"\",\"\",'1. Order'!O161)","v":{"$error":"#N/A"}},{"$f":"IF('1. Order'!P161=\"\",\"\",'1. Order'!P161)","v":{"$error":"#N/A"}},{"$f":"IF('1. Order'!Q161=\"\",\"\",'1. Order'!Q161)","v":""},{"$f":"IF('1. Order'!R161=\"\",\"\",'1. Order'!R161)","v":""},{"$f":"IF('1. Order'!S161=\"\",\"\",'1. Order'!S161)","v":""},{"$f":"IF('1. Order'!V161=\"\",\"\",'1. Order'!V161)","v":""},{"$f":"IF('1. Order'!W161=\"\",\"\",'1. Order'!W161)","v":""},{"$f":"IF('1. Order'!X161=\"\",\"\",'1. Order'!X161)","v":"EUR"},{"$f":"IF('1. Order'!Y161=\"\",\"\",'1. Order'!Y161)","v":""},{"$f":"IF('1. Order'!Z161=\"\",\"\",'1. Order'!Z161)","v":""},{"$f":"IF('1. Order'!AA161=\"\",\"\",'1. Order'!AA161)","v":""},null,{"$f":"IF('1. Order'!AS161=\"\",\"\",'1. Order'!AS161)","v":""},{"$f":"IF('1. Order'!AT161=\"\",\"\",'1. Order'!AT161)","v":""},null,null,null,null,null,null,null,{"$f":"IF('1. Order'!AX161=\"\",\"\",'1. Order'!AX161)","v":""},{"$f":"IF('1. Order'!AY161=\"\",\"\",'1. Order'!AY161)","v":""},{"$f":"IF('1. Order'!AZ161=\"\",\"\",'1. Order'!AZ161)","v":""},{"$f":"IF('1. Order'!BA161=\"\",\"\",'1. Order'!BA161)","v":""},{"$f":"IF('1. Order'!BC161=\"\",\"\",'1. Order'!BC161)","v":""},{"$f":"IF('1. Order'!BD161=\"\",\"\",'1. Order'!BD161)","v":6},{"$f":"IF('1. Order'!BE161=\"\",\"\",'1. Order'!BE161)","v":"None"},{"$f":"IF('1. Order'!BF161=\"\",\"\",'1. Order'!BF161)","v":"Parcel"},{"$f":"IF('1. Order'!BG161=\"\",\"\",'1. Order'!BG161)","v":"ZWO"}]
[{"$f":"IF('1. Order'!F162=\"\",\"\",'1. Order'!F162)","v":""},{"$f":"IF('1. Order'!G162=\"\",\"\",'1. Order'!G162)","v":""},{"$f":"IF('1. Order'!H162=\"\",\"\",'1. Order'!H162)","v":""},{"$f":"IF('1. Order'!I162=\"\",\"\",'1. Order'!I162)","v":""},{"$f":"IF('1. Order'!J162=\"\",\"\",'1. Order'!J162)","v":""},{"$f":"IF('1. Order'!K162=\"\",\"\",'1. Order'!K162)","v":""},{"$f":"IF('1. Order'!L162=\"\",\"\",'1. Order'!L162)","v":""},{"$f":"IF('1. Order'!M162=\"\",\"\",'1. Order'!M162)","v":""},{"$f":"IF('1. Order'!N162=\"\",\"\",'1. Order'!N162)","v":""},{"$f":"IF('1. Order'!O162=\"\",\"\",'1. Order'!O162)","v":{"$error":"#N/A"}},{"$f":"IF('1. Order'!P162=\"\",\"\",'1. Order'!P162)","v":{"$error":"#N/A"}},{"$f":"IF('1. Order'!Q162=\"\",\"\",'1. Order'!Q162)","v":""},{"$f":"IF('1. Order'!R162=\"\",\"\",'1. Order'!R162)","v":""},{"$f":"IF('1. Order'!S162=\"\",\"\",'1. Order'!S162)","v":""},{"$f":"IF('1. Order'!V162=\"\",\"\",'1. Order'!V162)","v":""},{"$f":"IF('1. Order'!W162=\"\",\"\",'1. Order'!W162)","v":""},{"$f":"IF('1. Order'!X162=\"\",\"\",'1. Order'!X162)","v":"EUR"},{"$f":"IF('1. Order'!Y162=\"\",\"\",'1. Order'!Y162)","v":""},{"$f":"IF('1. Order'!Z162=\"\",\"\",'1. Order'!Z162)","v":""},{"$f":"IF('1. Order'!AA162=\"\",\"\",'1. Order'!AA162)","v":""},null,{"$f":"IF('1. Order'!AS162=\"\",\"\",'1. Order'!AS162)","v":""},{"$f":"IF('1. Order'!AT162=\"\",\"\",'1. Order'!AT162)","v":""},null,null,null,null,null,null,null,{"$f":"IF('1. Order'!AX162=\"\",\"\",'1. Order'!AX162)","v":""},{"$f":"IF('1. Order'!AY162=\"\",\"\",'1. Order'!AY162)","v":""},{"$f":"IF('1. Order'!AZ162=\"\",\"\",'1. Order'!AZ162)","v":""},{"$f":"IF('1. Order'!BA162=\"\",\"\",'1. Order'!BA162)","v":""},{"$f":"IF('1. Order'!BC162=\"\",\"\",'1. Order'!BC162)","v":""},{"$f":"IF('1. Order'!BD162=\"\",\"\",'1. Order'!BD162)","v":6},{"$f":"IF('1. Order'!BE162=\"\",\"\",'1. Order'!BE162)","v":"None"},{"$f":"IF('1. Order'!BF162=\"\",\"\",'1. Order'!BF162)","v":"Parcel"},{"$f":"IF('1. Order'!BG162=\"\",\"\",'1. Order'!BG162)","v":"ZWO"}]
[{"$f":"IF('1. Order'!F163=\"\",\"\",'1. Order'!F163)","v":""},{"$f":"IF('1. Order'!G163=\"\",\"\",'1. Order'!G163)","v":""},{"$f":"IF('1. Order'!H163=\"\",\"\",'1. Order'!H163)","v":""},{"$f":"IF('1. Order'!I163=\"\",\"\",'1. Order'!I163)","v":""},{"$f":"IF('1. Order'!J163=\"\",\"\",'1. Order'!J163)","v":""},{"$f":"IF('1. Order'!K163=\"\",\"\",'1. Order'!K163)","v":""},{"$f":"IF('1. Order'!L163=\"\",\"\",'1. Order'!L163)","v":""},{"$f":"IF('1. Order'!M163=\"\",\"\",'1. Order'!M163)","v":""},{"$f":"IF('1. Order'!N163=\"\",\"\",'1. Order'!N163)","v":""},{"$f":"IF('1. Order'!O163=\"\",\"\",'1. Order'!O163)","v":{"$error":"#N/A"}},{"$f":"IF('1. Order'!P163=\"\",\"\",'1. Order'!P163)","v":{"$error":"#N/A"}},{"$f":"IF('1. Order'!Q163=\"\",\"\",'1. Order'!Q163)","v":""},{"$f":"IF('1. Order'!R163=\"\",\"\",'1. Order'!R163)","v":""},{"$f":"IF('1. Order'!S163=\"\",\"\",'1. Order'!S163)","v":""},{"$f":"IF('1. Order'!V163=\"\",\"\",'1. Order'!V163)","v":""},{"$f":"IF('1. Order'!W163=\"\",\"\",'1. Order'!W163)","v":""},{"$f":"IF('1. Order'!X163=\"\",\"\",'1. Order'!X163)","v":"EUR"},{"$f":"IF('1. Order'!Y163=\"\",\"\",'1. Order'!Y163)","v":""},{"$f":"IF('1. Order'!Z163=\"\",\"\",'1. Order'!Z163)","v":""},{"$f":"IF('1. Order'!AA163=\"\",\"\",'1. Order'!AA163)","v":""},null,{"$f":"IF('1. Order'!AS163=\"\",\"\",'1. Order'!AS163)","v":""},{"$f":"IF('1. Order'!AT163=\"\",\"\",'1. Order'!AT163)","v":""},null,null,null,null,null,null,null,{"$f":"IF('1. Order'!AX163=\"\",\"\",'1. Order'!AX163)","v":""},{"$f":"IF('1. Order'!AY163=\"\",\"\",'1. Order'!AY163)","v":""},{"$f":"IF('1. Order'!AZ163=\"\",\"\",'1. Order'!AZ163)","v":""},{"$f":"IF('1. Order'!BA163=\"\",\"\",'1. Order'!BA163)","v":""},{"$f":"IF('1. Order'!BC163=\"\",\"\",'1. Order'!BC163)","v":""},{"$f":"IF('1. Order'!BD163=\"\",\"\",'1. Order'!BD163)","v":6},{"$f":"IF('1. Order'!BE163=\"\",\"\",'1. Order'!BE163)","v":"None"},{"$f":"IF('1. Order'!BF163=\"\",\"\",'1. Order'!BF163)","v":"Parcel"},{"$f":"IF('1. Order'!BG163=\"\",\"\",'1. Order'!BG163)","v":"ZWO"}]
[{"$f":"IF('1. Order'!F164=\"\",\"\",'1. Order'!F164)","v":""},{"$f":"IF('1. Order'!G164=\"\",\"\",'1. Order'!G164)","v":""},{"$f":"IF('1. Order'!H164=\"\",\"\",'1. Order'!H164)","v":""},{"$f":"IF('1. Order'!I164=\"\",\"\",'1. Order'!I164)","v":""},{"$f":"IF('1. Order'!J164=\"\",\"\",'1. Order'!J164)","v":""},{"$f":"IF('1. Order'!K164=\"\",\"\",'1. Order'!K164)","v":""},{"$f":"IF('1. Order'!L164=\"\",\"\",'1. Order'!L164)","v":""},{"$f":"IF('1. Order'!M164=\"\",\"\",'1. Order'!M164)","v":""},{"$f":"IF('1. Order'!N164=\"\",\"\",'1. Order'!N164)","v":""},{"$f":"IF('1. Order'!O164=\"\",\"\",'1. Order'!O164)","v":{"$error":"#N/A"}},{"$f":"IF('1. Order'!P164=\"\",\"\",'1. Order'!P164)","v":{"$error":"#N/A"}},{"$f":"IF('1. Order'!Q164=\"\",\"\",'1. Order'!Q164)","v":""},{"$f":"IF('1. Order'!R164=\"\",\"\",'1. Order'!R164)","v":""},{"$f":"IF('1. Order'!S164=\"\",\"\",'1. Order'!S164)","v":""},{"$f":"IF('1. Order'!V164=\"\",\"\",'1. Order'!V164)","v":""},{"$f":"IF('1. Order'!W164=\"\",\"\",'1. Order'!W164)","v":""},{"$f":"IF('1. Order'!X164=\"\",\"\",'1. Order'!X164)","v":"EUR"},{"$f":"IF('1. Order'!Y164=\"\",\"\",'1. Order'!Y164)","v":""},{"$f":"IF('1. Order'!Z164=\"\",\"\",'1. Order'!Z164)","v":""},{"$f":"IF('1. Order'!AA164=\"\",\"\",'1. Order'!AA164)","v":""},null,{"$f":"IF('1. Order'!AS164=\"\",\"\",'1. Order'!AS164)","v":""},{"$f":"IF('1. Order'!AT164=\"\",\"\",'1. Order'!AT164)","v":""},null,null,null,null,null,null,null,{"$f":"IF('1. Order'!AX164=\"\",\"\",'1. Order'!AX164)","v":""},{"$f":"IF('1. Order'!AY164=\"\",\"\",'1. Order'!AY164)","v":""},{"$f":"IF('1. Order'!AZ164=\"\",\"\",'1. Order'!AZ164)","v":""},{"$f":"IF('1. Order'!BA164=\"\",\"\",'1. Order'!BA164)","v":""},{"$f":"IF('1. Order'!BC164=\"\",\"\",'1. Order'!BC164)","v":""},{"$f":"IF('1. Order'!BD164=\"\",\"\",'1. Order'!BD164)","v":6},{"$f":"IF('1. Order'!BE164=\"\",\"\",'1. Order'!BE164)","v":"None"},{"$f":"IF('1. Order'!BF164=\"\",\"\",'1. Order'!BF164)","v":"Parcel"},{"$f":"IF('1. Order'!BG164=\"\",\"\",'1. Order'!BG164)","v":"ZWO"}]
[{"$f":"IF('1. Order'!F165=\"\",\"\",'1. Order'!F165)","v":""},{"$f":"IF('1. Order'!G165=\"\",\"\",'1. Order'!G165)","v":""},{"$f":"IF('1. Order'!H165=\"\",\"\",'1. Order'!H165)","v":""},{"$f":"IF('1. Order'!I165=\"\",\"\",'1. Order'!I165)","v":""},{"$f":"IF('1. Order'!J165=\"\",\"\",'1. Order'!J165)","v":""},{"$f":"IF('1. Order'!K165=\"\",\"\",'1. Order'!K165)","v":""},{"$f":"IF('1. Order'!L165=\"\",\"\",'1. Order'!L165)","v":""},{"$f":"IF('1. Order'!M165=\"\",\"\",'1. Order'!M165)","v":""},{"$f":"IF('1. Order'!N165=\"\",\"\",'1. Order'!N165)","v":""},{"$f":"IF('1. Order'!O165=\"\",\"\",'1. Order'!O165)","v":{"$error":"#N/A"}},{"$f":"IF('1. Order'!P165=\"\",\"\",'1. Order'!P165)","v":{"$error":"#N/A"}},{"$f":"IF('1. Order'!Q165=\"\",\"\",'1. Order'!Q165)","v":""},{"$f":"IF('1. Order'!R165=\"\",\"\",'1. Order'!R165)","v":""},{"$f":"IF('1. Order'!S165=\"\",\"\",'1. Order'!S165)","v":""},{"$f":"IF('1. Order'!V165=\"\",\"\",'1. Order'!V165)","v":""},{"$f":"IF('1. Order'!W165=\"\",\"\",'1. Order'!W165)","v":""},{"$f":"IF('1. Order'!X165=\"\",\"\",'1. Order'!X165)","v":"EUR"},{"$f":"IF('1. Order'!Y165=\"\",\"\",'1. Order'!Y165)","v":""},{"$f":"IF('1. Order'!Z165=\"\",\"\",'1. Order'!Z165)","v":""},{"$f":"IF('1. Order'!AA165=\"\",\"\",'1. Order'!AA165)","v":""},null,{"$f":"IF('1. Order'!AS165=\"\",\"\",'1. Order'!AS165)","v":""},{"$f":"IF('1. Order'!AT165=\"\",\"\",'1. Order'!AT165)","v":""},null,null,null,null,null,null,null,{"$f":"IF('1. Order'!AX165=\"\",\"\",'1. Order'!AX165)","v":""},{"$f":"IF('1. Order'!AY165=\"\",\"\",'1. Order'!AY165)","v":""},{"$f":"IF('1. Order'!AZ165=\"\",\"\",'1. Order'!AZ165)","v":""},{"$f":"IF('1. Order'!BA165=\"\",\"\",'1. Order'!BA165)","v":""},{"$f":"IF('1. Order'!BC165=\"\",\"\",'1. Order'!BC165)","v":""},{"$f":"IF('1. Order'!BD165=\"\",\"\",'1. Order'!BD165)","v":6},{"$f":"IF('1. Order'!BE165=\"\",\"\",'1. Order'!BE165)","v":"None"},{"$f":"IF('1. Order'!BF165=\"\",\"\",'1. Order'!BF165)","v":"Parcel"},{"$f":"IF('1. Order'!BG165=\"\",\"\",'1. Order'!BG165)","v":"ZWO"}]
[{"$f":"IF('1. Order'!F166=\"\",\"\",'1. Order'!F166)","v":""},{"$f":"IF('1. Order'!G166=\"\",\"\",'1. Order'!G166)","v":""},{"$f":"IF('1. Order'!H166=\"\",\"\",'1. Order'!H166)","v":""},{"$f":"IF('1. Order'!I166=\"\",\"\",'1. Order'!I166)","v":""},{"$f":"IF('1. Order'!J166=\"\",\"\",'1. Order'!J166)","v":""},{"$f":"IF('1. Order'!K166=\"\",\"\",'1. Order'!K166)","v":""},{"$f":"IF('1. Order'!L166=\"\",\"\",'1. Order'!L166)","v":""},{"$f":"IF('1. Order'!M166=\"\",\"\",'1. Order'!M166)","v":""},{"$f":"IF('1. Order'!N166=\"\",\"\",'1. Order'!N166)","v":""},{"$f":"IF('1. Order'!O166=\"\",\"\",'1. Order'!O166)","v":{"$error":"#N/A"}},{"$f":"IF('1. Order'!P166=\"\",\"\",'1. Order'!P166)","v":{"$error":"#N/A"}},{"$f":"IF('1. Order'!Q166=\"\",\"\",'1. Order'!Q166)","v":""},{"$f":"IF('1. Order'!R166=\"\",\"\",'1. Order'!R166)","v":""},{"$f":"IF('1. Order'!S166=\"\",\"\",'1. Order'!S166)","v":""},{"$f":"IF('1. Order'!V166=\"\",\"\",'1. Order'!V166)","v":""},{"$f":"IF('1. Order'!W166=\"\",\"\",'1. Order'!W166)","v":""},{"$f":"IF('1. Order'!X166=\"\",\"\",'1. Order'!X166)","v":"EUR"},{"$f":"IF('1. Order'!Y166=\"\",\"\",'1. Order'!Y166)","v":""},{"$f":"IF('1. Order'!Z166=\"\",\"\",'1. Order'!Z166)","v":""},{"$f":"IF('1. Order'!AA166=\"\",\"\",'1. Order'!AA166)","v":""},null,{"$f":"IF('1. Order'!AS166=\"\",\"\",'1. Order'!AS166)","v":""},{"$f":"IF('1. Order'!AT166=\"\",\"\",'1. Order'!AT166)","v":""},null,null,null,null,null,null,null,{"$f":"IF('1. Order'!AX166=\"\",\"\",'1. Order'!AX166)","v":""},{"$f":"IF('1. Order'!AY166=\"\",\"\",'1. Order'!AY166)","v":""},{"$f":"IF('1. Order'!AZ166=\"\",\"\",'1. Order'!AZ166)","v":""},{"$f":"IF('1. Order'!BA166=\"\",\"\",'1. Order'!BA166)","v":""},{"$f":"IF('1. Order'!BC166=\"\",\"\",'1. Order'!BC166)","v":""},{"$f":"IF('1. Order'!BD166=\"\",\"\",'1. Order'!BD166)","v":6},{"$f":"IF('1. Order'!BE166=\"\",\"\",'1. Order'!BE166)","v":"None"},{"$f":"IF('1. Order'!BF166=\"\",\"\",'1. Order'!BF166)","v":"Parcel"},{"$f":"IF('1. Order'!BG166=\"\",\"\",'1. Order'!BG166)","v":"ZWO"}]
[{"$f":"IF('1. Order'!F167=\"\",\"\",'1. Order'!F167)","v":""},{"$f":"IF('1. Order'!G167=\"\",\"\",'1. Order'!G167)","v":""},{"$f":"IF('1. Order'!H167=\"\",\"\",'1. Order'!H167)","v":""},{"$f":"IF('1. Order'!I167=\"\",\"\",'1. Order'!I167)","v":""},{"$f":"IF('1. Order'!J167=\"\",\"\",'1. Order'!J167)","v":""},{"$f":"IF('1. Order'!K167=\"\",\"\",'1. Order'!K167)","v":""},{"$f":"IF('1. Order'!L167=\"\",\"\",'1. Order'!L167)","v":""},{"$f":"IF('1. Order'!M167=\"\",\"\",'1. Order'!M167)","v":""},{"$f":"IF('1. Order'!N167=\"\",\"\",'1. Order'!N167)","v":""},{"$f":"IF('1. Order'!O167=\"\",\"\",'1. Order'!O167)","v":{"$error":"#N/A"}},{"$f":"IF('1. Order'!P167=\"\",\"\",'1. Order'!P167)","v":{"$error":"#N/A"}},{"$f":"IF('1. Order'!Q167=\"\",\"\",'1. Order'!Q167)","v":""},{"$f":"IF('1. Order'!R167=\"\",\"\",'1. Order'!R167)","v":""},{"$f":"IF('1. Order'!S167=\"\",\"\",'1. Order'!S167)","v":""},{"$f":"IF('1. Order'!V167=\"\",\"\",'1. Order'!V167)","v":""},{"$f":"IF('1. Order'!W167=\"\",\"\",'1. Order'!W167)","v":""},{"$f":"IF('1. Order'!X167=\"\",\"\",'1. Order'!X167)","v":"EUR"},{"$f":"IF('1. Order'!Y167=\"\",\"\",'1. Order'!Y167)","v":""},{"$f":"IF('1. Order'!Z167=\"\",\"\",'1. Order'!Z167)","v":""},{"$f":"IF('1. Order'!AA167=\"\",\"\",'1. Order'!AA167)","v":""},null,{"$f":"IF('1. Order'!AS167=\"\",\"\",'1. Order'!AS167)","v":""},{"$f":"IF('1. Order'!AT167=\"\",\"\",'1. Order'!AT167)","v":""},null,null,null,null,null,null,null,{"$f":"IF('1. Order'!AX167=\"\",\"\",'1. Order'!AX167)","v":""},{"$f":"IF('1. Order'!AY167=\"\",\"\",'1. Order'!AY167)","v":""},{"$f":"IF('1. Order'!AZ167=\"\",\"\",'1. Order'!AZ167)","v":""},{"$f":"IF('1. Order'!BA167=\"\",\"\",'1. Order'!BA167)","v":""},{"$f":"IF('1. Order'!BC167=\"\",\"\",'1. Order'!BC167)","v":""},{"$f":"IF('1. Order'!BD167=\"\",\"\",'1. Order'!BD167)","v":6},{"$f":"IF('1. Order'!BE167=\"\",\"\",'1. Order'!BE167)","v":"None"},{"$f":"IF('1. Order'!BF167=\"\",\"\",'1. Order'!BF167)","v":"Parcel"},{"$f":"IF('1. Order'!BG167=\"\",\"\",'1. Order'!BG167)","v":"ZWO"}]
[{"$f":"IF('1. Order'!F168=\"\",\"\",'1. Order'!F168)","v":""},{"$f":"IF('1. Order'!G168=\"\",\"\",'1. Order'!G168)","v":""},{"$f":"IF('1. Order'!H168=\"\",\"\",'1. Order'!H168)","v":""},{"$f":"IF('1. Order'!I168=\"\",\"\",'1. Order'!I168)","v":""},{"$f":"IF('1. Order'!J168=\"\",\"\",'1. Order'!J168)","v":""},{"$f":"IF('1. Order'!K168=\"\",\"\",'1. Order'!K168)","v":""},{"$f":"IF('1. Order'!L168=\"\",\"\",'1. Order'!L168)","v":""},{"$f":"IF('1. Order'!M168=\"\",\"\",'1. Order'!M168)","v":""},{"$f":"IF('1. Order'!N168=\"\",\"\",'1. Order'!N168)","v":""},{"$f":"IF('1. Order'!O168=\"\",\"\",'1. Order'!O168)","v":{"$error":"#N/A"}},{"$f":"IF('1. Order'!P168=\"\",\"\",'1. Order'!P168)","v":{"$error":"#N/A"}},{"$f":"IF('1. Order'!Q168=\"\",\"\",'1. Order'!Q168)","v":""},{"$f":"IF('1. Order'!R168=\"\",\"\",'1. Order'!R168)","v":""},{"$f":"IF('1. Order'!S168=\"\",\"\",'1. Order'!S168)","v":""},{"$f":"IF('1. Order'!V168=\"\",\"\",'1. Order'!V168)","v":""},{"$f":"IF('1. Order'!W168=\"\",\"\",'1. Order'!W168)","v":""},{"$f":"IF('1. Order'!X168=\"\",\"\",'1. Order'!X168)","v":"EUR"},{"$f":"IF('1. Order'!Y168=\"\",\"\",'1. Order'!Y168)","v":""},{"$f":"IF('1. Order'!Z168=\"\",\"\",'1. Order'!Z168)","v":""},{"$f":"IF('1. Order'!AA168=\"\",\"\",'1. Order'!AA168)","v":""},null,{"$f":"IF('1. Order'!AS168=\"\",\"\",'1. Order'!AS168)","v":""},{"$f":"IF('1. Order'!AT168=\"\",\"\",'1. Order'!AT168)","v":""},null,null,null,null,null,null,null,{"$f":"IF('1. Order'!AX168=\"\",\"\",'1. Order'!AX168)","v":""},{"$f":"IF('1. Order'!AY168=\"\",\"\",'1. Order'!AY168)","v":""},{"$f":"IF('1. Order'!AZ168=\"\",\"\",'1. Order'!AZ168)","v":""},{"$f":"IF('1. Order'!BA168=\"\",\"\",'1. Order'!BA168)","v":""},{"$f":"IF('1. Order'!BC168=\"\",\"\",'1. Order'!BC168)","v":""},{"$f":"IF('1. Order'!BD168=\"\",\"\",'1. Order'!BD168)","v":6},{"$f":"IF('1. Order'!BE168=\"\",\"\",'1. Order'!BE168)","v":"None"},{"$f":"IF('1. Order'!BF168=\"\",\"\",'1. Order'!BF168)","v":"Parcel"},{"$f":"IF('1. Order'!BG168=\"\",\"\",'1. Order'!BG168)","v":"ZWO"}]
[{"$f":"IF('1. Order'!F169=\"\",\"\",'1. Order'!F169)","v":""},{"$f":"IF('1. Order'!G169=\"\",\"\",'1. Order'!G169)","v":""},{"$f":"IF('1. Order'!H169=\"\",\"\",'1. Order'!H169)","v":""},{"$f":"IF('1. Order'!I169=\"\",\"\",'1. Order'!I169)","v":""},{"$f":"IF('1. Order'!J169=\"\",\"\",'1. Order'!J169)","v":""},{"$f":"IF('1. Order'!K169=\"\",\"\",'1. Order'!K169)","v":""},{"$f":"IF('1. Order'!L169=\"\",\"\",'1. Order'!L169)","v":""},{"$f":"IF('1. Order'!M169=\"\",\"\",'1. Order'!M169)","v":""},{"$f":"IF('1. Order'!N169=\"\",\"\",'1. Order'!N169)","v":""},{"$f":"IF('1. Order'!O169=\"\",\"\",'1. Order'!O169)","v":{"$error":"#N/A"}},{"$f":"IF('1. Order'!P169=\"\",\"\",'1. Order'!P169)","v":{"$error":"#N/A"}},{"$f":"IF('1. Order'!Q169=\"\",\"\",'1. Order'!Q169)","v":""},{"$f":"IF('1. Order'!R169=\"\",\"\",'1. Order'!R169)","v":""},{"$f":"IF('1. Order'!S169=\"\",\"\",'1. Order'!S169)","v":""},{"$f":"IF('1. Order'!V169=\"\",\"\",'1. Order'!V169)","v":""},{"$f":"IF('1. Order'!W169=\"\",\"\",'1. Order'!W169)","v":""},{"$f":"IF('1. Order'!X169=\"\",\"\",'1. Order'!X169)","v":"EUR"},{"$f":"IF('1. Order'!Y169=\"\",\"\",'1. Order'!Y169)","v":""},{"$f":"IF('1. Order'!Z169=\"\",\"\",'1. Order'!Z169)","v":""},{"$f":"IF('1. Order'!AA169=\"\",\"\",'1. Order'!AA169)","v":""},null,{"$f":"IF('1. Order'!AS169=\"\",\"\",'1. Order'!AS169)","v":""},{"$f":"IF('1. Order'!AT169=\"\",\"\",'1. Order'!AT169)","v":""},null,null,null,null,null,null,null,{"$f":"IF('1. Order'!AX169=\"\",\"\",'1. Order'!AX169)","v":""},{"$f":"IF('1. Order'!AY169=\"\",\"\",'1. Order'!AY169)","v":""},{"$f":"IF('1. Order'!AZ169=\"\",\"\",'1. Order'!AZ169)","v":""},{"$f":"IF('1. Order'!BA169=\"\",\"\",'1. Order'!BA169)","v":""},{"$f":"IF('1. Order'!BC169=\"\",\"\",'1. Order'!BC169)","v":""},{"$f":"IF('1. Order'!BD169=\"\",\"\",'1. Order'!BD169)","v":6},{"$f":"IF('1. Order'!BE169=\"\",\"\",'1. Order'!BE169)","v":"None"},{"$f":"IF('1. Order'!BF169=\"\",\"\",'1. Order'!BF169)","v":"Parcel"},{"$f":"IF('1. Order'!BG169=\"\",\"\",'1. Order'!BG169)","v":"ZWO"}]
[{"$f":"IF('1. Order'!F170=\"\",\"\",'1. Order'!F170)","v":""},{"$f":"IF('1. Order'!G170=\"\",\"\",'1. Order'!G170)","v":""},{"$f":"IF('1. Order'!H170=\"\",\"\",'1. Order'!H170)","v":""},{"$f":"IF('1. Order'!I170=\"\",\"\",'1. Order'!I170)","v":""},{"$f":"IF('1. Order'!J170=\"\",\"\",'1. Order'!J170)","v":""},{"$f":"IF('1. Order'!K170=\"\",\"\",'1. Order'!K170)","v":""},{"$f":"IF('1. Order'!L170=\"\",\"\",'1. Order'!L170)","v":""},{"$f":"IF('1. Order'!M170=\"\",\"\",'1. Order'!M170)","v":""},{"$f":"IF('1. Order'!N170=\"\",\"\",'1. Order'!N170)","v":""},{"$f":"IF('1. Order'!O170=\"\",\"\",'1. Order'!O170)","v":{"$error":"#N/A"}},{"$f":"IF('1. Order'!P170=\"\",\"\",'1. Order'!P170)","v":{"$error":"#N/A"}},{"$f":"IF('1. Order'!Q170=\"\",\"\",'1. Order'!Q170)","v":""},{"$f":"IF('1. Order'!R170=\"\",\"\",'1. Order'!R170)","v":""},{"$f":"IF('1. Order'!S170=\"\",\"\",'1. Order'!S170)","v":""},{"$f":"IF('1. Order'!V170=\"\",\"\",'1. Order'!V170)","v":""},{"$f":"IF('1. Order'!W170=\"\",\"\",'1. Order'!W170)","v":""},{"$f":"IF('1. Order'!X170=\"\",\"\",'1. Order'!X170)","v":"EUR"},{"$f":"IF('1. Order'!Y170=\"\",\"\",'1. Order'!Y170)","v":""},{"$f":"IF('1. Order'!Z170=\"\",\"\",'1. Order'!Z170)","v":""},{"$f":"IF('1. Order'!AA170=\"\",\"\",'1. Order'!AA170)","v":""},null,{"$f":"IF('1. Order'!AS170=\"\",\"\",'1. Order'!AS170)","v":""},{"$f":"IF('1. Order'!AT170=\"\",\"\",'1. Order'!AT170)","v":""},null,null,null,null,null,null,null,{"$f":"IF('1. Order'!AX170=\"\",\"\",'1. Order'!AX170)","v":""},{"$f":"IF('1. Order'!AY170=\"\",\"\",'1. Order'!AY170)","v":""},{"$f":"IF('1. Order'!AZ170=\"\",\"\",'1. Order'!AZ170)","v":""},{"$f":"IF('1. Order'!BA170=\"\",\"\",'1. Order'!BA170)","v":""},{"$f":"IF('1. Order'!BC170=\"\",\"\",'1. Order'!BC170)","v":""},{"$f":"IF('1. Order'!BD170=\"\",\"\",'1. Order'!BD170)","v":6},{"$f":"IF('1. Order'!BE170=\"\",\"\",'1. Order'!BE170)","v":"None"},{"$f":"IF('1. Order'!BF170=\"\",\"\",'1. Order'!BF170)","v":"Parcel"},{"$f":"IF('1. Order'!BG170=\"\",\"\",'1. Order'!BG170)","v":"ZWO"}]
[{"$f":"IF('1. Order'!F171=\"\",\"\",'1. Order'!F171)","v":""},{"$f":"IF('1. Order'!G171=\"\",\"\",'1. Order'!G171)","v":""},{"$f":"IF('1. Order'!H171=\"\",\"\",'1. Order'!H171)","v":""},{"$f":"IF('1. Order'!I171=\"\",\"\",'1. Order'!I171)","v":""},{"$f":"IF('1. Order'!J171=\"\",\"\",'1. Order'!J171)","v":""},{"$f":"IF('1. Order'!K171=\"\",\"\",'1. Order'!K171)","v":""},{"$f":"IF('1. Order'!L171=\"\",\"\",'1. Order'!L171)","v":""},{"$f":"IF('1. Order'!M171=\"\",\"\",'1. Order'!M171)","v":""},{"$f":"IF('1. Order'!N171=\"\",\"\",'1. Order'!N171)","v":""},{"$f":"IF('1. Order'!O171=\"\",\"\",'1. Order'!O171)","v":{"$error":"#N/A"}},{"$f":"IF('1. Order'!P171=\"\",\"\",'1. Order'!P171)","v":{"$error":"#N/A"}},{"$f":"IF('1. Order'!Q171=\"\",\"\",'1. Order'!Q171)","v":""},{"$f":"IF('1. Order'!R171=\"\",\"\",'1. Order'!R171)","v":""},{"$f":"IF('1. Order'!S171=\"\",\"\",'1. Order'!S171)","v":""},{"$f":"IF('1. Order'!V171=\"\",\"\",'1. Order'!V171)","v":""},{"$f":"IF('1. Order'!W171=\"\",\"\",'1. Order'!W171)","v":""},{"$f":"IF('1. Order'!X171=\"\",\"\",'1. Order'!X171)","v":"EUR"},{"$f":"IF('1. Order'!Y171=\"\",\"\",'1. Order'!Y171)","v":""},{"$f":"IF('1. Order'!Z171=\"\",\"\",'1. Order'!Z171)","v":""},{"$f":"IF('1. Order'!AA171=\"\",\"\",'1. Order'!AA171)","v":""},null,{"$f":"IF('1. Order'!AS171=\"\",\"\",'1. Order'!AS171)","v":""},{"$f":"IF('1. Order'!AT171=\"\",\"\",'1. Order'!AT171)","v":""},null,null,null,null,null,null,null,{"$f":"IF('1. Order'!AX171=\"\",\"\",'1. Order'!AX171)","v":""},{"$f":"IF('1. Order'!AY171=\"\",\"\",'1. Order'!AY171)","v":""},{"$f":"IF('1. Order'!AZ171=\"\",\"\",'1. Order'!AZ171)","v":""},{"$f":"IF('1. Order'!BA171=\"\",\"\",'1. Order'!BA171)","v":""},{"$f":"IF('1. Order'!BC171=\"\",\"\",'1. Order'!BC171)","v":""},{"$f":"IF('1. Order'!BD171=\"\",\"\",'1. Order'!BD171)","v":6},{"$f":"IF('1. Order'!BE171=\"\",\"\",'1. Order'!BE171)","v":"None"},{"$f":"IF('1. Order'!BF171=\"\",\"\",'1. Order'!BF171)","v":"Parcel"},{"$f":"IF('1. Order'!BG171=\"\",\"\",'1. Order'!BG171)","v":"ZWO"}]
[{"$f":"IF('1. Order'!F172=\"\",\"\",'1. Order'!F172)","v":""},{"$f":"IF('1. Order'!G172=\"\",\"\",'1. Order'!G172)","v":""},{"$f":"IF('1. Order'!H172=\"\",\"\",'1. Order'!H172)","v":""},{"$f":"IF('1. Order'!I172=\"\",\"\",'1. Order'!I172)","v":""},{"$f":"IF('1. Order'!J172=\"\",\"\",'1. Order'!J172)","v":""},{"$f":"IF('1. Order'!K172=\"\",\"\",'1. Order'!K172)","v":""},{"$f":"IF('1. Order'!L172=\"\",\"\",'1. Order'!L172)","v":""},{"$f":"IF('1. Order'!M172=\"\",\"\",'1. Order'!M172)","v":""},{"$f":"IF('1. Order'!N172=\"\",\"\",'1. Order'!N172)","v":""},{"$f":"IF('1. Order'!O172=\"\",\"\",'1. Order'!O172)","v":{"$error":"#N/A"}},{"$f":"IF('1. Order'!P172=\"\",\"\",'1. Order'!P172)","v":{"$error":"#N/A"}},{"$f":"IF('1. Order'!Q172=\"\",\"\",'1. Order'!Q172)","v":""},{"$f":"IF('1. Order'!R172=\"\",\"\",'1. Order'!R172)","v":""},{"$f":"IF('1. Order'!S172=\"\",\"\",'1. Order'!S172)","v":""},{"$f":"IF('1. Order'!V172=\"\",\"\",'1. Order'!V172)","v":""},{"$f":"IF('1. Order'!W172=\"\",\"\",'1. Order'!W172)","v":""},{"$f":"IF('1. Order'!X172=\"\",\"\",'1. Order'!X172)","v":"EUR"},{"$f":"IF('1. Order'!Y172=\"\",\"\",'1. Order'!Y172)","v":""},{"$f":"IF('1. Order'!Z172=\"\",\"\",'1. Order'!Z172)","v":""},{"$f":"IF('1. Order'!AA172=\"\",\"\",'1. Order'!AA172)","v":""},null,{"$f":"IF('1. Order'!AS172=\"\",\"\",'1. Order'!AS172)","v":""},{"$f":"IF('1. Order'!AT172=\"\",\"\",'1. Order'!AT172)","v":""},null,null,null,null,null,null,null,{"$f":"IF('1. Order'!AX172=\"\",\"\",'1. Order'!AX172)","v":""},{"$f":"IF('1. Order'!AY172=\"\",\"\",'1. Order'!AY172)","v":""},{"$f":"IF('1. Order'!AZ172=\"\",\"\",'1. Order'!AZ172)","v":""},{"$f":"IF('1. Order'!BA172=\"\",\"\",'1. Order'!BA172)","v":""},{"$f":"IF('1. Order'!BC172=\"\",\"\",'1. Order'!BC172)","v":""},{"$f":"IF('1. Order'!BD172=\"\",\"\",'1. Order'!BD172)","v":6},{"$f":"IF('1. Order'!BE172=\"\",\"\",'1. Order'!BE172)","v":"None"},{"$f":"IF('1. Order'!BF172=\"\",\"\",'1. Order'!BF172)","v":"Parcel"},{"$f":"IF('1. Order'!BG172=\"\",\"\",'1. Order'!BG172)","v":"ZWO"}]
[{"$f":"IF('1. Order'!F173=\"\",\"\",'1. Order'!F173)","v":""},{"$f":"IF('1. Order'!G173=\"\",\"\",'1. Order'!G173)","v":""},{"$f":"IF('1. Order'!H173=\"\",\"\",'1. Order'!H173)","v":""},{"$f":"IF('1. Order'!I173=\"\",\"\",'1. Order'!I173)","v":""},{"$f":"IF('1. Order'!J173=\"\",\"\",'1. Order'!J173)","v":""},{"$f":"IF('1. Order'!K173=\"\",\"\",'1. Order'!K173)","v":""},{"$f":"IF('1. Order'!L173=\"\",\"\",'1. Order'!L173)","v":""},{"$f":"IF('1. Order'!M173=\"\",\"\",'1. Order'!M173)","v":""},{"$f":"IF('1. Order'!N173=\"\",\"\",'1. Order'!N173)","v":""},{"$f":"IF('1. Order'!O173=\"\",\"\",'1. Order'!O173)","v":{"$error":"#N/A"}},{"$f":"IF('1. Order'!P173=\"\",\"\",'1. Order'!P173)","v":{"$error":"#N/A"}},{"$f":"IF('1. Order'!Q173=\"\",\"\",'1. Order'!Q173)","v":""},{"$f":"IF('1. Order'!R173=\"\",\"\",'1. Order'!R173)","v":""},{"$f":"IF('1. Order'!S173=\"\",\"\",'1. Order'!S173)","v":""},{"$f":"IF('1. Order'!V173=\"\",\"\",'1. Order'!V173)","v":""},{"$f":"IF('1. Order'!W173=\"\",\"\",'1. Order'!W173)","v":""},{"$f":"IF('1. Order'!X173=\"\",\"\",'1. Order'!X173)","v":"EUR"},{"$f":"IF('1. Order'!Y173=\"\",\"\",'1. Order'!Y173)","v":""},{"$f":"IF('1. Order'!Z173=\"\",\"\",'1. Order'!Z173)","v":""},{"$f":"IF('1. Order'!AA173=\"\",\"\",'1. Order'!AA173)","v":""},null,{"$f":"IF('1. Order'!AS173=\"\",\"\",'1. Order'!AS173)","v":""},{"$f":"IF('1. Order'!AT173=\"\",\"\",'1. Order'!AT173)","v":""},null,null,null,null,null,null,null,{"$f":"IF('1. Order'!AX173=\"\",\"\",'1. Order'!AX173)","v":""},{"$f":"IF('1. Order'!AY173=\"\",\"\",'1. Order'!AY173)","v":""},{"$f":"IF('1. Order'!AZ173=\"\",\"\",'1. Order'!AZ173)","v":""},{"$f":"IF('1. Order'!BA173=\"\",\"\",'1. Order'!BA173)","v":""},{"$f":"IF('1. Order'!BC173=\"\",\"\",'1. Order'!BC173)","v":""},{"$f":"IF('1. Order'!BD173=\"\",\"\",'1. Order'!BD173)","v":6},{"$f":"IF('1. Order'!BE173=\"\",\"\",'1. Order'!BE173)","v":"None"},{"$f":"IF('1. Order'!BF173=\"\",\"\",'1. Order'!BF173)","v":"Parcel"},{"$f":"IF('1. Order'!BG173=\"\",\"\",'1. Order'!BG173)","v":"ZWO"}]
[{"$f":"IF('1. Order'!F174=\"\",\"\",'1. Order'!F174)","v":""},{"$f":"IF('1. Order'!G174=\"\",\"\",'1. Order'!G174)","v":""},{"$f":"IF('1. Order'!H174=\"\",\"\",'1. Order'!H174)","v":""},{"$f":"IF('1. Order'!I174=\"\",\"\",'1. Order'!I174)","v":""},{"$f":"IF('1. Order'!J174=\"\",\"\",'1. Order'!J174)","v":""},{"$f":"IF('1. Order'!K174=\"\",\"\",'1. Order'!K174)","v":""},{"$f":"IF('1. Order'!L174=\"\",\"\",'1. Order'!L174)","v":""},{"$f":"IF('1. Order'!M174=\"\",\"\",'1. Order'!M174)","v":""},{"$f":"IF('1. Order'!N174=\"\",\"\",'1. Order'!N174)","v":""},{"$f":"IF('1. Order'!O174=\"\",\"\",'1. Order'!O174)","v":{"$error":"#N/A"}},{"$f":"IF('1. Order'!P174=\"\",\"\",'1. Order'!P174)","v":{"$error":"#N/A"}},{"$f":"IF('1. Order'!Q174=\"\",\"\",'1. Order'!Q174)","v":""},{"$f":"IF('1. Order'!R174=\"\",\"\",'1. Order'!R174)","v":""},{"$f":"IF('1. Order'!S174=\"\",\"\",'1. Order'!S174)","v":""},{"$f":"IF('1. Order'!V174=\"\",\"\",'1. Order'!V174)","v":""},{"$f":"IF('1. Order'!W174=\"\",\"\",'1. Order'!W174)","v":""},{"$f":"IF('1. Order'!X174=\"\",\"\",'1. Order'!X174)","v":"EUR"},{"$f":"IF('1. Order'!Y174=\"\",\"\",'1. Order'!Y174)","v":""},{"$f":"IF('1. Order'!Z174=\"\",\"\",'1. Order'!Z174)","v":""},{"$f":"IF('1. Order'!AA174=\"\",\"\",'1. Order'!AA174)","v":""},null,{"$f":"IF('1. Order'!AS174=\"\",\"\",'1. Order'!AS174)","v":""},{"$f":"IF('1. Order'!AT174=\"\",\"\",'1. Order'!AT174)","v":""},null,null,null,null,null,null,null,{"$f":"IF('1. Order'!AX174=\"\",\"\",'1. Order'!AX174)","v":""},{"$f":"IF('1. Order'!AY174=\"\",\"\",'1. Order'!AY174)","v":""},{"$f":"IF('1. Order'!AZ174=\"\",\"\",'1. Order'!AZ174)","v":""},{"$f":"IF('1. Order'!BA174=\"\",\"\",'1. Order'!BA174)","v":""},{"$f":"IF('1. Order'!BC174=\"\",\"\",'1. Order'!BC174)","v":""},{"$f":"IF('1. Order'!BD174=\"\",\"\",'1. Order'!BD174)","v":6},{"$f":"IF('1. Order'!BE174=\"\",\"\",'1. Order'!BE174)","v":"None"},{"$f":"IF('1. Order'!BF174=\"\",\"\",'1. Order'!BF174)","v":"Parcel"},{"$f":"IF('1. Order'!BG174=\"\",\"\",'1. Order'!BG174)","v":"ZWO"}]
[{"$f":"IF('1. Order'!F175=\"\",\"\",'1. Order'!F175)","v":""},{"$f":"IF('1. Order'!G175=\"\",\"\",'1. Order'!G175)","v":""},{"$f":"IF('1. Order'!H175=\"\",\"\",'1. Order'!H175)","v":""},{"$f":"IF('1. Order'!I175=\"\",\"\",'1. Order'!I175)","v":""},{"$f":"IF('1. Order'!J175=\"\",\"\",'1. Order'!J175)","v":""},{"$f":"IF('1. Order'!K175=\"\",\"\",'1. Order'!K175)","v":""},{"$f":"IF('1. Order'!L175=\"\",\"\",'1. Order'!L175)","v":""},{"$f":"IF('1. Order'!M175=\"\",\"\",'1. Order'!M175)","v":""},{"$f":"IF('1. Order'!N175=\"\",\"\",'1. Order'!N175)","v":""},{"$f":"IF('1. Order'!O175=\"\",\"\",'1. Order'!O175)","v":{"$error":"#N/A"}},{"$f":"IF('1. Order'!P175=\"\",\"\",'1. Order'!P175)","v":{"$error":"#N/A"}},{"$f":"IF('1. Order'!Q175=\"\",\"\",'1. Order'!Q175)","v":""},{"$f":"IF('1. Order'!R175=\"\",\"\",'1. Order'!R175)","v":""},{"$f":"IF('1. Order'!S175=\"\",\"\",'1. Order'!S175)","v":""},{"$f":"IF('1. Order'!V175=\"\",\"\",'1. Order'!V175)","v":""},{"$f":"IF('1. Order'!W175=\"\",\"\",'1. Order'!W175)","v":""},{"$f":"IF('1. Order'!X175=\"\",\"\",'1. Order'!X175)","v":"EUR"},{"$f":"IF('1. Order'!Y175=\"\",\"\",'1. Order'!Y175)","v":""},{"$f":"IF('1. Order'!Z175=\"\",\"\",'1. Order'!Z175)","v":""},{"$f":"IF('1. Order'!AA175=\"\",\"\",'1. Order'!AA175)","v":""},null,{"$f":"IF('1. Order'!AS175=\"\",\"\",'1. Order'!AS175)","v":""},{"$f":"IF('1. Order'!AT175=\"\",\"\",'1. Order'!AT175)","v":""},null,null,null,null,null,null,null,{"$f":"IF('1. Order'!AX175=\"\",\"\",'1. Order'!AX175)","v":""},{"$f":"IF('1. Order'!AY175=\"\",\"\",'1. Order'!AY175)","v":""},{"$f":"IF('1. Order'!AZ175=\"\",\"\",'1. Order'!AZ175)","v":""},{"$f":"IF('1. Order'!BA175=\"\",\"\",'1. Order'!BA175)","v":""},{"$f":"IF('1. Order'!BC175=\"\",\"\",'1. Order'!BC175)","v":""},{"$f":"IF('1. Order'!BD175=\"\",\"\",'1. Order'!BD175)","v":6},{"$f":"IF('1. Order'!BE175=\"\",\"\",'1. Order'!BE175)","v":"None"},{"$f":"IF('1. Order'!BF175=\"\",\"\",'1. Order'!BF175)","v":"Parcel"},{"$f":"IF('1. Order'!BG175=\"\",\"\",'1. Order'!BG175)","v":"ZWO"}]
[{"$f":"IF('1. Order'!F176=\"\",\"\",'1. Order'!F176)","v":""},{"$f":"IF('1. Order'!G176=\"\",\"\",'1. Order'!G176)","v":""},{"$f":"IF('1. Order'!H176=\"\",\"\",'1. Order'!H176)","v":""},{"$f":"IF('1. Order'!I176=\"\",\"\",'1. Order'!I176)","v":""},{"$f":"IF('1. Order'!J176=\"\",\"\",'1. Order'!J176)","v":""},{"$f":"IF('1. Order'!K176=\"\",\"\",'1. Order'!K176)","v":""},{"$f":"IF('1. Order'!L176=\"\",\"\",'1. Order'!L176)","v":""},{"$f":"IF('1. Order'!M176=\"\",\"\",'1. Order'!M176)","v":""},{"$f":"IF('1. Order'!N176=\"\",\"\",'1. Order'!N176)","v":""},{"$f":"IF('1. Order'!O176=\"\",\"\",'1. Order'!O176)","v":{"$error":"#N/A"}},{"$f":"IF('1. Order'!P176=\"\",\"\",'1. Order'!P176)","v":{"$error":"#N/A"}},{"$f":"IF('1. Order'!Q176=\"\",\"\",'1. Order'!Q176)","v":""},{"$f":"IF('1. Order'!R176=\"\",\"\",'1. Order'!R176)","v":""},{"$f":"IF('1. Order'!S176=\"\",\"\",'1. Order'!S176)","v":""},{"$f":"IF('1. Order'!V176=\"\",\"\",'1. Order'!V176)","v":""},{"$f":"IF('1. Order'!W176=\"\",\"\",'1. Order'!W176)","v":""},{"$f":"IF('1. Order'!X176=\"\",\"\",'1. Order'!X176)","v":"EUR"},{"$f":"IF('1. Order'!Y176=\"\",\"\",'1. Order'!Y176)","v":""},{"$f":"IF('1. Order'!Z176=\"\",\"\",'1. Order'!Z176)","v":""},{"$f":"IF('1. Order'!AA176=\"\",\"\",'1. Order'!AA176)","v":""},null,{"$f":"IF('1. Order'!AS176=\"\",\"\",'1. Order'!AS176)","v":""},{"$f":"IF('1. Order'!AT176=\"\",\"\",'1. Order'!AT176)","v":""},null,null,null,null,null,null,null,{"$f":"IF('1. Order'!AX176=\"\",\"\",'1. Order'!AX176)","v":""},{"$f":"IF('1. Order'!AY176=\"\",\"\",'1. Order'!AY176)","v":""},{"$f":"IF('1. Order'!AZ176=\"\",\"\",'1. Order'!AZ176)","v":""},{"$f":"IF('1. Order'!BA176=\"\",\"\",'1. Order'!BA176)","v":""},{"$f":"IF('1. Order'!BC176=\"\",\"\",'1. Order'!BC176)","v":""},{"$f":"IF('1. Order'!BD176=\"\",\"\",'1. Order'!BD176)","v":6},{"$f":"IF('1. Order'!BE176=\"\",\"\",'1. Order'!BE176)","v":"None"},{"$f":"IF('1. Order'!BF176=\"\",\"\",'1. Order'!BF176)","v":"Parcel"},{"$f":"IF('1. Order'!BG176=\"\",\"\",'1. Order'!BG176)","v":"ZWO"}]
[{"$f":"IF('1. Order'!F177=\"\",\"\",'1. Order'!F177)","v":""},{"$f":"IF('1. Order'!G177=\"\",\"\",'1. Order'!G177)","v":""},{"$f":"IF('1. Order'!H177=\"\",\"\",'1. Order'!H177)","v":""},{"$f":"IF('1. Order'!I177=\"\",\"\",'1. Order'!I177)","v":""},{"$f":"IF('1. Order'!J177=\"\",\"\",'1. Order'!J177)","v":""},{"$f":"IF('1. Order'!K177=\"\",\"\",'1. Order'!K177)","v":""},{"$f":"IF('1. Order'!L177=\"\",\"\",'1. Order'!L177)","v":""},{"$f":"IF('1. Order'!M177=\"\",\"\",'1. Order'!M177)","v":""},{"$f":"IF('1. Order'!N177=\"\",\"\",'1. Order'!N177)","v":""},{"$f":"IF('1. Order'!O177=\"\",\"\",'1. Order'!O177)","v":{"$error":"#N/A"}},{"$f":"IF('1. Order'!P177=\"\",\"\",'1. Order'!P177)","v":{"$error":"#N/A"}},{"$f":"IF('1. Order'!Q177=\"\",\"\",'1. Order'!Q177)","v":""},{"$f":"IF('1. Order'!R177=\"\",\"\",'1. Order'!R177)","v":""},{"$f":"IF('1. Order'!S177=\"\",\"\",'1. Order'!S177)","v":""},{"$f":"IF('1. Order'!V177=\"\",\"\",'1. Order'!V177)","v":""},{"$f":"IF('1. Order'!W177=\"\",\"\",'1. Order'!W177)","v":""},{"$f":"IF('1. Order'!X177=\"\",\"\",'1. Order'!X177)","v":"EUR"},{"$f":"IF('1. Order'!Y177=\"\",\"\",'1. Order'!Y177)","v":""},{"$f":"IF('1. Order'!Z177=\"\",\"\",'1. Order'!Z177)","v":""},{"$f":"IF('1. Order'!AA177=\"\",\"\",'1. Order'!AA177)","v":""},null,{"$f":"IF('1. Order'!AS177=\"\",\"\",'1. Order'!AS177)","v":""},{"$f":"IF('1. Order'!AT177=\"\",\"\",'1. Order'!AT177)","v":""},null,null,null,null,null,null,null,{"$f":"IF('1. Order'!AX177=\"\",\"\",'1. Order'!AX177)","v":""},{"$f":"IF('1. Order'!AY177=\"\",\"\",'1. Order'!AY177)","v":""},{"$f":"IF('1. Order'!AZ177=\"\",\"\",'1. Order'!AZ177)","v":""},{"$f":"IF('1. Order'!BA177=\"\",\"\",'1. Order'!BA177)","v":""},{"$f":"IF('1. Order'!BC177=\"\",\"\",'1. Order'!BC177)","v":""},{"$f":"IF('1. Order'!BD177=\"\",\"\",'1. Order'!BD177)","v":6},{"$f":"IF('1. Order'!BE177=\"\",\"\",'1. Order'!BE177)","v":"None"},{"$f":"IF('1. Order'!BF177=\"\",\"\",'1. Order'!BF177)","v":"Parcel"},{"$f":"IF('1. Order'!BG177=\"\",\"\",'1. Order'!BG177)","v":"ZWO"}]
[{"$f":"IF('1. Order'!F178=\"\",\"\",'1. Order'!F178)","v":""},{"$f":"IF('1. Order'!G178=\"\",\"\",'1. Order'!G178)","v":""},{"$f":"IF('1. Order'!H178=\"\",\"\",'1. Order'!H178)","v":""},{"$f":"IF('1. Order'!I178=\"\",\"\",'1. Order'!I178)","v":""},{"$f":"IF('1. Order'!J178=\"\",\"\",'1. Order'!J178)","v":""},{"$f":"IF('1. Order'!K178=\"\",\"\",'1. Order'!K178)","v":""},{"$f":"IF('1. Order'!L178=\"\",\"\",'1. Order'!L178)","v":""},{"$f":"IF('1. Order'!M178=\"\",\"\",'1. Order'!M178)","v":""},{"$f":"IF('1. Order'!N178=\"\",\"\",'1. Order'!N178)","v":""},{"$f":"IF('1. Order'!O178=\"\",\"\",'1. Order'!O178)","v":{"$error":"#N/A"}},{"$f":"IF('1. Order'!P178=\"\",\"\",'1. Order'!P178)","v":{"$error":"#N/A"}},{"$f":"IF('1. Order'!Q178=\"\",\"\",'1. Order'!Q178)","v":""},{"$f":"IF('1. Order'!R178=\"\",\"\",'1. Order'!R178)","v":""},{"$f":"IF('1. Order'!S178=\"\",\"\",'1. Order'!S178)","v":""},{"$f":"IF('1. Order'!V178=\"\",\"\",'1. Order'!V178)","v":""},{"$f":"IF('1. Order'!W178=\"\",\"\",'1. Order'!W178)","v":""},{"$f":"IF('1. Order'!X178=\"\",\"\",'1. Order'!X178)","v":"EUR"},{"$f":"IF('1. Order'!Y178=\"\",\"\",'1. Order'!Y178)","v":""},{"$f":"IF('1. Order'!Z178=\"\",\"\",'1. Order'!Z178)","v":""},{"$f":"IF('1. Order'!AA178=\"\",\"\",'1. Order'!AA178)","v":""},null,{"$f":"IF('1. Order'!AS178=\"\",\"\",'1. Order'!AS178)","v":""},{"$f":"IF('1. Order'!AT178=\"\",\"\",'1. Order'!AT178)","v":""},null,null,null,null,null,null,null,{"$f":"IF('1. Order'!AX178=\"\",\"\",'1. Order'!AX178)","v":""},{"$f":"IF('1. Order'!AY178=\"\",\"\",'1. Order'!AY178)","v":""},{"$f":"IF('1. Order'!AZ178=\"\",\"\",'1. Order'!AZ178)","v":""},{"$f":"IF('1. Order'!BA178=\"\",\"\",'1. Order'!BA178)","v":""},{"$f":"IF('1. Order'!BC178=\"\",\"\",'1. Order'!BC178)","v":""},{"$f":"IF('1. Order'!BD178=\"\",\"\",'1. Order'!BD178)","v":6},{"$f":"IF('1. Order'!BE178=\"\",\"\",'1. Order'!BE178)","v":"None"},{"$f":"IF('1. Order'!BF178=\"\",\"\",'1. Order'!BF178)","v":"Parcel"},{"$f":"IF('1. Order'!BG178=\"\",\"\",'1. Order'!BG178)","v":"ZWO"}]
[{"$f":"IF('1. Order'!F179=\"\",\"\",'1. Order'!F179)","v":""},{"$f":"IF('1. Order'!G179=\"\",\"\",'1. Order'!G179)","v":""},{"$f":"IF('1. Order'!H179=\"\",\"\",'1. Order'!H179)","v":""},{"$f":"IF('1. Order'!I179=\"\",\"\",'1. Order'!I179)","v":""},{"$f":"IF('1. Order'!J179=\"\",\"\",'1. Order'!J179)","v":""},{"$f":"IF('1. Order'!K179=\"\",\"\",'1. Order'!K179)","v":""},{"$f":"IF('1. Order'!L179=\"\",\"\",'1. Order'!L179)","v":""},{"$f":"IF('1. Order'!M179=\"\",\"\",'1. Order'!M179)","v":""},{"$f":"IF('1. Order'!N179=\"\",\"\",'1. Order'!N179)","v":""},{"$f":"IF('1. Order'!O179=\"\",\"\",'1. Order'!O179)","v":{"$error":"#N/A"}},{"$f":"IF('1. Order'!P179=\"\",\"\",'1. Order'!P179)","v":{"$error":"#N/A"}},{"$f":"IF('1. Order'!Q179=\"\",\"\",'1. Order'!Q179)","v":""},{"$f":"IF('1. Order'!R179=\"\",\"\",'1. Order'!R179)","v":""},{"$f":"IF('1. Order'!S179=\"\",\"\",'1. Order'!S179)","v":""},{"$f":"IF('1. Order'!V179=\"\",\"\",'1. Order'!V179)","v":""},{"$f":"IF('1. Order'!W179=\"\",\"\",'1. Order'!W179)","v":""},{"$f":"IF('1. Order'!X179=\"\",\"\",'1. Order'!X179)","v":"EUR"},{"$f":"IF('1. Order'!Y179=\"\",\"\",'1. Order'!Y179)","v":""},{"$f":"IF('1. Order'!Z179=\"\",\"\",'1. Order'!Z179)","v":""},{"$f":"IF('1. Order'!AA179=\"\",\"\",'1. Order'!AA179)","v":""},null,{"$f":"IF('1. Order'!AS179=\"\",\"\",'1. Order'!AS179)","v":""},{"$f":"IF('1. Order'!AT179=\"\",\"\",'1. Order'!AT179)","v":""},null,null,null,null,null,null,null,{"$f":"IF('1. Order'!AX179=\"\",\"\",'1. Order'!AX179)","v":""},{"$f":"IF('1. Order'!AY179=\"\",\"\",'1. Order'!AY179)","v":""},{"$f":"IF('1. Order'!AZ179=\"\",\"\",'1. Order'!AZ179)","v":""},{"$f":"IF('1. Order'!BA179=\"\",\"\",'1. Order'!BA179)","v":""},{"$f":"IF('1. Order'!BC179=\"\",\"\",'1. Order'!BC179)","v":""},{"$f":"IF('1. Order'!BD179=\"\",\"\",'1. Order'!BD179)","v":6},{"$f":"IF('1. Order'!BE179=\"\",\"\",'1. Order'!BE179)","v":"None"},{"$f":"IF('1. Order'!BF179=\"\",\"\",'1. Order'!BF179)","v":"Parcel"},{"$f":"IF('1. Order'!BG179=\"\",\"\",'1. Order'!BG179)","v":"ZWO"}]
[{"$f":"IF('1. Order'!F180=\"\",\"\",'1. Order'!F180)","v":""},{"$f":"IF('1. Order'!G180=\"\",\"\",'1. Order'!G180)","v":""},{"$f":"IF('1. Order'!H180=\"\",\"\",'1. Order'!H180)","v":""},{"$f":"IF('1. Order'!I180=\"\",\"\",'1. Order'!I180)","v":""},{"$f":"IF('1. Order'!J180=\"\",\"\",'1. Order'!J180)","v":""},{"$f":"IF('1. Order'!K180=\"\",\"\",'1. Order'!K180)","v":""},{"$f":"IF('1. Order'!L180=\"\",\"\",'1. Order'!L180)","v":""},{"$f":"IF('1. Order'!M180=\"\",\"\",'1. Order'!M180)","v":""},{"$f":"IF('1. Order'!N180=\"\",\"\",'1. Order'!N180)","v":""},{"$f":"IF('1. Order'!O180=\"\",\"\",'1. Order'!O180)","v":{"$error":"#N/A"}},{"$f":"IF('1. Order'!P180=\"\",\"\",'1. Order'!P180)","v":{"$error":"#N/A"}},{"$f":"IF('1. Order'!Q180=\"\",\"\",'1. Order'!Q180)","v":""},{"$f":"IF('1. Order'!R180=\"\",\"\",'1. Order'!R180)","v":""},{"$f":"IF('1. Order'!S180=\"\",\"\",'1. Order'!S180)","v":""},{"$f":"IF('1. Order'!V180=\"\",\"\",'1. Order'!V180)","v":""},{"$f":"IF('1. Order'!W180=\"\",\"\",'1. Order'!W180)","v":""},{"$f":"IF('1. Order'!X180=\"\",\"\",'1. Order'!X180)","v":"EUR"},{"$f":"IF('1. Order'!Y180=\"\",\"\",'1. Order'!Y180)","v":""},{"$f":"IF('1. Order'!Z180=\"\",\"\",'1. Order'!Z180)","v":""},{"$f":"IF('1. Order'!AA180=\"\",\"\",'1. Order'!AA180)","v":""},null,{"$f":"IF('1. Order'!AS180=\"\",\"\",'1. Order'!AS180)","v":""},{"$f":"IF('1. Order'!AT180=\"\",\"\",'1. Order'!AT180)","v":""},null,null,null,null,null,null,null,{"$f":"IF('1. Order'!AX180=\"\",\"\",'1. Order'!AX180)","v":""},{"$f":"IF('1. Order'!AY180=\"\",\"\",'1. Order'!AY180)","v":""},{"$f":"IF('1. Order'!AZ180=\"\",\"\",'1. Order'!AZ180)","v":""},{"$f":"IF('1. Order'!BA180=\"\",\"\",'1. Order'!BA180)","v":""},{"$f":"IF('1. Order'!BC180=\"\",\"\",'1. Order'!BC180)","v":""},{"$f":"IF('1. Order'!BD180=\"\",\"\",'1. Order'!BD180)","v":6},{"$f":"IF('1. Order'!BE180=\"\",\"\",'1. Order'!BE180)","v":"None"},{"$f":"IF('1. Order'!BF180=\"\",\"\",'1. Order'!BF180)","v":"Parcel"},{"$f":"IF('1. Order'!BG180=\"\",\"\",'1. Order'!BG180)","v":"ZWO"}]
[{"$f":"IF('1. Order'!F181=\"\",\"\",'1. Order'!F181)","v":""},{"$f":"IF('1. Order'!G181=\"\",\"\",'1. Order'!G181)","v":""},{"$f":"IF('1. Order'!H181=\"\",\"\",'1. Order'!H181)","v":""},{"$f":"IF('1. Order'!I181=\"\",\"\",'1. Order'!I181)","v":""},{"$f":"IF('1. Order'!J181=\"\",\"\",'1. Order'!J181)","v":""},{"$f":"IF('1. Order'!K181=\"\",\"\",'1. Order'!K181)","v":""},{"$f":"IF('1. Order'!L181=\"\",\"\",'1. Order'!L181)","v":""},{"$f":"IF('1. Order'!M181=\"\",\"\",'1. Order'!M181)","v":""},{"$f":"IF('1. Order'!N181=\"\",\"\",'1. Order'!N181)","v":""},{"$f":"IF('1. Order'!O181=\"\",\"\",'1. Order'!O181)","v":{"$error":"#N/A"}},{"$f":"IF('1. Order'!P181=\"\",\"\",'1. Order'!P181)","v":{"$error":"#N/A"}},{"$f":"IF('1. Order'!Q181=\"\",\"\",'1. Order'!Q181)","v":""},{"$f":"IF('1. Order'!R181=\"\",\"\",'1. Order'!R181)","v":""},{"$f":"IF('1. Order'!S181=\"\",\"\",'1. Order'!S181)","v":""},{"$f":"IF('1. Order'!V181=\"\",\"\",'1. Order'!V181)","v":""},{"$f":"IF('1. Order'!W181=\"\",\"\",'1. Order'!W181)","v":""},{"$f":"IF('1. Order'!X181=\"\",\"\",'1. Order'!X181)","v":"EUR"},{"$f":"IF('1. Order'!Y181=\"\",\"\",'1. Order'!Y181)","v":""},{"$f":"IF('1. Order'!Z181=\"\",\"\",'1. Order'!Z181)","v":""},{"$f":"IF('1. Order'!AA181=\"\",\"\",'1. Order'!AA181)","v":""},null,{"$f":"IF('1. Order'!AS181=\"\",\"\",'1. Order'!AS181)","v":""},{"$f":"IF('1. Order'!AT181=\"\",\"\",'1. Order'!AT181)","v":""},null,null,null,null,null,null,null,{"$f":"IF('1. Order'!AX181=\"\",\"\",'1. Order'!AX181)","v":""},{"$f":"IF('1. Order'!AY181=\"\",\"\",'1. Order'!AY181)","v":""},{"$f":"IF('1. Order'!AZ181=\"\",\"\",'1. Order'!AZ181)","v":""},{"$f":"IF('1. Order'!BA181=\"\",\"\",'1. Order'!BA181)","v":""},{"$f":"IF('1. Order'!BC181=\"\",\"\",'1. Order'!BC181)","v":""},{"$f":"IF('1. Order'!BD181=\"\",\"\",'1. Order'!BD181)","v":6},{"$f":"IF('1. Order'!BE181=\"\",\"\",'1. Order'!BE181)","v":"None"},{"$f":"IF('1. Order'!BF181=\"\",\"\",'1. Order'!BF181)","v":"Parcel"},{"$f":"IF('1. Order'!BG181=\"\",\"\",'1. Order'!BG181)","v":"ZWO"}]
[{"$f":"IF('1. Order'!F182=\"\",\"\",'1. Order'!F182)","v":""},{"$f":"IF('1. Order'!G182=\"\",\"\",'1. Order'!G182)","v":""},{"$f":"IF('1. Order'!H182=\"\",\"\",'1. Order'!H182)","v":""},{"$f":"IF('1. Order'!I182=\"\",\"\",'1. Order'!I182)","v":""},{"$f":"IF('1. Order'!J182=\"\",\"\",'1. Order'!J182)","v":""},{"$f":"IF('1. Order'!K182=\"\",\"\",'1. Order'!K182)","v":""},{"$f":"IF('1. Order'!L182=\"\",\"\",'1. Order'!L182)","v":""},{"$f":"IF('1. Order'!M182=\"\",\"\",'1. Order'!M182)","v":""},{"$f":"IF('1. Order'!N182=\"\",\"\",'1. Order'!N182)","v":""},{"$f":"IF('1. Order'!O182=\"\",\"\",'1. Order'!O182)","v":{"$error":"#N/A"}},{"$f":"IF('1. Order'!P182=\"\",\"\",'1. Order'!P182)","v":{"$error":"#N/A"}},{"$f":"IF('1. Order'!Q182=\"\",\"\",'1. Order'!Q182)","v":""},{"$f":"IF('1. Order'!R182=\"\",\"\",'1. Order'!R182)","v":""},{"$f":"IF('1. Order'!S182=\"\",\"\",'1. Order'!S182)","v":""},{"$f":"IF('1. Order'!V182=\"\",\"\",'1. Order'!V182)","v":""},{"$f":"IF('1. Order'!W182=\"\",\"\",'1. Order'!W182)","v":""},{"$f":"IF('1. Order'!X182=\"\",\"\",'1. Order'!X182)","v":"EUR"},{"$f":"IF('1. Order'!Y182=\"\",\"\",'1. Order'!Y182)","v":""},{"$f":"IF('1. Order'!Z182=\"\",\"\",'1. Order'!Z182)","v":""},{"$f":"IF('1. Order'!AA182=\"\",\"\",'1. Order'!AA182)","v":""},null,{"$f":"IF('1. Order'!AS182=\"\",\"\",'1. Order'!AS182)","v":""},{"$f":"IF('1. Order'!AT182=\"\",\"\",'1. Order'!AT182)","v":""},null,null,null,null,null,null,null,{"$f":"IF('1. Order'!AX182=\"\",\"\",'1. Order'!AX182)","v":""},{"$f":"IF('1. Order'!AY182=\"\",\"\",'1. Order'!AY182)","v":""},{"$f":"IF('1. Order'!AZ182=\"\",\"\",'1. Order'!AZ182)","v":""},{"$f":"IF('1. Order'!BA182=\"\",\"\",'1. Order'!BA182)","v":""},{"$f":"IF('1. Order'!BC182=\"\",\"\",'1. Order'!BC182)","v":""},{"$f":"IF('1. Order'!BD182=\"\",\"\",'1. Order'!BD182)","v":6},{"$f":"IF('1. Order'!BE182=\"\",\"\",'1. Order'!BE182)","v":"None"},{"$f":"IF('1. Order'!BF182=\"\",\"\",'1. Order'!BF182)","v":"Parcel"},{"$f":"IF('1. Order'!BG182=\"\",\"\",'1. Order'!BG182)","v":"ZWO"}]
[{"$f":"IF('1. Order'!F183=\"\",\"\",'1. Order'!F183)","v":""},{"$f":"IF('1. Order'!G183=\"\",\"\",'1. Order'!G183)","v":""},{"$f":"IF('1. Order'!H183=\"\",\"\",'1. Order'!H183)","v":""},{"$f":"IF('1. Order'!I183=\"\",\"\",'1. Order'!I183)","v":""},{"$f":"IF('1. Order'!J183=\"\",\"\",'1. Order'!J183)","v":""},{"$f":"IF('1. Order'!K183=\"\",\"\",'1. Order'!K183)","v":""},{"$f":"IF('1. Order'!L183=\"\",\"\",'1. Order'!L183)","v":""},{"$f":"IF('1. Order'!M183=\"\",\"\",'1. Order'!M183)","v":""},{"$f":"IF('1. Order'!N183=\"\",\"\",'1. Order'!N183)","v":""},{"$f":"IF('1. Order'!O183=\"\",\"\",'1. Order'!O183)","v":{"$error":"#N/A"}},{"$f":"IF('1. Order'!P183=\"\",\"\",'1. Order'!P183)","v":{"$error":"#N/A"}},{"$f":"IF('1. Order'!Q183=\"\",\"\",'1. Order'!Q183)","v":""},{"$f":"IF('1. Order'!R183=\"\",\"\",'1. Order'!R183)","v":""},{"$f":"IF('1. Order'!S183=\"\",\"\",'1. Order'!S183)","v":""},{"$f":"IF('1. Order'!V183=\"\",\"\",'1. Order'!V183)","v":""},{"$f":"IF('1. Order'!W183=\"\",\"\",'1. Order'!W183)","v":""},{"$f":"IF('1. Order'!X183=\"\",\"\",'1. Order'!X183)","v":"EUR"},{"$f":"IF('1. Order'!Y183=\"\",\"\",'1. Order'!Y183)","v":""},{"$f":"IF('1. Order'!Z183=\"\",\"\",'1. Order'!Z183)","v":""},{"$f":"IF('1. Order'!AA183=\"\",\"\",'1. Order'!AA183)","v":""},null,{"$f":"IF('1. Order'!AS183=\"\",\"\",'1. Order'!AS183)","v":""},{"$f":"IF('1. Order'!AT183=\"\",\"\",'1. Order'!AT183)","v":""},null,null,null,null,null,null,null,{"$f":"IF('1. Order'!AX183=\"\",\"\",'1. Order'!AX183)","v":""},{"$f":"IF('1. Order'!AY183=\"\",\"\",'1. Order'!AY183)","v":""},{"$f":"IF('1. Order'!AZ183=\"\",\"\",'1. Order'!AZ183)","v":""},{"$f":"IF('1. Order'!BA183=\"\",\"\",'1. Order'!BA183)","v":""},{"$f":"IF('1. Order'!BC183=\"\",\"\",'1. Order'!BC183)","v":""},{"$f":"IF('1. Order'!BD183=\"\",\"\",'1. Order'!BD183)","v":6},{"$f":"IF('1. Order'!BE183=\"\",\"\",'1. Order'!BE183)","v":"None"},{"$f":"IF('1. Order'!BF183=\"\",\"\",'1. Order'!BF183)","v":"Parcel"},{"$f":"IF('1. Order'!BG183=\"\",\"\",'1. Order'!BG183)","v":"ZWO"}]
[{"$f":"IF('1. Order'!F184=\"\",\"\",'1. Order'!F184)","v":""},{"$f":"IF('1. Order'!G184=\"\",\"\",'1. Order'!G184)","v":""},{"$f":"IF('1. Order'!H184=\"\",\"\",'1. Order'!H184)","v":""},{"$f":"IF('1. Order'!I184=\"\",\"\",'1. Order'!I184)","v":""},{"$f":"IF('1. Order'!J184=\"\",\"\",'1. Order'!J184)","v":""},{"$f":"IF('1. Order'!K184=\"\",\"\",'1. Order'!K184)","v":""},{"$f":"IF('1. Order'!L184=\"\",\"\",'1. Order'!L184)","v":""},{"$f":"IF('1. Order'!M184=\"\",\"\",'1. Order'!M184)","v":""},{"$f":"IF('1. Order'!N184=\"\",\"\",'1. Order'!N184)","v":""},{"$f":"IF('1. Order'!O184=\"\",\"\",'1. Order'!O184)","v":{"$error":"#N/A"}},{"$f":"IF('1. Order'!P184=\"\",\"\",'1. Order'!P184)","v":{"$error":"#N/A"}},{"$f":"IF('1. Order'!Q184=\"\",\"\",'1. Order'!Q184)","v":""},{"$f":"IF('1. Order'!R184=\"\",\"\",'1. Order'!R184)","v":""},{"$f":"IF('1. Order'!S184=\"\",\"\",'1. Order'!S184)","v":""},{"$f":"IF('1. Order'!V184=\"\",\"\",'1. Order'!V184)","v":""},{"$f":"IF('1. Order'!W184=\"\",\"\",'1. Order'!W184)","v":""},{"$f":"IF('1. Order'!X184=\"\",\"\",'1. Order'!X184)","v":"EUR"},{"$f":"IF('1. Order'!Y184=\"\",\"\",'1. Order'!Y184)","v":""},{"$f":"IF('1. Order'!Z184=\"\",\"\",'1. Order'!Z184)","v":""},{"$f":"IF('1. Order'!AA184=\"\",\"\",'1. Order'!AA184)","v":""},null,{"$f":"IF('1. Order'!AS184=\"\",\"\",'1. Order'!AS184)","v":""},{"$f":"IF('1. Order'!AT184=\"\",\"\",'1. Order'!AT184)","v":""},null,null,null,null,null,null,null,{"$f":"IF('1. Order'!AX184=\"\",\"\",'1. Order'!AX184)","v":""},{"$f":"IF('1. Order'!AY184=\"\",\"\",'1. Order'!AY184)","v":""},{"$f":"IF('1. Order'!AZ184=\"\",\"\",'1. Order'!AZ184)","v":""},{"$f":"IF('1. Order'!BA184=\"\",\"\",'1. Order'!BA184)","v":""},{"$f":"IF('1. Order'!BC184=\"\",\"\",'1. Order'!BC184)","v":""},{"$f":"IF('1. Order'!BD184=\"\",\"\",'1. Order'!BD184)","v":6},{"$f":"IF('1. Order'!BE184=\"\",\"\",'1. Order'!BE184)","v":"None"},{"$f":"IF('1. Order'!BF184=\"\",\"\",'1. Order'!BF184)","v":"Parcel"},{"$f":"IF('1. Order'!BG184=\"\",\"\",'1. Order'!BG184)","v":"ZWO"}]
[{"$f":"IF('1. Order'!F185=\"\",\"\",'1. Order'!F185)","v":""},{"$f":"IF('1. Order'!G185=\"\",\"\",'1. Order'!G185)","v":""},{"$f":"IF('1. Order'!H185=\"\",\"\",'1. Order'!H185)","v":""},{"$f":"IF('1. Order'!I185=\"\",\"\",'1. Order'!I185)","v":""},{"$f":"IF('1. Order'!J185=\"\",\"\",'1. Order'!J185)","v":""},{"$f":"IF('1. Order'!K185=\"\",\"\",'1. Order'!K185)","v":""},{"$f":"IF('1. Order'!L185=\"\",\"\",'1. Order'!L185)","v":""},{"$f":"IF('1. Order'!M185=\"\",\"\",'1. Order'!M185)","v":""},{"$f":"IF('1. Order'!N185=\"\",\"\",'1. Order'!N185)","v":""},{"$f":"IF('1. Order'!O185=\"\",\"\",'1. Order'!O185)","v":{"$error":"#N/A"}},{"$f":"IF('1. Order'!P185=\"\",\"\",'1. Order'!P185)","v":{"$error":"#N/A"}},{"$f":"IF('1. Order'!Q185=\"\",\"\",'1. Order'!Q185)","v":""},{"$f":"IF('1. Order'!R185=\"\",\"\",'1. Order'!R185)","v":""},{"$f":"IF('1. Order'!S185=\"\",\"\",'1. Order'!S185)","v":""},{"$f":"IF('1. Order'!V185=\"\",\"\",'1. Order'!V185)","v":""},{"$f":"IF('1. Order'!W185=\"\",\"\",'1. Order'!W185)","v":""},{"$f":"IF('1. Order'!X185=\"\",\"\",'1. Order'!X185)","v":"EUR"},{"$f":"IF('1. Order'!Y185=\"\",\"\",'1. Order'!Y185)","v":""},{"$f":"IF('1. Order'!Z185=\"\",\"\",'1. Order'!Z185)","v":""},{"$f":"IF('1. Order'!AA185=\"\",\"\",'1. Order'!AA185)","v":""},null,{"$f":"IF('1. Order'!AS185=\"\",\"\",'1. Order'!AS185)","v":""},{"$f":"IF('1. Order'!AT185=\"\",\"\",'1. Order'!AT185)","v":""},null,null,null,null,null,null,null,{"$f":"IF('1. Order'!AX185=\"\",\"\",'1. Order'!AX185)","v":""},{"$f":"IF('1. Order'!AY185=\"\",\"\",'1. Order'!AY185)","v":""},{"$f":"IF('1. Order'!AZ185=\"\",\"\",'1. Order'!AZ185)","v":""},{"$f":"IF('1. Order'!BA185=\"\",\"\",'1. Order'!BA185)","v":""},{"$f":"IF('1. Order'!BC185=\"\",\"\",'1. Order'!BC185)","v":""},{"$f":"IF('1. Order'!BD185=\"\",\"\",'1. Order'!BD185)","v":6},{"$f":"IF('1. Order'!BE185=\"\",\"\",'1. Order'!BE185)","v":"None"},{"$f":"IF('1. Order'!BF185=\"\",\"\",'1. Order'!BF185)","v":"Parcel"},{"$f":"IF('1. Order'!BG185=\"\",\"\",'1. Order'!BG185)","v":"ZWO"}]
[{"$f":"IF('1. Order'!F186=\"\",\"\",'1. Order'!F186)","v":""},{"$f":"IF('1. Order'!G186=\"\",\"\",'1. Order'!G186)","v":""},{"$f":"IF('1. Order'!H186=\"\",\"\",'1. Order'!H186)","v":""},{"$f":"IF('1. Order'!I186=\"\",\"\",'1. Order'!I186)","v":""},{"$f":"IF('1. Order'!J186=\"\",\"\",'1. Order'!J186)","v":""},{"$f":"IF('1. Order'!K186=\"\",\"\",'1. Order'!K186)","v":""},{"$f":"IF('1. Order'!L186=\"\",\"\",'1. Order'!L186)","v":""},{"$f":"IF('1. Order'!M186=\"\",\"\",'1. Order'!M186)","v":""},{"$f":"IF('1. Order'!N186=\"\",\"\",'1. Order'!N186)","v":""},{"$f":"IF('1. Order'!O186=\"\",\"\",'1. Order'!O186)","v":{"$error":"#N/A"}},{"$f":"IF('1. Order'!P186=\"\",\"\",'1. Order'!P186)","v":{"$error":"#N/A"}},{"$f":"IF('1. Order'!Q186=\"\",\"\",'1. Order'!Q186)","v":""},{"$f":"IF('1. Order'!R186=\"\",\"\",'1. Order'!R186)","v":""},{"$f":"IF('1. Order'!S186=\"\",\"\",'1. Order'!S186)","v":""},{"$f":"IF('1. Order'!V186=\"\",\"\",'1. Order'!V186)","v":""},{"$f":"IF('1. Order'!W186=\"\",\"\",'1. Order'!W186)","v":""},{"$f":"IF('1. Order'!X186=\"\",\"\",'1. Order'!X186)","v":"EUR"},{"$f":"IF('1. Order'!Y186=\"\",\"\",'1. Order'!Y186)","v":""},{"$f":"IF('1. Order'!Z186=\"\",\"\",'1. Order'!Z186)","v":""},{"$f":"IF('1. Order'!AA186=\"\",\"\",'1. Order'!AA186)","v":""},null,{"$f":"IF('1. Order'!AS186=\"\",\"\",'1. Order'!AS186)","v":""},{"$f":"IF('1. Order'!AT186=\"\",\"\",'1. Order'!AT186)","v":""},null,null,null,null,null,null,null,{"$f":"IF('1. Order'!AX186=\"\",\"\",'1. Order'!AX186)","v":""},{"$f":"IF('1. Order'!AY186=\"\",\"\",'1. Order'!AY186)","v":""},{"$f":"IF('1. Order'!AZ186=\"\",\"\",'1. Order'!AZ186)","v":""},{"$f":"IF('1. Order'!BA186=\"\",\"\",'1. Order'!BA186)","v":""},{"$f":"IF('1. Order'!BC186=\"\",\"\",'1. Order'!BC186)","v":""},{"$f":"IF('1. Order'!BD186=\"\",\"\",'1. Order'!BD186)","v":6},{"$f":"IF('1. Order'!BE186=\"\",\"\",'1. Order'!BE186)","v":"None"},{"$f":"IF('1. Order'!BF186=\"\",\"\",'1. Order'!BF186)","v":"Parcel"},{"$f":"IF('1. Order'!BG186=\"\",\"\",'1. Order'!BG186)","v":"ZWO"}]
[{"$f":"IF('1. Order'!F187=\"\",\"\",'1. Order'!F187)","v":""},{"$f":"IF('1. Order'!G187=\"\",\"\",'1. Order'!G187)","v":""},{"$f":"IF('1. Order'!H187=\"\",\"\",'1. Order'!H187)","v":""},{"$f":"IF('1. Order'!I187=\"\",\"\",'1. Order'!I187)","v":""},{"$f":"IF('1. Order'!J187=\"\",\"\",'1. Order'!J187)","v":""},{"$f":"IF('1. Order'!K187=\"\",\"\",'1. Order'!K187)","v":""},{"$f":"IF('1. Order'!L187=\"\",\"\",'1. Order'!L187)","v":""},{"$f":"IF('1. Order'!M187=\"\",\"\",'1. Order'!M187)","v":""},{"$f":"IF('1. Order'!N187=\"\",\"\",'1. Order'!N187)","v":""},{"$f":"IF('1. Order'!O187=\"\",\"\",'1. Order'!O187)","v":{"$error":"#N/A"}},{"$f":"IF('1. Order'!P187=\"\",\"\",'1. Order'!P187)","v":{"$error":"#N/A"}},{"$f":"IF('1. Order'!Q187=\"\",\"\",'1. Order'!Q187)","v":""},{"$f":"IF('1. Order'!R187=\"\",\"\",'1. Order'!R187)","v":""},{"$f":"IF('1. Order'!S187=\"\",\"\",'1. Order'!S187)","v":""},{"$f":"IF('1. Order'!V187=\"\",\"\",'1. Order'!V187)","v":""},{"$f":"IF('1. Order'!W187=\"\",\"\",'1. Order'!W187)","v":""},{"$f":"IF('1. Order'!X187=\"\",\"\",'1. Order'!X187)","v":"EUR"},{"$f":"IF('1. Order'!Y187=\"\",\"\",'1. Order'!Y187)","v":""},{"$f":"IF('1. Order'!Z187=\"\",\"\",'1. Order'!Z187)","v":""},{"$f":"IF('1. Order'!AA187=\"\",\"\",'1. Order'!AA187)","v":""},null,{"$f":"IF('1. Order'!AS187=\"\",\"\",'1. Order'!AS187)","v":""},{"$f":"IF('1. Order'!AT187=\"\",\"\",'1. Order'!AT187)","v":""},null,null,null,null,null,null,null,{"$f":"IF('1. Order'!AX187=\"\",\"\",'1. Order'!AX187)","v":""},{"$f":"IF('1. Order'!AY187=\"\",\"\",'1. Order'!AY187)","v":""},{"$f":"IF('1. Order'!AZ187=\"\",\"\",'1. Order'!AZ187)","v":""},{"$f":"IF('1. Order'!BA187=\"\",\"\",'1. Order'!BA187)","v":""},{"$f":"IF('1. Order'!BC187=\"\",\"\",'1. Order'!BC187)","v":""},{"$f":"IF('1. Order'!BD187=\"\",\"\",'1. Order'!BD187)","v":6},{"$f":"IF('1. Order'!BE187=\"\",\"\",'1. Order'!BE187)","v":"None"},{"$f":"IF('1. Order'!BF187=\"\",\"\",'1. Order'!BF187)","v":"Parcel"},{"$f":"IF('1. Order'!BG187=\"\",\"\",'1. Order'!BG187)","v":"ZWO"}]
[{"$f":"IF('1. Order'!F188=\"\",\"\",'1. Order'!F188)","v":""},{"$f":"IF('1. Order'!G188=\"\",\"\",'1. Order'!G188)","v":""},{"$f":"IF('1. Order'!H188=\"\",\"\",'1. Order'!H188)","v":""},{"$f":"IF('1. Order'!I188=\"\",\"\",'1. Order'!I188)","v":""},{"$f":"IF('1. Order'!J188=\"\",\"\",'1. Order'!J188)","v":""},{"$f":"IF('1. Order'!K188=\"\",\"\",'1. Order'!K188)","v":""},{"$f":"IF('1. Order'!L188=\"\",\"\",'1. Order'!L188)","v":""},{"$f":"IF('1. Order'!M188=\"\",\"\",'1. Order'!M188)","v":""},{"$f":"IF('1. Order'!N188=\"\",\"\",'1. Order'!N188)","v":""},{"$f":"IF('1. Order'!O188=\"\",\"\",'1. Order'!O188)","v":{"$error":"#N/A"}},{"$f":"IF('1. Order'!P188=\"\",\"\",'1. Order'!P188)","v":{"$error":"#N/A"}},{"$f":"IF('1. Order'!Q188=\"\",\"\",'1. Order'!Q188)","v":""},{"$f":"IF('1. Order'!R188=\"\",\"\",'1. Order'!R188)","v":""},{"$f":"IF('1. Order'!S188=\"\",\"\",'1. Order'!S188)","v":""},{"$f":"IF('1. Order'!V188=\"\",\"\",'1. Order'!V188)","v":""},{"$f":"IF('1. Order'!W188=\"\",\"\",'1. Order'!W188)","v":""},{"$f":"IF('1. Order'!X188=\"\",\"\",'1. Order'!X188)","v":"EUR"},{"$f":"IF('1. Order'!Y188=\"\",\"\",'1. Order'!Y188)","v":""},{"$f":"IF('1. Order'!Z188=\"\",\"\",'1. Order'!Z188)","v":""},{"$f":"IF('1. Order'!AA188=\"\",\"\",'1. Order'!AA188)","v":""},null,{"$f":"IF('1. Order'!AS188=\"\",\"\",'1. Order'!AS188)","v":""},{"$f":"IF('1. Order'!AT188=\"\",\"\",'1. Order'!AT188)","v":""},null,null,null,null,null,null,null,{"$f":"IF('1. Order'!AX188=\"\",\"\",'1. Order'!AX188)","v":""},{"$f":"IF('1. Order'!AY188=\"\",\"\",'1. Order'!AY188)","v":""},{"$f":"IF('1. Order'!AZ188=\"\",\"\",'1. Order'!AZ188)","v":""},{"$f":"IF('1. Order'!BA188=\"\",\"\",'1. Order'!BA188)","v":""},{"$f":"IF('1. Order'!BC188=\"\",\"\",'1. Order'!BC188)","v":""},{"$f":"IF('1. Order'!BD188=\"\",\"\",'1. Order'!BD188)","v":6},{"$f":"IF('1. Order'!BE188=\"\",\"\",'1. Order'!BE188)","v":"None"},{"$f":"IF('1. Order'!BF188=\"\",\"\",'1. Order'!BF188)","v":"Parcel"},{"$f":"IF('1. Order'!BG188=\"\",\"\",'1. Order'!BG188)","v":"ZWO"}]
[{"$f":"IF('1. Order'!F189=\"\",\"\",'1. Order'!F189)","v":""},{"$f":"IF('1. Order'!G189=\"\",\"\",'1. Order'!G189)","v":""},{"$f":"IF('1. Order'!H189=\"\",\"\",'1. Order'!H189)","v":""},{"$f":"IF('1. Order'!I189=\"\",\"\",'1. Order'!I189)","v":""},{"$f":"IF('1. Order'!J189=\"\",\"\",'1. Order'!J189)","v":""},{"$f":"IF('1. Order'!K189=\"\",\"\",'1. Order'!K189)","v":""},{"$f":"IF('1. Order'!L189=\"\",\"\",'1. Order'!L189)","v":""},{"$f":"IF('1. Order'!M189=\"\",\"\",'1. Order'!M189)","v":""},{"$f":"IF('1. Order'!N189=\"\",\"\",'1. Order'!N189)","v":""},{"$f":"IF('1. Order'!O189=\"\",\"\",'1. Order'!O189)","v":{"$error":"#N/A"}},{"$f":"IF('1. Order'!P189=\"\",\"\",'1. Order'!P189)","v":{"$error":"#N/A"}},{"$f":"IF('1. Order'!Q189=\"\",\"\",'1. Order'!Q189)","v":""},{"$f":"IF('1. Order'!R189=\"\",\"\",'1. Order'!R189)","v":""},{"$f":"IF('1. Order'!S189=\"\",\"\",'1. Order'!S189)","v":""},{"$f":"IF('1. Order'!V189=\"\",\"\",'1. Order'!V189)","v":""},{"$f":"IF('1. Order'!W189=\"\",\"\",'1. Order'!W189)","v":""},{"$f":"IF('1. Order'!X189=\"\",\"\",'1. Order'!X189)","v":"EUR"},{"$f":"IF('1. Order'!Y189=\"\",\"\",'1. Order'!Y189)","v":""},{"$f":"IF('1. Order'!Z189=\"\",\"\",'1. Order'!Z189)","v":""},{"$f":"IF('1. Order'!AA189=\"\",\"\",'1. Order'!AA189)","v":""},null,{"$f":"IF('1. Order'!AS189=\"\",\"\",'1. Order'!AS189)","v":""},{"$f":"IF('1. Order'!AT189=\"\",\"\",'1. Order'!AT189)","v":""},null,null,null,null,null,null,null,{"$f":"IF('1. Order'!AX189=\"\",\"\",'1. Order'!AX189)","v":""},{"$f":"IF('1. Order'!AY189=\"\",\"\",'1. Order'!AY189)","v":""},{"$f":"IF('1. Order'!AZ189=\"\",\"\",'1. Order'!AZ189)","v":""},{"$f":"IF('1. Order'!BA189=\"\",\"\",'1. Order'!BA189)","v":""},{"$f":"IF('1. Order'!BC189=\"\",\"\",'1. Order'!BC189)","v":""},{"$f":"IF('1. Order'!BD189=\"\",\"\",'1. Order'!BD189)","v":6},{"$f":"IF('1. Order'!BE189=\"\",\"\",'1. Order'!BE189)","v":"None"},{"$f":"IF('1. Order'!BF189=\"\",\"\",'1. Order'!BF189)","v":"Parcel"},{"$f":"IF('1. Order'!BG189=\"\",\"\",'1. Order'!BG189)","v":"ZWO"}]
[{"$f":"IF('1. Order'!F190=\"\",\"\",'1. Order'!F190)","v":""},{"$f":"IF('1. Order'!G190=\"\",\"\",'1. Order'!G190)","v":""},{"$f":"IF('1. Order'!H190=\"\",\"\",'1. Order'!H190)","v":""},{"$f":"IF('1. Order'!I190=\"\",\"\",'1. Order'!I190)","v":""},{"$f":"IF('1. Order'!J190=\"\",\"\",'1. Order'!J190)","v":""},{"$f":"IF('1. Order'!K190=\"\",\"\",'1. Order'!K190)","v":""},{"$f":"IF('1. Order'!L190=\"\",\"\",'1. Order'!L190)","v":""},{"$f":"IF('1. Order'!M190=\"\",\"\",'1. Order'!M190)","v":""},{"$f":"IF('1. Order'!N190=\"\",\"\",'1. Order'!N190)","v":""},{"$f":"IF('1. Order'!O190=\"\",\"\",'1. Order'!O190)","v":{"$error":"#N/A"}},{"$f":"IF('1. Order'!P190=\"\",\"\",'1. Order'!P190)","v":{"$error":"#N/A"}},{"$f":"IF('1. Order'!Q190=\"\",\"\",'1. Order'!Q190)","v":""},{"$f":"IF('1. Order'!R190=\"\",\"\",'1. Order'!R190)","v":""},{"$f":"IF('1. Order'!S190=\"\",\"\",'1. Order'!S190)","v":""},{"$f":"IF('1. Order'!V190=\"\",\"\",'1. Order'!V190)","v":""},{"$f":"IF('1. Order'!W190=\"\",\"\",'1. Order'!W190)","v":""},{"$f":"IF('1. Order'!X190=\"\",\"\",'1. Order'!X190)","v":"EUR"},{"$f":"IF('1. Order'!Y190=\"\",\"\",'1. Order'!Y190)","v":""},{"$f":"IF('1. Order'!Z190=\"\",\"\",'1. Order'!Z190)","v":""},{"$f":"IF('1. Order'!AA190=\"\",\"\",'1. Order'!AA190)","v":""},null,{"$f":"IF('1. Order'!AS190=\"\",\"\",'1. Order'!AS190)","v":""},{"$f":"IF('1. Order'!AT190=\"\",\"\",'1. Order'!AT190)","v":""},null,null,null,null,null,null,null,{"$f":"IF('1. Order'!AX190=\"\",\"\",'1. Order'!AX190)","v":""},{"$f":"IF('1. Order'!AY190=\"\",\"\",'1. Order'!AY190)","v":""},{"$f":"IF('1. Order'!AZ190=\"\",\"\",'1. Order'!AZ190)","v":""},{"$f":"IF('1. Order'!BA190=\"\",\"\",'1. Order'!BA190)","v":""},{"$f":"IF('1. Order'!BC190=\"\",\"\",'1. Order'!BC190)","v":""},{"$f":"IF('1. Order'!BD190=\"\",\"\",'1. Order'!BD190)","v":6},{"$f":"IF('1. Order'!BE190=\"\",\"\",'1. Order'!BE190)","v":"None"},{"$f":"IF('1. Order'!BF190=\"\",\"\",'1. Order'!BF190)","v":"Parcel"},{"$f":"IF('1. Order'!BG190=\"\",\"\",'1. Order'!BG190)","v":"ZWO"}]
[{"$f":"IF('1. Order'!F191=\"\",\"\",'1. Order'!F191)","v":""},{"$f":"IF('1. Order'!G191=\"\",\"\",'1. Order'!G191)","v":""},{"$f":"IF('1. Order'!H191=\"\",\"\",'1. Order'!H191)","v":""},{"$f":"IF('1. Order'!I191=\"\",\"\",'1. Order'!I191)","v":""},{"$f":"IF('1. Order'!J191=\"\",\"\",'1. Order'!J191)","v":""},{"$f":"IF('1. Order'!K191=\"\",\"\",'1. Order'!K191)","v":""},{"$f":"IF('1. Order'!L191=\"\",\"\",'1. Order'!L191)","v":""},{"$f":"IF('1. Order'!M191=\"\",\"\",'1. Order'!M191)","v":""},{"$f":"IF('1. Order'!N191=\"\",\"\",'1. Order'!N191)","v":""},{"$f":"IF('1. Order'!O191=\"\",\"\",'1. Order'!O191)","v":{"$error":"#N/A"}},{"$f":"IF('1. Order'!P191=\"\",\"\",'1. Order'!P191)","v":{"$error":"#N/A"}},{"$f":"IF('1. Order'!Q191=\"\",\"\",'1. Order'!Q191)","v":""},{"$f":"IF('1. Order'!R191=\"\",\"\",'1. Order'!R191)","v":""},{"$f":"IF('1. Order'!S191=\"\",\"\",'1. Order'!S191)","v":""},{"$f":"IF('1. Order'!V191=\"\",\"\",'1. Order'!V191)","v":""},{"$f":"IF('1. Order'!W191=\"\",\"\",'1. Order'!W191)","v":""},{"$f":"IF('1. Order'!X191=\"\",\"\",'1. Order'!X191)","v":"EUR"},{"$f":"IF('1. Order'!Y191=\"\",\"\",'1. Order'!Y191)","v":""},{"$f":"IF('1. Order'!Z191=\"\",\"\",'1. Order'!Z191)","v":""},{"$f":"IF('1. Order'!AA191=\"\",\"\",'1. Order'!AA191)","v":""},null,{"$f":"IF('1. Order'!AS191=\"\",\"\",'1. Order'!AS191)","v":""},{"$f":"IF('1. Order'!AT191=\"\",\"\",'1. Order'!AT191)","v":""},null,null,null,null,null,null,null,{"$f":"IF('1. Order'!AX191=\"\",\"\",'1. Order'!AX191)","v":""},{"$f":"IF('1. Order'!AY191=\"\",\"\",'1. Order'!AY191)","v":""},{"$f":"IF('1. Order'!AZ191=\"\",\"\",'1. Order'!AZ191)","v":""},{"$f":"IF('1. Order'!BA191=\"\",\"\",'1. Order'!BA191)","v":""},{"$f":"IF('1. Order'!BC191=\"\",\"\",'1. Order'!BC191)","v":""},{"$f":"IF('1. Order'!BD191=\"\",\"\",'1. Order'!BD191)","v":6},{"$f":"IF('1. Order'!BE191=\"\",\"\",'1. Order'!BE191)","v":"None"},{"$f":"IF('1. Order'!BF191=\"\",\"\",'1. Order'!BF191)","v":"Parcel"},{"$f":"IF('1. Order'!BG191=\"\",\"\",'1. Order'!BG191)","v":"ZWO"}]
[{"$f":"IF('1. Order'!F192=\"\",\"\",'1. Order'!F192)","v":""},{"$f":"IF('1. Order'!G192=\"\",\"\",'1. Order'!G192)","v":""},{"$f":"IF('1. Order'!H192=\"\",\"\",'1. Order'!H192)","v":""},{"$f":"IF('1. Order'!I192=\"\",\"\",'1. Order'!I192)","v":""},{"$f":"IF('1. Order'!J192=\"\",\"\",'1. Order'!J192)","v":""},{"$f":"IF('1. Order'!K192=\"\",\"\",'1. Order'!K192)","v":""},{"$f":"IF('1. Order'!L192=\"\",\"\",'1. Order'!L192)","v":""},{"$f":"IF('1. Order'!M192=\"\",\"\",'1. Order'!M192)","v":""},{"$f":"IF('1. Order'!N192=\"\",\"\",'1. Order'!N192)","v":""},{"$f":"IF('1. Order'!O192=\"\",\"\",'1. Order'!O192)","v":{"$error":"#N/A"}},{"$f":"IF('1. Order'!P192=\"\",\"\",'1. Order'!P192)","v":{"$error":"#N/A"}},{"$f":"IF('1. Order'!Q192=\"\",\"\",'1. Order'!Q192)","v":""},{"$f":"IF('1. Order'!R192=\"\",\"\",'1. Order'!R192)","v":""},{"$f":"IF('1. Order'!S192=\"\",\"\",'1. Order'!S192)","v":""},{"$f":"IF('1. Order'!V192=\"\",\"\",'1. Order'!V192)","v":""},{"$f":"IF('1. Order'!W192=\"\",\"\",'1. Order'!W192)","v":""},{"$f":"IF('1. Order'!X192=\"\",\"\",'1. Order'!X192)","v":"EUR"},{"$f":"IF('1. Order'!Y192=\"\",\"\",'1. Order'!Y192)","v":""},{"$f":"IF('1. Order'!Z192=\"\",\"\",'1. Order'!Z192)","v":""},{"$f":"IF('1. Order'!AA192=\"\",\"\",'1. Order'!AA192)","v":""},null,{"$f":"IF('1. Order'!AS192=\"\",\"\",'1. Order'!AS192)","v":""},{"$f":"IF('1. Order'!AT192=\"\",\"\",'1. Order'!AT192)","v":""},null,null,null,null,null,null,null,{"$f":"IF('1. Order'!AX192=\"\",\"\",'1. Order'!AX192)","v":""},{"$f":"IF('1. Order'!AY192=\"\",\"\",'1. Order'!AY192)","v":""},{"$f":"IF('1. Order'!AZ192=\"\",\"\",'1. Order'!AZ192)","v":""},{"$f":"IF('1. Order'!BA192=\"\",\"\",'1. Order'!BA192)","v":""},{"$f":"IF('1. Order'!BC192=\"\",\"\",'1. Order'!BC192)","v":""},{"$f":"IF('1. Order'!BD192=\"\",\"\",'1. Order'!BD192)","v":6},{"$f":"IF('1. Order'!BE192=\"\",\"\",'1. Order'!BE192)","v":"None"},{"$f":"IF('1. Order'!BF192=\"\",\"\",'1. Order'!BF192)","v":"Parcel"},{"$f":"IF('1. Order'!BG192=\"\",\"\",'1. Order'!BG192)","v":"ZWO"}]
[{"$f":"IF('1. Order'!F193=\"\",\"\",'1. Order'!F193)","v":""},{"$f":"IF('1. Order'!G193=\"\",\"\",'1. Order'!G193)","v":""},{"$f":"IF('1. Order'!H193=\"\",\"\",'1. Order'!H193)","v":""},{"$f":"IF('1. Order'!I193=\"\",\"\",'1. Order'!I193)","v":""},{"$f":"IF('1. Order'!J193=\"\",\"\",'1. Order'!J193)","v":""},{"$f":"IF('1. Order'!K193=\"\",\"\",'1. Order'!K193)","v":""},{"$f":"IF('1. Order'!L193=\"\",\"\",'1. Order'!L193)","v":""},{"$f":"IF('1. Order'!M193=\"\",\"\",'1. Order'!M193)","v":""},{"$f":"IF('1. Order'!N193=\"\",\"\",'1. Order'!N193)","v":""},{"$f":"IF('1. Order'!O193=\"\",\"\",'1. Order'!O193)","v":{"$error":"#N/A"}},{"$f":"IF('1. Order'!P193=\"\",\"\",'1. Order'!P193)","v":{"$error":"#N/A"}},{"$f":"IF('1. Order'!Q193=\"\",\"\",'1. Order'!Q193)","v":""},{"$f":"IF('1. Order'!R193=\"\",\"\",'1. Order'!R193)","v":""},{"$f":"IF('1. Order'!S193=\"\",\"\",'1. Order'!S193)","v":""},{"$f":"IF('1. Order'!V193=\"\",\"\",'1. Order'!V193)","v":""},{"$f":"IF('1. Order'!W193=\"\",\"\",'1. Order'!W193)","v":""},{"$f":"IF('1. Order'!X193=\"\",\"\",'1. Order'!X193)","v":"EUR"},{"$f":"IF('1. Order'!Y193=\"\",\"\",'1. Order'!Y193)","v":""},{"$f":"IF('1. Order'!Z193=\"\",\"\",'1. Order'!Z193)","v":""},{"$f":"IF('1. Order'!AA193=\"\",\"\",'1. Order'!AA193)","v":""},null,{"$f":"IF('1. Order'!AS193=\"\",\"\",'1. Order'!AS193)","v":""},{"$f":"IF('1. Order'!AT193=\"\",\"\",'1. Order'!AT193)","v":""},null,null,null,null,null,null,null,{"$f":"IF('1. Order'!AX193=\"\",\"\",'1. Order'!AX193)","v":""},{"$f":"IF('1. Order'!AY193=\"\",\"\",'1. Order'!AY193)","v":""},{"$f":"IF('1. Order'!AZ193=\"\",\"\",'1. Order'!AZ193)","v":""},{"$f":"IF('1. Order'!BA193=\"\",\"\",'1. Order'!BA193)","v":""},{"$f":"IF('1. Order'!BC193=\"\",\"\",'1. Order'!BC193)","v":""},{"$f":"IF('1. Order'!BD193=\"\",\"\",'1. Order'!BD193)","v":6},{"$f":"IF('1. Order'!BE193=\"\",\"\",'1. Order'!BE193)","v":"None"},{"$f":"IF('1. Order'!BF193=\"\",\"\",'1. Order'!BF193)","v":"Parcel"},{"$f":"IF('1. Order'!BG193=\"\",\"\",'1. Order'!BG193)","v":"ZWO"}]
[{"$f":"IF('1. Order'!F194=\"\",\"\",'1. Order'!F194)","v":""},{"$f":"IF('1. Order'!G194=\"\",\"\",'1. Order'!G194)","v":""},{"$f":"IF('1. Order'!H194=\"\",\"\",'1. Order'!H194)","v":""},{"$f":"IF('1. Order'!I194=\"\",\"\",'1. Order'!I194)","v":""},{"$f":"IF('1. Order'!J194=\"\",\"\",'1. Order'!J194)","v":""},{"$f":"IF('1. Order'!K194=\"\",\"\",'1. Order'!K194)","v":""},{"$f":"IF('1. Order'!L194=\"\",\"\",'1. Order'!L194)","v":""},{"$f":"IF('1. Order'!M194=\"\",\"\",'1. Order'!M194)","v":""},{"$f":"IF('1. Order'!N194=\"\",\"\",'1. Order'!N194)","v":""},{"$f":"IF('1. Order'!O194=\"\",\"\",'1. Order'!O194)","v":{"$error":"#N/A"}},{"$f":"IF('1. Order'!P194=\"\",\"\",'1. Order'!P194)","v":{"$error":"#N/A"}},{"$f":"IF('1. Order'!Q194=\"\",\"\",'1. Order'!Q194)","v":""},{"$f":"IF('1. Order'!R194=\"\",\"\",'1. Order'!R194)","v":""},{"$f":"IF('1. Order'!S194=\"\",\"\",'1. Order'!S194)","v":""},{"$f":"IF('1. Order'!V194=\"\",\"\",'1. Order'!V194)","v":""},{"$f":"IF('1. Order'!W194=\"\",\"\",'1. Order'!W194)","v":""},{"$f":"IF('1. Order'!X194=\"\",\"\",'1. Order'!X194)","v":"EUR"},{"$f":"IF('1. Order'!Y194=\"\",\"\",'1. Order'!Y194)","v":""},{"$f":"IF('1. Order'!Z194=\"\",\"\",'1. Order'!Z194)","v":""},{"$f":"IF('1. Order'!AA194=\"\",\"\",'1. Order'!AA194)","v":""},null,{"$f":"IF('1. Order'!AS194=\"\",\"\",'1. Order'!AS194)","v":""},{"$f":"IF('1. Order'!AT194=\"\",\"\",'1. Order'!AT194)","v":""},null,null,null,null,null,null,null,{"$f":"IF('1. Order'!AX194=\"\",\"\",'1. Order'!AX194)","v":""},{"$f":"IF('1. Order'!AY194=\"\",\"\",'1. Order'!AY194)","v":""},{"$f":"IF('1. Order'!AZ194=\"\",\"\",'1. Order'!AZ194)","v":""},{"$f":"IF('1. Order'!BA194=\"\",\"\",'1. Order'!BA194)","v":""},{"$f":"IF('1. Order'!BC194=\"\",\"\",'1. Order'!BC194)","v":""},{"$f":"IF('1. Order'!BD194=\"\",\"\",'1. Order'!BD194)","v":6},{"$f":"IF('1. Order'!BE194=\"\",\"\",'1. Order'!BE194)","v":"None"},{"$f":"IF('1. Order'!BF194=\"\",\"\",'1. Order'!BF194)","v":"Parcel"},{"$f":"IF('1. Order'!BG194=\"\",\"\",'1. Order'!BG194)","v":"ZWO"}]
[{"$f":"IF('1. Order'!F195=\"\",\"\",'1. Order'!F195)","v":""},{"$f":"IF('1. Order'!G195=\"\",\"\",'1. Order'!G195)","v":""},{"$f":"IF('1. Order'!H195=\"\",\"\",'1. Order'!H195)","v":""},{"$f":"IF('1. Order'!I195=\"\",\"\",'1. Order'!I195)","v":""},{"$f":"IF('1. Order'!J195=\"\",\"\",'1. Order'!J195)","v":""},{"$f":"IF('1. Order'!K195=\"\",\"\",'1. Order'!K195)","v":""},{"$f":"IF('1. Order'!L195=\"\",\"\",'1. Order'!L195)","v":""},{"$f":"IF('1. Order'!M195=\"\",\"\",'1. Order'!M195)","v":""},{"$f":"IF('1. Order'!N195=\"\",\"\",'1. Order'!N195)","v":""},{"$f":"IF('1. Order'!O195=\"\",\"\",'1. Order'!O195)","v":{"$error":"#N/A"}},{"$f":"IF('1. Order'!P195=\"\",\"\",'1. Order'!P195)","v":{"$error":"#N/A"}},{"$f":"IF('1. Order'!Q195=\"\",\"\",'1. Order'!Q195)","v":""},{"$f":"IF('1. Order'!R195=\"\",\"\",'1. Order'!R195)","v":""},{"$f":"IF('1. Order'!S195=\"\",\"\",'1. Order'!S195)","v":""},{"$f":"IF('1. Order'!V195=\"\",\"\",'1. Order'!V195)","v":""},{"$f":"IF('1. Order'!W195=\"\",\"\",'1. Order'!W195)","v":""},{"$f":"IF('1. Order'!X195=\"\",\"\",'1. Order'!X195)","v":"EUR"},{"$f":"IF('1. Order'!Y195=\"\",\"\",'1. Order'!Y195)","v":""},{"$f":"IF('1. Order'!Z195=\"\",\"\",'1. Order'!Z195)","v":""},{"$f":"IF('1. Order'!AA195=\"\",\"\",'1. Order'!AA195)","v":""},null,{"$f":"IF('1. Order'!AS195=\"\",\"\",'1. Order'!AS195)","v":""},{"$f":"IF('1. Order'!AT195=\"\",\"\",'1. Order'!AT195)","v":""},null,null,null,null,null,null,null,{"$f":"IF('1. Order'!AX195=\"\",\"\",'1. Order'!AX195)","v":""},{"$f":"IF('1. Order'!AY195=\"\",\"\",'1. Order'!AY195)","v":""},{"$f":"IF('1. Order'!AZ195=\"\",\"\",'1. Order'!AZ195)","v":""},{"$f":"IF('1. Order'!BA195=\"\",\"\",'1. Order'!BA195)","v":""},{"$f":"IF('1. Order'!BC195=\"\",\"\",'1. Order'!BC195)","v":""},{"$f":"IF('1. Order'!BD195=\"\",\"\",'1. Order'!BD195)","v":6},{"$f":"IF('1. Order'!BE195=\"\",\"\",'1. Order'!BE195)","v":"None"},{"$f":"IF('1. Order'!BF195=\"\",\"\",'1. Order'!BF195)","v":"Parcel"},{"$f":"IF('1. Order'!BG195=\"\",\"\",'1. Order'!BG195)","v":"ZWO"}]
[{"$f":"IF('1. Order'!F196=\"\",\"\",'1. Order'!F196)","v":""},{"$f":"IF('1. Order'!G196=\"\",\"\",'1. Order'!G196)","v":""},{"$f":"IF('1. Order'!H196=\"\",\"\",'1. Order'!H196)","v":""},{"$f":"IF('1. Order'!I196=\"\",\"\",'1. Order'!I196)","v":""},{"$f":"IF('1. Order'!J196=\"\",\"\",'1. Order'!J196)","v":""},{"$f":"IF('1. Order'!K196=\"\",\"\",'1. Order'!K196)","v":""},{"$f":"IF('1. Order'!L196=\"\",\"\",'1. Order'!L196)","v":""},{"$f":"IF('1. Order'!M196=\"\",\"\",'1. Order'!M196)","v":""},{"$f":"IF('1. Order'!N196=\"\",\"\",'1. Order'!N196)","v":""},{"$f":"IF('1. Order'!O196=\"\",\"\",'1. Order'!O196)","v":{"$error":"#N/A"}},{"$f":"IF('1. Order'!P196=\"\",\"\",'1. Order'!P196)","v":{"$error":"#N/A"}},{"$f":"IF('1. Order'!Q196=\"\",\"\",'1. Order'!Q196)","v":""},{"$f":"IF('1. Order'!R196=\"\",\"\",'1. Order'!R196)","v":""},{"$f":"IF('1. Order'!S196=\"\",\"\",'1. Order'!S196)","v":""},{"$f":"IF('1. Order'!V196=\"\",\"\",'1. Order'!V196)","v":""},{"$f":"IF('1. Order'!W196=\"\",\"\",'1. Order'!W196)","v":""},{"$f":"IF('1. Order'!X196=\"\",\"\",'1. Order'!X196)","v":"EUR"},{"$f":"IF('1. Order'!Y196=\"\",\"\",'1. Order'!Y196)","v":""},{"$f":"IF('1. Order'!Z196=\"\",\"\",'1. Order'!Z196)","v":""},{"$f":"IF('1. Order'!AA196=\"\",\"\",'1. Order'!AA196)","v":""},null,{"$f":"IF('1. Order'!AS196=\"\",\"\",'1. Order'!AS196)","v":""},{"$f":"IF('1. Order'!AT196=\"\",\"\",'1. Order'!AT196)","v":""},null,null,null,null,null,null,null,{"$f":"IF('1. Order'!AX196=\"\",\"\",'1. Order'!AX196)","v":""},{"$f":"IF('1. Order'!AY196=\"\",\"\",'1. Order'!AY196)","v":""},{"$f":"IF('1. Order'!AZ196=\"\",\"\",'1. Order'!AZ196)","v":""},{"$f":"IF('1. Order'!BA196=\"\",\"\",'1. Order'!BA196)","v":""},{"$f":"IF('1. Order'!BC196=\"\",\"\",'1. Order'!BC196)","v":""},{"$f":"IF('1. Order'!BD196=\"\",\"\",'1. Order'!BD196)","v":6},{"$f":"IF('1. Order'!BE196=\"\",\"\",'1. Order'!BE196)","v":"None"},{"$f":"IF('1. Order'!BF196=\"\",\"\",'1. Order'!BF196)","v":"Parcel"},{"$f":"IF('1. Order'!BG196=\"\",\"\",'1. Order'!BG196)","v":"ZWO"}]
[{"$f":"IF('1. Order'!F197=\"\",\"\",'1. Order'!F197)","v":""},{"$f":"IF('1. Order'!G197=\"\",\"\",'1. Order'!G197)","v":""},{"$f":"IF('1. Order'!H197=\"\",\"\",'1. Order'!H197)","v":""},{"$f":"IF('1. Order'!I197=\"\",\"\",'1. Order'!I197)","v":""},{"$f":"IF('1. Order'!J197=\"\",\"\",'1. Order'!J197)","v":""},{"$f":"IF('1. Order'!K197=\"\",\"\",'1. Order'!K197)","v":""},{"$f":"IF('1. Order'!L197=\"\",\"\",'1. Order'!L197)","v":""},{"$f":"IF('1. Order'!M197=\"\",\"\",'1. Order'!M197)","v":""},{"$f":"IF('1. Order'!N197=\"\",\"\",'1. Order'!N197)","v":""},{"$f":"IF('1. Order'!O197=\"\",\"\",'1. Order'!O197)","v":{"$error":"#N/A"}},{"$f":"IF('1. Order'!P197=\"\",\"\",'1. Order'!P197)","v":{"$error":"#N/A"}},{"$f":"IF('1. Order'!Q197=\"\",\"\",'1. Order'!Q197)","v":""},{"$f":"IF('1. Order'!R197=\"\",\"\",'1. Order'!R197)","v":""},{"$f":"IF('1. Order'!S197=\"\",\"\",'1. Order'!S197)","v":""},{"$f":"IF('1. Order'!V197=\"\",\"\",'1. Order'!V197)","v":""},{"$f":"IF('1. Order'!W197=\"\",\"\",'1. Order'!W197)","v":""},{"$f":"IF('1. Order'!X197=\"\",\"\",'1. Order'!X197)","v":"EUR"},{"$f":"IF('1. Order'!Y197=\"\",\"\",'1. Order'!Y197)","v":""},{"$f":"IF('1. Order'!Z197=\"\",\"\",'1. Order'!Z197)","v":""},{"$f":"IF('1. Order'!AA197=\"\",\"\",'1. Order'!AA197)","v":""},null,{"$f":"IF('1. Order'!AS197=\"\",\"\",'1. Order'!AS197)","v":""},{"$f":"IF('1. Order'!AT197=\"\",\"\",'1. Order'!AT197)","v":""},null,null,null,null,null,null,null,{"$f":"IF('1. Order'!AX197=\"\",\"\",'1. Order'!AX197)","v":""},{"$f":"IF('1. Order'!AY197=\"\",\"\",'1. Order'!AY197)","v":""},{"$f":"IF('1. Order'!AZ197=\"\",\"\",'1. Order'!AZ197)","v":""},{"$f":"IF('1. Order'!BA197=\"\",\"\",'1. Order'!BA197)","v":""},{"$f":"IF('1. Order'!BC197=\"\",\"\",'1. Order'!BC197)","v":""},{"$f":"IF('1. Order'!BD197=\"\",\"\",'1. Order'!BD197)","v":6},{"$f":"IF('1. Order'!BE197=\"\",\"\",'1. Order'!BE197)","v":"None"},{"$f":"IF('1. Order'!BF197=\"\",\"\",'1. Order'!BF197)","v":"Parcel"},{"$f":"IF('1. Order'!BG197=\"\",\"\",'1. Order'!BG197)","v":"ZWO"}]
[{"$f":"IF('1. Order'!F198=\"\",\"\",'1. Order'!F198)","v":""},{"$f":"IF('1. Order'!G198=\"\",\"\",'1. Order'!G198)","v":""},{"$f":"IF('1. Order'!H198=\"\",\"\",'1. Order'!H198)","v":""},{"$f":"IF('1. Order'!I198=\"\",\"\",'1. Order'!I198)","v":""},{"$f":"IF('1. Order'!J198=\"\",\"\",'1. Order'!J198)","v":""},{"$f":"IF('1. Order'!K198=\"\",\"\",'1. Order'!K198)","v":""},{"$f":"IF('1. Order'!L198=\"\",\"\",'1. Order'!L198)","v":""},{"$f":"IF('1. Order'!M198=\"\",\"\",'1. Order'!M198)","v":""},{"$f":"IF('1. Order'!N198=\"\",\"\",'1. Order'!N198)","v":""},{"$f":"IF('1. Order'!O198=\"\",\"\",'1. Order'!O198)","v":{"$error":"#N/A"}},{"$f":"IF('1. Order'!P198=\"\",\"\",'1. Order'!P198)","v":{"$error":"#N/A"}},{"$f":"IF('1. Order'!Q198=\"\",\"\",'1. Order'!Q198)","v":""},{"$f":"IF('1. Order'!R198=\"\",\"\",'1. Order'!R198)","v":""},{"$f":"IF('1. Order'!S198=\"\",\"\",'1. Order'!S198)","v":""},{"$f":"IF('1. Order'!V198=\"\",\"\",'1. Order'!V198)","v":""},{"$f":"IF('1. Order'!W198=\"\",\"\",'1. Order'!W198)","v":""},{"$f":"IF('1. Order'!X198=\"\",\"\",'1. Order'!X198)","v":"EUR"},{"$f":"IF('1. Order'!Y198=\"\",\"\",'1. Order'!Y198)","v":""},{"$f":"IF('1. Order'!Z198=\"\",\"\",'1. Order'!Z198)","v":""},{"$f":"IF('1. Order'!AA198=\"\",\"\",'1. Order'!AA198)","v":""},null,{"$f":"IF('1. Order'!AS198=\"\",\"\",'1. Order'!AS198)","v":""},{"$f":"IF('1. Order'!AT198=\"\",\"\",'1. Order'!AT198)","v":""},null,null,null,null,null,null,null,{"$f":"IF('1. Order'!AX198=\"\",\"\",'1. Order'!AX198)","v":""},{"$f":"IF('1. Order'!AY198=\"\",\"\",'1. Order'!AY198)","v":""},{"$f":"IF('1. Order'!AZ198=\"\",\"\",'1. Order'!AZ198)","v":""},{"$f":"IF('1. Order'!BA198=\"\",\"\",'1. Order'!BA198)","v":""},{"$f":"IF('1. Order'!BC198=\"\",\"\",'1. Order'!BC198)","v":""},{"$f":"IF('1. Order'!BD198=\"\",\"\",'1. Order'!BD198)","v":6},{"$f":"IF('1. Order'!BE198=\"\",\"\",'1. Order'!BE198)","v":"None"},{"$f":"IF('1. Order'!BF198=\"\",\"\",'1. Order'!BF198)","v":"Parcel"},{"$f":"IF('1. Order'!BG198=\"\",\"\",'1. Order'!BG198)","v":"ZWO"}]
[{"$f":"IF('1. Order'!F199=\"\",\"\",'1. Order'!F199)","v":""},{"$f":"IF('1. Order'!G199=\"\",\"\",'1. Order'!G199)","v":""},{"$f":"IF('1. Order'!H199=\"\",\"\",'1. Order'!H199)","v":""},{"$f":"IF('1. Order'!I199=\"\",\"\",'1. Order'!I199)","v":""},{"$f":"IF('1. Order'!J199=\"\",\"\",'1. Order'!J199)","v":""},{"$f":"IF('1. Order'!K199=\"\",\"\",'1. Order'!K199)","v":""},{"$f":"IF('1. Order'!L199=\"\",\"\",'1. Order'!L199)","v":""},{"$f":"IF('1. Order'!M199=\"\",\"\",'1. Order'!M199)","v":""},{"$f":"IF('1. Order'!N199=\"\",\"\",'1. Order'!N199)","v":""},{"$f":"IF('1. Order'!O199=\"\",\"\",'1. Order'!O199)","v":{"$error":"#N/A"}},{"$f":"IF('1. Order'!P199=\"\",\"\",'1. Order'!P199)","v":{"$error":"#N/A"}},{"$f":"IF('1. Order'!Q199=\"\",\"\",'1. Order'!Q199)","v":""},{"$f":"IF('1. Order'!R199=\"\",\"\",'1. Order'!R199)","v":""},{"$f":"IF('1. Order'!S199=\"\",\"\",'1. Order'!S199)","v":""},{"$f":"IF('1. Order'!V199=\"\",\"\",'1. Order'!V199)","v":""},{"$f":"IF('1. Order'!W199=\"\",\"\",'1. Order'!W199)","v":""},{"$f":"IF('1. Order'!X199=\"\",\"\",'1. Order'!X199)","v":"EUR"},{"$f":"IF('1. Order'!Y199=\"\",\"\",'1. Order'!Y199)","v":""},{"$f":"IF('1. Order'!Z199=\"\",\"\",'1. Order'!Z199)","v":""},{"$f":"IF('1. Order'!AA199=\"\",\"\",'1. Order'!AA199)","v":""},null,{"$f":"IF('1. Order'!AS199=\"\",\"\",'1. Order'!AS199)","v":""},{"$f":"IF('1. Order'!AT199=\"\",\"\",'1. Order'!AT199)","v":""},null,null,null,null,null,null,null,{"$f":"IF('1. Order'!AX199=\"\",\"\",'1. Order'!AX199)","v":""},{"$f":"IF('1. Order'!AY199=\"\",\"\",'1. Order'!AY199)","v":""},{"$f":"IF('1. Order'!AZ199=\"\",\"\",'1. Order'!AZ199)","v":""},{"$f":"IF('1. Order'!BA199=\"\",\"\",'1. Order'!BA199)","v":""},{"$f":"IF('1. Order'!BC199=\"\",\"\",'1. Order'!BC199)","v":""},{"$f":"IF('1. Order'!BD199=\"\",\"\",'1. Order'!BD199)","v":6},{"$f":"IF('1. Order'!BE199=\"\",\"\",'1. Order'!BE199)","v":"None"},{"$f":"IF('1. Order'!BF199=\"\",\"\",'1. Order'!BF199)","v":"Parcel"},{"$f":"IF('1. Order'!BG199=\"\",\"\",'1. Order'!BG199)","v":"ZWO"}]
[{"$f":"IF('1. Order'!F200=\"\",\"\",'1. Order'!F200)","v":""},{"$f":"IF('1. Order'!G200=\"\",\"\",'1. Order'!G200)","v":""},{"$f":"IF('1. Order'!H200=\"\",\"\",'1. Order'!H200)","v":""},{"$f":"IF('1. Order'!I200=\"\",\"\",'1. Order'!I200)","v":""},{"$f":"IF('1. Order'!J200=\"\",\"\",'1. Order'!J200)","v":""},{"$f":"IF('1. Order'!K200=\"\",\"\",'1. Order'!K200)","v":""},{"$f":"IF('1. Order'!L200=\"\",\"\",'1. Order'!L200)","v":""},{"$f":"IF('1. Order'!M200=\"\",\"\",'1. Order'!M200)","v":""},{"$f":"IF('1. Order'!N200=\"\",\"\",'1. Order'!N200)","v":""},{"$f":"IF('1. Order'!O200=\"\",\"\",'1. Order'!O200)","v":{"$error":"#N/A"}},{"$f":"IF('1. Order'!P200=\"\",\"\",'1. Order'!P200)","v":{"$error":"#N/A"}},{"$f":"IF('1. Order'!Q200=\"\",\"\",'1. Order'!Q200)","v":""},{"$f":"IF('1. Order'!R200=\"\",\"\",'1. Order'!R200)","v":""},{"$f":"IF('1. Order'!S200=\"\",\"\",'1. Order'!S200)","v":""},{"$f":"IF('1. Order'!V200=\"\",\"\",'1. Order'!V200)","v":""},{"$f":"IF('1. Order'!W200=\"\",\"\",'1. Order'!W200)","v":""},{"$f":"IF('1. Order'!X200=\"\",\"\",'1. Order'!X200)","v":"EUR"},{"$f":"IF('1. Order'!Y200=\"\",\"\",'1. Order'!Y200)","v":""},{"$f":"IF('1. Order'!Z200=\"\",\"\",'1. Order'!Z200)","v":""},{"$f":"IF('1. Order'!AA200=\"\",\"\",'1. Order'!AA200)","v":""},null,{"$f":"IF('1. Order'!AS200=\"\",\"\",'1. Order'!AS200)","v":""},{"$f":"IF('1. Order'!AT200=\"\",\"\",'1. Order'!AT200)","v":""},null,null,null,null,null,null,null,{"$f":"IF('1. Order'!AX200=\"\",\"\",'1. Order'!AX200)","v":""},{"$f":"IF('1. Order'!AY200=\"\",\"\",'1. Order'!AY200)","v":""},{"$f":"IF('1. Order'!AZ200=\"\",\"\",'1. Order'!AZ200)","v":""},{"$f":"IF('1. Order'!BA200=\"\",\"\",'1. Order'!BA200)","v":""},{"$f":"IF('1. Order'!BC200=\"\",\"\",'1. Order'!BC200)","v":""},{"$f":"IF('1. Order'!BD200=\"\",\"\",'1. Order'!BD200)","v":6},{"$f":"IF('1. Order'!BE200=\"\",\"\",'1. Order'!BE200)","v":"None"},{"$f":"IF('1. Order'!BF200=\"\",\"\",'1. Order'!BF200)","v":"Parcel"},{"$f":"IF('1. Order'!BG200=\"\",\"\",'1. Order'!BG200)","v":"ZWO"}]
[{"$f":"IF('1. Order'!F201=\"\",\"\",'1. Order'!F201)","v":""},{"$f":"IF('1. Order'!G201=\"\",\"\",'1. Order'!G201)","v":""},{"$f":"IF('1. Order'!H201=\"\",\"\",'1. Order'!H201)","v":""},{"$f":"IF('1. Order'!I201=\"\",\"\",'1. Order'!I201)","v":""},{"$f":"IF('1. Order'!J201=\"\",\"\",'1. Order'!J201)","v":""},{"$f":"IF('1. Order'!K201=\"\",\"\",'1. Order'!K201)","v":""},{"$f":"IF('1. Order'!L201=\"\",\"\",'1. Order'!L201)","v":""},{"$f":"IF('1. Order'!M201=\"\",\"\",'1. Order'!M201)","v":""},{"$f":"IF('1. Order'!N201=\"\",\"\",'1. Order'!N201)","v":""},{"$f":"IF('1. Order'!O201=\"\",\"\",'1. Order'!O201)","v":{"$error":"#N/A"}},{"$f":"IF('1. Order'!P201=\"\",\"\",'1. Order'!P201)","v":{"$error":"#N/A"}},{"$f":"IF('1. Order'!Q201=\"\",\"\",'1. Order'!Q201)","v":""},{"$f":"IF('1. Order'!R201=\"\",\"\",'1. Order'!R201)","v":""},{"$f":"IF('1. Order'!S201=\"\",\"\",'1. Order'!S201)","v":""},{"$f":"IF('1. Order'!V201=\"\",\"\",'1. Order'!V201)","v":""},{"$f":"IF('1. Order'!W201=\"\",\"\",'1. Order'!W201)","v":""},{"$f":"IF('1. Order'!X201=\"\",\"\",'1. Order'!X201)","v":"EUR"},{"$f":"IF('1. Order'!Y201=\"\",\"\",'1. Order'!Y201)","v":""},{"$f":"IF('1. Order'!Z201=\"\",\"\",'1. Order'!Z201)","v":""},{"$f":"IF('1. Order'!AA201=\"\",\"\",'1. Order'!AA201)","v":""},null,{"$f":"IF('1. Order'!AS201=\"\",\"\",'1. Order'!AS201)","v":""},{"$f":"IF('1. Order'!AT201=\"\",\"\",'1. Order'!AT201)","v":""},null,null,null,null,null,null,null,{"$f":"IF('1. Order'!AX201=\"\",\"\",'1. Order'!AX201)","v":""},{"$f":"IF('1. Order'!AY201=\"\",\"\",'1. Order'!AY201)","v":""},{"$f":"IF('1. Order'!AZ201=\"\",\"\",'1. Order'!AZ201)","v":""},{"$f":"IF('1. Order'!BA201=\"\",\"\",'1. Order'!BA201)","v":""},{"$f":"IF('1. Order'!BC201=\"\",\"\",'1. Order'!BC201)","v":""},{"$f":"IF('1. Order'!BD201=\"\",\"\",'1. Order'!BD201)","v":6},{"$f":"IF('1. Order'!BE201=\"\",\"\",'1. Order'!BE201)","v":"None"},{"$f":"IF('1. Order'!BF201=\"\",\"\",'1. Order'!BF201)","v":"Parcel"},{"$f":"IF('1. Order'!BG201=\"\",\"\",'1. Order'!BG201)","v":"ZWO"}]
[{"$f":"IF('1. Order'!F202=\"\",\"\",'1. Order'!F202)","v":""},{"$f":"IF('1. Order'!G202=\"\",\"\",'1. Order'!G202)","v":""},{"$f":"IF('1. Order'!H202=\"\",\"\",'1. Order'!H202)","v":""},{"$f":"IF('1. Order'!I202=\"\",\"\",'1. Order'!I202)","v":""},{"$f":"IF('1. Order'!J202=\"\",\"\",'1. Order'!J202)","v":""},{"$f":"IF('1. Order'!K202=\"\",\"\",'1. Order'!K202)","v":""},{"$f":"IF('1. Order'!L202=\"\",\"\",'1. Order'!L202)","v":""},{"$f":"IF('1. Order'!M202=\"\",\"\",'1. Order'!M202)","v":""},{"$f":"IF('1. Order'!N202=\"\",\"\",'1. Order'!N202)","v":""},{"$f":"IF('1. Order'!O202=\"\",\"\",'1. Order'!O202)","v":{"$error":"#N/A"}},{"$f":"IF('1. Order'!P202=\"\",\"\",'1. Order'!P202)","v":{"$error":"#N/A"}},{"$f":"IF('1. Order'!Q202=\"\",\"\",'1. Order'!Q202)","v":""},{"$f":"IF('1. Order'!R202=\"\",\"\",'1. Order'!R202)","v":""},{"$f":"IF('1. Order'!S202=\"\",\"\",'1. Order'!S202)","v":""},{"$f":"IF('1. Order'!V202=\"\",\"\",'1. Order'!V202)","v":""},{"$f":"IF('1. Order'!W202=\"\",\"\",'1. Order'!W202)","v":""},{"$f":"IF('1. Order'!X202=\"\",\"\",'1. Order'!X202)","v":"EUR"},{"$f":"IF('1. Order'!Y202=\"\",\"\",'1. Order'!Y202)","v":""},{"$f":"IF('1. Order'!Z202=\"\",\"\",'1. Order'!Z202)","v":""},{"$f":"IF('1. Order'!AA202=\"\",\"\",'1. Order'!AA202)","v":""},null,{"$f":"IF('1. Order'!AS202=\"\",\"\",'1. Order'!AS202)","v":""},{"$f":"IF('1. Order'!AT202=\"\",\"\",'1. Order'!AT202)","v":""},null,null,null,null,null,null,null,{"$f":"IF('1. Order'!AX202=\"\",\"\",'1. Order'!AX202)","v":""},{"$f":"IF('1. Order'!AY202=\"\",\"\",'1. Order'!AY202)","v":""},{"$f":"IF('1. Order'!AZ202=\"\",\"\",'1. Order'!AZ202)","v":""},{"$f":"IF('1. Order'!BA202=\"\",\"\",'1. Order'!BA202)","v":""},{"$f":"IF('1. Order'!BC202=\"\",\"\",'1. Order'!BC202)","v":""},{"$f":"IF('1. Order'!BD202=\"\",\"\",'1. Order'!BD202)","v":6},{"$f":"IF('1. Order'!BE202=\"\",\"\",'1. Order'!BE202)","v":"None"},{"$f":"IF('1. Order'!BF202=\"\",\"\",'1. Order'!BF202)","v":"Parcel"},{"$f":"IF('1. Order'!BG202=\"\",\"\",'1. Order'!BG202)","v":"ZWO"}]
[{"$f":"IF('1. Order'!F203=\"\",\"\",'1. Order'!F203)","v":""},{"$f":"IF('1. Order'!G203=\"\",\"\",'1. Order'!G203)","v":""},{"$f":"IF('1. Order'!H203=\"\",\"\",'1. Order'!H203)","v":""},{"$f":"IF('1. Order'!I203=\"\",\"\",'1. Order'!I203)","v":""},{"$f":"IF('1. Order'!J203=\"\",\"\",'1. Order'!J203)","v":""},{"$f":"IF('1. Order'!K203=\"\",\"\",'1. Order'!K203)","v":""},{"$f":"IF('1. Order'!L203=\"\",\"\",'1. Order'!L203)","v":""},{"$f":"IF('1. Order'!M203=\"\",\"\",'1. Order'!M203)","v":""},{"$f":"IF('1. Order'!N203=\"\",\"\",'1. Order'!N203)","v":""},{"$f":"IF('1. Order'!O203=\"\",\"\",'1. Order'!O203)","v":{"$error":"#N/A"}},{"$f":"IF('1. Order'!P203=\"\",\"\",'1. Order'!P203)","v":{"$error":"#N/A"}},{"$f":"IF('1. Order'!Q203=\"\",\"\",'1. Order'!Q203)","v":""},{"$f":"IF('1. Order'!R203=\"\",\"\",'1. Order'!R203)","v":""},{"$f":"IF('1. Order'!S203=\"\",\"\",'1. Order'!S203)","v":""},{"$f":"IF('1. Order'!V203=\"\",\"\",'1. Order'!V203)","v":""},{"$f":"IF('1. Order'!W203=\"\",\"\",'1. Order'!W203)","v":""},{"$f":"IF('1. Order'!X203=\"\",\"\",'1. Order'!X203)","v":"EUR"},{"$f":"IF('1. Order'!Y203=\"\",\"\",'1. Order'!Y203)","v":""},{"$f":"IF('1. Order'!Z203=\"\",\"\",'1. Order'!Z203)","v":""},{"$f":"IF('1. Order'!AA203=\"\",\"\",'1. Order'!AA203)","v":""},null,{"$f":"IF('1. Order'!AS203=\"\",\"\",'1. Order'!AS203)","v":""},{"$f":"IF('1. Order'!AT203=\"\",\"\",'1. Order'!AT203)","v":""},null,null,null,null,null,null,null,{"$f":"IF('1. Order'!AX203=\"\",\"\",'1. Order'!AX203)","v":""},{"$f":"IF('1. Order'!AY203=\"\",\"\",'1. Order'!AY203)","v":""},{"$f":"IF('1. Order'!AZ203=\"\",\"\",'1. Order'!AZ203)","v":""},{"$f":"IF('1. Order'!BA203=\"\",\"\",'1. Order'!BA203)","v":""},{"$f":"IF('1. Order'!BC203=\"\",\"\",'1. Order'!BC203)","v":""},{"$f":"IF('1. Order'!BD203=\"\",\"\",'1. Order'!BD203)","v":6},{"$f":"IF('1. Order'!BE203=\"\",\"\",'1. Order'!BE203)","v":"None"},{"$f":"IF('1. Order'!BF203=\"\",\"\",'1. Order'!BF203)","v":"Parcel"},{"$f":"IF('1. Order'!BG203=\"\",\"\",'1. Order'!BG203)","v":"ZWO"}]
[{"$f":"IF('1. Order'!F204=\"\",\"\",'1. Order'!F204)","v":""},{"$f":"IF('1. Order'!G204=\"\",\"\",'1. Order'!G204)","v":""},{"$f":"IF('1. Order'!H204=\"\",\"\",'1. Order'!H204)","v":""},{"$f":"IF('1. Order'!I204=\"\",\"\",'1. Order'!I204)","v":""},{"$f":"IF('1. Order'!J204=\"\",\"\",'1. Order'!J204)","v":""},{"$f":"IF('1. Order'!K204=\"\",\"\",'1. Order'!K204)","v":""},{"$f":"IF('1. Order'!L204=\"\",\"\",'1. Order'!L204)","v":""},{"$f":"IF('1. Order'!M204=\"\",\"\",'1. Order'!M204)","v":""},{"$f":"IF('1. Order'!N204=\"\",\"\",'1. Order'!N204)","v":""},{"$f":"IF('1. Order'!O204=\"\",\"\",'1. Order'!O204)","v":{"$error":"#N/A"}},{"$f":"IF('1. Order'!P204=\"\",\"\",'1. Order'!P204)","v":{"$error":"#N/A"}},{"$f":"IF('1. Order'!Q204=\"\",\"\",'1. Order'!Q204)","v":""},{"$f":"IF('1. Order'!R204=\"\",\"\",'1. Order'!R204)","v":""},{"$f":"IF('1. Order'!S204=\"\",\"\",'1. Order'!S204)","v":""},{"$f":"IF('1. Order'!V204=\"\",\"\",'1. Order'!V204)","v":""},{"$f":"IF('1. Order'!W204=\"\",\"\",'1. Order'!W204)","v":""},{"$f":"IF('1. Order'!X204=\"\",\"\",'1. Order'!X204)","v":"EUR"},{"$f":"IF('1. Order'!Y204=\"\",\"\",'1. Order'!Y204)","v":""},{"$f":"IF('1. Order'!Z204=\"\",\"\",'1. Order'!Z204)","v":""},{"$f":"IF('1. Order'!AA204=\"\",\"\",'1. Order'!AA204)","v":""},null,{"$f":"IF('1. Order'!AS204=\"\",\"\",'1. Order'!AS204)","v":""},{"$f":"IF('1. Order'!AT204=\"\",\"\",'1. Order'!AT204)","v":""},null,null,null,null,null,null,null,{"$f":"IF('1. Order'!AX204=\"\",\"\",'1. Order'!AX204)","v":""},{"$f":"IF('1. Order'!AY204=\"\",\"\",'1. Order'!AY204)","v":""},{"$f":"IF('1. Order'!AZ204=\"\",\"\",'1. Order'!AZ204)","v":""},{"$f":"IF('1. Order'!BA204=\"\",\"\",'1. Order'!BA204)","v":""},{"$f":"IF('1. Order'!BC204=\"\",\"\",'1. Order'!BC204)","v":""},{"$f":"IF('1. Order'!BD204=\"\",\"\",'1. Order'!BD204)","v":6},{"$f":"IF('1. Order'!BE204=\"\",\"\",'1. Order'!BE204)","v":"None"},{"$f":"IF('1. Order'!BF204=\"\",\"\",'1. Order'!BF204)","v":"Parcel"},{"$f":"IF('1. Order'!BG204=\"\",\"\",'1. Order'!BG204)","v":"ZWO"}]
[{"$f":"IF('1. Order'!F205=\"\",\"\",'1. Order'!F205)","v":""},{"$f":"IF('1. Order'!G205=\"\",\"\",'1. Order'!G205)","v":""},{"$f":"IF('1. Order'!H205=\"\",\"\",'1. Order'!H205)","v":""},{"$f":"IF('1. Order'!I205=\"\",\"\",'1. Order'!I205)","v":""},{"$f":"IF('1. Order'!J205=\"\",\"\",'1. Order'!J205)","v":""},{"$f":"IF('1. Order'!K205=\"\",\"\",'1. Order'!K205)","v":""},{"$f":"IF('1. Order'!L205=\"\",\"\",'1. Order'!L205)","v":""},{"$f":"IF('1. Order'!M205=\"\",\"\",'1. Order'!M205)","v":""},{"$f":"IF('1. Order'!N205=\"\",\"\",'1. Order'!N205)","v":""},{"$f":"IF('1. Order'!O205=\"\",\"\",'1. Order'!O205)","v":{"$error":"#N/A"}},{"$f":"IF('1. Order'!P205=\"\",\"\",'1. Order'!P205)","v":{"$error":"#N/A"}},{"$f":"IF('1. Order'!Q205=\"\",\"\",'1. Order'!Q205)","v":""},{"$f":"IF('1. Order'!R205=\"\",\"\",'1. Order'!R205)","v":""},{"$f":"IF('1. Order'!S205=\"\",\"\",'1. Order'!S205)","v":""},{"$f":"IF('1. Order'!V205=\"\",\"\",'1. Order'!V205)","v":""},{"$f":"IF('1. Order'!W205=\"\",\"\",'1. Order'!W205)","v":""},{"$f":"IF('1. Order'!X205=\"\",\"\",'1. Order'!X205)","v":"EUR"},{"$f":"IF('1. Order'!Y205=\"\",\"\",'1. Order'!Y205)","v":""},{"$f":"IF('1. Order'!Z205=\"\",\"\",'1. Order'!Z205)","v":""},{"$f":"IF('1. Order'!AA205=\"\",\"\",'1. Order'!AA205)","v":""},null,{"$f":"IF('1. Order'!AS205=\"\",\"\",'1. Order'!AS205)","v":""},{"$f":"IF('1. Order'!AT205=\"\",\"\",'1. Order'!AT205)","v":""},null,null,null,null,null,null,null,{"$f":"IF('1. Order'!AX205=\"\",\"\",'1. Order'!AX205)","v":""},{"$f":"IF('1. Order'!AY205=\"\",\"\",'1. Order'!AY205)","v":""},{"$f":"IF('1. Order'!AZ205=\"\",\"\",'1. Order'!AZ205)","v":""},{"$f":"IF('1. Order'!BA205=\"\",\"\",'1. Order'!BA205)","v":""},{"$f":"IF('1. Order'!BC205=\"\",\"\",'1. Order'!BC205)","v":""},{"$f":"IF('1. Order'!BD205=\"\",\"\",'1. Order'!BD205)","v":6},{"$f":"IF('1. Order'!BE205=\"\",\"\",'1. Order'!BE205)","v":"None"},{"$f":"IF('1. Order'!BF205=\"\",\"\",'1. Order'!BF205)","v":"Parcel"},{"$f":"IF('1. Order'!BG205=\"\",\"\",'1. Order'!BG205)","v":"ZWO"}]
[{"$f":"IF('1. Order'!F206=\"\",\"\",'1. Order'!F206)","v":""},{"$f":"IF('1. Order'!G206=\"\",\"\",'1. Order'!G206)","v":""},{"$f":"IF('1. Order'!H206=\"\",\"\",'1. Order'!H206)","v":""},{"$f":"IF('1. Order'!I206=\"\",\"\",'1. Order'!I206)","v":""},{"$f":"IF('1. Order'!J206=\"\",\"\",'1. Order'!J206)","v":""},{"$f":"IF('1. Order'!K206=\"\",\"\",'1. Order'!K206)","v":""},{"$f":"IF('1. Order'!L206=\"\",\"\",'1. Order'!L206)","v":""},{"$f":"IF('1. Order'!M206=\"\",\"\",'1. Order'!M206)","v":""},{"$f":"IF('1. Order'!N206=\"\",\"\",'1. Order'!N206)","v":""},{"$f":"IF('1. Order'!O206=\"\",\"\",'1. Order'!O206)","v":{"$error":"#N/A"}},{"$f":"IF('1. Order'!P206=\"\",\"\",'1. Order'!P206)","v":{"$error":"#N/A"}},{"$f":"IF('1. Order'!Q206=\"\",\"\",'1. Order'!Q206)","v":""},{"$f":"IF('1. Order'!R206=\"\",\"\",'1. Order'!R206)","v":""},{"$f":"IF('1. Order'!S206=\"\",\"\",'1. Order'!S206)","v":""},{"$f":"IF('1. Order'!V206=\"\",\"\",'1. Order'!V206)","v":""},{"$f":"IF('1. Order'!W206=\"\",\"\",'1. Order'!W206)","v":""},{"$f":"IF('1. Order'!X206=\"\",\"\",'1. Order'!X206)","v":"EUR"},{"$f":"IF('1. Order'!Y206=\"\",\"\",'1. Order'!Y206)","v":""},{"$f":"IF('1. Order'!Z206=\"\",\"\",'1. Order'!Z206)","v":""},{"$f":"IF('1. Order'!AA206=\"\",\"\",'1. Order'!AA206)","v":""},null,{"$f":"IF('1. Order'!AS206=\"\",\"\",'1. Order'!AS206)","v":""},{"$f":"IF('1. Order'!AT206=\"\",\"\",'1. Order'!AT206)","v":""},null,null,null,null,null,null,null,{"$f":"IF('1. Order'!AX206=\"\",\"\",'1. Order'!AX206)","v":""},{"$f":"IF('1. Order'!AY206=\"\",\"\",'1. Order'!AY206)","v":""},{"$f":"IF('1. Order'!AZ206=\"\",\"\",'1. Order'!AZ206)","v":""},{"$f":"IF('1. Order'!BA206=\"\",\"\",'1. Order'!BA206)","v":""},{"$f":"IF('1. Order'!BC206=\"\",\"\",'1. Order'!BC206)","v":""},{"$f":"IF('1. Order'!BD206=\"\",\"\",'1. Order'!BD206)","v":6},{"$f":"IF('1. Order'!BE206=\"\",\"\",'1. Order'!BE206)","v":"None"},{"$f":"IF('1. Order'!BF206=\"\",\"\",'1. Order'!BF206)","v":"Parcel"},{"$f":"IF('1. Order'!BG206=\"\",\"\",'1. Order'!BG206)","v":"ZWO"}]
[{"$f":"IF('1. Order'!F207=\"\",\"\",'1. Order'!F207)","v":""},{"$f":"IF('1. Order'!G207=\"\",\"\",'1. Order'!G207)","v":""},{"$f":"IF('1. Order'!H207=\"\",\"\",'1. Order'!H207)","v":""},{"$f":"IF('1. Order'!I207=\"\",\"\",'1. Order'!I207)","v":""},{"$f":"IF('1. Order'!J207=\"\",\"\",'1. Order'!J207)","v":""},{"$f":"IF('1. Order'!K207=\"\",\"\",'1. Order'!K207)","v":""},{"$f":"IF('1. Order'!L207=\"\",\"\",'1. Order'!L207)","v":""},{"$f":"IF('1. Order'!M207=\"\",\"\",'1. Order'!M207)","v":""},{"$f":"IF('1. Order'!N207=\"\",\"\",'1. Order'!N207)","v":""},{"$f":"IF('1. Order'!O207=\"\",\"\",'1. Order'!O207)","v":{"$error":"#N/A"}},{"$f":"IF('1. Order'!P207=\"\",\"\",'1. Order'!P207)","v":{"$error":"#N/A"}},{"$f":"IF('1. Order'!Q207=\"\",\"\",'1. Order'!Q207)","v":""},{"$f":"IF('1. Order'!R207=\"\",\"\",'1. Order'!R207)","v":""},{"$f":"IF('1. Order'!S207=\"\",\"\",'1. Order'!S207)","v":""},{"$f":"IF('1. Order'!V207=\"\",\"\",'1. Order'!V207)","v":""},{"$f":"IF('1. Order'!W207=\"\",\"\",'1. Order'!W207)","v":""},{"$f":"IF('1. Order'!X207=\"\",\"\",'1. Order'!X207)","v":"EUR"},{"$f":"IF('1. Order'!Y207=\"\",\"\",'1. Order'!Y207)","v":""},{"$f":"IF('1. Order'!Z207=\"\",\"\",'1. Order'!Z207)","v":""},{"$f":"IF('1. Order'!AA207=\"\",\"\",'1. Order'!AA207)","v":""},null,{"$f":"IF('1. Order'!AS207=\"\",\"\",'1. Order'!AS207)","v":""},{"$f":"IF('1. Order'!AT207=\"\",\"\",'1. Order'!AT207)","v":""},null,null,null,null,null,null,null,{"$f":"IF('1. Order'!AX207=\"\",\"\",'1. Order'!AX207)","v":""},{"$f":"IF('1. Order'!AY207=\"\",\"\",'1. Order'!AY207)","v":""},{"$f":"IF('1. Order'!AZ207=\"\",\"\",'1. Order'!AZ207)","v":""},{"$f":"IF('1. Order'!BA207=\"\",\"\",'1. Order'!BA207)","v":""},{"$f":"IF('1. Order'!BC207=\"\",\"\",'1. Order'!BC207)","v":""},{"$f":"IF('1. Order'!BD207=\"\",\"\",'1. Order'!BD207)","v":6},{"$f":"IF('1. Order'!BE207=\"\",\"\",'1. Order'!BE207)","v":"None"},{"$f":"IF('1. Order'!BF207=\"\",\"\",'1. Order'!BF207)","v":"Parcel"},{"$f":"IF('1. Order'!BG207=\"\",\"\",'1. Order'!BG207)","v":"ZWO"}]
[{"$f":"IF('1. Order'!F208=\"\",\"\",'1. Order'!F208)","v":""},{"$f":"IF('1. Order'!G208=\"\",\"\",'1. Order'!G208)","v":""},{"$f":"IF('1. Order'!H208=\"\",\"\",'1. Order'!H208)","v":""},{"$f":"IF('1. Order'!I208=\"\",\"\",'1. Order'!I208)","v":""},{"$f":"IF('1. Order'!J208=\"\",\"\",'1. Order'!J208)","v":""},{"$f":"IF('1. Order'!K208=\"\",\"\",'1. Order'!K208)","v":""},{"$f":"IF('1. Order'!L208=\"\",\"\",'1. Order'!L208)","v":""},{"$f":"IF('1. Order'!M208=\"\",\"\",'1. Order'!M208)","v":""},{"$f":"IF('1. Order'!N208=\"\",\"\",'1. Order'!N208)","v":""},{"$f":"IF('1. Order'!O208=\"\",\"\",'1. Order'!O208)","v":{"$error":"#N/A"}},{"$f":"IF('1. Order'!P208=\"\",\"\",'1. Order'!P208)","v":{"$error":"#N/A"}},{"$f":"IF('1. Order'!Q208=\"\",\"\",'1. Order'!Q208)","v":""},{"$f":"IF('1. Order'!R208=\"\",\"\",'1. Order'!R208)","v":""},{"$f":"IF('1. Order'!S208=\"\",\"\",'1. Order'!S208)","v":""},{"$f":"IF('1. Order'!V208=\"\",\"\",'1. Order'!V208)","v":""},{"$f":"IF('1. Order'!W208=\"\",\"\",'1. Order'!W208)","v":""},{"$f":"IF('1. Order'!X208=\"\",\"\",'1. Order'!X208)","v":"EUR"},{"$f":"IF('1. Order'!Y208=\"\",\"\",'1. Order'!Y208)","v":""},{"$f":"IF('1. Order'!Z208=\"\",\"\",'1. Order'!Z208)","v":""},{"$f":"IF('1. Order'!AA208=\"\",\"\",'1. Order'!AA208)","v":""},null,{"$f":"IF('1. Order'!AS208=\"\",\"\",'1. Order'!AS208)","v":""},{"$f":"IF('1. Order'!AT208=\"\",\"\",'1. Order'!AT208)","v":""},null,null,null,null,null,null,null,{"$f":"IF('1. Order'!AX208=\"\",\"\",'1. Order'!AX208)","v":""},{"$f":"IF('1. Order'!AY208=\"\",\"\",'1. Order'!AY208)","v":""},{"$f":"IF('1. Order'!AZ208=\"\",\"\",'1. Order'!AZ208)","v":""},{"$f":"IF('1. Order'!BA208=\"\",\"\",'1. Order'!BA208)","v":""},{"$f":"IF('1. Order'!BC208=\"\",\"\",'1. Order'!BC208)","v":""},{"$f":"IF('1. Order'!BD208=\"\",\"\",'1. Order'!BD208)","v":6},{"$f":"IF('1. Order'!BE208=\"\",\"\",'1. Order'!BE208)","v":"None"},{"$f":"IF('1. Order'!BF208=\"\",\"\",'1. Order'!BF208)","v":"Parcel"},{"$f":"IF('1. Order'!BG208=\"\",\"\",'1. Order'!BG208)","v":"ZWO"}]
[{"$f":"IF('1. Order'!F209=\"\",\"\",'1. Order'!F209)","v":""},{"$f":"IF('1. Order'!G209=\"\",\"\",'1. Order'!G209)","v":""},{"$f":"IF('1. Order'!H209=\"\",\"\",'1. Order'!H209)","v":""},{"$f":"IF('1. Order'!I209=\"\",\"\",'1. Order'!I209)","v":""},{"$f":"IF('1. Order'!J209=\"\",\"\",'1. Order'!J209)","v":""},{"$f":"IF('1. Order'!K209=\"\",\"\",'1. Order'!K209)","v":""},{"$f":"IF('1. Order'!L209=\"\",\"\",'1. Order'!L209)","v":""},{"$f":"IF('1. Order'!M209=\"\",\"\",'1. Order'!M209)","v":""},{"$f":"IF('1. Order'!N209=\"\",\"\",'1. Order'!N209)","v":""},{"$f":"IF('1. Order'!O209=\"\",\"\",'1. Order'!O209)","v":{"$error":"#N/A"}},{"$f":"IF('1. Order'!P209=\"\",\"\",'1. Order'!P209)","v":{"$error":"#N/A"}},{"$f":"IF('1. Order'!Q209=\"\",\"\",'1. Order'!Q209)","v":""},{"$f":"IF('1. Order'!R209=\"\",\"\",'1. Order'!R209)","v":""},{"$f":"IF('1. Order'!S209=\"\",\"\",'1. Order'!S209)","v":""},{"$f":"IF('1. Order'!V209=\"\",\"\",'1. Order'!V209)","v":""},{"$f":"IF('1. Order'!W209=\"\",\"\",'1. Order'!W209)","v":""},{"$f":"IF('1. Order'!X209=\"\",\"\",'1. Order'!X209)","v":"EUR"},{"$f":"IF('1. Order'!Y209=\"\",\"\",'1. Order'!Y209)","v":""},{"$f":"IF('1. Order'!Z209=\"\",\"\",'1. Order'!Z209)","v":""},{"$f":"IF('1. Order'!AA209=\"\",\"\",'1. Order'!AA209)","v":""},null,{"$f":"IF('1. Order'!AS209=\"\",\"\",'1. Order'!AS209)","v":""},{"$f":"IF('1. Order'!AT209=\"\",\"\",'1. Order'!AT209)","v":""},null,null,null,null,null,null,null,{"$f":"IF('1. Order'!AX209=\"\",\"\",'1. Order'!AX209)","v":""},{"$f":"IF('1. Order'!AY209=\"\",\"\",'1. Order'!AY209)","v":""},{"$f":"IF('1. Order'!AZ209=\"\",\"\",'1. Order'!AZ209)","v":""},{"$f":"IF('1. Order'!BA209=\"\",\"\",'1. Order'!BA209)","v":""},{"$f":"IF('1. Order'!BC209=\"\",\"\",'1. Order'!BC209)","v":""},{"$f":"IF('1. Order'!BD209=\"\",\"\",'1. Order'!BD209)","v":6},{"$f":"IF('1. Order'!BE209=\"\",\"\",'1. Order'!BE209)","v":"None"},{"$f":"IF('1. Order'!BF209=\"\",\"\",'1. Order'!BF209)","v":"Parcel"},{"$f":"IF('1. Order'!BG209=\"\",\"\",'1. Order'!BG209)","v":"ZWO"}]
[{"$f":"IF('1. Order'!F210=\"\",\"\",'1. Order'!F210)","v":""},{"$f":"IF('1. Order'!G210=\"\",\"\",'1. Order'!G210)","v":""},{"$f":"IF('1. Order'!H210=\"\",\"\",'1. Order'!H210)","v":""},{"$f":"IF('1. Order'!I210=\"\",\"\",'1. Order'!I210)","v":""},{"$f":"IF('1. Order'!J210=\"\",\"\",'1. Order'!J210)","v":""},{"$f":"IF('1. Order'!K210=\"\",\"\",'1. Order'!K210)","v":""},{"$f":"IF('1. Order'!L210=\"\",\"\",'1. Order'!L210)","v":""},{"$f":"IF('1. Order'!M210=\"\",\"\",'1. Order'!M210)","v":""},{"$f":"IF('1. Order'!N210=\"\",\"\",'1. Order'!N210)","v":""},{"$f":"IF('1. Order'!O210=\"\",\"\",'1. Order'!O210)","v":{"$error":"#N/A"}},{"$f":"IF('1. Order'!P210=\"\",\"\",'1. Order'!P210)","v":{"$error":"#N/A"}},{"$f":"IF('1. Order'!Q210=\"\",\"\",'1. Order'!Q210)","v":""},{"$f":"IF('1. Order'!R210=\"\",\"\",'1. Order'!R210)","v":""},{"$f":"IF('1. Order'!S210=\"\",\"\",'1. Order'!S210)","v":""},{"$f":"IF('1. Order'!V210=\"\",\"\",'1. Order'!V210)","v":""},{"$f":"IF('1. Order'!W210=\"\",\"\",'1. Order'!W210)","v":""},{"$f":"IF('1. Order'!X210=\"\",\"\",'1. Order'!X210)","v":"EUR"},{"$f":"IF('1. Order'!Y210=\"\",\"\",'1. Order'!Y210)","v":""},{"$f":"IF('1. Order'!Z210=\"\",\"\",'1. Order'!Z210)","v":""},{"$f":"IF('1. Order'!AA210=\"\",\"\",'1. Order'!AA210)","v":""},null,{"$f":"IF('1. Order'!AS210=\"\",\"\",'1. Order'!AS210)","v":""},{"$f":"IF('1. Order'!AT210=\"\",\"\",'1. Order'!AT210)","v":""},null,null,null,null,null,null,null,{"$f":"IF('1. Order'!AX210=\"\",\"\",'1. Order'!AX210)","v":""},{"$f":"IF('1. Order'!AY210=\"\",\"\",'1. Order'!AY210)","v":""},{"$f":"IF('1. Order'!AZ210=\"\",\"\",'1. Order'!AZ210)","v":""},{"$f":"IF('1. Order'!BA210=\"\",\"\",'1. Order'!BA210)","v":""},{"$f":"IF('1. Order'!BC210=\"\",\"\",'1. Order'!BC210)","v":""},{"$f":"IF('1. Order'!BD210=\"\",\"\",'1. Order'!BD210)","v":6},{"$f":"IF('1. Order'!BE210=\"\",\"\",'1. Order'!BE210)","v":"None"},{"$f":"IF('1. Order'!BF210=\"\",\"\",'1. Order'!BF210)","v":"Parcel"},{"$f":"IF('1. Order'!BG210=\"\",\"\",'1. Order'!BG210)","v":"ZWO"}]
[{"$f":"IF('1. Order'!F211=\"\",\"\",'1. Order'!F211)","v":""},{"$f":"IF('1. Order'!G211=\"\",\"\",'1. Order'!G211)","v":""},{"$f":"IF('1. Order'!H211=\"\",\"\",'1. Order'!H211)","v":""},{"$f":"IF('1. Order'!I211=\"\",\"\",'1. Order'!I211)","v":""},{"$f":"IF('1. Order'!J211=\"\",\"\",'1. Order'!J211)","v":""},{"$f":"IF('1. Order'!K211=\"\",\"\",'1. Order'!K211)","v":""},{"$f":"IF('1. Order'!L211=\"\",\"\",'1. Order'!L211)","v":""},{"$f":"IF('1. Order'!M211=\"\",\"\",'1. Order'!M211)","v":""},{"$f":"IF('1. Order'!N211=\"\",\"\",'1. Order'!N211)","v":""},{"$f":"IF('1. Order'!O211=\"\",\"\",'1. Order'!O211)","v":{"$error":"#N/A"}},{"$f":"IF('1. Order'!P211=\"\",\"\",'1. Order'!P211)","v":{"$error":"#N/A"}},{"$f":"IF('1. Order'!Q211=\"\",\"\",'1. Order'!Q211)","v":""},{"$f":"IF('1. Order'!R211=\"\",\"\",'1. Order'!R211)","v":""},{"$f":"IF('1. Order'!S211=\"\",\"\",'1. Order'!S211)","v":""},{"$f":"IF('1. Order'!V211=\"\",\"\",'1. Order'!V211)","v":""},{"$f":"IF('1. Order'!W211=\"\",\"\",'1. Order'!W211)","v":""},{"$f":"IF('1. Order'!X211=\"\",\"\",'1. Order'!X211)","v":"EUR"},{"$f":"IF('1. Order'!Y211=\"\",\"\",'1. Order'!Y211)","v":""},{"$f":"IF('1. Order'!Z211=\"\",\"\",'1. Order'!Z211)","v":""},{"$f":"IF('1. Order'!AA211=\"\",\"\",'1. Order'!AA211)","v":""},null,{"$f":"IF('1. Order'!AS211=\"\",\"\",'1. Order'!AS211)","v":""},{"$f":"IF('1. Order'!AT211=\"\",\"\",'1. Order'!AT211)","v":""},null,null,null,null,null,null,null,{"$f":"IF('1. Order'!AX211=\"\",\"\",'1. Order'!AX211)","v":""},{"$f":"IF('1. Order'!AY211=\"\",\"\",'1. Order'!AY211)","v":""},{"$f":"IF('1. Order'!AZ211=\"\",\"\",'1. Order'!AZ211)","v":""},{"$f":"IF('1. Order'!BA211=\"\",\"\",'1. Order'!BA211)","v":""},{"$f":"IF('1. Order'!BC211=\"\",\"\",'1. Order'!BC211)","v":""},{"$f":"IF('1. Order'!BD211=\"\",\"\",'1. Order'!BD211)","v":6},{"$f":"IF('1. Order'!BE211=\"\",\"\",'1. Order'!BE211)","v":"None"},{"$f":"IF('1. Order'!BF211=\"\",\"\",'1. Order'!BF211)","v":"Parcel"},{"$f":"IF('1. Order'!BG211=\"\",\"\",'1. Order'!BG211)","v":"ZWO"}]
[{"$f":"IF('1. Order'!F212=\"\",\"\",'1. Order'!F212)","v":""},{"$f":"IF('1. Order'!G212=\"\",\"\",'1. Order'!G212)","v":""},{"$f":"IF('1. Order'!H212=\"\",\"\",'1. Order'!H212)","v":""},{"$f":"IF('1. Order'!I212=\"\",\"\",'1. Order'!I212)","v":""},{"$f":"IF('1. Order'!J212=\"\",\"\",'1. Order'!J212)","v":""},{"$f":"IF('1. Order'!K212=\"\",\"\",'1. Order'!K212)","v":""},{"$f":"IF('1. Order'!L212=\"\",\"\",'1. Order'!L212)","v":""},{"$f":"IF('1. Order'!M212=\"\",\"\",'1. Order'!M212)","v":""},{"$f":"IF('1. Order'!N212=\"\",\"\",'1. Order'!N212)","v":""},{"$f":"IF('1. Order'!O212=\"\",\"\",'1. Order'!O212)","v":{"$error":"#N/A"}},{"$f":"IF('1. Order'!P212=\"\",\"\",'1. Order'!P212)","v":{"$error":"#N/A"}},{"$f":"IF('1. Order'!Q212=\"\",\"\",'1. Order'!Q212)","v":""},{"$f":"IF('1. Order'!R212=\"\",\"\",'1. Order'!R212)","v":""},{"$f":"IF('1. Order'!S212=\"\",\"\",'1. Order'!S212)","v":""},{"$f":"IF('1. Order'!V212=\"\",\"\",'1. Order'!V212)","v":""},{"$f":"IF('1. Order'!W212=\"\",\"\",'1. Order'!W212)","v":""},{"$f":"IF('1. Order'!X212=\"\",\"\",'1. Order'!X212)","v":"EUR"},{"$f":"IF('1. Order'!Y212=\"\",\"\",'1. Order'!Y212)","v":""},{"$f":"IF('1. Order'!Z212=\"\",\"\",'1. Order'!Z212)","v":""},{"$f":"IF('1. Order'!AA212=\"\",\"\",'1. Order'!AA212)","v":""},null,{"$f":"IF('1. Order'!AS212=\"\",\"\",'1. Order'!AS212)","v":""},{"$f":"IF('1. Order'!AT212=\"\",\"\",'1. Order'!AT212)","v":""},null,null,null,null,null,null,null,{"$f":"IF('1. Order'!AX212=\"\",\"\",'1. Order'!AX212)","v":""},{"$f":"IF('1. Order'!AY212=\"\",\"\",'1. Order'!AY212)","v":""},{"$f":"IF('1. Order'!AZ212=\"\",\"\",'1. Order'!AZ212)","v":""},{"$f":"IF('1. Order'!BA212=\"\",\"\",'1. Order'!BA212)","v":""},{"$f":"IF('1. Order'!BC212=\"\",\"\",'1. Order'!BC212)","v":""},{"$f":"IF('1. Order'!BD212=\"\",\"\",'1. Order'!BD212)","v":6},{"$f":"IF('1. Order'!BE212=\"\",\"\",'1. Order'!BE212)","v":"None"},{"$f":"IF('1. Order'!BF212=\"\",\"\",'1. Order'!BF212)","v":"Parcel"},{"$f":"IF('1. Order'!BG212=\"\",\"\",'1. Order'!BG212)","v":"ZWO"}]
[{"$f":"IF('1. Order'!F213=\"\",\"\",'1. Order'!F213)","v":""},{"$f":"IF('1. Order'!G213=\"\",\"\",'1. Order'!G213)","v":""},{"$f":"IF('1. Order'!H213=\"\",\"\",'1. Order'!H213)","v":""},{"$f":"IF('1. Order'!I213=\"\",\"\",'1. Order'!I213)","v":""},{"$f":"IF('1. Order'!J213=\"\",\"\",'1. Order'!J213)","v":""},{"$f":"IF('1. Order'!K213=\"\",\"\",'1. Order'!K213)","v":""},{"$f":"IF('1. Order'!L213=\"\",\"\",'1. Order'!L213)","v":""},{"$f":"IF('1. Order'!M213=\"\",\"\",'1. Order'!M213)","v":""},{"$f":"IF('1. Order'!N213=\"\",\"\",'1. Order'!N213)","v":""},{"$f":"IF('1. Order'!O213=\"\",\"\",'1. Order'!O213)","v":{"$error":"#N/A"}},{"$f":"IF('1. Order'!P213=\"\",\"\",'1. Order'!P213)","v":{"$error":"#N/A"}},{"$f":"IF('1. Order'!Q213=\"\",\"\",'1. Order'!Q213)","v":""},{"$f":"IF('1. Order'!R213=\"\",\"\",'1. Order'!R213)","v":""},{"$f":"IF('1. Order'!S213=\"\",\"\",'1. Order'!S213)","v":""},{"$f":"IF('1. Order'!V213=\"\",\"\",'1. Order'!V213)","v":""},{"$f":"IF('1. Order'!W213=\"\",\"\",'1. Order'!W213)","v":""},{"$f":"IF('1. Order'!X213=\"\",\"\",'1. Order'!X213)","v":"EUR"},{"$f":"IF('1. Order'!Y213=\"\",\"\",'1. Order'!Y213)","v":""},{"$f":"IF('1. Order'!Z213=\"\",\"\",'1. Order'!Z213)","v":""},{"$f":"IF('1. Order'!AA213=\"\",\"\",'1. Order'!AA213)","v":""},null,{"$f":"IF('1. Order'!AS213=\"\",\"\",'1. Order'!AS213)","v":""},{"$f":"IF('1. Order'!AT213=\"\",\"\",'1. Order'!AT213)","v":""},null,null,null,null,null,null,null,{"$f":"IF('1. Order'!AX213=\"\",\"\",'1. Order'!AX213)","v":""},{"$f":"IF('1. Order'!AY213=\"\",\"\",'1. Order'!AY213)","v":""},{"$f":"IF('1. Order'!AZ213=\"\",\"\",'1. Order'!AZ213)","v":""},{"$f":"IF('1. Order'!BA213=\"\",\"\",'1. Order'!BA213)","v":""},{"$f":"IF('1. Order'!BC213=\"\",\"\",'1. Order'!BC213)","v":""},{"$f":"IF('1. Order'!BD213=\"\",\"\",'1. Order'!BD213)","v":6},{"$f":"IF('1. Order'!BE213=\"\",\"\",'1. Order'!BE213)","v":"None"},{"$f":"IF('1. Order'!BF213=\"\",\"\",'1. Order'!BF213)","v":"Parcel"},{"$f":"IF('1. Order'!BG213=\"\",\"\",'1. Order'!BG213)","v":"ZWO"}]
[{"$f":"IF('1. Order'!F214=\"\",\"\",'1. Order'!F214)","v":""},{"$f":"IF('1. Order'!G214=\"\",\"\",'1. Order'!G214)","v":""},{"$f":"IF('1. Order'!H214=\"\",\"\",'1. Order'!H214)","v":""},{"$f":"IF('1. Order'!I214=\"\",\"\",'1. Order'!I214)","v":""},{"$f":"IF('1. Order'!J214=\"\",\"\",'1. Order'!J214)","v":""},{"$f":"IF('1. Order'!K214=\"\",\"\",'1. Order'!K214)","v":""},{"$f":"IF('1. Order'!L214=\"\",\"\",'1. Order'!L214)","v":""},{"$f":"IF('1. Order'!M214=\"\",\"\",'1. Order'!M214)","v":""},{"$f":"IF('1. Order'!N214=\"\",\"\",'1. Order'!N214)","v":""},{"$f":"IF('1. Order'!O214=\"\",\"\",'1. Order'!O214)","v":{"$error":"#N/A"}},{"$f":"IF('1. Order'!P214=\"\",\"\",'1. Order'!P214)","v":{"$error":"#N/A"}},{"$f":"IF('1. Order'!Q214=\"\",\"\",'1. Order'!Q214)","v":""},{"$f":"IF('1. Order'!R214=\"\",\"\",'1. Order'!R214)","v":""},{"$f":"IF('1. Order'!S214=\"\",\"\",'1. Order'!S214)","v":""},{"$f":"IF('1. Order'!V214=\"\",\"\",'1. Order'!V214)","v":""},{"$f":"IF('1. Order'!W214=\"\",\"\",'1. Order'!W214)","v":""},{"$f":"IF('1. Order'!X214=\"\",\"\",'1. Order'!X214)","v":"EUR"},{"$f":"IF('1. Order'!Y214=\"\",\"\",'1. Order'!Y214)","v":""},{"$f":"IF('1. Order'!Z214=\"\",\"\",'1. Order'!Z214)","v":""},{"$f":"IF('1. Order'!AA214=\"\",\"\",'1. Order'!AA214)","v":""},null,{"$f":"IF('1. Order'!AS214=\"\",\"\",'1. Order'!AS214)","v":""},{"$f":"IF('1. Order'!AT214=\"\",\"\",'1. Order'!AT214)","v":""},null,null,null,null,null,null,null,{"$f":"IF('1. Order'!AX214=\"\",\"\",'1. Order'!AX214)","v":""},{"$f":"IF('1. Order'!AY214=\"\",\"\",'1. Order'!AY214)","v":""},{"$f":"IF('1. Order'!AZ214=\"\",\"\",'1. Order'!AZ214)","v":""},{"$f":"IF('1. Order'!BA214=\"\",\"\",'1. Order'!BA214)","v":""},{"$f":"IF('1. Order'!BC214=\"\",\"\",'1. Order'!BC214)","v":""},{"$f":"IF('1. Order'!BD214=\"\",\"\",'1. Order'!BD214)","v":6},{"$f":"IF('1. Order'!BE214=\"\",\"\",'1. Order'!BE214)","v":"None"},{"$f":"IF('1. Order'!BF214=\"\",\"\",'1. Order'!BF214)","v":"Parcel"},{"$f":"IF('1. Order'!BG214=\"\",\"\",'1. Order'!BG214)","v":"ZWO"}]
[{"$f":"IF('1. Order'!F215=\"\",\"\",'1. Order'!F215)","v":""},{"$f":"IF('1. Order'!G215=\"\",\"\",'1. Order'!G215)","v":""},{"$f":"IF('1. Order'!H215=\"\",\"\",'1. Order'!H215)","v":""},{"$f":"IF('1. Order'!I215=\"\",\"\",'1. Order'!I215)","v":""},{"$f":"IF('1. Order'!J215=\"\",\"\",'1. Order'!J215)","v":""},{"$f":"IF('1. Order'!K215=\"\",\"\",'1. Order'!K215)","v":""},{"$f":"IF('1. Order'!L215=\"\",\"\",'1. Order'!L215)","v":""},{"$f":"IF('1. Order'!M215=\"\",\"\",'1. Order'!M215)","v":""},{"$f":"IF('1. Order'!N215=\"\",\"\",'1. Order'!N215)","v":""},{"$f":"IF('1. Order'!O215=\"\",\"\",'1. Order'!O215)","v":{"$error":"#N/A"}},{"$f":"IF('1. Order'!P215=\"\",\"\",'1. Order'!P215)","v":{"$error":"#N/A"}},{"$f":"IF('1. Order'!Q215=\"\",\"\",'1. Order'!Q215)","v":""},{"$f":"IF('1. Order'!R215=\"\",\"\",'1. Order'!R215)","v":""},{"$f":"IF('1. Order'!S215=\"\",\"\",'1. Order'!S215)","v":""},{"$f":"IF('1. Order'!V215=\"\",\"\",'1. Order'!V215)","v":""},{"$f":"IF('1. Order'!W215=\"\",\"\",'1. Order'!W215)","v":""},{"$f":"IF('1. Order'!X215=\"\",\"\",'1. Order'!X215)","v":"EUR"},{"$f":"IF('1. Order'!Y215=\"\",\"\",'1. Order'!Y215)","v":""},{"$f":"IF('1. Order'!Z215=\"\",\"\",'1. Order'!Z215)","v":""},{"$f":"IF('1. Order'!AA215=\"\",\"\",'1. Order'!AA215)","v":""},null,{"$f":"IF('1. Order'!AS215=\"\",\"\",'1. Order'!AS215)","v":""},{"$f":"IF('1. Order'!AT215=\"\",\"\",'1. Order'!AT215)","v":""},null,null,null,null,null,null,null,{"$f":"IF('1. Order'!AX215=\"\",\"\",'1. Order'!AX215)","v":""},{"$f":"IF('1. Order'!AY215=\"\",\"\",'1. Order'!AY215)","v":""},{"$f":"IF('1. Order'!AZ215=\"\",\"\",'1. Order'!AZ215)","v":""},{"$f":"IF('1. Order'!BA215=\"\",\"\",'1. Order'!BA215)","v":""},{"$f":"IF('1. Order'!BC215=\"\",\"\",'1. Order'!BC215)","v":""},{"$f":"IF('1. Order'!BD215=\"\",\"\",'1. Order'!BD215)","v":6},{"$f":"IF('1. Order'!BE215=\"\",\"\",'1. Order'!BE215)","v":"None"},{"$f":"IF('1. Order'!BF215=\"\",\"\",'1. Order'!BF215)","v":"Parcel"},{"$f":"IF('1. Order'!BG215=\"\",\"\",'1. Order'!BG215)","v":"ZWO"}]
[{"$f":"IF('1. Order'!F216=\"\",\"\",'1. Order'!F216)","v":""},{"$f":"IF('1. Order'!G216=\"\",\"\",'1. Order'!G216)","v":""},{"$f":"IF('1. Order'!H216=\"\",\"\",'1. Order'!H216)","v":""},{"$f":"IF('1. Order'!I216=\"\",\"\",'1. Order'!I216)","v":""},{"$f":"IF('1. Order'!J216=\"\",\"\",'1. Order'!J216)","v":""},{"$f":"IF('1. Order'!K216=\"\",\"\",'1. Order'!K216)","v":""},{"$f":"IF('1. Order'!L216=\"\",\"\",'1. Order'!L216)","v":""},{"$f":"IF('1. Order'!M216=\"\",\"\",'1. Order'!M216)","v":""},{"$f":"IF('1. Order'!N216=\"\",\"\",'1. Order'!N216)","v":""},{"$f":"IF('1. Order'!O216=\"\",\"\",'1. Order'!O216)","v":{"$error":"#N/A"}},{"$f":"IF('1. Order'!P216=\"\",\"\",'1. Order'!P216)","v":{"$error":"#N/A"}},{"$f":"IF('1. Order'!Q216=\"\",\"\",'1. Order'!Q216)","v":""},{"$f":"IF('1. Order'!R216=\"\",\"\",'1. Order'!R216)","v":""},{"$f":"IF('1. Order'!S216=\"\",\"\",'1. Order'!S216)","v":""},{"$f":"IF('1. Order'!V216=\"\",\"\",'1. Order'!V216)","v":""},{"$f":"IF('1. Order'!W216=\"\",\"\",'1. Order'!W216)","v":""},{"$f":"IF('1. Order'!X216=\"\",\"\",'1. Order'!X216)","v":"EUR"},{"$f":"IF('1. Order'!Y216=\"\",\"\",'1. Order'!Y216)","v":""},{"$f":"IF('1. Order'!Z216=\"\",\"\",'1. Order'!Z216)","v":""},{"$f":"IF('1. Order'!AA216=\"\",\"\",'1. Order'!AA216)","v":""},null,{"$f":"IF('1. Order'!AS216=\"\",\"\",'1. Order'!AS216)","v":""},{"$f":"IF('1. Order'!AT216=\"\",\"\",'1. Order'!AT216)","v":""},null,null,null,null,null,null,null,{"$f":"IF('1. Order'!AX216=\"\",\"\",'1. Order'!AX216)","v":""},{"$f":"IF('1. Order'!AY216=\"\",\"\",'1. Order'!AY216)","v":""},{"$f":"IF('1. Order'!AZ216=\"\",\"\",'1. Order'!AZ216)","v":""},{"$f":"IF('1. Order'!BA216=\"\",\"\",'1. Order'!BA216)","v":""},{"$f":"IF('1. Order'!BC216=\"\",\"\",'1. Order'!BC216)","v":""},{"$f":"IF('1. Order'!BD216=\"\",\"\",'1. Order'!BD216)","v":6},{"$f":"IF('1. Order'!BE216=\"\",\"\",'1. Order'!BE216)","v":"None"},{"$f":"IF('1. Order'!BF216=\"\",\"\",'1. Order'!BF216)","v":"Parcel"},{"$f":"IF('1. Order'!BG216=\"\",\"\",'1. Order'!BG216)","v":"ZWO"}]
[{"$f":"IF('1. Order'!F217=\"\",\"\",'1. Order'!F217)","v":""},{"$f":"IF('1. Order'!G217=\"\",\"\",'1. Order'!G217)","v":""},{"$f":"IF('1. Order'!H217=\"\",\"\",'1. Order'!H217)","v":""},{"$f":"IF('1. Order'!I217=\"\",\"\",'1. Order'!I217)","v":""},{"$f":"IF('1. Order'!J217=\"\",\"\",'1. Order'!J217)","v":""},{"$f":"IF('1. Order'!K217=\"\",\"\",'1. Order'!K217)","v":""},{"$f":"IF('1. Order'!L217=\"\",\"\",'1. Order'!L217)","v":""},{"$f":"IF('1. Order'!M217=\"\",\"\",'1. Order'!M217)","v":""},{"$f":"IF('1. Order'!N217=\"\",\"\",'1. Order'!N217)","v":""},{"$f":"IF('1. Order'!O217=\"\",\"\",'1. Order'!O217)","v":{"$error":"#N/A"}},{"$f":"IF('1. Order'!P217=\"\",\"\",'1. Order'!P217)","v":{"$error":"#N/A"}},{"$f":"IF('1. Order'!Q217=\"\",\"\",'1. Order'!Q217)","v":""},{"$f":"IF('1. Order'!R217=\"\",\"\",'1. Order'!R217)","v":""},{"$f":"IF('1. Order'!S217=\"\",\"\",'1. Order'!S217)","v":""},{"$f":"IF('1. Order'!V217=\"\",\"\",'1. Order'!V217)","v":""},{"$f":"IF('1. Order'!W217=\"\",\"\",'1. Order'!W217)","v":""},{"$f":"IF('1. Order'!X217=\"\",\"\",'1. Order'!X217)","v":"EUR"},{"$f":"IF('1. Order'!Y217=\"\",\"\",'1. Order'!Y217)","v":""},{"$f":"IF('1. Order'!Z217=\"\",\"\",'1. Order'!Z217)","v":""},{"$f":"IF('1. Order'!AA217=\"\",\"\",'1. Order'!AA217)","v":""},null,{"$f":"IF('1. Order'!AS217=\"\",\"\",'1. Order'!AS217)","v":""},{"$f":"IF('1. Order'!AT217=\"\",\"\",'1. Order'!AT217)","v":""},null,null,null,null,null,null,null,{"$f":"IF('1. Order'!AX217=\"\",\"\",'1. Order'!AX217)","v":""},{"$f":"IF('1. Order'!AY217=\"\",\"\",'1. Order'!AY217)","v":""},{"$f":"IF('1. Order'!AZ217=\"\",\"\",'1. Order'!AZ217)","v":""},{"$f":"IF('1. Order'!BA217=\"\",\"\",'1. Order'!BA217)","v":""},{"$f":"IF('1. Order'!BC217=\"\",\"\",'1. Order'!BC217)","v":""},{"$f":"IF('1. Order'!BD217=\"\",\"\",'1. Order'!BD217)","v":6},{"$f":"IF('1. Order'!BE217=\"\",\"\",'1. Order'!BE217)","v":"None"},{"$f":"IF('1. Order'!BF217=\"\",\"\",'1. Order'!BF217)","v":"Parcel"},{"$f":"IF('1. Order'!BG217=\"\",\"\",'1. Order'!BG217)","v":"ZWO"}]
[{"$f":"IF('1. Order'!F218=\"\",\"\",'1. Order'!F218)","v":""},{"$f":"IF('1. Order'!G218=\"\",\"\",'1. Order'!G218)","v":""},{"$f":"IF('1. Order'!H218=\"\",\"\",'1. Order'!H218)","v":""},{"$f":"IF('1. Order'!I218=\"\",\"\",'1. Order'!I218)","v":""},{"$f":"IF('1. Order'!J218=\"\",\"\",'1. Order'!J218)","v":""},{"$f":"IF('1. Order'!K218=\"\",\"\",'1. Order'!K218)","v":""},{"$f":"IF('1. Order'!L218=\"\",\"\",'1. Order'!L218)","v":""},{"$f":"IF('1. Order'!M218=\"\",\"\",'1. Order'!M218)","v":""},{"$f":"IF('1. Order'!N218=\"\",\"\",'1. Order'!N218)","v":""},{"$f":"IF('1. Order'!O218=\"\",\"\",'1. Order'!O218)","v":{"$error":"#N/A"}},{"$f":"IF('1. Order'!P218=\"\",\"\",'1. Order'!P218)","v":{"$error":"#N/A"}},{"$f":"IF('1. Order'!Q218=\"\",\"\",'1. Order'!Q218)","v":""},{"$f":"IF('1. Order'!R218=\"\",\"\",'1. Order'!R218)","v":""},{"$f":"IF('1. Order'!S218=\"\",\"\",'1. Order'!S218)","v":""},{"$f":"IF('1. Order'!V218=\"\",\"\",'1. Order'!V218)","v":""},{"$f":"IF('1. Order'!W218=\"\",\"\",'1. Order'!W218)","v":""},{"$f":"IF('1. Order'!X218=\"\",\"\",'1. Order'!X218)","v":"EUR"},{"$f":"IF('1. Order'!Y218=\"\",\"\",'1. Order'!Y218)","v":""},{"$f":"IF('1. Order'!Z218=\"\",\"\",'1. Order'!Z218)","v":""},{"$f":"IF('1. Order'!AA218=\"\",\"\",'1. Order'!AA218)","v":""},null,{"$f":"IF('1. Order'!AS218=\"\",\"\",'1. Order'!AS218)","v":""},{"$f":"IF('1. Order'!AT218=\"\",\"\",'1. Order'!AT218)","v":""},null,null,null,null,null,null,null,{"$f":"IF('1. Order'!AX218=\"\",\"\",'1. Order'!AX218)","v":""},{"$f":"IF('1. Order'!AY218=\"\",\"\",'1. Order'!AY218)","v":""},{"$f":"IF('1. Order'!AZ218=\"\",\"\",'1. Order'!AZ218)","v":""},{"$f":"IF('1. Order'!BA218=\"\",\"\",'1. Order'!BA218)","v":""},{"$f":"IF('1. Order'!BC218=\"\",\"\",'1. Order'!BC218)","v":""},{"$f":"IF('1. Order'!BD218=\"\",\"\",'1. Order'!BD218)","v":6},{"$f":"IF('1. Order'!BE218=\"\",\"\",'1. Order'!BE218)","v":"None"},{"$f":"IF('1. Order'!BF218=\"\",\"\",'1. Order'!BF218)","v":"Parcel"},{"$f":"IF('1. Order'!BG218=\"\",\"\",'1. Order'!BG218)","v":"ZWO"}]
[{"$f":"IF('1. Order'!F219=\"\",\"\",'1. Order'!F219)","v":""},{"$f":"IF('1. Order'!G219=\"\",\"\",'1. Order'!G219)","v":""},{"$f":"IF('1. Order'!H219=\"\",\"\",'1. Order'!H219)","v":""},{"$f":"IF('1. Order'!I219=\"\",\"\",'1. Order'!I219)","v":""},{"$f":"IF('1. Order'!J219=\"\",\"\",'1. Order'!J219)","v":""},{"$f":"IF('1. Order'!K219=\"\",\"\",'1. Order'!K219)","v":""},{"$f":"IF('1. Order'!L219=\"\",\"\",'1. Order'!L219)","v":""},{"$f":"IF('1. Order'!M219=\"\",\"\",'1. Order'!M219)","v":""},{"$f":"IF('1. Order'!N219=\"\",\"\",'1. Order'!N219)","v":""},{"$f":"IF('1. Order'!O219=\"\",\"\",'1. Order'!O219)","v":{"$error":"#N/A"}},{"$f":"IF('1. Order'!P219=\"\",\"\",'1. Order'!P219)","v":{"$error":"#N/A"}},{"$f":"IF('1. Order'!Q219=\"\",\"\",'1. Order'!Q219)","v":""},{"$f":"IF('1. Order'!R219=\"\",\"\",'1. Order'!R219)","v":""},{"$f":"IF('1. Order'!S219=\"\",\"\",'1. Order'!S219)","v":""},{"$f":"IF('1. Order'!V219=\"\",\"\",'1. Order'!V219)","v":""},{"$f":"IF('1. Order'!W219=\"\",\"\",'1. Order'!W219)","v":""},{"$f":"IF('1. Order'!X219=\"\",\"\",'1. Order'!X219)","v":"EUR"},{"$f":"IF('1. Order'!Y219=\"\",\"\",'1. Order'!Y219)","v":""},{"$f":"IF('1. Order'!Z219=\"\",\"\",'1. Order'!Z219)","v":""},{"$f":"IF('1. Order'!AA219=\"\",\"\",'1. Order'!AA219)","v":""},null,{"$f":"IF('1. Order'!AS219=\"\",\"\",'1. Order'!AS219)","v":""},{"$f":"IF('1. Order'!AT219=\"\",\"\",'1. Order'!AT219)","v":""},null,null,null,null,null,null,null,{"$f":"IF('1. Order'!AX219=\"\",\"\",'1. Order'!AX219)","v":""},{"$f":"IF('1. Order'!AY219=\"\",\"\",'1. Order'!AY219)","v":""},{"$f":"IF('1. Order'!AZ219=\"\",\"\",'1. Order'!AZ219)","v":""},{"$f":"IF('1. Order'!BA219=\"\",\"\",'1. Order'!BA219)","v":""},{"$f":"IF('1. Order'!BC219=\"\",\"\",'1. Order'!BC219)","v":""},{"$f":"IF('1. Order'!BD219=\"\",\"\",'1. Order'!BD219)","v":6},{"$f":"IF('1. Order'!BE219=\"\",\"\",'1. Order'!BE219)","v":"None"},{"$f":"IF('1. Order'!BF219=\"\",\"\",'1. Order'!BF219)","v":"Parcel"},{"$f":"IF('1. Order'!BG219=\"\",\"\",'1. Order'!BG219)","v":"ZWO"}]
[{"$f":"IF('1. Order'!F220=\"\",\"\",'1. Order'!F220)","v":""},{"$f":"IF('1. Order'!G220=\"\",\"\",'1. Order'!G220)","v":""},{"$f":"IF('1. Order'!H220=\"\",\"\",'1. Order'!H220)","v":""},{"$f":"IF('1. Order'!I220=\"\",\"\",'1. Order'!I220)","v":""},{"$f":"IF('1. Order'!J220=\"\",\"\",'1. Order'!J220)","v":""},{"$f":"IF('1. Order'!K220=\"\",\"\",'1. Order'!K220)","v":""},{"$f":"IF('1. Order'!L220=\"\",\"\",'1. Order'!L220)","v":""},{"$f":"IF('1. Order'!M220=\"\",\"\",'1. Order'!M220)","v":""},{"$f":"IF('1. Order'!N220=\"\",\"\",'1. Order'!N220)","v":""},{"$f":"IF('1. Order'!O220=\"\",\"\",'1. Order'!O220)","v":{"$error":"#N/A"}},{"$f":"IF('1. Order'!P220=\"\",\"\",'1. Order'!P220)","v":{"$error":"#N/A"}},{"$f":"IF('1. Order'!Q220=\"\",\"\",'1. Order'!Q220)","v":""},{"$f":"IF('1. Order'!R220=\"\",\"\",'1. Order'!R220)","v":""},{"$f":"IF('1. Order'!S220=\"\",\"\",'1. Order'!S220)","v":""},{"$f":"IF('1. Order'!V220=\"\",\"\",'1. Order'!V220)","v":""},{"$f":"IF('1. Order'!W220=\"\",\"\",'1. Order'!W220)","v":""},{"$f":"IF('1. Order'!X220=\"\",\"\",'1. Order'!X220)","v":"EUR"},{"$f":"IF('1. Order'!Y220=\"\",\"\",'1. Order'!Y220)","v":""},{"$f":"IF('1. Order'!Z220=\"\",\"\",'1. Order'!Z220)","v":""},{"$f":"IF('1. Order'!AA220=\"\",\"\",'1. Order'!AA220)","v":""},null,{"$f":"IF('1. Order'!AS220=\"\",\"\",'1. Order'!AS220)","v":""},{"$f":"IF('1. Order'!AT220=\"\",\"\",'1. Order'!AT220)","v":""},null,null,null,null,null,null,null,{"$f":"IF('1. Order'!AX220=\"\",\"\",'1. Order'!AX220)","v":""},{"$f":"IF('1. Order'!AY220=\"\",\"\",'1. Order'!AY220)","v":""},{"$f":"IF('1. Order'!AZ220=\"\",\"\",'1. Order'!AZ220)","v":""},{"$f":"IF('1. Order'!BA220=\"\",\"\",'1. Order'!BA220)","v":""},{"$f":"IF('1. Order'!BC220=\"\",\"\",'1. Order'!BC220)","v":""},{"$f":"IF('1. Order'!BD220=\"\",\"\",'1. Order'!BD220)","v":6},{"$f":"IF('1. Order'!BE220=\"\",\"\",'1. Order'!BE220)","v":"None"},{"$f":"IF('1. Order'!BF220=\"\",\"\",'1. Order'!BF220)","v":"Parcel"},{"$f":"IF('1. Order'!BG220=\"\",\"\",'1. Order'!BG220)","v":"ZWO"}]
[{"$f":"IF('1. Order'!F221=\"\",\"\",'1. Order'!F221)","v":""},{"$f":"IF('1. Order'!G221=\"\",\"\",'1. Order'!G221)","v":""},{"$f":"IF('1. Order'!H221=\"\",\"\",'1. Order'!H221)","v":""},{"$f":"IF('1. Order'!I221=\"\",\"\",'1. Order'!I221)","v":""},{"$f":"IF('1. Order'!J221=\"\",\"\",'1. Order'!J221)","v":""},{"$f":"IF('1. Order'!K221=\"\",\"\",'1. Order'!K221)","v":""},{"$f":"IF('1. Order'!L221=\"\",\"\",'1. Order'!L221)","v":""},{"$f":"IF('1. Order'!M221=\"\",\"\",'1. Order'!M221)","v":""},{"$f":"IF('1. Order'!N221=\"\",\"\",'1. Order'!N221)","v":""},{"$f":"IF('1. Order'!O221=\"\",\"\",'1. Order'!O221)","v":{"$error":"#N/A"}},{"$f":"IF('1. Order'!P221=\"\",\"\",'1. Order'!P221)","v":{"$error":"#N/A"}},{"$f":"IF('1. Order'!Q221=\"\",\"\",'1. Order'!Q221)","v":""},{"$f":"IF('1. Order'!R221=\"\",\"\",'1. Order'!R221)","v":""},{"$f":"IF('1. Order'!S221=\"\",\"\",'1. Order'!S221)","v":""},{"$f":"IF('1. Order'!V221=\"\",\"\",'1. Order'!V221)","v":""},{"$f":"IF('1. Order'!W221=\"\",\"\",'1. Order'!W221)","v":""},{"$f":"IF('1. Order'!X221=\"\",\"\",'1. Order'!X221)","v":"EUR"},{"$f":"IF('1. Order'!Y221=\"\",\"\",'1. Order'!Y221)","v":""},{"$f":"IF('1. Order'!Z221=\"\",\"\",'1. Order'!Z221)","v":""},{"$f":"IF('1. Order'!AA221=\"\",\"\",'1. Order'!AA221)","v":""},null,{"$f":"IF('1. Order'!AS221=\"\",\"\",'1. Order'!AS221)","v":""},{"$f":"IF('1. Order'!AT221=\"\",\"\",'1. Order'!AT221)","v":""},null,null,null,null,null,null,null,{"$f":"IF('1. Order'!AX221=\"\",\"\",'1. Order'!AX221)","v":""},{"$f":"IF('1. Order'!AY221=\"\",\"\",'1. Order'!AY221)","v":""},{"$f":"IF('1. Order'!AZ221=\"\",\"\",'1. Order'!AZ221)","v":""},{"$f":"IF('1. Order'!BA221=\"\",\"\",'1. Order'!BA221)","v":""},{"$f":"IF('1. Order'!BC221=\"\",\"\",'1. Order'!BC221)","v":""},{"$f":"IF('1. Order'!BD221=\"\",\"\",'1. Order'!BD221)","v":6},{"$f":"IF('1. Order'!BE221=\"\",\"\",'1. Order'!BE221)","v":"None"},{"$f":"IF('1. Order'!BF221=\"\",\"\",'1. Order'!BF221)","v":"Parcel"},{"$f":"IF('1. Order'!BG221=\"\",\"\",'1. Order'!BG221)","v":"ZWO"}]
[{"$f":"IF('1. Order'!F222=\"\",\"\",'1. Order'!F222)","v":""},{"$f":"IF('1. Order'!G222=\"\",\"\",'1. Order'!G222)","v":""},{"$f":"IF('1. Order'!H222=\"\",\"\",'1. Order'!H222)","v":""},{"$f":"IF('1. Order'!I222=\"\",\"\",'1. Order'!I222)","v":""},{"$f":"IF('1. Order'!J222=\"\",\"\",'1. Order'!J222)","v":""},{"$f":"IF('1. Order'!K222=\"\",\"\",'1. Order'!K222)","v":""},{"$f":"IF('1. Order'!L222=\"\",\"\",'1. Order'!L222)","v":""},{"$f":"IF('1. Order'!M222=\"\",\"\",'1. Order'!M222)","v":""},{"$f":"IF('1. Order'!N222=\"\",\"\",'1. Order'!N222)","v":""},{"$f":"IF('1. Order'!O222=\"\",\"\",'1. Order'!O222)","v":{"$error":"#N/A"}},{"$f":"IF('1. Order'!P222=\"\",\"\",'1. Order'!P222)","v":{"$error":"#N/A"}},{"$f":"IF('1. Order'!Q222=\"\",\"\",'1. Order'!Q222)","v":""},{"$f":"IF('1. Order'!R222=\"\",\"\",'1. Order'!R222)","v":""},{"$f":"IF('1. Order'!S222=\"\",\"\",'1. Order'!S222)","v":""},{"$f":"IF('1. Order'!V222=\"\",\"\",'1. Order'!V222)","v":""},{"$f":"IF('1. Order'!W222=\"\",\"\",'1. Order'!W222)","v":""},{"$f":"IF('1. Order'!X222=\"\",\"\",'1. Order'!X222)","v":"EUR"},{"$f":"IF('1. Order'!Y222=\"\",\"\",'1. Order'!Y222)","v":""},{"$f":"IF('1. Order'!Z222=\"\",\"\",'1. Order'!Z222)","v":""},{"$f":"IF('1. Order'!AA222=\"\",\"\",'1. Order'!AA222)","v":""},null,{"$f":"IF('1. Order'!AS222=\"\",\"\",'1. Order'!AS222)","v":""},{"$f":"IF('1. Order'!AT222=\"\",\"\",'1. Order'!AT222)","v":""},null,null,null,null,null,null,null,{"$f":"IF('1. Order'!AX222=\"\",\"\",'1. Order'!AX222)","v":""},{"$f":"IF('1. Order'!AY222=\"\",\"\",'1. Order'!AY222)","v":""},{"$f":"IF('1. Order'!AZ222=\"\",\"\",'1. Order'!AZ222)","v":""},{"$f":"IF('1. Order'!BA222=\"\",\"\",'1. Order'!BA222)","v":""},{"$f":"IF('1. Order'!BC222=\"\",\"\",'1. Order'!BC222)","v":""},{"$f":"IF('1. Order'!BD222=\"\",\"\",'1. Order'!BD222)","v":6},{"$f":"IF('1. Order'!BE222=\"\",\"\",'1. Order'!BE222)","v":"None"},{"$f":"IF('1. Order'!BF222=\"\",\"\",'1. Order'!BF222)","v":"Parcel"},{"$f":"IF('1. Order'!BG222=\"\",\"\",'1. Order'!BG222)","v":"ZWO"}]
[{"$f":"IF('1. Order'!F223=\"\",\"\",'1. Order'!F223)","v":""},{"$f":"IF('1. Order'!G223=\"\",\"\",'1. Order'!G223)","v":""},{"$f":"IF('1. Order'!H223=\"\",\"\",'1. Order'!H223)","v":""},{"$f":"IF('1. Order'!I223=\"\",\"\",'1. Order'!I223)","v":""},{"$f":"IF('1. Order'!J223=\"\",\"\",'1. Order'!J223)","v":""},{"$f":"IF('1. Order'!K223=\"\",\"\",'1. Order'!K223)","v":""},{"$f":"IF('1. Order'!L223=\"\",\"\",'1. Order'!L223)","v":""},{"$f":"IF('1. Order'!M223=\"\",\"\",'1. Order'!M223)","v":""},{"$f":"IF('1. Order'!N223=\"\",\"\",'1. Order'!N223)","v":""},{"$f":"IF('1. Order'!O223=\"\",\"\",'1. Order'!O223)","v":{"$error":"#N/A"}},{"$f":"IF('1. Order'!P223=\"\",\"\",'1. Order'!P223)","v":{"$error":"#N/A"}},{"$f":"IF('1. Order'!Q223=\"\",\"\",'1. Order'!Q223)","v":""},{"$f":"IF('1. Order'!R223=\"\",\"\",'1. Order'!R223)","v":""},{"$f":"IF('1. Order'!S223=\"\",\"\",'1. Order'!S223)","v":""},{"$f":"IF('1. Order'!V223=\"\",\"\",'1. Order'!V223)","v":""},{"$f":"IF('1. Order'!W223=\"\",\"\",'1. Order'!W223)","v":""},{"$f":"IF('1. Order'!X223=\"\",\"\",'1. Order'!X223)","v":"EUR"},{"$f":"IF('1. Order'!Y223=\"\",\"\",'1. Order'!Y223)","v":""},{"$f":"IF('1. Order'!Z223=\"\",\"\",'1. Order'!Z223)","v":""},{"$f":"IF('1. Order'!AA223=\"\",\"\",'1. Order'!AA223)","v":""},null,{"$f":"IF('1. Order'!AS223=\"\",\"\",'1. Order'!AS223)","v":""},{"$f":"IF('1. Order'!AT223=\"\",\"\",'1. Order'!AT223)","v":""},null,null,null,null,null,null,null,{"$f":"IF('1. Order'!AX223=\"\",\"\",'1. Order'!AX223)","v":""},{"$f":"IF('1. Order'!AY223=\"\",\"\",'1. Order'!AY223)","v":""},{"$f":"IF('1. Order'!AZ223=\"\",\"\",'1. Order'!AZ223)","v":""},{"$f":"IF('1. Order'!BA223=\"\",\"\",'1. Order'!BA223)","v":""},{"$f":"IF('1. Order'!BC223=\"\",\"\",'1. Order'!BC223)","v":""},{"$f":"IF('1. Order'!BD223=\"\",\"\",'1. Order'!BD223)","v":6},{"$f":"IF('1. Order'!BE223=\"\",\"\",'1. Order'!BE223)","v":"None"},{"$f":"IF('1. Order'!BF223=\"\",\"\",'1. Order'!BF223)","v":"Parcel"},{"$f":"IF('1. Order'!BG223=\"\",\"\",'1. Order'!BG223)","v":"ZWO"}]
[{"$f":"IF('1. Order'!F224=\"\",\"\",'1. Order'!F224)","v":""},{"$f":"IF('1. Order'!G224=\"\",\"\",'1. Order'!G224)","v":""},{"$f":"IF('1. Order'!H224=\"\",\"\",'1. Order'!H224)","v":""},{"$f":"IF('1. Order'!I224=\"\",\"\",'1. Order'!I224)","v":""},{"$f":"IF('1. Order'!J224=\"\",\"\",'1. Order'!J224)","v":""},{"$f":"IF('1. Order'!K224=\"\",\"\",'1. Order'!K224)","v":""},{"$f":"IF('1. Order'!L224=\"\",\"\",'1. Order'!L224)","v":""},{"$f":"IF('1. Order'!M224=\"\",\"\",'1. Order'!M224)","v":""},{"$f":"IF('1. Order'!N224=\"\",\"\",'1. Order'!N224)","v":""},{"$f":"IF('1. Order'!O224=\"\",\"\",'1. Order'!O224)","v":{"$error":"#N/A"}},{"$f":"IF('1. Order'!P224=\"\",\"\",'1. Order'!P224)","v":{"$error":"#N/A"}},{"$f":"IF('1. Order'!Q224=\"\",\"\",'1. Order'!Q224)","v":""},{"$f":"IF('1. Order'!R224=\"\",\"\",'1. Order'!R224)","v":""},{"$f":"IF('1. Order'!S224=\"\",\"\",'1. Order'!S224)","v":""},{"$f":"IF('1. Order'!V224=\"\",\"\",'1. Order'!V224)","v":""},{"$f":"IF('1. Order'!W224=\"\",\"\",'1. Order'!W224)","v":""},{"$f":"IF('1. Order'!X224=\"\",\"\",'1. Order'!X224)","v":"EUR"},{"$f":"IF('1. Order'!Y224=\"\",\"\",'1. Order'!Y224)","v":""},{"$f":"IF('1. Order'!Z224=\"\",\"\",'1. Order'!Z224)","v":""},{"$f":"IF('1. Order'!AA224=\"\",\"\",'1. Order'!AA224)","v":""},null,{"$f":"IF('1. Order'!AS224=\"\",\"\",'1. Order'!AS224)","v":""},{"$f":"IF('1. Order'!AT224=\"\",\"\",'1. Order'!AT224)","v":""},null,null,null,null,null,null,null,{"$f":"IF('1. Order'!AX224=\"\",\"\",'1. Order'!AX224)","v":""},{"$f":"IF('1. Order'!AY224=\"\",\"\",'1. Order'!AY224)","v":""},{"$f":"IF('1. Order'!AZ224=\"\",\"\",'1. Order'!AZ224)","v":""},{"$f":"IF('1. Order'!BA224=\"\",\"\",'1. Order'!BA224)","v":""},{"$f":"IF('1. Order'!BC224=\"\",\"\",'1. Order'!BC224)","v":""},{"$f":"IF('1. Order'!BD224=\"\",\"\",'1. Order'!BD224)","v":6},{"$f":"IF('1. Order'!BE224=\"\",\"\",'1. Order'!BE224)","v":"None"},{"$f":"IF('1. Order'!BF224=\"\",\"\",'1. Order'!BF224)","v":"Parcel"},{"$f":"IF('1. Order'!BG224=\"\",\"\",'1. Order'!BG224)","v":"ZWO"}]
[{"$f":"IF('1. Order'!F225=\"\",\"\",'1. Order'!F225)","v":""},{"$f":"IF('1. Order'!G225=\"\",\"\",'1. Order'!G225)","v":""},{"$f":"IF('1. Order'!H225=\"\",\"\",'1. Order'!H225)","v":""},{"$f":"IF('1. Order'!I225=\"\",\"\",'1. Order'!I225)","v":""},{"$f":"IF('1. Order'!J225=\"\",\"\",'1. Order'!J225)","v":""},{"$f":"IF('1. Order'!K225=\"\",\"\",'1. Order'!K225)","v":""},{"$f":"IF('1. Order'!L225=\"\",\"\",'1. Order'!L225)","v":""},{"$f":"IF('1. Order'!M225=\"\",\"\",'1. Order'!M225)","v":""},{"$f":"IF('1. Order'!N225=\"\",\"\",'1. Order'!N225)","v":""},{"$f":"IF('1. Order'!O225=\"\",\"\",'1. Order'!O225)","v":{"$error":"#N/A"}},{"$f":"IF('1. Order'!P225=\"\",\"\",'1. Order'!P225)","v":{"$error":"#N/A"}},{"$f":"IF('1. Order'!Q225=\"\",\"\",'1. Order'!Q225)","v":""},{"$f":"IF('1. Order'!R225=\"\",\"\",'1. Order'!R225)","v":""},{"$f":"IF('1. Order'!S225=\"\",\"\",'1. Order'!S225)","v":""},{"$f":"IF('1. Order'!V225=\"\",\"\",'1. Order'!V225)","v":""},{"$f":"IF('1. Order'!W225=\"\",\"\",'1. Order'!W225)","v":""},{"$f":"IF('1. Order'!X225=\"\",\"\",'1. Order'!X225)","v":"EUR"},{"$f":"IF('1. Order'!Y225=\"\",\"\",'1. Order'!Y225)","v":""},{"$f":"IF('1. Order'!Z225=\"\",\"\",'1. Order'!Z225)","v":""},{"$f":"IF('1. Order'!AA225=\"\",\"\",'1. Order'!AA225)","v":""},null,{"$f":"IF('1. Order'!AS225=\"\",\"\",'1. Order'!AS225)","v":""},{"$f":"IF('1. Order'!AT225=\"\",\"\",'1. Order'!AT225)","v":""},null,null,null,null,null,null,null,{"$f":"IF('1. Order'!AX225=\"\",\"\",'1. Order'!AX225)","v":""},{"$f":"IF('1. Order'!AY225=\"\",\"\",'1. Order'!AY225)","v":""},{"$f":"IF('1. Order'!AZ225=\"\",\"\",'1. Order'!AZ225)","v":""},{"$f":"IF('1. Order'!BA225=\"\",\"\",'1. Order'!BA225)","v":""},{"$f":"IF('1. Order'!BC225=\"\",\"\",'1. Order'!BC225)","v":""},{"$f":"IF('1. Order'!BD225=\"\",\"\",'1. Order'!BD225)","v":6},{"$f":"IF('1. Order'!BE225=\"\",\"\",'1. Order'!BE225)","v":"None"},{"$f":"IF('1. Order'!BF225=\"\",\"\",'1. Order'!BF225)","v":"Parcel"},{"$f":"IF('1. Order'!BG225=\"\",\"\",'1. Order'!BG225)","v":"ZWO"}]
[{"$f":"IF('1. Order'!F226=\"\",\"\",'1. Order'!F226)","v":""},{"$f":"IF('1. Order'!G226=\"\",\"\",'1. Order'!G226)","v":""},{"$f":"IF('1. Order'!H226=\"\",\"\",'1. Order'!H226)","v":""},{"$f":"IF('1. Order'!I226=\"\",\"\",'1. Order'!I226)","v":""},{"$f":"IF('1. Order'!J226=\"\",\"\",'1. Order'!J226)","v":""},{"$f":"IF('1. Order'!K226=\"\",\"\",'1. Order'!K226)","v":""},{"$f":"IF('1. Order'!L226=\"\",\"\",'1. Order'!L226)","v":""},{"$f":"IF('1. Order'!M226=\"\",\"\",'1. Order'!M226)","v":""},{"$f":"IF('1. Order'!N226=\"\",\"\",'1. Order'!N226)","v":""},{"$f":"IF('1. Order'!O226=\"\",\"\",'1. Order'!O226)","v":{"$error":"#N/A"}},{"$f":"IF('1. Order'!P226=\"\",\"\",'1. Order'!P226)","v":{"$error":"#N/A"}},{"$f":"IF('1. Order'!Q226=\"\",\"\",'1. Order'!Q226)","v":""},{"$f":"IF('1. Order'!R226=\"\",\"\",'1. Order'!R226)","v":""},{"$f":"IF('1. Order'!S226=\"\",\"\",'1. Order'!S226)","v":""},{"$f":"IF('1. Order'!V226=\"\",\"\",'1. Order'!V226)","v":""},{"$f":"IF('1. Order'!W226=\"\",\"\",'1. Order'!W226)","v":""},{"$f":"IF('1. Order'!X226=\"\",\"\",'1. Order'!X226)","v":"EUR"},{"$f":"IF('1. Order'!Y226=\"\",\"\",'1. Order'!Y226)","v":""},{"$f":"IF('1. Order'!Z226=\"\",\"\",'1. Order'!Z226)","v":""},{"$f":"IF('1. Order'!AA226=\"\",\"\",'1. Order'!AA226)","v":""},null,{"$f":"IF('1. Order'!AS226=\"\",\"\",'1. Order'!AS226)","v":""},{"$f":"IF('1. Order'!AT226=\"\",\"\",'1. Order'!AT226)","v":""},null,null,null,null,null,null,null,{"$f":"IF('1. Order'!AX226=\"\",\"\",'1. Order'!AX226)","v":""},{"$f":"IF('1. Order'!AY226=\"\",\"\",'1. Order'!AY226)","v":""},{"$f":"IF('1. Order'!AZ226=\"\",\"\",'1. Order'!AZ226)","v":""},{"$f":"IF('1. Order'!BA226=\"\",\"\",'1. Order'!BA226)","v":""},{"$f":"IF('1. Order'!BC226=\"\",\"\",'1. Order'!BC226)","v":""},{"$f":"IF('1. Order'!BD226=\"\",\"\",'1. Order'!BD226)","v":6},{"$f":"IF('1. Order'!BE226=\"\",\"\",'1. Order'!BE226)","v":"None"},{"$f":"IF('1. Order'!BF226=\"\",\"\",'1. Order'!BF226)","v":"Parcel"},{"$f":"IF('1. Order'!BG226=\"\",\"\",'1. Order'!BG226)","v":"ZWO"}]
[{"$f":"IF('1. Order'!F227=\"\",\"\",'1. Order'!F227)","v":""},{"$f":"IF('1. Order'!G227=\"\",\"\",'1. Order'!G227)","v":""},{"$f":"IF('1. Order'!H227=\"\",\"\",'1. Order'!H227)","v":""},{"$f":"IF('1. Order'!I227=\"\",\"\",'1. Order'!I227)","v":""},{"$f":"IF('1. Order'!J227=\"\",\"\",'1. Order'!J227)","v":""},{"$f":"IF('1. Order'!K227=\"\",\"\",'1. Order'!K227)","v":""},{"$f":"IF('1. Order'!L227=\"\",\"\",'1. Order'!L227)","v":""},{"$f":"IF('1. Order'!M227=\"\",\"\",'1. Order'!M227)","v":""},{"$f":"IF('1. Order'!N227=\"\",\"\",'1. Order'!N227)","v":""},{"$f":"IF('1. Order'!O227=\"\",\"\",'1. Order'!O227)","v":{"$error":"#N/A"}},{"$f":"IF('1. Order'!P227=\"\",\"\",'1. Order'!P227)","v":{"$error":"#N/A"}},{"$f":"IF('1. Order'!Q227=\"\",\"\",'1. Order'!Q227)","v":""},{"$f":"IF('1. Order'!R227=\"\",\"\",'1. Order'!R227)","v":""},{"$f":"IF('1. Order'!S227=\"\",\"\",'1. Order'!S227)","v":""},{"$f":"IF('1. Order'!V227=\"\",\"\",'1. Order'!V227)","v":""},{"$f":"IF('1. Order'!W227=\"\",\"\",'1. Order'!W227)","v":""},{"$f":"IF('1. Order'!X227=\"\",\"\",'1. Order'!X227)","v":"EUR"},{"$f":"IF('1. Order'!Y227=\"\",\"\",'1. Order'!Y227)","v":""},{"$f":"IF('1. Order'!Z227=\"\",\"\",'1. Order'!Z227)","v":""},{"$f":"IF('1. Order'!AA227=\"\",\"\",'1. Order'!AA227)","v":""},null,{"$f":"IF('1. Order'!AS227=\"\",\"\",'1. Order'!AS227)","v":""},{"$f":"IF('1. Order'!AT227=\"\",\"\",'1. Order'!AT227)","v":""},null,null,null,null,null,null,null,{"$f":"IF('1. Order'!AX227=\"\",\"\",'1. Order'!AX227)","v":""},{"$f":"IF('1. Order'!AY227=\"\",\"\",'1. Order'!AY227)","v":""},{"$f":"IF('1. Order'!AZ227=\"\",\"\",'1. Order'!AZ227)","v":""},{"$f":"IF('1. Order'!BA227=\"\",\"\",'1. Order'!BA227)","v":""},{"$f":"IF('1. Order'!BC227=\"\",\"\",'1. Order'!BC227)","v":""},{"$f":"IF('1. Order'!BD227=\"\",\"\",'1. Order'!BD227)","v":6},{"$f":"IF('1. Order'!BE227=\"\",\"\",'1. Order'!BE227)","v":"None"},{"$f":"IF('1. Order'!BF227=\"\",\"\",'1. Order'!BF227)","v":"Parcel"},{"$f":"IF('1. Order'!BG227=\"\",\"\",'1. Order'!BG227)","v":"ZWO"}]
[{"$f":"IF('1. Order'!F228=\"\",\"\",'1. Order'!F228)","v":""},{"$f":"IF('1. Order'!G228=\"\",\"\",'1. Order'!G228)","v":""},{"$f":"IF('1. Order'!H228=\"\",\"\",'1. Order'!H228)","v":""},{"$f":"IF('1. Order'!I228=\"\",\"\",'1. Order'!I228)","v":""},{"$f":"IF('1. Order'!J228=\"\",\"\",'1. Order'!J228)","v":""},{"$f":"IF('1. Order'!K228=\"\",\"\",'1. Order'!K228)","v":""},{"$f":"IF('1. Order'!L228=\"\",\"\",'1. Order'!L228)","v":""},{"$f":"IF('1. Order'!M228=\"\",\"\",'1. Order'!M228)","v":""},{"$f":"IF('1. Order'!N228=\"\",\"\",'1. Order'!N228)","v":""},{"$f":"IF('1. Order'!O228=\"\",\"\",'1. Order'!O228)","v":{"$error":"#N/A"}},{"$f":"IF('1. Order'!P228=\"\",\"\",'1. Order'!P228)","v":{"$error":"#N/A"}},{"$f":"IF('1. Order'!Q228=\"\",\"\",'1. Order'!Q228)","v":""},{"$f":"IF('1. Order'!R228=\"\",\"\",'1. Order'!R228)","v":""},{"$f":"IF('1. Order'!S228=\"\",\"\",'1. Order'!S228)","v":""},{"$f":"IF('1. Order'!V228=\"\",\"\",'1. Order'!V228)","v":""},{"$f":"IF('1. Order'!W228=\"\",\"\",'1. Order'!W228)","v":""},{"$f":"IF('1. Order'!X228=\"\",\"\",'1. Order'!X228)","v":"EUR"},{"$f":"IF('1. Order'!Y228=\"\",\"\",'1. Order'!Y228)","v":""},{"$f":"IF('1. Order'!Z228=\"\",\"\",'1. Order'!Z228)","v":""},{"$f":"IF('1. Order'!AA228=\"\",\"\",'1. Order'!AA228)","v":""},null,{"$f":"IF('1. Order'!AS228=\"\",\"\",'1. Order'!AS228)","v":""},{"$f":"IF('1. Order'!AT228=\"\",\"\",'1. Order'!AT228)","v":""},null,null,null,null,null,null,null,{"$f":"IF('1. Order'!AX228=\"\",\"\",'1. Order'!AX228)","v":""},{"$f":"IF('1. Order'!AY228=\"\",\"\",'1. Order'!AY228)","v":""},{"$f":"IF('1. Order'!AZ228=\"\",\"\",'1. Order'!AZ228)","v":""},{"$f":"IF('1. Order'!BA228=\"\",\"\",'1. Order'!BA228)","v":""},{"$f":"IF('1. Order'!BC228=\"\",\"\",'1. Order'!BC228)","v":""},{"$f":"IF('1. Order'!BD228=\"\",\"\",'1. Order'!BD228)","v":6},{"$f":"IF('1. Order'!BE228=\"\",\"\",'1. Order'!BE228)","v":"None"},{"$f":"IF('1. Order'!BF228=\"\",\"\",'1. Order'!BF228)","v":"Parcel"},{"$f":"IF('1. Order'!BG228=\"\",\"\",'1. Order'!BG228)","v":"ZWO"}]
[{"$f":"IF('1. Order'!F229=\"\",\"\",'1. Order'!F229)","v":""},{"$f":"IF('1. Order'!G229=\"\",\"\",'1. Order'!G229)","v":""},{"$f":"IF('1. Order'!H229=\"\",\"\",'1. Order'!H229)","v":""},{"$f":"IF('1. Order'!I229=\"\",\"\",'1. Order'!I229)","v":""},{"$f":"IF('1. Order'!J229=\"\",\"\",'1. Order'!J229)","v":""},{"$f":"IF('1. Order'!K229=\"\",\"\",'1. Order'!K229)","v":""},{"$f":"IF('1. Order'!L229=\"\",\"\",'1. Order'!L229)","v":""},{"$f":"IF('1. Order'!M229=\"\",\"\",'1. Order'!M229)","v":""},{"$f":"IF('1. Order'!N229=\"\",\"\",'1. Order'!N229)","v":""},{"$f":"IF('1. Order'!O229=\"\",\"\",'1. Order'!O229)","v":{"$error":"#N/A"}},{"$f":"IF('1. Order'!P229=\"\",\"\",'1. Order'!P229)","v":{"$error":"#N/A"}},{"$f":"IF('1. Order'!Q229=\"\",\"\",'1. Order'!Q229)","v":""},{"$f":"IF('1. Order'!R229=\"\",\"\",'1. Order'!R229)","v":""},{"$f":"IF('1. Order'!S229=\"\",\"\",'1. Order'!S229)","v":""},{"$f":"IF('1. Order'!V229=\"\",\"\",'1. Order'!V229)","v":""},{"$f":"IF('1. Order'!W229=\"\",\"\",'1. Order'!W229)","v":""},{"$f":"IF('1. Order'!X229=\"\",\"\",'1. Order'!X229)","v":"EUR"},{"$f":"IF('1. Order'!Y229=\"\",\"\",'1. Order'!Y229)","v":""},{"$f":"IF('1. Order'!Z229=\"\",\"\",'1. Order'!Z229)","v":""},{"$f":"IF('1. Order'!AA229=\"\",\"\",'1. Order'!AA229)","v":""},null,{"$f":"IF('1. Order'!AS229=\"\",\"\",'1. Order'!AS229)","v":""},{"$f":"IF('1. Order'!AT229=\"\",\"\",'1. Order'!AT229)","v":""},null,null,null,null,null,null,null,{"$f":"IF('1. Order'!AX229=\"\",\"\",'1. Order'!AX229)","v":""},{"$f":"IF('1. Order'!AY229=\"\",\"\",'1. Order'!AY229)","v":""},{"$f":"IF('1. Order'!AZ229=\"\",\"\",'1. Order'!AZ229)","v":""},{"$f":"IF('1. Order'!BA229=\"\",\"\",'1. Order'!BA229)","v":""},{"$f":"IF('1. Order'!BC229=\"\",\"\",'1. Order'!BC229)","v":""},{"$f":"IF('1. Order'!BD229=\"\",\"\",'1. Order'!BD229)","v":6},{"$f":"IF('1. Order'!BE229=\"\",\"\",'1. Order'!BE229)","v":"None"},{"$f":"IF('1. Order'!BF229=\"\",\"\",'1. Order'!BF229)","v":"Parcel"},{"$f":"IF('1. Order'!BG229=\"\",\"\",'1. Order'!BG229)","v":"ZWO"}]
[{"$f":"IF('1. Order'!F230=\"\",\"\",'1. Order'!F230)","v":""},{"$f":"IF('1. Order'!G230=\"\",\"\",'1. Order'!G230)","v":""},{"$f":"IF('1. Order'!H230=\"\",\"\",'1. Order'!H230)","v":""},{"$f":"IF('1. Order'!I230=\"\",\"\",'1. Order'!I230)","v":""},{"$f":"IF('1. Order'!J230=\"\",\"\",'1. Order'!J230)","v":""},{"$f":"IF('1. Order'!K230=\"\",\"\",'1. Order'!K230)","v":""},{"$f":"IF('1. Order'!L230=\"\",\"\",'1. Order'!L230)","v":""},{"$f":"IF('1. Order'!M230=\"\",\"\",'1. Order'!M230)","v":""},{"$f":"IF('1. Order'!N230=\"\",\"\",'1. Order'!N230)","v":""},{"$f":"IF('1. Order'!O230=\"\",\"\",'1. Order'!O230)","v":{"$error":"#N/A"}},{"$f":"IF('1. Order'!P230=\"\",\"\",'1. Order'!P230)","v":{"$error":"#N/A"}},{"$f":"IF('1. Order'!Q230=\"\",\"\",'1. Order'!Q230)","v":""},{"$f":"IF('1. Order'!R230=\"\",\"\",'1. Order'!R230)","v":""},{"$f":"IF('1. Order'!S230=\"\",\"\",'1. Order'!S230)","v":""},{"$f":"IF('1. Order'!V230=\"\",\"\",'1. Order'!V230)","v":""},{"$f":"IF('1. Order'!W230=\"\",\"\",'1. Order'!W230)","v":""},{"$f":"IF('1. Order'!X230=\"\",\"\",'1. Order'!X230)","v":"EUR"},{"$f":"IF('1. Order'!Y230=\"\",\"\",'1. Order'!Y230)","v":""},{"$f":"IF('1. Order'!Z230=\"\",\"\",'1. Order'!Z230)","v":""},{"$f":"IF('1. Order'!AA230=\"\",\"\",'1. Order'!AA230)","v":""},null,{"$f":"IF('1. Order'!AS230=\"\",\"\",'1. Order'!AS230)","v":""},{"$f":"IF('1. Order'!AT230=\"\",\"\",'1. Order'!AT230)","v":""},null,null,null,null,null,null,null,{"$f":"IF('1. Order'!AX230=\"\",\"\",'1. Order'!AX230)","v":""},{"$f":"IF('1. Order'!AY230=\"\",\"\",'1. Order'!AY230)","v":""},{"$f":"IF('1. Order'!AZ230=\"\",\"\",'1. Order'!AZ230)","v":""},{"$f":"IF('1. Order'!BA230=\"\",\"\",'1. Order'!BA230)","v":""},{"$f":"IF('1. Order'!BC230=\"\",\"\",'1. Order'!BC230)","v":""},{"$f":"IF('1. Order'!BD230=\"\",\"\",'1. Order'!BD230)","v":6},{"$f":"IF('1. Order'!BE230=\"\",\"\",'1. Order'!BE230)","v":"None"},{"$f":"IF('1. Order'!BF230=\"\",\"\",'1. Order'!BF230)","v":"Parcel"},{"$f":"IF('1. Order'!BG230=\"\",\"\",'1. Order'!BG230)","v":"ZWO"}]
[{"$f":"IF('1. Order'!F231=\"\",\"\",'1. Order'!F231)","v":""},{"$f":"IF('1. Order'!G231=\"\",\"\",'1. Order'!G231)","v":""},{"$f":"IF('1. Order'!H231=\"\",\"\",'1. Order'!H231)","v":""},{"$f":"IF('1. Order'!I231=\"\",\"\",'1. Order'!I231)","v":""},{"$f":"IF('1. Order'!J231=\"\",\"\",'1. Order'!J231)","v":""},{"$f":"IF('1. Order'!K231=\"\",\"\",'1. Order'!K231)","v":""},{"$f":"IF('1. Order'!L231=\"\",\"\",'1. Order'!L231)","v":""},{"$f":"IF('1. Order'!M231=\"\",\"\",'1. Order'!M231)","v":""},{"$f":"IF('1. Order'!N231=\"\",\"\",'1. Order'!N231)","v":""},{"$f":"IF('1. Order'!O231=\"\",\"\",'1. Order'!O231)","v":{"$error":"#N/A"}},{"$f":"IF('1. Order'!P231=\"\",\"\",'1. Order'!P231)","v":{"$error":"#N/A"}},{"$f":"IF('1. Order'!Q231=\"\",\"\",'1. Order'!Q231)","v":""},{"$f":"IF('1. Order'!R231=\"\",\"\",'1. Order'!R231)","v":""},{"$f":"IF('1. Order'!S231=\"\",\"\",'1. Order'!S231)","v":""},{"$f":"IF('1. Order'!V231=\"\",\"\",'1. Order'!V231)","v":""},{"$f":"IF('1. Order'!W231=\"\",\"\",'1. Order'!W231)","v":""},{"$f":"IF('1. Order'!X231=\"\",\"\",'1. Order'!X231)","v":"EUR"},{"$f":"IF('1. Order'!Y231=\"\",\"\",'1. Order'!Y231)","v":""},{"$f":"IF('1. Order'!Z231=\"\",\"\",'1. Order'!Z231)","v":""},{"$f":"IF('1. Order'!AA231=\"\",\"\",'1. Order'!AA231)","v":""},null,{"$f":"IF('1. Order'!AS231=\"\",\"\",'1. Order'!AS231)","v":""},{"$f":"IF('1. Order'!AT231=\"\",\"\",'1. Order'!AT231)","v":""},null,null,null,null,null,null,null,{"$f":"IF('1. Order'!AX231=\"\",\"\",'1. Order'!AX231)","v":""},{"$f":"IF('1. Order'!AY231=\"\",\"\",'1. Order'!AY231)","v":""},{"$f":"IF('1. Order'!AZ231=\"\",\"\",'1. Order'!AZ231)","v":""},{"$f":"IF('1. Order'!BA231=\"\",\"\",'1. Order'!BA231)","v":""},{"$f":"IF('1. Order'!BC231=\"\",\"\",'1. Order'!BC231)","v":""},{"$f":"IF('1. Order'!BD231=\"\",\"\",'1. Order'!BD231)","v":6},{"$f":"IF('1. Order'!BE231=\"\",\"\",'1. Order'!BE231)","v":"None"},{"$f":"IF('1. Order'!BF231=\"\",\"\",'1. Order'!BF231)","v":"Parcel"},{"$f":"IF('1. Order'!BG231=\"\",\"\",'1. Order'!BG231)","v":"ZWO"}]
[{"$f":"IF('1. Order'!F232=\"\",\"\",'1. Order'!F232)","v":""},{"$f":"IF('1. Order'!G232=\"\",\"\",'1. Order'!G232)","v":""},{"$f":"IF('1. Order'!H232=\"\",\"\",'1. Order'!H232)","v":""},{"$f":"IF('1. Order'!I232=\"\",\"\",'1. Order'!I232)","v":""},{"$f":"IF('1. Order'!J232=\"\",\"\",'1. Order'!J232)","v":""},{"$f":"IF('1. Order'!K232=\"\",\"\",'1. Order'!K232)","v":""},{"$f":"IF('1. Order'!L232=\"\",\"\",'1. Order'!L232)","v":""},{"$f":"IF('1. Order'!M232=\"\",\"\",'1. Order'!M232)","v":""},{"$f":"IF('1. Order'!N232=\"\",\"\",'1. Order'!N232)","v":""},{"$f":"IF('1. Order'!O232=\"\",\"\",'1. Order'!O232)","v":{"$error":"#N/A"}},{"$f":"IF('1. Order'!P232=\"\",\"\",'1. Order'!P232)","v":{"$error":"#N/A"}},{"$f":"IF('1. Order'!Q232=\"\",\"\",'1. Order'!Q232)","v":""},{"$f":"IF('1. Order'!R232=\"\",\"\",'1. Order'!R232)","v":""},{"$f":"IF('1. Order'!S232=\"\",\"\",'1. Order'!S232)","v":""},{"$f":"IF('1. Order'!V232=\"\",\"\",'1. Order'!V232)","v":""},{"$f":"IF('1. Order'!W232=\"\",\"\",'1. Order'!W232)","v":""},{"$f":"IF('1. Order'!X232=\"\",\"\",'1. Order'!X232)","v":"EUR"},{"$f":"IF('1. Order'!Y232=\"\",\"\",'1. Order'!Y232)","v":""},{"$f":"IF('1. Order'!Z232=\"\",\"\",'1. Order'!Z232)","v":""},{"$f":"IF('1. Order'!AA232=\"\",\"\",'1. Order'!AA232)","v":""},null,{"$f":"IF('1. Order'!AS232=\"\",\"\",'1. Order'!AS232)","v":""},{"$f":"IF('1. Order'!AT232=\"\",\"\",'1. Order'!AT232)","v":""},null,null,null,null,null,null,null,{"$f":"IF('1. Order'!AX232=\"\",\"\",'1. Order'!AX232)","v":""},{"$f":"IF('1. Order'!AY232=\"\",\"\",'1. Order'!AY232)","v":""},{"$f":"IF('1. Order'!AZ232=\"\",\"\",'1. Order'!AZ232)","v":""},{"$f":"IF('1. Order'!BA232=\"\",\"\",'1. Order'!BA232)","v":""},{"$f":"IF('1. Order'!BC232=\"\",\"\",'1. Order'!BC232)","v":""},{"$f":"IF('1. Order'!BD232=\"\",\"\",'1. Order'!BD232)","v":6},{"$f":"IF('1. Order'!BE232=\"\",\"\",'1. Order'!BE232)","v":"None"},{"$f":"IF('1. Order'!BF232=\"\",\"\",'1. Order'!BF232)","v":"Parcel"},{"$f":"IF('1. Order'!BG232=\"\",\"\",'1. Order'!BG232)","v":"ZWO"}]
[{"$f":"IF('1. Order'!F233=\"\",\"\",'1. Order'!F233)","v":""},{"$f":"IF('1. Order'!G233=\"\",\"\",'1. Order'!G233)","v":""},{"$f":"IF('1. Order'!H233=\"\",\"\",'1. Order'!H233)","v":""},{"$f":"IF('1. Order'!I233=\"\",\"\",'1. Order'!I233)","v":""},{"$f":"IF('1. Order'!J233=\"\",\"\",'1. Order'!J233)","v":""},{"$f":"IF('1. Order'!K233=\"\",\"\",'1. Order'!K233)","v":""},{"$f":"IF('1. Order'!L233=\"\",\"\",'1. Order'!L233)","v":""},{"$f":"IF('1. Order'!M233=\"\",\"\",'1. Order'!M233)","v":""},{"$f":"IF('1. Order'!N233=\"\",\"\",'1. Order'!N233)","v":""},{"$f":"IF('1. Order'!O233=\"\",\"\",'1. Order'!O233)","v":{"$error":"#N/A"}},{"$f":"IF('1. Order'!P233=\"\",\"\",'1. Order'!P233)","v":{"$error":"#N/A"}},{"$f":"IF('1. Order'!Q233=\"\",\"\",'1. Order'!Q233)","v":""},{"$f":"IF('1. Order'!R233=\"\",\"\",'1. Order'!R233)","v":""},{"$f":"IF('1. Order'!S233=\"\",\"\",'1. Order'!S233)","v":""},{"$f":"IF('1. Order'!V233=\"\",\"\",'1. Order'!V233)","v":""},{"$f":"IF('1. Order'!W233=\"\",\"\",'1. Order'!W233)","v":""},{"$f":"IF('1. Order'!X233=\"\",\"\",'1. Order'!X233)","v":"EUR"},{"$f":"IF('1. Order'!Y233=\"\",\"\",'1. Order'!Y233)","v":""},{"$f":"IF('1. Order'!Z233=\"\",\"\",'1. Order'!Z233)","v":""},{"$f":"IF('1. Order'!AA233=\"\",\"\",'1. Order'!AA233)","v":""},null,{"$f":"IF('1. Order'!AS233=\"\",\"\",'1. Order'!AS233)","v":""},{"$f":"IF('1. Order'!AT233=\"\",\"\",'1. Order'!AT233)","v":""},null,null,null,null,null,null,null,{"$f":"IF('1. Order'!AX233=\"\",\"\",'1. Order'!AX233)","v":""},{"$f":"IF('1. Order'!AY233=\"\",\"\",'1. Order'!AY233)","v":""},{"$f":"IF('1. Order'!AZ233=\"\",\"\",'1. Order'!AZ233)","v":""},{"$f":"IF('1. Order'!BA233=\"\",\"\",'1. Order'!BA233)","v":""},{"$f":"IF('1. Order'!BC233=\"\",\"\",'1. Order'!BC233)","v":""},{"$f":"IF('1. Order'!BD233=\"\",\"\",'1. Order'!BD233)","v":6},{"$f":"IF('1. Order'!BE233=\"\",\"\",'1. Order'!BE233)","v":"None"},{"$f":"IF('1. Order'!BF233=\"\",\"\",'1. Order'!BF233)","v":"Parcel"},{"$f":"IF('1. Order'!BG233=\"\",\"\",'1. Order'!BG233)","v":"ZWO"}]
[{"$f":"IF('1. Order'!F234=\"\",\"\",'1. Order'!F234)","v":""},{"$f":"IF('1. Order'!G234=\"\",\"\",'1. Order'!G234)","v":""},{"$f":"IF('1. Order'!H234=\"\",\"\",'1. Order'!H234)","v":""},{"$f":"IF('1. Order'!I234=\"\",\"\",'1. Order'!I234)","v":""},{"$f":"IF('1. Order'!J234=\"\",\"\",'1. Order'!J234)","v":""},{"$f":"IF('1. Order'!K234=\"\",\"\",'1. Order'!K234)","v":""},{"$f":"IF('1. Order'!L234=\"\",\"\",'1. Order'!L234)","v":""},{"$f":"IF('1. Order'!M234=\"\",\"\",'1. Order'!M234)","v":""},{"$f":"IF('1. Order'!N234=\"\",\"\",'1. Order'!N234)","v":""},{"$f":"IF('1. Order'!O234=\"\",\"\",'1. Order'!O234)","v":{"$error":"#N/A"}},{"$f":"IF('1. Order'!P234=\"\",\"\",'1. Order'!P234)","v":{"$error":"#N/A"}},{"$f":"IF('1. Order'!Q234=\"\",\"\",'1. Order'!Q234)","v":""},{"$f":"IF('1. Order'!R234=\"\",\"\",'1. Order'!R234)","v":""},{"$f":"IF('1. Order'!S234=\"\",\"\",'1. Order'!S234)","v":""},{"$f":"IF('1. Order'!V234=\"\",\"\",'1. Order'!V234)","v":""},{"$f":"IF('1. Order'!W234=\"\",\"\",'1. Order'!W234)","v":""},{"$f":"IF('1. Order'!X234=\"\",\"\",'1. Order'!X234)","v":"EUR"},{"$f":"IF('1. Order'!Y234=\"\",\"\",'1. Order'!Y234)","v":""},{"$f":"IF('1. Order'!Z234=\"\",\"\",'1. Order'!Z234)","v":""},{"$f":"IF('1. Order'!AA234=\"\",\"\",'1. Order'!AA234)","v":""},null,{"$f":"IF('1. Order'!AS234=\"\",\"\",'1. Order'!AS234)","v":""},{"$f":"IF('1. Order'!AT234=\"\",\"\",'1. Order'!AT234)","v":""},null,null,null,null,null,null,null,{"$f":"IF('1. Order'!AX234=\"\",\"\",'1. Order'!AX234)","v":""},{"$f":"IF('1. Order'!AY234=\"\",\"\",'1. Order'!AY234)","v":""},{"$f":"IF('1. Order'!AZ234=\"\",\"\",'1. Order'!AZ234)","v":""},{"$f":"IF('1. Order'!BA234=\"\",\"\",'1. Order'!BA234)","v":""},{"$f":"IF('1. Order'!BC234=\"\",\"\",'1. Order'!BC234)","v":""},{"$f":"IF('1. Order'!BD234=\"\",\"\",'1. Order'!BD234)","v":6},{"$f":"IF('1. Order'!BE234=\"\",\"\",'1. Order'!BE234)","v":"None"},{"$f":"IF('1. Order'!BF234=\"\",\"\",'1. Order'!BF234)","v":"Parcel"},{"$f":"IF('1. Order'!BG234=\"\",\"\",'1. Order'!BG234)","v":"ZWO"}]
[{"$f":"IF('1. Order'!F235=\"\",\"\",'1. Order'!F235)","v":""},{"$f":"IF('1. Order'!G235=\"\",\"\",'1. Order'!G235)","v":""},{"$f":"IF('1. Order'!H235=\"\",\"\",'1. Order'!H235)","v":""},{"$f":"IF('1. Order'!I235=\"\",\"\",'1. Order'!I235)","v":""},{"$f":"IF('1. Order'!J235=\"\",\"\",'1. Order'!J235)","v":""},{"$f":"IF('1. Order'!K235=\"\",\"\",'1. Order'!K235)","v":""},{"$f":"IF('1. Order'!L235=\"\",\"\",'1. Order'!L235)","v":""},{"$f":"IF('1. Order'!M235=\"\",\"\",'1. Order'!M235)","v":""},{"$f":"IF('1. Order'!N235=\"\",\"\",'1. Order'!N235)","v":""},{"$f":"IF('1. Order'!O235=\"\",\"\",'1. Order'!O235)","v":{"$error":"#N/A"}},{"$f":"IF('1. Order'!P235=\"\",\"\",'1. Order'!P235)","v":{"$error":"#N/A"}},{"$f":"IF('1. Order'!Q235=\"\",\"\",'1. Order'!Q235)","v":""},{"$f":"IF('1. Order'!R235=\"\",\"\",'1. Order'!R235)","v":""},{"$f":"IF('1. Order'!S235=\"\",\"\",'1. Order'!S235)","v":""},{"$f":"IF('1. Order'!V235=\"\",\"\",'1. Order'!V235)","v":""},{"$f":"IF('1. Order'!W235=\"\",\"\",'1. Order'!W235)","v":""},{"$f":"IF('1. Order'!X235=\"\",\"\",'1. Order'!X235)","v":"EUR"},{"$f":"IF('1. Order'!Y235=\"\",\"\",'1. Order'!Y235)","v":""},{"$f":"IF('1. Order'!Z235=\"\",\"\",'1. Order'!Z235)","v":""},{"$f":"IF('1. Order'!AA235=\"\",\"\",'1. Order'!AA235)","v":""},null,{"$f":"IF('1. Order'!AS235=\"\",\"\",'1. Order'!AS235)","v":""},{"$f":"IF('1. Order'!AT235=\"\",\"\",'1. Order'!AT235)","v":""},null,null,null,null,null,null,null,{"$f":"IF('1. Order'!AX235=\"\",\"\",'1. Order'!AX235)","v":""},{"$f":"IF('1. Order'!AY235=\"\",\"\",'1. Order'!AY235)","v":""},{"$f":"IF('1. Order'!AZ235=\"\",\"\",'1. Order'!AZ235)","v":""},{"$f":"IF('1. Order'!BA235=\"\",\"\",'1. Order'!BA235)","v":""},{"$f":"IF('1. Order'!BC235=\"\",\"\",'1. Order'!BC235)","v":""},{"$f":"IF('1. Order'!BD235=\"\",\"\",'1. Order'!BD235)","v":6},{"$f":"IF('1. Order'!BE235=\"\",\"\",'1. Order'!BE235)","v":"None"},{"$f":"IF('1. Order'!BF235=\"\",\"\",'1. Order'!BF235)","v":"Parcel"},{"$f":"IF('1. Order'!BG235=\"\",\"\",'1. Order'!BG235)","v":"ZWO"}]
[{"$f":"IF('1. Order'!F236=\"\",\"\",'1. Order'!F236)","v":""},{"$f":"IF('1. Order'!G236=\"\",\"\",'1. Order'!G236)","v":""},{"$f":"IF('1. Order'!H236=\"\",\"\",'1. Order'!H236)","v":""},{"$f":"IF('1. Order'!I236=\"\",\"\",'1. Order'!I236)","v":""},{"$f":"IF('1. Order'!J236=\"\",\"\",'1. Order'!J236)","v":""},{"$f":"IF('1. Order'!K236=\"\",\"\",'1. Order'!K236)","v":""},{"$f":"IF('1. Order'!L236=\"\",\"\",'1. Order'!L236)","v":""},{"$f":"IF('1. Order'!M236=\"\",\"\",'1. Order'!M236)","v":""},{"$f":"IF('1. Order'!N236=\"\",\"\",'1. Order'!N236)","v":""},{"$f":"IF('1. Order'!O236=\"\",\"\",'1. Order'!O236)","v":{"$error":"#N/A"}},{"$f":"IF('1. Order'!P236=\"\",\"\",'1. Order'!P236)","v":{"$error":"#N/A"}},{"$f":"IF('1. Order'!Q236=\"\",\"\",'1. Order'!Q236)","v":""},{"$f":"IF('1. Order'!R236=\"\",\"\",'1. Order'!R236)","v":""},{"$f":"IF('1. Order'!S236=\"\",\"\",'1. Order'!S236)","v":""},{"$f":"IF('1. Order'!V236=\"\",\"\",'1. Order'!V236)","v":""},{"$f":"IF('1. Order'!W236=\"\",\"\",'1. Order'!W236)","v":""},{"$f":"IF('1. Order'!X236=\"\",\"\",'1. Order'!X236)","v":"EUR"},{"$f":"IF('1. Order'!Y236=\"\",\"\",'1. Order'!Y236)","v":""},{"$f":"IF('1. Order'!Z236=\"\",\"\",'1. Order'!Z236)","v":""},{"$f":"IF('1. Order'!AA236=\"\",\"\",'1. Order'!AA236)","v":""},null,{"$f":"IF('1. Order'!AS236=\"\",\"\",'1. Order'!AS236)","v":""},{"$f":"IF('1. Order'!AT236=\"\",\"\",'1. Order'!AT236)","v":""},null,null,null,null,null,null,null,{"$f":"IF('1. Order'!AX236=\"\",\"\",'1. Order'!AX236)","v":""},{"$f":"IF('1. Order'!AY236=\"\",\"\",'1. Order'!AY236)","v":""},{"$f":"IF('1. Order'!AZ236=\"\",\"\",'1. Order'!AZ236)","v":""},{"$f":"IF('1. Order'!BA236=\"\",\"\",'1. Order'!BA236)","v":""},{"$f":"IF('1. Order'!BC236=\"\",\"\",'1. Order'!BC236)","v":""},{"$f":"IF('1. Order'!BD236=\"\",\"\",'1. Order'!BD236)","v":6},{"$f":"IF('1. Order'!BE236=\"\",\"\",'1. Order'!BE236)","v":"None"},{"$f":"IF('1. Order'!BF236=\"\",\"\",'1. Order'!BF236)","v":"Parcel"},{"$f":"IF('1. Order'!BG236=\"\",\"\",'1. Order'!BG236)","v":"ZWO"}]
[{"$f":"IF('1. Order'!F237=\"\",\"\",'1. Order'!F237)","v":""},{"$f":"IF('1. Order'!G237=\"\",\"\",'1. Order'!G237)","v":""},{"$f":"IF('1. Order'!H237=\"\",\"\",'1. Order'!H237)","v":""},{"$f":"IF('1. Order'!I237=\"\",\"\",'1. Order'!I237)","v":""},{"$f":"IF('1. Order'!J237=\"\",\"\",'1. Order'!J237)","v":""},{"$f":"IF('1. Order'!K237=\"\",\"\",'1. Order'!K237)","v":""},{"$f":"IF('1. Order'!L237=\"\",\"\",'1. Order'!L237)","v":""},{"$f":"IF('1. Order'!M237=\"\",\"\",'1. Order'!M237)","v":""},{"$f":"IF('1. Order'!N237=\"\",\"\",'1. Order'!N237)","v":""},{"$f":"IF('1. Order'!O237=\"\",\"\",'1. Order'!O237)","v":{"$error":"#N/A"}},{"$f":"IF('1. Order'!P237=\"\",\"\",'1. Order'!P237)","v":{"$error":"#N/A"}},{"$f":"IF('1. Order'!Q237=\"\",\"\",'1. Order'!Q237)","v":""},{"$f":"IF('1. Order'!R237=\"\",\"\",'1. Order'!R237)","v":""},{"$f":"IF('1. Order'!S237=\"\",\"\",'1. Order'!S237)","v":""},{"$f":"IF('1. Order'!V237=\"\",\"\",'1. Order'!V237)","v":""},{"$f":"IF('1. Order'!W237=\"\",\"\",'1. Order'!W237)","v":""},{"$f":"IF('1. Order'!X237=\"\",\"\",'1. Order'!X237)","v":"EUR"},{"$f":"IF('1. Order'!Y237=\"\",\"\",'1. Order'!Y237)","v":""},{"$f":"IF('1. Order'!Z237=\"\",\"\",'1. Order'!Z237)","v":""},{"$f":"IF('1. Order'!AA237=\"\",\"\",'1. Order'!AA237)","v":""},null,{"$f":"IF('1. Order'!AS237=\"\",\"\",'1. Order'!AS237)","v":""},{"$f":"IF('1. Order'!AT237=\"\",\"\",'1. Order'!AT237)","v":""},null,null,null,null,null,null,null,{"$f":"IF('1. Order'!AX237=\"\",\"\",'1. Order'!AX237)","v":""},{"$f":"IF('1. Order'!AY237=\"\",\"\",'1. Order'!AY237)","v":""},{"$f":"IF('1. Order'!AZ237=\"\",\"\",'1. Order'!AZ237)","v":""},{"$f":"IF('1. Order'!BA237=\"\",\"\",'1. Order'!BA237)","v":""},{"$f":"IF('1. Order'!BC237=\"\",\"\",'1. Order'!BC237)","v":""},{"$f":"IF('1. Order'!BD237=\"\",\"\",'1. Order'!BD237)","v":6},{"$f":"IF('1. Order'!BE237=\"\",\"\",'1. Order'!BE237)","v":"None"},{"$f":"IF('1. Order'!BF237=\"\",\"\",'1. Order'!BF237)","v":"Parcel"},{"$f":"IF('1. Order'!BG237=\"\",\"\",'1. Order'!BG237)","v":"ZWO"}]
[{"$f":"IF('1. Order'!F238=\"\",\"\",'1. Order'!F238)","v":""},{"$f":"IF('1. Order'!G238=\"\",\"\",'1. Order'!G238)","v":""},{"$f":"IF('1. Order'!H238=\"\",\"\",'1. Order'!H238)","v":""},{"$f":"IF('1. Order'!I238=\"\",\"\",'1. Order'!I238)","v":""},{"$f":"IF('1. Order'!J238=\"\",\"\",'1. Order'!J238)","v":""},{"$f":"IF('1. Order'!K238=\"\",\"\",'1. Order'!K238)","v":""},{"$f":"IF('1. Order'!L238=\"\",\"\",'1. Order'!L238)","v":""},{"$f":"IF('1. Order'!M238=\"\",\"\",'1. Order'!M238)","v":""},{"$f":"IF('1. Order'!N238=\"\",\"\",'1. Order'!N238)","v":""},{"$f":"IF('1. Order'!O238=\"\",\"\",'1. Order'!O238)","v":{"$error":"#N/A"}},{"$f":"IF('1. Order'!P238=\"\",\"\",'1. Order'!P238)","v":{"$error":"#N/A"}},{"$f":"IF('1. Order'!Q238=\"\",\"\",'1. Order'!Q238)","v":""},{"$f":"IF('1. Order'!R238=\"\",\"\",'1. Order'!R238)","v":""},{"$f":"IF('1. Order'!S238=\"\",\"\",'1. Order'!S238)","v":""},{"$f":"IF('1. Order'!V238=\"\",\"\",'1. Order'!V238)","v":""},{"$f":"IF('1. Order'!W238=\"\",\"\",'1. Order'!W238)","v":""},{"$f":"IF('1. Order'!X238=\"\",\"\",'1. Order'!X238)","v":"EUR"},{"$f":"IF('1. Order'!Y238=\"\",\"\",'1. Order'!Y238)","v":""},{"$f":"IF('1. Order'!Z238=\"\",\"\",'1. Order'!Z238)","v":""},{"$f":"IF('1. Order'!AA238=\"\",\"\",'1. Order'!AA238)","v":""},null,{"$f":"IF('1. Order'!AS238=\"\",\"\",'1. Order'!AS238)","v":""},{"$f":"IF('1. Order'!AT238=\"\",\"\",'1. Order'!AT238)","v":""},null,null,null,null,null,null,null,{"$f":"IF('1. Order'!AX238=\"\",\"\",'1. Order'!AX238)","v":""},{"$f":"IF('1. Order'!AY238=\"\",\"\",'1. Order'!AY238)","v":""},{"$f":"IF('1. Order'!AZ238=\"\",\"\",'1. Order'!AZ238)","v":""},{"$f":"IF('1. Order'!BA238=\"\",\"\",'1. Order'!BA238)","v":""},{"$f":"IF('1. Order'!BC238=\"\",\"\",'1. Order'!BC238)","v":""},{"$f":"IF('1. Order'!BD238=\"\",\"\",'1. Order'!BD238)","v":6},{"$f":"IF('1. Order'!BE238=\"\",\"\",'1. Order'!BE238)","v":"None"},{"$f":"IF('1. Order'!BF238=\"\",\"\",'1. Order'!BF238)","v":"Parcel"},{"$f":"IF('1. Order'!BG238=\"\",\"\",'1. Order'!BG238)","v":"ZWO"}]
[{"$f":"IF('1. Order'!F239=\"\",\"\",'1. Order'!F239)","v":""},{"$f":"IF('1. Order'!G239=\"\",\"\",'1. Order'!G239)","v":""},{"$f":"IF('1. Order'!H239=\"\",\"\",'1. Order'!H239)","v":""},{"$f":"IF('1. Order'!I239=\"\",\"\",'1. Order'!I239)","v":""},{"$f":"IF('1. Order'!J239=\"\",\"\",'1. Order'!J239)","v":""},{"$f":"IF('1. Order'!K239=\"\",\"\",'1. Order'!K239)","v":""},{"$f":"IF('1. Order'!L239=\"\",\"\",'1. Order'!L239)","v":""},{"$f":"IF('1. Order'!M239=\"\",\"\",'1. Order'!M239)","v":""},{"$f":"IF('1. Order'!N239=\"\",\"\",'1. Order'!N239)","v":""},{"$f":"IF('1. Order'!O239=\"\",\"\",'1. Order'!O239)","v":{"$error":"#N/A"}},{"$f":"IF('1. Order'!P239=\"\",\"\",'1. Order'!P239)","v":{"$error":"#N/A"}},{"$f":"IF('1. Order'!Q239=\"\",\"\",'1. Order'!Q239)","v":""},{"$f":"IF('1. Order'!R239=\"\",\"\",'1. Order'!R239)","v":""},{"$f":"IF('1. Order'!S239=\"\",\"\",'1. Order'!S239)","v":""},{"$f":"IF('1. Order'!V239=\"\",\"\",'1. Order'!V239)","v":""},{"$f":"IF('1. Order'!W239=\"\",\"\",'1. Order'!W239)","v":""},{"$f":"IF('1. Order'!X239=\"\",\"\",'1. Order'!X239)","v":"EUR"},{"$f":"IF('1. Order'!Y239=\"\",\"\",'1. Order'!Y239)","v":""},{"$f":"IF('1. Order'!Z239=\"\",\"\",'1. Order'!Z239)","v":""},{"$f":"IF('1. Order'!AA239=\"\",\"\",'1. Order'!AA239)","v":""},null,{"$f":"IF('1. Order'!AS239=\"\",\"\",'1. Order'!AS239)","v":""},{"$f":"IF('1. Order'!AT239=\"\",\"\",'1. Order'!AT239)","v":""},null,null,null,null,null,null,null,{"$f":"IF('1. Order'!AX239=\"\",\"\",'1. Order'!AX239)","v":""},{"$f":"IF('1. Order'!AY239=\"\",\"\",'1. Order'!AY239)","v":""},{"$f":"IF('1. Order'!AZ239=\"\",\"\",'1. Order'!AZ239)","v":""},{"$f":"IF('1. Order'!BA239=\"\",\"\",'1. Order'!BA239)","v":""},{"$f":"IF('1. Order'!BC239=\"\",\"\",'1. Order'!BC239)","v":""},{"$f":"IF('1. Order'!BD239=\"\",\"\",'1. Order'!BD239)","v":6},{"$f":"IF('1. Order'!BE239=\"\",\"\",'1. Order'!BE239)","v":"None"},{"$f":"IF('1. Order'!BF239=\"\",\"\",'1. Order'!BF239)","v":"Parcel"},{"$f":"IF('1. Order'!BG239=\"\",\"\",'1. Order'!BG239)","v":"ZWO"}]
[{"$f":"IF('1. Order'!F240=\"\",\"\",'1. Order'!F240)","v":""},{"$f":"IF('1. Order'!G240=\"\",\"\",'1. Order'!G240)","v":""},{"$f":"IF('1. Order'!H240=\"\",\"\",'1. Order'!H240)","v":""},{"$f":"IF('1. Order'!I240=\"\",\"\",'1. Order'!I240)","v":""},{"$f":"IF('1. Order'!J240=\"\",\"\",'1. Order'!J240)","v":""},{"$f":"IF('1. Order'!K240=\"\",\"\",'1. Order'!K240)","v":""},{"$f":"IF('1. Order'!L240=\"\",\"\",'1. Order'!L240)","v":""},{"$f":"IF('1. Order'!M240=\"\",\"\",'1. Order'!M240)","v":""},{"$f":"IF('1. Order'!N240=\"\",\"\",'1. Order'!N240)","v":""},{"$f":"IF('1. Order'!O240=\"\",\"\",'1. Order'!O240)","v":{"$error":"#N/A"}},{"$f":"IF('1. Order'!P240=\"\",\"\",'1. Order'!P240)","v":{"$error":"#N/A"}},{"$f":"IF('1. Order'!Q240=\"\",\"\",'1. Order'!Q240)","v":""},{"$f":"IF('1. Order'!R240=\"\",\"\",'1. Order'!R240)","v":""},{"$f":"IF('1. Order'!S240=\"\",\"\",'1. Order'!S240)","v":""},{"$f":"IF('1. Order'!V240=\"\",\"\",'1. Order'!V240)","v":""},{"$f":"IF('1. Order'!W240=\"\",\"\",'1. Order'!W240)","v":""},{"$f":"IF('1. Order'!X240=\"\",\"\",'1. Order'!X240)","v":"EUR"},{"$f":"IF('1. Order'!Y240=\"\",\"\",'1. Order'!Y240)","v":""},{"$f":"IF('1. Order'!Z240=\"\",\"\",'1. Order'!Z240)","v":""},{"$f":"IF('1. Order'!AA240=\"\",\"\",'1. Order'!AA240)","v":""},null,{"$f":"IF('1. Order'!AS240=\"\",\"\",'1. Order'!AS240)","v":""},{"$f":"IF('1. Order'!AT240=\"\",\"\",'1. Order'!AT240)","v":""},null,null,null,null,null,null,null,{"$f":"IF('1. Order'!AX240=\"\",\"\",'1. Order'!AX240)","v":""},{"$f":"IF('1. Order'!AY240=\"\",\"\",'1. Order'!AY240)","v":""},{"$f":"IF('1. Order'!AZ240=\"\",\"\",'1. Order'!AZ240)","v":""},{"$f":"IF('1. Order'!BA240=\"\",\"\",'1. Order'!BA240)","v":""},{"$f":"IF('1. Order'!BC240=\"\",\"\",'1. Order'!BC240)","v":""},{"$f":"IF('1. Order'!BD240=\"\",\"\",'1. Order'!BD240)","v":6},{"$f":"IF('1. Order'!BE240=\"\",\"\",'1. Order'!BE240)","v":"None"},{"$f":"IF('1. Order'!BF240=\"\",\"\",'1. Order'!BF240)","v":"Parcel"},{"$f":"IF('1. Order'!BG240=\"\",\"\",'1. Order'!BG240)","v":"ZWO"}]
[{"$f":"IF('1. Order'!F241=\"\",\"\",'1. Order'!F241)","v":""},{"$f":"IF('1. Order'!G241=\"\",\"\",'1. Order'!G241)","v":""},{"$f":"IF('1. Order'!H241=\"\",\"\",'1. Order'!H241)","v":""},{"$f":"IF('1. Order'!I241=\"\",\"\",'1. Order'!I241)","v":""},{"$f":"IF('1. Order'!J241=\"\",\"\",'1. Order'!J241)","v":""},{"$f":"IF('1. Order'!K241=\"\",\"\",'1. Order'!K241)","v":""},{"$f":"IF('1. Order'!L241=\"\",\"\",'1. Order'!L241)","v":""},{"$f":"IF('1. Order'!M241=\"\",\"\",'1. Order'!M241)","v":""},{"$f":"IF('1. Order'!N241=\"\",\"\",'1. Order'!N241)","v":""},{"$f":"IF('1. Order'!O241=\"\",\"\",'1. Order'!O241)","v":{"$error":"#N/A"}},{"$f":"IF('1. Order'!P241=\"\",\"\",'1. Order'!P241)","v":{"$error":"#N/A"}},{"$f":"IF('1. Order'!Q241=\"\",\"\",'1. Order'!Q241)","v":""},{"$f":"IF('1. Order'!R241=\"\",\"\",'1. Order'!R241)","v":""},{"$f":"IF('1. Order'!S241=\"\",\"\",'1. Order'!S241)","v":""},{"$f":"IF('1. Order'!V241=\"\",\"\",'1. Order'!V241)","v":""},{"$f":"IF('1. Order'!W241=\"\",\"\",'1. Order'!W241)","v":""},{"$f":"IF('1. Order'!X241=\"\",\"\",'1. Order'!X241)","v":"EUR"},{"$f":"IF('1. Order'!Y241=\"\",\"\",'1. Order'!Y241)","v":""},{"$f":"IF('1. Order'!Z241=\"\",\"\",'1. Order'!Z241)","v":""},{"$f":"IF('1. Order'!AA241=\"\",\"\",'1. Order'!AA241)","v":""},null,{"$f":"IF('1. Order'!AS241=\"\",\"\",'1. Order'!AS241)","v":""},{"$f":"IF('1. Order'!AT241=\"\",\"\",'1. Order'!AT241)","v":""},null,null,null,null,null,null,null,{"$f":"IF('1. Order'!AX241=\"\",\"\",'1. Order'!AX241)","v":""},{"$f":"IF('1. Order'!AY241=\"\",\"\",'1. Order'!AY241)","v":""},{"$f":"IF('1. Order'!AZ241=\"\",\"\",'1. Order'!AZ241)","v":""},{"$f":"IF('1. Order'!BA241=\"\",\"\",'1. Order'!BA241)","v":""},{"$f":"IF('1. Order'!BC241=\"\",\"\",'1. Order'!BC241)","v":""},{"$f":"IF('1. Order'!BD241=\"\",\"\",'1. Order'!BD241)","v":6},{"$f":"IF('1. Order'!BE241=\"\",\"\",'1. Order'!BE241)","v":"None"},{"$f":"IF('1. Order'!BF241=\"\",\"\",'1. Order'!BF241)","v":"Parcel"},{"$f":"IF('1. Order'!BG241=\"\",\"\",'1. Order'!BG241)","v":"ZWO"}]
[{"$f":"IF('1. Order'!F242=\"\",\"\",'1. Order'!F242)","v":""},{"$f":"IF('1. Order'!G242=\"\",\"\",'1. Order'!G242)","v":""},{"$f":"IF('1. Order'!H242=\"\",\"\",'1. Order'!H242)","v":""},{"$f":"IF('1. Order'!I242=\"\",\"\",'1. Order'!I242)","v":""},{"$f":"IF('1. Order'!J242=\"\",\"\",'1. Order'!J242)","v":""},{"$f":"IF('1. Order'!K242=\"\",\"\",'1. Order'!K242)","v":""},{"$f":"IF('1. Order'!L242=\"\",\"\",'1. Order'!L242)","v":""},{"$f":"IF('1. Order'!M242=\"\",\"\",'1. Order'!M242)","v":""},{"$f":"IF('1. Order'!N242=\"\",\"\",'1. Order'!N242)","v":""},{"$f":"IF('1. Order'!O242=\"\",\"\",'1. Order'!O242)","v":{"$error":"#N/A"}},{"$f":"IF('1. Order'!P242=\"\",\"\",'1. Order'!P242)","v":{"$error":"#N/A"}},{"$f":"IF('1. Order'!Q242=\"\",\"\",'1. Order'!Q242)","v":""},{"$f":"IF('1. Order'!R242=\"\",\"\",'1. Order'!R242)","v":""},{"$f":"IF('1. Order'!S242=\"\",\"\",'1. Order'!S242)","v":""},{"$f":"IF('1. Order'!V242=\"\",\"\",'1. Order'!V242)","v":""},{"$f":"IF('1. Order'!W242=\"\",\"\",'1. Order'!W242)","v":""},{"$f":"IF('1. Order'!X242=\"\",\"\",'1. Order'!X242)","v":"EUR"},{"$f":"IF('1. Order'!Y242=\"\",\"\",'1. Order'!Y242)","v":""},{"$f":"IF('1. Order'!Z242=\"\",\"\",'1. Order'!Z242)","v":""},{"$f":"IF('1. Order'!AA242=\"\",\"\",'1. Order'!AA242)","v":""},null,{"$f":"IF('1. Order'!AS242=\"\",\"\",'1. Order'!AS242)","v":""},{"$f":"IF('1. Order'!AT242=\"\",\"\",'1. Order'!AT242)","v":""},null,null,null,null,null,null,null,{"$f":"IF('1. Order'!AX242=\"\",\"\",'1. Order'!AX242)","v":""},{"$f":"IF('1. Order'!AY242=\"\",\"\",'1. Order'!AY242)","v":""},{"$f":"IF('1. Order'!AZ242=\"\",\"\",'1. Order'!AZ242)","v":""},{"$f":"IF('1. Order'!BA242=\"\",\"\",'1. Order'!BA242)","v":""},{"$f":"IF('1. Order'!BC242=\"\",\"\",'1. Order'!BC242)","v":""},{"$f":"IF('1. Order'!BD242=\"\",\"\",'1. Order'!BD242)","v":6},{"$f":"IF('1. Order'!BE242=\"\",\"\",'1. Order'!BE242)","v":"None"},{"$f":"IF('1. Order'!BF242=\"\",\"\",'1. Order'!BF242)","v":"Parcel"},{"$f":"IF('1. Order'!BG242=\"\",\"\",'1. Order'!BG242)","v":"ZWO"}]
[{"$f":"IF('1. Order'!F243=\"\",\"\",'1. Order'!F243)","v":""},{"$f":"IF('1. Order'!G243=\"\",\"\",'1. Order'!G243)","v":""},{"$f":"IF('1. Order'!H243=\"\",\"\",'1. Order'!H243)","v":""},{"$f":"IF('1. Order'!I243=\"\",\"\",'1. Order'!I243)","v":""},{"$f":"IF('1. Order'!J243=\"\",\"\",'1. Order'!J243)","v":""},{"$f":"IF('1. Order'!K243=\"\",\"\",'1. Order'!K243)","v":""},{"$f":"IF('1. Order'!L243=\"\",\"\",'1. Order'!L243)","v":""},{"$f":"IF('1. Order'!M243=\"\",\"\",'1. Order'!M243)","v":""},{"$f":"IF('1. Order'!N243=\"\",\"\",'1. Order'!N243)","v":""},{"$f":"IF('1. Order'!O243=\"\",\"\",'1. Order'!O243)","v":{"$error":"#N/A"}},{"$f":"IF('1. Order'!P243=\"\",\"\",'1. Order'!P243)","v":{"$error":"#N/A"}},{"$f":"IF('1. Order'!Q243=\"\",\"\",'1. Order'!Q243)","v":""},{"$f":"IF('1. Order'!R243=\"\",\"\",'1. Order'!R243)","v":""},{"$f":"IF('1. Order'!S243=\"\",\"\",'1. Order'!S243)","v":""},{"$f":"IF('1. Order'!V243=\"\",\"\",'1. Order'!V243)","v":""},{"$f":"IF('1. Order'!W243=\"\",\"\",'1. Order'!W243)","v":""},{"$f":"IF('1. Order'!X243=\"\",\"\",'1. Order'!X243)","v":"EUR"},{"$f":"IF('1. Order'!Y243=\"\",\"\",'1. Order'!Y243)","v":""},{"$f":"IF('1. Order'!Z243=\"\",\"\",'1. Order'!Z243)","v":""},{"$f":"IF('1. Order'!AA243=\"\",\"\",'1. Order'!AA243)","v":""},null,{"$f":"IF('1. Order'!AS243=\"\",\"\",'1. Order'!AS243)","v":""},{"$f":"IF('1. Order'!AT243=\"\",\"\",'1. Order'!AT243)","v":""},null,null,null,null,null,null,null,{"$f":"IF('1. Order'!AX243=\"\",\"\",'1. Order'!AX243)","v":""},{"$f":"IF('1. Order'!AY243=\"\",\"\",'1. Order'!AY243)","v":""},{"$f":"IF('1. Order'!AZ243=\"\",\"\",'1. Order'!AZ243)","v":""},{"$f":"IF('1. Order'!BA243=\"\",\"\",'1. Order'!BA243)","v":""},{"$f":"IF('1. Order'!BC243=\"\",\"\",'1. Order'!BC243)","v":""},{"$f":"IF('1. Order'!BD243=\"\",\"\",'1. Order'!BD243)","v":6},{"$f":"IF('1. Order'!BE243=\"\",\"\",'1. Order'!BE243)","v":"None"},{"$f":"IF('1. Order'!BF243=\"\",\"\",'1. Order'!BF243)","v":"Parcel"},{"$f":"IF('1. Order'!BG243=\"\",\"\",'1. Order'!BG243)","v":"ZWO"}]
[{"$f":"IF('1. Order'!F244=\"\",\"\",'1. Order'!F244)","v":""},{"$f":"IF('1. Order'!G244=\"\",\"\",'1. Order'!G244)","v":""},{"$f":"IF('1. Order'!H244=\"\",\"\",'1. Order'!H244)","v":""},{"$f":"IF('1. Order'!I244=\"\",\"\",'1. Order'!I244)","v":""},{"$f":"IF('1. Order'!J244=\"\",\"\",'1. Order'!J244)","v":""},{"$f":"IF('1. Order'!K244=\"\",\"\",'1. Order'!K244)","v":""},{"$f":"IF('1. Order'!L244=\"\",\"\",'1. Order'!L244)","v":""},{"$f":"IF('1. Order'!M244=\"\",\"\",'1. Order'!M244)","v":""},{"$f":"IF('1. Order'!N244=\"\",\"\",'1. Order'!N244)","v":""},{"$f":"IF('1. Order'!O244=\"\",\"\",'1. Order'!O244)","v":{"$error":"#N/A"}},{"$f":"IF('1. Order'!P244=\"\",\"\",'1. Order'!P244)","v":{"$error":"#N/A"}},{"$f":"IF('1. Order'!Q244=\"\",\"\",'1. Order'!Q244)","v":""},{"$f":"IF('1. Order'!R244=\"\",\"\",'1. Order'!R244)","v":""},{"$f":"IF('1. Order'!S244=\"\",\"\",'1. Order'!S244)","v":""},{"$f":"IF('1. Order'!V244=\"\",\"\",'1. Order'!V244)","v":""},{"$f":"IF('1. Order'!W244=\"\",\"\",'1. Order'!W244)","v":""},{"$f":"IF('1. Order'!X244=\"\",\"\",'1. Order'!X244)","v":"EUR"},{"$f":"IF('1. Order'!Y244=\"\",\"\",'1. Order'!Y244)","v":""},{"$f":"IF('1. Order'!Z244=\"\",\"\",'1. Order'!Z244)","v":""},{"$f":"IF('1. Order'!AA244=\"\",\"\",'1. Order'!AA244)","v":""},null,{"$f":"IF('1. Order'!AS244=\"\",\"\",'1. Order'!AS244)","v":""},{"$f":"IF('1. Order'!AT244=\"\",\"\",'1. Order'!AT244)","v":""},null,null,null,null,null,null,null,{"$f":"IF('1. Order'!AX244=\"\",\"\",'1. Order'!AX244)","v":""},{"$f":"IF('1. Order'!AY244=\"\",\"\",'1. Order'!AY244)","v":""},{"$f":"IF('1. Order'!AZ244=\"\",\"\",'1. Order'!AZ244)","v":""},{"$f":"IF('1. Order'!BA244=\"\",\"\",'1. Order'!BA244)","v":""},{"$f":"IF('1. Order'!BC244=\"\",\"\",'1. Order'!BC244)","v":""},{"$f":"IF('1. Order'!BD244=\"\",\"\",'1. Order'!BD244)","v":6},{"$f":"IF('1. Order'!BE244=\"\",\"\",'1. Order'!BE244)","v":"None"},{"$f":"IF('1. Order'!BF244=\"\",\"\",'1. Order'!BF244)","v":"Parcel"},{"$f":"IF('1. Order'!BG244=\"\",\"\",'1. Order'!BG244)","v":"ZWO"}]
[{"$f":"IF('1. Order'!F245=\"\",\"\",'1. Order'!F245)","v":""},{"$f":"IF('1. Order'!G245=\"\",\"\",'1. Order'!G245)","v":""},{"$f":"IF('1. Order'!H245=\"\",\"\",'1. Order'!H245)","v":""},{"$f":"IF('1. Order'!I245=\"\",\"\",'1. Order'!I245)","v":""},{"$f":"IF('1. Order'!J245=\"\",\"\",'1. Order'!J245)","v":""},{"$f":"IF('1. Order'!K245=\"\",\"\",'1. Order'!K245)","v":""},{"$f":"IF('1. Order'!L245=\"\",\"\",'1. Order'!L245)","v":""},{"$f":"IF('1. Order'!M245=\"\",\"\",'1. Order'!M245)","v":""},{"$f":"IF('1. Order'!N245=\"\",\"\",'1. Order'!N245)","v":""},{"$f":"IF('1. Order'!O245=\"\",\"\",'1. Order'!O245)","v":{"$error":"#N/A"}},{"$f":"IF('1. Order'!P245=\"\",\"\",'1. Order'!P245)","v":{"$error":"#N/A"}},{"$f":"IF('1. Order'!Q245=\"\",\"\",'1. Order'!Q245)","v":""},{"$f":"IF('1. Order'!R245=\"\",\"\",'1. Order'!R245)","v":""},{"$f":"IF('1. Order'!S245=\"\",\"\",'1. Order'!S245)","v":""},{"$f":"IF('1. Order'!V245=\"\",\"\",'1. Order'!V245)","v":""},{"$f":"IF('1. Order'!W245=\"\",\"\",'1. Order'!W245)","v":""},{"$f":"IF('1. Order'!X245=\"\",\"\",'1. Order'!X245)","v":"EUR"},{"$f":"IF('1. Order'!Y245=\"\",\"\",'1. Order'!Y245)","v":""},{"$f":"IF('1. Order'!Z245=\"\",\"\",'1. Order'!Z245)","v":""},{"$f":"IF('1. Order'!AA245=\"\",\"\",'1. Order'!AA245)","v":""},null,{"$f":"IF('1. Order'!AS245=\"\",\"\",'1. Order'!AS245)","v":""},{"$f":"IF('1. Order'!AT245=\"\",\"\",'1. Order'!AT245)","v":""},null,null,null,null,null,null,null,{"$f":"IF('1. Order'!AX245=\"\",\"\",'1. Order'!AX245)","v":""},{"$f":"IF('1. Order'!AY245=\"\",\"\",'1. Order'!AY245)","v":""},{"$f":"IF('1. Order'!AZ245=\"\",\"\",'1. Order'!AZ245)","v":""},{"$f":"IF('1. Order'!BA245=\"\",\"\",'1. Order'!BA245)","v":""},{"$f":"IF('1. Order'!BC245=\"\",\"\",'1. Order'!BC245)","v":""},{"$f":"IF('1. Order'!BD245=\"\",\"\",'1. Order'!BD245)","v":6},{"$f":"IF('1. Order'!BE245=\"\",\"\",'1. Order'!BE245)","v":"None"},{"$f":"IF('1. Order'!BF245=\"\",\"\",'1. Order'!BF245)","v":"Parcel"},{"$f":"IF('1. Order'!BG245=\"\",\"\",'1. Order'!BG245)","v":"ZWO"}]
[{"$f":"IF('1. Order'!F246=\"\",\"\",'1. Order'!F246)","v":""},{"$f":"IF('1. Order'!G246=\"\",\"\",'1. Order'!G246)","v":""},{"$f":"IF('1. Order'!H246=\"\",\"\",'1. Order'!H246)","v":""},{"$f":"IF('1. Order'!I246=\"\",\"\",'1. Order'!I246)","v":""},{"$f":"IF('1. Order'!J246=\"\",\"\",'1. Order'!J246)","v":""},{"$f":"IF('1. Order'!K246=\"\",\"\",'1. Order'!K246)","v":""},{"$f":"IF('1. Order'!L246=\"\",\"\",'1. Order'!L246)","v":""},{"$f":"IF('1. Order'!M246=\"\",\"\",'1. Order'!M246)","v":""},{"$f":"IF('1. Order'!N246=\"\",\"\",'1. Order'!N246)","v":""},{"$f":"IF('1. Order'!O246=\"\",\"\",'1. Order'!O246)","v":{"$error":"#N/A"}},{"$f":"IF('1. Order'!P246=\"\",\"\",'1. Order'!P246)","v":{"$error":"#N/A"}},{"$f":"IF('1. Order'!Q246=\"\",\"\",'1. Order'!Q246)","v":""},{"$f":"IF('1. Order'!R246=\"\",\"\",'1. Order'!R246)","v":""},{"$f":"IF('1. Order'!S246=\"\",\"\",'1. Order'!S246)","v":""},{"$f":"IF('1. Order'!V246=\"\",\"\",'1. Order'!V246)","v":""},{"$f":"IF('1. Order'!W246=\"\",\"\",'1. Order'!W246)","v":""},{"$f":"IF('1. Order'!X246=\"\",\"\",'1. Order'!X246)","v":"EUR"},{"$f":"IF('1. Order'!Y246=\"\",\"\",'1. Order'!Y246)","v":""},{"$f":"IF('1. Order'!Z246=\"\",\"\",'1. Order'!Z246)","v":""},{"$f":"IF('1. Order'!AA246=\"\",\"\",'1. Order'!AA246)","v":""},null,{"$f":"IF('1. Order'!AS246=\"\",\"\",'1. Order'!AS246)","v":""},{"$f":"IF('1. Order'!AT246=\"\",\"\",'1. Order'!AT246)","v":""},null,null,null,null,null,null,null,{"$f":"IF('1. Order'!AX246=\"\",\"\",'1. Order'!AX246)","v":""},{"$f":"IF('1. Order'!AY246=\"\",\"\",'1. Order'!AY246)","v":""},{"$f":"IF('1. Order'!AZ246=\"\",\"\",'1. Order'!AZ246)","v":""},{"$f":"IF('1. Order'!BA246=\"\",\"\",'1. Order'!BA246)","v":""},{"$f":"IF('1. Order'!BC246=\"\",\"\",'1. Order'!BC246)","v":""},{"$f":"IF('1. Order'!BD246=\"\",\"\",'1. Order'!BD246)","v":6},{"$f":"IF('1. Order'!BE246=\"\",\"\",'1. Order'!BE246)","v":"None"},{"$f":"IF('1. Order'!BF246=\"\",\"\",'1. Order'!BF246)","v":"Parcel"},{"$f":"IF('1. Order'!BG246=\"\",\"\",'1. Order'!BG246)","v":"ZWO"}]
[{"$f":"IF('1. Order'!F247=\"\",\"\",'1. Order'!F247)","v":""},{"$f":"IF('1. Order'!G247=\"\",\"\",'1. Order'!G247)","v":""},{"$f":"IF('1. Order'!H247=\"\",\"\",'1. Order'!H247)","v":""},{"$f":"IF('1. Order'!I247=\"\",\"\",'1. Order'!I247)","v":""},{"$f":"IF('1. Order'!J247=\"\",\"\",'1. Order'!J247)","v":""},{"$f":"IF('1. Order'!K247=\"\",\"\",'1. Order'!K247)","v":""},{"$f":"IF('1. Order'!L247=\"\",\"\",'1. Order'!L247)","v":""},{"$f":"IF('1. Order'!M247=\"\",\"\",'1. Order'!M247)","v":""},{"$f":"IF('1. Order'!N247=\"\",\"\",'1. Order'!N247)","v":""},{"$f":"IF('1. Order'!O247=\"\",\"\",'1. Order'!O247)","v":{"$error":"#N/A"}},{"$f":"IF('1. Order'!P247=\"\",\"\",'1. Order'!P247)","v":{"$error":"#N/A"}},{"$f":"IF('1. Order'!Q247=\"\",\"\",'1. Order'!Q247)","v":""},{"$f":"IF('1. Order'!R247=\"\",\"\",'1. Order'!R247)","v":""},{"$f":"IF('1. Order'!S247=\"\",\"\",'1. Order'!S247)","v":""},{"$f":"IF('1. Order'!V247=\"\",\"\",'1. Order'!V247)","v":""},{"$f":"IF('1. Order'!W247=\"\",\"\",'1. Order'!W247)","v":""},{"$f":"IF('1. Order'!X247=\"\",\"\",'1. Order'!X247)","v":"EUR"},{"$f":"IF('1. Order'!Y247=\"\",\"\",'1. Order'!Y247)","v":""},{"$f":"IF('1. Order'!Z247=\"\",\"\",'1. Order'!Z247)","v":""},{"$f":"IF('1. Order'!AA247=\"\",\"\",'1. Order'!AA247)","v":""},null,{"$f":"IF('1. Order'!AS247=\"\",\"\",'1. Order'!AS247)","v":""},{"$f":"IF('1. Order'!AT247=\"\",\"\",'1. Order'!AT247)","v":""},null,null,null,null,null,null,null,{"$f":"IF('1. Order'!AX247=\"\",\"\",'1. Order'!AX247)","v":""},{"$f":"IF('1. Order'!AY247=\"\",\"\",'1. Order'!AY247)","v":""},{"$f":"IF('1. Order'!AZ247=\"\",\"\",'1. Order'!AZ247)","v":""},{"$f":"IF('1. Order'!BA247=\"\",\"\",'1. Order'!BA247)","v":""},{"$f":"IF('1. Order'!BC247=\"\",\"\",'1. Order'!BC247)","v":""},{"$f":"IF('1. Order'!BD247=\"\",\"\",'1. Order'!BD247)","v":6},{"$f":"IF('1. Order'!BE247=\"\",\"\",'1. Order'!BE247)","v":"None"},{"$f":"IF('1. Order'!BF247=\"\",\"\",'1. Order'!BF247)","v":"Parcel"},{"$f":"IF('1. Order'!BG247=\"\",\"\",'1. Order'!BG247)","v":"ZWO"}]
[{"$f":"IF('1. Order'!F248=\"\",\"\",'1. Order'!F248)","v":""},{"$f":"IF('1. Order'!G248=\"\",\"\",'1. Order'!G248)","v":""},{"$f":"IF('1. Order'!H248=\"\",\"\",'1. Order'!H248)","v":""},{"$f":"IF('1. Order'!I248=\"\",\"\",'1. Order'!I248)","v":""},{"$f":"IF('1. Order'!J248=\"\",\"\",'1. Order'!J248)","v":""},{"$f":"IF('1. Order'!K248=\"\",\"\",'1. Order'!K248)","v":""},{"$f":"IF('1. Order'!L248=\"\",\"\",'1. Order'!L248)","v":""},{"$f":"IF('1. Order'!M248=\"\",\"\",'1. Order'!M248)","v":""},{"$f":"IF('1. Order'!N248=\"\",\"\",'1. Order'!N248)","v":""},{"$f":"IF('1. Order'!O248=\"\",\"\",'1. Order'!O248)","v":{"$error":"#N/A"}},{"$f":"IF('1. Order'!P248=\"\",\"\",'1. Order'!P248)","v":{"$error":"#N/A"}},{"$f":"IF('1. Order'!Q248=\"\",\"\",'1. Order'!Q248)","v":""},{"$f":"IF('1. Order'!R248=\"\",\"\",'1. Order'!R248)","v":""},{"$f":"IF('1. Order'!S248=\"\",\"\",'1. Order'!S248)","v":""},{"$f":"IF('1. Order'!V248=\"\",\"\",'1. Order'!V248)","v":""},{"$f":"IF('1. Order'!W248=\"\",\"\",'1. Order'!W248)","v":""},{"$f":"IF('1. Order'!X248=\"\",\"\",'1. Order'!X248)","v":"EUR"},{"$f":"IF('1. Order'!Y248=\"\",\"\",'1. Order'!Y248)","v":""},{"$f":"IF('1. Order'!Z248=\"\",\"\",'1. Order'!Z248)","v":""},{"$f":"IF('1. Order'!AA248=\"\",\"\",'1. Order'!AA248)","v":""},null,{"$f":"IF('1. Order'!AS248=\"\",\"\",'1. Order'!AS248)","v":""},{"$f":"IF('1. Order'!AT248=\"\",\"\",'1. Order'!AT248)","v":""},null,null,null,null,null,null,null,{"$f":"IF('1. Order'!AX248=\"\",\"\",'1. Order'!AX248)","v":""},{"$f":"IF('1. Order'!AY248=\"\",\"\",'1. Order'!AY248)","v":""},{"$f":"IF('1. Order'!AZ248=\"\",\"\",'1. Order'!AZ248)","v":""},{"$f":"IF('1. Order'!BA248=\"\",\"\",'1. Order'!BA248)","v":""},{"$f":"IF('1. Order'!BC248=\"\",\"\",'1. Order'!BC248)","v":""},{"$f":"IF('1. Order'!BD248=\"\",\"\",'1. Order'!BD248)","v":6},{"$f":"IF('1. Order'!BE248=\"\",\"\",'1. Order'!BE248)","v":"None"},{"$f":"IF('1. Order'!BF248=\"\",\"\",'1. Order'!BF248)","v":"Parcel"},{"$f":"IF('1. Order'!BG248=\"\",\"\",'1. Order'!BG248)","v":"ZWO"}]
[{"$f":"IF('1. Order'!F249=\"\",\"\",'1. Order'!F249)","v":""},{"$f":"IF('1. Order'!G249=\"\",\"\",'1. Order'!G249)","v":""},{"$f":"IF('1. Order'!H249=\"\",\"\",'1. Order'!H249)","v":""},{"$f":"IF('1. Order'!I249=\"\",\"\",'1. Order'!I249)","v":""},{"$f":"IF('1. Order'!J249=\"\",\"\",'1. Order'!J249)","v":""},{"$f":"IF('1. Order'!K249=\"\",\"\",'1. Order'!K249)","v":""},{"$f":"IF('1. Order'!L249=\"\",\"\",'1. Order'!L249)","v":""},{"$f":"IF('1. Order'!M249=\"\",\"\",'1. Order'!M249)","v":""},{"$f":"IF('1. Order'!N249=\"\",\"\",'1. Order'!N249)","v":""},{"$f":"IF('1. Order'!O249=\"\",\"\",'1. Order'!O249)","v":{"$error":"#N/A"}},{"$f":"IF('1. Order'!P249=\"\",\"\",'1. Order'!P249)","v":{"$error":"#N/A"}},{"$f":"IF('1. Order'!Q249=\"\",\"\",'1. Order'!Q249)","v":""},{"$f":"IF('1. Order'!R249=\"\",\"\",'1. Order'!R249)","v":""},{"$f":"IF('1. Order'!S249=\"\",\"\",'1. Order'!S249)","v":""},{"$f":"IF('1. Order'!V249=\"\",\"\",'1. Order'!V249)","v":""},{"$f":"IF('1. Order'!W249=\"\",\"\",'1. Order'!W249)","v":""},{"$f":"IF('1. Order'!X249=\"\",\"\",'1. Order'!X249)","v":"EUR"},{"$f":"IF('1. Order'!Y249=\"\",\"\",'1. Order'!Y249)","v":""},{"$f":"IF('1. Order'!Z249=\"\",\"\",'1. Order'!Z249)","v":""},{"$f":"IF('1. Order'!AA249=\"\",\"\",'1. Order'!AA249)","v":""},null,{"$f":"IF('1. Order'!AS249=\"\",\"\",'1. Order'!AS249)","v":""},{"$f":"IF('1. Order'!AT249=\"\",\"\",'1. Order'!AT249)","v":""},null,null,null,null,null,null,null,{"$f":"IF('1. Order'!AX249=\"\",\"\",'1. Order'!AX249)","v":""},{"$f":"IF('1. Order'!AY249=\"\",\"\",'1. Order'!AY249)","v":""},{"$f":"IF('1. Order'!AZ249=\"\",\"\",'1. Order'!AZ249)","v":""},{"$f":"IF('1. Order'!BA249=\"\",\"\",'1. Order'!BA249)","v":""},{"$f":"IF('1. Order'!BC249=\"\",\"\",'1. Order'!BC249)","v":""},{"$f":"IF('1. Order'!BD249=\"\",\"\",'1. Order'!BD249)","v":6},{"$f":"IF('1. Order'!BE249=\"\",\"\",'1. Order'!BE249)","v":"None"},{"$f":"IF('1. Order'!BF249=\"\",\"\",'1. Order'!BF249)","v":"Parcel"},{"$f":"IF('1. Order'!BG249=\"\",\"\",'1. Order'!BG249)","v":"ZWO"}]
[{"$f":"IF('1. Order'!F250=\"\",\"\",'1. Order'!F250)","v":""},{"$f":"IF('1. Order'!G250=\"\",\"\",'1. Order'!G250)","v":""},{"$f":"IF('1. Order'!H250=\"\",\"\",'1. Order'!H250)","v":""},{"$f":"IF('1. Order'!I250=\"\",\"\",'1. Order'!I250)","v":""},{"$f":"IF('1. Order'!J250=\"\",\"\",'1. Order'!J250)","v":""},{"$f":"IF('1. Order'!K250=\"\",\"\",'1. Order'!K250)","v":""},{"$f":"IF('1. Order'!L250=\"\",\"\",'1. Order'!L250)","v":""},{"$f":"IF('1. Order'!M250=\"\",\"\",'1. Order'!M250)","v":""},{"$f":"IF('1. Order'!N250=\"\",\"\",'1. Order'!N250)","v":""},{"$f":"IF('1. Order'!O250=\"\",\"\",'1. Order'!O250)","v":{"$error":"#N/A"}},{"$f":"IF('1. Order'!P250=\"\",\"\",'1. Order'!P250)","v":{"$error":"#N/A"}},{"$f":"IF('1. Order'!Q250=\"\",\"\",'1. Order'!Q250)","v":""},{"$f":"IF('1. Order'!R250=\"\",\"\",'1. Order'!R250)","v":""},{"$f":"IF('1. Order'!S250=\"\",\"\",'1. Order'!S250)","v":""},{"$f":"IF('1. Order'!V250=\"\",\"\",'1. Order'!V250)","v":""},{"$f":"IF('1. Order'!W250=\"\",\"\",'1. Order'!W250)","v":""},{"$f":"IF('1. Order'!X250=\"\",\"\",'1. Order'!X250)","v":"EUR"},{"$f":"IF('1. Order'!Y250=\"\",\"\",'1. Order'!Y250)","v":""},{"$f":"IF('1. Order'!Z250=\"\",\"\",'1. Order'!Z250)","v":""},{"$f":"IF('1. Order'!AA250=\"\",\"\",'1. Order'!AA250)","v":""},null,{"$f":"IF('1. Order'!AS250=\"\",\"\",'1. Order'!AS250)","v":""},{"$f":"IF('1. Order'!AT250=\"\",\"\",'1. Order'!AT250)","v":""},null,null,null,null,null,null,null,{"$f":"IF('1. Order'!AX250=\"\",\"\",'1. Order'!AX250)","v":""},{"$f":"IF('1. Order'!AY250=\"\",\"\",'1. Order'!AY250)","v":""},{"$f":"IF('1. Order'!AZ250=\"\",\"\",'1. Order'!AZ250)","v":""},{"$f":"IF('1. Order'!BA250=\"\",\"\",'1. Order'!BA250)","v":""},{"$f":"IF('1. Order'!BC250=\"\",\"\",'1. Order'!BC250)","v":""},{"$f":"IF('1. Order'!BD250=\"\",\"\",'1. Order'!BD250)","v":6},{"$f":"IF('1. Order'!BE250=\"\",\"\",'1. Order'!BE250)","v":"None"},{"$f":"IF('1. Order'!BF250=\"\",\"\",'1. Order'!BF250)","v":"Parcel"},{"$f":"IF('1. Order'!BG250=\"\",\"\",'1. Order'!BG250)","v":"ZWO"}]
[{"$f":"IF('1. Order'!F251=\"\",\"\",'1. Order'!F251)","v":""},{"$f":"IF('1. Order'!G251=\"\",\"\",'1. Order'!G251)","v":""},{"$f":"IF('1. Order'!H251=\"\",\"\",'1. Order'!H251)","v":""},{"$f":"IF('1. Order'!I251=\"\",\"\",'1. Order'!I251)","v":""},{"$f":"IF('1. Order'!J251=\"\",\"\",'1. Order'!J251)","v":""},{"$f":"IF('1. Order'!K251=\"\",\"\",'1. Order'!K251)","v":""},{"$f":"IF('1. Order'!L251=\"\",\"\",'1. Order'!L251)","v":""},{"$f":"IF('1. Order'!M251=\"\",\"\",'1. Order'!M251)","v":""},{"$f":"IF('1. Order'!N251=\"\",\"\",'1. Order'!N251)","v":""},{"$f":"IF('1. Order'!O251=\"\",\"\",'1. Order'!O251)","v":{"$error":"#N/A"}},{"$f":"IF('1. Order'!P251=\"\",\"\",'1. Order'!P251)","v":{"$error":"#N/A"}},{"$f":"IF('1. Order'!Q251=\"\",\"\",'1. Order'!Q251)","v":""},{"$f":"IF('1. Order'!R251=\"\",\"\",'1. Order'!R251)","v":""},{"$f":"IF('1. Order'!S251=\"\",\"\",'1. Order'!S251)","v":""},{"$f":"IF('1. Order'!V251=\"\",\"\",'1. Order'!V251)","v":""},{"$f":"IF('1. Order'!W251=\"\",\"\",'1. Order'!W251)","v":""},{"$f":"IF('1. Order'!X251=\"\",\"\",'1. Order'!X251)","v":"EUR"},{"$f":"IF('1. Order'!Y251=\"\",\"\",'1. Order'!Y251)","v":""},{"$f":"IF('1. Order'!Z251=\"\",\"\",'1. Order'!Z251)","v":""},{"$f":"IF('1. Order'!AA251=\"\",\"\",'1. Order'!AA251)","v":""},null,{"$f":"IF('1. Order'!AS251=\"\",\"\",'1. Order'!AS251)","v":""},{"$f":"IF('1. Order'!AT251=\"\",\"\",'1. Order'!AT251)","v":""},null,null,null,null,null,null,null,{"$f":"IF('1. Order'!AX251=\"\",\"\",'1. Order'!AX251)","v":""},{"$f":"IF('1. Order'!AY251=\"\",\"\",'1. Order'!AY251)","v":""},{"$f":"IF('1. Order'!AZ251=\"\",\"\",'1. Order'!AZ251)","v":""},{"$f":"IF('1. Order'!BA251=\"\",\"\",'1. Order'!BA251)","v":""},{"$f":"IF('1. Order'!BC251=\"\",\"\",'1. Order'!BC251)","v":""},{"$f":"IF('1. Order'!BD251=\"\",\"\",'1. Order'!BD251)","v":6},{"$f":"IF('1. Order'!BE251=\"\",\"\",'1. Order'!BE251)","v":"None"},{"$f":"IF('1. Order'!BF251=\"\",\"\",'1. Order'!BF251)","v":"Parcel"},{"$f":"IF('1. Order'!BG251=\"\",\"\",'1. Order'!BG251)","v":"ZWO"}]
[{"$f":"IF('1. Order'!F252=\"\",\"\",'1. Order'!F252)","v":""},{"$f":"IF('1. Order'!G252=\"\",\"\",'1. Order'!G252)","v":""},{"$f":"IF('1. Order'!H252=\"\",\"\",'1. Order'!H252)","v":""},{"$f":"IF('1. Order'!I252=\"\",\"\",'1. Order'!I252)","v":""},{"$f":"IF('1. Order'!J252=\"\",\"\",'1. Order'!J252)","v":""},{"$f":"IF('1. Order'!K252=\"\",\"\",'1. Order'!K252)","v":""},{"$f":"IF('1. Order'!L252=\"\",\"\",'1. Order'!L252)","v":""},{"$f":"IF('1. Order'!M252=\"\",\"\",'1. Order'!M252)","v":""},{"$f":"IF('1. Order'!N252=\"\",\"\",'1. Order'!N252)","v":""},{"$f":"IF('1. Order'!O252=\"\",\"\",'1. Order'!O252)","v":{"$error":"#N/A"}},{"$f":"IF('1. Order'!P252=\"\",\"\",'1. Order'!P252)","v":{"$error":"#N/A"}},{"$f":"IF('1. Order'!Q252=\"\",\"\",'1. Order'!Q252)","v":""},{"$f":"IF('1. Order'!R252=\"\",\"\",'1. Order'!R252)","v":""},{"$f":"IF('1. Order'!S252=\"\",\"\",'1. Order'!S252)","v":""},{"$f":"IF('1. Order'!V252=\"\",\"\",'1. Order'!V252)","v":""},{"$f":"IF('1. Order'!W252=\"\",\"\",'1. Order'!W252)","v":""},{"$f":"IF('1. Order'!X252=\"\",\"\",'1. Order'!X252)","v":"EUR"},{"$f":"IF('1. Order'!Y252=\"\",\"\",'1. Order'!Y252)","v":""},{"$f":"IF('1. Order'!Z252=\"\",\"\",'1. Order'!Z252)","v":""},{"$f":"IF('1. Order'!AA252=\"\",\"\",'1. Order'!AA252)","v":""},null,{"$f":"IF('1. Order'!AS252=\"\",\"\",'1. Order'!AS252)","v":""},{"$f":"IF('1. Order'!AT252=\"\",\"\",'1. Order'!AT252)","v":""},null,null,null,null,null,null,null,{"$f":"IF('1. Order'!AX252=\"\",\"\",'1. Order'!AX252)","v":""},{"$f":"IF('1. Order'!AY252=\"\",\"\",'1. Order'!AY252)","v":""},{"$f":"IF('1. Order'!AZ252=\"\",\"\",'1. Order'!AZ252)","v":""},{"$f":"IF('1. Order'!BA252=\"\",\"\",'1. Order'!BA252)","v":""},{"$f":"IF('1. Order'!BC252=\"\",\"\",'1. Order'!BC252)","v":""},{"$f":"IF('1. Order'!BD252=\"\",\"\",'1. Order'!BD252)","v":6},{"$f":"IF('1. Order'!BE252=\"\",\"\",'1. Order'!BE252)","v":"None"},{"$f":"IF('1. Order'!BF252=\"\",\"\",'1. Order'!BF252)","v":"Parcel"},{"$f":"IF('1. Order'!BG252=\"\",\"\",'1. Order'!BG252)","v":"ZWO"}]
[{"$f":"IF('1. Order'!F253=\"\",\"\",'1. Order'!F253)","v":""},{"$f":"IF('1. Order'!G253=\"\",\"\",'1. Order'!G253)","v":""},{"$f":"IF('1. Order'!H253=\"\",\"\",'1. Order'!H253)","v":""},{"$f":"IF('1. Order'!I253=\"\",\"\",'1. Order'!I253)","v":""},{"$f":"IF('1. Order'!J253=\"\",\"\",'1. Order'!J253)","v":""},{"$f":"IF('1. Order'!K253=\"\",\"\",'1. Order'!K253)","v":""},{"$f":"IF('1. Order'!L253=\"\",\"\",'1. Order'!L253)","v":""},{"$f":"IF('1. Order'!M253=\"\",\"\",'1. Order'!M253)","v":""},{"$f":"IF('1. Order'!N253=\"\",\"\",'1. Order'!N253)","v":""},{"$f":"IF('1. Order'!O253=\"\",\"\",'1. Order'!O253)","v":{"$error":"#N/A"}},{"$f":"IF('1. Order'!P253=\"\",\"\",'1. Order'!P253)","v":{"$error":"#N/A"}},{"$f":"IF('1. Order'!Q253=\"\",\"\",'1. Order'!Q253)","v":""},{"$f":"IF('1. Order'!R253=\"\",\"\",'1. Order'!R253)","v":""},{"$f":"IF('1. Order'!S253=\"\",\"\",'1. Order'!S253)","v":""},{"$f":"IF('1. Order'!V253=\"\",\"\",'1. Order'!V253)","v":""},{"$f":"IF('1. Order'!W253=\"\",\"\",'1. Order'!W253)","v":""},{"$f":"IF('1. Order'!X253=\"\",\"\",'1. Order'!X253)","v":"EUR"},{"$f":"IF('1. Order'!Y253=\"\",\"\",'1. Order'!Y253)","v":""},{"$f":"IF('1. Order'!Z253=\"\",\"\",'1. Order'!Z253)","v":""},{"$f":"IF('1. Order'!AA253=\"\",\"\",'1. Order'!AA253)","v":""},null,{"$f":"IF('1. Order'!AS253=\"\",\"\",'1. Order'!AS253)","v":""},{"$f":"IF('1. Order'!AT253=\"\",\"\",'1. Order'!AT253)","v":""},null,null,null,null,null,null,null,{"$f":"IF('1. Order'!AX253=\"\",\"\",'1. Order'!AX253)","v":""},{"$f":"IF('1. Order'!AY253=\"\",\"\",'1. Order'!AY253)","v":""},{"$f":"IF('1. Order'!AZ253=\"\",\"\",'1. Order'!AZ253)","v":""},{"$f":"IF('1. Order'!BA253=\"\",\"\",'1. Order'!BA253)","v":""},{"$f":"IF('1. Order'!BC253=\"\",\"\",'1. Order'!BC253)","v":""},{"$f":"IF('1. Order'!BD253=\"\",\"\",'1. Order'!BD253)","v":6},{"$f":"IF('1. Order'!BE253=\"\",\"\",'1. Order'!BE253)","v":"None"},{"$f":"IF('1. Order'!BF253=\"\",\"\",'1. Order'!BF253)","v":"Parcel"},{"$f":"IF('1. Order'!BG253=\"\",\"\",'1. Order'!BG253)","v":"ZWO"}]
[{"$f":"IF('1. Order'!F254=\"\",\"\",'1. Order'!F254)","v":""},{"$f":"IF('1. Order'!G254=\"\",\"\",'1. Order'!G254)","v":""},{"$f":"IF('1. Order'!H254=\"\",\"\",'1. Order'!H254)","v":""},{"$f":"IF('1. Order'!I254=\"\",\"\",'1. Order'!I254)","v":""},{"$f":"IF('1. Order'!J254=\"\",\"\",'1. Order'!J254)","v":""},{"$f":"IF('1. Order'!K254=\"\",\"\",'1. Order'!K254)","v":""},{"$f":"IF('1. Order'!L254=\"\",\"\",'1. Order'!L254)","v":""},{"$f":"IF('1. Order'!M254=\"\",\"\",'1. Order'!M254)","v":""},{"$f":"IF('1. Order'!N254=\"\",\"\",'1. Order'!N254)","v":""},{"$f":"IF('1. Order'!O254=\"\",\"\",'1. Order'!O254)","v":{"$error":"#N/A"}},{"$f":"IF('1. Order'!P254=\"\",\"\",'1. Order'!P254)","v":{"$error":"#N/A"}},{"$f":"IF('1. Order'!Q254=\"\",\"\",'1. Order'!Q254)","v":""},{"$f":"IF('1. Order'!R254=\"\",\"\",'1. Order'!R254)","v":""},{"$f":"IF('1. Order'!S254=\"\",\"\",'1. Order'!S254)","v":""},{"$f":"IF('1. Order'!V254=\"\",\"\",'1. Order'!V254)","v":""},{"$f":"IF('1. Order'!W254=\"\",\"\",'1. Order'!W254)","v":""},{"$f":"IF('1. Order'!X254=\"\",\"\",'1. Order'!X254)","v":"EUR"},{"$f":"IF('1. Order'!Y254=\"\",\"\",'1. Order'!Y254)","v":""},{"$f":"IF('1. Order'!Z254=\"\",\"\",'1. Order'!Z254)","v":""},{"$f":"IF('1. Order'!AA254=\"\",\"\",'1. Order'!AA254)","v":""},null,{"$f":"IF('1. Order'!AS254=\"\",\"\",'1. Order'!AS254)","v":""},{"$f":"IF('1. Order'!AT254=\"\",\"\",'1. Order'!AT254)","v":""},null,null,null,null,null,null,null,{"$f":"IF('1. Order'!AX254=\"\",\"\",'1. Order'!AX254)","v":""},{"$f":"IF('1. Order'!AY254=\"\",\"\",'1. Order'!AY254)","v":""},{"$f":"IF('1. Order'!AZ254=\"\",\"\",'1. Order'!AZ254)","v":""},{"$f":"IF('1. Order'!BA254=\"\",\"\",'1. Order'!BA254)","v":""},{"$f":"IF('1. Order'!BC254=\"\",\"\",'1. Order'!BC254)","v":""},{"$f":"IF('1. Order'!BD254=\"\",\"\",'1. Order'!BD254)","v":6},{"$f":"IF('1. Order'!BE254=\"\",\"\",'1. Order'!BE254)","v":"None"},{"$f":"IF('1. Order'!BF254=\"\",\"\",'1. Order'!BF254)","v":"Parcel"},{"$f":"IF('1. Order'!BG254=\"\",\"\",'1. Order'!BG254)","v":"ZWO"}]
[{"$f":"IF('1. Order'!F255=\"\",\"\",'1. Order'!F255)","v":""},{"$f":"IF('1. Order'!G255=\"\",\"\",'1. Order'!G255)","v":""},{"$f":"IF('1. Order'!H255=\"\",\"\",'1. Order'!H255)","v":""},{"$f":"IF('1. Order'!I255=\"\",\"\",'1. Order'!I255)","v":""},{"$f":"IF('1. Order'!J255=\"\",\"\",'1. Order'!J255)","v":""},{"$f":"IF('1. Order'!K255=\"\",\"\",'1. Order'!K255)","v":""},{"$f":"IF('1. Order'!L255=\"\",\"\",'1. Order'!L255)","v":""},{"$f":"IF('1. Order'!M255=\"\",\"\",'1. Order'!M255)","v":""},{"$f":"IF('1. Order'!N255=\"\",\"\",'1. Order'!N255)","v":""},{"$f":"IF('1. Order'!O255=\"\",\"\",'1. Order'!O255)","v":{"$error":"#N/A"}},{"$f":"IF('1. Order'!P255=\"\",\"\",'1. Order'!P255)","v":{"$error":"#N/A"}},{"$f":"IF('1. Order'!Q255=\"\",\"\",'1. Order'!Q255)","v":""},{"$f":"IF('1. Order'!R255=\"\",\"\",'1. Order'!R255)","v":""},{"$f":"IF('1. Order'!S255=\"\",\"\",'1. Order'!S255)","v":""},{"$f":"IF('1. Order'!V255=\"\",\"\",'1. Order'!V255)","v":""},{"$f":"IF('1. Order'!W255=\"\",\"\",'1. Order'!W255)","v":""},{"$f":"IF('1. Order'!X255=\"\",\"\",'1. Order'!X255)","v":"EUR"},{"$f":"IF('1. Order'!Y255=\"\",\"\",'1. Order'!Y255)","v":""},{"$f":"IF('1. Order'!Z255=\"\",\"\",'1. Order'!Z255)","v":""},{"$f":"IF('1. Order'!AA255=\"\",\"\",'1. Order'!AA255)","v":""},null,{"$f":"IF('1. Order'!AS255=\"\",\"\",'1. Order'!AS255)","v":""},{"$f":"IF('1. Order'!AT255=\"\",\"\",'1. Order'!AT255)","v":""},null,null,null,null,null,null,null,{"$f":"IF('1. Order'!AX255=\"\",\"\",'1. Order'!AX255)","v":""},{"$f":"IF('1. Order'!AY255=\"\",\"\",'1. Order'!AY255)","v":""},{"$f":"IF('1. Order'!AZ255=\"\",\"\",'1. Order'!AZ255)","v":""},{"$f":"IF('1. Order'!BA255=\"\",\"\",'1. Order'!BA255)","v":""},{"$f":"IF('1. Order'!BC255=\"\",\"\",'1. Order'!BC255)","v":""},{"$f":"IF('1. Order'!BD255=\"\",\"\",'1. Order'!BD255)","v":6},{"$f":"IF('1. Order'!BE255=\"\",\"\",'1. Order'!BE255)","v":"None"},{"$f":"IF('1. Order'!BF255=\"\",\"\",'1. Order'!BF255)","v":"Parcel"},{"$f":"IF('1. Order'!BG255=\"\",\"\",'1. Order'!BG255)","v":"ZWO"}]
[{"$f":"IF('1. Order'!F256=\"\",\"\",'1. Order'!F256)","v":""},{"$f":"IF('1. Order'!G256=\"\",\"\",'1. Order'!G256)","v":""},{"$f":"IF('1. Order'!H256=\"\",\"\",'1. Order'!H256)","v":""},{"$f":"IF('1. Order'!I256=\"\",\"\",'1. Order'!I256)","v":""},{"$f":"IF('1. Order'!J256=\"\",\"\",'1. Order'!J256)","v":""},{"$f":"IF('1. Order'!K256=\"\",\"\",'1. Order'!K256)","v":""},{"$f":"IF('1. Order'!L256=\"\",\"\",'1. Order'!L256)","v":""},{"$f":"IF('1. Order'!M256=\"\",\"\",'1. Order'!M256)","v":""},{"$f":"IF('1. Order'!N256=\"\",\"\",'1. Order'!N256)","v":""},{"$f":"IF('1. Order'!O256=\"\",\"\",'1. Order'!O256)","v":{"$error":"#N/A"}},{"$f":"IF('1. Order'!P256=\"\",\"\",'1. Order'!P256)","v":{"$error":"#N/A"}},{"$f":"IF('1. Order'!Q256=\"\",\"\",'1. Order'!Q256)","v":""},{"$f":"IF('1. Order'!R256=\"\",\"\",'1. Order'!R256)","v":""},{"$f":"IF('1. Order'!S256=\"\",\"\",'1. Order'!S256)","v":""},{"$f":"IF('1. Order'!V256=\"\",\"\",'1. Order'!V256)","v":""},{"$f":"IF('1. Order'!W256=\"\",\"\",'1. Order'!W256)","v":""},{"$f":"IF('1. Order'!X256=\"\",\"\",'1. Order'!X256)","v":"EUR"},{"$f":"IF('1. Order'!Y256=\"\",\"\",'1. Order'!Y256)","v":""},{"$f":"IF('1. Order'!Z256=\"\",\"\",'1. Order'!Z256)","v":""},{"$f":"IF('1. Order'!AA256=\"\",\"\",'1. Order'!AA256)","v":""},null,{"$f":"IF('1. Order'!AS256=\"\",\"\",'1. Order'!AS256)","v":""},{"$f":"IF('1. Order'!AT256=\"\",\"\",'1. Order'!AT256)","v":""},null,null,null,null,null,null,null,{"$f":"IF('1. Order'!AX256=\"\",\"\",'1. Order'!AX256)","v":""},{"$f":"IF('1. Order'!AY256=\"\",\"\",'1. Order'!AY256)","v":""},{"$f":"IF('1. Order'!AZ256=\"\",\"\",'1. Order'!AZ256)","v":""},{"$f":"IF('1. Order'!BA256=\"\",\"\",'1. Order'!BA256)","v":""},{"$f":"IF('1. Order'!BC256=\"\",\"\",'1. Order'!BC256)","v":""},{"$f":"IF('1. Order'!BD256=\"\",\"\",'1. Order'!BD256)","v":6},{"$f":"IF('1. Order'!BE256=\"\",\"\",'1. Order'!BE256)","v":"None"},{"$f":"IF('1. Order'!BF256=\"\",\"\",'1. Order'!BF256)","v":"Parcel"},{"$f":"IF('1. Order'!BG256=\"\",\"\",'1. Order'!BG256)","v":"ZWO"}]
[{"$f":"IF('1. Order'!F257=\"\",\"\",'1. Order'!F257)","v":""},{"$f":"IF('1. Order'!G257=\"\",\"\",'1. Order'!G257)","v":""},{"$f":"IF('1. Order'!H257=\"\",\"\",'1. Order'!H257)","v":""},{"$f":"IF('1. Order'!I257=\"\",\"\",'1. Order'!I257)","v":""},{"$f":"IF('1. Order'!J257=\"\",\"\",'1. Order'!J257)","v":""},{"$f":"IF('1. Order'!K257=\"\",\"\",'1. Order'!K257)","v":""},{"$f":"IF('1. Order'!L257=\"\",\"\",'1. Order'!L257)","v":""},{"$f":"IF('1. Order'!M257=\"\",\"\",'1. Order'!M257)","v":""},{"$f":"IF('1. Order'!N257=\"\",\"\",'1. Order'!N257)","v":""},{"$f":"IF('1. Order'!O257=\"\",\"\",'1. Order'!O257)","v":{"$error":"#N/A"}},{"$f":"IF('1. Order'!P257=\"\",\"\",'1. Order'!P257)","v":{"$error":"#N/A"}},{"$f":"IF('1. Order'!Q257=\"\",\"\",'1. Order'!Q257)","v":""},{"$f":"IF('1. Order'!R257=\"\",\"\",'1. Order'!R257)","v":""},{"$f":"IF('1. Order'!S257=\"\",\"\",'1. Order'!S257)","v":""},{"$f":"IF('1. Order'!V257=\"\",\"\",'1. Order'!V257)","v":""},{"$f":"IF('1. Order'!W257=\"\",\"\",'1. Order'!W257)","v":""},{"$f":"IF('1. Order'!X257=\"\",\"\",'1. Order'!X257)","v":"EUR"},{"$f":"IF('1. Order'!Y257=\"\",\"\",'1. Order'!Y257)","v":""},{"$f":"IF('1. Order'!Z257=\"\",\"\",'1. Order'!Z257)","v":""},{"$f":"IF('1. Order'!AA257=\"\",\"\",'1. Order'!AA257)","v":""},null,{"$f":"IF('1. Order'!AS257=\"\",\"\",'1. Order'!AS257)","v":""},{"$f":"IF('1. Order'!AT257=\"\",\"\",'1. Order'!AT257)","v":""},null,null,null,null,null,null,null,{"$f":"IF('1. Order'!AX257=\"\",\"\",'1. Order'!AX257)","v":""},{"$f":"IF('1. Order'!AY257=\"\",\"\",'1. Order'!AY257)","v":""},{"$f":"IF('1. Order'!AZ257=\"\",\"\",'1. Order'!AZ257)","v":""},{"$f":"IF('1. Order'!BA257=\"\",\"\",'1. Order'!BA257)","v":""},{"$f":"IF('1. Order'!BC257=\"\",\"\",'1. Order'!BC257)","v":""},{"$f":"IF('1. Order'!BD257=\"\",\"\",'1. Order'!BD257)","v":6},{"$f":"IF('1. Order'!BE257=\"\",\"\",'1. Order'!BE257)","v":"None"},{"$f":"IF('1. Order'!BF257=\"\",\"\",'1. Order'!BF257)","v":"Parcel"},{"$f":"IF('1. Order'!BG257=\"\",\"\",'1. Order'!BG257)","v":"ZWO"}]
[{"$f":"IF('1. Order'!F258=\"\",\"\",'1. Order'!F258)","v":""},{"$f":"IF('1. Order'!G258=\"\",\"\",'1. Order'!G258)","v":""},{"$f":"IF('1. Order'!H258=\"\",\"\",'1. Order'!H258)","v":""},{"$f":"IF('1. Order'!I258=\"\",\"\",'1. Order'!I258)","v":""},{"$f":"IF('1. Order'!J258=\"\",\"\",'1. Order'!J258)","v":""},{"$f":"IF('1. Order'!K258=\"\",\"\",'1. Order'!K258)","v":""},{"$f":"IF('1. Order'!L258=\"\",\"\",'1. Order'!L258)","v":""},{"$f":"IF('1. Order'!M258=\"\",\"\",'1. Order'!M258)","v":""},{"$f":"IF('1. Order'!N258=\"\",\"\",'1. Order'!N258)","v":""},{"$f":"IF('1. Order'!O258=\"\",\"\",'1. Order'!O258)","v":{"$error":"#N/A"}},{"$f":"IF('1. Order'!P258=\"\",\"\",'1. Order'!P258)","v":{"$error":"#N/A"}},{"$f":"IF('1. Order'!Q258=\"\",\"\",'1. Order'!Q258)","v":""},{"$f":"IF('1. Order'!R258=\"\",\"\",'1. Order'!R258)","v":""},{"$f":"IF('1. Order'!S258=\"\",\"\",'1. Order'!S258)","v":""},{"$f":"IF('1. Order'!V258=\"\",\"\",'1. Order'!V258)","v":""},{"$f":"IF('1. Order'!W258=\"\",\"\",'1. Order'!W258)","v":""},{"$f":"IF('1. Order'!X258=\"\",\"\",'1. Order'!X258)","v":"EUR"},{"$f":"IF('1. Order'!Y258=\"\",\"\",'1. Order'!Y258)","v":""},{"$f":"IF('1. Order'!Z258=\"\",\"\",'1. Order'!Z258)","v":""},{"$f":"IF('1. Order'!AA258=\"\",\"\",'1. Order'!AA258)","v":""},null,{"$f":"IF('1. Order'!AS258=\"\",\"\",'1. Order'!AS258)","v":""},{"$f":"IF('1. Order'!AT258=\"\",\"\",'1. Order'!AT258)","v":""},null,null,null,null,null,null,null,{"$f":"IF('1. Order'!AX258=\"\",\"\",'1. Order'!AX258)","v":""},{"$f":"IF('1. Order'!AY258=\"\",\"\",'1. Order'!AY258)","v":""},{"$f":"IF('1. Order'!AZ258=\"\",\"\",'1. Order'!AZ258)","v":""},{"$f":"IF('1. Order'!BA258=\"\",\"\",'1. Order'!BA258)","v":""},{"$f":"IF('1. Order'!BC258=\"\",\"\",'1. Order'!BC258)","v":""},{"$f":"IF('1. Order'!BD258=\"\",\"\",'1. Order'!BD258)","v":6},{"$f":"IF('1. Order'!BE258=\"\",\"\",'1. Order'!BE258)","v":"None"},{"$f":"IF('1. Order'!BF258=\"\",\"\",'1. Order'!BF258)","v":"Parcel"},{"$f":"IF('1. Order'!BG258=\"\",\"\",'1. Order'!BG258)","v":"ZWO"}]
[{"$f":"IF('1. Order'!F259=\"\",\"\",'1. Order'!F259)","v":""},{"$f":"IF('1. Order'!G259=\"\",\"\",'1. Order'!G259)","v":""},{"$f":"IF('1. Order'!H259=\"\",\"\",'1. Order'!H259)","v":""},{"$f":"IF('1. Order'!I259=\"\",\"\",'1. Order'!I259)","v":""},{"$f":"IF('1. Order'!J259=\"\",\"\",'1. Order'!J259)","v":""},{"$f":"IF('1. Order'!K259=\"\",\"\",'1. Order'!K259)","v":""},{"$f":"IF('1. Order'!L259=\"\",\"\",'1. Order'!L259)","v":""},{"$f":"IF('1. Order'!M259=\"\",\"\",'1. Order'!M259)","v":""},{"$f":"IF('1. Order'!N259=\"\",\"\",'1. Order'!N259)","v":""},{"$f":"IF('1. Order'!O259=\"\",\"\",'1. Order'!O259)","v":{"$error":"#N/A"}},{"$f":"IF('1. Order'!P259=\"\",\"\",'1. Order'!P259)","v":{"$error":"#N/A"}},{"$f":"IF('1. Order'!Q259=\"\",\"\",'1. Order'!Q259)","v":""},{"$f":"IF('1. Order'!R259=\"\",\"\",'1. Order'!R259)","v":""},{"$f":"IF('1. Order'!S259=\"\",\"\",'1. Order'!S259)","v":""},{"$f":"IF('1. Order'!V259=\"\",\"\",'1. Order'!V259)","v":""},{"$f":"IF('1. Order'!W259=\"\",\"\",'1. Order'!W259)","v":""},{"$f":"IF('1. Order'!X259=\"\",\"\",'1. Order'!X259)","v":"EUR"},{"$f":"IF('1. Order'!Y259=\"\",\"\",'1. Order'!Y259)","v":""},{"$f":"IF('1. Order'!Z259=\"\",\"\",'1. Order'!Z259)","v":""},{"$f":"IF('1. Order'!AA259=\"\",\"\",'1. Order'!AA259)","v":""},null,{"$f":"IF('1. Order'!AS259=\"\",\"\",'1. Order'!AS259)","v":""},{"$f":"IF('1. Order'!AT259=\"\",\"\",'1. Order'!AT259)","v":""},null,null,null,null,null,null,null,{"$f":"IF('1. Order'!AX259=\"\",\"\",'1. Order'!AX259)","v":""},{"$f":"IF('1. Order'!AY259=\"\",\"\",'1. Order'!AY259)","v":""},{"$f":"IF('1. Order'!AZ259=\"\",\"\",'1. Order'!AZ259)","v":""},{"$f":"IF('1. Order'!BA259=\"\",\"\",'1. Order'!BA259)","v":""},{"$f":"IF('1. Order'!BC259=\"\",\"\",'1. Order'!BC259)","v":""},{"$f":"IF('1. Order'!BD259=\"\",\"\",'1. Order'!BD259)","v":6},{"$f":"IF('1. Order'!BE259=\"\",\"\",'1. Order'!BE259)","v":"None"},{"$f":"IF('1. Order'!BF259=\"\",\"\",'1. Order'!BF259)","v":"Parcel"},{"$f":"IF('1. Order'!BG259=\"\",\"\",'1. Order'!BG259)","v":"ZWO"}]
[{"$f":"IF('1. Order'!F260=\"\",\"\",'1. Order'!F260)","v":""},{"$f":"IF('1. Order'!G260=\"\",\"\",'1. Order'!G260)","v":""},{"$f":"IF('1. Order'!H260=\"\",\"\",'1. Order'!H260)","v":""},{"$f":"IF('1. Order'!I260=\"\",\"\",'1. Order'!I260)","v":""},{"$f":"IF('1. Order'!J260=\"\",\"\",'1. Order'!J260)","v":""},{"$f":"IF('1. Order'!K260=\"\",\"\",'1. Order'!K260)","v":""},{"$f":"IF('1. Order'!L260=\"\",\"\",'1. Order'!L260)","v":""},{"$f":"IF('1. Order'!M260=\"\",\"\",'1. Order'!M260)","v":""},{"$f":"IF('1. Order'!N260=\"\",\"\",'1. Order'!N260)","v":""},{"$f":"IF('1. Order'!O260=\"\",\"\",'1. Order'!O260)","v":{"$error":"#N/A"}},{"$f":"IF('1. Order'!P260=\"\",\"\",'1. Order'!P260)","v":{"$error":"#N/A"}},{"$f":"IF('1. Order'!Q260=\"\",\"\",'1. Order'!Q260)","v":""},{"$f":"IF('1. Order'!R260=\"\",\"\",'1. Order'!R260)","v":""},{"$f":"IF('1. Order'!S260=\"\",\"\",'1. Order'!S260)","v":""},{"$f":"IF('1. Order'!V260=\"\",\"\",'1. Order'!V260)","v":""},{"$f":"IF('1. Order'!W260=\"\",\"\",'1. Order'!W260)","v":""},{"$f":"IF('1. Order'!X260=\"\",\"\",'1. Order'!X260)","v":"EUR"},{"$f":"IF('1. Order'!Y260=\"\",\"\",'1. Order'!Y260)","v":""},{"$f":"IF('1. Order'!Z260=\"\",\"\",'1. Order'!Z260)","v":""},{"$f":"IF('1. Order'!AA260=\"\",\"\",'1. Order'!AA260)","v":""},null,{"$f":"IF('1. Order'!AS260=\"\",\"\",'1. Order'!AS260)","v":""},{"$f":"IF('1. Order'!AT260=\"\",\"\",'1. Order'!AT260)","v":""},null,null,null,null,null,null,null,{"$f":"IF('1. Order'!AX260=\"\",\"\",'1. Order'!AX260)","v":""},{"$f":"IF('1. Order'!AY260=\"\",\"\",'1. Order'!AY260)","v":""},{"$f":"IF('1. Order'!AZ260=\"\",\"\",'1. Order'!AZ260)","v":""},{"$f":"IF('1. Order'!BA260=\"\",\"\",'1. Order'!BA260)","v":""},{"$f":"IF('1. Order'!BC260=\"\",\"\",'1. Order'!BC260)","v":""},{"$f":"IF('1. Order'!BD260=\"\",\"\",'1. Order'!BD260)","v":6},{"$f":"IF('1. Order'!BE260=\"\",\"\",'1. Order'!BE260)","v":"None"},{"$f":"IF('1. Order'!BF260=\"\",\"\",'1. Order'!BF260)","v":"Parcel"},{"$f":"IF('1. Order'!BG260=\"\",\"\",'1. Order'!BG260)","v":"ZWO"}]
[{"$f":"IF('1. Order'!F261=\"\",\"\",'1. Order'!F261)","v":""},{"$f":"IF('1. Order'!G261=\"\",\"\",'1. Order'!G261)","v":""},{"$f":"IF('1. Order'!H261=\"\",\"\",'1. Order'!H261)","v":""},{"$f":"IF('1. Order'!I261=\"\",\"\",'1. Order'!I261)","v":""},{"$f":"IF('1. Order'!J261=\"\",\"\",'1. Order'!J261)","v":""},{"$f":"IF('1. Order'!K261=\"\",\"\",'1. Order'!K261)","v":""},{"$f":"IF('1. Order'!L261=\"\",\"\",'1. Order'!L261)","v":""},{"$f":"IF('1. Order'!M261=\"\",\"\",'1. Order'!M261)","v":""},{"$f":"IF('1. Order'!N261=\"\",\"\",'1. Order'!N261)","v":""},{"$f":"IF('1. Order'!O261=\"\",\"\",'1. Order'!O261)","v":{"$error":"#N/A"}},{"$f":"IF('1. Order'!P261=\"\",\"\",'1. Order'!P261)","v":{"$error":"#N/A"}},{"$f":"IF('1. Order'!Q261=\"\",\"\",'1. Order'!Q261)","v":""},{"$f":"IF('1. Order'!R261=\"\",\"\",'1. Order'!R261)","v":""},{"$f":"IF('1. Order'!S261=\"\",\"\",'1. Order'!S261)","v":""},{"$f":"IF('1. Order'!V261=\"\",\"\",'1. Order'!V261)","v":""},{"$f":"IF('1. Order'!W261=\"\",\"\",'1. Order'!W261)","v":""},{"$f":"IF('1. Order'!X261=\"\",\"\",'1. Order'!X261)","v":"EUR"},{"$f":"IF('1. Order'!Y261=\"\",\"\",'1. Order'!Y261)","v":""},{"$f":"IF('1. Order'!Z261=\"\",\"\",'1. Order'!Z261)","v":""},{"$f":"IF('1. Order'!AA261=\"\",\"\",'1. Order'!AA261)","v":""},null,{"$f":"IF('1. Order'!AS261=\"\",\"\",'1. Order'!AS261)","v":""},{"$f":"IF('1. Order'!AT261=\"\",\"\",'1. Order'!AT261)","v":""},null,null,null,null,null,null,null,{"$f":"IF('1. Order'!AX261=\"\",\"\",'1. Order'!AX261)","v":""},{"$f":"IF('1. Order'!AY261=\"\",\"\",'1. Order'!AY261)","v":""},{"$f":"IF('1. Order'!AZ261=\"\",\"\",'1. Order'!AZ261)","v":""},{"$f":"IF('1. Order'!BA261=\"\",\"\",'1. Order'!BA261)","v":""},{"$f":"IF('1. Order'!BC261=\"\",\"\",'1. Order'!BC261)","v":""},{"$f":"IF('1. Order'!BD261=\"\",\"\",'1. Order'!BD261)","v":6},{"$f":"IF('1. Order'!BE261=\"\",\"\",'1. Order'!BE261)","v":"None"},{"$f":"IF('1. Order'!BF261=\"\",\"\",'1. Order'!BF261)","v":"Parcel"},{"$f":"IF('1. Order'!BG261=\"\",\"\",'1. Order'!BG261)","v":"ZWO"}]
[{"$f":"IF('1. Order'!F262=\"\",\"\",'1. Order'!F262)","v":""},{"$f":"IF('1. Order'!G262=\"\",\"\",'1. Order'!G262)","v":""},{"$f":"IF('1. Order'!H262=\"\",\"\",'1. Order'!H262)","v":""},{"$f":"IF('1. Order'!I262=\"\",\"\",'1. Order'!I262)","v":""},{"$f":"IF('1. Order'!J262=\"\",\"\",'1. Order'!J262)","v":""},{"$f":"IF('1. Order'!K262=\"\",\"\",'1. Order'!K262)","v":""},{"$f":"IF('1. Order'!L262=\"\",\"\",'1. Order'!L262)","v":""},{"$f":"IF('1. Order'!M262=\"\",\"\",'1. Order'!M262)","v":""},{"$f":"IF('1. Order'!N262=\"\",\"\",'1. Order'!N262)","v":""},{"$f":"IF('1. Order'!O262=\"\",\"\",'1. Order'!O262)","v":{"$error":"#N/A"}},{"$f":"IF('1. Order'!P262=\"\",\"\",'1. Order'!P262)","v":{"$error":"#N/A"}},{"$f":"IF('1. Order'!Q262=\"\",\"\",'1. Order'!Q262)","v":""},{"$f":"IF('1. Order'!R262=\"\",\"\",'1. Order'!R262)","v":""},{"$f":"IF('1. Order'!S262=\"\",\"\",'1. Order'!S262)","v":""},{"$f":"IF('1. Order'!V262=\"\",\"\",'1. Order'!V262)","v":""},{"$f":"IF('1. Order'!W262=\"\",\"\",'1. Order'!W262)","v":""},{"$f":"IF('1. Order'!X262=\"\",\"\",'1. Order'!X262)","v":"EUR"},{"$f":"IF('1. Order'!Y262=\"\",\"\",'1. Order'!Y262)","v":""},{"$f":"IF('1. Order'!Z262=\"\",\"\",'1. Order'!Z262)","v":""},{"$f":"IF('1. Order'!AA262=\"\",\"\",'1. Order'!AA262)","v":""},null,{"$f":"IF('1. Order'!AS262=\"\",\"\",'1. Order'!AS262)","v":""},{"$f":"IF('1. Order'!AT262=\"\",\"\",'1. Order'!AT262)","v":""},null,null,null,null,null,null,null,{"$f":"IF('1. Order'!AX262=\"\",\"\",'1. Order'!AX262)","v":""},{"$f":"IF('1. Order'!AY262=\"\",\"\",'1. Order'!AY262)","v":""},{"$f":"IF('1. Order'!AZ262=\"\",\"\",'1. Order'!AZ262)","v":""},{"$f":"IF('1. Order'!BA262=\"\",\"\",'1. Order'!BA262)","v":""},{"$f":"IF('1. Order'!BC262=\"\",\"\",'1. Order'!BC262)","v":""},{"$f":"IF('1. Order'!BD262=\"\",\"\",'1. Order'!BD262)","v":6},{"$f":"IF('1. Order'!BE262=\"\",\"\",'1. Order'!BE262)","v":"None"},{"$f":"IF('1. Order'!BF262=\"\",\"\",'1. Order'!BF262)","v":"Parcel"},{"$f":"IF('1. Order'!BG262=\"\",\"\",'1. Order'!BG262)","v":"ZWO"}]
[{"$f":"IF('1. Order'!F263=\"\",\"\",'1. Order'!F263)","v":""},{"$f":"IF('1. Order'!G263=\"\",\"\",'1. Order'!G263)","v":""},{"$f":"IF('1. Order'!H263=\"\",\"\",'1. Order'!H263)","v":""},{"$f":"IF('1. Order'!I263=\"\",\"\",'1. Order'!I263)","v":""},{"$f":"IF('1. Order'!J263=\"\",\"\",'1. Order'!J263)","v":""},{"$f":"IF('1. Order'!K263=\"\",\"\",'1. Order'!K263)","v":""},{"$f":"IF('1. Order'!L263=\"\",\"\",'1. Order'!L263)","v":""},{"$f":"IF('1. Order'!M263=\"\",\"\",'1. Order'!M263)","v":""},{"$f":"IF('1. Order'!N263=\"\",\"\",'1. Order'!N263)","v":""},{"$f":"IF('1. Order'!O263=\"\",\"\",'1. Order'!O263)","v":{"$error":"#N/A"}},{"$f":"IF('1. Order'!P263=\"\",\"\",'1. Order'!P263)","v":{"$error":"#N/A"}},{"$f":"IF('1. Order'!Q263=\"\",\"\",'1. Order'!Q263)","v":""},{"$f":"IF('1. Order'!R263=\"\",\"\",'1. Order'!R263)","v":""},{"$f":"IF('1. Order'!S263=\"\",\"\",'1. Order'!S263)","v":""},{"$f":"IF('1. Order'!V263=\"\",\"\",'1. Order'!V263)","v":""},{"$f":"IF('1. Order'!W263=\"\",\"\",'1. Order'!W263)","v":""},{"$f":"IF('1. Order'!X263=\"\",\"\",'1. Order'!X263)","v":"EUR"},{"$f":"IF('1. Order'!Y263=\"\",\"\",'1. Order'!Y263)","v":""},{"$f":"IF('1. Order'!Z263=\"\",\"\",'1. Order'!Z263)","v":""},{"$f":"IF('1. Order'!AA263=\"\",\"\",'1. Order'!AA263)","v":""},null,{"$f":"IF('1. Order'!AS263=\"\",\"\",'1. Order'!AS263)","v":""},{"$f":"IF('1. Order'!AT263=\"\",\"\",'1. Order'!AT263)","v":""},null,null,null,null,null,null,null,{"$f":"IF('1. Order'!AX263=\"\",\"\",'1. Order'!AX263)","v":""},{"$f":"IF('1. Order'!AY263=\"\",\"\",'1. Order'!AY263)","v":""},{"$f":"IF('1. Order'!AZ263=\"\",\"\",'1. Order'!AZ263)","v":""},{"$f":"IF('1. Order'!BA263=\"\",\"\",'1. Order'!BA263)","v":""},{"$f":"IF('1. Order'!BC263=\"\",\"\",'1. Order'!BC263)","v":""},{"$f":"IF('1. Order'!BD263=\"\",\"\",'1. Order'!BD263)","v":6},{"$f":"IF('1. Order'!BE263=\"\",\"\",'1. Order'!BE263)","v":"None"},{"$f":"IF('1. Order'!BF263=\"\",\"\",'1. Order'!BF263)","v":"Parcel"},{"$f":"IF('1. Order'!BG263=\"\",\"\",'1. Order'!BG263)","v":"ZWO"}]
[{"$f":"IF('1. Order'!F264=\"\",\"\",'1. Order'!F264)","v":""},{"$f":"IF('1. Order'!G264=\"\",\"\",'1. Order'!G264)","v":""},{"$f":"IF('1. Order'!H264=\"\",\"\",'1. Order'!H264)","v":""},{"$f":"IF('1. Order'!I264=\"\",\"\",'1. Order'!I264)","v":""},{"$f":"IF('1. Order'!J264=\"\",\"\",'1. Order'!J264)","v":""},{"$f":"IF('1. Order'!K264=\"\",\"\",'1. Order'!K264)","v":""},{"$f":"IF('1. Order'!L264=\"\",\"\",'1. Order'!L264)","v":""},{"$f":"IF('1. Order'!M264=\"\",\"\",'1. Order'!M264)","v":""},{"$f":"IF('1. Order'!N264=\"\",\"\",'1. Order'!N264)","v":""},{"$f":"IF('1. Order'!O264=\"\",\"\",'1. Order'!O264)","v":{"$error":"#N/A"}},{"$f":"IF('1. Order'!P264=\"\",\"\",'1. Order'!P264)","v":{"$error":"#N/A"}},{"$f":"IF('1. Order'!Q264=\"\",\"\",'1. Order'!Q264)","v":""},{"$f":"IF('1. Order'!R264=\"\",\"\",'1. Order'!R264)","v":""},{"$f":"IF('1. Order'!S264=\"\",\"\",'1. Order'!S264)","v":""},{"$f":"IF('1. Order'!V264=\"\",\"\",'1. Order'!V264)","v":""},{"$f":"IF('1. Order'!W264=\"\",\"\",'1. Order'!W264)","v":""},{"$f":"IF('1. Order'!X264=\"\",\"\",'1. Order'!X264)","v":"EUR"},{"$f":"IF('1. Order'!Y264=\"\",\"\",'1. Order'!Y264)","v":""},{"$f":"IF('1. Order'!Z264=\"\",\"\",'1. Order'!Z264)","v":""},{"$f":"IF('1. Order'!AA264=\"\",\"\",'1. Order'!AA264)","v":""},null,{"$f":"IF('1. Order'!AS264=\"\",\"\",'1. Order'!AS264)","v":""},{"$f":"IF('1. Order'!AT264=\"\",\"\",'1. Order'!AT264)","v":""},null,null,null,null,null,null,null,{"$f":"IF('1. Order'!AX264=\"\",\"\",'1. Order'!AX264)","v":""},{"$f":"IF('1. Order'!AY264=\"\",\"\",'1. Order'!AY264)","v":""},{"$f":"IF('1. Order'!AZ264=\"\",\"\",'1. Order'!AZ264)","v":""},{"$f":"IF('1. Order'!BA264=\"\",\"\",'1. Order'!BA264)","v":""},{"$f":"IF('1. Order'!BC264=\"\",\"\",'1. Order'!BC264)","v":""},{"$f":"IF('1. Order'!BD264=\"\",\"\",'1. Order'!BD264)","v":6},{"$f":"IF('1. Order'!BE264=\"\",\"\",'1. Order'!BE264)","v":"None"},{"$f":"IF('1. Order'!BF264=\"\",\"\",'1. Order'!BF264)","v":"Parcel"},{"$f":"IF('1. Order'!BG264=\"\",\"\",'1. Order'!BG264)","v":"ZWO"}]
[{"$f":"IF('1. Order'!F265=\"\",\"\",'1. Order'!F265)","v":""},{"$f":"IF('1. Order'!G265=\"\",\"\",'1. Order'!G265)","v":""},{"$f":"IF('1. Order'!H265=\"\",\"\",'1. Order'!H265)","v":""},{"$f":"IF('1. Order'!I265=\"\",\"\",'1. Order'!I265)","v":""},{"$f":"IF('1. Order'!J265=\"\",\"\",'1. Order'!J265)","v":""},{"$f":"IF('1. Order'!K265=\"\",\"\",'1. Order'!K265)","v":""},{"$f":"IF('1. Order'!L265=\"\",\"\",'1. Order'!L265)","v":""},{"$f":"IF('1. Order'!M265=\"\",\"\",'1. Order'!M265)","v":""},{"$f":"IF('1. Order'!N265=\"\",\"\",'1. Order'!N265)","v":""},{"$f":"IF('1. Order'!O265=\"\",\"\",'1. Order'!O265)","v":{"$error":"#N/A"}},{"$f":"IF('1. Order'!P265=\"\",\"\",'1. Order'!P265)","v":{"$error":"#N/A"}},{"$f":"IF('1. Order'!Q265=\"\",\"\",'1. Order'!Q265)","v":""},{"$f":"IF('1. Order'!R265=\"\",\"\",'1. Order'!R265)","v":""},{"$f":"IF('1. Order'!S265=\"\",\"\",'1. Order'!S265)","v":""},{"$f":"IF('1. Order'!V265=\"\",\"\",'1. Order'!V265)","v":""},{"$f":"IF('1. Order'!W265=\"\",\"\",'1. Order'!W265)","v":""},{"$f":"IF('1. Order'!X265=\"\",\"\",'1. Order'!X265)","v":"EUR"},{"$f":"IF('1. Order'!Y265=\"\",\"\",'1. Order'!Y265)","v":""},{"$f":"IF('1. Order'!Z265=\"\",\"\",'1. Order'!Z265)","v":""},{"$f":"IF('1. Order'!AA265=\"\",\"\",'1. Order'!AA265)","v":""},null,{"$f":"IF('1. Order'!AS265=\"\",\"\",'1. Order'!AS265)","v":""},{"$f":"IF('1. Order'!AT265=\"\",\"\",'1. Order'!AT265)","v":""},null,null,null,null,null,null,null,{"$f":"IF('1. Order'!AX265=\"\",\"\",'1. Order'!AX265)","v":""},{"$f":"IF('1. Order'!AY265=\"\",\"\",'1. Order'!AY265)","v":""},{"$f":"IF('1. Order'!AZ265=\"\",\"\",'1. Order'!AZ265)","v":""},{"$f":"IF('1. Order'!BA265=\"\",\"\",'1. Order'!BA265)","v":""},{"$f":"IF('1. Order'!BC265=\"\",\"\",'1. Order'!BC265)","v":""},{"$f":"IF('1. Order'!BD265=\"\",\"\",'1. Order'!BD265)","v":6},{"$f":"IF('1. Order'!BE265=\"\",\"\",'1. Order'!BE265)","v":"None"},{"$f":"IF('1. Order'!BF265=\"\",\"\",'1. Order'!BF265)","v":"Parcel"},{"$f":"IF('1. Order'!BG265=\"\",\"\",'1. Order'!BG265)","v":"ZWO"}]
[{"$f":"IF('1. Order'!F266=\"\",\"\",'1. Order'!F266)","v":""},{"$f":"IF('1. Order'!G266=\"\",\"\",'1. Order'!G266)","v":""},{"$f":"IF('1. Order'!H266=\"\",\"\",'1. Order'!H266)","v":""},{"$f":"IF('1. Order'!I266=\"\",\"\",'1. Order'!I266)","v":""},{"$f":"IF('1. Order'!J266=\"\",\"\",'1. Order'!J266)","v":""},{"$f":"IF('1. Order'!K266=\"\",\"\",'1. Order'!K266)","v":""},{"$f":"IF('1. Order'!L266=\"\",\"\",'1. Order'!L266)","v":""},{"$f":"IF('1. Order'!M266=\"\",\"\",'1. Order'!M266)","v":""},{"$f":"IF('1. Order'!N266=\"\",\"\",'1. Order'!N266)","v":""},{"$f":"IF('1. Order'!O266=\"\",\"\",'1. Order'!O266)","v":{"$error":"#N/A"}},{"$f":"IF('1. Order'!P266=\"\",\"\",'1. Order'!P266)","v":{"$error":"#N/A"}},{"$f":"IF('1. Order'!Q266=\"\",\"\",'1. Order'!Q266)","v":""},{"$f":"IF('1. Order'!R266=\"\",\"\",'1. Order'!R266)","v":""},{"$f":"IF('1. Order'!S266=\"\",\"\",'1. Order'!S266)","v":""},{"$f":"IF('1. Order'!V266=\"\",\"\",'1. Order'!V266)","v":""},{"$f":"IF('1. Order'!W266=\"\",\"\",'1. Order'!W266)","v":""},{"$f":"IF('1. Order'!X266=\"\",\"\",'1. Order'!X266)","v":"EUR"},{"$f":"IF('1. Order'!Y266=\"\",\"\",'1. Order'!Y266)","v":""},{"$f":"IF('1. Order'!Z266=\"\",\"\",'1. Order'!Z266)","v":""},{"$f":"IF('1. Order'!AA266=\"\",\"\",'1. Order'!AA266)","v":""},null,{"$f":"IF('1. Order'!AS266=\"\",\"\",'1. Order'!AS266)","v":""},{"$f":"IF('1. Order'!AT266=\"\",\"\",'1. Order'!AT266)","v":""},null,null,null,null,null,null,null,{"$f":"IF('1. Order'!AX266=\"\",\"\",'1. Order'!AX266)","v":""},{"$f":"IF('1. Order'!AY266=\"\",\"\",'1. Order'!AY266)","v":""},{"$f":"IF('1. Order'!AZ266=\"\",\"\",'1. Order'!AZ266)","v":""},{"$f":"IF('1. Order'!BA266=\"\",\"\",'1. Order'!BA266)","v":""},{"$f":"IF('1. Order'!BC266=\"\",\"\",'1. Order'!BC266)","v":""},{"$f":"IF('1. Order'!BD266=\"\",\"\",'1. Order'!BD266)","v":6},{"$f":"IF('1. Order'!BE266=\"\",\"\",'1. Order'!BE266)","v":"None"},{"$f":"IF('1. Order'!BF266=\"\",\"\",'1. Order'!BF266)","v":"Parcel"},{"$f":"IF('1. Order'!BG266=\"\",\"\",'1. Order'!BG266)","v":"ZWO"}]
[{"$f":"IF('1. Order'!F267=\"\",\"\",'1. Order'!F267)","v":""},{"$f":"IF('1. Order'!G267=\"\",\"\",'1. Order'!G267)","v":""},{"$f":"IF('1. Order'!H267=\"\",\"\",'1. Order'!H267)","v":""},{"$f":"IF('1. Order'!I267=\"\",\"\",'1. Order'!I267)","v":""},{"$f":"IF('1. Order'!J267=\"\",\"\",'1. Order'!J267)","v":""},{"$f":"IF('1. Order'!K267=\"\",\"\",'1. Order'!K267)","v":""},{"$f":"IF('1. Order'!L267=\"\",\"\",'1. Order'!L267)","v":""},{"$f":"IF('1. Order'!M267=\"\",\"\",'1. Order'!M267)","v":""},{"$f":"IF('1. Order'!N267=\"\",\"\",'1. Order'!N267)","v":""},{"$f":"IF('1. Order'!O267=\"\",\"\",'1. Order'!O267)","v":{"$error":"#N/A"}},{"$f":"IF('1. Order'!P267=\"\",\"\",'1. Order'!P267)","v":{"$error":"#N/A"}},{"$f":"IF('1. Order'!Q267=\"\",\"\",'1. Order'!Q267)","v":""},{"$f":"IF('1. Order'!R267=\"\",\"\",'1. Order'!R267)","v":""},{"$f":"IF('1. Order'!S267=\"\",\"\",'1. Order'!S267)","v":""},{"$f":"IF('1. Order'!V267=\"\",\"\",'1. Order'!V267)","v":""},{"$f":"IF('1. Order'!W267=\"\",\"\",'1. Order'!W267)","v":""},{"$f":"IF('1. Order'!X267=\"\",\"\",'1. Order'!X267)","v":"EUR"},{"$f":"IF('1. Order'!Y267=\"\",\"\",'1. Order'!Y267)","v":""},{"$f":"IF('1. Order'!Z267=\"\",\"\",'1. Order'!Z267)","v":""},{"$f":"IF('1. Order'!AA267=\"\",\"\",'1. Order'!AA267)","v":""},null,{"$f":"IF('1. Order'!AS267=\"\",\"\",'1. Order'!AS267)","v":""},{"$f":"IF('1. Order'!AT267=\"\",\"\",'1. Order'!AT267)","v":""},null,null,null,null,null,null,null,{"$f":"IF('1. Order'!AX267=\"\",\"\",'1. Order'!AX267)","v":""},{"$f":"IF('1. Order'!AY267=\"\",\"\",'1. Order'!AY267)","v":""},{"$f":"IF('1. Order'!AZ267=\"\",\"\",'1. Order'!AZ267)","v":""},{"$f":"IF('1. Order'!BA267=\"\",\"\",'1. Order'!BA267)","v":""},{"$f":"IF('1. Order'!BC267=\"\",\"\",'1. Order'!BC267)","v":""},{"$f":"IF('1. Order'!BD267=\"\",\"\",'1. Order'!BD267)","v":6},{"$f":"IF('1. Order'!BE267=\"\",\"\",'1. Order'!BE267)","v":"None"},{"$f":"IF('1. Order'!BF267=\"\",\"\",'1. Order'!BF267)","v":"Parcel"},{"$f":"IF('1. Order'!BG267=\"\",\"\",'1. Order'!BG267)","v":"ZWO"}]
[{"$f":"IF('1. Order'!F268=\"\",\"\",'1. Order'!F268)","v":""},{"$f":"IF('1. Order'!G268=\"\",\"\",'1. Order'!G268)","v":""},{"$f":"IF('1. Order'!H268=\"\",\"\",'1. Order'!H268)","v":""},{"$f":"IF('1. Order'!I268=\"\",\"\",'1. Order'!I268)","v":""},{"$f":"IF('1. Order'!J268=\"\",\"\",'1. Order'!J268)","v":""},{"$f":"IF('1. Order'!K268=\"\",\"\",'1. Order'!K268)","v":""},{"$f":"IF('1. Order'!L268=\"\",\"\",'1. Order'!L268)","v":""},{"$f":"IF('1. Order'!M268=\"\",\"\",'1. Order'!M268)","v":""},{"$f":"IF('1. Order'!N268=\"\",\"\",'1. Order'!N268)","v":""},{"$f":"IF('1. Order'!O268=\"\",\"\",'1. Order'!O268)","v":{"$error":"#N/A"}},{"$f":"IF('1. Order'!P268=\"\",\"\",'1. Order'!P268)","v":{"$error":"#N/A"}},{"$f":"IF('1. Order'!Q268=\"\",\"\",'1. Order'!Q268)","v":""},{"$f":"IF('1. Order'!R268=\"\",\"\",'1. Order'!R268)","v":""},{"$f":"IF('1. Order'!S268=\"\",\"\",'1. Order'!S268)","v":""},{"$f":"IF('1. Order'!V268=\"\",\"\",'1. Order'!V268)","v":""},{"$f":"IF('1. Order'!W268=\"\",\"\",'1. Order'!W268)","v":""},{"$f":"IF('1. Order'!X268=\"\",\"\",'1. Order'!X268)","v":"EUR"},{"$f":"IF('1. Order'!Y268=\"\",\"\",'1. Order'!Y268)","v":""},{"$f":"IF('1. Order'!Z268=\"\",\"\",'1. Order'!Z268)","v":""},{"$f":"IF('1. Order'!AA268=\"\",\"\",'1. Order'!AA268)","v":""},null,{"$f":"IF('1. Order'!AS268=\"\",\"\",'1. Order'!AS268)","v":""},{"$f":"IF('1. Order'!AT268=\"\",\"\",'1. Order'!AT268)","v":""},null,null,null,null,null,null,null,{"$f":"IF('1. Order'!AX268=\"\",\"\",'1. Order'!AX268)","v":""},{"$f":"IF('1. Order'!AY268=\"\",\"\",'1. Order'!AY268)","v":""},{"$f":"IF('1. Order'!AZ268=\"\",\"\",'1. Order'!AZ268)","v":""},{"$f":"IF('1. Order'!BA268=\"\",\"\",'1. Order'!BA268)","v":""},{"$f":"IF('1. Order'!BC268=\"\",\"\",'1. Order'!BC268)","v":""},{"$f":"IF('1. Order'!BD268=\"\",\"\",'1. Order'!BD268)","v":6},{"$f":"IF('1. Order'!BE268=\"\",\"\",'1. Order'!BE268)","v":"None"},{"$f":"IF('1. Order'!BF268=\"\",\"\",'1. Order'!BF268)","v":"Parcel"},{"$f":"IF('1. Order'!BG268=\"\",\"\",'1. Order'!BG268)","v":"ZWO"}]
[{"$f":"IF('1. Order'!F269=\"\",\"\",'1. Order'!F269)","v":""},{"$f":"IF('1. Order'!G269=\"\",\"\",'1. Order'!G269)","v":""},{"$f":"IF('1. Order'!H269=\"\",\"\",'1. Order'!H269)","v":""},{"$f":"IF('1. Order'!I269=\"\",\"\",'1. Order'!I269)","v":""},{"$f":"IF('1. Order'!J269=\"\",\"\",'1. Order'!J269)","v":""},{"$f":"IF('1. Order'!K269=\"\",\"\",'1. Order'!K269)","v":""},{"$f":"IF('1. Order'!L269=\"\",\"\",'1. Order'!L269)","v":""},{"$f":"IF('1. Order'!M269=\"\",\"\",'1. Order'!M269)","v":""},{"$f":"IF('1. Order'!N269=\"\",\"\",'1. Order'!N269)","v":""},{"$f":"IF('1. Order'!O269=\"\",\"\",'1. Order'!O269)","v":{"$error":"#N/A"}},{"$f":"IF('1. Order'!P269=\"\",\"\",'1. Order'!P269)","v":{"$error":"#N/A"}},{"$f":"IF('1. Order'!Q269=\"\",\"\",'1. Order'!Q269)","v":""},{"$f":"IF('1. Order'!R269=\"\",\"\",'1. Order'!R269)","v":""},{"$f":"IF('1. Order'!S269=\"\",\"\",'1. Order'!S269)","v":""},{"$f":"IF('1. Order'!V269=\"\",\"\",'1. Order'!V269)","v":""},{"$f":"IF('1. Order'!W269=\"\",\"\",'1. Order'!W269)","v":""},{"$f":"IF('1. Order'!X269=\"\",\"\",'1. Order'!X269)","v":"EUR"},{"$f":"IF('1. Order'!Y269=\"\",\"\",'1. Order'!Y269)","v":""},{"$f":"IF('1. Order'!Z269=\"\",\"\",'1. Order'!Z269)","v":""},{"$f":"IF('1. Order'!AA269=\"\",\"\",'1. Order'!AA269)","v":""},null,{"$f":"IF('1. Order'!AS269=\"\",\"\",'1. Order'!AS269)","v":""},{"$f":"IF('1. Order'!AT269=\"\",\"\",'1. Order'!AT269)","v":""},null,null,null,null,null,null,null,{"$f":"IF('1. Order'!AX269=\"\",\"\",'1. Order'!AX269)","v":""},{"$f":"IF('1. Order'!AY269=\"\",\"\",'1. Order'!AY269)","v":""},{"$f":"IF('1. Order'!AZ269=\"\",\"\",'1. Order'!AZ269)","v":""},{"$f":"IF('1. Order'!BA269=\"\",\"\",'1. Order'!BA269)","v":""},{"$f":"IF('1. Order'!BC269=\"\",\"\",'1. Order'!BC269)","v":""},{"$f":"IF('1. Order'!BD269=\"\",\"\",'1. Order'!BD269)","v":6},{"$f":"IF('1. Order'!BE269=\"\",\"\",'1. Order'!BE269)","v":"None"},{"$f":"IF('1. Order'!BF269=\"\",\"\",'1. Order'!BF269)","v":"Parcel"},{"$f":"IF('1. Order'!BG269=\"\",\"\",'1. Order'!BG269)","v":"ZWO"}]
[{"$f":"IF('1. Order'!F270=\"\",\"\",'1. Order'!F270)","v":""},{"$f":"IF('1. Order'!G270=\"\",\"\",'1. Order'!G270)","v":""},{"$f":"IF('1. Order'!H270=\"\",\"\",'1. Order'!H270)","v":""},{"$f":"IF('1. Order'!I270=\"\",\"\",'1. Order'!I270)","v":""},{"$f":"IF('1. Order'!J270=\"\",\"\",'1. Order'!J270)","v":""},{"$f":"IF('1. Order'!K270=\"\",\"\",'1. Order'!K270)","v":""},{"$f":"IF('1. Order'!L270=\"\",\"\",'1. Order'!L270)","v":""},{"$f":"IF('1. Order'!M270=\"\",\"\",'1. Order'!M270)","v":""},{"$f":"IF('1. Order'!N270=\"\",\"\",'1. Order'!N270)","v":""},{"$f":"IF('1. Order'!O270=\"\",\"\",'1. Order'!O270)","v":{"$error":"#N/A"}},{"$f":"IF('1. Order'!P270=\"\",\"\",'1. Order'!P270)","v":{"$error":"#N/A"}},{"$f":"IF('1. Order'!Q270=\"\",\"\",'1. Order'!Q270)","v":""},{"$f":"IF('1. Order'!R270=\"\",\"\",'1. Order'!R270)","v":""},{"$f":"IF('1. Order'!S270=\"\",\"\",'1. Order'!S270)","v":""},{"$f":"IF('1. Order'!V270=\"\",\"\",'1. Order'!V270)","v":""},{"$f":"IF('1. Order'!W270=\"\",\"\",'1. Order'!W270)","v":""},{"$f":"IF('1. Order'!X270=\"\",\"\",'1. Order'!X270)","v":"EUR"},{"$f":"IF('1. Order'!Y270=\"\",\"\",'1. Order'!Y270)","v":""},{"$f":"IF('1. Order'!Z270=\"\",\"\",'1. Order'!Z270)","v":""},{"$f":"IF('1. Order'!AA270=\"\",\"\",'1. Order'!AA270)","v":""},null,{"$f":"IF('1. Order'!AS270=\"\",\"\",'1. Order'!AS270)","v":""},{"$f":"IF('1. Order'!AT270=\"\",\"\",'1. Order'!AT270)","v":""},null,null,null,null,null,null,null,{"$f":"IF('1. Order'!AX270=\"\",\"\",'1. Order'!AX270)","v":""},{"$f":"IF('1. Order'!AY270=\"\",\"\",'1. Order'!AY270)","v":""},{"$f":"IF('1. Order'!AZ270=\"\",\"\",'1. Order'!AZ270)","v":""},{"$f":"IF('1. Order'!BA270=\"\",\"\",'1. Order'!BA270)","v":""},{"$f":"IF('1. Order'!BC270=\"\",\"\",'1. Order'!BC270)","v":""},{"$f":"IF('1. Order'!BD270=\"\",\"\",'1. Order'!BD270)","v":6},{"$f":"IF('1. Order'!BE270=\"\",\"\",'1. Order'!BE270)","v":"None"},{"$f":"IF('1. Order'!BF270=\"\",\"\",'1. Order'!BF270)","v":"Parcel"},{"$f":"IF('1. Order'!BG270=\"\",\"\",'1. Order'!BG270)","v":"ZWO"}]
[{"$f":"IF('1. Order'!F271=\"\",\"\",'1. Order'!F271)","v":""},{"$f":"IF('1. Order'!G271=\"\",\"\",'1. Order'!G271)","v":""},{"$f":"IF('1. Order'!H271=\"\",\"\",'1. Order'!H271)","v":""},{"$f":"IF('1. Order'!I271=\"\",\"\",'1. Order'!I271)","v":""},{"$f":"IF('1. Order'!J271=\"\",\"\",'1. Order'!J271)","v":""},{"$f":"IF('1. Order'!K271=\"\",\"\",'1. Order'!K271)","v":""},{"$f":"IF('1. Order'!L271=\"\",\"\",'1. Order'!L271)","v":""},{"$f":"IF('1. Order'!M271=\"\",\"\",'1. Order'!M271)","v":""},{"$f":"IF('1. Order'!N271=\"\",\"\",'1. Order'!N271)","v":""},{"$f":"IF('1. Order'!O271=\"\",\"\",'1. Order'!O271)","v":{"$error":"#N/A"}},{"$f":"IF('1. Order'!P271=\"\",\"\",'1. Order'!P271)","v":{"$error":"#N/A"}},{"$f":"IF('1. Order'!Q271=\"\",\"\",'1. Order'!Q271)","v":""},{"$f":"IF('1. Order'!R271=\"\",\"\",'1. Order'!R271)","v":""},{"$f":"IF('1. Order'!S271=\"\",\"\",'1. Order'!S271)","v":""},{"$f":"IF('1. Order'!V271=\"\",\"\",'1. Order'!V271)","v":""},{"$f":"IF('1. Order'!W271=\"\",\"\",'1. Order'!W271)","v":""},{"$f":"IF('1. Order'!X271=\"\",\"\",'1. Order'!X271)","v":"EUR"},{"$f":"IF('1. Order'!Y271=\"\",\"\",'1. Order'!Y271)","v":""},{"$f":"IF('1. Order'!Z271=\"\",\"\",'1. Order'!Z271)","v":""},{"$f":"IF('1. Order'!AA271=\"\",\"\",'1. Order'!AA271)","v":""},null,{"$f":"IF('1. Order'!AS271=\"\",\"\",'1. Order'!AS271)","v":""},{"$f":"IF('1. Order'!AT271=\"\",\"\",'1. Order'!AT271)","v":""},null,null,null,null,null,null,null,{"$f":"IF('1. Order'!AX271=\"\",\"\",'1. Order'!AX271)","v":""},{"$f":"IF('1. Order'!AY271=\"\",\"\",'1. Order'!AY271)","v":""},{"$f":"IF('1. Order'!AZ271=\"\",\"\",'1. Order'!AZ271)","v":""},{"$f":"IF('1. Order'!BA271=\"\",\"\",'1. Order'!BA271)","v":""},{"$f":"IF('1. Order'!BC271=\"\",\"\",'1. Order'!BC271)","v":""},{"$f":"IF('1. Order'!BD271=\"\",\"\",'1. Order'!BD271)","v":6},{"$f":"IF('1. Order'!BE271=\"\",\"\",'1. Order'!BE271)","v":"None"},{"$f":"IF('1. Order'!BF271=\"\",\"\",'1. Order'!BF271)","v":"Parcel"},{"$f":"IF('1. Order'!BG271=\"\",\"\",'1. Order'!BG271)","v":"ZWO"}]
[{"$f":"IF('1. Order'!F272=\"\",\"\",'1. Order'!F272)","v":""},{"$f":"IF('1. Order'!G272=\"\",\"\",'1. Order'!G272)","v":""},{"$f":"IF('1. Order'!H272=\"\",\"\",'1. Order'!H272)","v":""},{"$f":"IF('1. Order'!I272=\"\",\"\",'1. Order'!I272)","v":""},{"$f":"IF('1. Order'!J272=\"\",\"\",'1. Order'!J272)","v":""},{"$f":"IF('1. Order'!K272=\"\",\"\",'1. Order'!K272)","v":""},{"$f":"IF('1. Order'!L272=\"\",\"\",'1. Order'!L272)","v":""},{"$f":"IF('1. Order'!M272=\"\",\"\",'1. Order'!M272)","v":""},{"$f":"IF('1. Order'!N272=\"\",\"\",'1. Order'!N272)","v":""},{"$f":"IF('1. Order'!O272=\"\",\"\",'1. Order'!O272)","v":{"$error":"#N/A"}},{"$f":"IF('1. Order'!P272=\"\",\"\",'1. Order'!P272)","v":{"$error":"#N/A"}},{"$f":"IF('1. Order'!Q272=\"\",\"\",'1. Order'!Q272)","v":""},{"$f":"IF('1. Order'!R272=\"\",\"\",'1. Order'!R272)","v":""},{"$f":"IF('1. Order'!S272=\"\",\"\",'1. Order'!S272)","v":""},{"$f":"IF('1. Order'!V272=\"\",\"\",'1. Order'!V272)","v":""},{"$f":"IF('1. Order'!W272=\"\",\"\",'1. Order'!W272)","v":""},{"$f":"IF('1. Order'!X272=\"\",\"\",'1. Order'!X272)","v":"EUR"},{"$f":"IF('1. Order'!Y272=\"\",\"\",'1. Order'!Y272)","v":""},{"$f":"IF('1. Order'!Z272=\"\",\"\",'1. Order'!Z272)","v":""},{"$f":"IF('1. Order'!AA272=\"\",\"\",'1. Order'!AA272)","v":""},null,{"$f":"IF('1. Order'!AS272=\"\",\"\",'1. Order'!AS272)","v":""},{"$f":"IF('1. Order'!AT272=\"\",\"\",'1. Order'!AT272)","v":""},null,null,null,null,null,null,null,{"$f":"IF('1. Order'!AX272=\"\",\"\",'1. Order'!AX272)","v":""},{"$f":"IF('1. Order'!AY272=\"\",\"\",'1. Order'!AY272)","v":""},{"$f":"IF('1. Order'!AZ272=\"\",\"\",'1. Order'!AZ272)","v":""},{"$f":"IF('1. Order'!BA272=\"\",\"\",'1. Order'!BA272)","v":""},{"$f":"IF('1. Order'!BC272=\"\",\"\",'1. Order'!BC272)","v":""},{"$f":"IF('1. Order'!BD272=\"\",\"\",'1. Order'!BD272)","v":6},{"$f":"IF('1. Order'!BE272=\"\",\"\",'1. Order'!BE272)","v":"None"},{"$f":"IF('1. Order'!BF272=\"\",\"\",'1. Order'!BF272)","v":"Parcel"},{"$f":"IF('1. Order'!BG272=\"\",\"\",'1. Order'!BG272)","v":"ZWO"}]
[{"$f":"IF('1. Order'!F273=\"\",\"\",'1. Order'!F273)","v":""},{"$f":"IF('1. Order'!G273=\"\",\"\",'1. Order'!G273)","v":""},{"$f":"IF('1. Order'!H273=\"\",\"\",'1. Order'!H273)","v":""},{"$f":"IF('1. Order'!I273=\"\",\"\",'1. Order'!I273)","v":""},{"$f":"IF('1. Order'!J273=\"\",\"\",'1. Order'!J273)","v":""},{"$f":"IF('1. Order'!K273=\"\",\"\",'1. Order'!K273)","v":""},{"$f":"IF('1. Order'!L273=\"\",\"\",'1. Order'!L273)","v":""},{"$f":"IF('1. Order'!M273=\"\",\"\",'1. Order'!M273)","v":""},{"$f":"IF('1. Order'!N273=\"\",\"\",'1. Order'!N273)","v":""},{"$f":"IF('1. Order'!O273=\"\",\"\",'1. Order'!O273)","v":{"$error":"#N/A"}},{"$f":"IF('1. Order'!P273=\"\",\"\",'1. Order'!P273)","v":{"$error":"#N/A"}},{"$f":"IF('1. Order'!Q273=\"\",\"\",'1. Order'!Q273)","v":""},{"$f":"IF('1. Order'!R273=\"\",\"\",'1. Order'!R273)","v":""},{"$f":"IF('1. Order'!S273=\"\",\"\",'1. Order'!S273)","v":""},{"$f":"IF('1. Order'!V273=\"\",\"\",'1. Order'!V273)","v":""},{"$f":"IF('1. Order'!W273=\"\",\"\",'1. Order'!W273)","v":""},{"$f":"IF('1. Order'!X273=\"\",\"\",'1. Order'!X273)","v":"EUR"},{"$f":"IF('1. Order'!Y273=\"\",\"\",'1. Order'!Y273)","v":""},{"$f":"IF('1. Order'!Z273=\"\",\"\",'1. Order'!Z273)","v":""},{"$f":"IF('1. Order'!AA273=\"\",\"\",'1. Order'!AA273)","v":""},null,{"$f":"IF('1. Order'!AS273=\"\",\"\",'1. Order'!AS273)","v":""},{"$f":"IF('1. Order'!AT273=\"\",\"\",'1. Order'!AT273)","v":""},null,null,null,null,null,null,null,{"$f":"IF('1. Order'!AX273=\"\",\"\",'1. Order'!AX273)","v":""},{"$f":"IF('1. Order'!AY273=\"\",\"\",'1. Order'!AY273)","v":""},{"$f":"IF('1. Order'!AZ273=\"\",\"\",'1. Order'!AZ273)","v":""},{"$f":"IF('1. Order'!BA273=\"\",\"\",'1. Order'!BA273)","v":""},{"$f":"IF('1. Order'!BC273=\"\",\"\",'1. Order'!BC273)","v":""},{"$f":"IF('1. Order'!BD273=\"\",\"\",'1. Order'!BD273)","v":6},{"$f":"IF('1. Order'!BE273=\"\",\"\",'1. Order'!BE273)","v":"None"},{"$f":"IF('1. Order'!BF273=\"\",\"\",'1. Order'!BF273)","v":"Parcel"},{"$f":"IF('1. Order'!BG273=\"\",\"\",'1. Order'!BG273)","v":"ZWO"}]
[{"$f":"IF('1. Order'!F274=\"\",\"\",'1. Order'!F274)","v":""},{"$f":"IF('1. Order'!G274=\"\",\"\",'1. Order'!G274)","v":""},{"$f":"IF('1. Order'!H274=\"\",\"\",'1. Order'!H274)","v":""},{"$f":"IF('1. Order'!I274=\"\",\"\",'1. Order'!I274)","v":""},{"$f":"IF('1. Order'!J274=\"\",\"\",'1. Order'!J274)","v":""},{"$f":"IF('1. Order'!K274=\"\",\"\",'1. Order'!K274)","v":""},{"$f":"IF('1. Order'!L274=\"\",\"\",'1. Order'!L274)","v":""},{"$f":"IF('1. Order'!M274=\"\",\"\",'1. Order'!M274)","v":""},{"$f":"IF('1. Order'!N274=\"\",\"\",'1. Order'!N274)","v":""},{"$f":"IF('1. Order'!O274=\"\",\"\",'1. Order'!O274)","v":{"$error":"#N/A"}},{"$f":"IF('1. Order'!P274=\"\",\"\",'1. Order'!P274)","v":{"$error":"#N/A"}},{"$f":"IF('1. Order'!Q274=\"\",\"\",'1. Order'!Q274)","v":""},{"$f":"IF('1. Order'!R274=\"\",\"\",'1. Order'!R274)","v":""},{"$f":"IF('1. Order'!S274=\"\",\"\",'1. Order'!S274)","v":""},{"$f":"IF('1. Order'!V274=\"\",\"\",'1. Order'!V274)","v":""},{"$f":"IF('1. Order'!W274=\"\",\"\",'1. Order'!W274)","v":""},{"$f":"IF('1. Order'!X274=\"\",\"\",'1. Order'!X274)","v":"EUR"},{"$f":"IF('1. Order'!Y274=\"\",\"\",'1. Order'!Y274)","v":""},{"$f":"IF('1. Order'!Z274=\"\",\"\",'1. Order'!Z274)","v":""},{"$f":"IF('1. Order'!AA274=\"\",\"\",'1. Order'!AA274)","v":""},null,{"$f":"IF('1. Order'!AS274=\"\",\"\",'1. Order'!AS274)","v":""},{"$f":"IF('1. Order'!AT274=\"\",\"\",'1. Order'!AT274)","v":""},null,null,null,null,null,null,null,{"$f":"IF('1. Order'!AX274=\"\",\"\",'1. Order'!AX274)","v":""},{"$f":"IF('1. Order'!AY274=\"\",\"\",'1. Order'!AY274)","v":""},{"$f":"IF('1. Order'!AZ274=\"\",\"\",'1. Order'!AZ274)","v":""},{"$f":"IF('1. Order'!BA274=\"\",\"\",'1. Order'!BA274)","v":""},{"$f":"IF('1. Order'!BC274=\"\",\"\",'1. Order'!BC274)","v":""},{"$f":"IF('1. Order'!BD274=\"\",\"\",'1. Order'!BD274)","v":6},{"$f":"IF('1. Order'!BE274=\"\",\"\",'1. Order'!BE274)","v":"None"},{"$f":"IF('1. Order'!BF274=\"\",\"\",'1. Order'!BF274)","v":"Parcel"},{"$f":"IF('1. Order'!BG274=\"\",\"\",'1. Order'!BG274)","v":"ZWO"}]
[{"$f":"IF('1. Order'!F275=\"\",\"\",'1. Order'!F275)","v":""},{"$f":"IF('1. Order'!G275=\"\",\"\",'1. Order'!G275)","v":""},{"$f":"IF('1. Order'!H275=\"\",\"\",'1. Order'!H275)","v":""},{"$f":"IF('1. Order'!I275=\"\",\"\",'1. Order'!I275)","v":""},{"$f":"IF('1. Order'!J275=\"\",\"\",'1. Order'!J275)","v":""},{"$f":"IF('1. Order'!K275=\"\",\"\",'1. Order'!K275)","v":""},{"$f":"IF('1. Order'!L275=\"\",\"\",'1. Order'!L275)","v":""},{"$f":"IF('1. Order'!M275=\"\",\"\",'1. Order'!M275)","v":""},{"$f":"IF('1. Order'!N275=\"\",\"\",'1. Order'!N275)","v":""},{"$f":"IF('1. Order'!O275=\"\",\"\",'1. Order'!O275)","v":{"$error":"#N/A"}},{"$f":"IF('1. Order'!P275=\"\",\"\",'1. Order'!P275)","v":{"$error":"#N/A"}},{"$f":"IF('1. Order'!Q275=\"\",\"\",'1. Order'!Q275)","v":""},{"$f":"IF('1. Order'!R275=\"\",\"\",'1. Order'!R275)","v":""},{"$f":"IF('1. Order'!S275=\"\",\"\",'1. Order'!S275)","v":""},{"$f":"IF('1. Order'!V275=\"\",\"\",'1. Order'!V275)","v":""},{"$f":"IF('1. Order'!W275=\"\",\"\",'1. Order'!W275)","v":""},{"$f":"IF('1. Order'!X275=\"\",\"\",'1. Order'!X275)","v":"EUR"},{"$f":"IF('1. Order'!Y275=\"\",\"\",'1. Order'!Y275)","v":""},{"$f":"IF('1. Order'!Z275=\"\",\"\",'1. Order'!Z275)","v":""},{"$f":"IF('1. Order'!AA275=\"\",\"\",'1. Order'!AA275)","v":""},null,{"$f":"IF('1. Order'!AS275=\"\",\"\",'1. Order'!AS275)","v":""},{"$f":"IF('1. Order'!AT275=\"\",\"\",'1. Order'!AT275)","v":""},null,null,null,null,null,null,null,{"$f":"IF('1. Order'!AX275=\"\",\"\",'1. Order'!AX275)","v":""},{"$f":"IF('1. Order'!AY275=\"\",\"\",'1. Order'!AY275)","v":""},{"$f":"IF('1. Order'!AZ275=\"\",\"\",'1. Order'!AZ275)","v":""},{"$f":"IF('1. Order'!BA275=\"\",\"\",'1. Order'!BA275)","v":""},{"$f":"IF('1. Order'!BC275=\"\",\"\",'1. Order'!BC275)","v":""},{"$f":"IF('1. Order'!BD275=\"\",\"\",'1. Order'!BD275)","v":6},{"$f":"IF('1. Order'!BE275=\"\",\"\",'1. Order'!BE275)","v":"None"},{"$f":"IF('1. Order'!BF275=\"\",\"\",'1. Order'!BF275)","v":"Parcel"},{"$f":"IF('1. Order'!BG275=\"\",\"\",'1. Order'!BG275)","v":"ZWO"}]
[{"$f":"IF('1. Order'!F276=\"\",\"\",'1. Order'!F276)","v":""},{"$f":"IF('1. Order'!G276=\"\",\"\",'1. Order'!G276)","v":""},{"$f":"IF('1. Order'!H276=\"\",\"\",'1. Order'!H276)","v":""},{"$f":"IF('1. Order'!I276=\"\",\"\",'1. Order'!I276)","v":""},{"$f":"IF('1. Order'!J276=\"\",\"\",'1. Order'!J276)","v":""},{"$f":"IF('1. Order'!K276=\"\",\"\",'1. Order'!K276)","v":""},{"$f":"IF('1. Order'!L276=\"\",\"\",'1. Order'!L276)","v":""},{"$f":"IF('1. Order'!M276=\"\",\"\",'1. Order'!M276)","v":""},{"$f":"IF('1. Order'!N276=\"\",\"\",'1. Order'!N276)","v":""},{"$f":"IF('1. Order'!O276=\"\",\"\",'1. Order'!O276)","v":{"$error":"#N/A"}},{"$f":"IF('1. Order'!P276=\"\",\"\",'1. Order'!P276)","v":{"$error":"#N/A"}},{"$f":"IF('1. Order'!Q276=\"\",\"\",'1. Order'!Q276)","v":""},{"$f":"IF('1. Order'!R276=\"\",\"\",'1. Order'!R276)","v":""},{"$f":"IF('1. Order'!S276=\"\",\"\",'1. Order'!S276)","v":""},{"$f":"IF('1. Order'!V276=\"\",\"\",'1. Order'!V276)","v":""},{"$f":"IF('1. Order'!W276=\"\",\"\",'1. Order'!W276)","v":""},{"$f":"IF('1. Order'!X276=\"\",\"\",'1. Order'!X276)","v":"EUR"},{"$f":"IF('1. Order'!Y276=\"\",\"\",'1. Order'!Y276)","v":""},{"$f":"IF('1. Order'!Z276=\"\",\"\",'1. Order'!Z276)","v":""},{"$f":"IF('1. Order'!AA276=\"\",\"\",'1. Order'!AA276)","v":""},null,{"$f":"IF('1. Order'!AS276=\"\",\"\",'1. Order'!AS276)","v":""},{"$f":"IF('1. Order'!AT276=\"\",\"\",'1. Order'!AT276)","v":""},null,null,null,null,null,null,null,{"$f":"IF('1. Order'!AX276=\"\",\"\",'1. Order'!AX276)","v":""},{"$f":"IF('1. Order'!AY276=\"\",\"\",'1. Order'!AY276)","v":""},{"$f":"IF('1. Order'!AZ276=\"\",\"\",'1. Order'!AZ276)","v":""},{"$f":"IF('1. Order'!BA276=\"\",\"\",'1. Order'!BA276)","v":""},{"$f":"IF('1. Order'!BC276=\"\",\"\",'1. Order'!BC276)","v":""},{"$f":"IF('1. Order'!BD276=\"\",\"\",'1. Order'!BD276)","v":6},{"$f":"IF('1. Order'!BE276=\"\",\"\",'1. Order'!BE276)","v":"None"},{"$f":"IF('1. Order'!BF276=\"\",\"\",'1. Order'!BF276)","v":"Parcel"},{"$f":"IF('1. Order'!BG276=\"\",\"\",'1. Order'!BG276)","v":"ZWO"}]
[{"$f":"IF('1. Order'!F277=\"\",\"\",'1. Order'!F277)","v":""},{"$f":"IF('1. Order'!G277=\"\",\"\",'1. Order'!G277)","v":""},{"$f":"IF('1. Order'!H277=\"\",\"\",'1. Order'!H277)","v":""},{"$f":"IF('1. Order'!I277=\"\",\"\",'1. Order'!I277)","v":""},{"$f":"IF('1. Order'!J277=\"\",\"\",'1. Order'!J277)","v":""},{"$f":"IF('1. Order'!K277=\"\",\"\",'1. Order'!K277)","v":""},{"$f":"IF('1. Order'!L277=\"\",\"\",'1. Order'!L277)","v":""},{"$f":"IF('1. Order'!M277=\"\",\"\",'1. Order'!M277)","v":""},{"$f":"IF('1. Order'!N277=\"\",\"\",'1. Order'!N277)","v":""},{"$f":"IF('1. Order'!O277=\"\",\"\",'1. Order'!O277)","v":{"$error":"#N/A"}},{"$f":"IF('1. Order'!P277=\"\",\"\",'1. Order'!P277)","v":{"$error":"#N/A"}},{"$f":"IF('1. Order'!Q277=\"\",\"\",'1. Order'!Q277)","v":""},{"$f":"IF('1. Order'!R277=\"\",\"\",'1. Order'!R277)","v":""},{"$f":"IF('1. Order'!S277=\"\",\"\",'1. Order'!S277)","v":""},{"$f":"IF('1. Order'!V277=\"\",\"\",'1. Order'!V277)","v":""},{"$f":"IF('1. Order'!W277=\"\",\"\",'1. Order'!W277)","v":""},{"$f":"IF('1. Order'!X277=\"\",\"\",'1. Order'!X277)","v":"EUR"},{"$f":"IF('1. Order'!Y277=\"\",\"\",'1. Order'!Y277)","v":""},{"$f":"IF('1. Order'!Z277=\"\",\"\",'1. Order'!Z277)","v":""},{"$f":"IF('1. Order'!AA277=\"\",\"\",'1. Order'!AA277)","v":""},null,{"$f":"IF('1. Order'!AS277=\"\",\"\",'1. Order'!AS277)","v":""},{"$f":"IF('1. Order'!AT277=\"\",\"\",'1. Order'!AT277)","v":""},null,null,null,null,null,null,null,{"$f":"IF('1. Order'!AX277=\"\",\"\",'1. Order'!AX277)","v":""},{"$f":"IF('1. Order'!AY277=\"\",\"\",'1. Order'!AY277)","v":""},{"$f":"IF('1. Order'!AZ277=\"\",\"\",'1. Order'!AZ277)","v":""},{"$f":"IF('1. Order'!BA277=\"\",\"\",'1. Order'!BA277)","v":""},{"$f":"IF('1. Order'!BC277=\"\",\"\",'1. Order'!BC277)","v":""},{"$f":"IF('1. Order'!BD277=\"\",\"\",'1. Order'!BD277)","v":6},{"$f":"IF('1. Order'!BE277=\"\",\"\",'1. Order'!BE277)","v":"None"},{"$f":"IF('1. Order'!BF277=\"\",\"\",'1. Order'!BF277)","v":"Parcel"},{"$f":"IF('1. Order'!BG277=\"\",\"\",'1. Order'!BG277)","v":"ZWO"}]
[{"$f":"IF('1. Order'!F278=\"\",\"\",'1. Order'!F278)","v":""},{"$f":"IF('1. Order'!G278=\"\",\"\",'1. Order'!G278)","v":""},{"$f":"IF('1. Order'!H278=\"\",\"\",'1. Order'!H278)","v":""},{"$f":"IF('1. Order'!I278=\"\",\"\",'1. Order'!I278)","v":""},{"$f":"IF('1. Order'!J278=\"\",\"\",'1. Order'!J278)","v":""},{"$f":"IF('1. Order'!K278=\"\",\"\",'1. Order'!K278)","v":""},{"$f":"IF('1. Order'!L278=\"\",\"\",'1. Order'!L278)","v":""},{"$f":"IF('1. Order'!M278=\"\",\"\",'1. Order'!M278)","v":""},{"$f":"IF('1. Order'!N278=\"\",\"\",'1. Order'!N278)","v":""},{"$f":"IF('1. Order'!O278=\"\",\"\",'1. Order'!O278)","v":{"$error":"#N/A"}},{"$f":"IF('1. Order'!P278=\"\",\"\",'1. Order'!P278)","v":{"$error":"#N/A"}},{"$f":"IF('1. Order'!Q278=\"\",\"\",'1. Order'!Q278)","v":""},{"$f":"IF('1. Order'!R278=\"\",\"\",'1. Order'!R278)","v":""},{"$f":"IF('1. Order'!S278=\"\",\"\",'1. Order'!S278)","v":""},{"$f":"IF('1. Order'!V278=\"\",\"\",'1. Order'!V278)","v":""},{"$f":"IF('1. Order'!W278=\"\",\"\",'1. Order'!W278)","v":""},{"$f":"IF('1. Order'!X278=\"\",\"\",'1. Order'!X278)","v":"EUR"},{"$f":"IF('1. Order'!Y278=\"\",\"\",'1. Order'!Y278)","v":""},{"$f":"IF('1. Order'!Z278=\"\",\"\",'1. Order'!Z278)","v":""},{"$f":"IF('1. Order'!AA278=\"\",\"\",'1. Order'!AA278)","v":""},null,{"$f":"IF('1. Order'!AS278=\"\",\"\",'1. Order'!AS278)","v":""},{"$f":"IF('1. Order'!AT278=\"\",\"\",'1. Order'!AT278)","v":""},null,null,null,null,null,null,null,{"$f":"IF('1. Order'!AX278=\"\",\"\",'1. Order'!AX278)","v":""},{"$f":"IF('1. Order'!AY278=\"\",\"\",'1. Order'!AY278)","v":""},{"$f":"IF('1. Order'!AZ278=\"\",\"\",'1. Order'!AZ278)","v":""},{"$f":"IF('1. Order'!BA278=\"\",\"\",'1. Order'!BA278)","v":""},{"$f":"IF('1. Order'!BC278=\"\",\"\",'1. Order'!BC278)","v":""},{"$f":"IF('1. Order'!BD278=\"\",\"\",'1. Order'!BD278)","v":6},{"$f":"IF('1. Order'!BE278=\"\",\"\",'1. Order'!BE278)","v":"None"},{"$f":"IF('1. Order'!BF278=\"\",\"\",'1. Order'!BF278)","v":"Parcel"},{"$f":"IF('1. Order'!BG278=\"\",\"\",'1. Order'!BG278)","v":"ZWO"}]
[{"$f":"IF('1. Order'!F279=\"\",\"\",'1. Order'!F279)","v":""},{"$f":"IF('1. Order'!G279=\"\",\"\",'1. Order'!G279)","v":""},{"$f":"IF('1. Order'!H279=\"\",\"\",'1. Order'!H279)","v":""},{"$f":"IF('1. Order'!I279=\"\",\"\",'1. Order'!I279)","v":""},{"$f":"IF('1. Order'!J279=\"\",\"\",'1. Order'!J279)","v":""},{"$f":"IF('1. Order'!K279=\"\",\"\",'1. Order'!K279)","v":""},{"$f":"IF('1. Order'!L279=\"\",\"\",'1. Order'!L279)","v":""},{"$f":"IF('1. Order'!M279=\"\",\"\",'1. Order'!M279)","v":""},{"$f":"IF('1. Order'!N279=\"\",\"\",'1. Order'!N279)","v":""},{"$f":"IF('1. Order'!O279=\"\",\"\",'1. Order'!O279)","v":{"$error":"#N/A"}},{"$f":"IF('1. Order'!P279=\"\",\"\",'1. Order'!P279)","v":{"$error":"#N/A"}},{"$f":"IF('1. Order'!Q279=\"\",\"\",'1. Order'!Q279)","v":""},{"$f":"IF('1. Order'!R279=\"\",\"\",'1. Order'!R279)","v":""},{"$f":"IF('1. Order'!S279=\"\",\"\",'1. Order'!S279)","v":""},{"$f":"IF('1. Order'!V279=\"\",\"\",'1. Order'!V279)","v":""},{"$f":"IF('1. Order'!W279=\"\",\"\",'1. Order'!W279)","v":""},{"$f":"IF('1. Order'!X279=\"\",\"\",'1. Order'!X279)","v":"EUR"},{"$f":"IF('1. Order'!Y279=\"\",\"\",'1. Order'!Y279)","v":""},{"$f":"IF('1. Order'!Z279=\"\",\"\",'1. Order'!Z279)","v":""},{"$f":"IF('1. Order'!AA279=\"\",\"\",'1. Order'!AA279)","v":""},null,{"$f":"IF('1. Order'!AS279=\"\",\"\",'1. Order'!AS279)","v":""},{"$f":"IF('1. Order'!AT279=\"\",\"\",'1. Order'!AT279)","v":""},null,null,null,null,null,null,null,{"$f":"IF('1. Order'!AX279=\"\",\"\",'1. Order'!AX279)","v":""},{"$f":"IF('1. Order'!AY279=\"\",\"\",'1. Order'!AY279)","v":""},{"$f":"IF('1. Order'!AZ279=\"\",\"\",'1. Order'!AZ279)","v":""},{"$f":"IF('1. Order'!BA279=\"\",\"\",'1. Order'!BA279)","v":""},{"$f":"IF('1. Order'!BC279=\"\",\"\",'1. Order'!BC279)","v":""},{"$f":"IF('1. Order'!BD279=\"\",\"\",'1. Order'!BD279)","v":6},{"$f":"IF('1. Order'!BE279=\"\",\"\",'1. Order'!BE279)","v":"None"},{"$f":"IF('1. Order'!BF279=\"\",\"\",'1. Order'!BF279)","v":"Parcel"},{"$f":"IF('1. Order'!BG279=\"\",\"\",'1. Order'!BG279)","v":"ZWO"}]
[{"$f":"IF('1. Order'!F280=\"\",\"\",'1. Order'!F280)","v":""},{"$f":"IF('1. Order'!G280=\"\",\"\",'1. Order'!G280)","v":""},{"$f":"IF('1. Order'!H280=\"\",\"\",'1. Order'!H280)","v":""},{"$f":"IF('1. Order'!I280=\"\",\"\",'1. Order'!I280)","v":""},{"$f":"IF('1. Order'!J280=\"\",\"\",'1. Order'!J280)","v":""},{"$f":"IF('1. Order'!K280=\"\",\"\",'1. Order'!K280)","v":""},{"$f":"IF('1. Order'!L280=\"\",\"\",'1. Order'!L280)","v":""},{"$f":"IF('1. Order'!M280=\"\",\"\",'1. Order'!M280)","v":""},{"$f":"IF('1. Order'!N280=\"\",\"\",'1. Order'!N280)","v":""},{"$f":"IF('1. Order'!O280=\"\",\"\",'1. Order'!O280)","v":{"$error":"#N/A"}},{"$f":"IF('1. Order'!P280=\"\",\"\",'1. Order'!P280)","v":{"$error":"#N/A"}},{"$f":"IF('1. Order'!Q280=\"\",\"\",'1. Order'!Q280)","v":""},{"$f":"IF('1. Order'!R280=\"\",\"\",'1. Order'!R280)","v":""},{"$f":"IF('1. Order'!S280=\"\",\"\",'1. Order'!S280)","v":""},{"$f":"IF('1. Order'!V280=\"\",\"\",'1. Order'!V280)","v":""},{"$f":"IF('1. Order'!W280=\"\",\"\",'1. Order'!W280)","v":""},{"$f":"IF('1. Order'!X280=\"\",\"\",'1. Order'!X280)","v":"EUR"},{"$f":"IF('1. Order'!Y280=\"\",\"\",'1. Order'!Y280)","v":""},{"$f":"IF('1. Order'!Z280=\"\",\"\",'1. Order'!Z280)","v":""},{"$f":"IF('1. Order'!AA280=\"\",\"\",'1. Order'!AA280)","v":""},null,{"$f":"IF('1. Order'!AS280=\"\",\"\",'1. Order'!AS280)","v":""},{"$f":"IF('1. Order'!AT280=\"\",\"\",'1. Order'!AT280)","v":""},null,null,null,null,null,null,null,{"$f":"IF('1. Order'!AX280=\"\",\"\",'1. Order'!AX280)","v":""},{"$f":"IF('1. Order'!AY280=\"\",\"\",'1. Order'!AY280)","v":""},{"$f":"IF('1. Order'!AZ280=\"\",\"\",'1. Order'!AZ280)","v":""},{"$f":"IF('1. Order'!BA280=\"\",\"\",'1. Order'!BA280)","v":""},{"$f":"IF('1. Order'!BC280=\"\",\"\",'1. Order'!BC280)","v":""},{"$f":"IF('1. Order'!BD280=\"\",\"\",'1. Order'!BD280)","v":6},{"$f":"IF('1. Order'!BE280=\"\",\"\",'1. Order'!BE280)","v":"None"},{"$f":"IF('1. Order'!BF280=\"\",\"\",'1. Order'!BF280)","v":"Parcel"},{"$f":"IF('1. Order'!BG280=\"\",\"\",'1. Order'!BG280)","v":"ZWO"}]
[{"$f":"IF('1. Order'!F281=\"\",\"\",'1. Order'!F281)","v":""},{"$f":"IF('1. Order'!G281=\"\",\"\",'1. Order'!G281)","v":""},{"$f":"IF('1. Order'!H281=\"\",\"\",'1. Order'!H281)","v":""},{"$f":"IF('1. Order'!I281=\"\",\"\",'1. Order'!I281)","v":""},{"$f":"IF('1. Order'!J281=\"\",\"\",'1. Order'!J281)","v":""},{"$f":"IF('1. Order'!K281=\"\",\"\",'1. Order'!K281)","v":""},{"$f":"IF('1. Order'!L281=\"\",\"\",'1. Order'!L281)","v":""},{"$f":"IF('1. Order'!M281=\"\",\"\",'1. Order'!M281)","v":""},{"$f":"IF('1. Order'!N281=\"\",\"\",'1. Order'!N281)","v":""},{"$f":"IF('1. Order'!O281=\"\",\"\",'1. Order'!O281)","v":{"$error":"#N/A"}},{"$f":"IF('1. Order'!P281=\"\",\"\",'1. Order'!P281)","v":{"$error":"#N/A"}},{"$f":"IF('1. Order'!Q281=\"\",\"\",'1. Order'!Q281)","v":""},{"$f":"IF('1. Order'!R281=\"\",\"\",'1. Order'!R281)","v":""},{"$f":"IF('1. Order'!S281=\"\",\"\",'1. Order'!S281)","v":""},{"$f":"IF('1. Order'!V281=\"\",\"\",'1. Order'!V281)","v":""},{"$f":"IF('1. Order'!W281=\"\",\"\",'1. Order'!W281)","v":""},{"$f":"IF('1. Order'!X281=\"\",\"\",'1. Order'!X281)","v":"EUR"},{"$f":"IF('1. Order'!Y281=\"\",\"\",'1. Order'!Y281)","v":""},{"$f":"IF('1. Order'!Z281=\"\",\"\",'1. Order'!Z281)","v":""},{"$f":"IF('1. Order'!AA281=\"\",\"\",'1. Order'!AA281)","v":""},null,{"$f":"IF('1. Order'!AS281=\"\",\"\",'1. Order'!AS281)","v":""},{"$f":"IF('1. Order'!AT281=\"\",\"\",'1. Order'!AT281)","v":""},null,null,null,null,null,null,null,{"$f":"IF('1. Order'!AX281=\"\",\"\",'1. Order'!AX281)","v":""},{"$f":"IF('1. Order'!AY281=\"\",\"\",'1. Order'!AY281)","v":""},{"$f":"IF('1. Order'!AZ281=\"\",\"\",'1. Order'!AZ281)","v":""},{"$f":"IF('1. Order'!BA281=\"\",\"\",'1. Order'!BA281)","v":""},{"$f":"IF('1. Order'!BC281=\"\",\"\",'1. Order'!BC281)","v":""},{"$f":"IF('1. Order'!BD281=\"\",\"\",'1. Order'!BD281)","v":6},{"$f":"IF('1. Order'!BE281=\"\",\"\",'1. Order'!BE281)","v":"None"},{"$f":"IF('1. Order'!BF281=\"\",\"\",'1. Order'!BF281)","v":"Parcel"},{"$f":"IF('1. Order'!BG281=\"\",\"\",'1. Order'!BG281)","v":"ZWO"}]
[{"$f":"IF('1. Order'!F282=\"\",\"\",'1. Order'!F282)","v":""},{"$f":"IF('1. Order'!G282=\"\",\"\",'1. Order'!G282)","v":""},{"$f":"IF('1. Order'!H282=\"\",\"\",'1. Order'!H282)","v":""},{"$f":"IF('1. Order'!I282=\"\",\"\",'1. Order'!I282)","v":""},{"$f":"IF('1. Order'!J282=\"\",\"\",'1. Order'!J282)","v":""},{"$f":"IF('1. Order'!K282=\"\",\"\",'1. Order'!K282)","v":""},{"$f":"IF('1. Order'!L282=\"\",\"\",'1. Order'!L282)","v":""},{"$f":"IF('1. Order'!M282=\"\",\"\",'1. Order'!M282)","v":""},{"$f":"IF('1. Order'!N282=\"\",\"\",'1. Order'!N282)","v":""},{"$f":"IF('1. Order'!O282=\"\",\"\",'1. Order'!O282)","v":{"$error":"#N/A"}},{"$f":"IF('1. Order'!P282=\"\",\"\",'1. Order'!P282)","v":{"$error":"#N/A"}},{"$f":"IF('1. Order'!Q282=\"\",\"\",'1. Order'!Q282)","v":""},{"$f":"IF('1. Order'!R282=\"\",\"\",'1. Order'!R282)","v":""},{"$f":"IF('1. Order'!S282=\"\",\"\",'1. Order'!S282)","v":""},{"$f":"IF('1. Order'!V282=\"\",\"\",'1. Order'!V282)","v":""},{"$f":"IF('1. Order'!W282=\"\",\"\",'1. Order'!W282)","v":""},{"$f":"IF('1. Order'!X282=\"\",\"\",'1. Order'!X282)","v":"EUR"},{"$f":"IF('1. Order'!Y282=\"\",\"\",'1. Order'!Y282)","v":""},{"$f":"IF('1. Order'!Z282=\"\",\"\",'1. Order'!Z282)","v":""},{"$f":"IF('1. Order'!AA282=\"\",\"\",'1. Order'!AA282)","v":""},null,{"$f":"IF('1. Order'!AS282=\"\",\"\",'1. Order'!AS282)","v":""},{"$f":"IF('1. Order'!AT282=\"\",\"\",'1. Order'!AT282)","v":""},null,null,null,null,null,null,null,{"$f":"IF('1. Order'!AX282=\"\",\"\",'1. Order'!AX282)","v":""},{"$f":"IF('1. Order'!AY282=\"\",\"\",'1. Order'!AY282)","v":""},{"$f":"IF('1. Order'!AZ282=\"\",\"\",'1. Order'!AZ282)","v":""},{"$f":"IF('1. Order'!BA282=\"\",\"\",'1. Order'!BA282)","v":""},{"$f":"IF('1. Order'!BC282=\"\",\"\",'1. Order'!BC282)","v":""},{"$f":"IF('1. Order'!BD282=\"\",\"\",'1. Order'!BD282)","v":6},{"$f":"IF('1. Order'!BE282=\"\",\"\",'1. Order'!BE282)","v":"None"},{"$f":"IF('1. Order'!BF282=\"\",\"\",'1. Order'!BF282)","v":"Parcel"},{"$f":"IF('1. Order'!BG282=\"\",\"\",'1. Order'!BG282)","v":"ZWO"}]
[{"$f":"IF('1. Order'!F283=\"\",\"\",'1. Order'!F283)","v":""},{"$f":"IF('1. Order'!G283=\"\",\"\",'1. Order'!G283)","v":""},{"$f":"IF('1. Order'!H283=\"\",\"\",'1. Order'!H283)","v":""},{"$f":"IF('1. Order'!I283=\"\",\"\",'1. Order'!I283)","v":""},{"$f":"IF('1. Order'!J283=\"\",\"\",'1. Order'!J283)","v":""},{"$f":"IF('1. Order'!K283=\"\",\"\",'1. Order'!K283)","v":""},{"$f":"IF('1. Order'!L283=\"\",\"\",'1. Order'!L283)","v":""},{"$f":"IF('1. Order'!M283=\"\",\"\",'1. Order'!M283)","v":""},{"$f":"IF('1. Order'!N283=\"\",\"\",'1. Order'!N283)","v":""},{"$f":"IF('1. Order'!O283=\"\",\"\",'1. Order'!O283)","v":{"$error":"#N/A"}},{"$f":"IF('1. Order'!P283=\"\",\"\",'1. Order'!P283)","v":{"$error":"#N/A"}},{"$f":"IF('1. Order'!Q283=\"\",\"\",'1. Order'!Q283)","v":""},{"$f":"IF('1. Order'!R283=\"\",\"\",'1. Order'!R283)","v":""},{"$f":"IF('1. Order'!S283=\"\",\"\",'1. Order'!S283)","v":""},{"$f":"IF('1. Order'!V283=\"\",\"\",'1. Order'!V283)","v":""},{"$f":"IF('1. Order'!W283=\"\",\"\",'1. Order'!W283)","v":""},{"$f":"IF('1. Order'!X283=\"\",\"\",'1. Order'!X283)","v":"EUR"},{"$f":"IF('1. Order'!Y283=\"\",\"\",'1. Order'!Y283)","v":""},{"$f":"IF('1. Order'!Z283=\"\",\"\",'1. Order'!Z283)","v":""},{"$f":"IF('1. Order'!AA283=\"\",\"\",'1. Order'!AA283)","v":""},null,{"$f":"IF('1. Order'!AS283=\"\",\"\",'1. Order'!AS283)","v":""},{"$f":"IF('1. Order'!AT283=\"\",\"\",'1. Order'!AT283)","v":""},null,null,null,null,null,null,null,{"$f":"IF('1. Order'!AX283=\"\",\"\",'1. Order'!AX283)","v":""},{"$f":"IF('1. Order'!AY283=\"\",\"\",'1. Order'!AY283)","v":""},{"$f":"IF('1. Order'!AZ283=\"\",\"\",'1. Order'!AZ283)","v":""},{"$f":"IF('1. Order'!BA283=\"\",\"\",'1. Order'!BA283)","v":""},{"$f":"IF('1. Order'!BC283=\"\",\"\",'1. Order'!BC283)","v":""},{"$f":"IF('1. Order'!BD283=\"\",\"\",'1. Order'!BD283)","v":6},{"$f":"IF('1. Order'!BE283=\"\",\"\",'1. Order'!BE283)","v":"None"},{"$f":"IF('1. Order'!BF283=\"\",\"\",'1. Order'!BF283)","v":"Parcel"},{"$f":"IF('1. Order'!BG283=\"\",\"\",'1. Order'!BG283)","v":"ZWO"}]
[{"$f":"IF('1. Order'!F284=\"\",\"\",'1. Order'!F284)","v":""},{"$f":"IF('1. Order'!G284=\"\",\"\",'1. Order'!G284)","v":""},{"$f":"IF('1. Order'!H284=\"\",\"\",'1. Order'!H284)","v":""},{"$f":"IF('1. Order'!I284=\"\",\"\",'1. Order'!I284)","v":""},{"$f":"IF('1. Order'!J284=\"\",\"\",'1. Order'!J284)","v":""},{"$f":"IF('1. Order'!K284=\"\",\"\",'1. Order'!K284)","v":""},{"$f":"IF('1. Order'!L284=\"\",\"\",'1. Order'!L284)","v":""},{"$f":"IF('1. Order'!M284=\"\",\"\",'1. Order'!M284)","v":""},{"$f":"IF('1. Order'!N284=\"\",\"\",'1. Order'!N284)","v":""},{"$f":"IF('1. Order'!O284=\"\",\"\",'1. Order'!O284)","v":{"$error":"#N/A"}},{"$f":"IF('1. Order'!P284=\"\",\"\",'1. Order'!P284)","v":{"$error":"#N/A"}},{"$f":"IF('1. Order'!Q284=\"\",\"\",'1. Order'!Q284)","v":""},{"$f":"IF('1. Order'!R284=\"\",\"\",'1. Order'!R284)","v":""},{"$f":"IF('1. Order'!S284=\"\",\"\",'1. Order'!S284)","v":""},{"$f":"IF('1. Order'!V284=\"\",\"\",'1. Order'!V284)","v":""},{"$f":"IF('1. Order'!W284=\"\",\"\",'1. Order'!W284)","v":""},{"$f":"IF('1. Order'!X284=\"\",\"\",'1. Order'!X284)","v":"EUR"},{"$f":"IF('1. Order'!Y284=\"\",\"\",'1. Order'!Y284)","v":""},{"$f":"IF('1. Order'!Z284=\"\",\"\",'1. Order'!Z284)","v":""},{"$f":"IF('1. Order'!AA284=\"\",\"\",'1. Order'!AA284)","v":""},null,{"$f":"IF('1. Order'!AS284=\"\",\"\",'1. Order'!AS284)","v":""},{"$f":"IF('1. Order'!AT284=\"\",\"\",'1. Order'!AT284)","v":""},null,null,null,null,null,null,null,{"$f":"IF('1. Order'!AX284=\"\",\"\",'1. Order'!AX284)","v":""},{"$f":"IF('1. Order'!AY284=\"\",\"\",'1. Order'!AY284)","v":""},{"$f":"IF('1. Order'!AZ284=\"\",\"\",'1. Order'!AZ284)","v":""},{"$f":"IF('1. Order'!BA284=\"\",\"\",'1. Order'!BA284)","v":""},{"$f":"IF('1. Order'!BC284=\"\",\"\",'1. Order'!BC284)","v":""},{"$f":"IF('1. Order'!BD284=\"\",\"\",'1. Order'!BD284)","v":6},{"$f":"IF('1. Order'!BE284=\"\",\"\",'1. Order'!BE284)","v":"None"},{"$f":"IF('1. Order'!BF284=\"\",\"\",'1. Order'!BF284)","v":"Parcel"},{"$f":"IF('1. Order'!BG284=\"\",\"\",'1. Order'!BG284)","v":"ZWO"}]
[{"$f":"IF('1. Order'!F285=\"\",\"\",'1. Order'!F285)","v":""},{"$f":"IF('1. Order'!G285=\"\",\"\",'1. Order'!G285)","v":""},{"$f":"IF('1. Order'!H285=\"\",\"\",'1. Order'!H285)","v":""},{"$f":"IF('1. Order'!I285=\"\",\"\",'1. Order'!I285)","v":""},{"$f":"IF('1. Order'!J285=\"\",\"\",'1. Order'!J285)","v":""},{"$f":"IF('1. Order'!K285=\"\",\"\",'1. Order'!K285)","v":""},{"$f":"IF('1. Order'!L285=\"\",\"\",'1. Order'!L285)","v":""},{"$f":"IF('1. Order'!M285=\"\",\"\",'1. Order'!M285)","v":""},{"$f":"IF('1. Order'!N285=\"\",\"\",'1. Order'!N285)","v":""},{"$f":"IF('1. Order'!O285=\"\",\"\",'1. Order'!O285)","v":{"$error":"#N/A"}},{"$f":"IF('1. Order'!P285=\"\",\"\",'1. Order'!P285)","v":{"$error":"#N/A"}},{"$f":"IF('1. Order'!Q285=\"\",\"\",'1. Order'!Q285)","v":""},{"$f":"IF('1. Order'!R285=\"\",\"\",'1. Order'!R285)","v":""},{"$f":"IF('1. Order'!S285=\"\",\"\",'1. Order'!S285)","v":""},{"$f":"IF('1. Order'!V285=\"\",\"\",'1. Order'!V285)","v":""},{"$f":"IF('1. Order'!W285=\"\",\"\",'1. Order'!W285)","v":""},{"$f":"IF('1. Order'!X285=\"\",\"\",'1. Order'!X285)","v":"EUR"},{"$f":"IF('1. Order'!Y285=\"\",\"\",'1. Order'!Y285)","v":""},{"$f":"IF('1. Order'!Z285=\"\",\"\",'1. Order'!Z285)","v":""},{"$f":"IF('1. Order'!AA285=\"\",\"\",'1. Order'!AA285)","v":""},null,{"$f":"IF('1. Order'!AS285=\"\",\"\",'1. Order'!AS285)","v":""},{"$f":"IF('1. Order'!AT285=\"\",\"\",'1. Order'!AT285)","v":""},null,null,null,null,null,null,null,{"$f":"IF('1. Order'!AX285=\"\",\"\",'1. Order'!AX285)","v":""},{"$f":"IF('1. Order'!AY285=\"\",\"\",'1. Order'!AY285)","v":""},{"$f":"IF('1. Order'!AZ285=\"\",\"\",'1. Order'!AZ285)","v":""},{"$f":"IF('1. Order'!BA285=\"\",\"\",'1. Order'!BA285)","v":""},{"$f":"IF('1. Order'!BC285=\"\",\"\",'1. Order'!BC285)","v":""},{"$f":"IF('1. Order'!BD285=\"\",\"\",'1. Order'!BD285)","v":6},{"$f":"IF('1. Order'!BE285=\"\",\"\",'1. Order'!BE285)","v":"None"},{"$f":"IF('1. Order'!BF285=\"\",\"\",'1. Order'!BF285)","v":"Parcel"},{"$f":"IF('1. Order'!BG285=\"\",\"\",'1. Order'!BG285)","v":"ZWO"}]
[{"$f":"IF('1. Order'!F286=\"\",\"\",'1. Order'!F286)","v":""},{"$f":"IF('1. Order'!G286=\"\",\"\",'1. Order'!G286)","v":""},{"$f":"IF('1. Order'!H286=\"\",\"\",'1. Order'!H286)","v":""},{"$f":"IF('1. Order'!I286=\"\",\"\",'1. Order'!I286)","v":""},{"$f":"IF('1. Order'!J286=\"\",\"\",'1. Order'!J286)","v":""},{"$f":"IF('1. Order'!K286=\"\",\"\",'1. Order'!K286)","v":""},{"$f":"IF('1. Order'!L286=\"\",\"\",'1. Order'!L286)","v":""},{"$f":"IF('1. Order'!M286=\"\",\"\",'1. Order'!M286)","v":""},{"$f":"IF('1. Order'!N286=\"\",\"\",'1. Order'!N286)","v":""},{"$f":"IF('1. Order'!O286=\"\",\"\",'1. Order'!O286)","v":{"$error":"#N/A"}},{"$f":"IF('1. Order'!P286=\"\",\"\",'1. Order'!P286)","v":{"$error":"#N/A"}},{"$f":"IF('1. Order'!Q286=\"\",\"\",'1. Order'!Q286)","v":""},{"$f":"IF('1. Order'!R286=\"\",\"\",'1. Order'!R286)","v":""},{"$f":"IF('1. Order'!S286=\"\",\"\",'1. Order'!S286)","v":""},{"$f":"IF('1. Order'!V286=\"\",\"\",'1. Order'!V286)","v":""},{"$f":"IF('1. Order'!W286=\"\",\"\",'1. Order'!W286)","v":""},{"$f":"IF('1. Order'!X286=\"\",\"\",'1. Order'!X286)","v":"EUR"},{"$f":"IF('1. Order'!Y286=\"\",\"\",'1. Order'!Y286)","v":""},{"$f":"IF('1. Order'!Z286=\"\",\"\",'1. Order'!Z286)","v":""},{"$f":"IF('1. Order'!AA286=\"\",\"\",'1. Order'!AA286)","v":""},null,{"$f":"IF('1. Order'!AS286=\"\",\"\",'1. Order'!AS286)","v":""},{"$f":"IF('1. Order'!AT286=\"\",\"\",'1. Order'!AT286)","v":""},null,null,null,null,null,null,null,{"$f":"IF('1. Order'!AX286=\"\",\"\",'1. Order'!AX286)","v":""},{"$f":"IF('1. Order'!AY286=\"\",\"\",'1. Order'!AY286)","v":""},{"$f":"IF('1. Order'!AZ286=\"\",\"\",'1. Order'!AZ286)","v":""},{"$f":"IF('1. Order'!BA286=\"\",\"\",'1. Order'!BA286)","v":""},{"$f":"IF('1. Order'!BC286=\"\",\"\",'1. Order'!BC286)","v":""},{"$f":"IF('1. Order'!BD286=\"\",\"\",'1. Order'!BD286)","v":6},{"$f":"IF('1. Order'!BE286=\"\",\"\",'1. Order'!BE286)","v":"None"},{"$f":"IF('1. Order'!BF286=\"\",\"\",'1. Order'!BF286)","v":"Parcel"},{"$f":"IF('1. Order'!BG286=\"\",\"\",'1. Order'!BG286)","v":"ZWO"}]
[{"$f":"IF('1. Order'!F287=\"\",\"\",'1. Order'!F287)","v":""},{"$f":"IF('1. Order'!G287=\"\",\"\",'1. Order'!G287)","v":""},{"$f":"IF('1. Order'!H287=\"\",\"\",'1. Order'!H287)","v":""},{"$f":"IF('1. Order'!I287=\"\",\"\",'1. Order'!I287)","v":""},{"$f":"IF('1. Order'!J287=\"\",\"\",'1. Order'!J287)","v":""},{"$f":"IF('1. Order'!K287=\"\",\"\",'1. Order'!K287)","v":""},{"$f":"IF('1. Order'!L287=\"\",\"\",'1. Order'!L287)","v":""},{"$f":"IF('1. Order'!M287=\"\",\"\",'1. Order'!M287)","v":""},{"$f":"IF('1. Order'!N287=\"\",\"\",'1. Order'!N287)","v":""},{"$f":"IF('1. Order'!O287=\"\",\"\",'1. Order'!O287)","v":{"$error":"#N/A"}},{"$f":"IF('1. Order'!P287=\"\",\"\",'1. Order'!P287)","v":{"$error":"#N/A"}},{"$f":"IF('1. Order'!Q287=\"\",\"\",'1. Order'!Q287)","v":""},{"$f":"IF('1. Order'!R287=\"\",\"\",'1. Order'!R287)","v":""},{"$f":"IF('1. Order'!S287=\"\",\"\",'1. Order'!S287)","v":""},{"$f":"IF('1. Order'!V287=\"\",\"\",'1. Order'!V287)","v":""},{"$f":"IF('1. Order'!W287=\"\",\"\",'1. Order'!W287)","v":""},{"$f":"IF('1. Order'!X287=\"\",\"\",'1. Order'!X287)","v":"EUR"},{"$f":"IF('1. Order'!Y287=\"\",\"\",'1. Order'!Y287)","v":""},{"$f":"IF('1. Order'!Z287=\"\",\"\",'1. Order'!Z287)","v":""},{"$f":"IF('1. Order'!AA287=\"\",\"\",'1. Order'!AA287)","v":""},null,{"$f":"IF('1. Order'!AS287=\"\",\"\",'1. Order'!AS287)","v":""},{"$f":"IF('1. Order'!AT287=\"\",\"\",'1. Order'!AT287)","v":""},null,null,null,null,null,null,null,{"$f":"IF('1. Order'!AX287=\"\",\"\",'1. Order'!AX287)","v":""},{"$f":"IF('1. Order'!AY287=\"\",\"\",'1. Order'!AY287)","v":""},{"$f":"IF('1. Order'!AZ287=\"\",\"\",'1. Order'!AZ287)","v":""},{"$f":"IF('1. Order'!BA287=\"\",\"\",'1. Order'!BA287)","v":""},{"$f":"IF('1. Order'!BC287=\"\",\"\",'1. Order'!BC287)","v":""},{"$f":"IF('1. Order'!BD287=\"\",\"\",'1. Order'!BD287)","v":6},{"$f":"IF('1. Order'!BE287=\"\",\"\",'1. Order'!BE287)","v":"None"},{"$f":"IF('1. Order'!BF287=\"\",\"\",'1. Order'!BF287)","v":"Parcel"},{"$f":"IF('1. Order'!BG287=\"\",\"\",'1. Order'!BG287)","v":"ZWO"}]
[{"$f":"IF('1. Order'!F288=\"\",\"\",'1. Order'!F288)","v":""},{"$f":"IF('1. Order'!G288=\"\",\"\",'1. Order'!G288)","v":""},{"$f":"IF('1. Order'!H288=\"\",\"\",'1. Order'!H288)","v":""},{"$f":"IF('1. Order'!I288=\"\",\"\",'1. Order'!I288)","v":""},{"$f":"IF('1. Order'!J288=\"\",\"\",'1. Order'!J288)","v":""},{"$f":"IF('1. Order'!K288=\"\",\"\",'1. Order'!K288)","v":""},{"$f":"IF('1. Order'!L288=\"\",\"\",'1. Order'!L288)","v":""},{"$f":"IF('1. Order'!M288=\"\",\"\",'1. Order'!M288)","v":""},{"$f":"IF('1. Order'!N288=\"\",\"\",'1. Order'!N288)","v":""},{"$f":"IF('1. Order'!O288=\"\",\"\",'1. Order'!O288)","v":{"$error":"#N/A"}},{"$f":"IF('1. Order'!P288=\"\",\"\",'1. Order'!P288)","v":{"$error":"#N/A"}},{"$f":"IF('1. Order'!Q288=\"\",\"\",'1. Order'!Q288)","v":""},{"$f":"IF('1. Order'!R288=\"\",\"\",'1. Order'!R288)","v":""},{"$f":"IF('1. Order'!S288=\"\",\"\",'1. Order'!S288)","v":""},{"$f":"IF('1. Order'!V288=\"\",\"\",'1. Order'!V288)","v":""},{"$f":"IF('1. Order'!W288=\"\",\"\",'1. Order'!W288)","v":""},{"$f":"IF('1. Order'!X288=\"\",\"\",'1. Order'!X288)","v":"EUR"},{"$f":"IF('1. Order'!Y288=\"\",\"\",'1. Order'!Y288)","v":""},{"$f":"IF('1. Order'!Z288=\"\",\"\",'1. Order'!Z288)","v":""},{"$f":"IF('1. Order'!AA288=\"\",\"\",'1. Order'!AA288)","v":""},null,{"$f":"IF('1. Order'!AS288=\"\",\"\",'1. Order'!AS288)","v":""},{"$f":"IF('1. Order'!AT288=\"\",\"\",'1. Order'!AT288)","v":""},null,null,null,null,null,null,null,{"$f":"IF('1. Order'!AX288=\"\",\"\",'1. Order'!AX288)","v":""},{"$f":"IF('1. Order'!AY288=\"\",\"\",'1. Order'!AY288)","v":""},{"$f":"IF('1. Order'!AZ288=\"\",\"\",'1. Order'!AZ288)","v":""},{"$f":"IF('1. Order'!BA288=\"\",\"\",'1. Order'!BA288)","v":""},{"$f":"IF('1. Order'!BC288=\"\",\"\",'1. Order'!BC288)","v":""},{"$f":"IF('1. Order'!BD288=\"\",\"\",'1. Order'!BD288)","v":6},{"$f":"IF('1. Order'!BE288=\"\",\"\",'1. Order'!BE288)","v":"None"},{"$f":"IF('1. Order'!BF288=\"\",\"\",'1. Order'!BF288)","v":"Parcel"},{"$f":"IF('1. Order'!BG288=\"\",\"\",'1. Order'!BG288)","v":"ZWO"}]
[{"$f":"IF('1. Order'!F289=\"\",\"\",'1. Order'!F289)","v":""},{"$f":"IF('1. Order'!G289=\"\",\"\",'1. Order'!G289)","v":""},{"$f":"IF('1. Order'!H289=\"\",\"\",'1. Order'!H289)","v":""},{"$f":"IF('1. Order'!I289=\"\",\"\",'1. Order'!I289)","v":""},{"$f":"IF('1. Order'!J289=\"\",\"\",'1. Order'!J289)","v":""},{"$f":"IF('1. Order'!K289=\"\",\"\",'1. Order'!K289)","v":""},{"$f":"IF('1. Order'!L289=\"\",\"\",'1. Order'!L289)","v":""},{"$f":"IF('1. Order'!M289=\"\",\"\",'1. Order'!M289)","v":""},{"$f":"IF('1. Order'!N289=\"\",\"\",'1. Order'!N289)","v":""},{"$f":"IF('1. Order'!O289=\"\",\"\",'1. Order'!O289)","v":{"$error":"#N/A"}},{"$f":"IF('1. Order'!P289=\"\",\"\",'1. Order'!P289)","v":{"$error":"#N/A"}},{"$f":"IF('1. Order'!Q289=\"\",\"\",'1. Order'!Q289)","v":""},{"$f":"IF('1. Order'!R289=\"\",\"\",'1. Order'!R289)","v":""},{"$f":"IF('1. Order'!S289=\"\",\"\",'1. Order'!S289)","v":""},{"$f":"IF('1. Order'!V289=\"\",\"\",'1. Order'!V289)","v":""},{"$f":"IF('1. Order'!W289=\"\",\"\",'1. Order'!W289)","v":""},{"$f":"IF('1. Order'!X289=\"\",\"\",'1. Order'!X289)","v":"EUR"},{"$f":"IF('1. Order'!Y289=\"\",\"\",'1. Order'!Y289)","v":""},{"$f":"IF('1. Order'!Z289=\"\",\"\",'1. Order'!Z289)","v":""},{"$f":"IF('1. Order'!AA289=\"\",\"\",'1. Order'!AA289)","v":""},null,{"$f":"IF('1. Order'!AS289=\"\",\"\",'1. Order'!AS289)","v":""},{"$f":"IF('1. Order'!AT289=\"\",\"\",'1. Order'!AT289)","v":""},null,null,null,null,null,null,null,{"$f":"IF('1. Order'!AX289=\"\",\"\",'1. Order'!AX289)","v":""},{"$f":"IF('1. Order'!AY289=\"\",\"\",'1. Order'!AY289)","v":""},{"$f":"IF('1. Order'!AZ289=\"\",\"\",'1. Order'!AZ289)","v":""},{"$f":"IF('1. Order'!BA289=\"\",\"\",'1. Order'!BA289)","v":""},{"$f":"IF('1. Order'!BC289=\"\",\"\",'1. Order'!BC289)","v":""},{"$f":"IF('1. Order'!BD289=\"\",\"\",'1. Order'!BD289)","v":6},{"$f":"IF('1. Order'!BE289=\"\",\"\",'1. Order'!BE289)","v":"None"},{"$f":"IF('1. Order'!BF289=\"\",\"\",'1. Order'!BF289)","v":"Parcel"},{"$f":"IF('1. Order'!BG289=\"\",\"\",'1. Order'!BG289)","v":"ZWO"}]
[{"$f":"IF('1. Order'!F290=\"\",\"\",'1. Order'!F290)","v":""},{"$f":"IF('1. Order'!G290=\"\",\"\",'1. Order'!G290)","v":""},{"$f":"IF('1. Order'!H290=\"\",\"\",'1. Order'!H290)","v":""},{"$f":"IF('1. Order'!I290=\"\",\"\",'1. Order'!I290)","v":""},{"$f":"IF('1. Order'!J290=\"\",\"\",'1. Order'!J290)","v":""},{"$f":"IF('1. Order'!K290=\"\",\"\",'1. Order'!K290)","v":""},{"$f":"IF('1. Order'!L290=\"\",\"\",'1. Order'!L290)","v":""},{"$f":"IF('1. Order'!M290=\"\",\"\",'1. Order'!M290)","v":""},{"$f":"IF('1. Order'!N290=\"\",\"\",'1. Order'!N290)","v":""},{"$f":"IF('1. Order'!O290=\"\",\"\",'1. Order'!O290)","v":{"$error":"#N/A"}},{"$f":"IF('1. Order'!P290=\"\",\"\",'1. Order'!P290)","v":{"$error":"#N/A"}},{"$f":"IF('1. Order'!Q290=\"\",\"\",'1. Order'!Q290)","v":""},{"$f":"IF('1. Order'!R290=\"\",\"\",'1. Order'!R290)","v":""},{"$f":"IF('1. Order'!S290=\"\",\"\",'1. Order'!S290)","v":""},{"$f":"IF('1. Order'!V290=\"\",\"\",'1. Order'!V290)","v":""},{"$f":"IF('1. Order'!W290=\"\",\"\",'1. Order'!W290)","v":""},{"$f":"IF('1. Order'!X290=\"\",\"\",'1. Order'!X290)","v":"EUR"},{"$f":"IF('1. Order'!Y290=\"\",\"\",'1. Order'!Y290)","v":""},{"$f":"IF('1. Order'!Z290=\"\",\"\",'1. Order'!Z290)","v":""},{"$f":"IF('1. Order'!AA290=\"\",\"\",'1. Order'!AA290)","v":""},null,{"$f":"IF('1. Order'!AS290=\"\",\"\",'1. Order'!AS290)","v":""},{"$f":"IF('1. Order'!AT290=\"\",\"\",'1. Order'!AT290)","v":""},null,null,null,null,null,null,null,{"$f":"IF('1. Order'!AX290=\"\",\"\",'1. Order'!AX290)","v":""},{"$f":"IF('1. Order'!AY290=\"\",\"\",'1. Order'!AY290)","v":""},{"$f":"IF('1. Order'!AZ290=\"\",\"\",'1. Order'!AZ290)","v":""},{"$f":"IF('1. Order'!BA290=\"\",\"\",'1. Order'!BA290)","v":""},{"$f":"IF('1. Order'!BC290=\"\",\"\",'1. Order'!BC290)","v":""},{"$f":"IF('1. Order'!BD290=\"\",\"\",'1. Order'!BD290)","v":6},{"$f":"IF('1. Order'!BE290=\"\",\"\",'1. Order'!BE290)","v":"None"},{"$f":"IF('1. Order'!BF290=\"\",\"\",'1. Order'!BF290)","v":"Parcel"},{"$f":"IF('1. Order'!BG290=\"\",\"\",'1. Order'!BG290)","v":"ZWO"}]
[{"$f":"IF('1. Order'!F291=\"\",\"\",'1. Order'!F291)","v":""},{"$f":"IF('1. Order'!G291=\"\",\"\",'1. Order'!G291)","v":""},{"$f":"IF('1. Order'!H291=\"\",\"\",'1. Order'!H291)","v":""},{"$f":"IF('1. Order'!I291=\"\",\"\",'1. Order'!I291)","v":""},{"$f":"IF('1. Order'!J291=\"\",\"\",'1. Order'!J291)","v":""},{"$f":"IF('1. Order'!K291=\"\",\"\",'1. Order'!K291)","v":""},{"$f":"IF('1. Order'!L291=\"\",\"\",'1. Order'!L291)","v":""},{"$f":"IF('1. Order'!M291=\"\",\"\",'1. Order'!M291)","v":""},{"$f":"IF('1. Order'!N291=\"\",\"\",'1. Order'!N291)","v":""},{"$f":"IF('1. Order'!O291=\"\",\"\",'1. Order'!O291)","v":{"$error":"#N/A"}},{"$f":"IF('1. Order'!P291=\"\",\"\",'1. Order'!P291)","v":{"$error":"#N/A"}},{"$f":"IF('1. Order'!Q291=\"\",\"\",'1. Order'!Q291)","v":""},{"$f":"IF('1. Order'!R291=\"\",\"\",'1. Order'!R291)","v":""},{"$f":"IF('1. Order'!S291=\"\",\"\",'1. Order'!S291)","v":""},{"$f":"IF('1. Order'!V291=\"\",\"\",'1. Order'!V291)","v":""},{"$f":"IF('1. Order'!W291=\"\",\"\",'1. Order'!W291)","v":""},{"$f":"IF('1. Order'!X291=\"\",\"\",'1. Order'!X291)","v":"EUR"},{"$f":"IF('1. Order'!Y291=\"\",\"\",'1. Order'!Y291)","v":""},{"$f":"IF('1. Order'!Z291=\"\",\"\",'1. Order'!Z291)","v":""},{"$f":"IF('1. Order'!AA291=\"\",\"\",'1. Order'!AA291)","v":""},null,{"$f":"IF('1. Order'!AS291=\"\",\"\",'1. Order'!AS291)","v":""},{"$f":"IF('1. Order'!AT291=\"\",\"\",'1. Order'!AT291)","v":""},null,null,null,null,null,null,null,{"$f":"IF('1. Order'!AX291=\"\",\"\",'1. Order'!AX291)","v":""},{"$f":"IF('1. Order'!AY291=\"\",\"\",'1. Order'!AY291)","v":""},{"$f":"IF('1. Order'!AZ291=\"\",\"\",'1. Order'!AZ291)","v":""},{"$f":"IF('1. Order'!BA291=\"\",\"\",'1. Order'!BA291)","v":""},{"$f":"IF('1. Order'!BC291=\"\",\"\",'1. Order'!BC291)","v":""},{"$f":"IF('1. Order'!BD291=\"\",\"\",'1. Order'!BD291)","v":6},{"$f":"IF('1. Order'!BE291=\"\",\"\",'1. Order'!BE291)","v":"None"},{"$f":"IF('1. Order'!BF291=\"\",\"\",'1. Order'!BF291)","v":"Parcel"},{"$f":"IF('1. Order'!BG291=\"\",\"\",'1. Order'!BG291)","v":"ZWO"}]
[{"$f":"IF('1. Order'!F292=\"\",\"\",'1. Order'!F292)","v":""},{"$f":"IF('1. Order'!G292=\"\",\"\",'1. Order'!G292)","v":""},{"$f":"IF('1. Order'!H292=\"\",\"\",'1. Order'!H292)","v":""},{"$f":"IF('1. Order'!I292=\"\",\"\",'1. Order'!I292)","v":""},{"$f":"IF('1. Order'!J292=\"\",\"\",'1. Order'!J292)","v":""},{"$f":"IF('1. Order'!K292=\"\",\"\",'1. Order'!K292)","v":""},{"$f":"IF('1. Order'!L292=\"\",\"\",'1. Order'!L292)","v":""},{"$f":"IF('1. Order'!M292=\"\",\"\",'1. Order'!M292)","v":""},{"$f":"IF('1. Order'!N292=\"\",\"\",'1. Order'!N292)","v":""},{"$f":"IF('1. Order'!O292=\"\",\"\",'1. Order'!O292)","v":{"$error":"#N/A"}},{"$f":"IF('1. Order'!P292=\"\",\"\",'1. Order'!P292)","v":{"$error":"#N/A"}},{"$f":"IF('1. Order'!Q292=\"\",\"\",'1. Order'!Q292)","v":""},{"$f":"IF('1. Order'!R292=\"\",\"\",'1. Order'!R292)","v":""},{"$f":"IF('1. Order'!S292=\"\",\"\",'1. Order'!S292)","v":""},{"$f":"IF('1. Order'!V292=\"\",\"\",'1. Order'!V292)","v":""},{"$f":"IF('1. Order'!W292=\"\",\"\",'1. Order'!W292)","v":""},{"$f":"IF('1. Order'!X292=\"\",\"\",'1. Order'!X292)","v":"EUR"},{"$f":"IF('1. Order'!Y292=\"\",\"\",'1. Order'!Y292)","v":""},{"$f":"IF('1. Order'!Z292=\"\",\"\",'1. Order'!Z292)","v":""},{"$f":"IF('1. Order'!AA292=\"\",\"\",'1. Order'!AA292)","v":""},null,{"$f":"IF('1. Order'!AS292=\"\",\"\",'1. Order'!AS292)","v":""},{"$f":"IF('1. Order'!AT292=\"\",\"\",'1. Order'!AT292)","v":""},null,null,null,null,null,null,null,{"$f":"IF('1. Order'!AX292=\"\",\"\",'1. Order'!AX292)","v":""},{"$f":"IF('1. Order'!AY292=\"\",\"\",'1. Order'!AY292)","v":""},{"$f":"IF('1. Order'!AZ292=\"\",\"\",'1. Order'!AZ292)","v":""},{"$f":"IF('1. Order'!BA292=\"\",\"\",'1. Order'!BA292)","v":""},{"$f":"IF('1. Order'!BC292=\"\",\"\",'1. Order'!BC292)","v":""},{"$f":"IF('1. Order'!BD292=\"\",\"\",'1. Order'!BD292)","v":6},{"$f":"IF('1. Order'!BE292=\"\",\"\",'1. Order'!BE292)","v":"None"},{"$f":"IF('1. Order'!BF292=\"\",\"\",'1. Order'!BF292)","v":"Parcel"},{"$f":"IF('1. Order'!BG292=\"\",\"\",'1. Order'!BG292)","v":"ZWO"}]
[{"$f":"IF('1. Order'!F293=\"\",\"\",'1. Order'!F293)","v":""},{"$f":"IF('1. Order'!G293=\"\",\"\",'1. Order'!G293)","v":""},{"$f":"IF('1. Order'!H293=\"\",\"\",'1. Order'!H293)","v":""},{"$f":"IF('1. Order'!I293=\"\",\"\",'1. Order'!I293)","v":""},{"$f":"IF('1. Order'!J293=\"\",\"\",'1. Order'!J293)","v":""},{"$f":"IF('1. Order'!K293=\"\",\"\",'1. Order'!K293)","v":""},{"$f":"IF('1. Order'!L293=\"\",\"\",'1. Order'!L293)","v":""},{"$f":"IF('1. Order'!M293=\"\",\"\",'1. Order'!M293)","v":""},{"$f":"IF('1. Order'!N293=\"\",\"\",'1. Order'!N293)","v":""},{"$f":"IF('1. Order'!O293=\"\",\"\",'1. Order'!O293)","v":{"$error":"#N/A"}},{"$f":"IF('1. Order'!P293=\"\",\"\",'1. Order'!P293)","v":{"$error":"#N/A"}},{"$f":"IF('1. Order'!Q293=\"\",\"\",'1. Order'!Q293)","v":""},{"$f":"IF('1. Order'!R293=\"\",\"\",'1. Order'!R293)","v":""},{"$f":"IF('1. Order'!S293=\"\",\"\",'1. Order'!S293)","v":""},{"$f":"IF('1. Order'!V293=\"\",\"\",'1. Order'!V293)","v":""},{"$f":"IF('1. Order'!W293=\"\",\"\",'1. Order'!W293)","v":""},{"$f":"IF('1. Order'!X293=\"\",\"\",'1. Order'!X293)","v":"EUR"},{"$f":"IF('1. Order'!Y293=\"\",\"\",'1. Order'!Y293)","v":""},{"$f":"IF('1. Order'!Z293=\"\",\"\",'1. Order'!Z293)","v":""},{"$f":"IF('1. Order'!AA293=\"\",\"\",'1. Order'!AA293)","v":""},null,{"$f":"IF('1. Order'!AS293=\"\",\"\",'1. Order'!AS293)","v":""},{"$f":"IF('1. Order'!AT293=\"\",\"\",'1. Order'!AT293)","v":""},null,null,null,null,null,null,null,{"$f":"IF('1. Order'!AX293=\"\",\"\",'1. Order'!AX293)","v":""},{"$f":"IF('1. Order'!AY293=\"\",\"\",'1. Order'!AY293)","v":""},{"$f":"IF('1. Order'!AZ293=\"\",\"\",'1. Order'!AZ293)","v":""},{"$f":"IF('1. Order'!BA293=\"\",\"\",'1. Order'!BA293)","v":""},{"$f":"IF('1. Order'!BC293=\"\",\"\",'1. Order'!BC293)","v":""},{"$f":"IF('1. Order'!BD293=\"\",\"\",'1. Order'!BD293)","v":6},{"$f":"IF('1. Order'!BE293=\"\",\"\",'1. Order'!BE293)","v":"None"},{"$f":"IF('1. Order'!BF293=\"\",\"\",'1. Order'!BF293)","v":"Parcel"},{"$f":"IF('1. Order'!BG293=\"\",\"\",'1. Order'!BG293)","v":"ZWO"}]
[{"$f":"IF('1. Order'!F294=\"\",\"\",'1. Order'!F294)","v":""},{"$f":"IF('1. Order'!G294=\"\",\"\",'1. Order'!G294)","v":""},{"$f":"IF('1. Order'!H294=\"\",\"\",'1. Order'!H294)","v":""},{"$f":"IF('1. Order'!I294=\"\",\"\",'1. Order'!I294)","v":""},{"$f":"IF('1. Order'!J294=\"\",\"\",'1. Order'!J294)","v":""},{"$f":"IF('1. Order'!K294=\"\",\"\",'1. Order'!K294)","v":""},{"$f":"IF('1. Order'!L294=\"\",\"\",'1. Order'!L294)","v":""},{"$f":"IF('1. Order'!M294=\"\",\"\",'1. Order'!M294)","v":""},{"$f":"IF('1. Order'!N294=\"\",\"\",'1. Order'!N294)","v":""},{"$f":"IF('1. Order'!O294=\"\",\"\",'1. Order'!O294)","v":{"$error":"#N/A"}},{"$f":"IF('1. Order'!P294=\"\",\"\",'1. Order'!P294)","v":{"$error":"#N/A"}},{"$f":"IF('1. Order'!Q294=\"\",\"\",'1. Order'!Q294)","v":""},{"$f":"IF('1. Order'!R294=\"\",\"\",'1. Order'!R294)","v":""},{"$f":"IF('1. Order'!S294=\"\",\"\",'1. Order'!S294)","v":""},{"$f":"IF('1. Order'!V294=\"\",\"\",'1. Order'!V294)","v":""},{"$f":"IF('1. Order'!W294=\"\",\"\",'1. Order'!W294)","v":""},{"$f":"IF('1. Order'!X294=\"\",\"\",'1. Order'!X294)","v":"EUR"},{"$f":"IF('1. Order'!Y294=\"\",\"\",'1. Order'!Y294)","v":""},{"$f":"IF('1. Order'!Z294=\"\",\"\",'1. Order'!Z294)","v":""},{"$f":"IF('1. Order'!AA294=\"\",\"\",'1. Order'!AA294)","v":""},null,{"$f":"IF('1. Order'!AS294=\"\",\"\",'1. Order'!AS294)","v":""},{"$f":"IF('1. Order'!AT294=\"\",\"\",'1. Order'!AT294)","v":""},null,null,null,null,null,null,null,{"$f":"IF('1. Order'!AX294=\"\",\"\",'1. Order'!AX294)","v":""},{"$f":"IF('1. Order'!AY294=\"\",\"\",'1. Order'!AY294)","v":""},{"$f":"IF('1. Order'!AZ294=\"\",\"\",'1. Order'!AZ294)","v":""},{"$f":"IF('1. Order'!BA294=\"\",\"\",'1. Order'!BA294)","v":""},{"$f":"IF('1. Order'!BC294=\"\",\"\",'1. Order'!BC294)","v":""},{"$f":"IF('1. Order'!BD294=\"\",\"\",'1. Order'!BD294)","v":6},{"$f":"IF('1. Order'!BE294=\"\",\"\",'1. Order'!BE294)","v":"None"},{"$f":"IF('1. Order'!BF294=\"\",\"\",'1. Order'!BF294)","v":"Parcel"},{"$f":"IF('1. Order'!BG294=\"\",\"\",'1. Order'!BG294)","v":"ZWO"}]
[{"$f":"IF('1. Order'!F295=\"\",\"\",'1. Order'!F295)","v":""},{"$f":"IF('1. Order'!G295=\"\",\"\",'1. Order'!G295)","v":""},{"$f":"IF('1. Order'!H295=\"\",\"\",'1. Order'!H295)","v":""},{"$f":"IF('1. Order'!I295=\"\",\"\",'1. Order'!I295)","v":""},{"$f":"IF('1. Order'!J295=\"\",\"\",'1. Order'!J295)","v":""},{"$f":"IF('1. Order'!K295=\"\",\"\",'1. Order'!K295)","v":""},{"$f":"IF('1. Order'!L295=\"\",\"\",'1. Order'!L295)","v":""},{"$f":"IF('1. Order'!M295=\"\",\"\",'1. Order'!M295)","v":""},{"$f":"IF('1. Order'!N295=\"\",\"\",'1. Order'!N295)","v":""},{"$f":"IF('1. Order'!O295=\"\",\"\",'1. Order'!O295)","v":{"$error":"#N/A"}},{"$f":"IF('1. Order'!P295=\"\",\"\",'1. Order'!P295)","v":{"$error":"#N/A"}},{"$f":"IF('1. Order'!Q295=\"\",\"\",'1. Order'!Q295)","v":""},{"$f":"IF('1. Order'!R295=\"\",\"\",'1. Order'!R295)","v":""},{"$f":"IF('1. Order'!S295=\"\",\"\",'1. Order'!S295)","v":""},{"$f":"IF('1. Order'!V295=\"\",\"\",'1. Order'!V295)","v":""},{"$f":"IF('1. Order'!W295=\"\",\"\",'1. Order'!W295)","v":""},{"$f":"IF('1. Order'!X295=\"\",\"\",'1. Order'!X295)","v":"EUR"},{"$f":"IF('1. Order'!Y295=\"\",\"\",'1. Order'!Y295)","v":""},{"$f":"IF('1. Order'!Z295=\"\",\"\",'1. Order'!Z295)","v":""},{"$f":"IF('1. Order'!AA295=\"\",\"\",'1. Order'!AA295)","v":""},null,{"$f":"IF('1. Order'!AS295=\"\",\"\",'1. Order'!AS295)","v":""},{"$f":"IF('1. Order'!AT295=\"\",\"\",'1. Order'!AT295)","v":""},null,null,null,null,null,null,null,{"$f":"IF('1. Order'!AX295=\"\",\"\",'1. Order'!AX295)","v":""},{"$f":"IF('1. Order'!AY295=\"\",\"\",'1. Order'!AY295)","v":""},{"$f":"IF('1. Order'!AZ295=\"\",\"\",'1. Order'!AZ295)","v":""},{"$f":"IF('1. Order'!BA295=\"\",\"\",'1. Order'!BA295)","v":""},{"$f":"IF('1. Order'!BC295=\"\",\"\",'1. Order'!BC295)","v":""},{"$f":"IF('1. Order'!BD295=\"\",\"\",'1. Order'!BD295)","v":6},{"$f":"IF('1. Order'!BE295=\"\",\"\",'1. Order'!BE295)","v":"None"},{"$f":"IF('1. Order'!BF295=\"\",\"\",'1. Order'!BF295)","v":"Parcel"},{"$f":"IF('1. Order'!BG295=\"\",\"\",'1. Order'!BG295)","v":"ZWO"}]
[{"$f":"IF('1. Order'!F296=\"\",\"\",'1. Order'!F296)","v":""},{"$f":"IF('1. Order'!G296=\"\",\"\",'1. Order'!G296)","v":""},{"$f":"IF('1. Order'!H296=\"\",\"\",'1. Order'!H296)","v":""},{"$f":"IF('1. Order'!I296=\"\",\"\",'1. Order'!I296)","v":""},{"$f":"IF('1. Order'!J296=\"\",\"\",'1. Order'!J296)","v":""},{"$f":"IF('1. Order'!K296=\"\",\"\",'1. Order'!K296)","v":""},{"$f":"IF('1. Order'!L296=\"\",\"\",'1. Order'!L296)","v":""},{"$f":"IF('1. Order'!M296=\"\",\"\",'1. Order'!M296)","v":""},{"$f":"IF('1. Order'!N296=\"\",\"\",'1. Order'!N296)","v":""},{"$f":"IF('1. Order'!O296=\"\",\"\",'1. Order'!O296)","v":{"$error":"#N/A"}},{"$f":"IF('1. Order'!P296=\"\",\"\",'1. Order'!P296)","v":{"$error":"#N/A"}},{"$f":"IF('1. Order'!Q296=\"\",\"\",'1. Order'!Q296)","v":""},{"$f":"IF('1. Order'!R296=\"\",\"\",'1. Order'!R296)","v":""},{"$f":"IF('1. Order'!S296=\"\",\"\",'1. Order'!S296)","v":""},{"$f":"IF('1. Order'!V296=\"\",\"\",'1. Order'!V296)","v":""},{"$f":"IF('1. Order'!W296=\"\",\"\",'1. Order'!W296)","v":""},{"$f":"IF('1. Order'!X296=\"\",\"\",'1. Order'!X296)","v":"EUR"},{"$f":"IF('1. Order'!Y296=\"\",\"\",'1. Order'!Y296)","v":""},{"$f":"IF('1. Order'!Z296=\"\",\"\",'1. Order'!Z296)","v":""},{"$f":"IF('1. Order'!AA296=\"\",\"\",'1. Order'!AA296)","v":""},null,{"$f":"IF('1. Order'!AS296=\"\",\"\",'1. Order'!AS296)","v":""},{"$f":"IF('1. Order'!AT296=\"\",\"\",'1. Order'!AT296)","v":""},null,null,null,null,null,null,null,{"$f":"IF('1. Order'!AX296=\"\",\"\",'1. Order'!AX296)","v":""},{"$f":"IF('1. Order'!AY296=\"\",\"\",'1. Order'!AY296)","v":""},{"$f":"IF('1. Order'!AZ296=\"\",\"\",'1. Order'!AZ296)","v":""},{"$f":"IF('1. Order'!BA296=\"\",\"\",'1. Order'!BA296)","v":""},{"$f":"IF('1. Order'!BC296=\"\",\"\",'1. Order'!BC296)","v":""},{"$f":"IF('1. Order'!BD296=\"\",\"\",'1. Order'!BD296)","v":6},{"$f":"IF('1. Order'!BE296=\"\",\"\",'1. Order'!BE296)","v":"None"},{"$f":"IF('1. Order'!BF296=\"\",\"\",'1. Order'!BF296)","v":"Parcel"},{"$f":"IF('1. Order'!BG296=\"\",\"\",'1. Order'!BG296)","v":"ZWO"}]
[{"$f":"IF('1. Order'!F297=\"\",\"\",'1. Order'!F297)","v":""},{"$f":"IF('1. Order'!G297=\"\",\"\",'1. Order'!G297)","v":""},{"$f":"IF('1. Order'!H297=\"\",\"\",'1. Order'!H297)","v":""},{"$f":"IF('1. Order'!I297=\"\",\"\",'1. Order'!I297)","v":""},{"$f":"IF('1. Order'!J297=\"\",\"\",'1. Order'!J297)","v":""},{"$f":"IF('1. Order'!K297=\"\",\"\",'1. Order'!K297)","v":""},{"$f":"IF('1. Order'!L297=\"\",\"\",'1. Order'!L297)","v":""},{"$f":"IF('1. Order'!M297=\"\",\"\",'1. Order'!M297)","v":""},{"$f":"IF('1. Order'!N297=\"\",\"\",'1. Order'!N297)","v":""},{"$f":"IF('1. Order'!O297=\"\",\"\",'1. Order'!O297)","v":{"$error":"#N/A"}},{"$f":"IF('1. Order'!P297=\"\",\"\",'1. Order'!P297)","v":{"$error":"#N/A"}},{"$f":"IF('1. Order'!Q297=\"\",\"\",'1. Order'!Q297)","v":""},{"$f":"IF('1. Order'!R297=\"\",\"\",'1. Order'!R297)","v":""},{"$f":"IF('1. Order'!S297=\"\",\"\",'1. Order'!S297)","v":""},{"$f":"IF('1. Order'!V297=\"\",\"\",'1. Order'!V297)","v":""},{"$f":"IF('1. Order'!W297=\"\",\"\",'1. Order'!W297)","v":""},{"$f":"IF('1. Order'!X297=\"\",\"\",'1. Order'!X297)","v":"EUR"},{"$f":"IF('1. Order'!Y297=\"\",\"\",'1. Order'!Y297)","v":""},{"$f":"IF('1. Order'!Z297=\"\",\"\",'1. Order'!Z297)","v":""},{"$f":"IF('1. Order'!AA297=\"\",\"\",'1. Order'!AA297)","v":""},null,{"$f":"IF('1. Order'!AS297=\"\",\"\",'1. Order'!AS297)","v":""},{"$f":"IF('1. Order'!AT297=\"\",\"\",'1. Order'!AT297)","v":""},null,null,null,null,null,null,null,{"$f":"IF('1. Order'!AX297=\"\",\"\",'1. Order'!AX297)","v":""},{"$f":"IF('1. Order'!AY297=\"\",\"\",'1. Order'!AY297)","v":""},{"$f":"IF('1. Order'!AZ297=\"\",\"\",'1. Order'!AZ297)","v":""},{"$f":"IF('1. Order'!BA297=\"\",\"\",'1. Order'!BA297)","v":""},{"$f":"IF('1. Order'!BC297=\"\",\"\",'1. Order'!BC297)","v":""},{"$f":"IF('1. Order'!BD297=\"\",\"\",'1. Order'!BD297)","v":6},{"$f":"IF('1. Order'!BE297=\"\",\"\",'1. Order'!BE297)","v":"None"},{"$f":"IF('1. Order'!BF297=\"\",\"\",'1. Order'!BF297)","v":"Parcel"},{"$f":"IF('1. Order'!BG297=\"\",\"\",'1. Order'!BG297)","v":"ZWO"}]
[{"$f":"IF('1. Order'!F298=\"\",\"\",'1. Order'!F298)","v":""},{"$f":"IF('1. Order'!G298=\"\",\"\",'1. Order'!G298)","v":""},{"$f":"IF('1. Order'!H298=\"\",\"\",'1. Order'!H298)","v":""},{"$f":"IF('1. Order'!I298=\"\",\"\",'1. Order'!I298)","v":""},{"$f":"IF('1. Order'!J298=\"\",\"\",'1. Order'!J298)","v":""},{"$f":"IF('1. Order'!K298=\"\",\"\",'1. Order'!K298)","v":""},{"$f":"IF('1. Order'!L298=\"\",\"\",'1. Order'!L298)","v":""},{"$f":"IF('1. Order'!M298=\"\",\"\",'1. Order'!M298)","v":""},{"$f":"IF('1. Order'!N298=\"\",\"\",'1. Order'!N298)","v":""},{"$f":"IF('1. Order'!O298=\"\",\"\",'1. Order'!O298)","v":{"$error":"#N/A"}},{"$f":"IF('1. Order'!P298=\"\",\"\",'1. Order'!P298)","v":{"$error":"#N/A"}},{"$f":"IF('1. Order'!Q298=\"\",\"\",'1. Order'!Q298)","v":""},{"$f":"IF('1. Order'!R298=\"\",\"\",'1. Order'!R298)","v":""},{"$f":"IF('1. Order'!S298=\"\",\"\",'1. Order'!S298)","v":""},{"$f":"IF('1. Order'!V298=\"\",\"\",'1. Order'!V298)","v":""},{"$f":"IF('1. Order'!W298=\"\",\"\",'1. Order'!W298)","v":""},{"$f":"IF('1. Order'!X298=\"\",\"\",'1. Order'!X298)","v":"EUR"},{"$f":"IF('1. Order'!Y298=\"\",\"\",'1. Order'!Y298)","v":""},{"$f":"IF('1. Order'!Z298=\"\",\"\",'1. Order'!Z298)","v":""},{"$f":"IF('1. Order'!AA298=\"\",\"\",'1. Order'!AA298)","v":""},null,{"$f":"IF('1. Order'!AS298=\"\",\"\",'1. Order'!AS298)","v":""},{"$f":"IF('1. Order'!AT298=\"\",\"\",'1. Order'!AT298)","v":""},null,null,null,null,null,null,null,{"$f":"IF('1. Order'!AX298=\"\",\"\",'1. Order'!AX298)","v":""},{"$f":"IF('1. Order'!AY298=\"\",\"\",'1. Order'!AY298)","v":""},{"$f":"IF('1. Order'!AZ298=\"\",\"\",'1. Order'!AZ298)","v":""},{"$f":"IF('1. Order'!BA298=\"\",\"\",'1. Order'!BA298)","v":""},{"$f":"IF('1. Order'!BC298=\"\",\"\",'1. Order'!BC298)","v":""},{"$f":"IF('1. Order'!BD298=\"\",\"\",'1. Order'!BD298)","v":6},{"$f":"IF('1. Order'!BE298=\"\",\"\",'1. Order'!BE298)","v":"None"},{"$f":"IF('1. Order'!BF298=\"\",\"\",'1. Order'!BF298)","v":"Parcel"},{"$f":"IF('1. Order'!BG298=\"\",\"\",'1. Order'!BG298)","v":"ZWO"}]
[{"$f":"IF('1. Order'!F299=\"\",\"\",'1. Order'!F299)","v":""},{"$f":"IF('1. Order'!G299=\"\",\"\",'1. Order'!G299)","v":""},{"$f":"IF('1. Order'!H299=\"\",\"\",'1. Order'!H299)","v":""},{"$f":"IF('1. Order'!I299=\"\",\"\",'1. Order'!I299)","v":""},{"$f":"IF('1. Order'!J299=\"\",\"\",'1. Order'!J299)","v":""},{"$f":"IF('1. Order'!K299=\"\",\"\",'1. Order'!K299)","v":""},{"$f":"IF('1. Order'!L299=\"\",\"\",'1. Order'!L299)","v":""},{"$f":"IF('1. Order'!M299=\"\",\"\",'1. Order'!M299)","v":""},{"$f":"IF('1. Order'!N299=\"\",\"\",'1. Order'!N299)","v":""},{"$f":"IF('1. Order'!O299=\"\",\"\",'1. Order'!O299)","v":{"$error":"#N/A"}},{"$f":"IF('1. Order'!P299=\"\",\"\",'1. Order'!P299)","v":{"$error":"#N/A"}},{"$f":"IF('1. Order'!Q299=\"\",\"\",'1. Order'!Q299)","v":""},{"$f":"IF('1. Order'!R299=\"\",\"\",'1. Order'!R299)","v":""},{"$f":"IF('1. Order'!S299=\"\",\"\",'1. Order'!S299)","v":""},{"$f":"IF('1. Order'!V299=\"\",\"\",'1. Order'!V299)","v":""},{"$f":"IF('1. Order'!W299=\"\",\"\",'1. Order'!W299)","v":""},{"$f":"IF('1. Order'!X299=\"\",\"\",'1. Order'!X299)","v":"EUR"},{"$f":"IF('1. Order'!Y299=\"\",\"\",'1. Order'!Y299)","v":""},{"$f":"IF('1. Order'!Z299=\"\",\"\",'1. Order'!Z299)","v":""},{"$f":"IF('1. Order'!AA299=\"\",\"\",'1. Order'!AA299)","v":""},null,{"$f":"IF('1. Order'!AS299=\"\",\"\",'1. Order'!AS299)","v":""},{"$f":"IF('1. Order'!AT299=\"\",\"\",'1. Order'!AT299)","v":""},null,null,null,null,null,null,null,{"$f":"IF('1. Order'!AX299=\"\",\"\",'1. Order'!AX299)","v":""},{"$f":"IF('1. Order'!AY299=\"\",\"\",'1. Order'!AY299)","v":""},{"$f":"IF('1. Order'!AZ299=\"\",\"\",'1. Order'!AZ299)","v":""},{"$f":"IF('1. Order'!BA299=\"\",\"\",'1. Order'!BA299)","v":""},{"$f":"IF('1. Order'!BC299=\"\",\"\",'1. Order'!BC299)","v":""},{"$f":"IF('1. Order'!BD299=\"\",\"\",'1. Order'!BD299)","v":6},{"$f":"IF('1. Order'!BE299=\"\",\"\",'1. Order'!BE299)","v":"None"},{"$f":"IF('1. Order'!BF299=\"\",\"\",'1. Order'!BF299)","v":"Parcel"},{"$f":"IF('1. Order'!BG299=\"\",\"\",'1. Order'!BG299)","v":"ZWO"}]
[{"$f":"IF('1. Order'!F300=\"\",\"\",'1. Order'!F300)","v":""},{"$f":"IF('1. Order'!G300=\"\",\"\",'1. Order'!G300)","v":""},{"$f":"IF('1. Order'!H300=\"\",\"\",'1. Order'!H300)","v":""},{"$f":"IF('1. Order'!I300=\"\",\"\",'1. Order'!I300)","v":""},{"$f":"IF('1. Order'!J300=\"\",\"\",'1. Order'!J300)","v":""},{"$f":"IF('1. Order'!K300=\"\",\"\",'1. Order'!K300)","v":""},{"$f":"IF('1. Order'!L300=\"\",\"\",'1. Order'!L300)","v":""},{"$f":"IF('1. Order'!M300=\"\",\"\",'1. Order'!M300)","v":""},{"$f":"IF('1. Order'!N300=\"\",\"\",'1. Order'!N300)","v":""},{"$f":"IF('1. Order'!O300=\"\",\"\",'1. Order'!O300)","v":{"$error":"#N/A"}},{"$f":"IF('1. Order'!P300=\"\",\"\",'1. Order'!P300)","v":{"$error":"#N/A"}},{"$f":"IF('1. Order'!Q300=\"\",\"\",'1. Order'!Q300)","v":""},{"$f":"IF('1. Order'!R300=\"\",\"\",'1. Order'!R300)","v":""},{"$f":"IF('1. Order'!S300=\"\",\"\",'1. Order'!S300)","v":""},{"$f":"IF('1. Order'!V300=\"\",\"\",'1. Order'!V300)","v":""},{"$f":"IF('1. Order'!W300=\"\",\"\",'1. Order'!W300)","v":""},{"$f":"IF('1. Order'!X300=\"\",\"\",'1. Order'!X300)","v":"EUR"},{"$f":"IF('1. Order'!Y300=\"\",\"\",'1. Order'!Y300)","v":""},{"$f":"IF('1. Order'!Z300=\"\",\"\",'1. Order'!Z300)","v":""},{"$f":"IF('1. Order'!AA300=\"\",\"\",'1. Order'!AA300)","v":""},null,{"$f":"IF('1. Order'!AS300=\"\",\"\",'1. Order'!AS300)","v":""},{"$f":"IF('1. Order'!AT300=\"\",\"\",'1. Order'!AT300)","v":""},null,null,null,null,null,null,null,{"$f":"IF('1. Order'!AX300=\"\",\"\",'1. Order'!AX300)","v":""},{"$f":"IF('1. Order'!AY300=\"\",\"\",'1. Order'!AY300)","v":""},{"$f":"IF('1. Order'!AZ300=\"\",\"\",'1. Order'!AZ300)","v":""},{"$f":"IF('1. Order'!BA300=\"\",\"\",'1. Order'!BA300)","v":""},{"$f":"IF('1. Order'!BC300=\"\",\"\",'1. Order'!BC300)","v":""},{"$f":"IF('1. Order'!BD300=\"\",\"\",'1. Order'!BD300)","v":6},{"$f":"IF('1. Order'!BE300=\"\",\"\",'1. Order'!BE300)","v":"None"},{"$f":"IF('1. Order'!BF300=\"\",\"\",'1. Order'!BF300)","v":"Parcel"},{"$f":"IF('1. Order'!BG300=\"\",\"\",'1. Order'!BG300)","v":"ZWO"}]
[{"$f":"IF('1. Order'!F301=\"\",\"\",'1. Order'!F301)","v":""},{"$f":"IF('1. Order'!G301=\"\",\"\",'1. Order'!G301)","v":""},{"$f":"IF('1. Order'!H301=\"\",\"\",'1. Order'!H301)","v":""},{"$f":"IF('1. Order'!I301=\"\",\"\",'1. Order'!I301)","v":""},{"$f":"IF('1. Order'!J301=\"\",\"\",'1. Order'!J301)","v":""},{"$f":"IF('1. Order'!K301=\"\",\"\",'1. Order'!K301)","v":""},{"$f":"IF('1. Order'!L301=\"\",\"\",'1. Order'!L301)","v":""},{"$f":"IF('1. Order'!M301=\"\",\"\",'1. Order'!M301)","v":""},{"$f":"IF('1. Order'!N301=\"\",\"\",'1. Order'!N301)","v":""},{"$f":"IF('1. Order'!O301=\"\",\"\",'1. Order'!O301)","v":{"$error":"#N/A"}},{"$f":"IF('1. Order'!P301=\"\",\"\",'1. Order'!P301)","v":{"$error":"#N/A"}},{"$f":"IF('1. Order'!Q301=\"\",\"\",'1. Order'!Q301)","v":""},{"$f":"IF('1. Order'!R301=\"\",\"\",'1. Order'!R301)","v":""},{"$f":"IF('1. Order'!S301=\"\",\"\",'1. Order'!S301)","v":""},{"$f":"IF('1. Order'!V301=\"\",\"\",'1. Order'!V301)","v":""},{"$f":"IF('1. Order'!W301=\"\",\"\",'1. Order'!W301)","v":""},{"$f":"IF('1. Order'!X301=\"\",\"\",'1. Order'!X301)","v":"EUR"},{"$f":"IF('1. Order'!Y301=\"\",\"\",'1. Order'!Y301)","v":""},{"$f":"IF('1. Order'!Z301=\"\",\"\",'1. Order'!Z301)","v":""},{"$f":"IF('1. Order'!AA301=\"\",\"\",'1. Order'!AA301)","v":""},null,{"$f":"IF('1. Order'!AS301=\"\",\"\",'1. Order'!AS301)","v":""},{"$f":"IF('1. Order'!AT301=\"\",\"\",'1. Order'!AT301)","v":""},null,null,null,null,null,null,null,{"$f":"IF('1. Order'!AX301=\"\",\"\",'1. Order'!AX301)","v":""},{"$f":"IF('1. Order'!AY301=\"\",\"\",'1. Order'!AY301)","v":""},{"$f":"IF('1. Order'!AZ301=\"\",\"\",'1. Order'!AZ301)","v":""},{"$f":"IF('1. Order'!BA301=\"\",\"\",'1. Order'!BA301)","v":""},{"$f":"IF('1. Order'!BC301=\"\",\"\",'1. Order'!BC301)","v":""},{"$f":"IF('1. Order'!BD301=\"\",\"\",'1. Order'!BD301)","v":6},{"$f":"IF('1. Order'!BE301=\"\",\"\",'1. Order'!BE301)","v":"None"},{"$f":"IF('1. Order'!BF301=\"\",\"\",'1. Order'!BF301)","v":"Parcel"},{"$f":"IF('1. Order'!BG301=\"\",\"\",'1. Order'!BG301)","v":"ZWO"}]
[{"$f":"IF('1. Order'!F302=\"\",\"\",'1. Order'!F302)","v":""},{"$f":"IF('1. Order'!G302=\"\",\"\",'1. Order'!G302)","v":""},{"$f":"IF('1. Order'!H302=\"\",\"\",'1. Order'!H302)","v":""},{"$f":"IF('1. Order'!I302=\"\",\"\",'1. Order'!I302)","v":""},{"$f":"IF('1. Order'!J302=\"\",\"\",'1. Order'!J302)","v":""},{"$f":"IF('1. Order'!K302=\"\",\"\",'1. Order'!K302)","v":""},{"$f":"IF('1. Order'!L302=\"\",\"\",'1. Order'!L302)","v":""},{"$f":"IF('1. Order'!M302=\"\",\"\",'1. Order'!M302)","v":""},{"$f":"IF('1. Order'!N302=\"\",\"\",'1. Order'!N302)","v":""},{"$f":"IF('1. Order'!O302=\"\",\"\",'1. Order'!O302)","v":{"$error":"#N/A"}},{"$f":"IF('1. Order'!P302=\"\",\"\",'1. Order'!P302)","v":{"$error":"#N/A"}},{"$f":"IF('1. Order'!Q302=\"\",\"\",'1. Order'!Q302)","v":""},{"$f":"IF('1. Order'!R302=\"\",\"\",'1. Order'!R302)","v":""},{"$f":"IF('1. Order'!S302=\"\",\"\",'1. Order'!S302)","v":""},{"$f":"IF('1. Order'!V302=\"\",\"\",'1. Order'!V302)","v":""},{"$f":"IF('1. Order'!W302=\"\",\"\",'1. Order'!W302)","v":""},{"$f":"IF('1. Order'!X302=\"\",\"\",'1. Order'!X302)","v":"EUR"},{"$f":"IF('1. Order'!Y302=\"\",\"\",'1. Order'!Y302)","v":""},{"$f":"IF('1. Order'!Z302=\"\",\"\",'1. Order'!Z302)","v":""},{"$f":"IF('1. Order'!AA302=\"\",\"\",'1. Order'!AA302)","v":""},null,{"$f":"IF('1. Order'!AS302=\"\",\"\",'1. Order'!AS302)","v":""},{"$f":"IF('1. Order'!AT302=\"\",\"\",'1. Order'!AT302)","v":""},null,null,null,null,null,null,null,{"$f":"IF('1. Order'!AX302=\"\",\"\",'1. Order'!AX302)","v":""},{"$f":"IF('1. Order'!AY302=\"\",\"\",'1. Order'!AY302)","v":""},{"$f":"IF('1. Order'!AZ302=\"\",\"\",'1. Order'!AZ302)","v":""},{"$f":"IF('1. Order'!BA302=\"\",\"\",'1. Order'!BA302)","v":""},{"$f":"IF('1. Order'!BC302=\"\",\"\",'1. Order'!BC302)","v":""},{"$f":"IF('1. Order'!BD302=\"\",\"\",'1. Order'!BD302)","v":6},{"$f":"IF('1. Order'!BE302=\"\",\"\",'1. Order'!BE302)","v":"None"},{"$f":"IF('1. Order'!BF302=\"\",\"\",'1. Order'!BF302)","v":"Parcel"},{"$f":"IF('1. Order'!BG302=\"\",\"\",'1. Order'!BG302)","v":"ZWO"}]
[{"$f":"IF('1. Order'!F303=\"\",\"\",'1. Order'!F303)","v":""},{"$f":"IF('1. Order'!G303=\"\",\"\",'1. Order'!G303)","v":""},{"$f":"IF('1. Order'!H303=\"\",\"\",'1. Order'!H303)","v":""},{"$f":"IF('1. Order'!I303=\"\",\"\",'1. Order'!I303)","v":""},{"$f":"IF('1. Order'!J303=\"\",\"\",'1. Order'!J303)","v":""},{"$f":"IF('1. Order'!K303=\"\",\"\",'1. Order'!K303)","v":""},{"$f":"IF('1. Order'!L303=\"\",\"\",'1. Order'!L303)","v":""},{"$f":"IF('1. Order'!M303=\"\",\"\",'1. Order'!M303)","v":""},{"$f":"IF('1. Order'!N303=\"\",\"\",'1. Order'!N303)","v":""},{"$f":"IF('1. Order'!O303=\"\",\"\",'1. Order'!O303)","v":{"$error":"#N/A"}},{"$f":"IF('1. Order'!P303=\"\",\"\",'1. Order'!P303)","v":{"$error":"#N/A"}},{"$f":"IF('1. Order'!Q303=\"\",\"\",'1. Order'!Q303)","v":""},{"$f":"IF('1. Order'!R303=\"\",\"\",'1. Order'!R303)","v":""},{"$f":"IF('1. Order'!S303=\"\",\"\",'1. Order'!S303)","v":""},{"$f":"IF('1. Order'!V303=\"\",\"\",'1. Order'!V303)","v":""},{"$f":"IF('1. Order'!W303=\"\",\"\",'1. Order'!W303)","v":""},{"$f":"IF('1. Order'!X303=\"\",\"\",'1. Order'!X303)","v":"EUR"},{"$f":"IF('1. Order'!Y303=\"\",\"\",'1. Order'!Y303)","v":""},{"$f":"IF('1. Order'!Z303=\"\",\"\",'1. Order'!Z303)","v":""},{"$f":"IF('1. Order'!AA303=\"\",\"\",'1. Order'!AA303)","v":""},null,{"$f":"IF('1. Order'!AS303=\"\",\"\",'1. Order'!AS303)","v":""},{"$f":"IF('1. Order'!AT303=\"\",\"\",'1. Order'!AT303)","v":""},null,null,null,null,null,null,null,{"$f":"IF('1. Order'!AX303=\"\",\"\",'1. Order'!AX303)","v":""},{"$f":"IF('1. Order'!AY303=\"\",\"\",'1. Order'!AY303)","v":""},{"$f":"IF('1. Order'!AZ303=\"\",\"\",'1. Order'!AZ303)","v":""},{"$f":"IF('1. Order'!BA303=\"\",\"\",'1. Order'!BA303)","v":""},{"$f":"IF('1. Order'!BC303=\"\",\"\",'1. Order'!BC303)","v":""},{"$f":"IF('1. Order'!BD303=\"\",\"\",'1. Order'!BD303)","v":6},{"$f":"IF('1. Order'!BE303=\"\",\"\",'1. Order'!BE303)","v":"None"},{"$f":"IF('1. Order'!BF303=\"\",\"\",'1. Order'!BF303)","v":"Parcel"},{"$f":"IF('1. Order'!BG303=\"\",\"\",'1. Order'!BG303)","v":"ZWO"}]
[{"$f":"IF('1. Order'!F304=\"\",\"\",'1. Order'!F304)","v":""},{"$f":"IF('1. Order'!G304=\"\",\"\",'1. Order'!G304)","v":""},{"$f":"IF('1. Order'!H304=\"\",\"\",'1. Order'!H304)","v":""},{"$f":"IF('1. Order'!I304=\"\",\"\",'1. Order'!I304)","v":""},{"$f":"IF('1. Order'!J304=\"\",\"\",'1. Order'!J304)","v":""},{"$f":"IF('1. Order'!K304=\"\",\"\",'1. Order'!K304)","v":""},{"$f":"IF('1. Order'!L304=\"\",\"\",'1. Order'!L304)","v":""},{"$f":"IF('1. Order'!M304=\"\",\"\",'1. Order'!M304)","v":""},{"$f":"IF('1. Order'!N304=\"\",\"\",'1. Order'!N304)","v":""},{"$f":"IF('1. Order'!O304=\"\",\"\",'1. Order'!O304)","v":{"$error":"#N/A"}},{"$f":"IF('1. Order'!P304=\"\",\"\",'1. Order'!P304)","v":{"$error":"#N/A"}},{"$f":"IF('1. Order'!Q304=\"\",\"\",'1. Order'!Q304)","v":""},{"$f":"IF('1. Order'!R304=\"\",\"\",'1. Order'!R304)","v":""},{"$f":"IF('1. Order'!S304=\"\",\"\",'1. Order'!S304)","v":""},{"$f":"IF('1. Order'!V304=\"\",\"\",'1. Order'!V304)","v":""},{"$f":"IF('1. Order'!W304=\"\",\"\",'1. Order'!W304)","v":""},{"$f":"IF('1. Order'!X304=\"\",\"\",'1. Order'!X304)","v":"EUR"},{"$f":"IF('1. Order'!Y304=\"\",\"\",'1. Order'!Y304)","v":""},{"$f":"IF('1. Order'!Z304=\"\",\"\",'1. Order'!Z304)","v":""},{"$f":"IF('1. Order'!AA304=\"\",\"\",'1. Order'!AA304)","v":""},null,{"$f":"IF('1. Order'!AS304=\"\",\"\",'1. Order'!AS304)","v":""},{"$f":"IF('1. Order'!AT304=\"\",\"\",'1. Order'!AT304)","v":""},null,null,null,null,null,null,null,{"$f":"IF('1. Order'!AX304=\"\",\"\",'1. Order'!AX304)","v":""},{"$f":"IF('1. Order'!AY304=\"\",\"\",'1. Order'!AY304)","v":""},{"$f":"IF('1. Order'!AZ304=\"\",\"\",'1. Order'!AZ304)","v":""},{"$f":"IF('1. Order'!BA304=\"\",\"\",'1. Order'!BA304)","v":""},{"$f":"IF('1. Order'!BC304=\"\",\"\",'1. Order'!BC304)","v":""},{"$f":"IF('1. Order'!BD304=\"\",\"\",'1. Order'!BD304)","v":6},{"$f":"IF('1. Order'!BE304=\"\",\"\",'1. Order'!BE304)","v":"None"},{"$f":"IF('1. Order'!BF304=\"\",\"\",'1. Order'!BF304)","v":"Parcel"},{"$f":"IF('1. Order'!BG304=\"\",\"\",'1. Order'!BG304)","v":"ZWO"}]
[{"$f":"IF('1. Order'!F305=\"\",\"\",'1. Order'!F305)","v":""},{"$f":"IF('1. Order'!G305=\"\",\"\",'1. Order'!G305)","v":""},{"$f":"IF('1. Order'!H305=\"\",\"\",'1. Order'!H305)","v":""},{"$f":"IF('1. Order'!I305=\"\",\"\",'1. Order'!I305)","v":""},{"$f":"IF('1. Order'!J305=\"\",\"\",'1. Order'!J305)","v":""},{"$f":"IF('1. Order'!K305=\"\",\"\",'1. Order'!K305)","v":""},{"$f":"IF('1. Order'!L305=\"\",\"\",'1. Order'!L305)","v":""},{"$f":"IF('1. Order'!M305=\"\",\"\",'1. Order'!M305)","v":""},{"$f":"IF('1. Order'!N305=\"\",\"\",'1. Order'!N305)","v":""},{"$f":"IF('1. Order'!O305=\"\",\"\",'1. Order'!O305)","v":{"$error":"#N/A"}},{"$f":"IF('1. Order'!P305=\"\",\"\",'1. Order'!P305)","v":{"$error":"#N/A"}},{"$f":"IF('1. Order'!Q305=\"\",\"\",'1. Order'!Q305)","v":""},{"$f":"IF('1. Order'!R305=\"\",\"\",'1. Order'!R305)","v":""},{"$f":"IF('1. Order'!S305=\"\",\"\",'1. Order'!S305)","v":""},{"$f":"IF('1. Order'!V305=\"\",\"\",'1. Order'!V305)","v":""},{"$f":"IF('1. Order'!W305=\"\",\"\",'1. Order'!W305)","v":""},{"$f":"IF('1. Order'!X305=\"\",\"\",'1. Order'!X305)","v":"EUR"},{"$f":"IF('1. Order'!Y305=\"\",\"\",'1. Order'!Y305)","v":""},{"$f":"IF('1. Order'!Z305=\"\",\"\",'1. Order'!Z305)","v":""},{"$f":"IF('1. Order'!AA305=\"\",\"\",'1. Order'!AA305)","v":""},null,{"$f":"IF('1. Order'!AS305=\"\",\"\",'1. Order'!AS305)","v":""},{"$f":"IF('1. Order'!AT305=\"\",\"\",'1. Order'!AT305)","v":""},null,null,null,null,null,null,null,{"$f":"IF('1. Order'!AX305=\"\",\"\",'1. Order'!AX305)","v":""},{"$f":"IF('1. Order'!AY305=\"\",\"\",'1. Order'!AY305)","v":""},{"$f":"IF('1. Order'!AZ305=\"\",\"\",'1. Order'!AZ305)","v":""},{"$f":"IF('1. Order'!BA305=\"\",\"\",'1. Order'!BA305)","v":""},{"$f":"IF('1. Order'!BC305=\"\",\"\",'1. Order'!BC305)","v":""},{"$f":"IF('1. Order'!BD305=\"\",\"\",'1. Order'!BD305)","v":6},{"$f":"IF('1. Order'!BE305=\"\",\"\",'1. Order'!BE305)","v":"None"},{"$f":"IF('1. Order'!BF305=\"\",\"\",'1. Order'!BF305)","v":"Parcel"},{"$f":"IF('1. Order'!BG305=\"\",\"\",'1. Order'!BG305)","v":"ZWO"}]
[{"$f":"IF('1. Order'!F306=\"\",\"\",'1. Order'!F306)","v":""},{"$f":"IF('1. Order'!G306=\"\",\"\",'1. Order'!G306)","v":""},{"$f":"IF('1. Order'!H306=\"\",\"\",'1. Order'!H306)","v":""},{"$f":"IF('1. Order'!I306=\"\",\"\",'1. Order'!I306)","v":""},{"$f":"IF('1. Order'!J306=\"\",\"\",'1. Order'!J306)","v":""},{"$f":"IF('1. Order'!K306=\"\",\"\",'1. Order'!K306)","v":""},{"$f":"IF('1. Order'!L306=\"\",\"\",'1. Order'!L306)","v":""},{"$f":"IF('1. Order'!M306=\"\",\"\",'1. Order'!M306)","v":""},{"$f":"IF('1. Order'!N306=\"\",\"\",'1. Order'!N306)","v":""},{"$f":"IF('1. Order'!O306=\"\",\"\",'1. Order'!O306)","v":{"$error":"#N/A"}},{"$f":"IF('1. Order'!P306=\"\",\"\",'1. Order'!P306)","v":{"$error":"#N/A"}},{"$f":"IF('1. Order'!Q306=\"\",\"\",'1. Order'!Q306)","v":""},{"$f":"IF('1. Order'!R306=\"\",\"\",'1. Order'!R306)","v":""},{"$f":"IF('1. Order'!S306=\"\",\"\",'1. Order'!S306)","v":""},{"$f":"IF('1. Order'!V306=\"\",\"\",'1. Order'!V306)","v":""},{"$f":"IF('1. Order'!W306=\"\",\"\",'1. Order'!W306)","v":""},{"$f":"IF('1. Order'!X306=\"\",\"\",'1. Order'!X306)","v":"EUR"},{"$f":"IF('1. Order'!Y306=\"\",\"\",'1. Order'!Y306)","v":""},{"$f":"IF('1. Order'!Z306=\"\",\"\",'1. Order'!Z306)","v":""},{"$f":"IF('1. Order'!AA306=\"\",\"\",'1. Order'!AA306)","v":""},null,{"$f":"IF('1. Order'!AS306=\"\",\"\",'1. Order'!AS306)","v":""},{"$f":"IF('1. Order'!AT306=\"\",\"\",'1. Order'!AT306)","v":""},null,null,null,null,null,null,null,{"$f":"IF('1. Order'!AX306=\"\",\"\",'1. Order'!AX306)","v":""},{"$f":"IF('1. Order'!AY306=\"\",\"\",'1. Order'!AY306)","v":""},{"$f":"IF('1. Order'!AZ306=\"\",\"\",'1. Order'!AZ306)","v":""},{"$f":"IF('1. Order'!BA306=\"\",\"\",'1. Order'!BA306)","v":""},{"$f":"IF('1. Order'!BC306=\"\",\"\",'1. Order'!BC306)","v":""},{"$f":"IF('1. Order'!BD306=\"\",\"\",'1. Order'!BD306)","v":6},{"$f":"IF('1. Order'!BE306=\"\",\"\",'1. Order'!BE306)","v":"None"},{"$f":"IF('1. Order'!BF306=\"\",\"\",'1. Order'!BF306)","v":"Parcel"},{"$f":"IF('1. Order'!BG306=\"\",\"\",'1. Order'!BG306)","v":"ZWO"}]
[{"$f":"IF('1. Order'!F307=\"\",\"\",'1. Order'!F307)","v":""},{"$f":"IF('1. Order'!G307=\"\",\"\",'1. Order'!G307)","v":""},{"$f":"IF('1. Order'!H307=\"\",\"\",'1. Order'!H307)","v":""},{"$f":"IF('1. Order'!I307=\"\",\"\",'1. Order'!I307)","v":""},{"$f":"IF('1. Order'!J307=\"\",\"\",'1. Order'!J307)","v":""},{"$f":"IF('1. Order'!K307=\"\",\"\",'1. Order'!K307)","v":""},{"$f":"IF('1. Order'!L307=\"\",\"\",'1. Order'!L307)","v":""},{"$f":"IF('1. Order'!M307=\"\",\"\",'1. Order'!M307)","v":""},{"$f":"IF('1. Order'!N307=\"\",\"\",'1. Order'!N307)","v":""},{"$f":"IF('1. Order'!O307=\"\",\"\",'1. Order'!O307)","v":{"$error":"#N/A"}},{"$f":"IF('1. Order'!P307=\"\",\"\",'1. Order'!P307)","v":{"$error":"#N/A"}},{"$f":"IF('1. Order'!Q307=\"\",\"\",'1. Order'!Q307)","v":""},{"$f":"IF('1. Order'!R307=\"\",\"\",'1. Order'!R307)","v":""},{"$f":"IF('1. Order'!S307=\"\",\"\",'1. Order'!S307)","v":""},{"$f":"IF('1. Order'!V307=\"\",\"\",'1. Order'!V307)","v":""},{"$f":"IF('1. Order'!W307=\"\",\"\",'1. Order'!W307)","v":""},{"$f":"IF('1. Order'!X307=\"\",\"\",'1. Order'!X307)","v":"EUR"},{"$f":"IF('1. Order'!Y307=\"\",\"\",'1. Order'!Y307)","v":""},{"$f":"IF('1. Order'!Z307=\"\",\"\",'1. Order'!Z307)","v":""},{"$f":"IF('1. Order'!AA307=\"\",\"\",'1. Order'!AA307)","v":""},null,{"$f":"IF('1. Order'!AS307=\"\",\"\",'1. Order'!AS307)","v":""},{"$f":"IF('1. Order'!AT307=\"\",\"\",'1. Order'!AT307)","v":""},null,null,null,null,null,null,null,{"$f":"IF('1. Order'!AX307=\"\",\"\",'1. Order'!AX307)","v":""},{"$f":"IF('1. Order'!AY307=\"\",\"\",'1. Order'!AY307)","v":""},{"$f":"IF('1. Order'!AZ307=\"\",\"\",'1. Order'!AZ307)","v":""},{"$f":"IF('1. Order'!BA307=\"\",\"\",'1. Order'!BA307)","v":""},{"$f":"IF('1. Order'!BC307=\"\",\"\",'1. Order'!BC307)","v":""},{"$f":"IF('1. Order'!BD307=\"\",\"\",'1. Order'!BD307)","v":6},{"$f":"IF('1. Order'!BE307=\"\",\"\",'1. Order'!BE307)","v":"None"},{"$f":"IF('1. Order'!BF307=\"\",\"\",'1. Order'!BF307)","v":"Parcel"},{"$f":"IF('1. Order'!BG307=\"\",\"\",'1. Order'!BG307)","v":"ZWO"}]
[{"$f":"IF('1. Order'!F308=\"\",\"\",'1. Order'!F308)","v":""},{"$f":"IF('1. Order'!G308=\"\",\"\",'1. Order'!G308)","v":""},{"$f":"IF('1. Order'!H308=\"\",\"\",'1. Order'!H308)","v":""},{"$f":"IF('1. Order'!I308=\"\",\"\",'1. Order'!I308)","v":""},{"$f":"IF('1. Order'!J308=\"\",\"\",'1. Order'!J308)","v":""},{"$f":"IF('1. Order'!K308=\"\",\"\",'1. Order'!K308)","v":""},{"$f":"IF('1. Order'!L308=\"\",\"\",'1. Order'!L308)","v":""},{"$f":"IF('1. Order'!M308=\"\",\"\",'1. Order'!M308)","v":""},{"$f":"IF('1. Order'!N308=\"\",\"\",'1. Order'!N308)","v":""},{"$f":"IF('1. Order'!O308=\"\",\"\",'1. Order'!O308)","v":{"$error":"#N/A"}},{"$f":"IF('1. Order'!P308=\"\",\"\",'1. Order'!P308)","v":{"$error":"#N/A"}},{"$f":"IF('1. Order'!Q308=\"\",\"\",'1. Order'!Q308)","v":""},{"$f":"IF('1. Order'!R308=\"\",\"\",'1. Order'!R308)","v":""},{"$f":"IF('1. Order'!S308=\"\",\"\",'1. Order'!S308)","v":""},{"$f":"IF('1. Order'!V308=\"\",\"\",'1. Order'!V308)","v":""},{"$f":"IF('1. Order'!W308=\"\",\"\",'1. Order'!W308)","v":""},{"$f":"IF('1. Order'!X308=\"\",\"\",'1. Order'!X308)","v":"EUR"},{"$f":"IF('1. Order'!Y308=\"\",\"\",'1. Order'!Y308)","v":""},{"$f":"IF('1. Order'!Z308=\"\",\"\",'1. Order'!Z308)","v":""},{"$f":"IF('1. Order'!AA308=\"\",\"\",'1. Order'!AA308)","v":""},null,{"$f":"IF('1. Order'!AS308=\"\",\"\",'1. Order'!AS308)","v":""},{"$f":"IF('1. Order'!AT308=\"\",\"\",'1. Order'!AT308)","v":""},null,null,null,null,null,null,null,{"$f":"IF('1. Order'!AX308=\"\",\"\",'1. Order'!AX308)","v":""},{"$f":"IF('1. Order'!AY308=\"\",\"\",'1. Order'!AY308)","v":""},{"$f":"IF('1. Order'!AZ308=\"\",\"\",'1. Order'!AZ308)","v":""},{"$f":"IF('1. Order'!BA308=\"\",\"\",'1. Order'!BA308)","v":""},{"$f":"IF('1. Order'!BC308=\"\",\"\",'1. Order'!BC308)","v":""},{"$f":"IF('1. Order'!BD308=\"\",\"\",'1. Order'!BD308)","v":6},{"$f":"IF('1. Order'!BE308=\"\",\"\",'1. Order'!BE308)","v":"None"},{"$f":"IF('1. Order'!BF308=\"\",\"\",'1. Order'!BF308)","v":"Parcel"},{"$f":"IF('1. Order'!BG308=\"\",\"\",'1. Order'!BG308)","v":"ZWO"}]
[{"$f":"IF('1. Order'!F309=\"\",\"\",'1. Order'!F309)","v":""},{"$f":"IF('1. Order'!G309=\"\",\"\",'1. Order'!G309)","v":""},{"$f":"IF('1. Order'!H309=\"\",\"\",'1. Order'!H309)","v":""},{"$f":"IF('1. Order'!I309=\"\",\"\",'1. Order'!I309)","v":""},{"$f":"IF('1. Order'!J309=\"\",\"\",'1. Order'!J309)","v":""},{"$f":"IF('1. Order'!K309=\"\",\"\",'1. Order'!K309)","v":""},{"$f":"IF('1. Order'!L309=\"\",\"\",'1. Order'!L309)","v":""},{"$f":"IF('1. Order'!M309=\"\",\"\",'1. Order'!M309)","v":""},{"$f":"IF('1. Order'!N309=\"\",\"\",'1. Order'!N309)","v":""},{"$f":"IF('1. Order'!O309=\"\",\"\",'1. Order'!O309)","v":{"$error":"#N/A"}},{"$f":"IF('1. Order'!P309=\"\",\"\",'1. Order'!P309)","v":{"$error":"#N/A"}},{"$f":"IF('1. Order'!Q309=\"\",\"\",'1. Order'!Q309)","v":""},{"$f":"IF('1. Order'!R309=\"\",\"\",'1. Order'!R309)","v":""},{"$f":"IF('1. Order'!S309=\"\",\"\",'1. Order'!S309)","v":""},{"$f":"IF('1. Order'!V309=\"\",\"\",'1. Order'!V309)","v":""},{"$f":"IF('1. Order'!W309=\"\",\"\",'1. Order'!W309)","v":""},{"$f":"IF('1. Order'!X309=\"\",\"\",'1. Order'!X309)","v":"EUR"},{"$f":"IF('1. Order'!Y309=\"\",\"\",'1. Order'!Y309)","v":""},{"$f":"IF('1. Order'!Z309=\"\",\"\",'1. Order'!Z309)","v":""},{"$f":"IF('1. Order'!AA309=\"\",\"\",'1. Order'!AA309)","v":""},null,{"$f":"IF('1. Order'!AS309=\"\",\"\",'1. Order'!AS309)","v":""},{"$f":"IF('1. Order'!AT309=\"\",\"\",'1. Order'!AT309)","v":""},null,null,null,null,null,null,null,{"$f":"IF('1. Order'!AX309=\"\",\"\",'1. Order'!AX309)","v":""},{"$f":"IF('1. Order'!AY309=\"\",\"\",'1. Order'!AY309)","v":""},{"$f":"IF('1. Order'!AZ309=\"\",\"\",'1. Order'!AZ309)","v":""},{"$f":"IF('1. Order'!BA309=\"\",\"\",'1. Order'!BA309)","v":""},{"$f":"IF('1. Order'!BC309=\"\",\"\",'1. Order'!BC309)","v":""},{"$f":"IF('1. Order'!BD309=\"\",\"\",'1. Order'!BD309)","v":6},{"$f":"IF('1. Order'!BE309=\"\",\"\",'1. Order'!BE309)","v":"None"},{"$f":"IF('1. Order'!BF309=\"\",\"\",'1. Order'!BF309)","v":"Parcel"},{"$f":"IF('1. Order'!BG309=\"\",\"\",'1. Order'!BG309)","v":"ZWO"}]
[{"$f":"IF('1. Order'!F310=\"\",\"\",'1. Order'!F310)","v":""},{"$f":"IF('1. Order'!G310=\"\",\"\",'1. Order'!G310)","v":""},{"$f":"IF('1. Order'!H310=\"\",\"\",'1. Order'!H310)","v":""},{"$f":"IF('1. Order'!I310=\"\",\"\",'1. Order'!I310)","v":""},{"$f":"IF('1. Order'!J310=\"\",\"\",'1. Order'!J310)","v":""},{"$f":"IF('1. Order'!K310=\"\",\"\",'1. Order'!K310)","v":""},{"$f":"IF('1. Order'!L310=\"\",\"\",'1. Order'!L310)","v":""},{"$f":"IF('1. Order'!M310=\"\",\"\",'1. Order'!M310)","v":""},{"$f":"IF('1. Order'!N310=\"\",\"\",'1. Order'!N310)","v":""},{"$f":"IF('1. Order'!O310=\"\",\"\",'1. Order'!O310)","v":{"$error":"#N/A"}},{"$f":"IF('1. Order'!P310=\"\",\"\",'1. Order'!P310)","v":{"$error":"#N/A"}},{"$f":"IF('1. Order'!Q310=\"\",\"\",'1. Order'!Q310)","v":""},{"$f":"IF('1. Order'!R310=\"\",\"\",'1. Order'!R310)","v":""},{"$f":"IF('1. Order'!S310=\"\",\"\",'1. Order'!S310)","v":""},{"$f":"IF('1. Order'!V310=\"\",\"\",'1. Order'!V310)","v":""},{"$f":"IF('1. Order'!W310=\"\",\"\",'1. Order'!W310)","v":""},{"$f":"IF('1. Order'!X310=\"\",\"\",'1. Order'!X310)","v":"EUR"},{"$f":"IF('1. Order'!Y310=\"\",\"\",'1. Order'!Y310)","v":""},{"$f":"IF('1. Order'!Z310=\"\",\"\",'1. Order'!Z310)","v":""},{"$f":"IF('1. Order'!AA310=\"\",\"\",'1. Order'!AA310)","v":""},null,{"$f":"IF('1. Order'!AS310=\"\",\"\",'1. Order'!AS310)","v":""},{"$f":"IF('1. Order'!AT310=\"\",\"\",'1. Order'!AT310)","v":""},null,null,null,null,null,null,null,{"$f":"IF('1. Order'!AX310=\"\",\"\",'1. Order'!AX310)","v":""},{"$f":"IF('1. Order'!AY310=\"\",\"\",'1. Order'!AY310)","v":""},{"$f":"IF('1. Order'!AZ310=\"\",\"\",'1. Order'!AZ310)","v":""},{"$f":"IF('1. Order'!BA310=\"\",\"\",'1. Order'!BA310)","v":""},{"$f":"IF('1. Order'!BC310=\"\",\"\",'1. Order'!BC310)","v":""},{"$f":"IF('1. Order'!BD310=\"\",\"\",'1. Order'!BD310)","v":6},{"$f":"IF('1. Order'!BE310=\"\",\"\",'1. Order'!BE310)","v":"None"},{"$f":"IF('1. Order'!BF310=\"\",\"\",'1. Order'!BF310)","v":"Parcel"},{"$f":"IF('1. Order'!BG310=\"\",\"\",'1. Order'!BG310)","v":"ZWO"}]
[{"$f":"IF('1. Order'!F311=\"\",\"\",'1. Order'!F311)","v":""},{"$f":"IF('1. Order'!G311=\"\",\"\",'1. Order'!G311)","v":""},{"$f":"IF('1. Order'!H311=\"\",\"\",'1. Order'!H311)","v":""},{"$f":"IF('1. Order'!I311=\"\",\"\",'1. Order'!I311)","v":""},{"$f":"IF('1. Order'!J311=\"\",\"\",'1. Order'!J311)","v":""},{"$f":"IF('1. Order'!K311=\"\",\"\",'1. Order'!K311)","v":""},{"$f":"IF('1. Order'!L311=\"\",\"\",'1. Order'!L311)","v":""},{"$f":"IF('1. Order'!M311=\"\",\"\",'1. Order'!M311)","v":""},{"$f":"IF('1. Order'!N311=\"\",\"\",'1. Order'!N311)","v":""},{"$f":"IF('1. Order'!O311=\"\",\"\",'1. Order'!O311)","v":{"$error":"#N/A"}},{"$f":"IF('1. Order'!P311=\"\",\"\",'1. Order'!P311)","v":{"$error":"#N/A"}},{"$f":"IF('1. Order'!Q311=\"\",\"\",'1. Order'!Q311)","v":""},{"$f":"IF('1. Order'!R311=\"\",\"\",'1. Order'!R311)","v":""},{"$f":"IF('1. Order'!S311=\"\",\"\",'1. Order'!S311)","v":""},{"$f":"IF('1. Order'!V311=\"\",\"\",'1. Order'!V311)","v":""},{"$f":"IF('1. Order'!W311=\"\",\"\",'1. Order'!W311)","v":""},{"$f":"IF('1. Order'!X311=\"\",\"\",'1. Order'!X311)","v":"EUR"},{"$f":"IF('1. Order'!Y311=\"\",\"\",'1. Order'!Y311)","v":""},{"$f":"IF('1. Order'!Z311=\"\",\"\",'1. Order'!Z311)","v":""},{"$f":"IF('1. Order'!AA311=\"\",\"\",'1. Order'!AA311)","v":""},null,{"$f":"IF('1. Order'!AS311=\"\",\"\",'1. Order'!AS311)","v":""},{"$f":"IF('1. Order'!AT311=\"\",\"\",'1. Order'!AT311)","v":""},null,null,null,null,null,null,null,{"$f":"IF('1. Order'!AX311=\"\",\"\",'1. Order'!AX311)","v":""},{"$f":"IF('1. Order'!AY311=\"\",\"\",'1. Order'!AY311)","v":""},{"$f":"IF('1. Order'!AZ311=\"\",\"\",'1. Order'!AZ311)","v":""},{"$f":"IF('1. Order'!BA311=\"\",\"\",'1. Order'!BA311)","v":""},{"$f":"IF('1. Order'!BC311=\"\",\"\",'1. Order'!BC311)","v":""},{"$f":"IF('1. Order'!BD311=\"\",\"\",'1. Order'!BD311)","v":6},{"$f":"IF('1. Order'!BE311=\"\",\"\",'1. Order'!BE311)","v":"None"},{"$f":"IF('1. Order'!BF311=\"\",\"\",'1. Order'!BF311)","v":"Parcel"},{"$f":"IF('1. Order'!BG311=\"\",\"\",'1. Order'!BG311)","v":"ZWO"}]
[{"$f":"IF('1. Order'!F312=\"\",\"\",'1. Order'!F312)","v":""},{"$f":"IF('1. Order'!G312=\"\",\"\",'1. Order'!G312)","v":""},{"$f":"IF('1. Order'!H312=\"\",\"\",'1. Order'!H312)","v":""},{"$f":"IF('1. Order'!I312=\"\",\"\",'1. Order'!I312)","v":""},{"$f":"IF('1. Order'!J312=\"\",\"\",'1. Order'!J312)","v":""},{"$f":"IF('1. Order'!K312=\"\",\"\",'1. Order'!K312)","v":""},{"$f":"IF('1. Order'!L312=\"\",\"\",'1. Order'!L312)","v":""},{"$f":"IF('1. Order'!M312=\"\",\"\",'1. Order'!M312)","v":""},{"$f":"IF('1. Order'!N312=\"\",\"\",'1. Order'!N312)","v":""},{"$f":"IF('1. Order'!O312=\"\",\"\",'1. Order'!O312)","v":{"$error":"#N/A"}},{"$f":"IF('1. Order'!P312=\"\",\"\",'1. Order'!P312)","v":{"$error":"#N/A"}},{"$f":"IF('1. Order'!Q312=\"\",\"\",'1. Order'!Q312)","v":""},{"$f":"IF('1. Order'!R312=\"\",\"\",'1. Order'!R312)","v":""},{"$f":"IF('1. Order'!S312=\"\",\"\",'1. Order'!S312)","v":""},{"$f":"IF('1. Order'!V312=\"\",\"\",'1. Order'!V312)","v":""},{"$f":"IF('1. Order'!W312=\"\",\"\",'1. Order'!W312)","v":""},{"$f":"IF('1. Order'!X312=\"\",\"\",'1. Order'!X312)","v":"EUR"},{"$f":"IF('1. Order'!Y312=\"\",\"\",'1. Order'!Y312)","v":""},{"$f":"IF('1. Order'!Z312=\"\",\"\",'1. Order'!Z312)","v":""},{"$f":"IF('1. Order'!AA312=\"\",\"\",'1. Order'!AA312)","v":""},null,{"$f":"IF('1. Order'!AS312=\"\",\"\",'1. Order'!AS312)","v":""},{"$f":"IF('1. Order'!AT312=\"\",\"\",'1. Order'!AT312)","v":""},null,null,null,null,null,null,null,{"$f":"IF('1. Order'!AX312=\"\",\"\",'1. Order'!AX312)","v":""},{"$f":"IF('1. Order'!AY312=\"\",\"\",'1. Order'!AY312)","v":""},{"$f":"IF('1. Order'!AZ312=\"\",\"\",'1. Order'!AZ312)","v":""},{"$f":"IF('1. Order'!BA312=\"\",\"\",'1. Order'!BA312)","v":""},{"$f":"IF('1. Order'!BC312=\"\",\"\",'1. Order'!BC312)","v":""},{"$f":"IF('1. Order'!BD312=\"\",\"\",'1. Order'!BD312)","v":6},{"$f":"IF('1. Order'!BE312=\"\",\"\",'1. Order'!BE312)","v":"None"},{"$f":"IF('1. Order'!BF312=\"\",\"\",'1. Order'!BF312)","v":"Parcel"},{"$f":"IF('1. Order'!BG312=\"\",\"\",'1. Order'!BG312)","v":"ZWO"}]
[{"$f":"IF('1. Order'!F313=\"\",\"\",'1. Order'!F313)","v":""},{"$f":"IF('1. Order'!G313=\"\",\"\",'1. Order'!G313)","v":""},{"$f":"IF('1. Order'!H313=\"\",\"\",'1. Order'!H313)","v":""},{"$f":"IF('1. Order'!I313=\"\",\"\",'1. Order'!I313)","v":""},{"$f":"IF('1. Order'!J313=\"\",\"\",'1. Order'!J313)","v":""},{"$f":"IF('1. Order'!K313=\"\",\"\",'1. Order'!K313)","v":""},{"$f":"IF('1. Order'!L313=\"\",\"\",'1. Order'!L313)","v":""},{"$f":"IF('1. Order'!M313=\"\",\"\",'1. Order'!M313)","v":""},{"$f":"IF('1. Order'!N313=\"\",\"\",'1. Order'!N313)","v":""},{"$f":"IF('1. Order'!O313=\"\",\"\",'1. Order'!O313)","v":{"$error":"#N/A"}},{"$f":"IF('1. Order'!P313=\"\",\"\",'1. Order'!P313)","v":{"$error":"#N/A"}},{"$f":"IF('1. Order'!Q313=\"\",\"\",'1. Order'!Q313)","v":""},{"$f":"IF('1. Order'!R313=\"\",\"\",'1. Order'!R313)","v":""},{"$f":"IF('1. Order'!S313=\"\",\"\",'1. Order'!S313)","v":""},{"$f":"IF('1. Order'!V313=\"\",\"\",'1. Order'!V313)","v":""},{"$f":"IF('1. Order'!W313=\"\",\"\",'1. Order'!W313)","v":""},{"$f":"IF('1. Order'!X313=\"\",\"\",'1. Order'!X313)","v":"EUR"},{"$f":"IF('1. Order'!Y313=\"\",\"\",'1. Order'!Y313)","v":""},{"$f":"IF('1. Order'!Z313=\"\",\"\",'1. Order'!Z313)","v":""},{"$f":"IF('1. Order'!AA313=\"\",\"\",'1. Order'!AA313)","v":""},null,{"$f":"IF('1. Order'!AS313=\"\",\"\",'1. Order'!AS313)","v":""},{"$f":"IF('1. Order'!AT313=\"\",\"\",'1. Order'!AT313)","v":""},null,null,null,null,null,null,null,{"$f":"IF('1. Order'!AX313=\"\",\"\",'1. Order'!AX313)","v":""},{"$f":"IF('1. Order'!AY313=\"\",\"\",'1. Order'!AY313)","v":""},{"$f":"IF('1. Order'!AZ313=\"\",\"\",'1. Order'!AZ313)","v":""},{"$f":"IF('1. Order'!BA313=\"\",\"\",'1. Order'!BA313)","v":""},{"$f":"IF('1. Order'!BC313=\"\",\"\",'1. Order'!BC313)","v":""},{"$f":"IF('1. Order'!BD313=\"\",\"\",'1. Order'!BD313)","v":6},{"$f":"IF('1. Order'!BE313=\"\",\"\",'1. Order'!BE313)","v":"None"},{"$f":"IF('1. Order'!BF313=\"\",\"\",'1. Order'!BF313)","v":"Parcel"},{"$f":"IF('1. Order'!BG313=\"\",\"\",'1. Order'!BG313)","v":"ZWO"}]
[{"$f":"IF('1. Order'!F314=\"\",\"\",'1. Order'!F314)","v":""},{"$f":"IF('1. Order'!G314=\"\",\"\",'1. Order'!G314)","v":""},{"$f":"IF('1. Order'!H314=\"\",\"\",'1. Order'!H314)","v":""},{"$f":"IF('1. Order'!I314=\"\",\"\",'1. Order'!I314)","v":""},{"$f":"IF('1. Order'!J314=\"\",\"\",'1. Order'!J314)","v":""},{"$f":"IF('1. Order'!K314=\"\",\"\",'1. Order'!K314)","v":""},{"$f":"IF('1. Order'!L314=\"\",\"\",'1. Order'!L314)","v":""},{"$f":"IF('1. Order'!M314=\"\",\"\",'1. Order'!M314)","v":""},{"$f":"IF('1. Order'!N314=\"\",\"\",'1. Order'!N314)","v":""},{"$f":"IF('1. Order'!O314=\"\",\"\",'1. Order'!O314)","v":{"$error":"#N/A"}},{"$f":"IF('1. Order'!P314=\"\",\"\",'1. Order'!P314)","v":{"$error":"#N/A"}},{"$f":"IF('1. Order'!Q314=\"\",\"\",'1. Order'!Q314)","v":""},{"$f":"IF('1. Order'!R314=\"\",\"\",'1. Order'!R314)","v":""},{"$f":"IF('1. Order'!S314=\"\",\"\",'1. Order'!S314)","v":""},{"$f":"IF('1. Order'!V314=\"\",\"\",'1. Order'!V314)","v":""},{"$f":"IF('1. Order'!W314=\"\",\"\",'1. Order'!W314)","v":""},{"$f":"IF('1. Order'!X314=\"\",\"\",'1. Order'!X314)","v":"EUR"},{"$f":"IF('1. Order'!Y314=\"\",\"\",'1. Order'!Y314)","v":""},{"$f":"IF('1. Order'!Z314=\"\",\"\",'1. Order'!Z314)","v":""},{"$f":"IF('1. Order'!AA314=\"\",\"\",'1. Order'!AA314)","v":""},null,{"$f":"IF('1. Order'!AS314=\"\",\"\",'1. Order'!AS314)","v":""},{"$f":"IF('1. Order'!AT314=\"\",\"\",'1. Order'!AT314)","v":""},null,null,null,null,null,null,null,{"$f":"IF('1. Order'!AX314=\"\",\"\",'1. Order'!AX314)","v":""},{"$f":"IF('1. Order'!AY314=\"\",\"\",'1. Order'!AY314)","v":""},{"$f":"IF('1. Order'!AZ314=\"\",\"\",'1. Order'!AZ314)","v":""},{"$f":"IF('1. Order'!BA314=\"\",\"\",'1. Order'!BA314)","v":""},{"$f":"IF('1. Order'!BC314=\"\",\"\",'1. Order'!BC314)","v":""},{"$f":"IF('1. Order'!BD314=\"\",\"\",'1. Order'!BD314)","v":6},{"$f":"IF('1. Order'!BE314=\"\",\"\",'1. Order'!BE314)","v":"None"},{"$f":"IF('1. Order'!BF314=\"\",\"\",'1. Order'!BF314)","v":"Parcel"},{"$f":"IF('1. Order'!BG314=\"\",\"\",'1. Order'!BG314)","v":"ZWO"}]
[{"$f":"IF('1. Order'!F315=\"\",\"\",'1. Order'!F315)","v":""},{"$f":"IF('1. Order'!G315=\"\",\"\",'1. Order'!G315)","v":""},{"$f":"IF('1. Order'!H315=\"\",\"\",'1. Order'!H315)","v":""},{"$f":"IF('1. Order'!I315=\"\",\"\",'1. Order'!I315)","v":""},{"$f":"IF('1. Order'!J315=\"\",\"\",'1. Order'!J315)","v":""},{"$f":"IF('1. Order'!K315=\"\",\"\",'1. Order'!K315)","v":""},{"$f":"IF('1. Order'!L315=\"\",\"\",'1. Order'!L315)","v":""},{"$f":"IF('1. Order'!M315=\"\",\"\",'1. Order'!M315)","v":""},{"$f":"IF('1. Order'!N315=\"\",\"\",'1. Order'!N315)","v":""},{"$f":"IF('1. Order'!O315=\"\",\"\",'1. Order'!O315)","v":{"$error":"#N/A"}},{"$f":"IF('1. Order'!P315=\"\",\"\",'1. Order'!P315)","v":{"$error":"#N/A"}},{"$f":"IF('1. Order'!Q315=\"\",\"\",'1. Order'!Q315)","v":""},{"$f":"IF('1. Order'!R315=\"\",\"\",'1. Order'!R315)","v":""},{"$f":"IF('1. Order'!S315=\"\",\"\",'1. Order'!S315)","v":""},{"$f":"IF('1. Order'!V315=\"\",\"\",'1. Order'!V315)","v":""},{"$f":"IF('1. Order'!W315=\"\",\"\",'1. Order'!W315)","v":""},{"$f":"IF('1. Order'!X315=\"\",\"\",'1. Order'!X315)","v":"EUR"},{"$f":"IF('1. Order'!Y315=\"\",\"\",'1. Order'!Y315)","v":""},{"$f":"IF('1. Order'!Z315=\"\",\"\",'1. Order'!Z315)","v":""},{"$f":"IF('1. Order'!AA315=\"\",\"\",'1. Order'!AA315)","v":""},null,{"$f":"IF('1. Order'!AS315=\"\",\"\",'1. Order'!AS315)","v":""},{"$f":"IF('1. Order'!AT315=\"\",\"\",'1. Order'!AT315)","v":""},null,null,null,null,null,null,null,{"$f":"IF('1. Order'!AX315=\"\",\"\",'1. Order'!AX315)","v":""},{"$f":"IF('1. Order'!AY315=\"\",\"\",'1. Order'!AY315)","v":""},{"$f":"IF('1. Order'!AZ315=\"\",\"\",'1. Order'!AZ315)","v":""},{"$f":"IF('1. Order'!BA315=\"\",\"\",'1. Order'!BA315)","v":""},{"$f":"IF('1. Order'!BC315=\"\",\"\",'1. Order'!BC315)","v":""},{"$f":"IF('1. Order'!BD315=\"\",\"\",'1. Order'!BD315)","v":6},{"$f":"IF('1. Order'!BE315=\"\",\"\",'1. Order'!BE315)","v":"None"},{"$f":"IF('1. Order'!BF315=\"\",\"\",'1. Order'!BF315)","v":"Parcel"},{"$f":"IF('1. Order'!BG315=\"\",\"\",'1. Order'!BG315)","v":"ZWO"}]
[{"$f":"IF('1. Order'!F316=\"\",\"\",'1. Order'!F316)","v":""},{"$f":"IF('1. Order'!G316=\"\",\"\",'1. Order'!G316)","v":""},{"$f":"IF('1. Order'!H316=\"\",\"\",'1. Order'!H316)","v":""},{"$f":"IF('1. Order'!I316=\"\",\"\",'1. Order'!I316)","v":""},{"$f":"IF('1. Order'!J316=\"\",\"\",'1. Order'!J316)","v":""},{"$f":"IF('1. Order'!K316=\"\",\"\",'1. Order'!K316)","v":""},{"$f":"IF('1. Order'!L316=\"\",\"\",'1. Order'!L316)","v":""},{"$f":"IF('1. Order'!M316=\"\",\"\",'1. Order'!M316)","v":""},{"$f":"IF('1. Order'!N316=\"\",\"\",'1. Order'!N316)","v":""},{"$f":"IF('1. Order'!O316=\"\",\"\",'1. Order'!O316)","v":{"$error":"#N/A"}},{"$f":"IF('1. Order'!P316=\"\",\"\",'1. Order'!P316)","v":{"$error":"#N/A"}},{"$f":"IF('1. Order'!Q316=\"\",\"\",'1. Order'!Q316)","v":""},{"$f":"IF('1. Order'!R316=\"\",\"\",'1. Order'!R316)","v":""},{"$f":"IF('1. Order'!S316=\"\",\"\",'1. Order'!S316)","v":""},{"$f":"IF('1. Order'!V316=\"\",\"\",'1. Order'!V316)","v":""},{"$f":"IF('1. Order'!W316=\"\",\"\",'1. Order'!W316)","v":""},{"$f":"IF('1. Order'!X316=\"\",\"\",'1. Order'!X316)","v":"EUR"},{"$f":"IF('1. Order'!Y316=\"\",\"\",'1. Order'!Y316)","v":""},{"$f":"IF('1. Order'!Z316=\"\",\"\",'1. Order'!Z316)","v":""},{"$f":"IF('1. Order'!AA316=\"\",\"\",'1. Order'!AA316)","v":""},null,{"$f":"IF('1. Order'!AS316=\"\",\"\",'1. Order'!AS316)","v":""},{"$f":"IF('1. Order'!AT316=\"\",\"\",'1. Order'!AT316)","v":""},null,null,null,null,null,null,null,{"$f":"IF('1. Order'!AX316=\"\",\"\",'1. Order'!AX316)","v":""},{"$f":"IF('1. Order'!AY316=\"\",\"\",'1. Order'!AY316)","v":""},{"$f":"IF('1. Order'!AZ316=\"\",\"\",'1. Order'!AZ316)","v":""},{"$f":"IF('1. Order'!BA316=\"\",\"\",'1. Order'!BA316)","v":""},{"$f":"IF('1. Order'!BC316=\"\",\"\",'1. Order'!BC316)","v":""},{"$f":"IF('1. Order'!BD316=\"\",\"\",'1. Order'!BD316)","v":6},{"$f":"IF('1. Order'!BE316=\"\",\"\",'1. Order'!BE316)","v":"None"},{"$f":"IF('1. Order'!BF316=\"\",\"\",'1. Order'!BF316)","v":"Parcel"},{"$f":"IF('1. Order'!BG316=\"\",\"\",'1. Order'!BG316)","v":"ZWO"}]
[{"$f":"IF('1. Order'!F317=\"\",\"\",'1. Order'!F317)","v":""},{"$f":"IF('1. Order'!G317=\"\",\"\",'1. Order'!G317)","v":""},{"$f":"IF('1. Order'!H317=\"\",\"\",'1. Order'!H317)","v":""},{"$f":"IF('1. Order'!I317=\"\",\"\",'1. Order'!I317)","v":""},{"$f":"IF('1. Order'!J317=\"\",\"\",'1. Order'!J317)","v":""},{"$f":"IF('1. Order'!K317=\"\",\"\",'1. Order'!K317)","v":""},{"$f":"IF('1. Order'!L317=\"\",\"\",'1. Order'!L317)","v":""},{"$f":"IF('1. Order'!M317=\"\",\"\",'1. Order'!M317)","v":""},{"$f":"IF('1. Order'!N317=\"\",\"\",'1. Order'!N317)","v":""},{"$f":"IF('1. Order'!O317=\"\",\"\",'1. Order'!O317)","v":{"$error":"#N/A"}},{"$f":"IF('1. Order'!P317=\"\",\"\",'1. Order'!P317)","v":{"$error":"#N/A"}},{"$f":"IF('1. Order'!Q317=\"\",\"\",'1. Order'!Q317)","v":""},{"$f":"IF('1. Order'!R317=\"\",\"\",'1. Order'!R317)","v":""},{"$f":"IF('1. Order'!S317=\"\",\"\",'1. Order'!S317)","v":""},{"$f":"IF('1. Order'!V317=\"\",\"\",'1. Order'!V317)","v":""},{"$f":"IF('1. Order'!W317=\"\",\"\",'1. Order'!W317)","v":""},{"$f":"IF('1. Order'!X317=\"\",\"\",'1. Order'!X317)","v":"EUR"},{"$f":"IF('1. Order'!Y317=\"\",\"\",'1. Order'!Y317)","v":""},{"$f":"IF('1. Order'!Z317=\"\",\"\",'1. Order'!Z317)","v":""},{"$f":"IF('1. Order'!AA317=\"\",\"\",'1. Order'!AA317)","v":""},null,{"$f":"IF('1. Order'!AS317=\"\",\"\",'1. Order'!AS317)","v":""},{"$f":"IF('1. Order'!AT317=\"\",\"\",'1. Order'!AT317)","v":""},null,null,null,null,null,null,null,{"$f":"IF('1. Order'!AX317=\"\",\"\",'1. Order'!AX317)","v":""},{"$f":"IF('1. Order'!AY317=\"\",\"\",'1. Order'!AY317)","v":""},{"$f":"IF('1. Order'!AZ317=\"\",\"\",'1. Order'!AZ317)","v":""},{"$f":"IF('1. Order'!BA317=\"\",\"\",'1. Order'!BA317)","v":""},{"$f":"IF('1. Order'!BC317=\"\",\"\",'1. Order'!BC317)","v":""},{"$f":"IF('1. Order'!BD317=\"\",\"\",'1. Order'!BD317)","v":6},{"$f":"IF('1. Order'!BE317=\"\",\"\",'1. Order'!BE317)","v":"None"},{"$f":"IF('1. Order'!BF317=\"\",\"\",'1. Order'!BF317)","v":"Parcel"},{"$f":"IF('1. Order'!BG317=\"\",\"\",'1. Order'!BG317)","v":"ZWO"}]
[{"$f":"IF('1. Order'!F318=\"\",\"\",'1. Order'!F318)","v":""},{"$f":"IF('1. Order'!G318=\"\",\"\",'1. Order'!G318)","v":""},{"$f":"IF('1. Order'!H318=\"\",\"\",'1. Order'!H318)","v":""},{"$f":"IF('1. Order'!I318=\"\",\"\",'1. Order'!I318)","v":""},{"$f":"IF('1. Order'!J318=\"\",\"\",'1. Order'!J318)","v":""},{"$f":"IF('1. Order'!K318=\"\",\"\",'1. Order'!K318)","v":""},{"$f":"IF('1. Order'!L318=\"\",\"\",'1. Order'!L318)","v":""},{"$f":"IF('1. Order'!M318=\"\",\"\",'1. Order'!M318)","v":""},{"$f":"IF('1. Order'!N318=\"\",\"\",'1. Order'!N318)","v":""},{"$f":"IF('1. Order'!O318=\"\",\"\",'1. Order'!O318)","v":{"$error":"#N/A"}},{"$f":"IF('1. Order'!P318=\"\",\"\",'1. Order'!P318)","v":{"$error":"#N/A"}},{"$f":"IF('1. Order'!Q318=\"\",\"\",'1. Order'!Q318)","v":""},{"$f":"IF('1. Order'!R318=\"\",\"\",'1. Order'!R318)","v":""},{"$f":"IF('1. Order'!S318=\"\",\"\",'1. Order'!S318)","v":""},{"$f":"IF('1. Order'!V318=\"\",\"\",'1. Order'!V318)","v":""},{"$f":"IF('1. Order'!W318=\"\",\"\",'1. Order'!W318)","v":""},{"$f":"IF('1. Order'!X318=\"\",\"\",'1. Order'!X318)","v":"EUR"},{"$f":"IF('1. Order'!Y318=\"\",\"\",'1. Order'!Y318)","v":""},{"$f":"IF('1. Order'!Z318=\"\",\"\",'1. Order'!Z318)","v":""},{"$f":"IF('1. Order'!AA318=\"\",\"\",'1. Order'!AA318)","v":""},null,{"$f":"IF('1. Order'!AS318=\"\",\"\",'1. Order'!AS318)","v":""},{"$f":"IF('1. Order'!AT318=\"\",\"\",'1. Order'!AT318)","v":""},null,null,null,null,null,null,null,{"$f":"IF('1. Order'!AX318=\"\",\"\",'1. Order'!AX318)","v":""},{"$f":"IF('1. Order'!AY318=\"\",\"\",'1. Order'!AY318)","v":""},{"$f":"IF('1. Order'!AZ318=\"\",\"\",'1. Order'!AZ318)","v":""},{"$f":"IF('1. Order'!BA318=\"\",\"\",'1. Order'!BA318)","v":""},{"$f":"IF('1. Order'!BC318=\"\",\"\",'1. Order'!BC318)","v":""},{"$f":"IF('1. Order'!BD318=\"\",\"\",'1. Order'!BD318)","v":6},{"$f":"IF('1. Order'!BE318=\"\",\"\",'1. Order'!BE318)","v":"None"},{"$f":"IF('1. Order'!BF318=\"\",\"\",'1. Order'!BF318)","v":"Parcel"},{"$f":"IF('1. Order'!BG318=\"\",\"\",'1. Order'!BG318)","v":"ZWO"}]
[{"$f":"IF('1. Order'!F319=\"\",\"\",'1. Order'!F319)","v":""},{"$f":"IF('1. Order'!G319=\"\",\"\",'1. Order'!G319)","v":""},{"$f":"IF('1. Order'!H319=\"\",\"\",'1. Order'!H319)","v":""},{"$f":"IF('1. Order'!I319=\"\",\"\",'1. Order'!I319)","v":""},{"$f":"IF('1. Order'!J319=\"\",\"\",'1. Order'!J319)","v":""},{"$f":"IF('1. Order'!K319=\"\",\"\",'1. Order'!K319)","v":""},{"$f":"IF('1. Order'!L319=\"\",\"\",'1. Order'!L319)","v":""},{"$f":"IF('1. Order'!M319=\"\",\"\",'1. Order'!M319)","v":""},{"$f":"IF('1. Order'!N319=\"\",\"\",'1. Order'!N319)","v":""},{"$f":"IF('1. Order'!O319=\"\",\"\",'1. Order'!O319)","v":{"$error":"#N/A"}},{"$f":"IF('1. Order'!P319=\"\",\"\",'1. Order'!P319)","v":{"$error":"#N/A"}},{"$f":"IF('1. Order'!Q319=\"\",\"\",'1. Order'!Q319)","v":""},{"$f":"IF('1. Order'!R319=\"\",\"\",'1. Order'!R319)","v":""},{"$f":"IF('1. Order'!S319=\"\",\"\",'1. Order'!S319)","v":""},{"$f":"IF('1. Order'!V319=\"\",\"\",'1. Order'!V319)","v":""},{"$f":"IF('1. Order'!W319=\"\",\"\",'1. Order'!W319)","v":""},{"$f":"IF('1. Order'!X319=\"\",\"\",'1. Order'!X319)","v":"EUR"},{"$f":"IF('1. Order'!Y319=\"\",\"\",'1. Order'!Y319)","v":""},{"$f":"IF('1. Order'!Z319=\"\",\"\",'1. Order'!Z319)","v":""},{"$f":"IF('1. Order'!AA319=\"\",\"\",'1. Order'!AA319)","v":""},null,{"$f":"IF('1. Order'!AS319=\"\",\"\",'1. Order'!AS319)","v":""},{"$f":"IF('1. Order'!AT319=\"\",\"\",'1. Order'!AT319)","v":""},null,null,null,null,null,null,null,{"$f":"IF('1. Order'!AX319=\"\",\"\",'1. Order'!AX319)","v":""},{"$f":"IF('1. Order'!AY319=\"\",\"\",'1. Order'!AY319)","v":""},{"$f":"IF('1. Order'!AZ319=\"\",\"\",'1. Order'!AZ319)","v":""},{"$f":"IF('1. Order'!BA319=\"\",\"\",'1. Order'!BA319)","v":""},{"$f":"IF('1. Order'!BC319=\"\",\"\",'1. Order'!BC319)","v":""},{"$f":"IF('1. Order'!BD319=\"\",\"\",'1. Order'!BD319)","v":6},{"$f":"IF('1. Order'!BE319=\"\",\"\",'1. Order'!BE319)","v":"None"},{"$f":"IF('1. Order'!BF319=\"\",\"\",'1. Order'!BF319)","v":"Parcel"},{"$f":"IF('1. Order'!BG319=\"\",\"\",'1. Order'!BG319)","v":"ZWO"}]
[{"$f":"IF('1. Order'!F320=\"\",\"\",'1. Order'!F320)","v":""},{"$f":"IF('1. Order'!G320=\"\",\"\",'1. Order'!G320)","v":""},{"$f":"IF('1. Order'!H320=\"\",\"\",'1. Order'!H320)","v":""},{"$f":"IF('1. Order'!I320=\"\",\"\",'1. Order'!I320)","v":""},{"$f":"IF('1. Order'!J320=\"\",\"\",'1. Order'!J320)","v":""},{"$f":"IF('1. Order'!K320=\"\",\"\",'1. Order'!K320)","v":""},{"$f":"IF('1. Order'!L320=\"\",\"\",'1. Order'!L320)","v":""},{"$f":"IF('1. Order'!M320=\"\",\"\",'1. Order'!M320)","v":""},{"$f":"IF('1. Order'!N320=\"\",\"\",'1. Order'!N320)","v":""},{"$f":"IF('1. Order'!O320=\"\",\"\",'1. Order'!O320)","v":{"$error":"#N/A"}},{"$f":"IF('1. Order'!P320=\"\",\"\",'1. Order'!P320)","v":{"$error":"#N/A"}},{"$f":"IF('1. Order'!Q320=\"\",\"\",'1. Order'!Q320)","v":""},{"$f":"IF('1. Order'!R320=\"\",\"\",'1. Order'!R320)","v":""},{"$f":"IF('1. Order'!S320=\"\",\"\",'1. Order'!S320)","v":""},{"$f":"IF('1. Order'!V320=\"\",\"\",'1. Order'!V320)","v":""},{"$f":"IF('1. Order'!W320=\"\",\"\",'1. Order'!W320)","v":""},{"$f":"IF('1. Order'!X320=\"\",\"\",'1. Order'!X320)","v":"EUR"},{"$f":"IF('1. Order'!Y320=\"\",\"\",'1. Order'!Y320)","v":""},{"$f":"IF('1. Order'!Z320=\"\",\"\",'1. Order'!Z320)","v":""},{"$f":"IF('1. Order'!AA320=\"\",\"\",'1. Order'!AA320)","v":""},null,{"$f":"IF('1. Order'!AS320=\"\",\"\",'1. Order'!AS320)","v":""},{"$f":"IF('1. Order'!AT320=\"\",\"\",'1. Order'!AT320)","v":""},null,null,null,null,null,null,null,{"$f":"IF('1. Order'!AX320=\"\",\"\",'1. Order'!AX320)","v":""},{"$f":"IF('1. Order'!AY320=\"\",\"\",'1. Order'!AY320)","v":""},{"$f":"IF('1. Order'!AZ320=\"\",\"\",'1. Order'!AZ320)","v":""},{"$f":"IF('1. Order'!BA320=\"\",\"\",'1. Order'!BA320)","v":""},{"$f":"IF('1. Order'!BC320=\"\",\"\",'1. Order'!BC320)","v":""},{"$f":"IF('1. Order'!BD320=\"\",\"\",'1. Order'!BD320)","v":6},{"$f":"IF('1. Order'!BE320=\"\",\"\",'1. Order'!BE320)","v":"None"},{"$f":"IF('1. Order'!BF320=\"\",\"\",'1. Order'!BF320)","v":"Parcel"},{"$f":"IF('1. Order'!BG320=\"\",\"\",'1. Order'!BG320)","v":"ZWO"}]
[{"$f":"IF('1. Order'!F321=\"\",\"\",'1. Order'!F321)","v":""},{"$f":"IF('1. Order'!G321=\"\",\"\",'1. Order'!G321)","v":""},{"$f":"IF('1. Order'!H321=\"\",\"\",'1. Order'!H321)","v":""},{"$f":"IF('1. Order'!I321=\"\",\"\",'1. Order'!I321)","v":""},{"$f":"IF('1. Order'!J321=\"\",\"\",'1. Order'!J321)","v":""},{"$f":"IF('1. Order'!K321=\"\",\"\",'1. Order'!K321)","v":""},{"$f":"IF('1. Order'!L321=\"\",\"\",'1. Order'!L321)","v":""},{"$f":"IF('1. Order'!M321=\"\",\"\",'1. Order'!M321)","v":""},{"$f":"IF('1. Order'!N321=\"\",\"\",'1. Order'!N321)","v":""},{"$f":"IF('1. Order'!O321=\"\",\"\",'1. Order'!O321)","v":{"$error":"#N/A"}},{"$f":"IF('1. Order'!P321=\"\",\"\",'1. Order'!P321)","v":{"$error":"#N/A"}},{"$f":"IF('1. Order'!Q321=\"\",\"\",'1. Order'!Q321)","v":""},{"$f":"IF('1. Order'!R321=\"\",\"\",'1. Order'!R321)","v":""},{"$f":"IF('1. Order'!S321=\"\",\"\",'1. Order'!S321)","v":""},{"$f":"IF('1. Order'!V321=\"\",\"\",'1. Order'!V321)","v":""},{"$f":"IF('1. Order'!W321=\"\",\"\",'1. Order'!W321)","v":""},{"$f":"IF('1. Order'!X321=\"\",\"\",'1. Order'!X321)","v":"EUR"},{"$f":"IF('1. Order'!Y321=\"\",\"\",'1. Order'!Y321)","v":""},{"$f":"IF('1. Order'!Z321=\"\",\"\",'1. Order'!Z321)","v":""},{"$f":"IF('1. Order'!AA321=\"\",\"\",'1. Order'!AA321)","v":""},null,{"$f":"IF('1. Order'!AS321=\"\",\"\",'1. Order'!AS321)","v":""},{"$f":"IF('1. Order'!AT321=\"\",\"\",'1. Order'!AT321)","v":""},null,null,null,null,null,null,null,{"$f":"IF('1. Order'!AX321=\"\",\"\",'1. Order'!AX321)","v":""},{"$f":"IF('1. Order'!AY321=\"\",\"\",'1. Order'!AY321)","v":""},{"$f":"IF('1. Order'!AZ321=\"\",\"\",'1. Order'!AZ321)","v":""},{"$f":"IF('1. Order'!BA321=\"\",\"\",'1. Order'!BA321)","v":""},{"$f":"IF('1. Order'!BC321=\"\",\"\",'1. Order'!BC321)","v":""},{"$f":"IF('1. Order'!BD321=\"\",\"\",'1. Order'!BD321)","v":6},{"$f":"IF('1. Order'!BE321=\"\",\"\",'1. Order'!BE321)","v":"None"},{"$f":"IF('1. Order'!BF321=\"\",\"\",'1. Order'!BF321)","v":"Parcel"},{"$f":"IF('1. Order'!BG321=\"\",\"\",'1. Order'!BG321)","v":"ZWO"}]
[{"$f":"IF('1. Order'!F322=\"\",\"\",'1. Order'!F322)","v":""},{"$f":"IF('1. Order'!G322=\"\",\"\",'1. Order'!G322)","v":""},{"$f":"IF('1. Order'!H322=\"\",\"\",'1. Order'!H322)","v":""},{"$f":"IF('1. Order'!I322=\"\",\"\",'1. Order'!I322)","v":""},{"$f":"IF('1. Order'!J322=\"\",\"\",'1. Order'!J322)","v":""},{"$f":"IF('1. Order'!K322=\"\",\"\",'1. Order'!K322)","v":""},{"$f":"IF('1. Order'!L322=\"\",\"\",'1. Order'!L322)","v":""},{"$f":"IF('1. Order'!M322=\"\",\"\",'1. Order'!M322)","v":""},{"$f":"IF('1. Order'!N322=\"\",\"\",'1. Order'!N322)","v":""},{"$f":"IF('1. Order'!O322=\"\",\"\",'1. Order'!O322)","v":{"$error":"#N/A"}},{"$f":"IF('1. Order'!P322=\"\",\"\",'1. Order'!P322)","v":{"$error":"#N/A"}},{"$f":"IF('1. Order'!Q322=\"\",\"\",'1. Order'!Q322)","v":""},{"$f":"IF('1. Order'!R322=\"\",\"\",'1. Order'!R322)","v":""},{"$f":"IF('1. Order'!S322=\"\",\"\",'1. Order'!S322)","v":""},{"$f":"IF('1. Order'!V322=\"\",\"\",'1. Order'!V322)","v":""},{"$f":"IF('1. Order'!W322=\"\",\"\",'1. Order'!W322)","v":""},{"$f":"IF('1. Order'!X322=\"\",\"\",'1. Order'!X322)","v":"EUR"},{"$f":"IF('1. Order'!Y322=\"\",\"\",'1. Order'!Y322)","v":""},{"$f":"IF('1. Order'!Z322=\"\",\"\",'1. Order'!Z322)","v":""},{"$f":"IF('1. Order'!AA322=\"\",\"\",'1. Order'!AA322)","v":""},null,{"$f":"IF('1. Order'!AS322=\"\",\"\",'1. Order'!AS322)","v":""},{"$f":"IF('1. Order'!AT322=\"\",\"\",'1. Order'!AT322)","v":""},null,null,null,null,null,null,null,{"$f":"IF('1. Order'!AX322=\"\",\"\",'1. Order'!AX322)","v":""},{"$f":"IF('1. Order'!AY322=\"\",\"\",'1. Order'!AY322)","v":""},{"$f":"IF('1. Order'!AZ322=\"\",\"\",'1. Order'!AZ322)","v":""},{"$f":"IF('1. Order'!BA322=\"\",\"\",'1. Order'!BA322)","v":""},{"$f":"IF('1. Order'!BC322=\"\",\"\",'1. Order'!BC322)","v":""},{"$f":"IF('1. Order'!BD322=\"\",\"\",'1. Order'!BD322)","v":6},{"$f":"IF('1. Order'!BE322=\"\",\"\",'1. Order'!BE322)","v":"None"},{"$f":"IF('1. Order'!BF322=\"\",\"\",'1. Order'!BF322)","v":"Parcel"},{"$f":"IF('1. Order'!BG322=\"\",\"\",'1. Order'!BG322)","v":"ZWO"}]
[{"$f":"IF('1. Order'!F323=\"\",\"\",'1. Order'!F323)","v":""},{"$f":"IF('1. Order'!G323=\"\",\"\",'1. Order'!G323)","v":""},{"$f":"IF('1. Order'!H323=\"\",\"\",'1. Order'!H323)","v":""},{"$f":"IF('1. Order'!I323=\"\",\"\",'1. Order'!I323)","v":""},{"$f":"IF('1. Order'!J323=\"\",\"\",'1. Order'!J323)","v":""},{"$f":"IF('1. Order'!K323=\"\",\"\",'1. Order'!K323)","v":""},{"$f":"IF('1. Order'!L323=\"\",\"\",'1. Order'!L323)","v":""},{"$f":"IF('1. Order'!M323=\"\",\"\",'1. Order'!M323)","v":""},{"$f":"IF('1. Order'!N323=\"\",\"\",'1. Order'!N323)","v":""},{"$f":"IF('1. Order'!O323=\"\",\"\",'1. Order'!O323)","v":{"$error":"#N/A"}},{"$f":"IF('1. Order'!P323=\"\",\"\",'1. Order'!P323)","v":{"$error":"#N/A"}},{"$f":"IF('1. Order'!Q323=\"\",\"\",'1. Order'!Q323)","v":""},{"$f":"IF('1. Order'!R323=\"\",\"\",'1. Order'!R323)","v":""},{"$f":"IF('1. Order'!S323=\"\",\"\",'1. Order'!S323)","v":""},{"$f":"IF('1. Order'!V323=\"\",\"\",'1. Order'!V323)","v":""},{"$f":"IF('1. Order'!W323=\"\",\"\",'1. Order'!W323)","v":""},{"$f":"IF('1. Order'!X323=\"\",\"\",'1. Order'!X323)","v":"EUR"},{"$f":"IF('1. Order'!Y323=\"\",\"\",'1. Order'!Y323)","v":""},{"$f":"IF('1. Order'!Z323=\"\",\"\",'1. Order'!Z323)","v":""},{"$f":"IF('1. Order'!AA323=\"\",\"\",'1. Order'!AA323)","v":""},null,{"$f":"IF('1. Order'!AS323=\"\",\"\",'1. Order'!AS323)","v":""},{"$f":"IF('1. Order'!AT323=\"\",\"\",'1. Order'!AT323)","v":""},null,null,null,null,null,null,null,{"$f":"IF('1. Order'!AX323=\"\",\"\",'1. Order'!AX323)","v":""},{"$f":"IF('1. Order'!AY323=\"\",\"\",'1. Order'!AY323)","v":""},{"$f":"IF('1. Order'!AZ323=\"\",\"\",'1. Order'!AZ323)","v":""},{"$f":"IF('1. Order'!BA323=\"\",\"\",'1. Order'!BA323)","v":""},{"$f":"IF('1. Order'!BC323=\"\",\"\",'1. Order'!BC323)","v":""},{"$f":"IF('1. Order'!BD323=\"\",\"\",'1. Order'!BD323)","v":6},{"$f":"IF('1. Order'!BE323=\"\",\"\",'1. Order'!BE323)","v":"None"},{"$f":"IF('1. Order'!BF323=\"\",\"\",'1. Order'!BF323)","v":"Parcel"},{"$f":"IF('1. Order'!BG323=\"\",\"\",'1. Order'!BG323)","v":"ZWO"}]
[{"$f":"IF('1. Order'!F324=\"\",\"\",'1. Order'!F324)","v":""},{"$f":"IF('1. Order'!G324=\"\",\"\",'1. Order'!G324)","v":""},{"$f":"IF('1. Order'!H324=\"\",\"\",'1. Order'!H324)","v":""},{"$f":"IF('1. Order'!I324=\"\",\"\",'1. Order'!I324)","v":""},{"$f":"IF('1. Order'!J324=\"\",\"\",'1. Order'!J324)","v":""},{"$f":"IF('1. Order'!K324=\"\",\"\",'1. Order'!K324)","v":""},{"$f":"IF('1. Order'!L324=\"\",\"\",'1. Order'!L324)","v":""},{"$f":"IF('1. Order'!M324=\"\",\"\",'1. Order'!M324)","v":""},{"$f":"IF('1. Order'!N324=\"\",\"\",'1. Order'!N324)","v":""},{"$f":"IF('1. Order'!O324=\"\",\"\",'1. Order'!O324)","v":{"$error":"#N/A"}},{"$f":"IF('1. Order'!P324=\"\",\"\",'1. Order'!P324)","v":{"$error":"#N/A"}},{"$f":"IF('1. Order'!Q324=\"\",\"\",'1. Order'!Q324)","v":""},{"$f":"IF('1. Order'!R324=\"\",\"\",'1. Order'!R324)","v":""},{"$f":"IF('1. Order'!S324=\"\",\"\",'1. Order'!S324)","v":""},{"$f":"IF('1. Order'!V324=\"\",\"\",'1. Order'!V324)","v":""},{"$f":"IF('1. Order'!W324=\"\",\"\",'1. Order'!W324)","v":""},{"$f":"IF('1. Order'!X324=\"\",\"\",'1. Order'!X324)","v":"EUR"},{"$f":"IF('1. Order'!Y324=\"\",\"\",'1. Order'!Y324)","v":""},{"$f":"IF('1. Order'!Z324=\"\",\"\",'1. Order'!Z324)","v":""},{"$f":"IF('1. Order'!AA324=\"\",\"\",'1. Order'!AA324)","v":""},null,{"$f":"IF('1. Order'!AS324=\"\",\"\",'1. Order'!AS324)","v":""},{"$f":"IF('1. Order'!AT324=\"\",\"\",'1. Order'!AT324)","v":""},null,null,null,null,null,null,null,{"$f":"IF('1. Order'!AX324=\"\",\"\",'1. Order'!AX324)","v":""},{"$f":"IF('1. Order'!AY324=\"\",\"\",'1. Order'!AY324)","v":""},{"$f":"IF('1. Order'!AZ324=\"\",\"\",'1. Order'!AZ324)","v":""},{"$f":"IF('1. Order'!BA324=\"\",\"\",'1. Order'!BA324)","v":""},{"$f":"IF('1. Order'!BC324=\"\",\"\",'1. Order'!BC324)","v":""},{"$f":"IF('1. Order'!BD324=\"\",\"\",'1. Order'!BD324)","v":6},{"$f":"IF('1. Order'!BE324=\"\",\"\",'1. Order'!BE324)","v":"None"},{"$f":"IF('1. Order'!BF324=\"\",\"\",'1. Order'!BF324)","v":"Parcel"},{"$f":"IF('1. Order'!BG324=\"\",\"\",'1. Order'!BG324)","v":"ZWO"}]
[{"$f":"IF('1. Order'!F325=\"\",\"\",'1. Order'!F325)","v":""},{"$f":"IF('1. Order'!G325=\"\",\"\",'1. Order'!G325)","v":""},{"$f":"IF('1. Order'!H325=\"\",\"\",'1. Order'!H325)","v":""},{"$f":"IF('1. Order'!I325=\"\",\"\",'1. Order'!I325)","v":""},{"$f":"IF('1. Order'!J325=\"\",\"\",'1. Order'!J325)","v":""},{"$f":"IF('1. Order'!K325=\"\",\"\",'1. Order'!K325)","v":""},{"$f":"IF('1. Order'!L325=\"\",\"\",'1. Order'!L325)","v":""},{"$f":"IF('1. Order'!M325=\"\",\"\",'1. Order'!M325)","v":""},{"$f":"IF('1. Order'!N325=\"\",\"\",'1. Order'!N325)","v":""},{"$f":"IF('1. Order'!O325=\"\",\"\",'1. Order'!O325)","v":{"$error":"#N/A"}},{"$f":"IF('1. Order'!P325=\"\",\"\",'1. Order'!P325)","v":{"$error":"#N/A"}},{"$f":"IF('1. Order'!Q325=\"\",\"\",'1. Order'!Q325)","v":""},{"$f":"IF('1. Order'!R325=\"\",\"\",'1. Order'!R325)","v":""},{"$f":"IF('1. Order'!S325=\"\",\"\",'1. Order'!S325)","v":""},{"$f":"IF('1. Order'!V325=\"\",\"\",'1. Order'!V325)","v":""},{"$f":"IF('1. Order'!W325=\"\",\"\",'1. Order'!W325)","v":""},{"$f":"IF('1. Order'!X325=\"\",\"\",'1. Order'!X325)","v":"EUR"},{"$f":"IF('1. Order'!Y325=\"\",\"\",'1. Order'!Y325)","v":""},{"$f":"IF('1. Order'!Z325=\"\",\"\",'1. Order'!Z325)","v":""},{"$f":"IF('1. Order'!AA325=\"\",\"\",'1. Order'!AA325)","v":""},null,{"$f":"IF('1. Order'!AS325=\"\",\"\",'1. Order'!AS325)","v":""},{"$f":"IF('1. Order'!AT325=\"\",\"\",'1. Order'!AT325)","v":""},null,null,null,null,null,null,null,{"$f":"IF('1. Order'!AX325=\"\",\"\",'1. Order'!AX325)","v":""},{"$f":"IF('1. Order'!AY325=\"\",\"\",'1. Order'!AY325)","v":""},{"$f":"IF('1. Order'!AZ325=\"\",\"\",'1. Order'!AZ325)","v":""},{"$f":"IF('1. Order'!BA325=\"\",\"\",'1. Order'!BA325)","v":""},{"$f":"IF('1. Order'!BC325=\"\",\"\",'1. Order'!BC325)","v":""},{"$f":"IF('1. Order'!BD325=\"\",\"\",'1. Order'!BD325)","v":6},{"$f":"IF('1. Order'!BE325=\"\",\"\",'1. Order'!BE325)","v":"None"},{"$f":"IF('1. Order'!BF325=\"\",\"\",'1. Order'!BF325)","v":"Parcel"},{"$f":"IF('1. Order'!BG325=\"\",\"\",'1. Order'!BG325)","v":"ZWO"}]
[{"$f":"IF('1. Order'!F326=\"\",\"\",'1. Order'!F326)","v":""},{"$f":"IF('1. Order'!G326=\"\",\"\",'1. Order'!G326)","v":""},{"$f":"IF('1. Order'!H326=\"\",\"\",'1. Order'!H326)","v":""},{"$f":"IF('1. Order'!I326=\"\",\"\",'1. Order'!I326)","v":""},{"$f":"IF('1. Order'!J326=\"\",\"\",'1. Order'!J326)","v":""},{"$f":"IF('1. Order'!K326=\"\",\"\",'1. Order'!K326)","v":""},{"$f":"IF('1. Order'!L326=\"\",\"\",'1. Order'!L326)","v":""},{"$f":"IF('1. Order'!M326=\"\",\"\",'1. Order'!M326)","v":""},{"$f":"IF('1. Order'!N326=\"\",\"\",'1. Order'!N326)","v":""},{"$f":"IF('1. Order'!O326=\"\",\"\",'1. Order'!O326)","v":{"$error":"#N/A"}},{"$f":"IF('1. Order'!P326=\"\",\"\",'1. Order'!P326)","v":{"$error":"#N/A"}},{"$f":"IF('1. Order'!Q326=\"\",\"\",'1. Order'!Q326)","v":""},{"$f":"IF('1. Order'!R326=\"\",\"\",'1. Order'!R326)","v":""},{"$f":"IF('1. Order'!S326=\"\",\"\",'1. Order'!S326)","v":""},{"$f":"IF('1. Order'!V326=\"\",\"\",'1. Order'!V326)","v":""},{"$f":"IF('1. Order'!W326=\"\",\"\",'1. Order'!W326)","v":""},{"$f":"IF('1. Order'!X326=\"\",\"\",'1. Order'!X326)","v":"EUR"},{"$f":"IF('1. Order'!Y326=\"\",\"\",'1. Order'!Y326)","v":""},{"$f":"IF('1. Order'!Z326=\"\",\"\",'1. Order'!Z326)","v":""},{"$f":"IF('1. Order'!AA326=\"\",\"\",'1. Order'!AA326)","v":""},null,{"$f":"IF('1. Order'!AS326=\"\",\"\",'1. Order'!AS326)","v":""},{"$f":"IF('1. Order'!AT326=\"\",\"\",'1. Order'!AT326)","v":""},null,null,null,null,null,null,null,{"$f":"IF('1. Order'!AX326=\"\",\"\",'1. Order'!AX326)","v":""},{"$f":"IF('1. Order'!AY326=\"\",\"\",'1. Order'!AY326)","v":""},{"$f":"IF('1. Order'!AZ326=\"\",\"\",'1. Order'!AZ326)","v":""},{"$f":"IF('1. Order'!BA326=\"\",\"\",'1. Order'!BA326)","v":""},{"$f":"IF('1. Order'!BC326=\"\",\"\",'1. Order'!BC326)","v":""},{"$f":"IF('1. Order'!BD326=\"\",\"\",'1. Order'!BD326)","v":6},{"$f":"IF('1. Order'!BE326=\"\",\"\",'1. Order'!BE326)","v":"None"},{"$f":"IF('1. Order'!BF326=\"\",\"\",'1. Order'!BF326)","v":"Parcel"},{"$f":"IF('1. Order'!BG326=\"\",\"\",'1. Order'!BG326)","v":"ZWO"}]
[{"$f":"IF('1. Order'!F327=\"\",\"\",'1. Order'!F327)","v":""},{"$f":"IF('1. Order'!G327=\"\",\"\",'1. Order'!G327)","v":""},{"$f":"IF('1. Order'!H327=\"\",\"\",'1. Order'!H327)","v":""},{"$f":"IF('1. Order'!I327=\"\",\"\",'1. Order'!I327)","v":""},{"$f":"IF('1. Order'!J327=\"\",\"\",'1. Order'!J327)","v":""},{"$f":"IF('1. Order'!K327=\"\",\"\",'1. Order'!K327)","v":""},{"$f":"IF('1. Order'!L327=\"\",\"\",'1. Order'!L327)","v":""},{"$f":"IF('1. Order'!M327=\"\",\"\",'1. Order'!M327)","v":""},{"$f":"IF('1. Order'!N327=\"\",\"\",'1. Order'!N327)","v":""},{"$f":"IF('1. Order'!O327=\"\",\"\",'1. Order'!O327)","v":{"$error":"#N/A"}},{"$f":"IF('1. Order'!P327=\"\",\"\",'1. Order'!P327)","v":{"$error":"#N/A"}},{"$f":"IF('1. Order'!Q327=\"\",\"\",'1. Order'!Q327)","v":""},{"$f":"IF('1. Order'!R327=\"\",\"\",'1. Order'!R327)","v":""},{"$f":"IF('1. Order'!S327=\"\",\"\",'1. Order'!S327)","v":""},{"$f":"IF('1. Order'!V327=\"\",\"\",'1. Order'!V327)","v":""},{"$f":"IF('1. Order'!W327=\"\",\"\",'1. Order'!W327)","v":""},{"$f":"IF('1. Order'!X327=\"\",\"\",'1. Order'!X327)","v":"EUR"},{"$f":"IF('1. Order'!Y327=\"\",\"\",'1. Order'!Y327)","v":""},{"$f":"IF('1. Order'!Z327=\"\",\"\",'1. Order'!Z327)","v":""},{"$f":"IF('1. Order'!AA327=\"\",\"\",'1. Order'!AA327)","v":""},null,{"$f":"IF('1. Order'!AS327=\"\",\"\",'1. Order'!AS327)","v":""},{"$f":"IF('1. Order'!AT327=\"\",\"\",'1. Order'!AT327)","v":""},null,null,null,null,null,null,null,{"$f":"IF('1. Order'!AX327=\"\",\"\",'1. Order'!AX327)","v":""},{"$f":"IF('1. Order'!AY327=\"\",\"\",'1. Order'!AY327)","v":""},{"$f":"IF('1. Order'!AZ327=\"\",\"\",'1. Order'!AZ327)","v":""},{"$f":"IF('1. Order'!BA327=\"\",\"\",'1. Order'!BA327)","v":""},{"$f":"IF('1. Order'!BC327=\"\",\"\",'1. Order'!BC327)","v":""},{"$f":"IF('1. Order'!BD327=\"\",\"\",'1. Order'!BD327)","v":6},{"$f":"IF('1. Order'!BE327=\"\",\"\",'1. Order'!BE327)","v":"None"},{"$f":"IF('1. Order'!BF327=\"\",\"\",'1. Order'!BF327)","v":"Parcel"},{"$f":"IF('1. Order'!BG327=\"\",\"\",'1. Order'!BG327)","v":"ZWO"}]
[{"$f":"IF('1. Order'!F328=\"\",\"\",'1. Order'!F328)","v":""},{"$f":"IF('1. Order'!G328=\"\",\"\",'1. Order'!G328)","v":""},{"$f":"IF('1. Order'!H328=\"\",\"\",'1. Order'!H328)","v":""},{"$f":"IF('1. Order'!I328=\"\",\"\",'1. Order'!I328)","v":""},{"$f":"IF('1. Order'!J328=\"\",\"\",'1. Order'!J328)","v":""},{"$f":"IF('1. Order'!K328=\"\",\"\",'1. Order'!K328)","v":""},{"$f":"IF('1. Order'!L328=\"\",\"\",'1. Order'!L328)","v":""},{"$f":"IF('1. Order'!M328=\"\",\"\",'1. Order'!M328)","v":""},{"$f":"IF('1. Order'!N328=\"\",\"\",'1. Order'!N328)","v":""},{"$f":"IF('1. Order'!O328=\"\",\"\",'1. Order'!O328)","v":{"$error":"#N/A"}},{"$f":"IF('1. Order'!P328=\"\",\"\",'1. Order'!P328)","v":{"$error":"#N/A"}},{"$f":"IF('1. Order'!Q328=\"\",\"\",'1. Order'!Q328)","v":""},{"$f":"IF('1. Order'!R328=\"\",\"\",'1. Order'!R328)","v":""},{"$f":"IF('1. Order'!S328=\"\",\"\",'1. Order'!S328)","v":""},{"$f":"IF('1. Order'!V328=\"\",\"\",'1. Order'!V328)","v":""},{"$f":"IF('1. Order'!W328=\"\",\"\",'1. Order'!W328)","v":""},{"$f":"IF('1. Order'!X328=\"\",\"\",'1. Order'!X328)","v":"EUR"},{"$f":"IF('1. Order'!Y328=\"\",\"\",'1. Order'!Y328)","v":""},{"$f":"IF('1. Order'!Z328=\"\",\"\",'1. Order'!Z328)","v":""},{"$f":"IF('1. Order'!AA328=\"\",\"\",'1. Order'!AA328)","v":""},null,{"$f":"IF('1. Order'!AS328=\"\",\"\",'1. Order'!AS328)","v":""},{"$f":"IF('1. Order'!AT328=\"\",\"\",'1. Order'!AT328)","v":""},null,null,null,null,null,null,null,{"$f":"IF('1. Order'!AX328=\"\",\"\",'1. Order'!AX328)","v":""},{"$f":"IF('1. Order'!AY328=\"\",\"\",'1. Order'!AY328)","v":""},{"$f":"IF('1. Order'!AZ328=\"\",\"\",'1. Order'!AZ328)","v":""},{"$f":"IF('1. Order'!BA328=\"\",\"\",'1. Order'!BA328)","v":""},{"$f":"IF('1. Order'!BC328=\"\",\"\",'1. Order'!BC328)","v":""},{"$f":"IF('1. Order'!BD328=\"\",\"\",'1. Order'!BD328)","v":6},{"$f":"IF('1. Order'!BE328=\"\",\"\",'1. Order'!BE328)","v":"None"},{"$f":"IF('1. Order'!BF328=\"\",\"\",'1. Order'!BF328)","v":"Parcel"},{"$f":"IF('1. Order'!BG328=\"\",\"\",'1. Order'!BG328)","v":"ZWO"}]
[{"$f":"IF('1. Order'!F329=\"\",\"\",'1. Order'!F329)","v":""},{"$f":"IF('1. Order'!G329=\"\",\"\",'1. Order'!G329)","v":""},{"$f":"IF('1. Order'!H329=\"\",\"\",'1. Order'!H329)","v":""},{"$f":"IF('1. Order'!I329=\"\",\"\",'1. Order'!I329)","v":""},{"$f":"IF('1. Order'!J329=\"\",\"\",'1. Order'!J329)","v":""},{"$f":"IF('1. Order'!K329=\"\",\"\",'1. Order'!K329)","v":""},{"$f":"IF('1. Order'!L329=\"\",\"\",'1. Order'!L329)","v":""},{"$f":"IF('1. Order'!M329=\"\",\"\",'1. Order'!M329)","v":""},{"$f":"IF('1. Order'!N329=\"\",\"\",'1. Order'!N329)","v":""},{"$f":"IF('1. Order'!O329=\"\",\"\",'1. Order'!O329)","v":{"$error":"#N/A"}},{"$f":"IF('1. Order'!P329=\"\",\"\",'1. Order'!P329)","v":{"$error":"#N/A"}},{"$f":"IF('1. Order'!Q329=\"\",\"\",'1. Order'!Q329)","v":""},{"$f":"IF('1. Order'!R329=\"\",\"\",'1. Order'!R329)","v":""},{"$f":"IF('1. Order'!S329=\"\",\"\",'1. Order'!S329)","v":""},{"$f":"IF('1. Order'!V329=\"\",\"\",'1. Order'!V329)","v":""},{"$f":"IF('1. Order'!W329=\"\",\"\",'1. Order'!W329)","v":""},{"$f":"IF('1. Order'!X329=\"\",\"\",'1. Order'!X329)","v":"EUR"},{"$f":"IF('1. Order'!Y329=\"\",\"\",'1. Order'!Y329)","v":""},{"$f":"IF('1. Order'!Z329=\"\",\"\",'1. Order'!Z329)","v":""},{"$f":"IF('1. Order'!AA329=\"\",\"\",'1. Order'!AA329)","v":""},null,{"$f":"IF('1. Order'!AS329=\"\",\"\",'1. Order'!AS329)","v":""},{"$f":"IF('1. Order'!AT329=\"\",\"\",'1. Order'!AT329)","v":""},null,null,null,null,null,null,null,{"$f":"IF('1. Order'!AX329=\"\",\"\",'1. Order'!AX329)","v":""},{"$f":"IF('1. Order'!AY329=\"\",\"\",'1. Order'!AY329)","v":""},{"$f":"IF('1. Order'!AZ329=\"\",\"\",'1. Order'!AZ329)","v":""},{"$f":"IF('1. Order'!BA329=\"\",\"\",'1. Order'!BA329)","v":""},{"$f":"IF('1. Order'!BC329=\"\",\"\",'1. Order'!BC329)","v":""},{"$f":"IF('1. Order'!BD329=\"\",\"\",'1. Order'!BD329)","v":6},{"$f":"IF('1. Order'!BE329=\"\",\"\",'1. Order'!BE329)","v":"None"},{"$f":"IF('1. Order'!BF329=\"\",\"\",'1. Order'!BF329)","v":"Parcel"},{"$f":"IF('1. Order'!BG329=\"\",\"\",'1. Order'!BG329)","v":"ZWO"}]
[{"$f":"IF('1. Order'!F330=\"\",\"\",'1. Order'!F330)","v":""},{"$f":"IF('1. Order'!G330=\"\",\"\",'1. Order'!G330)","v":""},{"$f":"IF('1. Order'!H330=\"\",\"\",'1. Order'!H330)","v":""},{"$f":"IF('1. Order'!I330=\"\",\"\",'1. Order'!I330)","v":""},{"$f":"IF('1. Order'!J330=\"\",\"\",'1. Order'!J330)","v":""},{"$f":"IF('1. Order'!K330=\"\",\"\",'1. Order'!K330)","v":""},{"$f":"IF('1. Order'!L330=\"\",\"\",'1. Order'!L330)","v":""},{"$f":"IF('1. Order'!M330=\"\",\"\",'1. Order'!M330)","v":""},{"$f":"IF('1. Order'!N330=\"\",\"\",'1. Order'!N330)","v":""},{"$f":"IF('1. Order'!O330=\"\",\"\",'1. Order'!O330)","v":{"$error":"#N/A"}},{"$f":"IF('1. Order'!P330=\"\",\"\",'1. Order'!P330)","v":{"$error":"#N/A"}},{"$f":"IF('1. Order'!Q330=\"\",\"\",'1. Order'!Q330)","v":""},{"$f":"IF('1. Order'!R330=\"\",\"\",'1. Order'!R330)","v":""},{"$f":"IF('1. Order'!S330=\"\",\"\",'1. Order'!S330)","v":""},{"$f":"IF('1. Order'!V330=\"\",\"\",'1. Order'!V330)","v":""},{"$f":"IF('1. Order'!W330=\"\",\"\",'1. Order'!W330)","v":""},{"$f":"IF('1. Order'!X330=\"\",\"\",'1. Order'!X330)","v":"EUR"},{"$f":"IF('1. Order'!Y330=\"\",\"\",'1. Order'!Y330)","v":""},{"$f":"IF('1. Order'!Z330=\"\",\"\",'1. Order'!Z330)","v":""},{"$f":"IF('1. Order'!AA330=\"\",\"\",'1. Order'!AA330)","v":""},null,{"$f":"IF('1. Order'!AS330=\"\",\"\",'1. Order'!AS330)","v":""},{"$f":"IF('1. Order'!AT330=\"\",\"\",'1. Order'!AT330)","v":""},null,null,null,null,null,null,null,{"$f":"IF('1. Order'!AX330=\"\",\"\",'1. Order'!AX330)","v":""},{"$f":"IF('1. Order'!AY330=\"\",\"\",'1. Order'!AY330)","v":""},{"$f":"IF('1. Order'!AZ330=\"\",\"\",'1. Order'!AZ330)","v":""},{"$f":"IF('1. Order'!BA330=\"\",\"\",'1. Order'!BA330)","v":""},{"$f":"IF('1. Order'!BC330=\"\",\"\",'1. Order'!BC330)","v":""},{"$f":"IF('1. Order'!BD330=\"\",\"\",'1. Order'!BD330)","v":6},{"$f":"IF('1. Order'!BE330=\"\",\"\",'1. Order'!BE330)","v":"None"},{"$f":"IF('1. Order'!BF330=\"\",\"\",'1. Order'!BF330)","v":"Parcel"},{"$f":"IF('1. Order'!BG330=\"\",\"\",'1. Order'!BG330)","v":"ZWO"}]
[{"$f":"IF('1. Order'!F331=\"\",\"\",'1. Order'!F331)","v":""},{"$f":"IF('1. Order'!G331=\"\",\"\",'1. Order'!G331)","v":""},{"$f":"IF('1. Order'!H331=\"\",\"\",'1. Order'!H331)","v":""},{"$f":"IF('1. Order'!I331=\"\",\"\",'1. Order'!I331)","v":""},{"$f":"IF('1. Order'!J331=\"\",\"\",'1. Order'!J331)","v":""},{"$f":"IF('1. Order'!K331=\"\",\"\",'1. Order'!K331)","v":""},{"$f":"IF('1. Order'!L331=\"\",\"\",'1. Order'!L331)","v":""},{"$f":"IF('1. Order'!M331=\"\",\"\",'1. Order'!M331)","v":""},{"$f":"IF('1. Order'!N331=\"\",\"\",'1. Order'!N331)","v":""},{"$f":"IF('1. Order'!O331=\"\",\"\",'1. Order'!O331)","v":{"$error":"#N/A"}},{"$f":"IF('1. Order'!P331=\"\",\"\",'1. Order'!P331)","v":{"$error":"#N/A"}},{"$f":"IF('1. Order'!Q331=\"\",\"\",'1. Order'!Q331)","v":""},{"$f":"IF('1. Order'!R331=\"\",\"\",'1. Order'!R331)","v":""},{"$f":"IF('1. Order'!S331=\"\",\"\",'1. Order'!S331)","v":""},{"$f":"IF('1. Order'!V331=\"\",\"\",'1. Order'!V331)","v":""},{"$f":"IF('1. Order'!W331=\"\",\"\",'1. Order'!W331)","v":""},{"$f":"IF('1. Order'!X331=\"\",\"\",'1. Order'!X331)","v":"EUR"},{"$f":"IF('1. Order'!Y331=\"\",\"\",'1. Order'!Y331)","v":""},{"$f":"IF('1. Order'!Z331=\"\",\"\",'1. Order'!Z331)","v":""},{"$f":"IF('1. Order'!AA331=\"\",\"\",'1. Order'!AA331)","v":""},null,{"$f":"IF('1. Order'!AS331=\"\",\"\",'1. Order'!AS331)","v":""},{"$f":"IF('1. Order'!AT331=\"\",\"\",'1. Order'!AT331)","v":""},null,null,null,null,null,null,null,{"$f":"IF('1. Order'!AX331=\"\",\"\",'1. Order'!AX331)","v":""},{"$f":"IF('1. Order'!AY331=\"\",\"\",'1. Order'!AY331)","v":""},{"$f":"IF('1. Order'!AZ331=\"\",\"\",'1. Order'!AZ331)","v":""},{"$f":"IF('1. Order'!BA331=\"\",\"\",'1. Order'!BA331)","v":""},{"$f":"IF('1. Order'!BC331=\"\",\"\",'1. Order'!BC331)","v":""},{"$f":"IF('1. Order'!BD331=\"\",\"\",'1. Order'!BD331)","v":6},{"$f":"IF('1. Order'!BE331=\"\",\"\",'1. Order'!BE331)","v":"None"},{"$f":"IF('1. Order'!BF331=\"\",\"\",'1. Order'!BF331)","v":"Parcel"},{"$f":"IF('1. Order'!BG331=\"\",\"\",'1. Order'!BG331)","v":"ZWO"}]
[{"$f":"IF('1. Order'!F332=\"\",\"\",'1. Order'!F332)","v":""},{"$f":"IF('1. Order'!G332=\"\",\"\",'1. Order'!G332)","v":""},{"$f":"IF('1. Order'!H332=\"\",\"\",'1. Order'!H332)","v":""},{"$f":"IF('1. Order'!I332=\"\",\"\",'1. Order'!I332)","v":""},{"$f":"IF('1. Order'!J332=\"\",\"\",'1. Order'!J332)","v":""},{"$f":"IF('1. Order'!K332=\"\",\"\",'1. Order'!K332)","v":""},{"$f":"IF('1. Order'!L332=\"\",\"\",'1. Order'!L332)","v":""},{"$f":"IF('1. Order'!M332=\"\",\"\",'1. Order'!M332)","v":""},{"$f":"IF('1. Order'!N332=\"\",\"\",'1. Order'!N332)","v":""},{"$f":"IF('1. Order'!O332=\"\",\"\",'1. Order'!O332)","v":{"$error":"#N/A"}},{"$f":"IF('1. Order'!P332=\"\",\"\",'1. Order'!P332)","v":{"$error":"#N/A"}},{"$f":"IF('1. Order'!Q332=\"\",\"\",'1. Order'!Q332)","v":""},{"$f":"IF('1. Order'!R332=\"\",\"\",'1. Order'!R332)","v":""},{"$f":"IF('1. Order'!S332=\"\",\"\",'1. Order'!S332)","v":""},{"$f":"IF('1. Order'!V332=\"\",\"\",'1. Order'!V332)","v":""},{"$f":"IF('1. Order'!W332=\"\",\"\",'1. Order'!W332)","v":""},{"$f":"IF('1. Order'!X332=\"\",\"\",'1. Order'!X332)","v":"EUR"},{"$f":"IF('1. Order'!Y332=\"\",\"\",'1. Order'!Y332)","v":""},{"$f":"IF('1. Order'!Z332=\"\",\"\",'1. Order'!Z332)","v":""},{"$f":"IF('1. Order'!AA332=\"\",\"\",'1. Order'!AA332)","v":""},null,{"$f":"IF('1. Order'!AS332=\"\",\"\",'1. Order'!AS332)","v":""},{"$f":"IF('1. Order'!AT332=\"\",\"\",'1. Order'!AT332)","v":""},null,null,null,null,null,null,null,{"$f":"IF('1. Order'!AX332=\"\",\"\",'1. Order'!AX332)","v":""},{"$f":"IF('1. Order'!AY332=\"\",\"\",'1. Order'!AY332)","v":""},{"$f":"IF('1. Order'!AZ332=\"\",\"\",'1. Order'!AZ332)","v":""},{"$f":"IF('1. Order'!BA332=\"\",\"\",'1. Order'!BA332)","v":""},{"$f":"IF('1. Order'!BC332=\"\",\"\",'1. Order'!BC332)","v":""},{"$f":"IF('1. Order'!BD332=\"\",\"\",'1. Order'!BD332)","v":6},{"$f":"IF('1. Order'!BE332=\"\",\"\",'1. Order'!BE332)","v":"None"},{"$f":"IF('1. Order'!BF332=\"\",\"\",'1. Order'!BF332)","v":"Parcel"},{"$f":"IF('1. Order'!BG332=\"\",\"\",'1. Order'!BG332)","v":"ZWO"}]
[{"$f":"IF('1. Order'!F333=\"\",\"\",'1. Order'!F333)","v":""},{"$f":"IF('1. Order'!G333=\"\",\"\",'1. Order'!G333)","v":""},{"$f":"IF('1. Order'!H333=\"\",\"\",'1. Order'!H333)","v":""},{"$f":"IF('1. Order'!I333=\"\",\"\",'1. Order'!I333)","v":""},{"$f":"IF('1. Order'!J333=\"\",\"\",'1. Order'!J333)","v":""},{"$f":"IF('1. Order'!K333=\"\",\"\",'1. Order'!K333)","v":""},{"$f":"IF('1. Order'!L333=\"\",\"\",'1. Order'!L333)","v":""},{"$f":"IF('1. Order'!M333=\"\",\"\",'1. Order'!M333)","v":""},{"$f":"IF('1. Order'!N333=\"\",\"\",'1. Order'!N333)","v":""},{"$f":"IF('1. Order'!O333=\"\",\"\",'1. Order'!O333)","v":{"$error":"#N/A"}},{"$f":"IF('1. Order'!P333=\"\",\"\",'1. Order'!P333)","v":{"$error":"#N/A"}},{"$f":"IF('1. Order'!Q333=\"\",\"\",'1. Order'!Q333)","v":""},{"$f":"IF('1. Order'!R333=\"\",\"\",'1. Order'!R333)","v":""},{"$f":"IF('1. Order'!S333=\"\",\"\",'1. Order'!S333)","v":""},{"$f":"IF('1. Order'!V333=\"\",\"\",'1. Order'!V333)","v":""},{"$f":"IF('1. Order'!W333=\"\",\"\",'1. Order'!W333)","v":""},{"$f":"IF('1. Order'!X333=\"\",\"\",'1. Order'!X333)","v":"EUR"},{"$f":"IF('1. Order'!Y333=\"\",\"\",'1. Order'!Y333)","v":""},{"$f":"IF('1. Order'!Z333=\"\",\"\",'1. Order'!Z333)","v":""},{"$f":"IF('1. Order'!AA333=\"\",\"\",'1. Order'!AA333)","v":""},null,{"$f":"IF('1. Order'!AS333=\"\",\"\",'1. Order'!AS333)","v":""},{"$f":"IF('1. Order'!AT333=\"\",\"\",'1. Order'!AT333)","v":""},null,null,null,null,null,null,null,{"$f":"IF('1. Order'!AX333=\"\",\"\",'1. Order'!AX333)","v":""},{"$f":"IF('1. Order'!AY333=\"\",\"\",'1. Order'!AY333)","v":""},{"$f":"IF('1. Order'!AZ333=\"\",\"\",'1. Order'!AZ333)","v":""},{"$f":"IF('1. Order'!BA333=\"\",\"\",'1. Order'!BA333)","v":""},{"$f":"IF('1. Order'!BC333=\"\",\"\",'1. Order'!BC333)","v":""},{"$f":"IF('1. Order'!BD333=\"\",\"\",'1. Order'!BD333)","v":6},{"$f":"IF('1. Order'!BE333=\"\",\"\",'1. Order'!BE333)","v":"None"},{"$f":"IF('1. Order'!BF333=\"\",\"\",'1. Order'!BF333)","v":"Parcel"},{"$f":"IF('1. Order'!BG333=\"\",\"\",'1. Order'!BG333)","v":"ZWO"}]
[{"$f":"IF('1. Order'!F334=\"\",\"\",'1. Order'!F334)","v":""},{"$f":"IF('1. Order'!G334=\"\",\"\",'1. Order'!G334)","v":""},{"$f":"IF('1. Order'!H334=\"\",\"\",'1. Order'!H334)","v":""},{"$f":"IF('1. Order'!I334=\"\",\"\",'1. Order'!I334)","v":""},{"$f":"IF('1. Order'!J334=\"\",\"\",'1. Order'!J334)","v":""},{"$f":"IF('1. Order'!K334=\"\",\"\",'1. Order'!K334)","v":""},{"$f":"IF('1. Order'!L334=\"\",\"\",'1. Order'!L334)","v":""},{"$f":"IF('1. Order'!M334=\"\",\"\",'1. Order'!M334)","v":""},{"$f":"IF('1. Order'!N334=\"\",\"\",'1. Order'!N334)","v":""},{"$f":"IF('1. Order'!O334=\"\",\"\",'1. Order'!O334)","v":{"$error":"#N/A"}},{"$f":"IF('1. Order'!P334=\"\",\"\",'1. Order'!P334)","v":{"$error":"#N/A"}},{"$f":"IF('1. Order'!Q334=\"\",\"\",'1. Order'!Q334)","v":""},{"$f":"IF('1. Order'!R334=\"\",\"\",'1. Order'!R334)","v":""},{"$f":"IF('1. Order'!S334=\"\",\"\",'1. Order'!S334)","v":""},{"$f":"IF('1. Order'!V334=\"\",\"\",'1. Order'!V334)","v":""},{"$f":"IF('1. Order'!W334=\"\",\"\",'1. Order'!W334)","v":""},{"$f":"IF('1. Order'!X334=\"\",\"\",'1. Order'!X334)","v":"EUR"},{"$f":"IF('1. Order'!Y334=\"\",\"\",'1. Order'!Y334)","v":""},{"$f":"IF('1. Order'!Z334=\"\",\"\",'1. Order'!Z334)","v":""},{"$f":"IF('1. Order'!AA334=\"\",\"\",'1. Order'!AA334)","v":""},null,{"$f":"IF('1. Order'!AS334=\"\",\"\",'1. Order'!AS334)","v":""},{"$f":"IF('1. Order'!AT334=\"\",\"\",'1. Order'!AT334)","v":""},null,null,null,null,null,null,null,{"$f":"IF('1. Order'!AX334=\"\",\"\",'1. Order'!AX334)","v":""},{"$f":"IF('1. Order'!AY334=\"\",\"\",'1. Order'!AY334)","v":""},{"$f":"IF('1. Order'!AZ334=\"\",\"\",'1. Order'!AZ334)","v":""},{"$f":"IF('1. Order'!BA334=\"\",\"\",'1. Order'!BA334)","v":""},{"$f":"IF('1. Order'!BC334=\"\",\"\",'1. Order'!BC334)","v":""},{"$f":"IF('1. Order'!BD334=\"\",\"\",'1. Order'!BD334)","v":6},{"$f":"IF('1. Order'!BE334=\"\",\"\",'1. Order'!BE334)","v":"None"},{"$f":"IF('1. Order'!BF334=\"\",\"\",'1. Order'!BF334)","v":"Parcel"},{"$f":"IF('1. Order'!BG334=\"\",\"\",'1. Order'!BG334)","v":"ZWO"}]
[{"$f":"IF('1. Order'!F335=\"\",\"\",'1. Order'!F335)","v":""},{"$f":"IF('1. Order'!G335=\"\",\"\",'1. Order'!G335)","v":""},{"$f":"IF('1. Order'!H335=\"\",\"\",'1. Order'!H335)","v":""},{"$f":"IF('1. Order'!I335=\"\",\"\",'1. Order'!I335)","v":""},{"$f":"IF('1. Order'!J335=\"\",\"\",'1. Order'!J335)","v":""},{"$f":"IF('1. Order'!K335=\"\",\"\",'1. Order'!K335)","v":""},{"$f":"IF('1. Order'!L335=\"\",\"\",'1. Order'!L335)","v":""},{"$f":"IF('1. Order'!M335=\"\",\"\",'1. Order'!M335)","v":""},{"$f":"IF('1. Order'!N335=\"\",\"\",'1. Order'!N335)","v":""},{"$f":"IF('1. Order'!O335=\"\",\"\",'1. Order'!O335)","v":{"$error":"#N/A"}},{"$f":"IF('1. Order'!P335=\"\",\"\",'1. Order'!P335)","v":{"$error":"#N/A"}},{"$f":"IF('1. Order'!Q335=\"\",\"\",'1. Order'!Q335)","v":""},{"$f":"IF('1. Order'!R335=\"\",\"\",'1. Order'!R335)","v":""},{"$f":"IF('1. Order'!S335=\"\",\"\",'1. Order'!S335)","v":""},{"$f":"IF('1. Order'!V335=\"\",\"\",'1. Order'!V335)","v":""},{"$f":"IF('1. Order'!W335=\"\",\"\",'1. Order'!W335)","v":""},{"$f":"IF('1. Order'!X335=\"\",\"\",'1. Order'!X335)","v":"EUR"},{"$f":"IF('1. Order'!Y335=\"\",\"\",'1. Order'!Y335)","v":""},{"$f":"IF('1. Order'!Z335=\"\",\"\",'1. Order'!Z335)","v":""},{"$f":"IF('1. Order'!AA335=\"\",\"\",'1. Order'!AA335)","v":""},null,{"$f":"IF('1. Order'!AS335=\"\",\"\",'1. Order'!AS335)","v":""},{"$f":"IF('1. Order'!AT335=\"\",\"\",'1. Order'!AT335)","v":""},null,null,null,null,null,null,null,{"$f":"IF('1. Order'!AX335=\"\",\"\",'1. Order'!AX335)","v":""},{"$f":"IF('1. Order'!AY335=\"\",\"\",'1. Order'!AY335)","v":""},{"$f":"IF('1. Order'!AZ335=\"\",\"\",'1. Order'!AZ335)","v":""},{"$f":"IF('1. Order'!BA335=\"\",\"\",'1. Order'!BA335)","v":""},{"$f":"IF('1. Order'!BC335=\"\",\"\",'1. Order'!BC335)","v":""},{"$f":"IF('1. Order'!BD335=\"\",\"\",'1. Order'!BD335)","v":6},{"$f":"IF('1. Order'!BE335=\"\",\"\",'1. Order'!BE335)","v":"None"},{"$f":"IF('1. Order'!BF335=\"\",\"\",'1. Order'!BF335)","v":"Parcel"},{"$f":"IF('1. Order'!BG335=\"\",\"\",'1. Order'!BG335)","v":"ZWO"}]
[{"$f":"IF('1. Order'!F336=\"\",\"\",'1. Order'!F336)","v":""},{"$f":"IF('1. Order'!G336=\"\",\"\",'1. Order'!G336)","v":""},{"$f":"IF('1. Order'!H336=\"\",\"\",'1. Order'!H336)","v":""},{"$f":"IF('1. Order'!I336=\"\",\"\",'1. Order'!I336)","v":""},{"$f":"IF('1. Order'!J336=\"\",\"\",'1. Order'!J336)","v":""},{"$f":"IF('1. Order'!K336=\"\",\"\",'1. Order'!K336)","v":""},{"$f":"IF('1. Order'!L336=\"\",\"\",'1. Order'!L336)","v":""},{"$f":"IF('1. Order'!M336=\"\",\"\",'1. Order'!M336)","v":""},{"$f":"IF('1. Order'!N336=\"\",\"\",'1. Order'!N336)","v":""},{"$f":"IF('1. Order'!O336=\"\",\"\",'1. Order'!O336)","v":{"$error":"#N/A"}},{"$f":"IF('1. Order'!P336=\"\",\"\",'1. Order'!P336)","v":{"$error":"#N/A"}},{"$f":"IF('1. Order'!Q336=\"\",\"\",'1. Order'!Q336)","v":""},{"$f":"IF('1. Order'!R336=\"\",\"\",'1. Order'!R336)","v":""},{"$f":"IF('1. Order'!S336=\"\",\"\",'1. Order'!S336)","v":""},{"$f":"IF('1. Order'!V336=\"\",\"\",'1. Order'!V336)","v":""},{"$f":"IF('1. Order'!W336=\"\",\"\",'1. Order'!W336)","v":""},{"$f":"IF('1. Order'!X336=\"\",\"\",'1. Order'!X336)","v":"EUR"},{"$f":"IF('1. Order'!Y336=\"\",\"\",'1. Order'!Y336)","v":""},{"$f":"IF('1. Order'!Z336=\"\",\"\",'1. Order'!Z336)","v":""},{"$f":"IF('1. Order'!AA336=\"\",\"\",'1. Order'!AA336)","v":""},null,{"$f":"IF('1. Order'!AS336=\"\",\"\",'1. Order'!AS336)","v":""},{"$f":"IF('1. Order'!AT336=\"\",\"\",'1. Order'!AT336)","v":""},null,null,null,null,null,null,null,{"$f":"IF('1. Order'!AX336=\"\",\"\",'1. Order'!AX336)","v":""},{"$f":"IF('1. Order'!AY336=\"\",\"\",'1. Order'!AY336)","v":""},{"$f":"IF('1. Order'!AZ336=\"\",\"\",'1. Order'!AZ336)","v":""},{"$f":"IF('1. Order'!BA336=\"\",\"\",'1. Order'!BA336)","v":""},{"$f":"IF('1. Order'!BC336=\"\",\"\",'1. Order'!BC336)","v":""},{"$f":"IF('1. Order'!BD336=\"\",\"\",'1. Order'!BD336)","v":6},{"$f":"IF('1. Order'!BE336=\"\",\"\",'1. Order'!BE336)","v":"None"},{"$f":"IF('1. Order'!BF336=\"\",\"\",'1. Order'!BF336)","v":"Parcel"},{"$f":"IF('1. Order'!BG336=\"\",\"\",'1. Order'!BG336)","v":"ZWO"}]
[{"$f":"IF('1. Order'!F337=\"\",\"\",'1. Order'!F337)","v":""},{"$f":"IF('1. Order'!G337=\"\",\"\",'1. Order'!G337)","v":""},{"$f":"IF('1. Order'!H337=\"\",\"\",'1. Order'!H337)","v":""},{"$f":"IF('1. Order'!I337=\"\",\"\",'1. Order'!I337)","v":""},{"$f":"IF('1. Order'!J337=\"\",\"\",'1. Order'!J337)","v":""},{"$f":"IF('1. Order'!K337=\"\",\"\",'1. Order'!K337)","v":""},{"$f":"IF('1. Order'!L337=\"\",\"\",'1. Order'!L337)","v":""},{"$f":"IF('1. Order'!M337=\"\",\"\",'1. Order'!M337)","v":""},{"$f":"IF('1. Order'!N337=\"\",\"\",'1. Order'!N337)","v":""},{"$f":"IF('1. Order'!O337=\"\",\"\",'1. Order'!O337)","v":{"$error":"#N/A"}},{"$f":"IF('1. Order'!P337=\"\",\"\",'1. Order'!P337)","v":{"$error":"#N/A"}},{"$f":"IF('1. Order'!Q337=\"\",\"\",'1. Order'!Q337)","v":""},{"$f":"IF('1. Order'!R337=\"\",\"\",'1. Order'!R337)","v":""},{"$f":"IF('1. Order'!S337=\"\",\"\",'1. Order'!S337)","v":""},{"$f":"IF('1. Order'!V337=\"\",\"\",'1. Order'!V337)","v":""},{"$f":"IF('1. Order'!W337=\"\",\"\",'1. Order'!W337)","v":""},{"$f":"IF('1. Order'!X337=\"\",\"\",'1. Order'!X337)","v":"EUR"},{"$f":"IF('1. Order'!Y337=\"\",\"\",'1. Order'!Y337)","v":""},{"$f":"IF('1. Order'!Z337=\"\",\"\",'1. Order'!Z337)","v":""},{"$f":"IF('1. Order'!AA337=\"\",\"\",'1. Order'!AA337)","v":""},null,{"$f":"IF('1. Order'!AS337=\"\",\"\",'1. Order'!AS337)","v":""},{"$f":"IF('1. Order'!AT337=\"\",\"\",'1. Order'!AT337)","v":""},null,null,null,null,null,null,null,{"$f":"IF('1. Order'!AX337=\"\",\"\",'1. Order'!AX337)","v":""},{"$f":"IF('1. Order'!AY337=\"\",\"\",'1. Order'!AY337)","v":""},{"$f":"IF('1. Order'!AZ337=\"\",\"\",'1. Order'!AZ337)","v":""},{"$f":"IF('1. Order'!BA337=\"\",\"\",'1. Order'!BA337)","v":""},{"$f":"IF('1. Order'!BC337=\"\",\"\",'1. Order'!BC337)","v":""},{"$f":"IF('1. Order'!BD337=\"\",\"\",'1. Order'!BD337)","v":6},{"$f":"IF('1. Order'!BE337=\"\",\"\",'1. Order'!BE337)","v":"None"},{"$f":"IF('1. Order'!BF337=\"\",\"\",'1. Order'!BF337)","v":"Parcel"},{"$f":"IF('1. Order'!BG337=\"\",\"\",'1. Order'!BG337)","v":"ZWO"}]
[{"$f":"IF('1. Order'!F338=\"\",\"\",'1. Order'!F338)","v":""},{"$f":"IF('1. Order'!G338=\"\",\"\",'1. Order'!G338)","v":""},{"$f":"IF('1. Order'!H338=\"\",\"\",'1. Order'!H338)","v":""},{"$f":"IF('1. Order'!I338=\"\",\"\",'1. Order'!I338)","v":""},{"$f":"IF('1. Order'!J338=\"\",\"\",'1. Order'!J338)","v":""},{"$f":"IF('1. Order'!K338=\"\",\"\",'1. Order'!K338)","v":""},{"$f":"IF('1. Order'!L338=\"\",\"\",'1. Order'!L338)","v":""},{"$f":"IF('1. Order'!M338=\"\",\"\",'1. Order'!M338)","v":""},{"$f":"IF('1. Order'!N338=\"\",\"\",'1. Order'!N338)","v":""},{"$f":"IF('1. Order'!O338=\"\",\"\",'1. Order'!O338)","v":{"$error":"#N/A"}},{"$f":"IF('1. Order'!P338=\"\",\"\",'1. Order'!P338)","v":{"$error":"#N/A"}},{"$f":"IF('1. Order'!Q338=\"\",\"\",'1. Order'!Q338)","v":""},{"$f":"IF('1. Order'!R338=\"\",\"\",'1. Order'!R338)","v":""},{"$f":"IF('1. Order'!S338=\"\",\"\",'1. Order'!S338)","v":""},{"$f":"IF('1. Order'!V338=\"\",\"\",'1. Order'!V338)","v":""},{"$f":"IF('1. Order'!W338=\"\",\"\",'1. Order'!W338)","v":""},{"$f":"IF('1. Order'!X338=\"\",\"\",'1. Order'!X338)","v":"EUR"},{"$f":"IF('1. Order'!Y338=\"\",\"\",'1. Order'!Y338)","v":""},{"$f":"IF('1. Order'!Z338=\"\",\"\",'1. Order'!Z338)","v":""},{"$f":"IF('1. Order'!AA338=\"\",\"\",'1. Order'!AA338)","v":""},null,{"$f":"IF('1. Order'!AS338=\"\",\"\",'1. Order'!AS338)","v":""},{"$f":"IF('1. Order'!AT338=\"\",\"\",'1. Order'!AT338)","v":""},null,null,null,null,null,null,null,{"$f":"IF('1. Order'!AX338=\"\",\"\",'1. Order'!AX338)","v":""},{"$f":"IF('1. Order'!AY338=\"\",\"\",'1. Order'!AY338)","v":""},{"$f":"IF('1. Order'!AZ338=\"\",\"\",'1. Order'!AZ338)","v":""},{"$f":"IF('1. Order'!BA338=\"\",\"\",'1. Order'!BA338)","v":""},{"$f":"IF('1. Order'!BC338=\"\",\"\",'1. Order'!BC338)","v":""},{"$f":"IF('1. Order'!BD338=\"\",\"\",'1. Order'!BD338)","v":6},{"$f":"IF('1. Order'!BE338=\"\",\"\",'1. Order'!BE338)","v":"None"},{"$f":"IF('1. Order'!BF338=\"\",\"\",'1. Order'!BF338)","v":"Parcel"},{"$f":"IF('1. Order'!BG338=\"\",\"\",'1. Order'!BG338)","v":"ZWO"}]
[{"$f":"IF('1. Order'!F339=\"\",\"\",'1. Order'!F339)","v":""},{"$f":"IF('1. Order'!G339=\"\",\"\",'1. Order'!G339)","v":""},{"$f":"IF('1. Order'!H339=\"\",\"\",'1. Order'!H339)","v":""},{"$f":"IF('1. Order'!I339=\"\",\"\",'1. Order'!I339)","v":""},{"$f":"IF('1. Order'!J339=\"\",\"\",'1. Order'!J339)","v":""},{"$f":"IF('1. Order'!K339=\"\",\"\",'1. Order'!K339)","v":""},{"$f":"IF('1. Order'!L339=\"\",\"\",'1. Order'!L339)","v":""},{"$f":"IF('1. Order'!M339=\"\",\"\",'1. Order'!M339)","v":""},{"$f":"IF('1. Order'!N339=\"\",\"\",'1. Order'!N339)","v":""},{"$f":"IF('1. Order'!O339=\"\",\"\",'1. Order'!O339)","v":{"$error":"#N/A"}},{"$f":"IF('1. Order'!P339=\"\",\"\",'1. Order'!P339)","v":{"$error":"#N/A"}},{"$f":"IF('1. Order'!Q339=\"\",\"\",'1. Order'!Q339)","v":""},{"$f":"IF('1. Order'!R339=\"\",\"\",'1. Order'!R339)","v":""},{"$f":"IF('1. Order'!S339=\"\",\"\",'1. Order'!S339)","v":""},{"$f":"IF('1. Order'!V339=\"\",\"\",'1. Order'!V339)","v":""},{"$f":"IF('1. Order'!W339=\"\",\"\",'1. Order'!W339)","v":""},{"$f":"IF('1. Order'!X339=\"\",\"\",'1. Order'!X339)","v":"EUR"},{"$f":"IF('1. Order'!Y339=\"\",\"\",'1. Order'!Y339)","v":""},{"$f":"IF('1. Order'!Z339=\"\",\"\",'1. Order'!Z339)","v":""},{"$f":"IF('1. Order'!AA339=\"\",\"\",'1. Order'!AA339)","v":""},null,{"$f":"IF('1. Order'!AS339=\"\",\"\",'1. Order'!AS339)","v":""},{"$f":"IF('1. Order'!AT339=\"\",\"\",'1. Order'!AT339)","v":""},null,null,null,null,null,null,null,{"$f":"IF('1. Order'!AX339=\"\",\"\",'1. Order'!AX339)","v":""},{"$f":"IF('1. Order'!AY339=\"\",\"\",'1. Order'!AY339)","v":""},{"$f":"IF('1. Order'!AZ339=\"\",\"\",'1. Order'!AZ339)","v":""},{"$f":"IF('1. Order'!BA339=\"\",\"\",'1. Order'!BA339)","v":""},{"$f":"IF('1. Order'!BC339=\"\",\"\",'1. Order'!BC339)","v":""},{"$f":"IF('1. Order'!BD339=\"\",\"\",'1. Order'!BD339)","v":6},{"$f":"IF('1. Order'!BE339=\"\",\"\",'1. Order'!BE339)","v":"None"},{"$f":"IF('1. Order'!BF339=\"\",\"\",'1. Order'!BF339)","v":"Parcel"},{"$f":"IF('1. Order'!BG339=\"\",\"\",'1. Order'!BG339)","v":"ZWO"}]
[{"$f":"IF('1. Order'!F340=\"\",\"\",'1. Order'!F340)","v":""},{"$f":"IF('1. Order'!G340=\"\",\"\",'1. Order'!G340)","v":""},{"$f":"IF('1. Order'!H340=\"\",\"\",'1. Order'!H340)","v":""},{"$f":"IF('1. Order'!I340=\"\",\"\",'1. Order'!I340)","v":""},{"$f":"IF('1. Order'!J340=\"\",\"\",'1. Order'!J340)","v":""},{"$f":"IF('1. Order'!K340=\"\",\"\",'1. Order'!K340)","v":""},{"$f":"IF('1. Order'!L340=\"\",\"\",'1. Order'!L340)","v":""},{"$f":"IF('1. Order'!M340=\"\",\"\",'1. Order'!M340)","v":""},{"$f":"IF('1. Order'!N340=\"\",\"\",'1. Order'!N340)","v":""},{"$f":"IF('1. Order'!O340=\"\",\"\",'1. Order'!O340)","v":{"$error":"#N/A"}},{"$f":"IF('1. Order'!P340=\"\",\"\",'1. Order'!P340)","v":{"$error":"#N/A"}},{"$f":"IF('1. Order'!Q340=\"\",\"\",'1. Order'!Q340)","v":""},{"$f":"IF('1. Order'!R340=\"\",\"\",'1. Order'!R340)","v":""},{"$f":"IF('1. Order'!S340=\"\",\"\",'1. Order'!S340)","v":""},{"$f":"IF('1. Order'!V340=\"\",\"\",'1. Order'!V340)","v":""},{"$f":"IF('1. Order'!W340=\"\",\"\",'1. Order'!W340)","v":""},{"$f":"IF('1. Order'!X340=\"\",\"\",'1. Order'!X340)","v":"EUR"},{"$f":"IF('1. Order'!Y340=\"\",\"\",'1. Order'!Y340)","v":""},{"$f":"IF('1. Order'!Z340=\"\",\"\",'1. Order'!Z340)","v":""},{"$f":"IF('1. Order'!AA340=\"\",\"\",'1. Order'!AA340)","v":""},null,{"$f":"IF('1. Order'!AS340=\"\",\"\",'1. Order'!AS340)","v":""},{"$f":"IF('1. Order'!AT340=\"\",\"\",'1. Order'!AT340)","v":""},null,null,null,null,null,null,null,{"$f":"IF('1. Order'!AX340=\"\",\"\",'1. Order'!AX340)","v":""},{"$f":"IF('1. Order'!AY340=\"\",\"\",'1. Order'!AY340)","v":""},{"$f":"IF('1. Order'!AZ340=\"\",\"\",'1. Order'!AZ340)","v":""},{"$f":"IF('1. Order'!BA340=\"\",\"\",'1. Order'!BA340)","v":""},{"$f":"IF('1. Order'!BC340=\"\",\"\",'1. Order'!BC340)","v":""},{"$f":"IF('1. Order'!BD340=\"\",\"\",'1. Order'!BD340)","v":6},{"$f":"IF('1. Order'!BE340=\"\",\"\",'1. Order'!BE340)","v":"None"},{"$f":"IF('1. Order'!BF340=\"\",\"\",'1. Order'!BF340)","v":"Parcel"},{"$f":"IF('1. Order'!BG340=\"\",\"\",'1. Order'!BG340)","v":"ZWO"}]
[{"$f":"IF('1. Order'!F341=\"\",\"\",'1. Order'!F341)","v":""},{"$f":"IF('1. Order'!G341=\"\",\"\",'1. Order'!G341)","v":""},{"$f":"IF('1. Order'!H341=\"\",\"\",'1. Order'!H341)","v":""},{"$f":"IF('1. Order'!I341=\"\",\"\",'1. Order'!I341)","v":""},{"$f":"IF('1. Order'!J341=\"\",\"\",'1. Order'!J341)","v":""},{"$f":"IF('1. Order'!K341=\"\",\"\",'1. Order'!K341)","v":""},{"$f":"IF('1. Order'!L341=\"\",\"\",'1. Order'!L341)","v":""},{"$f":"IF('1. Order'!M341=\"\",\"\",'1. Order'!M341)","v":""},{"$f":"IF('1. Order'!N341=\"\",\"\",'1. Order'!N341)","v":""},{"$f":"IF('1. Order'!O341=\"\",\"\",'1. Order'!O341)","v":{"$error":"#N/A"}},{"$f":"IF('1. Order'!P341=\"\",\"\",'1. Order'!P341)","v":{"$error":"#N/A"}},{"$f":"IF('1. Order'!Q341=\"\",\"\",'1. Order'!Q341)","v":""},{"$f":"IF('1. Order'!R341=\"\",\"\",'1. Order'!R341)","v":""},{"$f":"IF('1. Order'!S341=\"\",\"\",'1. Order'!S341)","v":""},{"$f":"IF('1. Order'!V341=\"\",\"\",'1. Order'!V341)","v":""},{"$f":"IF('1. Order'!W341=\"\",\"\",'1. Order'!W341)","v":""},{"$f":"IF('1. Order'!X341=\"\",\"\",'1. Order'!X341)","v":"EUR"},{"$f":"IF('1. Order'!Y341=\"\",\"\",'1. Order'!Y341)","v":""},{"$f":"IF('1. Order'!Z341=\"\",\"\",'1. Order'!Z341)","v":""},{"$f":"IF('1. Order'!AA341=\"\",\"\",'1. Order'!AA341)","v":""},null,{"$f":"IF('1. Order'!AS341=\"\",\"\",'1. Order'!AS341)","v":""},{"$f":"IF('1. Order'!AT341=\"\",\"\",'1. Order'!AT341)","v":""},null,null,null,null,null,null,null,{"$f":"IF('1. Order'!AX341=\"\",\"\",'1. Order'!AX341)","v":""},{"$f":"IF('1. Order'!AY341=\"\",\"\",'1. Order'!AY341)","v":""},{"$f":"IF('1. Order'!AZ341=\"\",\"\",'1. Order'!AZ341)","v":""},{"$f":"IF('1. Order'!BA341=\"\",\"\",'1. Order'!BA341)","v":""},{"$f":"IF('1. Order'!BC341=\"\",\"\",'1. Order'!BC341)","v":""},{"$f":"IF('1. Order'!BD341=\"\",\"\",'1. Order'!BD341)","v":6},{"$f":"IF('1. Order'!BE341=\"\",\"\",'1. Order'!BE341)","v":"None"},{"$f":"IF('1. Order'!BF341=\"\",\"\",'1. Order'!BF341)","v":"Parcel"},{"$f":"IF('1. Order'!BG341=\"\",\"\",'1. Order'!BG341)","v":"ZWO"}]
[{"$f":"IF('1. Order'!F342=\"\",\"\",'1. Order'!F342)","v":""},{"$f":"IF('1. Order'!G342=\"\",\"\",'1. Order'!G342)","v":""},{"$f":"IF('1. Order'!H342=\"\",\"\",'1. Order'!H342)","v":""},{"$f":"IF('1. Order'!I342=\"\",\"\",'1. Order'!I342)","v":""},{"$f":"IF('1. Order'!J342=\"\",\"\",'1. Order'!J342)","v":""},{"$f":"IF('1. Order'!K342=\"\",\"\",'1. Order'!K342)","v":""},{"$f":"IF('1. Order'!L342=\"\",\"\",'1. Order'!L342)","v":""},{"$f":"IF('1. Order'!M342=\"\",\"\",'1. Order'!M342)","v":""},{"$f":"IF('1. Order'!N342=\"\",\"\",'1. Order'!N342)","v":""},{"$f":"IF('1. Order'!O342=\"\",\"\",'1. Order'!O342)","v":{"$error":"#N/A"}},{"$f":"IF('1. Order'!P342=\"\",\"\",'1. Order'!P342)","v":{"$error":"#N/A"}},{"$f":"IF('1. Order'!Q342=\"\",\"\",'1. Order'!Q342)","v":""},{"$f":"IF('1. Order'!R342=\"\",\"\",'1. Order'!R342)","v":""},{"$f":"IF('1. Order'!S342=\"\",\"\",'1. Order'!S342)","v":""},{"$f":"IF('1. Order'!V342=\"\",\"\",'1. Order'!V342)","v":""},{"$f":"IF('1. Order'!W342=\"\",\"\",'1. Order'!W342)","v":""},{"$f":"IF('1. Order'!X342=\"\",\"\",'1. Order'!X342)","v":"EUR"},{"$f":"IF('1. Order'!Y342=\"\",\"\",'1. Order'!Y342)","v":""},{"$f":"IF('1. Order'!Z342=\"\",\"\",'1. Order'!Z342)","v":""},{"$f":"IF('1. Order'!AA342=\"\",\"\",'1. Order'!AA342)","v":""},null,{"$f":"IF('1. Order'!AS342=\"\",\"\",'1. Order'!AS342)","v":""},{"$f":"IF('1. Order'!AT342=\"\",\"\",'1. Order'!AT342)","v":""},null,null,null,null,null,null,null,{"$f":"IF('1. Order'!AX342=\"\",\"\",'1. Order'!AX342)","v":""},{"$f":"IF('1. Order'!AY342=\"\",\"\",'1. Order'!AY342)","v":""},{"$f":"IF('1. Order'!AZ342=\"\",\"\",'1. Order'!AZ342)","v":""},{"$f":"IF('1. Order'!BA342=\"\",\"\",'1. Order'!BA342)","v":""},{"$f":"IF('1. Order'!BC342=\"\",\"\",'1. Order'!BC342)","v":""},{"$f":"IF('1. Order'!BD342=\"\",\"\",'1. Order'!BD342)","v":6},{"$f":"IF('1. Order'!BE342=\"\",\"\",'1. Order'!BE342)","v":"None"},{"$f":"IF('1. Order'!BF342=\"\",\"\",'1. Order'!BF342)","v":"Parcel"},{"$f":"IF('1. Order'!BG342=\"\",\"\",'1. Order'!BG342)","v":"ZWO"}]
[{"$f":"IF('1. Order'!F343=\"\",\"\",'1. Order'!F343)","v":""},{"$f":"IF('1. Order'!G343=\"\",\"\",'1. Order'!G343)","v":""},{"$f":"IF('1. Order'!H343=\"\",\"\",'1. Order'!H343)","v":""},{"$f":"IF('1. Order'!I343=\"\",\"\",'1. Order'!I343)","v":""},{"$f":"IF('1. Order'!J343=\"\",\"\",'1. Order'!J343)","v":""},{"$f":"IF('1. Order'!K343=\"\",\"\",'1. Order'!K343)","v":""},{"$f":"IF('1. Order'!L343=\"\",\"\",'1. Order'!L343)","v":""},{"$f":"IF('1. Order'!M343=\"\",\"\",'1. Order'!M343)","v":""},{"$f":"IF('1. Order'!N343=\"\",\"\",'1. Order'!N343)","v":""},{"$f":"IF('1. Order'!O343=\"\",\"\",'1. Order'!O343)","v":{"$error":"#N/A"}},{"$f":"IF('1. Order'!P343=\"\",\"\",'1. Order'!P343)","v":{"$error":"#N/A"}},{"$f":"IF('1. Order'!Q343=\"\",\"\",'1. Order'!Q343)","v":""},{"$f":"IF('1. Order'!R343=\"\",\"\",'1. Order'!R343)","v":""},{"$f":"IF('1. Order'!S343=\"\",\"\",'1. Order'!S343)","v":""},{"$f":"IF('1. Order'!V343=\"\",\"\",'1. Order'!V343)","v":""},{"$f":"IF('1. Order'!W343=\"\",\"\",'1. Order'!W343)","v":""},{"$f":"IF('1. Order'!X343=\"\",\"\",'1. Order'!X343)","v":"EUR"},{"$f":"IF('1. Order'!Y343=\"\",\"\",'1. Order'!Y343)","v":""},{"$f":"IF('1. Order'!Z343=\"\",\"\",'1. Order'!Z343)","v":""},{"$f":"IF('1. Order'!AA343=\"\",\"\",'1. Order'!AA343)","v":""},null,{"$f":"IF('1. Order'!AS343=\"\",\"\",'1. Order'!AS343)","v":""},{"$f":"IF('1. Order'!AT343=\"\",\"\",'1. Order'!AT343)","v":""},null,null,null,null,null,null,null,{"$f":"IF('1. Order'!AX343=\"\",\"\",'1. Order'!AX343)","v":""},{"$f":"IF('1. Order'!AY343=\"\",\"\",'1. Order'!AY343)","v":""},{"$f":"IF('1. Order'!AZ343=\"\",\"\",'1. Order'!AZ343)","v":""},{"$f":"IF('1. Order'!BA343=\"\",\"\",'1. Order'!BA343)","v":""},{"$f":"IF('1. Order'!BC343=\"\",\"\",'1. Order'!BC343)","v":""},{"$f":"IF('1. Order'!BD343=\"\",\"\",'1. Order'!BD343)","v":6},{"$f":"IF('1. Order'!BE343=\"\",\"\",'1. Order'!BE343)","v":"None"},{"$f":"IF('1. Order'!BF343=\"\",\"\",'1. Order'!BF343)","v":"Parcel"},{"$f":"IF('1. Order'!BG343=\"\",\"\",'1. Order'!BG343)","v":"ZWO"}]
[{"$f":"IF('1. Order'!F344=\"\",\"\",'1. Order'!F344)","v":""},{"$f":"IF('1. Order'!G344=\"\",\"\",'1. Order'!G344)","v":""},{"$f":"IF('1. Order'!H344=\"\",\"\",'1. Order'!H344)","v":""},{"$f":"IF('1. Order'!I344=\"\",\"\",'1. Order'!I344)","v":""},{"$f":"IF('1. Order'!J344=\"\",\"\",'1. Order'!J344)","v":""},{"$f":"IF('1. Order'!K344=\"\",\"\",'1. Order'!K344)","v":""},{"$f":"IF('1. Order'!L344=\"\",\"\",'1. Order'!L344)","v":""},{"$f":"IF('1. Order'!M344=\"\",\"\",'1. Order'!M344)","v":""},{"$f":"IF('1. Order'!N344=\"\",\"\",'1. Order'!N344)","v":""},{"$f":"IF('1. Order'!O344=\"\",\"\",'1. Order'!O344)","v":{"$error":"#N/A"}},{"$f":"IF('1. Order'!P344=\"\",\"\",'1. Order'!P344)","v":{"$error":"#N/A"}},{"$f":"IF('1. Order'!Q344=\"\",\"\",'1. Order'!Q344)","v":""},{"$f":"IF('1. Order'!R344=\"\",\"\",'1. Order'!R344)","v":""},{"$f":"IF('1. Order'!S344=\"\",\"\",'1. Order'!S344)","v":""},{"$f":"IF('1. Order'!V344=\"\",\"\",'1. Order'!V344)","v":""},{"$f":"IF('1. Order'!W344=\"\",\"\",'1. Order'!W344)","v":""},{"$f":"IF('1. Order'!X344=\"\",\"\",'1. Order'!X344)","v":"EUR"},{"$f":"IF('1. Order'!Y344=\"\",\"\",'1. Order'!Y344)","v":""},{"$f":"IF('1. Order'!Z344=\"\",\"\",'1. Order'!Z344)","v":""},{"$f":"IF('1. Order'!AA344=\"\",\"\",'1. Order'!AA344)","v":""},null,{"$f":"IF('1. Order'!AS344=\"\",\"\",'1. Order'!AS344)","v":""},{"$f":"IF('1. Order'!AT344=\"\",\"\",'1. Order'!AT344)","v":""},null,null,null,null,null,null,null,{"$f":"IF('1. Order'!AX344=\"\",\"\",'1. Order'!AX344)","v":""},{"$f":"IF('1. Order'!AY344=\"\",\"\",'1. Order'!AY344)","v":""},{"$f":"IF('1. Order'!AZ344=\"\",\"\",'1. Order'!AZ344)","v":""},{"$f":"IF('1. Order'!BA344=\"\",\"\",'1. Order'!BA344)","v":""},{"$f":"IF('1. Order'!BC344=\"\",\"\",'1. Order'!BC344)","v":""},{"$f":"IF('1. Order'!BD344=\"\",\"\",'1. Order'!BD344)","v":6},{"$f":"IF('1. Order'!BE344=\"\",\"\",'1. Order'!BE344)","v":"None"},{"$f":"IF('1. Order'!BF344=\"\",\"\",'1. Order'!BF344)","v":"Parcel"},{"$f":"IF('1. Order'!BG344=\"\",\"\",'1. Order'!BG344)","v":"ZWO"}]
[{"$f":"IF('1. Order'!F345=\"\",\"\",'1. Order'!F345)","v":""},{"$f":"IF('1. Order'!G345=\"\",\"\",'1. Order'!G345)","v":""},{"$f":"IF('1. Order'!H345=\"\",\"\",'1. Order'!H345)","v":""},{"$f":"IF('1. Order'!I345=\"\",\"\",'1. Order'!I345)","v":""},{"$f":"IF('1. Order'!J345=\"\",\"\",'1. Order'!J345)","v":""},{"$f":"IF('1. Order'!K345=\"\",\"\",'1. Order'!K345)","v":""},{"$f":"IF('1. Order'!L345=\"\",\"\",'1. Order'!L345)","v":""},{"$f":"IF('1. Order'!M345=\"\",\"\",'1. Order'!M345)","v":""},{"$f":"IF('1. Order'!N345=\"\",\"\",'1. Order'!N345)","v":""},{"$f":"IF('1. Order'!O345=\"\",\"\",'1. Order'!O345)","v":{"$error":"#N/A"}},{"$f":"IF('1. Order'!P345=\"\",\"\",'1. Order'!P345)","v":{"$error":"#N/A"}},{"$f":"IF('1. Order'!Q345=\"\",\"\",'1. Order'!Q345)","v":""},{"$f":"IF('1. Order'!R345=\"\",\"\",'1. Order'!R345)","v":""},{"$f":"IF('1. Order'!S345=\"\",\"\",'1. Order'!S345)","v":""},{"$f":"IF('1. Order'!V345=\"\",\"\",'1. Order'!V345)","v":""},{"$f":"IF('1. Order'!W345=\"\",\"\",'1. Order'!W345)","v":""},{"$f":"IF('1. Order'!X345=\"\",\"\",'1. Order'!X345)","v":"EUR"},{"$f":"IF('1. Order'!Y345=\"\",\"\",'1. Order'!Y345)","v":""},{"$f":"IF('1. Order'!Z345=\"\",\"\",'1. Order'!Z345)","v":""},{"$f":"IF('1. Order'!AA345=\"\",\"\",'1. Order'!AA345)","v":""},null,{"$f":"IF('1. Order'!AS345=\"\",\"\",'1. Order'!AS345)","v":""},{"$f":"IF('1. Order'!AT345=\"\",\"\",'1. Order'!AT345)","v":""},null,null,null,null,null,null,null,{"$f":"IF('1. Order'!AX345=\"\",\"\",'1. Order'!AX345)","v":""},{"$f":"IF('1. Order'!AY345=\"\",\"\",'1. Order'!AY345)","v":""},{"$f":"IF('1. Order'!AZ345=\"\",\"\",'1. Order'!AZ345)","v":""},{"$f":"IF('1. Order'!BA345=\"\",\"\",'1. Order'!BA345)","v":""},{"$f":"IF('1. Order'!BC345=\"\",\"\",'1. Order'!BC345)","v":""},{"$f":"IF('1. Order'!BD345=\"\",\"\",'1. Order'!BD345)","v":6},{"$f":"IF('1. Order'!BE345=\"\",\"\",'1. Order'!BE345)","v":"None"},{"$f":"IF('1. Order'!BF345=\"\",\"\",'1. Order'!BF345)","v":"Parcel"},{"$f":"IF('1. Order'!BG345=\"\",\"\",'1. Order'!BG345)","v":"ZWO"}]
[{"$f":"IF('1. Order'!F346=\"\",\"\",'1. Order'!F346)","v":""},{"$f":"IF('1. Order'!G346=\"\",\"\",'1. Order'!G346)","v":""},{"$f":"IF('1. Order'!H346=\"\",\"\",'1. Order'!H346)","v":""},{"$f":"IF('1. Order'!I346=\"\",\"\",'1. Order'!I346)","v":""},{"$f":"IF('1. Order'!J346=\"\",\"\",'1. Order'!J346)","v":""},{"$f":"IF('1. Order'!K346=\"\",\"\",'1. Order'!K346)","v":""},{"$f":"IF('1. Order'!L346=\"\",\"\",'1. Order'!L346)","v":""},{"$f":"IF('1. Order'!M346=\"\",\"\",'1. Order'!M346)","v":""},{"$f":"IF('1. Order'!N346=\"\",\"\",'1. Order'!N346)","v":""},{"$f":"IF('1. Order'!O346=\"\",\"\",'1. Order'!O346)","v":{"$error":"#N/A"}},{"$f":"IF('1. Order'!P346=\"\",\"\",'1. Order'!P346)","v":{"$error":"#N/A"}},{"$f":"IF('1. Order'!Q346=\"\",\"\",'1. Order'!Q346)","v":""},{"$f":"IF('1. Order'!R346=\"\",\"\",'1. Order'!R346)","v":""},{"$f":"IF('1. Order'!S346=\"\",\"\",'1. Order'!S346)","v":""},{"$f":"IF('1. Order'!V346=\"\",\"\",'1. Order'!V346)","v":""},{"$f":"IF('1. Order'!W346=\"\",\"\",'1. Order'!W346)","v":""},{"$f":"IF('1. Order'!X346=\"\",\"\",'1. Order'!X346)","v":"EUR"},{"$f":"IF('1. Order'!Y346=\"\",\"\",'1. Order'!Y346)","v":""},{"$f":"IF('1. Order'!Z346=\"\",\"\",'1. Order'!Z346)","v":""},{"$f":"IF('1. Order'!AA346=\"\",\"\",'1. Order'!AA346)","v":""},null,{"$f":"IF('1. Order'!AS346=\"\",\"\",'1. Order'!AS346)","v":""},{"$f":"IF('1. Order'!AT346=\"\",\"\",'1. Order'!AT346)","v":""},null,null,null,null,null,null,null,{"$f":"IF('1. Order'!AX346=\"\",\"\",'1. Order'!AX346)","v":""},{"$f":"IF('1. Order'!AY346=\"\",\"\",'1. Order'!AY346)","v":""},{"$f":"IF('1. Order'!AZ346=\"\",\"\",'1. Order'!AZ346)","v":""},{"$f":"IF('1. Order'!BA346=\"\",\"\",'1. Order'!BA346)","v":""},{"$f":"IF('1. Order'!BC346=\"\",\"\",'1. Order'!BC346)","v":""},{"$f":"IF('1. Order'!BD346=\"\",\"\",'1. Order'!BD346)","v":6},{"$f":"IF('1. Order'!BE346=\"\",\"\",'1. Order'!BE346)","v":"None"},{"$f":"IF('1. Order'!BF346=\"\",\"\",'1. Order'!BF346)","v":"Parcel"},{"$f":"IF('1. Order'!BG346=\"\",\"\",'1. Order'!BG346)","v":"ZWO"}]
[{"$f":"IF('1. Order'!F347=\"\",\"\",'1. Order'!F347)","v":""},{"$f":"IF('1. Order'!G347=\"\",\"\",'1. Order'!G347)","v":""},{"$f":"IF('1. Order'!H347=\"\",\"\",'1. Order'!H347)","v":""},{"$f":"IF('1. Order'!I347=\"\",\"\",'1. Order'!I347)","v":""},{"$f":"IF('1. Order'!J347=\"\",\"\",'1. Order'!J347)","v":""},{"$f":"IF('1. Order'!K347=\"\",\"\",'1. Order'!K347)","v":""},{"$f":"IF('1. Order'!L347=\"\",\"\",'1. Order'!L347)","v":""},{"$f":"IF('1. Order'!M347=\"\",\"\",'1. Order'!M347)","v":""},{"$f":"IF('1. Order'!N347=\"\",\"\",'1. Order'!N347)","v":""},{"$f":"IF('1. Order'!O347=\"\",\"\",'1. Order'!O347)","v":{"$error":"#N/A"}},{"$f":"IF('1. Order'!P347=\"\",\"\",'1. Order'!P347)","v":{"$error":"#N/A"}},{"$f":"IF('1. Order'!Q347=\"\",\"\",'1. Order'!Q347)","v":""},{"$f":"IF('1. Order'!R347=\"\",\"\",'1. Order'!R347)","v":""},{"$f":"IF('1. Order'!S347=\"\",\"\",'1. Order'!S347)","v":""},{"$f":"IF('1. Order'!V347=\"\",\"\",'1. Order'!V347)","v":""},{"$f":"IF('1. Order'!W347=\"\",\"\",'1. Order'!W347)","v":""},{"$f":"IF('1. Order'!X347=\"\",\"\",'1. Order'!X347)","v":"EUR"},{"$f":"IF('1. Order'!Y347=\"\",\"\",'1. Order'!Y347)","v":""},{"$f":"IF('1. Order'!Z347=\"\",\"\",'1. Order'!Z347)","v":""},{"$f":"IF('1. Order'!AA347=\"\",\"\",'1. Order'!AA347)","v":""},null,{"$f":"IF('1. Order'!AS347=\"\",\"\",'1. Order'!AS347)","v":""},{"$f":"IF('1. Order'!AT347=\"\",\"\",'1. Order'!AT347)","v":""},null,null,null,null,null,null,null,{"$f":"IF('1. Order'!AX347=\"\",\"\",'1. Order'!AX347)","v":""},{"$f":"IF('1. Order'!AY347=\"\",\"\",'1. Order'!AY347)","v":""},{"$f":"IF('1. Order'!AZ347=\"\",\"\",'1. Order'!AZ347)","v":""},{"$f":"IF('1. Order'!BA347=\"\",\"\",'1. Order'!BA347)","v":""},{"$f":"IF('1. Order'!BC347=\"\",\"\",'1. Order'!BC347)","v":""},{"$f":"IF('1. Order'!BD347=\"\",\"\",'1. Order'!BD347)","v":6},{"$f":"IF('1. Order'!BE347=\"\",\"\",'1. Order'!BE347)","v":"None"},{"$f":"IF('1. Order'!BF347=\"\",\"\",'1. Order'!BF347)","v":"Parcel"},{"$f":"IF('1. Order'!BG347=\"\",\"\",'1. Order'!BG347)","v":"ZWO"}]
[{"$f":"IF('1. Order'!F348=\"\",\"\",'1. Order'!F348)","v":""},{"$f":"IF('1. Order'!G348=\"\",\"\",'1. Order'!G348)","v":""},{"$f":"IF('1. Order'!H348=\"\",\"\",'1. Order'!H348)","v":""},{"$f":"IF('1. Order'!I348=\"\",\"\",'1. Order'!I348)","v":""},{"$f":"IF('1. Order'!J348=\"\",\"\",'1. Order'!J348)","v":""},{"$f":"IF('1. Order'!K348=\"\",\"\",'1. Order'!K348)","v":""},{"$f":"IF('1. Order'!L348=\"\",\"\",'1. Order'!L348)","v":""},{"$f":"IF('1. Order'!M348=\"\",\"\",'1. Order'!M348)","v":""},{"$f":"IF('1. Order'!N348=\"\",\"\",'1. Order'!N348)","v":""},{"$f":"IF('1. Order'!O348=\"\",\"\",'1. Order'!O348)","v":{"$error":"#N/A"}},{"$f":"IF('1. Order'!P348=\"\",\"\",'1. Order'!P348)","v":{"$error":"#N/A"}},{"$f":"IF('1. Order'!Q348=\"\",\"\",'1. Order'!Q348)","v":""},{"$f":"IF('1. Order'!R348=\"\",\"\",'1. Order'!R348)","v":""},{"$f":"IF('1. Order'!S348=\"\",\"\",'1. Order'!S348)","v":""},{"$f":"IF('1. Order'!V348=\"\",\"\",'1. Order'!V348)","v":""},{"$f":"IF('1. Order'!W348=\"\",\"\",'1. Order'!W348)","v":""},{"$f":"IF('1. Order'!X348=\"\",\"\",'1. Order'!X348)","v":"EUR"},{"$f":"IF('1. Order'!Y348=\"\",\"\",'1. Order'!Y348)","v":""},{"$f":"IF('1. Order'!Z348=\"\",\"\",'1. Order'!Z348)","v":""},{"$f":"IF('1. Order'!AA348=\"\",\"\",'1. Order'!AA348)","v":""},null,{"$f":"IF('1. Order'!AS348=\"\",\"\",'1. Order'!AS348)","v":""},{"$f":"IF('1. Order'!AT348=\"\",\"\",'1. Order'!AT348)","v":""},null,null,null,null,null,null,null,{"$f":"IF('1. Order'!AX348=\"\",\"\",'1. Order'!AX348)","v":""},{"$f":"IF('1. Order'!AY348=\"\",\"\",'1. Order'!AY348)","v":""},{"$f":"IF('1. Order'!AZ348=\"\",\"\",'1. Order'!AZ348)","v":""},{"$f":"IF('1. Order'!BA348=\"\",\"\",'1. Order'!BA348)","v":""},{"$f":"IF('1. Order'!BC348=\"\",\"\",'1. Order'!BC348)","v":""},{"$f":"IF('1. Order'!BD348=\"\",\"\",'1. Order'!BD348)","v":6},{"$f":"IF('1. Order'!BE348=\"\",\"\",'1. Order'!BE348)","v":"None"},{"$f":"IF('1. Order'!BF348=\"\",\"\",'1. Order'!BF348)","v":"Parcel"},{"$f":"IF('1. Order'!BG348=\"\",\"\",'1. Order'!BG348)","v":"ZWO"}]
[{"$f":"IF('1. Order'!F349=\"\",\"\",'1. Order'!F349)","v":""},{"$f":"IF('1. Order'!G349=\"\",\"\",'1. Order'!G349)","v":""},{"$f":"IF('1. Order'!H349=\"\",\"\",'1. Order'!H349)","v":""},{"$f":"IF('1. Order'!I349=\"\",\"\",'1. Order'!I349)","v":""},{"$f":"IF('1. Order'!J349=\"\",\"\",'1. Order'!J349)","v":""},{"$f":"IF('1. Order'!K349=\"\",\"\",'1. Order'!K349)","v":""},{"$f":"IF('1. Order'!L349=\"\",\"\",'1. Order'!L349)","v":""},{"$f":"IF('1. Order'!M349=\"\",\"\",'1. Order'!M349)","v":""},{"$f":"IF('1. Order'!N349=\"\",\"\",'1. Order'!N349)","v":""},{"$f":"IF('1. Order'!O349=\"\",\"\",'1. Order'!O349)","v":{"$error":"#N/A"}},{"$f":"IF('1. Order'!P349=\"\",\"\",'1. Order'!P349)","v":{"$error":"#N/A"}},{"$f":"IF('1. Order'!Q349=\"\",\"\",'1. Order'!Q349)","v":""},{"$f":"IF('1. Order'!R349=\"\",\"\",'1. Order'!R349)","v":""},{"$f":"IF('1. Order'!S349=\"\",\"\",'1. Order'!S349)","v":""},{"$f":"IF('1. Order'!V349=\"\",\"\",'1. Order'!V349)","v":""},{"$f":"IF('1. Order'!W349=\"\",\"\",'1. Order'!W349)","v":""},{"$f":"IF('1. Order'!X349=\"\",\"\",'1. Order'!X349)","v":"EUR"},{"$f":"IF('1. Order'!Y349=\"\",\"\",'1. Order'!Y349)","v":""},{"$f":"IF('1. Order'!Z349=\"\",\"\",'1. Order'!Z349)","v":""},{"$f":"IF('1. Order'!AA349=\"\",\"\",'1. Order'!AA349)","v":""},null,{"$f":"IF('1. Order'!AS349=\"\",\"\",'1. Order'!AS349)","v":""},{"$f":"IF('1. Order'!AT349=\"\",\"\",'1. Order'!AT349)","v":""},null,null,null,null,null,null,null,{"$f":"IF('1. Order'!AX349=\"\",\"\",'1. Order'!AX349)","v":""},{"$f":"IF('1. Order'!AY349=\"\",\"\",'1. Order'!AY349)","v":""},{"$f":"IF('1. Order'!AZ349=\"\",\"\",'1. Order'!AZ349)","v":""},{"$f":"IF('1. Order'!BA349=\"\",\"\",'1. Order'!BA349)","v":""},{"$f":"IF('1. Order'!BC349=\"\",\"\",'1. Order'!BC349)","v":""},{"$f":"IF('1. Order'!BD349=\"\",\"\",'1. Order'!BD349)","v":6},{"$f":"IF('1. Order'!BE349=\"\",\"\",'1. Order'!BE349)","v":"None"},{"$f":"IF('1. Order'!BF349=\"\",\"\",'1. Order'!BF349)","v":"Parcel"},{"$f":"IF('1. Order'!BG349=\"\",\"\",'1. Order'!BG349)","v":"ZWO"}]
[{"$f":"IF('1. Order'!F350=\"\",\"\",'1. Order'!F350)","v":""},{"$f":"IF('1. Order'!G350=\"\",\"\",'1. Order'!G350)","v":""},{"$f":"IF('1. Order'!H350=\"\",\"\",'1. Order'!H350)","v":""},{"$f":"IF('1. Order'!I350=\"\",\"\",'1. Order'!I350)","v":""},{"$f":"IF('1. Order'!J350=\"\",\"\",'1. Order'!J350)","v":""},{"$f":"IF('1. Order'!K350=\"\",\"\",'1. Order'!K350)","v":""},{"$f":"IF('1. Order'!L350=\"\",\"\",'1. Order'!L350)","v":""},{"$f":"IF('1. Order'!M350=\"\",\"\",'1. Order'!M350)","v":""},{"$f":"IF('1. Order'!N350=\"\",\"\",'1. Order'!N350)","v":""},{"$f":"IF('1. Order'!O350=\"\",\"\",'1. Order'!O350)","v":{"$error":"#N/A"}},{"$f":"IF('1. Order'!P350=\"\",\"\",'1. Order'!P350)","v":{"$error":"#N/A"}},{"$f":"IF('1. Order'!Q350=\"\",\"\",'1. Order'!Q350)","v":""},{"$f":"IF('1. Order'!R350=\"\",\"\",'1. Order'!R350)","v":""},{"$f":"IF('1. Order'!S350=\"\",\"\",'1. Order'!S350)","v":""},{"$f":"IF('1. Order'!V350=\"\",\"\",'1. Order'!V350)","v":""},{"$f":"IF('1. Order'!W350=\"\",\"\",'1. Order'!W350)","v":""},{"$f":"IF('1. Order'!X350=\"\",\"\",'1. Order'!X350)","v":"EUR"},{"$f":"IF('1. Order'!Y350=\"\",\"\",'1. Order'!Y350)","v":""},{"$f":"IF('1. Order'!Z350=\"\",\"\",'1. Order'!Z350)","v":""},{"$f":"IF('1. Order'!AA350=\"\",\"\",'1. Order'!AA350)","v":""},null,{"$f":"IF('1. Order'!AS350=\"\",\"\",'1. Order'!AS350)","v":""},{"$f":"IF('1. Order'!AT350=\"\",\"\",'1. Order'!AT350)","v":""},null,null,null,null,null,null,null,{"$f":"IF('1. Order'!AX350=\"\",\"\",'1. Order'!AX350)","v":""},{"$f":"IF('1. Order'!AY350=\"\",\"\",'1. Order'!AY350)","v":""},{"$f":"IF('1. Order'!AZ350=\"\",\"\",'1. Order'!AZ350)","v":""},{"$f":"IF('1. Order'!BA350=\"\",\"\",'1. Order'!BA350)","v":""},{"$f":"IF('1. Order'!BC350=\"\",\"\",'1. Order'!BC350)","v":""},{"$f":"IF('1. Order'!BD350=\"\",\"\",'1. Order'!BD350)","v":6},{"$f":"IF('1. Order'!BE350=\"\",\"\",'1. Order'!BE350)","v":"None"},{"$f":"IF('1. Order'!BF350=\"\",\"\",'1. Order'!BF350)","v":"Parcel"},{"$f":"IF('1. Order'!BG350=\"\",\"\",'1. Order'!BG350)","v":"ZWO"}]
[{"$f":"IF('1. Order'!F351=\"\",\"\",'1. Order'!F351)","v":""},{"$f":"IF('1. Order'!G351=\"\",\"\",'1. Order'!G351)","v":""},{"$f":"IF('1. Order'!H351=\"\",\"\",'1. Order'!H351)","v":""},{"$f":"IF('1. Order'!I351=\"\",\"\",'1. Order'!I351)","v":""},{"$f":"IF('1. Order'!J351=\"\",\"\",'1. Order'!J351)","v":""},{"$f":"IF('1. Order'!K351=\"\",\"\",'1. Order'!K351)","v":""},{"$f":"IF('1. Order'!L351=\"\",\"\",'1. Order'!L351)","v":""},{"$f":"IF('1. Order'!M351=\"\",\"\",'1. Order'!M351)","v":""},{"$f":"IF('1. Order'!N351=\"\",\"\",'1. Order'!N351)","v":""},{"$f":"IF('1. Order'!O351=\"\",\"\",'1. Order'!O351)","v":{"$error":"#N/A"}},{"$f":"IF('1. Order'!P351=\"\",\"\",'1. Order'!P351)","v":{"$error":"#N/A"}},{"$f":"IF('1. Order'!Q351=\"\",\"\",'1. Order'!Q351)","v":""},{"$f":"IF('1. Order'!R351=\"\",\"\",'1. Order'!R351)","v":""},{"$f":"IF('1. Order'!S351=\"\",\"\",'1. Order'!S351)","v":""},{"$f":"IF('1. Order'!V351=\"\",\"\",'1. Order'!V351)","v":""},{"$f":"IF('1. Order'!W351=\"\",\"\",'1. Order'!W351)","v":""},{"$f":"IF('1. Order'!X351=\"\",\"\",'1. Order'!X351)","v":"EUR"},{"$f":"IF('1. Order'!Y351=\"\",\"\",'1. Order'!Y351)","v":""},{"$f":"IF('1. Order'!Z351=\"\",\"\",'1. Order'!Z351)","v":""},{"$f":"IF('1. Order'!AA351=\"\",\"\",'1. Order'!AA351)","v":""},null,{"$f":"IF('1. Order'!AS351=\"\",\"\",'1. Order'!AS351)","v":""},{"$f":"IF('1. Order'!AT351=\"\",\"\",'1. Order'!AT351)","v":""},null,null,null,null,null,null,null,{"$f":"IF('1. Order'!AX351=\"\",\"\",'1. Order'!AX351)","v":""},{"$f":"IF('1. Order'!AY351=\"\",\"\",'1. Order'!AY351)","v":""},{"$f":"IF('1. Order'!AZ351=\"\",\"\",'1. Order'!AZ351)","v":""},{"$f":"IF('1. Order'!BA351=\"\",\"\",'1. Order'!BA351)","v":""},{"$f":"IF('1. Order'!BC351=\"\",\"\",'1. Order'!BC351)","v":""},{"$f":"IF('1. Order'!BD351=\"\",\"\",'1. Order'!BD351)","v":6},{"$f":"IF('1. Order'!BE351=\"\",\"\",'1. Order'!BE351)","v":"None"},{"$f":"IF('1. Order'!BF351=\"\",\"\",'1. Order'!BF351)","v":"Parcel"},{"$f":"IF('1. Order'!BG351=\"\",\"\",'1. Order'!BG351)","v":"ZWO"}]
[{"$f":"IF('1. Order'!F352=\"\",\"\",'1. Order'!F352)","v":""},{"$f":"IF('1. Order'!G352=\"\",\"\",'1. Order'!G352)","v":""},{"$f":"IF('1. Order'!H352=\"\",\"\",'1. Order'!H352)","v":""},{"$f":"IF('1. Order'!I352=\"\",\"\",'1. Order'!I352)","v":""},{"$f":"IF('1. Order'!J352=\"\",\"\",'1. Order'!J352)","v":""},{"$f":"IF('1. Order'!K352=\"\",\"\",'1. Order'!K352)","v":""},{"$f":"IF('1. Order'!L352=\"\",\"\",'1. Order'!L352)","v":""},{"$f":"IF('1. Order'!M352=\"\",\"\",'1. Order'!M352)","v":""},{"$f":"IF('1. Order'!N352=\"\",\"\",'1. Order'!N352)","v":""},{"$f":"IF('1. Order'!O352=\"\",\"\",'1. Order'!O352)","v":{"$error":"#N/A"}},{"$f":"IF('1. Order'!P352=\"\",\"\",'1. Order'!P352)","v":{"$error":"#N/A"}},{"$f":"IF('1. Order'!Q352=\"\",\"\",'1. Order'!Q352)","v":""},{"$f":"IF('1. Order'!R352=\"\",\"\",'1. Order'!R352)","v":""},{"$f":"IF('1. Order'!S352=\"\",\"\",'1. Order'!S352)","v":""},{"$f":"IF('1. Order'!V352=\"\",\"\",'1. Order'!V352)","v":""},{"$f":"IF('1. Order'!W352=\"\",\"\",'1. Order'!W352)","v":""},{"$f":"IF('1. Order'!X352=\"\",\"\",'1. Order'!X352)","v":"EUR"},{"$f":"IF('1. Order'!Y352=\"\",\"\",'1. Order'!Y352)","v":""},{"$f":"IF('1. Order'!Z352=\"\",\"\",'1. Order'!Z352)","v":""},{"$f":"IF('1. Order'!AA352=\"\",\"\",'1. Order'!AA352)","v":""},null,{"$f":"IF('1. Order'!AS352=\"\",\"\",'1. Order'!AS352)","v":""},{"$f":"IF('1. Order'!AT352=\"\",\"\",'1. Order'!AT352)","v":""},null,null,null,null,null,null,null,{"$f":"IF('1. Order'!AX352=\"\",\"\",'1. Order'!AX352)","v":""},{"$f":"IF('1. Order'!AY352=\"\",\"\",'1. Order'!AY352)","v":""},{"$f":"IF('1. Order'!AZ352=\"\",\"\",'1. Order'!AZ352)","v":""},{"$f":"IF('1. Order'!BA352=\"\",\"\",'1. Order'!BA352)","v":""},{"$f":"IF('1. Order'!BC352=\"\",\"\",'1. Order'!BC352)","v":""},{"$f":"IF('1. Order'!BD352=\"\",\"\",'1. Order'!BD352)","v":6},{"$f":"IF('1. Order'!BE352=\"\",\"\",'1. Order'!BE352)","v":"None"},{"$f":"IF('1. Order'!BF352=\"\",\"\",'1. Order'!BF352)","v":"Parcel"},{"$f":"IF('1. Order'!BG352=\"\",\"\",'1. Order'!BG352)","v":"ZWO"}]
[{"$f":"IF('1. Order'!F353=\"\",\"\",'1. Order'!F353)","v":""},{"$f":"IF('1. Order'!G353=\"\",\"\",'1. Order'!G353)","v":""},{"$f":"IF('1. Order'!H353=\"\",\"\",'1. Order'!H353)","v":""},{"$f":"IF('1. Order'!I353=\"\",\"\",'1. Order'!I353)","v":""},{"$f":"IF('1. Order'!J353=\"\",\"\",'1. Order'!J353)","v":""},{"$f":"IF('1. Order'!K353=\"\",\"\",'1. Order'!K353)","v":""},{"$f":"IF('1. Order'!L353=\"\",\"\",'1. Order'!L353)","v":""},{"$f":"IF('1. Order'!M353=\"\",\"\",'1. Order'!M353)","v":""},{"$f":"IF('1. Order'!N353=\"\",\"\",'1. Order'!N353)","v":""},{"$f":"IF('1. Order'!O353=\"\",\"\",'1. Order'!O353)","v":{"$error":"#N/A"}},{"$f":"IF('1. Order'!P353=\"\",\"\",'1. Order'!P353)","v":{"$error":"#N/A"}},{"$f":"IF('1. Order'!Q353=\"\",\"\",'1. Order'!Q353)","v":""},{"$f":"IF('1. Order'!R353=\"\",\"\",'1. Order'!R353)","v":""},{"$f":"IF('1. Order'!S353=\"\",\"\",'1. Order'!S353)","v":""},{"$f":"IF('1. Order'!V353=\"\",\"\",'1. Order'!V353)","v":""},{"$f":"IF('1. Order'!W353=\"\",\"\",'1. Order'!W353)","v":""},{"$f":"IF('1. Order'!X353=\"\",\"\",'1. Order'!X353)","v":"EUR"},{"$f":"IF('1. Order'!Y353=\"\",\"\",'1. Order'!Y353)","v":""},{"$f":"IF('1. Order'!Z353=\"\",\"\",'1. Order'!Z353)","v":""},{"$f":"IF('1. Order'!AA353=\"\",\"\",'1. Order'!AA353)","v":""},null,{"$f":"IF('1. Order'!AS353=\"\",\"\",'1. Order'!AS353)","v":""},{"$f":"IF('1. Order'!AT353=\"\",\"\",'1. Order'!AT353)","v":""},null,null,null,null,null,null,null,{"$f":"IF('1. Order'!AX353=\"\",\"\",'1. Order'!AX353)","v":""},{"$f":"IF('1. Order'!AY353=\"\",\"\",'1. Order'!AY353)","v":""},{"$f":"IF('1. Order'!AZ353=\"\",\"\",'1. Order'!AZ353)","v":""},{"$f":"IF('1. Order'!BA353=\"\",\"\",'1. Order'!BA353)","v":""},{"$f":"IF('1. Order'!BC353=\"\",\"\",'1. Order'!BC353)","v":""},{"$f":"IF('1. Order'!BD353=\"\",\"\",'1. Order'!BD353)","v":6},{"$f":"IF('1. Order'!BE353=\"\",\"\",'1. Order'!BE353)","v":"None"},{"$f":"IF('1. Order'!BF353=\"\",\"\",'1. Order'!BF353)","v":"Parcel"},{"$f":"IF('1. Order'!BG353=\"\",\"\",'1. Order'!BG353)","v":"ZWO"}]
[{"$f":"IF('1. Order'!F354=\"\",\"\",'1. Order'!F354)","v":""},{"$f":"IF('1. Order'!G354=\"\",\"\",'1. Order'!G354)","v":""},{"$f":"IF('1. Order'!H354=\"\",\"\",'1. Order'!H354)","v":""},{"$f":"IF('1. Order'!I354=\"\",\"\",'1. Order'!I354)","v":""},{"$f":"IF('1. Order'!J354=\"\",\"\",'1. Order'!J354)","v":""},{"$f":"IF('1. Order'!K354=\"\",\"\",'1. Order'!K354)","v":""},{"$f":"IF('1. Order'!L354=\"\",\"\",'1. Order'!L354)","v":""},{"$f":"IF('1. Order'!M354=\"\",\"\",'1. Order'!M354)","v":""},{"$f":"IF('1. Order'!N354=\"\",\"\",'1. Order'!N354)","v":""},{"$f":"IF('1. Order'!O354=\"\",\"\",'1. Order'!O354)","v":{"$error":"#N/A"}},{"$f":"IF('1. Order'!P354=\"\",\"\",'1. Order'!P354)","v":{"$error":"#N/A"}},{"$f":"IF('1. Order'!Q354=\"\",\"\",'1. Order'!Q354)","v":""},{"$f":"IF('1. Order'!R354=\"\",\"\",'1. Order'!R354)","v":""},{"$f":"IF('1. Order'!S354=\"\",\"\",'1. Order'!S354)","v":""},{"$f":"IF('1. Order'!V354=\"\",\"\",'1. Order'!V354)","v":""},{"$f":"IF('1. Order'!W354=\"\",\"\",'1. Order'!W354)","v":""},{"$f":"IF('1. Order'!X354=\"\",\"\",'1. Order'!X354)","v":"EUR"},{"$f":"IF('1. Order'!Y354=\"\",\"\",'1. Order'!Y354)","v":""},{"$f":"IF('1. Order'!Z354=\"\",\"\",'1. Order'!Z354)","v":""},{"$f":"IF('1. Order'!AA354=\"\",\"\",'1. Order'!AA354)","v":""},null,{"$f":"IF('1. Order'!AS354=\"\",\"\",'1. Order'!AS354)","v":""},{"$f":"IF('1. Order'!AT354=\"\",\"\",'1. Order'!AT354)","v":""},null,null,null,null,null,null,null,{"$f":"IF('1. Order'!AX354=\"\",\"\",'1. Order'!AX354)","v":""},{"$f":"IF('1. Order'!AY354=\"\",\"\",'1. Order'!AY354)","v":""},{"$f":"IF('1. Order'!AZ354=\"\",\"\",'1. Order'!AZ354)","v":""},{"$f":"IF('1. Order'!BA354=\"\",\"\",'1. Order'!BA354)","v":""},{"$f":"IF('1. Order'!BC354=\"\",\"\",'1. Order'!BC354)","v":""},{"$f":"IF('1. Order'!BD354=\"\",\"\",'1. Order'!BD354)","v":6},{"$f":"IF('1. Order'!BE354=\"\",\"\",'1. Order'!BE354)","v":"None"},{"$f":"IF('1. Order'!BF354=\"\",\"\",'1. Order'!BF354)","v":"Parcel"},{"$f":"IF('1. Order'!BG354=\"\",\"\",'1. Order'!BG354)","v":"ZWO"}]
[{"$f":"IF('1. Order'!F355=\"\",\"\",'1. Order'!F355)","v":""},{"$f":"IF('1. Order'!G355=\"\",\"\",'1. Order'!G355)","v":""},{"$f":"IF('1. Order'!H355=\"\",\"\",'1. Order'!H355)","v":""},{"$f":"IF('1. Order'!I355=\"\",\"\",'1. Order'!I355)","v":""},{"$f":"IF('1. Order'!J355=\"\",\"\",'1. Order'!J355)","v":""},{"$f":"IF('1. Order'!K355=\"\",\"\",'1. Order'!K355)","v":""},{"$f":"IF('1. Order'!L355=\"\",\"\",'1. Order'!L355)","v":""},{"$f":"IF('1. Order'!M355=\"\",\"\",'1. Order'!M355)","v":""},{"$f":"IF('1. Order'!N355=\"\",\"\",'1. Order'!N355)","v":""},{"$f":"IF('1. Order'!O355=\"\",\"\",'1. Order'!O355)","v":{"$error":"#N/A"}},{"$f":"IF('1. Order'!P355=\"\",\"\",'1. Order'!P355)","v":{"$error":"#N/A"}},{"$f":"IF('1. Order'!Q355=\"\",\"\",'1. Order'!Q355)","v":""},{"$f":"IF('1. Order'!R355=\"\",\"\",'1. Order'!R355)","v":""},{"$f":"IF('1. Order'!S355=\"\",\"\",'1. Order'!S355)","v":""},{"$f":"IF('1. Order'!V355=\"\",\"\",'1. Order'!V355)","v":""},{"$f":"IF('1. Order'!W355=\"\",\"\",'1. Order'!W355)","v":""},{"$f":"IF('1. Order'!X355=\"\",\"\",'1. Order'!X355)","v":"EUR"},{"$f":"IF('1. Order'!Y355=\"\",\"\",'1. Order'!Y355)","v":""},{"$f":"IF('1. Order'!Z355=\"\",\"\",'1. Order'!Z355)","v":""},{"$f":"IF('1. Order'!AA355=\"\",\"\",'1. Order'!AA355)","v":""},null,{"$f":"IF('1. Order'!AS355=\"\",\"\",'1. Order'!AS355)","v":""},{"$f":"IF('1. Order'!AT355=\"\",\"\",'1. Order'!AT355)","v":""},null,null,null,null,null,null,null,{"$f":"IF('1. Order'!AX355=\"\",\"\",'1. Order'!AX355)","v":""},{"$f":"IF('1. Order'!AY355=\"\",\"\",'1. Order'!AY355)","v":""},{"$f":"IF('1. Order'!AZ355=\"\",\"\",'1. Order'!AZ355)","v":""},{"$f":"IF('1. Order'!BA355=\"\",\"\",'1. Order'!BA355)","v":""},{"$f":"IF('1. Order'!BC355=\"\",\"\",'1. Order'!BC355)","v":""},{"$f":"IF('1. Order'!BD355=\"\",\"\",'1. Order'!BD355)","v":6},{"$f":"IF('1. Order'!BE355=\"\",\"\",'1. Order'!BE355)","v":"None"},{"$f":"IF('1. Order'!BF355=\"\",\"\",'1. Order'!BF355)","v":"Parcel"},{"$f":"IF('1. Order'!BG355=\"\",\"\",'1. Order'!BG355)","v":"ZWO"}]
[{"$f":"IF('1. Order'!F356=\"\",\"\",'1. Order'!F356)","v":""},{"$f":"IF('1. Order'!G356=\"\",\"\",'1. Order'!G356)","v":""},{"$f":"IF('1. Order'!H356=\"\",\"\",'1. Order'!H356)","v":""},{"$f":"IF('1. Order'!I356=\"\",\"\",'1. Order'!I356)","v":""},{"$f":"IF('1. Order'!J356=\"\",\"\",'1. Order'!J356)","v":""},{"$f":"IF('1. Order'!K356=\"\",\"\",'1. Order'!K356)","v":""},{"$f":"IF('1. Order'!L356=\"\",\"\",'1. Order'!L356)","v":""},{"$f":"IF('1. Order'!M356=\"\",\"\",'1. Order'!M356)","v":""},{"$f":"IF('1. Order'!N356=\"\",\"\",'1. Order'!N356)","v":""},{"$f":"IF('1. Order'!O356=\"\",\"\",'1. Order'!O356)","v":{"$error":"#N/A"}},{"$f":"IF('1. Order'!P356=\"\",\"\",'1. Order'!P356)","v":{"$error":"#N/A"}},{"$f":"IF('1. Order'!Q356=\"\",\"\",'1. Order'!Q356)","v":""},{"$f":"IF('1. Order'!R356=\"\",\"\",'1. Order'!R356)","v":""},{"$f":"IF('1. Order'!S356=\"\",\"\",'1. Order'!S356)","v":""},{"$f":"IF('1. Order'!V356=\"\",\"\",'1. Order'!V356)","v":""},{"$f":"IF('1. Order'!W356=\"\",\"\",'1. Order'!W356)","v":""},{"$f":"IF('1. Order'!X356=\"\",\"\",'1. Order'!X356)","v":"EUR"},{"$f":"IF('1. Order'!Y356=\"\",\"\",'1. Order'!Y356)","v":""},{"$f":"IF('1. Order'!Z356=\"\",\"\",'1. Order'!Z356)","v":""},{"$f":"IF('1. Order'!AA356=\"\",\"\",'1. Order'!AA356)","v":""},null,{"$f":"IF('1. Order'!AS356=\"\",\"\",'1. Order'!AS356)","v":""},{"$f":"IF('1. Order'!AT356=\"\",\"\",'1. Order'!AT356)","v":""},null,null,null,null,null,null,null,{"$f":"IF('1. Order'!AX356=\"\",\"\",'1. Order'!AX356)","v":""},{"$f":"IF('1. Order'!AY356=\"\",\"\",'1. Order'!AY356)","v":""},{"$f":"IF('1. Order'!AZ356=\"\",\"\",'1. Order'!AZ356)","v":""},{"$f":"IF('1. Order'!BA356=\"\",\"\",'1. Order'!BA356)","v":""},{"$f":"IF('1. Order'!BC356=\"\",\"\",'1. Order'!BC356)","v":""},{"$f":"IF('1. Order'!BD356=\"\",\"\",'1. Order'!BD356)","v":6},{"$f":"IF('1. Order'!BE356=\"\",\"\",'1. Order'!BE356)","v":"None"},{"$f":"IF('1. Order'!BF356=\"\",\"\",'1. Order'!BF356)","v":"Parcel"},{"$f":"IF('1. Order'!BG356=\"\",\"\",'1. Order'!BG356)","v":"ZWO"}]
[{"$f":"IF('1. Order'!F357=\"\",\"\",'1. Order'!F357)","v":""},{"$f":"IF('1. Order'!G357=\"\",\"\",'1. Order'!G357)","v":""},{"$f":"IF('1. Order'!H357=\"\",\"\",'1. Order'!H357)","v":""},{"$f":"IF('1. Order'!I357=\"\",\"\",'1. Order'!I357)","v":""},{"$f":"IF('1. Order'!J357=\"\",\"\",'1. Order'!J357)","v":""},{"$f":"IF('1. Order'!K357=\"\",\"\",'1. Order'!K357)","v":""},{"$f":"IF('1. Order'!L357=\"\",\"\",'1. Order'!L357)","v":""},{"$f":"IF('1. Order'!M357=\"\",\"\",'1. Order'!M357)","v":""},{"$f":"IF('1. Order'!N357=\"\",\"\",'1. Order'!N357)","v":""},{"$f":"IF('1. Order'!O357=\"\",\"\",'1. Order'!O357)","v":{"$error":"#N/A"}},{"$f":"IF('1. Order'!P357=\"\",\"\",'1. Order'!P357)","v":{"$error":"#N/A"}},{"$f":"IF('1. Order'!Q357=\"\",\"\",'1. Order'!Q357)","v":""},{"$f":"IF('1. Order'!R357=\"\",\"\",'1. Order'!R357)","v":""},{"$f":"IF('1. Order'!S357=\"\",\"\",'1. Order'!S357)","v":""},{"$f":"IF('1. Order'!V357=\"\",\"\",'1. Order'!V357)","v":""},{"$f":"IF('1. Order'!W357=\"\",\"\",'1. Order'!W357)","v":""},{"$f":"IF('1. Order'!X357=\"\",\"\",'1. Order'!X357)","v":"EUR"},{"$f":"IF('1. Order'!Y357=\"\",\"\",'1. Order'!Y357)","v":""},{"$f":"IF('1. Order'!Z357=\"\",\"\",'1. Order'!Z357)","v":""},{"$f":"IF('1. Order'!AA357=\"\",\"\",'1. Order'!AA357)","v":""},null,{"$f":"IF('1. Order'!AS357=\"\",\"\",'1. Order'!AS357)","v":""},{"$f":"IF('1. Order'!AT357=\"\",\"\",'1. Order'!AT357)","v":""},null,null,null,null,null,null,null,{"$f":"IF('1. Order'!AX357=\"\",\"\",'1. Order'!AX357)","v":""},{"$f":"IF('1. Order'!AY357=\"\",\"\",'1. Order'!AY357)","v":""},{"$f":"IF('1. Order'!AZ357=\"\",\"\",'1. Order'!AZ357)","v":""},{"$f":"IF('1. Order'!BA357=\"\",\"\",'1. Order'!BA357)","v":""},{"$f":"IF('1. Order'!BC357=\"\",\"\",'1. Order'!BC357)","v":""},{"$f":"IF('1. Order'!BD357=\"\",\"\",'1. Order'!BD357)","v":6},{"$f":"IF('1. Order'!BE357=\"\",\"\",'1. Order'!BE357)","v":"None"},{"$f":"IF('1. Order'!BF357=\"\",\"\",'1. Order'!BF357)","v":"Parcel"},{"$f":"IF('1. Order'!BG357=\"\",\"\",'1. Order'!BG357)","v":"ZWO"}]
[{"$f":"IF('1. Order'!F358=\"\",\"\",'1. Order'!F358)","v":""},{"$f":"IF('1. Order'!G358=\"\",\"\",'1. Order'!G358)","v":""},{"$f":"IF('1. Order'!H358=\"\",\"\",'1. Order'!H358)","v":""},{"$f":"IF('1. Order'!I358=\"\",\"\",'1. Order'!I358)","v":""},{"$f":"IF('1. Order'!J358=\"\",\"\",'1. Order'!J358)","v":""},{"$f":"IF('1. Order'!K358=\"\",\"\",'1. Order'!K358)","v":""},{"$f":"IF('1. Order'!L358=\"\",\"\",'1. Order'!L358)","v":""},{"$f":"IF('1. Order'!M358=\"\",\"\",'1. Order'!M358)","v":""},{"$f":"IF('1. Order'!N358=\"\",\"\",'1. Order'!N358)","v":""},{"$f":"IF('1. Order'!O358=\"\",\"\",'1. Order'!O358)","v":{"$error":"#N/A"}},{"$f":"IF('1. Order'!P358=\"\",\"\",'1. Order'!P358)","v":{"$error":"#N/A"}},{"$f":"IF('1. Order'!Q358=\"\",\"\",'1. Order'!Q358)","v":""},{"$f":"IF('1. Order'!R358=\"\",\"\",'1. Order'!R358)","v":""},{"$f":"IF('1. Order'!S358=\"\",\"\",'1. Order'!S358)","v":""},{"$f":"IF('1. Order'!V358=\"\",\"\",'1. Order'!V358)","v":""},{"$f":"IF('1. Order'!W358=\"\",\"\",'1. Order'!W358)","v":""},{"$f":"IF('1. Order'!X358=\"\",\"\",'1. Order'!X358)","v":"EUR"},{"$f":"IF('1. Order'!Y358=\"\",\"\",'1. Order'!Y358)","v":""},{"$f":"IF('1. Order'!Z358=\"\",\"\",'1. Order'!Z358)","v":""},{"$f":"IF('1. Order'!AA358=\"\",\"\",'1. Order'!AA358)","v":""},null,{"$f":"IF('1. Order'!AS358=\"\",\"\",'1. Order'!AS358)","v":""},{"$f":"IF('1. Order'!AT358=\"\",\"\",'1. Order'!AT358)","v":""},null,null,null,null,null,null,null,{"$f":"IF('1. Order'!AX358=\"\",\"\",'1. Order'!AX358)","v":""},{"$f":"IF('1. Order'!AY358=\"\",\"\",'1. Order'!AY358)","v":""},{"$f":"IF('1. Order'!AZ358=\"\",\"\",'1. Order'!AZ358)","v":""},{"$f":"IF('1. Order'!BA358=\"\",\"\",'1. Order'!BA358)","v":""},{"$f":"IF('1. Order'!BC358=\"\",\"\",'1. Order'!BC358)","v":""},{"$f":"IF('1. Order'!BD358=\"\",\"\",'1. Order'!BD358)","v":6},{"$f":"IF('1. Order'!BE358=\"\",\"\",'1. Order'!BE358)","v":"None"},{"$f":"IF('1. Order'!BF358=\"\",\"\",'1. Order'!BF358)","v":"Parcel"},{"$f":"IF('1. Order'!BG358=\"\",\"\",'1. Order'!BG358)","v":"ZWO"}]
[{"$f":"IF('1. Order'!F359=\"\",\"\",'1. Order'!F359)","v":""},{"$f":"IF('1. Order'!G359=\"\",\"\",'1. Order'!G359)","v":""},{"$f":"IF('1. Order'!H359=\"\",\"\",'1. Order'!H359)","v":""},{"$f":"IF('1. Order'!I359=\"\",\"\",'1. Order'!I359)","v":""},{"$f":"IF('1. Order'!J359=\"\",\"\",'1. Order'!J359)","v":""},{"$f":"IF('1. Order'!K359=\"\",\"\",'1. Order'!K359)","v":""},{"$f":"IF('1. Order'!L359=\"\",\"\",'1. Order'!L359)","v":""},{"$f":"IF('1. Order'!M359=\"\",\"\",'1. Order'!M359)","v":""},{"$f":"IF('1. Order'!N359=\"\",\"\",'1. Order'!N359)","v":""},{"$f":"IF('1. Order'!O359=\"\",\"\",'1. Order'!O359)","v":{"$error":"#N/A"}},{"$f":"IF('1. Order'!P359=\"\",\"\",'1. Order'!P359)","v":{"$error":"#N/A"}},{"$f":"IF('1. Order'!Q359=\"\",\"\",'1. Order'!Q359)","v":""},{"$f":"IF('1. Order'!R359=\"\",\"\",'1. Order'!R359)","v":""},{"$f":"IF('1. Order'!S359=\"\",\"\",'1. Order'!S359)","v":""},{"$f":"IF('1. Order'!V359=\"\",\"\",'1. Order'!V359)","v":""},{"$f":"IF('1. Order'!W359=\"\",\"\",'1. Order'!W359)","v":""},{"$f":"IF('1. Order'!X359=\"\",\"\",'1. Order'!X359)","v":"EUR"},{"$f":"IF('1. Order'!Y359=\"\",\"\",'1. Order'!Y359)","v":""},{"$f":"IF('1. Order'!Z359=\"\",\"\",'1. Order'!Z359)","v":""},{"$f":"IF('1. Order'!AA359=\"\",\"\",'1. Order'!AA359)","v":""},null,{"$f":"IF('1. Order'!AS359=\"\",\"\",'1. Order'!AS359)","v":""},{"$f":"IF('1. Order'!AT359=\"\",\"\",'1. Order'!AT359)","v":""},null,null,null,null,null,null,null,{"$f":"IF('1. Order'!AX359=\"\",\"\",'1. Order'!AX359)","v":""},{"$f":"IF('1. Order'!AY359=\"\",\"\",'1. Order'!AY359)","v":""},{"$f":"IF('1. Order'!AZ359=\"\",\"\",'1. Order'!AZ359)","v":""},{"$f":"IF('1. Order'!BA359=\"\",\"\",'1. Order'!BA359)","v":""},{"$f":"IF('1. Order'!BC359=\"\",\"\",'1. Order'!BC359)","v":""},{"$f":"IF('1. Order'!BD359=\"\",\"\",'1. Order'!BD359)","v":6},{"$f":"IF('1. Order'!BE359=\"\",\"\",'1. Order'!BE359)","v":"None"},{"$f":"IF('1. Order'!BF359=\"\",\"\",'1. Order'!BF359)","v":"Parcel"},{"$f":"IF('1. Order'!BG359=\"\",\"\",'1. Order'!BG359)","v":"ZWO"}]
[{"$f":"IF('1. Order'!F360=\"\",\"\",'1. Order'!F360)","v":""},{"$f":"IF('1. Order'!G360=\"\",\"\",'1. Order'!G360)","v":""},{"$f":"IF('1. Order'!H360=\"\",\"\",'1. Order'!H360)","v":""},{"$f":"IF('1. Order'!I360=\"\",\"\",'1. Order'!I360)","v":""},{"$f":"IF('1. Order'!J360=\"\",\"\",'1. Order'!J360)","v":""},{"$f":"IF('1. Order'!K360=\"\",\"\",'1. Order'!K360)","v":""},{"$f":"IF('1. Order'!L360=\"\",\"\",'1. Order'!L360)","v":""},{"$f":"IF('1. Order'!M360=\"\",\"\",'1. Order'!M360)","v":""},{"$f":"IF('1. Order'!N360=\"\",\"\",'1. Order'!N360)","v":""},{"$f":"IF('1. Order'!O360=\"\",\"\",'1. Order'!O360)","v":{"$error":"#N/A"}},{"$f":"IF('1. Order'!P360=\"\",\"\",'1. Order'!P360)","v":{"$error":"#N/A"}},{"$f":"IF('1. Order'!Q360=\"\",\"\",'1. Order'!Q360)","v":""},{"$f":"IF('1. Order'!R360=\"\",\"\",'1. Order'!R360)","v":""},{"$f":"IF('1. Order'!S360=\"\",\"\",'1. Order'!S360)","v":""},{"$f":"IF('1. Order'!V360=\"\",\"\",'1. Order'!V360)","v":""},{"$f":"IF('1. Order'!W360=\"\",\"\",'1. Order'!W360)","v":""},{"$f":"IF('1. Order'!X360=\"\",\"\",'1. Order'!X360)","v":"EUR"},{"$f":"IF('1. Order'!Y360=\"\",\"\",'1. Order'!Y360)","v":""},{"$f":"IF('1. Order'!Z360=\"\",\"\",'1. Order'!Z360)","v":""},{"$f":"IF('1. Order'!AA360=\"\",\"\",'1. Order'!AA360)","v":""},null,{"$f":"IF('1. Order'!AS360=\"\",\"\",'1. Order'!AS360)","v":""},{"$f":"IF('1. Order'!AT360=\"\",\"\",'1. Order'!AT360)","v":""},null,null,null,null,null,null,null,{"$f":"IF('1. Order'!AX360=\"\",\"\",'1. Order'!AX360)","v":""},{"$f":"IF('1. Order'!AY360=\"\",\"\",'1. Order'!AY360)","v":""},{"$f":"IF('1. Order'!AZ360=\"\",\"\",'1. Order'!AZ360)","v":""},{"$f":"IF('1. Order'!BA360=\"\",\"\",'1. Order'!BA360)","v":""},{"$f":"IF('1. Order'!BC360=\"\",\"\",'1. Order'!BC360)","v":""},{"$f":"IF('1. Order'!BD360=\"\",\"\",'1. Order'!BD360)","v":6},{"$f":"IF('1. Order'!BE360=\"\",\"\",'1. Order'!BE360)","v":"None"},{"$f":"IF('1. Order'!BF360=\"\",\"\",'1. Order'!BF360)","v":"Parcel"},{"$f":"IF('1. Order'!BG360=\"\",\"\",'1. Order'!BG360)","v":"ZWO"}]
[{"$f":"IF('1. Order'!F361=\"\",\"\",'1. Order'!F361)","v":""},{"$f":"IF('1. Order'!G361=\"\",\"\",'1. Order'!G361)","v":""},{"$f":"IF('1. Order'!H361=\"\",\"\",'1. Order'!H361)","v":""},{"$f":"IF('1. Order'!I361=\"\",\"\",'1. Order'!I361)","v":""},{"$f":"IF('1. Order'!J361=\"\",\"\",'1. Order'!J361)","v":""},{"$f":"IF('1. Order'!K361=\"\",\"\",'1. Order'!K361)","v":""},{"$f":"IF('1. Order'!L361=\"\",\"\",'1. Order'!L361)","v":""},{"$f":"IF('1. Order'!M361=\"\",\"\",'1. Order'!M361)","v":""},{"$f":"IF('1. Order'!N361=\"\",\"\",'1. Order'!N361)","v":""},{"$f":"IF('1. Order'!O361=\"\",\"\",'1. Order'!O361)","v":{"$error":"#N/A"}},{"$f":"IF('1. Order'!P361=\"\",\"\",'1. Order'!P361)","v":{"$error":"#N/A"}},{"$f":"IF('1. Order'!Q361=\"\",\"\",'1. Order'!Q361)","v":""},{"$f":"IF('1. Order'!R361=\"\",\"\",'1. Order'!R361)","v":""},{"$f":"IF('1. Order'!S361=\"\",\"\",'1. Order'!S361)","v":""},{"$f":"IF('1. Order'!V361=\"\",\"\",'1. Order'!V361)","v":""},{"$f":"IF('1. Order'!W361=\"\",\"\",'1. Order'!W361)","v":""},{"$f":"IF('1. Order'!X361=\"\",\"\",'1. Order'!X361)","v":"EUR"},{"$f":"IF('1. Order'!Y361=\"\",\"\",'1. Order'!Y361)","v":""},{"$f":"IF('1. Order'!Z361=\"\",\"\",'1. Order'!Z361)","v":""},{"$f":"IF('1. Order'!AA361=\"\",\"\",'1. Order'!AA361)","v":""},null,{"$f":"IF('1. Order'!AS361=\"\",\"\",'1. Order'!AS361)","v":""},{"$f":"IF('1. Order'!AT361=\"\",\"\",'1. Order'!AT361)","v":""},null,null,null,null,null,null,null,{"$f":"IF('1. Order'!AX361=\"\",\"\",'1. Order'!AX361)","v":""},{"$f":"IF('1. Order'!AY361=\"\",\"\",'1. Order'!AY361)","v":""},{"$f":"IF('1. Order'!AZ361=\"\",\"\",'1. Order'!AZ361)","v":""},{"$f":"IF('1. Order'!BA361=\"\",\"\",'1. Order'!BA361)","v":""},{"$f":"IF('1. Order'!BC361=\"\",\"\",'1. Order'!BC361)","v":""},{"$f":"IF('1. Order'!BD361=\"\",\"\",'1. Order'!BD361)","v":6},{"$f":"IF('1. Order'!BE361=\"\",\"\",'1. Order'!BE361)","v":"None"},{"$f":"IF('1. Order'!BF361=\"\",\"\",'1. Order'!BF361)","v":"Parcel"},{"$f":"IF('1. Order'!BG361=\"\",\"\",'1. Order'!BG361)","v":"ZWO"}]
[{"$f":"IF('1. Order'!F362=\"\",\"\",'1. Order'!F362)","v":""},{"$f":"IF('1. Order'!G362=\"\",\"\",'1. Order'!G362)","v":""},{"$f":"IF('1. Order'!H362=\"\",\"\",'1. Order'!H362)","v":""},{"$f":"IF('1. Order'!I362=\"\",\"\",'1. Order'!I362)","v":""},{"$f":"IF('1. Order'!J362=\"\",\"\",'1. Order'!J362)","v":""},{"$f":"IF('1. Order'!K362=\"\",\"\",'1. Order'!K362)","v":""},{"$f":"IF('1. Order'!L362=\"\",\"\",'1. Order'!L362)","v":""},{"$f":"IF('1. Order'!M362=\"\",\"\",'1. Order'!M362)","v":""},{"$f":"IF('1. Order'!N362=\"\",\"\",'1. Order'!N362)","v":""},{"$f":"IF('1. Order'!O362=\"\",\"\",'1. Order'!O362)","v":{"$error":"#N/A"}},{"$f":"IF('1. Order'!P362=\"\",\"\",'1. Order'!P362)","v":{"$error":"#N/A"}},{"$f":"IF('1. Order'!Q362=\"\",\"\",'1. Order'!Q362)","v":""},{"$f":"IF('1. Order'!R362=\"\",\"\",'1. Order'!R362)","v":""},{"$f":"IF('1. Order'!S362=\"\",\"\",'1. Order'!S362)","v":""},{"$f":"IF('1. Order'!V362=\"\",\"\",'1. Order'!V362)","v":""},{"$f":"IF('1. Order'!W362=\"\",\"\",'1. Order'!W362)","v":""},{"$f":"IF('1. Order'!X362=\"\",\"\",'1. Order'!X362)","v":"EUR"},{"$f":"IF('1. Order'!Y362=\"\",\"\",'1. Order'!Y362)","v":""},{"$f":"IF('1. Order'!Z362=\"\",\"\",'1. Order'!Z362)","v":""},{"$f":"IF('1. Order'!AA362=\"\",\"\",'1. Order'!AA362)","v":""},null,{"$f":"IF('1. Order'!AS362=\"\",\"\",'1. Order'!AS362)","v":""},{"$f":"IF('1. Order'!AT362=\"\",\"\",'1. Order'!AT362)","v":""},null,null,null,null,null,null,null,{"$f":"IF('1. Order'!AX362=\"\",\"\",'1. Order'!AX362)","v":""},{"$f":"IF('1. Order'!AY362=\"\",\"\",'1. Order'!AY362)","v":""},{"$f":"IF('1. Order'!AZ362=\"\",\"\",'1. Order'!AZ362)","v":""},{"$f":"IF('1. Order'!BA362=\"\",\"\",'1. Order'!BA362)","v":""},{"$f":"IF('1. Order'!BC362=\"\",\"\",'1. Order'!BC362)","v":""},{"$f":"IF('1. Order'!BD362=\"\",\"\",'1. Order'!BD362)","v":6},{"$f":"IF('1. Order'!BE362=\"\",\"\",'1. Order'!BE362)","v":"None"},{"$f":"IF('1. Order'!BF362=\"\",\"\",'1. Order'!BF362)","v":"Parcel"},{"$f":"IF('1. Order'!BG362=\"\",\"\",'1. Order'!BG362)","v":"ZWO"}]
[{"$f":"IF('1. Order'!F363=\"\",\"\",'1. Order'!F363)","v":""},{"$f":"IF('1. Order'!G363=\"\",\"\",'1. Order'!G363)","v":""},{"$f":"IF('1. Order'!H363=\"\",\"\",'1. Order'!H363)","v":""},{"$f":"IF('1. Order'!I363=\"\",\"\",'1. Order'!I363)","v":""},{"$f":"IF('1. Order'!J363=\"\",\"\",'1. Order'!J363)","v":""},{"$f":"IF('1. Order'!K363=\"\",\"\",'1. Order'!K363)","v":""},{"$f":"IF('1. Order'!L363=\"\",\"\",'1. Order'!L363)","v":""},{"$f":"IF('1. Order'!M363=\"\",\"\",'1. Order'!M363)","v":""},{"$f":"IF('1. Order'!N363=\"\",\"\",'1. Order'!N363)","v":""},{"$f":"IF('1. Order'!O363=\"\",\"\",'1. Order'!O363)","v":{"$error":"#N/A"}},{"$f":"IF('1. Order'!P363=\"\",\"\",'1. Order'!P363)","v":{"$error":"#N/A"}},{"$f":"IF('1. Order'!Q363=\"\",\"\",'1. Order'!Q363)","v":""},{"$f":"IF('1. Order'!R363=\"\",\"\",'1. Order'!R363)","v":""},{"$f":"IF('1. Order'!S363=\"\",\"\",'1. Order'!S363)","v":""},{"$f":"IF('1. Order'!V363=\"\",\"\",'1. Order'!V363)","v":""},{"$f":"IF('1. Order'!W363=\"\",\"\",'1. Order'!W363)","v":""},{"$f":"IF('1. Order'!X363=\"\",\"\",'1. Order'!X363)","v":"EUR"},{"$f":"IF('1. Order'!Y363=\"\",\"\",'1. Order'!Y363)","v":""},{"$f":"IF('1. Order'!Z363=\"\",\"\",'1. Order'!Z363)","v":""},{"$f":"IF('1. Order'!AA363=\"\",\"\",'1. Order'!AA363)","v":""},null,{"$f":"IF('1. Order'!AS363=\"\",\"\",'1. Order'!AS363)","v":""},{"$f":"IF('1. Order'!AT363=\"\",\"\",'1. Order'!AT363)","v":""},null,null,null,null,null,null,null,{"$f":"IF('1. Order'!AX363=\"\",\"\",'1. Order'!AX363)","v":""},{"$f":"IF('1. Order'!AY363=\"\",\"\",'1. Order'!AY363)","v":""},{"$f":"IF('1. Order'!AZ363=\"\",\"\",'1. Order'!AZ363)","v":""},{"$f":"IF('1. Order'!BA363=\"\",\"\",'1. Order'!BA363)","v":""},{"$f":"IF('1. Order'!BC363=\"\",\"\",'1. Order'!BC363)","v":""},{"$f":"IF('1. Order'!BD363=\"\",\"\",'1. Order'!BD363)","v":6},{"$f":"IF('1. Order'!BE363=\"\",\"\",'1. Order'!BE363)","v":"None"},{"$f":"IF('1. Order'!BF363=\"\",\"\",'1. Order'!BF363)","v":"Parcel"},{"$f":"IF('1. Order'!BG363=\"\",\"\",'1. Order'!BG363)","v":"ZWO"}]
[{"$f":"IF('1. Order'!F364=\"\",\"\",'1. Order'!F364)","v":""},{"$f":"IF('1. Order'!G364=\"\",\"\",'1. Order'!G364)","v":""},{"$f":"IF('1. Order'!H364=\"\",\"\",'1. Order'!H364)","v":""},{"$f":"IF('1. Order'!I364=\"\",\"\",'1. Order'!I364)","v":""},{"$f":"IF('1. Order'!J364=\"\",\"\",'1. Order'!J364)","v":""},{"$f":"IF('1. Order'!K364=\"\",\"\",'1. Order'!K364)","v":""},{"$f":"IF('1. Order'!L364=\"\",\"\",'1. Order'!L364)","v":""},{"$f":"IF('1. Order'!M364=\"\",\"\",'1. Order'!M364)","v":""},{"$f":"IF('1. Order'!N364=\"\",\"\",'1. Order'!N364)","v":""},{"$f":"IF('1. Order'!O364=\"\",\"\",'1. Order'!O364)","v":{"$error":"#N/A"}},{"$f":"IF('1. Order'!P364=\"\",\"\",'1. Order'!P364)","v":{"$error":"#N/A"}},{"$f":"IF('1. Order'!Q364=\"\",\"\",'1. Order'!Q364)","v":""},{"$f":"IF('1. Order'!R364=\"\",\"\",'1. Order'!R364)","v":""},{"$f":"IF('1. Order'!S364=\"\",\"\",'1. Order'!S364)","v":""},{"$f":"IF('1. Order'!V364=\"\",\"\",'1. Order'!V364)","v":""},{"$f":"IF('1. Order'!W364=\"\",\"\",'1. Order'!W364)","v":""},{"$f":"IF('1. Order'!X364=\"\",\"\",'1. Order'!X364)","v":"EUR"},{"$f":"IF('1. Order'!Y364=\"\",\"\",'1. Order'!Y364)","v":""},{"$f":"IF('1. Order'!Z364=\"\",\"\",'1. Order'!Z364)","v":""},{"$f":"IF('1. Order'!AA364=\"\",\"\",'1. Order'!AA364)","v":""},null,{"$f":"IF('1. Order'!AS364=\"\",\"\",'1. Order'!AS364)","v":""},{"$f":"IF('1. Order'!AT364=\"\",\"\",'1. Order'!AT364)","v":""},null,null,null,null,null,null,null,{"$f":"IF('1. Order'!AX364=\"\",\"\",'1. Order'!AX364)","v":""},{"$f":"IF('1. Order'!AY364=\"\",\"\",'1. Order'!AY364)","v":""},{"$f":"IF('1. Order'!AZ364=\"\",\"\",'1. Order'!AZ364)","v":""},{"$f":"IF('1. Order'!BA364=\"\",\"\",'1. Order'!BA364)","v":""},{"$f":"IF('1. Order'!BC364=\"\",\"\",'1. Order'!BC364)","v":""},{"$f":"IF('1. Order'!BD364=\"\",\"\",'1. Order'!BD364)","v":6},{"$f":"IF('1. Order'!BE364=\"\",\"\",'1. Order'!BE364)","v":"None"},{"$f":"IF('1. Order'!BF364=\"\",\"\",'1. Order'!BF364)","v":"Parcel"},{"$f":"IF('1. Order'!BG364=\"\",\"\",'1. Order'!BG364)","v":"ZWO"}]
[{"$f":"IF('1. Order'!F365=\"\",\"\",'1. Order'!F365)","v":""},{"$f":"IF('1. Order'!G365=\"\",\"\",'1. Order'!G365)","v":""},{"$f":"IF('1. Order'!H365=\"\",\"\",'1. Order'!H365)","v":""},{"$f":"IF('1. Order'!I365=\"\",\"\",'1. Order'!I365)","v":""},{"$f":"IF('1. Order'!J365=\"\",\"\",'1. Order'!J365)","v":""},{"$f":"IF('1. Order'!K365=\"\",\"\",'1. Order'!K365)","v":""},{"$f":"IF('1. Order'!L365=\"\",\"\",'1. Order'!L365)","v":""},{"$f":"IF('1. Order'!M365=\"\",\"\",'1. Order'!M365)","v":""},{"$f":"IF('1. Order'!N365=\"\",\"\",'1. Order'!N365)","v":""},{"$f":"IF('1. Order'!O365=\"\",\"\",'1. Order'!O365)","v":{"$error":"#N/A"}},{"$f":"IF('1. Order'!P365=\"\",\"\",'1. Order'!P365)","v":{"$error":"#N/A"}},{"$f":"IF('1. Order'!Q365=\"\",\"\",'1. Order'!Q365)","v":""},{"$f":"IF('1. Order'!R365=\"\",\"\",'1. Order'!R365)","v":""},{"$f":"IF('1. Order'!S365=\"\",\"\",'1. Order'!S365)","v":""},{"$f":"IF('1. Order'!V365=\"\",\"\",'1. Order'!V365)","v":""},{"$f":"IF('1. Order'!W365=\"\",\"\",'1. Order'!W365)","v":""},{"$f":"IF('1. Order'!X365=\"\",\"\",'1. Order'!X365)","v":"EUR"},{"$f":"IF('1. Order'!Y365=\"\",\"\",'1. Order'!Y365)","v":""},{"$f":"IF('1. Order'!Z365=\"\",\"\",'1. Order'!Z365)","v":""},{"$f":"IF('1. Order'!AA365=\"\",\"\",'1. Order'!AA365)","v":""},null,{"$f":"IF('1. Order'!AS365=\"\",\"\",'1. Order'!AS365)","v":""},{"$f":"IF('1. Order'!AT365=\"\",\"\",'1. Order'!AT365)","v":""},null,null,null,null,null,null,null,{"$f":"IF('1. Order'!AX365=\"\",\"\",'1. Order'!AX365)","v":""},{"$f":"IF('1. Order'!AY365=\"\",\"\",'1. Order'!AY365)","v":""},{"$f":"IF('1. Order'!AZ365=\"\",\"\",'1. Order'!AZ365)","v":""},{"$f":"IF('1. Order'!BA365=\"\",\"\",'1. Order'!BA365)","v":""},{"$f":"IF('1. Order'!BC365=\"\",\"\",'1. Order'!BC365)","v":""},{"$f":"IF('1. Order'!BD365=\"\",\"\",'1. Order'!BD365)","v":6},{"$f":"IF('1. Order'!BE365=\"\",\"\",'1. Order'!BE365)","v":"None"},{"$f":"IF('1. Order'!BF365=\"\",\"\",'1. Order'!BF365)","v":"Parcel"},{"$f":"IF('1. Order'!BG365=\"\",\"\",'1. Order'!BG365)","v":"ZWO"}]
[{"$f":"IF('1. Order'!F366=\"\",\"\",'1. Order'!F366)","v":""},{"$f":"IF('1. Order'!G366=\"\",\"\",'1. Order'!G366)","v":""},{"$f":"IF('1. Order'!H366=\"\",\"\",'1. Order'!H366)","v":""},{"$f":"IF('1. Order'!I366=\"\",\"\",'1. Order'!I366)","v":""},{"$f":"IF('1. Order'!J366=\"\",\"\",'1. Order'!J366)","v":""},{"$f":"IF('1. Order'!K366=\"\",\"\",'1. Order'!K366)","v":""},{"$f":"IF('1. Order'!L366=\"\",\"\",'1. Order'!L366)","v":""},{"$f":"IF('1. Order'!M366=\"\",\"\",'1. Order'!M366)","v":""},{"$f":"IF('1. Order'!N366=\"\",\"\",'1. Order'!N366)","v":""},{"$f":"IF('1. Order'!O366=\"\",\"\",'1. Order'!O366)","v":{"$error":"#N/A"}},{"$f":"IF('1. Order'!P366=\"\",\"\",'1. Order'!P366)","v":{"$error":"#N/A"}},{"$f":"IF('1. Order'!Q366=\"\",\"\",'1. Order'!Q366)","v":""},{"$f":"IF('1. Order'!R366=\"\",\"\",'1. Order'!R366)","v":""},{"$f":"IF('1. Order'!S366=\"\",\"\",'1. Order'!S366)","v":""},{"$f":"IF('1. Order'!V366=\"\",\"\",'1. Order'!V366)","v":""},{"$f":"IF('1. Order'!W366=\"\",\"\",'1. Order'!W366)","v":""},{"$f":"IF('1. Order'!X366=\"\",\"\",'1. Order'!X366)","v":"EUR"},{"$f":"IF('1. Order'!Y366=\"\",\"\",'1. Order'!Y366)","v":""},{"$f":"IF('1. Order'!Z366=\"\",\"\",'1. Order'!Z366)","v":""},{"$f":"IF('1. Order'!AA366=\"\",\"\",'1. Order'!AA366)","v":""},null,{"$f":"IF('1. Order'!AS366=\"\",\"\",'1. Order'!AS366)","v":""},{"$f":"IF('1. Order'!AT366=\"\",\"\",'1. Order'!AT366)","v":""},null,null,null,null,null,null,null,{"$f":"IF('1. Order'!AX366=\"\",\"\",'1. Order'!AX366)","v":""},{"$f":"IF('1. Order'!AY366=\"\",\"\",'1. Order'!AY366)","v":""},{"$f":"IF('1. Order'!AZ366=\"\",\"\",'1. Order'!AZ366)","v":""},{"$f":"IF('1. Order'!BA366=\"\",\"\",'1. Order'!BA366)","v":""},{"$f":"IF('1. Order'!BC366=\"\",\"\",'1. Order'!BC366)","v":""},{"$f":"IF('1. Order'!BD366=\"\",\"\",'1. Order'!BD366)","v":6},{"$f":"IF('1. Order'!BE366=\"\",\"\",'1. Order'!BE366)","v":"None"},{"$f":"IF('1. Order'!BF366=\"\",\"\",'1. Order'!BF366)","v":"Parcel"},{"$f":"IF('1. Order'!BG366=\"\",\"\",'1. Order'!BG366)","v":"ZWO"}]
[{"$f":"IF('1. Order'!F367=\"\",\"\",'1. Order'!F367)","v":""},{"$f":"IF('1. Order'!G367=\"\",\"\",'1. Order'!G367)","v":""},{"$f":"IF('1. Order'!H367=\"\",\"\",'1. Order'!H367)","v":""},{"$f":"IF('1. Order'!I367=\"\",\"\",'1. Order'!I367)","v":""},{"$f":"IF('1. Order'!J367=\"\",\"\",'1. Order'!J367)","v":""},{"$f":"IF('1. Order'!K367=\"\",\"\",'1. Order'!K367)","v":""},{"$f":"IF('1. Order'!L367=\"\",\"\",'1. Order'!L367)","v":""},{"$f":"IF('1. Order'!M367=\"\",\"\",'1. Order'!M367)","v":""},{"$f":"IF('1. Order'!N367=\"\",\"\",'1. Order'!N367)","v":""},{"$f":"IF('1. Order'!O367=\"\",\"\",'1. Order'!O367)","v":{"$error":"#N/A"}},{"$f":"IF('1. Order'!P367=\"\",\"\",'1. Order'!P367)","v":{"$error":"#N/A"}},{"$f":"IF('1. Order'!Q367=\"\",\"\",'1. Order'!Q367)","v":""},{"$f":"IF('1. Order'!R367=\"\",\"\",'1. Order'!R367)","v":""},{"$f":"IF('1. Order'!S367=\"\",\"\",'1. Order'!S367)","v":""},{"$f":"IF('1. Order'!V367=\"\",\"\",'1. Order'!V367)","v":""},{"$f":"IF('1. Order'!W367=\"\",\"\",'1. Order'!W367)","v":""},{"$f":"IF('1. Order'!X367=\"\",\"\",'1. Order'!X367)","v":"EUR"},{"$f":"IF('1. Order'!Y367=\"\",\"\",'1. Order'!Y367)","v":""},{"$f":"IF('1. Order'!Z367=\"\",\"\",'1. Order'!Z367)","v":""},{"$f":"IF('1. Order'!AA367=\"\",\"\",'1. Order'!AA367)","v":""},null,{"$f":"IF('1. Order'!AS367=\"\",\"\",'1. Order'!AS367)","v":""},{"$f":"IF('1. Order'!AT367=\"\",\"\",'1. Order'!AT367)","v":""},null,null,null,null,null,null,null,{"$f":"IF('1. Order'!AX367=\"\",\"\",'1. Order'!AX367)","v":""},{"$f":"IF('1. Order'!AY367=\"\",\"\",'1. Order'!AY367)","v":""},{"$f":"IF('1. Order'!AZ367=\"\",\"\",'1. Order'!AZ367)","v":""},{"$f":"IF('1. Order'!BA367=\"\",\"\",'1. Order'!BA367)","v":""},{"$f":"IF('1. Order'!BC367=\"\",\"\",'1. Order'!BC367)","v":""},{"$f":"IF('1. Order'!BD367=\"\",\"\",'1. Order'!BD367)","v":6},{"$f":"IF('1. Order'!BE367=\"\",\"\",'1. Order'!BE367)","v":"None"},{"$f":"IF('1. Order'!BF367=\"\",\"\",'1. Order'!BF367)","v":"Parcel"},{"$f":"IF('1. Order'!BG367=\"\",\"\",'1. Order'!BG367)","v":"ZWO"}]
[{"$f":"IF('1. Order'!F368=\"\",\"\",'1. Order'!F368)","v":""},{"$f":"IF('1. Order'!G368=\"\",\"\",'1. Order'!G368)","v":""},{"$f":"IF('1. Order'!H368=\"\",\"\",'1. Order'!H368)","v":""},{"$f":"IF('1. Order'!I368=\"\",\"\",'1. Order'!I368)","v":""},{"$f":"IF('1. Order'!J368=\"\",\"\",'1. Order'!J368)","v":""},{"$f":"IF('1. Order'!K368=\"\",\"\",'1. Order'!K368)","v":""},{"$f":"IF('1. Order'!L368=\"\",\"\",'1. Order'!L368)","v":""},{"$f":"IF('1. Order'!M368=\"\",\"\",'1. Order'!M368)","v":""},{"$f":"IF('1. Order'!N368=\"\",\"\",'1. Order'!N368)","v":""},{"$f":"IF('1. Order'!O368=\"\",\"\",'1. Order'!O368)","v":{"$error":"#N/A"}},{"$f":"IF('1. Order'!P368=\"\",\"\",'1. Order'!P368)","v":{"$error":"#N/A"}},{"$f":"IF('1. Order'!Q368=\"\",\"\",'1. Order'!Q368)","v":""},{"$f":"IF('1. Order'!R368=\"\",\"\",'1. Order'!R368)","v":""},{"$f":"IF('1. Order'!S368=\"\",\"\",'1. Order'!S368)","v":""},{"$f":"IF('1. Order'!V368=\"\",\"\",'1. Order'!V368)","v":""},{"$f":"IF('1. Order'!W368=\"\",\"\",'1. Order'!W368)","v":""},{"$f":"IF('1. Order'!X368=\"\",\"\",'1. Order'!X368)","v":"EUR"},{"$f":"IF('1. Order'!Y368=\"\",\"\",'1. Order'!Y368)","v":""},{"$f":"IF('1. Order'!Z368=\"\",\"\",'1. Order'!Z368)","v":""},{"$f":"IF('1. Order'!AA368=\"\",\"\",'1. Order'!AA368)","v":""},null,{"$f":"IF('1. Order'!AS368=\"\",\"\",'1. Order'!AS368)","v":""},{"$f":"IF('1. Order'!AT368=\"\",\"\",'1. Order'!AT368)","v":""},null,null,null,null,null,null,null,{"$f":"IF('1. Order'!AX368=\"\",\"\",'1. Order'!AX368)","v":""},{"$f":"IF('1. Order'!AY368=\"\",\"\",'1. Order'!AY368)","v":""},{"$f":"IF('1. Order'!AZ368=\"\",\"\",'1. Order'!AZ368)","v":""},{"$f":"IF('1. Order'!BA368=\"\",\"\",'1. Order'!BA368)","v":""},{"$f":"IF('1. Order'!BC368=\"\",\"\",'1. Order'!BC368)","v":""},{"$f":"IF('1. Order'!BD368=\"\",\"\",'1. Order'!BD368)","v":6},{"$f":"IF('1. Order'!BE368=\"\",\"\",'1. Order'!BE368)","v":"None"},{"$f":"IF('1. Order'!BF368=\"\",\"\",'1. Order'!BF368)","v":"Parcel"},{"$f":"IF('1. Order'!BG368=\"\",\"\",'1. Order'!BG368)","v":"ZWO"}]
[{"$f":"IF('1. Order'!F369=\"\",\"\",'1. Order'!F369)","v":""},{"$f":"IF('1. Order'!G369=\"\",\"\",'1. Order'!G369)","v":""},{"$f":"IF('1. Order'!H369=\"\",\"\",'1. Order'!H369)","v":""},{"$f":"IF('1. Order'!I369=\"\",\"\",'1. Order'!I369)","v":""},{"$f":"IF('1. Order'!J369=\"\",\"\",'1. Order'!J369)","v":""},{"$f":"IF('1. Order'!K369=\"\",\"\",'1. Order'!K369)","v":""},{"$f":"IF('1. Order'!L369=\"\",\"\",'1. Order'!L369)","v":""},{"$f":"IF('1. Order'!M369=\"\",\"\",'1. Order'!M369)","v":""},{"$f":"IF('1. Order'!N369=\"\",\"\",'1. Order'!N369)","v":""},{"$f":"IF('1. Order'!O369=\"\",\"\",'1. Order'!O369)","v":{"$error":"#N/A"}},{"$f":"IF('1. Order'!P369=\"\",\"\",'1. Order'!P369)","v":{"$error":"#N/A"}},{"$f":"IF('1. Order'!Q369=\"\",\"\",'1. Order'!Q369)","v":""},{"$f":"IF('1. Order'!R369=\"\",\"\",'1. Order'!R369)","v":""},{"$f":"IF('1. Order'!S369=\"\",\"\",'1. Order'!S369)","v":""},{"$f":"IF('1. Order'!V369=\"\",\"\",'1. Order'!V369)","v":""},{"$f":"IF('1. Order'!W369=\"\",\"\",'1. Order'!W369)","v":""},{"$f":"IF('1. Order'!X369=\"\",\"\",'1. Order'!X369)","v":"EUR"},{"$f":"IF('1. Order'!Y369=\"\",\"\",'1. Order'!Y369)","v":""},{"$f":"IF('1. Order'!Z369=\"\",\"\",'1. Order'!Z369)","v":""},{"$f":"IF('1. Order'!AA369=\"\",\"\",'1. Order'!AA369)","v":""},null,{"$f":"IF('1. Order'!AS369=\"\",\"\",'1. Order'!AS369)","v":""},{"$f":"IF('1. Order'!AT369=\"\",\"\",'1. Order'!AT369)","v":""},null,null,null,null,null,null,null,{"$f":"IF('1. Order'!AX369=\"\",\"\",'1. Order'!AX369)","v":""},{"$f":"IF('1. Order'!AY369=\"\",\"\",'1. Order'!AY369)","v":""},{"$f":"IF('1. Order'!AZ369=\"\",\"\",'1. Order'!AZ369)","v":""},{"$f":"IF('1. Order'!BA369=\"\",\"\",'1. Order'!BA369)","v":""},{"$f":"IF('1. Order'!BC369=\"\",\"\",'1. Order'!BC369)","v":""},{"$f":"IF('1. Order'!BD369=\"\",\"\",'1. Order'!BD369)","v":6},{"$f":"IF('1. Order'!BE369=\"\",\"\",'1. Order'!BE369)","v":"None"},{"$f":"IF('1. Order'!BF369=\"\",\"\",'1. Order'!BF369)","v":"Parcel"},{"$f":"IF('1. Order'!BG369=\"\",\"\",'1. Order'!BG369)","v":"ZWO"}]
[{"$f":"IF('1. Order'!F370=\"\",\"\",'1. Order'!F370)","v":""},{"$f":"IF('1. Order'!G370=\"\",\"\",'1. Order'!G370)","v":""},{"$f":"IF('1. Order'!H370=\"\",\"\",'1. Order'!H370)","v":""},{"$f":"IF('1. Order'!I370=\"\",\"\",'1. Order'!I370)","v":""},{"$f":"IF('1. Order'!J370=\"\",\"\",'1. Order'!J370)","v":""},{"$f":"IF('1. Order'!K370=\"\",\"\",'1. Order'!K370)","v":""},{"$f":"IF('1. Order'!L370=\"\",\"\",'1. Order'!L370)","v":""},{"$f":"IF('1. Order'!M370=\"\",\"\",'1. Order'!M370)","v":""},{"$f":"IF('1. Order'!N370=\"\",\"\",'1. Order'!N370)","v":""},{"$f":"IF('1. Order'!O370=\"\",\"\",'1. Order'!O370)","v":{"$error":"#N/A"}},{"$f":"IF('1. Order'!P370=\"\",\"\",'1. Order'!P370)","v":{"$error":"#N/A"}},{"$f":"IF('1. Order'!Q370=\"\",\"\",'1. Order'!Q370)","v":""},{"$f":"IF('1. Order'!R370=\"\",\"\",'1. Order'!R370)","v":""},{"$f":"IF('1. Order'!S370=\"\",\"\",'1. Order'!S370)","v":""},{"$f":"IF('1. Order'!V370=\"\",\"\",'1. Order'!V370)","v":""},{"$f":"IF('1. Order'!W370=\"\",\"\",'1. Order'!W370)","v":""},{"$f":"IF('1. Order'!X370=\"\",\"\",'1. Order'!X370)","v":"EUR"},{"$f":"IF('1. Order'!Y370=\"\",\"\",'1. Order'!Y370)","v":""},{"$f":"IF('1. Order'!Z370=\"\",\"\",'1. Order'!Z370)","v":""},{"$f":"IF('1. Order'!AA370=\"\",\"\",'1. Order'!AA370)","v":""},null,{"$f":"IF('1. Order'!AS370=\"\",\"\",'1. Order'!AS370)","v":""},{"$f":"IF('1. Order'!AT370=\"\",\"\",'1. Order'!AT370)","v":""},null,null,null,null,null,null,null,{"$f":"IF('1. Order'!AX370=\"\",\"\",'1. Order'!AX370)","v":""},{"$f":"IF('1. Order'!AY370=\"\",\"\",'1. Order'!AY370)","v":""},{"$f":"IF('1. Order'!AZ370=\"\",\"\",'1. Order'!AZ370)","v":""},{"$f":"IF('1. Order'!BA370=\"\",\"\",'1. Order'!BA370)","v":""},{"$f":"IF('1. Order'!BC370=\"\",\"\",'1. Order'!BC370)","v":""},{"$f":"IF('1. Order'!BD370=\"\",\"\",'1. Order'!BD370)","v":6},{"$f":"IF('1. Order'!BE370=\"\",\"\",'1. Order'!BE370)","v":"None"},{"$f":"IF('1. Order'!BF370=\"\",\"\",'1. Order'!BF370)","v":"Parcel"},{"$f":"IF('1. Order'!BG370=\"\",\"\",'1. Order'!BG370)","v":"ZWO"}]
[{"$f":"IF('1. Order'!F371=\"\",\"\",'1. Order'!F371)","v":""},{"$f":"IF('1. Order'!G371=\"\",\"\",'1. Order'!G371)","v":""},{"$f":"IF('1. Order'!H371=\"\",\"\",'1. Order'!H371)","v":""},{"$f":"IF('1. Order'!I371=\"\",\"\",'1. Order'!I371)","v":""},{"$f":"IF('1. Order'!J371=\"\",\"\",'1. Order'!J371)","v":""},{"$f":"IF('1. Order'!K371=\"\",\"\",'1. Order'!K371)","v":""},{"$f":"IF('1. Order'!L371=\"\",\"\",'1. Order'!L371)","v":""},{"$f":"IF('1. Order'!M371=\"\",\"\",'1. Order'!M371)","v":""},{"$f":"IF('1. Order'!N371=\"\",\"\",'1. Order'!N371)","v":""},{"$f":"IF('1. Order'!O371=\"\",\"\",'1. Order'!O371)","v":{"$error":"#N/A"}},{"$f":"IF('1. Order'!P371=\"\",\"\",'1. Order'!P371)","v":{"$error":"#N/A"}},{"$f":"IF('1. Order'!Q371=\"\",\"\",'1. Order'!Q371)","v":""},{"$f":"IF('1. Order'!R371=\"\",\"\",'1. Order'!R371)","v":""},{"$f":"IF('1. Order'!S371=\"\",\"\",'1. Order'!S371)","v":""},{"$f":"IF('1. Order'!V371=\"\",\"\",'1. Order'!V371)","v":""},{"$f":"IF('1. Order'!W371=\"\",\"\",'1. Order'!W371)","v":""},{"$f":"IF('1. Order'!X371=\"\",\"\",'1. Order'!X371)","v":"EUR"},{"$f":"IF('1. Order'!Y371=\"\",\"\",'1. Order'!Y371)","v":""},{"$f":"IF('1. Order'!Z371=\"\",\"\",'1. Order'!Z371)","v":""},{"$f":"IF('1. Order'!AA371=\"\",\"\",'1. Order'!AA371)","v":""},null,{"$f":"IF('1. Order'!AS371=\"\",\"\",'1. Order'!AS371)","v":""},{"$f":"IF('1. Order'!AT371=\"\",\"\",'1. Order'!AT371)","v":""},null,null,null,null,null,null,null,{"$f":"IF('1. Order'!AX371=\"\",\"\",'1. Order'!AX371)","v":""},{"$f":"IF('1. Order'!AY371=\"\",\"\",'1. Order'!AY371)","v":""},{"$f":"IF('1. Order'!AZ371=\"\",\"\",'1. Order'!AZ371)","v":""},{"$f":"IF('1. Order'!BA371=\"\",\"\",'1. Order'!BA371)","v":""},{"$f":"IF('1. Order'!BC371=\"\",\"\",'1. Order'!BC371)","v":""},{"$f":"IF('1. Order'!BD371=\"\",\"\",'1. Order'!BD371)","v":6},{"$f":"IF('1. Order'!BE371=\"\",\"\",'1. Order'!BE371)","v":"None"},{"$f":"IF('1. Order'!BF371=\"\",\"\",'1. Order'!BF371)","v":"Parcel"},{"$f":"IF('1. Order'!BG371=\"\",\"\",'1. Order'!BG371)","v":"ZWO"}]
[{"$f":"IF('1. Order'!F372=\"\",\"\",'1. Order'!F372)","v":""},{"$f":"IF('1. Order'!G372=\"\",\"\",'1. Order'!G372)","v":""},{"$f":"IF('1. Order'!H372=\"\",\"\",'1. Order'!H372)","v":""},{"$f":"IF('1. Order'!I372=\"\",\"\",'1. Order'!I372)","v":""},{"$f":"IF('1. Order'!J372=\"\",\"\",'1. Order'!J372)","v":""},{"$f":"IF('1. Order'!K372=\"\",\"\",'1. Order'!K372)","v":""},{"$f":"IF('1. Order'!L372=\"\",\"\",'1. Order'!L372)","v":""},{"$f":"IF('1. Order'!M372=\"\",\"\",'1. Order'!M372)","v":""},{"$f":"IF('1. Order'!N372=\"\",\"\",'1. Order'!N372)","v":""},{"$f":"IF('1. Order'!O372=\"\",\"\",'1. Order'!O372)","v":{"$error":"#N/A"}},{"$f":"IF('1. Order'!P372=\"\",\"\",'1. Order'!P372)","v":{"$error":"#N/A"}},{"$f":"IF('1. Order'!Q372=\"\",\"\",'1. Order'!Q372)","v":""},{"$f":"IF('1. Order'!R372=\"\",\"\",'1. Order'!R372)","v":""},{"$f":"IF('1. Order'!S372=\"\",\"\",'1. Order'!S372)","v":""},{"$f":"IF('1. Order'!V372=\"\",\"\",'1. Order'!V372)","v":""},{"$f":"IF('1. Order'!W372=\"\",\"\",'1. Order'!W372)","v":""},{"$f":"IF('1. Order'!X372=\"\",\"\",'1. Order'!X372)","v":"EUR"},{"$f":"IF('1. Order'!Y372=\"\",\"\",'1. Order'!Y372)","v":""},{"$f":"IF('1. Order'!Z372=\"\",\"\",'1. Order'!Z372)","v":""},{"$f":"IF('1. Order'!AA372=\"\",\"\",'1. Order'!AA372)","v":""},null,{"$f":"IF('1. Order'!AS372=\"\",\"\",'1. Order'!AS372)","v":""},{"$f":"IF('1. Order'!AT372=\"\",\"\",'1. Order'!AT372)","v":""},null,null,null,null,null,null,null,{"$f":"IF('1. Order'!AX372=\"\",\"\",'1. Order'!AX372)","v":""},{"$f":"IF('1. Order'!AY372=\"\",\"\",'1. Order'!AY372)","v":""},{"$f":"IF('1. Order'!AZ372=\"\",\"\",'1. Order'!AZ372)","v":""},{"$f":"IF('1. Order'!BA372=\"\",\"\",'1. Order'!BA372)","v":""},{"$f":"IF('1. Order'!BC372=\"\",\"\",'1. Order'!BC372)","v":""},{"$f":"IF('1. Order'!BD372=\"\",\"\",'1. Order'!BD372)","v":6},{"$f":"IF('1. Order'!BE372=\"\",\"\",'1. Order'!BE372)","v":"None"},{"$f":"IF('1. Order'!BF372=\"\",\"\",'1. Order'!BF372)","v":"Parcel"},{"$f":"IF('1. Order'!BG372=\"\",\"\",'1. Order'!BG372)","v":"ZWO"}]
[{"$f":"IF('1. Order'!F373=\"\",\"\",'1. Order'!F373)","v":""},{"$f":"IF('1. Order'!G373=\"\",\"\",'1. Order'!G373)","v":""},{"$f":"IF('1. Order'!H373=\"\",\"\",'1. Order'!H373)","v":""},{"$f":"IF('1. Order'!I373=\"\",\"\",'1. Order'!I373)","v":""},{"$f":"IF('1. Order'!J373=\"\",\"\",'1. Order'!J373)","v":""},{"$f":"IF('1. Order'!K373=\"\",\"\",'1. Order'!K373)","v":""},{"$f":"IF('1. Order'!L373=\"\",\"\",'1. Order'!L373)","v":""},{"$f":"IF('1. Order'!M373=\"\",\"\",'1. Order'!M373)","v":""},{"$f":"IF('1. Order'!N373=\"\",\"\",'1. Order'!N373)","v":""},{"$f":"IF('1. Order'!O373=\"\",\"\",'1. Order'!O373)","v":{"$error":"#N/A"}},{"$f":"IF('1. Order'!P373=\"\",\"\",'1. Order'!P373)","v":{"$error":"#N/A"}},{"$f":"IF('1. Order'!Q373=\"\",\"\",'1. Order'!Q373)","v":""},{"$f":"IF('1. Order'!R373=\"\",\"\",'1. Order'!R373)","v":""},{"$f":"IF('1. Order'!S373=\"\",\"\",'1. Order'!S373)","v":""},{"$f":"IF('1. Order'!V373=\"\",\"\",'1. Order'!V373)","v":""},{"$f":"IF('1. Order'!W373=\"\",\"\",'1. Order'!W373)","v":""},{"$f":"IF('1. Order'!X373=\"\",\"\",'1. Order'!X373)","v":"EUR"},{"$f":"IF('1. Order'!Y373=\"\",\"\",'1. Order'!Y373)","v":""},{"$f":"IF('1. Order'!Z373=\"\",\"\",'1. Order'!Z373)","v":""},{"$f":"IF('1. Order'!AA373=\"\",\"\",'1. Order'!AA373)","v":""},null,{"$f":"IF('1. Order'!AS373=\"\",\"\",'1. Order'!AS373)","v":""},{"$f":"IF('1. Order'!AT373=\"\",\"\",'1. Order'!AT373)","v":""},null,null,null,null,null,null,null,{"$f":"IF('1. Order'!AX373=\"\",\"\",'1. Order'!AX373)","v":""},{"$f":"IF('1. Order'!AY373=\"\",\"\",'1. Order'!AY373)","v":""},{"$f":"IF('1. Order'!AZ373=\"\",\"\",'1. Order'!AZ373)","v":""},{"$f":"IF('1. Order'!BA373=\"\",\"\",'1. Order'!BA373)","v":""},{"$f":"IF('1. Order'!BC373=\"\",\"\",'1. Order'!BC373)","v":""},{"$f":"IF('1. Order'!BD373=\"\",\"\",'1. Order'!BD373)","v":6},{"$f":"IF('1. Order'!BE373=\"\",\"\",'1. Order'!BE373)","v":"None"},{"$f":"IF('1. Order'!BF373=\"\",\"\",'1. Order'!BF373)","v":"Parcel"},{"$f":"IF('1. Order'!BG373=\"\",\"\",'1. Order'!BG373)","v":"ZWO"}]
[{"$f":"IF('1. Order'!F374=\"\",\"\",'1. Order'!F374)","v":""},{"$f":"IF('1. Order'!G374=\"\",\"\",'1. Order'!G374)","v":""},{"$f":"IF('1. Order'!H374=\"\",\"\",'1. Order'!H374)","v":""},{"$f":"IF('1. Order'!I374=\"\",\"\",'1. Order'!I374)","v":""},{"$f":"IF('1. Order'!J374=\"\",\"\",'1. Order'!J374)","v":""},{"$f":"IF('1. Order'!K374=\"\",\"\",'1. Order'!K374)","v":""},{"$f":"IF('1. Order'!L374=\"\",\"\",'1. Order'!L374)","v":""},{"$f":"IF('1. Order'!M374=\"\",\"\",'1. Order'!M374)","v":""},{"$f":"IF('1. Order'!N374=\"\",\"\",'1. Order'!N374)","v":""},{"$f":"IF('1. Order'!O374=\"\",\"\",'1. Order'!O374)","v":{"$error":"#N/A"}},{"$f":"IF('1. Order'!P374=\"\",\"\",'1. Order'!P374)","v":{"$error":"#N/A"}},{"$f":"IF('1. Order'!Q374=\"\",\"\",'1. Order'!Q374)","v":""},{"$f":"IF('1. Order'!R374=\"\",\"\",'1. Order'!R374)","v":""},{"$f":"IF('1. Order'!S374=\"\",\"\",'1. Order'!S374)","v":""},{"$f":"IF('1. Order'!V374=\"\",\"\",'1. Order'!V374)","v":""},{"$f":"IF('1. Order'!W374=\"\",\"\",'1. Order'!W374)","v":""},{"$f":"IF('1. Order'!X374=\"\",\"\",'1. Order'!X374)","v":"EUR"},{"$f":"IF('1. Order'!Y374=\"\",\"\",'1. Order'!Y374)","v":""},{"$f":"IF('1. Order'!Z374=\"\",\"\",'1. Order'!Z374)","v":""},{"$f":"IF('1. Order'!AA374=\"\",\"\",'1. Order'!AA374)","v":""},null,{"$f":"IF('1. Order'!AS374=\"\",\"\",'1. Order'!AS374)","v":""},{"$f":"IF('1. Order'!AT374=\"\",\"\",'1. Order'!AT374)","v":""},null,null,null,null,null,null,null,{"$f":"IF('1. Order'!AX374=\"\",\"\",'1. Order'!AX374)","v":""},{"$f":"IF('1. Order'!AY374=\"\",\"\",'1. Order'!AY374)","v":""},{"$f":"IF('1. Order'!AZ374=\"\",\"\",'1. Order'!AZ374)","v":""},{"$f":"IF('1. Order'!BA374=\"\",\"\",'1. Order'!BA374)","v":""},{"$f":"IF('1. Order'!BC374=\"\",\"\",'1. Order'!BC374)","v":""},{"$f":"IF('1. Order'!BD374=\"\",\"\",'1. Order'!BD374)","v":6},{"$f":"IF('1. Order'!BE374=\"\",\"\",'1. Order'!BE374)","v":"None"},{"$f":"IF('1. Order'!BF374=\"\",\"\",'1. Order'!BF374)","v":"Parcel"},{"$f":"IF('1. Order'!BG374=\"\",\"\",'1. Order'!BG374)","v":"ZWO"}]
[{"$f":"IF('1. Order'!F375=\"\",\"\",'1. Order'!F375)","v":""},{"$f":"IF('1. Order'!G375=\"\",\"\",'1. Order'!G375)","v":""},{"$f":"IF('1. Order'!H375=\"\",\"\",'1. Order'!H375)","v":""},{"$f":"IF('1. Order'!I375=\"\",\"\",'1. Order'!I375)","v":""},{"$f":"IF('1. Order'!J375=\"\",\"\",'1. Order'!J375)","v":""},{"$f":"IF('1. Order'!K375=\"\",\"\",'1. Order'!K375)","v":""},{"$f":"IF('1. Order'!L375=\"\",\"\",'1. Order'!L375)","v":""},{"$f":"IF('1. Order'!M375=\"\",\"\",'1. Order'!M375)","v":""},{"$f":"IF('1. Order'!N375=\"\",\"\",'1. Order'!N375)","v":""},{"$f":"IF('1. Order'!O375=\"\",\"\",'1. Order'!O375)","v":{"$error":"#N/A"}},{"$f":"IF('1. Order'!P375=\"\",\"\",'1. Order'!P375)","v":{"$error":"#N/A"}},{"$f":"IF('1. Order'!Q375=\"\",\"\",'1. Order'!Q375)","v":""},{"$f":"IF('1. Order'!R375=\"\",\"\",'1. Order'!R375)","v":""},{"$f":"IF('1. Order'!S375=\"\",\"\",'1. Order'!S375)","v":""},{"$f":"IF('1. Order'!V375=\"\",\"\",'1. Order'!V375)","v":""},{"$f":"IF('1. Order'!W375=\"\",\"\",'1. Order'!W375)","v":""},{"$f":"IF('1. Order'!X375=\"\",\"\",'1. Order'!X375)","v":"EUR"},{"$f":"IF('1. Order'!Y375=\"\",\"\",'1. Order'!Y375)","v":""},{"$f":"IF('1. Order'!Z375=\"\",\"\",'1. Order'!Z375)","v":""},{"$f":"IF('1. Order'!AA375=\"\",\"\",'1. Order'!AA375)","v":""},null,{"$f":"IF('1. Order'!AS375=\"\",\"\",'1. Order'!AS375)","v":""},{"$f":"IF('1. Order'!AT375=\"\",\"\",'1. Order'!AT375)","v":""},null,null,null,null,null,null,null,{"$f":"IF('1. Order'!AX375=\"\",\"\",'1. Order'!AX375)","v":""},{"$f":"IF('1. Order'!AY375=\"\",\"\",'1. Order'!AY375)","v":""},{"$f":"IF('1. Order'!AZ375=\"\",\"\",'1. Order'!AZ375)","v":""},{"$f":"IF('1. Order'!BA375=\"\",\"\",'1. Order'!BA375)","v":""},{"$f":"IF('1. Order'!BC375=\"\",\"\",'1. Order'!BC375)","v":""},{"$f":"IF('1. Order'!BD375=\"\",\"\",'1. Order'!BD375)","v":6},{"$f":"IF('1. Order'!BE375=\"\",\"\",'1. Order'!BE375)","v":"None"},{"$f":"IF('1. Order'!BF375=\"\",\"\",'1. Order'!BF375)","v":"Parcel"},{"$f":"IF('1. Order'!BG375=\"\",\"\",'1. Order'!BG375)","v":"ZWO"}]
[{"$f":"IF('1. Order'!F376=\"\",\"\",'1. Order'!F376)","v":""},{"$f":"IF('1. Order'!G376=\"\",\"\",'1. Order'!G376)","v":""},{"$f":"IF('1. Order'!H376=\"\",\"\",'1. Order'!H376)","v":""},{"$f":"IF('1. Order'!I376=\"\",\"\",'1. Order'!I376)","v":""},{"$f":"IF('1. Order'!J376=\"\",\"\",'1. Order'!J376)","v":""},{"$f":"IF('1. Order'!K376=\"\",\"\",'1. Order'!K376)","v":""},{"$f":"IF('1. Order'!L376=\"\",\"\",'1. Order'!L376)","v":""},{"$f":"IF('1. Order'!M376=\"\",\"\",'1. Order'!M376)","v":""},{"$f":"IF('1. Order'!N376=\"\",\"\",'1. Order'!N376)","v":""},{"$f":"IF('1. Order'!O376=\"\",\"\",'1. Order'!O376)","v":{"$error":"#N/A"}},{"$f":"IF('1. Order'!P376=\"\",\"\",'1. Order'!P376)","v":{"$error":"#N/A"}},{"$f":"IF('1. Order'!Q376=\"\",\"\",'1. Order'!Q376)","v":""},{"$f":"IF('1. Order'!R376=\"\",\"\",'1. Order'!R376)","v":""},{"$f":"IF('1. Order'!S376=\"\",\"\",'1. Order'!S376)","v":""},{"$f":"IF('1. Order'!V376=\"\",\"\",'1. Order'!V376)","v":""},{"$f":"IF('1. Order'!W376=\"\",\"\",'1. Order'!W376)","v":""},{"$f":"IF('1. Order'!X376=\"\",\"\",'1. Order'!X376)","v":"EUR"},{"$f":"IF('1. Order'!Y376=\"\",\"\",'1. Order'!Y376)","v":""},{"$f":"IF('1. Order'!Z376=\"\",\"\",'1. Order'!Z376)","v":""},{"$f":"IF('1. Order'!AA376=\"\",\"\",'1. Order'!AA376)","v":""},null,{"$f":"IF('1. Order'!AS376=\"\",\"\",'1. Order'!AS376)","v":""},{"$f":"IF('1. Order'!AT376=\"\",\"\",'1. Order'!AT376)","v":""},null,null,null,null,null,null,null,{"$f":"IF('1. Order'!AX376=\"\",\"\",'1. Order'!AX376)","v":""},{"$f":"IF('1. Order'!AY376=\"\",\"\",'1. Order'!AY376)","v":""},{"$f":"IF('1. Order'!AZ376=\"\",\"\",'1. Order'!AZ376)","v":""},{"$f":"IF('1. Order'!BA376=\"\",\"\",'1. Order'!BA376)","v":""},{"$f":"IF('1. Order'!BC376=\"\",\"\",'1. Order'!BC376)","v":""},{"$f":"IF('1. Order'!BD376=\"\",\"\",'1. Order'!BD376)","v":6},{"$f":"IF('1. Order'!BE376=\"\",\"\",'1. Order'!BE376)","v":"None"},{"$f":"IF('1. Order'!BF376=\"\",\"\",'1. Order'!BF376)","v":"Parcel"},{"$f":"IF('1. Order'!BG376=\"\",\"\",'1. Order'!BG376)","v":"ZWO"}]
[{"$f":"IF('1. Order'!F377=\"\",\"\",'1. Order'!F377)","v":""},{"$f":"IF('1. Order'!G377=\"\",\"\",'1. Order'!G377)","v":""},{"$f":"IF('1. Order'!H377=\"\",\"\",'1. Order'!H377)","v":""},{"$f":"IF('1. Order'!I377=\"\",\"\",'1. Order'!I377)","v":""},{"$f":"IF('1. Order'!J377=\"\",\"\",'1. Order'!J377)","v":""},{"$f":"IF('1. Order'!K377=\"\",\"\",'1. Order'!K377)","v":""},{"$f":"IF('1. Order'!L377=\"\",\"\",'1. Order'!L377)","v":""},{"$f":"IF('1. Order'!M377=\"\",\"\",'1. Order'!M377)","v":""},{"$f":"IF('1. Order'!N377=\"\",\"\",'1. Order'!N377)","v":""},{"$f":"IF('1. Order'!O377=\"\",\"\",'1. Order'!O377)","v":{"$error":"#N/A"}},{"$f":"IF('1. Order'!P377=\"\",\"\",'1. Order'!P377)","v":{"$error":"#N/A"}},{"$f":"IF('1. Order'!Q377=\"\",\"\",'1. Order'!Q377)","v":""},{"$f":"IF('1. Order'!R377=\"\",\"\",'1. Order'!R377)","v":""},{"$f":"IF('1. Order'!S377=\"\",\"\",'1. Order'!S377)","v":""},{"$f":"IF('1. Order'!V377=\"\",\"\",'1. Order'!V377)","v":""},{"$f":"IF('1. Order'!W377=\"\",\"\",'1. Order'!W377)","v":""},{"$f":"IF('1. Order'!X377=\"\",\"\",'1. Order'!X377)","v":"EUR"},{"$f":"IF('1. Order'!Y377=\"\",\"\",'1. Order'!Y377)","v":""},{"$f":"IF('1. Order'!Z377=\"\",\"\",'1. Order'!Z377)","v":""},{"$f":"IF('1. Order'!AA377=\"\",\"\",'1. Order'!AA377)","v":""},null,{"$f":"IF('1. Order'!AS377=\"\",\"\",'1. Order'!AS377)","v":""},{"$f":"IF('1. Order'!AT377=\"\",\"\",'1. Order'!AT377)","v":""},null,null,null,null,null,null,null,{"$f":"IF('1. Order'!AX377=\"\",\"\",'1. Order'!AX377)","v":""},{"$f":"IF('1. Order'!AY377=\"\",\"\",'1. Order'!AY377)","v":""},{"$f":"IF('1. Order'!AZ377=\"\",\"\",'1. Order'!AZ377)","v":""},{"$f":"IF('1. Order'!BA377=\"\",\"\",'1. Order'!BA377)","v":""},{"$f":"IF('1. Order'!BC377=\"\",\"\",'1. Order'!BC377)","v":""},{"$f":"IF('1. Order'!BD377=\"\",\"\",'1. Order'!BD377)","v":6},{"$f":"IF('1. Order'!BE377=\"\",\"\",'1. Order'!BE377)","v":"None"},{"$f":"IF('1. Order'!BF377=\"\",\"\",'1. Order'!BF377)","v":"Parcel"},{"$f":"IF('1. Order'!BG377=\"\",\"\",'1. Order'!BG377)","v":"ZWO"}]
[{"$f":"IF('1. Order'!F378=\"\",\"\",'1. Order'!F378)","v":""},{"$f":"IF('1. Order'!G378=\"\",\"\",'1. Order'!G378)","v":""},{"$f":"IF('1. Order'!H378=\"\",\"\",'1. Order'!H378)","v":""},{"$f":"IF('1. Order'!I378=\"\",\"\",'1. Order'!I378)","v":""},{"$f":"IF('1. Order'!J378=\"\",\"\",'1. Order'!J378)","v":""},{"$f":"IF('1. Order'!K378=\"\",\"\",'1. Order'!K378)","v":""},{"$f":"IF('1. Order'!L378=\"\",\"\",'1. Order'!L378)","v":""},{"$f":"IF('1. Order'!M378=\"\",\"\",'1. Order'!M378)","v":""},{"$f":"IF('1. Order'!N378=\"\",\"\",'1. Order'!N378)","v":""},{"$f":"IF('1. Order'!O378=\"\",\"\",'1. Order'!O378)","v":{"$error":"#N/A"}},{"$f":"IF('1. Order'!P378=\"\",\"\",'1. Order'!P378)","v":{"$error":"#N/A"}},{"$f":"IF('1. Order'!Q378=\"\",\"\",'1. Order'!Q378)","v":""},{"$f":"IF('1. Order'!R378=\"\",\"\",'1. Order'!R378)","v":""},{"$f":"IF('1. Order'!S378=\"\",\"\",'1. Order'!S378)","v":""},{"$f":"IF('1. Order'!V378=\"\",\"\",'1. Order'!V378)","v":""},{"$f":"IF('1. Order'!W378=\"\",\"\",'1. Order'!W378)","v":""},{"$f":"IF('1. Order'!X378=\"\",\"\",'1. Order'!X378)","v":"EUR"},{"$f":"IF('1. Order'!Y378=\"\",\"\",'1. Order'!Y378)","v":""},{"$f":"IF('1. Order'!Z378=\"\",\"\",'1. Order'!Z378)","v":""},{"$f":"IF('1. Order'!AA378=\"\",\"\",'1. Order'!AA378)","v":""},null,{"$f":"IF('1. Order'!AS378=\"\",\"\",'1. Order'!AS378)","v":""},{"$f":"IF('1. Order'!AT378=\"\",\"\",'1. Order'!AT378)","v":""},null,null,null,null,null,null,null,{"$f":"IF('1. Order'!AX378=\"\",\"\",'1. Order'!AX378)","v":""},{"$f":"IF('1. Order'!AY378=\"\",\"\",'1. Order'!AY378)","v":""},{"$f":"IF('1. Order'!AZ378=\"\",\"\",'1. Order'!AZ378)","v":""},{"$f":"IF('1. Order'!BA378=\"\",\"\",'1. Order'!BA378)","v":""},{"$f":"IF('1. Order'!BC378=\"\",\"\",'1. Order'!BC378)","v":""},{"$f":"IF('1. Order'!BD378=\"\",\"\",'1. Order'!BD378)","v":6},{"$f":"IF('1. Order'!BE378=\"\",\"\",'1. Order'!BE378)","v":"None"},{"$f":"IF('1. Order'!BF378=\"\",\"\",'1. Order'!BF378)","v":"Parcel"},{"$f":"IF('1. Order'!BG378=\"\",\"\",'1. Order'!BG378)","v":"ZWO"}]
[{"$f":"IF('1. Order'!F379=\"\",\"\",'1. Order'!F379)","v":""},{"$f":"IF('1. Order'!G379=\"\",\"\",'1. Order'!G379)","v":""},{"$f":"IF('1. Order'!H379=\"\",\"\",'1. Order'!H379)","v":""},{"$f":"IF('1. Order'!I379=\"\",\"\",'1. Order'!I379)","v":""},{"$f":"IF('1. Order'!J379=\"\",\"\",'1. Order'!J379)","v":""},{"$f":"IF('1. Order'!K379=\"\",\"\",'1. Order'!K379)","v":""},{"$f":"IF('1. Order'!L379=\"\",\"\",'1. Order'!L379)","v":""},{"$f":"IF('1. Order'!M379=\"\",\"\",'1. Order'!M379)","v":""},{"$f":"IF('1. Order'!N379=\"\",\"\",'1. Order'!N379)","v":""},{"$f":"IF('1. Order'!O379=\"\",\"\",'1. Order'!O379)","v":{"$error":"#N/A"}},{"$f":"IF('1. Order'!P379=\"\",\"\",'1. Order'!P379)","v":{"$error":"#N/A"}},{"$f":"IF('1. Order'!Q379=\"\",\"\",'1. Order'!Q379)","v":""},{"$f":"IF('1. Order'!R379=\"\",\"\",'1. Order'!R379)","v":""},{"$f":"IF('1. Order'!S379=\"\",\"\",'1. Order'!S379)","v":""},{"$f":"IF('1. Order'!V379=\"\",\"\",'1. Order'!V379)","v":""},{"$f":"IF('1. Order'!W379=\"\",\"\",'1. Order'!W379)","v":""},{"$f":"IF('1. Order'!X379=\"\",\"\",'1. Order'!X379)","v":"EUR"},{"$f":"IF('1. Order'!Y379=\"\",\"\",'1. Order'!Y379)","v":""},{"$f":"IF('1. Order'!Z379=\"\",\"\",'1. Order'!Z379)","v":""},{"$f":"IF('1. Order'!AA379=\"\",\"\",'1. Order'!AA379)","v":""},null,{"$f":"IF('1. Order'!AS379=\"\",\"\",'1. Order'!AS379)","v":""},{"$f":"IF('1. Order'!AT379=\"\",\"\",'1. Order'!AT379)","v":""},null,null,null,null,null,null,null,{"$f":"IF('1. Order'!AX379=\"\",\"\",'1. Order'!AX379)","v":""},{"$f":"IF('1. Order'!AY379=\"\",\"\",'1. Order'!AY379)","v":""},{"$f":"IF('1. Order'!AZ379=\"\",\"\",'1. Order'!AZ379)","v":""},{"$f":"IF('1. Order'!BA379=\"\",\"\",'1. Order'!BA379)","v":""},{"$f":"IF('1. Order'!BC379=\"\",\"\",'1. Order'!BC379)","v":""},{"$f":"IF('1. Order'!BD379=\"\",\"\",'1. Order'!BD379)","v":6},{"$f":"IF('1. Order'!BE379=\"\",\"\",'1. Order'!BE379)","v":"None"},{"$f":"IF('1. Order'!BF379=\"\",\"\",'1. Order'!BF379)","v":"Parcel"},{"$f":"IF('1. Order'!BG379=\"\",\"\",'1. Order'!BG379)","v":"ZWO"}]
[{"$f":"IF('1. Order'!F380=\"\",\"\",'1. Order'!F380)","v":""},{"$f":"IF('1. Order'!G380=\"\",\"\",'1. Order'!G380)","v":""},{"$f":"IF('1. Order'!H380=\"\",\"\",'1. Order'!H380)","v":""},{"$f":"IF('1. Order'!I380=\"\",\"\",'1. Order'!I380)","v":""},{"$f":"IF('1. Order'!J380=\"\",\"\",'1. Order'!J380)","v":""},{"$f":"IF('1. Order'!K380=\"\",\"\",'1. Order'!K380)","v":""},{"$f":"IF('1. Order'!L380=\"\",\"\",'1. Order'!L380)","v":""},{"$f":"IF('1. Order'!M380=\"\",\"\",'1. Order'!M380)","v":""},{"$f":"IF('1. Order'!N380=\"\",\"\",'1. Order'!N380)","v":""},{"$f":"IF('1. Order'!O380=\"\",\"\",'1. Order'!O380)","v":{"$error":"#N/A"}},{"$f":"IF('1. Order'!P380=\"\",\"\",'1. Order'!P380)","v":{"$error":"#N/A"}},{"$f":"IF('1. Order'!Q380=\"\",\"\",'1. Order'!Q380)","v":""},{"$f":"IF('1. Order'!R380=\"\",\"\",'1. Order'!R380)","v":""},{"$f":"IF('1. Order'!S380=\"\",\"\",'1. Order'!S380)","v":""},{"$f":"IF('1. Order'!V380=\"\",\"\",'1. Order'!V380)","v":""},{"$f":"IF('1. Order'!W380=\"\",\"\",'1. Order'!W380)","v":""},{"$f":"IF('1. Order'!X380=\"\",\"\",'1. Order'!X380)","v":"EUR"},{"$f":"IF('1. Order'!Y380=\"\",\"\",'1. Order'!Y380)","v":""},{"$f":"IF('1. Order'!Z380=\"\",\"\",'1. Order'!Z380)","v":""},{"$f":"IF('1. Order'!AA380=\"\",\"\",'1. Order'!AA380)","v":""},null,{"$f":"IF('1. Order'!AS380=\"\",\"\",'1. Order'!AS380)","v":""},{"$f":"IF('1. Order'!AT380=\"\",\"\",'1. Order'!AT380)","v":""},null,null,null,null,null,null,null,{"$f":"IF('1. Order'!AX380=\"\",\"\",'1. Order'!AX380)","v":""},{"$f":"IF('1. Order'!AY380=\"\",\"\",'1. Order'!AY380)","v":""},{"$f":"IF('1. Order'!AZ380=\"\",\"\",'1. Order'!AZ380)","v":""},{"$f":"IF('1. Order'!BA380=\"\",\"\",'1. Order'!BA380)","v":""},{"$f":"IF('1. Order'!BC380=\"\",\"\",'1. Order'!BC380)","v":""},{"$f":"IF('1. Order'!BD380=\"\",\"\",'1. Order'!BD380)","v":6},{"$f":"IF('1. Order'!BE380=\"\",\"\",'1. Order'!BE380)","v":"None"},{"$f":"IF('1. Order'!BF380=\"\",\"\",'1. Order'!BF380)","v":"Parcel"},{"$f":"IF('1. Order'!BG380=\"\",\"\",'1. Order'!BG380)","v":"ZWO"}]
[{"$f":"IF('1. Order'!F381=\"\",\"\",'1. Order'!F381)","v":""},{"$f":"IF('1. Order'!G381=\"\",\"\",'1. Order'!G381)","v":""},{"$f":"IF('1. Order'!H381=\"\",\"\",'1. Order'!H381)","v":""},{"$f":"IF('1. Order'!I381=\"\",\"\",'1. Order'!I381)","v":""},{"$f":"IF('1. Order'!J381=\"\",\"\",'1. Order'!J381)","v":""},{"$f":"IF('1. Order'!K381=\"\",\"\",'1. Order'!K381)","v":""},{"$f":"IF('1. Order'!L381=\"\",\"\",'1. Order'!L381)","v":""},{"$f":"IF('1. Order'!M381=\"\",\"\",'1. Order'!M381)","v":""},{"$f":"IF('1. Order'!N381=\"\",\"\",'1. Order'!N381)","v":""},{"$f":"IF('1. Order'!O381=\"\",\"\",'1. Order'!O381)","v":{"$error":"#N/A"}},{"$f":"IF('1. Order'!P381=\"\",\"\",'1. Order'!P381)","v":{"$error":"#N/A"}},{"$f":"IF('1. Order'!Q381=\"\",\"\",'1. Order'!Q381)","v":""},{"$f":"IF('1. Order'!R381=\"\",\"\",'1. Order'!R381)","v":""},{"$f":"IF('1. Order'!S381=\"\",\"\",'1. Order'!S381)","v":""},{"$f":"IF('1. Order'!V381=\"\",\"\",'1. Order'!V381)","v":""},{"$f":"IF('1. Order'!W381=\"\",\"\",'1. Order'!W381)","v":""},{"$f":"IF('1. Order'!X381=\"\",\"\",'1. Order'!X381)","v":"EUR"},{"$f":"IF('1. Order'!Y381=\"\",\"\",'1. Order'!Y381)","v":""},{"$f":"IF('1. Order'!Z381=\"\",\"\",'1. Order'!Z381)","v":""},{"$f":"IF('1. Order'!AA381=\"\",\"\",'1. Order'!AA381)","v":""},null,{"$f":"IF('1. Order'!AS381=\"\",\"\",'1. Order'!AS381)","v":""},{"$f":"IF('1. Order'!AT381=\"\",\"\",'1. Order'!AT381)","v":""},null,null,null,null,null,null,null,{"$f":"IF('1. Order'!AX381=\"\",\"\",'1. Order'!AX381)","v":""},{"$f":"IF('1. Order'!AY381=\"\",\"\",'1. Order'!AY381)","v":""},{"$f":"IF('1. Order'!AZ381=\"\",\"\",'1. Order'!AZ381)","v":""},{"$f":"IF('1. Order'!BA381=\"\",\"\",'1. Order'!BA381)","v":""},{"$f":"IF('1. Order'!BC381=\"\",\"\",'1. Order'!BC381)","v":""},{"$f":"IF('1. Order'!BD381=\"\",\"\",'1. Order'!BD381)","v":6},{"$f":"IF('1. Order'!BE381=\"\",\"\",'1. Order'!BE381)","v":"None"},{"$f":"IF('1. Order'!BF381=\"\",\"\",'1. Order'!BF381)","v":"Parcel"},{"$f":"IF('1. Order'!BG381=\"\",\"\",'1. Order'!BG381)","v":"ZWO"}]
[{"$f":"IF('1. Order'!F382=\"\",\"\",'1. Order'!F382)","v":""},{"$f":"IF('1. Order'!G382=\"\",\"\",'1. Order'!G382)","v":""},{"$f":"IF('1. Order'!H382=\"\",\"\",'1. Order'!H382)","v":""},{"$f":"IF('1. Order'!I382=\"\",\"\",'1. Order'!I382)","v":""},{"$f":"IF('1. Order'!J382=\"\",\"\",'1. Order'!J382)","v":""},{"$f":"IF('1. Order'!K382=\"\",\"\",'1. Order'!K382)","v":""},{"$f":"IF('1. Order'!L382=\"\",\"\",'1. Order'!L382)","v":""},{"$f":"IF('1. Order'!M382=\"\",\"\",'1. Order'!M382)","v":""},{"$f":"IF('1. Order'!N382=\"\",\"\",'1. Order'!N382)","v":""},{"$f":"IF('1. Order'!O382=\"\",\"\",'1. Order'!O382)","v":{"$error":"#N/A"}},{"$f":"IF('1. Order'!P382=\"\",\"\",'1. Order'!P382)","v":{"$error":"#N/A"}},{"$f":"IF('1. Order'!Q382=\"\",\"\",'1. Order'!Q382)","v":""},{"$f":"IF('1. Order'!R382=\"\",\"\",'1. Order'!R382)","v":""},{"$f":"IF('1. Order'!S382=\"\",\"\",'1. Order'!S382)","v":""},{"$f":"IF('1. Order'!V382=\"\",\"\",'1. Order'!V382)","v":""},{"$f":"IF('1. Order'!W382=\"\",\"\",'1. Order'!W382)","v":""},{"$f":"IF('1. Order'!X382=\"\",\"\",'1. Order'!X382)","v":"EUR"},{"$f":"IF('1. Order'!Y382=\"\",\"\",'1. Order'!Y382)","v":""},{"$f":"IF('1. Order'!Z382=\"\",\"\",'1. Order'!Z382)","v":""},{"$f":"IF('1. Order'!AA382=\"\",\"\",'1. Order'!AA382)","v":""},null,{"$f":"IF('1. Order'!AS382=\"\",\"\",'1. Order'!AS382)","v":""},{"$f":"IF('1. Order'!AT382=\"\",\"\",'1. Order'!AT382)","v":""},null,null,null,null,null,null,null,{"$f":"IF('1. Order'!AX382=\"\",\"\",'1. Order'!AX382)","v":""},{"$f":"IF('1. Order'!AY382=\"\",\"\",'1. Order'!AY382)","v":""},{"$f":"IF('1. Order'!AZ382=\"\",\"\",'1. Order'!AZ382)","v":""},{"$f":"IF('1. Order'!BA382=\"\",\"\",'1. Order'!BA382)","v":""},{"$f":"IF('1. Order'!BC382=\"\",\"\",'1. Order'!BC382)","v":""},{"$f":"IF('1. Order'!BD382=\"\",\"\",'1. Order'!BD382)","v":6},{"$f":"IF('1. Order'!BE382=\"\",\"\",'1. Order'!BE382)","v":"None"},{"$f":"IF('1. Order'!BF382=\"\",\"\",'1. Order'!BF382)","v":"Parcel"},{"$f":"IF('1. Order'!BG382=\"\",\"\",'1. Order'!BG382)","v":"ZWO"}]
[{"$f":"IF('1. Order'!F383=\"\",\"\",'1. Order'!F383)","v":""},{"$f":"IF('1. Order'!G383=\"\",\"\",'1. Order'!G383)","v":""},{"$f":"IF('1. Order'!H383=\"\",\"\",'1. Order'!H383)","v":""},{"$f":"IF('1. Order'!I383=\"\",\"\",'1. Order'!I383)","v":""},{"$f":"IF('1. Order'!J383=\"\",\"\",'1. Order'!J383)","v":""},{"$f":"IF('1. Order'!K383=\"\",\"\",'1. Order'!K383)","v":""},{"$f":"IF('1. Order'!L383=\"\",\"\",'1. Order'!L383)","v":""},{"$f":"IF('1. Order'!M383=\"\",\"\",'1. Order'!M383)","v":""},{"$f":"IF('1. Order'!N383=\"\",\"\",'1. Order'!N383)","v":""},{"$f":"IF('1. Order'!O383=\"\",\"\",'1. Order'!O383)","v":{"$error":"#N/A"}},{"$f":"IF('1. Order'!P383=\"\",\"\",'1. Order'!P383)","v":{"$error":"#N/A"}},{"$f":"IF('1. Order'!Q383=\"\",\"\",'1. Order'!Q383)","v":""},{"$f":"IF('1. Order'!R383=\"\",\"\",'1. Order'!R383)","v":""},{"$f":"IF('1. Order'!S383=\"\",\"\",'1. Order'!S383)","v":""},{"$f":"IF('1. Order'!V383=\"\",\"\",'1. Order'!V383)","v":""},{"$f":"IF('1. Order'!W383=\"\",\"\",'1. Order'!W383)","v":""},{"$f":"IF('1. Order'!X383=\"\",\"\",'1. Order'!X383)","v":"EUR"},{"$f":"IF('1. Order'!Y383=\"\",\"\",'1. Order'!Y383)","v":""},{"$f":"IF('1. Order'!Z383=\"\",\"\",'1. Order'!Z383)","v":""},{"$f":"IF('1. Order'!AA383=\"\",\"\",'1. Order'!AA383)","v":""},null,{"$f":"IF('1. Order'!AS383=\"\",\"\",'1. Order'!AS383)","v":""},{"$f":"IF('1. Order'!AT383=\"\",\"\",'1. Order'!AT383)","v":""},null,null,null,null,null,null,null,{"$f":"IF('1. Order'!AX383=\"\",\"\",'1. Order'!AX383)","v":""},{"$f":"IF('1. Order'!AY383=\"\",\"\",'1. Order'!AY383)","v":""},{"$f":"IF('1. Order'!AZ383=\"\",\"\",'1. Order'!AZ383)","v":""},{"$f":"IF('1. Order'!BA383=\"\",\"\",'1. Order'!BA383)","v":""},{"$f":"IF('1. Order'!BC383=\"\",\"\",'1. Order'!BC383)","v":""},{"$f":"IF('1. Order'!BD383=\"\",\"\",'1. Order'!BD383)","v":6},{"$f":"IF('1. Order'!BE383=\"\",\"\",'1. Order'!BE383)","v":"None"},{"$f":"IF('1. Order'!BF383=\"\",\"\",'1. Order'!BF383)","v":"Parcel"},{"$f":"IF('1. Order'!BG383=\"\",\"\",'1. Order'!BG383)","v":"ZWO"}]
[{"$f":"IF('1. Order'!F384=\"\",\"\",'1. Order'!F384)","v":""},{"$f":"IF('1. Order'!G384=\"\",\"\",'1. Order'!G384)","v":""},{"$f":"IF('1. Order'!H384=\"\",\"\",'1. Order'!H384)","v":""},{"$f":"IF('1. Order'!I384=\"\",\"\",'1. Order'!I384)","v":""},{"$f":"IF('1. Order'!J384=\"\",\"\",'1. Order'!J384)","v":""},{"$f":"IF('1. Order'!K384=\"\",\"\",'1. Order'!K384)","v":""},{"$f":"IF('1. Order'!L384=\"\",\"\",'1. Order'!L384)","v":""},{"$f":"IF('1. Order'!M384=\"\",\"\",'1. Order'!M384)","v":""},{"$f":"IF('1. Order'!N384=\"\",\"\",'1. Order'!N384)","v":""},{"$f":"IF('1. Order'!O384=\"\",\"\",'1. Order'!O384)","v":{"$error":"#N/A"}},{"$f":"IF('1. Order'!P384=\"\",\"\",'1. Order'!P384)","v":{"$error":"#N/A"}},{"$f":"IF('1. Order'!Q384=\"\",\"\",'1. Order'!Q384)","v":""},{"$f":"IF('1. Order'!R384=\"\",\"\",'1. Order'!R384)","v":""},{"$f":"IF('1. Order'!S384=\"\",\"\",'1. Order'!S384)","v":""},{"$f":"IF('1. Order'!V384=\"\",\"\",'1. Order'!V384)","v":""},{"$f":"IF('1. Order'!W384=\"\",\"\",'1. Order'!W384)","v":""},{"$f":"IF('1. Order'!X384=\"\",\"\",'1. Order'!X384)","v":"EUR"},{"$f":"IF('1. Order'!Y384=\"\",\"\",'1. Order'!Y384)","v":""},{"$f":"IF('1. Order'!Z384=\"\",\"\",'1. Order'!Z384)","v":""},{"$f":"IF('1. Order'!AA384=\"\",\"\",'1. Order'!AA384)","v":""},null,{"$f":"IF('1. Order'!AS384=\"\",\"\",'1. Order'!AS384)","v":""},{"$f":"IF('1. Order'!AT384=\"\",\"\",'1. Order'!AT384)","v":""},null,null,null,null,null,null,null,{"$f":"IF('1. Order'!AX384=\"\",\"\",'1. Order'!AX384)","v":""},{"$f":"IF('1. Order'!AY384=\"\",\"\",'1. Order'!AY384)","v":""},{"$f":"IF('1. Order'!AZ384=\"\",\"\",'1. Order'!AZ384)","v":""},{"$f":"IF('1. Order'!BA384=\"\",\"\",'1. Order'!BA384)","v":""},{"$f":"IF('1. Order'!BC384=\"\",\"\",'1. Order'!BC384)","v":""},{"$f":"IF('1. Order'!BD384=\"\",\"\",'1. Order'!BD384)","v":6},{"$f":"IF('1. Order'!BE384=\"\",\"\",'1. Order'!BE384)","v":"None"},{"$f":"IF('1. Order'!BF384=\"\",\"\",'1. Order'!BF384)","v":"Parcel"},{"$f":"IF('1. Order'!BG384=\"\",\"\",'1. Order'!BG384)","v":"ZWO"}]
[{"$f":"IF('1. Order'!F385=\"\",\"\",'1. Order'!F385)","v":""},{"$f":"IF('1. Order'!G385=\"\",\"\",'1. Order'!G385)","v":""},{"$f":"IF('1. Order'!H385=\"\",\"\",'1. Order'!H385)","v":""},{"$f":"IF('1. Order'!I385=\"\",\"\",'1. Order'!I385)","v":""},{"$f":"IF('1. Order'!J385=\"\",\"\",'1. Order'!J385)","v":""},{"$f":"IF('1. Order'!K385=\"\",\"\",'1. Order'!K385)","v":""},{"$f":"IF('1. Order'!L385=\"\",\"\",'1. Order'!L385)","v":""},{"$f":"IF('1. Order'!M385=\"\",\"\",'1. Order'!M385)","v":""},{"$f":"IF('1. Order'!N385=\"\",\"\",'1. Order'!N385)","v":""},{"$f":"IF('1. Order'!O385=\"\",\"\",'1. Order'!O385)","v":{"$error":"#N/A"}},{"$f":"IF('1. Order'!P385=\"\",\"\",'1. Order'!P385)","v":{"$error":"#N/A"}},{"$f":"IF('1. Order'!Q385=\"\",\"\",'1. Order'!Q385)","v":""},{"$f":"IF('1. Order'!R385=\"\",\"\",'1. Order'!R385)","v":""},{"$f":"IF('1. Order'!S385=\"\",\"\",'1. Order'!S385)","v":""},{"$f":"IF('1. Order'!V385=\"\",\"\",'1. Order'!V385)","v":""},{"$f":"IF('1. Order'!W385=\"\",\"\",'1. Order'!W385)","v":""},{"$f":"IF('1. Order'!X385=\"\",\"\",'1. Order'!X385)","v":"EUR"},{"$f":"IF('1. Order'!Y385=\"\",\"\",'1. Order'!Y385)","v":""},{"$f":"IF('1. Order'!Z385=\"\",\"\",'1. Order'!Z385)","v":""},{"$f":"IF('1. Order'!AA385=\"\",\"\",'1. Order'!AA385)","v":""},null,{"$f":"IF('1. Order'!AS385=\"\",\"\",'1. Order'!AS385)","v":""},{"$f":"IF('1. Order'!AT385=\"\",\"\",'1. Order'!AT385)","v":""},null,null,null,null,null,null,null,{"$f":"IF('1. Order'!AX385=\"\",\"\",'1. Order'!AX385)","v":""},{"$f":"IF('1. Order'!AY385=\"\",\"\",'1. Order'!AY385)","v":""},{"$f":"IF('1. Order'!AZ385=\"\",\"\",'1. Order'!AZ385)","v":""},{"$f":"IF('1. Order'!BA385=\"\",\"\",'1. Order'!BA385)","v":""},{"$f":"IF('1. Order'!BC385=\"\",\"\",'1. Order'!BC385)","v":""},{"$f":"IF('1. Order'!BD385=\"\",\"\",'1. Order'!BD385)","v":6},{"$f":"IF('1. Order'!BE385=\"\",\"\",'1. Order'!BE385)","v":"None"},{"$f":"IF('1. Order'!BF385=\"\",\"\",'1. Order'!BF385)","v":"Parcel"},{"$f":"IF('1. Order'!BG385=\"\",\"\",'1. Order'!BG385)","v":"ZWO"}]
[{"$f":"IF('1. Order'!F386=\"\",\"\",'1. Order'!F386)","v":""},{"$f":"IF('1. Order'!G386=\"\",\"\",'1. Order'!G386)","v":""},{"$f":"IF('1. Order'!H386=\"\",\"\",'1. Order'!H386)","v":""},{"$f":"IF('1. Order'!I386=\"\",\"\",'1. Order'!I386)","v":""},{"$f":"IF('1. Order'!J386=\"\",\"\",'1. Order'!J386)","v":""},{"$f":"IF('1. Order'!K386=\"\",\"\",'1. Order'!K386)","v":""},{"$f":"IF('1. Order'!L386=\"\",\"\",'1. Order'!L386)","v":""},{"$f":"IF('1. Order'!M386=\"\",\"\",'1. Order'!M386)","v":""},{"$f":"IF('1. Order'!N386=\"\",\"\",'1. Order'!N386)","v":""},{"$f":"IF('1. Order'!O386=\"\",\"\",'1. Order'!O386)","v":{"$error":"#N/A"}},{"$f":"IF('1. Order'!P386=\"\",\"\",'1. Order'!P386)","v":{"$error":"#N/A"}},{"$f":"IF('1. Order'!Q386=\"\",\"\",'1. Order'!Q386)","v":""},{"$f":"IF('1. Order'!R386=\"\",\"\",'1. Order'!R386)","v":""},{"$f":"IF('1. Order'!S386=\"\",\"\",'1. Order'!S386)","v":""},{"$f":"IF('1. Order'!V386=\"\",\"\",'1. Order'!V386)","v":""},{"$f":"IF('1. Order'!W386=\"\",\"\",'1. Order'!W386)","v":""},{"$f":"IF('1. Order'!X386=\"\",\"\",'1. Order'!X386)","v":"EUR"},{"$f":"IF('1. Order'!Y386=\"\",\"\",'1. Order'!Y386)","v":""},{"$f":"IF('1. Order'!Z386=\"\",\"\",'1. Order'!Z386)","v":""},{"$f":"IF('1. Order'!AA386=\"\",\"\",'1. Order'!AA386)","v":""},null,{"$f":"IF('1. Order'!AS386=\"\",\"\",'1. Order'!AS386)","v":""},{"$f":"IF('1. Order'!AT386=\"\",\"\",'1. Order'!AT386)","v":""},null,null,null,null,null,null,null,{"$f":"IF('1. Order'!AX386=\"\",\"\",'1. Order'!AX386)","v":""},{"$f":"IF('1. Order'!AY386=\"\",\"\",'1. Order'!AY386)","v":""},{"$f":"IF('1. Order'!AZ386=\"\",\"\",'1. Order'!AZ386)","v":""},{"$f":"IF('1. Order'!BA386=\"\",\"\",'1. Order'!BA386)","v":""},{"$f":"IF('1. Order'!BC386=\"\",\"\",'1. Order'!BC386)","v":""},{"$f":"IF('1. Order'!BD386=\"\",\"\",'1. Order'!BD386)","v":6},{"$f":"IF('1. Order'!BE386=\"\",\"\",'1. Order'!BE386)","v":"None"},{"$f":"IF('1. Order'!BF386=\"\",\"\",'1. Order'!BF386)","v":"Parcel"},{"$f":"IF('1. Order'!BG386=\"\",\"\",'1. Order'!BG386)","v":"ZWO"}]
[{"$f":"IF('1. Order'!F387=\"\",\"\",'1. Order'!F387)","v":""},{"$f":"IF('1. Order'!G387=\"\",\"\",'1. Order'!G387)","v":""},{"$f":"IF('1. Order'!H387=\"\",\"\",'1. Order'!H387)","v":""},{"$f":"IF('1. Order'!I387=\"\",\"\",'1. Order'!I387)","v":""},{"$f":"IF('1. Order'!J387=\"\",\"\",'1. Order'!J387)","v":""},{"$f":"IF('1. Order'!K387=\"\",\"\",'1. Order'!K387)","v":""},{"$f":"IF('1. Order'!L387=\"\",\"\",'1. Order'!L387)","v":""},{"$f":"IF('1. Order'!M387=\"\",\"\",'1. Order'!M387)","v":""},{"$f":"IF('1. Order'!N387=\"\",\"\",'1. Order'!N387)","v":""},{"$f":"IF('1. Order'!O387=\"\",\"\",'1. Order'!O387)","v":{"$error":"#N/A"}},{"$f":"IF('1. Order'!P387=\"\",\"\",'1. Order'!P387)","v":{"$error":"#N/A"}},{"$f":"IF('1. Order'!Q387=\"\",\"\",'1. Order'!Q387)","v":""},{"$f":"IF('1. Order'!R387=\"\",\"\",'1. Order'!R387)","v":""},{"$f":"IF('1. Order'!S387=\"\",\"\",'1. Order'!S387)","v":""},{"$f":"IF('1. Order'!V387=\"\",\"\",'1. Order'!V387)","v":""},{"$f":"IF('1. Order'!W387=\"\",\"\",'1. Order'!W387)","v":""},{"$f":"IF('1. Order'!X387=\"\",\"\",'1. Order'!X387)","v":"EUR"},{"$f":"IF('1. Order'!Y387=\"\",\"\",'1. Order'!Y387)","v":""},{"$f":"IF('1. Order'!Z387=\"\",\"\",'1. Order'!Z387)","v":""},{"$f":"IF('1. Order'!AA387=\"\",\"\",'1. Order'!AA387)","v":""},null,{"$f":"IF('1. Order'!AS387=\"\",\"\",'1. Order'!AS387)","v":""},{"$f":"IF('1. Order'!AT387=\"\",\"\",'1. Order'!AT387)","v":""},null,null,null,null,null,null,null,{"$f":"IF('1. Order'!AX387=\"\",\"\",'1. Order'!AX387)","v":""},{"$f":"IF('1. Order'!AY387=\"\",\"\",'1. Order'!AY387)","v":""},{"$f":"IF('1. Order'!AZ387=\"\",\"\",'1. Order'!AZ387)","v":""},{"$f":"IF('1. Order'!BA387=\"\",\"\",'1. Order'!BA387)","v":""},{"$f":"IF('1. Order'!BC387=\"\",\"\",'1. Order'!BC387)","v":""},{"$f":"IF('1. Order'!BD387=\"\",\"\",'1. Order'!BD387)","v":6},{"$f":"IF('1. Order'!BE387=\"\",\"\",'1. Order'!BE387)","v":"None"},{"$f":"IF('1. Order'!BF387=\"\",\"\",'1. Order'!BF387)","v":"Parcel"},{"$f":"IF('1. Order'!BG387=\"\",\"\",'1. Order'!BG387)","v":"ZWO"}]
[{"$f":"IF('1. Order'!F388=\"\",\"\",'1. Order'!F388)","v":""},{"$f":"IF('1. Order'!G388=\"\",\"\",'1. Order'!G388)","v":""},{"$f":"IF('1. Order'!H388=\"\",\"\",'1. Order'!H388)","v":""},{"$f":"IF('1. Order'!I388=\"\",\"\",'1. Order'!I388)","v":""},{"$f":"IF('1. Order'!J388=\"\",\"\",'1. Order'!J388)","v":""},{"$f":"IF('1. Order'!K388=\"\",\"\",'1. Order'!K388)","v":""},{"$f":"IF('1. Order'!L388=\"\",\"\",'1. Order'!L388)","v":""},{"$f":"IF('1. Order'!M388=\"\",\"\",'1. Order'!M388)","v":""},{"$f":"IF('1. Order'!N388=\"\",\"\",'1. Order'!N388)","v":""},{"$f":"IF('1. Order'!O388=\"\",\"\",'1. Order'!O388)","v":{"$error":"#N/A"}},{"$f":"IF('1. Order'!P388=\"\",\"\",'1. Order'!P388)","v":{"$error":"#N/A"}},{"$f":"IF('1. Order'!Q388=\"\",\"\",'1. Order'!Q388)","v":""},{"$f":"IF('1. Order'!R388=\"\",\"\",'1. Order'!R388)","v":""},{"$f":"IF('1. Order'!S388=\"\",\"\",'1. Order'!S388)","v":""},{"$f":"IF('1. Order'!V388=\"\",\"\",'1. Order'!V388)","v":""},{"$f":"IF('1. Order'!W388=\"\",\"\",'1. Order'!W388)","v":""},{"$f":"IF('1. Order'!X388=\"\",\"\",'1. Order'!X388)","v":"EUR"},{"$f":"IF('1. Order'!Y388=\"\",\"\",'1. Order'!Y388)","v":""},{"$f":"IF('1. Order'!Z388=\"\",\"\",'1. Order'!Z388)","v":""},{"$f":"IF('1. Order'!AA388=\"\",\"\",'1. Order'!AA388)","v":""},null,{"$f":"IF('1. Order'!AS388=\"\",\"\",'1. Order'!AS388)","v":""},{"$f":"IF('1. Order'!AT388=\"\",\"\",'1. Order'!AT388)","v":""},null,null,null,null,null,null,null,{"$f":"IF('1. Order'!AX388=\"\",\"\",'1. Order'!AX388)","v":""},{"$f":"IF('1. Order'!AY388=\"\",\"\",'1. Order'!AY388)","v":""},{"$f":"IF('1. Order'!AZ388=\"\",\"\",'1. Order'!AZ388)","v":""},{"$f":"IF('1. Order'!BA388=\"\",\"\",'1. Order'!BA388)","v":""},{"$f":"IF('1. Order'!BC388=\"\",\"\",'1. Order'!BC388)","v":""},{"$f":"IF('1. Order'!BD388=\"\",\"\",'1. Order'!BD388)","v":6},{"$f":"IF('1. Order'!BE388=\"\",\"\",'1. Order'!BE388)","v":"None"},{"$f":"IF('1. Order'!BF388=\"\",\"\",'1. Order'!BF388)","v":"Parcel"},{"$f":"IF('1. Order'!BG388=\"\",\"\",'1. Order'!BG388)","v":"ZWO"}]
[{"$f":"IF('1. Order'!F389=\"\",\"\",'1. Order'!F389)","v":""},{"$f":"IF('1. Order'!G389=\"\",\"\",'1. Order'!G389)","v":""},{"$f":"IF('1. Order'!H389=\"\",\"\",'1. Order'!H389)","v":""},{"$f":"IF('1. Order'!I389=\"\",\"\",'1. Order'!I389)","v":""},{"$f":"IF('1. Order'!J389=\"\",\"\",'1. Order'!J389)","v":""},{"$f":"IF('1. Order'!K389=\"\",\"\",'1. Order'!K389)","v":""},{"$f":"IF('1. Order'!L389=\"\",\"\",'1. Order'!L389)","v":""},{"$f":"IF('1. Order'!M389=\"\",\"\",'1. Order'!M389)","v":""},{"$f":"IF('1. Order'!N389=\"\",\"\",'1. Order'!N389)","v":""},{"$f":"IF('1. Order'!O389=\"\",\"\",'1. Order'!O389)","v":{"$error":"#N/A"}},{"$f":"IF('1. Order'!P389=\"\",\"\",'1. Order'!P389)","v":{"$error":"#N/A"}},{"$f":"IF('1. Order'!Q389=\"\",\"\",'1. Order'!Q389)","v":""},{"$f":"IF('1. Order'!R389=\"\",\"\",'1. Order'!R389)","v":""},{"$f":"IF('1. Order'!S389=\"\",\"\",'1. Order'!S389)","v":""},{"$f":"IF('1. Order'!V389=\"\",\"\",'1. Order'!V389)","v":""},{"$f":"IF('1. Order'!W389=\"\",\"\",'1. Order'!W389)","v":""},{"$f":"IF('1. Order'!X389=\"\",\"\",'1. Order'!X389)","v":"EUR"},{"$f":"IF('1. Order'!Y389=\"\",\"\",'1. Order'!Y389)","v":""},{"$f":"IF('1. Order'!Z389=\"\",\"\",'1. Order'!Z389)","v":""},{"$f":"IF('1. Order'!AA389=\"\",\"\",'1. Order'!AA389)","v":""},null,{"$f":"IF('1. Order'!AS389=\"\",\"\",'1. Order'!AS389)","v":""},{"$f":"IF('1. Order'!AT389=\"\",\"\",'1. Order'!AT389)","v":""},null,null,null,null,null,null,null,{"$f":"IF('1. Order'!AX389=\"\",\"\",'1. Order'!AX389)","v":""},{"$f":"IF('1. Order'!AY389=\"\",\"\",'1. Order'!AY389)","v":""},{"$f":"IF('1. Order'!AZ389=\"\",\"\",'1. Order'!AZ389)","v":""},{"$f":"IF('1. Order'!BA389=\"\",\"\",'1. Order'!BA389)","v":""},{"$f":"IF('1. Order'!BC389=\"\",\"\",'1. Order'!BC389)","v":""},{"$f":"IF('1. Order'!BD389=\"\",\"\",'1. Order'!BD389)","v":6},{"$f":"IF('1. Order'!BE389=\"\",\"\",'1. Order'!BE389)","v":"None"},{"$f":"IF('1. Order'!BF389=\"\",\"\",'1. Order'!BF389)","v":"Parcel"},{"$f":"IF('1. Order'!BG389=\"\",\"\",'1. Order'!BG389)","v":"ZWO"}]
[{"$f":"IF('1. Order'!F390=\"\",\"\",'1. Order'!F390)","v":""},{"$f":"IF('1. Order'!G390=\"\",\"\",'1. Order'!G390)","v":""},{"$f":"IF('1. Order'!H390=\"\",\"\",'1. Order'!H390)","v":""},{"$f":"IF('1. Order'!I390=\"\",\"\",'1. Order'!I390)","v":""},{"$f":"IF('1. Order'!J390=\"\",\"\",'1. Order'!J390)","v":""},{"$f":"IF('1. Order'!K390=\"\",\"\",'1. Order'!K390)","v":""},{"$f":"IF('1. Order'!L390=\"\",\"\",'1. Order'!L390)","v":""},{"$f":"IF('1. Order'!M390=\"\",\"\",'1. Order'!M390)","v":""},{"$f":"IF('1. Order'!N390=\"\",\"\",'1. Order'!N390)","v":""},{"$f":"IF('1. Order'!O390=\"\",\"\",'1. Order'!O390)","v":{"$error":"#N/A"}},{"$f":"IF('1. Order'!P390=\"\",\"\",'1. Order'!P390)","v":{"$error":"#N/A"}},{"$f":"IF('1. Order'!Q390=\"\",\"\",'1. Order'!Q390)","v":""},{"$f":"IF('1. Order'!R390=\"\",\"\",'1. Order'!R390)","v":""},{"$f":"IF('1. Order'!S390=\"\",\"\",'1. Order'!S390)","v":""},{"$f":"IF('1. Order'!V390=\"\",\"\",'1. Order'!V390)","v":""},{"$f":"IF('1. Order'!W390=\"\",\"\",'1. Order'!W390)","v":""},{"$f":"IF('1. Order'!X390=\"\",\"\",'1. Order'!X390)","v":"EUR"},{"$f":"IF('1. Order'!Y390=\"\",\"\",'1. Order'!Y390)","v":""},{"$f":"IF('1. Order'!Z390=\"\",\"\",'1. Order'!Z390)","v":""},{"$f":"IF('1. Order'!AA390=\"\",\"\",'1. Order'!AA390)","v":""},null,{"$f":"IF('1. Order'!AS390=\"\",\"\",'1. Order'!AS390)","v":""},{"$f":"IF('1. Order'!AT390=\"\",\"\",'1. Order'!AT390)","v":""},null,null,null,null,null,null,null,{"$f":"IF('1. Order'!AX390=\"\",\"\",'1. Order'!AX390)","v":""},{"$f":"IF('1. Order'!AY390=\"\",\"\",'1. Order'!AY390)","v":""},{"$f":"IF('1. Order'!AZ390=\"\",\"\",'1. Order'!AZ390)","v":""},{"$f":"IF('1. Order'!BA390=\"\",\"\",'1. Order'!BA390)","v":""},{"$f":"IF('1. Order'!BC390=\"\",\"\",'1. Order'!BC390)","v":""},{"$f":"IF('1. Order'!BD390=\"\",\"\",'1. Order'!BD390)","v":6},{"$f":"IF('1. Order'!BE390=\"\",\"\",'1. Order'!BE390)","v":"None"},{"$f":"IF('1. Order'!BF390=\"\",\"\",'1. Order'!BF390)","v":"Parcel"},{"$f":"IF('1. Order'!BG390=\"\",\"\",'1. Order'!BG390)","v":"ZWO"}]
[{"$f":"IF('1. Order'!F391=\"\",\"\",'1. Order'!F391)","v":""},{"$f":"IF('1. Order'!G391=\"\",\"\",'1. Order'!G391)","v":""},{"$f":"IF('1. Order'!H391=\"\",\"\",'1. Order'!H391)","v":""},{"$f":"IF('1. Order'!I391=\"\",\"\",'1. Order'!I391)","v":""},{"$f":"IF('1. Order'!J391=\"\",\"\",'1. Order'!J391)","v":""},{"$f":"IF('1. Order'!K391=\"\",\"\",'1. Order'!K391)","v":""},{"$f":"IF('1. Order'!L391=\"\",\"\",'1. Order'!L391)","v":""},{"$f":"IF('1. Order'!M391=\"\",\"\",'1. Order'!M391)","v":""},{"$f":"IF('1. Order'!N391=\"\",\"\",'1. Order'!N391)","v":""},{"$f":"IF('1. Order'!O391=\"\",\"\",'1. Order'!O391)","v":{"$error":"#N/A"}},{"$f":"IF('1. Order'!P391=\"\",\"\",'1. Order'!P391)","v":{"$error":"#N/A"}},{"$f":"IF('1. Order'!Q391=\"\",\"\",'1. Order'!Q391)","v":""},{"$f":"IF('1. Order'!R391=\"\",\"\",'1. Order'!R391)","v":""},{"$f":"IF('1. Order'!S391=\"\",\"\",'1. Order'!S391)","v":""},{"$f":"IF('1. Order'!V391=\"\",\"\",'1. Order'!V391)","v":""},{"$f":"IF('1. Order'!W391=\"\",\"\",'1. Order'!W391)","v":""},{"$f":"IF('1. Order'!X391=\"\",\"\",'1. Order'!X391)","v":"EUR"},{"$f":"IF('1. Order'!Y391=\"\",\"\",'1. Order'!Y391)","v":""},{"$f":"IF('1. Order'!Z391=\"\",\"\",'1. Order'!Z391)","v":""},{"$f":"IF('1. Order'!AA391=\"\",\"\",'1. Order'!AA391)","v":""},null,{"$f":"IF('1. Order'!AS391=\"\",\"\",'1. Order'!AS391)","v":""},{"$f":"IF('1. Order'!AT391=\"\",\"\",'1. Order'!AT391)","v":""},null,null,null,null,null,null,null,{"$f":"IF('1. Order'!AX391=\"\",\"\",'1. Order'!AX391)","v":""},{"$f":"IF('1. Order'!AY391=\"\",\"\",'1. Order'!AY391)","v":""},{"$f":"IF('1. Order'!AZ391=\"\",\"\",'1. Order'!AZ391)","v":""},{"$f":"IF('1. Order'!BA391=\"\",\"\",'1. Order'!BA391)","v":""},{"$f":"IF('1. Order'!BC391=\"\",\"\",'1. Order'!BC391)","v":""},{"$f":"IF('1. Order'!BD391=\"\",\"\",'1. Order'!BD391)","v":6},{"$f":"IF('1. Order'!BE391=\"\",\"\",'1. Order'!BE391)","v":"None"},{"$f":"IF('1. Order'!BF391=\"\",\"\",'1. Order'!BF391)","v":"Parcel"},{"$f":"IF('1. Order'!BG391=\"\",\"\",'1. Order'!BG391)","v":"ZWO"}]
[{"$f":"IF('1. Order'!F392=\"\",\"\",'1. Order'!F392)","v":""},{"$f":"IF('1. Order'!G392=\"\",\"\",'1. Order'!G392)","v":""},{"$f":"IF('1. Order'!H392=\"\",\"\",'1. Order'!H392)","v":""},{"$f":"IF('1. Order'!I392=\"\",\"\",'1. Order'!I392)","v":""},{"$f":"IF('1. Order'!J392=\"\",\"\",'1. Order'!J392)","v":""},{"$f":"IF('1. Order'!K392=\"\",\"\",'1. Order'!K392)","v":""},{"$f":"IF('1. Order'!L392=\"\",\"\",'1. Order'!L392)","v":""},{"$f":"IF('1. Order'!M392=\"\",\"\",'1. Order'!M392)","v":""},{"$f":"IF('1. Order'!N392=\"\",\"\",'1. Order'!N392)","v":""},{"$f":"IF('1. Order'!O392=\"\",\"\",'1. Order'!O392)","v":{"$error":"#N/A"}},{"$f":"IF('1. Order'!P392=\"\",\"\",'1. Order'!P392)","v":{"$error":"#N/A"}},{"$f":"IF('1. Order'!Q392=\"\",\"\",'1. Order'!Q392)","v":""},{"$f":"IF('1. Order'!R392=\"\",\"\",'1. Order'!R392)","v":""},{"$f":"IF('1. Order'!S392=\"\",\"\",'1. Order'!S392)","v":""},{"$f":"IF('1. Order'!V392=\"\",\"\",'1. Order'!V392)","v":""},{"$f":"IF('1. Order'!W392=\"\",\"\",'1. Order'!W392)","v":""},{"$f":"IF('1. Order'!X392=\"\",\"\",'1. Order'!X392)","v":"EUR"},{"$f":"IF('1. Order'!Y392=\"\",\"\",'1. Order'!Y392)","v":""},{"$f":"IF('1. Order'!Z392=\"\",\"\",'1. Order'!Z392)","v":""},{"$f":"IF('1. Order'!AA392=\"\",\"\",'1. Order'!AA392)","v":""},null,{"$f":"IF('1. Order'!AS392=\"\",\"\",'1. Order'!AS392)","v":""},{"$f":"IF('1. Order'!AT392=\"\",\"\",'1. Order'!AT392)","v":""},null,null,null,null,null,null,null,{"$f":"IF('1. Order'!AX392=\"\",\"\",'1. Order'!AX392)","v":""},{"$f":"IF('1. Order'!AY392=\"\",\"\",'1. Order'!AY392)","v":""},{"$f":"IF('1. Order'!AZ392=\"\",\"\",'1. Order'!AZ392)","v":""},{"$f":"IF('1. Order'!BA392=\"\",\"\",'1. Order'!BA392)","v":""},{"$f":"IF('1. Order'!BC392=\"\",\"\",'1. Order'!BC392)","v":""},{"$f":"IF('1. Order'!BD392=\"\",\"\",'1. Order'!BD392)","v":6},{"$f":"IF('1. Order'!BE392=\"\",\"\",'1. Order'!BE392)","v":"None"},{"$f":"IF('1. Order'!BF392=\"\",\"\",'1. Order'!BF392)","v":"Parcel"},{"$f":"IF('1. Order'!BG392=\"\",\"\",'1. Order'!BG392)","v":"ZWO"}]
[{"$f":"IF('1. Order'!F393=\"\",\"\",'1. Order'!F393)","v":""},{"$f":"IF('1. Order'!G393=\"\",\"\",'1. Order'!G393)","v":""},{"$f":"IF('1. Order'!H393=\"\",\"\",'1. Order'!H393)","v":""},{"$f":"IF('1. Order'!I393=\"\",\"\",'1. Order'!I393)","v":""},{"$f":"IF('1. Order'!J393=\"\",\"\",'1. Order'!J393)","v":""},{"$f":"IF('1. Order'!K393=\"\",\"\",'1. Order'!K393)","v":""},{"$f":"IF('1. Order'!L393=\"\",\"\",'1. Order'!L393)","v":""},{"$f":"IF('1. Order'!M393=\"\",\"\",'1. Order'!M393)","v":""},{"$f":"IF('1. Order'!N393=\"\",\"\",'1. Order'!N393)","v":""},{"$f":"IF('1. Order'!O393=\"\",\"\",'1. Order'!O393)","v":{"$error":"#N/A"}},{"$f":"IF('1. Order'!P393=\"\",\"\",'1. Order'!P393)","v":{"$error":"#N/A"}},{"$f":"IF('1. Order'!Q393=\"\",\"\",'1. Order'!Q393)","v":""},{"$f":"IF('1. Order'!R393=\"\",\"\",'1. Order'!R393)","v":""},{"$f":"IF('1. Order'!S393=\"\",\"\",'1. Order'!S393)","v":""},{"$f":"IF('1. Order'!V393=\"\",\"\",'1. Order'!V393)","v":""},{"$f":"IF('1. Order'!W393=\"\",\"\",'1. Order'!W393)","v":""},{"$f":"IF('1. Order'!X393=\"\",\"\",'1. Order'!X393)","v":"EUR"},{"$f":"IF('1. Order'!Y393=\"\",\"\",'1. Order'!Y393)","v":""},{"$f":"IF('1. Order'!Z393=\"\",\"\",'1. Order'!Z393)","v":""},{"$f":"IF('1. Order'!AA393=\"\",\"\",'1. Order'!AA393)","v":""},null,{"$f":"IF('1. Order'!AS393=\"\",\"\",'1. Order'!AS393)","v":""},{"$f":"IF('1. Order'!AT393=\"\",\"\",'1. Order'!AT393)","v":""},null,null,null,null,null,null,null,{"$f":"IF('1. Order'!AX393=\"\",\"\",'1. Order'!AX393)","v":""},{"$f":"IF('1. Order'!AY393=\"\",\"\",'1. Order'!AY393)","v":""},{"$f":"IF('1. Order'!AZ393=\"\",\"\",'1. Order'!AZ393)","v":""},{"$f":"IF('1. Order'!BA393=\"\",\"\",'1. Order'!BA393)","v":""},{"$f":"IF('1. Order'!BC393=\"\",\"\",'1. Order'!BC393)","v":""},{"$f":"IF('1. Order'!BD393=\"\",\"\",'1. Order'!BD393)","v":6},{"$f":"IF('1. Order'!BE393=\"\",\"\",'1. Order'!BE393)","v":"None"},{"$f":"IF('1. Order'!BF393=\"\",\"\",'1. Order'!BF393)","v":"Parcel"},{"$f":"IF('1. Order'!BG393=\"\",\"\",'1. Order'!BG393)","v":"ZWO"}]
[{"$f":"IF('1. Order'!F394=\"\",\"\",'1. Order'!F394)","v":""},{"$f":"IF('1. Order'!G394=\"\",\"\",'1. Order'!G394)","v":""},{"$f":"IF('1. Order'!H394=\"\",\"\",'1. Order'!H394)","v":""},{"$f":"IF('1. Order'!I394=\"\",\"\",'1. Order'!I394)","v":""},{"$f":"IF('1. Order'!J394=\"\",\"\",'1. Order'!J394)","v":""},{"$f":"IF('1. Order'!K394=\"\",\"\",'1. Order'!K394)","v":""},{"$f":"IF('1. Order'!L394=\"\",\"\",'1. Order'!L394)","v":""},{"$f":"IF('1. Order'!M394=\"\",\"\",'1. Order'!M394)","v":""},{"$f":"IF('1. Order'!N394=\"\",\"\",'1. Order'!N394)","v":""},{"$f":"IF('1. Order'!O394=\"\",\"\",'1. Order'!O394)","v":{"$error":"#N/A"}},{"$f":"IF('1. Order'!P394=\"\",\"\",'1. Order'!P394)","v":{"$error":"#N/A"}},{"$f":"IF('1. Order'!Q394=\"\",\"\",'1. Order'!Q394)","v":""},{"$f":"IF('1. Order'!R394=\"\",\"\",'1. Order'!R394)","v":""},{"$f":"IF('1. Order'!S394=\"\",\"\",'1. Order'!S394)","v":""},{"$f":"IF('1. Order'!V394=\"\",\"\",'1. Order'!V394)","v":""},{"$f":"IF('1. Order'!W394=\"\",\"\",'1. Order'!W394)","v":""},{"$f":"IF('1. Order'!X394=\"\",\"\",'1. Order'!X394)","v":"EUR"},{"$f":"IF('1. Order'!Y394=\"\",\"\",'1. Order'!Y394)","v":""},{"$f":"IF('1. Order'!Z394=\"\",\"\",'1. Order'!Z394)","v":""},{"$f":"IF('1. Order'!AA394=\"\",\"\",'1. Order'!AA394)","v":""},null,{"$f":"IF('1. Order'!AS394=\"\",\"\",'1. Order'!AS394)","v":""},{"$f":"IF('1. Order'!AT394=\"\",\"\",'1. Order'!AT394)","v":""},null,null,null,null,null,null,null,{"$f":"IF('1. Order'!AX394=\"\",\"\",'1. Order'!AX394)","v":""},{"$f":"IF('1. Order'!AY394=\"\",\"\",'1. Order'!AY394)","v":""},{"$f":"IF('1. Order'!AZ394=\"\",\"\",'1. Order'!AZ394)","v":""},{"$f":"IF('1. Order'!BA394=\"\",\"\",'1. Order'!BA394)","v":""},{"$f":"IF('1. Order'!BC394=\"\",\"\",'1. Order'!BC394)","v":""},{"$f":"IF('1. Order'!BD394=\"\",\"\",'1. Order'!BD394)","v":6},{"$f":"IF('1. Order'!BE394=\"\",\"\",'1. Order'!BE394)","v":"None"},{"$f":"IF('1. Order'!BF394=\"\",\"\",'1. Order'!BF394)","v":"Parcel"},{"$f":"IF('1. Order'!BG394=\"\",\"\",'1. Order'!BG394)","v":"ZWO"}]
[{"$f":"IF('1. Order'!F395=\"\",\"\",'1. Order'!F395)","v":""},{"$f":"IF('1. Order'!G395=\"\",\"\",'1. Order'!G395)","v":""},{"$f":"IF('1. Order'!H395=\"\",\"\",'1. Order'!H395)","v":""},{"$f":"IF('1. Order'!I395=\"\",\"\",'1. Order'!I395)","v":""},{"$f":"IF('1. Order'!J395=\"\",\"\",'1. Order'!J395)","v":""},{"$f":"IF('1. Order'!K395=\"\",\"\",'1. Order'!K395)","v":""},{"$f":"IF('1. Order'!L395=\"\",\"\",'1. Order'!L395)","v":""},{"$f":"IF('1. Order'!M395=\"\",\"\",'1. Order'!M395)","v":""},{"$f":"IF('1. Order'!N395=\"\",\"\",'1. Order'!N395)","v":""},{"$f":"IF('1. Order'!O395=\"\",\"\",'1. Order'!O395)","v":{"$error":"#N/A"}},{"$f":"IF('1. Order'!P395=\"\",\"\",'1. Order'!P395)","v":{"$error":"#N/A"}},{"$f":"IF('1. Order'!Q395=\"\",\"\",'1. Order'!Q395)","v":""},{"$f":"IF('1. Order'!R395=\"\",\"\",'1. Order'!R395)","v":""},{"$f":"IF('1. Order'!S395=\"\",\"\",'1. Order'!S395)","v":""},{"$f":"IF('1. Order'!V395=\"\",\"\",'1. Order'!V395)","v":""},{"$f":"IF('1. Order'!W395=\"\",\"\",'1. Order'!W395)","v":""},{"$f":"IF('1. Order'!X395=\"\",\"\",'1. Order'!X395)","v":"EUR"},{"$f":"IF('1. Order'!Y395=\"\",\"\",'1. Order'!Y395)","v":""},{"$f":"IF('1. Order'!Z395=\"\",\"\",'1. Order'!Z395)","v":""},{"$f":"IF('1. Order'!AA395=\"\",\"\",'1. Order'!AA395)","v":""},null,{"$f":"IF('1. Order'!AS395=\"\",\"\",'1. Order'!AS395)","v":""},{"$f":"IF('1. Order'!AT395=\"\",\"\",'1. Order'!AT395)","v":""},null,null,null,null,null,null,null,{"$f":"IF('1. Order'!AX395=\"\",\"\",'1. Order'!AX395)","v":""},{"$f":"IF('1. Order'!AY395=\"\",\"\",'1. Order'!AY395)","v":""},{"$f":"IF('1. Order'!AZ395=\"\",\"\",'1. Order'!AZ395)","v":""},{"$f":"IF('1. Order'!BA395=\"\",\"\",'1. Order'!BA395)","v":""},{"$f":"IF('1. Order'!BC395=\"\",\"\",'1. Order'!BC395)","v":""},{"$f":"IF('1. Order'!BD395=\"\",\"\",'1. Order'!BD395)","v":6},{"$f":"IF('1. Order'!BE395=\"\",\"\",'1. Order'!BE395)","v":"None"},{"$f":"IF('1. Order'!BF395=\"\",\"\",'1. Order'!BF395)","v":"Parcel"},{"$f":"IF('1. Order'!BG395=\"\",\"\",'1. Order'!BG395)","v":"ZWO"}]
[{"$f":"IF('1. Order'!F396=\"\",\"\",'1. Order'!F396)","v":""},{"$f":"IF('1. Order'!G396=\"\",\"\",'1. Order'!G396)","v":""},{"$f":"IF('1. Order'!H396=\"\",\"\",'1. Order'!H396)","v":""},{"$f":"IF('1. Order'!I396=\"\",\"\",'1. Order'!I396)","v":""},{"$f":"IF('1. Order'!J396=\"\",\"\",'1. Order'!J396)","v":""},{"$f":"IF('1. Order'!K396=\"\",\"\",'1. Order'!K396)","v":""},{"$f":"IF('1. Order'!L396=\"\",\"\",'1. Order'!L396)","v":""},{"$f":"IF('1. Order'!M396=\"\",\"\",'1. Order'!M396)","v":""},{"$f":"IF('1. Order'!N396=\"\",\"\",'1. Order'!N396)","v":""},{"$f":"IF('1. Order'!O396=\"\",\"\",'1. Order'!O396)","v":{"$error":"#N/A"}},{"$f":"IF('1. Order'!P396=\"\",\"\",'1. Order'!P396)","v":{"$error":"#N/A"}},{"$f":"IF('1. Order'!Q396=\"\",\"\",'1. Order'!Q396)","v":""},{"$f":"IF('1. Order'!R396=\"\",\"\",'1. Order'!R396)","v":""},{"$f":"IF('1. Order'!S396=\"\",\"\",'1. Order'!S396)","v":""},{"$f":"IF('1. Order'!V396=\"\",\"\",'1. Order'!V396)","v":""},{"$f":"IF('1. Order'!W396=\"\",\"\",'1. Order'!W396)","v":""},{"$f":"IF('1. Order'!X396=\"\",\"\",'1. Order'!X396)","v":"EUR"},{"$f":"IF('1. Order'!Y396=\"\",\"\",'1. Order'!Y396)","v":""},{"$f":"IF('1. Order'!Z396=\"\",\"\",'1. Order'!Z396)","v":""},{"$f":"IF('1. Order'!AA396=\"\",\"\",'1. Order'!AA396)","v":""},null,{"$f":"IF('1. Order'!AS396=\"\",\"\",'1. Order'!AS396)","v":""},{"$f":"IF('1. Order'!AT396=\"\",\"\",'1. Order'!AT396)","v":""},null,null,null,null,null,null,null,{"$f":"IF('1. Order'!AX396=\"\",\"\",'1. Order'!AX396)","v":""},{"$f":"IF('1. Order'!AY396=\"\",\"\",'1. Order'!AY396)","v":""},{"$f":"IF('1. Order'!AZ396=\"\",\"\",'1. Order'!AZ396)","v":""},{"$f":"IF('1. Order'!BA396=\"\",\"\",'1. Order'!BA396)","v":""},{"$f":"IF('1. Order'!BC396=\"\",\"\",'1. Order'!BC396)","v":""},{"$f":"IF('1. Order'!BD396=\"\",\"\",'1. Order'!BD396)","v":6},{"$f":"IF('1. Order'!BE396=\"\",\"\",'1. Order'!BE396)","v":"None"},{"$f":"IF('1. Order'!BF396=\"\",\"\",'1. Order'!BF396)","v":"Parcel"},{"$f":"IF('1. Order'!BG396=\"\",\"\",'1. Order'!BG396)","v":"ZWO"}]
[{"$f":"IF('1. Order'!F397=\"\",\"\",'1. Order'!F397)","v":""},{"$f":"IF('1. Order'!G397=\"\",\"\",'1. Order'!G397)","v":""},{"$f":"IF('1. Order'!H397=\"\",\"\",'1. Order'!H397)","v":""},{"$f":"IF('1. Order'!I397=\"\",\"\",'1. Order'!I397)","v":""},{"$f":"IF('1. Order'!J397=\"\",\"\",'1. Order'!J397)","v":""},{"$f":"IF('1. Order'!K397=\"\",\"\",'1. Order'!K397)","v":""},{"$f":"IF('1. Order'!L397=\"\",\"\",'1. Order'!L397)","v":""},{"$f":"IF('1. Order'!M397=\"\",\"\",'1. Order'!M397)","v":""},{"$f":"IF('1. Order'!N397=\"\",\"\",'1. Order'!N397)","v":""},{"$f":"IF('1. Order'!O397=\"\",\"\",'1. Order'!O397)","v":{"$error":"#N/A"}},{"$f":"IF('1. Order'!P397=\"\",\"\",'1. Order'!P397)","v":{"$error":"#N/A"}},{"$f":"IF('1. Order'!Q397=\"\",\"\",'1. Order'!Q397)","v":""},{"$f":"IF('1. Order'!R397=\"\",\"\",'1. Order'!R397)","v":""},{"$f":"IF('1. Order'!S397=\"\",\"\",'1. Order'!S397)","v":""},{"$f":"IF('1. Order'!V397=\"\",\"\",'1. Order'!V397)","v":""},{"$f":"IF('1. Order'!W397=\"\",\"\",'1. Order'!W397)","v":""},{"$f":"IF('1. Order'!X397=\"\",\"\",'1. Order'!X397)","v":"EUR"},{"$f":"IF('1. Order'!Y397=\"\",\"\",'1. Order'!Y397)","v":""},{"$f":"IF('1. Order'!Z397=\"\",\"\",'1. Order'!Z397)","v":""},{"$f":"IF('1. Order'!AA397=\"\",\"\",'1. Order'!AA397)","v":""},null,{"$f":"IF('1. Order'!AS397=\"\",\"\",'1. Order'!AS397)","v":""},{"$f":"IF('1. Order'!AT397=\"\",\"\",'1. Order'!AT397)","v":""},null,null,null,null,null,null,null,{"$f":"IF('1. Order'!AX397=\"\",\"\",'1. Order'!AX397)","v":""},{"$f":"IF('1. Order'!AY397=\"\",\"\",'1. Order'!AY397)","v":""},{"$f":"IF('1. Order'!AZ397=\"\",\"\",'1. Order'!AZ397)","v":""},{"$f":"IF('1. Order'!BA397=\"\",\"\",'1. Order'!BA397)","v":""},{"$f":"IF('1. Order'!BC397=\"\",\"\",'1. Order'!BC397)","v":""},{"$f":"IF('1. Order'!BD397=\"\",\"\",'1. Order'!BD397)","v":6},{"$f":"IF('1. Order'!BE397=\"\",\"\",'1. Order'!BE397)","v":"None"},{"$f":"IF('1. Order'!BF397=\"\",\"\",'1. Order'!BF397)","v":"Parcel"},{"$f":"IF('1. Order'!BG397=\"\",\"\",'1. Order'!BG397)","v":"ZWO"}]
[{"$f":"IF('1. Order'!F398=\"\",\"\",'1. Order'!F398)","v":""},{"$f":"IF('1. Order'!G398=\"\",\"\",'1. Order'!G398)","v":""},{"$f":"IF('1. Order'!H398=\"\",\"\",'1. Order'!H398)","v":""},{"$f":"IF('1. Order'!I398=\"\",\"\",'1. Order'!I398)","v":""},{"$f":"IF('1. Order'!J398=\"\",\"\",'1. Order'!J398)","v":""},{"$f":"IF('1. Order'!K398=\"\",\"\",'1. Order'!K398)","v":""},{"$f":"IF('1. Order'!L398=\"\",\"\",'1. Order'!L398)","v":""},{"$f":"IF('1. Order'!M398=\"\",\"\",'1. Order'!M398)","v":""},{"$f":"IF('1. Order'!N398=\"\",\"\",'1. Order'!N398)","v":""},{"$f":"IF('1. Order'!O398=\"\",\"\",'1. Order'!O398)","v":{"$error":"#N/A"}},{"$f":"IF('1. Order'!P398=\"\",\"\",'1. Order'!P398)","v":{"$error":"#N/A"}},{"$f":"IF('1. Order'!Q398=\"\",\"\",'1. Order'!Q398)","v":""},{"$f":"IF('1. Order'!R398=\"\",\"\",'1. Order'!R398)","v":""},{"$f":"IF('1. Order'!S398=\"\",\"\",'1. Order'!S398)","v":""},{"$f":"IF('1. Order'!V398=\"\",\"\",'1. Order'!V398)","v":""},{"$f":"IF('1. Order'!W398=\"\",\"\",'1. Order'!W398)","v":""},{"$f":"IF('1. Order'!X398=\"\",\"\",'1. Order'!X398)","v":"EUR"},{"$f":"IF('1. Order'!Y398=\"\",\"\",'1. Order'!Y398)","v":""},{"$f":"IF('1. Order'!Z398=\"\",\"\",'1. Order'!Z398)","v":""},{"$f":"IF('1. Order'!AA398=\"\",\"\",'1. Order'!AA398)","v":""},null,{"$f":"IF('1. Order'!AS398=\"\",\"\",'1. Order'!AS398)","v":""},{"$f":"IF('1. Order'!AT398=\"\",\"\",'1. Order'!AT398)","v":""},null,null,null,null,null,null,null,{"$f":"IF('1. Order'!AX398=\"\",\"\",'1. Order'!AX398)","v":""},{"$f":"IF('1. Order'!AY398=\"\",\"\",'1. Order'!AY398)","v":""},{"$f":"IF('1. Order'!AZ398=\"\",\"\",'1. Order'!AZ398)","v":""},{"$f":"IF('1. Order'!BA398=\"\",\"\",'1. Order'!BA398)","v":""},{"$f":"IF('1. Order'!BC398=\"\",\"\",'1. Order'!BC398)","v":""},{"$f":"IF('1. Order'!BD398=\"\",\"\",'1. Order'!BD398)","v":6},{"$f":"IF('1. Order'!BE398=\"\",\"\",'1. Order'!BE398)","v":"None"},{"$f":"IF('1. Order'!BF398=\"\",\"\",'1. Order'!BF398)","v":"Parcel"},{"$f":"IF('1. Order'!BG398=\"\",\"\",'1. Order'!BG398)","v":"ZWO"}]
[{"$f":"IF('1. Order'!F399=\"\",\"\",'1. Order'!F399)","v":""},{"$f":"IF('1. Order'!G399=\"\",\"\",'1. Order'!G399)","v":""},{"$f":"IF('1. Order'!H399=\"\",\"\",'1. Order'!H399)","v":""},{"$f":"IF('1. Order'!I399=\"\",\"\",'1. Order'!I399)","v":""},{"$f":"IF('1. Order'!J399=\"\",\"\",'1. Order'!J399)","v":""},{"$f":"IF('1. Order'!K399=\"\",\"\",'1. Order'!K399)","v":""},{"$f":"IF('1. Order'!L399=\"\",\"\",'1. Order'!L399)","v":""},{"$f":"IF('1. Order'!M399=\"\",\"\",'1. Order'!M399)","v":""},{"$f":"IF('1. Order'!N399=\"\",\"\",'1. Order'!N399)","v":""},{"$f":"IF('1. Order'!O399=\"\",\"\",'1. Order'!O399)","v":{"$error":"#N/A"}},{"$f":"IF('1. Order'!P399=\"\",\"\",'1. Order'!P399)","v":{"$error":"#N/A"}},{"$f":"IF('1. Order'!Q399=\"\",\"\",'1. Order'!Q399)","v":""},{"$f":"IF('1. Order'!R399=\"\",\"\",'1. Order'!R399)","v":""},{"$f":"IF('1. Order'!S399=\"\",\"\",'1. Order'!S399)","v":""},{"$f":"IF('1. Order'!V399=\"\",\"\",'1. Order'!V399)","v":""},{"$f":"IF('1. Order'!W399=\"\",\"\",'1. Order'!W399)","v":""},{"$f":"IF('1. Order'!X399=\"\",\"\",'1. Order'!X399)","v":"EUR"},{"$f":"IF('1. Order'!Y399=\"\",\"\",'1. Order'!Y399)","v":""},{"$f":"IF('1. Order'!Z399=\"\",\"\",'1. Order'!Z399)","v":""},{"$f":"IF('1. Order'!AA399=\"\",\"\",'1. Order'!AA399)","v":""},null,{"$f":"IF('1. Order'!AS399=\"\",\"\",'1. Order'!AS399)","v":""},{"$f":"IF('1. Order'!AT399=\"\",\"\",'1. Order'!AT399)","v":""},null,null,null,null,null,null,null,{"$f":"IF('1. Order'!AX399=\"\",\"\",'1. Order'!AX399)","v":""},{"$f":"IF('1. Order'!AY399=\"\",\"\",'1. Order'!AY399)","v":""},{"$f":"IF('1. Order'!AZ399=\"\",\"\",'1. Order'!AZ399)","v":""},{"$f":"IF('1. Order'!BA399=\"\",\"\",'1. Order'!BA399)","v":""},{"$f":"IF('1. Order'!BC399=\"\",\"\",'1. Order'!BC399)","v":""},{"$f":"IF('1. Order'!BD399=\"\",\"\",'1. Order'!BD399)","v":6},{"$f":"IF('1. Order'!BE399=\"\",\"\",'1. Order'!BE399)","v":"None"},{"$f":"IF('1. Order'!BF399=\"\",\"\",'1. Order'!BF399)","v":"Parcel"},{"$f":"IF('1. Order'!BG399=\"\",\"\",'1. Order'!BG399)","v":"ZWO"}]
[{"$f":"IF('1. Order'!F400=\"\",\"\",'1. Order'!F400)","v":""},{"$f":"IF('1. Order'!G400=\"\",\"\",'1. Order'!G400)","v":""},{"$f":"IF('1. Order'!H400=\"\",\"\",'1. Order'!H400)","v":""},{"$f":"IF('1. Order'!I400=\"\",\"\",'1. Order'!I400)","v":""},{"$f":"IF('1. Order'!J400=\"\",\"\",'1. Order'!J400)","v":""},{"$f":"IF('1. Order'!K400=\"\",\"\",'1. Order'!K400)","v":""},{"$f":"IF('1. Order'!L400=\"\",\"\",'1. Order'!L400)","v":""},{"$f":"IF('1. Order'!M400=\"\",\"\",'1. Order'!M400)","v":""},{"$f":"IF('1. Order'!N400=\"\",\"\",'1. Order'!N400)","v":""},{"$f":"IF('1. Order'!O400=\"\",\"\",'1. Order'!O400)","v":{"$error":"#N/A"}},{"$f":"IF('1. Order'!P400=\"\",\"\",'1. Order'!P400)","v":{"$error":"#N/A"}},{"$f":"IF('1. Order'!Q400=\"\",\"\",'1. Order'!Q400)","v":""},{"$f":"IF('1. Order'!R400=\"\",\"\",'1. Order'!R400)","v":""},{"$f":"IF('1. Order'!S400=\"\",\"\",'1. Order'!S400)","v":""},{"$f":"IF('1. Order'!V400=\"\",\"\",'1. Order'!V400)","v":""},{"$f":"IF('1. Order'!W400=\"\",\"\",'1. Order'!W400)","v":""},{"$f":"IF('1. Order'!X400=\"\",\"\",'1. Order'!X400)","v":"EUR"},{"$f":"IF('1. Order'!Y400=\"\",\"\",'1. Order'!Y400)","v":""},{"$f":"IF('1. Order'!Z400=\"\",\"\",'1. Order'!Z400)","v":""},{"$f":"IF('1. Order'!AA400=\"\",\"\",'1. Order'!AA400)","v":""},null,{"$f":"IF('1. Order'!AS400=\"\",\"\",'1. Order'!AS400)","v":""},{"$f":"IF('1. Order'!AT400=\"\",\"\",'1. Order'!AT400)","v":""},null,null,null,null,null,null,null,{"$f":"IF('1. Order'!AX400=\"\",\"\",'1. Order'!AX400)","v":""},{"$f":"IF('1. Order'!AY400=\"\",\"\",'1. Order'!AY400)","v":""},{"$f":"IF('1. Order'!AZ400=\"\",\"\",'1. Order'!AZ400)","v":""},{"$f":"IF('1. Order'!BA400=\"\",\"\",'1. Order'!BA400)","v":""},{"$f":"IF('1. Order'!BC400=\"\",\"\",'1. Order'!BC400)","v":""},{"$f":"IF('1. Order'!BD400=\"\",\"\",'1. Order'!BD400)","v":6},{"$f":"IF('1. Order'!BE400=\"\",\"\",'1. Order'!BE400)","v":"None"},{"$f":"IF('1. Order'!BF400=\"\",\"\",'1. Order'!BF400)","v":"Parcel"},{"$f":"IF('1. Order'!BG400=\"\",\"\",'1. Order'!BG400)","v":"ZWO"}]
[{"$f":"IF('1. Order'!F401=\"\",\"\",'1. Order'!F401)","v":""},{"$f":"IF('1. Order'!G401=\"\",\"\",'1. Order'!G401)","v":""},{"$f":"IF('1. Order'!H401=\"\",\"\",'1. Order'!H401)","v":""},{"$f":"IF('1. Order'!I401=\"\",\"\",'1. Order'!I401)","v":""},{"$f":"IF('1. Order'!J401=\"\",\"\",'1. Order'!J401)","v":""},{"$f":"IF('1. Order'!K401=\"\",\"\",'1. Order'!K401)","v":""},{"$f":"IF('1. Order'!L401=\"\",\"\",'1. Order'!L401)","v":""},{"$f":"IF('1. Order'!M401=\"\",\"\",'1. Order'!M401)","v":""},{"$f":"IF('1. Order'!N401=\"\",\"\",'1. Order'!N401)","v":""},{"$f":"IF('1. Order'!O401=\"\",\"\",'1. Order'!O401)","v":{"$error":"#N/A"}},{"$f":"IF('1. Order'!P401=\"\",\"\",'1. Order'!P401)","v":{"$error":"#N/A"}},{"$f":"IF('1. Order'!Q401=\"\",\"\",'1. Order'!Q401)","v":""},{"$f":"IF('1. Order'!R401=\"\",\"\",'1. Order'!R401)","v":""},{"$f":"IF('1. Order'!S401=\"\",\"\",'1. Order'!S401)","v":""},{"$f":"IF('1. Order'!V401=\"\",\"\",'1. Order'!V401)","v":""},{"$f":"IF('1. Order'!W401=\"\",\"\",'1. Order'!W401)","v":""},{"$f":"IF('1. Order'!X401=\"\",\"\",'1. Order'!X401)","v":"EUR"},{"$f":"IF('1. Order'!Y401=\"\",\"\",'1. Order'!Y401)","v":""},{"$f":"IF('1. Order'!Z401=\"\",\"\",'1. Order'!Z401)","v":""},{"$f":"IF('1. Order'!AA401=\"\",\"\",'1. Order'!AA401)","v":""},null,{"$f":"IF('1. Order'!AS401=\"\",\"\",'1. Order'!AS401)","v":""},{"$f":"IF('1. Order'!AT401=\"\",\"\",'1. Order'!AT401)","v":""},null,null,null,null,null,null,null,{"$f":"IF('1. Order'!AX401=\"\",\"\",'1. Order'!AX401)","v":""},{"$f":"IF('1. Order'!AY401=\"\",\"\",'1. Order'!AY401)","v":""},{"$f":"IF('1. Order'!AZ401=\"\",\"\",'1. Order'!AZ401)","v":""},{"$f":"IF('1. Order'!BA401=\"\",\"\",'1. Order'!BA401)","v":""},{"$f":"IF('1. Order'!BC401=\"\",\"\",'1. Order'!BC401)","v":""},{"$f":"IF('1. Order'!BD401=\"\",\"\",'1. Order'!BD401)","v":6},{"$f":"IF('1. Order'!BE401=\"\",\"\",'1. Order'!BE401)","v":"None"},{"$f":"IF('1. Order'!BF401=\"\",\"\",'1. Order'!BF401)","v":"Parcel"},{"$f":"IF('1. Order'!BG401=\"\",\"\",'1. Order'!BG401)","v":"ZWO"}]
[{"$f":"IF('1. Order'!F402=\"\",\"\",'1. Order'!F402)","v":""},{"$f":"IF('1. Order'!G402=\"\",\"\",'1. Order'!G402)","v":""},{"$f":"IF('1. Order'!H402=\"\",\"\",'1. Order'!H402)","v":""},{"$f":"IF('1. Order'!I402=\"\",\"\",'1. Order'!I402)","v":""},{"$f":"IF('1. Order'!J402=\"\",\"\",'1. Order'!J402)","v":""},{"$f":"IF('1. Order'!K402=\"\",\"\",'1. Order'!K402)","v":""},{"$f":"IF('1. Order'!L402=\"\",\"\",'1. Order'!L402)","v":""},{"$f":"IF('1. Order'!M402=\"\",\"\",'1. Order'!M402)","v":""},{"$f":"IF('1. Order'!N402=\"\",\"\",'1. Order'!N402)","v":""},{"$f":"IF('1. Order'!O402=\"\",\"\",'1. Order'!O402)","v":{"$error":"#N/A"}},{"$f":"IF('1. Order'!P402=\"\",\"\",'1. Order'!P402)","v":{"$error":"#N/A"}},{"$f":"IF('1. Order'!Q402=\"\",\"\",'1. Order'!Q402)","v":""},{"$f":"IF('1. Order'!R402=\"\",\"\",'1. Order'!R402)","v":""},{"$f":"IF('1. Order'!S402=\"\",\"\",'1. Order'!S402)","v":""},{"$f":"IF('1. Order'!V402=\"\",\"\",'1. Order'!V402)","v":""},{"$f":"IF('1. Order'!W402=\"\",\"\",'1. Order'!W402)","v":""},{"$f":"IF('1. Order'!X402=\"\",\"\",'1. Order'!X402)","v":"EUR"},{"$f":"IF('1. Order'!Y402=\"\",\"\",'1. Order'!Y402)","v":""},{"$f":"IF('1. Order'!Z402=\"\",\"\",'1. Order'!Z402)","v":""},{"$f":"IF('1. Order'!AA402=\"\",\"\",'1. Order'!AA402)","v":""},null,{"$f":"IF('1. Order'!AS402=\"\",\"\",'1. Order'!AS402)","v":""},{"$f":"IF('1. Order'!AT402=\"\",\"\",'1. Order'!AT402)","v":""},null,null,null,null,null,null,null,{"$f":"IF('1. Order'!AX402=\"\",\"\",'1. Order'!AX402)","v":""},{"$f":"IF('1. Order'!AY402=\"\",\"\",'1. Order'!AY402)","v":""},{"$f":"IF('1. Order'!AZ402=\"\",\"\",'1. Order'!AZ402)","v":""},{"$f":"IF('1. Order'!BA402=\"\",\"\",'1. Order'!BA402)","v":""},{"$f":"IF('1. Order'!BC402=\"\",\"\",'1. Order'!BC402)","v":""},{"$f":"IF('1. Order'!BD402=\"\",\"\",'1. Order'!BD402)","v":6},{"$f":"IF('1. Order'!BE402=\"\",\"\",'1. Order'!BE402)","v":"None"},{"$f":"IF('1. Order'!BF402=\"\",\"\",'1. Order'!BF402)","v":"Parcel"},{"$f":"IF('1. Order'!BG402=\"\",\"\",'1. Order'!BG402)","v":"ZWO"}]
[{"$f":"IF('1. Order'!F403=\"\",\"\",'1. Order'!F403)","v":""},{"$f":"IF('1. Order'!G403=\"\",\"\",'1. Order'!G403)","v":""},{"$f":"IF('1. Order'!H403=\"\",\"\",'1. Order'!H403)","v":""},{"$f":"IF('1. Order'!I403=\"\",\"\",'1. Order'!I403)","v":""},{"$f":"IF('1. Order'!J403=\"\",\"\",'1. Order'!J403)","v":""},{"$f":"IF('1. Order'!K403=\"\",\"\",'1. Order'!K403)","v":""},{"$f":"IF('1. Order'!L403=\"\",\"\",'1. Order'!L403)","v":""},{"$f":"IF('1. Order'!M403=\"\",\"\",'1. Order'!M403)","v":""},{"$f":"IF('1. Order'!N403=\"\",\"\",'1. Order'!N403)","v":""},{"$f":"IF('1. Order'!O403=\"\",\"\",'1. Order'!O403)","v":{"$error":"#N/A"}},{"$f":"IF('1. Order'!P403=\"\",\"\",'1. Order'!P403)","v":{"$error":"#N/A"}},{"$f":"IF('1. Order'!Q403=\"\",\"\",'1. Order'!Q403)","v":""},{"$f":"IF('1. Order'!R403=\"\",\"\",'1. Order'!R403)","v":""},{"$f":"IF('1. Order'!S403=\"\",\"\",'1. Order'!S403)","v":""},{"$f":"IF('1. Order'!V403=\"\",\"\",'1. Order'!V403)","v":""},{"$f":"IF('1. Order'!W403=\"\",\"\",'1. Order'!W403)","v":""},{"$f":"IF('1. Order'!X403=\"\",\"\",'1. Order'!X403)","v":"EUR"},{"$f":"IF('1. Order'!Y403=\"\",\"\",'1. Order'!Y403)","v":""},{"$f":"IF('1. Order'!Z403=\"\",\"\",'1. Order'!Z403)","v":""},{"$f":"IF('1. Order'!AA403=\"\",\"\",'1. Order'!AA403)","v":""},null,{"$f":"IF('1. Order'!AS403=\"\",\"\",'1. Order'!AS403)","v":""},{"$f":"IF('1. Order'!AT403=\"\",\"\",'1. Order'!AT403)","v":""},null,null,null,null,null,null,null,{"$f":"IF('1. Order'!AX403=\"\",\"\",'1. Order'!AX403)","v":""},{"$f":"IF('1. Order'!AY403=\"\",\"\",'1. Order'!AY403)","v":""},{"$f":"IF('1. Order'!AZ403=\"\",\"\",'1. Order'!AZ403)","v":""},{"$f":"IF('1. Order'!BA403=\"\",\"\",'1. Order'!BA403)","v":""},{"$f":"IF('1. Order'!BC403=\"\",\"\",'1. Order'!BC403)","v":""},{"$f":"IF('1. Order'!BD403=\"\",\"\",'1. Order'!BD403)","v":6},{"$f":"IF('1. Order'!BE403=\"\",\"\",'1. Order'!BE403)","v":"None"},{"$f":"IF('1. Order'!BF403=\"\",\"\",'1. Order'!BF403)","v":"Parcel"},{"$f":"IF('1. Order'!BG403=\"\",\"\",'1. Order'!BG403)","v":"ZWO"}]
[{"$f":"IF('1. Order'!F404=\"\",\"\",'1. Order'!F404)","v":""},{"$f":"IF('1. Order'!G404=\"\",\"\",'1. Order'!G404)","v":""},{"$f":"IF('1. Order'!H404=\"\",\"\",'1. Order'!H404)","v":""},{"$f":"IF('1. Order'!I404=\"\",\"\",'1. Order'!I404)","v":""},{"$f":"IF('1. Order'!J404=\"\",\"\",'1. Order'!J404)","v":""},{"$f":"IF('1. Order'!K404=\"\",\"\",'1. Order'!K404)","v":""},{"$f":"IF('1. Order'!L404=\"\",\"\",'1. Order'!L404)","v":""},{"$f":"IF('1. Order'!M404=\"\",\"\",'1. Order'!M404)","v":""},{"$f":"IF('1. Order'!N404=\"\",\"\",'1. Order'!N404)","v":""},{"$f":"IF('1. Order'!O404=\"\",\"\",'1. Order'!O404)","v":{"$error":"#N/A"}},{"$f":"IF('1. Order'!P404=\"\",\"\",'1. Order'!P404)","v":{"$error":"#N/A"}},{"$f":"IF('1. Order'!Q404=\"\",\"\",'1. Order'!Q404)","v":""},{"$f":"IF('1. Order'!R404=\"\",\"\",'1. Order'!R404)","v":""},{"$f":"IF('1. Order'!S404=\"\",\"\",'1. Order'!S404)","v":""},{"$f":"IF('1. Order'!V404=\"\",\"\",'1. Order'!V404)","v":""},{"$f":"IF('1. Order'!W404=\"\",\"\",'1. Order'!W404)","v":""},{"$f":"IF('1. Order'!X404=\"\",\"\",'1. Order'!X404)","v":"EUR"},{"$f":"IF('1. Order'!Y404=\"\",\"\",'1. Order'!Y404)","v":""},{"$f":"IF('1. Order'!Z404=\"\",\"\",'1. Order'!Z404)","v":""},{"$f":"IF('1. Order'!AA404=\"\",\"\",'1. Order'!AA404)","v":""},null,{"$f":"IF('1. Order'!AS404=\"\",\"\",'1. Order'!AS404)","v":""},{"$f":"IF('1. Order'!AT404=\"\",\"\",'1. Order'!AT404)","v":""},null,null,null,null,null,null,null,{"$f":"IF('1. Order'!AX404=\"\",\"\",'1. Order'!AX404)","v":""},{"$f":"IF('1. Order'!AY404=\"\",\"\",'1. Order'!AY404)","v":""},{"$f":"IF('1. Order'!AZ404=\"\",\"\",'1. Order'!AZ404)","v":""},{"$f":"IF('1. Order'!BA404=\"\",\"\",'1. Order'!BA404)","v":""},{"$f":"IF('1. Order'!BC404=\"\",\"\",'1. Order'!BC404)","v":""},{"$f":"IF('1. Order'!BD404=\"\",\"\",'1. Order'!BD404)","v":6},{"$f":"IF('1. Order'!BE404=\"\",\"\",'1. Order'!BE404)","v":"None"},{"$f":"IF('1. Order'!BF404=\"\",\"\",'1. Order'!BF404)","v":"Parcel"},{"$f":"IF('1. Order'!BG404=\"\",\"\",'1. Order'!BG404)","v":"ZWO"}]
[{"$f":"IF('1. Order'!F405=\"\",\"\",'1. Order'!F405)","v":""},{"$f":"IF('1. Order'!G405=\"\",\"\",'1. Order'!G405)","v":""},{"$f":"IF('1. Order'!H405=\"\",\"\",'1. Order'!H405)","v":""},{"$f":"IF('1. Order'!I405=\"\",\"\",'1. Order'!I405)","v":""},{"$f":"IF('1. Order'!J405=\"\",\"\",'1. Order'!J405)","v":""},{"$f":"IF('1. Order'!K405=\"\",\"\",'1. Order'!K405)","v":""},{"$f":"IF('1. Order'!L405=\"\",\"\",'1. Order'!L405)","v":""},{"$f":"IF('1. Order'!M405=\"\",\"\",'1. Order'!M405)","v":""},{"$f":"IF('1. Order'!N405=\"\",\"\",'1. Order'!N405)","v":""},{"$f":"IF('1. Order'!O405=\"\",\"\",'1. Order'!O405)","v":{"$error":"#N/A"}},{"$f":"IF('1. Order'!P405=\"\",\"\",'1. Order'!P405)","v":{"$error":"#N/A"}},{"$f":"IF('1. Order'!Q405=\"\",\"\",'1. Order'!Q405)","v":""},{"$f":"IF('1. Order'!R405=\"\",\"\",'1. Order'!R405)","v":""},{"$f":"IF('1. Order'!S405=\"\",\"\",'1. Order'!S405)","v":""},{"$f":"IF('1. Order'!V405=\"\",\"\",'1. Order'!V405)","v":""},{"$f":"IF('1. Order'!W405=\"\",\"\",'1. Order'!W405)","v":""},{"$f":"IF('1. Order'!X405=\"\",\"\",'1. Order'!X405)","v":"EUR"},{"$f":"IF('1. Order'!Y405=\"\",\"\",'1. Order'!Y405)","v":""},{"$f":"IF('1. Order'!Z405=\"\",\"\",'1. Order'!Z405)","v":""},{"$f":"IF('1. Order'!AA405=\"\",\"\",'1. Order'!AA405)","v":""},null,{"$f":"IF('1. Order'!AS405=\"\",\"\",'1. Order'!AS405)","v":""},{"$f":"IF('1. Order'!AT405=\"\",\"\",'1. Order'!AT405)","v":""},null,null,null,null,null,null,null,{"$f":"IF('1. Order'!AX405=\"\",\"\",'1. Order'!AX405)","v":""},{"$f":"IF('1. Order'!AY405=\"\",\"\",'1. Order'!AY405)","v":""},{"$f":"IF('1. Order'!AZ405=\"\",\"\",'1. Order'!AZ405)","v":""},{"$f":"IF('1. Order'!BA405=\"\",\"\",'1. Order'!BA405)","v":""},{"$f":"IF('1. Order'!BC405=\"\",\"\",'1. Order'!BC405)","v":""},{"$f":"IF('1. Order'!BD405=\"\",\"\",'1. Order'!BD405)","v":6},{"$f":"IF('1. Order'!BE405=\"\",\"\",'1. Order'!BE405)","v":"None"},{"$f":"IF('1. Order'!BF405=\"\",\"\",'1. Order'!BF405)","v":"Parcel"},{"$f":"IF('1. Order'!BG405=\"\",\"\",'1. Order'!BG405)","v":"ZWO"}]
[{"$f":"IF('1. Order'!F406=\"\",\"\",'1. Order'!F406)","v":""},{"$f":"IF('1. Order'!G406=\"\",\"\",'1. Order'!G406)","v":""},{"$f":"IF('1. Order'!H406=\"\",\"\",'1. Order'!H406)","v":""},{"$f":"IF('1. Order'!I406=\"\",\"\",'1. Order'!I406)","v":""},{"$f":"IF('1. Order'!J406=\"\",\"\",'1. Order'!J406)","v":""},{"$f":"IF('1. Order'!K406=\"\",\"\",'1. Order'!K406)","v":""},{"$f":"IF('1. Order'!L406=\"\",\"\",'1. Order'!L406)","v":""},{"$f":"IF('1. Order'!M406=\"\",\"\",'1. Order'!M406)","v":""},{"$f":"IF('1. Order'!N406=\"\",\"\",'1. Order'!N406)","v":""},{"$f":"IF('1. Order'!O406=\"\",\"\",'1. Order'!O406)","v":{"$error":"#N/A"}},{"$f":"IF('1. Order'!P406=\"\",\"\",'1. Order'!P406)","v":{"$error":"#N/A"}},{"$f":"IF('1. Order'!Q406=\"\",\"\",'1. Order'!Q406)","v":""},{"$f":"IF('1. Order'!R406=\"\",\"\",'1. Order'!R406)","v":""},{"$f":"IF('1. Order'!S406=\"\",\"\",'1. Order'!S406)","v":""},{"$f":"IF('1. Order'!V406=\"\",\"\",'1. Order'!V406)","v":""},{"$f":"IF('1. Order'!W406=\"\",\"\",'1. Order'!W406)","v":""},{"$f":"IF('1. Order'!X406=\"\",\"\",'1. Order'!X406)","v":"EUR"},{"$f":"IF('1. Order'!Y406=\"\",\"\",'1. Order'!Y406)","v":""},{"$f":"IF('1. Order'!Z406=\"\",\"\",'1. Order'!Z406)","v":""},{"$f":"IF('1. Order'!AA406=\"\",\"\",'1. Order'!AA406)","v":""},null,{"$f":"IF('1. Order'!AS406=\"\",\"\",'1. Order'!AS406)","v":""},{"$f":"IF('1. Order'!AT406=\"\",\"\",'1. Order'!AT406)","v":""},null,null,null,null,null,null,null,{"$f":"IF('1. Order'!AX406=\"\",\"\",'1. Order'!AX406)","v":""},{"$f":"IF('1. Order'!AY406=\"\",\"\",'1. Order'!AY406)","v":""},{"$f":"IF('1. Order'!AZ406=\"\",\"\",'1. Order'!AZ406)","v":""},{"$f":"IF('1. Order'!BA406=\"\",\"\",'1. Order'!BA406)","v":""},{"$f":"IF('1. Order'!BC406=\"\",\"\",'1. Order'!BC406)","v":""},{"$f":"IF('1. Order'!BD406=\"\",\"\",'1. Order'!BD406)","v":6},{"$f":"IF('1. Order'!BE406=\"\",\"\",'1. Order'!BE406)","v":"None"},{"$f":"IF('1. Order'!BF406=\"\",\"\",'1. Order'!BF406)","v":"Parcel"},{"$f":"IF('1. Order'!BG406=\"\",\"\",'1. Order'!BG406)","v":"ZWO"}]
[{"$f":"IF('1. Order'!F407=\"\",\"\",'1. Order'!F407)","v":""},{"$f":"IF('1. Order'!G407=\"\",\"\",'1. Order'!G407)","v":""},{"$f":"IF('1. Order'!H407=\"\",\"\",'1. Order'!H407)","v":""},{"$f":"IF('1. Order'!I407=\"\",\"\",'1. Order'!I407)","v":""},{"$f":"IF('1. Order'!J407=\"\",\"\",'1. Order'!J407)","v":""},{"$f":"IF('1. Order'!K407=\"\",\"\",'1. Order'!K407)","v":""},{"$f":"IF('1. Order'!L407=\"\",\"\",'1. Order'!L407)","v":""},{"$f":"IF('1. Order'!M407=\"\",\"\",'1. Order'!M407)","v":""},{"$f":"IF('1. Order'!N407=\"\",\"\",'1. Order'!N407)","v":""},{"$f":"IF('1. Order'!O407=\"\",\"\",'1. Order'!O407)","v":{"$error":"#N/A"}},{"$f":"IF('1. Order'!P407=\"\",\"\",'1. Order'!P407)","v":{"$error":"#N/A"}},{"$f":"IF('1. Order'!Q407=\"\",\"\",'1. Order'!Q407)","v":""},{"$f":"IF('1. Order'!R407=\"\",\"\",'1. Order'!R407)","v":""},{"$f":"IF('1. Order'!S407=\"\",\"\",'1. Order'!S407)","v":""},{"$f":"IF('1. Order'!V407=\"\",\"\",'1. Order'!V407)","v":""},{"$f":"IF('1. Order'!W407=\"\",\"\",'1. Order'!W407)","v":""},{"$f":"IF('1. Order'!X407=\"\",\"\",'1. Order'!X407)","v":"EUR"},{"$f":"IF('1. Order'!Y407=\"\",\"\",'1. Order'!Y407)","v":""},{"$f":"IF('1. Order'!Z407=\"\",\"\",'1. Order'!Z407)","v":""},{"$f":"IF('1. Order'!AA407=\"\",\"\",'1. Order'!AA407)","v":""},null,{"$f":"IF('1. Order'!AS407=\"\",\"\",'1. Order'!AS407)","v":""},{"$f":"IF('1. Order'!AT407=\"\",\"\",'1. Order'!AT407)","v":""},null,null,null,null,null,null,null,{"$f":"IF('1. Order'!AX407=\"\",\"\",'1. Order'!AX407)","v":""},{"$f":"IF('1. Order'!AY407=\"\",\"\",'1. Order'!AY407)","v":""},{"$f":"IF('1. Order'!AZ407=\"\",\"\",'1. Order'!AZ407)","v":""},{"$f":"IF('1. Order'!BA407=\"\",\"\",'1. Order'!BA407)","v":""},{"$f":"IF('1. Order'!BC407=\"\",\"\",'1. Order'!BC407)","v":""},{"$f":"IF('1. Order'!BD407=\"\",\"\",'1. Order'!BD407)","v":6},{"$f":"IF('1. Order'!BE407=\"\",\"\",'1. Order'!BE407)","v":"None"},{"$f":"IF('1. Order'!BF407=\"\",\"\",'1. Order'!BF407)","v":"Parcel"},{"$f":"IF('1. Order'!BG407=\"\",\"\",'1. Order'!BG407)","v":"ZWO"}]
[{"$f":"IF('1. Order'!F408=\"\",\"\",'1. Order'!F408)","v":""},{"$f":"IF('1. Order'!G408=\"\",\"\",'1. Order'!G408)","v":""},{"$f":"IF('1. Order'!H408=\"\",\"\",'1. Order'!H408)","v":""},{"$f":"IF('1. Order'!I408=\"\",\"\",'1. Order'!I408)","v":""},{"$f":"IF('1. Order'!J408=\"\",\"\",'1. Order'!J408)","v":""},{"$f":"IF('1. Order'!K408=\"\",\"\",'1. Order'!K408)","v":""},{"$f":"IF('1. Order'!L408=\"\",\"\",'1. Order'!L408)","v":""},{"$f":"IF('1. Order'!M408=\"\",\"\",'1. Order'!M408)","v":""},{"$f":"IF('1. Order'!N408=\"\",\"\",'1. Order'!N408)","v":""},{"$f":"IF('1. Order'!O408=\"\",\"\",'1. Order'!O408)","v":{"$error":"#N/A"}},{"$f":"IF('1. Order'!P408=\"\",\"\",'1. Order'!P408)","v":{"$error":"#N/A"}},{"$f":"IF('1. Order'!Q408=\"\",\"\",'1. Order'!Q408)","v":""},{"$f":"IF('1. Order'!R408=\"\",\"\",'1. Order'!R408)","v":""},{"$f":"IF('1. Order'!S408=\"\",\"\",'1. Order'!S408)","v":""},{"$f":"IF('1. Order'!V408=\"\",\"\",'1. Order'!V408)","v":""},{"$f":"IF('1. Order'!W408=\"\",\"\",'1. Order'!W408)","v":""},{"$f":"IF('1. Order'!X408=\"\",\"\",'1. Order'!X408)","v":"EUR"},{"$f":"IF('1. Order'!Y408=\"\",\"\",'1. Order'!Y408)","v":""},{"$f":"IF('1. Order'!Z408=\"\",\"\",'1. Order'!Z408)","v":""},{"$f":"IF('1. Order'!AA408=\"\",\"\",'1. Order'!AA408)","v":""},null,{"$f":"IF('1. Order'!AS408=\"\",\"\",'1. Order'!AS408)","v":""},{"$f":"IF('1. Order'!AT408=\"\",\"\",'1. Order'!AT408)","v":""},null,null,null,null,null,null,null,{"$f":"IF('1. Order'!AX408=\"\",\"\",'1. Order'!AX408)","v":""},{"$f":"IF('1. Order'!AY408=\"\",\"\",'1. Order'!AY408)","v":""},{"$f":"IF('1. Order'!AZ408=\"\",\"\",'1. Order'!AZ408)","v":""},{"$f":"IF('1. Order'!BA408=\"\",\"\",'1. Order'!BA408)","v":""},{"$f":"IF('1. Order'!BC408=\"\",\"\",'1. Order'!BC408)","v":""},{"$f":"IF('1. Order'!BD408=\"\",\"\",'1. Order'!BD408)","v":6},{"$f":"IF('1. Order'!BE408=\"\",\"\",'1. Order'!BE408)","v":"None"},{"$f":"IF('1. Order'!BF408=\"\",\"\",'1. Order'!BF408)","v":"Parcel"},{"$f":"IF('1. Order'!BG408=\"\",\"\",'1. Order'!BG408)","v":"ZWO"}]
[{"$f":"IF('1. Order'!F409=\"\",\"\",'1. Order'!F409)","v":""},{"$f":"IF('1. Order'!G409=\"\",\"\",'1. Order'!G409)","v":""},{"$f":"IF('1. Order'!H409=\"\",\"\",'1. Order'!H409)","v":""},{"$f":"IF('1. Order'!I409=\"\",\"\",'1. Order'!I409)","v":""},{"$f":"IF('1. Order'!J409=\"\",\"\",'1. Order'!J409)","v":""},{"$f":"IF('1. Order'!K409=\"\",\"\",'1. Order'!K409)","v":""},{"$f":"IF('1. Order'!L409=\"\",\"\",'1. Order'!L409)","v":""},{"$f":"IF('1. Order'!M409=\"\",\"\",'1. Order'!M409)","v":""},{"$f":"IF('1. Order'!N409=\"\",\"\",'1. Order'!N409)","v":""},{"$f":"IF('1. Order'!O409=\"\",\"\",'1. Order'!O409)","v":{"$error":"#N/A"}},{"$f":"IF('1. Order'!P409=\"\",\"\",'1. Order'!P409)","v":{"$error":"#N/A"}},{"$f":"IF('1. Order'!Q409=\"\",\"\",'1. Order'!Q409)","v":""},{"$f":"IF('1. Order'!R409=\"\",\"\",'1. Order'!R409)","v":""},{"$f":"IF('1. Order'!S409=\"\",\"\",'1. Order'!S409)","v":""},{"$f":"IF('1. Order'!V409=\"\",\"\",'1. Order'!V409)","v":""},{"$f":"IF('1. Order'!W409=\"\",\"\",'1. Order'!W409)","v":""},{"$f":"IF('1. Order'!X409=\"\",\"\",'1. Order'!X409)","v":"EUR"},{"$f":"IF('1. Order'!Y409=\"\",\"\",'1. Order'!Y409)","v":""},{"$f":"IF('1. Order'!Z409=\"\",\"\",'1. Order'!Z409)","v":""},{"$f":"IF('1. Order'!AA409=\"\",\"\",'1. Order'!AA409)","v":""},null,{"$f":"IF('1. Order'!AS409=\"\",\"\",'1. Order'!AS409)","v":""},{"$f":"IF('1. Order'!AT409=\"\",\"\",'1. Order'!AT409)","v":""},null,null,null,null,null,null,null,{"$f":"IF('1. Order'!AX409=\"\",\"\",'1. Order'!AX409)","v":""},{"$f":"IF('1. Order'!AY409=\"\",\"\",'1. Order'!AY409)","v":""},{"$f":"IF('1. Order'!AZ409=\"\",\"\",'1. Order'!AZ409)","v":""},{"$f":"IF('1. Order'!BA409=\"\",\"\",'1. Order'!BA409)","v":""},{"$f":"IF('1. Order'!BC409=\"\",\"\",'1. Order'!BC409)","v":""},{"$f":"IF('1. Order'!BD409=\"\",\"\",'1. Order'!BD409)","v":6},{"$f":"IF('1. Order'!BE409=\"\",\"\",'1. Order'!BE409)","v":"None"},{"$f":"IF('1. Order'!BF409=\"\",\"\",'1. Order'!BF409)","v":"Parcel"},{"$f":"IF('1. Order'!BG409=\"\",\"\",'1. Order'!BG409)","v":"ZWO"}]
[{"$f":"IF('1. Order'!F410=\"\",\"\",'1. Order'!F410)","v":""},{"$f":"IF('1. Order'!G410=\"\",\"\",'1. Order'!G410)","v":""},{"$f":"IF('1. Order'!H410=\"\",\"\",'1. Order'!H410)","v":""},{"$f":"IF('1. Order'!I410=\"\",\"\",'1. Order'!I410)","v":""},{"$f":"IF('1. Order'!J410=\"\",\"\",'1. Order'!J410)","v":""},{"$f":"IF('1. Order'!K410=\"\",\"\",'1. Order'!K410)","v":""},{"$f":"IF('1. Order'!L410=\"\",\"\",'1. Order'!L410)","v":""},{"$f":"IF('1. Order'!M410=\"\",\"\",'1. Order'!M410)","v":""},{"$f":"IF('1. Order'!N410=\"\",\"\",'1. Order'!N410)","v":""},{"$f":"IF('1. Order'!O410=\"\",\"\",'1. Order'!O410)","v":{"$error":"#N/A"}},{"$f":"IF('1. Order'!P410=\"\",\"\",'1. Order'!P410)","v":{"$error":"#N/A"}},{"$f":"IF('1. Order'!Q410=\"\",\"\",'1. Order'!Q410)","v":""},{"$f":"IF('1. Order'!R410=\"\",\"\",'1. Order'!R410)","v":""},{"$f":"IF('1. Order'!S410=\"\",\"\",'1. Order'!S410)","v":""},{"$f":"IF('1. Order'!V410=\"\",\"\",'1. Order'!V410)","v":""},{"$f":"IF('1. Order'!W410=\"\",\"\",'1. Order'!W410)","v":""},{"$f":"IF('1. Order'!X410=\"\",\"\",'1. Order'!X410)","v":"EUR"},{"$f":"IF('1. Order'!Y410=\"\",\"\",'1. Order'!Y410)","v":""},{"$f":"IF('1. Order'!Z410=\"\",\"\",'1. Order'!Z410)","v":""},{"$f":"IF('1. Order'!AA410=\"\",\"\",'1. Order'!AA410)","v":""},null,{"$f":"IF('1. Order'!AS410=\"\",\"\",'1. Order'!AS410)","v":""},{"$f":"IF('1. Order'!AT410=\"\",\"\",'1. Order'!AT410)","v":""},null,null,null,null,null,null,null,{"$f":"IF('1. Order'!AX410=\"\",\"\",'1. Order'!AX410)","v":""},{"$f":"IF('1. Order'!AY410=\"\",\"\",'1. Order'!AY410)","v":""},{"$f":"IF('1. Order'!AZ410=\"\",\"\",'1. Order'!AZ410)","v":""},{"$f":"IF('1. Order'!BA410=\"\",\"\",'1. Order'!BA410)","v":""},{"$f":"IF('1. Order'!BC410=\"\",\"\",'1. Order'!BC410)","v":""},{"$f":"IF('1. Order'!BD410=\"\",\"\",'1. Order'!BD410)","v":6},{"$f":"IF('1. Order'!BE410=\"\",\"\",'1. Order'!BE410)","v":"None"},{"$f":"IF('1. Order'!BF410=\"\",\"\",'1. Order'!BF410)","v":"Parcel"},{"$f":"IF('1. Order'!BG410=\"\",\"\",'1. Order'!BG410)","v":"ZWO"}]
[{"$f":"IF('1. Order'!F411=\"\",\"\",'1. Order'!F411)","v":""},{"$f":"IF('1. Order'!G411=\"\",\"\",'1. Order'!G411)","v":""},{"$f":"IF('1. Order'!H411=\"\",\"\",'1. Order'!H411)","v":""},{"$f":"IF('1. Order'!I411=\"\",\"\",'1. Order'!I411)","v":""},{"$f":"IF('1. Order'!J411=\"\",\"\",'1. Order'!J411)","v":""},{"$f":"IF('1. Order'!K411=\"\",\"\",'1. Order'!K411)","v":""},{"$f":"IF('1. Order'!L411=\"\",\"\",'1. Order'!L411)","v":""},{"$f":"IF('1. Order'!M411=\"\",\"\",'1. Order'!M411)","v":""},{"$f":"IF('1. Order'!N411=\"\",\"\",'1. Order'!N411)","v":""},{"$f":"IF('1. Order'!O411=\"\",\"\",'1. Order'!O411)","v":{"$error":"#N/A"}},{"$f":"IF('1. Order'!P411=\"\",\"\",'1. Order'!P411)","v":{"$error":"#N/A"}},{"$f":"IF('1. Order'!Q411=\"\",\"\",'1. Order'!Q411)","v":""},{"$f":"IF('1. Order'!R411=\"\",\"\",'1. Order'!R411)","v":""},{"$f":"IF('1. Order'!S411=\"\",\"\",'1. Order'!S411)","v":""},{"$f":"IF('1. Order'!V411=\"\",\"\",'1. Order'!V411)","v":""},{"$f":"IF('1. Order'!W411=\"\",\"\",'1. Order'!W411)","v":""},{"$f":"IF('1. Order'!X411=\"\",\"\",'1. Order'!X411)","v":"EUR"},{"$f":"IF('1. Order'!Y411=\"\",\"\",'1. Order'!Y411)","v":""},{"$f":"IF('1. Order'!Z411=\"\",\"\",'1. Order'!Z411)","v":""},{"$f":"IF('1. Order'!AA411=\"\",\"\",'1. Order'!AA411)","v":""},null,{"$f":"IF('1. Order'!AS411=\"\",\"\",'1. Order'!AS411)","v":""},{"$f":"IF('1. Order'!AT411=\"\",\"\",'1. Order'!AT411)","v":""},null,null,null,null,null,null,null,{"$f":"IF('1. Order'!AX411=\"\",\"\",'1. Order'!AX411)","v":""},{"$f":"IF('1. Order'!AY411=\"\",\"\",'1. Order'!AY411)","v":""},{"$f":"IF('1. Order'!AZ411=\"\",\"\",'1. Order'!AZ411)","v":""},{"$f":"IF('1. Order'!BA411=\"\",\"\",'1. Order'!BA411)","v":""},{"$f":"IF('1. Order'!BC411=\"\",\"\",'1. Order'!BC411)","v":""},{"$f":"IF('1. Order'!BD411=\"\",\"\",'1. Order'!BD411)","v":6},{"$f":"IF('1. Order'!BE411=\"\",\"\",'1. Order'!BE411)","v":"None"},{"$f":"IF('1. Order'!BF411=\"\",\"\",'1. Order'!BF411)","v":"Parcel"},{"$f":"IF('1. Order'!BG411=\"\",\"\",'1. Order'!BG411)","v":"ZWO"}]
[{"$f":"IF('1. Order'!F412=\"\",\"\",'1. Order'!F412)","v":""},{"$f":"IF('1. Order'!G412=\"\",\"\",'1. Order'!G412)","v":""},{"$f":"IF('1. Order'!H412=\"\",\"\",'1. Order'!H412)","v":""},{"$f":"IF('1. Order'!I412=\"\",\"\",'1. Order'!I412)","v":""},{"$f":"IF('1. Order'!J412=\"\",\"\",'1. Order'!J412)","v":""},{"$f":"IF('1. Order'!K412=\"\",\"\",'1. Order'!K412)","v":""},{"$f":"IF('1. Order'!L412=\"\",\"\",'1. Order'!L412)","v":""},{"$f":"IF('1. Order'!M412=\"\",\"\",'1. Order'!M412)","v":""},{"$f":"IF('1. Order'!N412=\"\",\"\",'1. Order'!N412)","v":""},{"$f":"IF('1. Order'!O412=\"\",\"\",'1. Order'!O412)","v":{"$error":"#N/A"}},{"$f":"IF('1. Order'!P412=\"\",\"\",'1. Order'!P412)","v":{"$error":"#N/A"}},{"$f":"IF('1. Order'!Q412=\"\",\"\",'1. Order'!Q412)","v":""},{"$f":"IF('1. Order'!R412=\"\",\"\",'1. Order'!R412)","v":""},{"$f":"IF('1. Order'!S412=\"\",\"\",'1. Order'!S412)","v":""},{"$f":"IF('1. Order'!V412=\"\",\"\",'1. Order'!V412)","v":""},{"$f":"IF('1. Order'!W412=\"\",\"\",'1. Order'!W412)","v":""},{"$f":"IF('1. Order'!X412=\"\",\"\",'1. Order'!X412)","v":"EUR"},{"$f":"IF('1. Order'!Y412=\"\",\"\",'1. Order'!Y412)","v":""},{"$f":"IF('1. Order'!Z412=\"\",\"\",'1. Order'!Z412)","v":""},{"$f":"IF('1. Order'!AA412=\"\",\"\",'1. Order'!AA412)","v":""},null,{"$f":"IF('1. Order'!AS412=\"\",\"\",'1. Order'!AS412)","v":""},{"$f":"IF('1. Order'!AT412=\"\",\"\",'1. Order'!AT412)","v":""},null,null,null,null,null,null,null,{"$f":"IF('1. Order'!AX412=\"\",\"\",'1. Order'!AX412)","v":""},{"$f":"IF('1. Order'!AY412=\"\",\"\",'1. Order'!AY412)","v":""},{"$f":"IF('1. Order'!AZ412=\"\",\"\",'1. Order'!AZ412)","v":""},{"$f":"IF('1. Order'!BA412=\"\",\"\",'1. Order'!BA412)","v":""},{"$f":"IF('1. Order'!BC412=\"\",\"\",'1. Order'!BC412)","v":""},{"$f":"IF('1. Order'!BD412=\"\",\"\",'1. Order'!BD412)","v":6},{"$f":"IF('1. Order'!BE412=\"\",\"\",'1. Order'!BE412)","v":"None"},{"$f":"IF('1. Order'!BF412=\"\",\"\",'1. Order'!BF412)","v":"Parcel"},{"$f":"IF('1. Order'!BG412=\"\",\"\",'1. Order'!BG412)","v":"ZWO"}]
[{"$f":"IF('1. Order'!F413=\"\",\"\",'1. Order'!F413)","v":""},{"$f":"IF('1. Order'!G413=\"\",\"\",'1. Order'!G413)","v":""},{"$f":"IF('1. Order'!H413=\"\",\"\",'1. Order'!H413)","v":""},{"$f":"IF('1. Order'!I413=\"\",\"\",'1. Order'!I413)","v":""},{"$f":"IF('1. Order'!J413=\"\",\"\",'1. Order'!J413)","v":""},{"$f":"IF('1. Order'!K413=\"\",\"\",'1. Order'!K413)","v":""},{"$f":"IF('1. Order'!L413=\"\",\"\",'1. Order'!L413)","v":""},{"$f":"IF('1. Order'!M413=\"\",\"\",'1. Order'!M413)","v":""},{"$f":"IF('1. Order'!N413=\"\",\"\",'1. Order'!N413)","v":""},{"$f":"IF('1. Order'!O413=\"\",\"\",'1. Order'!O413)","v":{"$error":"#N/A"}},{"$f":"IF('1. Order'!P413=\"\",\"\",'1. Order'!P413)","v":{"$error":"#N/A"}},{"$f":"IF('1. Order'!Q413=\"\",\"\",'1. Order'!Q413)","v":""},{"$f":"IF('1. Order'!R413=\"\",\"\",'1. Order'!R413)","v":""},{"$f":"IF('1. Order'!S413=\"\",\"\",'1. Order'!S413)","v":""},{"$f":"IF('1. Order'!V413=\"\",\"\",'1. Order'!V413)","v":""},{"$f":"IF('1. Order'!W413=\"\",\"\",'1. Order'!W413)","v":""},{"$f":"IF('1. Order'!X413=\"\",\"\",'1. Order'!X413)","v":"EUR"},{"$f":"IF('1. Order'!Y413=\"\",\"\",'1. Order'!Y413)","v":""},{"$f":"IF('1. Order'!Z413=\"\",\"\",'1. Order'!Z413)","v":""},{"$f":"IF('1. Order'!AA413=\"\",\"\",'1. Order'!AA413)","v":""},null,{"$f":"IF('1. Order'!AS413=\"\",\"\",'1. Order'!AS413)","v":""},{"$f":"IF('1. Order'!AT413=\"\",\"\",'1. Order'!AT413)","v":""},null,null,null,null,null,null,null,{"$f":"IF('1. Order'!AX413=\"\",\"\",'1. Order'!AX413)","v":""},{"$f":"IF('1. Order'!AY413=\"\",\"\",'1. Order'!AY413)","v":""},{"$f":"IF('1. Order'!AZ413=\"\",\"\",'1. Order'!AZ413)","v":""},{"$f":"IF('1. Order'!BA413=\"\",\"\",'1. Order'!BA413)","v":""},{"$f":"IF('1. Order'!BC413=\"\",\"\",'1. Order'!BC413)","v":""},{"$f":"IF('1. Order'!BD413=\"\",\"\",'1. Order'!BD413)","v":6},{"$f":"IF('1. Order'!BE413=\"\",\"\",'1. Order'!BE413)","v":"None"},{"$f":"IF('1. Order'!BF413=\"\",\"\",'1. Order'!BF413)","v":"Parcel"},{"$f":"IF('1. Order'!BG413=\"\",\"\",'1. Order'!BG413)","v":"ZWO"}]
[{"$f":"IF('1. Order'!F414=\"\",\"\",'1. Order'!F414)","v":""},{"$f":"IF('1. Order'!G414=\"\",\"\",'1. Order'!G414)","v":""},{"$f":"IF('1. Order'!H414=\"\",\"\",'1. Order'!H414)","v":""},{"$f":"IF('1. Order'!I414=\"\",\"\",'1. Order'!I414)","v":""},{"$f":"IF('1. Order'!J414=\"\",\"\",'1. Order'!J414)","v":""},{"$f":"IF('1. Order'!K414=\"\",\"\",'1. Order'!K414)","v":""},{"$f":"IF('1. Order'!L414=\"\",\"\",'1. Order'!L414)","v":""},{"$f":"IF('1. Order'!M414=\"\",\"\",'1. Order'!M414)","v":""},{"$f":"IF('1. Order'!N414=\"\",\"\",'1. Order'!N414)","v":""},{"$f":"IF('1. Order'!O414=\"\",\"\",'1. Order'!O414)","v":{"$error":"#N/A"}},{"$f":"IF('1. Order'!P414=\"\",\"\",'1. Order'!P414)","v":{"$error":"#N/A"}},{"$f":"IF('1. Order'!Q414=\"\",\"\",'1. Order'!Q414)","v":""},{"$f":"IF('1. Order'!R414=\"\",\"\",'1. Order'!R414)","v":""},{"$f":"IF('1. Order'!S414=\"\",\"\",'1. Order'!S414)","v":""},{"$f":"IF('1. Order'!V414=\"\",\"\",'1. Order'!V414)","v":""},{"$f":"IF('1. Order'!W414=\"\",\"\",'1. Order'!W414)","v":""},{"$f":"IF('1. Order'!X414=\"\",\"\",'1. Order'!X414)","v":"EUR"},{"$f":"IF('1. Order'!Y414=\"\",\"\",'1. Order'!Y414)","v":""},{"$f":"IF('1. Order'!Z414=\"\",\"\",'1. Order'!Z414)","v":""},{"$f":"IF('1. Order'!AA414=\"\",\"\",'1. Order'!AA414)","v":""},null,{"$f":"IF('1. Order'!AS414=\"\",\"\",'1. Order'!AS414)","v":""},{"$f":"IF('1. Order'!AT414=\"\",\"\",'1. Order'!AT414)","v":""},null,null,null,null,null,null,null,{"$f":"IF('1. Order'!AX414=\"\",\"\",'1. Order'!AX414)","v":""},{"$f":"IF('1. Order'!AY414=\"\",\"\",'1. Order'!AY414)","v":""},{"$f":"IF('1. Order'!AZ414=\"\",\"\",'1. Order'!AZ414)","v":""},{"$f":"IF('1. Order'!BA414=\"\",\"\",'1. Order'!BA414)","v":""},{"$f":"IF('1. Order'!BC414=\"\",\"\",'1. Order'!BC414)","v":""},{"$f":"IF('1. Order'!BD414=\"\",\"\",'1. Order'!BD414)","v":6},{"$f":"IF('1. Order'!BE414=\"\",\"\",'1. Order'!BE414)","v":"None"},{"$f":"IF('1. Order'!BF414=\"\",\"\",'1. Order'!BF414)","v":"Parcel"},{"$f":"IF('1. Order'!BG414=\"\",\"\",'1. Order'!BG414)","v":"ZWO"}]
[{"$f":"IF('1. Order'!F415=\"\",\"\",'1. Order'!F415)","v":""},{"$f":"IF('1. Order'!G415=\"\",\"\",'1. Order'!G415)","v":""},{"$f":"IF('1. Order'!H415=\"\",\"\",'1. Order'!H415)","v":""},{"$f":"IF('1. Order'!I415=\"\",\"\",'1. Order'!I415)","v":""},{"$f":"IF('1. Order'!J415=\"\",\"\",'1. Order'!J415)","v":""},{"$f":"IF('1. Order'!K415=\"\",\"\",'1. Order'!K415)","v":""},{"$f":"IF('1. Order'!L415=\"\",\"\",'1. Order'!L415)","v":""},{"$f":"IF('1. Order'!M415=\"\",\"\",'1. Order'!M415)","v":""},{"$f":"IF('1. Order'!N415=\"\",\"\",'1. Order'!N415)","v":""},{"$f":"IF('1. Order'!O415=\"\",\"\",'1. Order'!O415)","v":{"$error":"#N/A"}},{"$f":"IF('1. Order'!P415=\"\",\"\",'1. Order'!P415)","v":{"$error":"#N/A"}},{"$f":"IF('1. Order'!Q415=\"\",\"\",'1. Order'!Q415)","v":""},{"$f":"IF('1. Order'!R415=\"\",\"\",'1. Order'!R415)","v":""},{"$f":"IF('1. Order'!S415=\"\",\"\",'1. Order'!S415)","v":""},{"$f":"IF('1. Order'!V415=\"\",\"\",'1. Order'!V415)","v":""},{"$f":"IF('1. Order'!W415=\"\",\"\",'1. Order'!W415)","v":""},{"$f":"IF('1. Order'!X415=\"\",\"\",'1. Order'!X415)","v":"EUR"},{"$f":"IF('1. Order'!Y415=\"\",\"\",'1. Order'!Y415)","v":""},{"$f":"IF('1. Order'!Z415=\"\",\"\",'1. Order'!Z415)","v":""},{"$f":"IF('1. Order'!AA415=\"\",\"\",'1. Order'!AA415)","v":""},null,{"$f":"IF('1. Order'!AS415=\"\",\"\",'1. Order'!AS415)","v":""},{"$f":"IF('1. Order'!AT415=\"\",\"\",'1. Order'!AT415)","v":""},null,null,null,null,null,null,null,{"$f":"IF('1. Order'!AX415=\"\",\"\",'1. Order'!AX415)","v":""},{"$f":"IF('1. Order'!AY415=\"\",\"\",'1. Order'!AY415)","v":""},{"$f":"IF('1. Order'!AZ415=\"\",\"\",'1. Order'!AZ415)","v":""},{"$f":"IF('1. Order'!BA415=\"\",\"\",'1. Order'!BA415)","v":""},{"$f":"IF('1. Order'!BC415=\"\",\"\",'1. Order'!BC415)","v":""},{"$f":"IF('1. Order'!BD415=\"\",\"\",'1. Order'!BD415)","v":6},{"$f":"IF('1. Order'!BE415=\"\",\"\",'1. Order'!BE415)","v":"None"},{"$f":"IF('1. Order'!BF415=\"\",\"\",'1. Order'!BF415)","v":"Parcel"},{"$f":"IF('1. Order'!BG415=\"\",\"\",'1. Order'!BG415)","v":"ZWO"}]
[{"$f":"IF('1. Order'!F416=\"\",\"\",'1. Order'!F416)","v":""},{"$f":"IF('1. Order'!G416=\"\",\"\",'1. Order'!G416)","v":""},{"$f":"IF('1. Order'!H416=\"\",\"\",'1. Order'!H416)","v":""},{"$f":"IF('1. Order'!I416=\"\",\"\",'1. Order'!I416)","v":""},{"$f":"IF('1. Order'!J416=\"\",\"\",'1. Order'!J416)","v":""},{"$f":"IF('1. Order'!K416=\"\",\"\",'1. Order'!K416)","v":""},{"$f":"IF('1. Order'!L416=\"\",\"\",'1. Order'!L416)","v":""},{"$f":"IF('1. Order'!M416=\"\",\"\",'1. Order'!M416)","v":""},{"$f":"IF('1. Order'!N416=\"\",\"\",'1. Order'!N416)","v":""},{"$f":"IF('1. Order'!O416=\"\",\"\",'1. Order'!O416)","v":{"$error":"#N/A"}},{"$f":"IF('1. Order'!P416=\"\",\"\",'1. Order'!P416)","v":{"$error":"#N/A"}},{"$f":"IF('1. Order'!Q416=\"\",\"\",'1. Order'!Q416)","v":""},{"$f":"IF('1. Order'!R416=\"\",\"\",'1. Order'!R416)","v":""},{"$f":"IF('1. Order'!S416=\"\",\"\",'1. Order'!S416)","v":""},{"$f":"IF('1. Order'!V416=\"\",\"\",'1. Order'!V416)","v":""},{"$f":"IF('1. Order'!W416=\"\",\"\",'1. Order'!W416)","v":""},{"$f":"IF('1. Order'!X416=\"\",\"\",'1. Order'!X416)","v":"EUR"},{"$f":"IF('1. Order'!Y416=\"\",\"\",'1. Order'!Y416)","v":""},{"$f":"IF('1. Order'!Z416=\"\",\"\",'1. Order'!Z416)","v":""},{"$f":"IF('1. Order'!AA416=\"\",\"\",'1. Order'!AA416)","v":""},null,{"$f":"IF('1. Order'!AS416=\"\",\"\",'1. Order'!AS416)","v":""},{"$f":"IF('1. Order'!AT416=\"\",\"\",'1. Order'!AT416)","v":""},null,null,null,null,null,null,null,{"$f":"IF('1. Order'!AX416=\"\",\"\",'1. Order'!AX416)","v":""},{"$f":"IF('1. Order'!AY416=\"\",\"\",'1. Order'!AY416)","v":""},{"$f":"IF('1. Order'!AZ416=\"\",\"\",'1. Order'!AZ416)","v":""},{"$f":"IF('1. Order'!BA416=\"\",\"\",'1. Order'!BA416)","v":""},{"$f":"IF('1. Order'!BC416=\"\",\"\",'1. Order'!BC416)","v":""},{"$f":"IF('1. Order'!BD416=\"\",\"\",'1. Order'!BD416)","v":6},{"$f":"IF('1. Order'!BE416=\"\",\"\",'1. Order'!BE416)","v":"None"},{"$f":"IF('1. Order'!BF416=\"\",\"\",'1. Order'!BF416)","v":"Parcel"},{"$f":"IF('1. Order'!BG416=\"\",\"\",'1. Order'!BG416)","v":"ZWO"}]
[{"$f":"IF('1. Order'!F417=\"\",\"\",'1. Order'!F417)","v":""},{"$f":"IF('1. Order'!G417=\"\",\"\",'1. Order'!G417)","v":""},{"$f":"IF('1. Order'!H417=\"\",\"\",'1. Order'!H417)","v":""},{"$f":"IF('1. Order'!I417=\"\",\"\",'1. Order'!I417)","v":""},{"$f":"IF('1. Order'!J417=\"\",\"\",'1. Order'!J417)","v":""},{"$f":"IF('1. Order'!K417=\"\",\"\",'1. Order'!K417)","v":""},{"$f":"IF('1. Order'!L417=\"\",\"\",'1. Order'!L417)","v":""},{"$f":"IF('1. Order'!M417=\"\",\"\",'1. Order'!M417)","v":""},{"$f":"IF('1. Order'!N417=\"\",\"\",'1. Order'!N417)","v":""},{"$f":"IF('1. Order'!O417=\"\",\"\",'1. Order'!O417)","v":{"$error":"#N/A"}},{"$f":"IF('1. Order'!P417=\"\",\"\",'1. Order'!P417)","v":{"$error":"#N/A"}},{"$f":"IF('1. Order'!Q417=\"\",\"\",'1. Order'!Q417)","v":""},{"$f":"IF('1. Order'!R417=\"\",\"\",'1. Order'!R417)","v":""},{"$f":"IF('1. Order'!S417=\"\",\"\",'1. Order'!S417)","v":""},{"$f":"IF('1. Order'!V417=\"\",\"\",'1. Order'!V417)","v":""},{"$f":"IF('1. Order'!W417=\"\",\"\",'1. Order'!W417)","v":""},{"$f":"IF('1. Order'!X417=\"\",\"\",'1. Order'!X417)","v":"EUR"},{"$f":"IF('1. Order'!Y417=\"\",\"\",'1. Order'!Y417)","v":""},{"$f":"IF('1. Order'!Z417=\"\",\"\",'1. Order'!Z417)","v":""},{"$f":"IF('1. Order'!AA417=\"\",\"\",'1. Order'!AA417)","v":""},null,{"$f":"IF('1. Order'!AS417=\"\",\"\",'1. Order'!AS417)","v":""},{"$f":"IF('1. Order'!AT417=\"\",\"\",'1. Order'!AT417)","v":""},null,null,null,null,null,null,null,{"$f":"IF('1. Order'!AX417=\"\",\"\",'1. Order'!AX417)","v":""},{"$f":"IF('1. Order'!AY417=\"\",\"\",'1. Order'!AY417)","v":""},{"$f":"IF('1. Order'!AZ417=\"\",\"\",'1. Order'!AZ417)","v":""},{"$f":"IF('1. Order'!BA417=\"\",\"\",'1. Order'!BA417)","v":""},{"$f":"IF('1. Order'!BC417=\"\",\"\",'1. Order'!BC417)","v":""},{"$f":"IF('1. Order'!BD417=\"\",\"\",'1. Order'!BD417)","v":6},{"$f":"IF('1. Order'!BE417=\"\",\"\",'1. Order'!BE417)","v":"None"},{"$f":"IF('1. Order'!BF417=\"\",\"\",'1. Order'!BF417)","v":"Parcel"},{"$f":"IF('1. Order'!BG417=\"\",\"\",'1. Order'!BG417)","v":"ZWO"}]
[{"$f":"IF('1. Order'!F418=\"\",\"\",'1. Order'!F418)","v":""},{"$f":"IF('1. Order'!G418=\"\",\"\",'1. Order'!G418)","v":""},{"$f":"IF('1. Order'!H418=\"\",\"\",'1. Order'!H418)","v":""},{"$f":"IF('1. Order'!I418=\"\",\"\",'1. Order'!I418)","v":""},{"$f":"IF('1. Order'!J418=\"\",\"\",'1. Order'!J418)","v":""},{"$f":"IF('1. Order'!K418=\"\",\"\",'1. Order'!K418)","v":""},{"$f":"IF('1. Order'!L418=\"\",\"\",'1. Order'!L418)","v":""},{"$f":"IF('1. Order'!M418=\"\",\"\",'1. Order'!M418)","v":""},{"$f":"IF('1. Order'!N418=\"\",\"\",'1. Order'!N418)","v":""},{"$f":"IF('1. Order'!O418=\"\",\"\",'1. Order'!O418)","v":{"$error":"#N/A"}},{"$f":"IF('1. Order'!P418=\"\",\"\",'1. Order'!P418)","v":{"$error":"#N/A"}},{"$f":"IF('1. Order'!Q418=\"\",\"\",'1. Order'!Q418)","v":""},{"$f":"IF('1. Order'!R418=\"\",\"\",'1. Order'!R418)","v":""},{"$f":"IF('1. Order'!S418=\"\",\"\",'1. Order'!S418)","v":""},{"$f":"IF('1. Order'!V418=\"\",\"\",'1. Order'!V418)","v":""},{"$f":"IF('1. Order'!W418=\"\",\"\",'1. Order'!W418)","v":""},{"$f":"IF('1. Order'!X418=\"\",\"\",'1. Order'!X418)","v":"EUR"},{"$f":"IF('1. Order'!Y418=\"\",\"\",'1. Order'!Y418)","v":""},{"$f":"IF('1. Order'!Z418=\"\",\"\",'1. Order'!Z418)","v":""},{"$f":"IF('1. Order'!AA418=\"\",\"\",'1. Order'!AA418)","v":""},null,{"$f":"IF('1. Order'!AS418=\"\",\"\",'1. Order'!AS418)","v":""},{"$f":"IF('1. Order'!AT418=\"\",\"\",'1. Order'!AT418)","v":""},null,null,null,null,null,null,null,{"$f":"IF('1. Order'!AX418=\"\",\"\",'1. Order'!AX418)","v":""},{"$f":"IF('1. Order'!AY418=\"\",\"\",'1. Order'!AY418)","v":""},{"$f":"IF('1. Order'!AZ418=\"\",\"\",'1. Order'!AZ418)","v":""},{"$f":"IF('1. Order'!BA418=\"\",\"\",'1. Order'!BA418)","v":""},{"$f":"IF('1. Order'!BC418=\"\",\"\",'1. Order'!BC418)","v":""},{"$f":"IF('1. Order'!BD418=\"\",\"\",'1. Order'!BD418)","v":6},{"$f":"IF('1. Order'!BE418=\"\",\"\",'1. Order'!BE418)","v":"None"},{"$f":"IF('1. Order'!BF418=\"\",\"\",'1. Order'!BF418)","v":"Parcel"},{"$f":"IF('1. Order'!BG418=\"\",\"\",'1. Order'!BG418)","v":"ZWO"}]
[{"$f":"IF('1. Order'!F419=\"\",\"\",'1. Order'!F419)","v":""},{"$f":"IF('1. Order'!G419=\"\",\"\",'1. Order'!G419)","v":""},{"$f":"IF('1. Order'!H419=\"\",\"\",'1. Order'!H419)","v":""},{"$f":"IF('1. Order'!I419=\"\",\"\",'1. Order'!I419)","v":""},{"$f":"IF('1. Order'!J419=\"\",\"\",'1. Order'!J419)","v":""},{"$f":"IF('1. Order'!K419=\"\",\"\",'1. Order'!K419)","v":""},{"$f":"IF('1. Order'!L419=\"\",\"\",'1. Order'!L419)","v":""},{"$f":"IF('1. Order'!M419=\"\",\"\",'1. Order'!M419)","v":""},{"$f":"IF('1. Order'!N419=\"\",\"\",'1. Order'!N419)","v":""},{"$f":"IF('1. Order'!O419=\"\",\"\",'1. Order'!O419)","v":{"$error":"#N/A"}},{"$f":"IF('1. Order'!P419=\"\",\"\",'1. Order'!P419)","v":{"$error":"#N/A"}},{"$f":"IF('1. Order'!Q419=\"\",\"\",'1. Order'!Q419)","v":""},{"$f":"IF('1. Order'!R419=\"\",\"\",'1. Order'!R419)","v":""},{"$f":"IF('1. Order'!S419=\"\",\"\",'1. Order'!S419)","v":""},{"$f":"IF('1. Order'!V419=\"\",\"\",'1. Order'!V419)","v":""},{"$f":"IF('1. Order'!W419=\"\",\"\",'1. Order'!W419)","v":""},{"$f":"IF('1. Order'!X419=\"\",\"\",'1. Order'!X419)","v":"EUR"},{"$f":"IF('1. Order'!Y419=\"\",\"\",'1. Order'!Y419)","v":""},{"$f":"IF('1. Order'!Z419=\"\",\"\",'1. Order'!Z419)","v":""},{"$f":"IF('1. Order'!AA419=\"\",\"\",'1. Order'!AA419)","v":""},null,{"$f":"IF('1. Order'!AS419=\"\",\"\",'1. Order'!AS419)","v":""},{"$f":"IF('1. Order'!AT419=\"\",\"\",'1. Order'!AT419)","v":""},null,null,null,null,null,null,null,{"$f":"IF('1. Order'!AX419=\"\",\"\",'1. Order'!AX419)","v":""},{"$f":"IF('1. Order'!AY419=\"\",\"\",'1. Order'!AY419)","v":""},{"$f":"IF('1. Order'!AZ419=\"\",\"\",'1. Order'!AZ419)","v":""},{"$f":"IF('1. Order'!BA419=\"\",\"\",'1. Order'!BA419)","v":""},{"$f":"IF('1. Order'!BC419=\"\",\"\",'1. Order'!BC419)","v":""},{"$f":"IF('1. Order'!BD419=\"\",\"\",'1. Order'!BD419)","v":6},{"$f":"IF('1. Order'!BE419=\"\",\"\",'1. Order'!BE419)","v":"None"},{"$f":"IF('1. Order'!BF419=\"\",\"\",'1. Order'!BF419)","v":"Parcel"},{"$f":"IF('1. Order'!BG419=\"\",\"\",'1. Order'!BG419)","v":"ZWO"}]
[{"$f":"IF('1. Order'!F420=\"\",\"\",'1. Order'!F420)","v":""},{"$f":"IF('1. Order'!G420=\"\",\"\",'1. Order'!G420)","v":""},{"$f":"IF('1. Order'!H420=\"\",\"\",'1. Order'!H420)","v":""},{"$f":"IF('1. Order'!I420=\"\",\"\",'1. Order'!I420)","v":""},{"$f":"IF('1. Order'!J420=\"\",\"\",'1. Order'!J420)","v":""},{"$f":"IF('1. Order'!K420=\"\",\"\",'1. Order'!K420)","v":""},{"$f":"IF('1. Order'!L420=\"\",\"\",'1. Order'!L420)","v":""},{"$f":"IF('1. Order'!M420=\"\",\"\",'1. Order'!M420)","v":""},{"$f":"IF('1. Order'!N420=\"\",\"\",'1. Order'!N420)","v":""},{"$f":"IF('1. Order'!O420=\"\",\"\",'1. Order'!O420)","v":{"$error":"#N/A"}},{"$f":"IF('1. Order'!P420=\"\",\"\",'1. Order'!P420)","v":{"$error":"#N/A"}},{"$f":"IF('1. Order'!Q420=\"\",\"\",'1. Order'!Q420)","v":""},{"$f":"IF('1. Order'!R420=\"\",\"\",'1. Order'!R420)","v":""},{"$f":"IF('1. Order'!S420=\"\",\"\",'1. Order'!S420)","v":""},{"$f":"IF('1. Order'!V420=\"\",\"\",'1. Order'!V420)","v":""},{"$f":"IF('1. Order'!W420=\"\",\"\",'1. Order'!W420)","v":""},{"$f":"IF('1. Order'!X420=\"\",\"\",'1. Order'!X420)","v":"EUR"},{"$f":"IF('1. Order'!Y420=\"\",\"\",'1. Order'!Y420)","v":""},{"$f":"IF('1. Order'!Z420=\"\",\"\",'1. Order'!Z420)","v":""},{"$f":"IF('1. Order'!AA420=\"\",\"\",'1. Order'!AA420)","v":""},null,{"$f":"IF('1. Order'!AS420=\"\",\"\",'1. Order'!AS420)","v":""},{"$f":"IF('1. Order'!AT420=\"\",\"\",'1. Order'!AT420)","v":""},null,null,null,null,null,null,null,{"$f":"IF('1. Order'!AX420=\"\",\"\",'1. Order'!AX420)","v":""},{"$f":"IF('1. Order'!AY420=\"\",\"\",'1. Order'!AY420)","v":""},{"$f":"IF('1. Order'!AZ420=\"\",\"\",'1. Order'!AZ420)","v":""},{"$f":"IF('1. Order'!BA420=\"\",\"\",'1. Order'!BA420)","v":""},{"$f":"IF('1. Order'!BC420=\"\",\"\",'1. Order'!BC420)","v":""},{"$f":"IF('1. Order'!BD420=\"\",\"\",'1. Order'!BD420)","v":6},{"$f":"IF('1. Order'!BE420=\"\",\"\",'1. Order'!BE420)","v":"None"},{"$f":"IF('1. Order'!BF420=\"\",\"\",'1. Order'!BF420)","v":"Parcel"},{"$f":"IF('1. Order'!BG420=\"\",\"\",'1. Order'!BG420)","v":"ZWO"}]
[{"$f":"IF('1. Order'!F421=\"\",\"\",'1. Order'!F421)","v":""},{"$f":"IF('1. Order'!G421=\"\",\"\",'1. Order'!G421)","v":""},{"$f":"IF('1. Order'!H421=\"\",\"\",'1. Order'!H421)","v":""},{"$f":"IF('1. Order'!I421=\"\",\"\",'1. Order'!I421)","v":""},{"$f":"IF('1. Order'!J421=\"\",\"\",'1. Order'!J421)","v":""},{"$f":"IF('1. Order'!K421=\"\",\"\",'1. Order'!K421)","v":""},{"$f":"IF('1. Order'!L421=\"\",\"\",'1. Order'!L421)","v":""},{"$f":"IF('1. Order'!M421=\"\",\"\",'1. Order'!M421)","v":""},{"$f":"IF('1. Order'!N421=\"\",\"\",'1. Order'!N421)","v":""},{"$f":"IF('1. Order'!O421=\"\",\"\",'1. Order'!O421)","v":{"$error":"#N/A"}},{"$f":"IF('1. Order'!P421=\"\",\"\",'1. Order'!P421)","v":{"$error":"#N/A"}},{"$f":"IF('1. Order'!Q421=\"\",\"\",'1. Order'!Q421)","v":""},{"$f":"IF('1. Order'!R421=\"\",\"\",'1. Order'!R421)","v":""},{"$f":"IF('1. Order'!S421=\"\",\"\",'1. Order'!S421)","v":""},{"$f":"IF('1. Order'!V421=\"\",\"\",'1. Order'!V421)","v":""},{"$f":"IF('1. Order'!W421=\"\",\"\",'1. Order'!W421)","v":""},{"$f":"IF('1. Order'!X421=\"\",\"\",'1. Order'!X421)","v":"EUR"},{"$f":"IF('1. Order'!Y421=\"\",\"\",'1. Order'!Y421)","v":""},{"$f":"IF('1. Order'!Z421=\"\",\"\",'1. Order'!Z421)","v":""},{"$f":"IF('1. Order'!AA421=\"\",\"\",'1. Order'!AA421)","v":""},null,{"$f":"IF('1. Order'!AS421=\"\",\"\",'1. Order'!AS421)","v":""},{"$f":"IF('1. Order'!AT421=\"\",\"\",'1. Order'!AT421)","v":""},null,null,null,null,null,null,null,{"$f":"IF('1. Order'!AX421=\"\",\"\",'1. Order'!AX421)","v":""},{"$f":"IF('1. Order'!AY421=\"\",\"\",'1. Order'!AY421)","v":""},{"$f":"IF('1. Order'!AZ421=\"\",\"\",'1. Order'!AZ421)","v":""},{"$f":"IF('1. Order'!BA421=\"\",\"\",'1. Order'!BA421)","v":""},{"$f":"IF('1. Order'!BC421=\"\",\"\",'1. Order'!BC421)","v":""},{"$f":"IF('1. Order'!BD421=\"\",\"\",'1. Order'!BD421)","v":6},{"$f":"IF('1. Order'!BE421=\"\",\"\",'1. Order'!BE421)","v":"None"},{"$f":"IF('1. Order'!BF421=\"\",\"\",'1. Order'!BF421)","v":"Parcel"},{"$f":"IF('1. Order'!BG421=\"\",\"\",'1. Order'!BG421)","v":"ZWO"}]
[{"$f":"IF('1. Order'!F422=\"\",\"\",'1. Order'!F422)","v":""},{"$f":"IF('1. Order'!G422=\"\",\"\",'1. Order'!G422)","v":""},{"$f":"IF('1. Order'!H422=\"\",\"\",'1. Order'!H422)","v":""},{"$f":"IF('1. Order'!I422=\"\",\"\",'1. Order'!I422)","v":""},{"$f":"IF('1. Order'!J422=\"\",\"\",'1. Order'!J422)","v":""},{"$f":"IF('1. Order'!K422=\"\",\"\",'1. Order'!K422)","v":""},{"$f":"IF('1. Order'!L422=\"\",\"\",'1. Order'!L422)","v":""},{"$f":"IF('1. Order'!M422=\"\",\"\",'1. Order'!M422)","v":""},{"$f":"IF('1. Order'!N422=\"\",\"\",'1. Order'!N422)","v":""},{"$f":"IF('1. Order'!O422=\"\",\"\",'1. Order'!O422)","v":{"$error":"#N/A"}},{"$f":"IF('1. Order'!P422=\"\",\"\",'1. Order'!P422)","v":{"$error":"#N/A"}},{"$f":"IF('1. Order'!Q422=\"\",\"\",'1. Order'!Q422)","v":""},{"$f":"IF('1. Order'!R422=\"\",\"\",'1. Order'!R422)","v":""},{"$f":"IF('1. Order'!S422=\"\",\"\",'1. Order'!S422)","v":""},{"$f":"IF('1. Order'!V422=\"\",\"\",'1. Order'!V422)","v":""},{"$f":"IF('1. Order'!W422=\"\",\"\",'1. Order'!W422)","v":""},{"$f":"IF('1. Order'!X422=\"\",\"\",'1. Order'!X422)","v":"EUR"},{"$f":"IF('1. Order'!Y422=\"\",\"\",'1. Order'!Y422)","v":""},{"$f":"IF('1. Order'!Z422=\"\",\"\",'1. Order'!Z422)","v":""},{"$f":"IF('1. Order'!AA422=\"\",\"\",'1. Order'!AA422)","v":""},null,{"$f":"IF('1. Order'!AS422=\"\",\"\",'1. Order'!AS422)","v":""},{"$f":"IF('1. Order'!AT422=\"\",\"\",'1. Order'!AT422)","v":""},null,null,null,null,null,null,null,{"$f":"IF('1. Order'!AX422=\"\",\"\",'1. Order'!AX422)","v":""},{"$f":"IF('1. Order'!AY422=\"\",\"\",'1. Order'!AY422)","v":""},{"$f":"IF('1. Order'!AZ422=\"\",\"\",'1. Order'!AZ422)","v":""},{"$f":"IF('1. Order'!BA422=\"\",\"\",'1. Order'!BA422)","v":""},{"$f":"IF('1. Order'!BC422=\"\",\"\",'1. Order'!BC422)","v":""},{"$f":"IF('1. Order'!BD422=\"\",\"\",'1. Order'!BD422)","v":6},{"$f":"IF('1. Order'!BE422=\"\",\"\",'1. Order'!BE422)","v":"None"},{"$f":"IF('1. Order'!BF422=\"\",\"\",'1. Order'!BF422)","v":"Parcel"},{"$f":"IF('1. Order'!BG422=\"\",\"\",'1. Order'!BG422)","v":"ZWO"}]
[{"$f":"IF('1. Order'!F423=\"\",\"\",'1. Order'!F423)","v":""},{"$f":"IF('1. Order'!G423=\"\",\"\",'1. Order'!G423)","v":""},{"$f":"IF('1. Order'!H423=\"\",\"\",'1. Order'!H423)","v":""},{"$f":"IF('1. Order'!I423=\"\",\"\",'1. Order'!I423)","v":""},{"$f":"IF('1. Order'!J423=\"\",\"\",'1. Order'!J423)","v":""},{"$f":"IF('1. Order'!K423=\"\",\"\",'1. Order'!K423)","v":""},{"$f":"IF('1. Order'!L423=\"\",\"\",'1. Order'!L423)","v":""},{"$f":"IF('1. Order'!M423=\"\",\"\",'1. Order'!M423)","v":""},{"$f":"IF('1. Order'!N423=\"\",\"\",'1. Order'!N423)","v":""},{"$f":"IF('1. Order'!O423=\"\",\"\",'1. Order'!O423)","v":{"$error":"#N/A"}},{"$f":"IF('1. Order'!P423=\"\",\"\",'1. Order'!P423)","v":{"$error":"#N/A"}},{"$f":"IF('1. Order'!Q423=\"\",\"\",'1. Order'!Q423)","v":""},{"$f":"IF('1. Order'!R423=\"\",\"\",'1. Order'!R423)","v":""},{"$f":"IF('1. Order'!S423=\"\",\"\",'1. Order'!S423)","v":""},{"$f":"IF('1. Order'!V423=\"\",\"\",'1. Order'!V423)","v":""},{"$f":"IF('1. Order'!W423=\"\",\"\",'1. Order'!W423)","v":""},{"$f":"IF('1. Order'!X423=\"\",\"\",'1. Order'!X423)","v":"EUR"},{"$f":"IF('1. Order'!Y423=\"\",\"\",'1. Order'!Y423)","v":""},{"$f":"IF('1. Order'!Z423=\"\",\"\",'1. Order'!Z423)","v":""},{"$f":"IF('1. Order'!AA423=\"\",\"\",'1. Order'!AA423)","v":""},null,{"$f":"IF('1. Order'!AS423=\"\",\"\",'1. Order'!AS423)","v":""},{"$f":"IF('1. Order'!AT423=\"\",\"\",'1. Order'!AT423)","v":""},null,null,null,null,null,null,null,{"$f":"IF('1. Order'!AX423=\"\",\"\",'1. Order'!AX423)","v":""},{"$f":"IF('1. Order'!AY423=\"\",\"\",'1. Order'!AY423)","v":""},{"$f":"IF('1. Order'!AZ423=\"\",\"\",'1. Order'!AZ423)","v":""},{"$f":"IF('1. Order'!BA423=\"\",\"\",'1. Order'!BA423)","v":""},{"$f":"IF('1. Order'!BC423=\"\",\"\",'1. Order'!BC423)","v":""},{"$f":"IF('1. Order'!BD423=\"\",\"\",'1. Order'!BD423)","v":6},{"$f":"IF('1. Order'!BE423=\"\",\"\",'1. Order'!BE423)","v":"None"},{"$f":"IF('1. Order'!BF423=\"\",\"\",'1. Order'!BF423)","v":"Parcel"},{"$f":"IF('1. Order'!BG423=\"\",\"\",'1. Order'!BG423)","v":"ZWO"}]
[{"$f":"IF('1. Order'!F424=\"\",\"\",'1. Order'!F424)","v":""},{"$f":"IF('1. Order'!G424=\"\",\"\",'1. Order'!G424)","v":""},{"$f":"IF('1. Order'!H424=\"\",\"\",'1. Order'!H424)","v":""},{"$f":"IF('1. Order'!I424=\"\",\"\",'1. Order'!I424)","v":""},{"$f":"IF('1. Order'!J424=\"\",\"\",'1. Order'!J424)","v":""},{"$f":"IF('1. Order'!K424=\"\",\"\",'1. Order'!K424)","v":""},{"$f":"IF('1. Order'!L424=\"\",\"\",'1. Order'!L424)","v":""},{"$f":"IF('1. Order'!M424=\"\",\"\",'1. Order'!M424)","v":""},{"$f":"IF('1. Order'!N424=\"\",\"\",'1. Order'!N424)","v":""},{"$f":"IF('1. Order'!O424=\"\",\"\",'1. Order'!O424)","v":{"$error":"#N/A"}},{"$f":"IF('1. Order'!P424=\"\",\"\",'1. Order'!P424)","v":{"$error":"#N/A"}},{"$f":"IF('1. Order'!Q424=\"\",\"\",'1. Order'!Q424)","v":""},{"$f":"IF('1. Order'!R424=\"\",\"\",'1. Order'!R424)","v":""},{"$f":"IF('1. Order'!S424=\"\",\"\",'1. Order'!S424)","v":""},{"$f":"IF('1. Order'!V424=\"\",\"\",'1. Order'!V424)","v":""},{"$f":"IF('1. Order'!W424=\"\",\"\",'1. Order'!W424)","v":""},{"$f":"IF('1. Order'!X424=\"\",\"\",'1. Order'!X424)","v":"EUR"},{"$f":"IF('1. Order'!Y424=\"\",\"\",'1. Order'!Y424)","v":""},{"$f":"IF('1. Order'!Z424=\"\",\"\",'1. Order'!Z424)","v":""},{"$f":"IF('1. Order'!AA424=\"\",\"\",'1. Order'!AA424)","v":""},null,{"$f":"IF('1. Order'!AS424=\"\",\"\",'1. Order'!AS424)","v":""},{"$f":"IF('1. Order'!AT424=\"\",\"\",'1. Order'!AT424)","v":""},null,null,null,null,null,null,null,{"$f":"IF('1. Order'!AX424=\"\",\"\",'1. Order'!AX424)","v":""},{"$f":"IF('1. Order'!AY424=\"\",\"\",'1. Order'!AY424)","v":""},{"$f":"IF('1. Order'!AZ424=\"\",\"\",'1. Order'!AZ424)","v":""},{"$f":"IF('1. Order'!BA424=\"\",\"\",'1. Order'!BA424)","v":""},{"$f":"IF('1. Order'!BC424=\"\",\"\",'1. Order'!BC424)","v":""},{"$f":"IF('1. Order'!BD424=\"\",\"\",'1. Order'!BD424)","v":6},{"$f":"IF('1. Order'!BE424=\"\",\"\",'1. Order'!BE424)","v":"None"},{"$f":"IF('1. Order'!BF424=\"\",\"\",'1. Order'!BF424)","v":"Parcel"},{"$f":"IF('1. Order'!BG424=\"\",\"\",'1. Order'!BG424)","v":"ZWO"}]
[{"$f":"IF('1. Order'!F425=\"\",\"\",'1. Order'!F425)","v":""},{"$f":"IF('1. Order'!G425=\"\",\"\",'1. Order'!G425)","v":""},{"$f":"IF('1. Order'!H425=\"\",\"\",'1. Order'!H425)","v":""},{"$f":"IF('1. Order'!I425=\"\",\"\",'1. Order'!I425)","v":""},{"$f":"IF('1. Order'!J425=\"\",\"\",'1. Order'!J425)","v":""},{"$f":"IF('1. Order'!K425=\"\",\"\",'1. Order'!K425)","v":""},{"$f":"IF('1. Order'!L425=\"\",\"\",'1. Order'!L425)","v":""},{"$f":"IF('1. Order'!M425=\"\",\"\",'1. Order'!M425)","v":""},{"$f":"IF('1. Order'!N425=\"\",\"\",'1. Order'!N425)","v":""},{"$f":"IF('1. Order'!O425=\"\",\"\",'1. Order'!O425)","v":{"$error":"#N/A"}},{"$f":"IF('1. Order'!P425=\"\",\"\",'1. Order'!P425)","v":{"$error":"#N/A"}},{"$f":"IF('1. Order'!Q425=\"\",\"\",'1. Order'!Q425)","v":""},{"$f":"IF('1. Order'!R425=\"\",\"\",'1. Order'!R425)","v":""},{"$f":"IF('1. Order'!S425=\"\",\"\",'1. Order'!S425)","v":""},{"$f":"IF('1. Order'!V425=\"\",\"\",'1. Order'!V425)","v":""},{"$f":"IF('1. Order'!W425=\"\",\"\",'1. Order'!W425)","v":""},{"$f":"IF('1. Order'!X425=\"\",\"\",'1. Order'!X425)","v":"EUR"},{"$f":"IF('1. Order'!Y425=\"\",\"\",'1. Order'!Y425)","v":""},{"$f":"IF('1. Order'!Z425=\"\",\"\",'1. Order'!Z425)","v":""},{"$f":"IF('1. Order'!AA425=\"\",\"\",'1. Order'!AA425)","v":""},null,{"$f":"IF('1. Order'!AS425=\"\",\"\",'1. Order'!AS425)","v":""},{"$f":"IF('1. Order'!AT425=\"\",\"\",'1. Order'!AT425)","v":""},null,null,null,null,null,null,null,{"$f":"IF('1. Order'!AX425=\"\",\"\",'1. Order'!AX425)","v":""},{"$f":"IF('1. Order'!AY425=\"\",\"\",'1. Order'!AY425)","v":""},{"$f":"IF('1. Order'!AZ425=\"\",\"\",'1. Order'!AZ425)","v":""},{"$f":"IF('1. Order'!BA425=\"\",\"\",'1. Order'!BA425)","v":""},{"$f":"IF('1. Order'!BC425=\"\",\"\",'1. Order'!BC425)","v":""},{"$f":"IF('1. Order'!BD425=\"\",\"\",'1. Order'!BD425)","v":6},{"$f":"IF('1. Order'!BE425=\"\",\"\",'1. Order'!BE425)","v":"None"},{"$f":"IF('1. Order'!BF425=\"\",\"\",'1. Order'!BF425)","v":"Parcel"},{"$f":"IF('1. Order'!BG425=\"\",\"\",'1. Order'!BG425)","v":"ZWO"}]
[{"$f":"IF('1. Order'!F426=\"\",\"\",'1. Order'!F426)","v":""},{"$f":"IF('1. Order'!G426=\"\",\"\",'1. Order'!G426)","v":""},{"$f":"IF('1. Order'!H426=\"\",\"\",'1. Order'!H426)","v":""},{"$f":"IF('1. Order'!I426=\"\",\"\",'1. Order'!I426)","v":""},{"$f":"IF('1. Order'!J426=\"\",\"\",'1. Order'!J426)","v":""},{"$f":"IF('1. Order'!K426=\"\",\"\",'1. Order'!K426)","v":""},{"$f":"IF('1. Order'!L426=\"\",\"\",'1. Order'!L426)","v":""},{"$f":"IF('1. Order'!M426=\"\",\"\",'1. Order'!M426)","v":""},{"$f":"IF('1. Order'!N426=\"\",\"\",'1. Order'!N426)","v":""},{"$f":"IF('1. Order'!O426=\"\",\"\",'1. Order'!O426)","v":{"$error":"#N/A"}},{"$f":"IF('1. Order'!P426=\"\",\"\",'1. Order'!P426)","v":{"$error":"#N/A"}},{"$f":"IF('1. Order'!Q426=\"\",\"\",'1. Order'!Q426)","v":""},{"$f":"IF('1. Order'!R426=\"\",\"\",'1. Order'!R426)","v":""},{"$f":"IF('1. Order'!S426=\"\",\"\",'1. Order'!S426)","v":""},{"$f":"IF('1. Order'!V426=\"\",\"\",'1. Order'!V426)","v":""},{"$f":"IF('1. Order'!W426=\"\",\"\",'1. Order'!W426)","v":""},{"$f":"IF('1. Order'!X426=\"\",\"\",'1. Order'!X426)","v":"EUR"},{"$f":"IF('1. Order'!Y426=\"\",\"\",'1. Order'!Y426)","v":""},{"$f":"IF('1. Order'!Z426=\"\",\"\",'1. Order'!Z426)","v":""},{"$f":"IF('1. Order'!AA426=\"\",\"\",'1. Order'!AA426)","v":""},null,{"$f":"IF('1. Order'!AS426=\"\",\"\",'1. Order'!AS426)","v":""},{"$f":"IF('1. Order'!AT426=\"\",\"\",'1. Order'!AT426)","v":""},null,null,null,null,null,null,null,{"$f":"IF('1. Order'!AX426=\"\",\"\",'1. Order'!AX426)","v":""},{"$f":"IF('1. Order'!AY426=\"\",\"\",'1. Order'!AY426)","v":""},{"$f":"IF('1. Order'!AZ426=\"\",\"\",'1. Order'!AZ426)","v":""},{"$f":"IF('1. Order'!BA426=\"\",\"\",'1. Order'!BA426)","v":""},{"$f":"IF('1. Order'!BC426=\"\",\"\",'1. Order'!BC426)","v":""},{"$f":"IF('1. Order'!BD426=\"\",\"\",'1. Order'!BD426)","v":6},{"$f":"IF('1. Order'!BE426=\"\",\"\",'1. Order'!BE426)","v":"None"},{"$f":"IF('1. Order'!BF426=\"\",\"\",'1. Order'!BF426)","v":"Parcel"},{"$f":"IF('1. Order'!BG426=\"\",\"\",'1. Order'!BG426)","v":"ZWO"}]
[{"$f":"IF('1. Order'!F427=\"\",\"\",'1. Order'!F427)","v":""},{"$f":"IF('1. Order'!G427=\"\",\"\",'1. Order'!G427)","v":""},{"$f":"IF('1. Order'!H427=\"\",\"\",'1. Order'!H427)","v":""},{"$f":"IF('1. Order'!I427=\"\",\"\",'1. Order'!I427)","v":""},{"$f":"IF('1. Order'!J427=\"\",\"\",'1. Order'!J427)","v":""},{"$f":"IF('1. Order'!K427=\"\",\"\",'1. Order'!K427)","v":""},{"$f":"IF('1. Order'!L427=\"\",\"\",'1. Order'!L427)","v":""},{"$f":"IF('1. Order'!M427=\"\",\"\",'1. Order'!M427)","v":""},{"$f":"IF('1. Order'!N427=\"\",\"\",'1. Order'!N427)","v":""},{"$f":"IF('1. Order'!O427=\"\",\"\",'1. Order'!O427)","v":{"$error":"#N/A"}},{"$f":"IF('1. Order'!P427=\"\",\"\",'1. Order'!P427)","v":{"$error":"#N/A"}},{"$f":"IF('1. Order'!Q427=\"\",\"\",'1. Order'!Q427)","v":""},{"$f":"IF('1. Order'!R427=\"\",\"\",'1. Order'!R427)","v":""},{"$f":"IF('1. Order'!S427=\"\",\"\",'1. Order'!S427)","v":""},{"$f":"IF('1. Order'!V427=\"\",\"\",'1. Order'!V427)","v":""},{"$f":"IF('1. Order'!W427=\"\",\"\",'1. Order'!W427)","v":""},{"$f":"IF('1. Order'!X427=\"\",\"\",'1. Order'!X427)","v":"EUR"},{"$f":"IF('1. Order'!Y427=\"\",\"\",'1. Order'!Y427)","v":""},{"$f":"IF('1. Order'!Z427=\"\",\"\",'1. Order'!Z427)","v":""},{"$f":"IF('1. Order'!AA427=\"\",\"\",'1. Order'!AA427)","v":""},null,{"$f":"IF('1. Order'!AS427=\"\",\"\",'1. Order'!AS427)","v":""},{"$f":"IF('1. Order'!AT427=\"\",\"\",'1. Order'!AT427)","v":""},null,null,null,null,null,null,null,{"$f":"IF('1. Order'!AX427=\"\",\"\",'1. Order'!AX427)","v":""},{"$f":"IF('1. Order'!AY427=\"\",\"\",'1. Order'!AY427)","v":""},{"$f":"IF('1. Order'!AZ427=\"\",\"\",'1. Order'!AZ427)","v":""},{"$f":"IF('1. Order'!BA427=\"\",\"\",'1. Order'!BA427)","v":""},{"$f":"IF('1. Order'!BC427=\"\",\"\",'1. Order'!BC427)","v":""},{"$f":"IF('1. Order'!BD427=\"\",\"\",'1. Order'!BD427)","v":6},{"$f":"IF('1. Order'!BE427=\"\",\"\",'1. Order'!BE427)","v":"None"},{"$f":"IF('1. Order'!BF427=\"\",\"\",'1. Order'!BF427)","v":"Parcel"},{"$f":"IF('1. Order'!BG427=\"\",\"\",'1. Order'!BG427)","v":"ZWO"}]
[{"$f":"IF('1. Order'!F428=\"\",\"\",'1. Order'!F428)","v":""},{"$f":"IF('1. Order'!G428=\"\",\"\",'1. Order'!G428)","v":""},{"$f":"IF('1. Order'!H428=\"\",\"\",'1. Order'!H428)","v":""},{"$f":"IF('1. Order'!I428=\"\",\"\",'1. Order'!I428)","v":""},{"$f":"IF('1. Order'!J428=\"\",\"\",'1. Order'!J428)","v":""},{"$f":"IF('1. Order'!K428=\"\",\"\",'1. Order'!K428)","v":""},{"$f":"IF('1. Order'!L428=\"\",\"\",'1. Order'!L428)","v":""},{"$f":"IF('1. Order'!M428=\"\",\"\",'1. Order'!M428)","v":""},{"$f":"IF('1. Order'!N428=\"\",\"\",'1. Order'!N428)","v":""},{"$f":"IF('1. Order'!O428=\"\",\"\",'1. Order'!O428)","v":{"$error":"#N/A"}},{"$f":"IF('1. Order'!P428=\"\",\"\",'1. Order'!P428)","v":{"$error":"#N/A"}},{"$f":"IF('1. Order'!Q428=\"\",\"\",'1. Order'!Q428)","v":""},{"$f":"IF('1. Order'!R428=\"\",\"\",'1. Order'!R428)","v":""},{"$f":"IF('1. Order'!S428=\"\",\"\",'1. Order'!S428)","v":""},{"$f":"IF('1. Order'!V428=\"\",\"\",'1. Order'!V428)","v":""},{"$f":"IF('1. Order'!W428=\"\",\"\",'1. Order'!W428)","v":""},{"$f":"IF('1. Order'!X428=\"\",\"\",'1. Order'!X428)","v":"EUR"},{"$f":"IF('1. Order'!Y428=\"\",\"\",'1. Order'!Y428)","v":""},{"$f":"IF('1. Order'!Z428=\"\",\"\",'1. Order'!Z428)","v":""},{"$f":"IF('1. Order'!AA428=\"\",\"\",'1. Order'!AA428)","v":""},null,{"$f":"IF('1. Order'!AS428=\"\",\"\",'1. Order'!AS428)","v":""},{"$f":"IF('1. Order'!AT428=\"\",\"\",'1. Order'!AT428)","v":""},null,null,null,null,null,null,null,{"$f":"IF('1. Order'!AX428=\"\",\"\",'1. Order'!AX428)","v":""},{"$f":"IF('1. Order'!AY428=\"\",\"\",'1. Order'!AY428)","v":""},{"$f":"IF('1. Order'!AZ428=\"\",\"\",'1. Order'!AZ428)","v":""},{"$f":"IF('1. Order'!BA428=\"\",\"\",'1. Order'!BA428)","v":""},{"$f":"IF('1. Order'!BC428=\"\",\"\",'1. Order'!BC428)","v":""},{"$f":"IF('1. Order'!BD428=\"\",\"\",'1. Order'!BD428)","v":6},{"$f":"IF('1. Order'!BE428=\"\",\"\",'1. Order'!BE428)","v":"None"},{"$f":"IF('1. Order'!BF428=\"\",\"\",'1. Order'!BF428)","v":"Parcel"},{"$f":"IF('1. Order'!BG428=\"\",\"\",'1. Order'!BG428)","v":"ZWO"}]
[{"$f":"IF('1. Order'!F429=\"\",\"\",'1. Order'!F429)","v":""},{"$f":"IF('1. Order'!G429=\"\",\"\",'1. Order'!G429)","v":""},{"$f":"IF('1. Order'!H429=\"\",\"\",'1. Order'!H429)","v":""},{"$f":"IF('1. Order'!I429=\"\",\"\",'1. Order'!I429)","v":""},{"$f":"IF('1. Order'!J429=\"\",\"\",'1. Order'!J429)","v":""},{"$f":"IF('1. Order'!K429=\"\",\"\",'1. Order'!K429)","v":""},{"$f":"IF('1. Order'!L429=\"\",\"\",'1. Order'!L429)","v":""},{"$f":"IF('1. Order'!M429=\"\",\"\",'1. Order'!M429)","v":""},{"$f":"IF('1. Order'!N429=\"\",\"\",'1. Order'!N429)","v":""},{"$f":"IF('1. Order'!O429=\"\",\"\",'1. Order'!O429)","v":{"$error":"#N/A"}},{"$f":"IF('1. Order'!P429=\"\",\"\",'1. Order'!P429)","v":{"$error":"#N/A"}},{"$f":"IF('1. Order'!Q429=\"\",\"\",'1. Order'!Q429)","v":""},{"$f":"IF('1. Order'!R429=\"\",\"\",'1. Order'!R429)","v":""},{"$f":"IF('1. Order'!S429=\"\",\"\",'1. Order'!S429)","v":""},{"$f":"IF('1. Order'!V429=\"\",\"\",'1. Order'!V429)","v":""},{"$f":"IF('1. Order'!W429=\"\",\"\",'1. Order'!W429)","v":""},{"$f":"IF('1. Order'!X429=\"\",\"\",'1. Order'!X429)","v":"EUR"},{"$f":"IF('1. Order'!Y429=\"\",\"\",'1. Order'!Y429)","v":""},{"$f":"IF('1. Order'!Z429=\"\",\"\",'1. Order'!Z429)","v":""},{"$f":"IF('1. Order'!AA429=\"\",\"\",'1. Order'!AA429)","v":""},null,{"$f":"IF('1. Order'!AS429=\"\",\"\",'1. Order'!AS429)","v":""},{"$f":"IF('1. Order'!AT429=\"\",\"\",'1. Order'!AT429)","v":""},null,null,null,null,null,null,null,{"$f":"IF('1. Order'!AX429=\"\",\"\",'1. Order'!AX429)","v":""},{"$f":"IF('1. Order'!AY429=\"\",\"\",'1. Order'!AY429)","v":""},{"$f":"IF('1. Order'!AZ429=\"\",\"\",'1. Order'!AZ429)","v":""},{"$f":"IF('1. Order'!BA429=\"\",\"\",'1. Order'!BA429)","v":""},{"$f":"IF('1. Order'!BC429=\"\",\"\",'1. Order'!BC429)","v":""},{"$f":"IF('1. Order'!BD429=\"\",\"\",'1. Order'!BD429)","v":6},{"$f":"IF('1. Order'!BE429=\"\",\"\",'1. Order'!BE429)","v":"None"},{"$f":"IF('1. Order'!BF429=\"\",\"\",'1. Order'!BF429)","v":"Parcel"},{"$f":"IF('1. Order'!BG429=\"\",\"\",'1. Order'!BG429)","v":"ZWO"}]
[{"$f":"IF('1. Order'!F430=\"\",\"\",'1. Order'!F430)","v":""},{"$f":"IF('1. Order'!G430=\"\",\"\",'1. Order'!G430)","v":""},{"$f":"IF('1. Order'!H430=\"\",\"\",'1. Order'!H430)","v":""},{"$f":"IF('1. Order'!I430=\"\",\"\",'1. Order'!I430)","v":""},{"$f":"IF('1. Order'!J430=\"\",\"\",'1. Order'!J430)","v":""},{"$f":"IF('1. Order'!K430=\"\",\"\",'1. Order'!K430)","v":""},{"$f":"IF('1. Order'!L430=\"\",\"\",'1. Order'!L430)","v":""},{"$f":"IF('1. Order'!M430=\"\",\"\",'1. Order'!M430)","v":""},{"$f":"IF('1. Order'!N430=\"\",\"\",'1. Order'!N430)","v":""},{"$f":"IF('1. Order'!O430=\"\",\"\",'1. Order'!O430)","v":{"$error":"#N/A"}},{"$f":"IF('1. Order'!P430=\"\",\"\",'1. Order'!P430)","v":{"$error":"#N/A"}},{"$f":"IF('1. Order'!Q430=\"\",\"\",'1. Order'!Q430)","v":""},{"$f":"IF('1. Order'!R430=\"\",\"\",'1. Order'!R430)","v":""},{"$f":"IF('1. Order'!S430=\"\",\"\",'1. Order'!S430)","v":""},{"$f":"IF('1. Order'!V430=\"\",\"\",'1. Order'!V430)","v":""},{"$f":"IF('1. Order'!W430=\"\",\"\",'1. Order'!W430)","v":""},{"$f":"IF('1. Order'!X430=\"\",\"\",'1. Order'!X430)","v":"EUR"},{"$f":"IF('1. Order'!Y430=\"\",\"\",'1. Order'!Y430)","v":""},{"$f":"IF('1. Order'!Z430=\"\",\"\",'1. Order'!Z430)","v":""},{"$f":"IF('1. Order'!AA430=\"\",\"\",'1. Order'!AA430)","v":""},null,{"$f":"IF('1. Order'!AS430=\"\",\"\",'1. Order'!AS430)","v":""},{"$f":"IF('1. Order'!AT430=\"\",\"\",'1. Order'!AT430)","v":""},null,null,null,null,null,null,null,{"$f":"IF('1. Order'!AX430=\"\",\"\",'1. Order'!AX430)","v":""},{"$f":"IF('1. Order'!AY430=\"\",\"\",'1. Order'!AY430)","v":""},{"$f":"IF('1. Order'!AZ430=\"\",\"\",'1. Order'!AZ430)","v":""},{"$f":"IF('1. Order'!BA430=\"\",\"\",'1. Order'!BA430)","v":""},{"$f":"IF('1. Order'!BC430=\"\",\"\",'1. Order'!BC430)","v":""},{"$f":"IF('1. Order'!BD430=\"\",\"\",'1. Order'!BD430)","v":6},{"$f":"IF('1. Order'!BE430=\"\",\"\",'1. Order'!BE430)","v":"None"},{"$f":"IF('1. Order'!BF430=\"\",\"\",'1. Order'!BF430)","v":"Parcel"},{"$f":"IF('1. Order'!BG430=\"\",\"\",'1. Order'!BG430)","v":"ZWO"}]
[{"$f":"IF('1. Order'!F431=\"\",\"\",'1. Order'!F431)","v":""},{"$f":"IF('1. Order'!G431=\"\",\"\",'1. Order'!G431)","v":""},{"$f":"IF('1. Order'!H431=\"\",\"\",'1. Order'!H431)","v":""},{"$f":"IF('1. Order'!I431=\"\",\"\",'1. Order'!I431)","v":""},{"$f":"IF('1. Order'!J431=\"\",\"\",'1. Order'!J431)","v":""},{"$f":"IF('1. Order'!K431=\"\",\"\",'1. Order'!K431)","v":""},{"$f":"IF('1. Order'!L431=\"\",\"\",'1. Order'!L431)","v":""},{"$f":"IF('1. Order'!M431=\"\",\"\",'1. Order'!M431)","v":""},{"$f":"IF('1. Order'!N431=\"\",\"\",'1. Order'!N431)","v":""},{"$f":"IF('1. Order'!O431=\"\",\"\",'1. Order'!O431)","v":{"$error":"#N/A"}},{"$f":"IF('1. Order'!P431=\"\",\"\",'1. Order'!P431)","v":{"$error":"#N/A"}},{"$f":"IF('1. Order'!Q431=\"\",\"\",'1. Order'!Q431)","v":""},{"$f":"IF('1. Order'!R431=\"\",\"\",'1. Order'!R431)","v":""},{"$f":"IF('1. Order'!S431=\"\",\"\",'1. Order'!S431)","v":""},{"$f":"IF('1. Order'!V431=\"\",\"\",'1. Order'!V431)","v":""},{"$f":"IF('1. Order'!W431=\"\",\"\",'1. Order'!W431)","v":""},{"$f":"IF('1. Order'!X431=\"\",\"\",'1. Order'!X431)","v":"EUR"},{"$f":"IF('1. Order'!Y431=\"\",\"\",'1. Order'!Y431)","v":""},{"$f":"IF('1. Order'!Z431=\"\",\"\",'1. Order'!Z431)","v":""},{"$f":"IF('1. Order'!AA431=\"\",\"\",'1. Order'!AA431)","v":""},null,{"$f":"IF('1. Order'!AS431=\"\",\"\",'1. Order'!AS431)","v":""},{"$f":"IF('1. Order'!AT431=\"\",\"\",'1. Order'!AT431)","v":""},null,null,null,null,null,null,null,{"$f":"IF('1. Order'!AX431=\"\",\"\",'1. Order'!AX431)","v":""},{"$f":"IF('1. Order'!AY431=\"\",\"\",'1. Order'!AY431)","v":""},{"$f":"IF('1. Order'!AZ431=\"\",\"\",'1. Order'!AZ431)","v":""},{"$f":"IF('1. Order'!BA431=\"\",\"\",'1. Order'!BA431)","v":""},{"$f":"IF('1. Order'!BC431=\"\",\"\",'1. Order'!BC431)","v":""},{"$f":"IF('1. Order'!BD431=\"\",\"\",'1. Order'!BD431)","v":6},{"$f":"IF('1. Order'!BE431=\"\",\"\",'1. Order'!BE431)","v":"None"},{"$f":"IF('1. Order'!BF431=\"\",\"\",'1. Order'!BF431)","v":"Parcel"},{"$f":"IF('1. Order'!BG431=\"\",\"\",'1. Order'!BG431)","v":"ZWO"}]
[{"$f":"IF('1. Order'!F432=\"\",\"\",'1. Order'!F432)","v":""},{"$f":"IF('1. Order'!G432=\"\",\"\",'1. Order'!G432)","v":""},{"$f":"IF('1. Order'!H432=\"\",\"\",'1. Order'!H432)","v":""},{"$f":"IF('1. Order'!I432=\"\",\"\",'1. Order'!I432)","v":""},{"$f":"IF('1. Order'!J432=\"\",\"\",'1. Order'!J432)","v":""},{"$f":"IF('1. Order'!K432=\"\",\"\",'1. Order'!K432)","v":""},{"$f":"IF('1. Order'!L432=\"\",\"\",'1. Order'!L432)","v":""},{"$f":"IF('1. Order'!M432=\"\",\"\",'1. Order'!M432)","v":""},{"$f":"IF('1. Order'!N432=\"\",\"\",'1. Order'!N432)","v":""},{"$f":"IF('1. Order'!O432=\"\",\"\",'1. Order'!O432)","v":{"$error":"#N/A"}},{"$f":"IF('1. Order'!P432=\"\",\"\",'1. Order'!P432)","v":{"$error":"#N/A"}},{"$f":"IF('1. Order'!Q432=\"\",\"\",'1. Order'!Q432)","v":""},{"$f":"IF('1. Order'!R432=\"\",\"\",'1. Order'!R432)","v":""},{"$f":"IF('1. Order'!S432=\"\",\"\",'1. Order'!S432)","v":""},{"$f":"IF('1. Order'!V432=\"\",\"\",'1. Order'!V432)","v":""},{"$f":"IF('1. Order'!W432=\"\",\"\",'1. Order'!W432)","v":""},{"$f":"IF('1. Order'!X432=\"\",\"\",'1. Order'!X432)","v":"EUR"},{"$f":"IF('1. Order'!Y432=\"\",\"\",'1. Order'!Y432)","v":""},{"$f":"IF('1. Order'!Z432=\"\",\"\",'1. Order'!Z432)","v":""},{"$f":"IF('1. Order'!AA432=\"\",\"\",'1. Order'!AA432)","v":""},null,{"$f":"IF('1. Order'!AS432=\"\",\"\",'1. Order'!AS432)","v":""},{"$f":"IF('1. Order'!AT432=\"\",\"\",'1. Order'!AT432)","v":""},null,null,null,null,null,null,null,{"$f":"IF('1. Order'!AX432=\"\",\"\",'1. Order'!AX432)","v":""},{"$f":"IF('1. Order'!AY432=\"\",\"\",'1. Order'!AY432)","v":""},{"$f":"IF('1. Order'!AZ432=\"\",\"\",'1. Order'!AZ432)","v":""},{"$f":"IF('1. Order'!BA432=\"\",\"\",'1. Order'!BA432)","v":""},{"$f":"IF('1. Order'!BC432=\"\",\"\",'1. Order'!BC432)","v":""},{"$f":"IF('1. Order'!BD432=\"\",\"\",'1. Order'!BD432)","v":6},{"$f":"IF('1. Order'!BE432=\"\",\"\",'1. Order'!BE432)","v":"None"},{"$f":"IF('1. Order'!BF432=\"\",\"\",'1. Order'!BF432)","v":"Parcel"},{"$f":"IF('1. Order'!BG432=\"\",\"\",'1. Order'!BG432)","v":"ZWO"}]
[{"$f":"IF('1. Order'!F433=\"\",\"\",'1. Order'!F433)","v":""},{"$f":"IF('1. Order'!G433=\"\",\"\",'1. Order'!G433)","v":""},{"$f":"IF('1. Order'!H433=\"\",\"\",'1. Order'!H433)","v":""},{"$f":"IF('1. Order'!I433=\"\",\"\",'1. Order'!I433)","v":""},{"$f":"IF('1. Order'!J433=\"\",\"\",'1. Order'!J433)","v":""},{"$f":"IF('1. Order'!K433=\"\",\"\",'1. Order'!K433)","v":""},{"$f":"IF('1. Order'!L433=\"\",\"\",'1. Order'!L433)","v":""},{"$f":"IF('1. Order'!M433=\"\",\"\",'1. Order'!M433)","v":""},{"$f":"IF('1. Order'!N433=\"\",\"\",'1. Order'!N433)","v":""},{"$f":"IF('1. Order'!O433=\"\",\"\",'1. Order'!O433)","v":{"$error":"#N/A"}},{"$f":"IF('1. Order'!P433=\"\",\"\",'1. Order'!P433)","v":{"$error":"#N/A"}},{"$f":"IF('1. Order'!Q433=\"\",\"\",'1. Order'!Q433)","v":""},{"$f":"IF('1. Order'!R433=\"\",\"\",'1. Order'!R433)","v":""},{"$f":"IF('1. Order'!S433=\"\",\"\",'1. Order'!S433)","v":""},{"$f":"IF('1. Order'!V433=\"\",\"\",'1. Order'!V433)","v":""},{"$f":"IF('1. Order'!W433=\"\",\"\",'1. Order'!W433)","v":""},{"$f":"IF('1. Order'!X433=\"\",\"\",'1. Order'!X433)","v":"EUR"},{"$f":"IF('1. Order'!Y433=\"\",\"\",'1. Order'!Y433)","v":""},{"$f":"IF('1. Order'!Z433=\"\",\"\",'1. Order'!Z433)","v":""},{"$f":"IF('1. Order'!AA433=\"\",\"\",'1. Order'!AA433)","v":""},null,{"$f":"IF('1. Order'!AS433=\"\",\"\",'1. Order'!AS433)","v":""},{"$f":"IF('1. Order'!AT433=\"\",\"\",'1. Order'!AT433)","v":""},null,null,null,null,null,null,null,{"$f":"IF('1. Order'!AX433=\"\",\"\",'1. Order'!AX433)","v":""},{"$f":"IF('1. Order'!AY433=\"\",\"\",'1. Order'!AY433)","v":""},{"$f":"IF('1. Order'!AZ433=\"\",\"\",'1. Order'!AZ433)","v":""},{"$f":"IF('1. Order'!BA433=\"\",\"\",'1. Order'!BA433)","v":""},{"$f":"IF('1. Order'!BC433=\"\",\"\",'1. Order'!BC433)","v":""},{"$f":"IF('1. Order'!BD433=\"\",\"\",'1. Order'!BD433)","v":6},{"$f":"IF('1. Order'!BE433=\"\",\"\",'1. Order'!BE433)","v":"None"},{"$f":"IF('1. Order'!BF433=\"\",\"\",'1. Order'!BF433)","v":"Parcel"},{"$f":"IF('1. Order'!BG433=\"\",\"\",'1. Order'!BG433)","v":"ZWO"}]
[{"$f":"IF('1. Order'!F434=\"\",\"\",'1. Order'!F434)","v":""},{"$f":"IF('1. Order'!G434=\"\",\"\",'1. Order'!G434)","v":""},{"$f":"IF('1. Order'!H434=\"\",\"\",'1. Order'!H434)","v":""},{"$f":"IF('1. Order'!I434=\"\",\"\",'1. Order'!I434)","v":""},{"$f":"IF('1. Order'!J434=\"\",\"\",'1. Order'!J434)","v":""},{"$f":"IF('1. Order'!K434=\"\",\"\",'1. Order'!K434)","v":""},{"$f":"IF('1. Order'!L434=\"\",\"\",'1. Order'!L434)","v":""},{"$f":"IF('1. Order'!M434=\"\",\"\",'1. Order'!M434)","v":""},{"$f":"IF('1. Order'!N434=\"\",\"\",'1. Order'!N434)","v":""},{"$f":"IF('1. Order'!O434=\"\",\"\",'1. Order'!O434)","v":{"$error":"#N/A"}},{"$f":"IF('1. Order'!P434=\"\",\"\",'1. Order'!P434)","v":{"$error":"#N/A"}},{"$f":"IF('1. Order'!Q434=\"\",\"\",'1. Order'!Q434)","v":""},{"$f":"IF('1. Order'!R434=\"\",\"\",'1. Order'!R434)","v":""},{"$f":"IF('1. Order'!S434=\"\",\"\",'1. Order'!S434)","v":""},{"$f":"IF('1. Order'!V434=\"\",\"\",'1. Order'!V434)","v":""},{"$f":"IF('1. Order'!W434=\"\",\"\",'1. Order'!W434)","v":""},{"$f":"IF('1. Order'!X434=\"\",\"\",'1. Order'!X434)","v":"EUR"},{"$f":"IF('1. Order'!Y434=\"\",\"\",'1. Order'!Y434)","v":""},{"$f":"IF('1. Order'!Z434=\"\",\"\",'1. Order'!Z434)","v":""},{"$f":"IF('1. Order'!AA434=\"\",\"\",'1. Order'!AA434)","v":""},null,{"$f":"IF('1. Order'!AS434=\"\",\"\",'1. Order'!AS434)","v":""},{"$f":"IF('1. Order'!AT434=\"\",\"\",'1. Order'!AT434)","v":""},null,null,null,null,null,null,null,{"$f":"IF('1. Order'!AX434=\"\",\"\",'1. Order'!AX434)","v":""},{"$f":"IF('1. Order'!AY434=\"\",\"\",'1. Order'!AY434)","v":""},{"$f":"IF('1. Order'!AZ434=\"\",\"\",'1. Order'!AZ434)","v":""},{"$f":"IF('1. Order'!BA434=\"\",\"\",'1. Order'!BA434)","v":""},{"$f":"IF('1. Order'!BC434=\"\",\"\",'1. Order'!BC434)","v":""},{"$f":"IF('1. Order'!BD434=\"\",\"\",'1. Order'!BD434)","v":6},{"$f":"IF('1. Order'!BE434=\"\",\"\",'1. Order'!BE434)","v":"None"},{"$f":"IF('1. Order'!BF434=\"\",\"\",'1. Order'!BF434)","v":"Parcel"},{"$f":"IF('1. Order'!BG434=\"\",\"\",'1. Order'!BG434)","v":"ZWO"}]
[{"$f":"IF('1. Order'!F435=\"\",\"\",'1. Order'!F435)","v":""},{"$f":"IF('1. Order'!G435=\"\",\"\",'1. Order'!G435)","v":""},{"$f":"IF('1. Order'!H435=\"\",\"\",'1. Order'!H435)","v":""},{"$f":"IF('1. Order'!I435=\"\",\"\",'1. Order'!I435)","v":""},{"$f":"IF('1. Order'!J435=\"\",\"\",'1. Order'!J435)","v":""},{"$f":"IF('1. Order'!K435=\"\",\"\",'1. Order'!K435)","v":""},{"$f":"IF('1. Order'!L435=\"\",\"\",'1. Order'!L435)","v":""},{"$f":"IF('1. Order'!M435=\"\",\"\",'1. Order'!M435)","v":""},{"$f":"IF('1. Order'!N435=\"\",\"\",'1. Order'!N435)","v":""},{"$f":"IF('1. Order'!O435=\"\",\"\",'1. Order'!O435)","v":{"$error":"#N/A"}},{"$f":"IF('1. Order'!P435=\"\",\"\",'1. Order'!P435)","v":{"$error":"#N/A"}},{"$f":"IF('1. Order'!Q435=\"\",\"\",'1. Order'!Q435)","v":""},{"$f":"IF('1. Order'!R435=\"\",\"\",'1. Order'!R435)","v":""},{"$f":"IF('1. Order'!S435=\"\",\"\",'1. Order'!S435)","v":""},{"$f":"IF('1. Order'!V435=\"\",\"\",'1. Order'!V435)","v":""},{"$f":"IF('1. Order'!W435=\"\",\"\",'1. Order'!W435)","v":""},{"$f":"IF('1. Order'!X435=\"\",\"\",'1. Order'!X435)","v":"EUR"},{"$f":"IF('1. Order'!Y435=\"\",\"\",'1. Order'!Y435)","v":""},{"$f":"IF('1. Order'!Z435=\"\",\"\",'1. Order'!Z435)","v":""},{"$f":"IF('1. Order'!AA435=\"\",\"\",'1. Order'!AA435)","v":""},null,{"$f":"IF('1. Order'!AS435=\"\",\"\",'1. Order'!AS435)","v":""},{"$f":"IF('1. Order'!AT435=\"\",\"\",'1. Order'!AT435)","v":""},null,null,null,null,null,null,null,{"$f":"IF('1. Order'!AX435=\"\",\"\",'1. Order'!AX435)","v":""},{"$f":"IF('1. Order'!AY435=\"\",\"\",'1. Order'!AY435)","v":""},{"$f":"IF('1. Order'!AZ435=\"\",\"\",'1. Order'!AZ435)","v":""},{"$f":"IF('1. Order'!BA435=\"\",\"\",'1. Order'!BA435)","v":""},{"$f":"IF('1. Order'!BC435=\"\",\"\",'1. Order'!BC435)","v":""},{"$f":"IF('1. Order'!BD435=\"\",\"\",'1. Order'!BD435)","v":6},{"$f":"IF('1. Order'!BE435=\"\",\"\",'1. Order'!BE435)","v":"None"},{"$f":"IF('1. Order'!BF435=\"\",\"\",'1. Order'!BF435)","v":"Parcel"},{"$f":"IF('1. Order'!BG435=\"\",\"\",'1. Order'!BG435)","v":"ZWO"}]
[{"$f":"IF('1. Order'!F436=\"\",\"\",'1. Order'!F436)","v":""},{"$f":"IF('1. Order'!G436=\"\",\"\",'1. Order'!G436)","v":""},{"$f":"IF('1. Order'!H436=\"\",\"\",'1. Order'!H436)","v":""},{"$f":"IF('1. Order'!I436=\"\",\"\",'1. Order'!I436)","v":""},{"$f":"IF('1. Order'!J436=\"\",\"\",'1. Order'!J436)","v":""},{"$f":"IF('1. Order'!K436=\"\",\"\",'1. Order'!K436)","v":""},{"$f":"IF('1. Order'!L436=\"\",\"\",'1. Order'!L436)","v":""},{"$f":"IF('1. Order'!M436=\"\",\"\",'1. Order'!M436)","v":""},{"$f":"IF('1. Order'!N436=\"\",\"\",'1. Order'!N436)","v":""},{"$f":"IF('1. Order'!O436=\"\",\"\",'1. Order'!O436)","v":{"$error":"#N/A"}},{"$f":"IF('1. Order'!P436=\"\",\"\",'1. Order'!P436)","v":{"$error":"#N/A"}},{"$f":"IF('1. Order'!Q436=\"\",\"\",'1. Order'!Q436)","v":""},{"$f":"IF('1. Order'!R436=\"\",\"\",'1. Order'!R436)","v":""},{"$f":"IF('1. Order'!S436=\"\",\"\",'1. Order'!S436)","v":""},{"$f":"IF('1. Order'!V436=\"\",\"\",'1. Order'!V436)","v":""},{"$f":"IF('1. Order'!W436=\"\",\"\",'1. Order'!W436)","v":""},{"$f":"IF('1. Order'!X436=\"\",\"\",'1. Order'!X436)","v":"EUR"},{"$f":"IF('1. Order'!Y436=\"\",\"\",'1. Order'!Y436)","v":""},{"$f":"IF('1. Order'!Z436=\"\",\"\",'1. Order'!Z436)","v":""},{"$f":"IF('1. Order'!AA436=\"\",\"\",'1. Order'!AA436)","v":""},null,{"$f":"IF('1. Order'!AS436=\"\",\"\",'1. Order'!AS436)","v":""},{"$f":"IF('1. Order'!AT436=\"\",\"\",'1. Order'!AT436)","v":""},null,null,null,null,null,null,null,{"$f":"IF('1. Order'!AX436=\"\",\"\",'1. Order'!AX436)","v":""},{"$f":"IF('1. Order'!AY436=\"\",\"\",'1. Order'!AY436)","v":""},{"$f":"IF('1. Order'!AZ436=\"\",\"\",'1. Order'!AZ436)","v":""},{"$f":"IF('1. Order'!BA436=\"\",\"\",'1. Order'!BA436)","v":""},{"$f":"IF('1. Order'!BC436=\"\",\"\",'1. Order'!BC436)","v":""},{"$f":"IF('1. Order'!BD436=\"\",\"\",'1. Order'!BD436)","v":6},{"$f":"IF('1. Order'!BE436=\"\",\"\",'1. Order'!BE436)","v":"None"},{"$f":"IF('1. Order'!BF436=\"\",\"\",'1. Order'!BF436)","v":"Parcel"},{"$f":"IF('1. Order'!BG436=\"\",\"\",'1. Order'!BG436)","v":"ZWO"}]
[{"$f":"IF('1. Order'!F437=\"\",\"\",'1. Order'!F437)","v":""},{"$f":"IF('1. Order'!G437=\"\",\"\",'1. Order'!G437)","v":""},{"$f":"IF('1. Order'!H437=\"\",\"\",'1. Order'!H437)","v":""},{"$f":"IF('1. Order'!I437=\"\",\"\",'1. Order'!I437)","v":""},{"$f":"IF('1. Order'!J437=\"\",\"\",'1. Order'!J437)","v":""},{"$f":"IF('1. Order'!K437=\"\",\"\",'1. Order'!K437)","v":""},{"$f":"IF('1. Order'!L437=\"\",\"\",'1. Order'!L437)","v":""},{"$f":"IF('1. Order'!M437=\"\",\"\",'1. Order'!M437)","v":""},{"$f":"IF('1. Order'!N437=\"\",\"\",'1. Order'!N437)","v":""},{"$f":"IF('1. Order'!O437=\"\",\"\",'1. Order'!O437)","v":{"$error":"#N/A"}},{"$f":"IF('1. Order'!P437=\"\",\"\",'1. Order'!P437)","v":{"$error":"#N/A"}},{"$f":"IF('1. Order'!Q437=\"\",\"\",'1. Order'!Q437)","v":""},{"$f":"IF('1. Order'!R437=\"\",\"\",'1. Order'!R437)","v":""},{"$f":"IF('1. Order'!S437=\"\",\"\",'1. Order'!S437)","v":""},{"$f":"IF('1. Order'!V437=\"\",\"\",'1. Order'!V437)","v":""},{"$f":"IF('1. Order'!W437=\"\",\"\",'1. Order'!W437)","v":""},{"$f":"IF('1. Order'!X437=\"\",\"\",'1. Order'!X437)","v":"EUR"},{"$f":"IF('1. Order'!Y437=\"\",\"\",'1. Order'!Y437)","v":""},{"$f":"IF('1. Order'!Z437=\"\",\"\",'1. Order'!Z437)","v":""},{"$f":"IF('1. Order'!AA437=\"\",\"\",'1. Order'!AA437)","v":""},null,{"$f":"IF('1. Order'!AS437=\"\",\"\",'1. Order'!AS437)","v":""},{"$f":"IF('1. Order'!AT437=\"\",\"\",'1. Order'!AT437)","v":""},null,null,null,null,null,null,null,{"$f":"IF('1. Order'!AX437=\"\",\"\",'1. Order'!AX437)","v":""},{"$f":"IF('1. Order'!AY437=\"\",\"\",'1. Order'!AY437)","v":""},{"$f":"IF('1. Order'!AZ437=\"\",\"\",'1. Order'!AZ437)","v":""},{"$f":"IF('1. Order'!BA437=\"\",\"\",'1. Order'!BA437)","v":""},{"$f":"IF('1. Order'!BC437=\"\",\"\",'1. Order'!BC437)","v":""},{"$f":"IF('1. Order'!BD437=\"\",\"\",'1. Order'!BD437)","v":6},{"$f":"IF('1. Order'!BE437=\"\",\"\",'1. Order'!BE437)","v":"None"},{"$f":"IF('1. Order'!BF437=\"\",\"\",'1. Order'!BF437)","v":"Parcel"},{"$f":"IF('1. Order'!BG437=\"\",\"\",'1. Order'!BG437)","v":"ZWO"}]
[{"$f":"IF('1. Order'!F438=\"\",\"\",'1. Order'!F438)","v":""},{"$f":"IF('1. Order'!G438=\"\",\"\",'1. Order'!G438)","v":""},{"$f":"IF('1. Order'!H438=\"\",\"\",'1. Order'!H438)","v":""},{"$f":"IF('1. Order'!I438=\"\",\"\",'1. Order'!I438)","v":""},{"$f":"IF('1. Order'!J438=\"\",\"\",'1. Order'!J438)","v":""},{"$f":"IF('1. Order'!K438=\"\",\"\",'1. Order'!K438)","v":""},{"$f":"IF('1. Order'!L438=\"\",\"\",'1. Order'!L438)","v":""},{"$f":"IF('1. Order'!M438=\"\",\"\",'1. Order'!M438)","v":""},{"$f":"IF('1. Order'!N438=\"\",\"\",'1. Order'!N438)","v":""},{"$f":"IF('1. Order'!O438=\"\",\"\",'1. Order'!O438)","v":{"$error":"#N/A"}},{"$f":"IF('1. Order'!P438=\"\",\"\",'1. Order'!P438)","v":{"$error":"#N/A"}},{"$f":"IF('1. Order'!Q438=\"\",\"\",'1. Order'!Q438)","v":""},{"$f":"IF('1. Order'!R438=\"\",\"\",'1. Order'!R438)","v":""},{"$f":"IF('1. Order'!S438=\"\",\"\",'1. Order'!S438)","v":""},{"$f":"IF('1. Order'!V438=\"\",\"\",'1. Order'!V438)","v":""},{"$f":"IF('1. Order'!W438=\"\",\"\",'1. Order'!W438)","v":""},{"$f":"IF('1. Order'!X438=\"\",\"\",'1. Order'!X438)","v":"EUR"},{"$f":"IF('1. Order'!Y438=\"\",\"\",'1. Order'!Y438)","v":""},{"$f":"IF('1. Order'!Z438=\"\",\"\",'1. Order'!Z438)","v":""},{"$f":"IF('1. Order'!AA438=\"\",\"\",'1. Order'!AA438)","v":""},null,{"$f":"IF('1. Order'!AS438=\"\",\"\",'1. Order'!AS438)","v":""},{"$f":"IF('1. Order'!AT438=\"\",\"\",'1. Order'!AT438)","v":""},null,null,null,null,null,null,null,{"$f":"IF('1. Order'!AX438=\"\",\"\",'1. Order'!AX438)","v":""},{"$f":"IF('1. Order'!AY438=\"\",\"\",'1. Order'!AY438)","v":""},{"$f":"IF('1. Order'!AZ438=\"\",\"\",'1. Order'!AZ438)","v":""},{"$f":"IF('1. Order'!BA438=\"\",\"\",'1. Order'!BA438)","v":""},{"$f":"IF('1. Order'!BC438=\"\",\"\",'1. Order'!BC438)","v":""},{"$f":"IF('1. Order'!BD438=\"\",\"\",'1. Order'!BD438)","v":6},{"$f":"IF('1. Order'!BE438=\"\",\"\",'1. Order'!BE438)","v":"None"},{"$f":"IF('1. Order'!BF438=\"\",\"\",'1. Order'!BF438)","v":"Parcel"},{"$f":"IF('1. Order'!BG438=\"\",\"\",'1. Order'!BG438)","v":"ZWO"}]
[{"$f":"IF('1. Order'!F439=\"\",\"\",'1. Order'!F439)","v":""},{"$f":"IF('1. Order'!G439=\"\",\"\",'1. Order'!G439)","v":""},{"$f":"IF('1. Order'!H439=\"\",\"\",'1. Order'!H439)","v":""},{"$f":"IF('1. Order'!I439=\"\",\"\",'1. Order'!I439)","v":""},{"$f":"IF('1. Order'!J439=\"\",\"\",'1. Order'!J439)","v":""},{"$f":"IF('1. Order'!K439=\"\",\"\",'1. Order'!K439)","v":""},{"$f":"IF('1. Order'!L439=\"\",\"\",'1. Order'!L439)","v":""},{"$f":"IF('1. Order'!M439=\"\",\"\",'1. Order'!M439)","v":""},{"$f":"IF('1. Order'!N439=\"\",\"\",'1. Order'!N439)","v":""},{"$f":"IF('1. Order'!O439=\"\",\"\",'1. Order'!O439)","v":{"$error":"#N/A"}},{"$f":"IF('1. Order'!P439=\"\",\"\",'1. Order'!P439)","v":{"$error":"#N/A"}},{"$f":"IF('1. Order'!Q439=\"\",\"\",'1. Order'!Q439)","v":""},{"$f":"IF('1. Order'!R439=\"\",\"\",'1. Order'!R439)","v":""},{"$f":"IF('1. Order'!S439=\"\",\"\",'1. Order'!S439)","v":""},{"$f":"IF('1. Order'!V439=\"\",\"\",'1. Order'!V439)","v":""},{"$f":"IF('1. Order'!W439=\"\",\"\",'1. Order'!W439)","v":""},{"$f":"IF('1. Order'!X439=\"\",\"\",'1. Order'!X439)","v":"EUR"},{"$f":"IF('1. Order'!Y439=\"\",\"\",'1. Order'!Y439)","v":""},{"$f":"IF('1. Order'!Z439=\"\",\"\",'1. Order'!Z439)","v":""},{"$f":"IF('1. Order'!AA439=\"\",\"\",'1. Order'!AA439)","v":""},null,{"$f":"IF('1. Order'!AS439=\"\",\"\",'1. Order'!AS439)","v":""},{"$f":"IF('1. Order'!AT439=\"\",\"\",'1. Order'!AT439)","v":""},null,null,null,null,null,null,null,{"$f":"IF('1. Order'!AX439=\"\",\"\",'1. Order'!AX439)","v":""},{"$f":"IF('1. Order'!AY439=\"\",\"\",'1. Order'!AY439)","v":""},{"$f":"IF('1. Order'!AZ439=\"\",\"\",'1. Order'!AZ439)","v":""},{"$f":"IF('1. Order'!BA439=\"\",\"\",'1. Order'!BA439)","v":""},{"$f":"IF('1. Order'!BC439=\"\",\"\",'1. Order'!BC439)","v":""},{"$f":"IF('1. Order'!BD439=\"\",\"\",'1. Order'!BD439)","v":6},{"$f":"IF('1. Order'!BE439=\"\",\"\",'1. Order'!BE439)","v":"None"},{"$f":"IF('1. Order'!BF439=\"\",\"\",'1. Order'!BF439)","v":"Parcel"},{"$f":"IF('1. Order'!BG439=\"\",\"\",'1. Order'!BG439)","v":"ZWO"}]
[{"$f":"IF('1. Order'!F440=\"\",\"\",'1. Order'!F440)","v":""},{"$f":"IF('1. Order'!G440=\"\",\"\",'1. Order'!G440)","v":""},{"$f":"IF('1. Order'!H440=\"\",\"\",'1. Order'!H440)","v":""},{"$f":"IF('1. Order'!I440=\"\",\"\",'1. Order'!I440)","v":""},{"$f":"IF('1. Order'!J440=\"\",\"\",'1. Order'!J440)","v":""},{"$f":"IF('1. Order'!K440=\"\",\"\",'1. Order'!K440)","v":""},{"$f":"IF('1. Order'!L440=\"\",\"\",'1. Order'!L440)","v":""},{"$f":"IF('1. Order'!M440=\"\",\"\",'1. Order'!M440)","v":""},{"$f":"IF('1. Order'!N440=\"\",\"\",'1. Order'!N440)","v":""},{"$f":"IF('1. Order'!O440=\"\",\"\",'1. Order'!O440)","v":{"$error":"#N/A"}},{"$f":"IF('1. Order'!P440=\"\",\"\",'1. Order'!P440)","v":{"$error":"#N/A"}},{"$f":"IF('1. Order'!Q440=\"\",\"\",'1. Order'!Q440)","v":""},{"$f":"IF('1. Order'!R440=\"\",\"\",'1. Order'!R440)","v":""},{"$f":"IF('1. Order'!S440=\"\",\"\",'1. Order'!S440)","v":""},{"$f":"IF('1. Order'!V440=\"\",\"\",'1. Order'!V440)","v":""},{"$f":"IF('1. Order'!W440=\"\",\"\",'1. Order'!W440)","v":""},{"$f":"IF('1. Order'!X440=\"\",\"\",'1. Order'!X440)","v":"EUR"},{"$f":"IF('1. Order'!Y440=\"\",\"\",'1. Order'!Y440)","v":""},{"$f":"IF('1. Order'!Z440=\"\",\"\",'1. Order'!Z440)","v":""},{"$f":"IF('1. Order'!AA440=\"\",\"\",'1. Order'!AA440)","v":""},null,{"$f":"IF('1. Order'!AS440=\"\",\"\",'1. Order'!AS440)","v":""},{"$f":"IF('1. Order'!AT440=\"\",\"\",'1. Order'!AT440)","v":""},null,null,null,null,null,null,null,{"$f":"IF('1. Order'!AX440=\"\",\"\",'1. Order'!AX440)","v":""},{"$f":"IF('1. Order'!AY440=\"\",\"\",'1. Order'!AY440)","v":""},{"$f":"IF('1. Order'!AZ440=\"\",\"\",'1. Order'!AZ440)","v":""},{"$f":"IF('1. Order'!BA440=\"\",\"\",'1. Order'!BA440)","v":""},{"$f":"IF('1. Order'!BC440=\"\",\"\",'1. Order'!BC440)","v":""},{"$f":"IF('1. Order'!BD440=\"\",\"\",'1. Order'!BD440)","v":6},{"$f":"IF('1. Order'!BE440=\"\",\"\",'1. Order'!BE440)","v":"None"},{"$f":"IF('1. Order'!BF440=\"\",\"\",'1. Order'!BF440)","v":"Parcel"},{"$f":"IF('1. Order'!BG440=\"\",\"\",'1. Order'!BG440)","v":"ZWO"}]
[{"$f":"IF('1. Order'!F441=\"\",\"\",'1. Order'!F441)","v":""},{"$f":"IF('1. Order'!G441=\"\",\"\",'1. Order'!G441)","v":""},{"$f":"IF('1. Order'!H441=\"\",\"\",'1. Order'!H441)","v":""},{"$f":"IF('1. Order'!I441=\"\",\"\",'1. Order'!I441)","v":""},{"$f":"IF('1. Order'!J441=\"\",\"\",'1. Order'!J441)","v":""},{"$f":"IF('1. Order'!K441=\"\",\"\",'1. Order'!K441)","v":""},{"$f":"IF('1. Order'!L441=\"\",\"\",'1. Order'!L441)","v":""},{"$f":"IF('1. Order'!M441=\"\",\"\",'1. Order'!M441)","v":""},{"$f":"IF('1. Order'!N441=\"\",\"\",'1. Order'!N441)","v":""},{"$f":"IF('1. Order'!O441=\"\",\"\",'1. Order'!O441)","v":{"$error":"#N/A"}},{"$f":"IF('1. Order'!P441=\"\",\"\",'1. Order'!P441)","v":{"$error":"#N/A"}},{"$f":"IF('1. Order'!Q441=\"\",\"\",'1. Order'!Q441)","v":""},{"$f":"IF('1. Order'!R441=\"\",\"\",'1. Order'!R441)","v":""},{"$f":"IF('1. Order'!S441=\"\",\"\",'1. Order'!S441)","v":""},{"$f":"IF('1. Order'!V441=\"\",\"\",'1. Order'!V441)","v":""},{"$f":"IF('1. Order'!W441=\"\",\"\",'1. Order'!W441)","v":""},{"$f":"IF('1. Order'!X441=\"\",\"\",'1. Order'!X441)","v":"EUR"},{"$f":"IF('1. Order'!Y441=\"\",\"\",'1. Order'!Y441)","v":""},{"$f":"IF('1. Order'!Z441=\"\",\"\",'1. Order'!Z441)","v":""},{"$f":"IF('1. Order'!AA441=\"\",\"\",'1. Order'!AA441)","v":""},null,{"$f":"IF('1. Order'!AS441=\"\",\"\",'1. Order'!AS441)","v":""},{"$f":"IF('1. Order'!AT441=\"\",\"\",'1. Order'!AT441)","v":""},null,null,null,null,null,null,null,{"$f":"IF('1. Order'!AX441=\"\",\"\",'1. Order'!AX441)","v":""},{"$f":"IF('1. Order'!AY441=\"\",\"\",'1. Order'!AY441)","v":""},{"$f":"IF('1. Order'!AZ441=\"\",\"\",'1. Order'!AZ441)","v":""},{"$f":"IF('1. Order'!BA441=\"\",\"\",'1. Order'!BA441)","v":""},{"$f":"IF('1. Order'!BC441=\"\",\"\",'1. Order'!BC441)","v":""},{"$f":"IF('1. Order'!BD441=\"\",\"\",'1. Order'!BD441)","v":6},{"$f":"IF('1. Order'!BE441=\"\",\"\",'1. Order'!BE441)","v":"None"},{"$f":"IF('1. Order'!BF441=\"\",\"\",'1. Order'!BF441)","v":"Parcel"},{"$f":"IF('1. Order'!BG441=\"\",\"\",'1. Order'!BG441)","v":"ZWO"}]
[{"$f":"IF('1. Order'!F442=\"\",\"\",'1. Order'!F442)","v":""},{"$f":"IF('1. Order'!G442=\"\",\"\",'1. Order'!G442)","v":""},{"$f":"IF('1. Order'!H442=\"\",\"\",'1. Order'!H442)","v":""},{"$f":"IF('1. Order'!I442=\"\",\"\",'1. Order'!I442)","v":""},{"$f":"IF('1. Order'!J442=\"\",\"\",'1. Order'!J442)","v":""},{"$f":"IF('1. Order'!K442=\"\",\"\",'1. Order'!K442)","v":""},{"$f":"IF('1. Order'!L442=\"\",\"\",'1. Order'!L442)","v":""},{"$f":"IF('1. Order'!M442=\"\",\"\",'1. Order'!M442)","v":""},{"$f":"IF('1. Order'!N442=\"\",\"\",'1. Order'!N442)","v":""},{"$f":"IF('1. Order'!O442=\"\",\"\",'1. Order'!O442)","v":{"$error":"#N/A"}},{"$f":"IF('1. Order'!P442=\"\",\"\",'1. Order'!P442)","v":{"$error":"#N/A"}},{"$f":"IF('1. Order'!Q442=\"\",\"\",'1. Order'!Q442)","v":""},{"$f":"IF('1. Order'!R442=\"\",\"\",'1. Order'!R442)","v":""},{"$f":"IF('1. Order'!S442=\"\",\"\",'1. Order'!S442)","v":""},{"$f":"IF('1. Order'!V442=\"\",\"\",'1. Order'!V442)","v":""},{"$f":"IF('1. Order'!W442=\"\",\"\",'1. Order'!W442)","v":""},{"$f":"IF('1. Order'!X442=\"\",\"\",'1. Order'!X442)","v":"EUR"},{"$f":"IF('1. Order'!Y442=\"\",\"\",'1. Order'!Y442)","v":""},{"$f":"IF('1. Order'!Z442=\"\",\"\",'1. Order'!Z442)","v":""},{"$f":"IF('1. Order'!AA442=\"\",\"\",'1. Order'!AA442)","v":""},null,{"$f":"IF('1. Order'!AS442=\"\",\"\",'1. Order'!AS442)","v":""},{"$f":"IF('1. Order'!AT442=\"\",\"\",'1. Order'!AT442)","v":""},null,null,null,null,null,null,null,{"$f":"IF('1. Order'!AX442=\"\",\"\",'1. Order'!AX442)","v":""},{"$f":"IF('1. Order'!AY442=\"\",\"\",'1. Order'!AY442)","v":""},{"$f":"IF('1. Order'!AZ442=\"\",\"\",'1. Order'!AZ442)","v":""},{"$f":"IF('1. Order'!BA442=\"\",\"\",'1. Order'!BA442)","v":""},{"$f":"IF('1. Order'!BC442=\"\",\"\",'1. Order'!BC442)","v":""},{"$f":"IF('1. Order'!BD442=\"\",\"\",'1. Order'!BD442)","v":6},{"$f":"IF('1. Order'!BE442=\"\",\"\",'1. Order'!BE442)","v":"None"},{"$f":"IF('1. Order'!BF442=\"\",\"\",'1. Order'!BF442)","v":"Parcel"},{"$f":"IF('1. Order'!BG442=\"\",\"\",'1. Order'!BG442)","v":"ZWO"}]
[{"$f":"IF('1. Order'!F443=\"\",\"\",'1. Order'!F443)","v":""},{"$f":"IF('1. Order'!G443=\"\",\"\",'1. Order'!G443)","v":""},{"$f":"IF('1. Order'!H443=\"\",\"\",'1. Order'!H443)","v":""},{"$f":"IF('1. Order'!I443=\"\",\"\",'1. Order'!I443)","v":""},{"$f":"IF('1. Order'!J443=\"\",\"\",'1. Order'!J443)","v":""},{"$f":"IF('1. Order'!K443=\"\",\"\",'1. Order'!K443)","v":""},{"$f":"IF('1. Order'!L443=\"\",\"\",'1. Order'!L443)","v":""},{"$f":"IF('1. Order'!M443=\"\",\"\",'1. Order'!M443)","v":""},{"$f":"IF('1. Order'!N443=\"\",\"\",'1. Order'!N443)","v":""},{"$f":"IF('1. Order'!O443=\"\",\"\",'1. Order'!O443)","v":{"$error":"#N/A"}},{"$f":"IF('1. Order'!P443=\"\",\"\",'1. Order'!P443)","v":{"$error":"#N/A"}},{"$f":"IF('1. Order'!Q443=\"\",\"\",'1. Order'!Q443)","v":""},{"$f":"IF('1. Order'!R443=\"\",\"\",'1. Order'!R443)","v":""},{"$f":"IF('1. Order'!S443=\"\",\"\",'1. Order'!S443)","v":""},{"$f":"IF('1. Order'!V443=\"\",\"\",'1. Order'!V443)","v":""},{"$f":"IF('1. Order'!W443=\"\",\"\",'1. Order'!W443)","v":""},{"$f":"IF('1. Order'!X443=\"\",\"\",'1. Order'!X443)","v":"EUR"},{"$f":"IF('1. Order'!Y443=\"\",\"\",'1. Order'!Y443)","v":""},{"$f":"IF('1. Order'!Z443=\"\",\"\",'1. Order'!Z443)","v":""},{"$f":"IF('1. Order'!AA443=\"\",\"\",'1. Order'!AA443)","v":""},null,{"$f":"IF('1. Order'!AS443=\"\",\"\",'1. Order'!AS443)","v":""},{"$f":"IF('1. Order'!AT443=\"\",\"\",'1. Order'!AT443)","v":""},null,null,null,null,null,null,null,{"$f":"IF('1. Order'!AX443=\"\",\"\",'1. Order'!AX443)","v":""},{"$f":"IF('1. Order'!AY443=\"\",\"\",'1. Order'!AY443)","v":""},{"$f":"IF('1. Order'!AZ443=\"\",\"\",'1. Order'!AZ443)","v":""},{"$f":"IF('1. Order'!BA443=\"\",\"\",'1. Order'!BA443)","v":""},{"$f":"IF('1. Order'!BC443=\"\",\"\",'1. Order'!BC443)","v":""},{"$f":"IF('1. Order'!BD443=\"\",\"\",'1. Order'!BD443)","v":6},{"$f":"IF('1. Order'!BE443=\"\",\"\",'1. Order'!BE443)","v":"None"},{"$f":"IF('1. Order'!BF443=\"\",\"\",'1. Order'!BF443)","v":"Parcel"},{"$f":"IF('1. Order'!BG443=\"\",\"\",'1. Order'!BG443)","v":"ZWO"}]
[{"$f":"IF('1. Order'!F444=\"\",\"\",'1. Order'!F444)","v":""},{"$f":"IF('1. Order'!G444=\"\",\"\",'1. Order'!G444)","v":""},{"$f":"IF('1. Order'!H444=\"\",\"\",'1. Order'!H444)","v":""},{"$f":"IF('1. Order'!I444=\"\",\"\",'1. Order'!I444)","v":""},{"$f":"IF('1. Order'!J444=\"\",\"\",'1. Order'!J444)","v":""},{"$f":"IF('1. Order'!K444=\"\",\"\",'1. Order'!K444)","v":""},{"$f":"IF('1. Order'!L444=\"\",\"\",'1. Order'!L444)","v":""},{"$f":"IF('1. Order'!M444=\"\",\"\",'1. Order'!M444)","v":""},{"$f":"IF('1. Order'!N444=\"\",\"\",'1. Order'!N444)","v":""},{"$f":"IF('1. Order'!O444=\"\",\"\",'1. Order'!O444)","v":{"$error":"#N/A"}},{"$f":"IF('1. Order'!P444=\"\",\"\",'1. Order'!P444)","v":{"$error":"#N/A"}},{"$f":"IF('1. Order'!Q444=\"\",\"\",'1. Order'!Q444)","v":""},{"$f":"IF('1. Order'!R444=\"\",\"\",'1. Order'!R444)","v":""},{"$f":"IF('1. Order'!S444=\"\",\"\",'1. Order'!S444)","v":""},{"$f":"IF('1. Order'!V444=\"\",\"\",'1. Order'!V444)","v":""},{"$f":"IF('1. Order'!W444=\"\",\"\",'1. Order'!W444)","v":""},{"$f":"IF('1. Order'!X444=\"\",\"\",'1. Order'!X444)","v":"EUR"},{"$f":"IF('1. Order'!Y444=\"\",\"\",'1. Order'!Y444)","v":""},{"$f":"IF('1. Order'!Z444=\"\",\"\",'1. Order'!Z444)","v":""},{"$f":"IF('1. Order'!AA444=\"\",\"\",'1. Order'!AA444)","v":""},null,{"$f":"IF('1. Order'!AS444=\"\",\"\",'1. Order'!AS444)","v":""},{"$f":"IF('1. Order'!AT444=\"\",\"\",'1. Order'!AT444)","v":""},null,null,null,null,null,null,null,{"$f":"IF('1. Order'!AX444=\"\",\"\",'1. Order'!AX444)","v":""},{"$f":"IF('1. Order'!AY444=\"\",\"\",'1. Order'!AY444)","v":""},{"$f":"IF('1. Order'!AZ444=\"\",\"\",'1. Order'!AZ444)","v":""},{"$f":"IF('1. Order'!BA444=\"\",\"\",'1. Order'!BA444)","v":""},{"$f":"IF('1. Order'!BC444=\"\",\"\",'1. Order'!BC444)","v":""},{"$f":"IF('1. Order'!BD444=\"\",\"\",'1. Order'!BD444)","v":6},{"$f":"IF('1. Order'!BE444=\"\",\"\",'1. Order'!BE444)","v":"None"},{"$f":"IF('1. Order'!BF444=\"\",\"\",'1. Order'!BF444)","v":"Parcel"},{"$f":"IF('1. Order'!BG444=\"\",\"\",'1. Order'!BG444)","v":"ZWO"}]
[{"$f":"IF('1. Order'!F445=\"\",\"\",'1. Order'!F445)","v":""},{"$f":"IF('1. Order'!G445=\"\",\"\",'1. Order'!G445)","v":""},{"$f":"IF('1. Order'!H445=\"\",\"\",'1. Order'!H445)","v":""},{"$f":"IF('1. Order'!I445=\"\",\"\",'1. Order'!I445)","v":""},{"$f":"IF('1. Order'!J445=\"\",\"\",'1. Order'!J445)","v":""},{"$f":"IF('1. Order'!K445=\"\",\"\",'1. Order'!K445)","v":""},{"$f":"IF('1. Order'!L445=\"\",\"\",'1. Order'!L445)","v":""},{"$f":"IF('1. Order'!M445=\"\",\"\",'1. Order'!M445)","v":""},{"$f":"IF('1. Order'!N445=\"\",\"\",'1. Order'!N445)","v":""},{"$f":"IF('1. Order'!O445=\"\",\"\",'1. Order'!O445)","v":{"$error":"#N/A"}},{"$f":"IF('1. Order'!P445=\"\",\"\",'1. Order'!P445)","v":{"$error":"#N/A"}},{"$f":"IF('1. Order'!Q445=\"\",\"\",'1. Order'!Q445)","v":""},{"$f":"IF('1. Order'!R445=\"\",\"\",'1. Order'!R445)","v":""},{"$f":"IF('1. Order'!S445=\"\",\"\",'1. Order'!S445)","v":""},{"$f":"IF('1. Order'!V445=\"\",\"\",'1. Order'!V445)","v":""},{"$f":"IF('1. Order'!W445=\"\",\"\",'1. Order'!W445)","v":""},{"$f":"IF('1. Order'!X445=\"\",\"\",'1. Order'!X445)","v":"EUR"},{"$f":"IF('1. Order'!Y445=\"\",\"\",'1. Order'!Y445)","v":""},{"$f":"IF('1. Order'!Z445=\"\",\"\",'1. Order'!Z445)","v":""},{"$f":"IF('1. Order'!AA445=\"\",\"\",'1. Order'!AA445)","v":""},null,{"$f":"IF('1. Order'!AS445=\"\",\"\",'1. Order'!AS445)","v":""},{"$f":"IF('1. Order'!AT445=\"\",\"\",'1. Order'!AT445)","v":""},null,null,null,null,null,null,null,{"$f":"IF('1. Order'!AX445=\"\",\"\",'1. Order'!AX445)","v":""},{"$f":"IF('1. Order'!AY445=\"\",\"\",'1. Order'!AY445)","v":""},{"$f":"IF('1. Order'!AZ445=\"\",\"\",'1. Order'!AZ445)","v":""},{"$f":"IF('1. Order'!BA445=\"\",\"\",'1. Order'!BA445)","v":""},{"$f":"IF('1. Order'!BC445=\"\",\"\",'1. Order'!BC445)","v":""},{"$f":"IF('1. Order'!BD445=\"\",\"\",'1. Order'!BD445)","v":6},{"$f":"IF('1. Order'!BE445=\"\",\"\",'1. Order'!BE445)","v":"None"},{"$f":"IF('1. Order'!BF445=\"\",\"\",'1. Order'!BF445)","v":"Parcel"},{"$f":"IF('1. Order'!BG445=\"\",\"\",'1. Order'!BG445)","v":"ZWO"}]
[{"$f":"IF('1. Order'!F446=\"\",\"\",'1. Order'!F446)","v":""},{"$f":"IF('1. Order'!G446=\"\",\"\",'1. Order'!G446)","v":""},{"$f":"IF('1. Order'!H446=\"\",\"\",'1. Order'!H446)","v":""},{"$f":"IF('1. Order'!I446=\"\",\"\",'1. Order'!I446)","v":""},{"$f":"IF('1. Order'!J446=\"\",\"\",'1. Order'!J446)","v":""},{"$f":"IF('1. Order'!K446=\"\",\"\",'1. Order'!K446)","v":""},{"$f":"IF('1. Order'!L446=\"\",\"\",'1. Order'!L446)","v":""},{"$f":"IF('1. Order'!M446=\"\",\"\",'1. Order'!M446)","v":""},{"$f":"IF('1. Order'!N446=\"\",\"\",'1. Order'!N446)","v":""},{"$f":"IF('1. Order'!O446=\"\",\"\",'1. Order'!O446)","v":{"$error":"#N/A"}},{"$f":"IF('1. Order'!P446=\"\",\"\",'1. Order'!P446)","v":{"$error":"#N/A"}},{"$f":"IF('1. Order'!Q446=\"\",\"\",'1. Order'!Q446)","v":""},{"$f":"IF('1. Order'!R446=\"\",\"\",'1. Order'!R446)","v":""},{"$f":"IF('1. Order'!S446=\"\",\"\",'1. Order'!S446)","v":""},{"$f":"IF('1. Order'!V446=\"\",\"\",'1. Order'!V446)","v":""},{"$f":"IF('1. Order'!W446=\"\",\"\",'1. Order'!W446)","v":""},{"$f":"IF('1. Order'!X446=\"\",\"\",'1. Order'!X446)","v":"EUR"},{"$f":"IF('1. Order'!Y446=\"\",\"\",'1. Order'!Y446)","v":""},{"$f":"IF('1. Order'!Z446=\"\",\"\",'1. Order'!Z446)","v":""},{"$f":"IF('1. Order'!AA446=\"\",\"\",'1. Order'!AA446)","v":""},null,{"$f":"IF('1. Order'!AS446=\"\",\"\",'1. Order'!AS446)","v":""},{"$f":"IF('1. Order'!AT446=\"\",\"\",'1. Order'!AT446)","v":""},null,null,null,null,null,null,null,{"$f":"IF('1. Order'!AX446=\"\",\"\",'1. Order'!AX446)","v":""},{"$f":"IF('1. Order'!AY446=\"\",\"\",'1. Order'!AY446)","v":""},{"$f":"IF('1. Order'!AZ446=\"\",\"\",'1. Order'!AZ446)","v":""},{"$f":"IF('1. Order'!BA446=\"\",\"\",'1. Order'!BA446)","v":""},{"$f":"IF('1. Order'!BC446=\"\",\"\",'1. Order'!BC446)","v":""},{"$f":"IF('1. Order'!BD446=\"\",\"\",'1. Order'!BD446)","v":6},{"$f":"IF('1. Order'!BE446=\"\",\"\",'1. Order'!BE446)","v":"None"},{"$f":"IF('1. Order'!BF446=\"\",\"\",'1. Order'!BF446)","v":"Parcel"},{"$f":"IF('1. Order'!BG446=\"\",\"\",'1. Order'!BG446)","v":"ZWO"}]
[{"$f":"IF('1. Order'!F447=\"\",\"\",'1. Order'!F447)","v":""},{"$f":"IF('1. Order'!G447=\"\",\"\",'1. Order'!G447)","v":""},{"$f":"IF('1. Order'!H447=\"\",\"\",'1. Order'!H447)","v":""},{"$f":"IF('1. Order'!I447=\"\",\"\",'1. Order'!I447)","v":""},{"$f":"IF('1. Order'!J447=\"\",\"\",'1. Order'!J447)","v":""},{"$f":"IF('1. Order'!K447=\"\",\"\",'1. Order'!K447)","v":""},{"$f":"IF('1. Order'!L447=\"\",\"\",'1. Order'!L447)","v":""},{"$f":"IF('1. Order'!M447=\"\",\"\",'1. Order'!M447)","v":""},{"$f":"IF('1. Order'!N447=\"\",\"\",'1. Order'!N447)","v":""},{"$f":"IF('1. Order'!O447=\"\",\"\",'1. Order'!O447)","v":{"$error":"#N/A"}},{"$f":"IF('1. Order'!P447=\"\",\"\",'1. Order'!P447)","v":{"$error":"#N/A"}},{"$f":"IF('1. Order'!Q447=\"\",\"\",'1. Order'!Q447)","v":""},{"$f":"IF('1. Order'!R447=\"\",\"\",'1. Order'!R447)","v":""},{"$f":"IF('1. Order'!S447=\"\",\"\",'1. Order'!S447)","v":""},{"$f":"IF('1. Order'!V447=\"\",\"\",'1. Order'!V447)","v":""},{"$f":"IF('1. Order'!W447=\"\",\"\",'1. Order'!W447)","v":""},{"$f":"IF('1. Order'!X447=\"\",\"\",'1. Order'!X447)","v":"EUR"},{"$f":"IF('1. Order'!Y447=\"\",\"\",'1. Order'!Y447)","v":""},{"$f":"IF('1. Order'!Z447=\"\",\"\",'1. Order'!Z447)","v":""},{"$f":"IF('1. Order'!AA447=\"\",\"\",'1. Order'!AA447)","v":""},null,{"$f":"IF('1. Order'!AS447=\"\",\"\",'1. Order'!AS447)","v":""},{"$f":"IF('1. Order'!AT447=\"\",\"\",'1. Order'!AT447)","v":""},null,null,null,null,null,null,null,{"$f":"IF('1. Order'!AX447=\"\",\"\",'1. Order'!AX447)","v":""},{"$f":"IF('1. Order'!AY447=\"\",\"\",'1. Order'!AY447)","v":""},{"$f":"IF('1. Order'!AZ447=\"\",\"\",'1. Order'!AZ447)","v":""},{"$f":"IF('1. Order'!BA447=\"\",\"\",'1. Order'!BA447)","v":""},{"$f":"IF('1. Order'!BC447=\"\",\"\",'1. Order'!BC447)","v":""},{"$f":"IF('1. Order'!BD447=\"\",\"\",'1. Order'!BD447)","v":6},{"$f":"IF('1. Order'!BE447=\"\",\"\",'1. Order'!BE447)","v":"None"},{"$f":"IF('1. Order'!BF447=\"\",\"\",'1. Order'!BF447)","v":"Parcel"},{"$f":"IF('1. Order'!BG447=\"\",\"\",'1. Order'!BG447)","v":"ZWO"}]
[{"$f":"IF('1. Order'!F448=\"\",\"\",'1. Order'!F448)","v":""},{"$f":"IF('1. Order'!G448=\"\",\"\",'1. Order'!G448)","v":""},{"$f":"IF('1. Order'!H448=\"\",\"\",'1. Order'!H448)","v":""},{"$f":"IF('1. Order'!I448=\"\",\"\",'1. Order'!I448)","v":""},{"$f":"IF('1. Order'!J448=\"\",\"\",'1. Order'!J448)","v":""},{"$f":"IF('1. Order'!K448=\"\",\"\",'1. Order'!K448)","v":""},{"$f":"IF('1. Order'!L448=\"\",\"\",'1. Order'!L448)","v":""},{"$f":"IF('1. Order'!M448=\"\",\"\",'1. Order'!M448)","v":""},{"$f":"IF('1. Order'!N448=\"\",\"\",'1. Order'!N448)","v":""},{"$f":"IF('1. Order'!O448=\"\",\"\",'1. Order'!O448)","v":{"$error":"#N/A"}},{"$f":"IF('1. Order'!P448=\"\",\"\",'1. Order'!P448)","v":{"$error":"#N/A"}},{"$f":"IF('1. Order'!Q448=\"\",\"\",'1. Order'!Q448)","v":""},{"$f":"IF('1. Order'!R448=\"\",\"\",'1. Order'!R448)","v":""},{"$f":"IF('1. Order'!S448=\"\",\"\",'1. Order'!S448)","v":""},{"$f":"IF('1. Order'!V448=\"\",\"\",'1. Order'!V448)","v":""},{"$f":"IF('1. Order'!W448=\"\",\"\",'1. Order'!W448)","v":""},{"$f":"IF('1. Order'!X448=\"\",\"\",'1. Order'!X448)","v":"EUR"},{"$f":"IF('1. Order'!Y448=\"\",\"\",'1. Order'!Y448)","v":""},{"$f":"IF('1. Order'!Z448=\"\",\"\",'1. Order'!Z448)","v":""},{"$f":"IF('1. Order'!AA448=\"\",\"\",'1. Order'!AA448)","v":""},null,{"$f":"IF('1. Order'!AS448=\"\",\"\",'1. Order'!AS448)","v":""},{"$f":"IF('1. Order'!AT448=\"\",\"\",'1. Order'!AT448)","v":""},null,null,null,null,null,null,null,{"$f":"IF('1. Order'!AX448=\"\",\"\",'1. Order'!AX448)","v":""},{"$f":"IF('1. Order'!AY448=\"\",\"\",'1. Order'!AY448)","v":""},{"$f":"IF('1. Order'!AZ448=\"\",\"\",'1. Order'!AZ448)","v":""},{"$f":"IF('1. Order'!BA448=\"\",\"\",'1. Order'!BA448)","v":""},{"$f":"IF('1. Order'!BC448=\"\",\"\",'1. Order'!BC448)","v":""},{"$f":"IF('1. Order'!BD448=\"\",\"\",'1. Order'!BD448)","v":6},{"$f":"IF('1. Order'!BE448=\"\",\"\",'1. Order'!BE448)","v":"None"},{"$f":"IF('1. Order'!BF448=\"\",\"\",'1. Order'!BF448)","v":"Parcel"},{"$f":"IF('1. Order'!BG448=\"\",\"\",'1. Order'!BG448)","v":"ZWO"}]
[{"$f":"IF('1. Order'!F449=\"\",\"\",'1. Order'!F449)","v":""},{"$f":"IF('1. Order'!G449=\"\",\"\",'1. Order'!G449)","v":""},{"$f":"IF('1. Order'!H449=\"\",\"\",'1. Order'!H449)","v":""},{"$f":"IF('1. Order'!I449=\"\",\"\",'1. Order'!I449)","v":""},{"$f":"IF('1. Order'!J449=\"\",\"\",'1. Order'!J449)","v":""},{"$f":"IF('1. Order'!K449=\"\",\"\",'1. Order'!K449)","v":""},{"$f":"IF('1. Order'!L449=\"\",\"\",'1. Order'!L449)","v":""},{"$f":"IF('1. Order'!M449=\"\",\"\",'1. Order'!M449)","v":""},{"$f":"IF('1. Order'!N449=\"\",\"\",'1. Order'!N449)","v":""},{"$f":"IF('1. Order'!O449=\"\",\"\",'1. Order'!O449)","v":{"$error":"#N/A"}},{"$f":"IF('1. Order'!P449=\"\",\"\",'1. Order'!P449)","v":{"$error":"#N/A"}},{"$f":"IF('1. Order'!Q449=\"\",\"\",'1. Order'!Q449)","v":""},{"$f":"IF('1. Order'!R449=\"\",\"\",'1. Order'!R449)","v":""},{"$f":"IF('1. Order'!S449=\"\",\"\",'1. Order'!S449)","v":""},{"$f":"IF('1. Order'!V449=\"\",\"\",'1. Order'!V449)","v":""},{"$f":"IF('1. Order'!W449=\"\",\"\",'1. Order'!W449)","v":""},{"$f":"IF('1. Order'!X449=\"\",\"\",'1. Order'!X449)","v":"EUR"},{"$f":"IF('1. Order'!Y449=\"\",\"\",'1. Order'!Y449)","v":""},{"$f":"IF('1. Order'!Z449=\"\",\"\",'1. Order'!Z449)","v":""},{"$f":"IF('1. Order'!AA449=\"\",\"\",'1. Order'!AA449)","v":""},null,{"$f":"IF('1. Order'!AS449=\"\",\"\",'1. Order'!AS449)","v":""},{"$f":"IF('1. Order'!AT449=\"\",\"\",'1. Order'!AT449)","v":""},null,null,null,null,null,null,null,{"$f":"IF('1. Order'!AX449=\"\",\"\",'1. Order'!AX449)","v":""},{"$f":"IF('1. Order'!AY449=\"\",\"\",'1. Order'!AY449)","v":""},{"$f":"IF('1. Order'!AZ449=\"\",\"\",'1. Order'!AZ449)","v":""},{"$f":"IF('1. Order'!BA449=\"\",\"\",'1. Order'!BA449)","v":""},{"$f":"IF('1. Order'!BC449=\"\",\"\",'1. Order'!BC449)","v":""},{"$f":"IF('1. Order'!BD449=\"\",\"\",'1. Order'!BD449)","v":6},{"$f":"IF('1. Order'!BE449=\"\",\"\",'1. Order'!BE449)","v":"None"},{"$f":"IF('1. Order'!BF449=\"\",\"\",'1. Order'!BF449)","v":"Parcel"},{"$f":"IF('1. Order'!BG449=\"\",\"\",'1. Order'!BG449)","v":"ZWO"}]
[{"$f":"IF('1. Order'!F450=\"\",\"\",'1. Order'!F450)","v":""},{"$f":"IF('1. Order'!G450=\"\",\"\",'1. Order'!G450)","v":""},{"$f":"IF('1. Order'!H450=\"\",\"\",'1. Order'!H450)","v":""},{"$f":"IF('1. Order'!I450=\"\",\"\",'1. Order'!I450)","v":""},{"$f":"IF('1. Order'!J450=\"\",\"\",'1. Order'!J450)","v":""},{"$f":"IF('1. Order'!K450=\"\",\"\",'1. Order'!K450)","v":""},{"$f":"IF('1. Order'!L450=\"\",\"\",'1. Order'!L450)","v":""},{"$f":"IF('1. Order'!M450=\"\",\"\",'1. Order'!M450)","v":""},{"$f":"IF('1. Order'!N450=\"\",\"\",'1. Order'!N450)","v":""},{"$f":"IF('1. Order'!O450=\"\",\"\",'1. Order'!O450)","v":{"$error":"#N/A"}},{"$f":"IF('1. Order'!P450=\"\",\"\",'1. Order'!P450)","v":{"$error":"#N/A"}},{"$f":"IF('1. Order'!Q450=\"\",\"\",'1. Order'!Q450)","v":""},{"$f":"IF('1. Order'!R450=\"\",\"\",'1. Order'!R450)","v":""},{"$f":"IF('1. Order'!S450=\"\",\"\",'1. Order'!S450)","v":""},{"$f":"IF('1. Order'!V450=\"\",\"\",'1. Order'!V450)","v":""},{"$f":"IF('1. Order'!W450=\"\",\"\",'1. Order'!W450)","v":""},{"$f":"IF('1. Order'!X450=\"\",\"\",'1. Order'!X450)","v":"EUR"},{"$f":"IF('1. Order'!Y450=\"\",\"\",'1. Order'!Y450)","v":""},{"$f":"IF('1. Order'!Z450=\"\",\"\",'1. Order'!Z450)","v":""},{"$f":"IF('1. Order'!AA450=\"\",\"\",'1. Order'!AA450)","v":""},null,{"$f":"IF('1. Order'!AS450=\"\",\"\",'1. Order'!AS450)","v":""},{"$f":"IF('1. Order'!AT450=\"\",\"\",'1. Order'!AT450)","v":""},null,null,null,null,null,null,null,{"$f":"IF('1. Order'!AX450=\"\",\"\",'1. Order'!AX450)","v":""},{"$f":"IF('1. Order'!AY450=\"\",\"\",'1. Order'!AY450)","v":""},{"$f":"IF('1. Order'!AZ450=\"\",\"\",'1. Order'!AZ450)","v":""},{"$f":"IF('1. Order'!BA450=\"\",\"\",'1. Order'!BA450)","v":""},{"$f":"IF('1. Order'!BC450=\"\",\"\",'1. Order'!BC450)","v":""},{"$f":"IF('1. Order'!BD450=\"\",\"\",'1. Order'!BD450)","v":6},{"$f":"IF('1. Order'!BE450=\"\",\"\",'1. Order'!BE450)","v":"None"},{"$f":"IF('1. Order'!BF450=\"\",\"\",'1. Order'!BF450)","v":"Parcel"},{"$f":"IF('1. Order'!BG450=\"\",\"\",'1. Order'!BG450)","v":"ZWO"}]
[{"$f":"IF('1. Order'!F451=\"\",\"\",'1. Order'!F451)","v":""},{"$f":"IF('1. Order'!G451=\"\",\"\",'1. Order'!G451)","v":""},{"$f":"IF('1. Order'!H451=\"\",\"\",'1. Order'!H451)","v":""},{"$f":"IF('1. Order'!I451=\"\",\"\",'1. Order'!I451)","v":""},{"$f":"IF('1. Order'!J451=\"\",\"\",'1. Order'!J451)","v":""},{"$f":"IF('1. Order'!K451=\"\",\"\",'1. Order'!K451)","v":""},{"$f":"IF('1. Order'!L451=\"\",\"\",'1. Order'!L451)","v":""},{"$f":"IF('1. Order'!M451=\"\",\"\",'1. Order'!M451)","v":""},{"$f":"IF('1. Order'!N451=\"\",\"\",'1. Order'!N451)","v":""},{"$f":"IF('1. Order'!O451=\"\",\"\",'1. Order'!O451)","v":{"$error":"#N/A"}},{"$f":"IF('1. Order'!P451=\"\",\"\",'1. Order'!P451)","v":{"$error":"#N/A"}},{"$f":"IF('1. Order'!Q451=\"\",\"\",'1. Order'!Q451)","v":""},{"$f":"IF('1. Order'!R451=\"\",\"\",'1. Order'!R451)","v":""},{"$f":"IF('1. Order'!S451=\"\",\"\",'1. Order'!S451)","v":""},{"$f":"IF('1. Order'!V451=\"\",\"\",'1. Order'!V451)","v":""},{"$f":"IF('1. Order'!W451=\"\",\"\",'1. Order'!W451)","v":""},{"$f":"IF('1. Order'!X451=\"\",\"\",'1. Order'!X451)","v":"EUR"},{"$f":"IF('1. Order'!Y451=\"\",\"\",'1. Order'!Y451)","v":""},{"$f":"IF('1. Order'!Z451=\"\",\"\",'1. Order'!Z451)","v":""},{"$f":"IF('1. Order'!AA451=\"\",\"\",'1. Order'!AA451)","v":""},null,{"$f":"IF('1. Order'!AS451=\"\",\"\",'1. Order'!AS451)","v":""},{"$f":"IF('1. Order'!AT451=\"\",\"\",'1. Order'!AT451)","v":""},null,null,null,null,null,null,null,{"$f":"IF('1. Order'!AX451=\"\",\"\",'1. Order'!AX451)","v":""},{"$f":"IF('1. Order'!AY451=\"\",\"\",'1. Order'!AY451)","v":""},{"$f":"IF('1. Order'!AZ451=\"\",\"\",'1. Order'!AZ451)","v":""},{"$f":"IF('1. Order'!BA451=\"\",\"\",'1. Order'!BA451)","v":""},{"$f":"IF('1. Order'!BC451=\"\",\"\",'1. Order'!BC451)","v":""},{"$f":"IF('1. Order'!BD451=\"\",\"\",'1. Order'!BD451)","v":6},{"$f":"IF('1. Order'!BE451=\"\",\"\",'1. Order'!BE451)","v":"None"},{"$f":"IF('1. Order'!BF451=\"\",\"\",'1. Order'!BF451)","v":"Parcel"},{"$f":"IF('1. Order'!BG451=\"\",\"\",'1. Order'!BG451)","v":"ZWO"}]
[{"$f":"IF('1. Order'!F452=\"\",\"\",'1. Order'!F452)","v":""},{"$f":"IF('1. Order'!G452=\"\",\"\",'1. Order'!G452)","v":""},{"$f":"IF('1. Order'!H452=\"\",\"\",'1. Order'!H452)","v":""},{"$f":"IF('1. Order'!I452=\"\",\"\",'1. Order'!I452)","v":""},{"$f":"IF('1. Order'!J452=\"\",\"\",'1. Order'!J452)","v":""},{"$f":"IF('1. Order'!K452=\"\",\"\",'1. Order'!K452)","v":""},{"$f":"IF('1. Order'!L452=\"\",\"\",'1. Order'!L452)","v":""},{"$f":"IF('1. Order'!M452=\"\",\"\",'1. Order'!M452)","v":""},{"$f":"IF('1. Order'!N452=\"\",\"\",'1. Order'!N452)","v":""},{"$f":"IF('1. Order'!O452=\"\",\"\",'1. Order'!O452)","v":{"$error":"#N/A"}},{"$f":"IF('1. Order'!P452=\"\",\"\",'1. Order'!P452)","v":{"$error":"#N/A"}},{"$f":"IF('1. Order'!Q452=\"\",\"\",'1. Order'!Q452)","v":""},{"$f":"IF('1. Order'!R452=\"\",\"\",'1. Order'!R452)","v":""},{"$f":"IF('1. Order'!S452=\"\",\"\",'1. Order'!S452)","v":""},{"$f":"IF('1. Order'!V452=\"\",\"\",'1. Order'!V452)","v":""},{"$f":"IF('1. Order'!W452=\"\",\"\",'1. Order'!W452)","v":""},{"$f":"IF('1. Order'!X452=\"\",\"\",'1. Order'!X452)","v":"EUR"},{"$f":"IF('1. Order'!Y452=\"\",\"\",'1. Order'!Y452)","v":""},{"$f":"IF('1. Order'!Z452=\"\",\"\",'1. Order'!Z452)","v":""},{"$f":"IF('1. Order'!AA452=\"\",\"\",'1. Order'!AA452)","v":""},null,{"$f":"IF('1. Order'!AS452=\"\",\"\",'1. Order'!AS452)","v":""},{"$f":"IF('1. Order'!AT452=\"\",\"\",'1. Order'!AT452)","v":""},null,null,null,null,null,null,null,{"$f":"IF('1. Order'!AX452=\"\",\"\",'1. Order'!AX452)","v":""},{"$f":"IF('1. Order'!AY452=\"\",\"\",'1. Order'!AY452)","v":""},{"$f":"IF('1. Order'!AZ452=\"\",\"\",'1. Order'!AZ452)","v":""},{"$f":"IF('1. Order'!BA452=\"\",\"\",'1. Order'!BA452)","v":""},{"$f":"IF('1. Order'!BC452=\"\",\"\",'1. Order'!BC452)","v":""},{"$f":"IF('1. Order'!BD452=\"\",\"\",'1. Order'!BD452)","v":6},{"$f":"IF('1. Order'!BE452=\"\",\"\",'1. Order'!BE452)","v":"None"},{"$f":"IF('1. Order'!BF452=\"\",\"\",'1. Order'!BF452)","v":"Parcel"},{"$f":"IF('1. Order'!BG452=\"\",\"\",'1. Order'!BG452)","v":"ZWO"}]
[{"$f":"IF('1. Order'!F453=\"\",\"\",'1. Order'!F453)","v":""},{"$f":"IF('1. Order'!G453=\"\",\"\",'1. Order'!G453)","v":""},{"$f":"IF('1. Order'!H453=\"\",\"\",'1. Order'!H453)","v":""},{"$f":"IF('1. Order'!I453=\"\",\"\",'1. Order'!I453)","v":""},{"$f":"IF('1. Order'!J453=\"\",\"\",'1. Order'!J453)","v":""},{"$f":"IF('1. Order'!K453=\"\",\"\",'1. Order'!K453)","v":""},{"$f":"IF('1. Order'!L453=\"\",\"\",'1. Order'!L453)","v":""},{"$f":"IF('1. Order'!M453=\"\",\"\",'1. Order'!M453)","v":""},{"$f":"IF('1. Order'!N453=\"\",\"\",'1. Order'!N453)","v":""},{"$f":"IF('1. Order'!O453=\"\",\"\",'1. Order'!O453)","v":{"$error":"#N/A"}},{"$f":"IF('1. Order'!P453=\"\",\"\",'1. Order'!P453)","v":{"$error":"#N/A"}},{"$f":"IF('1. Order'!Q453=\"\",\"\",'1. Order'!Q453)","v":""},{"$f":"IF('1. Order'!R453=\"\",\"\",'1. Order'!R453)","v":""},{"$f":"IF('1. Order'!S453=\"\",\"\",'1. Order'!S453)","v":""},{"$f":"IF('1. Order'!V453=\"\",\"\",'1. Order'!V453)","v":""},{"$f":"IF('1. Order'!W453=\"\",\"\",'1. Order'!W453)","v":""},{"$f":"IF('1. Order'!X453=\"\",\"\",'1. Order'!X453)","v":"EUR"},{"$f":"IF('1. Order'!Y453=\"\",\"\",'1. Order'!Y453)","v":""},{"$f":"IF('1. Order'!Z453=\"\",\"\",'1. Order'!Z453)","v":""},{"$f":"IF('1. Order'!AA453=\"\",\"\",'1. Order'!AA453)","v":""},null,{"$f":"IF('1. Order'!AS453=\"\",\"\",'1. Order'!AS453)","v":""},{"$f":"IF('1. Order'!AT453=\"\",\"\",'1. Order'!AT453)","v":""},null,null,null,null,null,null,null,{"$f":"IF('1. Order'!AX453=\"\",\"\",'1. Order'!AX453)","v":""},{"$f":"IF('1. Order'!AY453=\"\",\"\",'1. Order'!AY453)","v":""},{"$f":"IF('1. Order'!AZ453=\"\",\"\",'1. Order'!AZ453)","v":""},{"$f":"IF('1. Order'!BA453=\"\",\"\",'1. Order'!BA453)","v":""},{"$f":"IF('1. Order'!BC453=\"\",\"\",'1. Order'!BC453)","v":""},{"$f":"IF('1. Order'!BD453=\"\",\"\",'1. Order'!BD453)","v":6},{"$f":"IF('1. Order'!BE453=\"\",\"\",'1. Order'!BE453)","v":"None"},{"$f":"IF('1. Order'!BF453=\"\",\"\",'1. Order'!BF453)","v":"Parcel"},{"$f":"IF('1. Order'!BG453=\"\",\"\",'1. Order'!BG453)","v":"ZWO"}]
[{"$f":"IF('1. Order'!F454=\"\",\"\",'1. Order'!F454)","v":""},{"$f":"IF('1. Order'!G454=\"\",\"\",'1. Order'!G454)","v":""},{"$f":"IF('1. Order'!H454=\"\",\"\",'1. Order'!H454)","v":""},{"$f":"IF('1. Order'!I454=\"\",\"\",'1. Order'!I454)","v":""},{"$f":"IF('1. Order'!J454=\"\",\"\",'1. Order'!J454)","v":""},{"$f":"IF('1. Order'!K454=\"\",\"\",'1. Order'!K454)","v":""},{"$f":"IF('1. Order'!L454=\"\",\"\",'1. Order'!L454)","v":""},{"$f":"IF('1. Order'!M454=\"\",\"\",'1. Order'!M454)","v":""},{"$f":"IF('1. Order'!N454=\"\",\"\",'1. Order'!N454)","v":""},{"$f":"IF('1. Order'!O454=\"\",\"\",'1. Order'!O454)","v":{"$error":"#N/A"}},{"$f":"IF('1. Order'!P454=\"\",\"\",'1. Order'!P454)","v":{"$error":"#N/A"}},{"$f":"IF('1. Order'!Q454=\"\",\"\",'1. Order'!Q454)","v":""},{"$f":"IF('1. Order'!R454=\"\",\"\",'1. Order'!R454)","v":""},{"$f":"IF('1. Order'!S454=\"\",\"\",'1. Order'!S454)","v":""},{"$f":"IF('1. Order'!V454=\"\",\"\",'1. Order'!V454)","v":""},{"$f":"IF('1. Order'!W454=\"\",\"\",'1. Order'!W454)","v":""},{"$f":"IF('1. Order'!X454=\"\",\"\",'1. Order'!X454)","v":"EUR"},{"$f":"IF('1. Order'!Y454=\"\",\"\",'1. Order'!Y454)","v":""},{"$f":"IF('1. Order'!Z454=\"\",\"\",'1. Order'!Z454)","v":""},{"$f":"IF('1. Order'!AA454=\"\",\"\",'1. Order'!AA454)","v":""},null,{"$f":"IF('1. Order'!AS454=\"\",\"\",'1. Order'!AS454)","v":""},{"$f":"IF('1. Order'!AT454=\"\",\"\",'1. Order'!AT454)","v":""},null,null,null,null,null,null,null,{"$f":"IF('1. Order'!AX454=\"\",\"\",'1. Order'!AX454)","v":""},{"$f":"IF('1. Order'!AY454=\"\",\"\",'1. Order'!AY454)","v":""},{"$f":"IF('1. Order'!AZ454=\"\",\"\",'1. Order'!AZ454)","v":""},{"$f":"IF('1. Order'!BA454=\"\",\"\",'1. Order'!BA454)","v":""},{"$f":"IF('1. Order'!BC454=\"\",\"\",'1. Order'!BC454)","v":""},{"$f":"IF('1. Order'!BD454=\"\",\"\",'1. Order'!BD454)","v":6},{"$f":"IF('1. Order'!BE454=\"\",\"\",'1. Order'!BE454)","v":"None"},{"$f":"IF('1. Order'!BF454=\"\",\"\",'1. Order'!BF454)","v":"Parcel"},{"$f":"IF('1. Order'!BG454=\"\",\"\",'1. Order'!BG454)","v":"ZWO"}]
[{"$f":"IF('1. Order'!F455=\"\",\"\",'1. Order'!F455)","v":""},{"$f":"IF('1. Order'!G455=\"\",\"\",'1. Order'!G455)","v":""},{"$f":"IF('1. Order'!H455=\"\",\"\",'1. Order'!H455)","v":""},{"$f":"IF('1. Order'!I455=\"\",\"\",'1. Order'!I455)","v":""},{"$f":"IF('1. Order'!J455=\"\",\"\",'1. Order'!J455)","v":""},{"$f":"IF('1. Order'!K455=\"\",\"\",'1. Order'!K455)","v":""},{"$f":"IF('1. Order'!L455=\"\",\"\",'1. Order'!L455)","v":""},{"$f":"IF('1. Order'!M455=\"\",\"\",'1. Order'!M455)","v":""},{"$f":"IF('1. Order'!N455=\"\",\"\",'1. Order'!N455)","v":""},{"$f":"IF('1. Order'!O455=\"\",\"\",'1. Order'!O455)","v":{"$error":"#N/A"}},{"$f":"IF('1. Order'!P455=\"\",\"\",'1. Order'!P455)","v":{"$error":"#N/A"}},{"$f":"IF('1. Order'!Q455=\"\",\"\",'1. Order'!Q455)","v":""},{"$f":"IF('1. Order'!R455=\"\",\"\",'1. Order'!R455)","v":""},{"$f":"IF('1. Order'!S455=\"\",\"\",'1. Order'!S455)","v":""},{"$f":"IF('1. Order'!V455=\"\",\"\",'1. Order'!V455)","v":""},{"$f":"IF('1. Order'!W455=\"\",\"\",'1. Order'!W455)","v":""},{"$f":"IF('1. Order'!X455=\"\",\"\",'1. Order'!X455)","v":"EUR"},{"$f":"IF('1. Order'!Y455=\"\",\"\",'1. Order'!Y455)","v":""},{"$f":"IF('1. Order'!Z455=\"\",\"\",'1. Order'!Z455)","v":""},{"$f":"IF('1. Order'!AA455=\"\",\"\",'1. Order'!AA455)","v":""},null,{"$f":"IF('1. Order'!AS455=\"\",\"\",'1. Order'!AS455)","v":""},{"$f":"IF('1. Order'!AT455=\"\",\"\",'1. Order'!AT455)","v":""},null,null,null,null,null,null,null,{"$f":"IF('1. Order'!AX455=\"\",\"\",'1. Order'!AX455)","v":""},{"$f":"IF('1. Order'!AY455=\"\",\"\",'1. Order'!AY455)","v":""},{"$f":"IF('1. Order'!AZ455=\"\",\"\",'1. Order'!AZ455)","v":""},{"$f":"IF('1. Order'!BA455=\"\",\"\",'1. Order'!BA455)","v":""},{"$f":"IF('1. Order'!BC455=\"\",\"\",'1. Order'!BC455)","v":""},{"$f":"IF('1. Order'!BD455=\"\",\"\",'1. Order'!BD455)","v":6},{"$f":"IF('1. Order'!BE455=\"\",\"\",'1. Order'!BE455)","v":"None"},{"$f":"IF('1. Order'!BF455=\"\",\"\",'1. Order'!BF455)","v":"Parcel"},{"$f":"IF('1. Order'!BG455=\"\",\"\",'1. Order'!BG455)","v":"ZWO"}]
[{"$f":"IF('1. Order'!F456=\"\",\"\",'1. Order'!F456)","v":""},{"$f":"IF('1. Order'!G456=\"\",\"\",'1. Order'!G456)","v":""},{"$f":"IF('1. Order'!H456=\"\",\"\",'1. Order'!H456)","v":""},{"$f":"IF('1. Order'!I456=\"\",\"\",'1. Order'!I456)","v":""},{"$f":"IF('1. Order'!J456=\"\",\"\",'1. Order'!J456)","v":""},{"$f":"IF('1. Order'!K456=\"\",\"\",'1. Order'!K456)","v":""},{"$f":"IF('1. Order'!L456=\"\",\"\",'1. Order'!L456)","v":""},{"$f":"IF('1. Order'!M456=\"\",\"\",'1. Order'!M456)","v":""},{"$f":"IF('1. Order'!N456=\"\",\"\",'1. Order'!N456)","v":""},{"$f":"IF('1. Order'!O456=\"\",\"\",'1. Order'!O456)","v":{"$error":"#N/A"}},{"$f":"IF('1. Order'!P456=\"\",\"\",'1. Order'!P456)","v":{"$error":"#N/A"}},{"$f":"IF('1. Order'!Q456=\"\",\"\",'1. Order'!Q456)","v":""},{"$f":"IF('1. Order'!R456=\"\",\"\",'1. Order'!R456)","v":""},{"$f":"IF('1. Order'!S456=\"\",\"\",'1. Order'!S456)","v":""},{"$f":"IF('1. Order'!V456=\"\",\"\",'1. Order'!V456)","v":""},{"$f":"IF('1. Order'!W456=\"\",\"\",'1. Order'!W456)","v":""},{"$f":"IF('1. Order'!X456=\"\",\"\",'1. Order'!X456)","v":"EUR"},{"$f":"IF('1. Order'!Y456=\"\",\"\",'1. Order'!Y456)","v":""},{"$f":"IF('1. Order'!Z456=\"\",\"\",'1. Order'!Z456)","v":""},{"$f":"IF('1. Order'!AA456=\"\",\"\",'1. Order'!AA456)","v":""},null,{"$f":"IF('1. Order'!AS456=\"\",\"\",'1. Order'!AS456)","v":""},{"$f":"IF('1. Order'!AT456=\"\",\"\",'1. Order'!AT456)","v":""},null,null,null,null,null,null,null,{"$f":"IF('1. Order'!AX456=\"\",\"\",'1. Order'!AX456)","v":""},{"$f":"IF('1. Order'!AY456=\"\",\"\",'1. Order'!AY456)","v":""},{"$f":"IF('1. Order'!AZ456=\"\",\"\",'1. Order'!AZ456)","v":""},{"$f":"IF('1. Order'!BA456=\"\",\"\",'1. Order'!BA456)","v":""},{"$f":"IF('1. Order'!BC456=\"\",\"\",'1. Order'!BC456)","v":""},{"$f":"IF('1. Order'!BD456=\"\",\"\",'1. Order'!BD456)","v":6},{"$f":"IF('1. Order'!BE456=\"\",\"\",'1. Order'!BE456)","v":"None"},{"$f":"IF('1. Order'!BF456=\"\",\"\",'1. Order'!BF456)","v":"Parcel"},{"$f":"IF('1. Order'!BG456=\"\",\"\",'1. Order'!BG456)","v":"ZWO"}]
[{"$f":"IF('1. Order'!F457=\"\",\"\",'1. Order'!F457)","v":""},{"$f":"IF('1. Order'!G457=\"\",\"\",'1. Order'!G457)","v":""},{"$f":"IF('1. Order'!H457=\"\",\"\",'1. Order'!H457)","v":""},{"$f":"IF('1. Order'!I457=\"\",\"\",'1. Order'!I457)","v":""},{"$f":"IF('1. Order'!J457=\"\",\"\",'1. Order'!J457)","v":""},{"$f":"IF('1. Order'!K457=\"\",\"\",'1. Order'!K457)","v":""},{"$f":"IF('1. Order'!L457=\"\",\"\",'1. Order'!L457)","v":""},{"$f":"IF('1. Order'!M457=\"\",\"\",'1. Order'!M457)","v":""},{"$f":"IF('1. Order'!N457=\"\",\"\",'1. Order'!N457)","v":""},{"$f":"IF('1. Order'!O457=\"\",\"\",'1. Order'!O457)","v":{"$error":"#N/A"}},{"$f":"IF('1. Order'!P457=\"\",\"\",'1. Order'!P457)","v":{"$error":"#N/A"}},{"$f":"IF('1. Order'!Q457=\"\",\"\",'1. Order'!Q457)","v":""},{"$f":"IF('1. Order'!R457=\"\",\"\",'1. Order'!R457)","v":""},{"$f":"IF('1. Order'!S457=\"\",\"\",'1. Order'!S457)","v":""},{"$f":"IF('1. Order'!V457=\"\",\"\",'1. Order'!V457)","v":""},{"$f":"IF('1. Order'!W457=\"\",\"\",'1. Order'!W457)","v":""},{"$f":"IF('1. Order'!X457=\"\",\"\",'1. Order'!X457)","v":"EUR"},{"$f":"IF('1. Order'!Y457=\"\",\"\",'1. Order'!Y457)","v":""},{"$f":"IF('1. Order'!Z457=\"\",\"\",'1. Order'!Z457)","v":""},{"$f":"IF('1. Order'!AA457=\"\",\"\",'1. Order'!AA457)","v":""},null,{"$f":"IF('1. Order'!AS457=\"\",\"\",'1. Order'!AS457)","v":""},{"$f":"IF('1. Order'!AT457=\"\",\"\",'1. Order'!AT457)","v":""},null,null,null,null,null,null,null,{"$f":"IF('1. Order'!AX457=\"\",\"\",'1. Order'!AX457)","v":""},{"$f":"IF('1. Order'!AY457=\"\",\"\",'1. Order'!AY457)","v":""},{"$f":"IF('1. Order'!AZ457=\"\",\"\",'1. Order'!AZ457)","v":""},{"$f":"IF('1. Order'!BA457=\"\",\"\",'1. Order'!BA457)","v":""},{"$f":"IF('1. Order'!BC457=\"\",\"\",'1. Order'!BC457)","v":""},{"$f":"IF('1. Order'!BD457=\"\",\"\",'1. Order'!BD457)","v":6},{"$f":"IF('1. Order'!BE457=\"\",\"\",'1. Order'!BE457)","v":"None"},{"$f":"IF('1. Order'!BF457=\"\",\"\",'1. Order'!BF457)","v":"Parcel"},{"$f":"IF('1. Order'!BG457=\"\",\"\",'1. Order'!BG457)","v":"ZWO"}]
[{"$f":"IF('1. Order'!F458=\"\",\"\",'1. Order'!F458)","v":""},{"$f":"IF('1. Order'!G458=\"\",\"\",'1. Order'!G458)","v":""},{"$f":"IF('1. Order'!H458=\"\",\"\",'1. Order'!H458)","v":""},{"$f":"IF('1. Order'!I458=\"\",\"\",'1. Order'!I458)","v":""},{"$f":"IF('1. Order'!J458=\"\",\"\",'1. Order'!J458)","v":""},{"$f":"IF('1. Order'!K458=\"\",\"\",'1. Order'!K458)","v":""},{"$f":"IF('1. Order'!L458=\"\",\"\",'1. Order'!L458)","v":""},{"$f":"IF('1. Order'!M458=\"\",\"\",'1. Order'!M458)","v":""},{"$f":"IF('1. Order'!N458=\"\",\"\",'1. Order'!N458)","v":""},{"$f":"IF('1. Order'!O458=\"\",\"\",'1. Order'!O458)","v":{"$error":"#N/A"}},{"$f":"IF('1. Order'!P458=\"\",\"\",'1. Order'!P458)","v":{"$error":"#N/A"}},{"$f":"IF('1. Order'!Q458=\"\",\"\",'1. Order'!Q458)","v":""},{"$f":"IF('1. Order'!R458=\"\",\"\",'1. Order'!R458)","v":""},{"$f":"IF('1. Order'!S458=\"\",\"\",'1. Order'!S458)","v":""},{"$f":"IF('1. Order'!V458=\"\",\"\",'1. Order'!V458)","v":""},{"$f":"IF('1. Order'!W458=\"\",\"\",'1. Order'!W458)","v":""},{"$f":"IF('1. Order'!X458=\"\",\"\",'1. Order'!X458)","v":"EUR"},{"$f":"IF('1. Order'!Y458=\"\",\"\",'1. Order'!Y458)","v":""},{"$f":"IF('1. Order'!Z458=\"\",\"\",'1. Order'!Z458)","v":""},{"$f":"IF('1. Order'!AA458=\"\",\"\",'1. Order'!AA458)","v":""},null,{"$f":"IF('1. Order'!AS458=\"\",\"\",'1. Order'!AS458)","v":""},{"$f":"IF('1. Order'!AT458=\"\",\"\",'1. Order'!AT458)","v":""},null,null,null,null,null,null,null,{"$f":"IF('1. Order'!AX458=\"\",\"\",'1. Order'!AX458)","v":""},{"$f":"IF('1. Order'!AY458=\"\",\"\",'1. Order'!AY458)","v":""},{"$f":"IF('1. Order'!AZ458=\"\",\"\",'1. Order'!AZ458)","v":""},{"$f":"IF('1. Order'!BA458=\"\",\"\",'1. Order'!BA458)","v":""},{"$f":"IF('1. Order'!BC458=\"\",\"\",'1. Order'!BC458)","v":""},{"$f":"IF('1. Order'!BD458=\"\",\"\",'1. Order'!BD458)","v":6},{"$f":"IF('1. Order'!BE458=\"\",\"\",'1. Order'!BE458)","v":"None"},{"$f":"IF('1. Order'!BF458=\"\",\"\",'1. Order'!BF458)","v":"Parcel"},{"$f":"IF('1. Order'!BG458=\"\",\"\",'1. Order'!BG458)","v":"ZWO"}]
[{"$f":"IF('1. Order'!F459=\"\",\"\",'1. Order'!F459)","v":""},{"$f":"IF('1. Order'!G459=\"\",\"\",'1. Order'!G459)","v":""},{"$f":"IF('1. Order'!H459=\"\",\"\",'1. Order'!H459)","v":""},{"$f":"IF('1. Order'!I459=\"\",\"\",'1. Order'!I459)","v":""},{"$f":"IF('1. Order'!J459=\"\",\"\",'1. Order'!J459)","v":""},{"$f":"IF('1. Order'!K459=\"\",\"\",'1. Order'!K459)","v":""},{"$f":"IF('1. Order'!L459=\"\",\"\",'1. Order'!L459)","v":""},{"$f":"IF('1. Order'!M459=\"\",\"\",'1. Order'!M459)","v":""},{"$f":"IF('1. Order'!N459=\"\",\"\",'1. Order'!N459)","v":""},{"$f":"IF('1. Order'!O459=\"\",\"\",'1. Order'!O459)","v":{"$error":"#N/A"}},{"$f":"IF('1. Order'!P459=\"\",\"\",'1. Order'!P459)","v":{"$error":"#N/A"}},{"$f":"IF('1. Order'!Q459=\"\",\"\",'1. Order'!Q459)","v":""},{"$f":"IF('1. Order'!R459=\"\",\"\",'1. Order'!R459)","v":""},{"$f":"IF('1. Order'!S459=\"\",\"\",'1. Order'!S459)","v":""},{"$f":"IF('1. Order'!V459=\"\",\"\",'1. Order'!V459)","v":""},{"$f":"IF('1. Order'!W459=\"\",\"\",'1. Order'!W459)","v":""},{"$f":"IF('1. Order'!X459=\"\",\"\",'1. Order'!X459)","v":"EUR"},{"$f":"IF('1. Order'!Y459=\"\",\"\",'1. Order'!Y459)","v":""},{"$f":"IF('1. Order'!Z459=\"\",\"\",'1. Order'!Z459)","v":""},{"$f":"IF('1. Order'!AA459=\"\",\"\",'1. Order'!AA459)","v":""},null,{"$f":"IF('1. Order'!AS459=\"\",\"\",'1. Order'!AS459)","v":""},{"$f":"IF('1. Order'!AT459=\"\",\"\",'1. Order'!AT459)","v":""},null,null,null,null,null,null,null,{"$f":"IF('1. Order'!AX459=\"\",\"\",'1. Order'!AX459)","v":""},{"$f":"IF('1. Order'!AY459=\"\",\"\",'1. Order'!AY459)","v":""},{"$f":"IF('1. Order'!AZ459=\"\",\"\",'1. Order'!AZ459)","v":""},{"$f":"IF('1. Order'!BA459=\"\",\"\",'1. Order'!BA459)","v":""},{"$f":"IF('1. Order'!BC459=\"\",\"\",'1. Order'!BC459)","v":""},{"$f":"IF('1. Order'!BD459=\"\",\"\",'1. Order'!BD459)","v":6},{"$f":"IF('1. Order'!BE459=\"\",\"\",'1. Order'!BE459)","v":"None"},{"$f":"IF('1. Order'!BF459=\"\",\"\",'1. Order'!BF459)","v":"Parcel"},{"$f":"IF('1. Order'!BG459=\"\",\"\",'1. Order'!BG459)","v":"ZWO"}]
[{"$f":"IF('1. Order'!F460=\"\",\"\",'1. Order'!F460)","v":""},{"$f":"IF('1. Order'!G460=\"\",\"\",'1. Order'!G460)","v":""},{"$f":"IF('1. Order'!H460=\"\",\"\",'1. Order'!H460)","v":""},{"$f":"IF('1. Order'!I460=\"\",\"\",'1. Order'!I460)","v":""},{"$f":"IF('1. Order'!J460=\"\",\"\",'1. Order'!J460)","v":""},{"$f":"IF('1. Order'!K460=\"\",\"\",'1. Order'!K460)","v":""},{"$f":"IF('1. Order'!L460=\"\",\"\",'1. Order'!L460)","v":""},{"$f":"IF('1. Order'!M460=\"\",\"\",'1. Order'!M460)","v":""},{"$f":"IF('1. Order'!N460=\"\",\"\",'1. Order'!N460)","v":""},{"$f":"IF('1. Order'!O460=\"\",\"\",'1. Order'!O460)","v":{"$error":"#N/A"}},{"$f":"IF('1. Order'!P460=\"\",\"\",'1. Order'!P460)","v":{"$error":"#N/A"}},{"$f":"IF('1. Order'!Q460=\"\",\"\",'1. Order'!Q460)","v":""},{"$f":"IF('1. Order'!R460=\"\",\"\",'1. Order'!R460)","v":""},{"$f":"IF('1. Order'!S460=\"\",\"\",'1. Order'!S460)","v":""},{"$f":"IF('1. Order'!V460=\"\",\"\",'1. Order'!V460)","v":""},{"$f":"IF('1. Order'!W460=\"\",\"\",'1. Order'!W460)","v":""},{"$f":"IF('1. Order'!X460=\"\",\"\",'1. Order'!X460)","v":"EUR"},{"$f":"IF('1. Order'!Y460=\"\",\"\",'1. Order'!Y460)","v":""},{"$f":"IF('1. Order'!Z460=\"\",\"\",'1. Order'!Z460)","v":""},{"$f":"IF('1. Order'!AA460=\"\",\"\",'1. Order'!AA460)","v":""},null,{"$f":"IF('1. Order'!AS460=\"\",\"\",'1. Order'!AS460)","v":""},{"$f":"IF('1. Order'!AT460=\"\",\"\",'1. Order'!AT460)","v":""},null,null,null,null,null,null,null,{"$f":"IF('1. Order'!AX460=\"\",\"\",'1. Order'!AX460)","v":""},{"$f":"IF('1. Order'!AY460=\"\",\"\",'1. Order'!AY460)","v":""},{"$f":"IF('1. Order'!AZ460=\"\",\"\",'1. Order'!AZ460)","v":""},{"$f":"IF('1. Order'!BA460=\"\",\"\",'1. Order'!BA460)","v":""},{"$f":"IF('1. Order'!BC460=\"\",\"\",'1. Order'!BC460)","v":""},{"$f":"IF('1. Order'!BD460=\"\",\"\",'1. Order'!BD460)","v":6},{"$f":"IF('1. Order'!BE460=\"\",\"\",'1. Order'!BE460)","v":"None"},{"$f":"IF('1. Order'!BF460=\"\",\"\",'1. Order'!BF460)","v":"Parcel"},{"$f":"IF('1. Order'!BG460=\"\",\"\",'1. Order'!BG460)","v":"ZWO"}]
[{"$f":"IF('1. Order'!F461=\"\",\"\",'1. Order'!F461)","v":""},{"$f":"IF('1. Order'!G461=\"\",\"\",'1. Order'!G461)","v":""},{"$f":"IF('1. Order'!H461=\"\",\"\",'1. Order'!H461)","v":""},{"$f":"IF('1. Order'!I461=\"\",\"\",'1. Order'!I461)","v":""},{"$f":"IF('1. Order'!J461=\"\",\"\",'1. Order'!J461)","v":""},{"$f":"IF('1. Order'!K461=\"\",\"\",'1. Order'!K461)","v":""},{"$f":"IF('1. Order'!L461=\"\",\"\",'1. Order'!L461)","v":""},{"$f":"IF('1. Order'!M461=\"\",\"\",'1. Order'!M461)","v":""},{"$f":"IF('1. Order'!N461=\"\",\"\",'1. Order'!N461)","v":""},{"$f":"IF('1. Order'!O461=\"\",\"\",'1. Order'!O461)","v":{"$error":"#N/A"}},{"$f":"IF('1. Order'!P461=\"\",\"\",'1. Order'!P461)","v":{"$error":"#N/A"}},{"$f":"IF('1. Order'!Q461=\"\",\"\",'1. Order'!Q461)","v":""},{"$f":"IF('1. Order'!R461=\"\",\"\",'1. Order'!R461)","v":""},{"$f":"IF('1. Order'!S461=\"\",\"\",'1. Order'!S461)","v":""},{"$f":"IF('1. Order'!V461=\"\",\"\",'1. Order'!V461)","v":""},{"$f":"IF('1. Order'!W461=\"\",\"\",'1. Order'!W461)","v":""},{"$f":"IF('1. Order'!X461=\"\",\"\",'1. Order'!X461)","v":"EUR"},{"$f":"IF('1. Order'!Y461=\"\",\"\",'1. Order'!Y461)","v":""},{"$f":"IF('1. Order'!Z461=\"\",\"\",'1. Order'!Z461)","v":""},{"$f":"IF('1. Order'!AA461=\"\",\"\",'1. Order'!AA461)","v":""},null,{"$f":"IF('1. Order'!AS461=\"\",\"\",'1. Order'!AS461)","v":""},{"$f":"IF('1. Order'!AT461=\"\",\"\",'1. Order'!AT461)","v":""},null,null,null,null,null,null,null,{"$f":"IF('1. Order'!AX461=\"\",\"\",'1. Order'!AX461)","v":""},{"$f":"IF('1. Order'!AY461=\"\",\"\",'1. Order'!AY461)","v":""},{"$f":"IF('1. Order'!AZ461=\"\",\"\",'1. Order'!AZ461)","v":""},{"$f":"IF('1. Order'!BA461=\"\",\"\",'1. Order'!BA461)","v":""},{"$f":"IF('1. Order'!BC461=\"\",\"\",'1. Order'!BC461)","v":""},{"$f":"IF('1. Order'!BD461=\"\",\"\",'1. Order'!BD461)","v":6},{"$f":"IF('1. Order'!BE461=\"\",\"\",'1. Order'!BE461)","v":"None"},{"$f":"IF('1. Order'!BF461=\"\",\"\",'1. Order'!BF461)","v":"Parcel"},{"$f":"IF('1. Order'!BG461=\"\",\"\",'1. Order'!BG461)","v":"ZWO"}]
[{"$f":"IF('1. Order'!F462=\"\",\"\",'1. Order'!F462)","v":""},{"$f":"IF('1. Order'!G462=\"\",\"\",'1. Order'!G462)","v":""},{"$f":"IF('1. Order'!H462=\"\",\"\",'1. Order'!H462)","v":""},{"$f":"IF('1. Order'!I462=\"\",\"\",'1. Order'!I462)","v":""},{"$f":"IF('1. Order'!J462=\"\",\"\",'1. Order'!J462)","v":""},{"$f":"IF('1. Order'!K462=\"\",\"\",'1. Order'!K462)","v":""},{"$f":"IF('1. Order'!L462=\"\",\"\",'1. Order'!L462)","v":""},{"$f":"IF('1. Order'!M462=\"\",\"\",'1. Order'!M462)","v":""},{"$f":"IF('1. Order'!N462=\"\",\"\",'1. Order'!N462)","v":""},{"$f":"IF('1. Order'!O462=\"\",\"\",'1. Order'!O462)","v":{"$error":"#N/A"}},{"$f":"IF('1. Order'!P462=\"\",\"\",'1. Order'!P462)","v":{"$error":"#N/A"}},{"$f":"IF('1. Order'!Q462=\"\",\"\",'1. Order'!Q462)","v":""},{"$f":"IF('1. Order'!R462=\"\",\"\",'1. Order'!R462)","v":""},{"$f":"IF('1. Order'!S462=\"\",\"\",'1. Order'!S462)","v":""},{"$f":"IF('1. Order'!V462=\"\",\"\",'1. Order'!V462)","v":""},{"$f":"IF('1. Order'!W462=\"\",\"\",'1. Order'!W462)","v":""},{"$f":"IF('1. Order'!X462=\"\",\"\",'1. Order'!X462)","v":"EUR"},{"$f":"IF('1. Order'!Y462=\"\",\"\",'1. Order'!Y462)","v":""},{"$f":"IF('1. Order'!Z462=\"\",\"\",'1. Order'!Z462)","v":""},{"$f":"IF('1. Order'!AA462=\"\",\"\",'1. Order'!AA462)","v":""},null,{"$f":"IF('1. Order'!AS462=\"\",\"\",'1. Order'!AS462)","v":""},{"$f":"IF('1. Order'!AT462=\"\",\"\",'1. Order'!AT462)","v":""},null,null,null,null,null,null,null,{"$f":"IF('1. Order'!AX462=\"\",\"\",'1. Order'!AX462)","v":""},{"$f":"IF('1. Order'!AY462=\"\",\"\",'1. Order'!AY462)","v":""},{"$f":"IF('1. Order'!AZ462=\"\",\"\",'1. Order'!AZ462)","v":""},{"$f":"IF('1. Order'!BA462=\"\",\"\",'1. Order'!BA462)","v":""},{"$f":"IF('1. Order'!BC462=\"\",\"\",'1. Order'!BC462)","v":""},{"$f":"IF('1. Order'!BD462=\"\",\"\",'1. Order'!BD462)","v":6},{"$f":"IF('1. Order'!BE462=\"\",\"\",'1. Order'!BE462)","v":"None"},{"$f":"IF('1. Order'!BF462=\"\",\"\",'1. Order'!BF462)","v":"Parcel"},{"$f":"IF('1. Order'!BG462=\"\",\"\",'1. Order'!BG462)","v":"ZWO"}]
[{"$f":"IF('1. Order'!F463=\"\",\"\",'1. Order'!F463)","v":""},{"$f":"IF('1. Order'!G463=\"\",\"\",'1. Order'!G463)","v":""},{"$f":"IF('1. Order'!H463=\"\",\"\",'1. Order'!H463)","v":""},{"$f":"IF('1. Order'!I463=\"\",\"\",'1. Order'!I463)","v":""},{"$f":"IF('1. Order'!J463=\"\",\"\",'1. Order'!J463)","v":""},{"$f":"IF('1. Order'!K463=\"\",\"\",'1. Order'!K463)","v":""},{"$f":"IF('1. Order'!L463=\"\",\"\",'1. Order'!L463)","v":""},{"$f":"IF('1. Order'!M463=\"\",\"\",'1. Order'!M463)","v":""},{"$f":"IF('1. Order'!N463=\"\",\"\",'1. Order'!N463)","v":""},{"$f":"IF('1. Order'!O463=\"\",\"\",'1. Order'!O463)","v":{"$error":"#N/A"}},{"$f":"IF('1. Order'!P463=\"\",\"\",'1. Order'!P463)","v":{"$error":"#N/A"}},{"$f":"IF('1. Order'!Q463=\"\",\"\",'1. Order'!Q463)","v":""},{"$f":"IF('1. Order'!R463=\"\",\"\",'1. Order'!R463)","v":""},{"$f":"IF('1. Order'!S463=\"\",\"\",'1. Order'!S463)","v":""},{"$f":"IF('1. Order'!V463=\"\",\"\",'1. Order'!V463)","v":""},{"$f":"IF('1. Order'!W463=\"\",\"\",'1. Order'!W463)","v":""},{"$f":"IF('1. Order'!X463=\"\",\"\",'1. Order'!X463)","v":"EUR"},{"$f":"IF('1. Order'!Y463=\"\",\"\",'1. Order'!Y463)","v":""},{"$f":"IF('1. Order'!Z463=\"\",\"\",'1. Order'!Z463)","v":""},{"$f":"IF('1. Order'!AA463=\"\",\"\",'1. Order'!AA463)","v":""},null,{"$f":"IF('1. Order'!AS463=\"\",\"\",'1. Order'!AS463)","v":""},{"$f":"IF('1. Order'!AT463=\"\",\"\",'1. Order'!AT463)","v":""},null,null,null,null,null,null,null,{"$f":"IF('1. Order'!AX463=\"\",\"\",'1. Order'!AX463)","v":""},{"$f":"IF('1. Order'!AY463=\"\",\"\",'1. Order'!AY463)","v":""},{"$f":"IF('1. Order'!AZ463=\"\",\"\",'1. Order'!AZ463)","v":""},{"$f":"IF('1. Order'!BA463=\"\",\"\",'1. Order'!BA463)","v":""},{"$f":"IF('1. Order'!BC463=\"\",\"\",'1. Order'!BC463)","v":""},{"$f":"IF('1. Order'!BD463=\"\",\"\",'1. Order'!BD463)","v":6},{"$f":"IF('1. Order'!BE463=\"\",\"\",'1. Order'!BE463)","v":"None"},{"$f":"IF('1. Order'!BF463=\"\",\"\",'1. Order'!BF463)","v":"Parcel"},{"$f":"IF('1. Order'!BG463=\"\",\"\",'1. Order'!BG463)","v":"ZWO"}]
[{"$f":"IF('1. Order'!F464=\"\",\"\",'1. Order'!F464)","v":""},{"$f":"IF('1. Order'!G464=\"\",\"\",'1. Order'!G464)","v":""},{"$f":"IF('1. Order'!H464=\"\",\"\",'1. Order'!H464)","v":""},{"$f":"IF('1. Order'!I464=\"\",\"\",'1. Order'!I464)","v":""},{"$f":"IF('1. Order'!J464=\"\",\"\",'1. Order'!J464)","v":""},{"$f":"IF('1. Order'!K464=\"\",\"\",'1. Order'!K464)","v":""},{"$f":"IF('1. Order'!L464=\"\",\"\",'1. Order'!L464)","v":""},{"$f":"IF('1. Order'!M464=\"\",\"\",'1. Order'!M464)","v":""},{"$f":"IF('1. Order'!N464=\"\",\"\",'1. Order'!N464)","v":""},{"$f":"IF('1. Order'!O464=\"\",\"\",'1. Order'!O464)","v":{"$error":"#N/A"}},{"$f":"IF('1. Order'!P464=\"\",\"\",'1. Order'!P464)","v":{"$error":"#N/A"}},{"$f":"IF('1. Order'!Q464=\"\",\"\",'1. Order'!Q464)","v":""},{"$f":"IF('1. Order'!R464=\"\",\"\",'1. Order'!R464)","v":""},{"$f":"IF('1. Order'!S464=\"\",\"\",'1. Order'!S464)","v":""},{"$f":"IF('1. Order'!V464=\"\",\"\",'1. Order'!V464)","v":""},{"$f":"IF('1. Order'!W464=\"\",\"\",'1. Order'!W464)","v":""},{"$f":"IF('1. Order'!X464=\"\",\"\",'1. Order'!X464)","v":"EUR"},{"$f":"IF('1. Order'!Y464=\"\",\"\",'1. Order'!Y464)","v":""},{"$f":"IF('1. Order'!Z464=\"\",\"\",'1. Order'!Z464)","v":""},{"$f":"IF('1. Order'!AA464=\"\",\"\",'1. Order'!AA464)","v":""},null,{"$f":"IF('1. Order'!AS464=\"\",\"\",'1. Order'!AS464)","v":""},{"$f":"IF('1. Order'!AT464=\"\",\"\",'1. Order'!AT464)","v":""},null,null,null,null,null,null,null,{"$f":"IF('1. Order'!AX464=\"\",\"\",'1. Order'!AX464)","v":""},{"$f":"IF('1. Order'!AY464=\"\",\"\",'1. Order'!AY464)","v":""},{"$f":"IF('1. Order'!AZ464=\"\",\"\",'1. Order'!AZ464)","v":""},{"$f":"IF('1. Order'!BA464=\"\",\"\",'1. Order'!BA464)","v":""},{"$f":"IF('1. Order'!BC464=\"\",\"\",'1. Order'!BC464)","v":""},{"$f":"IF('1. Order'!BD464=\"\",\"\",'1. Order'!BD464)","v":6},{"$f":"IF('1. Order'!BE464=\"\",\"\",'1. Order'!BE464)","v":"None"},{"$f":"IF('1. Order'!BF464=\"\",\"\",'1. Order'!BF464)","v":"Parcel"},{"$f":"IF('1. Order'!BG464=\"\",\"\",'1. Order'!BG464)","v":"ZWO"}]
[{"$f":"IF('1. Order'!F465=\"\",\"\",'1. Order'!F465)","v":""},{"$f":"IF('1. Order'!G465=\"\",\"\",'1. Order'!G465)","v":""},{"$f":"IF('1. Order'!H465=\"\",\"\",'1. Order'!H465)","v":""},{"$f":"IF('1. Order'!I465=\"\",\"\",'1. Order'!I465)","v":""},{"$f":"IF('1. Order'!J465=\"\",\"\",'1. Order'!J465)","v":""},{"$f":"IF('1. Order'!K465=\"\",\"\",'1. Order'!K465)","v":""},{"$f":"IF('1. Order'!L465=\"\",\"\",'1. Order'!L465)","v":""},{"$f":"IF('1. Order'!M465=\"\",\"\",'1. Order'!M465)","v":""},{"$f":"IF('1. Order'!N465=\"\",\"\",'1. Order'!N465)","v":""},{"$f":"IF('1. Order'!O465=\"\",\"\",'1. Order'!O465)","v":{"$error":"#N/A"}},{"$f":"IF('1. Order'!P465=\"\",\"\",'1. Order'!P465)","v":{"$error":"#N/A"}},{"$f":"IF('1. Order'!Q465=\"\",\"\",'1. Order'!Q465)","v":""},{"$f":"IF('1. Order'!R465=\"\",\"\",'1. Order'!R465)","v":""},{"$f":"IF('1. Order'!S465=\"\",\"\",'1. Order'!S465)","v":""},{"$f":"IF('1. Order'!V465=\"\",\"\",'1. Order'!V465)","v":""},{"$f":"IF('1. Order'!W465=\"\",\"\",'1. Order'!W465)","v":""},{"$f":"IF('1. Order'!X465=\"\",\"\",'1. Order'!X465)","v":"EUR"},{"$f":"IF('1. Order'!Y465=\"\",\"\",'1. Order'!Y465)","v":""},{"$f":"IF('1. Order'!Z465=\"\",\"\",'1. Order'!Z465)","v":""},{"$f":"IF('1. Order'!AA465=\"\",\"\",'1. Order'!AA465)","v":""},null,{"$f":"IF('1. Order'!AS465=\"\",\"\",'1. Order'!AS465)","v":""},{"$f":"IF('1. Order'!AT465=\"\",\"\",'1. Order'!AT465)","v":""},null,null,null,null,null,null,null,{"$f":"IF('1. Order'!AX465=\"\",\"\",'1. Order'!AX465)","v":""},{"$f":"IF('1. Order'!AY465=\"\",\"\",'1. Order'!AY465)","v":""},{"$f":"IF('1. Order'!AZ465=\"\",\"\",'1. Order'!AZ465)","v":""},{"$f":"IF('1. Order'!BA465=\"\",\"\",'1. Order'!BA465)","v":""},{"$f":"IF('1. Order'!BC465=\"\",\"\",'1. Order'!BC465)","v":""},{"$f":"IF('1. Order'!BD465=\"\",\"\",'1. Order'!BD465)","v":6},{"$f":"IF('1. Order'!BE465=\"\",\"\",'1. Order'!BE465)","v":"None"},{"$f":"IF('1. Order'!BF465=\"\",\"\",'1. Order'!BF465)","v":"Parcel"},{"$f":"IF('1. Order'!BG465=\"\",\"\",'1. Order'!BG465)","v":"ZWO"}]
[{"$f":"IF('1. Order'!F466=\"\",\"\",'1. Order'!F466)","v":""},{"$f":"IF('1. Order'!G466=\"\",\"\",'1. Order'!G466)","v":""},{"$f":"IF('1. Order'!H466=\"\",\"\",'1. Order'!H466)","v":""},{"$f":"IF('1. Order'!I466=\"\",\"\",'1. Order'!I466)","v":""},{"$f":"IF('1. Order'!J466=\"\",\"\",'1. Order'!J466)","v":""},{"$f":"IF('1. Order'!K466=\"\",\"\",'1. Order'!K466)","v":""},{"$f":"IF('1. Order'!L466=\"\",\"\",'1. Order'!L466)","v":""},{"$f":"IF('1. Order'!M466=\"\",\"\",'1. Order'!M466)","v":""},{"$f":"IF('1. Order'!N466=\"\",\"\",'1. Order'!N466)","v":""},{"$f":"IF('1. Order'!O466=\"\",\"\",'1. Order'!O466)","v":{"$error":"#N/A"}},{"$f":"IF('1. Order'!P466=\"\",\"\",'1. Order'!P466)","v":{"$error":"#N/A"}},{"$f":"IF('1. Order'!Q466=\"\",\"\",'1. Order'!Q466)","v":""},{"$f":"IF('1. Order'!R466=\"\",\"\",'1. Order'!R466)","v":""},{"$f":"IF('1. Order'!S466=\"\",\"\",'1. Order'!S466)","v":""},{"$f":"IF('1. Order'!V466=\"\",\"\",'1. Order'!V466)","v":""},{"$f":"IF('1. Order'!W466=\"\",\"\",'1. Order'!W466)","v":""},{"$f":"IF('1. Order'!X466=\"\",\"\",'1. Order'!X466)","v":"EUR"},{"$f":"IF('1. Order'!Y466=\"\",\"\",'1. Order'!Y466)","v":""},{"$f":"IF('1. Order'!Z466=\"\",\"\",'1. Order'!Z466)","v":""},{"$f":"IF('1. Order'!AA466=\"\",\"\",'1. Order'!AA466)","v":""},null,{"$f":"IF('1. Order'!AS466=\"\",\"\",'1. Order'!AS466)","v":""},{"$f":"IF('1. Order'!AT466=\"\",\"\",'1. Order'!AT466)","v":""},null,null,null,null,null,null,null,{"$f":"IF('1. Order'!AX466=\"\",\"\",'1. Order'!AX466)","v":""},{"$f":"IF('1. Order'!AY466=\"\",\"\",'1. Order'!AY466)","v":""},{"$f":"IF('1. Order'!AZ466=\"\",\"\",'1. Order'!AZ466)","v":""},{"$f":"IF('1. Order'!BA466=\"\",\"\",'1. Order'!BA466)","v":""},{"$f":"IF('1. Order'!BC466=\"\",\"\",'1. Order'!BC466)","v":""},{"$f":"IF('1. Order'!BD466=\"\",\"\",'1. Order'!BD466)","v":6},{"$f":"IF('1. Order'!BE466=\"\",\"\",'1. Order'!BE466)","v":"None"},{"$f":"IF('1. Order'!BF466=\"\",\"\",'1. Order'!BF466)","v":"Parcel"},{"$f":"IF('1. Order'!BG466=\"\",\"\",'1. Order'!BG466)","v":"ZWO"}]
[{"$f":"IF('1. Order'!F467=\"\",\"\",'1. Order'!F467)","v":""},{"$f":"IF('1. Order'!G467=\"\",\"\",'1. Order'!G467)","v":""},{"$f":"IF('1. Order'!H467=\"\",\"\",'1. Order'!H467)","v":""},{"$f":"IF('1. Order'!I467=\"\",\"\",'1. Order'!I467)","v":""},{"$f":"IF('1. Order'!J467=\"\",\"\",'1. Order'!J467)","v":""},{"$f":"IF('1. Order'!K467=\"\",\"\",'1. Order'!K467)","v":""},{"$f":"IF('1. Order'!L467=\"\",\"\",'1. Order'!L467)","v":""},{"$f":"IF('1. Order'!M467=\"\",\"\",'1. Order'!M467)","v":""},{"$f":"IF('1. Order'!N467=\"\",\"\",'1. Order'!N467)","v":""},{"$f":"IF('1. Order'!O467=\"\",\"\",'1. Order'!O467)","v":{"$error":"#N/A"}},{"$f":"IF('1. Order'!P467=\"\",\"\",'1. Order'!P467)","v":{"$error":"#N/A"}},{"$f":"IF('1. Order'!Q467=\"\",\"\",'1. Order'!Q467)","v":""},{"$f":"IF('1. Order'!R467=\"\",\"\",'1. Order'!R467)","v":""},{"$f":"IF('1. Order'!S467=\"\",\"\",'1. Order'!S467)","v":""},{"$f":"IF('1. Order'!V467=\"\",\"\",'1. Order'!V467)","v":""},{"$f":"IF('1. Order'!W467=\"\",\"\",'1. Order'!W467)","v":""},{"$f":"IF('1. Order'!X467=\"\",\"\",'1. Order'!X467)","v":"EUR"},{"$f":"IF('1. Order'!Y467=\"\",\"\",'1. Order'!Y467)","v":""},{"$f":"IF('1. Order'!Z467=\"\",\"\",'1. Order'!Z467)","v":""},{"$f":"IF('1. Order'!AA467=\"\",\"\",'1. Order'!AA467)","v":""},null,{"$f":"IF('1. Order'!AS467=\"\",\"\",'1. Order'!AS467)","v":""},{"$f":"IF('1. Order'!AT467=\"\",\"\",'1. Order'!AT467)","v":""},null,null,null,null,null,null,null,{"$f":"IF('1. Order'!AX467=\"\",\"\",'1. Order'!AX467)","v":""},{"$f":"IF('1. Order'!AY467=\"\",\"\",'1. Order'!AY467)","v":""},{"$f":"IF('1. Order'!AZ467=\"\",\"\",'1. Order'!AZ467)","v":""},{"$f":"IF('1. Order'!BA467=\"\",\"\",'1. Order'!BA467)","v":""},{"$f":"IF('1. Order'!BC467=\"\",\"\",'1. Order'!BC467)","v":""},{"$f":"IF('1. Order'!BD467=\"\",\"\",'1. Order'!BD467)","v":6},{"$f":"IF('1. Order'!BE467=\"\",\"\",'1. Order'!BE467)","v":"None"},{"$f":"IF('1. Order'!BF467=\"\",\"\",'1. Order'!BF467)","v":"Parcel"},{"$f":"IF('1. Order'!BG467=\"\",\"\",'1. Order'!BG467)","v":"ZWO"}]
[{"$f":"IF('1. Order'!F468=\"\",\"\",'1. Order'!F468)","v":""},{"$f":"IF('1. Order'!G468=\"\",\"\",'1. Order'!G468)","v":""},{"$f":"IF('1. Order'!H468=\"\",\"\",'1. Order'!H468)","v":""},{"$f":"IF('1. Order'!I468=\"\",\"\",'1. Order'!I468)","v":""},{"$f":"IF('1. Order'!J468=\"\",\"\",'1. Order'!J468)","v":""},{"$f":"IF('1. Order'!K468=\"\",\"\",'1. Order'!K468)","v":""},{"$f":"IF('1. Order'!L468=\"\",\"\",'1. Order'!L468)","v":""},{"$f":"IF('1. Order'!M468=\"\",\"\",'1. Order'!M468)","v":""},{"$f":"IF('1. Order'!N468=\"\",\"\",'1. Order'!N468)","v":""},{"$f":"IF('1. Order'!O468=\"\",\"\",'1. Order'!O468)","v":{"$error":"#N/A"}},{"$f":"IF('1. Order'!P468=\"\",\"\",'1. Order'!P468)","v":{"$error":"#N/A"}},{"$f":"IF('1. Order'!Q468=\"\",\"\",'1. Order'!Q468)","v":""},{"$f":"IF('1. Order'!R468=\"\",\"\",'1. Order'!R468)","v":""},{"$f":"IF('1. Order'!S468=\"\",\"\",'1. Order'!S468)","v":""},{"$f":"IF('1. Order'!V468=\"\",\"\",'1. Order'!V468)","v":""},{"$f":"IF('1. Order'!W468=\"\",\"\",'1. Order'!W468)","v":""},{"$f":"IF('1. Order'!X468=\"\",\"\",'1. Order'!X468)","v":"EUR"},{"$f":"IF('1. Order'!Y468=\"\",\"\",'1. Order'!Y468)","v":""},{"$f":"IF('1. Order'!Z468=\"\",\"\",'1. Order'!Z468)","v":""},{"$f":"IF('1. Order'!AA468=\"\",\"\",'1. Order'!AA468)","v":""},null,{"$f":"IF('1. Order'!AS468=\"\",\"\",'1. Order'!AS468)","v":""},{"$f":"IF('1. Order'!AT468=\"\",\"\",'1. Order'!AT468)","v":""},null,null,null,null,null,null,null,{"$f":"IF('1. Order'!AX468=\"\",\"\",'1. Order'!AX468)","v":""},{"$f":"IF('1. Order'!AY468=\"\",\"\",'1. Order'!AY468)","v":""},{"$f":"IF('1. Order'!AZ468=\"\",\"\",'1. Order'!AZ468)","v":""},{"$f":"IF('1. Order'!BA468=\"\",\"\",'1. Order'!BA468)","v":""},{"$f":"IF('1. Order'!BC468=\"\",\"\",'1. Order'!BC468)","v":""},{"$f":"IF('1. Order'!BD468=\"\",\"\",'1. Order'!BD468)","v":6},{"$f":"IF('1. Order'!BE468=\"\",\"\",'1. Order'!BE468)","v":"None"},{"$f":"IF('1. Order'!BF468=\"\",\"\",'1. Order'!BF468)","v":"Parcel"},{"$f":"IF('1. Order'!BG468=\"\",\"\",'1. Order'!BG468)","v":"ZWO"}]
[{"$f":"IF('1. Order'!F469=\"\",\"\",'1. Order'!F469)","v":""},{"$f":"IF('1. Order'!G469=\"\",\"\",'1. Order'!G469)","v":""},{"$f":"IF('1. Order'!H469=\"\",\"\",'1. Order'!H469)","v":""},{"$f":"IF('1. Order'!I469=\"\",\"\",'1. Order'!I469)","v":""},{"$f":"IF('1. Order'!J469=\"\",\"\",'1. Order'!J469)","v":""},{"$f":"IF('1. Order'!K469=\"\",\"\",'1. Order'!K469)","v":""},{"$f":"IF('1. Order'!L469=\"\",\"\",'1. Order'!L469)","v":""},{"$f":"IF('1. Order'!M469=\"\",\"\",'1. Order'!M469)","v":""},{"$f":"IF('1. Order'!N469=\"\",\"\",'1. Order'!N469)","v":""},{"$f":"IF('1. Order'!O469=\"\",\"\",'1. Order'!O469)","v":{"$error":"#N/A"}},{"$f":"IF('1. Order'!P469=\"\",\"\",'1. Order'!P469)","v":{"$error":"#N/A"}},{"$f":"IF('1. Order'!Q469=\"\",\"\",'1. Order'!Q469)","v":""},{"$f":"IF('1. Order'!R469=\"\",\"\",'1. Order'!R469)","v":""},{"$f":"IF('1. Order'!S469=\"\",\"\",'1. Order'!S469)","v":""},{"$f":"IF('1. Order'!V469=\"\",\"\",'1. Order'!V469)","v":""},{"$f":"IF('1. Order'!W469=\"\",\"\",'1. Order'!W469)","v":""},{"$f":"IF('1. Order'!X469=\"\",\"\",'1. Order'!X469)","v":"EUR"},{"$f":"IF('1. Order'!Y469=\"\",\"\",'1. Order'!Y469)","v":""},{"$f":"IF('1. Order'!Z469=\"\",\"\",'1. Order'!Z469)","v":""},{"$f":"IF('1. Order'!AA469=\"\",\"\",'1. Order'!AA469)","v":""},null,{"$f":"IF('1. Order'!AS469=\"\",\"\",'1. Order'!AS469)","v":""},{"$f":"IF('1. Order'!AT469=\"\",\"\",'1. Order'!AT469)","v":""},null,null,null,null,null,null,null,{"$f":"IF('1. Order'!AX469=\"\",\"\",'1. Order'!AX469)","v":""},{"$f":"IF('1. Order'!AY469=\"\",\"\",'1. Order'!AY469)","v":""},{"$f":"IF('1. Order'!AZ469=\"\",\"\",'1. Order'!AZ469)","v":""},{"$f":"IF('1. Order'!BA469=\"\",\"\",'1. Order'!BA469)","v":""},{"$f":"IF('1. Order'!BC469=\"\",\"\",'1. Order'!BC469)","v":""},{"$f":"IF('1. Order'!BD469=\"\",\"\",'1. Order'!BD469)","v":6},{"$f":"IF('1. Order'!BE469=\"\",\"\",'1. Order'!BE469)","v":"None"},{"$f":"IF('1. Order'!BF469=\"\",\"\",'1. Order'!BF469)","v":"Parcel"},{"$f":"IF('1. Order'!BG469=\"\",\"\",'1. Order'!BG469)","v":"ZWO"}]
[{"$f":"IF('1. Order'!F470=\"\",\"\",'1. Order'!F470)","v":""},{"$f":"IF('1. Order'!G470=\"\",\"\",'1. Order'!G470)","v":""},{"$f":"IF('1. Order'!H470=\"\",\"\",'1. Order'!H470)","v":""},{"$f":"IF('1. Order'!I470=\"\",\"\",'1. Order'!I470)","v":""},{"$f":"IF('1. Order'!J470=\"\",\"\",'1. Order'!J470)","v":""},{"$f":"IF('1. Order'!K470=\"\",\"\",'1. Order'!K470)","v":""},{"$f":"IF('1. Order'!L470=\"\",\"\",'1. Order'!L470)","v":""},{"$f":"IF('1. Order'!M470=\"\",\"\",'1. Order'!M470)","v":""},{"$f":"IF('1. Order'!N470=\"\",\"\",'1. Order'!N470)","v":""},{"$f":"IF('1. Order'!O470=\"\",\"\",'1. Order'!O470)","v":{"$error":"#N/A"}},{"$f":"IF('1. Order'!P470=\"\",\"\",'1. Order'!P470)","v":{"$error":"#N/A"}},{"$f":"IF('1. Order'!Q470=\"\",\"\",'1. Order'!Q470)","v":""},{"$f":"IF('1. Order'!R470=\"\",\"\",'1. Order'!R470)","v":""},{"$f":"IF('1. Order'!S470=\"\",\"\",'1. Order'!S470)","v":""},{"$f":"IF('1. Order'!V470=\"\",\"\",'1. Order'!V470)","v":""},{"$f":"IF('1. Order'!W470=\"\",\"\",'1. Order'!W470)","v":""},{"$f":"IF('1. Order'!X470=\"\",\"\",'1. Order'!X470)","v":"EUR"},{"$f":"IF('1. Order'!Y470=\"\",\"\",'1. Order'!Y470)","v":""},{"$f":"IF('1. Order'!Z470=\"\",\"\",'1. Order'!Z470)","v":""},{"$f":"IF('1. Order'!AA470=\"\",\"\",'1. Order'!AA470)","v":""},null,{"$f":"IF('1. Order'!AS470=\"\",\"\",'1. Order'!AS470)","v":""},{"$f":"IF('1. Order'!AT470=\"\",\"\",'1. Order'!AT470)","v":""},null,null,null,null,null,null,null,{"$f":"IF('1. Order'!AX470=\"\",\"\",'1. Order'!AX470)","v":""},{"$f":"IF('1. Order'!AY470=\"\",\"\",'1. Order'!AY470)","v":""},{"$f":"IF('1. Order'!AZ470=\"\",\"\",'1. Order'!AZ470)","v":""},{"$f":"IF('1. Order'!BA470=\"\",\"\",'1. Order'!BA470)","v":""},{"$f":"IF('1. Order'!BC470=\"\",\"\",'1. Order'!BC470)","v":""},{"$f":"IF('1. Order'!BD470=\"\",\"\",'1. Order'!BD470)","v":6},{"$f":"IF('1. Order'!BE470=\"\",\"\",'1. Order'!BE470)","v":"None"},{"$f":"IF('1. Order'!BF470=\"\",\"\",'1. Order'!BF470)","v":"Parcel"},{"$f":"IF('1. Order'!BG470=\"\",\"\",'1. Order'!BG470)","v":"ZWO"}]
[{"$f":"IF('1. Order'!F471=\"\",\"\",'1. Order'!F471)","v":""},{"$f":"IF('1. Order'!G471=\"\",\"\",'1. Order'!G471)","v":""},{"$f":"IF('1. Order'!H471=\"\",\"\",'1. Order'!H471)","v":""},{"$f":"IF('1. Order'!I471=\"\",\"\",'1. Order'!I471)","v":""},{"$f":"IF('1. Order'!J471=\"\",\"\",'1. Order'!J471)","v":""},{"$f":"IF('1. Order'!K471=\"\",\"\",'1. Order'!K471)","v":""},{"$f":"IF('1. Order'!L471=\"\",\"\",'1. Order'!L471)","v":""},{"$f":"IF('1. Order'!M471=\"\",\"\",'1. Order'!M471)","v":""},{"$f":"IF('1. Order'!N471=\"\",\"\",'1. Order'!N471)","v":""},{"$f":"IF('1. Order'!O471=\"\",\"\",'1. Order'!O471)","v":{"$error":"#N/A"}},{"$f":"IF('1. Order'!P471=\"\",\"\",'1. Order'!P471)","v":{"$error":"#N/A"}},{"$f":"IF('1. Order'!Q471=\"\",\"\",'1. Order'!Q471)","v":""},{"$f":"IF('1. Order'!R471=\"\",\"\",'1. Order'!R471)","v":""},{"$f":"IF('1. Order'!S471=\"\",\"\",'1. Order'!S471)","v":""},{"$f":"IF('1. Order'!V471=\"\",\"\",'1. Order'!V471)","v":""},{"$f":"IF('1. Order'!W471=\"\",\"\",'1. Order'!W471)","v":""},{"$f":"IF('1. Order'!X471=\"\",\"\",'1. Order'!X471)","v":"EUR"},{"$f":"IF('1. Order'!Y471=\"\",\"\",'1. Order'!Y471)","v":""},{"$f":"IF('1. Order'!Z471=\"\",\"\",'1. Order'!Z471)","v":""},{"$f":"IF('1. Order'!AA471=\"\",\"\",'1. Order'!AA471)","v":""},null,{"$f":"IF('1. Order'!AS471=\"\",\"\",'1. Order'!AS471)","v":""},{"$f":"IF('1. Order'!AT471=\"\",\"\",'1. Order'!AT471)","v":""},null,null,null,null,null,null,null,{"$f":"IF('1. Order'!AX471=\"\",\"\",'1. Order'!AX471)","v":""},{"$f":"IF('1. Order'!AY471=\"\",\"\",'1. Order'!AY471)","v":""},{"$f":"IF('1. Order'!AZ471=\"\",\"\",'1. Order'!AZ471)","v":""},{"$f":"IF('1. Order'!BA471=\"\",\"\",'1. Order'!BA471)","v":""},{"$f":"IF('1. Order'!BC471=\"\",\"\",'1. Order'!BC471)","v":""},{"$f":"IF('1. Order'!BD471=\"\",\"\",'1. Order'!BD471)","v":6},{"$f":"IF('1. Order'!BE471=\"\",\"\",'1. Order'!BE471)","v":"None"},{"$f":"IF('1. Order'!BF471=\"\",\"\",'1. Order'!BF471)","v":"Parcel"},{"$f":"IF('1. Order'!BG471=\"\",\"\",'1. Order'!BG471)","v":"ZWO"}]
[{"$f":"IF('1. Order'!F472=\"\",\"\",'1. Order'!F472)","v":""},{"$f":"IF('1. Order'!G472=\"\",\"\",'1. Order'!G472)","v":""},{"$f":"IF('1. Order'!H472=\"\",\"\",'1. Order'!H472)","v":""},{"$f":"IF('1. Order'!I472=\"\",\"\",'1. Order'!I472)","v":""},{"$f":"IF('1. Order'!J472=\"\",\"\",'1. Order'!J472)","v":""},{"$f":"IF('1. Order'!K472=\"\",\"\",'1. Order'!K472)","v":""},{"$f":"IF('1. Order'!L472=\"\",\"\",'1. Order'!L472)","v":""},{"$f":"IF('1. Order'!M472=\"\",\"\",'1. Order'!M472)","v":""},{"$f":"IF('1. Order'!N472=\"\",\"\",'1. Order'!N472)","v":""},{"$f":"IF('1. Order'!O472=\"\",\"\",'1. Order'!O472)","v":{"$error":"#N/A"}},{"$f":"IF('1. Order'!P472=\"\",\"\",'1. Order'!P472)","v":{"$error":"#N/A"}},{"$f":"IF('1. Order'!Q472=\"\",\"\",'1. Order'!Q472)","v":""},{"$f":"IF('1. Order'!R472=\"\",\"\",'1. Order'!R472)","v":""},{"$f":"IF('1. Order'!S472=\"\",\"\",'1. Order'!S472)","v":""},{"$f":"IF('1. Order'!V472=\"\",\"\",'1. Order'!V472)","v":""},{"$f":"IF('1. Order'!W472=\"\",\"\",'1. Order'!W472)","v":""},{"$f":"IF('1. Order'!X472=\"\",\"\",'1. Order'!X472)","v":"EUR"},{"$f":"IF('1. Order'!Y472=\"\",\"\",'1. Order'!Y472)","v":""},{"$f":"IF('1. Order'!Z472=\"\",\"\",'1. Order'!Z472)","v":""},{"$f":"IF('1. Order'!AA472=\"\",\"\",'1. Order'!AA472)","v":""},null,{"$f":"IF('1. Order'!AS472=\"\",\"\",'1. Order'!AS472)","v":""},{"$f":"IF('1. Order'!AT472=\"\",\"\",'1. Order'!AT472)","v":""},null,null,null,null,null,null,null,{"$f":"IF('1. Order'!AX472=\"\",\"\",'1. Order'!AX472)","v":""},{"$f":"IF('1. Order'!AY472=\"\",\"\",'1. Order'!AY472)","v":""},{"$f":"IF('1. Order'!AZ472=\"\",\"\",'1. Order'!AZ472)","v":""},{"$f":"IF('1. Order'!BA472=\"\",\"\",'1. Order'!BA472)","v":""},{"$f":"IF('1. Order'!BC472=\"\",\"\",'1. Order'!BC472)","v":""},{"$f":"IF('1. Order'!BD472=\"\",\"\",'1. Order'!BD472)","v":6},{"$f":"IF('1. Order'!BE472=\"\",\"\",'1. Order'!BE472)","v":"None"},{"$f":"IF('1. Order'!BF472=\"\",\"\",'1. Order'!BF472)","v":"Parcel"},{"$f":"IF('1. Order'!BG472=\"\",\"\",'1. Order'!BG472)","v":"ZWO"}]
[{"$f":"IF('1. Order'!F473=\"\",\"\",'1. Order'!F473)","v":""},{"$f":"IF('1. Order'!G473=\"\",\"\",'1. Order'!G473)","v":""},{"$f":"IF('1. Order'!H473=\"\",\"\",'1. Order'!H473)","v":""},{"$f":"IF('1. Order'!I473=\"\",\"\",'1. Order'!I473)","v":""},{"$f":"IF('1. Order'!J473=\"\",\"\",'1. Order'!J473)","v":""},{"$f":"IF('1. Order'!K473=\"\",\"\",'1. Order'!K473)","v":""},{"$f":"IF('1. Order'!L473=\"\",\"\",'1. Order'!L473)","v":""},{"$f":"IF('1. Order'!M473=\"\",\"\",'1. Order'!M473)","v":""},{"$f":"IF('1. Order'!N473=\"\",\"\",'1. Order'!N473)","v":""},{"$f":"IF('1. Order'!O473=\"\",\"\",'1. Order'!O473)","v":{"$error":"#N/A"}},{"$f":"IF('1. Order'!P473=\"\",\"\",'1. Order'!P473)","v":{"$error":"#N/A"}},{"$f":"IF('1. Order'!Q473=\"\",\"\",'1. Order'!Q473)","v":""},{"$f":"IF('1. Order'!R473=\"\",\"\",'1. Order'!R473)","v":""},{"$f":"IF('1. Order'!S473=\"\",\"\",'1. Order'!S473)","v":""},{"$f":"IF('1. Order'!V473=\"\",\"\",'1. Order'!V473)","v":""},{"$f":"IF('1. Order'!W473=\"\",\"\",'1. Order'!W473)","v":""},{"$f":"IF('1. Order'!X473=\"\",\"\",'1. Order'!X473)","v":"EUR"},{"$f":"IF('1. Order'!Y473=\"\",\"\",'1. Order'!Y473)","v":""},{"$f":"IF('1. Order'!Z473=\"\",\"\",'1. Order'!Z473)","v":""},{"$f":"IF('1. Order'!AA473=\"\",\"\",'1. Order'!AA473)","v":""},null,{"$f":"IF('1. Order'!AS473=\"\",\"\",'1. Order'!AS473)","v":""},{"$f":"IF('1. Order'!AT473=\"\",\"\",'1. Order'!AT473)","v":""},null,null,null,null,null,null,null,{"$f":"IF('1. Order'!AX473=\"\",\"\",'1. Order'!AX473)","v":""},{"$f":"IF('1. Order'!AY473=\"\",\"\",'1. Order'!AY473)","v":""},{"$f":"IF('1. Order'!AZ473=\"\",\"\",'1. Order'!AZ473)","v":""},{"$f":"IF('1. Order'!BA473=\"\",\"\",'1. Order'!BA473)","v":""},{"$f":"IF('1. Order'!BC473=\"\",\"\",'1. Order'!BC473)","v":""},{"$f":"IF('1. Order'!BD473=\"\",\"\",'1. Order'!BD473)","v":6},{"$f":"IF('1. Order'!BE473=\"\",\"\",'1. Order'!BE473)","v":"None"},{"$f":"IF('1. Order'!BF473=\"\",\"\",'1. Order'!BF473)","v":"Parcel"},{"$f":"IF('1. Order'!BG473=\"\",\"\",'1. Order'!BG473)","v":"ZWO"}]
[{"$f":"IF('1. Order'!F474=\"\",\"\",'1. Order'!F474)","v":""},{"$f":"IF('1. Order'!G474=\"\",\"\",'1. Order'!G474)","v":""},{"$f":"IF('1. Order'!H474=\"\",\"\",'1. Order'!H474)","v":""},{"$f":"IF('1. Order'!I474=\"\",\"\",'1. Order'!I474)","v":""},{"$f":"IF('1. Order'!J474=\"\",\"\",'1. Order'!J474)","v":""},{"$f":"IF('1. Order'!K474=\"\",\"\",'1. Order'!K474)","v":""},{"$f":"IF('1. Order'!L474=\"\",\"\",'1. Order'!L474)","v":""},{"$f":"IF('1. Order'!M474=\"\",\"\",'1. Order'!M474)","v":""},{"$f":"IF('1. Order'!N474=\"\",\"\",'1. Order'!N474)","v":""},{"$f":"IF('1. Order'!O474=\"\",\"\",'1. Order'!O474)","v":{"$error":"#N/A"}},{"$f":"IF('1. Order'!P474=\"\",\"\",'1. Order'!P474)","v":{"$error":"#N/A"}},{"$f":"IF('1. Order'!Q474=\"\",\"\",'1. Order'!Q474)","v":""},{"$f":"IF('1. Order'!R474=\"\",\"\",'1. Order'!R474)","v":""},{"$f":"IF('1. Order'!S474=\"\",\"\",'1. Order'!S474)","v":""},{"$f":"IF('1. Order'!V474=\"\",\"\",'1. Order'!V474)","v":""},{"$f":"IF('1. Order'!W474=\"\",\"\",'1. Order'!W474)","v":""},{"$f":"IF('1. Order'!X474=\"\",\"\",'1. Order'!X474)","v":"EUR"},{"$f":"IF('1. Order'!Y474=\"\",\"\",'1. Order'!Y474)","v":""},{"$f":"IF('1. Order'!Z474=\"\",\"\",'1. Order'!Z474)","v":""},{"$f":"IF('1. Order'!AA474=\"\",\"\",'1. Order'!AA474)","v":""},null,{"$f":"IF('1. Order'!AS474=\"\",\"\",'1. Order'!AS474)","v":""},{"$f":"IF('1. Order'!AT474=\"\",\"\",'1. Order'!AT474)","v":""},null,null,null,null,null,null,null,{"$f":"IF('1. Order'!AX474=\"\",\"\",'1. Order'!AX474)","v":""},{"$f":"IF('1. Order'!AY474=\"\",\"\",'1. Order'!AY474)","v":""},{"$f":"IF('1. Order'!AZ474=\"\",\"\",'1. Order'!AZ474)","v":""},{"$f":"IF('1. Order'!BA474=\"\",\"\",'1. Order'!BA474)","v":""},{"$f":"IF('1. Order'!BC474=\"\",\"\",'1. Order'!BC474)","v":""},{"$f":"IF('1. Order'!BD474=\"\",\"\",'1. Order'!BD474)","v":6},{"$f":"IF('1. Order'!BE474=\"\",\"\",'1. Order'!BE474)","v":"None"},{"$f":"IF('1. Order'!BF474=\"\",\"\",'1. Order'!BF474)","v":"Parcel"},{"$f":"IF('1. Order'!BG474=\"\",\"\",'1. Order'!BG474)","v":"ZWO"}]
[{"$f":"IF('1. Order'!F475=\"\",\"\",'1. Order'!F475)","v":""},{"$f":"IF('1. Order'!G475=\"\",\"\",'1. Order'!G475)","v":""},{"$f":"IF('1. Order'!H475=\"\",\"\",'1. Order'!H475)","v":""},{"$f":"IF('1. Order'!I475=\"\",\"\",'1. Order'!I475)","v":""},{"$f":"IF('1. Order'!J475=\"\",\"\",'1. Order'!J475)","v":""},{"$f":"IF('1. Order'!K475=\"\",\"\",'1. Order'!K475)","v":""},{"$f":"IF('1. Order'!L475=\"\",\"\",'1. Order'!L475)","v":""},{"$f":"IF('1. Order'!M475=\"\",\"\",'1. Order'!M475)","v":""},{"$f":"IF('1. Order'!N475=\"\",\"\",'1. Order'!N475)","v":""},{"$f":"IF('1. Order'!O475=\"\",\"\",'1. Order'!O475)","v":{"$error":"#N/A"}},{"$f":"IF('1. Order'!P475=\"\",\"\",'1. Order'!P475)","v":{"$error":"#N/A"}},{"$f":"IF('1. Order'!Q475=\"\",\"\",'1. Order'!Q475)","v":""},{"$f":"IF('1. Order'!R475=\"\",\"\",'1. Order'!R475)","v":""},{"$f":"IF('1. Order'!S475=\"\",\"\",'1. Order'!S475)","v":""},{"$f":"IF('1. Order'!V475=\"\",\"\",'1. Order'!V475)","v":""},{"$f":"IF('1. Order'!W475=\"\",\"\",'1. Order'!W475)","v":""},{"$f":"IF('1. Order'!X475=\"\",\"\",'1. Order'!X475)","v":"EUR"},{"$f":"IF('1. Order'!Y475=\"\",\"\",'1. Order'!Y475)","v":""},{"$f":"IF('1. Order'!Z475=\"\",\"\",'1. Order'!Z475)","v":""},{"$f":"IF('1. Order'!AA475=\"\",\"\",'1. Order'!AA475)","v":""},null,{"$f":"IF('1. Order'!AS475=\"\",\"\",'1. Order'!AS475)","v":""},{"$f":"IF('1. Order'!AT475=\"\",\"\",'1. Order'!AT475)","v":""},null,null,null,null,null,null,null,{"$f":"IF('1. Order'!AX475=\"\",\"\",'1. Order'!AX475)","v":""},{"$f":"IF('1. Order'!AY475=\"\",\"\",'1. Order'!AY475)","v":""},{"$f":"IF('1. Order'!AZ475=\"\",\"\",'1. Order'!AZ475)","v":""},{"$f":"IF('1. Order'!BA475=\"\",\"\",'1. Order'!BA475)","v":""},{"$f":"IF('1. Order'!BC475=\"\",\"\",'1. Order'!BC475)","v":""},{"$f":"IF('1. Order'!BD475=\"\",\"\",'1. Order'!BD475)","v":6},{"$f":"IF('1. Order'!BE475=\"\",\"\",'1. Order'!BE475)","v":"None"},{"$f":"IF('1. Order'!BF475=\"\",\"\",'1. Order'!BF475)","v":"Parcel"},{"$f":"IF('1. Order'!BG475=\"\",\"\",'1. Order'!BG475)","v":"ZWO"}]
[{"$f":"IF('1. Order'!F476=\"\",\"\",'1. Order'!F476)","v":""},{"$f":"IF('1. Order'!G476=\"\",\"\",'1. Order'!G476)","v":""},{"$f":"IF('1. Order'!H476=\"\",\"\",'1. Order'!H476)","v":""},{"$f":"IF('1. Order'!I476=\"\",\"\",'1. Order'!I476)","v":""},{"$f":"IF('1. Order'!J476=\"\",\"\",'1. Order'!J476)","v":""},{"$f":"IF('1. Order'!K476=\"\",\"\",'1. Order'!K476)","v":""},{"$f":"IF('1. Order'!L476=\"\",\"\",'1. Order'!L476)","v":""},{"$f":"IF('1. Order'!M476=\"\",\"\",'1. Order'!M476)","v":""},{"$f":"IF('1. Order'!N476=\"\",\"\",'1. Order'!N476)","v":""},{"$f":"IF('1. Order'!O476=\"\",\"\",'1. Order'!O476)","v":{"$error":"#N/A"}},{"$f":"IF('1. Order'!P476=\"\",\"\",'1. Order'!P476)","v":{"$error":"#N/A"}},{"$f":"IF('1. Order'!Q476=\"\",\"\",'1. Order'!Q476)","v":""},{"$f":"IF('1. Order'!R476=\"\",\"\",'1. Order'!R476)","v":""},{"$f":"IF('1. Order'!S476=\"\",\"\",'1. Order'!S476)","v":""},{"$f":"IF('1. Order'!V476=\"\",\"\",'1. Order'!V476)","v":""},{"$f":"IF('1. Order'!W476=\"\",\"\",'1. Order'!W476)","v":""},{"$f":"IF('1. Order'!X476=\"\",\"\",'1. Order'!X476)","v":"EUR"},{"$f":"IF('1. Order'!Y476=\"\",\"\",'1. Order'!Y476)","v":""},{"$f":"IF('1. Order'!Z476=\"\",\"\",'1. Order'!Z476)","v":""},{"$f":"IF('1. Order'!AA476=\"\",\"\",'1. Order'!AA476)","v":""},null,{"$f":"IF('1. Order'!AS476=\"\",\"\",'1. Order'!AS476)","v":""},{"$f":"IF('1. Order'!AT476=\"\",\"\",'1. Order'!AT476)","v":""},null,null,null,null,null,null,null,{"$f":"IF('1. Order'!AX476=\"\",\"\",'1. Order'!AX476)","v":""},{"$f":"IF('1. Order'!AY476=\"\",\"\",'1. Order'!AY476)","v":""},{"$f":"IF('1. Order'!AZ476=\"\",\"\",'1. Order'!AZ476)","v":""},{"$f":"IF('1. Order'!BA476=\"\",\"\",'1. Order'!BA476)","v":""},{"$f":"IF('1. Order'!BC476=\"\",\"\",'1. Order'!BC476)","v":""},{"$f":"IF('1. Order'!BD476=\"\",\"\",'1. Order'!BD476)","v":6},{"$f":"IF('1. Order'!BE476=\"\",\"\",'1. Order'!BE476)","v":"None"},{"$f":"IF('1. Order'!BF476=\"\",\"\",'1. Order'!BF476)","v":"Parcel"},{"$f":"IF('1. Order'!BG476=\"\",\"\",'1. Order'!BG476)","v":"ZWO"}]
[{"$f":"IF('1. Order'!F477=\"\",\"\",'1. Order'!F477)","v":""},{"$f":"IF('1. Order'!G477=\"\",\"\",'1. Order'!G477)","v":""},{"$f":"IF('1. Order'!H477=\"\",\"\",'1. Order'!H477)","v":""},{"$f":"IF('1. Order'!I477=\"\",\"\",'1. Order'!I477)","v":""},{"$f":"IF('1. Order'!J477=\"\",\"\",'1. Order'!J477)","v":""},{"$f":"IF('1. Order'!K477=\"\",\"\",'1. Order'!K477)","v":""},{"$f":"IF('1. Order'!L477=\"\",\"\",'1. Order'!L477)","v":""},{"$f":"IF('1. Order'!M477=\"\",\"\",'1. Order'!M477)","v":""},{"$f":"IF('1. Order'!N477=\"\",\"\",'1. Order'!N477)","v":""},{"$f":"IF('1. Order'!O477=\"\",\"\",'1. Order'!O477)","v":{"$error":"#N/A"}},{"$f":"IF('1. Order'!P477=\"\",\"\",'1. Order'!P477)","v":{"$error":"#N/A"}},{"$f":"IF('1. Order'!Q477=\"\",\"\",'1. Order'!Q477)","v":""},{"$f":"IF('1. Order'!R477=\"\",\"\",'1. Order'!R477)","v":""},{"$f":"IF('1. Order'!S477=\"\",\"\",'1. Order'!S477)","v":""},{"$f":"IF('1. Order'!V477=\"\",\"\",'1. Order'!V477)","v":""},{"$f":"IF('1. Order'!W477=\"\",\"\",'1. Order'!W477)","v":""},{"$f":"IF('1. Order'!X477=\"\",\"\",'1. Order'!X477)","v":"EUR"},{"$f":"IF('1. Order'!Y477=\"\",\"\",'1. Order'!Y477)","v":""},{"$f":"IF('1. Order'!Z477=\"\",\"\",'1. Order'!Z477)","v":""},{"$f":"IF('1. Order'!AA477=\"\",\"\",'1. Order'!AA477)","v":""},null,{"$f":"IF('1. Order'!AS477=\"\",\"\",'1. Order'!AS477)","v":""},{"$f":"IF('1. Order'!AT477=\"\",\"\",'1. Order'!AT477)","v":""},null,null,null,null,null,null,null,{"$f":"IF('1. Order'!AX477=\"\",\"\",'1. Order'!AX477)","v":""},{"$f":"IF('1. Order'!AY477=\"\",\"\",'1. Order'!AY477)","v":""},{"$f":"IF('1. Order'!AZ477=\"\",\"\",'1. Order'!AZ477)","v":""},{"$f":"IF('1. Order'!BA477=\"\",\"\",'1. Order'!BA477)","v":""},{"$f":"IF('1. Order'!BC477=\"\",\"\",'1. Order'!BC477)","v":""},{"$f":"IF('1. Order'!BD477=\"\",\"\",'1. Order'!BD477)","v":6},{"$f":"IF('1. Order'!BE477=\"\",\"\",'1. Order'!BE477)","v":"None"},{"$f":"IF('1. Order'!BF477=\"\",\"\",'1. Order'!BF477)","v":"Parcel"},{"$f":"IF('1. Order'!BG477=\"\",\"\",'1. Order'!BG477)","v":"ZWO"}]
[{"$f":"IF('1. Order'!F478=\"\",\"\",'1. Order'!F478)","v":""},{"$f":"IF('1. Order'!G478=\"\",\"\",'1. Order'!G478)","v":""},{"$f":"IF('1. Order'!H478=\"\",\"\",'1. Order'!H478)","v":""},{"$f":"IF('1. Order'!I478=\"\",\"\",'1. Order'!I478)","v":""},{"$f":"IF('1. Order'!J478=\"\",\"\",'1. Order'!J478)","v":""},{"$f":"IF('1. Order'!K478=\"\",\"\",'1. Order'!K478)","v":""},{"$f":"IF('1. Order'!L478=\"\",\"\",'1. Order'!L478)","v":""},{"$f":"IF('1. Order'!M478=\"\",\"\",'1. Order'!M478)","v":""},{"$f":"IF('1. Order'!N478=\"\",\"\",'1. Order'!N478)","v":""},{"$f":"IF('1. Order'!O478=\"\",\"\",'1. Order'!O478)","v":{"$error":"#N/A"}},{"$f":"IF('1. Order'!P478=\"\",\"\",'1. Order'!P478)","v":{"$error":"#N/A"}},{"$f":"IF('1. Order'!Q478=\"\",\"\",'1. Order'!Q478)","v":""},{"$f":"IF('1. Order'!R478=\"\",\"\",'1. Order'!R478)","v":""},{"$f":"IF('1. Order'!S478=\"\",\"\",'1. Order'!S478)","v":""},{"$f":"IF('1. Order'!V478=\"\",\"\",'1. Order'!V478)","v":""},{"$f":"IF('1. Order'!W478=\"\",\"\",'1. Order'!W478)","v":""},{"$f":"IF('1. Order'!X478=\"\",\"\",'1. Order'!X478)","v":"EUR"},{"$f":"IF('1. Order'!Y478=\"\",\"\",'1. Order'!Y478)","v":""},{"$f":"IF('1. Order'!Z478=\"\",\"\",'1. Order'!Z478)","v":""},{"$f":"IF('1. Order'!AA478=\"\",\"\",'1. Order'!AA478)","v":""},null,{"$f":"IF('1. Order'!AS478=\"\",\"\",'1. Order'!AS478)","v":""},{"$f":"IF('1. Order'!AT478=\"\",\"\",'1. Order'!AT478)","v":""},null,null,null,null,null,null,null,{"$f":"IF('1. Order'!AX478=\"\",\"\",'1. Order'!AX478)","v":""},{"$f":"IF('1. Order'!AY478=\"\",\"\",'1. Order'!AY478)","v":""},{"$f":"IF('1. Order'!AZ478=\"\",\"\",'1. Order'!AZ478)","v":""},{"$f":"IF('1. Order'!BA478=\"\",\"\",'1. Order'!BA478)","v":""},{"$f":"IF('1. Order'!BC478=\"\",\"\",'1. Order'!BC478)","v":""},{"$f":"IF('1. Order'!BD478=\"\",\"\",'1. Order'!BD478)","v":6},{"$f":"IF('1. Order'!BE478=\"\",\"\",'1. Order'!BE478)","v":"None"},{"$f":"IF('1. Order'!BF478=\"\",\"\",'1. Order'!BF478)","v":"Parcel"},{"$f":"IF('1. Order'!BG478=\"\",\"\",'1. Order'!BG478)","v":"ZWO"}]
[{"$f":"IF('1. Order'!F479=\"\",\"\",'1. Order'!F479)","v":""},{"$f":"IF('1. Order'!G479=\"\",\"\",'1. Order'!G479)","v":""},{"$f":"IF('1. Order'!H479=\"\",\"\",'1. Order'!H479)","v":""},{"$f":"IF('1. Order'!I479=\"\",\"\",'1. Order'!I479)","v":""},{"$f":"IF('1. Order'!J479=\"\",\"\",'1. Order'!J479)","v":""},{"$f":"IF('1. Order'!K479=\"\",\"\",'1. Order'!K479)","v":""},{"$f":"IF('1. Order'!L479=\"\",\"\",'1. Order'!L479)","v":""},{"$f":"IF('1. Order'!M479=\"\",\"\",'1. Order'!M479)","v":""},{"$f":"IF('1. Order'!N479=\"\",\"\",'1. Order'!N479)","v":""},{"$f":"IF('1. Order'!O479=\"\",\"\",'1. Order'!O479)","v":{"$error":"#N/A"}},{"$f":"IF('1. Order'!P479=\"\",\"\",'1. Order'!P479)","v":{"$error":"#N/A"}},{"$f":"IF('1. Order'!Q479=\"\",\"\",'1. Order'!Q479)","v":""},{"$f":"IF('1. Order'!R479=\"\",\"\",'1. Order'!R479)","v":""},{"$f":"IF('1. Order'!S479=\"\",\"\",'1. Order'!S479)","v":""},{"$f":"IF('1. Order'!V479=\"\",\"\",'1. Order'!V479)","v":""},{"$f":"IF('1. Order'!W479=\"\",\"\",'1. Order'!W479)","v":""},{"$f":"IF('1. Order'!X479=\"\",\"\",'1. Order'!X479)","v":"EUR"},{"$f":"IF('1. Order'!Y479=\"\",\"\",'1. Order'!Y479)","v":""},{"$f":"IF('1. Order'!Z479=\"\",\"\",'1. Order'!Z479)","v":""},{"$f":"IF('1. Order'!AA479=\"\",\"\",'1. Order'!AA479)","v":""},null,{"$f":"IF('1. Order'!AS479=\"\",\"\",'1. Order'!AS479)","v":""},{"$f":"IF('1. Order'!AT479=\"\",\"\",'1. Order'!AT479)","v":""},null,null,null,null,null,null,null,{"$f":"IF('1. Order'!AX479=\"\",\"\",'1. Order'!AX479)","v":""},{"$f":"IF('1. Order'!AY479=\"\",\"\",'1. Order'!AY479)","v":""},{"$f":"IF('1. Order'!AZ479=\"\",\"\",'1. Order'!AZ479)","v":""},{"$f":"IF('1. Order'!BA479=\"\",\"\",'1. Order'!BA479)","v":""},{"$f":"IF('1. Order'!BC479=\"\",\"\",'1. Order'!BC479)","v":""},{"$f":"IF('1. Order'!BD479=\"\",\"\",'1. Order'!BD479)","v":6},{"$f":"IF('1. Order'!BE479=\"\",\"\",'1. Order'!BE479)","v":"None"},{"$f":"IF('1. Order'!BF479=\"\",\"\",'1. Order'!BF479)","v":"Parcel"},{"$f":"IF('1. Order'!BG479=\"\",\"\",'1. Order'!BG479)","v":"ZWO"}]
[{"$f":"IF('1. Order'!F480=\"\",\"\",'1. Order'!F480)","v":""},{"$f":"IF('1. Order'!G480=\"\",\"\",'1. Order'!G480)","v":""},{"$f":"IF('1. Order'!H480=\"\",\"\",'1. Order'!H480)","v":""},{"$f":"IF('1. Order'!I480=\"\",\"\",'1. Order'!I480)","v":""},{"$f":"IF('1. Order'!J480=\"\",\"\",'1. Order'!J480)","v":""},{"$f":"IF('1. Order'!K480=\"\",\"\",'1. Order'!K480)","v":""},{"$f":"IF('1. Order'!L480=\"\",\"\",'1. Order'!L480)","v":""},{"$f":"IF('1. Order'!M480=\"\",\"\",'1. Order'!M480)","v":""},{"$f":"IF('1. Order'!N480=\"\",\"\",'1. Order'!N480)","v":""},{"$f":"IF('1. Order'!O480=\"\",\"\",'1. Order'!O480)","v":{"$error":"#N/A"}},{"$f":"IF('1. Order'!P480=\"\",\"\",'1. Order'!P480)","v":{"$error":"#N/A"}},{"$f":"IF('1. Order'!Q480=\"\",\"\",'1. Order'!Q480)","v":""},{"$f":"IF('1. Order'!R480=\"\",\"\",'1. Order'!R480)","v":""},{"$f":"IF('1. Order'!S480=\"\",\"\",'1. Order'!S480)","v":""},{"$f":"IF('1. Order'!V480=\"\",\"\",'1. Order'!V480)","v":""},{"$f":"IF('1. Order'!W480=\"\",\"\",'1. Order'!W480)","v":""},{"$f":"IF('1. Order'!X480=\"\",\"\",'1. Order'!X480)","v":"EUR"},{"$f":"IF('1. Order'!Y480=\"\",\"\",'1. Order'!Y480)","v":""},{"$f":"IF('1. Order'!Z480=\"\",\"\",'1. Order'!Z480)","v":""},{"$f":"IF('1. Order'!AA480=\"\",\"\",'1. Order'!AA480)","v":""},null,{"$f":"IF('1. Order'!AS480=\"\",\"\",'1. Order'!AS480)","v":""},{"$f":"IF('1. Order'!AT480=\"\",\"\",'1. Order'!AT480)","v":""},null,null,null,null,null,null,null,{"$f":"IF('1. Order'!AX480=\"\",\"\",'1. Order'!AX480)","v":""},{"$f":"IF('1. Order'!AY480=\"\",\"\",'1. Order'!AY480)","v":""},{"$f":"IF('1. Order'!AZ480=\"\",\"\",'1. Order'!AZ480)","v":""},{"$f":"IF('1. Order'!BA480=\"\",\"\",'1. Order'!BA480)","v":""},{"$f":"IF('1. Order'!BC480=\"\",\"\",'1. Order'!BC480)","v":""},{"$f":"IF('1. Order'!BD480=\"\",\"\",'1. Order'!BD480)","v":6},{"$f":"IF('1. Order'!BE480=\"\",\"\",'1. Order'!BE480)","v":"None"},{"$f":"IF('1. Order'!BF480=\"\",\"\",'1. Order'!BF480)","v":"Parcel"},{"$f":"IF('1. Order'!BG480=\"\",\"\",'1. Order'!BG480)","v":"ZWO"}]
[{"$f":"IF('1. Order'!F481=\"\",\"\",'1. Order'!F481)","v":""},{"$f":"IF('1. Order'!G481=\"\",\"\",'1. Order'!G481)","v":""},{"$f":"IF('1. Order'!H481=\"\",\"\",'1. Order'!H481)","v":""},{"$f":"IF('1. Order'!I481=\"\",\"\",'1. Order'!I481)","v":""},{"$f":"IF('1. Order'!J481=\"\",\"\",'1. Order'!J481)","v":""},{"$f":"IF('1. Order'!K481=\"\",\"\",'1. Order'!K481)","v":""},{"$f":"IF('1. Order'!L481=\"\",\"\",'1. Order'!L481)","v":""},{"$f":"IF('1. Order'!M481=\"\",\"\",'1. Order'!M481)","v":""},{"$f":"IF('1. Order'!N481=\"\",\"\",'1. Order'!N481)","v":""},{"$f":"IF('1. Order'!O481=\"\",\"\",'1. Order'!O481)","v":{"$error":"#N/A"}},{"$f":"IF('1. Order'!P481=\"\",\"\",'1. Order'!P481)","v":{"$error":"#N/A"}},{"$f":"IF('1. Order'!Q481=\"\",\"\",'1. Order'!Q481)","v":""},{"$f":"IF('1. Order'!R481=\"\",\"\",'1. Order'!R481)","v":""},{"$f":"IF('1. Order'!S481=\"\",\"\",'1. Order'!S481)","v":""},{"$f":"IF('1. Order'!V481=\"\",\"\",'1. Order'!V481)","v":""},{"$f":"IF('1. Order'!W481=\"\",\"\",'1. Order'!W481)","v":""},{"$f":"IF('1. Order'!X481=\"\",\"\",'1. Order'!X481)","v":"EUR"},{"$f":"IF('1. Order'!Y481=\"\",\"\",'1. Order'!Y481)","v":""},{"$f":"IF('1. Order'!Z481=\"\",\"\",'1. Order'!Z481)","v":""},{"$f":"IF('1. Order'!AA481=\"\",\"\",'1. Order'!AA481)","v":""},null,{"$f":"IF('1. Order'!AS481=\"\",\"\",'1. Order'!AS481)","v":""},{"$f":"IF('1. Order'!AT481=\"\",\"\",'1. Order'!AT481)","v":""},null,null,null,null,null,null,null,{"$f":"IF('1. Order'!AX481=\"\",\"\",'1. Order'!AX481)","v":""},{"$f":"IF('1. Order'!AY481=\"\",\"\",'1. Order'!AY481)","v":""},{"$f":"IF('1. Order'!AZ481=\"\",\"\",'1. Order'!AZ481)","v":""},{"$f":"IF('1. Order'!BA481=\"\",\"\",'1. Order'!BA481)","v":""},{"$f":"IF('1. Order'!BC481=\"\",\"\",'1. Order'!BC481)","v":""},{"$f":"IF('1. Order'!BD481=\"\",\"\",'1. Order'!BD481)","v":6},{"$f":"IF('1. Order'!BE481=\"\",\"\",'1. Order'!BE481)","v":"None"},{"$f":"IF('1. Order'!BF481=\"\",\"\",'1. Order'!BF481)","v":"Parcel"},{"$f":"IF('1. Order'!BG481=\"\",\"\",'1. Order'!BG481)","v":"ZWO"}]
[{"$f":"IF('1. Order'!F482=\"\",\"\",'1. Order'!F482)","v":""},{"$f":"IF('1. Order'!G482=\"\",\"\",'1. Order'!G482)","v":""},{"$f":"IF('1. Order'!H482=\"\",\"\",'1. Order'!H482)","v":""},{"$f":"IF('1. Order'!I482=\"\",\"\",'1. Order'!I482)","v":""},{"$f":"IF('1. Order'!J482=\"\",\"\",'1. Order'!J482)","v":""},{"$f":"IF('1. Order'!K482=\"\",\"\",'1. Order'!K482)","v":""},{"$f":"IF('1. Order'!L482=\"\",\"\",'1. Order'!L482)","v":""},{"$f":"IF('1. Order'!M482=\"\",\"\",'1. Order'!M482)","v":""},{"$f":"IF('1. Order'!N482=\"\",\"\",'1. Order'!N482)","v":""},{"$f":"IF('1. Order'!O482=\"\",\"\",'1. Order'!O482)","v":{"$error":"#N/A"}},{"$f":"IF('1. Order'!P482=\"\",\"\",'1. Order'!P482)","v":{"$error":"#N/A"}},{"$f":"IF('1. Order'!Q482=\"\",\"\",'1. Order'!Q482)","v":""},{"$f":"IF('1. Order'!R482=\"\",\"\",'1. Order'!R482)","v":""},{"$f":"IF('1. Order'!S482=\"\",\"\",'1. Order'!S482)","v":""},{"$f":"IF('1. Order'!V482=\"\",\"\",'1. Order'!V482)","v":""},{"$f":"IF('1. Order'!W482=\"\",\"\",'1. Order'!W482)","v":""},{"$f":"IF('1. Order'!X482=\"\",\"\",'1. Order'!X482)","v":"EUR"},{"$f":"IF('1. Order'!Y482=\"\",\"\",'1. Order'!Y482)","v":""},{"$f":"IF('1. Order'!Z482=\"\",\"\",'1. Order'!Z482)","v":""},{"$f":"IF('1. Order'!AA482=\"\",\"\",'1. Order'!AA482)","v":""},null,{"$f":"IF('1. Order'!AS482=\"\",\"\",'1. Order'!AS482)","v":""},{"$f":"IF('1. Order'!AT482=\"\",\"\",'1. Order'!AT482)","v":""},null,null,null,null,null,null,null,{"$f":"IF('1. Order'!AX482=\"\",\"\",'1. Order'!AX482)","v":""},{"$f":"IF('1. Order'!AY482=\"\",\"\",'1. Order'!AY482)","v":""},{"$f":"IF('1. Order'!AZ482=\"\",\"\",'1. Order'!AZ482)","v":""},{"$f":"IF('1. Order'!BA482=\"\",\"\",'1. Order'!BA482)","v":""},{"$f":"IF('1. Order'!BC482=\"\",\"\",'1. Order'!BC482)","v":""},{"$f":"IF('1. Order'!BD482=\"\",\"\",'1. Order'!BD482)","v":6},{"$f":"IF('1. Order'!BE482=\"\",\"\",'1. Order'!BE482)","v":"None"},{"$f":"IF('1. Order'!BF482=\"\",\"\",'1. Order'!BF482)","v":"Parcel"},{"$f":"IF('1. Order'!BG482=\"\",\"\",'1. Order'!BG482)","v":"ZWO"}]
[{"$f":"IF('1. Order'!F483=\"\",\"\",'1. Order'!F483)","v":""},{"$f":"IF('1. Order'!G483=\"\",\"\",'1. Order'!G483)","v":""},{"$f":"IF('1. Order'!H483=\"\",\"\",'1. Order'!H483)","v":""},{"$f":"IF('1. Order'!I483=\"\",\"\",'1. Order'!I483)","v":""},{"$f":"IF('1. Order'!J483=\"\",\"\",'1. Order'!J483)","v":""},{"$f":"IF('1. Order'!K483=\"\",\"\",'1. Order'!K483)","v":""},{"$f":"IF('1. Order'!L483=\"\",\"\",'1. Order'!L483)","v":""},{"$f":"IF('1. Order'!M483=\"\",\"\",'1. Order'!M483)","v":""},{"$f":"IF('1. Order'!N483=\"\",\"\",'1. Order'!N483)","v":""},{"$f":"IF('1. Order'!O483=\"\",\"\",'1. Order'!O483)","v":{"$error":"#N/A"}},{"$f":"IF('1. Order'!P483=\"\",\"\",'1. Order'!P483)","v":{"$error":"#N/A"}},{"$f":"IF('1. Order'!Q483=\"\",\"\",'1. Order'!Q483)","v":""},{"$f":"IF('1. Order'!R483=\"\",\"\",'1. Order'!R483)","v":""},{"$f":"IF('1. Order'!S483=\"\",\"\",'1. Order'!S483)","v":""},{"$f":"IF('1. Order'!V483=\"\",\"\",'1. Order'!V483)","v":""},{"$f":"IF('1. Order'!W483=\"\",\"\",'1. Order'!W483)","v":""},{"$f":"IF('1. Order'!X483=\"\",\"\",'1. Order'!X483)","v":"EUR"},{"$f":"IF('1. Order'!Y483=\"\",\"\",'1. Order'!Y483)","v":""},{"$f":"IF('1. Order'!Z483=\"\",\"\",'1. Order'!Z483)","v":""},{"$f":"IF('1. Order'!AA483=\"\",\"\",'1. Order'!AA483)","v":""},null,{"$f":"IF('1. Order'!AS483=\"\",\"\",'1. Order'!AS483)","v":""},{"$f":"IF('1. Order'!AT483=\"\",\"\",'1. Order'!AT483)","v":""},null,null,null,null,null,null,null,{"$f":"IF('1. Order'!AX483=\"\",\"\",'1. Order'!AX483)","v":""},{"$f":"IF('1. Order'!AY483=\"\",\"\",'1. Order'!AY483)","v":""},{"$f":"IF('1. Order'!AZ483=\"\",\"\",'1. Order'!AZ483)","v":""},{"$f":"IF('1. Order'!BA483=\"\",\"\",'1. Order'!BA483)","v":""},{"$f":"IF('1. Order'!BC483=\"\",\"\",'1. Order'!BC483)","v":""},{"$f":"IF('1. Order'!BD483=\"\",\"\",'1. Order'!BD483)","v":6},{"$f":"IF('1. Order'!BE483=\"\",\"\",'1. Order'!BE483)","v":"None"},{"$f":"IF('1. Order'!BF483=\"\",\"\",'1. Order'!BF483)","v":"Parcel"},{"$f":"IF('1. Order'!BG483=\"\",\"\",'1. Order'!BG483)","v":"ZWO"}]
[{"$f":"IF('1. Order'!F484=\"\",\"\",'1. Order'!F484)","v":""},{"$f":"IF('1. Order'!G484=\"\",\"\",'1. Order'!G484)","v":""},{"$f":"IF('1. Order'!H484=\"\",\"\",'1. Order'!H484)","v":""},{"$f":"IF('1. Order'!I484=\"\",\"\",'1. Order'!I484)","v":""},{"$f":"IF('1. Order'!J484=\"\",\"\",'1. Order'!J484)","v":""},{"$f":"IF('1. Order'!K484=\"\",\"\",'1. Order'!K484)","v":""},{"$f":"IF('1. Order'!L484=\"\",\"\",'1. Order'!L484)","v":""},{"$f":"IF('1. Order'!M484=\"\",\"\",'1. Order'!M484)","v":""},{"$f":"IF('1. Order'!N484=\"\",\"\",'1. Order'!N484)","v":""},{"$f":"IF('1. Order'!O484=\"\",\"\",'1. Order'!O484)","v":{"$error":"#N/A"}},{"$f":"IF('1. Order'!P484=\"\",\"\",'1. Order'!P484)","v":{"$error":"#N/A"}},{"$f":"IF('1. Order'!Q484=\"\",\"\",'1. Order'!Q484)","v":""},{"$f":"IF('1. Order'!R484=\"\",\"\",'1. Order'!R484)","v":""},{"$f":"IF('1. Order'!S484=\"\",\"\",'1. Order'!S484)","v":""},{"$f":"IF('1. Order'!V484=\"\",\"\",'1. Order'!V484)","v":""},{"$f":"IF('1. Order'!W484=\"\",\"\",'1. Order'!W484)","v":""},{"$f":"IF('1. Order'!X484=\"\",\"\",'1. Order'!X484)","v":"EUR"},{"$f":"IF('1. Order'!Y484=\"\",\"\",'1. Order'!Y484)","v":""},{"$f":"IF('1. Order'!Z484=\"\",\"\",'1. Order'!Z484)","v":""},{"$f":"IF('1. Order'!AA484=\"\",\"\",'1. Order'!AA484)","v":""},null,{"$f":"IF('1. Order'!AS484=\"\",\"\",'1. Order'!AS484)","v":""},{"$f":"IF('1. Order'!AT484=\"\",\"\",'1. Order'!AT484)","v":""},null,null,null,null,null,null,null,{"$f":"IF('1. Order'!AX484=\"\",\"\",'1. Order'!AX484)","v":""},{"$f":"IF('1. Order'!AY484=\"\",\"\",'1. Order'!AY484)","v":""},{"$f":"IF('1. Order'!AZ484=\"\",\"\",'1. Order'!AZ484)","v":""},{"$f":"IF('1. Order'!BA484=\"\",\"\",'1. Order'!BA484)","v":""},{"$f":"IF('1. Order'!BC484=\"\",\"\",'1. Order'!BC484)","v":""},{"$f":"IF('1. Order'!BD484=\"\",\"\",'1. Order'!BD484)","v":6},{"$f":"IF('1. Order'!BE484=\"\",\"\",'1. Order'!BE484)","v":"None"},{"$f":"IF('1. Order'!BF484=\"\",\"\",'1. Order'!BF484)","v":"Parcel"},{"$f":"IF('1. Order'!BG484=\"\",\"\",'1. Order'!BG484)","v":"ZWO"}]
[{"$f":"IF('1. Order'!F485=\"\",\"\",'1. Order'!F485)","v":""},{"$f":"IF('1. Order'!G485=\"\",\"\",'1. Order'!G485)","v":""},{"$f":"IF('1. Order'!H485=\"\",\"\",'1. Order'!H485)","v":""},{"$f":"IF('1. Order'!I485=\"\",\"\",'1. Order'!I485)","v":""},{"$f":"IF('1. Order'!J485=\"\",\"\",'1. Order'!J485)","v":""},{"$f":"IF('1. Order'!K485=\"\",\"\",'1. Order'!K485)","v":""},{"$f":"IF('1. Order'!L485=\"\",\"\",'1. Order'!L485)","v":""},{"$f":"IF('1. Order'!M485=\"\",\"\",'1. Order'!M485)","v":""},{"$f":"IF('1. Order'!N485=\"\",\"\",'1. Order'!N485)","v":""},{"$f":"IF('1. Order'!O485=\"\",\"\",'1. Order'!O485)","v":{"$error":"#N/A"}},{"$f":"IF('1. Order'!P485=\"\",\"\",'1. Order'!P485)","v":{"$error":"#N/A"}},{"$f":"IF('1. Order'!Q485=\"\",\"\",'1. Order'!Q485)","v":""},{"$f":"IF('1. Order'!R485=\"\",\"\",'1. Order'!R485)","v":""},{"$f":"IF('1. Order'!S485=\"\",\"\",'1. Order'!S485)","v":""},{"$f":"IF('1. Order'!V485=\"\",\"\",'1. Order'!V485)","v":""},{"$f":"IF('1. Order'!W485=\"\",\"\",'1. Order'!W485)","v":""},{"$f":"IF('1. Order'!X485=\"\",\"\",'1. Order'!X485)","v":"EUR"},{"$f":"IF('1. Order'!Y485=\"\",\"\",'1. Order'!Y485)","v":""},{"$f":"IF('1. Order'!Z485=\"\",\"\",'1. Order'!Z485)","v":""},{"$f":"IF('1. Order'!AA485=\"\",\"\",'1. Order'!AA485)","v":""},null,{"$f":"IF('1. Order'!AS485=\"\",\"\",'1. Order'!AS485)","v":""},{"$f":"IF('1. Order'!AT485=\"\",\"\",'1. Order'!AT485)","v":""},null,null,null,null,null,null,null,{"$f":"IF('1. Order'!AX485=\"\",\"\",'1. Order'!AX485)","v":""},{"$f":"IF('1. Order'!AY485=\"\",\"\",'1. Order'!AY485)","v":""},{"$f":"IF('1. Order'!AZ485=\"\",\"\",'1. Order'!AZ485)","v":""},{"$f":"IF('1. Order'!BA485=\"\",\"\",'1. Order'!BA485)","v":""},{"$f":"IF('1. Order'!BC485=\"\",\"\",'1. Order'!BC485)","v":""},{"$f":"IF('1. Order'!BD485=\"\",\"\",'1. Order'!BD485)","v":6},{"$f":"IF('1. Order'!BE485=\"\",\"\",'1. Order'!BE485)","v":"None"},{"$f":"IF('1. Order'!BF485=\"\",\"\",'1. Order'!BF485)","v":"Parcel"},{"$f":"IF('1. Order'!BG485=\"\",\"\",'1. Order'!BG485)","v":"ZWO"}]
[{"$f":"IF('1. Order'!F486=\"\",\"\",'1. Order'!F486)","v":""},{"$f":"IF('1. Order'!G486=\"\",\"\",'1. Order'!G486)","v":""},{"$f":"IF('1. Order'!H486=\"\",\"\",'1. Order'!H486)","v":""},{"$f":"IF('1. Order'!I486=\"\",\"\",'1. Order'!I486)","v":""},{"$f":"IF('1. Order'!J486=\"\",\"\",'1. Order'!J486)","v":""},{"$f":"IF('1. Order'!K486=\"\",\"\",'1. Order'!K486)","v":""},{"$f":"IF('1. Order'!L486=\"\",\"\",'1. Order'!L486)","v":""},{"$f":"IF('1. Order'!M486=\"\",\"\",'1. Order'!M486)","v":""},{"$f":"IF('1. Order'!N486=\"\",\"\",'1. Order'!N486)","v":""},{"$f":"IF('1. Order'!O486=\"\",\"\",'1. Order'!O486)","v":{"$error":"#N/A"}},{"$f":"IF('1. Order'!P486=\"\",\"\",'1. Order'!P486)","v":{"$error":"#N/A"}},{"$f":"IF('1. Order'!Q486=\"\",\"\",'1. Order'!Q486)","v":""},{"$f":"IF('1. Order'!R486=\"\",\"\",'1. Order'!R486)","v":""},{"$f":"IF('1. Order'!S486=\"\",\"\",'1. Order'!S486)","v":""},{"$f":"IF('1. Order'!V486=\"\",\"\",'1. Order'!V486)","v":""},{"$f":"IF('1. Order'!W486=\"\",\"\",'1. Order'!W486)","v":""},{"$f":"IF('1. Order'!X486=\"\",\"\",'1. Order'!X486)","v":"EUR"},{"$f":"IF('1. Order'!Y486=\"\",\"\",'1. Order'!Y486)","v":""},{"$f":"IF('1. Order'!Z486=\"\",\"\",'1. Order'!Z486)","v":""},{"$f":"IF('1. Order'!AA486=\"\",\"\",'1. Order'!AA486)","v":""},null,{"$f":"IF('1. Order'!AS486=\"\",\"\",'1. Order'!AS486)","v":""},{"$f":"IF('1. Order'!AT486=\"\",\"\",'1. Order'!AT486)","v":""},null,null,null,null,null,null,null,{"$f":"IF('1. Order'!AX486=\"\",\"\",'1. Order'!AX486)","v":""},{"$f":"IF('1. Order'!AY486=\"\",\"\",'1. Order'!AY486)","v":""},{"$f":"IF('1. Order'!AZ486=\"\",\"\",'1. Order'!AZ486)","v":""},{"$f":"IF('1. Order'!BA486=\"\",\"\",'1. Order'!BA486)","v":""},{"$f":"IF('1. Order'!BC486=\"\",\"\",'1. Order'!BC486)","v":""},{"$f":"IF('1. Order'!BD486=\"\",\"\",'1. Order'!BD486)","v":6},{"$f":"IF('1. Order'!BE486=\"\",\"\",'1. Order'!BE486)","v":"None"},{"$f":"IF('1. Order'!BF486=\"\",\"\",'1. Order'!BF486)","v":"Parcel"},{"$f":"IF('1. Order'!BG486=\"\",\"\",'1. Order'!BG486)","v":"ZWO"}]
[{"$f":"IF('1. Order'!F487=\"\",\"\",'1. Order'!F487)","v":""},{"$f":"IF('1. Order'!G487=\"\",\"\",'1. Order'!G487)","v":""},{"$f":"IF('1. Order'!H487=\"\",\"\",'1. Order'!H487)","v":""},{"$f":"IF('1. Order'!I487=\"\",\"\",'1. Order'!I487)","v":""},{"$f":"IF('1. Order'!J487=\"\",\"\",'1. Order'!J487)","v":""},{"$f":"IF('1. Order'!K487=\"\",\"\",'1. Order'!K487)","v":""},{"$f":"IF('1. Order'!L487=\"\",\"\",'1. Order'!L487)","v":""},{"$f":"IF('1. Order'!M487=\"\",\"\",'1. Order'!M487)","v":""},{"$f":"IF('1. Order'!N487=\"\",\"\",'1. Order'!N487)","v":""},{"$f":"IF('1. Order'!O487=\"\",\"\",'1. Order'!O487)","v":{"$error":"#N/A"}},{"$f":"IF('1. Order'!P487=\"\",\"\",'1. Order'!P487)","v":{"$error":"#N/A"}},{"$f":"IF('1. Order'!Q487=\"\",\"\",'1. Order'!Q487)","v":""},{"$f":"IF('1. Order'!R487=\"\",\"\",'1. Order'!R487)","v":""},{"$f":"IF('1. Order'!S487=\"\",\"\",'1. Order'!S487)","v":""},{"$f":"IF('1. Order'!V487=\"\",\"\",'1. Order'!V487)","v":""},{"$f":"IF('1. Order'!W487=\"\",\"\",'1. Order'!W487)","v":""},{"$f":"IF('1. Order'!X487=\"\",\"\",'1. Order'!X487)","v":"EUR"},{"$f":"IF('1. Order'!Y487=\"\",\"\",'1. Order'!Y487)","v":""},{"$f":"IF('1. Order'!Z487=\"\",\"\",'1. Order'!Z487)","v":""},{"$f":"IF('1. Order'!AA487=\"\",\"\",'1. Order'!AA487)","v":""},null,{"$f":"IF('1. Order'!AS487=\"\",\"\",'1. Order'!AS487)","v":""},{"$f":"IF('1. Order'!AT487=\"\",\"\",'1. Order'!AT487)","v":""},null,null,null,null,null,null,null,{"$f":"IF('1. Order'!AX487=\"\",\"\",'1. Order'!AX487)","v":""},{"$f":"IF('1. Order'!AY487=\"\",\"\",'1. Order'!AY487)","v":""},{"$f":"IF('1. Order'!AZ487=\"\",\"\",'1. Order'!AZ487)","v":""},{"$f":"IF('1. Order'!BA487=\"\",\"\",'1. Order'!BA487)","v":""},{"$f":"IF('1. Order'!BC487=\"\",\"\",'1. Order'!BC487)","v":""},{"$f":"IF('1. Order'!BD487=\"\",\"\",'1. Order'!BD487)","v":6},{"$f":"IF('1. Order'!BE487=\"\",\"\",'1. Order'!BE487)","v":"None"},{"$f":"IF('1. Order'!BF487=\"\",\"\",'1. Order'!BF487)","v":"Parcel"},{"$f":"IF('1. Order'!BG487=\"\",\"\",'1. Order'!BG487)","v":"ZWO"}]
[{"$f":"IF('1. Order'!F488=\"\",\"\",'1. Order'!F488)","v":""},{"$f":"IF('1. Order'!G488=\"\",\"\",'1. Order'!G488)","v":""},{"$f":"IF('1. Order'!H488=\"\",\"\",'1. Order'!H488)","v":""},{"$f":"IF('1. Order'!I488=\"\",\"\",'1. Order'!I488)","v":""},{"$f":"IF('1. Order'!J488=\"\",\"\",'1. Order'!J488)","v":""},{"$f":"IF('1. Order'!K488=\"\",\"\",'1. Order'!K488)","v":""},{"$f":"IF('1. Order'!L488=\"\",\"\",'1. Order'!L488)","v":""},{"$f":"IF('1. Order'!M488=\"\",\"\",'1. Order'!M488)","v":""},{"$f":"IF('1. Order'!N488=\"\",\"\",'1. Order'!N488)","v":""},{"$f":"IF('1. Order'!O488=\"\",\"\",'1. Order'!O488)","v":{"$error":"#N/A"}},{"$f":"IF('1. Order'!P488=\"\",\"\",'1. Order'!P488)","v":{"$error":"#N/A"}},{"$f":"IF('1. Order'!Q488=\"\",\"\",'1. Order'!Q488)","v":""},{"$f":"IF('1. Order'!R488=\"\",\"\",'1. Order'!R488)","v":""},{"$f":"IF('1. Order'!S488=\"\",\"\",'1. Order'!S488)","v":""},{"$f":"IF('1. Order'!V488=\"\",\"\",'1. Order'!V488)","v":""},{"$f":"IF('1. Order'!W488=\"\",\"\",'1. Order'!W488)","v":""},{"$f":"IF('1. Order'!X488=\"\",\"\",'1. Order'!X488)","v":"EUR"},{"$f":"IF('1. Order'!Y488=\"\",\"\",'1. Order'!Y488)","v":""},{"$f":"IF('1. Order'!Z488=\"\",\"\",'1. Order'!Z488)","v":""},{"$f":"IF('1. Order'!AA488=\"\",\"\",'1. Order'!AA488)","v":""},null,{"$f":"IF('1. Order'!AS488=\"\",\"\",'1. Order'!AS488)","v":""},{"$f":"IF('1. Order'!AT488=\"\",\"\",'1. Order'!AT488)","v":""},null,null,null,null,null,null,null,{"$f":"IF('1. Order'!AX488=\"\",\"\",'1. Order'!AX488)","v":""},{"$f":"IF('1. Order'!AY488=\"\",\"\",'1. Order'!AY488)","v":""},{"$f":"IF('1. Order'!AZ488=\"\",\"\",'1. Order'!AZ488)","v":""},{"$f":"IF('1. Order'!BA488=\"\",\"\",'1. Order'!BA488)","v":""},{"$f":"IF('1. Order'!BC488=\"\",\"\",'1. Order'!BC488)","v":""},{"$f":"IF('1. Order'!BD488=\"\",\"\",'1. Order'!BD488)","v":6},{"$f":"IF('1. Order'!BE488=\"\",\"\",'1. Order'!BE488)","v":"None"},{"$f":"IF('1. Order'!BF488=\"\",\"\",'1. Order'!BF488)","v":"Parcel"},{"$f":"IF('1. Order'!BG488=\"\",\"\",'1. Order'!BG488)","v":"ZWO"}]
[{"$f":"IF('1. Order'!F489=\"\",\"\",'1. Order'!F489)","v":""},{"$f":"IF('1. Order'!G489=\"\",\"\",'1. Order'!G489)","v":""},{"$f":"IF('1. Order'!H489=\"\",\"\",'1. Order'!H489)","v":""},{"$f":"IF('1. Order'!I489=\"\",\"\",'1. Order'!I489)","v":""},{"$f":"IF('1. Order'!J489=\"\",\"\",'1. Order'!J489)","v":""},{"$f":"IF('1. Order'!K489=\"\",\"\",'1. Order'!K489)","v":""},{"$f":"IF('1. Order'!L489=\"\",\"\",'1. Order'!L489)","v":""},{"$f":"IF('1. Order'!M489=\"\",\"\",'1. Order'!M489)","v":""},{"$f":"IF('1. Order'!N489=\"\",\"\",'1. Order'!N489)","v":""},{"$f":"IF('1. Order'!O489=\"\",\"\",'1. Order'!O489)","v":{"$error":"#N/A"}},{"$f":"IF('1. Order'!P489=\"\",\"\",'1. Order'!P489)","v":{"$error":"#N/A"}},{"$f":"IF('1. Order'!Q489=\"\",\"\",'1. Order'!Q489)","v":""},{"$f":"IF('1. Order'!R489=\"\",\"\",'1. Order'!R489)","v":""},{"$f":"IF('1. Order'!S489=\"\",\"\",'1. Order'!S489)","v":""},{"$f":"IF('1. Order'!V489=\"\",\"\",'1. Order'!V489)","v":""},{"$f":"IF('1. Order'!W489=\"\",\"\",'1. Order'!W489)","v":""},{"$f":"IF('1. Order'!X489=\"\",\"\",'1. Order'!X489)","v":"EUR"},{"$f":"IF('1. Order'!Y489=\"\",\"\",'1. Order'!Y489)","v":""},{"$f":"IF('1. Order'!Z489=\"\",\"\",'1. Order'!Z489)","v":""},{"$f":"IF('1. Order'!AA489=\"\",\"\",'1. Order'!AA489)","v":""},null,{"$f":"IF('1. Order'!AS489=\"\",\"\",'1. Order'!AS489)","v":""},{"$f":"IF('1. Order'!AT489=\"\",\"\",'1. Order'!AT489)","v":""},null,null,null,null,null,null,null,{"$f":"IF('1. Order'!AX489=\"\",\"\",'1. Order'!AX489)","v":""},{"$f":"IF('1. Order'!AY489=\"\",\"\",'1. Order'!AY489)","v":""},{"$f":"IF('1. Order'!AZ489=\"\",\"\",'1. Order'!AZ489)","v":""},{"$f":"IF('1. Order'!BA489=\"\",\"\",'1. Order'!BA489)","v":""},{"$f":"IF('1. Order'!BC489=\"\",\"\",'1. Order'!BC489)","v":""},{"$f":"IF('1. Order'!BD489=\"\",\"\",'1. Order'!BD489)","v":6},{"$f":"IF('1. Order'!BE489=\"\",\"\",'1. Order'!BE489)","v":"None"},{"$f":"IF('1. Order'!BF489=\"\",\"\",'1. Order'!BF489)","v":"Parcel"},{"$f":"IF('1. Order'!BG489=\"\",\"\",'1. Order'!BG489)","v":"ZWO"}]
[{"$f":"IF('1. Order'!F490=\"\",\"\",'1. Order'!F490)","v":""},{"$f":"IF('1. Order'!G490=\"\",\"\",'1. Order'!G490)","v":""},{"$f":"IF('1. Order'!H490=\"\",\"\",'1. Order'!H490)","v":""},{"$f":"IF('1. Order'!I490=\"\",\"\",'1. Order'!I490)","v":""},{"$f":"IF('1. Order'!J490=\"\",\"\",'1. Order'!J490)","v":""},{"$f":"IF('1. Order'!K490=\"\",\"\",'1. Order'!K490)","v":""},{"$f":"IF('1. Order'!L490=\"\",\"\",'1. Order'!L490)","v":""},{"$f":"IF('1. Order'!M490=\"\",\"\",'1. Order'!M490)","v":""},{"$f":"IF('1. Order'!N490=\"\",\"\",'1. Order'!N490)","v":""},{"$f":"IF('1. Order'!O490=\"\",\"\",'1. Order'!O490)","v":{"$error":"#N/A"}},{"$f":"IF('1. Order'!P490=\"\",\"\",'1. Order'!P490)","v":{"$error":"#N/A"}},{"$f":"IF('1. Order'!Q490=\"\",\"\",'1. Order'!Q490)","v":""},{"$f":"IF('1. Order'!R490=\"\",\"\",'1. Order'!R490)","v":""},{"$f":"IF('1. Order'!S490=\"\",\"\",'1. Order'!S490)","v":""},{"$f":"IF('1. Order'!V490=\"\",\"\",'1. Order'!V490)","v":""},{"$f":"IF('1. Order'!W490=\"\",\"\",'1. Order'!W490)","v":""},{"$f":"IF('1. Order'!X490=\"\",\"\",'1. Order'!X490)","v":"EUR"},{"$f":"IF('1. Order'!Y490=\"\",\"\",'1. Order'!Y490)","v":""},{"$f":"IF('1. Order'!Z490=\"\",\"\",'1. Order'!Z490)","v":""},{"$f":"IF('1. Order'!AA490=\"\",\"\",'1. Order'!AA490)","v":""},null,{"$f":"IF('1. Order'!AS490=\"\",\"\",'1. Order'!AS490)","v":""},{"$f":"IF('1. Order'!AT490=\"\",\"\",'1. Order'!AT490)","v":""},null,null,null,null,null,null,null,{"$f":"IF('1. Order'!AX490=\"\",\"\",'1. Order'!AX490)","v":""},{"$f":"IF('1. Order'!AY490=\"\",\"\",'1. Order'!AY490)","v":""},{"$f":"IF('1. Order'!AZ490=\"\",\"\",'1. Order'!AZ490)","v":""},{"$f":"IF('1. Order'!BA490=\"\",\"\",'1. Order'!BA490)","v":""},{"$f":"IF('1. Order'!BC490=\"\",\"\",'1. Order'!BC490)","v":""},{"$f":"IF('1. Order'!BD490=\"\",\"\",'1. Order'!BD490)","v":6},{"$f":"IF('1. Order'!BE490=\"\",\"\",'1. Order'!BE490)","v":"None"},{"$f":"IF('1. Order'!BF490=\"\",\"\",'1. Order'!BF490)","v":"Parcel"},{"$f":"IF('1. Order'!BG490=\"\",\"\",'1. Order'!BG490)","v":"ZWO"}]
[{"$f":"IF('1. Order'!F491=\"\",\"\",'1. Order'!F491)","v":""},{"$f":"IF('1. Order'!G491=\"\",\"\",'1. Order'!G491)","v":""},{"$f":"IF('1. Order'!H491=\"\",\"\",'1. Order'!H491)","v":""},{"$f":"IF('1. Order'!I491=\"\",\"\",'1. Order'!I491)","v":""},{"$f":"IF('1. Order'!J491=\"\",\"\",'1. Order'!J491)","v":""},{"$f":"IF('1. Order'!K491=\"\",\"\",'1. Order'!K491)","v":""},{"$f":"IF('1. Order'!L491=\"\",\"\",'1. Order'!L491)","v":""},{"$f":"IF('1. Order'!M491=\"\",\"\",'1. Order'!M491)","v":""},{"$f":"IF('1. Order'!N491=\"\",\"\",'1. Order'!N491)","v":""},{"$f":"IF('1. Order'!O491=\"\",\"\",'1. Order'!O491)","v":{"$error":"#N/A"}},{"$f":"IF('1. Order'!P491=\"\",\"\",'1. Order'!P491)","v":{"$error":"#N/A"}},{"$f":"IF('1. Order'!Q491=\"\",\"\",'1. Order'!Q491)","v":""},{"$f":"IF('1. Order'!R491=\"\",\"\",'1. Order'!R491)","v":""},{"$f":"IF('1. Order'!S491=\"\",\"\",'1. Order'!S491)","v":""},{"$f":"IF('1. Order'!V491=\"\",\"\",'1. Order'!V491)","v":""},{"$f":"IF('1. Order'!W491=\"\",\"\",'1. Order'!W491)","v":""},{"$f":"IF('1. Order'!X491=\"\",\"\",'1. Order'!X491)","v":"EUR"},{"$f":"IF('1. Order'!Y491=\"\",\"\",'1. Order'!Y491)","v":""},{"$f":"IF('1. Order'!Z491=\"\",\"\",'1. Order'!Z491)","v":""},{"$f":"IF('1. Order'!AA491=\"\",\"\",'1. Order'!AA491)","v":""},null,{"$f":"IF('1. Order'!AS491=\"\",\"\",'1. Order'!AS491)","v":""},{"$f":"IF('1. Order'!AT491=\"\",\"\",'1. Order'!AT491)","v":""},null,null,null,null,null,null,null,{"$f":"IF('1. Order'!AX491=\"\",\"\",'1. Order'!AX491)","v":""},{"$f":"IF('1. Order'!AY491=\"\",\"\",'1. Order'!AY491)","v":""},{"$f":"IF('1. Order'!AZ491=\"\",\"\",'1. Order'!AZ491)","v":""},{"$f":"IF('1. Order'!BA491=\"\",\"\",'1. Order'!BA491)","v":""},{"$f":"IF('1. Order'!BC491=\"\",\"\",'1. Order'!BC491)","v":""},{"$f":"IF('1. Order'!BD491=\"\",\"\",'1. Order'!BD491)","v":6},{"$f":"IF('1. Order'!BE491=\"\",\"\",'1. Order'!BE491)","v":"None"},{"$f":"IF('1. Order'!BF491=\"\",\"\",'1. Order'!BF491)","v":"Parcel"},{"$f":"IF('1. Order'!BG491=\"\",\"\",'1. Order'!BG491)","v":"ZWO"}]
[{"$f":"IF('1. Order'!F492=\"\",\"\",'1. Order'!F492)","v":""},{"$f":"IF('1. Order'!G492=\"\",\"\",'1. Order'!G492)","v":""},{"$f":"IF('1. Order'!H492=\"\",\"\",'1. Order'!H492)","v":""},{"$f":"IF('1. Order'!I492=\"\",\"\",'1. Order'!I492)","v":""},{"$f":"IF('1. Order'!J492=\"\",\"\",'1. Order'!J492)","v":""},{"$f":"IF('1. Order'!K492=\"\",\"\",'1. Order'!K492)","v":""},{"$f":"IF('1. Order'!L492=\"\",\"\",'1. Order'!L492)","v":""},{"$f":"IF('1. Order'!M492=\"\",\"\",'1. Order'!M492)","v":""},{"$f":"IF('1. Order'!N492=\"\",\"\",'1. Order'!N492)","v":""},{"$f":"IF('1. Order'!O492=\"\",\"\",'1. Order'!O492)","v":{"$error":"#N/A"}},{"$f":"IF('1. Order'!P492=\"\",\"\",'1. Order'!P492)","v":{"$error":"#N/A"}},{"$f":"IF('1. Order'!Q492=\"\",\"\",'1. Order'!Q492)","v":""},{"$f":"IF('1. Order'!R492=\"\",\"\",'1. Order'!R492)","v":""},{"$f":"IF('1. Order'!S492=\"\",\"\",'1. Order'!S492)","v":""},{"$f":"IF('1. Order'!V492=\"\",\"\",'1. Order'!V492)","v":""},{"$f":"IF('1. Order'!W492=\"\",\"\",'1. Order'!W492)","v":""},{"$f":"IF('1. Order'!X492=\"\",\"\",'1. Order'!X492)","v":"EUR"},{"$f":"IF('1. Order'!Y492=\"\",\"\",'1. Order'!Y492)","v":""},{"$f":"IF('1. Order'!Z492=\"\",\"\",'1. Order'!Z492)","v":""},{"$f":"IF('1. Order'!AA492=\"\",\"\",'1. Order'!AA492)","v":""},null,{"$f":"IF('1. Order'!AS492=\"\",\"\",'1. Order'!AS492)","v":""},{"$f":"IF('1. Order'!AT492=\"\",\"\",'1. Order'!AT492)","v":""},null,null,null,null,null,null,null,{"$f":"IF('1. Order'!AX492=\"\",\"\",'1. Order'!AX492)","v":""},{"$f":"IF('1. Order'!AY492=\"\",\"\",'1. Order'!AY492)","v":""},{"$f":"IF('1. Order'!AZ492=\"\",\"\",'1. Order'!AZ492)","v":""},{"$f":"IF('1. Order'!BA492=\"\",\"\",'1. Order'!BA492)","v":""},{"$f":"IF('1. Order'!BC492=\"\",\"\",'1. Order'!BC492)","v":""},{"$f":"IF('1. Order'!BD492=\"\",\"\",'1. Order'!BD492)","v":6},{"$f":"IF('1. Order'!BE492=\"\",\"\",'1. Order'!BE492)","v":"None"},{"$f":"IF('1. Order'!BF492=\"\",\"\",'1. Order'!BF492)","v":"Parcel"},{"$f":"IF('1. Order'!BG492=\"\",\"\",'1. Order'!BG492)","v":"ZWO"}]
[{"$f":"IF('1. Order'!F493=\"\",\"\",'1. Order'!F493)","v":""},{"$f":"IF('1. Order'!G493=\"\",\"\",'1. Order'!G493)","v":""},{"$f":"IF('1. Order'!H493=\"\",\"\",'1. Order'!H493)","v":""},{"$f":"IF('1. Order'!I493=\"\",\"\",'1. Order'!I493)","v":""},{"$f":"IF('1. Order'!J493=\"\",\"\",'1. Order'!J493)","v":""},{"$f":"IF('1. Order'!K493=\"\",\"\",'1. Order'!K493)","v":""},{"$f":"IF('1. Order'!L493=\"\",\"\",'1. Order'!L493)","v":""},{"$f":"IF('1. Order'!M493=\"\",\"\",'1. Order'!M493)","v":""},{"$f":"IF('1. Order'!N493=\"\",\"\",'1. Order'!N493)","v":""},{"$f":"IF('1. Order'!O493=\"\",\"\",'1. Order'!O493)","v":{"$error":"#N/A"}},{"$f":"IF('1. Order'!P493=\"\",\"\",'1. Order'!P493)","v":{"$error":"#N/A"}},{"$f":"IF('1. Order'!Q493=\"\",\"\",'1. Order'!Q493)","v":""},{"$f":"IF('1. Order'!R493=\"\",\"\",'1. Order'!R493)","v":""},{"$f":"IF('1. Order'!S493=\"\",\"\",'1. Order'!S493)","v":""},{"$f":"IF('1. Order'!V493=\"\",\"\",'1. Order'!V493)","v":""},{"$f":"IF('1. Order'!W493=\"\",\"\",'1. Order'!W493)","v":""},{"$f":"IF('1. Order'!X493=\"\",\"\",'1. Order'!X493)","v":"EUR"},{"$f":"IF('1. Order'!Y493=\"\",\"\",'1. Order'!Y493)","v":""},{"$f":"IF('1. Order'!Z493=\"\",\"\",'1. Order'!Z493)","v":""},{"$f":"IF('1. Order'!AA493=\"\",\"\",'1. Order'!AA493)","v":""},null,{"$f":"IF('1. Order'!AS493=\"\",\"\",'1. Order'!AS493)","v":""},{"$f":"IF('1. Order'!AT493=\"\",\"\",'1. Order'!AT493)","v":""},null,null,null,null,null,null,null,{"$f":"IF('1. Order'!AX493=\"\",\"\",'1. Order'!AX493)","v":""},{"$f":"IF('1. Order'!AY493=\"\",\"\",'1. Order'!AY493)","v":""},{"$f":"IF('1. Order'!AZ493=\"\",\"\",'1. Order'!AZ493)","v":""},{"$f":"IF('1. Order'!BA493=\"\",\"\",'1. Order'!BA493)","v":""},{"$f":"IF('1. Order'!BC493=\"\",\"\",'1. Order'!BC493)","v":""},{"$f":"IF('1. Order'!BD493=\"\",\"\",'1. Order'!BD493)","v":6},{"$f":"IF('1. Order'!BE493=\"\",\"\",'1. Order'!BE493)","v":"None"},{"$f":"IF('1. Order'!BF493=\"\",\"\",'1. Order'!BF493)","v":"Parcel"},{"$f":"IF('1. Order'!BG493=\"\",\"\",'1. Order'!BG493)","v":"ZWO"}]
[{"$f":"IF('1. Order'!F494=\"\",\"\",'1. Order'!F494)","v":""},{"$f":"IF('1. Order'!G494=\"\",\"\",'1. Order'!G494)","v":""},{"$f":"IF('1. Order'!H494=\"\",\"\",'1. Order'!H494)","v":""},{"$f":"IF('1. Order'!I494=\"\",\"\",'1. Order'!I494)","v":""},{"$f":"IF('1. Order'!J494=\"\",\"\",'1. Order'!J494)","v":""},{"$f":"IF('1. Order'!K494=\"\",\"\",'1. Order'!K494)","v":""},{"$f":"IF('1. Order'!L494=\"\",\"\",'1. Order'!L494)","v":""},{"$f":"IF('1. Order'!M494=\"\",\"\",'1. Order'!M494)","v":""},{"$f":"IF('1. Order'!N494=\"\",\"\",'1. Order'!N494)","v":""},{"$f":"IF('1. Order'!O494=\"\",\"\",'1. Order'!O494)","v":{"$error":"#N/A"}},{"$f":"IF('1. Order'!P494=\"\",\"\",'1. Order'!P494)","v":{"$error":"#N/A"}},{"$f":"IF('1. Order'!Q494=\"\",\"\",'1. Order'!Q494)","v":""},{"$f":"IF('1. Order'!R494=\"\",\"\",'1. Order'!R494)","v":""},{"$f":"IF('1. Order'!S494=\"\",\"\",'1. Order'!S494)","v":""},{"$f":"IF('1. Order'!V494=\"\",\"\",'1. Order'!V494)","v":""},{"$f":"IF('1. Order'!W494=\"\",\"\",'1. Order'!W494)","v":""},{"$f":"IF('1. Order'!X494=\"\",\"\",'1. Order'!X494)","v":"EUR"},{"$f":"IF('1. Order'!Y494=\"\",\"\",'1. Order'!Y494)","v":""},{"$f":"IF('1. Order'!Z494=\"\",\"\",'1. Order'!Z494)","v":""},{"$f":"IF('1. Order'!AA494=\"\",\"\",'1. Order'!AA494)","v":""},null,{"$f":"IF('1. Order'!AS494=\"\",\"\",'1. Order'!AS494)","v":""},{"$f":"IF('1. Order'!AT494=\"\",\"\",'1. Order'!AT494)","v":""},null,null,null,null,null,null,null,{"$f":"IF('1. Order'!AX494=\"\",\"\",'1. Order'!AX494)","v":""},{"$f":"IF('1. Order'!AY494=\"\",\"\",'1. Order'!AY494)","v":""},{"$f":"IF('1. Order'!AZ494=\"\",\"\",'1. Order'!AZ494)","v":""},{"$f":"IF('1. Order'!BA494=\"\",\"\",'1. Order'!BA494)","v":""},{"$f":"IF('1. Order'!BC494=\"\",\"\",'1. Order'!BC494)","v":""},{"$f":"IF('1. Order'!BD494=\"\",\"\",'1. Order'!BD494)","v":6},{"$f":"IF('1. Order'!BE494=\"\",\"\",'1. Order'!BE494)","v":"None"},{"$f":"IF('1. Order'!BF494=\"\",\"\",'1. Order'!BF494)","v":"Parcel"},{"$f":"IF('1. Order'!BG494=\"\",\"\",'1. Order'!BG494)","v":"ZWO"}]
[{"$f":"IF('1. Order'!F495=\"\",\"\",'1. Order'!F495)","v":""},{"$f":"IF('1. Order'!G495=\"\",\"\",'1. Order'!G495)","v":""},{"$f":"IF('1. Order'!H495=\"\",\"\",'1. Order'!H495)","v":""},{"$f":"IF('1. Order'!I495=\"\",\"\",'1. Order'!I495)","v":""},{"$f":"IF('1. Order'!J495=\"\",\"\",'1. Order'!J495)","v":""},{"$f":"IF('1. Order'!K495=\"\",\"\",'1. Order'!K495)","v":""},{"$f":"IF('1. Order'!L495=\"\",\"\",'1. Order'!L495)","v":""},{"$f":"IF('1. Order'!M495=\"\",\"\",'1. Order'!M495)","v":""},{"$f":"IF('1. Order'!N495=\"\",\"\",'1. Order'!N495)","v":""},{"$f":"IF('1. Order'!O495=\"\",\"\",'1. Order'!O495)","v":{"$error":"#N/A"}},{"$f":"IF('1. Order'!P495=\"\",\"\",'1. Order'!P495)","v":{"$error":"#N/A"}},{"$f":"IF('1. Order'!Q495=\"\",\"\",'1. Order'!Q495)","v":""},{"$f":"IF('1. Order'!R495=\"\",\"\",'1. Order'!R495)","v":""},{"$f":"IF('1. Order'!S495=\"\",\"\",'1. Order'!S495)","v":""},{"$f":"IF('1. Order'!V495=\"\",\"\",'1. Order'!V495)","v":""},{"$f":"IF('1. Order'!W495=\"\",\"\",'1. Order'!W495)","v":""},{"$f":"IF('1. Order'!X495=\"\",\"\",'1. Order'!X495)","v":"EUR"},{"$f":"IF('1. Order'!Y495=\"\",\"\",'1. Order'!Y495)","v":""},{"$f":"IF('1. Order'!Z495=\"\",\"\",'1. Order'!Z495)","v":""},{"$f":"IF('1. Order'!AA495=\"\",\"\",'1. Order'!AA495)","v":""},null,{"$f":"IF('1. Order'!AS495=\"\",\"\",'1. Order'!AS495)","v":""},{"$f":"IF('1. Order'!AT495=\"\",\"\",'1. Order'!AT495)","v":""},null,null,null,null,null,null,null,{"$f":"IF('1. Order'!AX495=\"\",\"\",'1. Order'!AX495)","v":""},{"$f":"IF('1. Order'!AY495=\"\",\"\",'1. Order'!AY495)","v":""},{"$f":"IF('1. Order'!AZ495=\"\",\"\",'1. Order'!AZ495)","v":""},{"$f":"IF('1. Order'!BA495=\"\",\"\",'1. Order'!BA495)","v":""},{"$f":"IF('1. Order'!BC495=\"\",\"\",'1. Order'!BC495)","v":""},{"$f":"IF('1. Order'!BD495=\"\",\"\",'1. Order'!BD495)","v":6},{"$f":"IF('1. Order'!BE495=\"\",\"\",'1. Order'!BE495)","v":"None"},{"$f":"IF('1. Order'!BF495=\"\",\"\",'1. Order'!BF495)","v":"Parcel"},{"$f":"IF('1. Order'!BG495=\"\",\"\",'1. Order'!BG495)","v":"ZWO"}]
[{"$f":"IF('1. Order'!F496=\"\",\"\",'1. Order'!F496)","v":""},{"$f":"IF('1. Order'!G496=\"\",\"\",'1. Order'!G496)","v":""},{"$f":"IF('1. Order'!H496=\"\",\"\",'1. Order'!H496)","v":""},{"$f":"IF('1. Order'!I496=\"\",\"\",'1. Order'!I496)","v":""},{"$f":"IF('1. Order'!J496=\"\",\"\",'1. Order'!J496)","v":""},{"$f":"IF('1. Order'!K496=\"\",\"\",'1. Order'!K496)","v":""},{"$f":"IF('1. Order'!L496=\"\",\"\",'1. Order'!L496)","v":""},{"$f":"IF('1. Order'!M496=\"\",\"\",'1. Order'!M496)","v":""},{"$f":"IF('1. Order'!N496=\"\",\"\",'1. Order'!N496)","v":""},{"$f":"IF('1. Order'!O496=\"\",\"\",'1. Order'!O496)","v":{"$error":"#N/A"}},{"$f":"IF('1. Order'!P496=\"\",\"\",'1. Order'!P496)","v":{"$error":"#N/A"}},{"$f":"IF('1. Order'!Q496=\"\",\"\",'1. Order'!Q496)","v":""},{"$f":"IF('1. Order'!R496=\"\",\"\",'1. Order'!R496)","v":""},{"$f":"IF('1. Order'!S496=\"\",\"\",'1. Order'!S496)","v":""},{"$f":"IF('1. Order'!V496=\"\",\"\",'1. Order'!V496)","v":""},{"$f":"IF('1. Order'!W496=\"\",\"\",'1. Order'!W496)","v":""},{"$f":"IF('1. Order'!X496=\"\",\"\",'1. Order'!X496)","v":"EUR"},{"$f":"IF('1. Order'!Y496=\"\",\"\",'1. Order'!Y496)","v":""},{"$f":"IF('1. Order'!Z496=\"\",\"\",'1. Order'!Z496)","v":""},{"$f":"IF('1. Order'!AA496=\"\",\"\",'1. Order'!AA496)","v":""},null,{"$f":"IF('1. Order'!AS496=\"\",\"\",'1. Order'!AS496)","v":""},{"$f":"IF('1. Order'!AT496=\"\",\"\",'1. Order'!AT496)","v":""},null,null,null,null,null,null,null,{"$f":"IF('1. Order'!AX496=\"\",\"\",'1. Order'!AX496)","v":""},{"$f":"IF('1. Order'!AY496=\"\",\"\",'1. Order'!AY496)","v":""},{"$f":"IF('1. Order'!AZ496=\"\",\"\",'1. Order'!AZ496)","v":""},{"$f":"IF('1. Order'!BA496=\"\",\"\",'1. Order'!BA496)","v":""},{"$f":"IF('1. Order'!BC496=\"\",\"\",'1. Order'!BC496)","v":""},{"$f":"IF('1. Order'!BD496=\"\",\"\",'1. Order'!BD496)","v":6},{"$f":"IF('1. Order'!BE496=\"\",\"\",'1. Order'!BE496)","v":"None"},{"$f":"IF('1. Order'!BF496=\"\",\"\",'1. Order'!BF496)","v":"Parcel"},{"$f":"IF('1. Order'!BG496=\"\",\"\",'1. Order'!BG496)","v":"ZWO"}]
[{"$f":"IF('1. Order'!F497=\"\",\"\",'1. Order'!F497)","v":""},{"$f":"IF('1. Order'!G497=\"\",\"\",'1. Order'!G497)","v":""},{"$f":"IF('1. Order'!H497=\"\",\"\",'1. Order'!H497)","v":""},{"$f":"IF('1. Order'!I497=\"\",\"\",'1. Order'!I497)","v":""},{"$f":"IF('1. Order'!J497=\"\",\"\",'1. Order'!J497)","v":""},{"$f":"IF('1. Order'!K497=\"\",\"\",'1. Order'!K497)","v":""},{"$f":"IF('1. Order'!L497=\"\",\"\",'1. Order'!L497)","v":""},{"$f":"IF('1. Order'!M497=\"\",\"\",'1. Order'!M497)","v":""},{"$f":"IF('1. Order'!N497=\"\",\"\",'1. Order'!N497)","v":""},{"$f":"IF('1. Order'!O497=\"\",\"\",'1. Order'!O497)","v":{"$error":"#N/A"}},{"$f":"IF('1. Order'!P497=\"\",\"\",'1. Order'!P497)","v":{"$error":"#N/A"}},{"$f":"IF('1. Order'!Q497=\"\",\"\",'1. Order'!Q497)","v":""},{"$f":"IF('1. Order'!R497=\"\",\"\",'1. Order'!R497)","v":""},{"$f":"IF('1. Order'!S497=\"\",\"\",'1. Order'!S497)","v":""},{"$f":"IF('1. Order'!V497=\"\",\"\",'1. Order'!V497)","v":""},{"$f":"IF('1. Order'!W497=\"\",\"\",'1. Order'!W497)","v":""},{"$f":"IF('1. Order'!X497=\"\",\"\",'1. Order'!X497)","v":"EUR"},{"$f":"IF('1. Order'!Y497=\"\",\"\",'1. Order'!Y497)","v":""},{"$f":"IF('1. Order'!Z497=\"\",\"\",'1. Order'!Z497)","v":""},{"$f":"IF('1. Order'!AA497=\"\",\"\",'1. Order'!AA497)","v":""},null,{"$f":"IF('1. Order'!AS497=\"\",\"\",'1. Order'!AS497)","v":""},{"$f":"IF('1. Order'!AT497=\"\",\"\",'1. Order'!AT497)","v":""},null,null,null,null,null,null,null,{"$f":"IF('1. Order'!AX497=\"\",\"\",'1. Order'!AX497)","v":""},{"$f":"IF('1. Order'!AY497=\"\",\"\",'1. Order'!AY497)","v":""},{"$f":"IF('1. Order'!AZ497=\"\",\"\",'1. Order'!AZ497)","v":""},{"$f":"IF('1. Order'!BA497=\"\",\"\",'1. Order'!BA497)","v":""},{"$f":"IF('1. Order'!BC497=\"\",\"\",'1. Order'!BC497)","v":""},{"$f":"IF('1. Order'!BD497=\"\",\"\",'1. Order'!BD497)","v":6},{"$f":"IF('1. Order'!BE497=\"\",\"\",'1. Order'!BE497)","v":"None"},{"$f":"IF('1. Order'!BF497=\"\",\"\",'1. Order'!BF497)","v":"Parcel"},{"$f":"IF('1. Order'!BG497=\"\",\"\",'1. Order'!BG497)","v":"ZWO"}]
[{"$f":"IF('1. Order'!F498=\"\",\"\",'1. Order'!F498)","v":""},{"$f":"IF('1. Order'!G498=\"\",\"\",'1. Order'!G498)","v":""},{"$f":"IF('1. Order'!H498=\"\",\"\",'1. Order'!H498)","v":""},{"$f":"IF('1. Order'!I498=\"\",\"\",'1. Order'!I498)","v":""},{"$f":"IF('1. Order'!J498=\"\",\"\",'1. Order'!J498)","v":""},{"$f":"IF('1. Order'!K498=\"\",\"\",'1. Order'!K498)","v":""},{"$f":"IF('1. Order'!L498=\"\",\"\",'1. Order'!L498)","v":""},{"$f":"IF('1. Order'!M498=\"\",\"\",'1. Order'!M498)","v":""},{"$f":"IF('1. Order'!N498=\"\",\"\",'1. Order'!N498)","v":""},{"$f":"IF('1. Order'!O498=\"\",\"\",'1. Order'!O498)","v":{"$error":"#N/A"}},{"$f":"IF('1. Order'!P498=\"\",\"\",'1. Order'!P498)","v":{"$error":"#N/A"}},{"$f":"IF('1. Order'!Q498=\"\",\"\",'1. Order'!Q498)","v":""},{"$f":"IF('1. Order'!R498=\"\",\"\",'1. Order'!R498)","v":""},{"$f":"IF('1. Order'!S498=\"\",\"\",'1. Order'!S498)","v":""},{"$f":"IF('1. Order'!V498=\"\",\"\",'1. Order'!V498)","v":""},{"$f":"IF('1. Order'!W498=\"\",\"\",'1. Order'!W498)","v":""},{"$f":"IF('1. Order'!X498=\"\",\"\",'1. Order'!X498)","v":"EUR"},{"$f":"IF('1. Order'!Y498=\"\",\"\",'1. Order'!Y498)","v":""},{"$f":"IF('1. Order'!Z498=\"\",\"\",'1. Order'!Z498)","v":""},{"$f":"IF('1. Order'!AA498=\"\",\"\",'1. Order'!AA498)","v":""},null,{"$f":"IF('1. Order'!AS498=\"\",\"\",'1. Order'!AS498)","v":""},{"$f":"IF('1. Order'!AT498=\"\",\"\",'1. Order'!AT498)","v":""},null,null,null,null,null,null,null,{"$f":"IF('1. Order'!AX498=\"\",\"\",'1. Order'!AX498)","v":""},{"$f":"IF('1. Order'!AY498=\"\",\"\",'1. Order'!AY498)","v":""},{"$f":"IF('1. Order'!AZ498=\"\",\"\",'1. Order'!AZ498)","v":""},{"$f":"IF('1. Order'!BA498=\"\",\"\",'1. Order'!BA498)","v":""},{"$f":"IF('1. Order'!BC498=\"\",\"\",'1. Order'!BC498)","v":""},{"$f":"IF('1. Order'!BD498=\"\",\"\",'1. Order'!BD498)","v":6},{"$f":"IF('1. Order'!BE498=\"\",\"\",'1. Order'!BE498)","v":"None"},{"$f":"IF('1. Order'!BF498=\"\",\"\",'1. Order'!BF498)","v":"Parcel"},{"$f":"IF('1. Order'!BG498=\"\",\"\",'1. Order'!BG498)","v":"ZWO"}]
[{"$f":"IF('1. Order'!F499=\"\",\"\",'1. Order'!F499)","v":""},{"$f":"IF('1. Order'!G499=\"\",\"\",'1. Order'!G499)","v":""},{"$f":"IF('1. Order'!H499=\"\",\"\",'1. Order'!H499)","v":""},{"$f":"IF('1. Order'!I499=\"\",\"\",'1. Order'!I499)","v":""},{"$f":"IF('1. Order'!J499=\"\",\"\",'1. Order'!J499)","v":""},{"$f":"IF('1. Order'!K499=\"\",\"\",'1. Order'!K499)","v":""},{"$f":"IF('1. Order'!L499=\"\",\"\",'1. Order'!L499)","v":""},{"$f":"IF('1. Order'!M499=\"\",\"\",'1. Order'!M499)","v":""},{"$f":"IF('1. Order'!N499=\"\",\"\",'1. Order'!N499)","v":""},{"$f":"IF('1. Order'!O499=\"\",\"\",'1. Order'!O499)","v":{"$error":"#N/A"}},{"$f":"IF('1. Order'!P499=\"\",\"\",'1. Order'!P499)","v":{"$error":"#N/A"}},{"$f":"IF('1. Order'!Q499=\"\",\"\",'1. Order'!Q499)","v":""},{"$f":"IF('1. Order'!R499=\"\",\"\",'1. Order'!R499)","v":""},{"$f":"IF('1. Order'!S499=\"\",\"\",'1. Order'!S499)","v":""},{"$f":"IF('1. Order'!V499=\"\",\"\",'1. Order'!V499)","v":""},{"$f":"IF('1. Order'!W499=\"\",\"\",'1. Order'!W499)","v":""},{"$f":"IF('1. Order'!X499=\"\",\"\",'1. Order'!X499)","v":"EUR"},{"$f":"IF('1. Order'!Y499=\"\",\"\",'1. Order'!Y499)","v":""},{"$f":"IF('1. Order'!Z499=\"\",\"\",'1. Order'!Z499)","v":""},{"$f":"IF('1. Order'!AA499=\"\",\"\",'1. Order'!AA499)","v":""},null,{"$f":"IF('1. Order'!AS499=\"\",\"\",'1. Order'!AS499)","v":""},{"$f":"IF('1. Order'!AT499=\"\",\"\",'1. Order'!AT499)","v":""},null,null,null,null,null,null,null,{"$f":"IF('1. Order'!AX499=\"\",\"\",'1. Order'!AX499)","v":""},{"$f":"IF('1. Order'!AY499=\"\",\"\",'1. Order'!AY499)","v":""},{"$f":"IF('1. Order'!AZ499=\"\",\"\",'1. Order'!AZ499)","v":""},{"$f":"IF('1. Order'!BA499=\"\",\"\",'1. Order'!BA499)","v":""},{"$f":"IF('1. Order'!BC499=\"\",\"\",'1. Order'!BC499)","v":""},{"$f":"IF('1. Order'!BD499=\"\",\"\",'1. Order'!BD499)","v":6},{"$f":"IF('1. Order'!BE499=\"\",\"\",'1. Order'!BE499)","v":"None"},{"$f":"IF('1. Order'!BF499=\"\",\"\",'1. Order'!BF499)","v":"Parcel"},{"$f":"IF('1. Order'!BG499=\"\",\"\",'1. Order'!BG499)","v":"ZWO"}]
[{"$f":"IF('1. Order'!F500=\"\",\"\",'1. Order'!F500)","v":""},{"$f":"IF('1. Order'!G500=\"\",\"\",'1. Order'!G500)","v":""},{"$f":"IF('1. Order'!H500=\"\",\"\",'1. Order'!H500)","v":""},{"$f":"IF('1. Order'!I500=\"\",\"\",'1. Order'!I500)","v":""},{"$f":"IF('1. Order'!J500=\"\",\"\",'1. Order'!J500)","v":""},{"$f":"IF('1. Order'!K500=\"\",\"\",'1. Order'!K500)","v":""},{"$f":"IF('1. Order'!L500=\"\",\"\",'1. Order'!L500)","v":""},{"$f":"IF('1. Order'!M500=\"\",\"\",'1. Order'!M500)","v":""},{"$f":"IF('1. Order'!N500=\"\",\"\",'1. Order'!N500)","v":""},{"$f":"IF('1. Order'!O500=\"\",\"\",'1. Order'!O500)","v":{"$error":"#N/A"}},{"$f":"IF('1. Order'!P500=\"\",\"\",'1. Order'!P500)","v":{"$error":"#N/A"}},{"$f":"IF('1. Order'!Q500=\"\",\"\",'1. Order'!Q500)","v":""},{"$f":"IF('1. Order'!R500=\"\",\"\",'1. Order'!R500)","v":""},{"$f":"IF('1. Order'!S500=\"\",\"\",'1. Order'!S500)","v":""},{"$f":"IF('1. Order'!V500=\"\",\"\",'1. Order'!V500)","v":""},{"$f":"IF('1. Order'!W500=\"\",\"\",'1. Order'!W500)","v":""},{"$f":"IF('1. Order'!X500=\"\",\"\",'1. Order'!X500)","v":"EUR"},{"$f":"IF('1. Order'!Y500=\"\",\"\",'1. Order'!Y500)","v":""},{"$f":"IF('1. Order'!Z500=\"\",\"\",'1. Order'!Z500)","v":""},{"$f":"IF('1. Order'!AA500=\"\",\"\",'1. Order'!AA500)","v":""},null,{"$f":"IF('1. Order'!AS500=\"\",\"\",'1. Order'!AS500)","v":""},{"$f":"IF('1. Order'!AT500=\"\",\"\",'1. Order'!AT500)","v":""},null,null,null,null,null,null,null,{"$f":"IF('1. Order'!AX500=\"\",\"\",'1. Order'!AX500)","v":""},{"$f":"IF('1. Order'!AY500=\"\",\"\",'1. Order'!AY500)","v":""},{"$f":"IF('1. Order'!AZ500=\"\",\"\",'1. Order'!AZ500)","v":""},{"$f":"IF('1. Order'!BA500=\"\",\"\",'1. Order'!BA500)","v":""},{"$f":"IF('1. Order'!BC500=\"\",\"\",'1. Order'!BC500)","v":""},{"$f":"IF('1. Order'!BD500=\"\",\"\",'1. Order'!BD500)","v":6},{"$f":"IF('1. Order'!BE500=\"\",\"\",'1. Order'!BE500)","v":"None"},{"$f":"IF('1. Order'!BF500=\"\",\"\",'1. Order'!BF500)","v":"Parcel"},{"$f":"IF('1. Order'!BG500=\"\",\"\",'1. Order'!BG500)","v":"ZWO"}]
[{"$f":"IF('1. Order'!F501=\"\",\"\",'1. Order'!F501)","v":""},{"$f":"IF('1. Order'!G501=\"\",\"\",'1. Order'!G501)","v":""},{"$f":"IF('1. Order'!H501=\"\",\"\",'1. Order'!H501)","v":""},{"$f":"IF('1. Order'!I501=\"\",\"\",'1. Order'!I501)","v":""},{"$f":"IF('1. Order'!J501=\"\",\"\",'1. Order'!J501)","v":""},{"$f":"IF('1. Order'!K501=\"\",\"\",'1. Order'!K501)","v":""},{"$f":"IF('1. Order'!L501=\"\",\"\",'1. Order'!L501)","v":""},{"$f":"IF('1. Order'!M501=\"\",\"\",'1. Order'!M501)","v":""},{"$f":"IF('1. Order'!N501=\"\",\"\",'1. Order'!N501)","v":""},{"$f":"IF('1. Order'!O501=\"\",\"\",'1. Order'!O501)","v":{"$error":"#N/A"}},{"$f":"IF('1. Order'!P501=\"\",\"\",'1. Order'!P501)","v":{"$error":"#N/A"}},{"$f":"IF('1. Order'!Q501=\"\",\"\",'1. Order'!Q501)","v":""},{"$f":"IF('1. Order'!R501=\"\",\"\",'1. Order'!R501)","v":""},{"$f":"IF('1. Order'!S501=\"\",\"\",'1. Order'!S501)","v":""},{"$f":"IF('1. Order'!V501=\"\",\"\",'1. Order'!V501)","v":""},{"$f":"IF('1. Order'!W501=\"\",\"\",'1. Order'!W501)","v":""},{"$f":"IF('1. Order'!X501=\"\",\"\",'1. Order'!X501)","v":"EUR"},{"$f":"IF('1. Order'!Y501=\"\",\"\",'1. Order'!Y501)","v":""},{"$f":"IF('1. Order'!Z501=\"\",\"\",'1. Order'!Z501)","v":""},{"$f":"IF('1. Order'!AA501=\"\",\"\",'1. Order'!AA501)","v":""},null,{"$f":"IF('1. Order'!AS501=\"\",\"\",'1. Order'!AS501)","v":""},{"$f":"IF('1. Order'!AT501=\"\",\"\",'1. Order'!AT501)","v":""},null,null,null,null,null,null,null,{"$f":"IF('1. Order'!AX501=\"\",\"\",'1. Order'!AX501)","v":""},{"$f":"IF('1. Order'!AY501=\"\",\"\",'1. Order'!AY501)","v":""},{"$f":"IF('1. Order'!AZ501=\"\",\"\",'1. Order'!AZ501)","v":""},{"$f":"IF('1. Order'!BA501=\"\",\"\",'1. Order'!BA501)","v":""},{"$f":"IF('1. Order'!BC501=\"\",\"\",'1. Order'!BC501)","v":""},{"$f":"IF('1. Order'!BD501=\"\",\"\",'1. Order'!BD501)","v":6},{"$f":"IF('1. Order'!BE501=\"\",\"\",'1. Order'!BE501)","v":"None"},{"$f":"IF('1. Order'!BF501=\"\",\"\",'1. Order'!BF501)","v":"Parcel"},{"$f":"IF('1. Order'!BG501=\"\",\"\",'1. Order'!BG501)","v":"ZWO"}]
[{"$f":"IF('1. Order'!F502=\"\",\"\",'1. Order'!F502)","v":""},{"$f":"IF('1. Order'!G502=\"\",\"\",'1. Order'!G502)","v":""},{"$f":"IF('1. Order'!H502=\"\",\"\",'1. Order'!H502)","v":""},{"$f":"IF('1. Order'!I502=\"\",\"\",'1. Order'!I502)","v":""},{"$f":"IF('1. Order'!J502=\"\",\"\",'1. Order'!J502)","v":""},{"$f":"IF('1. Order'!K502=\"\",\"\",'1. Order'!K502)","v":""},{"$f":"IF('1. Order'!L502=\"\",\"\",'1. Order'!L502)","v":""},{"$f":"IF('1. Order'!M502=\"\",\"\",'1. Order'!M502)","v":""},{"$f":"IF('1. Order'!N502=\"\",\"\",'1. Order'!N502)","v":""},{"$f":"IF('1. Order'!O502=\"\",\"\",'1. Order'!O502)","v":{"$error":"#N/A"}},{"$f":"IF('1. Order'!P502=\"\",\"\",'1. Order'!P502)","v":{"$error":"#N/A"}},{"$f":"IF('1. Order'!Q502=\"\",\"\",'1. Order'!Q502)","v":""},{"$f":"IF('1. Order'!R502=\"\",\"\",'1. Order'!R502)","v":""},{"$f":"IF('1. Order'!S502=\"\",\"\",'1. Order'!S502)","v":""},{"$f":"IF('1. Order'!V502=\"\",\"\",'1. Order'!V502)","v":""},{"$f":"IF('1. Order'!W502=\"\",\"\",'1. Order'!W502)","v":""},{"$f":"IF('1. Order'!X502=\"\",\"\",'1. Order'!X502)","v":"EUR"},{"$f":"IF('1. Order'!Y502=\"\",\"\",'1. Order'!Y502)","v":""},{"$f":"IF('1. Order'!Z502=\"\",\"\",'1. Order'!Z502)","v":""},{"$f":"IF('1. Order'!AA502=\"\",\"\",'1. Order'!AA502)","v":""},null,{"$f":"IF('1. Order'!AS502=\"\",\"\",'1. Order'!AS502)","v":""},{"$f":"IF('1. Order'!AT502=\"\",\"\",'1. Order'!AT502)","v":""},null,null,null,null,null,null,null,{"$f":"IF('1. Order'!AX502=\"\",\"\",'1. Order'!AX502)","v":""},{"$f":"IF('1. Order'!AY502=\"\",\"\",'1. Order'!AY502)","v":""},{"$f":"IF('1. Order'!AZ502=\"\",\"\",'1. Order'!AZ502)","v":""},{"$f":"IF('1. Order'!BA502=\"\",\"\",'1. Order'!BA502)","v":""},{"$f":"IF('1. Order'!BC502=\"\",\"\",'1. Order'!BC502)","v":""},{"$f":"IF('1. Order'!BD502=\"\",\"\",'1. Order'!BD502)","v":6},{"$f":"IF('1. Order'!BE502=\"\",\"\",'1. Order'!BE502)","v":"None"},{"$f":"IF('1. Order'!BF502=\"\",\"\",'1. Order'!BF502)","v":"Parcel"},{"$f":"IF('1. Order'!BG502=\"\",\"\",'1. Order'!BG502)","v":"ZWO"}]
[{"$f":"IF('1. Order'!F503=\"\",\"\",'1. Order'!F503)","v":""},{"$f":"IF('1. Order'!G503=\"\",\"\",'1. Order'!G503)","v":""},{"$f":"IF('1. Order'!H503=\"\",\"\",'1. Order'!H503)","v":""},{"$f":"IF('1. Order'!I503=\"\",\"\",'1. Order'!I503)","v":""},{"$f":"IF('1. Order'!J503=\"\",\"\",'1. Order'!J503)","v":""},{"$f":"IF('1. Order'!K503=\"\",\"\",'1. Order'!K503)","v":""},{"$f":"IF('1. Order'!L503=\"\",\"\",'1. Order'!L503)","v":""},{"$f":"IF('1. Order'!M503=\"\",\"\",'1. Order'!M503)","v":""},{"$f":"IF('1. Order'!N503=\"\",\"\",'1. Order'!N503)","v":""},{"$f":"IF('1. Order'!O503=\"\",\"\",'1. Order'!O503)","v":{"$error":"#N/A"}},{"$f":"IF('1. Order'!P503=\"\",\"\",'1. Order'!P503)","v":{"$error":"#N/A"}},{"$f":"IF('1. Order'!Q503=\"\",\"\",'1. Order'!Q503)","v":""},{"$f":"IF('1. Order'!R503=\"\",\"\",'1. Order'!R503)","v":""},{"$f":"IF('1. Order'!S503=\"\",\"\",'1. Order'!S503)","v":""},{"$f":"IF('1. Order'!V503=\"\",\"\",'1. Order'!V503)","v":""},{"$f":"IF('1. Order'!W503=\"\",\"\",'1. Order'!W503)","v":""},{"$f":"IF('1. Order'!X503=\"\",\"\",'1. Order'!X503)","v":"EUR"},{"$f":"IF('1. Order'!Y503=\"\",\"\",'1. Order'!Y503)","v":""},{"$f":"IF('1. Order'!Z503=\"\",\"\",'1. Order'!Z503)","v":""},{"$f":"IF('1. Order'!AA503=\"\",\"\",'1. Order'!AA503)","v":""},null,{"$f":"IF('1. Order'!AS503=\"\",\"\",'1. Order'!AS503)","v":""},{"$f":"IF('1. Order'!AT503=\"\",\"\",'1. Order'!AT503)","v":""},null,null,null,null,null,null,null,{"$f":"IF('1. Order'!AX503=\"\",\"\",'1. Order'!AX503)","v":""},{"$f":"IF('1. Order'!AY503=\"\",\"\",'1. Order'!AY503)","v":""},{"$f":"IF('1. Order'!AZ503=\"\",\"\",'1. Order'!AZ503)","v":""},{"$f":"IF('1. Order'!BA503=\"\",\"\",'1. Order'!BA503)","v":""},{"$f":"IF('1. Order'!BC503=\"\",\"\",'1. Order'!BC503)","v":""},{"$f":"IF('1. Order'!BD503=\"\",\"\",'1. Order'!BD503)","v":6},{"$f":"IF('1. Order'!BE503=\"\",\"\",'1. Order'!BE503)","v":"None"},{"$f":"IF('1. Order'!BF503=\"\",\"\",'1. Order'!BF503)","v":"Parcel"},{"$f":"IF('1. Order'!BG503=\"\",\"\",'1. Order'!BG503)","v":"ZWO"}]
[{"$f":"IF('1. Order'!F504=\"\",\"\",'1. Order'!F504)","v":""},{"$f":"IF('1. Order'!G504=\"\",\"\",'1. Order'!G504)","v":""},{"$f":"IF('1. Order'!H504=\"\",\"\",'1. Order'!H504)","v":""},{"$f":"IF('1. Order'!I504=\"\",\"\",'1. Order'!I504)","v":""},{"$f":"IF('1. Order'!J504=\"\",\"\",'1. Order'!J504)","v":""},{"$f":"IF('1. Order'!K504=\"\",\"\",'1. Order'!K504)","v":""},{"$f":"IF('1. Order'!L504=\"\",\"\",'1. Order'!L504)","v":""},{"$f":"IF('1. Order'!M504=\"\",\"\",'1. Order'!M504)","v":""},{"$f":"IF('1. Order'!N504=\"\",\"\",'1. Order'!N504)","v":""},{"$f":"IF('1. Order'!O504=\"\",\"\",'1. Order'!O504)","v":{"$error":"#N/A"}},{"$f":"IF('1. Order'!P504=\"\",\"\",'1. Order'!P504)","v":{"$error":"#N/A"}},{"$f":"IF('1. Order'!Q504=\"\",\"\",'1. Order'!Q504)","v":""},{"$f":"IF('1. Order'!R504=\"\",\"\",'1. Order'!R504)","v":""},{"$f":"IF('1. Order'!S504=\"\",\"\",'1. Order'!S504)","v":""},{"$f":"IF('1. Order'!V504=\"\",\"\",'1. Order'!V504)","v":""},{"$f":"IF('1. Order'!W504=\"\",\"\",'1. Order'!W504)","v":""},{"$f":"IF('1. Order'!X504=\"\",\"\",'1. Order'!X504)","v":"EUR"},{"$f":"IF('1. Order'!Y504=\"\",\"\",'1. Order'!Y504)","v":""},{"$f":"IF('1. Order'!Z504=\"\",\"\",'1. Order'!Z504)","v":""},{"$f":"IF('1. Order'!AA504=\"\",\"\",'1. Order'!AA504)","v":""},null,{"$f":"IF('1. Order'!AS504=\"\",\"\",'1. Order'!AS504)","v":""},{"$f":"IF('1. Order'!AT504=\"\",\"\",'1. Order'!AT504)","v":""},null,null,null,null,null,null,null,{"$f":"IF('1. Order'!AX504=\"\",\"\",'1. Order'!AX504)","v":""},{"$f":"IF('1. Order'!AY504=\"\",\"\",'1. Order'!AY504)","v":""},{"$f":"IF('1. Order'!AZ504=\"\",\"\",'1. Order'!AZ504)","v":""},{"$f":"IF('1. Order'!BA504=\"\",\"\",'1. Order'!BA504)","v":""},{"$f":"IF('1. Order'!BC504=\"\",\"\",'1. Order'!BC504)","v":""},{"$f":"IF('1. Order'!BD504=\"\",\"\",'1. Order'!BD504)","v":6},{"$f":"IF('1. Order'!BE504=\"\",\"\",'1. Order'!BE504)","v":"None"},{"$f":"IF('1. Order'!BF504=\"\",\"\",'1. Order'!BF504)","v":"Parcel"},{"$f":"IF('1. Order'!BG504=\"\",\"\",'1. Order'!BG504)","v":"ZWO"}]
[{"$f":"IF('1. Order'!F505=\"\",\"\",'1. Order'!F505)","v":""},{"$f":"IF('1. Order'!G505=\"\",\"\",'1. Order'!G505)","v":""},{"$f":"IF('1. Order'!H505=\"\",\"\",'1. Order'!H505)","v":""},{"$f":"IF('1. Order'!I505=\"\",\"\",'1. Order'!I505)","v":""},{"$f":"IF('1. Order'!J505=\"\",\"\",'1. Order'!J505)","v":""},{"$f":"IF('1. Order'!K505=\"\",\"\",'1. Order'!K505)","v":""},{"$f":"IF('1. Order'!L505=\"\",\"\",'1. Order'!L505)","v":""},{"$f":"IF('1. Order'!M505=\"\",\"\",'1. Order'!M505)","v":""},{"$f":"IF('1. Order'!N505=\"\",\"\",'1. Order'!N505)","v":""},{"$f":"IF('1. Order'!O505=\"\",\"\",'1. Order'!O505)","v":{"$error":"#N/A"}},{"$f":"IF('1. Order'!P505=\"\",\"\",'1. Order'!P505)","v":{"$error":"#N/A"}},{"$f":"IF('1. Order'!Q505=\"\",\"\",'1. Order'!Q505)","v":""},{"$f":"IF('1. Order'!R505=\"\",\"\",'1. Order'!R505)","v":""},{"$f":"IF('1. Order'!S505=\"\",\"\",'1. Order'!S505)","v":""},{"$f":"IF('1. Order'!V505=\"\",\"\",'1. Order'!V505)","v":""},{"$f":"IF('1. Order'!W505=\"\",\"\",'1. Order'!W505)","v":""},{"$f":"IF('1. Order'!X505=\"\",\"\",'1. Order'!X505)","v":"EUR"},{"$f":"IF('1. Order'!Y505=\"\",\"\",'1. Order'!Y505)","v":""},{"$f":"IF('1. Order'!Z505=\"\",\"\",'1. Order'!Z505)","v":""},{"$f":"IF('1. Order'!AA505=\"\",\"\",'1. Order'!AA505)","v":""},null,{"$f":"IF('1. Order'!AS505=\"\",\"\",'1. Order'!AS505)","v":""},{"$f":"IF('1. Order'!AT505=\"\",\"\",'1. Order'!AT505)","v":""},null,null,null,null,null,null,null,{"$f":"IF('1. Order'!AX505=\"\",\"\",'1. Order'!AX505)","v":""},{"$f":"IF('1. Order'!AY505=\"\",\"\",'1. Order'!AY505)","v":""},{"$f":"IF('1. Order'!AZ505=\"\",\"\",'1. Order'!AZ505)","v":""},{"$f":"IF('1. Order'!BA505=\"\",\"\",'1. Order'!BA505)","v":""},{"$f":"IF('1. Order'!BC505=\"\",\"\",'1. Order'!BC505)","v":""},{"$f":"IF('1. Order'!BD505=\"\",\"\",'1. Order'!BD505)","v":6},{"$f":"IF('1. Order'!BE505=\"\",\"\",'1. Order'!BE505)","v":"None"},{"$f":"IF('1. Order'!BF505=\"\",\"\",'1. Order'!BF505)","v":"Parcel"},{"$f":"IF('1. Order'!BG505=\"\",\"\",'1. Order'!BG505)","v":"ZWO"}]
[{"$f":"IF('1. Order'!F506=\"\",\"\",'1. Order'!F506)","v":""},{"$f":"IF('1. Order'!G506=\"\",\"\",'1. Order'!G506)","v":""},{"$f":"IF('1. Order'!H506=\"\",\"\",'1. Order'!H506)","v":""},{"$f":"IF('1. Order'!I506=\"\",\"\",'1. Order'!I506)","v":""},{"$f":"IF('1. Order'!J506=\"\",\"\",'1. Order'!J506)","v":""},{"$f":"IF('1. Order'!K506=\"\",\"\",'1. Order'!K506)","v":""},{"$f":"IF('1. Order'!L506=\"\",\"\",'1. Order'!L506)","v":""},{"$f":"IF('1. Order'!M506=\"\",\"\",'1. Order'!M506)","v":""},{"$f":"IF('1. Order'!N506=\"\",\"\",'1. Order'!N506)","v":""},{"$f":"IF('1. Order'!O506=\"\",\"\",'1. Order'!O506)","v":{"$error":"#N/A"}},{"$f":"IF('1. Order'!P506=\"\",\"\",'1. Order'!P506)","v":{"$error":"#N/A"}},{"$f":"IF('1. Order'!Q506=\"\",\"\",'1. Order'!Q506)","v":""},{"$f":"IF('1. Order'!R506=\"\",\"\",'1. Order'!R506)","v":""},{"$f":"IF('1. Order'!S506=\"\",\"\",'1. Order'!S506)","v":""},{"$f":"IF('1. Order'!V506=\"\",\"\",'1. Order'!V506)","v":""},{"$f":"IF('1. Order'!W506=\"\",\"\",'1. Order'!W506)","v":""},{"$f":"IF('1. Order'!X506=\"\",\"\",'1. Order'!X506)","v":"EUR"},{"$f":"IF('1. Order'!Y506=\"\",\"\",'1. Order'!Y506)","v":""},{"$f":"IF('1. Order'!Z506=\"\",\"\",'1. Order'!Z506)","v":""},{"$f":"IF('1. Order'!AA506=\"\",\"\",'1. Order'!AA506)","v":""},null,{"$f":"IF('1. Order'!AS506=\"\",\"\",'1. Order'!AS506)","v":""},{"$f":"IF('1. Order'!AT506=\"\",\"\",'1. Order'!AT506)","v":""},null,null,null,null,null,null,null,{"$f":"IF('1. Order'!AX506=\"\",\"\",'1. Order'!AX506)","v":""},{"$f":"IF('1. Order'!AY506=\"\",\"\",'1. Order'!AY506)","v":""},{"$f":"IF('1. Order'!AZ506=\"\",\"\",'1. Order'!AZ506)","v":""},{"$f":"IF('1. Order'!BA506=\"\",\"\",'1. Order'!BA506)","v":""},{"$f":"IF('1. Order'!BC506=\"\",\"\",'1. Order'!BC506)","v":""},{"$f":"IF('1. Order'!BD506=\"\",\"\",'1. Order'!BD506)","v":6},{"$f":"IF('1. Order'!BE506=\"\",\"\",'1. Order'!BE506)","v":"None"},{"$f":"IF('1. Order'!BF506=\"\",\"\",'1. Order'!BF506)","v":"Parcel"},{"$f":"IF('1. Order'!BG506=\"\",\"\",'1. Order'!BG506)","v":"ZWO"}]
[{"$f":"IF('1. Order'!F507=\"\",\"\",'1. Order'!F507)","v":""},{"$f":"IF('1. Order'!G507=\"\",\"\",'1. Order'!G507)","v":""},{"$f":"IF('1. Order'!H507=\"\",\"\",'1. Order'!H507)","v":""},{"$f":"IF('1. Order'!I507=\"\",\"\",'1. Order'!I507)","v":""},{"$f":"IF('1. Order'!J507=\"\",\"\",'1. Order'!J507)","v":""},{"$f":"IF('1. Order'!K507=\"\",\"\",'1. Order'!K507)","v":""},{"$f":"IF('1. Order'!L507=\"\",\"\",'1. Order'!L507)","v":""},{"$f":"IF('1. Order'!M507=\"\",\"\",'1. Order'!M507)","v":""},{"$f":"IF('1. Order'!N507=\"\",\"\",'1. Order'!N507)","v":""},{"$f":"IF('1. Order'!O507=\"\",\"\",'1. Order'!O507)","v":{"$error":"#N/A"}},{"$f":"IF('1. Order'!P507=\"\",\"\",'1. Order'!P507)","v":{"$error":"#N/A"}},{"$f":"IF('1. Order'!Q507=\"\",\"\",'1. Order'!Q507)","v":""},{"$f":"IF('1. Order'!R507=\"\",\"\",'1. Order'!R507)","v":""},{"$f":"IF('1. Order'!S507=\"\",\"\",'1. Order'!S507)","v":""},{"$f":"IF('1. Order'!V507=\"\",\"\",'1. Order'!V507)","v":""},{"$f":"IF('1. Order'!W507=\"\",\"\",'1. Order'!W507)","v":""},{"$f":"IF('1. Order'!X507=\"\",\"\",'1. Order'!X507)","v":"EUR"},{"$f":"IF('1. Order'!Y507=\"\",\"\",'1. Order'!Y507)","v":""},{"$f":"IF('1. Order'!Z507=\"\",\"\",'1. Order'!Z507)","v":""},{"$f":"IF('1. Order'!AA507=\"\",\"\",'1. Order'!AA507)","v":""},null,{"$f":"IF('1. Order'!AS507=\"\",\"\",'1. Order'!AS507)","v":""},{"$f":"IF('1. Order'!AT507=\"\",\"\",'1. Order'!AT507)","v":""},null,null,null,null,null,null,null,{"$f":"IF('1. Order'!AX507=\"\",\"\",'1. Order'!AX507)","v":""},{"$f":"IF('1. Order'!AY507=\"\",\"\",'1. Order'!AY507)","v":""},{"$f":"IF('1. Order'!AZ507=\"\",\"\",'1. Order'!AZ507)","v":""},{"$f":"IF('1. Order'!BA507=\"\",\"\",'1. Order'!BA507)","v":""},{"$f":"IF('1. Order'!BC507=\"\",\"\",'1. Order'!BC507)","v":""},{"$f":"IF('1. Order'!BD507=\"\",\"\",'1. Order'!BD507)","v":6},{"$f":"IF('1. Order'!BE507=\"\",\"\",'1. Order'!BE507)","v":"None"},{"$f":"IF('1. Order'!BF507=\"\",\"\",'1. Order'!BF507)","v":"Parcel"},{"$f":"IF('1. Order'!BG507=\"\",\"\",'1. Order'!BG507)","v":"ZWO"}]
[{"$f":"IF('1. Order'!F508=\"\",\"\",'1. Order'!F508)","v":""},{"$f":"IF('1. Order'!G508=\"\",\"\",'1. Order'!G508)","v":""},{"$f":"IF('1. Order'!H508=\"\",\"\",'1. Order'!H508)","v":""},{"$f":"IF('1. Order'!I508=\"\",\"\",'1. Order'!I508)","v":""},{"$f":"IF('1. Order'!J508=\"\",\"\",'1. Order'!J508)","v":""},{"$f":"IF('1. Order'!K508=\"\",\"\",'1. Order'!K508)","v":""},{"$f":"IF('1. Order'!L508=\"\",\"\",'1. Order'!L508)","v":""},{"$f":"IF('1. Order'!M508=\"\",\"\",'1. Order'!M508)","v":""},{"$f":"IF('1. Order'!N508=\"\",\"\",'1. Order'!N508)","v":""},{"$f":"IF('1. Order'!O508=\"\",\"\",'1. Order'!O508)","v":{"$error":"#N/A"}},{"$f":"IF('1. Order'!P508=\"\",\"\",'1. Order'!P508)","v":{"$error":"#N/A"}},{"$f":"IF('1. Order'!Q508=\"\",\"\",'1. Order'!Q508)","v":""},{"$f":"IF('1. Order'!R508=\"\",\"\",'1. Order'!R508)","v":""},{"$f":"IF('1. Order'!S508=\"\",\"\",'1. Order'!S508)","v":""},{"$f":"IF('1. Order'!V508=\"\",\"\",'1. Order'!V508)","v":""},{"$f":"IF('1. Order'!W508=\"\",\"\",'1. Order'!W508)","v":""},{"$f":"IF('1. Order'!X508=\"\",\"\",'1. Order'!X508)","v":"EUR"},{"$f":"IF('1. Order'!Y508=\"\",\"\",'1. Order'!Y508)","v":""},{"$f":"IF('1. Order'!Z508=\"\",\"\",'1. Order'!Z508)","v":""},{"$f":"IF('1. Order'!AA508=\"\",\"\",'1. Order'!AA508)","v":""},null,{"$f":"IF('1. Order'!AS508=\"\",\"\",'1. Order'!AS508)","v":""},{"$f":"IF('1. Order'!AT508=\"\",\"\",'1. Order'!AT508)","v":""},null,null,null,null,null,null,null,{"$f":"IF('1. Order'!AX508=\"\",\"\",'1. Order'!AX508)","v":""},{"$f":"IF('1. Order'!AY508=\"\",\"\",'1. Order'!AY508)","v":""},{"$f":"IF('1. Order'!AZ508=\"\",\"\",'1. Order'!AZ508)","v":""},{"$f":"IF('1. Order'!BA508=\"\",\"\",'1. Order'!BA508)","v":""},{"$f":"IF('1. Order'!BC508=\"\",\"\",'1. Order'!BC508)","v":""},{"$f":"IF('1. Order'!BD508=\"\",\"\",'1. Order'!BD508)","v":6},{"$f":"IF('1. Order'!BE508=\"\",\"\",'1. Order'!BE508)","v":"None"},{"$f":"IF('1. Order'!BF508=\"\",\"\",'1. Order'!BF508)","v":"Parcel"},{"$f":"IF('1. Order'!BG508=\"\",\"\",'1. Order'!BG508)","v":"ZWO"}]
[{"$f":"IF('1. Order'!F509=\"\",\"\",'1. Order'!F509)","v":""},{"$f":"IF('1. Order'!G509=\"\",\"\",'1. Order'!G509)","v":""},{"$f":"IF('1. Order'!H509=\"\",\"\",'1. Order'!H509)","v":""},{"$f":"IF('1. Order'!I509=\"\",\"\",'1. Order'!I509)","v":""},{"$f":"IF('1. Order'!J509=\"\",\"\",'1. Order'!J509)","v":""},{"$f":"IF('1. Order'!K509=\"\",\"\",'1. Order'!K509)","v":""},{"$f":"IF('1. Order'!L509=\"\",\"\",'1. Order'!L509)","v":""},{"$f":"IF('1. Order'!M509=\"\",\"\",'1. Order'!M509)","v":""},{"$f":"IF('1. Order'!N509=\"\",\"\",'1. Order'!N509)","v":""},{"$f":"IF('1. Order'!O509=\"\",\"\",'1. Order'!O509)","v":{"$error":"#N/A"}},{"$f":"IF('1. Order'!P509=\"\",\"\",'1. Order'!P509)","v":{"$error":"#N/A"}},{"$f":"IF('1. Order'!Q509=\"\",\"\",'1. Order'!Q509)","v":""},{"$f":"IF('1. Order'!R509=\"\",\"\",'1. Order'!R509)","v":""},{"$f":"IF('1. Order'!S509=\"\",\"\",'1. Order'!S509)","v":""},{"$f":"IF('1. Order'!V509=\"\",\"\",'1. Order'!V509)","v":""},{"$f":"IF('1. Order'!W509=\"\",\"\",'1. Order'!W509)","v":""},{"$f":"IF('1. Order'!X509=\"\",\"\",'1. Order'!X509)","v":"EUR"},{"$f":"IF('1. Order'!Y509=\"\",\"\",'1. Order'!Y509)","v":""},{"$f":"IF('1. Order'!Z509=\"\",\"\",'1. Order'!Z509)","v":""},{"$f":"IF('1. Order'!AA509=\"\",\"\",'1. Order'!AA509)","v":""},null,{"$f":"IF('1. Order'!AS509=\"\",\"\",'1. Order'!AS509)","v":""},{"$f":"IF('1. Order'!AT509=\"\",\"\",'1. Order'!AT509)","v":""},null,null,null,null,null,null,null,{"$f":"IF('1. Order'!AX509=\"\",\"\",'1. Order'!AX509)","v":""},{"$f":"IF('1. Order'!AY509=\"\",\"\",'1. Order'!AY509)","v":""},{"$f":"IF('1. Order'!AZ509=\"\",\"\",'1. Order'!AZ509)","v":""},{"$f":"IF('1. Order'!BA509=\"\",\"\",'1. Order'!BA509)","v":""},{"$f":"IF('1. Order'!BC509=\"\",\"\",'1. Order'!BC509)","v":""},{"$f":"IF('1. Order'!BD509=\"\",\"\",'1. Order'!BD509)","v":6},{"$f":"IF('1. Order'!BE509=\"\",\"\",'1. Order'!BE509)","v":"None"},{"$f":"IF('1. Order'!BF509=\"\",\"\",'1. Order'!BF509)","v":"Parcel"},{"$f":"IF('1. Order'!BG509=\"\",\"\",'1. Order'!BG509)","v":"ZWO"}]
[{"$f":"IF('1. Order'!F510=\"\",\"\",'1. Order'!F510)","v":""},{"$f":"IF('1. Order'!G510=\"\",\"\",'1. Order'!G510)","v":""},{"$f":"IF('1. Order'!H510=\"\",\"\",'1. Order'!H510)","v":""},{"$f":"IF('1. Order'!I510=\"\",\"\",'1. Order'!I510)","v":""},{"$f":"IF('1. Order'!J510=\"\",\"\",'1. Order'!J510)","v":""},{"$f":"IF('1. Order'!K510=\"\",\"\",'1. Order'!K510)","v":""},{"$f":"IF('1. Order'!L510=\"\",\"\",'1. Order'!L510)","v":""},{"$f":"IF('1. Order'!M510=\"\",\"\",'1. Order'!M510)","v":""},{"$f":"IF('1. Order'!N510=\"\",\"\",'1. Order'!N510)","v":""},{"$f":"IF('1. Order'!O510=\"\",\"\",'1. Order'!O510)","v":{"$error":"#N/A"}},{"$f":"IF('1. Order'!P510=\"\",\"\",'1. Order'!P510)","v":{"$error":"#N/A"}},{"$f":"IF('1. Order'!Q510=\"\",\"\",'1. Order'!Q510)","v":""},{"$f":"IF('1. Order'!R510=\"\",\"\",'1. Order'!R510)","v":""},{"$f":"IF('1. Order'!S510=\"\",\"\",'1. Order'!S510)","v":""},{"$f":"IF('1. Order'!V510=\"\",\"\",'1. Order'!V510)","v":""},{"$f":"IF('1. Order'!W510=\"\",\"\",'1. Order'!W510)","v":""},{"$f":"IF('1. Order'!X510=\"\",\"\",'1. Order'!X510)","v":"EUR"},{"$f":"IF('1. Order'!Y510=\"\",\"\",'1. Order'!Y510)","v":""},{"$f":"IF('1. Order'!Z510=\"\",\"\",'1. Order'!Z510)","v":""},{"$f":"IF('1. Order'!AA510=\"\",\"\",'1. Order'!AA510)","v":""},null,{"$f":"IF('1. Order'!AS510=\"\",\"\",'1. Order'!AS510)","v":""},{"$f":"IF('1. Order'!AT510=\"\",\"\",'1. Order'!AT510)","v":""},null,null,null,null,null,null,null,{"$f":"IF('1. Order'!AX510=\"\",\"\",'1. Order'!AX510)","v":""},{"$f":"IF('1. Order'!AY510=\"\",\"\",'1. Order'!AY510)","v":""},{"$f":"IF('1. Order'!AZ510=\"\",\"\",'1. Order'!AZ510)","v":""},{"$f":"IF('1. Order'!BA510=\"\",\"\",'1. Order'!BA510)","v":""},{"$f":"IF('1. Order'!BC510=\"\",\"\",'1. Order'!BC510)","v":""},{"$f":"IF('1. Order'!BD510=\"\",\"\",'1. Order'!BD510)","v":6},{"$f":"IF('1. Order'!BE510=\"\",\"\",'1. Order'!BE510)","v":"None"},{"$f":"IF('1. Order'!BF510=\"\",\"\",'1. Order'!BF510)","v":"Parcel"},{"$f":"IF('1. Order'!BG510=\"\",\"\",'1. Order'!BG510)","v":"ZWO"}]
[{"$f":"IF('1. Order'!F511=\"\",\"\",'1. Order'!F511)","v":""},{"$f":"IF('1. Order'!G511=\"\",\"\",'1. Order'!G511)","v":""},{"$f":"IF('1. Order'!H511=\"\",\"\",'1. Order'!H511)","v":""},{"$f":"IF('1. Order'!I511=\"\",\"\",'1. Order'!I511)","v":""},{"$f":"IF('1. Order'!J511=\"\",\"\",'1. Order'!J511)","v":""},{"$f":"IF('1. Order'!K511=\"\",\"\",'1. Order'!K511)","v":""},{"$f":"IF('1. Order'!L511=\"\",\"\",'1. Order'!L511)","v":""},{"$f":"IF('1. Order'!M511=\"\",\"\",'1. Order'!M511)","v":""},{"$f":"IF('1. Order'!N511=\"\",\"\",'1. Order'!N511)","v":""},{"$f":"IF('1. Order'!O511=\"\",\"\",'1. Order'!O511)","v":{"$error":"#N/A"}},{"$f":"IF('1. Order'!P511=\"\",\"\",'1. Order'!P511)","v":{"$error":"#N/A"}},{"$f":"IF('1. Order'!Q511=\"\",\"\",'1. Order'!Q511)","v":""},{"$f":"IF('1. Order'!R511=\"\",\"\",'1. Order'!R511)","v":""},{"$f":"IF('1. Order'!S511=\"\",\"\",'1. Order'!S511)","v":""},{"$f":"IF('1. Order'!V511=\"\",\"\",'1. Order'!V511)","v":""},{"$f":"IF('1. Order'!W511=\"\",\"\",'1. Order'!W511)","v":""},{"$f":"IF('1. Order'!X511=\"\",\"\",'1. Order'!X511)","v":"EUR"},{"$f":"IF('1. Order'!Y511=\"\",\"\",'1. Order'!Y511)","v":""},{"$f":"IF('1. Order'!Z511=\"\",\"\",'1. Order'!Z511)","v":""},{"$f":"IF('1. Order'!AA511=\"\",\"\",'1. Order'!AA511)","v":""},null,{"$f":"IF('1. Order'!AS511=\"\",\"\",'1. Order'!AS511)","v":""},{"$f":"IF('1. Order'!AT511=\"\",\"\",'1. Order'!AT511)","v":""},null,null,null,null,null,null,null,{"$f":"IF('1. Order'!AX511=\"\",\"\",'1. Order'!AX511)","v":""},{"$f":"IF('1. Order'!AY511=\"\",\"\",'1. Order'!AY511)","v":""},{"$f":"IF('1. Order'!AZ511=\"\",\"\",'1. Order'!AZ511)","v":""},{"$f":"IF('1. Order'!BA511=\"\",\"\",'1. Order'!BA511)","v":""},{"$f":"IF('1. Order'!BC511=\"\",\"\",'1. Order'!BC511)","v":""},{"$f":"IF('1. Order'!BD511=\"\",\"\",'1. Order'!BD511)","v":6},{"$f":"IF('1. Order'!BE511=\"\",\"\",'1. Order'!BE511)","v":"None"},{"$f":"IF('1. Order'!BF511=\"\",\"\",'1. Order'!BF511)","v":"Parcel"},{"$f":"IF('1. Order'!BG511=\"\",\"\",'1. Order'!BG511)","v":"ZWO"}]
[{"$f":"IF('1. Order'!F512=\"\",\"\",'1. Order'!F512)","v":""},{"$f":"IF('1. Order'!G512=\"\",\"\",'1. Order'!G512)","v":""},{"$f":"IF('1. Order'!H512=\"\",\"\",'1. Order'!H512)","v":""},{"$f":"IF('1. Order'!I512=\"\",\"\",'1. Order'!I512)","v":""},{"$f":"IF('1. Order'!J512=\"\",\"\",'1. Order'!J512)","v":""},{"$f":"IF('1. Order'!K512=\"\",\"\",'1. Order'!K512)","v":""},{"$f":"IF('1. Order'!L512=\"\",\"\",'1. Order'!L512)","v":""},{"$f":"IF('1. Order'!M512=\"\",\"\",'1. Order'!M512)","v":""},{"$f":"IF('1. Order'!N512=\"\",\"\",'1. Order'!N512)","v":""},{"$f":"IF('1. Order'!O512=\"\",\"\",'1. Order'!O512)","v":{"$error":"#N/A"}},{"$f":"IF('1. Order'!P512=\"\",\"\",'1. Order'!P512)","v":{"$error":"#N/A"}},{"$f":"IF('1. Order'!Q512=\"\",\"\",'1. Order'!Q512)","v":""},{"$f":"IF('1. Order'!R512=\"\",\"\",'1. Order'!R512)","v":""},{"$f":"IF('1. Order'!S512=\"\",\"\",'1. Order'!S512)","v":""},{"$f":"IF('1. Order'!V512=\"\",\"\",'1. Order'!V512)","v":""},{"$f":"IF('1. Order'!W512=\"\",\"\",'1. Order'!W512)","v":""},{"$f":"IF('1. Order'!X512=\"\",\"\",'1. Order'!X512)","v":"EUR"},{"$f":"IF('1. Order'!Y512=\"\",\"\",'1. Order'!Y512)","v":""},{"$f":"IF('1. Order'!Z512=\"\",\"\",'1. Order'!Z512)","v":""},{"$f":"IF('1. Order'!AA512=\"\",\"\",'1. Order'!AA512)","v":""},null,{"$f":"IF('1. Order'!AS512=\"\",\"\",'1. Order'!AS512)","v":""},{"$f":"IF('1. Order'!AT512=\"\",\"\",'1. Order'!AT512)","v":""},null,null,null,null,null,null,null,{"$f":"IF('1. Order'!AX512=\"\",\"\",'1. Order'!AX512)","v":""},{"$f":"IF('1. Order'!AY512=\"\",\"\",'1. Order'!AY512)","v":""},{"$f":"IF('1. Order'!AZ512=\"\",\"\",'1. Order'!AZ512)","v":""},{"$f":"IF('1. Order'!BA512=\"\",\"\",'1. Order'!BA512)","v":""},{"$f":"IF('1. Order'!BC512=\"\",\"\",'1. Order'!BC512)","v":""},{"$f":"IF('1. Order'!BD512=\"\",\"\",'1. Order'!BD512)","v":6},{"$f":"IF('1. Order'!BE512=\"\",\"\",'1. Order'!BE512)","v":"None"},{"$f":"IF('1. Order'!BF512=\"\",\"\",'1. Order'!BF512)","v":"Parcel"},{"$f":"IF('1. Order'!BG512=\"\",\"\",'1. Order'!BG512)","v":"ZWO"}]
[{"$f":"IF('1. Order'!F513=\"\",\"\",'1. Order'!F513)","v":""},{"$f":"IF('1. Order'!G513=\"\",\"\",'1. Order'!G513)","v":""},{"$f":"IF('1. Order'!H513=\"\",\"\",'1. Order'!H513)","v":""},{"$f":"IF('1. Order'!I513=\"\",\"\",'1. Order'!I513)","v":""},{"$f":"IF('1. Order'!J513=\"\",\"\",'1. Order'!J513)","v":""},{"$f":"IF('1. Order'!K513=\"\",\"\",'1. Order'!K513)","v":""},{"$f":"IF('1. Order'!L513=\"\",\"\",'1. Order'!L513)","v":""},{"$f":"IF('1. Order'!M513=\"\",\"\",'1. Order'!M513)","v":""},{"$f":"IF('1. Order'!N513=\"\",\"\",'1. Order'!N513)","v":""},{"$f":"IF('1. Order'!O513=\"\",\"\",'1. Order'!O513)","v":{"$error":"#N/A"}},{"$f":"IF('1. Order'!P513=\"\",\"\",'1. Order'!P513)","v":{"$error":"#N/A"}},{"$f":"IF('1. Order'!Q513=\"\",\"\",'1. Order'!Q513)","v":""},{"$f":"IF('1. Order'!R513=\"\",\"\",'1. Order'!R513)","v":""},{"$f":"IF('1. Order'!S513=\"\",\"\",'1. Order'!S513)","v":""},{"$f":"IF('1. Order'!V513=\"\",\"\",'1. Order'!V513)","v":""},{"$f":"IF('1. Order'!W513=\"\",\"\",'1. Order'!W513)","v":""},{"$f":"IF('1. Order'!X513=\"\",\"\",'1. Order'!X513)","v":"EUR"},{"$f":"IF('1. Order'!Y513=\"\",\"\",'1. Order'!Y513)","v":""},{"$f":"IF('1. Order'!Z513=\"\",\"\",'1. Order'!Z513)","v":""},{"$f":"IF('1. Order'!AA513=\"\",\"\",'1. Order'!AA513)","v":""},null,{"$f":"IF('1. Order'!AS513=\"\",\"\",'1. Order'!AS513)","v":""},{"$f":"IF('1. Order'!AT513=\"\",\"\",'1. Order'!AT513)","v":""},null,null,null,null,null,null,null,{"$f":"IF('1. Order'!AX513=\"\",\"\",'1. Order'!AX513)","v":""},{"$f":"IF('1. Order'!AY513=\"\",\"\",'1. Order'!AY513)","v":""},{"$f":"IF('1. Order'!AZ513=\"\",\"\",'1. Order'!AZ513)","v":""},{"$f":"IF('1. Order'!BA513=\"\",\"\",'1. Order'!BA513)","v":""},{"$f":"IF('1. Order'!BC513=\"\",\"\",'1. Order'!BC513)","v":""},{"$f":"IF('1. Order'!BD513=\"\",\"\",'1. Order'!BD513)","v":6},{"$f":"IF('1. Order'!BE513=\"\",\"\",'1. Order'!BE513)","v":"None"},{"$f":"IF('1. Order'!BF513=\"\",\"\",'1. Order'!BF513)","v":"Parcel"},{"$f":"IF('1. Order'!BG513=\"\",\"\",'1. Order'!BG513)","v":"ZWO"}]
[{"$f":"IF('1. Order'!F514=\"\",\"\",'1. Order'!F514)","v":""},{"$f":"IF('1. Order'!G514=\"\",\"\",'1. Order'!G514)","v":""},{"$f":"IF('1. Order'!H514=\"\",\"\",'1. Order'!H514)","v":""},{"$f":"IF('1. Order'!I514=\"\",\"\",'1. Order'!I514)","v":""},{"$f":"IF('1. Order'!J514=\"\",\"\",'1. Order'!J514)","v":""},{"$f":"IF('1. Order'!K514=\"\",\"\",'1. Order'!K514)","v":""},{"$f":"IF('1. Order'!L514=\"\",\"\",'1. Order'!L514)","v":""},{"$f":"IF('1. Order'!M514=\"\",\"\",'1. Order'!M514)","v":""},{"$f":"IF('1. Order'!N514=\"\",\"\",'1. Order'!N514)","v":""},{"$f":"IF('1. Order'!O514=\"\",\"\",'1. Order'!O514)","v":{"$error":"#N/A"}},{"$f":"IF('1. Order'!P514=\"\",\"\",'1. Order'!P514)","v":{"$error":"#N/A"}},{"$f":"IF('1. Order'!Q514=\"\",\"\",'1. Order'!Q514)","v":""},{"$f":"IF('1. Order'!R514=\"\",\"\",'1. Order'!R514)","v":""},{"$f":"IF('1. Order'!S514=\"\",\"\",'1. Order'!S514)","v":""},{"$f":"IF('1. Order'!V514=\"\",\"\",'1. Order'!V514)","v":""},{"$f":"IF('1. Order'!W514=\"\",\"\",'1. Order'!W514)","v":""},{"$f":"IF('1. Order'!X514=\"\",\"\",'1. Order'!X514)","v":"EUR"},{"$f":"IF('1. Order'!Y514=\"\",\"\",'1. Order'!Y514)","v":""},{"$f":"IF('1. Order'!Z514=\"\",\"\",'1. Order'!Z514)","v":""},{"$f":"IF('1. Order'!AA514=\"\",\"\",'1. Order'!AA514)","v":""},null,{"$f":"IF('1. Order'!AS514=\"\",\"\",'1. Order'!AS514)","v":""},{"$f":"IF('1. Order'!AT514=\"\",\"\",'1. Order'!AT514)","v":""},null,null,null,null,null,null,null,{"$f":"IF('1. Order'!AX514=\"\",\"\",'1. Order'!AX514)","v":""},{"$f":"IF('1. Order'!AY514=\"\",\"\",'1. Order'!AY514)","v":""},{"$f":"IF('1. Order'!AZ514=\"\",\"\",'1. Order'!AZ514)","v":""},{"$f":"IF('1. Order'!BA514=\"\",\"\",'1. Order'!BA514)","v":""},{"$f":"IF('1. Order'!BC514=\"\",\"\",'1. Order'!BC514)","v":""},{"$f":"IF('1. Order'!BD514=\"\",\"\",'1. Order'!BD514)","v":6},{"$f":"IF('1. Order'!BE514=\"\",\"\",'1. Order'!BE514)","v":"None"},{"$f":"IF('1. Order'!BF514=\"\",\"\",'1. Order'!BF514)","v":"Parcel"},{"$f":"IF('1. Order'!BG514=\"\",\"\",'1. Order'!BG514)","v":"ZWO"}]
[{"$f":"IF('1. Order'!F515=\"\",\"\",'1. Order'!F515)","v":""},{"$f":"IF('1. Order'!G515=\"\",\"\",'1. Order'!G515)","v":""},{"$f":"IF('1. Order'!H515=\"\",\"\",'1. Order'!H515)","v":""},{"$f":"IF('1. Order'!I515=\"\",\"\",'1. Order'!I515)","v":""},{"$f":"IF('1. Order'!J515=\"\",\"\",'1. Order'!J515)","v":""},{"$f":"IF('1. Order'!K515=\"\",\"\",'1. Order'!K515)","v":""},{"$f":"IF('1. Order'!L515=\"\",\"\",'1. Order'!L515)","v":""},{"$f":"IF('1. Order'!M515=\"\",\"\",'1. Order'!M515)","v":""},{"$f":"IF('1. Order'!N515=\"\",\"\",'1. Order'!N515)","v":""},{"$f":"IF('1. Order'!O515=\"\",\"\",'1. Order'!O515)","v":{"$error":"#N/A"}},{"$f":"IF('1. Order'!P515=\"\",\"\",'1. Order'!P515)","v":{"$error":"#N/A"}},{"$f":"IF('1. Order'!Q515=\"\",\"\",'1. Order'!Q515)","v":""},{"$f":"IF('1. Order'!R515=\"\",\"\",'1. Order'!R515)","v":""},{"$f":"IF('1. Order'!S515=\"\",\"\",'1. Order'!S515)","v":""},{"$f":"IF('1. Order'!V515=\"\",\"\",'1. Order'!V515)","v":""},{"$f":"IF('1. Order'!W515=\"\",\"\",'1. Order'!W515)","v":""},{"$f":"IF('1. Order'!X515=\"\",\"\",'1. Order'!X515)","v":"EUR"},{"$f":"IF('1. Order'!Y515=\"\",\"\",'1. Order'!Y515)","v":""},{"$f":"IF('1. Order'!Z515=\"\",\"\",'1. Order'!Z515)","v":""},{"$f":"IF('1. Order'!AA515=\"\",\"\",'1. Order'!AA515)","v":""},null,{"$f":"IF('1. Order'!AS515=\"\",\"\",'1. Order'!AS515)","v":""},{"$f":"IF('1. Order'!AT515=\"\",\"\",'1. Order'!AT515)","v":""},null,null,null,null,null,null,null,{"$f":"IF('1. Order'!AX515=\"\",\"\",'1. Order'!AX515)","v":""},{"$f":"IF('1. Order'!AY515=\"\",\"\",'1. Order'!AY515)","v":""},{"$f":"IF('1. Order'!AZ515=\"\",\"\",'1. Order'!AZ515)","v":""},{"$f":"IF('1. Order'!BA515=\"\",\"\",'1. Order'!BA515)","v":""},{"$f":"IF('1. Order'!BC515=\"\",\"\",'1. Order'!BC515)","v":""},{"$f":"IF('1. Order'!BD515=\"\",\"\",'1. Order'!BD515)","v":6},{"$f":"IF('1. Order'!BE515=\"\",\"\",'1. Order'!BE515)","v":"None"},{"$f":"IF('1. Order'!BF515=\"\",\"\",'1. Order'!BF515)","v":"Parcel"},{"$f":"IF('1. Order'!BG515=\"\",\"\",'1. Order'!BG515)","v":"ZWO"}]
[{"$f":"IF('1. Order'!F516=\"\",\"\",'1. Order'!F516)","v":""},{"$f":"IF('1. Order'!G516=\"\",\"\",'1. Order'!G516)","v":""},{"$f":"IF('1. Order'!H516=\"\",\"\",'1. Order'!H516)","v":""},{"$f":"IF('1. Order'!I516=\"\",\"\",'1. Order'!I516)","v":""},{"$f":"IF('1. Order'!J516=\"\",\"\",'1. Order'!J516)","v":""},{"$f":"IF('1. Order'!K516=\"\",\"\",'1. Order'!K516)","v":""},{"$f":"IF('1. Order'!L516=\"\",\"\",'1. Order'!L516)","v":""},{"$f":"IF('1. Order'!M516=\"\",\"\",'1. Order'!M516)","v":""},{"$f":"IF('1. Order'!N516=\"\",\"\",'1. Order'!N516)","v":""},{"$f":"IF('1. Order'!O516=\"\",\"\",'1. Order'!O516)","v":{"$error":"#N/A"}},{"$f":"IF('1. Order'!P516=\"\",\"\",'1. Order'!P516)","v":{"$error":"#N/A"}},{"$f":"IF('1. Order'!Q516=\"\",\"\",'1. Order'!Q516)","v":""},{"$f":"IF('1. Order'!R516=\"\",\"\",'1. Order'!R516)","v":""},{"$f":"IF('1. Order'!S516=\"\",\"\",'1. Order'!S516)","v":""},{"$f":"IF('1. Order'!V516=\"\",\"\",'1. Order'!V516)","v":""},{"$f":"IF('1. Order'!W516=\"\",\"\",'1. Order'!W516)","v":""},{"$f":"IF('1. Order'!X516=\"\",\"\",'1. Order'!X516)","v":"EUR"},{"$f":"IF('1. Order'!Y516=\"\",\"\",'1. Order'!Y516)","v":""},{"$f":"IF('1. Order'!Z516=\"\",\"\",'1. Order'!Z516)","v":""},{"$f":"IF('1. Order'!AA516=\"\",\"\",'1. Order'!AA516)","v":""},null,{"$f":"IF('1. Order'!AS516=\"\",\"\",'1. Order'!AS516)","v":""},{"$f":"IF('1. Order'!AT516=\"\",\"\",'1. Order'!AT516)","v":""},null,null,null,null,null,null,null,{"$f":"IF('1. Order'!AX516=\"\",\"\",'1. Order'!AX516)","v":""},{"$f":"IF('1. Order'!AY516=\"\",\"\",'1. Order'!AY516)","v":""},{"$f":"IF('1. Order'!AZ516=\"\",\"\",'1. Order'!AZ516)","v":""},{"$f":"IF('1. Order'!BA516=\"\",\"\",'1. Order'!BA516)","v":""},{"$f":"IF('1. Order'!BC516=\"\",\"\",'1. Order'!BC516)","v":""},{"$f":"IF('1. Order'!BD516=\"\",\"\",'1. Order'!BD516)","v":6},{"$f":"IF('1. Order'!BE516=\"\",\"\",'1. Order'!BE516)","v":"None"},{"$f":"IF('1. Order'!BF516=\"\",\"\",'1. Order'!BF516)","v":"Parcel"},{"$f":"IF('1. Order'!BG516=\"\",\"\",'1. Order'!BG516)","v":"ZWO"}]
[{"$f":"IF('1. Order'!F517=\"\",\"\",'1. Order'!F517)","v":""},{"$f":"IF('1. Order'!G517=\"\",\"\",'1. Order'!G517)","v":""},{"$f":"IF('1. Order'!H517=\"\",\"\",'1. Order'!H517)","v":""},{"$f":"IF('1. Order'!I517=\"\",\"\",'1. Order'!I517)","v":""},{"$f":"IF('1. Order'!J517=\"\",\"\",'1. Order'!J517)","v":""},{"$f":"IF('1. Order'!K517=\"\",\"\",'1. Order'!K517)","v":""},{"$f":"IF('1. Order'!L517=\"\",\"\",'1. Order'!L517)","v":""},{"$f":"IF('1. Order'!M517=\"\",\"\",'1. Order'!M517)","v":""},{"$f":"IF('1. Order'!N517=\"\",\"\",'1. Order'!N517)","v":""},{"$f":"IF('1. Order'!O517=\"\",\"\",'1. Order'!O517)","v":{"$error":"#N/A"}},{"$f":"IF('1. Order'!P517=\"\",\"\",'1. Order'!P517)","v":{"$error":"#N/A"}},{"$f":"IF('1. Order'!Q517=\"\",\"\",'1. Order'!Q517)","v":""},{"$f":"IF('1. Order'!R517=\"\",\"\",'1. Order'!R517)","v":""},{"$f":"IF('1. Order'!S517=\"\",\"\",'1. Order'!S517)","v":""},{"$f":"IF('1. Order'!V517=\"\",\"\",'1. Order'!V517)","v":""},{"$f":"IF('1. Order'!W517=\"\",\"\",'1. Order'!W517)","v":""},{"$f":"IF('1. Order'!X517=\"\",\"\",'1. Order'!X517)","v":"EUR"},{"$f":"IF('1. Order'!Y517=\"\",\"\",'1. Order'!Y517)","v":""},{"$f":"IF('1. Order'!Z517=\"\",\"\",'1. Order'!Z517)","v":""},{"$f":"IF('1. Order'!AA517=\"\",\"\",'1. Order'!AA517)","v":""},null,{"$f":"IF('1. Order'!AS517=\"\",\"\",'1. Order'!AS517)","v":""},{"$f":"IF('1. Order'!AT517=\"\",\"\",'1. Order'!AT517)","v":""},null,null,null,null,null,null,null,{"$f":"IF('1. Order'!AX517=\"\",\"\",'1. Order'!AX517)","v":""},{"$f":"IF('1. Order'!AY517=\"\",\"\",'1. Order'!AY517)","v":""},{"$f":"IF('1. Order'!AZ517=\"\",\"\",'1. Order'!AZ517)","v":""},{"$f":"IF('1. Order'!BA517=\"\",\"\",'1. Order'!BA517)","v":""},{"$f":"IF('1. Order'!BC517=\"\",\"\",'1. Order'!BC517)","v":""},{"$f":"IF('1. Order'!BD517=\"\",\"\",'1. Order'!BD517)","v":6},{"$f":"IF('1. Order'!BE517=\"\",\"\",'1. Order'!BE517)","v":"None"},{"$f":"IF('1. Order'!BF517=\"\",\"\",'1. Order'!BF517)","v":"Parcel"},{"$f":"IF('1. Order'!BG517=\"\",\"\",'1. Order'!BG517)","v":"ZWO"}]
[{"$f":"IF('1. Order'!F518=\"\",\"\",'1. Order'!F518)","v":""},{"$f":"IF('1. Order'!G518=\"\",\"\",'1. Order'!G518)","v":""},{"$f":"IF('1. Order'!H518=\"\",\"\",'1. Order'!H518)","v":""},{"$f":"IF('1. Order'!I518=\"\",\"\",'1. Order'!I518)","v":""},{"$f":"IF('1. Order'!J518=\"\",\"\",'1. Order'!J518)","v":""},{"$f":"IF('1. Order'!K518=\"\",\"\",'1. Order'!K518)","v":""},{"$f":"IF('1. Order'!L518=\"\",\"\",'1. Order'!L518)","v":""},{"$f":"IF('1. Order'!M518=\"\",\"\",'1. Order'!M518)","v":""},{"$f":"IF('1. Order'!N518=\"\",\"\",'1. Order'!N518)","v":""},{"$f":"IF('1. Order'!O518=\"\",\"\",'1. Order'!O518)","v":{"$error":"#N/A"}},{"$f":"IF('1. Order'!P518=\"\",\"\",'1. Order'!P518)","v":{"$error":"#N/A"}},{"$f":"IF('1. Order'!Q518=\"\",\"\",'1. Order'!Q518)","v":""},{"$f":"IF('1. Order'!R518=\"\",\"\",'1. Order'!R518)","v":""},{"$f":"IF('1. Order'!S518=\"\",\"\",'1. Order'!S518)","v":""},{"$f":"IF('1. Order'!V518=\"\",\"\",'1. Order'!V518)","v":""},{"$f":"IF('1. Order'!W518=\"\",\"\",'1. Order'!W518)","v":""},{"$f":"IF('1. Order'!X518=\"\",\"\",'1. Order'!X518)","v":"EUR"},{"$f":"IF('1. Order'!Y518=\"\",\"\",'1. Order'!Y518)","v":""},{"$f":"IF('1. Order'!Z518=\"\",\"\",'1. Order'!Z518)","v":""},{"$f":"IF('1. Order'!AA518=\"\",\"\",'1. Order'!AA518)","v":""},null,{"$f":"IF('1. Order'!AS518=\"\",\"\",'1. Order'!AS518)","v":""},{"$f":"IF('1. Order'!AT518=\"\",\"\",'1. Order'!AT518)","v":""},null,null,null,null,null,null,null,{"$f":"IF('1. Order'!AX518=\"\",\"\",'1. Order'!AX518)","v":""},{"$f":"IF('1. Order'!AY518=\"\",\"\",'1. Order'!AY518)","v":""},{"$f":"IF('1. Order'!AZ518=\"\",\"\",'1. Order'!AZ518)","v":""},{"$f":"IF('1. Order'!BA518=\"\",\"\",'1. Order'!BA518)","v":""},{"$f":"IF('1. Order'!BC518=\"\",\"\",'1. Order'!BC518)","v":""},{"$f":"IF('1. Order'!BD518=\"\",\"\",'1. Order'!BD518)","v":6},{"$f":"IF('1. Order'!BE518=\"\",\"\",'1. Order'!BE518)","v":"None"},{"$f":"IF('1. Order'!BF518=\"\",\"\",'1. Order'!BF518)","v":"Parcel"},{"$f":"IF('1. Order'!BG518=\"\",\"\",'1. Order'!BG518)","v":"ZWO"}]
[{"$f":"IF('1. Order'!F519=\"\",\"\",'1. Order'!F519)","v":""},{"$f":"IF('1. Order'!G519=\"\",\"\",'1. Order'!G519)","v":""},{"$f":"IF('1. Order'!H519=\"\",\"\",'1. Order'!H519)","v":""},{"$f":"IF('1. Order'!I519=\"\",\"\",'1. Order'!I519)","v":""},{"$f":"IF('1. Order'!J519=\"\",\"\",'1. Order'!J519)","v":""},{"$f":"IF('1. Order'!K519=\"\",\"\",'1. Order'!K519)","v":""},{"$f":"IF('1. Order'!L519=\"\",\"\",'1. Order'!L519)","v":""},{"$f":"IF('1. Order'!M519=\"\",\"\",'1. Order'!M519)","v":""},{"$f":"IF('1. Order'!N519=\"\",\"\",'1. Order'!N519)","v":""},{"$f":"IF('1. Order'!O519=\"\",\"\",'1. Order'!O519)","v":{"$error":"#N/A"}},{"$f":"IF('1. Order'!P519=\"\",\"\",'1. Order'!P519)","v":{"$error":"#N/A"}},{"$f":"IF('1. Order'!Q519=\"\",\"\",'1. Order'!Q519)","v":""},{"$f":"IF('1. Order'!R519=\"\",\"\",'1. Order'!R519)","v":""},{"$f":"IF('1. Order'!S519=\"\",\"\",'1. Order'!S519)","v":""},{"$f":"IF('1. Order'!V519=\"\",\"\",'1. Order'!V519)","v":""},{"$f":"IF('1. Order'!W519=\"\",\"\",'1. Order'!W519)","v":""},{"$f":"IF('1. Order'!X519=\"\",\"\",'1. Order'!X519)","v":"EUR"},{"$f":"IF('1. Order'!Y519=\"\",\"\",'1. Order'!Y519)","v":""},{"$f":"IF('1. Order'!Z519=\"\",\"\",'1. Order'!Z519)","v":""},{"$f":"IF('1. Order'!AA519=\"\",\"\",'1. Order'!AA519)","v":""},null,{"$f":"IF('1. Order'!AS519=\"\",\"\",'1. Order'!AS519)","v":""},{"$f":"IF('1. Order'!AT519=\"\",\"\",'1. Order'!AT519)","v":""},null,null,null,null,null,null,null,{"$f":"IF('1. Order'!AX519=\"\",\"\",'1. Order'!AX519)","v":""},{"$f":"IF('1. Order'!AY519=\"\",\"\",'1. Order'!AY519)","v":""},{"$f":"IF('1. Order'!AZ519=\"\",\"\",'1. Order'!AZ519)","v":""},{"$f":"IF('1. Order'!BA519=\"\",\"\",'1. Order'!BA519)","v":""},{"$f":"IF('1. Order'!BC519=\"\",\"\",'1. Order'!BC519)","v":""},{"$f":"IF('1. Order'!BD519=\"\",\"\",'1. Order'!BD519)","v":6},{"$f":"IF('1. Order'!BE519=\"\",\"\",'1. Order'!BE519)","v":"None"},{"$f":"IF('1. Order'!BF519=\"\",\"\",'1. Order'!BF519)","v":"Parcel"},{"$f":"IF('1. Order'!BG519=\"\",\"\",'1. Order'!BG519)","v":"ZWO"}]
[{"$f":"IF('1. Order'!F520=\"\",\"\",'1. Order'!F520)","v":""},{"$f":"IF('1. Order'!G520=\"\",\"\",'1. Order'!G520)","v":""},{"$f":"IF('1. Order'!H520=\"\",\"\",'1. Order'!H520)","v":""},{"$f":"IF('1. Order'!I520=\"\",\"\",'1. Order'!I520)","v":""},{"$f":"IF('1. Order'!J520=\"\",\"\",'1. Order'!J520)","v":""},{"$f":"IF('1. Order'!K520=\"\",\"\",'1. Order'!K520)","v":""},{"$f":"IF('1. Order'!L520=\"\",\"\",'1. Order'!L520)","v":""},{"$f":"IF('1. Order'!M520=\"\",\"\",'1. Order'!M520)","v":""},{"$f":"IF('1. Order'!N520=\"\",\"\",'1. Order'!N520)","v":""},{"$f":"IF('1. Order'!O520=\"\",\"\",'1. Order'!O520)","v":{"$error":"#N/A"}},{"$f":"IF('1. Order'!P520=\"\",\"\",'1. Order'!P520)","v":{"$error":"#N/A"}},{"$f":"IF('1. Order'!Q520=\"\",\"\",'1. Order'!Q520)","v":""},{"$f":"IF('1. Order'!R520=\"\",\"\",'1. Order'!R520)","v":""},{"$f":"IF('1. Order'!S520=\"\",\"\",'1. Order'!S520)","v":""},{"$f":"IF('1. Order'!V520=\"\",\"\",'1. Order'!V520)","v":""},{"$f":"IF('1. Order'!W520=\"\",\"\",'1. Order'!W520)","v":""},{"$f":"IF('1. Order'!X520=\"\",\"\",'1. Order'!X520)","v":"EUR"},{"$f":"IF('1. Order'!Y520=\"\",\"\",'1. Order'!Y520)","v":""},{"$f":"IF('1. Order'!Z520=\"\",\"\",'1. Order'!Z520)","v":""},{"$f":"IF('1. Order'!AA520=\"\",\"\",'1. Order'!AA520)","v":""},null,{"$f":"IF('1. Order'!AS520=\"\",\"\",'1. Order'!AS520)","v":""},{"$f":"IF('1. Order'!AT520=\"\",\"\",'1. Order'!AT520)","v":""},null,null,null,null,null,null,null,{"$f":"IF('1. Order'!AX520=\"\",\"\",'1. Order'!AX520)","v":""},{"$f":"IF('1. Order'!AY520=\"\",\"\",'1. Order'!AY520)","v":""},{"$f":"IF('1. Order'!AZ520=\"\",\"\",'1. Order'!AZ520)","v":""},{"$f":"IF('1. Order'!BA520=\"\",\"\",'1. Order'!BA520)","v":""},{"$f":"IF('1. Order'!BC520=\"\",\"\",'1. Order'!BC520)","v":""},{"$f":"IF('1. Order'!BD520=\"\",\"\",'1. Order'!BD520)","v":6},{"$f":"IF('1. Order'!BE520=\"\",\"\",'1. Order'!BE520)","v":"None"},{"$f":"IF('1. Order'!BF520=\"\",\"\",'1. Order'!BF520)","v":"Parcel"},{"$f":"IF('1. Order'!BG520=\"\",\"\",'1. Order'!BG520)","v":"ZWO"}]
[{"$f":"IF('1. Order'!F521=\"\",\"\",'1. Order'!F521)","v":""},{"$f":"IF('1. Order'!G521=\"\",\"\",'1. Order'!G521)","v":""},{"$f":"IF('1. Order'!H521=\"\",\"\",'1. Order'!H521)","v":""},{"$f":"IF('1. Order'!I521=\"\",\"\",'1. Order'!I521)","v":""},{"$f":"IF('1. Order'!J521=\"\",\"\",'1. Order'!J521)","v":""},{"$f":"IF('1. Order'!K521=\"\",\"\",'1. Order'!K521)","v":""},{"$f":"IF('1. Order'!L521=\"\",\"\",'1. Order'!L521)","v":""},{"$f":"IF('1. Order'!M521=\"\",\"\",'1. Order'!M521)","v":""},{"$f":"IF('1. Order'!N521=\"\",\"\",'1. Order'!N521)","v":""},{"$f":"IF('1. Order'!O521=\"\",\"\",'1. Order'!O521)","v":{"$error":"#N/A"}},{"$f":"IF('1. Order'!P521=\"\",\"\",'1. Order'!P521)","v":{"$error":"#N/A"}},{"$f":"IF('1. Order'!Q521=\"\",\"\",'1. Order'!Q521)","v":""},{"$f":"IF('1. Order'!R521=\"\",\"\",'1. Order'!R521)","v":""},{"$f":"IF('1. Order'!S521=\"\",\"\",'1. Order'!S521)","v":""},{"$f":"IF('1. Order'!V521=\"\",\"\",'1. Order'!V521)","v":""},{"$f":"IF('1. Order'!W521=\"\",\"\",'1. Order'!W521)","v":""},{"$f":"IF('1. Order'!X521=\"\",\"\",'1. Order'!X521)","v":"EUR"},{"$f":"IF('1. Order'!Y521=\"\",\"\",'1. Order'!Y521)","v":""},{"$f":"IF('1. Order'!Z521=\"\",\"\",'1. Order'!Z521)","v":""},{"$f":"IF('1. Order'!AA521=\"\",\"\",'1. Order'!AA521)","v":""},null,{"$f":"IF('1. Order'!AS521=\"\",\"\",'1. Order'!AS521)","v":""},{"$f":"IF('1. Order'!AT521=\"\",\"\",'1. Order'!AT521)","v":""},null,null,null,null,null,null,null,{"$f":"IF('1. Order'!AX521=\"\",\"\",'1. Order'!AX521)","v":""},{"$f":"IF('1. Order'!AY521=\"\",\"\",'1. Order'!AY521)","v":""},{"$f":"IF('1. Order'!AZ521=\"\",\"\",'1. Order'!AZ521)","v":""},{"$f":"IF('1. Order'!BA521=\"\",\"\",'1. Order'!BA521)","v":""},{"$f":"IF('1. Order'!BC521=\"\",\"\",'1. Order'!BC521)","v":""},{"$f":"IF('1. Order'!BD521=\"\",\"\",'1. Order'!BD521)","v":6},{"$f":"IF('1. Order'!BE521=\"\",\"\",'1. Order'!BE521)","v":"None"},{"$f":"IF('1. Order'!BF521=\"\",\"\",'1. Order'!BF521)","v":"Parcel"},{"$f":"IF('1. Order'!BG521=\"\",\"\",'1. Order'!BG521)","v":"ZWO"}]
[{"$f":"IF('1. Order'!F522=\"\",\"\",'1. Order'!F522)","v":""},{"$f":"IF('1. Order'!G522=\"\",\"\",'1. Order'!G522)","v":""},{"$f":"IF('1. Order'!H522=\"\",\"\",'1. Order'!H522)","v":""},{"$f":"IF('1. Order'!I522=\"\",\"\",'1. Order'!I522)","v":""},{"$f":"IF('1. Order'!J522=\"\",\"\",'1. Order'!J522)","v":""},{"$f":"IF('1. Order'!K522=\"\",\"\",'1. Order'!K522)","v":""},{"$f":"IF('1. Order'!L522=\"\",\"\",'1. Order'!L522)","v":""},{"$f":"IF('1. Order'!M522=\"\",\"\",'1. Order'!M522)","v":""},{"$f":"IF('1. Order'!N522=\"\",\"\",'1. Order'!N522)","v":""},{"$f":"IF('1. Order'!O522=\"\",\"\",'1. Order'!O522)","v":{"$error":"#N/A"}},{"$f":"IF('1. Order'!P522=\"\",\"\",'1. Order'!P522)","v":{"$error":"#N/A"}},{"$f":"IF('1. Order'!Q522=\"\",\"\",'1. Order'!Q522)","v":""},{"$f":"IF('1. Order'!R522=\"\",\"\",'1. Order'!R522)","v":""},{"$f":"IF('1. Order'!S522=\"\",\"\",'1. Order'!S522)","v":""},{"$f":"IF('1. Order'!V522=\"\",\"\",'1. Order'!V522)","v":""},{"$f":"IF('1. Order'!W522=\"\",\"\",'1. Order'!W522)","v":""},{"$f":"IF('1. Order'!X522=\"\",\"\",'1. Order'!X522)","v":"EUR"},{"$f":"IF('1. Order'!Y522=\"\",\"\",'1. Order'!Y522)","v":""},{"$f":"IF('1. Order'!Z522=\"\",\"\",'1. Order'!Z522)","v":""},{"$f":"IF('1. Order'!AA522=\"\",\"\",'1. Order'!AA522)","v":""},null,{"$f":"IF('1. Order'!AS522=\"\",\"\",'1. Order'!AS522)","v":""},{"$f":"IF('1. Order'!AT522=\"\",\"\",'1. Order'!AT522)","v":""},null,null,null,null,null,null,null,{"$f":"IF('1. Order'!AX522=\"\",\"\",'1. Order'!AX522)","v":""},{"$f":"IF('1. Order'!AY522=\"\",\"\",'1. Order'!AY522)","v":""},{"$f":"IF('1. Order'!AZ522=\"\",\"\",'1. Order'!AZ522)","v":""},{"$f":"IF('1. Order'!BA522=\"\",\"\",'1. Order'!BA522)","v":""},{"$f":"IF('1. Order'!BC522=\"\",\"\",'1. Order'!BC522)","v":""},{"$f":"IF('1. Order'!BD522=\"\",\"\",'1. Order'!BD522)","v":6},{"$f":"IF('1. Order'!BE522=\"\",\"\",'1. Order'!BE522)","v":"None"},{"$f":"IF('1. Order'!BF522=\"\",\"\",'1. Order'!BF522)","v":"Parcel"},{"$f":"IF('1. Order'!BG522=\"\",\"\",'1. Order'!BG522)","v":"ZWO"}]
[{"$f":"IF('1. Order'!F523=\"\",\"\",'1. Order'!F523)","v":""},{"$f":"IF('1. Order'!G523=\"\",\"\",'1. Order'!G523)","v":""},{"$f":"IF('1. Order'!H523=\"\",\"\",'1. Order'!H523)","v":""},{"$f":"IF('1. Order'!I523=\"\",\"\",'1. Order'!I523)","v":""},{"$f":"IF('1. Order'!J523=\"\",\"\",'1. Order'!J523)","v":""},{"$f":"IF('1. Order'!K523=\"\",\"\",'1. Order'!K523)","v":""},{"$f":"IF('1. Order'!L523=\"\",\"\",'1. Order'!L523)","v":""},{"$f":"IF('1. Order'!M523=\"\",\"\",'1. Order'!M523)","v":""},{"$f":"IF('1. Order'!N523=\"\",\"\",'1. Order'!N523)","v":""},{"$f":"IF('1. Order'!O523=\"\",\"\",'1. Order'!O523)","v":{"$error":"#N/A"}},{"$f":"IF('1. Order'!P523=\"\",\"\",'1. Order'!P523)","v":{"$error":"#N/A"}},{"$f":"IF('1. Order'!Q523=\"\",\"\",'1. Order'!Q523)","v":""},{"$f":"IF('1. Order'!R523=\"\",\"\",'1. Order'!R523)","v":""},{"$f":"IF('1. Order'!S523=\"\",\"\",'1. Order'!S523)","v":""},{"$f":"IF('1. Order'!V523=\"\",\"\",'1. Order'!V523)","v":""},{"$f":"IF('1. Order'!W523=\"\",\"\",'1. Order'!W523)","v":""},{"$f":"IF('1. Order'!X523=\"\",\"\",'1. Order'!X523)","v":"EUR"},{"$f":"IF('1. Order'!Y523=\"\",\"\",'1. Order'!Y523)","v":""},{"$f":"IF('1. Order'!Z523=\"\",\"\",'1. Order'!Z523)","v":""},{"$f":"IF('1. Order'!AA523=\"\",\"\",'1. Order'!AA523)","v":""},null,{"$f":"IF('1. Order'!AS523=\"\",\"\",'1. Order'!AS523)","v":""},{"$f":"IF('1. Order'!AT523=\"\",\"\",'1. Order'!AT523)","v":""},null,null,null,null,null,null,null,{"$f":"IF('1. Order'!AX523=\"\",\"\",'1. Order'!AX523)","v":""},{"$f":"IF('1. Order'!AY523=\"\",\"\",'1. Order'!AY523)","v":""},{"$f":"IF('1. Order'!AZ523=\"\",\"\",'1. Order'!AZ523)","v":""},{"$f":"IF('1. Order'!BA523=\"\",\"\",'1. Order'!BA523)","v":""},{"$f":"IF('1. Order'!BC523=\"\",\"\",'1. Order'!BC523)","v":""},{"$f":"IF('1. Order'!BD523=\"\",\"\",'1. Order'!BD523)","v":6},{"$f":"IF('1. Order'!BE523=\"\",\"\",'1. Order'!BE523)","v":"None"},{"$f":"IF('1. Order'!BF523=\"\",\"\",'1. Order'!BF523)","v":"Parcel"},{"$f":"IF('1. Order'!BG523=\"\",\"\",'1. Order'!BG523)","v":"ZWO"}]
[{"$f":"IF('1. Order'!F524=\"\",\"\",'1. Order'!F524)","v":""},{"$f":"IF('1. Order'!G524=\"\",\"\",'1. Order'!G524)","v":""},{"$f":"IF('1. Order'!H524=\"\",\"\",'1. Order'!H524)","v":""},{"$f":"IF('1. Order'!I524=\"\",\"\",'1. Order'!I524)","v":""},{"$f":"IF('1. Order'!J524=\"\",\"\",'1. Order'!J524)","v":""},{"$f":"IF('1. Order'!K524=\"\",\"\",'1. Order'!K524)","v":""},{"$f":"IF('1. Order'!L524=\"\",\"\",'1. Order'!L524)","v":""},{"$f":"IF('1. Order'!M524=\"\",\"\",'1. Order'!M524)","v":""},{"$f":"IF('1. Order'!N524=\"\",\"\",'1. Order'!N524)","v":""},{"$f":"IF('1. Order'!O524=\"\",\"\",'1. Order'!O524)","v":{"$error":"#N/A"}},{"$f":"IF('1. Order'!P524=\"\",\"\",'1. Order'!P524)","v":{"$error":"#N/A"}},{"$f":"IF('1. Order'!Q524=\"\",\"\",'1. Order'!Q524)","v":""},{"$f":"IF('1. Order'!R524=\"\",\"\",'1. Order'!R524)","v":""},{"$f":"IF('1. Order'!S524=\"\",\"\",'1. Order'!S524)","v":""},{"$f":"IF('1. Order'!V524=\"\",\"\",'1. Order'!V524)","v":""},{"$f":"IF('1. Order'!W524=\"\",\"\",'1. Order'!W524)","v":""},{"$f":"IF('1. Order'!X524=\"\",\"\",'1. Order'!X524)","v":"EUR"},{"$f":"IF('1. Order'!Y524=\"\",\"\",'1. Order'!Y524)","v":""},{"$f":"IF('1. Order'!Z524=\"\",\"\",'1. Order'!Z524)","v":""},{"$f":"IF('1. Order'!AA524=\"\",\"\",'1. Order'!AA524)","v":""},null,{"$f":"IF('1. Order'!AS524=\"\",\"\",'1. Order'!AS524)","v":""},{"$f":"IF('1. Order'!AT524=\"\",\"\",'1. Order'!AT524)","v":""},null,null,null,null,null,null,null,{"$f":"IF('1. Order'!AX524=\"\",\"\",'1. Order'!AX524)","v":""},{"$f":"IF('1. Order'!AY524=\"\",\"\",'1. Order'!AY524)","v":""},{"$f":"IF('1. Order'!AZ524=\"\",\"\",'1. Order'!AZ524)","v":""},{"$f":"IF('1. Order'!BA524=\"\",\"\",'1. Order'!BA524)","v":""},{"$f":"IF('1. Order'!BC524=\"\",\"\",'1. Order'!BC524)","v":""},{"$f":"IF('1. Order'!BD524=\"\",\"\",'1. Order'!BD524)","v":6},{"$f":"IF('1. Order'!BE524=\"\",\"\",'1. Order'!BE524)","v":"None"},{"$f":"IF('1. Order'!BF524=\"\",\"\",'1. Order'!BF524)","v":"Parcel"},{"$f":"IF('1. Order'!BG524=\"\",\"\",'1. Order'!BG524)","v":"ZWO"}]
[{"$f":"IF('1. Order'!F525=\"\",\"\",'1. Order'!F525)","v":""},{"$f":"IF('1. Order'!G525=\"\",\"\",'1. Order'!G525)","v":""},{"$f":"IF('1. Order'!H525=\"\",\"\",'1. Order'!H525)","v":""},{"$f":"IF('1. Order'!I525=\"\",\"\",'1. Order'!I525)","v":""},{"$f":"IF('1. Order'!J525=\"\",\"\",'1. Order'!J525)","v":""},{"$f":"IF('1. Order'!K525=\"\",\"\",'1. Order'!K525)","v":""},{"$f":"IF('1. Order'!L525=\"\",\"\",'1. Order'!L525)","v":""},{"$f":"IF('1. Order'!M525=\"\",\"\",'1. Order'!M525)","v":""},{"$f":"IF('1. Order'!N525=\"\",\"\",'1. Order'!N525)","v":""},{"$f":"IF('1. Order'!O525=\"\",\"\",'1. Order'!O525)","v":{"$error":"#N/A"}},{"$f":"IF('1. Order'!P525=\"\",\"\",'1. Order'!P525)","v":{"$error":"#N/A"}},{"$f":"IF('1. Order'!Q525=\"\",\"\",'1. Order'!Q525)","v":""},{"$f":"IF('1. Order'!R525=\"\",\"\",'1. Order'!R525)","v":""},{"$f":"IF('1. Order'!S525=\"\",\"\",'1. Order'!S525)","v":""},{"$f":"IF('1. Order'!V525=\"\",\"\",'1. Order'!V525)","v":""},{"$f":"IF('1. Order'!W525=\"\",\"\",'1. Order'!W525)","v":""},{"$f":"IF('1. Order'!X525=\"\",\"\",'1. Order'!X525)","v":"EUR"},{"$f":"IF('1. Order'!Y525=\"\",\"\",'1. Order'!Y525)","v":""},{"$f":"IF('1. Order'!Z525=\"\",\"\",'1. Order'!Z525)","v":""},{"$f":"IF('1. Order'!AA525=\"\",\"\",'1. Order'!AA525)","v":""},null,{"$f":"IF('1. Order'!AS525=\"\",\"\",'1. Order'!AS525)","v":""},{"$f":"IF('1. Order'!AT525=\"\",\"\",'1. Order'!AT525)","v":""},null,null,null,null,null,null,null,{"$f":"IF('1. Order'!AX525=\"\",\"\",'1. Order'!AX525)","v":""},{"$f":"IF('1. Order'!AY525=\"\",\"\",'1. Order'!AY525)","v":""},{"$f":"IF('1. Order'!AZ525=\"\",\"\",'1. Order'!AZ525)","v":""},{"$f":"IF('1. Order'!BA525=\"\",\"\",'1. Order'!BA525)","v":""},{"$f":"IF('1. Order'!BC525=\"\",\"\",'1. Order'!BC525)","v":""},{"$f":"IF('1. Order'!BD525=\"\",\"\",'1. Order'!BD525)","v":6},{"$f":"IF('1. Order'!BE525=\"\",\"\",'1. Order'!BE525)","v":"None"},{"$f":"IF('1. Order'!BF525=\"\",\"\",'1. Order'!BF525)","v":"Parcel"},{"$f":"IF('1. Order'!BG525=\"\",\"\",'1. Order'!BG525)","v":"ZWO"}]
[{"$f":"IF('1. Order'!F526=\"\",\"\",'1. Order'!F526)","v":""},{"$f":"IF('1. Order'!G526=\"\",\"\",'1. Order'!G526)","v":""},{"$f":"IF('1. Order'!H526=\"\",\"\",'1. Order'!H526)","v":""},{"$f":"IF('1. Order'!I526=\"\",\"\",'1. Order'!I526)","v":""},{"$f":"IF('1. Order'!J526=\"\",\"\",'1. Order'!J526)","v":""},{"$f":"IF('1. Order'!K526=\"\",\"\",'1. Order'!K526)","v":""},{"$f":"IF('1. Order'!L526=\"\",\"\",'1. Order'!L526)","v":""},{"$f":"IF('1. Order'!M526=\"\",\"\",'1. Order'!M526)","v":""},{"$f":"IF('1. Order'!N526=\"\",\"\",'1. Order'!N526)","v":""},{"$f":"IF('1. Order'!O526=\"\",\"\",'1. Order'!O526)","v":{"$error":"#N/A"}},{"$f":"IF('1. Order'!P526=\"\",\"\",'1. Order'!P526)","v":{"$error":"#N/A"}},{"$f":"IF('1. Order'!Q526=\"\",\"\",'1. Order'!Q526)","v":""},{"$f":"IF('1. Order'!R526=\"\",\"\",'1. Order'!R526)","v":""},{"$f":"IF('1. Order'!S526=\"\",\"\",'1. Order'!S526)","v":""},{"$f":"IF('1. Order'!V526=\"\",\"\",'1. Order'!V526)","v":""},{"$f":"IF('1. Order'!W526=\"\",\"\",'1. Order'!W526)","v":""},{"$f":"IF('1. Order'!X526=\"\",\"\",'1. Order'!X526)","v":"EUR"},{"$f":"IF('1. Order'!Y526=\"\",\"\",'1. Order'!Y526)","v":""},{"$f":"IF('1. Order'!Z526=\"\",\"\",'1. Order'!Z526)","v":""},{"$f":"IF('1. Order'!AA526=\"\",\"\",'1. Order'!AA526)","v":""},null,{"$f":"IF('1. Order'!AS526=\"\",\"\",'1. Order'!AS526)","v":""},{"$f":"IF('1. Order'!AT526=\"\",\"\",'1. Order'!AT526)","v":""},null,null,null,null,null,null,null,{"$f":"IF('1. Order'!AX526=\"\",\"\",'1. Order'!AX526)","v":""},{"$f":"IF('1. Order'!AY526=\"\",\"\",'1. Order'!AY526)","v":""},{"$f":"IF('1. Order'!AZ526=\"\",\"\",'1. Order'!AZ526)","v":""},{"$f":"IF('1. Order'!BA526=\"\",\"\",'1. Order'!BA526)","v":""},{"$f":"IF('1. Order'!BC526=\"\",\"\",'1. Order'!BC526)","v":""},{"$f":"IF('1. Order'!BD526=\"\",\"\",'1. Order'!BD526)","v":6},{"$f":"IF('1. Order'!BE526=\"\",\"\",'1. Order'!BE526)","v":"None"},{"$f":"IF('1. Order'!BF526=\"\",\"\",'1. Order'!BF526)","v":"Parcel"},{"$f":"IF('1. Order'!BG526=\"\",\"\",'1. Order'!BG526)","v":"ZWO"}]
[{"$f":"IF('1. Order'!F527=\"\",\"\",'1. Order'!F527)","v":""},{"$f":"IF('1. Order'!G527=\"\",\"\",'1. Order'!G527)","v":""},{"$f":"IF('1. Order'!H527=\"\",\"\",'1. Order'!H527)","v":""},{"$f":"IF('1. Order'!I527=\"\",\"\",'1. Order'!I527)","v":""},{"$f":"IF('1. Order'!J527=\"\",\"\",'1. Order'!J527)","v":""},{"$f":"IF('1. Order'!K527=\"\",\"\",'1. Order'!K527)","v":""},{"$f":"IF('1. Order'!L527=\"\",\"\",'1. Order'!L527)","v":""},{"$f":"IF('1. Order'!M527=\"\",\"\",'1. Order'!M527)","v":""},{"$f":"IF('1. Order'!N527=\"\",\"\",'1. Order'!N527)","v":""},{"$f":"IF('1. Order'!O527=\"\",\"\",'1. Order'!O527)","v":{"$error":"#N/A"}},{"$f":"IF('1. Order'!P527=\"\",\"\",'1. Order'!P527)","v":{"$error":"#N/A"}},{"$f":"IF('1. Order'!Q527=\"\",\"\",'1. Order'!Q527)","v":""},{"$f":"IF('1. Order'!R527=\"\",\"\",'1. Order'!R527)","v":""},{"$f":"IF('1. Order'!S527=\"\",\"\",'1. Order'!S527)","v":""},{"$f":"IF('1. Order'!V527=\"\",\"\",'1. Order'!V527)","v":""},{"$f":"IF('1. Order'!W527=\"\",\"\",'1. Order'!W527)","v":""},{"$f":"IF('1. Order'!X527=\"\",\"\",'1. Order'!X527)","v":"EUR"},{"$f":"IF('1. Order'!Y527=\"\",\"\",'1. Order'!Y527)","v":""},{"$f":"IF('1. Order'!Z527=\"\",\"\",'1. Order'!Z527)","v":""},{"$f":"IF('1. Order'!AA527=\"\",\"\",'1. Order'!AA527)","v":""},null,{"$f":"IF('1. Order'!AS527=\"\",\"\",'1. Order'!AS527)","v":""},{"$f":"IF('1. Order'!AT527=\"\",\"\",'1. Order'!AT527)","v":""},null,null,null,null,null,null,null,{"$f":"IF('1. Order'!AX527=\"\",\"\",'1. Order'!AX527)","v":""},{"$f":"IF('1. Order'!AY527=\"\",\"\",'1. Order'!AY527)","v":""},{"$f":"IF('1. Order'!AZ527=\"\",\"\",'1. Order'!AZ527)","v":""},{"$f":"IF('1. Order'!BA527=\"\",\"\",'1. Order'!BA527)","v":""},{"$f":"IF('1. Order'!BC527=\"\",\"\",'1. Order'!BC527)","v":""},{"$f":"IF('1. Order'!BD527=\"\",\"\",'1. Order'!BD527)","v":6},{"$f":"IF('1. Order'!BE527=\"\",\"\",'1. Order'!BE527)","v":"None"},{"$f":"IF('1. Order'!BF527=\"\",\"\",'1. Order'!BF527)","v":"Parcel"},{"$f":"IF('1. Order'!BG527=\"\",\"\",'1. Order'!BG527)","v":"ZWO"}]
[{"$f":"IF('1. Order'!F528=\"\",\"\",'1. Order'!F528)","v":""},{"$f":"IF('1. Order'!G528=\"\",\"\",'1. Order'!G528)","v":""},{"$f":"IF('1. Order'!H528=\"\",\"\",'1. Order'!H528)","v":""},{"$f":"IF('1. Order'!I528=\"\",\"\",'1. Order'!I528)","v":""},{"$f":"IF('1. Order'!J528=\"\",\"\",'1. Order'!J528)","v":""},{"$f":"IF('1. Order'!K528=\"\",\"\",'1. Order'!K528)","v":""},{"$f":"IF('1. Order'!L528=\"\",\"\",'1. Order'!L528)","v":""},{"$f":"IF('1. Order'!M528=\"\",\"\",'1. Order'!M528)","v":""},{"$f":"IF('1. Order'!N528=\"\",\"\",'1. Order'!N528)","v":""},{"$f":"IF('1. Order'!O528=\"\",\"\",'1. Order'!O528)","v":{"$error":"#N/A"}},{"$f":"IF('1. Order'!P528=\"\",\"\",'1. Order'!P528)","v":{"$error":"#N/A"}},{"$f":"IF('1. Order'!Q528=\"\",\"\",'1. Order'!Q528)","v":""},{"$f":"IF('1. Order'!R528=\"\",\"\",'1. Order'!R528)","v":""},{"$f":"IF('1. Order'!S528=\"\",\"\",'1. Order'!S528)","v":""},{"$f":"IF('1. Order'!V528=\"\",\"\",'1. Order'!V528)","v":""},{"$f":"IF('1. Order'!W528=\"\",\"\",'1. Order'!W528)","v":""},{"$f":"IF('1. Order'!X528=\"\",\"\",'1. Order'!X528)","v":"EUR"},{"$f":"IF('1. Order'!Y528=\"\",\"\",'1. Order'!Y528)","v":""},{"$f":"IF('1. Order'!Z528=\"\",\"\",'1. Order'!Z528)","v":""},{"$f":"IF('1. Order'!AA528=\"\",\"\",'1. Order'!AA528)","v":""},null,{"$f":"IF('1. Order'!AS528=\"\",\"\",'1. Order'!AS528)","v":""},{"$f":"IF('1. Order'!AT528=\"\",\"\",'1. Order'!AT528)","v":""},null,null,null,null,null,null,null,{"$f":"IF('1. Order'!AX528=\"\",\"\",'1. Order'!AX528)","v":""},{"$f":"IF('1. Order'!AY528=\"\",\"\",'1. Order'!AY528)","v":""},{"$f":"IF('1. Order'!AZ528=\"\",\"\",'1. Order'!AZ528)","v":""},{"$f":"IF('1. Order'!BA528=\"\",\"\",'1. Order'!BA528)","v":""},{"$f":"IF('1. Order'!BC528=\"\",\"\",'1. Order'!BC528)","v":""},{"$f":"IF('1. Order'!BD528=\"\",\"\",'1. Order'!BD528)","v":6},{"$f":"IF('1. Order'!BE528=\"\",\"\",'1. Order'!BE528)","v":"None"},{"$f":"IF('1. Order'!BF528=\"\",\"\",'1. Order'!BF528)","v":"Parcel"},{"$f":"IF('1. Order'!BG528=\"\",\"\",'1. Order'!BG528)","v":"ZWO"}]
[{"$f":"IF('1. Order'!F529=\"\",\"\",'1. Order'!F529)","v":""},{"$f":"IF('1. Order'!G529=\"\",\"\",'1. Order'!G529)","v":""},{"$f":"IF('1. Order'!H529=\"\",\"\",'1. Order'!H529)","v":""},{"$f":"IF('1. Order'!I529=\"\",\"\",'1. Order'!I529)","v":""},{"$f":"IF('1. Order'!J529=\"\",\"\",'1. Order'!J529)","v":""},{"$f":"IF('1. Order'!K529=\"\",\"\",'1. Order'!K529)","v":""},{"$f":"IF('1. Order'!L529=\"\",\"\",'1. Order'!L529)","v":""},{"$f":"IF('1. Order'!M529=\"\",\"\",'1. Order'!M529)","v":""},{"$f":"IF('1. Order'!N529=\"\",\"\",'1. Order'!N529)","v":""},{"$f":"IF('1. Order'!O529=\"\",\"\",'1. Order'!O529)","v":{"$error":"#N/A"}},{"$f":"IF('1. Order'!P529=\"\",\"\",'1. Order'!P529)","v":{"$error":"#N/A"}},{"$f":"IF('1. Order'!Q529=\"\",\"\",'1. Order'!Q529)","v":""},{"$f":"IF('1. Order'!R529=\"\",\"\",'1. Order'!R529)","v":""},{"$f":"IF('1. Order'!S529=\"\",\"\",'1. Order'!S529)","v":""},{"$f":"IF('1. Order'!V529=\"\",\"\",'1. Order'!V529)","v":""},{"$f":"IF('1. Order'!W529=\"\",\"\",'1. Order'!W529)","v":""},{"$f":"IF('1. Order'!X529=\"\",\"\",'1. Order'!X529)","v":"EUR"},{"$f":"IF('1. Order'!Y529=\"\",\"\",'1. Order'!Y529)","v":""},{"$f":"IF('1. Order'!Z529=\"\",\"\",'1. Order'!Z529)","v":""},{"$f":"IF('1. Order'!AA529=\"\",\"\",'1. Order'!AA529)","v":""},null,{"$f":"IF('1. Order'!AS529=\"\",\"\",'1. Order'!AS529)","v":""},{"$f":"IF('1. Order'!AT529=\"\",\"\",'1. Order'!AT529)","v":""},null,null,null,null,null,null,null,{"$f":"IF('1. Order'!AX529=\"\",\"\",'1. Order'!AX529)","v":""},{"$f":"IF('1. Order'!AY529=\"\",\"\",'1. Order'!AY529)","v":""},{"$f":"IF('1. Order'!AZ529=\"\",\"\",'1. Order'!AZ529)","v":""},{"$f":"IF('1. Order'!BA529=\"\",\"\",'1. Order'!BA529)","v":""},{"$f":"IF('1. Order'!BC529=\"\",\"\",'1. Order'!BC529)","v":""},{"$f":"IF('1. Order'!BD529=\"\",\"\",'1. Order'!BD529)","v":6},{"$f":"IF('1. Order'!BE529=\"\",\"\",'1. Order'!BE529)","v":"None"},{"$f":"IF('1. Order'!BF529=\"\",\"\",'1. Order'!BF529)","v":"Parcel"},{"$f":"IF('1. Order'!BG529=\"\",\"\",'1. Order'!BG529)","v":"ZWO"}]
[{"$f":"IF('1. Order'!F530=\"\",\"\",'1. Order'!F530)","v":""},{"$f":"IF('1. Order'!G530=\"\",\"\",'1. Order'!G530)","v":""},{"$f":"IF('1. Order'!H530=\"\",\"\",'1. Order'!H530)","v":""},{"$f":"IF('1. Order'!I530=\"\",\"\",'1. Order'!I530)","v":""},{"$f":"IF('1. Order'!J530=\"\",\"\",'1. Order'!J530)","v":""},{"$f":"IF('1. Order'!K530=\"\",\"\",'1. Order'!K530)","v":""},{"$f":"IF('1. Order'!L530=\"\",\"\",'1. Order'!L530)","v":""},{"$f":"IF('1. Order'!M530=\"\",\"\",'1. Order'!M530)","v":""},{"$f":"IF('1. Order'!N530=\"\",\"\",'1. Order'!N530)","v":""},{"$f":"IF('1. Order'!O530=\"\",\"\",'1. Order'!O530)","v":{"$error":"#N/A"}},{"$f":"IF('1. Order'!P530=\"\",\"\",'1. Order'!P530)","v":{"$error":"#N/A"}},{"$f":"IF('1. Order'!Q530=\"\",\"\",'1. Order'!Q530)","v":""},{"$f":"IF('1. Order'!R530=\"\",\"\",'1. Order'!R530)","v":""},{"$f":"IF('1. Order'!S530=\"\",\"\",'1. Order'!S530)","v":""},{"$f":"IF('1. Order'!V530=\"\",\"\",'1. Order'!V530)","v":""},{"$f":"IF('1. Order'!W530=\"\",\"\",'1. Order'!W530)","v":""},{"$f":"IF('1. Order'!X530=\"\",\"\",'1. Order'!X530)","v":"EUR"},{"$f":"IF('1. Order'!Y530=\"\",\"\",'1. Order'!Y530)","v":""},{"$f":"IF('1. Order'!Z530=\"\",\"\",'1. Order'!Z530)","v":""},{"$f":"IF('1. Order'!AA530=\"\",\"\",'1. Order'!AA530)","v":""},null,{"$f":"IF('1. Order'!AS530=\"\",\"\",'1. Order'!AS530)","v":""},{"$f":"IF('1. Order'!AT530=\"\",\"\",'1. Order'!AT530)","v":""},null,null,null,null,null,null,null,{"$f":"IF('1. Order'!AX530=\"\",\"\",'1. Order'!AX530)","v":""},{"$f":"IF('1. Order'!AY530=\"\",\"\",'1. Order'!AY530)","v":""},{"$f":"IF('1. Order'!AZ530=\"\",\"\",'1. Order'!AZ530)","v":""},{"$f":"IF('1. Order'!BA530=\"\",\"\",'1. Order'!BA530)","v":""},{"$f":"IF('1. Order'!BC530=\"\",\"\",'1. Order'!BC530)","v":""},{"$f":"IF('1. Order'!BD530=\"\",\"\",'1. Order'!BD530)","v":6},{"$f":"IF('1. Order'!BE530=\"\",\"\",'1. Order'!BE530)","v":"None"},{"$f":"IF('1. Order'!BF530=\"\",\"\",'1. Order'!BF530)","v":"Parcel"},{"$f":"IF('1. Order'!BG530=\"\",\"\",'1. Order'!BG530)","v":"ZWO"}]
[{"$f":"IF('1. Order'!F531=\"\",\"\",'1. Order'!F531)","v":""},{"$f":"IF('1. Order'!G531=\"\",\"\",'1. Order'!G531)","v":""},{"$f":"IF('1. Order'!H531=\"\",\"\",'1. Order'!H531)","v":""},{"$f":"IF('1. Order'!I531=\"\",\"\",'1. Order'!I531)","v":""},{"$f":"IF('1. Order'!J531=\"\",\"\",'1. Order'!J531)","v":""},{"$f":"IF('1. Order'!K531=\"\",\"\",'1. Order'!K531)","v":""},{"$f":"IF('1. Order'!L531=\"\",\"\",'1. Order'!L531)","v":""},{"$f":"IF('1. Order'!M531=\"\",\"\",'1. Order'!M531)","v":""},{"$f":"IF('1. Order'!N531=\"\",\"\",'1. Order'!N531)","v":""},{"$f":"IF('1. Order'!O531=\"\",\"\",'1. Order'!O531)","v":{"$error":"#N/A"}},{"$f":"IF('1. Order'!P531=\"\",\"\",'1. Order'!P531)","v":{"$error":"#N/A"}},{"$f":"IF('1. Order'!Q531=\"\",\"\",'1. Order'!Q531)","v":""},{"$f":"IF('1. Order'!R531=\"\",\"\",'1. Order'!R531)","v":""},{"$f":"IF('1. Order'!S531=\"\",\"\",'1. Order'!S531)","v":""},{"$f":"IF('1. Order'!V531=\"\",\"\",'1. Order'!V531)","v":""},{"$f":"IF('1. Order'!W531=\"\",\"\",'1. Order'!W531)","v":""},{"$f":"IF('1. Order'!X531=\"\",\"\",'1. Order'!X531)","v":"EUR"},{"$f":"IF('1. Order'!Y531=\"\",\"\",'1. Order'!Y531)","v":""},{"$f":"IF('1. Order'!Z531=\"\",\"\",'1. Order'!Z531)","v":""},{"$f":"IF('1. Order'!AA531=\"\",\"\",'1. Order'!AA531)","v":""},null,{"$f":"IF('1. Order'!AS531=\"\",\"\",'1. Order'!AS531)","v":""},{"$f":"IF('1. Order'!AT531=\"\",\"\",'1. Order'!AT531)","v":""},null,null,null,null,null,null,null,{"$f":"IF('1. Order'!AX531=\"\",\"\",'1. Order'!AX531)","v":""},{"$f":"IF('1. Order'!AY531=\"\",\"\",'1. Order'!AY531)","v":""},{"$f":"IF('1. Order'!AZ531=\"\",\"\",'1. Order'!AZ531)","v":""},{"$f":"IF('1. Order'!BA531=\"\",\"\",'1. Order'!BA531)","v":""},{"$f":"IF('1. Order'!BC531=\"\",\"\",'1. Order'!BC531)","v":""},{"$f":"IF('1. Order'!BD531=\"\",\"\",'1. Order'!BD531)","v":6},{"$f":"IF('1. Order'!BE531=\"\",\"\",'1. Order'!BE531)","v":"None"},{"$f":"IF('1. Order'!BF531=\"\",\"\",'1. Order'!BF531)","v":"Parcel"},{"$f":"IF('1. Order'!BG531=\"\",\"\",'1. Order'!BG531)","v":"ZWO"}]
[{"$f":"IF('1. Order'!F532=\"\",\"\",'1. Order'!F532)","v":""},{"$f":"IF('1. Order'!G532=\"\",\"\",'1. Order'!G532)","v":""},{"$f":"IF('1. Order'!H532=\"\",\"\",'1. Order'!H532)","v":""},{"$f":"IF('1. Order'!I532=\"\",\"\",'1. Order'!I532)","v":""},{"$f":"IF('1. Order'!J532=\"\",\"\",'1. Order'!J532)","v":""},{"$f":"IF('1. Order'!K532=\"\",\"\",'1. Order'!K532)","v":""},{"$f":"IF('1. Order'!L532=\"\",\"\",'1. Order'!L532)","v":""},{"$f":"IF('1. Order'!M532=\"\",\"\",'1. Order'!M532)","v":""},{"$f":"IF('1. Order'!N532=\"\",\"\",'1. Order'!N532)","v":""},{"$f":"IF('1. Order'!O532=\"\",\"\",'1. Order'!O532)","v":{"$error":"#N/A"}},{"$f":"IF('1. Order'!P532=\"\",\"\",'1. Order'!P532)","v":{"$error":"#N/A"}},{"$f":"IF('1. Order'!Q532=\"\",\"\",'1. Order'!Q532)","v":""},{"$f":"IF('1. Order'!R532=\"\",\"\",'1. Order'!R532)","v":""},{"$f":"IF('1. Order'!S532=\"\",\"\",'1. Order'!S532)","v":""},{"$f":"IF('1. Order'!V532=\"\",\"\",'1. Order'!V532)","v":""},{"$f":"IF('1. Order'!W532=\"\",\"\",'1. Order'!W532)","v":""},{"$f":"IF('1. Order'!X532=\"\",\"\",'1. Order'!X532)","v":"EUR"},{"$f":"IF('1. Order'!Y532=\"\",\"\",'1. Order'!Y532)","v":""},{"$f":"IF('1. Order'!Z532=\"\",\"\",'1. Order'!Z532)","v":""},{"$f":"IF('1. Order'!AA532=\"\",\"\",'1. Order'!AA532)","v":""},null,{"$f":"IF('1. Order'!AS532=\"\",\"\",'1. Order'!AS532)","v":""},{"$f":"IF('1. Order'!AT532=\"\",\"\",'1. Order'!AT532)","v":""},null,null,null,null,null,null,null,{"$f":"IF('1. Order'!AX532=\"\",\"\",'1. Order'!AX532)","v":""},{"$f":"IF('1. Order'!AY532=\"\",\"\",'1. Order'!AY532)","v":""},{"$f":"IF('1. Order'!AZ532=\"\",\"\",'1. Order'!AZ532)","v":""},{"$f":"IF('1. Order'!BA532=\"\",\"\",'1. Order'!BA532)","v":""},{"$f":"IF('1. Order'!BC532=\"\",\"\",'1. Order'!BC532)","v":""},{"$f":"IF('1. Order'!BD532=\"\",\"\",'1. Order'!BD532)","v":6},{"$f":"IF('1. Order'!BE532=\"\",\"\",'1. Order'!BE532)","v":"None"},{"$f":"IF('1. Order'!BF532=\"\",\"\",'1. Order'!BF532)","v":"Parcel"},{"$f":"IF('1. Order'!BG532=\"\",\"\",'1. Order'!BG532)","v":"ZWO"}]
[{"$f":"IF('1. Order'!F533=\"\",\"\",'1. Order'!F533)","v":""},{"$f":"IF('1. Order'!G533=\"\",\"\",'1. Order'!G533)","v":""},{"$f":"IF('1. Order'!H533=\"\",\"\",'1. Order'!H533)","v":""},{"$f":"IF('1. Order'!I533=\"\",\"\",'1. Order'!I533)","v":""},{"$f":"IF('1. Order'!J533=\"\",\"\",'1. Order'!J533)","v":""},{"$f":"IF('1. Order'!K533=\"\",\"\",'1. Order'!K533)","v":""},{"$f":"IF('1. Order'!L533=\"\",\"\",'1. Order'!L533)","v":""},{"$f":"IF('1. Order'!M533=\"\",\"\",'1. Order'!M533)","v":""},{"$f":"IF('1. Order'!N533=\"\",\"\",'1. Order'!N533)","v":""},{"$f":"IF('1. Order'!O533=\"\",\"\",'1. Order'!O533)","v":{"$error":"#N/A"}},{"$f":"IF('1. Order'!P533=\"\",\"\",'1. Order'!P533)","v":{"$error":"#N/A"}},{"$f":"IF('1. Order'!Q533=\"\",\"\",'1. Order'!Q533)","v":""},{"$f":"IF('1. Order'!R533=\"\",\"\",'1. Order'!R533)","v":""},{"$f":"IF('1. Order'!S533=\"\",\"\",'1. Order'!S533)","v":""},{"$f":"IF('1. Order'!V533=\"\",\"\",'1. Order'!V533)","v":""},{"$f":"IF('1. Order'!W533=\"\",\"\",'1. Order'!W533)","v":""},{"$f":"IF('1. Order'!X533=\"\",\"\",'1. Order'!X533)","v":"EUR"},{"$f":"IF('1. Order'!Y533=\"\",\"\",'1. Order'!Y533)","v":""},{"$f":"IF('1. Order'!Z533=\"\",\"\",'1. Order'!Z533)","v":""},{"$f":"IF('1. Order'!AA533=\"\",\"\",'1. Order'!AA533)","v":""},null,{"$f":"IF('1. Order'!AS533=\"\",\"\",'1. Order'!AS533)","v":""},{"$f":"IF('1. Order'!AT533=\"\",\"\",'1. Order'!AT533)","v":""},null,null,null,null,null,null,null,{"$f":"IF('1. Order'!AX533=\"\",\"\",'1. Order'!AX533)","v":""},{"$f":"IF('1. Order'!AY533=\"\",\"\",'1. Order'!AY533)","v":""},{"$f":"IF('1. Order'!AZ533=\"\",\"\",'1. Order'!AZ533)","v":""},{"$f":"IF('1. Order'!BA533=\"\",\"\",'1. Order'!BA533)","v":""},{"$f":"IF('1. Order'!BC533=\"\",\"\",'1. Order'!BC533)","v":""},{"$f":"IF('1. Order'!BD533=\"\",\"\",'1. Order'!BD533)","v":6},{"$f":"IF('1. Order'!BE533=\"\",\"\",'1. Order'!BE533)","v":"None"},{"$f":"IF('1. Order'!BF533=\"\",\"\",'1. Order'!BF533)","v":"Parcel"},{"$f":"IF('1. Order'!BG533=\"\",\"\",'1. Order'!BG533)","v":"ZWO"}]
[{"$f":"IF('1. Order'!F534=\"\",\"\",'1. Order'!F534)","v":""},{"$f":"IF('1. Order'!G534=\"\",\"\",'1. Order'!G534)","v":""},{"$f":"IF('1. Order'!H534=\"\",\"\",'1. Order'!H534)","v":""},{"$f":"IF('1. Order'!I534=\"\",\"\",'1. Order'!I534)","v":""},{"$f":"IF('1. Order'!J534=\"\",\"\",'1. Order'!J534)","v":""},{"$f":"IF('1. Order'!K534=\"\",\"\",'1. Order'!K534)","v":""},{"$f":"IF('1. Order'!L534=\"\",\"\",'1. Order'!L534)","v":""},{"$f":"IF('1. Order'!M534=\"\",\"\",'1. Order'!M534)","v":""},{"$f":"IF('1. Order'!N534=\"\",\"\",'1. Order'!N534)","v":""},{"$f":"IF('1. Order'!O534=\"\",\"\",'1. Order'!O534)","v":{"$error":"#N/A"}},{"$f":"IF('1. Order'!P534=\"\",\"\",'1. Order'!P534)","v":{"$error":"#N/A"}},{"$f":"IF('1. Order'!Q534=\"\",\"\",'1. Order'!Q534)","v":""},{"$f":"IF('1. Order'!R534=\"\",\"\",'1. Order'!R534)","v":""},{"$f":"IF('1. Order'!S534=\"\",\"\",'1. Order'!S534)","v":""},{"$f":"IF('1. Order'!V534=\"\",\"\",'1. Order'!V534)","v":""},{"$f":"IF('1. Order'!W534=\"\",\"\",'1. Order'!W534)","v":""},{"$f":"IF('1. Order'!X534=\"\",\"\",'1. Order'!X534)","v":"EUR"},{"$f":"IF('1. Order'!Y534=\"\",\"\",'1. Order'!Y534)","v":""},{"$f":"IF('1. Order'!Z534=\"\",\"\",'1. Order'!Z534)","v":""},{"$f":"IF('1. Order'!AA534=\"\",\"\",'1. Order'!AA534)","v":""},null,{"$f":"IF('1. Order'!AS534=\"\",\"\",'1. Order'!AS534)","v":""},{"$f":"IF('1. Order'!AT534=\"\",\"\",'1. Order'!AT534)","v":""},null,null,null,null,null,null,null,{"$f":"IF('1. Order'!AX534=\"\",\"\",'1. Order'!AX534)","v":""},{"$f":"IF('1. Order'!AY534=\"\",\"\",'1. Order'!AY534)","v":""},{"$f":"IF('1. Order'!AZ534=\"\",\"\",'1. Order'!AZ534)","v":""},{"$f":"IF('1. Order'!BA534=\"\",\"\",'1. Order'!BA534)","v":""},{"$f":"IF('1. Order'!BC534=\"\",\"\",'1. Order'!BC534)","v":""},{"$f":"IF('1. Order'!BD534=\"\",\"\",'1. Order'!BD534)","v":6},{"$f":"IF('1. Order'!BE534=\"\",\"\",'1. Order'!BE534)","v":"None"},{"$f":"IF('1. Order'!BF534=\"\",\"\",'1. Order'!BF534)","v":"Parcel"},{"$f":"IF('1. Order'!BG534=\"\",\"\",'1. Order'!BG534)","v":"ZWO"}]
[{"$f":"IF('1. Order'!F535=\"\",\"\",'1. Order'!F535)","v":""},{"$f":"IF('1. Order'!G535=\"\",\"\",'1. Order'!G535)","v":""},{"$f":"IF('1. Order'!H535=\"\",\"\",'1. Order'!H535)","v":""},{"$f":"IF('1. Order'!I535=\"\",\"\",'1. Order'!I535)","v":""},{"$f":"IF('1. Order'!J535=\"\",\"\",'1. Order'!J535)","v":""},{"$f":"IF('1. Order'!K535=\"\",\"\",'1. Order'!K535)","v":""},{"$f":"IF('1. Order'!L535=\"\",\"\",'1. Order'!L535)","v":""},{"$f":"IF('1. Order'!M535=\"\",\"\",'1. Order'!M535)","v":""},{"$f":"IF('1. Order'!N535=\"\",\"\",'1. Order'!N535)","v":""},{"$f":"IF('1. Order'!O535=\"\",\"\",'1. Order'!O535)","v":{"$error":"#N/A"}},{"$f":"IF('1. Order'!P535=\"\",\"\",'1. Order'!P535)","v":{"$error":"#N/A"}},{"$f":"IF('1. Order'!Q535=\"\",\"\",'1. Order'!Q535)","v":""},{"$f":"IF('1. Order'!R535=\"\",\"\",'1. Order'!R535)","v":""},{"$f":"IF('1. Order'!S535=\"\",\"\",'1. Order'!S535)","v":""},{"$f":"IF('1. Order'!V535=\"\",\"\",'1. Order'!V535)","v":""},{"$f":"IF('1. Order'!W535=\"\",\"\",'1. Order'!W535)","v":""},{"$f":"IF('1. Order'!X535=\"\",\"\",'1. Order'!X535)","v":"EUR"},{"$f":"IF('1. Order'!Y535=\"\",\"\",'1. Order'!Y535)","v":""},{"$f":"IF('1. Order'!Z535=\"\",\"\",'1. Order'!Z535)","v":""},{"$f":"IF('1. Order'!AA535=\"\",\"\",'1. Order'!AA535)","v":""},null,{"$f":"IF('1. Order'!AS535=\"\",\"\",'1. Order'!AS535)","v":""},{"$f":"IF('1. Order'!AT535=\"\",\"\",'1. Order'!AT535)","v":""},null,null,null,null,null,null,null,{"$f":"IF('1. Order'!AX535=\"\",\"\",'1. Order'!AX535)","v":""},{"$f":"IF('1. Order'!AY535=\"\",\"\",'1. Order'!AY535)","v":""},{"$f":"IF('1. Order'!AZ535=\"\",\"\",'1. Order'!AZ535)","v":""},{"$f":"IF('1. Order'!BA535=\"\",\"\",'1. Order'!BA535)","v":""},{"$f":"IF('1. Order'!BC535=\"\",\"\",'1. Order'!BC535)","v":""},{"$f":"IF('1. Order'!BD535=\"\",\"\",'1. Order'!BD535)","v":6},{"$f":"IF('1. Order'!BE535=\"\",\"\",'1. Order'!BE535)","v":"None"},{"$f":"IF('1. Order'!BF535=\"\",\"\",'1. Order'!BF535)","v":"Parcel"},{"$f":"IF('1. Order'!BG535=\"\",\"\",'1. Order'!BG535)","v":"ZWO"}]
[{"$f":"IF('1. Order'!F536=\"\",\"\",'1. Order'!F536)","v":""},{"$f":"IF('1. Order'!G536=\"\",\"\",'1. Order'!G536)","v":""},{"$f":"IF('1. Order'!H536=\"\",\"\",'1. Order'!H536)","v":""},{"$f":"IF('1. Order'!I536=\"\",\"\",'1. Order'!I536)","v":""},{"$f":"IF('1. Order'!J536=\"\",\"\",'1. Order'!J536)","v":""},{"$f":"IF('1. Order'!K536=\"\",\"\",'1. Order'!K536)","v":""},{"$f":"IF('1. Order'!L536=\"\",\"\",'1. Order'!L536)","v":""},{"$f":"IF('1. Order'!M536=\"\",\"\",'1. Order'!M536)","v":""},{"$f":"IF('1. Order'!N536=\"\",\"\",'1. Order'!N536)","v":""},{"$f":"IF('1. Order'!O536=\"\",\"\",'1. Order'!O536)","v":{"$error":"#N/A"}},{"$f":"IF('1. Order'!P536=\"\",\"\",'1. Order'!P536)","v":{"$error":"#N/A"}},{"$f":"IF('1. Order'!Q536=\"\",\"\",'1. Order'!Q536)","v":""},{"$f":"IF('1. Order'!R536=\"\",\"\",'1. Order'!R536)","v":""},{"$f":"IF('1. Order'!S536=\"\",\"\",'1. Order'!S536)","v":""},{"$f":"IF('1. Order'!V536=\"\",\"\",'1. Order'!V536)","v":""},{"$f":"IF('1. Order'!W536=\"\",\"\",'1. Order'!W536)","v":""},{"$f":"IF('1. Order'!X536=\"\",\"\",'1. Order'!X536)","v":"EUR"},{"$f":"IF('1. Order'!Y536=\"\",\"\",'1. Order'!Y536)","v":""},{"$f":"IF('1. Order'!Z536=\"\",\"\",'1. Order'!Z536)","v":""},{"$f":"IF('1. Order'!AA536=\"\",\"\",'1. Order'!AA536)","v":""},null,{"$f":"IF('1. Order'!AS536=\"\",\"\",'1. Order'!AS536)","v":""},{"$f":"IF('1. Order'!AT536=\"\",\"\",'1. Order'!AT536)","v":""},null,null,null,null,null,null,null,{"$f":"IF('1. Order'!AX536=\"\",\"\",'1. Order'!AX536)","v":""},{"$f":"IF('1. Order'!AY536=\"\",\"\",'1. Order'!AY536)","v":""},{"$f":"IF('1. Order'!AZ536=\"\",\"\",'1. Order'!AZ536)","v":""},{"$f":"IF('1. Order'!BA536=\"\",\"\",'1. Order'!BA536)","v":""},{"$f":"IF('1. Order'!BC536=\"\",\"\",'1. Order'!BC536)","v":""},{"$f":"IF('1. Order'!BD536=\"\",\"\",'1. Order'!BD536)","v":6},{"$f":"IF('1. Order'!BE536=\"\",\"\",'1. Order'!BE536)","v":"None"},{"$f":"IF('1. Order'!BF536=\"\",\"\",'1. Order'!BF536)","v":"Parcel"},{"$f":"IF('1. Order'!BG536=\"\",\"\",'1. Order'!BG536)","v":"ZWO"}]
[{"$f":"IF('1. Order'!F537=\"\",\"\",'1. Order'!F537)","v":""},{"$f":"IF('1. Order'!G537=\"\",\"\",'1. Order'!G537)","v":""},{"$f":"IF('1. Order'!H537=\"\",\"\",'1. Order'!H537)","v":""},{"$f":"IF('1. Order'!I537=\"\",\"\",'1. Order'!I537)","v":""},{"$f":"IF('1. Order'!J537=\"\",\"\",'1. Order'!J537)","v":""},{"$f":"IF('1. Order'!K537=\"\",\"\",'1. Order'!K537)","v":""},{"$f":"IF('1. Order'!L537=\"\",\"\",'1. Order'!L537)","v":""},{"$f":"IF('1. Order'!M537=\"\",\"\",'1. Order'!M537)","v":""},{"$f":"IF('1. Order'!N537=\"\",\"\",'1. Order'!N537)","v":""},{"$f":"IF('1. Order'!O537=\"\",\"\",'1. Order'!O537)","v":{"$error":"#N/A"}},{"$f":"IF('1. Order'!P537=\"\",\"\",'1. Order'!P537)","v":{"$error":"#N/A"}},{"$f":"IF('1. Order'!Q537=\"\",\"\",'1. Order'!Q537)","v":""},{"$f":"IF('1. Order'!R537=\"\",\"\",'1. Order'!R537)","v":""},{"$f":"IF('1. Order'!S537=\"\",\"\",'1. Order'!S537)","v":""},{"$f":"IF('1. Order'!V537=\"\",\"\",'1. Order'!V537)","v":""},{"$f":"IF('1. Order'!W537=\"\",\"\",'1. Order'!W537)","v":""},{"$f":"IF('1. Order'!X537=\"\",\"\",'1. Order'!X537)","v":"EUR"},{"$f":"IF('1. Order'!Y537=\"\",\"\",'1. Order'!Y537)","v":""},{"$f":"IF('1. Order'!Z537=\"\",\"\",'1. Order'!Z537)","v":""},{"$f":"IF('1. Order'!AA537=\"\",\"\",'1. Order'!AA537)","v":""},null,{"$f":"IF('1. Order'!AS537=\"\",\"\",'1. Order'!AS537)","v":""},{"$f":"IF('1. Order'!AT537=\"\",\"\",'1. Order'!AT537)","v":""},null,null,null,null,null,null,null,{"$f":"IF('1. Order'!AX537=\"\",\"\",'1. Order'!AX537)","v":""},{"$f":"IF('1. Order'!AY537=\"\",\"\",'1. Order'!AY537)","v":""},{"$f":"IF('1. Order'!AZ537=\"\",\"\",'1. Order'!AZ537)","v":""},{"$f":"IF('1. Order'!BA537=\"\",\"\",'1. Order'!BA537)","v":""},{"$f":"IF('1. Order'!BC537=\"\",\"\",'1. Order'!BC537)","v":""},{"$f":"IF('1. Order'!BD537=\"\",\"\",'1. Order'!BD537)","v":6},{"$f":"IF('1. Order'!BE537=\"\",\"\",'1. Order'!BE537)","v":"None"},{"$f":"IF('1. Order'!BF537=\"\",\"\",'1. Order'!BF537)","v":"Parcel"},{"$f":"IF('1. Order'!BG537=\"\",\"\",'1. Order'!BG537)","v":"ZWO"}]
[{"$f":"IF('1. Order'!F538=\"\",\"\",'1. Order'!F538)","v":""},{"$f":"IF('1. Order'!G538=\"\",\"\",'1. Order'!G538)","v":""},{"$f":"IF('1. Order'!H538=\"\",\"\",'1. Order'!H538)","v":""},{"$f":"IF('1. Order'!I538=\"\",\"\",'1. Order'!I538)","v":""},{"$f":"IF('1. Order'!J538=\"\",\"\",'1. Order'!J538)","v":""},{"$f":"IF('1. Order'!K538=\"\",\"\",'1. Order'!K538)","v":""},{"$f":"IF('1. Order'!L538=\"\",\"\",'1. Order'!L538)","v":""},{"$f":"IF('1. Order'!M538=\"\",\"\",'1. Order'!M538)","v":""},{"$f":"IF('1. Order'!N538=\"\",\"\",'1. Order'!N538)","v":""},{"$f":"IF('1. Order'!O538=\"\",\"\",'1. Order'!O538)","v":{"$error":"#N/A"}},{"$f":"IF('1. Order'!P538=\"\",\"\",'1. Order'!P538)","v":{"$error":"#N/A"}},{"$f":"IF('1. Order'!Q538=\"\",\"\",'1. Order'!Q538)","v":""},{"$f":"IF('1. Order'!R538=\"\",\"\",'1. Order'!R538)","v":""},{"$f":"IF('1. Order'!S538=\"\",\"\",'1. Order'!S538)","v":""},{"$f":"IF('1. Order'!V538=\"\",\"\",'1. Order'!V538)","v":""},{"$f":"IF('1. Order'!W538=\"\",\"\",'1. Order'!W538)","v":""},{"$f":"IF('1. Order'!X538=\"\",\"\",'1. Order'!X538)","v":"EUR"},{"$f":"IF('1. Order'!Y538=\"\",\"\",'1. Order'!Y538)","v":""},{"$f":"IF('1. Order'!Z538=\"\",\"\",'1. Order'!Z538)","v":""},{"$f":"IF('1. Order'!AA538=\"\",\"\",'1. Order'!AA538)","v":""},null,{"$f":"IF('1. Order'!AS538=\"\",\"\",'1. Order'!AS538)","v":""},{"$f":"IF('1. Order'!AT538=\"\",\"\",'1. Order'!AT538)","v":""},null,null,null,null,null,null,null,{"$f":"IF('1. Order'!AX538=\"\",\"\",'1. Order'!AX538)","v":""},{"$f":"IF('1. Order'!AY538=\"\",\"\",'1. Order'!AY538)","v":""},{"$f":"IF('1. Order'!AZ538=\"\",\"\",'1. Order'!AZ538)","v":""},{"$f":"IF('1. Order'!BA538=\"\",\"\",'1. Order'!BA538)","v":""},{"$f":"IF('1. Order'!BC538=\"\",\"\",'1. Order'!BC538)","v":""},{"$f":"IF('1. Order'!BD538=\"\",\"\",'1. Order'!BD538)","v":6},{"$f":"IF('1. Order'!BE538=\"\",\"\",'1. Order'!BE538)","v":"None"},{"$f":"IF('1. Order'!BF538=\"\",\"\",'1. Order'!BF538)","v":"Parcel"},{"$f":"IF('1. Order'!BG538=\"\",\"\",'1. Order'!BG538)","v":"ZWO"}]
[{"$f":"IF('1. Order'!F539=\"\",\"\",'1. Order'!F539)","v":""},{"$f":"IF('1. Order'!G539=\"\",\"\",'1. Order'!G539)","v":""},{"$f":"IF('1. Order'!H539=\"\",\"\",'1. Order'!H539)","v":""},{"$f":"IF('1. Order'!I539=\"\",\"\",'1. Order'!I539)","v":""},{"$f":"IF('1. Order'!J539=\"\",\"\",'1. Order'!J539)","v":""},{"$f":"IF('1. Order'!K539=\"\",\"\",'1. Order'!K539)","v":""},{"$f":"IF('1. Order'!L539=\"\",\"\",'1. Order'!L539)","v":""},{"$f":"IF('1. Order'!M539=\"\",\"\",'1. Order'!M539)","v":""},{"$f":"IF('1. Order'!N539=\"\",\"\",'1. Order'!N539)","v":""},{"$f":"IF('1. Order'!O539=\"\",\"\",'1. Order'!O539)","v":{"$error":"#N/A"}},{"$f":"IF('1. Order'!P539=\"\",\"\",'1. Order'!P539)","v":{"$error":"#N/A"}},{"$f":"IF('1. Order'!Q539=\"\",\"\",'1. Order'!Q539)","v":""},{"$f":"IF('1. Order'!R539=\"\",\"\",'1. Order'!R539)","v":""},{"$f":"IF('1. Order'!S539=\"\",\"\",'1. Order'!S539)","v":""},{"$f":"IF('1. Order'!V539=\"\",\"\",'1. Order'!V539)","v":""},{"$f":"IF('1. Order'!W539=\"\",\"\",'1. Order'!W539)","v":""},{"$f":"IF('1. Order'!X539=\"\",\"\",'1. Order'!X539)","v":"EUR"},{"$f":"IF('1. Order'!Y539=\"\",\"\",'1. Order'!Y539)","v":""},{"$f":"IF('1. Order'!Z539=\"\",\"\",'1. Order'!Z539)","v":""},{"$f":"IF('1. Order'!AA539=\"\",\"\",'1. Order'!AA539)","v":""},null,{"$f":"IF('1. Order'!AS539=\"\",\"\",'1. Order'!AS539)","v":""},{"$f":"IF('1. Order'!AT539=\"\",\"\",'1. Order'!AT539)","v":""},null,null,null,null,null,null,null,{"$f":"IF('1. Order'!AX539=\"\",\"\",'1. Order'!AX539)","v":""},{"$f":"IF('1. Order'!AY539=\"\",\"\",'1. Order'!AY539)","v":""},{"$f":"IF('1. Order'!AZ539=\"\",\"\",'1. Order'!AZ539)","v":""},{"$f":"IF('1. Order'!BA539=\"\",\"\",'1. Order'!BA539)","v":""},{"$f":"IF('1. Order'!BC539=\"\",\"\",'1. Order'!BC539)","v":""},{"$f":"IF('1. Order'!BD539=\"\",\"\",'1. Order'!BD539)","v":6},{"$f":"IF('1. Order'!BE539=\"\",\"\",'1. Order'!BE539)","v":"None"},{"$f":"IF('1. Order'!BF539=\"\",\"\",'1. Order'!BF539)","v":"Parcel"},{"$f":"IF('1. Order'!BG539=\"\",\"\",'1. Order'!BG539)","v":"ZWO"}]
[{"$f":"IF('1. Order'!F540=\"\",\"\",'1. Order'!F540)","v":""},{"$f":"IF('1. Order'!G540=\"\",\"\",'1. Order'!G540)","v":""},{"$f":"IF('1. Order'!H540=\"\",\"\",'1. Order'!H540)","v":""},{"$f":"IF('1. Order'!I540=\"\",\"\",'1. Order'!I540)","v":""},{"$f":"IF('1. Order'!J540=\"\",\"\",'1. Order'!J540)","v":""},{"$f":"IF('1. Order'!K540=\"\",\"\",'1. Order'!K540)","v":""},{"$f":"IF('1. Order'!L540=\"\",\"\",'1. Order'!L540)","v":""},{"$f":"IF('1. Order'!M540=\"\",\"\",'1. Order'!M540)","v":""},{"$f":"IF('1. Order'!N540=\"\",\"\",'1. Order'!N540)","v":""},{"$f":"IF('1. Order'!O540=\"\",\"\",'1. Order'!O540)","v":{"$error":"#N/A"}},{"$f":"IF('1. Order'!P540=\"\",\"\",'1. Order'!P540)","v":{"$error":"#N/A"}},{"$f":"IF('1. Order'!Q540=\"\",\"\",'1. Order'!Q540)","v":""},{"$f":"IF('1. Order'!R540=\"\",\"\",'1. Order'!R540)","v":""},{"$f":"IF('1. Order'!S540=\"\",\"\",'1. Order'!S540)","v":""},{"$f":"IF('1. Order'!V540=\"\",\"\",'1. Order'!V540)","v":""},{"$f":"IF('1. Order'!W540=\"\",\"\",'1. Order'!W540)","v":""},{"$f":"IF('1. Order'!X540=\"\",\"\",'1. Order'!X540)","v":"EUR"},{"$f":"IF('1. Order'!Y540=\"\",\"\",'1. Order'!Y540)","v":""},{"$f":"IF('1. Order'!Z540=\"\",\"\",'1. Order'!Z540)","v":""},{"$f":"IF('1. Order'!AA540=\"\",\"\",'1. Order'!AA540)","v":""},null,{"$f":"IF('1. Order'!AS540=\"\",\"\",'1. Order'!AS540)","v":""},{"$f":"IF('1. Order'!AT540=\"\",\"\",'1. Order'!AT540)","v":""},null,null,null,null,null,null,null,{"$f":"IF('1. Order'!AX540=\"\",\"\",'1. Order'!AX540)","v":""},{"$f":"IF('1. Order'!AY540=\"\",\"\",'1. Order'!AY540)","v":""},{"$f":"IF('1. Order'!AZ540=\"\",\"\",'1. Order'!AZ540)","v":""},{"$f":"IF('1. Order'!BA540=\"\",\"\",'1. Order'!BA540)","v":""},{"$f":"IF('1. Order'!BC540=\"\",\"\",'1. Order'!BC540)","v":""},{"$f":"IF('1. Order'!BD540=\"\",\"\",'1. Order'!BD540)","v":6},{"$f":"IF('1. Order'!BE540=\"\",\"\",'1. Order'!BE540)","v":"None"},{"$f":"IF('1. Order'!BF540=\"\",\"\",'1. Order'!BF540)","v":"Parcel"},{"$f":"IF('1. Order'!BG540=\"\",\"\",'1. Order'!BG540)","v":"ZWO"}]
[{"$f":"IF('1. Order'!F541=\"\",\"\",'1. Order'!F541)","v":""},{"$f":"IF('1. Order'!G541=\"\",\"\",'1. Order'!G541)","v":""},{"$f":"IF('1. Order'!H541=\"\",\"\",'1. Order'!H541)","v":""},{"$f":"IF('1. Order'!I541=\"\",\"\",'1. Order'!I541)","v":""},{"$f":"IF('1. Order'!J541=\"\",\"\",'1. Order'!J541)","v":""},{"$f":"IF('1. Order'!K541=\"\",\"\",'1. Order'!K541)","v":""},{"$f":"IF('1. Order'!L541=\"\",\"\",'1. Order'!L541)","v":""},{"$f":"IF('1. Order'!M541=\"\",\"\",'1. Order'!M541)","v":""},{"$f":"IF('1. Order'!N541=\"\",\"\",'1. Order'!N541)","v":""},{"$f":"IF('1. Order'!O541=\"\",\"\",'1. Order'!O541)","v":{"$error":"#N/A"}},{"$f":"IF('1. Order'!P541=\"\",\"\",'1. Order'!P541)","v":{"$error":"#N/A"}},{"$f":"IF('1. Order'!Q541=\"\",\"\",'1. Order'!Q541)","v":""},{"$f":"IF('1. Order'!R541=\"\",\"\",'1. Order'!R541)","v":""},{"$f":"IF('1. Order'!S541=\"\",\"\",'1. Order'!S541)","v":""},{"$f":"IF('1. Order'!V541=\"\",\"\",'1. Order'!V541)","v":""},{"$f":"IF('1. Order'!W541=\"\",\"\",'1. Order'!W541)","v":""},{"$f":"IF('1. Order'!X541=\"\",\"\",'1. Order'!X541)","v":"EUR"},{"$f":"IF('1. Order'!Y541=\"\",\"\",'1. Order'!Y541)","v":""},{"$f":"IF('1. Order'!Z541=\"\",\"\",'1. Order'!Z541)","v":""},{"$f":"IF('1. Order'!AA541=\"\",\"\",'1. Order'!AA541)","v":""},null,{"$f":"IF('1. Order'!AS541=\"\",\"\",'1. Order'!AS541)","v":""},{"$f":"IF('1. Order'!AT541=\"\",\"\",'1. Order'!AT541)","v":""},null,null,null,null,null,null,null,{"$f":"IF('1. Order'!AX541=\"\",\"\",'1. Order'!AX541)","v":""},{"$f":"IF('1. Order'!AY541=\"\",\"\",'1. Order'!AY541)","v":""},{"$f":"IF('1. Order'!AZ541=\"\",\"\",'1. Order'!AZ541)","v":""},{"$f":"IF('1. Order'!BA541=\"\",\"\",'1. Order'!BA541)","v":""},{"$f":"IF('1. Order'!BC541=\"\",\"\",'1. Order'!BC541)","v":""},{"$f":"IF('1. Order'!BD541=\"\",\"\",'1. Order'!BD541)","v":6},{"$f":"IF('1. Order'!BE541=\"\",\"\",'1. Order'!BE541)","v":"None"},{"$f":"IF('1. Order'!BF541=\"\",\"\",'1. Order'!BF541)","v":"Parcel"},{"$f":"IF('1. Order'!BG541=\"\",\"\",'1. Order'!BG541)","v":"ZWO"}]
[{"$f":"IF('1. Order'!F542=\"\",\"\",'1. Order'!F542)","v":""},{"$f":"IF('1. Order'!G542=\"\",\"\",'1. Order'!G542)","v":""},{"$f":"IF('1. Order'!H542=\"\",\"\",'1. Order'!H542)","v":""},{"$f":"IF('1. Order'!I542=\"\",\"\",'1. Order'!I542)","v":""},{"$f":"IF('1. Order'!J542=\"\",\"\",'1. Order'!J542)","v":""},{"$f":"IF('1. Order'!K542=\"\",\"\",'1. Order'!K542)","v":""},{"$f":"IF('1. Order'!L542=\"\",\"\",'1. Order'!L542)","v":""},{"$f":"IF('1. Order'!M542=\"\",\"\",'1. Order'!M542)","v":""},{"$f":"IF('1. Order'!N542=\"\",\"\",'1. Order'!N542)","v":""},{"$f":"IF('1. Order'!O542=\"\",\"\",'1. Order'!O542)","v":{"$error":"#N/A"}},{"$f":"IF('1. Order'!P542=\"\",\"\",'1. Order'!P542)","v":{"$error":"#N/A"}},{"$f":"IF('1. Order'!Q542=\"\",\"\",'1. Order'!Q542)","v":""},{"$f":"IF('1. Order'!R542=\"\",\"\",'1. Order'!R542)","v":""},{"$f":"IF('1. Order'!S542=\"\",\"\",'1. Order'!S542)","v":""},{"$f":"IF('1. Order'!V542=\"\",\"\",'1. Order'!V542)","v":""},{"$f":"IF('1. Order'!W542=\"\",\"\",'1. Order'!W542)","v":""},{"$f":"IF('1. Order'!X542=\"\",\"\",'1. Order'!X542)","v":"EUR"},{"$f":"IF('1. Order'!Y542=\"\",\"\",'1. Order'!Y542)","v":""},{"$f":"IF('1. Order'!Z542=\"\",\"\",'1. Order'!Z542)","v":""},{"$f":"IF('1. Order'!AA542=\"\",\"\",'1. Order'!AA542)","v":""},null,{"$f":"IF('1. Order'!AS542=\"\",\"\",'1. Order'!AS542)","v":""},{"$f":"IF('1. Order'!AT542=\"\",\"\",'1. Order'!AT542)","v":""},null,null,null,null,null,null,null,{"$f":"IF('1. Order'!AX542=\"\",\"\",'1. Order'!AX542)","v":""},{"$f":"IF('1. Order'!AY542=\"\",\"\",'1. Order'!AY542)","v":""},{"$f":"IF('1. Order'!AZ542=\"\",\"\",'1. Order'!AZ542)","v":""},{"$f":"IF('1. Order'!BA542=\"\",\"\",'1. Order'!BA542)","v":""},{"$f":"IF('1. Order'!BC542=\"\",\"\",'1. Order'!BC542)","v":""},{"$f":"IF('1. Order'!BD542=\"\",\"\",'1. Order'!BD542)","v":6},{"$f":"IF('1. Order'!BE542=\"\",\"\",'1. Order'!BE542)","v":"None"},{"$f":"IF('1. Order'!BF542=\"\",\"\",'1. Order'!BF542)","v":"Parcel"},{"$f":"IF('1. Order'!BG542=\"\",\"\",'1. Order'!BG542)","v":"ZWO"}]
[{"$f":"IF('1. Order'!F543=\"\",\"\",'1. Order'!F543)","v":""},{"$f":"IF('1. Order'!G543=\"\",\"\",'1. Order'!G543)","v":""},{"$f":"IF('1. Order'!H543=\"\",\"\",'1. Order'!H543)","v":""},{"$f":"IF('1. Order'!I543=\"\",\"\",'1. Order'!I543)","v":""},{"$f":"IF('1. Order'!J543=\"\",\"\",'1. Order'!J543)","v":""},{"$f":"IF('1. Order'!K543=\"\",\"\",'1. Order'!K543)","v":""},{"$f":"IF('1. Order'!L543=\"\",\"\",'1. Order'!L543)","v":""},{"$f":"IF('1. Order'!M543=\"\",\"\",'1. Order'!M543)","v":""},{"$f":"IF('1. Order'!N543=\"\",\"\",'1. Order'!N543)","v":""},{"$f":"IF('1. Order'!O543=\"\",\"\",'1. Order'!O543)","v":{"$error":"#N/A"}},{"$f":"IF('1. Order'!P543=\"\",\"\",'1. Order'!P543)","v":{"$error":"#N/A"}},{"$f":"IF('1. Order'!Q543=\"\",\"\",'1. Order'!Q543)","v":""},{"$f":"IF('1. Order'!R543=\"\",\"\",'1. Order'!R543)","v":""},{"$f":"IF('1. Order'!S543=\"\",\"\",'1. Order'!S543)","v":""},{"$f":"IF('1. Order'!V543=\"\",\"\",'1. Order'!V543)","v":""},{"$f":"IF('1. Order'!W543=\"\",\"\",'1. Order'!W543)","v":""},{"$f":"IF('1. Order'!X543=\"\",\"\",'1. Order'!X543)","v":"EUR"},{"$f":"IF('1. Order'!Y543=\"\",\"\",'1. Order'!Y543)","v":""},{"$f":"IF('1. Order'!Z543=\"\",\"\",'1. Order'!Z543)","v":""},{"$f":"IF('1. Order'!AA543=\"\",\"\",'1. Order'!AA543)","v":""},null,{"$f":"IF('1. Order'!AS543=\"\",\"\",'1. Order'!AS543)","v":""},{"$f":"IF('1. Order'!AT543=\"\",\"\",'1. Order'!AT543)","v":""},null,null,null,null,null,null,null,{"$f":"IF('1. Order'!AX543=\"\",\"\",'1. Order'!AX543)","v":""},{"$f":"IF('1. Order'!AY543=\"\",\"\",'1. Order'!AY543)","v":""},{"$f":"IF('1. Order'!AZ543=\"\",\"\",'1. Order'!AZ543)","v":""},{"$f":"IF('1. Order'!BA543=\"\",\"\",'1. Order'!BA543)","v":""},{"$f":"IF('1. Order'!BC543=\"\",\"\",'1. Order'!BC543)","v":""},{"$f":"IF('1. Order'!BD543=\"\",\"\",'1. Order'!BD543)","v":6},{"$f":"IF('1. Order'!BE543=\"\",\"\",'1. Order'!BE543)","v":"None"},{"$f":"IF('1. Order'!BF543=\"\",\"\",'1. Order'!BF543)","v":"Parcel"},{"$f":"IF('1. Order'!BG543=\"\",\"\",'1. Order'!BG543)","v":"ZWO"}]
[{"$f":"IF('1. Order'!F544=\"\",\"\",'1. Order'!F544)","v":""},{"$f":"IF('1. Order'!G544=\"\",\"\",'1. Order'!G544)","v":""},{"$f":"IF('1. Order'!H544=\"\",\"\",'1. Order'!H544)","v":""},{"$f":"IF('1. Order'!I544=\"\",\"\",'1. Order'!I544)","v":""},{"$f":"IF('1. Order'!J544=\"\",\"\",'1. Order'!J544)","v":""},{"$f":"IF('1. Order'!K544=\"\",\"\",'1. Order'!K544)","v":""},{"$f":"IF('1. Order'!L544=\"\",\"\",'1. Order'!L544)","v":""},{"$f":"IF('1. Order'!M544=\"\",\"\",'1. Order'!M544)","v":""},{"$f":"IF('1. Order'!N544=\"\",\"\",'1. Order'!N544)","v":""},{"$f":"IF('1. Order'!O544=\"\",\"\",'1. Order'!O544)","v":{"$error":"#N/A"}},{"$f":"IF('1. Order'!P544=\"\",\"\",'1. Order'!P544)","v":{"$error":"#N/A"}},{"$f":"IF('1. Order'!Q544=\"\",\"\",'1. Order'!Q544)","v":""},{"$f":"IF('1. Order'!R544=\"\",\"\",'1. Order'!R544)","v":""},{"$f":"IF('1. Order'!S544=\"\",\"\",'1. Order'!S544)","v":""},{"$f":"IF('1. Order'!V544=\"\",\"\",'1. Order'!V544)","v":""},{"$f":"IF('1. Order'!W544=\"\",\"\",'1. Order'!W544)","v":""},{"$f":"IF('1. Order'!X544=\"\",\"\",'1. Order'!X544)","v":"EUR"},{"$f":"IF('1. Order'!Y544=\"\",\"\",'1. Order'!Y544)","v":""},{"$f":"IF('1. Order'!Z544=\"\",\"\",'1. Order'!Z544)","v":""},{"$f":"IF('1. Order'!AA544=\"\",\"\",'1. Order'!AA544)","v":""},null,{"$f":"IF('1. Order'!AS544=\"\",\"\",'1. Order'!AS544)","v":""},{"$f":"IF('1. Order'!AT544=\"\",\"\",'1. Order'!AT544)","v":""},null,null,null,null,null,null,null,{"$f":"IF('1. Order'!AX544=\"\",\"\",'1. Order'!AX544)","v":""},{"$f":"IF('1. Order'!AY544=\"\",\"\",'1. Order'!AY544)","v":""},{"$f":"IF('1. Order'!AZ544=\"\",\"\",'1. Order'!AZ544)","v":""},{"$f":"IF('1. Order'!BA544=\"\",\"\",'1. Order'!BA544)","v":""},{"$f":"IF('1. Order'!BC544=\"\",\"\",'1. Order'!BC544)","v":""},{"$f":"IF('1. Order'!BD544=\"\",\"\",'1. Order'!BD544)","v":6},{"$f":"IF('1. Order'!BE544=\"\",\"\",'1. Order'!BE544)","v":"None"},{"$f":"IF('1. Order'!BF544=\"\",\"\",'1. Order'!BF544)","v":"Parcel"},{"$f":"IF('1. Order'!BG544=\"\",\"\",'1. Order'!BG544)","v":"ZWO"}]
[{"$f":"IF('1. Order'!F545=\"\",\"\",'1. Order'!F545)","v":""},{"$f":"IF('1. Order'!G545=\"\",\"\",'1. Order'!G545)","v":""},{"$f":"IF('1. Order'!H545=\"\",\"\",'1. Order'!H545)","v":""},{"$f":"IF('1. Order'!I545=\"\",\"\",'1. Order'!I545)","v":""},{"$f":"IF('1. Order'!J545=\"\",\"\",'1. Order'!J545)","v":""},{"$f":"IF('1. Order'!K545=\"\",\"\",'1. Order'!K545)","v":""},{"$f":"IF('1. Order'!L545=\"\",\"\",'1. Order'!L545)","v":""},{"$f":"IF('1. Order'!M545=\"\",\"\",'1. Order'!M545)","v":""},{"$f":"IF('1. Order'!N545=\"\",\"\",'1. Order'!N545)","v":""},{"$f":"IF('1. Order'!O545=\"\",\"\",'1. Order'!O545)","v":{"$error":"#N/A"}},{"$f":"IF('1. Order'!P545=\"\",\"\",'1. Order'!P545)","v":{"$error":"#N/A"}},{"$f":"IF('1. Order'!Q545=\"\",\"\",'1. Order'!Q545)","v":""},{"$f":"IF('1. Order'!R545=\"\",\"\",'1. Order'!R545)","v":""},{"$f":"IF('1. Order'!S545=\"\",\"\",'1. Order'!S545)","v":""},{"$f":"IF('1. Order'!V545=\"\",\"\",'1. Order'!V545)","v":""},{"$f":"IF('1. Order'!W545=\"\",\"\",'1. Order'!W545)","v":""},{"$f":"IF('1. Order'!X545=\"\",\"\",'1. Order'!X545)","v":"EUR"},{"$f":"IF('1. Order'!Y545=\"\",\"\",'1. Order'!Y545)","v":""},{"$f":"IF('1. Order'!Z545=\"\",\"\",'1. Order'!Z545)","v":""},{"$f":"IF('1. Order'!AA545=\"\",\"\",'1. Order'!AA545)","v":""},null,{"$f":"IF('1. Order'!AS545=\"\",\"\",'1. Order'!AS545)","v":""},{"$f":"IF('1. Order'!AT545=\"\",\"\",'1. Order'!AT545)","v":""},null,null,null,null,null,null,null,{"$f":"IF('1. Order'!AX545=\"\",\"\",'1. Order'!AX545)","v":""},{"$f":"IF('1. Order'!AY545=\"\",\"\",'1. Order'!AY545)","v":""},{"$f":"IF('1. Order'!AZ545=\"\",\"\",'1. Order'!AZ545)","v":""},{"$f":"IF('1. Order'!BA545=\"\",\"\",'1. Order'!BA545)","v":""},{"$f":"IF('1. Order'!BC545=\"\",\"\",'1. Order'!BC545)","v":""},{"$f":"IF('1. Order'!BD545=\"\",\"\",'1. Order'!BD545)","v":6},{"$f":"IF('1. Order'!BE545=\"\",\"\",'1. Order'!BE545)","v":"None"},{"$f":"IF('1. Order'!BF545=\"\",\"\",'1. Order'!BF545)","v":"Parcel"},{"$f":"IF('1. Order'!BG545=\"\",\"\",'1. Order'!BG545)","v":"ZWO"}]
[{"$f":"IF('1. Order'!F546=\"\",\"\",'1. Order'!F546)","v":""},{"$f":"IF('1. Order'!G546=\"\",\"\",'1. Order'!G546)","v":""},{"$f":"IF('1. Order'!H546=\"\",\"\",'1. Order'!H546)","v":""},{"$f":"IF('1. Order'!I546=\"\",\"\",'1. Order'!I546)","v":""},{"$f":"IF('1. Order'!J546=\"\",\"\",'1. Order'!J546)","v":""},{"$f":"IF('1. Order'!K546=\"\",\"\",'1. Order'!K546)","v":""},{"$f":"IF('1. Order'!L546=\"\",\"\",'1. Order'!L546)","v":""},{"$f":"IF('1. Order'!M546=\"\",\"\",'1. Order'!M546)","v":""},{"$f":"IF('1. Order'!N546=\"\",\"\",'1. Order'!N546)","v":""},{"$f":"IF('1. Order'!O546=\"\",\"\",'1. Order'!O546)","v":{"$error":"#N/A"}},{"$f":"IF('1. Order'!P546=\"\",\"\",'1. Order'!P546)","v":{"$error":"#N/A"}},{"$f":"IF('1. Order'!Q546=\"\",\"\",'1. Order'!Q546)","v":""},{"$f":"IF('1. Order'!R546=\"\",\"\",'1. Order'!R546)","v":""},{"$f":"IF('1. Order'!S546=\"\",\"\",'1. Order'!S546)","v":""},{"$f":"IF('1. Order'!V546=\"\",\"\",'1. Order'!V546)","v":""},{"$f":"IF('1. Order'!W546=\"\",\"\",'1. Order'!W546)","v":""},{"$f":"IF('1. Order'!X546=\"\",\"\",'1. Order'!X546)","v":"EUR"},{"$f":"IF('1. Order'!Y546=\"\",\"\",'1. Order'!Y546)","v":""},{"$f":"IF('1. Order'!Z546=\"\",\"\",'1. Order'!Z546)","v":""},{"$f":"IF('1. Order'!AA546=\"\",\"\",'1. Order'!AA546)","v":""},null,{"$f":"IF('1. Order'!AS546=\"\",\"\",'1. Order'!AS546)","v":""},{"$f":"IF('1. Order'!AT546=\"\",\"\",'1. Order'!AT546)","v":""},null,null,null,null,null,null,null,{"$f":"IF('1. Order'!AX546=\"\",\"\",'1. Order'!AX546)","v":""},{"$f":"IF('1. Order'!AY546=\"\",\"\",'1. Order'!AY546)","v":""},{"$f":"IF('1. Order'!AZ546=\"\",\"\",'1. Order'!AZ546)","v":""},{"$f":"IF('1. Order'!BA546=\"\",\"\",'1. Order'!BA546)","v":""},{"$f":"IF('1. Order'!BC546=\"\",\"\",'1. Order'!BC546)","v":""},{"$f":"IF('1. Order'!BD546=\"\",\"\",'1. Order'!BD546)","v":6},{"$f":"IF('1. Order'!BE546=\"\",\"\",'1. Order'!BE546)","v":"None"},{"$f":"IF('1. Order'!BF546=\"\",\"\",'1. Order'!BF546)","v":"Parcel"},{"$f":"IF('1. Order'!BG546=\"\",\"\",'1. Order'!BG546)","v":"ZWO"}]
[{"$f":"IF('1. Order'!F547=\"\",\"\",'1. Order'!F547)","v":""},{"$f":"IF('1. Order'!G547=\"\",\"\",'1. Order'!G547)","v":""},{"$f":"IF('1. Order'!H547=\"\",\"\",'1. Order'!H547)","v":""},{"$f":"IF('1. Order'!I547=\"\",\"\",'1. Order'!I547)","v":""},{"$f":"IF('1. Order'!J547=\"\",\"\",'1. Order'!J547)","v":""},{"$f":"IF('1. Order'!K547=\"\",\"\",'1. Order'!K547)","v":""},{"$f":"IF('1. Order'!L547=\"\",\"\",'1. Order'!L547)","v":""},{"$f":"IF('1. Order'!M547=\"\",\"\",'1. Order'!M547)","v":""},{"$f":"IF('1. Order'!N547=\"\",\"\",'1. Order'!N547)","v":""},{"$f":"IF('1. Order'!O547=\"\",\"\",'1. Order'!O547)","v":{"$error":"#N/A"}},{"$f":"IF('1. Order'!P547=\"\",\"\",'1. Order'!P547)","v":{"$error":"#N/A"}},{"$f":"IF('1. Order'!Q547=\"\",\"\",'1. Order'!Q547)","v":""},{"$f":"IF('1. Order'!R547=\"\",\"\",'1. Order'!R547)","v":""},{"$f":"IF('1. Order'!S547=\"\",\"\",'1. Order'!S547)","v":""},{"$f":"IF('1. Order'!V547=\"\",\"\",'1. Order'!V547)","v":""},{"$f":"IF('1. Order'!W547=\"\",\"\",'1. Order'!W547)","v":""},{"$f":"IF('1. Order'!X547=\"\",\"\",'1. Order'!X547)","v":"EUR"},{"$f":"IF('1. Order'!Y547=\"\",\"\",'1. Order'!Y547)","v":""},{"$f":"IF('1. Order'!Z547=\"\",\"\",'1. Order'!Z547)","v":""},{"$f":"IF('1. Order'!AA547=\"\",\"\",'1. Order'!AA547)","v":""},null,{"$f":"IF('1. Order'!AS547=\"\",\"\",'1. Order'!AS547)","v":""},{"$f":"IF('1. Order'!AT547=\"\",\"\",'1. Order'!AT547)","v":""},null,null,null,null,null,null,null,{"$f":"IF('1. Order'!AX547=\"\",\"\",'1. Order'!AX547)","v":""},{"$f":"IF('1. Order'!AY547=\"\",\"\",'1. Order'!AY547)","v":""},{"$f":"IF('1. Order'!AZ547=\"\",\"\",'1. Order'!AZ547)","v":""},{"$f":"IF('1. Order'!BA547=\"\",\"\",'1. Order'!BA547)","v":""},{"$f":"IF('1. Order'!BC547=\"\",\"\",'1. Order'!BC547)","v":""},{"$f":"IF('1. Order'!BD547=\"\",\"\",'1. Order'!BD547)","v":6},{"$f":"IF('1. Order'!BE547=\"\",\"\",'1. Order'!BE547)","v":"None"},{"$f":"IF('1. Order'!BF547=\"\",\"\",'1. Order'!BF547)","v":"Parcel"},{"$f":"IF('1. Order'!BG547=\"\",\"\",'1. Order'!BG547)","v":"ZWO"}]
[{"$f":"IF('1. Order'!F548=\"\",\"\",'1. Order'!F548)","v":""},{"$f":"IF('1. Order'!G548=\"\",\"\",'1. Order'!G548)","v":""},{"$f":"IF('1. Order'!H548=\"\",\"\",'1. Order'!H548)","v":""},{"$f":"IF('1. Order'!I548=\"\",\"\",'1. Order'!I548)","v":""},{"$f":"IF('1. Order'!J548=\"\",\"\",'1. Order'!J548)","v":""},{"$f":"IF('1. Order'!K548=\"\",\"\",'1. Order'!K548)","v":""},{"$f":"IF('1. Order'!L548=\"\",\"\",'1. Order'!L548)","v":""},{"$f":"IF('1. Order'!M548=\"\",\"\",'1. Order'!M548)","v":""},{"$f":"IF('1. Order'!N548=\"\",\"\",'1. Order'!N548)","v":""},{"$f":"IF('1. Order'!O548=\"\",\"\",'1. Order'!O548)","v":{"$error":"#N/A"}},{"$f":"IF('1. Order'!P548=\"\",\"\",'1. Order'!P548)","v":{"$error":"#N/A"}},{"$f":"IF('1. Order'!Q548=\"\",\"\",'1. Order'!Q548)","v":""},{"$f":"IF('1. Order'!R548=\"\",\"\",'1. Order'!R548)","v":""},{"$f":"IF('1. Order'!S548=\"\",\"\",'1. Order'!S548)","v":""},{"$f":"IF('1. Order'!V548=\"\",\"\",'1. Order'!V548)","v":""},{"$f":"IF('1. Order'!W548=\"\",\"\",'1. Order'!W548)","v":""},{"$f":"IF('1. Order'!X548=\"\",\"\",'1. Order'!X548)","v":"EUR"},{"$f":"IF('1. Order'!Y548=\"\",\"\",'1. Order'!Y548)","v":""},{"$f":"IF('1. Order'!Z548=\"\",\"\",'1. Order'!Z548)","v":""},{"$f":"IF('1. Order'!AA548=\"\",\"\",'1. Order'!AA548)","v":""},null,{"$f":"IF('1. Order'!AS548=\"\",\"\",'1. Order'!AS548)","v":""},{"$f":"IF('1. Order'!AT548=\"\",\"\",'1. Order'!AT548)","v":""},null,null,null,null,null,null,null,{"$f":"IF('1. Order'!AX548=\"\",\"\",'1. Order'!AX548)","v":""},{"$f":"IF('1. Order'!AY548=\"\",\"\",'1. Order'!AY548)","v":""},{"$f":"IF('1. Order'!AZ548=\"\",\"\",'1. Order'!AZ548)","v":""},{"$f":"IF('1. Order'!BA548=\"\",\"\",'1. Order'!BA548)","v":""},{"$f":"IF('1. Order'!BC548=\"\",\"\",'1. Order'!BC548)","v":""},{"$f":"IF('1. Order'!BD548=\"\",\"\",'1. Order'!BD548)","v":6},{"$f":"IF('1. Order'!BE548=\"\",\"\",'1. Order'!BE548)","v":"None"},{"$f":"IF('1. Order'!BF548=\"\",\"\",'1. Order'!BF548)","v":"Parcel"},{"$f":"IF('1. Order'!BG548=\"\",\"\",'1. Order'!BG548)","v":"ZWO"}]
[{"$f":"IF('1. Order'!F549=\"\",\"\",'1. Order'!F549)","v":""},{"$f":"IF('1. Order'!G549=\"\",\"\",'1. Order'!G549)","v":""},{"$f":"IF('1. Order'!H549=\"\",\"\",'1. Order'!H549)","v":""},{"$f":"IF('1. Order'!I549=\"\",\"\",'1. Order'!I549)","v":""},{"$f":"IF('1. Order'!J549=\"\",\"\",'1. Order'!J549)","v":""},{"$f":"IF('1. Order'!K549=\"\",\"\",'1. Order'!K549)","v":""},{"$f":"IF('1. Order'!L549=\"\",\"\",'1. Order'!L549)","v":""},{"$f":"IF('1. Order'!M549=\"\",\"\",'1. Order'!M549)","v":""},{"$f":"IF('1. Order'!N549=\"\",\"\",'1. Order'!N549)","v":""},{"$f":"IF('1. Order'!O549=\"\",\"\",'1. Order'!O549)","v":{"$error":"#N/A"}},{"$f":"IF('1. Order'!P549=\"\",\"\",'1. Order'!P549)","v":{"$error":"#N/A"}},{"$f":"IF('1. Order'!Q549=\"\",\"\",'1. Order'!Q549)","v":""},{"$f":"IF('1. Order'!R549=\"\",\"\",'1. Order'!R549)","v":""},{"$f":"IF('1. Order'!S549=\"\",\"\",'1. Order'!S549)","v":""},{"$f":"IF('1. Order'!V549=\"\",\"\",'1. Order'!V549)","v":""},{"$f":"IF('1. Order'!W549=\"\",\"\",'1. Order'!W549)","v":""},{"$f":"IF('1. Order'!X549=\"\",\"\",'1. Order'!X549)","v":"EUR"},{"$f":"IF('1. Order'!Y549=\"\",\"\",'1. Order'!Y549)","v":""},{"$f":"IF('1. Order'!Z549=\"\",\"\",'1. Order'!Z549)","v":""},{"$f":"IF('1. Order'!AA549=\"\",\"\",'1. Order'!AA549)","v":""},null,{"$f":"IF('1. Order'!AS549=\"\",\"\",'1. Order'!AS549)","v":""},{"$f":"IF('1. Order'!AT549=\"\",\"\",'1. Order'!AT549)","v":""},null,null,null,null,null,null,null,{"$f":"IF('1. Order'!AX549=\"\",\"\",'1. Order'!AX549)","v":""},{"$f":"IF('1. Order'!AY549=\"\",\"\",'1. Order'!AY549)","v":""},{"$f":"IF('1. Order'!AZ549=\"\",\"\",'1. Order'!AZ549)","v":""},{"$f":"IF('1. Order'!BA549=\"\",\"\",'1. Order'!BA549)","v":""},{"$f":"IF('1. Order'!BC549=\"\",\"\",'1. Order'!BC549)","v":""},{"$f":"IF('1. Order'!BD549=\"\",\"\",'1. Order'!BD549)","v":6},{"$f":"IF('1. Order'!BE549=\"\",\"\",'1. Order'!BE549)","v":"None"},{"$f":"IF('1. Order'!BF549=\"\",\"\",'1. Order'!BF549)","v":"Parcel"},{"$f":"IF('1. Order'!BG549=\"\",\"\",'1. Order'!BG549)","v":"ZWO"}]
[{"$f":"IF('1. Order'!F550=\"\",\"\",'1. Order'!F550)","v":""},{"$f":"IF('1. Order'!G550=\"\",\"\",'1. Order'!G550)","v":""},{"$f":"IF('1. Order'!H550=\"\",\"\",'1. Order'!H550)","v":""},{"$f":"IF('1. Order'!I550=\"\",\"\",'1. Order'!I550)","v":""},{"$f":"IF('1. Order'!J550=\"\",\"\",'1. Order'!J550)","v":""},{"$f":"IF('1. Order'!K550=\"\",\"\",'1. Order'!K550)","v":""},{"$f":"IF('1. Order'!L550=\"\",\"\",'1. Order'!L550)","v":""},{"$f":"IF('1. Order'!M550=\"\",\"\",'1. Order'!M550)","v":""},{"$f":"IF('1. Order'!N550=\"\",\"\",'1. Order'!N550)","v":""},{"$f":"IF('1. Order'!O550=\"\",\"\",'1. Order'!O550)","v":{"$error":"#N/A"}},{"$f":"IF('1. Order'!P550=\"\",\"\",'1. Order'!P550)","v":{"$error":"#N/A"}},{"$f":"IF('1. Order'!Q550=\"\",\"\",'1. Order'!Q550)","v":""},{"$f":"IF('1. Order'!R550=\"\",\"\",'1. Order'!R550)","v":""},{"$f":"IF('1. Order'!S550=\"\",\"\",'1. Order'!S550)","v":""},{"$f":"IF('1. Order'!V550=\"\",\"\",'1. Order'!V550)","v":""},{"$f":"IF('1. Order'!W550=\"\",\"\",'1. Order'!W550)","v":""},{"$f":"IF('1. Order'!X550=\"\",\"\",'1. Order'!X550)","v":"EUR"},{"$f":"IF('1. Order'!Y550=\"\",\"\",'1. Order'!Y550)","v":""},{"$f":"IF('1. Order'!Z550=\"\",\"\",'1. Order'!Z550)","v":""},{"$f":"IF('1. Order'!AA550=\"\",\"\",'1. Order'!AA550)","v":""},null,{"$f":"IF('1. Order'!AS550=\"\",\"\",'1. Order'!AS550)","v":""},{"$f":"IF('1. Order'!AT550=\"\",\"\",'1. Order'!AT550)","v":""},null,null,null,null,null,null,null,{"$f":"IF('1. Order'!AX550=\"\",\"\",'1. Order'!AX550)","v":""},{"$f":"IF('1. Order'!AY550=\"\",\"\",'1. Order'!AY550)","v":""},{"$f":"IF('1. Order'!AZ550=\"\",\"\",'1. Order'!AZ550)","v":""},{"$f":"IF('1. Order'!BA550=\"\",\"\",'1. Order'!BA550)","v":""},{"$f":"IF('1. Order'!BC550=\"\",\"\",'1. Order'!BC550)","v":""},{"$f":"IF('1. Order'!BD550=\"\",\"\",'1. Order'!BD550)","v":6},{"$f":"IF('1. Order'!BE550=\"\",\"\",'1. Order'!BE550)","v":"None"},{"$f":"IF('1. Order'!BF550=\"\",\"\",'1. Order'!BF550)","v":"Parcel"},{"$f":"IF('1. Order'!BG550=\"\",\"\",'1. Order'!BG550)","v":"ZWO"}]
[{"$f":"IF('1. Order'!F551=\"\",\"\",'1. Order'!F551)","v":""},{"$f":"IF('1. Order'!G551=\"\",\"\",'1. Order'!G551)","v":""},{"$f":"IF('1. Order'!H551=\"\",\"\",'1. Order'!H551)","v":""},{"$f":"IF('1. Order'!I551=\"\",\"\",'1. Order'!I551)","v":""},{"$f":"IF('1. Order'!J551=\"\",\"\",'1. Order'!J551)","v":""},{"$f":"IF('1. Order'!K551=\"\",\"\",'1. Order'!K551)","v":""},{"$f":"IF('1. Order'!L551=\"\",\"\",'1. Order'!L551)","v":""},{"$f":"IF('1. Order'!M551=\"\",\"\",'1. Order'!M551)","v":""},{"$f":"IF('1. Order'!N551=\"\",\"\",'1. Order'!N551)","v":""},{"$f":"IF('1. Order'!O551=\"\",\"\",'1. Order'!O551)","v":{"$error":"#N/A"}},{"$f":"IF('1. Order'!P551=\"\",\"\",'1. Order'!P551)","v":{"$error":"#N/A"}},{"$f":"IF('1. Order'!Q551=\"\",\"\",'1. Order'!Q551)","v":""},{"$f":"IF('1. Order'!R551=\"\",\"\",'1. Order'!R551)","v":""},{"$f":"IF('1. Order'!S551=\"\",\"\",'1. Order'!S551)","v":""},{"$f":"IF('1. Order'!V551=\"\",\"\",'1. Order'!V551)","v":""},{"$f":"IF('1. Order'!W551=\"\",\"\",'1. Order'!W551)","v":""},{"$f":"IF('1. Order'!X551=\"\",\"\",'1. Order'!X551)","v":"EUR"},{"$f":"IF('1. Order'!Y551=\"\",\"\",'1. Order'!Y551)","v":""},{"$f":"IF('1. Order'!Z551=\"\",\"\",'1. Order'!Z551)","v":""},{"$f":"IF('1. Order'!AA551=\"\",\"\",'1. Order'!AA551)","v":""},null,{"$f":"IF('1. Order'!AS551=\"\",\"\",'1. Order'!AS551)","v":""},{"$f":"IF('1. Order'!AT551=\"\",\"\",'1. Order'!AT551)","v":""},null,null,null,null,null,null,null,{"$f":"IF('1. Order'!AX551=\"\",\"\",'1. Order'!AX551)","v":""},{"$f":"IF('1. Order'!AY551=\"\",\"\",'1. Order'!AY551)","v":""},{"$f":"IF('1. Order'!AZ551=\"\",\"\",'1. Order'!AZ551)","v":""},{"$f":"IF('1. Order'!BA551=\"\",\"\",'1. Order'!BA551)","v":""},{"$f":"IF('1. Order'!BC551=\"\",\"\",'1. Order'!BC551)","v":""},{"$f":"IF('1. Order'!BD551=\"\",\"\",'1. Order'!BD551)","v":6},{"$f":"IF('1. Order'!BE551=\"\",\"\",'1. Order'!BE551)","v":"None"},{"$f":"IF('1. Order'!BF551=\"\",\"\",'1. Order'!BF551)","v":"Parcel"},{"$f":"IF('1. Order'!BG551=\"\",\"\",'1. Order'!BG551)","v":"ZWO"}]
[{"$f":"IF('1. Order'!F552=\"\",\"\",'1. Order'!F552)","v":""},{"$f":"IF('1. Order'!G552=\"\",\"\",'1. Order'!G552)","v":""},{"$f":"IF('1. Order'!H552=\"\",\"\",'1. Order'!H552)","v":""},{"$f":"IF('1. Order'!I552=\"\",\"\",'1. Order'!I552)","v":""},{"$f":"IF('1. Order'!J552=\"\",\"\",'1. Order'!J552)","v":""},{"$f":"IF('1. Order'!K552=\"\",\"\",'1. Order'!K552)","v":""},{"$f":"IF('1. Order'!L552=\"\",\"\",'1. Order'!L552)","v":""},{"$f":"IF('1. Order'!M552=\"\",\"\",'1. Order'!M552)","v":""},{"$f":"IF('1. Order'!N552=\"\",\"\",'1. Order'!N552)","v":""},{"$f":"IF('1. Order'!O552=\"\",\"\",'1. Order'!O552)","v":{"$error":"#N/A"}},{"$f":"IF('1. Order'!P552=\"\",\"\",'1. Order'!P552)","v":{"$error":"#N/A"}},{"$f":"IF('1. Order'!Q552=\"\",\"\",'1. Order'!Q552)","v":""},{"$f":"IF('1. Order'!R552=\"\",\"\",'1. Order'!R552)","v":""},{"$f":"IF('1. Order'!S552=\"\",\"\",'1. Order'!S552)","v":""},{"$f":"IF('1. Order'!V552=\"\",\"\",'1. Order'!V552)","v":""},{"$f":"IF('1. Order'!W552=\"\",\"\",'1. Order'!W552)","v":""},{"$f":"IF('1. Order'!X552=\"\",\"\",'1. Order'!X552)","v":"EUR"},{"$f":"IF('1. Order'!Y552=\"\",\"\",'1. Order'!Y552)","v":""},{"$f":"IF('1. Order'!Z552=\"\",\"\",'1. Order'!Z552)","v":""},{"$f":"IF('1. Order'!AA552=\"\",\"\",'1. Order'!AA552)","v":""},null,{"$f":"IF('1. Order'!AS552=\"\",\"\",'1. Order'!AS552)","v":""},{"$f":"IF('1. Order'!AT552=\"\",\"\",'1. Order'!AT552)","v":""},null,null,null,null,null,null,null,{"$f":"IF('1. Order'!AX552=\"\",\"\",'1. Order'!AX552)","v":""},{"$f":"IF('1. Order'!AY552=\"\",\"\",'1. Order'!AY552)","v":""},{"$f":"IF('1. Order'!AZ552=\"\",\"\",'1. Order'!AZ552)","v":""},{"$f":"IF('1. Order'!BA552=\"\",\"\",'1. Order'!BA552)","v":""},{"$f":"IF('1. Order'!BC552=\"\",\"\",'1. Order'!BC552)","v":""},{"$f":"IF('1. Order'!BD552=\"\",\"\",'1. Order'!BD552)","v":6},{"$f":"IF('1. Order'!BE552=\"\",\"\",'1. Order'!BE552)","v":"None"},{"$f":"IF('1. Order'!BF552=\"\",\"\",'1. Order'!BF552)","v":"Parcel"},{"$f":"IF('1. Order'!BG552=\"\",\"\",'1. Order'!BG552)","v":"ZWO"}]
[{"$f":"IF('1. Order'!F553=\"\",\"\",'1. Order'!F553)","v":""},{"$f":"IF('1. Order'!G553=\"\",\"\",'1. Order'!G553)","v":""},{"$f":"IF('1. Order'!H553=\"\",\"\",'1. Order'!H553)","v":""},{"$f":"IF('1. Order'!I553=\"\",\"\",'1. Order'!I553)","v":""},{"$f":"IF('1. Order'!J553=\"\",\"\",'1. Order'!J553)","v":""},{"$f":"IF('1. Order'!K553=\"\",\"\",'1. Order'!K553)","v":""},{"$f":"IF('1. Order'!L553=\"\",\"\",'1. Order'!L553)","v":""},{"$f":"IF('1. Order'!M553=\"\",\"\",'1. Order'!M553)","v":""},{"$f":"IF('1. Order'!N553=\"\",\"\",'1. Order'!N553)","v":""},{"$f":"IF('1. Order'!O553=\"\",\"\",'1. Order'!O553)","v":{"$error":"#N/A"}},{"$f":"IF('1. Order'!P553=\"\",\"\",'1. Order'!P553)","v":{"$error":"#N/A"}},{"$f":"IF('1. Order'!Q553=\"\",\"\",'1. Order'!Q553)","v":""},{"$f":"IF('1. Order'!R553=\"\",\"\",'1. Order'!R553)","v":""},{"$f":"IF('1. Order'!S553=\"\",\"\",'1. Order'!S553)","v":""},{"$f":"IF('1. Order'!V553=\"\",\"\",'1. Order'!V553)","v":""},{"$f":"IF('1. Order'!W553=\"\",\"\",'1. Order'!W553)","v":""},{"$f":"IF('1. Order'!X553=\"\",\"\",'1. Order'!X553)","v":"EUR"},{"$f":"IF('1. Order'!Y553=\"\",\"\",'1. Order'!Y553)","v":""},{"$f":"IF('1. Order'!Z553=\"\",\"\",'1. Order'!Z553)","v":""},{"$f":"IF('1. Order'!AA553=\"\",\"\",'1. Order'!AA553)","v":""},null,{"$f":"IF('1. Order'!AS553=\"\",\"\",'1. Order'!AS553)","v":""},{"$f":"IF('1. Order'!AT553=\"\",\"\",'1. Order'!AT553)","v":""},null,null,null,null,null,null,null,{"$f":"IF('1. Order'!AX553=\"\",\"\",'1. Order'!AX553)","v":""},{"$f":"IF('1. Order'!AY553=\"\",\"\",'1. Order'!AY553)","v":""},{"$f":"IF('1. Order'!AZ553=\"\",\"\",'1. Order'!AZ553)","v":""},{"$f":"IF('1. Order'!BA553=\"\",\"\",'1. Order'!BA553)","v":""},{"$f":"IF('1. Order'!BC553=\"\",\"\",'1. Order'!BC553)","v":""},{"$f":"IF('1. Order'!BD553=\"\",\"\",'1. Order'!BD553)","v":6},{"$f":"IF('1. Order'!BE553=\"\",\"\",'1. Order'!BE553)","v":"None"},{"$f":"IF('1. Order'!BF553=\"\",\"\",'1. Order'!BF553)","v":"Parcel"},{"$f":"IF('1. Order'!BG553=\"\",\"\",'1. Order'!BG553)","v":"ZWO"}]
[{"$f":"IF('1. Order'!F554=\"\",\"\",'1. Order'!F554)","v":""},{"$f":"IF('1. Order'!G554=\"\",\"\",'1. Order'!G554)","v":""},{"$f":"IF('1. Order'!H554=\"\",\"\",'1. Order'!H554)","v":""},{"$f":"IF('1. Order'!I554=\"\",\"\",'1. Order'!I554)","v":""},{"$f":"IF('1. Order'!J554=\"\",\"\",'1. Order'!J554)","v":""},{"$f":"IF('1. Order'!K554=\"\",\"\",'1. Order'!K554)","v":""},{"$f":"IF('1. Order'!L554=\"\",\"\",'1. Order'!L554)","v":""},{"$f":"IF('1. Order'!M554=\"\",\"\",'1. Order'!M554)","v":""},{"$f":"IF('1. Order'!N554=\"\",\"\",'1. Order'!N554)","v":""},{"$f":"IF('1. Order'!O554=\"\",\"\",'1. Order'!O554)","v":{"$error":"#N/A"}},{"$f":"IF('1. Order'!P554=\"\",\"\",'1. Order'!P554)","v":{"$error":"#N/A"}},{"$f":"IF('1. Order'!Q554=\"\",\"\",'1. Order'!Q554)","v":""},{"$f":"IF('1. Order'!R554=\"\",\"\",'1. Order'!R554)","v":""},{"$f":"IF('1. Order'!S554=\"\",\"\",'1. Order'!S554)","v":""},{"$f":"IF('1. Order'!V554=\"\",\"\",'1. Order'!V554)","v":""},{"$f":"IF('1. Order'!W554=\"\",\"\",'1. Order'!W554)","v":""},{"$f":"IF('1. Order'!X554=\"\",\"\",'1. Order'!X554)","v":"EUR"},{"$f":"IF('1. Order'!Y554=\"\",\"\",'1. Order'!Y554)","v":""},{"$f":"IF('1. Order'!Z554=\"\",\"\",'1. Order'!Z554)","v":""},{"$f":"IF('1. Order'!AA554=\"\",\"\",'1. Order'!AA554)","v":""},null,{"$f":"IF('1. Order'!AS554=\"\",\"\",'1. Order'!AS554)","v":""},{"$f":"IF('1. Order'!AT554=\"\",\"\",'1. Order'!AT554)","v":""},null,null,null,null,null,null,null,{"$f":"IF('1. Order'!AX554=\"\",\"\",'1. Order'!AX554)","v":""},{"$f":"IF('1. Order'!AY554=\"\",\"\",'1. Order'!AY554)","v":""},{"$f":"IF('1. Order'!AZ554=\"\",\"\",'1. Order'!AZ554)","v":""},{"$f":"IF('1. Order'!BA554=\"\",\"\",'1. Order'!BA554)","v":""},{"$f":"IF('1. Order'!BC554=\"\",\"\",'1. Order'!BC554)","v":""},{"$f":"IF('1. Order'!BD554=\"\",\"\",'1. Order'!BD554)","v":6},{"$f":"IF('1. Order'!BE554=\"\",\"\",'1. Order'!BE554)","v":"None"},{"$f":"IF('1. Order'!BF554=\"\",\"\",'1. Order'!BF554)","v":"Parcel"},{"$f":"IF('1. Order'!BG554=\"\",\"\",'1. Order'!BG554)","v":"ZWO"}]
[{"$f":"IF('1. Order'!F555=\"\",\"\",'1. Order'!F555)","v":""},{"$f":"IF('1. Order'!G555=\"\",\"\",'1. Order'!G555)","v":""},{"$f":"IF('1. Order'!H555=\"\",\"\",'1. Order'!H555)","v":""},{"$f":"IF('1. Order'!I555=\"\",\"\",'1. Order'!I555)","v":""},{"$f":"IF('1. Order'!J555=\"\",\"\",'1. Order'!J555)","v":""},{"$f":"IF('1. Order'!K555=\"\",\"\",'1. Order'!K555)","v":""},{"$f":"IF('1. Order'!L555=\"\",\"\",'1. Order'!L555)","v":""},{"$f":"IF('1. Order'!M555=\"\",\"\",'1. Order'!M555)","v":""},{"$f":"IF('1. Order'!N555=\"\",\"\",'1. Order'!N555)","v":""},{"$f":"IF('1. Order'!O555=\"\",\"\",'1. Order'!O555)","v":{"$error":"#N/A"}},{"$f":"IF('1. Order'!P555=\"\",\"\",'1. Order'!P555)","v":{"$error":"#N/A"}},{"$f":"IF('1. Order'!Q555=\"\",\"\",'1. Order'!Q555)","v":""},{"$f":"IF('1. Order'!R555=\"\",\"\",'1. Order'!R555)","v":""},{"$f":"IF('1. Order'!S555=\"\",\"\",'1. Order'!S555)","v":""},{"$f":"IF('1. Order'!V555=\"\",\"\",'1. Order'!V555)","v":""},{"$f":"IF('1. Order'!W555=\"\",\"\",'1. Order'!W555)","v":""},{"$f":"IF('1. Order'!X555=\"\",\"\",'1. Order'!X555)","v":"EUR"},{"$f":"IF('1. Order'!Y555=\"\",\"\",'1. Order'!Y555)","v":""},{"$f":"IF('1. Order'!Z555=\"\",\"\",'1. Order'!Z555)","v":""},{"$f":"IF('1. Order'!AA555=\"\",\"\",'1. Order'!AA555)","v":""},null,{"$f":"IF('1. Order'!AS555=\"\",\"\",'1. Order'!AS555)","v":""},{"$f":"IF('1. Order'!AT555=\"\",\"\",'1. Order'!AT555)","v":""},null,null,null,null,null,null,null,{"$f":"IF('1. Order'!AX555=\"\",\"\",'1. Order'!AX555)","v":""},{"$f":"IF('1. Order'!AY555=\"\",\"\",'1. Order'!AY555)","v":""},{"$f":"IF('1. Order'!AZ555=\"\",\"\",'1. Order'!AZ555)","v":""},{"$f":"IF('1. Order'!BA555=\"\",\"\",'1. Order'!BA555)","v":""},{"$f":"IF('1. Order'!BC555=\"\",\"\",'1. Order'!BC555)","v":""},{"$f":"IF('1. Order'!BD555=\"\",\"\",'1. Order'!BD555)","v":6},{"$f":"IF('1. Order'!BE555=\"\",\"\",'1. Order'!BE555)","v":"None"},{"$f":"IF('1. Order'!BF555=\"\",\"\",'1. Order'!BF555)","v":"Parcel"},{"$f":"IF('1. Order'!BG555=\"\",\"\",'1. Order'!BG555)","v":"ZWO"}]
[{"$f":"IF('1. Order'!F556=\"\",\"\",'1. Order'!F556)","v":""},{"$f":"IF('1. Order'!G556=\"\",\"\",'1. Order'!G556)","v":""},{"$f":"IF('1. Order'!H556=\"\",\"\",'1. Order'!H556)","v":""},{"$f":"IF('1. Order'!I556=\"\",\"\",'1. Order'!I556)","v":""},{"$f":"IF('1. Order'!J556=\"\",\"\",'1. Order'!J556)","v":""},{"$f":"IF('1. Order'!K556=\"\",\"\",'1. Order'!K556)","v":""},{"$f":"IF('1. Order'!L556=\"\",\"\",'1. Order'!L556)","v":""},{"$f":"IF('1. Order'!M556=\"\",\"\",'1. Order'!M556)","v":""},{"$f":"IF('1. Order'!N556=\"\",\"\",'1. Order'!N556)","v":""},{"$f":"IF('1. Order'!O556=\"\",\"\",'1. Order'!O556)","v":{"$error":"#N/A"}},{"$f":"IF('1. Order'!P556=\"\",\"\",'1. Order'!P556)","v":{"$error":"#N/A"}},{"$f":"IF('1. Order'!Q556=\"\",\"\",'1. Order'!Q556)","v":""},{"$f":"IF('1. Order'!R556=\"\",\"\",'1. Order'!R556)","v":""},{"$f":"IF('1. Order'!S556=\"\",\"\",'1. Order'!S556)","v":""},{"$f":"IF('1. Order'!V556=\"\",\"\",'1. Order'!V556)","v":""},{"$f":"IF('1. Order'!W556=\"\",\"\",'1. Order'!W556)","v":""},{"$f":"IF('1. Order'!X556=\"\",\"\",'1. Order'!X556)","v":"EUR"},{"$f":"IF('1. Order'!Y556=\"\",\"\",'1. Order'!Y556)","v":""},{"$f":"IF('1. Order'!Z556=\"\",\"\",'1. Order'!Z556)","v":""},{"$f":"IF('1. Order'!AA556=\"\",\"\",'1. Order'!AA556)","v":""},null,{"$f":"IF('1. Order'!AS556=\"\",\"\",'1. Order'!AS556)","v":""},{"$f":"IF('1. Order'!AT556=\"\",\"\",'1. Order'!AT556)","v":""},null,null,null,null,null,null,null,{"$f":"IF('1. Order'!AX556=\"\",\"\",'1. Order'!AX556)","v":""},{"$f":"IF('1. Order'!AY556=\"\",\"\",'1. Order'!AY556)","v":""},{"$f":"IF('1. Order'!AZ556=\"\",\"\",'1. Order'!AZ556)","v":""},{"$f":"IF('1. Order'!BA556=\"\",\"\",'1. Order'!BA556)","v":""},{"$f":"IF('1. Order'!BC556=\"\",\"\",'1. Order'!BC556)","v":""},{"$f":"IF('1. Order'!BD556=\"\",\"\",'1. Order'!BD556)","v":6},{"$f":"IF('1. Order'!BE556=\"\",\"\",'1. Order'!BE556)","v":"None"},{"$f":"IF('1. Order'!BF556=\"\",\"\",'1. Order'!BF556)","v":"Parcel"},{"$f":"IF('1. Order'!BG556=\"\",\"\",'1. Order'!BG556)","v":"ZWO"}]
[{"$f":"IF('1. Order'!F557=\"\",\"\",'1. Order'!F557)","v":""},{"$f":"IF('1. Order'!G557=\"\",\"\",'1. Order'!G557)","v":""},{"$f":"IF('1. Order'!H557=\"\",\"\",'1. Order'!H557)","v":""},{"$f":"IF('1. Order'!I557=\"\",\"\",'1. Order'!I557)","v":""},{"$f":"IF('1. Order'!J557=\"\",\"\",'1. Order'!J557)","v":""},{"$f":"IF('1. Order'!K557=\"\",\"\",'1. Order'!K557)","v":""},{"$f":"IF('1. Order'!L557=\"\",\"\",'1. Order'!L557)","v":""},{"$f":"IF('1. Order'!M557=\"\",\"\",'1. Order'!M557)","v":""},{"$f":"IF('1. Order'!N557=\"\",\"\",'1. Order'!N557)","v":""},{"$f":"IF('1. Order'!O557=\"\",\"\",'1. Order'!O557)","v":{"$error":"#N/A"}},{"$f":"IF('1. Order'!P557=\"\",\"\",'1. Order'!P557)","v":{"$error":"#N/A"}},{"$f":"IF('1. Order'!Q557=\"\",\"\",'1. Order'!Q557)","v":""},{"$f":"IF('1. Order'!R557=\"\",\"\",'1. Order'!R557)","v":""},{"$f":"IF('1. Order'!S557=\"\",\"\",'1. Order'!S557)","v":""},{"$f":"IF('1. Order'!V557=\"\",\"\",'1. Order'!V557)","v":""},{"$f":"IF('1. Order'!W557=\"\",\"\",'1. Order'!W557)","v":""},{"$f":"IF('1. Order'!X557=\"\",\"\",'1. Order'!X557)","v":"EUR"},{"$f":"IF('1. Order'!Y557=\"\",\"\",'1. Order'!Y557)","v":""},{"$f":"IF('1. Order'!Z557=\"\",\"\",'1. Order'!Z557)","v":""},{"$f":"IF('1. Order'!AA557=\"\",\"\",'1. Order'!AA557)","v":""},null,{"$f":"IF('1. Order'!AS557=\"\",\"\",'1. Order'!AS557)","v":""},{"$f":"IF('1. Order'!AT557=\"\",\"\",'1. Order'!AT557)","v":""},null,null,null,null,null,null,null,{"$f":"IF('1. Order'!AX557=\"\",\"\",'1. Order'!AX557)","v":""},{"$f":"IF('1. Order'!AY557=\"\",\"\",'1. Order'!AY557)","v":""},{"$f":"IF('1. Order'!AZ557=\"\",\"\",'1. Order'!AZ557)","v":""},{"$f":"IF('1. Order'!BA557=\"\",\"\",'1. Order'!BA557)","v":""},{"$f":"IF('1. Order'!BC557=\"\",\"\",'1. Order'!BC557)","v":""},{"$f":"IF('1. Order'!BD557=\"\",\"\",'1. Order'!BD557)","v":6},{"$f":"IF('1. Order'!BE557=\"\",\"\",'1. Order'!BE557)","v":"None"},{"$f":"IF('1. Order'!BF557=\"\",\"\",'1. Order'!BF557)","v":"Parcel"},{"$f":"IF('1. Order'!BG557=\"\",\"\",'1. Order'!BG557)","v":"ZWO"}]
[{"$f":"IF('1. Order'!F558=\"\",\"\",'1. Order'!F558)","v":""},{"$f":"IF('1. Order'!G558=\"\",\"\",'1. Order'!G558)","v":""},{"$f":"IF('1. Order'!H558=\"\",\"\",'1. Order'!H558)","v":""},{"$f":"IF('1. Order'!I558=\"\",\"\",'1. Order'!I558)","v":""},{"$f":"IF('1. Order'!J558=\"\",\"\",'1. Order'!J558)","v":""},{"$f":"IF('1. Order'!K558=\"\",\"\",'1. Order'!K558)","v":""},{"$f":"IF('1. Order'!L558=\"\",\"\",'1. Order'!L558)","v":""},{"$f":"IF('1. Order'!M558=\"\",\"\",'1. Order'!M558)","v":""},{"$f":"IF('1. Order'!N558=\"\",\"\",'1. Order'!N558)","v":""},{"$f":"IF('1. Order'!O558=\"\",\"\",'1. Order'!O558)","v":{"$error":"#N/A"}},{"$f":"IF('1. Order'!P558=\"\",\"\",'1. Order'!P558)","v":{"$error":"#N/A"}},{"$f":"IF('1. Order'!Q558=\"\",\"\",'1. Order'!Q558)","v":""},{"$f":"IF('1. Order'!R558=\"\",\"\",'1. Order'!R558)","v":""},{"$f":"IF('1. Order'!S558=\"\",\"\",'1. Order'!S558)","v":""},{"$f":"IF('1. Order'!V558=\"\",\"\",'1. Order'!V558)","v":""},{"$f":"IF('1. Order'!W558=\"\",\"\",'1. Order'!W558)","v":""},{"$f":"IF('1. Order'!X558=\"\",\"\",'1. Order'!X558)","v":"EUR"},{"$f":"IF('1. Order'!Y558=\"\",\"\",'1. Order'!Y558)","v":""},{"$f":"IF('1. Order'!Z558=\"\",\"\",'1. Order'!Z558)","v":""},{"$f":"IF('1. Order'!AA558=\"\",\"\",'1. Order'!AA558)","v":""},null,{"$f":"IF('1. Order'!AS558=\"\",\"\",'1. Order'!AS558)","v":""},{"$f":"IF('1. Order'!AT558=\"\",\"\",'1. Order'!AT558)","v":""},null,null,null,null,null,null,null,{"$f":"IF('1. Order'!AX558=\"\",\"\",'1. Order'!AX558)","v":""},{"$f":"IF('1. Order'!AY558=\"\",\"\",'1. Order'!AY558)","v":""},{"$f":"IF('1. Order'!AZ558=\"\",\"\",'1. Order'!AZ558)","v":""},{"$f":"IF('1. Order'!BA558=\"\",\"\",'1. Order'!BA558)","v":""},{"$f":"IF('1. Order'!BC558=\"\",\"\",'1. Order'!BC558)","v":""},{"$f":"IF('1. Order'!BD558=\"\",\"\",'1. Order'!BD558)","v":6},{"$f":"IF('1. Order'!BE558=\"\",\"\",'1. Order'!BE558)","v":"None"},{"$f":"IF('1. Order'!BF558=\"\",\"\",'1. Order'!BF558)","v":"Parcel"},{"$f":"IF('1. Order'!BG558=\"\",\"\",'1. Order'!BG558)","v":"ZWO"}]
[{"$f":"IF('1. Order'!F559=\"\",\"\",'1. Order'!F559)","v":""},{"$f":"IF('1. Order'!G559=\"\",\"\",'1. Order'!G559)","v":""},{"$f":"IF('1. Order'!H559=\"\",\"\",'1. Order'!H559)","v":""},{"$f":"IF('1. Order'!I559=\"\",\"\",'1. Order'!I559)","v":""},{"$f":"IF('1. Order'!J559=\"\",\"\",'1. Order'!J559)","v":""},{"$f":"IF('1. Order'!K559=\"\",\"\",'1. Order'!K559)","v":""},{"$f":"IF('1. Order'!L559=\"\",\"\",'1. Order'!L559)","v":""},{"$f":"IF('1. Order'!M559=\"\",\"\",'1. Order'!M559)","v":""},{"$f":"IF('1. Order'!N559=\"\",\"\",'1. Order'!N559)","v":""},{"$f":"IF('1. Order'!O559=\"\",\"\",'1. Order'!O559)","v":{"$error":"#N/A"}},{"$f":"IF('1. Order'!P559=\"\",\"\",'1. Order'!P559)","v":{"$error":"#N/A"}},{"$f":"IF('1. Order'!Q559=\"\",\"\",'1. Order'!Q559)","v":""},{"$f":"IF('1. Order'!R559=\"\",\"\",'1. Order'!R559)","v":""},{"$f":"IF('1. Order'!S559=\"\",\"\",'1. Order'!S559)","v":""},{"$f":"IF('1. Order'!V559=\"\",\"\",'1. Order'!V559)","v":""},{"$f":"IF('1. Order'!W559=\"\",\"\",'1. Order'!W559)","v":""},{"$f":"IF('1. Order'!X559=\"\",\"\",'1. Order'!X559)","v":"EUR"},{"$f":"IF('1. Order'!Y559=\"\",\"\",'1. Order'!Y559)","v":""},{"$f":"IF('1. Order'!Z559=\"\",\"\",'1. Order'!Z559)","v":""},{"$f":"IF('1. Order'!AA559=\"\",\"\",'1. Order'!AA559)","v":""},null,{"$f":"IF('1. Order'!AS559=\"\",\"\",'1. Order'!AS559)","v":""},{"$f":"IF('1. Order'!AT559=\"\",\"\",'1. Order'!AT559)","v":""},null,null,null,null,null,null,null,{"$f":"IF('1. Order'!AX559=\"\",\"\",'1. Order'!AX559)","v":""},{"$f":"IF('1. Order'!AY559=\"\",\"\",'1. Order'!AY559)","v":""},{"$f":"IF('1. Order'!AZ559=\"\",\"\",'1. Order'!AZ559)","v":""},{"$f":"IF('1. Order'!BA559=\"\",\"\",'1. Order'!BA559)","v":""},{"$f":"IF('1. Order'!BC559=\"\",\"\",'1. Order'!BC559)","v":""},{"$f":"IF('1. Order'!BD559=\"\",\"\",'1. Order'!BD559)","v":6},{"$f":"IF('1. Order'!BE559=\"\",\"\",'1. Order'!BE559)","v":"None"},{"$f":"IF('1. Order'!BF559=\"\",\"\",'1. Order'!BF559)","v":"Parcel"},{"$f":"IF('1. Order'!BG559=\"\",\"\",'1. Order'!BG559)","v":"ZWO"}]
[{"$f":"IF('1. Order'!F560=\"\",\"\",'1. Order'!F560)","v":""},{"$f":"IF('1. Order'!G560=\"\",\"\",'1. Order'!G560)","v":""},{"$f":"IF('1. Order'!H560=\"\",\"\",'1. Order'!H560)","v":""},{"$f":"IF('1. Order'!I560=\"\",\"\",'1. Order'!I560)","v":""},{"$f":"IF('1. Order'!J560=\"\",\"\",'1. Order'!J560)","v":""},{"$f":"IF('1. Order'!K560=\"\",\"\",'1. Order'!K560)","v":""},{"$f":"IF('1. Order'!L560=\"\",\"\",'1. Order'!L560)","v":""},{"$f":"IF('1. Order'!M560=\"\",\"\",'1. Order'!M560)","v":""},{"$f":"IF('1. Order'!N560=\"\",\"\",'1. Order'!N560)","v":""},{"$f":"IF('1. Order'!O560=\"\",\"\",'1. Order'!O560)","v":{"$error":"#N/A"}},{"$f":"IF('1. Order'!P560=\"\",\"\",'1. Order'!P560)","v":{"$error":"#N/A"}},{"$f":"IF('1. Order'!Q560=\"\",\"\",'1. Order'!Q560)","v":""},{"$f":"IF('1. Order'!R560=\"\",\"\",'1. Order'!R560)","v":""},{"$f":"IF('1. Order'!S560=\"\",\"\",'1. Order'!S560)","v":""},{"$f":"IF('1. Order'!V560=\"\",\"\",'1. Order'!V560)","v":""},{"$f":"IF('1. Order'!W560=\"\",\"\",'1. Order'!W560)","v":""},{"$f":"IF('1. Order'!X560=\"\",\"\",'1. Order'!X560)","v":"EUR"},{"$f":"IF('1. Order'!Y560=\"\",\"\",'1. Order'!Y560)","v":""},{"$f":"IF('1. Order'!Z560=\"\",\"\",'1. Order'!Z560)","v":""},{"$f":"IF('1. Order'!AA560=\"\",\"\",'1. Order'!AA560)","v":""},null,{"$f":"IF('1. Order'!AS560=\"\",\"\",'1. Order'!AS560)","v":""},{"$f":"IF('1. Order'!AT560=\"\",\"\",'1. Order'!AT560)","v":""},null,null,null,null,null,null,null,{"$f":"IF('1. Order'!AX560=\"\",\"\",'1. Order'!AX560)","v":""},{"$f":"IF('1. Order'!AY560=\"\",\"\",'1. Order'!AY560)","v":""},{"$f":"IF('1. Order'!AZ560=\"\",\"\",'1. Order'!AZ560)","v":""},{"$f":"IF('1. Order'!BA560=\"\",\"\",'1. Order'!BA560)","v":""},{"$f":"IF('1. Order'!BC560=\"\",\"\",'1. Order'!BC560)","v":""},{"$f":"IF('1. Order'!BD560=\"\",\"\",'1. Order'!BD560)","v":6},{"$f":"IF('1. Order'!BE560=\"\",\"\",'1. Order'!BE560)","v":"None"},{"$f":"IF('1. Order'!BF560=\"\",\"\",'1. Order'!BF560)","v":"Parcel"},{"$f":"IF('1. Order'!BG560=\"\",\"\",'1. Order'!BG560)","v":"ZWO"}]
[{"$f":"IF('1. Order'!F561=\"\",\"\",'1. Order'!F561)","v":""},{"$f":"IF('1. Order'!G561=\"\",\"\",'1. Order'!G561)","v":""},{"$f":"IF('1. Order'!H561=\"\",\"\",'1. Order'!H561)","v":""},{"$f":"IF('1. Order'!I561=\"\",\"\",'1. Order'!I561)","v":""},{"$f":"IF('1. Order'!J561=\"\",\"\",'1. Order'!J561)","v":""},{"$f":"IF('1. Order'!K561=\"\",\"\",'1. Order'!K561)","v":""},{"$f":"IF('1. Order'!L561=\"\",\"\",'1. Order'!L561)","v":""},{"$f":"IF('1. Order'!M561=\"\",\"\",'1. Order'!M561)","v":""},{"$f":"IF('1. Order'!N561=\"\",\"\",'1. Order'!N561)","v":""},{"$f":"IF('1. Order'!O561=\"\",\"\",'1. Order'!O561)","v":{"$error":"#N/A"}},{"$f":"IF('1. Order'!P561=\"\",\"\",'1. Order'!P561)","v":{"$error":"#N/A"}},{"$f":"IF('1. Order'!Q561=\"\",\"\",'1. Order'!Q561)","v":""},{"$f":"IF('1. Order'!R561=\"\",\"\",'1. Order'!R561)","v":""},{"$f":"IF('1. Order'!S561=\"\",\"\",'1. Order'!S561)","v":""},{"$f":"IF('1. Order'!V561=\"\",\"\",'1. Order'!V561)","v":""},{"$f":"IF('1. Order'!W561=\"\",\"\",'1. Order'!W561)","v":""},{"$f":"IF('1. Order'!X561=\"\",\"\",'1. Order'!X561)","v":"EUR"},{"$f":"IF('1. Order'!Y561=\"\",\"\",'1. Order'!Y561)","v":""},{"$f":"IF('1. Order'!Z561=\"\",\"\",'1. Order'!Z561)","v":""},{"$f":"IF('1. Order'!AA561=\"\",\"\",'1. Order'!AA561)","v":""},null,{"$f":"IF('1. Order'!AS561=\"\",\"\",'1. Order'!AS561)","v":""},{"$f":"IF('1. Order'!AT561=\"\",\"\",'1. Order'!AT561)","v":""},null,null,null,null,null,null,null,{"$f":"IF('1. Order'!AX561=\"\",\"\",'1. Order'!AX561)","v":""},{"$f":"IF('1. Order'!AY561=\"\",\"\",'1. Order'!AY561)","v":""},{"$f":"IF('1. Order'!AZ561=\"\",\"\",'1. Order'!AZ561)","v":""},{"$f":"IF('1. Order'!BA561=\"\",\"\",'1. Order'!BA561)","v":""},{"$f":"IF('1. Order'!BC561=\"\",\"\",'1. Order'!BC561)","v":""},{"$f":"IF('1. Order'!BD561=\"\",\"\",'1. Order'!BD561)","v":6},{"$f":"IF('1. Order'!BE561=\"\",\"\",'1. Order'!BE561)","v":"None"},{"$f":"IF('1. Order'!BF561=\"\",\"\",'1. Order'!BF561)","v":"Parcel"},{"$f":"IF('1. Order'!BG561=\"\",\"\",'1. Order'!BG561)","v":"ZWO"}]
[{"$f":"IF('1. Order'!F562=\"\",\"\",'1. Order'!F562)","v":""},{"$f":"IF('1. Order'!G562=\"\",\"\",'1. Order'!G562)","v":""},{"$f":"IF('1. Order'!H562=\"\",\"\",'1. Order'!H562)","v":""},{"$f":"IF('1. Order'!I562=\"\",\"\",'1. Order'!I562)","v":""},{"$f":"IF('1. Order'!J562=\"\",\"\",'1. Order'!J562)","v":""},{"$f":"IF('1. Order'!K562=\"\",\"\",'1. Order'!K562)","v":""},{"$f":"IF('1. Order'!L562=\"\",\"\",'1. Order'!L562)","v":""},{"$f":"IF('1. Order'!M562=\"\",\"\",'1. Order'!M562)","v":""},{"$f":"IF('1. Order'!N562=\"\",\"\",'1. Order'!N562)","v":""},{"$f":"IF('1. Order'!O562=\"\",\"\",'1. Order'!O562)","v":{"$error":"#N/A"}},{"$f":"IF('1. Order'!P562=\"\",\"\",'1. Order'!P562)","v":{"$error":"#N/A"}},{"$f":"IF('1. Order'!Q562=\"\",\"\",'1. Order'!Q562)","v":""},{"$f":"IF('1. Order'!R562=\"\",\"\",'1. Order'!R562)","v":""},{"$f":"IF('1. Order'!S562=\"\",\"\",'1. Order'!S562)","v":""},{"$f":"IF('1. Order'!V562=\"\",\"\",'1. Order'!V562)","v":""},{"$f":"IF('1. Order'!W562=\"\",\"\",'1. Order'!W562)","v":""},{"$f":"IF('1. Order'!X562=\"\",\"\",'1. Order'!X562)","v":"EUR"},{"$f":"IF('1. Order'!Y562=\"\",\"\",'1. Order'!Y562)","v":""},{"$f":"IF('1. Order'!Z562=\"\",\"\",'1. Order'!Z562)","v":""},{"$f":"IF('1. Order'!AA562=\"\",\"\",'1. Order'!AA562)","v":""},null,{"$f":"IF('1. Order'!AS562=\"\",\"\",'1. Order'!AS562)","v":""},{"$f":"IF('1. Order'!AT562=\"\",\"\",'1. Order'!AT562)","v":""},null,null,null,null,null,null,null,{"$f":"IF('1. Order'!AX562=\"\",\"\",'1. Order'!AX562)","v":""},{"$f":"IF('1. Order'!AY562=\"\",\"\",'1. Order'!AY562)","v":""},{"$f":"IF('1. Order'!AZ562=\"\",\"\",'1. Order'!AZ562)","v":""},{"$f":"IF('1. Order'!BA562=\"\",\"\",'1. Order'!BA562)","v":""},{"$f":"IF('1. Order'!BC562=\"\",\"\",'1. Order'!BC562)","v":""},{"$f":"IF('1. Order'!BD562=\"\",\"\",'1. Order'!BD562)","v":6},{"$f":"IF('1. Order'!BE562=\"\",\"\",'1. Order'!BE562)","v":"None"},{"$f":"IF('1. Order'!BF562=\"\",\"\",'1. Order'!BF562)","v":"Parcel"},{"$f":"IF('1. Order'!BG562=\"\",\"\",'1. Order'!BG562)","v":"ZWO"}]
[{"$f":"IF('1. Order'!F563=\"\",\"\",'1. Order'!F563)","v":""},{"$f":"IF('1. Order'!G563=\"\",\"\",'1. Order'!G563)","v":""},{"$f":"IF('1. Order'!H563=\"\",\"\",'1. Order'!H563)","v":""},{"$f":"IF('1. Order'!I563=\"\",\"\",'1. Order'!I563)","v":""},{"$f":"IF('1. Order'!J563=\"\",\"\",'1. Order'!J563)","v":""},{"$f":"IF('1. Order'!K563=\"\",\"\",'1. Order'!K563)","v":""},{"$f":"IF('1. Order'!L563=\"\",\"\",'1. Order'!L563)","v":""},{"$f":"IF('1. Order'!M563=\"\",\"\",'1. Order'!M563)","v":""},{"$f":"IF('1. Order'!N563=\"\",\"\",'1. Order'!N563)","v":""},{"$f":"IF('1. Order'!O563=\"\",\"\",'1. Order'!O563)","v":{"$error":"#N/A"}},{"$f":"IF('1. Order'!P563=\"\",\"\",'1. Order'!P563)","v":{"$error":"#N/A"}},{"$f":"IF('1. Order'!Q563=\"\",\"\",'1. Order'!Q563)","v":""},{"$f":"IF('1. Order'!R563=\"\",\"\",'1. Order'!R563)","v":""},{"$f":"IF('1. Order'!S563=\"\",\"\",'1. Order'!S563)","v":""},{"$f":"IF('1. Order'!V563=\"\",\"\",'1. Order'!V563)","v":""},{"$f":"IF('1. Order'!W563=\"\",\"\",'1. Order'!W563)","v":""},{"$f":"IF('1. Order'!X563=\"\",\"\",'1. Order'!X563)","v":"EUR"},{"$f":"IF('1. Order'!Y563=\"\",\"\",'1. Order'!Y563)","v":""},{"$f":"IF('1. Order'!Z563=\"\",\"\",'1. Order'!Z563)","v":""},{"$f":"IF('1. Order'!AA563=\"\",\"\",'1. Order'!AA563)","v":""},null,{"$f":"IF('1. Order'!AS563=\"\",\"\",'1. Order'!AS563)","v":""},{"$f":"IF('1. Order'!AT563=\"\",\"\",'1. Order'!AT563)","v":""},null,null,null,null,null,null,null,{"$f":"IF('1. Order'!AX563=\"\",\"\",'1. Order'!AX563)","v":""},{"$f":"IF('1. Order'!AY563=\"\",\"\",'1. Order'!AY563)","v":""},{"$f":"IF('1. Order'!AZ563=\"\",\"\",'1. Order'!AZ563)","v":""},{"$f":"IF('1. Order'!BA563=\"\",\"\",'1. Order'!BA563)","v":""},{"$f":"IF('1. Order'!BC563=\"\",\"\",'1. Order'!BC563)","v":""},{"$f":"IF('1. Order'!BD563=\"\",\"\",'1. Order'!BD563)","v":6},{"$f":"IF('1. Order'!BE563=\"\",\"\",'1. Order'!BE563)","v":"None"},{"$f":"IF('1. Order'!BF563=\"\",\"\",'1. Order'!BF563)","v":"Parcel"},{"$f":"IF('1. Order'!BG563=\"\",\"\",'1. Order'!BG563)","v":"ZWO"}]
[{"$f":"IF('1. Order'!F564=\"\",\"\",'1. Order'!F564)","v":""},{"$f":"IF('1. Order'!G564=\"\",\"\",'1. Order'!G564)","v":""},{"$f":"IF('1. Order'!H564=\"\",\"\",'1. Order'!H564)","v":""},{"$f":"IF('1. Order'!I564=\"\",\"\",'1. Order'!I564)","v":""},{"$f":"IF('1. Order'!J564=\"\",\"\",'1. Order'!J564)","v":""},{"$f":"IF('1. Order'!K564=\"\",\"\",'1. Order'!K564)","v":""},{"$f":"IF('1. Order'!L564=\"\",\"\",'1. Order'!L564)","v":""},{"$f":"IF('1. Order'!M564=\"\",\"\",'1. Order'!M564)","v":""},{"$f":"IF('1. Order'!N564=\"\",\"\",'1. Order'!N564)","v":""},{"$f":"IF('1. Order'!O564=\"\",\"\",'1. Order'!O564)","v":{"$error":"#N/A"}},{"$f":"IF('1. Order'!P564=\"\",\"\",'1. Order'!P564)","v":{"$error":"#N/A"}},{"$f":"IF('1. Order'!Q564=\"\",\"\",'1. Order'!Q564)","v":""},{"$f":"IF('1. Order'!R564=\"\",\"\",'1. Order'!R564)","v":""},{"$f":"IF('1. Order'!S564=\"\",\"\",'1. Order'!S564)","v":""},{"$f":"IF('1. Order'!V564=\"\",\"\",'1. Order'!V564)","v":""},{"$f":"IF('1. Order'!W564=\"\",\"\",'1. Order'!W564)","v":""},{"$f":"IF('1. Order'!X564=\"\",\"\",'1. Order'!X564)","v":"EUR"},{"$f":"IF('1. Order'!Y564=\"\",\"\",'1. Order'!Y564)","v":""},{"$f":"IF('1. Order'!Z564=\"\",\"\",'1. Order'!Z564)","v":""},{"$f":"IF('1. Order'!AA564=\"\",\"\",'1. Order'!AA564)","v":""},null,{"$f":"IF('1. Order'!AS564=\"\",\"\",'1. Order'!AS564)","v":""},{"$f":"IF('1. Order'!AT564=\"\",\"\",'1. Order'!AT564)","v":""},null,null,null,null,null,null,null,{"$f":"IF('1. Order'!AX564=\"\",\"\",'1. Order'!AX564)","v":""},{"$f":"IF('1. Order'!AY564=\"\",\"\",'1. Order'!AY564)","v":""},{"$f":"IF('1. Order'!AZ564=\"\",\"\",'1. Order'!AZ564)","v":""},{"$f":"IF('1. Order'!BA564=\"\",\"\",'1. Order'!BA564)","v":""},{"$f":"IF('1. Order'!BC564=\"\",\"\",'1. Order'!BC564)","v":""},{"$f":"IF('1. Order'!BD564=\"\",\"\",'1. Order'!BD564)","v":6},{"$f":"IF('1. Order'!BE564=\"\",\"\",'1. Order'!BE564)","v":"None"},{"$f":"IF('1. Order'!BF564=\"\",\"\",'1. Order'!BF564)","v":"Parcel"},{"$f":"IF('1. Order'!BG564=\"\",\"\",'1. Order'!BG564)","v":"ZWO"}]
[{"$f":"IF('1. Order'!F565=\"\",\"\",'1. Order'!F565)","v":""},{"$f":"IF('1. Order'!G565=\"\",\"\",'1. Order'!G565)","v":""},{"$f":"IF('1. Order'!H565=\"\",\"\",'1. Order'!H565)","v":""},{"$f":"IF('1. Order'!I565=\"\",\"\",'1. Order'!I565)","v":""},{"$f":"IF('1. Order'!J565=\"\",\"\",'1. Order'!J565)","v":""},{"$f":"IF('1. Order'!K565=\"\",\"\",'1. Order'!K565)","v":""},{"$f":"IF('1. Order'!L565=\"\",\"\",'1. Order'!L565)","v":""},{"$f":"IF('1. Order'!M565=\"\",\"\",'1. Order'!M565)","v":""},{"$f":"IF('1. Order'!N565=\"\",\"\",'1. Order'!N565)","v":""},{"$f":"IF('1. Order'!O565=\"\",\"\",'1. Order'!O565)","v":{"$error":"#N/A"}},{"$f":"IF('1. Order'!P565=\"\",\"\",'1. Order'!P565)","v":{"$error":"#N/A"}},{"$f":"IF('1. Order'!Q565=\"\",\"\",'1. Order'!Q565)","v":""},{"$f":"IF('1. Order'!R565=\"\",\"\",'1. Order'!R565)","v":""},{"$f":"IF('1. Order'!S565=\"\",\"\",'1. Order'!S565)","v":""},{"$f":"IF('1. Order'!V565=\"\",\"\",'1. Order'!V565)","v":""},{"$f":"IF('1. Order'!W565=\"\",\"\",'1. Order'!W565)","v":""},{"$f":"IF('1. Order'!X565=\"\",\"\",'1. Order'!X565)","v":"EUR"},{"$f":"IF('1. Order'!Y565=\"\",\"\",'1. Order'!Y565)","v":""},{"$f":"IF('1. Order'!Z565=\"\",\"\",'1. Order'!Z565)","v":""},{"$f":"IF('1. Order'!AA565=\"\",\"\",'1. Order'!AA565)","v":""},null,{"$f":"IF('1. Order'!AS565=\"\",\"\",'1. Order'!AS565)","v":""},{"$f":"IF('1. Order'!AT565=\"\",\"\",'1. Order'!AT565)","v":""},null,null,null,null,null,null,null,{"$f":"IF('1. Order'!AX565=\"\",\"\",'1. Order'!AX565)","v":""},{"$f":"IF('1. Order'!AY565=\"\",\"\",'1. Order'!AY565)","v":""},{"$f":"IF('1. Order'!AZ565=\"\",\"\",'1. Order'!AZ565)","v":""},{"$f":"IF('1. Order'!BA565=\"\",\"\",'1. Order'!BA565)","v":""},{"$f":"IF('1. Order'!BC565=\"\",\"\",'1. Order'!BC565)","v":""},{"$f":"IF('1. Order'!BD565=\"\",\"\",'1. Order'!BD565)","v":6},{"$f":"IF('1. Order'!BE565=\"\",\"\",'1. Order'!BE565)","v":"None"},{"$f":"IF('1. Order'!BF565=\"\",\"\",'1. Order'!BF565)","v":"Parcel"},{"$f":"IF('1. Order'!BG565=\"\",\"\",'1. Order'!BG565)","v":"ZWO"}]
[{"$f":"IF('1. Order'!F566=\"\",\"\",'1. Order'!F566)","v":""},{"$f":"IF('1. Order'!G566=\"\",\"\",'1. Order'!G566)","v":""},{"$f":"IF('1. Order'!H566=\"\",\"\",'1. Order'!H566)","v":""},{"$f":"IF('1. Order'!I566=\"\",\"\",'1. Order'!I566)","v":""},{"$f":"IF('1. Order'!J566=\"\",\"\",'1. Order'!J566)","v":""},{"$f":"IF('1. Order'!K566=\"\",\"\",'1. Order'!K566)","v":""},{"$f":"IF('1. Order'!L566=\"\",\"\",'1. Order'!L566)","v":""},{"$f":"IF('1. Order'!M566=\"\",\"\",'1. Order'!M566)","v":""},{"$f":"IF('1. Order'!N566=\"\",\"\",'1. Order'!N566)","v":""},{"$f":"IF('1. Order'!O566=\"\",\"\",'1. Order'!O566)","v":{"$error":"#N/A"}},{"$f":"IF('1. Order'!P566=\"\",\"\",'1. Order'!P566)","v":{"$error":"#N/A"}},{"$f":"IF('1. Order'!Q566=\"\",\"\",'1. Order'!Q566)","v":""},{"$f":"IF('1. Order'!R566=\"\",\"\",'1. Order'!R566)","v":""},{"$f":"IF('1. Order'!S566=\"\",\"\",'1. Order'!S566)","v":""},{"$f":"IF('1. Order'!V566=\"\",\"\",'1. Order'!V566)","v":""},{"$f":"IF('1. Order'!W566=\"\",\"\",'1. Order'!W566)","v":""},{"$f":"IF('1. Order'!X566=\"\",\"\",'1. Order'!X566)","v":"EUR"},{"$f":"IF('1. Order'!Y566=\"\",\"\",'1. Order'!Y566)","v":""},{"$f":"IF('1. Order'!Z566=\"\",\"\",'1. Order'!Z566)","v":""},{"$f":"IF('1. Order'!AA566=\"\",\"\",'1. Order'!AA566)","v":""},null,{"$f":"IF('1. Order'!AS566=\"\",\"\",'1. Order'!AS566)","v":""},{"$f":"IF('1. Order'!AT566=\"\",\"\",'1. Order'!AT566)","v":""},null,null,null,null,null,null,null,{"$f":"IF('1. Order'!AX566=\"\",\"\",'1. Order'!AX566)","v":""},{"$f":"IF('1. Order'!AY566=\"\",\"\",'1. Order'!AY566)","v":""},{"$f":"IF('1. Order'!AZ566=\"\",\"\",'1. Order'!AZ566)","v":""},{"$f":"IF('1. Order'!BA566=\"\",\"\",'1. Order'!BA566)","v":""},{"$f":"IF('1. Order'!BC566=\"\",\"\",'1. Order'!BC566)","v":""},{"$f":"IF('1. Order'!BD566=\"\",\"\",'1. Order'!BD566)","v":6},{"$f":"IF('1. Order'!BE566=\"\",\"\",'1. Order'!BE566)","v":"None"},{"$f":"IF('1. Order'!BF566=\"\",\"\",'1. Order'!BF566)","v":"Parcel"},{"$f":"IF('1. Order'!BG566=\"\",\"\",'1. Order'!BG566)","v":"ZWO"}]
[{"$f":"IF('1. Order'!F567=\"\",\"\",'1. Order'!F567)","v":""},{"$f":"IF('1. Order'!G567=\"\",\"\",'1. Order'!G567)","v":""},{"$f":"IF('1. Order'!H567=\"\",\"\",'1. Order'!H567)","v":""},{"$f":"IF('1. Order'!I567=\"\",\"\",'1. Order'!I567)","v":""},{"$f":"IF('1. Order'!J567=\"\",\"\",'1. Order'!J567)","v":""},{"$f":"IF('1. Order'!K567=\"\",\"\",'1. Order'!K567)","v":""},{"$f":"IF('1. Order'!L567=\"\",\"\",'1. Order'!L567)","v":""},{"$f":"IF('1. Order'!M567=\"\",\"\",'1. Order'!M567)","v":""},{"$f":"IF('1. Order'!N567=\"\",\"\",'1. Order'!N567)","v":""},{"$f":"IF('1. Order'!O567=\"\",\"\",'1. Order'!O567)","v":{"$error":"#N/A"}},{"$f":"IF('1. Order'!P567=\"\",\"\",'1. Order'!P567)","v":{"$error":"#N/A"}},{"$f":"IF('1. Order'!Q567=\"\",\"\",'1. Order'!Q567)","v":""},{"$f":"IF('1. Order'!R567=\"\",\"\",'1. Order'!R567)","v":""},{"$f":"IF('1. Order'!S567=\"\",\"\",'1. Order'!S567)","v":""},{"$f":"IF('1. Order'!V567=\"\",\"\",'1. Order'!V567)","v":""},{"$f":"IF('1. Order'!W567=\"\",\"\",'1. Order'!W567)","v":""},{"$f":"IF('1. Order'!X567=\"\",\"\",'1. Order'!X567)","v":"EUR"},{"$f":"IF('1. Order'!Y567=\"\",\"\",'1. Order'!Y567)","v":""},{"$f":"IF('1. Order'!Z567=\"\",\"\",'1. Order'!Z567)","v":""},{"$f":"IF('1. Order'!AA567=\"\",\"\",'1. Order'!AA567)","v":""},null,{"$f":"IF('1. Order'!AS567=\"\",\"\",'1. Order'!AS567)","v":""},{"$f":"IF('1. Order'!AT567=\"\",\"\",'1. Order'!AT567)","v":""},null,null,null,null,null,null,null,{"$f":"IF('1. Order'!AX567=\"\",\"\",'1. Order'!AX567)","v":""},{"$f":"IF('1. Order'!AY567=\"\",\"\",'1. Order'!AY567)","v":""},{"$f":"IF('1. Order'!AZ567=\"\",\"\",'1. Order'!AZ567)","v":""},{"$f":"IF('1. Order'!BA567=\"\",\"\",'1. Order'!BA567)","v":""},{"$f":"IF('1. Order'!BC567=\"\",\"\",'1. Order'!BC567)","v":""},{"$f":"IF('1. Order'!BD567=\"\",\"\",'1. Order'!BD567)","v":6},{"$f":"IF('1. Order'!BE567=\"\",\"\",'1. Order'!BE567)","v":"None"},{"$f":"IF('1. Order'!BF567=\"\",\"\",'1. Order'!BF567)","v":"Parcel"},{"$f":"IF('1. Order'!BG567=\"\",\"\",'1. Order'!BG567)","v":"ZWO"}]
[{"$f":"IF('1. Order'!F568=\"\",\"\",'1. Order'!F568)","v":""},{"$f":"IF('1. Order'!G568=\"\",\"\",'1. Order'!G568)","v":""},{"$f":"IF('1. Order'!H568=\"\",\"\",'1. Order'!H568)","v":""},{"$f":"IF('1. Order'!I568=\"\",\"\",'1. Order'!I568)","v":""},{"$f":"IF('1. Order'!J568=\"\",\"\",'1. Order'!J568)","v":""},{"$f":"IF('1. Order'!K568=\"\",\"\",'1. Order'!K568)","v":""},{"$f":"IF('1. Order'!L568=\"\",\"\",'1. Order'!L568)","v":""},{"$f":"IF('1. Order'!M568=\"\",\"\",'1. Order'!M568)","v":""},{"$f":"IF('1. Order'!N568=\"\",\"\",'1. Order'!N568)","v":""},{"$f":"IF('1. Order'!O568=\"\",\"\",'1. Order'!O568)","v":{"$error":"#N/A"}},{"$f":"IF('1. Order'!P568=\"\",\"\",'1. Order'!P568)","v":{"$error":"#N/A"}},{"$f":"IF('1. Order'!Q568=\"\",\"\",'1. Order'!Q568)","v":""},{"$f":"IF('1. Order'!R568=\"\",\"\",'1. Order'!R568)","v":""},{"$f":"IF('1. Order'!S568=\"\",\"\",'1. Order'!S568)","v":""},{"$f":"IF('1. Order'!V568=\"\",\"\",'1. Order'!V568)","v":""},{"$f":"IF('1. Order'!W568=\"\",\"\",'1. Order'!W568)","v":""},{"$f":"IF('1. Order'!X568=\"\",\"\",'1. Order'!X568)","v":"EUR"},{"$f":"IF('1. Order'!Y568=\"\",\"\",'1. Order'!Y568)","v":""},{"$f":"IF('1. Order'!Z568=\"\",\"\",'1. Order'!Z568)","v":""},{"$f":"IF('1. Order'!AA568=\"\",\"\",'1. Order'!AA568)","v":""},null,{"$f":"IF('1. Order'!AS568=\"\",\"\",'1. Order'!AS568)","v":""},{"$f":"IF('1. Order'!AT568=\"\",\"\",'1. Order'!AT568)","v":""},null,null,null,null,null,null,null,{"$f":"IF('1. Order'!AX568=\"\",\"\",'1. Order'!AX568)","v":""},{"$f":"IF('1. Order'!AY568=\"\",\"\",'1. Order'!AY568)","v":""},{"$f":"IF('1. Order'!AZ568=\"\",\"\",'1. Order'!AZ568)","v":""},{"$f":"IF('1. Order'!BA568=\"\",\"\",'1. Order'!BA568)","v":""},{"$f":"IF('1. Order'!BC568=\"\",\"\",'1. Order'!BC568)","v":""},{"$f":"IF('1. Order'!BD568=\"\",\"\",'1. Order'!BD568)","v":6},{"$f":"IF('1. Order'!BE568=\"\",\"\",'1. Order'!BE568)","v":"None"},{"$f":"IF('1. Order'!BF568=\"\",\"\",'1. Order'!BF568)","v":"Parcel"},{"$f":"IF('1. Order'!BG568=\"\",\"\",'1. Order'!BG568)","v":"ZWO"}]
[{"$f":"IF('1. Order'!F569=\"\",\"\",'1. Order'!F569)","v":""},{"$f":"IF('1. Order'!G569=\"\",\"\",'1. Order'!G569)","v":""},{"$f":"IF('1. Order'!H569=\"\",\"\",'1. Order'!H569)","v":""},{"$f":"IF('1. Order'!I569=\"\",\"\",'1. Order'!I569)","v":""},{"$f":"IF('1. Order'!J569=\"\",\"\",'1. Order'!J569)","v":""},{"$f":"IF('1. Order'!K569=\"\",\"\",'1. Order'!K569)","v":""},{"$f":"IF('1. Order'!L569=\"\",\"\",'1. Order'!L569)","v":""},{"$f":"IF('1. Order'!M569=\"\",\"\",'1. Order'!M569)","v":""},{"$f":"IF('1. Order'!N569=\"\",\"\",'1. Order'!N569)","v":""},{"$f":"IF('1. Order'!O569=\"\",\"\",'1. Order'!O569)","v":{"$error":"#N/A"}},{"$f":"IF('1. Order'!P569=\"\",\"\",'1. Order'!P569)","v":{"$error":"#N/A"}},{"$f":"IF('1. Order'!Q569=\"\",\"\",'1. Order'!Q569)","v":""},{"$f":"IF('1. Order'!R569=\"\",\"\",'1. Order'!R569)","v":""},{"$f":"IF('1. Order'!S569=\"\",\"\",'1. Order'!S569)","v":""},{"$f":"IF('1. Order'!V569=\"\",\"\",'1. Order'!V569)","v":""},{"$f":"IF('1. Order'!W569=\"\",\"\",'1. Order'!W569)","v":""},{"$f":"IF('1. Order'!X569=\"\",\"\",'1. Order'!X569)","v":"EUR"},{"$f":"IF('1. Order'!Y569=\"\",\"\",'1. Order'!Y569)","v":""},{"$f":"IF('1. Order'!Z569=\"\",\"\",'1. Order'!Z569)","v":""},{"$f":"IF('1. Order'!AA569=\"\",\"\",'1. Order'!AA569)","v":""},null,{"$f":"IF('1. Order'!AS569=\"\",\"\",'1. Order'!AS569)","v":""},{"$f":"IF('1. Order'!AT569=\"\",\"\",'1. Order'!AT569)","v":""},null,null,null,null,null,null,null,{"$f":"IF('1. Order'!AX569=\"\",\"\",'1. Order'!AX569)","v":""},{"$f":"IF('1. Order'!AY569=\"\",\"\",'1. Order'!AY569)","v":""},{"$f":"IF('1. Order'!AZ569=\"\",\"\",'1. Order'!AZ569)","v":""},{"$f":"IF('1. Order'!BA569=\"\",\"\",'1. Order'!BA569)","v":""},{"$f":"IF('1. Order'!BC569=\"\",\"\",'1. Order'!BC569)","v":""},{"$f":"IF('1. Order'!BD569=\"\",\"\",'1. Order'!BD569)","v":6},{"$f":"IF('1. Order'!BE569=\"\",\"\",'1. Order'!BE569)","v":"None"},{"$f":"IF('1. Order'!BF569=\"\",\"\",'1. Order'!BF569)","v":"Parcel"},{"$f":"IF('1. Order'!BG569=\"\",\"\",'1. Order'!BG569)","v":"ZWO"}]
[{"$f":"IF('1. Order'!F570=\"\",\"\",'1. Order'!F570)","v":""},{"$f":"IF('1. Order'!G570=\"\",\"\",'1. Order'!G570)","v":""},{"$f":"IF('1. Order'!H570=\"\",\"\",'1. Order'!H570)","v":""},{"$f":"IF('1. Order'!I570=\"\",\"\",'1. Order'!I570)","v":""},{"$f":"IF('1. Order'!J570=\"\",\"\",'1. Order'!J570)","v":""},{"$f":"IF('1. Order'!K570=\"\",\"\",'1. Order'!K570)","v":""},{"$f":"IF('1. Order'!L570=\"\",\"\",'1. Order'!L570)","v":""},{"$f":"IF('1. Order'!M570=\"\",\"\",'1. Order'!M570)","v":""},{"$f":"IF('1. Order'!N570=\"\",\"\",'1. Order'!N570)","v":""},{"$f":"IF('1. Order'!O570=\"\",\"\",'1. Order'!O570)","v":{"$error":"#N/A"}},{"$f":"IF('1. Order'!P570=\"\",\"\",'1. Order'!P570)","v":{"$error":"#N/A"}},{"$f":"IF('1. Order'!Q570=\"\",\"\",'1. Order'!Q570)","v":""},{"$f":"IF('1. Order'!R570=\"\",\"\",'1. Order'!R570)","v":""},{"$f":"IF('1. Order'!S570=\"\",\"\",'1. Order'!S570)","v":""},{"$f":"IF('1. Order'!V570=\"\",\"\",'1. Order'!V570)","v":""},{"$f":"IF('1. Order'!W570=\"\",\"\",'1. Order'!W570)","v":""},{"$f":"IF('1. Order'!X570=\"\",\"\",'1. Order'!X570)","v":"EUR"},{"$f":"IF('1. Order'!Y570=\"\",\"\",'1. Order'!Y570)","v":""},{"$f":"IF('1. Order'!Z570=\"\",\"\",'1. Order'!Z570)","v":""},{"$f":"IF('1. Order'!AA570=\"\",\"\",'1. Order'!AA570)","v":""},null,{"$f":"IF('1. Order'!AS570=\"\",\"\",'1. Order'!AS570)","v":""},{"$f":"IF('1. Order'!AT570=\"\",\"\",'1. Order'!AT570)","v":""},null,null,null,null,null,null,null,{"$f":"IF('1. Order'!AX570=\"\",\"\",'1. Order'!AX570)","v":""},{"$f":"IF('1. Order'!AY570=\"\",\"\",'1. Order'!AY570)","v":""},{"$f":"IF('1. Order'!AZ570=\"\",\"\",'1. Order'!AZ570)","v":""},{"$f":"IF('1. Order'!BA570=\"\",\"\",'1. Order'!BA570)","v":""},{"$f":"IF('1. Order'!BC570=\"\",\"\",'1. Order'!BC570)","v":""},{"$f":"IF('1. Order'!BD570=\"\",\"\",'1. Order'!BD570)","v":6},{"$f":"IF('1. Order'!BE570=\"\",\"\",'1. Order'!BE570)","v":"None"},{"$f":"IF('1. Order'!BF570=\"\",\"\",'1. Order'!BF570)","v":"Parcel"},{"$f":"IF('1. Order'!BG570=\"\",\"\",'1. Order'!BG570)","v":"ZWO"}]
[{"$f":"IF('1. Order'!F571=\"\",\"\",'1. Order'!F571)","v":""},{"$f":"IF('1. Order'!G571=\"\",\"\",'1. Order'!G571)","v":""},{"$f":"IF('1. Order'!H571=\"\",\"\",'1. Order'!H571)","v":""},{"$f":"IF('1. Order'!I571=\"\",\"\",'1. Order'!I571)","v":""},{"$f":"IF('1. Order'!J571=\"\",\"\",'1. Order'!J571)","v":""},{"$f":"IF('1. Order'!K571=\"\",\"\",'1. Order'!K571)","v":""},{"$f":"IF('1. Order'!L571=\"\",\"\",'1. Order'!L571)","v":""},{"$f":"IF('1. Order'!M571=\"\",\"\",'1. Order'!M571)","v":""},{"$f":"IF('1. Order'!N571=\"\",\"\",'1. Order'!N571)","v":""},{"$f":"IF('1. Order'!O571=\"\",\"\",'1. Order'!O571)","v":{"$error":"#N/A"}},{"$f":"IF('1. Order'!P571=\"\",\"\",'1. Order'!P571)","v":{"$error":"#N/A"}},{"$f":"IF('1. Order'!Q571=\"\",\"\",'1. Order'!Q571)","v":""},{"$f":"IF('1. Order'!R571=\"\",\"\",'1. Order'!R571)","v":""},{"$f":"IF('1. Order'!S571=\"\",\"\",'1. Order'!S571)","v":""},{"$f":"IF('1. Order'!V571=\"\",\"\",'1. Order'!V571)","v":""},{"$f":"IF('1. Order'!W571=\"\",\"\",'1. Order'!W571)","v":""},{"$f":"IF('1. Order'!X571=\"\",\"\",'1. Order'!X571)","v":"EUR"},{"$f":"IF('1. Order'!Y571=\"\",\"\",'1. Order'!Y571)","v":""},{"$f":"IF('1. Order'!Z571=\"\",\"\",'1. Order'!Z571)","v":""},{"$f":"IF('1. Order'!AA571=\"\",\"\",'1. Order'!AA571)","v":""},null,{"$f":"IF('1. Order'!AS571=\"\",\"\",'1. Order'!AS571)","v":""},{"$f":"IF('1. Order'!AT571=\"\",\"\",'1. Order'!AT571)","v":""},null,null,null,null,null,null,null,{"$f":"IF('1. Order'!AX571=\"\",\"\",'1. Order'!AX571)","v":""},{"$f":"IF('1. Order'!AY571=\"\",\"\",'1. Order'!AY571)","v":""},{"$f":"IF('1. Order'!AZ571=\"\",\"\",'1. Order'!AZ571)","v":""},{"$f":"IF('1. Order'!BA571=\"\",\"\",'1. Order'!BA571)","v":""},{"$f":"IF('1. Order'!BC571=\"\",\"\",'1. Order'!BC571)","v":""},{"$f":"IF('1. Order'!BD571=\"\",\"\",'1. Order'!BD571)","v":6},{"$f":"IF('1. Order'!BE571=\"\",\"\",'1. Order'!BE571)","v":"None"},{"$f":"IF('1. Order'!BF571=\"\",\"\",'1. Order'!BF571)","v":"Parcel"},{"$f":"IF('1. Order'!BG571=\"\",\"\",'1. Order'!BG571)","v":"ZWO"}]
[{"$f":"IF('1. Order'!F572=\"\",\"\",'1. Order'!F572)","v":""},{"$f":"IF('1. Order'!G572=\"\",\"\",'1. Order'!G572)","v":""},{"$f":"IF('1. Order'!H572=\"\",\"\",'1. Order'!H572)","v":""},{"$f":"IF('1. Order'!I572=\"\",\"\",'1. Order'!I572)","v":""},{"$f":"IF('1. Order'!J572=\"\",\"\",'1. Order'!J572)","v":""},{"$f":"IF('1. Order'!K572=\"\",\"\",'1. Order'!K572)","v":""},{"$f":"IF('1. Order'!L572=\"\",\"\",'1. Order'!L572)","v":""},{"$f":"IF('1. Order'!M572=\"\",\"\",'1. Order'!M572)","v":""},{"$f":"IF('1. Order'!N572=\"\",\"\",'1. Order'!N572)","v":""},{"$f":"IF('1. Order'!O572=\"\",\"\",'1. Order'!O572)","v":{"$error":"#N/A"}},{"$f":"IF('1. Order'!P572=\"\",\"\",'1. Order'!P572)","v":{"$error":"#N/A"}},{"$f":"IF('1. Order'!Q572=\"\",\"\",'1. Order'!Q572)","v":""},{"$f":"IF('1. Order'!R572=\"\",\"\",'1. Order'!R572)","v":""},{"$f":"IF('1. Order'!S572=\"\",\"\",'1. Order'!S572)","v":""},{"$f":"IF('1. Order'!V572=\"\",\"\",'1. Order'!V572)","v":""},{"$f":"IF('1. Order'!W572=\"\",\"\",'1. Order'!W572)","v":""},{"$f":"IF('1. Order'!X572=\"\",\"\",'1. Order'!X572)","v":"EUR"},{"$f":"IF('1. Order'!Y572=\"\",\"\",'1. Order'!Y572)","v":""},{"$f":"IF('1. Order'!Z572=\"\",\"\",'1. Order'!Z572)","v":""},{"$f":"IF('1. Order'!AA572=\"\",\"\",'1. Order'!AA572)","v":""},null,{"$f":"IF('1. Order'!AS572=\"\",\"\",'1. Order'!AS572)","v":""},{"$f":"IF('1. Order'!AT572=\"\",\"\",'1. Order'!AT572)","v":""},null,null,null,null,null,null,null,{"$f":"IF('1. Order'!AX572=\"\",\"\",'1. Order'!AX572)","v":""},{"$f":"IF('1. Order'!AY572=\"\",\"\",'1. Order'!AY572)","v":""},{"$f":"IF('1. Order'!AZ572=\"\",\"\",'1. Order'!AZ572)","v":""},{"$f":"IF('1. Order'!BA572=\"\",\"\",'1. Order'!BA572)","v":""},{"$f":"IF('1. Order'!BC572=\"\",\"\",'1. Order'!BC572)","v":""},{"$f":"IF('1. Order'!BD572=\"\",\"\",'1. Order'!BD572)","v":6},{"$f":"IF('1. Order'!BE572=\"\",\"\",'1. Order'!BE572)","v":"None"},{"$f":"IF('1. Order'!BF572=\"\",\"\",'1. Order'!BF572)","v":"Parcel"},{"$f":"IF('1. Order'!BG572=\"\",\"\",'1. Order'!BG572)","v":"ZWO"}]
[{"$f":"IF('1. Order'!F573=\"\",\"\",'1. Order'!F573)","v":""},{"$f":"IF('1. Order'!G573=\"\",\"\",'1. Order'!G573)","v":""},{"$f":"IF('1. Order'!H573=\"\",\"\",'1. Order'!H573)","v":""},{"$f":"IF('1. Order'!I573=\"\",\"\",'1. Order'!I573)","v":""},{"$f":"IF('1. Order'!J573=\"\",\"\",'1. Order'!J573)","v":""},{"$f":"IF('1. Order'!K573=\"\",\"\",'1. Order'!K573)","v":""},{"$f":"IF('1. Order'!L573=\"\",\"\",'1. Order'!L573)","v":""},{"$f":"IF('1. Order'!M573=\"\",\"\",'1. Order'!M573)","v":""},{"$f":"IF('1. Order'!N573=\"\",\"\",'1. Order'!N573)","v":""},{"$f":"IF('1. Order'!O573=\"\",\"\",'1. Order'!O573)","v":{"$error":"#N/A"}},{"$f":"IF('1. Order'!P573=\"\",\"\",'1. Order'!P573)","v":{"$error":"#N/A"}},{"$f":"IF('1. Order'!Q573=\"\",\"\",'1. Order'!Q573)","v":""},{"$f":"IF('1. Order'!R573=\"\",\"\",'1. Order'!R573)","v":""},{"$f":"IF('1. Order'!S573=\"\",\"\",'1. Order'!S573)","v":""},{"$f":"IF('1. Order'!V573=\"\",\"\",'1. Order'!V573)","v":""},{"$f":"IF('1. Order'!W573=\"\",\"\",'1. Order'!W573)","v":""},{"$f":"IF('1. Order'!X573=\"\",\"\",'1. Order'!X573)","v":"EUR"},{"$f":"IF('1. Order'!Y573=\"\",\"\",'1. Order'!Y573)","v":""},{"$f":"IF('1. Order'!Z573=\"\",\"\",'1. Order'!Z573)","v":""},{"$f":"IF('1. Order'!AA573=\"\",\"\",'1. Order'!AA573)","v":""},null,{"$f":"IF('1. Order'!AS573=\"\",\"\",'1. Order'!AS573)","v":""},{"$f":"IF('1. Order'!AT573=\"\",\"\",'1. Order'!AT573)","v":""},null,null,null,null,null,null,null,{"$f":"IF('1. Order'!AX573=\"\",\"\",'1. Order'!AX573)","v":""},{"$f":"IF('1. Order'!AY573=\"\",\"\",'1. Order'!AY573)","v":""},{"$f":"IF('1. Order'!AZ573=\"\",\"\",'1. Order'!AZ573)","v":""},{"$f":"IF('1. Order'!BA573=\"\",\"\",'1. Order'!BA573)","v":""},{"$f":"IF('1. Order'!BC573=\"\",\"\",'1. Order'!BC573)","v":""},{"$f":"IF('1. Order'!BD573=\"\",\"\",'1. Order'!BD573)","v":6},{"$f":"IF('1. Order'!BE573=\"\",\"\",'1. Order'!BE573)","v":"None"},{"$f":"IF('1. Order'!BF573=\"\",\"\",'1. Order'!BF573)","v":"Parcel"},{"$f":"IF('1. Order'!BG573=\"\",\"\",'1. Order'!BG573)","v":"ZWO"}]
[{"$f":"IF('1. Order'!F574=\"\",\"\",'1. Order'!F574)","v":""},{"$f":"IF('1. Order'!G574=\"\",\"\",'1. Order'!G574)","v":""},{"$f":"IF('1. Order'!H574=\"\",\"\",'1. Order'!H574)","v":""},{"$f":"IF('1. Order'!I574=\"\",\"\",'1. Order'!I574)","v":""},{"$f":"IF('1. Order'!J574=\"\",\"\",'1. Order'!J574)","v":""},{"$f":"IF('1. Order'!K574=\"\",\"\",'1. Order'!K574)","v":""},{"$f":"IF('1. Order'!L574=\"\",\"\",'1. Order'!L574)","v":""},{"$f":"IF('1. Order'!M574=\"\",\"\",'1. Order'!M574)","v":""},{"$f":"IF('1. Order'!N574=\"\",\"\",'1. Order'!N574)","v":""},{"$f":"IF('1. Order'!O574=\"\",\"\",'1. Order'!O574)","v":{"$error":"#N/A"}},{"$f":"IF('1. Order'!P574=\"\",\"\",'1. Order'!P574)","v":{"$error":"#N/A"}},{"$f":"IF('1. Order'!Q574=\"\",\"\",'1. Order'!Q574)","v":""},{"$f":"IF('1. Order'!R574=\"\",\"\",'1. Order'!R574)","v":""},{"$f":"IF('1. Order'!S574=\"\",\"\",'1. Order'!S574)","v":""},{"$f":"IF('1. Order'!V574=\"\",\"\",'1. Order'!V574)","v":""},{"$f":"IF('1. Order'!W574=\"\",\"\",'1. Order'!W574)","v":""},{"$f":"IF('1. Order'!X574=\"\",\"\",'1. Order'!X574)","v":"EUR"},{"$f":"IF('1. Order'!Y574=\"\",\"\",'1. Order'!Y574)","v":""},{"$f":"IF('1. Order'!Z574=\"\",\"\",'1. Order'!Z574)","v":""},{"$f":"IF('1. Order'!AA574=\"\",\"\",'1. Order'!AA574)","v":""},null,{"$f":"IF('1. Order'!AS574=\"\",\"\",'1. Order'!AS574)","v":""},{"$f":"IF('1. Order'!AT574=\"\",\"\",'1. Order'!AT574)","v":""},null,null,null,null,null,null,null,{"$f":"IF('1. Order'!AX574=\"\",\"\",'1. Order'!AX574)","v":""},{"$f":"IF('1. Order'!AY574=\"\",\"\",'1. Order'!AY574)","v":""},{"$f":"IF('1. Order'!AZ574=\"\",\"\",'1. Order'!AZ574)","v":""},{"$f":"IF('1. Order'!BA574=\"\",\"\",'1. Order'!BA574)","v":""},{"$f":"IF('1. Order'!BC574=\"\",\"\",'1. Order'!BC574)","v":""},{"$f":"IF('1. Order'!BD574=\"\",\"\",'1. Order'!BD574)","v":6},{"$f":"IF('1. Order'!BE574=\"\",\"\",'1. Order'!BE574)","v":"None"},{"$f":"IF('1. Order'!BF574=\"\",\"\",'1. Order'!BF574)","v":"Parcel"},{"$f":"IF('1. Order'!BG574=\"\",\"\",'1. Order'!BG574)","v":"ZWO"}]
[{"$f":"IF('1. Order'!F575=\"\",\"\",'1. Order'!F575)","v":""},{"$f":"IF('1. Order'!G575=\"\",\"\",'1. Order'!G575)","v":""},{"$f":"IF('1. Order'!H575=\"\",\"\",'1. Order'!H575)","v":""},{"$f":"IF('1. Order'!I575=\"\",\"\",'1. Order'!I575)","v":""},{"$f":"IF('1. Order'!J575=\"\",\"\",'1. Order'!J575)","v":""},{"$f":"IF('1. Order'!K575=\"\",\"\",'1. Order'!K575)","v":""},{"$f":"IF('1. Order'!L575=\"\",\"\",'1. Order'!L575)","v":""},{"$f":"IF('1. Order'!M575=\"\",\"\",'1. Order'!M575)","v":""},{"$f":"IF('1. Order'!N575=\"\",\"\",'1. Order'!N575)","v":""},{"$f":"IF('1. Order'!O575=\"\",\"\",'1. Order'!O575)","v":{"$error":"#N/A"}},{"$f":"IF('1. Order'!P575=\"\",\"\",'1. Order'!P575)","v":{"$error":"#N/A"}},{"$f":"IF('1. Order'!Q575=\"\",\"\",'1. Order'!Q575)","v":""},{"$f":"IF('1. Order'!R575=\"\",\"\",'1. Order'!R575)","v":""},{"$f":"IF('1. Order'!S575=\"\",\"\",'1. Order'!S575)","v":""},{"$f":"IF('1. Order'!V575=\"\",\"\",'1. Order'!V575)","v":""},{"$f":"IF('1. Order'!W575=\"\",\"\",'1. Order'!W575)","v":""},{"$f":"IF('1. Order'!X575=\"\",\"\",'1. Order'!X575)","v":"EUR"},{"$f":"IF('1. Order'!Y575=\"\",\"\",'1. Order'!Y575)","v":""},{"$f":"IF('1. Order'!Z575=\"\",\"\",'1. Order'!Z575)","v":""},{"$f":"IF('1. Order'!AA575=\"\",\"\",'1. Order'!AA575)","v":""},null,{"$f":"IF('1. Order'!AS575=\"\",\"\",'1. Order'!AS575)","v":""},{"$f":"IF('1. Order'!AT575=\"\",\"\",'1. Order'!AT575)","v":""},null,null,null,null,null,null,null,{"$f":"IF('1. Order'!AX575=\"\",\"\",'1. Order'!AX575)","v":""},{"$f":"IF('1. Order'!AY575=\"\",\"\",'1. Order'!AY575)","v":""},{"$f":"IF('1. Order'!AZ575=\"\",\"\",'1. Order'!AZ575)","v":""},{"$f":"IF('1. Order'!BA575=\"\",\"\",'1. Order'!BA575)","v":""},{"$f":"IF('1. Order'!BC575=\"\",\"\",'1. Order'!BC575)","v":""},{"$f":"IF('1. Order'!BD575=\"\",\"\",'1. Order'!BD575)","v":6},{"$f":"IF('1. Order'!BE575=\"\",\"\",'1. Order'!BE575)","v":"None"},{"$f":"IF('1. Order'!BF575=\"\",\"\",'1. Order'!BF575)","v":"Parcel"},{"$f":"IF('1. Order'!BG575=\"\",\"\",'1. Order'!BG575)","v":"ZWO"}]
[{"$f":"IF('1. Order'!F576=\"\",\"\",'1. Order'!F576)","v":""},{"$f":"IF('1. Order'!G576=\"\",\"\",'1. Order'!G576)","v":""},{"$f":"IF('1. Order'!H576=\"\",\"\",'1. Order'!H576)","v":""},{"$f":"IF('1. Order'!I576=\"\",\"\",'1. Order'!I576)","v":""},{"$f":"IF('1. Order'!J576=\"\",\"\",'1. Order'!J576)","v":""},{"$f":"IF('1. Order'!K576=\"\",\"\",'1. Order'!K576)","v":""},{"$f":"IF('1. Order'!L576=\"\",\"\",'1. Order'!L576)","v":""},{"$f":"IF('1. Order'!M576=\"\",\"\",'1. Order'!M576)","v":""},{"$f":"IF('1. Order'!N576=\"\",\"\",'1. Order'!N576)","v":""},{"$f":"IF('1. Order'!O576=\"\",\"\",'1. Order'!O576)","v":{"$error":"#N/A"}},{"$f":"IF('1. Order'!P576=\"\",\"\",'1. Order'!P576)","v":{"$error":"#N/A"}},{"$f":"IF('1. Order'!Q576=\"\",\"\",'1. Order'!Q576)","v":""},{"$f":"IF('1. Order'!R576=\"\",\"\",'1. Order'!R576)","v":""},{"$f":"IF('1. Order'!S576=\"\",\"\",'1. Order'!S576)","v":""},{"$f":"IF('1. Order'!V576=\"\",\"\",'1. Order'!V576)","v":""},{"$f":"IF('1. Order'!W576=\"\",\"\",'1. Order'!W576)","v":""},{"$f":"IF('1. Order'!X576=\"\",\"\",'1. Order'!X576)","v":"EUR"},{"$f":"IF('1. Order'!Y576=\"\",\"\",'1. Order'!Y576)","v":""},{"$f":"IF('1. Order'!Z576=\"\",\"\",'1. Order'!Z576)","v":""},{"$f":"IF('1. Order'!AA576=\"\",\"\",'1. Order'!AA576)","v":""},null,{"$f":"IF('1. Order'!AS576=\"\",\"\",'1. Order'!AS576)","v":""},{"$f":"IF('1. Order'!AT576=\"\",\"\",'1. Order'!AT576)","v":""},null,null,null,null,null,null,null,{"$f":"IF('1. Order'!AX576=\"\",\"\",'1. Order'!AX576)","v":""},{"$f":"IF('1. Order'!AY576=\"\",\"\",'1. Order'!AY576)","v":""},{"$f":"IF('1. Order'!AZ576=\"\",\"\",'1. Order'!AZ576)","v":""},{"$f":"IF('1. Order'!BA576=\"\",\"\",'1. Order'!BA576)","v":""},{"$f":"IF('1. Order'!BC576=\"\",\"\",'1. Order'!BC576)","v":""},{"$f":"IF('1. Order'!BD576=\"\",\"\",'1. Order'!BD576)","v":6},{"$f":"IF('1. Order'!BE576=\"\",\"\",'1. Order'!BE576)","v":"None"},{"$f":"IF('1. Order'!BF576=\"\",\"\",'1. Order'!BF576)","v":"Parcel"},{"$f":"IF('1. Order'!BG576=\"\",\"\",'1. Order'!BG576)","v":"ZWO"}]
[{"$f":"IF('1. Order'!F577=\"\",\"\",'1. Order'!F577)","v":""},{"$f":"IF('1. Order'!G577=\"\",\"\",'1. Order'!G577)","v":""},{"$f":"IF('1. Order'!H577=\"\",\"\",'1. Order'!H577)","v":""},{"$f":"IF('1. Order'!I577=\"\",\"\",'1. Order'!I577)","v":""},{"$f":"IF('1. Order'!J577=\"\",\"\",'1. Order'!J577)","v":""},{"$f":"IF('1. Order'!K577=\"\",\"\",'1. Order'!K577)","v":""},{"$f":"IF('1. Order'!L577=\"\",\"\",'1. Order'!L577)","v":""},{"$f":"IF('1. Order'!M577=\"\",\"\",'1. Order'!M577)","v":""},{"$f":"IF('1. Order'!N577=\"\",\"\",'1. Order'!N577)","v":""},{"$f":"IF('1. Order'!O577=\"\",\"\",'1. Order'!O577)","v":{"$error":"#N/A"}},{"$f":"IF('1. Order'!P577=\"\",\"\",'1. Order'!P577)","v":{"$error":"#N/A"}},{"$f":"IF('1. Order'!Q577=\"\",\"\",'1. Order'!Q577)","v":""},{"$f":"IF('1. Order'!R577=\"\",\"\",'1. Order'!R577)","v":""},{"$f":"IF('1. Order'!S577=\"\",\"\",'1. Order'!S577)","v":""},{"$f":"IF('1. Order'!V577=\"\",\"\",'1. Order'!V577)","v":""},{"$f":"IF('1. Order'!W577=\"\",\"\",'1. Order'!W577)","v":""},{"$f":"IF('1. Order'!X577=\"\",\"\",'1. Order'!X577)","v":"EUR"},{"$f":"IF('1. Order'!Y577=\"\",\"\",'1. Order'!Y577)","v":""},{"$f":"IF('1. Order'!Z577=\"\",\"\",'1. Order'!Z577)","v":""},{"$f":"IF('1. Order'!AA577=\"\",\"\",'1. Order'!AA577)","v":""},null,{"$f":"IF('1. Order'!AS577=\"\",\"\",'1. Order'!AS577)","v":""},{"$f":"IF('1. Order'!AT577=\"\",\"\",'1. Order'!AT577)","v":""},null,null,null,null,null,null,null,{"$f":"IF('1. Order'!AX577=\"\",\"\",'1. Order'!AX577)","v":""},{"$f":"IF('1. Order'!AY577=\"\",\"\",'1. Order'!AY577)","v":""},{"$f":"IF('1. Order'!AZ577=\"\",\"\",'1. Order'!AZ577)","v":""},{"$f":"IF('1. Order'!BA577=\"\",\"\",'1. Order'!BA577)","v":""},{"$f":"IF('1. Order'!BC577=\"\",\"\",'1. Order'!BC577)","v":""},{"$f":"IF('1. Order'!BD577=\"\",\"\",'1. Order'!BD577)","v":6},{"$f":"IF('1. Order'!BE577=\"\",\"\",'1. Order'!BE577)","v":"None"},{"$f":"IF('1. Order'!BF577=\"\",\"\",'1. Order'!BF577)","v":"Parcel"},{"$f":"IF('1. Order'!BG577=\"\",\"\",'1. Order'!BG577)","v":"ZWO"}]
[{"$f":"IF('1. Order'!F578=\"\",\"\",'1. Order'!F578)","v":""},{"$f":"IF('1. Order'!G578=\"\",\"\",'1. Order'!G578)","v":""},{"$f":"IF('1. Order'!H578=\"\",\"\",'1. Order'!H578)","v":""},{"$f":"IF('1. Order'!I578=\"\",\"\",'1. Order'!I578)","v":""},{"$f":"IF('1. Order'!J578=\"\",\"\",'1. Order'!J578)","v":""},{"$f":"IF('1. Order'!K578=\"\",\"\",'1. Order'!K578)","v":""},{"$f":"IF('1. Order'!L578=\"\",\"\",'1. Order'!L578)","v":""},{"$f":"IF('1. Order'!M578=\"\",\"\",'1. Order'!M578)","v":""},{"$f":"IF('1. Order'!N578=\"\",\"\",'1. Order'!N578)","v":""},{"$f":"IF('1. Order'!O578=\"\",\"\",'1. Order'!O578)","v":{"$error":"#N/A"}},{"$f":"IF('1. Order'!P578=\"\",\"\",'1. Order'!P578)","v":{"$error":"#N/A"}},{"$f":"IF('1. Order'!Q578=\"\",\"\",'1. Order'!Q578)","v":""},{"$f":"IF('1. Order'!R578=\"\",\"\",'1. Order'!R578)","v":""},{"$f":"IF('1. Order'!S578=\"\",\"\",'1. Order'!S578)","v":""},{"$f":"IF('1. Order'!V578=\"\",\"\",'1. Order'!V578)","v":""},{"$f":"IF('1. Order'!W578=\"\",\"\",'1. Order'!W578)","v":""},{"$f":"IF('1. Order'!X578=\"\",\"\",'1. Order'!X578)","v":"EUR"},{"$f":"IF('1. Order'!Y578=\"\",\"\",'1. Order'!Y578)","v":""},{"$f":"IF('1. Order'!Z578=\"\",\"\",'1. Order'!Z578)","v":""},{"$f":"IF('1. Order'!AA578=\"\",\"\",'1. Order'!AA578)","v":""},null,{"$f":"IF('1. Order'!AS578=\"\",\"\",'1. Order'!AS578)","v":""},{"$f":"IF('1. Order'!AT578=\"\",\"\",'1. Order'!AT578)","v":""},null,null,null,null,null,null,null,{"$f":"IF('1. Order'!AX578=\"\",\"\",'1. Order'!AX578)","v":""},{"$f":"IF('1. Order'!AY578=\"\",\"\",'1. Order'!AY578)","v":""},{"$f":"IF('1. Order'!AZ578=\"\",\"\",'1. Order'!AZ578)","v":""},{"$f":"IF('1. Order'!BA578=\"\",\"\",'1. Order'!BA578)","v":""},{"$f":"IF('1. Order'!BC578=\"\",\"\",'1. Order'!BC578)","v":""},{"$f":"IF('1. Order'!BD578=\"\",\"\",'1. Order'!BD578)","v":6},{"$f":"IF('1. Order'!BE578=\"\",\"\",'1. Order'!BE578)","v":"None"},{"$f":"IF('1. Order'!BF578=\"\",\"\",'1. Order'!BF578)","v":"Parcel"},{"$f":"IF('1. Order'!BG578=\"\",\"\",'1. Order'!BG578)","v":"ZWO"}]
[{"$f":"IF('1. Order'!F579=\"\",\"\",'1. Order'!F579)","v":""},{"$f":"IF('1. Order'!G579=\"\",\"\",'1. Order'!G579)","v":""},{"$f":"IF('1. Order'!H579=\"\",\"\",'1. Order'!H579)","v":""},{"$f":"IF('1. Order'!I579=\"\",\"\",'1. Order'!I579)","v":""},{"$f":"IF('1. Order'!J579=\"\",\"\",'1. Order'!J579)","v":""},{"$f":"IF('1. Order'!K579=\"\",\"\",'1. Order'!K579)","v":""},{"$f":"IF('1. Order'!L579=\"\",\"\",'1. Order'!L579)","v":""},{"$f":"IF('1. Order'!M579=\"\",\"\",'1. Order'!M579)","v":""},{"$f":"IF('1. Order'!N579=\"\",\"\",'1. Order'!N579)","v":""},{"$f":"IF('1. Order'!O579=\"\",\"\",'1. Order'!O579)","v":{"$error":"#N/A"}},{"$f":"IF('1. Order'!P579=\"\",\"\",'1. Order'!P579)","v":{"$error":"#N/A"}},{"$f":"IF('1. Order'!Q579=\"\",\"\",'1. Order'!Q579)","v":""},{"$f":"IF('1. Order'!R579=\"\",\"\",'1. Order'!R579)","v":""},{"$f":"IF('1. Order'!S579=\"\",\"\",'1. Order'!S579)","v":""},{"$f":"IF('1. Order'!V579=\"\",\"\",'1. Order'!V579)","v":""},{"$f":"IF('1. Order'!W579=\"\",\"\",'1. Order'!W579)","v":""},{"$f":"IF('1. Order'!X579=\"\",\"\",'1. Order'!X579)","v":"EUR"},{"$f":"IF('1. Order'!Y579=\"\",\"\",'1. Order'!Y579)","v":""},{"$f":"IF('1. Order'!Z579=\"\",\"\",'1. Order'!Z579)","v":""},{"$f":"IF('1. Order'!AA579=\"\",\"\",'1. Order'!AA579)","v":""},null,{"$f":"IF('1. Order'!AS579=\"\",\"\",'1. Order'!AS579)","v":""},{"$f":"IF('1. Order'!AT579=\"\",\"\",'1. Order'!AT579)","v":""},null,null,null,null,null,null,null,{"$f":"IF('1. Order'!AX579=\"\",\"\",'1. Order'!AX579)","v":""},{"$f":"IF('1. Order'!AY579=\"\",\"\",'1. Order'!AY579)","v":""},{"$f":"IF('1. Order'!AZ579=\"\",\"\",'1. Order'!AZ579)","v":""},{"$f":"IF('1. Order'!BA579=\"\",\"\",'1. Order'!BA579)","v":""},{"$f":"IF('1. Order'!BC579=\"\",\"\",'1. Order'!BC579)","v":""},{"$f":"IF('1. Order'!BD579=\"\",\"\",'1. Order'!BD579)","v":6},{"$f":"IF('1. Order'!BE579=\"\",\"\",'1. Order'!BE579)","v":"None"},{"$f":"IF('1. Order'!BF579=\"\",\"\",'1. Order'!BF579)","v":"Parcel"},{"$f":"IF('1. Order'!BG579=\"\",\"\",'1. Order'!BG579)","v":"ZWO"}]
[{"$f":"IF('1. Order'!F580=\"\",\"\",'1. Order'!F580)","v":""},{"$f":"IF('1. Order'!G580=\"\",\"\",'1. Order'!G580)","v":""},{"$f":"IF('1. Order'!H580=\"\",\"\",'1. Order'!H580)","v":""},{"$f":"IF('1. Order'!I580=\"\",\"\",'1. Order'!I580)","v":""},{"$f":"IF('1. Order'!J580=\"\",\"\",'1. Order'!J580)","v":""},{"$f":"IF('1. Order'!K580=\"\",\"\",'1. Order'!K580)","v":""},{"$f":"IF('1. Order'!L580=\"\",\"\",'1. Order'!L580)","v":""},{"$f":"IF('1. Order'!M580=\"\",\"\",'1. Order'!M580)","v":""},{"$f":"IF('1. Order'!N580=\"\",\"\",'1. Order'!N580)","v":""},{"$f":"IF('1. Order'!O580=\"\",\"\",'1. Order'!O580)","v":{"$error":"#N/A"}},{"$f":"IF('1. Order'!P580=\"\",\"\",'1. Order'!P580)","v":{"$error":"#N/A"}},{"$f":"IF('1. Order'!Q580=\"\",\"\",'1. Order'!Q580)","v":""},{"$f":"IF('1. Order'!R580=\"\",\"\",'1. Order'!R580)","v":""},{"$f":"IF('1. Order'!S580=\"\",\"\",'1. Order'!S580)","v":""},{"$f":"IF('1. Order'!V580=\"\",\"\",'1. Order'!V580)","v":""},{"$f":"IF('1. Order'!W580=\"\",\"\",'1. Order'!W580)","v":""},{"$f":"IF('1. Order'!X580=\"\",\"\",'1. Order'!X580)","v":"EUR"},{"$f":"IF('1. Order'!Y580=\"\",\"\",'1. Order'!Y580)","v":""},{"$f":"IF('1. Order'!Z580=\"\",\"\",'1. Order'!Z580)","v":""},{"$f":"IF('1. Order'!AA580=\"\",\"\",'1. Order'!AA580)","v":""},null,{"$f":"IF('1. Order'!AS580=\"\",\"\",'1. Order'!AS580)","v":""},{"$f":"IF('1. Order'!AT580=\"\",\"\",'1. Order'!AT580)","v":""},null,null,null,null,null,null,null,{"$f":"IF('1. Order'!AX580=\"\",\"\",'1. Order'!AX580)","v":""},{"$f":"IF('1. Order'!AY580=\"\",\"\",'1. Order'!AY580)","v":""},{"$f":"IF('1. Order'!AZ580=\"\",\"\",'1. Order'!AZ580)","v":""},{"$f":"IF('1. Order'!BA580=\"\",\"\",'1. Order'!BA580)","v":""},{"$f":"IF('1. Order'!BC580=\"\",\"\",'1. Order'!BC580)","v":""},{"$f":"IF('1. Order'!BD580=\"\",\"\",'1. Order'!BD580)","v":6},{"$f":"IF('1. Order'!BE580=\"\",\"\",'1. Order'!BE580)","v":"None"},{"$f":"IF('1. Order'!BF580=\"\",\"\",'1. Order'!BF580)","v":"Parcel"},{"$f":"IF('1. Order'!BG580=\"\",\"\",'1. Order'!BG580)","v":"ZWO"}]
[{"$f":"IF('1. Order'!F581=\"\",\"\",'1. Order'!F581)","v":""},{"$f":"IF('1. Order'!G581=\"\",\"\",'1. Order'!G581)","v":""},{"$f":"IF('1. Order'!H581=\"\",\"\",'1. Order'!H581)","v":""},{"$f":"IF('1. Order'!I581=\"\",\"\",'1. Order'!I581)","v":""},{"$f":"IF('1. Order'!J581=\"\",\"\",'1. Order'!J581)","v":""},{"$f":"IF('1. Order'!K581=\"\",\"\",'1. Order'!K581)","v":""},{"$f":"IF('1. Order'!L581=\"\",\"\",'1. Order'!L581)","v":""},{"$f":"IF('1. Order'!M581=\"\",\"\",'1. Order'!M581)","v":""},{"$f":"IF('1. Order'!N581=\"\",\"\",'1. Order'!N581)","v":""},{"$f":"IF('1. Order'!O581=\"\",\"\",'1. Order'!O581)","v":{"$error":"#N/A"}},{"$f":"IF('1. Order'!P581=\"\",\"\",'1. Order'!P581)","v":{"$error":"#N/A"}},{"$f":"IF('1. Order'!Q581=\"\",\"\",'1. Order'!Q581)","v":""},{"$f":"IF('1. Order'!R581=\"\",\"\",'1. Order'!R581)","v":""},{"$f":"IF('1. Order'!S581=\"\",\"\",'1. Order'!S581)","v":""},{"$f":"IF('1. Order'!V581=\"\",\"\",'1. Order'!V581)","v":""},{"$f":"IF('1. Order'!W581=\"\",\"\",'1. Order'!W581)","v":""},{"$f":"IF('1. Order'!X581=\"\",\"\",'1. Order'!X581)","v":"EUR"},{"$f":"IF('1. Order'!Y581=\"\",\"\",'1. Order'!Y581)","v":""},{"$f":"IF('1. Order'!Z581=\"\",\"\",'1. Order'!Z581)","v":""},{"$f":"IF('1. Order'!AA581=\"\",\"\",'1. Order'!AA581)","v":""},null,{"$f":"IF('1. Order'!AS581=\"\",\"\",'1. Order'!AS581)","v":""},{"$f":"IF('1. Order'!AT581=\"\",\"\",'1. Order'!AT581)","v":""},null,null,null,null,null,null,null,{"$f":"IF('1. Order'!AX581=\"\",\"\",'1. Order'!AX581)","v":""},{"$f":"IF('1. Order'!AY581=\"\",\"\",'1. Order'!AY581)","v":""},{"$f":"IF('1. Order'!AZ581=\"\",\"\",'1. Order'!AZ581)","v":""},{"$f":"IF('1. Order'!BA581=\"\",\"\",'1. Order'!BA581)","v":""},{"$f":"IF('1. Order'!BC581=\"\",\"\",'1. Order'!BC581)","v":""},{"$f":"IF('1. Order'!BD581=\"\",\"\",'1. Order'!BD581)","v":6},{"$f":"IF('1. Order'!BE581=\"\",\"\",'1. Order'!BE581)","v":"None"},{"$f":"IF('1. Order'!BF581=\"\",\"\",'1. Order'!BF581)","v":"Parcel"},{"$f":"IF('1. Order'!BG581=\"\",\"\",'1. Order'!BG581)","v":"ZWO"}]
[{"$f":"IF('1. Order'!F582=\"\",\"\",'1. Order'!F582)","v":""},{"$f":"IF('1. Order'!G582=\"\",\"\",'1. Order'!G582)","v":""},{"$f":"IF('1. Order'!H582=\"\",\"\",'1. Order'!H582)","v":""},{"$f":"IF('1. Order'!I582=\"\",\"\",'1. Order'!I582)","v":""},{"$f":"IF('1. Order'!J582=\"\",\"\",'1. Order'!J582)","v":""},{"$f":"IF('1. Order'!K582=\"\",\"\",'1. Order'!K582)","v":""},{"$f":"IF('1. Order'!L582=\"\",\"\",'1. Order'!L582)","v":""},{"$f":"IF('1. Order'!M582=\"\",\"\",'1. Order'!M582)","v":""},{"$f":"IF('1. Order'!N582=\"\",\"\",'1. Order'!N582)","v":""},{"$f":"IF('1. Order'!O582=\"\",\"\",'1. Order'!O582)","v":{"$error":"#N/A"}},{"$f":"IF('1. Order'!P582=\"\",\"\",'1. Order'!P582)","v":{"$error":"#N/A"}},{"$f":"IF('1. Order'!Q582=\"\",\"\",'1. Order'!Q582)","v":""},{"$f":"IF('1. Order'!R582=\"\",\"\",'1. Order'!R582)","v":""},{"$f":"IF('1. Order'!S582=\"\",\"\",'1. Order'!S582)","v":""},{"$f":"IF('1. Order'!V582=\"\",\"\",'1. Order'!V582)","v":""},{"$f":"IF('1. Order'!W582=\"\",\"\",'1. Order'!W582)","v":""},{"$f":"IF('1. Order'!X582=\"\",\"\",'1. Order'!X582)","v":"EUR"},{"$f":"IF('1. Order'!Y582=\"\",\"\",'1. Order'!Y582)","v":""},{"$f":"IF('1. Order'!Z582=\"\",\"\",'1. Order'!Z582)","v":""},{"$f":"IF('1. Order'!AA582=\"\",\"\",'1. Order'!AA582)","v":""},null,{"$f":"IF('1. Order'!AS582=\"\",\"\",'1. Order'!AS582)","v":""},{"$f":"IF('1. Order'!AT582=\"\",\"\",'1. Order'!AT582)","v":""},null,null,null,null,null,null,null,{"$f":"IF('1. Order'!AX582=\"\",\"\",'1. Order'!AX582)","v":""},{"$f":"IF('1. Order'!AY582=\"\",\"\",'1. Order'!AY582)","v":""},{"$f":"IF('1. Order'!AZ582=\"\",\"\",'1. Order'!AZ582)","v":""},{"$f":"IF('1. Order'!BA582=\"\",\"\",'1. Order'!BA582)","v":""},{"$f":"IF('1. Order'!BC582=\"\",\"\",'1. Order'!BC582)","v":""},{"$f":"IF('1. Order'!BD582=\"\",\"\",'1. Order'!BD582)","v":6},{"$f":"IF('1. Order'!BE582=\"\",\"\",'1. Order'!BE582)","v":"None"},{"$f":"IF('1. Order'!BF582=\"\",\"\",'1. Order'!BF582)","v":"Parcel"},{"$f":"IF('1. Order'!BG582=\"\",\"\",'1. Order'!BG582)","v":"ZWO"}]
[{"$f":"IF('1. Order'!F583=\"\",\"\",'1. Order'!F583)","v":""},{"$f":"IF('1. Order'!G583=\"\",\"\",'1. Order'!G583)","v":""},{"$f":"IF('1. Order'!H583=\"\",\"\",'1. Order'!H583)","v":""},{"$f":"IF('1. Order'!I583=\"\",\"\",'1. Order'!I583)","v":""},{"$f":"IF('1. Order'!J583=\"\",\"\",'1. Order'!J583)","v":""},{"$f":"IF('1. Order'!K583=\"\",\"\",'1. Order'!K583)","v":""},{"$f":"IF('1. Order'!L583=\"\",\"\",'1. Order'!L583)","v":""},{"$f":"IF('1. Order'!M583=\"\",\"\",'1. Order'!M583)","v":""},{"$f":"IF('1. Order'!N583=\"\",\"\",'1. Order'!N583)","v":""},{"$f":"IF('1. Order'!O583=\"\",\"\",'1. Order'!O583)","v":{"$error":"#N/A"}},{"$f":"IF('1. Order'!P583=\"\",\"\",'1. Order'!P583)","v":{"$error":"#N/A"}},{"$f":"IF('1. Order'!Q583=\"\",\"\",'1. Order'!Q583)","v":""},{"$f":"IF('1. Order'!R583=\"\",\"\",'1. Order'!R583)","v":""},{"$f":"IF('1. Order'!S583=\"\",\"\",'1. Order'!S583)","v":""},{"$f":"IF('1. Order'!V583=\"\",\"\",'1. Order'!V583)","v":""},{"$f":"IF('1. Order'!W583=\"\",\"\",'1. Order'!W583)","v":""},{"$f":"IF('1. Order'!X583=\"\",\"\",'1. Order'!X583)","v":"EUR"},{"$f":"IF('1. Order'!Y583=\"\",\"\",'1. Order'!Y583)","v":""},{"$f":"IF('1. Order'!Z583=\"\",\"\",'1. Order'!Z583)","v":""},{"$f":"IF('1. Order'!AA583=\"\",\"\",'1. Order'!AA583)","v":""},null,{"$f":"IF('1. Order'!AS583=\"\",\"\",'1. Order'!AS583)","v":""},{"$f":"IF('1. Order'!AT583=\"\",\"\",'1. Order'!AT583)","v":""},null,null,null,null,null,null,null,{"$f":"IF('1. Order'!AX583=\"\",\"\",'1. Order'!AX583)","v":""},{"$f":"IF('1. Order'!AY583=\"\",\"\",'1. Order'!AY583)","v":""},{"$f":"IF('1. Order'!AZ583=\"\",\"\",'1. Order'!AZ583)","v":""},{"$f":"IF('1. Order'!BA583=\"\",\"\",'1. Order'!BA583)","v":""},{"$f":"IF('1. Order'!BC583=\"\",\"\",'1. Order'!BC583)","v":""},{"$f":"IF('1. Order'!BD583=\"\",\"\",'1. Order'!BD583)","v":6},{"$f":"IF('1. Order'!BE583=\"\",\"\",'1. Order'!BE583)","v":"None"},{"$f":"IF('1. Order'!BF583=\"\",\"\",'1. Order'!BF583)","v":"Parcel"},{"$f":"IF('1. Order'!BG583=\"\",\"\",'1. Order'!BG583)","v":"ZWO"}]
[{"$f":"IF('1. Order'!F584=\"\",\"\",'1. Order'!F584)","v":""},{"$f":"IF('1. Order'!G584=\"\",\"\",'1. Order'!G584)","v":""},{"$f":"IF('1. Order'!H584=\"\",\"\",'1. Order'!H584)","v":""},{"$f":"IF('1. Order'!I584=\"\",\"\",'1. Order'!I584)","v":""},{"$f":"IF('1. Order'!J584=\"\",\"\",'1. Order'!J584)","v":""},{"$f":"IF('1. Order'!K584=\"\",\"\",'1. Order'!K584)","v":""},{"$f":"IF('1. Order'!L584=\"\",\"\",'1. Order'!L584)","v":""},{"$f":"IF('1. Order'!M584=\"\",\"\",'1. Order'!M584)","v":""},{"$f":"IF('1. Order'!N584=\"\",\"\",'1. Order'!N584)","v":""},{"$f":"IF('1. Order'!O584=\"\",\"\",'1. Order'!O584)","v":{"$error":"#N/A"}},{"$f":"IF('1. Order'!P584=\"\",\"\",'1. Order'!P584)","v":{"$error":"#N/A"}},{"$f":"IF('1. Order'!Q584=\"\",\"\",'1. Order'!Q584)","v":""},{"$f":"IF('1. Order'!R584=\"\",\"\",'1. Order'!R584)","v":""},{"$f":"IF('1. Order'!S584=\"\",\"\",'1. Order'!S584)","v":""},{"$f":"IF('1. Order'!V584=\"\",\"\",'1. Order'!V584)","v":""},{"$f":"IF('1. Order'!W584=\"\",\"\",'1. Order'!W584)","v":""},{"$f":"IF('1. Order'!X584=\"\",\"\",'1. Order'!X584)","v":"EUR"},{"$f":"IF('1. Order'!Y584=\"\",\"\",'1. Order'!Y584)","v":""},{"$f":"IF('1. Order'!Z584=\"\",\"\",'1. Order'!Z584)","v":""},{"$f":"IF('1. Order'!AA584=\"\",\"\",'1. Order'!AA584)","v":""},null,{"$f":"IF('1. Order'!AS584=\"\",\"\",'1. Order'!AS584)","v":""},{"$f":"IF('1. Order'!AT584=\"\",\"\",'1. Order'!AT584)","v":""},null,null,null,null,null,null,null,{"$f":"IF('1. Order'!AX584=\"\",\"\",'1. Order'!AX584)","v":""},{"$f":"IF('1. Order'!AY584=\"\",\"\",'1. Order'!AY584)","v":""},{"$f":"IF('1. Order'!AZ584=\"\",\"\",'1. Order'!AZ584)","v":""},{"$f":"IF('1. Order'!BA584=\"\",\"\",'1. Order'!BA584)","v":""},{"$f":"IF('1. Order'!BC584=\"\",\"\",'1. Order'!BC584)","v":""},{"$f":"IF('1. Order'!BD584=\"\",\"\",'1. Order'!BD584)","v":6},{"$f":"IF('1. Order'!BE584=\"\",\"\",'1. Order'!BE584)","v":"None"},{"$f":"IF('1. Order'!BF584=\"\",\"\",'1. Order'!BF584)","v":"Parcel"},{"$f":"IF('1. Order'!BG584=\"\",\"\",'1. Order'!BG584)","v":"ZWO"}]
[{"$f":"IF('1. Order'!F585=\"\",\"\",'1. Order'!F585)","v":""},{"$f":"IF('1. Order'!G585=\"\",\"\",'1. Order'!G585)","v":""},{"$f":"IF('1. Order'!H585=\"\",\"\",'1. Order'!H585)","v":""},{"$f":"IF('1. Order'!I585=\"\",\"\",'1. Order'!I585)","v":""},{"$f":"IF('1. Order'!J585=\"\",\"\",'1. Order'!J585)","v":""},{"$f":"IF('1. Order'!K585=\"\",\"\",'1. Order'!K585)","v":""},{"$f":"IF('1. Order'!L585=\"\",\"\",'1. Order'!L585)","v":""},{"$f":"IF('1. Order'!M585=\"\",\"\",'1. Order'!M585)","v":""},{"$f":"IF('1. Order'!N585=\"\",\"\",'1. Order'!N585)","v":""},{"$f":"IF('1. Order'!O585=\"\",\"\",'1. Order'!O585)","v":{"$error":"#N/A"}},{"$f":"IF('1. Order'!P585=\"\",\"\",'1. Order'!P585)","v":{"$error":"#N/A"}},{"$f":"IF('1. Order'!Q585=\"\",\"\",'1. Order'!Q585)","v":""},{"$f":"IF('1. Order'!R585=\"\",\"\",'1. Order'!R585)","v":""},{"$f":"IF('1. Order'!S585=\"\",\"\",'1. Order'!S585)","v":""},{"$f":"IF('1. Order'!V585=\"\",\"\",'1. Order'!V585)","v":""},{"$f":"IF('1. Order'!W585=\"\",\"\",'1. Order'!W585)","v":""},{"$f":"IF('1. Order'!X585=\"\",\"\",'1. Order'!X585)","v":"EUR"},{"$f":"IF('1. Order'!Y585=\"\",\"\",'1. Order'!Y585)","v":""},{"$f":"IF('1. Order'!Z585=\"\",\"\",'1. Order'!Z585)","v":""},{"$f":"IF('1. Order'!AA585=\"\",\"\",'1. Order'!AA585)","v":""},null,{"$f":"IF('1. Order'!AS585=\"\",\"\",'1. Order'!AS585)","v":""},{"$f":"IF('1. Order'!AT585=\"\",\"\",'1. Order'!AT585)","v":""},null,null,null,null,null,null,null,{"$f":"IF('1. Order'!AX585=\"\",\"\",'1. Order'!AX585)","v":""},{"$f":"IF('1. Order'!AY585=\"\",\"\",'1. Order'!AY585)","v":""},{"$f":"IF('1. Order'!AZ585=\"\",\"\",'1. Order'!AZ585)","v":""},{"$f":"IF('1. Order'!BA585=\"\",\"\",'1. Order'!BA585)","v":""},{"$f":"IF('1. Order'!BC585=\"\",\"\",'1. Order'!BC585)","v":""},{"$f":"IF('1. Order'!BD585=\"\",\"\",'1. Order'!BD585)","v":6},{"$f":"IF('1. Order'!BE585=\"\",\"\",'1. Order'!BE585)","v":"None"},{"$f":"IF('1. Order'!BF585=\"\",\"\",'1. Order'!BF585)","v":"Parcel"},{"$f":"IF('1. Order'!BG585=\"\",\"\",'1. Order'!BG585)","v":"ZWO"}]
[{"$f":"IF('1. Order'!F586=\"\",\"\",'1. Order'!F586)","v":""},{"$f":"IF('1. Order'!G586=\"\",\"\",'1. Order'!G586)","v":""},{"$f":"IF('1. Order'!H586=\"\",\"\",'1. Order'!H586)","v":""},{"$f":"IF('1. Order'!I586=\"\",\"\",'1. Order'!I586)","v":""},{"$f":"IF('1. Order'!J586=\"\",\"\",'1. Order'!J586)","v":""},{"$f":"IF('1. Order'!K586=\"\",\"\",'1. Order'!K586)","v":""},{"$f":"IF('1. Order'!L586=\"\",\"\",'1. Order'!L586)","v":""},{"$f":"IF('1. Order'!M586=\"\",\"\",'1. Order'!M586)","v":""},{"$f":"IF('1. Order'!N586=\"\",\"\",'1. Order'!N586)","v":""},{"$f":"IF('1. Order'!O586=\"\",\"\",'1. Order'!O586)","v":{"$error":"#N/A"}},{"$f":"IF('1. Order'!P586=\"\",\"\",'1. Order'!P586)","v":{"$error":"#N/A"}},{"$f":"IF('1. Order'!Q586=\"\",\"\",'1. Order'!Q586)","v":""},{"$f":"IF('1. Order'!R586=\"\",\"\",'1. Order'!R586)","v":""},{"$f":"IF('1. Order'!S586=\"\",\"\",'1. Order'!S586)","v":""},{"$f":"IF('1. Order'!V586=\"\",\"\",'1. Order'!V586)","v":""},{"$f":"IF('1. Order'!W586=\"\",\"\",'1. Order'!W586)","v":""},{"$f":"IF('1. Order'!X586=\"\",\"\",'1. Order'!X586)","v":"EUR"},{"$f":"IF('1. Order'!Y586=\"\",\"\",'1. Order'!Y586)","v":""},{"$f":"IF('1. Order'!Z586=\"\",\"\",'1. Order'!Z586)","v":""},{"$f":"IF('1. Order'!AA586=\"\",\"\",'1. Order'!AA586)","v":""},null,{"$f":"IF('1. Order'!AS586=\"\",\"\",'1. Order'!AS586)","v":""},{"$f":"IF('1. Order'!AT586=\"\",\"\",'1. Order'!AT586)","v":""},null,null,null,null,null,null,null,{"$f":"IF('1. Order'!AX586=\"\",\"\",'1. Order'!AX586)","v":""},{"$f":"IF('1. Order'!AY586=\"\",\"\",'1. Order'!AY586)","v":""},{"$f":"IF('1. Order'!AZ586=\"\",\"\",'1. Order'!AZ586)","v":""},{"$f":"IF('1. Order'!BA586=\"\",\"\",'1. Order'!BA586)","v":""},{"$f":"IF('1. Order'!BC586=\"\",\"\",'1. Order'!BC586)","v":""},{"$f":"IF('1. Order'!BD586=\"\",\"\",'1. Order'!BD586)","v":6},{"$f":"IF('1. Order'!BE586=\"\",\"\",'1. Order'!BE586)","v":"None"},{"$f":"IF('1. Order'!BF586=\"\",\"\",'1. Order'!BF586)","v":"Parcel"},{"$f":"IF('1. Order'!BG586=\"\",\"\",'1. Order'!BG586)","v":"ZWO"}]
[{"$f":"IF('1. Order'!F587=\"\",\"\",'1. Order'!F587)","v":""},{"$f":"IF('1. Order'!G587=\"\",\"\",'1. Order'!G587)","v":""},{"$f":"IF('1. Order'!H587=\"\",\"\",'1. Order'!H587)","v":""},{"$f":"IF('1. Order'!I587=\"\",\"\",'1. Order'!I587)","v":""},{"$f":"IF('1. Order'!J587=\"\",\"\",'1. Order'!J587)","v":""},{"$f":"IF('1. Order'!K587=\"\",\"\",'1. Order'!K587)","v":""},{"$f":"IF('1. Order'!L587=\"\",\"\",'1. Order'!L587)","v":""},{"$f":"IF('1. Order'!M587=\"\",\"\",'1. Order'!M587)","v":""},{"$f":"IF('1. Order'!N587=\"\",\"\",'1. Order'!N587)","v":""},{"$f":"IF('1. Order'!O587=\"\",\"\",'1. Order'!O587)","v":{"$error":"#N/A"}},{"$f":"IF('1. Order'!P587=\"\",\"\",'1. Order'!P587)","v":{"$error":"#N/A"}},{"$f":"IF('1. Order'!Q587=\"\",\"\",'1. Order'!Q587)","v":""},{"$f":"IF('1. Order'!R587=\"\",\"\",'1. Order'!R587)","v":""},{"$f":"IF('1. Order'!S587=\"\",\"\",'1. Order'!S587)","v":""},{"$f":"IF('1. Order'!V587=\"\",\"\",'1. Order'!V587)","v":""},{"$f":"IF('1. Order'!W587=\"\",\"\",'1. Order'!W587)","v":""},{"$f":"IF('1. Order'!X587=\"\",\"\",'1. Order'!X587)","v":"EUR"},{"$f":"IF('1. Order'!Y587=\"\",\"\",'1. Order'!Y587)","v":""},{"$f":"IF('1. Order'!Z587=\"\",\"\",'1. Order'!Z587)","v":""},{"$f":"IF('1. Order'!AA587=\"\",\"\",'1. Order'!AA587)","v":""},null,{"$f":"IF('1. Order'!AS587=\"\",\"\",'1. Order'!AS587)","v":""},{"$f":"IF('1. Order'!AT587=\"\",\"\",'1. Order'!AT587)","v":""},null,null,null,null,null,null,null,{"$f":"IF('1. Order'!AX587=\"\",\"\",'1. Order'!AX587)","v":""},{"$f":"IF('1. Order'!AY587=\"\",\"\",'1. Order'!AY587)","v":""},{"$f":"IF('1. Order'!AZ587=\"\",\"\",'1. Order'!AZ587)","v":""},{"$f":"IF('1. Order'!BA587=\"\",\"\",'1. Order'!BA587)","v":""},{"$f":"IF('1. Order'!BC587=\"\",\"\",'1. Order'!BC587)","v":""},{"$f":"IF('1. Order'!BD587=\"\",\"\",'1. Order'!BD587)","v":6},{"$f":"IF('1. Order'!BE587=\"\",\"\",'1. Order'!BE587)","v":"None"},{"$f":"IF('1. Order'!BF587=\"\",\"\",'1. Order'!BF587)","v":"Parcel"},{"$f":"IF('1. Order'!BG587=\"\",\"\",'1. Order'!BG587)","v":"ZWO"}]
[{"$f":"IF('1. Order'!F588=\"\",\"\",'1. Order'!F588)","v":""},{"$f":"IF('1. Order'!G588=\"\",\"\",'1. Order'!G588)","v":""},{"$f":"IF('1. Order'!H588=\"\",\"\",'1. Order'!H588)","v":""},{"$f":"IF('1. Order'!I588=\"\",\"\",'1. Order'!I588)","v":""},{"$f":"IF('1. Order'!J588=\"\",\"\",'1. Order'!J588)","v":""},{"$f":"IF('1. Order'!K588=\"\",\"\",'1. Order'!K588)","v":""},{"$f":"IF('1. Order'!L588=\"\",\"\",'1. Order'!L588)","v":""},{"$f":"IF('1. Order'!M588=\"\",\"\",'1. Order'!M588)","v":""},{"$f":"IF('1. Order'!N588=\"\",\"\",'1. Order'!N588)","v":""},{"$f":"IF('1. Order'!O588=\"\",\"\",'1. Order'!O588)","v":{"$error":"#N/A"}},{"$f":"IF('1. Order'!P588=\"\",\"\",'1. Order'!P588)","v":{"$error":"#N/A"}},{"$f":"IF('1. Order'!Q588=\"\",\"\",'1. Order'!Q588)","v":""},{"$f":"IF('1. Order'!R588=\"\",\"\",'1. Order'!R588)","v":""},{"$f":"IF('1. Order'!S588=\"\",\"\",'1. Order'!S588)","v":""},{"$f":"IF('1. Order'!V588=\"\",\"\",'1. Order'!V588)","v":""},{"$f":"IF('1. Order'!W588=\"\",\"\",'1. Order'!W588)","v":""},{"$f":"IF('1. Order'!X588=\"\",\"\",'1. Order'!X588)","v":"EUR"},{"$f":"IF('1. Order'!Y588=\"\",\"\",'1. Order'!Y588)","v":""},{"$f":"IF('1. Order'!Z588=\"\",\"\",'1. Order'!Z588)","v":""},{"$f":"IF('1. Order'!AA588=\"\",\"\",'1. Order'!AA588)","v":""},null,{"$f":"IF('1. Order'!AS588=\"\",\"\",'1. Order'!AS588)","v":""},{"$f":"IF('1. Order'!AT588=\"\",\"\",'1. Order'!AT588)","v":""},null,null,null,null,null,null,null,{"$f":"IF('1. Order'!AX588=\"\",\"\",'1. Order'!AX588)","v":""},{"$f":"IF('1. Order'!AY588=\"\",\"\",'1. Order'!AY588)","v":""},{"$f":"IF('1. Order'!AZ588=\"\",\"\",'1. Order'!AZ588)","v":""},{"$f":"IF('1. Order'!BA588=\"\",\"\",'1. Order'!BA588)","v":""},{"$f":"IF('1. Order'!BC588=\"\",\"\",'1. Order'!BC588)","v":""},{"$f":"IF('1. Order'!BD588=\"\",\"\",'1. Order'!BD588)","v":6},{"$f":"IF('1. Order'!BE588=\"\",\"\",'1. Order'!BE588)","v":"None"},{"$f":"IF('1. Order'!BF588=\"\",\"\",'1. Order'!BF588)","v":"Parcel"},{"$f":"IF('1. Order'!BG588=\"\",\"\",'1. Order'!BG588)","v":"ZWO"}]
[{"$f":"IF('1. Order'!F589=\"\",\"\",'1. Order'!F589)","v":""},{"$f":"IF('1. Order'!G589=\"\",\"\",'1. Order'!G589)","v":""},{"$f":"IF('1. Order'!H589=\"\",\"\",'1. Order'!H589)","v":""},{"$f":"IF('1. Order'!I589=\"\",\"\",'1. Order'!I589)","v":""},{"$f":"IF('1. Order'!J589=\"\",\"\",'1. Order'!J589)","v":""},{"$f":"IF('1. Order'!K589=\"\",\"\",'1. Order'!K589)","v":""},{"$f":"IF('1. Order'!L589=\"\",\"\",'1. Order'!L589)","v":""},{"$f":"IF('1. Order'!M589=\"\",\"\",'1. Order'!M589)","v":""},{"$f":"IF('1. Order'!N589=\"\",\"\",'1. Order'!N589)","v":""},{"$f":"IF('1. Order'!O589=\"\",\"\",'1. Order'!O589)","v":{"$error":"#N/A"}},{"$f":"IF('1. Order'!P589=\"\",\"\",'1. Order'!P589)","v":{"$error":"#N/A"}},{"$f":"IF('1. Order'!Q589=\"\",\"\",'1. Order'!Q589)","v":""},{"$f":"IF('1. Order'!R589=\"\",\"\",'1. Order'!R589)","v":""},{"$f":"IF('1. Order'!S589=\"\",\"\",'1. Order'!S589)","v":""},{"$f":"IF('1. Order'!V589=\"\",\"\",'1. Order'!V589)","v":""},{"$f":"IF('1. Order'!W589=\"\",\"\",'1. Order'!W589)","v":""},{"$f":"IF('1. Order'!X589=\"\",\"\",'1. Order'!X589)","v":"EUR"},{"$f":"IF('1. Order'!Y589=\"\",\"\",'1. Order'!Y589)","v":""},{"$f":"IF('1. Order'!Z589=\"\",\"\",'1. Order'!Z589)","v":""},{"$f":"IF('1. Order'!AA589=\"\",\"\",'1. Order'!AA589)","v":""},null,{"$f":"IF('1. Order'!AS589=\"\",\"\",'1. Order'!AS589)","v":""},{"$f":"IF('1. Order'!AT589=\"\",\"\",'1. Order'!AT589)","v":""},null,null,null,null,null,null,null,{"$f":"IF('1. Order'!AX589=\"\",\"\",'1. Order'!AX589)","v":""},{"$f":"IF('1. Order'!AY589=\"\",\"\",'1. Order'!AY589)","v":""},{"$f":"IF('1. Order'!AZ589=\"\",\"\",'1. Order'!AZ589)","v":""},{"$f":"IF('1. Order'!BA589=\"\",\"\",'1. Order'!BA589)","v":""},{"$f":"IF('1. Order'!BC589=\"\",\"\",'1. Order'!BC589)","v":""},{"$f":"IF('1. Order'!BD589=\"\",\"\",'1. Order'!BD589)","v":6},{"$f":"IF('1. Order'!BE589=\"\",\"\",'1. Order'!BE589)","v":"None"},{"$f":"IF('1. Order'!BF589=\"\",\"\",'1. Order'!BF589)","v":"Parcel"},{"$f":"IF('1. Order'!BG589=\"\",\"\",'1. Order'!BG589)","v":"ZWO"}]
[{"$f":"IF('1. Order'!F590=\"\",\"\",'1. Order'!F590)","v":""},{"$f":"IF('1. Order'!G590=\"\",\"\",'1. Order'!G590)","v":""},{"$f":"IF('1. Order'!H590=\"\",\"\",'1. Order'!H590)","v":""},{"$f":"IF('1. Order'!I590=\"\",\"\",'1. Order'!I590)","v":""},{"$f":"IF('1. Order'!J590=\"\",\"\",'1. Order'!J590)","v":""},{"$f":"IF('1. Order'!K590=\"\",\"\",'1. Order'!K590)","v":""},{"$f":"IF('1. Order'!L590=\"\",\"\",'1. Order'!L590)","v":""},{"$f":"IF('1. Order'!M590=\"\",\"\",'1. Order'!M590)","v":""},{"$f":"IF('1. Order'!N590=\"\",\"\",'1. Order'!N590)","v":""},{"$f":"IF('1. Order'!O590=\"\",\"\",'1. Order'!O590)","v":{"$error":"#N/A"}},{"$f":"IF('1. Order'!P590=\"\",\"\",'1. Order'!P590)","v":{"$error":"#N/A"}},{"$f":"IF('1. Order'!Q590=\"\",\"\",'1. Order'!Q590)","v":""},{"$f":"IF('1. Order'!R590=\"\",\"\",'1. Order'!R590)","v":""},{"$f":"IF('1. Order'!S590=\"\",\"\",'1. Order'!S590)","v":""},{"$f":"IF('1. Order'!V590=\"\",\"\",'1. Order'!V590)","v":""},{"$f":"IF('1. Order'!W590=\"\",\"\",'1. Order'!W590)","v":""},{"$f":"IF('1. Order'!X590=\"\",\"\",'1. Order'!X590)","v":"EUR"},{"$f":"IF('1. Order'!Y590=\"\",\"\",'1. Order'!Y590)","v":""},{"$f":"IF('1. Order'!Z590=\"\",\"\",'1. Order'!Z590)","v":""},{"$f":"IF('1. Order'!AA590=\"\",\"\",'1. Order'!AA590)","v":""},null,{"$f":"IF('1. Order'!AS590=\"\",\"\",'1. Order'!AS590)","v":""},{"$f":"IF('1. Order'!AT590=\"\",\"\",'1. Order'!AT590)","v":""},null,null,null,null,null,null,null,{"$f":"IF('1. Order'!AX590=\"\",\"\",'1. Order'!AX590)","v":""},{"$f":"IF('1. Order'!AY590=\"\",\"\",'1. Order'!AY590)","v":""},{"$f":"IF('1. Order'!AZ590=\"\",\"\",'1. Order'!AZ590)","v":""},{"$f":"IF('1. Order'!BA590=\"\",\"\",'1. Order'!BA590)","v":""},{"$f":"IF('1. Order'!BC590=\"\",\"\",'1. Order'!BC590)","v":""},{"$f":"IF('1. Order'!BD590=\"\",\"\",'1. Order'!BD590)","v":6},{"$f":"IF('1. Order'!BE590=\"\",\"\",'1. Order'!BE590)","v":"None"},{"$f":"IF('1. Order'!BF590=\"\",\"\",'1. Order'!BF590)","v":"Parcel"},{"$f":"IF('1. Order'!BG590=\"\",\"\",'1. Order'!BG590)","v":"ZWO"}]
[{"$f":"IF('1. Order'!F591=\"\",\"\",'1. Order'!F591)","v":""},{"$f":"IF('1. Order'!G591=\"\",\"\",'1. Order'!G591)","v":""},{"$f":"IF('1. Order'!H591=\"\",\"\",'1. Order'!H591)","v":""},{"$f":"IF('1. Order'!I591=\"\",\"\",'1. Order'!I591)","v":""},{"$f":"IF('1. Order'!J591=\"\",\"\",'1. Order'!J591)","v":""},{"$f":"IF('1. Order'!K591=\"\",\"\",'1. Order'!K591)","v":""},{"$f":"IF('1. Order'!L591=\"\",\"\",'1. Order'!L591)","v":""},{"$f":"IF('1. Order'!M591=\"\",\"\",'1. Order'!M591)","v":""},{"$f":"IF('1. Order'!N591=\"\",\"\",'1. Order'!N591)","v":""},{"$f":"IF('1. Order'!O591=\"\",\"\",'1. Order'!O591)","v":{"$error":"#N/A"}},{"$f":"IF('1. Order'!P591=\"\",\"\",'1. Order'!P591)","v":{"$error":"#N/A"}},{"$f":"IF('1. Order'!Q591=\"\",\"\",'1. Order'!Q591)","v":""},{"$f":"IF('1. Order'!R591=\"\",\"\",'1. Order'!R591)","v":""},{"$f":"IF('1. Order'!S591=\"\",\"\",'1. Order'!S591)","v":""},{"$f":"IF('1. Order'!V591=\"\",\"\",'1. Order'!V591)","v":""},{"$f":"IF('1. Order'!W591=\"\",\"\",'1. Order'!W591)","v":""},{"$f":"IF('1. Order'!X591=\"\",\"\",'1. Order'!X591)","v":"EUR"},{"$f":"IF('1. Order'!Y591=\"\",\"\",'1. Order'!Y591)","v":""},{"$f":"IF('1. Order'!Z591=\"\",\"\",'1. Order'!Z591)","v":""},{"$f":"IF('1. Order'!AA591=\"\",\"\",'1. Order'!AA591)","v":""},null,{"$f":"IF('1. Order'!AS591=\"\",\"\",'1. Order'!AS591)","v":""},{"$f":"IF('1. Order'!AT591=\"\",\"\",'1. Order'!AT591)","v":""},null,null,null,null,null,null,null,{"$f":"IF('1. Order'!AX591=\"\",\"\",'1. Order'!AX591)","v":""},{"$f":"IF('1. Order'!AY591=\"\",\"\",'1. Order'!AY591)","v":""},{"$f":"IF('1. Order'!AZ591=\"\",\"\",'1. Order'!AZ591)","v":""},{"$f":"IF('1. Order'!BA591=\"\",\"\",'1. Order'!BA591)","v":""},{"$f":"IF('1. Order'!BC591=\"\",\"\",'1. Order'!BC591)","v":""},{"$f":"IF('1. Order'!BD591=\"\",\"\",'1. Order'!BD591)","v":6},{"$f":"IF('1. Order'!BE591=\"\",\"\",'1. Order'!BE591)","v":"None"},{"$f":"IF('1. Order'!BF591=\"\",\"\",'1. Order'!BF591)","v":"Parcel"},{"$f":"IF('1. Order'!BG591=\"\",\"\",'1. Order'!BG591)","v":"ZWO"}]
[{"$f":"IF('1. Order'!F592=\"\",\"\",'1. Order'!F592)","v":""},{"$f":"IF('1. Order'!G592=\"\",\"\",'1. Order'!G592)","v":""},{"$f":"IF('1. Order'!H592=\"\",\"\",'1. Order'!H592)","v":""},{"$f":"IF('1. Order'!I592=\"\",\"\",'1. Order'!I592)","v":""},{"$f":"IF('1. Order'!J592=\"\",\"\",'1. Order'!J592)","v":""},{"$f":"IF('1. Order'!K592=\"\",\"\",'1. Order'!K592)","v":""},{"$f":"IF('1. Order'!L592=\"\",\"\",'1. Order'!L592)","v":""},{"$f":"IF('1. Order'!M592=\"\",\"\",'1. Order'!M592)","v":""},{"$f":"IF('1. Order'!N592=\"\",\"\",'1. Order'!N592)","v":""},{"$f":"IF('1. Order'!O592=\"\",\"\",'1. Order'!O592)","v":{"$error":"#N/A"}},{"$f":"IF('1. Order'!P592=\"\",\"\",'1. Order'!P592)","v":{"$error":"#N/A"}},{"$f":"IF('1. Order'!Q592=\"\",\"\",'1. Order'!Q592)","v":""},{"$f":"IF('1. Order'!R592=\"\",\"\",'1. Order'!R592)","v":""},{"$f":"IF('1. Order'!S592=\"\",\"\",'1. Order'!S592)","v":""},{"$f":"IF('1. Order'!V592=\"\",\"\",'1. Order'!V592)","v":""},{"$f":"IF('1. Order'!W592=\"\",\"\",'1. Order'!W592)","v":""},{"$f":"IF('1. Order'!X592=\"\",\"\",'1. Order'!X592)","v":"EUR"},{"$f":"IF('1. Order'!Y592=\"\",\"\",'1. Order'!Y592)","v":""},{"$f":"IF('1. Order'!Z592=\"\",\"\",'1. Order'!Z592)","v":""},{"$f":"IF('1. Order'!AA592=\"\",\"\",'1. Order'!AA592)","v":""},null,{"$f":"IF('1. Order'!AS592=\"\",\"\",'1. Order'!AS592)","v":""},{"$f":"IF('1. Order'!AT592=\"\",\"\",'1. Order'!AT592)","v":""},null,null,null,null,null,null,null,{"$f":"IF('1. Order'!AX592=\"\",\"\",'1. Order'!AX592)","v":""},{"$f":"IF('1. Order'!AY592=\"\",\"\",'1. Order'!AY592)","v":""},{"$f":"IF('1. Order'!AZ592=\"\",\"\",'1. Order'!AZ592)","v":""},{"$f":"IF('1. Order'!BA592=\"\",\"\",'1. Order'!BA592)","v":""},{"$f":"IF('1. Order'!BC592=\"\",\"\",'1. Order'!BC592)","v":""},{"$f":"IF('1. Order'!BD592=\"\",\"\",'1. Order'!BD592)","v":6},{"$f":"IF('1. Order'!BE592=\"\",\"\",'1. Order'!BE592)","v":"None"},{"$f":"IF('1. Order'!BF592=\"\",\"\",'1. Order'!BF592)","v":"Parcel"},{"$f":"IF('1. Order'!BG592=\"\",\"\",'1. Order'!BG592)","v":"ZWO"}]
[{"$f":"IF('1. Order'!F593=\"\",\"\",'1. Order'!F593)","v":""},{"$f":"IF('1. Order'!G593=\"\",\"\",'1. Order'!G593)","v":""},{"$f":"IF('1. Order'!H593=\"\",\"\",'1. Order'!H593)","v":""},{"$f":"IF('1. Order'!I593=\"\",\"\",'1. Order'!I593)","v":""},{"$f":"IF('1. Order'!J593=\"\",\"\",'1. Order'!J593)","v":""},{"$f":"IF('1. Order'!K593=\"\",\"\",'1. Order'!K593)","v":""},{"$f":"IF('1. Order'!L593=\"\",\"\",'1. Order'!L593)","v":""},{"$f":"IF('1. Order'!M593=\"\",\"\",'1. Order'!M593)","v":""},{"$f":"IF('1. Order'!N593=\"\",\"\",'1. Order'!N593)","v":""},{"$f":"IF('1. Order'!O593=\"\",\"\",'1. Order'!O593)","v":{"$error":"#N/A"}},{"$f":"IF('1. Order'!P593=\"\",\"\",'1. Order'!P593)","v":{"$error":"#N/A"}},{"$f":"IF('1. Order'!Q593=\"\",\"\",'1. Order'!Q593)","v":""},{"$f":"IF('1. Order'!R593=\"\",\"\",'1. Order'!R593)","v":""},{"$f":"IF('1. Order'!S593=\"\",\"\",'1. Order'!S593)","v":""},{"$f":"IF('1. Order'!V593=\"\",\"\",'1. Order'!V593)","v":""},{"$f":"IF('1. Order'!W593=\"\",\"\",'1. Order'!W593)","v":""},{"$f":"IF('1. Order'!X593=\"\",\"\",'1. Order'!X593)","v":"EUR"},{"$f":"IF('1. Order'!Y593=\"\",\"\",'1. Order'!Y593)","v":""},{"$f":"IF('1. Order'!Z593=\"\",\"\",'1. Order'!Z593)","v":""},{"$f":"IF('1. Order'!AA593=\"\",\"\",'1. Order'!AA593)","v":""},null,{"$f":"IF('1. Order'!AS593=\"\",\"\",'1. Order'!AS593)","v":""},{"$f":"IF('1. Order'!AT593=\"\",\"\",'1. Order'!AT593)","v":""},null,null,null,null,null,null,null,{"$f":"IF('1. Order'!AX593=\"\",\"\",'1. Order'!AX593)","v":""},{"$f":"IF('1. Order'!AY593=\"\",\"\",'1. Order'!AY593)","v":""},{"$f":"IF('1. Order'!AZ593=\"\",\"\",'1. Order'!AZ593)","v":""},{"$f":"IF('1. Order'!BA593=\"\",\"\",'1. Order'!BA593)","v":""},{"$f":"IF('1. Order'!BC593=\"\",\"\",'1. Order'!BC593)","v":""},{"$f":"IF('1. Order'!BD593=\"\",\"\",'1. Order'!BD593)","v":6},{"$f":"IF('1. Order'!BE593=\"\",\"\",'1. Order'!BE593)","v":"None"},{"$f":"IF('1. Order'!BF593=\"\",\"\",'1. Order'!BF593)","v":"Parcel"},{"$f":"IF('1. Order'!BG593=\"\",\"\",'1. Order'!BG593)","v":"ZWO"}]
[{"$f":"IF('1. Order'!F594=\"\",\"\",'1. Order'!F594)","v":""},{"$f":"IF('1. Order'!G594=\"\",\"\",'1. Order'!G594)","v":""},{"$f":"IF('1. Order'!H594=\"\",\"\",'1. Order'!H594)","v":""},{"$f":"IF('1. Order'!I594=\"\",\"\",'1. Order'!I594)","v":""},{"$f":"IF('1. Order'!J594=\"\",\"\",'1. Order'!J594)","v":""},{"$f":"IF('1. Order'!K594=\"\",\"\",'1. Order'!K594)","v":""},{"$f":"IF('1. Order'!L594=\"\",\"\",'1. Order'!L594)","v":""},{"$f":"IF('1. Order'!M594=\"\",\"\",'1. Order'!M594)","v":""},{"$f":"IF('1. Order'!N594=\"\",\"\",'1. Order'!N594)","v":""},{"$f":"IF('1. Order'!O594=\"\",\"\",'1. Order'!O594)","v":{"$error":"#N/A"}},{"$f":"IF('1. Order'!P594=\"\",\"\",'1. Order'!P594)","v":{"$error":"#N/A"}},{"$f":"IF('1. Order'!Q594=\"\",\"\",'1. Order'!Q594)","v":""},{"$f":"IF('1. Order'!R594=\"\",\"\",'1. Order'!R594)","v":""},{"$f":"IF('1. Order'!S594=\"\",\"\",'1. Order'!S594)","v":""},{"$f":"IF('1. Order'!V594=\"\",\"\",'1. Order'!V594)","v":""},{"$f":"IF('1. Order'!W594=\"\",\"\",'1. Order'!W594)","v":""},{"$f":"IF('1. Order'!X594=\"\",\"\",'1. Order'!X594)","v":"EUR"},{"$f":"IF('1. Order'!Y594=\"\",\"\",'1. Order'!Y594)","v":""},{"$f":"IF('1. Order'!Z594=\"\",\"\",'1. Order'!Z594)","v":""},{"$f":"IF('1. Order'!AA594=\"\",\"\",'1. Order'!AA594)","v":""},null,{"$f":"IF('1. Order'!AS594=\"\",\"\",'1. Order'!AS594)","v":""},{"$f":"IF('1. Order'!AT594=\"\",\"\",'1. Order'!AT594)","v":""},null,null,null,null,null,null,null,{"$f":"IF('1. Order'!AX594=\"\",\"\",'1. Order'!AX594)","v":""},{"$f":"IF('1. Order'!AY594=\"\",\"\",'1. Order'!AY594)","v":""},{"$f":"IF('1. Order'!AZ594=\"\",\"\",'1. Order'!AZ594)","v":""},{"$f":"IF('1. Order'!BA594=\"\",\"\",'1. Order'!BA594)","v":""},{"$f":"IF('1. Order'!BC594=\"\",\"\",'1. Order'!BC594)","v":""},{"$f":"IF('1. Order'!BD594=\"\",\"\",'1. Order'!BD594)","v":6},{"$f":"IF('1. Order'!BE594=\"\",\"\",'1. Order'!BE594)","v":"None"},{"$f":"IF('1. Order'!BF594=\"\",\"\",'1. Order'!BF594)","v":"Parcel"},{"$f":"IF('1. Order'!BG594=\"\",\"\",'1. Order'!BG594)","v":"ZWO"}]
[{"$f":"IF('1. Order'!F595=\"\",\"\",'1. Order'!F595)","v":""},{"$f":"IF('1. Order'!G595=\"\",\"\",'1. Order'!G595)","v":""},{"$f":"IF('1. Order'!H595=\"\",\"\",'1. Order'!H595)","v":""},{"$f":"IF('1. Order'!I595=\"\",\"\",'1. Order'!I595)","v":""},{"$f":"IF('1. Order'!J595=\"\",\"\",'1. Order'!J595)","v":""},{"$f":"IF('1. Order'!K595=\"\",\"\",'1. Order'!K595)","v":""},{"$f":"IF('1. Order'!L595=\"\",\"\",'1. Order'!L595)","v":""},{"$f":"IF('1. Order'!M595=\"\",\"\",'1. Order'!M595)","v":""},{"$f":"IF('1. Order'!N595=\"\",\"\",'1. Order'!N595)","v":""},{"$f":"IF('1. Order'!O595=\"\",\"\",'1. Order'!O595)","v":{"$error":"#N/A"}},{"$f":"IF('1. Order'!P595=\"\",\"\",'1. Order'!P595)","v":{"$error":"#N/A"}},{"$f":"IF('1. Order'!Q595=\"\",\"\",'1. Order'!Q595)","v":""},{"$f":"IF('1. Order'!R595=\"\",\"\",'1. Order'!R595)","v":""},{"$f":"IF('1. Order'!S595=\"\",\"\",'1. Order'!S595)","v":""},{"$f":"IF('1. Order'!V595=\"\",\"\",'1. Order'!V595)","v":""},{"$f":"IF('1. Order'!W595=\"\",\"\",'1. Order'!W595)","v":""},{"$f":"IF('1. Order'!X595=\"\",\"\",'1. Order'!X595)","v":"EUR"},{"$f":"IF('1. Order'!Y595=\"\",\"\",'1. Order'!Y595)","v":""},{"$f":"IF('1. Order'!Z595=\"\",\"\",'1. Order'!Z595)","v":""},{"$f":"IF('1. Order'!AA595=\"\",\"\",'1. Order'!AA595)","v":""},null,{"$f":"IF('1. Order'!AS595=\"\",\"\",'1. Order'!AS595)","v":""},{"$f":"IF('1. Order'!AT595=\"\",\"\",'1. Order'!AT595)","v":""},null,null,null,null,null,null,null,{"$f":"IF('1. Order'!AX595=\"\",\"\",'1. Order'!AX595)","v":""},{"$f":"IF('1. Order'!AY595=\"\",\"\",'1. Order'!AY595)","v":""},{"$f":"IF('1. Order'!AZ595=\"\",\"\",'1. Order'!AZ595)","v":""},{"$f":"IF('1. Order'!BA595=\"\",\"\",'1. Order'!BA595)","v":""},{"$f":"IF('1. Order'!BC595=\"\",\"\",'1. Order'!BC595)","v":""},{"$f":"IF('1. Order'!BD595=\"\",\"\",'1. Order'!BD595)","v":6},{"$f":"IF('1. Order'!BE595=\"\",\"\",'1. Order'!BE595)","v":"None"},{"$f":"IF('1. Order'!BF595=\"\",\"\",'1. Order'!BF595)","v":"Parcel"},{"$f":"IF('1. Order'!BG595=\"\",\"\",'1. Order'!BG595)","v":"ZWO"}]
[{"$f":"IF('1. Order'!F596=\"\",\"\",'1. Order'!F596)","v":""},{"$f":"IF('1. Order'!G596=\"\",\"\",'1. Order'!G596)","v":""},{"$f":"IF('1. Order'!H596=\"\",\"\",'1. Order'!H596)","v":""},{"$f":"IF('1. Order'!I596=\"\",\"\",'1. Order'!I596)","v":""},{"$f":"IF('1. Order'!J596=\"\",\"\",'1. Order'!J596)","v":""},{"$f":"IF('1. Order'!K596=\"\",\"\",'1. Order'!K596)","v":""},{"$f":"IF('1. Order'!L596=\"\",\"\",'1. Order'!L596)","v":""},{"$f":"IF('1. Order'!M596=\"\",\"\",'1. Order'!M596)","v":""},{"$f":"IF('1. Order'!N596=\"\",\"\",'1. Order'!N596)","v":""},{"$f":"IF('1. Order'!O596=\"\",\"\",'1. Order'!O596)","v":{"$error":"#N/A"}},{"$f":"IF('1. Order'!P596=\"\",\"\",'1. Order'!P596)","v":{"$error":"#N/A"}},{"$f":"IF('1. Order'!Q596=\"\",\"\",'1. Order'!Q596)","v":""},{"$f":"IF('1. Order'!R596=\"\",\"\",'1. Order'!R596)","v":""},{"$f":"IF('1. Order'!S596=\"\",\"\",'1. Order'!S596)","v":""},{"$f":"IF('1. Order'!V596=\"\",\"\",'1. Order'!V596)","v":""},{"$f":"IF('1. Order'!W596=\"\",\"\",'1. Order'!W596)","v":""},{"$f":"IF('1. Order'!X596=\"\",\"\",'1. Order'!X596)","v":"EUR"},{"$f":"IF('1. Order'!Y596=\"\",\"\",'1. Order'!Y596)","v":""},{"$f":"IF('1. Order'!Z596=\"\",\"\",'1. Order'!Z596)","v":""},{"$f":"IF('1. Order'!AA596=\"\",\"\",'1. Order'!AA596)","v":""},null,{"$f":"IF('1. Order'!AS596=\"\",\"\",'1. Order'!AS596)","v":""},{"$f":"IF('1. Order'!AT596=\"\",\"\",'1. Order'!AT596)","v":""},null,null,null,null,null,null,null,{"$f":"IF('1. Order'!AX596=\"\",\"\",'1. Order'!AX596)","v":""},{"$f":"IF('1. Order'!AY596=\"\",\"\",'1. Order'!AY596)","v":""},{"$f":"IF('1. Order'!AZ596=\"\",\"\",'1. Order'!AZ596)","v":""},{"$f":"IF('1. Order'!BA596=\"\",\"\",'1. Order'!BA596)","v":""},{"$f":"IF('1. Order'!BC596=\"\",\"\",'1. Order'!BC596)","v":""},{"$f":"IF('1. Order'!BD596=\"\",\"\",'1. Order'!BD596)","v":6},{"$f":"IF('1. Order'!BE596=\"\",\"\",'1. Order'!BE596)","v":"None"},{"$f":"IF('1. Order'!BF596=\"\",\"\",'1. Order'!BF596)","v":"Parcel"},{"$f":"IF('1. Order'!BG596=\"\",\"\",'1. Order'!BG596)","v":"ZWO"}]
[{"$f":"IF('1. Order'!F597=\"\",\"\",'1. Order'!F597)","v":""},{"$f":"IF('1. Order'!G597=\"\",\"\",'1. Order'!G597)","v":""},{"$f":"IF('1. Order'!H597=\"\",\"\",'1. Order'!H597)","v":""},{"$f":"IF('1. Order'!I597=\"\",\"\",'1. Order'!I597)","v":""},{"$f":"IF('1. Order'!J597=\"\",\"\",'1. Order'!J597)","v":""},{"$f":"IF('1. Order'!K597=\"\",\"\",'1. Order'!K597)","v":""},{"$f":"IF('1. Order'!L597=\"\",\"\",'1. Order'!L597)","v":""},{"$f":"IF('1. Order'!M597=\"\",\"\",'1. Order'!M597)","v":""},{"$f":"IF('1. Order'!N597=\"\",\"\",'1. Order'!N597)","v":""},{"$f":"IF('1. Order'!O597=\"\",\"\",'1. Order'!O597)","v":{"$error":"#N/A"}},{"$f":"IF('1. Order'!P597=\"\",\"\",'1. Order'!P597)","v":{"$error":"#N/A"}},{"$f":"IF('1. Order'!Q597=\"\",\"\",'1. Order'!Q597)","v":""},{"$f":"IF('1. Order'!R597=\"\",\"\",'1. Order'!R597)","v":""},{"$f":"IF('1. Order'!S597=\"\",\"\",'1. Order'!S597)","v":""},{"$f":"IF('1. Order'!V597=\"\",\"\",'1. Order'!V597)","v":""},{"$f":"IF('1. Order'!W597=\"\",\"\",'1. Order'!W597)","v":""},{"$f":"IF('1. Order'!X597=\"\",\"\",'1. Order'!X597)","v":"EUR"},{"$f":"IF('1. Order'!Y597=\"\",\"\",'1. Order'!Y597)","v":""},{"$f":"IF('1. Order'!Z597=\"\",\"\",'1. Order'!Z597)","v":""},{"$f":"IF('1. Order'!AA597=\"\",\"\",'1. Order'!AA597)","v":""},null,{"$f":"IF('1. Order'!AS597=\"\",\"\",'1. Order'!AS597)","v":""},{"$f":"IF('1. Order'!AT597=\"\",\"\",'1. Order'!AT597)","v":""},null,null,null,null,null,null,null,{"$f":"IF('1. Order'!AX597=\"\",\"\",'1. Order'!AX597)","v":""},{"$f":"IF('1. Order'!AY597=\"\",\"\",'1. Order'!AY597)","v":""},{"$f":"IF('1. Order'!AZ597=\"\",\"\",'1. Order'!AZ597)","v":""},{"$f":"IF('1. Order'!BA597=\"\",\"\",'1. Order'!BA597)","v":""},{"$f":"IF('1. Order'!BC597=\"\",\"\",'1. Order'!BC597)","v":""},{"$f":"IF('1. Order'!BD597=\"\",\"\",'1. Order'!BD597)","v":6},{"$f":"IF('1. Order'!BE597=\"\",\"\",'1. Order'!BE597)","v":"None"},{"$f":"IF('1. Order'!BF597=\"\",\"\",'1. Order'!BF597)","v":"Parcel"},{"$f":"IF('1. Order'!BG597=\"\",\"\",'1. Order'!BG597)","v":"ZWO"}]
[{"$f":"IF('1. Order'!F598=\"\",\"\",'1. Order'!F598)","v":""},{"$f":"IF('1. Order'!G598=\"\",\"\",'1. Order'!G598)","v":""},{"$f":"IF('1. Order'!H598=\"\",\"\",'1. Order'!H598)","v":""},{"$f":"IF('1. Order'!I598=\"\",\"\",'1. Order'!I598)","v":""},{"$f":"IF('1. Order'!J598=\"\",\"\",'1. Order'!J598)","v":""},{"$f":"IF('1. Order'!K598=\"\",\"\",'1. Order'!K598)","v":""},{"$f":"IF('1. Order'!L598=\"\",\"\",'1. Order'!L598)","v":""},{"$f":"IF('1. Order'!M598=\"\",\"\",'1. Order'!M598)","v":""},{"$f":"IF('1. Order'!N598=\"\",\"\",'1. Order'!N598)","v":""},{"$f":"IF('1. Order'!O598=\"\",\"\",'1. Order'!O598)","v":{"$error":"#N/A"}},{"$f":"IF('1. Order'!P598=\"\",\"\",'1. Order'!P598)","v":{"$error":"#N/A"}},{"$f":"IF('1. Order'!Q598=\"\",\"\",'1. Order'!Q598)","v":""},{"$f":"IF('1. Order'!R598=\"\",\"\",'1. Order'!R598)","v":""},{"$f":"IF('1. Order'!S598=\"\",\"\",'1. Order'!S598)","v":""},{"$f":"IF('1. Order'!V598=\"\",\"\",'1. Order'!V598)","v":""},{"$f":"IF('1. Order'!W598=\"\",\"\",'1. Order'!W598)","v":""},{"$f":"IF('1. Order'!X598=\"\",\"\",'1. Order'!X598)","v":"EUR"},{"$f":"IF('1. Order'!Y598=\"\",\"\",'1. Order'!Y598)","v":""},{"$f":"IF('1. Order'!Z598=\"\",\"\",'1. Order'!Z598)","v":""},{"$f":"IF('1. Order'!AA598=\"\",\"\",'1. Order'!AA598)","v":""},null,{"$f":"IF('1. Order'!AS598=\"\",\"\",'1. Order'!AS598)","v":""},{"$f":"IF('1. Order'!AT598=\"\",\"\",'1. Order'!AT598)","v":""},null,null,null,null,null,null,null,{"$f":"IF('1. Order'!AX598=\"\",\"\",'1. Order'!AX598)","v":""},{"$f":"IF('1. Order'!AY598=\"\",\"\",'1. Order'!AY598)","v":""},{"$f":"IF('1. Order'!AZ598=\"\",\"\",'1. Order'!AZ598)","v":""},{"$f":"IF('1. Order'!BA598=\"\",\"\",'1. Order'!BA598)","v":""},{"$f":"IF('1. Order'!BC598=\"\",\"\",'1. Order'!BC598)","v":""},{"$f":"IF('1. Order'!BD598=\"\",\"\",'1. Order'!BD598)","v":6},{"$f":"IF('1. Order'!BE598=\"\",\"\",'1. Order'!BE598)","v":"None"},{"$f":"IF('1. Order'!BF598=\"\",\"\",'1. Order'!BF598)","v":"Parcel"},{"$f":"IF('1. Order'!BG598=\"\",\"\",'1. Order'!BG598)","v":"ZWO"}]
[{"$f":"IF('1. Order'!F599=\"\",\"\",'1. Order'!F599)","v":""},{"$f":"IF('1. Order'!G599=\"\",\"\",'1. Order'!G599)","v":""},{"$f":"IF('1. Order'!H599=\"\",\"\",'1. Order'!H599)","v":""},{"$f":"IF('1. Order'!I599=\"\",\"\",'1. Order'!I599)","v":""},{"$f":"IF('1. Order'!J599=\"\",\"\",'1. Order'!J599)","v":""},{"$f":"IF('1. Order'!K599=\"\",\"\",'1. Order'!K599)","v":""},{"$f":"IF('1. Order'!L599=\"\",\"\",'1. Order'!L599)","v":""},{"$f":"IF('1. Order'!M599=\"\",\"\",'1. Order'!M599)","v":""},{"$f":"IF('1. Order'!N599=\"\",\"\",'1. Order'!N599)","v":""},{"$f":"IF('1. Order'!O599=\"\",\"\",'1. Order'!O599)","v":{"$error":"#N/A"}},{"$f":"IF('1. Order'!P599=\"\",\"\",'1. Order'!P599)","v":{"$error":"#N/A"}},{"$f":"IF('1. Order'!Q599=\"\",\"\",'1. Order'!Q599)","v":""},{"$f":"IF('1. Order'!R599=\"\",\"\",'1. Order'!R599)","v":""},{"$f":"IF('1. Order'!S599=\"\",\"\",'1. Order'!S599)","v":""},{"$f":"IF('1. Order'!V599=\"\",\"\",'1. Order'!V599)","v":""},{"$f":"IF('1. Order'!W599=\"\",\"\",'1. Order'!W599)","v":""},{"$f":"IF('1. Order'!X599=\"\",\"\",'1. Order'!X599)","v":"EUR"},{"$f":"IF('1. Order'!Y599=\"\",\"\",'1. Order'!Y599)","v":""},{"$f":"IF('1. Order'!Z599=\"\",\"\",'1. Order'!Z599)","v":""},{"$f":"IF('1. Order'!AA599=\"\",\"\",'1. Order'!AA599)","v":""},null,{"$f":"IF('1. Order'!AS599=\"\",\"\",'1. Order'!AS599)","v":""},{"$f":"IF('1. Order'!AT599=\"\",\"\",'1. Order'!AT599)","v":""},null,null,null,null,null,null,null,{"$f":"IF('1. Order'!AX599=\"\",\"\",'1. Order'!AX599)","v":""},{"$f":"IF('1. Order'!AY599=\"\",\"\",'1. Order'!AY599)","v":""},{"$f":"IF('1. Order'!AZ599=\"\",\"\",'1. Order'!AZ599)","v":""},{"$f":"IF('1. Order'!BA599=\"\",\"\",'1. Order'!BA599)","v":""},{"$f":"IF('1. Order'!BC599=\"\",\"\",'1. Order'!BC599)","v":""},{"$f":"IF('1. Order'!BD599=\"\",\"\",'1. Order'!BD599)","v":6},{"$f":"IF('1. Order'!BE599=\"\",\"\",'1. Order'!BE599)","v":"None"},{"$f":"IF('1. Order'!BF599=\"\",\"\",'1. Order'!BF599)","v":"Parcel"},{"$f":"IF('1. Order'!BG599=\"\",\"\",'1. Order'!BG599)","v":"ZWO"}]
[{"$f":"IF('1. Order'!F600=\"\",\"\",'1. Order'!F600)","v":""},{"$f":"IF('1. Order'!G600=\"\",\"\",'1. Order'!G600)","v":""},{"$f":"IF('1. Order'!H600=\"\",\"\",'1. Order'!H600)","v":""},{"$f":"IF('1. Order'!I600=\"\",\"\",'1. Order'!I600)","v":""},{"$f":"IF('1. Order'!J600=\"\",\"\",'1. Order'!J600)","v":""},{"$f":"IF('1. Order'!K600=\"\",\"\",'1. Order'!K600)","v":""},{"$f":"IF('1. Order'!L600=\"\",\"\",'1. Order'!L600)","v":""},{"$f":"IF('1. Order'!M600=\"\",\"\",'1. Order'!M600)","v":""},{"$f":"IF('1. Order'!N600=\"\",\"\",'1. Order'!N600)","v":""},{"$f":"IF('1. Order'!O600=\"\",\"\",'1. Order'!O600)","v":{"$error":"#N/A"}},{"$f":"IF('1. Order'!P600=\"\",\"\",'1. Order'!P600)","v":{"$error":"#N/A"}},{"$f":"IF('1. Order'!Q600=\"\",\"\",'1. Order'!Q600)","v":""},{"$f":"IF('1. Order'!R600=\"\",\"\",'1. Order'!R600)","v":""},{"$f":"IF('1. Order'!S600=\"\",\"\",'1. Order'!S600)","v":""},{"$f":"IF('1. Order'!V600=\"\",\"\",'1. Order'!V600)","v":""},{"$f":"IF('1. Order'!W600=\"\",\"\",'1. Order'!W600)","v":""},{"$f":"IF('1. Order'!X600=\"\",\"\",'1. Order'!X600)","v":"EUR"},{"$f":"IF('1. Order'!Y600=\"\",\"\",'1. Order'!Y600)","v":""},{"$f":"IF('1. Order'!Z600=\"\",\"\",'1. Order'!Z600)","v":""},{"$f":"IF('1. Order'!AA600=\"\",\"\",'1. Order'!AA600)","v":""},null,{"$f":"IF('1. Order'!AS600=\"\",\"\",'1. Order'!AS600)","v":""},{"$f":"IF('1. Order'!AT600=\"\",\"\",'1. Order'!AT600)","v":""},null,null,null,null,null,null,null,{"$f":"IF('1. Order'!AX600=\"\",\"\",'1. Order'!AX600)","v":""},{"$f":"IF('1. Order'!AY600=\"\",\"\",'1. Order'!AY600)","v":""},{"$f":"IF('1. Order'!AZ600=\"\",\"\",'1. Order'!AZ600)","v":""},{"$f":"IF('1. Order'!BA600=\"\",\"\",'1. Order'!BA600)","v":""},{"$f":"IF('1. Order'!BC600=\"\",\"\",'1. Order'!BC600)","v":""},{"$f":"IF('1. Order'!BD600=\"\",\"\",'1. Order'!BD600)","v":6},{"$f":"IF('1. Order'!BE600=\"\",\"\",'1. Order'!BE600)","v":"None"},{"$f":"IF('1. Order'!BF600=\"\",\"\",'1. Order'!BF600)","v":"Parcel"},{"$f":"IF('1. Order'!BG600=\"\",\"\",'1. Order'!BG600)","v":"ZWO"}]
[{"$f":"IF('1. Order'!F601=\"\",\"\",'1. Order'!F601)","v":""},{"$f":"IF('1. Order'!G601=\"\",\"\",'1. Order'!G601)","v":""},{"$f":"IF('1. Order'!H601=\"\",\"\",'1. Order'!H601)","v":""},{"$f":"IF('1. Order'!I601=\"\",\"\",'1. Order'!I601)","v":""},{"$f":"IF('1. Order'!J601=\"\",\"\",'1. Order'!J601)","v":""},{"$f":"IF('1. Order'!K601=\"\",\"\",'1. Order'!K601)","v":""},{"$f":"IF('1. Order'!L601=\"\",\"\",'1. Order'!L601)","v":""},{"$f":"IF('1. Order'!M601=\"\",\"\",'1. Order'!M601)","v":""},{"$f":"IF('1. Order'!N601=\"\",\"\",'1. Order'!N601)","v":""},{"$f":"IF('1. Order'!O601=\"\",\"\",'1. Order'!O601)","v":{"$error":"#N/A"}},{"$f":"IF('1. Order'!P601=\"\",\"\",'1. Order'!P601)","v":{"$error":"#N/A"}},{"$f":"IF('1. Order'!Q601=\"\",\"\",'1. Order'!Q601)","v":""},{"$f":"IF('1. Order'!R601=\"\",\"\",'1. Order'!R601)","v":""},{"$f":"IF('1. Order'!S601=\"\",\"\",'1. Order'!S601)","v":""},{"$f":"IF('1. Order'!V601=\"\",\"\",'1. Order'!V601)","v":""},{"$f":"IF('1. Order'!W601=\"\",\"\",'1. Order'!W601)","v":""},{"$f":"IF('1. Order'!X601=\"\",\"\",'1. Order'!X601)","v":"EUR"},{"$f":"IF('1. Order'!Y601=\"\",\"\",'1. Order'!Y601)","v":""},{"$f":"IF('1. Order'!Z601=\"\",\"\",'1. Order'!Z601)","v":""},{"$f":"IF('1. Order'!AA601=\"\",\"\",'1. Order'!AA601)","v":""},null,{"$f":"IF('1. Order'!AS601=\"\",\"\",'1. Order'!AS601)","v":""},{"$f":"IF('1. Order'!AT601=\"\",\"\",'1. Order'!AT601)","v":""},null,null,null,null,null,null,null,{"$f":"IF('1. Order'!AX601=\"\",\"\",'1. Order'!AX601)","v":""},{"$f":"IF('1. Order'!AY601=\"\",\"\",'1. Order'!AY601)","v":""},{"$f":"IF('1. Order'!AZ601=\"\",\"\",'1. Order'!AZ601)","v":""},{"$f":"IF('1. Order'!BA601=\"\",\"\",'1. Order'!BA601)","v":""},{"$f":"IF('1. Order'!BC601=\"\",\"\",'1. Order'!BC601)","v":""},{"$f":"IF('1. Order'!BD601=\"\",\"\",'1. Order'!BD601)","v":6},{"$f":"IF('1. Order'!BE601=\"\",\"\",'1. Order'!BE601)","v":"None"},{"$f":"IF('1. Order'!BF601=\"\",\"\",'1. Order'!BF601)","v":"Parcel"},{"$f":"IF('1. Order'!BG601=\"\",\"\",'1. Order'!BG601)","v":"ZWO"}]
[{"$f":"IF('1. Order'!F602=\"\",\"\",'1. Order'!F602)","v":""},{"$f":"IF('1. Order'!G602=\"\",\"\",'1. Order'!G602)","v":""},{"$f":"IF('1. Order'!H602=\"\",\"\",'1. Order'!H602)","v":""},{"$f":"IF('1. Order'!I602=\"\",\"\",'1. Order'!I602)","v":""},{"$f":"IF('1. Order'!J602=\"\",\"\",'1. Order'!J602)","v":""},{"$f":"IF('1. Order'!K602=\"\",\"\",'1. Order'!K602)","v":""},{"$f":"IF('1. Order'!L602=\"\",\"\",'1. Order'!L602)","v":""},{"$f":"IF('1. Order'!M602=\"\",\"\",'1. Order'!M602)","v":""},{"$f":"IF('1. Order'!N602=\"\",\"\",'1. Order'!N602)","v":""},{"$f":"IF('1. Order'!O602=\"\",\"\",'1. Order'!O602)","v":{"$error":"#N/A"}},{"$f":"IF('1. Order'!P602=\"\",\"\",'1. Order'!P602)","v":{"$error":"#N/A"}},{"$f":"IF('1. Order'!Q602=\"\",\"\",'1. Order'!Q602)","v":""},{"$f":"IF('1. Order'!R602=\"\",\"\",'1. Order'!R602)","v":""},{"$f":"IF('1. Order'!S602=\"\",\"\",'1. Order'!S602)","v":""},{"$f":"IF('1. Order'!V602=\"\",\"\",'1. Order'!V602)","v":""},{"$f":"IF('1. Order'!W602=\"\",\"\",'1. Order'!W602)","v":""},{"$f":"IF('1. Order'!X602=\"\",\"\",'1. Order'!X602)","v":"EUR"},{"$f":"IF('1. Order'!Y602=\"\",\"\",'1. Order'!Y602)","v":""},{"$f":"IF('1. Order'!Z602=\"\",\"\",'1. Order'!Z602)","v":""},{"$f":"IF('1. Order'!AA602=\"\",\"\",'1. Order'!AA602)","v":""},null,{"$f":"IF('1. Order'!AS602=\"\",\"\",'1. Order'!AS602)","v":""},{"$f":"IF('1. Order'!AT602=\"\",\"\",'1. Order'!AT602)","v":""},null,null,null,null,null,null,null,{"$f":"IF('1. Order'!AX602=\"\",\"\",'1. Order'!AX602)","v":""},{"$f":"IF('1. Order'!AY602=\"\",\"\",'1. Order'!AY602)","v":""},{"$f":"IF('1. Order'!AZ602=\"\",\"\",'1. Order'!AZ602)","v":""},{"$f":"IF('1. Order'!BA602=\"\",\"\",'1. Order'!BA602)","v":""},{"$f":"IF('1. Order'!BC602=\"\",\"\",'1. Order'!BC602)","v":""},{"$f":"IF('1. Order'!BD602=\"\",\"\",'1. Order'!BD602)","v":6},{"$f":"IF('1. Order'!BE602=\"\",\"\",'1. Order'!BE602)","v":"None"},{"$f":"IF('1. Order'!BF602=\"\",\"\",'1. Order'!BF602)","v":"Parcel"},{"$f":"IF('1. Order'!BG602=\"\",\"\",'1. Order'!BG602)","v":"ZWO"}]
[{"$f":"IF('1. Order'!F603=\"\",\"\",'1. Order'!F603)","v":""},{"$f":"IF('1. Order'!G603=\"\",\"\",'1. Order'!G603)","v":""},{"$f":"IF('1. Order'!H603=\"\",\"\",'1. Order'!H603)","v":""},{"$f":"IF('1. Order'!I603=\"\",\"\",'1. Order'!I603)","v":""},{"$f":"IF('1. Order'!J603=\"\",\"\",'1. Order'!J603)","v":""},{"$f":"IF('1. Order'!K603=\"\",\"\",'1. Order'!K603)","v":""},{"$f":"IF('1. Order'!L603=\"\",\"\",'1. Order'!L603)","v":""},{"$f":"IF('1. Order'!M603=\"\",\"\",'1. Order'!M603)","v":""},{"$f":"IF('1. Order'!N603=\"\",\"\",'1. Order'!N603)","v":""},{"$f":"IF('1. Order'!O603=\"\",\"\",'1. Order'!O603)","v":{"$error":"#N/A"}},{"$f":"IF('1. Order'!P603=\"\",\"\",'1. Order'!P603)","v":{"$error":"#N/A"}},{"$f":"IF('1. Order'!Q603=\"\",\"\",'1. Order'!Q603)","v":""},{"$f":"IF('1. Order'!R603=\"\",\"\",'1. Order'!R603)","v":""},{"$f":"IF('1. Order'!S603=\"\",\"\",'1. Order'!S603)","v":""},{"$f":"IF('1. Order'!V603=\"\",\"\",'1. Order'!V603)","v":""},{"$f":"IF('1. Order'!W603=\"\",\"\",'1. Order'!W603)","v":""},{"$f":"IF('1. Order'!X603=\"\",\"\",'1. Order'!X603)","v":"EUR"},{"$f":"IF('1. Order'!Y603=\"\",\"\",'1. Order'!Y603)","v":""},{"$f":"IF('1. Order'!Z603=\"\",\"\",'1. Order'!Z603)","v":""},{"$f":"IF('1. Order'!AA603=\"\",\"\",'1. Order'!AA603)","v":""},null,{"$f":"IF('1. Order'!AS603=\"\",\"\",'1. Order'!AS603)","v":""},{"$f":"IF('1. Order'!AT603=\"\",\"\",'1. Order'!AT603)","v":""},null,null,null,null,null,null,null,{"$f":"IF('1. Order'!AX603=\"\",\"\",'1. Order'!AX603)","v":""},{"$f":"IF('1. Order'!AY603=\"\",\"\",'1. Order'!AY603)","v":""},{"$f":"IF('1. Order'!AZ603=\"\",\"\",'1. Order'!AZ603)","v":""},{"$f":"IF('1. Order'!BA603=\"\",\"\",'1. Order'!BA603)","v":""},{"$f":"IF('1. Order'!BC603=\"\",\"\",'1. Order'!BC603)","v":""},{"$f":"IF('1. Order'!BD603=\"\",\"\",'1. Order'!BD603)","v":6},{"$f":"IF('1. Order'!BE603=\"\",\"\",'1. Order'!BE603)","v":"None"},{"$f":"IF('1. Order'!BF603=\"\",\"\",'1. Order'!BF603)","v":"Parcel"},{"$f":"IF('1. Order'!BG603=\"\",\"\",'1. Order'!BG603)","v":"ZWO"}]
[{"$f":"IF('1. Order'!F604=\"\",\"\",'1. Order'!F604)","v":""},{"$f":"IF('1. Order'!G604=\"\",\"\",'1. Order'!G604)","v":""},{"$f":"IF('1. Order'!H604=\"\",\"\",'1. Order'!H604)","v":""},{"$f":"IF('1. Order'!I604=\"\",\"\",'1. Order'!I604)","v":""},{"$f":"IF('1. Order'!J604=\"\",\"\",'1. Order'!J604)","v":""},{"$f":"IF('1. Order'!K604=\"\",\"\",'1. Order'!K604)","v":""},{"$f":"IF('1. Order'!L604=\"\",\"\",'1. Order'!L604)","v":""},{"$f":"IF('1. Order'!M604=\"\",\"\",'1. Order'!M604)","v":""},{"$f":"IF('1. Order'!N604=\"\",\"\",'1. Order'!N604)","v":""},{"$f":"IF('1. Order'!O604=\"\",\"\",'1. Order'!O604)","v":{"$error":"#N/A"}},{"$f":"IF('1. Order'!P604=\"\",\"\",'1. Order'!P604)","v":{"$error":"#N/A"}},{"$f":"IF('1. Order'!Q604=\"\",\"\",'1. Order'!Q604)","v":""},{"$f":"IF('1. Order'!R604=\"\",\"\",'1. Order'!R604)","v":""},{"$f":"IF('1. Order'!S604=\"\",\"\",'1. Order'!S604)","v":""},{"$f":"IF('1. Order'!V604=\"\",\"\",'1. Order'!V604)","v":""},{"$f":"IF('1. Order'!W604=\"\",\"\",'1. Order'!W604)","v":""},{"$f":"IF('1. Order'!X604=\"\",\"\",'1. Order'!X604)","v":"EUR"},{"$f":"IF('1. Order'!Y604=\"\",\"\",'1. Order'!Y604)","v":""},{"$f":"IF('1. Order'!Z604=\"\",\"\",'1. Order'!Z604)","v":""},{"$f":"IF('1. Order'!AA604=\"\",\"\",'1. Order'!AA604)","v":""},null,{"$f":"IF('1. Order'!AS604=\"\",\"\",'1. Order'!AS604)","v":""},{"$f":"IF('1. Order'!AT604=\"\",\"\",'1. Order'!AT604)","v":""},null,null,null,null,null,null,null,{"$f":"IF('1. Order'!AX604=\"\",\"\",'1. Order'!AX604)","v":""},{"$f":"IF('1. Order'!AY604=\"\",\"\",'1. Order'!AY604)","v":""},{"$f":"IF('1. Order'!AZ604=\"\",\"\",'1. Order'!AZ604)","v":""},{"$f":"IF('1. Order'!BA604=\"\",\"\",'1. Order'!BA604)","v":""},{"$f":"IF('1. Order'!BC604=\"\",\"\",'1. Order'!BC604)","v":""},{"$f":"IF('1. Order'!BD604=\"\",\"\",'1. Order'!BD604)","v":6},{"$f":"IF('1. Order'!BE604=\"\",\"\",'1. Order'!BE604)","v":"None"},{"$f":"IF('1. Order'!BF604=\"\",\"\",'1. Order'!BF604)","v":"Parcel"},{"$f":"IF('1. Order'!BG604=\"\",\"\",'1. Order'!BG604)","v":"ZWO"}]
[{"$f":"IF('1. Order'!F605=\"\",\"\",'1. Order'!F605)","v":""},{"$f":"IF('1. Order'!G605=\"\",\"\",'1. Order'!G605)","v":""},{"$f":"IF('1. Order'!H605=\"\",\"\",'1. Order'!H605)","v":""},{"$f":"IF('1. Order'!I605=\"\",\"\",'1. Order'!I605)","v":""},{"$f":"IF('1. Order'!J605=\"\",\"\",'1. Order'!J605)","v":""},{"$f":"IF('1. Order'!K605=\"\",\"\",'1. Order'!K605)","v":""},{"$f":"IF('1. Order'!L605=\"\",\"\",'1. Order'!L605)","v":""},{"$f":"IF('1. Order'!M605=\"\",\"\",'1. Order'!M605)","v":""},{"$f":"IF('1. Order'!N605=\"\",\"\",'1. Order'!N605)","v":""},{"$f":"IF('1. Order'!O605=\"\",\"\",'1. Order'!O605)","v":{"$error":"#N/A"}},{"$f":"IF('1. Order'!P605=\"\",\"\",'1. Order'!P605)","v":{"$error":"#N/A"}},{"$f":"IF('1. Order'!Q605=\"\",\"\",'1. Order'!Q605)","v":""},{"$f":"IF('1. Order'!R605=\"\",\"\",'1. Order'!R605)","v":""},{"$f":"IF('1. Order'!S605=\"\",\"\",'1. Order'!S605)","v":""},{"$f":"IF('1. Order'!V605=\"\",\"\",'1. Order'!V605)","v":""},{"$f":"IF('1. Order'!W605=\"\",\"\",'1. Order'!W605)","v":""},{"$f":"IF('1. Order'!X605=\"\",\"\",'1. Order'!X605)","v":"EUR"},{"$f":"IF('1. Order'!Y605=\"\",\"\",'1. Order'!Y605)","v":""},{"$f":"IF('1. Order'!Z605=\"\",\"\",'1. Order'!Z605)","v":""},{"$f":"IF('1. Order'!AA605=\"\",\"\",'1. Order'!AA605)","v":""},null,{"$f":"IF('1. Order'!AS605=\"\",\"\",'1. Order'!AS605)","v":""},{"$f":"IF('1. Order'!AT605=\"\",\"\",'1. Order'!AT605)","v":""},null,null,null,null,null,null,null,{"$f":"IF('1. Order'!AX605=\"\",\"\",'1. Order'!AX605)","v":""},{"$f":"IF('1. Order'!AY605=\"\",\"\",'1. Order'!AY605)","v":""},{"$f":"IF('1. Order'!AZ605=\"\",\"\",'1. Order'!AZ605)","v":""},{"$f":"IF('1. Order'!BA605=\"\",\"\",'1. Order'!BA605)","v":""},{"$f":"IF('1. Order'!BC605=\"\",\"\",'1. Order'!BC605)","v":""},{"$f":"IF('1. Order'!BD605=\"\",\"\",'1. Order'!BD605)","v":6},{"$f":"IF('1. Order'!BE605=\"\",\"\",'1. Order'!BE605)","v":"None"},{"$f":"IF('1. Order'!BF605=\"\",\"\",'1. Order'!BF605)","v":"Parcel"},{"$f":"IF('1. Order'!BG605=\"\",\"\",'1. Order'!BG605)","v":"ZWO"}]
[{"$f":"IF('1. Order'!F606=\"\",\"\",'1. Order'!F606)","v":""},{"$f":"IF('1. Order'!G606=\"\",\"\",'1. Order'!G606)","v":""},{"$f":"IF('1. Order'!H606=\"\",\"\",'1. Order'!H606)","v":""},{"$f":"IF('1. Order'!I606=\"\",\"\",'1. Order'!I606)","v":""},{"$f":"IF('1. Order'!J606=\"\",\"\",'1. Order'!J606)","v":""},{"$f":"IF('1. Order'!K606=\"\",\"\",'1. Order'!K606)","v":""},{"$f":"IF('1. Order'!L606=\"\",\"\",'1. Order'!L606)","v":""},{"$f":"IF('1. Order'!M606=\"\",\"\",'1. Order'!M606)","v":""},{"$f":"IF('1. Order'!N606=\"\",\"\",'1. Order'!N606)","v":""},{"$f":"IF('1. Order'!O606=\"\",\"\",'1. Order'!O606)","v":{"$error":"#N/A"}},{"$f":"IF('1. Order'!P606=\"\",\"\",'1. Order'!P606)","v":{"$error":"#N/A"}},{"$f":"IF('1. Order'!Q606=\"\",\"\",'1. Order'!Q606)","v":""},{"$f":"IF('1. Order'!R606=\"\",\"\",'1. Order'!R606)","v":""},{"$f":"IF('1. Order'!S606=\"\",\"\",'1. Order'!S606)","v":""},{"$f":"IF('1. Order'!V606=\"\",\"\",'1. Order'!V606)","v":""},{"$f":"IF('1. Order'!W606=\"\",\"\",'1. Order'!W606)","v":""},{"$f":"IF('1. Order'!X606=\"\",\"\",'1. Order'!X606)","v":"EUR"},{"$f":"IF('1. Order'!Y606=\"\",\"\",'1. Order'!Y606)","v":""},{"$f":"IF('1. Order'!Z606=\"\",\"\",'1. Order'!Z606)","v":""},{"$f":"IF('1. Order'!AA606=\"\",\"\",'1. Order'!AA606)","v":""},null,{"$f":"IF('1. Order'!AS606=\"\",\"\",'1. Order'!AS606)","v":""},{"$f":"IF('1. Order'!AT606=\"\",\"\",'1. Order'!AT606)","v":""},null,null,null,null,null,null,null,{"$f":"IF('1. Order'!AX606=\"\",\"\",'1. Order'!AX606)","v":""},{"$f":"IF('1. Order'!AY606=\"\",\"\",'1. Order'!AY606)","v":""},{"$f":"IF('1. Order'!AZ606=\"\",\"\",'1. Order'!AZ606)","v":""},{"$f":"IF('1. Order'!BA606=\"\",\"\",'1. Order'!BA606)","v":""},{"$f":"IF('1. Order'!BC606=\"\",\"\",'1. Order'!BC606)","v":""},{"$f":"IF('1. Order'!BD606=\"\",\"\",'1. Order'!BD606)","v":6},{"$f":"IF('1. Order'!BE606=\"\",\"\",'1. Order'!BE606)","v":"None"},{"$f":"IF('1. Order'!BF606=\"\",\"\",'1. Order'!BF606)","v":"Parcel"},{"$f":"IF('1. Order'!BG606=\"\",\"\",'1. Order'!BG606)","v":"ZWO"}]
[{"$f":"IF('1. Order'!F607=\"\",\"\",'1. Order'!F607)","v":""},{"$f":"IF('1. Order'!G607=\"\",\"\",'1. Order'!G607)","v":""},{"$f":"IF('1. Order'!H607=\"\",\"\",'1. Order'!H607)","v":""},{"$f":"IF('1. Order'!I607=\"\",\"\",'1. Order'!I607)","v":""},{"$f":"IF('1. Order'!J607=\"\",\"\",'1. Order'!J607)","v":""},{"$f":"IF('1. Order'!K607=\"\",\"\",'1. Order'!K607)","v":""},{"$f":"IF('1. Order'!L607=\"\",\"\",'1. Order'!L607)","v":""},{"$f":"IF('1. Order'!M607=\"\",\"\",'1. Order'!M607)","v":""},{"$f":"IF('1. Order'!N607=\"\",\"\",'1. Order'!N607)","v":""},{"$f":"IF('1. Order'!O607=\"\",\"\",'1. Order'!O607)","v":{"$error":"#N/A"}},{"$f":"IF('1. Order'!P607=\"\",\"\",'1. Order'!P607)","v":{"$error":"#N/A"}},{"$f":"IF('1. Order'!Q607=\"\",\"\",'1. Order'!Q607)","v":""},{"$f":"IF('1. Order'!R607=\"\",\"\",'1. Order'!R607)","v":""},{"$f":"IF('1. Order'!S607=\"\",\"\",'1. Order'!S607)","v":""},{"$f":"IF('1. Order'!V607=\"\",\"\",'1. Order'!V607)","v":""},{"$f":"IF('1. Order'!W607=\"\",\"\",'1. Order'!W607)","v":""},{"$f":"IF('1. Order'!X607=\"\",\"\",'1. Order'!X607)","v":"EUR"},{"$f":"IF('1. Order'!Y607=\"\",\"\",'1. Order'!Y607)","v":""},{"$f":"IF('1. Order'!Z607=\"\",\"\",'1. Order'!Z607)","v":""},{"$f":"IF('1. Order'!AA607=\"\",\"\",'1. Order'!AA607)","v":""},null,{"$f":"IF('1. Order'!AS607=\"\",\"\",'1. Order'!AS607)","v":""},{"$f":"IF('1. Order'!AT607=\"\",\"\",'1. Order'!AT607)","v":""},null,null,null,null,null,null,null,{"$f":"IF('1. Order'!AX607=\"\",\"\",'1. Order'!AX607)","v":""},{"$f":"IF('1. Order'!AY607=\"\",\"\",'1. Order'!AY607)","v":""},{"$f":"IF('1. Order'!AZ607=\"\",\"\",'1. Order'!AZ607)","v":""},{"$f":"IF('1. Order'!BA607=\"\",\"\",'1. Order'!BA607)","v":""},{"$f":"IF('1. Order'!BC607=\"\",\"\",'1. Order'!BC607)","v":""},{"$f":"IF('1. Order'!BD607=\"\",\"\",'1. Order'!BD607)","v":6},{"$f":"IF('1. Order'!BE607=\"\",\"\",'1. Order'!BE607)","v":"None"},{"$f":"IF('1. Order'!BF607=\"\",\"\",'1. Order'!BF607)","v":"Parcel"},{"$f":"IF('1. Order'!BG607=\"\",\"\",'1. Order'!BG607)","v":"ZWO"}]
[{"$f":"IF('1. Order'!F608=\"\",\"\",'1. Order'!F608)","v":""},{"$f":"IF('1. Order'!G608=\"\",\"\",'1. Order'!G608)","v":""},{"$f":"IF('1. Order'!H608=\"\",\"\",'1. Order'!H608)","v":""},{"$f":"IF('1. Order'!I608=\"\",\"\",'1. Order'!I608)","v":""},{"$f":"IF('1. Order'!J608=\"\",\"\",'1. Order'!J608)","v":""},{"$f":"IF('1. Order'!K608=\"\",\"\",'1. Order'!K608)","v":""},{"$f":"IF('1. Order'!L608=\"\",\"\",'1. Order'!L608)","v":""},{"$f":"IF('1. Order'!M608=\"\",\"\",'1. Order'!M608)","v":""},{"$f":"IF('1. Order'!N608=\"\",\"\",'1. Order'!N608)","v":""},{"$f":"IF('1. Order'!O608=\"\",\"\",'1. Order'!O608)","v":{"$error":"#N/A"}},{"$f":"IF('1. Order'!P608=\"\",\"\",'1. Order'!P608)","v":{"$error":"#N/A"}},{"$f":"IF('1. Order'!Q608=\"\",\"\",'1. Order'!Q608)","v":""},{"$f":"IF('1. Order'!R608=\"\",\"\",'1. Order'!R608)","v":""},{"$f":"IF('1. Order'!S608=\"\",\"\",'1. Order'!S608)","v":""},{"$f":"IF('1. Order'!V608=\"\",\"\",'1. Order'!V608)","v":""},{"$f":"IF('1. Order'!W608=\"\",\"\",'1. Order'!W608)","v":""},{"$f":"IF('1. Order'!X608=\"\",\"\",'1. Order'!X608)","v":"EUR"},{"$f":"IF('1. Order'!Y608=\"\",\"\",'1. Order'!Y608)","v":""},{"$f":"IF('1. Order'!Z608=\"\",\"\",'1. Order'!Z608)","v":""},{"$f":"IF('1. Order'!AA608=\"\",\"\",'1. Order'!AA608)","v":""},null,{"$f":"IF('1. Order'!AS608=\"\",\"\",'1. Order'!AS608)","v":""},{"$f":"IF('1. Order'!AT608=\"\",\"\",'1. Order'!AT608)","v":""},null,null,null,null,null,null,null,{"$f":"IF('1. Order'!AX608=\"\",\"\",'1. Order'!AX608)","v":""},{"$f":"IF('1. Order'!AY608=\"\",\"\",'1. Order'!AY608)","v":""},{"$f":"IF('1. Order'!AZ608=\"\",\"\",'1. Order'!AZ608)","v":""},{"$f":"IF('1. Order'!BA608=\"\",\"\",'1. Order'!BA608)","v":""},{"$f":"IF('1. Order'!BC608=\"\",\"\",'1. Order'!BC608)","v":""},{"$f":"IF('1. Order'!BD608=\"\",\"\",'1. Order'!BD608)","v":6},{"$f":"IF('1. Order'!BE608=\"\",\"\",'1. Order'!BE608)","v":"None"},{"$f":"IF('1. Order'!BF608=\"\",\"\",'1. Order'!BF608)","v":"Parcel"},{"$f":"IF('1. Order'!BG608=\"\",\"\",'1. Order'!BG608)","v":"ZWO"}]
[{"$f":"IF('1. Order'!F609=\"\",\"\",'1. Order'!F609)","v":""},{"$f":"IF('1. Order'!G609=\"\",\"\",'1. Order'!G609)","v":""},{"$f":"IF('1. Order'!H609=\"\",\"\",'1. Order'!H609)","v":""},{"$f":"IF('1. Order'!I609=\"\",\"\",'1. Order'!I609)","v":""},{"$f":"IF('1. Order'!J609=\"\",\"\",'1. Order'!J609)","v":""},{"$f":"IF('1. Order'!K609=\"\",\"\",'1. Order'!K609)","v":""},{"$f":"IF('1. Order'!L609=\"\",\"\",'1. Order'!L609)","v":""},{"$f":"IF('1. Order'!M609=\"\",\"\",'1. Order'!M609)","v":""},{"$f":"IF('1. Order'!N609=\"\",\"\",'1. Order'!N609)","v":""},{"$f":"IF('1. Order'!O609=\"\",\"\",'1. Order'!O609)","v":{"$error":"#N/A"}},{"$f":"IF('1. Order'!P609=\"\",\"\",'1. Order'!P609)","v":{"$error":"#N/A"}},{"$f":"IF('1. Order'!Q609=\"\",\"\",'1. Order'!Q609)","v":""},{"$f":"IF('1. Order'!R609=\"\",\"\",'1. Order'!R609)","v":""},{"$f":"IF('1. Order'!S609=\"\",\"\",'1. Order'!S609)","v":""},{"$f":"IF('1. Order'!V609=\"\",\"\",'1. Order'!V609)","v":""},{"$f":"IF('1. Order'!W609=\"\",\"\",'1. Order'!W609)","v":""},{"$f":"IF('1. Order'!X609=\"\",\"\",'1. Order'!X609)","v":"EUR"},{"$f":"IF('1. Order'!Y609=\"\",\"\",'1. Order'!Y609)","v":""},{"$f":"IF('1. Order'!Z609=\"\",\"\",'1. Order'!Z609)","v":""},{"$f":"IF('1. Order'!AA609=\"\",\"\",'1. Order'!AA609)","v":""},null,{"$f":"IF('1. Order'!AS609=\"\",\"\",'1. Order'!AS609)","v":""},{"$f":"IF('1. Order'!AT609=\"\",\"\",'1. Order'!AT609)","v":""},null,null,null,null,null,null,null,{"$f":"IF('1. Order'!AX609=\"\",\"\",'1. Order'!AX609)","v":""},{"$f":"IF('1. Order'!AY609=\"\",\"\",'1. Order'!AY609)","v":""},{"$f":"IF('1. Order'!AZ609=\"\",\"\",'1. Order'!AZ609)","v":""},{"$f":"IF('1. Order'!BA609=\"\",\"\",'1. Order'!BA609)","v":""},{"$f":"IF('1. Order'!BC609=\"\",\"\",'1. Order'!BC609)","v":""},{"$f":"IF('1. Order'!BD609=\"\",\"\",'1. Order'!BD609)","v":6},{"$f":"IF('1. Order'!BE609=\"\",\"\",'1. Order'!BE609)","v":"None"},{"$f":"IF('1. Order'!BF609=\"\",\"\",'1. Order'!BF609)","v":"Parcel"},{"$f":"IF('1. Order'!BG609=\"\",\"\",'1. Order'!BG609)","v":"ZWO"}]
[{"$f":"IF('1. Order'!F610=\"\",\"\",'1. Order'!F610)","v":""},{"$f":"IF('1. Order'!G610=\"\",\"\",'1. Order'!G610)","v":""},{"$f":"IF('1. Order'!H610=\"\",\"\",'1. Order'!H610)","v":""},{"$f":"IF('1. Order'!I610=\"\",\"\",'1. Order'!I610)","v":""},{"$f":"IF('1. Order'!J610=\"\",\"\",'1. Order'!J610)","v":""},{"$f":"IF('1. Order'!K610=\"\",\"\",'1. Order'!K610)","v":""},{"$f":"IF('1. Order'!L610=\"\",\"\",'1. Order'!L610)","v":""},{"$f":"IF('1. Order'!M610=\"\",\"\",'1. Order'!M610)","v":""},{"$f":"IF('1. Order'!N610=\"\",\"\",'1. Order'!N610)","v":""},{"$f":"IF('1. Order'!O610=\"\",\"\",'1. Order'!O610)","v":{"$error":"#N/A"}},{"$f":"IF('1. Order'!P610=\"\",\"\",'1. Order'!P610)","v":{"$error":"#N/A"}},{"$f":"IF('1. Order'!Q610=\"\",\"\",'1. Order'!Q610)","v":""},{"$f":"IF('1. Order'!R610=\"\",\"\",'1. Order'!R610)","v":""},{"$f":"IF('1. Order'!S610=\"\",\"\",'1. Order'!S610)","v":""},{"$f":"IF('1. Order'!V610=\"\",\"\",'1. Order'!V610)","v":""},{"$f":"IF('1. Order'!W610=\"\",\"\",'1. Order'!W610)","v":""},{"$f":"IF('1. Order'!X610=\"\",\"\",'1. Order'!X610)","v":"EUR"},{"$f":"IF('1. Order'!Y610=\"\",\"\",'1. Order'!Y610)","v":""},{"$f":"IF('1. Order'!Z610=\"\",\"\",'1. Order'!Z610)","v":""},{"$f":"IF('1. Order'!AA610=\"\",\"\",'1. Order'!AA610)","v":""},null,{"$f":"IF('1. Order'!AS610=\"\",\"\",'1. Order'!AS610)","v":""},{"$f":"IF('1. Order'!AT610=\"\",\"\",'1. Order'!AT610)","v":""},null,null,null,null,null,null,null,{"$f":"IF('1. Order'!AX610=\"\",\"\",'1. Order'!AX610)","v":""},{"$f":"IF('1. Order'!AY610=\"\",\"\",'1. Order'!AY610)","v":""},{"$f":"IF('1. Order'!AZ610=\"\",\"\",'1. Order'!AZ610)","v":""},{"$f":"IF('1. Order'!BA610=\"\",\"\",'1. Order'!BA610)","v":""},{"$f":"IF('1. Order'!BC610=\"\",\"\",'1. Order'!BC610)","v":""},{"$f":"IF('1. Order'!BD610=\"\",\"\",'1. Order'!BD610)","v":6},{"$f":"IF('1. Order'!BE610=\"\",\"\",'1. Order'!BE610)","v":"None"},{"$f":"IF('1. Order'!BF610=\"\",\"\",'1. Order'!BF610)","v":"Parcel"},{"$f":"IF('1. Order'!BG610=\"\",\"\",'1. Order'!BG610)","v":"ZWO"}]
[{"$f":"IF('1. Order'!F611=\"\",\"\",'1. Order'!F611)","v":""},{"$f":"IF('1. Order'!G611=\"\",\"\",'1. Order'!G611)","v":""},{"$f":"IF('1. Order'!H611=\"\",\"\",'1. Order'!H611)","v":""},{"$f":"IF('1. Order'!I611=\"\",\"\",'1. Order'!I611)","v":""},{"$f":"IF('1. Order'!J611=\"\",\"\",'1. Order'!J611)","v":""},{"$f":"IF('1. Order'!K611=\"\",\"\",'1. Order'!K611)","v":""},{"$f":"IF('1. Order'!L611=\"\",\"\",'1. Order'!L611)","v":""},{"$f":"IF('1. Order'!M611=\"\",\"\",'1. Order'!M611)","v":""},{"$f":"IF('1. Order'!N611=\"\",\"\",'1. Order'!N611)","v":""},{"$f":"IF('1. Order'!O611=\"\",\"\",'1. Order'!O611)","v":{"$error":"#N/A"}},{"$f":"IF('1. Order'!P611=\"\",\"\",'1. Order'!P611)","v":{"$error":"#N/A"}},{"$f":"IF('1. Order'!Q611=\"\",\"\",'1. Order'!Q611)","v":""},{"$f":"IF('1. Order'!R611=\"\",\"\",'1. Order'!R611)","v":""},{"$f":"IF('1. Order'!S611=\"\",\"\",'1. Order'!S611)","v":""},{"$f":"IF('1. Order'!V611=\"\",\"\",'1. Order'!V611)","v":""},{"$f":"IF('1. Order'!W611=\"\",\"\",'1. Order'!W611)","v":""},{"$f":"IF('1. Order'!X611=\"\",\"\",'1. Order'!X611)","v":"EUR"},{"$f":"IF('1. Order'!Y611=\"\",\"\",'1. Order'!Y611)","v":""},{"$f":"IF('1. Order'!Z611=\"\",\"\",'1. Order'!Z611)","v":""},{"$f":"IF('1. Order'!AA611=\"\",\"\",'1. Order'!AA611)","v":""},null,{"$f":"IF('1. Order'!AS611=\"\",\"\",'1. Order'!AS611)","v":""},{"$f":"IF('1. Order'!AT611=\"\",\"\",'1. Order'!AT611)","v":""},null,null,null,null,null,null,null,{"$f":"IF('1. Order'!AX611=\"\",\"\",'1. Order'!AX611)","v":""},{"$f":"IF('1. Order'!AY611=\"\",\"\",'1. Order'!AY611)","v":""},{"$f":"IF('1. Order'!AZ611=\"\",\"\",'1. Order'!AZ611)","v":""},{"$f":"IF('1. Order'!BA611=\"\",\"\",'1. Order'!BA611)","v":""},{"$f":"IF('1. Order'!BC611=\"\",\"\",'1. Order'!BC611)","v":""},{"$f":"IF('1. Order'!BD611=\"\",\"\",'1. Order'!BD611)","v":6},{"$f":"IF('1. Order'!BE611=\"\",\"\",'1. Order'!BE611)","v":"None"},{"$f":"IF('1. Order'!BF611=\"\",\"\",'1. Order'!BF611)","v":"Parcel"},{"$f":"IF('1. Order'!BG611=\"\",\"\",'1. Order'!BG611)","v":"ZWO"}]
[{"$f":"IF('1. Order'!F612=\"\",\"\",'1. Order'!F612)","v":""},{"$f":"IF('1. Order'!G612=\"\",\"\",'1. Order'!G612)","v":""},{"$f":"IF('1. Order'!H612=\"\",\"\",'1. Order'!H612)","v":""},{"$f":"IF('1. Order'!I612=\"\",\"\",'1. Order'!I612)","v":""},{"$f":"IF('1. Order'!J612=\"\",\"\",'1. Order'!J612)","v":""},{"$f":"IF('1. Order'!K612=\"\",\"\",'1. Order'!K612)","v":""},{"$f":"IF('1. Order'!L612=\"\",\"\",'1. Order'!L612)","v":""},{"$f":"IF('1. Order'!M612=\"\",\"\",'1. Order'!M612)","v":""},{"$f":"IF('1. Order'!N612=\"\",\"\",'1. Order'!N612)","v":""},{"$f":"IF('1. Order'!O612=\"\",\"\",'1. Order'!O612)","v":{"$error":"#N/A"}},{"$f":"IF('1. Order'!P612=\"\",\"\",'1. Order'!P612)","v":{"$error":"#N/A"}},{"$f":"IF('1. Order'!Q612=\"\",\"\",'1. Order'!Q612)","v":""},{"$f":"IF('1. Order'!R612=\"\",\"\",'1. Order'!R612)","v":""},{"$f":"IF('1. Order'!S612=\"\",\"\",'1. Order'!S612)","v":""},{"$f":"IF('1. Order'!V612=\"\",\"\",'1. Order'!V612)","v":""},{"$f":"IF('1. Order'!W612=\"\",\"\",'1. Order'!W612)","v":""},{"$f":"IF('1. Order'!X612=\"\",\"\",'1. Order'!X612)","v":"EUR"},{"$f":"IF('1. Order'!Y612=\"\",\"\",'1. Order'!Y612)","v":""},{"$f":"IF('1. Order'!Z612=\"\",\"\",'1. Order'!Z612)","v":""},{"$f":"IF('1. Order'!AA612=\"\",\"\",'1. Order'!AA612)","v":""},null,{"$f":"IF('1. Order'!AS612=\"\",\"\",'1. Order'!AS612)","v":""},{"$f":"IF('1. Order'!AT612=\"\",\"\",'1. Order'!AT612)","v":""},null,null,null,null,null,null,null,{"$f":"IF('1. Order'!AX612=\"\",\"\",'1. Order'!AX612)","v":""},{"$f":"IF('1. Order'!AY612=\"\",\"\",'1. Order'!AY612)","v":""},{"$f":"IF('1. Order'!AZ612=\"\",\"\",'1. Order'!AZ612)","v":""},{"$f":"IF('1. Order'!BA612=\"\",\"\",'1. Order'!BA612)","v":""},{"$f":"IF('1. Order'!BC612=\"\",\"\",'1. Order'!BC612)","v":""},{"$f":"IF('1. Order'!BD612=\"\",\"\",'1. Order'!BD612)","v":6},{"$f":"IF('1. Order'!BE612=\"\",\"\",'1. Order'!BE612)","v":"None"},{"$f":"IF('1. Order'!BF612=\"\",\"\",'1. Order'!BF612)","v":"Parcel"},{"$f":"IF('1. Order'!BG612=\"\",\"\",'1. Order'!BG612)","v":"ZWO"}]
[{"$f":"IF('1. Order'!F613=\"\",\"\",'1. Order'!F613)","v":""},{"$f":"IF('1. Order'!G613=\"\",\"\",'1. Order'!G613)","v":""},{"$f":"IF('1. Order'!H613=\"\",\"\",'1. Order'!H613)","v":""},{"$f":"IF('1. Order'!I613=\"\",\"\",'1. Order'!I613)","v":""},{"$f":"IF('1. Order'!J613=\"\",\"\",'1. Order'!J613)","v":""},{"$f":"IF('1. Order'!K613=\"\",\"\",'1. Order'!K613)","v":""},{"$f":"IF('1. Order'!L613=\"\",\"\",'1. Order'!L613)","v":""},{"$f":"IF('1. Order'!M613=\"\",\"\",'1. Order'!M613)","v":""},{"$f":"IF('1. Order'!N613=\"\",\"\",'1. Order'!N613)","v":""},{"$f":"IF('1. Order'!O613=\"\",\"\",'1. Order'!O613)","v":{"$error":"#N/A"}},{"$f":"IF('1. Order'!P613=\"\",\"\",'1. Order'!P613)","v":{"$error":"#N/A"}},{"$f":"IF('1. Order'!Q613=\"\",\"\",'1. Order'!Q613)","v":""},{"$f":"IF('1. Order'!R613=\"\",\"\",'1. Order'!R613)","v":""},{"$f":"IF('1. Order'!S613=\"\",\"\",'1. Order'!S613)","v":""},{"$f":"IF('1. Order'!V613=\"\",\"\",'1. Order'!V613)","v":""},{"$f":"IF('1. Order'!W613=\"\",\"\",'1. Order'!W613)","v":""},{"$f":"IF('1. Order'!X613=\"\",\"\",'1. Order'!X613)","v":"EUR"},{"$f":"IF('1. Order'!Y613=\"\",\"\",'1. Order'!Y613)","v":""},{"$f":"IF('1. Order'!Z613=\"\",\"\",'1. Order'!Z613)","v":""},{"$f":"IF('1. Order'!AA613=\"\",\"\",'1. Order'!AA613)","v":""},null,{"$f":"IF('1. Order'!AS613=\"\",\"\",'1. Order'!AS613)","v":""},{"$f":"IF('1. Order'!AT613=\"\",\"\",'1. Order'!AT613)","v":""},null,null,null,null,null,null,null,{"$f":"IF('1. Order'!AX613=\"\",\"\",'1. Order'!AX613)","v":""},{"$f":"IF('1. Order'!AY613=\"\",\"\",'1. Order'!AY613)","v":""},{"$f":"IF('1. Order'!AZ613=\"\",\"\",'1. Order'!AZ613)","v":""},{"$f":"IF('1. Order'!BA613=\"\",\"\",'1. Order'!BA613)","v":""},{"$f":"IF('1. Order'!BC613=\"\",\"\",'1. Order'!BC613)","v":""},{"$f":"IF('1. Order'!BD613=\"\",\"\",'1. Order'!BD613)","v":6},{"$f":"IF('1. Order'!BE613=\"\",\"\",'1. Order'!BE613)","v":"None"},{"$f":"IF('1. Order'!BF613=\"\",\"\",'1. Order'!BF613)","v":"Parcel"},{"$f":"IF('1. Order'!BG613=\"\",\"\",'1. Order'!BG613)","v":"ZWO"}]
[{"$f":"IF('1. Order'!F614=\"\",\"\",'1. Order'!F614)","v":""},{"$f":"IF('1. Order'!G614=\"\",\"\",'1. Order'!G614)","v":""},{"$f":"IF('1. Order'!H614=\"\",\"\",'1. Order'!H614)","v":""},{"$f":"IF('1. Order'!I614=\"\",\"\",'1. Order'!I614)","v":""},{"$f":"IF('1. Order'!J614=\"\",\"\",'1. Order'!J614)","v":""},{"$f":"IF('1. Order'!K614=\"\",\"\",'1. Order'!K614)","v":""},{"$f":"IF('1. Order'!L614=\"\",\"\",'1. Order'!L614)","v":""},{"$f":"IF('1. Order'!M614=\"\",\"\",'1. Order'!M614)","v":""},{"$f":"IF('1. Order'!N614=\"\",\"\",'1. Order'!N614)","v":""},{"$f":"IF('1. Order'!O614=\"\",\"\",'1. Order'!O614)","v":{"$error":"#N/A"}},{"$f":"IF('1. Order'!P614=\"\",\"\",'1. Order'!P614)","v":{"$error":"#N/A"}},{"$f":"IF('1. Order'!Q614=\"\",\"\",'1. Order'!Q614)","v":""},{"$f":"IF('1. Order'!R614=\"\",\"\",'1. Order'!R614)","v":""},{"$f":"IF('1. Order'!S614=\"\",\"\",'1. Order'!S614)","v":""},{"$f":"IF('1. Order'!V614=\"\",\"\",'1. Order'!V614)","v":""},{"$f":"IF('1. Order'!W614=\"\",\"\",'1. Order'!W614)","v":""},{"$f":"IF('1. Order'!X614=\"\",\"\",'1. Order'!X614)","v":"EUR"},{"$f":"IF('1. Order'!Y614=\"\",\"\",'1. Order'!Y614)","v":""},{"$f":"IF('1. Order'!Z614=\"\",\"\",'1. Order'!Z614)","v":""},{"$f":"IF('1. Order'!AA614=\"\",\"\",'1. Order'!AA614)","v":""},null,{"$f":"IF('1. Order'!AS614=\"\",\"\",'1. Order'!AS614)","v":""},{"$f":"IF('1. Order'!AT614=\"\",\"\",'1. Order'!AT614)","v":""},null,null,null,null,null,null,null,{"$f":"IF('1. Order'!AX614=\"\",\"\",'1. Order'!AX614)","v":""},{"$f":"IF('1. Order'!AY614=\"\",\"\",'1. Order'!AY614)","v":""},{"$f":"IF('1. Order'!AZ614=\"\",\"\",'1. Order'!AZ614)","v":""},{"$f":"IF('1. Order'!BA614=\"\",\"\",'1. Order'!BA614)","v":""},{"$f":"IF('1. Order'!BC614=\"\",\"\",'1. Order'!BC614)","v":""},{"$f":"IF('1. Order'!BD614=\"\",\"\",'1. Order'!BD614)","v":6},{"$f":"IF('1. Order'!BE614=\"\",\"\",'1. Order'!BE614)","v":"None"},{"$f":"IF('1. Order'!BF614=\"\",\"\",'1. Order'!BF614)","v":"Parcel"},{"$f":"IF('1. Order'!BG614=\"\",\"\",'1. Order'!BG614)","v":"ZWO"}]
[{"$f":"IF('1. Order'!F615=\"\",\"\",'1. Order'!F615)","v":""},{"$f":"IF('1. Order'!G615=\"\",\"\",'1. Order'!G615)","v":""},{"$f":"IF('1. Order'!H615=\"\",\"\",'1. Order'!H615)","v":""},{"$f":"IF('1. Order'!I615=\"\",\"\",'1. Order'!I615)","v":""},{"$f":"IF('1. Order'!J615=\"\",\"\",'1. Order'!J615)","v":""},{"$f":"IF('1. Order'!K615=\"\",\"\",'1. Order'!K615)","v":""},{"$f":"IF('1. Order'!L615=\"\",\"\",'1. Order'!L615)","v":""},{"$f":"IF('1. Order'!M615=\"\",\"\",'1. Order'!M615)","v":""},{"$f":"IF('1. Order'!N615=\"\",\"\",'1. Order'!N615)","v":""},{"$f":"IF('1. Order'!O615=\"\",\"\",'1. Order'!O615)","v":{"$error":"#N/A"}},{"$f":"IF('1. Order'!P615=\"\",\"\",'1. Order'!P615)","v":{"$error":"#N/A"}},{"$f":"IF('1. Order'!Q615=\"\",\"\",'1. Order'!Q615)","v":""},{"$f":"IF('1. Order'!R615=\"\",\"\",'1. Order'!R615)","v":""},{"$f":"IF('1. Order'!S615=\"\",\"\",'1. Order'!S615)","v":""},{"$f":"IF('1. Order'!V615=\"\",\"\",'1. Order'!V615)","v":""},{"$f":"IF('1. Order'!W615=\"\",\"\",'1. Order'!W615)","v":""},{"$f":"IF('1. Order'!X615=\"\",\"\",'1. Order'!X615)","v":"EUR"},{"$f":"IF('1. Order'!Y615=\"\",\"\",'1. Order'!Y615)","v":""},{"$f":"IF('1. Order'!Z615=\"\",\"\",'1. Order'!Z615)","v":""},{"$f":"IF('1. Order'!AA615=\"\",\"\",'1. Order'!AA615)","v":""},null,{"$f":"IF('1. Order'!AS615=\"\",\"\",'1. Order'!AS615)","v":""},{"$f":"IF('1. Order'!AT615=\"\",\"\",'1. Order'!AT615)","v":""},null,null,null,null,null,null,null,{"$f":"IF('1. Order'!AX615=\"\",\"\",'1. Order'!AX615)","v":""},{"$f":"IF('1. Order'!AY615=\"\",\"\",'1. Order'!AY615)","v":""},{"$f":"IF('1. Order'!AZ615=\"\",\"\",'1. Order'!AZ615)","v":""},{"$f":"IF('1. Order'!BA615=\"\",\"\",'1. Order'!BA615)","v":""},{"$f":"IF('1. Order'!BC615=\"\",\"\",'1. Order'!BC615)","v":""},{"$f":"IF('1. Order'!BD615=\"\",\"\",'1. Order'!BD615)","v":6},{"$f":"IF('1. Order'!BE615=\"\",\"\",'1. Order'!BE615)","v":"None"},{"$f":"IF('1. Order'!BF615=\"\",\"\",'1. Order'!BF615)","v":"Parcel"},{"$f":"IF('1. Order'!BG615=\"\",\"\",'1. Order'!BG615)","v":"ZWO"}]
[{"$f":"IF('1. Order'!F616=\"\",\"\",'1. Order'!F616)","v":""},{"$f":"IF('1. Order'!G616=\"\",\"\",'1. Order'!G616)","v":""},{"$f":"IF('1. Order'!H616=\"\",\"\",'1. Order'!H616)","v":""},{"$f":"IF('1. Order'!I616=\"\",\"\",'1. Order'!I616)","v":""},{"$f":"IF('1. Order'!J616=\"\",\"\",'1. Order'!J616)","v":""},{"$f":"IF('1. Order'!K616=\"\",\"\",'1. Order'!K616)","v":""},{"$f":"IF('1. Order'!L616=\"\",\"\",'1. Order'!L616)","v":""},{"$f":"IF('1. Order'!M616=\"\",\"\",'1. Order'!M616)","v":""},{"$f":"IF('1. Order'!N616=\"\",\"\",'1. Order'!N616)","v":""},{"$f":"IF('1. Order'!O616=\"\",\"\",'1. Order'!O616)","v":{"$error":"#N/A"}},{"$f":"IF('1. Order'!P616=\"\",\"\",'1. Order'!P616)","v":{"$error":"#N/A"}},{"$f":"IF('1. Order'!Q616=\"\",\"\",'1. Order'!Q616)","v":""},{"$f":"IF('1. Order'!R616=\"\",\"\",'1. Order'!R616)","v":""},{"$f":"IF('1. Order'!S616=\"\",\"\",'1. Order'!S616)","v":""},{"$f":"IF('1. Order'!V616=\"\",\"\",'1. Order'!V616)","v":""},{"$f":"IF('1. Order'!W616=\"\",\"\",'1. Order'!W616)","v":""},{"$f":"IF('1. Order'!X616=\"\",\"\",'1. Order'!X616)","v":"EUR"},{"$f":"IF('1. Order'!Y616=\"\",\"\",'1. Order'!Y616)","v":""},{"$f":"IF('1. Order'!Z616=\"\",\"\",'1. Order'!Z616)","v":""},{"$f":"IF('1. Order'!AA616=\"\",\"\",'1. Order'!AA616)","v":""},null,{"$f":"IF('1. Order'!AS616=\"\",\"\",'1. Order'!AS616)","v":""},{"$f":"IF('1. Order'!AT616=\"\",\"\",'1. Order'!AT616)","v":""},null,null,null,null,null,null,null,{"$f":"IF('1. Order'!AX616=\"\",\"\",'1. Order'!AX616)","v":""},{"$f":"IF('1. Order'!AY616=\"\",\"\",'1. Order'!AY616)","v":""},{"$f":"IF('1. Order'!AZ616=\"\",\"\",'1. Order'!AZ616)","v":""},{"$f":"IF('1. Order'!BA616=\"\",\"\",'1. Order'!BA616)","v":""},{"$f":"IF('1. Order'!BC616=\"\",\"\",'1. Order'!BC616)","v":""},{"$f":"IF('1. Order'!BD616=\"\",\"\",'1. Order'!BD616)","v":6},{"$f":"IF('1. Order'!BE616=\"\",\"\",'1. Order'!BE616)","v":"None"},{"$f":"IF('1. Order'!BF616=\"\",\"\",'1. Order'!BF616)","v":"Parcel"},{"$f":"IF('1. Order'!BG616=\"\",\"\",'1. Order'!BG616)","v":"ZWO"}]
[{"$f":"IF('1. Order'!F617=\"\",\"\",'1. Order'!F617)","v":""},{"$f":"IF('1. Order'!G617=\"\",\"\",'1. Order'!G617)","v":""},{"$f":"IF('1. Order'!H617=\"\",\"\",'1. Order'!H617)","v":""},{"$f":"IF('1. Order'!I617=\"\",\"\",'1. Order'!I617)","v":""},{"$f":"IF('1. Order'!J617=\"\",\"\",'1. Order'!J617)","v":""},{"$f":"IF('1. Order'!K617=\"\",\"\",'1. Order'!K617)","v":""},{"$f":"IF('1. Order'!L617=\"\",\"\",'1. Order'!L617)","v":""},{"$f":"IF('1. Order'!M617=\"\",\"\",'1. Order'!M617)","v":""},{"$f":"IF('1. Order'!N617=\"\",\"\",'1. Order'!N617)","v":""},{"$f":"IF('1. Order'!O617=\"\",\"\",'1. Order'!O617)","v":{"$error":"#N/A"}},{"$f":"IF('1. Order'!P617=\"\",\"\",'1. Order'!P617)","v":{"$error":"#N/A"}},{"$f":"IF('1. Order'!Q617=\"\",\"\",'1. Order'!Q617)","v":""},{"$f":"IF('1. Order'!R617=\"\",\"\",'1. Order'!R617)","v":""},{"$f":"IF('1. Order'!S617=\"\",\"\",'1. Order'!S617)","v":""},{"$f":"IF('1. Order'!V617=\"\",\"\",'1. Order'!V617)","v":""},{"$f":"IF('1. Order'!W617=\"\",\"\",'1. Order'!W617)","v":""},{"$f":"IF('1. Order'!X617=\"\",\"\",'1. Order'!X617)","v":"EUR"},{"$f":"IF('1. Order'!Y617=\"\",\"\",'1. Order'!Y617)","v":""},{"$f":"IF('1. Order'!Z617=\"\",\"\",'1. Order'!Z617)","v":""},{"$f":"IF('1. Order'!AA617=\"\",\"\",'1. Order'!AA617)","v":""},null,{"$f":"IF('1. Order'!AS617=\"\",\"\",'1. Order'!AS617)","v":""},{"$f":"IF('1. Order'!AT617=\"\",\"\",'1. Order'!AT617)","v":""},null,null,null,null,null,null,null,{"$f":"IF('1. Order'!AX617=\"\",\"\",'1. Order'!AX617)","v":""},{"$f":"IF('1. Order'!AY617=\"\",\"\",'1. Order'!AY617)","v":""},{"$f":"IF('1. Order'!AZ617=\"\",\"\",'1. Order'!AZ617)","v":""},{"$f":"IF('1. Order'!BA617=\"\",\"\",'1. Order'!BA617)","v":""},{"$f":"IF('1. Order'!BC617=\"\",\"\",'1. Order'!BC617)","v":""},{"$f":"IF('1. Order'!BD617=\"\",\"\",'1. Order'!BD617)","v":6},{"$f":"IF('1. Order'!BE617=\"\",\"\",'1. Order'!BE617)","v":"None"},{"$f":"IF('1. Order'!BF617=\"\",\"\",'1. Order'!BF617)","v":"Parcel"},{"$f":"IF('1. Order'!BG617=\"\",\"\",'1. Order'!BG617)","v":"ZWO"}]
[{"$f":"IF('1. Order'!F618=\"\",\"\",'1. Order'!F618)","v":""},{"$f":"IF('1. Order'!G618=\"\",\"\",'1. Order'!G618)","v":""},{"$f":"IF('1. Order'!H618=\"\",\"\",'1. Order'!H618)","v":""},{"$f":"IF('1. Order'!I618=\"\",\"\",'1. Order'!I618)","v":""},{"$f":"IF('1. Order'!J618=\"\",\"\",'1. Order'!J618)","v":""},{"$f":"IF('1. Order'!K618=\"\",\"\",'1. Order'!K618)","v":""},{"$f":"IF('1. Order'!L618=\"\",\"\",'1. Order'!L618)","v":""},{"$f":"IF('1. Order'!M618=\"\",\"\",'1. Order'!M618)","v":""},{"$f":"IF('1. Order'!N618=\"\",\"\",'1. Order'!N618)","v":""},{"$f":"IF('1. Order'!O618=\"\",\"\",'1. Order'!O618)","v":{"$error":"#N/A"}},{"$f":"IF('1. Order'!P618=\"\",\"\",'1. Order'!P618)","v":{"$error":"#N/A"}},{"$f":"IF('1. Order'!Q618=\"\",\"\",'1. Order'!Q618)","v":""},{"$f":"IF('1. Order'!R618=\"\",\"\",'1. Order'!R618)","v":""},{"$f":"IF('1. Order'!S618=\"\",\"\",'1. Order'!S618)","v":""},{"$f":"IF('1. Order'!V618=\"\",\"\",'1. Order'!V618)","v":""},{"$f":"IF('1. Order'!W618=\"\",\"\",'1. Order'!W618)","v":""},{"$f":"IF('1. Order'!X618=\"\",\"\",'1. Order'!X618)","v":"EUR"},{"$f":"IF('1. Order'!Y618=\"\",\"\",'1. Order'!Y618)","v":""},{"$f":"IF('1. Order'!Z618=\"\",\"\",'1. Order'!Z618)","v":""},{"$f":"IF('1. Order'!AA618=\"\",\"\",'1. Order'!AA618)","v":""},null,{"$f":"IF('1. Order'!AS618=\"\",\"\",'1. Order'!AS618)","v":""},{"$f":"IF('1. Order'!AT618=\"\",\"\",'1. Order'!AT618)","v":""},null,null,null,null,null,null,null,{"$f":"IF('1. Order'!AX618=\"\",\"\",'1. Order'!AX618)","v":""},{"$f":"IF('1. Order'!AY618=\"\",\"\",'1. Order'!AY618)","v":""},{"$f":"IF('1. Order'!AZ618=\"\",\"\",'1. Order'!AZ618)","v":""},{"$f":"IF('1. Order'!BA618=\"\",\"\",'1. Order'!BA618)","v":""},{"$f":"IF('1. Order'!BC618=\"\",\"\",'1. Order'!BC618)","v":""},{"$f":"IF('1. Order'!BD618=\"\",\"\",'1. Order'!BD618)","v":6},{"$f":"IF('1. Order'!BE618=\"\",\"\",'1. Order'!BE618)","v":"None"},{"$f":"IF('1. Order'!BF618=\"\",\"\",'1. Order'!BF618)","v":"Parcel"},{"$f":"IF('1. Order'!BG618=\"\",\"\",'1. Order'!BG618)","v":"ZWO"}]
[{"$f":"IF('1. Order'!F619=\"\",\"\",'1. Order'!F619)","v":""},{"$f":"IF('1. Order'!G619=\"\",\"\",'1. Order'!G619)","v":""},{"$f":"IF('1. Order'!H619=\"\",\"\",'1. Order'!H619)","v":""},{"$f":"IF('1. Order'!I619=\"\",\"\",'1. Order'!I619)","v":""},{"$f":"IF('1. Order'!J619=\"\",\"\",'1. Order'!J619)","v":""},{"$f":"IF('1. Order'!K619=\"\",\"\",'1. Order'!K619)","v":""},{"$f":"IF('1. Order'!L619=\"\",\"\",'1. Order'!L619)","v":""},{"$f":"IF('1. Order'!M619=\"\",\"\",'1. Order'!M619)","v":""},{"$f":"IF('1. Order'!N619=\"\",\"\",'1. Order'!N619)","v":""},{"$f":"IF('1. Order'!O619=\"\",\"\",'1. Order'!O619)","v":{"$error":"#N/A"}},{"$f":"IF('1. Order'!P619=\"\",\"\",'1. Order'!P619)","v":{"$error":"#N/A"}},{"$f":"IF('1. Order'!Q619=\"\",\"\",'1. Order'!Q619)","v":""},{"$f":"IF('1. Order'!R619=\"\",\"\",'1. Order'!R619)","v":""},{"$f":"IF('1. Order'!S619=\"\",\"\",'1. Order'!S619)","v":""},{"$f":"IF('1. Order'!V619=\"\",\"\",'1. Order'!V619)","v":""},{"$f":"IF('1. Order'!W619=\"\",\"\",'1. Order'!W619)","v":""},{"$f":"IF('1. Order'!X619=\"\",\"\",'1. Order'!X619)","v":"EUR"},{"$f":"IF('1. Order'!Y619=\"\",\"\",'1. Order'!Y619)","v":""},{"$f":"IF('1. Order'!Z619=\"\",\"\",'1. Order'!Z619)","v":""},{"$f":"IF('1. Order'!AA619=\"\",\"\",'1. Order'!AA619)","v":""},null,{"$f":"IF('1. Order'!AS619=\"\",\"\",'1. Order'!AS619)","v":""},{"$f":"IF('1. Order'!AT619=\"\",\"\",'1. Order'!AT619)","v":""},null,null,null,null,null,null,null,{"$f":"IF('1. Order'!AX619=\"\",\"\",'1. Order'!AX619)","v":""},{"$f":"IF('1. Order'!AY619=\"\",\"\",'1. Order'!AY619)","v":""},{"$f":"IF('1. Order'!AZ619=\"\",\"\",'1. Order'!AZ619)","v":""},{"$f":"IF('1. Order'!BA619=\"\",\"\",'1. Order'!BA619)","v":""},{"$f":"IF('1. Order'!BC619=\"\",\"\",'1. Order'!BC619)","v":""},{"$f":"IF('1. Order'!BD619=\"\",\"\",'1. Order'!BD619)","v":6},{"$f":"IF('1. Order'!BE619=\"\",\"\",'1. Order'!BE619)","v":"None"},{"$f":"IF('1. Order'!BF619=\"\",\"\",'1. Order'!BF619)","v":"Parcel"},{"$f":"IF('1. Order'!BG619=\"\",\"\",'1. Order'!BG619)","v":"ZWO"}]
[{"$f":"IF('1. Order'!F620=\"\",\"\",'1. Order'!F620)","v":""},{"$f":"IF('1. Order'!G620=\"\",\"\",'1. Order'!G620)","v":""},{"$f":"IF('1. Order'!H620=\"\",\"\",'1. Order'!H620)","v":""},{"$f":"IF('1. Order'!I620=\"\",\"\",'1. Order'!I620)","v":""},{"$f":"IF('1. Order'!J620=\"\",\"\",'1. Order'!J620)","v":""},{"$f":"IF('1. Order'!K620=\"\",\"\",'1. Order'!K620)","v":""},{"$f":"IF('1. Order'!L620=\"\",\"\",'1. Order'!L620)","v":""},{"$f":"IF('1. Order'!M620=\"\",\"\",'1. Order'!M620)","v":""},{"$f":"IF('1. Order'!N620=\"\",\"\",'1. Order'!N620)","v":""},{"$f":"IF('1. Order'!O620=\"\",\"\",'1. Order'!O620)","v":{"$error":"#N/A"}},{"$f":"IF('1. Order'!P620=\"\",\"\",'1. Order'!P620)","v":{"$error":"#N/A"}},{"$f":"IF('1. Order'!Q620=\"\",\"\",'1. Order'!Q620)","v":""},{"$f":"IF('1. Order'!R620=\"\",\"\",'1. Order'!R620)","v":""},{"$f":"IF('1. Order'!S620=\"\",\"\",'1. Order'!S620)","v":""},{"$f":"IF('1. Order'!V620=\"\",\"\",'1. Order'!V620)","v":""},{"$f":"IF('1. Order'!W620=\"\",\"\",'1. Order'!W620)","v":""},{"$f":"IF('1. Order'!X620=\"\",\"\",'1. Order'!X620)","v":"EUR"},{"$f":"IF('1. Order'!Y620=\"\",\"\",'1. Order'!Y620)","v":""},{"$f":"IF('1. Order'!Z620=\"\",\"\",'1. Order'!Z620)","v":""},{"$f":"IF('1. Order'!AA620=\"\",\"\",'1. Order'!AA620)","v":""},null,{"$f":"IF('1. Order'!AS620=\"\",\"\",'1. Order'!AS620)","v":""},{"$f":"IF('1. Order'!AT620=\"\",\"\",'1. Order'!AT620)","v":""},null,null,null,null,null,null,null,{"$f":"IF('1. Order'!AX620=\"\",\"\",'1. Order'!AX620)","v":""},{"$f":"IF('1. Order'!AY620=\"\",\"\",'1. Order'!AY620)","v":""},{"$f":"IF('1. Order'!AZ620=\"\",\"\",'1. Order'!AZ620)","v":""},{"$f":"IF('1. Order'!BA620=\"\",\"\",'1. Order'!BA620)","v":""},{"$f":"IF('1. Order'!BC620=\"\",\"\",'1. Order'!BC620)","v":""},{"$f":"IF('1. Order'!BD620=\"\",\"\",'1. Order'!BD620)","v":6},{"$f":"IF('1. Order'!BE620=\"\",\"\",'1. Order'!BE620)","v":"None"},{"$f":"IF('1. Order'!BF620=\"\",\"\",'1. Order'!BF620)","v":"Parcel"},{"$f":"IF('1. Order'!BG620=\"\",\"\",'1. Order'!BG620)","v":"ZWO"}]
[{"$f":"IF('1. Order'!F621=\"\",\"\",'1. Order'!F621)","v":""},{"$f":"IF('1. Order'!G621=\"\",\"\",'1. Order'!G621)","v":""},{"$f":"IF('1. Order'!H621=\"\",\"\",'1. Order'!H621)","v":""},{"$f":"IF('1. Order'!I621=\"\",\"\",'1. Order'!I621)","v":""},{"$f":"IF('1. Order'!J621=\"\",\"\",'1. Order'!J621)","v":""},{"$f":"IF('1. Order'!K621=\"\",\"\",'1. Order'!K621)","v":""},{"$f":"IF('1. Order'!L621=\"\",\"\",'1. Order'!L621)","v":""},{"$f":"IF('1. Order'!M621=\"\",\"\",'1. Order'!M621)","v":""},{"$f":"IF('1. Order'!N621=\"\",\"\",'1. Order'!N621)","v":""},{"$f":"IF('1. Order'!O621=\"\",\"\",'1. Order'!O621)","v":{"$error":"#N/A"}},{"$f":"IF('1. Order'!P621=\"\",\"\",'1. Order'!P621)","v":{"$error":"#N/A"}},{"$f":"IF('1. Order'!Q621=\"\",\"\",'1. Order'!Q621)","v":""},{"$f":"IF('1. Order'!R621=\"\",\"\",'1. Order'!R621)","v":""},{"$f":"IF('1. Order'!S621=\"\",\"\",'1. Order'!S621)","v":""},{"$f":"IF('1. Order'!V621=\"\",\"\",'1. Order'!V621)","v":""},{"$f":"IF('1. Order'!W621=\"\",\"\",'1. Order'!W621)","v":""},{"$f":"IF('1. Order'!X621=\"\",\"\",'1. Order'!X621)","v":"EUR"},{"$f":"IF('1. Order'!Y621=\"\",\"\",'1. Order'!Y621)","v":""},{"$f":"IF('1. Order'!Z621=\"\",\"\",'1. Order'!Z621)","v":""},{"$f":"IF('1. Order'!AA621=\"\",\"\",'1. Order'!AA621)","v":""},null,{"$f":"IF('1. Order'!AS621=\"\",\"\",'1. Order'!AS621)","v":""},{"$f":"IF('1. Order'!AT621=\"\",\"\",'1. Order'!AT621)","v":""},null,null,null,null,null,null,null,{"$f":"IF('1. Order'!AX621=\"\",\"\",'1. Order'!AX621)","v":""},{"$f":"IF('1. Order'!AY621=\"\",\"\",'1. Order'!AY621)","v":""},{"$f":"IF('1. Order'!AZ621=\"\",\"\",'1. Order'!AZ621)","v":""},{"$f":"IF('1. Order'!BA621=\"\",\"\",'1. Order'!BA621)","v":""},{"$f":"IF('1. Order'!BC621=\"\",\"\",'1. Order'!BC621)","v":""},{"$f":"IF('1. Order'!BD621=\"\",\"\",'1. Order'!BD621)","v":6},{"$f":"IF('1. Order'!BE621=\"\",\"\",'1. Order'!BE621)","v":"None"},{"$f":"IF('1. Order'!BF621=\"\",\"\",'1. Order'!BF621)","v":"Parcel"},{"$f":"IF('1. Order'!BG621=\"\",\"\",'1. Order'!BG621)","v":"ZWO"}]
[{"$f":"IF('1. Order'!F622=\"\",\"\",'1. Order'!F622)","v":""},{"$f":"IF('1. Order'!G622=\"\",\"\",'1. Order'!G622)","v":""},{"$f":"IF('1. Order'!H622=\"\",\"\",'1. Order'!H622)","v":""},{"$f":"IF('1. Order'!I622=\"\",\"\",'1. Order'!I622)","v":""},{"$f":"IF('1. Order'!J622=\"\",\"\",'1. Order'!J622)","v":""},{"$f":"IF('1. Order'!K622=\"\",\"\",'1. Order'!K622)","v":""},{"$f":"IF('1. Order'!L622=\"\",\"\",'1. Order'!L622)","v":""},{"$f":"IF('1. Order'!M622=\"\",\"\",'1. Order'!M622)","v":""},{"$f":"IF('1. Order'!N622=\"\",\"\",'1. Order'!N622)","v":""},{"$f":"IF('1. Order'!O622=\"\",\"\",'1. Order'!O622)","v":{"$error":"#N/A"}},{"$f":"IF('1. Order'!P622=\"\",\"\",'1. Order'!P622)","v":{"$error":"#N/A"}},{"$f":"IF('1. Order'!Q622=\"\",\"\",'1. Order'!Q622)","v":""},{"$f":"IF('1. Order'!R622=\"\",\"\",'1. Order'!R622)","v":""},{"$f":"IF('1. Order'!S622=\"\",\"\",'1. Order'!S622)","v":""},{"$f":"IF('1. Order'!V622=\"\",\"\",'1. Order'!V622)","v":""},{"$f":"IF('1. Order'!W622=\"\",\"\",'1. Order'!W622)","v":""},{"$f":"IF('1. Order'!X622=\"\",\"\",'1. Order'!X622)","v":"EUR"},{"$f":"IF('1. Order'!Y622=\"\",\"\",'1. Order'!Y622)","v":""},{"$f":"IF('1. Order'!Z622=\"\",\"\",'1. Order'!Z622)","v":""},{"$f":"IF('1. Order'!AA622=\"\",\"\",'1. Order'!AA622)","v":""},null,{"$f":"IF('1. Order'!AS622=\"\",\"\",'1. Order'!AS622)","v":""},{"$f":"IF('1. Order'!AT622=\"\",\"\",'1. Order'!AT622)","v":""},null,null,null,null,null,null,null,{"$f":"IF('1. Order'!AX622=\"\",\"\",'1. Order'!AX622)","v":""},{"$f":"IF('1. Order'!AY622=\"\",\"\",'1. Order'!AY622)","v":""},{"$f":"IF('1. Order'!AZ622=\"\",\"\",'1. Order'!AZ622)","v":""},{"$f":"IF('1. Order'!BA622=\"\",\"\",'1. Order'!BA622)","v":""},{"$f":"IF('1. Order'!BC622=\"\",\"\",'1. Order'!BC622)","v":""},{"$f":"IF('1. Order'!BD622=\"\",\"\",'1. Order'!BD622)","v":6},{"$f":"IF('1. Order'!BE622=\"\",\"\",'1. Order'!BE622)","v":"None"},{"$f":"IF('1. Order'!BF622=\"\",\"\",'1. Order'!BF622)","v":"Parcel"},{"$f":"IF('1. Order'!BG622=\"\",\"\",'1. Order'!BG622)","v":"ZWO"}]
[{"$f":"IF('1. Order'!F623=\"\",\"\",'1. Order'!F623)","v":""},{"$f":"IF('1. Order'!G623=\"\",\"\",'1. Order'!G623)","v":""},{"$f":"IF('1. Order'!H623=\"\",\"\",'1. Order'!H623)","v":""},{"$f":"IF('1. Order'!I623=\"\",\"\",'1. Order'!I623)","v":""},{"$f":"IF('1. Order'!J623=\"\",\"\",'1. Order'!J623)","v":""},{"$f":"IF('1. Order'!K623=\"\",\"\",'1. Order'!K623)","v":""},{"$f":"IF('1. Order'!L623=\"\",\"\",'1. Order'!L623)","v":""},{"$f":"IF('1. Order'!M623=\"\",\"\",'1. Order'!M623)","v":""},{"$f":"IF('1. Order'!N623=\"\",\"\",'1. Order'!N623)","v":""},{"$f":"IF('1. Order'!O623=\"\",\"\",'1. Order'!O623)","v":{"$error":"#N/A"}},{"$f":"IF('1. Order'!P623=\"\",\"\",'1. Order'!P623)","v":{"$error":"#N/A"}},{"$f":"IF('1. Order'!Q623=\"\",\"\",'1. Order'!Q623)","v":""},{"$f":"IF('1. Order'!R623=\"\",\"\",'1. Order'!R623)","v":""},{"$f":"IF('1. Order'!S623=\"\",\"\",'1. Order'!S623)","v":""},{"$f":"IF('1. Order'!V623=\"\",\"\",'1. Order'!V623)","v":""},{"$f":"IF('1. Order'!W623=\"\",\"\",'1. Order'!W623)","v":""},{"$f":"IF('1. Order'!X623=\"\",\"\",'1. Order'!X623)","v":"EUR"},{"$f":"IF('1. Order'!Y623=\"\",\"\",'1. Order'!Y623)","v":""},{"$f":"IF('1. Order'!Z623=\"\",\"\",'1. Order'!Z623)","v":""},{"$f":"IF('1. Order'!AA623=\"\",\"\",'1. Order'!AA623)","v":""},null,{"$f":"IF('1. Order'!AS623=\"\",\"\",'1. Order'!AS623)","v":""},{"$f":"IF('1. Order'!AT623=\"\",\"\",'1. Order'!AT623)","v":""},null,null,null,null,null,null,null,{"$f":"IF('1. Order'!AX623=\"\",\"\",'1. Order'!AX623)","v":""},{"$f":"IF('1. Order'!AY623=\"\",\"\",'1. Order'!AY623)","v":""},{"$f":"IF('1. Order'!AZ623=\"\",\"\",'1. Order'!AZ623)","v":""},{"$f":"IF('1. Order'!BA623=\"\",\"\",'1. Order'!BA623)","v":""},{"$f":"IF('1. Order'!BC623=\"\",\"\",'1. Order'!BC623)","v":""},{"$f":"IF('1. Order'!BD623=\"\",\"\",'1. Order'!BD623)","v":6},{"$f":"IF('1. Order'!BE623=\"\",\"\",'1. Order'!BE623)","v":"None"},{"$f":"IF('1. Order'!BF623=\"\",\"\",'1. Order'!BF623)","v":"Parcel"},{"$f":"IF('1. Order'!BG623=\"\",\"\",'1. Order'!BG623)","v":"ZWO"}]
[{"$f":"IF('1. Order'!F624=\"\",\"\",'1. Order'!F624)","v":""},{"$f":"IF('1. Order'!G624=\"\",\"\",'1. Order'!G624)","v":""},{"$f":"IF('1. Order'!H624=\"\",\"\",'1. Order'!H624)","v":""},{"$f":"IF('1. Order'!I624=\"\",\"\",'1. Order'!I624)","v":""},{"$f":"IF('1. Order'!J624=\"\",\"\",'1. Order'!J624)","v":""},{"$f":"IF('1. Order'!K624=\"\",\"\",'1. Order'!K624)","v":""},{"$f":"IF('1. Order'!L624=\"\",\"\",'1. Order'!L624)","v":""},{"$f":"IF('1. Order'!M624=\"\",\"\",'1. Order'!M624)","v":""},{"$f":"IF('1. Order'!N624=\"\",\"\",'1. Order'!N624)","v":""},{"$f":"IF('1. Order'!O624=\"\",\"\",'1. Order'!O624)","v":{"$error":"#N/A"}},{"$f":"IF('1. Order'!P624=\"\",\"\",'1. Order'!P624)","v":{"$error":"#N/A"}},{"$f":"IF('1. Order'!Q624=\"\",\"\",'1. Order'!Q624)","v":""},{"$f":"IF('1. Order'!R624=\"\",\"\",'1. Order'!R624)","v":""},{"$f":"IF('1. Order'!S624=\"\",\"\",'1. Order'!S624)","v":""},{"$f":"IF('1. Order'!V624=\"\",\"\",'1. Order'!V624)","v":""},{"$f":"IF('1. Order'!W624=\"\",\"\",'1. Order'!W624)","v":""},{"$f":"IF('1. Order'!X624=\"\",\"\",'1. Order'!X624)","v":"EUR"},{"$f":"IF('1. Order'!Y624=\"\",\"\",'1. Order'!Y624)","v":""},{"$f":"IF('1. Order'!Z624=\"\",\"\",'1. Order'!Z624)","v":""},{"$f":"IF('1. Order'!AA624=\"\",\"\",'1. Order'!AA624)","v":""},null,{"$f":"IF('1. Order'!AS624=\"\",\"\",'1. Order'!AS624)","v":""},{"$f":"IF('1. Order'!AT624=\"\",\"\",'1. Order'!AT624)","v":""},null,null,null,null,null,null,null,{"$f":"IF('1. Order'!AX624=\"\",\"\",'1. Order'!AX624)","v":""},{"$f":"IF('1. Order'!AY624=\"\",\"\",'1. Order'!AY624)","v":""},{"$f":"IF('1. Order'!AZ624=\"\",\"\",'1. Order'!AZ624)","v":""},{"$f":"IF('1. Order'!BA624=\"\",\"\",'1. Order'!BA624)","v":""},{"$f":"IF('1. Order'!BC624=\"\",\"\",'1. Order'!BC624)","v":""},{"$f":"IF('1. Order'!BD624=\"\",\"\",'1. Order'!BD624)","v":6},{"$f":"IF('1. Order'!BE624=\"\",\"\",'1. Order'!BE624)","v":"None"},{"$f":"IF('1. Order'!BF624=\"\",\"\",'1. Order'!BF624)","v":"Parcel"},{"$f":"IF('1. Order'!BG624=\"\",\"\",'1. Order'!BG624)","v":"ZWO"}]
[{"$f":"IF('1. Order'!F625=\"\",\"\",'1. Order'!F625)","v":""},{"$f":"IF('1. Order'!G625=\"\",\"\",'1. Order'!G625)","v":""},{"$f":"IF('1. Order'!H625=\"\",\"\",'1. Order'!H625)","v":""},{"$f":"IF('1. Order'!I625=\"\",\"\",'1. Order'!I625)","v":""},{"$f":"IF('1. Order'!J625=\"\",\"\",'1. Order'!J625)","v":""},{"$f":"IF('1. Order'!K625=\"\",\"\",'1. Order'!K625)","v":""},{"$f":"IF('1. Order'!L625=\"\",\"\",'1. Order'!L625)","v":""},{"$f":"IF('1. Order'!M625=\"\",\"\",'1. Order'!M625)","v":""},{"$f":"IF('1. Order'!N625=\"\",\"\",'1. Order'!N625)","v":""},{"$f":"IF('1. Order'!O625=\"\",\"\",'1. Order'!O625)","v":{"$error":"#N/A"}},{"$f":"IF('1. Order'!P625=\"\",\"\",'1. Order'!P625)","v":{"$error":"#N/A"}},{"$f":"IF('1. Order'!Q625=\"\",\"\",'1. Order'!Q625)","v":""},{"$f":"IF('1. Order'!R625=\"\",\"\",'1. Order'!R625)","v":""},{"$f":"IF('1. Order'!S625=\"\",\"\",'1. Order'!S625)","v":""},{"$f":"IF('1. Order'!V625=\"\",\"\",'1. Order'!V625)","v":""},{"$f":"IF('1. Order'!W625=\"\",\"\",'1. Order'!W625)","v":""},{"$f":"IF('1. Order'!X625=\"\",\"\",'1. Order'!X625)","v":"EUR"},{"$f":"IF('1. Order'!Y625=\"\",\"\",'1. Order'!Y625)","v":""},{"$f":"IF('1. Order'!Z625=\"\",\"\",'1. Order'!Z625)","v":""},{"$f":"IF('1. Order'!AA625=\"\",\"\",'1. Order'!AA625)","v":""},null,{"$f":"IF('1. Order'!AS625=\"\",\"\",'1. Order'!AS625)","v":""},{"$f":"IF('1. Order'!AT625=\"\",\"\",'1. Order'!AT625)","v":""},null,null,null,null,null,null,null,{"$f":"IF('1. Order'!AX625=\"\",\"\",'1. Order'!AX625)","v":""},{"$f":"IF('1. Order'!AY625=\"\",\"\",'1. Order'!AY625)","v":""},{"$f":"IF('1. Order'!AZ625=\"\",\"\",'1. Order'!AZ625)","v":""},{"$f":"IF('1. Order'!BA625=\"\",\"\",'1. Order'!BA625)","v":""},{"$f":"IF('1. Order'!BC625=\"\",\"\",'1. Order'!BC625)","v":""},{"$f":"IF('1. Order'!BD625=\"\",\"\",'1. Order'!BD625)","v":6},{"$f":"IF('1. Order'!BE625=\"\",\"\",'1. Order'!BE625)","v":"None"},{"$f":"IF('1. Order'!BF625=\"\",\"\",'1. Order'!BF625)","v":"Parcel"},{"$f":"IF('1. Order'!BG625=\"\",\"\",'1. Order'!BG625)","v":"ZWO"}]
[{"$f":"IF('1. Order'!F626=\"\",\"\",'1. Order'!F626)","v":""},{"$f":"IF('1. Order'!G626=\"\",\"\",'1. Order'!G626)","v":""},{"$f":"IF('1. Order'!H626=\"\",\"\",'1. Order'!H626)","v":""},{"$f":"IF('1. Order'!I626=\"\",\"\",'1. Order'!I626)","v":""},{"$f":"IF('1. Order'!J626=\"\",\"\",'1. Order'!J626)","v":""},{"$f":"IF('1. Order'!K626=\"\",\"\",'1. Order'!K626)","v":""},{"$f":"IF('1. Order'!L626=\"\",\"\",'1. Order'!L626)","v":""},{"$f":"IF('1. Order'!M626=\"\",\"\",'1. Order'!M626)","v":""},{"$f":"IF('1. Order'!N626=\"\",\"\",'1. Order'!N626)","v":""},{"$f":"IF('1. Order'!O626=\"\",\"\",'1. Order'!O626)","v":{"$error":"#N/A"}},{"$f":"IF('1. Order'!P626=\"\",\"\",'1. Order'!P626)","v":{"$error":"#N/A"}},{"$f":"IF('1. Order'!Q626=\"\",\"\",'1. Order'!Q626)","v":""},{"$f":"IF('1. Order'!R626=\"\",\"\",'1. Order'!R626)","v":""},{"$f":"IF('1. Order'!S626=\"\",\"\",'1. Order'!S626)","v":""},{"$f":"IF('1. Order'!V626=\"\",\"\",'1. Order'!V626)","v":""},{"$f":"IF('1. Order'!W626=\"\",\"\",'1. Order'!W626)","v":""},{"$f":"IF('1. Order'!X626=\"\",\"\",'1. Order'!X626)","v":"EUR"},{"$f":"IF('1. Order'!Y626=\"\",\"\",'1. Order'!Y626)","v":""},{"$f":"IF('1. Order'!Z626=\"\",\"\",'1. Order'!Z626)","v":""},{"$f":"IF('1. Order'!AA626=\"\",\"\",'1. Order'!AA626)","v":""},null,{"$f":"IF('1. Order'!AS626=\"\",\"\",'1. Order'!AS626)","v":""},{"$f":"IF('1. Order'!AT626=\"\",\"\",'1. Order'!AT626)","v":""},null,null,null,null,null,null,null,{"$f":"IF('1. Order'!AX626=\"\",\"\",'1. Order'!AX626)","v":""},{"$f":"IF('1. Order'!AY626=\"\",\"\",'1. Order'!AY626)","v":""},{"$f":"IF('1. Order'!AZ626=\"\",\"\",'1. Order'!AZ626)","v":""},{"$f":"IF('1. Order'!BA626=\"\",\"\",'1. Order'!BA626)","v":""},{"$f":"IF('1. Order'!BC626=\"\",\"\",'1. Order'!BC626)","v":""},{"$f":"IF('1. Order'!BD626=\"\",\"\",'1. Order'!BD626)","v":6},{"$f":"IF('1. Order'!BE626=\"\",\"\",'1. Order'!BE626)","v":"None"},{"$f":"IF('1. Order'!BF626=\"\",\"\",'1. Order'!BF626)","v":"Parcel"},{"$f":"IF('1. Order'!BG626=\"\",\"\",'1. Order'!BG626)","v":"ZWO"}]
[{"$f":"IF('1. Order'!F627=\"\",\"\",'1. Order'!F627)","v":""},{"$f":"IF('1. Order'!G627=\"\",\"\",'1. Order'!G627)","v":""},{"$f":"IF('1. Order'!H627=\"\",\"\",'1. Order'!H627)","v":""},{"$f":"IF('1. Order'!I627=\"\",\"\",'1. Order'!I627)","v":""},{"$f":"IF('1. Order'!J627=\"\",\"\",'1. Order'!J627)","v":""},{"$f":"IF('1. Order'!K627=\"\",\"\",'1. Order'!K627)","v":""},{"$f":"IF('1. Order'!L627=\"\",\"\",'1. Order'!L627)","v":""},{"$f":"IF('1. Order'!M627=\"\",\"\",'1. Order'!M627)","v":""},{"$f":"IF('1. Order'!N627=\"\",\"\",'1. Order'!N627)","v":""},{"$f":"IF('1. Order'!O627=\"\",\"\",'1. Order'!O627)","v":{"$error":"#N/A"}},{"$f":"IF('1. Order'!P627=\"\",\"\",'1. Order'!P627)","v":{"$error":"#N/A"}},{"$f":"IF('1. Order'!Q627=\"\",\"\",'1. Order'!Q627)","v":""},{"$f":"IF('1. Order'!R627=\"\",\"\",'1. Order'!R627)","v":""},{"$f":"IF('1. Order'!S627=\"\",\"\",'1. Order'!S627)","v":""},{"$f":"IF('1. Order'!V627=\"\",\"\",'1. Order'!V627)","v":""},{"$f":"IF('1. Order'!W627=\"\",\"\",'1. Order'!W627)","v":""},{"$f":"IF('1. Order'!X627=\"\",\"\",'1. Order'!X627)","v":"EUR"},{"$f":"IF('1. Order'!Y627=\"\",\"\",'1. Order'!Y627)","v":""},{"$f":"IF('1. Order'!Z627=\"\",\"\",'1. Order'!Z627)","v":""},{"$f":"IF('1. Order'!AA627=\"\",\"\",'1. Order'!AA627)","v":""},null,{"$f":"IF('1. Order'!AS627=\"\",\"\",'1. Order'!AS627)","v":""},{"$f":"IF('1. Order'!AT627=\"\",\"\",'1. Order'!AT627)","v":""},null,null,null,null,null,null,null,{"$f":"IF('1. Order'!AX627=\"\",\"\",'1. Order'!AX627)","v":""},{"$f":"IF('1. Order'!AY627=\"\",\"\",'1. Order'!AY627)","v":""},{"$f":"IF('1. Order'!AZ627=\"\",\"\",'1. Order'!AZ627)","v":""},{"$f":"IF('1. Order'!BA627=\"\",\"\",'1. Order'!BA627)","v":""},{"$f":"IF('1. Order'!BC627=\"\",\"\",'1. Order'!BC627)","v":""},{"$f":"IF('1. Order'!BD627=\"\",\"\",'1. Order'!BD627)","v":6},{"$f":"IF('1. Order'!BE627=\"\",\"\",'1. Order'!BE627)","v":"None"},{"$f":"IF('1. Order'!BF627=\"\",\"\",'1. Order'!BF627)","v":"Parcel"},{"$f":"IF('1. Order'!BG627=\"\",\"\",'1. Order'!BG627)","v":"ZWO"}]
[{"$f":"IF('1. Order'!F628=\"\",\"\",'1. Order'!F628)","v":""},{"$f":"IF('1. Order'!G628=\"\",\"\",'1. Order'!G628)","v":""},{"$f":"IF('1. Order'!H628=\"\",\"\",'1. Order'!H628)","v":""},{"$f":"IF('1. Order'!I628=\"\",\"\",'1. Order'!I628)","v":""},{"$f":"IF('1. Order'!J628=\"\",\"\",'1. Order'!J628)","v":""},{"$f":"IF('1. Order'!K628=\"\",\"\",'1. Order'!K628)","v":""},{"$f":"IF('1. Order'!L628=\"\",\"\",'1. Order'!L628)","v":""},{"$f":"IF('1. Order'!M628=\"\",\"\",'1. Order'!M628)","v":""},{"$f":"IF('1. Order'!N628=\"\",\"\",'1. Order'!N628)","v":""},{"$f":"IF('1. Order'!O628=\"\",\"\",'1. Order'!O628)","v":{"$error":"#N/A"}},{"$f":"IF('1. Order'!P628=\"\",\"\",'1. Order'!P628)","v":{"$error":"#N/A"}},{"$f":"IF('1. Order'!Q628=\"\",\"\",'1. Order'!Q628)","v":""},{"$f":"IF('1. Order'!R628=\"\",\"\",'1. Order'!R628)","v":""},{"$f":"IF('1. Order'!S628=\"\",\"\",'1. Order'!S628)","v":""},{"$f":"IF('1. Order'!V628=\"\",\"\",'1. Order'!V628)","v":""},{"$f":"IF('1. Order'!W628=\"\",\"\",'1. Order'!W628)","v":""},{"$f":"IF('1. Order'!X628=\"\",\"\",'1. Order'!X628)","v":"EUR"},{"$f":"IF('1. Order'!Y628=\"\",\"\",'1. Order'!Y628)","v":""},{"$f":"IF('1. Order'!Z628=\"\",\"\",'1. Order'!Z628)","v":""},{"$f":"IF('1. Order'!AA628=\"\",\"\",'1. Order'!AA628)","v":""},null,{"$f":"IF('1. Order'!AS628=\"\",\"\",'1. Order'!AS628)","v":""},{"$f":"IF('1. Order'!AT628=\"\",\"\",'1. Order'!AT628)","v":""},null,null,null,null,null,null,null,{"$f":"IF('1. Order'!AX628=\"\",\"\",'1. Order'!AX628)","v":""},{"$f":"IF('1. Order'!AY628=\"\",\"\",'1. Order'!AY628)","v":""},{"$f":"IF('1. Order'!AZ628=\"\",\"\",'1. Order'!AZ628)","v":""},{"$f":"IF('1. Order'!BA628=\"\",\"\",'1. Order'!BA628)","v":""},{"$f":"IF('1. Order'!BC628=\"\",\"\",'1. Order'!BC628)","v":""},{"$f":"IF('1. Order'!BD628=\"\",\"\",'1. Order'!BD628)","v":6},{"$f":"IF('1. Order'!BE628=\"\",\"\",'1. Order'!BE628)","v":"None"},{"$f":"IF('1. Order'!BF628=\"\",\"\",'1. Order'!BF628)","v":"Parcel"},{"$f":"IF('1. Order'!BG628=\"\",\"\",'1. Order'!BG628)","v":"ZWO"}]
[{"$f":"IF('1. Order'!F629=\"\",\"\",'1. Order'!F629)","v":""},{"$f":"IF('1. Order'!G629=\"\",\"\",'1. Order'!G629)","v":""},{"$f":"IF('1. Order'!H629=\"\",\"\",'1. Order'!H629)","v":""},{"$f":"IF('1. Order'!I629=\"\",\"\",'1. Order'!I629)","v":""},{"$f":"IF('1. Order'!J629=\"\",\"\",'1. Order'!J629)","v":""},{"$f":"IF('1. Order'!K629=\"\",\"\",'1. Order'!K629)","v":""},{"$f":"IF('1. Order'!L629=\"\",\"\",'1. Order'!L629)","v":""},{"$f":"IF('1. Order'!M629=\"\",\"\",'1. Order'!M629)","v":""},{"$f":"IF('1. Order'!N629=\"\",\"\",'1. Order'!N629)","v":""},{"$f":"IF('1. Order'!O629=\"\",\"\",'1. Order'!O629)","v":{"$error":"#N/A"}},{"$f":"IF('1. Order'!P629=\"\",\"\",'1. Order'!P629)","v":{"$error":"#N/A"}},{"$f":"IF('1. Order'!Q629=\"\",\"\",'1. Order'!Q629)","v":""},{"$f":"IF('1. Order'!R629=\"\",\"\",'1. Order'!R629)","v":""},{"$f":"IF('1. Order'!S629=\"\",\"\",'1. Order'!S629)","v":""},{"$f":"IF('1. Order'!V629=\"\",\"\",'1. Order'!V629)","v":""},{"$f":"IF('1. Order'!W629=\"\",\"\",'1. Order'!W629)","v":""},{"$f":"IF('1. Order'!X629=\"\",\"\",'1. Order'!X629)","v":"EUR"},{"$f":"IF('1. Order'!Y629=\"\",\"\",'1. Order'!Y629)","v":""},{"$f":"IF('1. Order'!Z629=\"\",\"\",'1. Order'!Z629)","v":""},{"$f":"IF('1. Order'!AA629=\"\",\"\",'1. Order'!AA629)","v":""},null,{"$f":"IF('1. Order'!AS629=\"\",\"\",'1. Order'!AS629)","v":""},{"$f":"IF('1. Order'!AT629=\"\",\"\",'1. Order'!AT629)","v":""},null,null,null,null,null,null,null,{"$f":"IF('1. Order'!AX629=\"\",\"\",'1. Order'!AX629)","v":""},{"$f":"IF('1. Order'!AY629=\"\",\"\",'1. Order'!AY629)","v":""},{"$f":"IF('1. Order'!AZ629=\"\",\"\",'1. Order'!AZ629)","v":""},{"$f":"IF('1. Order'!BA629=\"\",\"\",'1. Order'!BA629)","v":""},{"$f":"IF('1. Order'!BC629=\"\",\"\",'1. Order'!BC629)","v":""},{"$f":"IF('1. Order'!BD629=\"\",\"\",'1. Order'!BD629)","v":6},{"$f":"IF('1. Order'!BE629=\"\",\"\",'1. Order'!BE629)","v":"None"},{"$f":"IF('1. Order'!BF629=\"\",\"\",'1. Order'!BF629)","v":"Parcel"},{"$f":"IF('1. Order'!BG629=\"\",\"\",'1. Order'!BG629)","v":"ZWO"}]
[{"$f":"IF('1. Order'!F630=\"\",\"\",'1. Order'!F630)","v":""},{"$f":"IF('1. Order'!G630=\"\",\"\",'1. Order'!G630)","v":""},{"$f":"IF('1. Order'!H630=\"\",\"\",'1. Order'!H630)","v":""},{"$f":"IF('1. Order'!I630=\"\",\"\",'1. Order'!I630)","v":""},{"$f":"IF('1. Order'!J630=\"\",\"\",'1. Order'!J630)","v":""},{"$f":"IF('1. Order'!K630=\"\",\"\",'1. Order'!K630)","v":""},{"$f":"IF('1. Order'!L630=\"\",\"\",'1. Order'!L630)","v":""},{"$f":"IF('1. Order'!M630=\"\",\"\",'1. Order'!M630)","v":""},{"$f":"IF('1. Order'!N630=\"\",\"\",'1. Order'!N630)","v":""},{"$f":"IF('1. Order'!O630=\"\",\"\",'1. Order'!O630)","v":{"$error":"#N/A"}},{"$f":"IF('1. Order'!P630=\"\",\"\",'1. Order'!P630)","v":{"$error":"#N/A"}},{"$f":"IF('1. Order'!Q630=\"\",\"\",'1. Order'!Q630)","v":""},{"$f":"IF('1. Order'!R630=\"\",\"\",'1. Order'!R630)","v":""},{"$f":"IF('1. Order'!S630=\"\",\"\",'1. Order'!S630)","v":""},{"$f":"IF('1. Order'!V630=\"\",\"\",'1. Order'!V630)","v":""},{"$f":"IF('1. Order'!W630=\"\",\"\",'1. Order'!W630)","v":""},{"$f":"IF('1. Order'!X630=\"\",\"\",'1. Order'!X630)","v":"EUR"},{"$f":"IF('1. Order'!Y630=\"\",\"\",'1. Order'!Y630)","v":""},{"$f":"IF('1. Order'!Z630=\"\",\"\",'1. Order'!Z630)","v":""},{"$f":"IF('1. Order'!AA630=\"\",\"\",'1. Order'!AA630)","v":""},null,{"$f":"IF('1. Order'!AS630=\"\",\"\",'1. Order'!AS630)","v":""},{"$f":"IF('1. Order'!AT630=\"\",\"\",'1. Order'!AT630)","v":""},null,null,null,null,null,null,null,{"$f":"IF('1. Order'!AX630=\"\",\"\",'1. Order'!AX630)","v":""},{"$f":"IF('1. Order'!AY630=\"\",\"\",'1. Order'!AY630)","v":""},{"$f":"IF('1. Order'!AZ630=\"\",\"\",'1. Order'!AZ630)","v":""},{"$f":"IF('1. Order'!BA630=\"\",\"\",'1. Order'!BA630)","v":""},{"$f":"IF('1. Order'!BC630=\"\",\"\",'1. Order'!BC630)","v":""},{"$f":"IF('1. Order'!BD630=\"\",\"\",'1. Order'!BD630)","v":6},{"$f":"IF('1. Order'!BE630=\"\",\"\",'1. Order'!BE630)","v":"None"},{"$f":"IF('1. Order'!BF630=\"\",\"\",'1. Order'!BF630)","v":"Parcel"},{"$f":"IF('1. Order'!BG630=\"\",\"\",'1. Order'!BG630)","v":"ZWO"}]
[{"$f":"IF('1. Order'!F631=\"\",\"\",'1. Order'!F631)","v":""},{"$f":"IF('1. Order'!G631=\"\",\"\",'1. Order'!G631)","v":""},{"$f":"IF('1. Order'!H631=\"\",\"\",'1. Order'!H631)","v":""},{"$f":"IF('1. Order'!I631=\"\",\"\",'1. Order'!I631)","v":""},{"$f":"IF('1. Order'!J631=\"\",\"\",'1. Order'!J631)","v":""},{"$f":"IF('1. Order'!K631=\"\",\"\",'1. Order'!K631)","v":""},{"$f":"IF('1. Order'!L631=\"\",\"\",'1. Order'!L631)","v":""},{"$f":"IF('1. Order'!M631=\"\",\"\",'1. Order'!M631)","v":""},{"$f":"IF('1. Order'!N631=\"\",\"\",'1. Order'!N631)","v":""},{"$f":"IF('1. Order'!O631=\"\",\"\",'1. Order'!O631)","v":{"$error":"#N/A"}},{"$f":"IF('1. Order'!P631=\"\",\"\",'1. Order'!P631)","v":{"$error":"#N/A"}},{"$f":"IF('1. Order'!Q631=\"\",\"\",'1. Order'!Q631)","v":""},{"$f":"IF('1. Order'!R631=\"\",\"\",'1. Order'!R631)","v":""},{"$f":"IF('1. Order'!S631=\"\",\"\",'1. Order'!S631)","v":""},{"$f":"IF('1. Order'!V631=\"\",\"\",'1. Order'!V631)","v":""},{"$f":"IF('1. Order'!W631=\"\",\"\",'1. Order'!W631)","v":""},{"$f":"IF('1. Order'!X631=\"\",\"\",'1. Order'!X631)","v":"EUR"},{"$f":"IF('1. Order'!Y631=\"\",\"\",'1. Order'!Y631)","v":""},{"$f":"IF('1. Order'!Z631=\"\",\"\",'1. Order'!Z631)","v":""},{"$f":"IF('1. Order'!AA631=\"\",\"\",'1. Order'!AA631)","v":""},null,{"$f":"IF('1. Order'!AS631=\"\",\"\",'1. Order'!AS631)","v":""},{"$f":"IF('1. Order'!AT631=\"\",\"\",'1. Order'!AT631)","v":""},null,null,null,null,null,null,null,{"$f":"IF('1. Order'!AX631=\"\",\"\",'1. Order'!AX631)","v":""},{"$f":"IF('1. Order'!AY631=\"\",\"\",'1. Order'!AY631)","v":""},{"$f":"IF('1. Order'!AZ631=\"\",\"\",'1. Order'!AZ631)","v":""},{"$f":"IF('1. Order'!BA631=\"\",\"\",'1. Order'!BA631)","v":""},{"$f":"IF('1. Order'!BC631=\"\",\"\",'1. Order'!BC631)","v":""},{"$f":"IF('1. Order'!BD631=\"\",\"\",'1. Order'!BD631)","v":6},{"$f":"IF('1. Order'!BE631=\"\",\"\",'1. Order'!BE631)","v":"None"},{"$f":"IF('1. Order'!BF631=\"\",\"\",'1. Order'!BF631)","v":"Parcel"},{"$f":"IF('1. Order'!BG631=\"\",\"\",'1. Order'!BG631)","v":"ZWO"}]
[{"$f":"IF('1. Order'!F632=\"\",\"\",'1. Order'!F632)","v":""},{"$f":"IF('1. Order'!G632=\"\",\"\",'1. Order'!G632)","v":""},{"$f":"IF('1. Order'!H632=\"\",\"\",'1. Order'!H632)","v":""},{"$f":"IF('1. Order'!I632=\"\",\"\",'1. Order'!I632)","v":""},{"$f":"IF('1. Order'!J632=\"\",\"\",'1. Order'!J632)","v":""},{"$f":"IF('1. Order'!K632=\"\",\"\",'1. Order'!K632)","v":""},{"$f":"IF('1. Order'!L632=\"\",\"\",'1. Order'!L632)","v":""},{"$f":"IF('1. Order'!M632=\"\",\"\",'1. Order'!M632)","v":""},{"$f":"IF('1. Order'!N632=\"\",\"\",'1. Order'!N632)","v":""},{"$f":"IF('1. Order'!O632=\"\",\"\",'1. Order'!O632)","v":{"$error":"#N/A"}},{"$f":"IF('1. Order'!P632=\"\",\"\",'1. Order'!P632)","v":{"$error":"#N/A"}},{"$f":"IF('1. Order'!Q632=\"\",\"\",'1. Order'!Q632)","v":""},{"$f":"IF('1. Order'!R632=\"\",\"\",'1. Order'!R632)","v":""},{"$f":"IF('1. Order'!S632=\"\",\"\",'1. Order'!S632)","v":""},{"$f":"IF('1. Order'!V632=\"\",\"\",'1. Order'!V632)","v":""},{"$f":"IF('1. Order'!W632=\"\",\"\",'1. Order'!W632)","v":""},{"$f":"IF('1. Order'!X632=\"\",\"\",'1. Order'!X632)","v":"EUR"},{"$f":"IF('1. Order'!Y632=\"\",\"\",'1. Order'!Y632)","v":""},{"$f":"IF('1. Order'!Z632=\"\",\"\",'1. Order'!Z632)","v":""},{"$f":"IF('1. Order'!AA632=\"\",\"\",'1. Order'!AA632)","v":""},null,{"$f":"IF('1. Order'!AS632=\"\",\"\",'1. Order'!AS632)","v":""},{"$f":"IF('1. Order'!AT632=\"\",\"\",'1. Order'!AT632)","v":""},null,null,null,null,null,null,null,{"$f":"IF('1. Order'!AX632=\"\",\"\",'1. Order'!AX632)","v":""},{"$f":"IF('1. Order'!AY632=\"\",\"\",'1. Order'!AY632)","v":""},{"$f":"IF('1. Order'!AZ632=\"\",\"\",'1. Order'!AZ632)","v":""},{"$f":"IF('1. Order'!BA632=\"\",\"\",'1. Order'!BA632)","v":""},{"$f":"IF('1. Order'!BC632=\"\",\"\",'1. Order'!BC632)","v":""},{"$f":"IF('1. Order'!BD632=\"\",\"\",'1. Order'!BD632)","v":6},{"$f":"IF('1. Order'!BE632=\"\",\"\",'1. Order'!BE632)","v":"None"},{"$f":"IF('1. Order'!BF632=\"\",\"\",'1. Order'!BF632)","v":"Parcel"},{"$f":"IF('1. Order'!BG632=\"\",\"\",'1. Order'!BG632)","v":"ZWO"}]
[{"$f":"IF('1. Order'!F633=\"\",\"\",'1. Order'!F633)","v":""},{"$f":"IF('1. Order'!G633=\"\",\"\",'1. Order'!G633)","v":""},{"$f":"IF('1. Order'!H633=\"\",\"\",'1. Order'!H633)","v":""},{"$f":"IF('1. Order'!I633=\"\",\"\",'1. Order'!I633)","v":""},{"$f":"IF('1. Order'!J633=\"\",\"\",'1. Order'!J633)","v":""},{"$f":"IF('1. Order'!K633=\"\",\"\",'1. Order'!K633)","v":""},{"$f":"IF('1. Order'!L633=\"\",\"\",'1. Order'!L633)","v":""},{"$f":"IF('1. Order'!M633=\"\",\"\",'1. Order'!M633)","v":""},{"$f":"IF('1. Order'!N633=\"\",\"\",'1. Order'!N633)","v":""},{"$f":"IF('1. Order'!O633=\"\",\"\",'1. Order'!O633)","v":{"$error":"#N/A"}},{"$f":"IF('1. Order'!P633=\"\",\"\",'1. Order'!P633)","v":{"$error":"#N/A"}},{"$f":"IF('1. Order'!Q633=\"\",\"\",'1. Order'!Q633)","v":""},{"$f":"IF('1. Order'!R633=\"\",\"\",'1. Order'!R633)","v":""},{"$f":"IF('1. Order'!S633=\"\",\"\",'1. Order'!S633)","v":""},{"$f":"IF('1. Order'!V633=\"\",\"\",'1. Order'!V633)","v":""},{"$f":"IF('1. Order'!W633=\"\",\"\",'1. Order'!W633)","v":""},{"$f":"IF('1. Order'!X633=\"\",\"\",'1. Order'!X633)","v":"EUR"},{"$f":"IF('1. Order'!Y633=\"\",\"\",'1. Order'!Y633)","v":""},{"$f":"IF('1. Order'!Z633=\"\",\"\",'1. Order'!Z633)","v":""},{"$f":"IF('1. Order'!AA633=\"\",\"\",'1. Order'!AA633)","v":""},null,{"$f":"IF('1. Order'!AS633=\"\",\"\",'1. Order'!AS633)","v":""},{"$f":"IF('1. Order'!AT633=\"\",\"\",'1. Order'!AT633)","v":""},null,null,null,null,null,null,null,{"$f":"IF('1. Order'!AX633=\"\",\"\",'1. Order'!AX633)","v":""},{"$f":"IF('1. Order'!AY633=\"\",\"\",'1. Order'!AY633)","v":""},{"$f":"IF('1. Order'!AZ633=\"\",\"\",'1. Order'!AZ633)","v":""},{"$f":"IF('1. Order'!BA633=\"\",\"\",'1. Order'!BA633)","v":""},{"$f":"IF('1. Order'!BC633=\"\",\"\",'1. Order'!BC633)","v":""},{"$f":"IF('1. Order'!BD633=\"\",\"\",'1. Order'!BD633)","v":6},{"$f":"IF('1. Order'!BE633=\"\",\"\",'1. Order'!BE633)","v":"None"},{"$f":"IF('1. Order'!BF633=\"\",\"\",'1. Order'!BF633)","v":"Parcel"},{"$f":"IF('1. Order'!BG633=\"\",\"\",'1. Order'!BG633)","v":"ZWO"}]
[{"$f":"IF('1. Order'!F634=\"\",\"\",'1. Order'!F634)","v":""},{"$f":"IF('1. Order'!G634=\"\",\"\",'1. Order'!G634)","v":""},{"$f":"IF('1. Order'!H634=\"\",\"\",'1. Order'!H634)","v":""},{"$f":"IF('1. Order'!I634=\"\",\"\",'1. Order'!I634)","v":""},{"$f":"IF('1. Order'!J634=\"\",\"\",'1. Order'!J634)","v":""},{"$f":"IF('1. Order'!K634=\"\",\"\",'1. Order'!K634)","v":""},{"$f":"IF('1. Order'!L634=\"\",\"\",'1. Order'!L634)","v":""},{"$f":"IF('1. Order'!M634=\"\",\"\",'1. Order'!M634)","v":""},{"$f":"IF('1. Order'!N634=\"\",\"\",'1. Order'!N634)","v":""},{"$f":"IF('1. Order'!O634=\"\",\"\",'1. Order'!O634)","v":{"$error":"#N/A"}},{"$f":"IF('1. Order'!P634=\"\",\"\",'1. Order'!P634)","v":{"$error":"#N/A"}},{"$f":"IF('1. Order'!Q634=\"\",\"\",'1. Order'!Q634)","v":""},{"$f":"IF('1. Order'!R634=\"\",\"\",'1. Order'!R634)","v":""},{"$f":"IF('1. Order'!S634=\"\",\"\",'1. Order'!S634)","v":""},{"$f":"IF('1. Order'!V634=\"\",\"\",'1. Order'!V634)","v":""},{"$f":"IF('1. Order'!W634=\"\",\"\",'1. Order'!W634)","v":""},{"$f":"IF('1. Order'!X634=\"\",\"\",'1. Order'!X634)","v":"EUR"},{"$f":"IF('1. Order'!Y634=\"\",\"\",'1. Order'!Y634)","v":""},{"$f":"IF('1. Order'!Z634=\"\",\"\",'1. Order'!Z634)","v":""},{"$f":"IF('1. Order'!AA634=\"\",\"\",'1. Order'!AA634)","v":""},null,{"$f":"IF('1. Order'!AS634=\"\",\"\",'1. Order'!AS634)","v":""},{"$f":"IF('1. Order'!AT634=\"\",\"\",'1. Order'!AT634)","v":""},null,null,null,null,null,null,null,{"$f":"IF('1. Order'!AX634=\"\",\"\",'1. Order'!AX634)","v":""},{"$f":"IF('1. Order'!AY634=\"\",\"\",'1. Order'!AY634)","v":""},{"$f":"IF('1. Order'!AZ634=\"\",\"\",'1. Order'!AZ634)","v":""},{"$f":"IF('1. Order'!BA634=\"\",\"\",'1. Order'!BA634)","v":""},{"$f":"IF('1. Order'!BC634=\"\",\"\",'1. Order'!BC634)","v":""},{"$f":"IF('1. Order'!BD634=\"\",\"\",'1. Order'!BD634)","v":6},{"$f":"IF('1. Order'!BE634=\"\",\"\",'1. Order'!BE634)","v":"None"},{"$f":"IF('1. Order'!BF634=\"\",\"\",'1. Order'!BF634)","v":"Parcel"},{"$f":"IF('1. Order'!BG634=\"\",\"\",'1. Order'!BG634)","v":"ZWO"}]
[{"$f":"IF('1. Order'!F635=\"\",\"\",'1. Order'!F635)","v":""},{"$f":"IF('1. Order'!G635=\"\",\"\",'1. Order'!G635)","v":""},{"$f":"IF('1. Order'!H635=\"\",\"\",'1. Order'!H635)","v":""},{"$f":"IF('1. Order'!I635=\"\",\"\",'1. Order'!I635)","v":""},{"$f":"IF('1. Order'!J635=\"\",\"\",'1. Order'!J635)","v":""},{"$f":"IF('1. Order'!K635=\"\",\"\",'1. Order'!K635)","v":""},{"$f":"IF('1. Order'!L635=\"\",\"\",'1. Order'!L635)","v":""},{"$f":"IF('1. Order'!M635=\"\",\"\",'1. Order'!M635)","v":""},{"$f":"IF('1. Order'!N635=\"\",\"\",'1. Order'!N635)","v":""},{"$f":"IF('1. Order'!O635=\"\",\"\",'1. Order'!O635)","v":{"$error":"#N/A"}},{"$f":"IF('1. Order'!P635=\"\",\"\",'1. Order'!P635)","v":{"$error":"#N/A"}},{"$f":"IF('1. Order'!Q635=\"\",\"\",'1. Order'!Q635)","v":""},{"$f":"IF('1. Order'!R635=\"\",\"\",'1. Order'!R635)","v":""},{"$f":"IF('1. Order'!S635=\"\",\"\",'1. Order'!S635)","v":""},{"$f":"IF('1. Order'!V635=\"\",\"\",'1. Order'!V635)","v":""},{"$f":"IF('1. Order'!W635=\"\",\"\",'1. Order'!W635)","v":""},{"$f":"IF('1. Order'!X635=\"\",\"\",'1. Order'!X635)","v":"EUR"},{"$f":"IF('1. Order'!Y635=\"\",\"\",'1. Order'!Y635)","v":""},{"$f":"IF('1. Order'!Z635=\"\",\"\",'1. Order'!Z635)","v":""},{"$f":"IF('1. Order'!AA635=\"\",\"\",'1. Order'!AA635)","v":""},null,{"$f":"IF('1. Order'!AS635=\"\",\"\",'1. Order'!AS635)","v":""},{"$f":"IF('1. Order'!AT635=\"\",\"\",'1. Order'!AT635)","v":""},null,null,null,null,null,null,null,{"$f":"IF('1. Order'!AX635=\"\",\"\",'1. Order'!AX635)","v":""},{"$f":"IF('1. Order'!AY635=\"\",\"\",'1. Order'!AY635)","v":""},{"$f":"IF('1. Order'!AZ635=\"\",\"\",'1. Order'!AZ635)","v":""},{"$f":"IF('1. Order'!BA635=\"\",\"\",'1. Order'!BA635)","v":""},{"$f":"IF('1. Order'!BC635=\"\",\"\",'1. Order'!BC635)","v":""},{"$f":"IF('1. Order'!BD635=\"\",\"\",'1. Order'!BD635)","v":6},{"$f":"IF('1. Order'!BE635=\"\",\"\",'1. Order'!BE635)","v":"None"},{"$f":"IF('1. Order'!BF635=\"\",\"\",'1. Order'!BF635)","v":"Parcel"},{"$f":"IF('1. Order'!BG635=\"\",\"\",'1. Order'!BG635)","v":"ZWO"}]
[{"$f":"IF('1. Order'!F636=\"\",\"\",'1. Order'!F636)","v":""},{"$f":"IF('1. Order'!G636=\"\",\"\",'1. Order'!G636)","v":""},{"$f":"IF('1. Order'!H636=\"\",\"\",'1. Order'!H636)","v":""},{"$f":"IF('1. Order'!I636=\"\",\"\",'1. Order'!I636)","v":""},{"$f":"IF('1. Order'!J636=\"\",\"\",'1. Order'!J636)","v":""},{"$f":"IF('1. Order'!K636=\"\",\"\",'1. Order'!K636)","v":""},{"$f":"IF('1. Order'!L636=\"\",\"\",'1. Order'!L636)","v":""},{"$f":"IF('1. Order'!M636=\"\",\"\",'1. Order'!M636)","v":""},{"$f":"IF('1. Order'!N636=\"\",\"\",'1. Order'!N636)","v":""},{"$f":"IF('1. Order'!O636=\"\",\"\",'1. Order'!O636)","v":{"$error":"#N/A"}},{"$f":"IF('1. Order'!P636=\"\",\"\",'1. Order'!P636)","v":{"$error":"#N/A"}},{"$f":"IF('1. Order'!Q636=\"\",\"\",'1. Order'!Q636)","v":""},{"$f":"IF('1. Order'!R636=\"\",\"\",'1. Order'!R636)","v":""},{"$f":"IF('1. Order'!S636=\"\",\"\",'1. Order'!S636)","v":""},{"$f":"IF('1. Order'!V636=\"\",\"\",'1. Order'!V636)","v":""},{"$f":"IF('1. Order'!W636=\"\",\"\",'1. Order'!W636)","v":""},{"$f":"IF('1. Order'!X636=\"\",\"\",'1. Order'!X636)","v":"EUR"},{"$f":"IF('1. Order'!Y636=\"\",\"\",'1. Order'!Y636)","v":""},{"$f":"IF('1. Order'!Z636=\"\",\"\",'1. Order'!Z636)","v":""},{"$f":"IF('1. Order'!AA636=\"\",\"\",'1. Order'!AA636)","v":""},null,{"$f":"IF('1. Order'!AS636=\"\",\"\",'1. Order'!AS636)","v":""},{"$f":"IF('1. Order'!AT636=\"\",\"\",'1. Order'!AT636)","v":""},null,null,null,null,null,null,null,{"$f":"IF('1. Order'!AX636=\"\",\"\",'1. Order'!AX636)","v":""},{"$f":"IF('1. Order'!AY636=\"\",\"\",'1. Order'!AY636)","v":""},{"$f":"IF('1. Order'!AZ636=\"\",\"\",'1. Order'!AZ636)","v":""},{"$f":"IF('1. Order'!BA636=\"\",\"\",'1. Order'!BA636)","v":""},{"$f":"IF('1. Order'!BC636=\"\",\"\",'1. Order'!BC636)","v":""},{"$f":"IF('1. Order'!BD636=\"\",\"\",'1. Order'!BD636)","v":6},{"$f":"IF('1. Order'!BE636=\"\",\"\",'1. Order'!BE636)","v":"None"},{"$f":"IF('1. Order'!BF636=\"\",\"\",'1. Order'!BF636)","v":"Parcel"},{"$f":"IF('1. Order'!BG636=\"\",\"\",'1. Order'!BG636)","v":"ZWO"}]
[{"$f":"IF('1. Order'!F637=\"\",\"\",'1. Order'!F637)","v":""},{"$f":"IF('1. Order'!G637=\"\",\"\",'1. Order'!G637)","v":""},{"$f":"IF('1. Order'!H637=\"\",\"\",'1. Order'!H637)","v":""},{"$f":"IF('1. Order'!I637=\"\",\"\",'1. Order'!I637)","v":""},{"$f":"IF('1. Order'!J637=\"\",\"\",'1. Order'!J637)","v":""},{"$f":"IF('1. Order'!K637=\"\",\"\",'1. Order'!K637)","v":""},{"$f":"IF('1. Order'!L637=\"\",\"\",'1. Order'!L637)","v":""},{"$f":"IF('1. Order'!M637=\"\",\"\",'1. Order'!M637)","v":""},{"$f":"IF('1. Order'!N637=\"\",\"\",'1. Order'!N637)","v":""},{"$f":"IF('1. Order'!O637=\"\",\"\",'1. Order'!O637)","v":{"$error":"#N/A"}},{"$f":"IF('1. Order'!P637=\"\",\"\",'1. Order'!P637)","v":{"$error":"#N/A"}},{"$f":"IF('1. Order'!Q637=\"\",\"\",'1. Order'!Q637)","v":""},{"$f":"IF('1. Order'!R637=\"\",\"\",'1. Order'!R637)","v":""},{"$f":"IF('1. Order'!S637=\"\",\"\",'1. Order'!S637)","v":""},{"$f":"IF('1. Order'!V637=\"\",\"\",'1. Order'!V637)","v":""},{"$f":"IF('1. Order'!W637=\"\",\"\",'1. Order'!W637)","v":""},{"$f":"IF('1. Order'!X637=\"\",\"\",'1. Order'!X637)","v":"EUR"},{"$f":"IF('1. Order'!Y637=\"\",\"\",'1. Order'!Y637)","v":""},{"$f":"IF('1. Order'!Z637=\"\",\"\",'1. Order'!Z637)","v":""},{"$f":"IF('1. Order'!AA637=\"\",\"\",'1. Order'!AA637)","v":""},null,{"$f":"IF('1. Order'!AS637=\"\",\"\",'1. Order'!AS637)","v":""},{"$f":"IF('1. Order'!AT637=\"\",\"\",'1. Order'!AT637)","v":""},null,null,null,null,null,null,null,{"$f":"IF('1. Order'!AX637=\"\",\"\",'1. Order'!AX637)","v":""},{"$f":"IF('1. Order'!AY637=\"\",\"\",'1. Order'!AY637)","v":""},{"$f":"IF('1. Order'!AZ637=\"\",\"\",'1. Order'!AZ637)","v":""},{"$f":"IF('1. Order'!BA637=\"\",\"\",'1. Order'!BA637)","v":""},{"$f":"IF('1. Order'!BC637=\"\",\"\",'1. Order'!BC637)","v":""},{"$f":"IF('1. Order'!BD637=\"\",\"\",'1. Order'!BD637)","v":6},{"$f":"IF('1. Order'!BE637=\"\",\"\",'1. Order'!BE637)","v":"None"},{"$f":"IF('1. Order'!BF637=\"\",\"\",'1. Order'!BF637)","v":"Parcel"},{"$f":"IF('1. Order'!BG637=\"\",\"\",'1. Order'!BG637)","v":"ZWO"}]
[{"$f":"IF('1. Order'!F638=\"\",\"\",'1. Order'!F638)","v":""},{"$f":"IF('1. Order'!G638=\"\",\"\",'1. Order'!G638)","v":""},{"$f":"IF('1. Order'!H638=\"\",\"\",'1. Order'!H638)","v":""},{"$f":"IF('1. Order'!I638=\"\",\"\",'1. Order'!I638)","v":""},{"$f":"IF('1. Order'!J638=\"\",\"\",'1. Order'!J638)","v":""},{"$f":"IF('1. Order'!K638=\"\",\"\",'1. Order'!K638)","v":""},{"$f":"IF('1. Order'!L638=\"\",\"\",'1. Order'!L638)","v":""},{"$f":"IF('1. Order'!M638=\"\",\"\",'1. Order'!M638)","v":""},{"$f":"IF('1. Order'!N638=\"\",\"\",'1. Order'!N638)","v":""},{"$f":"IF('1. Order'!O638=\"\",\"\",'1. Order'!O638)","v":{"$error":"#N/A"}},{"$f":"IF('1. Order'!P638=\"\",\"\",'1. Order'!P638)","v":{"$error":"#N/A"}},{"$f":"IF('1. Order'!Q638=\"\",\"\",'1. Order'!Q638)","v":""},{"$f":"IF('1. Order'!R638=\"\",\"\",'1. Order'!R638)","v":""},{"$f":"IF('1. Order'!S638=\"\",\"\",'1. Order'!S638)","v":""},{"$f":"IF('1. Order'!V638=\"\",\"\",'1. Order'!V638)","v":""},{"$f":"IF('1. Order'!W638=\"\",\"\",'1. Order'!W638)","v":""},{"$f":"IF('1. Order'!X638=\"\",\"\",'1. Order'!X638)","v":"EUR"},{"$f":"IF('1. Order'!Y638=\"\",\"\",'1. Order'!Y638)","v":""},{"$f":"IF('1. Order'!Z638=\"\",\"\",'1. Order'!Z638)","v":""},{"$f":"IF('1. Order'!AA638=\"\",\"\",'1. Order'!AA638)","v":""},null,{"$f":"IF('1. Order'!AS638=\"\",\"\",'1. Order'!AS638)","v":""},{"$f":"IF('1. Order'!AT638=\"\",\"\",'1. Order'!AT638)","v":""},null,null,null,null,null,null,null,{"$f":"IF('1. Order'!AX638=\"\",\"\",'1. Order'!AX638)","v":""},{"$f":"IF('1. Order'!AY638=\"\",\"\",'1. Order'!AY638)","v":""},{"$f":"IF('1. Order'!AZ638=\"\",\"\",'1. Order'!AZ638)","v":""},{"$f":"IF('1. Order'!BA638=\"\",\"\",'1. Order'!BA638)","v":""},{"$f":"IF('1. Order'!BC638=\"\",\"\",'1. Order'!BC638)","v":""},{"$f":"IF('1. Order'!BD638=\"\",\"\",'1. Order'!BD638)","v":6},{"$f":"IF('1. Order'!BE638=\"\",\"\",'1. Order'!BE638)","v":"None"},{"$f":"IF('1. Order'!BF638=\"\",\"\",'1. Order'!BF638)","v":"Parcel"},{"$f":"IF('1. Order'!BG638=\"\",\"\",'1. Order'!BG638)","v":"ZWO"}]
[{"$f":"IF('1. Order'!F639=\"\",\"\",'1. Order'!F639)","v":""},{"$f":"IF('1. Order'!G639=\"\",\"\",'1. Order'!G639)","v":""},{"$f":"IF('1. Order'!H639=\"\",\"\",'1. Order'!H639)","v":""},{"$f":"IF('1. Order'!I639=\"\",\"\",'1. Order'!I639)","v":""},{"$f":"IF('1. Order'!J639=\"\",\"\",'1. Order'!J639)","v":""},{"$f":"IF('1. Order'!K639=\"\",\"\",'1. Order'!K639)","v":""},{"$f":"IF('1. Order'!L639=\"\",\"\",'1. Order'!L639)","v":""},{"$f":"IF('1. Order'!M639=\"\",\"\",'1. Order'!M639)","v":""},{"$f":"IF('1. Order'!N639=\"\",\"\",'1. Order'!N639)","v":""},{"$f":"IF('1. Order'!O639=\"\",\"\",'1. Order'!O639)","v":{"$error":"#N/A"}},{"$f":"IF('1. Order'!P639=\"\",\"\",'1. Order'!P639)","v":{"$error":"#N/A"}},{"$f":"IF('1. Order'!Q639=\"\",\"\",'1. Order'!Q639)","v":""},{"$f":"IF('1. Order'!R639=\"\",\"\",'1. Order'!R639)","v":""},{"$f":"IF('1. Order'!S639=\"\",\"\",'1. Order'!S639)","v":""},{"$f":"IF('1. Order'!V639=\"\",\"\",'1. Order'!V639)","v":""},{"$f":"IF('1. Order'!W639=\"\",\"\",'1. Order'!W639)","v":""},{"$f":"IF('1. Order'!X639=\"\",\"\",'1. Order'!X639)","v":"EUR"},{"$f":"IF('1. Order'!Y639=\"\",\"\",'1. Order'!Y639)","v":""},{"$f":"IF('1. Order'!Z639=\"\",\"\",'1. Order'!Z639)","v":""},{"$f":"IF('1. Order'!AA639=\"\",\"\",'1. Order'!AA639)","v":""},null,{"$f":"IF('1. Order'!AS639=\"\",\"\",'1. Order'!AS639)","v":""},{"$f":"IF('1. Order'!AT639=\"\",\"\",'1. Order'!AT639)","v":""},null,null,null,null,null,null,null,{"$f":"IF('1. Order'!AX639=\"\",\"\",'1. Order'!AX639)","v":""},{"$f":"IF('1. Order'!AY639=\"\",\"\",'1. Order'!AY639)","v":""},{"$f":"IF('1. Order'!AZ639=\"\",\"\",'1. Order'!AZ639)","v":""},{"$f":"IF('1. Order'!BA639=\"\",\"\",'1. Order'!BA639)","v":""},{"$f":"IF('1. Order'!BC639=\"\",\"\",'1. Order'!BC639)","v":""},{"$f":"IF('1. Order'!BD639=\"\",\"\",'1. Order'!BD639)","v":6},{"$f":"IF('1. Order'!BE639=\"\",\"\",'1. Order'!BE639)","v":"None"},{"$f":"IF('1. Order'!BF639=\"\",\"\",'1. Order'!BF639)","v":"Parcel"},{"$f":"IF('1. Order'!BG639=\"\",\"\",'1. Order'!BG639)","v":"ZWO"}]
[{"$f":"IF('1. Order'!F640=\"\",\"\",'1. Order'!F640)","v":""},{"$f":"IF('1. Order'!G640=\"\",\"\",'1. Order'!G640)","v":""},{"$f":"IF('1. Order'!H640=\"\",\"\",'1. Order'!H640)","v":""},{"$f":"IF('1. Order'!I640=\"\",\"\",'1. Order'!I640)","v":""},{"$f":"IF('1. Order'!J640=\"\",\"\",'1. Order'!J640)","v":""},{"$f":"IF('1. Order'!K640=\"\",\"\",'1. Order'!K640)","v":""},{"$f":"IF('1. Order'!L640=\"\",\"\",'1. Order'!L640)","v":""},{"$f":"IF('1. Order'!M640=\"\",\"\",'1. Order'!M640)","v":""},{"$f":"IF('1. Order'!N640=\"\",\"\",'1. Order'!N640)","v":""},{"$f":"IF('1. Order'!O640=\"\",\"\",'1. Order'!O640)","v":{"$error":"#N/A"}},{"$f":"IF('1. Order'!P640=\"\",\"\",'1. Order'!P640)","v":{"$error":"#N/A"}},{"$f":"IF('1. Order'!Q640=\"\",\"\",'1. Order'!Q640)","v":""},{"$f":"IF('1. Order'!R640=\"\",\"\",'1. Order'!R640)","v":""},{"$f":"IF('1. Order'!S640=\"\",\"\",'1. Order'!S640)","v":""},{"$f":"IF('1. Order'!V640=\"\",\"\",'1. Order'!V640)","v":""},{"$f":"IF('1. Order'!W640=\"\",\"\",'1. Order'!W640)","v":""},{"$f":"IF('1. Order'!X640=\"\",\"\",'1. Order'!X640)","v":"EUR"},{"$f":"IF('1. Order'!Y640=\"\",\"\",'1. Order'!Y640)","v":""},{"$f":"IF('1. Order'!Z640=\"\",\"\",'1. Order'!Z640)","v":""},{"$f":"IF('1. Order'!AA640=\"\",\"\",'1. Order'!AA640)","v":""},null,{"$f":"IF('1. Order'!AS640=\"\",\"\",'1. Order'!AS640)","v":""},{"$f":"IF('1. Order'!AT640=\"\",\"\",'1. Order'!AT640)","v":""},null,null,null,null,null,null,null,{"$f":"IF('1. Order'!AX640=\"\",\"\",'1. Order'!AX640)","v":""},{"$f":"IF('1. Order'!AY640=\"\",\"\",'1. Order'!AY640)","v":""},{"$f":"IF('1. Order'!AZ640=\"\",\"\",'1. Order'!AZ640)","v":""},{"$f":"IF('1. Order'!BA640=\"\",\"\",'1. Order'!BA640)","v":""},{"$f":"IF('1. Order'!BC640=\"\",\"\",'1. Order'!BC640)","v":""},{"$f":"IF('1. Order'!BD640=\"\",\"\",'1. Order'!BD640)","v":6},{"$f":"IF('1. Order'!BE640=\"\",\"\",'1. Order'!BE640)","v":"None"},{"$f":"IF('1. Order'!BF640=\"\",\"\",'1. Order'!BF640)","v":"Parcel"},{"$f":"IF('1. Order'!BG640=\"\",\"\",'1. Order'!BG640)","v":"ZWO"}]
[{"$f":"IF('1. Order'!F641=\"\",\"\",'1. Order'!F641)","v":""},{"$f":"IF('1. Order'!G641=\"\",\"\",'1. Order'!G641)","v":""},{"$f":"IF('1. Order'!H641=\"\",\"\",'1. Order'!H641)","v":""},{"$f":"IF('1. Order'!I641=\"\",\"\",'1. Order'!I641)","v":""},{"$f":"IF('1. Order'!J641=\"\",\"\",'1. Order'!J641)","v":""},{"$f":"IF('1. Order'!K641=\"\",\"\",'1. Order'!K641)","v":""},{"$f":"IF('1. Order'!L641=\"\",\"\",'1. Order'!L641)","v":""},{"$f":"IF('1. Order'!M641=\"\",\"\",'1. Order'!M641)","v":""},{"$f":"IF('1. Order'!N641=\"\",\"\",'1. Order'!N641)","v":""},{"$f":"IF('1. Order'!O641=\"\",\"\",'1. Order'!O641)","v":{"$error":"#N/A"}},{"$f":"IF('1. Order'!P641=\"\",\"\",'1. Order'!P641)","v":{"$error":"#N/A"}},{"$f":"IF('1. Order'!Q641=\"\",\"\",'1. Order'!Q641)","v":""},{"$f":"IF('1. Order'!R641=\"\",\"\",'1. Order'!R641)","v":""},{"$f":"IF('1. Order'!S641=\"\",\"\",'1. Order'!S641)","v":""},{"$f":"IF('1. Order'!V641=\"\",\"\",'1. Order'!V641)","v":""},{"$f":"IF('1. Order'!W641=\"\",\"\",'1. Order'!W641)","v":""},{"$f":"IF('1. Order'!X641=\"\",\"\",'1. Order'!X641)","v":"EUR"},{"$f":"IF('1. Order'!Y641=\"\",\"\",'1. Order'!Y641)","v":""},{"$f":"IF('1. Order'!Z641=\"\",\"\",'1. Order'!Z641)","v":""},{"$f":"IF('1. Order'!AA641=\"\",\"\",'1. Order'!AA641)","v":""},null,{"$f":"IF('1. Order'!AS641=\"\",\"\",'1. Order'!AS641)","v":""},{"$f":"IF('1. Order'!AT641=\"\",\"\",'1. Order'!AT641)","v":""},null,null,null,null,null,null,null,{"$f":"IF('1. Order'!AX641=\"\",\"\",'1. Order'!AX641)","v":""},{"$f":"IF('1. Order'!AY641=\"\",\"\",'1. Order'!AY641)","v":""},{"$f":"IF('1. Order'!AZ641=\"\",\"\",'1. Order'!AZ641)","v":""},{"$f":"IF('1. Order'!BA641=\"\",\"\",'1. Order'!BA641)","v":""},{"$f":"IF('1. Order'!BC641=\"\",\"\",'1. Order'!BC641)","v":""},{"$f":"IF('1. Order'!BD641=\"\",\"\",'1. Order'!BD641)","v":6},{"$f":"IF('1. Order'!BE641=\"\",\"\",'1. Order'!BE641)","v":"None"},{"$f":"IF('1. Order'!BF641=\"\",\"\",'1. Order'!BF641)","v":"Parcel"},{"$f":"IF('1. Order'!BG641=\"\",\"\",'1. Order'!BG641)","v":"ZWO"}]
[{"$f":"IF('1. Order'!F642=\"\",\"\",'1. Order'!F642)","v":""},{"$f":"IF('1. Order'!G642=\"\",\"\",'1. Order'!G642)","v":""},{"$f":"IF('1. Order'!H642=\"\",\"\",'1. Order'!H642)","v":""},{"$f":"IF('1. Order'!I642=\"\",\"\",'1. Order'!I642)","v":""},{"$f":"IF('1. Order'!J642=\"\",\"\",'1. Order'!J642)","v":""},{"$f":"IF('1. Order'!K642=\"\",\"\",'1. Order'!K642)","v":""},{"$f":"IF('1. Order'!L642=\"\",\"\",'1. Order'!L642)","v":""},{"$f":"IF('1. Order'!M642=\"\",\"\",'1. Order'!M642)","v":""},{"$f":"IF('1. Order'!N642=\"\",\"\",'1. Order'!N642)","v":""},{"$f":"IF('1. Order'!O642=\"\",\"\",'1. Order'!O642)","v":{"$error":"#N/A"}},{"$f":"IF('1. Order'!P642=\"\",\"\",'1. Order'!P642)","v":{"$error":"#N/A"}},{"$f":"IF('1. Order'!Q642=\"\",\"\",'1. Order'!Q642)","v":""},{"$f":"IF('1. Order'!R642=\"\",\"\",'1. Order'!R642)","v":""},{"$f":"IF('1. Order'!S642=\"\",\"\",'1. Order'!S642)","v":""},{"$f":"IF('1. Order'!V642=\"\",\"\",'1. Order'!V642)","v":""},{"$f":"IF('1. Order'!W642=\"\",\"\",'1. Order'!W642)","v":""},{"$f":"IF('1. Order'!X642=\"\",\"\",'1. Order'!X642)","v":"EUR"},{"$f":"IF('1. Order'!Y642=\"\",\"\",'1. Order'!Y642)","v":""},{"$f":"IF('1. Order'!Z642=\"\",\"\",'1. Order'!Z642)","v":""},{"$f":"IF('1. Order'!AA642=\"\",\"\",'1. Order'!AA642)","v":""},null,{"$f":"IF('1. Order'!AS642=\"\",\"\",'1. Order'!AS642)","v":""},{"$f":"IF('1. Order'!AT642=\"\",\"\",'1. Order'!AT642)","v":""},null,null,null,null,null,null,null,{"$f":"IF('1. Order'!AX642=\"\",\"\",'1. Order'!AX642)","v":""},{"$f":"IF('1. Order'!AY642=\"\",\"\",'1. Order'!AY642)","v":""},{"$f":"IF('1. Order'!AZ642=\"\",\"\",'1. Order'!AZ642)","v":""},{"$f":"IF('1. Order'!BA642=\"\",\"\",'1. Order'!BA642)","v":""},{"$f":"IF('1. Order'!BC642=\"\",\"\",'1. Order'!BC642)","v":""},{"$f":"IF('1. Order'!BD642=\"\",\"\",'1. Order'!BD642)","v":6},{"$f":"IF('1. Order'!BE642=\"\",\"\",'1. Order'!BE642)","v":"None"},{"$f":"IF('1. Order'!BF642=\"\",\"\",'1. Order'!BF642)","v":"Parcel"},{"$f":"IF('1. Order'!BG642=\"\",\"\",'1. Order'!BG642)","v":"ZWO"}]
[{"$f":"IF('1. Order'!F643=\"\",\"\",'1. Order'!F643)","v":""},{"$f":"IF('1. Order'!G643=\"\",\"\",'1. Order'!G643)","v":""},{"$f":"IF('1. Order'!H643=\"\",\"\",'1. Order'!H643)","v":""},{"$f":"IF('1. Order'!I643=\"\",\"\",'1. Order'!I643)","v":""},{"$f":"IF('1. Order'!J643=\"\",\"\",'1. Order'!J643)","v":""},{"$f":"IF('1. Order'!K643=\"\",\"\",'1. Order'!K643)","v":""},{"$f":"IF('1. Order'!L643=\"\",\"\",'1. Order'!L643)","v":""},{"$f":"IF('1. Order'!M643=\"\",\"\",'1. Order'!M643)","v":""},{"$f":"IF('1. Order'!N643=\"\",\"\",'1. Order'!N643)","v":""},{"$f":"IF('1. Order'!O643=\"\",\"\",'1. Order'!O643)","v":{"$error":"#N/A"}},{"$f":"IF('1. Order'!P643=\"\",\"\",'1. Order'!P643)","v":{"$error":"#N/A"}},{"$f":"IF('1. Order'!Q643=\"\",\"\",'1. Order'!Q643)","v":""},{"$f":"IF('1. Order'!R643=\"\",\"\",'1. Order'!R643)","v":""},{"$f":"IF('1. Order'!S643=\"\",\"\",'1. Order'!S643)","v":""},{"$f":"IF('1. Order'!V643=\"\",\"\",'1. Order'!V643)","v":""},{"$f":"IF('1. Order'!W643=\"\",\"\",'1. Order'!W643)","v":""},{"$f":"IF('1. Order'!X643=\"\",\"\",'1. Order'!X643)","v":"EUR"},{"$f":"IF('1. Order'!Y643=\"\",\"\",'1. Order'!Y643)","v":""},{"$f":"IF('1. Order'!Z643=\"\",\"\",'1. Order'!Z643)","v":""},{"$f":"IF('1. Order'!AA643=\"\",\"\",'1. Order'!AA643)","v":""},null,{"$f":"IF('1. Order'!AS643=\"\",\"\",'1. Order'!AS643)","v":""},{"$f":"IF('1. Order'!AT643=\"\",\"\",'1. Order'!AT643)","v":""},null,null,null,null,null,null,null,{"$f":"IF('1. Order'!AX643=\"\",\"\",'1. Order'!AX643)","v":""},{"$f":"IF('1. Order'!AY643=\"\",\"\",'1. Order'!AY643)","v":""},{"$f":"IF('1. Order'!AZ643=\"\",\"\",'1. Order'!AZ643)","v":""},{"$f":"IF('1. Order'!BA643=\"\",\"\",'1. Order'!BA643)","v":""},{"$f":"IF('1. Order'!BC643=\"\",\"\",'1. Order'!BC643)","v":""},{"$f":"IF('1. Order'!BD643=\"\",\"\",'1. Order'!BD643)","v":6},{"$f":"IF('1. Order'!BE643=\"\",\"\",'1. Order'!BE643)","v":"None"},{"$f":"IF('1. Order'!BF643=\"\",\"\",'1. Order'!BF643)","v":"Parcel"},{"$f":"IF('1. Order'!BG643=\"\",\"\",'1. Order'!BG643)","v":"ZWO"}]
[{"$f":"IF('1. Order'!F644=\"\",\"\",'1. Order'!F644)","v":""},{"$f":"IF('1. Order'!G644=\"\",\"\",'1. Order'!G644)","v":""},{"$f":"IF('1. Order'!H644=\"\",\"\",'1. Order'!H644)","v":""},{"$f":"IF('1. Order'!I644=\"\",\"\",'1. Order'!I644)","v":""},{"$f":"IF('1. Order'!J644=\"\",\"\",'1. Order'!J644)","v":""},{"$f":"IF('1. Order'!K644=\"\",\"\",'1. Order'!K644)","v":""},{"$f":"IF('1. Order'!L644=\"\",\"\",'1. Order'!L644)","v":""},{"$f":"IF('1. Order'!M644=\"\",\"\",'1. Order'!M644)","v":""},{"$f":"IF('1. Order'!N644=\"\",\"\",'1. Order'!N644)","v":""},{"$f":"IF('1. Order'!O644=\"\",\"\",'1. Order'!O644)","v":{"$error":"#N/A"}},{"$f":"IF('1. Order'!P644=\"\",\"\",'1. Order'!P644)","v":{"$error":"#N/A"}},{"$f":"IF('1. Order'!Q644=\"\",\"\",'1. Order'!Q644)","v":""},{"$f":"IF('1. Order'!R644=\"\",\"\",'1. Order'!R644)","v":""},{"$f":"IF('1. Order'!S644=\"\",\"\",'1. Order'!S644)","v":""},{"$f":"IF('1. Order'!V644=\"\",\"\",'1. Order'!V644)","v":""},{"$f":"IF('1. Order'!W644=\"\",\"\",'1. Order'!W644)","v":""},{"$f":"IF('1. Order'!X644=\"\",\"\",'1. Order'!X644)","v":"EUR"},{"$f":"IF('1. Order'!Y644=\"\",\"\",'1. Order'!Y644)","v":""},{"$f":"IF('1. Order'!Z644=\"\",\"\",'1. Order'!Z644)","v":""},{"$f":"IF('1. Order'!AA644=\"\",\"\",'1. Order'!AA644)","v":""},null,{"$f":"IF('1. Order'!AS644=\"\",\"\",'1. Order'!AS644)","v":""},{"$f":"IF('1. Order'!AT644=\"\",\"\",'1. Order'!AT644)","v":""},null,null,null,null,null,null,null,{"$f":"IF('1. Order'!AX644=\"\",\"\",'1. Order'!AX644)","v":""},{"$f":"IF('1. Order'!AY644=\"\",\"\",'1. Order'!AY644)","v":""},{"$f":"IF('1. Order'!AZ644=\"\",\"\",'1. Order'!AZ644)","v":""},{"$f":"IF('1. Order'!BA644=\"\",\"\",'1. Order'!BA644)","v":""},{"$f":"IF('1. Order'!BC644=\"\",\"\",'1. Order'!BC644)","v":""},{"$f":"IF('1. Order'!BD644=\"\",\"\",'1. Order'!BD644)","v":6},{"$f":"IF('1. Order'!BE644=\"\",\"\",'1. Order'!BE644)","v":"None"},{"$f":"IF('1. Order'!BF644=\"\",\"\",'1. Order'!BF644)","v":"Parcel"},{"$f":"IF('1. Order'!BG644=\"\",\"\",'1. Order'!BG644)","v":"ZWO"}]
[{"$f":"IF('1. Order'!F645=\"\",\"\",'1. Order'!F645)","v":""},{"$f":"IF('1. Order'!G645=\"\",\"\",'1. Order'!G645)","v":""},{"$f":"IF('1. Order'!H645=\"\",\"\",'1. Order'!H645)","v":""},{"$f":"IF('1. Order'!I645=\"\",\"\",'1. Order'!I645)","v":""},{"$f":"IF('1. Order'!J645=\"\",\"\",'1. Order'!J645)","v":""},{"$f":"IF('1. Order'!K645=\"\",\"\",'1. Order'!K645)","v":""},{"$f":"IF('1. Order'!L645=\"\",\"\",'1. Order'!L645)","v":""},{"$f":"IF('1. Order'!M645=\"\",\"\",'1. Order'!M645)","v":""},{"$f":"IF('1. Order'!N645=\"\",\"\",'1. Order'!N645)","v":""},{"$f":"IF('1. Order'!O645=\"\",\"\",'1. Order'!O645)","v":{"$error":"#N/A"}},{"$f":"IF('1. Order'!P645=\"\",\"\",'1. Order'!P645)","v":{"$error":"#N/A"}},{"$f":"IF('1. Order'!Q645=\"\",\"\",'1. Order'!Q645)","v":""},{"$f":"IF('1. Order'!R645=\"\",\"\",'1. Order'!R645)","v":""},{"$f":"IF('1. Order'!S645=\"\",\"\",'1. Order'!S645)","v":""},{"$f":"IF('1. Order'!V645=\"\",\"\",'1. Order'!V645)","v":""},{"$f":"IF('1. Order'!W645=\"\",\"\",'1. Order'!W645)","v":""},{"$f":"IF('1. Order'!X645=\"\",\"\",'1. Order'!X645)","v":"EUR"},{"$f":"IF('1. Order'!Y645=\"\",\"\",'1. Order'!Y645)","v":""},{"$f":"IF('1. Order'!Z645=\"\",\"\",'1. Order'!Z645)","v":""},{"$f":"IF('1. Order'!AA645=\"\",\"\",'1. Order'!AA645)","v":""},null,{"$f":"IF('1. Order'!AS645=\"\",\"\",'1. Order'!AS645)","v":""},{"$f":"IF('1. Order'!AT645=\"\",\"\",'1. Order'!AT645)","v":""},null,null,null,null,null,null,null,{"$f":"IF('1. Order'!AX645=\"\",\"\",'1. Order'!AX645)","v":""},{"$f":"IF('1. Order'!AY645=\"\",\"\",'1. Order'!AY645)","v":""},{"$f":"IF('1. Order'!AZ645=\"\",\"\",'1. Order'!AZ645)","v":""},{"$f":"IF('1. Order'!BA645=\"\",\"\",'1. Order'!BA645)","v":""},{"$f":"IF('1. Order'!BC645=\"\",\"\",'1. Order'!BC645)","v":""},{"$f":"IF('1. Order'!BD645=\"\",\"\",'1. Order'!BD645)","v":6},{"$f":"IF('1. Order'!BE645=\"\",\"\",'1. Order'!BE645)","v":"None"},{"$f":"IF('1. Order'!BF645=\"\",\"\",'1. Order'!BF645)","v":"Parcel"},{"$f":"IF('1. Order'!BG645=\"\",\"\",'1. Order'!BG645)","v":"ZWO"}]
[{"$f":"IF('1. Order'!F646=\"\",\"\",'1. Order'!F646)","v":""},{"$f":"IF('1. Order'!G646=\"\",\"\",'1. Order'!G646)","v":""},{"$f":"IF('1. Order'!H646=\"\",\"\",'1. Order'!H646)","v":""},{"$f":"IF('1. Order'!I646=\"\",\"\",'1. Order'!I646)","v":""},{"$f":"IF('1. Order'!J646=\"\",\"\",'1. Order'!J646)","v":""},{"$f":"IF('1. Order'!K646=\"\",\"\",'1. Order'!K646)","v":""},{"$f":"IF('1. Order'!L646=\"\",\"\",'1. Order'!L646)","v":""},{"$f":"IF('1. Order'!M646=\"\",\"\",'1. Order'!M646)","v":""},{"$f":"IF('1. Order'!N646=\"\",\"\",'1. Order'!N646)","v":""},{"$f":"IF('1. Order'!O646=\"\",\"\",'1. Order'!O646)","v":{"$error":"#N/A"}},{"$f":"IF('1. Order'!P646=\"\",\"\",'1. Order'!P646)","v":{"$error":"#N/A"}},{"$f":"IF('1. Order'!Q646=\"\",\"\",'1. Order'!Q646)","v":""},{"$f":"IF('1. Order'!R646=\"\",\"\",'1. Order'!R646)","v":""},{"$f":"IF('1. Order'!S646=\"\",\"\",'1. Order'!S646)","v":""},{"$f":"IF('1. Order'!V646=\"\",\"\",'1. Order'!V646)","v":""},{"$f":"IF('1. Order'!W646=\"\",\"\",'1. Order'!W646)","v":""},{"$f":"IF('1. Order'!X646=\"\",\"\",'1. Order'!X646)","v":"EUR"},{"$f":"IF('1. Order'!Y646=\"\",\"\",'1. Order'!Y646)","v":""},{"$f":"IF('1. Order'!Z646=\"\",\"\",'1. Order'!Z646)","v":""},{"$f":"IF('1. Order'!AA646=\"\",\"\",'1. Order'!AA646)","v":""},null,{"$f":"IF('1. Order'!AS646=\"\",\"\",'1. Order'!AS646)","v":""},{"$f":"IF('1. Order'!AT646=\"\",\"\",'1. Order'!AT646)","v":""},null,null,null,null,null,null,null,{"$f":"IF('1. Order'!AX646=\"\",\"\",'1. Order'!AX646)","v":""},{"$f":"IF('1. Order'!AY646=\"\",\"\",'1. Order'!AY646)","v":""},{"$f":"IF('1. Order'!AZ646=\"\",\"\",'1. Order'!AZ646)","v":""},{"$f":"IF('1. Order'!BA646=\"\",\"\",'1. Order'!BA646)","v":""},{"$f":"IF('1. Order'!BC646=\"\",\"\",'1. Order'!BC646)","v":""},{"$f":"IF('1. Order'!BD646=\"\",\"\",'1. Order'!BD646)","v":6},{"$f":"IF('1. Order'!BE646=\"\",\"\",'1. Order'!BE646)","v":"None"},{"$f":"IF('1. Order'!BF646=\"\",\"\",'1. Order'!BF646)","v":"Parcel"},{"$f":"IF('1. Order'!BG646=\"\",\"\",'1. Order'!BG646)","v":"ZWO"}]
[{"$f":"IF('1. Order'!F647=\"\",\"\",'1. Order'!F647)","v":""},{"$f":"IF('1. Order'!G647=\"\",\"\",'1. Order'!G647)","v":""},{"$f":"IF('1. Order'!H647=\"\",\"\",'1. Order'!H647)","v":""},{"$f":"IF('1. Order'!I647=\"\",\"\",'1. Order'!I647)","v":""},{"$f":"IF('1. Order'!J647=\"\",\"\",'1. Order'!J647)","v":""},{"$f":"IF('1. Order'!K647=\"\",\"\",'1. Order'!K647)","v":""},{"$f":"IF('1. Order'!L647=\"\",\"\",'1. Order'!L647)","v":""},{"$f":"IF('1. Order'!M647=\"\",\"\",'1. Order'!M647)","v":""},{"$f":"IF('1. Order'!N647=\"\",\"\",'1. Order'!N647)","v":""},{"$f":"IF('1. Order'!O647=\"\",\"\",'1. Order'!O647)","v":{"$error":"#N/A"}},{"$f":"IF('1. Order'!P647=\"\",\"\",'1. Order'!P647)","v":{"$error":"#N/A"}},{"$f":"IF('1. Order'!Q647=\"\",\"\",'1. Order'!Q647)","v":""},{"$f":"IF('1. Order'!R647=\"\",\"\",'1. Order'!R647)","v":""},{"$f":"IF('1. Order'!S647=\"\",\"\",'1. Order'!S647)","v":""},{"$f":"IF('1. Order'!V647=\"\",\"\",'1. Order'!V647)","v":""},{"$f":"IF('1. Order'!W647=\"\",\"\",'1. Order'!W647)","v":""},{"$f":"IF('1. Order'!X647=\"\",\"\",'1. Order'!X647)","v":"EUR"},{"$f":"IF('1. Order'!Y647=\"\",\"\",'1. Order'!Y647)","v":""},{"$f":"IF('1. Order'!Z647=\"\",\"\",'1. Order'!Z647)","v":""},{"$f":"IF('1. Order'!AA647=\"\",\"\",'1. Order'!AA647)","v":""},null,{"$f":"IF('1. Order'!AS647=\"\",\"\",'1. Order'!AS647)","v":""},{"$f":"IF('1. Order'!AT647=\"\",\"\",'1. Order'!AT647)","v":""},null,null,null,null,null,null,null,{"$f":"IF('1. Order'!AX647=\"\",\"\",'1. Order'!AX647)","v":""},{"$f":"IF('1. Order'!AY647=\"\",\"\",'1. Order'!AY647)","v":""},{"$f":"IF('1. Order'!AZ647=\"\",\"\",'1. Order'!AZ647)","v":""},{"$f":"IF('1. Order'!BA647=\"\",\"\",'1. Order'!BA647)","v":""},{"$f":"IF('1. Order'!BC647=\"\",\"\",'1. Order'!BC647)","v":""},{"$f":"IF('1. Order'!BD647=\"\",\"\",'1. Order'!BD647)","v":6},{"$f":"IF('1. Order'!BE647=\"\",\"\",'1. Order'!BE647)","v":"None"},{"$f":"IF('1. Order'!BF647=\"\",\"\",'1. Order'!BF647)","v":"Parcel"},{"$f":"IF('1. Order'!BG647=\"\",\"\",'1. Order'!BG647)","v":"ZWO"}]
[{"$f":"IF('1. Order'!F648=\"\",\"\",'1. Order'!F648)","v":""},{"$f":"IF('1. Order'!G648=\"\",\"\",'1. Order'!G648)","v":""},{"$f":"IF('1. Order'!H648=\"\",\"\",'1. Order'!H648)","v":""},{"$f":"IF('1. Order'!I648=\"\",\"\",'1. Order'!I648)","v":""},{"$f":"IF('1. Order'!J648=\"\",\"\",'1. Order'!J648)","v":""},{"$f":"IF('1. Order'!K648=\"\",\"\",'1. Order'!K648)","v":""},{"$f":"IF('1. Order'!L648=\"\",\"\",'1. Order'!L648)","v":""},{"$f":"IF('1. Order'!M648=\"\",\"\",'1. Order'!M648)","v":""},{"$f":"IF('1. Order'!N648=\"\",\"\",'1. Order'!N648)","v":""},{"$f":"IF('1. Order'!O648=\"\",\"\",'1. Order'!O648)","v":{"$error":"#N/A"}},{"$f":"IF('1. Order'!P648=\"\",\"\",'1. Order'!P648)","v":{"$error":"#N/A"}},{"$f":"IF('1. Order'!Q648=\"\",\"\",'1. Order'!Q648)","v":""},{"$f":"IF('1. Order'!R648=\"\",\"\",'1. Order'!R648)","v":""},{"$f":"IF('1. Order'!S648=\"\",\"\",'1. Order'!S648)","v":""},{"$f":"IF('1. Order'!V648=\"\",\"\",'1. Order'!V648)","v":""},{"$f":"IF('1. Order'!W648=\"\",\"\",'1. Order'!W648)","v":""},{"$f":"IF('1. Order'!X648=\"\",\"\",'1. Order'!X648)","v":"EUR"},{"$f":"IF('1. Order'!Y648=\"\",\"\",'1. Order'!Y648)","v":""},{"$f":"IF('1. Order'!Z648=\"\",\"\",'1. Order'!Z648)","v":""},{"$f":"IF('1. Order'!AA648=\"\",\"\",'1. Order'!AA648)","v":""},null,{"$f":"IF('1. Order'!AS648=\"\",\"\",'1. Order'!AS648)","v":""},{"$f":"IF('1. Order'!AT648=\"\",\"\",'1. Order'!AT648)","v":""},null,null,null,null,null,null,null,{"$f":"IF('1. Order'!AX648=\"\",\"\",'1. Order'!AX648)","v":""},{"$f":"IF('1. Order'!AY648=\"\",\"\",'1. Order'!AY648)","v":""},{"$f":"IF('1. Order'!AZ648=\"\",\"\",'1. Order'!AZ648)","v":""},{"$f":"IF('1. Order'!BA648=\"\",\"\",'1. Order'!BA648)","v":""},{"$f":"IF('1. Order'!BC648=\"\",\"\",'1. Order'!BC648)","v":""},{"$f":"IF('1. Order'!BD648=\"\",\"\",'1. Order'!BD648)","v":6},{"$f":"IF('1. Order'!BE648=\"\",\"\",'1. Order'!BE648)","v":"None"},{"$f":"IF('1. Order'!BF648=\"\",\"\",'1. Order'!BF648)","v":"Parcel"},{"$f":"IF('1. Order'!BG648=\"\",\"\",'1. Order'!BG648)","v":"ZWO"}]
[{"$f":"IF('1. Order'!F649=\"\",\"\",'1. Order'!F649)","v":""},{"$f":"IF('1. Order'!G649=\"\",\"\",'1. Order'!G649)","v":""},{"$f":"IF('1. Order'!H649=\"\",\"\",'1. Order'!H649)","v":""},{"$f":"IF('1. Order'!I649=\"\",\"\",'1. Order'!I649)","v":""},{"$f":"IF('1. Order'!J649=\"\",\"\",'1. Order'!J649)","v":""},{"$f":"IF('1. Order'!K649=\"\",\"\",'1. Order'!K649)","v":""},{"$f":"IF('1. Order'!L649=\"\",\"\",'1. Order'!L649)","v":""},{"$f":"IF('1. Order'!M649=\"\",\"\",'1. Order'!M649)","v":""},{"$f":"IF('1. Order'!N649=\"\",\"\",'1. Order'!N649)","v":""},{"$f":"IF('1. Order'!O649=\"\",\"\",'1. Order'!O649)","v":{"$error":"#N/A"}},{"$f":"IF('1. Order'!P649=\"\",\"\",'1. Order'!P649)","v":{"$error":"#N/A"}},{"$f":"IF('1. Order'!Q649=\"\",\"\",'1. Order'!Q649)","v":""},{"$f":"IF('1. Order'!R649=\"\",\"\",'1. Order'!R649)","v":""},{"$f":"IF('1. Order'!S649=\"\",\"\",'1. Order'!S649)","v":""},{"$f":"IF('1. Order'!V649=\"\",\"\",'1. Order'!V649)","v":""},{"$f":"IF('1. Order'!W649=\"\",\"\",'1. Order'!W649)","v":""},{"$f":"IF('1. Order'!X649=\"\",\"\",'1. Order'!X649)","v":"EUR"},{"$f":"IF('1. Order'!Y649=\"\",\"\",'1. Order'!Y649)","v":""},{"$f":"IF('1. Order'!Z649=\"\",\"\",'1. Order'!Z649)","v":""},{"$f":"IF('1. Order'!AA649=\"\",\"\",'1. Order'!AA649)","v":""},null,{"$f":"IF('1. Order'!AS649=\"\",\"\",'1. Order'!AS649)","v":""},{"$f":"IF('1. Order'!AT649=\"\",\"\",'1. Order'!AT649)","v":""},null,null,null,null,null,null,null,{"$f":"IF('1. Order'!AX649=\"\",\"\",'1. Order'!AX649)","v":""},{"$f":"IF('1. Order'!AY649=\"\",\"\",'1. Order'!AY649)","v":""},{"$f":"IF('1. Order'!AZ649=\"\",\"\",'1. Order'!AZ649)","v":""},{"$f":"IF('1. Order'!BA649=\"\",\"\",'1. Order'!BA649)","v":""},{"$f":"IF('1. Order'!BC649=\"\",\"\",'1. Order'!BC649)","v":""},{"$f":"IF('1. Order'!BD649=\"\",\"\",'1. Order'!BD649)","v":6},{"$f":"IF('1. Order'!BE649=\"\",\"\",'1. Order'!BE649)","v":"None"},{"$f":"IF('1. Order'!BF649=\"\",\"\",'1. Order'!BF649)","v":"Parcel"},{"$f":"IF('1. Order'!BG649=\"\",\"\",'1. Order'!BG649)","v":"ZWO"}]
[{"$f":"IF('1. Order'!F650=\"\",\"\",'1. Order'!F650)","v":""},{"$f":"IF('1. Order'!G650=\"\",\"\",'1. Order'!G650)","v":""},{"$f":"IF('1. Order'!H650=\"\",\"\",'1. Order'!H650)","v":""},{"$f":"IF('1. Order'!I650=\"\",\"\",'1. Order'!I650)","v":""},{"$f":"IF('1. Order'!J650=\"\",\"\",'1. Order'!J650)","v":""},{"$f":"IF('1. Order'!K650=\"\",\"\",'1. Order'!K650)","v":""},{"$f":"IF('1. Order'!L650=\"\",\"\",'1. Order'!L650)","v":""},{"$f":"IF('1. Order'!M650=\"\",\"\",'1. Order'!M650)","v":""},{"$f":"IF('1. Order'!N650=\"\",\"\",'1. Order'!N650)","v":""},{"$f":"IF('1. Order'!O650=\"\",\"\",'1. Order'!O650)","v":{"$error":"#N/A"}},{"$f":"IF('1. Order'!P650=\"\",\"\",'1. Order'!P650)","v":{"$error":"#N/A"}},{"$f":"IF('1. Order'!Q650=\"\",\"\",'1. Order'!Q650)","v":""},{"$f":"IF('1. Order'!R650=\"\",\"\",'1. Order'!R650)","v":""},{"$f":"IF('1. Order'!S650=\"\",\"\",'1. Order'!S650)","v":""},{"$f":"IF('1. Order'!V650=\"\",\"\",'1. Order'!V650)","v":""},{"$f":"IF('1. Order'!W650=\"\",\"\",'1. Order'!W650)","v":""},{"$f":"IF('1. Order'!X650=\"\",\"\",'1. Order'!X650)","v":"EUR"},{"$f":"IF('1. Order'!Y650=\"\",\"\",'1. Order'!Y650)","v":""},{"$f":"IF('1. Order'!Z650=\"\",\"\",'1. Order'!Z650)","v":""},{"$f":"IF('1. Order'!AA650=\"\",\"\",'1. Order'!AA650)","v":""},null,{"$f":"IF('1. Order'!AS650=\"\",\"\",'1. Order'!AS650)","v":""},{"$f":"IF('1. Order'!AT650=\"\",\"\",'1. Order'!AT650)","v":""},null,null,null,null,null,null,null,{"$f":"IF('1. Order'!AX650=\"\",\"\",'1. Order'!AX650)","v":""},{"$f":"IF('1. Order'!AY650=\"\",\"\",'1. Order'!AY650)","v":""},{"$f":"IF('1. Order'!AZ650=\"\",\"\",'1. Order'!AZ650)","v":""},{"$f":"IF('1. Order'!BA650=\"\",\"\",'1. Order'!BA650)","v":""},{"$f":"IF('1. Order'!BC650=\"\",\"\",'1. Order'!BC650)","v":""},{"$f":"IF('1. Order'!BD650=\"\",\"\",'1. Order'!BD650)","v":6},{"$f":"IF('1. Order'!BE650=\"\",\"\",'1. Order'!BE650)","v":"None"},{"$f":"IF('1. Order'!BF650=\"\",\"\",'1. Order'!BF650)","v":"Parcel"},{"$f":"IF('1. Order'!BG650=\"\",\"\",'1. Order'!BG650)","v":"ZWO"}]
[{"$f":"IF('1. Order'!F651=\"\",\"\",'1. Order'!F651)","v":""},{"$f":"IF('1. Order'!G651=\"\",\"\",'1. Order'!G651)","v":""},{"$f":"IF('1. Order'!H651=\"\",\"\",'1. Order'!H651)","v":""},{"$f":"IF('1. Order'!I651=\"\",\"\",'1. Order'!I651)","v":""},{"$f":"IF('1. Order'!J651=\"\",\"\",'1. Order'!J651)","v":""},{"$f":"IF('1. Order'!K651=\"\",\"\",'1. Order'!K651)","v":""},{"$f":"IF('1. Order'!L651=\"\",\"\",'1. Order'!L651)","v":""},{"$f":"IF('1. Order'!M651=\"\",\"\",'1. Order'!M651)","v":""},{"$f":"IF('1. Order'!N651=\"\",\"\",'1. Order'!N651)","v":""},{"$f":"IF('1. Order'!O651=\"\",\"\",'1. Order'!O651)","v":{"$error":"#N/A"}},{"$f":"IF('1. Order'!P651=\"\",\"\",'1. Order'!P651)","v":{"$error":"#N/A"}},{"$f":"IF('1. Order'!Q651=\"\",\"\",'1. Order'!Q651)","v":""},{"$f":"IF('1. Order'!R651=\"\",\"\",'1. Order'!R651)","v":""},{"$f":"IF('1. Order'!S651=\"\",\"\",'1. Order'!S651)","v":""},{"$f":"IF('1. Order'!V651=\"\",\"\",'1. Order'!V651)","v":""},{"$f":"IF('1. Order'!W651=\"\",\"\",'1. Order'!W651)","v":""},{"$f":"IF('1. Order'!X651=\"\",\"\",'1. Order'!X651)","v":"EUR"},{"$f":"IF('1. Order'!Y651=\"\",\"\",'1. Order'!Y651)","v":""},{"$f":"IF('1. Order'!Z651=\"\",\"\",'1. Order'!Z651)","v":""},{"$f":"IF('1. Order'!AA651=\"\",\"\",'1. Order'!AA651)","v":""},null,{"$f":"IF('1. Order'!AS651=\"\",\"\",'1. Order'!AS651)","v":""},{"$f":"IF('1. Order'!AT651=\"\",\"\",'1. Order'!AT651)","v":""},null,null,null,null,null,null,null,{"$f":"IF('1. Order'!AX651=\"\",\"\",'1. Order'!AX651)","v":""},{"$f":"IF('1. Order'!AY651=\"\",\"\",'1. Order'!AY651)","v":""},{"$f":"IF('1. Order'!AZ651=\"\",\"\",'1. Order'!AZ651)","v":""},{"$f":"IF('1. Order'!BA651=\"\",\"\",'1. Order'!BA651)","v":""},{"$f":"IF('1. Order'!BC651=\"\",\"\",'1. Order'!BC651)","v":""},{"$f":"IF('1. Order'!BD651=\"\",\"\",'1. Order'!BD651)","v":6},{"$f":"IF('1. Order'!BE651=\"\",\"\",'1. Order'!BE651)","v":"None"},{"$f":"IF('1. Order'!BF651=\"\",\"\",'1. Order'!BF651)","v":"Parcel"},{"$f":"IF('1. Order'!BG651=\"\",\"\",'1. Order'!BG651)","v":"ZWO"}]
[{"$f":"IF('1. Order'!F652=\"\",\"\",'1. Order'!F652)","v":""},{"$f":"IF('1. Order'!G652=\"\",\"\",'1. Order'!G652)","v":""},{"$f":"IF('1. Order'!H652=\"\",\"\",'1. Order'!H652)","v":""},{"$f":"IF('1. Order'!I652=\"\",\"\",'1. Order'!I652)","v":""},{"$f":"IF('1. Order'!J652=\"\",\"\",'1. Order'!J652)","v":""},{"$f":"IF('1. Order'!K652=\"\",\"\",'1. Order'!K652)","v":""},{"$f":"IF('1. Order'!L652=\"\",\"\",'1. Order'!L652)","v":""},{"$f":"IF('1. Order'!M652=\"\",\"\",'1. Order'!M652)","v":""},{"$f":"IF('1. Order'!N652=\"\",\"\",'1. Order'!N652)","v":""},{"$f":"IF('1. Order'!O652=\"\",\"\",'1. Order'!O652)","v":{"$error":"#N/A"}},{"$f":"IF('1. Order'!P652=\"\",\"\",'1. Order'!P652)","v":{"$error":"#N/A"}},{"$f":"IF('1. Order'!Q652=\"\",\"\",'1. Order'!Q652)","v":""},{"$f":"IF('1. Order'!R652=\"\",\"\",'1. Order'!R652)","v":""},{"$f":"IF('1. Order'!S652=\"\",\"\",'1. Order'!S652)","v":""},{"$f":"IF('1. Order'!V652=\"\",\"\",'1. Order'!V652)","v":""},{"$f":"IF('1. Order'!W652=\"\",\"\",'1. Order'!W652)","v":""},{"$f":"IF('1. Order'!X652=\"\",\"\",'1. Order'!X652)","v":"EUR"},{"$f":"IF('1. Order'!Y652=\"\",\"\",'1. Order'!Y652)","v":""},{"$f":"IF('1. Order'!Z652=\"\",\"\",'1. Order'!Z652)","v":""},{"$f":"IF('1. Order'!AA652=\"\",\"\",'1. Order'!AA652)","v":""},null,{"$f":"IF('1. Order'!AS652=\"\",\"\",'1. Order'!AS652)","v":""},{"$f":"IF('1. Order'!AT652=\"\",\"\",'1. Order'!AT652)","v":""},null,null,null,null,null,null,null,{"$f":"IF('1. Order'!AX652=\"\",\"\",'1. Order'!AX652)","v":""},{"$f":"IF('1. Order'!AY652=\"\",\"\",'1. Order'!AY652)","v":""},{"$f":"IF('1. Order'!AZ652=\"\",\"\",'1. Order'!AZ652)","v":""},{"$f":"IF('1. Order'!BA652=\"\",\"\",'1. Order'!BA652)","v":""},{"$f":"IF('1. Order'!BC652=\"\",\"\",'1. Order'!BC652)","v":""},{"$f":"IF('1. Order'!BD652=\"\",\"\",'1. Order'!BD652)","v":6},{"$f":"IF('1. Order'!BE652=\"\",\"\",'1. Order'!BE652)","v":"None"},{"$f":"IF('1. Order'!BF652=\"\",\"\",'1. Order'!BF652)","v":"Parcel"},{"$f":"IF('1. Order'!BG652=\"\",\"\",'1. Order'!BG652)","v":"ZWO"}]
[{"$f":"IF('1. Order'!F653=\"\",\"\",'1. Order'!F653)","v":""},{"$f":"IF('1. Order'!G653=\"\",\"\",'1. Order'!G653)","v":""},{"$f":"IF('1. Order'!H653=\"\",\"\",'1. Order'!H653)","v":""},{"$f":"IF('1. Order'!I653=\"\",\"\",'1. Order'!I653)","v":""},{"$f":"IF('1. Order'!J653=\"\",\"\",'1. Order'!J653)","v":""},{"$f":"IF('1. Order'!K653=\"\",\"\",'1. Order'!K653)","v":""},{"$f":"IF('1. Order'!L653=\"\",\"\",'1. Order'!L653)","v":""},{"$f":"IF('1. Order'!M653=\"\",\"\",'1. Order'!M653)","v":""},{"$f":"IF('1. Order'!N653=\"\",\"\",'1. Order'!N653)","v":""},{"$f":"IF('1. Order'!O653=\"\",\"\",'1. Order'!O653)","v":{"$error":"#N/A"}},{"$f":"IF('1. Order'!P653=\"\",\"\",'1. Order'!P653)","v":{"$error":"#N/A"}},{"$f":"IF('1. Order'!Q653=\"\",\"\",'1. Order'!Q653)","v":""},{"$f":"IF('1. Order'!R653=\"\",\"\",'1. Order'!R653)","v":""},{"$f":"IF('1. Order'!S653=\"\",\"\",'1. Order'!S653)","v":""},{"$f":"IF('1. Order'!V653=\"\",\"\",'1. Order'!V653)","v":""},{"$f":"IF('1. Order'!W653=\"\",\"\",'1. Order'!W653)","v":""},{"$f":"IF('1. Order'!X653=\"\",\"\",'1. Order'!X653)","v":"EUR"},{"$f":"IF('1. Order'!Y653=\"\",\"\",'1. Order'!Y653)","v":""},{"$f":"IF('1. Order'!Z653=\"\",\"\",'1. Order'!Z653)","v":""},{"$f":"IF('1. Order'!AA653=\"\",\"\",'1. Order'!AA653)","v":""},null,{"$f":"IF('1. Order'!AS653=\"\",\"\",'1. Order'!AS653)","v":""},{"$f":"IF('1. Order'!AT653=\"\",\"\",'1. Order'!AT653)","v":""},null,null,null,null,null,null,null,{"$f":"IF('1. Order'!AX653=\"\",\"\",'1. Order'!AX653)","v":""},{"$f":"IF('1. Order'!AY653=\"\",\"\",'1. Order'!AY653)","v":""},{"$f":"IF('1. Order'!AZ653=\"\",\"\",'1. Order'!AZ653)","v":""},{"$f":"IF('1. Order'!BA653=\"\",\"\",'1. Order'!BA653)","v":""},{"$f":"IF('1. Order'!BC653=\"\",\"\",'1. Order'!BC653)","v":""},{"$f":"IF('1. Order'!BD653=\"\",\"\",'1. Order'!BD653)","v":6},{"$f":"IF('1. Order'!BE653=\"\",\"\",'1. Order'!BE653)","v":"None"},{"$f":"IF('1. Order'!BF653=\"\",\"\",'1. Order'!BF653)","v":"Parcel"},{"$f":"IF('1. Order'!BG653=\"\",\"\",'1. Order'!BG653)","v":"ZWO"}]
[{"$f":"IF('1. Order'!F654=\"\",\"\",'1. Order'!F654)","v":""},{"$f":"IF('1. Order'!G654=\"\",\"\",'1. Order'!G654)","v":""},{"$f":"IF('1. Order'!H654=\"\",\"\",'1. Order'!H654)","v":""},{"$f":"IF('1. Order'!I654=\"\",\"\",'1. Order'!I654)","v":""},{"$f":"IF('1. Order'!J654=\"\",\"\",'1. Order'!J654)","v":""},{"$f":"IF('1. Order'!K654=\"\",\"\",'1. Order'!K654)","v":""},{"$f":"IF('1. Order'!L654=\"\",\"\",'1. Order'!L654)","v":""},{"$f":"IF('1. Order'!M654=\"\",\"\",'1. Order'!M654)","v":""},{"$f":"IF('1. Order'!N654=\"\",\"\",'1. Order'!N654)","v":""},{"$f":"IF('1. Order'!O654=\"\",\"\",'1. Order'!O654)","v":{"$error":"#N/A"}},{"$f":"IF('1. Order'!P654=\"\",\"\",'1. Order'!P654)","v":{"$error":"#N/A"}},{"$f":"IF('1. Order'!Q654=\"\",\"\",'1. Order'!Q654)","v":""},{"$f":"IF('1. Order'!R654=\"\",\"\",'1. Order'!R654)","v":""},{"$f":"IF('1. Order'!S654=\"\",\"\",'1. Order'!S654)","v":""},{"$f":"IF('1. Order'!V654=\"\",\"\",'1. Order'!V654)","v":""},{"$f":"IF('1. Order'!W654=\"\",\"\",'1. Order'!W654)","v":""},{"$f":"IF('1. Order'!X654=\"\",\"\",'1. Order'!X654)","v":"EUR"},{"$f":"IF('1. Order'!Y654=\"\",\"\",'1. Order'!Y654)","v":""},{"$f":"IF('1. Order'!Z654=\"\",\"\",'1. Order'!Z654)","v":""},{"$f":"IF('1. Order'!AA654=\"\",\"\",'1. Order'!AA654)","v":""},null,{"$f":"IF('1. Order'!AS654=\"\",\"\",'1. Order'!AS654)","v":""},{"$f":"IF('1. Order'!AT654=\"\",\"\",'1. Order'!AT654)","v":""},null,null,null,null,null,null,null,{"$f":"IF('1. Order'!AX654=\"\",\"\",'1. Order'!AX654)","v":""},{"$f":"IF('1. Order'!AY654=\"\",\"\",'1. Order'!AY654)","v":""},{"$f":"IF('1. Order'!AZ654=\"\",\"\",'1. Order'!AZ654)","v":""},{"$f":"IF('1. Order'!BA654=\"\",\"\",'1. Order'!BA654)","v":""},{"$f":"IF('1. Order'!BC654=\"\",\"\",'1. Order'!BC654)","v":""},{"$f":"IF('1. Order'!BD654=\"\",\"\",'1. Order'!BD654)","v":6},{"$f":"IF('1. Order'!BE654=\"\",\"\",'1. Order'!BE654)","v":"None"},{"$f":"IF('1. Order'!BF654=\"\",\"\",'1. Order'!BF654)","v":"Parcel"},{"$f":"IF('1. Order'!BG654=\"\",\"\",'1. Order'!BG654)","v":"ZWO"}]
[{"$f":"IF('1. Order'!F655=\"\",\"\",'1. Order'!F655)","v":""},{"$f":"IF('1. Order'!G655=\"\",\"\",'1. Order'!G655)","v":""},{"$f":"IF('1. Order'!H655=\"\",\"\",'1. Order'!H655)","v":""},{"$f":"IF('1. Order'!I655=\"\",\"\",'1. Order'!I655)","v":""},{"$f":"IF('1. Order'!J655=\"\",\"\",'1. Order'!J655)","v":""},{"$f":"IF('1. Order'!K655=\"\",\"\",'1. Order'!K655)","v":""},{"$f":"IF('1. Order'!L655=\"\",\"\",'1. Order'!L655)","v":""},{"$f":"IF('1. Order'!M655=\"\",\"\",'1. Order'!M655)","v":""},{"$f":"IF('1. Order'!N655=\"\",\"\",'1. Order'!N655)","v":""},{"$f":"IF('1. Order'!O655=\"\",\"\",'1. Order'!O655)","v":{"$error":"#N/A"}},{"$f":"IF('1. Order'!P655=\"\",\"\",'1. Order'!P655)","v":{"$error":"#N/A"}},{"$f":"IF('1. Order'!Q655=\"\",\"\",'1. Order'!Q655)","v":""},{"$f":"IF('1. Order'!R655=\"\",\"\",'1. Order'!R655)","v":""},{"$f":"IF('1. Order'!S655=\"\",\"\",'1. Order'!S655)","v":""},{"$f":"IF('1. Order'!V655=\"\",\"\",'1. Order'!V655)","v":""},{"$f":"IF('1. Order'!W655=\"\",\"\",'1. Order'!W655)","v":""},{"$f":"IF('1. Order'!X655=\"\",\"\",'1. Order'!X655)","v":"EUR"},{"$f":"IF('1. Order'!Y655=\"\",\"\",'1. Order'!Y655)","v":""},{"$f":"IF('1. Order'!Z655=\"\",\"\",'1. Order'!Z655)","v":""},{"$f":"IF('1. Order'!AA655=\"\",\"\",'1. Order'!AA655)","v":""},null,{"$f":"IF('1. Order'!AS655=\"\",\"\",'1. Order'!AS655)","v":""},{"$f":"IF('1. Order'!AT655=\"\",\"\",'1. Order'!AT655)","v":""},null,null,null,null,null,null,null,{"$f":"IF('1. Order'!AX655=\"\",\"\",'1. Order'!AX655)","v":""},{"$f":"IF('1. Order'!AY655=\"\",\"\",'1. Order'!AY655)","v":""},{"$f":"IF('1. Order'!AZ655=\"\",\"\",'1. Order'!AZ655)","v":""},{"$f":"IF('1. Order'!BA655=\"\",\"\",'1. Order'!BA655)","v":""},{"$f":"IF('1. Order'!BC655=\"\",\"\",'1. Order'!BC655)","v":""},{"$f":"IF('1. Order'!BD655=\"\",\"\",'1. Order'!BD655)","v":6},{"$f":"IF('1. Order'!BE655=\"\",\"\",'1. Order'!BE655)","v":"None"},{"$f":"IF('1. Order'!BF655=\"\",\"\",'1. Order'!BF655)","v":"Parcel"},{"$f":"IF('1. Order'!BG655=\"\",\"\",'1. Order'!BG655)","v":"ZWO"}]
[{"$f":"IF('1. Order'!F656=\"\",\"\",'1. Order'!F656)","v":""},{"$f":"IF('1. Order'!G656=\"\",\"\",'1. Order'!G656)","v":""},{"$f":"IF('1. Order'!H656=\"\",\"\",'1. Order'!H656)","v":""},{"$f":"IF('1. Order'!I656=\"\",\"\",'1. Order'!I656)","v":""},{"$f":"IF('1. Order'!J656=\"\",\"\",'1. Order'!J656)","v":""},{"$f":"IF('1. Order'!K656=\"\",\"\",'1. Order'!K656)","v":""},{"$f":"IF('1. Order'!L656=\"\",\"\",'1. Order'!L656)","v":""},{"$f":"IF('1. Order'!M656=\"\",\"\",'1. Order'!M656)","v":""},{"$f":"IF('1. Order'!N656=\"\",\"\",'1. Order'!N656)","v":""},{"$f":"IF('1. Order'!O656=\"\",\"\",'1. Order'!O656)","v":{"$error":"#N/A"}},{"$f":"IF('1. Order'!P656=\"\",\"\",'1. Order'!P656)","v":{"$error":"#N/A"}},{"$f":"IF('1. Order'!Q656=\"\",\"\",'1. Order'!Q656)","v":""},{"$f":"IF('1. Order'!R656=\"\",\"\",'1. Order'!R656)","v":""},{"$f":"IF('1. Order'!S656=\"\",\"\",'1. Order'!S656)","v":""},{"$f":"IF('1. Order'!V656=\"\",\"\",'1. Order'!V656)","v":""},{"$f":"IF('1. Order'!W656=\"\",\"\",'1. Order'!W656)","v":""},{"$f":"IF('1. Order'!X656=\"\",\"\",'1. Order'!X656)","v":"EUR"},{"$f":"IF('1. Order'!Y656=\"\",\"\",'1. Order'!Y656)","v":""},{"$f":"IF('1. Order'!Z656=\"\",\"\",'1. Order'!Z656)","v":""},{"$f":"IF('1. Order'!AA656=\"\",\"\",'1. Order'!AA656)","v":""},null,{"$f":"IF('1. Order'!AS656=\"\",\"\",'1. Order'!AS656)","v":""},{"$f":"IF('1. Order'!AT656=\"\",\"\",'1. Order'!AT656)","v":""},null,null,null,null,null,null,null,{"$f":"IF('1. Order'!AX656=\"\",\"\",'1. Order'!AX656)","v":""},{"$f":"IF('1. Order'!AY656=\"\",\"\",'1. Order'!AY656)","v":""},{"$f":"IF('1. Order'!AZ656=\"\",\"\",'1. Order'!AZ656)","v":""},{"$f":"IF('1. Order'!BA656=\"\",\"\",'1. Order'!BA656)","v":""},{"$f":"IF('1. Order'!BC656=\"\",\"\",'1. Order'!BC656)","v":""},{"$f":"IF('1. Order'!BD656=\"\",\"\",'1. Order'!BD656)","v":6},{"$f":"IF('1. Order'!BE656=\"\",\"\",'1. Order'!BE656)","v":"None"},{"$f":"IF('1. Order'!BF656=\"\",\"\",'1. Order'!BF656)","v":"Parcel"},{"$f":"IF('1. Order'!BG656=\"\",\"\",'1. Order'!BG656)","v":"ZWO"}]
[{"$f":"IF('1. Order'!F657=\"\",\"\",'1. Order'!F657)","v":""},{"$f":"IF('1. Order'!G657=\"\",\"\",'1. Order'!G657)","v":""},{"$f":"IF('1. Order'!H657=\"\",\"\",'1. Order'!H657)","v":""},{"$f":"IF('1. Order'!I657=\"\",\"\",'1. Order'!I657)","v":""},{"$f":"IF('1. Order'!J657=\"\",\"\",'1. Order'!J657)","v":""},{"$f":"IF('1. Order'!K657=\"\",\"\",'1. Order'!K657)","v":""},{"$f":"IF('1. Order'!L657=\"\",\"\",'1. Order'!L657)","v":""},{"$f":"IF('1. Order'!M657=\"\",\"\",'1. Order'!M657)","v":""},{"$f":"IF('1. Order'!N657=\"\",\"\",'1. Order'!N657)","v":""},{"$f":"IF('1. Order'!O657=\"\",\"\",'1. Order'!O657)","v":{"$error":"#N/A"}},{"$f":"IF('1. Order'!P657=\"\",\"\",'1. Order'!P657)","v":{"$error":"#N/A"}},{"$f":"IF('1. Order'!Q657=\"\",\"\",'1. Order'!Q657)","v":""},{"$f":"IF('1. Order'!R657=\"\",\"\",'1. Order'!R657)","v":""},{"$f":"IF('1. Order'!S657=\"\",\"\",'1. Order'!S657)","v":""},{"$f":"IF('1. Order'!V657=\"\",\"\",'1. Order'!V657)","v":""},{"$f":"IF('1. Order'!W657=\"\",\"\",'1. Order'!W657)","v":""},{"$f":"IF('1. Order'!X657=\"\",\"\",'1. Order'!X657)","v":"EUR"},{"$f":"IF('1. Order'!Y657=\"\",\"\",'1. Order'!Y657)","v":""},{"$f":"IF('1. Order'!Z657=\"\",\"\",'1. Order'!Z657)","v":""},{"$f":"IF('1. Order'!AA657=\"\",\"\",'1. Order'!AA657)","v":""},null,{"$f":"IF('1. Order'!AS657=\"\",\"\",'1. Order'!AS657)","v":""},{"$f":"IF('1. Order'!AT657=\"\",\"\",'1. Order'!AT657)","v":""},null,null,null,null,null,null,null,{"$f":"IF('1. Order'!AX657=\"\",\"\",'1. Order'!AX657)","v":""},{"$f":"IF('1. Order'!AY657=\"\",\"\",'1. Order'!AY657)","v":""},{"$f":"IF('1. Order'!AZ657=\"\",\"\",'1. Order'!AZ657)","v":""},{"$f":"IF('1. Order'!BA657=\"\",\"\",'1. Order'!BA657)","v":""},{"$f":"IF('1. Order'!BC657=\"\",\"\",'1. Order'!BC657)","v":""},{"$f":"IF('1. Order'!BD657=\"\",\"\",'1. Order'!BD657)","v":6},{"$f":"IF('1. Order'!BE657=\"\",\"\",'1. Order'!BE657)","v":"None"},{"$f":"IF('1. Order'!BF657=\"\",\"\",'1. Order'!BF657)","v":"Parcel"},{"$f":"IF('1. Order'!BG657=\"\",\"\",'1. Order'!BG657)","v":"ZWO"}]
[{"$f":"IF('1. Order'!F658=\"\",\"\",'1. Order'!F658)","v":""},{"$f":"IF('1. Order'!G658=\"\",\"\",'1. Order'!G658)","v":""},{"$f":"IF('1. Order'!H658=\"\",\"\",'1. Order'!H658)","v":""},{"$f":"IF('1. Order'!I658=\"\",\"\",'1. Order'!I658)","v":""},{"$f":"IF('1. Order'!J658=\"\",\"\",'1. Order'!J658)","v":""},{"$f":"IF('1. Order'!K658=\"\",\"\",'1. Order'!K658)","v":""},{"$f":"IF('1. Order'!L658=\"\",\"\",'1. Order'!L658)","v":""},{"$f":"IF('1. Order'!M658=\"\",\"\",'1. Order'!M658)","v":""},{"$f":"IF('1. Order'!N658=\"\",\"\",'1. Order'!N658)","v":""},{"$f":"IF('1. Order'!O658=\"\",\"\",'1. Order'!O658)","v":{"$error":"#N/A"}},{"$f":"IF('1. Order'!P658=\"\",\"\",'1. Order'!P658)","v":{"$error":"#N/A"}},{"$f":"IF('1. Order'!Q658=\"\",\"\",'1. Order'!Q658)","v":""},{"$f":"IF('1. Order'!R658=\"\",\"\",'1. Order'!R658)","v":""},{"$f":"IF('1. Order'!S658=\"\",\"\",'1. Order'!S658)","v":""},{"$f":"IF('1. Order'!V658=\"\",\"\",'1. Order'!V658)","v":""},{"$f":"IF('1. Order'!W658=\"\",\"\",'1. Order'!W658)","v":""},{"$f":"IF('1. Order'!X658=\"\",\"\",'1. Order'!X658)","v":"EUR"},{"$f":"IF('1. Order'!Y658=\"\",\"\",'1. Order'!Y658)","v":""},{"$f":"IF('1. Order'!Z658=\"\",\"\",'1. Order'!Z658)","v":""},{"$f":"IF('1. Order'!AA658=\"\",\"\",'1. Order'!AA658)","v":""},null,{"$f":"IF('1. Order'!AS658=\"\",\"\",'1. Order'!AS658)","v":""},{"$f":"IF('1. Order'!AT658=\"\",\"\",'1. Order'!AT658)","v":""},null,null,null,null,null,null,null,{"$f":"IF('1. Order'!AX658=\"\",\"\",'1. Order'!AX658)","v":""},{"$f":"IF('1. Order'!AY658=\"\",\"\",'1. Order'!AY658)","v":""},{"$f":"IF('1. Order'!AZ658=\"\",\"\",'1. Order'!AZ658)","v":""},{"$f":"IF('1. Order'!BA658=\"\",\"\",'1. Order'!BA658)","v":""},{"$f":"IF('1. Order'!BC658=\"\",\"\",'1. Order'!BC658)","v":""},{"$f":"IF('1. Order'!BD658=\"\",\"\",'1. Order'!BD658)","v":6},{"$f":"IF('1. Order'!BE658=\"\",\"\",'1. Order'!BE658)","v":"None"},{"$f":"IF('1. Order'!BF658=\"\",\"\",'1. Order'!BF658)","v":"Parcel"},{"$f":"IF('1. Order'!BG658=\"\",\"\",'1. Order'!BG658)","v":"ZWO"}]
[{"$f":"IF('1. Order'!F659=\"\",\"\",'1. Order'!F659)","v":""},{"$f":"IF('1. Order'!G659=\"\",\"\",'1. Order'!G659)","v":""},{"$f":"IF('1. Order'!H659=\"\",\"\",'1. Order'!H659)","v":""},{"$f":"IF('1. Order'!I659=\"\",\"\",'1. Order'!I659)","v":""},{"$f":"IF('1. Order'!J659=\"\",\"\",'1. Order'!J659)","v":""},{"$f":"IF('1. Order'!K659=\"\",\"\",'1. Order'!K659)","v":""},{"$f":"IF('1. Order'!L659=\"\",\"\",'1. Order'!L659)","v":""},{"$f":"IF('1. Order'!M659=\"\",\"\",'1. Order'!M659)","v":""},{"$f":"IF('1. Order'!N659=\"\",\"\",'1. Order'!N659)","v":""},{"$f":"IF('1. Order'!O659=\"\",\"\",'1. Order'!O659)","v":{"$error":"#N/A"}},{"$f":"IF('1. Order'!P659=\"\",\"\",'1. Order'!P659)","v":{"$error":"#N/A"}},{"$f":"IF('1. Order'!Q659=\"\",\"\",'1. Order'!Q659)","v":""},{"$f":"IF('1. Order'!R659=\"\",\"\",'1. Order'!R659)","v":""},{"$f":"IF('1. Order'!S659=\"\",\"\",'1. Order'!S659)","v":""},{"$f":"IF('1. Order'!V659=\"\",\"\",'1. Order'!V659)","v":""},{"$f":"IF('1. Order'!W659=\"\",\"\",'1. Order'!W659)","v":""},{"$f":"IF('1. Order'!X659=\"\",\"\",'1. Order'!X659)","v":"EUR"},{"$f":"IF('1. Order'!Y659=\"\",\"\",'1. Order'!Y659)","v":""},{"$f":"IF('1. Order'!Z659=\"\",\"\",'1. Order'!Z659)","v":""},{"$f":"IF('1. Order'!AA659=\"\",\"\",'1. Order'!AA659)","v":""},null,{"$f":"IF('1. Order'!AS659=\"\",\"\",'1. Order'!AS659)","v":""},{"$f":"IF('1. Order'!AT659=\"\",\"\",'1. Order'!AT659)","v":""},null,null,null,null,null,null,null,{"$f":"IF('1. Order'!AX659=\"\",\"\",'1. Order'!AX659)","v":""},{"$f":"IF('1. Order'!AY659=\"\",\"\",'1. Order'!AY659)","v":""},{"$f":"IF('1. Order'!AZ659=\"\",\"\",'1. Order'!AZ659)","v":""},{"$f":"IF('1. Order'!BA659=\"\",\"\",'1. Order'!BA659)","v":""},{"$f":"IF('1. Order'!BC659=\"\",\"\",'1. Order'!BC659)","v":""},{"$f":"IF('1. Order'!BD659=\"\",\"\",'1. Order'!BD659)","v":6},{"$f":"IF('1. Order'!BE659=\"\",\"\",'1. Order'!BE659)","v":"None"},{"$f":"IF('1. Order'!BF659=\"\",\"\",'1. Order'!BF659)","v":"Parcel"},{"$f":"IF('1. Order'!BG659=\"\",\"\",'1. Order'!BG659)","v":"ZWO"}]
[{"$f":"IF('1. Order'!F660=\"\",\"\",'1. Order'!F660)","v":""},{"$f":"IF('1. Order'!G660=\"\",\"\",'1. Order'!G660)","v":""},{"$f":"IF('1. Order'!H660=\"\",\"\",'1. Order'!H660)","v":""},{"$f":"IF('1. Order'!I660=\"\",\"\",'1. Order'!I660)","v":""},{"$f":"IF('1. Order'!J660=\"\",\"\",'1. Order'!J660)","v":""},{"$f":"IF('1. Order'!K660=\"\",\"\",'1. Order'!K660)","v":""},{"$f":"IF('1. Order'!L660=\"\",\"\",'1. Order'!L660)","v":""},{"$f":"IF('1. Order'!M660=\"\",\"\",'1. Order'!M660)","v":""},{"$f":"IF('1. Order'!N660=\"\",\"\",'1. Order'!N660)","v":""},{"$f":"IF('1. Order'!O660=\"\",\"\",'1. Order'!O660)","v":{"$error":"#N/A"}},{"$f":"IF('1. Order'!P660=\"\",\"\",'1. Order'!P660)","v":{"$error":"#N/A"}},{"$f":"IF('1. Order'!Q660=\"\",\"\",'1. Order'!Q660)","v":""},{"$f":"IF('1. Order'!R660=\"\",\"\",'1. Order'!R660)","v":""},{"$f":"IF('1. Order'!S660=\"\",\"\",'1. Order'!S660)","v":""},{"$f":"IF('1. Order'!V660=\"\",\"\",'1. Order'!V660)","v":""},{"$f":"IF('1. Order'!W660=\"\",\"\",'1. Order'!W660)","v":""},{"$f":"IF('1. Order'!X660=\"\",\"\",'1. Order'!X660)","v":"EUR"},{"$f":"IF('1. Order'!Y660=\"\",\"\",'1. Order'!Y660)","v":""},{"$f":"IF('1. Order'!Z660=\"\",\"\",'1. Order'!Z660)","v":""},{"$f":"IF('1. Order'!AA660=\"\",\"\",'1. Order'!AA660)","v":""},null,{"$f":"IF('1. Order'!AS660=\"\",\"\",'1. Order'!AS660)","v":""},{"$f":"IF('1. Order'!AT660=\"\",\"\",'1. Order'!AT660)","v":""},null,null,null,null,null,null,null,{"$f":"IF('1. Order'!AX660=\"\",\"\",'1. Order'!AX660)","v":""},{"$f":"IF('1. Order'!AY660=\"\",\"\",'1. Order'!AY660)","v":""},{"$f":"IF('1. Order'!AZ660=\"\",\"\",'1. Order'!AZ660)","v":""},{"$f":"IF('1. Order'!BA660=\"\",\"\",'1. Order'!BA660)","v":""},{"$f":"IF('1. Order'!BC660=\"\",\"\",'1. Order'!BC660)","v":""},{"$f":"IF('1. Order'!BD660=\"\",\"\",'1. Order'!BD660)","v":6},{"$f":"IF('1. Order'!BE660=\"\",\"\",'1. Order'!BE660)","v":"None"},{"$f":"IF('1. Order'!BF660=\"\",\"\",'1. Order'!BF660)","v":"Parcel"},{"$f":"IF('1. Order'!BG660=\"\",\"\",'1. Order'!BG660)","v":"ZWO"}]
[{"$f":"IF('1. Order'!F661=\"\",\"\",'1. Order'!F661)","v":""},{"$f":"IF('1. Order'!G661=\"\",\"\",'1. Order'!G661)","v":""},{"$f":"IF('1. Order'!H661=\"\",\"\",'1. Order'!H661)","v":""},{"$f":"IF('1. Order'!I661=\"\",\"\",'1. Order'!I661)","v":""},{"$f":"IF('1. Order'!J661=\"\",\"\",'1. Order'!J661)","v":""},{"$f":"IF('1. Order'!K661=\"\",\"\",'1. Order'!K661)","v":""},{"$f":"IF('1. Order'!L661=\"\",\"\",'1. Order'!L661)","v":""},{"$f":"IF('1. Order'!M661=\"\",\"\",'1. Order'!M661)","v":""},{"$f":"IF('1. Order'!N661=\"\",\"\",'1. Order'!N661)","v":""},{"$f":"IF('1. Order'!O661=\"\",\"\",'1. Order'!O661)","v":{"$error":"#N/A"}},{"$f":"IF('1. Order'!P661=\"\",\"\",'1. Order'!P661)","v":{"$error":"#N/A"}},{"$f":"IF('1. Order'!Q661=\"\",\"\",'1. Order'!Q661)","v":""},{"$f":"IF('1. Order'!R661=\"\",\"\",'1. Order'!R661)","v":""},{"$f":"IF('1. Order'!S661=\"\",\"\",'1. Order'!S661)","v":""},{"$f":"IF('1. Order'!V661=\"\",\"\",'1. Order'!V661)","v":""},{"$f":"IF('1. Order'!W661=\"\",\"\",'1. Order'!W661)","v":""},{"$f":"IF('1. Order'!X661=\"\",\"\",'1. Order'!X661)","v":"EUR"},{"$f":"IF('1. Order'!Y661=\"\",\"\",'1. Order'!Y661)","v":""},{"$f":"IF('1. Order'!Z661=\"\",\"\",'1. Order'!Z661)","v":""},{"$f":"IF('1. Order'!AA661=\"\",\"\",'1. Order'!AA661)","v":""},null,{"$f":"IF('1. Order'!AS661=\"\",\"\",'1. Order'!AS661)","v":""},{"$f":"IF('1. Order'!AT661=\"\",\"\",'1. Order'!AT661)","v":""},null,null,null,null,null,null,null,{"$f":"IF('1. Order'!AX661=\"\",\"\",'1. Order'!AX661)","v":""},{"$f":"IF('1. Order'!AY661=\"\",\"\",'1. Order'!AY661)","v":""},{"$f":"IF('1. Order'!AZ661=\"\",\"\",'1. Order'!AZ661)","v":""},{"$f":"IF('1. Order'!BA661=\"\",\"\",'1. Order'!BA661)","v":""},{"$f":"IF('1. Order'!BC661=\"\",\"\",'1. Order'!BC661)","v":""},{"$f":"IF('1. Order'!BD661=\"\",\"\",'1. Order'!BD661)","v":6},{"$f":"IF('1. Order'!BE661=\"\",\"\",'1. Order'!BE661)","v":"None"},{"$f":"IF('1. Order'!BF661=\"\",\"\",'1. Order'!BF661)","v":"Parcel"},{"$f":"IF('1. Order'!BG661=\"\",\"\",'1. Order'!BG661)","v":"ZWO"}]
[{"$f":"IF('1. Order'!F662=\"\",\"\",'1. Order'!F662)","v":""},{"$f":"IF('1. Order'!G662=\"\",\"\",'1. Order'!G662)","v":""},{"$f":"IF('1. Order'!H662=\"\",\"\",'1. Order'!H662)","v":""},{"$f":"IF('1. Order'!I662=\"\",\"\",'1. Order'!I662)","v":""},{"$f":"IF('1. Order'!J662=\"\",\"\",'1. Order'!J662)","v":""},{"$f":"IF('1. Order'!K662=\"\",\"\",'1. Order'!K662)","v":""},{"$f":"IF('1. Order'!L662=\"\",\"\",'1. Order'!L662)","v":""},{"$f":"IF('1. Order'!M662=\"\",\"\",'1. Order'!M662)","v":""},{"$f":"IF('1. Order'!N662=\"\",\"\",'1. Order'!N662)","v":""},{"$f":"IF('1. Order'!O662=\"\",\"\",'1. Order'!O662)","v":{"$error":"#N/A"}},{"$f":"IF('1. Order'!P662=\"\",\"\",'1. Order'!P662)","v":{"$error":"#N/A"}},{"$f":"IF('1. Order'!Q662=\"\",\"\",'1. Order'!Q662)","v":""},{"$f":"IF('1. Order'!R662=\"\",\"\",'1. Order'!R662)","v":""},{"$f":"IF('1. Order'!S662=\"\",\"\",'1. Order'!S662)","v":""},{"$f":"IF('1. Order'!V662=\"\",\"\",'1. Order'!V662)","v":""},{"$f":"IF('1. Order'!W662=\"\",\"\",'1. Order'!W662)","v":""},{"$f":"IF('1. Order'!X662=\"\",\"\",'1. Order'!X662)","v":"EUR"},{"$f":"IF('1. Order'!Y662=\"\",\"\",'1. Order'!Y662)","v":""},{"$f":"IF('1. Order'!Z662=\"\",\"\",'1. Order'!Z662)","v":""},{"$f":"IF('1. Order'!AA662=\"\",\"\",'1. Order'!AA662)","v":""},null,{"$f":"IF('1. Order'!AS662=\"\",\"\",'1. Order'!AS662)","v":""},{"$f":"IF('1. Order'!AT662=\"\",\"\",'1. Order'!AT662)","v":""},null,null,null,null,null,null,null,{"$f":"IF('1. Order'!AX662=\"\",\"\",'1. Order'!AX662)","v":""},{"$f":"IF('1. Order'!AY662=\"\",\"\",'1. Order'!AY662)","v":""},{"$f":"IF('1. Order'!AZ662=\"\",\"\",'1. Order'!AZ662)","v":""},{"$f":"IF('1. Order'!BA662=\"\",\"\",'1. Order'!BA662)","v":""},{"$f":"IF('1. Order'!BC662=\"\",\"\",'1. Order'!BC662)","v":""},{"$f":"IF('1. Order'!BD662=\"\",\"\",'1. Order'!BD662)","v":6},{"$f":"IF('1. Order'!BE662=\"\",\"\",'1. Order'!BE662)","v":"None"},{"$f":"IF('1. Order'!BF662=\"\",\"\",'1. Order'!BF662)","v":"Parcel"},{"$f":"IF('1. Order'!BG662=\"\",\"\",'1. Order'!BG662)","v":"ZWO"}]
[{"$f":"IF('1. Order'!F663=\"\",\"\",'1. Order'!F663)","v":""},{"$f":"IF('1. Order'!G663=\"\",\"\",'1. Order'!G663)","v":""},{"$f":"IF('1. Order'!H663=\"\",\"\",'1. Order'!H663)","v":""},{"$f":"IF('1. Order'!I663=\"\",\"\",'1. Order'!I663)","v":""},{"$f":"IF('1. Order'!J663=\"\",\"\",'1. Order'!J663)","v":""},{"$f":"IF('1. Order'!K663=\"\",\"\",'1. Order'!K663)","v":""},{"$f":"IF('1. Order'!L663=\"\",\"\",'1. Order'!L663)","v":""},{"$f":"IF('1. Order'!M663=\"\",\"\",'1. Order'!M663)","v":""},{"$f":"IF('1. Order'!N663=\"\",\"\",'1. Order'!N663)","v":""},{"$f":"IF('1. Order'!O663=\"\",\"\",'1. Order'!O663)","v":{"$error":"#N/A"}},{"$f":"IF('1. Order'!P663=\"\",\"\",'1. Order'!P663)","v":{"$error":"#N/A"}},{"$f":"IF('1. Order'!Q663=\"\",\"\",'1. Order'!Q663)","v":""},{"$f":"IF('1. Order'!R663=\"\",\"\",'1. Order'!R663)","v":""},{"$f":"IF('1. Order'!S663=\"\",\"\",'1. Order'!S663)","v":""},{"$f":"IF('1. Order'!V663=\"\",\"\",'1. Order'!V663)","v":""},{"$f":"IF('1. Order'!W663=\"\",\"\",'1. Order'!W663)","v":""},{"$f":"IF('1. Order'!X663=\"\",\"\",'1. Order'!X663)","v":"EUR"},{"$f":"IF('1. Order'!Y663=\"\",\"\",'1. Order'!Y663)","v":""},{"$f":"IF('1. Order'!Z663=\"\",\"\",'1. Order'!Z663)","v":""},{"$f":"IF('1. Order'!AA663=\"\",\"\",'1. Order'!AA663)","v":""},null,{"$f":"IF('1. Order'!AS663=\"\",\"\",'1. Order'!AS663)","v":""},{"$f":"IF('1. Order'!AT663=\"\",\"\",'1. Order'!AT663)","v":""},null,null,null,null,null,null,null,{"$f":"IF('1. Order'!AX663=\"\",\"\",'1. Order'!AX663)","v":""},{"$f":"IF('1. Order'!AY663=\"\",\"\",'1. Order'!AY663)","v":""},{"$f":"IF('1. Order'!AZ663=\"\",\"\",'1. Order'!AZ663)","v":""},{"$f":"IF('1. Order'!BA663=\"\",\"\",'1. Order'!BA663)","v":""},{"$f":"IF('1. Order'!BC663=\"\",\"\",'1. Order'!BC663)","v":""},{"$f":"IF('1. Order'!BD663=\"\",\"\",'1. Order'!BD663)","v":6},{"$f":"IF('1. Order'!BE663=\"\",\"\",'1. Order'!BE663)","v":"None"},{"$f":"IF('1. Order'!BF663=\"\",\"\",'1. Order'!BF663)","v":"Parcel"},{"$f":"IF('1. Order'!BG663=\"\",\"\",'1. Order'!BG663)","v":"ZWO"}]
[{"$f":"IF('1. Order'!F664=\"\",\"\",'1. Order'!F664)","v":""},{"$f":"IF('1. Order'!G664=\"\",\"\",'1. Order'!G664)","v":""},{"$f":"IF('1. Order'!H664=\"\",\"\",'1. Order'!H664)","v":""},{"$f":"IF('1. Order'!I664=\"\",\"\",'1. Order'!I664)","v":""},{"$f":"IF('1. Order'!J664=\"\",\"\",'1. Order'!J664)","v":""},{"$f":"IF('1. Order'!K664=\"\",\"\",'1. Order'!K664)","v":""},{"$f":"IF('1. Order'!L664=\"\",\"\",'1. Order'!L664)","v":""},{"$f":"IF('1. Order'!M664=\"\",\"\",'1. Order'!M664)","v":""},{"$f":"IF('1. Order'!N664=\"\",\"\",'1. Order'!N664)","v":""},{"$f":"IF('1. Order'!O664=\"\",\"\",'1. Order'!O664)","v":{"$error":"#N/A"}},{"$f":"IF('1. Order'!P664=\"\",\"\",'1. Order'!P664)","v":{"$error":"#N/A"}},{"$f":"IF('1. Order'!Q664=\"\",\"\",'1. Order'!Q664)","v":""},{"$f":"IF('1. Order'!R664=\"\",\"\",'1. Order'!R664)","v":""},{"$f":"IF('1. Order'!S664=\"\",\"\",'1. Order'!S664)","v":""},{"$f":"IF('1. Order'!V664=\"\",\"\",'1. Order'!V664)","v":""},{"$f":"IF('1. Order'!W664=\"\",\"\",'1. Order'!W664)","v":""},{"$f":"IF('1. Order'!X664=\"\",\"\",'1. Order'!X664)","v":"EUR"},{"$f":"IF('1. Order'!Y664=\"\",\"\",'1. Order'!Y664)","v":""},{"$f":"IF('1. Order'!Z664=\"\",\"\",'1. Order'!Z664)","v":""},{"$f":"IF('1. Order'!AA664=\"\",\"\",'1. Order'!AA664)","v":""},null,{"$f":"IF('1. Order'!AS664=\"\",\"\",'1. Order'!AS664)","v":""},{"$f":"IF('1. Order'!AT664=\"\",\"\",'1. Order'!AT664)","v":""},null,null,null,null,null,null,null,{"$f":"IF('1. Order'!AX664=\"\",\"\",'1. Order'!AX664)","v":""},{"$f":"IF('1. Order'!AY664=\"\",\"\",'1. Order'!AY664)","v":""},{"$f":"IF('1. Order'!AZ664=\"\",\"\",'1. Order'!AZ664)","v":""},{"$f":"IF('1. Order'!BA664=\"\",\"\",'1. Order'!BA664)","v":""},{"$f":"IF('1. Order'!BC664=\"\",\"\",'1. Order'!BC664)","v":""},{"$f":"IF('1. Order'!BD664=\"\",\"\",'1. Order'!BD664)","v":6},{"$f":"IF('1. Order'!BE664=\"\",\"\",'1. Order'!BE664)","v":"None"},{"$f":"IF('1. Order'!BF664=\"\",\"\",'1. Order'!BF664)","v":"Parcel"},{"$f":"IF('1. Order'!BG664=\"\",\"\",'1. Order'!BG664)","v":"ZWO"}]
[{"$f":"IF('1. Order'!F665=\"\",\"\",'1. Order'!F665)","v":""},{"$f":"IF('1. Order'!G665=\"\",\"\",'1. Order'!G665)","v":""},{"$f":"IF('1. Order'!H665=\"\",\"\",'1. Order'!H665)","v":""},{"$f":"IF('1. Order'!I665=\"\",\"\",'1. Order'!I665)","v":""},{"$f":"IF('1. Order'!J665=\"\",\"\",'1. Order'!J665)","v":""},{"$f":"IF('1. Order'!K665=\"\",\"\",'1. Order'!K665)","v":""},{"$f":"IF('1. Order'!L665=\"\",\"\",'1. Order'!L665)","v":""},{"$f":"IF('1. Order'!M665=\"\",\"\",'1. Order'!M665)","v":""},{"$f":"IF('1. Order'!N665=\"\",\"\",'1. Order'!N665)","v":""},{"$f":"IF('1. Order'!O665=\"\",\"\",'1. Order'!O665)","v":{"$error":"#N/A"}},{"$f":"IF('1. Order'!P665=\"\",\"\",'1. Order'!P665)","v":{"$error":"#N/A"}},{"$f":"IF('1. Order'!Q665=\"\",\"\",'1. Order'!Q665)","v":""},{"$f":"IF('1. Order'!R665=\"\",\"\",'1. Order'!R665)","v":""},{"$f":"IF('1. Order'!S665=\"\",\"\",'1. Order'!S665)","v":""},{"$f":"IF('1. Order'!V665=\"\",\"\",'1. Order'!V665)","v":""},{"$f":"IF('1. Order'!W665=\"\",\"\",'1. Order'!W665)","v":""},{"$f":"IF('1. Order'!X665=\"\",\"\",'1. Order'!X665)","v":"EUR"},{"$f":"IF('1. Order'!Y665=\"\",\"\",'1. Order'!Y665)","v":""},{"$f":"IF('1. Order'!Z665=\"\",\"\",'1. Order'!Z665)","v":""},{"$f":"IF('1. Order'!AA665=\"\",\"\",'1. Order'!AA665)","v":""},null,{"$f":"IF('1. Order'!AS665=\"\",\"\",'1. Order'!AS665)","v":""},{"$f":"IF('1. Order'!AT665=\"\",\"\",'1. Order'!AT665)","v":""},null,null,null,null,null,null,null,{"$f":"IF('1. Order'!AX665=\"\",\"\",'1. Order'!AX665)","v":""},{"$f":"IF('1. Order'!AY665=\"\",\"\",'1. Order'!AY665)","v":""},{"$f":"IF('1. Order'!AZ665=\"\",\"\",'1. Order'!AZ665)","v":""},{"$f":"IF('1. Order'!BA665=\"\",\"\",'1. Order'!BA665)","v":""},{"$f":"IF('1. Order'!BC665=\"\",\"\",'1. Order'!BC665)","v":""},{"$f":"IF('1. Order'!BD665=\"\",\"\",'1. Order'!BD665)","v":6},{"$f":"IF('1. Order'!BE665=\"\",\"\",'1. Order'!BE665)","v":"None"},{"$f":"IF('1. Order'!BF665=\"\",\"\",'1. Order'!BF665)","v":"Parcel"},{"$f":"IF('1. Order'!BG665=\"\",\"\",'1. Order'!BG665)","v":"ZWO"}]
[{"$f":"IF('1. Order'!F666=\"\",\"\",'1. Order'!F666)","v":""},{"$f":"IF('1. Order'!G666=\"\",\"\",'1. Order'!G666)","v":""},{"$f":"IF('1. Order'!H666=\"\",\"\",'1. Order'!H666)","v":""},{"$f":"IF('1. Order'!I666=\"\",\"\",'1. Order'!I666)","v":""},{"$f":"IF('1. Order'!J666=\"\",\"\",'1. Order'!J666)","v":""},{"$f":"IF('1. Order'!K666=\"\",\"\",'1. Order'!K666)","v":""},{"$f":"IF('1. Order'!L666=\"\",\"\",'1. Order'!L666)","v":""},{"$f":"IF('1. Order'!M666=\"\",\"\",'1. Order'!M666)","v":""},{"$f":"IF('1. Order'!N666=\"\",\"\",'1. Order'!N666)","v":""},{"$f":"IF('1. Order'!O666=\"\",\"\",'1. Order'!O666)","v":{"$error":"#N/A"}},{"$f":"IF('1. Order'!P666=\"\",\"\",'1. Order'!P666)","v":{"$error":"#N/A"}},{"$f":"IF('1. Order'!Q666=\"\",\"\",'1. Order'!Q666)","v":""},{"$f":"IF('1. Order'!R666=\"\",\"\",'1. Order'!R666)","v":""},{"$f":"IF('1. Order'!S666=\"\",\"\",'1. Order'!S666)","v":""},{"$f":"IF('1. Order'!V666=\"\",\"\",'1. Order'!V666)","v":""},{"$f":"IF('1. Order'!W666=\"\",\"\",'1. Order'!W666)","v":""},{"$f":"IF('1. Order'!X666=\"\",\"\",'1. Order'!X666)","v":"EUR"},{"$f":"IF('1. Order'!Y666=\"\",\"\",'1. Order'!Y666)","v":""},{"$f":"IF('1. Order'!Z666=\"\",\"\",'1. Order'!Z666)","v":""},{"$f":"IF('1. Order'!AA666=\"\",\"\",'1. Order'!AA666)","v":""},null,{"$f":"IF('1. Order'!AS666=\"\",\"\",'1. Order'!AS666)","v":""},{"$f":"IF('1. Order'!AT666=\"\",\"\",'1. Order'!AT666)","v":""},null,null,null,null,null,null,null,{"$f":"IF('1. Order'!AX666=\"\",\"\",'1. Order'!AX666)","v":""},{"$f":"IF('1. Order'!AY666=\"\",\"\",'1. Order'!AY666)","v":""},{"$f":"IF('1. Order'!AZ666=\"\",\"\",'1. Order'!AZ666)","v":""},{"$f":"IF('1. Order'!BA666=\"\",\"\",'1. Order'!BA666)","v":""},{"$f":"IF('1. Order'!BC666=\"\",\"\",'1. Order'!BC666)","v":""},{"$f":"IF('1. Order'!BD666=\"\",\"\",'1. Order'!BD666)","v":6},{"$f":"IF('1. Order'!BE666=\"\",\"\",'1. Order'!BE666)","v":"None"},{"$f":"IF('1. Order'!BF666=\"\",\"\",'1. Order'!BF666)","v":"Parcel"},{"$f":"IF('1. Order'!BG666=\"\",\"\",'1. Order'!BG666)","v":"ZWO"}]
[{"$f":"IF('1. Order'!F667=\"\",\"\",'1. Order'!F667)","v":""},{"$f":"IF('1. Order'!G667=\"\",\"\",'1. Order'!G667)","v":""},{"$f":"IF('1. Order'!H667=\"\",\"\",'1. Order'!H667)","v":""},{"$f":"IF('1. Order'!I667=\"\",\"\",'1. Order'!I667)","v":""},{"$f":"IF('1. Order'!J667=\"\",\"\",'1. Order'!J667)","v":""},{"$f":"IF('1. Order'!K667=\"\",\"\",'1. Order'!K667)","v":""},{"$f":"IF('1. Order'!L667=\"\",\"\",'1. Order'!L667)","v":""},{"$f":"IF('1. Order'!M667=\"\",\"\",'1. Order'!M667)","v":""},{"$f":"IF('1. Order'!N667=\"\",\"\",'1. Order'!N667)","v":""},{"$f":"IF('1. Order'!O667=\"\",\"\",'1. Order'!O667)","v":{"$error":"#N/A"}},{"$f":"IF('1. Order'!P667=\"\",\"\",'1. Order'!P667)","v":{"$error":"#N/A"}},{"$f":"IF('1. Order'!Q667=\"\",\"\",'1. Order'!Q667)","v":""},{"$f":"IF('1. Order'!R667=\"\",\"\",'1. Order'!R667)","v":""},{"$f":"IF('1. Order'!S667=\"\",\"\",'1. Order'!S667)","v":""},{"$f":"IF('1. Order'!V667=\"\",\"\",'1. Order'!V667)","v":""},{"$f":"IF('1. Order'!W667=\"\",\"\",'1. Order'!W667)","v":""},{"$f":"IF('1. Order'!X667=\"\",\"\",'1. Order'!X667)","v":"EUR"},{"$f":"IF('1. Order'!Y667=\"\",\"\",'1. Order'!Y667)","v":""},{"$f":"IF('1. Order'!Z667=\"\",\"\",'1. Order'!Z667)","v":""},{"$f":"IF('1. Order'!AA667=\"\",\"\",'1. Order'!AA667)","v":""},null,{"$f":"IF('1. Order'!AS667=\"\",\"\",'1. Order'!AS667)","v":""},{"$f":"IF('1. Order'!AT667=\"\",\"\",'1. Order'!AT667)","v":""},null,null,null,null,null,null,null,{"$f":"IF('1. Order'!AX667=\"\",\"\",'1. Order'!AX667)","v":""},{"$f":"IF('1. Order'!AY667=\"\",\"\",'1. Order'!AY667)","v":""},{"$f":"IF('1. Order'!AZ667=\"\",\"\",'1. Order'!AZ667)","v":""},{"$f":"IF('1. Order'!BA667=\"\",\"\",'1. Order'!BA667)","v":""},{"$f":"IF('1. Order'!BC667=\"\",\"\",'1. Order'!BC667)","v":""},{"$f":"IF('1. Order'!BD667=\"\",\"\",'1. Order'!BD667)","v":6},{"$f":"IF('1. Order'!BE667=\"\",\"\",'1. Order'!BE667)","v":"None"},{"$f":"IF('1. Order'!BF667=\"\",\"\",'1. Order'!BF667)","v":"Parcel"},{"$f":"IF('1. Order'!BG667=\"\",\"\",'1. Order'!BG667)","v":"ZWO"}]
[{"$f":"IF('1. Order'!F668=\"\",\"\",'1. Order'!F668)","v":""},{"$f":"IF('1. Order'!G668=\"\",\"\",'1. Order'!G668)","v":""},{"$f":"IF('1. Order'!H668=\"\",\"\",'1. Order'!H668)","v":""},{"$f":"IF('1. Order'!I668=\"\",\"\",'1. Order'!I668)","v":""},{"$f":"IF('1. Order'!J668=\"\",\"\",'1. Order'!J668)","v":""},{"$f":"IF('1. Order'!K668=\"\",\"\",'1. Order'!K668)","v":""},{"$f":"IF('1. Order'!L668=\"\",\"\",'1. Order'!L668)","v":""},{"$f":"IF('1. Order'!M668=\"\",\"\",'1. Order'!M668)","v":""},{"$f":"IF('1. Order'!N668=\"\",\"\",'1. Order'!N668)","v":""},{"$f":"IF('1. Order'!O668=\"\",\"\",'1. Order'!O668)","v":{"$error":"#N/A"}},{"$f":"IF('1. Order'!P668=\"\",\"\",'1. Order'!P668)","v":{"$error":"#N/A"}},{"$f":"IF('1. Order'!Q668=\"\",\"\",'1. Order'!Q668)","v":""},{"$f":"IF('1. Order'!R668=\"\",\"\",'1. Order'!R668)","v":""},{"$f":"IF('1. Order'!S668=\"\",\"\",'1. Order'!S668)","v":""},{"$f":"IF('1. Order'!V668=\"\",\"\",'1. Order'!V668)","v":""},{"$f":"IF('1. Order'!W668=\"\",\"\",'1. Order'!W668)","v":""},{"$f":"IF('1. Order'!X668=\"\",\"\",'1. Order'!X668)","v":"EUR"},{"$f":"IF('1. Order'!Y668=\"\",\"\",'1. Order'!Y668)","v":""},{"$f":"IF('1. Order'!Z668=\"\",\"\",'1. Order'!Z668)","v":""},{"$f":"IF('1. Order'!AA668=\"\",\"\",'1. Order'!AA668)","v":""},null,{"$f":"IF('1. Order'!AS668=\"\",\"\",'1. Order'!AS668)","v":""},{"$f":"IF('1. Order'!AT668=\"\",\"\",'1. Order'!AT668)","v":""},null,null,null,null,null,null,null,{"$f":"IF('1. Order'!AX668=\"\",\"\",'1. Order'!AX668)","v":""},{"$f":"IF('1. Order'!AY668=\"\",\"\",'1. Order'!AY668)","v":""},{"$f":"IF('1. Order'!AZ668=\"\",\"\",'1. Order'!AZ668)","v":""},{"$f":"IF('1. Order'!BA668=\"\",\"\",'1. Order'!BA668)","v":""},{"$f":"IF('1. Order'!BC668=\"\",\"\",'1. Order'!BC668)","v":""},{"$f":"IF('1. Order'!BD668=\"\",\"\",'1. Order'!BD668)","v":6},{"$f":"IF('1. Order'!BE668=\"\",\"\",'1. Order'!BE668)","v":"None"},{"$f":"IF('1. Order'!BF668=\"\",\"\",'1. Order'!BF668)","v":"Parcel"},{"$f":"IF('1. Order'!BG668=\"\",\"\",'1. Order'!BG668)","v":"ZWO"}]
[{"$f":"IF('1. Order'!F669=\"\",\"\",'1. Order'!F669)","v":""},{"$f":"IF('1. Order'!G669=\"\",\"\",'1. Order'!G669)","v":""},{"$f":"IF('1. Order'!H669=\"\",\"\",'1. Order'!H669)","v":""},{"$f":"IF('1. Order'!I669=\"\",\"\",'1. Order'!I669)","v":""},{"$f":"IF('1. Order'!J669=\"\",\"\",'1. Order'!J669)","v":""},{"$f":"IF('1. Order'!K669=\"\",\"\",'1. Order'!K669)","v":""},{"$f":"IF('1. Order'!L669=\"\",\"\",'1. Order'!L669)","v":""},{"$f":"IF('1. Order'!M669=\"\",\"\",'1. Order'!M669)","v":""},{"$f":"IF('1. Order'!N669=\"\",\"\",'1. Order'!N669)","v":""},{"$f":"IF('1. Order'!O669=\"\",\"\",'1. Order'!O669)","v":{"$error":"#N/A"}},{"$f":"IF('1. Order'!P669=\"\",\"\",'1. Order'!P669)","v":{"$error":"#N/A"}},{"$f":"IF('1. Order'!Q669=\"\",\"\",'1. Order'!Q669)","v":""},{"$f":"IF('1. Order'!R669=\"\",\"\",'1. Order'!R669)","v":""},{"$f":"IF('1. Order'!S669=\"\",\"\",'1. Order'!S669)","v":""},{"$f":"IF('1. Order'!V669=\"\",\"\",'1. Order'!V669)","v":""},{"$f":"IF('1. Order'!W669=\"\",\"\",'1. Order'!W669)","v":""},{"$f":"IF('1. Order'!X669=\"\",\"\",'1. Order'!X669)","v":"EUR"},{"$f":"IF('1. Order'!Y669=\"\",\"\",'1. Order'!Y669)","v":""},{"$f":"IF('1. Order'!Z669=\"\",\"\",'1. Order'!Z669)","v":""},{"$f":"IF('1. Order'!AA669=\"\",\"\",'1. Order'!AA669)","v":""},null,{"$f":"IF('1. Order'!AS669=\"\",\"\",'1. Order'!AS669)","v":""},{"$f":"IF('1. Order'!AT669=\"\",\"\",'1. Order'!AT669)","v":""},null,null,null,null,null,null,null,{"$f":"IF('1. Order'!AX669=\"\",\"\",'1. Order'!AX669)","v":""},{"$f":"IF('1. Order'!AY669=\"\",\"\",'1. Order'!AY669)","v":""},{"$f":"IF('1. Order'!AZ669=\"\",\"\",'1. Order'!AZ669)","v":""},{"$f":"IF('1. Order'!BA669=\"\",\"\",'1. Order'!BA669)","v":""},{"$f":"IF('1. Order'!BC669=\"\",\"\",'1. Order'!BC669)","v":""},{"$f":"IF('1. Order'!BD669=\"\",\"\",'1. Order'!BD669)","v":6},{"$f":"IF('1. Order'!BE669=\"\",\"\",'1. Order'!BE669)","v":"None"},{"$f":"IF('1. Order'!BF669=\"\",\"\",'1. Order'!BF669)","v":"Parcel"},{"$f":"IF('1. Order'!BG669=\"\",\"\",'1. Order'!BG669)","v":"ZWO"}]
[{"$f":"IF('1. Order'!F670=\"\",\"\",'1. Order'!F670)","v":""},{"$f":"IF('1. Order'!G670=\"\",\"\",'1. Order'!G670)","v":""},{"$f":"IF('1. Order'!H670=\"\",\"\",'1. Order'!H670)","v":""},{"$f":"IF('1. Order'!I670=\"\",\"\",'1. Order'!I670)","v":""},{"$f":"IF('1. Order'!J670=\"\",\"\",'1. Order'!J670)","v":""},{"$f":"IF('1. Order'!K670=\"\",\"\",'1. Order'!K670)","v":""},{"$f":"IF('1. Order'!L670=\"\",\"\",'1. Order'!L670)","v":""},{"$f":"IF('1. Order'!M670=\"\",\"\",'1. Order'!M670)","v":""},{"$f":"IF('1. Order'!N670=\"\",\"\",'1. Order'!N670)","v":""},{"$f":"IF('1. Order'!O670=\"\",\"\",'1. Order'!O670)","v":{"$error":"#N/A"}},{"$f":"IF('1. Order'!P670=\"\",\"\",'1. Order'!P670)","v":{"$error":"#N/A"}},{"$f":"IF('1. Order'!Q670=\"\",\"\",'1. Order'!Q670)","v":""},{"$f":"IF('1. Order'!R670=\"\",\"\",'1. Order'!R670)","v":""},{"$f":"IF('1. Order'!S670=\"\",\"\",'1. Order'!S670)","v":""},{"$f":"IF('1. Order'!V670=\"\",\"\",'1. Order'!V670)","v":""},{"$f":"IF('1. Order'!W670=\"\",\"\",'1. Order'!W670)","v":""},{"$f":"IF('1. Order'!X670=\"\",\"\",'1. Order'!X670)","v":"EUR"},{"$f":"IF('1. Order'!Y670=\"\",\"\",'1. Order'!Y670)","v":""},{"$f":"IF('1. Order'!Z670=\"\",\"\",'1. Order'!Z670)","v":""},{"$f":"IF('1. Order'!AA670=\"\",\"\",'1. Order'!AA670)","v":""},null,{"$f":"IF('1. Order'!AS670=\"\",\"\",'1. Order'!AS670)","v":""},{"$f":"IF('1. Order'!AT670=\"\",\"\",'1. Order'!AT670)","v":""},null,null,null,null,null,null,null,{"$f":"IF('1. Order'!AX670=\"\",\"\",'1. Order'!AX670)","v":""},{"$f":"IF('1. Order'!AY670=\"\",\"\",'1. Order'!AY670)","v":""},{"$f":"IF('1. Order'!AZ670=\"\",\"\",'1. Order'!AZ670)","v":""},{"$f":"IF('1. Order'!BA670=\"\",\"\",'1. Order'!BA670)","v":""},{"$f":"IF('1. Order'!BC670=\"\",\"\",'1. Order'!BC670)","v":""},{"$f":"IF('1. Order'!BD670=\"\",\"\",'1. Order'!BD670)","v":6},{"$f":"IF('1. Order'!BE670=\"\",\"\",'1. Order'!BE670)","v":"None"},{"$f":"IF('1. Order'!BF670=\"\",\"\",'1. Order'!BF670)","v":"Parcel"},{"$f":"IF('1. Order'!BG670=\"\",\"\",'1. Order'!BG670)","v":"ZWO"}]
[{"$f":"IF('1. Order'!F671=\"\",\"\",'1. Order'!F671)","v":""},{"$f":"IF('1. Order'!G671=\"\",\"\",'1. Order'!G671)","v":""},{"$f":"IF('1. Order'!H671=\"\",\"\",'1. Order'!H671)","v":""},{"$f":"IF('1. Order'!I671=\"\",\"\",'1. Order'!I671)","v":""},{"$f":"IF('1. Order'!J671=\"\",\"\",'1. Order'!J671)","v":""},{"$f":"IF('1. Order'!K671=\"\",\"\",'1. Order'!K671)","v":""},{"$f":"IF('1. Order'!L671=\"\",\"\",'1. Order'!L671)","v":""},{"$f":"IF('1. Order'!M671=\"\",\"\",'1. Order'!M671)","v":""},{"$f":"IF('1. Order'!N671=\"\",\"\",'1. Order'!N671)","v":""},{"$f":"IF('1. Order'!O671=\"\",\"\",'1. Order'!O671)","v":{"$error":"#N/A"}},{"$f":"IF('1. Order'!P671=\"\",\"\",'1. Order'!P671)","v":{"$error":"#N/A"}},{"$f":"IF('1. Order'!Q671=\"\",\"\",'1. Order'!Q671)","v":""},{"$f":"IF('1. Order'!R671=\"\",\"\",'1. Order'!R671)","v":""},{"$f":"IF('1. Order'!S671=\"\",\"\",'1. Order'!S671)","v":""},{"$f":"IF('1. Order'!V671=\"\",\"\",'1. Order'!V671)","v":""},{"$f":"IF('1. Order'!W671=\"\",\"\",'1. Order'!W671)","v":""},{"$f":"IF('1. Order'!X671=\"\",\"\",'1. Order'!X671)","v":"EUR"},{"$f":"IF('1. Order'!Y671=\"\",\"\",'1. Order'!Y671)","v":""},{"$f":"IF('1. Order'!Z671=\"\",\"\",'1. Order'!Z671)","v":""},{"$f":"IF('1. Order'!AA671=\"\",\"\",'1. Order'!AA671)","v":""},null,{"$f":"IF('1. Order'!AS671=\"\",\"\",'1. Order'!AS671)","v":""},{"$f":"IF('1. Order'!AT671=\"\",\"\",'1. Order'!AT671)","v":""},null,null,null,null,null,null,null,{"$f":"IF('1. Order'!AX671=\"\",\"\",'1. Order'!AX671)","v":""},{"$f":"IF('1. Order'!AY671=\"\",\"\",'1. Order'!AY671)","v":""},{"$f":"IF('1. Order'!AZ671=\"\",\"\",'1. Order'!AZ671)","v":""},{"$f":"IF('1. Order'!BA671=\"\",\"\",'1. Order'!BA671)","v":""},{"$f":"IF('1. Order'!BC671=\"\",\"\",'1. Order'!BC671)","v":""},{"$f":"IF('1. Order'!BD671=\"\",\"\",'1. Order'!BD671)","v":6},{"$f":"IF('1. Order'!BE671=\"\",\"\",'1. Order'!BE671)","v":"None"},{"$f":"IF('1. Order'!BF671=\"\",\"\",'1. Order'!BF671)","v":"Parcel"},{"$f":"IF('1. Order'!BG671=\"\",\"\",'1. Order'!BG671)","v":"ZWO"}]
[{"$f":"IF('1. Order'!F672=\"\",\"\",'1. Order'!F672)","v":""},{"$f":"IF('1. Order'!G672=\"\",\"\",'1. Order'!G672)","v":""},{"$f":"IF('1. Order'!H672=\"\",\"\",'1. Order'!H672)","v":""},{"$f":"IF('1. Order'!I672=\"\",\"\",'1. Order'!I672)","v":""},{"$f":"IF('1. Order'!J672=\"\",\"\",'1. Order'!J672)","v":""},{"$f":"IF('1. Order'!K672=\"\",\"\",'1. Order'!K672)","v":""},{"$f":"IF('1. Order'!L672=\"\",\"\",'1. Order'!L672)","v":""},{"$f":"IF('1. Order'!M672=\"\",\"\",'1. Order'!M672)","v":""},{"$f":"IF('1. Order'!N672=\"\",\"\",'1. Order'!N672)","v":""},{"$f":"IF('1. Order'!O672=\"\",\"\",'1. Order'!O672)","v":{"$error":"#N/A"}},{"$f":"IF('1. Order'!P672=\"\",\"\",'1. Order'!P672)","v":{"$error":"#N/A"}},{"$f":"IF('1. Order'!Q672=\"\",\"\",'1. Order'!Q672)","v":""},{"$f":"IF('1. Order'!R672=\"\",\"\",'1. Order'!R672)","v":""},{"$f":"IF('1. Order'!S672=\"\",\"\",'1. Order'!S672)","v":""},{"$f":"IF('1. Order'!V672=\"\",\"\",'1. Order'!V672)","v":""},{"$f":"IF('1. Order'!W672=\"\",\"\",'1. Order'!W672)","v":""},{"$f":"IF('1. Order'!X672=\"\",\"\",'1. Order'!X672)","v":"EUR"},{"$f":"IF('1. Order'!Y672=\"\",\"\",'1. Order'!Y672)","v":""},{"$f":"IF('1. Order'!Z672=\"\",\"\",'1. Order'!Z672)","v":""},{"$f":"IF('1. Order'!AA672=\"\",\"\",'1. Order'!AA672)","v":""},null,{"$f":"IF('1. Order'!AS672=\"\",\"\",'1. Order'!AS672)","v":""},{"$f":"IF('1. Order'!AT672=\"\",\"\",'1. Order'!AT672)","v":""},null,null,null,null,null,null,null,{"$f":"IF('1. Order'!AX672=\"\",\"\",'1. Order'!AX672)","v":""},{"$f":"IF('1. Order'!AY672=\"\",\"\",'1. Order'!AY672)","v":""},{"$f":"IF('1. Order'!AZ672=\"\",\"\",'1. Order'!AZ672)","v":""},{"$f":"IF('1. Order'!BA672=\"\",\"\",'1. Order'!BA672)","v":""},{"$f":"IF('1. Order'!BC672=\"\",\"\",'1. Order'!BC672)","v":""},{"$f":"IF('1. Order'!BD672=\"\",\"\",'1. Order'!BD672)","v":6},{"$f":"IF('1. Order'!BE672=\"\",\"\",'1. Order'!BE672)","v":"None"},{"$f":"IF('1. Order'!BF672=\"\",\"\",'1. Order'!BF672)","v":"Parcel"},{"$f":"IF('1. Order'!BG672=\"\",\"\",'1. Order'!BG672)","v":"ZWO"}]
[{"$f":"IF('1. Order'!F673=\"\",\"\",'1. Order'!F673)","v":""},{"$f":"IF('1. Order'!G673=\"\",\"\",'1. Order'!G673)","v":""},{"$f":"IF('1. Order'!H673=\"\",\"\",'1. Order'!H673)","v":""},{"$f":"IF('1. Order'!I673=\"\",\"\",'1. Order'!I673)","v":""},{"$f":"IF('1. Order'!J673=\"\",\"\",'1. Order'!J673)","v":""},{"$f":"IF('1. Order'!K673=\"\",\"\",'1. Order'!K673)","v":""},{"$f":"IF('1. Order'!L673=\"\",\"\",'1. Order'!L673)","v":""},{"$f":"IF('1. Order'!M673=\"\",\"\",'1. Order'!M673)","v":""},{"$f":"IF('1. Order'!N673=\"\",\"\",'1. Order'!N673)","v":""},{"$f":"IF('1. Order'!O673=\"\",\"\",'1. Order'!O673)","v":{"$error":"#N/A"}},{"$f":"IF('1. Order'!P673=\"\",\"\",'1. Order'!P673)","v":{"$error":"#N/A"}},{"$f":"IF('1. Order'!Q673=\"\",\"\",'1. Order'!Q673)","v":""},{"$f":"IF('1. Order'!R673=\"\",\"\",'1. Order'!R673)","v":""},{"$f":"IF('1. Order'!S673=\"\",\"\",'1. Order'!S673)","v":""},{"$f":"IF('1. Order'!V673=\"\",\"\",'1. Order'!V673)","v":""},{"$f":"IF('1. Order'!W673=\"\",\"\",'1. Order'!W673)","v":""},{"$f":"IF('1. Order'!X673=\"\",\"\",'1. Order'!X673)","v":"EUR"},{"$f":"IF('1. Order'!Y673=\"\",\"\",'1. Order'!Y673)","v":""},{"$f":"IF('1. Order'!Z673=\"\",\"\",'1. Order'!Z673)","v":""},{"$f":"IF('1. Order'!AA673=\"\",\"\",'1. Order'!AA673)","v":""},null,{"$f":"IF('1. Order'!AS673=\"\",\"\",'1. Order'!AS673)","v":""},{"$f":"IF('1. Order'!AT673=\"\",\"\",'1. Order'!AT673)","v":""},null,null,null,null,null,null,null,{"$f":"IF('1. Order'!AX673=\"\",\"\",'1. Order'!AX673)","v":""},{"$f":"IF('1. Order'!AY673=\"\",\"\",'1. Order'!AY673)","v":""},{"$f":"IF('1. Order'!AZ673=\"\",\"\",'1. Order'!AZ673)","v":""},{"$f":"IF('1. Order'!BA673=\"\",\"\",'1. Order'!BA673)","v":""},{"$f":"IF('1. Order'!BC673=\"\",\"\",'1. Order'!BC673)","v":""},{"$f":"IF('1. Order'!BD673=\"\",\"\",'1. Order'!BD673)","v":6},{"$f":"IF('1. Order'!BE673=\"\",\"\",'1. Order'!BE673)","v":"None"},{"$f":"IF('1. Order'!BF673=\"\",\"\",'1. Order'!BF673)","v":"Parcel"},{"$f":"IF('1. Order'!BG673=\"\",\"\",'1. Order'!BG673)","v":"ZWO"}]
[{"$f":"IF('1. Order'!F674=\"\",\"\",'1. Order'!F674)","v":""},{"$f":"IF('1. Order'!G674=\"\",\"\",'1. Order'!G674)","v":""},{"$f":"IF('1. Order'!H674=\"\",\"\",'1. Order'!H674)","v":""},{"$f":"IF('1. Order'!I674=\"\",\"\",'1. Order'!I674)","v":""},{"$f":"IF('1. Order'!J674=\"\",\"\",'1. Order'!J674)","v":""},{"$f":"IF('1. Order'!K674=\"\",\"\",'1. Order'!K674)","v":""},{"$f":"IF('1. Order'!L674=\"\",\"\",'1. Order'!L674)","v":""},{"$f":"IF('1. Order'!M674=\"\",\"\",'1. Order'!M674)","v":""},{"$f":"IF('1. Order'!N674=\"\",\"\",'1. Order'!N674)","v":""},{"$f":"IF('1. Order'!O674=\"\",\"\",'1. Order'!O674)","v":{"$error":"#N/A"}},{"$f":"IF('1. Order'!P674=\"\",\"\",'1. Order'!P674)","v":{"$error":"#N/A"}},{"$f":"IF('1. Order'!Q674=\"\",\"\",'1. Order'!Q674)","v":""},{"$f":"IF('1. Order'!R674=\"\",\"\",'1. Order'!R674)","v":""},{"$f":"IF('1. Order'!S674=\"\",\"\",'1. Order'!S674)","v":""},{"$f":"IF('1. Order'!V674=\"\",\"\",'1. Order'!V674)","v":""},{"$f":"IF('1. Order'!W674=\"\",\"\",'1. Order'!W674)","v":""},{"$f":"IF('1. Order'!X674=\"\",\"\",'1. Order'!X674)","v":"EUR"},{"$f":"IF('1. Order'!Y674=\"\",\"\",'1. Order'!Y674)","v":""},{"$f":"IF('1. Order'!Z674=\"\",\"\",'1. Order'!Z674)","v":""},{"$f":"IF('1. Order'!AA674=\"\",\"\",'1. Order'!AA674)","v":""},null,{"$f":"IF('1. Order'!AS674=\"\",\"\",'1. Order'!AS674)","v":""},{"$f":"IF('1. Order'!AT674=\"\",\"\",'1. Order'!AT674)","v":""},null,null,null,null,null,null,null,{"$f":"IF('1. Order'!AX674=\"\",\"\",'1. Order'!AX674)","v":""},{"$f":"IF('1. Order'!AY674=\"\",\"\",'1. Order'!AY674)","v":""},{"$f":"IF('1. Order'!AZ674=\"\",\"\",'1. Order'!AZ674)","v":""},{"$f":"IF('1. Order'!BA674=\"\",\"\",'1. Order'!BA674)","v":""},{"$f":"IF('1. Order'!BC674=\"\",\"\",'1. Order'!BC674)","v":""},{"$f":"IF('1. Order'!BD674=\"\",\"\",'1. Order'!BD674)","v":6},{"$f":"IF('1. Order'!BE674=\"\",\"\",'1. Order'!BE674)","v":"None"},{"$f":"IF('1. Order'!BF674=\"\",\"\",'1. Order'!BF674)","v":"Parcel"},{"$f":"IF('1. Order'!BG674=\"\",\"\",'1. Order'!BG674)","v":"ZWO"}]
[{"$f":"IF('1. Order'!F675=\"\",\"\",'1. Order'!F675)","v":""},{"$f":"IF('1. Order'!G675=\"\",\"\",'1. Order'!G675)","v":""},{"$f":"IF('1. Order'!H675=\"\",\"\",'1. Order'!H675)","v":""},{"$f":"IF('1. Order'!I675=\"\",\"\",'1. Order'!I675)","v":""},{"$f":"IF('1. Order'!J675=\"\",\"\",'1. Order'!J675)","v":""},{"$f":"IF('1. Order'!K675=\"\",\"\",'1. Order'!K675)","v":""},{"$f":"IF('1. Order'!L675=\"\",\"\",'1. Order'!L675)","v":""},{"$f":"IF('1. Order'!M675=\"\",\"\",'1. Order'!M675)","v":""},{"$f":"IF('1. Order'!N675=\"\",\"\",'1. Order'!N675)","v":""},{"$f":"IF('1. Order'!O675=\"\",\"\",'1. Order'!O675)","v":{"$error":"#N/A"}},{"$f":"IF('1. Order'!P675=\"\",\"\",'1. Order'!P675)","v":{"$error":"#N/A"}},{"$f":"IF('1. Order'!Q675=\"\",\"\",'1. Order'!Q675)","v":""},{"$f":"IF('1. Order'!R675=\"\",\"\",'1. Order'!R675)","v":""},{"$f":"IF('1. Order'!S675=\"\",\"\",'1. Order'!S675)","v":""},{"$f":"IF('1. Order'!V675=\"\",\"\",'1. Order'!V675)","v":""},{"$f":"IF('1. Order'!W675=\"\",\"\",'1. Order'!W675)","v":""},{"$f":"IF('1. Order'!X675=\"\",\"\",'1. Order'!X675)","v":"EUR"},{"$f":"IF('1. Order'!Y675=\"\",\"\",'1. Order'!Y675)","v":""},{"$f":"IF('1. Order'!Z675=\"\",\"\",'1. Order'!Z675)","v":""},{"$f":"IF('1. Order'!AA675=\"\",\"\",'1. Order'!AA675)","v":""},null,{"$f":"IF('1. Order'!AS675=\"\",\"\",'1. Order'!AS675)","v":""},{"$f":"IF('1. Order'!AT675=\"\",\"\",'1. Order'!AT675)","v":""},null,null,null,null,null,null,null,{"$f":"IF('1. Order'!AX675=\"\",\"\",'1. Order'!AX675)","v":""},{"$f":"IF('1. Order'!AY675=\"\",\"\",'1. Order'!AY675)","v":""},{"$f":"IF('1. Order'!AZ675=\"\",\"\",'1. Order'!AZ675)","v":""},{"$f":"IF('1. Order'!BA675=\"\",\"\",'1. Order'!BA675)","v":""},{"$f":"IF('1. Order'!BC675=\"\",\"\",'1. Order'!BC675)","v":""},{"$f":"IF('1. Order'!BD675=\"\",\"\",'1. Order'!BD675)","v":6},{"$f":"IF('1. Order'!BE675=\"\",\"\",'1. Order'!BE675)","v":"None"},{"$f":"IF('1. Order'!BF675=\"\",\"\",'1. Order'!BF675)","v":"Parcel"},{"$f":"IF('1. Order'!BG675=\"\",\"\",'1. Order'!BG675)","v":"ZWO"}]
[{"$f":"IF('1. Order'!F676=\"\",\"\",'1. Order'!F676)","v":""},{"$f":"IF('1. Order'!G676=\"\",\"\",'1. Order'!G676)","v":""},{"$f":"IF('1. Order'!H676=\"\",\"\",'1. Order'!H676)","v":""},{"$f":"IF('1. Order'!I676=\"\",\"\",'1. Order'!I676)","v":""},{"$f":"IF('1. Order'!J676=\"\",\"\",'1. Order'!J676)","v":""},{"$f":"IF('1. Order'!K676=\"\",\"\",'1. Order'!K676)","v":""},{"$f":"IF('1. Order'!L676=\"\",\"\",'1. Order'!L676)","v":""},{"$f":"IF('1. Order'!M676=\"\",\"\",'1. Order'!M676)","v":""},{"$f":"IF('1. Order'!N676=\"\",\"\",'1. Order'!N676)","v":""},{"$f":"IF('1. Order'!O676=\"\",\"\",'1. Order'!O676)","v":{"$error":"#N/A"}},{"$f":"IF('1. Order'!P676=\"\",\"\",'1. Order'!P676)","v":{"$error":"#N/A"}},{"$f":"IF('1. Order'!Q676=\"\",\"\",'1. Order'!Q676)","v":""},{"$f":"IF('1. Order'!R676=\"\",\"\",'1. Order'!R676)","v":""},{"$f":"IF('1. Order'!S676=\"\",\"\",'1. Order'!S676)","v":""},{"$f":"IF('1. Order'!V676=\"\",\"\",'1. Order'!V676)","v":""},{"$f":"IF('1. Order'!W676=\"\",\"\",'1. Order'!W676)","v":""},{"$f":"IF('1. Order'!X676=\"\",\"\",'1. Order'!X676)","v":"EUR"},{"$f":"IF('1. Order'!Y676=\"\",\"\",'1. Order'!Y676)","v":""},{"$f":"IF('1. Order'!Z676=\"\",\"\",'1. Order'!Z676)","v":""},{"$f":"IF('1. Order'!AA676=\"\",\"\",'1. Order'!AA676)","v":""},null,{"$f":"IF('1. Order'!AS676=\"\",\"\",'1. Order'!AS676)","v":""},{"$f":"IF('1. Order'!AT676=\"\",\"\",'1. Order'!AT676)","v":""},null,null,null,null,null,null,null,{"$f":"IF('1. Order'!AX676=\"\",\"\",'1. Order'!AX676)","v":""},{"$f":"IF('1. Order'!AY676=\"\",\"\",'1. Order'!AY676)","v":""},{"$f":"IF('1. Order'!AZ676=\"\",\"\",'1. Order'!AZ676)","v":""},{"$f":"IF('1. Order'!BA676=\"\",\"\",'1. Order'!BA676)","v":""},{"$f":"IF('1. Order'!BC676=\"\",\"\",'1. Order'!BC676)","v":""},{"$f":"IF('1. Order'!BD676=\"\",\"\",'1. Order'!BD676)","v":6},{"$f":"IF('1. Order'!BE676=\"\",\"\",'1. Order'!BE676)","v":"None"},{"$f":"IF('1. Order'!BF676=\"\",\"\",'1. Order'!BF676)","v":"Parcel"},{"$f":"IF('1. Order'!BG676=\"\",\"\",'1. Order'!BG676)","v":"ZWO"}]
[{"$f":"IF('1. Order'!F677=\"\",\"\",'1. Order'!F677)","v":""},{"$f":"IF('1. Order'!G677=\"\",\"\",'1. Order'!G677)","v":""},{"$f":"IF('1. Order'!H677=\"\",\"\",'1. Order'!H677)","v":""},{"$f":"IF('1. Order'!I677=\"\",\"\",'1. Order'!I677)","v":""},{"$f":"IF('1. Order'!J677=\"\",\"\",'1. Order'!J677)","v":""},{"$f":"IF('1. Order'!K677=\"\",\"\",'1. Order'!K677)","v":""},{"$f":"IF('1. Order'!L677=\"\",\"\",'1. Order'!L677)","v":""},{"$f":"IF('1. Order'!M677=\"\",\"\",'1. Order'!M677)","v":""},{"$f":"IF('1. Order'!N677=\"\",\"\",'1. Order'!N677)","v":""},{"$f":"IF('1. Order'!O677=\"\",\"\",'1. Order'!O677)","v":{"$error":"#N/A"}},{"$f":"IF('1. Order'!P677=\"\",\"\",'1. Order'!P677)","v":{"$error":"#N/A"}},{"$f":"IF('1. Order'!Q677=\"\",\"\",'1. Order'!Q677)","v":""},{"$f":"IF('1. Order'!R677=\"\",\"\",'1. Order'!R677)","v":""},{"$f":"IF('1. Order'!S677=\"\",\"\",'1. Order'!S677)","v":""},{"$f":"IF('1. Order'!V677=\"\",\"\",'1. Order'!V677)","v":""},{"$f":"IF('1. Order'!W677=\"\",\"\",'1. Order'!W677)","v":""},{"$f":"IF('1. Order'!X677=\"\",\"\",'1. Order'!X677)","v":"EUR"},{"$f":"IF('1. Order'!Y677=\"\",\"\",'1. Order'!Y677)","v":""},{"$f":"IF('1. Order'!Z677=\"\",\"\",'1. Order'!Z677)","v":""},{"$f":"IF('1. Order'!AA677=\"\",\"\",'1. Order'!AA677)","v":""},null,{"$f":"IF('1. Order'!AS677=\"\",\"\",'1. Order'!AS677)","v":""},{"$f":"IF('1. Order'!AT677=\"\",\"\",'1. Order'!AT677)","v":""},null,null,null,null,null,null,null,{"$f":"IF('1. Order'!AX677=\"\",\"\",'1. Order'!AX677)","v":""},{"$f":"IF('1. Order'!AY677=\"\",\"\",'1. Order'!AY677)","v":""},{"$f":"IF('1. Order'!AZ677=\"\",\"\",'1. Order'!AZ677)","v":""},{"$f":"IF('1. Order'!BA677=\"\",\"\",'1. Order'!BA677)","v":""},{"$f":"IF('1. Order'!BC677=\"\",\"\",'1. Order'!BC677)","v":""},{"$f":"IF('1. Order'!BD677=\"\",\"\",'1. Order'!BD677)","v":6},{"$f":"IF('1. Order'!BE677=\"\",\"\",'1. Order'!BE677)","v":"None"},{"$f":"IF('1. Order'!BF677=\"\",\"\",'1. Order'!BF677)","v":"Parcel"},{"$f":"IF('1. Order'!BG677=\"\",\"\",'1. Order'!BG677)","v":"ZWO"}]
[{"$f":"IF('1. Order'!F678=\"\",\"\",'1. Order'!F678)","v":""},{"$f":"IF('1. Order'!G678=\"\",\"\",'1. Order'!G678)","v":""},{"$f":"IF('1. Order'!H678=\"\",\"\",'1. Order'!H678)","v":""},{"$f":"IF('1. Order'!I678=\"\",\"\",'1. Order'!I678)","v":""},{"$f":"IF('1. Order'!J678=\"\",\"\",'1. Order'!J678)","v":""},{"$f":"IF('1. Order'!K678=\"\",\"\",'1. Order'!K678)","v":""},{"$f":"IF('1. Order'!L678=\"\",\"\",'1. Order'!L678)","v":""},{"$f":"IF('1. Order'!M678=\"\",\"\",'1. Order'!M678)","v":""},{"$f":"IF('1. Order'!N678=\"\",\"\",'1. Order'!N678)","v":""},{"$f":"IF('1. Order'!O678=\"\",\"\",'1. Order'!O678)","v":{"$error":"#N/A"}},{"$f":"IF('1. Order'!P678=\"\",\"\",'1. Order'!P678)","v":{"$error":"#N/A"}},{"$f":"IF('1. Order'!Q678=\"\",\"\",'1. Order'!Q678)","v":""},{"$f":"IF('1. Order'!R678=\"\",\"\",'1. Order'!R678)","v":""},{"$f":"IF('1. Order'!S678=\"\",\"\",'1. Order'!S678)","v":""},{"$f":"IF('1. Order'!V678=\"\",\"\",'1. Order'!V678)","v":""},{"$f":"IF('1. Order'!W678=\"\",\"\",'1. Order'!W678)","v":""},{"$f":"IF('1. Order'!X678=\"\",\"\",'1. Order'!X678)","v":"EUR"},{"$f":"IF('1. Order'!Y678=\"\",\"\",'1. Order'!Y678)","v":""},{"$f":"IF('1. Order'!Z678=\"\",\"\",'1. Order'!Z678)","v":""},{"$f":"IF('1. Order'!AA678=\"\",\"\",'1. Order'!AA678)","v":""},null,{"$f":"IF('1. Order'!AS678=\"\",\"\",'1. Order'!AS678)","v":""},{"$f":"IF('1. Order'!AT678=\"\",\"\",'1. Order'!AT678)","v":""},null,null,null,null,null,null,null,{"$f":"IF('1. Order'!AX678=\"\",\"\",'1. Order'!AX678)","v":""},{"$f":"IF('1. Order'!AY678=\"\",\"\",'1. Order'!AY678)","v":""},{"$f":"IF('1. Order'!AZ678=\"\",\"\",'1. Order'!AZ678)","v":""},{"$f":"IF('1. Order'!BA678=\"\",\"\",'1. Order'!BA678)","v":""},{"$f":"IF('1. Order'!BC678=\"\",\"\",'1. Order'!BC678)","v":""},{"$f":"IF('1. Order'!BD678=\"\",\"\",'1. Order'!BD678)","v":6},{"$f":"IF('1. Order'!BE678=\"\",\"\",'1. Order'!BE678)","v":"None"},{"$f":"IF('1. Order'!BF678=\"\",\"\",'1. Order'!BF678)","v":"Parcel"},{"$f":"IF('1. Order'!BG678=\"\",\"\",'1. Order'!BG678)","v":"ZWO"}]
[{"$f":"IF('1. Order'!F679=\"\",\"\",'1. Order'!F679)","v":""},{"$f":"IF('1. Order'!G679=\"\",\"\",'1. Order'!G679)","v":""},{"$f":"IF('1. Order'!H679=\"\",\"\",'1. Order'!H679)","v":""},{"$f":"IF('1. Order'!I679=\"\",\"\",'1. Order'!I679)","v":""},{"$f":"IF('1. Order'!J679=\"\",\"\",'1. Order'!J679)","v":""},{"$f":"IF('1. Order'!K679=\"\",\"\",'1. Order'!K679)","v":""},{"$f":"IF('1. Order'!L679=\"\",\"\",'1. Order'!L679)","v":""},{"$f":"IF('1. Order'!M679=\"\",\"\",'1. Order'!M679)","v":""},{"$f":"IF('1. Order'!N679=\"\",\"\",'1. Order'!N679)","v":""},{"$f":"IF('1. Order'!O679=\"\",\"\",'1. Order'!O679)","v":{"$error":"#N/A"}},{"$f":"IF('1. Order'!P679=\"\",\"\",'1. Order'!P679)","v":{"$error":"#N/A"}},{"$f":"IF('1. Order'!Q679=\"\",\"\",'1. Order'!Q679)","v":""},{"$f":"IF('1. Order'!R679=\"\",\"\",'1. Order'!R679)","v":""},{"$f":"IF('1. Order'!S679=\"\",\"\",'1. Order'!S679)","v":""},{"$f":"IF('1. Order'!V679=\"\",\"\",'1. Order'!V679)","v":""},{"$f":"IF('1. Order'!W679=\"\",\"\",'1. Order'!W679)","v":""},{"$f":"IF('1. Order'!X679=\"\",\"\",'1. Order'!X679)","v":"EUR"},{"$f":"IF('1. Order'!Y679=\"\",\"\",'1. Order'!Y679)","v":""},{"$f":"IF('1. Order'!Z679=\"\",\"\",'1. Order'!Z679)","v":""},{"$f":"IF('1. Order'!AA679=\"\",\"\",'1. Order'!AA679)","v":""},null,{"$f":"IF('1. Order'!AS679=\"\",\"\",'1. Order'!AS679)","v":""},{"$f":"IF('1. Order'!AT679=\"\",\"\",'1. Order'!AT679)","v":""},null,null,null,null,null,null,null,{"$f":"IF('1. Order'!AX679=\"\",\"\",'1. Order'!AX679)","v":""},{"$f":"IF('1. Order'!AY679=\"\",\"\",'1. Order'!AY679)","v":""},{"$f":"IF('1. Order'!AZ679=\"\",\"\",'1. Order'!AZ679)","v":""},{"$f":"IF('1. Order'!BA679=\"\",\"\",'1. Order'!BA679)","v":""},{"$f":"IF('1. Order'!BC679=\"\",\"\",'1. Order'!BC679)","v":""},{"$f":"IF('1. Order'!BD679=\"\",\"\",'1. Order'!BD679)","v":6},{"$f":"IF('1. Order'!BE679=\"\",\"\",'1. Order'!BE679)","v":"None"},{"$f":"IF('1. Order'!BF679=\"\",\"\",'1. Order'!BF679)","v":"Parcel"},{"$f":"IF('1. Order'!BG679=\"\",\"\",'1. Order'!BG679)","v":"ZWO"}]
[{"$f":"IF('1. Order'!F680=\"\",\"\",'1. Order'!F680)","v":""},{"$f":"IF('1. Order'!G680=\"\",\"\",'1. Order'!G680)","v":""},{"$f":"IF('1. Order'!H680=\"\",\"\",'1. Order'!H680)","v":""},{"$f":"IF('1. Order'!I680=\"\",\"\",'1. Order'!I680)","v":""},{"$f":"IF('1. Order'!J680=\"\",\"\",'1. Order'!J680)","v":""},{"$f":"IF('1. Order'!K680=\"\",\"\",'1. Order'!K680)","v":""},{"$f":"IF('1. Order'!L680=\"\",\"\",'1. Order'!L680)","v":""},{"$f":"IF('1. Order'!M680=\"\",\"\",'1. Order'!M680)","v":""},{"$f":"IF('1. Order'!N680=\"\",\"\",'1. Order'!N680)","v":""},{"$f":"IF('1. Order'!O680=\"\",\"\",'1. Order'!O680)","v":{"$error":"#N/A"}},{"$f":"IF('1. Order'!P680=\"\",\"\",'1. Order'!P680)","v":{"$error":"#N/A"}},{"$f":"IF('1. Order'!Q680=\"\",\"\",'1. Order'!Q680)","v":""},{"$f":"IF('1. Order'!R680=\"\",\"\",'1. Order'!R680)","v":""},{"$f":"IF('1. Order'!S680=\"\",\"\",'1. Order'!S680)","v":""},{"$f":"IF('1. Order'!V680=\"\",\"\",'1. Order'!V680)","v":""},{"$f":"IF('1. Order'!W680=\"\",\"\",'1. Order'!W680)","v":""},{"$f":"IF('1. Order'!X680=\"\",\"\",'1. Order'!X680)","v":"EUR"},{"$f":"IF('1. Order'!Y680=\"\",\"\",'1. Order'!Y680)","v":""},{"$f":"IF('1. Order'!Z680=\"\",\"\",'1. Order'!Z680)","v":""},{"$f":"IF('1. Order'!AA680=\"\",\"\",'1. Order'!AA680)","v":""},null,{"$f":"IF('1. Order'!AS680=\"\",\"\",'1. Order'!AS680)","v":""},{"$f":"IF('1. Order'!AT680=\"\",\"\",'1. Order'!AT680)","v":""},null,null,null,null,null,null,null,{"$f":"IF('1. Order'!AX680=\"\",\"\",'1. Order'!AX680)","v":""},{"$f":"IF('1. Order'!AY680=\"\",\"\",'1. Order'!AY680)","v":""},{"$f":"IF('1. Order'!AZ680=\"\",\"\",'1. Order'!AZ680)","v":""},{"$f":"IF('1. Order'!BA680=\"\",\"\",'1. Order'!BA680)","v":""},{"$f":"IF('1. Order'!BC680=\"\",\"\",'1. Order'!BC680)","v":""},{"$f":"IF('1. Order'!BD680=\"\",\"\",'1. Order'!BD680)","v":6},{"$f":"IF('1. Order'!BE680=\"\",\"\",'1. Order'!BE680)","v":"None"},{"$f":"IF('1. Order'!BF680=\"\",\"\",'1. Order'!BF680)","v":"Parcel"},{"$f":"IF('1. Order'!BG680=\"\",\"\",'1. Order'!BG680)","v":"ZWO"}]
[{"$f":"IF('1. Order'!F681=\"\",\"\",'1. Order'!F681)","v":""},{"$f":"IF('1. Order'!G681=\"\",\"\",'1. Order'!G681)","v":""},{"$f":"IF('1. Order'!H681=\"\",\"\",'1. Order'!H681)","v":""},{"$f":"IF('1. Order'!I681=\"\",\"\",'1. Order'!I681)","v":""},{"$f":"IF('1. Order'!J681=\"\",\"\",'1. Order'!J681)","v":""},{"$f":"IF('1. Order'!K681=\"\",\"\",'1. Order'!K681)","v":""},{"$f":"IF('1. Order'!L681=\"\",\"\",'1. Order'!L681)","v":""},{"$f":"IF('1. Order'!M681=\"\",\"\",'1. Order'!M681)","v":""},{"$f":"IF('1. Order'!N681=\"\",\"\",'1. Order'!N681)","v":""},{"$f":"IF('1. Order'!O681=\"\",\"\",'1. Order'!O681)","v":{"$error":"#N/A"}},{"$f":"IF('1. Order'!P681=\"\",\"\",'1. Order'!P681)","v":{"$error":"#N/A"}},{"$f":"IF('1. Order'!Q681=\"\",\"\",'1. Order'!Q681)","v":""},{"$f":"IF('1. Order'!R681=\"\",\"\",'1. Order'!R681)","v":""},{"$f":"IF('1. Order'!S681=\"\",\"\",'1. Order'!S681)","v":""},{"$f":"IF('1. Order'!V681=\"\",\"\",'1. Order'!V681)","v":""},{"$f":"IF('1. Order'!W681=\"\",\"\",'1. Order'!W681)","v":""},{"$f":"IF('1. Order'!X681=\"\",\"\",'1. Order'!X681)","v":"EUR"},{"$f":"IF('1. Order'!Y681=\"\",\"\",'1. Order'!Y681)","v":""},{"$f":"IF('1. Order'!Z681=\"\",\"\",'1. Order'!Z681)","v":""},{"$f":"IF('1. Order'!AA681=\"\",\"\",'1. Order'!AA681)","v":""},null,{"$f":"IF('1. Order'!AS681=\"\",\"\",'1. Order'!AS681)","v":""},{"$f":"IF('1. Order'!AT681=\"\",\"\",'1. Order'!AT681)","v":""},null,null,null,null,null,null,null,{"$f":"IF('1. Order'!AX681=\"\",\"\",'1. Order'!AX681)","v":""},{"$f":"IF('1. Order'!AY681=\"\",\"\",'1. Order'!AY681)","v":""},{"$f":"IF('1. Order'!AZ681=\"\",\"\",'1. Order'!AZ681)","v":""},{"$f":"IF('1. Order'!BA681=\"\",\"\",'1. Order'!BA681)","v":""},{"$f":"IF('1. Order'!BC681=\"\",\"\",'1. Order'!BC681)","v":""},{"$f":"IF('1. Order'!BD681=\"\",\"\",'1. Order'!BD681)","v":6},{"$f":"IF('1. Order'!BE681=\"\",\"\",'1. Order'!BE681)","v":"None"},{"$f":"IF('1. Order'!BF681=\"\",\"\",'1. Order'!BF681)","v":"Parcel"},{"$f":"IF('1. Order'!BG681=\"\",\"\",'1. Order'!BG681)","v":"ZWO"}]
[{"$f":"IF('1. Order'!F682=\"\",\"\",'1. Order'!F682)","v":""},{"$f":"IF('1. Order'!G682=\"\",\"\",'1. Order'!G682)","v":""},{"$f":"IF('1. Order'!H682=\"\",\"\",'1. Order'!H682)","v":""},{"$f":"IF('1. Order'!I682=\"\",\"\",'1. Order'!I682)","v":""},{"$f":"IF('1. Order'!J682=\"\",\"\",'1. Order'!J682)","v":""},{"$f":"IF('1. Order'!K682=\"\",\"\",'1. Order'!K682)","v":""},{"$f":"IF('1. Order'!L682=\"\",\"\",'1. Order'!L682)","v":""},{"$f":"IF('1. Order'!M682=\"\",\"\",'1. Order'!M682)","v":""},{"$f":"IF('1. Order'!N682=\"\",\"\",'1. Order'!N682)","v":""},{"$f":"IF('1. Order'!O682=\"\",\"\",'1. Order'!O682)","v":{"$error":"#N/A"}},{"$f":"IF('1. Order'!P682=\"\",\"\",'1. Order'!P682)","v":{"$error":"#N/A"}},{"$f":"IF('1. Order'!Q682=\"\",\"\",'1. Order'!Q682)","v":""},{"$f":"IF('1. Order'!R682=\"\",\"\",'1. Order'!R682)","v":""},{"$f":"IF('1. Order'!S682=\"\",\"\",'1. Order'!S682)","v":""},{"$f":"IF('1. Order'!V682=\"\",\"\",'1. Order'!V682)","v":""},{"$f":"IF('1. Order'!W682=\"\",\"\",'1. Order'!W682)","v":""},{"$f":"IF('1. Order'!X682=\"\",\"\",'1. Order'!X682)","v":"EUR"},{"$f":"IF('1. Order'!Y682=\"\",\"\",'1. Order'!Y682)","v":""},{"$f":"IF('1. Order'!Z682=\"\",\"\",'1. Order'!Z682)","v":""},{"$f":"IF('1. Order'!AA682=\"\",\"\",'1. Order'!AA682)","v":""},null,{"$f":"IF('1. Order'!AS682=\"\",\"\",'1. Order'!AS682)","v":""},{"$f":"IF('1. Order'!AT682=\"\",\"\",'1. Order'!AT682)","v":""},null,null,null,null,null,null,null,{"$f":"IF('1. Order'!AX682=\"\",\"\",'1. Order'!AX682)","v":""},{"$f":"IF('1. Order'!AY682=\"\",\"\",'1. Order'!AY682)","v":""},{"$f":"IF('1. Order'!AZ682=\"\",\"\",'1. Order'!AZ682)","v":""},{"$f":"IF('1. Order'!BA682=\"\",\"\",'1. Order'!BA682)","v":""},{"$f":"IF('1. Order'!BC682=\"\",\"\",'1. Order'!BC682)","v":""},{"$f":"IF('1. Order'!BD682=\"\",\"\",'1. Order'!BD682)","v":6},{"$f":"IF('1. Order'!BE682=\"\",\"\",'1. Order'!BE682)","v":"None"},{"$f":"IF('1. Order'!BF682=\"\",\"\",'1. Order'!BF682)","v":"Parcel"},{"$f":"IF('1. Order'!BG682=\"\",\"\",'1. Order'!BG682)","v":"ZWO"}]
[{"$f":"IF('1. Order'!F683=\"\",\"\",'1. Order'!F683)","v":""},{"$f":"IF('1. Order'!G683=\"\",\"\",'1. Order'!G683)","v":""},{"$f":"IF('1. Order'!H683=\"\",\"\",'1. Order'!H683)","v":""},{"$f":"IF('1. Order'!I683=\"\",\"\",'1. Order'!I683)","v":""},{"$f":"IF('1. Order'!J683=\"\",\"\",'1. Order'!J683)","v":""},{"$f":"IF('1. Order'!K683=\"\",\"\",'1. Order'!K683)","v":""},{"$f":"IF('1. Order'!L683=\"\",\"\",'1. Order'!L683)","v":""},{"$f":"IF('1. Order'!M683=\"\",\"\",'1. Order'!M683)","v":""},{"$f":"IF('1. Order'!N683=\"\",\"\",'1. Order'!N683)","v":""},{"$f":"IF('1. Order'!O683=\"\",\"\",'1. Order'!O683)","v":{"$error":"#N/A"}},{"$f":"IF('1. Order'!P683=\"\",\"\",'1. Order'!P683)","v":{"$error":"#N/A"}},{"$f":"IF('1. Order'!Q683=\"\",\"\",'1. Order'!Q683)","v":""},{"$f":"IF('1. Order'!R683=\"\",\"\",'1. Order'!R683)","v":""},{"$f":"IF('1. Order'!S683=\"\",\"\",'1. Order'!S683)","v":""},{"$f":"IF('1. Order'!V683=\"\",\"\",'1. Order'!V683)","v":""},{"$f":"IF('1. Order'!W683=\"\",\"\",'1. Order'!W683)","v":""},{"$f":"IF('1. Order'!X683=\"\",\"\",'1. Order'!X683)","v":"EUR"},{"$f":"IF('1. Order'!Y683=\"\",\"\",'1. Order'!Y683)","v":""},{"$f":"IF('1. Order'!Z683=\"\",\"\",'1. Order'!Z683)","v":""},{"$f":"IF('1. Order'!AA683=\"\",\"\",'1. Order'!AA683)","v":""},null,{"$f":"IF('1. Order'!AS683=\"\",\"\",'1. Order'!AS683)","v":""},{"$f":"IF('1. Order'!AT683=\"\",\"\",'1. Order'!AT683)","v":""},null,null,null,null,null,null,null,{"$f":"IF('1. Order'!AX683=\"\",\"\",'1. Order'!AX683)","v":""},{"$f":"IF('1. Order'!AY683=\"\",\"\",'1. Order'!AY683)","v":""},{"$f":"IF('1. Order'!AZ683=\"\",\"\",'1. Order'!AZ683)","v":""},{"$f":"IF('1. Order'!BA683=\"\",\"\",'1. Order'!BA683)","v":""},{"$f":"IF('1. Order'!BC683=\"\",\"\",'1. Order'!BC683)","v":""},{"$f":"IF('1. Order'!BD683=\"\",\"\",'1. Order'!BD683)","v":6},{"$f":"IF('1. Order'!BE683=\"\",\"\",'1. Order'!BE683)","v":"None"},{"$f":"IF('1. Order'!BF683=\"\",\"\",'1. Order'!BF683)","v":"Parcel"},{"$f":"IF('1. Order'!BG683=\"\",\"\",'1. Order'!BG683)","v":"ZWO"}]
[{"$f":"IF('1. Order'!F684=\"\",\"\",'1. Order'!F684)","v":""},{"$f":"IF('1. Order'!G684=\"\",\"\",'1. Order'!G684)","v":""},{"$f":"IF('1. Order'!H684=\"\",\"\",'1. Order'!H684)","v":""},{"$f":"IF('1. Order'!I684=\"\",\"\",'1. Order'!I684)","v":""},{"$f":"IF('1. Order'!J684=\"\",\"\",'1. Order'!J684)","v":""},{"$f":"IF('1. Order'!K684=\"\",\"\",'1. Order'!K684)","v":""},{"$f":"IF('1. Order'!L684=\"\",\"\",'1. Order'!L684)","v":""},{"$f":"IF('1. Order'!M684=\"\",\"\",'1. Order'!M684)","v":""},{"$f":"IF('1. Order'!N684=\"\",\"\",'1. Order'!N684)","v":""},{"$f":"IF('1. Order'!O684=\"\",\"\",'1. Order'!O684)","v":{"$error":"#N/A"}},{"$f":"IF('1. Order'!P684=\"\",\"\",'1. Order'!P684)","v":{"$error":"#N/A"}},{"$f":"IF('1. Order'!Q684=\"\",\"\",'1. Order'!Q684)","v":""},{"$f":"IF('1. Order'!R684=\"\",\"\",'1. Order'!R684)","v":""},{"$f":"IF('1. Order'!S684=\"\",\"\",'1. Order'!S684)","v":""},{"$f":"IF('1. Order'!V684=\"\",\"\",'1. Order'!V684)","v":""},{"$f":"IF('1. Order'!W684=\"\",\"\",'1. Order'!W684)","v":""},{"$f":"IF('1. Order'!X684=\"\",\"\",'1. Order'!X684)","v":"EUR"},{"$f":"IF('1. Order'!Y684=\"\",\"\",'1. Order'!Y684)","v":""},{"$f":"IF('1. Order'!Z684=\"\",\"\",'1. Order'!Z684)","v":""},{"$f":"IF('1. Order'!AA684=\"\",\"\",'1. Order'!AA684)","v":""},null,{"$f":"IF('1. Order'!AS684=\"\",\"\",'1. Order'!AS684)","v":""},{"$f":"IF('1. Order'!AT684=\"\",\"\",'1. Order'!AT684)","v":""},null,null,null,null,null,null,null,{"$f":"IF('1. Order'!AX684=\"\",\"\",'1. Order'!AX684)","v":""},{"$f":"IF('1. Order'!AY684=\"\",\"\",'1. Order'!AY684)","v":""},{"$f":"IF('1. Order'!AZ684=\"\",\"\",'1. Order'!AZ684)","v":""},{"$f":"IF('1. Order'!BA684=\"\",\"\",'1. Order'!BA684)","v":""},{"$f":"IF('1. Order'!BC684=\"\",\"\",'1. Order'!BC684)","v":""},{"$f":"IF('1. Order'!BD684=\"\",\"\",'1. Order'!BD684)","v":6},{"$f":"IF('1. Order'!BE684=\"\",\"\",'1. Order'!BE684)","v":"None"},{"$f":"IF('1. Order'!BF684=\"\",\"\",'1. Order'!BF684)","v":"Parcel"},{"$f":"IF('1. Order'!BG684=\"\",\"\",'1. Order'!BG684)","v":"ZWO"}]
[{"$f":"IF('1. Order'!F685=\"\",\"\",'1. Order'!F685)","v":""},{"$f":"IF('1. Order'!G685=\"\",\"\",'1. Order'!G685)","v":""},{"$f":"IF('1. Order'!H685=\"\",\"\",'1. Order'!H685)","v":""},{"$f":"IF('1. Order'!I685=\"\",\"\",'1. Order'!I685)","v":""},{"$f":"IF('1. Order'!J685=\"\",\"\",'1. Order'!J685)","v":""},{"$f":"IF('1. Order'!K685=\"\",\"\",'1. Order'!K685)","v":""},{"$f":"IF('1. Order'!L685=\"\",\"\",'1. Order'!L685)","v":""},{"$f":"IF('1. Order'!M685=\"\",\"\",'1. Order'!M685)","v":""},{"$f":"IF('1. Order'!N685=\"\",\"\",'1. Order'!N685)","v":""},{"$f":"IF('1. Order'!O685=\"\",\"\",'1. Order'!O685)","v":{"$error":"#N/A"}},{"$f":"IF('1. Order'!P685=\"\",\"\",'1. Order'!P685)","v":{"$error":"#N/A"}},{"$f":"IF('1. Order'!Q685=\"\",\"\",'1. Order'!Q685)","v":""},{"$f":"IF('1. Order'!R685=\"\",\"\",'1. Order'!R685)","v":""},{"$f":"IF('1. Order'!S685=\"\",\"\",'1. Order'!S685)","v":""},{"$f":"IF('1. Order'!V685=\"\",\"\",'1. Order'!V685)","v":""},{"$f":"IF('1. Order'!W685=\"\",\"\",'1. Order'!W685)","v":""},{"$f":"IF('1. Order'!X685=\"\",\"\",'1. Order'!X685)","v":"EUR"},{"$f":"IF('1. Order'!Y685=\"\",\"\",'1. Order'!Y685)","v":""},{"$f":"IF('1. Order'!Z685=\"\",\"\",'1. Order'!Z685)","v":""},{"$f":"IF('1. Order'!AA685=\"\",\"\",'1. Order'!AA685)","v":""},null,{"$f":"IF('1. Order'!AS685=\"\",\"\",'1. Order'!AS685)","v":""},{"$f":"IF('1. Order'!AT685=\"\",\"\",'1. Order'!AT685)","v":""},null,null,null,null,null,null,null,{"$f":"IF('1. Order'!AX685=\"\",\"\",'1. Order'!AX685)","v":""},{"$f":"IF('1. Order'!AY685=\"\",\"\",'1. Order'!AY685)","v":""},{"$f":"IF('1. Order'!AZ685=\"\",\"\",'1. Order'!AZ685)","v":""},{"$f":"IF('1. Order'!BA685=\"\",\"\",'1. Order'!BA685)","v":""},{"$f":"IF('1. Order'!BC685=\"\",\"\",'1. Order'!BC685)","v":""},{"$f":"IF('1. Order'!BD685=\"\",\"\",'1. Order'!BD685)","v":6},{"$f":"IF('1. Order'!BE685=\"\",\"\",'1. Order'!BE685)","v":"None"},{"$f":"IF('1. Order'!BF685=\"\",\"\",'1. Order'!BF685)","v":"Parcel"},{"$f":"IF('1. Order'!BG685=\"\",\"\",'1. Order'!BG685)","v":"ZWO"}]
[{"$f":"IF('1. Order'!F686=\"\",\"\",'1. Order'!F686)","v":""},{"$f":"IF('1. Order'!G686=\"\",\"\",'1. Order'!G686)","v":""},{"$f":"IF('1. Order'!H686=\"\",\"\",'1. Order'!H686)","v":""},{"$f":"IF('1. Order'!I686=\"\",\"\",'1. Order'!I686)","v":""},{"$f":"IF('1. Order'!J686=\"\",\"\",'1. Order'!J686)","v":""},{"$f":"IF('1. Order'!K686=\"\",\"\",'1. Order'!K686)","v":""},{"$f":"IF('1. Order'!L686=\"\",\"\",'1. Order'!L686)","v":""},{"$f":"IF('1. Order'!M686=\"\",\"\",'1. Order'!M686)","v":""},{"$f":"IF('1. Order'!N686=\"\",\"\",'1. Order'!N686)","v":""},{"$f":"IF('1. Order'!O686=\"\",\"\",'1. Order'!O686)","v":{"$error":"#N/A"}},{"$f":"IF('1. Order'!P686=\"\",\"\",'1. Order'!P686)","v":{"$error":"#N/A"}},{"$f":"IF('1. Order'!Q686=\"\",\"\",'1. Order'!Q686)","v":""},{"$f":"IF('1. Order'!R686=\"\",\"\",'1. Order'!R686)","v":""},{"$f":"IF('1. Order'!S686=\"\",\"\",'1. Order'!S686)","v":""},{"$f":"IF('1. Order'!V686=\"\",\"\",'1. Order'!V686)","v":""},{"$f":"IF('1. Order'!W686=\"\",\"\",'1. Order'!W686)","v":""},{"$f":"IF('1. Order'!X686=\"\",\"\",'1. Order'!X686)","v":"EUR"},{"$f":"IF('1. Order'!Y686=\"\",\"\",'1. Order'!Y686)","v":""},{"$f":"IF('1. Order'!Z686=\"\",\"\",'1. Order'!Z686)","v":""},{"$f":"IF('1. Order'!AA686=\"\",\"\",'1. Order'!AA686)","v":""},null,{"$f":"IF('1. Order'!AS686=\"\",\"\",'1. Order'!AS686)","v":""},{"$f":"IF('1. Order'!AT686=\"\",\"\",'1. Order'!AT686)","v":""},null,null,null,null,null,null,null,{"$f":"IF('1. Order'!AX686=\"\",\"\",'1. Order'!AX686)","v":""},{"$f":"IF('1. Order'!AY686=\"\",\"\",'1. Order'!AY686)","v":""},{"$f":"IF('1. Order'!AZ686=\"\",\"\",'1. Order'!AZ686)","v":""},{"$f":"IF('1. Order'!BA686=\"\",\"\",'1. Order'!BA686)","v":""},{"$f":"IF('1. Order'!BC686=\"\",\"\",'1. Order'!BC686)","v":""},{"$f":"IF('1. Order'!BD686=\"\",\"\",'1. Order'!BD686)","v":6},{"$f":"IF('1. Order'!BE686=\"\",\"\",'1. Order'!BE686)","v":"None"},{"$f":"IF('1. Order'!BF686=\"\",\"\",'1. Order'!BF686)","v":"Parcel"},{"$f":"IF('1. Order'!BG686=\"\",\"\",'1. Order'!BG686)","v":"ZWO"}]
[{"$f":"IF('1. Order'!F687=\"\",\"\",'1. Order'!F687)","v":""},{"$f":"IF('1. Order'!G687=\"\",\"\",'1. Order'!G687)","v":""},{"$f":"IF('1. Order'!H687=\"\",\"\",'1. Order'!H687)","v":""},{"$f":"IF('1. Order'!I687=\"\",\"\",'1. Order'!I687)","v":""},{"$f":"IF('1. Order'!J687=\"\",\"\",'1. Order'!J687)","v":""},{"$f":"IF('1. Order'!K687=\"\",\"\",'1. Order'!K687)","v":""},{"$f":"IF('1. Order'!L687=\"\",\"\",'1. Order'!L687)","v":""},{"$f":"IF('1. Order'!M687=\"\",\"\",'1. Order'!M687)","v":""},{"$f":"IF('1. Order'!N687=\"\",\"\",'1. Order'!N687)","v":""},{"$f":"IF('1. Order'!O687=\"\",\"\",'1. Order'!O687)","v":{"$error":"#N/A"}},{"$f":"IF('1. Order'!P687=\"\",\"\",'1. Order'!P687)","v":{"$error":"#N/A"}},{"$f":"IF('1. Order'!Q687=\"\",\"\",'1. Order'!Q687)","v":""},{"$f":"IF('1. Order'!R687=\"\",\"\",'1. Order'!R687)","v":""},{"$f":"IF('1. Order'!S687=\"\",\"\",'1. Order'!S687)","v":""},{"$f":"IF('1. Order'!V687=\"\",\"\",'1. Order'!V687)","v":""},{"$f":"IF('1. Order'!W687=\"\",\"\",'1. Order'!W687)","v":""},{"$f":"IF('1. Order'!X687=\"\",\"\",'1. Order'!X687)","v":"EUR"},{"$f":"IF('1. Order'!Y687=\"\",\"\",'1. Order'!Y687)","v":""},{"$f":"IF('1. Order'!Z687=\"\",\"\",'1. Order'!Z687)","v":""},{"$f":"IF('1. Order'!AA687=\"\",\"\",'1. Order'!AA687)","v":""},null,{"$f":"IF('1. Order'!AS687=\"\",\"\",'1. Order'!AS687)","v":""},{"$f":"IF('1. Order'!AT687=\"\",\"\",'1. Order'!AT687)","v":""},null,null,null,null,null,null,null,{"$f":"IF('1. Order'!AX687=\"\",\"\",'1. Order'!AX687)","v":""},{"$f":"IF('1. Order'!AY687=\"\",\"\",'1. Order'!AY687)","v":""},{"$f":"IF('1. Order'!AZ687=\"\",\"\",'1. Order'!AZ687)","v":""},{"$f":"IF('1. Order'!BA687=\"\",\"\",'1. Order'!BA687)","v":""},{"$f":"IF('1. Order'!BC687=\"\",\"\",'1. Order'!BC687)","v":""},{"$f":"IF('1. Order'!BD687=\"\",\"\",'1. Order'!BD687)","v":6},{"$f":"IF('1. Order'!BE687=\"\",\"\",'1. Order'!BE687)","v":"None"},{"$f":"IF('1. Order'!BF687=\"\",\"\",'1. Order'!BF687)","v":"Parcel"},{"$f":"IF('1. Order'!BG687=\"\",\"\",'1. Order'!BG687)","v":"ZWO"}]
[{"$f":"IF('1. Order'!F688=\"\",\"\",'1. Order'!F688)","v":""},{"$f":"IF('1. Order'!G688=\"\",\"\",'1. Order'!G688)","v":""},{"$f":"IF('1. Order'!H688=\"\",\"\",'1. Order'!H688)","v":""},{"$f":"IF('1. Order'!I688=\"\",\"\",'1. Order'!I688)","v":""},{"$f":"IF('1. Order'!J688=\"\",\"\",'1. Order'!J688)","v":""},{"$f":"IF('1. Order'!K688=\"\",\"\",'1. Order'!K688)","v":""},{"$f":"IF('1. Order'!L688=\"\",\"\",'1. Order'!L688)","v":""},{"$f":"IF('1. Order'!M688=\"\",\"\",'1. Order'!M688)","v":""},{"$f":"IF('1. Order'!N688=\"\",\"\",'1. Order'!N688)","v":""},{"$f":"IF('1. Order'!O688=\"\",\"\",'1. Order'!O688)","v":{"$error":"#N/A"}},{"$f":"IF('1. Order'!P688=\"\",\"\",'1. Order'!P688)","v":{"$error":"#N/A"}},{"$f":"IF('1. Order'!Q688=\"\",\"\",'1. Order'!Q688)","v":""},{"$f":"IF('1. Order'!R688=\"\",\"\",'1. Order'!R688)","v":""},{"$f":"IF('1. Order'!S688=\"\",\"\",'1. Order'!S688)","v":""},{"$f":"IF('1. Order'!V688=\"\",\"\",'1. Order'!V688)","v":""},{"$f":"IF('1. Order'!W688=\"\",\"\",'1. Order'!W688)","v":""},{"$f":"IF('1. Order'!X688=\"\",\"\",'1. Order'!X688)","v":"EUR"},{"$f":"IF('1. Order'!Y688=\"\",\"\",'1. Order'!Y688)","v":""},{"$f":"IF('1. Order'!Z688=\"\",\"\",'1. Order'!Z688)","v":""},{"$f":"IF('1. Order'!AA688=\"\",\"\",'1. Order'!AA688)","v":""},null,{"$f":"IF('1. Order'!AS688=\"\",\"\",'1. Order'!AS688)","v":""},{"$f":"IF('1. Order'!AT688=\"\",\"\",'1. Order'!AT688)","v":""},null,null,null,null,null,null,null,{"$f":"IF('1. Order'!AX688=\"\",\"\",'1. Order'!AX688)","v":""},{"$f":"IF('1. Order'!AY688=\"\",\"\",'1. Order'!AY688)","v":""},{"$f":"IF('1. Order'!AZ688=\"\",\"\",'1. Order'!AZ688)","v":""},{"$f":"IF('1. Order'!BA688=\"\",\"\",'1. Order'!BA688)","v":""},{"$f":"IF('1. Order'!BC688=\"\",\"\",'1. Order'!BC688)","v":""},{"$f":"IF('1. Order'!BD688=\"\",\"\",'1. Order'!BD688)","v":6},{"$f":"IF('1. Order'!BE688=\"\",\"\",'1. Order'!BE688)","v":"None"},{"$f":"IF('1. Order'!BF688=\"\",\"\",'1. Order'!BF688)","v":"Parcel"},{"$f":"IF('1. Order'!BG688=\"\",\"\",'1. Order'!BG688)","v":"ZWO"}]
[{"$f":"IF('1. Order'!F689=\"\",\"\",'1. Order'!F689)","v":""},{"$f":"IF('1. Order'!G689=\"\",\"\",'1. Order'!G689)","v":""},{"$f":"IF('1. Order'!H689=\"\",\"\",'1. Order'!H689)","v":""},{"$f":"IF('1. Order'!I689=\"\",\"\",'1. Order'!I689)","v":""},{"$f":"IF('1. Order'!J689=\"\",\"\",'1. Order'!J689)","v":""},{"$f":"IF('1. Order'!K689=\"\",\"\",'1. Order'!K689)","v":""},{"$f":"IF('1. Order'!L689=\"\",\"\",'1. Order'!L689)","v":""},{"$f":"IF('1. Order'!M689=\"\",\"\",'1. Order'!M689)","v":""},{"$f":"IF('1. Order'!N689=\"\",\"\",'1. Order'!N689)","v":""},{"$f":"IF('1. Order'!O689=\"\",\"\",'1. Order'!O689)","v":{"$error":"#N/A"}},{"$f":"IF('1. Order'!P689=\"\",\"\",'1. Order'!P689)","v":{"$error":"#N/A"}},{"$f":"IF('1. Order'!Q689=\"\",\"\",'1. Order'!Q689)","v":""},{"$f":"IF('1. Order'!R689=\"\",\"\",'1. Order'!R689)","v":""},{"$f":"IF('1. Order'!S689=\"\",\"\",'1. Order'!S689)","v":""},{"$f":"IF('1. Order'!V689=\"\",\"\",'1. Order'!V689)","v":""},{"$f":"IF('1. Order'!W689=\"\",\"\",'1. Order'!W689)","v":""},{"$f":"IF('1. Order'!X689=\"\",\"\",'1. Order'!X689)","v":"EUR"},{"$f":"IF('1. Order'!Y689=\"\",\"\",'1. Order'!Y689)","v":""},{"$f":"IF('1. Order'!Z689=\"\",\"\",'1. Order'!Z689)","v":""},{"$f":"IF('1. Order'!AA689=\"\",\"\",'1. Order'!AA689)","v":""},null,{"$f":"IF('1. Order'!AS689=\"\",\"\",'1. Order'!AS689)","v":""},{"$f":"IF('1. Order'!AT689=\"\",\"\",'1. Order'!AT689)","v":""},null,null,null,null,null,null,null,{"$f":"IF('1. Order'!AX689=\"\",\"\",'1. Order'!AX689)","v":""},{"$f":"IF('1. Order'!AY689=\"\",\"\",'1. Order'!AY689)","v":""},{"$f":"IF('1. Order'!AZ689=\"\",\"\",'1. Order'!AZ689)","v":""},{"$f":"IF('1. Order'!BA689=\"\",\"\",'1. Order'!BA689)","v":""},{"$f":"IF('1. Order'!BC689=\"\",\"\",'1. Order'!BC689)","v":""},{"$f":"IF('1. Order'!BD689=\"\",\"\",'1. Order'!BD689)","v":6},{"$f":"IF('1. Order'!BE689=\"\",\"\",'1. Order'!BE689)","v":"None"},{"$f":"IF('1. Order'!BF689=\"\",\"\",'1. Order'!BF689)","v":"Parcel"},{"$f":"IF('1. Order'!BG689=\"\",\"\",'1. Order'!BG689)","v":"ZWO"}]
[{"$f":"IF('1. Order'!F690=\"\",\"\",'1. Order'!F690)","v":""},{"$f":"IF('1. Order'!G690=\"\",\"\",'1. Order'!G690)","v":""},{"$f":"IF('1. Order'!H690=\"\",\"\",'1. Order'!H690)","v":""},{"$f":"IF('1. Order'!I690=\"\",\"\",'1. Order'!I690)","v":""},{"$f":"IF('1. Order'!J690=\"\",\"\",'1. Order'!J690)","v":""},{"$f":"IF('1. Order'!K690=\"\",\"\",'1. Order'!K690)","v":""},{"$f":"IF('1. Order'!L690=\"\",\"\",'1. Order'!L690)","v":""},{"$f":"IF('1. Order'!M690=\"\",\"\",'1. Order'!M690)","v":""},{"$f":"IF('1. Order'!N690=\"\",\"\",'1. Order'!N690)","v":""},{"$f":"IF('1. Order'!O690=\"\",\"\",'1. Order'!O690)","v":{"$error":"#N/A"}},{"$f":"IF('1. Order'!P690=\"\",\"\",'1. Order'!P690)","v":{"$error":"#N/A"}},{"$f":"IF('1. Order'!Q690=\"\",\"\",'1. Order'!Q690)","v":""},{"$f":"IF('1. Order'!R690=\"\",\"\",'1. Order'!R690)","v":""},{"$f":"IF('1. Order'!S690=\"\",\"\",'1. Order'!S690)","v":""},{"$f":"IF('1. Order'!V690=\"\",\"\",'1. Order'!V690)","v":""},{"$f":"IF('1. Order'!W690=\"\",\"\",'1. Order'!W690)","v":""},{"$f":"IF('1. Order'!X690=\"\",\"\",'1. Order'!X690)","v":"EUR"},{"$f":"IF('1. Order'!Y690=\"\",\"\",'1. Order'!Y690)","v":""},{"$f":"IF('1. Order'!Z690=\"\",\"\",'1. Order'!Z690)","v":""},{"$f":"IF('1. Order'!AA690=\"\",\"\",'1. Order'!AA690)","v":""},null,{"$f":"IF('1. Order'!AS690=\"\",\"\",'1. Order'!AS690)","v":""},{"$f":"IF('1. Order'!AT690=\"\",\"\",'1. Order'!AT690)","v":""},null,null,null,null,null,null,null,{"$f":"IF('1. Order'!AX690=\"\",\"\",'1. Order'!AX690)","v":""},{"$f":"IF('1. Order'!AY690=\"\",\"\",'1. Order'!AY690)","v":""},{"$f":"IF('1. Order'!AZ690=\"\",\"\",'1. Order'!AZ690)","v":""},{"$f":"IF('1. Order'!BA690=\"\",\"\",'1. Order'!BA690)","v":""},{"$f":"IF('1. Order'!BC690=\"\",\"\",'1. Order'!BC690)","v":""},{"$f":"IF('1. Order'!BD690=\"\",\"\",'1. Order'!BD690)","v":6},{"$f":"IF('1. Order'!BE690=\"\",\"\",'1. Order'!BE690)","v":"None"},{"$f":"IF('1. Order'!BF690=\"\",\"\",'1. Order'!BF690)","v":"Parcel"},{"$f":"IF('1. Order'!BG690=\"\",\"\",'1. Order'!BG690)","v":"ZWO"}]
[{"$f":"IF('1. Order'!F691=\"\",\"\",'1. Order'!F691)","v":""},{"$f":"IF('1. Order'!G691=\"\",\"\",'1. Order'!G691)","v":""},{"$f":"IF('1. Order'!H691=\"\",\"\",'1. Order'!H691)","v":""},{"$f":"IF('1. Order'!I691=\"\",\"\",'1. Order'!I691)","v":""},{"$f":"IF('1. Order'!J691=\"\",\"\",'1. Order'!J691)","v":""},{"$f":"IF('1. Order'!K691=\"\",\"\",'1. Order'!K691)","v":""},{"$f":"IF('1. Order'!L691=\"\",\"\",'1. Order'!L691)","v":""},{"$f":"IF('1. Order'!M691=\"\",\"\",'1. Order'!M691)","v":""},{"$f":"IF('1. Order'!N691=\"\",\"\",'1. Order'!N691)","v":""},{"$f":"IF('1. Order'!O691=\"\",\"\",'1. Order'!O691)","v":{"$error":"#N/A"}},{"$f":"IF('1. Order'!P691=\"\",\"\",'1. Order'!P691)","v":{"$error":"#N/A"}},{"$f":"IF('1. Order'!Q691=\"\",\"\",'1. Order'!Q691)","v":""},{"$f":"IF('1. Order'!R691=\"\",\"\",'1. Order'!R691)","v":""},{"$f":"IF('1. Order'!S691=\"\",\"\",'1. Order'!S691)","v":""},{"$f":"IF('1. Order'!V691=\"\",\"\",'1. Order'!V691)","v":""},{"$f":"IF('1. Order'!W691=\"\",\"\",'1. Order'!W691)","v":""},{"$f":"IF('1. Order'!X691=\"\",\"\",'1. Order'!X691)","v":"EUR"},{"$f":"IF('1. Order'!Y691=\"\",\"\",'1. Order'!Y691)","v":""},{"$f":"IF('1. Order'!Z691=\"\",\"\",'1. Order'!Z691)","v":""},{"$f":"IF('1. Order'!AA691=\"\",\"\",'1. Order'!AA691)","v":""},null,{"$f":"IF('1. Order'!AS691=\"\",\"\",'1. Order'!AS691)","v":""},{"$f":"IF('1. Order'!AT691=\"\",\"\",'1. Order'!AT691)","v":""},null,null,null,null,null,null,null,{"$f":"IF('1. Order'!AX691=\"\",\"\",'1. Order'!AX691)","v":""},{"$f":"IF('1. Order'!AY691=\"\",\"\",'1. Order'!AY691)","v":""},{"$f":"IF('1. Order'!AZ691=\"\",\"\",'1. Order'!AZ691)","v":""},{"$f":"IF('1. Order'!BA691=\"\",\"\",'1. Order'!BA691)","v":""},{"$f":"IF('1. Order'!BC691=\"\",\"\",'1. Order'!BC691)","v":""},{"$f":"IF('1. Order'!BD691=\"\",\"\",'1. Order'!BD691)","v":6},{"$f":"IF('1. Order'!BE691=\"\",\"\",'1. Order'!BE691)","v":"None"},{"$f":"IF('1. Order'!BF691=\"\",\"\",'1. Order'!BF691)","v":"Parcel"},{"$f":"IF('1. Order'!BG691=\"\",\"\",'1. Order'!BG691)","v":"ZWO"}]
[{"$f":"IF('1. Order'!F692=\"\",\"\",'1. Order'!F692)","v":""},{"$f":"IF('1. Order'!G692=\"\",\"\",'1. Order'!G692)","v":""},{"$f":"IF('1. Order'!H692=\"\",\"\",'1. Order'!H692)","v":""},{"$f":"IF('1. Order'!I692=\"\",\"\",'1. Order'!I692)","v":""},{"$f":"IF('1. Order'!J692=\"\",\"\",'1. Order'!J692)","v":""},{"$f":"IF('1. Order'!K692=\"\",\"\",'1. Order'!K692)","v":""},{"$f":"IF('1. Order'!L692=\"\",\"\",'1. Order'!L692)","v":""},{"$f":"IF('1. Order'!M692=\"\",\"\",'1. Order'!M692)","v":""},{"$f":"IF('1. Order'!N692=\"\",\"\",'1. Order'!N692)","v":""},{"$f":"IF('1. Order'!O692=\"\",\"\",'1. Order'!O692)","v":{"$error":"#N/A"}},{"$f":"IF('1. Order'!P692=\"\",\"\",'1. Order'!P692)","v":{"$error":"#N/A"}},{"$f":"IF('1. Order'!Q692=\"\",\"\",'1. Order'!Q692)","v":""},{"$f":"IF('1. Order'!R692=\"\",\"\",'1. Order'!R692)","v":""},{"$f":"IF('1. Order'!S692=\"\",\"\",'1. Order'!S692)","v":""},{"$f":"IF('1. Order'!V692=\"\",\"\",'1. Order'!V692)","v":""},{"$f":"IF('1. Order'!W692=\"\",\"\",'1. Order'!W692)","v":""},{"$f":"IF('1. Order'!X692=\"\",\"\",'1. Order'!X692)","v":"EUR"},{"$f":"IF('1. Order'!Y692=\"\",\"\",'1. Order'!Y692)","v":""},{"$f":"IF('1. Order'!Z692=\"\",\"\",'1. Order'!Z692)","v":""},{"$f":"IF('1. Order'!AA692=\"\",\"\",'1. Order'!AA692)","v":""},null,{"$f":"IF('1. Order'!AS692=\"\",\"\",'1. Order'!AS692)","v":""},{"$f":"IF('1. Order'!AT692=\"\",\"\",'1. Order'!AT692)","v":""},null,null,null,null,null,null,null,{"$f":"IF('1. Order'!AX692=\"\",\"\",'1. Order'!AX692)","v":""},{"$f":"IF('1. Order'!AY692=\"\",\"\",'1. Order'!AY692)","v":""},{"$f":"IF('1. Order'!AZ692=\"\",\"\",'1. Order'!AZ692)","v":""},{"$f":"IF('1. Order'!BA692=\"\",\"\",'1. Order'!BA692)","v":""},{"$f":"IF('1. Order'!BC692=\"\",\"\",'1. Order'!BC692)","v":""},{"$f":"IF('1. Order'!BD692=\"\",\"\",'1. Order'!BD692)","v":6},{"$f":"IF('1. Order'!BE692=\"\",\"\",'1. Order'!BE692)","v":"None"},{"$f":"IF('1. Order'!BF692=\"\",\"\",'1. Order'!BF692)","v":"Parcel"},{"$f":"IF('1. Order'!BG692=\"\",\"\",'1. Order'!BG692)","v":"ZWO"}]
[{"$f":"IF('1. Order'!F693=\"\",\"\",'1. Order'!F693)","v":""},{"$f":"IF('1. Order'!G693=\"\",\"\",'1. Order'!G693)","v":""},{"$f":"IF('1. Order'!H693=\"\",\"\",'1. Order'!H693)","v":""},{"$f":"IF('1. Order'!I693=\"\",\"\",'1. Order'!I693)","v":""},{"$f":"IF('1. Order'!J693=\"\",\"\",'1. Order'!J693)","v":""},{"$f":"IF('1. Order'!K693=\"\",\"\",'1. Order'!K693)","v":""},{"$f":"IF('1. Order'!L693=\"\",\"\",'1. Order'!L693)","v":""},{"$f":"IF('1. Order'!M693=\"\",\"\",'1. Order'!M693)","v":""},{"$f":"IF('1. Order'!N693=\"\",\"\",'1. Order'!N693)","v":""},{"$f":"IF('1. Order'!O693=\"\",\"\",'1. Order'!O693)","v":{"$error":"#N/A"}},{"$f":"IF('1. Order'!P693=\"\",\"\",'1. Order'!P693)","v":{"$error":"#N/A"}},{"$f":"IF('1. Order'!Q693=\"\",\"\",'1. Order'!Q693)","v":""},{"$f":"IF('1. Order'!R693=\"\",\"\",'1. Order'!R693)","v":""},{"$f":"IF('1. Order'!S693=\"\",\"\",'1. Order'!S693)","v":""},{"$f":"IF('1. Order'!V693=\"\",\"\",'1. Order'!V693)","v":""},{"$f":"IF('1. Order'!W693=\"\",\"\",'1. Order'!W693)","v":""},{"$f":"IF('1. Order'!X693=\"\",\"\",'1. Order'!X693)","v":"EUR"},{"$f":"IF('1. Order'!Y693=\"\",\"\",'1. Order'!Y693)","v":""},{"$f":"IF('1. Order'!Z693=\"\",\"\",'1. Order'!Z693)","v":""},{"$f":"IF('1. Order'!AA693=\"\",\"\",'1. Order'!AA693)","v":""},null,{"$f":"IF('1. Order'!AS693=\"\",\"\",'1. Order'!AS693)","v":""},{"$f":"IF('1. Order'!AT693=\"\",\"\",'1. Order'!AT693)","v":""},null,null,null,null,null,null,null,{"$f":"IF('1. Order'!AX693=\"\",\"\",'1. Order'!AX693)","v":""},{"$f":"IF('1. Order'!AY693=\"\",\"\",'1. Order'!AY693)","v":""},{"$f":"IF('1. Order'!AZ693=\"\",\"\",'1. Order'!AZ693)","v":""},{"$f":"IF('1. Order'!BA693=\"\",\"\",'1. Order'!BA693)","v":""},{"$f":"IF('1. Order'!BC693=\"\",\"\",'1. Order'!BC693)","v":""},{"$f":"IF('1. Order'!BD693=\"\",\"\",'1. Order'!BD693)","v":6},{"$f":"IF('1. Order'!BE693=\"\",\"\",'1. Order'!BE693)","v":"None"},{"$f":"IF('1. Order'!BF693=\"\",\"\",'1. Order'!BF693)","v":"Parcel"},{"$f":"IF('1. Order'!BG693=\"\",\"\",'1. Order'!BG693)","v":"ZWO"}]
[{"$f":"IF('1. Order'!F694=\"\",\"\",'1. Order'!F694)","v":""},{"$f":"IF('1. Order'!G694=\"\",\"\",'1. Order'!G694)","v":""},{"$f":"IF('1. Order'!H694=\"\",\"\",'1. Order'!H694)","v":""},{"$f":"IF('1. Order'!I694=\"\",\"\",'1. Order'!I694)","v":""},{"$f":"IF('1. Order'!J694=\"\",\"\",'1. Order'!J694)","v":""},{"$f":"IF('1. Order'!K694=\"\",\"\",'1. Order'!K694)","v":""},{"$f":"IF('1. Order'!L694=\"\",\"\",'1. Order'!L694)","v":""},{"$f":"IF('1. Order'!M694=\"\",\"\",'1. Order'!M694)","v":""},{"$f":"IF('1. Order'!N694=\"\",\"\",'1. Order'!N694)","v":""},{"$f":"IF('1. Order'!O694=\"\",\"\",'1. Order'!O694)","v":{"$error":"#N/A"}},{"$f":"IF('1. Order'!P694=\"\",\"\",'1. Order'!P694)","v":{"$error":"#N/A"}},{"$f":"IF('1. Order'!Q694=\"\",\"\",'1. Order'!Q694)","v":""},{"$f":"IF('1. Order'!R694=\"\",\"\",'1. Order'!R694)","v":""},{"$f":"IF('1. Order'!S694=\"\",\"\",'1. Order'!S694)","v":""},{"$f":"IF('1. Order'!V694=\"\",\"\",'1. Order'!V694)","v":""},{"$f":"IF('1. Order'!W694=\"\",\"\",'1. Order'!W694)","v":""},{"$f":"IF('1. Order'!X694=\"\",\"\",'1. Order'!X694)","v":"EUR"},{"$f":"IF('1. Order'!Y694=\"\",\"\",'1. Order'!Y694)","v":""},{"$f":"IF('1. Order'!Z694=\"\",\"\",'1. Order'!Z694)","v":""},{"$f":"IF('1. Order'!AA694=\"\",\"\",'1. Order'!AA694)","v":""},null,{"$f":"IF('1. Order'!AS694=\"\",\"\",'1. Order'!AS694)","v":""},{"$f":"IF('1. Order'!AT694=\"\",\"\",'1. Order'!AT694)","v":""},null,null,null,null,null,null,null,{"$f":"IF('1. Order'!AX694=\"\",\"\",'1. Order'!AX694)","v":""},{"$f":"IF('1. Order'!AY694=\"\",\"\",'1. Order'!AY694)","v":""},{"$f":"IF('1. Order'!AZ694=\"\",\"\",'1. Order'!AZ694)","v":""},{"$f":"IF('1. Order'!BA694=\"\",\"\",'1. Order'!BA694)","v":""},{"$f":"IF('1. Order'!BC694=\"\",\"\",'1. Order'!BC694)","v":""},{"$f":"IF('1. Order'!BD694=\"\",\"\",'1. Order'!BD694)","v":6},{"$f":"IF('1. Order'!BE694=\"\",\"\",'1. Order'!BE694)","v":"None"},{"$f":"IF('1. Order'!BF694=\"\",\"\",'1. Order'!BF694)","v":"Parcel"},{"$f":"IF('1. Order'!BG694=\"\",\"\",'1. Order'!BG694)","v":"ZWO"}]
[{"$f":"IF('1. Order'!F695=\"\",\"\",'1. Order'!F695)","v":""},{"$f":"IF('1. Order'!G695=\"\",\"\",'1. Order'!G695)","v":""},{"$f":"IF('1. Order'!H695=\"\",\"\",'1. Order'!H695)","v":""},{"$f":"IF('1. Order'!I695=\"\",\"\",'1. Order'!I695)","v":""},{"$f":"IF('1. Order'!J695=\"\",\"\",'1. Order'!J695)","v":""},{"$f":"IF('1. Order'!K695=\"\",\"\",'1. Order'!K695)","v":""},{"$f":"IF('1. Order'!L695=\"\",\"\",'1. Order'!L695)","v":""},{"$f":"IF('1. Order'!M695=\"\",\"\",'1. Order'!M695)","v":""},{"$f":"IF('1. Order'!N695=\"\",\"\",'1. Order'!N695)","v":""},{"$f":"IF('1. Order'!O695=\"\",\"\",'1. Order'!O695)","v":{"$error":"#N/A"}},{"$f":"IF('1. Order'!P695=\"\",\"\",'1. Order'!P695)","v":{"$error":"#N/A"}},{"$f":"IF('1. Order'!Q695=\"\",\"\",'1. Order'!Q695)","v":""},{"$f":"IF('1. Order'!R695=\"\",\"\",'1. Order'!R695)","v":""},{"$f":"IF('1. Order'!S695=\"\",\"\",'1. Order'!S695)","v":""},{"$f":"IF('1. Order'!V695=\"\",\"\",'1. Order'!V695)","v":""},{"$f":"IF('1. Order'!W695=\"\",\"\",'1. Order'!W695)","v":""},{"$f":"IF('1. Order'!X695=\"\",\"\",'1. Order'!X695)","v":"EUR"},{"$f":"IF('1. Order'!Y695=\"\",\"\",'1. Order'!Y695)","v":""},{"$f":"IF('1. Order'!Z695=\"\",\"\",'1. Order'!Z695)","v":""},{"$f":"IF('1. Order'!AA695=\"\",\"\",'1. Order'!AA695)","v":""},null,{"$f":"IF('1. Order'!AS695=\"\",\"\",'1. Order'!AS695)","v":""},{"$f":"IF('1. Order'!AT695=\"\",\"\",'1. Order'!AT695)","v":""},null,null,null,null,null,null,null,{"$f":"IF('1. Order'!AX695=\"\",\"\",'1. Order'!AX695)","v":""},{"$f":"IF('1. Order'!AY695=\"\",\"\",'1. Order'!AY695)","v":""},{"$f":"IF('1. Order'!AZ695=\"\",\"\",'1. Order'!AZ695)","v":""},{"$f":"IF('1. Order'!BA695=\"\",\"\",'1. Order'!BA695)","v":""},{"$f":"IF('1. Order'!BC695=\"\",\"\",'1. Order'!BC695)","v":""},{"$f":"IF('1. Order'!BD695=\"\",\"\",'1. Order'!BD695)","v":6},{"$f":"IF('1. Order'!BE695=\"\",\"\",'1. Order'!BE695)","v":"None"},{"$f":"IF('1. Order'!BF695=\"\",\"\",'1. Order'!BF695)","v":"Parcel"},{"$f":"IF('1. Order'!BG695=\"\",\"\",'1. Order'!BG695)","v":"ZWO"}]
[{"$f":"IF('1. Order'!F696=\"\",\"\",'1. Order'!F696)","v":""},{"$f":"IF('1. Order'!G696=\"\",\"\",'1. Order'!G696)","v":""},{"$f":"IF('1. Order'!H696=\"\",\"\",'1. Order'!H696)","v":""},{"$f":"IF('1. Order'!I696=\"\",\"\",'1. Order'!I696)","v":""},{"$f":"IF('1. Order'!J696=\"\",\"\",'1. Order'!J696)","v":""},{"$f":"IF('1. Order'!K696=\"\",\"\",'1. Order'!K696)","v":""},{"$f":"IF('1. Order'!L696=\"\",\"\",'1. Order'!L696)","v":""},{"$f":"IF('1. Order'!M696=\"\",\"\",'1. Order'!M696)","v":""},{"$f":"IF('1. Order'!N696=\"\",\"\",'1. Order'!N696)","v":""},{"$f":"IF('1. Order'!O696=\"\",\"\",'1. Order'!O696)","v":{"$error":"#N/A"}},{"$f":"IF('1. Order'!P696=\"\",\"\",'1. Order'!P696)","v":{"$error":"#N/A"}},{"$f":"IF('1. Order'!Q696=\"\",\"\",'1. Order'!Q696)","v":""},{"$f":"IF('1. Order'!R696=\"\",\"\",'1. Order'!R696)","v":""},{"$f":"IF('1. Order'!S696=\"\",\"\",'1. Order'!S696)","v":""},{"$f":"IF('1. Order'!V696=\"\",\"\",'1. Order'!V696)","v":""},{"$f":"IF('1. Order'!W696=\"\",\"\",'1. Order'!W696)","v":""},{"$f":"IF('1. Order'!X696=\"\",\"\",'1. Order'!X696)","v":"EUR"},{"$f":"IF('1. Order'!Y696=\"\",\"\",'1. Order'!Y696)","v":""},{"$f":"IF('1. Order'!Z696=\"\",\"\",'1. Order'!Z696)","v":""},{"$f":"IF('1. Order'!AA696=\"\",\"\",'1. Order'!AA696)","v":""},null,{"$f":"IF('1. Order'!AS696=\"\",\"\",'1. Order'!AS696)","v":""},{"$f":"IF('1. Order'!AT696=\"\",\"\",'1. Order'!AT696)","v":""},null,null,null,null,null,null,null,{"$f":"IF('1. Order'!AX696=\"\",\"\",'1. Order'!AX696)","v":""},{"$f":"IF('1. Order'!AY696=\"\",\"\",'1. Order'!AY696)","v":""},{"$f":"IF('1. Order'!AZ696=\"\",\"\",'1. Order'!AZ696)","v":""},{"$f":"IF('1. Order'!BA696=\"\",\"\",'1. Order'!BA696)","v":""},{"$f":"IF('1. Order'!BC696=\"\",\"\",'1. Order'!BC696)","v":""},{"$f":"IF('1. Order'!BD696=\"\",\"\",'1. Order'!BD696)","v":6},{"$f":"IF('1. Order'!BE696=\"\",\"\",'1. Order'!BE696)","v":"None"},{"$f":"IF('1. Order'!BF696=\"\",\"\",'1. Order'!BF696)","v":"Parcel"},{"$f":"IF('1. Order'!BG696=\"\",\"\",'1. Order'!BG696)","v":"ZWO"}]
[{"$f":"IF('1. Order'!F697=\"\",\"\",'1. Order'!F697)","v":""},{"$f":"IF('1. Order'!G697=\"\",\"\",'1. Order'!G697)","v":""},{"$f":"IF('1. Order'!H697=\"\",\"\",'1. Order'!H697)","v":""},{"$f":"IF('1. Order'!I697=\"\",\"\",'1. Order'!I697)","v":""},{"$f":"IF('1. Order'!J697=\"\",\"\",'1. Order'!J697)","v":""},{"$f":"IF('1. Order'!K697=\"\",\"\",'1. Order'!K697)","v":""},{"$f":"IF('1. Order'!L697=\"\",\"\",'1. Order'!L697)","v":""},{"$f":"IF('1. Order'!M697=\"\",\"\",'1. Order'!M697)","v":""},{"$f":"IF('1. Order'!N697=\"\",\"\",'1. Order'!N697)","v":""},{"$f":"IF('1. Order'!O697=\"\",\"\",'1. Order'!O697)","v":{"$error":"#N/A"}},{"$f":"IF('1. Order'!P697=\"\",\"\",'1. Order'!P697)","v":{"$error":"#N/A"}},{"$f":"IF('1. Order'!Q697=\"\",\"\",'1. Order'!Q697)","v":""},{"$f":"IF('1. Order'!R697=\"\",\"\",'1. Order'!R697)","v":""},{"$f":"IF('1. Order'!S697=\"\",\"\",'1. Order'!S697)","v":""},{"$f":"IF('1. Order'!V697=\"\",\"\",'1. Order'!V697)","v":""},{"$f":"IF('1. Order'!W697=\"\",\"\",'1. Order'!W697)","v":""},{"$f":"IF('1. Order'!X697=\"\",\"\",'1. Order'!X697)","v":"EUR"},{"$f":"IF('1. Order'!Y697=\"\",\"\",'1. Order'!Y697)","v":""},{"$f":"IF('1. Order'!Z697=\"\",\"\",'1. Order'!Z697)","v":""},{"$f":"IF('1. Order'!AA697=\"\",\"\",'1. Order'!AA697)","v":""},null,{"$f":"IF('1. Order'!AS697=\"\",\"\",'1. Order'!AS697)","v":""},{"$f":"IF('1. Order'!AT697=\"\",\"\",'1. Order'!AT697)","v":""},null,null,null,null,null,null,null,{"$f":"IF('1. Order'!AX697=\"\",\"\",'1. Order'!AX697)","v":""},{"$f":"IF('1. Order'!AY697=\"\",\"\",'1. Order'!AY697)","v":""},{"$f":"IF('1. Order'!AZ697=\"\",\"\",'1. Order'!AZ697)","v":""},{"$f":"IF('1. Order'!BA697=\"\",\"\",'1. Order'!BA697)","v":""},{"$f":"IF('1. Order'!BC697=\"\",\"\",'1. Order'!BC697)","v":""},{"$f":"IF('1. Order'!BD697=\"\",\"\",'1. Order'!BD697)","v":6},{"$f":"IF('1. Order'!BE697=\"\",\"\",'1. Order'!BE697)","v":"None"},{"$f":"IF('1. Order'!BF697=\"\",\"\",'1. Order'!BF697)","v":"Parcel"},{"$f":"IF('1. Order'!BG697=\"\",\"\",'1. Order'!BG697)","v":"ZWO"}]
[{"$f":"IF('1. Order'!F698=\"\",\"\",'1. Order'!F698)","v":""},{"$f":"IF('1. Order'!G698=\"\",\"\",'1. Order'!G698)","v":""},{"$f":"IF('1. Order'!H698=\"\",\"\",'1. Order'!H698)","v":""},{"$f":"IF('1. Order'!I698=\"\",\"\",'1. Order'!I698)","v":""},{"$f":"IF('1. Order'!J698=\"\",\"\",'1. Order'!J698)","v":""},{"$f":"IF('1. Order'!K698=\"\",\"\",'1. Order'!K698)","v":""},{"$f":"IF('1. Order'!L698=\"\",\"\",'1. Order'!L698)","v":""},{"$f":"IF('1. Order'!M698=\"\",\"\",'1. Order'!M698)","v":""},{"$f":"IF('1. Order'!N698=\"\",\"\",'1. Order'!N698)","v":""},{"$f":"IF('1. Order'!O698=\"\",\"\",'1. Order'!O698)","v":{"$error":"#N/A"}},{"$f":"IF('1. Order'!P698=\"\",\"\",'1. Order'!P698)","v":{"$error":"#N/A"}},{"$f":"IF('1. Order'!Q698=\"\",\"\",'1. Order'!Q698)","v":""},{"$f":"IF('1. Order'!R698=\"\",\"\",'1. Order'!R698)","v":""},{"$f":"IF('1. Order'!S698=\"\",\"\",'1. Order'!S698)","v":""},{"$f":"IF('1. Order'!V698=\"\",\"\",'1. Order'!V698)","v":""},{"$f":"IF('1. Order'!W698=\"\",\"\",'1. Order'!W698)","v":""},{"$f":"IF('1. Order'!X698=\"\",\"\",'1. Order'!X698)","v":"EUR"},{"$f":"IF('1. Order'!Y698=\"\",\"\",'1. Order'!Y698)","v":""},{"$f":"IF('1. Order'!Z698=\"\",\"\",'1. Order'!Z698)","v":""},{"$f":"IF('1. Order'!AA698=\"\",\"\",'1. Order'!AA698)","v":""},null,{"$f":"IF('1. Order'!AS698=\"\",\"\",'1. Order'!AS698)","v":""},{"$f":"IF('1. Order'!AT698=\"\",\"\",'1. Order'!AT698)","v":""},null,null,null,null,null,null,null,{"$f":"IF('1. Order'!AX698=\"\",\"\",'1. Order'!AX698)","v":""},{"$f":"IF('1. Order'!AY698=\"\",\"\",'1. Order'!AY698)","v":""},{"$f":"IF('1. Order'!AZ698=\"\",\"\",'1. Order'!AZ698)","v":""},{"$f":"IF('1. Order'!BA698=\"\",\"\",'1. Order'!BA698)","v":""},{"$f":"IF('1. Order'!BC698=\"\",\"\",'1. Order'!BC698)","v":""},{"$f":"IF('1. Order'!BD698=\"\",\"\",'1. Order'!BD698)","v":6},{"$f":"IF('1. Order'!BE698=\"\",\"\",'1. Order'!BE698)","v":"None"},{"$f":"IF('1. Order'!BF698=\"\",\"\",'1. Order'!BF698)","v":"Parcel"},{"$f":"IF('1. Order'!BG698=\"\",\"\",'1. Order'!BG698)","v":"ZWO"}]
[{"$f":"IF('1. Order'!F699=\"\",\"\",'1. Order'!F699)","v":""},{"$f":"IF('1. Order'!G699=\"\",\"\",'1. Order'!G699)","v":""},{"$f":"IF('1. Order'!H699=\"\",\"\",'1. Order'!H699)","v":""},{"$f":"IF('1. Order'!I699=\"\",\"\",'1. Order'!I699)","v":""},{"$f":"IF('1. Order'!J699=\"\",\"\",'1. Order'!J699)","v":""},{"$f":"IF('1. Order'!K699=\"\",\"\",'1. Order'!K699)","v":""},{"$f":"IF('1. Order'!L699=\"\",\"\",'1. Order'!L699)","v":""},{"$f":"IF('1. Order'!M699=\"\",\"\",'1. Order'!M699)","v":""},{"$f":"IF('1. Order'!N699=\"\",\"\",'1. Order'!N699)","v":""},{"$f":"IF('1. Order'!O699=\"\",\"\",'1. Order'!O699)","v":{"$error":"#N/A"}},{"$f":"IF('1. Order'!P699=\"\",\"\",'1. Order'!P699)","v":{"$error":"#N/A"}},{"$f":"IF('1. Order'!Q699=\"\",\"\",'1. Order'!Q699)","v":""},{"$f":"IF('1. Order'!R699=\"\",\"\",'1. Order'!R699)","v":""},{"$f":"IF('1. Order'!S699=\"\",\"\",'1. Order'!S699)","v":""},{"$f":"IF('1. Order'!V699=\"\",\"\",'1. Order'!V699)","v":""},{"$f":"IF('1. Order'!W699=\"\",\"\",'1. Order'!W699)","v":""},{"$f":"IF('1. Order'!X699=\"\",\"\",'1. Order'!X699)","v":"EUR"},{"$f":"IF('1. Order'!Y699=\"\",\"\",'1. Order'!Y699)","v":""},{"$f":"IF('1. Order'!Z699=\"\",\"\",'1. Order'!Z699)","v":""},{"$f":"IF('1. Order'!AA699=\"\",\"\",'1. Order'!AA699)","v":""},null,{"$f":"IF('1. Order'!AS699=\"\",\"\",'1. Order'!AS699)","v":""},{"$f":"IF('1. Order'!AT699=\"\",\"\",'1. Order'!AT699)","v":""},null,null,null,null,null,null,null,{"$f":"IF('1. Order'!AX699=\"\",\"\",'1. Order'!AX699)","v":""},{"$f":"IF('1. Order'!AY699=\"\",\"\",'1. Order'!AY699)","v":""},{"$f":"IF('1. Order'!AZ699=\"\",\"\",'1. Order'!AZ699)","v":""},{"$f":"IF('1. Order'!BA699=\"\",\"\",'1. Order'!BA699)","v":""},{"$f":"IF('1. Order'!BC699=\"\",\"\",'1. Order'!BC699)","v":""},{"$f":"IF('1. Order'!BD699=\"\",\"\",'1. Order'!BD699)","v":6},{"$f":"IF('1. Order'!BE699=\"\",\"\",'1. Order'!BE699)","v":"None"},{"$f":"IF('1. Order'!BF699=\"\",\"\",'1. Order'!BF699)","v":"Parcel"},{"$f":"IF('1. Order'!BG699=\"\",\"\",'1. Order'!BG699)","v":"ZWO"}]
[{"$f":"IF('1. Order'!F700=\"\",\"\",'1. Order'!F700)","v":""},{"$f":"IF('1. Order'!G700=\"\",\"\",'1. Order'!G700)","v":""},{"$f":"IF('1. Order'!H700=\"\",\"\",'1. Order'!H700)","v":""},{"$f":"IF('1. Order'!I700=\"\",\"\",'1. Order'!I700)","v":""},{"$f":"IF('1. Order'!J700=\"\",\"\",'1. Order'!J700)","v":""},{"$f":"IF('1. Order'!K700=\"\",\"\",'1. Order'!K700)","v":""},{"$f":"IF('1. Order'!L700=\"\",\"\",'1. Order'!L700)","v":""},{"$f":"IF('1. Order'!M700=\"\",\"\",'1. Order'!M700)","v":""},{"$f":"IF('1. Order'!N700=\"\",\"\",'1. Order'!N700)","v":""},{"$f":"IF('1. Order'!O700=\"\",\"\",'1. Order'!O700)","v":{"$error":"#N/A"}},{"$f":"IF('1. Order'!P700=\"\",\"\",'1. Order'!P700)","v":{"$error":"#N/A"}},{"$f":"IF('1. Order'!Q700=\"\",\"\",'1. Order'!Q700)","v":""},{"$f":"IF('1. Order'!R700=\"\",\"\",'1. Order'!R700)","v":""},{"$f":"IF('1. Order'!S700=\"\",\"\",'1. Order'!S700)","v":""},{"$f":"IF('1. Order'!V700=\"\",\"\",'1. Order'!V700)","v":""},{"$f":"IF('1. Order'!W700=\"\",\"\",'1. Order'!W700)","v":""},{"$f":"IF('1. Order'!X700=\"\",\"\",'1. Order'!X700)","v":"EUR"},{"$f":"IF('1. Order'!Y700=\"\",\"\",'1. Order'!Y700)","v":""},{"$f":"IF('1. Order'!Z700=\"\",\"\",'1. Order'!Z700)","v":""},{"$f":"IF('1. Order'!AA700=\"\",\"\",'1. Order'!AA700)","v":""},null,{"$f":"IF('1. Order'!AS700=\"\",\"\",'1. Order'!AS700)","v":""},{"$f":"IF('1. Order'!AT700=\"\",\"\",'1. Order'!AT700)","v":""},null,null,null,null,null,null,null,{"$f":"IF('1. Order'!AX700=\"\",\"\",'1. Order'!AX700)","v":""},{"$f":"IF('1. Order'!AY700=\"\",\"\",'1. Order'!AY700)","v":""},{"$f":"IF('1. Order'!AZ700=\"\",\"\",'1. Order'!AZ700)","v":""},{"$f":"IF('1. Order'!BA700=\"\",\"\",'1. Order'!BA700)","v":""},{"$f":"IF('1. Order'!BC700=\"\",\"\",'1. Order'!BC700)","v":""},{"$f":"IF('1. Order'!BD700=\"\",\"\",'1. Order'!BD700)","v":6},{"$f":"IF('1. Order'!BE700=\"\",\"\",'1. Order'!BE700)","v":"None"},{"$f":"IF('1. Order'!BF700=\"\",\"\",'1. Order'!BF700)","v":"Parcel"},{"$f":"IF('1. Order'!BG700=\"\",\"\",'1. Order'!BG700)","v":"ZWO"}]
[{"$f":"IF('1. Order'!F701=\"\",\"\",'1. Order'!F701)","v":""},{"$f":"IF('1. Order'!G701=\"\",\"\",'1. Order'!G701)","v":""},{"$f":"IF('1. Order'!H701=\"\",\"\",'1. Order'!H701)","v":""},{"$f":"IF('1. Order'!I701=\"\",\"\",'1. Order'!I701)","v":""},{"$f":"IF('1. Order'!J701=\"\",\"\",'1. Order'!J701)","v":""},{"$f":"IF('1. Order'!K701=\"\",\"\",'1. Order'!K701)","v":""},{"$f":"IF('1. Order'!L701=\"\",\"\",'1. Order'!L701)","v":""},{"$f":"IF('1. Order'!M701=\"\",\"\",'1. Order'!M701)","v":""},{"$f":"IF('1. Order'!N701=\"\",\"\",'1. Order'!N701)","v":""},{"$f":"IF('1. Order'!O701=\"\",\"\",'1. Order'!O701)","v":{"$error":"#N/A"}},{"$f":"IF('1. Order'!P701=\"\",\"\",'1. Order'!P701)","v":{"$error":"#N/A"}},{"$f":"IF('1. Order'!Q701=\"\",\"\",'1. Order'!Q701)","v":""},{"$f":"IF('1. Order'!R701=\"\",\"\",'1. Order'!R701)","v":""},{"$f":"IF('1. Order'!S701=\"\",\"\",'1. Order'!S701)","v":""},{"$f":"IF('1. Order'!V701=\"\",\"\",'1. Order'!V701)","v":""},{"$f":"IF('1. Order'!W701=\"\",\"\",'1. Order'!W701)","v":""},{"$f":"IF('1. Order'!X701=\"\",\"\",'1. Order'!X701)","v":"EUR"},{"$f":"IF('1. Order'!Y701=\"\",\"\",'1. Order'!Y701)","v":""},{"$f":"IF('1. Order'!Z701=\"\",\"\",'1. Order'!Z701)","v":""},{"$f":"IF('1. Order'!AA701=\"\",\"\",'1. Order'!AA701)","v":""},null,{"$f":"IF('1. Order'!AS701=\"\",\"\",'1. Order'!AS701)","v":""},{"$f":"IF('1. Order'!AT701=\"\",\"\",'1. Order'!AT701)","v":""},null,null,null,null,null,null,null,{"$f":"IF('1. Order'!AX701=\"\",\"\",'1. Order'!AX701)","v":""},{"$f":"IF('1. Order'!AY701=\"\",\"\",'1. Order'!AY701)","v":""},{"$f":"IF('1. Order'!AZ701=\"\",\"\",'1. Order'!AZ701)","v":""},{"$f":"IF('1. Order'!BA701=\"\",\"\",'1. Order'!BA701)","v":""},{"$f":"IF('1. Order'!BC701=\"\",\"\",'1. Order'!BC701)","v":""},{"$f":"IF('1. Order'!BD701=\"\",\"\",'1. Order'!BD701)","v":6},{"$f":"IF('1. Order'!BE701=\"\",\"\",'1. Order'!BE701)","v":"None"},{"$f":"IF('1. Order'!BF701=\"\",\"\",'1. Order'!BF701)","v":"Parcel"},{"$f":"IF('1. Order'!BG701=\"\",\"\",'1. Order'!BG701)","v":"ZWO"}]
[{"$f":"IF('1. Order'!F702=\"\",\"\",'1. Order'!F702)","v":""},{"$f":"IF('1. Order'!G702=\"\",\"\",'1. Order'!G702)","v":""},{"$f":"IF('1. Order'!H702=\"\",\"\",'1. Order'!H702)","v":""},{"$f":"IF('1. Order'!I702=\"\",\"\",'1. Order'!I702)","v":""},{"$f":"IF('1. Order'!J702=\"\",\"\",'1. Order'!J702)","v":""},{"$f":"IF('1. Order'!K702=\"\",\"\",'1. Order'!K702)","v":""},{"$f":"IF('1. Order'!L702=\"\",\"\",'1. Order'!L702)","v":""},{"$f":"IF('1. Order'!M702=\"\",\"\",'1. Order'!M702)","v":""},{"$f":"IF('1. Order'!N702=\"\",\"\",'1. Order'!N702)","v":""},{"$f":"IF('1. Order'!O702=\"\",\"\",'1. Order'!O702)","v":{"$error":"#N/A"}},{"$f":"IF('1. Order'!P702=\"\",\"\",'1. Order'!P702)","v":{"$error":"#N/A"}},{"$f":"IF('1. Order'!Q702=\"\",\"\",'1. Order'!Q702)","v":""},{"$f":"IF('1. Order'!R702=\"\",\"\",'1. Order'!R702)","v":""},{"$f":"IF('1. Order'!S702=\"\",\"\",'1. Order'!S702)","v":""},{"$f":"IF('1. Order'!V702=\"\",\"\",'1. Order'!V702)","v":""},{"$f":"IF('1. Order'!W702=\"\",\"\",'1. Order'!W702)","v":""},{"$f":"IF('1. Order'!X702=\"\",\"\",'1. Order'!X702)","v":"EUR"},{"$f":"IF('1. Order'!Y702=\"\",\"\",'1. Order'!Y702)","v":""},{"$f":"IF('1. Order'!Z702=\"\",\"\",'1. Order'!Z702)","v":""},{"$f":"IF('1. Order'!AA702=\"\",\"\",'1. Order'!AA702)","v":""},null,{"$f":"IF('1. Order'!AS702=\"\",\"\",'1. Order'!AS702)","v":""},{"$f":"IF('1. Order'!AT702=\"\",\"\",'1. Order'!AT702)","v":""},null,null,null,null,null,null,null,{"$f":"IF('1. Order'!AX702=\"\",\"\",'1. Order'!AX702)","v":""},{"$f":"IF('1. Order'!AY702=\"\",\"\",'1. Order'!AY702)","v":""},{"$f":"IF('1. Order'!AZ702=\"\",\"\",'1. Order'!AZ702)","v":""},{"$f":"IF('1. Order'!BA702=\"\",\"\",'1. Order'!BA702)","v":""},{"$f":"IF('1. Order'!BC702=\"\",\"\",'1. Order'!BC702)","v":""},{"$f":"IF('1. Order'!BD702=\"\",\"\",'1. Order'!BD702)","v":6},{"$f":"IF('1. Order'!BE702=\"\",\"\",'1. Order'!BE702)","v":"None"},{"$f":"IF('1. Order'!BF702=\"\",\"\",'1. Order'!BF702)","v":"Parcel"},{"$f":"IF('1. Order'!BG702=\"\",\"\",'1. Order'!BG702)","v":"ZWO"}]
[{"$f":"IF('1. Order'!F703=\"\",\"\",'1. Order'!F703)","v":""},{"$f":"IF('1. Order'!G703=\"\",\"\",'1. Order'!G703)","v":""},{"$f":"IF('1. Order'!H703=\"\",\"\",'1. Order'!H703)","v":""},{"$f":"IF('1. Order'!I703=\"\",\"\",'1. Order'!I703)","v":""},{"$f":"IF('1. Order'!J703=\"\",\"\",'1. Order'!J703)","v":""},{"$f":"IF('1. Order'!K703=\"\",\"\",'1. Order'!K703)","v":""},{"$f":"IF('1. Order'!L703=\"\",\"\",'1. Order'!L703)","v":""},{"$f":"IF('1. Order'!M703=\"\",\"\",'1. Order'!M703)","v":""},{"$f":"IF('1. Order'!N703=\"\",\"\",'1. Order'!N703)","v":""},{"$f":"IF('1. Order'!O703=\"\",\"\",'1. Order'!O703)","v":{"$error":"#N/A"}},{"$f":"IF('1. Order'!P703=\"\",\"\",'1. Order'!P703)","v":{"$error":"#N/A"}},{"$f":"IF('1. Order'!Q703=\"\",\"\",'1. Order'!Q703)","v":""},{"$f":"IF('1. Order'!R703=\"\",\"\",'1. Order'!R703)","v":""},{"$f":"IF('1. Order'!S703=\"\",\"\",'1. Order'!S703)","v":""},{"$f":"IF('1. Order'!V703=\"\",\"\",'1. Order'!V703)","v":""},{"$f":"IF('1. Order'!W703=\"\",\"\",'1. Order'!W703)","v":""},{"$f":"IF('1. Order'!X703=\"\",\"\",'1. Order'!X703)","v":"EUR"},{"$f":"IF('1. Order'!Y703=\"\",\"\",'1. Order'!Y703)","v":""},{"$f":"IF('1. Order'!Z703=\"\",\"\",'1. Order'!Z703)","v":""},{"$f":"IF('1. Order'!AA703=\"\",\"\",'1. Order'!AA703)","v":""},null,{"$f":"IF('1. Order'!AS703=\"\",\"\",'1. Order'!AS703)","v":""},{"$f":"IF('1. Order'!AT703=\"\",\"\",'1. Order'!AT703)","v":""},null,null,null,null,null,null,null,{"$f":"IF('1. Order'!AX703=\"\",\"\",'1. Order'!AX703)","v":""},{"$f":"IF('1. Order'!AY703=\"\",\"\",'1. Order'!AY703)","v":""},{"$f":"IF('1. Order'!AZ703=\"\",\"\",'1. Order'!AZ703)","v":""},{"$f":"IF('1. Order'!BA703=\"\",\"\",'1. Order'!BA703)","v":""},{"$f":"IF('1. Order'!BC703=\"\",\"\",'1. Order'!BC703)","v":""},{"$f":"IF('1. Order'!BD703=\"\",\"\",'1. Order'!BD703)","v":6},{"$f":"IF('1. Order'!BE703=\"\",\"\",'1. Order'!BE703)","v":"None"},{"$f":"IF('1. Order'!BF703=\"\",\"\",'1. Order'!BF703)","v":"Parcel"},{"$f":"IF('1. Order'!BG703=\"\",\"\",'1. Order'!BG703)","v":"ZWO"}]
[{"$f":"IF('1. Order'!F704=\"\",\"\",'1. Order'!F704)","v":""},{"$f":"IF('1. Order'!G704=\"\",\"\",'1. Order'!G704)","v":""},{"$f":"IF('1. Order'!H704=\"\",\"\",'1. Order'!H704)","v":""},{"$f":"IF('1. Order'!I704=\"\",\"\",'1. Order'!I704)","v":""},{"$f":"IF('1. Order'!J704=\"\",\"\",'1. Order'!J704)","v":""},{"$f":"IF('1. Order'!K704=\"\",\"\",'1. Order'!K704)","v":""},{"$f":"IF('1. Order'!L704=\"\",\"\",'1. Order'!L704)","v":""},{"$f":"IF('1. Order'!M704=\"\",\"\",'1. Order'!M704)","v":""},{"$f":"IF('1. Order'!N704=\"\",\"\",'1. Order'!N704)","v":""},{"$f":"IF('1. Order'!O704=\"\",\"\",'1. Order'!O704)","v":{"$error":"#N/A"}},{"$f":"IF('1. Order'!P704=\"\",\"\",'1. Order'!P704)","v":{"$error":"#N/A"}},{"$f":"IF('1. Order'!Q704=\"\",\"\",'1. Order'!Q704)","v":""},{"$f":"IF('1. Order'!R704=\"\",\"\",'1. Order'!R704)","v":""},{"$f":"IF('1. Order'!S704=\"\",\"\",'1. Order'!S704)","v":""},{"$f":"IF('1. Order'!V704=\"\",\"\",'1. Order'!V704)","v":""},{"$f":"IF('1. Order'!W704=\"\",\"\",'1. Order'!W704)","v":""},{"$f":"IF('1. Order'!X704=\"\",\"\",'1. Order'!X704)","v":"EUR"},{"$f":"IF('1. Order'!Y704=\"\",\"\",'1. Order'!Y704)","v":""},{"$f":"IF('1. Order'!Z704=\"\",\"\",'1. Order'!Z704)","v":""},{"$f":"IF('1. Order'!AA704=\"\",\"\",'1. Order'!AA704)","v":""},null,{"$f":"IF('1. Order'!AS704=\"\",\"\",'1. Order'!AS704)","v":""},{"$f":"IF('1. Order'!AT704=\"\",\"\",'1. Order'!AT704)","v":""},null,null,null,null,null,null,null,{"$f":"IF('1. Order'!AX704=\"\",\"\",'1. Order'!AX704)","v":""},{"$f":"IF('1. Order'!AY704=\"\",\"\",'1. Order'!AY704)","v":""},{"$f":"IF('1. Order'!AZ704=\"\",\"\",'1. Order'!AZ704)","v":""},{"$f":"IF('1. Order'!BA704=\"\",\"\",'1. Order'!BA704)","v":""},{"$f":"IF('1. Order'!BC704=\"\",\"\",'1. Order'!BC704)","v":""},{"$f":"IF('1. Order'!BD704=\"\",\"\",'1. Order'!BD704)","v":6},{"$f":"IF('1. Order'!BE704=\"\",\"\",'1. Order'!BE704)","v":"None"},{"$f":"IF('1. Order'!BF704=\"\",\"\",'1. Order'!BF704)","v":"Parcel"},{"$f":"IF('1. Order'!BG704=\"\",\"\",'1. Order'!BG704)","v":"ZWO"}]
[{"$f":"IF('1. Order'!F705=\"\",\"\",'1. Order'!F705)","v":""},{"$f":"IF('1. Order'!G705=\"\",\"\",'1. Order'!G705)","v":""},{"$f":"IF('1. Order'!H705=\"\",\"\",'1. Order'!H705)","v":""},{"$f":"IF('1. Order'!I705=\"\",\"\",'1. Order'!I705)","v":""},{"$f":"IF('1. Order'!J705=\"\",\"\",'1. Order'!J705)","v":""},{"$f":"IF('1. Order'!K705=\"\",\"\",'1. Order'!K705)","v":""},{"$f":"IF('1. Order'!L705=\"\",\"\",'1. Order'!L705)","v":""},{"$f":"IF('1. Order'!M705=\"\",\"\",'1. Order'!M705)","v":""},{"$f":"IF('1. Order'!N705=\"\",\"\",'1. Order'!N705)","v":""},{"$f":"IF('1. Order'!O705=\"\",\"\",'1. Order'!O705)","v":{"$error":"#N/A"}},{"$f":"IF('1. Order'!P705=\"\",\"\",'1. Order'!P705)","v":{"$error":"#N/A"}},{"$f":"IF('1. Order'!Q705=\"\",\"\",'1. Order'!Q705)","v":""},{"$f":"IF('1. Order'!R705=\"\",\"\",'1. Order'!R705)","v":""},{"$f":"IF('1. Order'!S705=\"\",\"\",'1. Order'!S705)","v":""},{"$f":"IF('1. Order'!V705=\"\",\"\",'1. Order'!V705)","v":""},{"$f":"IF('1. Order'!W705=\"\",\"\",'1. Order'!W705)","v":""},{"$f":"IF('1. Order'!X705=\"\",\"\",'1. Order'!X705)","v":"EUR"},{"$f":"IF('1. Order'!Y705=\"\",\"\",'1. Order'!Y705)","v":""},{"$f":"IF('1. Order'!Z705=\"\",\"\",'1. Order'!Z705)","v":""},{"$f":"IF('1. Order'!AA705=\"\",\"\",'1. Order'!AA705)","v":""},null,{"$f":"IF('1. Order'!AS705=\"\",\"\",'1. Order'!AS705)","v":""},{"$f":"IF('1. Order'!AT705=\"\",\"\",'1. Order'!AT705)","v":""},null,null,null,null,null,null,null,{"$f":"IF('1. Order'!AX705=\"\",\"\",'1. Order'!AX705)","v":""},{"$f":"IF('1. Order'!AY705=\"\",\"\",'1. Order'!AY705)","v":""},{"$f":"IF('1. Order'!AZ705=\"\",\"\",'1. Order'!AZ705)","v":""},{"$f":"IF('1. Order'!BA705=\"\",\"\",'1. Order'!BA705)","v":""},{"$f":"IF('1. Order'!BC705=\"\",\"\",'1. Order'!BC705)","v":""},{"$f":"IF('1. Order'!BD705=\"\",\"\",'1. Order'!BD705)","v":6},{"$f":"IF('1. Order'!BE705=\"\",\"\",'1. Order'!BE705)","v":"None"},{"$f":"IF('1. Order'!BF705=\"\",\"\",'1. Order'!BF705)","v":"Parcel"},{"$f":"IF('1. Order'!BG705=\"\",\"\",'1. Order'!BG705)","v":"ZWO"}]
[{"$f":"IF('1. Order'!F706=\"\",\"\",'1. Order'!F706)","v":""},{"$f":"IF('1. Order'!G706=\"\",\"\",'1. Order'!G706)","v":""},{"$f":"IF('1. Order'!H706=\"\",\"\",'1. Order'!H706)","v":""},{"$f":"IF('1. Order'!I706=\"\",\"\",'1. Order'!I706)","v":""},{"$f":"IF('1. Order'!J706=\"\",\"\",'1. Order'!J706)","v":""},{"$f":"IF('1. Order'!K706=\"\",\"\",'1. Order'!K706)","v":""},{"$f":"IF('1. Order'!L706=\"\",\"\",'1. Order'!L706)","v":""},{"$f":"IF('1. Order'!M706=\"\",\"\",'1. Order'!M706)","v":""},{"$f":"IF('1. Order'!N706=\"\",\"\",'1. Order'!N706)","v":""},{"$f":"IF('1. Order'!O706=\"\",\"\",'1. Order'!O706)","v":{"$error":"#N/A"}},{"$f":"IF('1. Order'!P706=\"\",\"\",'1. Order'!P706)","v":{"$error":"#N/A"}},{"$f":"IF('1. Order'!Q706=\"\",\"\",'1. Order'!Q706)","v":""},{"$f":"IF('1. Order'!R706=\"\",\"\",'1. Order'!R706)","v":""},{"$f":"IF('1. Order'!S706=\"\",\"\",'1. Order'!S706)","v":""},{"$f":"IF('1. Order'!V706=\"\",\"\",'1. Order'!V706)","v":""},{"$f":"IF('1. Order'!W706=\"\",\"\",'1. Order'!W706)","v":""},{"$f":"IF('1. Order'!X706=\"\",\"\",'1. Order'!X706)","v":"EUR"},{"$f":"IF('1. Order'!Y706=\"\",\"\",'1. Order'!Y706)","v":""},{"$f":"IF('1. Order'!Z706=\"\",\"\",'1. Order'!Z706)","v":""},{"$f":"IF('1. Order'!AA706=\"\",\"\",'1. Order'!AA706)","v":""},null,{"$f":"IF('1. Order'!AS706=\"\",\"\",'1. Order'!AS706)","v":""},{"$f":"IF('1. Order'!AT706=\"\",\"\",'1. Order'!AT706)","v":""},null,null,null,null,null,null,null,{"$f":"IF('1. Order'!AX706=\"\",\"\",'1. Order'!AX706)","v":""},{"$f":"IF('1. Order'!AY706=\"\",\"\",'1. Order'!AY706)","v":""},{"$f":"IF('1. Order'!AZ706=\"\",\"\",'1. Order'!AZ706)","v":""},{"$f":"IF('1. Order'!BA706=\"\",\"\",'1. Order'!BA706)","v":""},{"$f":"IF('1. Order'!BC706=\"\",\"\",'1. Order'!BC706)","v":""},{"$f":"IF('1. Order'!BD706=\"\",\"\",'1. Order'!BD706)","v":6},{"$f":"IF('1. Order'!BE706=\"\",\"\",'1. Order'!BE706)","v":"None"},{"$f":"IF('1. Order'!BF706=\"\",\"\",'1. Order'!BF706)","v":"Parcel"},{"$f":"IF('1. Order'!BG706=\"\",\"\",'1. Order'!BG706)","v":"ZWO"}]
[{"$f":"IF('1. Order'!F707=\"\",\"\",'1. Order'!F707)","v":""},{"$f":"IF('1. Order'!G707=\"\",\"\",'1. Order'!G707)","v":""},{"$f":"IF('1. Order'!H707=\"\",\"\",'1. Order'!H707)","v":""},{"$f":"IF('1. Order'!I707=\"\",\"\",'1. Order'!I707)","v":""},{"$f":"IF('1. Order'!J707=\"\",\"\",'1. Order'!J707)","v":""},{"$f":"IF('1. Order'!K707=\"\",\"\",'1. Order'!K707)","v":""},{"$f":"IF('1. Order'!L707=\"\",\"\",'1. Order'!L707)","v":""},{"$f":"IF('1. Order'!M707=\"\",\"\",'1. Order'!M707)","v":""},{"$f":"IF('1. Order'!N707=\"\",\"\",'1. Order'!N707)","v":""},{"$f":"IF('1. Order'!O707=\"\",\"\",'1. Order'!O707)","v":{"$error":"#N/A"}},{"$f":"IF('1. Order'!P707=\"\",\"\",'1. Order'!P707)","v":{"$error":"#N/A"}},{"$f":"IF('1. Order'!Q707=\"\",\"\",'1. Order'!Q707)","v":""},{"$f":"IF('1. Order'!R707=\"\",\"\",'1. Order'!R707)","v":""},{"$f":"IF('1. Order'!S707=\"\",\"\",'1. Order'!S707)","v":""},{"$f":"IF('1. Order'!V707=\"\",\"\",'1. Order'!V707)","v":""},{"$f":"IF('1. Order'!W707=\"\",\"\",'1. Order'!W707)","v":""},{"$f":"IF('1. Order'!X707=\"\",\"\",'1. Order'!X707)","v":"EUR"},{"$f":"IF('1. Order'!Y707=\"\",\"\",'1. Order'!Y707)","v":""},{"$f":"IF('1. Order'!Z707=\"\",\"\",'1. Order'!Z707)","v":""},{"$f":"IF('1. Order'!AA707=\"\",\"\",'1. Order'!AA707)","v":""},null,{"$f":"IF('1. Order'!AS707=\"\",\"\",'1. Order'!AS707)","v":""},{"$f":"IF('1. Order'!AT707=\"\",\"\",'1. Order'!AT707)","v":""},null,null,null,null,null,null,null,{"$f":"IF('1. Order'!AX707=\"\",\"\",'1. Order'!AX707)","v":""},{"$f":"IF('1. Order'!AY707=\"\",\"\",'1. Order'!AY707)","v":""},{"$f":"IF('1. Order'!AZ707=\"\",\"\",'1. Order'!AZ707)","v":""},{"$f":"IF('1. Order'!BA707=\"\",\"\",'1. Order'!BA707)","v":""},{"$f":"IF('1. Order'!BC707=\"\",\"\",'1. Order'!BC707)","v":""},{"$f":"IF('1. Order'!BD707=\"\",\"\",'1. Order'!BD707)","v":6},{"$f":"IF('1. Order'!BE707=\"\",\"\",'1. Order'!BE707)","v":"None"},{"$f":"IF('1. Order'!BF707=\"\",\"\",'1. Order'!BF707)","v":"Parcel"},{"$f":"IF('1. Order'!BG707=\"\",\"\",'1. Order'!BG707)","v":"ZWO"}]
[{"$f":"IF('1. Order'!F708=\"\",\"\",'1. Order'!F708)","v":""},{"$f":"IF('1. Order'!G708=\"\",\"\",'1. Order'!G708)","v":""},{"$f":"IF('1. Order'!H708=\"\",\"\",'1. Order'!H708)","v":""},{"$f":"IF('1. Order'!I708=\"\",\"\",'1. Order'!I708)","v":""},{"$f":"IF('1. Order'!J708=\"\",\"\",'1. Order'!J708)","v":""},{"$f":"IF('1. Order'!K708=\"\",\"\",'1. Order'!K708)","v":""},{"$f":"IF('1. Order'!L708=\"\",\"\",'1. Order'!L708)","v":""},{"$f":"IF('1. Order'!M708=\"\",\"\",'1. Order'!M708)","v":""},{"$f":"IF('1. Order'!N708=\"\",\"\",'1. Order'!N708)","v":""},{"$f":"IF('1. Order'!O708=\"\",\"\",'1. Order'!O708)","v":{"$error":"#N/A"}},{"$f":"IF('1. Order'!P708=\"\",\"\",'1. Order'!P708)","v":{"$error":"#N/A"}},{"$f":"IF('1. Order'!Q708=\"\",\"\",'1. Order'!Q708)","v":""},{"$f":"IF('1. Order'!R708=\"\",\"\",'1. Order'!R708)","v":""},{"$f":"IF('1. Order'!S708=\"\",\"\",'1. Order'!S708)","v":""},{"$f":"IF('1. Order'!V708=\"\",\"\",'1. Order'!V708)","v":""},{"$f":"IF('1. Order'!W708=\"\",\"\",'1. Order'!W708)","v":""},{"$f":"IF('1. Order'!X708=\"\",\"\",'1. Order'!X708)","v":"EUR"},{"$f":"IF('1. Order'!Y708=\"\",\"\",'1. Order'!Y708)","v":""},{"$f":"IF('1. Order'!Z708=\"\",\"\",'1. Order'!Z708)","v":""},{"$f":"IF('1. Order'!AA708=\"\",\"\",'1. Order'!AA708)","v":""},null,{"$f":"IF('1. Order'!AS708=\"\",\"\",'1. Order'!AS708)","v":""},{"$f":"IF('1. Order'!AT708=\"\",\"\",'1. Order'!AT708)","v":""},null,null,null,null,null,null,null,{"$f":"IF('1. Order'!AX708=\"\",\"\",'1. Order'!AX708)","v":""},{"$f":"IF('1. Order'!AY708=\"\",\"\",'1. Order'!AY708)","v":""},{"$f":"IF('1. Order'!AZ708=\"\",\"\",'1. Order'!AZ708)","v":""},{"$f":"IF('1. Order'!BA708=\"\",\"\",'1. Order'!BA708)","v":""},{"$f":"IF('1. Order'!BC708=\"\",\"\",'1. Order'!BC708)","v":""},{"$f":"IF('1. Order'!BD708=\"\",\"\",'1. Order'!BD708)","v":6},{"$f":"IF('1. Order'!BE708=\"\",\"\",'1. Order'!BE708)","v":"None"},{"$f":"IF('1. Order'!BF708=\"\",\"\",'1. Order'!BF708)","v":"Parcel"},{"$f":"IF('1. Order'!BG708=\"\",\"\",'1. Order'!BG708)","v":"ZWO"}]
[{"$f":"IF('1. Order'!F709=\"\",\"\",'1. Order'!F709)","v":""},{"$f":"IF('1. Order'!G709=\"\",\"\",'1. Order'!G709)","v":""},{"$f":"IF('1. Order'!H709=\"\",\"\",'1. Order'!H709)","v":""},{"$f":"IF('1. Order'!I709=\"\",\"\",'1. Order'!I709)","v":""},{"$f":"IF('1. Order'!J709=\"\",\"\",'1. Order'!J709)","v":""},{"$f":"IF('1. Order'!K709=\"\",\"\",'1. Order'!K709)","v":""},{"$f":"IF('1. Order'!L709=\"\",\"\",'1. Order'!L709)","v":""},{"$f":"IF('1. Order'!M709=\"\",\"\",'1. Order'!M709)","v":""},{"$f":"IF('1. Order'!N709=\"\",\"\",'1. Order'!N709)","v":""},{"$f":"IF('1. Order'!O709=\"\",\"\",'1. Order'!O709)","v":{"$error":"#N/A"}},{"$f":"IF('1. Order'!P709=\"\",\"\",'1. Order'!P709)","v":{"$error":"#N/A"}},{"$f":"IF('1. Order'!Q709=\"\",\"\",'1. Order'!Q709)","v":""},{"$f":"IF('1. Order'!R709=\"\",\"\",'1. Order'!R709)","v":""},{"$f":"IF('1. Order'!S709=\"\",\"\",'1. Order'!S709)","v":""},{"$f":"IF('1. Order'!V709=\"\",\"\",'1. Order'!V709)","v":""},{"$f":"IF('1. Order'!W709=\"\",\"\",'1. Order'!W709)","v":""},{"$f":"IF('1. Order'!X709=\"\",\"\",'1. Order'!X709)","v":"EUR"},{"$f":"IF('1. Order'!Y709=\"\",\"\",'1. Order'!Y709)","v":""},{"$f":"IF('1. Order'!Z709=\"\",\"\",'1. Order'!Z709)","v":""},{"$f":"IF('1. Order'!AA709=\"\",\"\",'1. Order'!AA709)","v":""},null,{"$f":"IF('1. Order'!AS709=\"\",\"\",'1. Order'!AS709)","v":""},{"$f":"IF('1. Order'!AT709=\"\",\"\",'1. Order'!AT709)","v":""},null,null,null,null,null,null,null,{"$f":"IF('1. Order'!AX709=\"\",\"\",'1. Order'!AX709)","v":""},{"$f":"IF('1. Order'!AY709=\"\",\"\",'1. Order'!AY709)","v":""},{"$f":"IF('1. Order'!AZ709=\"\",\"\",'1. Order'!AZ709)","v":""},{"$f":"IF('1. Order'!BA709=\"\",\"\",'1. Order'!BA709)","v":""},{"$f":"IF('1. Order'!BC709=\"\",\"\",'1. Order'!BC709)","v":""},{"$f":"IF('1. Order'!BD709=\"\",\"\",'1. Order'!BD709)","v":6},{"$f":"IF('1. Order'!BE709=\"\",\"\",'1. Order'!BE709)","v":"None"},{"$f":"IF('1. Order'!BF709=\"\",\"\",'1. Order'!BF709)","v":"Parcel"},{"$f":"IF('1. Order'!BG709=\"\",\"\",'1. Order'!BG709)","v":"ZWO"}]
[{"$f":"IF('1. Order'!F710=\"\",\"\",'1. Order'!F710)","v":""},{"$f":"IF('1. Order'!G710=\"\",\"\",'1. Order'!G710)","v":""},{"$f":"IF('1. Order'!H710=\"\",\"\",'1. Order'!H710)","v":""},{"$f":"IF('1. Order'!I710=\"\",\"\",'1. Order'!I710)","v":""},{"$f":"IF('1. Order'!J710=\"\",\"\",'1. Order'!J710)","v":""},{"$f":"IF('1. Order'!K710=\"\",\"\",'1. Order'!K710)","v":""},{"$f":"IF('1. Order'!L710=\"\",\"\",'1. Order'!L710)","v":""},{"$f":"IF('1. Order'!M710=\"\",\"\",'1. Order'!M710)","v":""},{"$f":"IF('1. Order'!N710=\"\",\"\",'1. Order'!N710)","v":""},{"$f":"IF('1. Order'!O710=\"\",\"\",'1. Order'!O710)","v":{"$error":"#N/A"}},{"$f":"IF('1. Order'!P710=\"\",\"\",'1. Order'!P710)","v":{"$error":"#N/A"}},{"$f":"IF('1. Order'!Q710=\"\",\"\",'1. Order'!Q710)","v":""},{"$f":"IF('1. Order'!R710=\"\",\"\",'1. Order'!R710)","v":""},{"$f":"IF('1. Order'!S710=\"\",\"\",'1. Order'!S710)","v":""},{"$f":"IF('1. Order'!V710=\"\",\"\",'1. Order'!V710)","v":""},{"$f":"IF('1. Order'!W710=\"\",\"\",'1. Order'!W710)","v":""},{"$f":"IF('1. Order'!X710=\"\",\"\",'1. Order'!X710)","v":"EUR"},{"$f":"IF('1. Order'!Y710=\"\",\"\",'1. Order'!Y710)","v":""},{"$f":"IF('1. Order'!Z710=\"\",\"\",'1. Order'!Z710)","v":""},{"$f":"IF('1. Order'!AA710=\"\",\"\",'1. Order'!AA710)","v":""},null,{"$f":"IF('1. Order'!AS710=\"\",\"\",'1. Order'!AS710)","v":""},{"$f":"IF('1. Order'!AT710=\"\",\"\",'1. Order'!AT710)","v":""},null,null,null,null,null,null,null,{"$f":"IF('1. Order'!AX710=\"\",\"\",'1. Order'!AX710)","v":""},{"$f":"IF('1. Order'!AY710=\"\",\"\",'1. Order'!AY710)","v":""},{"$f":"IF('1. Order'!AZ710=\"\",\"\",'1. Order'!AZ710)","v":""},{"$f":"IF('1. Order'!BA710=\"\",\"\",'1. Order'!BA710)","v":""},{"$f":"IF('1. Order'!BC710=\"\",\"\",'1. Order'!BC710)","v":""},{"$f":"IF('1. Order'!BD710=\"\",\"\",'1. Order'!BD710)","v":6},{"$f":"IF('1. Order'!BE710=\"\",\"\",'1. Order'!BE710)","v":"None"},{"$f":"IF('1. Order'!BF710=\"\",\"\",'1. Order'!BF710)","v":"Parcel"},{"$f":"IF('1. Order'!BG710=\"\",\"\",'1. Order'!BG710)","v":"ZWO"}]
[{"$f":"IF('1. Order'!F711=\"\",\"\",'1. Order'!F711)","v":""},{"$f":"IF('1. Order'!G711=\"\",\"\",'1. Order'!G711)","v":""},{"$f":"IF('1. Order'!H711=\"\",\"\",'1. Order'!H711)","v":""},{"$f":"IF('1. Order'!I711=\"\",\"\",'1. Order'!I711)","v":""},{"$f":"IF('1. Order'!J711=\"\",\"\",'1. Order'!J711)","v":""},{"$f":"IF('1. Order'!K711=\"\",\"\",'1. Order'!K711)","v":""},{"$f":"IF('1. Order'!L711=\"\",\"\",'1. Order'!L711)","v":""},{"$f":"IF('1. Order'!M711=\"\",\"\",'1. Order'!M711)","v":""},{"$f":"IF('1. Order'!N711=\"\",\"\",'1. Order'!N711)","v":""},{"$f":"IF('1. Order'!O711=\"\",\"\",'1. Order'!O711)","v":{"$error":"#N/A"}},{"$f":"IF('1. Order'!P711=\"\",\"\",'1. Order'!P711)","v":{"$error":"#N/A"}},{"$f":"IF('1. Order'!Q711=\"\",\"\",'1. Order'!Q711)","v":""},{"$f":"IF('1. Order'!R711=\"\",\"\",'1. Order'!R711)","v":""},{"$f":"IF('1. Order'!S711=\"\",\"\",'1. Order'!S711)","v":""},{"$f":"IF('1. Order'!V711=\"\",\"\",'1. Order'!V711)","v":""},{"$f":"IF('1. Order'!W711=\"\",\"\",'1. Order'!W711)","v":""},{"$f":"IF('1. Order'!X711=\"\",\"\",'1. Order'!X711)","v":"EUR"},{"$f":"IF('1. Order'!Y711=\"\",\"\",'1. Order'!Y711)","v":""},{"$f":"IF('1. Order'!Z711=\"\",\"\",'1. Order'!Z711)","v":""},{"$f":"IF('1. Order'!AA711=\"\",\"\",'1. Order'!AA711)","v":""},null,{"$f":"IF('1. Order'!AS711=\"\",\"\",'1. Order'!AS711)","v":""},{"$f":"IF('1. Order'!AT711=\"\",\"\",'1. Order'!AT711)","v":""},null,null,null,null,null,null,null,{"$f":"IF('1. Order'!AX711=\"\",\"\",'1. Order'!AX711)","v":""},{"$f":"IF('1. Order'!AY711=\"\",\"\",'1. Order'!AY711)","v":""},{"$f":"IF('1. Order'!AZ711=\"\",\"\",'1. Order'!AZ711)","v":""},{"$f":"IF('1. Order'!BA711=\"\",\"\",'1. Order'!BA711)","v":""},{"$f":"IF('1. Order'!BC711=\"\",\"\",'1. Order'!BC711)","v":""},{"$f":"IF('1. Order'!BD711=\"\",\"\",'1. Order'!BD711)","v":6},{"$f":"IF('1. Order'!BE711=\"\",\"\",'1. Order'!BE711)","v":"None"},{"$f":"IF('1. Order'!BF711=\"\",\"\",'1. Order'!BF711)","v":"Parcel"},{"$f":"IF('1. Order'!BG711=\"\",\"\",'1. Order'!BG711)","v":"ZWO"}]
[{"$f":"IF('1. Order'!F712=\"\",\"\",'1. Order'!F712)","v":""},{"$f":"IF('1. Order'!G712=\"\",\"\",'1. Order'!G712)","v":""},{"$f":"IF('1. Order'!H712=\"\",\"\",'1. Order'!H712)","v":""},{"$f":"IF('1. Order'!I712=\"\",\"\",'1. Order'!I712)","v":""},{"$f":"IF('1. Order'!J712=\"\",\"\",'1. Order'!J712)","v":""},{"$f":"IF('1. Order'!K712=\"\",\"\",'1. Order'!K712)","v":""},{"$f":"IF('1. Order'!L712=\"\",\"\",'1. Order'!L712)","v":""},{"$f":"IF('1. Order'!M712=\"\",\"\",'1. Order'!M712)","v":""},{"$f":"IF('1. Order'!N712=\"\",\"\",'1. Order'!N712)","v":""},{"$f":"IF('1. Order'!O712=\"\",\"\",'1. Order'!O712)","v":{"$error":"#N/A"}},{"$f":"IF('1. Order'!P712=\"\",\"\",'1. Order'!P712)","v":{"$error":"#N/A"}},{"$f":"IF('1. Order'!Q712=\"\",\"\",'1. Order'!Q712)","v":""},{"$f":"IF('1. Order'!R712=\"\",\"\",'1. Order'!R712)","v":""},{"$f":"IF('1. Order'!S712=\"\",\"\",'1. Order'!S712)","v":""},{"$f":"IF('1. Order'!V712=\"\",\"\",'1. Order'!V712)","v":""},{"$f":"IF('1. Order'!W712=\"\",\"\",'1. Order'!W712)","v":""},{"$f":"IF('1. Order'!X712=\"\",\"\",'1. Order'!X712)","v":"EUR"},{"$f":"IF('1. Order'!Y712=\"\",\"\",'1. Order'!Y712)","v":""},{"$f":"IF('1. Order'!Z712=\"\",\"\",'1. Order'!Z712)","v":""},{"$f":"IF('1. Order'!AA712=\"\",\"\",'1. Order'!AA712)","v":""},null,{"$f":"IF('1. Order'!AS712=\"\",\"\",'1. Order'!AS712)","v":""},{"$f":"IF('1. Order'!AT712=\"\",\"\",'1. Order'!AT712)","v":""},null,null,null,null,null,null,null,{"$f":"IF('1. Order'!AX712=\"\",\"\",'1. Order'!AX712)","v":""},{"$f":"IF('1. Order'!AY712=\"\",\"\",'1. Order'!AY712)","v":""},{"$f":"IF('1. Order'!AZ712=\"\",\"\",'1. Order'!AZ712)","v":""},{"$f":"IF('1. Order'!BA712=\"\",\"\",'1. Order'!BA712)","v":""},{"$f":"IF('1. Order'!BC712=\"\",\"\",'1. Order'!BC712)","v":""},{"$f":"IF('1. Order'!BD712=\"\",\"\",'1. Order'!BD712)","v":6},{"$f":"IF('1. Order'!BE712=\"\",\"\",'1. Order'!BE712)","v":"None"},{"$f":"IF('1. Order'!BF712=\"\",\"\",'1. Order'!BF712)","v":"Parcel"},{"$f":"IF('1. Order'!BG712=\"\",\"\",'1. Order'!BG712)","v":"ZWO"}]
[{"$f":"IF('1. Order'!F713=\"\",\"\",'1. Order'!F713)","v":""},{"$f":"IF('1. Order'!G713=\"\",\"\",'1. Order'!G713)","v":""},{"$f":"IF('1. Order'!H713=\"\",\"\",'1. Order'!H713)","v":""},{"$f":"IF('1. Order'!I713=\"\",\"\",'1. Order'!I713)","v":""},{"$f":"IF('1. Order'!J713=\"\",\"\",'1. Order'!J713)","v":""},{"$f":"IF('1. Order'!K713=\"\",\"\",'1. Order'!K713)","v":""},{"$f":"IF('1. Order'!L713=\"\",\"\",'1. Order'!L713)","v":""},{"$f":"IF('1. Order'!M713=\"\",\"\",'1. Order'!M713)","v":""},{"$f":"IF('1. Order'!N713=\"\",\"\",'1. Order'!N713)","v":""},{"$f":"IF('1. Order'!O713=\"\",\"\",'1. Order'!O713)","v":{"$error":"#N/A"}},{"$f":"IF('1. Order'!P713=\"\",\"\",'1. Order'!P713)","v":{"$error":"#N/A"}},{"$f":"IF('1. Order'!Q713=\"\",\"\",'1. Order'!Q713)","v":""},{"$f":"IF('1. Order'!R713=\"\",\"\",'1. Order'!R713)","v":""},{"$f":"IF('1. Order'!S713=\"\",\"\",'1. Order'!S713)","v":""},{"$f":"IF('1. Order'!V713=\"\",\"\",'1. Order'!V713)","v":""},{"$f":"IF('1. Order'!W713=\"\",\"\",'1. Order'!W713)","v":""},{"$f":"IF('1. Order'!X713=\"\",\"\",'1. Order'!X713)","v":"EUR"},{"$f":"IF('1. Order'!Y713=\"\",\"\",'1. Order'!Y713)","v":""},{"$f":"IF('1. Order'!Z713=\"\",\"\",'1. Order'!Z713)","v":""},{"$f":"IF('1. Order'!AA713=\"\",\"\",'1. Order'!AA713)","v":""},null,{"$f":"IF('1. Order'!AS713=\"\",\"\",'1. Order'!AS713)","v":""},{"$f":"IF('1. Order'!AT713=\"\",\"\",'1. Order'!AT713)","v":""},null,null,null,null,null,null,null,{"$f":"IF('1. Order'!AX713=\"\",\"\",'1. Order'!AX713)","v":""},{"$f":"IF('1. Order'!AY713=\"\",\"\",'1. Order'!AY713)","v":""},{"$f":"IF('1. Order'!AZ713=\"\",\"\",'1. Order'!AZ713)","v":""},{"$f":"IF('1. Order'!BA713=\"\",\"\",'1. Order'!BA713)","v":""},{"$f":"IF('1. Order'!BC713=\"\",\"\",'1. Order'!BC713)","v":""},{"$f":"IF('1. Order'!BD713=\"\",\"\",'1. Order'!BD713)","v":6},{"$f":"IF('1. Order'!BE713=\"\",\"\",'1. Order'!BE713)","v":"None"},{"$f":"IF('1. Order'!BF713=\"\",\"\",'1. Order'!BF713)","v":"Parcel"},{"$f":"IF('1. Order'!BG713=\"\",\"\",'1. Order'!BG713)","v":"ZWO"}]
[{"$f":"IF('1. Order'!F714=\"\",\"\",'1. Order'!F714)","v":""},{"$f":"IF('1. Order'!G714=\"\",\"\",'1. Order'!G714)","v":""},{"$f":"IF('1. Order'!H714=\"\",\"\",'1. Order'!H714)","v":""},{"$f":"IF('1. Order'!I714=\"\",\"\",'1. Order'!I714)","v":""},{"$f":"IF('1. Order'!J714=\"\",\"\",'1. Order'!J714)","v":""},{"$f":"IF('1. Order'!K714=\"\",\"\",'1. Order'!K714)","v":""},{"$f":"IF('1. Order'!L714=\"\",\"\",'1. Order'!L714)","v":""},{"$f":"IF('1. Order'!M714=\"\",\"\",'1. Order'!M714)","v":""},{"$f":"IF('1. Order'!N714=\"\",\"\",'1. Order'!N714)","v":""},{"$f":"IF('1. Order'!O714=\"\",\"\",'1. Order'!O714)","v":{"$error":"#N/A"}},{"$f":"IF('1. Order'!P714=\"\",\"\",'1. Order'!P714)","v":{"$error":"#N/A"}},{"$f":"IF('1. Order'!Q714=\"\",\"\",'1. Order'!Q714)","v":""},{"$f":"IF('1. Order'!R714=\"\",\"\",'1. Order'!R714)","v":""},{"$f":"IF('1. Order'!S714=\"\",\"\",'1. Order'!S714)","v":""},{"$f":"IF('1. Order'!V714=\"\",\"\",'1. Order'!V714)","v":""},{"$f":"IF('1. Order'!W714=\"\",\"\",'1. Order'!W714)","v":""},{"$f":"IF('1. Order'!X714=\"\",\"\",'1. Order'!X714)","v":"EUR"},{"$f":"IF('1. Order'!Y714=\"\",\"\",'1. Order'!Y714)","v":""},{"$f":"IF('1. Order'!Z714=\"\",\"\",'1. Order'!Z714)","v":""},{"$f":"IF('1. Order'!AA714=\"\",\"\",'1. Order'!AA714)","v":""},null,{"$f":"IF('1. Order'!AS714=\"\",\"\",'1. Order'!AS714)","v":""},{"$f":"IF('1. Order'!AT714=\"\",\"\",'1. Order'!AT714)","v":""},null,null,null,null,null,null,null,{"$f":"IF('1. Order'!AX714=\"\",\"\",'1. Order'!AX714)","v":""},{"$f":"IF('1. Order'!AY714=\"\",\"\",'1. Order'!AY714)","v":""},{"$f":"IF('1. Order'!AZ714=\"\",\"\",'1. Order'!AZ714)","v":""},{"$f":"IF('1. Order'!BA714=\"\",\"\",'1. Order'!BA714)","v":""},{"$f":"IF('1. Order'!BC714=\"\",\"\",'1. Order'!BC714)","v":""},{"$f":"IF('1. Order'!BD714=\"\",\"\",'1. Order'!BD714)","v":6},{"$f":"IF('1. Order'!BE714=\"\",\"\",'1. Order'!BE714)","v":"None"},{"$f":"IF('1. Order'!BF714=\"\",\"\",'1. Order'!BF714)","v":"Parcel"},{"$f":"IF('1. Order'!BG714=\"\",\"\",'1. Order'!BG714)","v":"ZWO"}]
[{"$f":"IF('1. Order'!F715=\"\",\"\",'1. Order'!F715)","v":""},{"$f":"IF('1. Order'!G715=\"\",\"\",'1. Order'!G715)","v":""},{"$f":"IF('1. Order'!H715=\"\",\"\",'1. Order'!H715)","v":""},{"$f":"IF('1. Order'!I715=\"\",\"\",'1. Order'!I715)","v":""},{"$f":"IF('1. Order'!J715=\"\",\"\",'1. Order'!J715)","v":""},{"$f":"IF('1. Order'!K715=\"\",\"\",'1. Order'!K715)","v":""},{"$f":"IF('1. Order'!L715=\"\",\"\",'1. Order'!L715)","v":""},{"$f":"IF('1. Order'!M715=\"\",\"\",'1. Order'!M715)","v":""},{"$f":"IF('1. Order'!N715=\"\",\"\",'1. Order'!N715)","v":""},{"$f":"IF('1. Order'!O715=\"\",\"\",'1. Order'!O715)","v":{"$error":"#N/A"}},{"$f":"IF('1. Order'!P715=\"\",\"\",'1. Order'!P715)","v":{"$error":"#N/A"}},{"$f":"IF('1. Order'!Q715=\"\",\"\",'1. Order'!Q715)","v":""},{"$f":"IF('1. Order'!R715=\"\",\"\",'1. Order'!R715)","v":""},{"$f":"IF('1. Order'!S715=\"\",\"\",'1. Order'!S715)","v":""},{"$f":"IF('1. Order'!V715=\"\",\"\",'1. Order'!V715)","v":""},{"$f":"IF('1. Order'!W715=\"\",\"\",'1. Order'!W715)","v":""},{"$f":"IF('1. Order'!X715=\"\",\"\",'1. Order'!X715)","v":"EUR"},{"$f":"IF('1. Order'!Y715=\"\",\"\",'1. Order'!Y715)","v":""},{"$f":"IF('1. Order'!Z715=\"\",\"\",'1. Order'!Z715)","v":""},{"$f":"IF('1. Order'!AA715=\"\",\"\",'1. Order'!AA715)","v":""},null,{"$f":"IF('1. Order'!AS715=\"\",\"\",'1. Order'!AS715)","v":""},{"$f":"IF('1. Order'!AT715=\"\",\"\",'1. Order'!AT715)","v":""},null,null,null,null,null,null,null,{"$f":"IF('1. Order'!AX715=\"\",\"\",'1. Order'!AX715)","v":""},{"$f":"IF('1. Order'!AY715=\"\",\"\",'1. Order'!AY715)","v":""},{"$f":"IF('1. Order'!AZ715=\"\",\"\",'1. Order'!AZ715)","v":""},{"$f":"IF('1. Order'!BA715=\"\",\"\",'1. Order'!BA715)","v":""},{"$f":"IF('1. Order'!BC715=\"\",\"\",'1. Order'!BC715)","v":""},{"$f":"IF('1. Order'!BD715=\"\",\"\",'1. Order'!BD715)","v":6},{"$f":"IF('1. Order'!BE715=\"\",\"\",'1. Order'!BE715)","v":"None"},{"$f":"IF('1. Order'!BF715=\"\",\"\",'1. Order'!BF715)","v":"Parcel"},{"$f":"IF('1. Order'!BG715=\"\",\"\",'1. Order'!BG715)","v":"ZWO"}]
[{"$f":"IF('1. Order'!F716=\"\",\"\",'1. Order'!F716)","v":""},{"$f":"IF('1. Order'!G716=\"\",\"\",'1. Order'!G716)","v":""},{"$f":"IF('1. Order'!H716=\"\",\"\",'1. Order'!H716)","v":""},{"$f":"IF('1. Order'!I716=\"\",\"\",'1. Order'!I716)","v":""},{"$f":"IF('1. Order'!J716=\"\",\"\",'1. Order'!J716)","v":""},{"$f":"IF('1. Order'!K716=\"\",\"\",'1. Order'!K716)","v":""},{"$f":"IF('1. Order'!L716=\"\",\"\",'1. Order'!L716)","v":""},{"$f":"IF('1. Order'!M716=\"\",\"\",'1. Order'!M716)","v":""},{"$f":"IF('1. Order'!N716=\"\",\"\",'1. Order'!N716)","v":""},{"$f":"IF('1. Order'!O716=\"\",\"\",'1. Order'!O716)","v":{"$error":"#N/A"}},{"$f":"IF('1. Order'!P716=\"\",\"\",'1. Order'!P716)","v":{"$error":"#N/A"}},{"$f":"IF('1. Order'!Q716=\"\",\"\",'1. Order'!Q716)","v":""},{"$f":"IF('1. Order'!R716=\"\",\"\",'1. Order'!R716)","v":""},{"$f":"IF('1. Order'!S716=\"\",\"\",'1. Order'!S716)","v":""},{"$f":"IF('1. Order'!V716=\"\",\"\",'1. Order'!V716)","v":""},{"$f":"IF('1. Order'!W716=\"\",\"\",'1. Order'!W716)","v":""},{"$f":"IF('1. Order'!X716=\"\",\"\",'1. Order'!X716)","v":"EUR"},{"$f":"IF('1. Order'!Y716=\"\",\"\",'1. Order'!Y716)","v":""},{"$f":"IF('1. Order'!Z716=\"\",\"\",'1. Order'!Z716)","v":""},{"$f":"IF('1. Order'!AA716=\"\",\"\",'1. Order'!AA716)","v":""},null,{"$f":"IF('1. Order'!AS716=\"\",\"\",'1. Order'!AS716)","v":""},{"$f":"IF('1. Order'!AT716=\"\",\"\",'1. Order'!AT716)","v":""},null,null,null,null,null,null,null,{"$f":"IF('1. Order'!AX716=\"\",\"\",'1. Order'!AX716)","v":""},{"$f":"IF('1. Order'!AY716=\"\",\"\",'1. Order'!AY716)","v":""},{"$f":"IF('1. Order'!AZ716=\"\",\"\",'1. Order'!AZ716)","v":""},{"$f":"IF('1. Order'!BA716=\"\",\"\",'1. Order'!BA716)","v":""},{"$f":"IF('1. Order'!BC716=\"\",\"\",'1. Order'!BC716)","v":""},{"$f":"IF('1. Order'!BD716=\"\",\"\",'1. Order'!BD716)","v":6},{"$f":"IF('1. Order'!BE716=\"\",\"\",'1. Order'!BE716)","v":"None"},{"$f":"IF('1. Order'!BF716=\"\",\"\",'1. Order'!BF716)","v":"Parcel"},{"$f":"IF('1. Order'!BG716=\"\",\"\",'1. Order'!BG716)","v":"ZWO"}]
[{"$f":"IF('1. Order'!F717=\"\",\"\",'1. Order'!F717)","v":""},{"$f":"IF('1. Order'!G717=\"\",\"\",'1. Order'!G717)","v":""},{"$f":"IF('1. Order'!H717=\"\",\"\",'1. Order'!H717)","v":""},{"$f":"IF('1. Order'!I717=\"\",\"\",'1. Order'!I717)","v":""},{"$f":"IF('1. Order'!J717=\"\",\"\",'1. Order'!J717)","v":""},{"$f":"IF('1. Order'!K717=\"\",\"\",'1. Order'!K717)","v":""},{"$f":"IF('1. Order'!L717=\"\",\"\",'1. Order'!L717)","v":""},{"$f":"IF('1. Order'!M717=\"\",\"\",'1. Order'!M717)","v":""},{"$f":"IF('1. Order'!N717=\"\",\"\",'1. Order'!N717)","v":""},{"$f":"IF('1. Order'!O717=\"\",\"\",'1. Order'!O717)","v":{"$error":"#N/A"}},{"$f":"IF('1. Order'!P717=\"\",\"\",'1. Order'!P717)","v":{"$error":"#N/A"}},{"$f":"IF('1. Order'!Q717=\"\",\"\",'1. Order'!Q717)","v":""},{"$f":"IF('1. Order'!R717=\"\",\"\",'1. Order'!R717)","v":""},{"$f":"IF('1. Order'!S717=\"\",\"\",'1. Order'!S717)","v":""},{"$f":"IF('1. Order'!V717=\"\",\"\",'1. Order'!V717)","v":""},{"$f":"IF('1. Order'!W717=\"\",\"\",'1. Order'!W717)","v":""},{"$f":"IF('1. Order'!X717=\"\",\"\",'1. Order'!X717)","v":"EUR"},{"$f":"IF('1. Order'!Y717=\"\",\"\",'1. Order'!Y717)","v":""},{"$f":"IF('1. Order'!Z717=\"\",\"\",'1. Order'!Z717)","v":""},{"$f":"IF('1. Order'!AA717=\"\",\"\",'1. Order'!AA717)","v":""},null,{"$f":"IF('1. Order'!AS717=\"\",\"\",'1. Order'!AS717)","v":""},{"$f":"IF('1. Order'!AT717=\"\",\"\",'1. Order'!AT717)","v":""},null,null,null,null,null,null,null,{"$f":"IF('1. Order'!AX717=\"\",\"\",'1. Order'!AX717)","v":""},{"$f":"IF('1. Order'!AY717=\"\",\"\",'1. Order'!AY717)","v":""},{"$f":"IF('1. Order'!AZ717=\"\",\"\",'1. Order'!AZ717)","v":""},{"$f":"IF('1. Order'!BA717=\"\",\"\",'1. Order'!BA717)","v":""},{"$f":"IF('1. Order'!BC717=\"\",\"\",'1. Order'!BC717)","v":""},{"$f":"IF('1. Order'!BD717=\"\",\"\",'1. Order'!BD717)","v":6},{"$f":"IF('1. Order'!BE717=\"\",\"\",'1. Order'!BE717)","v":"None"},{"$f":"IF('1. Order'!BF717=\"\",\"\",'1. Order'!BF717)","v":"Parcel"},{"$f":"IF('1. Order'!BG717=\"\",\"\",'1. Order'!BG717)","v":"ZWO"}]
[{"$f":"IF('1. Order'!F718=\"\",\"\",'1. Order'!F718)","v":""},{"$f":"IF('1. Order'!G718=\"\",\"\",'1. Order'!G718)","v":""},{"$f":"IF('1. Order'!H718=\"\",\"\",'1. Order'!H718)","v":""},{"$f":"IF('1. Order'!I718=\"\",\"\",'1. Order'!I718)","v":""},{"$f":"IF('1. Order'!J718=\"\",\"\",'1. Order'!J718)","v":""},{"$f":"IF('1. Order'!K718=\"\",\"\",'1. Order'!K718)","v":""},{"$f":"IF('1. Order'!L718=\"\",\"\",'1. Order'!L718)","v":""},{"$f":"IF('1. Order'!M718=\"\",\"\",'1. Order'!M718)","v":""},{"$f":"IF('1. Order'!N718=\"\",\"\",'1. Order'!N718)","v":""},{"$f":"IF('1. Order'!O718=\"\",\"\",'1. Order'!O718)","v":{"$error":"#N/A"}},{"$f":"IF('1. Order'!P718=\"\",\"\",'1. Order'!P718)","v":{"$error":"#N/A"}},{"$f":"IF('1. Order'!Q718=\"\",\"\",'1. Order'!Q718)","v":""},{"$f":"IF('1. Order'!R718=\"\",\"\",'1. Order'!R718)","v":""},{"$f":"IF('1. Order'!S718=\"\",\"\",'1. Order'!S718)","v":""},{"$f":"IF('1. Order'!V718=\"\",\"\",'1. Order'!V718)","v":""},{"$f":"IF('1. Order'!W718=\"\",\"\",'1. Order'!W718)","v":""},{"$f":"IF('1. Order'!X718=\"\",\"\",'1. Order'!X718)","v":"EUR"},{"$f":"IF('1. Order'!Y718=\"\",\"\",'1. Order'!Y718)","v":""},{"$f":"IF('1. Order'!Z718=\"\",\"\",'1. Order'!Z718)","v":""},{"$f":"IF('1. Order'!AA718=\"\",\"\",'1. Order'!AA718)","v":""},null,{"$f":"IF('1. Order'!AS718=\"\",\"\",'1. Order'!AS718)","v":""},{"$f":"IF('1. Order'!AT718=\"\",\"\",'1. Order'!AT718)","v":""},null,null,null,null,null,null,null,{"$f":"IF('1. Order'!AX718=\"\",\"\",'1. Order'!AX718)","v":""},{"$f":"IF('1. Order'!AY718=\"\",\"\",'1. Order'!AY718)","v":""},{"$f":"IF('1. Order'!AZ718=\"\",\"\",'1. Order'!AZ718)","v":""},{"$f":"IF('1. Order'!BA718=\"\",\"\",'1. Order'!BA718)","v":""},{"$f":"IF('1. Order'!BC718=\"\",\"\",'1. Order'!BC718)","v":""},{"$f":"IF('1. Order'!BD718=\"\",\"\",'1. Order'!BD718)","v":6},{"$f":"IF('1. Order'!BE718=\"\",\"\",'1. Order'!BE718)","v":"None"},{"$f":"IF('1. Order'!BF718=\"\",\"\",'1. Order'!BF718)","v":"Parcel"},{"$f":"IF('1. Order'!BG718=\"\",\"\",'1. Order'!BG718)","v":"ZWO"}]
[{"$f":"IF('1. Order'!F719=\"\",\"\",'1. Order'!F719)","v":""},{"$f":"IF('1. Order'!G719=\"\",\"\",'1. Order'!G719)","v":""},{"$f":"IF('1. Order'!H719=\"\",\"\",'1. Order'!H719)","v":""},{"$f":"IF('1. Order'!I719=\"\",\"\",'1. Order'!I719)","v":""},{"$f":"IF('1. Order'!J719=\"\",\"\",'1. Order'!J719)","v":""},{"$f":"IF('1. Order'!K719=\"\",\"\",'1. Order'!K719)","v":""},{"$f":"IF('1. Order'!L719=\"\",\"\",'1. Order'!L719)","v":""},{"$f":"IF('1. Order'!M719=\"\",\"\",'1. Order'!M719)","v":""},{"$f":"IF('1. Order'!N719=\"\",\"\",'1. Order'!N719)","v":""},{"$f":"IF('1. Order'!O719=\"\",\"\",'1. Order'!O719)","v":{"$error":"#N/A"}},{"$f":"IF('1. Order'!P719=\"\",\"\",'1. Order'!P719)","v":{"$error":"#N/A"}},{"$f":"IF('1. Order'!Q719=\"\",\"\",'1. Order'!Q719)","v":""},{"$f":"IF('1. Order'!R719=\"\",\"\",'1. Order'!R719)","v":""},{"$f":"IF('1. Order'!S719=\"\",\"\",'1. Order'!S719)","v":""},{"$f":"IF('1. Order'!V719=\"\",\"\",'1. Order'!V719)","v":""},{"$f":"IF('1. Order'!W719=\"\",\"\",'1. Order'!W719)","v":""},{"$f":"IF('1. Order'!X719=\"\",\"\",'1. Order'!X719)","v":"EUR"},{"$f":"IF('1. Order'!Y719=\"\",\"\",'1. Order'!Y719)","v":""},{"$f":"IF('1. Order'!Z719=\"\",\"\",'1. Order'!Z719)","v":""},{"$f":"IF('1. Order'!AA719=\"\",\"\",'1. Order'!AA719)","v":""},null,{"$f":"IF('1. Order'!AS719=\"\",\"\",'1. Order'!AS719)","v":""},{"$f":"IF('1. Order'!AT719=\"\",\"\",'1. Order'!AT719)","v":""},null,null,null,null,null,null,null,{"$f":"IF('1. Order'!AX719=\"\",\"\",'1. Order'!AX719)","v":""},{"$f":"IF('1. Order'!AY719=\"\",\"\",'1. Order'!AY719)","v":""},{"$f":"IF('1. Order'!AZ719=\"\",\"\",'1. Order'!AZ719)","v":""},{"$f":"IF('1. Order'!BA719=\"\",\"\",'1. Order'!BA719)","v":""},{"$f":"IF('1. Order'!BC719=\"\",\"\",'1. Order'!BC719)","v":""},{"$f":"IF('1. Order'!BD719=\"\",\"\",'1. Order'!BD719)","v":6},{"$f":"IF('1. Order'!BE719=\"\",\"\",'1. Order'!BE719)","v":"None"},{"$f":"IF('1. Order'!BF719=\"\",\"\",'1. Order'!BF719)","v":"Parcel"},{"$f":"IF('1. Order'!BG719=\"\",\"\",'1. Order'!BG719)","v":"ZWO"}]
[{"$f":"IF('1. Order'!F720=\"\",\"\",'1. Order'!F720)","v":""},{"$f":"IF('1. Order'!G720=\"\",\"\",'1. Order'!G720)","v":""},{"$f":"IF('1. Order'!H720=\"\",\"\",'1. Order'!H720)","v":""},{"$f":"IF('1. Order'!I720=\"\",\"\",'1. Order'!I720)","v":""},{"$f":"IF('1. Order'!J720=\"\",\"\",'1. Order'!J720)","v":""},{"$f":"IF('1. Order'!K720=\"\",\"\",'1. Order'!K720)","v":""},{"$f":"IF('1. Order'!L720=\"\",\"\",'1. Order'!L720)","v":""},{"$f":"IF('1. Order'!M720=\"\",\"\",'1. Order'!M720)","v":""},{"$f":"IF('1. Order'!N720=\"\",\"\",'1. Order'!N720)","v":""},{"$f":"IF('1. Order'!O720=\"\",\"\",'1. Order'!O720)","v":{"$error":"#N/A"}},{"$f":"IF('1. Order'!P720=\"\",\"\",'1. Order'!P720)","v":{"$error":"#N/A"}},{"$f":"IF('1. Order'!Q720=\"\",\"\",'1. Order'!Q720)","v":""},{"$f":"IF('1. Order'!R720=\"\",\"\",'1. Order'!R720)","v":""},{"$f":"IF('1. Order'!S720=\"\",\"\",'1. Order'!S720)","v":""},{"$f":"IF('1. Order'!V720=\"\",\"\",'1. Order'!V720)","v":""},{"$f":"IF('1. Order'!W720=\"\",\"\",'1. Order'!W720)","v":""},{"$f":"IF('1. Order'!X720=\"\",\"\",'1. Order'!X720)","v":"EUR"},{"$f":"IF('1. Order'!Y720=\"\",\"\",'1. Order'!Y720)","v":""},{"$f":"IF('1. Order'!Z720=\"\",\"\",'1. Order'!Z720)","v":""},{"$f":"IF('1. Order'!AA720=\"\",\"\",'1. Order'!AA720)","v":""},null,{"$f":"IF('1. Order'!AS720=\"\",\"\",'1. Order'!AS720)","v":""},{"$f":"IF('1. Order'!AT720=\"\",\"\",'1. Order'!AT720)","v":""},null,null,null,null,null,null,null,{"$f":"IF('1. Order'!AX720=\"\",\"\",'1. Order'!AX720)","v":""},{"$f":"IF('1. Order'!AY720=\"\",\"\",'1. Order'!AY720)","v":""},{"$f":"IF('1. Order'!AZ720=\"\",\"\",'1. Order'!AZ720)","v":""},{"$f":"IF('1. Order'!BA720=\"\",\"\",'1. Order'!BA720)","v":""},{"$f":"IF('1. Order'!BC720=\"\",\"\",'1. Order'!BC720)","v":""},{"$f":"IF('1. Order'!BD720=\"\",\"\",'1. Order'!BD720)","v":6},{"$f":"IF('1. Order'!BE720=\"\",\"\",'1. Order'!BE720)","v":"None"},{"$f":"IF('1. Order'!BF720=\"\",\"\",'1. Order'!BF720)","v":"Parcel"},{"$f":"IF('1. Order'!BG720=\"\",\"\",'1. Order'!BG720)","v":"ZWO"}]
[{"$f":"IF('1. Order'!F721=\"\",\"\",'1. Order'!F721)","v":""},{"$f":"IF('1. Order'!G721=\"\",\"\",'1. Order'!G721)","v":""},{"$f":"IF('1. Order'!H721=\"\",\"\",'1. Order'!H721)","v":""},{"$f":"IF('1. Order'!I721=\"\",\"\",'1. Order'!I721)","v":""},{"$f":"IF('1. Order'!J721=\"\",\"\",'1. Order'!J721)","v":""},{"$f":"IF('1. Order'!K721=\"\",\"\",'1. Order'!K721)","v":""},{"$f":"IF('1. Order'!L721=\"\",\"\",'1. Order'!L721)","v":""},{"$f":"IF('1. Order'!M721=\"\",\"\",'1. Order'!M721)","v":""},{"$f":"IF('1. Order'!N721=\"\",\"\",'1. Order'!N721)","v":""},{"$f":"IF('1. Order'!O721=\"\",\"\",'1. Order'!O721)","v":{"$error":"#N/A"}},{"$f":"IF('1. Order'!P721=\"\",\"\",'1. Order'!P721)","v":{"$error":"#N/A"}},{"$f":"IF('1. Order'!Q721=\"\",\"\",'1. Order'!Q721)","v":""},{"$f":"IF('1. Order'!R721=\"\",\"\",'1. Order'!R721)","v":""},{"$f":"IF('1. Order'!S721=\"\",\"\",'1. Order'!S721)","v":""},{"$f":"IF('1. Order'!V721=\"\",\"\",'1. Order'!V721)","v":""},{"$f":"IF('1. Order'!W721=\"\",\"\",'1. Order'!W721)","v":""},{"$f":"IF('1. Order'!X721=\"\",\"\",'1. Order'!X721)","v":"EUR"},{"$f":"IF('1. Order'!Y721=\"\",\"\",'1. Order'!Y721)","v":""},{"$f":"IF('1. Order'!Z721=\"\",\"\",'1. Order'!Z721)","v":""},{"$f":"IF('1. Order'!AA721=\"\",\"\",'1. Order'!AA721)","v":""},null,{"$f":"IF('1. Order'!AS721=\"\",\"\",'1. Order'!AS721)","v":""},{"$f":"IF('1. Order'!AT721=\"\",\"\",'1. Order'!AT721)","v":""},null,null,null,null,null,null,null,{"$f":"IF('1. Order'!AX721=\"\",\"\",'1. Order'!AX721)","v":""},{"$f":"IF('1. Order'!AY721=\"\",\"\",'1. Order'!AY721)","v":""},{"$f":"IF('1. Order'!AZ721=\"\",\"\",'1. Order'!AZ721)","v":""},{"$f":"IF('1. Order'!BA721=\"\",\"\",'1. Order'!BA721)","v":""},{"$f":"IF('1. Order'!BC721=\"\",\"\",'1. Order'!BC721)","v":""},{"$f":"IF('1. Order'!BD721=\"\",\"\",'1. Order'!BD721)","v":6},{"$f":"IF('1. Order'!BE721=\"\",\"\",'1. Order'!BE721)","v":"None"},{"$f":"IF('1. Order'!BF721=\"\",\"\",'1. Order'!BF721)","v":"Parcel"},{"$f":"IF('1. Order'!BG721=\"\",\"\",'1. Order'!BG721)","v":"ZWO"}]
[{"$f":"IF('1. Order'!F722=\"\",\"\",'1. Order'!F722)","v":""},{"$f":"IF('1. Order'!G722=\"\",\"\",'1. Order'!G722)","v":""},{"$f":"IF('1. Order'!H722=\"\",\"\",'1. Order'!H722)","v":""},{"$f":"IF('1. Order'!I722=\"\",\"\",'1. Order'!I722)","v":""},{"$f":"IF('1. Order'!J722=\"\",\"\",'1. Order'!J722)","v":""},{"$f":"IF('1. Order'!K722=\"\",\"\",'1. Order'!K722)","v":""},{"$f":"IF('1. Order'!L722=\"\",\"\",'1. Order'!L722)","v":""},{"$f":"IF('1. Order'!M722=\"\",\"\",'1. Order'!M722)","v":""},{"$f":"IF('1. Order'!N722=\"\",\"\",'1. Order'!N722)","v":""},{"$f":"IF('1. Order'!O722=\"\",\"\",'1. Order'!O722)","v":{"$error":"#N/A"}},{"$f":"IF('1. Order'!P722=\"\",\"\",'1. Order'!P722)","v":{"$error":"#N/A"}},{"$f":"IF('1. Order'!Q722=\"\",\"\",'1. Order'!Q722)","v":""},{"$f":"IF('1. Order'!R722=\"\",\"\",'1. Order'!R722)","v":""},{"$f":"IF('1. Order'!S722=\"\",\"\",'1. Order'!S722)","v":""},{"$f":"IF('1. Order'!V722=\"\",\"\",'1. Order'!V722)","v":""},{"$f":"IF('1. Order'!W722=\"\",\"\",'1. Order'!W722)","v":""},{"$f":"IF('1. Order'!X722=\"\",\"\",'1. Order'!X722)","v":"EUR"},{"$f":"IF('1. Order'!Y722=\"\",\"\",'1. Order'!Y722)","v":""},{"$f":"IF('1. Order'!Z722=\"\",\"\",'1. Order'!Z722)","v":""},{"$f":"IF('1. Order'!AA722=\"\",\"\",'1. Order'!AA722)","v":""},null,{"$f":"IF('1. Order'!AS722=\"\",\"\",'1. Order'!AS722)","v":""},{"$f":"IF('1. Order'!AT722=\"\",\"\",'1. Order'!AT722)","v":""},null,null,null,null,null,null,null,{"$f":"IF('1. Order'!AX722=\"\",\"\",'1. Order'!AX722)","v":""},{"$f":"IF('1. Order'!AY722=\"\",\"\",'1. Order'!AY722)","v":""},{"$f":"IF('1. Order'!AZ722=\"\",\"\",'1. Order'!AZ722)","v":""},{"$f":"IF('1. Order'!BA722=\"\",\"\",'1. Order'!BA722)","v":""},{"$f":"IF('1. Order'!BC722=\"\",\"\",'1. Order'!BC722)","v":""},{"$f":"IF('1. Order'!BD722=\"\",\"\",'1. Order'!BD722)","v":6},{"$f":"IF('1. Order'!BE722=\"\",\"\",'1. Order'!BE722)","v":"None"},{"$f":"IF('1. Order'!BF722=\"\",\"\",'1. Order'!BF722)","v":"Parcel"},{"$f":"IF('1. Order'!BG722=\"\",\"\",'1. Order'!BG722)","v":"ZWO"}]
[{"$f":"IF('1. Order'!F723=\"\",\"\",'1. Order'!F723)","v":""},{"$f":"IF('1. Order'!G723=\"\",\"\",'1. Order'!G723)","v":""},{"$f":"IF('1. Order'!H723=\"\",\"\",'1. Order'!H723)","v":""},{"$f":"IF('1. Order'!I723=\"\",\"\",'1. Order'!I723)","v":""},{"$f":"IF('1. Order'!J723=\"\",\"\",'1. Order'!J723)","v":""},{"$f":"IF('1. Order'!K723=\"\",\"\",'1. Order'!K723)","v":""},{"$f":"IF('1. Order'!L723=\"\",\"\",'1. Order'!L723)","v":""},{"$f":"IF('1. Order'!M723=\"\",\"\",'1. Order'!M723)","v":""},{"$f":"IF('1. Order'!N723=\"\",\"\",'1. Order'!N723)","v":""},{"$f":"IF('1. Order'!O723=\"\",\"\",'1. Order'!O723)","v":{"$error":"#N/A"}},{"$f":"IF('1. Order'!P723=\"\",\"\",'1. Order'!P723)","v":{"$error":"#N/A"}},{"$f":"IF('1. Order'!Q723=\"\",\"\",'1. Order'!Q723)","v":""},{"$f":"IF('1. Order'!R723=\"\",\"\",'1. Order'!R723)","v":""},{"$f":"IF('1. Order'!S723=\"\",\"\",'1. Order'!S723)","v":""},{"$f":"IF('1. Order'!V723=\"\",\"\",'1. Order'!V723)","v":""},{"$f":"IF('1. Order'!W723=\"\",\"\",'1. Order'!W723)","v":""},{"$f":"IF('1. Order'!X723=\"\",\"\",'1. Order'!X723)","v":"EUR"},{"$f":"IF('1. Order'!Y723=\"\",\"\",'1. Order'!Y723)","v":""},{"$f":"IF('1. Order'!Z723=\"\",\"\",'1. Order'!Z723)","v":""},{"$f":"IF('1. Order'!AA723=\"\",\"\",'1. Order'!AA723)","v":""},null,{"$f":"IF('1. Order'!AS723=\"\",\"\",'1. Order'!AS723)","v":""},{"$f":"IF('1. Order'!AT723=\"\",\"\",'1. Order'!AT723)","v":""},null,null,null,null,null,null,null,{"$f":"IF('1. Order'!AX723=\"\",\"\",'1. Order'!AX723)","v":""},{"$f":"IF('1. Order'!AY723=\"\",\"\",'1. Order'!AY723)","v":""},{"$f":"IF('1. Order'!AZ723=\"\",\"\",'1. Order'!AZ723)","v":""},{"$f":"IF('1. Order'!BA723=\"\",\"\",'1. Order'!BA723)","v":""},{"$f":"IF('1. Order'!BC723=\"\",\"\",'1. Order'!BC723)","v":""},{"$f":"IF('1. Order'!BD723=\"\",\"\",'1. Order'!BD723)","v":6},{"$f":"IF('1. Order'!BE723=\"\",\"\",'1. Order'!BE723)","v":"None"},{"$f":"IF('1. Order'!BF723=\"\",\"\",'1. Order'!BF723)","v":"Parcel"},{"$f":"IF('1. Order'!BG723=\"\",\"\",'1. Order'!BG723)","v":"ZWO"}]
[{"$f":"IF('1. Order'!F724=\"\",\"\",'1. Order'!F724)","v":""},{"$f":"IF('1. Order'!G724=\"\",\"\",'1. Order'!G724)","v":""},{"$f":"IF('1. Order'!H724=\"\",\"\",'1. Order'!H724)","v":""},{"$f":"IF('1. Order'!I724=\"\",\"\",'1. Order'!I724)","v":""},{"$f":"IF('1. Order'!J724=\"\",\"\",'1. Order'!J724)","v":""},{"$f":"IF('1. Order'!K724=\"\",\"\",'1. Order'!K724)","v":""},{"$f":"IF('1. Order'!L724=\"\",\"\",'1. Order'!L724)","v":""},{"$f":"IF('1. Order'!M724=\"\",\"\",'1. Order'!M724)","v":""},{"$f":"IF('1. Order'!N724=\"\",\"\",'1. Order'!N724)","v":""},{"$f":"IF('1. Order'!O724=\"\",\"\",'1. Order'!O724)","v":{"$error":"#N/A"}},{"$f":"IF('1. Order'!P724=\"\",\"\",'1. Order'!P724)","v":{"$error":"#N/A"}},{"$f":"IF('1. Order'!Q724=\"\",\"\",'1. Order'!Q724)","v":""},{"$f":"IF('1. Order'!R724=\"\",\"\",'1. Order'!R724)","v":""},{"$f":"IF('1. Order'!S724=\"\",\"\",'1. Order'!S724)","v":""},{"$f":"IF('1. Order'!V724=\"\",\"\",'1. Order'!V724)","v":""},{"$f":"IF('1. Order'!W724=\"\",\"\",'1. Order'!W724)","v":""},{"$f":"IF('1. Order'!X724=\"\",\"\",'1. Order'!X724)","v":"EUR"},{"$f":"IF('1. Order'!Y724=\"\",\"\",'1. Order'!Y724)","v":""},{"$f":"IF('1. Order'!Z724=\"\",\"\",'1. Order'!Z724)","v":""},{"$f":"IF('1. Order'!AA724=\"\",\"\",'1. Order'!AA724)","v":""},null,{"$f":"IF('1. Order'!AS724=\"\",\"\",'1. Order'!AS724)","v":""},{"$f":"IF('1. Order'!AT724=\"\",\"\",'1. Order'!AT724)","v":""},null,null,null,null,null,null,null,{"$f":"IF('1. Order'!AX724=\"\",\"\",'1. Order'!AX724)","v":""},{"$f":"IF('1. Order'!AY724=\"\",\"\",'1. Order'!AY724)","v":""},{"$f":"IF('1. Order'!AZ724=\"\",\"\",'1. Order'!AZ724)","v":""},{"$f":"IF('1. Order'!BA724=\"\",\"\",'1. Order'!BA724)","v":""},{"$f":"IF('1. Order'!BC724=\"\",\"\",'1. Order'!BC724)","v":""},{"$f":"IF('1. Order'!BD724=\"\",\"\",'1. Order'!BD724)","v":6},{"$f":"IF('1. Order'!BE724=\"\",\"\",'1. Order'!BE724)","v":"None"},{"$f":"IF('1. Order'!BF724=\"\",\"\",'1. Order'!BF724)","v":"Parcel"},{"$f":"IF('1. Order'!BG724=\"\",\"\",'1. Order'!BG724)","v":"ZWO"}]
[{"$f":"IF('1. Order'!F725=\"\",\"\",'1. Order'!F725)","v":""},{"$f":"IF('1. Order'!G725=\"\",\"\",'1. Order'!G725)","v":""},{"$f":"IF('1. Order'!H725=\"\",\"\",'1. Order'!H725)","v":""},{"$f":"IF('1. Order'!I725=\"\",\"\",'1. Order'!I725)","v":""},{"$f":"IF('1. Order'!J725=\"\",\"\",'1. Order'!J725)","v":""},{"$f":"IF('1. Order'!K725=\"\",\"\",'1. Order'!K725)","v":""},{"$f":"IF('1. Order'!L725=\"\",\"\",'1. Order'!L725)","v":""},{"$f":"IF('1. Order'!M725=\"\",\"\",'1. Order'!M725)","v":""},{"$f":"IF('1. Order'!N725=\"\",\"\",'1. Order'!N725)","v":""},{"$f":"IF('1. Order'!O725=\"\",\"\",'1. Order'!O725)","v":{"$error":"#N/A"}},{"$f":"IF('1. Order'!P725=\"\",\"\",'1. Order'!P725)","v":{"$error":"#N/A"}},{"$f":"IF('1. Order'!Q725=\"\",\"\",'1. Order'!Q725)","v":""},{"$f":"IF('1. Order'!R725=\"\",\"\",'1. Order'!R725)","v":""},{"$f":"IF('1. Order'!S725=\"\",\"\",'1. Order'!S725)","v":""},{"$f":"IF('1. Order'!V725=\"\",\"\",'1. Order'!V725)","v":""},{"$f":"IF('1. Order'!W725=\"\",\"\",'1. Order'!W725)","v":""},{"$f":"IF('1. Order'!X725=\"\",\"\",'1. Order'!X725)","v":"EUR"},{"$f":"IF('1. Order'!Y725=\"\",\"\",'1. Order'!Y725)","v":""},{"$f":"IF('1. Order'!Z725=\"\",\"\",'1. Order'!Z725)","v":""},{"$f":"IF('1. Order'!AA725=\"\",\"\",'1. Order'!AA725)","v":""},null,{"$f":"IF('1. Order'!AS725=\"\",\"\",'1. Order'!AS725)","v":""},{"$f":"IF('1. Order'!AT725=\"\",\"\",'1. Order'!AT725)","v":""},null,null,null,null,null,null,null,{"$f":"IF('1. Order'!AX725=\"\",\"\",'1. Order'!AX725)","v":""},{"$f":"IF('1. Order'!AY725=\"\",\"\",'1. Order'!AY725)","v":""},{"$f":"IF('1. Order'!AZ725=\"\",\"\",'1. Order'!AZ725)","v":""},{"$f":"IF('1. Order'!BA725=\"\",\"\",'1. Order'!BA725)","v":""},{"$f":"IF('1. Order'!BC725=\"\",\"\",'1. Order'!BC725)","v":""},{"$f":"IF('1. Order'!BD725=\"\",\"\",'1. Order'!BD725)","v":6},{"$f":"IF('1. Order'!BE725=\"\",\"\",'1. Order'!BE725)","v":"None"},{"$f":"IF('1. Order'!BF725=\"\",\"\",'1. Order'!BF725)","v":"Parcel"},{"$f":"IF('1. Order'!BG725=\"\",\"\",'1. Order'!BG725)","v":"ZWO"}]
[{"$f":"IF('1. Order'!F726=\"\",\"\",'1. Order'!F726)","v":""},{"$f":"IF('1. Order'!G726=\"\",\"\",'1. Order'!G726)","v":""},{"$f":"IF('1. Order'!H726=\"\",\"\",'1. Order'!H726)","v":""},{"$f":"IF('1. Order'!I726=\"\",\"\",'1. Order'!I726)","v":""},{"$f":"IF('1. Order'!J726=\"\",\"\",'1. Order'!J726)","v":""},{"$f":"IF('1. Order'!K726=\"\",\"\",'1. Order'!K726)","v":""},{"$f":"IF('1. Order'!L726=\"\",\"\",'1. Order'!L726)","v":""},{"$f":"IF('1. Order'!M726=\"\",\"\",'1. Order'!M726)","v":""},{"$f":"IF('1. Order'!N726=\"\",\"\",'1. Order'!N726)","v":""},{"$f":"IF('1. Order'!O726=\"\",\"\",'1. Order'!O726)","v":{"$error":"#N/A"}},{"$f":"IF('1. Order'!P726=\"\",\"\",'1. Order'!P726)","v":{"$error":"#N/A"}},{"$f":"IF('1. Order'!Q726=\"\",\"\",'1. Order'!Q726)","v":""},{"$f":"IF('1. Order'!R726=\"\",\"\",'1. Order'!R726)","v":""},{"$f":"IF('1. Order'!S726=\"\",\"\",'1. Order'!S726)","v":""},{"$f":"IF('1. Order'!V726=\"\",\"\",'1. Order'!V726)","v":""},{"$f":"IF('1. Order'!W726=\"\",\"\",'1. Order'!W726)","v":""},{"$f":"IF('1. Order'!X726=\"\",\"\",'1. Order'!X726)","v":"EUR"},{"$f":"IF('1. Order'!Y726=\"\",\"\",'1. Order'!Y726)","v":""},{"$f":"IF('1. Order'!Z726=\"\",\"\",'1. Order'!Z726)","v":""},{"$f":"IF('1. Order'!AA726=\"\",\"\",'1. Order'!AA726)","v":""},null,{"$f":"IF('1. Order'!AS726=\"\",\"\",'1. Order'!AS726)","v":""},{"$f":"IF('1. Order'!AT726=\"\",\"\",'1. Order'!AT726)","v":""},null,null,null,null,null,null,null,{"$f":"IF('1. Order'!AX726=\"\",\"\",'1. Order'!AX726)","v":""},{"$f":"IF('1. Order'!AY726=\"\",\"\",'1. Order'!AY726)","v":""},{"$f":"IF('1. Order'!AZ726=\"\",\"\",'1. Order'!AZ726)","v":""},{"$f":"IF('1. Order'!BA726=\"\",\"\",'1. Order'!BA726)","v":""},{"$f":"IF('1. Order'!BC726=\"\",\"\",'1. Order'!BC726)","v":""},{"$f":"IF('1. Order'!BD726=\"\",\"\",'1. Order'!BD726)","v":6},{"$f":"IF('1. Order'!BE726=\"\",\"\",'1. Order'!BE726)","v":"None"},{"$f":"IF('1. Order'!BF726=\"\",\"\",'1. Order'!BF726)","v":"Parcel"},{"$f":"IF('1. Order'!BG726=\"\",\"\",'1. Order'!BG726)","v":"ZWO"}]
[{"$f":"IF('1. Order'!F727=\"\",\"\",'1. Order'!F727)","v":""},{"$f":"IF('1. Order'!G727=\"\",\"\",'1. Order'!G727)","v":""},{"$f":"IF('1. Order'!H727=\"\",\"\",'1. Order'!H727)","v":""},{"$f":"IF('1. Order'!I727=\"\",\"\",'1. Order'!I727)","v":""},{"$f":"IF('1. Order'!J727=\"\",\"\",'1. Order'!J727)","v":""},{"$f":"IF('1. Order'!K727=\"\",\"\",'1. Order'!K727)","v":""},{"$f":"IF('1. Order'!L727=\"\",\"\",'1. Order'!L727)","v":""},{"$f":"IF('1. Order'!M727=\"\",\"\",'1. Order'!M727)","v":""},{"$f":"IF('1. Order'!N727=\"\",\"\",'1. Order'!N727)","v":""},{"$f":"IF('1. Order'!O727=\"\",\"\",'1. Order'!O727)","v":{"$error":"#N/A"}},{"$f":"IF('1. Order'!P727=\"\",\"\",'1. Order'!P727)","v":{"$error":"#N/A"}},{"$f":"IF('1. Order'!Q727=\"\",\"\",'1. Order'!Q727)","v":""},{"$f":"IF('1. Order'!R727=\"\",\"\",'1. Order'!R727)","v":""},{"$f":"IF('1. Order'!S727=\"\",\"\",'1. Order'!S727)","v":""},{"$f":"IF('1. Order'!V727=\"\",\"\",'1. Order'!V727)","v":""},{"$f":"IF('1. Order'!W727=\"\",\"\",'1. Order'!W727)","v":""},{"$f":"IF('1. Order'!X727=\"\",\"\",'1. Order'!X727)","v":"EUR"},{"$f":"IF('1. Order'!Y727=\"\",\"\",'1. Order'!Y727)","v":""},{"$f":"IF('1. Order'!Z727=\"\",\"\",'1. Order'!Z727)","v":""},{"$f":"IF('1. Order'!AA727=\"\",\"\",'1. Order'!AA727)","v":""},null,{"$f":"IF('1. Order'!AS727=\"\",\"\",'1. Order'!AS727)","v":""},{"$f":"IF('1. Order'!AT727=\"\",\"\",'1. Order'!AT727)","v":""},null,null,null,null,null,null,null,{"$f":"IF('1. Order'!AX727=\"\",\"\",'1. Order'!AX727)","v":""},{"$f":"IF('1. Order'!AY727=\"\",\"\",'1. Order'!AY727)","v":""},{"$f":"IF('1. Order'!AZ727=\"\",\"\",'1. Order'!AZ727)","v":""},{"$f":"IF('1. Order'!BA727=\"\",\"\",'1. Order'!BA727)","v":""},{"$f":"IF('1. Order'!BC727=\"\",\"\",'1. Order'!BC727)","v":""},{"$f":"IF('1. Order'!BD727=\"\",\"\",'1. Order'!BD727)","v":6},{"$f":"IF('1. Order'!BE727=\"\",\"\",'1. Order'!BE727)","v":"None"},{"$f":"IF('1. Order'!BF727=\"\",\"\",'1. Order'!BF727)","v":"Parcel"},{"$f":"IF('1. Order'!BG727=\"\",\"\",'1. Order'!BG727)","v":"ZWO"}]
[{"$f":"IF('1. Order'!F728=\"\",\"\",'1. Order'!F728)","v":""},{"$f":"IF('1. Order'!G728=\"\",\"\",'1. Order'!G728)","v":""},{"$f":"IF('1. Order'!H728=\"\",\"\",'1. Order'!H728)","v":""},{"$f":"IF('1. Order'!I728=\"\",\"\",'1. Order'!I728)","v":""},{"$f":"IF('1. Order'!J728=\"\",\"\",'1. Order'!J728)","v":""},{"$f":"IF('1. Order'!K728=\"\",\"\",'1. Order'!K728)","v":""},{"$f":"IF('1. Order'!L728=\"\",\"\",'1. Order'!L728)","v":""},{"$f":"IF('1. Order'!M728=\"\",\"\",'1. Order'!M728)","v":""},{"$f":"IF('1. Order'!N728=\"\",\"\",'1. Order'!N728)","v":""},{"$f":"IF('1. Order'!O728=\"\",\"\",'1. Order'!O728)","v":{"$error":"#N/A"}},{"$f":"IF('1. Order'!P728=\"\",\"\",'1. Order'!P728)","v":{"$error":"#N/A"}},{"$f":"IF('1. Order'!Q728=\"\",\"\",'1. Order'!Q728)","v":""},{"$f":"IF('1. Order'!R728=\"\",\"\",'1. Order'!R728)","v":""},{"$f":"IF('1. Order'!S728=\"\",\"\",'1. Order'!S728)","v":""},{"$f":"IF('1. Order'!V728=\"\",\"\",'1. Order'!V728)","v":""},{"$f":"IF('1. Order'!W728=\"\",\"\",'1. Order'!W728)","v":""},{"$f":"IF('1. Order'!X728=\"\",\"\",'1. Order'!X728)","v":"EUR"},{"$f":"IF('1. Order'!Y728=\"\",\"\",'1. Order'!Y728)","v":""},{"$f":"IF('1. Order'!Z728=\"\",\"\",'1. Order'!Z728)","v":""},{"$f":"IF('1. Order'!AA728=\"\",\"\",'1. Order'!AA728)","v":""},null,{"$f":"IF('1. Order'!AS728=\"\",\"\",'1. Order'!AS728)","v":""},{"$f":"IF('1. Order'!AT728=\"\",\"\",'1. Order'!AT728)","v":""},null,null,null,null,null,null,null,{"$f":"IF('1. Order'!AX728=\"\",\"\",'1. Order'!AX728)","v":""},{"$f":"IF('1. Order'!AY728=\"\",\"\",'1. Order'!AY728)","v":""},{"$f":"IF('1. Order'!AZ728=\"\",\"\",'1. Order'!AZ728)","v":""},{"$f":"IF('1. Order'!BA728=\"\",\"\",'1. Order'!BA728)","v":""},{"$f":"IF('1. Order'!BC728=\"\",\"\",'1. Order'!BC728)","v":""},{"$f":"IF('1. Order'!BD728=\"\",\"\",'1. Order'!BD728)","v":6},{"$f":"IF('1. Order'!BE728=\"\",\"\",'1. Order'!BE728)","v":"None"},{"$f":"IF('1. Order'!BF728=\"\",\"\",'1. Order'!BF728)","v":"Parcel"},{"$f":"IF('1. Order'!BG728=\"\",\"\",'1. Order'!BG728)","v":"ZWO"}]
[{"$f":"IF('1. Order'!F729=\"\",\"\",'1. Order'!F729)","v":""},{"$f":"IF('1. Order'!G729=\"\",\"\",'1. Order'!G729)","v":""},{"$f":"IF('1. Order'!H729=\"\",\"\",'1. Order'!H729)","v":""},{"$f":"IF('1. Order'!I729=\"\",\"\",'1. Order'!I729)","v":""},{"$f":"IF('1. Order'!J729=\"\",\"\",'1. Order'!J729)","v":""},{"$f":"IF('1. Order'!K729=\"\",\"\",'1. Order'!K729)","v":""},{"$f":"IF('1. Order'!L729=\"\",\"\",'1. Order'!L729)","v":""},{"$f":"IF('1. Order'!M729=\"\",\"\",'1. Order'!M729)","v":""},{"$f":"IF('1. Order'!N729=\"\",\"\",'1. Order'!N729)","v":""},{"$f":"IF('1. Order'!O729=\"\",\"\",'1. Order'!O729)","v":{"$error":"#N/A"}},{"$f":"IF('1. Order'!P729=\"\",\"\",'1. Order'!P729)","v":{"$error":"#N/A"}},{"$f":"IF('1. Order'!Q729=\"\",\"\",'1. Order'!Q729)","v":""},{"$f":"IF('1. Order'!R729=\"\",\"\",'1. Order'!R729)","v":""},{"$f":"IF('1. Order'!S729=\"\",\"\",'1. Order'!S729)","v":""},{"$f":"IF('1. Order'!V729=\"\",\"\",'1. Order'!V729)","v":""},{"$f":"IF('1. Order'!W729=\"\",\"\",'1. Order'!W729)","v":""},{"$f":"IF('1. Order'!X729=\"\",\"\",'1. Order'!X729)","v":"EUR"},{"$f":"IF('1. Order'!Y729=\"\",\"\",'1. Order'!Y729)","v":""},{"$f":"IF('1. Order'!Z729=\"\",\"\",'1. Order'!Z729)","v":""},{"$f":"IF('1. Order'!AA729=\"\",\"\",'1. Order'!AA729)","v":""},null,{"$f":"IF('1. Order'!AS729=\"\",\"\",'1. Order'!AS729)","v":""},{"$f":"IF('1. Order'!AT729=\"\",\"\",'1. Order'!AT729)","v":""},null,null,null,null,null,null,null,{"$f":"IF('1. Order'!AX729=\"\",\"\",'1. Order'!AX729)","v":""},{"$f":"IF('1. Order'!AY729=\"\",\"\",'1. Order'!AY729)","v":""},{"$f":"IF('1. Order'!AZ729=\"\",\"\",'1. Order'!AZ729)","v":""},{"$f":"IF('1. Order'!BA729=\"\",\"\",'1. Order'!BA729)","v":""},{"$f":"IF('1. Order'!BC729=\"\",\"\",'1. Order'!BC729)","v":""},{"$f":"IF('1. Order'!BD729=\"\",\"\",'1. Order'!BD729)","v":6},{"$f":"IF('1. Order'!BE729=\"\",\"\",'1. Order'!BE729)","v":"None"},{"$f":"IF('1. Order'!BF729=\"\",\"\",'1. Order'!BF729)","v":"Parcel"},{"$f":"IF('1. Order'!BG729=\"\",\"\",'1. Order'!BG729)","v":"ZWO"}]
[{"$f":"IF('1. Order'!F730=\"\",\"\",'1. Order'!F730)","v":""},{"$f":"IF('1. Order'!G730=\"\",\"\",'1. Order'!G730)","v":""},{"$f":"IF('1. Order'!H730=\"\",\"\",'1. Order'!H730)","v":""},{"$f":"IF('1. Order'!I730=\"\",\"\",'1. Order'!I730)","v":""},{"$f":"IF('1. Order'!J730=\"\",\"\",'1. Order'!J730)","v":""},{"$f":"IF('1. Order'!K730=\"\",\"\",'1. Order'!K730)","v":""},{"$f":"IF('1. Order'!L730=\"\",\"\",'1. Order'!L730)","v":""},{"$f":"IF('1. Order'!M730=\"\",\"\",'1. Order'!M730)","v":""},{"$f":"IF('1. Order'!N730=\"\",\"\",'1. Order'!N730)","v":""},{"$f":"IF('1. Order'!O730=\"\",\"\",'1. Order'!O730)","v":{"$error":"#N/A"}},{"$f":"IF('1. Order'!P730=\"\",\"\",'1. Order'!P730)","v":{"$error":"#N/A"}},{"$f":"IF('1. Order'!Q730=\"\",\"\",'1. Order'!Q730)","v":""},{"$f":"IF('1. Order'!R730=\"\",\"\",'1. Order'!R730)","v":""},{"$f":"IF('1. Order'!S730=\"\",\"\",'1. Order'!S730)","v":""},{"$f":"IF('1. Order'!V730=\"\",\"\",'1. Order'!V730)","v":""},{"$f":"IF('1. Order'!W730=\"\",\"\",'1. Order'!W730)","v":""},{"$f":"IF('1. Order'!X730=\"\",\"\",'1. Order'!X730)","v":"EUR"},{"$f":"IF('1. Order'!Y730=\"\",\"\",'1. Order'!Y730)","v":""},{"$f":"IF('1. Order'!Z730=\"\",\"\",'1. Order'!Z730)","v":""},{"$f":"IF('1. Order'!AA730=\"\",\"\",'1. Order'!AA730)","v":""},null,{"$f":"IF('1. Order'!AS730=\"\",\"\",'1. Order'!AS730)","v":""},{"$f":"IF('1. Order'!AT730=\"\",\"\",'1. Order'!AT730)","v":""},null,null,null,null,null,null,null,{"$f":"IF('1. Order'!AX730=\"\",\"\",'1. Order'!AX730)","v":""},{"$f":"IF('1. Order'!AY730=\"\",\"\",'1. Order'!AY730)","v":""},{"$f":"IF('1. Order'!AZ730=\"\",\"\",'1. Order'!AZ730)","v":""},{"$f":"IF('1. Order'!BA730=\"\",\"\",'1. Order'!BA730)","v":""},{"$f":"IF('1. Order'!BC730=\"\",\"\",'1. Order'!BC730)","v":""},{"$f":"IF('1. Order'!BD730=\"\",\"\",'1. Order'!BD730)","v":6},{"$f":"IF('1. Order'!BE730=\"\",\"\",'1. Order'!BE730)","v":"None"},{"$f":"IF('1. Order'!BF730=\"\",\"\",'1. Order'!BF730)","v":"Parcel"},{"$f":"IF('1. Order'!BG730=\"\",\"\",'1. Order'!BG730)","v":"ZWO"}]
[{"$f":"IF('1. Order'!F731=\"\",\"\",'1. Order'!F731)","v":""},{"$f":"IF('1. Order'!G731=\"\",\"\",'1. Order'!G731)","v":""},{"$f":"IF('1. Order'!H731=\"\",\"\",'1. Order'!H731)","v":""},{"$f":"IF('1. Order'!I731=\"\",\"\",'1. Order'!I731)","v":""},{"$f":"IF('1. Order'!J731=\"\",\"\",'1. Order'!J731)","v":""},{"$f":"IF('1. Order'!K731=\"\",\"\",'1. Order'!K731)","v":""},{"$f":"IF('1. Order'!L731=\"\",\"\",'1. Order'!L731)","v":""},{"$f":"IF('1. Order'!M731=\"\",\"\",'1. Order'!M731)","v":""},{"$f":"IF('1. Order'!N731=\"\",\"\",'1. Order'!N731)","v":""},{"$f":"IF('1. Order'!O731=\"\",\"\",'1. Order'!O731)","v":{"$error":"#N/A"}},{"$f":"IF('1. Order'!P731=\"\",\"\",'1. Order'!P731)","v":{"$error":"#N/A"}},{"$f":"IF('1. Order'!Q731=\"\",\"\",'1. Order'!Q731)","v":""},{"$f":"IF('1. Order'!R731=\"\",\"\",'1. Order'!R731)","v":""},{"$f":"IF('1. Order'!S731=\"\",\"\",'1. Order'!S731)","v":""},{"$f":"IF('1. Order'!V731=\"\",\"\",'1. Order'!V731)","v":""},{"$f":"IF('1. Order'!W731=\"\",\"\",'1. Order'!W731)","v":""},{"$f":"IF('1. Order'!X731=\"\",\"\",'1. Order'!X731)","v":"EUR"},{"$f":"IF('1. Order'!Y731=\"\",\"\",'1. Order'!Y731)","v":""},{"$f":"IF('1. Order'!Z731=\"\",\"\",'1. Order'!Z731)","v":""},{"$f":"IF('1. Order'!AA731=\"\",\"\",'1. Order'!AA731)","v":""},null,{"$f":"IF('1. Order'!AS731=\"\",\"\",'1. Order'!AS731)","v":""},{"$f":"IF('1. Order'!AT731=\"\",\"\",'1. Order'!AT731)","v":""},null,null,null,null,null,null,null,{"$f":"IF('1. Order'!AX731=\"\",\"\",'1. Order'!AX731)","v":""},{"$f":"IF('1. Order'!AY731=\"\",\"\",'1. Order'!AY731)","v":""},{"$f":"IF('1. Order'!AZ731=\"\",\"\",'1. Order'!AZ731)","v":""},{"$f":"IF('1. Order'!BA731=\"\",\"\",'1. Order'!BA731)","v":""},{"$f":"IF('1. Order'!BC731=\"\",\"\",'1. Order'!BC731)","v":""},{"$f":"IF('1. Order'!BD731=\"\",\"\",'1. Order'!BD731)","v":6},{"$f":"IF('1. Order'!BE731=\"\",\"\",'1. Order'!BE731)","v":"None"},{"$f":"IF('1. Order'!BF731=\"\",\"\",'1. Order'!BF731)","v":"Parcel"},{"$f":"IF('1. Order'!BG731=\"\",\"\",'1. Order'!BG731)","v":"ZWO"}]
[{"$f":"IF('1. Order'!F732=\"\",\"\",'1. Order'!F732)","v":""},{"$f":"IF('1. Order'!G732=\"\",\"\",'1. Order'!G732)","v":""},{"$f":"IF('1. Order'!H732=\"\",\"\",'1. Order'!H732)","v":""},{"$f":"IF('1. Order'!I732=\"\",\"\",'1. Order'!I732)","v":""},{"$f":"IF('1. Order'!J732=\"\",\"\",'1. Order'!J732)","v":""},{"$f":"IF('1. Order'!K732=\"\",\"\",'1. Order'!K732)","v":""},{"$f":"IF('1. Order'!L732=\"\",\"\",'1. Order'!L732)","v":""},{"$f":"IF('1. Order'!M732=\"\",\"\",'1. Order'!M732)","v":""},{"$f":"IF('1. Order'!N732=\"\",\"\",'1. Order'!N732)","v":""},{"$f":"IF('1. Order'!O732=\"\",\"\",'1. Order'!O732)","v":{"$error":"#N/A"}},{"$f":"IF('1. Order'!P732=\"\",\"\",'1. Order'!P732)","v":{"$error":"#N/A"}},{"$f":"IF('1. Order'!Q732=\"\",\"\",'1. Order'!Q732)","v":""},{"$f":"IF('1. Order'!R732=\"\",\"\",'1. Order'!R732)","v":""},{"$f":"IF('1. Order'!S732=\"\",\"\",'1. Order'!S732)","v":""},{"$f":"IF('1. Order'!V732=\"\",\"\",'1. Order'!V732)","v":""},{"$f":"IF('1. Order'!W732=\"\",\"\",'1. Order'!W732)","v":""},{"$f":"IF('1. Order'!X732=\"\",\"\",'1. Order'!X732)","v":"EUR"},{"$f":"IF('1. Order'!Y732=\"\",\"\",'1. Order'!Y732)","v":""},{"$f":"IF('1. Order'!Z732=\"\",\"\",'1. Order'!Z732)","v":""},{"$f":"IF('1. Order'!AA732=\"\",\"\",'1. Order'!AA732)","v":""},null,{"$f":"IF('1. Order'!AS732=\"\",\"\",'1. Order'!AS732)","v":""},{"$f":"IF('1. Order'!AT732=\"\",\"\",'1. Order'!AT732)","v":""},null,null,null,null,null,null,null,{"$f":"IF('1. Order'!AX732=\"\",\"\",'1. Order'!AX732)","v":""},{"$f":"IF('1. Order'!AY732=\"\",\"\",'1. Order'!AY732)","v":""},{"$f":"IF('1. Order'!AZ732=\"\",\"\",'1. Order'!AZ732)","v":""},{"$f":"IF('1. Order'!BA732=\"\",\"\",'1. Order'!BA732)","v":""},{"$f":"IF('1. Order'!BC732=\"\",\"\",'1. Order'!BC732)","v":""},{"$f":"IF('1. Order'!BD732=\"\",\"\",'1. Order'!BD732)","v":6},{"$f":"IF('1. Order'!BE732=\"\",\"\",'1. Order'!BE732)","v":"None"},{"$f":"IF('1. Order'!BF732=\"\",\"\",'1. Order'!BF732)","v":"Parcel"},{"$f":"IF('1. Order'!BG732=\"\",\"\",'1. Order'!BG732)","v":"ZWO"}]
[{"$f":"IF('1. Order'!F733=\"\",\"\",'1. Order'!F733)","v":""},{"$f":"IF('1. Order'!G733=\"\",\"\",'1. Order'!G733)","v":""},{"$f":"IF('1. Order'!H733=\"\",\"\",'1. Order'!H733)","v":""},{"$f":"IF('1. Order'!I733=\"\",\"\",'1. Order'!I733)","v":""},{"$f":"IF('1. Order'!J733=\"\",\"\",'1. Order'!J733)","v":""},{"$f":"IF('1. Order'!K733=\"\",\"\",'1. Order'!K733)","v":""},{"$f":"IF('1. Order'!L733=\"\",\"\",'1. Order'!L733)","v":""},{"$f":"IF('1. Order'!M733=\"\",\"\",'1. Order'!M733)","v":""},{"$f":"IF('1. Order'!N733=\"\",\"\",'1. Order'!N733)","v":""},{"$f":"IF('1. Order'!O733=\"\",\"\",'1. Order'!O733)","v":{"$error":"#N/A"}},{"$f":"IF('1. Order'!P733=\"\",\"\",'1. Order'!P733)","v":{"$error":"#N/A"}},{"$f":"IF('1. Order'!Q733=\"\",\"\",'1. Order'!Q733)","v":""},{"$f":"IF('1. Order'!R733=\"\",\"\",'1. Order'!R733)","v":""},{"$f":"IF('1. Order'!S733=\"\",\"\",'1. Order'!S733)","v":""},{"$f":"IF('1. Order'!V733=\"\",\"\",'1. Order'!V733)","v":""},{"$f":"IF('1. Order'!W733=\"\",\"\",'1. Order'!W733)","v":""},{"$f":"IF('1. Order'!X733=\"\",\"\",'1. Order'!X733)","v":"EUR"},{"$f":"IF('1. Order'!Y733=\"\",\"\",'1. Order'!Y733)","v":""},{"$f":"IF('1. Order'!Z733=\"\",\"\",'1. Order'!Z733)","v":""},{"$f":"IF('1. Order'!AA733=\"\",\"\",'1. Order'!AA733)","v":""},null,{"$f":"IF('1. Order'!AS733=\"\",\"\",'1. Order'!AS733)","v":""},{"$f":"IF('1. Order'!AT733=\"\",\"\",'1. Order'!AT733)","v":""},null,null,null,null,null,null,null,{"$f":"IF('1. Order'!AX733=\"\",\"\",'1. Order'!AX733)","v":""},{"$f":"IF('1. Order'!AY733=\"\",\"\",'1. Order'!AY733)","v":""},{"$f":"IF('1. Order'!AZ733=\"\",\"\",'1. Order'!AZ733)","v":""},{"$f":"IF('1. Order'!BA733=\"\",\"\",'1. Order'!BA733)","v":""},{"$f":"IF('1. Order'!BC733=\"\",\"\",'1. Order'!BC733)","v":""},{"$f":"IF('1. Order'!BD733=\"\",\"\",'1. Order'!BD733)","v":6},{"$f":"IF('1. Order'!BE733=\"\",\"\",'1. Order'!BE733)","v":"None"},{"$f":"IF('1. Order'!BF733=\"\",\"\",'1. Order'!BF733)","v":"Parcel"},{"$f":"IF('1. Order'!BG733=\"\",\"\",'1. Order'!BG733)","v":"ZWO"}]
[{"$f":"IF('1. Order'!F734=\"\",\"\",'1. Order'!F734)","v":""},{"$f":"IF('1. Order'!G734=\"\",\"\",'1. Order'!G734)","v":""},{"$f":"IF('1. Order'!H734=\"\",\"\",'1. Order'!H734)","v":""},{"$f":"IF('1. Order'!I734=\"\",\"\",'1. Order'!I734)","v":""},{"$f":"IF('1. Order'!J734=\"\",\"\",'1. Order'!J734)","v":""},{"$f":"IF('1. Order'!K734=\"\",\"\",'1. Order'!K734)","v":""},{"$f":"IF('1. Order'!L734=\"\",\"\",'1. Order'!L734)","v":""},{"$f":"IF('1. Order'!M734=\"\",\"\",'1. Order'!M734)","v":""},{"$f":"IF('1. Order'!N734=\"\",\"\",'1. Order'!N734)","v":""},{"$f":"IF('1. Order'!O734=\"\",\"\",'1. Order'!O734)","v":{"$error":"#N/A"}},{"$f":"IF('1. Order'!P734=\"\",\"\",'1. Order'!P734)","v":{"$error":"#N/A"}},{"$f":"IF('1. Order'!Q734=\"\",\"\",'1. Order'!Q734)","v":""},{"$f":"IF('1. Order'!R734=\"\",\"\",'1. Order'!R734)","v":""},{"$f":"IF('1. Order'!S734=\"\",\"\",'1. Order'!S734)","v":""},{"$f":"IF('1. Order'!V734=\"\",\"\",'1. Order'!V734)","v":""},{"$f":"IF('1. Order'!W734=\"\",\"\",'1. Order'!W734)","v":""},{"$f":"IF('1. Order'!X734=\"\",\"\",'1. Order'!X734)","v":"EUR"},{"$f":"IF('1. Order'!Y734=\"\",\"\",'1. Order'!Y734)","v":""},{"$f":"IF('1. Order'!Z734=\"\",\"\",'1. Order'!Z734)","v":""},{"$f":"IF('1. Order'!AA734=\"\",\"\",'1. Order'!AA734)","v":""},null,{"$f":"IF('1. Order'!AS734=\"\",\"\",'1. Order'!AS734)","v":""},{"$f":"IF('1. Order'!AT734=\"\",\"\",'1. Order'!AT734)","v":""},null,null,null,null,null,null,null,{"$f":"IF('1. Order'!AX734=\"\",\"\",'1. Order'!AX734)","v":""},{"$f":"IF('1. Order'!AY734=\"\",\"\",'1. Order'!AY734)","v":""},{"$f":"IF('1. Order'!AZ734=\"\",\"\",'1. Order'!AZ734)","v":""},{"$f":"IF('1. Order'!BA734=\"\",\"\",'1. Order'!BA734)","v":""},{"$f":"IF('1. Order'!BC734=\"\",\"\",'1. Order'!BC734)","v":""},{"$f":"IF('1. Order'!BD734=\"\",\"\",'1. Order'!BD734)","v":6},{"$f":"IF('1. Order'!BE734=\"\",\"\",'1. Order'!BE734)","v":"None"},{"$f":"IF('1. Order'!BF734=\"\",\"\",'1. Order'!BF734)","v":"Parcel"},{"$f":"IF('1. Order'!BG734=\"\",\"\",'1. Order'!BG734)","v":"ZWO"}]
[{"$f":"IF('1. Order'!F735=\"\",\"\",'1. Order'!F735)","v":""},{"$f":"IF('1. Order'!G735=\"\",\"\",'1. Order'!G735)","v":""},{"$f":"IF('1. Order'!H735=\"\",\"\",'1. Order'!H735)","v":""},{"$f":"IF('1. Order'!I735=\"\",\"\",'1. Order'!I735)","v":""},{"$f":"IF('1. Order'!J735=\"\",\"\",'1. Order'!J735)","v":""},{"$f":"IF('1. Order'!K735=\"\",\"\",'1. Order'!K735)","v":""},{"$f":"IF('1. Order'!L735=\"\",\"\",'1. Order'!L735)","v":""},{"$f":"IF('1. Order'!M735=\"\",\"\",'1. Order'!M735)","v":""},{"$f":"IF('1. Order'!N735=\"\",\"\",'1. Order'!N735)","v":""},{"$f":"IF('1. Order'!O735=\"\",\"\",'1. Order'!O735)","v":{"$error":"#N/A"}},{"$f":"IF('1. Order'!P735=\"\",\"\",'1. Order'!P735)","v":{"$error":"#N/A"}},{"$f":"IF('1. Order'!Q735=\"\",\"\",'1. Order'!Q735)","v":""},{"$f":"IF('1. Order'!R735=\"\",\"\",'1. Order'!R735)","v":""},{"$f":"IF('1. Order'!S735=\"\",\"\",'1. Order'!S735)","v":""},{"$f":"IF('1. Order'!V735=\"\",\"\",'1. Order'!V735)","v":""},{"$f":"IF('1. Order'!W735=\"\",\"\",'1. Order'!W735)","v":""},{"$f":"IF('1. Order'!X735=\"\",\"\",'1. Order'!X735)","v":"EUR"},{"$f":"IF('1. Order'!Y735=\"\",\"\",'1. Order'!Y735)","v":""},{"$f":"IF('1. Order'!Z735=\"\",\"\",'1. Order'!Z735)","v":""},{"$f":"IF('1. Order'!AA735=\"\",\"\",'1. Order'!AA735)","v":""},null,{"$f":"IF('1. Order'!AS735=\"\",\"\",'1. Order'!AS735)","v":""},{"$f":"IF('1. Order'!AT735=\"\",\"\",'1. Order'!AT735)","v":""},null,null,null,null,null,null,null,{"$f":"IF('1. Order'!AX735=\"\",\"\",'1. Order'!AX735)","v":""},{"$f":"IF('1. Order'!AY735=\"\",\"\",'1. Order'!AY735)","v":""},{"$f":"IF('1. Order'!AZ735=\"\",\"\",'1. Order'!AZ735)","v":""},{"$f":"IF('1. Order'!BA735=\"\",\"\",'1. Order'!BA735)","v":""},{"$f":"IF('1. Order'!BC735=\"\",\"\",'1. Order'!BC735)","v":""},{"$f":"IF('1. Order'!BD735=\"\",\"\",'1. Order'!BD735)","v":6},{"$f":"IF('1. Order'!BE735=\"\",\"\",'1. Order'!BE735)","v":"None"},{"$f":"IF('1. Order'!BF735=\"\",\"\",'1. Order'!BF735)","v":"Parcel"},{"$f":"IF('1. Order'!BG735=\"\",\"\",'1. Order'!BG735)","v":"ZWO"}]
[{"$f":"IF('1. Order'!F736=\"\",\"\",'1. Order'!F736)","v":""},{"$f":"IF('1. Order'!G736=\"\",\"\",'1. Order'!G736)","v":""},{"$f":"IF('1. Order'!H736=\"\",\"\",'1. Order'!H736)","v":""},{"$f":"IF('1. Order'!I736=\"\",\"\",'1. Order'!I736)","v":""},{"$f":"IF('1. Order'!J736=\"\",\"\",'1. Order'!J736)","v":""},{"$f":"IF('1. Order'!K736=\"\",\"\",'1. Order'!K736)","v":""},{"$f":"IF('1. Order'!L736=\"\",\"\",'1. Order'!L736)","v":""},{"$f":"IF('1. Order'!M736=\"\",\"\",'1. Order'!M736)","v":""},{"$f":"IF('1. Order'!N736=\"\",\"\",'1. Order'!N736)","v":""},{"$f":"IF('1. Order'!O736=\"\",\"\",'1. Order'!O736)","v":{"$error":"#N/A"}},{"$f":"IF('1. Order'!P736=\"\",\"\",'1. Order'!P736)","v":{"$error":"#N/A"}},{"$f":"IF('1. Order'!Q736=\"\",\"\",'1. Order'!Q736)","v":""},{"$f":"IF('1. Order'!R736=\"\",\"\",'1. Order'!R736)","v":""},{"$f":"IF('1. Order'!S736=\"\",\"\",'1. Order'!S736)","v":""},{"$f":"IF('1. Order'!V736=\"\",\"\",'1. Order'!V736)","v":""},{"$f":"IF('1. Order'!W736=\"\",\"\",'1. Order'!W736)","v":""},{"$f":"IF('1. Order'!X736=\"\",\"\",'1. Order'!X736)","v":"EUR"},{"$f":"IF('1. Order'!Y736=\"\",\"\",'1. Order'!Y736)","v":""},{"$f":"IF('1. Order'!Z736=\"\",\"\",'1. Order'!Z736)","v":""},{"$f":"IF('1. Order'!AA736=\"\",\"\",'1. Order'!AA736)","v":""},null,{"$f":"IF('1. Order'!AS736=\"\",\"\",'1. Order'!AS736)","v":""},{"$f":"IF('1. Order'!AT736=\"\",\"\",'1. Order'!AT736)","v":""},null,null,null,null,null,null,null,{"$f":"IF('1. Order'!AX736=\"\",\"\",'1. Order'!AX736)","v":""},{"$f":"IF('1. Order'!AY736=\"\",\"\",'1. Order'!AY736)","v":""},{"$f":"IF('1. Order'!AZ736=\"\",\"\",'1. Order'!AZ736)","v":""},{"$f":"IF('1. Order'!BA736=\"\",\"\",'1. Order'!BA736)","v":""},{"$f":"IF('1. Order'!BC736=\"\",\"\",'1. Order'!BC736)","v":""},{"$f":"IF('1. Order'!BD736=\"\",\"\",'1. Order'!BD736)","v":6},{"$f":"IF('1. Order'!BE736=\"\",\"\",'1. Order'!BE736)","v":"None"},{"$f":"IF('1. Order'!BF736=\"\",\"\",'1. Order'!BF736)","v":"Parcel"},{"$f":"IF('1. Order'!BG736=\"\",\"\",'1. Order'!BG736)","v":"ZWO"}]
[{"$f":"IF('1. Order'!F737=\"\",\"\",'1. Order'!F737)","v":""},{"$f":"IF('1. Order'!G737=\"\",\"\",'1. Order'!G737)","v":""},{"$f":"IF('1. Order'!H737=\"\",\"\",'1. Order'!H737)","v":""},{"$f":"IF('1. Order'!I737=\"\",\"\",'1. Order'!I737)","v":""},{"$f":"IF('1. Order'!J737=\"\",\"\",'1. Order'!J737)","v":""},{"$f":"IF('1. Order'!K737=\"\",\"\",'1. Order'!K737)","v":""},{"$f":"IF('1. Order'!L737=\"\",\"\",'1. Order'!L737)","v":""},{"$f":"IF('1. Order'!M737=\"\",\"\",'1. Order'!M737)","v":""},{"$f":"IF('1. Order'!N737=\"\",\"\",'1. Order'!N737)","v":""},{"$f":"IF('1. Order'!O737=\"\",\"\",'1. Order'!O737)","v":{"$error":"#N/A"}},{"$f":"IF('1. Order'!P737=\"\",\"\",'1. Order'!P737)","v":{"$error":"#N/A"}},{"$f":"IF('1. Order'!Q737=\"\",\"\",'1. Order'!Q737)","v":""},{"$f":"IF('1. Order'!R737=\"\",\"\",'1. Order'!R737)","v":""},{"$f":"IF('1. Order'!S737=\"\",\"\",'1. Order'!S737)","v":""},{"$f":"IF('1. Order'!V737=\"\",\"\",'1. Order'!V737)","v":""},{"$f":"IF('1. Order'!W737=\"\",\"\",'1. Order'!W737)","v":""},{"$f":"IF('1. Order'!X737=\"\",\"\",'1. Order'!X737)","v":"EUR"},{"$f":"IF('1. Order'!Y737=\"\",\"\",'1. Order'!Y737)","v":""},{"$f":"IF('1. Order'!Z737=\"\",\"\",'1. Order'!Z737)","v":""},{"$f":"IF('1. Order'!AA737=\"\",\"\",'1. Order'!AA737)","v":""},null,{"$f":"IF('1. Order'!AS737=\"\",\"\",'1. Order'!AS737)","v":""},{"$f":"IF('1. Order'!AT737=\"\",\"\",'1. Order'!AT737)","v":""},null,null,null,null,null,null,null,{"$f":"IF('1. Order'!AX737=\"\",\"\",'1. Order'!AX737)","v":""},{"$f":"IF('1. Order'!AY737=\"\",\"\",'1. Order'!AY737)","v":""},{"$f":"IF('1. Order'!AZ737=\"\",\"\",'1. Order'!AZ737)","v":""},{"$f":"IF('1. Order'!BA737=\"\",\"\",'1. Order'!BA737)","v":""},{"$f":"IF('1. Order'!BC737=\"\",\"\",'1. Order'!BC737)","v":""},{"$f":"IF('1. Order'!BD737=\"\",\"\",'1. Order'!BD737)","v":6},{"$f":"IF('1. Order'!BE737=\"\",\"\",'1. Order'!BE737)","v":"None"},{"$f":"IF('1. Order'!BF737=\"\",\"\",'1. Order'!BF737)","v":"Parcel"},{"$f":"IF('1. Order'!BG737=\"\",\"\",'1. Order'!BG737)","v":"ZWO"}]
[{"$f":"IF('1. Order'!F738=\"\",\"\",'1. Order'!F738)","v":""},{"$f":"IF('1. Order'!G738=\"\",\"\",'1. Order'!G738)","v":""},{"$f":"IF('1. Order'!H738=\"\",\"\",'1. Order'!H738)","v":""},{"$f":"IF('1. Order'!I738=\"\",\"\",'1. Order'!I738)","v":""},{"$f":"IF('1. Order'!J738=\"\",\"\",'1. Order'!J738)","v":""},{"$f":"IF('1. Order'!K738=\"\",\"\",'1. Order'!K738)","v":""},{"$f":"IF('1. Order'!L738=\"\",\"\",'1. Order'!L738)","v":""},{"$f":"IF('1. Order'!M738=\"\",\"\",'1. Order'!M738)","v":""},{"$f":"IF('1. Order'!N738=\"\",\"\",'1. Order'!N738)","v":""},{"$f":"IF('1. Order'!O738=\"\",\"\",'1. Order'!O738)","v":{"$error":"#N/A"}},{"$f":"IF('1. Order'!P738=\"\",\"\",'1. Order'!P738)","v":{"$error":"#N/A"}},{"$f":"IF('1. Order'!Q738=\"\",\"\",'1. Order'!Q738)","v":""},{"$f":"IF('1. Order'!R738=\"\",\"\",'1. Order'!R738)","v":""},{"$f":"IF('1. Order'!S738=\"\",\"\",'1. Order'!S738)","v":""},{"$f":"IF('1. Order'!V738=\"\",\"\",'1. Order'!V738)","v":""},{"$f":"IF('1. Order'!W738=\"\",\"\",'1. Order'!W738)","v":""},{"$f":"IF('1. Order'!X738=\"\",\"\",'1. Order'!X738)","v":"EUR"},{"$f":"IF('1. Order'!Y738=\"\",\"\",'1. Order'!Y738)","v":""},{"$f":"IF('1. Order'!Z738=\"\",\"\",'1. Order'!Z738)","v":""},{"$f":"IF('1. Order'!AA738=\"\",\"\",'1. Order'!AA738)","v":""},null,{"$f":"IF('1. Order'!AS738=\"\",\"\",'1. Order'!AS738)","v":""},{"$f":"IF('1. Order'!AT738=\"\",\"\",'1. Order'!AT738)","v":""},null,null,null,null,null,null,null,{"$f":"IF('1. Order'!AX738=\"\",\"\",'1. Order'!AX738)","v":""},{"$f":"IF('1. Order'!AY738=\"\",\"\",'1. Order'!AY738)","v":""},{"$f":"IF('1. Order'!AZ738=\"\",\"\",'1. Order'!AZ738)","v":""},{"$f":"IF('1. Order'!BA738=\"\",\"\",'1. Order'!BA738)","v":""},{"$f":"IF('1. Order'!BC738=\"\",\"\",'1. Order'!BC738)","v":""},{"$f":"IF('1. Order'!BD738=\"\",\"\",'1. Order'!BD738)","v":6},{"$f":"IF('1. Order'!BE738=\"\",\"\",'1. Order'!BE738)","v":"None"},{"$f":"IF('1. Order'!BF738=\"\",\"\",'1. Order'!BF738)","v":"Parcel"},{"$f":"IF('1. Order'!BG738=\"\",\"\",'1. Order'!BG738)","v":"ZWO"}]
[{"$f":"IF('1. Order'!F739=\"\",\"\",'1. Order'!F739)","v":""},{"$f":"IF('1. Order'!G739=\"\",\"\",'1. Order'!G739)","v":""},{"$f":"IF('1. Order'!H739=\"\",\"\",'1. Order'!H739)","v":""},{"$f":"IF('1. Order'!I739=\"\",\"\",'1. Order'!I739)","v":""},{"$f":"IF('1. Order'!J739=\"\",\"\",'1. Order'!J739)","v":""},{"$f":"IF('1. Order'!K739=\"\",\"\",'1. Order'!K739)","v":""},{"$f":"IF('1. Order'!L739=\"\",\"\",'1. Order'!L739)","v":""},{"$f":"IF('1. Order'!M739=\"\",\"\",'1. Order'!M739)","v":""},{"$f":"IF('1. Order'!N739=\"\",\"\",'1. Order'!N739)","v":""},{"$f":"IF('1. Order'!O739=\"\",\"\",'1. Order'!O739)","v":{"$error":"#N/A"}},{"$f":"IF('1. Order'!P739=\"\",\"\",'1. Order'!P739)","v":{"$error":"#N/A"}},{"$f":"IF('1. Order'!Q739=\"\",\"\",'1. Order'!Q739)","v":""},{"$f":"IF('1. Order'!R739=\"\",\"\",'1. Order'!R739)","v":""},{"$f":"IF('1. Order'!S739=\"\",\"\",'1. Order'!S739)","v":""},{"$f":"IF('1. Order'!V739=\"\",\"\",'1. Order'!V739)","v":""},{"$f":"IF('1. Order'!W739=\"\",\"\",'1. Order'!W739)","v":""},{"$f":"IF('1. Order'!X739=\"\",\"\",'1. Order'!X739)","v":"EUR"},{"$f":"IF('1. Order'!Y739=\"\",\"\",'1. Order'!Y739)","v":""},{"$f":"IF('1. Order'!Z739=\"\",\"\",'1. Order'!Z739)","v":""},{"$f":"IF('1. Order'!AA739=\"\",\"\",'1. Order'!AA739)","v":""},null,{"$f":"IF('1. Order'!AS739=\"\",\"\",'1. Order'!AS739)","v":""},{"$f":"IF('1. Order'!AT739=\"\",\"\",'1. Order'!AT739)","v":""},null,null,null,null,null,null,null,{"$f":"IF('1. Order'!AX739=\"\",\"\",'1. Order'!AX739)","v":""},{"$f":"IF('1. Order'!AY739=\"\",\"\",'1. Order'!AY739)","v":""},{"$f":"IF('1. Order'!AZ739=\"\",\"\",'1. Order'!AZ739)","v":""},{"$f":"IF('1. Order'!BA739=\"\",\"\",'1. Order'!BA739)","v":""},{"$f":"IF('1. Order'!BC739=\"\",\"\",'1. Order'!BC739)","v":""},{"$f":"IF('1. Order'!BD739=\"\",\"\",'1. Order'!BD739)","v":6},{"$f":"IF('1. Order'!BE739=\"\",\"\",'1. Order'!BE739)","v":"None"},{"$f":"IF('1. Order'!BF739=\"\",\"\",'1. Order'!BF739)","v":"Parcel"},{"$f":"IF('1. Order'!BG739=\"\",\"\",'1. Order'!BG739)","v":"ZWO"}]
[{"$f":"IF('1. Order'!F740=\"\",\"\",'1. Order'!F740)","v":""},{"$f":"IF('1. Order'!G740=\"\",\"\",'1. Order'!G740)","v":""},{"$f":"IF('1. Order'!H740=\"\",\"\",'1. Order'!H740)","v":""},{"$f":"IF('1. Order'!I740=\"\",\"\",'1. Order'!I740)","v":""},{"$f":"IF('1. Order'!J740=\"\",\"\",'1. Order'!J740)","v":""},{"$f":"IF('1. Order'!K740=\"\",\"\",'1. Order'!K740)","v":""},{"$f":"IF('1. Order'!L740=\"\",\"\",'1. Order'!L740)","v":""},{"$f":"IF('1. Order'!M740=\"\",\"\",'1. Order'!M740)","v":""},{"$f":"IF('1. Order'!N740=\"\",\"\",'1. Order'!N740)","v":""},{"$f":"IF('1. Order'!O740=\"\",\"\",'1. Order'!O740)","v":{"$error":"#N/A"}},{"$f":"IF('1. Order'!P740=\"\",\"\",'1. Order'!P740)","v":{"$error":"#N/A"}},{"$f":"IF('1. Order'!Q740=\"\",\"\",'1. Order'!Q740)","v":""},{"$f":"IF('1. Order'!R740=\"\",\"\",'1. Order'!R740)","v":""},{"$f":"IF('1. Order'!S740=\"\",\"\",'1. Order'!S740)","v":""},{"$f":"IF('1. Order'!V740=\"\",\"\",'1. Order'!V740)","v":""},{"$f":"IF('1. Order'!W740=\"\",\"\",'1. Order'!W740)","v":""},{"$f":"IF('1. Order'!X740=\"\",\"\",'1. Order'!X740)","v":"EUR"},{"$f":"IF('1. Order'!Y740=\"\",\"\",'1. Order'!Y740)","v":""},{"$f":"IF('1. Order'!Z740=\"\",\"\",'1. Order'!Z740)","v":""},{"$f":"IF('1. Order'!AA740=\"\",\"\",'1. Order'!AA740)","v":""},null,{"$f":"IF('1. Order'!AS740=\"\",\"\",'1. Order'!AS740)","v":""},{"$f":"IF('1. Order'!AT740=\"\",\"\",'1. Order'!AT740)","v":""},null,null,null,null,null,null,null,{"$f":"IF('1. Order'!AX740=\"\",\"\",'1. Order'!AX740)","v":""},{"$f":"IF('1. Order'!AY740=\"\",\"\",'1. Order'!AY740)","v":""},{"$f":"IF('1. Order'!AZ740=\"\",\"\",'1. Order'!AZ740)","v":""},{"$f":"IF('1. Order'!BA740=\"\",\"\",'1. Order'!BA740)","v":""},{"$f":"IF('1. Order'!BC740=\"\",\"\",'1. Order'!BC740)","v":""},{"$f":"IF('1. Order'!BD740=\"\",\"\",'1. Order'!BD740)","v":6},{"$f":"IF('1. Order'!BE740=\"\",\"\",'1. Order'!BE740)","v":"None"},{"$f":"IF('1. Order'!BF740=\"\",\"\",'1. Order'!BF740)","v":"Parcel"},{"$f":"IF('1. Order'!BG740=\"\",\"\",'1. Order'!BG740)","v":"ZWO"}]
[{"$f":"IF('1. Order'!F741=\"\",\"\",'1. Order'!F741)","v":""},{"$f":"IF('1. Order'!G741=\"\",\"\",'1. Order'!G741)","v":""},{"$f":"IF('1. Order'!H741=\"\",\"\",'1. Order'!H741)","v":""},{"$f":"IF('1. Order'!I741=\"\",\"\",'1. Order'!I741)","v":""},{"$f":"IF('1. Order'!J741=\"\",\"\",'1. Order'!J741)","v":""},{"$f":"IF('1. Order'!K741=\"\",\"\",'1. Order'!K741)","v":""},{"$f":"IF('1. Order'!L741=\"\",\"\",'1. Order'!L741)","v":""},{"$f":"IF('1. Order'!M741=\"\",\"\",'1. Order'!M741)","v":""},{"$f":"IF('1. Order'!N741=\"\",\"\",'1. Order'!N741)","v":""},{"$f":"IF('1. Order'!O741=\"\",\"\",'1. Order'!O741)","v":{"$error":"#N/A"}},{"$f":"IF('1. Order'!P741=\"\",\"\",'1. Order'!P741)","v":{"$error":"#N/A"}},{"$f":"IF('1. Order'!Q741=\"\",\"\",'1. Order'!Q741)","v":""},{"$f":"IF('1. Order'!R741=\"\",\"\",'1. Order'!R741)","v":""},{"$f":"IF('1. Order'!S741=\"\",\"\",'1. Order'!S741)","v":""},{"$f":"IF('1. Order'!V741=\"\",\"\",'1. Order'!V741)","v":""},{"$f":"IF('1. Order'!W741=\"\",\"\",'1. Order'!W741)","v":""},{"$f":"IF('1. Order'!X741=\"\",\"\",'1. Order'!X741)","v":"EUR"},{"$f":"IF('1. Order'!Y741=\"\",\"\",'1. Order'!Y741)","v":""},{"$f":"IF('1. Order'!Z741=\"\",\"\",'1. Order'!Z741)","v":""},{"$f":"IF('1. Order'!AA741=\"\",\"\",'1. Order'!AA741)","v":""},null,{"$f":"IF('1. Order'!AS741=\"\",\"\",'1. Order'!AS741)","v":""},{"$f":"IF('1. Order'!AT741=\"\",\"\",'1. Order'!AT741)","v":""},null,null,null,null,null,null,null,{"$f":"IF('1. Order'!AX741=\"\",\"\",'1. Order'!AX741)","v":""},{"$f":"IF('1. Order'!AY741=\"\",\"\",'1. Order'!AY741)","v":""},{"$f":"IF('1. Order'!AZ741=\"\",\"\",'1. Order'!AZ741)","v":""},{"$f":"IF('1. Order'!BA741=\"\",\"\",'1. Order'!BA741)","v":""},{"$f":"IF('1. Order'!BC741=\"\",\"\",'1. Order'!BC741)","v":""},{"$f":"IF('1. Order'!BD741=\"\",\"\",'1. Order'!BD741)","v":6},{"$f":"IF('1. Order'!BE741=\"\",\"\",'1. Order'!BE741)","v":"None"},{"$f":"IF('1. Order'!BF741=\"\",\"\",'1. Order'!BF741)","v":"Parcel"},{"$f":"IF('1. Order'!BG741=\"\",\"\",'1. Order'!BG741)","v":"ZWO"}]
[{"$f":"IF('1. Order'!F742=\"\",\"\",'1. Order'!F742)","v":""},{"$f":"IF('1. Order'!G742=\"\",\"\",'1. Order'!G742)","v":""},{"$f":"IF('1. Order'!H742=\"\",\"\",'1. Order'!H742)","v":""},{"$f":"IF('1. Order'!I742=\"\",\"\",'1. Order'!I742)","v":""},{"$f":"IF('1. Order'!J742=\"\",\"\",'1. Order'!J742)","v":""},{"$f":"IF('1. Order'!K742=\"\",\"\",'1. Order'!K742)","v":""},{"$f":"IF('1. Order'!L742=\"\",\"\",'1. Order'!L742)","v":""},{"$f":"IF('1. Order'!M742=\"\",\"\",'1. Order'!M742)","v":""},{"$f":"IF('1. Order'!N742=\"\",\"\",'1. Order'!N742)","v":""},{"$f":"IF('1. Order'!O742=\"\",\"\",'1. Order'!O742)","v":{"$error":"#N/A"}},{"$f":"IF('1. Order'!P742=\"\",\"\",'1. Order'!P742)","v":{"$error":"#N/A"}},{"$f":"IF('1. Order'!Q742=\"\",\"\",'1. Order'!Q742)","v":""},{"$f":"IF('1. Order'!R742=\"\",\"\",'1. Order'!R742)","v":""},{"$f":"IF('1. Order'!S742=\"\",\"\",'1. Order'!S742)","v":""},{"$f":"IF('1. Order'!V742=\"\",\"\",'1. Order'!V742)","v":""},{"$f":"IF('1. Order'!W742=\"\",\"\",'1. Order'!W742)","v":""},{"$f":"IF('1. Order'!X742=\"\",\"\",'1. Order'!X742)","v":"EUR"},{"$f":"IF('1. Order'!Y742=\"\",\"\",'1. Order'!Y742)","v":""},{"$f":"IF('1. Order'!Z742=\"\",\"\",'1. Order'!Z742)","v":""},{"$f":"IF('1. Order'!AA742=\"\",\"\",'1. Order'!AA742)","v":""},null,{"$f":"IF('1. Order'!AS742=\"\",\"\",'1. Order'!AS742)","v":""},{"$f":"IF('1. Order'!AT742=\"\",\"\",'1. Order'!AT742)","v":""},null,null,null,null,null,null,null,{"$f":"IF('1. Order'!AX742=\"\",\"\",'1. Order'!AX742)","v":""},{"$f":"IF('1. Order'!AY742=\"\",\"\",'1. Order'!AY742)","v":""},{"$f":"IF('1. Order'!AZ742=\"\",\"\",'1. Order'!AZ742)","v":""},{"$f":"IF('1. Order'!BA742=\"\",\"\",'1. Order'!BA742)","v":""},{"$f":"IF('1. Order'!BC742=\"\",\"\",'1. Order'!BC742)","v":""},{"$f":"IF('1. Order'!BD742=\"\",\"\",'1. Order'!BD742)","v":6},{"$f":"IF('1. Order'!BE742=\"\",\"\",'1. Order'!BE742)","v":"None"},{"$f":"IF('1. Order'!BF742=\"\",\"\",'1. Order'!BF742)","v":"Parcel"},{"$f":"IF('1. Order'!BG742=\"\",\"\",'1. Order'!BG742)","v":"ZWO"}]
[{"$f":"IF('1. Order'!F743=\"\",\"\",'1. Order'!F743)","v":""},{"$f":"IF('1. Order'!G743=\"\",\"\",'1. Order'!G743)","v":""},{"$f":"IF('1. Order'!H743=\"\",\"\",'1. Order'!H743)","v":""},{"$f":"IF('1. Order'!I743=\"\",\"\",'1. Order'!I743)","v":""},{"$f":"IF('1. Order'!J743=\"\",\"\",'1. Order'!J743)","v":""},{"$f":"IF('1. Order'!K743=\"\",\"\",'1. Order'!K743)","v":""},{"$f":"IF('1. Order'!L743=\"\",\"\",'1. Order'!L743)","v":""},{"$f":"IF('1. Order'!M743=\"\",\"\",'1. Order'!M743)","v":""},{"$f":"IF('1. Order'!N743=\"\",\"\",'1. Order'!N743)","v":""},{"$f":"IF('1. Order'!O743=\"\",\"\",'1. Order'!O743)","v":{"$error":"#N/A"}},{"$f":"IF('1. Order'!P743=\"\",\"\",'1. Order'!P743)","v":{"$error":"#N/A"}},{"$f":"IF('1. Order'!Q743=\"\",\"\",'1. Order'!Q743)","v":""},{"$f":"IF('1. Order'!R743=\"\",\"\",'1. Order'!R743)","v":""},{"$f":"IF('1. Order'!S743=\"\",\"\",'1. Order'!S743)","v":""},{"$f":"IF('1. Order'!V743=\"\",\"\",'1. Order'!V743)","v":""},{"$f":"IF('1. Order'!W743=\"\",\"\",'1. Order'!W743)","v":""},{"$f":"IF('1. Order'!X743=\"\",\"\",'1. Order'!X743)","v":"EUR"},{"$f":"IF('1. Order'!Y743=\"\",\"\",'1. Order'!Y743)","v":""},{"$f":"IF('1. Order'!Z743=\"\",\"\",'1. Order'!Z743)","v":""},{"$f":"IF('1. Order'!AA743=\"\",\"\",'1. Order'!AA743)","v":""},null,{"$f":"IF('1. Order'!AS743=\"\",\"\",'1. Order'!AS743)","v":""},{"$f":"IF('1. Order'!AT743=\"\",\"\",'1. Order'!AT743)","v":""},null,null,null,null,null,null,null,{"$f":"IF('1. Order'!AX743=\"\",\"\",'1. Order'!AX743)","v":""},{"$f":"IF('1. Order'!AY743=\"\",\"\",'1. Order'!AY743)","v":""},{"$f":"IF('1. Order'!AZ743=\"\",\"\",'1. Order'!AZ743)","v":""},{"$f":"IF('1. Order'!BA743=\"\",\"\",'1. Order'!BA743)","v":""},{"$f":"IF('1. Order'!BC743=\"\",\"\",'1. Order'!BC743)","v":""},{"$f":"IF('1. Order'!BD743=\"\",\"\",'1. Order'!BD743)","v":6},{"$f":"IF('1. Order'!BE743=\"\",\"\",'1. Order'!BE743)","v":"None"},{"$f":"IF('1. Order'!BF743=\"\",\"\",'1. Order'!BF743)","v":"Parcel"},{"$f":"IF('1. Order'!BG743=\"\",\"\",'1. Order'!BG743)","v":"ZWO"}]
[{"$f":"IF('1. Order'!F744=\"\",\"\",'1. Order'!F744)","v":""},{"$f":"IF('1. Order'!G744=\"\",\"\",'1. Order'!G744)","v":""},{"$f":"IF('1. Order'!H744=\"\",\"\",'1. Order'!H744)","v":""},{"$f":"IF('1. Order'!I744=\"\",\"\",'1. Order'!I744)","v":""},{"$f":"IF('1. Order'!J744=\"\",\"\",'1. Order'!J744)","v":""},{"$f":"IF('1. Order'!K744=\"\",\"\",'1. Order'!K744)","v":""},{"$f":"IF('1. Order'!L744=\"\",\"\",'1. Order'!L744)","v":""},{"$f":"IF('1. Order'!M744=\"\",\"\",'1. Order'!M744)","v":""},{"$f":"IF('1. Order'!N744=\"\",\"\",'1. Order'!N744)","v":""},{"$f":"IF('1. Order'!O744=\"\",\"\",'1. Order'!O744)","v":{"$error":"#N/A"}},{"$f":"IF('1. Order'!P744=\"\",\"\",'1. Order'!P744)","v":{"$error":"#N/A"}},{"$f":"IF('1. Order'!Q744=\"\",\"\",'1. Order'!Q744)","v":""},{"$f":"IF('1. Order'!R744=\"\",\"\",'1. Order'!R744)","v":""},{"$f":"IF('1. Order'!S744=\"\",\"\",'1. Order'!S744)","v":""},{"$f":"IF('1. Order'!V744=\"\",\"\",'1. Order'!V744)","v":""},{"$f":"IF('1. Order'!W744=\"\",\"\",'1. Order'!W744)","v":""},{"$f":"IF('1. Order'!X744=\"\",\"\",'1. Order'!X744)","v":"EUR"},{"$f":"IF('1. Order'!Y744=\"\",\"\",'1. Order'!Y744)","v":""},{"$f":"IF('1. Order'!Z744=\"\",\"\",'1. Order'!Z744)","v":""},{"$f":"IF('1. Order'!AA744=\"\",\"\",'1. Order'!AA744)","v":""},null,{"$f":"IF('1. Order'!AS744=\"\",\"\",'1. Order'!AS744)","v":""},{"$f":"IF('1. Order'!AT744=\"\",\"\",'1. Order'!AT744)","v":""},null,null,null,null,null,null,null,{"$f":"IF('1. Order'!AX744=\"\",\"\",'1. Order'!AX744)","v":""},{"$f":"IF('1. Order'!AY744=\"\",\"\",'1. Order'!AY744)","v":""},{"$f":"IF('1. Order'!AZ744=\"\",\"\",'1. Order'!AZ744)","v":""},{"$f":"IF('1. Order'!BA744=\"\",\"\",'1. Order'!BA744)","v":""},{"$f":"IF('1. Order'!BC744=\"\",\"\",'1. Order'!BC744)","v":""},{"$f":"IF('1. Order'!BD744=\"\",\"\",'1. Order'!BD744)","v":6},{"$f":"IF('1. Order'!BE744=\"\",\"\",'1. Order'!BE744)","v":"None"},{"$f":"IF('1. Order'!BF744=\"\",\"\",'1. Order'!BF744)","v":"Parcel"},{"$f":"IF('1. Order'!BG744=\"\",\"\",'1. Order'!BG744)","v":"ZWO"}]
[{"$f":"IF('1. Order'!F745=\"\",\"\",'1. Order'!F745)","v":""},{"$f":"IF('1. Order'!G745=\"\",\"\",'1. Order'!G745)","v":""},{"$f":"IF('1. Order'!H745=\"\",\"\",'1. Order'!H745)","v":""},{"$f":"IF('1. Order'!I745=\"\",\"\",'1. Order'!I745)","v":""},{"$f":"IF('1. Order'!J745=\"\",\"\",'1. Order'!J745)","v":""},{"$f":"IF('1. Order'!K745=\"\",\"\",'1. Order'!K745)","v":""},{"$f":"IF('1. Order'!L745=\"\",\"\",'1. Order'!L745)","v":""},{"$f":"IF('1. Order'!M745=\"\",\"\",'1. Order'!M745)","v":""},{"$f":"IF('1. Order'!N745=\"\",\"\",'1. Order'!N745)","v":""},{"$f":"IF('1. Order'!O745=\"\",\"\",'1. Order'!O745)","v":{"$error":"#N/A"}},{"$f":"IF('1. Order'!P745=\"\",\"\",'1. Order'!P745)","v":{"$error":"#N/A"}},{"$f":"IF('1. Order'!Q745=\"\",\"\",'1. Order'!Q745)","v":""},{"$f":"IF('1. Order'!R745=\"\",\"\",'1. Order'!R745)","v":""},{"$f":"IF('1. Order'!S745=\"\",\"\",'1. Order'!S745)","v":""},{"$f":"IF('1. Order'!V745=\"\",\"\",'1. Order'!V745)","v":""},{"$f":"IF('1. Order'!W745=\"\",\"\",'1. Order'!W745)","v":""},{"$f":"IF('1. Order'!X745=\"\",\"\",'1. Order'!X745)","v":"EUR"},{"$f":"IF('1. Order'!Y745=\"\",\"\",'1. Order'!Y745)","v":""},{"$f":"IF('1. Order'!Z745=\"\",\"\",'1. Order'!Z745)","v":""},{"$f":"IF('1. Order'!AA745=\"\",\"\",'1. Order'!AA745)","v":""},null,{"$f":"IF('1. Order'!AS745=\"\",\"\",'1. Order'!AS745)","v":""},{"$f":"IF('1. Order'!AT745=\"\",\"\",'1. Order'!AT745)","v":""},null,null,null,null,null,null,null,{"$f":"IF('1. Order'!AX745=\"\",\"\",'1. Order'!AX745)","v":""},{"$f":"IF('1. Order'!AY745=\"\",\"\",'1. Order'!AY745)","v":""},{"$f":"IF('1. Order'!AZ745=\"\",\"\",'1. Order'!AZ745)","v":""},{"$f":"IF('1. Order'!BA745=\"\",\"\",'1. Order'!BA745)","v":""},{"$f":"IF('1. Order'!BC745=\"\",\"\",'1. Order'!BC745)","v":""},{"$f":"IF('1. Order'!BD745=\"\",\"\",'1. Order'!BD745)","v":6},{"$f":"IF('1. Order'!BE745=\"\",\"\",'1. Order'!BE745)","v":"None"},{"$f":"IF('1. Order'!BF745=\"\",\"\",'1. Order'!BF745)","v":"Parcel"},{"$f":"IF('1. Order'!BG745=\"\",\"\",'1. Order'!BG745)","v":"ZWO"}]
[{"$f":"IF('1. Order'!F746=\"\",\"\",'1. Order'!F746)","v":""},{"$f":"IF('1. Order'!G746=\"\",\"\",'1. Order'!G746)","v":""},{"$f":"IF('1. Order'!H746=\"\",\"\",'1. Order'!H746)","v":""},{"$f":"IF('1. Order'!I746=\"\",\"\",'1. Order'!I746)","v":""},{"$f":"IF('1. Order'!J746=\"\",\"\",'1. Order'!J746)","v":""},{"$f":"IF('1. Order'!K746=\"\",\"\",'1. Order'!K746)","v":""},{"$f":"IF('1. Order'!L746=\"\",\"\",'1. Order'!L746)","v":""},{"$f":"IF('1. Order'!M746=\"\",\"\",'1. Order'!M746)","v":""},{"$f":"IF('1. Order'!N746=\"\",\"\",'1. Order'!N746)","v":""},{"$f":"IF('1. Order'!O746=\"\",\"\",'1. Order'!O746)","v":{"$error":"#N/A"}},{"$f":"IF('1. Order'!P746=\"\",\"\",'1. Order'!P746)","v":{"$error":"#N/A"}},{"$f":"IF('1. Order'!Q746=\"\",\"\",'1. Order'!Q746)","v":""},{"$f":"IF('1. Order'!R746=\"\",\"\",'1. Order'!R746)","v":""},{"$f":"IF('1. Order'!S746=\"\",\"\",'1. Order'!S746)","v":""},{"$f":"IF('1. Order'!V746=\"\",\"\",'1. Order'!V746)","v":""},{"$f":"IF('1. Order'!W746=\"\",\"\",'1. Order'!W746)","v":""},{"$f":"IF('1. Order'!X746=\"\",\"\",'1. Order'!X746)","v":"EUR"},{"$f":"IF('1. Order'!Y746=\"\",\"\",'1. Order'!Y746)","v":""},{"$f":"IF('1. Order'!Z746=\"\",\"\",'1. Order'!Z746)","v":""},{"$f":"IF('1. Order'!AA746=\"\",\"\",'1. Order'!AA746)","v":""},null,{"$f":"IF('1. Order'!AS746=\"\",\"\",'1. Order'!AS746)","v":""},{"$f":"IF('1. Order'!AT746=\"\",\"\",'1. Order'!AT746)","v":""},null,null,null,null,null,null,null,{"$f":"IF('1. Order'!AX746=\"\",\"\",'1. Order'!AX746)","v":""},{"$f":"IF('1. Order'!AY746=\"\",\"\",'1. Order'!AY746)","v":""},{"$f":"IF('1. Order'!AZ746=\"\",\"\",'1. Order'!AZ746)","v":""},{"$f":"IF('1. Order'!BA746=\"\",\"\",'1. Order'!BA746)","v":""},{"$f":"IF('1. Order'!BC746=\"\",\"\",'1. Order'!BC746)","v":""},{"$f":"IF('1. Order'!BD746=\"\",\"\",'1. Order'!BD746)","v":6},{"$f":"IF('1. Order'!BE746=\"\",\"\",'1. Order'!BE746)","v":"None"},{"$f":"IF('1. Order'!BF746=\"\",\"\",'1. Order'!BF746)","v":"Parcel"},{"$f":"IF('1. Order'!BG746=\"\",\"\",'1. Order'!BG746)","v":"ZWO"}]
[{"$f":"IF('1. Order'!F747=\"\",\"\",'1. Order'!F747)","v":""},{"$f":"IF('1. Order'!G747=\"\",\"\",'1. Order'!G747)","v":""},{"$f":"IF('1. Order'!H747=\"\",\"\",'1. Order'!H747)","v":""},{"$f":"IF('1. Order'!I747=\"\",\"\",'1. Order'!I747)","v":""},{"$f":"IF('1. Order'!J747=\"\",\"\",'1. Order'!J747)","v":""},{"$f":"IF('1. Order'!K747=\"\",\"\",'1. Order'!K747)","v":""},{"$f":"IF('1. Order'!L747=\"\",\"\",'1. Order'!L747)","v":""},{"$f":"IF('1. Order'!M747=\"\",\"\",'1. Order'!M747)","v":""},{"$f":"IF('1. Order'!N747=\"\",\"\",'1. Order'!N747)","v":""},{"$f":"IF('1. Order'!O747=\"\",\"\",'1. Order'!O747)","v":{"$error":"#N/A"}},{"$f":"IF('1. Order'!P747=\"\",\"\",'1. Order'!P747)","v":{"$error":"#N/A"}},{"$f":"IF('1. Order'!Q747=\"\",\"\",'1. Order'!Q747)","v":""},{"$f":"IF('1. Order'!R747=\"\",\"\",'1. Order'!R747)","v":""},{"$f":"IF('1. Order'!S747=\"\",\"\",'1. Order'!S747)","v":""},{"$f":"IF('1. Order'!V747=\"\",\"\",'1. Order'!V747)","v":""},{"$f":"IF('1. Order'!W747=\"\",\"\",'1. Order'!W747)","v":""},{"$f":"IF('1. Order'!X747=\"\",\"\",'1. Order'!X747)","v":"EUR"},{"$f":"IF('1. Order'!Y747=\"\",\"\",'1. Order'!Y747)","v":""},{"$f":"IF('1. Order'!Z747=\"\",\"\",'1. Order'!Z747)","v":""},{"$f":"IF('1. Order'!AA747=\"\",\"\",'1. Order'!AA747)","v":""},null,{"$f":"IF('1. Order'!AS747=\"\",\"\",'1. Order'!AS747)","v":""},{"$f":"IF('1. Order'!AT747=\"\",\"\",'1. Order'!AT747)","v":""},null,null,null,null,null,null,null,{"$f":"IF('1. Order'!AX747=\"\",\"\",'1. Order'!AX747)","v":""},{"$f":"IF('1. Order'!AY747=\"\",\"\",'1. Order'!AY747)","v":""},{"$f":"IF('1. Order'!AZ747=\"\",\"\",'1. Order'!AZ747)","v":""},{"$f":"IF('1. Order'!BA747=\"\",\"\",'1. Order'!BA747)","v":""},{"$f":"IF('1. Order'!BC747=\"\",\"\",'1. Order'!BC747)","v":""},{"$f":"IF('1. Order'!BD747=\"\",\"\",'1. Order'!BD747)","v":6},{"$f":"IF('1. Order'!BE747=\"\",\"\",'1. Order'!BE747)","v":"None"},{"$f":"IF('1. Order'!BF747=\"\",\"\",'1. Order'!BF747)","v":"Parcel"},{"$f":"IF('1. Order'!BG747=\"\",\"\",'1. Order'!BG747)","v":"ZWO"}]
[{"$f":"IF('1. Order'!F748=\"\",\"\",'1. Order'!F748)","v":""},{"$f":"IF('1. Order'!G748=\"\",\"\",'1. Order'!G748)","v":""},{"$f":"IF('1. Order'!H748=\"\",\"\",'1. Order'!H748)","v":""},{"$f":"IF('1. Order'!I748=\"\",\"\",'1. Order'!I748)","v":""},{"$f":"IF('1. Order'!J748=\"\",\"\",'1. Order'!J748)","v":""},{"$f":"IF('1. Order'!K748=\"\",\"\",'1. Order'!K748)","v":""},{"$f":"IF('1. Order'!L748=\"\",\"\",'1. Order'!L748)","v":""},{"$f":"IF('1. Order'!M748=\"\",\"\",'1. Order'!M748)","v":""},{"$f":"IF('1. Order'!N748=\"\",\"\",'1. Order'!N748)","v":""},{"$f":"IF('1. Order'!O748=\"\",\"\",'1. Order'!O748)","v":{"$error":"#N/A"}},{"$f":"IF('1. Order'!P748=\"\",\"\",'1. Order'!P748)","v":{"$error":"#N/A"}},{"$f":"IF('1. Order'!Q748=\"\",\"\",'1. Order'!Q748)","v":""},{"$f":"IF('1. Order'!R748=\"\",\"\",'1. Order'!R748)","v":""},{"$f":"IF('1. Order'!S748=\"\",\"\",'1. Order'!S748)","v":""},{"$f":"IF('1. Order'!V748=\"\",\"\",'1. Order'!V748)","v":""},{"$f":"IF('1. Order'!W748=\"\",\"\",'1. Order'!W748)","v":""},{"$f":"IF('1. Order'!X748=\"\",\"\",'1. Order'!X748)","v":"EUR"},{"$f":"IF('1. Order'!Y748=\"\",\"\",'1. Order'!Y748)","v":""},{"$f":"IF('1. Order'!Z748=\"\",\"\",'1. Order'!Z748)","v":""},{"$f":"IF('1. Order'!AA748=\"\",\"\",'1. Order'!AA748)","v":""},null,{"$f":"IF('1. Order'!AS748=\"\",\"\",'1. Order'!AS748)","v":""},{"$f":"IF('1. Order'!AT748=\"\",\"\",'1. Order'!AT748)","v":""},null,null,null,null,null,null,null,{"$f":"IF('1. Order'!AX748=\"\",\"\",'1. Order'!AX748)","v":""},{"$f":"IF('1. Order'!AY748=\"\",\"\",'1. Order'!AY748)","v":""},{"$f":"IF('1. Order'!AZ748=\"\",\"\",'1. Order'!AZ748)","v":""},{"$f":"IF('1. Order'!BA748=\"\",\"\",'1. Order'!BA748)","v":""},{"$f":"IF('1. Order'!BC748=\"\",\"\",'1. Order'!BC748)","v":""},{"$f":"IF('1. Order'!BD748=\"\",\"\",'1. Order'!BD748)","v":6},{"$f":"IF('1. Order'!BE748=\"\",\"\",'1. Order'!BE748)","v":"None"},{"$f":"IF('1. Order'!BF748=\"\",\"\",'1. Order'!BF748)","v":"Parcel"},{"$f":"IF('1. Order'!BG748=\"\",\"\",'1. Order'!BG748)","v":"ZWO"}]
[{"$f":"IF('1. Order'!F749=\"\",\"\",'1. Order'!F749)","v":""},{"$f":"IF('1. Order'!G749=\"\",\"\",'1. Order'!G749)","v":""},{"$f":"IF('1. Order'!H749=\"\",\"\",'1. Order'!H749)","v":""},{"$f":"IF('1. Order'!I749=\"\",\"\",'1. Order'!I749)","v":""},{"$f":"IF('1. Order'!J749=\"\",\"\",'1. Order'!J749)","v":""},{"$f":"IF('1. Order'!K749=\"\",\"\",'1. Order'!K749)","v":""},{"$f":"IF('1. Order'!L749=\"\",\"\",'1. Order'!L749)","v":""},{"$f":"IF('1. Order'!M749=\"\",\"\",'1. Order'!M749)","v":""},{"$f":"IF('1. Order'!N749=\"\",\"\",'1. Order'!N749)","v":""},{"$f":"IF('1. Order'!O749=\"\",\"\",'1. Order'!O749)","v":{"$error":"#N/A"}},{"$f":"IF('1. Order'!P749=\"\",\"\",'1. Order'!P749)","v":{"$error":"#N/A"}},{"$f":"IF('1. Order'!Q749=\"\",\"\",'1. Order'!Q749)","v":""},{"$f":"IF('1. Order'!R749=\"\",\"\",'1. Order'!R749)","v":""},{"$f":"IF('1. Order'!S749=\"\",\"\",'1. Order'!S749)","v":""},{"$f":"IF('1. Order'!V749=\"\",\"\",'1. Order'!V749)","v":""},{"$f":"IF('1. Order'!W749=\"\",\"\",'1. Order'!W749)","v":""},{"$f":"IF('1. Order'!X749=\"\",\"\",'1. Order'!X749)","v":"EUR"},{"$f":"IF('1. Order'!Y749=\"\",\"\",'1. Order'!Y749)","v":""},{"$f":"IF('1. Order'!Z749=\"\",\"\",'1. Order'!Z749)","v":""},{"$f":"IF('1. Order'!AA749=\"\",\"\",'1. Order'!AA749)","v":""},null,{"$f":"IF('1. Order'!AS749=\"\",\"\",'1. Order'!AS749)","v":""},{"$f":"IF('1. Order'!AT749=\"\",\"\",'1. Order'!AT749)","v":""},null,null,null,null,null,null,null,{"$f":"IF('1. Order'!AX749=\"\",\"\",'1. Order'!AX749)","v":""},{"$f":"IF('1. Order'!AY749=\"\",\"\",'1. Order'!AY749)","v":""},{"$f":"IF('1. Order'!AZ749=\"\",\"\",'1. Order'!AZ749)","v":""},{"$f":"IF('1. Order'!BA749=\"\",\"\",'1. Order'!BA749)","v":""},{"$f":"IF('1. Order'!BC749=\"\",\"\",'1. Order'!BC749)","v":""},{"$f":"IF('1. Order'!BD749=\"\",\"\",'1. Order'!BD749)","v":6},{"$f":"IF('1. Order'!BE749=\"\",\"\",'1. Order'!BE749)","v":"None"},{"$f":"IF('1. Order'!BF749=\"\",\"\",'1. Order'!BF749)","v":"Parcel"},{"$f":"IF('1. Order'!BG749=\"\",\"\",'1. Order'!BG749)","v":"ZWO"}]
[{"$f":"IF('1. Order'!F750=\"\",\"\",'1. Order'!F750)","v":""},{"$f":"IF('1. Order'!G750=\"\",\"\",'1. Order'!G750)","v":""},{"$f":"IF('1. Order'!H750=\"\",\"\",'1. Order'!H750)","v":""},{"$f":"IF('1. Order'!I750=\"\",\"\",'1. Order'!I750)","v":""},{"$f":"IF('1. Order'!J750=\"\",\"\",'1. Order'!J750)","v":""},{"$f":"IF('1. Order'!K750=\"\",\"\",'1. Order'!K750)","v":""},{"$f":"IF('1. Order'!L750=\"\",\"\",'1. Order'!L750)","v":""},{"$f":"IF('1. Order'!M750=\"\",\"\",'1. Order'!M750)","v":""},{"$f":"IF('1. Order'!N750=\"\",\"\",'1. Order'!N750)","v":""},{"$f":"IF('1. Order'!O750=\"\",\"\",'1. Order'!O750)","v":{"$error":"#N/A"}},{"$f":"IF('1. Order'!P750=\"\",\"\",'1. Order'!P750)","v":{"$error":"#N/A"}},{"$f":"IF('1. Order'!Q750=\"\",\"\",'1. Order'!Q750)","v":""},{"$f":"IF('1. Order'!R750=\"\",\"\",'1. Order'!R750)","v":""},{"$f":"IF('1. Order'!S750=\"\",\"\",'1. Order'!S750)","v":""},{"$f":"IF('1. Order'!V750=\"\",\"\",'1. Order'!V750)","v":""},{"$f":"IF('1. Order'!W750=\"\",\"\",'1. Order'!W750)","v":""},{"$f":"IF('1. Order'!X750=\"\",\"\",'1. Order'!X750)","v":"EUR"},{"$f":"IF('1. Order'!Y750=\"\",\"\",'1. Order'!Y750)","v":""},{"$f":"IF('1. Order'!Z750=\"\",\"\",'1. Order'!Z750)","v":""},{"$f":"IF('1. Order'!AA750=\"\",\"\",'1. Order'!AA750)","v":""},null,{"$f":"IF('1. Order'!AS750=\"\",\"\",'1. Order'!AS750)","v":""},{"$f":"IF('1. Order'!AT750=\"\",\"\",'1. Order'!AT750)","v":""},null,null,null,null,null,null,null,{"$f":"IF('1. Order'!AX750=\"\",\"\",'1. Order'!AX750)","v":""},{"$f":"IF('1. Order'!AY750=\"\",\"\",'1. Order'!AY750)","v":""},{"$f":"IF('1. Order'!AZ750=\"\",\"\",'1. Order'!AZ750)","v":""},{"$f":"IF('1. Order'!BA750=\"\",\"\",'1. Order'!BA750)","v":""},{"$f":"IF('1. Order'!BC750=\"\",\"\",'1. Order'!BC750)","v":""},{"$f":"IF('1. Order'!BD750=\"\",\"\",'1. Order'!BD750)","v":6},{"$f":"IF('1. Order'!BE750=\"\",\"\",'1. Order'!BE750)","v":"None"},{"$f":"IF('1. Order'!BF750=\"\",\"\",'1. Order'!BF750)","v":"Parcel"},{"$f":"IF('1. Order'!BG750=\"\",\"\",'1. Order'!BG750)","v":"ZWO"}]
[{"$f":"IF('1. Order'!F751=\"\",\"\",'1. Order'!F751)","v":""},{"$f":"IF('1. Order'!G751=\"\",\"\",'1. Order'!G751)","v":""},{"$f":"IF('1. Order'!H751=\"\",\"\",'1. Order'!H751)","v":""},{"$f":"IF('1. Order'!I751=\"\",\"\",'1. Order'!I751)","v":""},{"$f":"IF('1. Order'!J751=\"\",\"\",'1. Order'!J751)","v":""},{"$f":"IF('1. Order'!K751=\"\",\"\",'1. Order'!K751)","v":""},{"$f":"IF('1. Order'!L751=\"\",\"\",'1. Order'!L751)","v":""},{"$f":"IF('1. Order'!M751=\"\",\"\",'1. Order'!M751)","v":""},{"$f":"IF('1. Order'!N751=\"\",\"\",'1. Order'!N751)","v":""},{"$f":"IF('1. Order'!O751=\"\",\"\",'1. Order'!O751)","v":{"$error":"#N/A"}},{"$f":"IF('1. Order'!P751=\"\",\"\",'1. Order'!P751)","v":{"$error":"#N/A"}},{"$f":"IF('1. Order'!Q751=\"\",\"\",'1. Order'!Q751)","v":""},{"$f":"IF('1. Order'!R751=\"\",\"\",'1. Order'!R751)","v":""},{"$f":"IF('1. Order'!S751=\"\",\"\",'1. Order'!S751)","v":""},{"$f":"IF('1. Order'!V751=\"\",\"\",'1. Order'!V751)","v":""},{"$f":"IF('1. Order'!W751=\"\",\"\",'1. Order'!W751)","v":""},{"$f":"IF('1. Order'!X751=\"\",\"\",'1. Order'!X751)","v":"EUR"},{"$f":"IF('1. Order'!Y751=\"\",\"\",'1. Order'!Y751)","v":""},{"$f":"IF('1. Order'!Z751=\"\",\"\",'1. Order'!Z751)","v":""},{"$f":"IF('1. Order'!AA751=\"\",\"\",'1. Order'!AA751)","v":""},null,{"$f":"IF('1. Order'!AS751=\"\",\"\",'1. Order'!AS751)","v":""},{"$f":"IF('1. Order'!AT751=\"\",\"\",'1. Order'!AT751)","v":""},null,null,null,null,null,null,null,{"$f":"IF('1. Order'!AX751=\"\",\"\",'1. Order'!AX751)","v":""},{"$f":"IF('1. Order'!AY751=\"\",\"\",'1. Order'!AY751)","v":""},{"$f":"IF('1. Order'!AZ751=\"\",\"\",'1. Order'!AZ751)","v":""},{"$f":"IF('1. Order'!BA751=\"\",\"\",'1. Order'!BA751)","v":""},{"$f":"IF('1. Order'!BC751=\"\",\"\",'1. Order'!BC751)","v":""},{"$f":"IF('1. Order'!BD751=\"\",\"\",'1. Order'!BD751)","v":6},{"$f":"IF('1. Order'!BE751=\"\",\"\",'1. Order'!BE751)","v":"None"},{"$f":"IF('1. Order'!BF751=\"\",\"\",'1. Order'!BF751)","v":"Parcel"},{"$f":"IF('1. Order'!BG751=\"\",\"\",'1. Order'!BG751)","v":"ZWO"}]
[{"$f":"IF('1. Order'!F752=\"\",\"\",'1. Order'!F752)","v":""},{"$f":"IF('1. Order'!G752=\"\",\"\",'1. Order'!G752)","v":""},{"$f":"IF('1. Order'!H752=\"\",\"\",'1. Order'!H752)","v":""},{"$f":"IF('1. Order'!I752=\"\",\"\",'1. Order'!I752)","v":""},{"$f":"IF('1. Order'!J752=\"\",\"\",'1. Order'!J752)","v":""},{"$f":"IF('1. Order'!K752=\"\",\"\",'1. Order'!K752)","v":""},{"$f":"IF('1. Order'!L752=\"\",\"\",'1. Order'!L752)","v":""},{"$f":"IF('1. Order'!M752=\"\",\"\",'1. Order'!M752)","v":""},{"$f":"IF('1. Order'!N752=\"\",\"\",'1. Order'!N752)","v":""},{"$f":"IF('1. Order'!O752=\"\",\"\",'1. Order'!O752)","v":{"$error":"#N/A"}},{"$f":"IF('1. Order'!P752=\"\",\"\",'1. Order'!P752)","v":{"$error":"#N/A"}},{"$f":"IF('1. Order'!Q752=\"\",\"\",'1. Order'!Q752)","v":""},{"$f":"IF('1. Order'!R752=\"\",\"\",'1. Order'!R752)","v":""},{"$f":"IF('1. Order'!S752=\"\",\"\",'1. Order'!S752)","v":""},{"$f":"IF('1. Order'!V752=\"\",\"\",'1. Order'!V752)","v":""},{"$f":"IF('1. Order'!W752=\"\",\"\",'1. Order'!W752)","v":""},{"$f":"IF('1. Order'!X752=\"\",\"\",'1. Order'!X752)","v":"EUR"},{"$f":"IF('1. Order'!Y752=\"\",\"\",'1. Order'!Y752)","v":""},{"$f":"IF('1. Order'!Z752=\"\",\"\",'1. Order'!Z752)","v":""},{"$f":"IF('1. Order'!AA752=\"\",\"\",'1. Order'!AA752)","v":""},null,{"$f":"IF('1. Order'!AS752=\"\",\"\",'1. Order'!AS752)","v":""},{"$f":"IF('1. Order'!AT752=\"\",\"\",'1. Order'!AT752)","v":""},null,null,null,null,null,null,null,{"$f":"IF('1. Order'!AX752=\"\",\"\",'1. Order'!AX752)","v":""},{"$f":"IF('1. Order'!AY752=\"\",\"\",'1. Order'!AY752)","v":""},{"$f":"IF('1. Order'!AZ752=\"\",\"\",'1. Order'!AZ752)","v":""},{"$f":"IF('1. Order'!BA752=\"\",\"\",'1. Order'!BA752)","v":""},{"$f":"IF('1. Order'!BC752=\"\",\"\",'1. Order'!BC752)","v":""},{"$f":"IF('1. Order'!BD752=\"\",\"\",'1. Order'!BD752)","v":6},{"$f":"IF('1. Order'!BE752=\"\",\"\",'1. Order'!BE752)","v":"None"},{"$f":"IF('1. Order'!BF752=\"\",\"\",'1. Order'!BF752)","v":"Parcel"},{"$f":"IF('1. Order'!BG752=\"\",\"\",'1. Order'!BG752)","v":"ZWO"}]
[{"$f":"IF('1. Order'!F753=\"\",\"\",'1. Order'!F753)","v":""},{"$f":"IF('1. Order'!G753=\"\",\"\",'1. Order'!G753)","v":""},{"$f":"IF('1. Order'!H753=\"\",\"\",'1. Order'!H753)","v":""},{"$f":"IF('1. Order'!I753=\"\",\"\",'1. Order'!I753)","v":""},{"$f":"IF('1. Order'!J753=\"\",\"\",'1. Order'!J753)","v":""},{"$f":"IF('1. Order'!K753=\"\",\"\",'1. Order'!K753)","v":""},{"$f":"IF('1. Order'!L753=\"\",\"\",'1. Order'!L753)","v":""},{"$f":"IF('1. Order'!M753=\"\",\"\",'1. Order'!M753)","v":""},{"$f":"IF('1. Order'!N753=\"\",\"\",'1. Order'!N753)","v":""},{"$f":"IF('1. Order'!O753=\"\",\"\",'1. Order'!O753)","v":{"$error":"#N/A"}},{"$f":"IF('1. Order'!P753=\"\",\"\",'1. Order'!P753)","v":{"$error":"#N/A"}},{"$f":"IF('1. Order'!Q753=\"\",\"\",'1. Order'!Q753)","v":""},{"$f":"IF('1. Order'!R753=\"\",\"\",'1. Order'!R753)","v":""},{"$f":"IF('1. Order'!S753=\"\",\"\",'1. Order'!S753)","v":""},{"$f":"IF('1. Order'!V753=\"\",\"\",'1. Order'!V753)","v":""},{"$f":"IF('1. Order'!W753=\"\",\"\",'1. Order'!W753)","v":""},{"$f":"IF('1. Order'!X753=\"\",\"\",'1. Order'!X753)","v":"EUR"},{"$f":"IF('1. Order'!Y753=\"\",\"\",'1. Order'!Y753)","v":""},{"$f":"IF('1. Order'!Z753=\"\",\"\",'1. Order'!Z753)","v":""},{"$f":"IF('1. Order'!AA753=\"\",\"\",'1. Order'!AA753)","v":""},null,{"$f":"IF('1. Order'!AS753=\"\",\"\",'1. Order'!AS753)","v":""},{"$f":"IF('1. Order'!AT753=\"\",\"\",'1. Order'!AT753)","v":""},null,null,null,null,null,null,null,{"$f":"IF('1. Order'!AX753=\"\",\"\",'1. Order'!AX753)","v":""},{"$f":"IF('1. Order'!AY753=\"\",\"\",'1. Order'!AY753)","v":""},{"$f":"IF('1. Order'!AZ753=\"\",\"\",'1. Order'!AZ753)","v":""},{"$f":"IF('1. Order'!BA753=\"\",\"\",'1. Order'!BA753)","v":""},{"$f":"IF('1. Order'!BC753=\"\",\"\",'1. Order'!BC753)","v":""},{"$f":"IF('1. Order'!BD753=\"\",\"\",'1. Order'!BD753)","v":6},{"$f":"IF('1. Order'!BE753=\"\",\"\",'1. Order'!BE753)","v":"None"},{"$f":"IF('1. Order'!BF753=\"\",\"\",'1. Order'!BF753)","v":"Parcel"},{"$f":"IF('1. Order'!BG753=\"\",\"\",'1. Order'!BG753)","v":"ZWO"}]
[{"$f":"IF('1. Order'!F754=\"\",\"\",'1. Order'!F754)","v":""},{"$f":"IF('1. Order'!G754=\"\",\"\",'1. Order'!G754)","v":""},{"$f":"IF('1. Order'!H754=\"\",\"\",'1. Order'!H754)","v":""},{"$f":"IF('1. Order'!I754=\"\",\"\",'1. Order'!I754)","v":""},{"$f":"IF('1. Order'!J754=\"\",\"\",'1. Order'!J754)","v":""},{"$f":"IF('1. Order'!K754=\"\",\"\",'1. Order'!K754)","v":""},{"$f":"IF('1. Order'!L754=\"\",\"\",'1. Order'!L754)","v":""},{"$f":"IF('1. Order'!M754=\"\",\"\",'1. Order'!M754)","v":""},{"$f":"IF('1. Order'!N754=\"\",\"\",'1. Order'!N754)","v":""},{"$f":"IF('1. Order'!O754=\"\",\"\",'1. Order'!O754)","v":{"$error":"#N/A"}},{"$f":"IF('1. Order'!P754=\"\",\"\",'1. Order'!P754)","v":{"$error":"#N/A"}},{"$f":"IF('1. Order'!Q754=\"\",\"\",'1. Order'!Q754)","v":""},{"$f":"IF('1. Order'!R754=\"\",\"\",'1. Order'!R754)","v":""},{"$f":"IF('1. Order'!S754=\"\",\"\",'1. Order'!S754)","v":""},{"$f":"IF('1. Order'!V754=\"\",\"\",'1. Order'!V754)","v":""},{"$f":"IF('1. Order'!W754=\"\",\"\",'1. Order'!W754)","v":""},{"$f":"IF('1. Order'!X754=\"\",\"\",'1. Order'!X754)","v":"EUR"},{"$f":"IF('1. Order'!Y754=\"\",\"\",'1. Order'!Y754)","v":""},{"$f":"IF('1. Order'!Z754=\"\",\"\",'1. Order'!Z754)","v":""},{"$f":"IF('1. Order'!AA754=\"\",\"\",'1. Order'!AA754)","v":""},null,{"$f":"IF('1. Order'!AS754=\"\",\"\",'1. Order'!AS754)","v":""},{"$f":"IF('1. Order'!AT754=\"\",\"\",'1. Order'!AT754)","v":""},null,null,null,null,null,null,null,{"$f":"IF('1. Order'!AX754=\"\",\"\",'1. Order'!AX754)","v":""},{"$f":"IF('1. Order'!AY754=\"\",\"\",'1. Order'!AY754)","v":""},{"$f":"IF('1. Order'!AZ754=\"\",\"\",'1. Order'!AZ754)","v":""},{"$f":"IF('1. Order'!BA754=\"\",\"\",'1. Order'!BA754)","v":""},{"$f":"IF('1. Order'!BC754=\"\",\"\",'1. Order'!BC754)","v":""},{"$f":"IF('1. Order'!BD754=\"\",\"\",'1. Order'!BD754)","v":6},{"$f":"IF('1. Order'!BE754=\"\",\"\",'1. Order'!BE754)","v":"None"},{"$f":"IF('1. Order'!BF754=\"\",\"\",'1. Order'!BF754)","v":"Parcel"},{"$f":"IF('1. Order'!BG754=\"\",\"\",'1. Order'!BG754)","v":"ZWO"}]
[{"$f":"IF('1. Order'!F755=\"\",\"\",'1. Order'!F755)","v":""},{"$f":"IF('1. Order'!G755=\"\",\"\",'1. Order'!G755)","v":""},{"$f":"IF('1. Order'!H755=\"\",\"\",'1. Order'!H755)","v":""},{"$f":"IF('1. Order'!I755=\"\",\"\",'1. Order'!I755)","v":""},{"$f":"IF('1. Order'!J755=\"\",\"\",'1. Order'!J755)","v":""},{"$f":"IF('1. Order'!K755=\"\",\"\",'1. Order'!K755)","v":""},{"$f":"IF('1. Order'!L755=\"\",\"\",'1. Order'!L755)","v":""},{"$f":"IF('1. Order'!M755=\"\",\"\",'1. Order'!M755)","v":""},{"$f":"IF('1. Order'!N755=\"\",\"\",'1. Order'!N755)","v":""},{"$f":"IF('1. Order'!O755=\"\",\"\",'1. Order'!O755)","v":{"$error":"#N/A"}},{"$f":"IF('1. Order'!P755=\"\",\"\",'1. Order'!P755)","v":{"$error":"#N/A"}},{"$f":"IF('1. Order'!Q755=\"\",\"\",'1. Order'!Q755)","v":""},{"$f":"IF('1. Order'!R755=\"\",\"\",'1. Order'!R755)","v":""},{"$f":"IF('1. Order'!S755=\"\",\"\",'1. Order'!S755)","v":""},{"$f":"IF('1. Order'!V755=\"\",\"\",'1. Order'!V755)","v":""},{"$f":"IF('1. Order'!W755=\"\",\"\",'1. Order'!W755)","v":""},{"$f":"IF('1. Order'!X755=\"\",\"\",'1. Order'!X755)","v":"EUR"},{"$f":"IF('1. Order'!Y755=\"\",\"\",'1. Order'!Y755)","v":""},{"$f":"IF('1. Order'!Z755=\"\",\"\",'1. Order'!Z755)","v":""},{"$f":"IF('1. Order'!AA755=\"\",\"\",'1. Order'!AA755)","v":""},null,{"$f":"IF('1. Order'!AS755=\"\",\"\",'1. Order'!AS755)","v":""},{"$f":"IF('1. Order'!AT755=\"\",\"\",'1. Order'!AT755)","v":""},null,null,null,null,null,null,null,{"$f":"IF('1. Order'!AX755=\"\",\"\",'1. Order'!AX755)","v":""},{"$f":"IF('1. Order'!AY755=\"\",\"\",'1. Order'!AY755)","v":""},{"$f":"IF('1. Order'!AZ755=\"\",\"\",'1. Order'!AZ755)","v":""},{"$f":"IF('1. Order'!BA755=\"\",\"\",'1. Order'!BA755)","v":""},{"$f":"IF('1. Order'!BC755=\"\",\"\",'1. Order'!BC755)","v":""},{"$f":"IF('1. Order'!BD755=\"\",\"\",'1. Order'!BD755)","v":6},{"$f":"IF('1. Order'!BE755=\"\",\"\",'1. Order'!BE755)","v":"None"},{"$f":"IF('1. Order'!BF755=\"\",\"\",'1. Order'!BF755)","v":"Parcel"},{"$f":"IF('1. Order'!BG755=\"\",\"\",'1. Order'!BG755)","v":"ZWO"}]
[{"$f":"IF('1. Order'!F756=\"\",\"\",'1. Order'!F756)","v":""},{"$f":"IF('1. Order'!G756=\"\",\"\",'1. Order'!G756)","v":""},{"$f":"IF('1. Order'!H756=\"\",\"\",'1. Order'!H756)","v":""},{"$f":"IF('1. Order'!I756=\"\",\"\",'1. Order'!I756)","v":""},{"$f":"IF('1. Order'!J756=\"\",\"\",'1. Order'!J756)","v":""},{"$f":"IF('1. Order'!K756=\"\",\"\",'1. Order'!K756)","v":""},{"$f":"IF('1. Order'!L756=\"\",\"\",'1. Order'!L756)","v":""},{"$f":"IF('1. Order'!M756=\"\",\"\",'1. Order'!M756)","v":""},{"$f":"IF('1. Order'!N756=\"\",\"\",'1. Order'!N756)","v":""},{"$f":"IF('1. Order'!O756=\"\",\"\",'1. Order'!O756)","v":{"$error":"#N/A"}},{"$f":"IF('1. Order'!P756=\"\",\"\",'1. Order'!P756)","v":{"$error":"#N/A"}},{"$f":"IF('1. Order'!Q756=\"\",\"\",'1. Order'!Q756)","v":""},{"$f":"IF('1. Order'!R756=\"\",\"\",'1. Order'!R756)","v":""},{"$f":"IF('1. Order'!S756=\"\",\"\",'1. Order'!S756)","v":""},{"$f":"IF('1. Order'!V756=\"\",\"\",'1. Order'!V756)","v":""},{"$f":"IF('1. Order'!W756=\"\",\"\",'1. Order'!W756)","v":""},{"$f":"IF('1. Order'!X756=\"\",\"\",'1. Order'!X756)","v":"EUR"},{"$f":"IF('1. Order'!Y756=\"\",\"\",'1. Order'!Y756)","v":""},{"$f":"IF('1. Order'!Z756=\"\",\"\",'1. Order'!Z756)","v":""},{"$f":"IF('1. Order'!AA756=\"\",\"\",'1. Order'!AA756)","v":""},null,{"$f":"IF('1. Order'!AS756=\"\",\"\",'1. Order'!AS756)","v":""},{"$f":"IF('1. Order'!AT756=\"\",\"\",'1. Order'!AT756)","v":""},null,null,null,null,null,null,null,{"$f":"IF('1. Order'!AX756=\"\",\"\",'1. Order'!AX756)","v":""},{"$f":"IF('1. Order'!AY756=\"\",\"\",'1. Order'!AY756)","v":""},{"$f":"IF('1. Order'!AZ756=\"\",\"\",'1. Order'!AZ756)","v":""},{"$f":"IF('1. Order'!BA756=\"\",\"\",'1. Order'!BA756)","v":""},{"$f":"IF('1. Order'!BC756=\"\",\"\",'1. Order'!BC756)","v":""},{"$f":"IF('1. Order'!BD756=\"\",\"\",'1. Order'!BD756)","v":6},{"$f":"IF('1. Order'!BE756=\"\",\"\",'1. Order'!BE756)","v":"None"},{"$f":"IF('1. Order'!BF756=\"\",\"\",'1. Order'!BF756)","v":"Parcel"},{"$f":"IF('1. Order'!BG756=\"\",\"\",'1. Order'!BG756)","v":"ZWO"}]
[{"$f":"IF('1. Order'!F757=\"\",\"\",'1. Order'!F757)","v":""},{"$f":"IF('1. Order'!G757=\"\",\"\",'1. Order'!G757)","v":""},{"$f":"IF('1. Order'!H757=\"\",\"\",'1. Order'!H757)","v":""},{"$f":"IF('1. Order'!I757=\"\",\"\",'1. Order'!I757)","v":""},{"$f":"IF('1. Order'!J757=\"\",\"\",'1. Order'!J757)","v":""},{"$f":"IF('1. Order'!K757=\"\",\"\",'1. Order'!K757)","v":""},{"$f":"IF('1. Order'!L757=\"\",\"\",'1. Order'!L757)","v":""},{"$f":"IF('1. Order'!M757=\"\",\"\",'1. Order'!M757)","v":""},{"$f":"IF('1. Order'!N757=\"\",\"\",'1. Order'!N757)","v":""},{"$f":"IF('1. Order'!O757=\"\",\"\",'1. Order'!O757)","v":{"$error":"#N/A"}},{"$f":"IF('1. Order'!P757=\"\",\"\",'1. Order'!P757)","v":{"$error":"#N/A"}},{"$f":"IF('1. Order'!Q757=\"\",\"\",'1. Order'!Q757)","v":""},{"$f":"IF('1. Order'!R757=\"\",\"\",'1. Order'!R757)","v":""},{"$f":"IF('1. Order'!S757=\"\",\"\",'1. Order'!S757)","v":""},{"$f":"IF('1. Order'!V757=\"\",\"\",'1. Order'!V757)","v":""},{"$f":"IF('1. Order'!W757=\"\",\"\",'1. Order'!W757)","v":""},{"$f":"IF('1. Order'!X757=\"\",\"\",'1. Order'!X757)","v":"EUR"},{"$f":"IF('1. Order'!Y757=\"\",\"\",'1. Order'!Y757)","v":""},{"$f":"IF('1. Order'!Z757=\"\",\"\",'1. Order'!Z757)","v":""},{"$f":"IF('1. Order'!AA757=\"\",\"\",'1. Order'!AA757)","v":""},null,{"$f":"IF('1. Order'!AS757=\"\",\"\",'1. Order'!AS757)","v":""},{"$f":"IF('1. Order'!AT757=\"\",\"\",'1. Order'!AT757)","v":""},null,null,null,null,null,null,null,{"$f":"IF('1. Order'!AX757=\"\",\"\",'1. Order'!AX757)","v":""},{"$f":"IF('1. Order'!AY757=\"\",\"\",'1. Order'!AY757)","v":""},{"$f":"IF('1. Order'!AZ757=\"\",\"\",'1. Order'!AZ757)","v":""},{"$f":"IF('1. Order'!BA757=\"\",\"\",'1. Order'!BA757)","v":""},{"$f":"IF('1. Order'!BC757=\"\",\"\",'1. Order'!BC757)","v":""},{"$f":"IF('1. Order'!BD757=\"\",\"\",'1. Order'!BD757)","v":6},{"$f":"IF('1. Order'!BE757=\"\",\"\",'1. Order'!BE757)","v":"None"},{"$f":"IF('1. Order'!BF757=\"\",\"\",'1. Order'!BF757)","v":"Parcel"},{"$f":"IF('1. Order'!BG757=\"\",\"\",'1. Order'!BG757)","v":"ZWO"}]
[{"$f":"IF('1. Order'!F758=\"\",\"\",'1. Order'!F758)","v":""},{"$f":"IF('1. Order'!G758=\"\",\"\",'1. Order'!G758)","v":""},{"$f":"IF('1. Order'!H758=\"\",\"\",'1. Order'!H758)","v":""},{"$f":"IF('1. Order'!I758=\"\",\"\",'1. Order'!I758)","v":""},{"$f":"IF('1. Order'!J758=\"\",\"\",'1. Order'!J758)","v":""},{"$f":"IF('1. Order'!K758=\"\",\"\",'1. Order'!K758)","v":""},{"$f":"IF('1. Order'!L758=\"\",\"\",'1. Order'!L758)","v":""},{"$f":"IF('1. Order'!M758=\"\",\"\",'1. Order'!M758)","v":""},{"$f":"IF('1. Order'!N758=\"\",\"\",'1. Order'!N758)","v":""},{"$f":"IF('1. Order'!O758=\"\",\"\",'1. Order'!O758)","v":{"$error":"#N/A"}},{"$f":"IF('1. Order'!P758=\"\",\"\",'1. Order'!P758)","v":{"$error":"#N/A"}},{"$f":"IF('1. Order'!Q758=\"\",\"\",'1. Order'!Q758)","v":""},{"$f":"IF('1. Order'!R758=\"\",\"\",'1. Order'!R758)","v":""},{"$f":"IF('1. Order'!S758=\"\",\"\",'1. Order'!S758)","v":""},{"$f":"IF('1. Order'!V758=\"\",\"\",'1. Order'!V758)","v":""},{"$f":"IF('1. Order'!W758=\"\",\"\",'1. Order'!W758)","v":""},{"$f":"IF('1. Order'!X758=\"\",\"\",'1. Order'!X758)","v":"EUR"},{"$f":"IF('1. Order'!Y758=\"\",\"\",'1. Order'!Y758)","v":""},{"$f":"IF('1. Order'!Z758=\"\",\"\",'1. Order'!Z758)","v":""},{"$f":"IF('1. Order'!AA758=\"\",\"\",'1. Order'!AA758)","v":""},null,{"$f":"IF('1. Order'!AS758=\"\",\"\",'1. Order'!AS758)","v":""},{"$f":"IF('1. Order'!AT758=\"\",\"\",'1. Order'!AT758)","v":""},null,null,null,null,null,null,null,{"$f":"IF('1. Order'!AX758=\"\",\"\",'1. Order'!AX758)","v":""},{"$f":"IF('1. Order'!AY758=\"\",\"\",'1. Order'!AY758)","v":""},{"$f":"IF('1. Order'!AZ758=\"\",\"\",'1. Order'!AZ758)","v":""},{"$f":"IF('1. Order'!BA758=\"\",\"\",'1. Order'!BA758)","v":""},{"$f":"IF('1. Order'!BC758=\"\",\"\",'1. Order'!BC758)","v":""},{"$f":"IF('1. Order'!BD758=\"\",\"\",'1. Order'!BD758)","v":6},{"$f":"IF('1. Order'!BE758=\"\",\"\",'1. Order'!BE758)","v":"None"},{"$f":"IF('1. Order'!BF758=\"\",\"\",'1. Order'!BF758)","v":"Parcel"},{"$f":"IF('1. Order'!BG758=\"\",\"\",'1. Order'!BG758)","v":"ZWO"}]
[{"$f":"IF('1. Order'!F759=\"\",\"\",'1. Order'!F759)","v":""},{"$f":"IF('1. Order'!G759=\"\",\"\",'1. Order'!G759)","v":""},{"$f":"IF('1. Order'!H759=\"\",\"\",'1. Order'!H759)","v":""},{"$f":"IF('1. Order'!I759=\"\",\"\",'1. Order'!I759)","v":""},{"$f":"IF('1. Order'!J759=\"\",\"\",'1. Order'!J759)","v":""},{"$f":"IF('1. Order'!K759=\"\",\"\",'1. Order'!K759)","v":""},{"$f":"IF('1. Order'!L759=\"\",\"\",'1. Order'!L759)","v":""},{"$f":"IF('1. Order'!M759=\"\",\"\",'1. Order'!M759)","v":""},{"$f":"IF('1. Order'!N759=\"\",\"\",'1. Order'!N759)","v":""},{"$f":"IF('1. Order'!O759=\"\",\"\",'1. Order'!O759)","v":{"$error":"#N/A"}},{"$f":"IF('1. Order'!P759=\"\",\"\",'1. Order'!P759)","v":{"$error":"#N/A"}},{"$f":"IF('1. Order'!Q759=\"\",\"\",'1. Order'!Q759)","v":""},{"$f":"IF('1. Order'!R759=\"\",\"\",'1. Order'!R759)","v":""},{"$f":"IF('1. Order'!S759=\"\",\"\",'1. Order'!S759)","v":""},{"$f":"IF('1. Order'!V759=\"\",\"\",'1. Order'!V759)","v":""},{"$f":"IF('1. Order'!W759=\"\",\"\",'1. Order'!W759)","v":""},{"$f":"IF('1. Order'!X759=\"\",\"\",'1. Order'!X759)","v":"EUR"},{"$f":"IF('1. Order'!Y759=\"\",\"\",'1. Order'!Y759)","v":""},{"$f":"IF('1. Order'!Z759=\"\",\"\",'1. Order'!Z759)","v":""},{"$f":"IF('1. Order'!AA759=\"\",\"\",'1. Order'!AA759)","v":""},null,{"$f":"IF('1. Order'!AS759=\"\",\"\",'1. Order'!AS759)","v":""},{"$f":"IF('1. Order'!AT759=\"\",\"\",'1. Order'!AT759)","v":""},null,null,null,null,null,null,null,{"$f":"IF('1. Order'!AX759=\"\",\"\",'1. Order'!AX759)","v":""},{"$f":"IF('1. Order'!AY759=\"\",\"\",'1. Order'!AY759)","v":""},{"$f":"IF('1. Order'!AZ759=\"\",\"\",'1. Order'!AZ759)","v":""},{"$f":"IF('1. Order'!BA759=\"\",\"\",'1. Order'!BA759)","v":""},{"$f":"IF('1. Order'!BC759=\"\",\"\",'1. Order'!BC759)","v":""},{"$f":"IF('1. Order'!BD759=\"\",\"\",'1. Order'!BD759)","v":6},{"$f":"IF('1. Order'!BE759=\"\",\"\",'1. Order'!BE759)","v":"None"},{"$f":"IF('1. Order'!BF759=\"\",\"\",'1. Order'!BF759)","v":"Parcel"},{"$f":"IF('1. Order'!BG759=\"\",\"\",'1. Order'!BG759)","v":"ZWO"}]
[{"$f":"IF('1. Order'!F760=\"\",\"\",'1. Order'!F760)","v":""},{"$f":"IF('1. Order'!G760=\"\",\"\",'1. Order'!G760)","v":""},{"$f":"IF('1. Order'!H760=\"\",\"\",'1. Order'!H760)","v":""},{"$f":"IF('1. Order'!I760=\"\",\"\",'1. Order'!I760)","v":""},{"$f":"IF('1. Order'!J760=\"\",\"\",'1. Order'!J760)","v":""},{"$f":"IF('1. Order'!K760=\"\",\"\",'1. Order'!K760)","v":""},{"$f":"IF('1. Order'!L760=\"\",\"\",'1. Order'!L760)","v":""},{"$f":"IF('1. Order'!M760=\"\",\"\",'1. Order'!M760)","v":""},{"$f":"IF('1. Order'!N760=\"\",\"\",'1. Order'!N760)","v":""},{"$f":"IF('1. Order'!O760=\"\",\"\",'1. Order'!O760)","v":{"$error":"#N/A"}},{"$f":"IF('1. Order'!P760=\"\",\"\",'1. Order'!P760)","v":{"$error":"#N/A"}},{"$f":"IF('1. Order'!Q760=\"\",\"\",'1. Order'!Q760)","v":""},{"$f":"IF('1. Order'!R760=\"\",\"\",'1. Order'!R760)","v":""},{"$f":"IF('1. Order'!S760=\"\",\"\",'1. Order'!S760)","v":""},{"$f":"IF('1. Order'!V760=\"\",\"\",'1. Order'!V760)","v":""},{"$f":"IF('1. Order'!W760=\"\",\"\",'1. Order'!W760)","v":""},{"$f":"IF('1. Order'!X760=\"\",\"\",'1. Order'!X760)","v":"EUR"},{"$f":"IF('1. Order'!Y760=\"\",\"\",'1. Order'!Y760)","v":""},{"$f":"IF('1. Order'!Z760=\"\",\"\",'1. Order'!Z760)","v":""},{"$f":"IF('1. Order'!AA760=\"\",\"\",'1. Order'!AA760)","v":""},null,{"$f":"IF('1. Order'!AS760=\"\",\"\",'1. Order'!AS760)","v":""},{"$f":"IF('1. Order'!AT760=\"\",\"\",'1. Order'!AT760)","v":""},null,null,null,null,null,null,null,{"$f":"IF('1. Order'!AX760=\"\",\"\",'1. Order'!AX760)","v":""},{"$f":"IF('1. Order'!AY760=\"\",\"\",'1. Order'!AY760)","v":""},{"$f":"IF('1. Order'!AZ760=\"\",\"\",'1. Order'!AZ760)","v":""},{"$f":"IF('1. Order'!BA760=\"\",\"\",'1. Order'!BA760)","v":""},{"$f":"IF('1. Order'!BC760=\"\",\"\",'1. Order'!BC760)","v":""},{"$f":"IF('1. Order'!BD760=\"\",\"\",'1. Order'!BD760)","v":6},{"$f":"IF('1. Order'!BE760=\"\",\"\",'1. Order'!BE760)","v":"None"},{"$f":"IF('1. Order'!BF760=\"\",\"\",'1. Order'!BF760)","v":"Parcel"},{"$f":"IF('1. Order'!BG760=\"\",\"\",'1. Order'!BG760)","v":"ZWO"}]
[{"$f":"IF('1. Order'!F761=\"\",\"\",'1. Order'!F761)","v":""},{"$f":"IF('1. Order'!G761=\"\",\"\",'1. Order'!G761)","v":""},{"$f":"IF('1. Order'!H761=\"\",\"\",'1. Order'!H761)","v":""},{"$f":"IF('1. Order'!I761=\"\",\"\",'1. Order'!I761)","v":""},{"$f":"IF('1. Order'!J761=\"\",\"\",'1. Order'!J761)","v":""},{"$f":"IF('1. Order'!K761=\"\",\"\",'1. Order'!K761)","v":""},{"$f":"IF('1. Order'!L761=\"\",\"\",'1. Order'!L761)","v":""},{"$f":"IF('1. Order'!M761=\"\",\"\",'1. Order'!M761)","v":""},{"$f":"IF('1. Order'!N761=\"\",\"\",'1. Order'!N761)","v":""},{"$f":"IF('1. Order'!O761=\"\",\"\",'1. Order'!O761)","v":{"$error":"#N/A"}},{"$f":"IF('1. Order'!P761=\"\",\"\",'1. Order'!P761)","v":{"$error":"#N/A"}},{"$f":"IF('1. Order'!Q761=\"\",\"\",'1. Order'!Q761)","v":""},{"$f":"IF('1. Order'!R761=\"\",\"\",'1. Order'!R761)","v":""},{"$f":"IF('1. Order'!S761=\"\",\"\",'1. Order'!S761)","v":""},{"$f":"IF('1. Order'!V761=\"\",\"\",'1. Order'!V761)","v":""},{"$f":"IF('1. Order'!W761=\"\",\"\",'1. Order'!W761)","v":""},{"$f":"IF('1. Order'!X761=\"\",\"\",'1. Order'!X761)","v":"EUR"},{"$f":"IF('1. Order'!Y761=\"\",\"\",'1. Order'!Y761)","v":""},{"$f":"IF('1. Order'!Z761=\"\",\"\",'1. Order'!Z761)","v":""},{"$f":"IF('1. Order'!AA761=\"\",\"\",'1. Order'!AA761)","v":""},null,{"$f":"IF('1. Order'!AS761=\"\",\"\",'1. Order'!AS761)","v":""},{"$f":"IF('1. Order'!AT761=\"\",\"\",'1. Order'!AT761)","v":""},null,null,null,null,null,null,null,{"$f":"IF('1. Order'!AX761=\"\",\"\",'1. Order'!AX761)","v":""},{"$f":"IF('1. Order'!AY761=\"\",\"\",'1. Order'!AY761)","v":""},{"$f":"IF('1. Order'!AZ761=\"\",\"\",'1. Order'!AZ761)","v":""},{"$f":"IF('1. Order'!BA761=\"\",\"\",'1. Order'!BA761)","v":""},{"$f":"IF('1. Order'!BC761=\"\",\"\",'1. Order'!BC761)","v":""},{"$f":"IF('1. Order'!BD761=\"\",\"\",'1. Order'!BD761)","v":6},{"$f":"IF('1. Order'!BE761=\"\",\"\",'1. Order'!BE761)","v":"None"},{"$f":"IF('1. Order'!BF761=\"\",\"\",'1. Order'!BF761)","v":"Parcel"},{"$f":"IF('1. Order'!BG761=\"\",\"\",'1. Order'!BG761)","v":"ZWO"}]
[{"$f":"IF('1. Order'!F762=\"\",\"\",'1. Order'!F762)","v":""},{"$f":"IF('1. Order'!G762=\"\",\"\",'1. Order'!G762)","v":""},{"$f":"IF('1. Order'!H762=\"\",\"\",'1. Order'!H762)","v":""},{"$f":"IF('1. Order'!I762=\"\",\"\",'1. Order'!I762)","v":""},{"$f":"IF('1. Order'!J762=\"\",\"\",'1. Order'!J762)","v":""},{"$f":"IF('1. Order'!K762=\"\",\"\",'1. Order'!K762)","v":""},{"$f":"IF('1. Order'!L762=\"\",\"\",'1. Order'!L762)","v":""},{"$f":"IF('1. Order'!M762=\"\",\"\",'1. Order'!M762)","v":""},{"$f":"IF('1. Order'!N762=\"\",\"\",'1. Order'!N762)","v":""},{"$f":"IF('1. Order'!O762=\"\",\"\",'1. Order'!O762)","v":{"$error":"#N/A"}},{"$f":"IF('1. Order'!P762=\"\",\"\",'1. Order'!P762)","v":{"$error":"#N/A"}},{"$f":"IF('1. Order'!Q762=\"\",\"\",'1. Order'!Q762)","v":""},{"$f":"IF('1. Order'!R762=\"\",\"\",'1. Order'!R762)","v":""},{"$f":"IF('1. Order'!S762=\"\",\"\",'1. Order'!S762)","v":""},{"$f":"IF('1. Order'!V762=\"\",\"\",'1. Order'!V762)","v":""},{"$f":"IF('1. Order'!W762=\"\",\"\",'1. Order'!W762)","v":""},{"$f":"IF('1. Order'!X762=\"\",\"\",'1. Order'!X762)","v":"EUR"},{"$f":"IF('1. Order'!Y762=\"\",\"\",'1. Order'!Y762)","v":""},{"$f":"IF('1. Order'!Z762=\"\",\"\",'1. Order'!Z762)","v":""},{"$f":"IF('1. Order'!AA762=\"\",\"\",'1. Order'!AA762)","v":""},null,{"$f":"IF('1. Order'!AS762=\"\",\"\",'1. Order'!AS762)","v":""},{"$f":"IF('1. Order'!AT762=\"\",\"\",'1. Order'!AT762)","v":""},null,null,null,null,null,null,null,{"$f":"IF('1. Order'!AX762=\"\",\"\",'1. Order'!AX762)","v":""},{"$f":"IF('1. Order'!AY762=\"\",\"\",'1. Order'!AY762)","v":""},{"$f":"IF('1. Order'!AZ762=\"\",\"\",'1. Order'!AZ762)","v":""},{"$f":"IF('1. Order'!BA762=\"\",\"\",'1. Order'!BA762)","v":""},{"$f":"IF('1. Order'!BC762=\"\",\"\",'1. Order'!BC762)","v":""},{"$f":"IF('1. Order'!BD762=\"\",\"\",'1. Order'!BD762)","v":6},{"$f":"IF('1. Order'!BE762=\"\",\"\",'1. Order'!BE762)","v":"None"},{"$f":"IF('1. Order'!BF762=\"\",\"\",'1. Order'!BF762)","v":"Parcel"},{"$f":"IF('1. Order'!BG762=\"\",\"\",'1. Order'!BG762)","v":"ZWO"}]
[{"$f":"IF('1. Order'!F763=\"\",\"\",'1. Order'!F763)","v":""},{"$f":"IF('1. Order'!G763=\"\",\"\",'1. Order'!G763)","v":""},{"$f":"IF('1. Order'!H763=\"\",\"\",'1. Order'!H763)","v":""},{"$f":"IF('1. Order'!I763=\"\",\"\",'1. Order'!I763)","v":""},{"$f":"IF('1. Order'!J763=\"\",\"\",'1. Order'!J763)","v":""},{"$f":"IF('1. Order'!K763=\"\",\"\",'1. Order'!K763)","v":""},{"$f":"IF('1. Order'!L763=\"\",\"\",'1. Order'!L763)","v":""},{"$f":"IF('1. Order'!M763=\"\",\"\",'1. Order'!M763)","v":""},{"$f":"IF('1. Order'!N763=\"\",\"\",'1. Order'!N763)","v":""},{"$f":"IF('1. Order'!O763=\"\",\"\",'1. Order'!O763)","v":{"$error":"#N/A"}},{"$f":"IF('1. Order'!P763=\"\",\"\",'1. Order'!P763)","v":{"$error":"#N/A"}},{"$f":"IF('1. Order'!Q763=\"\",\"\",'1. Order'!Q763)","v":""},{"$f":"IF('1. Order'!R763=\"\",\"\",'1. Order'!R763)","v":""},{"$f":"IF('1. Order'!S763=\"\",\"\",'1. Order'!S763)","v":""},{"$f":"IF('1. Order'!V763=\"\",\"\",'1. Order'!V763)","v":""},{"$f":"IF('1. Order'!W763=\"\",\"\",'1. Order'!W763)","v":""},{"$f":"IF('1. Order'!X763=\"\",\"\",'1. Order'!X763)","v":"EUR"},{"$f":"IF('1. Order'!Y763=\"\",\"\",'1. Order'!Y763)","v":""},{"$f":"IF('1. Order'!Z763=\"\",\"\",'1. Order'!Z763)","v":""},{"$f":"IF('1. Order'!AA763=\"\",\"\",'1. Order'!AA763)","v":""},null,{"$f":"IF('1. Order'!AS763=\"\",\"\",'1. Order'!AS763)","v":""},{"$f":"IF('1. Order'!AT763=\"\",\"\",'1. Order'!AT763)","v":""},null,null,null,null,null,null,null,{"$f":"IF('1. Order'!AX763=\"\",\"\",'1. Order'!AX763)","v":""},{"$f":"IF('1. Order'!AY763=\"\",\"\",'1. Order'!AY763)","v":""},{"$f":"IF('1. Order'!AZ763=\"\",\"\",'1. Order'!AZ763)","v":""},{"$f":"IF('1. Order'!BA763=\"\",\"\",'1. Order'!BA763)","v":""},{"$f":"IF('1. Order'!BC763=\"\",\"\",'1. Order'!BC763)","v":""},{"$f":"IF('1. Order'!BD763=\"\",\"\",'1. Order'!BD763)","v":6},{"$f":"IF('1. Order'!BE763=\"\",\"\",'1. Order'!BE763)","v":"None"},{"$f":"IF('1. Order'!BF763=\"\",\"\",'1. Order'!BF763)","v":"Parcel"},{"$f":"IF('1. Order'!BG763=\"\",\"\",'1. Order'!BG763)","v":"ZWO"}]
[{"$f":"IF('1. Order'!F764=\"\",\"\",'1. Order'!F764)","v":""},{"$f":"IF('1. Order'!G764=\"\",\"\",'1. Order'!G764)","v":""},{"$f":"IF('1. Order'!H764=\"\",\"\",'1. Order'!H764)","v":""},{"$f":"IF('1. Order'!I764=\"\",\"\",'1. Order'!I764)","v":""},{"$f":"IF('1. Order'!J764=\"\",\"\",'1. Order'!J764)","v":""},{"$f":"IF('1. Order'!K764=\"\",\"\",'1. Order'!K764)","v":""},{"$f":"IF('1. Order'!L764=\"\",\"\",'1. Order'!L764)","v":""},{"$f":"IF('1. Order'!M764=\"\",\"\",'1. Order'!M764)","v":""},{"$f":"IF('1. Order'!N764=\"\",\"\",'1. Order'!N764)","v":""},{"$f":"IF('1. Order'!O764=\"\",\"\",'1. Order'!O764)","v":{"$error":"#N/A"}},{"$f":"IF('1. Order'!P764=\"\",\"\",'1. Order'!P764)","v":{"$error":"#N/A"}},{"$f":"IF('1. Order'!Q764=\"\",\"\",'1. Order'!Q764)","v":""},{"$f":"IF('1. Order'!R764=\"\",\"\",'1. Order'!R764)","v":""},{"$f":"IF('1. Order'!S764=\"\",\"\",'1. Order'!S764)","v":""},{"$f":"IF('1. Order'!V764=\"\",\"\",'1. Order'!V764)","v":""},{"$f":"IF('1. Order'!W764=\"\",\"\",'1. Order'!W764)","v":""},{"$f":"IF('1. Order'!X764=\"\",\"\",'1. Order'!X764)","v":"EUR"},{"$f":"IF('1. Order'!Y764=\"\",\"\",'1. Order'!Y764)","v":""},{"$f":"IF('1. Order'!Z764=\"\",\"\",'1. Order'!Z764)","v":""},{"$f":"IF('1. Order'!AA764=\"\",\"\",'1. Order'!AA764)","v":""},null,{"$f":"IF('1. Order'!AS764=\"\",\"\",'1. Order'!AS764)","v":""},{"$f":"IF('1. Order'!AT764=\"\",\"\",'1. Order'!AT764)","v":""},null,null,null,null,null,null,null,{"$f":"IF('1. Order'!AX764=\"\",\"\",'1. Order'!AX764)","v":""},{"$f":"IF('1. Order'!AY764=\"\",\"\",'1. Order'!AY764)","v":""},{"$f":"IF('1. Order'!AZ764=\"\",\"\",'1. Order'!AZ764)","v":""},{"$f":"IF('1. Order'!BA764=\"\",\"\",'1. Order'!BA764)","v":""},{"$f":"IF('1. Order'!BC764=\"\",\"\",'1. Order'!BC764)","v":""},{"$f":"IF('1. Order'!BD764=\"\",\"\",'1. Order'!BD764)","v":6},{"$f":"IF('1. Order'!BE764=\"\",\"\",'1. Order'!BE764)","v":"None"},{"$f":"IF('1. Order'!BF764=\"\",\"\",'1. Order'!BF764)","v":"Parcel"},{"$f":"IF('1. Order'!BG764=\"\",\"\",'1. Order'!BG764)","v":"ZWO"}]
[{"$f":"IF('1. Order'!F765=\"\",\"\",'1. Order'!F765)","v":""},{"$f":"IF('1. Order'!G765=\"\",\"\",'1. Order'!G765)","v":""},{"$f":"IF('1. Order'!H765=\"\",\"\",'1. Order'!H765)","v":""},{"$f":"IF('1. Order'!I765=\"\",\"\",'1. Order'!I765)","v":""},{"$f":"IF('1. Order'!J765=\"\",\"\",'1. Order'!J765)","v":""},{"$f":"IF('1. Order'!K765=\"\",\"\",'1. Order'!K765)","v":""},{"$f":"IF('1. Order'!L765=\"\",\"\",'1. Order'!L765)","v":""},{"$f":"IF('1. Order'!M765=\"\",\"\",'1. Order'!M765)","v":""},{"$f":"IF('1. Order'!N765=\"\",\"\",'1. Order'!N765)","v":""},{"$f":"IF('1. Order'!O765=\"\",\"\",'1. Order'!O765)","v":{"$error":"#N/A"}},{"$f":"IF('1. Order'!P765=\"\",\"\",'1. Order'!P765)","v":{"$error":"#N/A"}},{"$f":"IF('1. Order'!Q765=\"\",\"\",'1. Order'!Q765)","v":""},{"$f":"IF('1. Order'!R765=\"\",\"\",'1. Order'!R765)","v":""},{"$f":"IF('1. Order'!S765=\"\",\"\",'1. Order'!S765)","v":""},{"$f":"IF('1. Order'!V765=\"\",\"\",'1. Order'!V765)","v":""},{"$f":"IF('1. Order'!W765=\"\",\"\",'1. Order'!W765)","v":""},{"$f":"IF('1. Order'!X765=\"\",\"\",'1. Order'!X765)","v":"EUR"},{"$f":"IF('1. Order'!Y765=\"\",\"\",'1. Order'!Y765)","v":""},{"$f":"IF('1. Order'!Z765=\"\",\"\",'1. Order'!Z765)","v":""},{"$f":"IF('1. Order'!AA765=\"\",\"\",'1. Order'!AA765)","v":""},null,{"$f":"IF('1. Order'!AS765=\"\",\"\",'1. Order'!AS765)","v":""},{"$f":"IF('1. Order'!AT765=\"\",\"\",'1. Order'!AT765)","v":""},null,null,null,null,null,null,null,{"$f":"IF('1. Order'!AX765=\"\",\"\",'1. Order'!AX765)","v":""},{"$f":"IF('1. Order'!AY765=\"\",\"\",'1. Order'!AY765)","v":""},{"$f":"IF('1. Order'!AZ765=\"\",\"\",'1. Order'!AZ765)","v":""},{"$f":"IF('1. Order'!BA765=\"\",\"\",'1. Order'!BA765)","v":""},{"$f":"IF('1. Order'!BC765=\"\",\"\",'1. Order'!BC765)","v":""},{"$f":"IF('1. Order'!BD765=\"\",\"\",'1. Order'!BD765)","v":6},{"$f":"IF('1. Order'!BE765=\"\",\"\",'1. Order'!BE765)","v":"None"},{"$f":"IF('1. Order'!BF765=\"\",\"\",'1. Order'!BF765)","v":"Parcel"},{"$f":"IF('1. Order'!BG765=\"\",\"\",'1. Order'!BG765)","v":"ZWO"}]
[{"$f":"IF('1. Order'!F766=\"\",\"\",'1. Order'!F766)","v":""},{"$f":"IF('1. Order'!G766=\"\",\"\",'1. Order'!G766)","v":""},{"$f":"IF('1. Order'!H766=\"\",\"\",'1. Order'!H766)","v":""},{"$f":"IF('1. Order'!I766=\"\",\"\",'1. Order'!I766)","v":""},{"$f":"IF('1. Order'!J766=\"\",\"\",'1. Order'!J766)","v":""},{"$f":"IF('1. Order'!K766=\"\",\"\",'1. Order'!K766)","v":""},{"$f":"IF('1. Order'!L766=\"\",\"\",'1. Order'!L766)","v":""},{"$f":"IF('1. Order'!M766=\"\",\"\",'1. Order'!M766)","v":""},{"$f":"IF('1. Order'!N766=\"\",\"\",'1. Order'!N766)","v":""},{"$f":"IF('1. Order'!O766=\"\",\"\",'1. Order'!O766)","v":{"$error":"#N/A"}},{"$f":"IF('1. Order'!P766=\"\",\"\",'1. Order'!P766)","v":{"$error":"#N/A"}},{"$f":"IF('1. Order'!Q766=\"\",\"\",'1. Order'!Q766)","v":""},{"$f":"IF('1. Order'!R766=\"\",\"\",'1. Order'!R766)","v":""},{"$f":"IF('1. Order'!S766=\"\",\"\",'1. Order'!S766)","v":""},{"$f":"IF('1. Order'!V766=\"\",\"\",'1. Order'!V766)","v":""},{"$f":"IF('1. Order'!W766=\"\",\"\",'1. Order'!W766)","v":""},{"$f":"IF('1. Order'!X766=\"\",\"\",'1. Order'!X766)","v":"EUR"},{"$f":"IF('1. Order'!Y766=\"\",\"\",'1. Order'!Y766)","v":""},{"$f":"IF('1. Order'!Z766=\"\",\"\",'1. Order'!Z766)","v":""},{"$f":"IF('1. Order'!AA766=\"\",\"\",'1. Order'!AA766)","v":""},null,{"$f":"IF('1. Order'!AS766=\"\",\"\",'1. Order'!AS766)","v":""},{"$f":"IF('1. Order'!AT766=\"\",\"\",'1. Order'!AT766)","v":""},null,null,null,null,null,null,null,{"$f":"IF('1. Order'!AX766=\"\",\"\",'1. Order'!AX766)","v":""},{"$f":"IF('1. Order'!AY766=\"\",\"\",'1. Order'!AY766)","v":""},{"$f":"IF('1. Order'!AZ766=\"\",\"\",'1. Order'!AZ766)","v":""},{"$f":"IF('1. Order'!BA766=\"\",\"\",'1. Order'!BA766)","v":""},{"$f":"IF('1. Order'!BC766=\"\",\"\",'1. Order'!BC766)","v":""},{"$f":"IF('1. Order'!BD766=\"\",\"\",'1. Order'!BD766)","v":6},{"$f":"IF('1. Order'!BE766=\"\",\"\",'1. Order'!BE766)","v":"None"},{"$f":"IF('1. Order'!BF766=\"\",\"\",'1. Order'!BF766)","v":"Parcel"},{"$f":"IF('1. Order'!BG766=\"\",\"\",'1. Order'!BG766)","v":"ZWO"}]
[{"$f":"IF('1. Order'!F767=\"\",\"\",'1. Order'!F767)","v":""},{"$f":"IF('1. Order'!G767=\"\",\"\",'1. Order'!G767)","v":""},{"$f":"IF('1. Order'!H767=\"\",\"\",'1. Order'!H767)","v":""},{"$f":"IF('1. Order'!I767=\"\",\"\",'1. Order'!I767)","v":""},{"$f":"IF('1. Order'!J767=\"\",\"\",'1. Order'!J767)","v":""},{"$f":"IF('1. Order'!K767=\"\",\"\",'1. Order'!K767)","v":""},{"$f":"IF('1. Order'!L767=\"\",\"\",'1. Order'!L767)","v":""},{"$f":"IF('1. Order'!M767=\"\",\"\",'1. Order'!M767)","v":""},{"$f":"IF('1. Order'!N767=\"\",\"\",'1. Order'!N767)","v":""},{"$f":"IF('1. Order'!O767=\"\",\"\",'1. Order'!O767)","v":{"$error":"#N/A"}},{"$f":"IF('1. Order'!P767=\"\",\"\",'1. Order'!P767)","v":{"$error":"#N/A"}},{"$f":"IF('1. Order'!Q767=\"\",\"\",'1. Order'!Q767)","v":""},{"$f":"IF('1. Order'!R767=\"\",\"\",'1. Order'!R767)","v":""},{"$f":"IF('1. Order'!S767=\"\",\"\",'1. Order'!S767)","v":""},{"$f":"IF('1. Order'!V767=\"\",\"\",'1. Order'!V767)","v":""},{"$f":"IF('1. Order'!W767=\"\",\"\",'1. Order'!W767)","v":""},{"$f":"IF('1. Order'!X767=\"\",\"\",'1. Order'!X767)","v":"EUR"},{"$f":"IF('1. Order'!Y767=\"\",\"\",'1. Order'!Y767)","v":""},{"$f":"IF('1. Order'!Z767=\"\",\"\",'1. Order'!Z767)","v":""},{"$f":"IF('1. Order'!AA767=\"\",\"\",'1. Order'!AA767)","v":""},null,{"$f":"IF('1. Order'!AS767=\"\",\"\",'1. Order'!AS767)","v":""},{"$f":"IF('1. Order'!AT767=\"\",\"\",'1. Order'!AT767)","v":""},null,null,null,null,null,null,null,{"$f":"IF('1. Order'!AX767=\"\",\"\",'1. Order'!AX767)","v":""},{"$f":"IF('1. Order'!AY767=\"\",\"\",'1. Order'!AY767)","v":""},{"$f":"IF('1. Order'!AZ767=\"\",\"\",'1. Order'!AZ767)","v":""},{"$f":"IF('1. Order'!BA767=\"\",\"\",'1. Order'!BA767)","v":""},{"$f":"IF('1. Order'!BC767=\"\",\"\",'1. Order'!BC767)","v":""},{"$f":"IF('1. Order'!BD767=\"\",\"\",'1. Order'!BD767)","v":6},{"$f":"IF('1. Order'!BE767=\"\",\"\",'1. Order'!BE767)","v":"None"},{"$f":"IF('1. Order'!BF767=\"\",\"\",'1. Order'!BF767)","v":"Parcel"},{"$f":"IF('1. Order'!BG767=\"\",\"\",'1. Order'!BG767)","v":"ZWO"}]
[{"$f":"IF('1. Order'!F768=\"\",\"\",'1. Order'!F768)","v":""},{"$f":"IF('1. Order'!G768=\"\",\"\",'1. Order'!G768)","v":""},{"$f":"IF('1. Order'!H768=\"\",\"\",'1. Order'!H768)","v":""},{"$f":"IF('1. Order'!I768=\"\",\"\",'1. Order'!I768)","v":""},{"$f":"IF('1. Order'!J768=\"\",\"\",'1. Order'!J768)","v":""},{"$f":"IF('1. Order'!K768=\"\",\"\",'1. Order'!K768)","v":""},{"$f":"IF('1. Order'!L768=\"\",\"\",'1. Order'!L768)","v":""},{"$f":"IF('1. Order'!M768=\"\",\"\",'1. Order'!M768)","v":""},{"$f":"IF('1. Order'!N768=\"\",\"\",'1. Order'!N768)","v":""},{"$f":"IF('1. Order'!O768=\"\",\"\",'1. Order'!O768)","v":{"$error":"#N/A"}},{"$f":"IF('1. Order'!P768=\"\",\"\",'1. Order'!P768)","v":{"$error":"#N/A"}},{"$f":"IF('1. Order'!Q768=\"\",\"\",'1. Order'!Q768)","v":""},{"$f":"IF('1. Order'!R768=\"\",\"\",'1. Order'!R768)","v":""},{"$f":"IF('1. Order'!S768=\"\",\"\",'1. Order'!S768)","v":""},{"$f":"IF('1. Order'!V768=\"\",\"\",'1. Order'!V768)","v":""},{"$f":"IF('1. Order'!W768=\"\",\"\",'1. Order'!W768)","v":""},{"$f":"IF('1. Order'!X768=\"\",\"\",'1. Order'!X768)","v":"EUR"},{"$f":"IF('1. Order'!Y768=\"\",\"\",'1. Order'!Y768)","v":""},{"$f":"IF('1. Order'!Z768=\"\",\"\",'1. Order'!Z768)","v":""},{"$f":"IF('1. Order'!AA768=\"\",\"\",'1. Order'!AA768)","v":""},null,{"$f":"IF('1. Order'!AS768=\"\",\"\",'1. Order'!AS768)","v":""},{"$f":"IF('1. Order'!AT768=\"\",\"\",'1. Order'!AT768)","v":""},null,null,null,null,null,null,null,{"$f":"IF('1. Order'!AX768=\"\",\"\",'1. Order'!AX768)","v":""},{"$f":"IF('1. Order'!AY768=\"\",\"\",'1. Order'!AY768)","v":""},{"$f":"IF('1. Order'!AZ768=\"\",\"\",'1. Order'!AZ768)","v":""},{"$f":"IF('1. Order'!BA768=\"\",\"\",'1. Order'!BA768)","v":""},{"$f":"IF('1. Order'!BC768=\"\",\"\",'1. Order'!BC768)","v":""},{"$f":"IF('1. Order'!BD768=\"\",\"\",'1. Order'!BD768)","v":6},{"$f":"IF('1. Order'!BE768=\"\",\"\",'1. Order'!BE768)","v":"None"},{"$f":"IF('1. Order'!BF768=\"\",\"\",'1. Order'!BF768)","v":"Parcel"},{"$f":"IF('1. Order'!BG768=\"\",\"\",'1. Order'!BG768)","v":"ZWO"}]
[{"$f":"IF('1. Order'!F769=\"\",\"\",'1. Order'!F769)","v":""},{"$f":"IF('1. Order'!G769=\"\",\"\",'1. Order'!G769)","v":""},{"$f":"IF('1. Order'!H769=\"\",\"\",'1. Order'!H769)","v":""},{"$f":"IF('1. Order'!I769=\"\",\"\",'1. Order'!I769)","v":""},{"$f":"IF('1. Order'!J769=\"\",\"\",'1. Order'!J769)","v":""},{"$f":"IF('1. Order'!K769=\"\",\"\",'1. Order'!K769)","v":""},{"$f":"IF('1. Order'!L769=\"\",\"\",'1. Order'!L769)","v":""},{"$f":"IF('1. Order'!M769=\"\",\"\",'1. Order'!M769)","v":""},{"$f":"IF('1. Order'!N769=\"\",\"\",'1. Order'!N769)","v":""},{"$f":"IF('1. Order'!O769=\"\",\"\",'1. Order'!O769)","v":{"$error":"#N/A"}},{"$f":"IF('1. Order'!P769=\"\",\"\",'1. Order'!P769)","v":{"$error":"#N/A"}},{"$f":"IF('1. Order'!Q769=\"\",\"\",'1. Order'!Q769)","v":""},{"$f":"IF('1. Order'!R769=\"\",\"\",'1. Order'!R769)","v":""},{"$f":"IF('1. Order'!S769=\"\",\"\",'1. Order'!S769)","v":""},{"$f":"IF('1. Order'!V769=\"\",\"\",'1. Order'!V769)","v":""},{"$f":"IF('1. Order'!W769=\"\",\"\",'1. Order'!W769)","v":""},{"$f":"IF('1. Order'!X769=\"\",\"\",'1. Order'!X769)","v":"EUR"},{"$f":"IF('1. Order'!Y769=\"\",\"\",'1. Order'!Y769)","v":""},{"$f":"IF('1. Order'!Z769=\"\",\"\",'1. Order'!Z769)","v":""},{"$f":"IF('1. Order'!AA769=\"\",\"\",'1. Order'!AA769)","v":""},null,{"$f":"IF('1. Order'!AS769=\"\",\"\",'1. Order'!AS769)","v":""},{"$f":"IF('1. Order'!AT769=\"\",\"\",'1. Order'!AT769)","v":""},null,null,null,null,null,null,null,{"$f":"IF('1. Order'!AX769=\"\",\"\",'1. Order'!AX769)","v":""},{"$f":"IF('1. Order'!AY769=\"\",\"\",'1. Order'!AY769)","v":""},{"$f":"IF('1. Order'!AZ769=\"\",\"\",'1. Order'!AZ769)","v":""},{"$f":"IF('1. Order'!BA769=\"\",\"\",'1. Order'!BA769)","v":""},{"$f":"IF('1. Order'!BC769=\"\",\"\",'1. Order'!BC769)","v":""},{"$f":"IF('1. Order'!BD769=\"\",\"\",'1. Order'!BD769)","v":6},{"$f":"IF('1. Order'!BE769=\"\",\"\",'1. Order'!BE769)","v":"None"},{"$f":"IF('1. Order'!BF769=\"\",\"\",'1. Order'!BF769)","v":"Parcel"},{"$f":"IF('1. Order'!BG769=\"\",\"\",'1. Order'!BG769)","v":"ZWO"}]
[{"$f":"IF('1. Order'!F770=\"\",\"\",'1. Order'!F770)","v":""},{"$f":"IF('1. Order'!G770=\"\",\"\",'1. Order'!G770)","v":""},{"$f":"IF('1. Order'!H770=\"\",\"\",'1. Order'!H770)","v":""},{"$f":"IF('1. Order'!I770=\"\",\"\",'1. Order'!I770)","v":""},{"$f":"IF('1. Order'!J770=\"\",\"\",'1. Order'!J770)","v":""},{"$f":"IF('1. Order'!K770=\"\",\"\",'1. Order'!K770)","v":""},{"$f":"IF('1. Order'!L770=\"\",\"\",'1. Order'!L770)","v":""},{"$f":"IF('1. Order'!M770=\"\",\"\",'1. Order'!M770)","v":""},{"$f":"IF('1. Order'!N770=\"\",\"\",'1. Order'!N770)","v":""},{"$f":"IF('1. Order'!O770=\"\",\"\",'1. Order'!O770)","v":{"$error":"#N/A"}},{"$f":"IF('1. Order'!P770=\"\",\"\",'1. Order'!P770)","v":{"$error":"#N/A"}},{"$f":"IF('1. Order'!Q770=\"\",\"\",'1. Order'!Q770)","v":""},{"$f":"IF('1. Order'!R770=\"\",\"\",'1. Order'!R770)","v":""},{"$f":"IF('1. Order'!S770=\"\",\"\",'1. Order'!S770)","v":""},{"$f":"IF('1. Order'!V770=\"\",\"\",'1. Order'!V770)","v":""},{"$f":"IF('1. Order'!W770=\"\",\"\",'1. Order'!W770)","v":""},{"$f":"IF('1. Order'!X770=\"\",\"\",'1. Order'!X770)","v":"EUR"},{"$f":"IF('1. Order'!Y770=\"\",\"\",'1. Order'!Y770)","v":""},{"$f":"IF('1. Order'!Z770=\"\",\"\",'1. Order'!Z770)","v":""},{"$f":"IF('1. Order'!AA770=\"\",\"\",'1. Order'!AA770)","v":""},null,{"$f":"IF('1. Order'!AS770=\"\",\"\",'1. Order'!AS770)","v":""},{"$f":"IF('1. Order'!AT770=\"\",\"\",'1. Order'!AT770)","v":""},null,null,null,null,null,null,null,{"$f":"IF('1. Order'!AX770=\"\",\"\",'1. Order'!AX770)","v":""},{"$f":"IF('1. Order'!AY770=\"\",\"\",'1. Order'!AY770)","v":""},{"$f":"IF('1. Order'!AZ770=\"\",\"\",'1. Order'!AZ770)","v":""},{"$f":"IF('1. Order'!BA770=\"\",\"\",'1. Order'!BA770)","v":""},{"$f":"IF('1. Order'!BC770=\"\",\"\",'1. Order'!BC770)","v":""},{"$f":"IF('1. Order'!BD770=\"\",\"\",'1. Order'!BD770)","v":6},{"$f":"IF('1. Order'!BE770=\"\",\"\",'1. Order'!BE770)","v":"None"},{"$f":"IF('1. Order'!BF770=\"\",\"\",'1. Order'!BF770)","v":"Parcel"},{"$f":"IF('1. Order'!BG770=\"\",\"\",'1. Order'!BG770)","v":"ZWO"}]
[{"$f":"IF('1. Order'!F771=\"\",\"\",'1. Order'!F771)","v":""},{"$f":"IF('1. Order'!G771=\"\",\"\",'1. Order'!G771)","v":""},{"$f":"IF('1. Order'!H771=\"\",\"\",'1. Order'!H771)","v":""},{"$f":"IF('1. Order'!I771=\"\",\"\",'1. Order'!I771)","v":""},{"$f":"IF('1. Order'!J771=\"\",\"\",'1. Order'!J771)","v":""},{"$f":"IF('1. Order'!K771=\"\",\"\",'1. Order'!K771)","v":""},{"$f":"IF('1. Order'!L771=\"\",\"\",'1. Order'!L771)","v":""},{"$f":"IF('1. Order'!M771=\"\",\"\",'1. Order'!M771)","v":""},{"$f":"IF('1. Order'!N771=\"\",\"\",'1. Order'!N771)","v":""},{"$f":"IF('1. Order'!O771=\"\",\"\",'1. Order'!O771)","v":{"$error":"#N/A"}},{"$f":"IF('1. Order'!P771=\"\",\"\",'1. Order'!P771)","v":{"$error":"#N/A"}},{"$f":"IF('1. Order'!Q771=\"\",\"\",'1. Order'!Q771)","v":""},{"$f":"IF('1. Order'!R771=\"\",\"\",'1. Order'!R771)","v":""},{"$f":"IF('1. Order'!S771=\"\",\"\",'1. Order'!S771)","v":""},{"$f":"IF('1. Order'!V771=\"\",\"\",'1. Order'!V771)","v":""},{"$f":"IF('1. Order'!W771=\"\",\"\",'1. Order'!W771)","v":""},{"$f":"IF('1. Order'!X771=\"\",\"\",'1. Order'!X771)","v":"EUR"},{"$f":"IF('1. Order'!Y771=\"\",\"\",'1. Order'!Y771)","v":""},{"$f":"IF('1. Order'!Z771=\"\",\"\",'1. Order'!Z771)","v":""},{"$f":"IF('1. Order'!AA771=\"\",\"\",'1. Order'!AA771)","v":""},null,{"$f":"IF('1. Order'!AS771=\"\",\"\",'1. Order'!AS771)","v":""},{"$f":"IF('1. Order'!AT771=\"\",\"\",'1. Order'!AT771)","v":""},null,null,null,null,null,null,null,{"$f":"IF('1. Order'!AX771=\"\",\"\",'1. Order'!AX771)","v":""},{"$f":"IF('1. Order'!AY771=\"\",\"\",'1. Order'!AY771)","v":""},{"$f":"IF('1. Order'!AZ771=\"\",\"\",'1. Order'!AZ771)","v":""},{"$f":"IF('1. Order'!BA771=\"\",\"\",'1. Order'!BA771)","v":""},{"$f":"IF('1. Order'!BC771=\"\",\"\",'1. Order'!BC771)","v":""},{"$f":"IF('1. Order'!BD771=\"\",\"\",'1. Order'!BD771)","v":6},{"$f":"IF('1. Order'!BE771=\"\",\"\",'1. Order'!BE771)","v":"None"},{"$f":"IF('1. Order'!BF771=\"\",\"\",'1. Order'!BF771)","v":"Parcel"},{"$f":"IF('1. Order'!BG771=\"\",\"\",'1. Order'!BG771)","v":"ZWO"}]
[{"$f":"IF('1. Order'!F772=\"\",\"\",'1. Order'!F772)","v":""},{"$f":"IF('1. Order'!G772=\"\",\"\",'1. Order'!G772)","v":""},{"$f":"IF('1. Order'!H772=\"\",\"\",'1. Order'!H772)","v":""},{"$f":"IF('1. Order'!I772=\"\",\"\",'1. Order'!I772)","v":""},{"$f":"IF('1. Order'!J772=\"\",\"\",'1. Order'!J772)","v":""},{"$f":"IF('1. Order'!K772=\"\",\"\",'1. Order'!K772)","v":""},{"$f":"IF('1. Order'!L772=\"\",\"\",'1. Order'!L772)","v":""},{"$f":"IF('1. Order'!M772=\"\",\"\",'1. Order'!M772)","v":""},{"$f":"IF('1. Order'!N772=\"\",\"\",'1. Order'!N772)","v":""},{"$f":"IF('1. Order'!O772=\"\",\"\",'1. Order'!O772)","v":{"$error":"#N/A"}},{"$f":"IF('1. Order'!P772=\"\",\"\",'1. Order'!P772)","v":{"$error":"#N/A"}},{"$f":"IF('1. Order'!Q772=\"\",\"\",'1. Order'!Q772)","v":""},{"$f":"IF('1. Order'!R772=\"\",\"\",'1. Order'!R772)","v":""},{"$f":"IF('1. Order'!S772=\"\",\"\",'1. Order'!S772)","v":""},{"$f":"IF('1. Order'!V772=\"\",\"\",'1. Order'!V772)","v":""},{"$f":"IF('1. Order'!W772=\"\",\"\",'1. Order'!W772)","v":""},{"$f":"IF('1. Order'!X772=\"\",\"\",'1. Order'!X772)","v":"EUR"},{"$f":"IF('1. Order'!Y772=\"\",\"\",'1. Order'!Y772)","v":""},{"$f":"IF('1. Order'!Z772=\"\",\"\",'1. Order'!Z772)","v":""},{"$f":"IF('1. Order'!AA772=\"\",\"\",'1. Order'!AA772)","v":""},null,{"$f":"IF('1. Order'!AS772=\"\",\"\",'1. Order'!AS772)","v":""},{"$f":"IF('1. Order'!AT772=\"\",\"\",'1. Order'!AT772)","v":""},null,null,null,null,null,null,null,{"$f":"IF('1. Order'!AX772=\"\",\"\",'1. Order'!AX772)","v":""},{"$f":"IF('1. Order'!AY772=\"\",\"\",'1. Order'!AY772)","v":""},{"$f":"IF('1. Order'!AZ772=\"\",\"\",'1. Order'!AZ772)","v":""},{"$f":"IF('1. Order'!BA772=\"\",\"\",'1. Order'!BA772)","v":""},{"$f":"IF('1. Order'!BC772=\"\",\"\",'1. Order'!BC772)","v":""},{"$f":"IF('1. Order'!BD772=\"\",\"\",'1. Order'!BD772)","v":6},{"$f":"IF('1. Order'!BE772=\"\",\"\",'1. Order'!BE772)","v":"None"},{"$f":"IF('1. Order'!BF772=\"\",\"\",'1. Order'!BF772)","v":"Parcel"},{"$f":"IF('1. Order'!BG772=\"\",\"\",'1. Order'!BG772)","v":"ZWO"}]
[{"$f":"IF('1. Order'!F773=\"\",\"\",'1. Order'!F773)","v":""},{"$f":"IF('1. Order'!G773=\"\",\"\",'1. Order'!G773)","v":""},{"$f":"IF('1. Order'!H773=\"\",\"\",'1. Order'!H773)","v":""},{"$f":"IF('1. Order'!I773=\"\",\"\",'1. Order'!I773)","v":""},{"$f":"IF('1. Order'!J773=\"\",\"\",'1. Order'!J773)","v":""},{"$f":"IF('1. Order'!K773=\"\",\"\",'1. Order'!K773)","v":""},{"$f":"IF('1. Order'!L773=\"\",\"\",'1. Order'!L773)","v":""},{"$f":"IF('1. Order'!M773=\"\",\"\",'1. Order'!M773)","v":""},{"$f":"IF('1. Order'!N773=\"\",\"\",'1. Order'!N773)","v":""},{"$f":"IF('1. Order'!O773=\"\",\"\",'1. Order'!O773)","v":{"$error":"#N/A"}},{"$f":"IF('1. Order'!P773=\"\",\"\",'1. Order'!P773)","v":{"$error":"#N/A"}},{"$f":"IF('1. Order'!Q773=\"\",\"\",'1. Order'!Q773)","v":""},{"$f":"IF('1. Order'!R773=\"\",\"\",'1. Order'!R773)","v":""},{"$f":"IF('1. Order'!S773=\"\",\"\",'1. Order'!S773)","v":""},{"$f":"IF('1. Order'!V773=\"\",\"\",'1. Order'!V773)","v":""},{"$f":"IF('1. Order'!W773=\"\",\"\",'1. Order'!W773)","v":""},{"$f":"IF('1. Order'!X773=\"\",\"\",'1. Order'!X773)","v":"EUR"},{"$f":"IF('1. Order'!Y773=\"\",\"\",'1. Order'!Y773)","v":""},{"$f":"IF('1. Order'!Z773=\"\",\"\",'1. Order'!Z773)","v":""},{"$f":"IF('1. Order'!AA773=\"\",\"\",'1. Order'!AA773)","v":""},null,{"$f":"IF('1. Order'!AS773=\"\",\"\",'1. Order'!AS773)","v":""},{"$f":"IF('1. Order'!AT773=\"\",\"\",'1. Order'!AT773)","v":""},null,null,null,null,null,null,null,{"$f":"IF('1. Order'!AX773=\"\",\"\",'1. Order'!AX773)","v":""},{"$f":"IF('1. Order'!AY773=\"\",\"\",'1. Order'!AY773)","v":""},{"$f":"IF('1. Order'!AZ773=\"\",\"\",'1. Order'!AZ773)","v":""},{"$f":"IF('1. Order'!BA773=\"\",\"\",'1. Order'!BA773)","v":""},{"$f":"IF('1. Order'!BC773=\"\",\"\",'1. Order'!BC773)","v":""},{"$f":"IF('1. Order'!BD773=\"\",\"\",'1. Order'!BD773)","v":6},{"$f":"IF('1. Order'!BE773=\"\",\"\",'1. Order'!BE773)","v":"None"},{"$f":"IF('1. Order'!BF773=\"\",\"\",'1. Order'!BF773)","v":"Parcel"},{"$f":"IF('1. Order'!BG773=\"\",\"\",'1. Order'!BG773)","v":"ZWO"}]
[{"$f":"IF('1. Order'!F774=\"\",\"\",'1. Order'!F774)","v":""},{"$f":"IF('1. Order'!G774=\"\",\"\",'1. Order'!G774)","v":""},{"$f":"IF('1. Order'!H774=\"\",\"\",'1. Order'!H774)","v":""},{"$f":"IF('1. Order'!I774=\"\",\"\",'1. Order'!I774)","v":""},{"$f":"IF('1. Order'!J774=\"\",\"\",'1. Order'!J774)","v":""},{"$f":"IF('1. Order'!K774=\"\",\"\",'1. Order'!K774)","v":""},{"$f":"IF('1. Order'!L774=\"\",\"\",'1. Order'!L774)","v":""},{"$f":"IF('1. Order'!M774=\"\",\"\",'1. Order'!M774)","v":""},{"$f":"IF('1. Order'!N774=\"\",\"\",'1. Order'!N774)","v":""},{"$f":"IF('1. Order'!O774=\"\",\"\",'1. Order'!O774)","v":{"$error":"#N/A"}},{"$f":"IF('1. Order'!P774=\"\",\"\",'1. Order'!P774)","v":{"$error":"#N/A"}},{"$f":"IF('1. Order'!Q774=\"\",\"\",'1. Order'!Q774)","v":""},{"$f":"IF('1. Order'!R774=\"\",\"\",'1. Order'!R774)","v":""},{"$f":"IF('1. Order'!S774=\"\",\"\",'1. Order'!S774)","v":""},{"$f":"IF('1. Order'!V774=\"\",\"\",'1. Order'!V774)","v":""},{"$f":"IF('1. Order'!W774=\"\",\"\",'1. Order'!W774)","v":""},{"$f":"IF('1. Order'!X774=\"\",\"\",'1. Order'!X774)","v":"EUR"},{"$f":"IF('1. Order'!Y774=\"\",\"\",'1. Order'!Y774)","v":""},{"$f":"IF('1. Order'!Z774=\"\",\"\",'1. Order'!Z774)","v":""},{"$f":"IF('1. Order'!AA774=\"\",\"\",'1. Order'!AA774)","v":""},null,{"$f":"IF('1. Order'!AS774=\"\",\"\",'1. Order'!AS774)","v":""},{"$f":"IF('1. Order'!AT774=\"\",\"\",'1. Order'!AT774)","v":""},null,null,null,null,null,null,null,{"$f":"IF('1. Order'!AX774=\"\",\"\",'1. Order'!AX774)","v":""},{"$f":"IF('1. Order'!AY774=\"\",\"\",'1. Order'!AY774)","v":""},{"$f":"IF('1. Order'!AZ774=\"\",\"\",'1. Order'!AZ774)","v":""},{"$f":"IF('1. Order'!BA774=\"\",\"\",'1. Order'!BA774)","v":""},{"$f":"IF('1. Order'!BC774=\"\",\"\",'1. Order'!BC774)","v":""},{"$f":"IF('1. Order'!BD774=\"\",\"\",'1. Order'!BD774)","v":6},{"$f":"IF('1. Order'!BE774=\"\",\"\",'1. Order'!BE774)","v":"None"},{"$f":"IF('1. Order'!BF774=\"\",\"\",'1. Order'!BF774)","v":"Parcel"},{"$f":"IF('1. Order'!BG774=\"\",\"\",'1. Order'!BG774)","v":"ZWO"}]
[{"$f":"IF('1. Order'!F775=\"\",\"\",'1. Order'!F775)","v":""},{"$f":"IF('1. Order'!G775=\"\",\"\",'1. Order'!G775)","v":""},{"$f":"IF('1. Order'!H775=\"\",\"\",'1. Order'!H775)","v":""},{"$f":"IF('1. Order'!I775=\"\",\"\",'1. Order'!I775)","v":""},{"$f":"IF('1. Order'!J775=\"\",\"\",'1. Order'!J775)","v":""},{"$f":"IF('1. Order'!K775=\"\",\"\",'1. Order'!K775)","v":""},{"$f":"IF('1. Order'!L775=\"\",\"\",'1. Order'!L775)","v":""},{"$f":"IF('1. Order'!M775=\"\",\"\",'1. Order'!M775)","v":""},{"$f":"IF('1. Order'!N775=\"\",\"\",'1. Order'!N775)","v":""},{"$f":"IF('1. Order'!O775=\"\",\"\",'1. Order'!O775)","v":{"$error":"#N/A"}},{"$f":"IF('1. Order'!P775=\"\",\"\",'1. Order'!P775)","v":{"$error":"#N/A"}},{"$f":"IF('1. Order'!Q775=\"\",\"\",'1. Order'!Q775)","v":""},{"$f":"IF('1. Order'!R775=\"\",\"\",'1. Order'!R775)","v":""},{"$f":"IF('1. Order'!S775=\"\",\"\",'1. Order'!S775)","v":""},{"$f":"IF('1. Order'!V775=\"\",\"\",'1. Order'!V775)","v":""},{"$f":"IF('1. Order'!W775=\"\",\"\",'1. Order'!W775)","v":""},{"$f":"IF('1. Order'!X775=\"\",\"\",'1. Order'!X775)","v":"EUR"},{"$f":"IF('1. Order'!Y775=\"\",\"\",'1. Order'!Y775)","v":""},{"$f":"IF('1. Order'!Z775=\"\",\"\",'1. Order'!Z775)","v":""},{"$f":"IF('1. Order'!AA775=\"\",\"\",'1. Order'!AA775)","v":""},null,{"$f":"IF('1. Order'!AS775=\"\",\"\",'1. Order'!AS775)","v":""},{"$f":"IF('1. Order'!AT775=\"\",\"\",'1. Order'!AT775)","v":""},null,null,null,null,null,null,null,{"$f":"IF('1. Order'!AX775=\"\",\"\",'1. Order'!AX775)","v":""},{"$f":"IF('1. Order'!AY775=\"\",\"\",'1. Order'!AY775)","v":""},{"$f":"IF('1. Order'!AZ775=\"\",\"\",'1. Order'!AZ775)","v":""},{"$f":"IF('1. Order'!BA775=\"\",\"\",'1. Order'!BA775)","v":""},{"$f":"IF('1. Order'!BC775=\"\",\"\",'1. Order'!BC775)","v":""},{"$f":"IF('1. Order'!BD775=\"\",\"\",'1. Order'!BD775)","v":6},{"$f":"IF('1. Order'!BE775=\"\",\"\",'1. Order'!BE775)","v":"None"},{"$f":"IF('1. Order'!BF775=\"\",\"\",'1. Order'!BF775)","v":"Parcel"},{"$f":"IF('1. Order'!BG775=\"\",\"\",'1. Order'!BG775)","v":"ZWO"}]
[{"$f":"IF('1. Order'!F776=\"\",\"\",'1. Order'!F776)","v":""},{"$f":"IF('1. Order'!G776=\"\",\"\",'1. Order'!G776)","v":""},{"$f":"IF('1. Order'!H776=\"\",\"\",'1. Order'!H776)","v":""},{"$f":"IF('1. Order'!I776=\"\",\"\",'1. Order'!I776)","v":""},{"$f":"IF('1. Order'!J776=\"\",\"\",'1. Order'!J776)","v":""},{"$f":"IF('1. Order'!K776=\"\",\"\",'1. Order'!K776)","v":""},{"$f":"IF('1. Order'!L776=\"\",\"\",'1. Order'!L776)","v":""},{"$f":"IF('1. Order'!M776=\"\",\"\",'1. Order'!M776)","v":""},{"$f":"IF('1. Order'!N776=\"\",\"\",'1. Order'!N776)","v":""},{"$f":"IF('1. Order'!O776=\"\",\"\",'1. Order'!O776)","v":{"$error":"#N/A"}},{"$f":"IF('1. Order'!P776=\"\",\"\",'1. Order'!P776)","v":{"$error":"#N/A"}},{"$f":"IF('1. Order'!Q776=\"\",\"\",'1. Order'!Q776)","v":""},{"$f":"IF('1. Order'!R776=\"\",\"\",'1. Order'!R776)","v":""},{"$f":"IF('1. Order'!S776=\"\",\"\",'1. Order'!S776)","v":""},{"$f":"IF('1. Order'!V776=\"\",\"\",'1. Order'!V776)","v":""},{"$f":"IF('1. Order'!W776=\"\",\"\",'1. Order'!W776)","v":""},{"$f":"IF('1. Order'!X776=\"\",\"\",'1. Order'!X776)","v":"EUR"},{"$f":"IF('1. Order'!Y776=\"\",\"\",'1. Order'!Y776)","v":""},{"$f":"IF('1. Order'!Z776=\"\",\"\",'1. Order'!Z776)","v":""},{"$f":"IF('1. Order'!AA776=\"\",\"\",'1. Order'!AA776)","v":""},null,{"$f":"IF('1. Order'!AS776=\"\",\"\",'1. Order'!AS776)","v":""},{"$f":"IF('1. Order'!AT776=\"\",\"\",'1. Order'!AT776)","v":""},null,null,null,null,null,null,null,{"$f":"IF('1. Order'!AX776=\"\",\"\",'1. Order'!AX776)","v":""},{"$f":"IF('1. Order'!AY776=\"\",\"\",'1. Order'!AY776)","v":""},{"$f":"IF('1. Order'!AZ776=\"\",\"\",'1. Order'!AZ776)","v":""},{"$f":"IF('1. Order'!BA776=\"\",\"\",'1. Order'!BA776)","v":""},{"$f":"IF('1. Order'!BC776=\"\",\"\",'1. Order'!BC776)","v":""},{"$f":"IF('1. Order'!BD776=\"\",\"\",'1. Order'!BD776)","v":6},{"$f":"IF('1. Order'!BE776=\"\",\"\",'1. Order'!BE776)","v":"None"},{"$f":"IF('1. Order'!BF776=\"\",\"\",'1. Order'!BF776)","v":"Parcel"},{"$f":"IF('1. Order'!BG776=\"\",\"\",'1. Order'!BG776)","v":"ZWO"}]
[{"$f":"IF('1. Order'!F777=\"\",\"\",'1. Order'!F777)","v":""},{"$f":"IF('1. Order'!G777=\"\",\"\",'1. Order'!G777)","v":""},{"$f":"IF('1. Order'!H777=\"\",\"\",'1. Order'!H777)","v":""},{"$f":"IF('1. Order'!I777=\"\",\"\",'1. Order'!I777)","v":""},{"$f":"IF('1. Order'!J777=\"\",\"\",'1. Order'!J777)","v":""},{"$f":"IF('1. Order'!K777=\"\",\"\",'1. Order'!K777)","v":""},{"$f":"IF('1. Order'!L777=\"\",\"\",'1. Order'!L777)","v":""},{"$f":"IF('1. Order'!M777=\"\",\"\",'1. Order'!M777)","v":""},{"$f":"IF('1. Order'!N777=\"\",\"\",'1. Order'!N777)","v":""},{"$f":"IF('1. Order'!O777=\"\",\"\",'1. Order'!O777)","v":{"$error":"#N/A"}},{"$f":"IF('1. Order'!P777=\"\",\"\",'1. Order'!P777)","v":{"$error":"#N/A"}},{"$f":"IF('1. Order'!Q777=\"\",\"\",'1. Order'!Q777)","v":""},{"$f":"IF('1. Order'!R777=\"\",\"\",'1. Order'!R777)","v":""},{"$f":"IF('1. Order'!S777=\"\",\"\",'1. Order'!S777)","v":""},{"$f":"IF('1. Order'!V777=\"\",\"\",'1. Order'!V777)","v":""},{"$f":"IF('1. Order'!W777=\"\",\"\",'1. Order'!W777)","v":""},{"$f":"IF('1. Order'!X777=\"\",\"\",'1. Order'!X777)","v":"EUR"},{"$f":"IF('1. Order'!Y777=\"\",\"\",'1. Order'!Y777)","v":""},{"$f":"IF('1. Order'!Z777=\"\",\"\",'1. Order'!Z777)","v":""},{"$f":"IF('1. Order'!AA777=\"\",\"\",'1. Order'!AA777)","v":""},null,{"$f":"IF('1. Order'!AS777=\"\",\"\",'1. Order'!AS777)","v":""},{"$f":"IF('1. Order'!AT777=\"\",\"\",'1. Order'!AT777)","v":""},null,null,null,null,null,null,null,{"$f":"IF('1. Order'!AX777=\"\",\"\",'1. Order'!AX777)","v":""},{"$f":"IF('1. Order'!AY777=\"\",\"\",'1. Order'!AY777)","v":""},{"$f":"IF('1. Order'!AZ777=\"\",\"\",'1. Order'!AZ777)","v":""},{"$f":"IF('1. Order'!BA777=\"\",\"\",'1. Order'!BA777)","v":""},{"$f":"IF('1. Order'!BC777=\"\",\"\",'1. Order'!BC777)","v":""},{"$f":"IF('1. Order'!BD777=\"\",\"\",'1. Order'!BD777)","v":6},{"$f":"IF('1. Order'!BE777=\"\",\"\",'1. Order'!BE777)","v":"None"},{"$f":"IF('1. Order'!BF777=\"\",\"\",'1. Order'!BF777)","v":"Parcel"},{"$f":"IF('1. Order'!BG777=\"\",\"\",'1. Order'!BG777)","v":"ZWO"}]
[{"$f":"IF('1. Order'!F778=\"\",\"\",'1. Order'!F778)","v":""},{"$f":"IF('1. Order'!G778=\"\",\"\",'1. Order'!G778)","v":""},{"$f":"IF('1. Order'!H778=\"\",\"\",'1. Order'!H778)","v":""},{"$f":"IF('1. Order'!I778=\"\",\"\",'1. Order'!I778)","v":""},{"$f":"IF('1. Order'!J778=\"\",\"\",'1. Order'!J778)","v":""},{"$f":"IF('1. Order'!K778=\"\",\"\",'1. Order'!K778)","v":""},{"$f":"IF('1. Order'!L778=\"\",\"\",'1. Order'!L778)","v":""},{"$f":"IF('1. Order'!M778=\"\",\"\",'1. Order'!M778)","v":""},{"$f":"IF('1. Order'!N778=\"\",\"\",'1. Order'!N778)","v":""},{"$f":"IF('1. Order'!O778=\"\",\"\",'1. Order'!O778)","v":{"$error":"#N/A"}},{"$f":"IF('1. Order'!P778=\"\",\"\",'1. Order'!P778)","v":{"$error":"#N/A"}},{"$f":"IF('1. Order'!Q778=\"\",\"\",'1. Order'!Q778)","v":""},{"$f":"IF('1. Order'!R778=\"\",\"\",'1. Order'!R778)","v":""},{"$f":"IF('1. Order'!S778=\"\",\"\",'1. Order'!S778)","v":""},{"$f":"IF('1. Order'!V778=\"\",\"\",'1. Order'!V778)","v":""},{"$f":"IF('1. Order'!W778=\"\",\"\",'1. Order'!W778)","v":""},{"$f":"IF('1. Order'!X778=\"\",\"\",'1. Order'!X778)","v":"EUR"},{"$f":"IF('1. Order'!Y778=\"\",\"\",'1. Order'!Y778)","v":""},{"$f":"IF('1. Order'!Z778=\"\",\"\",'1. Order'!Z778)","v":""},{"$f":"IF('1. Order'!AA778=\"\",\"\",'1. Order'!AA778)","v":""},null,{"$f":"IF('1. Order'!AS778=\"\",\"\",'1. Order'!AS778)","v":""},{"$f":"IF('1. Order'!AT778=\"\",\"\",'1. Order'!AT778)","v":""},null,null,null,null,null,null,null,{"$f":"IF('1. Order'!AX778=\"\",\"\",'1. Order'!AX778)","v":""},{"$f":"IF('1. Order'!AY778=\"\",\"\",'1. Order'!AY778)","v":""},{"$f":"IF('1. Order'!AZ778=\"\",\"\",'1. Order'!AZ778)","v":""},{"$f":"IF('1. Order'!BA778=\"\",\"\",'1. Order'!BA778)","v":""},{"$f":"IF('1. Order'!BC778=\"\",\"\",'1. Order'!BC778)","v":""},{"$f":"IF('1. Order'!BD778=\"\",\"\",'1. Order'!BD778)","v":6},{"$f":"IF('1. Order'!BE778=\"\",\"\",'1. Order'!BE778)","v":"None"},{"$f":"IF('1. Order'!BF778=\"\",\"\",'1. Order'!BF778)","v":"Parcel"},{"$f":"IF('1. Order'!BG778=\"\",\"\",'1. Order'!BG778)","v":"ZWO"}]
[{"$f":"IF('1. Order'!F779=\"\",\"\",'1. Order'!F779)","v":""},{"$f":"IF('1. Order'!G779=\"\",\"\",'1. Order'!G779)","v":""},{"$f":"IF('1. Order'!H779=\"\",\"\",'1. Order'!H779)","v":""},{"$f":"IF('1. Order'!I779=\"\",\"\",'1. Order'!I779)","v":""},{"$f":"IF('1. Order'!J779=\"\",\"\",'1. Order'!J779)","v":""},{"$f":"IF('1. Order'!K779=\"\",\"\",'1. Order'!K779)","v":""},{"$f":"IF('1. Order'!L779=\"\",\"\",'1. Order'!L779)","v":""},{"$f":"IF('1. Order'!M779=\"\",\"\",'1. Order'!M779)","v":""},{"$f":"IF('1. Order'!N779=\"\",\"\",'1. Order'!N779)","v":""},{"$f":"IF('1. Order'!O779=\"\",\"\",'1. Order'!O779)","v":{"$error":"#N/A"}},{"$f":"IF('1. Order'!P779=\"\",\"\",'1. Order'!P779)","v":{"$error":"#N/A"}},{"$f":"IF('1. Order'!Q779=\"\",\"\",'1. Order'!Q779)","v":""},{"$f":"IF('1. Order'!R779=\"\",\"\",'1. Order'!R779)","v":""},{"$f":"IF('1. Order'!S779=\"\",\"\",'1. Order'!S779)","v":""},{"$f":"IF('1. Order'!V779=\"\",\"\",'1. Order'!V779)","v":""},{"$f":"IF('1. Order'!W779=\"\",\"\",'1. Order'!W779)","v":""},{"$f":"IF('1. Order'!X779=\"\",\"\",'1. Order'!X779)","v":"EUR"},{"$f":"IF('1. Order'!Y779=\"\",\"\",'1. Order'!Y779)","v":""},{"$f":"IF('1. Order'!Z779=\"\",\"\",'1. Order'!Z779)","v":""},{"$f":"IF('1. Order'!AA779=\"\",\"\",'1. Order'!AA779)","v":""},null,{"$f":"IF('1. Order'!AS779=\"\",\"\",'1. Order'!AS779)","v":""},{"$f":"IF('1. Order'!AT779=\"\",\"\",'1. Order'!AT779)","v":""},null,null,null,null,null,null,null,{"$f":"IF('1. Order'!AX779=\"\",\"\",'1. Order'!AX779)","v":""},{"$f":"IF('1. Order'!AY779=\"\",\"\",'1. Order'!AY779)","v":""},{"$f":"IF('1. Order'!AZ779=\"\",\"\",'1. Order'!AZ779)","v":""},{"$f":"IF('1. Order'!BA779=\"\",\"\",'1. Order'!BA779)","v":""},{"$f":"IF('1. Order'!BC779=\"\",\"\",'1. Order'!BC779)","v":""},{"$f":"IF('1. Order'!BD779=\"\",\"\",'1. Order'!BD779)","v":6},{"$f":"IF('1. Order'!BE779=\"\",\"\",'1. Order'!BE779)","v":"None"},{"$f":"IF('1. Order'!BF779=\"\",\"\",'1. Order'!BF779)","v":"Parcel"},{"$f":"IF('1. Order'!BG779=\"\",\"\",'1. Order'!BG779)","v":"ZWO"}]
[{"$f":"IF('1. Order'!F780=\"\",\"\",'1. Order'!F780)","v":""},{"$f":"IF('1. Order'!G780=\"\",\"\",'1. Order'!G780)","v":""},{"$f":"IF('1. Order'!H780=\"\",\"\",'1. Order'!H780)","v":""},{"$f":"IF('1. Order'!I780=\"\",\"\",'1. Order'!I780)","v":""},{"$f":"IF('1. Order'!J780=\"\",\"\",'1. Order'!J780)","v":""},{"$f":"IF('1. Order'!K780=\"\",\"\",'1. Order'!K780)","v":""},{"$f":"IF('1. Order'!L780=\"\",\"\",'1. Order'!L780)","v":""},{"$f":"IF('1. Order'!M780=\"\",\"\",'1. Order'!M780)","v":""},{"$f":"IF('1. Order'!N780=\"\",\"\",'1. Order'!N780)","v":""},{"$f":"IF('1. Order'!O780=\"\",\"\",'1. Order'!O780)","v":{"$error":"#N/A"}},{"$f":"IF('1. Order'!P780=\"\",\"\",'1. Order'!P780)","v":{"$error":"#N/A"}},{"$f":"IF('1. Order'!Q780=\"\",\"\",'1. Order'!Q780)","v":""},{"$f":"IF('1. Order'!R780=\"\",\"\",'1. Order'!R780)","v":""},{"$f":"IF('1. Order'!S780=\"\",\"\",'1. Order'!S780)","v":""},{"$f":"IF('1. Order'!V780=\"\",\"\",'1. Order'!V780)","v":""},{"$f":"IF('1. Order'!W780=\"\",\"\",'1. Order'!W780)","v":""},{"$f":"IF('1. Order'!X780=\"\",\"\",'1. Order'!X780)","v":"EUR"},{"$f":"IF('1. Order'!Y780=\"\",\"\",'1. Order'!Y780)","v":""},{"$f":"IF('1. Order'!Z780=\"\",\"\",'1. Order'!Z780)","v":""},{"$f":"IF('1. Order'!AA780=\"\",\"\",'1. Order'!AA780)","v":""},null,{"$f":"IF('1. Order'!AS780=\"\",\"\",'1. Order'!AS780)","v":""},{"$f":"IF('1. Order'!AT780=\"\",\"\",'1. Order'!AT780)","v":""},null,null,null,null,null,null,null,{"$f":"IF('1. Order'!AX780=\"\",\"\",'1. Order'!AX780)","v":""},{"$f":"IF('1. Order'!AY780=\"\",\"\",'1. Order'!AY780)","v":""},{"$f":"IF('1. Order'!AZ780=\"\",\"\",'1. Order'!AZ780)","v":""},{"$f":"IF('1. Order'!BA780=\"\",\"\",'1. Order'!BA780)","v":""},{"$f":"IF('1. Order'!BC780=\"\",\"\",'1. Order'!BC780)","v":""},{"$f":"IF('1. Order'!BD780=\"\",\"\",'1. Order'!BD780)","v":6},{"$f":"IF('1. Order'!BE780=\"\",\"\",'1. Order'!BE780)","v":"None"},{"$f":"IF('1. Order'!BF780=\"\",\"\",'1. Order'!BF780)","v":"Parcel"},{"$f":"IF('1. Order'!BG780=\"\",\"\",'1. Order'!BG780)","v":"ZWO"}]
[{"$f":"IF('1. Order'!F781=\"\",\"\",'1. Order'!F781)","v":""},{"$f":"IF('1. Order'!G781=\"\",\"\",'1. Order'!G781)","v":""},{"$f":"IF('1. Order'!H781=\"\",\"\",'1. Order'!H781)","v":""},{"$f":"IF('1. Order'!I781=\"\",\"\",'1. Order'!I781)","v":""},{"$f":"IF('1. Order'!J781=\"\",\"\",'1. Order'!J781)","v":""},{"$f":"IF('1. Order'!K781=\"\",\"\",'1. Order'!K781)","v":""},{"$f":"IF('1. Order'!L781=\"\",\"\",'1. Order'!L781)","v":""},{"$f":"IF('1. Order'!M781=\"\",\"\",'1. Order'!M781)","v":""},{"$f":"IF('1. Order'!N781=\"\",\"\",'1. Order'!N781)","v":""},{"$f":"IF('1. Order'!O781=\"\",\"\",'1. Order'!O781)","v":{"$error":"#N/A"}},{"$f":"IF('1. Order'!P781=\"\",\"\",'1. Order'!P781)","v":{"$error":"#N/A"}},{"$f":"IF('1. Order'!Q781=\"\",\"\",'1. Order'!Q781)","v":""},{"$f":"IF('1. Order'!R781=\"\",\"\",'1. Order'!R781)","v":""},{"$f":"IF('1. Order'!S781=\"\",\"\",'1. Order'!S781)","v":""},{"$f":"IF('1. Order'!V781=\"\",\"\",'1. Order'!V781)","v":""},{"$f":"IF('1. Order'!W781=\"\",\"\",'1. Order'!W781)","v":""},{"$f":"IF('1. Order'!X781=\"\",\"\",'1. Order'!X781)","v":"EUR"},{"$f":"IF('1. Order'!Y781=\"\",\"\",'1. Order'!Y781)","v":""},{"$f":"IF('1. Order'!Z781=\"\",\"\",'1. Order'!Z781)","v":""},{"$f":"IF('1. Order'!AA781=\"\",\"\",'1. Order'!AA781)","v":""},null,{"$f":"IF('1. Order'!AS781=\"\",\"\",'1. Order'!AS781)","v":""},{"$f":"IF('1. Order'!AT781=\"\",\"\",'1. Order'!AT781)","v":""},null,null,null,null,null,null,null,{"$f":"IF('1. Order'!AX781=\"\",\"\",'1. Order'!AX781)","v":""},{"$f":"IF('1. Order'!AY781=\"\",\"\",'1. Order'!AY781)","v":""},{"$f":"IF('1. Order'!AZ781=\"\",\"\",'1. Order'!AZ781)","v":""},{"$f":"IF('1. Order'!BA781=\"\",\"\",'1. Order'!BA781)","v":""},{"$f":"IF('1. Order'!BC781=\"\",\"\",'1. Order'!BC781)","v":""},{"$f":"IF('1. Order'!BD781=\"\",\"\",'1. Order'!BD781)","v":6},{"$f":"IF('1. Order'!BE781=\"\",\"\",'1. Order'!BE781)","v":"None"},{"$f":"IF('1. Order'!BF781=\"\",\"\",'1. Order'!BF781)","v":"Parcel"},{"$f":"IF('1. Order'!BG781=\"\",\"\",'1. Order'!BG781)","v":"ZWO"}]
[{"$f":"IF('1. Order'!F782=\"\",\"\",'1. Order'!F782)","v":""},{"$f":"IF('1. Order'!G782=\"\",\"\",'1. Order'!G782)","v":""},{"$f":"IF('1. Order'!H782=\"\",\"\",'1. Order'!H782)","v":""},{"$f":"IF('1. Order'!I782=\"\",\"\",'1. Order'!I782)","v":""},{"$f":"IF('1. Order'!J782=\"\",\"\",'1. Order'!J782)","v":""},{"$f":"IF('1. Order'!K782=\"\",\"\",'1. Order'!K782)","v":""},{"$f":"IF('1. Order'!L782=\"\",\"\",'1. Order'!L782)","v":""},{"$f":"IF('1. Order'!M782=\"\",\"\",'1. Order'!M782)","v":""},{"$f":"IF('1. Order'!N782=\"\",\"\",'1. Order'!N782)","v":""},{"$f":"IF('1. Order'!O782=\"\",\"\",'1. Order'!O782)","v":{"$error":"#N/A"}},{"$f":"IF('1. Order'!P782=\"\",\"\",'1. Order'!P782)","v":{"$error":"#N/A"}},{"$f":"IF('1. Order'!Q782=\"\",\"\",'1. Order'!Q782)","v":""},{"$f":"IF('1. Order'!R782=\"\",\"\",'1. Order'!R782)","v":""},{"$f":"IF('1. Order'!S782=\"\",\"\",'1. Order'!S782)","v":""},{"$f":"IF('1. Order'!V782=\"\",\"\",'1. Order'!V782)","v":""},{"$f":"IF('1. Order'!W782=\"\",\"\",'1. Order'!W782)","v":""},{"$f":"IF('1. Order'!X782=\"\",\"\",'1. Order'!X782)","v":"EUR"},{"$f":"IF('1. Order'!Y782=\"\",\"\",'1. Order'!Y782)","v":""},{"$f":"IF('1. Order'!Z782=\"\",\"\",'1. Order'!Z782)","v":""},{"$f":"IF('1. Order'!AA782=\"\",\"\",'1. Order'!AA782)","v":""},null,{"$f":"IF('1. Order'!AS782=\"\",\"\",'1. Order'!AS782)","v":""},{"$f":"IF('1. Order'!AT782=\"\",\"\",'1. Order'!AT782)","v":""},null,null,null,null,null,null,null,{"$f":"IF('1. Order'!AX782=\"\",\"\",'1. Order'!AX782)","v":""},{"$f":"IF('1. Order'!AY782=\"\",\"\",'1. Order'!AY782)","v":""},{"$f":"IF('1. Order'!AZ782=\"\",\"\",'1. Order'!AZ782)","v":""},{"$f":"IF('1. Order'!BA782=\"\",\"\",'1. Order'!BA782)","v":""},{"$f":"IF('1. Order'!BC782=\"\",\"\",'1. Order'!BC782)","v":""},{"$f":"IF('1. Order'!BD782=\"\",\"\",'1. Order'!BD782)","v":6},{"$f":"IF('1. Order'!BE782=\"\",\"\",'1. Order'!BE782)","v":"None"},{"$f":"IF('1. Order'!BF782=\"\",\"\",'1. Order'!BF782)","v":"Parcel"},{"$f":"IF('1. Order'!BG782=\"\",\"\",'1. Order'!BG782)","v":"ZWO"}]
[{"$f":"IF('1. Order'!F783=\"\",\"\",'1. Order'!F783)","v":""},{"$f":"IF('1. Order'!G783=\"\",\"\",'1. Order'!G783)","v":""},{"$f":"IF('1. Order'!H783=\"\",\"\",'1. Order'!H783)","v":""},{"$f":"IF('1. Order'!I783=\"\",\"\",'1. Order'!I783)","v":""},{"$f":"IF('1. Order'!J783=\"\",\"\",'1. Order'!J783)","v":""},{"$f":"IF('1. Order'!K783=\"\",\"\",'1. Order'!K783)","v":""},{"$f":"IF('1. Order'!L783=\"\",\"\",'1. Order'!L783)","v":""},{"$f":"IF('1. Order'!M783=\"\",\"\",'1. Order'!M783)","v":""},{"$f":"IF('1. Order'!N783=\"\",\"\",'1. Order'!N783)","v":""},{"$f":"IF('1. Order'!O783=\"\",\"\",'1. Order'!O783)","v":{"$error":"#N/A"}},{"$f":"IF('1. Order'!P783=\"\",\"\",'1. Order'!P783)","v":{"$error":"#N/A"}},{"$f":"IF('1. Order'!Q783=\"\",\"\",'1. Order'!Q783)","v":""},{"$f":"IF('1. Order'!R783=\"\",\"\",'1. Order'!R783)","v":""},{"$f":"IF('1. Order'!S783=\"\",\"\",'1. Order'!S783)","v":""},{"$f":"IF('1. Order'!V783=\"\",\"\",'1. Order'!V783)","v":""},{"$f":"IF('1. Order'!W783=\"\",\"\",'1. Order'!W783)","v":""},{"$f":"IF('1. Order'!X783=\"\",\"\",'1. Order'!X783)","v":"EUR"},{"$f":"IF('1. Order'!Y783=\"\",\"\",'1. Order'!Y783)","v":""},{"$f":"IF('1. Order'!Z783=\"\",\"\",'1. Order'!Z783)","v":""},{"$f":"IF('1. Order'!AA783=\"\",\"\",'1. Order'!AA783)","v":""},null,{"$f":"IF('1. Order'!AS783=\"\",\"\",'1. Order'!AS783)","v":""},{"$f":"IF('1. Order'!AT783=\"\",\"\",'1. Order'!AT783)","v":""},null,null,null,null,null,null,null,{"$f":"IF('1. Order'!AX783=\"\",\"\",'1. Order'!AX783)","v":""},{"$f":"IF('1. Order'!AY783=\"\",\"\",'1. Order'!AY783)","v":""},{"$f":"IF('1. Order'!AZ783=\"\",\"\",'1. Order'!AZ783)","v":""},{"$f":"IF('1. Order'!BA783=\"\",\"\",'1. Order'!BA783)","v":""},{"$f":"IF('1. Order'!BC783=\"\",\"\",'1. Order'!BC783)","v":""},{"$f":"IF('1. Order'!BD783=\"\",\"\",'1. Order'!BD783)","v":6},{"$f":"IF('1. Order'!BE783=\"\",\"\",'1. Order'!BE783)","v":"None"},{"$f":"IF('1. Order'!BF783=\"\",\"\",'1. Order'!BF783)","v":"Parcel"},{"$f":"IF('1. Order'!BG783=\"\",\"\",'1. Order'!BG783)","v":"ZWO"}]
[{"$f":"IF('1. Order'!F784=\"\",\"\",'1. Order'!F784)","v":""},{"$f":"IF('1. Order'!G784=\"\",\"\",'1. Order'!G784)","v":""},{"$f":"IF('1. Order'!H784=\"\",\"\",'1. Order'!H784)","v":""},{"$f":"IF('1. Order'!I784=\"\",\"\",'1. Order'!I784)","v":""},{"$f":"IF('1. Order'!J784=\"\",\"\",'1. Order'!J784)","v":""},{"$f":"IF('1. Order'!K784=\"\",\"\",'1. Order'!K784)","v":""},{"$f":"IF('1. Order'!L784=\"\",\"\",'1. Order'!L784)","v":""},{"$f":"IF('1. Order'!M784=\"\",\"\",'1. Order'!M784)","v":""},{"$f":"IF('1. Order'!N784=\"\",\"\",'1. Order'!N784)","v":""},{"$f":"IF('1. Order'!O784=\"\",\"\",'1. Order'!O784)","v":{"$error":"#N/A"}},{"$f":"IF('1. Order'!P784=\"\",\"\",'1. Order'!P784)","v":{"$error":"#N/A"}},{"$f":"IF('1. Order'!Q784=\"\",\"\",'1. Order'!Q784)","v":""},{"$f":"IF('1. Order'!R784=\"\",\"\",'1. Order'!R784)","v":""},{"$f":"IF('1. Order'!S784=\"\",\"\",'1. Order'!S784)","v":""},{"$f":"IF('1. Order'!V784=\"\",\"\",'1. Order'!V784)","v":""},{"$f":"IF('1. Order'!W784=\"\",\"\",'1. Order'!W784)","v":""},{"$f":"IF('1. Order'!X784=\"\",\"\",'1. Order'!X784)","v":"EUR"},{"$f":"IF('1. Order'!Y784=\"\",\"\",'1. Order'!Y784)","v":""},{"$f":"IF('1. Order'!Z784=\"\",\"\",'1. Order'!Z784)","v":""},{"$f":"IF('1. Order'!AA784=\"\",\"\",'1. Order'!AA784)","v":""},null,{"$f":"IF('1. Order'!AS784=\"\",\"\",'1. Order'!AS784)","v":""},{"$f":"IF('1. Order'!AT784=\"\",\"\",'1. Order'!AT784)","v":""},null,null,null,null,null,null,null,{"$f":"IF('1. Order'!AX784=\"\",\"\",'1. Order'!AX784)","v":""},{"$f":"IF('1. Order'!AY784=\"\",\"\",'1. Order'!AY784)","v":""},{"$f":"IF('1. Order'!AZ784=\"\",\"\",'1. Order'!AZ784)","v":""},{"$f":"IF('1. Order'!BA784=\"\",\"\",'1. Order'!BA784)","v":""},{"$f":"IF('1. Order'!BC784=\"\",\"\",'1. Order'!BC784)","v":""},{"$f":"IF('1. Order'!BD784=\"\",\"\",'1. Order'!BD784)","v":6},{"$f":"IF('1. Order'!BE784=\"\",\"\",'1. Order'!BE784)","v":"None"},{"$f":"IF('1. Order'!BF784=\"\",\"\",'1. Order'!BF784)","v":"Parcel"},{"$f":"IF('1. Order'!BG784=\"\",\"\",'1. Order'!BG784)","v":"ZWO"}]
[{"$f":"IF('1. Order'!F785=\"\",\"\",'1. Order'!F785)","v":""},{"$f":"IF('1. Order'!G785=\"\",\"\",'1. Order'!G785)","v":""},{"$f":"IF('1. Order'!H785=\"\",\"\",'1. Order'!H785)","v":""},{"$f":"IF('1. Order'!I785=\"\",\"\",'1. Order'!I785)","v":""},{"$f":"IF('1. Order'!J785=\"\",\"\",'1. Order'!J785)","v":""},{"$f":"IF('1. Order'!K785=\"\",\"\",'1. Order'!K785)","v":""},{"$f":"IF('1. Order'!L785=\"\",\"\",'1. Order'!L785)","v":""},{"$f":"IF('1. Order'!M785=\"\",\"\",'1. Order'!M785)","v":""},{"$f":"IF('1. Order'!N785=\"\",\"\",'1. Order'!N785)","v":""},{"$f":"IF('1. Order'!O785=\"\",\"\",'1. Order'!O785)","v":{"$error":"#N/A"}},{"$f":"IF('1. Order'!P785=\"\",\"\",'1. Order'!P785)","v":{"$error":"#N/A"}},{"$f":"IF('1. Order'!Q785=\"\",\"\",'1. Order'!Q785)","v":""},{"$f":"IF('1. Order'!R785=\"\",\"\",'1. Order'!R785)","v":""},{"$f":"IF('1. Order'!S785=\"\",\"\",'1. Order'!S785)","v":""},{"$f":"IF('1. Order'!V785=\"\",\"\",'1. Order'!V785)","v":""},{"$f":"IF('1. Order'!W785=\"\",\"\",'1. Order'!W785)","v":""},{"$f":"IF('1. Order'!X785=\"\",\"\",'1. Order'!X785)","v":"EUR"},{"$f":"IF('1. Order'!Y785=\"\",\"\",'1. Order'!Y785)","v":""},{"$f":"IF('1. Order'!Z785=\"\",\"\",'1. Order'!Z785)","v":""},{"$f":"IF('1. Order'!AA785=\"\",\"\",'1. Order'!AA785)","v":""},null,{"$f":"IF('1. Order'!AS785=\"\",\"\",'1. Order'!AS785)","v":""},{"$f":"IF('1. Order'!AT785=\"\",\"\",'1. Order'!AT785)","v":""},null,null,null,null,null,null,null,{"$f":"IF('1. Order'!AX785=\"\",\"\",'1. Order'!AX785)","v":""},{"$f":"IF('1. Order'!AY785=\"\",\"\",'1. Order'!AY785)","v":""},{"$f":"IF('1. Order'!AZ785=\"\",\"\",'1. Order'!AZ785)","v":""},{"$f":"IF('1. Order'!BA785=\"\",\"\",'1. Order'!BA785)","v":""},{"$f":"IF('1. Order'!BC785=\"\",\"\",'1. Order'!BC785)","v":""},{"$f":"IF('1. Order'!BD785=\"\",\"\",'1. Order'!BD785)","v":6},{"$f":"IF('1. Order'!BE785=\"\",\"\",'1. Order'!BE785)","v":"None"},{"$f":"IF('1. Order'!BF785=\"\",\"\",'1. Order'!BF785)","v":"Parcel"},{"$f":"IF('1. Order'!BG785=\"\",\"\",'1. Order'!BG785)","v":"ZWO"}]
[{"$f":"IF('1. Order'!F786=\"\",\"\",'1. Order'!F786)","v":""},{"$f":"IF('1. Order'!G786=\"\",\"\",'1. Order'!G786)","v":""},{"$f":"IF('1. Order'!H786=\"\",\"\",'1. Order'!H786)","v":""},{"$f":"IF('1. Order'!I786=\"\",\"\",'1. Order'!I786)","v":""},{"$f":"IF('1. Order'!J786=\"\",\"\",'1. Order'!J786)","v":""},{"$f":"IF('1. Order'!K786=\"\",\"\",'1. Order'!K786)","v":""},{"$f":"IF('1. Order'!L786=\"\",\"\",'1. Order'!L786)","v":""},{"$f":"IF('1. Order'!M786=\"\",\"\",'1. Order'!M786)","v":""},{"$f":"IF('1. Order'!N786=\"\",\"\",'1. Order'!N786)","v":""},{"$f":"IF('1. Order'!O786=\"\",\"\",'1. Order'!O786)","v":{"$error":"#N/A"}},{"$f":"IF('1. Order'!P786=\"\",\"\",'1. Order'!P786)","v":{"$error":"#N/A"}},{"$f":"IF('1. Order'!Q786=\"\",\"\",'1. Order'!Q786)","v":""},{"$f":"IF('1. Order'!R786=\"\",\"\",'1. Order'!R786)","v":""},{"$f":"IF('1. Order'!S786=\"\",\"\",'1. Order'!S786)","v":""},{"$f":"IF('1. Order'!V786=\"\",\"\",'1. Order'!V786)","v":""},{"$f":"IF('1. Order'!W786=\"\",\"\",'1. Order'!W786)","v":""},{"$f":"IF('1. Order'!X786=\"\",\"\",'1. Order'!X786)","v":"EUR"},{"$f":"IF('1. Order'!Y786=\"\",\"\",'1. Order'!Y786)","v":""},{"$f":"IF('1. Order'!Z786=\"\",\"\",'1. Order'!Z786)","v":""},{"$f":"IF('1. Order'!AA786=\"\",\"\",'1. Order'!AA786)","v":""},null,{"$f":"IF('1. Order'!AS786=\"\",\"\",'1. Order'!AS786)","v":""},{"$f":"IF('1. Order'!AT786=\"\",\"\",'1. Order'!AT786)","v":""},null,null,null,null,null,null,null,{"$f":"IF('1. Order'!AX786=\"\",\"\",'1. Order'!AX786)","v":""},{"$f":"IF('1. Order'!AY786=\"\",\"\",'1. Order'!AY786)","v":""},{"$f":"IF('1. Order'!AZ786=\"\",\"\",'1. Order'!AZ786)","v":""},{"$f":"IF('1. Order'!BA786=\"\",\"\",'1. Order'!BA786)","v":""},{"$f":"IF('1. Order'!BC786=\"\",\"\",'1. Order'!BC786)","v":""},{"$f":"IF('1. Order'!BD786=\"\",\"\",'1. Order'!BD786)","v":6},{"$f":"IF('1. Order'!BE786=\"\",\"\",'1. Order'!BE786)","v":"None"},{"$f":"IF('1. Order'!BF786=\"\",\"\",'1. Order'!BF786)","v":"Parcel"},{"$f":"IF('1. Order'!BG786=\"\",\"\",'1. Order'!BG786)","v":"ZWO"}]
[{"$f":"IF('1. Order'!F787=\"\",\"\",'1. Order'!F787)","v":""},{"$f":"IF('1. Order'!G787=\"\",\"\",'1. Order'!G787)","v":""},{"$f":"IF('1. Order'!H787=\"\",\"\",'1. Order'!H787)","v":""},{"$f":"IF('1. Order'!I787=\"\",\"\",'1. Order'!I787)","v":""},{"$f":"IF('1. Order'!J787=\"\",\"\",'1. Order'!J787)","v":""},{"$f":"IF('1. Order'!K787=\"\",\"\",'1. Order'!K787)","v":""},{"$f":"IF('1. Order'!L787=\"\",\"\",'1. Order'!L787)","v":""},{"$f":"IF('1. Order'!M787=\"\",\"\",'1. Order'!M787)","v":""},{"$f":"IF('1. Order'!N787=\"\",\"\",'1. Order'!N787)","v":""},{"$f":"IF('1. Order'!O787=\"\",\"\",'1. Order'!O787)","v":{"$error":"#N/A"}},{"$f":"IF('1. Order'!P787=\"\",\"\",'1. Order'!P787)","v":{"$error":"#N/A"}},{"$f":"IF('1. Order'!Q787=\"\",\"\",'1. Order'!Q787)","v":""},{"$f":"IF('1. Order'!R787=\"\",\"\",'1. Order'!R787)","v":""},{"$f":"IF('1. Order'!S787=\"\",\"\",'1. Order'!S787)","v":""},{"$f":"IF('1. Order'!V787=\"\",\"\",'1. Order'!V787)","v":""},{"$f":"IF('1. Order'!W787=\"\",\"\",'1. Order'!W787)","v":""},{"$f":"IF('1. Order'!X787=\"\",\"\",'1. Order'!X787)","v":"EUR"},{"$f":"IF('1. Order'!Y787=\"\",\"\",'1. Order'!Y787)","v":""},{"$f":"IF('1. Order'!Z787=\"\",\"\",'1. Order'!Z787)","v":""},{"$f":"IF('1. Order'!AA787=\"\",\"\",'1. Order'!AA787)","v":""},null,{"$f":"IF('1. Order'!AS787=\"\",\"\",'1. Order'!AS787)","v":""},{"$f":"IF('1. Order'!AT787=\"\",\"\",'1. Order'!AT787)","v":""},null,null,null,null,null,null,null,{"$f":"IF('1. Order'!AX787=\"\",\"\",'1. Order'!AX787)","v":""},{"$f":"IF('1. Order'!AY787=\"\",\"\",'1. Order'!AY787)","v":""},{"$f":"IF('1. Order'!AZ787=\"\",\"\",'1. Order'!AZ787)","v":""},{"$f":"IF('1. Order'!BA787=\"\",\"\",'1. Order'!BA787)","v":""},{"$f":"IF('1. Order'!BC787=\"\",\"\",'1. Order'!BC787)","v":""},{"$f":"IF('1. Order'!BD787=\"\",\"\",'1. Order'!BD787)","v":6},{"$f":"IF('1. Order'!BE787=\"\",\"\",'1. Order'!BE787)","v":"None"},{"$f":"IF('1. Order'!BF787=\"\",\"\",'1. Order'!BF787)","v":"Parcel"},{"$f":"IF('1. Order'!BG787=\"\",\"\",'1. Order'!BG787)","v":"ZWO"}]
[{"$f":"IF('1. Order'!F788=\"\",\"\",'1. Order'!F788)","v":""},{"$f":"IF('1. Order'!G788=\"\",\"\",'1. Order'!G788)","v":""},{"$f":"IF('1. Order'!H788=\"\",\"\",'1. Order'!H788)","v":""},{"$f":"IF('1. Order'!I788=\"\",\"\",'1. Order'!I788)","v":""},{"$f":"IF('1. Order'!J788=\"\",\"\",'1. Order'!J788)","v":""},{"$f":"IF('1. Order'!K788=\"\",\"\",'1. Order'!K788)","v":""},{"$f":"IF('1. Order'!L788=\"\",\"\",'1. Order'!L788)","v":""},{"$f":"IF('1. Order'!M788=\"\",\"\",'1. Order'!M788)","v":""},{"$f":"IF('1. Order'!N788=\"\",\"\",'1. Order'!N788)","v":""},{"$f":"IF('1. Order'!O788=\"\",\"\",'1. Order'!O788)","v":{"$error":"#N/A"}},{"$f":"IF('1. Order'!P788=\"\",\"\",'1. Order'!P788)","v":{"$error":"#N/A"}},{"$f":"IF('1. Order'!Q788=\"\",\"\",'1. Order'!Q788)","v":""},{"$f":"IF('1. Order'!R788=\"\",\"\",'1. Order'!R788)","v":""},{"$f":"IF('1. Order'!S788=\"\",\"\",'1. Order'!S788)","v":""},{"$f":"IF('1. Order'!V788=\"\",\"\",'1. Order'!V788)","v":""},{"$f":"IF('1. Order'!W788=\"\",\"\",'1. Order'!W788)","v":""},{"$f":"IF('1. Order'!X788=\"\",\"\",'1. Order'!X788)","v":"EUR"},{"$f":"IF('1. Order'!Y788=\"\",\"\",'1. Order'!Y788)","v":""},{"$f":"IF('1. Order'!Z788=\"\",\"\",'1. Order'!Z788)","v":""},{"$f":"IF('1. Order'!AA788=\"\",\"\",'1. Order'!AA788)","v":""},null,{"$f":"IF('1. Order'!AS788=\"\",\"\",'1. Order'!AS788)","v":""},{"$f":"IF('1. Order'!AT788=\"\",\"\",'1. Order'!AT788)","v":""},null,null,null,null,null,null,null,{"$f":"IF('1. Order'!AX788=\"\",\"\",'1. Order'!AX788)","v":""},{"$f":"IF('1. Order'!AY788=\"\",\"\",'1. Order'!AY788)","v":""},{"$f":"IF('1. Order'!AZ788=\"\",\"\",'1. Order'!AZ788)","v":""},{"$f":"IF('1. Order'!BA788=\"\",\"\",'1. Order'!BA788)","v":""},{"$f":"IF('1. Order'!BC788=\"\",\"\",'1. Order'!BC788)","v":""},{"$f":"IF('1. Order'!BD788=\"\",\"\",'1. Order'!BD788)","v":6},{"$f":"IF('1. Order'!BE788=\"\",\"\",'1. Order'!BE788)","v":"None"},{"$f":"IF('1. Order'!BF788=\"\",\"\",'1. Order'!BF788)","v":"Parcel"},{"$f":"IF('1. Order'!BG788=\"\",\"\",'1. Order'!BG788)","v":"ZWO"}]
[{"$f":"IF('1. Order'!F789=\"\",\"\",'1. Order'!F789)","v":""},{"$f":"IF('1. Order'!G789=\"\",\"\",'1. Order'!G789)","v":""},{"$f":"IF('1. Order'!H789=\"\",\"\",'1. Order'!H789)","v":""},{"$f":"IF('1. Order'!I789=\"\",\"\",'1. Order'!I789)","v":""},{"$f":"IF('1. Order'!J789=\"\",\"\",'1. Order'!J789)","v":""},{"$f":"IF('1. Order'!K789=\"\",\"\",'1. Order'!K789)","v":""},{"$f":"IF('1. Order'!L789=\"\",\"\",'1. Order'!L789)","v":""},{"$f":"IF('1. Order'!M789=\"\",\"\",'1. Order'!M789)","v":""},{"$f":"IF('1. Order'!N789=\"\",\"\",'1. Order'!N789)","v":""},{"$f":"IF('1. Order'!O789=\"\",\"\",'1. Order'!O789)","v":{"$error":"#N/A"}},{"$f":"IF('1. Order'!P789=\"\",\"\",'1. Order'!P789)","v":{"$error":"#N/A"}},{"$f":"IF('1. Order'!Q789=\"\",\"\",'1. Order'!Q789)","v":""},{"$f":"IF('1. Order'!R789=\"\",\"\",'1. Order'!R789)","v":""},{"$f":"IF('1. Order'!S789=\"\",\"\",'1. Order'!S789)","v":""},{"$f":"IF('1. Order'!V789=\"\",\"\",'1. Order'!V789)","v":""},{"$f":"IF('1. Order'!W789=\"\",\"\",'1. Order'!W789)","v":""},{"$f":"IF('1. Order'!X789=\"\",\"\",'1. Order'!X789)","v":"EUR"},{"$f":"IF('1. Order'!Y789=\"\",\"\",'1. Order'!Y789)","v":""},{"$f":"IF('1. Order'!Z789=\"\",\"\",'1. Order'!Z789)","v":""},{"$f":"IF('1. Order'!AA789=\"\",\"\",'1. Order'!AA789)","v":""},null,{"$f":"IF('1. Order'!AS789=\"\",\"\",'1. Order'!AS789)","v":""},{"$f":"IF('1. Order'!AT789=\"\",\"\",'1. Order'!AT789)","v":""},null,null,null,null,null,null,null,{"$f":"IF('1. Order'!AX789=\"\",\"\",'1. Order'!AX789)","v":""},{"$f":"IF('1. Order'!AY789=\"\",\"\",'1. Order'!AY789)","v":""},{"$f":"IF('1. Order'!AZ789=\"\",\"\",'1. Order'!AZ789)","v":""},{"$f":"IF('1. Order'!BA789=\"\",\"\",'1. Order'!BA789)","v":""},{"$f":"IF('1. Order'!BC789=\"\",\"\",'1. Order'!BC789)","v":""},{"$f":"IF('1. Order'!BD789=\"\",\"\",'1. Order'!BD789)","v":6},{"$f":"IF('1. Order'!BE789=\"\",\"\",'1. Order'!BE789)","v":"None"},{"$f":"IF('1. Order'!BF789=\"\",\"\",'1. Order'!BF789)","v":"Parcel"},{"$f":"IF('1. Order'!BG789=\"\",\"\",'1. Order'!BG789)","v":"ZWO"}]
[{"$f":"IF('1. Order'!F790=\"\",\"\",'1. Order'!F790)","v":""},{"$f":"IF('1. Order'!G790=\"\",\"\",'1. Order'!G790)","v":""},{"$f":"IF('1. Order'!H790=\"\",\"\",'1. Order'!H790)","v":""},{"$f":"IF('1. Order'!I790=\"\",\"\",'1. Order'!I790)","v":""},{"$f":"IF('1. Order'!J790=\"\",\"\",'1. Order'!J790)","v":""},{"$f":"IF('1. Order'!K790=\"\",\"\",'1. Order'!K790)","v":""},{"$f":"IF('1. Order'!L790=\"\",\"\",'1. Order'!L790)","v":""},{"$f":"IF('1. Order'!M790=\"\",\"\",'1. Order'!M790)","v":""},{"$f":"IF('1. Order'!N790=\"\",\"\",'1. Order'!N790)","v":""},{"$f":"IF('1. Order'!O790=\"\",\"\",'1. Order'!O790)","v":{"$error":"#N/A"}},{"$f":"IF('1. Order'!P790=\"\",\"\",'1. Order'!P790)","v":{"$error":"#N/A"}},{"$f":"IF('1. Order'!Q790=\"\",\"\",'1. Order'!Q790)","v":""},{"$f":"IF('1. Order'!R790=\"\",\"\",'1. Order'!R790)","v":""},{"$f":"IF('1. Order'!S790=\"\",\"\",'1. Order'!S790)","v":""},{"$f":"IF('1. Order'!V790=\"\",\"\",'1. Order'!V790)","v":""},{"$f":"IF('1. Order'!W790=\"\",\"\",'1. Order'!W790)","v":""},{"$f":"IF('1. Order'!X790=\"\",\"\",'1. Order'!X790)","v":"EUR"},{"$f":"IF('1. Order'!Y790=\"\",\"\",'1. Order'!Y790)","v":""},{"$f":"IF('1. Order'!Z790=\"\",\"\",'1. Order'!Z790)","v":""},{"$f":"IF('1. Order'!AA790=\"\",\"\",'1. Order'!AA790)","v":""},null,{"$f":"IF('1. Order'!AS790=\"\",\"\",'1. Order'!AS790)","v":""},{"$f":"IF('1. Order'!AT790=\"\",\"\",'1. Order'!AT790)","v":""},null,null,null,null,null,null,null,{"$f":"IF('1. Order'!AX790=\"\",\"\",'1. Order'!AX790)","v":""},{"$f":"IF('1. Order'!AY790=\"\",\"\",'1. Order'!AY790)","v":""},{"$f":"IF('1. Order'!AZ790=\"\",\"\",'1. Order'!AZ790)","v":""},{"$f":"IF('1. Order'!BA790=\"\",\"\",'1. Order'!BA790)","v":""},{"$f":"IF('1. Order'!BC790=\"\",\"\",'1. Order'!BC790)","v":""},{"$f":"IF('1. Order'!BD790=\"\",\"\",'1. Order'!BD790)","v":6},{"$f":"IF('1. Order'!BE790=\"\",\"\",'1. Order'!BE790)","v":"None"},{"$f":"IF('1. Order'!BF790=\"\",\"\",'1. Order'!BF790)","v":"Parcel"},{"$f":"IF('1. Order'!BG790=\"\",\"\",'1. Order'!BG790)","v":"ZWO"}]
[{"$f":"IF('1. Order'!F791=\"\",\"\",'1. Order'!F791)","v":""},{"$f":"IF('1. Order'!G791=\"\",\"\",'1. Order'!G791)","v":""},{"$f":"IF('1. Order'!H791=\"\",\"\",'1. Order'!H791)","v":""},{"$f":"IF('1. Order'!I791=\"\",\"\",'1. Order'!I791)","v":""},{"$f":"IF('1. Order'!J791=\"\",\"\",'1. Order'!J791)","v":""},{"$f":"IF('1. Order'!K791=\"\",\"\",'1. Order'!K791)","v":""},{"$f":"IF('1. Order'!L791=\"\",\"\",'1. Order'!L791)","v":""},{"$f":"IF('1. Order'!M791=\"\",\"\",'1. Order'!M791)","v":""},{"$f":"IF('1. Order'!N791=\"\",\"\",'1. Order'!N791)","v":""},{"$f":"IF('1. Order'!O791=\"\",\"\",'1. Order'!O791)","v":{"$error":"#N/A"}},{"$f":"IF('1. Order'!P791=\"\",\"\",'1. Order'!P791)","v":{"$error":"#N/A"}},{"$f":"IF('1. Order'!Q791=\"\",\"\",'1. Order'!Q791)","v":""},{"$f":"IF('1. Order'!R791=\"\",\"\",'1. Order'!R791)","v":""},{"$f":"IF('1. Order'!S791=\"\",\"\",'1. Order'!S791)","v":""},{"$f":"IF('1. Order'!V791=\"\",\"\",'1. Order'!V791)","v":""},{"$f":"IF('1. Order'!W791=\"\",\"\",'1. Order'!W791)","v":""},{"$f":"IF('1. Order'!X791=\"\",\"\",'1. Order'!X791)","v":"EUR"},{"$f":"IF('1. Order'!Y791=\"\",\"\",'1. Order'!Y791)","v":""},{"$f":"IF('1. Order'!Z791=\"\",\"\",'1. Order'!Z791)","v":""},{"$f":"IF('1. Order'!AA791=\"\",\"\",'1. Order'!AA791)","v":""},null,{"$f":"IF('1. Order'!AS791=\"\",\"\",'1. Order'!AS791)","v":""},{"$f":"IF('1. Order'!AT791=\"\",\"\",'1. Order'!AT791)","v":""},null,null,null,null,null,null,null,{"$f":"IF('1. Order'!AX791=\"\",\"\",'1. Order'!AX791)","v":""},{"$f":"IF('1. Order'!AY791=\"\",\"\",'1. Order'!AY791)","v":""},{"$f":"IF('1. Order'!AZ791=\"\",\"\",'1. Order'!AZ791)","v":""},{"$f":"IF('1. Order'!BA791=\"\",\"\",'1. Order'!BA791)","v":""},{"$f":"IF('1. Order'!BC791=\"\",\"\",'1. Order'!BC791)","v":""},{"$f":"IF('1. Order'!BD791=\"\",\"\",'1. Order'!BD791)","v":6},{"$f":"IF('1. Order'!BE791=\"\",\"\",'1. Order'!BE791)","v":"None"},{"$f":"IF('1. Order'!BF791=\"\",\"\",'1. Order'!BF791)","v":"Parcel"},{"$f":"IF('1. Order'!BG791=\"\",\"\",'1. Order'!BG791)","v":"ZWO"}]
[{"$f":"IF('1. Order'!F792=\"\",\"\",'1. Order'!F792)","v":""},{"$f":"IF('1. Order'!G792=\"\",\"\",'1. Order'!G792)","v":""},{"$f":"IF('1. Order'!H792=\"\",\"\",'1. Order'!H792)","v":""},{"$f":"IF('1. Order'!I792=\"\",\"\",'1. Order'!I792)","v":""},{"$f":"IF('1. Order'!J792=\"\",\"\",'1. Order'!J792)","v":""},{"$f":"IF('1. Order'!K792=\"\",\"\",'1. Order'!K792)","v":""},{"$f":"IF('1. Order'!L792=\"\",\"\",'1. Order'!L792)","v":""},{"$f":"IF('1. Order'!M792=\"\",\"\",'1. Order'!M792)","v":""},{"$f":"IF('1. Order'!N792=\"\",\"\",'1. Order'!N792)","v":""},{"$f":"IF('1. Order'!O792=\"\",\"\",'1. Order'!O792)","v":{"$error":"#N/A"}},{"$f":"IF('1. Order'!P792=\"\",\"\",'1. Order'!P792)","v":{"$error":"#N/A"}},{"$f":"IF('1. Order'!Q792=\"\",\"\",'1. Order'!Q792)","v":""},{"$f":"IF('1. Order'!R792=\"\",\"\",'1. Order'!R792)","v":""},{"$f":"IF('1. Order'!S792=\"\",\"\",'1. Order'!S792)","v":""},{"$f":"IF('1. Order'!V792=\"\",\"\",'1. Order'!V792)","v":""},{"$f":"IF('1. Order'!W792=\"\",\"\",'1. Order'!W792)","v":""},{"$f":"IF('1. Order'!X792=\"\",\"\",'1. Order'!X792)","v":"EUR"},{"$f":"IF('1. Order'!Y792=\"\",\"\",'1. Order'!Y792)","v":""},{"$f":"IF('1. Order'!Z792=\"\",\"\",'1. Order'!Z792)","v":""},{"$f":"IF('1. Order'!AA792=\"\",\"\",'1. Order'!AA792)","v":""},null,{"$f":"IF('1. Order'!AS792=\"\",\"\",'1. Order'!AS792)","v":""},{"$f":"IF('1. Order'!AT792=\"\",\"\",'1. Order'!AT792)","v":""},null,null,null,null,null,null,null,{"$f":"IF('1. Order'!AX792=\"\",\"\",'1. Order'!AX792)","v":""},{"$f":"IF('1. Order'!AY792=\"\",\"\",'1. Order'!AY792)","v":""},{"$f":"IF('1. Order'!AZ792=\"\",\"\",'1. Order'!AZ792)","v":""},{"$f":"IF('1. Order'!BA792=\"\",\"\",'1. Order'!BA792)","v":""},{"$f":"IF('1. Order'!BC792=\"\",\"\",'1. Order'!BC792)","v":""},{"$f":"IF('1. Order'!BD792=\"\",\"\",'1. Order'!BD792)","v":6},{"$f":"IF('1. Order'!BE792=\"\",\"\",'1. Order'!BE792)","v":"None"},{"$f":"IF('1. Order'!BF792=\"\",\"\",'1. Order'!BF792)","v":"Parcel"},{"$f":"IF('1. Order'!BG792=\"\",\"\",'1. Order'!BG792)","v":"ZWO"}]
[{"$f":"IF('1. Order'!F793=\"\",\"\",'1. Order'!F793)","v":""},{"$f":"IF('1. Order'!G793=\"\",\"\",'1. Order'!G793)","v":""},{"$f":"IF('1. Order'!H793=\"\",\"\",'1. Order'!H793)","v":""},{"$f":"IF('1. Order'!I793=\"\",\"\",'1. Order'!I793)","v":""},{"$f":"IF('1. Order'!J793=\"\",\"\",'1. Order'!J793)","v":""},{"$f":"IF('1. Order'!K793=\"\",\"\",'1. Order'!K793)","v":""},{"$f":"IF('1. Order'!L793=\"\",\"\",'1. Order'!L793)","v":""},{"$f":"IF('1. Order'!M793=\"\",\"\",'1. Order'!M793)","v":""},{"$f":"IF('1. Order'!N793=\"\",\"\",'1. Order'!N793)","v":""},{"$f":"IF('1. Order'!O793=\"\",\"\",'1. Order'!O793)","v":{"$error":"#N/A"}},{"$f":"IF('1. Order'!P793=\"\",\"\",'1. Order'!P793)","v":{"$error":"#N/A"}},{"$f":"IF('1. Order'!Q793=\"\",\"\",'1. Order'!Q793)","v":""},{"$f":"IF('1. Order'!R793=\"\",\"\",'1. Order'!R793)","v":""},{"$f":"IF('1. Order'!S793=\"\",\"\",'1. Order'!S793)","v":""},{"$f":"IF('1. Order'!V793=\"\",\"\",'1. Order'!V793)","v":""},{"$f":"IF('1. Order'!W793=\"\",\"\",'1. Order'!W793)","v":""},{"$f":"IF('1. Order'!X793=\"\",\"\",'1. Order'!X793)","v":"EUR"},{"$f":"IF('1. Order'!Y793=\"\",\"\",'1. Order'!Y793)","v":""},{"$f":"IF('1. Order'!Z793=\"\",\"\",'1. Order'!Z793)","v":""},{"$f":"IF('1. Order'!AA793=\"\",\"\",'1. Order'!AA793)","v":""},null,{"$f":"IF('1. Order'!AS793=\"\",\"\",'1. Order'!AS793)","v":""},{"$f":"IF('1. Order'!AT793=\"\",\"\",'1. Order'!AT793)","v":""},null,null,null,null,null,null,null,{"$f":"IF('1. Order'!AX793=\"\",\"\",'1. Order'!AX793)","v":""},{"$f":"IF('1. Order'!AY793=\"\",\"\",'1. Order'!AY793)","v":""},{"$f":"IF('1. Order'!AZ793=\"\",\"\",'1. Order'!AZ793)","v":""},{"$f":"IF('1. Order'!BA793=\"\",\"\",'1. Order'!BA793)","v":""},{"$f":"IF('1. Order'!BC793=\"\",\"\",'1. Order'!BC793)","v":""},{"$f":"IF('1. Order'!BD793=\"\",\"\",'1. Order'!BD793)","v":6},{"$f":"IF('1. Order'!BE793=\"\",\"\",'1. Order'!BE793)","v":"None"},{"$f":"IF('1. Order'!BF793=\"\",\"\",'1. Order'!BF793)","v":"Parcel"},{"$f":"IF('1. Order'!BG793=\"\",\"\",'1. Order'!BG793)","v":"ZWO"}]
[{"$f":"IF('1. Order'!F794=\"\",\"\",'1. Order'!F794)","v":""},{"$f":"IF('1. Order'!G794=\"\",\"\",'1. Order'!G794)","v":""},{"$f":"IF('1. Order'!H794=\"\",\"\",'1. Order'!H794)","v":""},{"$f":"IF('1. Order'!I794=\"\",\"\",'1. Order'!I794)","v":""},{"$f":"IF('1. Order'!J794=\"\",\"\",'1. Order'!J794)","v":""},{"$f":"IF('1. Order'!K794=\"\",\"\",'1. Order'!K794)","v":""},{"$f":"IF('1. Order'!L794=\"\",\"\",'1. Order'!L794)","v":""},{"$f":"IF('1. Order'!M794=\"\",\"\",'1. Order'!M794)","v":""},{"$f":"IF('1. Order'!N794=\"\",\"\",'1. Order'!N794)","v":""},{"$f":"IF('1. Order'!O794=\"\",\"\",'1. Order'!O794)","v":{"$error":"#N/A"}},{"$f":"IF('1. Order'!P794=\"\",\"\",'1. Order'!P794)","v":{"$error":"#N/A"}},{"$f":"IF('1. Order'!Q794=\"\",\"\",'1. Order'!Q794)","v":""},{"$f":"IF('1. Order'!R794=\"\",\"\",'1. Order'!R794)","v":""},{"$f":"IF('1. Order'!S794=\"\",\"\",'1. Order'!S794)","v":""},{"$f":"IF('1. Order'!V794=\"\",\"\",'1. Order'!V794)","v":""},{"$f":"IF('1. Order'!W794=\"\",\"\",'1. Order'!W794)","v":""},{"$f":"IF('1. Order'!X794=\"\",\"\",'1. Order'!X794)","v":"EUR"},{"$f":"IF('1. Order'!Y794=\"\",\"\",'1. Order'!Y794)","v":""},{"$f":"IF('1. Order'!Z794=\"\",\"\",'1. Order'!Z794)","v":""},{"$f":"IF('1. Order'!AA794=\"\",\"\",'1. Order'!AA794)","v":""},null,{"$f":"IF('1. Order'!AS794=\"\",\"\",'1. Order'!AS794)","v":""},{"$f":"IF('1. Order'!AT794=\"\",\"\",'1. Order'!AT794)","v":""},null,null,null,null,null,null,null,{"$f":"IF('1. Order'!AX794=\"\",\"\",'1. Order'!AX794)","v":""},{"$f":"IF('1. Order'!AY794=\"\",\"\",'1. Order'!AY794)","v":""},{"$f":"IF('1. Order'!AZ794=\"\",\"\",'1. Order'!AZ794)","v":""},{"$f":"IF('1. Order'!BA794=\"\",\"\",'1. Order'!BA794)","v":""},{"$f":"IF('1. Order'!BC794=\"\",\"\",'1. Order'!BC794)","v":""},{"$f":"IF('1. Order'!BD794=\"\",\"\",'1. Order'!BD794)","v":6},{"$f":"IF('1. Order'!BE794=\"\",\"\",'1. Order'!BE794)","v":"None"},{"$f":"IF('1. Order'!BF794=\"\",\"\",'1. Order'!BF794)","v":"Parcel"},{"$f":"IF('1. Order'!BG794=\"\",\"\",'1. Order'!BG794)","v":"ZWO"}]
[{"$f":"IF('1. Order'!F795=\"\",\"\",'1. Order'!F795)","v":""},{"$f":"IF('1. Order'!G795=\"\",\"\",'1. Order'!G795)","v":""},{"$f":"IF('1. Order'!H795=\"\",\"\",'1. Order'!H795)","v":""},{"$f":"IF('1. Order'!I795=\"\",\"\",'1. Order'!I795)","v":""},{"$f":"IF('1. Order'!J795=\"\",\"\",'1. Order'!J795)","v":""},{"$f":"IF('1. Order'!K795=\"\",\"\",'1. Order'!K795)","v":""},{"$f":"IF('1. Order'!L795=\"\",\"\",'1. Order'!L795)","v":""},{"$f":"IF('1. Order'!M795=\"\",\"\",'1. Order'!M795)","v":""},{"$f":"IF('1. Order'!N795=\"\",\"\",'1. Order'!N795)","v":""},{"$f":"IF('1. Order'!O795=\"\",\"\",'1. Order'!O795)","v":{"$error":"#N/A"}},{"$f":"IF('1. Order'!P795=\"\",\"\",'1. Order'!P795)","v":{"$error":"#N/A"}},{"$f":"IF('1. Order'!Q795=\"\",\"\",'1. Order'!Q795)","v":""},{"$f":"IF('1. Order'!R795=\"\",\"\",'1. Order'!R795)","v":""},{"$f":"IF('1. Order'!S795=\"\",\"\",'1. Order'!S795)","v":""},{"$f":"IF('1. Order'!V795=\"\",\"\",'1. Order'!V795)","v":""},{"$f":"IF('1. Order'!W795=\"\",\"\",'1. Order'!W795)","v":""},{"$f":"IF('1. Order'!X795=\"\",\"\",'1. Order'!X795)","v":"EUR"},{"$f":"IF('1. Order'!Y795=\"\",\"\",'1. Order'!Y795)","v":""},{"$f":"IF('1. Order'!Z795=\"\",\"\",'1. Order'!Z795)","v":""},{"$f":"IF('1. Order'!AA795=\"\",\"\",'1. Order'!AA795)","v":""},null,{"$f":"IF('1. Order'!AS795=\"\",\"\",'1. Order'!AS795)","v":""},{"$f":"IF('1. Order'!AT795=\"\",\"\",'1. Order'!AT795)","v":""},null,null,null,null,null,null,null,{"$f":"IF('1. Order'!AX795=\"\",\"\",'1. Order'!AX795)","v":""},{"$f":"IF('1. Order'!AY795=\"\",\"\",'1. Order'!AY795)","v":""},{"$f":"IF('1. Order'!AZ795=\"\",\"\",'1. Order'!AZ795)","v":""},{"$f":"IF('1. Order'!BA795=\"\",\"\",'1. Order'!BA795)","v":""},{"$f":"IF('1. Order'!BC795=\"\",\"\",'1. Order'!BC795)","v":""},{"$f":"IF('1. Order'!BD795=\"\",\"\",'1. Order'!BD795)","v":6},{"$f":"IF('1. Order'!BE795=\"\",\"\",'1. Order'!BE795)","v":"None"},{"$f":"IF('1. Order'!BF795=\"\",\"\",'1. Order'!BF795)","v":"Parcel"},{"$f":"IF('1. Order'!BG795=\"\",\"\",'1. Order'!BG795)","v":"ZWO"}]
[{"$f":"IF('1. Order'!F796=\"\",\"\",'1. Order'!F796)","v":""},{"$f":"IF('1. Order'!G796=\"\",\"\",'1. Order'!G796)","v":""},{"$f":"IF('1. Order'!H796=\"\",\"\",'1. Order'!H796)","v":""},{"$f":"IF('1. Order'!I796=\"\",\"\",'1. Order'!I796)","v":""},{"$f":"IF('1. Order'!J796=\"\",\"\",'1. Order'!J796)","v":""},{"$f":"IF('1. Order'!K796=\"\",\"\",'1. Order'!K796)","v":""},{"$f":"IF('1. Order'!L796=\"\",\"\",'1. Order'!L796)","v":""},{"$f":"IF('1. Order'!M796=\"\",\"\",'1. Order'!M796)","v":""},{"$f":"IF('1. Order'!N796=\"\",\"\",'1. Order'!N796)","v":""},{"$f":"IF('1. Order'!O796=\"\",\"\",'1. Order'!O796)","v":{"$error":"#N/A"}},{"$f":"IF('1. Order'!P796=\"\",\"\",'1. Order'!P796)","v":{"$error":"#N/A"}},{"$f":"IF('1. Order'!Q796=\"\",\"\",'1. Order'!Q796)","v":""},{"$f":"IF('1. Order'!R796=\"\",\"\",'1. Order'!R796)","v":""},{"$f":"IF('1. Order'!S796=\"\",\"\",'1. Order'!S796)","v":""},{"$f":"IF('1. Order'!V796=\"\",\"\",'1. Order'!V796)","v":""},{"$f":"IF('1. Order'!W796=\"\",\"\",'1. Order'!W796)","v":""},{"$f":"IF('1. Order'!X796=\"\",\"\",'1. Order'!X796)","v":"EUR"},{"$f":"IF('1. Order'!Y796=\"\",\"\",'1. Order'!Y796)","v":""},{"$f":"IF('1. Order'!Z796=\"\",\"\",'1. Order'!Z796)","v":""},{"$f":"IF('1. Order'!AA796=\"\",\"\",'1. Order'!AA796)","v":""},null,{"$f":"IF('1. Order'!AS796=\"\",\"\",'1. Order'!AS796)","v":""},{"$f":"IF('1. Order'!AT796=\"\",\"\",'1. Order'!AT796)","v":""},null,null,null,null,null,null,null,{"$f":"IF('1. Order'!AX796=\"\",\"\",'1. Order'!AX796)","v":""},{"$f":"IF('1. Order'!AY796=\"\",\"\",'1. Order'!AY796)","v":""},{"$f":"IF('1. Order'!AZ796=\"\",\"\",'1. Order'!AZ796)","v":""},{"$f":"IF('1. Order'!BA796=\"\",\"\",'1. Order'!BA796)","v":""},{"$f":"IF('1. Order'!BC796=\"\",\"\",'1. Order'!BC796)","v":""},{"$f":"IF('1. Order'!BD796=\"\",\"\",'1. Order'!BD796)","v":6},{"$f":"IF('1. Order'!BE796=\"\",\"\",'1. Order'!BE796)","v":"None"},{"$f":"IF('1. Order'!BF796=\"\",\"\",'1. Order'!BF796)","v":"Parcel"},{"$f":"IF('1. Order'!BG796=\"\",\"\",'1. Order'!BG796)","v":"ZWO"}]
[{"$f":"IF('1. Order'!F797=\"\",\"\",'1. Order'!F797)","v":""},{"$f":"IF('1. Order'!G797=\"\",\"\",'1. Order'!G797)","v":""},{"$f":"IF('1. Order'!H797=\"\",\"\",'1. Order'!H797)","v":""},{"$f":"IF('1. Order'!I797=\"\",\"\",'1. Order'!I797)","v":""},{"$f":"IF('1. Order'!J797=\"\",\"\",'1. Order'!J797)","v":""},{"$f":"IF('1. Order'!K797=\"\",\"\",'1. Order'!K797)","v":""},{"$f":"IF('1. Order'!L797=\"\",\"\",'1. Order'!L797)","v":""},{"$f":"IF('1. Order'!M797=\"\",\"\",'1. Order'!M797)","v":""},{"$f":"IF('1. Order'!N797=\"\",\"\",'1. Order'!N797)","v":""},{"$f":"IF('1. Order'!O797=\"\",\"\",'1. Order'!O797)","v":{"$error":"#N/A"}},{"$f":"IF('1. Order'!P797=\"\",\"\",'1. Order'!P797)","v":{"$error":"#N/A"}},{"$f":"IF('1. Order'!Q797=\"\",\"\",'1. Order'!Q797)","v":""},{"$f":"IF('1. Order'!R797=\"\",\"\",'1. Order'!R797)","v":""},{"$f":"IF('1. Order'!S797=\"\",\"\",'1. Order'!S797)","v":""},{"$f":"IF('1. Order'!V797=\"\",\"\",'1. Order'!V797)","v":""},{"$f":"IF('1. Order'!W797=\"\",\"\",'1. Order'!W797)","v":""},{"$f":"IF('1. Order'!X797=\"\",\"\",'1. Order'!X797)","v":"EUR"},{"$f":"IF('1. Order'!Y797=\"\",\"\",'1. Order'!Y797)","v":""},{"$f":"IF('1. Order'!Z797=\"\",\"\",'1. Order'!Z797)","v":""},{"$f":"IF('1. Order'!AA797=\"\",\"\",'1. Order'!AA797)","v":""},null,{"$f":"IF('1. Order'!AS797=\"\",\"\",'1. Order'!AS797)","v":""},{"$f":"IF('1. Order'!AT797=\"\",\"\",'1. Order'!AT797)","v":""},null,null,null,null,null,null,null,{"$f":"IF('1. Order'!AX797=\"\",\"\",'1. Order'!AX797)","v":""},{"$f":"IF('1. Order'!AY797=\"\",\"\",'1. Order'!AY797)","v":""},{"$f":"IF('1. Order'!AZ797=\"\",\"\",'1. Order'!AZ797)","v":""},{"$f":"IF('1. Order'!BA797=\"\",\"\",'1. Order'!BA797)","v":""},{"$f":"IF('1. Order'!BC797=\"\",\"\",'1. Order'!BC797)","v":""},{"$f":"IF('1. Order'!BD797=\"\",\"\",'1. Order'!BD797)","v":6},{"$f":"IF('1. Order'!BE797=\"\",\"\",'1. Order'!BE797)","v":"None"},{"$f":"IF('1. Order'!BF797=\"\",\"\",'1. Order'!BF797)","v":"Parcel"},{"$f":"IF('1. Order'!BG797=\"\",\"\",'1. Order'!BG797)","v":"ZWO"}]
[{"$f":"IF('1. Order'!F798=\"\",\"\",'1. Order'!F798)","v":""},{"$f":"IF('1. Order'!G798=\"\",\"\",'1. Order'!G798)","v":""},{"$f":"IF('1. Order'!H798=\"\",\"\",'1. Order'!H798)","v":""},{"$f":"IF('1. Order'!I798=\"\",\"\",'1. Order'!I798)","v":""},{"$f":"IF('1. Order'!J798=\"\",\"\",'1. Order'!J798)","v":""},{"$f":"IF('1. Order'!K798=\"\",\"\",'1. Order'!K798)","v":""},{"$f":"IF('1. Order'!L798=\"\",\"\",'1. Order'!L798)","v":""},{"$f":"IF('1. Order'!M798=\"\",\"\",'1. Order'!M798)","v":""},{"$f":"IF('1. Order'!N798=\"\",\"\",'1. Order'!N798)","v":""},{"$f":"IF('1. Order'!O798=\"\",\"\",'1. Order'!O798)","v":{"$error":"#N/A"}},{"$f":"IF('1. Order'!P798=\"\",\"\",'1. Order'!P798)","v":{"$error":"#N/A"}},{"$f":"IF('1. Order'!Q798=\"\",\"\",'1. Order'!Q798)","v":""},{"$f":"IF('1. Order'!R798=\"\",\"\",'1. Order'!R798)","v":""},{"$f":"IF('1. Order'!S798=\"\",\"\",'1. Order'!S798)","v":""},{"$f":"IF('1. Order'!V798=\"\",\"\",'1. Order'!V798)","v":""},{"$f":"IF('1. Order'!W798=\"\",\"\",'1. Order'!W798)","v":""},{"$f":"IF('1. Order'!X798=\"\",\"\",'1. Order'!X798)","v":"EUR"},{"$f":"IF('1. Order'!Y798=\"\",\"\",'1. Order'!Y798)","v":""},{"$f":"IF('1. Order'!Z798=\"\",\"\",'1. Order'!Z798)","v":""},{"$f":"IF('1. Order'!AA798=\"\",\"\",'1. Order'!AA798)","v":""},null,{"$f":"IF('1. Order'!AS798=\"\",\"\",'1. Order'!AS798)","v":""},{"$f":"IF('1. Order'!AT798=\"\",\"\",'1. Order'!AT798)","v":""},null,null,null,null,null,null,null,{"$f":"IF('1. Order'!AX798=\"\",\"\",'1. Order'!AX798)","v":""},{"$f":"IF('1. Order'!AY798=\"\",\"\",'1. Order'!AY798)","v":""},{"$f":"IF('1. Order'!AZ798=\"\",\"\",'1. Order'!AZ798)","v":""},{"$f":"IF('1. Order'!BA798=\"\",\"\",'1. Order'!BA798)","v":""},{"$f":"IF('1. Order'!BC798=\"\",\"\",'1. Order'!BC798)","v":""},{"$f":"IF('1. Order'!BD798=\"\",\"\",'1. Order'!BD798)","v":6},{"$f":"IF('1. Order'!BE798=\"\",\"\",'1. Order'!BE798)","v":"None"},{"$f":"IF('1. Order'!BF798=\"\",\"\",'1. Order'!BF798)","v":"Parcel"},{"$f":"IF('1. Order'!BG798=\"\",\"\",'1. Order'!BG798)","v":"ZWO"}]
[{"$f":"IF('1. Order'!F799=\"\",\"\",'1. Order'!F799)","v":""},{"$f":"IF('1. Order'!G799=\"\",\"\",'1. Order'!G799)","v":""},{"$f":"IF('1. Order'!H799=\"\",\"\",'1. Order'!H799)","v":""},{"$f":"IF('1. Order'!I799=\"\",\"\",'1. Order'!I799)","v":""},{"$f":"IF('1. Order'!J799=\"\",\"\",'1. Order'!J799)","v":""},{"$f":"IF('1. Order'!K799=\"\",\"\",'1. Order'!K799)","v":""},{"$f":"IF('1. Order'!L799=\"\",\"\",'1. Order'!L799)","v":""},{"$f":"IF('1. Order'!M799=\"\",\"\",'1. Order'!M799)","v":""},{"$f":"IF('1. Order'!N799=\"\",\"\",'1. Order'!N799)","v":""},{"$f":"IF('1. Order'!O799=\"\",\"\",'1. Order'!O799)","v":{"$error":"#N/A"}},{"$f":"IF('1. Order'!P799=\"\",\"\",'1. Order'!P799)","v":{"$error":"#N/A"}},{"$f":"IF('1. Order'!Q799=\"\",\"\",'1. Order'!Q799)","v":""},{"$f":"IF('1. Order'!R799=\"\",\"\",'1. Order'!R799)","v":""},{"$f":"IF('1. Order'!S799=\"\",\"\",'1. Order'!S799)","v":""},{"$f":"IF('1. Order'!V799=\"\",\"\",'1. Order'!V799)","v":""},{"$f":"IF('1. Order'!W799=\"\",\"\",'1. Order'!W799)","v":""},{"$f":"IF('1. Order'!X799=\"\",\"\",'1. Order'!X799)","v":"EUR"},{"$f":"IF('1. Order'!Y799=\"\",\"\",'1. Order'!Y799)","v":""},{"$f":"IF('1. Order'!Z799=\"\",\"\",'1. Order'!Z799)","v":""},{"$f":"IF('1. Order'!AA799=\"\",\"\",'1. Order'!AA799)","v":""},null,{"$f":"IF('1. Order'!AS799=\"\",\"\",'1. Order'!AS799)","v":""},{"$f":"IF('1. Order'!AT799=\"\",\"\",'1. Order'!AT799)","v":""},null,null,null,null,null,null,null,{"$f":"IF('1. Order'!AX799=\"\",\"\",'1. Order'!AX799)","v":""},{"$f":"IF('1. Order'!AY799=\"\",\"\",'1. Order'!AY799)","v":""},{"$f":"IF('1. Order'!AZ799=\"\",\"\",'1. Order'!AZ799)","v":""},{"$f":"IF('1. Order'!BA799=\"\",\"\",'1. Order'!BA799)","v":""},{"$f":"IF('1. Order'!BC799=\"\",\"\",'1. Order'!BC799)","v":""},{"$f":"IF('1. Order'!BD799=\"\",\"\",'1. Order'!BD799)","v":6},{"$f":"IF('1. Order'!BE799=\"\",\"\",'1. Order'!BE799)","v":"None"},{"$f":"IF('1. Order'!BF799=\"\",\"\",'1. Order'!BF799)","v":"Parcel"},{"$f":"IF('1. Order'!BG799=\"\",\"\",'1. Order'!BG799)","v":"ZWO"}]
[{"$f":"IF('1. Order'!F800=\"\",\"\",'1. Order'!F800)","v":""},{"$f":"IF('1. Order'!G800=\"\",\"\",'1. Order'!G800)","v":""},{"$f":"IF('1. Order'!H800=\"\",\"\",'1. Order'!H800)","v":""},{"$f":"IF('1. Order'!I800=\"\",\"\",'1. Order'!I800)","v":""},{"$f":"IF('1. Order'!J800=\"\",\"\",'1. Order'!J800)","v":""},{"$f":"IF('1. Order'!K800=\"\",\"\",'1. Order'!K800)","v":""},{"$f":"IF('1. Order'!L800=\"\",\"\",'1. Order'!L800)","v":""},{"$f":"IF('1. Order'!M800=\"\",\"\",'1. Order'!M800)","v":""},{"$f":"IF('1. Order'!N800=\"\",\"\",'1. Order'!N800)","v":""},{"$f":"IF('1. Order'!O800=\"\",\"\",'1. Order'!O800)","v":{"$error":"#N/A"}},{"$f":"IF('1. Order'!P800=\"\",\"\",'1. Order'!P800)","v":{"$error":"#N/A"}},{"$f":"IF('1. Order'!Q800=\"\",\"\",'1. Order'!Q800)","v":""},{"$f":"IF('1. Order'!R800=\"\",\"\",'1. Order'!R800)","v":""},{"$f":"IF('1. Order'!S800=\"\",\"\",'1. Order'!S800)","v":""},{"$f":"IF('1. Order'!V800=\"\",\"\",'1. Order'!V800)","v":""},{"$f":"IF('1. Order'!W800=\"\",\"\",'1. Order'!W800)","v":""},{"$f":"IF('1. Order'!X800=\"\",\"\",'1. Order'!X800)","v":"EUR"},{"$f":"IF('1. Order'!Y800=\"\",\"\",'1. Order'!Y800)","v":""},{"$f":"IF('1. Order'!Z800=\"\",\"\",'1. Order'!Z800)","v":""},{"$f":"IF('1. Order'!AA800=\"\",\"\",'1. Order'!AA800)","v":""},null,{"$f":"IF('1. Order'!AS800=\"\",\"\",'1. Order'!AS800)","v":""},{"$f":"IF('1. Order'!AT800=\"\",\"\",'1. Order'!AT800)","v":""},null,null,null,null,null,null,null,{"$f":"IF('1. Order'!AX800=\"\",\"\",'1. Order'!AX800)","v":""},{"$f":"IF('1. Order'!AY800=\"\",\"\",'1. Order'!AY800)","v":""},{"$f":"IF('1. Order'!AZ800=\"\",\"\",'1. Order'!AZ800)","v":""},{"$f":"IF('1. Order'!BA800=\"\",\"\",'1. Order'!BA800)","v":""},{"$f":"IF('1. Order'!BC800=\"\",\"\",'1. Order'!BC800)","v":""},{"$f":"IF('1. Order'!BD800=\"\",\"\",'1. Order'!BD800)","v":6},{"$f":"IF('1. Order'!BE800=\"\",\"\",'1. Order'!BE800)","v":"None"},{"$f":"IF('1. Order'!BF800=\"\",\"\",'1. Order'!BF800)","v":"Parcel"},{"$f":"IF('1. Order'!BG800=\"\",\"\",'1. Order'!BG800)","v":"ZWO"}]
[{"$f":"IF('1. Order'!F801=\"\",\"\",'1. Order'!F801)","v":""},{"$f":"IF('1. Order'!G801=\"\",\"\",'1. Order'!G801)","v":""},{"$f":"IF('1. Order'!H801=\"\",\"\",'1. Order'!H801)","v":""},{"$f":"IF('1. Order'!I801=\"\",\"\",'1. Order'!I801)","v":""},{"$f":"IF('1. Order'!J801=\"\",\"\",'1. Order'!J801)","v":""},{"$f":"IF('1. Order'!K801=\"\",\"\",'1. Order'!K801)","v":""},{"$f":"IF('1. Order'!L801=\"\",\"\",'1. Order'!L801)","v":""},{"$f":"IF('1. Order'!M801=\"\",\"\",'1. Order'!M801)","v":""},{"$f":"IF('1. Order'!N801=\"\",\"\",'1. Order'!N801)","v":""},{"$f":"IF('1. Order'!O801=\"\",\"\",'1. Order'!O801)","v":{"$error":"#N/A"}},{"$f":"IF('1. Order'!P801=\"\",\"\",'1. Order'!P801)","v":{"$error":"#N/A"}},{"$f":"IF('1. Order'!Q801=\"\",\"\",'1. Order'!Q801)","v":""},{"$f":"IF('1. Order'!R801=\"\",\"\",'1. Order'!R801)","v":""},{"$f":"IF('1. Order'!S801=\"\",\"\",'1. Order'!S801)","v":""},{"$f":"IF('1. Order'!V801=\"\",\"\",'1. Order'!V801)","v":""},{"$f":"IF('1. Order'!W801=\"\",\"\",'1. Order'!W801)","v":""},{"$f":"IF('1. Order'!X801=\"\",\"\",'1. Order'!X801)","v":"EUR"},{"$f":"IF('1. Order'!Y801=\"\",\"\",'1. Order'!Y801)","v":""},{"$f":"IF('1. Order'!Z801=\"\",\"\",'1. Order'!Z801)","v":""},{"$f":"IF('1. Order'!AA801=\"\",\"\",'1. Order'!AA801)","v":""},null,{"$f":"IF('1. Order'!AS801=\"\",\"\",'1. Order'!AS801)","v":""},{"$f":"IF('1. Order'!AT801=\"\",\"\",'1. Order'!AT801)","v":""},null,null,null,null,null,null,null,{"$f":"IF('1. Order'!AX801=\"\",\"\",'1. Order'!AX801)","v":""},{"$f":"IF('1. Order'!AY801=\"\",\"\",'1. Order'!AY801)","v":""},{"$f":"IF('1. Order'!AZ801=\"\",\"\",'1. Order'!AZ801)","v":""},{"$f":"IF('1. Order'!BA801=\"\",\"\",'1. Order'!BA801)","v":""},{"$f":"IF('1. Order'!BC801=\"\",\"\",'1. Order'!BC801)","v":""},{"$f":"IF('1. Order'!BD801=\"\",\"\",'1. Order'!BD801)","v":6},{"$f":"IF('1. Order'!BE801=\"\",\"\",'1. Order'!BE801)","v":"None"},{"$f":"IF('1. Order'!BF801=\"\",\"\",'1. Order'!BF801)","v":"Parcel"},{"$f":"IF('1. Order'!BG801=\"\",\"\",'1. Order'!BG801)","v":"ZWO"}]
[{"$f":"IF('1. Order'!F802=\"\",\"\",'1. Order'!F802)","v":""},{"$f":"IF('1. Order'!G802=\"\",\"\",'1. Order'!G802)","v":""},{"$f":"IF('1. Order'!H802=\"\",\"\",'1. Order'!H802)","v":""},{"$f":"IF('1. Order'!I802=\"\",\"\",'1. Order'!I802)","v":""},{"$f":"IF('1. Order'!J802=\"\",\"\",'1. Order'!J802)","v":""},{"$f":"IF('1. Order'!K802=\"\",\"\",'1. Order'!K802)","v":""},{"$f":"IF('1. Order'!L802=\"\",\"\",'1. Order'!L802)","v":""},{"$f":"IF('1. Order'!M802=\"\",\"\",'1. Order'!M802)","v":""},{"$f":"IF('1. Order'!N802=\"\",\"\",'1. Order'!N802)","v":""},{"$f":"IF('1. Order'!O802=\"\",\"\",'1. Order'!O802)","v":{"$error":"#N/A"}},{"$f":"IF('1. Order'!P802=\"\",\"\",'1. Order'!P802)","v":{"$error":"#N/A"}},{"$f":"IF('1. Order'!Q802=\"\",\"\",'1. Order'!Q802)","v":""},{"$f":"IF('1. Order'!R802=\"\",\"\",'1. Order'!R802)","v":""},{"$f":"IF('1. Order'!S802=\"\",\"\",'1. Order'!S802)","v":""},{"$f":"IF('1. Order'!V802=\"\",\"\",'1. Order'!V802)","v":""},{"$f":"IF('1. Order'!W802=\"\",\"\",'1. Order'!W802)","v":""},{"$f":"IF('1. Order'!X802=\"\",\"\",'1. Order'!X802)","v":"EUR"},{"$f":"IF('1. Order'!Y802=\"\",\"\",'1. Order'!Y802)","v":""},{"$f":"IF('1. Order'!Z802=\"\",\"\",'1. Order'!Z802)","v":""},{"$f":"IF('1. Order'!AA802=\"\",\"\",'1. Order'!AA802)","v":""},null,{"$f":"IF('1. Order'!AS802=\"\",\"\",'1. Order'!AS802)","v":""},{"$f":"IF('1. Order'!AT802=\"\",\"\",'1. Order'!AT802)","v":""},null,null,null,null,null,null,null,{"$f":"IF('1. Order'!AX802=\"\",\"\",'1. Order'!AX802)","v":""},{"$f":"IF('1. Order'!AY802=\"\",\"\",'1. Order'!AY802)","v":""},{"$f":"IF('1. Order'!AZ802=\"\",\"\",'1. Order'!AZ802)","v":""},{"$f":"IF('1. Order'!BA802=\"\",\"\",'1. Order'!BA802)","v":""},{"$f":"IF('1. Order'!BC802=\"\",\"\",'1. Order'!BC802)","v":""},{"$f":"IF('1. Order'!BD802=\"\",\"\",'1. Order'!BD802)","v":6},{"$f":"IF('1. Order'!BE802=\"\",\"\",'1. Order'!BE802)","v":"None"},{"$f":"IF('1. Order'!BF802=\"\",\"\",'1. Order'!BF802)","v":"Parcel"},{"$f":"IF('1. Order'!BG802=\"\",\"\",'1. Order'!BG802)","v":"ZWO"}]
[{"$f":"IF('1. Order'!F803=\"\",\"\",'1. Order'!F803)","v":""},{"$f":"IF('1. Order'!G803=\"\",\"\",'1. Order'!G803)","v":""},{"$f":"IF('1. Order'!H803=\"\",\"\",'1. Order'!H803)","v":""},{"$f":"IF('1. Order'!I803=\"\",\"\",'1. Order'!I803)","v":""},{"$f":"IF('1. Order'!J803=\"\",\"\",'1. Order'!J803)","v":""},{"$f":"IF('1. Order'!K803=\"\",\"\",'1. Order'!K803)","v":""},{"$f":"IF('1. Order'!L803=\"\",\"\",'1. Order'!L803)","v":""},{"$f":"IF('1. Order'!M803=\"\",\"\",'1. Order'!M803)","v":""},{"$f":"IF('1. Order'!N803=\"\",\"\",'1. Order'!N803)","v":""},{"$f":"IF('1. Order'!O803=\"\",\"\",'1. Order'!O803)","v":{"$error":"#N/A"}},{"$f":"IF('1. Order'!P803=\"\",\"\",'1. Order'!P803)","v":{"$error":"#N/A"}},{"$f":"IF('1. Order'!Q803=\"\",\"\",'1. Order'!Q803)","v":""},{"$f":"IF('1. Order'!R803=\"\",\"\",'1. Order'!R803)","v":""},{"$f":"IF('1. Order'!S803=\"\",\"\",'1. Order'!S803)","v":""},{"$f":"IF('1. Order'!V803=\"\",\"\",'1. Order'!V803)","v":""},{"$f":"IF('1. Order'!W803=\"\",\"\",'1. Order'!W803)","v":""},{"$f":"IF('1. Order'!X803=\"\",\"\",'1. Order'!X803)","v":"EUR"},{"$f":"IF('1. Order'!Y803=\"\",\"\",'1. Order'!Y803)","v":""},{"$f":"IF('1. Order'!Z803=\"\",\"\",'1. Order'!Z803)","v":""},{"$f":"IF('1. Order'!AA803=\"\",\"\",'1. Order'!AA803)","v":""},null,{"$f":"IF('1. Order'!AS803=\"\",\"\",'1. Order'!AS803)","v":""},{"$f":"IF('1. Order'!AT803=\"\",\"\",'1. Order'!AT803)","v":""},null,null,null,null,null,null,null,{"$f":"IF('1. Order'!AX803=\"\",\"\",'1. Order'!AX803)","v":""},{"$f":"IF('1. Order'!AY803=\"\",\"\",'1. Order'!AY803)","v":""},{"$f":"IF('1. Order'!AZ803=\"\",\"\",'1. Order'!AZ803)","v":""},{"$f":"IF('1. Order'!BA803=\"\",\"\",'1. Order'!BA803)","v":""},{"$f":"IF('1. Order'!BC803=\"\",\"\",'1. Order'!BC803)","v":""},{"$f":"IF('1. Order'!BD803=\"\",\"\",'1. Order'!BD803)","v":6},{"$f":"IF('1. Order'!BE803=\"\",\"\",'1. Order'!BE803)","v":"None"},{"$f":"IF('1. Order'!BF803=\"\",\"\",'1. Order'!BF803)","v":"Parcel"},{"$f":"IF('1. Order'!BG803=\"\",\"\",'1. Order'!BG803)","v":"ZWO"}]
[{"$f":"IF('1. Order'!F804=\"\",\"\",'1. Order'!F804)","v":""},{"$f":"IF('1. Order'!G804=\"\",\"\",'1. Order'!G804)","v":""},{"$f":"IF('1. Order'!H804=\"\",\"\",'1. Order'!H804)","v":""},{"$f":"IF('1. Order'!I804=\"\",\"\",'1. Order'!I804)","v":""},{"$f":"IF('1. Order'!J804=\"\",\"\",'1. Order'!J804)","v":""},{"$f":"IF('1. Order'!K804=\"\",\"\",'1. Order'!K804)","v":""},{"$f":"IF('1. Order'!L804=\"\",\"\",'1. Order'!L804)","v":""},{"$f":"IF('1. Order'!M804=\"\",\"\",'1. Order'!M804)","v":""},{"$f":"IF('1. Order'!N804=\"\",\"\",'1. Order'!N804)","v":""},{"$f":"IF('1. Order'!O804=\"\",\"\",'1. Order'!O804)","v":{"$error":"#N/A"}},{"$f":"IF('1. Order'!P804=\"\",\"\",'1. Order'!P804)","v":{"$error":"#N/A"}},{"$f":"IF('1. Order'!Q804=\"\",\"\",'1. Order'!Q804)","v":""},{"$f":"IF('1. Order'!R804=\"\",\"\",'1. Order'!R804)","v":""},{"$f":"IF('1. Order'!S804=\"\",\"\",'1. Order'!S804)","v":""},{"$f":"IF('1. Order'!V804=\"\",\"\",'1. Order'!V804)","v":""},{"$f":"IF('1. Order'!W804=\"\",\"\",'1. Order'!W804)","v":""},{"$f":"IF('1. Order'!X804=\"\",\"\",'1. Order'!X804)","v":"EUR"},{"$f":"IF('1. Order'!Y804=\"\",\"\",'1. Order'!Y804)","v":""},{"$f":"IF('1. Order'!Z804=\"\",\"\",'1. Order'!Z804)","v":""},{"$f":"IF('1. Order'!AA804=\"\",\"\",'1. Order'!AA804)","v":""},null,{"$f":"IF('1. Order'!AS804=\"\",\"\",'1. Order'!AS804)","v":""},{"$f":"IF('1. Order'!AT804=\"\",\"\",'1. Order'!AT804)","v":""},null,null,null,null,null,null,null,{"$f":"IF('1. Order'!AX804=\"\",\"\",'1. Order'!AX804)","v":""},{"$f":"IF('1. Order'!AY804=\"\",\"\",'1. Order'!AY804)","v":""},{"$f":"IF('1. Order'!AZ804=\"\",\"\",'1. Order'!AZ804)","v":""},{"$f":"IF('1. Order'!BA804=\"\",\"\",'1. Order'!BA804)","v":""},{"$f":"IF('1. Order'!BC804=\"\",\"\",'1. Order'!BC804)","v":""},{"$f":"IF('1. Order'!BD804=\"\",\"\",'1. Order'!BD804)","v":6},{"$f":"IF('1. Order'!BE804=\"\",\"\",'1. Order'!BE804)","v":"None"},{"$f":"IF('1. Order'!BF804=\"\",\"\",'1. Order'!BF804)","v":"Parcel"},{"$f":"IF('1. Order'!BG804=\"\",\"\",'1. Order'!BG804)","v":"ZWO"}]
[{"$f":"IF('1. Order'!F805=\"\",\"\",'1. Order'!F805)","v":""},{"$f":"IF('1. Order'!G805=\"\",\"\",'1. Order'!G805)","v":""},{"$f":"IF('1. Order'!H805=\"\",\"\",'1. Order'!H805)","v":""},{"$f":"IF('1. Order'!I805=\"\",\"\",'1. Order'!I805)","v":""},{"$f":"IF('1. Order'!J805=\"\",\"\",'1. Order'!J805)","v":""},{"$f":"IF('1. Order'!K805=\"\",\"\",'1. Order'!K805)","v":""},{"$f":"IF('1. Order'!L805=\"\",\"\",'1. Order'!L805)","v":""},{"$f":"IF('1. Order'!M805=\"\",\"\",'1. Order'!M805)","v":""},{"$f":"IF('1. Order'!N805=\"\",\"\",'1. Order'!N805)","v":""},{"$f":"IF('1. Order'!O805=\"\",\"\",'1. Order'!O805)","v":{"$error":"#N/A"}},{"$f":"IF('1. Order'!P805=\"\",\"\",'1. Order'!P805)","v":{"$error":"#N/A"}},{"$f":"IF('1. Order'!Q805=\"\",\"\",'1. Order'!Q805)","v":""},{"$f":"IF('1. Order'!R805=\"\",\"\",'1. Order'!R805)","v":""},{"$f":"IF('1. Order'!S805=\"\",\"\",'1. Order'!S805)","v":""},{"$f":"IF('1. Order'!V805=\"\",\"\",'1. Order'!V805)","v":""},{"$f":"IF('1. Order'!W805=\"\",\"\",'1. Order'!W805)","v":""},{"$f":"IF('1. Order'!X805=\"\",\"\",'1. Order'!X805)","v":"EUR"},{"$f":"IF('1. Order'!Y805=\"\",\"\",'1. Order'!Y805)","v":""},{"$f":"IF('1. Order'!Z805=\"\",\"\",'1. Order'!Z805)","v":""},{"$f":"IF('1. Order'!AA805=\"\",\"\",'1. Order'!AA805)","v":""},null,{"$f":"IF('1. Order'!AS805=\"\",\"\",'1. Order'!AS805)","v":""},{"$f":"IF('1. Order'!AT805=\"\",\"\",'1. Order'!AT805)","v":""},null,null,null,null,null,null,null,{"$f":"IF('1. Order'!AX805=\"\",\"\",'1. Order'!AX805)","v":""},{"$f":"IF('1. Order'!AY805=\"\",\"\",'1. Order'!AY805)","v":""},{"$f":"IF('1. Order'!AZ805=\"\",\"\",'1. Order'!AZ805)","v":""},{"$f":"IF('1. Order'!BA805=\"\",\"\",'1. Order'!BA805)","v":""},{"$f":"IF('1. Order'!BC805=\"\",\"\",'1. Order'!BC805)","v":""},{"$f":"IF('1. Order'!BD805=\"\",\"\",'1. Order'!BD805)","v":6},{"$f":"IF('1. Order'!BE805=\"\",\"\",'1. Order'!BE805)","v":"None"},{"$f":"IF('1. Order'!BF805=\"\",\"\",'1. Order'!BF805)","v":"Parcel"},{"$f":"IF('1. Order'!BG805=\"\",\"\",'1. Order'!BG805)","v":"ZWO"}]
[{"$f":"IF('1. Order'!F806=\"\",\"\",'1. Order'!F806)","v":""},{"$f":"IF('1. Order'!G806=\"\",\"\",'1. Order'!G806)","v":""},{"$f":"IF('1. Order'!H806=\"\",\"\",'1. Order'!H806)","v":""},{"$f":"IF('1. Order'!I806=\"\",\"\",'1. Order'!I806)","v":""},{"$f":"IF('1. Order'!J806=\"\",\"\",'1. Order'!J806)","v":""},{"$f":"IF('1. Order'!K806=\"\",\"\",'1. Order'!K806)","v":""},{"$f":"IF('1. Order'!L806=\"\",\"\",'1. Order'!L806)","v":""},{"$f":"IF('1. Order'!M806=\"\",\"\",'1. Order'!M806)","v":""},{"$f":"IF('1. Order'!N806=\"\",\"\",'1. Order'!N806)","v":""},{"$f":"IF('1. Order'!O806=\"\",\"\",'1. Order'!O806)","v":{"$error":"#N/A"}},{"$f":"IF('1. Order'!P806=\"\",\"\",'1. Order'!P806)","v":{"$error":"#N/A"}},{"$f":"IF('1. Order'!Q806=\"\",\"\",'1. Order'!Q806)","v":""},{"$f":"IF('1. Order'!R806=\"\",\"\",'1. Order'!R806)","v":""},{"$f":"IF('1. Order'!S806=\"\",\"\",'1. Order'!S806)","v":""},{"$f":"IF('1. Order'!V806=\"\",\"\",'1. Order'!V806)","v":""},{"$f":"IF('1. Order'!W806=\"\",\"\",'1. Order'!W806)","v":""},{"$f":"IF('1. Order'!X806=\"\",\"\",'1. Order'!X806)","v":"EUR"},{"$f":"IF('1. Order'!Y806=\"\",\"\",'1. Order'!Y806)","v":""},{"$f":"IF('1. Order'!Z806=\"\",\"\",'1. Order'!Z806)","v":""},{"$f":"IF('1. Order'!AA806=\"\",\"\",'1. Order'!AA806)","v":""},null,{"$f":"IF('1. Order'!AS806=\"\",\"\",'1. Order'!AS806)","v":""},{"$f":"IF('1. Order'!AT806=\"\",\"\",'1. Order'!AT806)","v":""},null,null,null,null,null,null,null,{"$f":"IF('1. Order'!AX806=\"\",\"\",'1. Order'!AX806)","v":""},{"$f":"IF('1. Order'!AY806=\"\",\"\",'1. Order'!AY806)","v":""},{"$f":"IF('1. Order'!AZ806=\"\",\"\",'1. Order'!AZ806)","v":""},{"$f":"IF('1. Order'!BA806=\"\",\"\",'1. Order'!BA806)","v":""},{"$f":"IF('1. Order'!BC806=\"\",\"\",'1. Order'!BC806)","v":""},{"$f":"IF('1. Order'!BD806=\"\",\"\",'1. Order'!BD806)","v":6},{"$f":"IF('1. Order'!BE806=\"\",\"\",'1. Order'!BE806)","v":"None"},{"$f":"IF('1. Order'!BF806=\"\",\"\",'1. Order'!BF806)","v":"Parcel"},{"$f":"IF('1. Order'!BG806=\"\",\"\",'1. Order'!BG806)","v":"ZWO"}]
[{"$f":"IF('1. Order'!F807=\"\",\"\",'1. Order'!F807)","v":""},{"$f":"IF('1. Order'!G807=\"\",\"\",'1. Order'!G807)","v":""},{"$f":"IF('1. Order'!H807=\"\",\"\",'1. Order'!H807)","v":""},{"$f":"IF('1. Order'!I807=\"\",\"\",'1. Order'!I807)","v":""},{"$f":"IF('1. Order'!J807=\"\",\"\",'1. Order'!J807)","v":""},{"$f":"IF('1. Order'!K807=\"\",\"\",'1. Order'!K807)","v":""},{"$f":"IF('1. Order'!L807=\"\",\"\",'1. Order'!L807)","v":""},{"$f":"IF('1. Order'!M807=\"\",\"\",'1. Order'!M807)","v":""},{"$f":"IF('1. Order'!N807=\"\",\"\",'1. Order'!N807)","v":""},{"$f":"IF('1. Order'!O807=\"\",\"\",'1. Order'!O807)","v":{"$error":"#N/A"}},{"$f":"IF('1. Order'!P807=\"\",\"\",'1. Order'!P807)","v":{"$error":"#N/A"}},{"$f":"IF('1. Order'!Q807=\"\",\"\",'1. Order'!Q807)","v":""},{"$f":"IF('1. Order'!R807=\"\",\"\",'1. Order'!R807)","v":""},{"$f":"IF('1. Order'!S807=\"\",\"\",'1. Order'!S807)","v":""},{"$f":"IF('1. Order'!V807=\"\",\"\",'1. Order'!V807)","v":""},{"$f":"IF('1. Order'!W807=\"\",\"\",'1. Order'!W807)","v":""},{"$f":"IF('1. Order'!X807=\"\",\"\",'1. Order'!X807)","v":"EUR"},{"$f":"IF('1. Order'!Y807=\"\",\"\",'1. Order'!Y807)","v":""},{"$f":"IF('1. Order'!Z807=\"\",\"\",'1. Order'!Z807)","v":""},{"$f":"IF('1. Order'!AA807=\"\",\"\",'1. Order'!AA807)","v":""},null,{"$f":"IF('1. Order'!AS807=\"\",\"\",'1. Order'!AS807)","v":""},{"$f":"IF('1. Order'!AT807=\"\",\"\",'1. Order'!AT807)","v":""},null,null,null,null,null,null,null,{"$f":"IF('1. Order'!AX807=\"\",\"\",'1. Order'!AX807)","v":""},{"$f":"IF('1. Order'!AY807=\"\",\"\",'1. Order'!AY807)","v":""},{"$f":"IF('1. Order'!AZ807=\"\",\"\",'1. Order'!AZ807)","v":""},{"$f":"IF('1. Order'!BA807=\"\",\"\",'1. Order'!BA807)","v":""},{"$f":"IF('1. Order'!BC807=\"\",\"\",'1. Order'!BC807)","v":""},{"$f":"IF('1. Order'!BD807=\"\",\"\",'1. Order'!BD807)","v":6},{"$f":"IF('1. Order'!BE807=\"\",\"\",'1. Order'!BE807)","v":"None"},{"$f":"IF('1. Order'!BF807=\"\",\"\",'1. Order'!BF807)","v":"Parcel"},{"$f":"IF('1. Order'!BG807=\"\",\"\",'1. Order'!BG807)","v":"ZWO"}]
[{"$f":"IF('1. Order'!F808=\"\",\"\",'1. Order'!F808)","v":""},{"$f":"IF('1. Order'!G808=\"\",\"\",'1. Order'!G808)","v":""},{"$f":"IF('1. Order'!H808=\"\",\"\",'1. Order'!H808)","v":""},{"$f":"IF('1. Order'!I808=\"\",\"\",'1. Order'!I808)","v":""},{"$f":"IF('1. Order'!J808=\"\",\"\",'1. Order'!J808)","v":""},{"$f":"IF('1. Order'!K808=\"\",\"\",'1. Order'!K808)","v":""},{"$f":"IF('1. Order'!L808=\"\",\"\",'1. Order'!L808)","v":""},{"$f":"IF('1. Order'!M808=\"\",\"\",'1. Order'!M808)","v":""},{"$f":"IF('1. Order'!N808=\"\",\"\",'1. Order'!N808)","v":""},{"$f":"IF('1. Order'!O808=\"\",\"\",'1. Order'!O808)","v":{"$error":"#N/A"}},{"$f":"IF('1. Order'!P808=\"\",\"\",'1. Order'!P808)","v":{"$error":"#N/A"}},{"$f":"IF('1. Order'!Q808=\"\",\"\",'1. Order'!Q808)","v":""},{"$f":"IF('1. Order'!R808=\"\",\"\",'1. Order'!R808)","v":""},{"$f":"IF('1. Order'!S808=\"\",\"\",'1. Order'!S808)","v":""},{"$f":"IF('1. Order'!V808=\"\",\"\",'1. Order'!V808)","v":""},{"$f":"IF('1. Order'!W808=\"\",\"\",'1. Order'!W808)","v":""},{"$f":"IF('1. Order'!X808=\"\",\"\",'1. Order'!X808)","v":"EUR"},{"$f":"IF('1. Order'!Y808=\"\",\"\",'1. Order'!Y808)","v":""},{"$f":"IF('1. Order'!Z808=\"\",\"\",'1. Order'!Z808)","v":""},{"$f":"IF('1. Order'!AA808=\"\",\"\",'1. Order'!AA808)","v":""},null,{"$f":"IF('1. Order'!AS808=\"\",\"\",'1. Order'!AS808)","v":""},{"$f":"IF('1. Order'!AT808=\"\",\"\",'1. Order'!AT808)","v":""},null,null,null,null,null,null,null,{"$f":"IF('1. Order'!AX808=\"\",\"\",'1. Order'!AX808)","v":""},{"$f":"IF('1. Order'!AY808=\"\",\"\",'1. Order'!AY808)","v":""},{"$f":"IF('1. Order'!AZ808=\"\",\"\",'1. Order'!AZ808)","v":""},{"$f":"IF('1. Order'!BA808=\"\",\"\",'1. Order'!BA808)","v":""},{"$f":"IF('1. Order'!BC808=\"\",\"\",'1. Order'!BC808)","v":""},{"$f":"IF('1. Order'!BD808=\"\",\"\",'1. Order'!BD808)","v":6},{"$f":"IF('1. Order'!BE808=\"\",\"\",'1. Order'!BE808)","v":"None"},{"$f":"IF('1. Order'!BF808=\"\",\"\",'1. Order'!BF808)","v":"Parcel"},{"$f":"IF('1. Order'!BG808=\"\",\"\",'1. Order'!BG808)","v":"ZWO"}]
[{"$f":"IF('1. Order'!F809=\"\",\"\",'1. Order'!F809)","v":""},{"$f":"IF('1. Order'!G809=\"\",\"\",'1. Order'!G809)","v":""},{"$f":"IF('1. Order'!H809=\"\",\"\",'1. Order'!H809)","v":""},{"$f":"IF('1. Order'!I809=\"\",\"\",'1. Order'!I809)","v":""},{"$f":"IF('1. Order'!J809=\"\",\"\",'1. Order'!J809)","v":""},{"$f":"IF('1. Order'!K809=\"\",\"\",'1. Order'!K809)","v":""},{"$f":"IF('1. Order'!L809=\"\",\"\",'1. Order'!L809)","v":""},{"$f":"IF('1. Order'!M809=\"\",\"\",'1. Order'!M809)","v":""},{"$f":"IF('1. Order'!N809=\"\",\"\",'1. Order'!N809)","v":""},{"$f":"IF('1. Order'!O809=\"\",\"\",'1. Order'!O809)","v":{"$error":"#N/A"}},{"$f":"IF('1. Order'!P809=\"\",\"\",'1. Order'!P809)","v":{"$error":"#N/A"}},{"$f":"IF('1. Order'!Q809=\"\",\"\",'1. Order'!Q809)","v":""},{"$f":"IF('1. Order'!R809=\"\",\"\",'1. Order'!R809)","v":""},{"$f":"IF('1. Order'!S809=\"\",\"\",'1. Order'!S809)","v":""},{"$f":"IF('1. Order'!V809=\"\",\"\",'1. Order'!V809)","v":""},{"$f":"IF('1. Order'!W809=\"\",\"\",'1. Order'!W809)","v":""},{"$f":"IF('1. Order'!X809=\"\",\"\",'1. Order'!X809)","v":"EUR"},{"$f":"IF('1. Order'!Y809=\"\",\"\",'1. Order'!Y809)","v":""},{"$f":"IF('1. Order'!Z809=\"\",\"\",'1. Order'!Z809)","v":""},{"$f":"IF('1. Order'!AA809=\"\",\"\",'1. Order'!AA809)","v":""},null,{"$f":"IF('1. Order'!AS809=\"\",\"\",'1. Order'!AS809)","v":""},{"$f":"IF('1. Order'!AT809=\"\",\"\",'1. Order'!AT809)","v":""},null,null,null,null,null,null,null,{"$f":"IF('1. Order'!AX809=\"\",\"\",'1. Order'!AX809)","v":""},{"$f":"IF('1. Order'!AY809=\"\",\"\",'1. Order'!AY809)","v":""},{"$f":"IF('1. Order'!AZ809=\"\",\"\",'1. Order'!AZ809)","v":""},{"$f":"IF('1. Order'!BA809=\"\",\"\",'1. Order'!BA809)","v":""},{"$f":"IF('1. Order'!BC809=\"\",\"\",'1. Order'!BC809)","v":""},{"$f":"IF('1. Order'!BD809=\"\",\"\",'1. Order'!BD809)","v":6},{"$f":"IF('1. Order'!BE809=\"\",\"\",'1. Order'!BE809)","v":"None"},{"$f":"IF('1. Order'!BF809=\"\",\"\",'1. Order'!BF809)","v":"Parcel"},{"$f":"IF('1. Order'!BG809=\"\",\"\",'1. Order'!BG809)","v":"ZWO"}]
[{"$f":"IF('1. Order'!F810=\"\",\"\",'1. Order'!F810)","v":""},{"$f":"IF('1. Order'!G810=\"\",\"\",'1. Order'!G810)","v":""},{"$f":"IF('1. Order'!H810=\"\",\"\",'1. Order'!H810)","v":""},{"$f":"IF('1. Order'!I810=\"\",\"\",'1. Order'!I810)","v":""},{"$f":"IF('1. Order'!J810=\"\",\"\",'1. Order'!J810)","v":""},{"$f":"IF('1. Order'!K810=\"\",\"\",'1. Order'!K810)","v":""},{"$f":"IF('1. Order'!L810=\"\",\"\",'1. Order'!L810)","v":""},{"$f":"IF('1. Order'!M810=\"\",\"\",'1. Order'!M810)","v":""},{"$f":"IF('1. Order'!N810=\"\",\"\",'1. Order'!N810)","v":""},{"$f":"IF('1. Order'!O810=\"\",\"\",'1. Order'!O810)","v":{"$error":"#N/A"}},{"$f":"IF('1. Order'!P810=\"\",\"\",'1. Order'!P810)","v":{"$error":"#N/A"}},{"$f":"IF('1. Order'!Q810=\"\",\"\",'1. Order'!Q810)","v":""},{"$f":"IF('1. Order'!R810=\"\",\"\",'1. Order'!R810)","v":""},{"$f":"IF('1. Order'!S810=\"\",\"\",'1. Order'!S810)","v":""},{"$f":"IF('1. Order'!V810=\"\",\"\",'1. Order'!V810)","v":""},{"$f":"IF('1. Order'!W810=\"\",\"\",'1. Order'!W810)","v":""},{"$f":"IF('1. Order'!X810=\"\",\"\",'1. Order'!X810)","v":"EUR"},{"$f":"IF('1. Order'!Y810=\"\",\"\",'1. Order'!Y810)","v":""},{"$f":"IF('1. Order'!Z810=\"\",\"\",'1. Order'!Z810)","v":""},{"$f":"IF('1. Order'!AA810=\"\",\"\",'1. Order'!AA810)","v":""},null,{"$f":"IF('1. Order'!AS810=\"\",\"\",'1. Order'!AS810)","v":""},{"$f":"IF('1. Order'!AT810=\"\",\"\",'1. Order'!AT810)","v":""},null,null,null,null,null,null,null,{"$f":"IF('1. Order'!AX810=\"\",\"\",'1. Order'!AX810)","v":""},{"$f":"IF('1. Order'!AY810=\"\",\"\",'1. Order'!AY810)","v":""},{"$f":"IF('1. Order'!AZ810=\"\",\"\",'1. Order'!AZ810)","v":""},{"$f":"IF('1. Order'!BA810=\"\",\"\",'1. Order'!BA810)","v":""},{"$f":"IF('1. Order'!BC810=\"\",\"\",'1. Order'!BC810)","v":""},{"$f":"IF('1. Order'!BD810=\"\",\"\",'1. Order'!BD810)","v":6},{"$f":"IF('1. Order'!BE810=\"\",\"\",'1. Order'!BE810)","v":"None"},{"$f":"IF('1. Order'!BF810=\"\",\"\",'1. Order'!BF810)","v":"Parcel"},{"$f":"IF('1. Order'!BG810=\"\",\"\",'1. Order'!BG810)","v":"ZWO"}]
[{"$f":"IF('1. Order'!F811=\"\",\"\",'1. Order'!F811)","v":""},{"$f":"IF('1. Order'!G811=\"\",\"\",'1. Order'!G811)","v":""},{"$f":"IF('1. Order'!H811=\"\",\"\",'1. Order'!H811)","v":""},{"$f":"IF('1. Order'!I811=\"\",\"\",'1. Order'!I811)","v":""},{"$f":"IF('1. Order'!J811=\"\",\"\",'1. Order'!J811)","v":""},{"$f":"IF('1. Order'!K811=\"\",\"\",'1. Order'!K811)","v":""},{"$f":"IF('1. Order'!L811=\"\",\"\",'1. Order'!L811)","v":""},{"$f":"IF('1. Order'!M811=\"\",\"\",'1. Order'!M811)","v":""},{"$f":"IF('1. Order'!N811=\"\",\"\",'1. Order'!N811)","v":""},{"$f":"IF('1. Order'!O811=\"\",\"\",'1. Order'!O811)","v":{"$error":"#N/A"}},{"$f":"IF('1. Order'!P811=\"\",\"\",'1. Order'!P811)","v":{"$error":"#N/A"}},{"$f":"IF('1. Order'!Q811=\"\",\"\",'1. Order'!Q811)","v":""},{"$f":"IF('1. Order'!R811=\"\",\"\",'1. Order'!R811)","v":""},{"$f":"IF('1. Order'!S811=\"\",\"\",'1. Order'!S811)","v":""},{"$f":"IF('1. Order'!V811=\"\",\"\",'1. Order'!V811)","v":""},{"$f":"IF('1. Order'!W811=\"\",\"\",'1. Order'!W811)","v":""},{"$f":"IF('1. Order'!X811=\"\",\"\",'1. Order'!X811)","v":"EUR"},{"$f":"IF('1. Order'!Y811=\"\",\"\",'1. Order'!Y811)","v":""},{"$f":"IF('1. Order'!Z811=\"\",\"\",'1. Order'!Z811)","v":""},{"$f":"IF('1. Order'!AA811=\"\",\"\",'1. Order'!AA811)","v":""},null,{"$f":"IF('1. Order'!AS811=\"\",\"\",'1. Order'!AS811)","v":""},{"$f":"IF('1. Order'!AT811=\"\",\"\",'1. Order'!AT811)","v":""},null,null,null,null,null,null,null,{"$f":"IF('1. Order'!AX811=\"\",\"\",'1. Order'!AX811)","v":""},{"$f":"IF('1. Order'!AY811=\"\",\"\",'1. Order'!AY811)","v":""},{"$f":"IF('1. Order'!AZ811=\"\",\"\",'1. Order'!AZ811)","v":""},{"$f":"IF('1. Order'!BA811=\"\",\"\",'1. Order'!BA811)","v":""},{"$f":"IF('1. Order'!BC811=\"\",\"\",'1. Order'!BC811)","v":""},{"$f":"IF('1. Order'!BD811=\"\",\"\",'1. Order'!BD811)","v":6},{"$f":"IF('1. Order'!BE811=\"\",\"\",'1. Order'!BE811)","v":"None"},{"$f":"IF('1. Order'!BF811=\"\",\"\",'1. Order'!BF811)","v":"Parcel"},{"$f":"IF('1. Order'!BG811=\"\",\"\",'1. Order'!BG811)","v":"ZWO"}]
[{"$f":"IF('1. Order'!F812=\"\",\"\",'1. Order'!F812)","v":""},{"$f":"IF('1. Order'!G812=\"\",\"\",'1. Order'!G812)","v":""},{"$f":"IF('1. Order'!H812=\"\",\"\",'1. Order'!H812)","v":""},{"$f":"IF('1. Order'!I812=\"\",\"\",'1. Order'!I812)","v":""},{"$f":"IF('1. Order'!J812=\"\",\"\",'1. Order'!J812)","v":""},{"$f":"IF('1. Order'!K812=\"\",\"\",'1. Order'!K812)","v":""},{"$f":"IF('1. Order'!L812=\"\",\"\",'1. Order'!L812)","v":""},{"$f":"IF('1. Order'!M812=\"\",\"\",'1. Order'!M812)","v":""},{"$f":"IF('1. Order'!N812=\"\",\"\",'1. Order'!N812)","v":""},{"$f":"IF('1. Order'!O812=\"\",\"\",'1. Order'!O812)","v":{"$error":"#N/A"}},{"$f":"IF('1. Order'!P812=\"\",\"\",'1. Order'!P812)","v":{"$error":"#N/A"}},{"$f":"IF('1. Order'!Q812=\"\",\"\",'1. Order'!Q812)","v":""},{"$f":"IF('1. Order'!R812=\"\",\"\",'1. Order'!R812)","v":""},{"$f":"IF('1. Order'!S812=\"\",\"\",'1. Order'!S812)","v":""},{"$f":"IF('1. Order'!V812=\"\",\"\",'1. Order'!V812)","v":""},{"$f":"IF('1. Order'!W812=\"\",\"\",'1. Order'!W812)","v":""},{"$f":"IF('1. Order'!X812=\"\",\"\",'1. Order'!X812)","v":"EUR"},{"$f":"IF('1. Order'!Y812=\"\",\"\",'1. Order'!Y812)","v":""},{"$f":"IF('1. Order'!Z812=\"\",\"\",'1. Order'!Z812)","v":""},{"$f":"IF('1. Order'!AA812=\"\",\"\",'1. Order'!AA812)","v":""},null,{"$f":"IF('1. Order'!AS812=\"\",\"\",'1. Order'!AS812)","v":""},{"$f":"IF('1. Order'!AT812=\"\",\"\",'1. Order'!AT812)","v":""},null,null,null,null,null,null,null,{"$f":"IF('1. Order'!AX812=\"\",\"\",'1. Order'!AX812)","v":""},{"$f":"IF('1. Order'!AY812=\"\",\"\",'1. Order'!AY812)","v":""},{"$f":"IF('1. Order'!AZ812=\"\",\"\",'1. Order'!AZ812)","v":""},{"$f":"IF('1. Order'!BA812=\"\",\"\",'1. Order'!BA812)","v":""},{"$f":"IF('1. Order'!BC812=\"\",\"\",'1. Order'!BC812)","v":""},{"$f":"IF('1. Order'!BD812=\"\",\"\",'1. Order'!BD812)","v":6},{"$f":"IF('1. Order'!BE812=\"\",\"\",'1. Order'!BE812)","v":"None"},{"$f":"IF('1. Order'!BF812=\"\",\"\",'1. Order'!BF812)","v":"Parcel"},{"$f":"IF('1. Order'!BG812=\"\",\"\",'1. Order'!BG812)","v":"ZWO"}]
[{"$f":"IF('1. Order'!F813=\"\",\"\",'1. Order'!F813)","v":""},{"$f":"IF('1. Order'!G813=\"\",\"\",'1. Order'!G813)","v":""},{"$f":"IF('1. Order'!H813=\"\",\"\",'1. Order'!H813)","v":""},{"$f":"IF('1. Order'!I813=\"\",\"\",'1. Order'!I813)","v":""},{"$f":"IF('1. Order'!J813=\"\",\"\",'1. Order'!J813)","v":""},{"$f":"IF('1. Order'!K813=\"\",\"\",'1. Order'!K813)","v":""},{"$f":"IF('1. Order'!L813=\"\",\"\",'1. Order'!L813)","v":""},{"$f":"IF('1. Order'!M813=\"\",\"\",'1. Order'!M813)","v":""},{"$f":"IF('1. Order'!N813=\"\",\"\",'1. Order'!N813)","v":""},{"$f":"IF('1. Order'!O813=\"\",\"\",'1. Order'!O813)","v":{"$error":"#N/A"}},{"$f":"IF('1. Order'!P813=\"\",\"\",'1. Order'!P813)","v":{"$error":"#N/A"}},{"$f":"IF('1. Order'!Q813=\"\",\"\",'1. Order'!Q813)","v":""},{"$f":"IF('1. Order'!R813=\"\",\"\",'1. Order'!R813)","v":""},{"$f":"IF('1. Order'!S813=\"\",\"\",'1. Order'!S813)","v":""},{"$f":"IF('1. Order'!V813=\"\",\"\",'1. Order'!V813)","v":""},{"$f":"IF('1. Order'!W813=\"\",\"\",'1. Order'!W813)","v":""},{"$f":"IF('1. Order'!X813=\"\",\"\",'1. Order'!X813)","v":"EUR"},{"$f":"IF('1. Order'!Y813=\"\",\"\",'1. Order'!Y813)","v":""},{"$f":"IF('1. Order'!Z813=\"\",\"\",'1. Order'!Z813)","v":""},{"$f":"IF('1. Order'!AA813=\"\",\"\",'1. Order'!AA813)","v":""},null,{"$f":"IF('1. Order'!AS813=\"\",\"\",'1. Order'!AS813)","v":""},{"$f":"IF('1. Order'!AT813=\"\",\"\",'1. Order'!AT813)","v":""},null,null,null,null,null,null,null,{"$f":"IF('1. Order'!AX813=\"\",\"\",'1. Order'!AX813)","v":""},{"$f":"IF('1. Order'!AY813=\"\",\"\",'1. Order'!AY813)","v":""},{"$f":"IF('1. Order'!AZ813=\"\",\"\",'1. Order'!AZ813)","v":""},{"$f":"IF('1. Order'!BA813=\"\",\"\",'1. Order'!BA813)","v":""},{"$f":"IF('1. Order'!BC813=\"\",\"\",'1. Order'!BC813)","v":""},{"$f":"IF('1. Order'!BD813=\"\",\"\",'1. Order'!BD813)","v":6},{"$f":"IF('1. Order'!BE813=\"\",\"\",'1. Order'!BE813)","v":"None"},{"$f":"IF('1. Order'!BF813=\"\",\"\",'1. Order'!BF813)","v":"Parcel"},{"$f":"IF('1. Order'!BG813=\"\",\"\",'1. Order'!BG813)","v":"ZWO"}]
[{"$f":"IF('1. Order'!F814=\"\",\"\",'1. Order'!F814)","v":""},{"$f":"IF('1. Order'!G814=\"\",\"\",'1. Order'!G814)","v":""},{"$f":"IF('1. Order'!H814=\"\",\"\",'1. Order'!H814)","v":""},{"$f":"IF('1. Order'!I814=\"\",\"\",'1. Order'!I814)","v":""},{"$f":"IF('1. Order'!J814=\"\",\"\",'1. Order'!J814)","v":""},{"$f":"IF('1. Order'!K814=\"\",\"\",'1. Order'!K814)","v":""},{"$f":"IF('1. Order'!L814=\"\",\"\",'1. Order'!L814)","v":""},{"$f":"IF('1. Order'!M814=\"\",\"\",'1. Order'!M814)","v":""},{"$f":"IF('1. Order'!N814=\"\",\"\",'1. Order'!N814)","v":""},{"$f":"IF('1. Order'!O814=\"\",\"\",'1. Order'!O814)","v":{"$error":"#N/A"}},{"$f":"IF('1. Order'!P814=\"\",\"\",'1. Order'!P814)","v":{"$error":"#N/A"}},{"$f":"IF('1. Order'!Q814=\"\",\"\",'1. Order'!Q814)","v":""},{"$f":"IF('1. Order'!R814=\"\",\"\",'1. Order'!R814)","v":""},{"$f":"IF('1. Order'!S814=\"\",\"\",'1. Order'!S814)","v":""},{"$f":"IF('1. Order'!V814=\"\",\"\",'1. Order'!V814)","v":""},{"$f":"IF('1. Order'!W814=\"\",\"\",'1. Order'!W814)","v":""},{"$f":"IF('1. Order'!X814=\"\",\"\",'1. Order'!X814)","v":"EUR"},{"$f":"IF('1. Order'!Y814=\"\",\"\",'1. Order'!Y814)","v":""},{"$f":"IF('1. Order'!Z814=\"\",\"\",'1. Order'!Z814)","v":""},{"$f":"IF('1. Order'!AA814=\"\",\"\",'1. Order'!AA814)","v":""},null,{"$f":"IF('1. Order'!AS814=\"\",\"\",'1. Order'!AS814)","v":""},{"$f":"IF('1. Order'!AT814=\"\",\"\",'1. Order'!AT814)","v":""},null,null,null,null,null,null,null,{"$f":"IF('1. Order'!AX814=\"\",\"\",'1. Order'!AX814)","v":""},{"$f":"IF('1. Order'!AY814=\"\",\"\",'1. Order'!AY814)","v":""},{"$f":"IF('1. Order'!AZ814=\"\",\"\",'1. Order'!AZ814)","v":""},{"$f":"IF('1. Order'!BA814=\"\",\"\",'1. Order'!BA814)","v":""},{"$f":"IF('1. Order'!BC814=\"\",\"\",'1. Order'!BC814)","v":""},{"$f":"IF('1. Order'!BD814=\"\",\"\",'1. Order'!BD814)","v":6},{"$f":"IF('1. Order'!BE814=\"\",\"\",'1. Order'!BE814)","v":"None"},{"$f":"IF('1. Order'!BF814=\"\",\"\",'1. Order'!BF814)","v":"Parcel"},{"$f":"IF('1. Order'!BG814=\"\",\"\",'1. Order'!BG814)","v":"ZWO"}]
[{"$f":"IF('1. Order'!F815=\"\",\"\",'1. Order'!F815)","v":""},{"$f":"IF('1. Order'!G815=\"\",\"\",'1. Order'!G815)","v":""},{"$f":"IF('1. Order'!H815=\"\",\"\",'1. Order'!H815)","v":""},{"$f":"IF('1. Order'!I815=\"\",\"\",'1. Order'!I815)","v":""},{"$f":"IF('1. Order'!J815=\"\",\"\",'1. Order'!J815)","v":""},{"$f":"IF('1. Order'!K815=\"\",\"\",'1. Order'!K815)","v":""},{"$f":"IF('1. Order'!L815=\"\",\"\",'1. Order'!L815)","v":""},{"$f":"IF('1. Order'!M815=\"\",\"\",'1. Order'!M815)","v":""},{"$f":"IF('1. Order'!N815=\"\",\"\",'1. Order'!N815)","v":""},{"$f":"IF('1. Order'!O815=\"\",\"\",'1. Order'!O815)","v":{"$error":"#N/A"}},{"$f":"IF('1. Order'!P815=\"\",\"\",'1. Order'!P815)","v":{"$error":"#N/A"}},{"$f":"IF('1. Order'!Q815=\"\",\"\",'1. Order'!Q815)","v":""},{"$f":"IF('1. Order'!R815=\"\",\"\",'1. Order'!R815)","v":""},{"$f":"IF('1. Order'!S815=\"\",\"\",'1. Order'!S815)","v":""},{"$f":"IF('1. Order'!V815=\"\",\"\",'1. Order'!V815)","v":""},{"$f":"IF('1. Order'!W815=\"\",\"\",'1. Order'!W815)","v":""},{"$f":"IF('1. Order'!X815=\"\",\"\",'1. Order'!X815)","v":"EUR"},{"$f":"IF('1. Order'!Y815=\"\",\"\",'1. Order'!Y815)","v":""},{"$f":"IF('1. Order'!Z815=\"\",\"\",'1. Order'!Z815)","v":""},{"$f":"IF('1. Order'!AA815=\"\",\"\",'1. Order'!AA815)","v":""},null,{"$f":"IF('1. Order'!AS815=\"\",\"\",'1. Order'!AS815)","v":""},{"$f":"IF('1. Order'!AT815=\"\",\"\",'1. Order'!AT815)","v":""},null,null,null,null,null,null,null,{"$f":"IF('1. Order'!AX815=\"\",\"\",'1. Order'!AX815)","v":""},{"$f":"IF('1. Order'!AY815=\"\",\"\",'1. Order'!AY815)","v":""},{"$f":"IF('1. Order'!AZ815=\"\",\"\",'1. Order'!AZ815)","v":""},{"$f":"IF('1. Order'!BA815=\"\",\"\",'1. Order'!BA815)","v":""},{"$f":"IF('1. Order'!BC815=\"\",\"\",'1. Order'!BC815)","v":""},{"$f":"IF('1. Order'!BD815=\"\",\"\",'1. Order'!BD815)","v":6},{"$f":"IF('1. Order'!BE815=\"\",\"\",'1. Order'!BE815)","v":"None"},{"$f":"IF('1. Order'!BF815=\"\",\"\",'1. Order'!BF815)","v":"Parcel"},{"$f":"IF('1. Order'!BG815=\"\",\"\",'1. Order'!BG815)","v":"ZWO"}]
[{"$f":"IF('1. Order'!F816=\"\",\"\",'1. Order'!F816)","v":""},{"$f":"IF('1. Order'!G816=\"\",\"\",'1. Order'!G816)","v":""},{"$f":"IF('1. Order'!H816=\"\",\"\",'1. Order'!H816)","v":""},{"$f":"IF('1. Order'!I816=\"\",\"\",'1. Order'!I816)","v":""},{"$f":"IF('1. Order'!J816=\"\",\"\",'1. Order'!J816)","v":""},{"$f":"IF('1. Order'!K816=\"\",\"\",'1. Order'!K816)","v":""},{"$f":"IF('1. Order'!L816=\"\",\"\",'1. Order'!L816)","v":""},{"$f":"IF('1. Order'!M816=\"\",\"\",'1. Order'!M816)","v":""},{"$f":"IF('1. Order'!N816=\"\",\"\",'1. Order'!N816)","v":""},{"$f":"IF('1. Order'!O816=\"\",\"\",'1. Order'!O816)","v":{"$error":"#N/A"}},{"$f":"IF('1. Order'!P816=\"\",\"\",'1. Order'!P816)","v":{"$error":"#N/A"}},{"$f":"IF('1. Order'!Q816=\"\",\"\",'1. Order'!Q816)","v":""},{"$f":"IF('1. Order'!R816=\"\",\"\",'1. Order'!R816)","v":""},{"$f":"IF('1. Order'!S816=\"\",\"\",'1. Order'!S816)","v":""},{"$f":"IF('1. Order'!V816=\"\",\"\",'1. Order'!V816)","v":""},{"$f":"IF('1. Order'!W816=\"\",\"\",'1. Order'!W816)","v":""},{"$f":"IF('1. Order'!X816=\"\",\"\",'1. Order'!X816)","v":"EUR"},{"$f":"IF('1. Order'!Y816=\"\",\"\",'1. Order'!Y816)","v":""},{"$f":"IF('1. Order'!Z816=\"\",\"\",'1. Order'!Z816)","v":""},{"$f":"IF('1. Order'!AA816=\"\",\"\",'1. Order'!AA816)","v":""},null,{"$f":"IF('1. Order'!AS816=\"\",\"\",'1. Order'!AS816)","v":""},{"$f":"IF('1. Order'!AT816=\"\",\"\",'1. Order'!AT816)","v":""},null,null,null,null,null,null,null,{"$f":"IF('1. Order'!AX816=\"\",\"\",'1. Order'!AX816)","v":""},{"$f":"IF('1. Order'!AY816=\"\",\"\",'1. Order'!AY816)","v":""},{"$f":"IF('1. Order'!AZ816=\"\",\"\",'1. Order'!AZ816)","v":""},{"$f":"IF('1. Order'!BA816=\"\",\"\",'1. Order'!BA816)","v":""},{"$f":"IF('1. Order'!BC816=\"\",\"\",'1. Order'!BC816)","v":""},{"$f":"IF('1. Order'!BD816=\"\",\"\",'1. Order'!BD816)","v":6},{"$f":"IF('1. Order'!BE816=\"\",\"\",'1. Order'!BE816)","v":"None"},{"$f":"IF('1. Order'!BF816=\"\",\"\",'1. Order'!BF816)","v":"Parcel"},{"$f":"IF('1. Order'!BG816=\"\",\"\",'1. Order'!BG816)","v":"ZWO"}]
[{"$f":"IF('1. Order'!F817=\"\",\"\",'1. Order'!F817)","v":""},{"$f":"IF('1. Order'!G817=\"\",\"\",'1. Order'!G817)","v":""},{"$f":"IF('1. Order'!H817=\"\",\"\",'1. Order'!H817)","v":""},{"$f":"IF('1. Order'!I817=\"\",\"\",'1. Order'!I817)","v":""},{"$f":"IF('1. Order'!J817=\"\",\"\",'1. Order'!J817)","v":""},{"$f":"IF('1. Order'!K817=\"\",\"\",'1. Order'!K817)","v":""},{"$f":"IF('1. Order'!L817=\"\",\"\",'1. Order'!L817)","v":""},{"$f":"IF('1. Order'!M817=\"\",\"\",'1. Order'!M817)","v":""},{"$f":"IF('1. Order'!N817=\"\",\"\",'1. Order'!N817)","v":""},{"$f":"IF('1. Order'!O817=\"\",\"\",'1. Order'!O817)","v":{"$error":"#N/A"}},{"$f":"IF('1. Order'!P817=\"\",\"\",'1. Order'!P817)","v":{"$error":"#N/A"}},{"$f":"IF('1. Order'!Q817=\"\",\"\",'1. Order'!Q817)","v":""},{"$f":"IF('1. Order'!R817=\"\",\"\",'1. Order'!R817)","v":""},{"$f":"IF('1. Order'!S817=\"\",\"\",'1. Order'!S817)","v":""},{"$f":"IF('1. Order'!V817=\"\",\"\",'1. Order'!V817)","v":""},{"$f":"IF('1. Order'!W817=\"\",\"\",'1. Order'!W817)","v":""},{"$f":"IF('1. Order'!X817=\"\",\"\",'1. Order'!X817)","v":"EUR"},{"$f":"IF('1. Order'!Y817=\"\",\"\",'1. Order'!Y817)","v":""},{"$f":"IF('1. Order'!Z817=\"\",\"\",'1. Order'!Z817)","v":""},{"$f":"IF('1. Order'!AA817=\"\",\"\",'1. Order'!AA817)","v":""},null,{"$f":"IF('1. Order'!AS817=\"\",\"\",'1. Order'!AS817)","v":""},{"$f":"IF('1. Order'!AT817=\"\",\"\",'1. Order'!AT817)","v":""},null,null,null,null,null,null,null,{"$f":"IF('1. Order'!AX817=\"\",\"\",'1. Order'!AX817)","v":""},{"$f":"IF('1. Order'!AY817=\"\",\"\",'1. Order'!AY817)","v":""},{"$f":"IF('1. Order'!AZ817=\"\",\"\",'1. Order'!AZ817)","v":""},{"$f":"IF('1. Order'!BA817=\"\",\"\",'1. Order'!BA817)","v":""},{"$f":"IF('1. Order'!BC817=\"\",\"\",'1. Order'!BC817)","v":""},{"$f":"IF('1. Order'!BD817=\"\",\"\",'1. Order'!BD817)","v":6},{"$f":"IF('1. Order'!BE817=\"\",\"\",'1. Order'!BE817)","v":"None"},{"$f":"IF('1. Order'!BF817=\"\",\"\",'1. Order'!BF817)","v":"Parcel"},{"$f":"IF('1. Order'!BG817=\"\",\"\",'1. Order'!BG817)","v":"ZWO"}]
[{"$f":"IF('1. Order'!F818=\"\",\"\",'1. Order'!F818)","v":""},{"$f":"IF('1. Order'!G818=\"\",\"\",'1. Order'!G818)","v":""},{"$f":"IF('1. Order'!H818=\"\",\"\",'1. Order'!H818)","v":""},{"$f":"IF('1. Order'!I818=\"\",\"\",'1. Order'!I818)","v":""},{"$f":"IF('1. Order'!J818=\"\",\"\",'1. Order'!J818)","v":""},{"$f":"IF('1. Order'!K818=\"\",\"\",'1. Order'!K818)","v":""},{"$f":"IF('1. Order'!L818=\"\",\"\",'1. Order'!L818)","v":""},{"$f":"IF('1. Order'!M818=\"\",\"\",'1. Order'!M818)","v":""},{"$f":"IF('1. Order'!N818=\"\",\"\",'1. Order'!N818)","v":""},{"$f":"IF('1. Order'!O818=\"\",\"\",'1. Order'!O818)","v":{"$error":"#N/A"}},{"$f":"IF('1. Order'!P818=\"\",\"\",'1. Order'!P818)","v":{"$error":"#N/A"}},{"$f":"IF('1. Order'!Q818=\"\",\"\",'1. Order'!Q818)","v":""},{"$f":"IF('1. Order'!R818=\"\",\"\",'1. Order'!R818)","v":""},{"$f":"IF('1. Order'!S818=\"\",\"\",'1. Order'!S818)","v":""},{"$f":"IF('1. Order'!V818=\"\",\"\",'1. Order'!V818)","v":""},{"$f":"IF('1. Order'!W818=\"\",\"\",'1. Order'!W818)","v":""},{"$f":"IF('1. Order'!X818=\"\",\"\",'1. Order'!X818)","v":"EUR"},{"$f":"IF('1. Order'!Y818=\"\",\"\",'1. Order'!Y818)","v":""},{"$f":"IF('1. Order'!Z818=\"\",\"\",'1. Order'!Z818)","v":""},{"$f":"IF('1. Order'!AA818=\"\",\"\",'1. Order'!AA818)","v":""},null,{"$f":"IF('1. Order'!AS818=\"\",\"\",'1. Order'!AS818)","v":""},{"$f":"IF('1. Order'!AT818=\"\",\"\",'1. Order'!AT818)","v":""},null,null,null,null,null,null,null,{"$f":"IF('1. Order'!AX818=\"\",\"\",'1. Order'!AX818)","v":""},{"$f":"IF('1. Order'!AY818=\"\",\"\",'1. Order'!AY818)","v":""},{"$f":"IF('1. Order'!AZ818=\"\",\"\",'1. Order'!AZ818)","v":""},{"$f":"IF('1. Order'!BA818=\"\",\"\",'1. Order'!BA818)","v":""},{"$f":"IF('1. Order'!BC818=\"\",\"\",'1. Order'!BC818)","v":""},{"$f":"IF('1. Order'!BD818=\"\",\"\",'1. Order'!BD818)","v":6},{"$f":"IF('1. Order'!BE818=\"\",\"\",'1. Order'!BE818)","v":"None"},{"$f":"IF('1. Order'!BF818=\"\",\"\",'1. Order'!BF818)","v":"Parcel"},{"$f":"IF('1. Order'!BG818=\"\",\"\",'1. Order'!BG818)","v":"ZWO"}]
[{"$f":"IF('1. Order'!F819=\"\",\"\",'1. Order'!F819)","v":""},{"$f":"IF('1. Order'!G819=\"\",\"\",'1. Order'!G819)","v":""},{"$f":"IF('1. Order'!H819=\"\",\"\",'1. Order'!H819)","v":""},{"$f":"IF('1. Order'!I819=\"\",\"\",'1. Order'!I819)","v":""},{"$f":"IF('1. Order'!J819=\"\",\"\",'1. Order'!J819)","v":""},{"$f":"IF('1. Order'!K819=\"\",\"\",'1. Order'!K819)","v":""},{"$f":"IF('1. Order'!L819=\"\",\"\",'1. Order'!L819)","v":""},{"$f":"IF('1. Order'!M819=\"\",\"\",'1. Order'!M819)","v":""},{"$f":"IF('1. Order'!N819=\"\",\"\",'1. Order'!N819)","v":""},{"$f":"IF('1. Order'!O819=\"\",\"\",'1. Order'!O819)","v":{"$error":"#N/A"}},{"$f":"IF('1. Order'!P819=\"\",\"\",'1. Order'!P819)","v":{"$error":"#N/A"}},{"$f":"IF('1. Order'!Q819=\"\",\"\",'1. Order'!Q819)","v":""},{"$f":"IF('1. Order'!R819=\"\",\"\",'1. Order'!R819)","v":""},{"$f":"IF('1. Order'!S819=\"\",\"\",'1. Order'!S819)","v":""},{"$f":"IF('1. Order'!V819=\"\",\"\",'1. Order'!V819)","v":""},{"$f":"IF('1. Order'!W819=\"\",\"\",'1. Order'!W819)","v":""},{"$f":"IF('1. Order'!X819=\"\",\"\",'1. Order'!X819)","v":"EUR"},{"$f":"IF('1. Order'!Y819=\"\",\"\",'1. Order'!Y819)","v":""},{"$f":"IF('1. Order'!Z819=\"\",\"\",'1. Order'!Z819)","v":""},{"$f":"IF('1. Order'!AA819=\"\",\"\",'1. Order'!AA819)","v":""},null,{"$f":"IF('1. Order'!AS819=\"\",\"\",'1. Order'!AS819)","v":""},{"$f":"IF('1. Order'!AT819=\"\",\"\",'1. Order'!AT819)","v":""},null,null,null,null,null,null,null,{"$f":"IF('1. Order'!AX819=\"\",\"\",'1. Order'!AX819)","v":""},{"$f":"IF('1. Order'!AY819=\"\",\"\",'1. Order'!AY819)","v":""},{"$f":"IF('1. Order'!AZ819=\"\",\"\",'1. Order'!AZ819)","v":""},{"$f":"IF('1. Order'!BA819=\"\",\"\",'1. Order'!BA819)","v":""},{"$f":"IF('1. Order'!BC819=\"\",\"\",'1. Order'!BC819)","v":""},{"$f":"IF('1. Order'!BD819=\"\",\"\",'1. Order'!BD819)","v":6},{"$f":"IF('1. Order'!BE819=\"\",\"\",'1. Order'!BE819)","v":"None"},{"$f":"IF('1. Order'!BF819=\"\",\"\",'1. Order'!BF819)","v":"Parcel"},{"$f":"IF('1. Order'!BG819=\"\",\"\",'1. Order'!BG819)","v":"ZWO"}]
[{"$f":"IF('1. Order'!F820=\"\",\"\",'1. Order'!F820)","v":""},{"$f":"IF('1. Order'!G820=\"\",\"\",'1. Order'!G820)","v":""},{"$f":"IF('1. Order'!H820=\"\",\"\",'1. Order'!H820)","v":""},{"$f":"IF('1. Order'!I820=\"\",\"\",'1. Order'!I820)","v":""},{"$f":"IF('1. Order'!J820=\"\",\"\",'1. Order'!J820)","v":""},{"$f":"IF('1. Order'!K820=\"\",\"\",'1. Order'!K820)","v":""},{"$f":"IF('1. Order'!L820=\"\",\"\",'1. Order'!L820)","v":""},{"$f":"IF('1. Order'!M820=\"\",\"\",'1. Order'!M820)","v":""},{"$f":"IF('1. Order'!N820=\"\",\"\",'1. Order'!N820)","v":""},{"$f":"IF('1. Order'!O820=\"\",\"\",'1. Order'!O820)","v":{"$error":"#N/A"}},{"$f":"IF('1. Order'!P820=\"\",\"\",'1. Order'!P820)","v":{"$error":"#N/A"}},{"$f":"IF('1. Order'!Q820=\"\",\"\",'1. Order'!Q820)","v":""},{"$f":"IF('1. Order'!R820=\"\",\"\",'1. Order'!R820)","v":""},{"$f":"IF('1. Order'!S820=\"\",\"\",'1. Order'!S820)","v":""},{"$f":"IF('1. Order'!V820=\"\",\"\",'1. Order'!V820)","v":""},{"$f":"IF('1. Order'!W820=\"\",\"\",'1. Order'!W820)","v":""},{"$f":"IF('1. Order'!X820=\"\",\"\",'1. Order'!X820)","v":"EUR"},{"$f":"IF('1. Order'!Y820=\"\",\"\",'1. Order'!Y820)","v":""},{"$f":"IF('1. Order'!Z820=\"\",\"\",'1. Order'!Z820)","v":""},{"$f":"IF('1. Order'!AA820=\"\",\"\",'1. Order'!AA820)","v":""},null,{"$f":"IF('1. Order'!AS820=\"\",\"\",'1. Order'!AS820)","v":""},{"$f":"IF('1. Order'!AT820=\"\",\"\",'1. Order'!AT820)","v":""},null,null,null,null,null,null,null,{"$f":"IF('1. Order'!AX820=\"\",\"\",'1. Order'!AX820)","v":""},{"$f":"IF('1. Order'!AY820=\"\",\"\",'1. Order'!AY820)","v":""},{"$f":"IF('1. Order'!AZ820=\"\",\"\",'1. Order'!AZ820)","v":""},{"$f":"IF('1. Order'!BA820=\"\",\"\",'1. Order'!BA820)","v":""},{"$f":"IF('1. Order'!BC820=\"\",\"\",'1. Order'!BC820)","v":""},{"$f":"IF('1. Order'!BD820=\"\",\"\",'1. Order'!BD820)","v":6},{"$f":"IF('1. Order'!BE820=\"\",\"\",'1. Order'!BE820)","v":"None"},{"$f":"IF('1. Order'!BF820=\"\",\"\",'1. Order'!BF820)","v":"Parcel"},{"$f":"IF('1. Order'!BG820=\"\",\"\",'1. Order'!BG820)","v":"ZWO"}]
[{"$f":"IF('1. Order'!F821=\"\",\"\",'1. Order'!F821)","v":""},{"$f":"IF('1. Order'!G821=\"\",\"\",'1. Order'!G821)","v":""},{"$f":"IF('1. Order'!H821=\"\",\"\",'1. Order'!H821)","v":""},{"$f":"IF('1. Order'!I821=\"\",\"\",'1. Order'!I821)","v":""},{"$f":"IF('1. Order'!J821=\"\",\"\",'1. Order'!J821)","v":""},{"$f":"IF('1. Order'!K821=\"\",\"\",'1. Order'!K821)","v":""},{"$f":"IF('1. Order'!L821=\"\",\"\",'1. Order'!L821)","v":""},{"$f":"IF('1. Order'!M821=\"\",\"\",'1. Order'!M821)","v":""},{"$f":"IF('1. Order'!N821=\"\",\"\",'1. Order'!N821)","v":""},{"$f":"IF('1. Order'!O821=\"\",\"\",'1. Order'!O821)","v":{"$error":"#N/A"}},{"$f":"IF('1. Order'!P821=\"\",\"\",'1. Order'!P821)","v":{"$error":"#N/A"}},{"$f":"IF('1. Order'!Q821=\"\",\"\",'1. Order'!Q821)","v":""},{"$f":"IF('1. Order'!R821=\"\",\"\",'1. Order'!R821)","v":""},{"$f":"IF('1. Order'!S821=\"\",\"\",'1. Order'!S821)","v":""},{"$f":"IF('1. Order'!V821=\"\",\"\",'1. Order'!V821)","v":""},{"$f":"IF('1. Order'!W821=\"\",\"\",'1. Order'!W821)","v":""},{"$f":"IF('1. Order'!X821=\"\",\"\",'1. Order'!X821)","v":"EUR"},{"$f":"IF('1. Order'!Y821=\"\",\"\",'1. Order'!Y821)","v":""},{"$f":"IF('1. Order'!Z821=\"\",\"\",'1. Order'!Z821)","v":""},{"$f":"IF('1. Order'!AA821=\"\",\"\",'1. Order'!AA821)","v":""},null,{"$f":"IF('1. Order'!AS821=\"\",\"\",'1. Order'!AS821)","v":""},{"$f":"IF('1. Order'!AT821=\"\",\"\",'1. Order'!AT821)","v":""},null,null,null,null,null,null,null,{"$f":"IF('1. Order'!AX821=\"\",\"\",'1. Order'!AX821)","v":""},{"$f":"IF('1. Order'!AY821=\"\",\"\",'1. Order'!AY821)","v":""},{"$f":"IF('1. Order'!AZ821=\"\",\"\",'1. Order'!AZ821)","v":""},{"$f":"IF('1. Order'!BA821=\"\",\"\",'1. Order'!BA821)","v":""},{"$f":"IF('1. Order'!BC821=\"\",\"\",'1. Order'!BC821)","v":""},{"$f":"IF('1. Order'!BD821=\"\",\"\",'1. Order'!BD821)","v":6},{"$f":"IF('1. Order'!BE821=\"\",\"\",'1. Order'!BE821)","v":"None"},{"$f":"IF('1. Order'!BF821=\"\",\"\",'1. Order'!BF821)","v":"Parcel"},{"$f":"IF('1. Order'!BG821=\"\",\"\",'1. Order'!BG821)","v":"ZWO"}]
[{"$f":"IF('1. Order'!F822=\"\",\"\",'1. Order'!F822)","v":""},{"$f":"IF('1. Order'!G822=\"\",\"\",'1. Order'!G822)","v":""},{"$f":"IF('1. Order'!H822=\"\",\"\",'1. Order'!H822)","v":""},{"$f":"IF('1. Order'!I822=\"\",\"\",'1. Order'!I822)","v":""},{"$f":"IF('1. Order'!J822=\"\",\"\",'1. Order'!J822)","v":""},{"$f":"IF('1. Order'!K822=\"\",\"\",'1. Order'!K822)","v":""},{"$f":"IF('1. Order'!L822=\"\",\"\",'1. Order'!L822)","v":""},{"$f":"IF('1. Order'!M822=\"\",\"\",'1. Order'!M822)","v":""},{"$f":"IF('1. Order'!N822=\"\",\"\",'1. Order'!N822)","v":""},{"$f":"IF('1. Order'!O822=\"\",\"\",'1. Order'!O822)","v":{"$error":"#N/A"}},{"$f":"IF('1. Order'!P822=\"\",\"\",'1. Order'!P822)","v":{"$error":"#N/A"}},{"$f":"IF('1. Order'!Q822=\"\",\"\",'1. Order'!Q822)","v":""},{"$f":"IF('1. Order'!R822=\"\",\"\",'1. Order'!R822)","v":""},{"$f":"IF('1. Order'!S822=\"\",\"\",'1. Order'!S822)","v":""},{"$f":"IF('1. Order'!V822=\"\",\"\",'1. Order'!V822)","v":""},{"$f":"IF('1. Order'!W822=\"\",\"\",'1. Order'!W822)","v":""},{"$f":"IF('1. Order'!X822=\"\",\"\",'1. Order'!X822)","v":"EUR"},{"$f":"IF('1. Order'!Y822=\"\",\"\",'1. Order'!Y822)","v":""},{"$f":"IF('1. Order'!Z822=\"\",\"\",'1. Order'!Z822)","v":""},{"$f":"IF('1. Order'!AA822=\"\",\"\",'1. Order'!AA822)","v":""},null,{"$f":"IF('1. Order'!AS822=\"\",\"\",'1. Order'!AS822)","v":""},{"$f":"IF('1. Order'!AT822=\"\",\"\",'1. Order'!AT822)","v":""},null,null,null,null,null,null,null,{"$f":"IF('1. Order'!AX822=\"\",\"\",'1. Order'!AX822)","v":""},{"$f":"IF('1. Order'!AY822=\"\",\"\",'1. Order'!AY822)","v":""},{"$f":"IF('1. Order'!AZ822=\"\",\"\",'1. Order'!AZ822)","v":""},{"$f":"IF('1. Order'!BA822=\"\",\"\",'1. Order'!BA822)","v":""},{"$f":"IF('1. Order'!BC822=\"\",\"\",'1. Order'!BC822)","v":""},{"$f":"IF('1. Order'!BD822=\"\",\"\",'1. Order'!BD822)","v":6},{"$f":"IF('1. Order'!BE822=\"\",\"\",'1. Order'!BE822)","v":"None"},{"$f":"IF('1. Order'!BF822=\"\",\"\",'1. Order'!BF822)","v":"Parcel"},{"$f":"IF('1. Order'!BG822=\"\",\"\",'1. Order'!BG822)","v":"ZWO"}]
[{"$f":"IF('1. Order'!F823=\"\",\"\",'1. Order'!F823)","v":""},{"$f":"IF('1. Order'!G823=\"\",\"\",'1. Order'!G823)","v":""},{"$f":"IF('1. Order'!H823=\"\",\"\",'1. Order'!H823)","v":""},{"$f":"IF('1. Order'!I823=\"\",\"\",'1. Order'!I823)","v":""},{"$f":"IF('1. Order'!J823=\"\",\"\",'1. Order'!J823)","v":""},{"$f":"IF('1. Order'!K823=\"\",\"\",'1. Order'!K823)","v":""},{"$f":"IF('1. Order'!L823=\"\",\"\",'1. Order'!L823)","v":""},{"$f":"IF('1. Order'!M823=\"\",\"\",'1. Order'!M823)","v":""},{"$f":"IF('1. Order'!N823=\"\",\"\",'1. Order'!N823)","v":""},{"$f":"IF('1. Order'!O823=\"\",\"\",'1. Order'!O823)","v":{"$error":"#N/A"}},{"$f":"IF('1. Order'!P823=\"\",\"\",'1. Order'!P823)","v":{"$error":"#N/A"}},{"$f":"IF('1. Order'!Q823=\"\",\"\",'1. Order'!Q823)","v":""},{"$f":"IF('1. Order'!R823=\"\",\"\",'1. Order'!R823)","v":""},{"$f":"IF('1. Order'!S823=\"\",\"\",'1. Order'!S823)","v":""},{"$f":"IF('1. Order'!V823=\"\",\"\",'1. Order'!V823)","v":""},{"$f":"IF('1. Order'!W823=\"\",\"\",'1. Order'!W823)","v":""},{"$f":"IF('1. Order'!X823=\"\",\"\",'1. Order'!X823)","v":"EUR"},{"$f":"IF('1. Order'!Y823=\"\",\"\",'1. Order'!Y823)","v":""},{"$f":"IF('1. Order'!Z823=\"\",\"\",'1. Order'!Z823)","v":""},{"$f":"IF('1. Order'!AA823=\"\",\"\",'1. Order'!AA823)","v":""},null,{"$f":"IF('1. Order'!AS823=\"\",\"\",'1. Order'!AS823)","v":""},{"$f":"IF('1. Order'!AT823=\"\",\"\",'1. Order'!AT823)","v":""},null,null,null,null,null,null,null,{"$f":"IF('1. Order'!AX823=\"\",\"\",'1. Order'!AX823)","v":""},{"$f":"IF('1. Order'!AY823=\"\",\"\",'1. Order'!AY823)","v":""},{"$f":"IF('1. Order'!AZ823=\"\",\"\",'1. Order'!AZ823)","v":""},{"$f":"IF('1. Order'!BA823=\"\",\"\",'1. Order'!BA823)","v":""},{"$f":"IF('1. Order'!BC823=\"\",\"\",'1. Order'!BC823)","v":""},{"$f":"IF('1. Order'!BD823=\"\",\"\",'1. Order'!BD823)","v":6},{"$f":"IF('1. Order'!BE823=\"\",\"\",'1. Order'!BE823)","v":"None"},{"$f":"IF('1. Order'!BF823=\"\",\"\",'1. Order'!BF823)","v":"Parcel"},{"$f":"IF('1. Order'!BG823=\"\",\"\",'1. Order'!BG823)","v":"ZWO"}]
[{"$f":"IF('1. Order'!F824=\"\",\"\",'1. Order'!F824)","v":""},{"$f":"IF('1. Order'!G824=\"\",\"\",'1. Order'!G824)","v":""},{"$f":"IF('1. Order'!H824=\"\",\"\",'1. Order'!H824)","v":""},{"$f":"IF('1. Order'!I824=\"\",\"\",'1. Order'!I824)","v":""},{"$f":"IF('1. Order'!J824=\"\",\"\",'1. Order'!J824)","v":""},{"$f":"IF('1. Order'!K824=\"\",\"\",'1. Order'!K824)","v":""},{"$f":"IF('1. Order'!L824=\"\",\"\",'1. Order'!L824)","v":""},{"$f":"IF('1. Order'!M824=\"\",\"\",'1. Order'!M824)","v":""},{"$f":"IF('1. Order'!N824=\"\",\"\",'1. Order'!N824)","v":""},{"$f":"IF('1. Order'!O824=\"\",\"\",'1. Order'!O824)","v":{"$error":"#N/A"}},{"$f":"IF('1. Order'!P824=\"\",\"\",'1. Order'!P824)","v":{"$error":"#N/A"}},{"$f":"IF('1. Order'!Q824=\"\",\"\",'1. Order'!Q824)","v":""},{"$f":"IF('1. Order'!R824=\"\",\"\",'1. Order'!R824)","v":""},{"$f":"IF('1. Order'!S824=\"\",\"\",'1. Order'!S824)","v":""},{"$f":"IF('1. Order'!V824=\"\",\"\",'1. Order'!V824)","v":""},{"$f":"IF('1. Order'!W824=\"\",\"\",'1. Order'!W824)","v":""},{"$f":"IF('1. Order'!X824=\"\",\"\",'1. Order'!X824)","v":"EUR"},{"$f":"IF('1. Order'!Y824=\"\",\"\",'1. Order'!Y824)","v":""},{"$f":"IF('1. Order'!Z824=\"\",\"\",'1. Order'!Z824)","v":""},{"$f":"IF('1. Order'!AA824=\"\",\"\",'1. Order'!AA824)","v":""},null,{"$f":"IF('1. Order'!AS824=\"\",\"\",'1. Order'!AS824)","v":""},{"$f":"IF('1. Order'!AT824=\"\",\"\",'1. Order'!AT824)","v":""},null,null,null,null,null,null,null,{"$f":"IF('1. Order'!AX824=\"\",\"\",'1. Order'!AX824)","v":""},{"$f":"IF('1. Order'!AY824=\"\",\"\",'1. Order'!AY824)","v":""},{"$f":"IF('1. Order'!AZ824=\"\",\"\",'1. Order'!AZ824)","v":""},{"$f":"IF('1. Order'!BA824=\"\",\"\",'1. Order'!BA824)","v":""},{"$f":"IF('1. Order'!BC824=\"\",\"\",'1. Order'!BC824)","v":""},{"$f":"IF('1. Order'!BD824=\"\",\"\",'1. Order'!BD824)","v":6},{"$f":"IF('1. Order'!BE824=\"\",\"\",'1. Order'!BE824)","v":"None"},{"$f":"IF('1. Order'!BF824=\"\",\"\",'1. Order'!BF824)","v":"Parcel"},{"$f":"IF('1. Order'!BG824=\"\",\"\",'1. Order'!BG824)","v":"ZWO"}]
[{"$f":"IF('1. Order'!F825=\"\",\"\",'1. Order'!F825)","v":""},{"$f":"IF('1. Order'!G825=\"\",\"\",'1. Order'!G825)","v":""},{"$f":"IF('1. Order'!H825=\"\",\"\",'1. Order'!H825)","v":""},{"$f":"IF('1. Order'!I825=\"\",\"\",'1. Order'!I825)","v":""},{"$f":"IF('1. Order'!J825=\"\",\"\",'1. Order'!J825)","v":""},{"$f":"IF('1. Order'!K825=\"\",\"\",'1. Order'!K825)","v":""},{"$f":"IF('1. Order'!L825=\"\",\"\",'1. Order'!L825)","v":""},{"$f":"IF('1. Order'!M825=\"\",\"\",'1. Order'!M825)","v":""},{"$f":"IF('1. Order'!N825=\"\",\"\",'1. Order'!N825)","v":""},{"$f":"IF('1. Order'!O825=\"\",\"\",'1. Order'!O825)","v":{"$error":"#N/A"}},{"$f":"IF('1. Order'!P825=\"\",\"\",'1. Order'!P825)","v":{"$error":"#N/A"}},{"$f":"IF('1. Order'!Q825=\"\",\"\",'1. Order'!Q825)","v":""},{"$f":"IF('1. Order'!R825=\"\",\"\",'1. Order'!R825)","v":""},{"$f":"IF('1. Order'!S825=\"\",\"\",'1. Order'!S825)","v":""},{"$f":"IF('1. Order'!V825=\"\",\"\",'1. Order'!V825)","v":""},{"$f":"IF('1. Order'!W825=\"\",\"\",'1. Order'!W825)","v":""},{"$f":"IF('1. Order'!X825=\"\",\"\",'1. Order'!X825)","v":"EUR"},{"$f":"IF('1. Order'!Y825=\"\",\"\",'1. Order'!Y825)","v":""},{"$f":"IF('1. Order'!Z825=\"\",\"\",'1. Order'!Z825)","v":""},{"$f":"IF('1. Order'!AA825=\"\",\"\",'1. Order'!AA825)","v":""},null,{"$f":"IF('1. Order'!AS825=\"\",\"\",'1. Order'!AS825)","v":""},{"$f":"IF('1. Order'!AT825=\"\",\"\",'1. Order'!AT825)","v":""},null,null,null,null,null,null,null,{"$f":"IF('1. Order'!AX825=\"\",\"\",'1. Order'!AX825)","v":""},{"$f":"IF('1. Order'!AY825=\"\",\"\",'1. Order'!AY825)","v":""},{"$f":"IF('1. Order'!AZ825=\"\",\"\",'1. Order'!AZ825)","v":""},{"$f":"IF('1. Order'!BA825=\"\",\"\",'1. Order'!BA825)","v":""},{"$f":"IF('1. Order'!BC825=\"\",\"\",'1. Order'!BC825)","v":""},{"$f":"IF('1. Order'!BD825=\"\",\"\",'1. Order'!BD825)","v":6},{"$f":"IF('1. Order'!BE825=\"\",\"\",'1. Order'!BE825)","v":"None"},{"$f":"IF('1. Order'!BF825=\"\",\"\",'1. Order'!BF825)","v":"Parcel"},{"$f":"IF('1. Order'!BG825=\"\",\"\",'1. Order'!BG825)","v":"ZWO"}]
[{"$f":"IF('1. Order'!F826=\"\",\"\",'1. Order'!F826)","v":""},{"$f":"IF('1. Order'!G826=\"\",\"\",'1. Order'!G826)","v":""},{"$f":"IF('1. Order'!H826=\"\",\"\",'1. Order'!H826)","v":""},{"$f":"IF('1. Order'!I826=\"\",\"\",'1. Order'!I826)","v":""},{"$f":"IF('1. Order'!J826=\"\",\"\",'1. Order'!J826)","v":""},{"$f":"IF('1. Order'!K826=\"\",\"\",'1. Order'!K826)","v":""},{"$f":"IF('1. Order'!L826=\"\",\"\",'1. Order'!L826)","v":""},{"$f":"IF('1. Order'!M826=\"\",\"\",'1. Order'!M826)","v":""},{"$f":"IF('1. Order'!N826=\"\",\"\",'1. Order'!N826)","v":""},{"$f":"IF('1. Order'!O826=\"\",\"\",'1. Order'!O826)","v":{"$error":"#N/A"}},{"$f":"IF('1. Order'!P826=\"\",\"\",'1. Order'!P826)","v":{"$error":"#N/A"}},{"$f":"IF('1. Order'!Q826=\"\",\"\",'1. Order'!Q826)","v":""},{"$f":"IF('1. Order'!R826=\"\",\"\",'1. Order'!R826)","v":""},{"$f":"IF('1. Order'!S826=\"\",\"\",'1. Order'!S826)","v":""},{"$f":"IF('1. Order'!V826=\"\",\"\",'1. Order'!V826)","v":""},{"$f":"IF('1. Order'!W826=\"\",\"\",'1. Order'!W826)","v":""},{"$f":"IF('1. Order'!X826=\"\",\"\",'1. Order'!X826)","v":"EUR"},{"$f":"IF('1. Order'!Y826=\"\",\"\",'1. Order'!Y826)","v":""},{"$f":"IF('1. Order'!Z826=\"\",\"\",'1. Order'!Z826)","v":""},{"$f":"IF('1. Order'!AA826=\"\",\"\",'1. Order'!AA826)","v":""},null,{"$f":"IF('1. Order'!AS826=\"\",\"\",'1. Order'!AS826)","v":""},{"$f":"IF('1. Order'!AT826=\"\",\"\",'1. Order'!AT826)","v":""},null,null,null,null,null,null,null,{"$f":"IF('1. Order'!AX826=\"\",\"\",'1. Order'!AX826)","v":""},{"$f":"IF('1. Order'!AY826=\"\",\"\",'1. Order'!AY826)","v":""},{"$f":"IF('1. Order'!AZ826=\"\",\"\",'1. Order'!AZ826)","v":""},{"$f":"IF('1. Order'!BA826=\"\",\"\",'1. Order'!BA826)","v":""},{"$f":"IF('1. Order'!BC826=\"\",\"\",'1. Order'!BC826)","v":""},{"$f":"IF('1. Order'!BD826=\"\",\"\",'1. Order'!BD826)","v":6},{"$f":"IF('1. Order'!BE826=\"\",\"\",'1. Order'!BE826)","v":"None"},{"$f":"IF('1. Order'!BF826=\"\",\"\",'1. Order'!BF826)","v":"Parcel"},{"$f":"IF('1. Order'!BG826=\"\",\"\",'1. Order'!BG826)","v":"ZWO"}]
[{"$f":"IF('1. Order'!F827=\"\",\"\",'1. Order'!F827)","v":""},{"$f":"IF('1. Order'!G827=\"\",\"\",'1. Order'!G827)","v":""},{"$f":"IF('1. Order'!H827=\"\",\"\",'1. Order'!H827)","v":""},{"$f":"IF('1. Order'!I827=\"\",\"\",'1. Order'!I827)","v":""},{"$f":"IF('1. Order'!J827=\"\",\"\",'1. Order'!J827)","v":""},{"$f":"IF('1. Order'!K827=\"\",\"\",'1. Order'!K827)","v":""},{"$f":"IF('1. Order'!L827=\"\",\"\",'1. Order'!L827)","v":""},{"$f":"IF('1. Order'!M827=\"\",\"\",'1. Order'!M827)","v":""},{"$f":"IF('1. Order'!N827=\"\",\"\",'1. Order'!N827)","v":""},{"$f":"IF('1. Order'!O827=\"\",\"\",'1. Order'!O827)","v":{"$error":"#N/A"}},{"$f":"IF('1. Order'!P827=\"\",\"\",'1. Order'!P827)","v":{"$error":"#N/A"}},{"$f":"IF('1. Order'!Q827=\"\",\"\",'1. Order'!Q827)","v":""},{"$f":"IF('1. Order'!R827=\"\",\"\",'1. Order'!R827)","v":""},{"$f":"IF('1. Order'!S827=\"\",\"\",'1. Order'!S827)","v":""},{"$f":"IF('1. Order'!V827=\"\",\"\",'1. Order'!V827)","v":""},{"$f":"IF('1. Order'!W827=\"\",\"\",'1. Order'!W827)","v":""},{"$f":"IF('1. Order'!X827=\"\",\"\",'1. Order'!X827)","v":"EUR"},{"$f":"IF('1. Order'!Y827=\"\",\"\",'1. Order'!Y827)","v":""},{"$f":"IF('1. Order'!Z827=\"\",\"\",'1. Order'!Z827)","v":""},{"$f":"IF('1. Order'!AA827=\"\",\"\",'1. Order'!AA827)","v":""},null,{"$f":"IF('1. Order'!AS827=\"\",\"\",'1. Order'!AS827)","v":""},{"$f":"IF('1. Order'!AT827=\"\",\"\",'1. Order'!AT827)","v":""},null,null,null,null,null,null,null,{"$f":"IF('1. Order'!AX827=\"\",\"\",'1. Order'!AX827)","v":""},{"$f":"IF('1. Order'!AY827=\"\",\"\",'1. Order'!AY827)","v":""},{"$f":"IF('1. Order'!AZ827=\"\",\"\",'1. Order'!AZ827)","v":""},{"$f":"IF('1. Order'!BA827=\"\",\"\",'1. Order'!BA827)","v":""},{"$f":"IF('1. Order'!BC827=\"\",\"\",'1. Order'!BC827)","v":""},{"$f":"IF('1. Order'!BD827=\"\",\"\",'1. Order'!BD827)","v":6},{"$f":"IF('1. Order'!BE827=\"\",\"\",'1. Order'!BE827)","v":"None"},{"$f":"IF('1. Order'!BF827=\"\",\"\",'1. Order'!BF827)","v":"Parcel"},{"$f":"IF('1. Order'!BG827=\"\",\"\",'1. Order'!BG827)","v":"ZWO"}]
[{"$f":"IF('1. Order'!F828=\"\",\"\",'1. Order'!F828)","v":""},{"$f":"IF('1. Order'!G828=\"\",\"\",'1. Order'!G828)","v":""},{"$f":"IF('1. Order'!H828=\"\",\"\",'1. Order'!H828)","v":""},{"$f":"IF('1. Order'!I828=\"\",\"\",'1. Order'!I828)","v":""},{"$f":"IF('1. Order'!J828=\"\",\"\",'1. Order'!J828)","v":""},{"$f":"IF('1. Order'!K828=\"\",\"\",'1. Order'!K828)","v":""},{"$f":"IF('1. Order'!L828=\"\",\"\",'1. Order'!L828)","v":""},{"$f":"IF('1. Order'!M828=\"\",\"\",'1. Order'!M828)","v":""},{"$f":"IF('1. Order'!N828=\"\",\"\",'1. Order'!N828)","v":""},{"$f":"IF('1. Order'!O828=\"\",\"\",'1. Order'!O828)","v":{"$error":"#N/A"}},{"$f":"IF('1. Order'!P828=\"\",\"\",'1. Order'!P828)","v":{"$error":"#N/A"}},{"$f":"IF('1. Order'!Q828=\"\",\"\",'1. Order'!Q828)","v":""},{"$f":"IF('1. Order'!R828=\"\",\"\",'1. Order'!R828)","v":""},{"$f":"IF('1. Order'!S828=\"\",\"\",'1. Order'!S828)","v":""},{"$f":"IF('1. Order'!V828=\"\",\"\",'1. Order'!V828)","v":""},{"$f":"IF('1. Order'!W828=\"\",\"\",'1. Order'!W828)","v":""},{"$f":"IF('1. Order'!X828=\"\",\"\",'1. Order'!X828)","v":"EUR"},{"$f":"IF('1. Order'!Y828=\"\",\"\",'1. Order'!Y828)","v":""},{"$f":"IF('1. Order'!Z828=\"\",\"\",'1. Order'!Z828)","v":""},{"$f":"IF('1. Order'!AA828=\"\",\"\",'1. Order'!AA828)","v":""},null,{"$f":"IF('1. Order'!AS828=\"\",\"\",'1. Order'!AS828)","v":""},{"$f":"IF('1. Order'!AT828=\"\",\"\",'1. Order'!AT828)","v":""},null,null,null,null,null,null,null,{"$f":"IF('1. Order'!AX828=\"\",\"\",'1. Order'!AX828)","v":""},{"$f":"IF('1. Order'!AY828=\"\",\"\",'1. Order'!AY828)","v":""},{"$f":"IF('1. Order'!AZ828=\"\",\"\",'1. Order'!AZ828)","v":""},{"$f":"IF('1. Order'!BA828=\"\",\"\",'1. Order'!BA828)","v":""},{"$f":"IF('1. Order'!BC828=\"\",\"\",'1. Order'!BC828)","v":""},{"$f":"IF('1. Order'!BD828=\"\",\"\",'1. Order'!BD828)","v":6},{"$f":"IF('1. Order'!BE828=\"\",\"\",'1. Order'!BE828)","v":"None"},{"$f":"IF('1. Order'!BF828=\"\",\"\",'1. Order'!BF828)","v":"Parcel"},{"$f":"IF('1. Order'!BG828=\"\",\"\",'1. Order'!BG828)","v":"ZWO"}]
[{"$f":"IF('1. Order'!F829=\"\",\"\",'1. Order'!F829)","v":""},{"$f":"IF('1. Order'!G829=\"\",\"\",'1. Order'!G829)","v":""},{"$f":"IF('1. Order'!H829=\"\",\"\",'1. Order'!H829)","v":""},{"$f":"IF('1. Order'!I829=\"\",\"\",'1. Order'!I829)","v":""},{"$f":"IF('1. Order'!J829=\"\",\"\",'1. Order'!J829)","v":""},{"$f":"IF('1. Order'!K829=\"\",\"\",'1. Order'!K829)","v":""},{"$f":"IF('1. Order'!L829=\"\",\"\",'1. Order'!L829)","v":""},{"$f":"IF('1. Order'!M829=\"\",\"\",'1. Order'!M829)","v":""},{"$f":"IF('1. Order'!N829=\"\",\"\",'1. Order'!N829)","v":""},{"$f":"IF('1. Order'!O829=\"\",\"\",'1. Order'!O829)","v":{"$error":"#N/A"}},{"$f":"IF('1. Order'!P829=\"\",\"\",'1. Order'!P829)","v":{"$error":"#N/A"}},{"$f":"IF('1. Order'!Q829=\"\",\"\",'1. Order'!Q829)","v":""},{"$f":"IF('1. Order'!R829=\"\",\"\",'1. Order'!R829)","v":""},{"$f":"IF('1. Order'!S829=\"\",\"\",'1. Order'!S829)","v":""},{"$f":"IF('1. Order'!V829=\"\",\"\",'1. Order'!V829)","v":""},{"$f":"IF('1. Order'!W829=\"\",\"\",'1. Order'!W829)","v":""},{"$f":"IF('1. Order'!X829=\"\",\"\",'1. Order'!X829)","v":"EUR"},{"$f":"IF('1. Order'!Y829=\"\",\"\",'1. Order'!Y829)","v":""},{"$f":"IF('1. Order'!Z829=\"\",\"\",'1. Order'!Z829)","v":""},{"$f":"IF('1. Order'!AA829=\"\",\"\",'1. Order'!AA829)","v":""},null,{"$f":"IF('1. Order'!AS829=\"\",\"\",'1. Order'!AS829)","v":""},{"$f":"IF('1. Order'!AT829=\"\",\"\",'1. Order'!AT829)","v":""},null,null,null,null,null,null,null,{"$f":"IF('1. Order'!AX829=\"\",\"\",'1. Order'!AX829)","v":""},{"$f":"IF('1. Order'!AY829=\"\",\"\",'1. Order'!AY829)","v":""},{"$f":"IF('1. Order'!AZ829=\"\",\"\",'1. Order'!AZ829)","v":""},{"$f":"IF('1. Order'!BA829=\"\",\"\",'1. Order'!BA829)","v":""},{"$f":"IF('1. Order'!BC829=\"\",\"\",'1. Order'!BC829)","v":""},{"$f":"IF('1. Order'!BD829=\"\",\"\",'1. Order'!BD829)","v":6},{"$f":"IF('1. Order'!BE829=\"\",\"\",'1. Order'!BE829)","v":"None"},{"$f":"IF('1. Order'!BF829=\"\",\"\",'1. Order'!BF829)","v":"Parcel"},{"$f":"IF('1. Order'!BG829=\"\",\"\",'1. Order'!BG829)","v":"ZWO"}]
[{"$f":"IF('1. Order'!F830=\"\",\"\",'1. Order'!F830)","v":""},{"$f":"IF('1. Order'!G830=\"\",\"\",'1. Order'!G830)","v":""},{"$f":"IF('1. Order'!H830=\"\",\"\",'1. Order'!H830)","v":""},{"$f":"IF('1. Order'!I830=\"\",\"\",'1. Order'!I830)","v":""},{"$f":"IF('1. Order'!J830=\"\",\"\",'1. Order'!J830)","v":""},{"$f":"IF('1. Order'!K830=\"\",\"\",'1. Order'!K830)","v":""},{"$f":"IF('1. Order'!L830=\"\",\"\",'1. Order'!L830)","v":""},{"$f":"IF('1. Order'!M830=\"\",\"\",'1. Order'!M830)","v":""},{"$f":"IF('1. Order'!N830=\"\",\"\",'1. Order'!N830)","v":""},{"$f":"IF('1. Order'!O830=\"\",\"\",'1. Order'!O830)","v":{"$error":"#N/A"}},{"$f":"IF('1. Order'!P830=\"\",\"\",'1. Order'!P830)","v":{"$error":"#N/A"}},{"$f":"IF('1. Order'!Q830=\"\",\"\",'1. Order'!Q830)","v":""},{"$f":"IF('1. Order'!R830=\"\",\"\",'1. Order'!R830)","v":""},{"$f":"IF('1. Order'!S830=\"\",\"\",'1. Order'!S830)","v":""},{"$f":"IF('1. Order'!V830=\"\",\"\",'1. Order'!V830)","v":""},{"$f":"IF('1. Order'!W830=\"\",\"\",'1. Order'!W830)","v":""},{"$f":"IF('1. Order'!X830=\"\",\"\",'1. Order'!X830)","v":"EUR"},{"$f":"IF('1. Order'!Y830=\"\",\"\",'1. Order'!Y830)","v":""},{"$f":"IF('1. Order'!Z830=\"\",\"\",'1. Order'!Z830)","v":""},{"$f":"IF('1. Order'!AA830=\"\",\"\",'1. Order'!AA830)","v":""},null,{"$f":"IF('1. Order'!AS830=\"\",\"\",'1. Order'!AS830)","v":""},{"$f":"IF('1. Order'!AT830=\"\",\"\",'1. Order'!AT830)","v":""},null,null,null,null,null,null,null,{"$f":"IF('1. Order'!AX830=\"\",\"\",'1. Order'!AX830)","v":""},{"$f":"IF('1. Order'!AY830=\"\",\"\",'1. Order'!AY830)","v":""},{"$f":"IF('1. Order'!AZ830=\"\",\"\",'1. Order'!AZ830)","v":""},{"$f":"IF('1. Order'!BA830=\"\",\"\",'1. Order'!BA830)","v":""},{"$f":"IF('1. Order'!BC830=\"\",\"\",'1. Order'!BC830)","v":""},{"$f":"IF('1. Order'!BD830=\"\",\"\",'1. Order'!BD830)","v":6},{"$f":"IF('1. Order'!BE830=\"\",\"\",'1. Order'!BE830)","v":"None"},{"$f":"IF('1. Order'!BF830=\"\",\"\",'1. Order'!BF830)","v":"Parcel"},{"$f":"IF('1. Order'!BG830=\"\",\"\",'1. Order'!BG830)","v":"ZWO"}]
[{"$f":"IF('1. Order'!F831=\"\",\"\",'1. Order'!F831)","v":""},{"$f":"IF('1. Order'!G831=\"\",\"\",'1. Order'!G831)","v":""},{"$f":"IF('1. Order'!H831=\"\",\"\",'1. Order'!H831)","v":""},{"$f":"IF('1. Order'!I831=\"\",\"\",'1. Order'!I831)","v":""},{"$f":"IF('1. Order'!J831=\"\",\"\",'1. Order'!J831)","v":""},{"$f":"IF('1. Order'!K831=\"\",\"\",'1. Order'!K831)","v":""},{"$f":"IF('1. Order'!L831=\"\",\"\",'1. Order'!L831)","v":""},{"$f":"IF('1. Order'!M831=\"\",\"\",'1. Order'!M831)","v":""},{"$f":"IF('1. Order'!N831=\"\",\"\",'1. Order'!N831)","v":""},{"$f":"IF('1. Order'!O831=\"\",\"\",'1. Order'!O831)","v":{"$error":"#N/A"}},{"$f":"IF('1. Order'!P831=\"\",\"\",'1. Order'!P831)","v":{"$error":"#N/A"}},{"$f":"IF('1. Order'!Q831=\"\",\"\",'1. Order'!Q831)","v":""},{"$f":"IF('1. Order'!R831=\"\",\"\",'1. Order'!R831)","v":""},{"$f":"IF('1. Order'!S831=\"\",\"\",'1. Order'!S831)","v":""},{"$f":"IF('1. Order'!V831=\"\",\"\",'1. Order'!V831)","v":""},{"$f":"IF('1. Order'!W831=\"\",\"\",'1. Order'!W831)","v":""},{"$f":"IF('1. Order'!X831=\"\",\"\",'1. Order'!X831)","v":"EUR"},{"$f":"IF('1. Order'!Y831=\"\",\"\",'1. Order'!Y831)","v":""},{"$f":"IF('1. Order'!Z831=\"\",\"\",'1. Order'!Z831)","v":""},{"$f":"IF('1. Order'!AA831=\"\",\"\",'1. Order'!AA831)","v":""},null,{"$f":"IF('1. Order'!AS831=\"\",\"\",'1. Order'!AS831)","v":""},{"$f":"IF('1. Order'!AT831=\"\",\"\",'1. Order'!AT831)","v":""},null,null,null,null,null,null,null,{"$f":"IF('1. Order'!AX831=\"\",\"\",'1. Order'!AX831)","v":""},{"$f":"IF('1. Order'!AY831=\"\",\"\",'1. Order'!AY831)","v":""},{"$f":"IF('1. Order'!AZ831=\"\",\"\",'1. Order'!AZ831)","v":""},{"$f":"IF('1. Order'!BA831=\"\",\"\",'1. Order'!BA831)","v":""},{"$f":"IF('1. Order'!BC831=\"\",\"\",'1. Order'!BC831)","v":""},{"$f":"IF('1. Order'!BD831=\"\",\"\",'1. Order'!BD831)","v":6},{"$f":"IF('1. Order'!BE831=\"\",\"\",'1. Order'!BE831)","v":"None"},{"$f":"IF('1. Order'!BF831=\"\",\"\",'1. Order'!BF831)","v":"Parcel"},{"$f":"IF('1. Order'!BG831=\"\",\"\",'1. Order'!BG831)","v":"ZWO"}]
[{"$f":"IF('1. Order'!F832=\"\",\"\",'1. Order'!F832)","v":""},{"$f":"IF('1. Order'!G832=\"\",\"\",'1. Order'!G832)","v":""},{"$f":"IF('1. Order'!H832=\"\",\"\",'1. Order'!H832)","v":""},{"$f":"IF('1. Order'!I832=\"\",\"\",'1. Order'!I832)","v":""},{"$f":"IF('1. Order'!J832=\"\",\"\",'1. Order'!J832)","v":""},{"$f":"IF('1. Order'!K832=\"\",\"\",'1. Order'!K832)","v":""},{"$f":"IF('1. Order'!L832=\"\",\"\",'1. Order'!L832)","v":""},{"$f":"IF('1. Order'!M832=\"\",\"\",'1. Order'!M832)","v":""},{"$f":"IF('1. Order'!N832=\"\",\"\",'1. Order'!N832)","v":""},{"$f":"IF('1. Order'!O832=\"\",\"\",'1. Order'!O832)","v":{"$error":"#N/A"}},{"$f":"IF('1. Order'!P832=\"\",\"\",'1. Order'!P832)","v":{"$error":"#N/A"}},{"$f":"IF('1. Order'!Q832=\"\",\"\",'1. Order'!Q832)","v":""},{"$f":"IF('1. Order'!R832=\"\",\"\",'1. Order'!R832)","v":""},{"$f":"IF('1. Order'!S832=\"\",\"\",'1. Order'!S832)","v":""},{"$f":"IF('1. Order'!V832=\"\",\"\",'1. Order'!V832)","v":""},{"$f":"IF('1. Order'!W832=\"\",\"\",'1. Order'!W832)","v":""},{"$f":"IF('1. Order'!X832=\"\",\"\",'1. Order'!X832)","v":"EUR"},{"$f":"IF('1. Order'!Y832=\"\",\"\",'1. Order'!Y832)","v":""},{"$f":"IF('1. Order'!Z832=\"\",\"\",'1. Order'!Z832)","v":""},{"$f":"IF('1. Order'!AA832=\"\",\"\",'1. Order'!AA832)","v":""},null,{"$f":"IF('1. Order'!AS832=\"\",\"\",'1. Order'!AS832)","v":""},{"$f":"IF('1. Order'!AT832=\"\",\"\",'1. Order'!AT832)","v":""},null,null,null,null,null,null,null,{"$f":"IF('1. Order'!AX832=\"\",\"\",'1. Order'!AX832)","v":""},{"$f":"IF('1. Order'!AY832=\"\",\"\",'1. Order'!AY832)","v":""},{"$f":"IF('1. Order'!AZ832=\"\",\"\",'1. Order'!AZ832)","v":""},{"$f":"IF('1. Order'!BA832=\"\",\"\",'1. Order'!BA832)","v":""},{"$f":"IF('1. Order'!BC832=\"\",\"\",'1. Order'!BC832)","v":""},{"$f":"IF('1. Order'!BD832=\"\",\"\",'1. Order'!BD832)","v":6},{"$f":"IF('1. Order'!BE832=\"\",\"\",'1. Order'!BE832)","v":"None"},{"$f":"IF('1. Order'!BF832=\"\",\"\",'1. Order'!BF832)","v":"Parcel"},{"$f":"IF('1. Order'!BG832=\"\",\"\",'1. Order'!BG832)","v":"ZWO"}]
[{"$f":"IF('1. Order'!F833=\"\",\"\",'1. Order'!F833)","v":""},{"$f":"IF('1. Order'!G833=\"\",\"\",'1. Order'!G833)","v":""},{"$f":"IF('1. Order'!H833=\"\",\"\",'1. Order'!H833)","v":""},{"$f":"IF('1. Order'!I833=\"\",\"\",'1. Order'!I833)","v":""},{"$f":"IF('1. Order'!J833=\"\",\"\",'1. Order'!J833)","v":""},{"$f":"IF('1. Order'!K833=\"\",\"\",'1. Order'!K833)","v":""},{"$f":"IF('1. Order'!L833=\"\",\"\",'1. Order'!L833)","v":""},{"$f":"IF('1. Order'!M833=\"\",\"\",'1. Order'!M833)","v":""},{"$f":"IF('1. Order'!N833=\"\",\"\",'1. Order'!N833)","v":""},{"$f":"IF('1. Order'!O833=\"\",\"\",'1. Order'!O833)","v":{"$error":"#N/A"}},{"$f":"IF('1. Order'!P833=\"\",\"\",'1. Order'!P833)","v":{"$error":"#N/A"}},{"$f":"IF('1. Order'!Q833=\"\",\"\",'1. Order'!Q833)","v":""},{"$f":"IF('1. Order'!R833=\"\",\"\",'1. Order'!R833)","v":""},{"$f":"IF('1. Order'!S833=\"\",\"\",'1. Order'!S833)","v":""},{"$f":"IF('1. Order'!V833=\"\",\"\",'1. Order'!V833)","v":""},{"$f":"IF('1. Order'!W833=\"\",\"\",'1. Order'!W833)","v":""},{"$f":"IF('1. Order'!X833=\"\",\"\",'1. Order'!X833)","v":"EUR"},{"$f":"IF('1. Order'!Y833=\"\",\"\",'1. Order'!Y833)","v":""},{"$f":"IF('1. Order'!Z833=\"\",\"\",'1. Order'!Z833)","v":""},{"$f":"IF('1. Order'!AA833=\"\",\"\",'1. Order'!AA833)","v":""},null,{"$f":"IF('1. Order'!AS833=\"\",\"\",'1. Order'!AS833)","v":""},{"$f":"IF('1. Order'!AT833=\"\",\"\",'1. Order'!AT833)","v":""},null,null,null,null,null,null,null,{"$f":"IF('1. Order'!AX833=\"\",\"\",'1. Order'!AX833)","v":""},{"$f":"IF('1. Order'!AY833=\"\",\"\",'1. Order'!AY833)","v":""},{"$f":"IF('1. Order'!AZ833=\"\",\"\",'1. Order'!AZ833)","v":""},{"$f":"IF('1. Order'!BA833=\"\",\"\",'1. Order'!BA833)","v":""},{"$f":"IF('1. Order'!BC833=\"\",\"\",'1. Order'!BC833)","v":""},{"$f":"IF('1. Order'!BD833=\"\",\"\",'1. Order'!BD833)","v":6},{"$f":"IF('1. Order'!BE833=\"\",\"\",'1. Order'!BE833)","v":"None"},{"$f":"IF('1. Order'!BF833=\"\",\"\",'1. Order'!BF833)","v":"Parcel"},{"$f":"IF('1. Order'!BG833=\"\",\"\",'1. Order'!BG833)","v":"ZWO"}]
[{"$f":"IF('1. Order'!F834=\"\",\"\",'1. Order'!F834)","v":""},{"$f":"IF('1. Order'!G834=\"\",\"\",'1. Order'!G834)","v":""},{"$f":"IF('1. Order'!H834=\"\",\"\",'1. Order'!H834)","v":""},{"$f":"IF('1. Order'!I834=\"\",\"\",'1. Order'!I834)","v":""},{"$f":"IF('1. Order'!J834=\"\",\"\",'1. Order'!J834)","v":""},{"$f":"IF('1. Order'!K834=\"\",\"\",'1. Order'!K834)","v":""},{"$f":"IF('1. Order'!L834=\"\",\"\",'1. Order'!L834)","v":""},{"$f":"IF('1. Order'!M834=\"\",\"\",'1. Order'!M834)","v":""},{"$f":"IF('1. Order'!N834=\"\",\"\",'1. Order'!N834)","v":""},{"$f":"IF('1. Order'!O834=\"\",\"\",'1. Order'!O834)","v":{"$error":"#N/A"}},{"$f":"IF('1. Order'!P834=\"\",\"\",'1. Order'!P834)","v":{"$error":"#N/A"}},{"$f":"IF('1. Order'!Q834=\"\",\"\",'1. Order'!Q834)","v":""},{"$f":"IF('1. Order'!R834=\"\",\"\",'1. Order'!R834)","v":""},{"$f":"IF('1. Order'!S834=\"\",\"\",'1. Order'!S834)","v":""},{"$f":"IF('1. Order'!V834=\"\",\"\",'1. Order'!V834)","v":""},{"$f":"IF('1. Order'!W834=\"\",\"\",'1. Order'!W834)","v":""},{"$f":"IF('1. Order'!X834=\"\",\"\",'1. Order'!X834)","v":"EUR"},{"$f":"IF('1. Order'!Y834=\"\",\"\",'1. Order'!Y834)","v":""},{"$f":"IF('1. Order'!Z834=\"\",\"\",'1. Order'!Z834)","v":""},{"$f":"IF('1. Order'!AA834=\"\",\"\",'1. Order'!AA834)","v":""},null,{"$f":"IF('1. Order'!AS834=\"\",\"\",'1. Order'!AS834)","v":""},{"$f":"IF('1. Order'!AT834=\"\",\"\",'1. Order'!AT834)","v":""},null,null,null,null,null,null,null,{"$f":"IF('1. Order'!AX834=\"\",\"\",'1. Order'!AX834)","v":""},{"$f":"IF('1. Order'!AY834=\"\",\"\",'1. Order'!AY834)","v":""},{"$f":"IF('1. Order'!AZ834=\"\",\"\",'1. Order'!AZ834)","v":""},{"$f":"IF('1. Order'!BA834=\"\",\"\",'1. Order'!BA834)","v":""},{"$f":"IF('1. Order'!BC834=\"\",\"\",'1. Order'!BC834)","v":""},{"$f":"IF('1. Order'!BD834=\"\",\"\",'1. Order'!BD834)","v":6},{"$f":"IF('1. Order'!BE834=\"\",\"\",'1. Order'!BE834)","v":"None"},{"$f":"IF('1. Order'!BF834=\"\",\"\",'1. Order'!BF834)","v":"Parcel"},{"$f":"IF('1. Order'!BG834=\"\",\"\",'1. Order'!BG834)","v":"ZWO"}]
[{"$f":"IF('1. Order'!F835=\"\",\"\",'1. Order'!F835)","v":""},{"$f":"IF('1. Order'!G835=\"\",\"\",'1. Order'!G835)","v":""},{"$f":"IF('1. Order'!H835=\"\",\"\",'1. Order'!H835)","v":""},{"$f":"IF('1. Order'!I835=\"\",\"\",'1. Order'!I835)","v":""},{"$f":"IF('1. Order'!J835=\"\",\"\",'1. Order'!J835)","v":""},{"$f":"IF('1. Order'!K835=\"\",\"\",'1. Order'!K835)","v":""},{"$f":"IF('1. Order'!L835=\"\",\"\",'1. Order'!L835)","v":""},{"$f":"IF('1. Order'!M835=\"\",\"\",'1. Order'!M835)","v":""},{"$f":"IF('1. Order'!N835=\"\",\"\",'1. Order'!N835)","v":""},{"$f":"IF('1. Order'!O835=\"\",\"\",'1. Order'!O835)","v":{"$error":"#N/A"}},{"$f":"IF('1. Order'!P835=\"\",\"\",'1. Order'!P835)","v":{"$error":"#N/A"}},{"$f":"IF('1. Order'!Q835=\"\",\"\",'1. Order'!Q835)","v":""},{"$f":"IF('1. Order'!R835=\"\",\"\",'1. Order'!R835)","v":""},{"$f":"IF('1. Order'!S835=\"\",\"\",'1. Order'!S835)","v":""},{"$f":"IF('1. Order'!V835=\"\",\"\",'1. Order'!V835)","v":""},{"$f":"IF('1. Order'!W835=\"\",\"\",'1. Order'!W835)","v":""},{"$f":"IF('1. Order'!X835=\"\",\"\",'1. Order'!X835)","v":"EUR"},{"$f":"IF('1. Order'!Y835=\"\",\"\",'1. Order'!Y835)","v":""},{"$f":"IF('1. Order'!Z835=\"\",\"\",'1. Order'!Z835)","v":""},{"$f":"IF('1. Order'!AA835=\"\",\"\",'1. Order'!AA835)","v":""},null,{"$f":"IF('1. Order'!AS835=\"\",\"\",'1. Order'!AS835)","v":""},{"$f":"IF('1. Order'!AT835=\"\",\"\",'1. Order'!AT835)","v":""},null,null,null,null,null,null,null,{"$f":"IF('1. Order'!AX835=\"\",\"\",'1. Order'!AX835)","v":""},{"$f":"IF('1. Order'!AY835=\"\",\"\",'1. Order'!AY835)","v":""},{"$f":"IF('1. Order'!AZ835=\"\",\"\",'1. Order'!AZ835)","v":""},{"$f":"IF('1. Order'!BA835=\"\",\"\",'1. Order'!BA835)","v":""},{"$f":"IF('1. Order'!BC835=\"\",\"\",'1. Order'!BC835)","v":""},{"$f":"IF('1. Order'!BD835=\"\",\"\",'1. Order'!BD835)","v":6},{"$f":"IF('1. Order'!BE835=\"\",\"\",'1. Order'!BE835)","v":"None"},{"$f":"IF('1. Order'!BF835=\"\",\"\",'1. Order'!BF835)","v":"Parcel"},{"$f":"IF('1. Order'!BG835=\"\",\"\",'1. Order'!BG835)","v":"ZWO"}]
[{"$f":"IF('1. Order'!F836=\"\",\"\",'1. Order'!F836)","v":""},{"$f":"IF('1. Order'!G836=\"\",\"\",'1. Order'!G836)","v":""},{"$f":"IF('1. Order'!H836=\"\",\"\",'1. Order'!H836)","v":""},{"$f":"IF('1. Order'!I836=\"\",\"\",'1. Order'!I836)","v":""},{"$f":"IF('1. Order'!J836=\"\",\"\",'1. Order'!J836)","v":""},{"$f":"IF('1. Order'!K836=\"\",\"\",'1. Order'!K836)","v":""},{"$f":"IF('1. Order'!L836=\"\",\"\",'1. Order'!L836)","v":""},{"$f":"IF('1. Order'!M836=\"\",\"\",'1. Order'!M836)","v":""},{"$f":"IF('1. Order'!N836=\"\",\"\",'1. Order'!N836)","v":""},{"$f":"IF('1. Order'!O836=\"\",\"\",'1. Order'!O836)","v":{"$error":"#N/A"}},{"$f":"IF('1. Order'!P836=\"\",\"\",'1. Order'!P836)","v":{"$error":"#N/A"}},{"$f":"IF('1. Order'!Q836=\"\",\"\",'1. Order'!Q836)","v":""},{"$f":"IF('1. Order'!R836=\"\",\"\",'1. Order'!R836)","v":""},{"$f":"IF('1. Order'!S836=\"\",\"\",'1. Order'!S836)","v":""},{"$f":"IF('1. Order'!V836=\"\",\"\",'1. Order'!V836)","v":""},{"$f":"IF('1. Order'!W836=\"\",\"\",'1. Order'!W836)","v":""},{"$f":"IF('1. Order'!X836=\"\",\"\",'1. Order'!X836)","v":"EUR"},{"$f":"IF('1. Order'!Y836=\"\",\"\",'1. Order'!Y836)","v":""},{"$f":"IF('1. Order'!Z836=\"\",\"\",'1. Order'!Z836)","v":""},{"$f":"IF('1. Order'!AA836=\"\",\"\",'1. Order'!AA836)","v":""},null,{"$f":"IF('1. Order'!AS836=\"\",\"\",'1. Order'!AS836)","v":""},{"$f":"IF('1. Order'!AT836=\"\",\"\",'1. Order'!AT836)","v":""},null,null,null,null,null,null,null,{"$f":"IF('1. Order'!AX836=\"\",\"\",'1. Order'!AX836)","v":""},{"$f":"IF('1. Order'!AY836=\"\",\"\",'1. Order'!AY836)","v":""},{"$f":"IF('1. Order'!AZ836=\"\",\"\",'1. Order'!AZ836)","v":""},{"$f":"IF('1. Order'!BA836=\"\",\"\",'1. Order'!BA836)","v":""},{"$f":"IF('1. Order'!BC836=\"\",\"\",'1. Order'!BC836)","v":""},{"$f":"IF('1. Order'!BD836=\"\",\"\",'1. Order'!BD836)","v":6},{"$f":"IF('1. Order'!BE836=\"\",\"\",'1. Order'!BE836)","v":"None"},{"$f":"IF('1. Order'!BF836=\"\",\"\",'1. Order'!BF836)","v":"Parcel"},{"$f":"IF('1. Order'!BG836=\"\",\"\",'1. Order'!BG836)","v":"ZWO"}]
[{"$f":"IF('1. Order'!F837=\"\",\"\",'1. Order'!F837)","v":""},{"$f":"IF('1. Order'!G837=\"\",\"\",'1. Order'!G837)","v":""},{"$f":"IF('1. Order'!H837=\"\",\"\",'1. Order'!H837)","v":""},{"$f":"IF('1. Order'!I837=\"\",\"\",'1. Order'!I837)","v":""},{"$f":"IF('1. Order'!J837=\"\",\"\",'1. Order'!J837)","v":""},{"$f":"IF('1. Order'!K837=\"\",\"\",'1. Order'!K837)","v":""},{"$f":"IF('1. Order'!L837=\"\",\"\",'1. Order'!L837)","v":""},{"$f":"IF('1. Order'!M837=\"\",\"\",'1. Order'!M837)","v":""},{"$f":"IF('1. Order'!N837=\"\",\"\",'1. Order'!N837)","v":""},{"$f":"IF('1. Order'!O837=\"\",\"\",'1. Order'!O837)","v":{"$error":"#N/A"}},{"$f":"IF('1. Order'!P837=\"\",\"\",'1. Order'!P837)","v":{"$error":"#N/A"}},{"$f":"IF('1. Order'!Q837=\"\",\"\",'1. Order'!Q837)","v":""},{"$f":"IF('1. Order'!R837=\"\",\"\",'1. Order'!R837)","v":""},{"$f":"IF('1. Order'!S837=\"\",\"\",'1. Order'!S837)","v":""},{"$f":"IF('1. Order'!V837=\"\",\"\",'1. Order'!V837)","v":""},{"$f":"IF('1. Order'!W837=\"\",\"\",'1. Order'!W837)","v":""},{"$f":"IF('1. Order'!X837=\"\",\"\",'1. Order'!X837)","v":"EUR"},{"$f":"IF('1. Order'!Y837=\"\",\"\",'1. Order'!Y837)","v":""},{"$f":"IF('1. Order'!Z837=\"\",\"\",'1. Order'!Z837)","v":""},{"$f":"IF('1. Order'!AA837=\"\",\"\",'1. Order'!AA837)","v":""},null,{"$f":"IF('1. Order'!AS837=\"\",\"\",'1. Order'!AS837)","v":""},{"$f":"IF('1. Order'!AT837=\"\",\"\",'1. Order'!AT837)","v":""},null,null,null,null,null,null,null,{"$f":"IF('1. Order'!AX837=\"\",\"\",'1. Order'!AX837)","v":""},{"$f":"IF('1. Order'!AY837=\"\",\"\",'1. Order'!AY837)","v":""},{"$f":"IF('1. Order'!AZ837=\"\",\"\",'1. Order'!AZ837)","v":""},{"$f":"IF('1. Order'!BA837=\"\",\"\",'1. Order'!BA837)","v":""},{"$f":"IF('1. Order'!BC837=\"\",\"\",'1. Order'!BC837)","v":""},{"$f":"IF('1. Order'!BD837=\"\",\"\",'1. Order'!BD837)","v":6},{"$f":"IF('1. Order'!BE837=\"\",\"\",'1. Order'!BE837)","v":"None"},{"$f":"IF('1. Order'!BF837=\"\",\"\",'1. Order'!BF837)","v":"Parcel"},{"$f":"IF('1. Order'!BG837=\"\",\"\",'1. Order'!BG837)","v":"ZWO"}]
[{"$f":"IF('1. Order'!F838=\"\",\"\",'1. Order'!F838)","v":""},{"$f":"IF('1. Order'!G838=\"\",\"\",'1. Order'!G838)","v":""},{"$f":"IF('1. Order'!H838=\"\",\"\",'1. Order'!H838)","v":""},{"$f":"IF('1. Order'!I838=\"\",\"\",'1. Order'!I838)","v":""},{"$f":"IF('1. Order'!J838=\"\",\"\",'1. Order'!J838)","v":""},{"$f":"IF('1. Order'!K838=\"\",\"\",'1. Order'!K838)","v":""},{"$f":"IF('1. Order'!L838=\"\",\"\",'1. Order'!L838)","v":""},{"$f":"IF('1. Order'!M838=\"\",\"\",'1. Order'!M838)","v":""},{"$f":"IF('1. Order'!N838=\"\",\"\",'1. Order'!N838)","v":""},{"$f":"IF('1. Order'!O838=\"\",\"\",'1. Order'!O838)","v":{"$error":"#N/A"}},{"$f":"IF('1. Order'!P838=\"\",\"\",'1. Order'!P838)","v":{"$error":"#N/A"}},{"$f":"IF('1. Order'!Q838=\"\",\"\",'1. Order'!Q838)","v":""},{"$f":"IF('1. Order'!R838=\"\",\"\",'1. Order'!R838)","v":""},{"$f":"IF('1. Order'!S838=\"\",\"\",'1. Order'!S838)","v":""},{"$f":"IF('1. Order'!V838=\"\",\"\",'1. Order'!V838)","v":""},{"$f":"IF('1. Order'!W838=\"\",\"\",'1. Order'!W838)","v":""},{"$f":"IF('1. Order'!X838=\"\",\"\",'1. Order'!X838)","v":"EUR"},{"$f":"IF('1. Order'!Y838=\"\",\"\",'1. Order'!Y838)","v":""},{"$f":"IF('1. Order'!Z838=\"\",\"\",'1. Order'!Z838)","v":""},{"$f":"IF('1. Order'!AA838=\"\",\"\",'1. Order'!AA838)","v":""},null,{"$f":"IF('1. Order'!AS838=\"\",\"\",'1. Order'!AS838)","v":""},{"$f":"IF('1. Order'!AT838=\"\",\"\",'1. Order'!AT838)","v":""},null,null,null,null,null,null,null,{"$f":"IF('1. Order'!AX838=\"\",\"\",'1. Order'!AX838)","v":""},{"$f":"IF('1. Order'!AY838=\"\",\"\",'1. Order'!AY838)","v":""},{"$f":"IF('1. Order'!AZ838=\"\",\"\",'1. Order'!AZ838)","v":""},{"$f":"IF('1. Order'!BA838=\"\",\"\",'1. Order'!BA838)","v":""},{"$f":"IF('1. Order'!BC838=\"\",\"\",'1. Order'!BC838)","v":""},{"$f":"IF('1. Order'!BD838=\"\",\"\",'1. Order'!BD838)","v":6},{"$f":"IF('1. Order'!BE838=\"\",\"\",'1. Order'!BE838)","v":"None"},{"$f":"IF('1. Order'!BF838=\"\",\"\",'1. Order'!BF838)","v":"Parcel"},{"$f":"IF('1. Order'!BG838=\"\",\"\",'1. Order'!BG838)","v":"ZWO"}]
[{"$f":"IF('1. Order'!F839=\"\",\"\",'1. Order'!F839)","v":""},{"$f":"IF('1. Order'!G839=\"\",\"\",'1. Order'!G839)","v":""},{"$f":"IF('1. Order'!H839=\"\",\"\",'1. Order'!H839)","v":""},{"$f":"IF('1. Order'!I839=\"\",\"\",'1. Order'!I839)","v":""},{"$f":"IF('1. Order'!J839=\"\",\"\",'1. Order'!J839)","v":""},{"$f":"IF('1. Order'!K839=\"\",\"\",'1. Order'!K839)","v":""},{"$f":"IF('1. Order'!L839=\"\",\"\",'1. Order'!L839)","v":""},{"$f":"IF('1. Order'!M839=\"\",\"\",'1. Order'!M839)","v":""},{"$f":"IF('1. Order'!N839=\"\",\"\",'1. Order'!N839)","v":""},{"$f":"IF('1. Order'!O839=\"\",\"\",'1. Order'!O839)","v":{"$error":"#N/A"}},{"$f":"IF('1. Order'!P839=\"\",\"\",'1. Order'!P839)","v":{"$error":"#N/A"}},{"$f":"IF('1. Order'!Q839=\"\",\"\",'1. Order'!Q839)","v":""},{"$f":"IF('1. Order'!R839=\"\",\"\",'1. Order'!R839)","v":""},{"$f":"IF('1. Order'!S839=\"\",\"\",'1. Order'!S839)","v":""},{"$f":"IF('1. Order'!V839=\"\",\"\",'1. Order'!V839)","v":""},{"$f":"IF('1. Order'!W839=\"\",\"\",'1. Order'!W839)","v":""},{"$f":"IF('1. Order'!X839=\"\",\"\",'1. Order'!X839)","v":"EUR"},{"$f":"IF('1. Order'!Y839=\"\",\"\",'1. Order'!Y839)","v":""},{"$f":"IF('1. Order'!Z839=\"\",\"\",'1. Order'!Z839)","v":""},{"$f":"IF('1. Order'!AA839=\"\",\"\",'1. Order'!AA839)","v":""},null,{"$f":"IF('1. Order'!AS839=\"\",\"\",'1. Order'!AS839)","v":""},{"$f":"IF('1. Order'!AT839=\"\",\"\",'1. Order'!AT839)","v":""},null,null,null,null,null,null,null,{"$f":"IF('1. Order'!AX839=\"\",\"\",'1. Order'!AX839)","v":""},{"$f":"IF('1. Order'!AY839=\"\",\"\",'1. Order'!AY839)","v":""},{"$f":"IF('1. Order'!AZ839=\"\",\"\",'1. Order'!AZ839)","v":""},{"$f":"IF('1. Order'!BA839=\"\",\"\",'1. Order'!BA839)","v":""},{"$f":"IF('1. Order'!BC839=\"\",\"\",'1. Order'!BC839)","v":""},{"$f":"IF('1. Order'!BD839=\"\",\"\",'1. Order'!BD839)","v":6},{"$f":"IF('1. Order'!BE839=\"\",\"\",'1. Order'!BE839)","v":"None"},{"$f":"IF('1. Order'!BF839=\"\",\"\",'1. Order'!BF839)","v":"Parcel"},{"$f":"IF('1. Order'!BG839=\"\",\"\",'1. Order'!BG839)","v":"ZWO"}]
[{"$f":"IF('1. Order'!F840=\"\",\"\",'1. Order'!F840)","v":""},{"$f":"IF('1. Order'!G840=\"\",\"\",'1. Order'!G840)","v":""},{"$f":"IF('1. Order'!H840=\"\",\"\",'1. Order'!H840)","v":""},{"$f":"IF('1. Order'!I840=\"\",\"\",'1. Order'!I840)","v":""},{"$f":"IF('1. Order'!J840=\"\",\"\",'1. Order'!J840)","v":""},{"$f":"IF('1. Order'!K840=\"\",\"\",'1. Order'!K840)","v":""},{"$f":"IF('1. Order'!L840=\"\",\"\",'1. Order'!L840)","v":""},{"$f":"IF('1. Order'!M840=\"\",\"\",'1. Order'!M840)","v":""},{"$f":"IF('1. Order'!N840=\"\",\"\",'1. Order'!N840)","v":""},{"$f":"IF('1. Order'!O840=\"\",\"\",'1. Order'!O840)","v":{"$error":"#N/A"}},{"$f":"IF('1. Order'!P840=\"\",\"\",'1. Order'!P840)","v":{"$error":"#N/A"}},{"$f":"IF('1. Order'!Q840=\"\",\"\",'1. Order'!Q840)","v":""},{"$f":"IF('1. Order'!R840=\"\",\"\",'1. Order'!R840)","v":""},{"$f":"IF('1. Order'!S840=\"\",\"\",'1. Order'!S840)","v":""},{"$f":"IF('1. Order'!V840=\"\",\"\",'1. Order'!V840)","v":""},{"$f":"IF('1. Order'!W840=\"\",\"\",'1. Order'!W840)","v":""},{"$f":"IF('1. Order'!X840=\"\",\"\",'1. Order'!X840)","v":"EUR"},{"$f":"IF('1. Order'!Y840=\"\",\"\",'1. Order'!Y840)","v":""},{"$f":"IF('1. Order'!Z840=\"\",\"\",'1. Order'!Z840)","v":""},{"$f":"IF('1. Order'!AA840=\"\",\"\",'1. Order'!AA840)","v":""},null,{"$f":"IF('1. Order'!AS840=\"\",\"\",'1. Order'!AS840)","v":""},{"$f":"IF('1. Order'!AT840=\"\",\"\",'1. Order'!AT840)","v":""},null,null,null,null,null,null,null,{"$f":"IF('1. Order'!AX840=\"\",\"\",'1. Order'!AX840)","v":""},{"$f":"IF('1. Order'!AY840=\"\",\"\",'1. Order'!AY840)","v":""},{"$f":"IF('1. Order'!AZ840=\"\",\"\",'1. Order'!AZ840)","v":""},{"$f":"IF('1. Order'!BA840=\"\",\"\",'1. Order'!BA840)","v":""},{"$f":"IF('1. Order'!BC840=\"\",\"\",'1. Order'!BC840)","v":""},{"$f":"IF('1. Order'!BD840=\"\",\"\",'1. Order'!BD840)","v":6},{"$f":"IF('1. Order'!BE840=\"\",\"\",'1. Order'!BE840)","v":"None"},{"$f":"IF('1. Order'!BF840=\"\",\"\",'1. Order'!BF840)","v":"Parcel"},{"$f":"IF('1. Order'!BG840=\"\",\"\",'1. Order'!BG840)","v":"ZWO"}]
[{"$f":"IF('1. Order'!F841=\"\",\"\",'1. Order'!F841)","v":""},{"$f":"IF('1. Order'!G841=\"\",\"\",'1. Order'!G841)","v":""},{"$f":"IF('1. Order'!H841=\"\",\"\",'1. Order'!H841)","v":""},{"$f":"IF('1. Order'!I841=\"\",\"\",'1. Order'!I841)","v":""},{"$f":"IF('1. Order'!J841=\"\",\"\",'1. Order'!J841)","v":""},{"$f":"IF('1. Order'!K841=\"\",\"\",'1. Order'!K841)","v":""},{"$f":"IF('1. Order'!L841=\"\",\"\",'1. Order'!L841)","v":""},{"$f":"IF('1. Order'!M841=\"\",\"\",'1. Order'!M841)","v":""},{"$f":"IF('1. Order'!N841=\"\",\"\",'1. Order'!N841)","v":""},{"$f":"IF('1. Order'!O841=\"\",\"\",'1. Order'!O841)","v":{"$error":"#N/A"}},{"$f":"IF('1. Order'!P841=\"\",\"\",'1. Order'!P841)","v":{"$error":"#N/A"}},{"$f":"IF('1. Order'!Q841=\"\",\"\",'1. Order'!Q841)","v":""},{"$f":"IF('1. Order'!R841=\"\",\"\",'1. Order'!R841)","v":""},{"$f":"IF('1. Order'!S841=\"\",\"\",'1. Order'!S841)","v":""},{"$f":"IF('1. Order'!V841=\"\",\"\",'1. Order'!V841)","v":""},{"$f":"IF('1. Order'!W841=\"\",\"\",'1. Order'!W841)","v":""},{"$f":"IF('1. Order'!X841=\"\",\"\",'1. Order'!X841)","v":"EUR"},{"$f":"IF('1. Order'!Y841=\"\",\"\",'1. Order'!Y841)","v":""},{"$f":"IF('1. Order'!Z841=\"\",\"\",'1. Order'!Z841)","v":""},{"$f":"IF('1. Order'!AA841=\"\",\"\",'1. Order'!AA841)","v":""},null,{"$f":"IF('1. Order'!AS841=\"\",\"\",'1. Order'!AS841)","v":""},{"$f":"IF('1. Order'!AT841=\"\",\"\",'1. Order'!AT841)","v":""},null,null,null,null,null,null,null,{"$f":"IF('1. Order'!AX841=\"\",\"\",'1. Order'!AX841)","v":""},{"$f":"IF('1. Order'!AY841=\"\",\"\",'1. Order'!AY841)","v":""},{"$f":"IF('1. Order'!AZ841=\"\",\"\",'1. Order'!AZ841)","v":""},{"$f":"IF('1. Order'!BA841=\"\",\"\",'1. Order'!BA841)","v":""},{"$f":"IF('1. Order'!BC841=\"\",\"\",'1. Order'!BC841)","v":""},{"$f":"IF('1. Order'!BD841=\"\",\"\",'1. Order'!BD841)","v":6},{"$f":"IF('1. Order'!BE841=\"\",\"\",'1. Order'!BE841)","v":"None"},{"$f":"IF('1. Order'!BF841=\"\",\"\",'1. Order'!BF841)","v":"Parcel"},{"$f":"IF('1. Order'!BG841=\"\",\"\",'1. Order'!BG841)","v":"ZWO"}]
[{"$f":"IF('1. Order'!F842=\"\",\"\",'1. Order'!F842)","v":""},{"$f":"IF('1. Order'!G842=\"\",\"\",'1. Order'!G842)","v":""},{"$f":"IF('1. Order'!H842=\"\",\"\",'1. Order'!H842)","v":""},{"$f":"IF('1. Order'!I842=\"\",\"\",'1. Order'!I842)","v":""},{"$f":"IF('1. Order'!J842=\"\",\"\",'1. Order'!J842)","v":""},{"$f":"IF('1. Order'!K842=\"\",\"\",'1. Order'!K842)","v":""},{"$f":"IF('1. Order'!L842=\"\",\"\",'1. Order'!L842)","v":""},{"$f":"IF('1. Order'!M842=\"\",\"\",'1. Order'!M842)","v":""},{"$f":"IF('1. Order'!N842=\"\",\"\",'1. Order'!N842)","v":""},{"$f":"IF('1. Order'!O842=\"\",\"\",'1. Order'!O842)","v":{"$error":"#N/A"}},{"$f":"IF('1. Order'!P842=\"\",\"\",'1. Order'!P842)","v":{"$error":"#N/A"}},{"$f":"IF('1. Order'!Q842=\"\",\"\",'1. Order'!Q842)","v":""},{"$f":"IF('1. Order'!R842=\"\",\"\",'1. Order'!R842)","v":""},{"$f":"IF('1. Order'!S842=\"\",\"\",'1. Order'!S842)","v":""},{"$f":"IF('1. Order'!V842=\"\",\"\",'1. Order'!V842)","v":""},{"$f":"IF('1. Order'!W842=\"\",\"\",'1. Order'!W842)","v":""},{"$f":"IF('1. Order'!X842=\"\",\"\",'1. Order'!X842)","v":"EUR"},{"$f":"IF('1. Order'!Y842=\"\",\"\",'1. Order'!Y842)","v":""},{"$f":"IF('1. Order'!Z842=\"\",\"\",'1. Order'!Z842)","v":""},{"$f":"IF('1. Order'!AA842=\"\",\"\",'1. Order'!AA842)","v":""},null,{"$f":"IF('1. Order'!AS842=\"\",\"\",'1. Order'!AS842)","v":""},{"$f":"IF('1. Order'!AT842=\"\",\"\",'1. Order'!AT842)","v":""},null,null,null,null,null,null,null,{"$f":"IF('1. Order'!AX842=\"\",\"\",'1. Order'!AX842)","v":""},{"$f":"IF('1. Order'!AY842=\"\",\"\",'1. Order'!AY842)","v":""},{"$f":"IF('1. Order'!AZ842=\"\",\"\",'1. Order'!AZ842)","v":""},{"$f":"IF('1. Order'!BA842=\"\",\"\",'1. Order'!BA842)","v":""},{"$f":"IF('1. Order'!BC842=\"\",\"\",'1. Order'!BC842)","v":""},{"$f":"IF('1. Order'!BD842=\"\",\"\",'1. Order'!BD842)","v":6},{"$f":"IF('1. Order'!BE842=\"\",\"\",'1. Order'!BE842)","v":"None"},{"$f":"IF('1. Order'!BF842=\"\",\"\",'1. Order'!BF842)","v":"Parcel"},{"$f":"IF('1. Order'!BG842=\"\",\"\",'1. Order'!BG842)","v":"ZWO"}]
[{"$f":"IF('1. Order'!F843=\"\",\"\",'1. Order'!F843)","v":""},{"$f":"IF('1. Order'!G843=\"\",\"\",'1. Order'!G843)","v":""},{"$f":"IF('1. Order'!H843=\"\",\"\",'1. Order'!H843)","v":""},{"$f":"IF('1. Order'!I843=\"\",\"\",'1. Order'!I843)","v":""},{"$f":"IF('1. Order'!J843=\"\",\"\",'1. Order'!J843)","v":""},{"$f":"IF('1. Order'!K843=\"\",\"\",'1. Order'!K843)","v":""},{"$f":"IF('1. Order'!L843=\"\",\"\",'1. Order'!L843)","v":""},{"$f":"IF('1. Order'!M843=\"\",\"\",'1. Order'!M843)","v":""},{"$f":"IF('1. Order'!N843=\"\",\"\",'1. Order'!N843)","v":""},{"$f":"IF('1. Order'!O843=\"\",\"\",'1. Order'!O843)","v":{"$error":"#N/A"}},{"$f":"IF('1. Order'!P843=\"\",\"\",'1. Order'!P843)","v":{"$error":"#N/A"}},{"$f":"IF('1. Order'!Q843=\"\",\"\",'1. Order'!Q843)","v":""},{"$f":"IF('1. Order'!R843=\"\",\"\",'1. Order'!R843)","v":""},{"$f":"IF('1. Order'!S843=\"\",\"\",'1. Order'!S843)","v":""},{"$f":"IF('1. Order'!V843=\"\",\"\",'1. Order'!V843)","v":""},{"$f":"IF('1. Order'!W843=\"\",\"\",'1. Order'!W843)","v":""},{"$f":"IF('1. Order'!X843=\"\",\"\",'1. Order'!X843)","v":"EUR"},{"$f":"IF('1. Order'!Y843=\"\",\"\",'1. Order'!Y843)","v":""},{"$f":"IF('1. Order'!Z843=\"\",\"\",'1. Order'!Z843)","v":""},{"$f":"IF('1. Order'!AA843=\"\",\"\",'1. Order'!AA843)","v":""},null,{"$f":"IF('1. Order'!AS843=\"\",\"\",'1. Order'!AS843)","v":""},{"$f":"IF('1. Order'!AT843=\"\",\"\",'1. Order'!AT843)","v":""},null,null,null,null,null,null,null,{"$f":"IF('1. Order'!AX843=\"\",\"\",'1. Order'!AX843)","v":""},{"$f":"IF('1. Order'!AY843=\"\",\"\",'1. Order'!AY843)","v":""},{"$f":"IF('1. Order'!AZ843=\"\",\"\",'1. Order'!AZ843)","v":""},{"$f":"IF('1. Order'!BA843=\"\",\"\",'1. Order'!BA843)","v":""},{"$f":"IF('1. Order'!BC843=\"\",\"\",'1. Order'!BC843)","v":""},{"$f":"IF('1. Order'!BD843=\"\",\"\",'1. Order'!BD843)","v":6},{"$f":"IF('1. Order'!BE843=\"\",\"\",'1. Order'!BE843)","v":"None"},{"$f":"IF('1. Order'!BF843=\"\",\"\",'1. Order'!BF843)","v":"Parcel"},{"$f":"IF('1. Order'!BG843=\"\",\"\",'1. Order'!BG843)","v":"ZWO"}]
[{"$f":"IF('1. Order'!F844=\"\",\"\",'1. Order'!F844)","v":""},{"$f":"IF('1. Order'!G844=\"\",\"\",'1. Order'!G844)","v":""},{"$f":"IF('1. Order'!H844=\"\",\"\",'1. Order'!H844)","v":""},{"$f":"IF('1. Order'!I844=\"\",\"\",'1. Order'!I844)","v":""},{"$f":"IF('1. Order'!J844=\"\",\"\",'1. Order'!J844)","v":""},{"$f":"IF('1. Order'!K844=\"\",\"\",'1. Order'!K844)","v":""},{"$f":"IF('1. Order'!L844=\"\",\"\",'1. Order'!L844)","v":""},{"$f":"IF('1. Order'!M844=\"\",\"\",'1. Order'!M844)","v":""},{"$f":"IF('1. Order'!N844=\"\",\"\",'1. Order'!N844)","v":""},{"$f":"IF('1. Order'!O844=\"\",\"\",'1. Order'!O844)","v":{"$error":"#N/A"}},{"$f":"IF('1. Order'!P844=\"\",\"\",'1. Order'!P844)","v":{"$error":"#N/A"}},{"$f":"IF('1. Order'!Q844=\"\",\"\",'1. Order'!Q844)","v":""},{"$f":"IF('1. Order'!R844=\"\",\"\",'1. Order'!R844)","v":""},{"$f":"IF('1. Order'!S844=\"\",\"\",'1. Order'!S844)","v":""},{"$f":"IF('1. Order'!V844=\"\",\"\",'1. Order'!V844)","v":""},{"$f":"IF('1. Order'!W844=\"\",\"\",'1. Order'!W844)","v":""},{"$f":"IF('1. Order'!X844=\"\",\"\",'1. Order'!X844)","v":"EUR"},{"$f":"IF('1. Order'!Y844=\"\",\"\",'1. Order'!Y844)","v":""},{"$f":"IF('1. Order'!Z844=\"\",\"\",'1. Order'!Z844)","v":""},{"$f":"IF('1. Order'!AA844=\"\",\"\",'1. Order'!AA844)","v":""},null,{"$f":"IF('1. Order'!AS844=\"\",\"\",'1. Order'!AS844)","v":""},{"$f":"IF('1. Order'!AT844=\"\",\"\",'1. Order'!AT844)","v":""},null,null,null,null,null,null,null,{"$f":"IF('1. Order'!AX844=\"\",\"\",'1. Order'!AX844)","v":""},{"$f":"IF('1. Order'!AY844=\"\",\"\",'1. Order'!AY844)","v":""},{"$f":"IF('1. Order'!AZ844=\"\",\"\",'1. Order'!AZ844)","v":""},{"$f":"IF('1. Order'!BA844=\"\",\"\",'1. Order'!BA844)","v":""},{"$f":"IF('1. Order'!BC844=\"\",\"\",'1. Order'!BC844)","v":""},{"$f":"IF('1. Order'!BD844=\"\",\"\",'1. Order'!BD844)","v":6},{"$f":"IF('1. Order'!BE844=\"\",\"\",'1. Order'!BE844)","v":"None"},{"$f":"IF('1. Order'!BF844=\"\",\"\",'1. Order'!BF844)","v":"Parcel"},{"$f":"IF('1. Order'!BG844=\"\",\"\",'1. Order'!BG844)","v":"ZWO"}]
[{"$f":"IF('1. Order'!F845=\"\",\"\",'1. Order'!F845)","v":""},{"$f":"IF('1. Order'!G845=\"\",\"\",'1. Order'!G845)","v":""},{"$f":"IF('1. Order'!H845=\"\",\"\",'1. Order'!H845)","v":""},{"$f":"IF('1. Order'!I845=\"\",\"\",'1. Order'!I845)","v":""},{"$f":"IF('1. Order'!J845=\"\",\"\",'1. Order'!J845)","v":""},{"$f":"IF('1. Order'!K845=\"\",\"\",'1. Order'!K845)","v":""},{"$f":"IF('1. Order'!L845=\"\",\"\",'1. Order'!L845)","v":""},{"$f":"IF('1. Order'!M845=\"\",\"\",'1. Order'!M845)","v":""},{"$f":"IF('1. Order'!N845=\"\",\"\",'1. Order'!N845)","v":""},{"$f":"IF('1. Order'!O845=\"\",\"\",'1. Order'!O845)","v":{"$error":"#N/A"}},{"$f":"IF('1. Order'!P845=\"\",\"\",'1. Order'!P845)","v":{"$error":"#N/A"}},{"$f":"IF('1. Order'!Q845=\"\",\"\",'1. Order'!Q845)","v":""},{"$f":"IF('1. Order'!R845=\"\",\"\",'1. Order'!R845)","v":""},{"$f":"IF('1. Order'!S845=\"\",\"\",'1. Order'!S845)","v":""},{"$f":"IF('1. Order'!V845=\"\",\"\",'1. Order'!V845)","v":""},{"$f":"IF('1. Order'!W845=\"\",\"\",'1. Order'!W845)","v":""},{"$f":"IF('1. Order'!X845=\"\",\"\",'1. Order'!X845)","v":"EUR"},{"$f":"IF('1. Order'!Y845=\"\",\"\",'1. Order'!Y845)","v":""},{"$f":"IF('1. Order'!Z845=\"\",\"\",'1. Order'!Z845)","v":""},{"$f":"IF('1. Order'!AA845=\"\",\"\",'1. Order'!AA845)","v":""},null,{"$f":"IF('1. Order'!AS845=\"\",\"\",'1. Order'!AS845)","v":""},{"$f":"IF('1. Order'!AT845=\"\",\"\",'1. Order'!AT845)","v":""},null,null,null,null,null,null,null,{"$f":"IF('1. Order'!AX845=\"\",\"\",'1. Order'!AX845)","v":""},{"$f":"IF('1. Order'!AY845=\"\",\"\",'1. Order'!AY845)","v":""},{"$f":"IF('1. Order'!AZ845=\"\",\"\",'1. Order'!AZ845)","v":""},{"$f":"IF('1. Order'!BA845=\"\",\"\",'1. Order'!BA845)","v":""},{"$f":"IF('1. Order'!BC845=\"\",\"\",'1. Order'!BC845)","v":""},{"$f":"IF('1. Order'!BD845=\"\",\"\",'1. Order'!BD845)","v":6},{"$f":"IF('1. Order'!BE845=\"\",\"\",'1. Order'!BE845)","v":"None"},{"$f":"IF('1. Order'!BF845=\"\",\"\",'1. Order'!BF845)","v":"Parcel"},{"$f":"IF('1. Order'!BG845=\"\",\"\",'1. Order'!BG845)","v":"ZWO"}]
[{"$f":"IF('1. Order'!F846=\"\",\"\",'1. Order'!F846)","v":""},{"$f":"IF('1. Order'!G846=\"\",\"\",'1. Order'!G846)","v":""},{"$f":"IF('1. Order'!H846=\"\",\"\",'1. Order'!H846)","v":""},{"$f":"IF('1. Order'!I846=\"\",\"\",'1. Order'!I846)","v":""},{"$f":"IF('1. Order'!J846=\"\",\"\",'1. Order'!J846)","v":""},{"$f":"IF('1. Order'!K846=\"\",\"\",'1. Order'!K846)","v":""},{"$f":"IF('1. Order'!L846=\"\",\"\",'1. Order'!L846)","v":""},{"$f":"IF('1. Order'!M846=\"\",\"\",'1. Order'!M846)","v":""},{"$f":"IF('1. Order'!N846=\"\",\"\",'1. Order'!N846)","v":""},{"$f":"IF('1. Order'!O846=\"\",\"\",'1. Order'!O846)","v":{"$error":"#N/A"}},{"$f":"IF('1. Order'!P846=\"\",\"\",'1. Order'!P846)","v":{"$error":"#N/A"}},{"$f":"IF('1. Order'!Q846=\"\",\"\",'1. Order'!Q846)","v":""},{"$f":"IF('1. Order'!R846=\"\",\"\",'1. Order'!R846)","v":""},{"$f":"IF('1. Order'!S846=\"\",\"\",'1. Order'!S846)","v":""},{"$f":"IF('1. Order'!V846=\"\",\"\",'1. Order'!V846)","v":""},{"$f":"IF('1. Order'!W846=\"\",\"\",'1. Order'!W846)","v":""},{"$f":"IF('1. Order'!X846=\"\",\"\",'1. Order'!X846)","v":"EUR"},{"$f":"IF('1. Order'!Y846=\"\",\"\",'1. Order'!Y846)","v":""},{"$f":"IF('1. Order'!Z846=\"\",\"\",'1. Order'!Z846)","v":""},{"$f":"IF('1. Order'!AA846=\"\",\"\",'1. Order'!AA846)","v":""},null,{"$f":"IF('1. Order'!AS846=\"\",\"\",'1. Order'!AS846)","v":""},{"$f":"IF('1. Order'!AT846=\"\",\"\",'1. Order'!AT846)","v":""},null,null,null,null,null,null,null,{"$f":"IF('1. Order'!AX846=\"\",\"\",'1. Order'!AX846)","v":""},{"$f":"IF('1. Order'!AY846=\"\",\"\",'1. Order'!AY846)","v":""},{"$f":"IF('1. Order'!AZ846=\"\",\"\",'1. Order'!AZ846)","v":""},{"$f":"IF('1. Order'!BA846=\"\",\"\",'1. Order'!BA846)","v":""},{"$f":"IF('1. Order'!BC846=\"\",\"\",'1. Order'!BC846)","v":""},{"$f":"IF('1. Order'!BD846=\"\",\"\",'1. Order'!BD846)","v":6},{"$f":"IF('1. Order'!BE846=\"\",\"\",'1. Order'!BE846)","v":"None"},{"$f":"IF('1. Order'!BF846=\"\",\"\",'1. Order'!BF846)","v":"Parcel"},{"$f":"IF('1. Order'!BG846=\"\",\"\",'1. Order'!BG846)","v":"ZWO"}]
[{"$f":"IF('1. Order'!F847=\"\",\"\",'1. Order'!F847)","v":""},{"$f":"IF('1. Order'!G847=\"\",\"\",'1. Order'!G847)","v":""},{"$f":"IF('1. Order'!H847=\"\",\"\",'1. Order'!H847)","v":""},{"$f":"IF('1. Order'!I847=\"\",\"\",'1. Order'!I847)","v":""},{"$f":"IF('1. Order'!J847=\"\",\"\",'1. Order'!J847)","v":""},{"$f":"IF('1. Order'!K847=\"\",\"\",'1. Order'!K847)","v":""},{"$f":"IF('1. Order'!L847=\"\",\"\",'1. Order'!L847)","v":""},{"$f":"IF('1. Order'!M847=\"\",\"\",'1. Order'!M847)","v":""},{"$f":"IF('1. Order'!N847=\"\",\"\",'1. Order'!N847)","v":""},{"$f":"IF('1. Order'!O847=\"\",\"\",'1. Order'!O847)","v":{"$error":"#N/A"}},{"$f":"IF('1. Order'!P847=\"\",\"\",'1. Order'!P847)","v":{"$error":"#N/A"}},{"$f":"IF('1. Order'!Q847=\"\",\"\",'1. Order'!Q847)","v":""},{"$f":"IF('1. Order'!R847=\"\",\"\",'1. Order'!R847)","v":""},{"$f":"IF('1. Order'!S847=\"\",\"\",'1. Order'!S847)","v":""},{"$f":"IF('1. Order'!V847=\"\",\"\",'1. Order'!V847)","v":""},{"$f":"IF('1. Order'!W847=\"\",\"\",'1. Order'!W847)","v":""},{"$f":"IF('1. Order'!X847=\"\",\"\",'1. Order'!X847)","v":"EUR"},{"$f":"IF('1. Order'!Y847=\"\",\"\",'1. Order'!Y847)","v":""},{"$f":"IF('1. Order'!Z847=\"\",\"\",'1. Order'!Z847)","v":""},{"$f":"IF('1. Order'!AA847=\"\",\"\",'1. Order'!AA847)","v":""},null,{"$f":"IF('1. Order'!AS847=\"\",\"\",'1. Order'!AS847)","v":""},{"$f":"IF('1. Order'!AT847=\"\",\"\",'1. Order'!AT847)","v":""},null,null,null,null,null,null,null,{"$f":"IF('1. Order'!AX847=\"\",\"\",'1. Order'!AX847)","v":""},{"$f":"IF('1. Order'!AY847=\"\",\"\",'1. Order'!AY847)","v":""},{"$f":"IF('1. Order'!AZ847=\"\",\"\",'1. Order'!AZ847)","v":""},{"$f":"IF('1. Order'!BA847=\"\",\"\",'1. Order'!BA847)","v":""},{"$f":"IF('1. Order'!BC847=\"\",\"\",'1. Order'!BC847)","v":""},{"$f":"IF('1. Order'!BD847=\"\",\"\",'1. Order'!BD847)","v":6},{"$f":"IF('1. Order'!BE847=\"\",\"\",'1. Order'!BE847)","v":"None"},{"$f":"IF('1. Order'!BF847=\"\",\"\",'1. Order'!BF847)","v":"Parcel"},{"$f":"IF('1. Order'!BG847=\"\",\"\",'1. Order'!BG847)","v":"ZWO"}]
[{"$f":"IF('1. Order'!F848=\"\",\"\",'1. Order'!F848)","v":""},{"$f":"IF('1. Order'!G848=\"\",\"\",'1. Order'!G848)","v":""},{"$f":"IF('1. Order'!H848=\"\",\"\",'1. Order'!H848)","v":""},{"$f":"IF('1. Order'!I848=\"\",\"\",'1. Order'!I848)","v":""},{"$f":"IF('1. Order'!J848=\"\",\"\",'1. Order'!J848)","v":""},{"$f":"IF('1. Order'!K848=\"\",\"\",'1. Order'!K848)","v":""},{"$f":"IF('1. Order'!L848=\"\",\"\",'1. Order'!L848)","v":""},{"$f":"IF('1. Order'!M848=\"\",\"\",'1. Order'!M848)","v":""},{"$f":"IF('1. Order'!N848=\"\",\"\",'1. Order'!N848)","v":""},{"$f":"IF('1. Order'!O848=\"\",\"\",'1. Order'!O848)","v":{"$error":"#N/A"}},{"$f":"IF('1. Order'!P848=\"\",\"\",'1. Order'!P848)","v":{"$error":"#N/A"}},{"$f":"IF('1. Order'!Q848=\"\",\"\",'1. Order'!Q848)","v":""},{"$f":"IF('1. Order'!R848=\"\",\"\",'1. Order'!R848)","v":""},{"$f":"IF('1. Order'!S848=\"\",\"\",'1. Order'!S848)","v":""},{"$f":"IF('1. Order'!V848=\"\",\"\",'1. Order'!V848)","v":""},{"$f":"IF('1. Order'!W848=\"\",\"\",'1. Order'!W848)","v":""},{"$f":"IF('1. Order'!X848=\"\",\"\",'1. Order'!X848)","v":"EUR"},{"$f":"IF('1. Order'!Y848=\"\",\"\",'1. Order'!Y848)","v":""},{"$f":"IF('1. Order'!Z848=\"\",\"\",'1. Order'!Z848)","v":""},{"$f":"IF('1. Order'!AA848=\"\",\"\",'1. Order'!AA848)","v":""},null,{"$f":"IF('1. Order'!AS848=\"\",\"\",'1. Order'!AS848)","v":""},{"$f":"IF('1. Order'!AT848=\"\",\"\",'1. Order'!AT848)","v":""},null,null,null,null,null,null,null,{"$f":"IF('1. Order'!AX848=\"\",\"\",'1. Order'!AX848)","v":""},{"$f":"IF('1. Order'!AY848=\"\",\"\",'1. Order'!AY848)","v":""},{"$f":"IF('1. Order'!AZ848=\"\",\"\",'1. Order'!AZ848)","v":""},{"$f":"IF('1. Order'!BA848=\"\",\"\",'1. Order'!BA848)","v":""},{"$f":"IF('1. Order'!BC848=\"\",\"\",'1. Order'!BC848)","v":""},{"$f":"IF('1. Order'!BD848=\"\",\"\",'1. Order'!BD848)","v":6},{"$f":"IF('1. Order'!BE848=\"\",\"\",'1. Order'!BE848)","v":"None"},{"$f":"IF('1. Order'!BF848=\"\",\"\",'1. Order'!BF848)","v":"Parcel"},{"$f":"IF('1. Order'!BG848=\"\",\"\",'1. Order'!BG848)","v":"ZWO"}]
[{"$f":"IF('1. Order'!F849=\"\",\"\",'1. Order'!F849)","v":""},{"$f":"IF('1. Order'!G849=\"\",\"\",'1. Order'!G849)","v":""},{"$f":"IF('1. Order'!H849=\"\",\"\",'1. Order'!H849)","v":""},{"$f":"IF('1. Order'!I849=\"\",\"\",'1. Order'!I849)","v":""},{"$f":"IF('1. Order'!J849=\"\",\"\",'1. Order'!J849)","v":""},{"$f":"IF('1. Order'!K849=\"\",\"\",'1. Order'!K849)","v":""},{"$f":"IF('1. Order'!L849=\"\",\"\",'1. Order'!L849)","v":""},{"$f":"IF('1. Order'!M849=\"\",\"\",'1. Order'!M849)","v":""},{"$f":"IF('1. Order'!N849=\"\",\"\",'1. Order'!N849)","v":""},{"$f":"IF('1. Order'!O849=\"\",\"\",'1. Order'!O849)","v":{"$error":"#N/A"}},{"$f":"IF('1. Order'!P849=\"\",\"\",'1. Order'!P849)","v":{"$error":"#N/A"}},{"$f":"IF('1. Order'!Q849=\"\",\"\",'1. Order'!Q849)","v":""},{"$f":"IF('1. Order'!R849=\"\",\"\",'1. Order'!R849)","v":""},{"$f":"IF('1. Order'!S849=\"\",\"\",'1. Order'!S849)","v":""},{"$f":"IF('1. Order'!V849=\"\",\"\",'1. Order'!V849)","v":""},{"$f":"IF('1. Order'!W849=\"\",\"\",'1. Order'!W849)","v":""},{"$f":"IF('1. Order'!X849=\"\",\"\",'1. Order'!X849)","v":"EUR"},{"$f":"IF('1. Order'!Y849=\"\",\"\",'1. Order'!Y849)","v":""},{"$f":"IF('1. Order'!Z849=\"\",\"\",'1. Order'!Z849)","v":""},{"$f":"IF('1. Order'!AA849=\"\",\"\",'1. Order'!AA849)","v":""},null,{"$f":"IF('1. Order'!AS849=\"\",\"\",'1. Order'!AS849)","v":""},{"$f":"IF('1. Order'!AT849=\"\",\"\",'1. Order'!AT849)","v":""},null,null,null,null,null,null,null,{"$f":"IF('1. Order'!AX849=\"\",\"\",'1. Order'!AX849)","v":""},{"$f":"IF('1. Order'!AY849=\"\",\"\",'1. Order'!AY849)","v":""},{"$f":"IF('1. Order'!AZ849=\"\",\"\",'1. Order'!AZ849)","v":""},{"$f":"IF('1. Order'!BA849=\"\",\"\",'1. Order'!BA849)","v":""},{"$f":"IF('1. Order'!BC849=\"\",\"\",'1. Order'!BC849)","v":""},{"$f":"IF('1. Order'!BD849=\"\",\"\",'1. Order'!BD849)","v":6},{"$f":"IF('1. Order'!BE849=\"\",\"\",'1. Order'!BE849)","v":"None"},{"$f":"IF('1. Order'!BF849=\"\",\"\",'1. Order'!BF849)","v":"Parcel"},{"$f":"IF('1. Order'!BG849=\"\",\"\",'1. Order'!BG849)","v":"ZWO"}]
[{"$f":"IF('1. Order'!F850=\"\",\"\",'1. Order'!F850)","v":""},{"$f":"IF('1. Order'!G850=\"\",\"\",'1. Order'!G850)","v":""},{"$f":"IF('1. Order'!H850=\"\",\"\",'1. Order'!H850)","v":""},{"$f":"IF('1. Order'!I850=\"\",\"\",'1. Order'!I850)","v":""},{"$f":"IF('1. Order'!J850=\"\",\"\",'1. Order'!J850)","v":""},{"$f":"IF('1. Order'!K850=\"\",\"\",'1. Order'!K850)","v":""},{"$f":"IF('1. Order'!L850=\"\",\"\",'1. Order'!L850)","v":""},{"$f":"IF('1. Order'!M850=\"\",\"\",'1. Order'!M850)","v":""},{"$f":"IF('1. Order'!N850=\"\",\"\",'1. Order'!N850)","v":""},{"$f":"IF('1. Order'!O850=\"\",\"\",'1. Order'!O850)","v":{"$error":"#N/A"}},{"$f":"IF('1. Order'!P850=\"\",\"\",'1. Order'!P850)","v":{"$error":"#N/A"}},{"$f":"IF('1. Order'!Q850=\"\",\"\",'1. Order'!Q850)","v":""},{"$f":"IF('1. Order'!R850=\"\",\"\",'1. Order'!R850)","v":""},{"$f":"IF('1. Order'!S850=\"\",\"\",'1. Order'!S850)","v":""},{"$f":"IF('1. Order'!V850=\"\",\"\",'1. Order'!V850)","v":""},{"$f":"IF('1. Order'!W850=\"\",\"\",'1. Order'!W850)","v":""},{"$f":"IF('1. Order'!X850=\"\",\"\",'1. Order'!X850)","v":"EUR"},{"$f":"IF('1. Order'!Y850=\"\",\"\",'1. Order'!Y850)","v":""},{"$f":"IF('1. Order'!Z850=\"\",\"\",'1. Order'!Z850)","v":""},{"$f":"IF('1. Order'!AA850=\"\",\"\",'1. Order'!AA850)","v":""},null,{"$f":"IF('1. Order'!AS850=\"\",\"\",'1. Order'!AS850)","v":""},{"$f":"IF('1. Order'!AT850=\"\",\"\",'1. Order'!AT850)","v":""},null,null,null,null,null,null,null,{"$f":"IF('1. Order'!AX850=\"\",\"\",'1. Order'!AX850)","v":""},{"$f":"IF('1. Order'!AY850=\"\",\"\",'1. Order'!AY850)","v":""},{"$f":"IF('1. Order'!AZ850=\"\",\"\",'1. Order'!AZ850)","v":""},{"$f":"IF('1. Order'!BA850=\"\",\"\",'1. Order'!BA850)","v":""},{"$f":"IF('1. Order'!BC850=\"\",\"\",'1. Order'!BC850)","v":""},{"$f":"IF('1. Order'!BD850=\"\",\"\",'1. Order'!BD850)","v":6},{"$f":"IF('1. Order'!BE850=\"\",\"\",'1. Order'!BE850)","v":"None"},{"$f":"IF('1. Order'!BF850=\"\",\"\",'1. Order'!BF850)","v":"Parcel"},{"$f":"IF('1. Order'!BG850=\"\",\"\",'1. Order'!BG850)","v":"ZWO"}]
[{"$f":"IF('1. Order'!F851=\"\",\"\",'1. Order'!F851)","v":""},{"$f":"IF('1. Order'!G851=\"\",\"\",'1. Order'!G851)","v":""},{"$f":"IF('1. Order'!H851=\"\",\"\",'1. Order'!H851)","v":""},{"$f":"IF('1. Order'!I851=\"\",\"\",'1. Order'!I851)","v":""},{"$f":"IF('1. Order'!J851=\"\",\"\",'1. Order'!J851)","v":""},{"$f":"IF('1. Order'!K851=\"\",\"\",'1. Order'!K851)","v":""},{"$f":"IF('1. Order'!L851=\"\",\"\",'1. Order'!L851)","v":""},{"$f":"IF('1. Order'!M851=\"\",\"\",'1. Order'!M851)","v":""},{"$f":"IF('1. Order'!N851=\"\",\"\",'1. Order'!N851)","v":""},{"$f":"IF('1. Order'!O851=\"\",\"\",'1. Order'!O851)","v":{"$error":"#N/A"}},{"$f":"IF('1. Order'!P851=\"\",\"\",'1. Order'!P851)","v":{"$error":"#N/A"}},{"$f":"IF('1. Order'!Q851=\"\",\"\",'1. Order'!Q851)","v":""},{"$f":"IF('1. Order'!R851=\"\",\"\",'1. Order'!R851)","v":""},{"$f":"IF('1. Order'!S851=\"\",\"\",'1. Order'!S851)","v":""},{"$f":"IF('1. Order'!V851=\"\",\"\",'1. Order'!V851)","v":""},{"$f":"IF('1. Order'!W851=\"\",\"\",'1. Order'!W851)","v":""},{"$f":"IF('1. Order'!X851=\"\",\"\",'1. Order'!X851)","v":"EUR"},{"$f":"IF('1. Order'!Y851=\"\",\"\",'1. Order'!Y851)","v":""},{"$f":"IF('1. Order'!Z851=\"\",\"\",'1. Order'!Z851)","v":""},{"$f":"IF('1. Order'!AA851=\"\",\"\",'1. Order'!AA851)","v":""},null,{"$f":"IF('1. Order'!AS851=\"\",\"\",'1. Order'!AS851)","v":""},{"$f":"IF('1. Order'!AT851=\"\",\"\",'1. Order'!AT851)","v":""},null,null,null,null,null,null,null,{"$f":"IF('1. Order'!AX851=\"\",\"\",'1. Order'!AX851)","v":""},{"$f":"IF('1. Order'!AY851=\"\",\"\",'1. Order'!AY851)","v":""},{"$f":"IF('1. Order'!AZ851=\"\",\"\",'1. Order'!AZ851)","v":""},{"$f":"IF('1. Order'!BA851=\"\",\"\",'1. Order'!BA851)","v":""},{"$f":"IF('1. Order'!BC851=\"\",\"\",'1. Order'!BC851)","v":""},{"$f":"IF('1. Order'!BD851=\"\",\"\",'1. Order'!BD851)","v":6},{"$f":"IF('1. Order'!BE851=\"\",\"\",'1. Order'!BE851)","v":"None"},{"$f":"IF('1. Order'!BF851=\"\",\"\",'1. Order'!BF851)","v":"Parcel"},{"$f":"IF('1. Order'!BG851=\"\",\"\",'1. Order'!BG851)","v":"ZWO"}]
[{"$f":"IF('1. Order'!F852=\"\",\"\",'1. Order'!F852)","v":""},{"$f":"IF('1. Order'!G852=\"\",\"\",'1. Order'!G852)","v":""},{"$f":"IF('1. Order'!H852=\"\",\"\",'1. Order'!H852)","v":""},{"$f":"IF('1. Order'!I852=\"\",\"\",'1. Order'!I852)","v":""},{"$f":"IF('1. Order'!J852=\"\",\"\",'1. Order'!J852)","v":""},{"$f":"IF('1. Order'!K852=\"\",\"\",'1. Order'!K852)","v":""},{"$f":"IF('1. Order'!L852=\"\",\"\",'1. Order'!L852)","v":""},{"$f":"IF('1. Order'!M852=\"\",\"\",'1. Order'!M852)","v":""},{"$f":"IF('1. Order'!N852=\"\",\"\",'1. Order'!N852)","v":""},{"$f":"IF('1. Order'!O852=\"\",\"\",'1. Order'!O852)","v":{"$error":"#N/A"}},{"$f":"IF('1. Order'!P852=\"\",\"\",'1. Order'!P852)","v":{"$error":"#N/A"}},{"$f":"IF('1. Order'!Q852=\"\",\"\",'1. Order'!Q852)","v":""},{"$f":"IF('1. Order'!R852=\"\",\"\",'1. Order'!R852)","v":""},{"$f":"IF('1. Order'!S852=\"\",\"\",'1. Order'!S852)","v":""},{"$f":"IF('1. Order'!V852=\"\",\"\",'1. Order'!V852)","v":""},{"$f":"IF('1. Order'!W852=\"\",\"\",'1. Order'!W852)","v":""},{"$f":"IF('1. Order'!X852=\"\",\"\",'1. Order'!X852)","v":"EUR"},{"$f":"IF('1. Order'!Y852=\"\",\"\",'1. Order'!Y852)","v":""},{"$f":"IF('1. Order'!Z852=\"\",\"\",'1. Order'!Z852)","v":""},{"$f":"IF('1. Order'!AA852=\"\",\"\",'1. Order'!AA852)","v":""},null,{"$f":"IF('1. Order'!AS852=\"\",\"\",'1. Order'!AS852)","v":""},{"$f":"IF('1. Order'!AT852=\"\",\"\",'1. Order'!AT852)","v":""},null,null,null,null,null,null,null,{"$f":"IF('1. Order'!AX852=\"\",\"\",'1. Order'!AX852)","v":""},{"$f":"IF('1. Order'!AY852=\"\",\"\",'1. Order'!AY852)","v":""},{"$f":"IF('1. Order'!AZ852=\"\",\"\",'1. Order'!AZ852)","v":""},{"$f":"IF('1. Order'!BA852=\"\",\"\",'1. Order'!BA852)","v":""},{"$f":"IF('1. Order'!BC852=\"\",\"\",'1. Order'!BC852)","v":""},{"$f":"IF('1. Order'!BD852=\"\",\"\",'1. Order'!BD852)","v":6},{"$f":"IF('1. Order'!BE852=\"\",\"\",'1. Order'!BE852)","v":"None"},{"$f":"IF('1. Order'!BF852=\"\",\"\",'1. Order'!BF852)","v":"Parcel"},{"$f":"IF('1. Order'!BG852=\"\",\"\",'1. Order'!BG852)","v":"ZWO"}]
[{"$f":"IF('1. Order'!F853=\"\",\"\",'1. Order'!F853)","v":""},{"$f":"IF('1. Order'!G853=\"\",\"\",'1. Order'!G853)","v":""},{"$f":"IF('1. Order'!H853=\"\",\"\",'1. Order'!H853)","v":""},{"$f":"IF('1. Order'!I853=\"\",\"\",'1. Order'!I853)","v":""},{"$f":"IF('1. Order'!J853=\"\",\"\",'1. Order'!J853)","v":""},{"$f":"IF('1. Order'!K853=\"\",\"\",'1. Order'!K853)","v":""},{"$f":"IF('1. Order'!L853=\"\",\"\",'1. Order'!L853)","v":""},{"$f":"IF('1. Order'!M853=\"\",\"\",'1. Order'!M853)","v":""},{"$f":"IF('1. Order'!N853=\"\",\"\",'1. Order'!N853)","v":""},{"$f":"IF('1. Order'!O853=\"\",\"\",'1. Order'!O853)","v":{"$error":"#N/A"}},{"$f":"IF('1. Order'!P853=\"\",\"\",'1. Order'!P853)","v":{"$error":"#N/A"}},{"$f":"IF('1. Order'!Q853=\"\",\"\",'1. Order'!Q853)","v":""},{"$f":"IF('1. Order'!R853=\"\",\"\",'1. Order'!R853)","v":""},{"$f":"IF('1. Order'!S853=\"\",\"\",'1. Order'!S853)","v":""},{"$f":"IF('1. Order'!V853=\"\",\"\",'1. Order'!V853)","v":""},{"$f":"IF('1. Order'!W853=\"\",\"\",'1. Order'!W853)","v":""},{"$f":"IF('1. Order'!X853=\"\",\"\",'1. Order'!X853)","v":"EUR"},{"$f":"IF('1. Order'!Y853=\"\",\"\",'1. Order'!Y853)","v":""},{"$f":"IF('1. Order'!Z853=\"\",\"\",'1. Order'!Z853)","v":""},{"$f":"IF('1. Order'!AA853=\"\",\"\",'1. Order'!AA853)","v":""},null,{"$f":"IF('1. Order'!AS853=\"\",\"\",'1. Order'!AS853)","v":""},{"$f":"IF('1. Order'!AT853=\"\",\"\",'1. Order'!AT853)","v":""},null,null,null,null,null,null,null,{"$f":"IF('1. Order'!AX853=\"\",\"\",'1. Order'!AX853)","v":""},{"$f":"IF('1. Order'!AY853=\"\",\"\",'1. Order'!AY853)","v":""},{"$f":"IF('1. Order'!AZ853=\"\",\"\",'1. Order'!AZ853)","v":""},{"$f":"IF('1. Order'!BA853=\"\",\"\",'1. Order'!BA853)","v":""},{"$f":"IF('1. Order'!BC853=\"\",\"\",'1. Order'!BC853)","v":""},{"$f":"IF('1. Order'!BD853=\"\",\"\",'1. Order'!BD853)","v":6},{"$f":"IF('1. Order'!BE853=\"\",\"\",'1. Order'!BE853)","v":"None"},{"$f":"IF('1. Order'!BF853=\"\",\"\",'1. Order'!BF853)","v":"Parcel"},{"$f":"IF('1. Order'!BG853=\"\",\"\",'1. Order'!BG853)","v":"ZWO"}]
[{"$f":"IF('1. Order'!F854=\"\",\"\",'1. Order'!F854)","v":""},{"$f":"IF('1. Order'!G854=\"\",\"\",'1. Order'!G854)","v":""},{"$f":"IF('1. Order'!H854=\"\",\"\",'1. Order'!H854)","v":""},{"$f":"IF('1. Order'!I854=\"\",\"\",'1. Order'!I854)","v":""},{"$f":"IF('1. Order'!J854=\"\",\"\",'1. Order'!J854)","v":""},{"$f":"IF('1. Order'!K854=\"\",\"\",'1. Order'!K854)","v":""},{"$f":"IF('1. Order'!L854=\"\",\"\",'1. Order'!L854)","v":""},{"$f":"IF('1. Order'!M854=\"\",\"\",'1. Order'!M854)","v":""},{"$f":"IF('1. Order'!N854=\"\",\"\",'1. Order'!N854)","v":""},{"$f":"IF('1. Order'!O854=\"\",\"\",'1. Order'!O854)","v":{"$error":"#N/A"}},{"$f":"IF('1. Order'!P854=\"\",\"\",'1. Order'!P854)","v":{"$error":"#N/A"}},{"$f":"IF('1. Order'!Q854=\"\",\"\",'1. Order'!Q854)","v":""},{"$f":"IF('1. Order'!R854=\"\",\"\",'1. Order'!R854)","v":""},{"$f":"IF('1. Order'!S854=\"\",\"\",'1. Order'!S854)","v":""},{"$f":"IF('1. Order'!V854=\"\",\"\",'1. Order'!V854)","v":""},{"$f":"IF('1. Order'!W854=\"\",\"\",'1. Order'!W854)","v":""},{"$f":"IF('1. Order'!X854=\"\",\"\",'1. Order'!X854)","v":"EUR"},{"$f":"IF('1. Order'!Y854=\"\",\"\",'1. Order'!Y854)","v":""},{"$f":"IF('1. Order'!Z854=\"\",\"\",'1. Order'!Z854)","v":""},{"$f":"IF('1. Order'!AA854=\"\",\"\",'1. Order'!AA854)","v":""},null,{"$f":"IF('1. Order'!AS854=\"\",\"\",'1. Order'!AS854)","v":""},{"$f":"IF('1. Order'!AT854=\"\",\"\",'1. Order'!AT854)","v":""},null,null,null,null,null,null,null,{"$f":"IF('1. Order'!AX854=\"\",\"\",'1. Order'!AX854)","v":""},{"$f":"IF('1. Order'!AY854=\"\",\"\",'1. Order'!AY854)","v":""},{"$f":"IF('1. Order'!AZ854=\"\",\"\",'1. Order'!AZ854)","v":""},{"$f":"IF('1. Order'!BA854=\"\",\"\",'1. Order'!BA854)","v":""},{"$f":"IF('1. Order'!BC854=\"\",\"\",'1. Order'!BC854)","v":""},{"$f":"IF('1. Order'!BD854=\"\",\"\",'1. Order'!BD854)","v":6},{"$f":"IF('1. Order'!BE854=\"\",\"\",'1. Order'!BE854)","v":"None"},{"$f":"IF('1. Order'!BF854=\"\",\"\",'1. Order'!BF854)","v":"Parcel"},{"$f":"IF('1. Order'!BG854=\"\",\"\",'1. Order'!BG854)","v":"ZWO"}]
[{"$f":"IF('1. Order'!F855=\"\",\"\",'1. Order'!F855)","v":""},{"$f":"IF('1. Order'!G855=\"\",\"\",'1. Order'!G855)","v":""},{"$f":"IF('1. Order'!H855=\"\",\"\",'1. Order'!H855)","v":""},{"$f":"IF('1. Order'!I855=\"\",\"\",'1. Order'!I855)","v":""},{"$f":"IF('1. Order'!J855=\"\",\"\",'1. Order'!J855)","v":""},{"$f":"IF('1. Order'!K855=\"\",\"\",'1. Order'!K855)","v":""},{"$f":"IF('1. Order'!L855=\"\",\"\",'1. Order'!L855)","v":""},{"$f":"IF('1. Order'!M855=\"\",\"\",'1. Order'!M855)","v":""},{"$f":"IF('1. Order'!N855=\"\",\"\",'1. Order'!N855)","v":""},{"$f":"IF('1. Order'!O855=\"\",\"\",'1. Order'!O855)","v":{"$error":"#N/A"}},{"$f":"IF('1. Order'!P855=\"\",\"\",'1. Order'!P855)","v":{"$error":"#N/A"}},{"$f":"IF('1. Order'!Q855=\"\",\"\",'1. Order'!Q855)","v":""},{"$f":"IF('1. Order'!R855=\"\",\"\",'1. Order'!R855)","v":""},{"$f":"IF('1. Order'!S855=\"\",\"\",'1. Order'!S855)","v":""},{"$f":"IF('1. Order'!V855=\"\",\"\",'1. Order'!V855)","v":""},{"$f":"IF('1. Order'!W855=\"\",\"\",'1. Order'!W855)","v":""},{"$f":"IF('1. Order'!X855=\"\",\"\",'1. Order'!X855)","v":"EUR"},{"$f":"IF('1. Order'!Y855=\"\",\"\",'1. Order'!Y855)","v":""},{"$f":"IF('1. Order'!Z855=\"\",\"\",'1. Order'!Z855)","v":""},{"$f":"IF('1. Order'!AA855=\"\",\"\",'1. Order'!AA855)","v":""},null,{"$f":"IF('1. Order'!AS855=\"\",\"\",'1. Order'!AS855)","v":""},{"$f":"IF('1. Order'!AT855=\"\",\"\",'1. Order'!AT855)","v":""},null,null,null,null,null,null,null,{"$f":"IF('1. Order'!AX855=\"\",\"\",'1. Order'!AX855)","v":""},{"$f":"IF('1. Order'!AY855=\"\",\"\",'1. Order'!AY855)","v":""},{"$f":"IF('1. Order'!AZ855=\"\",\"\",'1. Order'!AZ855)","v":""},{"$f":"IF('1. Order'!BA855=\"\",\"\",'1. Order'!BA855)","v":""},{"$f":"IF('1. Order'!BC855=\"\",\"\",'1. Order'!BC855)","v":""},{"$f":"IF('1. Order'!BD855=\"\",\"\",'1. Order'!BD855)","v":6},{"$f":"IF('1. Order'!BE855=\"\",\"\",'1. Order'!BE855)","v":"None"},{"$f":"IF('1. Order'!BF855=\"\",\"\",'1. Order'!BF855)","v":"Parcel"},{"$f":"IF('1. Order'!BG855=\"\",\"\",'1. Order'!BG855)","v":"ZWO"}]
[{"$f":"IF('1. Order'!F856=\"\",\"\",'1. Order'!F856)","v":""},{"$f":"IF('1. Order'!G856=\"\",\"\",'1. Order'!G856)","v":""},{"$f":"IF('1. Order'!H856=\"\",\"\",'1. Order'!H856)","v":""},{"$f":"IF('1. Order'!I856=\"\",\"\",'1. Order'!I856)","v":""},{"$f":"IF('1. Order'!J856=\"\",\"\",'1. Order'!J856)","v":""},{"$f":"IF('1. Order'!K856=\"\",\"\",'1. Order'!K856)","v":""},{"$f":"IF('1. Order'!L856=\"\",\"\",'1. Order'!L856)","v":""},{"$f":"IF('1. Order'!M856=\"\",\"\",'1. Order'!M856)","v":""},{"$f":"IF('1. Order'!N856=\"\",\"\",'1. Order'!N856)","v":""},{"$f":"IF('1. Order'!O856=\"\",\"\",'1. Order'!O856)","v":{"$error":"#N/A"}},{"$f":"IF('1. Order'!P856=\"\",\"\",'1. Order'!P856)","v":{"$error":"#N/A"}},{"$f":"IF('1. Order'!Q856=\"\",\"\",'1. Order'!Q856)","v":""},{"$f":"IF('1. Order'!R856=\"\",\"\",'1. Order'!R856)","v":""},{"$f":"IF('1. Order'!S856=\"\",\"\",'1. Order'!S856)","v":""},{"$f":"IF('1. Order'!V856=\"\",\"\",'1. Order'!V856)","v":""},{"$f":"IF('1. Order'!W856=\"\",\"\",'1. Order'!W856)","v":""},{"$f":"IF('1. Order'!X856=\"\",\"\",'1. Order'!X856)","v":"EUR"},{"$f":"IF('1. Order'!Y856=\"\",\"\",'1. Order'!Y856)","v":""},{"$f":"IF('1. Order'!Z856=\"\",\"\",'1. Order'!Z856)","v":""},{"$f":"IF('1. Order'!AA856=\"\",\"\",'1. Order'!AA856)","v":""},null,{"$f":"IF('1. Order'!AS856=\"\",\"\",'1. Order'!AS856)","v":""},{"$f":"IF('1. Order'!AT856=\"\",\"\",'1. Order'!AT856)","v":""},null,null,null,null,null,null,null,{"$f":"IF('1. Order'!AX856=\"\",\"\",'1. Order'!AX856)","v":""},{"$f":"IF('1. Order'!AY856=\"\",\"\",'1. Order'!AY856)","v":""},{"$f":"IF('1. Order'!AZ856=\"\",\"\",'1. Order'!AZ856)","v":""},{"$f":"IF('1. Order'!BA856=\"\",\"\",'1. Order'!BA856)","v":""},{"$f":"IF('1. Order'!BC856=\"\",\"\",'1. Order'!BC856)","v":""},{"$f":"IF('1. Order'!BD856=\"\",\"\",'1. Order'!BD856)","v":6},{"$f":"IF('1. Order'!BE856=\"\",\"\",'1. Order'!BE856)","v":"None"},{"$f":"IF('1. Order'!BF856=\"\",\"\",'1. Order'!BF856)","v":"Parcel"},{"$f":"IF('1. Order'!BG856=\"\",\"\",'1. Order'!BG856)","v":"ZWO"}]
[{"$f":"IF('1. Order'!F857=\"\",\"\",'1. Order'!F857)","v":""},{"$f":"IF('1. Order'!G857=\"\",\"\",'1. Order'!G857)","v":""},{"$f":"IF('1. Order'!H857=\"\",\"\",'1. Order'!H857)","v":""},{"$f":"IF('1. Order'!I857=\"\",\"\",'1. Order'!I857)","v":""},{"$f":"IF('1. Order'!J857=\"\",\"\",'1. Order'!J857)","v":""},{"$f":"IF('1. Order'!K857=\"\",\"\",'1. Order'!K857)","v":""},{"$f":"IF('1. Order'!L857=\"\",\"\",'1. Order'!L857)","v":""},{"$f":"IF('1. Order'!M857=\"\",\"\",'1. Order'!M857)","v":""},{"$f":"IF('1. Order'!N857=\"\",\"\",'1. Order'!N857)","v":""},{"$f":"IF('1. Order'!O857=\"\",\"\",'1. Order'!O857)","v":{"$error":"#N/A"}},{"$f":"IF('1. Order'!P857=\"\",\"\",'1. Order'!P857)","v":{"$error":"#N/A"}},{"$f":"IF('1. Order'!Q857=\"\",\"\",'1. Order'!Q857)","v":""},{"$f":"IF('1. Order'!R857=\"\",\"\",'1. Order'!R857)","v":""},{"$f":"IF('1. Order'!S857=\"\",\"\",'1. Order'!S857)","v":""},{"$f":"IF('1. Order'!V857=\"\",\"\",'1. Order'!V857)","v":""},{"$f":"IF('1. Order'!W857=\"\",\"\",'1. Order'!W857)","v":""},{"$f":"IF('1. Order'!X857=\"\",\"\",'1. Order'!X857)","v":"EUR"},{"$f":"IF('1. Order'!Y857=\"\",\"\",'1. Order'!Y857)","v":""},{"$f":"IF('1. Order'!Z857=\"\",\"\",'1. Order'!Z857)","v":""},{"$f":"IF('1. Order'!AA857=\"\",\"\",'1. Order'!AA857)","v":""},null,{"$f":"IF('1. Order'!AS857=\"\",\"\",'1. Order'!AS857)","v":""},{"$f":"IF('1. Order'!AT857=\"\",\"\",'1. Order'!AT857)","v":""},null,null,null,null,null,null,null,{"$f":"IF('1. Order'!AX857=\"\",\"\",'1. Order'!AX857)","v":""},{"$f":"IF('1. Order'!AY857=\"\",\"\",'1. Order'!AY857)","v":""},{"$f":"IF('1. Order'!AZ857=\"\",\"\",'1. Order'!AZ857)","v":""},{"$f":"IF('1. Order'!BA857=\"\",\"\",'1. Order'!BA857)","v":""},{"$f":"IF('1. Order'!BC857=\"\",\"\",'1. Order'!BC857)","v":""},{"$f":"IF('1. Order'!BD857=\"\",\"\",'1. Order'!BD857)","v":6},{"$f":"IF('1. Order'!BE857=\"\",\"\",'1. Order'!BE857)","v":"None"},{"$f":"IF('1. Order'!BF857=\"\",\"\",'1. Order'!BF857)","v":"Parcel"},{"$f":"IF('1. Order'!BG857=\"\",\"\",'1. Order'!BG857)","v":"ZWO"}]
[{"$f":"IF('1. Order'!F858=\"\",\"\",'1. Order'!F858)","v":""},{"$f":"IF('1. Order'!G858=\"\",\"\",'1. Order'!G858)","v":""},{"$f":"IF('1. Order'!H858=\"\",\"\",'1. Order'!H858)","v":""},{"$f":"IF('1. Order'!I858=\"\",\"\",'1. Order'!I858)","v":""},{"$f":"IF('1. Order'!J858=\"\",\"\",'1. Order'!J858)","v":""},{"$f":"IF('1. Order'!K858=\"\",\"\",'1. Order'!K858)","v":""},{"$f":"IF('1. Order'!L858=\"\",\"\",'1. Order'!L858)","v":""},{"$f":"IF('1. Order'!M858=\"\",\"\",'1. Order'!M858)","v":""},{"$f":"IF('1. Order'!N858=\"\",\"\",'1. Order'!N858)","v":""},{"$f":"IF('1. Order'!O858=\"\",\"\",'1. Order'!O858)","v":{"$error":"#N/A"}},{"$f":"IF('1. Order'!P858=\"\",\"\",'1. Order'!P858)","v":{"$error":"#N/A"}},{"$f":"IF('1. Order'!Q858=\"\",\"\",'1. Order'!Q858)","v":""},{"$f":"IF('1. Order'!R858=\"\",\"\",'1. Order'!R858)","v":""},{"$f":"IF('1. Order'!S858=\"\",\"\",'1. Order'!S858)","v":""},{"$f":"IF('1. Order'!V858=\"\",\"\",'1. Order'!V858)","v":""},{"$f":"IF('1. Order'!W858=\"\",\"\",'1. Order'!W858)","v":""},{"$f":"IF('1. Order'!X858=\"\",\"\",'1. Order'!X858)","v":"EUR"},{"$f":"IF('1. Order'!Y858=\"\",\"\",'1. Order'!Y858)","v":""},{"$f":"IF('1. Order'!Z858=\"\",\"\",'1. Order'!Z858)","v":""},{"$f":"IF('1. Order'!AA858=\"\",\"\",'1. Order'!AA858)","v":""},null,{"$f":"IF('1. Order'!AS858=\"\",\"\",'1. Order'!AS858)","v":""},{"$f":"IF('1. Order'!AT858=\"\",\"\",'1. Order'!AT858)","v":""},null,null,null,null,null,null,null,{"$f":"IF('1. Order'!AX858=\"\",\"\",'1. Order'!AX858)","v":""},{"$f":"IF('1. Order'!AY858=\"\",\"\",'1. Order'!AY858)","v":""},{"$f":"IF('1. Order'!AZ858=\"\",\"\",'1. Order'!AZ858)","v":""},{"$f":"IF('1. Order'!BA858=\"\",\"\",'1. Order'!BA858)","v":""},{"$f":"IF('1. Order'!BC858=\"\",\"\",'1. Order'!BC858)","v":""},{"$f":"IF('1. Order'!BD858=\"\",\"\",'1. Order'!BD858)","v":6},{"$f":"IF('1. Order'!BE858=\"\",\"\",'1. Order'!BE858)","v":"None"},{"$f":"IF('1. Order'!BF858=\"\",\"\",'1. Order'!BF858)","v":"Parcel"},{"$f":"IF('1. Order'!BG858=\"\",\"\",'1. Order'!BG858)","v":"ZWO"}]
[{"$f":"IF('1. Order'!F859=\"\",\"\",'1. Order'!F859)","v":""},{"$f":"IF('1. Order'!G859=\"\",\"\",'1. Order'!G859)","v":""},{"$f":"IF('1. Order'!H859=\"\",\"\",'1. Order'!H859)","v":""},{"$f":"IF('1. Order'!I859=\"\",\"\",'1. Order'!I859)","v":""},{"$f":"IF('1. Order'!J859=\"\",\"\",'1. Order'!J859)","v":""},{"$f":"IF('1. Order'!K859=\"\",\"\",'1. Order'!K859)","v":""},{"$f":"IF('1. Order'!L859=\"\",\"\",'1. Order'!L859)","v":""},{"$f":"IF('1. Order'!M859=\"\",\"\",'1. Order'!M859)","v":""},{"$f":"IF('1. Order'!N859=\"\",\"\",'1. Order'!N859)","v":""},{"$f":"IF('1. Order'!O859=\"\",\"\",'1. Order'!O859)","v":{"$error":"#N/A"}},{"$f":"IF('1. Order'!P859=\"\",\"\",'1. Order'!P859)","v":{"$error":"#N/A"}},{"$f":"IF('1. Order'!Q859=\"\",\"\",'1. Order'!Q859)","v":""},{"$f":"IF('1. Order'!R859=\"\",\"\",'1. Order'!R859)","v":""},{"$f":"IF('1. Order'!S859=\"\",\"\",'1. Order'!S859)","v":""},{"$f":"IF('1. Order'!V859=\"\",\"\",'1. Order'!V859)","v":""},{"$f":"IF('1. Order'!W859=\"\",\"\",'1. Order'!W859)","v":""},{"$f":"IF('1. Order'!X859=\"\",\"\",'1. Order'!X859)","v":"EUR"},{"$f":"IF('1. Order'!Y859=\"\",\"\",'1. Order'!Y859)","v":""},{"$f":"IF('1. Order'!Z859=\"\",\"\",'1. Order'!Z859)","v":""},{"$f":"IF('1. Order'!AA859=\"\",\"\",'1. Order'!AA859)","v":""},null,{"$f":"IF('1. Order'!AS859=\"\",\"\",'1. Order'!AS859)","v":""},{"$f":"IF('1. Order'!AT859=\"\",\"\",'1. Order'!AT859)","v":""},null,null,null,null,null,null,null,{"$f":"IF('1. Order'!AX859=\"\",\"\",'1. Order'!AX859)","v":""},{"$f":"IF('1. Order'!AY859=\"\",\"\",'1. Order'!AY859)","v":""},{"$f":"IF('1. Order'!AZ859=\"\",\"\",'1. Order'!AZ859)","v":""},{"$f":"IF('1. Order'!BA859=\"\",\"\",'1. Order'!BA859)","v":""},{"$f":"IF('1. Order'!BC859=\"\",\"\",'1. Order'!BC859)","v":""},{"$f":"IF('1. Order'!BD859=\"\",\"\",'1. Order'!BD859)","v":6},{"$f":"IF('1. Order'!BE859=\"\",\"\",'1. Order'!BE859)","v":"None"},{"$f":"IF('1. Order'!BF859=\"\",\"\",'1. Order'!BF859)","v":"Parcel"},{"$f":"IF('1. Order'!BG859=\"\",\"\",'1. Order'!BG859)","v":"ZWO"}]
[{"$f":"IF('1. Order'!F860=\"\",\"\",'1. Order'!F860)","v":""},{"$f":"IF('1. Order'!G860=\"\",\"\",'1. Order'!G860)","v":""},{"$f":"IF('1. Order'!H860=\"\",\"\",'1. Order'!H860)","v":""},{"$f":"IF('1. Order'!I860=\"\",\"\",'1. Order'!I860)","v":""},{"$f":"IF('1. Order'!J860=\"\",\"\",'1. Order'!J860)","v":""},{"$f":"IF('1. Order'!K860=\"\",\"\",'1. Order'!K860)","v":""},{"$f":"IF('1. Order'!L860=\"\",\"\",'1. Order'!L860)","v":""},{"$f":"IF('1. Order'!M860=\"\",\"\",'1. Order'!M860)","v":""},{"$f":"IF('1. Order'!N860=\"\",\"\",'1. Order'!N860)","v":""},{"$f":"IF('1. Order'!O860=\"\",\"\",'1. Order'!O860)","v":{"$error":"#N/A"}},{"$f":"IF('1. Order'!P860=\"\",\"\",'1. Order'!P860)","v":{"$error":"#N/A"}},{"$f":"IF('1. Order'!Q860=\"\",\"\",'1. Order'!Q860)","v":""},{"$f":"IF('1. Order'!R860=\"\",\"\",'1. Order'!R860)","v":""},{"$f":"IF('1. Order'!S860=\"\",\"\",'1. Order'!S860)","v":""},{"$f":"IF('1. Order'!V860=\"\",\"\",'1. Order'!V860)","v":""},{"$f":"IF('1. Order'!W860=\"\",\"\",'1. Order'!W860)","v":""},{"$f":"IF('1. Order'!X860=\"\",\"\",'1. Order'!X860)","v":"EUR"},{"$f":"IF('1. Order'!Y860=\"\",\"\",'1. Order'!Y860)","v":""},{"$f":"IF('1. Order'!Z860=\"\",\"\",'1. Order'!Z860)","v":""},{"$f":"IF('1. Order'!AA860=\"\",\"\",'1. Order'!AA860)","v":""},null,{"$f":"IF('1. Order'!AS860=\"\",\"\",'1. Order'!AS860)","v":""},{"$f":"IF('1. Order'!AT860=\"\",\"\",'1. Order'!AT860)","v":""},null,null,null,null,null,null,null,{"$f":"IF('1. Order'!AX860=\"\",\"\",'1. Order'!AX860)","v":""},{"$f":"IF('1. Order'!AY860=\"\",\"\",'1. Order'!AY860)","v":""},{"$f":"IF('1. Order'!AZ860=\"\",\"\",'1. Order'!AZ860)","v":""},{"$f":"IF('1. Order'!BA860=\"\",\"\",'1. Order'!BA860)","v":""},{"$f":"IF('1. Order'!BC860=\"\",\"\",'1. Order'!BC860)","v":""},{"$f":"IF('1. Order'!BD860=\"\",\"\",'1. Order'!BD860)","v":6},{"$f":"IF('1. Order'!BE860=\"\",\"\",'1. Order'!BE860)","v":"None"},{"$f":"IF('1. Order'!BF860=\"\",\"\",'1. Order'!BF860)","v":"Parcel"},{"$f":"IF('1. Order'!BG860=\"\",\"\",'1. Order'!BG860)","v":"ZWO"}]
[{"$f":"IF('1. Order'!F861=\"\",\"\",'1. Order'!F861)","v":""},{"$f":"IF('1. Order'!G861=\"\",\"\",'1. Order'!G861)","v":""},{"$f":"IF('1. Order'!H861=\"\",\"\",'1. Order'!H861)","v":""},{"$f":"IF('1. Order'!I861=\"\",\"\",'1. Order'!I861)","v":""},{"$f":"IF('1. Order'!J861=\"\",\"\",'1. Order'!J861)","v":""},{"$f":"IF('1. Order'!K861=\"\",\"\",'1. Order'!K861)","v":""},{"$f":"IF('1. Order'!L861=\"\",\"\",'1. Order'!L861)","v":""},{"$f":"IF('1. Order'!M861=\"\",\"\",'1. Order'!M861)","v":""},{"$f":"IF('1. Order'!N861=\"\",\"\",'1. Order'!N861)","v":""},{"$f":"IF('1. Order'!O861=\"\",\"\",'1. Order'!O861)","v":{"$error":"#N/A"}},{"$f":"IF('1. Order'!P861=\"\",\"\",'1. Order'!P861)","v":{"$error":"#N/A"}},{"$f":"IF('1. Order'!Q861=\"\",\"\",'1. Order'!Q861)","v":""},{"$f":"IF('1. Order'!R861=\"\",\"\",'1. Order'!R861)","v":""},{"$f":"IF('1. Order'!S861=\"\",\"\",'1. Order'!S861)","v":""},{"$f":"IF('1. Order'!V861=\"\",\"\",'1. Order'!V861)","v":""},{"$f":"IF('1. Order'!W861=\"\",\"\",'1. Order'!W861)","v":""},{"$f":"IF('1. Order'!X861=\"\",\"\",'1. Order'!X861)","v":"EUR"},{"$f":"IF('1. Order'!Y861=\"\",\"\",'1. Order'!Y861)","v":""},{"$f":"IF('1. Order'!Z861=\"\",\"\",'1. Order'!Z861)","v":""},{"$f":"IF('1. Order'!AA861=\"\",\"\",'1. Order'!AA861)","v":""},null,{"$f":"IF('1. Order'!AS861=\"\",\"\",'1. Order'!AS861)","v":""},{"$f":"IF('1. Order'!AT861=\"\",\"\",'1. Order'!AT861)","v":""},null,null,null,null,null,null,null,{"$f":"IF('1. Order'!AX861=\"\",\"\",'1. Order'!AX861)","v":""},{"$f":"IF('1. Order'!AY861=\"\",\"\",'1. Order'!AY861)","v":""},{"$f":"IF('1. Order'!AZ861=\"\",\"\",'1. Order'!AZ861)","v":""},{"$f":"IF('1. Order'!BA861=\"\",\"\",'1. Order'!BA861)","v":""},{"$f":"IF('1. Order'!BC861=\"\",\"\",'1. Order'!BC861)","v":""},{"$f":"IF('1. Order'!BD861=\"\",\"\",'1. Order'!BD861)","v":6},{"$f":"IF('1. Order'!BE861=\"\",\"\",'1. Order'!BE861)","v":"None"},{"$f":"IF('1. Order'!BF861=\"\",\"\",'1. Order'!BF861)","v":"Parcel"},{"$f":"IF('1. Order'!BG861=\"\",\"\",'1. Order'!BG861)","v":"ZWO"}]
[{"$f":"IF('1. Order'!F862=\"\",\"\",'1. Order'!F862)","v":""},{"$f":"IF('1. Order'!G862=\"\",\"\",'1. Order'!G862)","v":""},{"$f":"IF('1. Order'!H862=\"\",\"\",'1. Order'!H862)","v":""},{"$f":"IF('1. Order'!I862=\"\",\"\",'1. Order'!I862)","v":""},{"$f":"IF('1. Order'!J862=\"\",\"\",'1. Order'!J862)","v":""},{"$f":"IF('1. Order'!K862=\"\",\"\",'1. Order'!K862)","v":""},{"$f":"IF('1. Order'!L862=\"\",\"\",'1. Order'!L862)","v":""},{"$f":"IF('1. Order'!M862=\"\",\"\",'1. Order'!M862)","v":""},{"$f":"IF('1. Order'!N862=\"\",\"\",'1. Order'!N862)","v":""},{"$f":"IF('1. Order'!O862=\"\",\"\",'1. Order'!O862)","v":{"$error":"#N/A"}},{"$f":"IF('1. Order'!P862=\"\",\"\",'1. Order'!P862)","v":{"$error":"#N/A"}},{"$f":"IF('1. Order'!Q862=\"\",\"\",'1. Order'!Q862)","v":""},{"$f":"IF('1. Order'!R862=\"\",\"\",'1. Order'!R862)","v":""},{"$f":"IF('1. Order'!S862=\"\",\"\",'1. Order'!S862)","v":""},{"$f":"IF('1. Order'!V862=\"\",\"\",'1. Order'!V862)","v":""},{"$f":"IF('1. Order'!W862=\"\",\"\",'1. Order'!W862)","v":""},{"$f":"IF('1. Order'!X862=\"\",\"\",'1. Order'!X862)","v":"EUR"},{"$f":"IF('1. Order'!Y862=\"\",\"\",'1. Order'!Y862)","v":""},{"$f":"IF('1. Order'!Z862=\"\",\"\",'1. Order'!Z862)","v":""},{"$f":"IF('1. Order'!AA862=\"\",\"\",'1. Order'!AA862)","v":""},null,{"$f":"IF('1. Order'!AS862=\"\",\"\",'1. Order'!AS862)","v":""},{"$f":"IF('1. Order'!AT862=\"\",\"\",'1. Order'!AT862)","v":""},null,null,null,null,null,null,null,{"$f":"IF('1. Order'!AX862=\"\",\"\",'1. Order'!AX862)","v":""},{"$f":"IF('1. Order'!AY862=\"\",\"\",'1. Order'!AY862)","v":""},{"$f":"IF('1. Order'!AZ862=\"\",\"\",'1. Order'!AZ862)","v":""},{"$f":"IF('1. Order'!BA862=\"\",\"\",'1. Order'!BA862)","v":""},{"$f":"IF('1. Order'!BC862=\"\",\"\",'1. Order'!BC862)","v":""},{"$f":"IF('1. Order'!BD862=\"\",\"\",'1. Order'!BD862)","v":6},{"$f":"IF('1. Order'!BE862=\"\",\"\",'1. Order'!BE862)","v":"None"},{"$f":"IF('1. Order'!BF862=\"\",\"\",'1. Order'!BF862)","v":"Parcel"},{"$f":"IF('1. Order'!BG862=\"\",\"\",'1. Order'!BG862)","v":"ZWO"}]
[{"$f":"IF('1. Order'!F863=\"\",\"\",'1. Order'!F863)","v":""},{"$f":"IF('1. Order'!G863=\"\",\"\",'1. Order'!G863)","v":""},{"$f":"IF('1. Order'!H863=\"\",\"\",'1. Order'!H863)","v":""},{"$f":"IF('1. Order'!I863=\"\",\"\",'1. Order'!I863)","v":""},{"$f":"IF('1. Order'!J863=\"\",\"\",'1. Order'!J863)","v":""},{"$f":"IF('1. Order'!K863=\"\",\"\",'1. Order'!K863)","v":""},{"$f":"IF('1. Order'!L863=\"\",\"\",'1. Order'!L863)","v":""},{"$f":"IF('1. Order'!M863=\"\",\"\",'1. Order'!M863)","v":""},{"$f":"IF('1. Order'!N863=\"\",\"\",'1. Order'!N863)","v":""},{"$f":"IF('1. Order'!O863=\"\",\"\",'1. Order'!O863)","v":{"$error":"#N/A"}},{"$f":"IF('1. Order'!P863=\"\",\"\",'1. Order'!P863)","v":{"$error":"#N/A"}},{"$f":"IF('1. Order'!Q863=\"\",\"\",'1. Order'!Q863)","v":""},{"$f":"IF('1. Order'!R863=\"\",\"\",'1. Order'!R863)","v":""},{"$f":"IF('1. Order'!S863=\"\",\"\",'1. Order'!S863)","v":""},{"$f":"IF('1. Order'!V863=\"\",\"\",'1. Order'!V863)","v":""},{"$f":"IF('1. Order'!W863=\"\",\"\",'1. Order'!W863)","v":""},{"$f":"IF('1. Order'!X863=\"\",\"\",'1. Order'!X863)","v":"EUR"},{"$f":"IF('1. Order'!Y863=\"\",\"\",'1. Order'!Y863)","v":""},{"$f":"IF('1. Order'!Z863=\"\",\"\",'1. Order'!Z863)","v":""},{"$f":"IF('1. Order'!AA863=\"\",\"\",'1. Order'!AA863)","v":""},null,{"$f":"IF('1. Order'!AS863=\"\",\"\",'1. Order'!AS863)","v":""},{"$f":"IF('1. Order'!AT863=\"\",\"\",'1. Order'!AT863)","v":""},null,null,null,null,null,null,null,{"$f":"IF('1. Order'!AX863=\"\",\"\",'1. Order'!AX863)","v":""},{"$f":"IF('1. Order'!AY863=\"\",\"\",'1. Order'!AY863)","v":""},{"$f":"IF('1. Order'!AZ863=\"\",\"\",'1. Order'!AZ863)","v":""},{"$f":"IF('1. Order'!BA863=\"\",\"\",'1. Order'!BA863)","v":""},{"$f":"IF('1. Order'!BC863=\"\",\"\",'1. Order'!BC863)","v":""},{"$f":"IF('1. Order'!BD863=\"\",\"\",'1. Order'!BD863)","v":6},{"$f":"IF('1. Order'!BE863=\"\",\"\",'1. Order'!BE863)","v":"None"},{"$f":"IF('1. Order'!BF863=\"\",\"\",'1. Order'!BF863)","v":"Parcel"},{"$f":"IF('1. Order'!BG863=\"\",\"\",'1. Order'!BG863)","v":"ZWO"}]
[{"$f":"IF('1. Order'!F864=\"\",\"\",'1. Order'!F864)","v":""},{"$f":"IF('1. Order'!G864=\"\",\"\",'1. Order'!G864)","v":""},{"$f":"IF('1. Order'!H864=\"\",\"\",'1. Order'!H864)","v":""},{"$f":"IF('1. Order'!I864=\"\",\"\",'1. Order'!I864)","v":""},{"$f":"IF('1. Order'!J864=\"\",\"\",'1. Order'!J864)","v":""},{"$f":"IF('1. Order'!K864=\"\",\"\",'1. Order'!K864)","v":""},{"$f":"IF('1. Order'!L864=\"\",\"\",'1. Order'!L864)","v":""},{"$f":"IF('1. Order'!M864=\"\",\"\",'1. Order'!M864)","v":""},{"$f":"IF('1. Order'!N864=\"\",\"\",'1. Order'!N864)","v":""},{"$f":"IF('1. Order'!O864=\"\",\"\",'1. Order'!O864)","v":{"$error":"#N/A"}},{"$f":"IF('1. Order'!P864=\"\",\"\",'1. Order'!P864)","v":{"$error":"#N/A"}},{"$f":"IF('1. Order'!Q864=\"\",\"\",'1. Order'!Q864)","v":""},{"$f":"IF('1. Order'!R864=\"\",\"\",'1. Order'!R864)","v":""},{"$f":"IF('1. Order'!S864=\"\",\"\",'1. Order'!S864)","v":""},{"$f":"IF('1. Order'!V864=\"\",\"\",'1. Order'!V864)","v":""},{"$f":"IF('1. Order'!W864=\"\",\"\",'1. Order'!W864)","v":""},{"$f":"IF('1. Order'!X864=\"\",\"\",'1. Order'!X864)","v":"EUR"},{"$f":"IF('1. Order'!Y864=\"\",\"\",'1. Order'!Y864)","v":""},{"$f":"IF('1. Order'!Z864=\"\",\"\",'1. Order'!Z864)","v":""},{"$f":"IF('1. Order'!AA864=\"\",\"\",'1. Order'!AA864)","v":""},null,{"$f":"IF('1. Order'!AS864=\"\",\"\",'1. Order'!AS864)","v":""},{"$f":"IF('1. Order'!AT864=\"\",\"\",'1. Order'!AT864)","v":""},null,null,null,null,null,null,null,{"$f":"IF('1. Order'!AX864=\"\",\"\",'1. Order'!AX864)","v":""},{"$f":"IF('1. Order'!AY864=\"\",\"\",'1. Order'!AY864)","v":""},{"$f":"IF('1. Order'!AZ864=\"\",\"\",'1. Order'!AZ864)","v":""},{"$f":"IF('1. Order'!BA864=\"\",\"\",'1. Order'!BA864)","v":""},{"$f":"IF('1. Order'!BC864=\"\",\"\",'1. Order'!BC864)","v":""},{"$f":"IF('1. Order'!BD864=\"\",\"\",'1. Order'!BD864)","v":6},{"$f":"IF('1. Order'!BE864=\"\",\"\",'1. Order'!BE864)","v":"None"},{"$f":"IF('1. Order'!BF864=\"\",\"\",'1. Order'!BF864)","v":"Parcel"},{"$f":"IF('1. Order'!BG864=\"\",\"\",'1. Order'!BG864)","v":"ZWO"}]
[{"$f":"IF('1. Order'!F865=\"\",\"\",'1. Order'!F865)","v":""},{"$f":"IF('1. Order'!G865=\"\",\"\",'1. Order'!G865)","v":""},{"$f":"IF('1. Order'!H865=\"\",\"\",'1. Order'!H865)","v":""},{"$f":"IF('1. Order'!I865=\"\",\"\",'1. Order'!I865)","v":""},{"$f":"IF('1. Order'!J865=\"\",\"\",'1. Order'!J865)","v":""},{"$f":"IF('1. Order'!K865=\"\",\"\",'1. Order'!K865)","v":""},{"$f":"IF('1. Order'!L865=\"\",\"\",'1. Order'!L865)","v":""},{"$f":"IF('1. Order'!M865=\"\",\"\",'1. Order'!M865)","v":""},{"$f":"IF('1. Order'!N865=\"\",\"\",'1. Order'!N865)","v":""},{"$f":"IF('1. Order'!O865=\"\",\"\",'1. Order'!O865)","v":{"$error":"#N/A"}},{"$f":"IF('1. Order'!P865=\"\",\"\",'1. Order'!P865)","v":{"$error":"#N/A"}},{"$f":"IF('1. Order'!Q865=\"\",\"\",'1. Order'!Q865)","v":""},{"$f":"IF('1. Order'!R865=\"\",\"\",'1. Order'!R865)","v":""},{"$f":"IF('1. Order'!S865=\"\",\"\",'1. Order'!S865)","v":""},{"$f":"IF('1. Order'!V865=\"\",\"\",'1. Order'!V865)","v":""},{"$f":"IF('1. Order'!W865=\"\",\"\",'1. Order'!W865)","v":""},{"$f":"IF('1. Order'!X865=\"\",\"\",'1. Order'!X865)","v":"EUR"},{"$f":"IF('1. Order'!Y865=\"\",\"\",'1. Order'!Y865)","v":""},{"$f":"IF('1. Order'!Z865=\"\",\"\",'1. Order'!Z865)","v":""},{"$f":"IF('1. Order'!AA865=\"\",\"\",'1. Order'!AA865)","v":""},null,{"$f":"IF('1. Order'!AS865=\"\",\"\",'1. Order'!AS865)","v":""},{"$f":"IF('1. Order'!AT865=\"\",\"\",'1. Order'!AT865)","v":""},null,null,null,null,null,null,null,{"$f":"IF('1. Order'!AX865=\"\",\"\",'1. Order'!AX865)","v":""},{"$f":"IF('1. Order'!AY865=\"\",\"\",'1. Order'!AY865)","v":""},{"$f":"IF('1. Order'!AZ865=\"\",\"\",'1. Order'!AZ865)","v":""},{"$f":"IF('1. Order'!BA865=\"\",\"\",'1. Order'!BA865)","v":""},{"$f":"IF('1. Order'!BC865=\"\",\"\",'1. Order'!BC865)","v":""},{"$f":"IF('1. Order'!BD865=\"\",\"\",'1. Order'!BD865)","v":6},{"$f":"IF('1. Order'!BE865=\"\",\"\",'1. Order'!BE865)","v":"None"},{"$f":"IF('1. Order'!BF865=\"\",\"\",'1. Order'!BF865)","v":"Parcel"},{"$f":"IF('1. Order'!BG865=\"\",\"\",'1. Order'!BG865)","v":"ZWO"}]
[{"$f":"IF('1. Order'!F866=\"\",\"\",'1. Order'!F866)","v":""},{"$f":"IF('1. Order'!G866=\"\",\"\",'1. Order'!G866)","v":""},{"$f":"IF('1. Order'!H866=\"\",\"\",'1. Order'!H866)","v":""},{"$f":"IF('1. Order'!I866=\"\",\"\",'1. Order'!I866)","v":""},{"$f":"IF('1. Order'!J866=\"\",\"\",'1. Order'!J866)","v":""},{"$f":"IF('1. Order'!K866=\"\",\"\",'1. Order'!K866)","v":""},{"$f":"IF('1. Order'!L866=\"\",\"\",'1. Order'!L866)","v":""},{"$f":"IF('1. Order'!M866=\"\",\"\",'1. Order'!M866)","v":""},{"$f":"IF('1. Order'!N866=\"\",\"\",'1. Order'!N866)","v":""},{"$f":"IF('1. Order'!O866=\"\",\"\",'1. Order'!O866)","v":{"$error":"#N/A"}},{"$f":"IF('1. Order'!P866=\"\",\"\",'1. Order'!P866)","v":{"$error":"#N/A"}},{"$f":"IF('1. Order'!Q866=\"\",\"\",'1. Order'!Q866)","v":""},{"$f":"IF('1. Order'!R866=\"\",\"\",'1. Order'!R866)","v":""},{"$f":"IF('1. Order'!S866=\"\",\"\",'1. Order'!S866)","v":""},{"$f":"IF('1. Order'!V866=\"\",\"\",'1. Order'!V866)","v":""},{"$f":"IF('1. Order'!W866=\"\",\"\",'1. Order'!W866)","v":""},{"$f":"IF('1. Order'!X866=\"\",\"\",'1. Order'!X866)","v":"EUR"},{"$f":"IF('1. Order'!Y866=\"\",\"\",'1. Order'!Y866)","v":""},{"$f":"IF('1. Order'!Z866=\"\",\"\",'1. Order'!Z866)","v":""},{"$f":"IF('1. Order'!AA866=\"\",\"\",'1. Order'!AA866)","v":""},null,{"$f":"IF('1. Order'!AS866=\"\",\"\",'1. Order'!AS866)","v":""},{"$f":"IF('1. Order'!AT866=\"\",\"\",'1. Order'!AT866)","v":""},null,null,null,null,null,null,null,{"$f":"IF('1. Order'!AX866=\"\",\"\",'1. Order'!AX866)","v":""},{"$f":"IF('1. Order'!AY866=\"\",\"\",'1. Order'!AY866)","v":""},{"$f":"IF('1. Order'!AZ866=\"\",\"\",'1. Order'!AZ866)","v":""},{"$f":"IF('1. Order'!BA866=\"\",\"\",'1. Order'!BA866)","v":""},{"$f":"IF('1. Order'!BC866=\"\",\"\",'1. Order'!BC866)","v":""},{"$f":"IF('1. Order'!BD866=\"\",\"\",'1. Order'!BD866)","v":6},{"$f":"IF('1. Order'!BE866=\"\",\"\",'1. Order'!BE866)","v":"None"},{"$f":"IF('1. Order'!BF866=\"\",\"\",'1. Order'!BF866)","v":"Parcel"},{"$f":"IF('1. Order'!BG866=\"\",\"\",'1. Order'!BG866)","v":"ZWO"}]
[{"$f":"IF('1. Order'!F867=\"\",\"\",'1. Order'!F867)","v":""},{"$f":"IF('1. Order'!G867=\"\",\"\",'1. Order'!G867)","v":""},{"$f":"IF('1. Order'!H867=\"\",\"\",'1. Order'!H867)","v":""},{"$f":"IF('1. Order'!I867=\"\",\"\",'1. Order'!I867)","v":""},{"$f":"IF('1. Order'!J867=\"\",\"\",'1. Order'!J867)","v":""},{"$f":"IF('1. Order'!K867=\"\",\"\",'1. Order'!K867)","v":""},{"$f":"IF('1. Order'!L867=\"\",\"\",'1. Order'!L867)","v":""},{"$f":"IF('1. Order'!M867=\"\",\"\",'1. Order'!M867)","v":""},{"$f":"IF('1. Order'!N867=\"\",\"\",'1. Order'!N867)","v":""},{"$f":"IF('1. Order'!O867=\"\",\"\",'1. Order'!O867)","v":{"$error":"#N/A"}},{"$f":"IF('1. Order'!P867=\"\",\"\",'1. Order'!P867)","v":{"$error":"#N/A"}},{"$f":"IF('1. Order'!Q867=\"\",\"\",'1. Order'!Q867)","v":""},{"$f":"IF('1. Order'!R867=\"\",\"\",'1. Order'!R867)","v":""},{"$f":"IF('1. Order'!S867=\"\",\"\",'1. Order'!S867)","v":""},{"$f":"IF('1. Order'!V867=\"\",\"\",'1. Order'!V867)","v":""},{"$f":"IF('1. Order'!W867=\"\",\"\",'1. Order'!W867)","v":""},{"$f":"IF('1. Order'!X867=\"\",\"\",'1. Order'!X867)","v":"EUR"},{"$f":"IF('1. Order'!Y867=\"\",\"\",'1. Order'!Y867)","v":""},{"$f":"IF('1. Order'!Z867=\"\",\"\",'1. Order'!Z867)","v":""},{"$f":"IF('1. Order'!AA867=\"\",\"\",'1. Order'!AA867)","v":""},null,{"$f":"IF('1. Order'!AS867=\"\",\"\",'1. Order'!AS867)","v":""},{"$f":"IF('1. Order'!AT867=\"\",\"\",'1. Order'!AT867)","v":""},null,null,null,null,null,null,null,{"$f":"IF('1. Order'!AX867=\"\",\"\",'1. Order'!AX867)","v":""},{"$f":"IF('1. Order'!AY867=\"\",\"\",'1. Order'!AY867)","v":""},{"$f":"IF('1. Order'!AZ867=\"\",\"\",'1. Order'!AZ867)","v":""},{"$f":"IF('1. Order'!BA867=\"\",\"\",'1. Order'!BA867)","v":""},{"$f":"IF('1. Order'!BC867=\"\",\"\",'1. Order'!BC867)","v":""},{"$f":"IF('1. Order'!BD867=\"\",\"\",'1. Order'!BD867)","v":6},{"$f":"IF('1. Order'!BE867=\"\",\"\",'1. Order'!BE867)","v":"None"},{"$f":"IF('1. Order'!BF867=\"\",\"\",'1. Order'!BF867)","v":"Parcel"},{"$f":"IF('1. Order'!BG867=\"\",\"\",'1. Order'!BG867)","v":"ZWO"}]
[{"$f":"IF('1. Order'!F868=\"\",\"\",'1. Order'!F868)","v":""},{"$f":"IF('1. Order'!G868=\"\",\"\",'1. Order'!G868)","v":""},{"$f":"IF('1. Order'!H868=\"\",\"\",'1. Order'!H868)","v":""},{"$f":"IF('1. Order'!I868=\"\",\"\",'1. Order'!I868)","v":""},{"$f":"IF('1. Order'!J868=\"\",\"\",'1. Order'!J868)","v":""},{"$f":"IF('1. Order'!K868=\"\",\"\",'1. Order'!K868)","v":""},{"$f":"IF('1. Order'!L868=\"\",\"\",'1. Order'!L868)","v":""},{"$f":"IF('1. Order'!M868=\"\",\"\",'1. Order'!M868)","v":""},{"$f":"IF('1. Order'!N868=\"\",\"\",'1. Order'!N868)","v":""},{"$f":"IF('1. Order'!O868=\"\",\"\",'1. Order'!O868)","v":{"$error":"#N/A"}},{"$f":"IF('1. Order'!P868=\"\",\"\",'1. Order'!P868)","v":{"$error":"#N/A"}},{"$f":"IF('1. Order'!Q868=\"\",\"\",'1. Order'!Q868)","v":""},{"$f":"IF('1. Order'!R868=\"\",\"\",'1. Order'!R868)","v":""},{"$f":"IF('1. Order'!S868=\"\",\"\",'1. Order'!S868)","v":""},{"$f":"IF('1. Order'!V868=\"\",\"\",'1. Order'!V868)","v":""},{"$f":"IF('1. Order'!W868=\"\",\"\",'1. Order'!W868)","v":""},{"$f":"IF('1. Order'!X868=\"\",\"\",'1. Order'!X868)","v":"EUR"},{"$f":"IF('1. Order'!Y868=\"\",\"\",'1. Order'!Y868)","v":""},{"$f":"IF('1. Order'!Z868=\"\",\"\",'1. Order'!Z868)","v":""},{"$f":"IF('1. Order'!AA868=\"\",\"\",'1. Order'!AA868)","v":""},null,{"$f":"IF('1. Order'!AS868=\"\",\"\",'1. Order'!AS868)","v":""},{"$f":"IF('1. Order'!AT868=\"\",\"\",'1. Order'!AT868)","v":""},null,null,null,null,null,null,null,{"$f":"IF('1. Order'!AX868=\"\",\"\",'1. Order'!AX868)","v":""},{"$f":"IF('1. Order'!AY868=\"\",\"\",'1. Order'!AY868)","v":""},{"$f":"IF('1. Order'!AZ868=\"\",\"\",'1. Order'!AZ868)","v":""},{"$f":"IF('1. Order'!BA868=\"\",\"\",'1. Order'!BA868)","v":""},{"$f":"IF('1. Order'!BC868=\"\",\"\",'1. Order'!BC868)","v":""},{"$f":"IF('1. Order'!BD868=\"\",\"\",'1. Order'!BD868)","v":6},{"$f":"IF('1. Order'!BE868=\"\",\"\",'1. Order'!BE868)","v":"None"},{"$f":"IF('1. Order'!BF868=\"\",\"\",'1. Order'!BF868)","v":"Parcel"},{"$f":"IF('1. Order'!BG868=\"\",\"\",'1. Order'!BG868)","v":"ZWO"}]
[{"$f":"IF('1. Order'!F869=\"\",\"\",'1. Order'!F869)","v":""},{"$f":"IF('1. Order'!G869=\"\",\"\",'1. Order'!G869)","v":""},{"$f":"IF('1. Order'!H869=\"\",\"\",'1. Order'!H869)","v":""},{"$f":"IF('1. Order'!I869=\"\",\"\",'1. Order'!I869)","v":""},{"$f":"IF('1. Order'!J869=\"\",\"\",'1. Order'!J869)","v":""},{"$f":"IF('1. Order'!K869=\"\",\"\",'1. Order'!K869)","v":""},{"$f":"IF('1. Order'!L869=\"\",\"\",'1. Order'!L869)","v":""},{"$f":"IF('1. Order'!M869=\"\",\"\",'1. Order'!M869)","v":""},{"$f":"IF('1. Order'!N869=\"\",\"\",'1. Order'!N869)","v":""},{"$f":"IF('1. Order'!O869=\"\",\"\",'1. Order'!O869)","v":{"$error":"#N/A"}},{"$f":"IF('1. Order'!P869=\"\",\"\",'1. Order'!P869)","v":{"$error":"#N/A"}},{"$f":"IF('1. Order'!Q869=\"\",\"\",'1. Order'!Q869)","v":""},{"$f":"IF('1. Order'!R869=\"\",\"\",'1. Order'!R869)","v":""},{"$f":"IF('1. Order'!S869=\"\",\"\",'1. Order'!S869)","v":""},{"$f":"IF('1. Order'!V869=\"\",\"\",'1. Order'!V869)","v":""},{"$f":"IF('1. Order'!W869=\"\",\"\",'1. Order'!W869)","v":""},{"$f":"IF('1. Order'!X869=\"\",\"\",'1. Order'!X869)","v":"EUR"},{"$f":"IF('1. Order'!Y869=\"\",\"\",'1. Order'!Y869)","v":""},{"$f":"IF('1. Order'!Z869=\"\",\"\",'1. Order'!Z869)","v":""},{"$f":"IF('1. Order'!AA869=\"\",\"\",'1. Order'!AA869)","v":""},null,{"$f":"IF('1. Order'!AS869=\"\",\"\",'1. Order'!AS869)","v":""},{"$f":"IF('1. Order'!AT869=\"\",\"\",'1. Order'!AT869)","v":""},null,null,null,null,null,null,null,{"$f":"IF('1. Order'!AX869=\"\",\"\",'1. Order'!AX869)","v":""},{"$f":"IF('1. Order'!AY869=\"\",\"\",'1. Order'!AY869)","v":""},{"$f":"IF('1. Order'!AZ869=\"\",\"\",'1. Order'!AZ869)","v":""},{"$f":"IF('1. Order'!BA869=\"\",\"\",'1. Order'!BA869)","v":""},{"$f":"IF('1. Order'!BC869=\"\",\"\",'1. Order'!BC869)","v":""},{"$f":"IF('1. Order'!BD869=\"\",\"\",'1. Order'!BD869)","v":6},{"$f":"IF('1. Order'!BE869=\"\",\"\",'1. Order'!BE869)","v":"None"},{"$f":"IF('1. Order'!BF869=\"\",\"\",'1. Order'!BF869)","v":"Parcel"},{"$f":"IF('1. Order'!BG869=\"\",\"\",'1. Order'!BG869)","v":"ZWO"}]
[{"$f":"IF('1. Order'!F870=\"\",\"\",'1. Order'!F870)","v":""},{"$f":"IF('1. Order'!G870=\"\",\"\",'1. Order'!G870)","v":""},{"$f":"IF('1. Order'!H870=\"\",\"\",'1. Order'!H870)","v":""},{"$f":"IF('1. Order'!I870=\"\",\"\",'1. Order'!I870)","v":""},{"$f":"IF('1. Order'!J870=\"\",\"\",'1. Order'!J870)","v":""},{"$f":"IF('1. Order'!K870=\"\",\"\",'1. Order'!K870)","v":""},{"$f":"IF('1. Order'!L870=\"\",\"\",'1. Order'!L870)","v":""},{"$f":"IF('1. Order'!M870=\"\",\"\",'1. Order'!M870)","v":""},{"$f":"IF('1. Order'!N870=\"\",\"\",'1. Order'!N870)","v":""},{"$f":"IF('1. Order'!O870=\"\",\"\",'1. Order'!O870)","v":{"$error":"#N/A"}},{"$f":"IF('1. Order'!P870=\"\",\"\",'1. Order'!P870)","v":{"$error":"#N/A"}},{"$f":"IF('1. Order'!Q870=\"\",\"\",'1. Order'!Q870)","v":""},{"$f":"IF('1. Order'!R870=\"\",\"\",'1. Order'!R870)","v":""},{"$f":"IF('1. Order'!S870=\"\",\"\",'1. Order'!S870)","v":""},{"$f":"IF('1. Order'!V870=\"\",\"\",'1. Order'!V870)","v":""},{"$f":"IF('1. Order'!W870=\"\",\"\",'1. Order'!W870)","v":""},{"$f":"IF('1. Order'!X870=\"\",\"\",'1. Order'!X870)","v":"EUR"},{"$f":"IF('1. Order'!Y870=\"\",\"\",'1. Order'!Y870)","v":""},{"$f":"IF('1. Order'!Z870=\"\",\"\",'1. Order'!Z870)","v":""},{"$f":"IF('1. Order'!AA870=\"\",\"\",'1. Order'!AA870)","v":""},null,{"$f":"IF('1. Order'!AS870=\"\",\"\",'1. Order'!AS870)","v":""},{"$f":"IF('1. Order'!AT870=\"\",\"\",'1. Order'!AT870)","v":""},null,null,null,null,null,null,null,{"$f":"IF('1. Order'!AX870=\"\",\"\",'1. Order'!AX870)","v":""},{"$f":"IF('1. Order'!AY870=\"\",\"\",'1. Order'!AY870)","v":""},{"$f":"IF('1. Order'!AZ870=\"\",\"\",'1. Order'!AZ870)","v":""},{"$f":"IF('1. Order'!BA870=\"\",\"\",'1. Order'!BA870)","v":""},{"$f":"IF('1. Order'!BC870=\"\",\"\",'1. Order'!BC870)","v":""},{"$f":"IF('1. Order'!BD870=\"\",\"\",'1. Order'!BD870)","v":6},{"$f":"IF('1. Order'!BE870=\"\",\"\",'1. Order'!BE870)","v":"None"},{"$f":"IF('1. Order'!BF870=\"\",\"\",'1. Order'!BF870)","v":"Parcel"},{"$f":"IF('1. Order'!BG870=\"\",\"\",'1. Order'!BG870)","v":"ZWO"}]
[{"$f":"IF('1. Order'!F871=\"\",\"\",'1. Order'!F871)","v":""},{"$f":"IF('1. Order'!G871=\"\",\"\",'1. Order'!G871)","v":""},{"$f":"IF('1. Order'!H871=\"\",\"\",'1. Order'!H871)","v":""},{"$f":"IF('1. Order'!I871=\"\",\"\",'1. Order'!I871)","v":""},{"$f":"IF('1. Order'!J871=\"\",\"\",'1. Order'!J871)","v":""},{"$f":"IF('1. Order'!K871=\"\",\"\",'1. Order'!K871)","v":""},{"$f":"IF('1. Order'!L871=\"\",\"\",'1. Order'!L871)","v":""},{"$f":"IF('1. Order'!M871=\"\",\"\",'1. Order'!M871)","v":""},{"$f":"IF('1. Order'!N871=\"\",\"\",'1. Order'!N871)","v":""},{"$f":"IF('1. Order'!O871=\"\",\"\",'1. Order'!O871)","v":{"$error":"#N/A"}},{"$f":"IF('1. Order'!P871=\"\",\"\",'1. Order'!P871)","v":{"$error":"#N/A"}},{"$f":"IF('1. Order'!Q871=\"\",\"\",'1. Order'!Q871)","v":""},{"$f":"IF('1. Order'!R871=\"\",\"\",'1. Order'!R871)","v":""},{"$f":"IF('1. Order'!S871=\"\",\"\",'1. Order'!S871)","v":""},{"$f":"IF('1. Order'!V871=\"\",\"\",'1. Order'!V871)","v":""},{"$f":"IF('1. Order'!W871=\"\",\"\",'1. Order'!W871)","v":""},{"$f":"IF('1. Order'!X871=\"\",\"\",'1. Order'!X871)","v":"EUR"},{"$f":"IF('1. Order'!Y871=\"\",\"\",'1. Order'!Y871)","v":""},{"$f":"IF('1. Order'!Z871=\"\",\"\",'1. Order'!Z871)","v":""},{"$f":"IF('1. Order'!AA871=\"\",\"\",'1. Order'!AA871)","v":""},null,{"$f":"IF('1. Order'!AS871=\"\",\"\",'1. Order'!AS871)","v":""},{"$f":"IF('1. Order'!AT871=\"\",\"\",'1. Order'!AT871)","v":""},null,null,null,null,null,null,null,{"$f":"IF('1. Order'!AX871=\"\",\"\",'1. Order'!AX871)","v":""},{"$f":"IF('1. Order'!AY871=\"\",\"\",'1. Order'!AY871)","v":""},{"$f":"IF('1. Order'!AZ871=\"\",\"\",'1. Order'!AZ871)","v":""},{"$f":"IF('1. Order'!BA871=\"\",\"\",'1. Order'!BA871)","v":""},{"$f":"IF('1. Order'!BC871=\"\",\"\",'1. Order'!BC871)","v":""},{"$f":"IF('1. Order'!BD871=\"\",\"\",'1. Order'!BD871)","v":6},{"$f":"IF('1. Order'!BE871=\"\",\"\",'1. Order'!BE871)","v":"None"},{"$f":"IF('1. Order'!BF871=\"\",\"\",'1. Order'!BF871)","v":"Parcel"},{"$f":"IF('1. Order'!BG871=\"\",\"\",'1. Order'!BG871)","v":"ZWO"}]
[{"$f":"IF('1. Order'!F872=\"\",\"\",'1. Order'!F872)","v":""},{"$f":"IF('1. Order'!G872=\"\",\"\",'1. Order'!G872)","v":""},{"$f":"IF('1. Order'!H872=\"\",\"\",'1. Order'!H872)","v":""},{"$f":"IF('1. Order'!I872=\"\",\"\",'1. Order'!I872)","v":""},{"$f":"IF('1. Order'!J872=\"\",\"\",'1. Order'!J872)","v":""},{"$f":"IF('1. Order'!K872=\"\",\"\",'1. Order'!K872)","v":""},{"$f":"IF('1. Order'!L872=\"\",\"\",'1. Order'!L872)","v":""},{"$f":"IF('1. Order'!M872=\"\",\"\",'1. Order'!M872)","v":""},{"$f":"IF('1. Order'!N872=\"\",\"\",'1. Order'!N872)","v":""},{"$f":"IF('1. Order'!O872=\"\",\"\",'1. Order'!O872)","v":{"$error":"#N/A"}},{"$f":"IF('1. Order'!P872=\"\",\"\",'1. Order'!P872)","v":{"$error":"#N/A"}},{"$f":"IF('1. Order'!Q872=\"\",\"\",'1. Order'!Q872)","v":""},{"$f":"IF('1. Order'!R872=\"\",\"\",'1. Order'!R872)","v":""},{"$f":"IF('1. Order'!S872=\"\",\"\",'1. Order'!S872)","v":""},{"$f":"IF('1. Order'!V872=\"\",\"\",'1. Order'!V872)","v":""},{"$f":"IF('1. Order'!W872=\"\",\"\",'1. Order'!W872)","v":""},{"$f":"IF('1. Order'!X872=\"\",\"\",'1. Order'!X872)","v":"EUR"},{"$f":"IF('1. Order'!Y872=\"\",\"\",'1. Order'!Y872)","v":""},{"$f":"IF('1. Order'!Z872=\"\",\"\",'1. Order'!Z872)","v":""},{"$f":"IF('1. Order'!AA872=\"\",\"\",'1. Order'!AA872)","v":""},null,{"$f":"IF('1. Order'!AS872=\"\",\"\",'1. Order'!AS872)","v":""},{"$f":"IF('1. Order'!AT872=\"\",\"\",'1. Order'!AT872)","v":""},null,null,null,null,null,null,null,{"$f":"IF('1. Order'!AX872=\"\",\"\",'1. Order'!AX872)","v":""},{"$f":"IF('1. Order'!AY872=\"\",\"\",'1. Order'!AY872)","v":""},{"$f":"IF('1. Order'!AZ872=\"\",\"\",'1. Order'!AZ872)","v":""},{"$f":"IF('1. Order'!BA872=\"\",\"\",'1. Order'!BA872)","v":""},{"$f":"IF('1. Order'!BC872=\"\",\"\",'1. Order'!BC872)","v":""},{"$f":"IF('1. Order'!BD872=\"\",\"\",'1. Order'!BD872)","v":6},{"$f":"IF('1. Order'!BE872=\"\",\"\",'1. Order'!BE872)","v":"None"},{"$f":"IF('1. Order'!BF872=\"\",\"\",'1. Order'!BF872)","v":"Parcel"},{"$f":"IF('1. Order'!BG872=\"\",\"\",'1. Order'!BG872)","v":"ZWO"}]
[{"$f":"IF('1. Order'!F873=\"\",\"\",'1. Order'!F873)","v":""},{"$f":"IF('1. Order'!G873=\"\",\"\",'1. Order'!G873)","v":""},{"$f":"IF('1. Order'!H873=\"\",\"\",'1. Order'!H873)","v":""},{"$f":"IF('1. Order'!I873=\"\",\"\",'1. Order'!I873)","v":""},{"$f":"IF('1. Order'!J873=\"\",\"\",'1. Order'!J873)","v":""},{"$f":"IF('1. Order'!K873=\"\",\"\",'1. Order'!K873)","v":""},{"$f":"IF('1. Order'!L873=\"\",\"\",'1. Order'!L873)","v":""},{"$f":"IF('1. Order'!M873=\"\",\"\",'1. Order'!M873)","v":""},{"$f":"IF('1. Order'!N873=\"\",\"\",'1. Order'!N873)","v":""},{"$f":"IF('1. Order'!O873=\"\",\"\",'1. Order'!O873)","v":{"$error":"#N/A"}},{"$f":"IF('1. Order'!P873=\"\",\"\",'1. Order'!P873)","v":{"$error":"#N/A"}},{"$f":"IF('1. Order'!Q873=\"\",\"\",'1. Order'!Q873)","v":""},{"$f":"IF('1. Order'!R873=\"\",\"\",'1. Order'!R873)","v":""},{"$f":"IF('1. Order'!S873=\"\",\"\",'1. Order'!S873)","v":""},{"$f":"IF('1. Order'!V873=\"\",\"\",'1. Order'!V873)","v":""},{"$f":"IF('1. Order'!W873=\"\",\"\",'1. Order'!W873)","v":""},{"$f":"IF('1. Order'!X873=\"\",\"\",'1. Order'!X873)","v":"EUR"},{"$f":"IF('1. Order'!Y873=\"\",\"\",'1. Order'!Y873)","v":""},{"$f":"IF('1. Order'!Z873=\"\",\"\",'1. Order'!Z873)","v":""},{"$f":"IF('1. Order'!AA873=\"\",\"\",'1. Order'!AA873)","v":""},null,{"$f":"IF('1. Order'!AS873=\"\",\"\",'1. Order'!AS873)","v":""},{"$f":"IF('1. Order'!AT873=\"\",\"\",'1. Order'!AT873)","v":""},null,null,null,null,null,null,null,{"$f":"IF('1. Order'!AX873=\"\",\"\",'1. Order'!AX873)","v":""},{"$f":"IF('1. Order'!AY873=\"\",\"\",'1. Order'!AY873)","v":""},{"$f":"IF('1. Order'!AZ873=\"\",\"\",'1. Order'!AZ873)","v":""},{"$f":"IF('1. Order'!BA873=\"\",\"\",'1. Order'!BA873)","v":""},{"$f":"IF('1. Order'!BC873=\"\",\"\",'1. Order'!BC873)","v":""},{"$f":"IF('1. Order'!BD873=\"\",\"\",'1. Order'!BD873)","v":6},{"$f":"IF('1. Order'!BE873=\"\",\"\",'1. Order'!BE873)","v":"None"},{"$f":"IF('1. Order'!BF873=\"\",\"\",'1. Order'!BF873)","v":"Parcel"},{"$f":"IF('1. Order'!BG873=\"\",\"\",'1. Order'!BG873)","v":"ZWO"}]
[{"$f":"IF('1. Order'!F874=\"\",\"\",'1. Order'!F874)","v":""},{"$f":"IF('1. Order'!G874=\"\",\"\",'1. Order'!G874)","v":""},{"$f":"IF('1. Order'!H874=\"\",\"\",'1. Order'!H874)","v":""},{"$f":"IF('1. Order'!I874=\"\",\"\",'1. Order'!I874)","v":""},{"$f":"IF('1. Order'!J874=\"\",\"\",'1. Order'!J874)","v":""},{"$f":"IF('1. Order'!K874=\"\",\"\",'1. Order'!K874)","v":""},{"$f":"IF('1. Order'!L874=\"\",\"\",'1. Order'!L874)","v":""},{"$f":"IF('1. Order'!M874=\"\",\"\",'1. Order'!M874)","v":""},{"$f":"IF('1. Order'!N874=\"\",\"\",'1. Order'!N874)","v":""},{"$f":"IF('1. Order'!O874=\"\",\"\",'1. Order'!O874)","v":{"$error":"#N/A"}},{"$f":"IF('1. Order'!P874=\"\",\"\",'1. Order'!P874)","v":{"$error":"#N/A"}},{"$f":"IF('1. Order'!Q874=\"\",\"\",'1. Order'!Q874)","v":""},{"$f":"IF('1. Order'!R874=\"\",\"\",'1. Order'!R874)","v":""},{"$f":"IF('1. Order'!S874=\"\",\"\",'1. Order'!S874)","v":""},{"$f":"IF('1. Order'!V874=\"\",\"\",'1. Order'!V874)","v":""},{"$f":"IF('1. Order'!W874=\"\",\"\",'1. Order'!W874)","v":""},{"$f":"IF('1. Order'!X874=\"\",\"\",'1. Order'!X874)","v":"EUR"},{"$f":"IF('1. Order'!Y874=\"\",\"\",'1. Order'!Y874)","v":""},{"$f":"IF('1. Order'!Z874=\"\",\"\",'1. Order'!Z874)","v":""},{"$f":"IF('1. Order'!AA874=\"\",\"\",'1. Order'!AA874)","v":""},null,{"$f":"IF('1. Order'!AS874=\"\",\"\",'1. Order'!AS874)","v":""},{"$f":"IF('1. Order'!AT874=\"\",\"\",'1. Order'!AT874)","v":""},null,null,null,null,null,null,null,{"$f":"IF('1. Order'!AX874=\"\",\"\",'1. Order'!AX874)","v":""},{"$f":"IF('1. Order'!AY874=\"\",\"\",'1. Order'!AY874)","v":""},{"$f":"IF('1. Order'!AZ874=\"\",\"\",'1. Order'!AZ874)","v":""},{"$f":"IF('1. Order'!BA874=\"\",\"\",'1. Order'!BA874)","v":""},{"$f":"IF('1. Order'!BC874=\"\",\"\",'1. Order'!BC874)","v":""},{"$f":"IF('1. Order'!BD874=\"\",\"\",'1. Order'!BD874)","v":6},{"$f":"IF('1. Order'!BE874=\"\",\"\",'1. Order'!BE874)","v":"None"},{"$f":"IF('1. Order'!BF874=\"\",\"\",'1. Order'!BF874)","v":"Parcel"},{"$f":"IF('1. Order'!BG874=\"\",\"\",'1. Order'!BG874)","v":"ZWO"}]
[{"$f":"IF('1. Order'!F875=\"\",\"\",'1. Order'!F875)","v":""},{"$f":"IF('1. Order'!G875=\"\",\"\",'1. Order'!G875)","v":""},{"$f":"IF('1. Order'!H875=\"\",\"\",'1. Order'!H875)","v":""},{"$f":"IF('1. Order'!I875=\"\",\"\",'1. Order'!I875)","v":""},{"$f":"IF('1. Order'!J875=\"\",\"\",'1. Order'!J875)","v":""},{"$f":"IF('1. Order'!K875=\"\",\"\",'1. Order'!K875)","v":""},{"$f":"IF('1. Order'!L875=\"\",\"\",'1. Order'!L875)","v":""},{"$f":"IF('1. Order'!M875=\"\",\"\",'1. Order'!M875)","v":""},{"$f":"IF('1. Order'!N875=\"\",\"\",'1. Order'!N875)","v":""},{"$f":"IF('1. Order'!O875=\"\",\"\",'1. Order'!O875)","v":{"$error":"#N/A"}},{"$f":"IF('1. Order'!P875=\"\",\"\",'1. Order'!P875)","v":{"$error":"#N/A"}},{"$f":"IF('1. Order'!Q875=\"\",\"\",'1. Order'!Q875)","v":""},{"$f":"IF('1. Order'!R875=\"\",\"\",'1. Order'!R875)","v":""},{"$f":"IF('1. Order'!S875=\"\",\"\",'1. Order'!S875)","v":""},{"$f":"IF('1. Order'!V875=\"\",\"\",'1. Order'!V875)","v":""},{"$f":"IF('1. Order'!W875=\"\",\"\",'1. Order'!W875)","v":""},{"$f":"IF('1. Order'!X875=\"\",\"\",'1. Order'!X875)","v":"EUR"},{"$f":"IF('1. Order'!Y875=\"\",\"\",'1. Order'!Y875)","v":""},{"$f":"IF('1. Order'!Z875=\"\",\"\",'1. Order'!Z875)","v":""},{"$f":"IF('1. Order'!AA875=\"\",\"\",'1. Order'!AA875)","v":""},null,{"$f":"IF('1. Order'!AS875=\"\",\"\",'1. Order'!AS875)","v":""},{"$f":"IF('1. Order'!AT875=\"\",\"\",'1. Order'!AT875)","v":""},null,null,null,null,null,null,null,{"$f":"IF('1. Order'!AX875=\"\",\"\",'1. Order'!AX875)","v":""},{"$f":"IF('1. Order'!AY875=\"\",\"\",'1. Order'!AY875)","v":""},{"$f":"IF('1. Order'!AZ875=\"\",\"\",'1. Order'!AZ875)","v":""},{"$f":"IF('1. Order'!BA875=\"\",\"\",'1. Order'!BA875)","v":""},{"$f":"IF('1. Order'!BC875=\"\",\"\",'1. Order'!BC875)","v":""},{"$f":"IF('1. Order'!BD875=\"\",\"\",'1. Order'!BD875)","v":6},{"$f":"IF('1. Order'!BE875=\"\",\"\",'1. Order'!BE875)","v":"None"},{"$f":"IF('1. Order'!BF875=\"\",\"\",'1. Order'!BF875)","v":"Parcel"},{"$f":"IF('1. Order'!BG875=\"\",\"\",'1. Order'!BG875)","v":"ZWO"}]
[{"$f":"IF('1. Order'!F876=\"\",\"\",'1. Order'!F876)","v":""},{"$f":"IF('1. Order'!G876=\"\",\"\",'1. Order'!G876)","v":""},{"$f":"IF('1. Order'!H876=\"\",\"\",'1. Order'!H876)","v":""},{"$f":"IF('1. Order'!I876=\"\",\"\",'1. Order'!I876)","v":""},{"$f":"IF('1. Order'!J876=\"\",\"\",'1. Order'!J876)","v":""},{"$f":"IF('1. Order'!K876=\"\",\"\",'1. Order'!K876)","v":""},{"$f":"IF('1. Order'!L876=\"\",\"\",'1. Order'!L876)","v":""},{"$f":"IF('1. Order'!M876=\"\",\"\",'1. Order'!M876)","v":""},{"$f":"IF('1. Order'!N876=\"\",\"\",'1. Order'!N876)","v":""},{"$f":"IF('1. Order'!O876=\"\",\"\",'1. Order'!O876)","v":{"$error":"#N/A"}},{"$f":"IF('1. Order'!P876=\"\",\"\",'1. Order'!P876)","v":{"$error":"#N/A"}},{"$f":"IF('1. Order'!Q876=\"\",\"\",'1. Order'!Q876)","v":""},{"$f":"IF('1. Order'!R876=\"\",\"\",'1. Order'!R876)","v":""},{"$f":"IF('1. Order'!S876=\"\",\"\",'1. Order'!S876)","v":""},{"$f":"IF('1. Order'!V876=\"\",\"\",'1. Order'!V876)","v":""},{"$f":"IF('1. Order'!W876=\"\",\"\",'1. Order'!W876)","v":""},{"$f":"IF('1. Order'!X876=\"\",\"\",'1. Order'!X876)","v":"EUR"},{"$f":"IF('1. Order'!Y876=\"\",\"\",'1. Order'!Y876)","v":""},{"$f":"IF('1. Order'!Z876=\"\",\"\",'1. Order'!Z876)","v":""},{"$f":"IF('1. Order'!AA876=\"\",\"\",'1. Order'!AA876)","v":""},null,{"$f":"IF('1. Order'!AS876=\"\",\"\",'1. Order'!AS876)","v":""},{"$f":"IF('1. Order'!AT876=\"\",\"\",'1. Order'!AT876)","v":""},null,null,null,null,null,null,null,{"$f":"IF('1. Order'!AX876=\"\",\"\",'1. Order'!AX876)","v":""},{"$f":"IF('1. Order'!AY876=\"\",\"\",'1. Order'!AY876)","v":""},{"$f":"IF('1. Order'!AZ876=\"\",\"\",'1. Order'!AZ876)","v":""},{"$f":"IF('1. Order'!BA876=\"\",\"\",'1. Order'!BA876)","v":""},{"$f":"IF('1. Order'!BC876=\"\",\"\",'1. Order'!BC876)","v":""},{"$f":"IF('1. Order'!BD876=\"\",\"\",'1. Order'!BD876)","v":6},{"$f":"IF('1. Order'!BE876=\"\",\"\",'1. Order'!BE876)","v":"None"},{"$f":"IF('1. Order'!BF876=\"\",\"\",'1. Order'!BF876)","v":"Parcel"},{"$f":"IF('1. Order'!BG876=\"\",\"\",'1. Order'!BG876)","v":"ZWO"}]
[{"$f":"IF('1. Order'!F877=\"\",\"\",'1. Order'!F877)","v":""},{"$f":"IF('1. Order'!G877=\"\",\"\",'1. Order'!G877)","v":""},{"$f":"IF('1. Order'!H877=\"\",\"\",'1. Order'!H877)","v":""},{"$f":"IF('1. Order'!I877=\"\",\"\",'1. Order'!I877)","v":""},{"$f":"IF('1. Order'!J877=\"\",\"\",'1. Order'!J877)","v":""},{"$f":"IF('1. Order'!K877=\"\",\"\",'1. Order'!K877)","v":""},{"$f":"IF('1. Order'!L877=\"\",\"\",'1. Order'!L877)","v":""},{"$f":"IF('1. Order'!M877=\"\",\"\",'1. Order'!M877)","v":""},{"$f":"IF('1. Order'!N877=\"\",\"\",'1. Order'!N877)","v":""},{"$f":"IF('1. Order'!O877=\"\",\"\",'1. Order'!O877)","v":{"$error":"#N/A"}},{"$f":"IF('1. Order'!P877=\"\",\"\",'1. Order'!P877)","v":{"$error":"#N/A"}},{"$f":"IF('1. Order'!Q877=\"\",\"\",'1. Order'!Q877)","v":""},{"$f":"IF('1. Order'!R877=\"\",\"\",'1. Order'!R877)","v":""},{"$f":"IF('1. Order'!S877=\"\",\"\",'1. Order'!S877)","v":""},{"$f":"IF('1. Order'!V877=\"\",\"\",'1. Order'!V877)","v":""},{"$f":"IF('1. Order'!W877=\"\",\"\",'1. Order'!W877)","v":""},{"$f":"IF('1. Order'!X877=\"\",\"\",'1. Order'!X877)","v":"EUR"},{"$f":"IF('1. Order'!Y877=\"\",\"\",'1. Order'!Y877)","v":""},{"$f":"IF('1. Order'!Z877=\"\",\"\",'1. Order'!Z877)","v":""},{"$f":"IF('1. Order'!AA877=\"\",\"\",'1. Order'!AA877)","v":""},null,{"$f":"IF('1. Order'!AS877=\"\",\"\",'1. Order'!AS877)","v":""},{"$f":"IF('1. Order'!AT877=\"\",\"\",'1. Order'!AT877)","v":""},null,null,null,null,null,null,null,{"$f":"IF('1. Order'!AX877=\"\",\"\",'1. Order'!AX877)","v":""},{"$f":"IF('1. Order'!AY877=\"\",\"\",'1. Order'!AY877)","v":""},{"$f":"IF('1. Order'!AZ877=\"\",\"\",'1. Order'!AZ877)","v":""},{"$f":"IF('1. Order'!BA877=\"\",\"\",'1. Order'!BA877)","v":""},{"$f":"IF('1. Order'!BC877=\"\",\"\",'1. Order'!BC877)","v":""},{"$f":"IF('1. Order'!BD877=\"\",\"\",'1. Order'!BD877)","v":6},{"$f":"IF('1. Order'!BE877=\"\",\"\",'1. Order'!BE877)","v":"None"},{"$f":"IF('1. Order'!BF877=\"\",\"\",'1. Order'!BF877)","v":"Parcel"},{"$f":"IF('1. Order'!BG877=\"\",\"\",'1. Order'!BG877)","v":"ZWO"}]
[{"$f":"IF('1. Order'!F878=\"\",\"\",'1. Order'!F878)","v":""},{"$f":"IF('1. Order'!G878=\"\",\"\",'1. Order'!G878)","v":""},{"$f":"IF('1. Order'!H878=\"\",\"\",'1. Order'!H878)","v":""},{"$f":"IF('1. Order'!I878=\"\",\"\",'1. Order'!I878)","v":""},{"$f":"IF('1. Order'!J878=\"\",\"\",'1. Order'!J878)","v":""},{"$f":"IF('1. Order'!K878=\"\",\"\",'1. Order'!K878)","v":""},{"$f":"IF('1. Order'!L878=\"\",\"\",'1. Order'!L878)","v":""},{"$f":"IF('1. Order'!M878=\"\",\"\",'1. Order'!M878)","v":""},{"$f":"IF('1. Order'!N878=\"\",\"\",'1. Order'!N878)","v":""},{"$f":"IF('1. Order'!O878=\"\",\"\",'1. Order'!O878)","v":{"$error":"#N/A"}},{"$f":"IF('1. Order'!P878=\"\",\"\",'1. Order'!P878)","v":{"$error":"#N/A"}},{"$f":"IF('1. Order'!Q878=\"\",\"\",'1. Order'!Q878)","v":""},{"$f":"IF('1. Order'!R878=\"\",\"\",'1. Order'!R878)","v":""},{"$f":"IF('1. Order'!S878=\"\",\"\",'1. Order'!S878)","v":""},{"$f":"IF('1. Order'!V878=\"\",\"\",'1. Order'!V878)","v":""},{"$f":"IF('1. Order'!W878=\"\",\"\",'1. Order'!W878)","v":""},{"$f":"IF('1. Order'!X878=\"\",\"\",'1. Order'!X878)","v":"EUR"},{"$f":"IF('1. Order'!Y878=\"\",\"\",'1. Order'!Y878)","v":""},{"$f":"IF('1. Order'!Z878=\"\",\"\",'1. Order'!Z878)","v":""},{"$f":"IF('1. Order'!AA878=\"\",\"\",'1. Order'!AA878)","v":""},null,{"$f":"IF('1. Order'!AS878=\"\",\"\",'1. Order'!AS878)","v":""},{"$f":"IF('1. Order'!AT878=\"\",\"\",'1. Order'!AT878)","v":""},null,null,null,null,null,null,null,{"$f":"IF('1. Order'!AX878=\"\",\"\",'1. Order'!AX878)","v":""},{"$f":"IF('1. Order'!AY878=\"\",\"\",'1. Order'!AY878)","v":""},{"$f":"IF('1. Order'!AZ878=\"\",\"\",'1. Order'!AZ878)","v":""},{"$f":"IF('1. Order'!BA878=\"\",\"\",'1. Order'!BA878)","v":""},{"$f":"IF('1. Order'!BC878=\"\",\"\",'1. Order'!BC878)","v":""},{"$f":"IF('1. Order'!BD878=\"\",\"\",'1. Order'!BD878)","v":6},{"$f":"IF('1. Order'!BE878=\"\",\"\",'1. Order'!BE878)","v":"None"},{"$f":"IF('1. Order'!BF878=\"\",\"\",'1. Order'!BF878)","v":"Parcel"},{"$f":"IF('1. Order'!BG878=\"\",\"\",'1. Order'!BG878)","v":"ZWO"}]
[{"$f":"IF('1. Order'!F879=\"\",\"\",'1. Order'!F879)","v":""},{"$f":"IF('1. Order'!G879=\"\",\"\",'1. Order'!G879)","v":""},{"$f":"IF('1. Order'!H879=\"\",\"\",'1. Order'!H879)","v":""},{"$f":"IF('1. Order'!I879=\"\",\"\",'1. Order'!I879)","v":""},{"$f":"IF('1. Order'!J879=\"\",\"\",'1. Order'!J879)","v":""},{"$f":"IF('1. Order'!K879=\"\",\"\",'1. Order'!K879)","v":""},{"$f":"IF('1. Order'!L879=\"\",\"\",'1. Order'!L879)","v":""},{"$f":"IF('1. Order'!M879=\"\",\"\",'1. Order'!M879)","v":""},{"$f":"IF('1. Order'!N879=\"\",\"\",'1. Order'!N879)","v":""},{"$f":"IF('1. Order'!O879=\"\",\"\",'1. Order'!O879)","v":{"$error":"#N/A"}},{"$f":"IF('1. Order'!P879=\"\",\"\",'1. Order'!P879)","v":{"$error":"#N/A"}},{"$f":"IF('1. Order'!Q879=\"\",\"\",'1. Order'!Q879)","v":""},{"$f":"IF('1. Order'!R879=\"\",\"\",'1. Order'!R879)","v":""},{"$f":"IF('1. Order'!S879=\"\",\"\",'1. Order'!S879)","v":""},{"$f":"IF('1. Order'!V879=\"\",\"\",'1. Order'!V879)","v":""},{"$f":"IF('1. Order'!W879=\"\",\"\",'1. Order'!W879)","v":""},{"$f":"IF('1. Order'!X879=\"\",\"\",'1. Order'!X879)","v":"EUR"},{"$f":"IF('1. Order'!Y879=\"\",\"\",'1. Order'!Y879)","v":""},{"$f":"IF('1. Order'!Z879=\"\",\"\",'1. Order'!Z879)","v":""},{"$f":"IF('1. Order'!AA879=\"\",\"\",'1. Order'!AA879)","v":""},null,{"$f":"IF('1. Order'!AS879=\"\",\"\",'1. Order'!AS879)","v":""},{"$f":"IF('1. Order'!AT879=\"\",\"\",'1. Order'!AT879)","v":""},null,null,null,null,null,null,null,{"$f":"IF('1. Order'!AX879=\"\",\"\",'1. Order'!AX879)","v":""},{"$f":"IF('1. Order'!AY879=\"\",\"\",'1. Order'!AY879)","v":""},{"$f":"IF('1. Order'!AZ879=\"\",\"\",'1. Order'!AZ879)","v":""},{"$f":"IF('1. Order'!BA879=\"\",\"\",'1. Order'!BA879)","v":""},{"$f":"IF('1. Order'!BC879=\"\",\"\",'1. Order'!BC879)","v":""},{"$f":"IF('1. Order'!BD879=\"\",\"\",'1. Order'!BD879)","v":6},{"$f":"IF('1. Order'!BE879=\"\",\"\",'1. Order'!BE879)","v":"None"},{"$f":"IF('1. Order'!BF879=\"\",\"\",'1. Order'!BF879)","v":"Parcel"},{"$f":"IF('1. Order'!BG879=\"\",\"\",'1. Order'!BG879)","v":"ZWO"}]
[{"$f":"IF('1. Order'!F880=\"\",\"\",'1. Order'!F880)","v":""},{"$f":"IF('1. Order'!G880=\"\",\"\",'1. Order'!G880)","v":""},{"$f":"IF('1. Order'!H880=\"\",\"\",'1. Order'!H880)","v":""},{"$f":"IF('1. Order'!I880=\"\",\"\",'1. Order'!I880)","v":""},{"$f":"IF('1. Order'!J880=\"\",\"\",'1. Order'!J880)","v":""},{"$f":"IF('1. Order'!K880=\"\",\"\",'1. Order'!K880)","v":""},{"$f":"IF('1. Order'!L880=\"\",\"\",'1. Order'!L880)","v":""},{"$f":"IF('1. Order'!M880=\"\",\"\",'1. Order'!M880)","v":""},{"$f":"IF('1. Order'!N880=\"\",\"\",'1. Order'!N880)","v":""},{"$f":"IF('1. Order'!O880=\"\",\"\",'1. Order'!O880)","v":{"$error":"#N/A"}},{"$f":"IF('1. Order'!P880=\"\",\"\",'1. Order'!P880)","v":{"$error":"#N/A"}},{"$f":"IF('1. Order'!Q880=\"\",\"\",'1. Order'!Q880)","v":""},{"$f":"IF('1. Order'!R880=\"\",\"\",'1. Order'!R880)","v":""},{"$f":"IF('1. Order'!S880=\"\",\"\",'1. Order'!S880)","v":""},{"$f":"IF('1. Order'!V880=\"\",\"\",'1. Order'!V880)","v":""},{"$f":"IF('1. Order'!W880=\"\",\"\",'1. Order'!W880)","v":""},{"$f":"IF('1. Order'!X880=\"\",\"\",'1. Order'!X880)","v":"EUR"},{"$f":"IF('1. Order'!Y880=\"\",\"\",'1. Order'!Y880)","v":""},{"$f":"IF('1. Order'!Z880=\"\",\"\",'1. Order'!Z880)","v":""},{"$f":"IF('1. Order'!AA880=\"\",\"\",'1. Order'!AA880)","v":""},null,{"$f":"IF('1. Order'!AS880=\"\",\"\",'1. Order'!AS880)","v":""},{"$f":"IF('1. Order'!AT880=\"\",\"\",'1. Order'!AT880)","v":""},null,null,null,null,null,null,null,{"$f":"IF('1. Order'!AX880=\"\",\"\",'1. Order'!AX880)","v":""},{"$f":"IF('1. Order'!AY880=\"\",\"\",'1. Order'!AY880)","v":""},{"$f":"IF('1. Order'!AZ880=\"\",\"\",'1. Order'!AZ880)","v":""},{"$f":"IF('1. Order'!BA880=\"\",\"\",'1. Order'!BA880)","v":""},{"$f":"IF('1. Order'!BC880=\"\",\"\",'1. Order'!BC880)","v":""},{"$f":"IF('1. Order'!BD880=\"\",\"\",'1. Order'!BD880)","v":6},{"$f":"IF('1. Order'!BE880=\"\",\"\",'1. Order'!BE880)","v":"None"},{"$f":"IF('1. Order'!BF880=\"\",\"\",'1. Order'!BF880)","v":"Parcel"},{"$f":"IF('1. Order'!BG880=\"\",\"\",'1. Order'!BG880)","v":"ZWO"}]
[{"$f":"IF('1. Order'!F881=\"\",\"\",'1. Order'!F881)","v":""},{"$f":"IF('1. Order'!G881=\"\",\"\",'1. Order'!G881)","v":""},{"$f":"IF('1. Order'!H881=\"\",\"\",'1. Order'!H881)","v":""},{"$f":"IF('1. Order'!I881=\"\",\"\",'1. Order'!I881)","v":""},{"$f":"IF('1. Order'!J881=\"\",\"\",'1. Order'!J881)","v":""},{"$f":"IF('1. Order'!K881=\"\",\"\",'1. Order'!K881)","v":""},{"$f":"IF('1. Order'!L881=\"\",\"\",'1. Order'!L881)","v":""},{"$f":"IF('1. Order'!M881=\"\",\"\",'1. Order'!M881)","v":""},{"$f":"IF('1. Order'!N881=\"\",\"\",'1. Order'!N881)","v":""},{"$f":"IF('1. Order'!O881=\"\",\"\",'1. Order'!O881)","v":{"$error":"#N/A"}},{"$f":"IF('1. Order'!P881=\"\",\"\",'1. Order'!P881)","v":{"$error":"#N/A"}},{"$f":"IF('1. Order'!Q881=\"\",\"\",'1. Order'!Q881)","v":""},{"$f":"IF('1. Order'!R881=\"\",\"\",'1. Order'!R881)","v":""},{"$f":"IF('1. Order'!S881=\"\",\"\",'1. Order'!S881)","v":""},{"$f":"IF('1. Order'!V881=\"\",\"\",'1. Order'!V881)","v":""},{"$f":"IF('1. Order'!W881=\"\",\"\",'1. Order'!W881)","v":""},{"$f":"IF('1. Order'!X881=\"\",\"\",'1. Order'!X881)","v":"EUR"},{"$f":"IF('1. Order'!Y881=\"\",\"\",'1. Order'!Y881)","v":""},{"$f":"IF('1. Order'!Z881=\"\",\"\",'1. Order'!Z881)","v":""},{"$f":"IF('1. Order'!AA881=\"\",\"\",'1. Order'!AA881)","v":""},null,{"$f":"IF('1. Order'!AS881=\"\",\"\",'1. Order'!AS881)","v":""},{"$f":"IF('1. Order'!AT881=\"\",\"\",'1. Order'!AT881)","v":""},null,null,null,null,null,null,null,{"$f":"IF('1. Order'!AX881=\"\",\"\",'1. Order'!AX881)","v":""},{"$f":"IF('1. Order'!AY881=\"\",\"\",'1. Order'!AY881)","v":""},{"$f":"IF('1. Order'!AZ881=\"\",\"\",'1. Order'!AZ881)","v":""},{"$f":"IF('1. Order'!BA881=\"\",\"\",'1. Order'!BA881)","v":""},{"$f":"IF('1. Order'!BC881=\"\",\"\",'1. Order'!BC881)","v":""},{"$f":"IF('1. Order'!BD881=\"\",\"\",'1. Order'!BD881)","v":6},{"$f":"IF('1. Order'!BE881=\"\",\"\",'1. Order'!BE881)","v":"None"},{"$f":"IF('1. Order'!BF881=\"\",\"\",'1. Order'!BF881)","v":"Parcel"},{"$f":"IF('1. Order'!BG881=\"\",\"\",'1. Order'!BG881)","v":"ZWO"}]
[{"$f":"IF('1. Order'!F882=\"\",\"\",'1. Order'!F882)","v":""},{"$f":"IF('1. Order'!G882=\"\",\"\",'1. Order'!G882)","v":""},{"$f":"IF('1. Order'!H882=\"\",\"\",'1. Order'!H882)","v":""},{"$f":"IF('1. Order'!I882=\"\",\"\",'1. Order'!I882)","v":""},{"$f":"IF('1. Order'!J882=\"\",\"\",'1. Order'!J882)","v":""},{"$f":"IF('1. Order'!K882=\"\",\"\",'1. Order'!K882)","v":""},{"$f":"IF('1. Order'!L882=\"\",\"\",'1. Order'!L882)","v":""},{"$f":"IF('1. Order'!M882=\"\",\"\",'1. Order'!M882)","v":""},{"$f":"IF('1. Order'!N882=\"\",\"\",'1. Order'!N882)","v":""},{"$f":"IF('1. Order'!O882=\"\",\"\",'1. Order'!O882)","v":{"$error":"#N/A"}},{"$f":"IF('1. Order'!P882=\"\",\"\",'1. Order'!P882)","v":{"$error":"#N/A"}},{"$f":"IF('1. Order'!Q882=\"\",\"\",'1. Order'!Q882)","v":""},{"$f":"IF('1. Order'!R882=\"\",\"\",'1. Order'!R882)","v":""},{"$f":"IF('1. Order'!S882=\"\",\"\",'1. Order'!S882)","v":""},{"$f":"IF('1. Order'!V882=\"\",\"\",'1. Order'!V882)","v":""},{"$f":"IF('1. Order'!W882=\"\",\"\",'1. Order'!W882)","v":""},{"$f":"IF('1. Order'!X882=\"\",\"\",'1. Order'!X882)","v":"EUR"},{"$f":"IF('1. Order'!Y882=\"\",\"\",'1. Order'!Y882)","v":""},{"$f":"IF('1. Order'!Z882=\"\",\"\",'1. Order'!Z882)","v":""},{"$f":"IF('1. Order'!AA882=\"\",\"\",'1. Order'!AA882)","v":""},null,{"$f":"IF('1. Order'!AS882=\"\",\"\",'1. Order'!AS882)","v":""},{"$f":"IF('1. Order'!AT882=\"\",\"\",'1. Order'!AT882)","v":""},null,null,null,null,null,null,null,{"$f":"IF('1. Order'!AX882=\"\",\"\",'1. Order'!AX882)","v":""},{"$f":"IF('1. Order'!AY882=\"\",\"\",'1. Order'!AY882)","v":""},{"$f":"IF('1. Order'!AZ882=\"\",\"\",'1. Order'!AZ882)","v":""},{"$f":"IF('1. Order'!BA882=\"\",\"\",'1. Order'!BA882)","v":""},{"$f":"IF('1. Order'!BC882=\"\",\"\",'1. Order'!BC882)","v":""},{"$f":"IF('1. Order'!BD882=\"\",\"\",'1. Order'!BD882)","v":6},{"$f":"IF('1. Order'!BE882=\"\",\"\",'1. Order'!BE882)","v":"None"},{"$f":"IF('1. Order'!BF882=\"\",\"\",'1. Order'!BF882)","v":"Parcel"},{"$f":"IF('1. Order'!BG882=\"\",\"\",'1. Order'!BG882)","v":"ZWO"}]
[{"$f":"IF('1. Order'!F883=\"\",\"\",'1. Order'!F883)","v":""},{"$f":"IF('1. Order'!G883=\"\",\"\",'1. Order'!G883)","v":""},{"$f":"IF('1. Order'!H883=\"\",\"\",'1. Order'!H883)","v":""},{"$f":"IF('1. Order'!I883=\"\",\"\",'1. Order'!I883)","v":""},{"$f":"IF('1. Order'!J883=\"\",\"\",'1. Order'!J883)","v":""},{"$f":"IF('1. Order'!K883=\"\",\"\",'1. Order'!K883)","v":""},{"$f":"IF('1. Order'!L883=\"\",\"\",'1. Order'!L883)","v":""},{"$f":"IF('1. Order'!M883=\"\",\"\",'1. Order'!M883)","v":""},{"$f":"IF('1. Order'!N883=\"\",\"\",'1. Order'!N883)","v":""},{"$f":"IF('1. Order'!O883=\"\",\"\",'1. Order'!O883)","v":{"$error":"#N/A"}},{"$f":"IF('1. Order'!P883=\"\",\"\",'1. Order'!P883)","v":{"$error":"#N/A"}},{"$f":"IF('1. Order'!Q883=\"\",\"\",'1. Order'!Q883)","v":""},{"$f":"IF('1. Order'!R883=\"\",\"\",'1. Order'!R883)","v":""},{"$f":"IF('1. Order'!S883=\"\",\"\",'1. Order'!S883)","v":""},{"$f":"IF('1. Order'!V883=\"\",\"\",'1. Order'!V883)","v":""},{"$f":"IF('1. Order'!W883=\"\",\"\",'1. Order'!W883)","v":""},{"$f":"IF('1. Order'!X883=\"\",\"\",'1. Order'!X883)","v":"EUR"},{"$f":"IF('1. Order'!Y883=\"\",\"\",'1. Order'!Y883)","v":""},{"$f":"IF('1. Order'!Z883=\"\",\"\",'1. Order'!Z883)","v":""},{"$f":"IF('1. Order'!AA883=\"\",\"\",'1. Order'!AA883)","v":""},null,{"$f":"IF('1. Order'!AS883=\"\",\"\",'1. Order'!AS883)","v":""},{"$f":"IF('1. Order'!AT883=\"\",\"\",'1. Order'!AT883)","v":""},null,null,null,null,null,null,null,{"$f":"IF('1. Order'!AX883=\"\",\"\",'1. Order'!AX883)","v":""},{"$f":"IF('1. Order'!AY883=\"\",\"\",'1. Order'!AY883)","v":""},{"$f":"IF('1. Order'!AZ883=\"\",\"\",'1. Order'!AZ883)","v":""},{"$f":"IF('1. Order'!BA883=\"\",\"\",'1. Order'!BA883)","v":""},{"$f":"IF('1. Order'!BC883=\"\",\"\",'1. Order'!BC883)","v":""},{"$f":"IF('1. Order'!BD883=\"\",\"\",'1. Order'!BD883)","v":6},{"$f":"IF('1. Order'!BE883=\"\",\"\",'1. Order'!BE883)","v":"None"},{"$f":"IF('1. Order'!BF883=\"\",\"\",'1. Order'!BF883)","v":"Parcel"},{"$f":"IF('1. Order'!BG883=\"\",\"\",'1. Order'!BG883)","v":"ZWO"}]
[{"$f":"IF('1. Order'!F884=\"\",\"\",'1. Order'!F884)","v":""},{"$f":"IF('1. Order'!G884=\"\",\"\",'1. Order'!G884)","v":""},{"$f":"IF('1. Order'!H884=\"\",\"\",'1. Order'!H884)","v":""},{"$f":"IF('1. Order'!I884=\"\",\"\",'1. Order'!I884)","v":""},{"$f":"IF('1. Order'!J884=\"\",\"\",'1. Order'!J884)","v":""},{"$f":"IF('1. Order'!K884=\"\",\"\",'1. Order'!K884)","v":""},{"$f":"IF('1. Order'!L884=\"\",\"\",'1. Order'!L884)","v":""},{"$f":"IF('1. Order'!M884=\"\",\"\",'1. Order'!M884)","v":""},{"$f":"IF('1. Order'!N884=\"\",\"\",'1. Order'!N884)","v":""},{"$f":"IF('1. Order'!O884=\"\",\"\",'1. Order'!O884)","v":{"$error":"#N/A"}},{"$f":"IF('1. Order'!P884=\"\",\"\",'1. Order'!P884)","v":{"$error":"#N/A"}},{"$f":"IF('1. Order'!Q884=\"\",\"\",'1. Order'!Q884)","v":""},{"$f":"IF('1. Order'!R884=\"\",\"\",'1. Order'!R884)","v":""},{"$f":"IF('1. Order'!S884=\"\",\"\",'1. Order'!S884)","v":""},{"$f":"IF('1. Order'!V884=\"\",\"\",'1. Order'!V884)","v":""},{"$f":"IF('1. Order'!W884=\"\",\"\",'1. Order'!W884)","v":""},{"$f":"IF('1. Order'!X884=\"\",\"\",'1. Order'!X884)","v":"EUR"},{"$f":"IF('1. Order'!Y884=\"\",\"\",'1. Order'!Y884)","v":""},{"$f":"IF('1. Order'!Z884=\"\",\"\",'1. Order'!Z884)","v":""},{"$f":"IF('1. Order'!AA884=\"\",\"\",'1. Order'!AA884)","v":""},null,{"$f":"IF('1. Order'!AS884=\"\",\"\",'1. Order'!AS884)","v":""},{"$f":"IF('1. Order'!AT884=\"\",\"\",'1. Order'!AT884)","v":""},null,null,null,null,null,null,null,{"$f":"IF('1. Order'!AX884=\"\",\"\",'1. Order'!AX884)","v":""},{"$f":"IF('1. Order'!AY884=\"\",\"\",'1. Order'!AY884)","v":""},{"$f":"IF('1. Order'!AZ884=\"\",\"\",'1. Order'!AZ884)","v":""},{"$f":"IF('1. Order'!BA884=\"\",\"\",'1. Order'!BA884)","v":""},{"$f":"IF('1. Order'!BC884=\"\",\"\",'1. Order'!BC884)","v":""},{"$f":"IF('1. Order'!BD884=\"\",\"\",'1. Order'!BD884)","v":6},{"$f":"IF('1. Order'!BE884=\"\",\"\",'1. Order'!BE884)","v":"None"},{"$f":"IF('1. Order'!BF884=\"\",\"\",'1. Order'!BF884)","v":"Parcel"},{"$f":"IF('1. Order'!BG884=\"\",\"\",'1. Order'!BG884)","v":"ZWO"}]
[{"$f":"IF('1. Order'!F885=\"\",\"\",'1. Order'!F885)","v":""},{"$f":"IF('1. Order'!G885=\"\",\"\",'1. Order'!G885)","v":""},{"$f":"IF('1. Order'!H885=\"\",\"\",'1. Order'!H885)","v":""},{"$f":"IF('1. Order'!I885=\"\",\"\",'1. Order'!I885)","v":""},{"$f":"IF('1. Order'!J885=\"\",\"\",'1. Order'!J885)","v":""},{"$f":"IF('1. Order'!K885=\"\",\"\",'1. Order'!K885)","v":""},{"$f":"IF('1. Order'!L885=\"\",\"\",'1. Order'!L885)","v":""},{"$f":"IF('1. Order'!M885=\"\",\"\",'1. Order'!M885)","v":""},{"$f":"IF('1. Order'!N885=\"\",\"\",'1. Order'!N885)","v":""},{"$f":"IF('1. Order'!O885=\"\",\"\",'1. Order'!O885)","v":{"$error":"#N/A"}},{"$f":"IF('1. Order'!P885=\"\",\"\",'1. Order'!P885)","v":{"$error":"#N/A"}},{"$f":"IF('1. Order'!Q885=\"\",\"\",'1. Order'!Q885)","v":""},{"$f":"IF('1. Order'!R885=\"\",\"\",'1. Order'!R885)","v":""},{"$f":"IF('1. Order'!S885=\"\",\"\",'1. Order'!S885)","v":""},{"$f":"IF('1. Order'!V885=\"\",\"\",'1. Order'!V885)","v":""},{"$f":"IF('1. Order'!W885=\"\",\"\",'1. Order'!W885)","v":""},{"$f":"IF('1. Order'!X885=\"\",\"\",'1. Order'!X885)","v":"EUR"},{"$f":"IF('1. Order'!Y885=\"\",\"\",'1. Order'!Y885)","v":""},{"$f":"IF('1. Order'!Z885=\"\",\"\",'1. Order'!Z885)","v":""},{"$f":"IF('1. Order'!AA885=\"\",\"\",'1. Order'!AA885)","v":""},null,{"$f":"IF('1. Order'!AS885=\"\",\"\",'1. Order'!AS885)","v":""},{"$f":"IF('1. Order'!AT885=\"\",\"\",'1. Order'!AT885)","v":""},null,null,null,null,null,null,null,{"$f":"IF('1. Order'!AX885=\"\",\"\",'1. Order'!AX885)","v":""},{"$f":"IF('1. Order'!AY885=\"\",\"\",'1. Order'!AY885)","v":""},{"$f":"IF('1. Order'!AZ885=\"\",\"\",'1. Order'!AZ885)","v":""},{"$f":"IF('1. Order'!BA885=\"\",\"\",'1. Order'!BA885)","v":""},{"$f":"IF('1. Order'!BC885=\"\",\"\",'1. Order'!BC885)","v":""},{"$f":"IF('1. Order'!BD885=\"\",\"\",'1. Order'!BD885)","v":6},{"$f":"IF('1. Order'!BE885=\"\",\"\",'1. Order'!BE885)","v":"None"},{"$f":"IF('1. Order'!BF885=\"\",\"\",'1. Order'!BF885)","v":"Parcel"},{"$f":"IF('1. Order'!BG885=\"\",\"\",'1. Order'!BG885)","v":"ZWO"}]
[{"$f":"IF('1. Order'!F886=\"\",\"\",'1. Order'!F886)","v":""},{"$f":"IF('1. Order'!G886=\"\",\"\",'1. Order'!G886)","v":""},{"$f":"IF('1. Order'!H886=\"\",\"\",'1. Order'!H886)","v":""},{"$f":"IF('1. Order'!I886=\"\",\"\",'1. Order'!I886)","v":""},{"$f":"IF('1. Order'!J886=\"\",\"\",'1. Order'!J886)","v":""},{"$f":"IF('1. Order'!K886=\"\",\"\",'1. Order'!K886)","v":""},{"$f":"IF('1. Order'!L886=\"\",\"\",'1. Order'!L886)","v":""},{"$f":"IF('1. Order'!M886=\"\",\"\",'1. Order'!M886)","v":""},{"$f":"IF('1. Order'!N886=\"\",\"\",'1. Order'!N886)","v":""},{"$f":"IF('1. Order'!O886=\"\",\"\",'1. Order'!O886)","v":{"$error":"#N/A"}},{"$f":"IF('1. Order'!P886=\"\",\"\",'1. Order'!P886)","v":{"$error":"#N/A"}},{"$f":"IF('1. Order'!Q886=\"\",\"\",'1. Order'!Q886)","v":""},{"$f":"IF('1. Order'!R886=\"\",\"\",'1. Order'!R886)","v":""},{"$f":"IF('1. Order'!S886=\"\",\"\",'1. Order'!S886)","v":""},{"$f":"IF('1. Order'!V886=\"\",\"\",'1. Order'!V886)","v":""},{"$f":"IF('1. Order'!W886=\"\",\"\",'1. Order'!W886)","v":""},{"$f":"IF('1. Order'!X886=\"\",\"\",'1. Order'!X886)","v":"EUR"},{"$f":"IF('1. Order'!Y886=\"\",\"\",'1. Order'!Y886)","v":""},{"$f":"IF('1. Order'!Z886=\"\",\"\",'1. Order'!Z886)","v":""},{"$f":"IF('1. Order'!AA886=\"\",\"\",'1. Order'!AA886)","v":""},null,{"$f":"IF('1. Order'!AS886=\"\",\"\",'1. Order'!AS886)","v":""},{"$f":"IF('1. Order'!AT886=\"\",\"\",'1. Order'!AT886)","v":""},null,null,null,null,null,null,null,{"$f":"IF('1. Order'!AX886=\"\",\"\",'1. Order'!AX886)","v":""},{"$f":"IF('1. Order'!AY886=\"\",\"\",'1. Order'!AY886)","v":""},{"$f":"IF('1. Order'!AZ886=\"\",\"\",'1. Order'!AZ886)","v":""},{"$f":"IF('1. Order'!BA886=\"\",\"\",'1. Order'!BA886)","v":""},{"$f":"IF('1. Order'!BC886=\"\",\"\",'1. Order'!BC886)","v":""},{"$f":"IF('1. Order'!BD886=\"\",\"\",'1. Order'!BD886)","v":6},{"$f":"IF('1. Order'!BE886=\"\",\"\",'1. Order'!BE886)","v":"None"},{"$f":"IF('1. Order'!BF886=\"\",\"\",'1. Order'!BF886)","v":"Parcel"},{"$f":"IF('1. Order'!BG886=\"\",\"\",'1. Order'!BG886)","v":"ZWO"}]
[{"$f":"IF('1. Order'!F887=\"\",\"\",'1. Order'!F887)","v":""},{"$f":"IF('1. Order'!G887=\"\",\"\",'1. Order'!G887)","v":""},{"$f":"IF('1. Order'!H887=\"\",\"\",'1. Order'!H887)","v":""},{"$f":"IF('1. Order'!I887=\"\",\"\",'1. Order'!I887)","v":""},{"$f":"IF('1. Order'!J887=\"\",\"\",'1. Order'!J887)","v":""},{"$f":"IF('1. Order'!K887=\"\",\"\",'1. Order'!K887)","v":""},{"$f":"IF('1. Order'!L887=\"\",\"\",'1. Order'!L887)","v":""},{"$f":"IF('1. Order'!M887=\"\",\"\",'1. Order'!M887)","v":""},{"$f":"IF('1. Order'!N887=\"\",\"\",'1. Order'!N887)","v":""},{"$f":"IF('1. Order'!O887=\"\",\"\",'1. Order'!O887)","v":{"$error":"#N/A"}},{"$f":"IF('1. Order'!P887=\"\",\"\",'1. Order'!P887)","v":{"$error":"#N/A"}},{"$f":"IF('1. Order'!Q887=\"\",\"\",'1. Order'!Q887)","v":""},{"$f":"IF('1. Order'!R887=\"\",\"\",'1. Order'!R887)","v":""},{"$f":"IF('1. Order'!S887=\"\",\"\",'1. Order'!S887)","v":""},{"$f":"IF('1. Order'!V887=\"\",\"\",'1. Order'!V887)","v":""},{"$f":"IF('1. Order'!W887=\"\",\"\",'1. Order'!W887)","v":""},{"$f":"IF('1. Order'!X887=\"\",\"\",'1. Order'!X887)","v":"EUR"},{"$f":"IF('1. Order'!Y887=\"\",\"\",'1. Order'!Y887)","v":""},{"$f":"IF('1. Order'!Z887=\"\",\"\",'1. Order'!Z887)","v":""},{"$f":"IF('1. Order'!AA887=\"\",\"\",'1. Order'!AA887)","v":""},null,{"$f":"IF('1. Order'!AS887=\"\",\"\",'1. Order'!AS887)","v":""},{"$f":"IF('1. Order'!AT887=\"\",\"\",'1. Order'!AT887)","v":""},null,null,null,null,null,null,null,{"$f":"IF('1. Order'!AX887=\"\",\"\",'1. Order'!AX887)","v":""},{"$f":"IF('1. Order'!AY887=\"\",\"\",'1. Order'!AY887)","v":""},{"$f":"IF('1. Order'!AZ887=\"\",\"\",'1. Order'!AZ887)","v":""},{"$f":"IF('1. Order'!BA887=\"\",\"\",'1. Order'!BA887)","v":""},{"$f":"IF('1. Order'!BC887=\"\",\"\",'1. Order'!BC887)","v":""},{"$f":"IF('1. Order'!BD887=\"\",\"\",'1. Order'!BD887)","v":6},{"$f":"IF('1. Order'!BE887=\"\",\"\",'1. Order'!BE887)","v":"None"},{"$f":"IF('1. Order'!BF887=\"\",\"\",'1. Order'!BF887)","v":"Parcel"},{"$f":"IF('1. Order'!BG887=\"\",\"\",'1. Order'!BG887)","v":"ZWO"}]
[{"$f":"IF('1. Order'!F888=\"\",\"\",'1. Order'!F888)","v":""},{"$f":"IF('1. Order'!G888=\"\",\"\",'1. Order'!G888)","v":""},{"$f":"IF('1. Order'!H888=\"\",\"\",'1. Order'!H888)","v":""},{"$f":"IF('1. Order'!I888=\"\",\"\",'1. Order'!I888)","v":""},{"$f":"IF('1. Order'!J888=\"\",\"\",'1. Order'!J888)","v":""},{"$f":"IF('1. Order'!K888=\"\",\"\",'1. Order'!K888)","v":""},{"$f":"IF('1. Order'!L888=\"\",\"\",'1. Order'!L888)","v":""},{"$f":"IF('1. Order'!M888=\"\",\"\",'1. Order'!M888)","v":""},{"$f":"IF('1. Order'!N888=\"\",\"\",'1. Order'!N888)","v":""},{"$f":"IF('1. Order'!O888=\"\",\"\",'1. Order'!O888)","v":{"$error":"#N/A"}},{"$f":"IF('1. Order'!P888=\"\",\"\",'1. Order'!P888)","v":{"$error":"#N/A"}},{"$f":"IF('1. Order'!Q888=\"\",\"\",'1. Order'!Q888)","v":""},{"$f":"IF('1. Order'!R888=\"\",\"\",'1. Order'!R888)","v":""},{"$f":"IF('1. Order'!S888=\"\",\"\",'1. Order'!S888)","v":""},{"$f":"IF('1. Order'!V888=\"\",\"\",'1. Order'!V888)","v":""},{"$f":"IF('1. Order'!W888=\"\",\"\",'1. Order'!W888)","v":""},{"$f":"IF('1. Order'!X888=\"\",\"\",'1. Order'!X888)","v":"EUR"},{"$f":"IF('1. Order'!Y888=\"\",\"\",'1. Order'!Y888)","v":""},{"$f":"IF('1. Order'!Z888=\"\",\"\",'1. Order'!Z888)","v":""},{"$f":"IF('1. Order'!AA888=\"\",\"\",'1. Order'!AA888)","v":""},null,{"$f":"IF('1. Order'!AS888=\"\",\"\",'1. Order'!AS888)","v":""},{"$f":"IF('1. Order'!AT888=\"\",\"\",'1. Order'!AT888)","v":""},null,null,null,null,null,null,null,{"$f":"IF('1. Order'!AX888=\"\",\"\",'1. Order'!AX888)","v":""},{"$f":"IF('1. Order'!AY888=\"\",\"\",'1. Order'!AY888)","v":""},{"$f":"IF('1. Order'!AZ888=\"\",\"\",'1. Order'!AZ888)","v":""},{"$f":"IF('1. Order'!BA888=\"\",\"\",'1. Order'!BA888)","v":""},{"$f":"IF('1. Order'!BC888=\"\",\"\",'1. Order'!BC888)","v":""},{"$f":"IF('1. Order'!BD888=\"\",\"\",'1. Order'!BD888)","v":6},{"$f":"IF('1. Order'!BE888=\"\",\"\",'1. Order'!BE888)","v":"None"},{"$f":"IF('1. Order'!BF888=\"\",\"\",'1. Order'!BF888)","v":"Parcel"},{"$f":"IF('1. Order'!BG888=\"\",\"\",'1. Order'!BG888)","v":"ZWO"}]
[{"$f":"IF('1. Order'!F889=\"\",\"\",'1. Order'!F889)","v":""},{"$f":"IF('1. Order'!G889=\"\",\"\",'1. Order'!G889)","v":""},{"$f":"IF('1. Order'!H889=\"\",\"\",'1. Order'!H889)","v":""},{"$f":"IF('1. Order'!I889=\"\",\"\",'1. Order'!I889)","v":""},{"$f":"IF('1. Order'!J889=\"\",\"\",'1. Order'!J889)","v":""},{"$f":"IF('1. Order'!K889=\"\",\"\",'1. Order'!K889)","v":""},{"$f":"IF('1. Order'!L889=\"\",\"\",'1. Order'!L889)","v":""},{"$f":"IF('1. Order'!M889=\"\",\"\",'1. Order'!M889)","v":""},{"$f":"IF('1. Order'!N889=\"\",\"\",'1. Order'!N889)","v":""},{"$f":"IF('1. Order'!O889=\"\",\"\",'1. Order'!O889)","v":{"$error":"#N/A"}},{"$f":"IF('1. Order'!P889=\"\",\"\",'1. Order'!P889)","v":{"$error":"#N/A"}},{"$f":"IF('1. Order'!Q889=\"\",\"\",'1. Order'!Q889)","v":""},{"$f":"IF('1. Order'!R889=\"\",\"\",'1. Order'!R889)","v":""},{"$f":"IF('1. Order'!S889=\"\",\"\",'1. Order'!S889)","v":""},{"$f":"IF('1. Order'!V889=\"\",\"\",'1. Order'!V889)","v":""},{"$f":"IF('1. Order'!W889=\"\",\"\",'1. Order'!W889)","v":""},{"$f":"IF('1. Order'!X889=\"\",\"\",'1. Order'!X889)","v":"EUR"},{"$f":"IF('1. Order'!Y889=\"\",\"\",'1. Order'!Y889)","v":""},{"$f":"IF('1. Order'!Z889=\"\",\"\",'1. Order'!Z889)","v":""},{"$f":"IF('1. Order'!AA889=\"\",\"\",'1. Order'!AA889)","v":""},null,{"$f":"IF('1. Order'!AS889=\"\",\"\",'1. Order'!AS889)","v":""},{"$f":"IF('1. Order'!AT889=\"\",\"\",'1. Order'!AT889)","v":""},null,null,null,null,null,null,null,{"$f":"IF('1. Order'!AX889=\"\",\"\",'1. Order'!AX889)","v":""},{"$f":"IF('1. Order'!AY889=\"\",\"\",'1. Order'!AY889)","v":""},{"$f":"IF('1. Order'!AZ889=\"\",\"\",'1. Order'!AZ889)","v":""},{"$f":"IF('1. Order'!BA889=\"\",\"\",'1. Order'!BA889)","v":""},{"$f":"IF('1. Order'!BC889=\"\",\"\",'1. Order'!BC889)","v":""},{"$f":"IF('1. Order'!BD889=\"\",\"\",'1. Order'!BD889)","v":6},{"$f":"IF('1. Order'!BE889=\"\",\"\",'1. Order'!BE889)","v":"None"},{"$f":"IF('1. Order'!BF889=\"\",\"\",'1. Order'!BF889)","v":"Parcel"},{"$f":"IF('1. Order'!BG889=\"\",\"\",'1. Order'!BG889)","v":"ZWO"}]
[{"$f":"IF('1. Order'!F890=\"\",\"\",'1. Order'!F890)","v":""},{"$f":"IF('1. Order'!G890=\"\",\"\",'1. Order'!G890)","v":""},{"$f":"IF('1. Order'!H890=\"\",\"\",'1. Order'!H890)","v":""},{"$f":"IF('1. Order'!I890=\"\",\"\",'1. Order'!I890)","v":""},{"$f":"IF('1. Order'!J890=\"\",\"\",'1. Order'!J890)","v":""},{"$f":"IF('1. Order'!K890=\"\",\"\",'1. Order'!K890)","v":""},{"$f":"IF('1. Order'!L890=\"\",\"\",'1. Order'!L890)","v":""},{"$f":"IF('1. Order'!M890=\"\",\"\",'1. Order'!M890)","v":""},{"$f":"IF('1. Order'!N890=\"\",\"\",'1. Order'!N890)","v":""},{"$f":"IF('1. Order'!O890=\"\",\"\",'1. Order'!O890)","v":{"$error":"#N/A"}},{"$f":"IF('1. Order'!P890=\"\",\"\",'1. Order'!P890)","v":{"$error":"#N/A"}},{"$f":"IF('1. Order'!Q890=\"\",\"\",'1. Order'!Q890)","v":""},{"$f":"IF('1. Order'!R890=\"\",\"\",'1. Order'!R890)","v":""},{"$f":"IF('1. Order'!S890=\"\",\"\",'1. Order'!S890)","v":""},{"$f":"IF('1. Order'!V890=\"\",\"\",'1. Order'!V890)","v":""},{"$f":"IF('1. Order'!W890=\"\",\"\",'1. Order'!W890)","v":""},{"$f":"IF('1. Order'!X890=\"\",\"\",'1. Order'!X890)","v":"EUR"},{"$f":"IF('1. Order'!Y890=\"\",\"\",'1. Order'!Y890)","v":""},{"$f":"IF('1. Order'!Z890=\"\",\"\",'1. Order'!Z890)","v":""},{"$f":"IF('1. Order'!AA890=\"\",\"\",'1. Order'!AA890)","v":""},null,{"$f":"IF('1. Order'!AS890=\"\",\"\",'1. Order'!AS890)","v":""},{"$f":"IF('1. Order'!AT890=\"\",\"\",'1. Order'!AT890)","v":""},null,null,null,null,null,null,null,{"$f":"IF('1. Order'!AX890=\"\",\"\",'1. Order'!AX890)","v":""},{"$f":"IF('1. Order'!AY890=\"\",\"\",'1. Order'!AY890)","v":""},{"$f":"IF('1. Order'!AZ890=\"\",\"\",'1. Order'!AZ890)","v":""},{"$f":"IF('1. Order'!BA890=\"\",\"\",'1. Order'!BA890)","v":""},{"$f":"IF('1. Order'!BC890=\"\",\"\",'1. Order'!BC890)","v":""},{"$f":"IF('1. Order'!BD890=\"\",\"\",'1. Order'!BD890)","v":6},{"$f":"IF('1. Order'!BE890=\"\",\"\",'1. Order'!BE890)","v":"None"},{"$f":"IF('1. Order'!BF890=\"\",\"\",'1. Order'!BF890)","v":"Parcel"},{"$f":"IF('1. Order'!BG890=\"\",\"\",'1. Order'!BG890)","v":"ZWO"}]
[{"$f":"IF('1. Order'!F891=\"\",\"\",'1. Order'!F891)","v":""},{"$f":"IF('1. Order'!G891=\"\",\"\",'1. Order'!G891)","v":""},{"$f":"IF('1. Order'!H891=\"\",\"\",'1. Order'!H891)","v":""},{"$f":"IF('1. Order'!I891=\"\",\"\",'1. Order'!I891)","v":""},{"$f":"IF('1. Order'!J891=\"\",\"\",'1. Order'!J891)","v":""},{"$f":"IF('1. Order'!K891=\"\",\"\",'1. Order'!K891)","v":""},{"$f":"IF('1. Order'!L891=\"\",\"\",'1. Order'!L891)","v":""},{"$f":"IF('1. Order'!M891=\"\",\"\",'1. Order'!M891)","v":""},{"$f":"IF('1. Order'!N891=\"\",\"\",'1. Order'!N891)","v":""},{"$f":"IF('1. Order'!O891=\"\",\"\",'1. Order'!O891)","v":{"$error":"#N/A"}},{"$f":"IF('1. Order'!P891=\"\",\"\",'1. Order'!P891)","v":{"$error":"#N/A"}},{"$f":"IF('1. Order'!Q891=\"\",\"\",'1. Order'!Q891)","v":""},{"$f":"IF('1. Order'!R891=\"\",\"\",'1. Order'!R891)","v":""},{"$f":"IF('1. Order'!S891=\"\",\"\",'1. Order'!S891)","v":""},{"$f":"IF('1. Order'!V891=\"\",\"\",'1. Order'!V891)","v":""},{"$f":"IF('1. Order'!W891=\"\",\"\",'1. Order'!W891)","v":""},{"$f":"IF('1. Order'!X891=\"\",\"\",'1. Order'!X891)","v":"EUR"},{"$f":"IF('1. Order'!Y891=\"\",\"\",'1. Order'!Y891)","v":""},{"$f":"IF('1. Order'!Z891=\"\",\"\",'1. Order'!Z891)","v":""},{"$f":"IF('1. Order'!AA891=\"\",\"\",'1. Order'!AA891)","v":""},null,{"$f":"IF('1. Order'!AS891=\"\",\"\",'1. Order'!AS891)","v":""},{"$f":"IF('1. Order'!AT891=\"\",\"\",'1. Order'!AT891)","v":""},null,null,null,null,null,null,null,{"$f":"IF('1. Order'!AX891=\"\",\"\",'1. Order'!AX891)","v":""},{"$f":"IF('1. Order'!AY891=\"\",\"\",'1. Order'!AY891)","v":""},{"$f":"IF('1. Order'!AZ891=\"\",\"\",'1. Order'!AZ891)","v":""},{"$f":"IF('1. Order'!BA891=\"\",\"\",'1. Order'!BA891)","v":""},{"$f":"IF('1. Order'!BC891=\"\",\"\",'1. Order'!BC891)","v":""},{"$f":"IF('1. Order'!BD891=\"\",\"\",'1. Order'!BD891)","v":6},{"$f":"IF('1. Order'!BE891=\"\",\"\",'1. Order'!BE891)","v":"None"},{"$f":"IF('1. Order'!BF891=\"\",\"\",'1. Order'!BF891)","v":"Parcel"},{"$f":"IF('1. Order'!BG891=\"\",\"\",'1. Order'!BG891)","v":"ZWO"}]
[{"$f":"IF('1. Order'!F892=\"\",\"\",'1. Order'!F892)","v":""},{"$f":"IF('1. Order'!G892=\"\",\"\",'1. Order'!G892)","v":""},{"$f":"IF('1. Order'!H892=\"\",\"\",'1. Order'!H892)","v":""},{"$f":"IF('1. Order'!I892=\"\",\"\",'1. Order'!I892)","v":""},{"$f":"IF('1. Order'!J892=\"\",\"\",'1. Order'!J892)","v":""},{"$f":"IF('1. Order'!K892=\"\",\"\",'1. Order'!K892)","v":""},{"$f":"IF('1. Order'!L892=\"\",\"\",'1. Order'!L892)","v":""},{"$f":"IF('1. Order'!M892=\"\",\"\",'1. Order'!M892)","v":""},{"$f":"IF('1. Order'!N892=\"\",\"\",'1. Order'!N892)","v":""},{"$f":"IF('1. Order'!O892=\"\",\"\",'1. Order'!O892)","v":{"$error":"#N/A"}},{"$f":"IF('1. Order'!P892=\"\",\"\",'1. Order'!P892)","v":{"$error":"#N/A"}},{"$f":"IF('1. Order'!Q892=\"\",\"\",'1. Order'!Q892)","v":""},{"$f":"IF('1. Order'!R892=\"\",\"\",'1. Order'!R892)","v":""},{"$f":"IF('1. Order'!S892=\"\",\"\",'1. Order'!S892)","v":""},{"$f":"IF('1. Order'!V892=\"\",\"\",'1. Order'!V892)","v":""},{"$f":"IF('1. Order'!W892=\"\",\"\",'1. Order'!W892)","v":""},{"$f":"IF('1. Order'!X892=\"\",\"\",'1. Order'!X892)","v":"EUR"},{"$f":"IF('1. Order'!Y892=\"\",\"\",'1. Order'!Y892)","v":""},{"$f":"IF('1. Order'!Z892=\"\",\"\",'1. Order'!Z892)","v":""},{"$f":"IF('1. Order'!AA892=\"\",\"\",'1. Order'!AA892)","v":""},null,{"$f":"IF('1. Order'!AS892=\"\",\"\",'1. Order'!AS892)","v":""},{"$f":"IF('1. Order'!AT892=\"\",\"\",'1. Order'!AT892)","v":""},null,null,null,null,null,null,null,{"$f":"IF('1. Order'!AX892=\"\",\"\",'1. Order'!AX892)","v":""},{"$f":"IF('1. Order'!AY892=\"\",\"\",'1. Order'!AY892)","v":""},{"$f":"IF('1. Order'!AZ892=\"\",\"\",'1. Order'!AZ892)","v":""},{"$f":"IF('1. Order'!BA892=\"\",\"\",'1. Order'!BA892)","v":""},{"$f":"IF('1. Order'!BC892=\"\",\"\",'1. Order'!BC892)","v":""},{"$f":"IF('1. Order'!BD892=\"\",\"\",'1. Order'!BD892)","v":6},{"$f":"IF('1. Order'!BE892=\"\",\"\",'1. Order'!BE892)","v":"None"},{"$f":"IF('1. Order'!BF892=\"\",\"\",'1. Order'!BF892)","v":"Parcel"},{"$f":"IF('1. Order'!BG892=\"\",\"\",'1. Order'!BG892)","v":"ZWO"}]
[{"$f":"IF('1. Order'!F893=\"\",\"\",'1. Order'!F893)","v":""},{"$f":"IF('1. Order'!G893=\"\",\"\",'1. Order'!G893)","v":""},{"$f":"IF('1. Order'!H893=\"\",\"\",'1. Order'!H893)","v":""},{"$f":"IF('1. Order'!I893=\"\",\"\",'1. Order'!I893)","v":""},{"$f":"IF('1. Order'!J893=\"\",\"\",'1. Order'!J893)","v":""},{"$f":"IF('1. Order'!K893=\"\",\"\",'1. Order'!K893)","v":""},{"$f":"IF('1. Order'!L893=\"\",\"\",'1. Order'!L893)","v":""},{"$f":"IF('1. Order'!M893=\"\",\"\",'1. Order'!M893)","v":""},{"$f":"IF('1. Order'!N893=\"\",\"\",'1. Order'!N893)","v":""},{"$f":"IF('1. Order'!O893=\"\",\"\",'1. Order'!O893)","v":{"$error":"#N/A"}},{"$f":"IF('1. Order'!P893=\"\",\"\",'1. Order'!P893)","v":{"$error":"#N/A"}},{"$f":"IF('1. Order'!Q893=\"\",\"\",'1. Order'!Q893)","v":""},{"$f":"IF('1. Order'!R893=\"\",\"\",'1. Order'!R893)","v":""},{"$f":"IF('1. Order'!S893=\"\",\"\",'1. Order'!S893)","v":""},{"$f":"IF('1. Order'!V893=\"\",\"\",'1. Order'!V893)","v":""},{"$f":"IF('1. Order'!W893=\"\",\"\",'1. Order'!W893)","v":""},{"$f":"IF('1. Order'!X893=\"\",\"\",'1. Order'!X893)","v":"EUR"},{"$f":"IF('1. Order'!Y893=\"\",\"\",'1. Order'!Y893)","v":""},{"$f":"IF('1. Order'!Z893=\"\",\"\",'1. Order'!Z893)","v":""},{"$f":"IF('1. Order'!AA893=\"\",\"\",'1. Order'!AA893)","v":""},null,{"$f":"IF('1. Order'!AS893=\"\",\"\",'1. Order'!AS893)","v":""},{"$f":"IF('1. Order'!AT893=\"\",\"\",'1. Order'!AT893)","v":""},null,null,null,null,null,null,null,{"$f":"IF('1. Order'!AX893=\"\",\"\",'1. Order'!AX893)","v":""},{"$f":"IF('1. Order'!AY893=\"\",\"\",'1. Order'!AY893)","v":""},{"$f":"IF('1. Order'!AZ893=\"\",\"\",'1. Order'!AZ893)","v":""},{"$f":"IF('1. Order'!BA893=\"\",\"\",'1. Order'!BA893)","v":""},{"$f":"IF('1. Order'!BC893=\"\",\"\",'1. Order'!BC893)","v":""},{"$f":"IF('1. Order'!BD893=\"\",\"\",'1. Order'!BD893)","v":6},{"$f":"IF('1. Order'!BE893=\"\",\"\",'1. Order'!BE893)","v":"None"},{"$f":"IF('1. Order'!BF893=\"\",\"\",'1. Order'!BF893)","v":"Parcel"},{"$f":"IF('1. Order'!BG893=\"\",\"\",'1. Order'!BG893)","v":"ZWO"}]
[{"$f":"IF('1. Order'!F894=\"\",\"\",'1. Order'!F894)","v":""},{"$f":"IF('1. Order'!G894=\"\",\"\",'1. Order'!G894)","v":""},{"$f":"IF('1. Order'!H894=\"\",\"\",'1. Order'!H894)","v":""},{"$f":"IF('1. Order'!I894=\"\",\"\",'1. Order'!I894)","v":""},{"$f":"IF('1. Order'!J894=\"\",\"\",'1. Order'!J894)","v":""},{"$f":"IF('1. Order'!K894=\"\",\"\",'1. Order'!K894)","v":""},{"$f":"IF('1. Order'!L894=\"\",\"\",'1. Order'!L894)","v":""},{"$f":"IF('1. Order'!M894=\"\",\"\",'1. Order'!M894)","v":""},{"$f":"IF('1. Order'!N894=\"\",\"\",'1. Order'!N894)","v":""},{"$f":"IF('1. Order'!O894=\"\",\"\",'1. Order'!O894)","v":{"$error":"#N/A"}},{"$f":"IF('1. Order'!P894=\"\",\"\",'1. Order'!P894)","v":{"$error":"#N/A"}},{"$f":"IF('1. Order'!Q894=\"\",\"\",'1. Order'!Q894)","v":""},{"$f":"IF('1. Order'!R894=\"\",\"\",'1. Order'!R894)","v":""},{"$f":"IF('1. Order'!S894=\"\",\"\",'1. Order'!S894)","v":""},{"$f":"IF('1. Order'!V894=\"\",\"\",'1. Order'!V894)","v":""},{"$f":"IF('1. Order'!W894=\"\",\"\",'1. Order'!W894)","v":""},{"$f":"IF('1. Order'!X894=\"\",\"\",'1. Order'!X894)","v":"EUR"},{"$f":"IF('1. Order'!Y894=\"\",\"\",'1. Order'!Y894)","v":""},{"$f":"IF('1. Order'!Z894=\"\",\"\",'1. Order'!Z894)","v":""},{"$f":"IF('1. Order'!AA894=\"\",\"\",'1. Order'!AA894)","v":""},null,{"$f":"IF('1. Order'!AS894=\"\",\"\",'1. Order'!AS894)","v":""},{"$f":"IF('1. Order'!AT894=\"\",\"\",'1. Order'!AT894)","v":""},null,null,null,null,null,null,null,{"$f":"IF('1. Order'!AX894=\"\",\"\",'1. Order'!AX894)","v":""},{"$f":"IF('1. Order'!AY894=\"\",\"\",'1. Order'!AY894)","v":""},{"$f":"IF('1. Order'!AZ894=\"\",\"\",'1. Order'!AZ894)","v":""},{"$f":"IF('1. Order'!BA894=\"\",\"\",'1. Order'!BA894)","v":""},{"$f":"IF('1. Order'!BC894=\"\",\"\",'1. Order'!BC894)","v":""},{"$f":"IF('1. Order'!BD894=\"\",\"\",'1. Order'!BD894)","v":6},{"$f":"IF('1. Order'!BE894=\"\",\"\",'1. Order'!BE894)","v":"None"},{"$f":"IF('1. Order'!BF894=\"\",\"\",'1. Order'!BF894)","v":"Parcel"},{"$f":"IF('1. Order'!BG894=\"\",\"\",'1. Order'!BG894)","v":"ZWO"}]
[{"$f":"IF('1. Order'!F895=\"\",\"\",'1. Order'!F895)","v":""},{"$f":"IF('1. Order'!G895=\"\",\"\",'1. Order'!G895)","v":""},{"$f":"IF('1. Order'!H895=\"\",\"\",'1. Order'!H895)","v":""},{"$f":"IF('1. Order'!I895=\"\",\"\",'1. Order'!I895)","v":""},{"$f":"IF('1. Order'!J895=\"\",\"\",'1. Order'!J895)","v":""},{"$f":"IF('1. Order'!K895=\"\",\"\",'1. Order'!K895)","v":""},{"$f":"IF('1. Order'!L895=\"\",\"\",'1. Order'!L895)","v":""},{"$f":"IF('1. Order'!M895=\"\",\"\",'1. Order'!M895)","v":""},{"$f":"IF('1. Order'!N895=\"\",\"\",'1. Order'!N895)","v":""},{"$f":"IF('1. Order'!O895=\"\",\"\",'1. Order'!O895)","v":{"$error":"#N/A"}},{"$f":"IF('1. Order'!P895=\"\",\"\",'1. Order'!P895)","v":{"$error":"#N/A"}},{"$f":"IF('1. Order'!Q895=\"\",\"\",'1. Order'!Q895)","v":""},{"$f":"IF('1. Order'!R895=\"\",\"\",'1. Order'!R895)","v":""},{"$f":"IF('1. Order'!S895=\"\",\"\",'1. Order'!S895)","v":""},{"$f":"IF('1. Order'!V895=\"\",\"\",'1. Order'!V895)","v":""},{"$f":"IF('1. Order'!W895=\"\",\"\",'1. Order'!W895)","v":""},{"$f":"IF('1. Order'!X895=\"\",\"\",'1. Order'!X895)","v":"EUR"},{"$f":"IF('1. Order'!Y895=\"\",\"\",'1. Order'!Y895)","v":""},{"$f":"IF('1. Order'!Z895=\"\",\"\",'1. Order'!Z895)","v":""},{"$f":"IF('1. Order'!AA895=\"\",\"\",'1. Order'!AA895)","v":""},null,{"$f":"IF('1. Order'!AS895=\"\",\"\",'1. Order'!AS895)","v":""},{"$f":"IF('1. Order'!AT895=\"\",\"\",'1. Order'!AT895)","v":""},null,null,null,null,null,null,null,{"$f":"IF('1. Order'!AX895=\"\",\"\",'1. Order'!AX895)","v":""},{"$f":"IF('1. Order'!AY895=\"\",\"\",'1. Order'!AY895)","v":""},{"$f":"IF('1. Order'!AZ895=\"\",\"\",'1. Order'!AZ895)","v":""},{"$f":"IF('1. Order'!BA895=\"\",\"\",'1. Order'!BA895)","v":""},{"$f":"IF('1. Order'!BC895=\"\",\"\",'1. Order'!BC895)","v":""},{"$f":"IF('1. Order'!BD895=\"\",\"\",'1. Order'!BD895)","v":6},{"$f":"IF('1. Order'!BE895=\"\",\"\",'1. Order'!BE895)","v":"None"},{"$f":"IF('1. Order'!BF895=\"\",\"\",'1. Order'!BF895)","v":"Parcel"},{"$f":"IF('1. Order'!BG895=\"\",\"\",'1. Order'!BG895)","v":"ZWO"}]
[{"$f":"IF('1. Order'!F896=\"\",\"\",'1. Order'!F896)","v":""},{"$f":"IF('1. Order'!G896=\"\",\"\",'1. Order'!G896)","v":""},{"$f":"IF('1. Order'!H896=\"\",\"\",'1. Order'!H896)","v":""},{"$f":"IF('1. Order'!I896=\"\",\"\",'1. Order'!I896)","v":""},{"$f":"IF('1. Order'!J896=\"\",\"\",'1. Order'!J896)","v":""},{"$f":"IF('1. Order'!K896=\"\",\"\",'1. Order'!K896)","v":""},{"$f":"IF('1. Order'!L896=\"\",\"\",'1. Order'!L896)","v":""},{"$f":"IF('1. Order'!M896=\"\",\"\",'1. Order'!M896)","v":""},{"$f":"IF('1. Order'!N896=\"\",\"\",'1. Order'!N896)","v":""},{"$f":"IF('1. Order'!O896=\"\",\"\",'1. Order'!O896)","v":{"$error":"#N/A"}},{"$f":"IF('1. Order'!P896=\"\",\"\",'1. Order'!P896)","v":{"$error":"#N/A"}},{"$f":"IF('1. Order'!Q896=\"\",\"\",'1. Order'!Q896)","v":""},{"$f":"IF('1. Order'!R896=\"\",\"\",'1. Order'!R896)","v":""},{"$f":"IF('1. Order'!S896=\"\",\"\",'1. Order'!S896)","v":""},{"$f":"IF('1. Order'!V896=\"\",\"\",'1. Order'!V896)","v":""},{"$f":"IF('1. Order'!W896=\"\",\"\",'1. Order'!W896)","v":""},{"$f":"IF('1. Order'!X896=\"\",\"\",'1. Order'!X896)","v":"EUR"},{"$f":"IF('1. Order'!Y896=\"\",\"\",'1. Order'!Y896)","v":""},{"$f":"IF('1. Order'!Z896=\"\",\"\",'1. Order'!Z896)","v":""},{"$f":"IF('1. Order'!AA896=\"\",\"\",'1. Order'!AA896)","v":""},null,{"$f":"IF('1. Order'!AS896=\"\",\"\",'1. Order'!AS896)","v":""},{"$f":"IF('1. Order'!AT896=\"\",\"\",'1. Order'!AT896)","v":""},null,null,null,null,null,null,null,{"$f":"IF('1. Order'!AX896=\"\",\"\",'1. Order'!AX896)","v":""},{"$f":"IF('1. Order'!AY896=\"\",\"\",'1. Order'!AY896)","v":""},{"$f":"IF('1. Order'!AZ896=\"\",\"\",'1. Order'!AZ896)","v":""},{"$f":"IF('1. Order'!BA896=\"\",\"\",'1. Order'!BA896)","v":""},{"$f":"IF('1. Order'!BC896=\"\",\"\",'1. Order'!BC896)","v":""},{"$f":"IF('1. Order'!BD896=\"\",\"\",'1. Order'!BD896)","v":6},{"$f":"IF('1. Order'!BE896=\"\",\"\",'1. Order'!BE896)","v":"None"},{"$f":"IF('1. Order'!BF896=\"\",\"\",'1. Order'!BF896)","v":"Parcel"},{"$f":"IF('1. Order'!BG896=\"\",\"\",'1. Order'!BG896)","v":"ZWO"}]
[{"$f":"IF('1. Order'!F897=\"\",\"\",'1. Order'!F897)","v":""},{"$f":"IF('1. Order'!G897=\"\",\"\",'1. Order'!G897)","v":""},{"$f":"IF('1. Order'!H897=\"\",\"\",'1. Order'!H897)","v":""},{"$f":"IF('1. Order'!I897=\"\",\"\",'1. Order'!I897)","v":""},{"$f":"IF('1. Order'!J897=\"\",\"\",'1. Order'!J897)","v":""},{"$f":"IF('1. Order'!K897=\"\",\"\",'1. Order'!K897)","v":""},{"$f":"IF('1. Order'!L897=\"\",\"\",'1. Order'!L897)","v":""},{"$f":"IF('1. Order'!M897=\"\",\"\",'1. Order'!M897)","v":""},{"$f":"IF('1. Order'!N897=\"\",\"\",'1. Order'!N897)","v":""},{"$f":"IF('1. Order'!O897=\"\",\"\",'1. Order'!O897)","v":{"$error":"#N/A"}},{"$f":"IF('1. Order'!P897=\"\",\"\",'1. Order'!P897)","v":{"$error":"#N/A"}},{"$f":"IF('1. Order'!Q897=\"\",\"\",'1. Order'!Q897)","v":""},{"$f":"IF('1. Order'!R897=\"\",\"\",'1. Order'!R897)","v":""},{"$f":"IF('1. Order'!S897=\"\",\"\",'1. Order'!S897)","v":""},{"$f":"IF('1. Order'!V897=\"\",\"\",'1. Order'!V897)","v":""},{"$f":"IF('1. Order'!W897=\"\",\"\",'1. Order'!W897)","v":""},{"$f":"IF('1. Order'!X897=\"\",\"\",'1. Order'!X897)","v":"EUR"},{"$f":"IF('1. Order'!Y897=\"\",\"\",'1. Order'!Y897)","v":""},{"$f":"IF('1. Order'!Z897=\"\",\"\",'1. Order'!Z897)","v":""},{"$f":"IF('1. Order'!AA897=\"\",\"\",'1. Order'!AA897)","v":""},null,{"$f":"IF('1. Order'!AS897=\"\",\"\",'1. Order'!AS897)","v":""},{"$f":"IF('1. Order'!AT897=\"\",\"\",'1. Order'!AT897)","v":""},null,null,null,null,null,null,null,{"$f":"IF('1. Order'!AX897=\"\",\"\",'1. Order'!AX897)","v":""},{"$f":"IF('1. Order'!AY897=\"\",\"\",'1. Order'!AY897)","v":""},{"$f":"IF('1. Order'!AZ897=\"\",\"\",'1. Order'!AZ897)","v":""},{"$f":"IF('1. Order'!BA897=\"\",\"\",'1. Order'!BA897)","v":""},{"$f":"IF('1. Order'!BC897=\"\",\"\",'1. Order'!BC897)","v":""},{"$f":"IF('1. Order'!BD897=\"\",\"\",'1. Order'!BD897)","v":6},{"$f":"IF('1. Order'!BE897=\"\",\"\",'1. Order'!BE897)","v":"None"},{"$f":"IF('1. Order'!BF897=\"\",\"\",'1. Order'!BF897)","v":"Parcel"},{"$f":"IF('1. Order'!BG897=\"\",\"\",'1. Order'!BG897)","v":"ZWO"}]
[{"$f":"IF('1. Order'!F898=\"\",\"\",'1. Order'!F898)","v":""},{"$f":"IF('1. Order'!G898=\"\",\"\",'1. Order'!G898)","v":""},{"$f":"IF('1. Order'!H898=\"\",\"\",'1. Order'!H898)","v":""},{"$f":"IF('1. Order'!I898=\"\",\"\",'1. Order'!I898)","v":""},{"$f":"IF('1. Order'!J898=\"\",\"\",'1. Order'!J898)","v":""},{"$f":"IF('1. Order'!K898=\"\",\"\",'1. Order'!K898)","v":""},{"$f":"IF('1. Order'!L898=\"\",\"\",'1. Order'!L898)","v":""},{"$f":"IF('1. Order'!M898=\"\",\"\",'1. Order'!M898)","v":""},{"$f":"IF('1. Order'!N898=\"\",\"\",'1. Order'!N898)","v":""},{"$f":"IF('1. Order'!O898=\"\",\"\",'1. Order'!O898)","v":{"$error":"#N/A"}},{"$f":"IF('1. Order'!P898=\"\",\"\",'1. Order'!P898)","v":{"$error":"#N/A"}},{"$f":"IF('1. Order'!Q898=\"\",\"\",'1. Order'!Q898)","v":""},{"$f":"IF('1. Order'!R898=\"\",\"\",'1. Order'!R898)","v":""},{"$f":"IF('1. Order'!S898=\"\",\"\",'1. Order'!S898)","v":""},{"$f":"IF('1. Order'!V898=\"\",\"\",'1. Order'!V898)","v":""},{"$f":"IF('1. Order'!W898=\"\",\"\",'1. Order'!W898)","v":""},{"$f":"IF('1. Order'!X898=\"\",\"\",'1. Order'!X898)","v":"EUR"},{"$f":"IF('1. Order'!Y898=\"\",\"\",'1. Order'!Y898)","v":""},{"$f":"IF('1. Order'!Z898=\"\",\"\",'1. Order'!Z898)","v":""},{"$f":"IF('1. Order'!AA898=\"\",\"\",'1. Order'!AA898)","v":""},null,{"$f":"IF('1. Order'!AS898=\"\",\"\",'1. Order'!AS898)","v":""},{"$f":"IF('1. Order'!AT898=\"\",\"\",'1. Order'!AT898)","v":""},null,null,null,null,null,null,null,{"$f":"IF('1. Order'!AX898=\"\",\"\",'1. Order'!AX898)","v":""},{"$f":"IF('1. Order'!AY898=\"\",\"\",'1. Order'!AY898)","v":""},{"$f":"IF('1. Order'!AZ898=\"\",\"\",'1. Order'!AZ898)","v":""},{"$f":"IF('1. Order'!BA898=\"\",\"\",'1. Order'!BA898)","v":""},{"$f":"IF('1. Order'!BC898=\"\",\"\",'1. Order'!BC898)","v":""},{"$f":"IF('1. Order'!BD898=\"\",\"\",'1. Order'!BD898)","v":6},{"$f":"IF('1. Order'!BE898=\"\",\"\",'1. Order'!BE898)","v":"None"},{"$f":"IF('1. Order'!BF898=\"\",\"\",'1. Order'!BF898)","v":"Parcel"},{"$f":"IF('1. Order'!BG898=\"\",\"\",'1. Order'!BG898)","v":"ZWO"}]
[{"$f":"IF('1. Order'!F899=\"\",\"\",'1. Order'!F899)","v":""},{"$f":"IF('1. Order'!G899=\"\",\"\",'1. Order'!G899)","v":""},{"$f":"IF('1. Order'!H899=\"\",\"\",'1. Order'!H899)","v":""},{"$f":"IF('1. Order'!I899=\"\",\"\",'1. Order'!I899)","v":""},{"$f":"IF('1. Order'!J899=\"\",\"\",'1. Order'!J899)","v":""},{"$f":"IF('1. Order'!K899=\"\",\"\",'1. Order'!K899)","v":""},{"$f":"IF('1. Order'!L899=\"\",\"\",'1. Order'!L899)","v":""},{"$f":"IF('1. Order'!M899=\"\",\"\",'1. Order'!M899)","v":""},{"$f":"IF('1. Order'!N899=\"\",\"\",'1. Order'!N899)","v":""},{"$f":"IF('1. Order'!O899=\"\",\"\",'1. Order'!O899)","v":{"$error":"#N/A"}},{"$f":"IF('1. Order'!P899=\"\",\"\",'1. Order'!P899)","v":{"$error":"#N/A"}},{"$f":"IF('1. Order'!Q899=\"\",\"\",'1. Order'!Q899)","v":""},{"$f":"IF('1. Order'!R899=\"\",\"\",'1. Order'!R899)","v":""},{"$f":"IF('1. Order'!S899=\"\",\"\",'1. Order'!S899)","v":""},{"$f":"IF('1. Order'!V899=\"\",\"\",'1. Order'!V899)","v":""},{"$f":"IF('1. Order'!W899=\"\",\"\",'1. Order'!W899)","v":""},{"$f":"IF('1. Order'!X899=\"\",\"\",'1. Order'!X899)","v":"EUR"},{"$f":"IF('1. Order'!Y899=\"\",\"\",'1. Order'!Y899)","v":""},{"$f":"IF('1. Order'!Z899=\"\",\"\",'1. Order'!Z899)","v":""},{"$f":"IF('1. Order'!AA899=\"\",\"\",'1. Order'!AA899)","v":""},null,{"$f":"IF('1. Order'!AS899=\"\",\"\",'1. Order'!AS899)","v":""},{"$f":"IF('1. Order'!AT899=\"\",\"\",'1. Order'!AT899)","v":""},null,null,null,null,null,null,null,{"$f":"IF('1. Order'!AX899=\"\",\"\",'1. Order'!AX899)","v":""},{"$f":"IF('1. Order'!AY899=\"\",\"\",'1. Order'!AY899)","v":""},{"$f":"IF('1. Order'!AZ899=\"\",\"\",'1. Order'!AZ899)","v":""},{"$f":"IF('1. Order'!BA899=\"\",\"\",'1. Order'!BA899)","v":""},{"$f":"IF('1. Order'!BC899=\"\",\"\",'1. Order'!BC899)","v":""},{"$f":"IF('1. Order'!BD899=\"\",\"\",'1. Order'!BD899)","v":6},{"$f":"IF('1. Order'!BE899=\"\",\"\",'1. Order'!BE899)","v":"None"},{"$f":"IF('1. Order'!BF899=\"\",\"\",'1. Order'!BF899)","v":"Parcel"},{"$f":"IF('1. Order'!BG899=\"\",\"\",'1. Order'!BG899)","v":"ZWO"}]
[{"$f":"IF('1. Order'!F900=\"\",\"\",'1. Order'!F900)","v":""},{"$f":"IF('1. Order'!G900=\"\",\"\",'1. Order'!G900)","v":""},{"$f":"IF('1. Order'!H900=\"\",\"\",'1. Order'!H900)","v":""},{"$f":"IF('1. Order'!I900=\"\",\"\",'1. Order'!I900)","v":""},{"$f":"IF('1. Order'!J900=\"\",\"\",'1. Order'!J900)","v":""},{"$f":"IF('1. Order'!K900=\"\",\"\",'1. Order'!K900)","v":""},{"$f":"IF('1. Order'!L900=\"\",\"\",'1. Order'!L900)","v":""},{"$f":"IF('1. Order'!M900=\"\",\"\",'1. Order'!M900)","v":""},{"$f":"IF('1. Order'!N900=\"\",\"\",'1. Order'!N900)","v":""},{"$f":"IF('1. Order'!O900=\"\",\"\",'1. Order'!O900)","v":{"$error":"#N/A"}},{"$f":"IF('1. Order'!P900=\"\",\"\",'1. Order'!P900)","v":{"$error":"#N/A"}},{"$f":"IF('1. Order'!Q900=\"\",\"\",'1. Order'!Q900)","v":""},{"$f":"IF('1. Order'!R900=\"\",\"\",'1. Order'!R900)","v":""},{"$f":"IF('1. Order'!S900=\"\",\"\",'1. Order'!S900)","v":""},{"$f":"IF('1. Order'!V900=\"\",\"\",'1. Order'!V900)","v":""},{"$f":"IF('1. Order'!W900=\"\",\"\",'1. Order'!W900)","v":""},{"$f":"IF('1. Order'!X900=\"\",\"\",'1. Order'!X900)","v":"EUR"},{"$f":"IF('1. Order'!Y900=\"\",\"\",'1. Order'!Y900)","v":""},{"$f":"IF('1. Order'!Z900=\"\",\"\",'1. Order'!Z900)","v":""},{"$f":"IF('1. Order'!AA900=\"\",\"\",'1. Order'!AA900)","v":""},null,{"$f":"IF('1. Order'!AS900=\"\",\"\",'1. Order'!AS900)","v":""},{"$f":"IF('1. Order'!AT900=\"\",\"\",'1. Order'!AT900)","v":""},null,null,null,null,null,null,null,{"$f":"IF('1. Order'!AX900=\"\",\"\",'1. Order'!AX900)","v":""},{"$f":"IF('1. Order'!AY900=\"\",\"\",'1. Order'!AY900)","v":""},{"$f":"IF('1. Order'!AZ900=\"\",\"\",'1. Order'!AZ900)","v":""},{"$f":"IF('1. Order'!BA900=\"\",\"\",'1. Order'!BA900)","v":""},{"$f":"IF('1. Order'!BC900=\"\",\"\",'1. Order'!BC900)","v":""},{"$f":"IF('1. Order'!BD900=\"\",\"\",'1. Order'!BD900)","v":6},{"$f":"IF('1. Order'!BE900=\"\",\"\",'1. Order'!BE900)","v":"None"},{"$f":"IF('1. Order'!BF900=\"\",\"\",'1. Order'!BF900)","v":"Parcel"},{"$f":"IF('1. Order'!BG900=\"\",\"\",'1. Order'!BG900)","v":"ZWO"}]
[{"$f":"IF('1. Order'!F901=\"\",\"\",'1. Order'!F901)","v":""},{"$f":"IF('1. Order'!G901=\"\",\"\",'1. Order'!G901)","v":""},{"$f":"IF('1. Order'!H901=\"\",\"\",'1. Order'!H901)","v":""},{"$f":"IF('1. Order'!I901=\"\",\"\",'1. Order'!I901)","v":""},{"$f":"IF('1. Order'!J901=\"\",\"\",'1. Order'!J901)","v":""},{"$f":"IF('1. Order'!K901=\"\",\"\",'1. Order'!K901)","v":""},{"$f":"IF('1. Order'!L901=\"\",\"\",'1. Order'!L901)","v":""},{"$f":"IF('1. Order'!M901=\"\",\"\",'1. Order'!M901)","v":""},{"$f":"IF('1. Order'!N901=\"\",\"\",'1. Order'!N901)","v":""},{"$f":"IF('1. Order'!O901=\"\",\"\",'1. Order'!O901)","v":{"$error":"#N/A"}},{"$f":"IF('1. Order'!P901=\"\",\"\",'1. Order'!P901)","v":{"$error":"#N/A"}},{"$f":"IF('1. Order'!Q901=\"\",\"\",'1. Order'!Q901)","v":""},{"$f":"IF('1. Order'!R901=\"\",\"\",'1. Order'!R901)","v":""},{"$f":"IF('1. Order'!S901=\"\",\"\",'1. Order'!S901)","v":""},{"$f":"IF('1. Order'!V901=\"\",\"\",'1. Order'!V901)","v":""},{"$f":"IF('1. Order'!W901=\"\",\"\",'1. Order'!W901)","v":""},{"$f":"IF('1. Order'!X901=\"\",\"\",'1. Order'!X901)","v":"EUR"},{"$f":"IF('1. Order'!Y901=\"\",\"\",'1. Order'!Y901)","v":""},{"$f":"IF('1. Order'!Z901=\"\",\"\",'1. Order'!Z901)","v":""},{"$f":"IF('1. Order'!AA901=\"\",\"\",'1. Order'!AA901)","v":""},null,{"$f":"IF('1. Order'!AS901=\"\",\"\",'1. Order'!AS901)","v":""},{"$f":"IF('1. Order'!AT901=\"\",\"\",'1. Order'!AT901)","v":""},null,null,null,null,null,null,null,{"$f":"IF('1. Order'!AX901=\"\",\"\",'1. Order'!AX901)","v":""},{"$f":"IF('1. Order'!AY901=\"\",\"\",'1. Order'!AY901)","v":""},{"$f":"IF('1. Order'!AZ901=\"\",\"\",'1. Order'!AZ901)","v":""},{"$f":"IF('1. Order'!BA901=\"\",\"\",'1. Order'!BA901)","v":""},{"$f":"IF('1. Order'!BC901=\"\",\"\",'1. Order'!BC901)","v":""},{"$f":"IF('1. Order'!BD901=\"\",\"\",'1. Order'!BD901)","v":6},{"$f":"IF('1. Order'!BE901=\"\",\"\",'1. Order'!BE901)","v":"None"},{"$f":"IF('1. Order'!BF901=\"\",\"\",'1. Order'!BF901)","v":"Parcel"},{"$f":"IF('1. Order'!BG901=\"\",\"\",'1. Order'!BG901)","v":"ZWO"}]
[{"$f":"IF('1. Order'!F902=\"\",\"\",'1. Order'!F902)","v":""},{"$f":"IF('1. Order'!G902=\"\",\"\",'1. Order'!G902)","v":""},{"$f":"IF('1. Order'!H902=\"\",\"\",'1. Order'!H902)","v":""},{"$f":"IF('1. Order'!I902=\"\",\"\",'1. Order'!I902)","v":""},{"$f":"IF('1. Order'!J902=\"\",\"\",'1. Order'!J902)","v":""},{"$f":"IF('1. Order'!K902=\"\",\"\",'1. Order'!K902)","v":""},{"$f":"IF('1. Order'!L902=\"\",\"\",'1. Order'!L902)","v":""},{"$f":"IF('1. Order'!M902=\"\",\"\",'1. Order'!M902)","v":""},{"$f":"IF('1. Order'!N902=\"\",\"\",'1. Order'!N902)","v":""},{"$f":"IF('1. Order'!O902=\"\",\"\",'1. Order'!O902)","v":{"$error":"#N/A"}},{"$f":"IF('1. Order'!P902=\"\",\"\",'1. Order'!P902)","v":{"$error":"#N/A"}},{"$f":"IF('1. Order'!Q902=\"\",\"\",'1. Order'!Q902)","v":""},{"$f":"IF('1. Order'!R902=\"\",\"\",'1. Order'!R902)","v":""},{"$f":"IF('1. Order'!S902=\"\",\"\",'1. Order'!S902)","v":""},{"$f":"IF('1. Order'!V902=\"\",\"\",'1. Order'!V902)","v":""},{"$f":"IF('1. Order'!W902=\"\",\"\",'1. Order'!W902)","v":""},{"$f":"IF('1. Order'!X902=\"\",\"\",'1. Order'!X902)","v":"EUR"},{"$f":"IF('1. Order'!Y902=\"\",\"\",'1. Order'!Y902)","v":""},{"$f":"IF('1. Order'!Z902=\"\",\"\",'1. Order'!Z902)","v":""},{"$f":"IF('1. Order'!AA902=\"\",\"\",'1. Order'!AA902)","v":""},null,{"$f":"IF('1. Order'!AS902=\"\",\"\",'1. Order'!AS902)","v":""},{"$f":"IF('1. Order'!AT902=\"\",\"\",'1. Order'!AT902)","v":""},null,null,null,null,null,null,null,{"$f":"IF('1. Order'!AX902=\"\",\"\",'1. Order'!AX902)","v":""},{"$f":"IF('1. Order'!AY902=\"\",\"\",'1. Order'!AY902)","v":""},{"$f":"IF('1. Order'!AZ902=\"\",\"\",'1. Order'!AZ902)","v":""},{"$f":"IF('1. Order'!BA902=\"\",\"\",'1. Order'!BA902)","v":""},{"$f":"IF('1. Order'!BC902=\"\",\"\",'1. Order'!BC902)","v":""},{"$f":"IF('1. Order'!BD902=\"\",\"\",'1. Order'!BD902)","v":6},{"$f":"IF('1. Order'!BE902=\"\",\"\",'1. Order'!BE902)","v":"None"},{"$f":"IF('1. Order'!BF902=\"\",\"\",'1. Order'!BF902)","v":"Parcel"},{"$f":"IF('1. Order'!BG902=\"\",\"\",'1. Order'!BG902)","v":"ZWO"}]
[{"$f":"IF('1. Order'!F903=\"\",\"\",'1. Order'!F903)","v":""},{"$f":"IF('1. Order'!G903=\"\",\"\",'1. Order'!G903)","v":""},{"$f":"IF('1. Order'!H903=\"\",\"\",'1. Order'!H903)","v":""},{"$f":"IF('1. Order'!I903=\"\",\"\",'1. Order'!I903)","v":""},{"$f":"IF('1. Order'!J903=\"\",\"\",'1. Order'!J903)","v":""},{"$f":"IF('1. Order'!K903=\"\",\"\",'1. Order'!K903)","v":""},{"$f":"IF('1. Order'!L903=\"\",\"\",'1. Order'!L903)","v":""},{"$f":"IF('1. Order'!M903=\"\",\"\",'1. Order'!M903)","v":""},{"$f":"IF('1. Order'!N903=\"\",\"\",'1. Order'!N903)","v":""},{"$f":"IF('1. Order'!O903=\"\",\"\",'1. Order'!O903)","v":{"$error":"#N/A"}},{"$f":"IF('1. Order'!P903=\"\",\"\",'1. Order'!P903)","v":{"$error":"#N/A"}},{"$f":"IF('1. Order'!Q903=\"\",\"\",'1. Order'!Q903)","v":""},{"$f":"IF('1. Order'!R903=\"\",\"\",'1. Order'!R903)","v":""},{"$f":"IF('1. Order'!S903=\"\",\"\",'1. Order'!S903)","v":""},{"$f":"IF('1. Order'!V903=\"\",\"\",'1. Order'!V903)","v":""},{"$f":"IF('1. Order'!W903=\"\",\"\",'1. Order'!W903)","v":""},{"$f":"IF('1. Order'!X903=\"\",\"\",'1. Order'!X903)","v":"EUR"},{"$f":"IF('1. Order'!Y903=\"\",\"\",'1. Order'!Y903)","v":""},{"$f":"IF('1. Order'!Z903=\"\",\"\",'1. Order'!Z903)","v":""},{"$f":"IF('1. Order'!AA903=\"\",\"\",'1. Order'!AA903)","v":""},null,{"$f":"IF('1. Order'!AS903=\"\",\"\",'1. Order'!AS903)","v":""},{"$f":"IF('1. Order'!AT903=\"\",\"\",'1. Order'!AT903)","v":""},null,null,null,null,null,null,null,{"$f":"IF('1. Order'!AX903=\"\",\"\",'1. Order'!AX903)","v":""},{"$f":"IF('1. Order'!AY903=\"\",\"\",'1. Order'!AY903)","v":""},{"$f":"IF('1. Order'!AZ903=\"\",\"\",'1. Order'!AZ903)","v":""},{"$f":"IF('1. Order'!BA903=\"\",\"\",'1. Order'!BA903)","v":""},{"$f":"IF('1. Order'!BC903=\"\",\"\",'1. Order'!BC903)","v":""},{"$f":"IF('1. Order'!BD903=\"\",\"\",'1. Order'!BD903)","v":6},{"$f":"IF('1. Order'!BE903=\"\",\"\",'1. Order'!BE903)","v":"None"},{"$f":"IF('1. Order'!BF903=\"\",\"\",'1. Order'!BF903)","v":"Parcel"},{"$f":"IF('1. Order'!BG903=\"\",\"\",'1. Order'!BG903)","v":"ZWO"}]
[{"$f":"IF('1. Order'!F904=\"\",\"\",'1. Order'!F904)","v":""},{"$f":"IF('1. Order'!G904=\"\",\"\",'1. Order'!G904)","v":""},{"$f":"IF('1. Order'!H904=\"\",\"\",'1. Order'!H904)","v":""},{"$f":"IF('1. Order'!I904=\"\",\"\",'1. Order'!I904)","v":""},{"$f":"IF('1. Order'!J904=\"\",\"\",'1. Order'!J904)","v":""},{"$f":"IF('1. Order'!K904=\"\",\"\",'1. Order'!K904)","v":""},{"$f":"IF('1. Order'!L904=\"\",\"\",'1. Order'!L904)","v":""},{"$f":"IF('1. Order'!M904=\"\",\"\",'1. Order'!M904)","v":""},{"$f":"IF('1. Order'!N904=\"\",\"\",'1. Order'!N904)","v":""},{"$f":"IF('1. Order'!O904=\"\",\"\",'1. Order'!O904)","v":{"$error":"#N/A"}},{"$f":"IF('1. Order'!P904=\"\",\"\",'1. Order'!P904)","v":{"$error":"#N/A"}},{"$f":"IF('1. Order'!Q904=\"\",\"\",'1. Order'!Q904)","v":""},{"$f":"IF('1. Order'!R904=\"\",\"\",'1. Order'!R904)","v":""},{"$f":"IF('1. Order'!S904=\"\",\"\",'1. Order'!S904)","v":""},{"$f":"IF('1. Order'!V904=\"\",\"\",'1. Order'!V904)","v":""},{"$f":"IF('1. Order'!W904=\"\",\"\",'1. Order'!W904)","v":""},{"$f":"IF('1. Order'!X904=\"\",\"\",'1. Order'!X904)","v":"EUR"},{"$f":"IF('1. Order'!Y904=\"\",\"\",'1. Order'!Y904)","v":""},{"$f":"IF('1. Order'!Z904=\"\",\"\",'1. Order'!Z904)","v":""},{"$f":"IF('1. Order'!AA904=\"\",\"\",'1. Order'!AA904)","v":""},null,{"$f":"IF('1. Order'!AS904=\"\",\"\",'1. Order'!AS904)","v":""},{"$f":"IF('1. Order'!AT904=\"\",\"\",'1. Order'!AT904)","v":""},null,null,null,null,null,null,null,{"$f":"IF('1. Order'!AX904=\"\",\"\",'1. Order'!AX904)","v":""},{"$f":"IF('1. Order'!AY904=\"\",\"\",'1. Order'!AY904)","v":""},{"$f":"IF('1. Order'!AZ904=\"\",\"\",'1. Order'!AZ904)","v":""},{"$f":"IF('1. Order'!BA904=\"\",\"\",'1. Order'!BA904)","v":""},{"$f":"IF('1. Order'!BC904=\"\",\"\",'1. Order'!BC904)","v":""},{"$f":"IF('1. Order'!BD904=\"\",\"\",'1. Order'!BD904)","v":6},{"$f":"IF('1. Order'!BE904=\"\",\"\",'1. Order'!BE904)","v":"None"},{"$f":"IF('1. Order'!BF904=\"\",\"\",'1. Order'!BF904)","v":"Parcel"},{"$f":"IF('1. Order'!BG904=\"\",\"\",'1. Order'!BG904)","v":"ZWO"}]
[{"$f":"IF('1. Order'!F905=\"\",\"\",'1. Order'!F905)","v":""},{"$f":"IF('1. Order'!G905=\"\",\"\",'1. Order'!G905)","v":""},{"$f":"IF('1. Order'!H905=\"\",\"\",'1. Order'!H905)","v":""},{"$f":"IF('1. Order'!I905=\"\",\"\",'1. Order'!I905)","v":""},{"$f":"IF('1. Order'!J905=\"\",\"\",'1. Order'!J905)","v":""},{"$f":"IF('1. Order'!K905=\"\",\"\",'1. Order'!K905)","v":""},{"$f":"IF('1. Order'!L905=\"\",\"\",'1. Order'!L905)","v":""},{"$f":"IF('1. Order'!M905=\"\",\"\",'1. Order'!M905)","v":""},{"$f":"IF('1. Order'!N905=\"\",\"\",'1. Order'!N905)","v":""},{"$f":"IF('1. Order'!O905=\"\",\"\",'1. Order'!O905)","v":{"$error":"#N/A"}},{"$f":"IF('1. Order'!P905=\"\",\"\",'1. Order'!P905)","v":{"$error":"#N/A"}},{"$f":"IF('1. Order'!Q905=\"\",\"\",'1. Order'!Q905)","v":""},{"$f":"IF('1. Order'!R905=\"\",\"\",'1. Order'!R905)","v":""},{"$f":"IF('1. Order'!S905=\"\",\"\",'1. Order'!S905)","v":""},{"$f":"IF('1. Order'!V905=\"\",\"\",'1. Order'!V905)","v":""},{"$f":"IF('1. Order'!W905=\"\",\"\",'1. Order'!W905)","v":""},{"$f":"IF('1. Order'!X905=\"\",\"\",'1. Order'!X905)","v":"EUR"},{"$f":"IF('1. Order'!Y905=\"\",\"\",'1. Order'!Y905)","v":""},{"$f":"IF('1. Order'!Z905=\"\",\"\",'1. Order'!Z905)","v":""},{"$f":"IF('1. Order'!AA905=\"\",\"\",'1. Order'!AA905)","v":""},null,{"$f":"IF('1. Order'!AS905=\"\",\"\",'1. Order'!AS905)","v":""},{"$f":"IF('1. Order'!AT905=\"\",\"\",'1. Order'!AT905)","v":""},null,null,null,null,null,null,null,{"$f":"IF('1. Order'!AX905=\"\",\"\",'1. Order'!AX905)","v":""},{"$f":"IF('1. Order'!AY905=\"\",\"\",'1. Order'!AY905)","v":""},{"$f":"IF('1. Order'!AZ905=\"\",\"\",'1. Order'!AZ905)","v":""},{"$f":"IF('1. Order'!BA905=\"\",\"\",'1. Order'!BA905)","v":""},{"$f":"IF('1. Order'!BC905=\"\",\"\",'1. Order'!BC905)","v":""},{"$f":"IF('1. Order'!BD905=\"\",\"\",'1. Order'!BD905)","v":6},{"$f":"IF('1. Order'!BE905=\"\",\"\",'1. Order'!BE905)","v":"None"},{"$f":"IF('1. Order'!BF905=\"\",\"\",'1. Order'!BF905)","v":"Parcel"},{"$f":"IF('1. Order'!BG905=\"\",\"\",'1. Order'!BG905)","v":"ZWO"}]
[{"$f":"IF('1. Order'!F906=\"\",\"\",'1. Order'!F906)","v":""},{"$f":"IF('1. Order'!G906=\"\",\"\",'1. Order'!G906)","v":""},{"$f":"IF('1. Order'!H906=\"\",\"\",'1. Order'!H906)","v":""},{"$f":"IF('1. Order'!I906=\"\",\"\",'1. Order'!I906)","v":""},{"$f":"IF('1. Order'!J906=\"\",\"\",'1. Order'!J906)","v":""},{"$f":"IF('1. Order'!K906=\"\",\"\",'1. Order'!K906)","v":""},{"$f":"IF('1. Order'!L906=\"\",\"\",'1. Order'!L906)","v":""},{"$f":"IF('1. Order'!M906=\"\",\"\",'1. Order'!M906)","v":""},{"$f":"IF('1. Order'!N906=\"\",\"\",'1. Order'!N906)","v":""},{"$f":"IF('1. Order'!O906=\"\",\"\",'1. Order'!O906)","v":{"$error":"#N/A"}},{"$f":"IF('1. Order'!P906=\"\",\"\",'1. Order'!P906)","v":{"$error":"#N/A"}},{"$f":"IF('1. Order'!Q906=\"\",\"\",'1. Order'!Q906)","v":""},{"$f":"IF('1. Order'!R906=\"\",\"\",'1. Order'!R906)","v":""},{"$f":"IF('1. Order'!S906=\"\",\"\",'1. Order'!S906)","v":""},{"$f":"IF('1. Order'!V906=\"\",\"\",'1. Order'!V906)","v":""},{"$f":"IF('1. Order'!W906=\"\",\"\",'1. Order'!W906)","v":""},{"$f":"IF('1. Order'!X906=\"\",\"\",'1. Order'!X906)","v":"EUR"},{"$f":"IF('1. Order'!Y906=\"\",\"\",'1. Order'!Y906)","v":""},{"$f":"IF('1. Order'!Z906=\"\",\"\",'1. Order'!Z906)","v":""},{"$f":"IF('1. Order'!AA906=\"\",\"\",'1. Order'!AA906)","v":""},null,{"$f":"IF('1. Order'!AS906=\"\",\"\",'1. Order'!AS906)","v":""},{"$f":"IF('1. Order'!AT906=\"\",\"\",'1. Order'!AT906)","v":""},null,null,null,null,null,null,null,{"$f":"IF('1. Order'!AX906=\"\",\"\",'1. Order'!AX906)","v":""},{"$f":"IF('1. Order'!AY906=\"\",\"\",'1. Order'!AY906)","v":""},{"$f":"IF('1. Order'!AZ906=\"\",\"\",'1. Order'!AZ906)","v":""},{"$f":"IF('1. Order'!BA906=\"\",\"\",'1. Order'!BA906)","v":""},{"$f":"IF('1. Order'!BC906=\"\",\"\",'1. Order'!BC906)","v":""},{"$f":"IF('1. Order'!BD906=\"\",\"\",'1. Order'!BD906)","v":6},{"$f":"IF('1. Order'!BE906=\"\",\"\",'1. Order'!BE906)","v":"None"},{"$f":"IF('1. Order'!BF906=\"\",\"\",'1. Order'!BF906)","v":"Parcel"},{"$f":"IF('1. Order'!BG906=\"\",\"\",'1. Order'!BG906)","v":"ZWO"}]
[{"$f":"IF('1. Order'!F907=\"\",\"\",'1. Order'!F907)","v":""},{"$f":"IF('1. Order'!G907=\"\",\"\",'1. Order'!G907)","v":""},{"$f":"IF('1. Order'!H907=\"\",\"\",'1. Order'!H907)","v":""},{"$f":"IF('1. Order'!I907=\"\",\"\",'1. Order'!I907)","v":""},{"$f":"IF('1. Order'!J907=\"\",\"\",'1. Order'!J907)","v":""},{"$f":"IF('1. Order'!K907=\"\",\"\",'1. Order'!K907)","v":""},{"$f":"IF('1. Order'!L907=\"\",\"\",'1. Order'!L907)","v":""},{"$f":"IF('1. Order'!M907=\"\",\"\",'1. Order'!M907)","v":""},{"$f":"IF('1. Order'!N907=\"\",\"\",'1. Order'!N907)","v":""},{"$f":"IF('1. Order'!O907=\"\",\"\",'1. Order'!O907)","v":{"$error":"#N/A"}},{"$f":"IF('1. Order'!P907=\"\",\"\",'1. Order'!P907)","v":{"$error":"#N/A"}},{"$f":"IF('1. Order'!Q907=\"\",\"\",'1. Order'!Q907)","v":""},{"$f":"IF('1. Order'!R907=\"\",\"\",'1. Order'!R907)","v":""},{"$f":"IF('1. Order'!S907=\"\",\"\",'1. Order'!S907)","v":""},{"$f":"IF('1. Order'!V907=\"\",\"\",'1. Order'!V907)","v":""},{"$f":"IF('1. Order'!W907=\"\",\"\",'1. Order'!W907)","v":""},{"$f":"IF('1. Order'!X907=\"\",\"\",'1. Order'!X907)","v":"EUR"},{"$f":"IF('1. Order'!Y907=\"\",\"\",'1. Order'!Y907)","v":""},{"$f":"IF('1. Order'!Z907=\"\",\"\",'1. Order'!Z907)","v":""},{"$f":"IF('1. Order'!AA907=\"\",\"\",'1. Order'!AA907)","v":""},null,{"$f":"IF('1. Order'!AS907=\"\",\"\",'1. Order'!AS907)","v":""},{"$f":"IF('1. Order'!AT907=\"\",\"\",'1. Order'!AT907)","v":""},null,null,null,null,null,null,null,{"$f":"IF('1. Order'!AX907=\"\",\"\",'1. Order'!AX907)","v":""},{"$f":"IF('1. Order'!AY907=\"\",\"\",'1. Order'!AY907)","v":""},{"$f":"IF('1. Order'!AZ907=\"\",\"\",'1. Order'!AZ907)","v":""},{"$f":"IF('1. Order'!BA907=\"\",\"\",'1. Order'!BA907)","v":""},{"$f":"IF('1. Order'!BC907=\"\",\"\",'1. Order'!BC907)","v":""},{"$f":"IF('1. Order'!BD907=\"\",\"\",'1. Order'!BD907)","v":6},{"$f":"IF('1. Order'!BE907=\"\",\"\",'1. Order'!BE907)","v":"None"},{"$f":"IF('1. Order'!BF907=\"\",\"\",'1. Order'!BF907)","v":"Parcel"},{"$f":"IF('1. Order'!BG907=\"\",\"\",'1. Order'!BG907)","v":"ZWO"}]
[{"$f":"IF('1. Order'!F908=\"\",\"\",'1. Order'!F908)","v":""},{"$f":"IF('1. Order'!G908=\"\",\"\",'1. Order'!G908)","v":""},{"$f":"IF('1. Order'!H908=\"\",\"\",'1. Order'!H908)","v":""},{"$f":"IF('1. Order'!I908=\"\",\"\",'1. Order'!I908)","v":""},{"$f":"IF('1. Order'!J908=\"\",\"\",'1. Order'!J908)","v":""},{"$f":"IF('1. Order'!K908=\"\",\"\",'1. Order'!K908)","v":""},{"$f":"IF('1. Order'!L908=\"\",\"\",'1. Order'!L908)","v":""},{"$f":"IF('1. Order'!M908=\"\",\"\",'1. Order'!M908)","v":""},{"$f":"IF('1. Order'!N908=\"\",\"\",'1. Order'!N908)","v":""},{"$f":"IF('1. Order'!O908=\"\",\"\",'1. Order'!O908)","v":{"$error":"#N/A"}},{"$f":"IF('1. Order'!P908=\"\",\"\",'1. Order'!P908)","v":{"$error":"#N/A"}},{"$f":"IF('1. Order'!Q908=\"\",\"\",'1. Order'!Q908)","v":""},{"$f":"IF('1. Order'!R908=\"\",\"\",'1. Order'!R908)","v":""},{"$f":"IF('1. Order'!S908=\"\",\"\",'1. Order'!S908)","v":""},{"$f":"IF('1. Order'!V908=\"\",\"\",'1. Order'!V908)","v":""},{"$f":"IF('1. Order'!W908=\"\",\"\",'1. Order'!W908)","v":""},{"$f":"IF('1. Order'!X908=\"\",\"\",'1. Order'!X908)","v":"EUR"},{"$f":"IF('1. Order'!Y908=\"\",\"\",'1. Order'!Y908)","v":""},{"$f":"IF('1. Order'!Z908=\"\",\"\",'1. Order'!Z908)","v":""},{"$f":"IF('1. Order'!AA908=\"\",\"\",'1. Order'!AA908)","v":""},null,{"$f":"IF('1. Order'!AS908=\"\",\"\",'1. Order'!AS908)","v":""},{"$f":"IF('1. Order'!AT908=\"\",\"\",'1. Order'!AT908)","v":""},null,null,null,null,null,null,null,{"$f":"IF('1. Order'!AX908=\"\",\"\",'1. Order'!AX908)","v":""},{"$f":"IF('1. Order'!AY908=\"\",\"\",'1. Order'!AY908)","v":""},{"$f":"IF('1. Order'!AZ908=\"\",\"\",'1. Order'!AZ908)","v":""},{"$f":"IF('1. Order'!BA908=\"\",\"\",'1. Order'!BA908)","v":""},{"$f":"IF('1. Order'!BC908=\"\",\"\",'1. Order'!BC908)","v":""},{"$f":"IF('1. Order'!BD908=\"\",\"\",'1. Order'!BD908)","v":6},{"$f":"IF('1. Order'!BE908=\"\",\"\",'1. Order'!BE908)","v":"None"},{"$f":"IF('1. Order'!BF908=\"\",\"\",'1. Order'!BF908)","v":"Parcel"},{"$f":"IF('1. Order'!BG908=\"\",\"\",'1. Order'!BG908)","v":"ZWO"}]
[{"$f":"IF('1. Order'!F909=\"\",\"\",'1. Order'!F909)","v":""},{"$f":"IF('1. Order'!G909=\"\",\"\",'1. Order'!G909)","v":""},{"$f":"IF('1. Order'!H909=\"\",\"\",'1. Order'!H909)","v":""},{"$f":"IF('1. Order'!I909=\"\",\"\",'1. Order'!I909)","v":""},{"$f":"IF('1. Order'!J909=\"\",\"\",'1. Order'!J909)","v":""},{"$f":"IF('1. Order'!K909=\"\",\"\",'1. Order'!K909)","v":""},{"$f":"IF('1. Order'!L909=\"\",\"\",'1. Order'!L909)","v":""},{"$f":"IF('1. Order'!M909=\"\",\"\",'1. Order'!M909)","v":""},{"$f":"IF('1. Order'!N909=\"\",\"\",'1. Order'!N909)","v":""},{"$f":"IF('1. Order'!O909=\"\",\"\",'1. Order'!O909)","v":{"$error":"#N/A"}},{"$f":"IF('1. Order'!P909=\"\",\"\",'1. Order'!P909)","v":{"$error":"#N/A"}},{"$f":"IF('1. Order'!Q909=\"\",\"\",'1. Order'!Q909)","v":""},{"$f":"IF('1. Order'!R909=\"\",\"\",'1. Order'!R909)","v":""},{"$f":"IF('1. Order'!S909=\"\",\"\",'1. Order'!S909)","v":""},{"$f":"IF('1. Order'!V909=\"\",\"\",'1. Order'!V909)","v":""},{"$f":"IF('1. Order'!W909=\"\",\"\",'1. Order'!W909)","v":""},{"$f":"IF('1. Order'!X909=\"\",\"\",'1. Order'!X909)","v":"EUR"},{"$f":"IF('1. Order'!Y909=\"\",\"\",'1. Order'!Y909)","v":""},{"$f":"IF('1. Order'!Z909=\"\",\"\",'1. Order'!Z909)","v":""},{"$f":"IF('1. Order'!AA909=\"\",\"\",'1. Order'!AA909)","v":""},null,{"$f":"IF('1. Order'!AS909=\"\",\"\",'1. Order'!AS909)","v":""},{"$f":"IF('1. Order'!AT909=\"\",\"\",'1. Order'!AT909)","v":""},null,null,null,null,null,null,null,{"$f":"IF('1. Order'!AX909=\"\",\"\",'1. Order'!AX909)","v":""},{"$f":"IF('1. Order'!AY909=\"\",\"\",'1. Order'!AY909)","v":""},{"$f":"IF('1. Order'!AZ909=\"\",\"\",'1. Order'!AZ909)","v":""},{"$f":"IF('1. Order'!BA909=\"\",\"\",'1. Order'!BA909)","v":""},{"$f":"IF('1. Order'!BC909=\"\",\"\",'1. Order'!BC909)","v":""},{"$f":"IF('1. Order'!BD909=\"\",\"\",'1. Order'!BD909)","v":6},{"$f":"IF('1. Order'!BE909=\"\",\"\",'1. Order'!BE909)","v":"None"},{"$f":"IF('1. Order'!BF909=\"\",\"\",'1. Order'!BF909)","v":"Parcel"},{"$f":"IF('1. Order'!BG909=\"\",\"\",'1. Order'!BG909)","v":"ZWO"}]
[{"$f":"IF('1. Order'!F910=\"\",\"\",'1. Order'!F910)","v":""},{"$f":"IF('1. Order'!G910=\"\",\"\",'1. Order'!G910)","v":""},{"$f":"IF('1. Order'!H910=\"\",\"\",'1. Order'!H910)","v":""},{"$f":"IF('1. Order'!I910=\"\",\"\",'1. Order'!I910)","v":""},{"$f":"IF('1. Order'!J910=\"\",\"\",'1. Order'!J910)","v":""},{"$f":"IF('1. Order'!K910=\"\",\"\",'1. Order'!K910)","v":""},{"$f":"IF('1. Order'!L910=\"\",\"\",'1. Order'!L910)","v":""},{"$f":"IF('1. Order'!M910=\"\",\"\",'1. Order'!M910)","v":""},{"$f":"IF('1. Order'!N910=\"\",\"\",'1. Order'!N910)","v":""},{"$f":"IF('1. Order'!O910=\"\",\"\",'1. Order'!O910)","v":{"$error":"#N/A"}},{"$f":"IF('1. Order'!P910=\"\",\"\",'1. Order'!P910)","v":{"$error":"#N/A"}},{"$f":"IF('1. Order'!Q910=\"\",\"\",'1. Order'!Q910)","v":""},{"$f":"IF('1. Order'!R910=\"\",\"\",'1. Order'!R910)","v":""},{"$f":"IF('1. Order'!S910=\"\",\"\",'1. Order'!S910)","v":""},{"$f":"IF('1. Order'!V910=\"\",\"\",'1. Order'!V910)","v":""},{"$f":"IF('1. Order'!W910=\"\",\"\",'1. Order'!W910)","v":""},{"$f":"IF('1. Order'!X910=\"\",\"\",'1. Order'!X910)","v":"EUR"},{"$f":"IF('1. Order'!Y910=\"\",\"\",'1. Order'!Y910)","v":""},{"$f":"IF('1. Order'!Z910=\"\",\"\",'1. Order'!Z910)","v":""},{"$f":"IF('1. Order'!AA910=\"\",\"\",'1. Order'!AA910)","v":""},null,{"$f":"IF('1. Order'!AS910=\"\",\"\",'1. Order'!AS910)","v":""},{"$f":"IF('1. Order'!AT910=\"\",\"\",'1. Order'!AT910)","v":""},null,null,null,null,null,null,null,{"$f":"IF('1. Order'!AX910=\"\",\"\",'1. Order'!AX910)","v":""},{"$f":"IF('1. Order'!AY910=\"\",\"\",'1. Order'!AY910)","v":""},{"$f":"IF('1. Order'!AZ910=\"\",\"\",'1. Order'!AZ910)","v":""},{"$f":"IF('1. Order'!BA910=\"\",\"\",'1. Order'!BA910)","v":""},{"$f":"IF('1. Order'!BC910=\"\",\"\",'1. Order'!BC910)","v":""},{"$f":"IF('1. Order'!BD910=\"\",\"\",'1. Order'!BD910)","v":6},{"$f":"IF('1. Order'!BE910=\"\",\"\",'1. Order'!BE910)","v":"None"},{"$f":"IF('1. Order'!BF910=\"\",\"\",'1. Order'!BF910)","v":"Parcel"},{"$f":"IF('1. Order'!BG910=\"\",\"\",'1. Order'!BG910)","v":"ZWO"}]
[{"$f":"IF('1. Order'!F911=\"\",\"\",'1. Order'!F911)","v":""},{"$f":"IF('1. Order'!G911=\"\",\"\",'1. Order'!G911)","v":""},{"$f":"IF('1. Order'!H911=\"\",\"\",'1. Order'!H911)","v":""},{"$f":"IF('1. Order'!I911=\"\",\"\",'1. Order'!I911)","v":""},{"$f":"IF('1. Order'!J911=\"\",\"\",'1. Order'!J911)","v":""},{"$f":"IF('1. Order'!K911=\"\",\"\",'1. Order'!K911)","v":""},{"$f":"IF('1. Order'!L911=\"\",\"\",'1. Order'!L911)","v":""},{"$f":"IF('1. Order'!M911=\"\",\"\",'1. Order'!M911)","v":""},{"$f":"IF('1. Order'!N911=\"\",\"\",'1. Order'!N911)","v":""},{"$f":"IF('1. Order'!O911=\"\",\"\",'1. Order'!O911)","v":{"$error":"#N/A"}},{"$f":"IF('1. Order'!P911=\"\",\"\",'1. Order'!P911)","v":{"$error":"#N/A"}},{"$f":"IF('1. Order'!Q911=\"\",\"\",'1. Order'!Q911)","v":""},{"$f":"IF('1. Order'!R911=\"\",\"\",'1. Order'!R911)","v":""},{"$f":"IF('1. Order'!S911=\"\",\"\",'1. Order'!S911)","v":""},{"$f":"IF('1. Order'!V911=\"\",\"\",'1. Order'!V911)","v":""},{"$f":"IF('1. Order'!W911=\"\",\"\",'1. Order'!W911)","v":""},{"$f":"IF('1. Order'!X911=\"\",\"\",'1. Order'!X911)","v":"EUR"},{"$f":"IF('1. Order'!Y911=\"\",\"\",'1. Order'!Y911)","v":""},{"$f":"IF('1. Order'!Z911=\"\",\"\",'1. Order'!Z911)","v":""},{"$f":"IF('1. Order'!AA911=\"\",\"\",'1. Order'!AA911)","v":""},null,{"$f":"IF('1. Order'!AS911=\"\",\"\",'1. Order'!AS911)","v":""},{"$f":"IF('1. Order'!AT911=\"\",\"\",'1. Order'!AT911)","v":""},null,null,null,null,null,null,null,{"$f":"IF('1. Order'!AX911=\"\",\"\",'1. Order'!AX911)","v":""},{"$f":"IF('1. Order'!AY911=\"\",\"\",'1. Order'!AY911)","v":""},{"$f":"IF('1. Order'!AZ911=\"\",\"\",'1. Order'!AZ911)","v":""},{"$f":"IF('1. Order'!BA911=\"\",\"\",'1. Order'!BA911)","v":""},{"$f":"IF('1. Order'!BC911=\"\",\"\",'1. Order'!BC911)","v":""},{"$f":"IF('1. Order'!BD911=\"\",\"\",'1. Order'!BD911)","v":6},{"$f":"IF('1. Order'!BE911=\"\",\"\",'1. Order'!BE911)","v":"None"},{"$f":"IF('1. Order'!BF911=\"\",\"\",'1. Order'!BF911)","v":"Parcel"},{"$f":"IF('1. Order'!BG911=\"\",\"\",'1. Order'!BG911)","v":"ZWO"}]
[{"$f":"IF('1. Order'!F912=\"\",\"\",'1. Order'!F912)","v":""},{"$f":"IF('1. Order'!G912=\"\",\"\",'1. Order'!G912)","v":""},{"$f":"IF('1. Order'!H912=\"\",\"\",'1. Order'!H912)","v":""},{"$f":"IF('1. Order'!I912=\"\",\"\",'1. Order'!I912)","v":""},{"$f":"IF('1. Order'!J912=\"\",\"\",'1. Order'!J912)","v":""},{"$f":"IF('1. Order'!K912=\"\",\"\",'1. Order'!K912)","v":""},{"$f":"IF('1. Order'!L912=\"\",\"\",'1. Order'!L912)","v":""},{"$f":"IF('1. Order'!M912=\"\",\"\",'1. Order'!M912)","v":""},{"$f":"IF('1. Order'!N912=\"\",\"\",'1. Order'!N912)","v":""},{"$f":"IF('1. Order'!O912=\"\",\"\",'1. Order'!O912)","v":{"$error":"#N/A"}},{"$f":"IF('1. Order'!P912=\"\",\"\",'1. Order'!P912)","v":{"$error":"#N/A"}},{"$f":"IF('1. Order'!Q912=\"\",\"\",'1. Order'!Q912)","v":""},{"$f":"IF('1. Order'!R912=\"\",\"\",'1. Order'!R912)","v":""},{"$f":"IF('1. Order'!S912=\"\",\"\",'1. Order'!S912)","v":""},{"$f":"IF('1. Order'!V912=\"\",\"\",'1. Order'!V912)","v":""},{"$f":"IF('1. Order'!W912=\"\",\"\",'1. Order'!W912)","v":""},{"$f":"IF('1. Order'!X912=\"\",\"\",'1. Order'!X912)","v":"EUR"},{"$f":"IF('1. Order'!Y912=\"\",\"\",'1. Order'!Y912)","v":""},{"$f":"IF('1. Order'!Z912=\"\",\"\",'1. Order'!Z912)","v":""},{"$f":"IF('1. Order'!AA912=\"\",\"\",'1. Order'!AA912)","v":""},null,{"$f":"IF('1. Order'!AS912=\"\",\"\",'1. Order'!AS912)","v":""},{"$f":"IF('1. Order'!AT912=\"\",\"\",'1. Order'!AT912)","v":""},null,null,null,null,null,null,null,{"$f":"IF('1. Order'!AX912=\"\",\"\",'1. Order'!AX912)","v":""},{"$f":"IF('1. Order'!AY912=\"\",\"\",'1. Order'!AY912)","v":""},{"$f":"IF('1. Order'!AZ912=\"\",\"\",'1. Order'!AZ912)","v":""},{"$f":"IF('1. Order'!BA912=\"\",\"\",'1. Order'!BA912)","v":""},{"$f":"IF('1. Order'!BC912=\"\",\"\",'1. Order'!BC912)","v":""},{"$f":"IF('1. Order'!BD912=\"\",\"\",'1. Order'!BD912)","v":6},{"$f":"IF('1. Order'!BE912=\"\",\"\",'1. Order'!BE912)","v":"None"},{"$f":"IF('1. Order'!BF912=\"\",\"\",'1. Order'!BF912)","v":"Parcel"},{"$f":"IF('1. Order'!BG912=\"\",\"\",'1. Order'!BG912)","v":"ZWO"}]
[{"$f":"IF('1. Order'!F913=\"\",\"\",'1. Order'!F913)","v":""},{"$f":"IF('1. Order'!G913=\"\",\"\",'1. Order'!G913)","v":""},{"$f":"IF('1. Order'!H913=\"\",\"\",'1. Order'!H913)","v":""},{"$f":"IF('1. Order'!I913=\"\",\"\",'1. Order'!I913)","v":""},{"$f":"IF('1. Order'!J913=\"\",\"\",'1. Order'!J913)","v":""},{"$f":"IF('1. Order'!K913=\"\",\"\",'1. Order'!K913)","v":""},{"$f":"IF('1. Order'!L913=\"\",\"\",'1. Order'!L913)","v":""},{"$f":"IF('1. Order'!M913=\"\",\"\",'1. Order'!M913)","v":""},{"$f":"IF('1. Order'!N913=\"\",\"\",'1. Order'!N913)","v":""},{"$f":"IF('1. Order'!O913=\"\",\"\",'1. Order'!O913)","v":{"$error":"#N/A"}},{"$f":"IF('1. Order'!P913=\"\",\"\",'1. Order'!P913)","v":{"$error":"#N/A"}},{"$f":"IF('1. Order'!Q913=\"\",\"\",'1. Order'!Q913)","v":""},{"$f":"IF('1. Order'!R913=\"\",\"\",'1. Order'!R913)","v":""},{"$f":"IF('1. Order'!S913=\"\",\"\",'1. Order'!S913)","v":""},{"$f":"IF('1. Order'!V913=\"\",\"\",'1. Order'!V913)","v":""},{"$f":"IF('1. Order'!W913=\"\",\"\",'1. Order'!W913)","v":""},{"$f":"IF('1. Order'!X913=\"\",\"\",'1. Order'!X913)","v":"EUR"},{"$f":"IF('1. Order'!Y913=\"\",\"\",'1. Order'!Y913)","v":""},{"$f":"IF('1. Order'!Z913=\"\",\"\",'1. Order'!Z913)","v":""},{"$f":"IF('1. Order'!AA913=\"\",\"\",'1. Order'!AA913)","v":""},null,{"$f":"IF('1. Order'!AS913=\"\",\"\",'1. Order'!AS913)","v":""},{"$f":"IF('1. Order'!AT913=\"\",\"\",'1. Order'!AT913)","v":""},null,null,null,null,null,null,null,{"$f":"IF('1. Order'!AX913=\"\",\"\",'1. Order'!AX913)","v":""},{"$f":"IF('1. Order'!AY913=\"\",\"\",'1. Order'!AY913)","v":""},{"$f":"IF('1. Order'!AZ913=\"\",\"\",'1. Order'!AZ913)","v":""},{"$f":"IF('1. Order'!BA913=\"\",\"\",'1. Order'!BA913)","v":""},{"$f":"IF('1. Order'!BC913=\"\",\"\",'1. Order'!BC913)","v":""},{"$f":"IF('1. Order'!BD913=\"\",\"\",'1. Order'!BD913)","v":6},{"$f":"IF('1. Order'!BE913=\"\",\"\",'1. Order'!BE913)","v":"None"},{"$f":"IF('1. Order'!BF913=\"\",\"\",'1. Order'!BF913)","v":"Parcel"},{"$f":"IF('1. Order'!BG913=\"\",\"\",'1. Order'!BG913)","v":"ZWO"}]
[{"$f":"IF('1. Order'!F914=\"\",\"\",'1. Order'!F914)","v":""},{"$f":"IF('1. Order'!G914=\"\",\"\",'1. Order'!G914)","v":""},{"$f":"IF('1. Order'!H914=\"\",\"\",'1. Order'!H914)","v":""},{"$f":"IF('1. Order'!I914=\"\",\"\",'1. Order'!I914)","v":""},{"$f":"IF('1. Order'!J914=\"\",\"\",'1. Order'!J914)","v":""},{"$f":"IF('1. Order'!K914=\"\",\"\",'1. Order'!K914)","v":""},{"$f":"IF('1. Order'!L914=\"\",\"\",'1. Order'!L914)","v":""},{"$f":"IF('1. Order'!M914=\"\",\"\",'1. Order'!M914)","v":""},{"$f":"IF('1. Order'!N914=\"\",\"\",'1. Order'!N914)","v":""},{"$f":"IF('1. Order'!O914=\"\",\"\",'1. Order'!O914)","v":{"$error":"#N/A"}},{"$f":"IF('1. Order'!P914=\"\",\"\",'1. Order'!P914)","v":{"$error":"#N/A"}},{"$f":"IF('1. Order'!Q914=\"\",\"\",'1. Order'!Q914)","v":""},{"$f":"IF('1. Order'!R914=\"\",\"\",'1. Order'!R914)","v":""},{"$f":"IF('1. Order'!S914=\"\",\"\",'1. Order'!S914)","v":""},{"$f":"IF('1. Order'!V914=\"\",\"\",'1. Order'!V914)","v":""},{"$f":"IF('1. Order'!W914=\"\",\"\",'1. Order'!W914)","v":""},{"$f":"IF('1. Order'!X914=\"\",\"\",'1. Order'!X914)","v":"EUR"},{"$f":"IF('1. Order'!Y914=\"\",\"\",'1. Order'!Y914)","v":""},{"$f":"IF('1. Order'!Z914=\"\",\"\",'1. Order'!Z914)","v":""},{"$f":"IF('1. Order'!AA914=\"\",\"\",'1. Order'!AA914)","v":""},null,{"$f":"IF('1. Order'!AS914=\"\",\"\",'1. Order'!AS914)","v":""},{"$f":"IF('1. Order'!AT914=\"\",\"\",'1. Order'!AT914)","v":""},null,null,null,null,null,null,null,{"$f":"IF('1. Order'!AX914=\"\",\"\",'1. Order'!AX914)","v":""},{"$f":"IF('1. Order'!AY914=\"\",\"\",'1. Order'!AY914)","v":""},{"$f":"IF('1. Order'!AZ914=\"\",\"\",'1. Order'!AZ914)","v":""},{"$f":"IF('1. Order'!BA914=\"\",\"\",'1. Order'!BA914)","v":""},{"$f":"IF('1. Order'!BC914=\"\",\"\",'1. Order'!BC914)","v":""},{"$f":"IF('1. Order'!BD914=\"\",\"\",'1. Order'!BD914)","v":6},{"$f":"IF('1. Order'!BE914=\"\",\"\",'1. Order'!BE914)","v":"None"},{"$f":"IF('1. Order'!BF914=\"\",\"\",'1. Order'!BF914)","v":"Parcel"},{"$f":"IF('1. Order'!BG914=\"\",\"\",'1. Order'!BG914)","v":"ZWO"}]
[{"$f":"IF('1. Order'!F915=\"\",\"\",'1. Order'!F915)","v":""},{"$f":"IF('1. Order'!G915=\"\",\"\",'1. Order'!G915)","v":""},{"$f":"IF('1. Order'!H915=\"\",\"\",'1. Order'!H915)","v":""},{"$f":"IF('1. Order'!I915=\"\",\"\",'1. Order'!I915)","v":""},{"$f":"IF('1. Order'!J915=\"\",\"\",'1. Order'!J915)","v":""},{"$f":"IF('1. Order'!K915=\"\",\"\",'1. Order'!K915)","v":""},{"$f":"IF('1. Order'!L915=\"\",\"\",'1. Order'!L915)","v":""},{"$f":"IF('1. Order'!M915=\"\",\"\",'1. Order'!M915)","v":""},{"$f":"IF('1. Order'!N915=\"\",\"\",'1. Order'!N915)","v":""},{"$f":"IF('1. Order'!O915=\"\",\"\",'1. Order'!O915)","v":{"$error":"#N/A"}},{"$f":"IF('1. Order'!P915=\"\",\"\",'1. Order'!P915)","v":{"$error":"#N/A"}},{"$f":"IF('1. Order'!Q915=\"\",\"\",'1. Order'!Q915)","v":""},{"$f":"IF('1. Order'!R915=\"\",\"\",'1. Order'!R915)","v":""},{"$f":"IF('1. Order'!S915=\"\",\"\",'1. Order'!S915)","v":""},{"$f":"IF('1. Order'!V915=\"\",\"\",'1. Order'!V915)","v":""},{"$f":"IF('1. Order'!W915=\"\",\"\",'1. Order'!W915)","v":""},{"$f":"IF('1. Order'!X915=\"\",\"\",'1. Order'!X915)","v":"EUR"},{"$f":"IF('1. Order'!Y915=\"\",\"\",'1. Order'!Y915)","v":""},{"$f":"IF('1. Order'!Z915=\"\",\"\",'1. Order'!Z915)","v":""},{"$f":"IF('1. Order'!AA915=\"\",\"\",'1. Order'!AA915)","v":""},null,{"$f":"IF('1. Order'!AS915=\"\",\"\",'1. Order'!AS915)","v":""},{"$f":"IF('1. Order'!AT915=\"\",\"\",'1. Order'!AT915)","v":""},null,null,null,null,null,null,null,{"$f":"IF('1. Order'!AX915=\"\",\"\",'1. Order'!AX915)","v":""},{"$f":"IF('1. Order'!AY915=\"\",\"\",'1. Order'!AY915)","v":""},{"$f":"IF('1. Order'!AZ915=\"\",\"\",'1. Order'!AZ915)","v":""},{"$f":"IF('1. Order'!BA915=\"\",\"\",'1. Order'!BA915)","v":""},{"$f":"IF('1. Order'!BC915=\"\",\"\",'1. Order'!BC915)","v":""},{"$f":"IF('1. Order'!BD915=\"\",\"\",'1. Order'!BD915)","v":6},{"$f":"IF('1. Order'!BE915=\"\",\"\",'1. Order'!BE915)","v":"None"},{"$f":"IF('1. Order'!BF915=\"\",\"\",'1. Order'!BF915)","v":"Parcel"},{"$f":"IF('1. Order'!BG915=\"\",\"\",'1. Order'!BG915)","v":"ZWO"}]
[{"$f":"IF('1. Order'!F916=\"\",\"\",'1. Order'!F916)","v":""},{"$f":"IF('1. Order'!G916=\"\",\"\",'1. Order'!G916)","v":""},{"$f":"IF('1. Order'!H916=\"\",\"\",'1. Order'!H916)","v":""},{"$f":"IF('1. Order'!I916=\"\",\"\",'1. Order'!I916)","v":""},{"$f":"IF('1. Order'!J916=\"\",\"\",'1. Order'!J916)","v":""},{"$f":"IF('1. Order'!K916=\"\",\"\",'1. Order'!K916)","v":""},{"$f":"IF('1. Order'!L916=\"\",\"\",'1. Order'!L916)","v":""},{"$f":"IF('1. Order'!M916=\"\",\"\",'1. Order'!M916)","v":""},{"$f":"IF('1. Order'!N916=\"\",\"\",'1. Order'!N916)","v":""},{"$f":"IF('1. Order'!O916=\"\",\"\",'1. Order'!O916)","v":{"$error":"#N/A"}},{"$f":"IF('1. Order'!P916=\"\",\"\",'1. Order'!P916)","v":{"$error":"#N/A"}},{"$f":"IF('1. Order'!Q916=\"\",\"\",'1. Order'!Q916)","v":""},{"$f":"IF('1. Order'!R916=\"\",\"\",'1. Order'!R916)","v":""},{"$f":"IF('1. Order'!S916=\"\",\"\",'1. Order'!S916)","v":""},{"$f":"IF('1. Order'!V916=\"\",\"\",'1. Order'!V916)","v":""},{"$f":"IF('1. Order'!W916=\"\",\"\",'1. Order'!W916)","v":""},{"$f":"IF('1. Order'!X916=\"\",\"\",'1. Order'!X916)","v":"EUR"},{"$f":"IF('1. Order'!Y916=\"\",\"\",'1. Order'!Y916)","v":""},{"$f":"IF('1. Order'!Z916=\"\",\"\",'1. Order'!Z916)","v":""},{"$f":"IF('1. Order'!AA916=\"\",\"\",'1. Order'!AA916)","v":""},null,{"$f":"IF('1. Order'!AS916=\"\",\"\",'1. Order'!AS916)","v":""},{"$f":"IF('1. Order'!AT916=\"\",\"\",'1. Order'!AT916)","v":""},null,null,null,null,null,null,null,{"$f":"IF('1. Order'!AX916=\"\",\"\",'1. Order'!AX916)","v":""},{"$f":"IF('1. Order'!AY916=\"\",\"\",'1. Order'!AY916)","v":""},{"$f":"IF('1. Order'!AZ916=\"\",\"\",'1. Order'!AZ916)","v":""},{"$f":"IF('1. Order'!BA916=\"\",\"\",'1. Order'!BA916)","v":""},{"$f":"IF('1. Order'!BC916=\"\",\"\",'1. Order'!BC916)","v":""},{"$f":"IF('1. Order'!BD916=\"\",\"\",'1. Order'!BD916)","v":6},{"$f":"IF('1. Order'!BE916=\"\",\"\",'1. Order'!BE916)","v":"None"},{"$f":"IF('1. Order'!BF916=\"\",\"\",'1. Order'!BF916)","v":"Parcel"},{"$f":"IF('1. Order'!BG916=\"\",\"\",'1. Order'!BG916)","v":"ZWO"}]
[{"$f":"IF('1. Order'!F917=\"\",\"\",'1. Order'!F917)","v":""},{"$f":"IF('1. Order'!G917=\"\",\"\",'1. Order'!G917)","v":""},{"$f":"IF('1. Order'!H917=\"\",\"\",'1. Order'!H917)","v":""},{"$f":"IF('1. Order'!I917=\"\",\"\",'1. Order'!I917)","v":""},{"$f":"IF('1. Order'!J917=\"\",\"\",'1. Order'!J917)","v":""},{"$f":"IF('1. Order'!K917=\"\",\"\",'1. Order'!K917)","v":""},{"$f":"IF('1. Order'!L917=\"\",\"\",'1. Order'!L917)","v":""},{"$f":"IF('1. Order'!M917=\"\",\"\",'1. Order'!M917)","v":""},{"$f":"IF('1. Order'!N917=\"\",\"\",'1. Order'!N917)","v":""},{"$f":"IF('1. Order'!O917=\"\",\"\",'1. Order'!O917)","v":{"$error":"#N/A"}},{"$f":"IF('1. Order'!P917=\"\",\"\",'1. Order'!P917)","v":{"$error":"#N/A"}},{"$f":"IF('1. Order'!Q917=\"\",\"\",'1. Order'!Q917)","v":""},{"$f":"IF('1. Order'!R917=\"\",\"\",'1. Order'!R917)","v":""},{"$f":"IF('1. Order'!S917=\"\",\"\",'1. Order'!S917)","v":""},{"$f":"IF('1. Order'!V917=\"\",\"\",'1. Order'!V917)","v":""},{"$f":"IF('1. Order'!W917=\"\",\"\",'1. Order'!W917)","v":""},{"$f":"IF('1. Order'!X917=\"\",\"\",'1. Order'!X917)","v":"EUR"},{"$f":"IF('1. Order'!Y917=\"\",\"\",'1. Order'!Y917)","v":""},{"$f":"IF('1. Order'!Z917=\"\",\"\",'1. Order'!Z917)","v":""},{"$f":"IF('1. Order'!AA917=\"\",\"\",'1. Order'!AA917)","v":""},null,{"$f":"IF('1. Order'!AS917=\"\",\"\",'1. Order'!AS917)","v":""},{"$f":"IF('1. Order'!AT917=\"\",\"\",'1. Order'!AT917)","v":""},null,null,null,null,null,null,null,{"$f":"IF('1. Order'!AX917=\"\",\"\",'1. Order'!AX917)","v":""},{"$f":"IF('1. Order'!AY917=\"\",\"\",'1. Order'!AY917)","v":""},{"$f":"IF('1. Order'!AZ917=\"\",\"\",'1. Order'!AZ917)","v":""},{"$f":"IF('1. Order'!BA917=\"\",\"\",'1. Order'!BA917)","v":""},{"$f":"IF('1. Order'!BC917=\"\",\"\",'1. Order'!BC917)","v":""},{"$f":"IF('1. Order'!BD917=\"\",\"\",'1. Order'!BD917)","v":6},{"$f":"IF('1. Order'!BE917=\"\",\"\",'1. Order'!BE917)","v":"None"},{"$f":"IF('1. Order'!BF917=\"\",\"\",'1. Order'!BF917)","v":"Parcel"},{"$f":"IF('1. Order'!BG917=\"\",\"\",'1. Order'!BG917)","v":"ZWO"}]
[{"$f":"IF('1. Order'!F918=\"\",\"\",'1. Order'!F918)","v":""},{"$f":"IF('1. Order'!G918=\"\",\"\",'1. Order'!G918)","v":""},{"$f":"IF('1. Order'!H918=\"\",\"\",'1. Order'!H918)","v":""},{"$f":"IF('1. Order'!I918=\"\",\"\",'1. Order'!I918)","v":""},{"$f":"IF('1. Order'!J918=\"\",\"\",'1. Order'!J918)","v":""},{"$f":"IF('1. Order'!K918=\"\",\"\",'1. Order'!K918)","v":""},{"$f":"IF('1. Order'!L918=\"\",\"\",'1. Order'!L918)","v":""},{"$f":"IF('1. Order'!M918=\"\",\"\",'1. Order'!M918)","v":""},{"$f":"IF('1. Order'!N918=\"\",\"\",'1. Order'!N918)","v":""},{"$f":"IF('1. Order'!O918=\"\",\"\",'1. Order'!O918)","v":{"$error":"#N/A"}},{"$f":"IF('1. Order'!P918=\"\",\"\",'1. Order'!P918)","v":{"$error":"#N/A"}},{"$f":"IF('1. Order'!Q918=\"\",\"\",'1. Order'!Q918)","v":""},{"$f":"IF('1. Order'!R918=\"\",\"\",'1. Order'!R918)","v":""},{"$f":"IF('1. Order'!S918=\"\",\"\",'1. Order'!S918)","v":""},{"$f":"IF('1. Order'!V918=\"\",\"\",'1. Order'!V918)","v":""},{"$f":"IF('1. Order'!W918=\"\",\"\",'1. Order'!W918)","v":""},{"$f":"IF('1. Order'!X918=\"\",\"\",'1. Order'!X918)","v":"EUR"},{"$f":"IF('1. Order'!Y918=\"\",\"\",'1. Order'!Y918)","v":""},{"$f":"IF('1. Order'!Z918=\"\",\"\",'1. Order'!Z918)","v":""},{"$f":"IF('1. Order'!AA918=\"\",\"\",'1. Order'!AA918)","v":""},null,{"$f":"IF('1. Order'!AS918=\"\",\"\",'1. Order'!AS918)","v":""},{"$f":"IF('1. Order'!AT918=\"\",\"\",'1. Order'!AT918)","v":""},null,null,null,null,null,null,null,{"$f":"IF('1. Order'!AX918=\"\",\"\",'1. Order'!AX918)","v":""},{"$f":"IF('1. Order'!AY918=\"\",\"\",'1. Order'!AY918)","v":""},{"$f":"IF('1. Order'!AZ918=\"\",\"\",'1. Order'!AZ918)","v":""},{"$f":"IF('1. Order'!BA918=\"\",\"\",'1. Order'!BA918)","v":""},{"$f":"IF('1. Order'!BC918=\"\",\"\",'1. Order'!BC918)","v":""},{"$f":"IF('1. Order'!BD918=\"\",\"\",'1. Order'!BD918)","v":6},{"$f":"IF('1. Order'!BE918=\"\",\"\",'1. Order'!BE918)","v":"None"},{"$f":"IF('1. Order'!BF918=\"\",\"\",'1. Order'!BF918)","v":"Parcel"},{"$f":"IF('1. Order'!BG918=\"\",\"\",'1. Order'!BG918)","v":"ZWO"}]
[{"$f":"IF('1. Order'!F919=\"\",\"\",'1. Order'!F919)","v":""},{"$f":"IF('1. Order'!G919=\"\",\"\",'1. Order'!G919)","v":""},{"$f":"IF('1. Order'!H919=\"\",\"\",'1. Order'!H919)","v":""},{"$f":"IF('1. Order'!I919=\"\",\"\",'1. Order'!I919)","v":""},{"$f":"IF('1. Order'!J919=\"\",\"\",'1. Order'!J919)","v":""},{"$f":"IF('1. Order'!K919=\"\",\"\",'1. Order'!K919)","v":""},{"$f":"IF('1. Order'!L919=\"\",\"\",'1. Order'!L919)","v":""},{"$f":"IF('1. Order'!M919=\"\",\"\",'1. Order'!M919)","v":""},{"$f":"IF('1. Order'!N919=\"\",\"\",'1. Order'!N919)","v":""},{"$f":"IF('1. Order'!O919=\"\",\"\",'1. Order'!O919)","v":{"$error":"#N/A"}},{"$f":"IF('1. Order'!P919=\"\",\"\",'1. Order'!P919)","v":{"$error":"#N/A"}},{"$f":"IF('1. Order'!Q919=\"\",\"\",'1. Order'!Q919)","v":""},{"$f":"IF('1. Order'!R919=\"\",\"\",'1. Order'!R919)","v":""},{"$f":"IF('1. Order'!S919=\"\",\"\",'1. Order'!S919)","v":""},{"$f":"IF('1. Order'!V919=\"\",\"\",'1. Order'!V919)","v":""},{"$f":"IF('1. Order'!W919=\"\",\"\",'1. Order'!W919)","v":""},{"$f":"IF('1. Order'!X919=\"\",\"\",'1. Order'!X919)","v":"EUR"},{"$f":"IF('1. Order'!Y919=\"\",\"\",'1. Order'!Y919)","v":""},{"$f":"IF('1. Order'!Z919=\"\",\"\",'1. Order'!Z919)","v":""},{"$f":"IF('1. Order'!AA919=\"\",\"\",'1. Order'!AA919)","v":""},null,{"$f":"IF('1. Order'!AS919=\"\",\"\",'1. Order'!AS919)","v":""},{"$f":"IF('1. Order'!AT919=\"\",\"\",'1. Order'!AT919)","v":""},null,null,null,null,null,null,null,{"$f":"IF('1. Order'!AX919=\"\",\"\",'1. Order'!AX919)","v":""},{"$f":"IF('1. Order'!AY919=\"\",\"\",'1. Order'!AY919)","v":""},{"$f":"IF('1. Order'!AZ919=\"\",\"\",'1. Order'!AZ919)","v":""},{"$f":"IF('1. Order'!BA919=\"\",\"\",'1. Order'!BA919)","v":""},{"$f":"IF('1. Order'!BC919=\"\",\"\",'1. Order'!BC919)","v":""},{"$f":"IF('1. Order'!BD919=\"\",\"\",'1. Order'!BD919)","v":6},{"$f":"IF('1. Order'!BE919=\"\",\"\",'1. Order'!BE919)","v":"None"},{"$f":"IF('1. Order'!BF919=\"\",\"\",'1. Order'!BF919)","v":"Parcel"},{"$f":"IF('1. Order'!BG919=\"\",\"\",'1. Order'!BG919)","v":"ZWO"}]
[{"$f":"IF('1. Order'!F920=\"\",\"\",'1. Order'!F920)","v":""},{"$f":"IF('1. Order'!G920=\"\",\"\",'1. Order'!G920)","v":""},{"$f":"IF('1. Order'!H920=\"\",\"\",'1. Order'!H920)","v":""},{"$f":"IF('1. Order'!I920=\"\",\"\",'1. Order'!I920)","v":""},{"$f":"IF('1. Order'!J920=\"\",\"\",'1. Order'!J920)","v":""},{"$f":"IF('1. Order'!K920=\"\",\"\",'1. Order'!K920)","v":""},{"$f":"IF('1. Order'!L920=\"\",\"\",'1. Order'!L920)","v":""},{"$f":"IF('1. Order'!M920=\"\",\"\",'1. Order'!M920)","v":""},{"$f":"IF('1. Order'!N920=\"\",\"\",'1. Order'!N920)","v":""},{"$f":"IF('1. Order'!O920=\"\",\"\",'1. Order'!O920)","v":{"$error":"#N/A"}},{"$f":"IF('1. Order'!P920=\"\",\"\",'1. Order'!P920)","v":{"$error":"#N/A"}},{"$f":"IF('1. Order'!Q920=\"\",\"\",'1. Order'!Q920)","v":""},{"$f":"IF('1. Order'!R920=\"\",\"\",'1. Order'!R920)","v":""},{"$f":"IF('1. Order'!S920=\"\",\"\",'1. Order'!S920)","v":""},{"$f":"IF('1. Order'!V920=\"\",\"\",'1. Order'!V920)","v":""},{"$f":"IF('1. Order'!W920=\"\",\"\",'1. Order'!W920)","v":""},{"$f":"IF('1. Order'!X920=\"\",\"\",'1. Order'!X920)","v":"EUR"},{"$f":"IF('1. Order'!Y920=\"\",\"\",'1. Order'!Y920)","v":""},{"$f":"IF('1. Order'!Z920=\"\",\"\",'1. Order'!Z920)","v":""},{"$f":"IF('1. Order'!AA920=\"\",\"\",'1. Order'!AA920)","v":""},null,{"$f":"IF('1. Order'!AS920=\"\",\"\",'1. Order'!AS920)","v":""},{"$f":"IF('1. Order'!AT920=\"\",\"\",'1. Order'!AT920)","v":""},null,null,null,null,null,null,null,{"$f":"IF('1. Order'!AX920=\"\",\"\",'1. Order'!AX920)","v":""},{"$f":"IF('1. Order'!AY920=\"\",\"\",'1. Order'!AY920)","v":""},{"$f":"IF('1. Order'!AZ920=\"\",\"\",'1. Order'!AZ920)","v":""},{"$f":"IF('1. Order'!BA920=\"\",\"\",'1. Order'!BA920)","v":""},{"$f":"IF('1. Order'!BC920=\"\",\"\",'1. Order'!BC920)","v":""},{"$f":"IF('1. Order'!BD920=\"\",\"\",'1. Order'!BD920)","v":6},{"$f":"IF('1. Order'!BE920=\"\",\"\",'1. Order'!BE920)","v":"None"},{"$f":"IF('1. Order'!BF920=\"\",\"\",'1. Order'!BF920)","v":"Parcel"},{"$f":"IF('1. Order'!BG920=\"\",\"\",'1. Order'!BG920)","v":"ZWO"}]
[{"$f":"IF('1. Order'!F921=\"\",\"\",'1. Order'!F921)","v":""},{"$f":"IF('1. Order'!G921=\"\",\"\",'1. Order'!G921)","v":""},{"$f":"IF('1. Order'!H921=\"\",\"\",'1. Order'!H921)","v":""},{"$f":"IF('1. Order'!I921=\"\",\"\",'1. Order'!I921)","v":""},{"$f":"IF('1. Order'!J921=\"\",\"\",'1. Order'!J921)","v":""},{"$f":"IF('1. Order'!K921=\"\",\"\",'1. Order'!K921)","v":""},{"$f":"IF('1. Order'!L921=\"\",\"\",'1. Order'!L921)","v":""},{"$f":"IF('1. Order'!M921=\"\",\"\",'1. Order'!M921)","v":""},{"$f":"IF('1. Order'!N921=\"\",\"\",'1. Order'!N921)","v":""},{"$f":"IF('1. Order'!O921=\"\",\"\",'1. Order'!O921)","v":{"$error":"#N/A"}},{"$f":"IF('1. Order'!P921=\"\",\"\",'1. Order'!P921)","v":{"$error":"#N/A"}},{"$f":"IF('1. Order'!Q921=\"\",\"\",'1. Order'!Q921)","v":""},{"$f":"IF('1. Order'!R921=\"\",\"\",'1. Order'!R921)","v":""},{"$f":"IF('1. Order'!S921=\"\",\"\",'1. Order'!S921)","v":""},{"$f":"IF('1. Order'!V921=\"\",\"\",'1. Order'!V921)","v":""},{"$f":"IF('1. Order'!W921=\"\",\"\",'1. Order'!W921)","v":""},{"$f":"IF('1. Order'!X921=\"\",\"\",'1. Order'!X921)","v":"EUR"},{"$f":"IF('1. Order'!Y921=\"\",\"\",'1. Order'!Y921)","v":""},{"$f":"IF('1. Order'!Z921=\"\",\"\",'1. Order'!Z921)","v":""},{"$f":"IF('1. Order'!AA921=\"\",\"\",'1. Order'!AA921)","v":""},null,{"$f":"IF('1. Order'!AS921=\"\",\"\",'1. Order'!AS921)","v":""},{"$f":"IF('1. Order'!AT921=\"\",\"\",'1. Order'!AT921)","v":""},null,null,null,null,null,null,null,{"$f":"IF('1. Order'!AX921=\"\",\"\",'1. Order'!AX921)","v":""},{"$f":"IF('1. Order'!AY921=\"\",\"\",'1. Order'!AY921)","v":""},{"$f":"IF('1. Order'!AZ921=\"\",\"\",'1. Order'!AZ921)","v":""},{"$f":"IF('1. Order'!BA921=\"\",\"\",'1. Order'!BA921)","v":""},{"$f":"IF('1. Order'!BC921=\"\",\"\",'1. Order'!BC921)","v":""},{"$f":"IF('1. Order'!BD921=\"\",\"\",'1. Order'!BD921)","v":6},{"$f":"IF('1. Order'!BE921=\"\",\"\",'1. Order'!BE921)","v":"None"},{"$f":"IF('1. Order'!BF921=\"\",\"\",'1. Order'!BF921)","v":"Parcel"},{"$f":"IF('1. Order'!BG921=\"\",\"\",'1. Order'!BG921)","v":"ZWO"}]
[{"$f":"IF('1. Order'!F922=\"\",\"\",'1. Order'!F922)","v":""},{"$f":"IF('1. Order'!G922=\"\",\"\",'1. Order'!G922)","v":""},{"$f":"IF('1. Order'!H922=\"\",\"\",'1. Order'!H922)","v":""},{"$f":"IF('1. Order'!I922=\"\",\"\",'1. Order'!I922)","v":""},{"$f":"IF('1. Order'!J922=\"\",\"\",'1. Order'!J922)","v":""},{"$f":"IF('1. Order'!K922=\"\",\"\",'1. Order'!K922)","v":""},{"$f":"IF('1. Order'!L922=\"\",\"\",'1. Order'!L922)","v":""},{"$f":"IF('1. Order'!M922=\"\",\"\",'1. Order'!M922)","v":""},{"$f":"IF('1. Order'!N922=\"\",\"\",'1. Order'!N922)","v":""},{"$f":"IF('1. Order'!O922=\"\",\"\",'1. Order'!O922)","v":{"$error":"#N/A"}},{"$f":"IF('1. Order'!P922=\"\",\"\",'1. Order'!P922)","v":{"$error":"#N/A"}},{"$f":"IF('1. Order'!Q922=\"\",\"\",'1. Order'!Q922)","v":""},{"$f":"IF('1. Order'!R922=\"\",\"\",'1. Order'!R922)","v":""},{"$f":"IF('1. Order'!S922=\"\",\"\",'1. Order'!S922)","v":""},{"$f":"IF('1. Order'!V922=\"\",\"\",'1. Order'!V922)","v":""},{"$f":"IF('1. Order'!W922=\"\",\"\",'1. Order'!W922)","v":""},{"$f":"IF('1. Order'!X922=\"\",\"\",'1. Order'!X922)","v":"EUR"},{"$f":"IF('1. Order'!Y922=\"\",\"\",'1. Order'!Y922)","v":""},{"$f":"IF('1. Order'!Z922=\"\",\"\",'1. Order'!Z922)","v":""},{"$f":"IF('1. Order'!AA922=\"\",\"\",'1. Order'!AA922)","v":""},null,{"$f":"IF('1. Order'!AS922=\"\",\"\",'1. Order'!AS922)","v":""},{"$f":"IF('1. Order'!AT922=\"\",\"\",'1. Order'!AT922)","v":""},null,null,null,null,null,null,null,{"$f":"IF('1. Order'!AX922=\"\",\"\",'1. Order'!AX922)","v":""},{"$f":"IF('1. Order'!AY922=\"\",\"\",'1. Order'!AY922)","v":""},{"$f":"IF('1. Order'!AZ922=\"\",\"\",'1. Order'!AZ922)","v":""},{"$f":"IF('1. Order'!BA922=\"\",\"\",'1. Order'!BA922)","v":""},{"$f":"IF('1. Order'!BC922=\"\",\"\",'1. Order'!BC922)","v":""},{"$f":"IF('1. Order'!BD922=\"\",\"\",'1. Order'!BD922)","v":6},{"$f":"IF('1. Order'!BE922=\"\",\"\",'1. Order'!BE922)","v":"None"},{"$f":"IF('1. Order'!BF922=\"\",\"\",'1. Order'!BF922)","v":"Parcel"},{"$f":"IF('1. Order'!BG922=\"\",\"\",'1. Order'!BG922)","v":"ZWO"}]
[{"$f":"IF('1. Order'!F923=\"\",\"\",'1. Order'!F923)","v":""},{"$f":"IF('1. Order'!G923=\"\",\"\",'1. Order'!G923)","v":""},{"$f":"IF('1. Order'!H923=\"\",\"\",'1. Order'!H923)","v":""},{"$f":"IF('1. Order'!I923=\"\",\"\",'1. Order'!I923)","v":""},{"$f":"IF('1. Order'!J923=\"\",\"\",'1. Order'!J923)","v":""},{"$f":"IF('1. Order'!K923=\"\",\"\",'1. Order'!K923)","v":""},{"$f":"IF('1. Order'!L923=\"\",\"\",'1. Order'!L923)","v":""},{"$f":"IF('1. Order'!M923=\"\",\"\",'1. Order'!M923)","v":""},{"$f":"IF('1. Order'!N923=\"\",\"\",'1. Order'!N923)","v":""},{"$f":"IF('1. Order'!O923=\"\",\"\",'1. Order'!O923)","v":{"$error":"#N/A"}},{"$f":"IF('1. Order'!P923=\"\",\"\",'1. Order'!P923)","v":{"$error":"#N/A"}},{"$f":"IF('1. Order'!Q923=\"\",\"\",'1. Order'!Q923)","v":""},{"$f":"IF('1. Order'!R923=\"\",\"\",'1. Order'!R923)","v":""},{"$f":"IF('1. Order'!S923=\"\",\"\",'1. Order'!S923)","v":""},{"$f":"IF('1. Order'!V923=\"\",\"\",'1. Order'!V923)","v":""},{"$f":"IF('1. Order'!W923=\"\",\"\",'1. Order'!W923)","v":""},{"$f":"IF('1. Order'!X923=\"\",\"\",'1. Order'!X923)","v":"EUR"},{"$f":"IF('1. Order'!Y923=\"\",\"\",'1. Order'!Y923)","v":""},{"$f":"IF('1. Order'!Z923=\"\",\"\",'1. Order'!Z923)","v":""},{"$f":"IF('1. Order'!AA923=\"\",\"\",'1. Order'!AA923)","v":""},null,{"$f":"IF('1. Order'!AS923=\"\",\"\",'1. Order'!AS923)","v":""},{"$f":"IF('1. Order'!AT923=\"\",\"\",'1. Order'!AT923)","v":""},null,null,null,null,null,null,null,{"$f":"IF('1. Order'!AX923=\"\",\"\",'1. Order'!AX923)","v":""},{"$f":"IF('1. Order'!AY923=\"\",\"\",'1. Order'!AY923)","v":""},{"$f":"IF('1. Order'!AZ923=\"\",\"\",'1. Order'!AZ923)","v":""},{"$f":"IF('1. Order'!BA923=\"\",\"\",'1. Order'!BA923)","v":""},{"$f":"IF('1. Order'!BC923=\"\",\"\",'1. Order'!BC923)","v":""},{"$f":"IF('1. Order'!BD923=\"\",\"\",'1. Order'!BD923)","v":6},{"$f":"IF('1. Order'!BE923=\"\",\"\",'1. Order'!BE923)","v":"None"},{"$f":"IF('1. Order'!BF923=\"\",\"\",'1. Order'!BF923)","v":"Parcel"},{"$f":"IF('1. Order'!BG923=\"\",\"\",'1. Order'!BG923)","v":"ZWO"}]
[{"$f":"IF('1. Order'!F924=\"\",\"\",'1. Order'!F924)","v":""},{"$f":"IF('1. Order'!G924=\"\",\"\",'1. Order'!G924)","v":""},{"$f":"IF('1. Order'!H924=\"\",\"\",'1. Order'!H924)","v":""},{"$f":"IF('1. Order'!I924=\"\",\"\",'1. Order'!I924)","v":""},{"$f":"IF('1. Order'!J924=\"\",\"\",'1. Order'!J924)","v":""},{"$f":"IF('1. Order'!K924=\"\",\"\",'1. Order'!K924)","v":""},{"$f":"IF('1. Order'!L924=\"\",\"\",'1. Order'!L924)","v":""},{"$f":"IF('1. Order'!M924=\"\",\"\",'1. Order'!M924)","v":""},{"$f":"IF('1. Order'!N924=\"\",\"\",'1. Order'!N924)","v":""},{"$f":"IF('1. Order'!O924=\"\",\"\",'1. Order'!O924)","v":{"$error":"#N/A"}},{"$f":"IF('1. Order'!P924=\"\",\"\",'1. Order'!P924)","v":{"$error":"#N/A"}},{"$f":"IF('1. Order'!Q924=\"\",\"\",'1. Order'!Q924)","v":""},{"$f":"IF('1. Order'!R924=\"\",\"\",'1. Order'!R924)","v":""},{"$f":"IF('1. Order'!S924=\"\",\"\",'1. Order'!S924)","v":""},{"$f":"IF('1. Order'!V924=\"\",\"\",'1. Order'!V924)","v":""},{"$f":"IF('1. Order'!W924=\"\",\"\",'1. Order'!W924)","v":""},{"$f":"IF('1. Order'!X924=\"\",\"\",'1. Order'!X924)","v":"EUR"},{"$f":"IF('1. Order'!Y924=\"\",\"\",'1. Order'!Y924)","v":""},{"$f":"IF('1. Order'!Z924=\"\",\"\",'1. Order'!Z924)","v":""},{"$f":"IF('1. Order'!AA924=\"\",\"\",'1. Order'!AA924)","v":""},null,{"$f":"IF('1. Order'!AS924=\"\",\"\",'1. Order'!AS924)","v":""},{"$f":"IF('1. Order'!AT924=\"\",\"\",'1. Order'!AT924)","v":""},null,null,null,null,null,null,null,{"$f":"IF('1. Order'!AX924=\"\",\"\",'1. Order'!AX924)","v":""},{"$f":"IF('1. Order'!AY924=\"\",\"\",'1. Order'!AY924)","v":""},{"$f":"IF('1. Order'!AZ924=\"\",\"\",'1. Order'!AZ924)","v":""},{"$f":"IF('1. Order'!BA924=\"\",\"\",'1. Order'!BA924)","v":""},{"$f":"IF('1. Order'!BC924=\"\",\"\",'1. Order'!BC924)","v":""},{"$f":"IF('1. Order'!BD924=\"\",\"\",'1. Order'!BD924)","v":6},{"$f":"IF('1. Order'!BE924=\"\",\"\",'1. Order'!BE924)","v":"None"},{"$f":"IF('1. Order'!BF924=\"\",\"\",'1. Order'!BF924)","v":"Parcel"},{"$f":"IF('1. Order'!BG924=\"\",\"\",'1. Order'!BG924)","v":"ZWO"}]
[{"$f":"IF('1. Order'!F925=\"\",\"\",'1. Order'!F925)","v":""},{"$f":"IF('1. Order'!G925=\"\",\"\",'1. Order'!G925)","v":""},{"$f":"IF('1. Order'!H925=\"\",\"\",'1. Order'!H925)","v":""},{"$f":"IF('1. Order'!I925=\"\",\"\",'1. Order'!I925)","v":""},{"$f":"IF('1. Order'!J925=\"\",\"\",'1. Order'!J925)","v":""},{"$f":"IF('1. Order'!K925=\"\",\"\",'1. Order'!K925)","v":""},{"$f":"IF('1. Order'!L925=\"\",\"\",'1. Order'!L925)","v":""},{"$f":"IF('1. Order'!M925=\"\",\"\",'1. Order'!M925)","v":""},{"$f":"IF('1. Order'!N925=\"\",\"\",'1. Order'!N925)","v":""},{"$f":"IF('1. Order'!O925=\"\",\"\",'1. Order'!O925)","v":{"$error":"#N/A"}},{"$f":"IF('1. Order'!P925=\"\",\"\",'1. Order'!P925)","v":{"$error":"#N/A"}},{"$f":"IF('1. Order'!Q925=\"\",\"\",'1. Order'!Q925)","v":""},{"$f":"IF('1. Order'!R925=\"\",\"\",'1. Order'!R925)","v":""},{"$f":"IF('1. Order'!S925=\"\",\"\",'1. Order'!S925)","v":""},{"$f":"IF('1. Order'!V925=\"\",\"\",'1. Order'!V925)","v":""},{"$f":"IF('1. Order'!W925=\"\",\"\",'1. Order'!W925)","v":""},{"$f":"IF('1. Order'!X925=\"\",\"\",'1. Order'!X925)","v":"EUR"},{"$f":"IF('1. Order'!Y925=\"\",\"\",'1. Order'!Y925)","v":""},{"$f":"IF('1. Order'!Z925=\"\",\"\",'1. Order'!Z925)","v":""},{"$f":"IF('1. Order'!AA925=\"\",\"\",'1. Order'!AA925)","v":""},null,{"$f":"IF('1. Order'!AS925=\"\",\"\",'1. Order'!AS925)","v":""},{"$f":"IF('1. Order'!AT925=\"\",\"\",'1. Order'!AT925)","v":""},null,null,null,null,null,null,null,{"$f":"IF('1. Order'!AX925=\"\",\"\",'1. Order'!AX925)","v":""},{"$f":"IF('1. Order'!AY925=\"\",\"\",'1. Order'!AY925)","v":""},{"$f":"IF('1. Order'!AZ925=\"\",\"\",'1. Order'!AZ925)","v":""},{"$f":"IF('1. Order'!BA925=\"\",\"\",'1. Order'!BA925)","v":""},{"$f":"IF('1. Order'!BC925=\"\",\"\",'1. Order'!BC925)","v":""},{"$f":"IF('1. Order'!BD925=\"\",\"\",'1. Order'!BD925)","v":6},{"$f":"IF('1. Order'!BE925=\"\",\"\",'1. Order'!BE925)","v":"None"},{"$f":"IF('1. Order'!BF925=\"\",\"\",'1. Order'!BF925)","v":"Parcel"},{"$f":"IF('1. Order'!BG925=\"\",\"\",'1. Order'!BG925)","v":"ZWO"}]
[{"$f":"IF('1. Order'!F926=\"\",\"\",'1. Order'!F926)","v":""},{"$f":"IF('1. Order'!G926=\"\",\"\",'1. Order'!G926)","v":""},{"$f":"IF('1. Order'!H926=\"\",\"\",'1. Order'!H926)","v":""},{"$f":"IF('1. Order'!I926=\"\",\"\",'1. Order'!I926)","v":""},{"$f":"IF('1. Order'!J926=\"\",\"\",'1. Order'!J926)","v":""},{"$f":"IF('1. Order'!K926=\"\",\"\",'1. Order'!K926)","v":""},{"$f":"IF('1. Order'!L926=\"\",\"\",'1. Order'!L926)","v":""},{"$f":"IF('1. Order'!M926=\"\",\"\",'1. Order'!M926)","v":""},{"$f":"IF('1. Order'!N926=\"\",\"\",'1. Order'!N926)","v":""},{"$f":"IF('1. Order'!O926=\"\",\"\",'1. Order'!O926)","v":{"$error":"#N/A"}},{"$f":"IF('1. Order'!P926=\"\",\"\",'1. Order'!P926)","v":{"$error":"#N/A"}},{"$f":"IF('1. Order'!Q926=\"\",\"\",'1. Order'!Q926)","v":""},{"$f":"IF('1. Order'!R926=\"\",\"\",'1. Order'!R926)","v":""},{"$f":"IF('1. Order'!S926=\"\",\"\",'1. Order'!S926)","v":""},{"$f":"IF('1. Order'!V926=\"\",\"\",'1. Order'!V926)","v":""},{"$f":"IF('1. Order'!W926=\"\",\"\",'1. Order'!W926)","v":""},{"$f":"IF('1. Order'!X926=\"\",\"\",'1. Order'!X926)","v":"EUR"},{"$f":"IF('1. Order'!Y926=\"\",\"\",'1. Order'!Y926)","v":""},{"$f":"IF('1. Order'!Z926=\"\",\"\",'1. Order'!Z926)","v":""},{"$f":"IF('1. Order'!AA926=\"\",\"\",'1. Order'!AA926)","v":""},null,{"$f":"IF('1. Order'!AS926=\"\",\"\",'1. Order'!AS926)","v":""},{"$f":"IF('1. Order'!AT926=\"\",\"\",'1. Order'!AT926)","v":""},null,null,null,null,null,null,null,{"$f":"IF('1. Order'!AX926=\"\",\"\",'1. Order'!AX926)","v":""},{"$f":"IF('1. Order'!AY926=\"\",\"\",'1. Order'!AY926)","v":""},{"$f":"IF('1. Order'!AZ926=\"\",\"\",'1. Order'!AZ926)","v":""},{"$f":"IF('1. Order'!BA926=\"\",\"\",'1. Order'!BA926)","v":""},{"$f":"IF('1. Order'!BC926=\"\",\"\",'1. Order'!BC926)","v":""},{"$f":"IF('1. Order'!BD926=\"\",\"\",'1. Order'!BD926)","v":6},{"$f":"IF('1. Order'!BE926=\"\",\"\",'1. Order'!BE926)","v":"None"},{"$f":"IF('1. Order'!BF926=\"\",\"\",'1. Order'!BF926)","v":"Parcel"},{"$f":"IF('1. Order'!BG926=\"\",\"\",'1. Order'!BG926)","v":"ZWO"}]
[{"$f":"IF('1. Order'!F927=\"\",\"\",'1. Order'!F927)","v":""},{"$f":"IF('1. Order'!G927=\"\",\"\",'1. Order'!G927)","v":""},{"$f":"IF('1. Order'!H927=\"\",\"\",'1. Order'!H927)","v":""},{"$f":"IF('1. Order'!I927=\"\",\"\",'1. Order'!I927)","v":""},{"$f":"IF('1. Order'!J927=\"\",\"\",'1. Order'!J927)","v":""},{"$f":"IF('1. Order'!K927=\"\",\"\",'1. Order'!K927)","v":""},{"$f":"IF('1. Order'!L927=\"\",\"\",'1. Order'!L927)","v":""},{"$f":"IF('1. Order'!M927=\"\",\"\",'1. Order'!M927)","v":""},{"$f":"IF('1. Order'!N927=\"\",\"\",'1. Order'!N927)","v":""},{"$f":"IF('1. Order'!O927=\"\",\"\",'1. Order'!O927)","v":{"$error":"#N/A"}},{"$f":"IF('1. Order'!P927=\"\",\"\",'1. Order'!P927)","v":{"$error":"#N/A"}},{"$f":"IF('1. Order'!Q927=\"\",\"\",'1. Order'!Q927)","v":""},{"$f":"IF('1. Order'!R927=\"\",\"\",'1. Order'!R927)","v":""},{"$f":"IF('1. Order'!S927=\"\",\"\",'1. Order'!S927)","v":""},{"$f":"IF('1. Order'!V927=\"\",\"\",'1. Order'!V927)","v":""},{"$f":"IF('1. Order'!W927=\"\",\"\",'1. Order'!W927)","v":""},{"$f":"IF('1. Order'!X927=\"\",\"\",'1. Order'!X927)","v":"EUR"},{"$f":"IF('1. Order'!Y927=\"\",\"\",'1. Order'!Y927)","v":""},{"$f":"IF('1. Order'!Z927=\"\",\"\",'1. Order'!Z927)","v":""},{"$f":"IF('1. Order'!AA927=\"\",\"\",'1. Order'!AA927)","v":""},null,{"$f":"IF('1. Order'!AS927=\"\",\"\",'1. Order'!AS927)","v":""},{"$f":"IF('1. Order'!AT927=\"\",\"\",'1. Order'!AT927)","v":""},null,null,null,null,null,null,null,{"$f":"IF('1. Order'!AX927=\"\",\"\",'1. Order'!AX927)","v":""},{"$f":"IF('1. Order'!AY927=\"\",\"\",'1. Order'!AY927)","v":""},{"$f":"IF('1. Order'!AZ927=\"\",\"\",'1. Order'!AZ927)","v":""},{"$f":"IF('1. Order'!BA927=\"\",\"\",'1. Order'!BA927)","v":""},{"$f":"IF('1. Order'!BC927=\"\",\"\",'1. Order'!BC927)","v":""},{"$f":"IF('1. Order'!BD927=\"\",\"\",'1. Order'!BD927)","v":6},{"$f":"IF('1. Order'!BE927=\"\",\"\",'1. Order'!BE927)","v":"None"},{"$f":"IF('1. Order'!BF927=\"\",\"\",'1. Order'!BF927)","v":"Parcel"},{"$f":"IF('1. Order'!BG927=\"\",\"\",'1. Order'!BG927)","v":"ZWO"}]
[{"$f":"IF('1. Order'!F928=\"\",\"\",'1. Order'!F928)","v":""},{"$f":"IF('1. Order'!G928=\"\",\"\",'1. Order'!G928)","v":""},{"$f":"IF('1. Order'!H928=\"\",\"\",'1. Order'!H928)","v":""},{"$f":"IF('1. Order'!I928=\"\",\"\",'1. Order'!I928)","v":""},{"$f":"IF('1. Order'!J928=\"\",\"\",'1. Order'!J928)","v":""},{"$f":"IF('1. Order'!K928=\"\",\"\",'1. Order'!K928)","v":""},{"$f":"IF('1. Order'!L928=\"\",\"\",'1. Order'!L928)","v":""},{"$f":"IF('1. Order'!M928=\"\",\"\",'1. Order'!M928)","v":""},{"$f":"IF('1. Order'!N928=\"\",\"\",'1. Order'!N928)","v":""},{"$f":"IF('1. Order'!O928=\"\",\"\",'1. Order'!O928)","v":{"$error":"#N/A"}},{"$f":"IF('1. Order'!P928=\"\",\"\",'1. Order'!P928)","v":{"$error":"#N/A"}},{"$f":"IF('1. Order'!Q928=\"\",\"\",'1. Order'!Q928)","v":""},{"$f":"IF('1. Order'!R928=\"\",\"\",'1. Order'!R928)","v":""},{"$f":"IF('1. Order'!S928=\"\",\"\",'1. Order'!S928)","v":""},{"$f":"IF('1. Order'!V928=\"\",\"\",'1. Order'!V928)","v":""},{"$f":"IF('1. Order'!W928=\"\",\"\",'1. Order'!W928)","v":""},{"$f":"IF('1. Order'!X928=\"\",\"\",'1. Order'!X928)","v":"EUR"},{"$f":"IF('1. Order'!Y928=\"\",\"\",'1. Order'!Y928)","v":""},{"$f":"IF('1. Order'!Z928=\"\",\"\",'1. Order'!Z928)","v":""},{"$f":"IF('1. Order'!AA928=\"\",\"\",'1. Order'!AA928)","v":""},null,{"$f":"IF('1. Order'!AS928=\"\",\"\",'1. Order'!AS928)","v":""},{"$f":"IF('1. Order'!AT928=\"\",\"\",'1. Order'!AT928)","v":""},null,null,null,null,null,null,null,{"$f":"IF('1. Order'!AX928=\"\",\"\",'1. Order'!AX928)","v":""},{"$f":"IF('1. Order'!AY928=\"\",\"\",'1. Order'!AY928)","v":""},{"$f":"IF('1. Order'!AZ928=\"\",\"\",'1. Order'!AZ928)","v":""},{"$f":"IF('1. Order'!BA928=\"\",\"\",'1. Order'!BA928)","v":""},{"$f":"IF('1. Order'!BC928=\"\",\"\",'1. Order'!BC928)","v":""},{"$f":"IF('1. Order'!BD928=\"\",\"\",'1. Order'!BD928)","v":6},{"$f":"IF('1. Order'!BE928=\"\",\"\",'1. Order'!BE928)","v":"None"},{"$f":"IF('1. Order'!BF928=\"\",\"\",'1. Order'!BF928)","v":"Parcel"},{"$f":"IF('1. Order'!BG928=\"\",\"\",'1. Order'!BG928)","v":"ZWO"}]
[{"$f":"IF('1. Order'!F929=\"\",\"\",'1. Order'!F929)","v":""},{"$f":"IF('1. Order'!G929=\"\",\"\",'1. Order'!G929)","v":""},{"$f":"IF('1. Order'!H929=\"\",\"\",'1. Order'!H929)","v":""},{"$f":"IF('1. Order'!I929=\"\",\"\",'1. Order'!I929)","v":""},{"$f":"IF('1. Order'!J929=\"\",\"\",'1. Order'!J929)","v":""},{"$f":"IF('1. Order'!K929=\"\",\"\",'1. Order'!K929)","v":""},{"$f":"IF('1. Order'!L929=\"\",\"\",'1. Order'!L929)","v":""},{"$f":"IF('1. Order'!M929=\"\",\"\",'1. Order'!M929)","v":""},{"$f":"IF('1. Order'!N929=\"\",\"\",'1. Order'!N929)","v":""},{"$f":"IF('1. Order'!O929=\"\",\"\",'1. Order'!O929)","v":{"$error":"#N/A"}},{"$f":"IF('1. Order'!P929=\"\",\"\",'1. Order'!P929)","v":{"$error":"#N/A"}},{"$f":"IF('1. Order'!Q929=\"\",\"\",'1. Order'!Q929)","v":""},{"$f":"IF('1. Order'!R929=\"\",\"\",'1. Order'!R929)","v":""},{"$f":"IF('1. Order'!S929=\"\",\"\",'1. Order'!S929)","v":""},{"$f":"IF('1. Order'!V929=\"\",\"\",'1. Order'!V929)","v":""},{"$f":"IF('1. Order'!W929=\"\",\"\",'1. Order'!W929)","v":""},{"$f":"IF('1. Order'!X929=\"\",\"\",'1. Order'!X929)","v":"EUR"},{"$f":"IF('1. Order'!Y929=\"\",\"\",'1. Order'!Y929)","v":""},{"$f":"IF('1. Order'!Z929=\"\",\"\",'1. Order'!Z929)","v":""},{"$f":"IF('1. Order'!AA929=\"\",\"\",'1. Order'!AA929)","v":""},null,{"$f":"IF('1. Order'!AS929=\"\",\"\",'1. Order'!AS929)","v":""},{"$f":"IF('1. Order'!AT929=\"\",\"\",'1. Order'!AT929)","v":""},null,null,null,null,null,null,null,{"$f":"IF('1. Order'!AX929=\"\",\"\",'1. Order'!AX929)","v":""},{"$f":"IF('1. Order'!AY929=\"\",\"\",'1. Order'!AY929)","v":""},{"$f":"IF('1. Order'!AZ929=\"\",\"\",'1. Order'!AZ929)","v":""},{"$f":"IF('1. Order'!BA929=\"\",\"\",'1. Order'!BA929)","v":""},{"$f":"IF('1. Order'!BC929=\"\",\"\",'1. Order'!BC929)","v":""},{"$f":"IF('1. Order'!BD929=\"\",\"\",'1. Order'!BD929)","v":6},{"$f":"IF('1. Order'!BE929=\"\",\"\",'1. Order'!BE929)","v":"None"},{"$f":"IF('1. Order'!BF929=\"\",\"\",'1. Order'!BF929)","v":"Parcel"},{"$f":"IF('1. Order'!BG929=\"\",\"\",'1. Order'!BG929)","v":"ZWO"}]
[{"$f":"IF('1. Order'!F930=\"\",\"\",'1. Order'!F930)","v":""},{"$f":"IF('1. Order'!G930=\"\",\"\",'1. Order'!G930)","v":""},{"$f":"IF('1. Order'!H930=\"\",\"\",'1. Order'!H930)","v":""},{"$f":"IF('1. Order'!I930=\"\",\"\",'1. Order'!I930)","v":""},{"$f":"IF('1. Order'!J930=\"\",\"\",'1. Order'!J930)","v":""},{"$f":"IF('1. Order'!K930=\"\",\"\",'1. Order'!K930)","v":""},{"$f":"IF('1. Order'!L930=\"\",\"\",'1. Order'!L930)","v":""},{"$f":"IF('1. Order'!M930=\"\",\"\",'1. Order'!M930)","v":""},{"$f":"IF('1. Order'!N930=\"\",\"\",'1. Order'!N930)","v":""},{"$f":"IF('1. Order'!O930=\"\",\"\",'1. Order'!O930)","v":{"$error":"#N/A"}},{"$f":"IF('1. Order'!P930=\"\",\"\",'1. Order'!P930)","v":{"$error":"#N/A"}},{"$f":"IF('1. Order'!Q930=\"\",\"\",'1. Order'!Q930)","v":""},{"$f":"IF('1. Order'!R930=\"\",\"\",'1. Order'!R930)","v":""},{"$f":"IF('1. Order'!S930=\"\",\"\",'1. Order'!S930)","v":""},{"$f":"IF('1. Order'!V930=\"\",\"\",'1. Order'!V930)","v":""},{"$f":"IF('1. Order'!W930=\"\",\"\",'1. Order'!W930)","v":""},{"$f":"IF('1. Order'!X930=\"\",\"\",'1. Order'!X930)","v":"EUR"},{"$f":"IF('1. Order'!Y930=\"\",\"\",'1. Order'!Y930)","v":""},{"$f":"IF('1. Order'!Z930=\"\",\"\",'1. Order'!Z930)","v":""},{"$f":"IF('1. Order'!AA930=\"\",\"\",'1. Order'!AA930)","v":""},null,{"$f":"IF('1. Order'!AS930=\"\",\"\",'1. Order'!AS930)","v":""},{"$f":"IF('1. Order'!AT930=\"\",\"\",'1. Order'!AT930)","v":""},null,null,null,null,null,null,null,{"$f":"IF('1. Order'!AX930=\"\",\"\",'1. Order'!AX930)","v":""},{"$f":"IF('1. Order'!AY930=\"\",\"\",'1. Order'!AY930)","v":""},{"$f":"IF('1. Order'!AZ930=\"\",\"\",'1. Order'!AZ930)","v":""},{"$f":"IF('1. Order'!BA930=\"\",\"\",'1. Order'!BA930)","v":""},{"$f":"IF('1. Order'!BC930=\"\",\"\",'1. Order'!BC930)","v":""},{"$f":"IF('1. Order'!BD930=\"\",\"\",'1. Order'!BD930)","v":6},{"$f":"IF('1. Order'!BE930=\"\",\"\",'1. Order'!BE930)","v":"None"},{"$f":"IF('1. Order'!BF930=\"\",\"\",'1. Order'!BF930)","v":"Parcel"},{"$f":"IF('1. Order'!BG930=\"\",\"\",'1. Order'!BG930)","v":"ZWO"}]
[{"$f":"IF('1. Order'!F931=\"\",\"\",'1. Order'!F931)","v":""},{"$f":"IF('1. Order'!G931=\"\",\"\",'1. Order'!G931)","v":""},{"$f":"IF('1. Order'!H931=\"\",\"\",'1. Order'!H931)","v":""},{"$f":"IF('1. Order'!I931=\"\",\"\",'1. Order'!I931)","v":""},{"$f":"IF('1. Order'!J931=\"\",\"\",'1. Order'!J931)","v":""},{"$f":"IF('1. Order'!K931=\"\",\"\",'1. Order'!K931)","v":""},{"$f":"IF('1. Order'!L931=\"\",\"\",'1. Order'!L931)","v":""},{"$f":"IF('1. Order'!M931=\"\",\"\",'1. Order'!M931)","v":""},{"$f":"IF('1. Order'!N931=\"\",\"\",'1. Order'!N931)","v":""},{"$f":"IF('1. Order'!O931=\"\",\"\",'1. Order'!O931)","v":{"$error":"#N/A"}},{"$f":"IF('1. Order'!P931=\"\",\"\",'1. Order'!P931)","v":{"$error":"#N/A"}},{"$f":"IF('1. Order'!Q931=\"\",\"\",'1. Order'!Q931)","v":""},{"$f":"IF('1. Order'!R931=\"\",\"\",'1. Order'!R931)","v":""},{"$f":"IF('1. Order'!S931=\"\",\"\",'1. Order'!S931)","v":""},{"$f":"IF('1. Order'!V931=\"\",\"\",'1. Order'!V931)","v":""},{"$f":"IF('1. Order'!W931=\"\",\"\",'1. Order'!W931)","v":""},{"$f":"IF('1. Order'!X931=\"\",\"\",'1. Order'!X931)","v":"EUR"},{"$f":"IF('1. Order'!Y931=\"\",\"\",'1. Order'!Y931)","v":""},{"$f":"IF('1. Order'!Z931=\"\",\"\",'1. Order'!Z931)","v":""},{"$f":"IF('1. Order'!AA931=\"\",\"\",'1. Order'!AA931)","v":""},null,{"$f":"IF('1. Order'!AS931=\"\",\"\",'1. Order'!AS931)","v":""},{"$f":"IF('1. Order'!AT931=\"\",\"\",'1. Order'!AT931)","v":""},null,null,null,null,null,null,null,{"$f":"IF('1. Order'!AX931=\"\",\"\",'1. Order'!AX931)","v":""},{"$f":"IF('1. Order'!AY931=\"\",\"\",'1. Order'!AY931)","v":""},{"$f":"IF('1. Order'!AZ931=\"\",\"\",'1. Order'!AZ931)","v":""},{"$f":"IF('1. Order'!BA931=\"\",\"\",'1. Order'!BA931)","v":""},{"$f":"IF('1. Order'!BC931=\"\",\"\",'1. Order'!BC931)","v":""},{"$f":"IF('1. Order'!BD931=\"\",\"\",'1. Order'!BD931)","v":6},{"$f":"IF('1. Order'!BE931=\"\",\"\",'1. Order'!BE931)","v":"None"},{"$f":"IF('1. Order'!BF931=\"\",\"\",'1. Order'!BF931)","v":"Parcel"},{"$f":"IF('1. Order'!BG931=\"\",\"\",'1. Order'!BG931)","v":"ZWO"}]
[{"$f":"IF('1. Order'!F932=\"\",\"\",'1. Order'!F932)","v":""},{"$f":"IF('1. Order'!G932=\"\",\"\",'1. Order'!G932)","v":""},{"$f":"IF('1. Order'!H932=\"\",\"\",'1. Order'!H932)","v":""},{"$f":"IF('1. Order'!I932=\"\",\"\",'1. Order'!I932)","v":""},{"$f":"IF('1. Order'!J932=\"\",\"\",'1. Order'!J932)","v":""},{"$f":"IF('1. Order'!K932=\"\",\"\",'1. Order'!K932)","v":""},{"$f":"IF('1. Order'!L932=\"\",\"\",'1. Order'!L932)","v":""},{"$f":"IF('1. Order'!M932=\"\",\"\",'1. Order'!M932)","v":""},{"$f":"IF('1. Order'!N932=\"\",\"\",'1. Order'!N932)","v":""},{"$f":"IF('1. Order'!O932=\"\",\"\",'1. Order'!O932)","v":{"$error":"#N/A"}},{"$f":"IF('1. Order'!P932=\"\",\"\",'1. Order'!P932)","v":{"$error":"#N/A"}},{"$f":"IF('1. Order'!Q932=\"\",\"\",'1. Order'!Q932)","v":""},{"$f":"IF('1. Order'!R932=\"\",\"\",'1. Order'!R932)","v":""},{"$f":"IF('1. Order'!S932=\"\",\"\",'1. Order'!S932)","v":""},{"$f":"IF('1. Order'!V932=\"\",\"\",'1. Order'!V932)","v":""},{"$f":"IF('1. Order'!W932=\"\",\"\",'1. Order'!W932)","v":""},{"$f":"IF('1. Order'!X932=\"\",\"\",'1. Order'!X932)","v":"EUR"},{"$f":"IF('1. Order'!Y932=\"\",\"\",'1. Order'!Y932)","v":""},{"$f":"IF('1. Order'!Z932=\"\",\"\",'1. Order'!Z932)","v":""},{"$f":"IF('1. Order'!AA932=\"\",\"\",'1. Order'!AA932)","v":""},null,{"$f":"IF('1. Order'!AS932=\"\",\"\",'1. Order'!AS932)","v":""},{"$f":"IF('1. Order'!AT932=\"\",\"\",'1. Order'!AT932)","v":""},null,null,null,null,null,null,null,{"$f":"IF('1. Order'!AX932=\"\",\"\",'1. Order'!AX932)","v":""},{"$f":"IF('1. Order'!AY932=\"\",\"\",'1. Order'!AY932)","v":""},{"$f":"IF('1. Order'!AZ932=\"\",\"\",'1. Order'!AZ932)","v":""},{"$f":"IF('1. Order'!BA932=\"\",\"\",'1. Order'!BA932)","v":""},{"$f":"IF('1. Order'!BC932=\"\",\"\",'1. Order'!BC932)","v":""},{"$f":"IF('1. Order'!BD932=\"\",\"\",'1. Order'!BD932)","v":6},{"$f":"IF('1. Order'!BE932=\"\",\"\",'1. Order'!BE932)","v":"None"},{"$f":"IF('1. Order'!BF932=\"\",\"\",'1. Order'!BF932)","v":"Parcel"},{"$f":"IF('1. Order'!BG932=\"\",\"\",'1. Order'!BG932)","v":"ZWO"}]
[{"$f":"IF('1. Order'!F933=\"\",\"\",'1. Order'!F933)","v":""},{"$f":"IF('1. Order'!G933=\"\",\"\",'1. Order'!G933)","v":""},{"$f":"IF('1. Order'!H933=\"\",\"\",'1. Order'!H933)","v":""},{"$f":"IF('1. Order'!I933=\"\",\"\",'1. Order'!I933)","v":""},{"$f":"IF('1. Order'!J933=\"\",\"\",'1. Order'!J933)","v":""},{"$f":"IF('1. Order'!K933=\"\",\"\",'1. Order'!K933)","v":""},{"$f":"IF('1. Order'!L933=\"\",\"\",'1. Order'!L933)","v":""},{"$f":"IF('1. Order'!M933=\"\",\"\",'1. Order'!M933)","v":""},{"$f":"IF('1. Order'!N933=\"\",\"\",'1. Order'!N933)","v":""},{"$f":"IF('1. Order'!O933=\"\",\"\",'1. Order'!O933)","v":{"$error":"#N/A"}},{"$f":"IF('1. Order'!P933=\"\",\"\",'1. Order'!P933)","v":{"$error":"#N/A"}},{"$f":"IF('1. Order'!Q933=\"\",\"\",'1. Order'!Q933)","v":""},{"$f":"IF('1. Order'!R933=\"\",\"\",'1. Order'!R933)","v":""},{"$f":"IF('1. Order'!S933=\"\",\"\",'1. Order'!S933)","v":""},{"$f":"IF('1. Order'!V933=\"\",\"\",'1. Order'!V933)","v":""},{"$f":"IF('1. Order'!W933=\"\",\"\",'1. Order'!W933)","v":""},{"$f":"IF('1. Order'!X933=\"\",\"\",'1. Order'!X933)","v":"EUR"},{"$f":"IF('1. Order'!Y933=\"\",\"\",'1. Order'!Y933)","v":""},{"$f":"IF('1. Order'!Z933=\"\",\"\",'1. Order'!Z933)","v":""},{"$f":"IF('1. Order'!AA933=\"\",\"\",'1. Order'!AA933)","v":""},null,{"$f":"IF('1. Order'!AS933=\"\",\"\",'1. Order'!AS933)","v":""},{"$f":"IF('1. Order'!AT933=\"\",\"\",'1. Order'!AT933)","v":""},null,null,null,null,null,null,null,{"$f":"IF('1. Order'!AX933=\"\",\"\",'1. Order'!AX933)","v":""},{"$f":"IF('1. Order'!AY933=\"\",\"\",'1. Order'!AY933)","v":""},{"$f":"IF('1. Order'!AZ933=\"\",\"\",'1. Order'!AZ933)","v":""},{"$f":"IF('1. Order'!BA933=\"\",\"\",'1. Order'!BA933)","v":""},{"$f":"IF('1. Order'!BC933=\"\",\"\",'1. Order'!BC933)","v":""},{"$f":"IF('1. Order'!BD933=\"\",\"\",'1. Order'!BD933)","v":6},{"$f":"IF('1. Order'!BE933=\"\",\"\",'1. Order'!BE933)","v":"None"},{"$f":"IF('1. Order'!BF933=\"\",\"\",'1. Order'!BF933)","v":"Parcel"},{"$f":"IF('1. Order'!BG933=\"\",\"\",'1. Order'!BG933)","v":"ZWO"}]
[{"$f":"IF('1. Order'!F934=\"\",\"\",'1. Order'!F934)","v":""},{"$f":"IF('1. Order'!G934=\"\",\"\",'1. Order'!G934)","v":""},{"$f":"IF('1. Order'!H934=\"\",\"\",'1. Order'!H934)","v":""},{"$f":"IF('1. Order'!I934=\"\",\"\",'1. Order'!I934)","v":""},{"$f":"IF('1. Order'!J934=\"\",\"\",'1. Order'!J934)","v":""},{"$f":"IF('1. Order'!K934=\"\",\"\",'1. Order'!K934)","v":""},{"$f":"IF('1. Order'!L934=\"\",\"\",'1. Order'!L934)","v":""},{"$f":"IF('1. Order'!M934=\"\",\"\",'1. Order'!M934)","v":""},{"$f":"IF('1. Order'!N934=\"\",\"\",'1. Order'!N934)","v":""},{"$f":"IF('1. Order'!O934=\"\",\"\",'1. Order'!O934)","v":{"$error":"#N/A"}},{"$f":"IF('1. Order'!P934=\"\",\"\",'1. Order'!P934)","v":{"$error":"#N/A"}},{"$f":"IF('1. Order'!Q934=\"\",\"\",'1. Order'!Q934)","v":""},{"$f":"IF('1. Order'!R934=\"\",\"\",'1. Order'!R934)","v":""},{"$f":"IF('1. Order'!S934=\"\",\"\",'1. Order'!S934)","v":""},{"$f":"IF('1. Order'!V934=\"\",\"\",'1. Order'!V934)","v":""},{"$f":"IF('1. Order'!W934=\"\",\"\",'1. Order'!W934)","v":""},{"$f":"IF('1. Order'!X934=\"\",\"\",'1. Order'!X934)","v":"EUR"},{"$f":"IF('1. Order'!Y934=\"\",\"\",'1. Order'!Y934)","v":""},{"$f":"IF('1. Order'!Z934=\"\",\"\",'1. Order'!Z934)","v":""},{"$f":"IF('1. Order'!AA934=\"\",\"\",'1. Order'!AA934)","v":""},null,{"$f":"IF('1. Order'!AS934=\"\",\"\",'1. Order'!AS934)","v":""},{"$f":"IF('1. Order'!AT934=\"\",\"\",'1. Order'!AT934)","v":""},null,null,null,null,null,null,null,{"$f":"IF('1. Order'!AX934=\"\",\"\",'1. Order'!AX934)","v":""},{"$f":"IF('1. Order'!AY934=\"\",\"\",'1. Order'!AY934)","v":""},{"$f":"IF('1. Order'!AZ934=\"\",\"\",'1. Order'!AZ934)","v":""},{"$f":"IF('1. Order'!BA934=\"\",\"\",'1. Order'!BA934)","v":""},{"$f":"IF('1. Order'!BC934=\"\",\"\",'1. Order'!BC934)","v":""},{"$f":"IF('1. Order'!BD934=\"\",\"\",'1. Order'!BD934)","v":6},{"$f":"IF('1. Order'!BE934=\"\",\"\",'1. Order'!BE934)","v":"None"},{"$f":"IF('1. Order'!BF934=\"\",\"\",'1. Order'!BF934)","v":"Parcel"},{"$f":"IF('1. Order'!BG934=\"\",\"\",'1. Order'!BG934)","v":"ZWO"}]
[{"$f":"IF('1. Order'!F935=\"\",\"\",'1. Order'!F935)","v":""},{"$f":"IF('1. Order'!G935=\"\",\"\",'1. Order'!G935)","v":""},{"$f":"IF('1. Order'!H935=\"\",\"\",'1. Order'!H935)","v":""},{"$f":"IF('1. Order'!I935=\"\",\"\",'1. Order'!I935)","v":""},{"$f":"IF('1. Order'!J935=\"\",\"\",'1. Order'!J935)","v":""},{"$f":"IF('1. Order'!K935=\"\",\"\",'1. Order'!K935)","v":""},{"$f":"IF('1. Order'!L935=\"\",\"\",'1. Order'!L935)","v":""},{"$f":"IF('1. Order'!M935=\"\",\"\",'1. Order'!M935)","v":""},{"$f":"IF('1. Order'!N935=\"\",\"\",'1. Order'!N935)","v":""},{"$f":"IF('1. Order'!O935=\"\",\"\",'1. Order'!O935)","v":{"$error":"#N/A"}},{"$f":"IF('1. Order'!P935=\"\",\"\",'1. Order'!P935)","v":{"$error":"#N/A"}},{"$f":"IF('1. Order'!Q935=\"\",\"\",'1. Order'!Q935)","v":""},{"$f":"IF('1. Order'!R935=\"\",\"\",'1. Order'!R935)","v":""},{"$f":"IF('1. Order'!S935=\"\",\"\",'1. Order'!S935)","v":""},{"$f":"IF('1. Order'!V935=\"\",\"\",'1. Order'!V935)","v":""},{"$f":"IF('1. Order'!W935=\"\",\"\",'1. Order'!W935)","v":""},{"$f":"IF('1. Order'!X935=\"\",\"\",'1. Order'!X935)","v":"EUR"},{"$f":"IF('1. Order'!Y935=\"\",\"\",'1. Order'!Y935)","v":""},{"$f":"IF('1. Order'!Z935=\"\",\"\",'1. Order'!Z935)","v":""},{"$f":"IF('1. Order'!AA935=\"\",\"\",'1. Order'!AA935)","v":""},null,{"$f":"IF('1. Order'!AS935=\"\",\"\",'1. Order'!AS935)","v":""},{"$f":"IF('1. Order'!AT935=\"\",\"\",'1. Order'!AT935)","v":""},null,null,null,null,null,null,null,{"$f":"IF('1. Order'!AX935=\"\",\"\",'1. Order'!AX935)","v":""},{"$f":"IF('1. Order'!AY935=\"\",\"\",'1. Order'!AY935)","v":""},{"$f":"IF('1. Order'!AZ935=\"\",\"\",'1. Order'!AZ935)","v":""},{"$f":"IF('1. Order'!BA935=\"\",\"\",'1. Order'!BA935)","v":""},{"$f":"IF('1. Order'!BC935=\"\",\"\",'1. Order'!BC935)","v":""},{"$f":"IF('1. Order'!BD935=\"\",\"\",'1. Order'!BD935)","v":6},{"$f":"IF('1. Order'!BE935=\"\",\"\",'1. Order'!BE935)","v":"None"},{"$f":"IF('1. Order'!BF935=\"\",\"\",'1. Order'!BF935)","v":"Parcel"},{"$f":"IF('1. Order'!BG935=\"\",\"\",'1. Order'!BG935)","v":"ZWO"}]
[{"$f":"IF('1. Order'!F936=\"\",\"\",'1. Order'!F936)","v":""},{"$f":"IF('1. Order'!G936=\"\",\"\",'1. Order'!G936)","v":""},{"$f":"IF('1. Order'!H936=\"\",\"\",'1. Order'!H936)","v":""},{"$f":"IF('1. Order'!I936=\"\",\"\",'1. Order'!I936)","v":""},{"$f":"IF('1. Order'!J936=\"\",\"\",'1. Order'!J936)","v":""},{"$f":"IF('1. Order'!K936=\"\",\"\",'1. Order'!K936)","v":""},{"$f":"IF('1. Order'!L936=\"\",\"\",'1. Order'!L936)","v":""},{"$f":"IF('1. Order'!M936=\"\",\"\",'1. Order'!M936)","v":""},{"$f":"IF('1. Order'!N936=\"\",\"\",'1. Order'!N936)","v":""},{"$f":"IF('1. Order'!O936=\"\",\"\",'1. Order'!O936)","v":{"$error":"#N/A"}},{"$f":"IF('1. Order'!P936=\"\",\"\",'1. Order'!P936)","v":{"$error":"#N/A"}},{"$f":"IF('1. Order'!Q936=\"\",\"\",'1. Order'!Q936)","v":""},{"$f":"IF('1. Order'!R936=\"\",\"\",'1. Order'!R936)","v":""},{"$f":"IF('1. Order'!S936=\"\",\"\",'1. Order'!S936)","v":""},{"$f":"IF('1. Order'!V936=\"\",\"\",'1. Order'!V936)","v":""},{"$f":"IF('1. Order'!W936=\"\",\"\",'1. Order'!W936)","v":""},{"$f":"IF('1. Order'!X936=\"\",\"\",'1. Order'!X936)","v":"EUR"},{"$f":"IF('1. Order'!Y936=\"\",\"\",'1. Order'!Y936)","v":""},{"$f":"IF('1. Order'!Z936=\"\",\"\",'1. Order'!Z936)","v":""},{"$f":"IF('1. Order'!AA936=\"\",\"\",'1. Order'!AA936)","v":""},null,{"$f":"IF('1. Order'!AS936=\"\",\"\",'1. Order'!AS936)","v":""},{"$f":"IF('1. Order'!AT936=\"\",\"\",'1. Order'!AT936)","v":""},null,null,null,null,null,null,null,{"$f":"IF('1. Order'!AX936=\"\",\"\",'1. Order'!AX936)","v":""},{"$f":"IF('1. Order'!AY936=\"\",\"\",'1. Order'!AY936)","v":""},{"$f":"IF('1. Order'!AZ936=\"\",\"\",'1. Order'!AZ936)","v":""},{"$f":"IF('1. Order'!BA936=\"\",\"\",'1. Order'!BA936)","v":""},{"$f":"IF('1. Order'!BC936=\"\",\"\",'1. Order'!BC936)","v":""},{"$f":"IF('1. Order'!BD936=\"\",\"\",'1. Order'!BD936)","v":6},{"$f":"IF('1. Order'!BE936=\"\",\"\",'1. Order'!BE936)","v":"None"},{"$f":"IF('1. Order'!BF936=\"\",\"\",'1. Order'!BF936)","v":"Parcel"},{"$f":"IF('1. Order'!BG936=\"\",\"\",'1. Order'!BG936)","v":"ZWO"}]
[{"$f":"IF('1. Order'!F937=\"\",\"\",'1. Order'!F937)","v":""},{"$f":"IF('1. Order'!G937=\"\",\"\",'1. Order'!G937)","v":""},{"$f":"IF('1. Order'!H937=\"\",\"\",'1. Order'!H937)","v":""},{"$f":"IF('1. Order'!I937=\"\",\"\",'1. Order'!I937)","v":""},{"$f":"IF('1. Order'!J937=\"\",\"\",'1. Order'!J937)","v":""},{"$f":"IF('1. Order'!K937=\"\",\"\",'1. Order'!K937)","v":""},{"$f":"IF('1. Order'!L937=\"\",\"\",'1. Order'!L937)","v":""},{"$f":"IF('1. Order'!M937=\"\",\"\",'1. Order'!M937)","v":""},{"$f":"IF('1. Order'!N937=\"\",\"\",'1. Order'!N937)","v":""},{"$f":"IF('1. Order'!O937=\"\",\"\",'1. Order'!O937)","v":{"$error":"#N/A"}},{"$f":"IF('1. Order'!P937=\"\",\"\",'1. Order'!P937)","v":{"$error":"#N/A"}},{"$f":"IF('1. Order'!Q937=\"\",\"\",'1. Order'!Q937)","v":""},{"$f":"IF('1. Order'!R937=\"\",\"\",'1. Order'!R937)","v":""},{"$f":"IF('1. Order'!S937=\"\",\"\",'1. Order'!S937)","v":""},{"$f":"IF('1. Order'!V937=\"\",\"\",'1. Order'!V937)","v":""},{"$f":"IF('1. Order'!W937=\"\",\"\",'1. Order'!W937)","v":""},{"$f":"IF('1. Order'!X937=\"\",\"\",'1. Order'!X937)","v":"EUR"},{"$f":"IF('1. Order'!Y937=\"\",\"\",'1. Order'!Y937)","v":""},{"$f":"IF('1. Order'!Z937=\"\",\"\",'1. Order'!Z937)","v":""},{"$f":"IF('1. Order'!AA937=\"\",\"\",'1. Order'!AA937)","v":""},null,{"$f":"IF('1. Order'!AS937=\"\",\"\",'1. Order'!AS937)","v":""},{"$f":"IF('1. Order'!AT937=\"\",\"\",'1. Order'!AT937)","v":""},null,null,null,null,null,null,null,{"$f":"IF('1. Order'!AX937=\"\",\"\",'1. Order'!AX937)","v":""},{"$f":"IF('1. Order'!AY937=\"\",\"\",'1. Order'!AY937)","v":""},{"$f":"IF('1. Order'!AZ937=\"\",\"\",'1. Order'!AZ937)","v":""},{"$f":"IF('1. Order'!BA937=\"\",\"\",'1. Order'!BA937)","v":""},{"$f":"IF('1. Order'!BC937=\"\",\"\",'1. Order'!BC937)","v":""},{"$f":"IF('1. Order'!BD937=\"\",\"\",'1. Order'!BD937)","v":6},{"$f":"IF('1. Order'!BE937=\"\",\"\",'1. Order'!BE937)","v":"None"},{"$f":"IF('1. Order'!BF937=\"\",\"\",'1. Order'!BF937)","v":"Parcel"},{"$f":"IF('1. Order'!BG937=\"\",\"\",'1. Order'!BG937)","v":"ZWO"}]
[{"$f":"IF('1. Order'!F938=\"\",\"\",'1. Order'!F938)","v":""},{"$f":"IF('1. Order'!G938=\"\",\"\",'1. Order'!G938)","v":""},{"$f":"IF('1. Order'!H938=\"\",\"\",'1. Order'!H938)","v":""},{"$f":"IF('1. Order'!I938=\"\",\"\",'1. Order'!I938)","v":""},{"$f":"IF('1. Order'!J938=\"\",\"\",'1. Order'!J938)","v":""},{"$f":"IF('1. Order'!K938=\"\",\"\",'1. Order'!K938)","v":""},{"$f":"IF('1. Order'!L938=\"\",\"\",'1. Order'!L938)","v":""},{"$f":"IF('1. Order'!M938=\"\",\"\",'1. Order'!M938)","v":""},{"$f":"IF('1. Order'!N938=\"\",\"\",'1. Order'!N938)","v":""},{"$f":"IF('1. Order'!O938=\"\",\"\",'1. Order'!O938)","v":{"$error":"#N/A"}},{"$f":"IF('1. Order'!P938=\"\",\"\",'1. Order'!P938)","v":{"$error":"#N/A"}},{"$f":"IF('1. Order'!Q938=\"\",\"\",'1. Order'!Q938)","v":""},{"$f":"IF('1. Order'!R938=\"\",\"\",'1. Order'!R938)","v":""},{"$f":"IF('1. Order'!S938=\"\",\"\",'1. Order'!S938)","v":""},{"$f":"IF('1. Order'!V938=\"\",\"\",'1. Order'!V938)","v":""},{"$f":"IF('1. Order'!W938=\"\",\"\",'1. Order'!W938)","v":""},{"$f":"IF('1. Order'!X938=\"\",\"\",'1. Order'!X938)","v":"EUR"},{"$f":"IF('1. Order'!Y938=\"\",\"\",'1. Order'!Y938)","v":""},{"$f":"IF('1. Order'!Z938=\"\",\"\",'1. Order'!Z938)","v":""},{"$f":"IF('1. Order'!AA938=\"\",\"\",'1. Order'!AA938)","v":""},null,{"$f":"IF('1. Order'!AS938=\"\",\"\",'1. Order'!AS938)","v":""},{"$f":"IF('1. Order'!AT938=\"\",\"\",'1. Order'!AT938)","v":""},null,null,null,null,null,null,null,{"$f":"IF('1. Order'!AX938=\"\",\"\",'1. Order'!AX938)","v":""},{"$f":"IF('1. Order'!AY938=\"\",\"\",'1. Order'!AY938)","v":""},{"$f":"IF('1. Order'!AZ938=\"\",\"\",'1. Order'!AZ938)","v":""},{"$f":"IF('1. Order'!BA938=\"\",\"\",'1. Order'!BA938)","v":""},{"$f":"IF('1. Order'!BC938=\"\",\"\",'1. Order'!BC938)","v":""},{"$f":"IF('1. Order'!BD938=\"\",\"\",'1. Order'!BD938)","v":6},{"$f":"IF('1. Order'!BE938=\"\",\"\",'1. Order'!BE938)","v":"None"},{"$f":"IF('1. Order'!BF938=\"\",\"\",'1. Order'!BF938)","v":"Parcel"},{"$f":"IF('1. Order'!BG938=\"\",\"\",'1. Order'!BG938)","v":"ZWO"}]
[{"$f":"IF('1. Order'!F939=\"\",\"\",'1. Order'!F939)","v":""},{"$f":"IF('1. Order'!G939=\"\",\"\",'1. Order'!G939)","v":""},{"$f":"IF('1. Order'!H939=\"\",\"\",'1. Order'!H939)","v":""},{"$f":"IF('1. Order'!I939=\"\",\"\",'1. Order'!I939)","v":""},{"$f":"IF('1. Order'!J939=\"\",\"\",'1. Order'!J939)","v":""},{"$f":"IF('1. Order'!K939=\"\",\"\",'1. Order'!K939)","v":""},{"$f":"IF('1. Order'!L939=\"\",\"\",'1. Order'!L939)","v":""},{"$f":"IF('1. Order'!M939=\"\",\"\",'1. Order'!M939)","v":""},{"$f":"IF('1. Order'!N939=\"\",\"\",'1. Order'!N939)","v":""},{"$f":"IF('1. Order'!O939=\"\",\"\",'1. Order'!O939)","v":{"$error":"#N/A"}},{"$f":"IF('1. Order'!P939=\"\",\"\",'1. Order'!P939)","v":{"$error":"#N/A"}},{"$f":"IF('1. Order'!Q939=\"\",\"\",'1. Order'!Q939)","v":""},{"$f":"IF('1. Order'!R939=\"\",\"\",'1. Order'!R939)","v":""},{"$f":"IF('1. Order'!S939=\"\",\"\",'1. Order'!S939)","v":""},{"$f":"IF('1. Order'!V939=\"\",\"\",'1. Order'!V939)","v":""},{"$f":"IF('1. Order'!W939=\"\",\"\",'1. Order'!W939)","v":""},{"$f":"IF('1. Order'!X939=\"\",\"\",'1. Order'!X939)","v":"EUR"},{"$f":"IF('1. Order'!Y939=\"\",\"\",'1. Order'!Y939)","v":""},{"$f":"IF('1. Order'!Z939=\"\",\"\",'1. Order'!Z939)","v":""},{"$f":"IF('1. Order'!AA939=\"\",\"\",'1. Order'!AA939)","v":""},null,{"$f":"IF('1. Order'!AS939=\"\",\"\",'1. Order'!AS939)","v":""},{"$f":"IF('1. Order'!AT939=\"\",\"\",'1. Order'!AT939)","v":""},null,null,null,null,null,null,null,{"$f":"IF('1. Order'!AX939=\"\",\"\",'1. Order'!AX939)","v":""},{"$f":"IF('1. Order'!AY939=\"\",\"\",'1. Order'!AY939)","v":""},{"$f":"IF('1. Order'!AZ939=\"\",\"\",'1. Order'!AZ939)","v":""},{"$f":"IF('1. Order'!BA939=\"\",\"\",'1. Order'!BA939)","v":""},{"$f":"IF('1. Order'!BC939=\"\",\"\",'1. Order'!BC939)","v":""},{"$f":"IF('1. Order'!BD939=\"\",\"\",'1. Order'!BD939)","v":6},{"$f":"IF('1. Order'!BE939=\"\",\"\",'1. Order'!BE939)","v":"None"},{"$f":"IF('1. Order'!BF939=\"\",\"\",'1. Order'!BF939)","v":"Parcel"},{"$f":"IF('1. Order'!BG939=\"\",\"\",'1. Order'!BG939)","v":"ZWO"}]
[{"$f":"IF('1. Order'!F940=\"\",\"\",'1. Order'!F940)","v":""},{"$f":"IF('1. Order'!G940=\"\",\"\",'1. Order'!G940)","v":""},{"$f":"IF('1. Order'!H940=\"\",\"\",'1. Order'!H940)","v":""},{"$f":"IF('1. Order'!I940=\"\",\"\",'1. Order'!I940)","v":""},{"$f":"IF('1. Order'!J940=\"\",\"\",'1. Order'!J940)","v":""},{"$f":"IF('1. Order'!K940=\"\",\"\",'1. Order'!K940)","v":""},{"$f":"IF('1. Order'!L940=\"\",\"\",'1. Order'!L940)","v":""},{"$f":"IF('1. Order'!M940=\"\",\"\",'1. Order'!M940)","v":""},{"$f":"IF('1. Order'!N940=\"\",\"\",'1. Order'!N940)","v":""},{"$f":"IF('1. Order'!O940=\"\",\"\",'1. Order'!O940)","v":{"$error":"#N/A"}},{"$f":"IF('1. Order'!P940=\"\",\"\",'1. Order'!P940)","v":{"$error":"#N/A"}},{"$f":"IF('1. Order'!Q940=\"\",\"\",'1. Order'!Q940)","v":""},{"$f":"IF('1. Order'!R940=\"\",\"\",'1. Order'!R940)","v":""},{"$f":"IF('1. Order'!S940=\"\",\"\",'1. Order'!S940)","v":""},{"$f":"IF('1. Order'!V940=\"\",\"\",'1. Order'!V940)","v":""},{"$f":"IF('1. Order'!W940=\"\",\"\",'1. Order'!W940)","v":""},{"$f":"IF('1. Order'!X940=\"\",\"\",'1. Order'!X940)","v":"EUR"},{"$f":"IF('1. Order'!Y940=\"\",\"\",'1. Order'!Y940)","v":""},{"$f":"IF('1. Order'!Z940=\"\",\"\",'1. Order'!Z940)","v":""},{"$f":"IF('1. Order'!AA940=\"\",\"\",'1. Order'!AA940)","v":""},null,{"$f":"IF('1. Order'!AS940=\"\",\"\",'1. Order'!AS940)","v":""},{"$f":"IF('1. Order'!AT940=\"\",\"\",'1. Order'!AT940)","v":""},null,null,null,null,null,null,null,{"$f":"IF('1. Order'!AX940=\"\",\"\",'1. Order'!AX940)","v":""},{"$f":"IF('1. Order'!AY940=\"\",\"\",'1. Order'!AY940)","v":""},{"$f":"IF('1. Order'!AZ940=\"\",\"\",'1. Order'!AZ940)","v":""},{"$f":"IF('1. Order'!BA940=\"\",\"\",'1. Order'!BA940)","v":""},{"$f":"IF('1. Order'!BC940=\"\",\"\",'1. Order'!BC940)","v":""},{"$f":"IF('1. Order'!BD940=\"\",\"\",'1. Order'!BD940)","v":6},{"$f":"IF('1. Order'!BE940=\"\",\"\",'1. Order'!BE940)","v":"None"},{"$f":"IF('1. Order'!BF940=\"\",\"\",'1. Order'!BF940)","v":"Parcel"},{"$f":"IF('1. Order'!BG940=\"\",\"\",'1. Order'!BG940)","v":"ZWO"}]
[{"$f":"IF('1. Order'!F941=\"\",\"\",'1. Order'!F941)","v":""},{"$f":"IF('1. Order'!G941=\"\",\"\",'1. Order'!G941)","v":""},{"$f":"IF('1. Order'!H941=\"\",\"\",'1. Order'!H941)","v":""},{"$f":"IF('1. Order'!I941=\"\",\"\",'1. Order'!I941)","v":""},{"$f":"IF('1. Order'!J941=\"\",\"\",'1. Order'!J941)","v":""},{"$f":"IF('1. Order'!K941=\"\",\"\",'1. Order'!K941)","v":""},{"$f":"IF('1. Order'!L941=\"\",\"\",'1. Order'!L941)","v":""},{"$f":"IF('1. Order'!M941=\"\",\"\",'1. Order'!M941)","v":""},{"$f":"IF('1. Order'!N941=\"\",\"\",'1. Order'!N941)","v":""},{"$f":"IF('1. Order'!O941=\"\",\"\",'1. Order'!O941)","v":{"$error":"#N/A"}},{"$f":"IF('1. Order'!P941=\"\",\"\",'1. Order'!P941)","v":{"$error":"#N/A"}},{"$f":"IF('1. Order'!Q941=\"\",\"\",'1. Order'!Q941)","v":""},{"$f":"IF('1. Order'!R941=\"\",\"\",'1. Order'!R941)","v":""},{"$f":"IF('1. Order'!S941=\"\",\"\",'1. Order'!S941)","v":""},{"$f":"IF('1. Order'!V941=\"\",\"\",'1. Order'!V941)","v":""},{"$f":"IF('1. Order'!W941=\"\",\"\",'1. Order'!W941)","v":""},{"$f":"IF('1. Order'!X941=\"\",\"\",'1. Order'!X941)","v":"EUR"},{"$f":"IF('1. Order'!Y941=\"\",\"\",'1. Order'!Y941)","v":""},{"$f":"IF('1. Order'!Z941=\"\",\"\",'1. Order'!Z941)","v":""},{"$f":"IF('1. Order'!AA941=\"\",\"\",'1. Order'!AA941)","v":""},null,{"$f":"IF('1. Order'!AS941=\"\",\"\",'1. Order'!AS941)","v":""},{"$f":"IF('1. Order'!AT941=\"\",\"\",'1. Order'!AT941)","v":""},null,null,null,null,null,null,null,{"$f":"IF('1. Order'!AX941=\"\",\"\",'1. Order'!AX941)","v":""},{"$f":"IF('1. Order'!AY941=\"\",\"\",'1. Order'!AY941)","v":""},{"$f":"IF('1. Order'!AZ941=\"\",\"\",'1. Order'!AZ941)","v":""},{"$f":"IF('1. Order'!BA941=\"\",\"\",'1. Order'!BA941)","v":""},{"$f":"IF('1. Order'!BC941=\"\",\"\",'1. Order'!BC941)","v":""},{"$f":"IF('1. Order'!BD941=\"\",\"\",'1. Order'!BD941)","v":6},{"$f":"IF('1. Order'!BE941=\"\",\"\",'1. Order'!BE941)","v":"None"},{"$f":"IF('1. Order'!BF941=\"\",\"\",'1. Order'!BF941)","v":"Parcel"},{"$f":"IF('1. Order'!BG941=\"\",\"\",'1. Order'!BG941)","v":"ZWO"}]
[{"$f":"IF('1. Order'!F942=\"\",\"\",'1. Order'!F942)","v":""},{"$f":"IF('1. Order'!G942=\"\",\"\",'1. Order'!G942)","v":""},{"$f":"IF('1. Order'!H942=\"\",\"\",'1. Order'!H942)","v":""},{"$f":"IF('1. Order'!I942=\"\",\"\",'1. Order'!I942)","v":""},{"$f":"IF('1. Order'!J942=\"\",\"\",'1. Order'!J942)","v":""},{"$f":"IF('1. Order'!K942=\"\",\"\",'1. Order'!K942)","v":""},{"$f":"IF('1. Order'!L942=\"\",\"\",'1. Order'!L942)","v":""},{"$f":"IF('1. Order'!M942=\"\",\"\",'1. Order'!M942)","v":""},{"$f":"IF('1. Order'!N942=\"\",\"\",'1. Order'!N942)","v":""},{"$f":"IF('1. Order'!O942=\"\",\"\",'1. Order'!O942)","v":{"$error":"#N/A"}},{"$f":"IF('1. Order'!P942=\"\",\"\",'1. Order'!P942)","v":{"$error":"#N/A"}},{"$f":"IF('1. Order'!Q942=\"\",\"\",'1. Order'!Q942)","v":""},{"$f":"IF('1. Order'!R942=\"\",\"\",'1. Order'!R942)","v":""},{"$f":"IF('1. Order'!S942=\"\",\"\",'1. Order'!S942)","v":""},{"$f":"IF('1. Order'!V942=\"\",\"\",'1. Order'!V942)","v":""},{"$f":"IF('1. Order'!W942=\"\",\"\",'1. Order'!W942)","v":""},{"$f":"IF('1. Order'!X942=\"\",\"\",'1. Order'!X942)","v":"EUR"},{"$f":"IF('1. Order'!Y942=\"\",\"\",'1. Order'!Y942)","v":""},{"$f":"IF('1. Order'!Z942=\"\",\"\",'1. Order'!Z942)","v":""},{"$f":"IF('1. Order'!AA942=\"\",\"\",'1. Order'!AA942)","v":""},null,{"$f":"IF('1. Order'!AS942=\"\",\"\",'1. Order'!AS942)","v":""},{"$f":"IF('1. Order'!AT942=\"\",\"\",'1. Order'!AT942)","v":""},null,null,null,null,null,null,null,{"$f":"IF('1. Order'!AX942=\"\",\"\",'1. Order'!AX942)","v":""},{"$f":"IF('1. Order'!AY942=\"\",\"\",'1. Order'!AY942)","v":""},{"$f":"IF('1. Order'!AZ942=\"\",\"\",'1. Order'!AZ942)","v":""},{"$f":"IF('1. Order'!BA942=\"\",\"\",'1. Order'!BA942)","v":""},{"$f":"IF('1. Order'!BC942=\"\",\"\",'1. Order'!BC942)","v":""},{"$f":"IF('1. Order'!BD942=\"\",\"\",'1. Order'!BD942)","v":6},{"$f":"IF('1. Order'!BE942=\"\",\"\",'1. Order'!BE942)","v":"None"},{"$f":"IF('1. Order'!BF942=\"\",\"\",'1. Order'!BF942)","v":"Parcel"},{"$f":"IF('1. Order'!BG942=\"\",\"\",'1. Order'!BG942)","v":"ZWO"}]
[{"$f":"IF('1. Order'!F943=\"\",\"\",'1. Order'!F943)","v":""},{"$f":"IF('1. Order'!G943=\"\",\"\",'1. Order'!G943)","v":""},{"$f":"IF('1. Order'!H943=\"\",\"\",'1. Order'!H943)","v":""},{"$f":"IF('1. Order'!I943=\"\",\"\",'1. Order'!I943)","v":""},{"$f":"IF('1. Order'!J943=\"\",\"\",'1. Order'!J943)","v":""},{"$f":"IF('1. Order'!K943=\"\",\"\",'1. Order'!K943)","v":""},{"$f":"IF('1. Order'!L943=\"\",\"\",'1. Order'!L943)","v":""},{"$f":"IF('1. Order'!M943=\"\",\"\",'1. Order'!M943)","v":""},{"$f":"IF('1. Order'!N943=\"\",\"\",'1. Order'!N943)","v":""},{"$f":"IF('1. Order'!O943=\"\",\"\",'1. Order'!O943)","v":{"$error":"#N/A"}},{"$f":"IF('1. Order'!P943=\"\",\"\",'1. Order'!P943)","v":{"$error":"#N/A"}},{"$f":"IF('1. Order'!Q943=\"\",\"\",'1. Order'!Q943)","v":""},{"$f":"IF('1. Order'!R943=\"\",\"\",'1. Order'!R943)","v":""},{"$f":"IF('1. Order'!S943=\"\",\"\",'1. Order'!S943)","v":""},{"$f":"IF('1. Order'!V943=\"\",\"\",'1. Order'!V943)","v":""},{"$f":"IF('1. Order'!W943=\"\",\"\",'1. Order'!W943)","v":""},{"$f":"IF('1. Order'!X943=\"\",\"\",'1. Order'!X943)","v":"EUR"},{"$f":"IF('1. Order'!Y943=\"\",\"\",'1. Order'!Y943)","v":""},{"$f":"IF('1. Order'!Z943=\"\",\"\",'1. Order'!Z943)","v":""},{"$f":"IF('1. Order'!AA943=\"\",\"\",'1. Order'!AA943)","v":""},null,{"$f":"IF('1. Order'!AS943=\"\",\"\",'1. Order'!AS943)","v":""},{"$f":"IF('1. Order'!AT943=\"\",\"\",'1. Order'!AT943)","v":""},null,null,null,null,null,null,null,{"$f":"IF('1. Order'!AX943=\"\",\"\",'1. Order'!AX943)","v":""},{"$f":"IF('1. Order'!AY943=\"\",\"\",'1. Order'!AY943)","v":""},{"$f":"IF('1. Order'!AZ943=\"\",\"\",'1. Order'!AZ943)","v":""},{"$f":"IF('1. Order'!BA943=\"\",\"\",'1. Order'!BA943)","v":""},{"$f":"IF('1. Order'!BC943=\"\",\"\",'1. Order'!BC943)","v":""},{"$f":"IF('1. Order'!BD943=\"\",\"\",'1. Order'!BD943)","v":6},{"$f":"IF('1. Order'!BE943=\"\",\"\",'1. Order'!BE943)","v":"None"},{"$f":"IF('1. Order'!BF943=\"\",\"\",'1. Order'!BF943)","v":"Parcel"},{"$f":"IF('1. Order'!BG943=\"\",\"\",'1. Order'!BG943)","v":"ZWO"}]
[{"$f":"IF('1. Order'!F944=\"\",\"\",'1. Order'!F944)","v":""},{"$f":"IF('1. Order'!G944=\"\",\"\",'1. Order'!G944)","v":""},{"$f":"IF('1. Order'!H944=\"\",\"\",'1. Order'!H944)","v":""},{"$f":"IF('1. Order'!I944=\"\",\"\",'1. Order'!I944)","v":""},{"$f":"IF('1. Order'!J944=\"\",\"\",'1. Order'!J944)","v":""},{"$f":"IF('1. Order'!K944=\"\",\"\",'1. Order'!K944)","v":""},{"$f":"IF('1. Order'!L944=\"\",\"\",'1. Order'!L944)","v":""},{"$f":"IF('1. Order'!M944=\"\",\"\",'1. Order'!M944)","v":""},{"$f":"IF('1. Order'!N944=\"\",\"\",'1. Order'!N944)","v":""},{"$f":"IF('1. Order'!O944=\"\",\"\",'1. Order'!O944)","v":{"$error":"#N/A"}},{"$f":"IF('1. Order'!P944=\"\",\"\",'1. Order'!P944)","v":{"$error":"#N/A"}},{"$f":"IF('1. Order'!Q944=\"\",\"\",'1. Order'!Q944)","v":""},{"$f":"IF('1. Order'!R944=\"\",\"\",'1. Order'!R944)","v":""},{"$f":"IF('1. Order'!S944=\"\",\"\",'1. Order'!S944)","v":""},{"$f":"IF('1. Order'!V944=\"\",\"\",'1. Order'!V944)","v":""},{"$f":"IF('1. Order'!W944=\"\",\"\",'1. Order'!W944)","v":""},{"$f":"IF('1. Order'!X944=\"\",\"\",'1. Order'!X944)","v":"EUR"},{"$f":"IF('1. Order'!Y944=\"\",\"\",'1. Order'!Y944)","v":""},{"$f":"IF('1. Order'!Z944=\"\",\"\",'1. Order'!Z944)","v":""},{"$f":"IF('1. Order'!AA944=\"\",\"\",'1. Order'!AA944)","v":""},null,{"$f":"IF('1. Order'!AS944=\"\",\"\",'1. Order'!AS944)","v":""},{"$f":"IF('1. Order'!AT944=\"\",\"\",'1. Order'!AT944)","v":""},null,null,null,null,null,null,null,{"$f":"IF('1. Order'!AX944=\"\",\"\",'1. Order'!AX944)","v":""},{"$f":"IF('1. Order'!AY944=\"\",\"\",'1. Order'!AY944)","v":""},{"$f":"IF('1. Order'!AZ944=\"\",\"\",'1. Order'!AZ944)","v":""},{"$f":"IF('1. Order'!BA944=\"\",\"\",'1. Order'!BA944)","v":""},{"$f":"IF('1. Order'!BC944=\"\",\"\",'1. Order'!BC944)","v":""},{"$f":"IF('1. Order'!BD944=\"\",\"\",'1. Order'!BD944)","v":6},{"$f":"IF('1. Order'!BE944=\"\",\"\",'1. Order'!BE944)","v":"None"},{"$f":"IF('1. Order'!BF944=\"\",\"\",'1. Order'!BF944)","v":"Parcel"},{"$f":"IF('1. Order'!BG944=\"\",\"\",'1. Order'!BG944)","v":"ZWO"}]
[{"$f":"IF('1. Order'!F945=\"\",\"\",'1. Order'!F945)","v":""},{"$f":"IF('1. Order'!G945=\"\",\"\",'1. Order'!G945)","v":""},{"$f":"IF('1. Order'!H945=\"\",\"\",'1. Order'!H945)","v":""},{"$f":"IF('1. Order'!I945=\"\",\"\",'1. Order'!I945)","v":""},{"$f":"IF('1. Order'!J945=\"\",\"\",'1. Order'!J945)","v":""},{"$f":"IF('1. Order'!K945=\"\",\"\",'1. Order'!K945)","v":""},{"$f":"IF('1. Order'!L945=\"\",\"\",'1. Order'!L945)","v":""},{"$f":"IF('1. Order'!M945=\"\",\"\",'1. Order'!M945)","v":""},{"$f":"IF('1. Order'!N945=\"\",\"\",'1. Order'!N945)","v":""},{"$f":"IF('1. Order'!O945=\"\",\"\",'1. Order'!O945)","v":{"$error":"#N/A"}},{"$f":"IF('1. Order'!P945=\"\",\"\",'1. Order'!P945)","v":{"$error":"#N/A"}},{"$f":"IF('1. Order'!Q945=\"\",\"\",'1. Order'!Q945)","v":""},{"$f":"IF('1. Order'!R945=\"\",\"\",'1. Order'!R945)","v":""},{"$f":"IF('1. Order'!S945=\"\",\"\",'1. Order'!S945)","v":""},{"$f":"IF('1. Order'!V945=\"\",\"\",'1. Order'!V945)","v":""},{"$f":"IF('1. Order'!W945=\"\",\"\",'1. Order'!W945)","v":""},{"$f":"IF('1. Order'!X945=\"\",\"\",'1. Order'!X945)","v":"EUR"},{"$f":"IF('1. Order'!Y945=\"\",\"\",'1. Order'!Y945)","v":""},{"$f":"IF('1. Order'!Z945=\"\",\"\",'1. Order'!Z945)","v":""},{"$f":"IF('1. Order'!AA945=\"\",\"\",'1. Order'!AA945)","v":""},null,{"$f":"IF('1. Order'!AS945=\"\",\"\",'1. Order'!AS945)","v":""},{"$f":"IF('1. Order'!AT945=\"\",\"\",'1. Order'!AT945)","v":""},null,null,null,null,null,null,null,{"$f":"IF('1. Order'!AX945=\"\",\"\",'1. Order'!AX945)","v":""},{"$f":"IF('1. Order'!AY945=\"\",\"\",'1. Order'!AY945)","v":""},{"$f":"IF('1. Order'!AZ945=\"\",\"\",'1. Order'!AZ945)","v":""},{"$f":"IF('1. Order'!BA945=\"\",\"\",'1. Order'!BA945)","v":""},{"$f":"IF('1. Order'!BC945=\"\",\"\",'1. Order'!BC945)","v":""},{"$f":"IF('1. Order'!BD945=\"\",\"\",'1. Order'!BD945)","v":6},{"$f":"IF('1. Order'!BE945=\"\",\"\",'1. Order'!BE945)","v":"None"},{"$f":"IF('1. Order'!BF945=\"\",\"\",'1. Order'!BF945)","v":"Parcel"},{"$f":"IF('1. Order'!BG945=\"\",\"\",'1. Order'!BG945)","v":"ZWO"}]
[{"$f":"IF('1. Order'!F946=\"\",\"\",'1. Order'!F946)","v":""},{"$f":"IF('1. Order'!G946=\"\",\"\",'1. Order'!G946)","v":""},{"$f":"IF('1. Order'!H946=\"\",\"\",'1. Order'!H946)","v":""},{"$f":"IF('1. Order'!I946=\"\",\"\",'1. Order'!I946)","v":""},{"$f":"IF('1. Order'!J946=\"\",\"\",'1. Order'!J946)","v":""},{"$f":"IF('1. Order'!K946=\"\",\"\",'1. Order'!K946)","v":""},{"$f":"IF('1. Order'!L946=\"\",\"\",'1. Order'!L946)","v":""},{"$f":"IF('1. Order'!M946=\"\",\"\",'1. Order'!M946)","v":""},{"$f":"IF('1. Order'!N946=\"\",\"\",'1. Order'!N946)","v":""},{"$f":"IF('1. Order'!O946=\"\",\"\",'1. Order'!O946)","v":{"$error":"#N/A"}},{"$f":"IF('1. Order'!P946=\"\",\"\",'1. Order'!P946)","v":{"$error":"#N/A"}},{"$f":"IF('1. Order'!Q946=\"\",\"\",'1. Order'!Q946)","v":""},{"$f":"IF('1. Order'!R946=\"\",\"\",'1. Order'!R946)","v":""},{"$f":"IF('1. Order'!S946=\"\",\"\",'1. Order'!S946)","v":""},{"$f":"IF('1. Order'!V946=\"\",\"\",'1. Order'!V946)","v":""},{"$f":"IF('1. Order'!W946=\"\",\"\",'1. Order'!W946)","v":""},{"$f":"IF('1. Order'!X946=\"\",\"\",'1. Order'!X946)","v":"EUR"},{"$f":"IF('1. Order'!Y946=\"\",\"\",'1. Order'!Y946)","v":""},{"$f":"IF('1. Order'!Z946=\"\",\"\",'1. Order'!Z946)","v":""},{"$f":"IF('1. Order'!AA946=\"\",\"\",'1. Order'!AA946)","v":""},null,{"$f":"IF('1. Order'!AS946=\"\",\"\",'1. Order'!AS946)","v":""},{"$f":"IF('1. Order'!AT946=\"\",\"\",'1. Order'!AT946)","v":""},null,null,null,null,null,null,null,{"$f":"IF('1. Order'!AX946=\"\",\"\",'1. Order'!AX946)","v":""},{"$f":"IF('1. Order'!AY946=\"\",\"\",'1. Order'!AY946)","v":""},{"$f":"IF('1. Order'!AZ946=\"\",\"\",'1. Order'!AZ946)","v":""},{"$f":"IF('1. Order'!BA946=\"\",\"\",'1. Order'!BA946)","v":""},{"$f":"IF('1. Order'!BC946=\"\",\"\",'1. Order'!BC946)","v":""},{"$f":"IF('1. Order'!BD946=\"\",\"\",'1. Order'!BD946)","v":6},{"$f":"IF('1. Order'!BE946=\"\",\"\",'1. Order'!BE946)","v":"None"},{"$f":"IF('1. Order'!BF946=\"\",\"\",'1. Order'!BF946)","v":"Parcel"},{"$f":"IF('1. Order'!BG946=\"\",\"\",'1. Order'!BG946)","v":"ZWO"}]
[{"$f":"IF('1. Order'!F947=\"\",\"\",'1. Order'!F947)","v":""},{"$f":"IF('1. Order'!G947=\"\",\"\",'1. Order'!G947)","v":""},{"$f":"IF('1. Order'!H947=\"\",\"\",'1. Order'!H947)","v":""},{"$f":"IF('1. Order'!I947=\"\",\"\",'1. Order'!I947)","v":""},{"$f":"IF('1. Order'!J947=\"\",\"\",'1. Order'!J947)","v":""},{"$f":"IF('1. Order'!K947=\"\",\"\",'1. Order'!K947)","v":""},{"$f":"IF('1. Order'!L947=\"\",\"\",'1. Order'!L947)","v":""},{"$f":"IF('1. Order'!M947=\"\",\"\",'1. Order'!M947)","v":""},{"$f":"IF('1. Order'!N947=\"\",\"\",'1. Order'!N947)","v":""},{"$f":"IF('1. Order'!O947=\"\",\"\",'1. Order'!O947)","v":{"$error":"#N/A"}},{"$f":"IF('1. Order'!P947=\"\",\"\",'1. Order'!P947)","v":{"$error":"#N/A"}},{"$f":"IF('1. Order'!Q947=\"\",\"\",'1. Order'!Q947)","v":""},{"$f":"IF('1. Order'!R947=\"\",\"\",'1. Order'!R947)","v":""},{"$f":"IF('1. Order'!S947=\"\",\"\",'1. Order'!S947)","v":""},{"$f":"IF('1. Order'!V947=\"\",\"\",'1. Order'!V947)","v":""},{"$f":"IF('1. Order'!W947=\"\",\"\",'1. Order'!W947)","v":""},{"$f":"IF('1. Order'!X947=\"\",\"\",'1. Order'!X947)","v":"EUR"},{"$f":"IF('1. Order'!Y947=\"\",\"\",'1. Order'!Y947)","v":""},{"$f":"IF('1. Order'!Z947=\"\",\"\",'1. Order'!Z947)","v":""},{"$f":"IF('1. Order'!AA947=\"\",\"\",'1. Order'!AA947)","v":""},null,{"$f":"IF('1. Order'!AS947=\"\",\"\",'1. Order'!AS947)","v":""},{"$f":"IF('1. Order'!AT947=\"\",\"\",'1. Order'!AT947)","v":""},null,null,null,null,null,null,null,{"$f":"IF('1. Order'!AX947=\"\",\"\",'1. Order'!AX947)","v":""},{"$f":"IF('1. Order'!AY947=\"\",\"\",'1. Order'!AY947)","v":""},{"$f":"IF('1. Order'!AZ947=\"\",\"\",'1. Order'!AZ947)","v":""},{"$f":"IF('1. Order'!BA947=\"\",\"\",'1. Order'!BA947)","v":""},{"$f":"IF('1. Order'!BC947=\"\",\"\",'1. Order'!BC947)","v":""},{"$f":"IF('1. Order'!BD947=\"\",\"\",'1. Order'!BD947)","v":6},{"$f":"IF('1. Order'!BE947=\"\",\"\",'1. Order'!BE947)","v":"None"},{"$f":"IF('1. Order'!BF947=\"\",\"\",'1. Order'!BF947)","v":"Parcel"},{"$f":"IF('1. Order'!BG947=\"\",\"\",'1. Order'!BG947)","v":"ZWO"}]
[{"$f":"IF('1. Order'!F948=\"\",\"\",'1. Order'!F948)","v":""},{"$f":"IF('1. Order'!G948=\"\",\"\",'1. Order'!G948)","v":""},{"$f":"IF('1. Order'!H948=\"\",\"\",'1. Order'!H948)","v":""},{"$f":"IF('1. Order'!I948=\"\",\"\",'1. Order'!I948)","v":""},{"$f":"IF('1. Order'!J948=\"\",\"\",'1. Order'!J948)","v":""},{"$f":"IF('1. Order'!K948=\"\",\"\",'1. Order'!K948)","v":""},{"$f":"IF('1. Order'!L948=\"\",\"\",'1. Order'!L948)","v":""},{"$f":"IF('1. Order'!M948=\"\",\"\",'1. Order'!M948)","v":""},{"$f":"IF('1. Order'!N948=\"\",\"\",'1. Order'!N948)","v":""},{"$f":"IF('1. Order'!O948=\"\",\"\",'1. Order'!O948)","v":{"$error":"#N/A"}},{"$f":"IF('1. Order'!P948=\"\",\"\",'1. Order'!P948)","v":{"$error":"#N/A"}},{"$f":"IF('1. Order'!Q948=\"\",\"\",'1. Order'!Q948)","v":""},{"$f":"IF('1. Order'!R948=\"\",\"\",'1. Order'!R948)","v":""},{"$f":"IF('1. Order'!S948=\"\",\"\",'1. Order'!S948)","v":""},{"$f":"IF('1. Order'!V948=\"\",\"\",'1. Order'!V948)","v":""},{"$f":"IF('1. Order'!W948=\"\",\"\",'1. Order'!W948)","v":""},{"$f":"IF('1. Order'!X948=\"\",\"\",'1. Order'!X948)","v":"EUR"},{"$f":"IF('1. Order'!Y948=\"\",\"\",'1. Order'!Y948)","v":""},{"$f":"IF('1. Order'!Z948=\"\",\"\",'1. Order'!Z948)","v":""},{"$f":"IF('1. Order'!AA948=\"\",\"\",'1. Order'!AA948)","v":""},null,{"$f":"IF('1. Order'!AS948=\"\",\"\",'1. Order'!AS948)","v":""},{"$f":"IF('1. Order'!AT948=\"\",\"\",'1. Order'!AT948)","v":""},null,null,null,null,null,null,null,{"$f":"IF('1. Order'!AX948=\"\",\"\",'1. Order'!AX948)","v":""},{"$f":"IF('1. Order'!AY948=\"\",\"\",'1. Order'!AY948)","v":""},{"$f":"IF('1. Order'!AZ948=\"\",\"\",'1. Order'!AZ948)","v":""},{"$f":"IF('1. Order'!BA948=\"\",\"\",'1. Order'!BA948)","v":""},{"$f":"IF('1. Order'!BC948=\"\",\"\",'1. Order'!BC948)","v":""},{"$f":"IF('1. Order'!BD948=\"\",\"\",'1. Order'!BD948)","v":6},{"$f":"IF('1. Order'!BE948=\"\",\"\",'1. Order'!BE948)","v":"None"},{"$f":"IF('1. Order'!BF948=\"\",\"\",'1. Order'!BF948)","v":"Parcel"},{"$f":"IF('1. Order'!BG948=\"\",\"\",'1. Order'!BG948)","v":"ZWO"}]
[{"$f":"IF('1. Order'!F949=\"\",\"\",'1. Order'!F949)","v":""},{"$f":"IF('1. Order'!G949=\"\",\"\",'1. Order'!G949)","v":""},{"$f":"IF('1. Order'!H949=\"\",\"\",'1. Order'!H949)","v":""},{"$f":"IF('1. Order'!I949=\"\",\"\",'1. Order'!I949)","v":""},{"$f":"IF('1. Order'!J949=\"\",\"\",'1. Order'!J949)","v":""},{"$f":"IF('1. Order'!K949=\"\",\"\",'1. Order'!K949)","v":""},{"$f":"IF('1. Order'!L949=\"\",\"\",'1. Order'!L949)","v":""},{"$f":"IF('1. Order'!M949=\"\",\"\",'1. Order'!M949)","v":""},{"$f":"IF('1. Order'!N949=\"\",\"\",'1. Order'!N949)","v":""},{"$f":"IF('1. Order'!O949=\"\",\"\",'1. Order'!O949)","v":{"$error":"#N/A"}},{"$f":"IF('1. Order'!P949=\"\",\"\",'1. Order'!P949)","v":{"$error":"#N/A"}},{"$f":"IF('1. Order'!Q949=\"\",\"\",'1. Order'!Q949)","v":""},{"$f":"IF('1. Order'!R949=\"\",\"\",'1. Order'!R949)","v":""},{"$f":"IF('1. Order'!S949=\"\",\"\",'1. Order'!S949)","v":""},{"$f":"IF('1. Order'!V949=\"\",\"\",'1. Order'!V949)","v":""},{"$f":"IF('1. Order'!W949=\"\",\"\",'1. Order'!W949)","v":""},{"$f":"IF('1. Order'!X949=\"\",\"\",'1. Order'!X949)","v":"EUR"},{"$f":"IF('1. Order'!Y949=\"\",\"\",'1. Order'!Y949)","v":""},{"$f":"IF('1. Order'!Z949=\"\",\"\",'1. Order'!Z949)","v":""},{"$f":"IF('1. Order'!AA949=\"\",\"\",'1. Order'!AA949)","v":""},null,{"$f":"IF('1. Order'!AS949=\"\",\"\",'1. Order'!AS949)","v":""},{"$f":"IF('1. Order'!AT949=\"\",\"\",'1. Order'!AT949)","v":""},null,null,null,null,null,null,null,{"$f":"IF('1. Order'!AX949=\"\",\"\",'1. Order'!AX949)","v":""},{"$f":"IF('1. Order'!AY949=\"\",\"\",'1. Order'!AY949)","v":""},{"$f":"IF('1. Order'!AZ949=\"\",\"\",'1. Order'!AZ949)","v":""},{"$f":"IF('1. Order'!BA949=\"\",\"\",'1. Order'!BA949)","v":""},{"$f":"IF('1. Order'!BC949=\"\",\"\",'1. Order'!BC949)","v":""},{"$f":"IF('1. Order'!BD949=\"\",\"\",'1. Order'!BD949)","v":6},{"$f":"IF('1. Order'!BE949=\"\",\"\",'1. Order'!BE949)","v":"None"},{"$f":"IF('1. Order'!BF949=\"\",\"\",'1. Order'!BF949)","v":"Parcel"},{"$f":"IF('1. Order'!BG949=\"\",\"\",'1. Order'!BG949)","v":"ZWO"}]
[{"$f":"IF('1. Order'!F950=\"\",\"\",'1. Order'!F950)","v":""},{"$f":"IF('1. Order'!G950=\"\",\"\",'1. Order'!G950)","v":""},{"$f":"IF('1. Order'!H950=\"\",\"\",'1. Order'!H950)","v":""},{"$f":"IF('1. Order'!I950=\"\",\"\",'1. Order'!I950)","v":""},{"$f":"IF('1. Order'!J950=\"\",\"\",'1. Order'!J950)","v":""},{"$f":"IF('1. Order'!K950=\"\",\"\",'1. Order'!K950)","v":""},{"$f":"IF('1. Order'!L950=\"\",\"\",'1. Order'!L950)","v":""},{"$f":"IF('1. Order'!M950=\"\",\"\",'1. Order'!M950)","v":""},{"$f":"IF('1. Order'!N950=\"\",\"\",'1. Order'!N950)","v":""},{"$f":"IF('1. Order'!O950=\"\",\"\",'1. Order'!O950)","v":{"$error":"#N/A"}},{"$f":"IF('1. Order'!P950=\"\",\"\",'1. Order'!P950)","v":{"$error":"#N/A"}},{"$f":"IF('1. Order'!Q950=\"\",\"\",'1. Order'!Q950)","v":""},{"$f":"IF('1. Order'!R950=\"\",\"\",'1. Order'!R950)","v":""},{"$f":"IF('1. Order'!S950=\"\",\"\",'1. Order'!S950)","v":""},{"$f":"IF('1. Order'!V950=\"\",\"\",'1. Order'!V950)","v":""},{"$f":"IF('1. Order'!W950=\"\",\"\",'1. Order'!W950)","v":""},{"$f":"IF('1. Order'!X950=\"\",\"\",'1. Order'!X950)","v":"EUR"},{"$f":"IF('1. Order'!Y950=\"\",\"\",'1. Order'!Y950)","v":""},{"$f":"IF('1. Order'!Z950=\"\",\"\",'1. Order'!Z950)","v":""},{"$f":"IF('1. Order'!AA950=\"\",\"\",'1. Order'!AA950)","v":""},null,{"$f":"IF('1. Order'!AS950=\"\",\"\",'1. Order'!AS950)","v":""},{"$f":"IF('1. Order'!AT950=\"\",\"\",'1. Order'!AT950)","v":""},null,null,null,null,null,null,null,{"$f":"IF('1. Order'!AX950=\"\",\"\",'1. Order'!AX950)","v":""},{"$f":"IF('1. Order'!AY950=\"\",\"\",'1. Order'!AY950)","v":""},{"$f":"IF('1. Order'!AZ950=\"\",\"\",'1. Order'!AZ950)","v":""},{"$f":"IF('1. Order'!BA950=\"\",\"\",'1. Order'!BA950)","v":""},{"$f":"IF('1. Order'!BC950=\"\",\"\",'1. Order'!BC950)","v":""},{"$f":"IF('1. Order'!BD950=\"\",\"\",'1. Order'!BD950)","v":6},{"$f":"IF('1. Order'!BE950=\"\",\"\",'1. Order'!BE950)","v":"None"},{"$f":"IF('1. Order'!BF950=\"\",\"\",'1. Order'!BF950)","v":"Parcel"},{"$f":"IF('1. Order'!BG950=\"\",\"\",'1. Order'!BG950)","v":"ZWO"}]
[{"$f":"IF('1. Order'!F951=\"\",\"\",'1. Order'!F951)","v":""},{"$f":"IF('1. Order'!G951=\"\",\"\",'1. Order'!G951)","v":""},{"$f":"IF('1. Order'!H951=\"\",\"\",'1. Order'!H951)","v":""},{"$f":"IF('1. Order'!I951=\"\",\"\",'1. Order'!I951)","v":""},{"$f":"IF('1. Order'!J951=\"\",\"\",'1. Order'!J951)","v":""},{"$f":"IF('1. Order'!K951=\"\",\"\",'1. Order'!K951)","v":""},{"$f":"IF('1. Order'!L951=\"\",\"\",'1. Order'!L951)","v":""},{"$f":"IF('1. Order'!M951=\"\",\"\",'1. Order'!M951)","v":""},{"$f":"IF('1. Order'!N951=\"\",\"\",'1. Order'!N951)","v":""},{"$f":"IF('1. Order'!O951=\"\",\"\",'1. Order'!O951)","v":{"$error":"#N/A"}},{"$f":"IF('1. Order'!P951=\"\",\"\",'1. Order'!P951)","v":{"$error":"#N/A"}},{"$f":"IF('1. Order'!Q951=\"\",\"\",'1. Order'!Q951)","v":""},{"$f":"IF('1. Order'!R951=\"\",\"\",'1. Order'!R951)","v":""},{"$f":"IF('1. Order'!S951=\"\",\"\",'1. Order'!S951)","v":""},{"$f":"IF('1. Order'!V951=\"\",\"\",'1. Order'!V951)","v":""},{"$f":"IF('1. Order'!W951=\"\",\"\",'1. Order'!W951)","v":""},{"$f":"IF('1. Order'!X951=\"\",\"\",'1. Order'!X951)","v":"EUR"},{"$f":"IF('1. Order'!Y951=\"\",\"\",'1. Order'!Y951)","v":""},{"$f":"IF('1. Order'!Z951=\"\",\"\",'1. Order'!Z951)","v":""},{"$f":"IF('1. Order'!AA951=\"\",\"\",'1. Order'!AA951)","v":""},null,{"$f":"IF('1. Order'!AS951=\"\",\"\",'1. Order'!AS951)","v":""},{"$f":"IF('1. Order'!AT951=\"\",\"\",'1. Order'!AT951)","v":""},null,null,null,null,null,null,null,{"$f":"IF('1. Order'!AX951=\"\",\"\",'1. Order'!AX951)","v":""},{"$f":"IF('1. Order'!AY951=\"\",\"\",'1. Order'!AY951)","v":""},{"$f":"IF('1. Order'!AZ951=\"\",\"\",'1. Order'!AZ951)","v":""},{"$f":"IF('1. Order'!BA951=\"\",\"\",'1. Order'!BA951)","v":""},{"$f":"IF('1. Order'!BC951=\"\",\"\",'1. Order'!BC951)","v":""},{"$f":"IF('1. Order'!BD951=\"\",\"\",'1. Order'!BD951)","v":6},{"$f":"IF('1. Order'!BE951=\"\",\"\",'1. Order'!BE951)","v":"None"},{"$f":"IF('1. Order'!BF951=\"\",\"\",'1. Order'!BF951)","v":"Parcel"},{"$f":"IF('1. Order'!BG951=\"\",\"\",'1. Order'!BG951)","v":"ZWO"}]
[{"$f":"IF('1. Order'!F952=\"\",\"\",'1. Order'!F952)","v":""},{"$f":"IF('1. Order'!G952=\"\",\"\",'1. Order'!G952)","v":""},{"$f":"IF('1. Order'!H952=\"\",\"\",'1. Order'!H952)","v":""},{"$f":"IF('1. Order'!I952=\"\",\"\",'1. Order'!I952)","v":""},{"$f":"IF('1. Order'!J952=\"\",\"\",'1. Order'!J952)","v":""},{"$f":"IF('1. Order'!K952=\"\",\"\",'1. Order'!K952)","v":""},{"$f":"IF('1. Order'!L952=\"\",\"\",'1. Order'!L952)","v":""},{"$f":"IF('1. Order'!M952=\"\",\"\",'1. Order'!M952)","v":""},{"$f":"IF('1. Order'!N952=\"\",\"\",'1. Order'!N952)","v":""},{"$f":"IF('1. Order'!O952=\"\",\"\",'1. Order'!O952)","v":{"$error":"#N/A"}},{"$f":"IF('1. Order'!P952=\"\",\"\",'1. Order'!P952)","v":{"$error":"#N/A"}},{"$f":"IF('1. Order'!Q952=\"\",\"\",'1. Order'!Q952)","v":""},{"$f":"IF('1. Order'!R952=\"\",\"\",'1. Order'!R952)","v":""},{"$f":"IF('1. Order'!S952=\"\",\"\",'1. Order'!S952)","v":""},{"$f":"IF('1. Order'!V952=\"\",\"\",'1. Order'!V952)","v":""},{"$f":"IF('1. Order'!W952=\"\",\"\",'1. Order'!W952)","v":""},{"$f":"IF('1. Order'!X952=\"\",\"\",'1. Order'!X952)","v":"EUR"},{"$f":"IF('1. Order'!Y952=\"\",\"\",'1. Order'!Y952)","v":""},{"$f":"IF('1. Order'!Z952=\"\",\"\",'1. Order'!Z952)","v":""},{"$f":"IF('1. Order'!AA952=\"\",\"\",'1. Order'!AA952)","v":""},null,{"$f":"IF('1. Order'!AS952=\"\",\"\",'1. Order'!AS952)","v":""},{"$f":"IF('1. Order'!AT952=\"\",\"\",'1. Order'!AT952)","v":""},null,null,null,null,null,null,null,{"$f":"IF('1. Order'!AX952=\"\",\"\",'1. Order'!AX952)","v":""},{"$f":"IF('1. Order'!AY952=\"\",\"\",'1. Order'!AY952)","v":""},{"$f":"IF('1. Order'!AZ952=\"\",\"\",'1. Order'!AZ952)","v":""},{"$f":"IF('1. Order'!BA952=\"\",\"\",'1. Order'!BA952)","v":""},{"$f":"IF('1. Order'!BC952=\"\",\"\",'1. Order'!BC952)","v":""},{"$f":"IF('1. Order'!BD952=\"\",\"\",'1. Order'!BD952)","v":6},{"$f":"IF('1. Order'!BE952=\"\",\"\",'1. Order'!BE952)","v":"None"},{"$f":"IF('1. Order'!BF952=\"\",\"\",'1. Order'!BF952)","v":"Parcel"},{"$f":"IF('1. Order'!BG952=\"\",\"\",'1. Order'!BG952)","v":"ZWO"}]
[{"$f":"IF('1. Order'!F953=\"\",\"\",'1. Order'!F953)","v":""},{"$f":"IF('1. Order'!G953=\"\",\"\",'1. Order'!G953)","v":""},{"$f":"IF('1. Order'!H953=\"\",\"\",'1. Order'!H953)","v":""},{"$f":"IF('1. Order'!I953=\"\",\"\",'1. Order'!I953)","v":""},{"$f":"IF('1. Order'!J953=\"\",\"\",'1. Order'!J953)","v":""},{"$f":"IF('1. Order'!K953=\"\",\"\",'1. Order'!K953)","v":""},{"$f":"IF('1. Order'!L953=\"\",\"\",'1. Order'!L953)","v":""},{"$f":"IF('1. Order'!M953=\"\",\"\",'1. Order'!M953)","v":""},{"$f":"IF('1. Order'!N953=\"\",\"\",'1. Order'!N953)","v":""},{"$f":"IF('1. Order'!O953=\"\",\"\",'1. Order'!O953)","v":{"$error":"#N/A"}},{"$f":"IF('1. Order'!P953=\"\",\"\",'1. Order'!P953)","v":{"$error":"#N/A"}},{"$f":"IF('1. Order'!Q953=\"\",\"\",'1. Order'!Q953)","v":""},{"$f":"IF('1. Order'!R953=\"\",\"\",'1. Order'!R953)","v":""},{"$f":"IF('1. Order'!S953=\"\",\"\",'1. Order'!S953)","v":""},{"$f":"IF('1. Order'!V953=\"\",\"\",'1. Order'!V953)","v":""},{"$f":"IF('1. Order'!W953=\"\",\"\",'1. Order'!W953)","v":""},{"$f":"IF('1. Order'!X953=\"\",\"\",'1. Order'!X953)","v":"EUR"},{"$f":"IF('1. Order'!Y953=\"\",\"\",'1. Order'!Y953)","v":""},{"$f":"IF('1. Order'!Z953=\"\",\"\",'1. Order'!Z953)","v":""},{"$f":"IF('1. Order'!AA953=\"\",\"\",'1. Order'!AA953)","v":""},null,{"$f":"IF('1. Order'!AS953=\"\",\"\",'1. Order'!AS953)","v":""},{"$f":"IF('1. Order'!AT953=\"\",\"\",'1. Order'!AT953)","v":""},null,null,null,null,null,null,null,{"$f":"IF('1. Order'!AX953=\"\",\"\",'1. Order'!AX953)","v":""},{"$f":"IF('1. Order'!AY953=\"\",\"\",'1. Order'!AY953)","v":""},{"$f":"IF('1. Order'!AZ953=\"\",\"\",'1. Order'!AZ953)","v":""},{"$f":"IF('1. Order'!BA953=\"\",\"\",'1. Order'!BA953)","v":""},{"$f":"IF('1. Order'!BC953=\"\",\"\",'1. Order'!BC953)","v":""},{"$f":"IF('1. Order'!BD953=\"\",\"\",'1. Order'!BD953)","v":6},{"$f":"IF('1. Order'!BE953=\"\",\"\",'1. Order'!BE953)","v":"None"},{"$f":"IF('1. Order'!BF953=\"\",\"\",'1. Order'!BF953)","v":"Parcel"},{"$f":"IF('1. Order'!BG953=\"\",\"\",'1. Order'!BG953)","v":"ZWO"}]
[{"$f":"IF('1. Order'!F954=\"\",\"\",'1. Order'!F954)","v":""},{"$f":"IF('1. Order'!G954=\"\",\"\",'1. Order'!G954)","v":""},{"$f":"IF('1. Order'!H954=\"\",\"\",'1. Order'!H954)","v":""},{"$f":"IF('1. Order'!I954=\"\",\"\",'1. Order'!I954)","v":""},{"$f":"IF('1. Order'!J954=\"\",\"\",'1. Order'!J954)","v":""},{"$f":"IF('1. Order'!K954=\"\",\"\",'1. Order'!K954)","v":""},{"$f":"IF('1. Order'!L954=\"\",\"\",'1. Order'!L954)","v":""},{"$f":"IF('1. Order'!M954=\"\",\"\",'1. Order'!M954)","v":""},{"$f":"IF('1. Order'!N954=\"\",\"\",'1. Order'!N954)","v":""},{"$f":"IF('1. Order'!O954=\"\",\"\",'1. Order'!O954)","v":{"$error":"#N/A"}},{"$f":"IF('1. Order'!P954=\"\",\"\",'1. Order'!P954)","v":{"$error":"#N/A"}},{"$f":"IF('1. Order'!Q954=\"\",\"\",'1. Order'!Q954)","v":""},{"$f":"IF('1. Order'!R954=\"\",\"\",'1. Order'!R954)","v":""},{"$f":"IF('1. Order'!S954=\"\",\"\",'1. Order'!S954)","v":""},{"$f":"IF('1. Order'!V954=\"\",\"\",'1. Order'!V954)","v":""},{"$f":"IF('1. Order'!W954=\"\",\"\",'1. Order'!W954)","v":""},{"$f":"IF('1. Order'!X954=\"\",\"\",'1. Order'!X954)","v":"EUR"},{"$f":"IF('1. Order'!Y954=\"\",\"\",'1. Order'!Y954)","v":""},{"$f":"IF('1. Order'!Z954=\"\",\"\",'1. Order'!Z954)","v":""},{"$f":"IF('1. Order'!AA954=\"\",\"\",'1. Order'!AA954)","v":""},null,{"$f":"IF('1. Order'!AS954=\"\",\"\",'1. Order'!AS954)","v":""},{"$f":"IF('1. Order'!AT954=\"\",\"\",'1. Order'!AT954)","v":""},null,null,null,null,null,null,null,{"$f":"IF('1. Order'!AX954=\"\",\"\",'1. Order'!AX954)","v":""},{"$f":"IF('1. Order'!AY954=\"\",\"\",'1. Order'!AY954)","v":""},{"$f":"IF('1. Order'!AZ954=\"\",\"\",'1. Order'!AZ954)","v":""},{"$f":"IF('1. Order'!BA954=\"\",\"\",'1. Order'!BA954)","v":""},{"$f":"IF('1. Order'!BC954=\"\",\"\",'1. Order'!BC954)","v":""},{"$f":"IF('1. Order'!BD954=\"\",\"\",'1. Order'!BD954)","v":6},{"$f":"IF('1. Order'!BE954=\"\",\"\",'1. Order'!BE954)","v":"None"},{"$f":"IF('1. Order'!BF954=\"\",\"\",'1. Order'!BF954)","v":"Parcel"},{"$f":"IF('1. Order'!BG954=\"\",\"\",'1. Order'!BG954)","v":"ZWO"}]
[{"$f":"IF('1. Order'!F955=\"\",\"\",'1. Order'!F955)","v":""},{"$f":"IF('1. Order'!G955=\"\",\"\",'1. Order'!G955)","v":""},{"$f":"IF('1. Order'!H955=\"\",\"\",'1. Order'!H955)","v":""},{"$f":"IF('1. Order'!I955=\"\",\"\",'1. Order'!I955)","v":""},{"$f":"IF('1. Order'!J955=\"\",\"\",'1. Order'!J955)","v":""},{"$f":"IF('1. Order'!K955=\"\",\"\",'1. Order'!K955)","v":""},{"$f":"IF('1. Order'!L955=\"\",\"\",'1. Order'!L955)","v":""},{"$f":"IF('1. Order'!M955=\"\",\"\",'1. Order'!M955)","v":""},{"$f":"IF('1. Order'!N955=\"\",\"\",'1. Order'!N955)","v":""},{"$f":"IF('1. Order'!O955=\"\",\"\",'1. Order'!O955)","v":{"$error":"#N/A"}},{"$f":"IF('1. Order'!P955=\"\",\"\",'1. Order'!P955)","v":{"$error":"#N/A"}},{"$f":"IF('1. Order'!Q955=\"\",\"\",'1. Order'!Q955)","v":""},{"$f":"IF('1. Order'!R955=\"\",\"\",'1. Order'!R955)","v":""},{"$f":"IF('1. Order'!S955=\"\",\"\",'1. Order'!S955)","v":""},{"$f":"IF('1. Order'!V955=\"\",\"\",'1. Order'!V955)","v":""},{"$f":"IF('1. Order'!W955=\"\",\"\",'1. Order'!W955)","v":""},{"$f":"IF('1. Order'!X955=\"\",\"\",'1. Order'!X955)","v":"EUR"},{"$f":"IF('1. Order'!Y955=\"\",\"\",'1. Order'!Y955)","v":""},{"$f":"IF('1. Order'!Z955=\"\",\"\",'1. Order'!Z955)","v":""},{"$f":"IF('1. Order'!AA955=\"\",\"\",'1. Order'!AA955)","v":""},null,{"$f":"IF('1. Order'!AS955=\"\",\"\",'1. Order'!AS955)","v":""},{"$f":"IF('1. Order'!AT955=\"\",\"\",'1. Order'!AT955)","v":""},null,null,null,null,null,null,null,{"$f":"IF('1. Order'!AX955=\"\",\"\",'1. Order'!AX955)","v":""},{"$f":"IF('1. Order'!AY955=\"\",\"\",'1. Order'!AY955)","v":""},{"$f":"IF('1. Order'!AZ955=\"\",\"\",'1. Order'!AZ955)","v":""},{"$f":"IF('1. Order'!BA955=\"\",\"\",'1. Order'!BA955)","v":""},{"$f":"IF('1. Order'!BC955=\"\",\"\",'1. Order'!BC955)","v":""},{"$f":"IF('1. Order'!BD955=\"\",\"\",'1. Order'!BD955)","v":6},{"$f":"IF('1. Order'!BE955=\"\",\"\",'1. Order'!BE955)","v":"None"},{"$f":"IF('1. Order'!BF955=\"\",\"\",'1. Order'!BF955)","v":"Parcel"},{"$f":"IF('1. Order'!BG955=\"\",\"\",'1. Order'!BG955)","v":"ZWO"}]
[{"$f":"IF('1. Order'!F956=\"\",\"\",'1. Order'!F956)","v":""},{"$f":"IF('1. Order'!G956=\"\",\"\",'1. Order'!G956)","v":""},{"$f":"IF('1. Order'!H956=\"\",\"\",'1. Order'!H956)","v":""},{"$f":"IF('1. Order'!I956=\"\",\"\",'1. Order'!I956)","v":""},{"$f":"IF('1. Order'!J956=\"\",\"\",'1. Order'!J956)","v":""},{"$f":"IF('1. Order'!K956=\"\",\"\",'1. Order'!K956)","v":""},{"$f":"IF('1. Order'!L956=\"\",\"\",'1. Order'!L956)","v":""},{"$f":"IF('1. Order'!M956=\"\",\"\",'1. Order'!M956)","v":""},{"$f":"IF('1. Order'!N956=\"\",\"\",'1. Order'!N956)","v":""},{"$f":"IF('1. Order'!O956=\"\",\"\",'1. Order'!O956)","v":{"$error":"#N/A"}},{"$f":"IF('1. Order'!P956=\"\",\"\",'1. Order'!P956)","v":{"$error":"#N/A"}},{"$f":"IF('1. Order'!Q956=\"\",\"\",'1. Order'!Q956)","v":""},{"$f":"IF('1. Order'!R956=\"\",\"\",'1. Order'!R956)","v":""},{"$f":"IF('1. Order'!S956=\"\",\"\",'1. Order'!S956)","v":""},{"$f":"IF('1. Order'!V956=\"\",\"\",'1. Order'!V956)","v":""},{"$f":"IF('1. Order'!W956=\"\",\"\",'1. Order'!W956)","v":""},{"$f":"IF('1. Order'!X956=\"\",\"\",'1. Order'!X956)","v":"EUR"},{"$f":"IF('1. Order'!Y956=\"\",\"\",'1. Order'!Y956)","v":""},{"$f":"IF('1. Order'!Z956=\"\",\"\",'1. Order'!Z956)","v":""},{"$f":"IF('1. Order'!AA956=\"\",\"\",'1. Order'!AA956)","v":""},null,{"$f":"IF('1. Order'!AS956=\"\",\"\",'1. Order'!AS956)","v":""},{"$f":"IF('1. Order'!AT956=\"\",\"\",'1. Order'!AT956)","v":""},null,null,null,null,null,null,null,{"$f":"IF('1. Order'!AX956=\"\",\"\",'1. Order'!AX956)","v":""},{"$f":"IF('1. Order'!AY956=\"\",\"\",'1. Order'!AY956)","v":""},{"$f":"IF('1. Order'!AZ956=\"\",\"\",'1. Order'!AZ956)","v":""},{"$f":"IF('1. Order'!BA956=\"\",\"\",'1. Order'!BA956)","v":""},{"$f":"IF('1. Order'!BC956=\"\",\"\",'1. Order'!BC956)","v":""},{"$f":"IF('1. Order'!BD956=\"\",\"\",'1. Order'!BD956)","v":6},{"$f":"IF('1. Order'!BE956=\"\",\"\",'1. Order'!BE956)","v":"None"},{"$f":"IF('1. Order'!BF956=\"\",\"\",'1. Order'!BF956)","v":"Parcel"},{"$f":"IF('1. Order'!BG956=\"\",\"\",'1. Order'!BG956)","v":"ZWO"}]
[{"$f":"IF('1. Order'!F957=\"\",\"\",'1. Order'!F957)","v":""},{"$f":"IF('1. Order'!G957=\"\",\"\",'1. Order'!G957)","v":""},{"$f":"IF('1. Order'!H957=\"\",\"\",'1. Order'!H957)","v":""},{"$f":"IF('1. Order'!I957=\"\",\"\",'1. Order'!I957)","v":""},{"$f":"IF('1. Order'!J957=\"\",\"\",'1. Order'!J957)","v":""},{"$f":"IF('1. Order'!K957=\"\",\"\",'1. Order'!K957)","v":""},{"$f":"IF('1. Order'!L957=\"\",\"\",'1. Order'!L957)","v":""},{"$f":"IF('1. Order'!M957=\"\",\"\",'1. Order'!M957)","v":""},{"$f":"IF('1. Order'!N957=\"\",\"\",'1. Order'!N957)","v":""},{"$f":"IF('1. Order'!O957=\"\",\"\",'1. Order'!O957)","v":{"$error":"#N/A"}},{"$f":"IF('1. Order'!P957=\"\",\"\",'1. Order'!P957)","v":{"$error":"#N/A"}},{"$f":"IF('1. Order'!Q957=\"\",\"\",'1. Order'!Q957)","v":""},{"$f":"IF('1. Order'!R957=\"\",\"\",'1. Order'!R957)","v":""},{"$f":"IF('1. Order'!S957=\"\",\"\",'1. Order'!S957)","v":""},{"$f":"IF('1. Order'!V957=\"\",\"\",'1. Order'!V957)","v":""},{"$f":"IF('1. Order'!W957=\"\",\"\",'1. Order'!W957)","v":""},{"$f":"IF('1. Order'!X957=\"\",\"\",'1. Order'!X957)","v":"EUR"},{"$f":"IF('1. Order'!Y957=\"\",\"\",'1. Order'!Y957)","v":""},{"$f":"IF('1. Order'!Z957=\"\",\"\",'1. Order'!Z957)","v":""},{"$f":"IF('1. Order'!AA957=\"\",\"\",'1. Order'!AA957)","v":""},null,{"$f":"IF('1. Order'!AS957=\"\",\"\",'1. Order'!AS957)","v":""},{"$f":"IF('1. Order'!AT957=\"\",\"\",'1. Order'!AT957)","v":""},null,null,null,null,null,null,null,{"$f":"IF('1. Order'!AX957=\"\",\"\",'1. Order'!AX957)","v":""},{"$f":"IF('1. Order'!AY957=\"\",\"\",'1. Order'!AY957)","v":""},{"$f":"IF('1. Order'!AZ957=\"\",\"\",'1. Order'!AZ957)","v":""},{"$f":"IF('1. Order'!BA957=\"\",\"\",'1. Order'!BA957)","v":""},{"$f":"IF('1. Order'!BC957=\"\",\"\",'1. Order'!BC957)","v":""},{"$f":"IF('1. Order'!BD957=\"\",\"\",'1. Order'!BD957)","v":6},{"$f":"IF('1. Order'!BE957=\"\",\"\",'1. Order'!BE957)","v":"None"},{"$f":"IF('1. Order'!BF957=\"\",\"\",'1. Order'!BF957)","v":"Parcel"},{"$f":"IF('1. Order'!BG957=\"\",\"\",'1. Order'!BG957)","v":"ZWO"}]
[{"$f":"IF('1. Order'!F958=\"\",\"\",'1. Order'!F958)","v":""},{"$f":"IF('1. Order'!G958=\"\",\"\",'1. Order'!G958)","v":""},{"$f":"IF('1. Order'!H958=\"\",\"\",'1. Order'!H958)","v":""},{"$f":"IF('1. Order'!I958=\"\",\"\",'1. Order'!I958)","v":""},{"$f":"IF('1. Order'!J958=\"\",\"\",'1. Order'!J958)","v":""},{"$f":"IF('1. Order'!K958=\"\",\"\",'1. Order'!K958)","v":""},{"$f":"IF('1. Order'!L958=\"\",\"\",'1. Order'!L958)","v":""},{"$f":"IF('1. Order'!M958=\"\",\"\",'1. Order'!M958)","v":""},{"$f":"IF('1. Order'!N958=\"\",\"\",'1. Order'!N958)","v":""},{"$f":"IF('1. Order'!O958=\"\",\"\",'1. Order'!O958)","v":{"$error":"#N/A"}},{"$f":"IF('1. Order'!P958=\"\",\"\",'1. Order'!P958)","v":{"$error":"#N/A"}},{"$f":"IF('1. Order'!Q958=\"\",\"\",'1. Order'!Q958)","v":""},{"$f":"IF('1. Order'!R958=\"\",\"\",'1. Order'!R958)","v":""},{"$f":"IF('1. Order'!S958=\"\",\"\",'1. Order'!S958)","v":""},{"$f":"IF('1. Order'!V958=\"\",\"\",'1. Order'!V958)","v":""},{"$f":"IF('1. Order'!W958=\"\",\"\",'1. Order'!W958)","v":""},{"$f":"IF('1. Order'!X958=\"\",\"\",'1. Order'!X958)","v":"EUR"},{"$f":"IF('1. Order'!Y958=\"\",\"\",'1. Order'!Y958)","v":""},{"$f":"IF('1. Order'!Z958=\"\",\"\",'1. Order'!Z958)","v":""},{"$f":"IF('1. Order'!AA958=\"\",\"\",'1. Order'!AA958)","v":""},null,{"$f":"IF('1. Order'!AS958=\"\",\"\",'1. Order'!AS958)","v":""},{"$f":"IF('1. Order'!AT958=\"\",\"\",'1. Order'!AT958)","v":""},null,null,null,null,null,null,null,{"$f":"IF('1. Order'!AX958=\"\",\"\",'1. Order'!AX958)","v":""},{"$f":"IF('1. Order'!AY958=\"\",\"\",'1. Order'!AY958)","v":""},{"$f":"IF('1. Order'!AZ958=\"\",\"\",'1. Order'!AZ958)","v":""},{"$f":"IF('1. Order'!BA958=\"\",\"\",'1. Order'!BA958)","v":""},{"$f":"IF('1. Order'!BC958=\"\",\"\",'1. Order'!BC958)","v":""},{"$f":"IF('1. Order'!BD958=\"\",\"\",'1. Order'!BD958)","v":6},{"$f":"IF('1. Order'!BE958=\"\",\"\",'1. Order'!BE958)","v":"None"},{"$f":"IF('1. Order'!BF958=\"\",\"\",'1. Order'!BF958)","v":"Parcel"},{"$f":"IF('1. Order'!BG958=\"\",\"\",'1. Order'!BG958)","v":"ZWO"}]
[{"$f":"IF('1. Order'!F959=\"\",\"\",'1. Order'!F959)","v":""},{"$f":"IF('1. Order'!G959=\"\",\"\",'1. Order'!G959)","v":""},{"$f":"IF('1. Order'!H959=\"\",\"\",'1. Order'!H959)","v":""},{"$f":"IF('1. Order'!I959=\"\",\"\",'1. Order'!I959)","v":""},{"$f":"IF('1. Order'!J959=\"\",\"\",'1. Order'!J959)","v":""},{"$f":"IF('1. Order'!K959=\"\",\"\",'1. Order'!K959)","v":""},{"$f":"IF('1. Order'!L959=\"\",\"\",'1. Order'!L959)","v":""},{"$f":"IF('1. Order'!M959=\"\",\"\",'1. Order'!M959)","v":""},{"$f":"IF('1. Order'!N959=\"\",\"\",'1. Order'!N959)","v":""},{"$f":"IF('1. Order'!O959=\"\",\"\",'1. Order'!O959)","v":{"$error":"#N/A"}},{"$f":"IF('1. Order'!P959=\"\",\"\",'1. Order'!P959)","v":{"$error":"#N/A"}},{"$f":"IF('1. Order'!Q959=\"\",\"\",'1. Order'!Q959)","v":""},{"$f":"IF('1. Order'!R959=\"\",\"\",'1. Order'!R959)","v":""},{"$f":"IF('1. Order'!S959=\"\",\"\",'1. Order'!S959)","v":""},{"$f":"IF('1. Order'!V959=\"\",\"\",'1. Order'!V959)","v":""},{"$f":"IF('1. Order'!W959=\"\",\"\",'1. Order'!W959)","v":""},{"$f":"IF('1. Order'!X959=\"\",\"\",'1. Order'!X959)","v":"EUR"},{"$f":"IF('1. Order'!Y959=\"\",\"\",'1. Order'!Y959)","v":""},{"$f":"IF('1. Order'!Z959=\"\",\"\",'1. Order'!Z959)","v":""},{"$f":"IF('1. Order'!AA959=\"\",\"\",'1. Order'!AA959)","v":""},null,{"$f":"IF('1. Order'!AS959=\"\",\"\",'1. Order'!AS959)","v":""},{"$f":"IF('1. Order'!AT959=\"\",\"\",'1. Order'!AT959)","v":""},null,null,null,null,null,null,null,{"$f":"IF('1. Order'!AX959=\"\",\"\",'1. Order'!AX959)","v":""},{"$f":"IF('1. Order'!AY959=\"\",\"\",'1. Order'!AY959)","v":""},{"$f":"IF('1. Order'!AZ959=\"\",\"\",'1. Order'!AZ959)","v":""},{"$f":"IF('1. Order'!BA959=\"\",\"\",'1. Order'!BA959)","v":""},{"$f":"IF('1. Order'!BC959=\"\",\"\",'1. Order'!BC959)","v":""},{"$f":"IF('1. Order'!BD959=\"\",\"\",'1. Order'!BD959)","v":6},{"$f":"IF('1. Order'!BE959=\"\",\"\",'1. Order'!BE959)","v":"None"},{"$f":"IF('1. Order'!BF959=\"\",\"\",'1. Order'!BF959)","v":"Parcel"},{"$f":"IF('1. Order'!BG959=\"\",\"\",'1. Order'!BG959)","v":"ZWO"}]
[{"$f":"IF('1. Order'!F960=\"\",\"\",'1. Order'!F960)","v":""},{"$f":"IF('1. Order'!G960=\"\",\"\",'1. Order'!G960)","v":""},{"$f":"IF('1. Order'!H960=\"\",\"\",'1. Order'!H960)","v":""},{"$f":"IF('1. Order'!I960=\"\",\"\",'1. Order'!I960)","v":""},{"$f":"IF('1. Order'!J960=\"\",\"\",'1. Order'!J960)","v":""},{"$f":"IF('1. Order'!K960=\"\",\"\",'1. Order'!K960)","v":""},{"$f":"IF('1. Order'!L960=\"\",\"\",'1. Order'!L960)","v":""},{"$f":"IF('1. Order'!M960=\"\",\"\",'1. Order'!M960)","v":""},{"$f":"IF('1. Order'!N960=\"\",\"\",'1. Order'!N960)","v":""},{"$f":"IF('1. Order'!O960=\"\",\"\",'1. Order'!O960)","v":{"$error":"#N/A"}},{"$f":"IF('1. Order'!P960=\"\",\"\",'1. Order'!P960)","v":{"$error":"#N/A"}},{"$f":"IF('1. Order'!Q960=\"\",\"\",'1. Order'!Q960)","v":""},{"$f":"IF('1. Order'!R960=\"\",\"\",'1. Order'!R960)","v":""},{"$f":"IF('1. Order'!S960=\"\",\"\",'1. Order'!S960)","v":""},{"$f":"IF('1. Order'!V960=\"\",\"\",'1. Order'!V960)","v":""},{"$f":"IF('1. Order'!W960=\"\",\"\",'1. Order'!W960)","v":""},{"$f":"IF('1. Order'!X960=\"\",\"\",'1. Order'!X960)","v":"EUR"},{"$f":"IF('1. Order'!Y960=\"\",\"\",'1. Order'!Y960)","v":""},{"$f":"IF('1. Order'!Z960=\"\",\"\",'1. Order'!Z960)","v":""},{"$f":"IF('1. Order'!AA960=\"\",\"\",'1. Order'!AA960)","v":""},null,{"$f":"IF('1. Order'!AS960=\"\",\"\",'1. Order'!AS960)","v":""},{"$f":"IF('1. Order'!AT960=\"\",\"\",'1. Order'!AT960)","v":""},null,null,null,null,null,null,null,{"$f":"IF('1. Order'!AX960=\"\",\"\",'1. Order'!AX960)","v":""},{"$f":"IF('1. Order'!AY960=\"\",\"\",'1. Order'!AY960)","v":""},{"$f":"IF('1. Order'!AZ960=\"\",\"\",'1. Order'!AZ960)","v":""},{"$f":"IF('1. Order'!BA960=\"\",\"\",'1. Order'!BA960)","v":""},{"$f":"IF('1. Order'!BC960=\"\",\"\",'1. Order'!BC960)","v":""},{"$f":"IF('1. Order'!BD960=\"\",\"\",'1. Order'!BD960)","v":6},{"$f":"IF('1. Order'!BE960=\"\",\"\",'1. Order'!BE960)","v":"None"},{"$f":"IF('1. Order'!BF960=\"\",\"\",'1. Order'!BF960)","v":"Parcel"},{"$f":"IF('1. Order'!BG960=\"\",\"\",'1. Order'!BG960)","v":"ZWO"}]
[{"$f":"IF('1. Order'!F961=\"\",\"\",'1. Order'!F961)","v":""},{"$f":"IF('1. Order'!G961=\"\",\"\",'1. Order'!G961)","v":""},{"$f":"IF('1. Order'!H961=\"\",\"\",'1. Order'!H961)","v":""},{"$f":"IF('1. Order'!I961=\"\",\"\",'1. Order'!I961)","v":""},{"$f":"IF('1. Order'!J961=\"\",\"\",'1. Order'!J961)","v":""},{"$f":"IF('1. Order'!K961=\"\",\"\",'1. Order'!K961)","v":""},{"$f":"IF('1. Order'!L961=\"\",\"\",'1. Order'!L961)","v":""},{"$f":"IF('1. Order'!M961=\"\",\"\",'1. Order'!M961)","v":""},{"$f":"IF('1. Order'!N961=\"\",\"\",'1. Order'!N961)","v":""},{"$f":"IF('1. Order'!O961=\"\",\"\",'1. Order'!O961)","v":{"$error":"#N/A"}},{"$f":"IF('1. Order'!P961=\"\",\"\",'1. Order'!P961)","v":{"$error":"#N/A"}},{"$f":"IF('1. Order'!Q961=\"\",\"\",'1. Order'!Q961)","v":""},{"$f":"IF('1. Order'!R961=\"\",\"\",'1. Order'!R961)","v":""},{"$f":"IF('1. Order'!S961=\"\",\"\",'1. Order'!S961)","v":""},{"$f":"IF('1. Order'!V961=\"\",\"\",'1. Order'!V961)","v":""},{"$f":"IF('1. Order'!W961=\"\",\"\",'1. Order'!W961)","v":""},{"$f":"IF('1. Order'!X961=\"\",\"\",'1. Order'!X961)","v":"EUR"},{"$f":"IF('1. Order'!Y961=\"\",\"\",'1. Order'!Y961)","v":""},{"$f":"IF('1. Order'!Z961=\"\",\"\",'1. Order'!Z961)","v":""},{"$f":"IF('1. Order'!AA961=\"\",\"\",'1. Order'!AA961)","v":""},null,{"$f":"IF('1. Order'!AS961=\"\",\"\",'1. Order'!AS961)","v":""},{"$f":"IF('1. Order'!AT961=\"\",\"\",'1. Order'!AT961)","v":""},null,null,null,null,null,null,null,{"$f":"IF('1. Order'!AX961=\"\",\"\",'1. Order'!AX961)","v":""},{"$f":"IF('1. Order'!AY961=\"\",\"\",'1. Order'!AY961)","v":""},{"$f":"IF('1. Order'!AZ961=\"\",\"\",'1. Order'!AZ961)","v":""},{"$f":"IF('1. Order'!BA961=\"\",\"\",'1. Order'!BA961)","v":""},{"$f":"IF('1. Order'!BC961=\"\",\"\",'1. Order'!BC961)","v":""},{"$f":"IF('1. Order'!BD961=\"\",\"\",'1. Order'!BD961)","v":6},{"$f":"IF('1. Order'!BE961=\"\",\"\",'1. Order'!BE961)","v":"None"},{"$f":"IF('1. Order'!BF961=\"\",\"\",'1. Order'!BF961)","v":"Parcel"},{"$f":"IF('1. Order'!BG961=\"\",\"\",'1. Order'!BG961)","v":"ZWO"}]
[{"$f":"IF('1. Order'!F962=\"\",\"\",'1. Order'!F962)","v":""},{"$f":"IF('1. Order'!G962=\"\",\"\",'1. Order'!G962)","v":""},{"$f":"IF('1. Order'!H962=\"\",\"\",'1. Order'!H962)","v":""},{"$f":"IF('1. Order'!I962=\"\",\"\",'1. Order'!I962)","v":""},{"$f":"IF('1. Order'!J962=\"\",\"\",'1. Order'!J962)","v":""},{"$f":"IF('1. Order'!K962=\"\",\"\",'1. Order'!K962)","v":""},{"$f":"IF('1. Order'!L962=\"\",\"\",'1. Order'!L962)","v":""},{"$f":"IF('1. Order'!M962=\"\",\"\",'1. Order'!M962)","v":""},{"$f":"IF('1. Order'!N962=\"\",\"\",'1. Order'!N962)","v":""},{"$f":"IF('1. Order'!O962=\"\",\"\",'1. Order'!O962)","v":{"$error":"#N/A"}},{"$f":"IF('1. Order'!P962=\"\",\"\",'1. Order'!P962)","v":{"$error":"#N/A"}},{"$f":"IF('1. Order'!Q962=\"\",\"\",'1. Order'!Q962)","v":""},{"$f":"IF('1. Order'!R962=\"\",\"\",'1. Order'!R962)","v":""},{"$f":"IF('1. Order'!S962=\"\",\"\",'1. Order'!S962)","v":""},{"$f":"IF('1. Order'!V962=\"\",\"\",'1. Order'!V962)","v":""},{"$f":"IF('1. Order'!W962=\"\",\"\",'1. Order'!W962)","v":""},{"$f":"IF('1. Order'!X962=\"\",\"\",'1. Order'!X962)","v":"EUR"},{"$f":"IF('1. Order'!Y962=\"\",\"\",'1. Order'!Y962)","v":""},{"$f":"IF('1. Order'!Z962=\"\",\"\",'1. Order'!Z962)","v":""},{"$f":"IF('1. Order'!AA962=\"\",\"\",'1. Order'!AA962)","v":""},null,{"$f":"IF('1. Order'!AS962=\"\",\"\",'1. Order'!AS962)","v":""},{"$f":"IF('1. Order'!AT962=\"\",\"\",'1. Order'!AT962)","v":""},null,null,null,null,null,null,null,{"$f":"IF('1. Order'!AX962=\"\",\"\",'1. Order'!AX962)","v":""},{"$f":"IF('1. Order'!AY962=\"\",\"\",'1. Order'!AY962)","v":""},{"$f":"IF('1. Order'!AZ962=\"\",\"\",'1. Order'!AZ962)","v":""},{"$f":"IF('1. Order'!BA962=\"\",\"\",'1. Order'!BA962)","v":""},{"$f":"IF('1. Order'!BC962=\"\",\"\",'1. Order'!BC962)","v":""},{"$f":"IF('1. Order'!BD962=\"\",\"\",'1. Order'!BD962)","v":6},{"$f":"IF('1. Order'!BE962=\"\",\"\",'1. Order'!BE962)","v":"None"},{"$f":"IF('1. Order'!BF962=\"\",\"\",'1. Order'!BF962)","v":"Parcel"},{"$f":"IF('1. Order'!BG962=\"\",\"\",'1. Order'!BG962)","v":"ZWO"}]
[{"$f":"IF('1. Order'!F963=\"\",\"\",'1. Order'!F963)","v":""},{"$f":"IF('1. Order'!G963=\"\",\"\",'1. Order'!G963)","v":""},{"$f":"IF('1. Order'!H963=\"\",\"\",'1. Order'!H963)","v":""},{"$f":"IF('1. Order'!I963=\"\",\"\",'1. Order'!I963)","v":""},{"$f":"IF('1. Order'!J963=\"\",\"\",'1. Order'!J963)","v":""},{"$f":"IF('1. Order'!K963=\"\",\"\",'1. Order'!K963)","v":""},{"$f":"IF('1. Order'!L963=\"\",\"\",'1. Order'!L963)","v":""},{"$f":"IF('1. Order'!M963=\"\",\"\",'1. Order'!M963)","v":""},{"$f":"IF('1. Order'!N963=\"\",\"\",'1. Order'!N963)","v":""},{"$f":"IF('1. Order'!O963=\"\",\"\",'1. Order'!O963)","v":{"$error":"#N/A"}},{"$f":"IF('1. Order'!P963=\"\",\"\",'1. Order'!P963)","v":{"$error":"#N/A"}},{"$f":"IF('1. Order'!Q963=\"\",\"\",'1. Order'!Q963)","v":""},{"$f":"IF('1. Order'!R963=\"\",\"\",'1. Order'!R963)","v":""},{"$f":"IF('1. Order'!S963=\"\",\"\",'1. Order'!S963)","v":""},{"$f":"IF('1. Order'!V963=\"\",\"\",'1. Order'!V963)","v":""},{"$f":"IF('1. Order'!W963=\"\",\"\",'1. Order'!W963)","v":""},{"$f":"IF('1. Order'!X963=\"\",\"\",'1. Order'!X963)","v":"EUR"},{"$f":"IF('1. Order'!Y963=\"\",\"\",'1. Order'!Y963)","v":""},{"$f":"IF('1. Order'!Z963=\"\",\"\",'1. Order'!Z963)","v":""},{"$f":"IF('1. Order'!AA963=\"\",\"\",'1. Order'!AA963)","v":""},null,{"$f":"IF('1. Order'!AS963=\"\",\"\",'1. Order'!AS963)","v":""},{"$f":"IF('1. Order'!AT963=\"\",\"\",'1. Order'!AT963)","v":""},null,null,null,null,null,null,null,{"$f":"IF('1. Order'!AX963=\"\",\"\",'1. Order'!AX963)","v":""},{"$f":"IF('1. Order'!AY963=\"\",\"\",'1. Order'!AY963)","v":""},{"$f":"IF('1. Order'!AZ963=\"\",\"\",'1. Order'!AZ963)","v":""},{"$f":"IF('1. Order'!BA963=\"\",\"\",'1. Order'!BA963)","v":""},{"$f":"IF('1. Order'!BC963=\"\",\"\",'1. Order'!BC963)","v":""},{"$f":"IF('1. Order'!BD963=\"\",\"\",'1. Order'!BD963)","v":6},{"$f":"IF('1. Order'!BE963=\"\",\"\",'1. Order'!BE963)","v":"None"},{"$f":"IF('1. Order'!BF963=\"\",\"\",'1. Order'!BF963)","v":"Parcel"},{"$f":"IF('1. Order'!BG963=\"\",\"\",'1. Order'!BG963)","v":"ZWO"}]
[{"$f":"IF('1. Order'!F964=\"\",\"\",'1. Order'!F964)","v":""},{"$f":"IF('1. Order'!G964=\"\",\"\",'1. Order'!G964)","v":""},{"$f":"IF('1. Order'!H964=\"\",\"\",'1. Order'!H964)","v":""},{"$f":"IF('1. Order'!I964=\"\",\"\",'1. Order'!I964)","v":""},{"$f":"IF('1. Order'!J964=\"\",\"\",'1. Order'!J964)","v":""},{"$f":"IF('1. Order'!K964=\"\",\"\",'1. Order'!K964)","v":""},{"$f":"IF('1. Order'!L964=\"\",\"\",'1. Order'!L964)","v":""},{"$f":"IF('1. Order'!M964=\"\",\"\",'1. Order'!M964)","v":""},{"$f":"IF('1. Order'!N964=\"\",\"\",'1. Order'!N964)","v":""},{"$f":"IF('1. Order'!O964=\"\",\"\",'1. Order'!O964)","v":{"$error":"#N/A"}},{"$f":"IF('1. Order'!P964=\"\",\"\",'1. Order'!P964)","v":{"$error":"#N/A"}},{"$f":"IF('1. Order'!Q964=\"\",\"\",'1. Order'!Q964)","v":""},{"$f":"IF('1. Order'!R964=\"\",\"\",'1. Order'!R964)","v":""},{"$f":"IF('1. Order'!S964=\"\",\"\",'1. Order'!S964)","v":""},{"$f":"IF('1. Order'!V964=\"\",\"\",'1. Order'!V964)","v":""},{"$f":"IF('1. Order'!W964=\"\",\"\",'1. Order'!W964)","v":""},{"$f":"IF('1. Order'!X964=\"\",\"\",'1. Order'!X964)","v":"EUR"},{"$f":"IF('1. Order'!Y964=\"\",\"\",'1. Order'!Y964)","v":""},{"$f":"IF('1. Order'!Z964=\"\",\"\",'1. Order'!Z964)","v":""},{"$f":"IF('1. Order'!AA964=\"\",\"\",'1. Order'!AA964)","v":""},null,{"$f":"IF('1. Order'!AS964=\"\",\"\",'1. Order'!AS964)","v":""},{"$f":"IF('1. Order'!AT964=\"\",\"\",'1. Order'!AT964)","v":""},null,null,null,null,null,null,null,{"$f":"IF('1. Order'!AX964=\"\",\"\",'1. Order'!AX964)","v":""},{"$f":"IF('1. Order'!AY964=\"\",\"\",'1. Order'!AY964)","v":""},{"$f":"IF('1. Order'!AZ964=\"\",\"\",'1. Order'!AZ964)","v":""},{"$f":"IF('1. Order'!BA964=\"\",\"\",'1. Order'!BA964)","v":""},{"$f":"IF('1. Order'!BC964=\"\",\"\",'1. Order'!BC964)","v":""},{"$f":"IF('1. Order'!BD964=\"\",\"\",'1. Order'!BD964)","v":6},{"$f":"IF('1. Order'!BE964=\"\",\"\",'1. Order'!BE964)","v":"None"},{"$f":"IF('1. Order'!BF964=\"\",\"\",'1. Order'!BF964)","v":"Parcel"},{"$f":"IF('1. Order'!BG964=\"\",\"\",'1. Order'!BG964)","v":"ZWO"}]
[{"$f":"IF('1. Order'!F965=\"\",\"\",'1. Order'!F965)","v":""},{"$f":"IF('1. Order'!G965=\"\",\"\",'1. Order'!G965)","v":""},{"$f":"IF('1. Order'!H965=\"\",\"\",'1. Order'!H965)","v":""},{"$f":"IF('1. Order'!I965=\"\",\"\",'1. Order'!I965)","v":""},{"$f":"IF('1. Order'!J965=\"\",\"\",'1. Order'!J965)","v":""},{"$f":"IF('1. Order'!K965=\"\",\"\",'1. Order'!K965)","v":""},{"$f":"IF('1. Order'!L965=\"\",\"\",'1. Order'!L965)","v":""},{"$f":"IF('1. Order'!M965=\"\",\"\",'1. Order'!M965)","v":""},{"$f":"IF('1. Order'!N965=\"\",\"\",'1. Order'!N965)","v":""},{"$f":"IF('1. Order'!O965=\"\",\"\",'1. Order'!O965)","v":{"$error":"#N/A"}},{"$f":"IF('1. Order'!P965=\"\",\"\",'1. Order'!P965)","v":{"$error":"#N/A"}},{"$f":"IF('1. Order'!Q965=\"\",\"\",'1. Order'!Q965)","v":""},{"$f":"IF('1. Order'!R965=\"\",\"\",'1. Order'!R965)","v":""},{"$f":"IF('1. Order'!S965=\"\",\"\",'1. Order'!S965)","v":""},{"$f":"IF('1. Order'!V965=\"\",\"\",'1. Order'!V965)","v":""},{"$f":"IF('1. Order'!W965=\"\",\"\",'1. Order'!W965)","v":""},{"$f":"IF('1. Order'!X965=\"\",\"\",'1. Order'!X965)","v":"EUR"},{"$f":"IF('1. Order'!Y965=\"\",\"\",'1. Order'!Y965)","v":""},{"$f":"IF('1. Order'!Z965=\"\",\"\",'1. Order'!Z965)","v":""},{"$f":"IF('1. Order'!AA965=\"\",\"\",'1. Order'!AA965)","v":""},null,{"$f":"IF('1. Order'!AS965=\"\",\"\",'1. Order'!AS965)","v":""},{"$f":"IF('1. Order'!AT965=\"\",\"\",'1. Order'!AT965)","v":""},null,null,null,null,null,null,null,{"$f":"IF('1. Order'!AX965=\"\",\"\",'1. Order'!AX965)","v":""},{"$f":"IF('1. Order'!AY965=\"\",\"\",'1. Order'!AY965)","v":""},{"$f":"IF('1. Order'!AZ965=\"\",\"\",'1. Order'!AZ965)","v":""},{"$f":"IF('1. Order'!BA965=\"\",\"\",'1. Order'!BA965)","v":""},{"$f":"IF('1. Order'!BC965=\"\",\"\",'1. Order'!BC965)","v":""},{"$f":"IF('1. Order'!BD965=\"\",\"\",'1. Order'!BD965)","v":6},{"$f":"IF('1. Order'!BE965=\"\",\"\",'1. Order'!BE965)","v":"None"},{"$f":"IF('1. Order'!BF965=\"\",\"\",'1. Order'!BF965)","v":"Parcel"},{"$f":"IF('1. Order'!BG965=\"\",\"\",'1. Order'!BG965)","v":"ZWO"}]
[{"$f":"IF('1. Order'!F966=\"\",\"\",'1. Order'!F966)","v":""},{"$f":"IF('1. Order'!G966=\"\",\"\",'1. Order'!G966)","v":""},{"$f":"IF('1. Order'!H966=\"\",\"\",'1. Order'!H966)","v":""},{"$f":"IF('1. Order'!I966=\"\",\"\",'1. Order'!I966)","v":""},{"$f":"IF('1. Order'!J966=\"\",\"\",'1. Order'!J966)","v":""},{"$f":"IF('1. Order'!K966=\"\",\"\",'1. Order'!K966)","v":""},{"$f":"IF('1. Order'!L966=\"\",\"\",'1. Order'!L966)","v":""},{"$f":"IF('1. Order'!M966=\"\",\"\",'1. Order'!M966)","v":""},{"$f":"IF('1. Order'!N966=\"\",\"\",'1. Order'!N966)","v":""},{"$f":"IF('1. Order'!O966=\"\",\"\",'1. Order'!O966)","v":{"$error":"#N/A"}},{"$f":"IF('1. Order'!P966=\"\",\"\",'1. Order'!P966)","v":{"$error":"#N/A"}},{"$f":"IF('1. Order'!Q966=\"\",\"\",'1. Order'!Q966)","v":""},{"$f":"IF('1. Order'!R966=\"\",\"\",'1. Order'!R966)","v":""},{"$f":"IF('1. Order'!S966=\"\",\"\",'1. Order'!S966)","v":""},{"$f":"IF('1. Order'!V966=\"\",\"\",'1. Order'!V966)","v":""},{"$f":"IF('1. Order'!W966=\"\",\"\",'1. Order'!W966)","v":""},{"$f":"IF('1. Order'!X966=\"\",\"\",'1. Order'!X966)","v":"EUR"},{"$f":"IF('1. Order'!Y966=\"\",\"\",'1. Order'!Y966)","v":""},{"$f":"IF('1. Order'!Z966=\"\",\"\",'1. Order'!Z966)","v":""},{"$f":"IF('1. Order'!AA966=\"\",\"\",'1. Order'!AA966)","v":""},null,{"$f":"IF('1. Order'!AS966=\"\",\"\",'1. Order'!AS966)","v":""},{"$f":"IF('1. Order'!AT966=\"\",\"\",'1. Order'!AT966)","v":""},null,null,null,null,null,null,null,{"$f":"IF('1. Order'!AX966=\"\",\"\",'1. Order'!AX966)","v":""},{"$f":"IF('1. Order'!AY966=\"\",\"\",'1. Order'!AY966)","v":""},{"$f":"IF('1. Order'!AZ966=\"\",\"\",'1. Order'!AZ966)","v":""},{"$f":"IF('1. Order'!BA966=\"\",\"\",'1. Order'!BA966)","v":""},{"$f":"IF('1. Order'!BC966=\"\",\"\",'1. Order'!BC966)","v":""},{"$f":"IF('1. Order'!BD966=\"\",\"\",'1. Order'!BD966)","v":6},{"$f":"IF('1. Order'!BE966=\"\",\"\",'1. Order'!BE966)","v":"None"},{"$f":"IF('1. Order'!BF966=\"\",\"\",'1. Order'!BF966)","v":"Parcel"},{"$f":"IF('1. Order'!BG966=\"\",\"\",'1. Order'!BG966)","v":"ZWO"}]
[{"$f":"IF('1. Order'!F967=\"\",\"\",'1. Order'!F967)","v":""},{"$f":"IF('1. Order'!G967=\"\",\"\",'1. Order'!G967)","v":""},{"$f":"IF('1. Order'!H967=\"\",\"\",'1. Order'!H967)","v":""},{"$f":"IF('1. Order'!I967=\"\",\"\",'1. Order'!I967)","v":""},{"$f":"IF('1. Order'!J967=\"\",\"\",'1. Order'!J967)","v":""},{"$f":"IF('1. Order'!K967=\"\",\"\",'1. Order'!K967)","v":""},{"$f":"IF('1. Order'!L967=\"\",\"\",'1. Order'!L967)","v":""},{"$f":"IF('1. Order'!M967=\"\",\"\",'1. Order'!M967)","v":""},{"$f":"IF('1. Order'!N967=\"\",\"\",'1. Order'!N967)","v":""},{"$f":"IF('1. Order'!O967=\"\",\"\",'1. Order'!O967)","v":{"$error":"#N/A"}},{"$f":"IF('1. Order'!P967=\"\",\"\",'1. Order'!P967)","v":{"$error":"#N/A"}},{"$f":"IF('1. Order'!Q967=\"\",\"\",'1. Order'!Q967)","v":""},{"$f":"IF('1. Order'!R967=\"\",\"\",'1. Order'!R967)","v":""},{"$f":"IF('1. Order'!S967=\"\",\"\",'1. Order'!S967)","v":""},{"$f":"IF('1. Order'!V967=\"\",\"\",'1. Order'!V967)","v":""},{"$f":"IF('1. Order'!W967=\"\",\"\",'1. Order'!W967)","v":""},{"$f":"IF('1. Order'!X967=\"\",\"\",'1. Order'!X967)","v":"EUR"},{"$f":"IF('1. Order'!Y967=\"\",\"\",'1. Order'!Y967)","v":""},{"$f":"IF('1. Order'!Z967=\"\",\"\",'1. Order'!Z967)","v":""},{"$f":"IF('1. Order'!AA967=\"\",\"\",'1. Order'!AA967)","v":""},null,{"$f":"IF('1. Order'!AS967=\"\",\"\",'1. Order'!AS967)","v":""},{"$f":"IF('1. Order'!AT967=\"\",\"\",'1. Order'!AT967)","v":""},null,null,null,null,null,null,null,{"$f":"IF('1. Order'!AX967=\"\",\"\",'1. Order'!AX967)","v":""},{"$f":"IF('1. Order'!AY967=\"\",\"\",'1. Order'!AY967)","v":""},{"$f":"IF('1. Order'!AZ967=\"\",\"\",'1. Order'!AZ967)","v":""},{"$f":"IF('1. Order'!BA967=\"\",\"\",'1. Order'!BA967)","v":""},{"$f":"IF('1. Order'!BC967=\"\",\"\",'1. Order'!BC967)","v":""},{"$f":"IF('1. Order'!BD967=\"\",\"\",'1. Order'!BD967)","v":6},{"$f":"IF('1. Order'!BE967=\"\",\"\",'1. Order'!BE967)","v":"None"},{"$f":"IF('1. Order'!BF967=\"\",\"\",'1. Order'!BF967)","v":"Parcel"},{"$f":"IF('1. Order'!BG967=\"\",\"\",'1. Order'!BG967)","v":"ZWO"}]
[{"$f":"IF('1. Order'!F968=\"\",\"\",'1. Order'!F968)","v":""},{"$f":"IF('1. Order'!G968=\"\",\"\",'1. Order'!G968)","v":""},{"$f":"IF('1. Order'!H968=\"\",\"\",'1. Order'!H968)","v":""},{"$f":"IF('1. Order'!I968=\"\",\"\",'1. Order'!I968)","v":""},{"$f":"IF('1. Order'!J968=\"\",\"\",'1. Order'!J968)","v":""},{"$f":"IF('1. Order'!K968=\"\",\"\",'1. Order'!K968)","v":""},{"$f":"IF('1. Order'!L968=\"\",\"\",'1. Order'!L968)","v":""},{"$f":"IF('1. Order'!M968=\"\",\"\",'1. Order'!M968)","v":""},{"$f":"IF('1. Order'!N968=\"\",\"\",'1. Order'!N968)","v":""},{"$f":"IF('1. Order'!O968=\"\",\"\",'1. Order'!O968)","v":{"$error":"#N/A"}},{"$f":"IF('1. Order'!P968=\"\",\"\",'1. Order'!P968)","v":{"$error":"#N/A"}},{"$f":"IF('1. Order'!Q968=\"\",\"\",'1. Order'!Q968)","v":""},{"$f":"IF('1. Order'!R968=\"\",\"\",'1. Order'!R968)","v":""},{"$f":"IF('1. Order'!S968=\"\",\"\",'1. Order'!S968)","v":""},{"$f":"IF('1. Order'!V968=\"\",\"\",'1. Order'!V968)","v":""},{"$f":"IF('1. Order'!W968=\"\",\"\",'1. Order'!W968)","v":""},{"$f":"IF('1. Order'!X968=\"\",\"\",'1. Order'!X968)","v":"EUR"},{"$f":"IF('1. Order'!Y968=\"\",\"\",'1. Order'!Y968)","v":""},{"$f":"IF('1. Order'!Z968=\"\",\"\",'1. Order'!Z968)","v":""},{"$f":"IF('1. Order'!AA968=\"\",\"\",'1. Order'!AA968)","v":""},null,{"$f":"IF('1. Order'!AS968=\"\",\"\",'1. Order'!AS968)","v":""},{"$f":"IF('1. Order'!AT968=\"\",\"\",'1. Order'!AT968)","v":""},null,null,null,null,null,null,null,{"$f":"IF('1. Order'!AX968=\"\",\"\",'1. Order'!AX968)","v":""},{"$f":"IF('1. Order'!AY968=\"\",\"\",'1. Order'!AY968)","v":""},{"$f":"IF('1. Order'!AZ968=\"\",\"\",'1. Order'!AZ968)","v":""},{"$f":"IF('1. Order'!BA968=\"\",\"\",'1. Order'!BA968)","v":""},{"$f":"IF('1. Order'!BC968=\"\",\"\",'1. Order'!BC968)","v":""},{"$f":"IF('1. Order'!BD968=\"\",\"\",'1. Order'!BD968)","v":6},{"$f":"IF('1. Order'!BE968=\"\",\"\",'1. Order'!BE968)","v":"None"},{"$f":"IF('1. Order'!BF968=\"\",\"\",'1. Order'!BF968)","v":"Parcel"},{"$f":"IF('1. Order'!BG968=\"\",\"\",'1. Order'!BG968)","v":"ZWO"}]
[{"$f":"IF('1. Order'!F969=\"\",\"\",'1. Order'!F969)","v":""},{"$f":"IF('1. Order'!G969=\"\",\"\",'1. Order'!G969)","v":""},{"$f":"IF('1. Order'!H969=\"\",\"\",'1. Order'!H969)","v":""},{"$f":"IF('1. Order'!I969=\"\",\"\",'1. Order'!I969)","v":""},{"$f":"IF('1. Order'!J969=\"\",\"\",'1. Order'!J969)","v":""},{"$f":"IF('1. Order'!K969=\"\",\"\",'1. Order'!K969)","v":""},{"$f":"IF('1. Order'!L969=\"\",\"\",'1. Order'!L969)","v":""},{"$f":"IF('1. Order'!M969=\"\",\"\",'1. Order'!M969)","v":""},{"$f":"IF('1. Order'!N969=\"\",\"\",'1. Order'!N969)","v":""},{"$f":"IF('1. Order'!O969=\"\",\"\",'1. Order'!O969)","v":{"$error":"#N/A"}},{"$f":"IF('1. Order'!P969=\"\",\"\",'1. Order'!P969)","v":{"$error":"#N/A"}},{"$f":"IF('1. Order'!Q969=\"\",\"\",'1. Order'!Q969)","v":""},{"$f":"IF('1. Order'!R969=\"\",\"\",'1. Order'!R969)","v":""},{"$f":"IF('1. Order'!S969=\"\",\"\",'1. Order'!S969)","v":""},{"$f":"IF('1. Order'!V969=\"\",\"\",'1. Order'!V969)","v":""},{"$f":"IF('1. Order'!W969=\"\",\"\",'1. Order'!W969)","v":""},{"$f":"IF('1. Order'!X969=\"\",\"\",'1. Order'!X969)","v":"EUR"},{"$f":"IF('1. Order'!Y969=\"\",\"\",'1. Order'!Y969)","v":""},{"$f":"IF('1. Order'!Z969=\"\",\"\",'1. Order'!Z969)","v":""},{"$f":"IF('1. Order'!AA969=\"\",\"\",'1. Order'!AA969)","v":""},null,{"$f":"IF('1. Order'!AS969=\"\",\"\",'1. Order'!AS969)","v":""},{"$f":"IF('1. Order'!AT969=\"\",\"\",'1. Order'!AT969)","v":""},null,null,null,null,null,null,null,{"$f":"IF('1. Order'!AX969=\"\",\"\",'1. Order'!AX969)","v":""},{"$f":"IF('1. Order'!AY969=\"\",\"\",'1. Order'!AY969)","v":""},{"$f":"IF('1. Order'!AZ969=\"\",\"\",'1. Order'!AZ969)","v":""},{"$f":"IF('1. Order'!BA969=\"\",\"\",'1. Order'!BA969)","v":""},{"$f":"IF('1. Order'!BC969=\"\",\"\",'1. Order'!BC969)","v":""},{"$f":"IF('1. Order'!BD969=\"\",\"\",'1. Order'!BD969)","v":6},{"$f":"IF('1. Order'!BE969=\"\",\"\",'1. Order'!BE969)","v":"None"},{"$f":"IF('1. Order'!BF969=\"\",\"\",'1. Order'!BF969)","v":"Parcel"},{"$f":"IF('1. Order'!BG969=\"\",\"\",'1. Order'!BG969)","v":"ZWO"}]
[{"$f":"IF('1. Order'!F970=\"\",\"\",'1. Order'!F970)","v":""},{"$f":"IF('1. Order'!G970=\"\",\"\",'1. Order'!G970)","v":""},{"$f":"IF('1. Order'!H970=\"\",\"\",'1. Order'!H970)","v":""},{"$f":"IF('1. Order'!I970=\"\",\"\",'1. Order'!I970)","v":""},{"$f":"IF('1. Order'!J970=\"\",\"\",'1. Order'!J970)","v":""},{"$f":"IF('1. Order'!K970=\"\",\"\",'1. Order'!K970)","v":""},{"$f":"IF('1. Order'!L970=\"\",\"\",'1. Order'!L970)","v":""},{"$f":"IF('1. Order'!M970=\"\",\"\",'1. Order'!M970)","v":""},{"$f":"IF('1. Order'!N970=\"\",\"\",'1. Order'!N970)","v":""},{"$f":"IF('1. Order'!O970=\"\",\"\",'1. Order'!O970)","v":{"$error":"#N/A"}},{"$f":"IF('1. Order'!P970=\"\",\"\",'1. Order'!P970)","v":{"$error":"#N/A"}},{"$f":"IF('1. Order'!Q970=\"\",\"\",'1. Order'!Q970)","v":""},{"$f":"IF('1. Order'!R970=\"\",\"\",'1. Order'!R970)","v":""},{"$f":"IF('1. Order'!S970=\"\",\"\",'1. Order'!S970)","v":""},{"$f":"IF('1. Order'!V970=\"\",\"\",'1. Order'!V970)","v":""},{"$f":"IF('1. Order'!W970=\"\",\"\",'1. Order'!W970)","v":""},{"$f":"IF('1. Order'!X970=\"\",\"\",'1. Order'!X970)","v":"EUR"},{"$f":"IF('1. Order'!Y970=\"\",\"\",'1. Order'!Y970)","v":""},{"$f":"IF('1. Order'!Z970=\"\",\"\",'1. Order'!Z970)","v":""},{"$f":"IF('1. Order'!AA970=\"\",\"\",'1. Order'!AA970)","v":""},null,{"$f":"IF('1. Order'!AS970=\"\",\"\",'1. Order'!AS970)","v":""},{"$f":"IF('1. Order'!AT970=\"\",\"\",'1. Order'!AT970)","v":""},null,null,null,null,null,null,null,{"$f":"IF('1. Order'!AX970=\"\",\"\",'1. Order'!AX970)","v":""},{"$f":"IF('1. Order'!AY970=\"\",\"\",'1. Order'!AY970)","v":""},{"$f":"IF('1. Order'!AZ970=\"\",\"\",'1. Order'!AZ970)","v":""},{"$f":"IF('1. Order'!BA970=\"\",\"\",'1. Order'!BA970)","v":""},{"$f":"IF('1. Order'!BC970=\"\",\"\",'1. Order'!BC970)","v":""},{"$f":"IF('1. Order'!BD970=\"\",\"\",'1. Order'!BD970)","v":6},{"$f":"IF('1. Order'!BE970=\"\",\"\",'1. Order'!BE970)","v":"None"},{"$f":"IF('1. Order'!BF970=\"\",\"\",'1. Order'!BF970)","v":"Parcel"},{"$f":"IF('1. Order'!BG970=\"\",\"\",'1. Order'!BG970)","v":"ZWO"}]
[{"$f":"IF('1. Order'!F971=\"\",\"\",'1. Order'!F971)","v":""},{"$f":"IF('1. Order'!G971=\"\",\"\",'1. Order'!G971)","v":""},{"$f":"IF('1. Order'!H971=\"\",\"\",'1. Order'!H971)","v":""},{"$f":"IF('1. Order'!I971=\"\",\"\",'1. Order'!I971)","v":""},{"$f":"IF('1. Order'!J971=\"\",\"\",'1. Order'!J971)","v":""},{"$f":"IF('1. Order'!K971=\"\",\"\",'1. Order'!K971)","v":""},{"$f":"IF('1. Order'!L971=\"\",\"\",'1. Order'!L971)","v":""},{"$f":"IF('1. Order'!M971=\"\",\"\",'1. Order'!M971)","v":""},{"$f":"IF('1. Order'!N971=\"\",\"\",'1. Order'!N971)","v":""},{"$f":"IF('1. Order'!O971=\"\",\"\",'1. Order'!O971)","v":{"$error":"#N/A"}},{"$f":"IF('1. Order'!P971=\"\",\"\",'1. Order'!P971)","v":{"$error":"#N/A"}},{"$f":"IF('1. Order'!Q971=\"\",\"\",'1. Order'!Q971)","v":""},{"$f":"IF('1. Order'!R971=\"\",\"\",'1. Order'!R971)","v":""},{"$f":"IF('1. Order'!S971=\"\",\"\",'1. Order'!S971)","v":""},{"$f":"IF('1. Order'!V971=\"\",\"\",'1. Order'!V971)","v":""},{"$f":"IF('1. Order'!W971=\"\",\"\",'1. Order'!W971)","v":""},{"$f":"IF('1. Order'!X971=\"\",\"\",'1. Order'!X971)","v":"EUR"},{"$f":"IF('1. Order'!Y971=\"\",\"\",'1. Order'!Y971)","v":""},{"$f":"IF('1. Order'!Z971=\"\",\"\",'1. Order'!Z971)","v":""},{"$f":"IF('1. Order'!AA971=\"\",\"\",'1. Order'!AA971)","v":""},null,{"$f":"IF('1. Order'!AS971=\"\",\"\",'1. Order'!AS971)","v":""},{"$f":"IF('1. Order'!AT971=\"\",\"\",'1. Order'!AT971)","v":""},null,null,null,null,null,null,null,{"$f":"IF('1. Order'!AX971=\"\",\"\",'1. Order'!AX971)","v":""},{"$f":"IF('1. Order'!AY971=\"\",\"\",'1. Order'!AY971)","v":""},{"$f":"IF('1. Order'!AZ971=\"\",\"\",'1. Order'!AZ971)","v":""},{"$f":"IF('1. Order'!BA971=\"\",\"\",'1. Order'!BA971)","v":""},{"$f":"IF('1. Order'!BC971=\"\",\"\",'1. Order'!BC971)","v":""},{"$f":"IF('1. Order'!BD971=\"\",\"\",'1. Order'!BD971)","v":6},{"$f":"IF('1. Order'!BE971=\"\",\"\",'1. Order'!BE971)","v":"None"},{"$f":"IF('1. Order'!BF971=\"\",\"\",'1. Order'!BF971)","v":"Parcel"},{"$f":"IF('1. Order'!BG971=\"\",\"\",'1. Order'!BG971)","v":"ZWO"}]
[{"$f":"IF('1. Order'!F972=\"\",\"\",'1. Order'!F972)","v":""},{"$f":"IF('1. Order'!G972=\"\",\"\",'1. Order'!G972)","v":""},{"$f":"IF('1. Order'!H972=\"\",\"\",'1. Order'!H972)","v":""},{"$f":"IF('1. Order'!I972=\"\",\"\",'1. Order'!I972)","v":""},{"$f":"IF('1. Order'!J972=\"\",\"\",'1. Order'!J972)","v":""},{"$f":"IF('1. Order'!K972=\"\",\"\",'1. Order'!K972)","v":""},{"$f":"IF('1. Order'!L972=\"\",\"\",'1. Order'!L972)","v":""},{"$f":"IF('1. Order'!M972=\"\",\"\",'1. Order'!M972)","v":""},{"$f":"IF('1. Order'!N972=\"\",\"\",'1. Order'!N972)","v":""},{"$f":"IF('1. Order'!O972=\"\",\"\",'1. Order'!O972)","v":{"$error":"#N/A"}},{"$f":"IF('1. Order'!P972=\"\",\"\",'1. Order'!P972)","v":{"$error":"#N/A"}},{"$f":"IF('1. Order'!Q972=\"\",\"\",'1. Order'!Q972)","v":""},{"$f":"IF('1. Order'!R972=\"\",\"\",'1. Order'!R972)","v":""},{"$f":"IF('1. Order'!S972=\"\",\"\",'1. Order'!S972)","v":""},{"$f":"IF('1. Order'!V972=\"\",\"\",'1. Order'!V972)","v":""},{"$f":"IF('1. Order'!W972=\"\",\"\",'1. Order'!W972)","v":""},{"$f":"IF('1. Order'!X972=\"\",\"\",'1. Order'!X972)","v":"EUR"},{"$f":"IF('1. Order'!Y972=\"\",\"\",'1. Order'!Y972)","v":""},{"$f":"IF('1. Order'!Z972=\"\",\"\",'1. Order'!Z972)","v":""},{"$f":"IF('1. Order'!AA972=\"\",\"\",'1. Order'!AA972)","v":""},null,{"$f":"IF('1. Order'!AS972=\"\",\"\",'1. Order'!AS972)","v":""},{"$f":"IF('1. Order'!AT972=\"\",\"\",'1. Order'!AT972)","v":""},null,null,null,null,null,null,null,{"$f":"IF('1. Order'!AX972=\"\",\"\",'1. Order'!AX972)","v":""},{"$f":"IF('1. Order'!AY972=\"\",\"\",'1. Order'!AY972)","v":""},{"$f":"IF('1. Order'!AZ972=\"\",\"\",'1. Order'!AZ972)","v":""},{"$f":"IF('1. Order'!BA972=\"\",\"\",'1. Order'!BA972)","v":""},{"$f":"IF('1. Order'!BC972=\"\",\"\",'1. Order'!BC972)","v":""},{"$f":"IF('1. Order'!BD972=\"\",\"\",'1. Order'!BD972)","v":6},{"$f":"IF('1. Order'!BE972=\"\",\"\",'1. Order'!BE972)","v":"None"},{"$f":"IF('1. Order'!BF972=\"\",\"\",'1. Order'!BF972)","v":"Parcel"},{"$f":"IF('1. Order'!BG972=\"\",\"\",'1. Order'!BG972)","v":"ZWO"}]
[{"$f":"IF('1. Order'!F973=\"\",\"\",'1. Order'!F973)","v":""},{"$f":"IF('1. Order'!G973=\"\",\"\",'1. Order'!G973)","v":""},{"$f":"IF('1. Order'!H973=\"\",\"\",'1. Order'!H973)","v":""},{"$f":"IF('1. Order'!I973=\"\",\"\",'1. Order'!I973)","v":""},{"$f":"IF('1. Order'!J973=\"\",\"\",'1. Order'!J973)","v":""},{"$f":"IF('1. Order'!K973=\"\",\"\",'1. Order'!K973)","v":""},{"$f":"IF('1. Order'!L973=\"\",\"\",'1. Order'!L973)","v":""},{"$f":"IF('1. Order'!M973=\"\",\"\",'1. Order'!M973)","v":""},{"$f":"IF('1. Order'!N973=\"\",\"\",'1. Order'!N973)","v":""},{"$f":"IF('1. Order'!O973=\"\",\"\",'1. Order'!O973)","v":{"$error":"#N/A"}},{"$f":"IF('1. Order'!P973=\"\",\"\",'1. Order'!P973)","v":{"$error":"#N/A"}},{"$f":"IF('1. Order'!Q973=\"\",\"\",'1. Order'!Q973)","v":""},{"$f":"IF('1. Order'!R973=\"\",\"\",'1. Order'!R973)","v":""},{"$f":"IF('1. Order'!S973=\"\",\"\",'1. Order'!S973)","v":""},{"$f":"IF('1. Order'!V973=\"\",\"\",'1. Order'!V973)","v":""},{"$f":"IF('1. Order'!W973=\"\",\"\",'1. Order'!W973)","v":""},{"$f":"IF('1. Order'!X973=\"\",\"\",'1. Order'!X973)","v":"EUR"},{"$f":"IF('1. Order'!Y973=\"\",\"\",'1. Order'!Y973)","v":""},{"$f":"IF('1. Order'!Z973=\"\",\"\",'1. Order'!Z973)","v":""},{"$f":"IF('1. Order'!AA973=\"\",\"\",'1. Order'!AA973)","v":""},null,{"$f":"IF('1. Order'!AS973=\"\",\"\",'1. Order'!AS973)","v":""},{"$f":"IF('1. Order'!AT973=\"\",\"\",'1. Order'!AT973)","v":""},null,null,null,null,null,null,null,{"$f":"IF('1. Order'!AX973=\"\",\"\",'1. Order'!AX973)","v":""},{"$f":"IF('1. Order'!AY973=\"\",\"\",'1. Order'!AY973)","v":""},{"$f":"IF('1. Order'!AZ973=\"\",\"\",'1. Order'!AZ973)","v":""},{"$f":"IF('1. Order'!BA973=\"\",\"\",'1. Order'!BA973)","v":""},{"$f":"IF('1. Order'!BC973=\"\",\"\",'1. Order'!BC973)","v":""},{"$f":"IF('1. Order'!BD973=\"\",\"\",'1. Order'!BD973)","v":6},{"$f":"IF('1. Order'!BE973=\"\",\"\",'1. Order'!BE973)","v":"None"},{"$f":"IF('1. Order'!BF973=\"\",\"\",'1. Order'!BF973)","v":"Parcel"},{"$f":"IF('1. Order'!BG973=\"\",\"\",'1. Order'!BG973)","v":"ZWO"}]
[{"$f":"IF('1. Order'!F974=\"\",\"\",'1. Order'!F974)","v":""},{"$f":"IF('1. Order'!G974=\"\",\"\",'1. Order'!G974)","v":""},{"$f":"IF('1. Order'!H974=\"\",\"\",'1. Order'!H974)","v":""},{"$f":"IF('1. Order'!I974=\"\",\"\",'1. Order'!I974)","v":""},{"$f":"IF('1. Order'!J974=\"\",\"\",'1. Order'!J974)","v":""},{"$f":"IF('1. Order'!K974=\"\",\"\",'1. Order'!K974)","v":""},{"$f":"IF('1. Order'!L974=\"\",\"\",'1. Order'!L974)","v":""},{"$f":"IF('1. Order'!M974=\"\",\"\",'1. Order'!M974)","v":""},{"$f":"IF('1. Order'!N974=\"\",\"\",'1. Order'!N974)","v":""},{"$f":"IF('1. Order'!O974=\"\",\"\",'1. Order'!O974)","v":{"$error":"#N/A"}},{"$f":"IF('1. Order'!P974=\"\",\"\",'1. Order'!P974)","v":{"$error":"#N/A"}},{"$f":"IF('1. Order'!Q974=\"\",\"\",'1. Order'!Q974)","v":""},{"$f":"IF('1. Order'!R974=\"\",\"\",'1. Order'!R974)","v":""},{"$f":"IF('1. Order'!S974=\"\",\"\",'1. Order'!S974)","v":""},{"$f":"IF('1. Order'!V974=\"\",\"\",'1. Order'!V974)","v":""},{"$f":"IF('1. Order'!W974=\"\",\"\",'1. Order'!W974)","v":""},{"$f":"IF('1. Order'!X974=\"\",\"\",'1. Order'!X974)","v":"EUR"},{"$f":"IF('1. Order'!Y974=\"\",\"\",'1. Order'!Y974)","v":""},{"$f":"IF('1. Order'!Z974=\"\",\"\",'1. Order'!Z974)","v":""},{"$f":"IF('1. Order'!AA974=\"\",\"\",'1. Order'!AA974)","v":""},null,{"$f":"IF('1. Order'!AS974=\"\",\"\",'1. Order'!AS974)","v":""},{"$f":"IF('1. Order'!AT974=\"\",\"\",'1. Order'!AT974)","v":""},null,null,null,null,null,null,null,{"$f":"IF('1. Order'!AX974=\"\",\"\",'1. Order'!AX974)","v":""},{"$f":"IF('1. Order'!AY974=\"\",\"\",'1. Order'!AY974)","v":""},{"$f":"IF('1. Order'!AZ974=\"\",\"\",'1. Order'!AZ974)","v":""},{"$f":"IF('1. Order'!BA974=\"\",\"\",'1. Order'!BA974)","v":""},{"$f":"IF('1. Order'!BC974=\"\",\"\",'1. Order'!BC974)","v":""},{"$f":"IF('1. Order'!BD974=\"\",\"\",'1. Order'!BD974)","v":6},{"$f":"IF('1. Order'!BE974=\"\",\"\",'1. Order'!BE974)","v":"None"},{"$f":"IF('1. Order'!BF974=\"\",\"\",'1. Order'!BF974)","v":"Parcel"},{"$f":"IF('1. Order'!BG974=\"\",\"\",'1. Order'!BG974)","v":"ZWO"}]
[{"$f":"IF('1. Order'!F975=\"\",\"\",'1. Order'!F975)","v":""},{"$f":"IF('1. Order'!G975=\"\",\"\",'1. Order'!G975)","v":""},{"$f":"IF('1. Order'!H975=\"\",\"\",'1. Order'!H975)","v":""},{"$f":"IF('1. Order'!I975=\"\",\"\",'1. Order'!I975)","v":""},{"$f":"IF('1. Order'!J975=\"\",\"\",'1. Order'!J975)","v":""},{"$f":"IF('1. Order'!K975=\"\",\"\",'1. Order'!K975)","v":""},{"$f":"IF('1. Order'!L975=\"\",\"\",'1. Order'!L975)","v":""},{"$f":"IF('1. Order'!M975=\"\",\"\",'1. Order'!M975)","v":""},{"$f":"IF('1. Order'!N975=\"\",\"\",'1. Order'!N975)","v":""},{"$f":"IF('1. Order'!O975=\"\",\"\",'1. Order'!O975)","v":{"$error":"#N/A"}},{"$f":"IF('1. Order'!P975=\"\",\"\",'1. Order'!P975)","v":{"$error":"#N/A"}},{"$f":"IF('1. Order'!Q975=\"\",\"\",'1. Order'!Q975)","v":""},{"$f":"IF('1. Order'!R975=\"\",\"\",'1. Order'!R975)","v":""},{"$f":"IF('1. Order'!S975=\"\",\"\",'1. Order'!S975)","v":""},{"$f":"IF('1. Order'!V975=\"\",\"\",'1. Order'!V975)","v":""},{"$f":"IF('1. Order'!W975=\"\",\"\",'1. Order'!W975)","v":""},{"$f":"IF('1. Order'!X975=\"\",\"\",'1. Order'!X975)","v":"EUR"},{"$f":"IF('1. Order'!Y975=\"\",\"\",'1. Order'!Y975)","v":""},{"$f":"IF('1. Order'!Z975=\"\",\"\",'1. Order'!Z975)","v":""},{"$f":"IF('1. Order'!AA975=\"\",\"\",'1. Order'!AA975)","v":""},null,{"$f":"IF('1. Order'!AS975=\"\",\"\",'1. Order'!AS975)","v":""},{"$f":"IF('1. Order'!AT975=\"\",\"\",'1. Order'!AT975)","v":""},null,null,null,null,null,null,null,{"$f":"IF('1. Order'!AX975=\"\",\"\",'1. Order'!AX975)","v":""},{"$f":"IF('1. Order'!AY975=\"\",\"\",'1. Order'!AY975)","v":""},{"$f":"IF('1. Order'!AZ975=\"\",\"\",'1. Order'!AZ975)","v":""},{"$f":"IF('1. Order'!BA975=\"\",\"\",'1. Order'!BA975)","v":""},{"$f":"IF('1. Order'!BC975=\"\",\"\",'1. Order'!BC975)","v":""},{"$f":"IF('1. Order'!BD975=\"\",\"\",'1. Order'!BD975)","v":6},{"$f":"IF('1. Order'!BE975=\"\",\"\",'1. Order'!BE975)","v":"None"},{"$f":"IF('1. Order'!BF975=\"\",\"\",'1. Order'!BF975)","v":"Parcel"},{"$f":"IF('1. Order'!BG975=\"\",\"\",'1. Order'!BG975)","v":"ZWO"}]
[{"$f":"IF('1. Order'!F976=\"\",\"\",'1. Order'!F976)","v":""},{"$f":"IF('1. Order'!G976=\"\",\"\",'1. Order'!G976)","v":""},{"$f":"IF('1. Order'!H976=\"\",\"\",'1. Order'!H976)","v":""},{"$f":"IF('1. Order'!I976=\"\",\"\",'1. Order'!I976)","v":""},{"$f":"IF('1. Order'!J976=\"\",\"\",'1. Order'!J976)","v":""},{"$f":"IF('1. Order'!K976=\"\",\"\",'1. Order'!K976)","v":""},{"$f":"IF('1. Order'!L976=\"\",\"\",'1. Order'!L976)","v":""},{"$f":"IF('1. Order'!M976=\"\",\"\",'1. Order'!M976)","v":""},{"$f":"IF('1. Order'!N976=\"\",\"\",'1. Order'!N976)","v":""},{"$f":"IF('1. Order'!O976=\"\",\"\",'1. Order'!O976)","v":{"$error":"#N/A"}},{"$f":"IF('1. Order'!P976=\"\",\"\",'1. Order'!P976)","v":{"$error":"#N/A"}},{"$f":"IF('1. Order'!Q976=\"\",\"\",'1. Order'!Q976)","v":""},{"$f":"IF('1. Order'!R976=\"\",\"\",'1. Order'!R976)","v":""},{"$f":"IF('1. Order'!S976=\"\",\"\",'1. Order'!S976)","v":""},{"$f":"IF('1. Order'!V976=\"\",\"\",'1. Order'!V976)","v":""},{"$f":"IF('1. Order'!W976=\"\",\"\",'1. Order'!W976)","v":""},{"$f":"IF('1. Order'!X976=\"\",\"\",'1. Order'!X976)","v":"EUR"},{"$f":"IF('1. Order'!Y976=\"\",\"\",'1. Order'!Y976)","v":""},{"$f":"IF('1. Order'!Z976=\"\",\"\",'1. Order'!Z976)","v":""},{"$f":"IF('1. Order'!AA976=\"\",\"\",'1. Order'!AA976)","v":""},null,{"$f":"IF('1. Order'!AS976=\"\",\"\",'1. Order'!AS976)","v":""},{"$f":"IF('1. Order'!AT976=\"\",\"\",'1. Order'!AT976)","v":""},null,null,null,null,null,null,null,{"$f":"IF('1. Order'!AX976=\"\",\"\",'1. Order'!AX976)","v":""},{"$f":"IF('1. Order'!AY976=\"\",\"\",'1. Order'!AY976)","v":""},{"$f":"IF('1. Order'!AZ976=\"\",\"\",'1. Order'!AZ976)","v":""},{"$f":"IF('1. Order'!BA976=\"\",\"\",'1. Order'!BA976)","v":""},{"$f":"IF('1. Order'!BC976=\"\",\"\",'1. Order'!BC976)","v":""},{"$f":"IF('1. Order'!BD976=\"\",\"\",'1. Order'!BD976)","v":6},{"$f":"IF('1. Order'!BE976=\"\",\"\",'1. Order'!BE976)","v":"None"},{"$f":"IF('1. Order'!BF976=\"\",\"\",'1. Order'!BF976)","v":"Parcel"},{"$f":"IF('1. Order'!BG976=\"\",\"\",'1. Order'!BG976)","v":"ZWO"}]
[{"$f":"IF('1. Order'!F977=\"\",\"\",'1. Order'!F977)","v":""},{"$f":"IF('1. Order'!G977=\"\",\"\",'1. Order'!G977)","v":""},{"$f":"IF('1. Order'!H977=\"\",\"\",'1. Order'!H977)","v":""},{"$f":"IF('1. Order'!I977=\"\",\"\",'1. Order'!I977)","v":""},{"$f":"IF('1. Order'!J977=\"\",\"\",'1. Order'!J977)","v":""},{"$f":"IF('1. Order'!K977=\"\",\"\",'1. Order'!K977)","v":""},{"$f":"IF('1. Order'!L977=\"\",\"\",'1. Order'!L977)","v":""},{"$f":"IF('1. Order'!M977=\"\",\"\",'1. Order'!M977)","v":""},{"$f":"IF('1. Order'!N977=\"\",\"\",'1. Order'!N977)","v":""},{"$f":"IF('1. Order'!O977=\"\",\"\",'1. Order'!O977)","v":{"$error":"#N/A"}},{"$f":"IF('1. Order'!P977=\"\",\"\",'1. Order'!P977)","v":{"$error":"#N/A"}},{"$f":"IF('1. Order'!Q977=\"\",\"\",'1. Order'!Q977)","v":""},{"$f":"IF('1. Order'!R977=\"\",\"\",'1. Order'!R977)","v":""},{"$f":"IF('1. Order'!S977=\"\",\"\",'1. Order'!S977)","v":""},{"$f":"IF('1. Order'!V977=\"\",\"\",'1. Order'!V977)","v":""},{"$f":"IF('1. Order'!W977=\"\",\"\",'1. Order'!W977)","v":""},{"$f":"IF('1. Order'!X977=\"\",\"\",'1. Order'!X977)","v":"EUR"},{"$f":"IF('1. Order'!Y977=\"\",\"\",'1. Order'!Y977)","v":""},{"$f":"IF('1. Order'!Z977=\"\",\"\",'1. Order'!Z977)","v":""},{"$f":"IF('1. Order'!AA977=\"\",\"\",'1. Order'!AA977)","v":""},null,{"$f":"IF('1. Order'!AS977=\"\",\"\",'1. Order'!AS977)","v":""},{"$f":"IF('1. Order'!AT977=\"\",\"\",'1. Order'!AT977)","v":""},null,null,null,null,null,null,null,{"$f":"IF('1. Order'!AX977=\"\",\"\",'1. Order'!AX977)","v":""},{"$f":"IF('1. Order'!AY977=\"\",\"\",'1. Order'!AY977)","v":""},{"$f":"IF('1. Order'!AZ977=\"\",\"\",'1. Order'!AZ977)","v":""},{"$f":"IF('1. Order'!BA977=\"\",\"\",'1. Order'!BA977)","v":""},{"$f":"IF('1. Order'!BC977=\"\",\"\",'1. Order'!BC977)","v":""},{"$f":"IF('1. Order'!BD977=\"\",\"\",'1. Order'!BD977)","v":6},{"$f":"IF('1. Order'!BE977=\"\",\"\",'1. Order'!BE977)","v":"None"},{"$f":"IF('1. Order'!BF977=\"\",\"\",'1. Order'!BF977)","v":"Parcel"},{"$f":"IF('1. Order'!BG977=\"\",\"\",'1. Order'!BG977)","v":"ZWO"}]
[{"$f":"IF('1. Order'!F978=\"\",\"\",'1. Order'!F978)","v":""},{"$f":"IF('1. Order'!G978=\"\",\"\",'1. Order'!G978)","v":""},{"$f":"IF('1. Order'!H978=\"\",\"\",'1. Order'!H978)","v":""},{"$f":"IF('1. Order'!I978=\"\",\"\",'1. Order'!I978)","v":""},{"$f":"IF('1. Order'!J978=\"\",\"\",'1. Order'!J978)","v":""},{"$f":"IF('1. Order'!K978=\"\",\"\",'1. Order'!K978)","v":""},{"$f":"IF('1. Order'!L978=\"\",\"\",'1. Order'!L978)","v":""},{"$f":"IF('1. Order'!M978=\"\",\"\",'1. Order'!M978)","v":""},{"$f":"IF('1. Order'!N978=\"\",\"\",'1. Order'!N978)","v":""},{"$f":"IF('1. Order'!O978=\"\",\"\",'1. Order'!O978)","v":{"$error":"#N/A"}},{"$f":"IF('1. Order'!P978=\"\",\"\",'1. Order'!P978)","v":{"$error":"#N/A"}},{"$f":"IF('1. Order'!Q978=\"\",\"\",'1. Order'!Q978)","v":""},{"$f":"IF('1. Order'!R978=\"\",\"\",'1. Order'!R978)","v":""},{"$f":"IF('1. Order'!S978=\"\",\"\",'1. Order'!S978)","v":""},{"$f":"IF('1. Order'!V978=\"\",\"\",'1. Order'!V978)","v":""},{"$f":"IF('1. Order'!W978=\"\",\"\",'1. Order'!W978)","v":""},{"$f":"IF('1. Order'!X978=\"\",\"\",'1. Order'!X978)","v":"EUR"},{"$f":"IF('1. Order'!Y978=\"\",\"\",'1. Order'!Y978)","v":""},{"$f":"IF('1. Order'!Z978=\"\",\"\",'1. Order'!Z978)","v":""},{"$f":"IF('1. Order'!AA978=\"\",\"\",'1. Order'!AA978)","v":""},null,{"$f":"IF('1. Order'!AS978=\"\",\"\",'1. Order'!AS978)","v":""},{"$f":"IF('1. Order'!AT978=\"\",\"\",'1. Order'!AT978)","v":""},null,null,null,null,null,null,null,{"$f":"IF('1. Order'!AX978=\"\",\"\",'1. Order'!AX978)","v":""},{"$f":"IF('1. Order'!AY978=\"\",\"\",'1. Order'!AY978)","v":""},{"$f":"IF('1. Order'!AZ978=\"\",\"\",'1. Order'!AZ978)","v":""},{"$f":"IF('1. Order'!BA978=\"\",\"\",'1. Order'!BA978)","v":""},{"$f":"IF('1. Order'!BC978=\"\",\"\",'1. Order'!BC978)","v":""},{"$f":"IF('1. Order'!BD978=\"\",\"\",'1. Order'!BD978)","v":6},{"$f":"IF('1. Order'!BE978=\"\",\"\",'1. Order'!BE978)","v":"None"},{"$f":"IF('1. Order'!BF978=\"\",\"\",'1. Order'!BF978)","v":"Parcel"},{"$f":"IF('1. Order'!BG978=\"\",\"\",'1. Order'!BG978)","v":"ZWO"}]
[{"$f":"IF('1. Order'!F979=\"\",\"\",'1. Order'!F979)","v":""},{"$f":"IF('1. Order'!G979=\"\",\"\",'1. Order'!G979)","v":""},{"$f":"IF('1. Order'!H979=\"\",\"\",'1. Order'!H979)","v":""},{"$f":"IF('1. Order'!I979=\"\",\"\",'1. Order'!I979)","v":""},{"$f":"IF('1. Order'!J979=\"\",\"\",'1. Order'!J979)","v":""},{"$f":"IF('1. Order'!K979=\"\",\"\",'1. Order'!K979)","v":""},{"$f":"IF('1. Order'!L979=\"\",\"\",'1. Order'!L979)","v":""},{"$f":"IF('1. Order'!M979=\"\",\"\",'1. Order'!M979)","v":""},{"$f":"IF('1. Order'!N979=\"\",\"\",'1. Order'!N979)","v":""},{"$f":"IF('1. Order'!O979=\"\",\"\",'1. Order'!O979)","v":{"$error":"#N/A"}},{"$f":"IF('1. Order'!P979=\"\",\"\",'1. Order'!P979)","v":{"$error":"#N/A"}},{"$f":"IF('1. Order'!Q979=\"\",\"\",'1. Order'!Q979)","v":""},{"$f":"IF('1. Order'!R979=\"\",\"\",'1. Order'!R979)","v":""},{"$f":"IF('1. Order'!S979=\"\",\"\",'1. Order'!S979)","v":""},{"$f":"IF('1. Order'!V979=\"\",\"\",'1. Order'!V979)","v":""},{"$f":"IF('1. Order'!W979=\"\",\"\",'1. Order'!W979)","v":""},{"$f":"IF('1. Order'!X979=\"\",\"\",'1. Order'!X979)","v":"EUR"},{"$f":"IF('1. Order'!Y979=\"\",\"\",'1. Order'!Y979)","v":""},{"$f":"IF('1. Order'!Z979=\"\",\"\",'1. Order'!Z979)","v":""},{"$f":"IF('1. Order'!AA979=\"\",\"\",'1. Order'!AA979)","v":""},null,{"$f":"IF('1. Order'!AS979=\"\",\"\",'1. Order'!AS979)","v":""},{"$f":"IF('1. Order'!AT979=\"\",\"\",'1. Order'!AT979)","v":""},null,null,null,null,null,null,null,{"$f":"IF('1. Order'!AX979=\"\",\"\",'1. Order'!AX979)","v":""},{"$f":"IF('1. Order'!AY979=\"\",\"\",'1. Order'!AY979)","v":""},{"$f":"IF('1. Order'!AZ979=\"\",\"\",'1. Order'!AZ979)","v":""},{"$f":"IF('1. Order'!BA979=\"\",\"\",'1. Order'!BA979)","v":""},{"$f":"IF('1. Order'!BC979=\"\",\"\",'1. Order'!BC979)","v":""},{"$f":"IF('1. Order'!BD979=\"\",\"\",'1. Order'!BD979)","v":6},{"$f":"IF('1. Order'!BE979=\"\",\"\",'1. Order'!BE979)","v":"None"},{"$f":"IF('1. Order'!BF979=\"\",\"\",'1. Order'!BF979)","v":"Parcel"},{"$f":"IF('1. Order'!BG979=\"\",\"\",'1. Order'!BG979)","v":"ZWO"}]
[{"$f":"IF('1. Order'!F980=\"\",\"\",'1. Order'!F980)","v":""},{"$f":"IF('1. Order'!G980=\"\",\"\",'1. Order'!G980)","v":""},{"$f":"IF('1. Order'!H980=\"\",\"\",'1. Order'!H980)","v":""},{"$f":"IF('1. Order'!I980=\"\",\"\",'1. Order'!I980)","v":""},{"$f":"IF('1. Order'!J980=\"\",\"\",'1. Order'!J980)","v":""},{"$f":"IF('1. Order'!K980=\"\",\"\",'1. Order'!K980)","v":""},{"$f":"IF('1. Order'!L980=\"\",\"\",'1. Order'!L980)","v":""},{"$f":"IF('1. Order'!M980=\"\",\"\",'1. Order'!M980)","v":""},{"$f":"IF('1. Order'!N980=\"\",\"\",'1. Order'!N980)","v":""},{"$f":"IF('1. Order'!O980=\"\",\"\",'1. Order'!O980)","v":{"$error":"#N/A"}},{"$f":"IF('1. Order'!P980=\"\",\"\",'1. Order'!P980)","v":{"$error":"#N/A"}},{"$f":"IF('1. Order'!Q980=\"\",\"\",'1. Order'!Q980)","v":""},{"$f":"IF('1. Order'!R980=\"\",\"\",'1. Order'!R980)","v":""},{"$f":"IF('1. Order'!S980=\"\",\"\",'1. Order'!S980)","v":""},{"$f":"IF('1. Order'!V980=\"\",\"\",'1. Order'!V980)","v":""},{"$f":"IF('1. Order'!W980=\"\",\"\",'1. Order'!W980)","v":""},{"$f":"IF('1. Order'!X980=\"\",\"\",'1. Order'!X980)","v":"EUR"},{"$f":"IF('1. Order'!Y980=\"\",\"\",'1. Order'!Y980)","v":""},{"$f":"IF('1. Order'!Z980=\"\",\"\",'1. Order'!Z980)","v":""},{"$f":"IF('1. Order'!AA980=\"\",\"\",'1. Order'!AA980)","v":""},null,{"$f":"IF('1. Order'!AS980=\"\",\"\",'1. Order'!AS980)","v":""},{"$f":"IF('1. Order'!AT980=\"\",\"\",'1. Order'!AT980)","v":""},null,null,null,null,null,null,null,{"$f":"IF('1. Order'!AX980=\"\",\"\",'1. Order'!AX980)","v":""},{"$f":"IF('1. Order'!AY980=\"\",\"\",'1. Order'!AY980)","v":""},{"$f":"IF('1. Order'!AZ980=\"\",\"\",'1. Order'!AZ980)","v":""},{"$f":"IF('1. Order'!BA980=\"\",\"\",'1. Order'!BA980)","v":""},{"$f":"IF('1. Order'!BC980=\"\",\"\",'1. Order'!BC980)","v":""},{"$f":"IF('1. Order'!BD980=\"\",\"\",'1. Order'!BD980)","v":6},{"$f":"IF('1. Order'!BE980=\"\",\"\",'1. Order'!BE980)","v":"None"},{"$f":"IF('1. Order'!BF980=\"\",\"\",'1. Order'!BF980)","v":"Parcel"},{"$f":"IF('1. Order'!BG980=\"\",\"\",'1. Order'!BG980)","v":"ZWO"}]
[{"$f":"IF('1. Order'!F981=\"\",\"\",'1. Order'!F981)","v":""},{"$f":"IF('1. Order'!G981=\"\",\"\",'1. Order'!G981)","v":""},{"$f":"IF('1. Order'!H981=\"\",\"\",'1. Order'!H981)","v":""},{"$f":"IF('1. Order'!I981=\"\",\"\",'1. Order'!I981)","v":""},{"$f":"IF('1. Order'!J981=\"\",\"\",'1. Order'!J981)","v":""},{"$f":"IF('1. Order'!K981=\"\",\"\",'1. Order'!K981)","v":""},{"$f":"IF('1. Order'!L981=\"\",\"\",'1. Order'!L981)","v":""},{"$f":"IF('1. Order'!M981=\"\",\"\",'1. Order'!M981)","v":""},{"$f":"IF('1. Order'!N981=\"\",\"\",'1. Order'!N981)","v":""},{"$f":"IF('1. Order'!O981=\"\",\"\",'1. Order'!O981)","v":{"$error":"#N/A"}},{"$f":"IF('1. Order'!P981=\"\",\"\",'1. Order'!P981)","v":{"$error":"#N/A"}},{"$f":"IF('1. Order'!Q981=\"\",\"\",'1. Order'!Q981)","v":""},{"$f":"IF('1. Order'!R981=\"\",\"\",'1. Order'!R981)","v":""},{"$f":"IF('1. Order'!S981=\"\",\"\",'1. Order'!S981)","v":""},{"$f":"IF('1. Order'!V981=\"\",\"\",'1. Order'!V981)","v":""},{"$f":"IF('1. Order'!W981=\"\",\"\",'1. Order'!W981)","v":""},{"$f":"IF('1. Order'!X981=\"\",\"\",'1. Order'!X981)","v":"EUR"},{"$f":"IF('1. Order'!Y981=\"\",\"\",'1. Order'!Y981)","v":""},{"$f":"IF('1. Order'!Z981=\"\",\"\",'1. Order'!Z981)","v":""},{"$f":"IF('1. Order'!AA981=\"\",\"\",'1. Order'!AA981)","v":""},null,{"$f":"IF('1. Order'!AS981=\"\",\"\",'1. Order'!AS981)","v":""},{"$f":"IF('1. Order'!AT981=\"\",\"\",'1. Order'!AT981)","v":""},null,null,null,null,null,null,null,{"$f":"IF('1. Order'!AX981=\"\",\"\",'1. Order'!AX981)","v":""},{"$f":"IF('1. Order'!AY981=\"\",\"\",'1. Order'!AY981)","v":""},{"$f":"IF('1. Order'!AZ981=\"\",\"\",'1. Order'!AZ981)","v":""},{"$f":"IF('1. Order'!BA981=\"\",\"\",'1. Order'!BA981)","v":""},{"$f":"IF('1. Order'!BC981=\"\",\"\",'1. Order'!BC981)","v":""},{"$f":"IF('1. Order'!BD981=\"\",\"\",'1. Order'!BD981)","v":6},{"$f":"IF('1. Order'!BE981=\"\",\"\",'1. Order'!BE981)","v":"None"},{"$f":"IF('1. Order'!BF981=\"\",\"\",'1. Order'!BF981)","v":"Parcel"},{"$f":"IF('1. Order'!BG981=\"\",\"\",'1. Order'!BG981)","v":"ZWO"}]
[{"$f":"IF('1. Order'!F982=\"\",\"\",'1. Order'!F982)","v":""},{"$f":"IF('1. Order'!G982=\"\",\"\",'1. Order'!G982)","v":""},{"$f":"IF('1. Order'!H982=\"\",\"\",'1. Order'!H982)","v":""},{"$f":"IF('1. Order'!I982=\"\",\"\",'1. Order'!I982)","v":""},{"$f":"IF('1. Order'!J982=\"\",\"\",'1. Order'!J982)","v":""},{"$f":"IF('1. Order'!K982=\"\",\"\",'1. Order'!K982)","v":""},{"$f":"IF('1. Order'!L982=\"\",\"\",'1. Order'!L982)","v":""},{"$f":"IF('1. Order'!M982=\"\",\"\",'1. Order'!M982)","v":""},{"$f":"IF('1. Order'!N982=\"\",\"\",'1. Order'!N982)","v":""},{"$f":"IF('1. Order'!O982=\"\",\"\",'1. Order'!O982)","v":{"$error":"#N/A"}},{"$f":"IF('1. Order'!P982=\"\",\"\",'1. Order'!P982)","v":{"$error":"#N/A"}},{"$f":"IF('1. Order'!Q982=\"\",\"\",'1. Order'!Q982)","v":""},{"$f":"IF('1. Order'!R982=\"\",\"\",'1. Order'!R982)","v":""},{"$f":"IF('1. Order'!S982=\"\",\"\",'1. Order'!S982)","v":""},{"$f":"IF('1. Order'!V982=\"\",\"\",'1. Order'!V982)","v":""},{"$f":"IF('1. Order'!W982=\"\",\"\",'1. Order'!W982)","v":""},{"$f":"IF('1. Order'!X982=\"\",\"\",'1. Order'!X982)","v":"EUR"},{"$f":"IF('1. Order'!Y982=\"\",\"\",'1. Order'!Y982)","v":""},{"$f":"IF('1. Order'!Z982=\"\",\"\",'1. Order'!Z982)","v":""},{"$f":"IF('1. Order'!AA982=\"\",\"\",'1. Order'!AA982)","v":""},null,{"$f":"IF('1. Order'!AS982=\"\",\"\",'1. Order'!AS982)","v":""},{"$f":"IF('1. Order'!AT982=\"\",\"\",'1. Order'!AT982)","v":""},null,null,null,null,null,null,null,{"$f":"IF('1. Order'!AX982=\"\",\"\",'1. Order'!AX982)","v":""},{"$f":"IF('1. Order'!AY982=\"\",\"\",'1. Order'!AY982)","v":""},{"$f":"IF('1. Order'!AZ982=\"\",\"\",'1. Order'!AZ982)","v":""},{"$f":"IF('1. Order'!BA982=\"\",\"\",'1. Order'!BA982)","v":""},{"$f":"IF('1. Order'!BC982=\"\",\"\",'1. Order'!BC982)","v":""},{"$f":"IF('1. Order'!BD982=\"\",\"\",'1. Order'!BD982)","v":6},{"$f":"IF('1. Order'!BE982=\"\",\"\",'1. Order'!BE982)","v":"None"},{"$f":"IF('1. Order'!BF982=\"\",\"\",'1. Order'!BF982)","v":"Parcel"},{"$f":"IF('1. Order'!BG982=\"\",\"\",'1. Order'!BG982)","v":"ZWO"}]
[{"$f":"IF('1. Order'!F983=\"\",\"\",'1. Order'!F983)","v":""},{"$f":"IF('1. Order'!G983=\"\",\"\",'1. Order'!G983)","v":""},{"$f":"IF('1. Order'!H983=\"\",\"\",'1. Order'!H983)","v":""},{"$f":"IF('1. Order'!I983=\"\",\"\",'1. Order'!I983)","v":""},{"$f":"IF('1. Order'!J983=\"\",\"\",'1. Order'!J983)","v":""},{"$f":"IF('1. Order'!K983=\"\",\"\",'1. Order'!K983)","v":""},{"$f":"IF('1. Order'!L983=\"\",\"\",'1. Order'!L983)","v":""},{"$f":"IF('1. Order'!M983=\"\",\"\",'1. Order'!M983)","v":""},{"$f":"IF('1. Order'!N983=\"\",\"\",'1. Order'!N983)","v":""},{"$f":"IF('1. Order'!O983=\"\",\"\",'1. Order'!O983)","v":{"$error":"#N/A"}},{"$f":"IF('1. Order'!P983=\"\",\"\",'1. Order'!P983)","v":{"$error":"#N/A"}},{"$f":"IF('1. Order'!Q983=\"\",\"\",'1. Order'!Q983)","v":""},{"$f":"IF('1. Order'!R983=\"\",\"\",'1. Order'!R983)","v":""},{"$f":"IF('1. Order'!S983=\"\",\"\",'1. Order'!S983)","v":""},{"$f":"IF('1. Order'!V983=\"\",\"\",'1. Order'!V983)","v":""},{"$f":"IF('1. Order'!W983=\"\",\"\",'1. Order'!W983)","v":""},{"$f":"IF('1. Order'!X983=\"\",\"\",'1. Order'!X983)","v":"EUR"},{"$f":"IF('1. Order'!Y983=\"\",\"\",'1. Order'!Y983)","v":""},{"$f":"IF('1. Order'!Z983=\"\",\"\",'1. Order'!Z983)","v":""},{"$f":"IF('1. Order'!AA983=\"\",\"\",'1. Order'!AA983)","v":""},null,{"$f":"IF('1. Order'!AS983=\"\",\"\",'1. Order'!AS983)","v":""},{"$f":"IF('1. Order'!AT983=\"\",\"\",'1. Order'!AT983)","v":""},null,null,null,null,null,null,null,{"$f":"IF('1. Order'!AX983=\"\",\"\",'1. Order'!AX983)","v":""},{"$f":"IF('1. Order'!AY983=\"\",\"\",'1. Order'!AY983)","v":""},{"$f":"IF('1. Order'!AZ983=\"\",\"\",'1. Order'!AZ983)","v":""},{"$f":"IF('1. Order'!BA983=\"\",\"\",'1. Order'!BA983)","v":""},{"$f":"IF('1. Order'!BC983=\"\",\"\",'1. Order'!BC983)","v":""},{"$f":"IF('1. Order'!BD983=\"\",\"\",'1. Order'!BD983)","v":6},{"$f":"IF('1. Order'!BE983=\"\",\"\",'1. Order'!BE983)","v":"None"},{"$f":"IF('1. Order'!BF983=\"\",\"\",'1. Order'!BF983)","v":"Parcel"},{"$f":"IF('1. Order'!BG983=\"\",\"\",'1. Order'!BG983)","v":"ZWO"}]
[{"$f":"IF('1. Order'!F984=\"\",\"\",'1. Order'!F984)","v":""},{"$f":"IF('1. Order'!G984=\"\",\"\",'1. Order'!G984)","v":""},{"$f":"IF('1. Order'!H984=\"\",\"\",'1. Order'!H984)","v":""},{"$f":"IF('1. Order'!I984=\"\",\"\",'1. Order'!I984)","v":""},{"$f":"IF('1. Order'!J984=\"\",\"\",'1. Order'!J984)","v":""},{"$f":"IF('1. Order'!K984=\"\",\"\",'1. Order'!K984)","v":""},{"$f":"IF('1. Order'!L984=\"\",\"\",'1. Order'!L984)","v":""},{"$f":"IF('1. Order'!M984=\"\",\"\",'1. Order'!M984)","v":""},{"$f":"IF('1. Order'!N984=\"\",\"\",'1. Order'!N984)","v":""},{"$f":"IF('1. Order'!O984=\"\",\"\",'1. Order'!O984)","v":{"$error":"#N/A"}},{"$f":"IF('1. Order'!P984=\"\",\"\",'1. Order'!P984)","v":{"$error":"#N/A"}},{"$f":"IF('1. Order'!Q984=\"\",\"\",'1. Order'!Q984)","v":""},{"$f":"IF('1. Order'!R984=\"\",\"\",'1. Order'!R984)","v":""},{"$f":"IF('1. Order'!S984=\"\",\"\",'1. Order'!S984)","v":""},{"$f":"IF('1. Order'!V984=\"\",\"\",'1. Order'!V984)","v":""},{"$f":"IF('1. Order'!W984=\"\",\"\",'1. Order'!W984)","v":""},{"$f":"IF('1. Order'!X984=\"\",\"\",'1. Order'!X984)","v":"EUR"},{"$f":"IF('1. Order'!Y984=\"\",\"\",'1. Order'!Y984)","v":""},{"$f":"IF('1. Order'!Z984=\"\",\"\",'1. Order'!Z984)","v":""},{"$f":"IF('1. Order'!AA984=\"\",\"\",'1. Order'!AA984)","v":""},null,{"$f":"IF('1. Order'!AS984=\"\",\"\",'1. Order'!AS984)","v":""},{"$f":"IF('1. Order'!AT984=\"\",\"\",'1. Order'!AT984)","v":""},null,null,null,null,null,null,null,{"$f":"IF('1. Order'!AX984=\"\",\"\",'1. Order'!AX984)","v":""},{"$f":"IF('1. Order'!AY984=\"\",\"\",'1. Order'!AY984)","v":""},{"$f":"IF('1. Order'!AZ984=\"\",\"\",'1. Order'!AZ984)","v":""},{"$f":"IF('1. Order'!BA984=\"\",\"\",'1. Order'!BA984)","v":""},{"$f":"IF('1. Order'!BC984=\"\",\"\",'1. Order'!BC984)","v":""},{"$f":"IF('1. Order'!BD984=\"\",\"\",'1. Order'!BD984)","v":6},{"$f":"IF('1. Order'!BE984=\"\",\"\",'1. Order'!BE984)","v":"None"},{"$f":"IF('1. Order'!BF984=\"\",\"\",'1. Order'!BF984)","v":"Parcel"},{"$f":"IF('1. Order'!BG984=\"\",\"\",'1. Order'!BG984)","v":"ZWO"}]
[{"$f":"IF('1. Order'!F985=\"\",\"\",'1. Order'!F985)","v":""},{"$f":"IF('1. Order'!G985=\"\",\"\",'1. Order'!G985)","v":""},{"$f":"IF('1. Order'!H985=\"\",\"\",'1. Order'!H985)","v":""},{"$f":"IF('1. Order'!I985=\"\",\"\",'1. Order'!I985)","v":""},{"$f":"IF('1. Order'!J985=\"\",\"\",'1. Order'!J985)","v":""},{"$f":"IF('1. Order'!K985=\"\",\"\",'1. Order'!K985)","v":""},{"$f":"IF('1. Order'!L985=\"\",\"\",'1. Order'!L985)","v":""},{"$f":"IF('1. Order'!M985=\"\",\"\",'1. Order'!M985)","v":""},{"$f":"IF('1. Order'!N985=\"\",\"\",'1. Order'!N985)","v":""},{"$f":"IF('1. Order'!O985=\"\",\"\",'1. Order'!O985)","v":{"$error":"#N/A"}},{"$f":"IF('1. Order'!P985=\"\",\"\",'1. Order'!P985)","v":{"$error":"#N/A"}},{"$f":"IF('1. Order'!Q985=\"\",\"\",'1. Order'!Q985)","v":""},{"$f":"IF('1. Order'!R985=\"\",\"\",'1. Order'!R985)","v":""},{"$f":"IF('1. Order'!S985=\"\",\"\",'1. Order'!S985)","v":""},{"$f":"IF('1. Order'!V985=\"\",\"\",'1. Order'!V985)","v":""},{"$f":"IF('1. Order'!W985=\"\",\"\",'1. Order'!W985)","v":""},{"$f":"IF('1. Order'!X985=\"\",\"\",'1. Order'!X985)","v":"EUR"},{"$f":"IF('1. Order'!Y985=\"\",\"\",'1. Order'!Y985)","v":""},{"$f":"IF('1. Order'!Z985=\"\",\"\",'1. Order'!Z985)","v":""},{"$f":"IF('1. Order'!AA985=\"\",\"\",'1. Order'!AA985)","v":""},null,{"$f":"IF('1. Order'!AS985=\"\",\"\",'1. Order'!AS985)","v":""},{"$f":"IF('1. Order'!AT985=\"\",\"\",'1. Order'!AT985)","v":""},null,null,null,null,null,null,null,{"$f":"IF('1. Order'!AX985=\"\",\"\",'1. Order'!AX985)","v":""},{"$f":"IF('1. Order'!AY985=\"\",\"\",'1. Order'!AY985)","v":""},{"$f":"IF('1. Order'!AZ985=\"\",\"\",'1. Order'!AZ985)","v":""},{"$f":"IF('1. Order'!BA985=\"\",\"\",'1. Order'!BA985)","v":""},{"$f":"IF('1. Order'!BC985=\"\",\"\",'1. Order'!BC985)","v":""},{"$f":"IF('1. Order'!BD985=\"\",\"\",'1. Order'!BD985)","v":6},{"$f":"IF('1. Order'!BE985=\"\",\"\",'1. Order'!BE985)","v":"None"},{"$f":"IF('1. Order'!BF985=\"\",\"\",'1. Order'!BF985)","v":"Parcel"},{"$f":"IF('1. Order'!BG985=\"\",\"\",'1. Order'!BG985)","v":"ZWO"}]
[{"$f":"IF('1. Order'!F986=\"\",\"\",'1. Order'!F986)","v":""},{"$f":"IF('1. Order'!G986=\"\",\"\",'1. Order'!G986)","v":""},{"$f":"IF('1. Order'!H986=\"\",\"\",'1. Order'!H986)","v":""},{"$f":"IF('1. Order'!I986=\"\",\"\",'1. Order'!I986)","v":""},{"$f":"IF('1. Order'!J986=\"\",\"\",'1. Order'!J986)","v":""},{"$f":"IF('1. Order'!K986=\"\",\"\",'1. Order'!K986)","v":""},{"$f":"IF('1. Order'!L986=\"\",\"\",'1. Order'!L986)","v":""},{"$f":"IF('1. Order'!M986=\"\",\"\",'1. Order'!M986)","v":""},{"$f":"IF('1. Order'!N986=\"\",\"\",'1. Order'!N986)","v":""},{"$f":"IF('1. Order'!O986=\"\",\"\",'1. Order'!O986)","v":{"$error":"#N/A"}},{"$f":"IF('1. Order'!P986=\"\",\"\",'1. Order'!P986)","v":{"$error":"#N/A"}},{"$f":"IF('1. Order'!Q986=\"\",\"\",'1. Order'!Q986)","v":""},{"$f":"IF('1. Order'!R986=\"\",\"\",'1. Order'!R986)","v":""},{"$f":"IF('1. Order'!S986=\"\",\"\",'1. Order'!S986)","v":""},{"$f":"IF('1. Order'!V986=\"\",\"\",'1. Order'!V986)","v":""},{"$f":"IF('1. Order'!W986=\"\",\"\",'1. Order'!W986)","v":""},{"$f":"IF('1. Order'!X986=\"\",\"\",'1. Order'!X986)","v":"EUR"},{"$f":"IF('1. Order'!Y986=\"\",\"\",'1. Order'!Y986)","v":""},{"$f":"IF('1. Order'!Z986=\"\",\"\",'1. Order'!Z986)","v":""},{"$f":"IF('1. Order'!AA986=\"\",\"\",'1. Order'!AA986)","v":""},null,{"$f":"IF('1. Order'!AS986=\"\",\"\",'1. Order'!AS986)","v":""},{"$f":"IF('1. Order'!AT986=\"\",\"\",'1. Order'!AT986)","v":""},null,null,null,null,null,null,null,{"$f":"IF('1. Order'!AX986=\"\",\"\",'1. Order'!AX986)","v":""},{"$f":"IF('1. Order'!AY986=\"\",\"\",'1. Order'!AY986)","v":""},{"$f":"IF('1. Order'!AZ986=\"\",\"\",'1. Order'!AZ986)","v":""},{"$f":"IF('1. Order'!BA986=\"\",\"\",'1. Order'!BA986)","v":""},{"$f":"IF('1. Order'!BC986=\"\",\"\",'1. Order'!BC986)","v":""},{"$f":"IF('1. Order'!BD986=\"\",\"\",'1. Order'!BD986)","v":6},{"$f":"IF('1. Order'!BE986=\"\",\"\",'1. Order'!BE986)","v":"None"},{"$f":"IF('1. Order'!BF986=\"\",\"\",'1. Order'!BF986)","v":"Parcel"},{"$f":"IF('1. Order'!BG986=\"\",\"\",'1. Order'!BG986)","v":"ZWO"}]
[{"$f":"IF('1. Order'!F987=\"\",\"\",'1. Order'!F987)","v":""},{"$f":"IF('1. Order'!G987=\"\",\"\",'1. Order'!G987)","v":""},{"$f":"IF('1. Order'!H987=\"\",\"\",'1. Order'!H987)","v":""},{"$f":"IF('1. Order'!I987=\"\",\"\",'1. Order'!I987)","v":""},{"$f":"IF('1. Order'!J987=\"\",\"\",'1. Order'!J987)","v":""},{"$f":"IF('1. Order'!K987=\"\",\"\",'1. Order'!K987)","v":""},{"$f":"IF('1. Order'!L987=\"\",\"\",'1. Order'!L987)","v":""},{"$f":"IF('1. Order'!M987=\"\",\"\",'1. Order'!M987)","v":""},{"$f":"IF('1. Order'!N987=\"\",\"\",'1. Order'!N987)","v":""},{"$f":"IF('1. Order'!O987=\"\",\"\",'1. Order'!O987)","v":{"$error":"#N/A"}},{"$f":"IF('1. Order'!P987=\"\",\"\",'1. Order'!P987)","v":{"$error":"#N/A"}},{"$f":"IF('1. Order'!Q987=\"\",\"\",'1. Order'!Q987)","v":""},{"$f":"IF('1. Order'!R987=\"\",\"\",'1. Order'!R987)","v":""},{"$f":"IF('1. Order'!S987=\"\",\"\",'1. Order'!S987)","v":""},{"$f":"IF('1. Order'!V987=\"\",\"\",'1. Order'!V987)","v":""},{"$f":"IF('1. Order'!W987=\"\",\"\",'1. Order'!W987)","v":""},{"$f":"IF('1. Order'!X987=\"\",\"\",'1. Order'!X987)","v":"EUR"},{"$f":"IF('1. Order'!Y987=\"\",\"\",'1. Order'!Y987)","v":""},{"$f":"IF('1. Order'!Z987=\"\",\"\",'1. Order'!Z987)","v":""},{"$f":"IF('1. Order'!AA987=\"\",\"\",'1. Order'!AA987)","v":""},null,{"$f":"IF('1. Order'!AS987=\"\",\"\",'1. Order'!AS987)","v":""},{"$f":"IF('1. Order'!AT987=\"\",\"\",'1. Order'!AT987)","v":""},null,null,null,null,null,null,null,{"$f":"IF('1. Order'!AX987=\"\",\"\",'1. Order'!AX987)","v":""},{"$f":"IF('1. Order'!AY987=\"\",\"\",'1. Order'!AY987)","v":""},{"$f":"IF('1. Order'!AZ987=\"\",\"\",'1. Order'!AZ987)","v":""},{"$f":"IF('1. Order'!BA987=\"\",\"\",'1. Order'!BA987)","v":""},{"$f":"IF('1. Order'!BC987=\"\",\"\",'1. Order'!BC987)","v":""},{"$f":"IF('1. Order'!BD987=\"\",\"\",'1. Order'!BD987)","v":6},{"$f":"IF('1. Order'!BE987=\"\",\"\",'1. Order'!BE987)","v":"None"},{"$f":"IF('1. Order'!BF987=\"\",\"\",'1. Order'!BF987)","v":"Parcel"},{"$f":"IF('1. Order'!BG987=\"\",\"\",'1. Order'!BG987)","v":"ZWO"}]
[{"$f":"IF('1. Order'!F988=\"\",\"\",'1. Order'!F988)","v":""},{"$f":"IF('1. Order'!G988=\"\",\"\",'1. Order'!G988)","v":""},{"$f":"IF('1. Order'!H988=\"\",\"\",'1. Order'!H988)","v":""},{"$f":"IF('1. Order'!I988=\"\",\"\",'1. Order'!I988)","v":""},{"$f":"IF('1. Order'!J988=\"\",\"\",'1. Order'!J988)","v":""},{"$f":"IF('1. Order'!K988=\"\",\"\",'1. Order'!K988)","v":""},{"$f":"IF('1. Order'!L988=\"\",\"\",'1. Order'!L988)","v":""},{"$f":"IF('1. Order'!M988=\"\",\"\",'1. Order'!M988)","v":""},{"$f":"IF('1. Order'!N988=\"\",\"\",'1. Order'!N988)","v":""},{"$f":"IF('1. Order'!O988=\"\",\"\",'1. Order'!O988)","v":{"$error":"#N/A"}},{"$f":"IF('1. Order'!P988=\"\",\"\",'1. Order'!P988)","v":{"$error":"#N/A"}},{"$f":"IF('1. Order'!Q988=\"\",\"\",'1. Order'!Q988)","v":""},{"$f":"IF('1. Order'!R988=\"\",\"\",'1. Order'!R988)","v":""},{"$f":"IF('1. Order'!S988=\"\",\"\",'1. Order'!S988)","v":""},{"$f":"IF('1. Order'!V988=\"\",\"\",'1. Order'!V988)","v":""},{"$f":"IF('1. Order'!W988=\"\",\"\",'1. Order'!W988)","v":""},{"$f":"IF('1. Order'!X988=\"\",\"\",'1. Order'!X988)","v":"EUR"},{"$f":"IF('1. Order'!Y988=\"\",\"\",'1. Order'!Y988)","v":""},{"$f":"IF('1. Order'!Z988=\"\",\"\",'1. Order'!Z988)","v":""},{"$f":"IF('1. Order'!AA988=\"\",\"\",'1. Order'!AA988)","v":""},null,{"$f":"IF('1. Order'!AS988=\"\",\"\",'1. Order'!AS988)","v":""},{"$f":"IF('1. Order'!AT988=\"\",\"\",'1. Order'!AT988)","v":""},null,null,null,null,null,null,null,{"$f":"IF('1. Order'!AX988=\"\",\"\",'1. Order'!AX988)","v":""},{"$f":"IF('1. Order'!AY988=\"\",\"\",'1. Order'!AY988)","v":""},{"$f":"IF('1. Order'!AZ988=\"\",\"\",'1. Order'!AZ988)","v":""},{"$f":"IF('1. Order'!BA988=\"\",\"\",'1. Order'!BA988)","v":""},{"$f":"IF('1. Order'!BC988=\"\",\"\",'1. Order'!BC988)","v":""},{"$f":"IF('1. Order'!BD988=\"\",\"\",'1. Order'!BD988)","v":6},{"$f":"IF('1. Order'!BE988=\"\",\"\",'1. Order'!BE988)","v":"None"},{"$f":"IF('1. Order'!BF988=\"\",\"\",'1. Order'!BF988)","v":"Parcel"},{"$f":"IF('1. Order'!BG988=\"\",\"\",'1. Order'!BG988)","v":"ZWO"}]
[{"$f":"IF('1. Order'!F989=\"\",\"\",'1. Order'!F989)","v":""},{"$f":"IF('1. Order'!G989=\"\",\"\",'1. Order'!G989)","v":""},{"$f":"IF('1. Order'!H989=\"\",\"\",'1. Order'!H989)","v":""},{"$f":"IF('1. Order'!I989=\"\",\"\",'1. Order'!I989)","v":""},{"$f":"IF('1. Order'!J989=\"\",\"\",'1. Order'!J989)","v":""},{"$f":"IF('1. Order'!K989=\"\",\"\",'1. Order'!K989)","v":""},{"$f":"IF('1. Order'!L989=\"\",\"\",'1. Order'!L989)","v":""},{"$f":"IF('1. Order'!M989=\"\",\"\",'1. Order'!M989)","v":""},{"$f":"IF('1. Order'!N989=\"\",\"\",'1. Order'!N989)","v":""},{"$f":"IF('1. Order'!O989=\"\",\"\",'1. Order'!O989)","v":{"$error":"#N/A"}},{"$f":"IF('1. Order'!P989=\"\",\"\",'1. Order'!P989)","v":{"$error":"#N/A"}},{"$f":"IF('1. Order'!Q989=\"\",\"\",'1. Order'!Q989)","v":""},{"$f":"IF('1. Order'!R989=\"\",\"\",'1. Order'!R989)","v":""},{"$f":"IF('1. Order'!S989=\"\",\"\",'1. Order'!S989)","v":""},{"$f":"IF('1. Order'!V989=\"\",\"\",'1. Order'!V989)","v":""},{"$f":"IF('1. Order'!W989=\"\",\"\",'1. Order'!W989)","v":""},{"$f":"IF('1. Order'!X989=\"\",\"\",'1. Order'!X989)","v":"EUR"},{"$f":"IF('1. Order'!Y989=\"\",\"\",'1. Order'!Y989)","v":""},{"$f":"IF('1. Order'!Z989=\"\",\"\",'1. Order'!Z989)","v":""},{"$f":"IF('1. Order'!AA989=\"\",\"\",'1. Order'!AA989)","v":""},null,{"$f":"IF('1. Order'!AS989=\"\",\"\",'1. Order'!AS989)","v":""},{"$f":"IF('1. Order'!AT989=\"\",\"\",'1. Order'!AT989)","v":""},null,null,null,null,null,null,null,{"$f":"IF('1. Order'!AX989=\"\",\"\",'1. Order'!AX989)","v":""},{"$f":"IF('1. Order'!AY989=\"\",\"\",'1. Order'!AY989)","v":""},{"$f":"IF('1. Order'!AZ989=\"\",\"\",'1. Order'!AZ989)","v":""},{"$f":"IF('1. Order'!BA989=\"\",\"\",'1. Order'!BA989)","v":""},{"$f":"IF('1. Order'!BC989=\"\",\"\",'1. Order'!BC989)","v":""},{"$f":"IF('1. Order'!BD989=\"\",\"\",'1. Order'!BD989)","v":6},{"$f":"IF('1. Order'!BE989=\"\",\"\",'1. Order'!BE989)","v":"None"},{"$f":"IF('1. Order'!BF989=\"\",\"\",'1. Order'!BF989)","v":"Parcel"},{"$f":"IF('1. Order'!BG989=\"\",\"\",'1. Order'!BG989)","v":"ZWO"}]
[{"$f":"IF('1. Order'!F990=\"\",\"\",'1. Order'!F990)","v":""},{"$f":"IF('1. Order'!G990=\"\",\"\",'1. Order'!G990)","v":""},{"$f":"IF('1. Order'!H990=\"\",\"\",'1. Order'!H990)","v":""},{"$f":"IF('1. Order'!I990=\"\",\"\",'1. Order'!I990)","v":""},{"$f":"IF('1. Order'!J990=\"\",\"\",'1. Order'!J990)","v":""},{"$f":"IF('1. Order'!K990=\"\",\"\",'1. Order'!K990)","v":""},{"$f":"IF('1. Order'!L990=\"\",\"\",'1. Order'!L990)","v":""},{"$f":"IF('1. Order'!M990=\"\",\"\",'1. Order'!M990)","v":""},{"$f":"IF('1. Order'!N990=\"\",\"\",'1. Order'!N990)","v":""},{"$f":"IF('1. Order'!O990=\"\",\"\",'1. Order'!O990)","v":{"$error":"#N/A"}},{"$f":"IF('1. Order'!P990=\"\",\"\",'1. Order'!P990)","v":{"$error":"#N/A"}},{"$f":"IF('1. Order'!Q990=\"\",\"\",'1. Order'!Q990)","v":""},{"$f":"IF('1. Order'!R990=\"\",\"\",'1. Order'!R990)","v":""},{"$f":"IF('1. Order'!S990=\"\",\"\",'1. Order'!S990)","v":""},{"$f":"IF('1. Order'!V990=\"\",\"\",'1. Order'!V990)","v":""},{"$f":"IF('1. Order'!W990=\"\",\"\",'1. Order'!W990)","v":""},{"$f":"IF('1. Order'!X990=\"\",\"\",'1. Order'!X990)","v":"EUR"},{"$f":"IF('1. Order'!Y990=\"\",\"\",'1. Order'!Y990)","v":""},{"$f":"IF('1. Order'!Z990=\"\",\"\",'1. Order'!Z990)","v":""},{"$f":"IF('1. Order'!AA990=\"\",\"\",'1. Order'!AA990)","v":""},null,{"$f":"IF('1. Order'!AS990=\"\",\"\",'1. Order'!AS990)","v":""},{"$f":"IF('1. Order'!AT990=\"\",\"\",'1. Order'!AT990)","v":""},null,null,null,null,null,null,null,{"$f":"IF('1. Order'!AX990=\"\",\"\",'1. Order'!AX990)","v":""},{"$f":"IF('1. Order'!AY990=\"\",\"\",'1. Order'!AY990)","v":""},{"$f":"IF('1. Order'!AZ990=\"\",\"\",'1. Order'!AZ990)","v":""},{"$f":"IF('1. Order'!BA990=\"\",\"\",'1. Order'!BA990)","v":""},{"$f":"IF('1. Order'!BC990=\"\",\"\",'1. Order'!BC990)","v":""},{"$f":"IF('1. Order'!BD990=\"\",\"\",'1. Order'!BD990)","v":6},{"$f":"IF('1. Order'!BE990=\"\",\"\",'1. Order'!BE990)","v":"None"},{"$f":"IF('1. Order'!BF990=\"\",\"\",'1. Order'!BF990)","v":"Parcel"},{"$f":"IF('1. Order'!BG990=\"\",\"\",'1. Order'!BG990)","v":"ZWO"}]
[{"$f":"IF('1. Order'!F991=\"\",\"\",'1. Order'!F991)","v":""},{"$f":"IF('1. Order'!G991=\"\",\"\",'1. Order'!G991)","v":""},{"$f":"IF('1. Order'!H991=\"\",\"\",'1. Order'!H991)","v":""},{"$f":"IF('1. Order'!I991=\"\",\"\",'1. Order'!I991)","v":""},{"$f":"IF('1. Order'!J991=\"\",\"\",'1. Order'!J991)","v":""},{"$f":"IF('1. Order'!K991=\"\",\"\",'1. Order'!K991)","v":""},{"$f":"IF('1. Order'!L991=\"\",\"\",'1. Order'!L991)","v":""},{"$f":"IF('1. Order'!M991=\"\",\"\",'1. Order'!M991)","v":""},{"$f":"IF('1. Order'!N991=\"\",\"\",'1. Order'!N991)","v":""},{"$f":"IF('1. Order'!O991=\"\",\"\",'1. Order'!O991)","v":{"$error":"#N/A"}},{"$f":"IF('1. Order'!P991=\"\",\"\",'1. Order'!P991)","v":{"$error":"#N/A"}},{"$f":"IF('1. Order'!Q991=\"\",\"\",'1. Order'!Q991)","v":""},{"$f":"IF('1. Order'!R991=\"\",\"\",'1. Order'!R991)","v":""},{"$f":"IF('1. Order'!S991=\"\",\"\",'1. Order'!S991)","v":""},{"$f":"IF('1. Order'!V991=\"\",\"\",'1. Order'!V991)","v":""},{"$f":"IF('1. Order'!W991=\"\",\"\",'1. Order'!W991)","v":""},{"$f":"IF('1. Order'!X991=\"\",\"\",'1. Order'!X991)","v":"EUR"},{"$f":"IF('1. Order'!Y991=\"\",\"\",'1. Order'!Y991)","v":""},{"$f":"IF('1. Order'!Z991=\"\",\"\",'1. Order'!Z991)","v":""},{"$f":"IF('1. Order'!AA991=\"\",\"\",'1. Order'!AA991)","v":""},null,{"$f":"IF('1. Order'!AS991=\"\",\"\",'1. Order'!AS991)","v":""},{"$f":"IF('1. Order'!AT991=\"\",\"\",'1. Order'!AT991)","v":""},null,null,null,null,null,null,null,{"$f":"IF('1. Order'!AX991=\"\",\"\",'1. Order'!AX991)","v":""},{"$f":"IF('1. Order'!AY991=\"\",\"\",'1. Order'!AY991)","v":""},{"$f":"IF('1. Order'!AZ991=\"\",\"\",'1. Order'!AZ991)","v":""},{"$f":"IF('1. Order'!BA991=\"\",\"\",'1. Order'!BA991)","v":""},{"$f":"IF('1. Order'!BC991=\"\",\"\",'1. Order'!BC991)","v":""},{"$f":"IF('1. Order'!BD991=\"\",\"\",'1. Order'!BD991)","v":6},{"$f":"IF('1. Order'!BE991=\"\",\"\",'1. Order'!BE991)","v":"None"},{"$f":"IF('1. Order'!BF991=\"\",\"\",'1. Order'!BF991)","v":"Parcel"},{"$f":"IF('1. Order'!BG991=\"\",\"\",'1. Order'!BG991)","v":"ZWO"}]
[{"$f":"IF('1. Order'!F992=\"\",\"\",'1. Order'!F992)","v":""},{"$f":"IF('1. Order'!G992=\"\",\"\",'1. Order'!G992)","v":""},{"$f":"IF('1. Order'!H992=\"\",\"\",'1. Order'!H992)","v":""},{"$f":"IF('1. Order'!I992=\"\",\"\",'1. Order'!I992)","v":""},{"$f":"IF('1. Order'!J992=\"\",\"\",'1. Order'!J992)","v":""},{"$f":"IF('1. Order'!K992=\"\",\"\",'1. Order'!K992)","v":""},{"$f":"IF('1. Order'!L992=\"\",\"\",'1. Order'!L992)","v":""},{"$f":"IF('1. Order'!M992=\"\",\"\",'1. Order'!M992)","v":""},{"$f":"IF('1. Order'!N992=\"\",\"\",'1. Order'!N992)","v":""},{"$f":"IF('1. Order'!O992=\"\",\"\",'1. Order'!O992)","v":{"$error":"#N/A"}},{"$f":"IF('1. Order'!P992=\"\",\"\",'1. Order'!P992)","v":{"$error":"#N/A"}},{"$f":"IF('1. Order'!Q992=\"\",\"\",'1. Order'!Q992)","v":""},{"$f":"IF('1. Order'!R992=\"\",\"\",'1. Order'!R992)","v":""},{"$f":"IF('1. Order'!S992=\"\",\"\",'1. Order'!S992)","v":""},{"$f":"IF('1. Order'!V992=\"\",\"\",'1. Order'!V992)","v":""},{"$f":"IF('1. Order'!W992=\"\",\"\",'1. Order'!W992)","v":""},{"$f":"IF('1. Order'!X992=\"\",\"\",'1. Order'!X992)","v":"EUR"},{"$f":"IF('1. Order'!Y992=\"\",\"\",'1. Order'!Y992)","v":""},{"$f":"IF('1. Order'!Z992=\"\",\"\",'1. Order'!Z992)","v":""},{"$f":"IF('1. Order'!AA992=\"\",\"\",'1. Order'!AA992)","v":""},null,{"$f":"IF('1. Order'!AS992=\"\",\"\",'1. Order'!AS992)","v":""},{"$f":"IF('1. Order'!AT992=\"\",\"\",'1. Order'!AT992)","v":""},null,null,null,null,null,null,null,{"$f":"IF('1. Order'!AX992=\"\",\"\",'1. Order'!AX992)","v":""},{"$f":"IF('1. Order'!AY992=\"\",\"\",'1. Order'!AY992)","v":""},{"$f":"IF('1. Order'!AZ992=\"\",\"\",'1. Order'!AZ992)","v":""},{"$f":"IF('1. Order'!BA992=\"\",\"\",'1. Order'!BA992)","v":""},{"$f":"IF('1. Order'!BC992=\"\",\"\",'1. Order'!BC992)","v":""},{"$f":"IF('1. Order'!BD992=\"\",\"\",'1. Order'!BD992)","v":6},{"$f":"IF('1. Order'!BE992=\"\",\"\",'1. Order'!BE992)","v":"None"},{"$f":"IF('1. Order'!BF992=\"\",\"\",'1. Order'!BF992)","v":"Parcel"},{"$f":"IF('1. Order'!BG992=\"\",\"\",'1. Order'!BG992)","v":"ZWO"}]
[{"$f":"IF('1. Order'!F993=\"\",\"\",'1. Order'!F993)","v":""},{"$f":"IF('1. Order'!G993=\"\",\"\",'1. Order'!G993)","v":""},{"$f":"IF('1. Order'!H993=\"\",\"\",'1. Order'!H993)","v":""},{"$f":"IF('1. Order'!I993=\"\",\"\",'1. Order'!I993)","v":""},{"$f":"IF('1. Order'!J993=\"\",\"\",'1. Order'!J993)","v":""},{"$f":"IF('1. Order'!K993=\"\",\"\",'1. Order'!K993)","v":""},{"$f":"IF('1. Order'!L993=\"\",\"\",'1. Order'!L993)","v":""},{"$f":"IF('1. Order'!M993=\"\",\"\",'1. Order'!M993)","v":""},{"$f":"IF('1. Order'!N993=\"\",\"\",'1. Order'!N993)","v":""},{"$f":"IF('1. Order'!O993=\"\",\"\",'1. Order'!O993)","v":{"$error":"#N/A"}},{"$f":"IF('1. Order'!P993=\"\",\"\",'1. Order'!P993)","v":{"$error":"#N/A"}},{"$f":"IF('1. Order'!Q993=\"\",\"\",'1. Order'!Q993)","v":""},{"$f":"IF('1. Order'!R993=\"\",\"\",'1. Order'!R993)","v":""},{"$f":"IF('1. Order'!S993=\"\",\"\",'1. Order'!S993)","v":""},{"$f":"IF('1. Order'!V993=\"\",\"\",'1. Order'!V993)","v":""},{"$f":"IF('1. Order'!W993=\"\",\"\",'1. Order'!W993)","v":""},{"$f":"IF('1. Order'!X993=\"\",\"\",'1. Order'!X993)","v":"EUR"},{"$f":"IF('1. Order'!Y993=\"\",\"\",'1. Order'!Y993)","v":""},{"$f":"IF('1. Order'!Z993=\"\",\"\",'1. Order'!Z993)","v":""},{"$f":"IF('1. Order'!AA993=\"\",\"\",'1. Order'!AA993)","v":""},null,{"$f":"IF('1. Order'!AS993=\"\",\"\",'1. Order'!AS993)","v":""},{"$f":"IF('1. Order'!AT993=\"\",\"\",'1. Order'!AT993)","v":""},null,null,null,null,null,null,null,{"$f":"IF('1. Order'!AX993=\"\",\"\",'1. Order'!AX993)","v":""},{"$f":"IF('1. Order'!AY993=\"\",\"\",'1. Order'!AY993)","v":""},{"$f":"IF('1. Order'!AZ993=\"\",\"\",'1. Order'!AZ993)","v":""},{"$f":"IF('1. Order'!BA993=\"\",\"\",'1. Order'!BA993)","v":""},{"$f":"IF('1. Order'!BC993=\"\",\"\",'1. Order'!BC993)","v":""},{"$f":"IF('1. Order'!BD993=\"\",\"\",'1. Order'!BD993)","v":6},{"$f":"IF('1. Order'!BE993=\"\",\"\",'1. Order'!BE993)","v":"None"},{"$f":"IF('1. Order'!BF993=\"\",\"\",'1. Order'!BF993)","v":"Parcel"},{"$f":"IF('1. Order'!BG993=\"\",\"\",'1. Order'!BG993)","v":"ZWO"}]
[{"$f":"IF('1. Order'!F994=\"\",\"\",'1. Order'!F994)","v":""},{"$f":"IF('1. Order'!G994=\"\",\"\",'1. Order'!G994)","v":""},{"$f":"IF('1. Order'!H994=\"\",\"\",'1. Order'!H994)","v":""},{"$f":"IF('1. Order'!I994=\"\",\"\",'1. Order'!I994)","v":""},{"$f":"IF('1. Order'!J994=\"\",\"\",'1. Order'!J994)","v":""},{"$f":"IF('1. Order'!K994=\"\",\"\",'1. Order'!K994)","v":""},{"$f":"IF('1. Order'!L994=\"\",\"\",'1. Order'!L994)","v":""},{"$f":"IF('1. Order'!M994=\"\",\"\",'1. Order'!M994)","v":""},{"$f":"IF('1. Order'!N994=\"\",\"\",'1. Order'!N994)","v":""},{"$f":"IF('1. Order'!O994=\"\",\"\",'1. Order'!O994)","v":{"$error":"#N/A"}},{"$f":"IF('1. Order'!P994=\"\",\"\",'1. Order'!P994)","v":{"$error":"#N/A"}},{"$f":"IF('1. Order'!Q994=\"\",\"\",'1. Order'!Q994)","v":""},{"$f":"IF('1. Order'!R994=\"\",\"\",'1. Order'!R994)","v":""},{"$f":"IF('1. Order'!S994=\"\",\"\",'1. Order'!S994)","v":""},{"$f":"IF('1. Order'!V994=\"\",\"\",'1. Order'!V994)","v":""},{"$f":"IF('1. Order'!W994=\"\",\"\",'1. Order'!W994)","v":""},{"$f":"IF('1. Order'!X994=\"\",\"\",'1. Order'!X994)","v":"EUR"},{"$f":"IF('1. Order'!Y994=\"\",\"\",'1. Order'!Y994)","v":""},{"$f":"IF('1. Order'!Z994=\"\",\"\",'1. Order'!Z994)","v":""},{"$f":"IF('1. Order'!AA994=\"\",\"\",'1. Order'!AA994)","v":""},null,{"$f":"IF('1. Order'!AS994=\"\",\"\",'1. Order'!AS994)","v":""},{"$f":"IF('1. Order'!AT994=\"\",\"\",'1. Order'!AT994)","v":""},null,null,null,null,null,null,null,{"$f":"IF('1. Order'!AX994=\"\",\"\",'1. Order'!AX994)","v":""},{"$f":"IF('1. Order'!AY994=\"\",\"\",'1. Order'!AY994)","v":""},{"$f":"IF('1. Order'!AZ994=\"\",\"\",'1. Order'!AZ994)","v":""},{"$f":"IF('1. Order'!BA994=\"\",\"\",'1. Order'!BA994)","v":""},{"$f":"IF('1. Order'!BC994=\"\",\"\",'1. Order'!BC994)","v":""},{"$f":"IF('1. Order'!BD994=\"\",\"\",'1. Order'!BD994)","v":6},{"$f":"IF('1. Order'!BE994=\"\",\"\",'1. Order'!BE994)","v":"None"},{"$f":"IF('1. Order'!BF994=\"\",\"\",'1. Order'!BF994)","v":"Parcel"},{"$f":"IF('1. Order'!BG994=\"\",\"\",'1. Order'!BG994)","v":"ZWO"}]
[{"$f":"IF('1. Order'!F995=\"\",\"\",'1. Order'!F995)","v":""},{"$f":"IF('1. Order'!G995=\"\",\"\",'1. Order'!G995)","v":""},{"$f":"IF('1. Order'!H995=\"\",\"\",'1. Order'!H995)","v":""},{"$f":"IF('1. Order'!I995=\"\",\"\",'1. Order'!I995)","v":""},{"$f":"IF('1. Order'!J995=\"\",\"\",'1. Order'!J995)","v":""},{"$f":"IF('1. Order'!K995=\"\",\"\",'1. Order'!K995)","v":""},{"$f":"IF('1. Order'!L995=\"\",\"\",'1. Order'!L995)","v":""},{"$f":"IF('1. Order'!M995=\"\",\"\",'1. Order'!M995)","v":""},{"$f":"IF('1. Order'!N995=\"\",\"\",'1. Order'!N995)","v":""},{"$f":"IF('1. Order'!O995=\"\",\"\",'1. Order'!O995)","v":{"$error":"#N/A"}},{"$f":"IF('1. Order'!P995=\"\",\"\",'1. Order'!P995)","v":{"$error":"#N/A"}},{"$f":"IF('1. Order'!Q995=\"\",\"\",'1. Order'!Q995)","v":""},{"$f":"IF('1. Order'!R995=\"\",\"\",'1. Order'!R995)","v":""},{"$f":"IF('1. Order'!S995=\"\",\"\",'1. Order'!S995)","v":""},{"$f":"IF('1. Order'!V995=\"\",\"\",'1. Order'!V995)","v":""},{"$f":"IF('1. Order'!W995=\"\",\"\",'1. Order'!W995)","v":""},{"$f":"IF('1. Order'!X995=\"\",\"\",'1. Order'!X995)","v":"EUR"},{"$f":"IF('1. Order'!Y995=\"\",\"\",'1. Order'!Y995)","v":""},{"$f":"IF('1. Order'!Z995=\"\",\"\",'1. Order'!Z995)","v":""},{"$f":"IF('1. Order'!AA995=\"\",\"\",'1. Order'!AA995)","v":""},null,{"$f":"IF('1. Order'!AS995=\"\",\"\",'1. Order'!AS995)","v":""},{"$f":"IF('1. Order'!AT995=\"\",\"\",'1. Order'!AT995)","v":""},null,null,null,null,null,null,null,{"$f":"IF('1. Order'!AX995=\"\",\"\",'1. Order'!AX995)","v":""},{"$f":"IF('1. Order'!AY995=\"\",\"\",'1. Order'!AY995)","v":""},{"$f":"IF('1. Order'!AZ995=\"\",\"\",'1. Order'!AZ995)","v":""},{"$f":"IF('1. Order'!BA995=\"\",\"\",'1. Order'!BA995)","v":""},{"$f":"IF('1. Order'!BC995=\"\",\"\",'1. Order'!BC995)","v":""},{"$f":"IF('1. Order'!BD995=\"\",\"\",'1. Order'!BD995)","v":6},{"$f":"IF('1. Order'!BE995=\"\",\"\",'1. Order'!BE995)","v":"None"},{"$f":"IF('1. Order'!BF995=\"\",\"\",'1. Order'!BF995)","v":"Parcel"},{"$f":"IF('1. Order'!BG995=\"\",\"\",'1. Order'!BG995)","v":"ZWO"}]
[{"$f":"IF('1. Order'!F996=\"\",\"\",'1. Order'!F996)","v":""},{"$f":"IF('1. Order'!G996=\"\",\"\",'1. Order'!G996)","v":""},{"$f":"IF('1. Order'!H996=\"\",\"\",'1. Order'!H996)","v":""},{"$f":"IF('1. Order'!I996=\"\",\"\",'1. Order'!I996)","v":""},{"$f":"IF('1. Order'!J996=\"\",\"\",'1. Order'!J996)","v":""},{"$f":"IF('1. Order'!K996=\"\",\"\",'1. Order'!K996)","v":""},{"$f":"IF('1. Order'!L996=\"\",\"\",'1. Order'!L996)","v":""},{"$f":"IF('1. Order'!M996=\"\",\"\",'1. Order'!M996)","v":""},{"$f":"IF('1. Order'!N996=\"\",\"\",'1. Order'!N996)","v":""},{"$f":"IF('1. Order'!O996=\"\",\"\",'1. Order'!O996)","v":{"$error":"#N/A"}},{"$f":"IF('1. Order'!P996=\"\",\"\",'1. Order'!P996)","v":{"$error":"#N/A"}},{"$f":"IF('1. Order'!Q996=\"\",\"\",'1. Order'!Q996)","v":""},{"$f":"IF('1. Order'!R996=\"\",\"\",'1. Order'!R996)","v":""},{"$f":"IF('1. Order'!S996=\"\",\"\",'1. Order'!S996)","v":""},{"$f":"IF('1. Order'!V996=\"\",\"\",'1. Order'!V996)","v":""},{"$f":"IF('1. Order'!W996=\"\",\"\",'1. Order'!W996)","v":""},{"$f":"IF('1. Order'!X996=\"\",\"\",'1. Order'!X996)","v":"EUR"},{"$f":"IF('1. Order'!Y996=\"\",\"\",'1. Order'!Y996)","v":""},{"$f":"IF('1. Order'!Z996=\"\",\"\",'1. Order'!Z996)","v":""},{"$f":"IF('1. Order'!AA996=\"\",\"\",'1. Order'!AA996)","v":""},null,{"$f":"IF('1. Order'!AS996=\"\",\"\",'1. Order'!AS996)","v":""},{"$f":"IF('1. Order'!AT996=\"\",\"\",'1. Order'!AT996)","v":""},null,null,null,null,null,null,null,{"$f":"IF('1. Order'!AX996=\"\",\"\",'1. Order'!AX996)","v":""},{"$f":"IF('1. Order'!AY996=\"\",\"\",'1. Order'!AY996)","v":""},{"$f":"IF('1. Order'!AZ996=\"\",\"\",'1. Order'!AZ996)","v":""},{"$f":"IF('1. Order'!BA996=\"\",\"\",'1. Order'!BA996)","v":""},{"$f":"IF('1. Order'!BC996=\"\",\"\",'1. Order'!BC996)","v":""},{"$f":"IF('1. Order'!BD996=\"\",\"\",'1. Order'!BD996)","v":6},{"$f":"IF('1. Order'!BE996=\"\",\"\",'1. Order'!BE996)","v":"None"},{"$f":"IF('1. Order'!BF996=\"\",\"\",'1. Order'!BF996)","v":"Parcel"},{"$f":"IF('1. Order'!BG996=\"\",\"\",'1. Order'!BG996)","v":"ZWO"}]
[{"$f":"IF('1. Order'!F997=\"\",\"\",'1. Order'!F997)","v":""},{"$f":"IF('1. Order'!G997=\"\",\"\",'1. Order'!G997)","v":""},{"$f":"IF('1. Order'!H997=\"\",\"\",'1. Order'!H997)","v":""},{"$f":"IF('1. Order'!I997=\"\",\"\",'1. Order'!I997)","v":""},{"$f":"IF('1. Order'!J997=\"\",\"\",'1. Order'!J997)","v":""},{"$f":"IF('1. Order'!K997=\"\",\"\",'1. Order'!K997)","v":""},{"$f":"IF('1. Order'!L997=\"\",\"\",'1. Order'!L997)","v":""},{"$f":"IF('1. Order'!M997=\"\",\"\",'1. Order'!M997)","v":""},{"$f":"IF('1. Order'!N997=\"\",\"\",'1. Order'!N997)","v":""},{"$f":"IF('1. Order'!O997=\"\",\"\",'1. Order'!O997)","v":{"$error":"#N/A"}},{"$f":"IF('1. Order'!P997=\"\",\"\",'1. Order'!P997)","v":{"$error":"#N/A"}},{"$f":"IF('1. Order'!Q997=\"\",\"\",'1. Order'!Q997)","v":""},{"$f":"IF('1. Order'!R997=\"\",\"\",'1. Order'!R997)","v":""},{"$f":"IF('1. Order'!S997=\"\",\"\",'1. Order'!S997)","v":""},{"$f":"IF('1. Order'!V997=\"\",\"\",'1. Order'!V997)","v":""},{"$f":"IF('1. Order'!W997=\"\",\"\",'1. Order'!W997)","v":""},{"$f":"IF('1. Order'!X997=\"\",\"\",'1. Order'!X997)","v":"EUR"},{"$f":"IF('1. Order'!Y997=\"\",\"\",'1. Order'!Y997)","v":""},{"$f":"IF('1. Order'!Z997=\"\",\"\",'1. Order'!Z997)","v":""},{"$f":"IF('1. Order'!AA997=\"\",\"\",'1. Order'!AA997)","v":""},null,{"$f":"IF('1. Order'!AS997=\"\",\"\",'1. Order'!AS997)","v":""},{"$f":"IF('1. Order'!AT997=\"\",\"\",'1. Order'!AT997)","v":""},null,null,null,null,null,null,null,{"$f":"IF('1. Order'!AX997=\"\",\"\",'1. Order'!AX997)","v":""},{"$f":"IF('1. Order'!AY997=\"\",\"\",'1. Order'!AY997)","v":""},{"$f":"IF('1. Order'!AZ997=\"\",\"\",'1. Order'!AZ997)","v":""},{"$f":"IF('1. Order'!BA997=\"\",\"\",'1. Order'!BA997)","v":""},{"$f":"IF('1. Order'!BC997=\"\",\"\",'1. Order'!BC997)","v":""},{"$f":"IF('1. Order'!BD997=\"\",\"\",'1. Order'!BD997)","v":6},{"$f":"IF('1. Order'!BE997=\"\",\"\",'1. Order'!BE997)","v":"None"},{"$f":"IF('1. Order'!BF997=\"\",\"\",'1. Order'!BF997)","v":"Parcel"},{"$f":"IF('1. Order'!BG997=\"\",\"\",'1. Order'!BG997)","v":"ZWO"}]
[{"$f":"IF('1. Order'!F998=\"\",\"\",'1. Order'!F998)","v":""},{"$f":"IF('1. Order'!G998=\"\",\"\",'1. Order'!G998)","v":""},{"$f":"IF('1. Order'!H998=\"\",\"\",'1. Order'!H998)","v":""},{"$f":"IF('1. Order'!I998=\"\",\"\",'1. Order'!I998)","v":""},{"$f":"IF('1. Order'!J998=\"\",\"\",'1. Order'!J998)","v":""},{"$f":"IF('1. Order'!K998=\"\",\"\",'1. Order'!K998)","v":""},{"$f":"IF('1. Order'!L998=\"\",\"\",'1. Order'!L998)","v":""},{"$f":"IF('1. Order'!M998=\"\",\"\",'1. Order'!M998)","v":""},{"$f":"IF('1. Order'!N998=\"\",\"\",'1. Order'!N998)","v":""},{"$f":"IF('1. Order'!O998=\"\",\"\",'1. Order'!O998)","v":{"$error":"#N/A"}},{"$f":"IF('1. Order'!P998=\"\",\"\",'1. Order'!P998)","v":{"$error":"#N/A"}},{"$f":"IF('1. Order'!Q998=\"\",\"\",'1. Order'!Q998)","v":""},{"$f":"IF('1. Order'!R998=\"\",\"\",'1. Order'!R998)","v":""},{"$f":"IF('1. Order'!S998=\"\",\"\",'1. Order'!S998)","v":""},{"$f":"IF('1. Order'!V998=\"\",\"\",'1. Order'!V998)","v":""},{"$f":"IF('1. Order'!W998=\"\",\"\",'1. Order'!W998)","v":""},{"$f":"IF('1. Order'!X998=\"\",\"\",'1. Order'!X998)","v":"EUR"},{"$f":"IF('1. Order'!Y998=\"\",\"\",'1. Order'!Y998)","v":""},{"$f":"IF('1. Order'!Z998=\"\",\"\",'1. Order'!Z998)","v":""},{"$f":"IF('1. Order'!AA998=\"\",\"\",'1. Order'!AA998)","v":""},null,{"$f":"IF('1. Order'!AS998=\"\",\"\",'1. Order'!AS998)","v":""},{"$f":"IF('1. Order'!AT998=\"\",\"\",'1. Order'!AT998)","v":""},null,null,null,null,null,null,null,{"$f":"IF('1. Order'!AX998=\"\",\"\",'1. Order'!AX998)","v":""},{"$f":"IF('1. Order'!AY998=\"\",\"\",'1. Order'!AY998)","v":""},{"$f":"IF('1. Order'!AZ998=\"\",\"\",'1. Order'!AZ998)","v":""},{"$f":"IF('1. Order'!BA998=\"\",\"\",'1. Order'!BA998)","v":""},{"$f":"IF('1. Order'!BC998=\"\",\"\",'1. Order'!BC998)","v":""},{"$f":"IF('1. Order'!BD998=\"\",\"\",'1. Order'!BD998)","v":6},{"$f":"IF('1. Order'!BE998=\"\",\"\",'1. Order'!BE998)","v":"None"},{"$f":"IF('1. Order'!BF998=\"\",\"\",'1. Order'!BF998)","v":"Parcel"},{"$f":"IF('1. Order'!BG998=\"\",\"\",'1. Order'!BG998)","v":"ZWO"}]
[{"$f":"IF('1. Order'!F999=\"\",\"\",'1. Order'!F999)","v":""},{"$f":"IF('1. Order'!G999=\"\",\"\",'1. Order'!G999)","v":""},{"$f":"IF('1. Order'!H999=\"\",\"\",'1. Order'!H999)","v":""},{"$f":"IF('1. Order'!I999=\"\",\"\",'1. Order'!I999)","v":""},{"$f":"IF('1. Order'!J999=\"\",\"\",'1. Order'!J999)","v":""},{"$f":"IF('1. Order'!K999=\"\",\"\",'1. Order'!K999)","v":""},{"$f":"IF('1. Order'!L999=\"\",\"\",'1. Order'!L999)","v":""},{"$f":"IF('1. Order'!M999=\"\",\"\",'1. Order'!M999)","v":""},{"$f":"IF('1. Order'!N999=\"\",\"\",'1. Order'!N999)","v":""},{"$f":"IF('1. Order'!O999=\"\",\"\",'1. Order'!O999)","v":{"$error":"#N/A"}},{"$f":"IF('1. Order'!P999=\"\",\"\",'1. Order'!P999)","v":{"$error":"#N/A"}},{"$f":"IF('1. Order'!Q999=\"\",\"\",'1. Order'!Q999)","v":""},{"$f":"IF('1. Order'!R999=\"\",\"\",'1. Order'!R999)","v":""},{"$f":"IF('1. Order'!S999=\"\",\"\",'1. Order'!S999)","v":""},{"$f":"IF('1. Order'!V999=\"\",\"\",'1. Order'!V999)","v":""},{"$f":"IF('1. Order'!W999=\"\",\"\",'1. Order'!W999)","v":""},{"$f":"IF('1. Order'!X999=\"\",\"\",'1. Order'!X999)","v":"EUR"},{"$f":"IF('1. Order'!Y999=\"\",\"\",'1. Order'!Y999)","v":""},{"$f":"IF('1. Order'!Z999=\"\",\"\",'1. Order'!Z999)","v":""},{"$f":"IF('1. Order'!AA999=\"\",\"\",'1. Order'!AA999)","v":""},null,{"$f":"IF('1. Order'!AS999=\"\",\"\",'1. Order'!AS999)","v":""},{"$f":"IF('1. Order'!AT999=\"\",\"\",'1. Order'!AT999)","v":""},null,null,null,null,null,null,null,{"$f":"IF('1. Order'!AX999=\"\",\"\",'1. Order'!AX999)","v":""},{"$f":"IF('1. Order'!AY999=\"\",\"\",'1. Order'!AY999)","v":""},{"$f":"IF('1. Order'!AZ999=\"\",\"\",'1. Order'!AZ999)","v":""},{"$f":"IF('1. Order'!BA999=\"\",\"\",'1. Order'!BA999)","v":""},{"$f":"IF('1. Order'!BC999=\"\",\"\",'1. Order'!BC999)","v":""},{"$f":"IF('1. Order'!BD999=\"\",\"\",'1. Order'!BD999)","v":6},{"$f":"IF('1. Order'!BE999=\"\",\"\",'1. Order'!BE999)","v":"None"},{"$f":"IF('1. Order'!BF999=\"\",\"\",'1. Order'!BF999)","v":"Parcel"},{"$f":"IF('1. Order'!BG999=\"\",\"\",'1. Order'!BG999)","v":"ZWO"}]
[{"$f":"IF('1. Order'!F1000=\"\",\"\",'1. Order'!F1000)","v":""},{"$f":"IF('1. Order'!G1000=\"\",\"\",'1. Order'!G1000)","v":""},{"$f":"IF('1. Order'!H1000=\"\",\"\",'1. Order'!H1000)","v":""},{"$f":"IF('1. Order'!I1000=\"\",\"\",'1. Order'!I1000)","v":""},{"$f":"IF('1. Order'!J1000=\"\",\"\",'1. Order'!J1000)","v":""},{"$f":"IF('1. Order'!K1000=\"\",\"\",'1. Order'!K1000)","v":""},{"$f":"IF('1. Order'!L1000=\"\",\"\",'1. Order'!L1000)","v":""},{"$f":"IF('1. Order'!M1000=\"\",\"\",'1. Order'!M1000)","v":""},{"$f":"IF('1. Order'!N1000=\"\",\"\",'1. Order'!N1000)","v":""},{"$f":"IF('1. Order'!O1000=\"\",\"\",'1. Order'!O1000)","v":{"$error":"#N/A"}},{"$f":"IF('1. Order'!P1000=\"\",\"\",'1. Order'!P1000)","v":{"$error":"#N/A"}},{"$f":"IF('1. Order'!Q1000=\"\",\"\",'1. Order'!Q1000)","v":""},{"$f":"IF('1. Order'!R1000=\"\",\"\",'1. Order'!R1000)","v":""},{"$f":"IF('1. Order'!S1000=\"\",\"\",'1. Order'!S1000)","v":""},{"$f":"IF('1. Order'!V1000=\"\",\"\",'1. Order'!V1000)","v":""},{"$f":"IF('1. Order'!W1000=\"\",\"\",'1. Order'!W1000)","v":""},{"$f":"IF('1. Order'!X1000=\"\",\"\",'1. Order'!X1000)","v":"EUR"},{"$f":"IF('1. Order'!Y1000=\"\",\"\",'1. Order'!Y1000)","v":""},{"$f":"IF('1. Order'!Z1000=\"\",\"\",'1. Order'!Z1000)","v":""},{"$f":"IF('1. Order'!AA1000=\"\",\"\",'1. Order'!AA1000)","v":""},null,{"$f":"IF('1. Order'!AS1000=\"\",\"\",'1. Order'!AS1000)","v":""},{"$f":"IF('1. Order'!AT1000=\"\",\"\",'1. Order'!AT1000)","v":""},null,null,null,null,null,null,null,{"$f":"IF('1. Order'!AX1000=\"\",\"\",'1. Order'!AX1000)","v":""},{"$f":"IF('1. Order'!AY1000=\"\",\"\",'1. Order'!AY1000)","v":""},{"$f":"IF('1. Order'!AZ1000=\"\",\"\",'1. Order'!AZ1000)","v":""},{"$f":"IF('1. Order'!BA1000=\"\",\"\",'1. Order'!BA1000)","v":""},{"$f":"IF('1. Order'!BC1000=\"\",\"\",'1. Order'!BC1000)","v":""},{"$f":"IF('1. Order'!BD1000=\"\",\"\",'1. Order'!BD1000)","v":6},{"$f":"IF('1. Order'!BE1000=\"\",\"\",'1. Order'!BE1000)","v":"None"},{"$f":"IF('1. Order'!BF1000=\"\",\"\",'1. Order'!BF1000)","v":"Parcel"},{"$f":"IF('1. Order'!BG1000=\"\",\"\",'1. Order'!BG1000)","v":"ZWO"}]
[{"$f":"IF('1. Order'!F1001=\"\",\"\",'1. Order'!F1001)","v":""},{"$f":"IF('1. Order'!G1001=\"\",\"\",'1. Order'!G1001)","v":""},{"$f":"IF('1. Order'!H1001=\"\",\"\",'1. Order'!H1001)","v":""},{"$f":"IF('1. Order'!I1001=\"\",\"\",'1. Order'!I1001)","v":""},{"$f":"IF('1. Order'!J1001=\"\",\"\",'1. Order'!J1001)","v":""},{"$f":"IF('1. Order'!K1001=\"\",\"\",'1. Order'!K1001)","v":""},{"$f":"IF('1. Order'!L1001=\"\",\"\",'1. Order'!L1001)","v":""},{"$f":"IF('1. Order'!M1001=\"\",\"\",'1. Order'!M1001)","v":""},{"$f":"IF('1. Order'!N1001=\"\",\"\",'1. Order'!N1001)","v":""},{"$f":"IF('1. Order'!O1001=\"\",\"\",'1. Order'!O1001)","v":{"$error":"#N/A"}},{"$f":"IF('1. Order'!P1001=\"\",\"\",'1. Order'!P1001)","v":{"$error":"#N/A"}},{"$f":"IF('1. Order'!Q1001=\"\",\"\",'1. Order'!Q1001)","v":""},{"$f":"IF('1. Order'!R1001=\"\",\"\",'1. Order'!R1001)","v":""},{"$f":"IF('1. Order'!S1001=\"\",\"\",'1. Order'!S1001)","v":""},{"$f":"IF('1. Order'!V1001=\"\",\"\",'1. Order'!V1001)","v":""},{"$f":"IF('1. Order'!W1001=\"\",\"\",'1. Order'!W1001)","v":""},{"$f":"IF('1. Order'!X1001=\"\",\"\",'1. Order'!X1001)","v":"EUR"},{"$f":"IF('1. Order'!Y1001=\"\",\"\",'1. Order'!Y1001)","v":""},{"$f":"IF('1. Order'!Z1001=\"\",\"\",'1. Order'!Z1001)","v":""},{"$f":"IF('1. Order'!AA1001=\"\",\"\",'1. Order'!AA1001)","v":""},null,{"$f":"IF('1. Order'!AS1001=\"\",\"\",'1. Order'!AS1001)","v":""},{"$f":"IF('1. Order'!AT1001=\"\",\"\",'1. Order'!AT1001)","v":""},null,null,null,null,null,null,null,{"$f":"IF('1. Order'!AX1001=\"\",\"\",'1. Order'!AX1001)","v":""},{"$f":"IF('1. Order'!AY1001=\"\",\"\",'1. Order'!AY1001)","v":""},{"$f":"IF('1. Order'!AZ1001=\"\",\"\",'1. Order'!AZ1001)","v":""},{"$f":"IF('1. Order'!BA1001=\"\",\"\",'1. Order'!BA1001)","v":""},{"$f":"IF('1. Order'!BC1001=\"\",\"\",'1. Order'!BC1001)","v":""},{"$f":"IF('1. Order'!BD1001=\"\",\"\",'1. Order'!BD1001)","v":6},{"$f":"IF('1. Order'!BE1001=\"\",\"\",'1. Order'!BE1001)","v":"None"},{"$f":"IF('1. Order'!BF1001=\"\",\"\",'1. Order'!BF1001)","v":"Parcel"},{"$f":"IF('1. Order'!BG1001=\"\",\"\",'1. Order'!BG1001)","v":"ZWO"}]
[{"$f":"IF('1. Order'!F1002=\"\",\"\",'1. Order'!F1002)","v":""},{"$f":"IF('1. Order'!G1002=\"\",\"\",'1. Order'!G1002)","v":""},{"$f":"IF('1. Order'!H1002=\"\",\"\",'1. Order'!H1002)","v":""},{"$f":"IF('1. Order'!I1002=\"\",\"\",'1. Order'!I1002)","v":""},{"$f":"IF('1. Order'!J1002=\"\",\"\",'1. Order'!J1002)","v":""},{"$f":"IF('1. Order'!K1002=\"\",\"\",'1. Order'!K1002)","v":""},{"$f":"IF('1. Order'!L1002=\"\",\"\",'1. Order'!L1002)","v":""},{"$f":"IF('1. Order'!M1002=\"\",\"\",'1. Order'!M1002)","v":""},{"$f":"IF('1. Order'!N1002=\"\",\"\",'1. Order'!N1002)","v":""},{"$f":"IF('1. Order'!O1002=\"\",\"\",'1. Order'!O1002)","v":{"$error":"#N/A"}},{"$f":"IF('1. Order'!P1002=\"\",\"\",'1. Order'!P1002)","v":{"$error":"#N/A"}},{"$f":"IF('1. Order'!Q1002=\"\",\"\",'1. Order'!Q1002)","v":""},{"$f":"IF('1. Order'!R1002=\"\",\"\",'1. Order'!R1002)","v":""},{"$f":"IF('1. Order'!S1002=\"\",\"\",'1. Order'!S1002)","v":""},{"$f":"IF('1. Order'!V1002=\"\",\"\",'1. Order'!V1002)","v":""},{"$f":"IF('1. Order'!W1002=\"\",\"\",'1. Order'!W1002)","v":""},{"$f":"IF('1. Order'!X1002=\"\",\"\",'1. Order'!X1002)","v":"EUR"},{"$f":"IF('1. Order'!Y1002=\"\",\"\",'1. Order'!Y1002)","v":""},{"$f":"IF('1. Order'!Z1002=\"\",\"\",'1. Order'!Z1002)","v":""},{"$f":"IF('1. Order'!AA1002=\"\",\"\",'1. Order'!AA1002)","v":""},null,{"$f":"IF('1. Order'!AS1002=\"\",\"\",'1. Order'!AS1002)","v":""},{"$f":"IF('1. Order'!AT1002=\"\",\"\",'1. Order'!AT1002)","v":""},null,null,null,null,null,null,null,{"$f":"IF('1. Order'!AX1002=\"\",\"\",'1. Order'!AX1002)","v":""},{"$f":"IF('1. Order'!AY1002=\"\",\"\",'1. Order'!AY1002)","v":""},{"$f":"IF('1. Order'!AZ1002=\"\",\"\",'1. Order'!AZ1002)","v":""},{"$f":"IF('1. Order'!BA1002=\"\",\"\",'1. Order'!BA1002)","v":""},{"$f":"IF('1. Order'!BC1002=\"\",\"\",'1. Order'!BC1002)","v":""},{"$f":"IF('1. Order'!BD1002=\"\",\"\",'1. Order'!BD1002)","v":6},{"$f":"IF('1. Order'!BE1002=\"\",\"\",'1. Order'!BE1002)","v":"None"},{"$f":"IF('1. Order'!BF1002=\"\",\"\",'1. Order'!BF1002)","v":"Parcel"},{"$f":"IF('1. Order'!BG1002=\"\",\"\",'1. Order'!BG1002)","v":"ZWO"}]
[{"$f":"IF('1. Order'!F1003=\"\",\"\",'1. Order'!F1003)","v":""},{"$f":"IF('1. Order'!G1003=\"\",\"\",'1. Order'!G1003)","v":""},{"$f":"IF('1. Order'!H1003=\"\",\"\",'1. Order'!H1003)","v":""},{"$f":"IF('1. Order'!I1003=\"\",\"\",'1. Order'!I1003)","v":""},{"$f":"IF('1. Order'!J1003=\"\",\"\",'1. Order'!J1003)","v":""},{"$f":"IF('1. Order'!K1003=\"\",\"\",'1. Order'!K1003)","v":""},{"$f":"IF('1. Order'!L1003=\"\",\"\",'1. Order'!L1003)","v":""},{"$f":"IF('1. Order'!M1003=\"\",\"\",'1. Order'!M1003)","v":""},{"$f":"IF('1. Order'!N1003=\"\",\"\",'1. Order'!N1003)","v":""},{"$f":"IF('1. Order'!O1003=\"\",\"\",'1. Order'!O1003)","v":{"$error":"#N/A"}},{"$f":"IF('1. Order'!P1003=\"\",\"\",'1. Order'!P1003)","v":{"$error":"#N/A"}},{"$f":"IF('1. Order'!Q1003=\"\",\"\",'1. Order'!Q1003)","v":""},{"$f":"IF('1. Order'!R1003=\"\",\"\",'1. Order'!R1003)","v":""},{"$f":"IF('1. Order'!S1003=\"\",\"\",'1. Order'!S1003)","v":""},{"$f":"IF('1. Order'!V1003=\"\",\"\",'1. Order'!V1003)","v":""},{"$f":"IF('1. Order'!W1003=\"\",\"\",'1. Order'!W1003)","v":""},{"$f":"IF('1. Order'!X1003=\"\",\"\",'1. Order'!X1003)","v":"EUR"},{"$f":"IF('1. Order'!Y1003=\"\",\"\",'1. Order'!Y1003)","v":""},{"$f":"IF('1. Order'!Z1003=\"\",\"\",'1. Order'!Z1003)","v":""},{"$f":"IF('1. Order'!AA1003=\"\",\"\",'1. Order'!AA1003)","v":""},null,{"$f":"IF('1. Order'!AS1003=\"\",\"\",'1. Order'!AS1003)","v":""},{"$f":"IF('1. Order'!AT1003=\"\",\"\",'1. Order'!AT1003)","v":""},null,null,null,null,null,null,null,{"$f":"IF('1. Order'!AX1003=\"\",\"\",'1. Order'!AX1003)","v":""},{"$f":"IF('1. Order'!AY1003=\"\",\"\",'1. Order'!AY1003)","v":""},{"$f":"IF('1. Order'!AZ1003=\"\",\"\",'1. Order'!AZ1003)","v":""},{"$f":"IF('1. Order'!BA1003=\"\",\"\",'1. Order'!BA1003)","v":""},{"$f":"IF('1. Order'!BC1003=\"\",\"\",'1. Order'!BC1003)","v":""},{"$f":"IF('1. Order'!BD1003=\"\",\"\",'1. Order'!BD1003)","v":6},{"$f":"IF('1. Order'!BE1003=\"\",\"\",'1. Order'!BE1003)","v":"None"},{"$f":"IF('1. Order'!BF1003=\"\",\"\",'1. Order'!BF1003)","v":"Parcel"},{"$f":"IF('1. Order'!BG1003=\"\",\"\",'1. Order'!BG1003)","v":"ZWO"}]
[{"$f":"IF('1. Order'!F1004=\"\",\"\",'1. Order'!F1004)","v":""},{"$f":"IF('1. Order'!G1004=\"\",\"\",'1. Order'!G1004)","v":""},{"$f":"IF('1. Order'!H1004=\"\",\"\",'1. Order'!H1004)","v":""},{"$f":"IF('1. Order'!I1004=\"\",\"\",'1. Order'!I1004)","v":""},{"$f":"IF('1. Order'!J1004=\"\",\"\",'1. Order'!J1004)","v":""},{"$f":"IF('1. Order'!K1004=\"\",\"\",'1. Order'!K1004)","v":""},{"$f":"IF('1. Order'!L1004=\"\",\"\",'1. Order'!L1004)","v":""},{"$f":"IF('1. Order'!M1004=\"\",\"\",'1. Order'!M1004)","v":""},{"$f":"IF('1. Order'!N1004=\"\",\"\",'1. Order'!N1004)","v":""},{"$f":"IF('1. Order'!O1004=\"\",\"\",'1. Order'!O1004)","v":{"$error":"#N/A"}},{"$f":"IF('1. Order'!P1004=\"\",\"\",'1. Order'!P1004)","v":{"$error":"#N/A"}},{"$f":"IF('1. Order'!Q1004=\"\",\"\",'1. Order'!Q1004)","v":""},{"$f":"IF('1. Order'!R1004=\"\",\"\",'1. Order'!R1004)","v":""},{"$f":"IF('1. Order'!S1004=\"\",\"\",'1. Order'!S1004)","v":""},{"$f":"IF('1. Order'!V1004=\"\",\"\",'1. Order'!V1004)","v":""},{"$f":"IF('1. Order'!W1004=\"\",\"\",'1. Order'!W1004)","v":""},{"$f":"IF('1. Order'!X1004=\"\",\"\",'1. Order'!X1004)","v":"EUR"},{"$f":"IF('1. Order'!Y1004=\"\",\"\",'1. Order'!Y1004)","v":""},{"$f":"IF('1. Order'!Z1004=\"\",\"\",'1. Order'!Z1004)","v":""},{"$f":"IF('1. Order'!AA1004=\"\",\"\",'1. Order'!AA1004)","v":""},null,{"$f":"IF('1. Order'!AS1004=\"\",\"\",'1. Order'!AS1004)","v":""},{"$f":"IF('1. Order'!AT1004=\"\",\"\",'1. Order'!AT1004)","v":""},null,null,null,null,null,null,null,{"$f":"IF('1. Order'!AX1004=\"\",\"\",'1. Order'!AX1004)","v":""},{"$f":"IF('1. Order'!AY1004=\"\",\"\",'1. Order'!AY1004)","v":""},{"$f":"IF('1. Order'!AZ1004=\"\",\"\",'1. Order'!AZ1004)","v":""},{"$f":"IF('1. Order'!BA1004=\"\",\"\",'1. Order'!BA1004)","v":""},{"$f":"IF('1. Order'!BC1004=\"\",\"\",'1. Order'!BC1004)","v":""},{"$f":"IF('1. Order'!BD1004=\"\",\"\",'1. Order'!BD1004)","v":6},{"$f":"IF('1. Order'!BE1004=\"\",\"\",'1. Order'!BE1004)","v":"None"},{"$f":"IF('1. Order'!BF1004=\"\",\"\",'1. Order'!BF1004)","v":"Parcel"},{"$f":"IF('1. Order'!BG1004=\"\",\"\",'1. Order'!BG1004)","v":"ZWO"}]
[{"$f":"IF('1. Order'!F1005=\"\",\"\",'1. Order'!F1005)","v":""},{"$f":"IF('1. Order'!G1005=\"\",\"\",'1. Order'!G1005)","v":""},{"$f":"IF('1. Order'!H1005=\"\",\"\",'1. Order'!H1005)","v":""},{"$f":"IF('1. Order'!I1005=\"\",\"\",'1. Order'!I1005)","v":""},{"$f":"IF('1. Order'!J1005=\"\",\"\",'1. Order'!J1005)","v":""},{"$f":"IF('1. Order'!K1005=\"\",\"\",'1. Order'!K1005)","v":""},{"$f":"IF('1. Order'!L1005=\"\",\"\",'1. Order'!L1005)","v":""},{"$f":"IF('1. Order'!M1005=\"\",\"\",'1. Order'!M1005)","v":""},{"$f":"IF('1. Order'!N1005=\"\",\"\",'1. Order'!N1005)","v":""},{"$f":"IF('1. Order'!O1005=\"\",\"\",'1. Order'!O1005)","v":{"$error":"#N/A"}},{"$f":"IF('1. Order'!P1005=\"\",\"\",'1. Order'!P1005)","v":{"$error":"#N/A"}},{"$f":"IF('1. Order'!Q1005=\"\",\"\",'1. Order'!Q1005)","v":""},{"$f":"IF('1. Order'!R1005=\"\",\"\",'1. Order'!R1005)","v":""},{"$f":"IF('1. Order'!S1005=\"\",\"\",'1. Order'!S1005)","v":""},{"$f":"IF('1. Order'!V1005=\"\",\"\",'1. Order'!V1005)","v":""},{"$f":"IF('1. Order'!W1005=\"\",\"\",'1. Order'!W1005)","v":""},{"$f":"IF('1. Order'!X1005=\"\",\"\",'1. Order'!X1005)","v":"EUR"},{"$f":"IF('1. Order'!Y1005=\"\",\"\",'1. Order'!Y1005)","v":""},{"$f":"IF('1. Order'!Z1005=\"\",\"\",'1. Order'!Z1005)","v":""},{"$f":"IF('1. Order'!AA1005=\"\",\"\",'1. Order'!AA1005)","v":""},null,{"$f":"IF('1. Order'!AS1005=\"\",\"\",'1. Order'!AS1005)","v":""},{"$f":"IF('1. Order'!AT1005=\"\",\"\",'1. Order'!AT1005)","v":""},null,null,null,null,null,null,null,{"$f":"IF('1. Order'!AX1005=\"\",\"\",'1. Order'!AX1005)","v":""},{"$f":"IF('1. Order'!AY1005=\"\",\"\",'1. Order'!AY1005)","v":""},{"$f":"IF('1. Order'!AZ1005=\"\",\"\",'1. Order'!AZ1005)","v":""},{"$f":"IF('1. Order'!BA1005=\"\",\"\",'1. Order'!BA1005)","v":""},{"$f":"IF('1. Order'!BC1005=\"\",\"\",'1. Order'!BC1005)","v":""},{"$f":"IF('1. Order'!BD1005=\"\",\"\",'1. Order'!BD1005)","v":6},{"$f":"IF('1. Order'!BE1005=\"\",\"\",'1. Order'!BE1005)","v":"None"},{"$f":"IF('1. Order'!BF1005=\"\",\"\",'1. Order'!BF1005)","v":"Parcel"},{"$f":"IF('1. Order'!BG1005=\"\",\"\",'1. Order'!BG1005)","v":"ZWO"}]
[{"$f":"IF('1. Order'!F1006=\"\",\"\",'1. Order'!F1006)","v":""},{"$f":"IF('1. Order'!G1006=\"\",\"\",'1. Order'!G1006)","v":""},{"$f":"IF('1. Order'!H1006=\"\",\"\",'1. Order'!H1006)","v":""},{"$f":"IF('1. Order'!I1006=\"\",\"\",'1. Order'!I1006)","v":""},{"$f":"IF('1. Order'!J1006=\"\",\"\",'1. Order'!J1006)","v":""},{"$f":"IF('1. Order'!K1006=\"\",\"\",'1. Order'!K1006)","v":""},{"$f":"IF('1. Order'!L1006=\"\",\"\",'1. Order'!L1006)","v":""},{"$f":"IF('1. Order'!M1006=\"\",\"\",'1. Order'!M1006)","v":""},{"$f":"IF('1. Order'!N1006=\"\",\"\",'1. Order'!N1006)","v":""},{"$f":"IF('1. Order'!O1006=\"\",\"\",'1. Order'!O1006)","v":{"$error":"#N/A"}},{"$f":"IF('1. Order'!P1006=\"\",\"\",'1. Order'!P1006)","v":{"$error":"#N/A"}},{"$f":"IF('1. Order'!Q1006=\"\",\"\",'1. Order'!Q1006)","v":""},{"$f":"IF('1. Order'!R1006=\"\",\"\",'1. Order'!R1006)","v":""},{"$f":"IF('1. Order'!S1006=\"\",\"\",'1. Order'!S1006)","v":""},{"$f":"IF('1. Order'!V1006=\"\",\"\",'1. Order'!V1006)","v":""},{"$f":"IF('1. Order'!W1006=\"\",\"\",'1. Order'!W1006)","v":""},{"$f":"IF('1. Order'!X1006=\"\",\"\",'1. Order'!X1006)","v":"EUR"},{"$f":"IF('1. Order'!Y1006=\"\",\"\",'1. Order'!Y1006)","v":""},{"$f":"IF('1. Order'!Z1006=\"\",\"\",'1. Order'!Z1006)","v":""},{"$f":"IF('1. Order'!AA1006=\"\",\"\",'1. Order'!AA1006)","v":""},null,{"$f":"IF('1. Order'!AS1006=\"\",\"\",'1. Order'!AS1006)","v":""},{"$f":"IF('1. Order'!AT1006=\"\",\"\",'1. Order'!AT1006)","v":""},null,null,null,null,null,null,null,{"$f":"IF('1. Order'!AX1006=\"\",\"\",'1. Order'!AX1006)","v":""},{"$f":"IF('1. Order'!AY1006=\"\",\"\",'1. Order'!AY1006)","v":""},{"$f":"IF('1. Order'!AZ1006=\"\",\"\",'1. Order'!AZ1006)","v":""},{"$f":"IF('1. Order'!BA1006=\"\",\"\",'1. Order'!BA1006)","v":""},{"$f":"IF('1. Order'!BC1006=\"\",\"\",'1. Order'!BC1006)","v":""},{"$f":"IF('1. Order'!BD1006=\"\",\"\",'1. Order'!BD1006)","v":6},{"$f":"IF('1. Order'!BE1006=\"\",\"\",'1. Order'!BE1006)","v":"None"},{"$f":"IF('1. Order'!BF1006=\"\",\"\",'1. Order'!BF1006)","v":"Parcel"},{"$f":"IF('1. Order'!BG1006=\"\",\"\",'1. Order'!BG1006)","v":"ZWO"}]
[{"$f":"IF('1. Order'!F1007=\"\",\"\",'1. Order'!F1007)","v":""},{"$f":"IF('1. Order'!G1007=\"\",\"\",'1. Order'!G1007)","v":""},{"$f":"IF('1. Order'!H1007=\"\",\"\",'1. Order'!H1007)","v":""},{"$f":"IF('1. Order'!I1007=\"\",\"\",'1. Order'!I1007)","v":""},{"$f":"IF('1. Order'!J1007=\"\",\"\",'1. Order'!J1007)","v":""},{"$f":"IF('1. Order'!K1007=\"\",\"\",'1. Order'!K1007)","v":""},{"$f":"IF('1. Order'!L1007=\"\",\"\",'1. Order'!L1007)","v":""},{"$f":"IF('1. Order'!M1007=\"\",\"\",'1. Order'!M1007)","v":""},{"$f":"IF('1. Order'!N1007=\"\",\"\",'1. Order'!N1007)","v":""},{"$f":"IF('1. Order'!O1007=\"\",\"\",'1. Order'!O1007)","v":{"$error":"#N/A"}},{"$f":"IF('1. Order'!P1007=\"\",\"\",'1. Order'!P1007)","v":{"$error":"#N/A"}},{"$f":"IF('1. Order'!Q1007=\"\",\"\",'1. Order'!Q1007)","v":""},{"$f":"IF('1. Order'!R1007=\"\",\"\",'1. Order'!R1007)","v":""},{"$f":"IF('1. Order'!S1007=\"\",\"\",'1. Order'!S1007)","v":""},{"$f":"IF('1. Order'!V1007=\"\",\"\",'1. Order'!V1007)","v":""},{"$f":"IF('1. Order'!W1007=\"\",\"\",'1. Order'!W1007)","v":""},{"$f":"IF('1. Order'!X1007=\"\",\"\",'1. Order'!X1007)","v":"EUR"},{"$f":"IF('1. Order'!Y1007=\"\",\"\",'1. Order'!Y1007)","v":""},{"$f":"IF('1. Order'!Z1007=\"\",\"\",'1. Order'!Z1007)","v":""},{"$f":"IF('1. Order'!AA1007=\"\",\"\",'1. Order'!AA1007)","v":""},null,{"$f":"IF('1. Order'!AS1007=\"\",\"\",'1. Order'!AS1007)","v":""},{"$f":"IF('1. Order'!AT1007=\"\",\"\",'1. Order'!AT1007)","v":""},null,null,null,null,null,null,null,{"$f":"IF('1. Order'!AX1007=\"\",\"\",'1. Order'!AX1007)","v":""},{"$f":"IF('1. Order'!AY1007=\"\",\"\",'1. Order'!AY1007)","v":""},{"$f":"IF('1. Order'!AZ1007=\"\",\"\",'1. Order'!AZ1007)","v":""},{"$f":"IF('1. Order'!BA1007=\"\",\"\",'1. Order'!BA1007)","v":""},{"$f":"IF('1. Order'!BC1007=\"\",\"\",'1. Order'!BC1007)","v":""},{"$f":"IF('1. Order'!BD1007=\"\",\"\",'1. Order'!BD1007)","v":6},{"$f":"IF('1. Order'!BE1007=\"\",\"\",'1. Order'!BE1007)","v":"None"},{"$f":"IF('1. Order'!BF1007=\"\",\"\",'1. Order'!BF1007)","v":"Parcel"},{"$f":"IF('1. Order'!BG1007=\"\",\"\",'1. Order'!BG1007)","v":"ZWO"}]
[{"$f":"IF('1. Order'!F1008=\"\",\"\",'1. Order'!F1008)","v":""},{"$f":"IF('1. Order'!G1008=\"\",\"\",'1. Order'!G1008)","v":""},{"$f":"IF('1. Order'!H1008=\"\",\"\",'1. Order'!H1008)","v":""},{"$f":"IF('1. Order'!I1008=\"\",\"\",'1. Order'!I1008)","v":""},{"$f":"IF('1. Order'!J1008=\"\",\"\",'1. Order'!J1008)","v":""},{"$f":"IF('1. Order'!K1008=\"\",\"\",'1. Order'!K1008)","v":""},{"$f":"IF('1. Order'!L1008=\"\",\"\",'1. Order'!L1008)","v":""},{"$f":"IF('1. Order'!M1008=\"\",\"\",'1. Order'!M1008)","v":""},{"$f":"IF('1. Order'!N1008=\"\",\"\",'1. Order'!N1008)","v":""},{"$f":"IF('1. Order'!O1008=\"\",\"\",'1. Order'!O1008)","v":{"$error":"#N/A"}},{"$f":"IF('1. Order'!P1008=\"\",\"\",'1. Order'!P1008)","v":{"$error":"#N/A"}},{"$f":"IF('1. Order'!Q1008=\"\",\"\",'1. Order'!Q1008)","v":""},{"$f":"IF('1. Order'!R1008=\"\",\"\",'1. Order'!R1008)","v":""},{"$f":"IF('1. Order'!S1008=\"\",\"\",'1. Order'!S1008)","v":""},{"$f":"IF('1. Order'!V1008=\"\",\"\",'1. Order'!V1008)","v":""},{"$f":"IF('1. Order'!W1008=\"\",\"\",'1. Order'!W1008)","v":""},{"$f":"IF('1. Order'!X1008=\"\",\"\",'1. Order'!X1008)","v":"EUR"},{"$f":"IF('1. Order'!Y1008=\"\",\"\",'1. Order'!Y1008)","v":""},{"$f":"IF('1. Order'!Z1008=\"\",\"\",'1. Order'!Z1008)","v":""},{"$f":"IF('1. Order'!AA1008=\"\",\"\",'1. Order'!AA1008)","v":""},null,{"$f":"IF('1. Order'!AS1008=\"\",\"\",'1. Order'!AS1008)","v":""},{"$f":"IF('1. Order'!AT1008=\"\",\"\",'1. Order'!AT1008)","v":""},null,null,null,null,null,null,null,{"$f":"IF('1. Order'!AX1008=\"\",\"\",'1. Order'!AX1008)","v":""},{"$f":"IF('1. Order'!AY1008=\"\",\"\",'1. Order'!AY1008)","v":""},{"$f":"IF('1. Order'!AZ1008=\"\",\"\",'1. Order'!AZ1008)","v":""},{"$f":"IF('1. Order'!BA1008=\"\",\"\",'1. Order'!BA1008)","v":""},{"$f":"IF('1. Order'!BC1008=\"\",\"\",'1. Order'!BC1008)","v":""},{"$f":"IF('1. Order'!BD1008=\"\",\"\",'1. Order'!BD1008)","v":6},{"$f":"IF('1. Order'!BE1008=\"\",\"\",'1. Order'!BE1008)","v":"None"},{"$f":"IF('1. Order'!BF1008=\"\",\"\",'1. Order'!BF1008)","v":"Parcel"},{"$f":"IF('1. Order'!BG1008=\"\",\"\",'1. Order'!BG1008)","v":"ZWO"}]
[{"$f":"IF('1. Order'!F1009=\"\",\"\",'1. Order'!F1009)","v":""},{"$f":"IF('1. Order'!G1009=\"\",\"\",'1. Order'!G1009)","v":""},{"$f":"IF('1. Order'!H1009=\"\",\"\",'1. Order'!H1009)","v":""},{"$f":"IF('1. Order'!I1009=\"\",\"\",'1. Order'!I1009)","v":""},{"$f":"IF('1. Order'!J1009=\"\",\"\",'1. Order'!J1009)","v":""},{"$f":"IF('1. Order'!K1009=\"\",\"\",'1. Order'!K1009)","v":""},{"$f":"IF('1. Order'!L1009=\"\",\"\",'1. Order'!L1009)","v":""},{"$f":"IF('1. Order'!M1009=\"\",\"\",'1. Order'!M1009)","v":""},{"$f":"IF('1. Order'!N1009=\"\",\"\",'1. Order'!N1009)","v":""},{"$f":"IF('1. Order'!O1009=\"\",\"\",'1. Order'!O1009)","v":{"$error":"#N/A"}},{"$f":"IF('1. Order'!P1009=\"\",\"\",'1. Order'!P1009)","v":{"$error":"#N/A"}},{"$f":"IF('1. Order'!Q1009=\"\",\"\",'1. Order'!Q1009)","v":""},{"$f":"IF('1. Order'!R1009=\"\",\"\",'1. Order'!R1009)","v":""},{"$f":"IF('1. Order'!S1009=\"\",\"\",'1. Order'!S1009)","v":""},{"$f":"IF('1. Order'!V1009=\"\",\"\",'1. Order'!V1009)","v":""},{"$f":"IF('1. Order'!W1009=\"\",\"\",'1. Order'!W1009)","v":""},{"$f":"IF('1. Order'!X1009=\"\",\"\",'1. Order'!X1009)","v":"EUR"},{"$f":"IF('1. Order'!Y1009=\"\",\"\",'1. Order'!Y1009)","v":""},{"$f":"IF('1. Order'!Z1009=\"\",\"\",'1. Order'!Z1009)","v":""},{"$f":"IF('1. Order'!AA1009=\"\",\"\",'1. Order'!AA1009)","v":""},null,{"$f":"IF('1. Order'!AS1009=\"\",\"\",'1. Order'!AS1009)","v":""},{"$f":"IF('1. Order'!AT1009=\"\",\"\",'1. Order'!AT1009)","v":""},null,null,null,null,null,null,null,{"$f":"IF('1. Order'!AX1009=\"\",\"\",'1. Order'!AX1009)","v":""},{"$f":"IF('1. Order'!AY1009=\"\",\"\",'1. Order'!AY1009)","v":""},{"$f":"IF('1. Order'!AZ1009=\"\",\"\",'1. Order'!AZ1009)","v":""},{"$f":"IF('1. Order'!BA1009=\"\",\"\",'1. Order'!BA1009)","v":""},{"$f":"IF('1. Order'!BC1009=\"\",\"\",'1. Order'!BC1009)","v":""},{"$f":"IF('1. Order'!BD1009=\"\",\"\",'1. Order'!BD1009)","v":6},{"$f":"IF('1. Order'!BE1009=\"\",\"\",'1. Order'!BE1009)","v":"None"},{"$f":"IF('1. Order'!BF1009=\"\",\"\",'1. Order'!BF1009)","v":"Parcel"},{"$f":"IF('1. Order'!BG1009=\"\",\"\",'1. Order'!BG1009)","v":"ZWO"}]
[{"$f":"IF('1. Order'!F1010=\"\",\"\",'1. Order'!F1010)","v":""},{"$f":"IF('1. Order'!G1010=\"\",\"\",'1. Order'!G1010)","v":""},{"$f":"IF('1. Order'!H1010=\"\",\"\",'1. Order'!H1010)","v":""},{"$f":"IF('1. Order'!I1010=\"\",\"\",'1. Order'!I1010)","v":""},{"$f":"IF('1. Order'!J1010=\"\",\"\",'1. Order'!J1010)","v":""},{"$f":"IF('1. Order'!K1010=\"\",\"\",'1. Order'!K1010)","v":""},{"$f":"IF('1. Order'!L1010=\"\",\"\",'1. Order'!L1010)","v":""},{"$f":"IF('1. Order'!M1010=\"\",\"\",'1. Order'!M1010)","v":""},{"$f":"IF('1. Order'!N1010=\"\",\"\",'1. Order'!N1010)","v":""},{"$f":"IF('1. Order'!O1010=\"\",\"\",'1. Order'!O1010)","v":{"$error":"#N/A"}},{"$f":"IF('1. Order'!P1010=\"\",\"\",'1. Order'!P1010)","v":{"$error":"#N/A"}},{"$f":"IF('1. Order'!Q1010=\"\",\"\",'1. Order'!Q1010)","v":""},{"$f":"IF('1. Order'!R1010=\"\",\"\",'1. Order'!R1010)","v":""},{"$f":"IF('1. Order'!S1010=\"\",\"\",'1. Order'!S1010)","v":""},{"$f":"IF('1. Order'!V1010=\"\",\"\",'1. Order'!V1010)","v":""},{"$f":"IF('1. Order'!W1010=\"\",\"\",'1. Order'!W1010)","v":""},{"$f":"IF('1. Order'!X1010=\"\",\"\",'1. Order'!X1010)","v":"EUR"},{"$f":"IF('1. Order'!Y1010=\"\",\"\",'1. Order'!Y1010)","v":""},{"$f":"IF('1. Order'!Z1010=\"\",\"\",'1. Order'!Z1010)","v":""},{"$f":"IF('1. Order'!AA1010=\"\",\"\",'1. Order'!AA1010)","v":""},null,{"$f":"IF('1. Order'!AS1010=\"\",\"\",'1. Order'!AS1010)","v":""},{"$f":"IF('1. Order'!AT1010=\"\",\"\",'1. Order'!AT1010)","v":""},null,null,null,null,null,null,null,{"$f":"IF('1. Order'!AX1010=\"\",\"\",'1. Order'!AX1010)","v":""},{"$f":"IF('1. Order'!AY1010=\"\",\"\",'1. Order'!AY1010)","v":""},{"$f":"IF('1. Order'!AZ1010=\"\",\"\",'1. Order'!AZ1010)","v":""},{"$f":"IF('1. Order'!BA1010=\"\",\"\",'1. Order'!BA1010)","v":""},{"$f":"IF('1. Order'!BC1010=\"\",\"\",'1. Order'!BC1010)","v":""},{"$f":"IF('1. Order'!BD1010=\"\",\"\",'1. Order'!BD1010)","v":6},{"$f":"IF('1. Order'!BE1010=\"\",\"\",'1. Order'!BE1010)","v":"None"},{"$f":"IF('1. Order'!BF1010=\"\",\"\",'1. Order'!BF1010)","v":"Parcel"},{"$f":"IF('1. Order'!BG1010=\"\",\"\",'1. Order'!BG1010)","v":"ZWO"}]
[{"$f":"IF('1. Order'!F1011=\"\",\"\",'1. Order'!F1011)","v":""},{"$f":"IF('1. Order'!G1011=\"\",\"\",'1. Order'!G1011)","v":""},{"$f":"IF('1. Order'!H1011=\"\",\"\",'1. Order'!H1011)","v":""},{"$f":"IF('1. Order'!I1011=\"\",\"\",'1. Order'!I1011)","v":""},{"$f":"IF('1. Order'!J1011=\"\",\"\",'1. Order'!J1011)","v":""},{"$f":"IF('1. Order'!K1011=\"\",\"\",'1. Order'!K1011)","v":""},{"$f":"IF('1. Order'!L1011=\"\",\"\",'1. Order'!L1011)","v":""},{"$f":"IF('1. Order'!M1011=\"\",\"\",'1. Order'!M1011)","v":""},{"$f":"IF('1. Order'!N1011=\"\",\"\",'1. Order'!N1011)","v":""},{"$f":"IF('1. Order'!O1011=\"\",\"\",'1. Order'!O1011)","v":{"$error":"#N/A"}},{"$f":"IF('1. Order'!P1011=\"\",\"\",'1. Order'!P1011)","v":{"$error":"#N/A"}},{"$f":"IF('1. Order'!Q1011=\"\",\"\",'1. Order'!Q1011)","v":""},{"$f":"IF('1. Order'!R1011=\"\",\"\",'1. Order'!R1011)","v":""},{"$f":"IF('1. Order'!S1011=\"\",\"\",'1. Order'!S1011)","v":""},{"$f":"IF('1. Order'!V1011=\"\",\"\",'1. Order'!V1011)","v":""},{"$f":"IF('1. Order'!W1011=\"\",\"\",'1. Order'!W1011)","v":""},{"$f":"IF('1. Order'!X1011=\"\",\"\",'1. Order'!X1011)","v":"EUR"},{"$f":"IF('1. Order'!Y1011=\"\",\"\",'1. Order'!Y1011)","v":""},{"$f":"IF('1. Order'!Z1011=\"\",\"\",'1. Order'!Z1011)","v":""},{"$f":"IF('1. Order'!AA1011=\"\",\"\",'1. Order'!AA1011)","v":""},null,{"$f":"IF('1. Order'!AS1011=\"\",\"\",'1. Order'!AS1011)","v":""},{"$f":"IF('1. Order'!AT1011=\"\",\"\",'1. Order'!AT1011)","v":""},null,null,null,null,null,null,null,{"$f":"IF('1. Order'!AX1011=\"\",\"\",'1. Order'!AX1011)","v":""},{"$f":"IF('1. Order'!AY1011=\"\",\"\",'1. Order'!AY1011)","v":""},{"$f":"IF('1. Order'!AZ1011=\"\",\"\",'1. Order'!AZ1011)","v":""},{"$f":"IF('1. Order'!BA1011=\"\",\"\",'1. Order'!BA1011)","v":""},{"$f":"IF('1. Order'!BC1011=\"\",\"\",'1. Order'!BC1011)","v":""},{"$f":"IF('1. Order'!BD1011=\"\",\"\",'1. Order'!BD1011)","v":6},{"$f":"IF('1. Order'!BE1011=\"\",\"\",'1. Order'!BE1011)","v":"None"},{"$f":"IF('1. Order'!BF1011=\"\",\"\",'1. Order'!BF1011)","v":"Parcel"},{"$f":"IF('1. Order'!BG1011=\"\",\"\",'1. Order'!BG1011)","v":"ZWO"}]
[{"$f":"IF('1. Order'!F1012=\"\",\"\",'1. Order'!F1012)","v":""},{"$f":"IF('1. Order'!G1012=\"\",\"\",'1. Order'!G1012)","v":""},{"$f":"IF('1. Order'!H1012=\"\",\"\",'1. Order'!H1012)","v":""},{"$f":"IF('1. Order'!I1012=\"\",\"\",'1. Order'!I1012)","v":""},{"$f":"IF('1. Order'!J1012=\"\",\"\",'1. Order'!J1012)","v":""},{"$f":"IF('1. Order'!K1012=\"\",\"\",'1. Order'!K1012)","v":""},{"$f":"IF('1. Order'!L1012=\"\",\"\",'1. Order'!L1012)","v":""},{"$f":"IF('1. Order'!M1012=\"\",\"\",'1. Order'!M1012)","v":""},{"$f":"IF('1. Order'!N1012=\"\",\"\",'1. Order'!N1012)","v":""},{"$f":"IF('1. Order'!O1012=\"\",\"\",'1. Order'!O1012)","v":{"$error":"#N/A"}},{"$f":"IF('1. Order'!P1012=\"\",\"\",'1. Order'!P1012)","v":{"$error":"#N/A"}},{"$f":"IF('1. Order'!Q1012=\"\",\"\",'1. Order'!Q1012)","v":""},{"$f":"IF('1. Order'!R1012=\"\",\"\",'1. Order'!R1012)","v":""},{"$f":"IF('1. Order'!S1012=\"\",\"\",'1. Order'!S1012)","v":""},{"$f":"IF('1. Order'!V1012=\"\",\"\",'1. Order'!V1012)","v":""},{"$f":"IF('1. Order'!W1012=\"\",\"\",'1. Order'!W1012)","v":""},{"$f":"IF('1. Order'!X1012=\"\",\"\",'1. Order'!X1012)","v":"EUR"},{"$f":"IF('1. Order'!Y1012=\"\",\"\",'1. Order'!Y1012)","v":""},{"$f":"IF('1. Order'!Z1012=\"\",\"\",'1. Order'!Z1012)","v":""},{"$f":"IF('1. Order'!AA1012=\"\",\"\",'1. Order'!AA1012)","v":""},null,{"$f":"IF('1. Order'!AS1012=\"\",\"\",'1. Order'!AS1012)","v":""},{"$f":"IF('1. Order'!AT1012=\"\",\"\",'1. Order'!AT1012)","v":""},null,null,null,null,null,null,null,{"$f":"IF('1. Order'!AX1012=\"\",\"\",'1. Order'!AX1012)","v":""},{"$f":"IF('1. Order'!AY1012=\"\",\"\",'1. Order'!AY1012)","v":""},{"$f":"IF('1. Order'!AZ1012=\"\",\"\",'1. Order'!AZ1012)","v":""},{"$f":"IF('1. Order'!BA1012=\"\",\"\",'1. Order'!BA1012)","v":""},{"$f":"IF('1. Order'!BC1012=\"\",\"\",'1. Order'!BC1012)","v":""},{"$f":"IF('1. Order'!BD1012=\"\",\"\",'1. Order'!BD1012)","v":6},{"$f":"IF('1. Order'!BE1012=\"\",\"\",'1. Order'!BE1012)","v":"None"},{"$f":"IF('1. Order'!BF1012=\"\",\"\",'1. Order'!BF1012)","v":"Parcel"},{"$f":"IF('1. Order'!BG1012=\"\",\"\",'1. Order'!BG1012)","v":"ZWO"}]
[{"$f":"IF('1. Order'!F1013=\"\",\"\",'1. Order'!F1013)","v":""},{"$f":"IF('1. Order'!G1013=\"\",\"\",'1. Order'!G1013)","v":""},{"$f":"IF('1. Order'!H1013=\"\",\"\",'1. Order'!H1013)","v":""},{"$f":"IF('1. Order'!I1013=\"\",\"\",'1. Order'!I1013)","v":""},{"$f":"IF('1. Order'!J1013=\"\",\"\",'1. Order'!J1013)","v":""},{"$f":"IF('1. Order'!K1013=\"\",\"\",'1. Order'!K1013)","v":""},{"$f":"IF('1. Order'!L1013=\"\",\"\",'1. Order'!L1013)","v":""},{"$f":"IF('1. Order'!M1013=\"\",\"\",'1. Order'!M1013)","v":""},{"$f":"IF('1. Order'!N1013=\"\",\"\",'1. Order'!N1013)","v":""},{"$f":"IF('1. Order'!O1013=\"\",\"\",'1. Order'!O1013)","v":{"$error":"#N/A"}},{"$f":"IF('1. Order'!P1013=\"\",\"\",'1. Order'!P1013)","v":{"$error":"#N/A"}},{"$f":"IF('1. Order'!Q1013=\"\",\"\",'1. Order'!Q1013)","v":""},{"$f":"IF('1. Order'!R1013=\"\",\"\",'1. Order'!R1013)","v":""},{"$f":"IF('1. Order'!S1013=\"\",\"\",'1. Order'!S1013)","v":""},{"$f":"IF('1. Order'!V1013=\"\",\"\",'1. Order'!V1013)","v":""},{"$f":"IF('1. Order'!W1013=\"\",\"\",'1. Order'!W1013)","v":""},{"$f":"IF('1. Order'!X1013=\"\",\"\",'1. Order'!X1013)","v":"EUR"},{"$f":"IF('1. Order'!Y1013=\"\",\"\",'1. Order'!Y1013)","v":""},{"$f":"IF('1. Order'!Z1013=\"\",\"\",'1. Order'!Z1013)","v":""},{"$f":"IF('1. Order'!AA1013=\"\",\"\",'1. Order'!AA1013)","v":""},null,{"$f":"IF('1. Order'!AS1013=\"\",\"\",'1. Order'!AS1013)","v":""},{"$f":"IF('1. Order'!AT1013=\"\",\"\",'1. Order'!AT1013)","v":""},null,null,null,null,null,null,null,{"$f":"IF('1. Order'!AX1013=\"\",\"\",'1. Order'!AX1013)","v":""},{"$f":"IF('1. Order'!AY1013=\"\",\"\",'1. Order'!AY1013)","v":""},{"$f":"IF('1. Order'!AZ1013=\"\",\"\",'1. Order'!AZ1013)","v":""},{"$f":"IF('1. Order'!BA1013=\"\",\"\",'1. Order'!BA1013)","v":""},{"$f":"IF('1. Order'!BC1013=\"\",\"\",'1. Order'!BC1013)","v":""},{"$f":"IF('1. Order'!BD1013=\"\",\"\",'1. Order'!BD1013)","v":6},{"$f":"IF('1. Order'!BE1013=\"\",\"\",'1. Order'!BE1013)","v":"None"},{"$f":"IF('1. Order'!BF1013=\"\",\"\",'1. Order'!BF1013)","v":"Parcel"},{"$f":"IF('1. Order'!BG1013=\"\",\"\",'1. Order'!BG1013)","v":"ZWO"}]
[{"$f":"IF('1. Order'!F1014=\"\",\"\",'1. Order'!F1014)","v":""},{"$f":"IF('1. Order'!G1014=\"\",\"\",'1. Order'!G1014)","v":""},{"$f":"IF('1. Order'!H1014=\"\",\"\",'1. Order'!H1014)","v":""},{"$f":"IF('1. Order'!I1014=\"\",\"\",'1. Order'!I1014)","v":""},{"$f":"IF('1. Order'!J1014=\"\",\"\",'1. Order'!J1014)","v":""},{"$f":"IF('1. Order'!K1014=\"\",\"\",'1. Order'!K1014)","v":""},{"$f":"IF('1. Order'!L1014=\"\",\"\",'1. Order'!L1014)","v":""},{"$f":"IF('1. Order'!M1014=\"\",\"\",'1. Order'!M1014)","v":""},{"$f":"IF('1. Order'!N1014=\"\",\"\",'1. Order'!N1014)","v":""},{"$f":"IF('1. Order'!O1014=\"\",\"\",'1. Order'!O1014)","v":{"$error":"#N/A"}},{"$f":"IF('1. Order'!P1014=\"\",\"\",'1. Order'!P1014)","v":{"$error":"#N/A"}},{"$f":"IF('1. Order'!Q1014=\"\",\"\",'1. Order'!Q1014)","v":""},{"$f":"IF('1. Order'!R1014=\"\",\"\",'1. Order'!R1014)","v":""},{"$f":"IF('1. Order'!S1014=\"\",\"\",'1. Order'!S1014)","v":""},{"$f":"IF('1. Order'!V1014=\"\",\"\",'1. Order'!V1014)","v":""},{"$f":"IF('1. Order'!W1014=\"\",\"\",'1. Order'!W1014)","v":""},{"$f":"IF('1. Order'!X1014=\"\",\"\",'1. Order'!X1014)","v":"EUR"},{"$f":"IF('1. Order'!Y1014=\"\",\"\",'1. Order'!Y1014)","v":""},{"$f":"IF('1. Order'!Z1014=\"\",\"\",'1. Order'!Z1014)","v":""},{"$f":"IF('1. Order'!AA1014=\"\",\"\",'1. Order'!AA1014)","v":""},null,{"$f":"IF('1. Order'!AS1014=\"\",\"\",'1. Order'!AS1014)","v":""},{"$f":"IF('1. Order'!AT1014=\"\",\"\",'1. Order'!AT1014)","v":""},null,null,null,null,null,null,null,{"$f":"IF('1. Order'!AX1014=\"\",\"\",'1. Order'!AX1014)","v":""},{"$f":"IF('1. Order'!AY1014=\"\",\"\",'1. Order'!AY1014)","v":""},{"$f":"IF('1. Order'!AZ1014=\"\",\"\",'1. Order'!AZ1014)","v":""},{"$f":"IF('1. Order'!BA1014=\"\",\"\",'1. Order'!BA1014)","v":""},{"$f":"IF('1. Order'!BC1014=\"\",\"\",'1. Order'!BC1014)","v":""},{"$f":"IF('1. Order'!BD1014=\"\",\"\",'1. Order'!BD1014)","v":6},{"$f":"IF('1. Order'!BE1014=\"\",\"\",'1. Order'!BE1014)","v":"None"},{"$f":"IF('1. Order'!BF1014=\"\",\"\",'1. Order'!BF1014)","v":"Parcel"},{"$f":"IF('1. Order'!BG1014=\"\",\"\",'1. Order'!BG1014)","v":"ZWO"}]
[{"$f":"IF('1. Order'!F1015=\"\",\"\",'1. Order'!F1015)","v":""},{"$f":"IF('1. Order'!G1015=\"\",\"\",'1. Order'!G1015)","v":""},{"$f":"IF('1. Order'!H1015=\"\",\"\",'1. Order'!H1015)","v":""},{"$f":"IF('1. Order'!I1015=\"\",\"\",'1. Order'!I1015)","v":""},{"$f":"IF('1. Order'!J1015=\"\",\"\",'1. Order'!J1015)","v":""},{"$f":"IF('1. Order'!K1015=\"\",\"\",'1. Order'!K1015)","v":""},{"$f":"IF('1. Order'!L1015=\"\",\"\",'1. Order'!L1015)","v":""},{"$f":"IF('1. Order'!M1015=\"\",\"\",'1. Order'!M1015)","v":""},{"$f":"IF('1. Order'!N1015=\"\",\"\",'1. Order'!N1015)","v":""},{"$f":"IF('1. Order'!O1015=\"\",\"\",'1. Order'!O1015)","v":{"$error":"#N/A"}},{"$f":"IF('1. Order'!P1015=\"\",\"\",'1. Order'!P1015)","v":{"$error":"#N/A"}},{"$f":"IF('1. Order'!Q1015=\"\",\"\",'1. Order'!Q1015)","v":""},{"$f":"IF('1. Order'!R1015=\"\",\"\",'1. Order'!R1015)","v":""},{"$f":"IF('1. Order'!S1015=\"\",\"\",'1. Order'!S1015)","v":""},{"$f":"IF('1. Order'!V1015=\"\",\"\",'1. Order'!V1015)","v":""},{"$f":"IF('1. Order'!W1015=\"\",\"\",'1. Order'!W1015)","v":""},{"$f":"IF('1. Order'!X1015=\"\",\"\",'1. Order'!X1015)","v":"EUR"},{"$f":"IF('1. Order'!Y1015=\"\",\"\",'1. Order'!Y1015)","v":""},{"$f":"IF('1. Order'!Z1015=\"\",\"\",'1. Order'!Z1015)","v":""},{"$f":"IF('1. Order'!AA1015=\"\",\"\",'1. Order'!AA1015)","v":""},null,{"$f":"IF('1. Order'!AS1015=\"\",\"\",'1. Order'!AS1015)","v":""},{"$f":"IF('1. Order'!AT1015=\"\",\"\",'1. Order'!AT1015)","v":""},null,null,null,null,null,null,null,{"$f":"IF('1. Order'!AX1015=\"\",\"\",'1. Order'!AX1015)","v":""},{"$f":"IF('1. Order'!AY1015=\"\",\"\",'1. Order'!AY1015)","v":""},{"$f":"IF('1. Order'!AZ1015=\"\",\"\",'1. Order'!AZ1015)","v":""},{"$f":"IF('1. Order'!BA1015=\"\",\"\",'1. Order'!BA1015)","v":""},{"$f":"IF('1. Order'!BC1015=\"\",\"\",'1. Order'!BC1015)","v":""},{"$f":"IF('1. Order'!BD1015=\"\",\"\",'1. Order'!BD1015)","v":6},{"$f":"IF('1. Order'!BE1015=\"\",\"\",'1. Order'!BE1015)","v":"None"},{"$f":"IF('1. Order'!BF1015=\"\",\"\",'1. Order'!BF1015)","v":"Parcel"},{"$f":"IF('1. Order'!BG1015=\"\",\"\",'1. Order'!BG1015)","v":"ZWO"}]
[{"$f":"IF('1. Order'!F1016=\"\",\"\",'1. Order'!F1016)","v":""},{"$f":"IF('1. Order'!G1016=\"\",\"\",'1. Order'!G1016)","v":""},{"$f":"IF('1. Order'!H1016=\"\",\"\",'1. Order'!H1016)","v":""},{"$f":"IF('1. Order'!I1016=\"\",\"\",'1. Order'!I1016)","v":""},{"$f":"IF('1. Order'!J1016=\"\",\"\",'1. Order'!J1016)","v":""},{"$f":"IF('1. Order'!K1016=\"\",\"\",'1. Order'!K1016)","v":""},{"$f":"IF('1. Order'!L1016=\"\",\"\",'1. Order'!L1016)","v":""},{"$f":"IF('1. Order'!M1016=\"\",\"\",'1. Order'!M1016)","v":""},{"$f":"IF('1. Order'!N1016=\"\",\"\",'1. Order'!N1016)","v":""},{"$f":"IF('1. Order'!O1016=\"\",\"\",'1. Order'!O1016)","v":{"$error":"#N/A"}},{"$f":"IF('1. Order'!P1016=\"\",\"\",'1. Order'!P1016)","v":{"$error":"#N/A"}},{"$f":"IF('1. Order'!Q1016=\"\",\"\",'1. Order'!Q1016)","v":""},{"$f":"IF('1. Order'!R1016=\"\",\"\",'1. Order'!R1016)","v":""},{"$f":"IF('1. Order'!S1016=\"\",\"\",'1. Order'!S1016)","v":""},{"$f":"IF('1. Order'!V1016=\"\",\"\",'1. Order'!V1016)","v":""},{"$f":"IF('1. Order'!W1016=\"\",\"\",'1. Order'!W1016)","v":""},{"$f":"IF('1. Order'!X1016=\"\",\"\",'1. Order'!X1016)","v":"EUR"},{"$f":"IF('1. Order'!Y1016=\"\",\"\",'1. Order'!Y1016)","v":""},{"$f":"IF('1. Order'!Z1016=\"\",\"\",'1. Order'!Z1016)","v":""},{"$f":"IF('1. Order'!AA1016=\"\",\"\",'1. Order'!AA1016)","v":""},null,{"$f":"IF('1. Order'!AS1016=\"\",\"\",'1. Order'!AS1016)","v":""},{"$f":"IF('1. Order'!AT1016=\"\",\"\",'1. Order'!AT1016)","v":""},null,null,null,null,null,null,null,{"$f":"IF('1. Order'!AX1016=\"\",\"\",'1. Order'!AX1016)","v":""},{"$f":"IF('1. Order'!AY1016=\"\",\"\",'1. Order'!AY1016)","v":""},{"$f":"IF('1. Order'!AZ1016=\"\",\"\",'1. Order'!AZ1016)","v":""},{"$f":"IF('1. Order'!BA1016=\"\",\"\",'1. Order'!BA1016)","v":""},{"$f":"IF('1. Order'!BC1016=\"\",\"\",'1. Order'!BC1016)","v":""},{"$f":"IF('1. Order'!BD1016=\"\",\"\",'1. Order'!BD1016)","v":6},{"$f":"IF('1. Order'!BE1016=\"\",\"\",'1. Order'!BE1016)","v":"None"},{"$f":"IF('1. Order'!BF1016=\"\",\"\",'1. Order'!BF1016)","v":"Parcel"},{"$f":"IF('1. Order'!BG1016=\"\",\"\",'1. Order'!BG1016)","v":"ZWO"}]
[{"$f":"IF('1. Order'!F1017=\"\",\"\",'1. Order'!F1017)","v":""},{"$f":"IF('1. Order'!G1017=\"\",\"\",'1. Order'!G1017)","v":""},{"$f":"IF('1. Order'!H1017=\"\",\"\",'1. Order'!H1017)","v":""},{"$f":"IF('1. Order'!I1017=\"\",\"\",'1. Order'!I1017)","v":""},{"$f":"IF('1. Order'!J1017=\"\",\"\",'1. Order'!J1017)","v":""},{"$f":"IF('1. Order'!K1017=\"\",\"\",'1. Order'!K1017)","v":""},{"$f":"IF('1. Order'!L1017=\"\",\"\",'1. Order'!L1017)","v":""},{"$f":"IF('1. Order'!M1017=\"\",\"\",'1. Order'!M1017)","v":""},{"$f":"IF('1. Order'!N1017=\"\",\"\",'1. Order'!N1017)","v":""},{"$f":"IF('1. Order'!O1017=\"\",\"\",'1. Order'!O1017)","v":{"$error":"#N/A"}},{"$f":"IF('1. Order'!P1017=\"\",\"\",'1. Order'!P1017)","v":{"$error":"#N/A"}},{"$f":"IF('1. Order'!Q1017=\"\",\"\",'1. Order'!Q1017)","v":""},{"$f":"IF('1. Order'!R1017=\"\",\"\",'1. Order'!R1017)","v":""},{"$f":"IF('1. Order'!S1017=\"\",\"\",'1. Order'!S1017)","v":""},{"$f":"IF('1. Order'!V1017=\"\",\"\",'1. Order'!V1017)","v":""},{"$f":"IF('1. Order'!W1017=\"\",\"\",'1. Order'!W1017)","v":""},{"$f":"IF('1. Order'!X1017=\"\",\"\",'1. Order'!X1017)","v":"EUR"},{"$f":"IF('1. Order'!Y1017=\"\",\"\",'1. Order'!Y1017)","v":""},{"$f":"IF('1. Order'!Z1017=\"\",\"\",'1. Order'!Z1017)","v":""},{"$f":"IF('1. Order'!AA1017=\"\",\"\",'1. Order'!AA1017)","v":""},null,{"$f":"IF('1. Order'!AS1017=\"\",\"\",'1. Order'!AS1017)","v":""},{"$f":"IF('1. Order'!AT1017=\"\",\"\",'1. Order'!AT1017)","v":""},null,null,null,null,null,null,null,{"$f":"IF('1. Order'!AX1017=\"\",\"\",'1. Order'!AX1017)","v":""},{"$f":"IF('1. Order'!AY1017=\"\",\"\",'1. Order'!AY1017)","v":""},{"$f":"IF('1. Order'!AZ1017=\"\",\"\",'1. Order'!AZ1017)","v":""},{"$f":"IF('1. Order'!BA1017=\"\",\"\",'1. Order'!BA1017)","v":""},{"$f":"IF('1. Order'!BC1017=\"\",\"\",'1. Order'!BC1017)","v":""},{"$f":"IF('1. Order'!BD1017=\"\",\"\",'1. Order'!BD1017)","v":6},{"$f":"IF('1. Order'!BE1017=\"\",\"\",'1. Order'!BE1017)","v":"None"},{"$f":"IF('1. Order'!BF1017=\"\",\"\",'1. Order'!BF1017)","v":"Parcel"},{"$f":"IF('1. Order'!BG1017=\"\",\"\",'1. Order'!BG1017)","v":"ZWO"}]
[{"$f":"IF('1. Order'!F1018=\"\",\"\",'1. Order'!F1018)","v":""},{"$f":"IF('1. Order'!G1018=\"\",\"\",'1. Order'!G1018)","v":""},{"$f":"IF('1. Order'!H1018=\"\",\"\",'1. Order'!H1018)","v":""},{"$f":"IF('1. Order'!I1018=\"\",\"\",'1. Order'!I1018)","v":""},{"$f":"IF('1. Order'!J1018=\"\",\"\",'1. Order'!J1018)","v":""},{"$f":"IF('1. Order'!K1018=\"\",\"\",'1. Order'!K1018)","v":""},{"$f":"IF('1. Order'!L1018=\"\",\"\",'1. Order'!L1018)","v":""},{"$f":"IF('1. Order'!M1018=\"\",\"\",'1. Order'!M1018)","v":""},{"$f":"IF('1. Order'!N1018=\"\",\"\",'1. Order'!N1018)","v":""},{"$f":"IF('1. Order'!O1018=\"\",\"\",'1. Order'!O1018)","v":{"$error":"#N/A"}},{"$f":"IF('1. Order'!P1018=\"\",\"\",'1. Order'!P1018)","v":{"$error":"#N/A"}},{"$f":"IF('1. Order'!Q1018=\"\",\"\",'1. Order'!Q1018)","v":""},{"$f":"IF('1. Order'!R1018=\"\",\"\",'1. Order'!R1018)","v":""},{"$f":"IF('1. Order'!S1018=\"\",\"\",'1. Order'!S1018)","v":""},{"$f":"IF('1. Order'!V1018=\"\",\"\",'1. Order'!V1018)","v":""},{"$f":"IF('1. Order'!W1018=\"\",\"\",'1. Order'!W1018)","v":""},{"$f":"IF('1. Order'!X1018=\"\",\"\",'1. Order'!X1018)","v":"EUR"},{"$f":"IF('1. Order'!Y1018=\"\",\"\",'1. Order'!Y1018)","v":""},{"$f":"IF('1. Order'!Z1018=\"\",\"\",'1. Order'!Z1018)","v":""},{"$f":"IF('1. Order'!AA1018=\"\",\"\",'1. Order'!AA1018)","v":""},null,{"$f":"IF('1. Order'!AS1018=\"\",\"\",'1. Order'!AS1018)","v":""},{"$f":"IF('1. Order'!AT1018=\"\",\"\",'1. Order'!AT1018)","v":""},null,null,null,null,null,null,null,{"$f":"IF('1. Order'!AX1018=\"\",\"\",'1. Order'!AX1018)","v":""},{"$f":"IF('1. Order'!AY1018=\"\",\"\",'1. Order'!AY1018)","v":""},{"$f":"IF('1. Order'!AZ1018=\"\",\"\",'1. Order'!AZ1018)","v":""},{"$f":"IF('1. Order'!BA1018=\"\",\"\",'1. Order'!BA1018)","v":""},{"$f":"IF('1. Order'!BC1018=\"\",\"\",'1. Order'!BC1018)","v":""},{"$f":"IF('1. Order'!BD1018=\"\",\"\",'1. Order'!BD1018)","v":6},{"$f":"IF('1. Order'!BE1018=\"\",\"\",'1. Order'!BE1018)","v":"None"},{"$f":"IF('1. Order'!BF1018=\"\",\"\",'1. Order'!BF1018)","v":"Parcel"},{"$f":"IF('1. Order'!BG1018=\"\",\"\",'1. Order'!BG1018)","v":"ZWO"}]
[{"$f":"IF('1. Order'!F1019=\"\",\"\",'1. Order'!F1019)","v":""},{"$f":"IF('1. Order'!G1019=\"\",\"\",'1. Order'!G1019)","v":""},{"$f":"IF('1. Order'!H1019=\"\",\"\",'1. Order'!H1019)","v":""},{"$f":"IF('1. Order'!I1019=\"\",\"\",'1. Order'!I1019)","v":""},{"$f":"IF('1. Order'!J1019=\"\",\"\",'1. Order'!J1019)","v":""},{"$f":"IF('1. Order'!K1019=\"\",\"\",'1. Order'!K1019)","v":""},{"$f":"IF('1. Order'!L1019=\"\",\"\",'1. Order'!L1019)","v":""},{"$f":"IF('1. Order'!M1019=\"\",\"\",'1. Order'!M1019)","v":""},{"$f":"IF('1. Order'!N1019=\"\",\"\",'1. Order'!N1019)","v":""},{"$f":"IF('1. Order'!O1019=\"\",\"\",'1. Order'!O1019)","v":{"$error":"#N/A"}},{"$f":"IF('1. Order'!P1019=\"\",\"\",'1. Order'!P1019)","v":{"$error":"#N/A"}},{"$f":"IF('1. Order'!Q1019=\"\",\"\",'1. Order'!Q1019)","v":""},{"$f":"IF('1. Order'!R1019=\"\",\"\",'1. Order'!R1019)","v":""},{"$f":"IF('1. Order'!S1019=\"\",\"\",'1. Order'!S1019)","v":""},{"$f":"IF('1. Order'!V1019=\"\",\"\",'1. Order'!V1019)","v":""},{"$f":"IF('1. Order'!W1019=\"\",\"\",'1. Order'!W1019)","v":""},{"$f":"IF('1. Order'!X1019=\"\",\"\",'1. Order'!X1019)","v":"EUR"},{"$f":"IF('1. Order'!Y1019=\"\",\"\",'1. Order'!Y1019)","v":""},{"$f":"IF('1. Order'!Z1019=\"\",\"\",'1. Order'!Z1019)","v":""},{"$f":"IF('1. Order'!AA1019=\"\",\"\",'1. Order'!AA1019)","v":""},null,{"$f":"IF('1. Order'!AS1019=\"\",\"\",'1. Order'!AS1019)","v":""},{"$f":"IF('1. Order'!AT1019=\"\",\"\",'1. Order'!AT1019)","v":""},null,null,null,null,null,null,null,{"$f":"IF('1. Order'!AX1019=\"\",\"\",'1. Order'!AX1019)","v":""},{"$f":"IF('1. Order'!AY1019=\"\",\"\",'1. Order'!AY1019)","v":""},{"$f":"IF('1. Order'!AZ1019=\"\",\"\",'1. Order'!AZ1019)","v":""},{"$f":"IF('1. Order'!BA1019=\"\",\"\",'1. Order'!BA1019)","v":""},{"$f":"IF('1. Order'!BC1019=\"\",\"\",'1. Order'!BC1019)","v":""},{"$f":"IF('1. Order'!BD1019=\"\",\"\",'1. Order'!BD1019)","v":6},{"$f":"IF('1. Order'!BE1019=\"\",\"\",'1. Order'!BE1019)","v":"None"},{"$f":"IF('1. Order'!BF1019=\"\",\"\",'1. Order'!BF1019)","v":"Parcel"},{"$f":"IF('1. Order'!BG1019=\"\",\"\",'1. Order'!BG1019)","v":"ZWO"}]
[{"$f":"IF('1. Order'!F1020=\"\",\"\",'1. Order'!F1020)","v":""},{"$f":"IF('1. Order'!G1020=\"\",\"\",'1. Order'!G1020)","v":""},{"$f":"IF('1. Order'!H1020=\"\",\"\",'1. Order'!H1020)","v":""},{"$f":"IF('1. Order'!I1020=\"\",\"\",'1. Order'!I1020)","v":""},{"$f":"IF('1. Order'!J1020=\"\",\"\",'1. Order'!J1020)","v":""},{"$f":"IF('1. Order'!K1020=\"\",\"\",'1. Order'!K1020)","v":""},{"$f":"IF('1. Order'!L1020=\"\",\"\",'1. Order'!L1020)","v":""},{"$f":"IF('1. Order'!M1020=\"\",\"\",'1. Order'!M1020)","v":""},{"$f":"IF('1. Order'!N1020=\"\",\"\",'1. Order'!N1020)","v":""},{"$f":"IF('1. Order'!O1020=\"\",\"\",'1. Order'!O1020)","v":{"$error":"#N/A"}},{"$f":"IF('1. Order'!P1020=\"\",\"\",'1. Order'!P1020)","v":{"$error":"#N/A"}},{"$f":"IF('1. Order'!Q1020=\"\",\"\",'1. Order'!Q1020)","v":""},{"$f":"IF('1. Order'!R1020=\"\",\"\",'1. Order'!R1020)","v":""},{"$f":"IF('1. Order'!S1020=\"\",\"\",'1. Order'!S1020)","v":""},{"$f":"IF('1. Order'!V1020=\"\",\"\",'1. Order'!V1020)","v":""},{"$f":"IF('1. Order'!W1020=\"\",\"\",'1. Order'!W1020)","v":""},{"$f":"IF('1. Order'!X1020=\"\",\"\",'1. Order'!X1020)","v":"EUR"},{"$f":"IF('1. Order'!Y1020=\"\",\"\",'1. Order'!Y1020)","v":""},{"$f":"IF('1. Order'!Z1020=\"\",\"\",'1. Order'!Z1020)","v":""},{"$f":"IF('1. Order'!AA1020=\"\",\"\",'1. Order'!AA1020)","v":""},null,{"$f":"IF('1. Order'!AS1020=\"\",\"\",'1. Order'!AS1020)","v":""},{"$f":"IF('1. Order'!AT1020=\"\",\"\",'1. Order'!AT1020)","v":""},null,null,null,null,null,null,null,{"$f":"IF('1. Order'!AX1020=\"\",\"\",'1. Order'!AX1020)","v":""},{"$f":"IF('1. Order'!AY1020=\"\",\"\",'1. Order'!AY1020)","v":""},{"$f":"IF('1. Order'!AZ1020=\"\",\"\",'1. Order'!AZ1020)","v":""},{"$f":"IF('1. Order'!BA1020=\"\",\"\",'1. Order'!BA1020)","v":""},{"$f":"IF('1. Order'!BC1020=\"\",\"\",'1. Order'!BC1020)","v":""},{"$f":"IF('1. Order'!BD1020=\"\",\"\",'1. Order'!BD1020)","v":6},{"$f":"IF('1. Order'!BE1020=\"\",\"\",'1. Order'!BE1020)","v":"None"},{"$f":"IF('1. Order'!BF1020=\"\",\"\",'1. Order'!BF1020)","v":"Parcel"},{"$f":"IF('1. Order'!BG1020=\"\",\"\",'1. Order'!BG1020)","v":"ZWO"}]
[{"$f":"IF('1. Order'!F1021=\"\",\"\",'1. Order'!F1021)","v":""},{"$f":"IF('1. Order'!G1021=\"\",\"\",'1. Order'!G1021)","v":""},{"$f":"IF('1. Order'!H1021=\"\",\"\",'1. Order'!H1021)","v":""},{"$f":"IF('1. Order'!I1021=\"\",\"\",'1. Order'!I1021)","v":""},{"$f":"IF('1. Order'!J1021=\"\",\"\",'1. Order'!J1021)","v":""},{"$f":"IF('1. Order'!K1021=\"\",\"\",'1. Order'!K1021)","v":""},{"$f":"IF('1. Order'!L1021=\"\",\"\",'1. Order'!L1021)","v":""},{"$f":"IF('1. Order'!M1021=\"\",\"\",'1. Order'!M1021)","v":""},{"$f":"IF('1. Order'!N1021=\"\",\"\",'1. Order'!N1021)","v":""},{"$f":"IF('1. Order'!O1021=\"\",\"\",'1. Order'!O1021)","v":{"$error":"#N/A"}},{"$f":"IF('1. Order'!P1021=\"\",\"\",'1. Order'!P1021)","v":{"$error":"#N/A"}},{"$f":"IF('1. Order'!Q1021=\"\",\"\",'1. Order'!Q1021)","v":""},{"$f":"IF('1. Order'!R1021=\"\",\"\",'1. Order'!R1021)","v":""},{"$f":"IF('1. Order'!S1021=\"\",\"\",'1. Order'!S1021)","v":""},{"$f":"IF('1. Order'!V1021=\"\",\"\",'1. Order'!V1021)","v":""},{"$f":"IF('1. Order'!W1021=\"\",\"\",'1. Order'!W1021)","v":""},{"$f":"IF('1. Order'!X1021=\"\",\"\",'1. Order'!X1021)","v":"EUR"},{"$f":"IF('1. Order'!Y1021=\"\",\"\",'1. Order'!Y1021)","v":""},{"$f":"IF('1. Order'!Z1021=\"\",\"\",'1. Order'!Z1021)","v":""},{"$f":"IF('1. Order'!AA1021=\"\",\"\",'1. Order'!AA1021)","v":""},null,{"$f":"IF('1. Order'!AS1021=\"\",\"\",'1. Order'!AS1021)","v":""},{"$f":"IF('1. Order'!AT1021=\"\",\"\",'1. Order'!AT1021)","v":""},null,null,null,null,null,null,null,{"$f":"IF('1. Order'!AX1021=\"\",\"\",'1. Order'!AX1021)","v":""},{"$f":"IF('1. Order'!AY1021=\"\",\"\",'1. Order'!AY1021)","v":""},{"$f":"IF('1. Order'!AZ1021=\"\",\"\",'1. Order'!AZ1021)","v":""},{"$f":"IF('1. Order'!BA1021=\"\",\"\",'1. Order'!BA1021)","v":""},{"$f":"IF('1. Order'!BC1021=\"\",\"\",'1. Order'!BC1021)","v":""},{"$f":"IF('1. Order'!BD1021=\"\",\"\",'1. Order'!BD1021)","v":6},{"$f":"IF('1. Order'!BE1021=\"\",\"\",'1. Order'!BE1021)","v":"None"},{"$f":"IF('1. Order'!BF1021=\"\",\"\",'1. Order'!BF1021)","v":"Parcel"},{"$f":"IF('1. Order'!BG1021=\"\",\"\",'1. Order'!BG1021)","v":"ZWO"}]
[{"$f":"IF('1. Order'!F1022=\"\",\"\",'1. Order'!F1022)","v":""},{"$f":"IF('1. Order'!G1022=\"\",\"\",'1. Order'!G1022)","v":""},{"$f":"IF('1. Order'!H1022=\"\",\"\",'1. Order'!H1022)","v":""},{"$f":"IF('1. Order'!I1022=\"\",\"\",'1. Order'!I1022)","v":""},{"$f":"IF('1. Order'!J1022=\"\",\"\",'1. Order'!J1022)","v":""},{"$f":"IF('1. Order'!K1022=\"\",\"\",'1. Order'!K1022)","v":""},{"$f":"IF('1. Order'!L1022=\"\",\"\",'1. Order'!L1022)","v":""},{"$f":"IF('1. Order'!M1022=\"\",\"\",'1. Order'!M1022)","v":""},{"$f":"IF('1. Order'!N1022=\"\",\"\",'1. Order'!N1022)","v":""},{"$f":"IF('1. Order'!O1022=\"\",\"\",'1. Order'!O1022)","v":{"$error":"#N/A"}},{"$f":"IF('1. Order'!P1022=\"\",\"\",'1. Order'!P1022)","v":{"$error":"#N/A"}},{"$f":"IF('1. Order'!Q1022=\"\",\"\",'1. Order'!Q1022)","v":""},{"$f":"IF('1. Order'!R1022=\"\",\"\",'1. Order'!R1022)","v":""},{"$f":"IF('1. Order'!S1022=\"\",\"\",'1. Order'!S1022)","v":""},{"$f":"IF('1. Order'!V1022=\"\",\"\",'1. Order'!V1022)","v":""},{"$f":"IF('1. Order'!W1022=\"\",\"\",'1. Order'!W1022)","v":""},{"$f":"IF('1. Order'!X1022=\"\",\"\",'1. Order'!X1022)","v":"EUR"},{"$f":"IF('1. Order'!Y1022=\"\",\"\",'1. Order'!Y1022)","v":""},{"$f":"IF('1. Order'!Z1022=\"\",\"\",'1. Order'!Z1022)","v":""},{"$f":"IF('1. Order'!AA1022=\"\",\"\",'1. Order'!AA1022)","v":""},null,{"$f":"IF('1. Order'!AS1022=\"\",\"\",'1. Order'!AS1022)","v":""},{"$f":"IF('1. Order'!AT1022=\"\",\"\",'1. Order'!AT1022)","v":""},null,null,null,null,null,null,null,{"$f":"IF('1. Order'!AX1022=\"\",\"\",'1. Order'!AX1022)","v":""},{"$f":"IF('1. Order'!AY1022=\"\",\"\",'1. Order'!AY1022)","v":""},{"$f":"IF('1. Order'!AZ1022=\"\",\"\",'1. Order'!AZ1022)","v":""},{"$f":"IF('1. Order'!BA1022=\"\",\"\",'1. Order'!BA1022)","v":""},{"$f":"IF('1. Order'!BC1022=\"\",\"\",'1. Order'!BC1022)","v":""},{"$f":"IF('1. Order'!BD1022=\"\",\"\",'1. Order'!BD1022)","v":6},{"$f":"IF('1. Order'!BE1022=\"\",\"\",'1. Order'!BE1022)","v":"None"},{"$f":"IF('1. Order'!BF1022=\"\",\"\",'1. Order'!BF1022)","v":"Parcel"},{"$f":"IF('1. Order'!BG1022=\"\",\"\",'1. Order'!BG1022)","v":"ZWO"}]
[{"$f":"IF('1. Order'!F1023=\"\",\"\",'1. Order'!F1023)","v":""},{"$f":"IF('1. Order'!G1023=\"\",\"\",'1. Order'!G1023)","v":""},{"$f":"IF('1. Order'!H1023=\"\",\"\",'1. Order'!H1023)","v":""},{"$f":"IF('1. Order'!I1023=\"\",\"\",'1. Order'!I1023)","v":""},{"$f":"IF('1. Order'!J1023=\"\",\"\",'1. Order'!J1023)","v":""},{"$f":"IF('1. Order'!K1023=\"\",\"\",'1. Order'!K1023)","v":""},{"$f":"IF('1. Order'!L1023=\"\",\"\",'1. Order'!L1023)","v":""},{"$f":"IF('1. Order'!M1023=\"\",\"\",'1. Order'!M1023)","v":""},{"$f":"IF('1. Order'!N1023=\"\",\"\",'1. Order'!N1023)","v":""},{"$f":"IF('1. Order'!O1023=\"\",\"\",'1. Order'!O1023)","v":{"$error":"#N/A"}},{"$f":"IF('1. Order'!P1023=\"\",\"\",'1. Order'!P1023)","v":{"$error":"#N/A"}},{"$f":"IF('1. Order'!Q1023=\"\",\"\",'1. Order'!Q1023)","v":""},{"$f":"IF('1. Order'!R1023=\"\",\"\",'1. Order'!R1023)","v":""},{"$f":"IF('1. Order'!S1023=\"\",\"\",'1. Order'!S1023)","v":""},{"$f":"IF('1. Order'!V1023=\"\",\"\",'1. Order'!V1023)","v":""},{"$f":"IF('1. Order'!W1023=\"\",\"\",'1. Order'!W1023)","v":""},{"$f":"IF('1. Order'!X1023=\"\",\"\",'1. Order'!X1023)","v":"EUR"},{"$f":"IF('1. Order'!Y1023=\"\",\"\",'1. Order'!Y1023)","v":""},{"$f":"IF('1. Order'!Z1023=\"\",\"\",'1. Order'!Z1023)","v":""},{"$f":"IF('1. Order'!AA1023=\"\",\"\",'1. Order'!AA1023)","v":""},null,{"$f":"IF('1. Order'!AS1023=\"\",\"\",'1. Order'!AS1023)","v":""},{"$f":"IF('1. Order'!AT1023=\"\",\"\",'1. Order'!AT1023)","v":""},null,null,null,null,null,null,null,{"$f":"IF('1. Order'!AX1023=\"\",\"\",'1. Order'!AX1023)","v":""},{"$f":"IF('1. Order'!AY1023=\"\",\"\",'1. Order'!AY1023)","v":""},{"$f":"IF('1. Order'!AZ1023=\"\",\"\",'1. Order'!AZ1023)","v":""},{"$f":"IF('1. Order'!BA1023=\"\",\"\",'1. Order'!BA1023)","v":""},{"$f":"IF('1. Order'!BC1023=\"\",\"\",'1. Order'!BC1023)","v":""},{"$f":"IF('1. Order'!BD1023=\"\",\"\",'1. Order'!BD1023)","v":6},{"$f":"IF('1. Order'!BE1023=\"\",\"\",'1. Order'!BE1023)","v":"None"},{"$f":"IF('1. Order'!BF1023=\"\",\"\",'1. Order'!BF1023)","v":"Parcel"},{"$f":"IF('1. Order'!BG1023=\"\",\"\",'1. Order'!BG1023)","v":"ZWO"}]
[{"$f":"IF('1. Order'!F1024=\"\",\"\",'1. Order'!F1024)","v":""},{"$f":"IF('1. Order'!G1024=\"\",\"\",'1. Order'!G1024)","v":""},{"$f":"IF('1. Order'!H1024=\"\",\"\",'1. Order'!H1024)","v":""},{"$f":"IF('1. Order'!I1024=\"\",\"\",'1. Order'!I1024)","v":""},{"$f":"IF('1. Order'!J1024=\"\",\"\",'1. Order'!J1024)","v":""},{"$f":"IF('1. Order'!K1024=\"\",\"\",'1. Order'!K1024)","v":""},{"$f":"IF('1. Order'!L1024=\"\",\"\",'1. Order'!L1024)","v":""},{"$f":"IF('1. Order'!M1024=\"\",\"\",'1. Order'!M1024)","v":""},{"$f":"IF('1. Order'!N1024=\"\",\"\",'1. Order'!N1024)","v":""},{"$f":"IF('1. Order'!O1024=\"\",\"\",'1. Order'!O1024)","v":{"$error":"#N/A"}},{"$f":"IF('1. Order'!P1024=\"\",\"\",'1. Order'!P1024)","v":{"$error":"#N/A"}},{"$f":"IF('1. Order'!Q1024=\"\",\"\",'1. Order'!Q1024)","v":""},{"$f":"IF('1. Order'!R1024=\"\",\"\",'1. Order'!R1024)","v":""},{"$f":"IF('1. Order'!S1024=\"\",\"\",'1. Order'!S1024)","v":""},{"$f":"IF('1. Order'!V1024=\"\",\"\",'1. Order'!V1024)","v":""},{"$f":"IF('1. Order'!W1024=\"\",\"\",'1. Order'!W1024)","v":""},{"$f":"IF('1. Order'!X1024=\"\",\"\",'1. Order'!X1024)","v":"EUR"},{"$f":"IF('1. Order'!Y1024=\"\",\"\",'1. Order'!Y1024)","v":""},{"$f":"IF('1. Order'!Z1024=\"\",\"\",'1. Order'!Z1024)","v":""},{"$f":"IF('1. Order'!AA1024=\"\",\"\",'1. Order'!AA1024)","v":""},null,{"$f":"IF('1. Order'!AS1024=\"\",\"\",'1. Order'!AS1024)","v":""},{"$f":"IF('1. Order'!AT1024=\"\",\"\",'1. Order'!AT1024)","v":""},null,null,null,null,null,null,null,{"$f":"IF('1. Order'!AX1024=\"\",\"\",'1. Order'!AX1024)","v":""},{"$f":"IF('1. Order'!AY1024=\"\",\"\",'1. Order'!AY1024)","v":""},{"$f":"IF('1. Order'!AZ1024=\"\",\"\",'1. Order'!AZ1024)","v":""},{"$f":"IF('1. Order'!BA1024=\"\",\"\",'1. Order'!BA1024)","v":""},{"$f":"IF('1. Order'!BC1024=\"\",\"\",'1. Order'!BC1024)","v":""},{"$f":"IF('1. Order'!BD1024=\"\",\"\",'1. Order'!BD1024)","v":6},{"$f":"IF('1. Order'!BE1024=\"\",\"\",'1. Order'!BE1024)","v":"None"},{"$f":"IF('1. Order'!BF1024=\"\",\"\",'1. Order'!BF1024)","v":"Parcel"},{"$f":"IF('1. Order'!BG1024=\"\",\"\",'1. Order'!BG1024)","v":"ZWO"}]
[{"$f":"IF('1. Order'!F1025=\"\",\"\",'1. Order'!F1025)","v":""},{"$f":"IF('1. Order'!G1025=\"\",\"\",'1. Order'!G1025)","v":""},{"$f":"IF('1. Order'!H1025=\"\",\"\",'1. Order'!H1025)","v":""},{"$f":"IF('1. Order'!I1025=\"\",\"\",'1. Order'!I1025)","v":""},{"$f":"IF('1. Order'!J1025=\"\",\"\",'1. Order'!J1025)","v":""},{"$f":"IF('1. Order'!K1025=\"\",\"\",'1. Order'!K1025)","v":""},{"$f":"IF('1. Order'!L1025=\"\",\"\",'1. Order'!L1025)","v":""},{"$f":"IF('1. Order'!M1025=\"\",\"\",'1. Order'!M1025)","v":""},{"$f":"IF('1. Order'!N1025=\"\",\"\",'1. Order'!N1025)","v":""},{"$f":"IF('1. Order'!O1025=\"\",\"\",'1. Order'!O1025)","v":{"$error":"#N/A"}},{"$f":"IF('1. Order'!P1025=\"\",\"\",'1. Order'!P1025)","v":{"$error":"#N/A"}},{"$f":"IF('1. Order'!Q1025=\"\",\"\",'1. Order'!Q1025)","v":""},{"$f":"IF('1. Order'!R1025=\"\",\"\",'1. Order'!R1025)","v":""},{"$f":"IF('1. Order'!S1025=\"\",\"\",'1. Order'!S1025)","v":""},{"$f":"IF('1. Order'!V1025=\"\",\"\",'1. Order'!V1025)","v":""},{"$f":"IF('1. Order'!W1025=\"\",\"\",'1. Order'!W1025)","v":""},{"$f":"IF('1. Order'!X1025=\"\",\"\",'1. Order'!X1025)","v":"EUR"},{"$f":"IF('1. Order'!Y1025=\"\",\"\",'1. Order'!Y1025)","v":""},{"$f":"IF('1. Order'!Z1025=\"\",\"\",'1. Order'!Z1025)","v":""},{"$f":"IF('1. Order'!AA1025=\"\",\"\",'1. Order'!AA1025)","v":""},null,{"$f":"IF('1. Order'!AS1025=\"\",\"\",'1. Order'!AS1025)","v":""},{"$f":"IF('1. Order'!AT1025=\"\",\"\",'1. Order'!AT1025)","v":""},null,null,null,null,null,null,null,{"$f":"IF('1. Order'!AX1025=\"\",\"\",'1. Order'!AX1025)","v":""},{"$f":"IF('1. Order'!AY1025=\"\",\"\",'1. Order'!AY1025)","v":""},{"$f":"IF('1. Order'!AZ1025=\"\",\"\",'1. Order'!AZ1025)","v":""},{"$f":"IF('1. Order'!BA1025=\"\",\"\",'1. Order'!BA1025)","v":""},{"$f":"IF('1. Order'!BC1025=\"\",\"\",'1. Order'!BC1025)","v":""},{"$f":"IF('1. Order'!BD1025=\"\",\"\",'1. Order'!BD1025)","v":6},{"$f":"IF('1. Order'!BE1025=\"\",\"\",'1. Order'!BE1025)","v":"None"},{"$f":"IF('1. Order'!BF1025=\"\",\"\",'1. Order'!BF1025)","v":"Parcel"},{"$f":"IF('1. Order'!BG1025=\"\",\"\",'1. Order'!BG1025)","v":"ZWO"}]
[{"$f":"IF('1. Order'!F1026=\"\",\"\",'1. Order'!F1026)","v":""},{"$f":"IF('1. Order'!G1026=\"\",\"\",'1. Order'!G1026)","v":""},{"$f":"IF('1. Order'!H1026=\"\",\"\",'1. Order'!H1026)","v":""},{"$f":"IF('1. Order'!I1026=\"\",\"\",'1. Order'!I1026)","v":""},{"$f":"IF('1. Order'!J1026=\"\",\"\",'1. Order'!J1026)","v":""},{"$f":"IF('1. Order'!K1026=\"\",\"\",'1. Order'!K1026)","v":""},{"$f":"IF('1. Order'!L1026=\"\",\"\",'1. Order'!L1026)","v":""},{"$f":"IF('1. Order'!M1026=\"\",\"\",'1. Order'!M1026)","v":""},{"$f":"IF('1. Order'!N1026=\"\",\"\",'1. Order'!N1026)","v":""},{"$f":"IF('1. Order'!O1026=\"\",\"\",'1. Order'!O1026)","v":{"$error":"#N/A"}},{"$f":"IF('1. Order'!P1026=\"\",\"\",'1. Order'!P1026)","v":{"$error":"#N/A"}},{"$f":"IF('1. Order'!Q1026=\"\",\"\",'1. Order'!Q1026)","v":""},{"$f":"IF('1. Order'!R1026=\"\",\"\",'1. Order'!R1026)","v":""},{"$f":"IF('1. Order'!S1026=\"\",\"\",'1. Order'!S1026)","v":""},{"$f":"IF('1. Order'!V1026=\"\",\"\",'1. Order'!V1026)","v":""},{"$f":"IF('1. Order'!W1026=\"\",\"\",'1. Order'!W1026)","v":""},{"$f":"IF('1. Order'!X1026=\"\",\"\",'1. Order'!X1026)","v":"EUR"},{"$f":"IF('1. Order'!Y1026=\"\",\"\",'1. Order'!Y1026)","v":""},{"$f":"IF('1. Order'!Z1026=\"\",\"\",'1. Order'!Z1026)","v":""},{"$f":"IF('1. Order'!AA1026=\"\",\"\",'1. Order'!AA1026)","v":""},null,{"$f":"IF('1. Order'!AS1026=\"\",\"\",'1. Order'!AS1026)","v":""},{"$f":"IF('1. Order'!AT1026=\"\",\"\",'1. Order'!AT1026)","v":""},null,null,null,null,null,null,null,{"$f":"IF('1. Order'!AX1026=\"\",\"\",'1. Order'!AX1026)","v":""},{"$f":"IF('1. Order'!AY1026=\"\",\"\",'1. Order'!AY1026)","v":""},{"$f":"IF('1. Order'!AZ1026=\"\",\"\",'1. Order'!AZ1026)","v":""},{"$f":"IF('1. Order'!BA1026=\"\",\"\",'1. Order'!BA1026)","v":""},{"$f":"IF('1. Order'!BC1026=\"\",\"\",'1. Order'!BC1026)","v":""},{"$f":"IF('1. Order'!BD1026=\"\",\"\",'1. Order'!BD1026)","v":6},{"$f":"IF('1. Order'!BE1026=\"\",\"\",'1. Order'!BE1026)","v":"None"},{"$f":"IF('1. Order'!BF1026=\"\",\"\",'1. Order'!BF1026)","v":"Parcel"},{"$f":"IF('1. Order'!BG1026=\"\",\"\",'1. Order'!BG1026)","v":"ZWO"}]
[{"$f":"IF('1. Order'!F1027=\"\",\"\",'1. Order'!F1027)","v":""},{"$f":"IF('1. Order'!G1027=\"\",\"\",'1. Order'!G1027)","v":""},{"$f":"IF('1. Order'!H1027=\"\",\"\",'1. Order'!H1027)","v":""},{"$f":"IF('1. Order'!I1027=\"\",\"\",'1. Order'!I1027)","v":""},{"$f":"IF('1. Order'!J1027=\"\",\"\",'1. Order'!J1027)","v":""},{"$f":"IF('1. Order'!K1027=\"\",\"\",'1. Order'!K1027)","v":""},{"$f":"IF('1. Order'!L1027=\"\",\"\",'1. Order'!L1027)","v":""},{"$f":"IF('1. Order'!M1027=\"\",\"\",'1. Order'!M1027)","v":""},{"$f":"IF('1. Order'!N1027=\"\",\"\",'1. Order'!N1027)","v":""},{"$f":"IF('1. Order'!O1027=\"\",\"\",'1. Order'!O1027)","v":{"$error":"#N/A"}},{"$f":"IF('1. Order'!P1027=\"\",\"\",'1. Order'!P1027)","v":{"$error":"#N/A"}},{"$f":"IF('1. Order'!Q1027=\"\",\"\",'1. Order'!Q1027)","v":""},{"$f":"IF('1. Order'!R1027=\"\",\"\",'1. Order'!R1027)","v":""},{"$f":"IF('1. Order'!S1027=\"\",\"\",'1. Order'!S1027)","v":""},{"$f":"IF('1. Order'!V1027=\"\",\"\",'1. Order'!V1027)","v":""},{"$f":"IF('1. Order'!W1027=\"\",\"\",'1. Order'!W1027)","v":""},{"$f":"IF('1. Order'!X1027=\"\",\"\",'1. Order'!X1027)","v":"EUR"},{"$f":"IF('1. Order'!Y1027=\"\",\"\",'1. Order'!Y1027)","v":""},{"$f":"IF('1. Order'!Z1027=\"\",\"\",'1. Order'!Z1027)","v":""},{"$f":"IF('1. Order'!AA1027=\"\",\"\",'1. Order'!AA1027)","v":""},null,{"$f":"IF('1. Order'!AS1027=\"\",\"\",'1. Order'!AS1027)","v":""},{"$f":"IF('1. Order'!AT1027=\"\",\"\",'1. Order'!AT1027)","v":""},null,null,null,null,null,null,null,{"$f":"IF('1. Order'!AX1027=\"\",\"\",'1. Order'!AX1027)","v":""},{"$f":"IF('1. Order'!AY1027=\"\",\"\",'1. Order'!AY1027)","v":""},{"$f":"IF('1. Order'!AZ1027=\"\",\"\",'1. Order'!AZ1027)","v":""},{"$f":"IF('1. Order'!BA1027=\"\",\"\",'1. Order'!BA1027)","v":""},{"$f":"IF('1. Order'!BC1027=\"\",\"\",'1. Order'!BC1027)","v":""},{"$f":"IF('1. Order'!BD1027=\"\",\"\",'1. Order'!BD1027)","v":6},{"$f":"IF('1. Order'!BE1027=\"\",\"\",'1. Order'!BE1027)","v":"None"},{"$f":"IF('1. Order'!BF1027=\"\",\"\",'1. Order'!BF1027)","v":"Parcel"},{"$f":"IF('1. Order'!BG1027=\"\",\"\",'1. Order'!BG1027)","v":"ZWO"}]
[{"$f":"IF('1. Order'!F1028=\"\",\"\",'1. Order'!F1028)","v":""},{"$f":"IF('1. Order'!G1028=\"\",\"\",'1. Order'!G1028)","v":""},{"$f":"IF('1. Order'!H1028=\"\",\"\",'1. Order'!H1028)","v":""},{"$f":"IF('1. Order'!I1028=\"\",\"\",'1. Order'!I1028)","v":""},{"$f":"IF('1. Order'!J1028=\"\",\"\",'1. Order'!J1028)","v":""},{"$f":"IF('1. Order'!K1028=\"\",\"\",'1. Order'!K1028)","v":""},{"$f":"IF('1. Order'!L1028=\"\",\"\",'1. Order'!L1028)","v":""},{"$f":"IF('1. Order'!M1028=\"\",\"\",'1. Order'!M1028)","v":""},{"$f":"IF('1. Order'!N1028=\"\",\"\",'1. Order'!N1028)","v":""},{"$f":"IF('1. Order'!O1028=\"\",\"\",'1. Order'!O1028)","v":{"$error":"#N/A"}},{"$f":"IF('1. Order'!P1028=\"\",\"\",'1. Order'!P1028)","v":{"$error":"#N/A"}},{"$f":"IF('1. Order'!Q1028=\"\",\"\",'1. Order'!Q1028)","v":""},{"$f":"IF('1. Order'!R1028=\"\",\"\",'1. Order'!R1028)","v":""},{"$f":"IF('1. Order'!S1028=\"\",\"\",'1. Order'!S1028)","v":""},{"$f":"IF('1. Order'!V1028=\"\",\"\",'1. Order'!V1028)","v":""},{"$f":"IF('1. Order'!W1028=\"\",\"\",'1. Order'!W1028)","v":""},{"$f":"IF('1. Order'!X1028=\"\",\"\",'1. Order'!X1028)","v":"EUR"},{"$f":"IF('1. Order'!Y1028=\"\",\"\",'1. Order'!Y1028)","v":""},{"$f":"IF('1. Order'!Z1028=\"\",\"\",'1. Order'!Z1028)","v":""},{"$f":"IF('1. Order'!AA1028=\"\",\"\",'1. Order'!AA1028)","v":""},null,{"$f":"IF('1. Order'!AS1028=\"\",\"\",'1. Order'!AS1028)","v":""},{"$f":"IF('1. Order'!AT1028=\"\",\"\",'1. Order'!AT1028)","v":""},null,null,null,null,null,null,null,{"$f":"IF('1. Order'!AX1028=\"\",\"\",'1. Order'!AX1028)","v":""},{"$f":"IF('1. Order'!AY1028=\"\",\"\",'1. Order'!AY1028)","v":""},{"$f":"IF('1. Order'!AZ1028=\"\",\"\",'1. Order'!AZ1028)","v":""},{"$f":"IF('1. Order'!BA1028=\"\",\"\",'1. Order'!BA1028)","v":""},{"$f":"IF('1. Order'!BC1028=\"\",\"\",'1. Order'!BC1028)","v":""},{"$f":"IF('1. Order'!BD1028=\"\",\"\",'1. Order'!BD1028)","v":6},{"$f":"IF('1. Order'!BE1028=\"\",\"\",'1. Order'!BE1028)","v":"None"},{"$f":"IF('1. Order'!BF1028=\"\",\"\",'1. Order'!BF1028)","v":"Parcel"},{"$f":"IF('1. Order'!BG1028=\"\",\"\",'1. Order'!BG1028)","v":"ZWO"}]
[{"$f":"IF('1. Order'!F1029=\"\",\"\",'1. Order'!F1029)","v":""},{"$f":"IF('1. Order'!G1029=\"\",\"\",'1. Order'!G1029)","v":""},{"$f":"IF('1. Order'!H1029=\"\",\"\",'1. Order'!H1029)","v":""},{"$f":"IF('1. Order'!I1029=\"\",\"\",'1. Order'!I1029)","v":""},{"$f":"IF('1. Order'!J1029=\"\",\"\",'1. Order'!J1029)","v":""},{"$f":"IF('1. Order'!K1029=\"\",\"\",'1. Order'!K1029)","v":""},{"$f":"IF('1. Order'!L1029=\"\",\"\",'1. Order'!L1029)","v":""},{"$f":"IF('1. Order'!M1029=\"\",\"\",'1. Order'!M1029)","v":""},{"$f":"IF('1. Order'!N1029=\"\",\"\",'1. Order'!N1029)","v":""},{"$f":"IF('1. Order'!O1029=\"\",\"\",'1. Order'!O1029)","v":{"$error":"#N/A"}},{"$f":"IF('1. Order'!P1029=\"\",\"\",'1. Order'!P1029)","v":{"$error":"#N/A"}},{"$f":"IF('1. Order'!Q1029=\"\",\"\",'1. Order'!Q1029)","v":""},{"$f":"IF('1. Order'!R1029=\"\",\"\",'1. Order'!R1029)","v":""},{"$f":"IF('1. Order'!S1029=\"\",\"\",'1. Order'!S1029)","v":""},{"$f":"IF('1. Order'!V1029=\"\",\"\",'1. Order'!V1029)","v":""},{"$f":"IF('1. Order'!W1029=\"\",\"\",'1. Order'!W1029)","v":""},{"$f":"IF('1. Order'!X1029=\"\",\"\",'1. Order'!X1029)","v":"EUR"},{"$f":"IF('1. Order'!Y1029=\"\",\"\",'1. Order'!Y1029)","v":""},{"$f":"IF('1. Order'!Z1029=\"\",\"\",'1. Order'!Z1029)","v":""},{"$f":"IF('1. Order'!AA1029=\"\",\"\",'1. Order'!AA1029)","v":""},null,{"$f":"IF('1. Order'!AS1029=\"\",\"\",'1. Order'!AS1029)","v":""},{"$f":"IF('1. Order'!AT1029=\"\",\"\",'1. Order'!AT1029)","v":""},null,null,null,null,null,null,null,{"$f":"IF('1. Order'!AX1029=\"\",\"\",'1. Order'!AX1029)","v":""},{"$f":"IF('1. Order'!AY1029=\"\",\"\",'1. Order'!AY1029)","v":""},{"$f":"IF('1. Order'!AZ1029=\"\",\"\",'1. Order'!AZ1029)","v":""},{"$f":"IF('1. Order'!BA1029=\"\",\"\",'1. Order'!BA1029)","v":""},{"$f":"IF('1. Order'!BC1029=\"\",\"\",'1. Order'!BC1029)","v":""},{"$f":"IF('1. Order'!BD1029=\"\",\"\",'1. Order'!BD1029)","v":6},{"$f":"IF('1. Order'!BE1029=\"\",\"\",'1. Order'!BE1029)","v":"None"},{"$f":"IF('1. Order'!BF1029=\"\",\"\",'1. Order'!BF1029)","v":"Parcel"},{"$f":"IF('1. Order'!BG1029=\"\",\"\",'1. Order'!BG1029)","v":"ZWO"}]
[{"$f":"IF('1. Order'!F1030=\"\",\"\",'1. Order'!F1030)","v":""},{"$f":"IF('1. Order'!G1030=\"\",\"\",'1. Order'!G1030)","v":""},{"$f":"IF('1. Order'!H1030=\"\",\"\",'1. Order'!H1030)","v":""},{"$f":"IF('1. Order'!I1030=\"\",\"\",'1. Order'!I1030)","v":""},{"$f":"IF('1. Order'!J1030=\"\",\"\",'1. Order'!J1030)","v":""},{"$f":"IF('1. Order'!K1030=\"\",\"\",'1. Order'!K1030)","v":""},{"$f":"IF('1. Order'!L1030=\"\",\"\",'1. Order'!L1030)","v":""},{"$f":"IF('1. Order'!M1030=\"\",\"\",'1. Order'!M1030)","v":""},{"$f":"IF('1. Order'!N1030=\"\",\"\",'1. Order'!N1030)","v":""},{"$f":"IF('1. Order'!O1030=\"\",\"\",'1. Order'!O1030)","v":{"$error":"#N/A"}},{"$f":"IF('1. Order'!P1030=\"\",\"\",'1. Order'!P1030)","v":{"$error":"#N/A"}},{"$f":"IF('1. Order'!Q1030=\"\",\"\",'1. Order'!Q1030)","v":""},{"$f":"IF('1. Order'!R1030=\"\",\"\",'1. Order'!R1030)","v":""},{"$f":"IF('1. Order'!S1030=\"\",\"\",'1. Order'!S1030)","v":""},{"$f":"IF('1. Order'!V1030=\"\",\"\",'1. Order'!V1030)","v":""},{"$f":"IF('1. Order'!W1030=\"\",\"\",'1. Order'!W1030)","v":""},{"$f":"IF('1. Order'!X1030=\"\",\"\",'1. Order'!X1030)","v":"EUR"},{"$f":"IF('1. Order'!Y1030=\"\",\"\",'1. Order'!Y1030)","v":""},{"$f":"IF('1. Order'!Z1030=\"\",\"\",'1. Order'!Z1030)","v":""},{"$f":"IF('1. Order'!AA1030=\"\",\"\",'1. Order'!AA1030)","v":""},null,{"$f":"IF('1. Order'!AS1030=\"\",\"\",'1. Order'!AS1030)","v":""},{"$f":"IF('1. Order'!AT1030=\"\",\"\",'1. Order'!AT1030)","v":""},null,null,null,null,null,null,null,{"$f":"IF('1. Order'!AX1030=\"\",\"\",'1. Order'!AX1030)","v":""},{"$f":"IF('1. Order'!AY1030=\"\",\"\",'1. Order'!AY1030)","v":""},{"$f":"IF('1. Order'!AZ1030=\"\",\"\",'1. Order'!AZ1030)","v":""},{"$f":"IF('1. Order'!BA1030=\"\",\"\",'1. Order'!BA1030)","v":""},{"$f":"IF('1. Order'!BC1030=\"\",\"\",'1. Order'!BC1030)","v":""},{"$f":"IF('1. Order'!BD1030=\"\",\"\",'1. Order'!BD1030)","v":6},{"$f":"IF('1. Order'!BE1030=\"\",\"\",'1. Order'!BE1030)","v":"None"},{"$f":"IF('1. Order'!BF1030=\"\",\"\",'1. Order'!BF1030)","v":"Parcel"},{"$f":"IF('1. Order'!BG1030=\"\",\"\",'1. Order'!BG1030)","v":"ZWO"}]
[{"$f":"IF('1. Order'!F1031=\"\",\"\",'1. Order'!F1031)","v":""},{"$f":"IF('1. Order'!G1031=\"\",\"\",'1. Order'!G1031)","v":""},{"$f":"IF('1. Order'!H1031=\"\",\"\",'1. Order'!H1031)","v":""},{"$f":"IF('1. Order'!I1031=\"\",\"\",'1. Order'!I1031)","v":""},{"$f":"IF('1. Order'!J1031=\"\",\"\",'1. Order'!J1031)","v":""},{"$f":"IF('1. Order'!K1031=\"\",\"\",'1. Order'!K1031)","v":""},{"$f":"IF('1. Order'!L1031=\"\",\"\",'1. Order'!L1031)","v":""},{"$f":"IF('1. Order'!M1031=\"\",\"\",'1. Order'!M1031)","v":""},{"$f":"IF('1. Order'!N1031=\"\",\"\",'1. Order'!N1031)","v":""},{"$f":"IF('1. Order'!O1031=\"\",\"\",'1. Order'!O1031)","v":{"$error":"#N/A"}},{"$f":"IF('1. Order'!P1031=\"\",\"\",'1. Order'!P1031)","v":{"$error":"#N/A"}},{"$f":"IF('1. Order'!Q1031=\"\",\"\",'1. Order'!Q1031)","v":""},{"$f":"IF('1. Order'!R1031=\"\",\"\",'1. Order'!R1031)","v":""},{"$f":"IF('1. Order'!S1031=\"\",\"\",'1. Order'!S1031)","v":""},{"$f":"IF('1. Order'!V1031=\"\",\"\",'1. Order'!V1031)","v":""},{"$f":"IF('1. Order'!W1031=\"\",\"\",'1. Order'!W1031)","v":""},{"$f":"IF('1. Order'!X1031=\"\",\"\",'1. Order'!X1031)","v":"EUR"},{"$f":"IF('1. Order'!Y1031=\"\",\"\",'1. Order'!Y1031)","v":""},{"$f":"IF('1. Order'!Z1031=\"\",\"\",'1. Order'!Z1031)","v":""},{"$f":"IF('1. Order'!AA1031=\"\",\"\",'1. Order'!AA1031)","v":""},null,{"$f":"IF('1. Order'!AS1031=\"\",\"\",'1. Order'!AS1031)","v":""},{"$f":"IF('1. Order'!AT1031=\"\",\"\",'1. Order'!AT1031)","v":""},null,null,null,null,null,null,null,{"$f":"IF('1. Order'!AX1031=\"\",\"\",'1. Order'!AX1031)","v":""},{"$f":"IF('1. Order'!AY1031=\"\",\"\",'1. Order'!AY1031)","v":""},{"$f":"IF('1. Order'!AZ1031=\"\",\"\",'1. Order'!AZ1031)","v":""},{"$f":"IF('1. Order'!BA1031=\"\",\"\",'1. Order'!BA1031)","v":""},{"$f":"IF('1. Order'!BC1031=\"\",\"\",'1. Order'!BC1031)","v":""},{"$f":"IF('1. Order'!BD1031=\"\",\"\",'1. Order'!BD1031)","v":6},{"$f":"IF('1. Order'!BE1031=\"\",\"\",'1. Order'!BE1031)","v":"None"},{"$f":"IF('1. Order'!BF1031=\"\",\"\",'1. Order'!BF1031)","v":"Parcel"},{"$f":"IF('1. Order'!BG1031=\"\",\"\",'1. Order'!BG1031)","v":"ZWO"}]
[{"$f":"IF('1. Order'!F1032=\"\",\"\",'1. Order'!F1032)","v":""},{"$f":"IF('1. Order'!G1032=\"\",\"\",'1. Order'!G1032)","v":""},{"$f":"IF('1. Order'!H1032=\"\",\"\",'1. Order'!H1032)","v":""},{"$f":"IF('1. Order'!I1032=\"\",\"\",'1. Order'!I1032)","v":""},{"$f":"IF('1. Order'!J1032=\"\",\"\",'1. Order'!J1032)","v":""},{"$f":"IF('1. Order'!K1032=\"\",\"\",'1. Order'!K1032)","v":""},{"$f":"IF('1. Order'!L1032=\"\",\"\",'1. Order'!L1032)","v":""},{"$f":"IF('1. Order'!M1032=\"\",\"\",'1. Order'!M1032)","v":""},{"$f":"IF('1. Order'!N1032=\"\",\"\",'1. Order'!N1032)","v":""},{"$f":"IF('1. Order'!O1032=\"\",\"\",'1. Order'!O1032)","v":{"$error":"#N/A"}},{"$f":"IF('1. Order'!P1032=\"\",\"\",'1. Order'!P1032)","v":{"$error":"#N/A"}},{"$f":"IF('1. Order'!Q1032=\"\",\"\",'1. Order'!Q1032)","v":""},{"$f":"IF('1. Order'!R1032=\"\",\"\",'1. Order'!R1032)","v":""},{"$f":"IF('1. Order'!S1032=\"\",\"\",'1. Order'!S1032)","v":""},{"$f":"IF('1. Order'!V1032=\"\",\"\",'1. Order'!V1032)","v":""},{"$f":"IF('1. Order'!W1032=\"\",\"\",'1. Order'!W1032)","v":""},{"$f":"IF('1. Order'!X1032=\"\",\"\",'1. Order'!X1032)","v":"EUR"},{"$f":"IF('1. Order'!Y1032=\"\",\"\",'1. Order'!Y1032)","v":""},{"$f":"IF('1. Order'!Z1032=\"\",\"\",'1. Order'!Z1032)","v":""},{"$f":"IF('1. Order'!AA1032=\"\",\"\",'1. Order'!AA1032)","v":""},null,{"$f":"IF('1. Order'!AS1032=\"\",\"\",'1. Order'!AS1032)","v":""},{"$f":"IF('1. Order'!AT1032=\"\",\"\",'1. Order'!AT1032)","v":""},null,null,null,null,null,null,null,{"$f":"IF('1. Order'!AX1032=\"\",\"\",'1. Order'!AX1032)","v":""},{"$f":"IF('1. Order'!AY1032=\"\",\"\",'1. Order'!AY1032)","v":""},{"$f":"IF('1. Order'!AZ1032=\"\",\"\",'1. Order'!AZ1032)","v":""},{"$f":"IF('1. Order'!BA1032=\"\",\"\",'1. Order'!BA1032)","v":""},{"$f":"IF('1. Order'!BC1032=\"\",\"\",'1. Order'!BC1032)","v":""},{"$f":"IF('1. Order'!BD1032=\"\",\"\",'1. Order'!BD1032)","v":6},{"$f":"IF('1. Order'!BE1032=\"\",\"\",'1. Order'!BE1032)","v":"None"},{"$f":"IF('1. Order'!BF1032=\"\",\"\",'1. Order'!BF1032)","v":"Parcel"},{"$f":"IF('1. Order'!BG1032=\"\",\"\",'1. Order'!BG1032)","v":"ZWO"}]
[{"$f":"IF('1. Order'!F1033=\"\",\"\",'1. Order'!F1033)","v":""},{"$f":"IF('1. Order'!G1033=\"\",\"\",'1. Order'!G1033)","v":""},{"$f":"IF('1. Order'!H1033=\"\",\"\",'1. Order'!H1033)","v":""},{"$f":"IF('1. Order'!I1033=\"\",\"\",'1. Order'!I1033)","v":""},{"$f":"IF('1. Order'!J1033=\"\",\"\",'1. Order'!J1033)","v":""},{"$f":"IF('1. Order'!K1033=\"\",\"\",'1. Order'!K1033)","v":""},{"$f":"IF('1. Order'!L1033=\"\",\"\",'1. Order'!L1033)","v":""},{"$f":"IF('1. Order'!M1033=\"\",\"\",'1. Order'!M1033)","v":""},{"$f":"IF('1. Order'!N1033=\"\",\"\",'1. Order'!N1033)","v":""},{"$f":"IF('1. Order'!O1033=\"\",\"\",'1. Order'!O1033)","v":{"$error":"#N/A"}},{"$f":"IF('1. Order'!P1033=\"\",\"\",'1. Order'!P1033)","v":{"$error":"#N/A"}},{"$f":"IF('1. Order'!Q1033=\"\",\"\",'1. Order'!Q1033)","v":""},{"$f":"IF('1. Order'!R1033=\"\",\"\",'1. Order'!R1033)","v":""},{"$f":"IF('1. Order'!S1033=\"\",\"\",'1. Order'!S1033)","v":""},{"$f":"IF('1. Order'!V1033=\"\",\"\",'1. Order'!V1033)","v":""},{"$f":"IF('1. Order'!W1033=\"\",\"\",'1. Order'!W1033)","v":""},{"$f":"IF('1. Order'!X1033=\"\",\"\",'1. Order'!X1033)","v":"EUR"},{"$f":"IF('1. Order'!Y1033=\"\",\"\",'1. Order'!Y1033)","v":""},{"$f":"IF('1. Order'!Z1033=\"\",\"\",'1. Order'!Z1033)","v":""},{"$f":"IF('1. Order'!AA1033=\"\",\"\",'1. Order'!AA1033)","v":""},null,{"$f":"IF('1. Order'!AS1033=\"\",\"\",'1. Order'!AS1033)","v":""},{"$f":"IF('1. Order'!AT1033=\"\",\"\",'1. Order'!AT1033)","v":""},null,null,null,null,null,null,null,{"$f":"IF('1. Order'!AX1033=\"\",\"\",'1. Order'!AX1033)","v":""},{"$f":"IF('1. Order'!AY1033=\"\",\"\",'1. Order'!AY1033)","v":""},{"$f":"IF('1. Order'!AZ1033=\"\",\"\",'1. Order'!AZ1033)","v":""},{"$f":"IF('1. Order'!BA1033=\"\",\"\",'1. Order'!BA1033)","v":""},{"$f":"IF('1. Order'!BC1033=\"\",\"\",'1. Order'!BC1033)","v":""},{"$f":"IF('1. Order'!BD1033=\"\",\"\",'1. Order'!BD1033)","v":6},{"$f":"IF('1. Order'!BE1033=\"\",\"\",'1. Order'!BE1033)","v":"None"},{"$f":"IF('1. Order'!BF1033=\"\",\"\",'1. Order'!BF1033)","v":"Parcel"},{"$f":"IF('1. Order'!BG1033=\"\",\"\",'1. Order'!BG1033)","v":"ZWO"}]
[{"$f":"IF('1. Order'!F1034=\"\",\"\",'1. Order'!F1034)","v":""},{"$f":"IF('1. Order'!G1034=\"\",\"\",'1. Order'!G1034)","v":""},{"$f":"IF('1. Order'!H1034=\"\",\"\",'1. Order'!H1034)","v":""},{"$f":"IF('1. Order'!I1034=\"\",\"\",'1. Order'!I1034)","v":""},{"$f":"IF('1. Order'!J1034=\"\",\"\",'1. Order'!J1034)","v":""},{"$f":"IF('1. Order'!K1034=\"\",\"\",'1. Order'!K1034)","v":""},{"$f":"IF('1. Order'!L1034=\"\",\"\",'1. Order'!L1034)","v":""},{"$f":"IF('1. Order'!M1034=\"\",\"\",'1. Order'!M1034)","v":""},{"$f":"IF('1. Order'!N1034=\"\",\"\",'1. Order'!N1034)","v":""},{"$f":"IF('1. Order'!O1034=\"\",\"\",'1. Order'!O1034)","v":{"$error":"#N/A"}},{"$f":"IF('1. Order'!P1034=\"\",\"\",'1. Order'!P1034)","v":{"$error":"#N/A"}},{"$f":"IF('1. Order'!Q1034=\"\",\"\",'1. Order'!Q1034)","v":""},{"$f":"IF('1. Order'!R1034=\"\",\"\",'1. Order'!R1034)","v":""},{"$f":"IF('1. Order'!S1034=\"\",\"\",'1. Order'!S1034)","v":""},{"$f":"IF('1. Order'!V1034=\"\",\"\",'1. Order'!V1034)","v":""},{"$f":"IF('1. Order'!W1034=\"\",\"\",'1. Order'!W1034)","v":""},{"$f":"IF('1. Order'!X1034=\"\",\"\",'1. Order'!X1034)","v":"EUR"},{"$f":"IF('1. Order'!Y1034=\"\",\"\",'1. Order'!Y1034)","v":""},{"$f":"IF('1. Order'!Z1034=\"\",\"\",'1. Order'!Z1034)","v":""},{"$f":"IF('1. Order'!AA1034=\"\",\"\",'1. Order'!AA1034)","v":""},null,{"$f":"IF('1. Order'!AS1034=\"\",\"\",'1. Order'!AS1034)","v":""},{"$f":"IF('1. Order'!AT1034=\"\",\"\",'1. Order'!AT1034)","v":""},null,null,null,null,null,null,null,{"$f":"IF('1. Order'!AX1034=\"\",\"\",'1. Order'!AX1034)","v":""},{"$f":"IF('1. Order'!AY1034=\"\",\"\",'1. Order'!AY1034)","v":""},{"$f":"IF('1. Order'!AZ1034=\"\",\"\",'1. Order'!AZ1034)","v":""},{"$f":"IF('1. Order'!BA1034=\"\",\"\",'1. Order'!BA1034)","v":""},{"$f":"IF('1. Order'!BC1034=\"\",\"\",'1. Order'!BC1034)","v":""},{"$f":"IF('1. Order'!BD1034=\"\",\"\",'1. Order'!BD1034)","v":6},{"$f":"IF('1. Order'!BE1034=\"\",\"\",'1. Order'!BE1034)","v":"None"},{"$f":"IF('1. Order'!BF1034=\"\",\"\",'1. Order'!BF1034)","v":"Parcel"},{"$f":"IF('1. Order'!BG1034=\"\",\"\",'1. Order'!BG1034)","v":"ZWO"}]
[{"$f":"IF('1. Order'!F1035=\"\",\"\",'1. Order'!F1035)","v":""},{"$f":"IF('1. Order'!G1035=\"\",\"\",'1. Order'!G1035)","v":""},{"$f":"IF('1. Order'!H1035=\"\",\"\",'1. Order'!H1035)","v":""},{"$f":"IF('1. Order'!I1035=\"\",\"\",'1. Order'!I1035)","v":""},{"$f":"IF('1. Order'!J1035=\"\",\"\",'1. Order'!J1035)","v":""},{"$f":"IF('1. Order'!K1035=\"\",\"\",'1. Order'!K1035)","v":""},{"$f":"IF('1. Order'!L1035=\"\",\"\",'1. Order'!L1035)","v":""},{"$f":"IF('1. Order'!M1035=\"\",\"\",'1. Order'!M1035)","v":""},{"$f":"IF('1. Order'!N1035=\"\",\"\",'1. Order'!N1035)","v":""},{"$f":"IF('1. Order'!O1035=\"\",\"\",'1. Order'!O1035)","v":{"$error":"#N/A"}},{"$f":"IF('1. Order'!P1035=\"\",\"\",'1. Order'!P1035)","v":{"$error":"#N/A"}},{"$f":"IF('1. Order'!Q1035=\"\",\"\",'1. Order'!Q1035)","v":""},{"$f":"IF('1. Order'!R1035=\"\",\"\",'1. Order'!R1035)","v":""},{"$f":"IF('1. Order'!S1035=\"\",\"\",'1. Order'!S1035)","v":""},{"$f":"IF('1. Order'!V1035=\"\",\"\",'1. Order'!V1035)","v":""},{"$f":"IF('1. Order'!W1035=\"\",\"\",'1. Order'!W1035)","v":""},{"$f":"IF('1. Order'!X1035=\"\",\"\",'1. Order'!X1035)","v":"EUR"},{"$f":"IF('1. Order'!Y1035=\"\",\"\",'1. Order'!Y1035)","v":""},{"$f":"IF('1. Order'!Z1035=\"\",\"\",'1. Order'!Z1035)","v":""},{"$f":"IF('1. Order'!AA1035=\"\",\"\",'1. Order'!AA1035)","v":""},null,{"$f":"IF('1. Order'!AS1035=\"\",\"\",'1. Order'!AS1035)","v":""},{"$f":"IF('1. Order'!AT1035=\"\",\"\",'1. Order'!AT1035)","v":""},null,null,null,null,null,null,null,{"$f":"IF('1. Order'!AX1035=\"\",\"\",'1. Order'!AX1035)","v":""},{"$f":"IF('1. Order'!AY1035=\"\",\"\",'1. Order'!AY1035)","v":""},{"$f":"IF('1. Order'!AZ1035=\"\",\"\",'1. Order'!AZ1035)","v":""},{"$f":"IF('1. Order'!BA1035=\"\",\"\",'1. Order'!BA1035)","v":""},{"$f":"IF('1. Order'!BC1035=\"\",\"\",'1. Order'!BC1035)","v":""},{"$f":"IF('1. Order'!BD1035=\"\",\"\",'1. Order'!BD1035)","v":6},{"$f":"IF('1. Order'!BE1035=\"\",\"\",'1. Order'!BE1035)","v":"None"},{"$f":"IF('1. Order'!BF1035=\"\",\"\",'1. Order'!BF1035)","v":"Parcel"},{"$f":"IF('1. Order'!BG1035=\"\",\"\",'1. Order'!BG1035)","v":"ZWO"}]
[{"$f":"IF('1. Order'!F1036=\"\",\"\",'1. Order'!F1036)","v":""},{"$f":"IF('1. Order'!G1036=\"\",\"\",'1. Order'!G1036)","v":""},{"$f":"IF('1. Order'!H1036=\"\",\"\",'1. Order'!H1036)","v":""},{"$f":"IF('1. Order'!I1036=\"\",\"\",'1. Order'!I1036)","v":""},{"$f":"IF('1. Order'!J1036=\"\",\"\",'1. Order'!J1036)","v":""},{"$f":"IF('1. Order'!K1036=\"\",\"\",'1. Order'!K1036)","v":""},{"$f":"IF('1. Order'!L1036=\"\",\"\",'1. Order'!L1036)","v":""},{"$f":"IF('1. Order'!M1036=\"\",\"\",'1. Order'!M1036)","v":""},{"$f":"IF('1. Order'!N1036=\"\",\"\",'1. Order'!N1036)","v":""},{"$f":"IF('1. Order'!O1036=\"\",\"\",'1. Order'!O1036)","v":{"$error":"#N/A"}},{"$f":"IF('1. Order'!P1036=\"\",\"\",'1. Order'!P1036)","v":{"$error":"#N/A"}},{"$f":"IF('1. Order'!Q1036=\"\",\"\",'1. Order'!Q1036)","v":""},{"$f":"IF('1. Order'!R1036=\"\",\"\",'1. Order'!R1036)","v":""},{"$f":"IF('1. Order'!S1036=\"\",\"\",'1. Order'!S1036)","v":""},{"$f":"IF('1. Order'!V1036=\"\",\"\",'1. Order'!V1036)","v":""},{"$f":"IF('1. Order'!W1036=\"\",\"\",'1. Order'!W1036)","v":""},{"$f":"IF('1. Order'!X1036=\"\",\"\",'1. Order'!X1036)","v":"EUR"},{"$f":"IF('1. Order'!Y1036=\"\",\"\",'1. Order'!Y1036)","v":""},{"$f":"IF('1. Order'!Z1036=\"\",\"\",'1. Order'!Z1036)","v":""},{"$f":"IF('1. Order'!AA1036=\"\",\"\",'1. Order'!AA1036)","v":""},null,{"$f":"IF('1. Order'!AS1036=\"\",\"\",'1. Order'!AS1036)","v":""},{"$f":"IF('1. Order'!AT1036=\"\",\"\",'1. Order'!AT1036)","v":""},null,null,null,null,null,null,null,{"$f":"IF('1. Order'!AX1036=\"\",\"\",'1. Order'!AX1036)","v":""},{"$f":"IF('1. Order'!AY1036=\"\",\"\",'1. Order'!AY1036)","v":""},{"$f":"IF('1. Order'!AZ1036=\"\",\"\",'1. Order'!AZ1036)","v":""},{"$f":"IF('1. Order'!BA1036=\"\",\"\",'1. Order'!BA1036)","v":""},{"$f":"IF('1. Order'!BC1036=\"\",\"\",'1. Order'!BC1036)","v":""},{"$f":"IF('1. Order'!BD1036=\"\",\"\",'1. Order'!BD1036)","v":6},{"$f":"IF('1. Order'!BE1036=\"\",\"\",'1. Order'!BE1036)","v":"None"},{"$f":"IF('1. Order'!BF1036=\"\",\"\",'1. Order'!BF1036)","v":"Parcel"},{"$f":"IF('1. Order'!BG1036=\"\",\"\",'1. Order'!BG1036)","v":"ZWO"}]
[{"$f":"IF('1. Order'!F1037=\"\",\"\",'1. Order'!F1037)","v":""},{"$f":"IF('1. Order'!G1037=\"\",\"\",'1. Order'!G1037)","v":""},{"$f":"IF('1. Order'!H1037=\"\",\"\",'1. Order'!H1037)","v":""},{"$f":"IF('1. Order'!I1037=\"\",\"\",'1. Order'!I1037)","v":""},{"$f":"IF('1. Order'!J1037=\"\",\"\",'1. Order'!J1037)","v":""},{"$f":"IF('1. Order'!K1037=\"\",\"\",'1. Order'!K1037)","v":""},{"$f":"IF('1. Order'!L1037=\"\",\"\",'1. Order'!L1037)","v":""},{"$f":"IF('1. Order'!M1037=\"\",\"\",'1. Order'!M1037)","v":""},{"$f":"IF('1. Order'!N1037=\"\",\"\",'1. Order'!N1037)","v":""},{"$f":"IF('1. Order'!O1037=\"\",\"\",'1. Order'!O1037)","v":{"$error":"#N/A"}},{"$f":"IF('1. Order'!P1037=\"\",\"\",'1. Order'!P1037)","v":{"$error":"#N/A"}},{"$f":"IF('1. Order'!Q1037=\"\",\"\",'1. Order'!Q1037)","v":""},{"$f":"IF('1. Order'!R1037=\"\",\"\",'1. Order'!R1037)","v":""},{"$f":"IF('1. Order'!S1037=\"\",\"\",'1. Order'!S1037)","v":""},{"$f":"IF('1. Order'!V1037=\"\",\"\",'1. Order'!V1037)","v":""},{"$f":"IF('1. Order'!W1037=\"\",\"\",'1. Order'!W1037)","v":""},{"$f":"IF('1. Order'!X1037=\"\",\"\",'1. Order'!X1037)","v":"EUR"},{"$f":"IF('1. Order'!Y1037=\"\",\"\",'1. Order'!Y1037)","v":""},{"$f":"IF('1. Order'!Z1037=\"\",\"\",'1. Order'!Z1037)","v":""},{"$f":"IF('1. Order'!AA1037=\"\",\"\",'1. Order'!AA1037)","v":""},null,{"$f":"IF('1. Order'!AS1037=\"\",\"\",'1. Order'!AS1037)","v":""},{"$f":"IF('1. Order'!AT1037=\"\",\"\",'1. Order'!AT1037)","v":""},null,null,null,null,null,null,null,{"$f":"IF('1. Order'!AX1037=\"\",\"\",'1. Order'!AX1037)","v":""},{"$f":"IF('1. Order'!AY1037=\"\",\"\",'1. Order'!AY1037)","v":""},{"$f":"IF('1. Order'!AZ1037=\"\",\"\",'1. Order'!AZ1037)","v":""},{"$f":"IF('1. Order'!BA1037=\"\",\"\",'1. Order'!BA1037)","v":""},{"$f":"IF('1. Order'!BC1037=\"\",\"\",'1. Order'!BC1037)","v":""},{"$f":"IF('1. Order'!BD1037=\"\",\"\",'1. Order'!BD1037)","v":6},{"$f":"IF('1. Order'!BE1037=\"\",\"\",'1. Order'!BE1037)","v":"None"},{"$f":"IF('1. Order'!BF1037=\"\",\"\",'1. Order'!BF1037)","v":"Parcel"},{"$f":"IF('1. Order'!BG1037=\"\",\"\",'1. Order'!BG1037)","v":"ZWO"}]
[{"$f":"IF('1. Order'!F1038=\"\",\"\",'1. Order'!F1038)","v":""},{"$f":"IF('1. Order'!G1038=\"\",\"\",'1. Order'!G1038)","v":""},{"$f":"IF('1. Order'!H1038=\"\",\"\",'1. Order'!H1038)","v":""},{"$f":"IF('1. Order'!I1038=\"\",\"\",'1. Order'!I1038)","v":""},{"$f":"IF('1. Order'!J1038=\"\",\"\",'1. Order'!J1038)","v":""},{"$f":"IF('1. Order'!K1038=\"\",\"\",'1. Order'!K1038)","v":""},{"$f":"IF('1. Order'!L1038=\"\",\"\",'1. Order'!L1038)","v":""},{"$f":"IF('1. Order'!M1038=\"\",\"\",'1. Order'!M1038)","v":""},{"$f":"IF('1. Order'!N1038=\"\",\"\",'1. Order'!N1038)","v":""},{"$f":"IF('1. Order'!O1038=\"\",\"\",'1. Order'!O1038)","v":{"$error":"#N/A"}},{"$f":"IF('1. Order'!P1038=\"\",\"\",'1. Order'!P1038)","v":{"$error":"#N/A"}},{"$f":"IF('1. Order'!Q1038=\"\",\"\",'1. Order'!Q1038)","v":""},{"$f":"IF('1. Order'!R1038=\"\",\"\",'1. Order'!R1038)","v":""},{"$f":"IF('1. Order'!S1038=\"\",\"\",'1. Order'!S1038)","v":""},{"$f":"IF('1. Order'!V1038=\"\",\"\",'1. Order'!V1038)","v":""},{"$f":"IF('1. Order'!W1038=\"\",\"\",'1. Order'!W1038)","v":""},{"$f":"IF('1. Order'!X1038=\"\",\"\",'1. Order'!X1038)","v":"EUR"},{"$f":"IF('1. Order'!Y1038=\"\",\"\",'1. Order'!Y1038)","v":""},{"$f":"IF('1. Order'!Z1038=\"\",\"\",'1. Order'!Z1038)","v":""},{"$f":"IF('1. Order'!AA1038=\"\",\"\",'1. Order'!AA1038)","v":""},null,{"$f":"IF('1. Order'!AS1038=\"\",\"\",'1. Order'!AS1038)","v":""},{"$f":"IF('1. Order'!AT1038=\"\",\"\",'1. Order'!AT1038)","v":""},null,null,null,null,null,null,null,{"$f":"IF('1. Order'!AX1038=\"\",\"\",'1. Order'!AX1038)","v":""},{"$f":"IF('1. Order'!AY1038=\"\",\"\",'1. Order'!AY1038)","v":""},{"$f":"IF('1. Order'!AZ1038=\"\",\"\",'1. Order'!AZ1038)","v":""},{"$f":"IF('1. Order'!BA1038=\"\",\"\",'1. Order'!BA1038)","v":""},{"$f":"IF('1. Order'!BC1038=\"\",\"\",'1. Order'!BC1038)","v":""},{"$f":"IF('1. Order'!BD1038=\"\",\"\",'1. Order'!BD1038)","v":6},{"$f":"IF('1. Order'!BE1038=\"\",\"\",'1. Order'!BE1038)","v":"None"},{"$f":"IF('1. Order'!BF1038=\"\",\"\",'1. Order'!BF1038)","v":"Parcel"},{"$f":"IF('1. Order'!BG1038=\"\",\"\",'1. Order'!BG1038)","v":"ZWO"}]
[{"$f":"IF('1. Order'!F1039=\"\",\"\",'1. Order'!F1039)","v":""},{"$f":"IF('1. Order'!G1039=\"\",\"\",'1. Order'!G1039)","v":""},{"$f":"IF('1. Order'!H1039=\"\",\"\",'1. Order'!H1039)","v":""},{"$f":"IF('1. Order'!I1039=\"\",\"\",'1. Order'!I1039)","v":""},{"$f":"IF('1. Order'!J1039=\"\",\"\",'1. Order'!J1039)","v":""},{"$f":"IF('1. Order'!K1039=\"\",\"\",'1. Order'!K1039)","v":""},{"$f":"IF('1. Order'!L1039=\"\",\"\",'1. Order'!L1039)","v":""},{"$f":"IF('1. Order'!M1039=\"\",\"\",'1. Order'!M1039)","v":""},{"$f":"IF('1. Order'!N1039=\"\",\"\",'1. Order'!N1039)","v":""},{"$f":"IF('1. Order'!O1039=\"\",\"\",'1. Order'!O1039)","v":{"$error":"#N/A"}},{"$f":"IF('1. Order'!P1039=\"\",\"\",'1. Order'!P1039)","v":{"$error":"#N/A"}},{"$f":"IF('1. Order'!Q1039=\"\",\"\",'1. Order'!Q1039)","v":""},{"$f":"IF('1. Order'!R1039=\"\",\"\",'1. Order'!R1039)","v":""},{"$f":"IF('1. Order'!S1039=\"\",\"\",'1. Order'!S1039)","v":""},{"$f":"IF('1. Order'!V1039=\"\",\"\",'1. Order'!V1039)","v":""},{"$f":"IF('1. Order'!W1039=\"\",\"\",'1. Order'!W1039)","v":""},{"$f":"IF('1. Order'!X1039=\"\",\"\",'1. Order'!X1039)","v":"EUR"},{"$f":"IF('1. Order'!Y1039=\"\",\"\",'1. Order'!Y1039)","v":""},{"$f":"IF('1. Order'!Z1039=\"\",\"\",'1. Order'!Z1039)","v":""},{"$f":"IF('1. Order'!AA1039=\"\",\"\",'1. Order'!AA1039)","v":""},null,{"$f":"IF('1. Order'!AS1039=\"\",\"\",'1. Order'!AS1039)","v":""},{"$f":"IF('1. Order'!AT1039=\"\",\"\",'1. Order'!AT1039)","v":""},null,null,null,null,null,null,null,{"$f":"IF('1. Order'!AX1039=\"\",\"\",'1. Order'!AX1039)","v":""},{"$f":"IF('1. Order'!AY1039=\"\",\"\",'1. Order'!AY1039)","v":""},{"$f":"IF('1. Order'!AZ1039=\"\",\"\",'1. Order'!AZ1039)","v":""},{"$f":"IF('1. Order'!BA1039=\"\",\"\",'1. Order'!BA1039)","v":""},{"$f":"IF('1. Order'!BC1039=\"\",\"\",'1. Order'!BC1039)","v":""},{"$f":"IF('1. Order'!BD1039=\"\",\"\",'1. Order'!BD1039)","v":6},{"$f":"IF('1. Order'!BE1039=\"\",\"\",'1. Order'!BE1039)","v":"None"},{"$f":"IF('1. Order'!BF1039=\"\",\"\",'1. Order'!BF1039)","v":"Parcel"},{"$f":"IF('1. Order'!BG1039=\"\",\"\",'1. Order'!BG1039)","v":"ZWO"}]
[{"$f":"IF('1. Order'!F1040=\"\",\"\",'1. Order'!F1040)","v":""},{"$f":"IF('1. Order'!G1040=\"\",\"\",'1. Order'!G1040)","v":""},{"$f":"IF('1. Order'!H1040=\"\",\"\",'1. Order'!H1040)","v":""},{"$f":"IF('1. Order'!I1040=\"\",\"\",'1. Order'!I1040)","v":""},{"$f":"IF('1. Order'!J1040=\"\",\"\",'1. Order'!J1040)","v":""},{"$f":"IF('1. Order'!K1040=\"\",\"\",'1. Order'!K1040)","v":""},{"$f":"IF('1. Order'!L1040=\"\",\"\",'1. Order'!L1040)","v":""},{"$f":"IF('1. Order'!M1040=\"\",\"\",'1. Order'!M1040)","v":""},{"$f":"IF('1. Order'!N1040=\"\",\"\",'1. Order'!N1040)","v":""},{"$f":"IF('1. Order'!O1040=\"\",\"\",'1. Order'!O1040)","v":{"$error":"#N/A"}},{"$f":"IF('1. Order'!P1040=\"\",\"\",'1. Order'!P1040)","v":{"$error":"#N/A"}},{"$f":"IF('1. Order'!Q1040=\"\",\"\",'1. Order'!Q1040)","v":""},{"$f":"IF('1. Order'!R1040=\"\",\"\",'1. Order'!R1040)","v":""},{"$f":"IF('1. Order'!S1040=\"\",\"\",'1. Order'!S1040)","v":""},{"$f":"IF('1. Order'!V1040=\"\",\"\",'1. Order'!V1040)","v":""},{"$f":"IF('1. Order'!W1040=\"\",\"\",'1. Order'!W1040)","v":""},{"$f":"IF('1. Order'!X1040=\"\",\"\",'1. Order'!X1040)","v":"EUR"},{"$f":"IF('1. Order'!Y1040=\"\",\"\",'1. Order'!Y1040)","v":""},{"$f":"IF('1. Order'!Z1040=\"\",\"\",'1. Order'!Z1040)","v":""},{"$f":"IF('1. Order'!AA1040=\"\",\"\",'1. Order'!AA1040)","v":""},null,{"$f":"IF('1. Order'!AS1040=\"\",\"\",'1. Order'!AS1040)","v":""},{"$f":"IF('1. Order'!AT1040=\"\",\"\",'1. Order'!AT1040)","v":""},null,null,null,null,null,null,null,{"$f":"IF('1. Order'!AX1040=\"\",\"\",'1. Order'!AX1040)","v":""},{"$f":"IF('1. Order'!AY1040=\"\",\"\",'1. Order'!AY1040)","v":""},{"$f":"IF('1. Order'!AZ1040=\"\",\"\",'1. Order'!AZ1040)","v":""},{"$f":"IF('1. Order'!BA1040=\"\",\"\",'1. Order'!BA1040)","v":""},{"$f":"IF('1. Order'!BC1040=\"\",\"\",'1. Order'!BC1040)","v":""},{"$f":"IF('1. Order'!BD1040=\"\",\"\",'1. Order'!BD1040)","v":6},{"$f":"IF('1. Order'!BE1040=\"\",\"\",'1. Order'!BE1040)","v":"None"},{"$f":"IF('1. Order'!BF1040=\"\",\"\",'1. Order'!BF1040)","v":"Parcel"},{"$f":"IF('1. Order'!BG1040=\"\",\"\",'1. Order'!BG1040)","v":"ZWO"}]
[{"$f":"IF('1. Order'!F1041=\"\",\"\",'1. Order'!F1041)","v":""},{"$f":"IF('1. Order'!G1041=\"\",\"\",'1. Order'!G1041)","v":""},{"$f":"IF('1. Order'!H1041=\"\",\"\",'1. Order'!H1041)","v":""},{"$f":"IF('1. Order'!I1041=\"\",\"\",'1. Order'!I1041)","v":""},{"$f":"IF('1. Order'!J1041=\"\",\"\",'1. Order'!J1041)","v":""},{"$f":"IF('1. Order'!K1041=\"\",\"\",'1. Order'!K1041)","v":""},{"$f":"IF('1. Order'!L1041=\"\",\"\",'1. Order'!L1041)","v":""},{"$f":"IF('1. Order'!M1041=\"\",\"\",'1. Order'!M1041)","v":""},{"$f":"IF('1. Order'!N1041=\"\",\"\",'1. Order'!N1041)","v":""},{"$f":"IF('1. Order'!O1041=\"\",\"\",'1. Order'!O1041)","v":{"$error":"#N/A"}},{"$f":"IF('1. Order'!P1041=\"\",\"\",'1. Order'!P1041)","v":{"$error":"#N/A"}},{"$f":"IF('1. Order'!Q1041=\"\",\"\",'1. Order'!Q1041)","v":""},{"$f":"IF('1. Order'!R1041=\"\",\"\",'1. Order'!R1041)","v":""},{"$f":"IF('1. Order'!S1041=\"\",\"\",'1. Order'!S1041)","v":""},{"$f":"IF('1. Order'!V1041=\"\",\"\",'1. Order'!V1041)","v":""},{"$f":"IF('1. Order'!W1041=\"\",\"\",'1. Order'!W1041)","v":""},{"$f":"IF('1. Order'!X1041=\"\",\"\",'1. Order'!X1041)","v":"EUR"},{"$f":"IF('1. Order'!Y1041=\"\",\"\",'1. Order'!Y1041)","v":""},{"$f":"IF('1. Order'!Z1041=\"\",\"\",'1. Order'!Z1041)","v":""},{"$f":"IF('1. Order'!AA1041=\"\",\"\",'1. Order'!AA1041)","v":""},null,{"$f":"IF('1. Order'!AS1041=\"\",\"\",'1. Order'!AS1041)","v":""},{"$f":"IF('1. Order'!AT1041=\"\",\"\",'1. Order'!AT1041)","v":""},null,null,null,null,null,null,null,{"$f":"IF('1. Order'!AX1041=\"\",\"\",'1. Order'!AX1041)","v":""},{"$f":"IF('1. Order'!AY1041=\"\",\"\",'1. Order'!AY1041)","v":""},{"$f":"IF('1. Order'!AZ1041=\"\",\"\",'1. Order'!AZ1041)","v":""},{"$f":"IF('1. Order'!BA1041=\"\",\"\",'1. Order'!BA1041)","v":""},{"$f":"IF('1. Order'!BC1041=\"\",\"\",'1. Order'!BC1041)","v":""},{"$f":"IF('1. Order'!BD1041=\"\",\"\",'1. Order'!BD1041)","v":6},{"$f":"IF('1. Order'!BE1041=\"\",\"\",'1. Order'!BE1041)","v":"None"},{"$f":"IF('1. Order'!BF1041=\"\",\"\",'1. Order'!BF1041)","v":"Parcel"},{"$f":"IF('1. Order'!BG1041=\"\",\"\",'1. Order'!BG1041)","v":"ZWO"}]
[{"$f":"IF('1. Order'!F1042=\"\",\"\",'1. Order'!F1042)","v":""},{"$f":"IF('1. Order'!G1042=\"\",\"\",'1. Order'!G1042)","v":""},{"$f":"IF('1. Order'!H1042=\"\",\"\",'1. Order'!H1042)","v":""},{"$f":"IF('1. Order'!I1042=\"\",\"\",'1. Order'!I1042)","v":""},{"$f":"IF('1. Order'!J1042=\"\",\"\",'1. Order'!J1042)","v":""},{"$f":"IF('1. Order'!K1042=\"\",\"\",'1. Order'!K1042)","v":""},{"$f":"IF('1. Order'!L1042=\"\",\"\",'1. Order'!L1042)","v":""},{"$f":"IF('1. Order'!M1042=\"\",\"\",'1. Order'!M1042)","v":""},{"$f":"IF('1. Order'!N1042=\"\",\"\",'1. Order'!N1042)","v":""},{"$f":"IF('1. Order'!O1042=\"\",\"\",'1. Order'!O1042)","v":{"$error":"#N/A"}},{"$f":"IF('1. Order'!P1042=\"\",\"\",'1. Order'!P1042)","v":{"$error":"#N/A"}},{"$f":"IF('1. Order'!Q1042=\"\",\"\",'1. Order'!Q1042)","v":""},{"$f":"IF('1. Order'!R1042=\"\",\"\",'1. Order'!R1042)","v":""},{"$f":"IF('1. Order'!S1042=\"\",\"\",'1. Order'!S1042)","v":""},{"$f":"IF('1. Order'!V1042=\"\",\"\",'1. Order'!V1042)","v":""},{"$f":"IF('1. Order'!W1042=\"\",\"\",'1. Order'!W1042)","v":""},{"$f":"IF('1. Order'!X1042=\"\",\"\",'1. Order'!X1042)","v":"EUR"},{"$f":"IF('1. Order'!Y1042=\"\",\"\",'1. Order'!Y1042)","v":""},{"$f":"IF('1. Order'!Z1042=\"\",\"\",'1. Order'!Z1042)","v":""},{"$f":"IF('1. Order'!AA1042=\"\",\"\",'1. Order'!AA1042)","v":""},null,{"$f":"IF('1. Order'!AS1042=\"\",\"\",'1. Order'!AS1042)","v":""},{"$f":"IF('1. Order'!AT1042=\"\",\"\",'1. Order'!AT1042)","v":""},null,null,null,null,null,null,null,{"$f":"IF('1. Order'!AX1042=\"\",\"\",'1. Order'!AX1042)","v":""},{"$f":"IF('1. Order'!AY1042=\"\",\"\",'1. Order'!AY1042)","v":""},{"$f":"IF('1. Order'!AZ1042=\"\",\"\",'1. Order'!AZ1042)","v":""},{"$f":"IF('1. Order'!BA1042=\"\",\"\",'1. Order'!BA1042)","v":""},{"$f":"IF('1. Order'!BC1042=\"\",\"\",'1. Order'!BC1042)","v":""},{"$f":"IF('1. Order'!BD1042=\"\",\"\",'1. Order'!BD1042)","v":6},{"$f":"IF('1. Order'!BE1042=\"\",\"\",'1. Order'!BE1042)","v":"None"},{"$f":"IF('1. Order'!BF1042=\"\",\"\",'1. Order'!BF1042)","v":"Parcel"},{"$f":"IF('1. Order'!BG1042=\"\",\"\",'1. Order'!BG1042)","v":"ZWO"}]
[{"$f":"IF('1. Order'!F1043=\"\",\"\",'1. Order'!F1043)","v":""},{"$f":"IF('1. Order'!G1043=\"\",\"\",'1. Order'!G1043)","v":""},{"$f":"IF('1. Order'!H1043=\"\",\"\",'1. Order'!H1043)","v":""},{"$f":"IF('1. Order'!I1043=\"\",\"\",'1. Order'!I1043)","v":""},{"$f":"IF('1. Order'!J1043=\"\",\"\",'1. Order'!J1043)","v":""},{"$f":"IF('1. Order'!K1043=\"\",\"\",'1. Order'!K1043)","v":""},{"$f":"IF('1. Order'!L1043=\"\",\"\",'1. Order'!L1043)","v":""},{"$f":"IF('1. Order'!M1043=\"\",\"\",'1. Order'!M1043)","v":""},{"$f":"IF('1. Order'!N1043=\"\",\"\",'1. Order'!N1043)","v":""},{"$f":"IF('1. Order'!O1043=\"\",\"\",'1. Order'!O1043)","v":{"$error":"#N/A"}},{"$f":"IF('1. Order'!P1043=\"\",\"\",'1. Order'!P1043)","v":{"$error":"#N/A"}},{"$f":"IF('1. Order'!Q1043=\"\",\"\",'1. Order'!Q1043)","v":""},{"$f":"IF('1. Order'!R1043=\"\",\"\",'1. Order'!R1043)","v":""},{"$f":"IF('1. Order'!S1043=\"\",\"\",'1. Order'!S1043)","v":""},{"$f":"IF('1. Order'!V1043=\"\",\"\",'1. Order'!V1043)","v":""},{"$f":"IF('1. Order'!W1043=\"\",\"\",'1. Order'!W1043)","v":""},{"$f":"IF('1. Order'!X1043=\"\",\"\",'1. Order'!X1043)","v":"EUR"},{"$f":"IF('1. Order'!Y1043=\"\",\"\",'1. Order'!Y1043)","v":""},{"$f":"IF('1. Order'!Z1043=\"\",\"\",'1. Order'!Z1043)","v":""},{"$f":"IF('1. Order'!AA1043=\"\",\"\",'1. Order'!AA1043)","v":""},null,{"$f":"IF('1. Order'!AS1043=\"\",\"\",'1. Order'!AS1043)","v":""},{"$f":"IF('1. Order'!AT1043=\"\",\"\",'1. Order'!AT1043)","v":""},null,null,null,null,null,null,null,{"$f":"IF('1. Order'!AX1043=\"\",\"\",'1. Order'!AX1043)","v":""},{"$f":"IF('1. Order'!AY1043=\"\",\"\",'1. Order'!AY1043)","v":""},{"$f":"IF('1. Order'!AZ1043=\"\",\"\",'1. Order'!AZ1043)","v":""},{"$f":"IF('1. Order'!BA1043=\"\",\"\",'1. Order'!BA1043)","v":""},{"$f":"IF('1. Order'!BC1043=\"\",\"\",'1. Order'!BC1043)","v":""},{"$f":"IF('1. Order'!BD1043=\"\",\"\",'1. Order'!BD1043)","v":6},{"$f":"IF('1. Order'!BE1043=\"\",\"\",'1. Order'!BE1043)","v":"None"},{"$f":"IF('1. Order'!BF1043=\"\",\"\",'1. Order'!BF1043)","v":"Parcel"},{"$f":"IF('1. Order'!BG1043=\"\",\"\",'1. Order'!BG1043)","v":"ZWO"}]
[{"$f":"IF('1. Order'!F1044=\"\",\"\",'1. Order'!F1044)","v":""},{"$f":"IF('1. Order'!G1044=\"\",\"\",'1. Order'!G1044)","v":""},{"$f":"IF('1. Order'!H1044=\"\",\"\",'1. Order'!H1044)","v":""},{"$f":"IF('1. Order'!I1044=\"\",\"\",'1. Order'!I1044)","v":""},{"$f":"IF('1. Order'!J1044=\"\",\"\",'1. Order'!J1044)","v":""},{"$f":"IF('1. Order'!K1044=\"\",\"\",'1. Order'!K1044)","v":""},{"$f":"IF('1. Order'!L1044=\"\",\"\",'1. Order'!L1044)","v":""},{"$f":"IF('1. Order'!M1044=\"\",\"\",'1. Order'!M1044)","v":""},{"$f":"IF('1. Order'!N1044=\"\",\"\",'1. Order'!N1044)","v":""},{"$f":"IF('1. Order'!O1044=\"\",\"\",'1. Order'!O1044)","v":{"$error":"#N/A"}},{"$f":"IF('1. Order'!P1044=\"\",\"\",'1. Order'!P1044)","v":{"$error":"#N/A"}},{"$f":"IF('1. Order'!Q1044=\"\",\"\",'1. Order'!Q1044)","v":""},{"$f":"IF('1. Order'!R1044=\"\",\"\",'1. Order'!R1044)","v":""},{"$f":"IF('1. Order'!S1044=\"\",\"\",'1. Order'!S1044)","v":""},{"$f":"IF('1. Order'!V1044=\"\",\"\",'1. Order'!V1044)","v":""},{"$f":"IF('1. Order'!W1044=\"\",\"\",'1. Order'!W1044)","v":""},{"$f":"IF('1. Order'!X1044=\"\",\"\",'1. Order'!X1044)","v":"EUR"},{"$f":"IF('1. Order'!Y1044=\"\",\"\",'1. Order'!Y1044)","v":""},{"$f":"IF('1. Order'!Z1044=\"\",\"\",'1. Order'!Z1044)","v":""},{"$f":"IF('1. Order'!AA1044=\"\",\"\",'1. Order'!AA1044)","v":""},null,{"$f":"IF('1. Order'!AS1044=\"\",\"\",'1. Order'!AS1044)","v":""},{"$f":"IF('1. Order'!AT1044=\"\",\"\",'1. Order'!AT1044)","v":""},null,null,null,null,null,null,null,{"$f":"IF('1. Order'!AX1044=\"\",\"\",'1. Order'!AX1044)","v":""},{"$f":"IF('1. Order'!AY1044=\"\",\"\",'1. Order'!AY1044)","v":""},{"$f":"IF('1. Order'!AZ1044=\"\",\"\",'1. Order'!AZ1044)","v":""},{"$f":"IF('1. Order'!BA1044=\"\",\"\",'1. Order'!BA1044)","v":""},{"$f":"IF('1. Order'!BC1044=\"\",\"\",'1. Order'!BC1044)","v":""},{"$f":"IF('1. Order'!BD1044=\"\",\"\",'1. Order'!BD1044)","v":6},{"$f":"IF('1. Order'!BE1044=\"\",\"\",'1. Order'!BE1044)","v":"None"},{"$f":"IF('1. Order'!BF1044=\"\",\"\",'1. Order'!BF1044)","v":"Parcel"},{"$f":"IF('1. Order'!BG1044=\"\",\"\",'1. Order'!BG1044)","v":"ZWO"}]
[{"$f":"IF('1. Order'!F1045=\"\",\"\",'1. Order'!F1045)","v":""},{"$f":"IF('1. Order'!G1045=\"\",\"\",'1. Order'!G1045)","v":""},{"$f":"IF('1. Order'!H1045=\"\",\"\",'1. Order'!H1045)","v":""},{"$f":"IF('1. Order'!I1045=\"\",\"\",'1. Order'!I1045)","v":""},{"$f":"IF('1. Order'!J1045=\"\",\"\",'1. Order'!J1045)","v":""},{"$f":"IF('1. Order'!K1045=\"\",\"\",'1. Order'!K1045)","v":""},{"$f":"IF('1. Order'!L1045=\"\",\"\",'1. Order'!L1045)","v":""},{"$f":"IF('1. Order'!M1045=\"\",\"\",'1. Order'!M1045)","v":""},{"$f":"IF('1. Order'!N1045=\"\",\"\",'1. Order'!N1045)","v":""},{"$f":"IF('1. Order'!O1045=\"\",\"\",'1. Order'!O1045)","v":{"$error":"#N/A"}},{"$f":"IF('1. Order'!P1045=\"\",\"\",'1. Order'!P1045)","v":{"$error":"#N/A"}},{"$f":"IF('1. Order'!Q1045=\"\",\"\",'1. Order'!Q1045)","v":""},{"$f":"IF('1. Order'!R1045=\"\",\"\",'1. Order'!R1045)","v":""},{"$f":"IF('1. Order'!S1045=\"\",\"\",'1. Order'!S1045)","v":""},{"$f":"IF('1. Order'!V1045=\"\",\"\",'1. Order'!V1045)","v":""},{"$f":"IF('1. Order'!W1045=\"\",\"\",'1. Order'!W1045)","v":""},{"$f":"IF('1. Order'!X1045=\"\",\"\",'1. Order'!X1045)","v":"EUR"},{"$f":"IF('1. Order'!Y1045=\"\",\"\",'1. Order'!Y1045)","v":""},{"$f":"IF('1. Order'!Z1045=\"\",\"\",'1. Order'!Z1045)","v":""},{"$f":"IF('1. Order'!AA1045=\"\",\"\",'1. Order'!AA1045)","v":""},null,{"$f":"IF('1. Order'!AS1045=\"\",\"\",'1. Order'!AS1045)","v":""},{"$f":"IF('1. Order'!AT1045=\"\",\"\",'1. Order'!AT1045)","v":""},null,null,null,null,null,null,null,{"$f":"IF('1. Order'!AX1045=\"\",\"\",'1. Order'!AX1045)","v":""},{"$f":"IF('1. Order'!AY1045=\"\",\"\",'1. Order'!AY1045)","v":""},{"$f":"IF('1. Order'!AZ1045=\"\",\"\",'1. Order'!AZ1045)","v":""},{"$f":"IF('1. Order'!BA1045=\"\",\"\",'1. Order'!BA1045)","v":""},{"$f":"IF('1. Order'!BC1045=\"\",\"\",'1. Order'!BC1045)","v":""},{"$f":"IF('1. Order'!BD1045=\"\",\"\",'1. Order'!BD1045)","v":6},{"$f":"IF('1. Order'!BE1045=\"\",\"\",'1. Order'!BE1045)","v":"None"},{"$f":"IF('1. Order'!BF1045=\"\",\"\",'1. Order'!BF1045)","v":"Parcel"},{"$f":"IF('1. Order'!BG1045=\"\",\"\",'1. Order'!BG1045)","v":"ZWO"}]
[{"$f":"IF('1. Order'!F1046=\"\",\"\",'1. Order'!F1046)","v":""},{"$f":"IF('1. Order'!G1046=\"\",\"\",'1. Order'!G1046)","v":""},{"$f":"IF('1. Order'!H1046=\"\",\"\",'1. Order'!H1046)","v":""},{"$f":"IF('1. Order'!I1046=\"\",\"\",'1. Order'!I1046)","v":""},{"$f":"IF('1. Order'!J1046=\"\",\"\",'1. Order'!J1046)","v":""},{"$f":"IF('1. Order'!K1046=\"\",\"\",'1. Order'!K1046)","v":""},{"$f":"IF('1. Order'!L1046=\"\",\"\",'1. Order'!L1046)","v":""},{"$f":"IF('1. Order'!M1046=\"\",\"\",'1. Order'!M1046)","v":""},{"$f":"IF('1. Order'!N1046=\"\",\"\",'1. Order'!N1046)","v":""},{"$f":"IF('1. Order'!O1046=\"\",\"\",'1. Order'!O1046)","v":{"$error":"#N/A"}},{"$f":"IF('1. Order'!P1046=\"\",\"\",'1. Order'!P1046)","v":{"$error":"#N/A"}},{"$f":"IF('1. Order'!Q1046=\"\",\"\",'1. Order'!Q1046)","v":""},{"$f":"IF('1. Order'!R1046=\"\",\"\",'1. Order'!R1046)","v":""},{"$f":"IF('1. Order'!S1046=\"\",\"\",'1. Order'!S1046)","v":""},{"$f":"IF('1. Order'!V1046=\"\",\"\",'1. Order'!V1046)","v":""},{"$f":"IF('1. Order'!W1046=\"\",\"\",'1. Order'!W1046)","v":""},{"$f":"IF('1. Order'!X1046=\"\",\"\",'1. Order'!X1046)","v":"EUR"},{"$f":"IF('1. Order'!Y1046=\"\",\"\",'1. Order'!Y1046)","v":""},{"$f":"IF('1. Order'!Z1046=\"\",\"\",'1. Order'!Z1046)","v":""},{"$f":"IF('1. Order'!AA1046=\"\",\"\",'1. Order'!AA1046)","v":""},null,{"$f":"IF('1. Order'!AS1046=\"\",\"\",'1. Order'!AS1046)","v":""},{"$f":"IF('1. Order'!AT1046=\"\",\"\",'1. Order'!AT1046)","v":""},null,null,null,null,null,null,null,{"$f":"IF('1. Order'!AX1046=\"\",\"\",'1. Order'!AX1046)","v":""},{"$f":"IF('1. Order'!AY1046=\"\",\"\",'1. Order'!AY1046)","v":""},{"$f":"IF('1. Order'!AZ1046=\"\",\"\",'1. Order'!AZ1046)","v":""},{"$f":"IF('1. Order'!BA1046=\"\",\"\",'1. Order'!BA1046)","v":""},{"$f":"IF('1. Order'!BC1046=\"\",\"\",'1. Order'!BC1046)","v":""},{"$f":"IF('1. Order'!BD1046=\"\",\"\",'1. Order'!BD1046)","v":6},{"$f":"IF('1. Order'!BE1046=\"\",\"\",'1. Order'!BE1046)","v":"None"},{"$f":"IF('1. Order'!BF1046=\"\",\"\",'1. Order'!BF1046)","v":"Parcel"},{"$f":"IF('1. Order'!BG1046=\"\",\"\",'1. Order'!BG1046)","v":"ZWO"}]
[{"$f":"IF('1. Order'!F1047=\"\",\"\",'1. Order'!F1047)","v":""},{"$f":"IF('1. Order'!G1047=\"\",\"\",'1. Order'!G1047)","v":""},{"$f":"IF('1. Order'!H1047=\"\",\"\",'1. Order'!H1047)","v":""},{"$f":"IF('1. Order'!I1047=\"\",\"\",'1. Order'!I1047)","v":""},{"$f":"IF('1. Order'!J1047=\"\",\"\",'1. Order'!J1047)","v":""},{"$f":"IF('1. Order'!K1047=\"\",\"\",'1. Order'!K1047)","v":""},{"$f":"IF('1. Order'!L1047=\"\",\"\",'1. Order'!L1047)","v":""},{"$f":"IF('1. Order'!M1047=\"\",\"\",'1. Order'!M1047)","v":""},{"$f":"IF('1. Order'!N1047=\"\",\"\",'1. Order'!N1047)","v":""},{"$f":"IF('1. Order'!O1047=\"\",\"\",'1. Order'!O1047)","v":{"$error":"#N/A"}},{"$f":"IF('1. Order'!P1047=\"\",\"\",'1. Order'!P1047)","v":{"$error":"#N/A"}},{"$f":"IF('1. Order'!Q1047=\"\",\"\",'1. Order'!Q1047)","v":""},{"$f":"IF('1. Order'!R1047=\"\",\"\",'1. Order'!R1047)","v":""},{"$f":"IF('1. Order'!S1047=\"\",\"\",'1. Order'!S1047)","v":""},{"$f":"IF('1. Order'!V1047=\"\",\"\",'1. Order'!V1047)","v":""},{"$f":"IF('1. Order'!W1047=\"\",\"\",'1. Order'!W1047)","v":""},{"$f":"IF('1. Order'!X1047=\"\",\"\",'1. Order'!X1047)","v":"EUR"},{"$f":"IF('1. Order'!Y1047=\"\",\"\",'1. Order'!Y1047)","v":""},{"$f":"IF('1. Order'!Z1047=\"\",\"\",'1. Order'!Z1047)","v":""},{"$f":"IF('1. Order'!AA1047=\"\",\"\",'1. Order'!AA1047)","v":""},null,{"$f":"IF('1. Order'!AS1047=\"\",\"\",'1. Order'!AS1047)","v":""},{"$f":"IF('1. Order'!AT1047=\"\",\"\",'1. Order'!AT1047)","v":""},null,null,null,null,null,null,null,{"$f":"IF('1. Order'!AX1047=\"\",\"\",'1. Order'!AX1047)","v":""},{"$f":"IF('1. Order'!AY1047=\"\",\"\",'1. Order'!AY1047)","v":""},{"$f":"IF('1. Order'!AZ1047=\"\",\"\",'1. Order'!AZ1047)","v":""},{"$f":"IF('1. Order'!BA1047=\"\",\"\",'1. Order'!BA1047)","v":""},{"$f":"IF('1. Order'!BC1047=\"\",\"\",'1. Order'!BC1047)","v":""},{"$f":"IF('1. Order'!BD1047=\"\",\"\",'1. Order'!BD1047)","v":6},{"$f":"IF('1. Order'!BE1047=\"\",\"\",'1. Order'!BE1047)","v":"None"},{"$f":"IF('1. Order'!BF1047=\"\",\"\",'1. Order'!BF1047)","v":"Parcel"},{"$f":"IF('1. Order'!BG1047=\"\",\"\",'1. Order'!BG1047)","v":"ZWO"}]
[{"$f":"IF('1. Order'!F1048=\"\",\"\",'1. Order'!F1048)","v":""},{"$f":"IF('1. Order'!G1048=\"\",\"\",'1. Order'!G1048)","v":""},{"$f":"IF('1. Order'!H1048=\"\",\"\",'1. Order'!H1048)","v":""},{"$f":"IF('1. Order'!I1048=\"\",\"\",'1. Order'!I1048)","v":""},{"$f":"IF('1. Order'!J1048=\"\",\"\",'1. Order'!J1048)","v":""},{"$f":"IF('1. Order'!K1048=\"\",\"\",'1. Order'!K1048)","v":""},{"$f":"IF('1. Order'!L1048=\"\",\"\",'1. Order'!L1048)","v":""},{"$f":"IF('1. Order'!M1048=\"\",\"\",'1. Order'!M1048)","v":""},{"$f":"IF('1. Order'!N1048=\"\",\"\",'1. Order'!N1048)","v":""},{"$f":"IF('1. Order'!O1048=\"\",\"\",'1. Order'!O1048)","v":{"$error":"#N/A"}},{"$f":"IF('1. Order'!P1048=\"\",\"\",'1. Order'!P1048)","v":{"$error":"#N/A"}},{"$f":"IF('1. Order'!Q1048=\"\",\"\",'1. Order'!Q1048)","v":""},{"$f":"IF('1. Order'!R1048=\"\",\"\",'1. Order'!R1048)","v":""},{"$f":"IF('1. Order'!S1048=\"\",\"\",'1. Order'!S1048)","v":""},{"$f":"IF('1. Order'!V1048=\"\",\"\",'1. Order'!V1048)","v":""},{"$f":"IF('1. Order'!W1048=\"\",\"\",'1. Order'!W1048)","v":""},{"$f":"IF('1. Order'!X1048=\"\",\"\",'1. Order'!X1048)","v":"EUR"},{"$f":"IF('1. Order'!Y1048=\"\",\"\",'1. Order'!Y1048)","v":""},{"$f":"IF('1. Order'!Z1048=\"\",\"\",'1. Order'!Z1048)","v":""},{"$f":"IF('1. Order'!AA1048=\"\",\"\",'1. Order'!AA1048)","v":""},null,{"$f":"IF('1. Order'!AS1048=\"\",\"\",'1. Order'!AS1048)","v":""},{"$f":"IF('1. Order'!AT1048=\"\",\"\",'1. Order'!AT1048)","v":""},null,null,null,null,null,null,null,{"$f":"IF('1. Order'!AX1048=\"\",\"\",'1. Order'!AX1048)","v":""},{"$f":"IF('1. Order'!AY1048=\"\",\"\",'1. Order'!AY1048)","v":""},{"$f":"IF('1. Order'!AZ1048=\"\",\"\",'1. Order'!AZ1048)","v":""},{"$f":"IF('1. Order'!BA1048=\"\",\"\",'1. Order'!BA1048)","v":""},{"$f":"IF('1. Order'!BC1048=\"\",\"\",'1. Order'!BC1048)","v":""},{"$f":"IF('1. Order'!BD1048=\"\",\"\",'1. Order'!BD1048)","v":6},{"$f":"IF('1. Order'!BE1048=\"\",\"\",'1. Order'!BE1048)","v":"None"},{"$f":"IF('1. Order'!BF1048=\"\",\"\",'1. Order'!BF1048)","v":"Parcel"},{"$f":"IF('1. Order'!BG1048=\"\",\"\",'1. Order'!BG1048)","v":"ZWO"}]
[{"$f":"IF('1. Order'!F1049=\"\",\"\",'1. Order'!F1049)","v":""},{"$f":"IF('1. Order'!G1049=\"\",\"\",'1. Order'!G1049)","v":""},{"$f":"IF('1. Order'!H1049=\"\",\"\",'1. Order'!H1049)","v":""},{"$f":"IF('1. Order'!I1049=\"\",\"\",'1. Order'!I1049)","v":""},{"$f":"IF('1. Order'!J1049=\"\",\"\",'1. Order'!J1049)","v":""},{"$f":"IF('1. Order'!K1049=\"\",\"\",'1. Order'!K1049)","v":""},{"$f":"IF('1. Order'!L1049=\"\",\"\",'1. Order'!L1049)","v":""},{"$f":"IF('1. Order'!M1049=\"\",\"\",'1. Order'!M1049)","v":""},{"$f":"IF('1. Order'!N1049=\"\",\"\",'1. Order'!N1049)","v":""},{"$f":"IF('1. Order'!O1049=\"\",\"\",'1. Order'!O1049)","v":{"$error":"#N/A"}},{"$f":"IF('1. Order'!P1049=\"\",\"\",'1. Order'!P1049)","v":{"$error":"#N/A"}},{"$f":"IF('1. Order'!Q1049=\"\",\"\",'1. Order'!Q1049)","v":""},{"$f":"IF('1. Order'!R1049=\"\",\"\",'1. Order'!R1049)","v":""},{"$f":"IF('1. Order'!S1049=\"\",\"\",'1. Order'!S1049)","v":""},{"$f":"IF('1. Order'!V1049=\"\",\"\",'1. Order'!V1049)","v":""},{"$f":"IF('1. Order'!W1049=\"\",\"\",'1. Order'!W1049)","v":""},{"$f":"IF('1. Order'!X1049=\"\",\"\",'1. Order'!X1049)","v":"EUR"},{"$f":"IF('1. Order'!Y1049=\"\",\"\",'1. Order'!Y1049)","v":""},{"$f":"IF('1. Order'!Z1049=\"\",\"\",'1. Order'!Z1049)","v":""},{"$f":"IF('1. Order'!AA1049=\"\",\"\",'1. Order'!AA1049)","v":""},null,{"$f":"IF('1. Order'!AS1049=\"\",\"\",'1. Order'!AS1049)","v":""},{"$f":"IF('1. Order'!AT1049=\"\",\"\",'1. Order'!AT1049)","v":""},null,null,null,null,null,null,null,{"$f":"IF('1. Order'!AX1049=\"\",\"\",'1. Order'!AX1049)","v":""},{"$f":"IF('1. Order'!AY1049=\"\",\"\",'1. Order'!AY1049)","v":""},{"$f":"IF('1. Order'!AZ1049=\"\",\"\",'1. Order'!AZ1049)","v":""},{"$f":"IF('1. Order'!BA1049=\"\",\"\",'1. Order'!BA1049)","v":""},{"$f":"IF('1. Order'!BC1049=\"\",\"\",'1. Order'!BC1049)","v":""},{"$f":"IF('1. Order'!BD1049=\"\",\"\",'1. Order'!BD1049)","v":6},{"$f":"IF('1. Order'!BE1049=\"\",\"\",'1. Order'!BE1049)","v":"None"},{"$f":"IF('1. Order'!BF1049=\"\",\"\",'1. Order'!BF1049)","v":"Parcel"},{"$f":"IF('1. Order'!BG1049=\"\",\"\",'1. Order'!BG1049)","v":"ZWO"}]
[{"$f":"IF('1. Order'!F1050=\"\",\"\",'1. Order'!F1050)","v":""},{"$f":"IF('1. Order'!G1050=\"\",\"\",'1. Order'!G1050)","v":""},{"$f":"IF('1. Order'!H1050=\"\",\"\",'1. Order'!H1050)","v":""},{"$f":"IF('1. Order'!I1050=\"\",\"\",'1. Order'!I1050)","v":""},{"$f":"IF('1. Order'!J1050=\"\",\"\",'1. Order'!J1050)","v":""},{"$f":"IF('1. Order'!K1050=\"\",\"\",'1. Order'!K1050)","v":""},{"$f":"IF('1. Order'!L1050=\"\",\"\",'1. Order'!L1050)","v":""},{"$f":"IF('1. Order'!M1050=\"\",\"\",'1. Order'!M1050)","v":""},{"$f":"IF('1. Order'!N1050=\"\",\"\",'1. Order'!N1050)","v":""},{"$f":"IF('1. Order'!O1050=\"\",\"\",'1. Order'!O1050)","v":{"$error":"#N/A"}},{"$f":"IF('1. Order'!P1050=\"\",\"\",'1. Order'!P1050)","v":{"$error":"#N/A"}},{"$f":"IF('1. Order'!Q1050=\"\",\"\",'1. Order'!Q1050)","v":""},{"$f":"IF('1. Order'!R1050=\"\",\"\",'1. Order'!R1050)","v":""},{"$f":"IF('1. Order'!S1050=\"\",\"\",'1. Order'!S1050)","v":""},{"$f":"IF('1. Order'!V1050=\"\",\"\",'1. Order'!V1050)","v":""},{"$f":"IF('1. Order'!W1050=\"\",\"\",'1. Order'!W1050)","v":""},{"$f":"IF('1. Order'!X1050=\"\",\"\",'1. Order'!X1050)","v":"EUR"},{"$f":"IF('1. Order'!Y1050=\"\",\"\",'1. Order'!Y1050)","v":""},{"$f":"IF('1. Order'!Z1050=\"\",\"\",'1. Order'!Z1050)","v":""},{"$f":"IF('1. Order'!AA1050=\"\",\"\",'1. Order'!AA1050)","v":""},null,{"$f":"IF('1. Order'!AS1050=\"\",\"\",'1. Order'!AS1050)","v":""},{"$f":"IF('1. Order'!AT1050=\"\",\"\",'1. Order'!AT1050)","v":""},null,null,null,null,null,null,null,{"$f":"IF('1. Order'!AX1050=\"\",\"\",'1. Order'!AX1050)","v":""},{"$f":"IF('1. Order'!AY1050=\"\",\"\",'1. Order'!AY1050)","v":""},{"$f":"IF('1. Order'!AZ1050=\"\",\"\",'1. Order'!AZ1050)","v":""},{"$f":"IF('1. Order'!BA1050=\"\",\"\",'1. Order'!BA1050)","v":""},{"$f":"IF('1. Order'!BC1050=\"\",\"\",'1. Order'!BC1050)","v":""},{"$f":"IF('1. Order'!BD1050=\"\",\"\",'1. Order'!BD1050)","v":6},{"$f":"IF('1. Order'!BE1050=\"\",\"\",'1. Order'!BE1050)","v":"None"},{"$f":"IF('1. Order'!BF1050=\"\",\"\",'1. Order'!BF1050)","v":"Parcel"},{"$f":"IF('1. Order'!BG1050=\"\",\"\",'1. Order'!BG1050)","v":"ZWO"}]
[{"$f":"IF('1. Order'!F1051=\"\",\"\",'1. Order'!F1051)","v":""},{"$f":"IF('1. Order'!G1051=\"\",\"\",'1. Order'!G1051)","v":""},{"$f":"IF('1. Order'!H1051=\"\",\"\",'1. Order'!H1051)","v":""},{"$f":"IF('1. Order'!I1051=\"\",\"\",'1. Order'!I1051)","v":""},{"$f":"IF('1. Order'!J1051=\"\",\"\",'1. Order'!J1051)","v":""},{"$f":"IF('1. Order'!K1051=\"\",\"\",'1. Order'!K1051)","v":""},{"$f":"IF('1. Order'!L1051=\"\",\"\",'1. Order'!L1051)","v":""},{"$f":"IF('1. Order'!M1051=\"\",\"\",'1. Order'!M1051)","v":""},{"$f":"IF('1. Order'!N1051=\"\",\"\",'1. Order'!N1051)","v":""},{"$f":"IF('1. Order'!O1051=\"\",\"\",'1. Order'!O1051)","v":{"$error":"#N/A"}},{"$f":"IF('1. Order'!P1051=\"\",\"\",'1. Order'!P1051)","v":{"$error":"#N/A"}},{"$f":"IF('1. Order'!Q1051=\"\",\"\",'1. Order'!Q1051)","v":""},{"$f":"IF('1. Order'!R1051=\"\",\"\",'1. Order'!R1051)","v":""},{"$f":"IF('1. Order'!S1051=\"\",\"\",'1. Order'!S1051)","v":""},{"$f":"IF('1. Order'!V1051=\"\",\"\",'1. Order'!V1051)","v":""},{"$f":"IF('1. Order'!W1051=\"\",\"\",'1. Order'!W1051)","v":""},{"$f":"IF('1. Order'!X1051=\"\",\"\",'1. Order'!X1051)","v":"EUR"},{"$f":"IF('1. Order'!Y1051=\"\",\"\",'1. Order'!Y1051)","v":""},{"$f":"IF('1. Order'!Z1051=\"\",\"\",'1. Order'!Z1051)","v":""},{"$f":"IF('1. Order'!AA1051=\"\",\"\",'1. Order'!AA1051)","v":""},null,{"$f":"IF('1. Order'!AS1051=\"\",\"\",'1. Order'!AS1051)","v":""},{"$f":"IF('1. Order'!AT1051=\"\",\"\",'1. Order'!AT1051)","v":""},null,null,null,null,null,null,null,{"$f":"IF('1. Order'!AX1051=\"\",\"\",'1. Order'!AX1051)","v":""},{"$f":"IF('1. Order'!AY1051=\"\",\"\",'1. Order'!AY1051)","v":""},{"$f":"IF('1. Order'!AZ1051=\"\",\"\",'1. Order'!AZ1051)","v":""},{"$f":"IF('1. Order'!BA1051=\"\",\"\",'1. Order'!BA1051)","v":""},{"$f":"IF('1. Order'!BC1051=\"\",\"\",'1. Order'!BC1051)","v":""},{"$f":"IF('1. Order'!BD1051=\"\",\"\",'1. Order'!BD1051)","v":6},{"$f":"IF('1. Order'!BE1051=\"\",\"\",'1. Order'!BE1051)","v":"None"},{"$f":"IF('1. Order'!BF1051=\"\",\"\",'1. Order'!BF1051)","v":"Parcel"},{"$f":"IF('1. Order'!BG1051=\"\",\"\",'1. Order'!BG1051)","v":"ZWO"}]
[{"$f":"IF('1. Order'!F1052=\"\",\"\",'1. Order'!F1052)","v":""},{"$f":"IF('1. Order'!G1052=\"\",\"\",'1. Order'!G1052)","v":""},{"$f":"IF('1. Order'!H1052=\"\",\"\",'1. Order'!H1052)","v":""},{"$f":"IF('1. Order'!I1052=\"\",\"\",'1. Order'!I1052)","v":""},{"$f":"IF('1. Order'!J1052=\"\",\"\",'1. Order'!J1052)","v":""},{"$f":"IF('1. Order'!K1052=\"\",\"\",'1. Order'!K1052)","v":""},{"$f":"IF('1. Order'!L1052=\"\",\"\",'1. Order'!L1052)","v":""},{"$f":"IF('1. Order'!M1052=\"\",\"\",'1. Order'!M1052)","v":""},{"$f":"IF('1. Order'!N1052=\"\",\"\",'1. Order'!N1052)","v":""},{"$f":"IF('1. Order'!O1052=\"\",\"\",'1. Order'!O1052)","v":{"$error":"#N/A"}},{"$f":"IF('1. Order'!P1052=\"\",\"\",'1. Order'!P1052)","v":{"$error":"#N/A"}},{"$f":"IF('1. Order'!Q1052=\"\",\"\",'1. Order'!Q1052)","v":""},{"$f":"IF('1. Order'!R1052=\"\",\"\",'1. Order'!R1052)","v":""},{"$f":"IF('1. Order'!S1052=\"\",\"\",'1. Order'!S1052)","v":""},{"$f":"IF('1. Order'!V1052=\"\",\"\",'1. Order'!V1052)","v":""},{"$f":"IF('1. Order'!W1052=\"\",\"\",'1. Order'!W1052)","v":""},{"$f":"IF('1. Order'!X1052=\"\",\"\",'1. Order'!X1052)","v":"EUR"},{"$f":"IF('1. Order'!Y1052=\"\",\"\",'1. Order'!Y1052)","v":""},{"$f":"IF('1. Order'!Z1052=\"\",\"\",'1. Order'!Z1052)","v":""},{"$f":"IF('1. Order'!AA1052=\"\",\"\",'1. Order'!AA1052)","v":""},null,{"$f":"IF('1. Order'!AS1052=\"\",\"\",'1. Order'!AS1052)","v":""},{"$f":"IF('1. Order'!AT1052=\"\",\"\",'1. Order'!AT1052)","v":""},null,null,null,null,null,null,null,{"$f":"IF('1. Order'!AX1052=\"\",\"\",'1. Order'!AX1052)","v":""},{"$f":"IF('1. Order'!AY1052=\"\",\"\",'1. Order'!AY1052)","v":""},{"$f":"IF('1. Order'!AZ1052=\"\",\"\",'1. Order'!AZ1052)","v":""},{"$f":"IF('1. Order'!BA1052=\"\",\"\",'1. Order'!BA1052)","v":""},{"$f":"IF('1. Order'!BC1052=\"\",\"\",'1. Order'!BC1052)","v":""},{"$f":"IF('1. Order'!BD1052=\"\",\"\",'1. Order'!BD1052)","v":6},{"$f":"IF('1. Order'!BE1052=\"\",\"\",'1. Order'!BE1052)","v":"None"},{"$f":"IF('1. Order'!BF1052=\"\",\"\",'1. Order'!BF1052)","v":"Parcel"},{"$f":"IF('1. Order'!BG1052=\"\",\"\",'1. Order'!BG1052)","v":"ZWO"}]
[{"$f":"IF('1. Order'!F1053=\"\",\"\",'1. Order'!F1053)","v":""},{"$f":"IF('1. Order'!G1053=\"\",\"\",'1. Order'!G1053)","v":""},{"$f":"IF('1. Order'!H1053=\"\",\"\",'1. Order'!H1053)","v":""},{"$f":"IF('1. Order'!I1053=\"\",\"\",'1. Order'!I1053)","v":""},{"$f":"IF('1. Order'!J1053=\"\",\"\",'1. Order'!J1053)","v":""},{"$f":"IF('1. Order'!K1053=\"\",\"\",'1. Order'!K1053)","v":""},{"$f":"IF('1. Order'!L1053=\"\",\"\",'1. Order'!L1053)","v":""},{"$f":"IF('1. Order'!M1053=\"\",\"\",'1. Order'!M1053)","v":""},{"$f":"IF('1. Order'!N1053=\"\",\"\",'1. Order'!N1053)","v":""},{"$f":"IF('1. Order'!O1053=\"\",\"\",'1. Order'!O1053)","v":{"$error":"#N/A"}},{"$f":"IF('1. Order'!P1053=\"\",\"\",'1. Order'!P1053)","v":{"$error":"#N/A"}},{"$f":"IF('1. Order'!Q1053=\"\",\"\",'1. Order'!Q1053)","v":""},{"$f":"IF('1. Order'!R1053=\"\",\"\",'1. Order'!R1053)","v":""},{"$f":"IF('1. Order'!S1053=\"\",\"\",'1. Order'!S1053)","v":""},{"$f":"IF('1. Order'!V1053=\"\",\"\",'1. Order'!V1053)","v":""},{"$f":"IF('1. Order'!W1053=\"\",\"\",'1. Order'!W1053)","v":""},{"$f":"IF('1. Order'!X1053=\"\",\"\",'1. Order'!X1053)","v":"EUR"},{"$f":"IF('1. Order'!Y1053=\"\",\"\",'1. Order'!Y1053)","v":""},{"$f":"IF('1. Order'!Z1053=\"\",\"\",'1. Order'!Z1053)","v":""},{"$f":"IF('1. Order'!AA1053=\"\",\"\",'1. Order'!AA1053)","v":""},null,{"$f":"IF('1. Order'!AS1053=\"\",\"\",'1. Order'!AS1053)","v":""},{"$f":"IF('1. Order'!AT1053=\"\",\"\",'1. Order'!AT1053)","v":""},null,null,null,null,null,null,null,{"$f":"IF('1. Order'!AX1053=\"\",\"\",'1. Order'!AX1053)","v":""},{"$f":"IF('1. Order'!AY1053=\"\",\"\",'1. Order'!AY1053)","v":""},{"$f":"IF('1. Order'!AZ1053=\"\",\"\",'1. Order'!AZ1053)","v":""},{"$f":"IF('1. Order'!BA1053=\"\",\"\",'1. Order'!BA1053)","v":""},{"$f":"IF('1. Order'!BC1053=\"\",\"\",'1. Order'!BC1053)","v":""},{"$f":"IF('1. Order'!BD1053=\"\",\"\",'1. Order'!BD1053)","v":6},{"$f":"IF('1. Order'!BE1053=\"\",\"\",'1. Order'!BE1053)","v":"None"},{"$f":"IF('1. Order'!BF1053=\"\",\"\",'1. Order'!BF1053)","v":"Parcel"},{"$f":"IF('1. Order'!BG1053=\"\",\"\",'1. Order'!BG1053)","v":"ZWO"}]
[{"$f":"IF('1. Order'!F1054=\"\",\"\",'1. Order'!F1054)","v":""},{"$f":"IF('1. Order'!G1054=\"\",\"\",'1. Order'!G1054)","v":""},{"$f":"IF('1. Order'!H1054=\"\",\"\",'1. Order'!H1054)","v":""},{"$f":"IF('1. Order'!I1054=\"\",\"\",'1. Order'!I1054)","v":""},{"$f":"IF('1. Order'!J1054=\"\",\"\",'1. Order'!J1054)","v":""},{"$f":"IF('1. Order'!K1054=\"\",\"\",'1. Order'!K1054)","v":""},{"$f":"IF('1. Order'!L1054=\"\",\"\",'1. Order'!L1054)","v":""},{"$f":"IF('1. Order'!M1054=\"\",\"\",'1. Order'!M1054)","v":""},{"$f":"IF('1. Order'!N1054=\"\",\"\",'1. Order'!N1054)","v":""},{"$f":"IF('1. Order'!O1054=\"\",\"\",'1. Order'!O1054)","v":{"$error":"#N/A"}},{"$f":"IF('1. Order'!P1054=\"\",\"\",'1. Order'!P1054)","v":{"$error":"#N/A"}},{"$f":"IF('1. Order'!Q1054=\"\",\"\",'1. Order'!Q1054)","v":""},{"$f":"IF('1. Order'!R1054=\"\",\"\",'1. Order'!R1054)","v":""},{"$f":"IF('1. Order'!S1054=\"\",\"\",'1. Order'!S1054)","v":""},{"$f":"IF('1. Order'!V1054=\"\",\"\",'1. Order'!V1054)","v":""},{"$f":"IF('1. Order'!W1054=\"\",\"\",'1. Order'!W1054)","v":""},{"$f":"IF('1. Order'!X1054=\"\",\"\",'1. Order'!X1054)","v":"EUR"},{"$f":"IF('1. Order'!Y1054=\"\",\"\",'1. Order'!Y1054)","v":""},{"$f":"IF('1. Order'!Z1054=\"\",\"\",'1. Order'!Z1054)","v":""},{"$f":"IF('1. Order'!AA1054=\"\",\"\",'1. Order'!AA1054)","v":""},null,{"$f":"IF('1. Order'!AS1054=\"\",\"\",'1. Order'!AS1054)","v":""},{"$f":"IF('1. Order'!AT1054=\"\",\"\",'1. Order'!AT1054)","v":""},null,null,null,null,null,null,null,{"$f":"IF('1. Order'!AX1054=\"\",\"\",'1. Order'!AX1054)","v":""},{"$f":"IF('1. Order'!AY1054=\"\",\"\",'1. Order'!AY1054)","v":""},{"$f":"IF('1. Order'!AZ1054=\"\",\"\",'1. Order'!AZ1054)","v":""},{"$f":"IF('1. Order'!BA1054=\"\",\"\",'1. Order'!BA1054)","v":""},{"$f":"IF('1. Order'!BC1054=\"\",\"\",'1. Order'!BC1054)","v":""},{"$f":"IF('1. Order'!BD1054=\"\",\"\",'1. Order'!BD1054)","v":6},{"$f":"IF('1. Order'!BE1054=\"\",\"\",'1. Order'!BE1054)","v":"None"},{"$f":"IF('1. Order'!BF1054=\"\",\"\",'1. Order'!BF1054)","v":"Parcel"},{"$f":"IF('1. Order'!BG1054=\"\",\"\",'1. Order'!BG1054)","v":"ZWO"}]
[{"$f":"IF('1. Order'!F1055=\"\",\"\",'1. Order'!F1055)","v":""},{"$f":"IF('1. Order'!G1055=\"\",\"\",'1. Order'!G1055)","v":""},{"$f":"IF('1. Order'!H1055=\"\",\"\",'1. Order'!H1055)","v":""},{"$f":"IF('1. Order'!I1055=\"\",\"\",'1. Order'!I1055)","v":""},{"$f":"IF('1. Order'!J1055=\"\",\"\",'1. Order'!J1055)","v":""},{"$f":"IF('1. Order'!K1055=\"\",\"\",'1. Order'!K1055)","v":""},{"$f":"IF('1. Order'!L1055=\"\",\"\",'1. Order'!L1055)","v":""},{"$f":"IF('1. Order'!M1055=\"\",\"\",'1. Order'!M1055)","v":""},{"$f":"IF('1. Order'!N1055=\"\",\"\",'1. Order'!N1055)","v":""},{"$f":"IF('1. Order'!O1055=\"\",\"\",'1. Order'!O1055)","v":{"$error":"#N/A"}},{"$f":"IF('1. Order'!P1055=\"\",\"\",'1. Order'!P1055)","v":{"$error":"#N/A"}},{"$f":"IF('1. Order'!Q1055=\"\",\"\",'1. Order'!Q1055)","v":""},{"$f":"IF('1. Order'!R1055=\"\",\"\",'1. Order'!R1055)","v":""},{"$f":"IF('1. Order'!S1055=\"\",\"\",'1. Order'!S1055)","v":""},{"$f":"IF('1. Order'!V1055=\"\",\"\",'1. Order'!V1055)","v":""},{"$f":"IF('1. Order'!W1055=\"\",\"\",'1. Order'!W1055)","v":""},{"$f":"IF('1. Order'!X1055=\"\",\"\",'1. Order'!X1055)","v":"EUR"},{"$f":"IF('1. Order'!Y1055=\"\",\"\",'1. Order'!Y1055)","v":""},{"$f":"IF('1. Order'!Z1055=\"\",\"\",'1. Order'!Z1055)","v":""},{"$f":"IF('1. Order'!AA1055=\"\",\"\",'1. Order'!AA1055)","v":""},null,{"$f":"IF('1. Order'!AS1055=\"\",\"\",'1. Order'!AS1055)","v":""},{"$f":"IF('1. Order'!AT1055=\"\",\"\",'1. Order'!AT1055)","v":""},null,null,null,null,null,null,null,{"$f":"IF('1. Order'!AX1055=\"\",\"\",'1. Order'!AX1055)","v":""},{"$f":"IF('1. Order'!AY1055=\"\",\"\",'1. Order'!AY1055)","v":""},{"$f":"IF('1. Order'!AZ1055=\"\",\"\",'1. Order'!AZ1055)","v":""},{"$f":"IF('1. Order'!BA1055=\"\",\"\",'1. Order'!BA1055)","v":""},{"$f":"IF('1. Order'!BC1055=\"\",\"\",'1. Order'!BC1055)","v":""},{"$f":"IF('1. Order'!BD1055=\"\",\"\",'1. Order'!BD1055)","v":6},{"$f":"IF('1. Order'!BE1055=\"\",\"\",'1. Order'!BE1055)","v":"None"},{"$f":"IF('1. Order'!BF1055=\"\",\"\",'1. Order'!BF1055)","v":"Parcel"},{"$f":"IF('1. Order'!BG1055=\"\",\"\",'1. Order'!BG1055)","v":"ZWO"}]
[{"$f":"IF('1. Order'!F1056=\"\",\"\",'1. Order'!F1056)","v":""},{"$f":"IF('1. Order'!G1056=\"\",\"\",'1. Order'!G1056)","v":""},{"$f":"IF('1. Order'!H1056=\"\",\"\",'1. Order'!H1056)","v":""},{"$f":"IF('1. Order'!I1056=\"\",\"\",'1. Order'!I1056)","v":""},{"$f":"IF('1. Order'!J1056=\"\",\"\",'1. Order'!J1056)","v":""},{"$f":"IF('1. Order'!K1056=\"\",\"\",'1. Order'!K1056)","v":""},{"$f":"IF('1. Order'!L1056=\"\",\"\",'1. Order'!L1056)","v":""},{"$f":"IF('1. Order'!M1056=\"\",\"\",'1. Order'!M1056)","v":""},{"$f":"IF('1. Order'!N1056=\"\",\"\",'1. Order'!N1056)","v":""},{"$f":"IF('1. Order'!O1056=\"\",\"\",'1. Order'!O1056)","v":{"$error":"#N/A"}},{"$f":"IF('1. Order'!P1056=\"\",\"\",'1. Order'!P1056)","v":{"$error":"#N/A"}},{"$f":"IF('1. Order'!Q1056=\"\",\"\",'1. Order'!Q1056)","v":""},{"$f":"IF('1. Order'!R1056=\"\",\"\",'1. Order'!R1056)","v":""},{"$f":"IF('1. Order'!S1056=\"\",\"\",'1. Order'!S1056)","v":""},{"$f":"IF('1. Order'!V1056=\"\",\"\",'1. Order'!V1056)","v":""},{"$f":"IF('1. Order'!W1056=\"\",\"\",'1. Order'!W1056)","v":""},{"$f":"IF('1. Order'!X1056=\"\",\"\",'1. Order'!X1056)","v":"EUR"},{"$f":"IF('1. Order'!Y1056=\"\",\"\",'1. Order'!Y1056)","v":""},{"$f":"IF('1. Order'!Z1056=\"\",\"\",'1. Order'!Z1056)","v":""},{"$f":"IF('1. Order'!AA1056=\"\",\"\",'1. Order'!AA1056)","v":""},null,{"$f":"IF('1. Order'!AS1056=\"\",\"\",'1. Order'!AS1056)","v":""},{"$f":"IF('1. Order'!AT1056=\"\",\"\",'1. Order'!AT1056)","v":""},null,null,null,null,null,null,null,{"$f":"IF('1. Order'!AX1056=\"\",\"\",'1. Order'!AX1056)","v":""},{"$f":"IF('1. Order'!AY1056=\"\",\"\",'1. Order'!AY1056)","v":""},{"$f":"IF('1. Order'!AZ1056=\"\",\"\",'1. Order'!AZ1056)","v":""},{"$f":"IF('1. Order'!BA1056=\"\",\"\",'1. Order'!BA1056)","v":""},{"$f":"IF('1. Order'!BC1056=\"\",\"\",'1. Order'!BC1056)","v":""},{"$f":"IF('1. Order'!BD1056=\"\",\"\",'1. Order'!BD1056)","v":6},{"$f":"IF('1. Order'!BE1056=\"\",\"\",'1. Order'!BE1056)","v":"None"},{"$f":"IF('1. Order'!BF1056=\"\",\"\",'1. Order'!BF1056)","v":"Parcel"},{"$f":"IF('1. Order'!BG1056=\"\",\"\",'1. Order'!BG1056)","v":"ZWO"}]
[{"$f":"IF('1. Order'!F1057=\"\",\"\",'1. Order'!F1057)","v":""},{"$f":"IF('1. Order'!G1057=\"\",\"\",'1. Order'!G1057)","v":""},{"$f":"IF('1. Order'!H1057=\"\",\"\",'1. Order'!H1057)","v":""},{"$f":"IF('1. Order'!I1057=\"\",\"\",'1. Order'!I1057)","v":""},{"$f":"IF('1. Order'!J1057=\"\",\"\",'1. Order'!J1057)","v":""},{"$f":"IF('1. Order'!K1057=\"\",\"\",'1. Order'!K1057)","v":""},{"$f":"IF('1. Order'!L1057=\"\",\"\",'1. Order'!L1057)","v":""},{"$f":"IF('1. Order'!M1057=\"\",\"\",'1. Order'!M1057)","v":""},{"$f":"IF('1. Order'!N1057=\"\",\"\",'1. Order'!N1057)","v":""},{"$f":"IF('1. Order'!O1057=\"\",\"\",'1. Order'!O1057)","v":{"$error":"#N/A"}},{"$f":"IF('1. Order'!P1057=\"\",\"\",'1. Order'!P1057)","v":{"$error":"#N/A"}},{"$f":"IF('1. Order'!Q1057=\"\",\"\",'1. Order'!Q1057)","v":""},{"$f":"IF('1. Order'!R1057=\"\",\"\",'1. Order'!R1057)","v":""},{"$f":"IF('1. Order'!S1057=\"\",\"\",'1. Order'!S1057)","v":""},{"$f":"IF('1. Order'!V1057=\"\",\"\",'1. Order'!V1057)","v":""},{"$f":"IF('1. Order'!W1057=\"\",\"\",'1. Order'!W1057)","v":""},{"$f":"IF('1. Order'!X1057=\"\",\"\",'1. Order'!X1057)","v":"EUR"},{"$f":"IF('1. Order'!Y1057=\"\",\"\",'1. Order'!Y1057)","v":""},{"$f":"IF('1. Order'!Z1057=\"\",\"\",'1. Order'!Z1057)","v":""},{"$f":"IF('1. Order'!AA1057=\"\",\"\",'1. Order'!AA1057)","v":""},null,{"$f":"IF('1. Order'!AS1057=\"\",\"\",'1. Order'!AS1057)","v":""},{"$f":"IF('1. Order'!AT1057=\"\",\"\",'1. Order'!AT1057)","v":""},null,null,null,null,null,null,null,{"$f":"IF('1. Order'!AX1057=\"\",\"\",'1. Order'!AX1057)","v":""},{"$f":"IF('1. Order'!AY1057=\"\",\"\",'1. Order'!AY1057)","v":""},{"$f":"IF('1. Order'!AZ1057=\"\",\"\",'1. Order'!AZ1057)","v":""},{"$f":"IF('1. Order'!BA1057=\"\",\"\",'1. Order'!BA1057)","v":""},{"$f":"IF('1. Order'!BC1057=\"\",\"\",'1. Order'!BC1057)","v":""},{"$f":"IF('1. Order'!BD1057=\"\",\"\",'1. Order'!BD1057)","v":6},{"$f":"IF('1. Order'!BE1057=\"\",\"\",'1. Order'!BE1057)","v":"None"},{"$f":"IF('1. Order'!BF1057=\"\",\"\",'1. Order'!BF1057)","v":"Parcel"},{"$f":"IF('1. Order'!BG1057=\"\",\"\",'1. Order'!BG1057)","v":"ZWO"}]
[{"$f":"IF('1. Order'!F1058=\"\",\"\",'1. Order'!F1058)","v":""},{"$f":"IF('1. Order'!G1058=\"\",\"\",'1. Order'!G1058)","v":""},{"$f":"IF('1. Order'!H1058=\"\",\"\",'1. Order'!H1058)","v":""},{"$f":"IF('1. Order'!I1058=\"\",\"\",'1. Order'!I1058)","v":""},{"$f":"IF('1. Order'!J1058=\"\",\"\",'1. Order'!J1058)","v":""},{"$f":"IF('1. Order'!K1058=\"\",\"\",'1. Order'!K1058)","v":""},{"$f":"IF('1. Order'!L1058=\"\",\"\",'1. Order'!L1058)","v":""},{"$f":"IF('1. Order'!M1058=\"\",\"\",'1. Order'!M1058)","v":""},{"$f":"IF('1. Order'!N1058=\"\",\"\",'1. Order'!N1058)","v":""},{"$f":"IF('1. Order'!O1058=\"\",\"\",'1. Order'!O1058)","v":{"$error":"#N/A"}},{"$f":"IF('1. Order'!P1058=\"\",\"\",'1. Order'!P1058)","v":{"$error":"#N/A"}},{"$f":"IF('1. Order'!Q1058=\"\",\"\",'1. Order'!Q1058)","v":""},{"$f":"IF('1. Order'!R1058=\"\",\"\",'1. Order'!R1058)","v":""},{"$f":"IF('1. Order'!S1058=\"\",\"\",'1. Order'!S1058)","v":""},{"$f":"IF('1. Order'!V1058=\"\",\"\",'1. Order'!V1058)","v":""},{"$f":"IF('1. Order'!W1058=\"\",\"\",'1. Order'!W1058)","v":""},{"$f":"IF('1. Order'!X1058=\"\",\"\",'1. Order'!X1058)","v":"EUR"},{"$f":"IF('1. Order'!Y1058=\"\",\"\",'1. Order'!Y1058)","v":""},{"$f":"IF('1. Order'!Z1058=\"\",\"\",'1. Order'!Z1058)","v":""},{"$f":"IF('1. Order'!AA1058=\"\",\"\",'1. Order'!AA1058)","v":""},null,{"$f":"IF('1. Order'!AS1058=\"\",\"\",'1. Order'!AS1058)","v":""},{"$f":"IF('1. Order'!AT1058=\"\",\"\",'1. Order'!AT1058)","v":""},null,null,null,null,null,null,null,{"$f":"IF('1. Order'!AX1058=\"\",\"\",'1. Order'!AX1058)","v":""},{"$f":"IF('1. Order'!AY1058=\"\",\"\",'1. Order'!AY1058)","v":""},{"$f":"IF('1. Order'!AZ1058=\"\",\"\",'1. Order'!AZ1058)","v":""},{"$f":"IF('1. Order'!BA1058=\"\",\"\",'1. Order'!BA1058)","v":""},{"$f":"IF('1. Order'!BC1058=\"\",\"\",'1. Order'!BC1058)","v":""},{"$f":"IF('1. Order'!BD1058=\"\",\"\",'1. Order'!BD1058)","v":6},{"$f":"IF('1. Order'!BE1058=\"\",\"\",'1. Order'!BE1058)","v":"None"},{"$f":"IF('1. Order'!BF1058=\"\",\"\",'1. Order'!BF1058)","v":"Parcel"},{"$f":"IF('1. Order'!BG1058=\"\",\"\",'1. Order'!BG1058)","v":"ZWO"}]
[{"$f":"IF('1. Order'!F1059=\"\",\"\",'1. Order'!F1059)","v":""},{"$f":"IF('1. Order'!G1059=\"\",\"\",'1. Order'!G1059)","v":""},{"$f":"IF('1. Order'!H1059=\"\",\"\",'1. Order'!H1059)","v":""},{"$f":"IF('1. Order'!I1059=\"\",\"\",'1. Order'!I1059)","v":""},{"$f":"IF('1. Order'!J1059=\"\",\"\",'1. Order'!J1059)","v":""},{"$f":"IF('1. Order'!K1059=\"\",\"\",'1. Order'!K1059)","v":""},{"$f":"IF('1. Order'!L1059=\"\",\"\",'1. Order'!L1059)","v":""},{"$f":"IF('1. Order'!M1059=\"\",\"\",'1. Order'!M1059)","v":""},{"$f":"IF('1. Order'!N1059=\"\",\"\",'1. Order'!N1059)","v":""},{"$f":"IF('1. Order'!O1059=\"\",\"\",'1. Order'!O1059)","v":{"$error":"#N/A"}},{"$f":"IF('1. Order'!P1059=\"\",\"\",'1. Order'!P1059)","v":{"$error":"#N/A"}},{"$f":"IF('1. Order'!Q1059=\"\",\"\",'1. Order'!Q1059)","v":""},{"$f":"IF('1. Order'!R1059=\"\",\"\",'1. Order'!R1059)","v":""},{"$f":"IF('1. Order'!S1059=\"\",\"\",'1. Order'!S1059)","v":""},{"$f":"IF('1. Order'!V1059=\"\",\"\",'1. Order'!V1059)","v":""},{"$f":"IF('1. Order'!W1059=\"\",\"\",'1. Order'!W1059)","v":""},{"$f":"IF('1. Order'!X1059=\"\",\"\",'1. Order'!X1059)","v":"EUR"},{"$f":"IF('1. Order'!Y1059=\"\",\"\",'1. Order'!Y1059)","v":""},{"$f":"IF('1. Order'!Z1059=\"\",\"\",'1. Order'!Z1059)","v":""},{"$f":"IF('1. Order'!AA1059=\"\",\"\",'1. Order'!AA1059)","v":""},null,{"$f":"IF('1. Order'!AS1059=\"\",\"\",'1. Order'!AS1059)","v":""},{"$f":"IF('1. Order'!AT1059=\"\",\"\",'1. Order'!AT1059)","v":""},null,null,null,null,null,null,null,{"$f":"IF('1. Order'!AX1059=\"\",\"\",'1. Order'!AX1059)","v":""},{"$f":"IF('1. Order'!AY1059=\"\",\"\",'1. Order'!AY1059)","v":""},{"$f":"IF('1. Order'!AZ1059=\"\",\"\",'1. Order'!AZ1059)","v":""},{"$f":"IF('1. Order'!BA1059=\"\",\"\",'1. Order'!BA1059)","v":""},{"$f":"IF('1. Order'!BC1059=\"\",\"\",'1. Order'!BC1059)","v":""},{"$f":"IF('1. Order'!BD1059=\"\",\"\",'1. Order'!BD1059)","v":6},{"$f":"IF('1. Order'!BE1059=\"\",\"\",'1. Order'!BE1059)","v":"None"},{"$f":"IF('1. Order'!BF1059=\"\",\"\",'1. Order'!BF1059)","v":"Parcel"},{"$f":"IF('1. Order'!BG1059=\"\",\"\",'1. Order'!BG1059)","v":"ZWO"}]
[{"$f":"IF('1. Order'!F1060=\"\",\"\",'1. Order'!F1060)","v":""},{"$f":"IF('1. Order'!G1060=\"\",\"\",'1. Order'!G1060)","v":""},{"$f":"IF('1. Order'!H1060=\"\",\"\",'1. Order'!H1060)","v":""},{"$f":"IF('1. Order'!I1060=\"\",\"\",'1. Order'!I1060)","v":""},{"$f":"IF('1. Order'!J1060=\"\",\"\",'1. Order'!J1060)","v":""},{"$f":"IF('1. Order'!K1060=\"\",\"\",'1. Order'!K1060)","v":""},{"$f":"IF('1. Order'!L1060=\"\",\"\",'1. Order'!L1060)","v":""},{"$f":"IF('1. Order'!M1060=\"\",\"\",'1. Order'!M1060)","v":""},{"$f":"IF('1. Order'!N1060=\"\",\"\",'1. Order'!N1060)","v":""},{"$f":"IF('1. Order'!O1060=\"\",\"\",'1. Order'!O1060)","v":{"$error":"#N/A"}},{"$f":"IF('1. Order'!P1060=\"\",\"\",'1. Order'!P1060)","v":{"$error":"#N/A"}},{"$f":"IF('1. Order'!Q1060=\"\",\"\",'1. Order'!Q1060)","v":""},{"$f":"IF('1. Order'!R1060=\"\",\"\",'1. Order'!R1060)","v":""},{"$f":"IF('1. Order'!S1060=\"\",\"\",'1. Order'!S1060)","v":""},{"$f":"IF('1. Order'!V1060=\"\",\"\",'1. Order'!V1060)","v":""},{"$f":"IF('1. Order'!W1060=\"\",\"\",'1. Order'!W1060)","v":""},{"$f":"IF('1. Order'!X1060=\"\",\"\",'1. Order'!X1060)","v":"EUR"},{"$f":"IF('1. Order'!Y1060=\"\",\"\",'1. Order'!Y1060)","v":""},{"$f":"IF('1. Order'!Z1060=\"\",\"\",'1. Order'!Z1060)","v":""},{"$f":"IF('1. Order'!AA1060=\"\",\"\",'1. Order'!AA1060)","v":""},null,{"$f":"IF('1. Order'!AS1060=\"\",\"\",'1. Order'!AS1060)","v":""},{"$f":"IF('1. Order'!AT1060=\"\",\"\",'1. Order'!AT1060)","v":""},null,null,null,null,null,null,null,{"$f":"IF('1. Order'!AX1060=\"\",\"\",'1. Order'!AX1060)","v":""},{"$f":"IF('1. Order'!AY1060=\"\",\"\",'1. Order'!AY1060)","v":""},{"$f":"IF('1. Order'!AZ1060=\"\",\"\",'1. Order'!AZ1060)","v":""},{"$f":"IF('1. Order'!BA1060=\"\",\"\",'1. Order'!BA1060)","v":""},{"$f":"IF('1. Order'!BC1060=\"\",\"\",'1. Order'!BC1060)","v":""},{"$f":"IF('1. Order'!BD1060=\"\",\"\",'1. Order'!BD1060)","v":6},{"$f":"IF('1. Order'!BE1060=\"\",\"\",'1. Order'!BE1060)","v":"None"},{"$f":"IF('1. Order'!BF1060=\"\",\"\",'1. Order'!BF1060)","v":"Parcel"},{"$f":"IF('1. Order'!BG1060=\"\",\"\",'1. Order'!BG1060)","v":"ZWO"}]
[{"$f":"IF('1. Order'!F1061=\"\",\"\",'1. Order'!F1061)","v":""},{"$f":"IF('1. Order'!G1061=\"\",\"\",'1. Order'!G1061)","v":""},{"$f":"IF('1. Order'!H1061=\"\",\"\",'1. Order'!H1061)","v":""},{"$f":"IF('1. Order'!I1061=\"\",\"\",'1. Order'!I1061)","v":""},{"$f":"IF('1. Order'!J1061=\"\",\"\",'1. Order'!J1061)","v":""},{"$f":"IF('1. Order'!K1061=\"\",\"\",'1. Order'!K1061)","v":""},{"$f":"IF('1. Order'!L1061=\"\",\"\",'1. Order'!L1061)","v":""},{"$f":"IF('1. Order'!M1061=\"\",\"\",'1. Order'!M1061)","v":""},{"$f":"IF('1. Order'!N1061=\"\",\"\",'1. Order'!N1061)","v":""},{"$f":"IF('1. Order'!O1061=\"\",\"\",'1. Order'!O1061)","v":{"$error":"#N/A"}},{"$f":"IF('1. Order'!P1061=\"\",\"\",'1. Order'!P1061)","v":{"$error":"#N/A"}},{"$f":"IF('1. Order'!Q1061=\"\",\"\",'1. Order'!Q1061)","v":""},{"$f":"IF('1. Order'!R1061=\"\",\"\",'1. Order'!R1061)","v":""},{"$f":"IF('1. Order'!S1061=\"\",\"\",'1. Order'!S1061)","v":""},{"$f":"IF('1. Order'!V1061=\"\",\"\",'1. Order'!V1061)","v":""},{"$f":"IF('1. Order'!W1061=\"\",\"\",'1. Order'!W1061)","v":""},{"$f":"IF('1. Order'!X1061=\"\",\"\",'1. Order'!X1061)","v":"EUR"},{"$f":"IF('1. Order'!Y1061=\"\",\"\",'1. Order'!Y1061)","v":""},{"$f":"IF('1. Order'!Z1061=\"\",\"\",'1. Order'!Z1061)","v":""},{"$f":"IF('1. Order'!AA1061=\"\",\"\",'1. Order'!AA1061)","v":""},null,{"$f":"IF('1. Order'!AS1061=\"\",\"\",'1. Order'!AS1061)","v":""},{"$f":"IF('1. Order'!AT1061=\"\",\"\",'1. Order'!AT1061)","v":""},null,null,null,null,null,null,null,{"$f":"IF('1. Order'!AX1061=\"\",\"\",'1. Order'!AX1061)","v":""},{"$f":"IF('1. Order'!AY1061=\"\",\"\",'1. Order'!AY1061)","v":""},{"$f":"IF('1. Order'!AZ1061=\"\",\"\",'1. Order'!AZ1061)","v":""},{"$f":"IF('1. Order'!BA1061=\"\",\"\",'1. Order'!BA1061)","v":""},{"$f":"IF('1. Order'!BC1061=\"\",\"\",'1. Order'!BC1061)","v":""},{"$f":"IF('1. Order'!BD1061=\"\",\"\",'1. Order'!BD1061)","v":6},{"$f":"IF('1. Order'!BE1061=\"\",\"\",'1. Order'!BE1061)","v":"None"},{"$f":"IF('1. Order'!BF1061=\"\",\"\",'1. Order'!BF1061)","v":"Parcel"},{"$f":"IF('1. Order'!BG1061=\"\",\"\",'1. Order'!BG1061)","v":"ZWO"}]
[{"$f":"IF('1. Order'!F1062=\"\",\"\",'1. Order'!F1062)","v":""},{"$f":"IF('1. Order'!G1062=\"\",\"\",'1. Order'!G1062)","v":""},{"$f":"IF('1. Order'!H1062=\"\",\"\",'1. Order'!H1062)","v":""},{"$f":"IF('1. Order'!I1062=\"\",\"\",'1. Order'!I1062)","v":""},{"$f":"IF('1. Order'!J1062=\"\",\"\",'1. Order'!J1062)","v":""},{"$f":"IF('1. Order'!K1062=\"\",\"\",'1. Order'!K1062)","v":""},{"$f":"IF('1. Order'!L1062=\"\",\"\",'1. Order'!L1062)","v":""},{"$f":"IF('1. Order'!M1062=\"\",\"\",'1. Order'!M1062)","v":""},{"$f":"IF('1. Order'!N1062=\"\",\"\",'1. Order'!N1062)","v":""},{"$f":"IF('1. Order'!O1062=\"\",\"\",'1. Order'!O1062)","v":{"$error":"#N/A"}},{"$f":"IF('1. Order'!P1062=\"\",\"\",'1. Order'!P1062)","v":{"$error":"#N/A"}},{"$f":"IF('1. Order'!Q1062=\"\",\"\",'1. Order'!Q1062)","v":""},{"$f":"IF('1. Order'!R1062=\"\",\"\",'1. Order'!R1062)","v":""},{"$f":"IF('1. Order'!S1062=\"\",\"\",'1. Order'!S1062)","v":""},{"$f":"IF('1. Order'!V1062=\"\",\"\",'1. Order'!V1062)","v":""},{"$f":"IF('1. Order'!W1062=\"\",\"\",'1. Order'!W1062)","v":""},{"$f":"IF('1. Order'!X1062=\"\",\"\",'1. Order'!X1062)","v":"EUR"},{"$f":"IF('1. Order'!Y1062=\"\",\"\",'1. Order'!Y1062)","v":""},{"$f":"IF('1. Order'!Z1062=\"\",\"\",'1. Order'!Z1062)","v":""},{"$f":"IF('1. Order'!AA1062=\"\",\"\",'1. Order'!AA1062)","v":""},null,{"$f":"IF('1. Order'!AS1062=\"\",\"\",'1. Order'!AS1062)","v":""},{"$f":"IF('1. Order'!AT1062=\"\",\"\",'1. Order'!AT1062)","v":""},null,null,null,null,null,null,null,{"$f":"IF('1. Order'!AX1062=\"\",\"\",'1. Order'!AX1062)","v":""},{"$f":"IF('1. Order'!AY1062=\"\",\"\",'1. Order'!AY1062)","v":""},{"$f":"IF('1. Order'!AZ1062=\"\",\"\",'1. Order'!AZ1062)","v":""},{"$f":"IF('1. Order'!BA1062=\"\",\"\",'1. Order'!BA1062)","v":""},{"$f":"IF('1. Order'!BC1062=\"\",\"\",'1. Order'!BC1062)","v":""},{"$f":"IF('1. Order'!BD1062=\"\",\"\",'1. Order'!BD1062)","v":6},{"$f":"IF('1. Order'!BE1062=\"\",\"\",'1. Order'!BE1062)","v":"None"},{"$f":"IF('1. Order'!BF1062=\"\",\"\",'1. Order'!BF1062)","v":"Parcel"},{"$f":"IF('1. Order'!BG1062=\"\",\"\",'1. Order'!BG1062)","v":"ZWO"}]
[{"$f":"IF('1. Order'!F1063=\"\",\"\",'1. Order'!F1063)","v":""},{"$f":"IF('1. Order'!G1063=\"\",\"\",'1. Order'!G1063)","v":""},{"$f":"IF('1. Order'!H1063=\"\",\"\",'1. Order'!H1063)","v":""},{"$f":"IF('1. Order'!I1063=\"\",\"\",'1. Order'!I1063)","v":""},{"$f":"IF('1. Order'!J1063=\"\",\"\",'1. Order'!J1063)","v":""},{"$f":"IF('1. Order'!K1063=\"\",\"\",'1. Order'!K1063)","v":""},{"$f":"IF('1. Order'!L1063=\"\",\"\",'1. Order'!L1063)","v":""},{"$f":"IF('1. Order'!M1063=\"\",\"\",'1. Order'!M1063)","v":""},{"$f":"IF('1. Order'!N1063=\"\",\"\",'1. Order'!N1063)","v":""},{"$f":"IF('1. Order'!O1063=\"\",\"\",'1. Order'!O1063)","v":{"$error":"#N/A"}},{"$f":"IF('1. Order'!P1063=\"\",\"\",'1. Order'!P1063)","v":{"$error":"#N/A"}},{"$f":"IF('1. Order'!Q1063=\"\",\"\",'1. Order'!Q1063)","v":""},{"$f":"IF('1. Order'!R1063=\"\",\"\",'1. Order'!R1063)","v":""},{"$f":"IF('1. Order'!S1063=\"\",\"\",'1. Order'!S1063)","v":""},{"$f":"IF('1. Order'!V1063=\"\",\"\",'1. Order'!V1063)","v":""},{"$f":"IF('1. Order'!W1063=\"\",\"\",'1. Order'!W1063)","v":""},{"$f":"IF('1. Order'!X1063=\"\",\"\",'1. Order'!X1063)","v":"EUR"},{"$f":"IF('1. Order'!Y1063=\"\",\"\",'1. Order'!Y1063)","v":""},{"$f":"IF('1. Order'!Z1063=\"\",\"\",'1. Order'!Z1063)","v":""},{"$f":"IF('1. Order'!AA1063=\"\",\"\",'1. Order'!AA1063)","v":""},null,{"$f":"IF('1. Order'!AS1063=\"\",\"\",'1. Order'!AS1063)","v":""},{"$f":"IF('1. Order'!AT1063=\"\",\"\",'1. Order'!AT1063)","v":""},null,null,null,null,null,null,null,{"$f":"IF('1. Order'!AX1063=\"\",\"\",'1. Order'!AX1063)","v":""},{"$f":"IF('1. Order'!AY1063=\"\",\"\",'1. Order'!AY1063)","v":""},{"$f":"IF('1. Order'!AZ1063=\"\",\"\",'1. Order'!AZ1063)","v":""},{"$f":"IF('1. Order'!BA1063=\"\",\"\",'1. Order'!BA1063)","v":""},{"$f":"IF('1. Order'!BC1063=\"\",\"\",'1. Order'!BC1063)","v":""},{"$f":"IF('1. Order'!BD1063=\"\",\"\",'1. Order'!BD1063)","v":6},{"$f":"IF('1. Order'!BE1063=\"\",\"\",'1. Order'!BE1063)","v":"None"},{"$f":"IF('1. Order'!BF1063=\"\",\"\",'1. Order'!BF1063)","v":"Parcel"},{"$f":"IF('1. Order'!BG1063=\"\",\"\",'1. Order'!BG1063)","v":"ZWO"}]
[{"$f":"IF('1. Order'!F1064=\"\",\"\",'1. Order'!F1064)","v":""},{"$f":"IF('1. Order'!G1064=\"\",\"\",'1. Order'!G1064)","v":""},{"$f":"IF('1. Order'!H1064=\"\",\"\",'1. Order'!H1064)","v":""},{"$f":"IF('1. Order'!I1064=\"\",\"\",'1. Order'!I1064)","v":""},{"$f":"IF('1. Order'!J1064=\"\",\"\",'1. Order'!J1064)","v":""},{"$f":"IF('1. Order'!K1064=\"\",\"\",'1. Order'!K1064)","v":""},{"$f":"IF('1. Order'!L1064=\"\",\"\",'1. Order'!L1064)","v":""},{"$f":"IF('1. Order'!M1064=\"\",\"\",'1. Order'!M1064)","v":""},{"$f":"IF('1. Order'!N1064=\"\",\"\",'1. Order'!N1064)","v":""},{"$f":"IF('1. Order'!O1064=\"\",\"\",'1. Order'!O1064)","v":{"$error":"#N/A"}},{"$f":"IF('1. Order'!P1064=\"\",\"\",'1. Order'!P1064)","v":{"$error":"#N/A"}},{"$f":"IF('1. Order'!Q1064=\"\",\"\",'1. Order'!Q1064)","v":""},{"$f":"IF('1. Order'!R1064=\"\",\"\",'1. Order'!R1064)","v":""},{"$f":"IF('1. Order'!S1064=\"\",\"\",'1. Order'!S1064)","v":""},{"$f":"IF('1. Order'!V1064=\"\",\"\",'1. Order'!V1064)","v":""},{"$f":"IF('1. Order'!W1064=\"\",\"\",'1. Order'!W1064)","v":""},{"$f":"IF('1. Order'!X1064=\"\",\"\",'1. Order'!X1064)","v":"EUR"},{"$f":"IF('1. Order'!Y1064=\"\",\"\",'1. Order'!Y1064)","v":""},{"$f":"IF('1. Order'!Z1064=\"\",\"\",'1. Order'!Z1064)","v":""},{"$f":"IF('1. Order'!AA1064=\"\",\"\",'1. Order'!AA1064)","v":""},null,{"$f":"IF('1. Order'!AS1064=\"\",\"\",'1. Order'!AS1064)","v":""},{"$f":"IF('1. Order'!AT1064=\"\",\"\",'1. Order'!AT1064)","v":""},null,null,null,null,null,null,null,{"$f":"IF('1. Order'!AX1064=\"\",\"\",'1. Order'!AX1064)","v":""},{"$f":"IF('1. Order'!AY1064=\"\",\"\",'1. Order'!AY1064)","v":""},{"$f":"IF('1. Order'!AZ1064=\"\",\"\",'1. Order'!AZ1064)","v":""},{"$f":"IF('1. Order'!BA1064=\"\",\"\",'1. Order'!BA1064)","v":""},{"$f":"IF('1. Order'!BC1064=\"\",\"\",'1. Order'!BC1064)","v":""},{"$f":"IF('1. Order'!BD1064=\"\",\"\",'1. Order'!BD1064)","v":6},{"$f":"IF('1. Order'!BE1064=\"\",\"\",'1. Order'!BE1064)","v":"None"},{"$f":"IF('1. Order'!BF1064=\"\",\"\",'1. Order'!BF1064)","v":"Parcel"},{"$f":"IF('1. Order'!BG1064=\"\",\"\",'1. Order'!BG1064)","v":"ZWO"}]
[{"$f":"IF('1. Order'!F1065=\"\",\"\",'1. Order'!F1065)","v":""},{"$f":"IF('1. Order'!G1065=\"\",\"\",'1. Order'!G1065)","v":""},{"$f":"IF('1. Order'!H1065=\"\",\"\",'1. Order'!H1065)","v":""},{"$f":"IF('1. Order'!I1065=\"\",\"\",'1. Order'!I1065)","v":""},{"$f":"IF('1. Order'!J1065=\"\",\"\",'1. Order'!J1065)","v":""},{"$f":"IF('1. Order'!K1065=\"\",\"\",'1. Order'!K1065)","v":""},{"$f":"IF('1. Order'!L1065=\"\",\"\",'1. Order'!L1065)","v":""},{"$f":"IF('1. Order'!M1065=\"\",\"\",'1. Order'!M1065)","v":""},{"$f":"IF('1. Order'!N1065=\"\",\"\",'1. Order'!N1065)","v":""},{"$f":"IF('1. Order'!O1065=\"\",\"\",'1. Order'!O1065)","v":{"$error":"#N/A"}},{"$f":"IF('1. Order'!P1065=\"\",\"\",'1. Order'!P1065)","v":{"$error":"#N/A"}},{"$f":"IF('1. Order'!Q1065=\"\",\"\",'1. Order'!Q1065)","v":""},{"$f":"IF('1. Order'!R1065=\"\",\"\",'1. Order'!R1065)","v":""},{"$f":"IF('1. Order'!S1065=\"\",\"\",'1. Order'!S1065)","v":""},{"$f":"IF('1. Order'!V1065=\"\",\"\",'1. Order'!V1065)","v":""},{"$f":"IF('1. Order'!W1065=\"\",\"\",'1. Order'!W1065)","v":""},{"$f":"IF('1. Order'!X1065=\"\",\"\",'1. Order'!X1065)","v":"EUR"},{"$f":"IF('1. Order'!Y1065=\"\",\"\",'1. Order'!Y1065)","v":""},{"$f":"IF('1. Order'!Z1065=\"\",\"\",'1. Order'!Z1065)","v":""},{"$f":"IF('1. Order'!AA1065=\"\",\"\",'1. Order'!AA1065)","v":""},null,{"$f":"IF('1. Order'!AS1065=\"\",\"\",'1. Order'!AS1065)","v":""},{"$f":"IF('1. Order'!AT1065=\"\",\"\",'1. Order'!AT1065)","v":""},null,null,null,null,null,null,null,{"$f":"IF('1. Order'!AX1065=\"\",\"\",'1. Order'!AX1065)","v":""},{"$f":"IF('1. Order'!AY1065=\"\",\"\",'1. Order'!AY1065)","v":""},{"$f":"IF('1. Order'!AZ1065=\"\",\"\",'1. Order'!AZ1065)","v":""},{"$f":"IF('1. Order'!BA1065=\"\",\"\",'1. Order'!BA1065)","v":""},{"$f":"IF('1. Order'!BC1065=\"\",\"\",'1. Order'!BC1065)","v":""},{"$f":"IF('1. Order'!BD1065=\"\",\"\",'1. Order'!BD1065)","v":6},{"$f":"IF('1. Order'!BE1065=\"\",\"\",'1. Order'!BE1065)","v":"None"},{"$f":"IF('1. Order'!BF1065=\"\",\"\",'1. Order'!BF1065)","v":"Parcel"},{"$f":"IF('1. Order'!BG1065=\"\",\"\",'1. Order'!BG1065)","v":"ZWO"}]
[{"$f":"IF('1. Order'!F1066=\"\",\"\",'1. Order'!F1066)","v":""},{"$f":"IF('1. Order'!G1066=\"\",\"\",'1. Order'!G1066)","v":""},{"$f":"IF('1. Order'!H1066=\"\",\"\",'1. Order'!H1066)","v":""},{"$f":"IF('1. Order'!I1066=\"\",\"\",'1. Order'!I1066)","v":""},{"$f":"IF('1. Order'!J1066=\"\",\"\",'1. Order'!J1066)","v":""},{"$f":"IF('1. Order'!K1066=\"\",\"\",'1. Order'!K1066)","v":""},{"$f":"IF('1. Order'!L1066=\"\",\"\",'1. Order'!L1066)","v":""},{"$f":"IF('1. Order'!M1066=\"\",\"\",'1. Order'!M1066)","v":""},{"$f":"IF('1. Order'!N1066=\"\",\"\",'1. Order'!N1066)","v":""},{"$f":"IF('1. Order'!O1066=\"\",\"\",'1. Order'!O1066)","v":{"$error":"#N/A"}},{"$f":"IF('1. Order'!P1066=\"\",\"\",'1. Order'!P1066)","v":{"$error":"#N/A"}},{"$f":"IF('1. Order'!Q1066=\"\",\"\",'1. Order'!Q1066)","v":""},{"$f":"IF('1. Order'!R1066=\"\",\"\",'1. Order'!R1066)","v":""},{"$f":"IF('1. Order'!S1066=\"\",\"\",'1. Order'!S1066)","v":""},{"$f":"IF('1. Order'!V1066=\"\",\"\",'1. Order'!V1066)","v":""},{"$f":"IF('1. Order'!W1066=\"\",\"\",'1. Order'!W1066)","v":""},{"$f":"IF('1. Order'!X1066=\"\",\"\",'1. Order'!X1066)","v":"EUR"},{"$f":"IF('1. Order'!Y1066=\"\",\"\",'1. Order'!Y1066)","v":""},{"$f":"IF('1. Order'!Z1066=\"\",\"\",'1. Order'!Z1066)","v":""},{"$f":"IF('1. Order'!AA1066=\"\",\"\",'1. Order'!AA1066)","v":""},null,{"$f":"IF('1. Order'!AS1066=\"\",\"\",'1. Order'!AS1066)","v":""},{"$f":"IF('1. Order'!AT1066=\"\",\"\",'1. Order'!AT1066)","v":""},null,null,null,null,null,null,null,{"$f":"IF('1. Order'!AX1066=\"\",\"\",'1. Order'!AX1066)","v":""},{"$f":"IF('1. Order'!AY1066=\"\",\"\",'1. Order'!AY1066)","v":""},{"$f":"IF('1. Order'!AZ1066=\"\",\"\",'1. Order'!AZ1066)","v":""},{"$f":"IF('1. Order'!BA1066=\"\",\"\",'1. Order'!BA1066)","v":""},{"$f":"IF('1. Order'!BC1066=\"\",\"\",'1. Order'!BC1066)","v":""},{"$f":"IF('1. Order'!BD1066=\"\",\"\",'1. Order'!BD1066)","v":6},{"$f":"IF('1. Order'!BE1066=\"\",\"\",'1. Order'!BE1066)","v":"None"},{"$f":"IF('1. Order'!BF1066=\"\",\"\",'1. Order'!BF1066)","v":"Parcel"},{"$f":"IF('1. Order'!BG1066=\"\",\"\",'1. Order'!BG1066)","v":"ZWO"}]
[{"$f":"IF('1. Order'!F1067=\"\",\"\",'1. Order'!F1067)","v":""},{"$f":"IF('1. Order'!G1067=\"\",\"\",'1. Order'!G1067)","v":""},{"$f":"IF('1. Order'!H1067=\"\",\"\",'1. Order'!H1067)","v":""},{"$f":"IF('1. Order'!I1067=\"\",\"\",'1. Order'!I1067)","v":""},{"$f":"IF('1. Order'!J1067=\"\",\"\",'1. Order'!J1067)","v":""},{"$f":"IF('1. Order'!K1067=\"\",\"\",'1. Order'!K1067)","v":""},{"$f":"IF('1. Order'!L1067=\"\",\"\",'1. Order'!L1067)","v":""},{"$f":"IF('1. Order'!M1067=\"\",\"\",'1. Order'!M1067)","v":""},{"$f":"IF('1. Order'!N1067=\"\",\"\",'1. Order'!N1067)","v":""},{"$f":"IF('1. Order'!O1067=\"\",\"\",'1. Order'!O1067)","v":{"$error":"#N/A"}},{"$f":"IF('1. Order'!P1067=\"\",\"\",'1. Order'!P1067)","v":{"$error":"#N/A"}},{"$f":"IF('1. Order'!Q1067=\"\",\"\",'1. Order'!Q1067)","v":""},{"$f":"IF('1. Order'!R1067=\"\",\"\",'1. Order'!R1067)","v":""},{"$f":"IF('1. Order'!S1067=\"\",\"\",'1. Order'!S1067)","v":""},{"$f":"IF('1. Order'!V1067=\"\",\"\",'1. Order'!V1067)","v":""},{"$f":"IF('1. Order'!W1067=\"\",\"\",'1. Order'!W1067)","v":""},{"$f":"IF('1. Order'!X1067=\"\",\"\",'1. Order'!X1067)","v":"EUR"},{"$f":"IF('1. Order'!Y1067=\"\",\"\",'1. Order'!Y1067)","v":""},{"$f":"IF('1. Order'!Z1067=\"\",\"\",'1. Order'!Z1067)","v":""},{"$f":"IF('1. Order'!AA1067=\"\",\"\",'1. Order'!AA1067)","v":""},null,{"$f":"IF('1. Order'!AS1067=\"\",\"\",'1. Order'!AS1067)","v":""},{"$f":"IF('1. Order'!AT1067=\"\",\"\",'1. Order'!AT1067)","v":""},null,null,null,null,null,null,null,{"$f":"IF('1. Order'!AX1067=\"\",\"\",'1. Order'!AX1067)","v":""},{"$f":"IF('1. Order'!AY1067=\"\",\"\",'1. Order'!AY1067)","v":""},{"$f":"IF('1. Order'!AZ1067=\"\",\"\",'1. Order'!AZ1067)","v":""},{"$f":"IF('1. Order'!BA1067=\"\",\"\",'1. Order'!BA1067)","v":""},{"$f":"IF('1. Order'!BC1067=\"\",\"\",'1. Order'!BC1067)","v":""},{"$f":"IF('1. Order'!BD1067=\"\",\"\",'1. Order'!BD1067)","v":6},{"$f":"IF('1. Order'!BE1067=\"\",\"\",'1. Order'!BE1067)","v":"None"},{"$f":"IF('1. Order'!BF1067=\"\",\"\",'1. Order'!BF1067)","v":"Parcel"},{"$f":"IF('1. Order'!BG1067=\"\",\"\",'1. Order'!BG1067)","v":"ZWO"}]
[{"$f":"IF('1. Order'!F1068=\"\",\"\",'1. Order'!F1068)","v":""},{"$f":"IF('1. Order'!G1068=\"\",\"\",'1. Order'!G1068)","v":""},{"$f":"IF('1. Order'!H1068=\"\",\"\",'1. Order'!H1068)","v":""},{"$f":"IF('1. Order'!I1068=\"\",\"\",'1. Order'!I1068)","v":""},{"$f":"IF('1. Order'!J1068=\"\",\"\",'1. Order'!J1068)","v":""},{"$f":"IF('1. Order'!K1068=\"\",\"\",'1. Order'!K1068)","v":""},{"$f":"IF('1. Order'!L1068=\"\",\"\",'1. Order'!L1068)","v":""},{"$f":"IF('1. Order'!M1068=\"\",\"\",'1. Order'!M1068)","v":""},{"$f":"IF('1. Order'!N1068=\"\",\"\",'1. Order'!N1068)","v":""},{"$f":"IF('1. Order'!O1068=\"\",\"\",'1. Order'!O1068)","v":{"$error":"#N/A"}},{"$f":"IF('1. Order'!P1068=\"\",\"\",'1. Order'!P1068)","v":{"$error":"#N/A"}},{"$f":"IF('1. Order'!Q1068=\"\",\"\",'1. Order'!Q1068)","v":""},{"$f":"IF('1. Order'!R1068=\"\",\"\",'1. Order'!R1068)","v":""},{"$f":"IF('1. Order'!S1068=\"\",\"\",'1. Order'!S1068)","v":""},{"$f":"IF('1. Order'!V1068=\"\",\"\",'1. Order'!V1068)","v":""},{"$f":"IF('1. Order'!W1068=\"\",\"\",'1. Order'!W1068)","v":""},{"$f":"IF('1. Order'!X1068=\"\",\"\",'1. Order'!X1068)","v":"EUR"},{"$f":"IF('1. Order'!Y1068=\"\",\"\",'1. Order'!Y1068)","v":""},{"$f":"IF('1. Order'!Z1068=\"\",\"\",'1. Order'!Z1068)","v":""},{"$f":"IF('1. Order'!AA1068=\"\",\"\",'1. Order'!AA1068)","v":""},null,{"$f":"IF('1. Order'!AS1068=\"\",\"\",'1. Order'!AS1068)","v":""},{"$f":"IF('1. Order'!AT1068=\"\",\"\",'1. Order'!AT1068)","v":""},null,null,null,null,null,null,null,{"$f":"IF('1. Order'!AX1068=\"\",\"\",'1. Order'!AX1068)","v":""},{"$f":"IF('1. Order'!AY1068=\"\",\"\",'1. Order'!AY1068)","v":""},{"$f":"IF('1. Order'!AZ1068=\"\",\"\",'1. Order'!AZ1068)","v":""},{"$f":"IF('1. Order'!BA1068=\"\",\"\",'1. Order'!BA1068)","v":""},{"$f":"IF('1. Order'!BC1068=\"\",\"\",'1. Order'!BC1068)","v":""},{"$f":"IF('1. Order'!BD1068=\"\",\"\",'1. Order'!BD1068)","v":6},{"$f":"IF('1. Order'!BE1068=\"\",\"\",'1. Order'!BE1068)","v":"None"},{"$f":"IF('1. Order'!BF1068=\"\",\"\",'1. Order'!BF1068)","v":"Parcel"},{"$f":"IF('1. Order'!BG1068=\"\",\"\",'1. Order'!BG1068)","v":"ZWO"}]
[{"$f":"IF('1. Order'!F1069=\"\",\"\",'1. Order'!F1069)","v":""},{"$f":"IF('1. Order'!G1069=\"\",\"\",'1. Order'!G1069)","v":""},{"$f":"IF('1. Order'!H1069=\"\",\"\",'1. Order'!H1069)","v":""},{"$f":"IF('1. Order'!I1069=\"\",\"\",'1. Order'!I1069)","v":""},{"$f":"IF('1. Order'!J1069=\"\",\"\",'1. Order'!J1069)","v":""},{"$f":"IF('1. Order'!K1069=\"\",\"\",'1. Order'!K1069)","v":""},{"$f":"IF('1. Order'!L1069=\"\",\"\",'1. Order'!L1069)","v":""},{"$f":"IF('1. Order'!M1069=\"\",\"\",'1. Order'!M1069)","v":""},{"$f":"IF('1. Order'!N1069=\"\",\"\",'1. Order'!N1069)","v":""},{"$f":"IF('1. Order'!O1069=\"\",\"\",'1. Order'!O1069)","v":{"$error":"#N/A"}},{"$f":"IF('1. Order'!P1069=\"\",\"\",'1. Order'!P1069)","v":{"$error":"#N/A"}},{"$f":"IF('1. Order'!Q1069=\"\",\"\",'1. Order'!Q1069)","v":""},{"$f":"IF('1. Order'!R1069=\"\",\"\",'1. Order'!R1069)","v":""},{"$f":"IF('1. Order'!S1069=\"\",\"\",'1. Order'!S1069)","v":""},{"$f":"IF('1. Order'!V1069=\"\",\"\",'1. Order'!V1069)","v":""},{"$f":"IF('1. Order'!W1069=\"\",\"\",'1. Order'!W1069)","v":""},{"$f":"IF('1. Order'!X1069=\"\",\"\",'1. Order'!X1069)","v":"EUR"},{"$f":"IF('1. Order'!Y1069=\"\",\"\",'1. Order'!Y1069)","v":""},{"$f":"IF('1. Order'!Z1069=\"\",\"\",'1. Order'!Z1069)","v":""},{"$f":"IF('1. Order'!AA1069=\"\",\"\",'1. Order'!AA1069)","v":""},null,{"$f":"IF('1. Order'!AS1069=\"\",\"\",'1. Order'!AS1069)","v":""},{"$f":"IF('1. Order'!AT1069=\"\",\"\",'1. Order'!AT1069)","v":""},null,null,null,null,null,null,null,{"$f":"IF('1. Order'!AX1069=\"\",\"\",'1. Order'!AX1069)","v":""},{"$f":"IF('1. Order'!AY1069=\"\",\"\",'1. Order'!AY1069)","v":""},{"$f":"IF('1. Order'!AZ1069=\"\",\"\",'1. Order'!AZ1069)","v":""},{"$f":"IF('1. Order'!BA1069=\"\",\"\",'1. Order'!BA1069)","v":""},{"$f":"IF('1. Order'!BC1069=\"\",\"\",'1. Order'!BC1069)","v":""},{"$f":"IF('1. Order'!BD1069=\"\",\"\",'1. Order'!BD1069)","v":6},{"$f":"IF('1. Order'!BE1069=\"\",\"\",'1. Order'!BE1069)","v":"None"},{"$f":"IF('1. Order'!BF1069=\"\",\"\",'1. Order'!BF1069)","v":"Parcel"},{"$f":"IF('1. Order'!BG1069=\"\",\"\",'1. Order'!BG1069)","v":"ZWO"}]
[{"$f":"IF('1. Order'!F1070=\"\",\"\",'1. Order'!F1070)","v":""},{"$f":"IF('1. Order'!G1070=\"\",\"\",'1. Order'!G1070)","v":""},{"$f":"IF('1. Order'!H1070=\"\",\"\",'1. Order'!H1070)","v":""},{"$f":"IF('1. Order'!I1070=\"\",\"\",'1. Order'!I1070)","v":""},{"$f":"IF('1. Order'!J1070=\"\",\"\",'1. Order'!J1070)","v":""},{"$f":"IF('1. Order'!K1070=\"\",\"\",'1. Order'!K1070)","v":""},{"$f":"IF('1. Order'!L1070=\"\",\"\",'1. Order'!L1070)","v":""},{"$f":"IF('1. Order'!M1070=\"\",\"\",'1. Order'!M1070)","v":""},{"$f":"IF('1. Order'!N1070=\"\",\"\",'1. Order'!N1070)","v":""},{"$f":"IF('1. Order'!O1070=\"\",\"\",'1. Order'!O1070)","v":{"$error":"#N/A"}},{"$f":"IF('1. Order'!P1070=\"\",\"\",'1. Order'!P1070)","v":{"$error":"#N/A"}},{"$f":"IF('1. Order'!Q1070=\"\",\"\",'1. Order'!Q1070)","v":""},{"$f":"IF('1. Order'!R1070=\"\",\"\",'1. Order'!R1070)","v":""},{"$f":"IF('1. Order'!S1070=\"\",\"\",'1. Order'!S1070)","v":""},{"$f":"IF('1. Order'!V1070=\"\",\"\",'1. Order'!V1070)","v":""},{"$f":"IF('1. Order'!W1070=\"\",\"\",'1. Order'!W1070)","v":""},{"$f":"IF('1. Order'!X1070=\"\",\"\",'1. Order'!X1070)","v":"EUR"},{"$f":"IF('1. Order'!Y1070=\"\",\"\",'1. Order'!Y1070)","v":""},{"$f":"IF('1. Order'!Z1070=\"\",\"\",'1. Order'!Z1070)","v":""},{"$f":"IF('1. Order'!AA1070=\"\",\"\",'1. Order'!AA1070)","v":""},null,{"$f":"IF('1. Order'!AS1070=\"\",\"\",'1. Order'!AS1070)","v":""},{"$f":"IF('1. Order'!AT1070=\"\",\"\",'1. Order'!AT1070)","v":""},null,null,null,null,null,null,null,{"$f":"IF('1. Order'!AX1070=\"\",\"\",'1. Order'!AX1070)","v":""},{"$f":"IF('1. Order'!AY1070=\"\",\"\",'1. Order'!AY1070)","v":""},{"$f":"IF('1. Order'!AZ1070=\"\",\"\",'1. Order'!AZ1070)","v":""},{"$f":"IF('1. Order'!BA1070=\"\",\"\",'1. Order'!BA1070)","v":""},{"$f":"IF('1. Order'!BC1070=\"\",\"\",'1. Order'!BC1070)","v":""},{"$f":"IF('1. Order'!BD1070=\"\",\"\",'1. Order'!BD1070)","v":6},{"$f":"IF('1. Order'!BE1070=\"\",\"\",'1. Order'!BE1070)","v":"None"},{"$f":"IF('1. Order'!BF1070=\"\",\"\",'1. Order'!BF1070)","v":"Parcel"},{"$f":"IF('1. Order'!BG1070=\"\",\"\",'1. Order'!BG1070)","v":"ZWO"}]
[{"$f":"IF('1. Order'!F1071=\"\",\"\",'1. Order'!F1071)","v":""},{"$f":"IF('1. Order'!G1071=\"\",\"\",'1. Order'!G1071)","v":""},{"$f":"IF('1. Order'!H1071=\"\",\"\",'1. Order'!H1071)","v":""},{"$f":"IF('1. Order'!I1071=\"\",\"\",'1. Order'!I1071)","v":""},{"$f":"IF('1. Order'!J1071=\"\",\"\",'1. Order'!J1071)","v":""},{"$f":"IF('1. Order'!K1071=\"\",\"\",'1. Order'!K1071)","v":""},{"$f":"IF('1. Order'!L1071=\"\",\"\",'1. Order'!L1071)","v":""},{"$f":"IF('1. Order'!M1071=\"\",\"\",'1. Order'!M1071)","v":""},{"$f":"IF('1. Order'!N1071=\"\",\"\",'1. Order'!N1071)","v":""},{"$f":"IF('1. Order'!O1071=\"\",\"\",'1. Order'!O1071)","v":{"$error":"#N/A"}},{"$f":"IF('1. Order'!P1071=\"\",\"\",'1. Order'!P1071)","v":{"$error":"#N/A"}},{"$f":"IF('1. Order'!Q1071=\"\",\"\",'1. Order'!Q1071)","v":""},{"$f":"IF('1. Order'!R1071=\"\",\"\",'1. Order'!R1071)","v":""},{"$f":"IF('1. Order'!S1071=\"\",\"\",'1. Order'!S1071)","v":""},{"$f":"IF('1. Order'!V1071=\"\",\"\",'1. Order'!V1071)","v":""},{"$f":"IF('1. Order'!W1071=\"\",\"\",'1. Order'!W1071)","v":""},{"$f":"IF('1. Order'!X1071=\"\",\"\",'1. Order'!X1071)","v":"EUR"},{"$f":"IF('1. Order'!Y1071=\"\",\"\",'1. Order'!Y1071)","v":""},{"$f":"IF('1. Order'!Z1071=\"\",\"\",'1. Order'!Z1071)","v":""},{"$f":"IF('1. Order'!AA1071=\"\",\"\",'1. Order'!AA1071)","v":""},null,{"$f":"IF('1. Order'!AS1071=\"\",\"\",'1. Order'!AS1071)","v":""},{"$f":"IF('1. Order'!AT1071=\"\",\"\",'1. Order'!AT1071)","v":""},null,null,null,null,null,null,null,{"$f":"IF('1. Order'!AX1071=\"\",\"\",'1. Order'!AX1071)","v":""},{"$f":"IF('1. Order'!AY1071=\"\",\"\",'1. Order'!AY1071)","v":""},{"$f":"IF('1. Order'!AZ1071=\"\",\"\",'1. Order'!AZ1071)","v":""},{"$f":"IF('1. Order'!BA1071=\"\",\"\",'1. Order'!BA1071)","v":""},{"$f":"IF('1. Order'!BC1071=\"\",\"\",'1. Order'!BC1071)","v":""},{"$f":"IF('1. Order'!BD1071=\"\",\"\",'1. Order'!BD1071)","v":6},{"$f":"IF('1. Order'!BE1071=\"\",\"\",'1. Order'!BE1071)","v":"None"},{"$f":"IF('1. Order'!BF1071=\"\",\"\",'1. Order'!BF1071)","v":"Parcel"},{"$f":"IF('1. Order'!BG1071=\"\",\"\",'1. Order'!BG1071)","v":"ZWO"}]
[{"$f":"IF('1. Order'!F1072=\"\",\"\",'1. Order'!F1072)","v":""},{"$f":"IF('1. Order'!G1072=\"\",\"\",'1. Order'!G1072)","v":""},{"$f":"IF('1. Order'!H1072=\"\",\"\",'1. Order'!H1072)","v":""},{"$f":"IF('1. Order'!I1072=\"\",\"\",'1. Order'!I1072)","v":""},{"$f":"IF('1. Order'!J1072=\"\",\"\",'1. Order'!J1072)","v":""},{"$f":"IF('1. Order'!K1072=\"\",\"\",'1. Order'!K1072)","v":""},{"$f":"IF('1. Order'!L1072=\"\",\"\",'1. Order'!L1072)","v":""},{"$f":"IF('1. Order'!M1072=\"\",\"\",'1. Order'!M1072)","v":""},{"$f":"IF('1. Order'!N1072=\"\",\"\",'1. Order'!N1072)","v":""},{"$f":"IF('1. Order'!O1072=\"\",\"\",'1. Order'!O1072)","v":{"$error":"#N/A"}},{"$f":"IF('1. Order'!P1072=\"\",\"\",'1. Order'!P1072)","v":{"$error":"#N/A"}},{"$f":"IF('1. Order'!Q1072=\"\",\"\",'1. Order'!Q1072)","v":""},{"$f":"IF('1. Order'!R1072=\"\",\"\",'1. Order'!R1072)","v":""},{"$f":"IF('1. Order'!S1072=\"\",\"\",'1. Order'!S1072)","v":""},{"$f":"IF('1. Order'!V1072=\"\",\"\",'1. Order'!V1072)","v":""},{"$f":"IF('1. Order'!W1072=\"\",\"\",'1. Order'!W1072)","v":""},{"$f":"IF('1. Order'!X1072=\"\",\"\",'1. Order'!X1072)","v":"EUR"},{"$f":"IF('1. Order'!Y1072=\"\",\"\",'1. Order'!Y1072)","v":""},{"$f":"IF('1. Order'!Z1072=\"\",\"\",'1. Order'!Z1072)","v":""},{"$f":"IF('1. Order'!AA1072=\"\",\"\",'1. Order'!AA1072)","v":""},null,{"$f":"IF('1. Order'!AS1072=\"\",\"\",'1. Order'!AS1072)","v":""},{"$f":"IF('1. Order'!AT1072=\"\",\"\",'1. Order'!AT1072)","v":""},null,null,null,null,null,null,null,{"$f":"IF('1. Order'!AX1072=\"\",\"\",'1. Order'!AX1072)","v":""},{"$f":"IF('1. Order'!AY1072=\"\",\"\",'1. Order'!AY1072)","v":""},{"$f":"IF('1. Order'!AZ1072=\"\",\"\",'1. Order'!AZ1072)","v":""},{"$f":"IF('1. Order'!BA1072=\"\",\"\",'1. Order'!BA1072)","v":""},{"$f":"IF('1. Order'!BC1072=\"\",\"\",'1. Order'!BC1072)","v":""},{"$f":"IF('1. Order'!BD1072=\"\",\"\",'1. Order'!BD1072)","v":6},{"$f":"IF('1. Order'!BE1072=\"\",\"\",'1. Order'!BE1072)","v":"None"},{"$f":"IF('1. Order'!BF1072=\"\",\"\",'1. Order'!BF1072)","v":"Parcel"},{"$f":"IF('1. Order'!BG1072=\"\",\"\",'1. Order'!BG1072)","v":"ZWO"}]
[{"$f":"IF('1. Order'!F1073=\"\",\"\",'1. Order'!F1073)","v":""},{"$f":"IF('1. Order'!G1073=\"\",\"\",'1. Order'!G1073)","v":""},{"$f":"IF('1. Order'!H1073=\"\",\"\",'1. Order'!H1073)","v":""},{"$f":"IF('1. Order'!I1073=\"\",\"\",'1. Order'!I1073)","v":""},{"$f":"IF('1. Order'!J1073=\"\",\"\",'1. Order'!J1073)","v":""},{"$f":"IF('1. Order'!K1073=\"\",\"\",'1. Order'!K1073)","v":""},{"$f":"IF('1. Order'!L1073=\"\",\"\",'1. Order'!L1073)","v":""},{"$f":"IF('1. Order'!M1073=\"\",\"\",'1. Order'!M1073)","v":""},{"$f":"IF('1. Order'!N1073=\"\",\"\",'1. Order'!N1073)","v":""},{"$f":"IF('1. Order'!O1073=\"\",\"\",'1. Order'!O1073)","v":{"$error":"#N/A"}},{"$f":"IF('1. Order'!P1073=\"\",\"\",'1. Order'!P1073)","v":{"$error":"#N/A"}},{"$f":"IF('1. Order'!Q1073=\"\",\"\",'1. Order'!Q1073)","v":""},{"$f":"IF('1. Order'!R1073=\"\",\"\",'1. Order'!R1073)","v":""},{"$f":"IF('1. Order'!S1073=\"\",\"\",'1. Order'!S1073)","v":""},{"$f":"IF('1. Order'!V1073=\"\",\"\",'1. Order'!V1073)","v":""},{"$f":"IF('1. Order'!W1073=\"\",\"\",'1. Order'!W1073)","v":""},{"$f":"IF('1. Order'!X1073=\"\",\"\",'1. Order'!X1073)","v":"EUR"},{"$f":"IF('1. Order'!Y1073=\"\",\"\",'1. Order'!Y1073)","v":""},{"$f":"IF('1. Order'!Z1073=\"\",\"\",'1. Order'!Z1073)","v":""},{"$f":"IF('1. Order'!AA1073=\"\",\"\",'1. Order'!AA1073)","v":""},null,{"$f":"IF('1. Order'!AS1073=\"\",\"\",'1. Order'!AS1073)","v":""},{"$f":"IF('1. Order'!AT1073=\"\",\"\",'1. Order'!AT1073)","v":""},null,null,null,null,null,null,null,{"$f":"IF('1. Order'!AX1073=\"\",\"\",'1. Order'!AX1073)","v":""},{"$f":"IF('1. Order'!AY1073=\"\",\"\",'1. Order'!AY1073)","v":""},{"$f":"IF('1. Order'!AZ1073=\"\",\"\",'1. Order'!AZ1073)","v":""},{"$f":"IF('1. Order'!BA1073=\"\",\"\",'1. Order'!BA1073)","v":""},{"$f":"IF('1. Order'!BC1073=\"\",\"\",'1. Order'!BC1073)","v":""},{"$f":"IF('1. Order'!BD1073=\"\",\"\",'1. Order'!BD1073)","v":6},{"$f":"IF('1. Order'!BE1073=\"\",\"\",'1. Order'!BE1073)","v":"None"},{"$f":"IF('1. Order'!BF1073=\"\",\"\",'1. Order'!BF1073)","v":"Parcel"},{"$f":"IF('1. Order'!BG1073=\"\",\"\",'1. Order'!BG1073)","v":"ZWO"}]
[{"$f":"IF('1. Order'!F1074=\"\",\"\",'1. Order'!F1074)","v":""},{"$f":"IF('1. Order'!G1074=\"\",\"\",'1. Order'!G1074)","v":""},{"$f":"IF('1. Order'!H1074=\"\",\"\",'1. Order'!H1074)","v":""},{"$f":"IF('1. Order'!I1074=\"\",\"\",'1. Order'!I1074)","v":""},{"$f":"IF('1. Order'!J1074=\"\",\"\",'1. Order'!J1074)","v":""},{"$f":"IF('1. Order'!K1074=\"\",\"\",'1. Order'!K1074)","v":""},{"$f":"IF('1. Order'!L1074=\"\",\"\",'1. Order'!L1074)","v":""},{"$f":"IF('1. Order'!M1074=\"\",\"\",'1. Order'!M1074)","v":""},{"$f":"IF('1. Order'!N1074=\"\",\"\",'1. Order'!N1074)","v":""},{"$f":"IF('1. Order'!O1074=\"\",\"\",'1. Order'!O1074)","v":{"$error":"#N/A"}},{"$f":"IF('1. Order'!P1074=\"\",\"\",'1. Order'!P1074)","v":{"$error":"#N/A"}},{"$f":"IF('1. Order'!Q1074=\"\",\"\",'1. Order'!Q1074)","v":""},{"$f":"IF('1. Order'!R1074=\"\",\"\",'1. Order'!R1074)","v":""},{"$f":"IF('1. Order'!S1074=\"\",\"\",'1. Order'!S1074)","v":""},{"$f":"IF('1. Order'!V1074=\"\",\"\",'1. Order'!V1074)","v":""},{"$f":"IF('1. Order'!W1074=\"\",\"\",'1. Order'!W1074)","v":""},{"$f":"IF('1. Order'!X1074=\"\",\"\",'1. Order'!X1074)","v":"EUR"},{"$f":"IF('1. Order'!Y1074=\"\",\"\",'1. Order'!Y1074)","v":""},{"$f":"IF('1. Order'!Z1074=\"\",\"\",'1. Order'!Z1074)","v":""},{"$f":"IF('1. Order'!AA1074=\"\",\"\",'1. Order'!AA1074)","v":""},null,{"$f":"IF('1. Order'!AS1074=\"\",\"\",'1. Order'!AS1074)","v":""},{"$f":"IF('1. Order'!AT1074=\"\",\"\",'1. Order'!AT1074)","v":""},null,null,null,null,null,null,null,{"$f":"IF('1. Order'!AX1074=\"\",\"\",'1. Order'!AX1074)","v":""},{"$f":"IF('1. Order'!AY1074=\"\",\"\",'1. Order'!AY1074)","v":""},{"$f":"IF('1. Order'!AZ1074=\"\",\"\",'1. Order'!AZ1074)","v":""},{"$f":"IF('1. Order'!BA1074=\"\",\"\",'1. Order'!BA1074)","v":""},{"$f":"IF('1. Order'!BC1074=\"\",\"\",'1. Order'!BC1074)","v":""},{"$f":"IF('1. Order'!BD1074=\"\",\"\",'1. Order'!BD1074)","v":6},{"$f":"IF('1. Order'!BE1074=\"\",\"\",'1. Order'!BE1074)","v":"None"},{"$f":"IF('1. Order'!BF1074=\"\",\"\",'1. Order'!BF1074)","v":"Parcel"},{"$f":"IF('1. Order'!BG1074=\"\",\"\",'1. Order'!BG1074)","v":"ZWO"}]
[{"$f":"IF('1. Order'!F1075=\"\",\"\",'1. Order'!F1075)","v":""},{"$f":"IF('1. Order'!G1075=\"\",\"\",'1. Order'!G1075)","v":""},{"$f":"IF('1. Order'!H1075=\"\",\"\",'1. Order'!H1075)","v":""},{"$f":"IF('1. Order'!I1075=\"\",\"\",'1. Order'!I1075)","v":""},{"$f":"IF('1. Order'!J1075=\"\",\"\",'1. Order'!J1075)","v":""},{"$f":"IF('1. Order'!K1075=\"\",\"\",'1. Order'!K1075)","v":""},{"$f":"IF('1. Order'!L1075=\"\",\"\",'1. Order'!L1075)","v":""},{"$f":"IF('1. Order'!M1075=\"\",\"\",'1. Order'!M1075)","v":""},{"$f":"IF('1. Order'!N1075=\"\",\"\",'1. Order'!N1075)","v":""},{"$f":"IF('1. Order'!O1075=\"\",\"\",'1. Order'!O1075)","v":{"$error":"#N/A"}},{"$f":"IF('1. Order'!P1075=\"\",\"\",'1. Order'!P1075)","v":{"$error":"#N/A"}},{"$f":"IF('1. Order'!Q1075=\"\",\"\",'1. Order'!Q1075)","v":""},{"$f":"IF('1. Order'!R1075=\"\",\"\",'1. Order'!R1075)","v":""},{"$f":"IF('1. Order'!S1075=\"\",\"\",'1. Order'!S1075)","v":""},{"$f":"IF('1. Order'!V1075=\"\",\"\",'1. Order'!V1075)","v":""},{"$f":"IF('1. Order'!W1075=\"\",\"\",'1. Order'!W1075)","v":""},{"$f":"IF('1. Order'!X1075=\"\",\"\",'1. Order'!X1075)","v":"EUR"},{"$f":"IF('1. Order'!Y1075=\"\",\"\",'1. Order'!Y1075)","v":""},{"$f":"IF('1. Order'!Z1075=\"\",\"\",'1. Order'!Z1075)","v":""},{"$f":"IF('1. Order'!AA1075=\"\",\"\",'1. Order'!AA1075)","v":""},null,{"$f":"IF('1. Order'!AS1075=\"\",\"\",'1. Order'!AS1075)","v":""},{"$f":"IF('1. Order'!AT1075=\"\",\"\",'1. Order'!AT1075)","v":""},null,null,null,null,null,null,null,{"$f":"IF('1. Order'!AX1075=\"\",\"\",'1. Order'!AX1075)","v":""},{"$f":"IF('1. Order'!AY1075=\"\",\"\",'1. Order'!AY1075)","v":""},{"$f":"IF('1. Order'!AZ1075=\"\",\"\",'1. Order'!AZ1075)","v":""},{"$f":"IF('1. Order'!BA1075=\"\",\"\",'1. Order'!BA1075)","v":""},{"$f":"IF('1. Order'!BC1075=\"\",\"\",'1. Order'!BC1075)","v":""},{"$f":"IF('1. Order'!BD1075=\"\",\"\",'1. Order'!BD1075)","v":6},{"$f":"IF('1. Order'!BE1075=\"\",\"\",'1. Order'!BE1075)","v":"None"},{"$f":"IF('1. Order'!BF1075=\"\",\"\",'1. Order'!BF1075)","v":"Parcel"},{"$f":"IF('1. Order'!BG1075=\"\",\"\",'1. Order'!BG1075)","v":"ZWO"}]
[{"$f":"IF('1. Order'!F1076=\"\",\"\",'1. Order'!F1076)","v":""},{"$f":"IF('1. Order'!G1076=\"\",\"\",'1. Order'!G1076)","v":""},{"$f":"IF('1. Order'!H1076=\"\",\"\",'1. Order'!H1076)","v":""},{"$f":"IF('1. Order'!I1076=\"\",\"\",'1. Order'!I1076)","v":""},{"$f":"IF('1. Order'!J1076=\"\",\"\",'1. Order'!J1076)","v":""},{"$f":"IF('1. Order'!K1076=\"\",\"\",'1. Order'!K1076)","v":""},{"$f":"IF('1. Order'!L1076=\"\",\"\",'1. Order'!L1076)","v":""},{"$f":"IF('1. Order'!M1076=\"\",\"\",'1. Order'!M1076)","v":""},{"$f":"IF('1. Order'!N1076=\"\",\"\",'1. Order'!N1076)","v":""},{"$f":"IF('1. Order'!O1076=\"\",\"\",'1. Order'!O1076)","v":{"$error":"#N/A"}},{"$f":"IF('1. Order'!P1076=\"\",\"\",'1. Order'!P1076)","v":{"$error":"#N/A"}},{"$f":"IF('1. Order'!Q1076=\"\",\"\",'1. Order'!Q1076)","v":""},{"$f":"IF('1. Order'!R1076=\"\",\"\",'1. Order'!R1076)","v":""},{"$f":"IF('1. Order'!S1076=\"\",\"\",'1. Order'!S1076)","v":""},{"$f":"IF('1. Order'!V1076=\"\",\"\",'1. Order'!V1076)","v":""},{"$f":"IF('1. Order'!W1076=\"\",\"\",'1. Order'!W1076)","v":""},{"$f":"IF('1. Order'!X1076=\"\",\"\",'1. Order'!X1076)","v":"EUR"},{"$f":"IF('1. Order'!Y1076=\"\",\"\",'1. Order'!Y1076)","v":""},{"$f":"IF('1. Order'!Z1076=\"\",\"\",'1. Order'!Z1076)","v":""},{"$f":"IF('1. Order'!AA1076=\"\",\"\",'1. Order'!AA1076)","v":""},null,{"$f":"IF('1. Order'!AS1076=\"\",\"\",'1. Order'!AS1076)","v":""},{"$f":"IF('1. Order'!AT1076=\"\",\"\",'1. Order'!AT1076)","v":""},null,null,null,null,null,null,null,{"$f":"IF('1. Order'!AX1076=\"\",\"\",'1. Order'!AX1076)","v":""},{"$f":"IF('1. Order'!AY1076=\"\",\"\",'1. Order'!AY1076)","v":""},{"$f":"IF('1. Order'!AZ1076=\"\",\"\",'1. Order'!AZ1076)","v":""},{"$f":"IF('1. Order'!BA1076=\"\",\"\",'1. Order'!BA1076)","v":""},{"$f":"IF('1. Order'!BC1076=\"\",\"\",'1. Order'!BC1076)","v":""},{"$f":"IF('1. Order'!BD1076=\"\",\"\",'1. Order'!BD1076)","v":6},{"$f":"IF('1. Order'!BE1076=\"\",\"\",'1. Order'!BE1076)","v":"None"},{"$f":"IF('1. Order'!BF1076=\"\",\"\",'1. Order'!BF1076)","v":"Parcel"},{"$f":"IF('1. Order'!BG1076=\"\",\"\",'1. Order'!BG1076)","v":"ZWO"}]
[{"$f":"IF('1. Order'!F1077=\"\",\"\",'1. Order'!F1077)","v":""},{"$f":"IF('1. Order'!G1077=\"\",\"\",'1. Order'!G1077)","v":""},{"$f":"IF('1. Order'!H1077=\"\",\"\",'1. Order'!H1077)","v":""},{"$f":"IF('1. Order'!I1077=\"\",\"\",'1. Order'!I1077)","v":""},{"$f":"IF('1. Order'!J1077=\"\",\"\",'1. Order'!J1077)","v":""},{"$f":"IF('1. Order'!K1077=\"\",\"\",'1. Order'!K1077)","v":""},{"$f":"IF('1. Order'!L1077=\"\",\"\",'1. Order'!L1077)","v":""},{"$f":"IF('1. Order'!M1077=\"\",\"\",'1. Order'!M1077)","v":""},{"$f":"IF('1. Order'!N1077=\"\",\"\",'1. Order'!N1077)","v":""},{"$f":"IF('1. Order'!O1077=\"\",\"\",'1. Order'!O1077)","v":{"$error":"#N/A"}},{"$f":"IF('1. Order'!P1077=\"\",\"\",'1. Order'!P1077)","v":{"$error":"#N/A"}},{"$f":"IF('1. Order'!Q1077=\"\",\"\",'1. Order'!Q1077)","v":""},{"$f":"IF('1. Order'!R1077=\"\",\"\",'1. Order'!R1077)","v":""},{"$f":"IF('1. Order'!S1077=\"\",\"\",'1. Order'!S1077)","v":""},{"$f":"IF('1. Order'!V1077=\"\",\"\",'1. Order'!V1077)","v":""},{"$f":"IF('1. Order'!W1077=\"\",\"\",'1. Order'!W1077)","v":""},{"$f":"IF('1. Order'!X1077=\"\",\"\",'1. Order'!X1077)","v":"EUR"},{"$f":"IF('1. Order'!Y1077=\"\",\"\",'1. Order'!Y1077)","v":""},{"$f":"IF('1. Order'!Z1077=\"\",\"\",'1. Order'!Z1077)","v":""},{"$f":"IF('1. Order'!AA1077=\"\",\"\",'1. Order'!AA1077)","v":""},null,{"$f":"IF('1. Order'!AS1077=\"\",\"\",'1. Order'!AS1077)","v":""},{"$f":"IF('1. Order'!AT1077=\"\",\"\",'1. Order'!AT1077)","v":""},null,null,null,null,null,null,null,{"$f":"IF('1. Order'!AX1077=\"\",\"\",'1. Order'!AX1077)","v":""},{"$f":"IF('1. Order'!AY1077=\"\",\"\",'1. Order'!AY1077)","v":""},{"$f":"IF('1. Order'!AZ1077=\"\",\"\",'1. Order'!AZ1077)","v":""},{"$f":"IF('1. Order'!BA1077=\"\",\"\",'1. Order'!BA1077)","v":""},{"$f":"IF('1. Order'!BC1077=\"\",\"\",'1. Order'!BC1077)","v":""},{"$f":"IF('1. Order'!BD1077=\"\",\"\",'1. Order'!BD1077)","v":6},{"$f":"IF('1. Order'!BE1077=\"\",\"\",'1. Order'!BE1077)","v":"None"},{"$f":"IF('1. Order'!BF1077=\"\",\"\",'1. Order'!BF1077)","v":"Parcel"},{"$f":"IF('1. Order'!BG1077=\"\",\"\",'1. Order'!BG1077)","v":"ZWO"}]
[{"$f":"IF('1. Order'!F1078=\"\",\"\",'1. Order'!F1078)","v":""},{"$f":"IF('1. Order'!G1078=\"\",\"\",'1. Order'!G1078)","v":""},{"$f":"IF('1. Order'!H1078=\"\",\"\",'1. Order'!H1078)","v":""},{"$f":"IF('1. Order'!I1078=\"\",\"\",'1. Order'!I1078)","v":""},{"$f":"IF('1. Order'!J1078=\"\",\"\",'1. Order'!J1078)","v":""},{"$f":"IF('1. Order'!K1078=\"\",\"\",'1. Order'!K1078)","v":""},{"$f":"IF('1. Order'!L1078=\"\",\"\",'1. Order'!L1078)","v":""},{"$f":"IF('1. Order'!M1078=\"\",\"\",'1. Order'!M1078)","v":""},{"$f":"IF('1. Order'!N1078=\"\",\"\",'1. Order'!N1078)","v":""},{"$f":"IF('1. Order'!O1078=\"\",\"\",'1. Order'!O1078)","v":{"$error":"#N/A"}},{"$f":"IF('1. Order'!P1078=\"\",\"\",'1. Order'!P1078)","v":{"$error":"#N/A"}},{"$f":"IF('1. Order'!Q1078=\"\",\"\",'1. Order'!Q1078)","v":""},{"$f":"IF('1. Order'!R1078=\"\",\"\",'1. Order'!R1078)","v":""},{"$f":"IF('1. Order'!S1078=\"\",\"\",'1. Order'!S1078)","v":""},{"$f":"IF('1. Order'!V1078=\"\",\"\",'1. Order'!V1078)","v":""},{"$f":"IF('1. Order'!W1078=\"\",\"\",'1. Order'!W1078)","v":""},{"$f":"IF('1. Order'!X1078=\"\",\"\",'1. Order'!X1078)","v":"EUR"},{"$f":"IF('1. Order'!Y1078=\"\",\"\",'1. Order'!Y1078)","v":""},{"$f":"IF('1. Order'!Z1078=\"\",\"\",'1. Order'!Z1078)","v":""},{"$f":"IF('1. Order'!AA1078=\"\",\"\",'1. Order'!AA1078)","v":""},null,{"$f":"IF('1. Order'!AS1078=\"\",\"\",'1. Order'!AS1078)","v":""},{"$f":"IF('1. Order'!AT1078=\"\",\"\",'1. Order'!AT1078)","v":""},null,null,null,null,null,null,null,{"$f":"IF('1. Order'!AX1078=\"\",\"\",'1. Order'!AX1078)","v":""},{"$f":"IF('1. Order'!AY1078=\"\",\"\",'1. Order'!AY1078)","v":""},{"$f":"IF('1. Order'!AZ1078=\"\",\"\",'1. Order'!AZ1078)","v":""},{"$f":"IF('1. Order'!BA1078=\"\",\"\",'1. Order'!BA1078)","v":""},{"$f":"IF('1. Order'!BC1078=\"\",\"\",'1. Order'!BC1078)","v":""},{"$f":"IF('1. Order'!BD1078=\"\",\"\",'1. Order'!BD1078)","v":6},{"$f":"IF('1. Order'!BE1078=\"\",\"\",'1. Order'!BE1078)","v":"None"},{"$f":"IF('1. Order'!BF1078=\"\",\"\",'1. Order'!BF1078)","v":"Parcel"},{"$f":"IF('1. Order'!BG1078=\"\",\"\",'1. Order'!BG1078)","v":"ZWO"}]
[{"$f":"IF('1. Order'!F1079=\"\",\"\",'1. Order'!F1079)","v":""},{"$f":"IF('1. Order'!G1079=\"\",\"\",'1. Order'!G1079)","v":""},{"$f":"IF('1. Order'!H1079=\"\",\"\",'1. Order'!H1079)","v":""},{"$f":"IF('1. Order'!I1079=\"\",\"\",'1. Order'!I1079)","v":""},{"$f":"IF('1. Order'!J1079=\"\",\"\",'1. Order'!J1079)","v":""},{"$f":"IF('1. Order'!K1079=\"\",\"\",'1. Order'!K1079)","v":""},{"$f":"IF('1. Order'!L1079=\"\",\"\",'1. Order'!L1079)","v":""},{"$f":"IF('1. Order'!M1079=\"\",\"\",'1. Order'!M1079)","v":""},{"$f":"IF('1. Order'!N1079=\"\",\"\",'1. Order'!N1079)","v":""},{"$f":"IF('1. Order'!O1079=\"\",\"\",'1. Order'!O1079)","v":{"$error":"#N/A"}},{"$f":"IF('1. Order'!P1079=\"\",\"\",'1. Order'!P1079)","v":{"$error":"#N/A"}},{"$f":"IF('1. Order'!Q1079=\"\",\"\",'1. Order'!Q1079)","v":""},{"$f":"IF('1. Order'!R1079=\"\",\"\",'1. Order'!R1079)","v":""},{"$f":"IF('1. Order'!S1079=\"\",\"\",'1. Order'!S1079)","v":""},{"$f":"IF('1. Order'!V1079=\"\",\"\",'1. Order'!V1079)","v":""},{"$f":"IF('1. Order'!W1079=\"\",\"\",'1. Order'!W1079)","v":""},{"$f":"IF('1. Order'!X1079=\"\",\"\",'1. Order'!X1079)","v":"EUR"},{"$f":"IF('1. Order'!Y1079=\"\",\"\",'1. Order'!Y1079)","v":""},{"$f":"IF('1. Order'!Z1079=\"\",\"\",'1. Order'!Z1079)","v":""},{"$f":"IF('1. Order'!AA1079=\"\",\"\",'1. Order'!AA1079)","v":""},null,{"$f":"IF('1. Order'!AS1079=\"\",\"\",'1. Order'!AS1079)","v":""},{"$f":"IF('1. Order'!AT1079=\"\",\"\",'1. Order'!AT1079)","v":""},null,null,null,null,null,null,null,{"$f":"IF('1. Order'!AX1079=\"\",\"\",'1. Order'!AX1079)","v":""},{"$f":"IF('1. Order'!AY1079=\"\",\"\",'1. Order'!AY1079)","v":""},{"$f":"IF('1. Order'!AZ1079=\"\",\"\",'1. Order'!AZ1079)","v":""},{"$f":"IF('1. Order'!BA1079=\"\",\"\",'1. Order'!BA1079)","v":""},{"$f":"IF('1. Order'!BC1079=\"\",\"\",'1. Order'!BC1079)","v":""},{"$f":"IF('1. Order'!BD1079=\"\",\"\",'1. Order'!BD1079)","v":6},{"$f":"IF('1. Order'!BE1079=\"\",\"\",'1. Order'!BE1079)","v":"None"},{"$f":"IF('1. Order'!BF1079=\"\",\"\",'1. Order'!BF1079)","v":"Parcel"},{"$f":"IF('1. Order'!BG1079=\"\",\"\",'1. Order'!BG1079)","v":"ZWO"}]
[{"$f":"IF('1. Order'!F1080=\"\",\"\",'1. Order'!F1080)","v":""},{"$f":"IF('1. Order'!G1080=\"\",\"\",'1. Order'!G1080)","v":""},{"$f":"IF('1. Order'!H1080=\"\",\"\",'1. Order'!H1080)","v":""},{"$f":"IF('1. Order'!I1080=\"\",\"\",'1. Order'!I1080)","v":""},{"$f":"IF('1. Order'!J1080=\"\",\"\",'1. Order'!J1080)","v":""},{"$f":"IF('1. Order'!K1080=\"\",\"\",'1. Order'!K1080)","v":""},{"$f":"IF('1. Order'!L1080=\"\",\"\",'1. Order'!L1080)","v":""},{"$f":"IF('1. Order'!M1080=\"\",\"\",'1. Order'!M1080)","v":""},{"$f":"IF('1. Order'!N1080=\"\",\"\",'1. Order'!N1080)","v":""},{"$f":"IF('1. Order'!O1080=\"\",\"\",'1. Order'!O1080)","v":{"$error":"#N/A"}},{"$f":"IF('1. Order'!P1080=\"\",\"\",'1. Order'!P1080)","v":{"$error":"#N/A"}},{"$f":"IF('1. Order'!Q1080=\"\",\"\",'1. Order'!Q1080)","v":""},{"$f":"IF('1. Order'!R1080=\"\",\"\",'1. Order'!R1080)","v":""},{"$f":"IF('1. Order'!S1080=\"\",\"\",'1. Order'!S1080)","v":""},{"$f":"IF('1. Order'!V1080=\"\",\"\",'1. Order'!V1080)","v":""},{"$f":"IF('1. Order'!W1080=\"\",\"\",'1. Order'!W1080)","v":""},{"$f":"IF('1. Order'!X1080=\"\",\"\",'1. Order'!X1080)","v":"EUR"},{"$f":"IF('1. Order'!Y1080=\"\",\"\",'1. Order'!Y1080)","v":""},{"$f":"IF('1. Order'!Z1080=\"\",\"\",'1. Order'!Z1080)","v":""},{"$f":"IF('1. Order'!AA1080=\"\",\"\",'1. Order'!AA1080)","v":""},null,{"$f":"IF('1. Order'!AS1080=\"\",\"\",'1. Order'!AS1080)","v":""},{"$f":"IF('1. Order'!AT1080=\"\",\"\",'1. Order'!AT1080)","v":""},null,null,null,null,null,null,null,{"$f":"IF('1. Order'!AX1080=\"\",\"\",'1. Order'!AX1080)","v":""},{"$f":"IF('1. Order'!AY1080=\"\",\"\",'1. Order'!AY1080)","v":""},{"$f":"IF('1. Order'!AZ1080=\"\",\"\",'1. Order'!AZ1080)","v":""},{"$f":"IF('1. Order'!BA1080=\"\",\"\",'1. Order'!BA1080)","v":""},{"$f":"IF('1. Order'!BC1080=\"\",\"\",'1. Order'!BC1080)","v":""},{"$f":"IF('1. Order'!BD1080=\"\",\"\",'1. Order'!BD1080)","v":6},{"$f":"IF('1. Order'!BE1080=\"\",\"\",'1. Order'!BE1080)","v":"None"},{"$f":"IF('1. Order'!BF1080=\"\",\"\",'1. Order'!BF1080)","v":"Parcel"},{"$f":"IF('1. Order'!BG1080=\"\",\"\",'1. Order'!BG1080)","v":"ZWO"}]
[{"$f":"IF('1. Order'!F1081=\"\",\"\",'1. Order'!F1081)","v":""},{"$f":"IF('1. Order'!G1081=\"\",\"\",'1. Order'!G1081)","v":""},{"$f":"IF('1. Order'!H1081=\"\",\"\",'1. Order'!H1081)","v":""},{"$f":"IF('1. Order'!I1081=\"\",\"\",'1. Order'!I1081)","v":""},{"$f":"IF('1. Order'!J1081=\"\",\"\",'1. Order'!J1081)","v":""},{"$f":"IF('1. Order'!K1081=\"\",\"\",'1. Order'!K1081)","v":""},{"$f":"IF('1. Order'!L1081=\"\",\"\",'1. Order'!L1081)","v":""},{"$f":"IF('1. Order'!M1081=\"\",\"\",'1. Order'!M1081)","v":""},{"$f":"IF('1. Order'!N1081=\"\",\"\",'1. Order'!N1081)","v":""},{"$f":"IF('1. Order'!O1081=\"\",\"\",'1. Order'!O1081)","v":{"$error":"#N/A"}},{"$f":"IF('1. Order'!P1081=\"\",\"\",'1. Order'!P1081)","v":{"$error":"#N/A"}},{"$f":"IF('1. Order'!Q1081=\"\",\"\",'1. Order'!Q1081)","v":""},{"$f":"IF('1. Order'!R1081=\"\",\"\",'1. Order'!R1081)","v":""},{"$f":"IF('1. Order'!S1081=\"\",\"\",'1. Order'!S1081)","v":""},{"$f":"IF('1. Order'!V1081=\"\",\"\",'1. Order'!V1081)","v":""},{"$f":"IF('1. Order'!W1081=\"\",\"\",'1. Order'!W1081)","v":""},{"$f":"IF('1. Order'!X1081=\"\",\"\",'1. Order'!X1081)","v":"EUR"},{"$f":"IF('1. Order'!Y1081=\"\",\"\",'1. Order'!Y1081)","v":""},{"$f":"IF('1. Order'!Z1081=\"\",\"\",'1. Order'!Z1081)","v":""},{"$f":"IF('1. Order'!AA1081=\"\",\"\",'1. Order'!AA1081)","v":""},null,{"$f":"IF('1. Order'!AS1081=\"\",\"\",'1. Order'!AS1081)","v":""},{"$f":"IF('1. Order'!AT1081=\"\",\"\",'1. Order'!AT1081)","v":""},null,null,null,null,null,null,null,{"$f":"IF('1. Order'!AX1081=\"\",\"\",'1. Order'!AX1081)","v":""},{"$f":"IF('1. Order'!AY1081=\"\",\"\",'1. Order'!AY1081)","v":""},{"$f":"IF('1. Order'!AZ1081=\"\",\"\",'1. Order'!AZ1081)","v":""},{"$f":"IF('1. Order'!BA1081=\"\",\"\",'1. Order'!BA1081)","v":""},{"$f":"IF('1. Order'!BC1081=\"\",\"\",'1. Order'!BC1081)","v":""},{"$f":"IF('1. Order'!BD1081=\"\",\"\",'1. Order'!BD1081)","v":6},{"$f":"IF('1. Order'!BE1081=\"\",\"\",'1. Order'!BE1081)","v":"None"},{"$f":"IF('1. Order'!BF1081=\"\",\"\",'1. Order'!BF1081)","v":"Parcel"},{"$f":"IF('1. Order'!BG1081=\"\",\"\",'1. Order'!BG1081)","v":"ZWO"}]
[{"$f":"IF('1. Order'!F1082=\"\",\"\",'1. Order'!F1082)","v":""},{"$f":"IF('1. Order'!G1082=\"\",\"\",'1. Order'!G1082)","v":""},{"$f":"IF('1. Order'!H1082=\"\",\"\",'1. Order'!H1082)","v":""},{"$f":"IF('1. Order'!I1082=\"\",\"\",'1. Order'!I1082)","v":""},{"$f":"IF('1. Order'!J1082=\"\",\"\",'1. Order'!J1082)","v":""},{"$f":"IF('1. Order'!K1082=\"\",\"\",'1. Order'!K1082)","v":""},{"$f":"IF('1. Order'!L1082=\"\",\"\",'1. Order'!L1082)","v":""},{"$f":"IF('1. Order'!M1082=\"\",\"\",'1. Order'!M1082)","v":""},{"$f":"IF('1. Order'!N1082=\"\",\"\",'1. Order'!N1082)","v":""},{"$f":"IF('1. Order'!O1082=\"\",\"\",'1. Order'!O1082)","v":{"$error":"#N/A"}},{"$f":"IF('1. Order'!P1082=\"\",\"\",'1. Order'!P1082)","v":{"$error":"#N/A"}},{"$f":"IF('1. Order'!Q1082=\"\",\"\",'1. Order'!Q1082)","v":""},{"$f":"IF('1. Order'!R1082=\"\",\"\",'1. Order'!R1082)","v":""},{"$f":"IF('1. Order'!S1082=\"\",\"\",'1. Order'!S1082)","v":""},{"$f":"IF('1. Order'!V1082=\"\",\"\",'1. Order'!V1082)","v":""},{"$f":"IF('1. Order'!W1082=\"\",\"\",'1. Order'!W1082)","v":""},{"$f":"IF('1. Order'!X1082=\"\",\"\",'1. Order'!X1082)","v":"EUR"},{"$f":"IF('1. Order'!Y1082=\"\",\"\",'1. Order'!Y1082)","v":""},{"$f":"IF('1. Order'!Z1082=\"\",\"\",'1. Order'!Z1082)","v":""},{"$f":"IF('1. Order'!AA1082=\"\",\"\",'1. Order'!AA1082)","v":""},null,{"$f":"IF('1. Order'!AS1082=\"\",\"\",'1. Order'!AS1082)","v":""},{"$f":"IF('1. Order'!AT1082=\"\",\"\",'1. Order'!AT1082)","v":""},null,null,null,null,null,null,null,{"$f":"IF('1. Order'!AX1082=\"\",\"\",'1. Order'!AX1082)","v":""},{"$f":"IF('1. Order'!AY1082=\"\",\"\",'1. Order'!AY1082)","v":""},{"$f":"IF('1. Order'!AZ1082=\"\",\"\",'1. Order'!AZ1082)","v":""},{"$f":"IF('1. Order'!BA1082=\"\",\"\",'1. Order'!BA1082)","v":""},{"$f":"IF('1. Order'!BC1082=\"\",\"\",'1. Order'!BC1082)","v":""},{"$f":"IF('1. Order'!BD1082=\"\",\"\",'1. Order'!BD1082)","v":6},{"$f":"IF('1. Order'!BE1082=\"\",\"\",'1. Order'!BE1082)","v":"None"},{"$f":"IF('1. Order'!BF1082=\"\",\"\",'1. Order'!BF1082)","v":"Parcel"},{"$f":"IF('1. Order'!BG1082=\"\",\"\",'1. Order'!BG1082)","v":"ZWO"}]
[{"$f":"IF('1. Order'!F1083=\"\",\"\",'1. Order'!F1083)","v":""},{"$f":"IF('1. Order'!G1083=\"\",\"\",'1. Order'!G1083)","v":""},{"$f":"IF('1. Order'!H1083=\"\",\"\",'1. Order'!H1083)","v":""},{"$f":"IF('1. Order'!I1083=\"\",\"\",'1. Order'!I1083)","v":""},{"$f":"IF('1. Order'!J1083=\"\",\"\",'1. Order'!J1083)","v":""},{"$f":"IF('1. Order'!K1083=\"\",\"\",'1. Order'!K1083)","v":""},{"$f":"IF('1. Order'!L1083=\"\",\"\",'1. Order'!L1083)","v":""},{"$f":"IF('1. Order'!M1083=\"\",\"\",'1. Order'!M1083)","v":""},{"$f":"IF('1. Order'!N1083=\"\",\"\",'1. Order'!N1083)","v":""},{"$f":"IF('1. Order'!O1083=\"\",\"\",'1. Order'!O1083)","v":{"$error":"#N/A"}},{"$f":"IF('1. Order'!P1083=\"\",\"\",'1. Order'!P1083)","v":{"$error":"#N/A"}},{"$f":"IF('1. Order'!Q1083=\"\",\"\",'1. Order'!Q1083)","v":""},{"$f":"IF('1. Order'!R1083=\"\",\"\",'1. Order'!R1083)","v":""},{"$f":"IF('1. Order'!S1083=\"\",\"\",'1. Order'!S1083)","v":""},{"$f":"IF('1. Order'!V1083=\"\",\"\",'1. Order'!V1083)","v":""},{"$f":"IF('1. Order'!W1083=\"\",\"\",'1. Order'!W1083)","v":""},{"$f":"IF('1. Order'!X1083=\"\",\"\",'1. Order'!X1083)","v":"EUR"},{"$f":"IF('1. Order'!Y1083=\"\",\"\",'1. Order'!Y1083)","v":""},{"$f":"IF('1. Order'!Z1083=\"\",\"\",'1. Order'!Z1083)","v":""},{"$f":"IF('1. Order'!AA1083=\"\",\"\",'1. Order'!AA1083)","v":""},null,{"$f":"IF('1. Order'!AS1083=\"\",\"\",'1. Order'!AS1083)","v":""},{"$f":"IF('1. Order'!AT1083=\"\",\"\",'1. Order'!AT1083)","v":""},null,null,null,null,null,null,null,{"$f":"IF('1. Order'!AX1083=\"\",\"\",'1. Order'!AX1083)","v":""},{"$f":"IF('1. Order'!AY1083=\"\",\"\",'1. Order'!AY1083)","v":""},{"$f":"IF('1. Order'!AZ1083=\"\",\"\",'1. Order'!AZ1083)","v":""},{"$f":"IF('1. Order'!BA1083=\"\",\"\",'1. Order'!BA1083)","v":""},{"$f":"IF('1. Order'!BC1083=\"\",\"\",'1. Order'!BC1083)","v":""},{"$f":"IF('1. Order'!BD1083=\"\",\"\",'1. Order'!BD1083)","v":6},{"$f":"IF('1. Order'!BE1083=\"\",\"\",'1. Order'!BE1083)","v":"None"},{"$f":"IF('1. Order'!BF1083=\"\",\"\",'1. Order'!BF1083)","v":"Parcel"},{"$f":"IF('1. Order'!BG1083=\"\",\"\",'1. Order'!BG1083)","v":"ZWO"}]
[{"$f":"IF('1. Order'!F1084=\"\",\"\",'1. Order'!F1084)","v":""},{"$f":"IF('1. Order'!G1084=\"\",\"\",'1. Order'!G1084)","v":""},{"$f":"IF('1. Order'!H1084=\"\",\"\",'1. Order'!H1084)","v":""},{"$f":"IF('1. Order'!I1084=\"\",\"\",'1. Order'!I1084)","v":""},{"$f":"IF('1. Order'!J1084=\"\",\"\",'1. Order'!J1084)","v":""},{"$f":"IF('1. Order'!K1084=\"\",\"\",'1. Order'!K1084)","v":""},{"$f":"IF('1. Order'!L1084=\"\",\"\",'1. Order'!L1084)","v":""},{"$f":"IF('1. Order'!M1084=\"\",\"\",'1. Order'!M1084)","v":""},{"$f":"IF('1. Order'!N1084=\"\",\"\",'1. Order'!N1084)","v":""},{"$f":"IF('1. Order'!O1084=\"\",\"\",'1. Order'!O1084)","v":{"$error":"#N/A"}},{"$f":"IF('1. Order'!P1084=\"\",\"\",'1. Order'!P1084)","v":{"$error":"#N/A"}},{"$f":"IF('1. Order'!Q1084=\"\",\"\",'1. Order'!Q1084)","v":""},{"$f":"IF('1. Order'!R1084=\"\",\"\",'1. Order'!R1084)","v":""},{"$f":"IF('1. Order'!S1084=\"\",\"\",'1. Order'!S1084)","v":""},{"$f":"IF('1. Order'!V1084=\"\",\"\",'1. Order'!V1084)","v":""},{"$f":"IF('1. Order'!W1084=\"\",\"\",'1. Order'!W1084)","v":""},{"$f":"IF('1. Order'!X1084=\"\",\"\",'1. Order'!X1084)","v":"EUR"},{"$f":"IF('1. Order'!Y1084=\"\",\"\",'1. Order'!Y1084)","v":""},{"$f":"IF('1. Order'!Z1084=\"\",\"\",'1. Order'!Z1084)","v":""},{"$f":"IF('1. Order'!AA1084=\"\",\"\",'1. Order'!AA1084)","v":""},null,{"$f":"IF('1. Order'!AS1084=\"\",\"\",'1. Order'!AS1084)","v":""},{"$f":"IF('1. Order'!AT1084=\"\",\"\",'1. Order'!AT1084)","v":""},null,null,null,null,null,null,null,{"$f":"IF('1. Order'!AX1084=\"\",\"\",'1. Order'!AX1084)","v":""},{"$f":"IF('1. Order'!AY1084=\"\",\"\",'1. Order'!AY1084)","v":""},{"$f":"IF('1. Order'!AZ1084=\"\",\"\",'1. Order'!AZ1084)","v":""},{"$f":"IF('1. Order'!BA1084=\"\",\"\",'1. Order'!BA1084)","v":""},{"$f":"IF('1. Order'!BC1084=\"\",\"\",'1. Order'!BC1084)","v":""},{"$f":"IF('1. Order'!BD1084=\"\",\"\",'1. Order'!BD1084)","v":6},{"$f":"IF('1. Order'!BE1084=\"\",\"\",'1. Order'!BE1084)","v":"None"},{"$f":"IF('1. Order'!BF1084=\"\",\"\",'1. Order'!BF1084)","v":"Parcel"},{"$f":"IF('1. Order'!BG1084=\"\",\"\",'1. Order'!BG1084)","v":"ZWO"}]
[{"$f":"IF('1. Order'!F1085=\"\",\"\",'1. Order'!F1085)","v":""},{"$f":"IF('1. Order'!G1085=\"\",\"\",'1. Order'!G1085)","v":""},{"$f":"IF('1. Order'!H1085=\"\",\"\",'1. Order'!H1085)","v":""},{"$f":"IF('1. Order'!I1085=\"\",\"\",'1. Order'!I1085)","v":""},{"$f":"IF('1. Order'!J1085=\"\",\"\",'1. Order'!J1085)","v":""},{"$f":"IF('1. Order'!K1085=\"\",\"\",'1. Order'!K1085)","v":""},{"$f":"IF('1. Order'!L1085=\"\",\"\",'1. Order'!L1085)","v":""},{"$f":"IF('1. Order'!M1085=\"\",\"\",'1. Order'!M1085)","v":""},{"$f":"IF('1. Order'!N1085=\"\",\"\",'1. Order'!N1085)","v":""},{"$f":"IF('1. Order'!O1085=\"\",\"\",'1. Order'!O1085)","v":{"$error":"#N/A"}},{"$f":"IF('1. Order'!P1085=\"\",\"\",'1. Order'!P1085)","v":{"$error":"#N/A"}},{"$f":"IF('1. Order'!Q1085=\"\",\"\",'1. Order'!Q1085)","v":""},{"$f":"IF('1. Order'!R1085=\"\",\"\",'1. Order'!R1085)","v":""},{"$f":"IF('1. Order'!S1085=\"\",\"\",'1. Order'!S1085)","v":""},{"$f":"IF('1. Order'!V1085=\"\",\"\",'1. Order'!V1085)","v":""},{"$f":"IF('1. Order'!W1085=\"\",\"\",'1. Order'!W1085)","v":""},{"$f":"IF('1. Order'!X1085=\"\",\"\",'1. Order'!X1085)","v":"EUR"},{"$f":"IF('1. Order'!Y1085=\"\",\"\",'1. Order'!Y1085)","v":""},{"$f":"IF('1. Order'!Z1085=\"\",\"\",'1. Order'!Z1085)","v":""},{"$f":"IF('1. Order'!AA1085=\"\",\"\",'1. Order'!AA1085)","v":""},null,{"$f":"IF('1. Order'!AS1085=\"\",\"\",'1. Order'!AS1085)","v":""},{"$f":"IF('1. Order'!AT1085=\"\",\"\",'1. Order'!AT1085)","v":""},null,null,null,null,null,null,null,{"$f":"IF('1. Order'!AX1085=\"\",\"\",'1. Order'!AX1085)","v":""},{"$f":"IF('1. Order'!AY1085=\"\",\"\",'1. Order'!AY1085)","v":""},{"$f":"IF('1. Order'!AZ1085=\"\",\"\",'1. Order'!AZ1085)","v":""},{"$f":"IF('1. Order'!BA1085=\"\",\"\",'1. Order'!BA1085)","v":""},{"$f":"IF('1. Order'!BC1085=\"\",\"\",'1. Order'!BC1085)","v":""},{"$f":"IF('1. Order'!BD1085=\"\",\"\",'1. Order'!BD1085)","v":6},{"$f":"IF('1. Order'!BE1085=\"\",\"\",'1. Order'!BE1085)","v":"None"},{"$f":"IF('1. Order'!BF1085=\"\",\"\",'1. Order'!BF1085)","v":"Parcel"},{"$f":"IF('1. Order'!BG1085=\"\",\"\",'1. Order'!BG1085)","v":"ZWO"}]
[{"$f":"IF('1. Order'!F1086=\"\",\"\",'1. Order'!F1086)","v":""},{"$f":"IF('1. Order'!G1086=\"\",\"\",'1. Order'!G1086)","v":""},{"$f":"IF('1. Order'!H1086=\"\",\"\",'1. Order'!H1086)","v":""},{"$f":"IF('1. Order'!I1086=\"\",\"\",'1. Order'!I1086)","v":""},{"$f":"IF('1. Order'!J1086=\"\",\"\",'1. Order'!J1086)","v":""},{"$f":"IF('1. Order'!K1086=\"\",\"\",'1. Order'!K1086)","v":""},{"$f":"IF('1. Order'!L1086=\"\",\"\",'1. Order'!L1086)","v":""},{"$f":"IF('1. Order'!M1086=\"\",\"\",'1. Order'!M1086)","v":""},{"$f":"IF('1. Order'!N1086=\"\",\"\",'1. Order'!N1086)","v":""},{"$f":"IF('1. Order'!O1086=\"\",\"\",'1. Order'!O1086)","v":{"$error":"#N/A"}},{"$f":"IF('1. Order'!P1086=\"\",\"\",'1. Order'!P1086)","v":{"$error":"#N/A"}},{"$f":"IF('1. Order'!Q1086=\"\",\"\",'1. Order'!Q1086)","v":""},{"$f":"IF('1. Order'!R1086=\"\",\"\",'1. Order'!R1086)","v":""},{"$f":"IF('1. Order'!S1086=\"\",\"\",'1. Order'!S1086)","v":""},{"$f":"IF('1. Order'!V1086=\"\",\"\",'1. Order'!V1086)","v":""},{"$f":"IF('1. Order'!W1086=\"\",\"\",'1. Order'!W1086)","v":""},{"$f":"IF('1. Order'!X1086=\"\",\"\",'1. Order'!X1086)","v":"EUR"},{"$f":"IF('1. Order'!Y1086=\"\",\"\",'1. Order'!Y1086)","v":""},{"$f":"IF('1. Order'!Z1086=\"\",\"\",'1. Order'!Z1086)","v":""},{"$f":"IF('1. Order'!AA1086=\"\",\"\",'1. Order'!AA1086)","v":""},null,{"$f":"IF('1. Order'!AS1086=\"\",\"\",'1. Order'!AS1086)","v":""},{"$f":"IF('1. Order'!AT1086=\"\",\"\",'1. Order'!AT1086)","v":""},null,null,null,null,null,null,null,{"$f":"IF('1. Order'!AX1086=\"\",\"\",'1. Order'!AX1086)","v":""},{"$f":"IF('1. Order'!AY1086=\"\",\"\",'1. Order'!AY1086)","v":""},{"$f":"IF('1. Order'!AZ1086=\"\",\"\",'1. Order'!AZ1086)","v":""},{"$f":"IF('1. Order'!BA1086=\"\",\"\",'1. Order'!BA1086)","v":""},{"$f":"IF('1. Order'!BC1086=\"\",\"\",'1. Order'!BC1086)","v":""},{"$f":"IF('1. Order'!BD1086=\"\",\"\",'1. Order'!BD1086)","v":6},{"$f":"IF('1. Order'!BE1086=\"\",\"\",'1. Order'!BE1086)","v":"None"},{"$f":"IF('1. Order'!BF1086=\"\",\"\",'1. Order'!BF1086)","v":"Parcel"},{"$f":"IF('1. Order'!BG1086=\"\",\"\",'1. Order'!BG1086)","v":"ZWO"}]
[{"$f":"IF('1. Order'!F1087=\"\",\"\",'1. Order'!F1087)","v":""},{"$f":"IF('1. Order'!G1087=\"\",\"\",'1. Order'!G1087)","v":""},{"$f":"IF('1. Order'!H1087=\"\",\"\",'1. Order'!H1087)","v":""},{"$f":"IF('1. Order'!I1087=\"\",\"\",'1. Order'!I1087)","v":""},{"$f":"IF('1. Order'!J1087=\"\",\"\",'1. Order'!J1087)","v":""},{"$f":"IF('1. Order'!K1087=\"\",\"\",'1. Order'!K1087)","v":""},{"$f":"IF('1. Order'!L1087=\"\",\"\",'1. Order'!L1087)","v":""},{"$f":"IF('1. Order'!M1087=\"\",\"\",'1. Order'!M1087)","v":""},{"$f":"IF('1. Order'!N1087=\"\",\"\",'1. Order'!N1087)","v":""},{"$f":"IF('1. Order'!O1087=\"\",\"\",'1. Order'!O1087)","v":{"$error":"#N/A"}},{"$f":"IF('1. Order'!P1087=\"\",\"\",'1. Order'!P1087)","v":{"$error":"#N/A"}},{"$f":"IF('1. Order'!Q1087=\"\",\"\",'1. Order'!Q1087)","v":""},{"$f":"IF('1. Order'!R1087=\"\",\"\",'1. Order'!R1087)","v":""},{"$f":"IF('1. Order'!S1087=\"\",\"\",'1. Order'!S1087)","v":""},{"$f":"IF('1. Order'!V1087=\"\",\"\",'1. Order'!V1087)","v":""},{"$f":"IF('1. Order'!W1087=\"\",\"\",'1. Order'!W1087)","v":""},{"$f":"IF('1. Order'!X1087=\"\",\"\",'1. Order'!X1087)","v":"EUR"},{"$f":"IF('1. Order'!Y1087=\"\",\"\",'1. Order'!Y1087)","v":""},{"$f":"IF('1. Order'!Z1087=\"\",\"\",'1. Order'!Z1087)","v":""},{"$f":"IF('1. Order'!AA1087=\"\",\"\",'1. Order'!AA1087)","v":""},null,{"$f":"IF('1. Order'!AS1087=\"\",\"\",'1. Order'!AS1087)","v":""},{"$f":"IF('1. Order'!AT1087=\"\",\"\",'1. Order'!AT1087)","v":""},null,null,null,null,null,null,null,{"$f":"IF('1. Order'!AX1087=\"\",\"\",'1. Order'!AX1087)","v":""},{"$f":"IF('1. Order'!AY1087=\"\",\"\",'1. Order'!AY1087)","v":""},{"$f":"IF('1. Order'!AZ1087=\"\",\"\",'1. Order'!AZ1087)","v":""},{"$f":"IF('1. Order'!BA1087=\"\",\"\",'1. Order'!BA1087)","v":""},{"$f":"IF('1. Order'!BC1087=\"\",\"\",'1. Order'!BC1087)","v":""},{"$f":"IF('1. Order'!BD1087=\"\",\"\",'1. Order'!BD1087)","v":6},{"$f":"IF('1. Order'!BE1087=\"\",\"\",'1. Order'!BE1087)","v":"None"},{"$f":"IF('1. Order'!BF1087=\"\",\"\",'1. Order'!BF1087)","v":"Parcel"},{"$f":"IF('1. Order'!BG1087=\"\",\"\",'1. Order'!BG1087)","v":"ZWO"}]
[{"$f":"IF('1. Order'!F1088=\"\",\"\",'1. Order'!F1088)","v":""},{"$f":"IF('1. Order'!G1088=\"\",\"\",'1. Order'!G1088)","v":""},{"$f":"IF('1. Order'!H1088=\"\",\"\",'1. Order'!H1088)","v":""},{"$f":"IF('1. Order'!I1088=\"\",\"\",'1. Order'!I1088)","v":""},{"$f":"IF('1. Order'!J1088=\"\",\"\",'1. Order'!J1088)","v":""},{"$f":"IF('1. Order'!K1088=\"\",\"\",'1. Order'!K1088)","v":""},{"$f":"IF('1. Order'!L1088=\"\",\"\",'1. Order'!L1088)","v":""},{"$f":"IF('1. Order'!M1088=\"\",\"\",'1. Order'!M1088)","v":""},{"$f":"IF('1. Order'!N1088=\"\",\"\",'1. Order'!N1088)","v":""},{"$f":"IF('1. Order'!O1088=\"\",\"\",'1. Order'!O1088)","v":{"$error":"#N/A"}},{"$f":"IF('1. Order'!P1088=\"\",\"\",'1. Order'!P1088)","v":{"$error":"#N/A"}},{"$f":"IF('1. Order'!Q1088=\"\",\"\",'1. Order'!Q1088)","v":""},{"$f":"IF('1. Order'!R1088=\"\",\"\",'1. Order'!R1088)","v":""},{"$f":"IF('1. Order'!S1088=\"\",\"\",'1. Order'!S1088)","v":""},{"$f":"IF('1. Order'!V1088=\"\",\"\",'1. Order'!V1088)","v":""},{"$f":"IF('1. Order'!W1088=\"\",\"\",'1. Order'!W1088)","v":""},{"$f":"IF('1. Order'!X1088=\"\",\"\",'1. Order'!X1088)","v":"EUR"},{"$f":"IF('1. Order'!Y1088=\"\",\"\",'1. Order'!Y1088)","v":""},{"$f":"IF('1. Order'!Z1088=\"\",\"\",'1. Order'!Z1088)","v":""},{"$f":"IF('1. Order'!AA1088=\"\",\"\",'1. Order'!AA1088)","v":""},null,{"$f":"IF('1. Order'!AS1088=\"\",\"\",'1. Order'!AS1088)","v":""},{"$f":"IF('1. Order'!AT1088=\"\",\"\",'1. Order'!AT1088)","v":""},null,null,null,null,null,null,null,{"$f":"IF('1. Order'!AX1088=\"\",\"\",'1. Order'!AX1088)","v":""},{"$f":"IF('1. Order'!AY1088=\"\",\"\",'1. Order'!AY1088)","v":""},{"$f":"IF('1. Order'!AZ1088=\"\",\"\",'1. Order'!AZ1088)","v":""},{"$f":"IF('1. Order'!BA1088=\"\",\"\",'1. Order'!BA1088)","v":""},{"$f":"IF('1. Order'!BC1088=\"\",\"\",'1. Order'!BC1088)","v":""},{"$f":"IF('1. Order'!BD1088=\"\",\"\",'1. Order'!BD1088)","v":6},{"$f":"IF('1. Order'!BE1088=\"\",\"\",'1. Order'!BE1088)","v":"None"},{"$f":"IF('1. Order'!BF1088=\"\",\"\",'1. Order'!BF1088)","v":"Parcel"},{"$f":"IF('1. Order'!BG1088=\"\",\"\",'1. Order'!BG1088)","v":"ZWO"}]
[{"$f":"IF('1. Order'!F1089=\"\",\"\",'1. Order'!F1089)","v":""},{"$f":"IF('1. Order'!G1089=\"\",\"\",'1. Order'!G1089)","v":""},{"$f":"IF('1. Order'!H1089=\"\",\"\",'1. Order'!H1089)","v":""},{"$f":"IF('1. Order'!I1089=\"\",\"\",'1. Order'!I1089)","v":""},{"$f":"IF('1. Order'!J1089=\"\",\"\",'1. Order'!J1089)","v":""},{"$f":"IF('1. Order'!K1089=\"\",\"\",'1. Order'!K1089)","v":""},{"$f":"IF('1. Order'!L1089=\"\",\"\",'1. Order'!L1089)","v":""},{"$f":"IF('1. Order'!M1089=\"\",\"\",'1. Order'!M1089)","v":""},{"$f":"IF('1. Order'!N1089=\"\",\"\",'1. Order'!N1089)","v":""},{"$f":"IF('1. Order'!O1089=\"\",\"\",'1. Order'!O1089)","v":{"$error":"#N/A"}},{"$f":"IF('1. Order'!P1089=\"\",\"\",'1. Order'!P1089)","v":{"$error":"#N/A"}},{"$f":"IF('1. Order'!Q1089=\"\",\"\",'1. Order'!Q1089)","v":""},{"$f":"IF('1. Order'!R1089=\"\",\"\",'1. Order'!R1089)","v":""},{"$f":"IF('1. Order'!S1089=\"\",\"\",'1. Order'!S1089)","v":""},{"$f":"IF('1. Order'!V1089=\"\",\"\",'1. Order'!V1089)","v":""},{"$f":"IF('1. Order'!W1089=\"\",\"\",'1. Order'!W1089)","v":""},{"$f":"IF('1. Order'!X1089=\"\",\"\",'1. Order'!X1089)","v":"EUR"},{"$f":"IF('1. Order'!Y1089=\"\",\"\",'1. Order'!Y1089)","v":""},{"$f":"IF('1. Order'!Z1089=\"\",\"\",'1. Order'!Z1089)","v":""},{"$f":"IF('1. Order'!AA1089=\"\",\"\",'1. Order'!AA1089)","v":""},null,{"$f":"IF('1. Order'!AS1089=\"\",\"\",'1. Order'!AS1089)","v":""},{"$f":"IF('1. Order'!AT1089=\"\",\"\",'1. Order'!AT1089)","v":""},null,null,null,null,null,null,null,{"$f":"IF('1. Order'!AX1089=\"\",\"\",'1. Order'!AX1089)","v":""},{"$f":"IF('1. Order'!AY1089=\"\",\"\",'1. Order'!AY1089)","v":""},{"$f":"IF('1. Order'!AZ1089=\"\",\"\",'1. Order'!AZ1089)","v":""},{"$f":"IF('1. Order'!BA1089=\"\",\"\",'1. Order'!BA1089)","v":""},{"$f":"IF('1. Order'!BC1089=\"\",\"\",'1. Order'!BC1089)","v":""},{"$f":"IF('1. Order'!BD1089=\"\",\"\",'1. Order'!BD1089)","v":6},{"$f":"IF('1. Order'!BE1089=\"\",\"\",'1. Order'!BE1089)","v":"None"},{"$f":"IF('1. Order'!BF1089=\"\",\"\",'1. Order'!BF1089)","v":"Parcel"},{"$f":"IF('1. Order'!BG1089=\"\",\"\",'1. Order'!BG1089)","v":"ZWO"}]
[{"$f":"IF('1. Order'!F1090=\"\",\"\",'1. Order'!F1090)","v":""},{"$f":"IF('1. Order'!G1090=\"\",\"\",'1. Order'!G1090)","v":""},{"$f":"IF('1. Order'!H1090=\"\",\"\",'1. Order'!H1090)","v":""},{"$f":"IF('1. Order'!I1090=\"\",\"\",'1. Order'!I1090)","v":""},{"$f":"IF('1. Order'!J1090=\"\",\"\",'1. Order'!J1090)","v":""},{"$f":"IF('1. Order'!K1090=\"\",\"\",'1. Order'!K1090)","v":""},{"$f":"IF('1. Order'!L1090=\"\",\"\",'1. Order'!L1090)","v":""},{"$f":"IF('1. Order'!M1090=\"\",\"\",'1. Order'!M1090)","v":""},{"$f":"IF('1. Order'!N1090=\"\",\"\",'1. Order'!N1090)","v":""},{"$f":"IF('1. Order'!O1090=\"\",\"\",'1. Order'!O1090)","v":{"$error":"#N/A"}},{"$f":"IF('1. Order'!P1090=\"\",\"\",'1. Order'!P1090)","v":{"$error":"#N/A"}},{"$f":"IF('1. Order'!Q1090=\"\",\"\",'1. Order'!Q1090)","v":""},{"$f":"IF('1. Order'!R1090=\"\",\"\",'1. Order'!R1090)","v":""},{"$f":"IF('1. Order'!S1090=\"\",\"\",'1. Order'!S1090)","v":""},{"$f":"IF('1. Order'!V1090=\"\",\"\",'1. Order'!V1090)","v":""},{"$f":"IF('1. Order'!W1090=\"\",\"\",'1. Order'!W1090)","v":""},{"$f":"IF('1. Order'!X1090=\"\",\"\",'1. Order'!X1090)","v":"EUR"},{"$f":"IF('1. Order'!Y1090=\"\",\"\",'1. Order'!Y1090)","v":""},{"$f":"IF('1. Order'!Z1090=\"\",\"\",'1. Order'!Z1090)","v":""},{"$f":"IF('1. Order'!AA1090=\"\",\"\",'1. Order'!AA1090)","v":""},null,{"$f":"IF('1. Order'!AS1090=\"\",\"\",'1. Order'!AS1090)","v":""},{"$f":"IF('1. Order'!AT1090=\"\",\"\",'1. Order'!AT1090)","v":""},null,null,null,null,null,null,null,{"$f":"IF('1. Order'!AX1090=\"\",\"\",'1. Order'!AX1090)","v":""},{"$f":"IF('1. Order'!AY1090=\"\",\"\",'1. Order'!AY1090)","v":""},{"$f":"IF('1. Order'!AZ1090=\"\",\"\",'1. Order'!AZ1090)","v":""},{"$f":"IF('1. Order'!BA1090=\"\",\"\",'1. Order'!BA1090)","v":""},{"$f":"IF('1. Order'!BC1090=\"\",\"\",'1. Order'!BC1090)","v":""},{"$f":"IF('1. Order'!BD1090=\"\",\"\",'1. Order'!BD1090)","v":6},{"$f":"IF('1. Order'!BE1090=\"\",\"\",'1. Order'!BE1090)","v":"None"},{"$f":"IF('1. Order'!BF1090=\"\",\"\",'1. Order'!BF1090)","v":"Parcel"},{"$f":"IF('1. Order'!BG1090=\"\",\"\",'1. Order'!BG1090)","v":"ZWO"}]
[{"$f":"IF('1. Order'!F1091=\"\",\"\",'1. Order'!F1091)","v":""},{"$f":"IF('1. Order'!G1091=\"\",\"\",'1. Order'!G1091)","v":""},{"$f":"IF('1. Order'!H1091=\"\",\"\",'1. Order'!H1091)","v":""},{"$f":"IF('1. Order'!I1091=\"\",\"\",'1. Order'!I1091)","v":""},{"$f":"IF('1. Order'!J1091=\"\",\"\",'1. Order'!J1091)","v":""},{"$f":"IF('1. Order'!K1091=\"\",\"\",'1. Order'!K1091)","v":""},{"$f":"IF('1. Order'!L1091=\"\",\"\",'1. Order'!L1091)","v":""},{"$f":"IF('1. Order'!M1091=\"\",\"\",'1. Order'!M1091)","v":""},{"$f":"IF('1. Order'!N1091=\"\",\"\",'1. Order'!N1091)","v":""},{"$f":"IF('1. Order'!O1091=\"\",\"\",'1. Order'!O1091)","v":{"$error":"#N/A"}},{"$f":"IF('1. Order'!P1091=\"\",\"\",'1. Order'!P1091)","v":{"$error":"#N/A"}},{"$f":"IF('1. Order'!Q1091=\"\",\"\",'1. Order'!Q1091)","v":""},{"$f":"IF('1. Order'!R1091=\"\",\"\",'1. Order'!R1091)","v":""},{"$f":"IF('1. Order'!S1091=\"\",\"\",'1. Order'!S1091)","v":""},{"$f":"IF('1. Order'!V1091=\"\",\"\",'1. Order'!V1091)","v":""},{"$f":"IF('1. Order'!W1091=\"\",\"\",'1. Order'!W1091)","v":""},{"$f":"IF('1. Order'!X1091=\"\",\"\",'1. Order'!X1091)","v":"EUR"},{"$f":"IF('1. Order'!Y1091=\"\",\"\",'1. Order'!Y1091)","v":""},{"$f":"IF('1. Order'!Z1091=\"\",\"\",'1. Order'!Z1091)","v":""},{"$f":"IF('1. Order'!AA1091=\"\",\"\",'1. Order'!AA1091)","v":""},null,{"$f":"IF('1. Order'!AS1091=\"\",\"\",'1. Order'!AS1091)","v":""},{"$f":"IF('1. Order'!AT1091=\"\",\"\",'1. Order'!AT1091)","v":""},null,null,null,null,null,null,null,{"$f":"IF('1. Order'!AX1091=\"\",\"\",'1. Order'!AX1091)","v":""},{"$f":"IF('1. Order'!AY1091=\"\",\"\",'1. Order'!AY1091)","v":""},{"$f":"IF('1. Order'!AZ1091=\"\",\"\",'1. Order'!AZ1091)","v":""},{"$f":"IF('1. Order'!BA1091=\"\",\"\",'1. Order'!BA1091)","v":""},{"$f":"IF('1. Order'!BC1091=\"\",\"\",'1. Order'!BC1091)","v":""},{"$f":"IF('1. Order'!BD1091=\"\",\"\",'1. Order'!BD1091)","v":6},{"$f":"IF('1. Order'!BE1091=\"\",\"\",'1. Order'!BE1091)","v":"None"},{"$f":"IF('1. Order'!BF1091=\"\",\"\",'1. Order'!BF1091)","v":"Parcel"},{"$f":"IF('1. Order'!BG1091=\"\",\"\",'1. Order'!BG1091)","v":"ZWO"}]
[{"$f":"IF('1. Order'!F1092=\"\",\"\",'1. Order'!F1092)","v":""},{"$f":"IF('1. Order'!G1092=\"\",\"\",'1. Order'!G1092)","v":""},{"$f":"IF('1. Order'!H1092=\"\",\"\",'1. Order'!H1092)","v":""},{"$f":"IF('1. Order'!I1092=\"\",\"\",'1. Order'!I1092)","v":""},{"$f":"IF('1. Order'!J1092=\"\",\"\",'1. Order'!J1092)","v":""},{"$f":"IF('1. Order'!K1092=\"\",\"\",'1. Order'!K1092)","v":""},{"$f":"IF('1. Order'!L1092=\"\",\"\",'1. Order'!L1092)","v":""},{"$f":"IF('1. Order'!M1092=\"\",\"\",'1. Order'!M1092)","v":""},{"$f":"IF('1. Order'!N1092=\"\",\"\",'1. Order'!N1092)","v":""},{"$f":"IF('1. Order'!O1092=\"\",\"\",'1. Order'!O1092)","v":{"$error":"#N/A"}},{"$f":"IF('1. Order'!P1092=\"\",\"\",'1. Order'!P1092)","v":{"$error":"#N/A"}},{"$f":"IF('1. Order'!Q1092=\"\",\"\",'1. Order'!Q1092)","v":""},{"$f":"IF('1. Order'!R1092=\"\",\"\",'1. Order'!R1092)","v":""},{"$f":"IF('1. Order'!S1092=\"\",\"\",'1. Order'!S1092)","v":""},{"$f":"IF('1. Order'!V1092=\"\",\"\",'1. Order'!V1092)","v":""},{"$f":"IF('1. Order'!W1092=\"\",\"\",'1. Order'!W1092)","v":""},{"$f":"IF('1. Order'!X1092=\"\",\"\",'1. Order'!X1092)","v":"EUR"},{"$f":"IF('1. Order'!Y1092=\"\",\"\",'1. Order'!Y1092)","v":""},{"$f":"IF('1. Order'!Z1092=\"\",\"\",'1. Order'!Z1092)","v":""},{"$f":"IF('1. Order'!AA1092=\"\",\"\",'1. Order'!AA1092)","v":""},null,{"$f":"IF('1. Order'!AS1092=\"\",\"\",'1. Order'!AS1092)","v":""},{"$f":"IF('1. Order'!AT1092=\"\",\"\",'1. Order'!AT1092)","v":""},null,null,null,null,null,null,null,{"$f":"IF('1. Order'!AX1092=\"\",\"\",'1. Order'!AX1092)","v":""},{"$f":"IF('1. Order'!AY1092=\"\",\"\",'1. Order'!AY1092)","v":""},{"$f":"IF('1. Order'!AZ1092=\"\",\"\",'1. Order'!AZ1092)","v":""},{"$f":"IF('1. Order'!BA1092=\"\",\"\",'1. Order'!BA1092)","v":""},{"$f":"IF('1. Order'!BC1092=\"\",\"\",'1. Order'!BC1092)","v":""},{"$f":"IF('1. Order'!BD1092=\"\",\"\",'1. Order'!BD1092)","v":6},{"$f":"IF('1. Order'!BE1092=\"\",\"\",'1. Order'!BE1092)","v":"None"},{"$f":"IF('1. Order'!BF1092=\"\",\"\",'1. Order'!BF1092)","v":"Parcel"},{"$f":"IF('1. Order'!BG1092=\"\",\"\",'1. Order'!BG1092)","v":"ZWO"}]
[{"$f":"IF('1. Order'!F1093=\"\",\"\",'1. Order'!F1093)","v":""},{"$f":"IF('1. Order'!G1093=\"\",\"\",'1. Order'!G1093)","v":""},{"$f":"IF('1. Order'!H1093=\"\",\"\",'1. Order'!H1093)","v":""},{"$f":"IF('1. Order'!I1093=\"\",\"\",'1. Order'!I1093)","v":""},{"$f":"IF('1. Order'!J1093=\"\",\"\",'1. Order'!J1093)","v":""},{"$f":"IF('1. Order'!K1093=\"\",\"\",'1. Order'!K1093)","v":""},{"$f":"IF('1. Order'!L1093=\"\",\"\",'1. Order'!L1093)","v":""},{"$f":"IF('1. Order'!M1093=\"\",\"\",'1. Order'!M1093)","v":""},{"$f":"IF('1. Order'!N1093=\"\",\"\",'1. Order'!N1093)","v":""},{"$f":"IF('1. Order'!O1093=\"\",\"\",'1. Order'!O1093)","v":{"$error":"#N/A"}},{"$f":"IF('1. Order'!P1093=\"\",\"\",'1. Order'!P1093)","v":{"$error":"#N/A"}},{"$f":"IF('1. Order'!Q1093=\"\",\"\",'1. Order'!Q1093)","v":""},{"$f":"IF('1. Order'!R1093=\"\",\"\",'1. Order'!R1093)","v":""},{"$f":"IF('1. Order'!S1093=\"\",\"\",'1. Order'!S1093)","v":""},{"$f":"IF('1. Order'!V1093=\"\",\"\",'1. Order'!V1093)","v":""},{"$f":"IF('1. Order'!W1093=\"\",\"\",'1. Order'!W1093)","v":""},{"$f":"IF('1. Order'!X1093=\"\",\"\",'1. Order'!X1093)","v":"EUR"},{"$f":"IF('1. Order'!Y1093=\"\",\"\",'1. Order'!Y1093)","v":""},{"$f":"IF('1. Order'!Z1093=\"\",\"\",'1. Order'!Z1093)","v":""},{"$f":"IF('1. Order'!AA1093=\"\",\"\",'1. Order'!AA1093)","v":""},null,{"$f":"IF('1. Order'!AS1093=\"\",\"\",'1. Order'!AS1093)","v":""},{"$f":"IF('1. Order'!AT1093=\"\",\"\",'1. Order'!AT1093)","v":""},null,null,null,null,null,null,null,{"$f":"IF('1. Order'!AX1093=\"\",\"\",'1. Order'!AX1093)","v":""},{"$f":"IF('1. Order'!AY1093=\"\",\"\",'1. Order'!AY1093)","v":""},{"$f":"IF('1. Order'!AZ1093=\"\",\"\",'1. Order'!AZ1093)","v":""},{"$f":"IF('1. Order'!BA1093=\"\",\"\",'1. Order'!BA1093)","v":""},{"$f":"IF('1. Order'!BC1093=\"\",\"\",'1. Order'!BC1093)","v":""},{"$f":"IF('1. Order'!BD1093=\"\",\"\",'1. Order'!BD1093)","v":6},{"$f":"IF('1. Order'!BE1093=\"\",\"\",'1. Order'!BE1093)","v":"None"},{"$f":"IF('1. Order'!BF1093=\"\",\"\",'1. Order'!BF1093)","v":"Parcel"},{"$f":"IF('1. Order'!BG1093=\"\",\"\",'1. Order'!BG1093)","v":"ZWO"}]
[{"$f":"IF('1. Order'!F1094=\"\",\"\",'1. Order'!F1094)","v":""},{"$f":"IF('1. Order'!G1094=\"\",\"\",'1. Order'!G1094)","v":""},{"$f":"IF('1. Order'!H1094=\"\",\"\",'1. Order'!H1094)","v":""},{"$f":"IF('1. Order'!I1094=\"\",\"\",'1. Order'!I1094)","v":""},{"$f":"IF('1. Order'!J1094=\"\",\"\",'1. Order'!J1094)","v":""},{"$f":"IF('1. Order'!K1094=\"\",\"\",'1. Order'!K1094)","v":""},{"$f":"IF('1. Order'!L1094=\"\",\"\",'1. Order'!L1094)","v":""},{"$f":"IF('1. Order'!M1094=\"\",\"\",'1. Order'!M1094)","v":""},{"$f":"IF('1. Order'!N1094=\"\",\"\",'1. Order'!N1094)","v":""},{"$f":"IF('1. Order'!O1094=\"\",\"\",'1. Order'!O1094)","v":{"$error":"#N/A"}},{"$f":"IF('1. Order'!P1094=\"\",\"\",'1. Order'!P1094)","v":{"$error":"#N/A"}},{"$f":"IF('1. Order'!Q1094=\"\",\"\",'1. Order'!Q1094)","v":""},{"$f":"IF('1. Order'!R1094=\"\",\"\",'1. Order'!R1094)","v":""},{"$f":"IF('1. Order'!S1094=\"\",\"\",'1. Order'!S1094)","v":""},{"$f":"IF('1. Order'!V1094=\"\",\"\",'1. Order'!V1094)","v":""},{"$f":"IF('1. Order'!W1094=\"\",\"\",'1. Order'!W1094)","v":""},{"$f":"IF('1. Order'!X1094=\"\",\"\",'1. Order'!X1094)","v":"EUR"},{"$f":"IF('1. Order'!Y1094=\"\",\"\",'1. Order'!Y1094)","v":""},{"$f":"IF('1. Order'!Z1094=\"\",\"\",'1. Order'!Z1094)","v":""},{"$f":"IF('1. Order'!AA1094=\"\",\"\",'1. Order'!AA1094)","v":""},null,{"$f":"IF('1. Order'!AS1094=\"\",\"\",'1. Order'!AS1094)","v":""},{"$f":"IF('1. Order'!AT1094=\"\",\"\",'1. Order'!AT1094)","v":""},null,null,null,null,null,null,null,{"$f":"IF('1. Order'!AX1094=\"\",\"\",'1. Order'!AX1094)","v":""},{"$f":"IF('1. Order'!AY1094=\"\",\"\",'1. Order'!AY1094)","v":""},{"$f":"IF('1. Order'!AZ1094=\"\",\"\",'1. Order'!AZ1094)","v":""},{"$f":"IF('1. Order'!BA1094=\"\",\"\",'1. Order'!BA1094)","v":""},{"$f":"IF('1. Order'!BC1094=\"\",\"\",'1. Order'!BC1094)","v":""},{"$f":"IF('1. Order'!BD1094=\"\",\"\",'1. Order'!BD1094)","v":6},{"$f":"IF('1. Order'!BE1094=\"\",\"\",'1. Order'!BE1094)","v":"None"},{"$f":"IF('1. Order'!BF1094=\"\",\"\",'1. Order'!BF1094)","v":"Parcel"},{"$f":"IF('1. Order'!BG1094=\"\",\"\",'1. Order'!BG1094)","v":"ZWO"}]
[{"$f":"IF('1. Order'!F1095=\"\",\"\",'1. Order'!F1095)","v":""},{"$f":"IF('1. Order'!G1095=\"\",\"\",'1. Order'!G1095)","v":""},{"$f":"IF('1. Order'!H1095=\"\",\"\",'1. Order'!H1095)","v":""},{"$f":"IF('1. Order'!I1095=\"\",\"\",'1. Order'!I1095)","v":""},{"$f":"IF('1. Order'!J1095=\"\",\"\",'1. Order'!J1095)","v":""},{"$f":"IF('1. Order'!K1095=\"\",\"\",'1. Order'!K1095)","v":""},{"$f":"IF('1. Order'!L1095=\"\",\"\",'1. Order'!L1095)","v":""},{"$f":"IF('1. Order'!M1095=\"\",\"\",'1. Order'!M1095)","v":""},{"$f":"IF('1. Order'!N1095=\"\",\"\",'1. Order'!N1095)","v":""},{"$f":"IF('1. Order'!O1095=\"\",\"\",'1. Order'!O1095)","v":{"$error":"#N/A"}},{"$f":"IF('1. Order'!P1095=\"\",\"\",'1. Order'!P1095)","v":{"$error":"#N/A"}},{"$f":"IF('1. Order'!Q1095=\"\",\"\",'1. Order'!Q1095)","v":""},{"$f":"IF('1. Order'!R1095=\"\",\"\",'1. Order'!R1095)","v":""},{"$f":"IF('1. Order'!S1095=\"\",\"\",'1. Order'!S1095)","v":""},{"$f":"IF('1. Order'!V1095=\"\",\"\",'1. Order'!V1095)","v":""},{"$f":"IF('1. Order'!W1095=\"\",\"\",'1. Order'!W1095)","v":""},{"$f":"IF('1. Order'!X1095=\"\",\"\",'1. Order'!X1095)","v":"EUR"},{"$f":"IF('1. Order'!Y1095=\"\",\"\",'1. Order'!Y1095)","v":""},{"$f":"IF('1. Order'!Z1095=\"\",\"\",'1. Order'!Z1095)","v":""},{"$f":"IF('1. Order'!AA1095=\"\",\"\",'1. Order'!AA1095)","v":""},null,{"$f":"IF('1. Order'!AS1095=\"\",\"\",'1. Order'!AS1095)","v":""},{"$f":"IF('1. Order'!AT1095=\"\",\"\",'1. Order'!AT1095)","v":""},null,null,null,null,null,null,null,{"$f":"IF('1. Order'!AX1095=\"\",\"\",'1. Order'!AX1095)","v":""},{"$f":"IF('1. Order'!AY1095=\"\",\"\",'1. Order'!AY1095)","v":""},{"$f":"IF('1. Order'!AZ1095=\"\",\"\",'1. Order'!AZ1095)","v":""},{"$f":"IF('1. Order'!BA1095=\"\",\"\",'1. Order'!BA1095)","v":""},{"$f":"IF('1. Order'!BC1095=\"\",\"\",'1. Order'!BC1095)","v":""},{"$f":"IF('1. Order'!BD1095=\"\",\"\",'1. Order'!BD1095)","v":6},{"$f":"IF('1. Order'!BE1095=\"\",\"\",'1. Order'!BE1095)","v":"None"},{"$f":"IF('1. Order'!BF1095=\"\",\"\",'1. Order'!BF1095)","v":"Parcel"},{"$f":"IF('1. Order'!BG1095=\"\",\"\",'1. Order'!BG1095)","v":"ZWO"}]
[{"$f":"IF('1. Order'!F1096=\"\",\"\",'1. Order'!F1096)","v":""},{"$f":"IF('1. Order'!G1096=\"\",\"\",'1. Order'!G1096)","v":""},{"$f":"IF('1. Order'!H1096=\"\",\"\",'1. Order'!H1096)","v":""},{"$f":"IF('1. Order'!I1096=\"\",\"\",'1. Order'!I1096)","v":""},{"$f":"IF('1. Order'!J1096=\"\",\"\",'1. Order'!J1096)","v":""},{"$f":"IF('1. Order'!K1096=\"\",\"\",'1. Order'!K1096)","v":""},{"$f":"IF('1. Order'!L1096=\"\",\"\",'1. Order'!L1096)","v":""},{"$f":"IF('1. Order'!M1096=\"\",\"\",'1. Order'!M1096)","v":""},{"$f":"IF('1. Order'!N1096=\"\",\"\",'1. Order'!N1096)","v":""},{"$f":"IF('1. Order'!O1096=\"\",\"\",'1. Order'!O1096)","v":{"$error":"#N/A"}},{"$f":"IF('1. Order'!P1096=\"\",\"\",'1. Order'!P1096)","v":{"$error":"#N/A"}},{"$f":"IF('1. Order'!Q1096=\"\",\"\",'1. Order'!Q1096)","v":""},{"$f":"IF('1. Order'!R1096=\"\",\"\",'1. Order'!R1096)","v":""},{"$f":"IF('1. Order'!S1096=\"\",\"\",'1. Order'!S1096)","v":""},{"$f":"IF('1. Order'!V1096=\"\",\"\",'1. Order'!V1096)","v":""},{"$f":"IF('1. Order'!W1096=\"\",\"\",'1. Order'!W1096)","v":""},{"$f":"IF('1. Order'!X1096=\"\",\"\",'1. Order'!X1096)","v":"EUR"},{"$f":"IF('1. Order'!Y1096=\"\",\"\",'1. Order'!Y1096)","v":""},{"$f":"IF('1. Order'!Z1096=\"\",\"\",'1. Order'!Z1096)","v":""},{"$f":"IF('1. Order'!AA1096=\"\",\"\",'1. Order'!AA1096)","v":""},null,{"$f":"IF('1. Order'!AS1096=\"\",\"\",'1. Order'!AS1096)","v":""},{"$f":"IF('1. Order'!AT1096=\"\",\"\",'1. Order'!AT1096)","v":""},null,null,null,null,null,null,null,{"$f":"IF('1. Order'!AX1096=\"\",\"\",'1. Order'!AX1096)","v":""},{"$f":"IF('1. Order'!AY1096=\"\",\"\",'1. Order'!AY1096)","v":""},{"$f":"IF('1. Order'!AZ1096=\"\",\"\",'1. Order'!AZ1096)","v":""},{"$f":"IF('1. Order'!BA1096=\"\",\"\",'1. Order'!BA1096)","v":""},{"$f":"IF('1. Order'!BC1096=\"\",\"\",'1. Order'!BC1096)","v":""},{"$f":"IF('1. Order'!BD1096=\"\",\"\",'1. Order'!BD1096)","v":6},{"$f":"IF('1. Order'!BE1096=\"\",\"\",'1. Order'!BE1096)","v":"None"},{"$f":"IF('1. Order'!BF1096=\"\",\"\",'1. Order'!BF1096)","v":"Parcel"},{"$f":"IF('1. Order'!BG1096=\"\",\"\",'1. Order'!BG1096)","v":"ZWO"}]
[{"$f":"IF('1. Order'!F1097=\"\",\"\",'1. Order'!F1097)","v":""},{"$f":"IF('1. Order'!G1097=\"\",\"\",'1. Order'!G1097)","v":""},{"$f":"IF('1. Order'!H1097=\"\",\"\",'1. Order'!H1097)","v":""},{"$f":"IF('1. Order'!I1097=\"\",\"\",'1. Order'!I1097)","v":""},{"$f":"IF('1. Order'!J1097=\"\",\"\",'1. Order'!J1097)","v":""},{"$f":"IF('1. Order'!K1097=\"\",\"\",'1. Order'!K1097)","v":""},{"$f":"IF('1. Order'!L1097=\"\",\"\",'1. Order'!L1097)","v":""},{"$f":"IF('1. Order'!M1097=\"\",\"\",'1. Order'!M1097)","v":""},{"$f":"IF('1. Order'!N1097=\"\",\"\",'1. Order'!N1097)","v":""},{"$f":"IF('1. Order'!O1097=\"\",\"\",'1. Order'!O1097)","v":{"$error":"#N/A"}},{"$f":"IF('1. Order'!P1097=\"\",\"\",'1. Order'!P1097)","v":{"$error":"#N/A"}},{"$f":"IF('1. Order'!Q1097=\"\",\"\",'1. Order'!Q1097)","v":""},{"$f":"IF('1. Order'!R1097=\"\",\"\",'1. Order'!R1097)","v":""},{"$f":"IF('1. Order'!S1097=\"\",\"\",'1. Order'!S1097)","v":""},{"$f":"IF('1. Order'!V1097=\"\",\"\",'1. Order'!V1097)","v":""},{"$f":"IF('1. Order'!W1097=\"\",\"\",'1. Order'!W1097)","v":""},{"$f":"IF('1. Order'!X1097=\"\",\"\",'1. Order'!X1097)","v":"EUR"},{"$f":"IF('1. Order'!Y1097=\"\",\"\",'1. Order'!Y1097)","v":""},{"$f":"IF('1. Order'!Z1097=\"\",\"\",'1. Order'!Z1097)","v":""},{"$f":"IF('1. Order'!AA1097=\"\",\"\",'1. Order'!AA1097)","v":""},null,{"$f":"IF('1. Order'!AS1097=\"\",\"\",'1. Order'!AS1097)","v":""},{"$f":"IF('1. Order'!AT1097=\"\",\"\",'1. Order'!AT1097)","v":""},null,null,null,null,null,null,null,{"$f":"IF('1. Order'!AX1097=\"\",\"\",'1. Order'!AX1097)","v":""},{"$f":"IF('1. Order'!AY1097=\"\",\"\",'1. Order'!AY1097)","v":""},{"$f":"IF('1. Order'!AZ1097=\"\",\"\",'1. Order'!AZ1097)","v":""},{"$f":"IF('1. Order'!BA1097=\"\",\"\",'1. Order'!BA1097)","v":""},{"$f":"IF('1. Order'!BC1097=\"\",\"\",'1. Order'!BC1097)","v":""},{"$f":"IF('1. Order'!BD1097=\"\",\"\",'1. Order'!BD1097)","v":6},{"$f":"IF('1. Order'!BE1097=\"\",\"\",'1. Order'!BE1097)","v":"None"},{"$f":"IF('1. Order'!BF1097=\"\",\"\",'1. Order'!BF1097)","v":"Parcel"},{"$f":"IF('1. Order'!BG1097=\"\",\"\",'1. Order'!BG1097)","v":"ZWO"}]
[{"$f":"IF('1. Order'!F1098=\"\",\"\",'1. Order'!F1098)","v":""},{"$f":"IF('1. Order'!G1098=\"\",\"\",'1. Order'!G1098)","v":""},{"$f":"IF('1. Order'!H1098=\"\",\"\",'1. Order'!H1098)","v":""},{"$f":"IF('1. Order'!I1098=\"\",\"\",'1. Order'!I1098)","v":""},{"$f":"IF('1. Order'!J1098=\"\",\"\",'1. Order'!J1098)","v":""},{"$f":"IF('1. Order'!K1098=\"\",\"\",'1. Order'!K1098)","v":""},{"$f":"IF('1. Order'!L1098=\"\",\"\",'1. Order'!L1098)","v":""},{"$f":"IF('1. Order'!M1098=\"\",\"\",'1. Order'!M1098)","v":""},{"$f":"IF('1. Order'!N1098=\"\",\"\",'1. Order'!N1098)","v":""},{"$f":"IF('1. Order'!O1098=\"\",\"\",'1. Order'!O1098)","v":{"$error":"#N/A"}},{"$f":"IF('1. Order'!P1098=\"\",\"\",'1. Order'!P1098)","v":{"$error":"#N/A"}},{"$f":"IF('1. Order'!Q1098=\"\",\"\",'1. Order'!Q1098)","v":""},{"$f":"IF('1. Order'!R1098=\"\",\"\",'1. Order'!R1098)","v":""},{"$f":"IF('1. Order'!S1098=\"\",\"\",'1. Order'!S1098)","v":""},{"$f":"IF('1. Order'!V1098=\"\",\"\",'1. Order'!V1098)","v":""},{"$f":"IF('1. Order'!W1098=\"\",\"\",'1. Order'!W1098)","v":""},{"$f":"IF('1. Order'!X1098=\"\",\"\",'1. Order'!X1098)","v":"EUR"},{"$f":"IF('1. Order'!Y1098=\"\",\"\",'1. Order'!Y1098)","v":""},{"$f":"IF('1. Order'!Z1098=\"\",\"\",'1. Order'!Z1098)","v":""},{"$f":"IF('1. Order'!AA1098=\"\",\"\",'1. Order'!AA1098)","v":""},null,{"$f":"IF('1. Order'!AS1098=\"\",\"\",'1. Order'!AS1098)","v":""},{"$f":"IF('1. Order'!AT1098=\"\",\"\",'1. Order'!AT1098)","v":""},null,null,null,null,null,null,null,{"$f":"IF('1. Order'!AX1098=\"\",\"\",'1. Order'!AX1098)","v":""},{"$f":"IF('1. Order'!AY1098=\"\",\"\",'1. Order'!AY1098)","v":""},{"$f":"IF('1. Order'!AZ1098=\"\",\"\",'1. Order'!AZ1098)","v":""},{"$f":"IF('1. Order'!BA1098=\"\",\"\",'1. Order'!BA1098)","v":""},{"$f":"IF('1. Order'!BC1098=\"\",\"\",'1. Order'!BC1098)","v":""},{"$f":"IF('1. Order'!BD1098=\"\",\"\",'1. Order'!BD1098)","v":6},{"$f":"IF('1. Order'!BE1098=\"\",\"\",'1. Order'!BE1098)","v":"None"},{"$f":"IF('1. Order'!BF1098=\"\",\"\",'1. Order'!BF1098)","v":"Parcel"},{"$f":"IF('1. Order'!BG1098=\"\",\"\",'1. Order'!BG1098)","v":"ZWO"}]
[{"$f":"IF('1. Order'!F1099=\"\",\"\",'1. Order'!F1099)","v":""},{"$f":"IF('1. Order'!G1099=\"\",\"\",'1. Order'!G1099)","v":""},{"$f":"IF('1. Order'!H1099=\"\",\"\",'1. Order'!H1099)","v":""},{"$f":"IF('1. Order'!I1099=\"\",\"\",'1. Order'!I1099)","v":""},{"$f":"IF('1. Order'!J1099=\"\",\"\",'1. Order'!J1099)","v":""},{"$f":"IF('1. Order'!K1099=\"\",\"\",'1. Order'!K1099)","v":""},{"$f":"IF('1. Order'!L1099=\"\",\"\",'1. Order'!L1099)","v":""},{"$f":"IF('1. Order'!M1099=\"\",\"\",'1. Order'!M1099)","v":""},{"$f":"IF('1. Order'!N1099=\"\",\"\",'1. Order'!N1099)","v":""},{"$f":"IF('1. Order'!O1099=\"\",\"\",'1. Order'!O1099)","v":{"$error":"#N/A"}},{"$f":"IF('1. Order'!P1099=\"\",\"\",'1. Order'!P1099)","v":{"$error":"#N/A"}},{"$f":"IF('1. Order'!Q1099=\"\",\"\",'1. Order'!Q1099)","v":""},{"$f":"IF('1. Order'!R1099=\"\",\"\",'1. Order'!R1099)","v":""},{"$f":"IF('1. Order'!S1099=\"\",\"\",'1. Order'!S1099)","v":""},{"$f":"IF('1. Order'!V1099=\"\",\"\",'1. Order'!V1099)","v":""},{"$f":"IF('1. Order'!W1099=\"\",\"\",'1. Order'!W1099)","v":""},{"$f":"IF('1. Order'!X1099=\"\",\"\",'1. Order'!X1099)","v":"EUR"},{"$f":"IF('1. Order'!Y1099=\"\",\"\",'1. Order'!Y1099)","v":""},{"$f":"IF('1. Order'!Z1099=\"\",\"\",'1. Order'!Z1099)","v":""},{"$f":"IF('1. Order'!AA1099=\"\",\"\",'1. Order'!AA1099)","v":""},null,{"$f":"IF('1. Order'!AS1099=\"\",\"\",'1. Order'!AS1099)","v":""},{"$f":"IF('1. Order'!AT1099=\"\",\"\",'1. Order'!AT1099)","v":""},null,null,null,null,null,null,null,{"$f":"IF('1. Order'!AX1099=\"\",\"\",'1. Order'!AX1099)","v":""},{"$f":"IF('1. Order'!AY1099=\"\",\"\",'1. Order'!AY1099)","v":""},{"$f":"IF('1. Order'!AZ1099=\"\",\"\",'1. Order'!AZ1099)","v":""},{"$f":"IF('1. Order'!BA1099=\"\",\"\",'1. Order'!BA1099)","v":""},{"$f":"IF('1. Order'!BC1099=\"\",\"\",'1. Order'!BC1099)","v":""},{"$f":"IF('1. Order'!BD1099=\"\",\"\",'1. Order'!BD1099)","v":6},{"$f":"IF('1. Order'!BE1099=\"\",\"\",'1. Order'!BE1099)","v":"None"},{"$f":"IF('1. Order'!BF1099=\"\",\"\",'1. Order'!BF1099)","v":"Parcel"},{"$f":"IF('1. Order'!BG1099=\"\",\"\",'1. Order'!BG1099)","v":"ZWO"}]
[{"$f":"IF('1. Order'!F1100=\"\",\"\",'1. Order'!F1100)","v":""},{"$f":"IF('1. Order'!G1100=\"\",\"\",'1. Order'!G1100)","v":""},{"$f":"IF('1. Order'!H1100=\"\",\"\",'1. Order'!H1100)","v":""},{"$f":"IF('1. Order'!I1100=\"\",\"\",'1. Order'!I1100)","v":""},{"$f":"IF('1. Order'!J1100=\"\",\"\",'1. Order'!J1100)","v":""},{"$f":"IF('1. Order'!K1100=\"\",\"\",'1. Order'!K1100)","v":""},{"$f":"IF('1. Order'!L1100=\"\",\"\",'1. Order'!L1100)","v":""},{"$f":"IF('1. Order'!M1100=\"\",\"\",'1. Order'!M1100)","v":""},{"$f":"IF('1. Order'!N1100=\"\",\"\",'1. Order'!N1100)","v":""},{"$f":"IF('1. Order'!O1100=\"\",\"\",'1. Order'!O1100)","v":{"$error":"#N/A"}},{"$f":"IF('1. Order'!P1100=\"\",\"\",'1. Order'!P1100)","v":{"$error":"#N/A"}},{"$f":"IF('1. Order'!Q1100=\"\",\"\",'1. Order'!Q1100)","v":""},{"$f":"IF('1. Order'!R1100=\"\",\"\",'1. Order'!R1100)","v":""},{"$f":"IF('1. Order'!S1100=\"\",\"\",'1. Order'!S1100)","v":""},{"$f":"IF('1. Order'!V1100=\"\",\"\",'1. Order'!V1100)","v":""},{"$f":"IF('1. Order'!W1100=\"\",\"\",'1. Order'!W1100)","v":""},{"$f":"IF('1. Order'!X1100=\"\",\"\",'1. Order'!X1100)","v":"EUR"},{"$f":"IF('1. Order'!Y1100=\"\",\"\",'1. Order'!Y1100)","v":""},{"$f":"IF('1. Order'!Z1100=\"\",\"\",'1. Order'!Z1100)","v":""},{"$f":"IF('1. Order'!AA1100=\"\",\"\",'1. Order'!AA1100)","v":""},null,{"$f":"IF('1. Order'!AS1100=\"\",\"\",'1. Order'!AS1100)","v":""},{"$f":"IF('1. Order'!AT1100=\"\",\"\",'1. Order'!AT1100)","v":""},null,null,null,null,null,null,null,{"$f":"IF('1. Order'!AX1100=\"\",\"\",'1. Order'!AX1100)","v":""},{"$f":"IF('1. Order'!AY1100=\"\",\"\",'1. Order'!AY1100)","v":""},{"$f":"IF('1. Order'!AZ1100=\"\",\"\",'1. Order'!AZ1100)","v":""},{"$f":"IF('1. Order'!BA1100=\"\",\"\",'1. Order'!BA1100)","v":""},{"$f":"IF('1. Order'!BC1100=\"\",\"\",'1. Order'!BC1100)","v":""},{"$f":"IF('1. Order'!BD1100=\"\",\"\",'1. Order'!BD1100)","v":6},{"$f":"IF('1. Order'!BE1100=\"\",\"\",'1. Order'!BE1100)","v":"None"},{"$f":"IF('1. Order'!BF1100=\"\",\"\",'1. Order'!BF1100)","v":"Parcel"},{"$f":"IF('1. Order'!BG1100=\"\",\"\",'1. Order'!BG1100)","v":"ZWO"}]
[{"$f":"IF('1. Order'!F1101=\"\",\"\",'1. Order'!F1101)","v":""},{"$f":"IF('1. Order'!G1101=\"\",\"\",'1. Order'!G1101)","v":""},{"$f":"IF('1. Order'!H1101=\"\",\"\",'1. Order'!H1101)","v":""},{"$f":"IF('1. Order'!I1101=\"\",\"\",'1. Order'!I1101)","v":""},{"$f":"IF('1. Order'!J1101=\"\",\"\",'1. Order'!J1101)","v":""},{"$f":"IF('1. Order'!K1101=\"\",\"\",'1. Order'!K1101)","v":""},{"$f":"IF('1. Order'!L1101=\"\",\"\",'1. Order'!L1101)","v":""},{"$f":"IF('1. Order'!M1101=\"\",\"\",'1. Order'!M1101)","v":""},{"$f":"IF('1. Order'!N1101=\"\",\"\",'1. Order'!N1101)","v":""},{"$f":"IF('1. Order'!O1101=\"\",\"\",'1. Order'!O1101)","v":{"$error":"#N/A"}},{"$f":"IF('1. Order'!P1101=\"\",\"\",'1. Order'!P1101)","v":{"$error":"#N/A"}},{"$f":"IF('1. Order'!Q1101=\"\",\"\",'1. Order'!Q1101)","v":""},{"$f":"IF('1. Order'!R1101=\"\",\"\",'1. Order'!R1101)","v":""},{"$f":"IF('1. Order'!S1101=\"\",\"\",'1. Order'!S1101)","v":""},{"$f":"IF('1. Order'!V1101=\"\",\"\",'1. Order'!V1101)","v":""},{"$f":"IF('1. Order'!W1101=\"\",\"\",'1. Order'!W1101)","v":""},{"$f":"IF('1. Order'!X1101=\"\",\"\",'1. Order'!X1101)","v":"EUR"},{"$f":"IF('1. Order'!Y1101=\"\",\"\",'1. Order'!Y1101)","v":""},{"$f":"IF('1. Order'!Z1101=\"\",\"\",'1. Order'!Z1101)","v":""},{"$f":"IF('1. Order'!AA1101=\"\",\"\",'1. Order'!AA1101)","v":""},null,{"$f":"IF('1. Order'!AS1101=\"\",\"\",'1. Order'!AS1101)","v":""},{"$f":"IF('1. Order'!AT1101=\"\",\"\",'1. Order'!AT1101)","v":""},null,null,null,null,null,null,null,{"$f":"IF('1. Order'!AX1101=\"\",\"\",'1. Order'!AX1101)","v":""},{"$f":"IF('1. Order'!AY1101=\"\",\"\",'1. Order'!AY1101)","v":""},{"$f":"IF('1. Order'!AZ1101=\"\",\"\",'1. Order'!AZ1101)","v":""},{"$f":"IF('1. Order'!BA1101=\"\",\"\",'1. Order'!BA1101)","v":""},{"$f":"IF('1. Order'!BC1101=\"\",\"\",'1. Order'!BC1101)","v":""},{"$f":"IF('1. Order'!BD1101=\"\",\"\",'1. Order'!BD1101)","v":6},{"$f":"IF('1. Order'!BE1101=\"\",\"\",'1. Order'!BE1101)","v":"None"},{"$f":"IF('1. Order'!BF1101=\"\",\"\",'1. Order'!BF1101)","v":"Parcel"},{"$f":"IF('1. Order'!BG1101=\"\",\"\",'1. Order'!BG1101)","v":"ZWO"}]
[{"$f":"IF('1. Order'!F1102=\"\",\"\",'1. Order'!F1102)","v":""},{"$f":"IF('1. Order'!G1102=\"\",\"\",'1. Order'!G1102)","v":""},{"$f":"IF('1. Order'!H1102=\"\",\"\",'1. Order'!H1102)","v":""},{"$f":"IF('1. Order'!I1102=\"\",\"\",'1. Order'!I1102)","v":""},{"$f":"IF('1. Order'!J1102=\"\",\"\",'1. Order'!J1102)","v":""},{"$f":"IF('1. Order'!K1102=\"\",\"\",'1. Order'!K1102)","v":""},{"$f":"IF('1. Order'!L1102=\"\",\"\",'1. Order'!L1102)","v":""},{"$f":"IF('1. Order'!M1102=\"\",\"\",'1. Order'!M1102)","v":""},{"$f":"IF('1. Order'!N1102=\"\",\"\",'1. Order'!N1102)","v":""},{"$f":"IF('1. Order'!O1102=\"\",\"\",'1. Order'!O1102)","v":{"$error":"#N/A"}},{"$f":"IF('1. Order'!P1102=\"\",\"\",'1. Order'!P1102)","v":{"$error":"#N/A"}},{"$f":"IF('1. Order'!Q1102=\"\",\"\",'1. Order'!Q1102)","v":""},{"$f":"IF('1. Order'!R1102=\"\",\"\",'1. Order'!R1102)","v":""},{"$f":"IF('1. Order'!S1102=\"\",\"\",'1. Order'!S1102)","v":""},{"$f":"IF('1. Order'!V1102=\"\",\"\",'1. Order'!V1102)","v":""},{"$f":"IF('1. Order'!W1102=\"\",\"\",'1. Order'!W1102)","v":""},{"$f":"IF('1. Order'!X1102=\"\",\"\",'1. Order'!X1102)","v":"EUR"},{"$f":"IF('1. Order'!Y1102=\"\",\"\",'1. Order'!Y1102)","v":""},{"$f":"IF('1. Order'!Z1102=\"\",\"\",'1. Order'!Z1102)","v":""},{"$f":"IF('1. Order'!AA1102=\"\",\"\",'1. Order'!AA1102)","v":""},null,{"$f":"IF('1. Order'!AS1102=\"\",\"\",'1. Order'!AS1102)","v":""},{"$f":"IF('1. Order'!AT1102=\"\",\"\",'1. Order'!AT1102)","v":""},null,null,null,null,null,null,null,{"$f":"IF('1. Order'!AX1102=\"\",\"\",'1. Order'!AX1102)","v":""},{"$f":"IF('1. Order'!AY1102=\"\",\"\",'1. Order'!AY1102)","v":""},{"$f":"IF('1. Order'!AZ1102=\"\",\"\",'1. Order'!AZ1102)","v":""},{"$f":"IF('1. Order'!BA1102=\"\",\"\",'1. Order'!BA1102)","v":""},{"$f":"IF('1. Order'!BC1102=\"\",\"\",'1. Order'!BC1102)","v":""},{"$f":"IF('1. Order'!BD1102=\"\",\"\",'1. Order'!BD1102)","v":6},{"$f":"IF('1. Order'!BE1102=\"\",\"\",'1. Order'!BE1102)","v":"None"},{"$f":"IF('1. Order'!BF1102=\"\",\"\",'1. Order'!BF1102)","v":"Parcel"},{"$f":"IF('1. Order'!BG1102=\"\",\"\",'1. Order'!BG1102)","v":"ZWO"}]
[{"$f":"IF('1. Order'!F1103=\"\",\"\",'1. Order'!F1103)","v":""},{"$f":"IF('1. Order'!G1103=\"\",\"\",'1. Order'!G1103)","v":""},{"$f":"IF('1. Order'!H1103=\"\",\"\",'1. Order'!H1103)","v":""},{"$f":"IF('1. Order'!I1103=\"\",\"\",'1. Order'!I1103)","v":""},{"$f":"IF('1. Order'!J1103=\"\",\"\",'1. Order'!J1103)","v":""},{"$f":"IF('1. Order'!K1103=\"\",\"\",'1. Order'!K1103)","v":""},{"$f":"IF('1. Order'!L1103=\"\",\"\",'1. Order'!L1103)","v":""},{"$f":"IF('1. Order'!M1103=\"\",\"\",'1. Order'!M1103)","v":""},{"$f":"IF('1. Order'!N1103=\"\",\"\",'1. Order'!N1103)","v":""},{"$f":"IF('1. Order'!O1103=\"\",\"\",'1. Order'!O1103)","v":{"$error":"#N/A"}},{"$f":"IF('1. Order'!P1103=\"\",\"\",'1. Order'!P1103)","v":{"$error":"#N/A"}},{"$f":"IF('1. Order'!Q1103=\"\",\"\",'1. Order'!Q1103)","v":""},{"$f":"IF('1. Order'!R1103=\"\",\"\",'1. Order'!R1103)","v":""},{"$f":"IF('1. Order'!S1103=\"\",\"\",'1. Order'!S1103)","v":""},{"$f":"IF('1. Order'!V1103=\"\",\"\",'1. Order'!V1103)","v":""},{"$f":"IF('1. Order'!W1103=\"\",\"\",'1. Order'!W1103)","v":""},{"$f":"IF('1. Order'!X1103=\"\",\"\",'1. Order'!X1103)","v":"EUR"},{"$f":"IF('1. Order'!Y1103=\"\",\"\",'1. Order'!Y1103)","v":""},{"$f":"IF('1. Order'!Z1103=\"\",\"\",'1. Order'!Z1103)","v":""},{"$f":"IF('1. Order'!AA1103=\"\",\"\",'1. Order'!AA1103)","v":""},null,{"$f":"IF('1. Order'!AS1103=\"\",\"\",'1. Order'!AS1103)","v":""},{"$f":"IF('1. Order'!AT1103=\"\",\"\",'1. Order'!AT1103)","v":""},null,null,null,null,null,null,null,{"$f":"IF('1. Order'!AX1103=\"\",\"\",'1. Order'!AX1103)","v":""},{"$f":"IF('1. Order'!AY1103=\"\",\"\",'1. Order'!AY1103)","v":""},{"$f":"IF('1. Order'!AZ1103=\"\",\"\",'1. Order'!AZ1103)","v":""},{"$f":"IF('1. Order'!BA1103=\"\",\"\",'1. Order'!BA1103)","v":""},{"$f":"IF('1. Order'!BC1103=\"\",\"\",'1. Order'!BC1103)","v":""},{"$f":"IF('1. Order'!BD1103=\"\",\"\",'1. Order'!BD1103)","v":6},{"$f":"IF('1. Order'!BE1103=\"\",\"\",'1. Order'!BE1103)","v":"None"},{"$f":"IF('1. Order'!BF1103=\"\",\"\",'1. Order'!BF1103)","v":"Parcel"},{"$f":"IF('1. Order'!BG1103=\"\",\"\",'1. Order'!BG1103)","v":"ZWO"}]
[{"$f":"IF('1. Order'!F1104=\"\",\"\",'1. Order'!F1104)","v":""},{"$f":"IF('1. Order'!G1104=\"\",\"\",'1. Order'!G1104)","v":""},{"$f":"IF('1. Order'!H1104=\"\",\"\",'1. Order'!H1104)","v":""},{"$f":"IF('1. Order'!I1104=\"\",\"\",'1. Order'!I1104)","v":""},{"$f":"IF('1. Order'!J1104=\"\",\"\",'1. Order'!J1104)","v":""},{"$f":"IF('1. Order'!K1104=\"\",\"\",'1. Order'!K1104)","v":""},{"$f":"IF('1. Order'!L1104=\"\",\"\",'1. Order'!L1104)","v":""},{"$f":"IF('1. Order'!M1104=\"\",\"\",'1. Order'!M1104)","v":""},{"$f":"IF('1. Order'!N1104=\"\",\"\",'1. Order'!N1104)","v":""},{"$f":"IF('1. Order'!O1104=\"\",\"\",'1. Order'!O1104)","v":{"$error":"#N/A"}},{"$f":"IF('1. Order'!P1104=\"\",\"\",'1. Order'!P1104)","v":{"$error":"#N/A"}},{"$f":"IF('1. Order'!Q1104=\"\",\"\",'1. Order'!Q1104)","v":""},{"$f":"IF('1. Order'!R1104=\"\",\"\",'1. Order'!R1104)","v":""},{"$f":"IF('1. Order'!S1104=\"\",\"\",'1. Order'!S1104)","v":""},{"$f":"IF('1. Order'!V1104=\"\",\"\",'1. Order'!V1104)","v":""},{"$f":"IF('1. Order'!W1104=\"\",\"\",'1. Order'!W1104)","v":""},{"$f":"IF('1. Order'!X1104=\"\",\"\",'1. Order'!X1104)","v":"EUR"},{"$f":"IF('1. Order'!Y1104=\"\",\"\",'1. Order'!Y1104)","v":""},{"$f":"IF('1. Order'!Z1104=\"\",\"\",'1. Order'!Z1104)","v":""},{"$f":"IF('1. Order'!AA1104=\"\",\"\",'1. Order'!AA1104)","v":""},null,{"$f":"IF('1. Order'!AS1104=\"\",\"\",'1. Order'!AS1104)","v":""},{"$f":"IF('1. Order'!AT1104=\"\",\"\",'1. Order'!AT1104)","v":""},null,null,null,null,null,null,null,{"$f":"IF('1. Order'!AX1104=\"\",\"\",'1. Order'!AX1104)","v":""},{"$f":"IF('1. Order'!AY1104=\"\",\"\",'1. Order'!AY1104)","v":""},{"$f":"IF('1. Order'!AZ1104=\"\",\"\",'1. Order'!AZ1104)","v":""},{"$f":"IF('1. Order'!BA1104=\"\",\"\",'1. Order'!BA1104)","v":""},{"$f":"IF('1. Order'!BC1104=\"\",\"\",'1. Order'!BC1104)","v":""},{"$f":"IF('1. Order'!BD1104=\"\",\"\",'1. Order'!BD1104)","v":6},{"$f":"IF('1. Order'!BE1104=\"\",\"\",'1. Order'!BE1104)","v":"None"},{"$f":"IF('1. Order'!BF1104=\"\",\"\",'1. Order'!BF1104)","v":"Parcel"},{"$f":"IF('1. Order'!BG1104=\"\",\"\",'1. Order'!BG1104)","v":"ZWO"}]
[{"$f":"IF('1. Order'!F1105=\"\",\"\",'1. Order'!F1105)","v":""},{"$f":"IF('1. Order'!G1105=\"\",\"\",'1. Order'!G1105)","v":""},{"$f":"IF('1. Order'!H1105=\"\",\"\",'1. Order'!H1105)","v":""},{"$f":"IF('1. Order'!I1105=\"\",\"\",'1. Order'!I1105)","v":""},{"$f":"IF('1. Order'!J1105=\"\",\"\",'1. Order'!J1105)","v":""},{"$f":"IF('1. Order'!K1105=\"\",\"\",'1. Order'!K1105)","v":""},{"$f":"IF('1. Order'!L1105=\"\",\"\",'1. Order'!L1105)","v":""},{"$f":"IF('1. Order'!M1105=\"\",\"\",'1. Order'!M1105)","v":""},{"$f":"IF('1. Order'!N1105=\"\",\"\",'1. Order'!N1105)","v":""},{"$f":"IF('1. Order'!O1105=\"\",\"\",'1. Order'!O1105)","v":{"$error":"#N/A"}},{"$f":"IF('1. Order'!P1105=\"\",\"\",'1. Order'!P1105)","v":{"$error":"#N/A"}},{"$f":"IF('1. Order'!Q1105=\"\",\"\",'1. Order'!Q1105)","v":""},{"$f":"IF('1. Order'!R1105=\"\",\"\",'1. Order'!R1105)","v":""},{"$f":"IF('1. Order'!S1105=\"\",\"\",'1. Order'!S1105)","v":""},{"$f":"IF('1. Order'!V1105=\"\",\"\",'1. Order'!V1105)","v":""},{"$f":"IF('1. Order'!W1105=\"\",\"\",'1. Order'!W1105)","v":""},{"$f":"IF('1. Order'!X1105=\"\",\"\",'1. Order'!X1105)","v":"EUR"},{"$f":"IF('1. Order'!Y1105=\"\",\"\",'1. Order'!Y1105)","v":""},{"$f":"IF('1. Order'!Z1105=\"\",\"\",'1. Order'!Z1105)","v":""},{"$f":"IF('1. Order'!AA1105=\"\",\"\",'1. Order'!AA1105)","v":""},null,{"$f":"IF('1. Order'!AS1105=\"\",\"\",'1. Order'!AS1105)","v":""},{"$f":"IF('1. Order'!AT1105=\"\",\"\",'1. Order'!AT1105)","v":""},null,null,null,null,null,null,null,{"$f":"IF('1. Order'!AX1105=\"\",\"\",'1. Order'!AX1105)","v":""},{"$f":"IF('1. Order'!AY1105=\"\",\"\",'1. Order'!AY1105)","v":""},{"$f":"IF('1. Order'!AZ1105=\"\",\"\",'1. Order'!AZ1105)","v":""},{"$f":"IF('1. Order'!BA1105=\"\",\"\",'1. Order'!BA1105)","v":""},{"$f":"IF('1. Order'!BC1105=\"\",\"\",'1. Order'!BC1105)","v":""},{"$f":"IF('1. Order'!BD1105=\"\",\"\",'1. Order'!BD1105)","v":6},{"$f":"IF('1. Order'!BE1105=\"\",\"\",'1. Order'!BE1105)","v":"None"},{"$f":"IF('1. Order'!BF1105=\"\",\"\",'1. Order'!BF1105)","v":"Parcel"},{"$f":"IF('1. Order'!BG1105=\"\",\"\",'1. Order'!BG1105)","v":"ZWO"}]
[{"$f":"IF('1. Order'!F1106=\"\",\"\",'1. Order'!F1106)","v":""},{"$f":"IF('1. Order'!G1106=\"\",\"\",'1. Order'!G1106)","v":""},{"$f":"IF('1. Order'!H1106=\"\",\"\",'1. Order'!H1106)","v":""},{"$f":"IF('1. Order'!I1106=\"\",\"\",'1. Order'!I1106)","v":""},{"$f":"IF('1. Order'!J1106=\"\",\"\",'1. Order'!J1106)","v":""},{"$f":"IF('1. Order'!K1106=\"\",\"\",'1. Order'!K1106)","v":""},{"$f":"IF('1. Order'!L1106=\"\",\"\",'1. Order'!L1106)","v":""},{"$f":"IF('1. Order'!M1106=\"\",\"\",'1. Order'!M1106)","v":""},{"$f":"IF('1. Order'!N1106=\"\",\"\",'1. Order'!N1106)","v":""},{"$f":"IF('1. Order'!O1106=\"\",\"\",'1. Order'!O1106)","v":{"$error":"#N/A"}},{"$f":"IF('1. Order'!P1106=\"\",\"\",'1. Order'!P1106)","v":{"$error":"#N/A"}},{"$f":"IF('1. Order'!Q1106=\"\",\"\",'1. Order'!Q1106)","v":""},{"$f":"IF('1. Order'!R1106=\"\",\"\",'1. Order'!R1106)","v":""},{"$f":"IF('1. Order'!S1106=\"\",\"\",'1. Order'!S1106)","v":""},{"$f":"IF('1. Order'!V1106=\"\",\"\",'1. Order'!V1106)","v":""},{"$f":"IF('1. Order'!W1106=\"\",\"\",'1. Order'!W1106)","v":""},{"$f":"IF('1. Order'!X1106=\"\",\"\",'1. Order'!X1106)","v":"EUR"},{"$f":"IF('1. Order'!Y1106=\"\",\"\",'1. Order'!Y1106)","v":""},{"$f":"IF('1. Order'!Z1106=\"\",\"\",'1. Order'!Z1106)","v":""},{"$f":"IF('1. Order'!AA1106=\"\",\"\",'1. Order'!AA1106)","v":""},null,{"$f":"IF('1. Order'!AS1106=\"\",\"\",'1. Order'!AS1106)","v":""},{"$f":"IF('1. Order'!AT1106=\"\",\"\",'1. Order'!AT1106)","v":""},null,null,null,null,null,null,null,{"$f":"IF('1. Order'!AX1106=\"\",\"\",'1. Order'!AX1106)","v":""},{"$f":"IF('1. Order'!AY1106=\"\",\"\",'1. Order'!AY1106)","v":""},{"$f":"IF('1. Order'!AZ1106=\"\",\"\",'1. Order'!AZ1106)","v":""},{"$f":"IF('1. Order'!BA1106=\"\",\"\",'1. Order'!BA1106)","v":""},{"$f":"IF('1. Order'!BC1106=\"\",\"\",'1. Order'!BC1106)","v":""},{"$f":"IF('1. Order'!BD1106=\"\",\"\",'1. Order'!BD1106)","v":6},{"$f":"IF('1. Order'!BE1106=\"\",\"\",'1. Order'!BE1106)","v":"None"},{"$f":"IF('1. Order'!BF1106=\"\",\"\",'1. Order'!BF1106)","v":"Parcel"},{"$f":"IF('1. Order'!BG1106=\"\",\"\",'1. Order'!BG1106)","v":"ZWO"}]
[{"$f":"IF('1. Order'!F1107=\"\",\"\",'1. Order'!F1107)","v":""},{"$f":"IF('1. Order'!G1107=\"\",\"\",'1. Order'!G1107)","v":""},{"$f":"IF('1. Order'!H1107=\"\",\"\",'1. Order'!H1107)","v":""},{"$f":"IF('1. Order'!I1107=\"\",\"\",'1. Order'!I1107)","v":""},{"$f":"IF('1. Order'!J1107=\"\",\"\",'1. Order'!J1107)","v":""},{"$f":"IF('1. Order'!K1107=\"\",\"\",'1. Order'!K1107)","v":""},{"$f":"IF('1. Order'!L1107=\"\",\"\",'1. Order'!L1107)","v":""},{"$f":"IF('1. Order'!M1107=\"\",\"\",'1. Order'!M1107)","v":""},{"$f":"IF('1. Order'!N1107=\"\",\"\",'1. Order'!N1107)","v":""},{"$f":"IF('1. Order'!O1107=\"\",\"\",'1. Order'!O1107)","v":{"$error":"#N/A"}},{"$f":"IF('1. Order'!P1107=\"\",\"\",'1. Order'!P1107)","v":{"$error":"#N/A"}},{"$f":"IF('1. Order'!Q1107=\"\",\"\",'1. Order'!Q1107)","v":""},{"$f":"IF('1. Order'!R1107=\"\",\"\",'1. Order'!R1107)","v":""},{"$f":"IF('1. Order'!S1107=\"\",\"\",'1. Order'!S1107)","v":""},{"$f":"IF('1. Order'!V1107=\"\",\"\",'1. Order'!V1107)","v":""},{"$f":"IF('1. Order'!W1107=\"\",\"\",'1. Order'!W1107)","v":""},{"$f":"IF('1. Order'!X1107=\"\",\"\",'1. Order'!X1107)","v":"EUR"},{"$f":"IF('1. Order'!Y1107=\"\",\"\",'1. Order'!Y1107)","v":""},{"$f":"IF('1. Order'!Z1107=\"\",\"\",'1. Order'!Z1107)","v":""},{"$f":"IF('1. Order'!AA1107=\"\",\"\",'1. Order'!AA1107)","v":""},null,{"$f":"IF('1. Order'!AS1107=\"\",\"\",'1. Order'!AS1107)","v":""},{"$f":"IF('1. Order'!AT1107=\"\",\"\",'1. Order'!AT1107)","v":""},null,null,null,null,null,null,null,{"$f":"IF('1. Order'!AX1107=\"\",\"\",'1. Order'!AX1107)","v":""},{"$f":"IF('1. Order'!AY1107=\"\",\"\",'1. Order'!AY1107)","v":""},{"$f":"IF('1. Order'!AZ1107=\"\",\"\",'1. Order'!AZ1107)","v":""},{"$f":"IF('1. Order'!BA1107=\"\",\"\",'1. Order'!BA1107)","v":""},{"$f":"IF('1. Order'!BC1107=\"\",\"\",'1. Order'!BC1107)","v":""},{"$f":"IF('1. Order'!BD1107=\"\",\"\",'1. Order'!BD1107)","v":6},{"$f":"IF('1. Order'!BE1107=\"\",\"\",'1. Order'!BE1107)","v":"None"},{"$f":"IF('1. Order'!BF1107=\"\",\"\",'1. Order'!BF1107)","v":"Parcel"},{"$f":"IF('1. Order'!BG1107=\"\",\"\",'1. Order'!BG1107)","v":"ZWO"}]
[{"$f":"IF('1. Order'!F1108=\"\",\"\",'1. Order'!F1108)","v":""},{"$f":"IF('1. Order'!G1108=\"\",\"\",'1. Order'!G1108)","v":""},{"$f":"IF('1. Order'!H1108=\"\",\"\",'1. Order'!H1108)","v":""},{"$f":"IF('1. Order'!I1108=\"\",\"\",'1. Order'!I1108)","v":""},{"$f":"IF('1. Order'!J1108=\"\",\"\",'1. Order'!J1108)","v":""},{"$f":"IF('1. Order'!K1108=\"\",\"\",'1. Order'!K1108)","v":""},{"$f":"IF('1. Order'!L1108=\"\",\"\",'1. Order'!L1108)","v":""},{"$f":"IF('1. Order'!M1108=\"\",\"\",'1. Order'!M1108)","v":""},{"$f":"IF('1. Order'!N1108=\"\",\"\",'1. Order'!N1108)","v":""},{"$f":"IF('1. Order'!O1108=\"\",\"\",'1. Order'!O1108)","v":{"$error":"#N/A"}},{"$f":"IF('1. Order'!P1108=\"\",\"\",'1. Order'!P1108)","v":{"$error":"#N/A"}},{"$f":"IF('1. Order'!Q1108=\"\",\"\",'1. Order'!Q1108)","v":""},{"$f":"IF('1. Order'!R1108=\"\",\"\",'1. Order'!R1108)","v":""},{"$f":"IF('1. Order'!S1108=\"\",\"\",'1. Order'!S1108)","v":""},{"$f":"IF('1. Order'!V1108=\"\",\"\",'1. Order'!V1108)","v":""},{"$f":"IF('1. Order'!W1108=\"\",\"\",'1. Order'!W1108)","v":""},{"$f":"IF('1. Order'!X1108=\"\",\"\",'1. Order'!X1108)","v":"EUR"},{"$f":"IF('1. Order'!Y1108=\"\",\"\",'1. Order'!Y1108)","v":""},{"$f":"IF('1. Order'!Z1108=\"\",\"\",'1. Order'!Z1108)","v":""},{"$f":"IF('1. Order'!AA1108=\"\",\"\",'1. Order'!AA1108)","v":""},null,{"$f":"IF('1. Order'!AS1108=\"\",\"\",'1. Order'!AS1108)","v":""},{"$f":"IF('1. Order'!AT1108=\"\",\"\",'1. Order'!AT1108)","v":""},null,null,null,null,null,null,null,{"$f":"IF('1. Order'!AX1108=\"\",\"\",'1. Order'!AX1108)","v":""},{"$f":"IF('1. Order'!AY1108=\"\",\"\",'1. Order'!AY1108)","v":""},{"$f":"IF('1. Order'!AZ1108=\"\",\"\",'1. Order'!AZ1108)","v":""},{"$f":"IF('1. Order'!BA1108=\"\",\"\",'1. Order'!BA1108)","v":""},{"$f":"IF('1. Order'!BC1108=\"\",\"\",'1. Order'!BC1108)","v":""},{"$f":"IF('1. Order'!BD1108=\"\",\"\",'1. Order'!BD1108)","v":6},{"$f":"IF('1. Order'!BE1108=\"\",\"\",'1. Order'!BE1108)","v":"None"},{"$f":"IF('1. Order'!BF1108=\"\",\"\",'1. Order'!BF1108)","v":"Parcel"},{"$f":"IF('1. Order'!BG1108=\"\",\"\",'1. Order'!BG1108)","v":"ZWO"}]
[{"$f":"IF('1. Order'!F1109=\"\",\"\",'1. Order'!F1109)","v":""},{"$f":"IF('1. Order'!G1109=\"\",\"\",'1. Order'!G1109)","v":""},{"$f":"IF('1. Order'!H1109=\"\",\"\",'1. Order'!H1109)","v":""},{"$f":"IF('1. Order'!I1109=\"\",\"\",'1. Order'!I1109)","v":""},{"$f":"IF('1. Order'!J1109=\"\",\"\",'1. Order'!J1109)","v":""},{"$f":"IF('1. Order'!K1109=\"\",\"\",'1. Order'!K1109)","v":""},{"$f":"IF('1. Order'!L1109=\"\",\"\",'1. Order'!L1109)","v":""},{"$f":"IF('1. Order'!M1109=\"\",\"\",'1. Order'!M1109)","v":""},{"$f":"IF('1. Order'!N1109=\"\",\"\",'1. Order'!N1109)","v":""},{"$f":"IF('1. Order'!O1109=\"\",\"\",'1. Order'!O1109)","v":{"$error":"#N/A"}},{"$f":"IF('1. Order'!P1109=\"\",\"\",'1. Order'!P1109)","v":{"$error":"#N/A"}},{"$f":"IF('1. Order'!Q1109=\"\",\"\",'1. Order'!Q1109)","v":""},{"$f":"IF('1. Order'!R1109=\"\",\"\",'1. Order'!R1109)","v":""},{"$f":"IF('1. Order'!S1109=\"\",\"\",'1. Order'!S1109)","v":""},{"$f":"IF('1. Order'!V1109=\"\",\"\",'1. Order'!V1109)","v":""},{"$f":"IF('1. Order'!W1109=\"\",\"\",'1. Order'!W1109)","v":""},{"$f":"IF('1. Order'!X1109=\"\",\"\",'1. Order'!X1109)","v":"EUR"},{"$f":"IF('1. Order'!Y1109=\"\",\"\",'1. Order'!Y1109)","v":""},{"$f":"IF('1. Order'!Z1109=\"\",\"\",'1. Order'!Z1109)","v":""},{"$f":"IF('1. Order'!AA1109=\"\",\"\",'1. Order'!AA1109)","v":""},null,{"$f":"IF('1. Order'!AS1109=\"\",\"\",'1. Order'!AS1109)","v":""},{"$f":"IF('1. Order'!AT1109=\"\",\"\",'1. Order'!AT1109)","v":""},null,null,null,null,null,null,null,{"$f":"IF('1. Order'!AX1109=\"\",\"\",'1. Order'!AX1109)","v":""},{"$f":"IF('1. Order'!AY1109=\"\",\"\",'1. Order'!AY1109)","v":""},{"$f":"IF('1. Order'!AZ1109=\"\",\"\",'1. Order'!AZ1109)","v":""},{"$f":"IF('1. Order'!BA1109=\"\",\"\",'1. Order'!BA1109)","v":""},{"$f":"IF('1. Order'!BC1109=\"\",\"\",'1. Order'!BC1109)","v":""},{"$f":"IF('1. Order'!BD1109=\"\",\"\",'1. Order'!BD1109)","v":6},{"$f":"IF('1. Order'!BE1109=\"\",\"\",'1. Order'!BE1109)","v":"None"},{"$f":"IF('1. Order'!BF1109=\"\",\"\",'1. Order'!BF1109)","v":"Parcel"},{"$f":"IF('1. Order'!BG1109=\"\",\"\",'1. Order'!BG1109)","v":"ZWO"}]
[{"$f":"IF('1. Order'!F1110=\"\",\"\",'1. Order'!F1110)","v":""},{"$f":"IF('1. Order'!G1110=\"\",\"\",'1. Order'!G1110)","v":""},{"$f":"IF('1. Order'!H1110=\"\",\"\",'1. Order'!H1110)","v":""},{"$f":"IF('1. Order'!I1110=\"\",\"\",'1. Order'!I1110)","v":""},{"$f":"IF('1. Order'!J1110=\"\",\"\",'1. Order'!J1110)","v":""},{"$f":"IF('1. Order'!K1110=\"\",\"\",'1. Order'!K1110)","v":""},{"$f":"IF('1. Order'!L1110=\"\",\"\",'1. Order'!L1110)","v":""},{"$f":"IF('1. Order'!M1110=\"\",\"\",'1. Order'!M1110)","v":""},{"$f":"IF('1. Order'!N1110=\"\",\"\",'1. Order'!N1110)","v":""},{"$f":"IF('1. Order'!O1110=\"\",\"\",'1. Order'!O1110)","v":{"$error":"#N/A"}},{"$f":"IF('1. Order'!P1110=\"\",\"\",'1. Order'!P1110)","v":{"$error":"#N/A"}},{"$f":"IF('1. Order'!Q1110=\"\",\"\",'1. Order'!Q1110)","v":""},{"$f":"IF('1. Order'!R1110=\"\",\"\",'1. Order'!R1110)","v":""},{"$f":"IF('1. Order'!S1110=\"\",\"\",'1. Order'!S1110)","v":""},{"$f":"IF('1. Order'!V1110=\"\",\"\",'1. Order'!V1110)","v":""},{"$f":"IF('1. Order'!W1110=\"\",\"\",'1. Order'!W1110)","v":""},{"$f":"IF('1. Order'!X1110=\"\",\"\",'1. Order'!X1110)","v":"EUR"},{"$f":"IF('1. Order'!Y1110=\"\",\"\",'1. Order'!Y1110)","v":""},{"$f":"IF('1. Order'!Z1110=\"\",\"\",'1. Order'!Z1110)","v":""},{"$f":"IF('1. Order'!AA1110=\"\",\"\",'1. Order'!AA1110)","v":""},null,{"$f":"IF('1. Order'!AS1110=\"\",\"\",'1. Order'!AS1110)","v":""},{"$f":"IF('1. Order'!AT1110=\"\",\"\",'1. Order'!AT1110)","v":""},null,null,null,null,null,null,null,{"$f":"IF('1. Order'!AX1110=\"\",\"\",'1. Order'!AX1110)","v":""},{"$f":"IF('1. Order'!AY1110=\"\",\"\",'1. Order'!AY1110)","v":""},{"$f":"IF('1. Order'!AZ1110=\"\",\"\",'1. Order'!AZ1110)","v":""},{"$f":"IF('1. Order'!BA1110=\"\",\"\",'1. Order'!BA1110)","v":""},{"$f":"IF('1. Order'!BC1110=\"\",\"\",'1. Order'!BC1110)","v":""},{"$f":"IF('1. Order'!BD1110=\"\",\"\",'1. Order'!BD1110)","v":6},{"$f":"IF('1. Order'!BE1110=\"\",\"\",'1. Order'!BE1110)","v":"None"},{"$f":"IF('1. Order'!BF1110=\"\",\"\",'1. Order'!BF1110)","v":"Parcel"},{"$f":"IF('1. Order'!BG1110=\"\",\"\",'1. Order'!BG1110)","v":"ZWO"}]
[{"$f":"IF('1. Order'!F1111=\"\",\"\",'1. Order'!F1111)","v":""},{"$f":"IF('1. Order'!G1111=\"\",\"\",'1. Order'!G1111)","v":""},{"$f":"IF('1. Order'!H1111=\"\",\"\",'1. Order'!H1111)","v":""},{"$f":"IF('1. Order'!I1111=\"\",\"\",'1. Order'!I1111)","v":""},{"$f":"IF('1. Order'!J1111=\"\",\"\",'1. Order'!J1111)","v":""},{"$f":"IF('1. Order'!K1111=\"\",\"\",'1. Order'!K1111)","v":""},{"$f":"IF('1. Order'!L1111=\"\",\"\",'1. Order'!L1111)","v":""},{"$f":"IF('1. Order'!M1111=\"\",\"\",'1. Order'!M1111)","v":""},{"$f":"IF('1. Order'!N1111=\"\",\"\",'1. Order'!N1111)","v":""},{"$f":"IF('1. Order'!O1111=\"\",\"\",'1. Order'!O1111)","v":{"$error":"#N/A"}},{"$f":"IF('1. Order'!P1111=\"\",\"\",'1. Order'!P1111)","v":{"$error":"#N/A"}},{"$f":"IF('1. Order'!Q1111=\"\",\"\",'1. Order'!Q1111)","v":""},{"$f":"IF('1. Order'!R1111=\"\",\"\",'1. Order'!R1111)","v":""},{"$f":"IF('1. Order'!S1111=\"\",\"\",'1. Order'!S1111)","v":""},{"$f":"IF('1. Order'!V1111=\"\",\"\",'1. Order'!V1111)","v":""},{"$f":"IF('1. Order'!W1111=\"\",\"\",'1. Order'!W1111)","v":""},{"$f":"IF('1. Order'!X1111=\"\",\"\",'1. Order'!X1111)","v":"EUR"},{"$f":"IF('1. Order'!Y1111=\"\",\"\",'1. Order'!Y1111)","v":""},{"$f":"IF('1. Order'!Z1111=\"\",\"\",'1. Order'!Z1111)","v":""},{"$f":"IF('1. Order'!AA1111=\"\",\"\",'1. Order'!AA1111)","v":""},null,{"$f":"IF('1. Order'!AS1111=\"\",\"\",'1. Order'!AS1111)","v":""},{"$f":"IF('1. Order'!AT1111=\"\",\"\",'1. Order'!AT1111)","v":""},null,null,null,null,null,null,null,{"$f":"IF('1. Order'!AX1111=\"\",\"\",'1. Order'!AX1111)","v":""},{"$f":"IF('1. Order'!AY1111=\"\",\"\",'1. Order'!AY1111)","v":""},{"$f":"IF('1. Order'!AZ1111=\"\",\"\",'1. Order'!AZ1111)","v":""},{"$f":"IF('1. Order'!BA1111=\"\",\"\",'1. Order'!BA1111)","v":""},{"$f":"IF('1. Order'!BC1111=\"\",\"\",'1. Order'!BC1111)","v":""},{"$f":"IF('1. Order'!BD1111=\"\",\"\",'1. Order'!BD1111)","v":6},{"$f":"IF('1. Order'!BE1111=\"\",\"\",'1. Order'!BE1111)","v":"None"},{"$f":"IF('1. Order'!BF1111=\"\",\"\",'1. Order'!BF1111)","v":"Parcel"},{"$f":"IF('1. Order'!BG1111=\"\",\"\",'1. Order'!BG1111)","v":"ZWO"}]
[{"$f":"IF('1. Order'!F1112=\"\",\"\",'1. Order'!F1112)","v":""},{"$f":"IF('1. Order'!G1112=\"\",\"\",'1. Order'!G1112)","v":""},{"$f":"IF('1. Order'!H1112=\"\",\"\",'1. Order'!H1112)","v":""},{"$f":"IF('1. Order'!I1112=\"\",\"\",'1. Order'!I1112)","v":""},{"$f":"IF('1. Order'!J1112=\"\",\"\",'1. Order'!J1112)","v":""},{"$f":"IF('1. Order'!K1112=\"\",\"\",'1. Order'!K1112)","v":""},{"$f":"IF('1. Order'!L1112=\"\",\"\",'1. Order'!L1112)","v":""},{"$f":"IF('1. Order'!M1112=\"\",\"\",'1. Order'!M1112)","v":""},{"$f":"IF('1. Order'!N1112=\"\",\"\",'1. Order'!N1112)","v":""},{"$f":"IF('1. Order'!O1112=\"\",\"\",'1. Order'!O1112)","v":{"$error":"#N/A"}},{"$f":"IF('1. Order'!P1112=\"\",\"\",'1. Order'!P1112)","v":{"$error":"#N/A"}},{"$f":"IF('1. Order'!Q1112=\"\",\"\",'1. Order'!Q1112)","v":""},{"$f":"IF('1. Order'!R1112=\"\",\"\",'1. Order'!R1112)","v":""},{"$f":"IF('1. Order'!S1112=\"\",\"\",'1. Order'!S1112)","v":""},{"$f":"IF('1. Order'!V1112=\"\",\"\",'1. Order'!V1112)","v":""},{"$f":"IF('1. Order'!W1112=\"\",\"\",'1. Order'!W1112)","v":""},{"$f":"IF('1. Order'!X1112=\"\",\"\",'1. Order'!X1112)","v":"EUR"},{"$f":"IF('1. Order'!Y1112=\"\",\"\",'1. Order'!Y1112)","v":""},{"$f":"IF('1. Order'!Z1112=\"\",\"\",'1. Order'!Z1112)","v":""},{"$f":"IF('1. Order'!AA1112=\"\",\"\",'1. Order'!AA1112)","v":""},null,{"$f":"IF('1. Order'!AS1112=\"\",\"\",'1. Order'!AS1112)","v":""},{"$f":"IF('1. Order'!AT1112=\"\",\"\",'1. Order'!AT1112)","v":""},null,null,null,null,null,null,null,{"$f":"IF('1. Order'!AX1112=\"\",\"\",'1. Order'!AX1112)","v":""},{"$f":"IF('1. Order'!AY1112=\"\",\"\",'1. Order'!AY1112)","v":""},{"$f":"IF('1. Order'!AZ1112=\"\",\"\",'1. Order'!AZ1112)","v":""},{"$f":"IF('1. Order'!BA1112=\"\",\"\",'1. Order'!BA1112)","v":""},{"$f":"IF('1. Order'!BC1112=\"\",\"\",'1. Order'!BC1112)","v":""},{"$f":"IF('1. Order'!BD1112=\"\",\"\",'1. Order'!BD1112)","v":6},{"$f":"IF('1. Order'!BE1112=\"\",\"\",'1. Order'!BE1112)","v":"None"},{"$f":"IF('1. Order'!BF1112=\"\",\"\",'1. Order'!BF1112)","v":"Parcel"},{"$f":"IF('1. Order'!BG1112=\"\",\"\",'1. Order'!BG1112)","v":"ZWO"}]
[{"$f":"IF('1. Order'!F1113=\"\",\"\",'1. Order'!F1113)","v":""},{"$f":"IF('1. Order'!G1113=\"\",\"\",'1. Order'!G1113)","v":""},{"$f":"IF('1. Order'!H1113=\"\",\"\",'1. Order'!H1113)","v":""},{"$f":"IF('1. Order'!I1113=\"\",\"\",'1. Order'!I1113)","v":""},{"$f":"IF('1. Order'!J1113=\"\",\"\",'1. Order'!J1113)","v":""},{"$f":"IF('1. Order'!K1113=\"\",\"\",'1. Order'!K1113)","v":""},{"$f":"IF('1. Order'!L1113=\"\",\"\",'1. Order'!L1113)","v":""},{"$f":"IF('1. Order'!M1113=\"\",\"\",'1. Order'!M1113)","v":""},{"$f":"IF('1. Order'!N1113=\"\",\"\",'1. Order'!N1113)","v":""},{"$f":"IF('1. Order'!O1113=\"\",\"\",'1. Order'!O1113)","v":{"$error":"#N/A"}},{"$f":"IF('1. Order'!P1113=\"\",\"\",'1. Order'!P1113)","v":{"$error":"#N/A"}},{"$f":"IF('1. Order'!Q1113=\"\",\"\",'1. Order'!Q1113)","v":""},{"$f":"IF('1. Order'!R1113=\"\",\"\",'1. Order'!R1113)","v":""},{"$f":"IF('1. Order'!S1113=\"\",\"\",'1. Order'!S1113)","v":""},{"$f":"IF('1. Order'!V1113=\"\",\"\",'1. Order'!V1113)","v":""},{"$f":"IF('1. Order'!W1113=\"\",\"\",'1. Order'!W1113)","v":""},{"$f":"IF('1. Order'!X1113=\"\",\"\",'1. Order'!X1113)","v":"EUR"},{"$f":"IF('1. Order'!Y1113=\"\",\"\",'1. Order'!Y1113)","v":""},{"$f":"IF('1. Order'!Z1113=\"\",\"\",'1. Order'!Z1113)","v":""},{"$f":"IF('1. Order'!AA1113=\"\",\"\",'1. Order'!AA1113)","v":""},null,{"$f":"IF('1. Order'!AS1113=\"\",\"\",'1. Order'!AS1113)","v":""},{"$f":"IF('1. Order'!AT1113=\"\",\"\",'1. Order'!AT1113)","v":""},null,null,null,null,null,null,null,{"$f":"IF('1. Order'!AX1113=\"\",\"\",'1. Order'!AX1113)","v":""},{"$f":"IF('1. Order'!AY1113=\"\",\"\",'1. Order'!AY1113)","v":""},{"$f":"IF('1. Order'!AZ1113=\"\",\"\",'1. Order'!AZ1113)","v":""},{"$f":"IF('1. Order'!BA1113=\"\",\"\",'1. Order'!BA1113)","v":""},{"$f":"IF('1. Order'!BC1113=\"\",\"\",'1. Order'!BC1113)","v":""},{"$f":"IF('1. Order'!BD1113=\"\",\"\",'1. Order'!BD1113)","v":6},{"$f":"IF('1. Order'!BE1113=\"\",\"\",'1. Order'!BE1113)","v":"None"},{"$f":"IF('1. Order'!BF1113=\"\",\"\",'1. Order'!BF1113)","v":"Parcel"},{"$f":"IF('1. Order'!BG1113=\"\",\"\",'1. Order'!BG1113)","v":"ZWO"}]
[{"$f":"IF('1. Order'!F1114=\"\",\"\",'1. Order'!F1114)","v":""},{"$f":"IF('1. Order'!G1114=\"\",\"\",'1. Order'!G1114)","v":""},{"$f":"IF('1. Order'!H1114=\"\",\"\",'1. Order'!H1114)","v":""},{"$f":"IF('1. Order'!I1114=\"\",\"\",'1. Order'!I1114)","v":""},{"$f":"IF('1. Order'!J1114=\"\",\"\",'1. Order'!J1114)","v":""},{"$f":"IF('1. Order'!K1114=\"\",\"\",'1. Order'!K1114)","v":""},{"$f":"IF('1. Order'!L1114=\"\",\"\",'1. Order'!L1114)","v":""},{"$f":"IF('1. Order'!M1114=\"\",\"\",'1. Order'!M1114)","v":""},{"$f":"IF('1. Order'!N1114=\"\",\"\",'1. Order'!N1114)","v":""},{"$f":"IF('1. Order'!O1114=\"\",\"\",'1. Order'!O1114)","v":{"$error":"#N/A"}},{"$f":"IF('1. Order'!P1114=\"\",\"\",'1. Order'!P1114)","v":{"$error":"#N/A"}},{"$f":"IF('1. Order'!Q1114=\"\",\"\",'1. Order'!Q1114)","v":""},{"$f":"IF('1. Order'!R1114=\"\",\"\",'1. Order'!R1114)","v":""},{"$f":"IF('1. Order'!S1114=\"\",\"\",'1. Order'!S1114)","v":""},{"$f":"IF('1. Order'!V1114=\"\",\"\",'1. Order'!V1114)","v":""},{"$f":"IF('1. Order'!W1114=\"\",\"\",'1. Order'!W1114)","v":""},{"$f":"IF('1. Order'!X1114=\"\",\"\",'1. Order'!X1114)","v":"EUR"},{"$f":"IF('1. Order'!Y1114=\"\",\"\",'1. Order'!Y1114)","v":""},{"$f":"IF('1. Order'!Z1114=\"\",\"\",'1. Order'!Z1114)","v":""},{"$f":"IF('1. Order'!AA1114=\"\",\"\",'1. Order'!AA1114)","v":""},null,{"$f":"IF('1. Order'!AS1114=\"\",\"\",'1. Order'!AS1114)","v":""},{"$f":"IF('1. Order'!AT1114=\"\",\"\",'1. Order'!AT1114)","v":""},null,null,null,null,null,null,null,{"$f":"IF('1. Order'!AX1114=\"\",\"\",'1. Order'!AX1114)","v":""},{"$f":"IF('1. Order'!AY1114=\"\",\"\",'1. Order'!AY1114)","v":""},{"$f":"IF('1. Order'!AZ1114=\"\",\"\",'1. Order'!AZ1114)","v":""},{"$f":"IF('1. Order'!BA1114=\"\",\"\",'1. Order'!BA1114)","v":""},{"$f":"IF('1. Order'!BC1114=\"\",\"\",'1. Order'!BC1114)","v":""},{"$f":"IF('1. Order'!BD1114=\"\",\"\",'1. Order'!BD1114)","v":6},{"$f":"IF('1. Order'!BE1114=\"\",\"\",'1. Order'!BE1114)","v":"None"},{"$f":"IF('1. Order'!BF1114=\"\",\"\",'1. Order'!BF1114)","v":"Parcel"},{"$f":"IF('1. Order'!BG1114=\"\",\"\",'1. Order'!BG1114)","v":"ZWO"}]
[{"$f":"IF('1. Order'!F1115=\"\",\"\",'1. Order'!F1115)","v":""},{"$f":"IF('1. Order'!G1115=\"\",\"\",'1. Order'!G1115)","v":""},{"$f":"IF('1. Order'!H1115=\"\",\"\",'1. Order'!H1115)","v":""},{"$f":"IF('1. Order'!I1115=\"\",\"\",'1. Order'!I1115)","v":""},{"$f":"IF('1. Order'!J1115=\"\",\"\",'1. Order'!J1115)","v":""},{"$f":"IF('1. Order'!K1115=\"\",\"\",'1. Order'!K1115)","v":""},{"$f":"IF('1. Order'!L1115=\"\",\"\",'1. Order'!L1115)","v":""},{"$f":"IF('1. Order'!M1115=\"\",\"\",'1. Order'!M1115)","v":""},{"$f":"IF('1. Order'!N1115=\"\",\"\",'1. Order'!N1115)","v":""},{"$f":"IF('1. Order'!O1115=\"\",\"\",'1. Order'!O1115)","v":{"$error":"#N/A"}},{"$f":"IF('1. Order'!P1115=\"\",\"\",'1. Order'!P1115)","v":{"$error":"#N/A"}},{"$f":"IF('1. Order'!Q1115=\"\",\"\",'1. Order'!Q1115)","v":""},{"$f":"IF('1. Order'!R1115=\"\",\"\",'1. Order'!R1115)","v":""},{"$f":"IF('1. Order'!S1115=\"\",\"\",'1. Order'!S1115)","v":""},{"$f":"IF('1. Order'!V1115=\"\",\"\",'1. Order'!V1115)","v":""},{"$f":"IF('1. Order'!W1115=\"\",\"\",'1. Order'!W1115)","v":""},{"$f":"IF('1. Order'!X1115=\"\",\"\",'1. Order'!X1115)","v":"EUR"},{"$f":"IF('1. Order'!Y1115=\"\",\"\",'1. Order'!Y1115)","v":""},{"$f":"IF('1. Order'!Z1115=\"\",\"\",'1. Order'!Z1115)","v":""},{"$f":"IF('1. Order'!AA1115=\"\",\"\",'1. Order'!AA1115)","v":""},null,{"$f":"IF('1. Order'!AS1115=\"\",\"\",'1. Order'!AS1115)","v":""},{"$f":"IF('1. Order'!AT1115=\"\",\"\",'1. Order'!AT1115)","v":""},null,null,null,null,null,null,null,{"$f":"IF('1. Order'!AX1115=\"\",\"\",'1. Order'!AX1115)","v":""},{"$f":"IF('1. Order'!AY1115=\"\",\"\",'1. Order'!AY1115)","v":""},{"$f":"IF('1. Order'!AZ1115=\"\",\"\",'1. Order'!AZ1115)","v":""},{"$f":"IF('1. Order'!BA1115=\"\",\"\",'1. Order'!BA1115)","v":""},{"$f":"IF('1. Order'!BC1115=\"\",\"\",'1. Order'!BC1115)","v":""},{"$f":"IF('1. Order'!BD1115=\"\",\"\",'1. Order'!BD1115)","v":6},{"$f":"IF('1. Order'!BE1115=\"\",\"\",'1. Order'!BE1115)","v":"None"},{"$f":"IF('1. Order'!BF1115=\"\",\"\",'1. Order'!BF1115)","v":"Parcel"},{"$f":"IF('1. Order'!BG1115=\"\",\"\",'1. Order'!BG1115)","v":"ZWO"}]
[{"$f":"IF('1. Order'!F1116=\"\",\"\",'1. Order'!F1116)","v":""},{"$f":"IF('1. Order'!G1116=\"\",\"\",'1. Order'!G1116)","v":""},{"$f":"IF('1. Order'!H1116=\"\",\"\",'1. Order'!H1116)","v":""},{"$f":"IF('1. Order'!I1116=\"\",\"\",'1. Order'!I1116)","v":""},{"$f":"IF('1. Order'!J1116=\"\",\"\",'1. Order'!J1116)","v":""},{"$f":"IF('1. Order'!K1116=\"\",\"\",'1. Order'!K1116)","v":""},{"$f":"IF('1. Order'!L1116=\"\",\"\",'1. Order'!L1116)","v":""},{"$f":"IF('1. Order'!M1116=\"\",\"\",'1. Order'!M1116)","v":""},{"$f":"IF('1. Order'!N1116=\"\",\"\",'1. Order'!N1116)","v":""},{"$f":"IF('1. Order'!O1116=\"\",\"\",'1. Order'!O1116)","v":{"$error":"#N/A"}},{"$f":"IF('1. Order'!P1116=\"\",\"\",'1. Order'!P1116)","v":{"$error":"#N/A"}},{"$f":"IF('1. Order'!Q1116=\"\",\"\",'1. Order'!Q1116)","v":""},{"$f":"IF('1. Order'!R1116=\"\",\"\",'1. Order'!R1116)","v":""},{"$f":"IF('1. Order'!S1116=\"\",\"\",'1. Order'!S1116)","v":""},{"$f":"IF('1. Order'!V1116=\"\",\"\",'1. Order'!V1116)","v":""},{"$f":"IF('1. Order'!W1116=\"\",\"\",'1. Order'!W1116)","v":""},{"$f":"IF('1. Order'!X1116=\"\",\"\",'1. Order'!X1116)","v":"EUR"},{"$f":"IF('1. Order'!Y1116=\"\",\"\",'1. Order'!Y1116)","v":""},{"$f":"IF('1. Order'!Z1116=\"\",\"\",'1. Order'!Z1116)","v":""},{"$f":"IF('1. Order'!AA1116=\"\",\"\",'1. Order'!AA1116)","v":""},null,{"$f":"IF('1. Order'!AS1116=\"\",\"\",'1. Order'!AS1116)","v":""},{"$f":"IF('1. Order'!AT1116=\"\",\"\",'1. Order'!AT1116)","v":""},null,null,null,null,null,null,null,{"$f":"IF('1. Order'!AX1116=\"\",\"\",'1. Order'!AX1116)","v":""},{"$f":"IF('1. Order'!AY1116=\"\",\"\",'1. Order'!AY1116)","v":""},{"$f":"IF('1. Order'!AZ1116=\"\",\"\",'1. Order'!AZ1116)","v":""},{"$f":"IF('1. Order'!BA1116=\"\",\"\",'1. Order'!BA1116)","v":""},{"$f":"IF('1. Order'!BC1116=\"\",\"\",'1. Order'!BC1116)","v":""},{"$f":"IF('1. Order'!BD1116=\"\",\"\",'1. Order'!BD1116)","v":6},{"$f":"IF('1. Order'!BE1116=\"\",\"\",'1. Order'!BE1116)","v":"None"},{"$f":"IF('1. Order'!BF1116=\"\",\"\",'1. Order'!BF1116)","v":"Parcel"},{"$f":"IF('1. Order'!BG1116=\"\",\"\",'1. Order'!BG1116)","v":"ZWO"}]
[{"$f":"IF('1. Order'!F1117=\"\",\"\",'1. Order'!F1117)","v":""},{"$f":"IF('1. Order'!G1117=\"\",\"\",'1. Order'!G1117)","v":""},{"$f":"IF('1. Order'!H1117=\"\",\"\",'1. Order'!H1117)","v":""},{"$f":"IF('1. Order'!I1117=\"\",\"\",'1. Order'!I1117)","v":""},{"$f":"IF('1. Order'!J1117=\"\",\"\",'1. Order'!J1117)","v":""},{"$f":"IF('1. Order'!K1117=\"\",\"\",'1. Order'!K1117)","v":""},{"$f":"IF('1. Order'!L1117=\"\",\"\",'1. Order'!L1117)","v":""},{"$f":"IF('1. Order'!M1117=\"\",\"\",'1. Order'!M1117)","v":""},{"$f":"IF('1. Order'!N1117=\"\",\"\",'1. Order'!N1117)","v":""},{"$f":"IF('1. Order'!O1117=\"\",\"\",'1. Order'!O1117)","v":{"$error":"#N/A"}},{"$f":"IF('1. Order'!P1117=\"\",\"\",'1. Order'!P1117)","v":{"$error":"#N/A"}},{"$f":"IF('1. Order'!Q1117=\"\",\"\",'1. Order'!Q1117)","v":""},{"$f":"IF('1. Order'!R1117=\"\",\"\",'1. Order'!R1117)","v":""},{"$f":"IF('1. Order'!S1117=\"\",\"\",'1. Order'!S1117)","v":""},{"$f":"IF('1. Order'!V1117=\"\",\"\",'1. Order'!V1117)","v":""},{"$f":"IF('1. Order'!W1117=\"\",\"\",'1. Order'!W1117)","v":""},{"$f":"IF('1. Order'!X1117=\"\",\"\",'1. Order'!X1117)","v":"EUR"},{"$f":"IF('1. Order'!Y1117=\"\",\"\",'1. Order'!Y1117)","v":""},{"$f":"IF('1. Order'!Z1117=\"\",\"\",'1. Order'!Z1117)","v":""},{"$f":"IF('1. Order'!AA1117=\"\",\"\",'1. Order'!AA1117)","v":""},null,{"$f":"IF('1. Order'!AS1117=\"\",\"\",'1. Order'!AS1117)","v":""},{"$f":"IF('1. Order'!AT1117=\"\",\"\",'1. Order'!AT1117)","v":""},null,null,null,null,null,null,null,{"$f":"IF('1. Order'!AX1117=\"\",\"\",'1. Order'!AX1117)","v":""},{"$f":"IF('1. Order'!AY1117=\"\",\"\",'1. Order'!AY1117)","v":""},{"$f":"IF('1. Order'!AZ1117=\"\",\"\",'1. Order'!AZ1117)","v":""},{"$f":"IF('1. Order'!BA1117=\"\",\"\",'1. Order'!BA1117)","v":""},{"$f":"IF('1. Order'!BC1117=\"\",\"\",'1. Order'!BC1117)","v":""},{"$f":"IF('1. Order'!BD1117=\"\",\"\",'1. Order'!BD1117)","v":6},{"$f":"IF('1. Order'!BE1117=\"\",\"\",'1. Order'!BE1117)","v":"None"},{"$f":"IF('1. Order'!BF1117=\"\",\"\",'1. Order'!BF1117)","v":"Parcel"},{"$f":"IF('1. Order'!BG1117=\"\",\"\",'1. Order'!BG1117)","v":"ZWO"}]
[{"$f":"IF('1. Order'!F1118=\"\",\"\",'1. Order'!F1118)","v":""},{"$f":"IF('1. Order'!G1118=\"\",\"\",'1. Order'!G1118)","v":""},{"$f":"IF('1. Order'!H1118=\"\",\"\",'1. Order'!H1118)","v":""},{"$f":"IF('1. Order'!I1118=\"\",\"\",'1. Order'!I1118)","v":""},{"$f":"IF('1. Order'!J1118=\"\",\"\",'1. Order'!J1118)","v":""},{"$f":"IF('1. Order'!K1118=\"\",\"\",'1. Order'!K1118)","v":""},{"$f":"IF('1. Order'!L1118=\"\",\"\",'1. Order'!L1118)","v":""},{"$f":"IF('1. Order'!M1118=\"\",\"\",'1. Order'!M1118)","v":""},{"$f":"IF('1. Order'!N1118=\"\",\"\",'1. Order'!N1118)","v":""},{"$f":"IF('1. Order'!O1118=\"\",\"\",'1. Order'!O1118)","v":{"$error":"#N/A"}},{"$f":"IF('1. Order'!P1118=\"\",\"\",'1. Order'!P1118)","v":{"$error":"#N/A"}},{"$f":"IF('1. Order'!Q1118=\"\",\"\",'1. Order'!Q1118)","v":""},{"$f":"IF('1. Order'!R1118=\"\",\"\",'1. Order'!R1118)","v":""},{"$f":"IF('1. Order'!S1118=\"\",\"\",'1. Order'!S1118)","v":""},{"$f":"IF('1. Order'!V1118=\"\",\"\",'1. Order'!V1118)","v":""},{"$f":"IF('1. Order'!W1118=\"\",\"\",'1. Order'!W1118)","v":""},{"$f":"IF('1. Order'!X1118=\"\",\"\",'1. Order'!X1118)","v":"EUR"},{"$f":"IF('1. Order'!Y1118=\"\",\"\",'1. Order'!Y1118)","v":""},{"$f":"IF('1. Order'!Z1118=\"\",\"\",'1. Order'!Z1118)","v":""},{"$f":"IF('1. Order'!AA1118=\"\",\"\",'1. Order'!AA1118)","v":""},null,{"$f":"IF('1. Order'!AS1118=\"\",\"\",'1. Order'!AS1118)","v":""},{"$f":"IF('1. Order'!AT1118=\"\",\"\",'1. Order'!AT1118)","v":""},null,null,null,null,null,null,null,{"$f":"IF('1. Order'!AX1118=\"\",\"\",'1. Order'!AX1118)","v":""},{"$f":"IF('1. Order'!AY1118=\"\",\"\",'1. Order'!AY1118)","v":""},{"$f":"IF('1. Order'!AZ1118=\"\",\"\",'1. Order'!AZ1118)","v":""},{"$f":"IF('1. Order'!BA1118=\"\",\"\",'1. Order'!BA1118)","v":""},{"$f":"IF('1. Order'!BC1118=\"\",\"\",'1. Order'!BC1118)","v":""},{"$f":"IF('1. Order'!BD1118=\"\",\"\",'1. Order'!BD1118)","v":6},{"$f":"IF('1. Order'!BE1118=\"\",\"\",'1. Order'!BE1118)","v":"None"},{"$f":"IF('1. Order'!BF1118=\"\",\"\",'1. Order'!BF1118)","v":"Parcel"},{"$f":"IF('1. Order'!BG1118=\"\",\"\",'1. Order'!BG1118)","v":"ZWO"}]
[{"$f":"IF('1. Order'!F1119=\"\",\"\",'1. Order'!F1119)","v":""},{"$f":"IF('1. Order'!G1119=\"\",\"\",'1. Order'!G1119)","v":""},{"$f":"IF('1. Order'!H1119=\"\",\"\",'1. Order'!H1119)","v":""},{"$f":"IF('1. Order'!I1119=\"\",\"\",'1. Order'!I1119)","v":""},{"$f":"IF('1. Order'!J1119=\"\",\"\",'1. Order'!J1119)","v":""},{"$f":"IF('1. Order'!K1119=\"\",\"\",'1. Order'!K1119)","v":""},{"$f":"IF('1. Order'!L1119=\"\",\"\",'1. Order'!L1119)","v":""},{"$f":"IF('1. Order'!M1119=\"\",\"\",'1. Order'!M1119)","v":""},{"$f":"IF('1. Order'!N1119=\"\",\"\",'1. Order'!N1119)","v":""},{"$f":"IF('1. Order'!O1119=\"\",\"\",'1. Order'!O1119)","v":{"$error":"#N/A"}},{"$f":"IF('1. Order'!P1119=\"\",\"\",'1. Order'!P1119)","v":{"$error":"#N/A"}},{"$f":"IF('1. Order'!Q1119=\"\",\"\",'1. Order'!Q1119)","v":""},{"$f":"IF('1. Order'!R1119=\"\",\"\",'1. Order'!R1119)","v":""},{"$f":"IF('1. Order'!S1119=\"\",\"\",'1. Order'!S1119)","v":""},{"$f":"IF('1. Order'!V1119=\"\",\"\",'1. Order'!V1119)","v":""},{"$f":"IF('1. Order'!W1119=\"\",\"\",'1. Order'!W1119)","v":""},{"$f":"IF('1. Order'!X1119=\"\",\"\",'1. Order'!X1119)","v":"EUR"},{"$f":"IF('1. Order'!Y1119=\"\",\"\",'1. Order'!Y1119)","v":""},{"$f":"IF('1. Order'!Z1119=\"\",\"\",'1. Order'!Z1119)","v":""},{"$f":"IF('1. Order'!AA1119=\"\",\"\",'1. Order'!AA1119)","v":""},null,{"$f":"IF('1. Order'!AS1119=\"\",\"\",'1. Order'!AS1119)","v":""},{"$f":"IF('1. Order'!AT1119=\"\",\"\",'1. Order'!AT1119)","v":""},null,null,null,null,null,null,null,{"$f":"IF('1. Order'!AX1119=\"\",\"\",'1. Order'!AX1119)","v":""},{"$f":"IF('1. Order'!AY1119=\"\",\"\",'1. Order'!AY1119)","v":""},{"$f":"IF('1. Order'!AZ1119=\"\",\"\",'1. Order'!AZ1119)","v":""},{"$f":"IF('1. Order'!BA1119=\"\",\"\",'1. Order'!BA1119)","v":""},{"$f":"IF('1. Order'!BC1119=\"\",\"\",'1. Order'!BC1119)","v":""},{"$f":"IF('1. Order'!BD1119=\"\",\"\",'1. Order'!BD1119)","v":6},{"$f":"IF('1. Order'!BE1119=\"\",\"\",'1. Order'!BE1119)","v":"None"},{"$f":"IF('1. Order'!BF1119=\"\",\"\",'1. Order'!BF1119)","v":"Parcel"},{"$f":"IF('1. Order'!BG1119=\"\",\"\",'1. Order'!BG1119)","v":"ZWO"}]
[{"$f":"IF('1. Order'!F1120=\"\",\"\",'1. Order'!F1120)","v":""},{"$f":"IF('1. Order'!G1120=\"\",\"\",'1. Order'!G1120)","v":""},{"$f":"IF('1. Order'!H1120=\"\",\"\",'1. Order'!H1120)","v":""},{"$f":"IF('1. Order'!I1120=\"\",\"\",'1. Order'!I1120)","v":""},{"$f":"IF('1. Order'!J1120=\"\",\"\",'1. Order'!J1120)","v":""},{"$f":"IF('1. Order'!K1120=\"\",\"\",'1. Order'!K1120)","v":""},{"$f":"IF('1. Order'!L1120=\"\",\"\",'1. Order'!L1120)","v":""},{"$f":"IF('1. Order'!M1120=\"\",\"\",'1. Order'!M1120)","v":""},{"$f":"IF('1. Order'!N1120=\"\",\"\",'1. Order'!N1120)","v":""},{"$f":"IF('1. Order'!O1120=\"\",\"\",'1. Order'!O1120)","v":{"$error":"#N/A"}},{"$f":"IF('1. Order'!P1120=\"\",\"\",'1. Order'!P1120)","v":{"$error":"#N/A"}},{"$f":"IF('1. Order'!Q1120=\"\",\"\",'1. Order'!Q1120)","v":""},{"$f":"IF('1. Order'!R1120=\"\",\"\",'1. Order'!R1120)","v":""},{"$f":"IF('1. Order'!S1120=\"\",\"\",'1. Order'!S1120)","v":""},{"$f":"IF('1. Order'!V1120=\"\",\"\",'1. Order'!V1120)","v":""},{"$f":"IF('1. Order'!W1120=\"\",\"\",'1. Order'!W1120)","v":""},{"$f":"IF('1. Order'!X1120=\"\",\"\",'1. Order'!X1120)","v":"EUR"},{"$f":"IF('1. Order'!Y1120=\"\",\"\",'1. Order'!Y1120)","v":""},{"$f":"IF('1. Order'!Z1120=\"\",\"\",'1. Order'!Z1120)","v":""},{"$f":"IF('1. Order'!AA1120=\"\",\"\",'1. Order'!AA1120)","v":""},null,{"$f":"IF('1. Order'!AS1120=\"\",\"\",'1. Order'!AS1120)","v":""},{"$f":"IF('1. Order'!AT1120=\"\",\"\",'1. Order'!AT1120)","v":""},null,null,null,null,null,null,null,{"$f":"IF('1. Order'!AX1120=\"\",\"\",'1. Order'!AX1120)","v":""},{"$f":"IF('1. Order'!AY1120=\"\",\"\",'1. Order'!AY1120)","v":""},{"$f":"IF('1. Order'!AZ1120=\"\",\"\",'1. Order'!AZ1120)","v":""},{"$f":"IF('1. Order'!BA1120=\"\",\"\",'1. Order'!BA1120)","v":""},{"$f":"IF('1. Order'!BC1120=\"\",\"\",'1. Order'!BC1120)","v":""},{"$f":"IF('1. Order'!BD1120=\"\",\"\",'1. Order'!BD1120)","v":6},{"$f":"IF('1. Order'!BE1120=\"\",\"\",'1. Order'!BE1120)","v":"None"},{"$f":"IF('1. Order'!BF1120=\"\",\"\",'1. Order'!BF1120)","v":"Parcel"},{"$f":"IF('1. Order'!BG1120=\"\",\"\",'1. Order'!BG1120)","v":"ZWO"}]
[{"$f":"IF('1. Order'!F1121=\"\",\"\",'1. Order'!F1121)","v":""},{"$f":"IF('1. Order'!G1121=\"\",\"\",'1. Order'!G1121)","v":""},{"$f":"IF('1. Order'!H1121=\"\",\"\",'1. Order'!H1121)","v":""},{"$f":"IF('1. Order'!I1121=\"\",\"\",'1. Order'!I1121)","v":""},{"$f":"IF('1. Order'!J1121=\"\",\"\",'1. Order'!J1121)","v":""},{"$f":"IF('1. Order'!K1121=\"\",\"\",'1. Order'!K1121)","v":""},{"$f":"IF('1. Order'!L1121=\"\",\"\",'1. Order'!L1121)","v":""},{"$f":"IF('1. Order'!M1121=\"\",\"\",'1. Order'!M1121)","v":""},{"$f":"IF('1. Order'!N1121=\"\",\"\",'1. Order'!N1121)","v":""},{"$f":"IF('1. Order'!O1121=\"\",\"\",'1. Order'!O1121)","v":{"$error":"#N/A"}},{"$f":"IF('1. Order'!P1121=\"\",\"\",'1. Order'!P1121)","v":{"$error":"#N/A"}},{"$f":"IF('1. Order'!Q1121=\"\",\"\",'1. Order'!Q1121)","v":""},{"$f":"IF('1. Order'!R1121=\"\",\"\",'1. Order'!R1121)","v":""},{"$f":"IF('1. Order'!S1121=\"\",\"\",'1. Order'!S1121)","v":""},{"$f":"IF('1. Order'!V1121=\"\",\"\",'1. Order'!V1121)","v":""},{"$f":"IF('1. Order'!W1121=\"\",\"\",'1. Order'!W1121)","v":""},{"$f":"IF('1. Order'!X1121=\"\",\"\",'1. Order'!X1121)","v":"EUR"},{"$f":"IF('1. Order'!Y1121=\"\",\"\",'1. Order'!Y1121)","v":""},{"$f":"IF('1. Order'!Z1121=\"\",\"\",'1. Order'!Z1121)","v":""},{"$f":"IF('1. Order'!AA1121=\"\",\"\",'1. Order'!AA1121)","v":""},null,{"$f":"IF('1. Order'!AS1121=\"\",\"\",'1. Order'!AS1121)","v":""},{"$f":"IF('1. Order'!AT1121=\"\",\"\",'1. Order'!AT1121)","v":""},null,null,null,null,null,null,null,{"$f":"IF('1. Order'!AX1121=\"\",\"\",'1. Order'!AX1121)","v":""},{"$f":"IF('1. Order'!AY1121=\"\",\"\",'1. Order'!AY1121)","v":""},{"$f":"IF('1. Order'!AZ1121=\"\",\"\",'1. Order'!AZ1121)","v":""},{"$f":"IF('1. Order'!BA1121=\"\",\"\",'1. Order'!BA1121)","v":""},{"$f":"IF('1. Order'!BC1121=\"\",\"\",'1. Order'!BC1121)","v":""},{"$f":"IF('1. Order'!BD1121=\"\",\"\",'1. Order'!BD1121)","v":6},{"$f":"IF('1. Order'!BE1121=\"\",\"\",'1. Order'!BE1121)","v":"None"},{"$f":"IF('1. Order'!BF1121=\"\",\"\",'1. Order'!BF1121)","v":"Parcel"},{"$f":"IF('1. Order'!BG1121=\"\",\"\",'1. Order'!BG1121)","v":"ZWO"}]
[{"$f":"IF('1. Order'!F1122=\"\",\"\",'1. Order'!F1122)","v":""},{"$f":"IF('1. Order'!G1122=\"\",\"\",'1. Order'!G1122)","v":""},{"$f":"IF('1. Order'!H1122=\"\",\"\",'1. Order'!H1122)","v":""},{"$f":"IF('1. Order'!I1122=\"\",\"\",'1. Order'!I1122)","v":""},{"$f":"IF('1. Order'!J1122=\"\",\"\",'1. Order'!J1122)","v":""},{"$f":"IF('1. Order'!K1122=\"\",\"\",'1. Order'!K1122)","v":""},{"$f":"IF('1. Order'!L1122=\"\",\"\",'1. Order'!L1122)","v":""},{"$f":"IF('1. Order'!M1122=\"\",\"\",'1. Order'!M1122)","v":""},{"$f":"IF('1. Order'!N1122=\"\",\"\",'1. Order'!N1122)","v":""},{"$f":"IF('1. Order'!O1122=\"\",\"\",'1. Order'!O1122)","v":{"$error":"#N/A"}},{"$f":"IF('1. Order'!P1122=\"\",\"\",'1. Order'!P1122)","v":{"$error":"#N/A"}},{"$f":"IF('1. Order'!Q1122=\"\",\"\",'1. Order'!Q1122)","v":""},{"$f":"IF('1. Order'!R1122=\"\",\"\",'1. Order'!R1122)","v":""},{"$f":"IF('1. Order'!S1122=\"\",\"\",'1. Order'!S1122)","v":""},{"$f":"IF('1. Order'!V1122=\"\",\"\",'1. Order'!V1122)","v":""},{"$f":"IF('1. Order'!W1122=\"\",\"\",'1. Order'!W1122)","v":""},{"$f":"IF('1. Order'!X1122=\"\",\"\",'1. Order'!X1122)","v":"EUR"},{"$f":"IF('1. Order'!Y1122=\"\",\"\",'1. Order'!Y1122)","v":""},{"$f":"IF('1. Order'!Z1122=\"\",\"\",'1. Order'!Z1122)","v":""},{"$f":"IF('1. Order'!AA1122=\"\",\"\",'1. Order'!AA1122)","v":""},null,{"$f":"IF('1. Order'!AS1122=\"\",\"\",'1. Order'!AS1122)","v":""},{"$f":"IF('1. Order'!AT1122=\"\",\"\",'1. Order'!AT1122)","v":""},null,null,null,null,null,null,null,{"$f":"IF('1. Order'!AX1122=\"\",\"\",'1. Order'!AX1122)","v":""},{"$f":"IF('1. Order'!AY1122=\"\",\"\",'1. Order'!AY1122)","v":""},{"$f":"IF('1. Order'!AZ1122=\"\",\"\",'1. Order'!AZ1122)","v":""},{"$f":"IF('1. Order'!BA1122=\"\",\"\",'1. Order'!BA1122)","v":""},{"$f":"IF('1. Order'!BC1122=\"\",\"\",'1. Order'!BC1122)","v":""},{"$f":"IF('1. Order'!BD1122=\"\",\"\",'1. Order'!BD1122)","v":6},{"$f":"IF('1. Order'!BE1122=\"\",\"\",'1. Order'!BE1122)","v":"None"},{"$f":"IF('1. Order'!BF1122=\"\",\"\",'1. Order'!BF1122)","v":"Parcel"},{"$f":"IF('1. Order'!BG1122=\"\",\"\",'1. Order'!BG1122)","v":"ZWO"}]
[{"$f":"IF('1. Order'!F1123=\"\",\"\",'1. Order'!F1123)","v":""},{"$f":"IF('1. Order'!G1123=\"\",\"\",'1. Order'!G1123)","v":""},{"$f":"IF('1. Order'!H1123=\"\",\"\",'1. Order'!H1123)","v":""},{"$f":"IF('1. Order'!I1123=\"\",\"\",'1. Order'!I1123)","v":""},{"$f":"IF('1. Order'!J1123=\"\",\"\",'1. Order'!J1123)","v":""},{"$f":"IF('1. Order'!K1123=\"\",\"\",'1. Order'!K1123)","v":""},{"$f":"IF('1. Order'!L1123=\"\",\"\",'1. Order'!L1123)","v":""},{"$f":"IF('1. Order'!M1123=\"\",\"\",'1. Order'!M1123)","v":""},{"$f":"IF('1. Order'!N1123=\"\",\"\",'1. Order'!N1123)","v":""},{"$f":"IF('1. Order'!O1123=\"\",\"\",'1. Order'!O1123)","v":{"$error":"#N/A"}},{"$f":"IF('1. Order'!P1123=\"\",\"\",'1. Order'!P1123)","v":{"$error":"#N/A"}},{"$f":"IF('1. Order'!Q1123=\"\",\"\",'1. Order'!Q1123)","v":""},{"$f":"IF('1. Order'!R1123=\"\",\"\",'1. Order'!R1123)","v":""},{"$f":"IF('1. Order'!S1123=\"\",\"\",'1. Order'!S1123)","v":""},{"$f":"IF('1. Order'!V1123=\"\",\"\",'1. Order'!V1123)","v":""},{"$f":"IF('1. Order'!W1123=\"\",\"\",'1. Order'!W1123)","v":""},{"$f":"IF('1. Order'!X1123=\"\",\"\",'1. Order'!X1123)","v":"EUR"},{"$f":"IF('1. Order'!Y1123=\"\",\"\",'1. Order'!Y1123)","v":""},{"$f":"IF('1. Order'!Z1123=\"\",\"\",'1. Order'!Z1123)","v":""},{"$f":"IF('1. Order'!AA1123=\"\",\"\",'1. Order'!AA1123)","v":""},null,{"$f":"IF('1. Order'!AS1123=\"\",\"\",'1. Order'!AS1123)","v":""},{"$f":"IF('1. Order'!AT1123=\"\",\"\",'1. Order'!AT1123)","v":""},null,null,null,null,null,null,null,{"$f":"IF('1. Order'!AX1123=\"\",\"\",'1. Order'!AX1123)","v":""},{"$f":"IF('1. Order'!AY1123=\"\",\"\",'1. Order'!AY1123)","v":""},{"$f":"IF('1. Order'!AZ1123=\"\",\"\",'1. Order'!AZ1123)","v":""},{"$f":"IF('1. Order'!BA1123=\"\",\"\",'1. Order'!BA1123)","v":""},{"$f":"IF('1. Order'!BC1123=\"\",\"\",'1. Order'!BC1123)","v":""},{"$f":"IF('1. Order'!BD1123=\"\",\"\",'1. Order'!BD1123)","v":6},{"$f":"IF('1. Order'!BE1123=\"\",\"\",'1. Order'!BE1123)","v":"None"},{"$f":"IF('1. Order'!BF1123=\"\",\"\",'1. Order'!BF1123)","v":"Parcel"},{"$f":"IF('1. Order'!BG1123=\"\",\"\",'1. Order'!BG1123)","v":"ZWO"}]
[{"$f":"IF('1. Order'!F1124=\"\",\"\",'1. Order'!F1124)","v":""},{"$f":"IF('1. Order'!G1124=\"\",\"\",'1. Order'!G1124)","v":""},{"$f":"IF('1. Order'!H1124=\"\",\"\",'1. Order'!H1124)","v":""},{"$f":"IF('1. Order'!I1124=\"\",\"\",'1. Order'!I1124)","v":""},{"$f":"IF('1. Order'!J1124=\"\",\"\",'1. Order'!J1124)","v":""},{"$f":"IF('1. Order'!K1124=\"\",\"\",'1. Order'!K1124)","v":""},{"$f":"IF('1. Order'!L1124=\"\",\"\",'1. Order'!L1124)","v":""},{"$f":"IF('1. Order'!M1124=\"\",\"\",'1. Order'!M1124)","v":""},{"$f":"IF('1. Order'!N1124=\"\",\"\",'1. Order'!N1124)","v":""},{"$f":"IF('1. Order'!O1124=\"\",\"\",'1. Order'!O1124)","v":{"$error":"#N/A"}},{"$f":"IF('1. Order'!P1124=\"\",\"\",'1. Order'!P1124)","v":{"$error":"#N/A"}},{"$f":"IF('1. Order'!Q1124=\"\",\"\",'1. Order'!Q1124)","v":""},{"$f":"IF('1. Order'!R1124=\"\",\"\",'1. Order'!R1124)","v":""},{"$f":"IF('1. Order'!S1124=\"\",\"\",'1. Order'!S1124)","v":""},{"$f":"IF('1. Order'!V1124=\"\",\"\",'1. Order'!V1124)","v":""},{"$f":"IF('1. Order'!W1124=\"\",\"\",'1. Order'!W1124)","v":""},{"$f":"IF('1. Order'!X1124=\"\",\"\",'1. Order'!X1124)","v":"EUR"},{"$f":"IF('1. Order'!Y1124=\"\",\"\",'1. Order'!Y1124)","v":""},{"$f":"IF('1. Order'!Z1124=\"\",\"\",'1. Order'!Z1124)","v":""},{"$f":"IF('1. Order'!AA1124=\"\",\"\",'1. Order'!AA1124)","v":""},null,{"$f":"IF('1. Order'!AS1124=\"\",\"\",'1. Order'!AS1124)","v":""},{"$f":"IF('1. Order'!AT1124=\"\",\"\",'1. Order'!AT1124)","v":""},null,null,null,null,null,null,null,{"$f":"IF('1. Order'!AX1124=\"\",\"\",'1. Order'!AX1124)","v":""},{"$f":"IF('1. Order'!AY1124=\"\",\"\",'1. Order'!AY1124)","v":""},{"$f":"IF('1. Order'!AZ1124=\"\",\"\",'1. Order'!AZ1124)","v":""},{"$f":"IF('1. Order'!BA1124=\"\",\"\",'1. Order'!BA1124)","v":""},{"$f":"IF('1. Order'!BC1124=\"\",\"\",'1. Order'!BC1124)","v":""},{"$f":"IF('1. Order'!BD1124=\"\",\"\",'1. Order'!BD1124)","v":6},{"$f":"IF('1. Order'!BE1124=\"\",\"\",'1. Order'!BE1124)","v":"None"},{"$f":"IF('1. Order'!BF1124=\"\",\"\",'1. Order'!BF1124)","v":"Parcel"},{"$f":"IF('1. Order'!BG1124=\"\",\"\",'1. Order'!BG1124)","v":"ZWO"}]
[{"$f":"IF('1. Order'!F1125=\"\",\"\",'1. Order'!F1125)","v":""},{"$f":"IF('1. Order'!G1125=\"\",\"\",'1. Order'!G1125)","v":""},{"$f":"IF('1. Order'!H1125=\"\",\"\",'1. Order'!H1125)","v":""},{"$f":"IF('1. Order'!I1125=\"\",\"\",'1. Order'!I1125)","v":""},{"$f":"IF('1. Order'!J1125=\"\",\"\",'1. Order'!J1125)","v":""},{"$f":"IF('1. Order'!K1125=\"\",\"\",'1. Order'!K1125)","v":""},{"$f":"IF('1. Order'!L1125=\"\",\"\",'1. Order'!L1125)","v":""},{"$f":"IF('1. Order'!M1125=\"\",\"\",'1. Order'!M1125)","v":""},{"$f":"IF('1. Order'!N1125=\"\",\"\",'1. Order'!N1125)","v":""},{"$f":"IF('1. Order'!O1125=\"\",\"\",'1. Order'!O1125)","v":{"$error":"#N/A"}},{"$f":"IF('1. Order'!P1125=\"\",\"\",'1. Order'!P1125)","v":{"$error":"#N/A"}},{"$f":"IF('1. Order'!Q1125=\"\",\"\",'1. Order'!Q1125)","v":""},{"$f":"IF('1. Order'!R1125=\"\",\"\",'1. Order'!R1125)","v":""},{"$f":"IF('1. Order'!S1125=\"\",\"\",'1. Order'!S1125)","v":""},{"$f":"IF('1. Order'!V1125=\"\",\"\",'1. Order'!V1125)","v":""},{"$f":"IF('1. Order'!W1125=\"\",\"\",'1. Order'!W1125)","v":""},{"$f":"IF('1. Order'!X1125=\"\",\"\",'1. Order'!X1125)","v":"EUR"},{"$f":"IF('1. Order'!Y1125=\"\",\"\",'1. Order'!Y1125)","v":""},{"$f":"IF('1. Order'!Z1125=\"\",\"\",'1. Order'!Z1125)","v":""},{"$f":"IF('1. Order'!AA1125=\"\",\"\",'1. Order'!AA1125)","v":""},null,{"$f":"IF('1. Order'!AS1125=\"\",\"\",'1. Order'!AS1125)","v":""},{"$f":"IF('1. Order'!AT1125=\"\",\"\",'1. Order'!AT1125)","v":""},null,null,null,null,null,null,null,{"$f":"IF('1. Order'!AX1125=\"\",\"\",'1. Order'!AX1125)","v":""},{"$f":"IF('1. Order'!AY1125=\"\",\"\",'1. Order'!AY1125)","v":""},{"$f":"IF('1. Order'!AZ1125=\"\",\"\",'1. Order'!AZ1125)","v":""},{"$f":"IF('1. Order'!BA1125=\"\",\"\",'1. Order'!BA1125)","v":""},{"$f":"IF('1. Order'!BC1125=\"\",\"\",'1. Order'!BC1125)","v":""},{"$f":"IF('1. Order'!BD1125=\"\",\"\",'1. Order'!BD1125)","v":6},{"$f":"IF('1. Order'!BE1125=\"\",\"\",'1. Order'!BE1125)","v":"None"},{"$f":"IF('1. Order'!BF1125=\"\",\"\",'1. Order'!BF1125)","v":"Parcel"},{"$f":"IF('1. Order'!BG1125=\"\",\"\",'1. Order'!BG1125)","v":"ZWO"}]
[{"$f":"IF('1. Order'!F1126=\"\",\"\",'1. Order'!F1126)","v":""},{"$f":"IF('1. Order'!G1126=\"\",\"\",'1. Order'!G1126)","v":""},{"$f":"IF('1. Order'!H1126=\"\",\"\",'1. Order'!H1126)","v":""},{"$f":"IF('1. Order'!I1126=\"\",\"\",'1. Order'!I1126)","v":""},{"$f":"IF('1. Order'!J1126=\"\",\"\",'1. Order'!J1126)","v":""},{"$f":"IF('1. Order'!K1126=\"\",\"\",'1. Order'!K1126)","v":""},{"$f":"IF('1. Order'!L1126=\"\",\"\",'1. Order'!L1126)","v":""},{"$f":"IF('1. Order'!M1126=\"\",\"\",'1. Order'!M1126)","v":""},{"$f":"IF('1. Order'!N1126=\"\",\"\",'1. Order'!N1126)","v":""},{"$f":"IF('1. Order'!O1126=\"\",\"\",'1. Order'!O1126)","v":{"$error":"#N/A"}},{"$f":"IF('1. Order'!P1126=\"\",\"\",'1. Order'!P1126)","v":{"$error":"#N/A"}},{"$f":"IF('1. Order'!Q1126=\"\",\"\",'1. Order'!Q1126)","v":""},{"$f":"IF('1. Order'!R1126=\"\",\"\",'1. Order'!R1126)","v":""},{"$f":"IF('1. Order'!S1126=\"\",\"\",'1. Order'!S1126)","v":""},{"$f":"IF('1. Order'!V1126=\"\",\"\",'1. Order'!V1126)","v":""},{"$f":"IF('1. Order'!W1126=\"\",\"\",'1. Order'!W1126)","v":""},{"$f":"IF('1. Order'!X1126=\"\",\"\",'1. Order'!X1126)","v":"EUR"},{"$f":"IF('1. Order'!Y1126=\"\",\"\",'1. Order'!Y1126)","v":""},{"$f":"IF('1. Order'!Z1126=\"\",\"\",'1. Order'!Z1126)","v":""},{"$f":"IF('1. Order'!AA1126=\"\",\"\",'1. Order'!AA1126)","v":""},null,{"$f":"IF('1. Order'!AS1126=\"\",\"\",'1. Order'!AS1126)","v":""},{"$f":"IF('1. Order'!AT1126=\"\",\"\",'1. Order'!AT1126)","v":""},null,null,null,null,null,null,null,{"$f":"IF('1. Order'!AX1126=\"\",\"\",'1. Order'!AX1126)","v":""},{"$f":"IF('1. Order'!AY1126=\"\",\"\",'1. Order'!AY1126)","v":""},{"$f":"IF('1. Order'!AZ1126=\"\",\"\",'1. Order'!AZ1126)","v":""},{"$f":"IF('1. Order'!BA1126=\"\",\"\",'1. Order'!BA1126)","v":""},{"$f":"IF('1. Order'!BC1126=\"\",\"\",'1. Order'!BC1126)","v":""},{"$f":"IF('1. Order'!BD1126=\"\",\"\",'1. Order'!BD1126)","v":6},{"$f":"IF('1. Order'!BE1126=\"\",\"\",'1. Order'!BE1126)","v":"None"},{"$f":"IF('1. Order'!BF1126=\"\",\"\",'1. Order'!BF1126)","v":"Parcel"},{"$f":"IF('1. Order'!BG1126=\"\",\"\",'1. Order'!BG1126)","v":"ZWO"}]
[{"$f":"IF('1. Order'!F1127=\"\",\"\",'1. Order'!F1127)","v":""},{"$f":"IF('1. Order'!G1127=\"\",\"\",'1. Order'!G1127)","v":""},{"$f":"IF('1. Order'!H1127=\"\",\"\",'1. Order'!H1127)","v":""},{"$f":"IF('1. Order'!I1127=\"\",\"\",'1. Order'!I1127)","v":""},{"$f":"IF('1. Order'!J1127=\"\",\"\",'1. Order'!J1127)","v":""},{"$f":"IF('1. Order'!K1127=\"\",\"\",'1. Order'!K1127)","v":""},{"$f":"IF('1. Order'!L1127=\"\",\"\",'1. Order'!L1127)","v":""},{"$f":"IF('1. Order'!M1127=\"\",\"\",'1. Order'!M1127)","v":""},{"$f":"IF('1. Order'!N1127=\"\",\"\",'1. Order'!N1127)","v":""},{"$f":"IF('1. Order'!O1127=\"\",\"\",'1. Order'!O1127)","v":{"$error":"#N/A"}},{"$f":"IF('1. Order'!P1127=\"\",\"\",'1. Order'!P1127)","v":{"$error":"#N/A"}},{"$f":"IF('1. Order'!Q1127=\"\",\"\",'1. Order'!Q1127)","v":""},{"$f":"IF('1. Order'!R1127=\"\",\"\",'1. Order'!R1127)","v":""},{"$f":"IF('1. Order'!S1127=\"\",\"\",'1. Order'!S1127)","v":""},{"$f":"IF('1. Order'!V1127=\"\",\"\",'1. Order'!V1127)","v":""},{"$f":"IF('1. Order'!W1127=\"\",\"\",'1. Order'!W1127)","v":""},{"$f":"IF('1. Order'!X1127=\"\",\"\",'1. Order'!X1127)","v":"EUR"},{"$f":"IF('1. Order'!Y1127=\"\",\"\",'1. Order'!Y1127)","v":""},{"$f":"IF('1. Order'!Z1127=\"\",\"\",'1. Order'!Z1127)","v":""},{"$f":"IF('1. Order'!AA1127=\"\",\"\",'1. Order'!AA1127)","v":""},null,{"$f":"IF('1. Order'!AS1127=\"\",\"\",'1. Order'!AS1127)","v":""},{"$f":"IF('1. Order'!AT1127=\"\",\"\",'1. Order'!AT1127)","v":""},null,null,null,null,null,null,null,{"$f":"IF('1. Order'!AX1127=\"\",\"\",'1. Order'!AX1127)","v":""},{"$f":"IF('1. Order'!AY1127=\"\",\"\",'1. Order'!AY1127)","v":""},{"$f":"IF('1. Order'!AZ1127=\"\",\"\",'1. Order'!AZ1127)","v":""},{"$f":"IF('1. Order'!BA1127=\"\",\"\",'1. Order'!BA1127)","v":""},{"$f":"IF('1. Order'!BC1127=\"\",\"\",'1. Order'!BC1127)","v":""},{"$f":"IF('1. Order'!BD1127=\"\",\"\",'1. Order'!BD1127)","v":6},{"$f":"IF('1. Order'!BE1127=\"\",\"\",'1. Order'!BE1127)","v":"None"},{"$f":"IF('1. Order'!BF1127=\"\",\"\",'1. Order'!BF1127)","v":"Parcel"},{"$f":"IF('1. Order'!BG1127=\"\",\"\",'1. Order'!BG1127)","v":"ZWO"}]
[{"$f":"IF('1. Order'!F1128=\"\",\"\",'1. Order'!F1128)","v":""},{"$f":"IF('1. Order'!G1128=\"\",\"\",'1. Order'!G1128)","v":""},{"$f":"IF('1. Order'!H1128=\"\",\"\",'1. Order'!H1128)","v":""},{"$f":"IF('1. Order'!I1128=\"\",\"\",'1. Order'!I1128)","v":""},{"$f":"IF('1. Order'!J1128=\"\",\"\",'1. Order'!J1128)","v":""},{"$f":"IF('1. Order'!K1128=\"\",\"\",'1. Order'!K1128)","v":""},{"$f":"IF('1. Order'!L1128=\"\",\"\",'1. Order'!L1128)","v":""},{"$f":"IF('1. Order'!M1128=\"\",\"\",'1. Order'!M1128)","v":""},{"$f":"IF('1. Order'!N1128=\"\",\"\",'1. Order'!N1128)","v":""},{"$f":"IF('1. Order'!O1128=\"\",\"\",'1. Order'!O1128)","v":{"$error":"#N/A"}},{"$f":"IF('1. Order'!P1128=\"\",\"\",'1. Order'!P1128)","v":{"$error":"#N/A"}},{"$f":"IF('1. Order'!Q1128=\"\",\"\",'1. Order'!Q1128)","v":""},{"$f":"IF('1. Order'!R1128=\"\",\"\",'1. Order'!R1128)","v":""},{"$f":"IF('1. Order'!S1128=\"\",\"\",'1. Order'!S1128)","v":""},{"$f":"IF('1. Order'!V1128=\"\",\"\",'1. Order'!V1128)","v":""},{"$f":"IF('1. Order'!W1128=\"\",\"\",'1. Order'!W1128)","v":""},{"$f":"IF('1. Order'!X1128=\"\",\"\",'1. Order'!X1128)","v":"EUR"},{"$f":"IF('1. Order'!Y1128=\"\",\"\",'1. Order'!Y1128)","v":""},{"$f":"IF('1. Order'!Z1128=\"\",\"\",'1. Order'!Z1128)","v":""},{"$f":"IF('1. Order'!AA1128=\"\",\"\",'1. Order'!AA1128)","v":""},null,{"$f":"IF('1. Order'!AS1128=\"\",\"\",'1. Order'!AS1128)","v":""},{"$f":"IF('1. Order'!AT1128=\"\",\"\",'1. Order'!AT1128)","v":""},null,null,null,null,null,null,null,{"$f":"IF('1. Order'!AX1128=\"\",\"\",'1. Order'!AX1128)","v":""},{"$f":"IF('1. Order'!AY1128=\"\",\"\",'1. Order'!AY1128)","v":""},{"$f":"IF('1. Order'!AZ1128=\"\",\"\",'1. Order'!AZ1128)","v":""},{"$f":"IF('1. Order'!BA1128=\"\",\"\",'1. Order'!BA1128)","v":""},{"$f":"IF('1. Order'!BC1128=\"\",\"\",'1. Order'!BC1128)","v":""},{"$f":"IF('1. Order'!BD1128=\"\",\"\",'1. Order'!BD1128)","v":6},{"$f":"IF('1. Order'!BE1128=\"\",\"\",'1. Order'!BE1128)","v":"None"},{"$f":"IF('1. Order'!BF1128=\"\",\"\",'1. Order'!BF1128)","v":"Parcel"},{"$f":"IF('1. Order'!BG1128=\"\",\"\",'1. Order'!BG1128)","v":"ZWO"}]
[{"$f":"IF('1. Order'!F1129=\"\",\"\",'1. Order'!F1129)","v":""},{"$f":"IF('1. Order'!G1129=\"\",\"\",'1. Order'!G1129)","v":""},{"$f":"IF('1. Order'!H1129=\"\",\"\",'1. Order'!H1129)","v":""},{"$f":"IF('1. Order'!I1129=\"\",\"\",'1. Order'!I1129)","v":""},{"$f":"IF('1. Order'!J1129=\"\",\"\",'1. Order'!J1129)","v":""},{"$f":"IF('1. Order'!K1129=\"\",\"\",'1. Order'!K1129)","v":""},{"$f":"IF('1. Order'!L1129=\"\",\"\",'1. Order'!L1129)","v":""},{"$f":"IF('1. Order'!M1129=\"\",\"\",'1. Order'!M1129)","v":""},{"$f":"IF('1. Order'!N1129=\"\",\"\",'1. Order'!N1129)","v":""},{"$f":"IF('1. Order'!O1129=\"\",\"\",'1. Order'!O1129)","v":{"$error":"#N/A"}},{"$f":"IF('1. Order'!P1129=\"\",\"\",'1. Order'!P1129)","v":{"$error":"#N/A"}},{"$f":"IF('1. Order'!Q1129=\"\",\"\",'1. Order'!Q1129)","v":""},{"$f":"IF('1. Order'!R1129=\"\",\"\",'1. Order'!R1129)","v":""},{"$f":"IF('1. Order'!S1129=\"\",\"\",'1. Order'!S1129)","v":""},{"$f":"IF('1. Order'!V1129=\"\",\"\",'1. Order'!V1129)","v":""},{"$f":"IF('1. Order'!W1129=\"\",\"\",'1. Order'!W1129)","v":""},{"$f":"IF('1. Order'!X1129=\"\",\"\",'1. Order'!X1129)","v":"EUR"},{"$f":"IF('1. Order'!Y1129=\"\",\"\",'1. Order'!Y1129)","v":""},{"$f":"IF('1. Order'!Z1129=\"\",\"\",'1. Order'!Z1129)","v":""},{"$f":"IF('1. Order'!AA1129=\"\",\"\",'1. Order'!AA1129)","v":""},null,{"$f":"IF('1. Order'!AS1129=\"\",\"\",'1. Order'!AS1129)","v":""},{"$f":"IF('1. Order'!AT1129=\"\",\"\",'1. Order'!AT1129)","v":""},null,null,null,null,null,null,null,{"$f":"IF('1. Order'!AX1129=\"\",\"\",'1. Order'!AX1129)","v":""},{"$f":"IF('1. Order'!AY1129=\"\",\"\",'1. Order'!AY1129)","v":""},{"$f":"IF('1. Order'!AZ1129=\"\",\"\",'1. Order'!AZ1129)","v":""},{"$f":"IF('1. Order'!BA1129=\"\",\"\",'1. Order'!BA1129)","v":""},{"$f":"IF('1. Order'!BC1129=\"\",\"\",'1. Order'!BC1129)","v":""},{"$f":"IF('1. Order'!BD1129=\"\",\"\",'1. Order'!BD1129)","v":6},{"$f":"IF('1. Order'!BE1129=\"\",\"\",'1. Order'!BE1129)","v":"None"},{"$f":"IF('1. Order'!BF1129=\"\",\"\",'1. Order'!BF1129)","v":"Parcel"},{"$f":"IF('1. Order'!BG1129=\"\",\"\",'1. Order'!BG1129)","v":"ZWO"}]
[{"$f":"IF('1. Order'!F1130=\"\",\"\",'1. Order'!F1130)","v":""},{"$f":"IF('1. Order'!G1130=\"\",\"\",'1. Order'!G1130)","v":""},{"$f":"IF('1. Order'!H1130=\"\",\"\",'1. Order'!H1130)","v":""},{"$f":"IF('1. Order'!I1130=\"\",\"\",'1. Order'!I1130)","v":""},{"$f":"IF('1. Order'!J1130=\"\",\"\",'1. Order'!J1130)","v":""},{"$f":"IF('1. Order'!K1130=\"\",\"\",'1. Order'!K1130)","v":""},{"$f":"IF('1. Order'!L1130=\"\",\"\",'1. Order'!L1130)","v":""},{"$f":"IF('1. Order'!M1130=\"\",\"\",'1. Order'!M1130)","v":""},{"$f":"IF('1. Order'!N1130=\"\",\"\",'1. Order'!N1130)","v":""},{"$f":"IF('1. Order'!O1130=\"\",\"\",'1. Order'!O1130)","v":{"$error":"#N/A"}},{"$f":"IF('1. Order'!P1130=\"\",\"\",'1. Order'!P1130)","v":{"$error":"#N/A"}},{"$f":"IF('1. Order'!Q1130=\"\",\"\",'1. Order'!Q1130)","v":""},{"$f":"IF('1. Order'!R1130=\"\",\"\",'1. Order'!R1130)","v":""},{"$f":"IF('1. Order'!S1130=\"\",\"\",'1. Order'!S1130)","v":""},{"$f":"IF('1. Order'!V1130=\"\",\"\",'1. Order'!V1130)","v":""},{"$f":"IF('1. Order'!W1130=\"\",\"\",'1. Order'!W1130)","v":""},{"$f":"IF('1. Order'!X1130=\"\",\"\",'1. Order'!X1130)","v":"EUR"},{"$f":"IF('1. Order'!Y1130=\"\",\"\",'1. Order'!Y1130)","v":""},{"$f":"IF('1. Order'!Z1130=\"\",\"\",'1. Order'!Z1130)","v":""},{"$f":"IF('1. Order'!AA1130=\"\",\"\",'1. Order'!AA1130)","v":""},null,{"$f":"IF('1. Order'!AS1130=\"\",\"\",'1. Order'!AS1130)","v":""},{"$f":"IF('1. Order'!AT1130=\"\",\"\",'1. Order'!AT1130)","v":""},null,null,null,null,null,null,null,{"$f":"IF('1. Order'!AX1130=\"\",\"\",'1. Order'!AX1130)","v":""},{"$f":"IF('1. Order'!AY1130=\"\",\"\",'1. Order'!AY1130)","v":""},{"$f":"IF('1. Order'!AZ1130=\"\",\"\",'1. Order'!AZ1130)","v":""},{"$f":"IF('1. Order'!BA1130=\"\",\"\",'1. Order'!BA1130)","v":""},{"$f":"IF('1. Order'!BC1130=\"\",\"\",'1. Order'!BC1130)","v":""},{"$f":"IF('1. Order'!BD1130=\"\",\"\",'1. Order'!BD1130)","v":6},{"$f":"IF('1. Order'!BE1130=\"\",\"\",'1. Order'!BE1130)","v":"None"},{"$f":"IF('1. Order'!BF1130=\"\",\"\",'1. Order'!BF1130)","v":"Parcel"},{"$f":"IF('1. Order'!BG1130=\"\",\"\",'1. Order'!BG1130)","v":"ZWO"}]
[{"$f":"IF('1. Order'!F1131=\"\",\"\",'1. Order'!F1131)","v":""},{"$f":"IF('1. Order'!G1131=\"\",\"\",'1. Order'!G1131)","v":""},{"$f":"IF('1. Order'!H1131=\"\",\"\",'1. Order'!H1131)","v":""},{"$f":"IF('1. Order'!I1131=\"\",\"\",'1. Order'!I1131)","v":""},{"$f":"IF('1. Order'!J1131=\"\",\"\",'1. Order'!J1131)","v":""},{"$f":"IF('1. Order'!K1131=\"\",\"\",'1. Order'!K1131)","v":""},{"$f":"IF('1. Order'!L1131=\"\",\"\",'1. Order'!L1131)","v":""},{"$f":"IF('1. Order'!M1131=\"\",\"\",'1. Order'!M1131)","v":""},{"$f":"IF('1. Order'!N1131=\"\",\"\",'1. Order'!N1131)","v":""},{"$f":"IF('1. Order'!O1131=\"\",\"\",'1. Order'!O1131)","v":{"$error":"#N/A"}},{"$f":"IF('1. Order'!P1131=\"\",\"\",'1. Order'!P1131)","v":{"$error":"#N/A"}},{"$f":"IF('1. Order'!Q1131=\"\",\"\",'1. Order'!Q1131)","v":""},{"$f":"IF('1. Order'!R1131=\"\",\"\",'1. Order'!R1131)","v":""},{"$f":"IF('1. Order'!S1131=\"\",\"\",'1. Order'!S1131)","v":""},{"$f":"IF('1. Order'!V1131=\"\",\"\",'1. Order'!V1131)","v":""},{"$f":"IF('1. Order'!W1131=\"\",\"\",'1. Order'!W1131)","v":""},{"$f":"IF('1. Order'!X1131=\"\",\"\",'1. Order'!X1131)","v":"EUR"},{"$f":"IF('1. Order'!Y1131=\"\",\"\",'1. Order'!Y1131)","v":""},{"$f":"IF('1. Order'!Z1131=\"\",\"\",'1. Order'!Z1131)","v":""},{"$f":"IF('1. Order'!AA1131=\"\",\"\",'1. Order'!AA1131)","v":""},null,{"$f":"IF('1. Order'!AS1131=\"\",\"\",'1. Order'!AS1131)","v":""},{"$f":"IF('1. Order'!AT1131=\"\",\"\",'1. Order'!AT1131)","v":""},null,null,null,null,null,null,null,{"$f":"IF('1. Order'!AX1131=\"\",\"\",'1. Order'!AX1131)","v":""},{"$f":"IF('1. Order'!AY1131=\"\",\"\",'1. Order'!AY1131)","v":""},{"$f":"IF('1. Order'!AZ1131=\"\",\"\",'1. Order'!AZ1131)","v":""},{"$f":"IF('1. Order'!BA1131=\"\",\"\",'1. Order'!BA1131)","v":""},{"$f":"IF('1. Order'!BC1131=\"\",\"\",'1. Order'!BC1131)","v":""},{"$f":"IF('1. Order'!BD1131=\"\",\"\",'1. Order'!BD1131)","v":6},{"$f":"IF('1. Order'!BE1131=\"\",\"\",'1. Order'!BE1131)","v":"None"},{"$f":"IF('1. Order'!BF1131=\"\",\"\",'1. Order'!BF1131)","v":"Parcel"},{"$f":"IF('1. Order'!BG1131=\"\",\"\",'1. Order'!BG1131)","v":"ZWO"}]
[{"$f":"IF('1. Order'!F1132=\"\",\"\",'1. Order'!F1132)","v":""},{"$f":"IF('1. Order'!G1132=\"\",\"\",'1. Order'!G1132)","v":""},{"$f":"IF('1. Order'!H1132=\"\",\"\",'1. Order'!H1132)","v":""},{"$f":"IF('1. Order'!I1132=\"\",\"\",'1. Order'!I1132)","v":""},{"$f":"IF('1. Order'!J1132=\"\",\"\",'1. Order'!J1132)","v":""},{"$f":"IF('1. Order'!K1132=\"\",\"\",'1. Order'!K1132)","v":""},{"$f":"IF('1. Order'!L1132=\"\",\"\",'1. Order'!L1132)","v":""},{"$f":"IF('1. Order'!M1132=\"\",\"\",'1. Order'!M1132)","v":""},{"$f":"IF('1. Order'!N1132=\"\",\"\",'1. Order'!N1132)","v":""},{"$f":"IF('1. Order'!O1132=\"\",\"\",'1. Order'!O1132)","v":{"$error":"#N/A"}},{"$f":"IF('1. Order'!P1132=\"\",\"\",'1. Order'!P1132)","v":{"$error":"#N/A"}},{"$f":"IF('1. Order'!Q1132=\"\",\"\",'1. Order'!Q1132)","v":""},{"$f":"IF('1. Order'!R1132=\"\",\"\",'1. Order'!R1132)","v":""},{"$f":"IF('1. Order'!S1132=\"\",\"\",'1. Order'!S1132)","v":""},{"$f":"IF('1. Order'!V1132=\"\",\"\",'1. Order'!V1132)","v":""},{"$f":"IF('1. Order'!W1132=\"\",\"\",'1. Order'!W1132)","v":""},{"$f":"IF('1. Order'!X1132=\"\",\"\",'1. Order'!X1132)","v":"EUR"},{"$f":"IF('1. Order'!Y1132=\"\",\"\",'1. Order'!Y1132)","v":""},{"$f":"IF('1. Order'!Z1132=\"\",\"\",'1. Order'!Z1132)","v":""},{"$f":"IF('1. Order'!AA1132=\"\",\"\",'1. Order'!AA1132)","v":""},null,{"$f":"IF('1. Order'!AS1132=\"\",\"\",'1. Order'!AS1132)","v":""},{"$f":"IF('1. Order'!AT1132=\"\",\"\",'1. Order'!AT1132)","v":""},null,null,null,null,null,null,null,{"$f":"IF('1. Order'!AX1132=\"\",\"\",'1. Order'!AX1132)","v":""},{"$f":"IF('1. Order'!AY1132=\"\",\"\",'1. Order'!AY1132)","v":""},{"$f":"IF('1. Order'!AZ1132=\"\",\"\",'1. Order'!AZ1132)","v":""},{"$f":"IF('1. Order'!BA1132=\"\",\"\",'1. Order'!BA1132)","v":""},{"$f":"IF('1. Order'!BC1132=\"\",\"\",'1. Order'!BC1132)","v":""},{"$f":"IF('1. Order'!BD1132=\"\",\"\",'1. Order'!BD1132)","v":6},{"$f":"IF('1. Order'!BE1132=\"\",\"\",'1. Order'!BE1132)","v":"None"},{"$f":"IF('1. Order'!BF1132=\"\",\"\",'1. Order'!BF1132)","v":"Parcel"},{"$f":"IF('1. Order'!BG1132=\"\",\"\",'1. Order'!BG1132)","v":"ZWO"}]
[{"$f":"IF('1. Order'!F1133=\"\",\"\",'1. Order'!F1133)","v":""},{"$f":"IF('1. Order'!G1133=\"\",\"\",'1. Order'!G1133)","v":""},{"$f":"IF('1. Order'!H1133=\"\",\"\",'1. Order'!H1133)","v":""},{"$f":"IF('1. Order'!I1133=\"\",\"\",'1. Order'!I1133)","v":""},{"$f":"IF('1. Order'!J1133=\"\",\"\",'1. Order'!J1133)","v":""},{"$f":"IF('1. Order'!K1133=\"\",\"\",'1. Order'!K1133)","v":""},{"$f":"IF('1. Order'!L1133=\"\",\"\",'1. Order'!L1133)","v":""},{"$f":"IF('1. Order'!M1133=\"\",\"\",'1. Order'!M1133)","v":""},{"$f":"IF('1. Order'!N1133=\"\",\"\",'1. Order'!N1133)","v":""},{"$f":"IF('1. Order'!O1133=\"\",\"\",'1. Order'!O1133)","v":{"$error":"#N/A"}},{"$f":"IF('1. Order'!P1133=\"\",\"\",'1. Order'!P1133)","v":{"$error":"#N/A"}},{"$f":"IF('1. Order'!Q1133=\"\",\"\",'1. Order'!Q1133)","v":""},{"$f":"IF('1. Order'!R1133=\"\",\"\",'1. Order'!R1133)","v":""},{"$f":"IF('1. Order'!S1133=\"\",\"\",'1. Order'!S1133)","v":""},{"$f":"IF('1. Order'!V1133=\"\",\"\",'1. Order'!V1133)","v":""},{"$f":"IF('1. Order'!W1133=\"\",\"\",'1. Order'!W1133)","v":""},{"$f":"IF('1. Order'!X1133=\"\",\"\",'1. Order'!X1133)","v":"EUR"},{"$f":"IF('1. Order'!Y1133=\"\",\"\",'1. Order'!Y1133)","v":""},{"$f":"IF('1. Order'!Z1133=\"\",\"\",'1. Order'!Z1133)","v":""},{"$f":"IF('1. Order'!AA1133=\"\",\"\",'1. Order'!AA1133)","v":""},null,{"$f":"IF('1. Order'!AS1133=\"\",\"\",'1. Order'!AS1133)","v":""},{"$f":"IF('1. Order'!AT1133=\"\",\"\",'1. Order'!AT1133)","v":""},null,null,null,null,null,null,null,{"$f":"IF('1. Order'!AX1133=\"\",\"\",'1. Order'!AX1133)","v":""},{"$f":"IF('1. Order'!AY1133=\"\",\"\",'1. Order'!AY1133)","v":""},{"$f":"IF('1. Order'!AZ1133=\"\",\"\",'1. Order'!AZ1133)","v":""},{"$f":"IF('1. Order'!BA1133=\"\",\"\",'1. Order'!BA1133)","v":""},{"$f":"IF('1. Order'!BC1133=\"\",\"\",'1. Order'!BC1133)","v":""},{"$f":"IF('1. Order'!BD1133=\"\",\"\",'1. Order'!BD1133)","v":6},{"$f":"IF('1. Order'!BE1133=\"\",\"\",'1. Order'!BE1133)","v":"None"},{"$f":"IF('1. Order'!BF1133=\"\",\"\",'1. Order'!BF1133)","v":"Parcel"},{"$f":"IF('1. Order'!BG1133=\"\",\"\",'1. Order'!BG1133)","v":"ZWO"}]
[{"$f":"IF('1. Order'!F1134=\"\",\"\",'1. Order'!F1134)","v":""},{"$f":"IF('1. Order'!G1134=\"\",\"\",'1. Order'!G1134)","v":""},{"$f":"IF('1. Order'!H1134=\"\",\"\",'1. Order'!H1134)","v":""},{"$f":"IF('1. Order'!I1134=\"\",\"\",'1. Order'!I1134)","v":""},{"$f":"IF('1. Order'!J1134=\"\",\"\",'1. Order'!J1134)","v":""},{"$f":"IF('1. Order'!K1134=\"\",\"\",'1. Order'!K1134)","v":""},{"$f":"IF('1. Order'!L1134=\"\",\"\",'1. Order'!L1134)","v":""},{"$f":"IF('1. Order'!M1134=\"\",\"\",'1. Order'!M1134)","v":""},{"$f":"IF('1. Order'!N1134=\"\",\"\",'1. Order'!N1134)","v":""},{"$f":"IF('1. Order'!O1134=\"\",\"\",'1. Order'!O1134)","v":{"$error":"#N/A"}},{"$f":"IF('1. Order'!P1134=\"\",\"\",'1. Order'!P1134)","v":{"$error":"#N/A"}},{"$f":"IF('1. Order'!Q1134=\"\",\"\",'1. Order'!Q1134)","v":""},{"$f":"IF('1. Order'!R1134=\"\",\"\",'1. Order'!R1134)","v":""},{"$f":"IF('1. Order'!S1134=\"\",\"\",'1. Order'!S1134)","v":""},{"$f":"IF('1. Order'!V1134=\"\",\"\",'1. Order'!V1134)","v":""},{"$f":"IF('1. Order'!W1134=\"\",\"\",'1. Order'!W1134)","v":""},{"$f":"IF('1. Order'!X1134=\"\",\"\",'1. Order'!X1134)","v":"EUR"},{"$f":"IF('1. Order'!Y1134=\"\",\"\",'1. Order'!Y1134)","v":""},{"$f":"IF('1. Order'!Z1134=\"\",\"\",'1. Order'!Z1134)","v":""},{"$f":"IF('1. Order'!AA1134=\"\",\"\",'1. Order'!AA1134)","v":""},null,{"$f":"IF('1. Order'!AS1134=\"\",\"\",'1. Order'!AS1134)","v":""},{"$f":"IF('1. Order'!AT1134=\"\",\"\",'1. Order'!AT1134)","v":""},null,null,null,null,null,null,null,{"$f":"IF('1. Order'!AX1134=\"\",\"\",'1. Order'!AX1134)","v":""},{"$f":"IF('1. Order'!AY1134=\"\",\"\",'1. Order'!AY1134)","v":""},{"$f":"IF('1. Order'!AZ1134=\"\",\"\",'1. Order'!AZ1134)","v":""},{"$f":"IF('1. Order'!BA1134=\"\",\"\",'1. Order'!BA1134)","v":""},{"$f":"IF('1. Order'!BC1134=\"\",\"\",'1. Order'!BC1134)","v":""},{"$f":"IF('1. Order'!BD1134=\"\",\"\",'1. Order'!BD1134)","v":6},{"$f":"IF('1. Order'!BE1134=\"\",\"\",'1. Order'!BE1134)","v":"None"},{"$f":"IF('1. Order'!BF1134=\"\",\"\",'1. Order'!BF1134)","v":"Parcel"},{"$f":"IF('1. Order'!BG1134=\"\",\"\",'1. Order'!BG1134)","v":"ZWO"}]
[{"$f":"IF('1. Order'!F1135=\"\",\"\",'1. Order'!F1135)","v":""},{"$f":"IF('1. Order'!G1135=\"\",\"\",'1. Order'!G1135)","v":""},{"$f":"IF('1. Order'!H1135=\"\",\"\",'1. Order'!H1135)","v":""},{"$f":"IF('1. Order'!I1135=\"\",\"\",'1. Order'!I1135)","v":""},{"$f":"IF('1. Order'!J1135=\"\",\"\",'1. Order'!J1135)","v":""},{"$f":"IF('1. Order'!K1135=\"\",\"\",'1. Order'!K1135)","v":""},{"$f":"IF('1. Order'!L1135=\"\",\"\",'1. Order'!L1135)","v":""},{"$f":"IF('1. Order'!M1135=\"\",\"\",'1. Order'!M1135)","v":""},{"$f":"IF('1. Order'!N1135=\"\",\"\",'1. Order'!N1135)","v":""},{"$f":"IF('1. Order'!O1135=\"\",\"\",'1. Order'!O1135)","v":{"$error":"#N/A"}},{"$f":"IF('1. Order'!P1135=\"\",\"\",'1. Order'!P1135)","v":{"$error":"#N/A"}},{"$f":"IF('1. Order'!Q1135=\"\",\"\",'1. Order'!Q1135)","v":""},{"$f":"IF('1. Order'!R1135=\"\",\"\",'1. Order'!R1135)","v":""},{"$f":"IF('1. Order'!S1135=\"\",\"\",'1. Order'!S1135)","v":""},{"$f":"IF('1. Order'!V1135=\"\",\"\",'1. Order'!V1135)","v":""},{"$f":"IF('1. Order'!W1135=\"\",\"\",'1. Order'!W1135)","v":""},{"$f":"IF('1. Order'!X1135=\"\",\"\",'1. Order'!X1135)","v":"EUR"},{"$f":"IF('1. Order'!Y1135=\"\",\"\",'1. Order'!Y1135)","v":""},{"$f":"IF('1. Order'!Z1135=\"\",\"\",'1. Order'!Z1135)","v":""},{"$f":"IF('1. Order'!AA1135=\"\",\"\",'1. Order'!AA1135)","v":""},null,{"$f":"IF('1. Order'!AS1135=\"\",\"\",'1. Order'!AS1135)","v":""},{"$f":"IF('1. Order'!AT1135=\"\",\"\",'1. Order'!AT1135)","v":""},null,null,null,null,null,null,null,{"$f":"IF('1. Order'!AX1135=\"\",\"\",'1. Order'!AX1135)","v":""},{"$f":"IF('1. Order'!AY1135=\"\",\"\",'1. Order'!AY1135)","v":""},{"$f":"IF('1. Order'!AZ1135=\"\",\"\",'1. Order'!AZ1135)","v":""},{"$f":"IF('1. Order'!BA1135=\"\",\"\",'1. Order'!BA1135)","v":""},{"$f":"IF('1. Order'!BC1135=\"\",\"\",'1. Order'!BC1135)","v":""},{"$f":"IF('1. Order'!BD1135=\"\",\"\",'1. Order'!BD1135)","v":6},{"$f":"IF('1. Order'!BE1135=\"\",\"\",'1. Order'!BE1135)","v":"None"},{"$f":"IF('1. Order'!BF1135=\"\",\"\",'1. Order'!BF1135)","v":"Parcel"},{"$f":"IF('1. Order'!BG1135=\"\",\"\",'1. Order'!BG1135)","v":"ZWO"}]
[{"$f":"IF('1. Order'!F1136=\"\",\"\",'1. Order'!F1136)","v":""},{"$f":"IF('1. Order'!G1136=\"\",\"\",'1. Order'!G1136)","v":""},{"$f":"IF('1. Order'!H1136=\"\",\"\",'1. Order'!H1136)","v":""},{"$f":"IF('1. Order'!I1136=\"\",\"\",'1. Order'!I1136)","v":""},{"$f":"IF('1. Order'!J1136=\"\",\"\",'1. Order'!J1136)","v":""},{"$f":"IF('1. Order'!K1136=\"\",\"\",'1. Order'!K1136)","v":""},{"$f":"IF('1. Order'!L1136=\"\",\"\",'1. Order'!L1136)","v":""},{"$f":"IF('1. Order'!M1136=\"\",\"\",'1. Order'!M1136)","v":""},{"$f":"IF('1. Order'!N1136=\"\",\"\",'1. Order'!N1136)","v":""},{"$f":"IF('1. Order'!O1136=\"\",\"\",'1. Order'!O1136)","v":{"$error":"#N/A"}},{"$f":"IF('1. Order'!P1136=\"\",\"\",'1. Order'!P1136)","v":{"$error":"#N/A"}},{"$f":"IF('1. Order'!Q1136=\"\",\"\",'1. Order'!Q1136)","v":""},{"$f":"IF('1. Order'!R1136=\"\",\"\",'1. Order'!R1136)","v":""},{"$f":"IF('1. Order'!S1136=\"\",\"\",'1. Order'!S1136)","v":""},{"$f":"IF('1. Order'!V1136=\"\",\"\",'1. Order'!V1136)","v":""},{"$f":"IF('1. Order'!W1136=\"\",\"\",'1. Order'!W1136)","v":""},{"$f":"IF('1. Order'!X1136=\"\",\"\",'1. Order'!X1136)","v":"EUR"},{"$f":"IF('1. Order'!Y1136=\"\",\"\",'1. Order'!Y1136)","v":""},{"$f":"IF('1. Order'!Z1136=\"\",\"\",'1. Order'!Z1136)","v":""},{"$f":"IF('1. Order'!AA1136=\"\",\"\",'1. Order'!AA1136)","v":""},null,{"$f":"IF('1. Order'!AS1136=\"\",\"\",'1. Order'!AS1136)","v":""},{"$f":"IF('1. Order'!AT1136=\"\",\"\",'1. Order'!AT1136)","v":""},null,null,null,null,null,null,null,{"$f":"IF('1. Order'!AX1136=\"\",\"\",'1. Order'!AX1136)","v":""},{"$f":"IF('1. Order'!AY1136=\"\",\"\",'1. Order'!AY1136)","v":""},{"$f":"IF('1. Order'!AZ1136=\"\",\"\",'1. Order'!AZ1136)","v":""},{"$f":"IF('1. Order'!BA1136=\"\",\"\",'1. Order'!BA1136)","v":""},{"$f":"IF('1. Order'!BC1136=\"\",\"\",'1. Order'!BC1136)","v":""},{"$f":"IF('1. Order'!BD1136=\"\",\"\",'1. Order'!BD1136)","v":6},{"$f":"IF('1. Order'!BE1136=\"\",\"\",'1. Order'!BE1136)","v":"None"},{"$f":"IF('1. Order'!BF1136=\"\",\"\",'1. Order'!BF1136)","v":"Parcel"},{"$f":"IF('1. Order'!BG1136=\"\",\"\",'1. Order'!BG1136)","v":"ZWO"}]
[{"$f":"IF('1. Order'!F1137=\"\",\"\",'1. Order'!F1137)","v":""},{"$f":"IF('1. Order'!G1137=\"\",\"\",'1. Order'!G1137)","v":""},{"$f":"IF('1. Order'!H1137=\"\",\"\",'1. Order'!H1137)","v":""},{"$f":"IF('1. Order'!I1137=\"\",\"\",'1. Order'!I1137)","v":""},{"$f":"IF('1. Order'!J1137=\"\",\"\",'1. Order'!J1137)","v":""},{"$f":"IF('1. Order'!K1137=\"\",\"\",'1. Order'!K1137)","v":""},{"$f":"IF('1. Order'!L1137=\"\",\"\",'1. Order'!L1137)","v":""},{"$f":"IF('1. Order'!M1137=\"\",\"\",'1. Order'!M1137)","v":""},{"$f":"IF('1. Order'!N1137=\"\",\"\",'1. Order'!N1137)","v":""},{"$f":"IF('1. Order'!O1137=\"\",\"\",'1. Order'!O1137)","v":{"$error":"#N/A"}},{"$f":"IF('1. Order'!P1137=\"\",\"\",'1. Order'!P1137)","v":{"$error":"#N/A"}},{"$f":"IF('1. Order'!Q1137=\"\",\"\",'1. Order'!Q1137)","v":""},{"$f":"IF('1. Order'!R1137=\"\",\"\",'1. Order'!R1137)","v":""},{"$f":"IF('1. Order'!S1137=\"\",\"\",'1. Order'!S1137)","v":""},{"$f":"IF('1. Order'!V1137=\"\",\"\",'1. Order'!V1137)","v":""},{"$f":"IF('1. Order'!W1137=\"\",\"\",'1. Order'!W1137)","v":""},{"$f":"IF('1. Order'!X1137=\"\",\"\",'1. Order'!X1137)","v":"EUR"},{"$f":"IF('1. Order'!Y1137=\"\",\"\",'1. Order'!Y1137)","v":""},{"$f":"IF('1. Order'!Z1137=\"\",\"\",'1. Order'!Z1137)","v":""},{"$f":"IF('1. Order'!AA1137=\"\",\"\",'1. Order'!AA1137)","v":""},null,{"$f":"IF('1. Order'!AS1137=\"\",\"\",'1. Order'!AS1137)","v":""},{"$f":"IF('1. Order'!AT1137=\"\",\"\",'1. Order'!AT1137)","v":""},null,null,null,null,null,null,null,{"$f":"IF('1. Order'!AX1137=\"\",\"\",'1. Order'!AX1137)","v":""},{"$f":"IF('1. Order'!AY1137=\"\",\"\",'1. Order'!AY1137)","v":""},{"$f":"IF('1. Order'!AZ1137=\"\",\"\",'1. Order'!AZ1137)","v":""},{"$f":"IF('1. Order'!BA1137=\"\",\"\",'1. Order'!BA1137)","v":""},{"$f":"IF('1. Order'!BC1137=\"\",\"\",'1. Order'!BC1137)","v":""},{"$f":"IF('1. Order'!BD1137=\"\",\"\",'1. Order'!BD1137)","v":6},{"$f":"IF('1. Order'!BE1137=\"\",\"\",'1. Order'!BE1137)","v":"None"},{"$f":"IF('1. Order'!BF1137=\"\",\"\",'1. Order'!BF1137)","v":"Parcel"},{"$f":"IF('1. Order'!BG1137=\"\",\"\",'1. Order'!BG1137)","v":"ZWO"}]
[{"$f":"IF('1. Order'!F1138=\"\",\"\",'1. Order'!F1138)","v":""},{"$f":"IF('1. Order'!G1138=\"\",\"\",'1. Order'!G1138)","v":""},{"$f":"IF('1. Order'!H1138=\"\",\"\",'1. Order'!H1138)","v":""},{"$f":"IF('1. Order'!I1138=\"\",\"\",'1. Order'!I1138)","v":""},{"$f":"IF('1. Order'!J1138=\"\",\"\",'1. Order'!J1138)","v":""},{"$f":"IF('1. Order'!K1138=\"\",\"\",'1. Order'!K1138)","v":""},{"$f":"IF('1. Order'!L1138=\"\",\"\",'1. Order'!L1138)","v":""},{"$f":"IF('1. Order'!M1138=\"\",\"\",'1. Order'!M1138)","v":""},{"$f":"IF('1. Order'!N1138=\"\",\"\",'1. Order'!N1138)","v":""},{"$f":"IF('1. Order'!O1138=\"\",\"\",'1. Order'!O1138)","v":{"$error":"#N/A"}},{"$f":"IF('1. Order'!P1138=\"\",\"\",'1. Order'!P1138)","v":{"$error":"#N/A"}},{"$f":"IF('1. Order'!Q1138=\"\",\"\",'1. Order'!Q1138)","v":""},{"$f":"IF('1. Order'!R1138=\"\",\"\",'1. Order'!R1138)","v":""},{"$f":"IF('1. Order'!S1138=\"\",\"\",'1. Order'!S1138)","v":""},{"$f":"IF('1. Order'!V1138=\"\",\"\",'1. Order'!V1138)","v":""},{"$f":"IF('1. Order'!W1138=\"\",\"\",'1. Order'!W1138)","v":""},{"$f":"IF('1. Order'!X1138=\"\",\"\",'1. Order'!X1138)","v":"EUR"},{"$f":"IF('1. Order'!Y1138=\"\",\"\",'1. Order'!Y1138)","v":""},{"$f":"IF('1. Order'!Z1138=\"\",\"\",'1. Order'!Z1138)","v":""},{"$f":"IF('1. Order'!AA1138=\"\",\"\",'1. Order'!AA1138)","v":""},null,{"$f":"IF('1. Order'!AS1138=\"\",\"\",'1. Order'!AS1138)","v":""},{"$f":"IF('1. Order'!AT1138=\"\",\"\",'1. Order'!AT1138)","v":""},null,null,null,null,null,null,null,{"$f":"IF('1. Order'!AX1138=\"\",\"\",'1. Order'!AX1138)","v":""},{"$f":"IF('1. Order'!AY1138=\"\",\"\",'1. Order'!AY1138)","v":""},{"$f":"IF('1. Order'!AZ1138=\"\",\"\",'1. Order'!AZ1138)","v":""},{"$f":"IF('1. Order'!BA1138=\"\",\"\",'1. Order'!BA1138)","v":""},{"$f":"IF('1. Order'!BC1138=\"\",\"\",'1. Order'!BC1138)","v":""},{"$f":"IF('1. Order'!BD1138=\"\",\"\",'1. Order'!BD1138)","v":6},{"$f":"IF('1. Order'!BE1138=\"\",\"\",'1. Order'!BE1138)","v":"None"},{"$f":"IF('1. Order'!BF1138=\"\",\"\",'1. Order'!BF1138)","v":"Parcel"},{"$f":"IF('1. Order'!BG1138=\"\",\"\",'1. Order'!BG1138)","v":"ZWO"}]
[{"$f":"IF('1. Order'!F1139=\"\",\"\",'1. Order'!F1139)","v":""},{"$f":"IF('1. Order'!G1139=\"\",\"\",'1. Order'!G1139)","v":""},{"$f":"IF('1. Order'!H1139=\"\",\"\",'1. Order'!H1139)","v":""},{"$f":"IF('1. Order'!I1139=\"\",\"\",'1. Order'!I1139)","v":""},{"$f":"IF('1. Order'!J1139=\"\",\"\",'1. Order'!J1139)","v":""},{"$f":"IF('1. Order'!K1139=\"\",\"\",'1. Order'!K1139)","v":""},{"$f":"IF('1. Order'!L1139=\"\",\"\",'1. Order'!L1139)","v":""},{"$f":"IF('1. Order'!M1139=\"\",\"\",'1. Order'!M1139)","v":""},{"$f":"IF('1. Order'!N1139=\"\",\"\",'1. Order'!N1139)","v":""},{"$f":"IF('1. Order'!O1139=\"\",\"\",'1. Order'!O1139)","v":{"$error":"#N/A"}},{"$f":"IF('1. Order'!P1139=\"\",\"\",'1. Order'!P1139)","v":{"$error":"#N/A"}},{"$f":"IF('1. Order'!Q1139=\"\",\"\",'1. Order'!Q1139)","v":""},{"$f":"IF('1. Order'!R1139=\"\",\"\",'1. Order'!R1139)","v":""},{"$f":"IF('1. Order'!S1139=\"\",\"\",'1. Order'!S1139)","v":""},{"$f":"IF('1. Order'!V1139=\"\",\"\",'1. Order'!V1139)","v":""},{"$f":"IF('1. Order'!W1139=\"\",\"\",'1. Order'!W1139)","v":""},{"$f":"IF('1. Order'!X1139=\"\",\"\",'1. Order'!X1139)","v":"EUR"},{"$f":"IF('1. Order'!Y1139=\"\",\"\",'1. Order'!Y1139)","v":""},{"$f":"IF('1. Order'!Z1139=\"\",\"\",'1. Order'!Z1139)","v":""},{"$f":"IF('1. Order'!AA1139=\"\",\"\",'1. Order'!AA1139)","v":""},null,{"$f":"IF('1. Order'!AS1139=\"\",\"\",'1. Order'!AS1139)","v":""},{"$f":"IF('1. Order'!AT1139=\"\",\"\",'1. Order'!AT1139)","v":""},null,null,null,null,null,null,null,{"$f":"IF('1. Order'!AX1139=\"\",\"\",'1. Order'!AX1139)","v":""},{"$f":"IF('1. Order'!AY1139=\"\",\"\",'1. Order'!AY1139)","v":""},{"$f":"IF('1. Order'!AZ1139=\"\",\"\",'1. Order'!AZ1139)","v":""},{"$f":"IF('1. Order'!BA1139=\"\",\"\",'1. Order'!BA1139)","v":""},{"$f":"IF('1. Order'!BC1139=\"\",\"\",'1. Order'!BC1139)","v":""},{"$f":"IF('1. Order'!BD1139=\"\",\"\",'1. Order'!BD1139)","v":6},{"$f":"IF('1. Order'!BE1139=\"\",\"\",'1. Order'!BE1139)","v":"None"},{"$f":"IF('1. Order'!BF1139=\"\",\"\",'1. Order'!BF1139)","v":"Parcel"},{"$f":"IF('1. Order'!BG1139=\"\",\"\",'1. Order'!BG1139)","v":"ZWO"}]
[{"$f":"IF('1. Order'!F1140=\"\",\"\",'1. Order'!F1140)","v":""},{"$f":"IF('1. Order'!G1140=\"\",\"\",'1. Order'!G1140)","v":""},{"$f":"IF('1. Order'!H1140=\"\",\"\",'1. Order'!H1140)","v":""},{"$f":"IF('1. Order'!I1140=\"\",\"\",'1. Order'!I1140)","v":""},{"$f":"IF('1. Order'!J1140=\"\",\"\",'1. Order'!J1140)","v":""},{"$f":"IF('1. Order'!K1140=\"\",\"\",'1. Order'!K1140)","v":""},{"$f":"IF('1. Order'!L1140=\"\",\"\",'1. Order'!L1140)","v":""},{"$f":"IF('1. Order'!M1140=\"\",\"\",'1. Order'!M1140)","v":""},{"$f":"IF('1. Order'!N1140=\"\",\"\",'1. Order'!N1140)","v":""},{"$f":"IF('1. Order'!O1140=\"\",\"\",'1. Order'!O1140)","v":{"$error":"#N/A"}},{"$f":"IF('1. Order'!P1140=\"\",\"\",'1. Order'!P1140)","v":{"$error":"#N/A"}},{"$f":"IF('1. Order'!Q1140=\"\",\"\",'1. Order'!Q1140)","v":""},{"$f":"IF('1. Order'!R1140=\"\",\"\",'1. Order'!R1140)","v":""},{"$f":"IF('1. Order'!S1140=\"\",\"\",'1. Order'!S1140)","v":""},{"$f":"IF('1. Order'!V1140=\"\",\"\",'1. Order'!V1140)","v":""},{"$f":"IF('1. Order'!W1140=\"\",\"\",'1. Order'!W1140)","v":""},{"$f":"IF('1. Order'!X1140=\"\",\"\",'1. Order'!X1140)","v":"EUR"},{"$f":"IF('1. Order'!Y1140=\"\",\"\",'1. Order'!Y1140)","v":""},{"$f":"IF('1. Order'!Z1140=\"\",\"\",'1. Order'!Z1140)","v":""},{"$f":"IF('1. Order'!AA1140=\"\",\"\",'1. Order'!AA1140)","v":""},null,{"$f":"IF('1. Order'!AS1140=\"\",\"\",'1. Order'!AS1140)","v":""},{"$f":"IF('1. Order'!AT1140=\"\",\"\",'1. Order'!AT1140)","v":""},null,null,null,null,null,null,null,{"$f":"IF('1. Order'!AX1140=\"\",\"\",'1. Order'!AX1140)","v":""},{"$f":"IF('1. Order'!AY1140=\"\",\"\",'1. Order'!AY1140)","v":""},{"$f":"IF('1. Order'!AZ1140=\"\",\"\",'1. Order'!AZ1140)","v":""},{"$f":"IF('1. Order'!BA1140=\"\",\"\",'1. Order'!BA1140)","v":""},{"$f":"IF('1. Order'!BC1140=\"\",\"\",'1. Order'!BC1140)","v":""},{"$f":"IF('1. Order'!BD1140=\"\",\"\",'1. Order'!BD1140)","v":6},{"$f":"IF('1. Order'!BE1140=\"\",\"\",'1. Order'!BE1140)","v":"None"},{"$f":"IF('1. Order'!BF1140=\"\",\"\",'1. Order'!BF1140)","v":"Parcel"},{"$f":"IF('1. Order'!BG1140=\"\",\"\",'1. Order'!BG1140)","v":"ZWO"}]
[{"$f":"IF('1. Order'!F1141=\"\",\"\",'1. Order'!F1141)","v":""},{"$f":"IF('1. Order'!G1141=\"\",\"\",'1. Order'!G1141)","v":""},{"$f":"IF('1. Order'!H1141=\"\",\"\",'1. Order'!H1141)","v":""},{"$f":"IF('1. Order'!I1141=\"\",\"\",'1. Order'!I1141)","v":""},{"$f":"IF('1. Order'!J1141=\"\",\"\",'1. Order'!J1141)","v":""},{"$f":"IF('1. Order'!K1141=\"\",\"\",'1. Order'!K1141)","v":""},{"$f":"IF('1. Order'!L1141=\"\",\"\",'1. Order'!L1141)","v":""},{"$f":"IF('1. Order'!M1141=\"\",\"\",'1. Order'!M1141)","v":""},{"$f":"IF('1. Order'!N1141=\"\",\"\",'1. Order'!N1141)","v":""},{"$f":"IF('1. Order'!O1141=\"\",\"\",'1. Order'!O1141)","v":{"$error":"#N/A"}},{"$f":"IF('1. Order'!P1141=\"\",\"\",'1. Order'!P1141)","v":{"$error":"#N/A"}},{"$f":"IF('1. Order'!Q1141=\"\",\"\",'1. Order'!Q1141)","v":""},{"$f":"IF('1. Order'!R1141=\"\",\"\",'1. Order'!R1141)","v":""},{"$f":"IF('1. Order'!S1141=\"\",\"\",'1. Order'!S1141)","v":""},{"$f":"IF('1. Order'!V1141=\"\",\"\",'1. Order'!V1141)","v":""},{"$f":"IF('1. Order'!W1141=\"\",\"\",'1. Order'!W1141)","v":""},{"$f":"IF('1. Order'!X1141=\"\",\"\",'1. Order'!X1141)","v":"EUR"},{"$f":"IF('1. Order'!Y1141=\"\",\"\",'1. Order'!Y1141)","v":""},{"$f":"IF('1. Order'!Z1141=\"\",\"\",'1. Order'!Z1141)","v":""},{"$f":"IF('1. Order'!AA1141=\"\",\"\",'1. Order'!AA1141)","v":""},null,{"$f":"IF('1. Order'!AS1141=\"\",\"\",'1. Order'!AS1141)","v":""},{"$f":"IF('1. Order'!AT1141=\"\",\"\",'1. Order'!AT1141)","v":""},null,null,null,null,null,null,null,{"$f":"IF('1. Order'!AX1141=\"\",\"\",'1. Order'!AX1141)","v":""},{"$f":"IF('1. Order'!AY1141=\"\",\"\",'1. Order'!AY1141)","v":""},{"$f":"IF('1. Order'!AZ1141=\"\",\"\",'1. Order'!AZ1141)","v":""},{"$f":"IF('1. Order'!BA1141=\"\",\"\",'1. Order'!BA1141)","v":""},{"$f":"IF('1. Order'!BC1141=\"\",\"\",'1. Order'!BC1141)","v":""},{"$f":"IF('1. Order'!BD1141=\"\",\"\",'1. Order'!BD1141)","v":6},{"$f":"IF('1. Order'!BE1141=\"\",\"\",'1. Order'!BE1141)","v":"None"},{"$f":"IF('1. Order'!BF1141=\"\",\"\",'1. Order'!BF1141)","v":"Parcel"},{"$f":"IF('1. Order'!BG1141=\"\",\"\",'1. Order'!BG1141)","v":"ZWO"}]
[{"$f":"IF('1. Order'!F1142=\"\",\"\",'1. Order'!F1142)","v":""},{"$f":"IF('1. Order'!G1142=\"\",\"\",'1. Order'!G1142)","v":""},{"$f":"IF('1. Order'!H1142=\"\",\"\",'1. Order'!H1142)","v":""},{"$f":"IF('1. Order'!I1142=\"\",\"\",'1. Order'!I1142)","v":""},{"$f":"IF('1. Order'!J1142=\"\",\"\",'1. Order'!J1142)","v":""},{"$f":"IF('1. Order'!K1142=\"\",\"\",'1. Order'!K1142)","v":""},{"$f":"IF('1. Order'!L1142=\"\",\"\",'1. Order'!L1142)","v":""},{"$f":"IF('1. Order'!M1142=\"\",\"\",'1. Order'!M1142)","v":""},{"$f":"IF('1. Order'!N1142=\"\",\"\",'1. Order'!N1142)","v":""},{"$f":"IF('1. Order'!O1142=\"\",\"\",'1. Order'!O1142)","v":{"$error":"#N/A"}},{"$f":"IF('1. Order'!P1142=\"\",\"\",'1. Order'!P1142)","v":{"$error":"#N/A"}},{"$f":"IF('1. Order'!Q1142=\"\",\"\",'1. Order'!Q1142)","v":""},{"$f":"IF('1. Order'!R1142=\"\",\"\",'1. Order'!R1142)","v":""},{"$f":"IF('1. Order'!S1142=\"\",\"\",'1. Order'!S1142)","v":""},{"$f":"IF('1. Order'!V1142=\"\",\"\",'1. Order'!V1142)","v":""},{"$f":"IF('1. Order'!W1142=\"\",\"\",'1. Order'!W1142)","v":""},{"$f":"IF('1. Order'!X1142=\"\",\"\",'1. Order'!X1142)","v":"EUR"},{"$f":"IF('1. Order'!Y1142=\"\",\"\",'1. Order'!Y1142)","v":""},{"$f":"IF('1. Order'!Z1142=\"\",\"\",'1. Order'!Z1142)","v":""},{"$f":"IF('1. Order'!AA1142=\"\",\"\",'1. Order'!AA1142)","v":""},null,{"$f":"IF('1. Order'!AS1142=\"\",\"\",'1. Order'!AS1142)","v":""},{"$f":"IF('1. Order'!AT1142=\"\",\"\",'1. Order'!AT1142)","v":""},null,null,null,null,null,null,null,{"$f":"IF('1. Order'!AX1142=\"\",\"\",'1. Order'!AX1142)","v":""},{"$f":"IF('1. Order'!AY1142=\"\",\"\",'1. Order'!AY1142)","v":""},{"$f":"IF('1. Order'!AZ1142=\"\",\"\",'1. Order'!AZ1142)","v":""},{"$f":"IF('1. Order'!BA1142=\"\",\"\",'1. Order'!BA1142)","v":""},{"$f":"IF('1. Order'!BC1142=\"\",\"\",'1. Order'!BC1142)","v":""},{"$f":"IF('1. Order'!BD1142=\"\",\"\",'1. Order'!BD1142)","v":6},{"$f":"IF('1. Order'!BE1142=\"\",\"\",'1. Order'!BE1142)","v":"None"},{"$f":"IF('1. Order'!BF1142=\"\",\"\",'1. Order'!BF1142)","v":"Parcel"},{"$f":"IF('1. Order'!BG1142=\"\",\"\",'1. Order'!BG1142)","v":"ZWO"}]
[{"$f":"IF('1. Order'!F1143=\"\",\"\",'1. Order'!F1143)","v":""},{"$f":"IF('1. Order'!G1143=\"\",\"\",'1. Order'!G1143)","v":""},{"$f":"IF('1. Order'!H1143=\"\",\"\",'1. Order'!H1143)","v":""},{"$f":"IF('1. Order'!I1143=\"\",\"\",'1. Order'!I1143)","v":""},{"$f":"IF('1. Order'!J1143=\"\",\"\",'1. Order'!J1143)","v":""},{"$f":"IF('1. Order'!K1143=\"\",\"\",'1. Order'!K1143)","v":""},{"$f":"IF('1. Order'!L1143=\"\",\"\",'1. Order'!L1143)","v":""},{"$f":"IF('1. Order'!M1143=\"\",\"\",'1. Order'!M1143)","v":""},{"$f":"IF('1. Order'!N1143=\"\",\"\",'1. Order'!N1143)","v":""},{"$f":"IF('1. Order'!O1143=\"\",\"\",'1. Order'!O1143)","v":{"$error":"#N/A"}},{"$f":"IF('1. Order'!P1143=\"\",\"\",'1. Order'!P1143)","v":{"$error":"#N/A"}},{"$f":"IF('1. Order'!Q1143=\"\",\"\",'1. Order'!Q1143)","v":""},{"$f":"IF('1. Order'!R1143=\"\",\"\",'1. Order'!R1143)","v":""},{"$f":"IF('1. Order'!S1143=\"\",\"\",'1. Order'!S1143)","v":""},{"$f":"IF('1. Order'!V1143=\"\",\"\",'1. Order'!V1143)","v":""},{"$f":"IF('1. Order'!W1143=\"\",\"\",'1. Order'!W1143)","v":""},{"$f":"IF('1. Order'!X1143=\"\",\"\",'1. Order'!X1143)","v":"EUR"},{"$f":"IF('1. Order'!Y1143=\"\",\"\",'1. Order'!Y1143)","v":""},{"$f":"IF('1. Order'!Z1143=\"\",\"\",'1. Order'!Z1143)","v":""},{"$f":"IF('1. Order'!AA1143=\"\",\"\",'1. Order'!AA1143)","v":""},null,{"$f":"IF('1. Order'!AS1143=\"\",\"\",'1. Order'!AS1143)","v":""},{"$f":"IF('1. Order'!AT1143=\"\",\"\",'1. Order'!AT1143)","v":""},null,null,null,null,null,null,null,{"$f":"IF('1. Order'!AX1143=\"\",\"\",'1. Order'!AX1143)","v":""},{"$f":"IF('1. Order'!AY1143=\"\",\"\",'1. Order'!AY1143)","v":""},{"$f":"IF('1. Order'!AZ1143=\"\",\"\",'1. Order'!AZ1143)","v":""},{"$f":"IF('1. Order'!BA1143=\"\",\"\",'1. Order'!BA1143)","v":""},{"$f":"IF('1. Order'!BC1143=\"\",\"\",'1. Order'!BC1143)","v":""},{"$f":"IF('1. Order'!BD1143=\"\",\"\",'1. Order'!BD1143)","v":6},{"$f":"IF('1. Order'!BE1143=\"\",\"\",'1. Order'!BE1143)","v":"None"},{"$f":"IF('1. Order'!BF1143=\"\",\"\",'1. Order'!BF1143)","v":"Parcel"},{"$f":"IF('1. Order'!BG1143=\"\",\"\",'1. Order'!BG1143)","v":"ZWO"}]
[{"$f":"IF('1. Order'!F1144=\"\",\"\",'1. Order'!F1144)","v":""},{"$f":"IF('1. Order'!G1144=\"\",\"\",'1. Order'!G1144)","v":""},{"$f":"IF('1. Order'!H1144=\"\",\"\",'1. Order'!H1144)","v":""},{"$f":"IF('1. Order'!I1144=\"\",\"\",'1. Order'!I1144)","v":""},{"$f":"IF('1. Order'!J1144=\"\",\"\",'1. Order'!J1144)","v":""},{"$f":"IF('1. Order'!K1144=\"\",\"\",'1. Order'!K1144)","v":""},{"$f":"IF('1. Order'!L1144=\"\",\"\",'1. Order'!L1144)","v":""},{"$f":"IF('1. Order'!M1144=\"\",\"\",'1. Order'!M1144)","v":""},{"$f":"IF('1. Order'!N1144=\"\",\"\",'1. Order'!N1144)","v":""},{"$f":"IF('1. Order'!O1144=\"\",\"\",'1. Order'!O1144)","v":{"$error":"#N/A"}},{"$f":"IF('1. Order'!P1144=\"\",\"\",'1. Order'!P1144)","v":{"$error":"#N/A"}},{"$f":"IF('1. Order'!Q1144=\"\",\"\",'1. Order'!Q1144)","v":""},{"$f":"IF('1. Order'!R1144=\"\",\"\",'1. Order'!R1144)","v":""},{"$f":"IF('1. Order'!S1144=\"\",\"\",'1. Order'!S1144)","v":""},{"$f":"IF('1. Order'!V1144=\"\",\"\",'1. Order'!V1144)","v":""},{"$f":"IF('1. Order'!W1144=\"\",\"\",'1. Order'!W1144)","v":""},{"$f":"IF('1. Order'!X1144=\"\",\"\",'1. Order'!X1144)","v":"EUR"},{"$f":"IF('1. Order'!Y1144=\"\",\"\",'1. Order'!Y1144)","v":""},{"$f":"IF('1. Order'!Z1144=\"\",\"\",'1. Order'!Z1144)","v":""},{"$f":"IF('1. Order'!AA1144=\"\",\"\",'1. Order'!AA1144)","v":""},null,{"$f":"IF('1. Order'!AS1144=\"\",\"\",'1. Order'!AS1144)","v":""},{"$f":"IF('1. Order'!AT1144=\"\",\"\",'1. Order'!AT1144)","v":""},null,null,null,null,null,null,null,{"$f":"IF('1. Order'!AX1144=\"\",\"\",'1. Order'!AX1144)","v":""},{"$f":"IF('1. Order'!AY1144=\"\",\"\",'1. Order'!AY1144)","v":""},{"$f":"IF('1. Order'!AZ1144=\"\",\"\",'1. Order'!AZ1144)","v":""},{"$f":"IF('1. Order'!BA1144=\"\",\"\",'1. Order'!BA1144)","v":""},{"$f":"IF('1. Order'!BC1144=\"\",\"\",'1. Order'!BC1144)","v":""},{"$f":"IF('1. Order'!BD1144=\"\",\"\",'1. Order'!BD1144)","v":6},{"$f":"IF('1. Order'!BE1144=\"\",\"\",'1. Order'!BE1144)","v":"None"},{"$f":"IF('1. Order'!BF1144=\"\",\"\",'1. Order'!BF1144)","v":"Parcel"},{"$f":"IF('1. Order'!BG1144=\"\",\"\",'1. Order'!BG1144)","v":"ZWO"}]
[{"$f":"IF('1. Order'!F1145=\"\",\"\",'1. Order'!F1145)","v":""},{"$f":"IF('1. Order'!G1145=\"\",\"\",'1. Order'!G1145)","v":""},{"$f":"IF('1. Order'!H1145=\"\",\"\",'1. Order'!H1145)","v":""},{"$f":"IF('1. Order'!I1145=\"\",\"\",'1. Order'!I1145)","v":""},{"$f":"IF('1. Order'!J1145=\"\",\"\",'1. Order'!J1145)","v":""},{"$f":"IF('1. Order'!K1145=\"\",\"\",'1. Order'!K1145)","v":""},{"$f":"IF('1. Order'!L1145=\"\",\"\",'1. Order'!L1145)","v":""},{"$f":"IF('1. Order'!M1145=\"\",\"\",'1. Order'!M1145)","v":""},{"$f":"IF('1. Order'!N1145=\"\",\"\",'1. Order'!N1145)","v":""},{"$f":"IF('1. Order'!O1145=\"\",\"\",'1. Order'!O1145)","v":{"$error":"#N/A"}},{"$f":"IF('1. Order'!P1145=\"\",\"\",'1. Order'!P1145)","v":{"$error":"#N/A"}},{"$f":"IF('1. Order'!Q1145=\"\",\"\",'1. Order'!Q1145)","v":""},{"$f":"IF('1. Order'!R1145=\"\",\"\",'1. Order'!R1145)","v":""},{"$f":"IF('1. Order'!S1145=\"\",\"\",'1. Order'!S1145)","v":""},{"$f":"IF('1. Order'!V1145=\"\",\"\",'1. Order'!V1145)","v":""},{"$f":"IF('1. Order'!W1145=\"\",\"\",'1. Order'!W1145)","v":""},{"$f":"IF('1. Order'!X1145=\"\",\"\",'1. Order'!X1145)","v":"EUR"},{"$f":"IF('1. Order'!Y1145=\"\",\"\",'1. Order'!Y1145)","v":""},{"$f":"IF('1. Order'!Z1145=\"\",\"\",'1. Order'!Z1145)","v":""},{"$f":"IF('1. Order'!AA1145=\"\",\"\",'1. Order'!AA1145)","v":""},null,{"$f":"IF('1. Order'!AS1145=\"\",\"\",'1. Order'!AS1145)","v":""},{"$f":"IF('1. Order'!AT1145=\"\",\"\",'1. Order'!AT1145)","v":""},null,null,null,null,null,null,null,{"$f":"IF('1. Order'!AX1145=\"\",\"\",'1. Order'!AX1145)","v":""},{"$f":"IF('1. Order'!AY1145=\"\",\"\",'1. Order'!AY1145)","v":""},{"$f":"IF('1. Order'!AZ1145=\"\",\"\",'1. Order'!AZ1145)","v":""},{"$f":"IF('1. Order'!BA1145=\"\",\"\",'1. Order'!BA1145)","v":""},{"$f":"IF('1. Order'!BC1145=\"\",\"\",'1. Order'!BC1145)","v":""},{"$f":"IF('1. Order'!BD1145=\"\",\"\",'1. Order'!BD1145)","v":6},{"$f":"IF('1. Order'!BE1145=\"\",\"\",'1. Order'!BE1145)","v":"None"},{"$f":"IF('1. Order'!BF1145=\"\",\"\",'1. Order'!BF1145)","v":"Parcel"},{"$f":"IF('1. Order'!BG1145=\"\",\"\",'1. Order'!BG1145)","v":"ZWO"}]
[{"$f":"IF('1. Order'!F1146=\"\",\"\",'1. Order'!F1146)","v":""},{"$f":"IF('1. Order'!G1146=\"\",\"\",'1. Order'!G1146)","v":""},{"$f":"IF('1. Order'!H1146=\"\",\"\",'1. Order'!H1146)","v":""},{"$f":"IF('1. Order'!I1146=\"\",\"\",'1. Order'!I1146)","v":""},{"$f":"IF('1. Order'!J1146=\"\",\"\",'1. Order'!J1146)","v":""},{"$f":"IF('1. Order'!K1146=\"\",\"\",'1. Order'!K1146)","v":""},{"$f":"IF('1. Order'!L1146=\"\",\"\",'1. Order'!L1146)","v":""},{"$f":"IF('1. Order'!M1146=\"\",\"\",'1. Order'!M1146)","v":""},{"$f":"IF('1. Order'!N1146=\"\",\"\",'1. Order'!N1146)","v":""},{"$f":"IF('1. Order'!O1146=\"\",\"\",'1. Order'!O1146)","v":{"$error":"#N/A"}},{"$f":"IF('1. Order'!P1146=\"\",\"\",'1. Order'!P1146)","v":{"$error":"#N/A"}},{"$f":"IF('1. Order'!Q1146=\"\",\"\",'1. Order'!Q1146)","v":""},{"$f":"IF('1. Order'!R1146=\"\",\"\",'1. Order'!R1146)","v":""},{"$f":"IF('1. Order'!S1146=\"\",\"\",'1. Order'!S1146)","v":""},{"$f":"IF('1. Order'!V1146=\"\",\"\",'1. Order'!V1146)","v":""},{"$f":"IF('1. Order'!W1146=\"\",\"\",'1. Order'!W1146)","v":""},{"$f":"IF('1. Order'!X1146=\"\",\"\",'1. Order'!X1146)","v":"EUR"},{"$f":"IF('1. Order'!Y1146=\"\",\"\",'1. Order'!Y1146)","v":""},{"$f":"IF('1. Order'!Z1146=\"\",\"\",'1. Order'!Z1146)","v":""},{"$f":"IF('1. Order'!AA1146=\"\",\"\",'1. Order'!AA1146)","v":""},null,{"$f":"IF('1. Order'!AS1146=\"\",\"\",'1. Order'!AS1146)","v":""},{"$f":"IF('1. Order'!AT1146=\"\",\"\",'1. Order'!AT1146)","v":""},null,null,null,null,null,null,null,{"$f":"IF('1. Order'!AX1146=\"\",\"\",'1. Order'!AX1146)","v":""},{"$f":"IF('1. Order'!AY1146=\"\",\"\",'1. Order'!AY1146)","v":""},{"$f":"IF('1. Order'!AZ1146=\"\",\"\",'1. Order'!AZ1146)","v":""},{"$f":"IF('1. Order'!BA1146=\"\",\"\",'1. Order'!BA1146)","v":""},{"$f":"IF('1. Order'!BC1146=\"\",\"\",'1. Order'!BC1146)","v":""},{"$f":"IF('1. Order'!BD1146=\"\",\"\",'1. Order'!BD1146)","v":6},{"$f":"IF('1. Order'!BE1146=\"\",\"\",'1. Order'!BE1146)","v":"None"},{"$f":"IF('1. Order'!BF1146=\"\",\"\",'1. Order'!BF1146)","v":"Parcel"},{"$f":"IF('1. Order'!BG1146=\"\",\"\",'1. Order'!BG1146)","v":"ZWO"}]
[{"$f":"IF('1. Order'!F1147=\"\",\"\",'1. Order'!F1147)","v":""},{"$f":"IF('1. Order'!G1147=\"\",\"\",'1. Order'!G1147)","v":""},{"$f":"IF('1. Order'!H1147=\"\",\"\",'1. Order'!H1147)","v":""},{"$f":"IF('1. Order'!I1147=\"\",\"\",'1. Order'!I1147)","v":""},{"$f":"IF('1. Order'!J1147=\"\",\"\",'1. Order'!J1147)","v":""},{"$f":"IF('1. Order'!K1147=\"\",\"\",'1. Order'!K1147)","v":""},{"$f":"IF('1. Order'!L1147=\"\",\"\",'1. Order'!L1147)","v":""},{"$f":"IF('1. Order'!M1147=\"\",\"\",'1. Order'!M1147)","v":""},{"$f":"IF('1. Order'!N1147=\"\",\"\",'1. Order'!N1147)","v":""},{"$f":"IF('1. Order'!O1147=\"\",\"\",'1. Order'!O1147)","v":{"$error":"#N/A"}},{"$f":"IF('1. Order'!P1147=\"\",\"\",'1. Order'!P1147)","v":{"$error":"#N/A"}},{"$f":"IF('1. Order'!Q1147=\"\",\"\",'1. Order'!Q1147)","v":""},{"$f":"IF('1. Order'!R1147=\"\",\"\",'1. Order'!R1147)","v":""},{"$f":"IF('1. Order'!S1147=\"\",\"\",'1. Order'!S1147)","v":""},{"$f":"IF('1. Order'!V1147=\"\",\"\",'1. Order'!V1147)","v":""},{"$f":"IF('1. Order'!W1147=\"\",\"\",'1. Order'!W1147)","v":""},{"$f":"IF('1. Order'!X1147=\"\",\"\",'1. Order'!X1147)","v":"EUR"},{"$f":"IF('1. Order'!Y1147=\"\",\"\",'1. Order'!Y1147)","v":""},{"$f":"IF('1. Order'!Z1147=\"\",\"\",'1. Order'!Z1147)","v":""},{"$f":"IF('1. Order'!AA1147=\"\",\"\",'1. Order'!AA1147)","v":""},null,{"$f":"IF('1. Order'!AS1147=\"\",\"\",'1. Order'!AS1147)","v":""},{"$f":"IF('1. Order'!AT1147=\"\",\"\",'1. Order'!AT1147)","v":""},null,null,null,null,null,null,null,{"$f":"IF('1. Order'!AX1147=\"\",\"\",'1. Order'!AX1147)","v":""},{"$f":"IF('1. Order'!AY1147=\"\",\"\",'1. Order'!AY1147)","v":""},{"$f":"IF('1. Order'!AZ1147=\"\",\"\",'1. Order'!AZ1147)","v":""},{"$f":"IF('1. Order'!BA1147=\"\",\"\",'1. Order'!BA1147)","v":""},{"$f":"IF('1. Order'!BC1147=\"\",\"\",'1. Order'!BC1147)","v":""},{"$f":"IF('1. Order'!BD1147=\"\",\"\",'1. Order'!BD1147)","v":6},{"$f":"IF('1. Order'!BE1147=\"\",\"\",'1. Order'!BE1147)","v":"None"},{"$f":"IF('1. Order'!BF1147=\"\",\"\",'1. Order'!BF1147)","v":"Parcel"},{"$f":"IF('1. Order'!BG1147=\"\",\"\",'1. Order'!BG1147)","v":"ZWO"}]
[{"$f":"IF('1. Order'!F1148=\"\",\"\",'1. Order'!F1148)","v":""},{"$f":"IF('1. Order'!G1148=\"\",\"\",'1. Order'!G1148)","v":""},{"$f":"IF('1. Order'!H1148=\"\",\"\",'1. Order'!H1148)","v":""},{"$f":"IF('1. Order'!I1148=\"\",\"\",'1. Order'!I1148)","v":""},{"$f":"IF('1. Order'!J1148=\"\",\"\",'1. Order'!J1148)","v":""},{"$f":"IF('1. Order'!K1148=\"\",\"\",'1. Order'!K1148)","v":""},{"$f":"IF('1. Order'!L1148=\"\",\"\",'1. Order'!L1148)","v":""},{"$f":"IF('1. Order'!M1148=\"\",\"\",'1. Order'!M1148)","v":""},{"$f":"IF('1. Order'!N1148=\"\",\"\",'1. Order'!N1148)","v":""},{"$f":"IF('1. Order'!O1148=\"\",\"\",'1. Order'!O1148)","v":{"$error":"#N/A"}},{"$f":"IF('1. Order'!P1148=\"\",\"\",'1. Order'!P1148)","v":{"$error":"#N/A"}},{"$f":"IF('1. Order'!Q1148=\"\",\"\",'1. Order'!Q1148)","v":""},{"$f":"IF('1. Order'!R1148=\"\",\"\",'1. Order'!R1148)","v":""},{"$f":"IF('1. Order'!S1148=\"\",\"\",'1. Order'!S1148)","v":""},{"$f":"IF('1. Order'!V1148=\"\",\"\",'1. Order'!V1148)","v":""},{"$f":"IF('1. Order'!W1148=\"\",\"\",'1. Order'!W1148)","v":""},{"$f":"IF('1. Order'!X1148=\"\",\"\",'1. Order'!X1148)","v":"EUR"},{"$f":"IF('1. Order'!Y1148=\"\",\"\",'1. Order'!Y1148)","v":""},{"$f":"IF('1. Order'!Z1148=\"\",\"\",'1. Order'!Z1148)","v":""},{"$f":"IF('1. Order'!AA1148=\"\",\"\",'1. Order'!AA1148)","v":""},null,{"$f":"IF('1. Order'!AS1148=\"\",\"\",'1. Order'!AS1148)","v":""},{"$f":"IF('1. Order'!AT1148=\"\",\"\",'1. Order'!AT1148)","v":""},null,null,null,null,null,null,null,{"$f":"IF('1. Order'!AX1148=\"\",\"\",'1. Order'!AX1148)","v":""},{"$f":"IF('1. Order'!AY1148=\"\",\"\",'1. Order'!AY1148)","v":""},{"$f":"IF('1. Order'!AZ1148=\"\",\"\",'1. Order'!AZ1148)","v":""},{"$f":"IF('1. Order'!BA1148=\"\",\"\",'1. Order'!BA1148)","v":""},{"$f":"IF('1. Order'!BC1148=\"\",\"\",'1. Order'!BC1148)","v":""},{"$f":"IF('1. Order'!BD1148=\"\",\"\",'1. Order'!BD1148)","v":6},{"$f":"IF('1. Order'!BE1148=\"\",\"\",'1. Order'!BE1148)","v":"None"},{"$f":"IF('1. Order'!BF1148=\"\",\"\",'1. Order'!BF1148)","v":"Parcel"},{"$f":"IF('1. Order'!BG1148=\"\",\"\",'1. Order'!BG1148)","v":"ZWO"}]
[{"$f":"IF('1. Order'!F1149=\"\",\"\",'1. Order'!F1149)","v":""},{"$f":"IF('1. Order'!G1149=\"\",\"\",'1. Order'!G1149)","v":""},{"$f":"IF('1. Order'!H1149=\"\",\"\",'1. Order'!H1149)","v":""},{"$f":"IF('1. Order'!I1149=\"\",\"\",'1. Order'!I1149)","v":""},{"$f":"IF('1. Order'!J1149=\"\",\"\",'1. Order'!J1149)","v":""},{"$f":"IF('1. Order'!K1149=\"\",\"\",'1. Order'!K1149)","v":""},{"$f":"IF('1. Order'!L1149=\"\",\"\",'1. Order'!L1149)","v":""},{"$f":"IF('1. Order'!M1149=\"\",\"\",'1. Order'!M1149)","v":""},{"$f":"IF('1. Order'!N1149=\"\",\"\",'1. Order'!N1149)","v":""},{"$f":"IF('1. Order'!O1149=\"\",\"\",'1. Order'!O1149)","v":{"$error":"#N/A"}},{"$f":"IF('1. Order'!P1149=\"\",\"\",'1. Order'!P1149)","v":{"$error":"#N/A"}},{"$f":"IF('1. Order'!Q1149=\"\",\"\",'1. Order'!Q1149)","v":""},{"$f":"IF('1. Order'!R1149=\"\",\"\",'1. Order'!R1149)","v":""},{"$f":"IF('1. Order'!S1149=\"\",\"\",'1. Order'!S1149)","v":""},{"$f":"IF('1. Order'!V1149=\"\",\"\",'1. Order'!V1149)","v":""},{"$f":"IF('1. Order'!W1149=\"\",\"\",'1. Order'!W1149)","v":""},{"$f":"IF('1. Order'!X1149=\"\",\"\",'1. Order'!X1149)","v":"EUR"},{"$f":"IF('1. Order'!Y1149=\"\",\"\",'1. Order'!Y1149)","v":""},{"$f":"IF('1. Order'!Z1149=\"\",\"\",'1. Order'!Z1149)","v":""},{"$f":"IF('1. Order'!AA1149=\"\",\"\",'1. Order'!AA1149)","v":""},null,{"$f":"IF('1. Order'!AS1149=\"\",\"\",'1. Order'!AS1149)","v":""},{"$f":"IF('1. Order'!AT1149=\"\",\"\",'1. Order'!AT1149)","v":""},null,null,null,null,null,null,null,{"$f":"IF('1. Order'!AX1149=\"\",\"\",'1. Order'!AX1149)","v":""},{"$f":"IF('1. Order'!AY1149=\"\",\"\",'1. Order'!AY1149)","v":""},{"$f":"IF('1. Order'!AZ1149=\"\",\"\",'1. Order'!AZ1149)","v":""},{"$f":"IF('1. Order'!BA1149=\"\",\"\",'1. Order'!BA1149)","v":""},{"$f":"IF('1. Order'!BC1149=\"\",\"\",'1. Order'!BC1149)","v":""},{"$f":"IF('1. Order'!BD1149=\"\",\"\",'1. Order'!BD1149)","v":6},{"$f":"IF('1. Order'!BE1149=\"\",\"\",'1. Order'!BE1149)","v":"None"},{"$f":"IF('1. Order'!BF1149=\"\",\"\",'1. Order'!BF1149)","v":"Parcel"},{"$f":"IF('1. Order'!BG1149=\"\",\"\",'1. Order'!BG1149)","v":"ZWO"}]
[{"$f":"IF('1. Order'!F1150=\"\",\"\",'1. Order'!F1150)","v":""},{"$f":"IF('1. Order'!G1150=\"\",\"\",'1. Order'!G1150)","v":""},{"$f":"IF('1. Order'!H1150=\"\",\"\",'1. Order'!H1150)","v":""},{"$f":"IF('1. Order'!I1150=\"\",\"\",'1. Order'!I1150)","v":""},{"$f":"IF('1. Order'!J1150=\"\",\"\",'1. Order'!J1150)","v":""},{"$f":"IF('1. Order'!K1150=\"\",\"\",'1. Order'!K1150)","v":""},{"$f":"IF('1. Order'!L1150=\"\",\"\",'1. Order'!L1150)","v":""},{"$f":"IF('1. Order'!M1150=\"\",\"\",'1. Order'!M1150)","v":""},{"$f":"IF('1. Order'!N1150=\"\",\"\",'1. Order'!N1150)","v":""},{"$f":"IF('1. Order'!O1150=\"\",\"\",'1. Order'!O1150)","v":{"$error":"#N/A"}},{"$f":"IF('1. Order'!P1150=\"\",\"\",'1. Order'!P1150)","v":{"$error":"#N/A"}},{"$f":"IF('1. Order'!Q1150=\"\",\"\",'1. Order'!Q1150)","v":""},{"$f":"IF('1. Order'!R1150=\"\",\"\",'1. Order'!R1150)","v":""},{"$f":"IF('1. Order'!S1150=\"\",\"\",'1. Order'!S1150)","v":""},{"$f":"IF('1. Order'!V1150=\"\",\"\",'1. Order'!V1150)","v":""},{"$f":"IF('1. Order'!W1150=\"\",\"\",'1. Order'!W1150)","v":""},{"$f":"IF('1. Order'!X1150=\"\",\"\",'1. Order'!X1150)","v":"EUR"},{"$f":"IF('1. Order'!Y1150=\"\",\"\",'1. Order'!Y1150)","v":""},{"$f":"IF('1. Order'!Z1150=\"\",\"\",'1. Order'!Z1150)","v":""},{"$f":"IF('1. Order'!AA1150=\"\",\"\",'1. Order'!AA1150)","v":""},null,{"$f":"IF('1. Order'!AS1150=\"\",\"\",'1. Order'!AS1150)","v":""},{"$f":"IF('1. Order'!AT1150=\"\",\"\",'1. Order'!AT1150)","v":""},null,null,null,null,null,null,null,{"$f":"IF('1. Order'!AX1150=\"\",\"\",'1. Order'!AX1150)","v":""},{"$f":"IF('1. Order'!AY1150=\"\",\"\",'1. Order'!AY1150)","v":""},{"$f":"IF('1. Order'!AZ1150=\"\",\"\",'1. Order'!AZ1150)","v":""},{"$f":"IF('1. Order'!BA1150=\"\",\"\",'1. Order'!BA1150)","v":""},{"$f":"IF('1. Order'!BC1150=\"\",\"\",'1. Order'!BC1150)","v":""},{"$f":"IF('1. Order'!BD1150=\"\",\"\",'1. Order'!BD1150)","v":6},{"$f":"IF('1. Order'!BE1150=\"\",\"\",'1. Order'!BE1150)","v":"None"},{"$f":"IF('1. Order'!BF1150=\"\",\"\",'1. Order'!BF1150)","v":"Parcel"},{"$f":"IF('1. Order'!BG1150=\"\",\"\",'1. Order'!BG1150)","v":"ZWO"}]
[{"$f":"IF('1. Order'!F1151=\"\",\"\",'1. Order'!F1151)","v":""},{"$f":"IF('1. Order'!G1151=\"\",\"\",'1. Order'!G1151)","v":""},{"$f":"IF('1. Order'!H1151=\"\",\"\",'1. Order'!H1151)","v":""},{"$f":"IF('1. Order'!I1151=\"\",\"\",'1. Order'!I1151)","v":""},{"$f":"IF('1. Order'!J1151=\"\",\"\",'1. Order'!J1151)","v":""},{"$f":"IF('1. Order'!K1151=\"\",\"\",'1. Order'!K1151)","v":""},{"$f":"IF('1. Order'!L1151=\"\",\"\",'1. Order'!L1151)","v":""},{"$f":"IF('1. Order'!M1151=\"\",\"\",'1. Order'!M1151)","v":""},{"$f":"IF('1. Order'!N1151=\"\",\"\",'1. Order'!N1151)","v":""},{"$f":"IF('1. Order'!O1151=\"\",\"\",'1. Order'!O1151)","v":{"$error":"#N/A"}},{"$f":"IF('1. Order'!P1151=\"\",\"\",'1. Order'!P1151)","v":{"$error":"#N/A"}},{"$f":"IF('1. Order'!Q1151=\"\",\"\",'1. Order'!Q1151)","v":""},{"$f":"IF('1. Order'!R1151=\"\",\"\",'1. Order'!R1151)","v":""},{"$f":"IF('1. Order'!S1151=\"\",\"\",'1. Order'!S1151)","v":""},{"$f":"IF('1. Order'!V1151=\"\",\"\",'1. Order'!V1151)","v":""},{"$f":"IF('1. Order'!W1151=\"\",\"\",'1. Order'!W1151)","v":""},{"$f":"IF('1. Order'!X1151=\"\",\"\",'1. Order'!X1151)","v":"EUR"},{"$f":"IF('1. Order'!Y1151=\"\",\"\",'1. Order'!Y1151)","v":""},{"$f":"IF('1. Order'!Z1151=\"\",\"\",'1. Order'!Z1151)","v":""},{"$f":"IF('1. Order'!AA1151=\"\",\"\",'1. Order'!AA1151)","v":""},null,{"$f":"IF('1. Order'!AS1151=\"\",\"\",'1. Order'!AS1151)","v":""},{"$f":"IF('1. Order'!AT1151=\"\",\"\",'1. Order'!AT1151)","v":""},null,null,null,null,null,null,null,{"$f":"IF('1. Order'!AX1151=\"\",\"\",'1. Order'!AX1151)","v":""},{"$f":"IF('1. Order'!AY1151=\"\",\"\",'1. Order'!AY1151)","v":""},{"$f":"IF('1. Order'!AZ1151=\"\",\"\",'1. Order'!AZ1151)","v":""},{"$f":"IF('1. Order'!BA1151=\"\",\"\",'1. Order'!BA1151)","v":""},{"$f":"IF('1. Order'!BC1151=\"\",\"\",'1. Order'!BC1151)","v":""},{"$f":"IF('1. Order'!BD1151=\"\",\"\",'1. Order'!BD1151)","v":6},{"$f":"IF('1. Order'!BE1151=\"\",\"\",'1. Order'!BE1151)","v":"None"},{"$f":"IF('1. Order'!BF1151=\"\",\"\",'1. Order'!BF1151)","v":"Parcel"},{"$f":"IF('1. Order'!BG1151=\"\",\"\",'1. Order'!BG1151)","v":"ZWO"}]
[{"$f":"IF('1. Order'!F1152=\"\",\"\",'1. Order'!F1152)","v":""},{"$f":"IF('1. Order'!G1152=\"\",\"\",'1. Order'!G1152)","v":""},{"$f":"IF('1. Order'!H1152=\"\",\"\",'1. Order'!H1152)","v":""},{"$f":"IF('1. Order'!I1152=\"\",\"\",'1. Order'!I1152)","v":""},{"$f":"IF('1. Order'!J1152=\"\",\"\",'1. Order'!J1152)","v":""},{"$f":"IF('1. Order'!K1152=\"\",\"\",'1. Order'!K1152)","v":""},{"$f":"IF('1. Order'!L1152=\"\",\"\",'1. Order'!L1152)","v":""},{"$f":"IF('1. Order'!M1152=\"\",\"\",'1. Order'!M1152)","v":""},{"$f":"IF('1. Order'!N1152=\"\",\"\",'1. Order'!N1152)","v":""},{"$f":"IF('1. Order'!O1152=\"\",\"\",'1. Order'!O1152)","v":{"$error":"#N/A"}},{"$f":"IF('1. Order'!P1152=\"\",\"\",'1. Order'!P1152)","v":{"$error":"#N/A"}},{"$f":"IF('1. Order'!Q1152=\"\",\"\",'1. Order'!Q1152)","v":""},{"$f":"IF('1. Order'!R1152=\"\",\"\",'1. Order'!R1152)","v":""},{"$f":"IF('1. Order'!S1152=\"\",\"\",'1. Order'!S1152)","v":""},{"$f":"IF('1. Order'!V1152=\"\",\"\",'1. Order'!V1152)","v":""},{"$f":"IF('1. Order'!W1152=\"\",\"\",'1. Order'!W1152)","v":""},{"$f":"IF('1. Order'!X1152=\"\",\"\",'1. Order'!X1152)","v":"EUR"},{"$f":"IF('1. Order'!Y1152=\"\",\"\",'1. Order'!Y1152)","v":""},{"$f":"IF('1. Order'!Z1152=\"\",\"\",'1. Order'!Z1152)","v":""},{"$f":"IF('1. Order'!AA1152=\"\",\"\",'1. Order'!AA1152)","v":""},null,{"$f":"IF('1. Order'!AS1152=\"\",\"\",'1. Order'!AS1152)","v":""},{"$f":"IF('1. Order'!AT1152=\"\",\"\",'1. Order'!AT1152)","v":""},null,null,null,null,null,null,null,{"$f":"IF('1. Order'!AX1152=\"\",\"\",'1. Order'!AX1152)","v":""},{"$f":"IF('1. Order'!AY1152=\"\",\"\",'1. Order'!AY1152)","v":""},{"$f":"IF('1. Order'!AZ1152=\"\",\"\",'1. Order'!AZ1152)","v":""},{"$f":"IF('1. Order'!BA1152=\"\",\"\",'1. Order'!BA1152)","v":""},{"$f":"IF('1. Order'!BC1152=\"\",\"\",'1. Order'!BC1152)","v":""},{"$f":"IF('1. Order'!BD1152=\"\",\"\",'1. Order'!BD1152)","v":6},{"$f":"IF('1. Order'!BE1152=\"\",\"\",'1. Order'!BE1152)","v":"None"},{"$f":"IF('1. Order'!BF1152=\"\",\"\",'1. Order'!BF1152)","v":"Parcel"},{"$f":"IF('1. Order'!BG1152=\"\",\"\",'1. Order'!BG1152)","v":"ZWO"}]
[{"$f":"IF('1. Order'!F1153=\"\",\"\",'1. Order'!F1153)","v":""},{"$f":"IF('1. Order'!G1153=\"\",\"\",'1. Order'!G1153)","v":""},{"$f":"IF('1. Order'!H1153=\"\",\"\",'1. Order'!H1153)","v":""},{"$f":"IF('1. Order'!I1153=\"\",\"\",'1. Order'!I1153)","v":""},{"$f":"IF('1. Order'!J1153=\"\",\"\",'1. Order'!J1153)","v":""},{"$f":"IF('1. Order'!K1153=\"\",\"\",'1. Order'!K1153)","v":""},{"$f":"IF('1. Order'!L1153=\"\",\"\",'1. Order'!L1153)","v":""},{"$f":"IF('1. Order'!M1153=\"\",\"\",'1. Order'!M1153)","v":""},{"$f":"IF('1. Order'!N1153=\"\",\"\",'1. Order'!N1153)","v":""},{"$f":"IF('1. Order'!O1153=\"\",\"\",'1. Order'!O1153)","v":{"$error":"#N/A"}},{"$f":"IF('1. Order'!P1153=\"\",\"\",'1. Order'!P1153)","v":{"$error":"#N/A"}},{"$f":"IF('1. Order'!Q1153=\"\",\"\",'1. Order'!Q1153)","v":""},{"$f":"IF('1. Order'!R1153=\"\",\"\",'1. Order'!R1153)","v":""},{"$f":"IF('1. Order'!S1153=\"\",\"\",'1. Order'!S1153)","v":""},{"$f":"IF('1. Order'!V1153=\"\",\"\",'1. Order'!V1153)","v":""},{"$f":"IF('1. Order'!W1153=\"\",\"\",'1. Order'!W1153)","v":""},{"$f":"IF('1. Order'!X1153=\"\",\"\",'1. Order'!X1153)","v":"EUR"},{"$f":"IF('1. Order'!Y1153=\"\",\"\",'1. Order'!Y1153)","v":""},{"$f":"IF('1. Order'!Z1153=\"\",\"\",'1. Order'!Z1153)","v":""},{"$f":"IF('1. Order'!AA1153=\"\",\"\",'1. Order'!AA1153)","v":""},null,{"$f":"IF('1. Order'!AS1153=\"\",\"\",'1. Order'!AS1153)","v":""},{"$f":"IF('1. Order'!AT1153=\"\",\"\",'1. Order'!AT1153)","v":""},null,null,null,null,null,null,null,{"$f":"IF('1. Order'!AX1153=\"\",\"\",'1. Order'!AX1153)","v":""},{"$f":"IF('1. Order'!AY1153=\"\",\"\",'1. Order'!AY1153)","v":""},{"$f":"IF('1. Order'!AZ1153=\"\",\"\",'1. Order'!AZ1153)","v":""},{"$f":"IF('1. Order'!BA1153=\"\",\"\",'1. Order'!BA1153)","v":""},{"$f":"IF('1. Order'!BC1153=\"\",\"\",'1. Order'!BC1153)","v":""},{"$f":"IF('1. Order'!BD1153=\"\",\"\",'1. Order'!BD1153)","v":6},{"$f":"IF('1. Order'!BE1153=\"\",\"\",'1. Order'!BE1153)","v":"None"},{"$f":"IF('1. Order'!BF1153=\"\",\"\",'1. Order'!BF1153)","v":"Parcel"},{"$f":"IF('1. Order'!BG1153=\"\",\"\",'1. Order'!BG1153)","v":"ZWO"}]
[{"$f":"IF('1. Order'!F1154=\"\",\"\",'1. Order'!F1154)","v":""},{"$f":"IF('1. Order'!G1154=\"\",\"\",'1. Order'!G1154)","v":""},{"$f":"IF('1. Order'!H1154=\"\",\"\",'1. Order'!H1154)","v":""},{"$f":"IF('1. Order'!I1154=\"\",\"\",'1. Order'!I1154)","v":""},{"$f":"IF('1. Order'!J1154=\"\",\"\",'1. Order'!J1154)","v":""},{"$f":"IF('1. Order'!K1154=\"\",\"\",'1. Order'!K1154)","v":""},{"$f":"IF('1. Order'!L1154=\"\",\"\",'1. Order'!L1154)","v":""},{"$f":"IF('1. Order'!M1154=\"\",\"\",'1. Order'!M1154)","v":""},{"$f":"IF('1. Order'!N1154=\"\",\"\",'1. Order'!N1154)","v":""},{"$f":"IF('1. Order'!O1154=\"\",\"\",'1. Order'!O1154)","v":{"$error":"#N/A"}},{"$f":"IF('1. Order'!P1154=\"\",\"\",'1. Order'!P1154)","v":{"$error":"#N/A"}},{"$f":"IF('1. Order'!Q1154=\"\",\"\",'1. Order'!Q1154)","v":""},{"$f":"IF('1. Order'!R1154=\"\",\"\",'1. Order'!R1154)","v":""},{"$f":"IF('1. Order'!S1154=\"\",\"\",'1. Order'!S1154)","v":""},{"$f":"IF('1. Order'!V1154=\"\",\"\",'1. Order'!V1154)","v":""},{"$f":"IF('1. Order'!W1154=\"\",\"\",'1. Order'!W1154)","v":""},{"$f":"IF('1. Order'!X1154=\"\",\"\",'1. Order'!X1154)","v":"EUR"},{"$f":"IF('1. Order'!Y1154=\"\",\"\",'1. Order'!Y1154)","v":""},{"$f":"IF('1. Order'!Z1154=\"\",\"\",'1. Order'!Z1154)","v":""},{"$f":"IF('1. Order'!AA1154=\"\",\"\",'1. Order'!AA1154)","v":""},null,{"$f":"IF('1. Order'!AS1154=\"\",\"\",'1. Order'!AS1154)","v":""},{"$f":"IF('1. Order'!AT1154=\"\",\"\",'1. Order'!AT1154)","v":""},null,null,null,null,null,null,null,{"$f":"IF('1. Order'!AX1154=\"\",\"\",'1. Order'!AX1154)","v":""},{"$f":"IF('1. Order'!AY1154=\"\",\"\",'1. Order'!AY1154)","v":""},{"$f":"IF('1. Order'!AZ1154=\"\",\"\",'1. Order'!AZ1154)","v":""},{"$f":"IF('1. Order'!BA1154=\"\",\"\",'1. Order'!BA1154)","v":""},{"$f":"IF('1. Order'!BC1154=\"\",\"\",'1. Order'!BC1154)","v":""},{"$f":"IF('1. Order'!BD1154=\"\",\"\",'1. Order'!BD1154)","v":6},{"$f":"IF('1. Order'!BE1154=\"\",\"\",'1. Order'!BE1154)","v":"None"},{"$f":"IF('1. Order'!BF1154=\"\",\"\",'1. Order'!BF1154)","v":"Parcel"},{"$f":"IF('1. Order'!BG1154=\"\",\"\",'1. Order'!BG1154)","v":"ZWO"}]
[{"$f":"IF('1. Order'!F1155=\"\",\"\",'1. Order'!F1155)","v":""},{"$f":"IF('1. Order'!G1155=\"\",\"\",'1. Order'!G1155)","v":""},{"$f":"IF('1. Order'!H1155=\"\",\"\",'1. Order'!H1155)","v":""},{"$f":"IF('1. Order'!I1155=\"\",\"\",'1. Order'!I1155)","v":""},{"$f":"IF('1. Order'!J1155=\"\",\"\",'1. Order'!J1155)","v":""},{"$f":"IF('1. Order'!K1155=\"\",\"\",'1. Order'!K1155)","v":""},{"$f":"IF('1. Order'!L1155=\"\",\"\",'1. Order'!L1155)","v":""},{"$f":"IF('1. Order'!M1155=\"\",\"\",'1. Order'!M1155)","v":""},{"$f":"IF('1. Order'!N1155=\"\",\"\",'1. Order'!N1155)","v":""},{"$f":"IF('1. Order'!O1155=\"\",\"\",'1. Order'!O1155)","v":{"$error":"#N/A"}},{"$f":"IF('1. Order'!P1155=\"\",\"\",'1. Order'!P1155)","v":{"$error":"#N/A"}},{"$f":"IF('1. Order'!Q1155=\"\",\"\",'1. Order'!Q1155)","v":""},{"$f":"IF('1. Order'!R1155=\"\",\"\",'1. Order'!R1155)","v":""},{"$f":"IF('1. Order'!S1155=\"\",\"\",'1. Order'!S1155)","v":""},{"$f":"IF('1. Order'!V1155=\"\",\"\",'1. Order'!V1155)","v":""},{"$f":"IF('1. Order'!W1155=\"\",\"\",'1. Order'!W1155)","v":""},{"$f":"IF('1. Order'!X1155=\"\",\"\",'1. Order'!X1155)","v":"EUR"},{"$f":"IF('1. Order'!Y1155=\"\",\"\",'1. Order'!Y1155)","v":""},{"$f":"IF('1. Order'!Z1155=\"\",\"\",'1. Order'!Z1155)","v":""},{"$f":"IF('1. Order'!AA1155=\"\",\"\",'1. Order'!AA1155)","v":""},null,{"$f":"IF('1. Order'!AS1155=\"\",\"\",'1. Order'!AS1155)","v":""},{"$f":"IF('1. Order'!AT1155=\"\",\"\",'1. Order'!AT1155)","v":""},null,null,null,null,null,null,null,{"$f":"IF('1. Order'!AX1155=\"\",\"\",'1. Order'!AX1155)","v":""},{"$f":"IF('1. Order'!AY1155=\"\",\"\",'1. Order'!AY1155)","v":""},{"$f":"IF('1. Order'!AZ1155=\"\",\"\",'1. Order'!AZ1155)","v":""},{"$f":"IF('1. Order'!BA1155=\"\",\"\",'1. Order'!BA1155)","v":""},{"$f":"IF('1. Order'!BC1155=\"\",\"\",'1. Order'!BC1155)","v":""},{"$f":"IF('1. Order'!BD1155=\"\",\"\",'1. Order'!BD1155)","v":6},{"$f":"IF('1. Order'!BE1155=\"\",\"\",'1. Order'!BE1155)","v":"None"},{"$f":"IF('1. Order'!BF1155=\"\",\"\",'1. Order'!BF1155)","v":"Parcel"},{"$f":"IF('1. Order'!BG1155=\"\",\"\",'1. Order'!BG1155)","v":"ZWO"}]
[{"$f":"IF('1. Order'!F1156=\"\",\"\",'1. Order'!F1156)","v":""},{"$f":"IF('1. Order'!G1156=\"\",\"\",'1. Order'!G1156)","v":""},{"$f":"IF('1. Order'!H1156=\"\",\"\",'1. Order'!H1156)","v":""},{"$f":"IF('1. Order'!I1156=\"\",\"\",'1. Order'!I1156)","v":""},{"$f":"IF('1. Order'!J1156=\"\",\"\",'1. Order'!J1156)","v":""},{"$f":"IF('1. Order'!K1156=\"\",\"\",'1. Order'!K1156)","v":""},{"$f":"IF('1. Order'!L1156=\"\",\"\",'1. Order'!L1156)","v":""},{"$f":"IF('1. Order'!M1156=\"\",\"\",'1. Order'!M1156)","v":""},{"$f":"IF('1. Order'!N1156=\"\",\"\",'1. Order'!N1156)","v":""},{"$f":"IF('1. Order'!O1156=\"\",\"\",'1. Order'!O1156)","v":{"$error":"#N/A"}},{"$f":"IF('1. Order'!P1156=\"\",\"\",'1. Order'!P1156)","v":{"$error":"#N/A"}},{"$f":"IF('1. Order'!Q1156=\"\",\"\",'1. Order'!Q1156)","v":""},{"$f":"IF('1. Order'!R1156=\"\",\"\",'1. Order'!R1156)","v":""},{"$f":"IF('1. Order'!S1156=\"\",\"\",'1. Order'!S1156)","v":""},{"$f":"IF('1. Order'!V1156=\"\",\"\",'1. Order'!V1156)","v":""},{"$f":"IF('1. Order'!W1156=\"\",\"\",'1. Order'!W1156)","v":""},{"$f":"IF('1. Order'!X1156=\"\",\"\",'1. Order'!X1156)","v":"EUR"},{"$f":"IF('1. Order'!Y1156=\"\",\"\",'1. Order'!Y1156)","v":""},{"$f":"IF('1. Order'!Z1156=\"\",\"\",'1. Order'!Z1156)","v":""},{"$f":"IF('1. Order'!AA1156=\"\",\"\",'1. Order'!AA1156)","v":""},null,{"$f":"IF('1. Order'!AS1156=\"\",\"\",'1. Order'!AS1156)","v":""},{"$f":"IF('1. Order'!AT1156=\"\",\"\",'1. Order'!AT1156)","v":""},null,null,null,null,null,null,null,{"$f":"IF('1. Order'!AX1156=\"\",\"\",'1. Order'!AX1156)","v":""},{"$f":"IF('1. Order'!AY1156=\"\",\"\",'1. Order'!AY1156)","v":""},{"$f":"IF('1. Order'!AZ1156=\"\",\"\",'1. Order'!AZ1156)","v":""},{"$f":"IF('1. Order'!BA1156=\"\",\"\",'1. Order'!BA1156)","v":""},{"$f":"IF('1. Order'!BC1156=\"\",\"\",'1. Order'!BC1156)","v":""},{"$f":"IF('1. Order'!BD1156=\"\",\"\",'1. Order'!BD1156)","v":6},{"$f":"IF('1. Order'!BE1156=\"\",\"\",'1. Order'!BE1156)","v":"None"},{"$f":"IF('1. Order'!BF1156=\"\",\"\",'1. Order'!BF1156)","v":"Parcel"},{"$f":"IF('1. Order'!BG1156=\"\",\"\",'1. Order'!BG1156)","v":"ZWO"}]
[{"$f":"IF('1. Order'!F1157=\"\",\"\",'1. Order'!F1157)","v":""},{"$f":"IF('1. Order'!G1157=\"\",\"\",'1. Order'!G1157)","v":""},{"$f":"IF('1. Order'!H1157=\"\",\"\",'1. Order'!H1157)","v":""},{"$f":"IF('1. Order'!I1157=\"\",\"\",'1. Order'!I1157)","v":""},{"$f":"IF('1. Order'!J1157=\"\",\"\",'1. Order'!J1157)","v":""},{"$f":"IF('1. Order'!K1157=\"\",\"\",'1. Order'!K1157)","v":""},{"$f":"IF('1. Order'!L1157=\"\",\"\",'1. Order'!L1157)","v":""},{"$f":"IF('1. Order'!M1157=\"\",\"\",'1. Order'!M1157)","v":""},{"$f":"IF('1. Order'!N1157=\"\",\"\",'1. Order'!N1157)","v":""},{"$f":"IF('1. Order'!O1157=\"\",\"\",'1. Order'!O1157)","v":{"$error":"#N/A"}},{"$f":"IF('1. Order'!P1157=\"\",\"\",'1. Order'!P1157)","v":{"$error":"#N/A"}},{"$f":"IF('1. Order'!Q1157=\"\",\"\",'1. Order'!Q1157)","v":""},{"$f":"IF('1. Order'!R1157=\"\",\"\",'1. Order'!R1157)","v":""},{"$f":"IF('1. Order'!S1157=\"\",\"\",'1. Order'!S1157)","v":""},{"$f":"IF('1. Order'!V1157=\"\",\"\",'1. Order'!V1157)","v":""},{"$f":"IF('1. Order'!W1157=\"\",\"\",'1. Order'!W1157)","v":""},{"$f":"IF('1. Order'!X1157=\"\",\"\",'1. Order'!X1157)","v":"EUR"},{"$f":"IF('1. Order'!Y1157=\"\",\"\",'1. Order'!Y1157)","v":""},{"$f":"IF('1. Order'!Z1157=\"\",\"\",'1. Order'!Z1157)","v":""},{"$f":"IF('1. Order'!AA1157=\"\",\"\",'1. Order'!AA1157)","v":""},null,{"$f":"IF('1. Order'!AS1157=\"\",\"\",'1. Order'!AS1157)","v":""},{"$f":"IF('1. Order'!AT1157=\"\",\"\",'1. Order'!AT1157)","v":""},null,null,null,null,null,null,null,{"$f":"IF('1. Order'!AX1157=\"\",\"\",'1. Order'!AX1157)","v":""},{"$f":"IF('1. Order'!AY1157=\"\",\"\",'1. Order'!AY1157)","v":""},{"$f":"IF('1. Order'!AZ1157=\"\",\"\",'1. Order'!AZ1157)","v":""},{"$f":"IF('1. Order'!BA1157=\"\",\"\",'1. Order'!BA1157)","v":""},{"$f":"IF('1. Order'!BC1157=\"\",\"\",'1. Order'!BC1157)","v":""},{"$f":"IF('1. Order'!BD1157=\"\",\"\",'1. Order'!BD1157)","v":6},{"$f":"IF('1. Order'!BE1157=\"\",\"\",'1. Order'!BE1157)","v":"None"},{"$f":"IF('1. Order'!BF1157=\"\",\"\",'1. Order'!BF1157)","v":"Parcel"},{"$f":"IF('1. Order'!BG1157=\"\",\"\",'1. Order'!BG1157)","v":"ZWO"}]
[{"$f":"IF('1. Order'!F1158=\"\",\"\",'1. Order'!F1158)","v":""},{"$f":"IF('1. Order'!G1158=\"\",\"\",'1. Order'!G1158)","v":""},{"$f":"IF('1. Order'!H1158=\"\",\"\",'1. Order'!H1158)","v":""},{"$f":"IF('1. Order'!I1158=\"\",\"\",'1. Order'!I1158)","v":""},{"$f":"IF('1. Order'!J1158=\"\",\"\",'1. Order'!J1158)","v":""},{"$f":"IF('1. Order'!K1158=\"\",\"\",'1. Order'!K1158)","v":""},{"$f":"IF('1. Order'!L1158=\"\",\"\",'1. Order'!L1158)","v":""},{"$f":"IF('1. Order'!M1158=\"\",\"\",'1. Order'!M1158)","v":""},{"$f":"IF('1. Order'!N1158=\"\",\"\",'1. Order'!N1158)","v":""},{"$f":"IF('1. Order'!O1158=\"\",\"\",'1. Order'!O1158)","v":{"$error":"#N/A"}},{"$f":"IF('1. Order'!P1158=\"\",\"\",'1. Order'!P1158)","v":{"$error":"#N/A"}},{"$f":"IF('1. Order'!Q1158=\"\",\"\",'1. Order'!Q1158)","v":""},{"$f":"IF('1. Order'!R1158=\"\",\"\",'1. Order'!R1158)","v":""},{"$f":"IF('1. Order'!S1158=\"\",\"\",'1. Order'!S1158)","v":""},{"$f":"IF('1. Order'!V1158=\"\",\"\",'1. Order'!V1158)","v":""},{"$f":"IF('1. Order'!W1158=\"\",\"\",'1. Order'!W1158)","v":""},{"$f":"IF('1. Order'!X1158=\"\",\"\",'1. Order'!X1158)","v":"EUR"},{"$f":"IF('1. Order'!Y1158=\"\",\"\",'1. Order'!Y1158)","v":""},{"$f":"IF('1. Order'!Z1158=\"\",\"\",'1. Order'!Z1158)","v":""},{"$f":"IF('1. Order'!AA1158=\"\",\"\",'1. Order'!AA1158)","v":""},null,{"$f":"IF('1. Order'!AS1158=\"\",\"\",'1. Order'!AS1158)","v":""},{"$f":"IF('1. Order'!AT1158=\"\",\"\",'1. Order'!AT1158)","v":""},null,null,null,null,null,null,null,{"$f":"IF('1. Order'!AX1158=\"\",\"\",'1. Order'!AX1158)","v":""},{"$f":"IF('1. Order'!AY1158=\"\",\"\",'1. Order'!AY1158)","v":""},{"$f":"IF('1. Order'!AZ1158=\"\",\"\",'1. Order'!AZ1158)","v":""},{"$f":"IF('1. Order'!BA1158=\"\",\"\",'1. Order'!BA1158)","v":""},{"$f":"IF('1. Order'!BC1158=\"\",\"\",'1. Order'!BC1158)","v":""},{"$f":"IF('1. Order'!BD1158=\"\",\"\",'1. Order'!BD1158)","v":6},{"$f":"IF('1. Order'!BE1158=\"\",\"\",'1. Order'!BE1158)","v":"None"},{"$f":"IF('1. Order'!BF1158=\"\",\"\",'1. Order'!BF1158)","v":"Parcel"},{"$f":"IF('1. Order'!BG1158=\"\",\"\",'1. Order'!BG1158)","v":"ZWO"}]
[{"$f":"IF('1. Order'!F1159=\"\",\"\",'1. Order'!F1159)","v":""},{"$f":"IF('1. Order'!G1159=\"\",\"\",'1. Order'!G1159)","v":""},{"$f":"IF('1. Order'!H1159=\"\",\"\",'1. Order'!H1159)","v":""},{"$f":"IF('1. Order'!I1159=\"\",\"\",'1. Order'!I1159)","v":""},{"$f":"IF('1. Order'!J1159=\"\",\"\",'1. Order'!J1159)","v":""},{"$f":"IF('1. Order'!K1159=\"\",\"\",'1. Order'!K1159)","v":""},{"$f":"IF('1. Order'!L1159=\"\",\"\",'1. Order'!L1159)","v":""},{"$f":"IF('1. Order'!M1159=\"\",\"\",'1. Order'!M1159)","v":""},{"$f":"IF('1. Order'!N1159=\"\",\"\",'1. Order'!N1159)","v":""},{"$f":"IF('1. Order'!O1159=\"\",\"\",'1. Order'!O1159)","v":{"$error":"#N/A"}},{"$f":"IF('1. Order'!P1159=\"\",\"\",'1. Order'!P1159)","v":{"$error":"#N/A"}},{"$f":"IF('1. Order'!Q1159=\"\",\"\",'1. Order'!Q1159)","v":""},{"$f":"IF('1. Order'!R1159=\"\",\"\",'1. Order'!R1159)","v":""},{"$f":"IF('1. Order'!S1159=\"\",\"\",'1. Order'!S1159)","v":""},{"$f":"IF('1. Order'!V1159=\"\",\"\",'1. Order'!V1159)","v":""},{"$f":"IF('1. Order'!W1159=\"\",\"\",'1. Order'!W1159)","v":""},{"$f":"IF('1. Order'!X1159=\"\",\"\",'1. Order'!X1159)","v":"EUR"},{"$f":"IF('1. Order'!Y1159=\"\",\"\",'1. Order'!Y1159)","v":""},{"$f":"IF('1. Order'!Z1159=\"\",\"\",'1. Order'!Z1159)","v":""},{"$f":"IF('1. Order'!AA1159=\"\",\"\",'1. Order'!AA1159)","v":""},null,{"$f":"IF('1. Order'!AS1159=\"\",\"\",'1. Order'!AS1159)","v":""},{"$f":"IF('1. Order'!AT1159=\"\",\"\",'1. Order'!AT1159)","v":""},null,null,null,null,null,null,null,{"$f":"IF('1. Order'!AX1159=\"\",\"\",'1. Order'!AX1159)","v":""},{"$f":"IF('1. Order'!AY1159=\"\",\"\",'1. Order'!AY1159)","v":""},{"$f":"IF('1. Order'!AZ1159=\"\",\"\",'1. Order'!AZ1159)","v":""},{"$f":"IF('1. Order'!BA1159=\"\",\"\",'1. Order'!BA1159)","v":""},{"$f":"IF('1. Order'!BC1159=\"\",\"\",'1. Order'!BC1159)","v":""},{"$f":"IF('1. Order'!BD1159=\"\",\"\",'1. Order'!BD1159)","v":6},{"$f":"IF('1. Order'!BE1159=\"\",\"\",'1. Order'!BE1159)","v":"None"},{"$f":"IF('1. Order'!BF1159=\"\",\"\",'1. Order'!BF1159)","v":"Parcel"},{"$f":"IF('1. Order'!BG1159=\"\",\"\",'1. Order'!BG1159)","v":"ZWO"}]
[{"$f":"IF('1. Order'!F1160=\"\",\"\",'1. Order'!F1160)","v":""},{"$f":"IF('1. Order'!G1160=\"\",\"\",'1. Order'!G1160)","v":""},{"$f":"IF('1. Order'!H1160=\"\",\"\",'1. Order'!H1160)","v":""},{"$f":"IF('1. Order'!I1160=\"\",\"\",'1. Order'!I1160)","v":""},{"$f":"IF('1. Order'!J1160=\"\",\"\",'1. Order'!J1160)","v":""},{"$f":"IF('1. Order'!K1160=\"\",\"\",'1. Order'!K1160)","v":""},{"$f":"IF('1. Order'!L1160=\"\",\"\",'1. Order'!L1160)","v":""},{"$f":"IF('1. Order'!M1160=\"\",\"\",'1. Order'!M1160)","v":""},{"$f":"IF('1. Order'!N1160=\"\",\"\",'1. Order'!N1160)","v":""},{"$f":"IF('1. Order'!O1160=\"\",\"\",'1. Order'!O1160)","v":{"$error":"#N/A"}},{"$f":"IF('1. Order'!P1160=\"\",\"\",'1. Order'!P1160)","v":{"$error":"#N/A"}},{"$f":"IF('1. Order'!Q1160=\"\",\"\",'1. Order'!Q1160)","v":""},{"$f":"IF('1. Order'!R1160=\"\",\"\",'1. Order'!R1160)","v":""},{"$f":"IF('1. Order'!S1160=\"\",\"\",'1. Order'!S1160)","v":""},{"$f":"IF('1. Order'!V1160=\"\",\"\",'1. Order'!V1160)","v":""},{"$f":"IF('1. Order'!W1160=\"\",\"\",'1. Order'!W1160)","v":""},{"$f":"IF('1. Order'!X1160=\"\",\"\",'1. Order'!X1160)","v":"EUR"},{"$f":"IF('1. Order'!Y1160=\"\",\"\",'1. Order'!Y1160)","v":""},{"$f":"IF('1. Order'!Z1160=\"\",\"\",'1. Order'!Z1160)","v":""},{"$f":"IF('1. Order'!AA1160=\"\",\"\",'1. Order'!AA1160)","v":""},null,{"$f":"IF('1. Order'!AS1160=\"\",\"\",'1. Order'!AS1160)","v":""},{"$f":"IF('1. Order'!AT1160=\"\",\"\",'1. Order'!AT1160)","v":""},null,null,null,null,null,null,null,{"$f":"IF('1. Order'!AX1160=\"\",\"\",'1. Order'!AX1160)","v":""},{"$f":"IF('1. Order'!AY1160=\"\",\"\",'1. Order'!AY1160)","v":""},{"$f":"IF('1. Order'!AZ1160=\"\",\"\",'1. Order'!AZ1160)","v":""},{"$f":"IF('1. Order'!BA1160=\"\",\"\",'1. Order'!BA1160)","v":""},{"$f":"IF('1. Order'!BC1160=\"\",\"\",'1. Order'!BC1160)","v":""},{"$f":"IF('1. Order'!BD1160=\"\",\"\",'1. Order'!BD1160)","v":6},{"$f":"IF('1. Order'!BE1160=\"\",\"\",'1. Order'!BE1160)","v":"None"},{"$f":"IF('1. Order'!BF1160=\"\",\"\",'1. Order'!BF1160)","v":"Parcel"},{"$f":"IF('1. Order'!BG1160=\"\",\"\",'1. Order'!BG1160)","v":"ZWO"}]
[{"$f":"IF('1. Order'!F1161=\"\",\"\",'1. Order'!F1161)","v":""},{"$f":"IF('1. Order'!G1161=\"\",\"\",'1. Order'!G1161)","v":""},{"$f":"IF('1. Order'!H1161=\"\",\"\",'1. Order'!H1161)","v":""},{"$f":"IF('1. Order'!I1161=\"\",\"\",'1. Order'!I1161)","v":""},{"$f":"IF('1. Order'!J1161=\"\",\"\",'1. Order'!J1161)","v":""},{"$f":"IF('1. Order'!K1161=\"\",\"\",'1. Order'!K1161)","v":""},{"$f":"IF('1. Order'!L1161=\"\",\"\",'1. Order'!L1161)","v":""},{"$f":"IF('1. Order'!M1161=\"\",\"\",'1. Order'!M1161)","v":""},{"$f":"IF('1. Order'!N1161=\"\",\"\",'1. Order'!N1161)","v":""},{"$f":"IF('1. Order'!O1161=\"\",\"\",'1. Order'!O1161)","v":{"$error":"#N/A"}},{"$f":"IF('1. Order'!P1161=\"\",\"\",'1. Order'!P1161)","v":{"$error":"#N/A"}},{"$f":"IF('1. Order'!Q1161=\"\",\"\",'1. Order'!Q1161)","v":""},{"$f":"IF('1. Order'!R1161=\"\",\"\",'1. Order'!R1161)","v":""},{"$f":"IF('1. Order'!S1161=\"\",\"\",'1. Order'!S1161)","v":""},{"$f":"IF('1. Order'!V1161=\"\",\"\",'1. Order'!V1161)","v":""},{"$f":"IF('1. Order'!W1161=\"\",\"\",'1. Order'!W1161)","v":""},{"$f":"IF('1. Order'!X1161=\"\",\"\",'1. Order'!X1161)","v":"EUR"},{"$f":"IF('1. Order'!Y1161=\"\",\"\",'1. Order'!Y1161)","v":""},{"$f":"IF('1. Order'!Z1161=\"\",\"\",'1. Order'!Z1161)","v":""},{"$f":"IF('1. Order'!AA1161=\"\",\"\",'1. Order'!AA1161)","v":""},null,{"$f":"IF('1. Order'!AS1161=\"\",\"\",'1. Order'!AS1161)","v":""},{"$f":"IF('1. Order'!AT1161=\"\",\"\",'1. Order'!AT1161)","v":""},null,null,null,null,null,null,null,{"$f":"IF('1. Order'!AX1161=\"\",\"\",'1. Order'!AX1161)","v":""},{"$f":"IF('1. Order'!AY1161=\"\",\"\",'1. Order'!AY1161)","v":""},{"$f":"IF('1. Order'!AZ1161=\"\",\"\",'1. Order'!AZ1161)","v":""},{"$f":"IF('1. Order'!BA1161=\"\",\"\",'1. Order'!BA1161)","v":""},{"$f":"IF('1. Order'!BC1161=\"\",\"\",'1. Order'!BC1161)","v":""},{"$f":"IF('1. Order'!BD1161=\"\",\"\",'1. Order'!BD1161)","v":6},{"$f":"IF('1. Order'!BE1161=\"\",\"\",'1. Order'!BE1161)","v":"None"},{"$f":"IF('1. Order'!BF1161=\"\",\"\",'1. Order'!BF1161)","v":"Parcel"},{"$f":"IF('1. Order'!BG1161=\"\",\"\",'1. Order'!BG1161)","v":"ZWO"}]
[{"$f":"IF('1. Order'!F1162=\"\",\"\",'1. Order'!F1162)","v":""},{"$f":"IF('1. Order'!G1162=\"\",\"\",'1. Order'!G1162)","v":""},{"$f":"IF('1. Order'!H1162=\"\",\"\",'1. Order'!H1162)","v":""},{"$f":"IF('1. Order'!I1162=\"\",\"\",'1. Order'!I1162)","v":""},{"$f":"IF('1. Order'!J1162=\"\",\"\",'1. Order'!J1162)","v":""},{"$f":"IF('1. Order'!K1162=\"\",\"\",'1. Order'!K1162)","v":""},{"$f":"IF('1. Order'!L1162=\"\",\"\",'1. Order'!L1162)","v":""},{"$f":"IF('1. Order'!M1162=\"\",\"\",'1. Order'!M1162)","v":""},{"$f":"IF('1. Order'!N1162=\"\",\"\",'1. Order'!N1162)","v":""},{"$f":"IF('1. Order'!O1162=\"\",\"\",'1. Order'!O1162)","v":{"$error":"#N/A"}},{"$f":"IF('1. Order'!P1162=\"\",\"\",'1. Order'!P1162)","v":{"$error":"#N/A"}},{"$f":"IF('1. Order'!Q1162=\"\",\"\",'1. Order'!Q1162)","v":""},{"$f":"IF('1. Order'!R1162=\"\",\"\",'1. Order'!R1162)","v":""},{"$f":"IF('1. Order'!S1162=\"\",\"\",'1. Order'!S1162)","v":""},{"$f":"IF('1. Order'!V1162=\"\",\"\",'1. Order'!V1162)","v":""},{"$f":"IF('1. Order'!W1162=\"\",\"\",'1. Order'!W1162)","v":""},{"$f":"IF('1. Order'!X1162=\"\",\"\",'1. Order'!X1162)","v":"EUR"},{"$f":"IF('1. Order'!Y1162=\"\",\"\",'1. Order'!Y1162)","v":""},{"$f":"IF('1. Order'!Z1162=\"\",\"\",'1. Order'!Z1162)","v":""},{"$f":"IF('1. Order'!AA1162=\"\",\"\",'1. Order'!AA1162)","v":""},null,{"$f":"IF('1. Order'!AS1162=\"\",\"\",'1. Order'!AS1162)","v":""},{"$f":"IF('1. Order'!AT1162=\"\",\"\",'1. Order'!AT1162)","v":""},null,null,null,null,null,null,null,{"$f":"IF('1. Order'!AX1162=\"\",\"\",'1. Order'!AX1162)","v":""},{"$f":"IF('1. Order'!AY1162=\"\",\"\",'1. Order'!AY1162)","v":""},{"$f":"IF('1. Order'!AZ1162=\"\",\"\",'1. Order'!AZ1162)","v":""},{"$f":"IF('1. Order'!BA1162=\"\",\"\",'1. Order'!BA1162)","v":""},{"$f":"IF('1. Order'!BC1162=\"\",\"\",'1. Order'!BC1162)","v":""},{"$f":"IF('1. Order'!BD1162=\"\",\"\",'1. Order'!BD1162)","v":6},{"$f":"IF('1. Order'!BE1162=\"\",\"\",'1. Order'!BE1162)","v":"None"},{"$f":"IF('1. Order'!BF1162=\"\",\"\",'1. Order'!BF1162)","v":"Parcel"},{"$f":"IF('1. Order'!BG1162=\"\",\"\",'1. Order'!BG1162)","v":"ZWO"}]
[{"$f":"IF('1. Order'!F1163=\"\",\"\",'1. Order'!F1163)","v":""},{"$f":"IF('1. Order'!G1163=\"\",\"\",'1. Order'!G1163)","v":""},{"$f":"IF('1. Order'!H1163=\"\",\"\",'1. Order'!H1163)","v":""},{"$f":"IF('1. Order'!I1163=\"\",\"\",'1. Order'!I1163)","v":""},{"$f":"IF('1. Order'!J1163=\"\",\"\",'1. Order'!J1163)","v":""},{"$f":"IF('1. Order'!K1163=\"\",\"\",'1. Order'!K1163)","v":""},{"$f":"IF('1. Order'!L1163=\"\",\"\",'1. Order'!L1163)","v":""},{"$f":"IF('1. Order'!M1163=\"\",\"\",'1. Order'!M1163)","v":""},{"$f":"IF('1. Order'!N1163=\"\",\"\",'1. Order'!N1163)","v":""},{"$f":"IF('1. Order'!O1163=\"\",\"\",'1. Order'!O1163)","v":{"$error":"#N/A"}},{"$f":"IF('1. Order'!P1163=\"\",\"\",'1. Order'!P1163)","v":{"$error":"#N/A"}},{"$f":"IF('1. Order'!Q1163=\"\",\"\",'1. Order'!Q1163)","v":""},{"$f":"IF('1. Order'!R1163=\"\",\"\",'1. Order'!R1163)","v":""},{"$f":"IF('1. Order'!S1163=\"\",\"\",'1. Order'!S1163)","v":""},{"$f":"IF('1. Order'!V1163=\"\",\"\",'1. Order'!V1163)","v":""},{"$f":"IF('1. Order'!W1163=\"\",\"\",'1. Order'!W1163)","v":""},{"$f":"IF('1. Order'!X1163=\"\",\"\",'1. Order'!X1163)","v":"EUR"},{"$f":"IF('1. Order'!Y1163=\"\",\"\",'1. Order'!Y1163)","v":""},{"$f":"IF('1. Order'!Z1163=\"\",\"\",'1. Order'!Z1163)","v":""},{"$f":"IF('1. Order'!AA1163=\"\",\"\",'1. Order'!AA1163)","v":""},null,{"$f":"IF('1. Order'!AS1163=\"\",\"\",'1. Order'!AS1163)","v":""},{"$f":"IF('1. Order'!AT1163=\"\",\"\",'1. Order'!AT1163)","v":""},null,null,null,null,null,null,null,{"$f":"IF('1. Order'!AX1163=\"\",\"\",'1. Order'!AX1163)","v":""},{"$f":"IF('1. Order'!AY1163=\"\",\"\",'1. Order'!AY1163)","v":""},{"$f":"IF('1. Order'!AZ1163=\"\",\"\",'1. Order'!AZ1163)","v":""},{"$f":"IF('1. Order'!BA1163=\"\",\"\",'1. Order'!BA1163)","v":""},{"$f":"IF('1. Order'!BC1163=\"\",\"\",'1. Order'!BC1163)","v":""},{"$f":"IF('1. Order'!BD1163=\"\",\"\",'1. Order'!BD1163)","v":6},{"$f":"IF('1. Order'!BE1163=\"\",\"\",'1. Order'!BE1163)","v":"None"},{"$f":"IF('1. Order'!BF1163=\"\",\"\",'1. Order'!BF1163)","v":"Parcel"},{"$f":"IF('1. Order'!BG1163=\"\",\"\",'1. Order'!BG1163)","v":"ZWO"}]
[{"$f":"IF('1. Order'!F1164=\"\",\"\",'1. Order'!F1164)","v":""},{"$f":"IF('1. Order'!G1164=\"\",\"\",'1. Order'!G1164)","v":""},{"$f":"IF('1. Order'!H1164=\"\",\"\",'1. Order'!H1164)","v":""},{"$f":"IF('1. Order'!I1164=\"\",\"\",'1. Order'!I1164)","v":""},{"$f":"IF('1. Order'!J1164=\"\",\"\",'1. Order'!J1164)","v":""},{"$f":"IF('1. Order'!K1164=\"\",\"\",'1. Order'!K1164)","v":""},{"$f":"IF('1. Order'!L1164=\"\",\"\",'1. Order'!L1164)","v":""},{"$f":"IF('1. Order'!M1164=\"\",\"\",'1. Order'!M1164)","v":""},{"$f":"IF('1. Order'!N1164=\"\",\"\",'1. Order'!N1164)","v":""},{"$f":"IF('1. Order'!O1164=\"\",\"\",'1. Order'!O1164)","v":{"$error":"#N/A"}},{"$f":"IF('1. Order'!P1164=\"\",\"\",'1. Order'!P1164)","v":{"$error":"#N/A"}},{"$f":"IF('1. Order'!Q1164=\"\",\"\",'1. Order'!Q1164)","v":""},{"$f":"IF('1. Order'!R1164=\"\",\"\",'1. Order'!R1164)","v":""},{"$f":"IF('1. Order'!S1164=\"\",\"\",'1. Order'!S1164)","v":""},{"$f":"IF('1. Order'!V1164=\"\",\"\",'1. Order'!V1164)","v":""},{"$f":"IF('1. Order'!W1164=\"\",\"\",'1. Order'!W1164)","v":""},{"$f":"IF('1. Order'!X1164=\"\",\"\",'1. Order'!X1164)","v":"EUR"},{"$f":"IF('1. Order'!Y1164=\"\",\"\",'1. Order'!Y1164)","v":""},{"$f":"IF('1. Order'!Z1164=\"\",\"\",'1. Order'!Z1164)","v":""},{"$f":"IF('1. Order'!AA1164=\"\",\"\",'1. Order'!AA1164)","v":""},null,{"$f":"IF('1. Order'!AS1164=\"\",\"\",'1. Order'!AS1164)","v":""},{"$f":"IF('1. Order'!AT1164=\"\",\"\",'1. Order'!AT1164)","v":""},null,null,null,null,null,null,null,{"$f":"IF('1. Order'!AX1164=\"\",\"\",'1. Order'!AX1164)","v":""},{"$f":"IF('1. Order'!AY1164=\"\",\"\",'1. Order'!AY1164)","v":""},{"$f":"IF('1. Order'!AZ1164=\"\",\"\",'1. Order'!AZ1164)","v":""},{"$f":"IF('1. Order'!BA1164=\"\",\"\",'1. Order'!BA1164)","v":""},{"$f":"IF('1. Order'!BC1164=\"\",\"\",'1. Order'!BC1164)","v":""},{"$f":"IF('1. Order'!BD1164=\"\",\"\",'1. Order'!BD1164)","v":6},{"$f":"IF('1. Order'!BE1164=\"\",\"\",'1. Order'!BE1164)","v":"None"},{"$f":"IF('1. Order'!BF1164=\"\",\"\",'1. Order'!BF1164)","v":"Parcel"},{"$f":"IF('1. Order'!BG1164=\"\",\"\",'1. Order'!BG1164)","v":"ZWO"}]
[{"$f":"IF('1. Order'!F1165=\"\",\"\",'1. Order'!F1165)","v":""},{"$f":"IF('1. Order'!G1165=\"\",\"\",'1. Order'!G1165)","v":""},{"$f":"IF('1. Order'!H1165=\"\",\"\",'1. Order'!H1165)","v":""},{"$f":"IF('1. Order'!I1165=\"\",\"\",'1. Order'!I1165)","v":""},{"$f":"IF('1. Order'!J1165=\"\",\"\",'1. Order'!J1165)","v":""},{"$f":"IF('1. Order'!K1165=\"\",\"\",'1. Order'!K1165)","v":""},{"$f":"IF('1. Order'!L1165=\"\",\"\",'1. Order'!L1165)","v":""},{"$f":"IF('1. Order'!M1165=\"\",\"\",'1. Order'!M1165)","v":""},{"$f":"IF('1. Order'!N1165=\"\",\"\",'1. Order'!N1165)","v":""},{"$f":"IF('1. Order'!O1165=\"\",\"\",'1. Order'!O1165)","v":{"$error":"#N/A"}},{"$f":"IF('1. Order'!P1165=\"\",\"\",'1. Order'!P1165)","v":{"$error":"#N/A"}},{"$f":"IF('1. Order'!Q1165=\"\",\"\",'1. Order'!Q1165)","v":""},{"$f":"IF('1. Order'!R1165=\"\",\"\",'1. Order'!R1165)","v":""},{"$f":"IF('1. Order'!S1165=\"\",\"\",'1. Order'!S1165)","v":""},{"$f":"IF('1. Order'!V1165=\"\",\"\",'1. Order'!V1165)","v":""},{"$f":"IF('1. Order'!W1165=\"\",\"\",'1. Order'!W1165)","v":""},{"$f":"IF('1. Order'!X1165=\"\",\"\",'1. Order'!X1165)","v":"EUR"},{"$f":"IF('1. Order'!Y1165=\"\",\"\",'1. Order'!Y1165)","v":""},{"$f":"IF('1. Order'!Z1165=\"\",\"\",'1. Order'!Z1165)","v":""},{"$f":"IF('1. Order'!AA1165=\"\",\"\",'1. Order'!AA1165)","v":""},null,{"$f":"IF('1. Order'!AS1165=\"\",\"\",'1. Order'!AS1165)","v":""},{"$f":"IF('1. Order'!AT1165=\"\",\"\",'1. Order'!AT1165)","v":""},null,null,null,null,null,null,null,{"$f":"IF('1. Order'!AX1165=\"\",\"\",'1. Order'!AX1165)","v":""},{"$f":"IF('1. Order'!AY1165=\"\",\"\",'1. Order'!AY1165)","v":""},{"$f":"IF('1. Order'!AZ1165=\"\",\"\",'1. Order'!AZ1165)","v":""},{"$f":"IF('1. Order'!BA1165=\"\",\"\",'1. Order'!BA1165)","v":""},{"$f":"IF('1. Order'!BC1165=\"\",\"\",'1. Order'!BC1165)","v":""},{"$f":"IF('1. Order'!BD1165=\"\",\"\",'1. Order'!BD1165)","v":6},{"$f":"IF('1. Order'!BE1165=\"\",\"\",'1. Order'!BE1165)","v":"None"},{"$f":"IF('1. Order'!BF1165=\"\",\"\",'1. Order'!BF1165)","v":"Parcel"},{"$f":"IF('1. Order'!BG1165=\"\",\"\",'1. Order'!BG1165)","v":"ZWO"}]
[{"$f":"IF('1. Order'!F1166=\"\",\"\",'1. Order'!F1166)","v":""},{"$f":"IF('1. Order'!G1166=\"\",\"\",'1. Order'!G1166)","v":""},{"$f":"IF('1. Order'!H1166=\"\",\"\",'1. Order'!H1166)","v":""},{"$f":"IF('1. Order'!I1166=\"\",\"\",'1. Order'!I1166)","v":""},{"$f":"IF('1. Order'!J1166=\"\",\"\",'1. Order'!J1166)","v":""},{"$f":"IF('1. Order'!K1166=\"\",\"\",'1. Order'!K1166)","v":""},{"$f":"IF('1. Order'!L1166=\"\",\"\",'1. Order'!L1166)","v":""},{"$f":"IF('1. Order'!M1166=\"\",\"\",'1. Order'!M1166)","v":""},{"$f":"IF('1. Order'!N1166=\"\",\"\",'1. Order'!N1166)","v":""},{"$f":"IF('1. Order'!O1166=\"\",\"\",'1. Order'!O1166)","v":{"$error":"#N/A"}},{"$f":"IF('1. Order'!P1166=\"\",\"\",'1. Order'!P1166)","v":{"$error":"#N/A"}},{"$f":"IF('1. Order'!Q1166=\"\",\"\",'1. Order'!Q1166)","v":""},{"$f":"IF('1. Order'!R1166=\"\",\"\",'1. Order'!R1166)","v":""},{"$f":"IF('1. Order'!S1166=\"\",\"\",'1. Order'!S1166)","v":""},{"$f":"IF('1. Order'!V1166=\"\",\"\",'1. Order'!V1166)","v":""},{"$f":"IF('1. Order'!W1166=\"\",\"\",'1. Order'!W1166)","v":""},{"$f":"IF('1. Order'!X1166=\"\",\"\",'1. Order'!X1166)","v":"EUR"},{"$f":"IF('1. Order'!Y1166=\"\",\"\",'1. Order'!Y1166)","v":""},{"$f":"IF('1. Order'!Z1166=\"\",\"\",'1. Order'!Z1166)","v":""},{"$f":"IF('1. Order'!AA1166=\"\",\"\",'1. Order'!AA1166)","v":""},null,{"$f":"IF('1. Order'!AS1166=\"\",\"\",'1. Order'!AS1166)","v":""},{"$f":"IF('1. Order'!AT1166=\"\",\"\",'1. Order'!AT1166)","v":""},null,null,null,null,null,null,null,{"$f":"IF('1. Order'!AX1166=\"\",\"\",'1. Order'!AX1166)","v":""},{"$f":"IF('1. Order'!AY1166=\"\",\"\",'1. Order'!AY1166)","v":""},{"$f":"IF('1. Order'!AZ1166=\"\",\"\",'1. Order'!AZ1166)","v":""},{"$f":"IF('1. Order'!BA1166=\"\",\"\",'1. Order'!BA1166)","v":""},{"$f":"IF('1. Order'!BC1166=\"\",\"\",'1. Order'!BC1166)","v":""},{"$f":"IF('1. Order'!BD1166=\"\",\"\",'1. Order'!BD1166)","v":6},{"$f":"IF('1. Order'!BE1166=\"\",\"\",'1. Order'!BE1166)","v":"None"},{"$f":"IF('1. Order'!BF1166=\"\",\"\",'1. Order'!BF1166)","v":"Parcel"},{"$f":"IF('1. Order'!BG1166=\"\",\"\",'1. Order'!BG1166)","v":"ZWO"}]
[{"$f":"IF('1. Order'!F1167=\"\",\"\",'1. Order'!F1167)","v":""},{"$f":"IF('1. Order'!G1167=\"\",\"\",'1. Order'!G1167)","v":""},{"$f":"IF('1. Order'!H1167=\"\",\"\",'1. Order'!H1167)","v":""},{"$f":"IF('1. Order'!I1167=\"\",\"\",'1. Order'!I1167)","v":""},{"$f":"IF('1. Order'!J1167=\"\",\"\",'1. Order'!J1167)","v":""},{"$f":"IF('1. Order'!K1167=\"\",\"\",'1. Order'!K1167)","v":""},{"$f":"IF('1. Order'!L1167=\"\",\"\",'1. Order'!L1167)","v":""},{"$f":"IF('1. Order'!M1167=\"\",\"\",'1. Order'!M1167)","v":""},{"$f":"IF('1. Order'!N1167=\"\",\"\",'1. Order'!N1167)","v":""},{"$f":"IF('1. Order'!O1167=\"\",\"\",'1. Order'!O1167)","v":{"$error":"#N/A"}},{"$f":"IF('1. Order'!P1167=\"\",\"\",'1. Order'!P1167)","v":{"$error":"#N/A"}},{"$f":"IF('1. Order'!Q1167=\"\",\"\",'1. Order'!Q1167)","v":""},{"$f":"IF('1. Order'!R1167=\"\",\"\",'1. Order'!R1167)","v":""},{"$f":"IF('1. Order'!S1167=\"\",\"\",'1. Order'!S1167)","v":""},{"$f":"IF('1. Order'!V1167=\"\",\"\",'1. Order'!V1167)","v":""},{"$f":"IF('1. Order'!W1167=\"\",\"\",'1. Order'!W1167)","v":""},{"$f":"IF('1. Order'!X1167=\"\",\"\",'1. Order'!X1167)","v":"EUR"},{"$f":"IF('1. Order'!Y1167=\"\",\"\",'1. Order'!Y1167)","v":""},{"$f":"IF('1. Order'!Z1167=\"\",\"\",'1. Order'!Z1167)","v":""},{"$f":"IF('1. Order'!AA1167=\"\",\"\",'1. Order'!AA1167)","v":""},null,{"$f":"IF('1. Order'!AS1167=\"\",\"\",'1. Order'!AS1167)","v":""},{"$f":"IF('1. Order'!AT1167=\"\",\"\",'1. Order'!AT1167)","v":""},null,null,null,null,null,null,null,{"$f":"IF('1. Order'!AX1167=\"\",\"\",'1. Order'!AX1167)","v":""},{"$f":"IF('1. Order'!AY1167=\"\",\"\",'1. Order'!AY1167)","v":""},{"$f":"IF('1. Order'!AZ1167=\"\",\"\",'1. Order'!AZ1167)","v":""},{"$f":"IF('1. Order'!BA1167=\"\",\"\",'1. Order'!BA1167)","v":""},{"$f":"IF('1. Order'!BC1167=\"\",\"\",'1. Order'!BC1167)","v":""},{"$f":"IF('1. Order'!BD1167=\"\",\"\",'1. Order'!BD1167)","v":6},{"$f":"IF('1. Order'!BE1167=\"\",\"\",'1. Order'!BE1167)","v":"None"},{"$f":"IF('1. Order'!BF1167=\"\",\"\",'1. Order'!BF1167)","v":"Parcel"},{"$f":"IF('1. Order'!BG1167=\"\",\"\",'1. Order'!BG1167)","v":"ZWO"}]
[{"$f":"IF('1. Order'!F1168=\"\",\"\",'1. Order'!F1168)","v":""},{"$f":"IF('1. Order'!G1168=\"\",\"\",'1. Order'!G1168)","v":""},{"$f":"IF('1. Order'!H1168=\"\",\"\",'1. Order'!H1168)","v":""},{"$f":"IF('1. Order'!I1168=\"\",\"\",'1. Order'!I1168)","v":""},{"$f":"IF('1. Order'!J1168=\"\",\"\",'1. Order'!J1168)","v":""},{"$f":"IF('1. Order'!K1168=\"\",\"\",'1. Order'!K1168)","v":""},{"$f":"IF('1. Order'!L1168=\"\",\"\",'1. Order'!L1168)","v":""},{"$f":"IF('1. Order'!M1168=\"\",\"\",'1. Order'!M1168)","v":""},{"$f":"IF('1. Order'!N1168=\"\",\"\",'1. Order'!N1168)","v":""},{"$f":"IF('1. Order'!O1168=\"\",\"\",'1. Order'!O1168)","v":{"$error":"#N/A"}},{"$f":"IF('1. Order'!P1168=\"\",\"\",'1. Order'!P1168)","v":{"$error":"#N/A"}},{"$f":"IF('1. Order'!Q1168=\"\",\"\",'1. Order'!Q1168)","v":""},{"$f":"IF('1. Order'!R1168=\"\",\"\",'1. Order'!R1168)","v":""},{"$f":"IF('1. Order'!S1168=\"\",\"\",'1. Order'!S1168)","v":""},{"$f":"IF('1. Order'!V1168=\"\",\"\",'1. Order'!V1168)","v":""},{"$f":"IF('1. Order'!W1168=\"\",\"\",'1. Order'!W1168)","v":""},{"$f":"IF('1. Order'!X1168=\"\",\"\",'1. Order'!X1168)","v":"EUR"},{"$f":"IF('1. Order'!Y1168=\"\",\"\",'1. Order'!Y1168)","v":""},{"$f":"IF('1. Order'!Z1168=\"\",\"\",'1. Order'!Z1168)","v":""},{"$f":"IF('1. Order'!AA1168=\"\",\"\",'1. Order'!AA1168)","v":""},null,{"$f":"IF('1. Order'!AS1168=\"\",\"\",'1. Order'!AS1168)","v":""},{"$f":"IF('1. Order'!AT1168=\"\",\"\",'1. Order'!AT1168)","v":""},null,null,null,null,null,null,null,{"$f":"IF('1. Order'!AX1168=\"\",\"\",'1. Order'!AX1168)","v":""},{"$f":"IF('1. Order'!AY1168=\"\",\"\",'1. Order'!AY1168)","v":""},{"$f":"IF('1. Order'!AZ1168=\"\",\"\",'1. Order'!AZ1168)","v":""},{"$f":"IF('1. Order'!BA1168=\"\",\"\",'1. Order'!BA1168)","v":""},{"$f":"IF('1. Order'!BC1168=\"\",\"\",'1. Order'!BC1168)","v":""},{"$f":"IF('1. Order'!BD1168=\"\",\"\",'1. Order'!BD1168)","v":6},{"$f":"IF('1. Order'!BE1168=\"\",\"\",'1. Order'!BE1168)","v":"None"},{"$f":"IF('1. Order'!BF1168=\"\",\"\",'1. Order'!BF1168)","v":"Parcel"},{"$f":"IF('1. Order'!BG1168=\"\",\"\",'1. Order'!BG1168)","v":"ZWO"}]
[{"$f":"IF('1. Order'!F1169=\"\",\"\",'1. Order'!F1169)","v":""},{"$f":"IF('1. Order'!G1169=\"\",\"\",'1. Order'!G1169)","v":""},{"$f":"IF('1. Order'!H1169=\"\",\"\",'1. Order'!H1169)","v":""},{"$f":"IF('1. Order'!I1169=\"\",\"\",'1. Order'!I1169)","v":""},{"$f":"IF('1. Order'!J1169=\"\",\"\",'1. Order'!J1169)","v":""},{"$f":"IF('1. Order'!K1169=\"\",\"\",'1. Order'!K1169)","v":""},{"$f":"IF('1. Order'!L1169=\"\",\"\",'1. Order'!L1169)","v":""},{"$f":"IF('1. Order'!M1169=\"\",\"\",'1. Order'!M1169)","v":""},{"$f":"IF('1. Order'!N1169=\"\",\"\",'1. Order'!N1169)","v":""},{"$f":"IF('1. Order'!O1169=\"\",\"\",'1. Order'!O1169)","v":{"$error":"#N/A"}},{"$f":"IF('1. Order'!P1169=\"\",\"\",'1. Order'!P1169)","v":{"$error":"#N/A"}},{"$f":"IF('1. Order'!Q1169=\"\",\"\",'1. Order'!Q1169)","v":""},{"$f":"IF('1. Order'!R1169=\"\",\"\",'1. Order'!R1169)","v":""},{"$f":"IF('1. Order'!S1169=\"\",\"\",'1. Order'!S1169)","v":""},{"$f":"IF('1. Order'!V1169=\"\",\"\",'1. Order'!V1169)","v":""},{"$f":"IF('1. Order'!W1169=\"\",\"\",'1. Order'!W1169)","v":""},{"$f":"IF('1. Order'!X1169=\"\",\"\",'1. Order'!X1169)","v":"EUR"},{"$f":"IF('1. Order'!Y1169=\"\",\"\",'1. Order'!Y1169)","v":""},{"$f":"IF('1. Order'!Z1169=\"\",\"\",'1. Order'!Z1169)","v":""},{"$f":"IF('1. Order'!AA1169=\"\",\"\",'1. Order'!AA1169)","v":""},null,{"$f":"IF('1. Order'!AS1169=\"\",\"\",'1. Order'!AS1169)","v":""},{"$f":"IF('1. Order'!AT1169=\"\",\"\",'1. Order'!AT1169)","v":""},null,null,null,null,null,null,null,{"$f":"IF('1. Order'!AX1169=\"\",\"\",'1. Order'!AX1169)","v":""},{"$f":"IF('1. Order'!AY1169=\"\",\"\",'1. Order'!AY1169)","v":""},{"$f":"IF('1. Order'!AZ1169=\"\",\"\",'1. Order'!AZ1169)","v":""},{"$f":"IF('1. Order'!BA1169=\"\",\"\",'1. Order'!BA1169)","v":""},{"$f":"IF('1. Order'!BC1169=\"\",\"\",'1. Order'!BC1169)","v":""},{"$f":"IF('1. Order'!BD1169=\"\",\"\",'1. Order'!BD1169)","v":6},{"$f":"IF('1. Order'!BE1169=\"\",\"\",'1. Order'!BE1169)","v":"None"},{"$f":"IF('1. Order'!BF1169=\"\",\"\",'1. Order'!BF1169)","v":"Parcel"},{"$f":"IF('1. Order'!BG1169=\"\",\"\",'1. Order'!BG1169)","v":"ZWO"}]
[{"$f":"IF('1. Order'!F1170=\"\",\"\",'1. Order'!F1170)","v":""},{"$f":"IF('1. Order'!G1170=\"\",\"\",'1. Order'!G1170)","v":""},{"$f":"IF('1. Order'!H1170=\"\",\"\",'1. Order'!H1170)","v":""},{"$f":"IF('1. Order'!I1170=\"\",\"\",'1. Order'!I1170)","v":""},{"$f":"IF('1. Order'!J1170=\"\",\"\",'1. Order'!J1170)","v":""},{"$f":"IF('1. Order'!K1170=\"\",\"\",'1. Order'!K1170)","v":""},{"$f":"IF('1. Order'!L1170=\"\",\"\",'1. Order'!L1170)","v":""},{"$f":"IF('1. Order'!M1170=\"\",\"\",'1. Order'!M1170)","v":""},{"$f":"IF('1. Order'!N1170=\"\",\"\",'1. Order'!N1170)","v":""},{"$f":"IF('1. Order'!O1170=\"\",\"\",'1. Order'!O1170)","v":{"$error":"#N/A"}},{"$f":"IF('1. Order'!P1170=\"\",\"\",'1. Order'!P1170)","v":{"$error":"#N/A"}},{"$f":"IF('1. Order'!Q1170=\"\",\"\",'1. Order'!Q1170)","v":""},{"$f":"IF('1. Order'!R1170=\"\",\"\",'1. Order'!R1170)","v":""},{"$f":"IF('1. Order'!S1170=\"\",\"\",'1. Order'!S1170)","v":""},{"$f":"IF('1. Order'!V1170=\"\",\"\",'1. Order'!V1170)","v":""},{"$f":"IF('1. Order'!W1170=\"\",\"\",'1. Order'!W1170)","v":""},{"$f":"IF('1. Order'!X1170=\"\",\"\",'1. Order'!X1170)","v":"EUR"},{"$f":"IF('1. Order'!Y1170=\"\",\"\",'1. Order'!Y1170)","v":""},{"$f":"IF('1. Order'!Z1170=\"\",\"\",'1. Order'!Z1170)","v":""},{"$f":"IF('1. Order'!AA1170=\"\",\"\",'1. Order'!AA1170)","v":""},null,{"$f":"IF('1. Order'!AS1170=\"\",\"\",'1. Order'!AS1170)","v":""},{"$f":"IF('1. Order'!AT1170=\"\",\"\",'1. Order'!AT1170)","v":""},null,null,null,null,null,null,null,{"$f":"IF('1. Order'!AX1170=\"\",\"\",'1. Order'!AX1170)","v":""},{"$f":"IF('1. Order'!AY1170=\"\",\"\",'1. Order'!AY1170)","v":""},{"$f":"IF('1. Order'!AZ1170=\"\",\"\",'1. Order'!AZ1170)","v":""},{"$f":"IF('1. Order'!BA1170=\"\",\"\",'1. Order'!BA1170)","v":""},{"$f":"IF('1. Order'!BC1170=\"\",\"\",'1. Order'!BC1170)","v":""},{"$f":"IF('1. Order'!BD1170=\"\",\"\",'1. Order'!BD1170)","v":6},{"$f":"IF('1. Order'!BE1170=\"\",\"\",'1. Order'!BE1170)","v":"None"},{"$f":"IF('1. Order'!BF1170=\"\",\"\",'1. Order'!BF1170)","v":"Parcel"},{"$f":"IF('1. Order'!BG1170=\"\",\"\",'1. Order'!BG1170)","v":"ZWO"}]
[{"$f":"IF('1. Order'!F1171=\"\",\"\",'1. Order'!F1171)","v":""},{"$f":"IF('1. Order'!G1171=\"\",\"\",'1. Order'!G1171)","v":""},{"$f":"IF('1. Order'!H1171=\"\",\"\",'1. Order'!H1171)","v":""},{"$f":"IF('1. Order'!I1171=\"\",\"\",'1. Order'!I1171)","v":""},{"$f":"IF('1. Order'!J1171=\"\",\"\",'1. Order'!J1171)","v":""},{"$f":"IF('1. Order'!K1171=\"\",\"\",'1. Order'!K1171)","v":""},{"$f":"IF('1. Order'!L1171=\"\",\"\",'1. Order'!L1171)","v":""},{"$f":"IF('1. Order'!M1171=\"\",\"\",'1. Order'!M1171)","v":""},{"$f":"IF('1. Order'!N1171=\"\",\"\",'1. Order'!N1171)","v":""},{"$f":"IF('1. Order'!O1171=\"\",\"\",'1. Order'!O1171)","v":{"$error":"#N/A"}},{"$f":"IF('1. Order'!P1171=\"\",\"\",'1. Order'!P1171)","v":{"$error":"#N/A"}},{"$f":"IF('1. Order'!Q1171=\"\",\"\",'1. Order'!Q1171)","v":""},{"$f":"IF('1. Order'!R1171=\"\",\"\",'1. Order'!R1171)","v":""},{"$f":"IF('1. Order'!S1171=\"\",\"\",'1. Order'!S1171)","v":""},{"$f":"IF('1. Order'!V1171=\"\",\"\",'1. Order'!V1171)","v":""},{"$f":"IF('1. Order'!W1171=\"\",\"\",'1. Order'!W1171)","v":""},{"$f":"IF('1. Order'!X1171=\"\",\"\",'1. Order'!X1171)","v":"EUR"},{"$f":"IF('1. Order'!Y1171=\"\",\"\",'1. Order'!Y1171)","v":""},{"$f":"IF('1. Order'!Z1171=\"\",\"\",'1. Order'!Z1171)","v":""},{"$f":"IF('1. Order'!AA1171=\"\",\"\",'1. Order'!AA1171)","v":""},null,{"$f":"IF('1. Order'!AS1171=\"\",\"\",'1. Order'!AS1171)","v":""},{"$f":"IF('1. Order'!AT1171=\"\",\"\",'1. Order'!AT1171)","v":""},null,null,null,null,null,null,null,{"$f":"IF('1. Order'!AX1171=\"\",\"\",'1. Order'!AX1171)","v":""},{"$f":"IF('1. Order'!AY1171=\"\",\"\",'1. Order'!AY1171)","v":""},{"$f":"IF('1. Order'!AZ1171=\"\",\"\",'1. Order'!AZ1171)","v":""},{"$f":"IF('1. Order'!BA1171=\"\",\"\",'1. Order'!BA1171)","v":""},{"$f":"IF('1. Order'!BC1171=\"\",\"\",'1. Order'!BC1171)","v":""},{"$f":"IF('1. Order'!BD1171=\"\",\"\",'1. Order'!BD1171)","v":6},{"$f":"IF('1. Order'!BE1171=\"\",\"\",'1. Order'!BE1171)","v":"None"},{"$f":"IF('1. Order'!BF1171=\"\",\"\",'1. Order'!BF1171)","v":"Parcel"},{"$f":"IF('1. Order'!BG1171=\"\",\"\",'1. Order'!BG1171)","v":"ZWO"}]
[{"$f":"IF('1. Order'!F1172=\"\",\"\",'1. Order'!F1172)","v":""},{"$f":"IF('1. Order'!G1172=\"\",\"\",'1. Order'!G1172)","v":""},{"$f":"IF('1. Order'!H1172=\"\",\"\",'1. Order'!H1172)","v":""},{"$f":"IF('1. Order'!I1172=\"\",\"\",'1. Order'!I1172)","v":""},{"$f":"IF('1. Order'!J1172=\"\",\"\",'1. Order'!J1172)","v":""},{"$f":"IF('1. Order'!K1172=\"\",\"\",'1. Order'!K1172)","v":""},{"$f":"IF('1. Order'!L1172=\"\",\"\",'1. Order'!L1172)","v":""},{"$f":"IF('1. Order'!M1172=\"\",\"\",'1. Order'!M1172)","v":""},{"$f":"IF('1. Order'!N1172=\"\",\"\",'1. Order'!N1172)","v":""},{"$f":"IF('1. Order'!O1172=\"\",\"\",'1. Order'!O1172)","v":{"$error":"#N/A"}},{"$f":"IF('1. Order'!P1172=\"\",\"\",'1. Order'!P1172)","v":{"$error":"#N/A"}},{"$f":"IF('1. Order'!Q1172=\"\",\"\",'1. Order'!Q1172)","v":""},{"$f":"IF('1. Order'!R1172=\"\",\"\",'1. Order'!R1172)","v":""},{"$f":"IF('1. Order'!S1172=\"\",\"\",'1. Order'!S1172)","v":""},{"$f":"IF('1. Order'!V1172=\"\",\"\",'1. Order'!V1172)","v":""},{"$f":"IF('1. Order'!W1172=\"\",\"\",'1. Order'!W1172)","v":""},{"$f":"IF('1. Order'!X1172=\"\",\"\",'1. Order'!X1172)","v":"EUR"},{"$f":"IF('1. Order'!Y1172=\"\",\"\",'1. Order'!Y1172)","v":""},{"$f":"IF('1. Order'!Z1172=\"\",\"\",'1. Order'!Z1172)","v":""},{"$f":"IF('1. Order'!AA1172=\"\",\"\",'1. Order'!AA1172)","v":""},null,{"$f":"IF('1. Order'!AS1172=\"\",\"\",'1. Order'!AS1172)","v":""},{"$f":"IF('1. Order'!AT1172=\"\",\"\",'1. Order'!AT1172)","v":""},null,null,null,null,null,null,null,{"$f":"IF('1. Order'!AX1172=\"\",\"\",'1. Order'!AX1172)","v":""},{"$f":"IF('1. Order'!AY1172=\"\",\"\",'1. Order'!AY1172)","v":""},{"$f":"IF('1. Order'!AZ1172=\"\",\"\",'1. Order'!AZ1172)","v":""},{"$f":"IF('1. Order'!BA1172=\"\",\"\",'1. Order'!BA1172)","v":""},{"$f":"IF('1. Order'!BC1172=\"\",\"\",'1. Order'!BC1172)","v":""},{"$f":"IF('1. Order'!BD1172=\"\",\"\",'1. Order'!BD1172)","v":6},{"$f":"IF('1. Order'!BE1172=\"\",\"\",'1. Order'!BE1172)","v":"None"},{"$f":"IF('1. Order'!BF1172=\"\",\"\",'1. Order'!BF1172)","v":"Parcel"},{"$f":"IF('1. Order'!BG1172=\"\",\"\",'1. Order'!BG1172)","v":"ZWO"}]
[{"$f":"IF('1. Order'!F1173=\"\",\"\",'1. Order'!F1173)","v":""},{"$f":"IF('1. Order'!G1173=\"\",\"\",'1. Order'!G1173)","v":""},{"$f":"IF('1. Order'!H1173=\"\",\"\",'1. Order'!H1173)","v":""},{"$f":"IF('1. Order'!I1173=\"\",\"\",'1. Order'!I1173)","v":""},{"$f":"IF('1. Order'!J1173=\"\",\"\",'1. Order'!J1173)","v":""},{"$f":"IF('1. Order'!K1173=\"\",\"\",'1. Order'!K1173)","v":""},{"$f":"IF('1. Order'!L1173=\"\",\"\",'1. Order'!L1173)","v":""},{"$f":"IF('1. Order'!M1173=\"\",\"\",'1. Order'!M1173)","v":""},{"$f":"IF('1. Order'!N1173=\"\",\"\",'1. Order'!N1173)","v":""},{"$f":"IF('1. Order'!O1173=\"\",\"\",'1. Order'!O1173)","v":{"$error":"#N/A"}},{"$f":"IF('1. Order'!P1173=\"\",\"\",'1. Order'!P1173)","v":{"$error":"#N/A"}},{"$f":"IF('1. Order'!Q1173=\"\",\"\",'1. Order'!Q1173)","v":""},{"$f":"IF('1. Order'!R1173=\"\",\"\",'1. Order'!R1173)","v":""},{"$f":"IF('1. Order'!S1173=\"\",\"\",'1. Order'!S1173)","v":""},{"$f":"IF('1. Order'!V1173=\"\",\"\",'1. Order'!V1173)","v":""},{"$f":"IF('1. Order'!W1173=\"\",\"\",'1. Order'!W1173)","v":""},{"$f":"IF('1. Order'!X1173=\"\",\"\",'1. Order'!X1173)","v":"EUR"},{"$f":"IF('1. Order'!Y1173=\"\",\"\",'1. Order'!Y1173)","v":""},{"$f":"IF('1. Order'!Z1173=\"\",\"\",'1. Order'!Z1173)","v":""},{"$f":"IF('1. Order'!AA1173=\"\",\"\",'1. Order'!AA1173)","v":""},null,{"$f":"IF('1. Order'!AS1173=\"\",\"\",'1. Order'!AS1173)","v":""},{"$f":"IF('1. Order'!AT1173=\"\",\"\",'1. Order'!AT1173)","v":""},null,null,null,null,null,null,null,{"$f":"IF('1. Order'!AX1173=\"\",\"\",'1. Order'!AX1173)","v":""},{"$f":"IF('1. Order'!AY1173=\"\",\"\",'1. Order'!AY1173)","v":""},{"$f":"IF('1. Order'!AZ1173=\"\",\"\",'1. Order'!AZ1173)","v":""},{"$f":"IF('1. Order'!BA1173=\"\",\"\",'1. Order'!BA1173)","v":""},{"$f":"IF('1. Order'!BC1173=\"\",\"\",'1. Order'!BC1173)","v":""},{"$f":"IF('1. Order'!BD1173=\"\",\"\",'1. Order'!BD1173)","v":6},{"$f":"IF('1. Order'!BE1173=\"\",\"\",'1. Order'!BE1173)","v":"None"},{"$f":"IF('1. Order'!BF1173=\"\",\"\",'1. Order'!BF1173)","v":"Parcel"},{"$f":"IF('1. Order'!BG1173=\"\",\"\",'1. Order'!BG1173)","v":"ZWO"}]
[{"$f":"IF('1. Order'!F1174=\"\",\"\",'1. Order'!F1174)","v":""},{"$f":"IF('1. Order'!G1174=\"\",\"\",'1. Order'!G1174)","v":""},{"$f":"IF('1. Order'!H1174=\"\",\"\",'1. Order'!H1174)","v":""},{"$f":"IF('1. Order'!I1174=\"\",\"\",'1. Order'!I1174)","v":""},{"$f":"IF('1. Order'!J1174=\"\",\"\",'1. Order'!J1174)","v":""},{"$f":"IF('1. Order'!K1174=\"\",\"\",'1. Order'!K1174)","v":""},{"$f":"IF('1. Order'!L1174=\"\",\"\",'1. Order'!L1174)","v":""},{"$f":"IF('1. Order'!M1174=\"\",\"\",'1. Order'!M1174)","v":""},{"$f":"IF('1. Order'!N1174=\"\",\"\",'1. Order'!N1174)","v":""},{"$f":"IF('1. Order'!O1174=\"\",\"\",'1. Order'!O1174)","v":{"$error":"#N/A"}},{"$f":"IF('1. Order'!P1174=\"\",\"\",'1. Order'!P1174)","v":{"$error":"#N/A"}},{"$f":"IF('1. Order'!Q1174=\"\",\"\",'1. Order'!Q1174)","v":""},{"$f":"IF('1. Order'!R1174=\"\",\"\",'1. Order'!R1174)","v":""},{"$f":"IF('1. Order'!S1174=\"\",\"\",'1. Order'!S1174)","v":""},{"$f":"IF('1. Order'!V1174=\"\",\"\",'1. Order'!V1174)","v":""},{"$f":"IF('1. Order'!W1174=\"\",\"\",'1. Order'!W1174)","v":""},{"$f":"IF('1. Order'!X1174=\"\",\"\",'1. Order'!X1174)","v":"EUR"},{"$f":"IF('1. Order'!Y1174=\"\",\"\",'1. Order'!Y1174)","v":""},{"$f":"IF('1. Order'!Z1174=\"\",\"\",'1. Order'!Z1174)","v":""},{"$f":"IF('1. Order'!AA1174=\"\",\"\",'1. Order'!AA1174)","v":""},null,{"$f":"IF('1. Order'!AS1174=\"\",\"\",'1. Order'!AS1174)","v":""},{"$f":"IF('1. Order'!AT1174=\"\",\"\",'1. Order'!AT1174)","v":""},null,null,null,null,null,null,null,{"$f":"IF('1. Order'!AX1174=\"\",\"\",'1. Order'!AX1174)","v":""},{"$f":"IF('1. Order'!AY1174=\"\",\"\",'1. Order'!AY1174)","v":""},{"$f":"IF('1. Order'!AZ1174=\"\",\"\",'1. Order'!AZ1174)","v":""},{"$f":"IF('1. Order'!BA1174=\"\",\"\",'1. Order'!BA1174)","v":""},{"$f":"IF('1. Order'!BC1174=\"\",\"\",'1. Order'!BC1174)","v":""},{"$f":"IF('1. Order'!BD1174=\"\",\"\",'1. Order'!BD1174)","v":6},{"$f":"IF('1. Order'!BE1174=\"\",\"\",'1. Order'!BE1174)","v":"None"},{"$f":"IF('1. Order'!BF1174=\"\",\"\",'1. Order'!BF1174)","v":"Parcel"},{"$f":"IF('1. Order'!BG1174=\"\",\"\",'1. Order'!BG1174)","v":"ZWO"}]
[{"$f":"IF('1. Order'!F1175=\"\",\"\",'1. Order'!F1175)","v":""},{"$f":"IF('1. Order'!G1175=\"\",\"\",'1. Order'!G1175)","v":""},{"$f":"IF('1. Order'!H1175=\"\",\"\",'1. Order'!H1175)","v":""},{"$f":"IF('1. Order'!I1175=\"\",\"\",'1. Order'!I1175)","v":""},{"$f":"IF('1. Order'!J1175=\"\",\"\",'1. Order'!J1175)","v":""},{"$f":"IF('1. Order'!K1175=\"\",\"\",'1. Order'!K1175)","v":""},{"$f":"IF('1. Order'!L1175=\"\",\"\",'1. Order'!L1175)","v":""},{"$f":"IF('1. Order'!M1175=\"\",\"\",'1. Order'!M1175)","v":""},{"$f":"IF('1. Order'!N1175=\"\",\"\",'1. Order'!N1175)","v":""},{"$f":"IF('1. Order'!O1175=\"\",\"\",'1. Order'!O1175)","v":{"$error":"#N/A"}},{"$f":"IF('1. Order'!P1175=\"\",\"\",'1. Order'!P1175)","v":{"$error":"#N/A"}},{"$f":"IF('1. Order'!Q1175=\"\",\"\",'1. Order'!Q1175)","v":""},{"$f":"IF('1. Order'!R1175=\"\",\"\",'1. Order'!R1175)","v":""},{"$f":"IF('1. Order'!S1175=\"\",\"\",'1. Order'!S1175)","v":""},{"$f":"IF('1. Order'!V1175=\"\",\"\",'1. Order'!V1175)","v":""},{"$f":"IF('1. Order'!W1175=\"\",\"\",'1. Order'!W1175)","v":""},{"$f":"IF('1. Order'!X1175=\"\",\"\",'1. Order'!X1175)","v":"EUR"},{"$f":"IF('1. Order'!Y1175=\"\",\"\",'1. Order'!Y1175)","v":""},{"$f":"IF('1. Order'!Z1175=\"\",\"\",'1. Order'!Z1175)","v":""},{"$f":"IF('1. Order'!AA1175=\"\",\"\",'1. Order'!AA1175)","v":""},null,{"$f":"IF('1. Order'!AS1175=\"\",\"\",'1. Order'!AS1175)","v":""},{"$f":"IF('1. Order'!AT1175=\"\",\"\",'1. Order'!AT1175)","v":""},null,null,null,null,null,null,null,{"$f":"IF('1. Order'!AX1175=\"\",\"\",'1. Order'!AX1175)","v":""},{"$f":"IF('1. Order'!AY1175=\"\",\"\",'1. Order'!AY1175)","v":""},{"$f":"IF('1. Order'!AZ1175=\"\",\"\",'1. Order'!AZ1175)","v":""},{"$f":"IF('1. Order'!BA1175=\"\",\"\",'1. Order'!BA1175)","v":""},{"$f":"IF('1. Order'!BC1175=\"\",\"\",'1. Order'!BC1175)","v":""},{"$f":"IF('1. Order'!BD1175=\"\",\"\",'1. Order'!BD1175)","v":6},{"$f":"IF('1. Order'!BE1175=\"\",\"\",'1. Order'!BE1175)","v":"None"},{"$f":"IF('1. Order'!BF1175=\"\",\"\",'1. Order'!BF1175)","v":"Parcel"},{"$f":"IF('1. Order'!BG1175=\"\",\"\",'1. Order'!BG1175)","v":"ZWO"}]
[{"$f":"IF('1. Order'!F1176=\"\",\"\",'1. Order'!F1176)","v":""},{"$f":"IF('1. Order'!G1176=\"\",\"\",'1. Order'!G1176)","v":""},{"$f":"IF('1. Order'!H1176=\"\",\"\",'1. Order'!H1176)","v":""},{"$f":"IF('1. Order'!I1176=\"\",\"\",'1. Order'!I1176)","v":""},{"$f":"IF('1. Order'!J1176=\"\",\"\",'1. Order'!J1176)","v":""},{"$f":"IF('1. Order'!K1176=\"\",\"\",'1. Order'!K1176)","v":""},{"$f":"IF('1. Order'!L1176=\"\",\"\",'1. Order'!L1176)","v":""},{"$f":"IF('1. Order'!M1176=\"\",\"\",'1. Order'!M1176)","v":""},{"$f":"IF('1. Order'!N1176=\"\",\"\",'1. Order'!N1176)","v":""},{"$f":"IF('1. Order'!O1176=\"\",\"\",'1. Order'!O1176)","v":{"$error":"#N/A"}},{"$f":"IF('1. Order'!P1176=\"\",\"\",'1. Order'!P1176)","v":{"$error":"#N/A"}},{"$f":"IF('1. Order'!Q1176=\"\",\"\",'1. Order'!Q1176)","v":""},{"$f":"IF('1. Order'!R1176=\"\",\"\",'1. Order'!R1176)","v":""},{"$f":"IF('1. Order'!S1176=\"\",\"\",'1. Order'!S1176)","v":""},{"$f":"IF('1. Order'!V1176=\"\",\"\",'1. Order'!V1176)","v":""},{"$f":"IF('1. Order'!W1176=\"\",\"\",'1. Order'!W1176)","v":""},{"$f":"IF('1. Order'!X1176=\"\",\"\",'1. Order'!X1176)","v":"EUR"},{"$f":"IF('1. Order'!Y1176=\"\",\"\",'1. Order'!Y1176)","v":""},{"$f":"IF('1. Order'!Z1176=\"\",\"\",'1. Order'!Z1176)","v":""},{"$f":"IF('1. Order'!AA1176=\"\",\"\",'1. Order'!AA1176)","v":""},null,{"$f":"IF('1. Order'!AS1176=\"\",\"\",'1. Order'!AS1176)","v":""},{"$f":"IF('1. Order'!AT1176=\"\",\"\",'1. Order'!AT1176)","v":""},null,null,null,null,null,null,null,{"$f":"IF('1. Order'!AX1176=\"\",\"\",'1. Order'!AX1176)","v":""},{"$f":"IF('1. Order'!AY1176=\"\",\"\",'1. Order'!AY1176)","v":""},{"$f":"IF('1. Order'!AZ1176=\"\",\"\",'1. Order'!AZ1176)","v":""},{"$f":"IF('1. Order'!BA1176=\"\",\"\",'1. Order'!BA1176)","v":""},{"$f":"IF('1. Order'!BC1176=\"\",\"\",'1. Order'!BC1176)","v":""},{"$f":"IF('1. Order'!BD1176=\"\",\"\",'1. Order'!BD1176)","v":6},{"$f":"IF('1. Order'!BE1176=\"\",\"\",'1. Order'!BE1176)","v":"None"},{"$f":"IF('1. Order'!BF1176=\"\",\"\",'1. Order'!BF1176)","v":"Parcel"},{"$f":"IF('1. Order'!BG1176=\"\",\"\",'1. Order'!BG1176)","v":"ZWO"}]
[{"$f":"IF('1. Order'!F1177=\"\",\"\",'1. Order'!F1177)","v":""},{"$f":"IF('1. Order'!G1177=\"\",\"\",'1. Order'!G1177)","v":""},{"$f":"IF('1. Order'!H1177=\"\",\"\",'1. Order'!H1177)","v":""},{"$f":"IF('1. Order'!I1177=\"\",\"\",'1. Order'!I1177)","v":""},{"$f":"IF('1. Order'!J1177=\"\",\"\",'1. Order'!J1177)","v":""},{"$f":"IF('1. Order'!K1177=\"\",\"\",'1. Order'!K1177)","v":""},{"$f":"IF('1. Order'!L1177=\"\",\"\",'1. Order'!L1177)","v":""},{"$f":"IF('1. Order'!M1177=\"\",\"\",'1. Order'!M1177)","v":""},{"$f":"IF('1. Order'!N1177=\"\",\"\",'1. Order'!N1177)","v":""},{"$f":"IF('1. Order'!O1177=\"\",\"\",'1. Order'!O1177)","v":{"$error":"#N/A"}},{"$f":"IF('1. Order'!P1177=\"\",\"\",'1. Order'!P1177)","v":{"$error":"#N/A"}},{"$f":"IF('1. Order'!Q1177=\"\",\"\",'1. Order'!Q1177)","v":""},{"$f":"IF('1. Order'!R1177=\"\",\"\",'1. Order'!R1177)","v":""},{"$f":"IF('1. Order'!S1177=\"\",\"\",'1. Order'!S1177)","v":""},{"$f":"IF('1. Order'!V1177=\"\",\"\",'1. Order'!V1177)","v":""},{"$f":"IF('1. Order'!W1177=\"\",\"\",'1. Order'!W1177)","v":""},{"$f":"IF('1. Order'!X1177=\"\",\"\",'1. Order'!X1177)","v":"EUR"},{"$f":"IF('1. Order'!Y1177=\"\",\"\",'1. Order'!Y1177)","v":""},{"$f":"IF('1. Order'!Z1177=\"\",\"\",'1. Order'!Z1177)","v":""},{"$f":"IF('1. Order'!AA1177=\"\",\"\",'1. Order'!AA1177)","v":""},null,{"$f":"IF('1. Order'!AS1177=\"\",\"\",'1. Order'!AS1177)","v":""},{"$f":"IF('1. Order'!AT1177=\"\",\"\",'1. Order'!AT1177)","v":""},null,null,null,null,null,null,null,{"$f":"IF('1. Order'!AX1177=\"\",\"\",'1. Order'!AX1177)","v":""},{"$f":"IF('1. Order'!AY1177=\"\",\"\",'1. Order'!AY1177)","v":""},{"$f":"IF('1. Order'!AZ1177=\"\",\"\",'1. Order'!AZ1177)","v":""},{"$f":"IF('1. Order'!BA1177=\"\",\"\",'1. Order'!BA1177)","v":""},{"$f":"IF('1. Order'!BC1177=\"\",\"\",'1. Order'!BC1177)","v":""},{"$f":"IF('1. Order'!BD1177=\"\",\"\",'1. Order'!BD1177)","v":6},{"$f":"IF('1. Order'!BE1177=\"\",\"\",'1. Order'!BE1177)","v":"None"},{"$f":"IF('1. Order'!BF1177=\"\",\"\",'1. Order'!BF1177)","v":"Parcel"},{"$f":"IF('1. Order'!BG1177=\"\",\"\",'1. Order'!BG1177)","v":"ZWO"}]
[{"$f":"IF('1. Order'!F1178=\"\",\"\",'1. Order'!F1178)","v":""},{"$f":"IF('1. Order'!G1178=\"\",\"\",'1. Order'!G1178)","v":""},{"$f":"IF('1. Order'!H1178=\"\",\"\",'1. Order'!H1178)","v":""},{"$f":"IF('1. Order'!I1178=\"\",\"\",'1. Order'!I1178)","v":""},{"$f":"IF('1. Order'!J1178=\"\",\"\",'1. Order'!J1178)","v":""},{"$f":"IF('1. Order'!K1178=\"\",\"\",'1. Order'!K1178)","v":""},{"$f":"IF('1. Order'!L1178=\"\",\"\",'1. Order'!L1178)","v":""},{"$f":"IF('1. Order'!M1178=\"\",\"\",'1. Order'!M1178)","v":""},{"$f":"IF('1. Order'!N1178=\"\",\"\",'1. Order'!N1178)","v":""},{"$f":"IF('1. Order'!O1178=\"\",\"\",'1. Order'!O1178)","v":{"$error":"#N/A"}},{"$f":"IF('1. Order'!P1178=\"\",\"\",'1. Order'!P1178)","v":{"$error":"#N/A"}},{"$f":"IF('1. Order'!Q1178=\"\",\"\",'1. Order'!Q1178)","v":""},{"$f":"IF('1. Order'!R1178=\"\",\"\",'1. Order'!R1178)","v":""},{"$f":"IF('1. Order'!S1178=\"\",\"\",'1. Order'!S1178)","v":""},{"$f":"IF('1. Order'!V1178=\"\",\"\",'1. Order'!V1178)","v":""},{"$f":"IF('1. Order'!W1178=\"\",\"\",'1. Order'!W1178)","v":""},{"$f":"IF('1. Order'!X1178=\"\",\"\",'1. Order'!X1178)","v":"EUR"},{"$f":"IF('1. Order'!Y1178=\"\",\"\",'1. Order'!Y1178)","v":""},{"$f":"IF('1. Order'!Z1178=\"\",\"\",'1. Order'!Z1178)","v":""},{"$f":"IF('1. Order'!AA1178=\"\",\"\",'1. Order'!AA1178)","v":""},null,{"$f":"IF('1. Order'!AS1178=\"\",\"\",'1. Order'!AS1178)","v":""},{"$f":"IF('1. Order'!AT1178=\"\",\"\",'1. Order'!AT1178)","v":""},null,null,null,null,null,null,null,{"$f":"IF('1. Order'!AX1178=\"\",\"\",'1. Order'!AX1178)","v":""},{"$f":"IF('1. Order'!AY1178=\"\",\"\",'1. Order'!AY1178)","v":""},{"$f":"IF('1. Order'!AZ1178=\"\",\"\",'1. Order'!AZ1178)","v":""},{"$f":"IF('1. Order'!BA1178=\"\",\"\",'1. Order'!BA1178)","v":""},{"$f":"IF('1. Order'!BC1178=\"\",\"\",'1. Order'!BC1178)","v":""},{"$f":"IF('1. Order'!BD1178=\"\",\"\",'1. Order'!BD1178)","v":6},{"$f":"IF('1. Order'!BE1178=\"\",\"\",'1. Order'!BE1178)","v":"None"},{"$f":"IF('1. Order'!BF1178=\"\",\"\",'1. Order'!BF1178)","v":"Parcel"},{"$f":"IF('1. Order'!BG1178=\"\",\"\",'1. Order'!BG1178)","v":"ZWO"}]
[{"$f":"IF('1. Order'!F1179=\"\",\"\",'1. Order'!F1179)","v":""},{"$f":"IF('1. Order'!G1179=\"\",\"\",'1. Order'!G1179)","v":""},{"$f":"IF('1. Order'!H1179=\"\",\"\",'1. Order'!H1179)","v":""},{"$f":"IF('1. Order'!I1179=\"\",\"\",'1. Order'!I1179)","v":""},{"$f":"IF('1. Order'!J1179=\"\",\"\",'1. Order'!J1179)","v":""},{"$f":"IF('1. Order'!K1179=\"\",\"\",'1. Order'!K1179)","v":""},{"$f":"IF('1. Order'!L1179=\"\",\"\",'1. Order'!L1179)","v":""},{"$f":"IF('1. Order'!M1179=\"\",\"\",'1. Order'!M1179)","v":""},{"$f":"IF('1. Order'!N1179=\"\",\"\",'1. Order'!N1179)","v":""},{"$f":"IF('1. Order'!O1179=\"\",\"\",'1. Order'!O1179)","v":{"$error":"#N/A"}},{"$f":"IF('1. Order'!P1179=\"\",\"\",'1. Order'!P1179)","v":{"$error":"#N/A"}},{"$f":"IF('1. Order'!Q1179=\"\",\"\",'1. Order'!Q1179)","v":""},{"$f":"IF('1. Order'!R1179=\"\",\"\",'1. Order'!R1179)","v":""},{"$f":"IF('1. Order'!S1179=\"\",\"\",'1. Order'!S1179)","v":""},{"$f":"IF('1. Order'!V1179=\"\",\"\",'1. Order'!V1179)","v":""},{"$f":"IF('1. Order'!W1179=\"\",\"\",'1. Order'!W1179)","v":""},{"$f":"IF('1. Order'!X1179=\"\",\"\",'1. Order'!X1179)","v":"EUR"},{"$f":"IF('1. Order'!Y1179=\"\",\"\",'1. Order'!Y1179)","v":""},{"$f":"IF('1. Order'!Z1179=\"\",\"\",'1. Order'!Z1179)","v":""},{"$f":"IF('1. Order'!AA1179=\"\",\"\",'1. Order'!AA1179)","v":""},null,{"$f":"IF('1. Order'!AS1179=\"\",\"\",'1. Order'!AS1179)","v":""},{"$f":"IF('1. Order'!AT1179=\"\",\"\",'1. Order'!AT1179)","v":""},null,null,null,null,null,null,null,{"$f":"IF('1. Order'!AX1179=\"\",\"\",'1. Order'!AX1179)","v":""},{"$f":"IF('1. Order'!AY1179=\"\",\"\",'1. Order'!AY1179)","v":""},{"$f":"IF('1. Order'!AZ1179=\"\",\"\",'1. Order'!AZ1179)","v":""},{"$f":"IF('1. Order'!BA1179=\"\",\"\",'1. Order'!BA1179)","v":""},{"$f":"IF('1. Order'!BC1179=\"\",\"\",'1. Order'!BC1179)","v":""},{"$f":"IF('1. Order'!BD1179=\"\",\"\",'1. Order'!BD1179)","v":6},{"$f":"IF('1. Order'!BE1179=\"\",\"\",'1. Order'!BE1179)","v":"None"},{"$f":"IF('1. Order'!BF1179=\"\",\"\",'1. Order'!BF1179)","v":"Parcel"},{"$f":"IF('1. Order'!BG1179=\"\",\"\",'1. Order'!BG1179)","v":"ZWO"}]
[{"$f":"IF('1. Order'!F1180=\"\",\"\",'1. Order'!F1180)","v":""},{"$f":"IF('1. Order'!G1180=\"\",\"\",'1. Order'!G1180)","v":""},{"$f":"IF('1. Order'!H1180=\"\",\"\",'1. Order'!H1180)","v":""},{"$f":"IF('1. Order'!I1180=\"\",\"\",'1. Order'!I1180)","v":""},{"$f":"IF('1. Order'!J1180=\"\",\"\",'1. Order'!J1180)","v":""},{"$f":"IF('1. Order'!K1180=\"\",\"\",'1. Order'!K1180)","v":""},{"$f":"IF('1. Order'!L1180=\"\",\"\",'1. Order'!L1180)","v":""},{"$f":"IF('1. Order'!M1180=\"\",\"\",'1. Order'!M1180)","v":""},{"$f":"IF('1. Order'!N1180=\"\",\"\",'1. Order'!N1180)","v":""},{"$f":"IF('1. Order'!O1180=\"\",\"\",'1. Order'!O1180)","v":{"$error":"#N/A"}},{"$f":"IF('1. Order'!P1180=\"\",\"\",'1. Order'!P1180)","v":{"$error":"#N/A"}},{"$f":"IF('1. Order'!Q1180=\"\",\"\",'1. Order'!Q1180)","v":""},{"$f":"IF('1. Order'!R1180=\"\",\"\",'1. Order'!R1180)","v":""},{"$f":"IF('1. Order'!S1180=\"\",\"\",'1. Order'!S1180)","v":""},{"$f":"IF('1. Order'!V1180=\"\",\"\",'1. Order'!V1180)","v":""},{"$f":"IF('1. Order'!W1180=\"\",\"\",'1. Order'!W1180)","v":""},{"$f":"IF('1. Order'!X1180=\"\",\"\",'1. Order'!X1180)","v":"EUR"},{"$f":"IF('1. Order'!Y1180=\"\",\"\",'1. Order'!Y1180)","v":""},{"$f":"IF('1. Order'!Z1180=\"\",\"\",'1. Order'!Z1180)","v":""},{"$f":"IF('1. Order'!AA1180=\"\",\"\",'1. Order'!AA1180)","v":""},null,{"$f":"IF('1. Order'!AS1180=\"\",\"\",'1. Order'!AS1180)","v":""},{"$f":"IF('1. Order'!AT1180=\"\",\"\",'1. Order'!AT1180)","v":""},null,null,null,null,null,null,null,{"$f":"IF('1. Order'!AX1180=\"\",\"\",'1. Order'!AX1180)","v":""},{"$f":"IF('1. Order'!AY1180=\"\",\"\",'1. Order'!AY1180)","v":""},{"$f":"IF('1. Order'!AZ1180=\"\",\"\",'1. Order'!AZ1180)","v":""},{"$f":"IF('1. Order'!BA1180=\"\",\"\",'1. Order'!BA1180)","v":""},{"$f":"IF('1. Order'!BC1180=\"\",\"\",'1. Order'!BC1180)","v":""},{"$f":"IF('1. Order'!BD1180=\"\",\"\",'1. Order'!BD1180)","v":6},{"$f":"IF('1. Order'!BE1180=\"\",\"\",'1. Order'!BE1180)","v":"None"},{"$f":"IF('1. Order'!BF1180=\"\",\"\",'1. Order'!BF1180)","v":"Parcel"},{"$f":"IF('1. Order'!BG1180=\"\",\"\",'1. Order'!BG1180)","v":"ZWO"}]
[{"$f":"IF('1. Order'!F1181=\"\",\"\",'1. Order'!F1181)","v":""},{"$f":"IF('1. Order'!G1181=\"\",\"\",'1. Order'!G1181)","v":""},{"$f":"IF('1. Order'!H1181=\"\",\"\",'1. Order'!H1181)","v":""},{"$f":"IF('1. Order'!I1181=\"\",\"\",'1. Order'!I1181)","v":""},{"$f":"IF('1. Order'!J1181=\"\",\"\",'1. Order'!J1181)","v":""},{"$f":"IF('1. Order'!K1181=\"\",\"\",'1. Order'!K1181)","v":""},{"$f":"IF('1. Order'!L1181=\"\",\"\",'1. Order'!L1181)","v":""},{"$f":"IF('1. Order'!M1181=\"\",\"\",'1. Order'!M1181)","v":""},{"$f":"IF('1. Order'!N1181=\"\",\"\",'1. Order'!N1181)","v":""},{"$f":"IF('1. Order'!O1181=\"\",\"\",'1. Order'!O1181)","v":{"$error":"#N/A"}},{"$f":"IF('1. Order'!P1181=\"\",\"\",'1. Order'!P1181)","v":{"$error":"#N/A"}},{"$f":"IF('1. Order'!Q1181=\"\",\"\",'1. Order'!Q1181)","v":""},{"$f":"IF('1. Order'!R1181=\"\",\"\",'1. Order'!R1181)","v":""},{"$f":"IF('1. Order'!S1181=\"\",\"\",'1. Order'!S1181)","v":""},{"$f":"IF('1. Order'!V1181=\"\",\"\",'1. Order'!V1181)","v":""},{"$f":"IF('1. Order'!W1181=\"\",\"\",'1. Order'!W1181)","v":""},{"$f":"IF('1. Order'!X1181=\"\",\"\",'1. Order'!X1181)","v":"EUR"},{"$f":"IF('1. Order'!Y1181=\"\",\"\",'1. Order'!Y1181)","v":""},{"$f":"IF('1. Order'!Z1181=\"\",\"\",'1. Order'!Z1181)","v":""},{"$f":"IF('1. Order'!AA1181=\"\",\"\",'1. Order'!AA1181)","v":""},null,{"$f":"IF('1. Order'!AS1181=\"\",\"\",'1. Order'!AS1181)","v":""},{"$f":"IF('1. Order'!AT1181=\"\",\"\",'1. Order'!AT1181)","v":""},null,null,null,null,null,null,null,{"$f":"IF('1. Order'!AX1181=\"\",\"\",'1. Order'!AX1181)","v":""},{"$f":"IF('1. Order'!AY1181=\"\",\"\",'1. Order'!AY1181)","v":""},{"$f":"IF('1. Order'!AZ1181=\"\",\"\",'1. Order'!AZ1181)","v":""},{"$f":"IF('1. Order'!BA1181=\"\",\"\",'1. Order'!BA1181)","v":""},{"$f":"IF('1. Order'!BC1181=\"\",\"\",'1. Order'!BC1181)","v":""},{"$f":"IF('1. Order'!BD1181=\"\",\"\",'1. Order'!BD1181)","v":6},{"$f":"IF('1. Order'!BE1181=\"\",\"\",'1. Order'!BE1181)","v":"None"},{"$f":"IF('1. Order'!BF1181=\"\",\"\",'1. Order'!BF1181)","v":"Parcel"},{"$f":"IF('1. Order'!BG1181=\"\",\"\",'1. Order'!BG1181)","v":"ZWO"}]
[{"$f":"IF('1. Order'!F1182=\"\",\"\",'1. Order'!F1182)","v":""},{"$f":"IF('1. Order'!G1182=\"\",\"\",'1. Order'!G1182)","v":""},{"$f":"IF('1. Order'!H1182=\"\",\"\",'1. Order'!H1182)","v":""},{"$f":"IF('1. Order'!I1182=\"\",\"\",'1. Order'!I1182)","v":""},{"$f":"IF('1. Order'!J1182=\"\",\"\",'1. Order'!J1182)","v":""},{"$f":"IF('1. Order'!K1182=\"\",\"\",'1. Order'!K1182)","v":""},{"$f":"IF('1. Order'!L1182=\"\",\"\",'1. Order'!L1182)","v":""},{"$f":"IF('1. Order'!M1182=\"\",\"\",'1. Order'!M1182)","v":""},{"$f":"IF('1. Order'!N1182=\"\",\"\",'1. Order'!N1182)","v":""},{"$f":"IF('1. Order'!O1182=\"\",\"\",'1. Order'!O1182)","v":{"$error":"#N/A"}},{"$f":"IF('1. Order'!P1182=\"\",\"\",'1. Order'!P1182)","v":{"$error":"#N/A"}},{"$f":"IF('1. Order'!Q1182=\"\",\"\",'1. Order'!Q1182)","v":""},{"$f":"IF('1. Order'!R1182=\"\",\"\",'1. Order'!R1182)","v":""},{"$f":"IF('1. Order'!S1182=\"\",\"\",'1. Order'!S1182)","v":""},{"$f":"IF('1. Order'!V1182=\"\",\"\",'1. Order'!V1182)","v":""},{"$f":"IF('1. Order'!W1182=\"\",\"\",'1. Order'!W1182)","v":""},{"$f":"IF('1. Order'!X1182=\"\",\"\",'1. Order'!X1182)","v":"EUR"},{"$f":"IF('1. Order'!Y1182=\"\",\"\",'1. Order'!Y1182)","v":""},{"$f":"IF('1. Order'!Z1182=\"\",\"\",'1. Order'!Z1182)","v":""},{"$f":"IF('1. Order'!AA1182=\"\",\"\",'1. Order'!AA1182)","v":""},null,{"$f":"IF('1. Order'!AS1182=\"\",\"\",'1. Order'!AS1182)","v":""},{"$f":"IF('1. Order'!AT1182=\"\",\"\",'1. Order'!AT1182)","v":""},null,null,null,null,null,null,null,{"$f":"IF('1. Order'!AX1182=\"\",\"\",'1. Order'!AX1182)","v":""},{"$f":"IF('1. Order'!AY1182=\"\",\"\",'1. Order'!AY1182)","v":""},{"$f":"IF('1. Order'!AZ1182=\"\",\"\",'1. Order'!AZ1182)","v":""},{"$f":"IF('1. Order'!BA1182=\"\",\"\",'1. Order'!BA1182)","v":""},{"$f":"IF('1. Order'!BC1182=\"\",\"\",'1. Order'!BC1182)","v":""},{"$f":"IF('1. Order'!BD1182=\"\",\"\",'1. Order'!BD1182)","v":6},{"$f":"IF('1. Order'!BE1182=\"\",\"\",'1. Order'!BE1182)","v":"None"},{"$f":"IF('1. Order'!BF1182=\"\",\"\",'1. Order'!BF1182)","v":"Parcel"},{"$f":"IF('1. Order'!BG1182=\"\",\"\",'1. Order'!BG1182)","v":"ZWO"}]
[{"$f":"IF('1. Order'!F1183=\"\",\"\",'1. Order'!F1183)","v":""},{"$f":"IF('1. Order'!G1183=\"\",\"\",'1. Order'!G1183)","v":""},{"$f":"IF('1. Order'!H1183=\"\",\"\",'1. Order'!H1183)","v":""},{"$f":"IF('1. Order'!I1183=\"\",\"\",'1. Order'!I1183)","v":""},{"$f":"IF('1. Order'!J1183=\"\",\"\",'1. Order'!J1183)","v":""},{"$f":"IF('1. Order'!K1183=\"\",\"\",'1. Order'!K1183)","v":""},{"$f":"IF('1. Order'!L1183=\"\",\"\",'1. Order'!L1183)","v":""},{"$f":"IF('1. Order'!M1183=\"\",\"\",'1. Order'!M1183)","v":""},{"$f":"IF('1. Order'!N1183=\"\",\"\",'1. Order'!N1183)","v":""},{"$f":"IF('1. Order'!O1183=\"\",\"\",'1. Order'!O1183)","v":{"$error":"#N/A"}},{"$f":"IF('1. Order'!P1183=\"\",\"\",'1. Order'!P1183)","v":{"$error":"#N/A"}},{"$f":"IF('1. Order'!Q1183=\"\",\"\",'1. Order'!Q1183)","v":""},{"$f":"IF('1. Order'!R1183=\"\",\"\",'1. Order'!R1183)","v":""},{"$f":"IF('1. Order'!S1183=\"\",\"\",'1. Order'!S1183)","v":""},{"$f":"IF('1. Order'!V1183=\"\",\"\",'1. Order'!V1183)","v":""},{"$f":"IF('1. Order'!W1183=\"\",\"\",'1. Order'!W1183)","v":""},{"$f":"IF('1. Order'!X1183=\"\",\"\",'1. Order'!X1183)","v":"EUR"},{"$f":"IF('1. Order'!Y1183=\"\",\"\",'1. Order'!Y1183)","v":""},{"$f":"IF('1. Order'!Z1183=\"\",\"\",'1. Order'!Z1183)","v":""},{"$f":"IF('1. Order'!AA1183=\"\",\"\",'1. Order'!AA1183)","v":""},null,{"$f":"IF('1. Order'!AS1183=\"\",\"\",'1. Order'!AS1183)","v":""},{"$f":"IF('1. Order'!AT1183=\"\",\"\",'1. Order'!AT1183)","v":""},null,null,null,null,null,null,null,{"$f":"IF('1. Order'!AX1183=\"\",\"\",'1. Order'!AX1183)","v":""},{"$f":"IF('1. Order'!AY1183=\"\",\"\",'1. Order'!AY1183)","v":""},{"$f":"IF('1. Order'!AZ1183=\"\",\"\",'1. Order'!AZ1183)","v":""},{"$f":"IF('1. Order'!BA1183=\"\",\"\",'1. Order'!BA1183)","v":""},{"$f":"IF('1. Order'!BC1183=\"\",\"\",'1. Order'!BC1183)","v":""},{"$f":"IF('1. Order'!BD1183=\"\",\"\",'1. Order'!BD1183)","v":6},{"$f":"IF('1. Order'!BE1183=\"\",\"\",'1. Order'!BE1183)","v":"None"},{"$f":"IF('1. Order'!BF1183=\"\",\"\",'1. Order'!BF1183)","v":"Parcel"},{"$f":"IF('1. Order'!BG1183=\"\",\"\",'1. Order'!BG1183)","v":"ZWO"}]
[{"$f":"IF('1. Order'!F1184=\"\",\"\",'1. Order'!F1184)","v":""},{"$f":"IF('1. Order'!G1184=\"\",\"\",'1. Order'!G1184)","v":""},{"$f":"IF('1. Order'!H1184=\"\",\"\",'1. Order'!H1184)","v":""},{"$f":"IF('1. Order'!I1184=\"\",\"\",'1. Order'!I1184)","v":""},{"$f":"IF('1. Order'!J1184=\"\",\"\",'1. Order'!J1184)","v":""},{"$f":"IF('1. Order'!K1184=\"\",\"\",'1. Order'!K1184)","v":""},{"$f":"IF('1. Order'!L1184=\"\",\"\",'1. Order'!L1184)","v":""},{"$f":"IF('1. Order'!M1184=\"\",\"\",'1. Order'!M1184)","v":""},{"$f":"IF('1. Order'!N1184=\"\",\"\",'1. Order'!N1184)","v":""},{"$f":"IF('1. Order'!O1184=\"\",\"\",'1. Order'!O1184)","v":{"$error":"#N/A"}},{"$f":"IF('1. Order'!P1184=\"\",\"\",'1. Order'!P1184)","v":{"$error":"#N/A"}},{"$f":"IF('1. Order'!Q1184=\"\",\"\",'1. Order'!Q1184)","v":""},{"$f":"IF('1. Order'!R1184=\"\",\"\",'1. Order'!R1184)","v":""},{"$f":"IF('1. Order'!S1184=\"\",\"\",'1. Order'!S1184)","v":""},{"$f":"IF('1. Order'!V1184=\"\",\"\",'1. Order'!V1184)","v":""},{"$f":"IF('1. Order'!W1184=\"\",\"\",'1. Order'!W1184)","v":""},{"$f":"IF('1. Order'!X1184=\"\",\"\",'1. Order'!X1184)","v":"EUR"},{"$f":"IF('1. Order'!Y1184=\"\",\"\",'1. Order'!Y1184)","v":""},{"$f":"IF('1. Order'!Z1184=\"\",\"\",'1. Order'!Z1184)","v":""},{"$f":"IF('1. Order'!AA1184=\"\",\"\",'1. Order'!AA1184)","v":""},null,{"$f":"IF('1. Order'!AS1184=\"\",\"\",'1. Order'!AS1184)","v":""},{"$f":"IF('1. Order'!AT1184=\"\",\"\",'1. Order'!AT1184)","v":""},null,null,null,null,null,null,null,{"$f":"IF('1. Order'!AX1184=\"\",\"\",'1. Order'!AX1184)","v":""},{"$f":"IF('1. Order'!AY1184=\"\",\"\",'1. Order'!AY1184)","v":""},{"$f":"IF('1. Order'!AZ1184=\"\",\"\",'1. Order'!AZ1184)","v":""},{"$f":"IF('1. Order'!BA1184=\"\",\"\",'1. Order'!BA1184)","v":""},{"$f":"IF('1. Order'!BC1184=\"\",\"\",'1. Order'!BC1184)","v":""},{"$f":"IF('1. Order'!BD1184=\"\",\"\",'1. Order'!BD1184)","v":6},{"$f":"IF('1. Order'!BE1184=\"\",\"\",'1. Order'!BE1184)","v":"None"},{"$f":"IF('1. Order'!BF1184=\"\",\"\",'1. Order'!BF1184)","v":"Parcel"},{"$f":"IF('1. Order'!BG1184=\"\",\"\",'1. Order'!BG1184)","v":"ZWO"}]
[{"$f":"IF('1. Order'!F1185=\"\",\"\",'1. Order'!F1185)","v":""},{"$f":"IF('1. Order'!G1185=\"\",\"\",'1. Order'!G1185)","v":""},{"$f":"IF('1. Order'!H1185=\"\",\"\",'1. Order'!H1185)","v":""},{"$f":"IF('1. Order'!I1185=\"\",\"\",'1. Order'!I1185)","v":""},{"$f":"IF('1. Order'!J1185=\"\",\"\",'1. Order'!J1185)","v":""},{"$f":"IF('1. Order'!K1185=\"\",\"\",'1. Order'!K1185)","v":""},{"$f":"IF('1. Order'!L1185=\"\",\"\",'1. Order'!L1185)","v":""},{"$f":"IF('1. Order'!M1185=\"\",\"\",'1. Order'!M1185)","v":""},{"$f":"IF('1. Order'!N1185=\"\",\"\",'1. Order'!N1185)","v":""},{"$f":"IF('1. Order'!O1185=\"\",\"\",'1. Order'!O1185)","v":{"$error":"#N/A"}},{"$f":"IF('1. Order'!P1185=\"\",\"\",'1. Order'!P1185)","v":{"$error":"#N/A"}},{"$f":"IF('1. Order'!Q1185=\"\",\"\",'1. Order'!Q1185)","v":""},{"$f":"IF('1. Order'!R1185=\"\",\"\",'1. Order'!R1185)","v":""},{"$f":"IF('1. Order'!S1185=\"\",\"\",'1. Order'!S1185)","v":""},{"$f":"IF('1. Order'!V1185=\"\",\"\",'1. Order'!V1185)","v":""},{"$f":"IF('1. Order'!W1185=\"\",\"\",'1. Order'!W1185)","v":""},{"$f":"IF('1. Order'!X1185=\"\",\"\",'1. Order'!X1185)","v":"EUR"},{"$f":"IF('1. Order'!Y1185=\"\",\"\",'1. Order'!Y1185)","v":""},{"$f":"IF('1. Order'!Z1185=\"\",\"\",'1. Order'!Z1185)","v":""},{"$f":"IF('1. Order'!AA1185=\"\",\"\",'1. Order'!AA1185)","v":""},null,{"$f":"IF('1. Order'!AS1185=\"\",\"\",'1. Order'!AS1185)","v":""},{"$f":"IF('1. Order'!AT1185=\"\",\"\",'1. Order'!AT1185)","v":""},null,null,null,null,null,null,null,{"$f":"IF('1. Order'!AX1185=\"\",\"\",'1. Order'!AX1185)","v":""},{"$f":"IF('1. Order'!AY1185=\"\",\"\",'1. Order'!AY1185)","v":""},{"$f":"IF('1. Order'!AZ1185=\"\",\"\",'1. Order'!AZ1185)","v":""},{"$f":"IF('1. Order'!BA1185=\"\",\"\",'1. Order'!BA1185)","v":""},{"$f":"IF('1. Order'!BC1185=\"\",\"\",'1. Order'!BC1185)","v":""},{"$f":"IF('1. Order'!BD1185=\"\",\"\",'1. Order'!BD1185)","v":6},{"$f":"IF('1. Order'!BE1185=\"\",\"\",'1. Order'!BE1185)","v":"None"},{"$f":"IF('1. Order'!BF1185=\"\",\"\",'1. Order'!BF1185)","v":"Parcel"},{"$f":"IF('1. Order'!BG1185=\"\",\"\",'1. Order'!BG1185)","v":"ZWO"}]
[{"$f":"IF('1. Order'!F1186=\"\",\"\",'1. Order'!F1186)","v":""},{"$f":"IF('1. Order'!G1186=\"\",\"\",'1. Order'!G1186)","v":""},{"$f":"IF('1. Order'!H1186=\"\",\"\",'1. Order'!H1186)","v":""},{"$f":"IF('1. Order'!I1186=\"\",\"\",'1. Order'!I1186)","v":""},{"$f":"IF('1. Order'!J1186=\"\",\"\",'1. Order'!J1186)","v":""},{"$f":"IF('1. Order'!K1186=\"\",\"\",'1. Order'!K1186)","v":""},{"$f":"IF('1. Order'!L1186=\"\",\"\",'1. Order'!L1186)","v":""},{"$f":"IF('1. Order'!M1186=\"\",\"\",'1. Order'!M1186)","v":""},{"$f":"IF('1. Order'!N1186=\"\",\"\",'1. Order'!N1186)","v":""},{"$f":"IF('1. Order'!O1186=\"\",\"\",'1. Order'!O1186)","v":{"$error":"#N/A"}},{"$f":"IF('1. Order'!P1186=\"\",\"\",'1. Order'!P1186)","v":{"$error":"#N/A"}},{"$f":"IF('1. Order'!Q1186=\"\",\"\",'1. Order'!Q1186)","v":""},{"$f":"IF('1. Order'!R1186=\"\",\"\",'1. Order'!R1186)","v":""},{"$f":"IF('1. Order'!S1186=\"\",\"\",'1. Order'!S1186)","v":""},{"$f":"IF('1. Order'!V1186=\"\",\"\",'1. Order'!V1186)","v":""},{"$f":"IF('1. Order'!W1186=\"\",\"\",'1. Order'!W1186)","v":""},{"$f":"IF('1. Order'!X1186=\"\",\"\",'1. Order'!X1186)","v":"EUR"},{"$f":"IF('1. Order'!Y1186=\"\",\"\",'1. Order'!Y1186)","v":""},{"$f":"IF('1. Order'!Z1186=\"\",\"\",'1. Order'!Z1186)","v":""},{"$f":"IF('1. Order'!AA1186=\"\",\"\",'1. Order'!AA1186)","v":""},null,{"$f":"IF('1. Order'!AS1186=\"\",\"\",'1. Order'!AS1186)","v":""},{"$f":"IF('1. Order'!AT1186=\"\",\"\",'1. Order'!AT1186)","v":""},null,null,null,null,null,null,null,{"$f":"IF('1. Order'!AX1186=\"\",\"\",'1. Order'!AX1186)","v":""},{"$f":"IF('1. Order'!AY1186=\"\",\"\",'1. Order'!AY1186)","v":""},{"$f":"IF('1. Order'!AZ1186=\"\",\"\",'1. Order'!AZ1186)","v":""},{"$f":"IF('1. Order'!BA1186=\"\",\"\",'1. Order'!BA1186)","v":""},{"$f":"IF('1. Order'!BC1186=\"\",\"\",'1. Order'!BC1186)","v":""},{"$f":"IF('1. Order'!BD1186=\"\",\"\",'1. Order'!BD1186)","v":6},{"$f":"IF('1. Order'!BE1186=\"\",\"\",'1. Order'!BE1186)","v":"None"},{"$f":"IF('1. Order'!BF1186=\"\",\"\",'1. Order'!BF1186)","v":"Parcel"},{"$f":"IF('1. Order'!BG1186=\"\",\"\",'1. Order'!BG1186)","v":"ZWO"}]
[{"$f":"IF('1. Order'!F1187=\"\",\"\",'1. Order'!F1187)","v":""},{"$f":"IF('1. Order'!G1187=\"\",\"\",'1. Order'!G1187)","v":""},{"$f":"IF('1. Order'!H1187=\"\",\"\",'1. Order'!H1187)","v":""},{"$f":"IF('1. Order'!I1187=\"\",\"\",'1. Order'!I1187)","v":""},{"$f":"IF('1. Order'!J1187=\"\",\"\",'1. Order'!J1187)","v":""},{"$f":"IF('1. Order'!K1187=\"\",\"\",'1. Order'!K1187)","v":""},{"$f":"IF('1. Order'!L1187=\"\",\"\",'1. Order'!L1187)","v":""},{"$f":"IF('1. Order'!M1187=\"\",\"\",'1. Order'!M1187)","v":""},{"$f":"IF('1. Order'!N1187=\"\",\"\",'1. Order'!N1187)","v":""},{"$f":"IF('1. Order'!O1187=\"\",\"\",'1. Order'!O1187)","v":{"$error":"#N/A"}},{"$f":"IF('1. Order'!P1187=\"\",\"\",'1. Order'!P1187)","v":{"$error":"#N/A"}},{"$f":"IF('1. Order'!Q1187=\"\",\"\",'1. Order'!Q1187)","v":""},{"$f":"IF('1. Order'!R1187=\"\",\"\",'1. Order'!R1187)","v":""},{"$f":"IF('1. Order'!S1187=\"\",\"\",'1. Order'!S1187)","v":""},{"$f":"IF('1. Order'!V1187=\"\",\"\",'1. Order'!V1187)","v":""},{"$f":"IF('1. Order'!W1187=\"\",\"\",'1. Order'!W1187)","v":""},{"$f":"IF('1. Order'!X1187=\"\",\"\",'1. Order'!X1187)","v":"EUR"},{"$f":"IF('1. Order'!Y1187=\"\",\"\",'1. Order'!Y1187)","v":""},{"$f":"IF('1. Order'!Z1187=\"\",\"\",'1. Order'!Z1187)","v":""},{"$f":"IF('1. Order'!AA1187=\"\",\"\",'1. Order'!AA1187)","v":""},null,{"$f":"IF('1. Order'!AS1187=\"\",\"\",'1. Order'!AS1187)","v":""},{"$f":"IF('1. Order'!AT1187=\"\",\"\",'1. Order'!AT1187)","v":""},null,null,null,null,null,null,null,{"$f":"IF('1. Order'!AX1187=\"\",\"\",'1. Order'!AX1187)","v":""},{"$f":"IF('1. Order'!AY1187=\"\",\"\",'1. Order'!AY1187)","v":""},{"$f":"IF('1. Order'!AZ1187=\"\",\"\",'1. Order'!AZ1187)","v":""},{"$f":"IF('1. Order'!BA1187=\"\",\"\",'1. Order'!BA1187)","v":""},{"$f":"IF('1. Order'!BC1187=\"\",\"\",'1. Order'!BC1187)","v":""},{"$f":"IF('1. Order'!BD1187=\"\",\"\",'1. Order'!BD1187)","v":6},{"$f":"IF('1. Order'!BE1187=\"\",\"\",'1. Order'!BE1187)","v":"None"},{"$f":"IF('1. Order'!BF1187=\"\",\"\",'1. Order'!BF1187)","v":"Parcel"},{"$f":"IF('1. Order'!BG1187=\"\",\"\",'1. Order'!BG1187)","v":"ZWO"}]
[{"$f":"IF('1. Order'!F1188=\"\",\"\",'1. Order'!F1188)","v":""},{"$f":"IF('1. Order'!G1188=\"\",\"\",'1. Order'!G1188)","v":""},{"$f":"IF('1. Order'!H1188=\"\",\"\",'1. Order'!H1188)","v":""},{"$f":"IF('1. Order'!I1188=\"\",\"\",'1. Order'!I1188)","v":""},{"$f":"IF('1. Order'!J1188=\"\",\"\",'1. Order'!J1188)","v":""},{"$f":"IF('1. Order'!K1188=\"\",\"\",'1. Order'!K1188)","v":""},{"$f":"IF('1. Order'!L1188=\"\",\"\",'1. Order'!L1188)","v":""},{"$f":"IF('1. Order'!M1188=\"\",\"\",'1. Order'!M1188)","v":""},{"$f":"IF('1. Order'!N1188=\"\",\"\",'1. Order'!N1188)","v":""},{"$f":"IF('1. Order'!O1188=\"\",\"\",'1. Order'!O1188)","v":{"$error":"#N/A"}},{"$f":"IF('1. Order'!P1188=\"\",\"\",'1. Order'!P1188)","v":{"$error":"#N/A"}},{"$f":"IF('1. Order'!Q1188=\"\",\"\",'1. Order'!Q1188)","v":""},{"$f":"IF('1. Order'!R1188=\"\",\"\",'1. Order'!R1188)","v":""},{"$f":"IF('1. Order'!S1188=\"\",\"\",'1. Order'!S1188)","v":""},{"$f":"IF('1. Order'!V1188=\"\",\"\",'1. Order'!V1188)","v":""},{"$f":"IF('1. Order'!W1188=\"\",\"\",'1. Order'!W1188)","v":""},{"$f":"IF('1. Order'!X1188=\"\",\"\",'1. Order'!X1188)","v":"EUR"},{"$f":"IF('1. Order'!Y1188=\"\",\"\",'1. Order'!Y1188)","v":""},{"$f":"IF('1. Order'!Z1188=\"\",\"\",'1. Order'!Z1188)","v":""},{"$f":"IF('1. Order'!AA1188=\"\",\"\",'1. Order'!AA1188)","v":""},null,{"$f":"IF('1. Order'!AS1188=\"\",\"\",'1. Order'!AS1188)","v":""},{"$f":"IF('1. Order'!AT1188=\"\",\"\",'1. Order'!AT1188)","v":""},null,null,null,null,null,null,null,{"$f":"IF('1. Order'!AX1188=\"\",\"\",'1. Order'!AX1188)","v":""},{"$f":"IF('1. Order'!AY1188=\"\",\"\",'1. Order'!AY1188)","v":""},{"$f":"IF('1. Order'!AZ1188=\"\",\"\",'1. Order'!AZ1188)","v":""},{"$f":"IF('1. Order'!BA1188=\"\",\"\",'1. Order'!BA1188)","v":""},{"$f":"IF('1. Order'!BC1188=\"\",\"\",'1. Order'!BC1188)","v":""},{"$f":"IF('1. Order'!BD1188=\"\",\"\",'1. Order'!BD1188)","v":6},{"$f":"IF('1. Order'!BE1188=\"\",\"\",'1. Order'!BE1188)","v":"None"},{"$f":"IF('1. Order'!BF1188=\"\",\"\",'1. Order'!BF1188)","v":"Parcel"},{"$f":"IF('1. Order'!BG1188=\"\",\"\",'1. Order'!BG1188)","v":"ZWO"}]
[{"$f":"IF('1. Order'!F1189=\"\",\"\",'1. Order'!F1189)","v":""},{"$f":"IF('1. Order'!G1189=\"\",\"\",'1. Order'!G1189)","v":""},{"$f":"IF('1. Order'!H1189=\"\",\"\",'1. Order'!H1189)","v":""},{"$f":"IF('1. Order'!I1189=\"\",\"\",'1. Order'!I1189)","v":""},{"$f":"IF('1. Order'!J1189=\"\",\"\",'1. Order'!J1189)","v":""},{"$f":"IF('1. Order'!K1189=\"\",\"\",'1. Order'!K1189)","v":""},{"$f":"IF('1. Order'!L1189=\"\",\"\",'1. Order'!L1189)","v":""},{"$f":"IF('1. Order'!M1189=\"\",\"\",'1. Order'!M1189)","v":""},{"$f":"IF('1. Order'!N1189=\"\",\"\",'1. Order'!N1189)","v":""},{"$f":"IF('1. Order'!O1189=\"\",\"\",'1. Order'!O1189)","v":{"$error":"#N/A"}},{"$f":"IF('1. Order'!P1189=\"\",\"\",'1. Order'!P1189)","v":{"$error":"#N/A"}},{"$f":"IF('1. Order'!Q1189=\"\",\"\",'1. Order'!Q1189)","v":""},{"$f":"IF('1. Order'!R1189=\"\",\"\",'1. Order'!R1189)","v":""},{"$f":"IF('1. Order'!S1189=\"\",\"\",'1. Order'!S1189)","v":""},{"$f":"IF('1. Order'!V1189=\"\",\"\",'1. Order'!V1189)","v":""},{"$f":"IF('1. Order'!W1189=\"\",\"\",'1. Order'!W1189)","v":""},{"$f":"IF('1. Order'!X1189=\"\",\"\",'1. Order'!X1189)","v":"EUR"},{"$f":"IF('1. Order'!Y1189=\"\",\"\",'1. Order'!Y1189)","v":""},{"$f":"IF('1. Order'!Z1189=\"\",\"\",'1. Order'!Z1189)","v":""},{"$f":"IF('1. Order'!AA1189=\"\",\"\",'1. Order'!AA1189)","v":""},null,{"$f":"IF('1. Order'!AS1189=\"\",\"\",'1. Order'!AS1189)","v":""},{"$f":"IF('1. Order'!AT1189=\"\",\"\",'1. Order'!AT1189)","v":""},null,null,null,null,null,null,null,{"$f":"IF('1. Order'!AX1189=\"\",\"\",'1. Order'!AX1189)","v":""},{"$f":"IF('1. Order'!AY1189=\"\",\"\",'1. Order'!AY1189)","v":""},{"$f":"IF('1. Order'!AZ1189=\"\",\"\",'1. Order'!AZ1189)","v":""},{"$f":"IF('1. Order'!BA1189=\"\",\"\",'1. Order'!BA1189)","v":""},{"$f":"IF('1. Order'!BC1189=\"\",\"\",'1. Order'!BC1189)","v":""},{"$f":"IF('1. Order'!BD1189=\"\",\"\",'1. Order'!BD1189)","v":6},{"$f":"IF('1. Order'!BE1189=\"\",\"\",'1. Order'!BE1189)","v":"None"},{"$f":"IF('1. Order'!BF1189=\"\",\"\",'1. Order'!BF1189)","v":"Parcel"},{"$f":"IF('1. Order'!BG1189=\"\",\"\",'1. Order'!BG1189)","v":"ZWO"}]
[{"$f":"IF('1. Order'!F1190=\"\",\"\",'1. Order'!F1190)","v":""},{"$f":"IF('1. Order'!G1190=\"\",\"\",'1. Order'!G1190)","v":""},{"$f":"IF('1. Order'!H1190=\"\",\"\",'1. Order'!H1190)","v":""},{"$f":"IF('1. Order'!I1190=\"\",\"\",'1. Order'!I1190)","v":""},{"$f":"IF('1. Order'!J1190=\"\",\"\",'1. Order'!J1190)","v":""},{"$f":"IF('1. Order'!K1190=\"\",\"\",'1. Order'!K1190)","v":""},{"$f":"IF('1. Order'!L1190=\"\",\"\",'1. Order'!L1190)","v":""},{"$f":"IF('1. Order'!M1190=\"\",\"\",'1. Order'!M1190)","v":""},{"$f":"IF('1. Order'!N1190=\"\",\"\",'1. Order'!N1190)","v":""},{"$f":"IF('1. Order'!O1190=\"\",\"\",'1. Order'!O1190)","v":{"$error":"#N/A"}},{"$f":"IF('1. Order'!P1190=\"\",\"\",'1. Order'!P1190)","v":{"$error":"#N/A"}},{"$f":"IF('1. Order'!Q1190=\"\",\"\",'1. Order'!Q1190)","v":""},{"$f":"IF('1. Order'!R1190=\"\",\"\",'1. Order'!R1190)","v":""},{"$f":"IF('1. Order'!S1190=\"\",\"\",'1. Order'!S1190)","v":""},{"$f":"IF('1. Order'!V1190=\"\",\"\",'1. Order'!V1190)","v":""},{"$f":"IF('1. Order'!W1190=\"\",\"\",'1. Order'!W1190)","v":""},{"$f":"IF('1. Order'!X1190=\"\",\"\",'1. Order'!X1190)","v":"EUR"},{"$f":"IF('1. Order'!Y1190=\"\",\"\",'1. Order'!Y1190)","v":""},{"$f":"IF('1. Order'!Z1190=\"\",\"\",'1. Order'!Z1190)","v":""},{"$f":"IF('1. Order'!AA1190=\"\",\"\",'1. Order'!AA1190)","v":""},null,{"$f":"IF('1. Order'!AS1190=\"\",\"\",'1. Order'!AS1190)","v":""},{"$f":"IF('1. Order'!AT1190=\"\",\"\",'1. Order'!AT1190)","v":""},null,null,null,null,null,null,null,{"$f":"IF('1. Order'!AX1190=\"\",\"\",'1. Order'!AX1190)","v":""},{"$f":"IF('1. Order'!AY1190=\"\",\"\",'1. Order'!AY1190)","v":""},{"$f":"IF('1. Order'!AZ1190=\"\",\"\",'1. Order'!AZ1190)","v":""},{"$f":"IF('1. Order'!BA1190=\"\",\"\",'1. Order'!BA1190)","v":""},{"$f":"IF('1. Order'!BC1190=\"\",\"\",'1. Order'!BC1190)","v":""},{"$f":"IF('1. Order'!BD1190=\"\",\"\",'1. Order'!BD1190)","v":6},{"$f":"IF('1. Order'!BE1190=\"\",\"\",'1. Order'!BE1190)","v":"None"},{"$f":"IF('1. Order'!BF1190=\"\",\"\",'1. Order'!BF1190)","v":"Parcel"},{"$f":"IF('1. Order'!BG1190=\"\",\"\",'1. Order'!BG1190)","v":"ZWO"}]
[{"$f":"IF('1. Order'!F1191=\"\",\"\",'1. Order'!F1191)","v":""},{"$f":"IF('1. Order'!G1191=\"\",\"\",'1. Order'!G1191)","v":""},{"$f":"IF('1. Order'!H1191=\"\",\"\",'1. Order'!H1191)","v":""},{"$f":"IF('1. Order'!I1191=\"\",\"\",'1. Order'!I1191)","v":""},{"$f":"IF('1. Order'!J1191=\"\",\"\",'1. Order'!J1191)","v":""},{"$f":"IF('1. Order'!K1191=\"\",\"\",'1. Order'!K1191)","v":""},{"$f":"IF('1. Order'!L1191=\"\",\"\",'1. Order'!L1191)","v":""},{"$f":"IF('1. Order'!M1191=\"\",\"\",'1. Order'!M1191)","v":""},{"$f":"IF('1. Order'!N1191=\"\",\"\",'1. Order'!N1191)","v":""},{"$f":"IF('1. Order'!O1191=\"\",\"\",'1. Order'!O1191)","v":{"$error":"#N/A"}},{"$f":"IF('1. Order'!P1191=\"\",\"\",'1. Order'!P1191)","v":{"$error":"#N/A"}},{"$f":"IF('1. Order'!Q1191=\"\",\"\",'1. Order'!Q1191)","v":""},{"$f":"IF('1. Order'!R1191=\"\",\"\",'1. Order'!R1191)","v":""},{"$f":"IF('1. Order'!S1191=\"\",\"\",'1. Order'!S1191)","v":""},{"$f":"IF('1. Order'!V1191=\"\",\"\",'1. Order'!V1191)","v":""},{"$f":"IF('1. Order'!W1191=\"\",\"\",'1. Order'!W1191)","v":""},{"$f":"IF('1. Order'!X1191=\"\",\"\",'1. Order'!X1191)","v":"EUR"},{"$f":"IF('1. Order'!Y1191=\"\",\"\",'1. Order'!Y1191)","v":""},{"$f":"IF('1. Order'!Z1191=\"\",\"\",'1. Order'!Z1191)","v":""},{"$f":"IF('1. Order'!AA1191=\"\",\"\",'1. Order'!AA1191)","v":""},null,{"$f":"IF('1. Order'!AS1191=\"\",\"\",'1. Order'!AS1191)","v":""},{"$f":"IF('1. Order'!AT1191=\"\",\"\",'1. Order'!AT1191)","v":""},null,null,null,null,null,null,null,{"$f":"IF('1. Order'!AX1191=\"\",\"\",'1. Order'!AX1191)","v":""},{"$f":"IF('1. Order'!AY1191=\"\",\"\",'1. Order'!AY1191)","v":""},{"$f":"IF('1. Order'!AZ1191=\"\",\"\",'1. Order'!AZ1191)","v":""},{"$f":"IF('1. Order'!BA1191=\"\",\"\",'1. Order'!BA1191)","v":""},{"$f":"IF('1. Order'!BC1191=\"\",\"\",'1. Order'!BC1191)","v":""},{"$f":"IF('1. Order'!BD1191=\"\",\"\",'1. Order'!BD1191)","v":6},{"$f":"IF('1. Order'!BE1191=\"\",\"\",'1. Order'!BE1191)","v":"None"},{"$f":"IF('1. Order'!BF1191=\"\",\"\",'1. Order'!BF1191)","v":"Parcel"},{"$f":"IF('1. Order'!BG1191=\"\",\"\",'1. Order'!BG1191)","v":"ZWO"}]
[{"$f":"IF('1. Order'!F1192=\"\",\"\",'1. Order'!F1192)","v":""},{"$f":"IF('1. Order'!G1192=\"\",\"\",'1. Order'!G1192)","v":""},{"$f":"IF('1. Order'!H1192=\"\",\"\",'1. Order'!H1192)","v":""},{"$f":"IF('1. Order'!I1192=\"\",\"\",'1. Order'!I1192)","v":""},{"$f":"IF('1. Order'!J1192=\"\",\"\",'1. Order'!J1192)","v":""},{"$f":"IF('1. Order'!K1192=\"\",\"\",'1. Order'!K1192)","v":""},{"$f":"IF('1. Order'!L1192=\"\",\"\",'1. Order'!L1192)","v":""},{"$f":"IF('1. Order'!M1192=\"\",\"\",'1. Order'!M1192)","v":""},{"$f":"IF('1. Order'!N1192=\"\",\"\",'1. Order'!N1192)","v":""},{"$f":"IF('1. Order'!O1192=\"\",\"\",'1. Order'!O1192)","v":{"$error":"#N/A"}},{"$f":"IF('1. Order'!P1192=\"\",\"\",'1. Order'!P1192)","v":{"$error":"#N/A"}},{"$f":"IF('1. Order'!Q1192=\"\",\"\",'1. Order'!Q1192)","v":""},{"$f":"IF('1. Order'!R1192=\"\",\"\",'1. Order'!R1192)","v":""},{"$f":"IF('1. Order'!S1192=\"\",\"\",'1. Order'!S1192)","v":""},{"$f":"IF('1. Order'!V1192=\"\",\"\",'1. Order'!V1192)","v":""},{"$f":"IF('1. Order'!W1192=\"\",\"\",'1. Order'!W1192)","v":""},{"$f":"IF('1. Order'!X1192=\"\",\"\",'1. Order'!X1192)","v":"EUR"},{"$f":"IF('1. Order'!Y1192=\"\",\"\",'1. Order'!Y1192)","v":""},{"$f":"IF('1. Order'!Z1192=\"\",\"\",'1. Order'!Z1192)","v":""},{"$f":"IF('1. Order'!AA1192=\"\",\"\",'1. Order'!AA1192)","v":""},null,{"$f":"IF('1. Order'!AS1192=\"\",\"\",'1. Order'!AS1192)","v":""},{"$f":"IF('1. Order'!AT1192=\"\",\"\",'1. Order'!AT1192)","v":""},null,null,null,null,null,null,null,{"$f":"IF('1. Order'!AX1192=\"\",\"\",'1. Order'!AX1192)","v":""},{"$f":"IF('1. Order'!AY1192=\"\",\"\",'1. Order'!AY1192)","v":""},{"$f":"IF('1. Order'!AZ1192=\"\",\"\",'1. Order'!AZ1192)","v":""},{"$f":"IF('1. Order'!BA1192=\"\",\"\",'1. Order'!BA1192)","v":""},{"$f":"IF('1. Order'!BC1192=\"\",\"\",'1. Order'!BC1192)","v":""},{"$f":"IF('1. Order'!BD1192=\"\",\"\",'1. Order'!BD1192)","v":6},{"$f":"IF('1. Order'!BE1192=\"\",\"\",'1. Order'!BE1192)","v":"None"},{"$f":"IF('1. Order'!BF1192=\"\",\"\",'1. Order'!BF1192)","v":"Parcel"},{"$f":"IF('1. Order'!BG1192=\"\",\"\",'1. Order'!BG1192)","v":"ZWO"}]
[{"$f":"IF('1. Order'!F1193=\"\",\"\",'1. Order'!F1193)","v":""},{"$f":"IF('1. Order'!G1193=\"\",\"\",'1. Order'!G1193)","v":""},{"$f":"IF('1. Order'!H1193=\"\",\"\",'1. Order'!H1193)","v":""},{"$f":"IF('1. Order'!I1193=\"\",\"\",'1. Order'!I1193)","v":""},{"$f":"IF('1. Order'!J1193=\"\",\"\",'1. Order'!J1193)","v":""},{"$f":"IF('1. Order'!K1193=\"\",\"\",'1. Order'!K1193)","v":""},{"$f":"IF('1. Order'!L1193=\"\",\"\",'1. Order'!L1193)","v":""},{"$f":"IF('1. Order'!M1193=\"\",\"\",'1. Order'!M1193)","v":""},{"$f":"IF('1. Order'!N1193=\"\",\"\",'1. Order'!N1193)","v":""},{"$f":"IF('1. Order'!O1193=\"\",\"\",'1. Order'!O1193)","v":{"$error":"#N/A"}},{"$f":"IF('1. Order'!P1193=\"\",\"\",'1. Order'!P1193)","v":{"$error":"#N/A"}},{"$f":"IF('1. Order'!Q1193=\"\",\"\",'1. Order'!Q1193)","v":""},{"$f":"IF('1. Order'!R1193=\"\",\"\",'1. Order'!R1193)","v":""},{"$f":"IF('1. Order'!S1193=\"\",\"\",'1. Order'!S1193)","v":""},{"$f":"IF('1. Order'!V1193=\"\",\"\",'1. Order'!V1193)","v":""},{"$f":"IF('1. Order'!W1193=\"\",\"\",'1. Order'!W1193)","v":""},{"$f":"IF('1. Order'!X1193=\"\",\"\",'1. Order'!X1193)","v":"EUR"},{"$f":"IF('1. Order'!Y1193=\"\",\"\",'1. Order'!Y1193)","v":""},{"$f":"IF('1. Order'!Z1193=\"\",\"\",'1. Order'!Z1193)","v":""},{"$f":"IF('1. Order'!AA1193=\"\",\"\",'1. Order'!AA1193)","v":""},null,{"$f":"IF('1. Order'!AS1193=\"\",\"\",'1. Order'!AS1193)","v":""},{"$f":"IF('1. Order'!AT1193=\"\",\"\",'1. Order'!AT1193)","v":""},null,null,null,null,null,null,null,{"$f":"IF('1. Order'!AX1193=\"\",\"\",'1. Order'!AX1193)","v":""},{"$f":"IF('1. Order'!AY1193=\"\",\"\",'1. Order'!AY1193)","v":""},{"$f":"IF('1. Order'!AZ1193=\"\",\"\",'1. Order'!AZ1193)","v":""},{"$f":"IF('1. Order'!BA1193=\"\",\"\",'1. Order'!BA1193)","v":""},{"$f":"IF('1. Order'!BC1193=\"\",\"\",'1. Order'!BC1193)","v":""},{"$f":"IF('1. Order'!BD1193=\"\",\"\",'1. Order'!BD1193)","v":6},{"$f":"IF('1. Order'!BE1193=\"\",\"\",'1. Order'!BE1193)","v":"None"},{"$f":"IF('1. Order'!BF1193=\"\",\"\",'1. Order'!BF1193)","v":"Parcel"},{"$f":"IF('1. Order'!BG1193=\"\",\"\",'1. Order'!BG1193)","v":"ZWO"}]
[{"$f":"IF('1. Order'!F1194=\"\",\"\",'1. Order'!F1194)","v":""},{"$f":"IF('1. Order'!G1194=\"\",\"\",'1. Order'!G1194)","v":""},{"$f":"IF('1. Order'!H1194=\"\",\"\",'1. Order'!H1194)","v":""},{"$f":"IF('1. Order'!I1194=\"\",\"\",'1. Order'!I1194)","v":""},{"$f":"IF('1. Order'!J1194=\"\",\"\",'1. Order'!J1194)","v":""},{"$f":"IF('1. Order'!K1194=\"\",\"\",'1. Order'!K1194)","v":""},{"$f":"IF('1. Order'!L1194=\"\",\"\",'1. Order'!L1194)","v":""},{"$f":"IF('1. Order'!M1194=\"\",\"\",'1. Order'!M1194)","v":""},{"$f":"IF('1. Order'!N1194=\"\",\"\",'1. Order'!N1194)","v":""},{"$f":"IF('1. Order'!O1194=\"\",\"\",'1. Order'!O1194)","v":{"$error":"#N/A"}},{"$f":"IF('1. Order'!P1194=\"\",\"\",'1. Order'!P1194)","v":{"$error":"#N/A"}},{"$f":"IF('1. Order'!Q1194=\"\",\"\",'1. Order'!Q1194)","v":""},{"$f":"IF('1. Order'!R1194=\"\",\"\",'1. Order'!R1194)","v":""},{"$f":"IF('1. Order'!S1194=\"\",\"\",'1. Order'!S1194)","v":""},{"$f":"IF('1. Order'!V1194=\"\",\"\",'1. Order'!V1194)","v":""},{"$f":"IF('1. Order'!W1194=\"\",\"\",'1. Order'!W1194)","v":""},{"$f":"IF('1. Order'!X1194=\"\",\"\",'1. Order'!X1194)","v":"EUR"},{"$f":"IF('1. Order'!Y1194=\"\",\"\",'1. Order'!Y1194)","v":""},{"$f":"IF('1. Order'!Z1194=\"\",\"\",'1. Order'!Z1194)","v":""},{"$f":"IF('1. Order'!AA1194=\"\",\"\",'1. Order'!AA1194)","v":""},null,{"$f":"IF('1. Order'!AS1194=\"\",\"\",'1. Order'!AS1194)","v":""},{"$f":"IF('1. Order'!AT1194=\"\",\"\",'1. Order'!AT1194)","v":""},null,null,null,null,null,null,null,{"$f":"IF('1. Order'!AX1194=\"\",\"\",'1. Order'!AX1194)","v":""},{"$f":"IF('1. Order'!AY1194=\"\",\"\",'1. Order'!AY1194)","v":""},{"$f":"IF('1. Order'!AZ1194=\"\",\"\",'1. Order'!AZ1194)","v":""},{"$f":"IF('1. Order'!BA1194=\"\",\"\",'1. Order'!BA1194)","v":""},{"$f":"IF('1. Order'!BC1194=\"\",\"\",'1. Order'!BC1194)","v":""},{"$f":"IF('1. Order'!BD1194=\"\",\"\",'1. Order'!BD1194)","v":6},{"$f":"IF('1. Order'!BE1194=\"\",\"\",'1. Order'!BE1194)","v":"None"},{"$f":"IF('1. Order'!BF1194=\"\",\"\",'1. Order'!BF1194)","v":"Parcel"},{"$f":"IF('1. Order'!BG1194=\"\",\"\",'1. Order'!BG1194)","v":"ZWO"}]
[{"$f":"IF('1. Order'!F1195=\"\",\"\",'1. Order'!F1195)","v":""},{"$f":"IF('1. Order'!G1195=\"\",\"\",'1. Order'!G1195)","v":""},{"$f":"IF('1. Order'!H1195=\"\",\"\",'1. Order'!H1195)","v":""},{"$f":"IF('1. Order'!I1195=\"\",\"\",'1. Order'!I1195)","v":""},{"$f":"IF('1. Order'!J1195=\"\",\"\",'1. Order'!J1195)","v":""},{"$f":"IF('1. Order'!K1195=\"\",\"\",'1. Order'!K1195)","v":""},{"$f":"IF('1. Order'!L1195=\"\",\"\",'1. Order'!L1195)","v":""},{"$f":"IF('1. Order'!M1195=\"\",\"\",'1. Order'!M1195)","v":""},{"$f":"IF('1. Order'!N1195=\"\",\"\",'1. Order'!N1195)","v":""},{"$f":"IF('1. Order'!O1195=\"\",\"\",'1. Order'!O1195)","v":{"$error":"#N/A"}},{"$f":"IF('1. Order'!P1195=\"\",\"\",'1. Order'!P1195)","v":{"$error":"#N/A"}},{"$f":"IF('1. Order'!Q1195=\"\",\"\",'1. Order'!Q1195)","v":""},{"$f":"IF('1. Order'!R1195=\"\",\"\",'1. Order'!R1195)","v":""},{"$f":"IF('1. Order'!S1195=\"\",\"\",'1. Order'!S1195)","v":""},{"$f":"IF('1. Order'!V1195=\"\",\"\",'1. Order'!V1195)","v":""},{"$f":"IF('1. Order'!W1195=\"\",\"\",'1. Order'!W1195)","v":""},{"$f":"IF('1. Order'!X1195=\"\",\"\",'1. Order'!X1195)","v":"EUR"},{"$f":"IF('1. Order'!Y1195=\"\",\"\",'1. Order'!Y1195)","v":""},{"$f":"IF('1. Order'!Z1195=\"\",\"\",'1. Order'!Z1195)","v":""},{"$f":"IF('1. Order'!AA1195=\"\",\"\",'1. Order'!AA1195)","v":""},null,{"$f":"IF('1. Order'!AS1195=\"\",\"\",'1. Order'!AS1195)","v":""},{"$f":"IF('1. Order'!AT1195=\"\",\"\",'1. Order'!AT1195)","v":""},null,null,null,null,null,null,null,{"$f":"IF('1. Order'!AX1195=\"\",\"\",'1. Order'!AX1195)","v":""},{"$f":"IF('1. Order'!AY1195=\"\",\"\",'1. Order'!AY1195)","v":""},{"$f":"IF('1. Order'!AZ1195=\"\",\"\",'1. Order'!AZ1195)","v":""},{"$f":"IF('1. Order'!BA1195=\"\",\"\",'1. Order'!BA1195)","v":""},{"$f":"IF('1. Order'!BC1195=\"\",\"\",'1. Order'!BC1195)","v":""},{"$f":"IF('1. Order'!BD1195=\"\",\"\",'1. Order'!BD1195)","v":6},{"$f":"IF('1. Order'!BE1195=\"\",\"\",'1. Order'!BE1195)","v":"None"},{"$f":"IF('1. Order'!BF1195=\"\",\"\",'1. Order'!BF1195)","v":"Parcel"},{"$f":"IF('1. Order'!BG1195=\"\",\"\",'1. Order'!BG1195)","v":"ZWO"}]
[{"$f":"IF('1. Order'!F1196=\"\",\"\",'1. Order'!F1196)","v":""},{"$f":"IF('1. Order'!G1196=\"\",\"\",'1. Order'!G1196)","v":""},{"$f":"IF('1. Order'!H1196=\"\",\"\",'1. Order'!H1196)","v":""},{"$f":"IF('1. Order'!I1196=\"\",\"\",'1. Order'!I1196)","v":""},{"$f":"IF('1. Order'!J1196=\"\",\"\",'1. Order'!J1196)","v":""},{"$f":"IF('1. Order'!K1196=\"\",\"\",'1. Order'!K1196)","v":""},{"$f":"IF('1. Order'!L1196=\"\",\"\",'1. Order'!L1196)","v":""},{"$f":"IF('1. Order'!M1196=\"\",\"\",'1. Order'!M1196)","v":""},{"$f":"IF('1. Order'!N1196=\"\",\"\",'1. Order'!N1196)","v":""},{"$f":"IF('1. Order'!O1196=\"\",\"\",'1. Order'!O1196)","v":{"$error":"#N/A"}},{"$f":"IF('1. Order'!P1196=\"\",\"\",'1. Order'!P1196)","v":{"$error":"#N/A"}},{"$f":"IF('1. Order'!Q1196=\"\",\"\",'1. Order'!Q1196)","v":""},{"$f":"IF('1. Order'!R1196=\"\",\"\",'1. Order'!R1196)","v":""},{"$f":"IF('1. Order'!S1196=\"\",\"\",'1. Order'!S1196)","v":""},{"$f":"IF('1. Order'!V1196=\"\",\"\",'1. Order'!V1196)","v":""},{"$f":"IF('1. Order'!W1196=\"\",\"\",'1. Order'!W1196)","v":""},{"$f":"IF('1. Order'!X1196=\"\",\"\",'1. Order'!X1196)","v":"EUR"},{"$f":"IF('1. Order'!Y1196=\"\",\"\",'1. Order'!Y1196)","v":""},{"$f":"IF('1. Order'!Z1196=\"\",\"\",'1. Order'!Z1196)","v":""},{"$f":"IF('1. Order'!AA1196=\"\",\"\",'1. Order'!AA1196)","v":""},null,{"$f":"IF('1. Order'!AS1196=\"\",\"\",'1. Order'!AS1196)","v":""},{"$f":"IF('1. Order'!AT1196=\"\",\"\",'1. Order'!AT1196)","v":""},null,null,null,null,null,null,null,{"$f":"IF('1. Order'!AX1196=\"\",\"\",'1. Order'!AX1196)","v":""},{"$f":"IF('1. Order'!AY1196=\"\",\"\",'1. Order'!AY1196)","v":""},{"$f":"IF('1. Order'!AZ1196=\"\",\"\",'1. Order'!AZ1196)","v":""},{"$f":"IF('1. Order'!BA1196=\"\",\"\",'1. Order'!BA1196)","v":""},{"$f":"IF('1. Order'!BC1196=\"\",\"\",'1. Order'!BC1196)","v":""},{"$f":"IF('1. Order'!BD1196=\"\",\"\",'1. Order'!BD1196)","v":6},{"$f":"IF('1. Order'!BE1196=\"\",\"\",'1. Order'!BE1196)","v":"None"},{"$f":"IF('1. Order'!BF1196=\"\",\"\",'1. Order'!BF1196)","v":"Parcel"},{"$f":"IF('1. Order'!BG1196=\"\",\"\",'1. Order'!BG1196)","v":"ZWO"}]
[{"$f":"IF('1. Order'!F1197=\"\",\"\",'1. Order'!F1197)","v":""},{"$f":"IF('1. Order'!G1197=\"\",\"\",'1. Order'!G1197)","v":""},{"$f":"IF('1. Order'!H1197=\"\",\"\",'1. Order'!H1197)","v":""},{"$f":"IF('1. Order'!I1197=\"\",\"\",'1. Order'!I1197)","v":""},{"$f":"IF('1. Order'!J1197=\"\",\"\",'1. Order'!J1197)","v":""},{"$f":"IF('1. Order'!K1197=\"\",\"\",'1. Order'!K1197)","v":""},{"$f":"IF('1. Order'!L1197=\"\",\"\",'1. Order'!L1197)","v":""},{"$f":"IF('1. Order'!M1197=\"\",\"\",'1. Order'!M1197)","v":""},{"$f":"IF('1. Order'!N1197=\"\",\"\",'1. Order'!N1197)","v":""},{"$f":"IF('1. Order'!O1197=\"\",\"\",'1. Order'!O1197)","v":{"$error":"#N/A"}},{"$f":"IF('1. Order'!P1197=\"\",\"\",'1. Order'!P1197)","v":{"$error":"#N/A"}},{"$f":"IF('1. Order'!Q1197=\"\",\"\",'1. Order'!Q1197)","v":""},{"$f":"IF('1. Order'!R1197=\"\",\"\",'1. Order'!R1197)","v":""},{"$f":"IF('1. Order'!S1197=\"\",\"\",'1. Order'!S1197)","v":""},{"$f":"IF('1. Order'!V1197=\"\",\"\",'1. Order'!V1197)","v":""},{"$f":"IF('1. Order'!W1197=\"\",\"\",'1. Order'!W1197)","v":""},{"$f":"IF('1. Order'!X1197=\"\",\"\",'1. Order'!X1197)","v":"EUR"},{"$f":"IF('1. Order'!Y1197=\"\",\"\",'1. Order'!Y1197)","v":""},{"$f":"IF('1. Order'!Z1197=\"\",\"\",'1. Order'!Z1197)","v":""},{"$f":"IF('1. Order'!AA1197=\"\",\"\",'1. Order'!AA1197)","v":""},null,{"$f":"IF('1. Order'!AS1197=\"\",\"\",'1. Order'!AS1197)","v":""},{"$f":"IF('1. Order'!AT1197=\"\",\"\",'1. Order'!AT1197)","v":""},null,null,null,null,null,null,null,{"$f":"IF('1. Order'!AX1197=\"\",\"\",'1. Order'!AX1197)","v":""},{"$f":"IF('1. Order'!AY1197=\"\",\"\",'1. Order'!AY1197)","v":""},{"$f":"IF('1. Order'!AZ1197=\"\",\"\",'1. Order'!AZ1197)","v":""},{"$f":"IF('1. Order'!BA1197=\"\",\"\",'1. Order'!BA1197)","v":""},{"$f":"IF('1. Order'!BC1197=\"\",\"\",'1. Order'!BC1197)","v":""},{"$f":"IF('1. Order'!BD1197=\"\",\"\",'1. Order'!BD1197)","v":6},{"$f":"IF('1. Order'!BE1197=\"\",\"\",'1. Order'!BE1197)","v":"None"},{"$f":"IF('1. Order'!BF1197=\"\",\"\",'1. Order'!BF1197)","v":"Parcel"},{"$f":"IF('1. Order'!BG1197=\"\",\"\",'1. Order'!BG1197)","v":"ZWO"}]
[{"$f":"IF('1. Order'!F1198=\"\",\"\",'1. Order'!F1198)","v":""},{"$f":"IF('1. Order'!G1198=\"\",\"\",'1. Order'!G1198)","v":""},{"$f":"IF('1. Order'!H1198=\"\",\"\",'1. Order'!H1198)","v":""},{"$f":"IF('1. Order'!I1198=\"\",\"\",'1. Order'!I1198)","v":""},{"$f":"IF('1. Order'!J1198=\"\",\"\",'1. Order'!J1198)","v":""},{"$f":"IF('1. Order'!K1198=\"\",\"\",'1. Order'!K1198)","v":""},{"$f":"IF('1. Order'!L1198=\"\",\"\",'1. Order'!L1198)","v":""},{"$f":"IF('1. Order'!M1198=\"\",\"\",'1. Order'!M1198)","v":""},{"$f":"IF('1. Order'!N1198=\"\",\"\",'1. Order'!N1198)","v":""},{"$f":"IF('1. Order'!O1198=\"\",\"\",'1. Order'!O1198)","v":{"$error":"#N/A"}},{"$f":"IF('1. Order'!P1198=\"\",\"\",'1. Order'!P1198)","v":{"$error":"#N/A"}},{"$f":"IF('1. Order'!Q1198=\"\",\"\",'1. Order'!Q1198)","v":""},{"$f":"IF('1. Order'!R1198=\"\",\"\",'1. Order'!R1198)","v":""},{"$f":"IF('1. Order'!S1198=\"\",\"\",'1. Order'!S1198)","v":""},{"$f":"IF('1. Order'!V1198=\"\",\"\",'1. Order'!V1198)","v":""},{"$f":"IF('1. Order'!W1198=\"\",\"\",'1. Order'!W1198)","v":""},{"$f":"IF('1. Order'!X1198=\"\",\"\",'1. Order'!X1198)","v":"EUR"},{"$f":"IF('1. Order'!Y1198=\"\",\"\",'1. Order'!Y1198)","v":""},{"$f":"IF('1. Order'!Z1198=\"\",\"\",'1. Order'!Z1198)","v":""},{"$f":"IF('1. Order'!AA1198=\"\",\"\",'1. Order'!AA1198)","v":""},null,{"$f":"IF('1. Order'!AS1198=\"\",\"\",'1. Order'!AS1198)","v":""},{"$f":"IF('1. Order'!AT1198=\"\",\"\",'1. Order'!AT1198)","v":""},null,null,null,null,null,null,null,{"$f":"IF('1. Order'!AX1198=\"\",\"\",'1. Order'!AX1198)","v":""},{"$f":"IF('1. Order'!AY1198=\"\",\"\",'1. Order'!AY1198)","v":""},{"$f":"IF('1. Order'!AZ1198=\"\",\"\",'1. Order'!AZ1198)","v":""},{"$f":"IF('1. Order'!BA1198=\"\",\"\",'1. Order'!BA1198)","v":""},{"$f":"IF('1. Order'!BC1198=\"\",\"\",'1. Order'!BC1198)","v":""},{"$f":"IF('1. Order'!BD1198=\"\",\"\",'1. Order'!BD1198)","v":6},{"$f":"IF('1. Order'!BE1198=\"\",\"\",'1. Order'!BE1198)","v":"None"},{"$f":"IF('1. Order'!BF1198=\"\",\"\",'1. Order'!BF1198)","v":"Parcel"},{"$f":"IF('1. Order'!BG1198=\"\",\"\",'1. Order'!BG1198)","v":"ZWO"}]
[{"$f":"IF('1. Order'!F1199=\"\",\"\",'1. Order'!F1199)","v":""},{"$f":"IF('1. Order'!G1199=\"\",\"\",'1. Order'!G1199)","v":""},{"$f":"IF('1. Order'!H1199=\"\",\"\",'1. Order'!H1199)","v":""},{"$f":"IF('1. Order'!I1199=\"\",\"\",'1. Order'!I1199)","v":""},{"$f":"IF('1. Order'!J1199=\"\",\"\",'1. Order'!J1199)","v":""},{"$f":"IF('1. Order'!K1199=\"\",\"\",'1. Order'!K1199)","v":""},{"$f":"IF('1. Order'!L1199=\"\",\"\",'1. Order'!L1199)","v":""},{"$f":"IF('1. Order'!M1199=\"\",\"\",'1. Order'!M1199)","v":""},{"$f":"IF('1. Order'!N1199=\"\",\"\",'1. Order'!N1199)","v":""},{"$f":"IF('1. Order'!O1199=\"\",\"\",'1. Order'!O1199)","v":{"$error":"#N/A"}},{"$f":"IF('1. Order'!P1199=\"\",\"\",'1. Order'!P1199)","v":{"$error":"#N/A"}},{"$f":"IF('1. Order'!Q1199=\"\",\"\",'1. Order'!Q1199)","v":""},{"$f":"IF('1. Order'!R1199=\"\",\"\",'1. Order'!R1199)","v":""},{"$f":"IF('1. Order'!S1199=\"\",\"\",'1. Order'!S1199)","v":""},{"$f":"IF('1. Order'!V1199=\"\",\"\",'1. Order'!V1199)","v":""},{"$f":"IF('1. Order'!W1199=\"\",\"\",'1. Order'!W1199)","v":""},{"$f":"IF('1. Order'!X1199=\"\",\"\",'1. Order'!X1199)","v":"EUR"},{"$f":"IF('1. Order'!Y1199=\"\",\"\",'1. Order'!Y1199)","v":""},{"$f":"IF('1. Order'!Z1199=\"\",\"\",'1. Order'!Z1199)","v":""},{"$f":"IF('1. Order'!AA1199=\"\",\"\",'1. Order'!AA1199)","v":""},null,{"$f":"IF('1. Order'!AS1199=\"\",\"\",'1. Order'!AS1199)","v":""},{"$f":"IF('1. Order'!AT1199=\"\",\"\",'1. Order'!AT1199)","v":""},null,null,null,null,null,null,null,{"$f":"IF('1. Order'!AX1199=\"\",\"\",'1. Order'!AX1199)","v":""},{"$f":"IF('1. Order'!AY1199=\"\",\"\",'1. Order'!AY1199)","v":""},{"$f":"IF('1. Order'!AZ1199=\"\",\"\",'1. Order'!AZ1199)","v":""},{"$f":"IF('1. Order'!BA1199=\"\",\"\",'1. Order'!BA1199)","v":""},{"$f":"IF('1. Order'!BC1199=\"\",\"\",'1. Order'!BC1199)","v":""},{"$f":"IF('1. Order'!BD1199=\"\",\"\",'1. Order'!BD1199)","v":6},{"$f":"IF('1. Order'!BE1199=\"\",\"\",'1. Order'!BE1199)","v":"None"},{"$f":"IF('1. Order'!BF1199=\"\",\"\",'1. Order'!BF1199)","v":"Parcel"},{"$f":"IF('1. Order'!BG1199=\"\",\"\",'1. Order'!BG1199)","v":"ZWO"}]
[{"$f":"IF('1. Order'!F1200=\"\",\"\",'1. Order'!F1200)","v":""},{"$f":"IF('1. Order'!G1200=\"\",\"\",'1. Order'!G1200)","v":""},{"$f":"IF('1. Order'!H1200=\"\",\"\",'1. Order'!H1200)","v":""},{"$f":"IF('1. Order'!I1200=\"\",\"\",'1. Order'!I1200)","v":""},{"$f":"IF('1. Order'!J1200=\"\",\"\",'1. Order'!J1200)","v":""},{"$f":"IF('1. Order'!K1200=\"\",\"\",'1. Order'!K1200)","v":""},{"$f":"IF('1. Order'!L1200=\"\",\"\",'1. Order'!L1200)","v":""},{"$f":"IF('1. Order'!M1200=\"\",\"\",'1. Order'!M1200)","v":""},{"$f":"IF('1. Order'!N1200=\"\",\"\",'1. Order'!N1200)","v":""},{"$f":"IF('1. Order'!O1200=\"\",\"\",'1. Order'!O1200)","v":{"$error":"#N/A"}},{"$f":"IF('1. Order'!P1200=\"\",\"\",'1. Order'!P1200)","v":{"$error":"#N/A"}},{"$f":"IF('1. Order'!Q1200=\"\",\"\",'1. Order'!Q1200)","v":""},{"$f":"IF('1. Order'!R1200=\"\",\"\",'1. Order'!R1200)","v":""},{"$f":"IF('1. Order'!S1200=\"\",\"\",'1. Order'!S1200)","v":""},{"$f":"IF('1. Order'!V1200=\"\",\"\",'1. Order'!V1200)","v":""},{"$f":"IF('1. Order'!W1200=\"\",\"\",'1. Order'!W1200)","v":""},{"$f":"IF('1. Order'!X1200=\"\",\"\",'1. Order'!X1200)","v":"EUR"},{"$f":"IF('1. Order'!Y1200=\"\",\"\",'1. Order'!Y1200)","v":""},{"$f":"IF('1. Order'!Z1200=\"\",\"\",'1. Order'!Z1200)","v":""},{"$f":"IF('1. Order'!AA1200=\"\",\"\",'1. Order'!AA1200)","v":""},null,{"$f":"IF('1. Order'!AS1200=\"\",\"\",'1. Order'!AS1200)","v":""},{"$f":"IF('1. Order'!AT1200=\"\",\"\",'1. Order'!AT1200)","v":""},null,null,null,null,null,null,null,{"$f":"IF('1. Order'!AX1200=\"\",\"\",'1. Order'!AX1200)","v":""},{"$f":"IF('1. Order'!AY1200=\"\",\"\",'1. Order'!AY1200)","v":""},{"$f":"IF('1. Order'!AZ1200=\"\",\"\",'1. Order'!AZ1200)","v":""},{"$f":"IF('1. Order'!BA1200=\"\",\"\",'1. Order'!BA1200)","v":""},{"$f":"IF('1. Order'!BC1200=\"\",\"\",'1. Order'!BC1200)","v":""},{"$f":"IF('1. Order'!BD1200=\"\",\"\",'1. Order'!BD1200)","v":6},{"$f":"IF('1. Order'!BE1200=\"\",\"\",'1. Order'!BE1200)","v":"None"},{"$f":"IF('1. Order'!BF1200=\"\",\"\",'1. Order'!BF1200)","v":"Parcel"},{"$f":"IF('1. Order'!BG1200=\"\",\"\",'1. Order'!BG1200)","v":"ZWO"}]
[{"$f":"IF('1. Order'!F1201=\"\",\"\",'1. Order'!F1201)","v":""},{"$f":"IF('1. Order'!G1201=\"\",\"\",'1. Order'!G1201)","v":""},{"$f":"IF('1. Order'!H1201=\"\",\"\",'1. Order'!H1201)","v":""},{"$f":"IF('1. Order'!I1201=\"\",\"\",'1. Order'!I1201)","v":""},{"$f":"IF('1. Order'!J1201=\"\",\"\",'1. Order'!J1201)","v":""},{"$f":"IF('1. Order'!K1201=\"\",\"\",'1. Order'!K1201)","v":""},{"$f":"IF('1. Order'!L1201=\"\",\"\",'1. Order'!L1201)","v":""},{"$f":"IF('1. Order'!M1201=\"\",\"\",'1. Order'!M1201)","v":""},{"$f":"IF('1. Order'!N1201=\"\",\"\",'1. Order'!N1201)","v":""},{"$f":"IF('1. Order'!O1201=\"\",\"\",'1. Order'!O1201)","v":{"$error":"#N/A"}},{"$f":"IF('1. Order'!P1201=\"\",\"\",'1. Order'!P1201)","v":{"$error":"#N/A"}},{"$f":"IF('1. Order'!Q1201=\"\",\"\",'1. Order'!Q1201)","v":""},{"$f":"IF('1. Order'!R1201=\"\",\"\",'1. Order'!R1201)","v":""},{"$f":"IF('1. Order'!S1201=\"\",\"\",'1. Order'!S1201)","v":""},{"$f":"IF('1. Order'!V1201=\"\",\"\",'1. Order'!V1201)","v":""},{"$f":"IF('1. Order'!W1201=\"\",\"\",'1. Order'!W1201)","v":""},{"$f":"IF('1. Order'!X1201=\"\",\"\",'1. Order'!X1201)","v":"EUR"},{"$f":"IF('1. Order'!Y1201=\"\",\"\",'1. Order'!Y1201)","v":""},{"$f":"IF('1. Order'!Z1201=\"\",\"\",'1. Order'!Z1201)","v":""},{"$f":"IF('1. Order'!AA1201=\"\",\"\",'1. Order'!AA1201)","v":""},null,{"$f":"IF('1. Order'!AS1201=\"\",\"\",'1. Order'!AS1201)","v":""},{"$f":"IF('1. Order'!AT1201=\"\",\"\",'1. Order'!AT1201)","v":""},null,null,null,null,null,null,null,{"$f":"IF('1. Order'!AX1201=\"\",\"\",'1. Order'!AX1201)","v":""},{"$f":"IF('1. Order'!AY1201=\"\",\"\",'1. Order'!AY1201)","v":""},{"$f":"IF('1. Order'!AZ1201=\"\",\"\",'1. Order'!AZ1201)","v":""},{"$f":"IF('1. Order'!BA1201=\"\",\"\",'1. Order'!BA1201)","v":""},{"$f":"IF('1. Order'!BC1201=\"\",\"\",'1. Order'!BC1201)","v":""},{"$f":"IF('1. Order'!BD1201=\"\",\"\",'1. Order'!BD1201)","v":6},{"$f":"IF('1. Order'!BE1201=\"\",\"\",'1. Order'!BE1201)","v":"None"},{"$f":"IF('1. Order'!BF1201=\"\",\"\",'1. Order'!BF1201)","v":"Parcel"},{"$f":"IF('1. Order'!BG1201=\"\",\"\",'1. Order'!BG1201)","v":"ZWO"}]
[{"$f":"IF('1. Order'!F1202=\"\",\"\",'1. Order'!F1202)","v":""},{"$f":"IF('1. Order'!G1202=\"\",\"\",'1. Order'!G1202)","v":""},{"$f":"IF('1. Order'!H1202=\"\",\"\",'1. Order'!H1202)","v":""},{"$f":"IF('1. Order'!I1202=\"\",\"\",'1. Order'!I1202)","v":""},{"$f":"IF('1. Order'!J1202=\"\",\"\",'1. Order'!J1202)","v":""},{"$f":"IF('1. Order'!K1202=\"\",\"\",'1. Order'!K1202)","v":""},{"$f":"IF('1. Order'!L1202=\"\",\"\",'1. Order'!L1202)","v":""},{"$f":"IF('1. Order'!M1202=\"\",\"\",'1. Order'!M1202)","v":""},{"$f":"IF('1. Order'!N1202=\"\",\"\",'1. Order'!N1202)","v":""},{"$f":"IF('1. Order'!O1202=\"\",\"\",'1. Order'!O1202)","v":{"$error":"#N/A"}},{"$f":"IF('1. Order'!P1202=\"\",\"\",'1. Order'!P1202)","v":{"$error":"#N/A"}},{"$f":"IF('1. Order'!Q1202=\"\",\"\",'1. Order'!Q1202)","v":""},{"$f":"IF('1. Order'!R1202=\"\",\"\",'1. Order'!R1202)","v":""},{"$f":"IF('1. Order'!S1202=\"\",\"\",'1. Order'!S1202)","v":""},{"$f":"IF('1. Order'!V1202=\"\",\"\",'1. Order'!V1202)","v":""},{"$f":"IF('1. Order'!W1202=\"\",\"\",'1. Order'!W1202)","v":""},{"$f":"IF('1. Order'!X1202=\"\",\"\",'1. Order'!X1202)","v":"EUR"},{"$f":"IF('1. Order'!Y1202=\"\",\"\",'1. Order'!Y1202)","v":""},{"$f":"IF('1. Order'!Z1202=\"\",\"\",'1. Order'!Z1202)","v":""},{"$f":"IF('1. Order'!AA1202=\"\",\"\",'1. Order'!AA1202)","v":""},null,{"$f":"IF('1. Order'!AS1202=\"\",\"\",'1. Order'!AS1202)","v":""},{"$f":"IF('1. Order'!AT1202=\"\",\"\",'1. Order'!AT1202)","v":""},null,null,null,null,null,null,null,{"$f":"IF('1. Order'!AX1202=\"\",\"\",'1. Order'!AX1202)","v":""},{"$f":"IF('1. Order'!AY1202=\"\",\"\",'1. Order'!AY1202)","v":""},{"$f":"IF('1. Order'!AZ1202=\"\",\"\",'1. Order'!AZ1202)","v":""},{"$f":"IF('1. Order'!BA1202=\"\",\"\",'1. Order'!BA1202)","v":""},{"$f":"IF('1. Order'!BC1202=\"\",\"\",'1. Order'!BC1202)","v":""},{"$f":"IF('1. Order'!BD1202=\"\",\"\",'1. Order'!BD1202)","v":6},{"$f":"IF('1. Order'!BE1202=\"\",\"\",'1. Order'!BE1202)","v":"None"},{"$f":"IF('1. Order'!BF1202=\"\",\"\",'1. Order'!BF1202)","v":"Parcel"},{"$f":"IF('1. Order'!BG1202=\"\",\"\",'1. Order'!BG1202)","v":"ZWO"}]
[{"$f":"IF('1. Order'!F1203=\"\",\"\",'1. Order'!F1203)","v":""},{"$f":"IF('1. Order'!G1203=\"\",\"\",'1. Order'!G1203)","v":""},{"$f":"IF('1. Order'!H1203=\"\",\"\",'1. Order'!H1203)","v":""},{"$f":"IF('1. Order'!I1203=\"\",\"\",'1. Order'!I1203)","v":""},{"$f":"IF('1. Order'!J1203=\"\",\"\",'1. Order'!J1203)","v":""},{"$f":"IF('1. Order'!K1203=\"\",\"\",'1. Order'!K1203)","v":""},{"$f":"IF('1. Order'!L1203=\"\",\"\",'1. Order'!L1203)","v":""},{"$f":"IF('1. Order'!M1203=\"\",\"\",'1. Order'!M1203)","v":""},{"$f":"IF('1. Order'!N1203=\"\",\"\",'1. Order'!N1203)","v":""},{"$f":"IF('1. Order'!O1203=\"\",\"\",'1. Order'!O1203)","v":{"$error":"#N/A"}},{"$f":"IF('1. Order'!P1203=\"\",\"\",'1. Order'!P1203)","v":{"$error":"#N/A"}},{"$f":"IF('1. Order'!Q1203=\"\",\"\",'1. Order'!Q1203)","v":""},{"$f":"IF('1. Order'!R1203=\"\",\"\",'1. Order'!R1203)","v":""},{"$f":"IF('1. Order'!S1203=\"\",\"\",'1. Order'!S1203)","v":""},{"$f":"IF('1. Order'!V1203=\"\",\"\",'1. Order'!V1203)","v":""},{"$f":"IF('1. Order'!W1203=\"\",\"\",'1. Order'!W1203)","v":""},{"$f":"IF('1. Order'!X1203=\"\",\"\",'1. Order'!X1203)","v":"EUR"},{"$f":"IF('1. Order'!Y1203=\"\",\"\",'1. Order'!Y1203)","v":""},{"$f":"IF('1. Order'!Z1203=\"\",\"\",'1. Order'!Z1203)","v":""},{"$f":"IF('1. Order'!AA1203=\"\",\"\",'1. Order'!AA1203)","v":""},null,{"$f":"IF('1. Order'!AS1203=\"\",\"\",'1. Order'!AS1203)","v":""},{"$f":"IF('1. Order'!AT1203=\"\",\"\",'1. Order'!AT1203)","v":""},null,null,null,null,null,null,null,{"$f":"IF('1. Order'!AX1203=\"\",\"\",'1. Order'!AX1203)","v":""},{"$f":"IF('1. Order'!AY1203=\"\",\"\",'1. Order'!AY1203)","v":""},{"$f":"IF('1. Order'!AZ1203=\"\",\"\",'1. Order'!AZ1203)","v":""},{"$f":"IF('1. Order'!BA1203=\"\",\"\",'1. Order'!BA1203)","v":""},{"$f":"IF('1. Order'!BC1203=\"\",\"\",'1. Order'!BC1203)","v":""},{"$f":"IF('1. Order'!BD1203=\"\",\"\",'1. Order'!BD1203)","v":6},{"$f":"IF('1. Order'!BE1203=\"\",\"\",'1. Order'!BE1203)","v":"None"},{"$f":"IF('1. Order'!BF1203=\"\",\"\",'1. Order'!BF1203)","v":"Parcel"},{"$f":"IF('1. Order'!BG1203=\"\",\"\",'1. Order'!BG1203)","v":"ZWO"}]
[{"$f":"IF('1. Order'!F1204=\"\",\"\",'1. Order'!F1204)","v":""},{"$f":"IF('1. Order'!G1204=\"\",\"\",'1. Order'!G1204)","v":""},{"$f":"IF('1. Order'!H1204=\"\",\"\",'1. Order'!H1204)","v":""},{"$f":"IF('1. Order'!I1204=\"\",\"\",'1. Order'!I1204)","v":""},{"$f":"IF('1. Order'!J1204=\"\",\"\",'1. Order'!J1204)","v":""},{"$f":"IF('1. Order'!K1204=\"\",\"\",'1. Order'!K1204)","v":""},{"$f":"IF('1. Order'!L1204=\"\",\"\",'1. Order'!L1204)","v":""},{"$f":"IF('1. Order'!M1204=\"\",\"\",'1. Order'!M1204)","v":""},{"$f":"IF('1. Order'!N1204=\"\",\"\",'1. Order'!N1204)","v":""},{"$f":"IF('1. Order'!O1204=\"\",\"\",'1. Order'!O1204)","v":{"$error":"#N/A"}},{"$f":"IF('1. Order'!P1204=\"\",\"\",'1. Order'!P1204)","v":{"$error":"#N/A"}},{"$f":"IF('1. Order'!Q1204=\"\",\"\",'1. Order'!Q1204)","v":""},{"$f":"IF('1. Order'!R1204=\"\",\"\",'1. Order'!R1204)","v":""},{"$f":"IF('1. Order'!S1204=\"\",\"\",'1. Order'!S1204)","v":""},{"$f":"IF('1. Order'!V1204=\"\",\"\",'1. Order'!V1204)","v":""},{"$f":"IF('1. Order'!W1204=\"\",\"\",'1. Order'!W1204)","v":""},{"$f":"IF('1. Order'!X1204=\"\",\"\",'1. Order'!X1204)","v":"EUR"},{"$f":"IF('1. Order'!Y1204=\"\",\"\",'1. Order'!Y1204)","v":""},{"$f":"IF('1. Order'!Z1204=\"\",\"\",'1. Order'!Z1204)","v":""},{"$f":"IF('1. Order'!AA1204=\"\",\"\",'1. Order'!AA1204)","v":""},null,{"$f":"IF('1. Order'!AS1204=\"\",\"\",'1. Order'!AS1204)","v":""},{"$f":"IF('1. Order'!AT1204=\"\",\"\",'1. Order'!AT1204)","v":""},null,null,null,null,null,null,null,{"$f":"IF('1. Order'!AX1204=\"\",\"\",'1. Order'!AX1204)","v":""},{"$f":"IF('1. Order'!AY1204=\"\",\"\",'1. Order'!AY1204)","v":""},{"$f":"IF('1. Order'!AZ1204=\"\",\"\",'1. Order'!AZ1204)","v":""},{"$f":"IF('1. Order'!BA1204=\"\",\"\",'1. Order'!BA1204)","v":""},{"$f":"IF('1. Order'!BC1204=\"\",\"\",'1. Order'!BC1204)","v":""},{"$f":"IF('1. Order'!BD1204=\"\",\"\",'1. Order'!BD1204)","v":6},{"$f":"IF('1. Order'!BE1204=\"\",\"\",'1. Order'!BE1204)","v":"None"},{"$f":"IF('1. Order'!BF1204=\"\",\"\",'1. Order'!BF1204)","v":"Parcel"},{"$f":"IF('1. Order'!BG1204=\"\",\"\",'1. Order'!BG1204)","v":"ZWO"}]
[{"$f":"IF('1. Order'!F1205=\"\",\"\",'1. Order'!F1205)","v":""},{"$f":"IF('1. Order'!G1205=\"\",\"\",'1. Order'!G1205)","v":""},{"$f":"IF('1. Order'!H1205=\"\",\"\",'1. Order'!H1205)","v":""},{"$f":"IF('1. Order'!I1205=\"\",\"\",'1. Order'!I1205)","v":""},{"$f":"IF('1. Order'!J1205=\"\",\"\",'1. Order'!J1205)","v":""},{"$f":"IF('1. Order'!K1205=\"\",\"\",'1. Order'!K1205)","v":""},{"$f":"IF('1. Order'!L1205=\"\",\"\",'1. Order'!L1205)","v":""},{"$f":"IF('1. Order'!M1205=\"\",\"\",'1. Order'!M1205)","v":""},{"$f":"IF('1. Order'!N1205=\"\",\"\",'1. Order'!N1205)","v":""},{"$f":"IF('1. Order'!O1205=\"\",\"\",'1. Order'!O1205)","v":{"$error":"#N/A"}},{"$f":"IF('1. Order'!P1205=\"\",\"\",'1. Order'!P1205)","v":{"$error":"#N/A"}},{"$f":"IF('1. Order'!Q1205=\"\",\"\",'1. Order'!Q1205)","v":""},{"$f":"IF('1. Order'!R1205=\"\",\"\",'1. Order'!R1205)","v":""},{"$f":"IF('1. Order'!S1205=\"\",\"\",'1. Order'!S1205)","v":""},{"$f":"IF('1. Order'!V1205=\"\",\"\",'1. Order'!V1205)","v":""},{"$f":"IF('1. Order'!W1205=\"\",\"\",'1. Order'!W1205)","v":""},{"$f":"IF('1. Order'!X1205=\"\",\"\",'1. Order'!X1205)","v":"EUR"},{"$f":"IF('1. Order'!Y1205=\"\",\"\",'1. Order'!Y1205)","v":""},{"$f":"IF('1. Order'!Z1205=\"\",\"\",'1. Order'!Z1205)","v":""},{"$f":"IF('1. Order'!AA1205=\"\",\"\",'1. Order'!AA1205)","v":""},null,{"$f":"IF('1. Order'!AS1205=\"\",\"\",'1. Order'!AS1205)","v":""},{"$f":"IF('1. Order'!AT1205=\"\",\"\",'1. Order'!AT1205)","v":""},null,null,null,null,null,null,null,{"$f":"IF('1. Order'!AX1205=\"\",\"\",'1. Order'!AX1205)","v":""},{"$f":"IF('1. Order'!AY1205=\"\",\"\",'1. Order'!AY1205)","v":""},{"$f":"IF('1. Order'!AZ1205=\"\",\"\",'1. Order'!AZ1205)","v":""},{"$f":"IF('1. Order'!BA1205=\"\",\"\",'1. Order'!BA1205)","v":""},{"$f":"IF('1. Order'!BC1205=\"\",\"\",'1. Order'!BC1205)","v":""},{"$f":"IF('1. Order'!BD1205=\"\",\"\",'1. Order'!BD1205)","v":6},{"$f":"IF('1. Order'!BE1205=\"\",\"\",'1. Order'!BE1205)","v":"None"},{"$f":"IF('1. Order'!BF1205=\"\",\"\",'1. Order'!BF1205)","v":"Parcel"},{"$f":"IF('1. Order'!BG1205=\"\",\"\",'1. Order'!BG1205)","v":"ZWO"}]
[{"$f":"IF('1. Order'!F1206=\"\",\"\",'1. Order'!F1206)","v":""},{"$f":"IF('1. Order'!G1206=\"\",\"\",'1. Order'!G1206)","v":""},{"$f":"IF('1. Order'!H1206=\"\",\"\",'1. Order'!H1206)","v":""},{"$f":"IF('1. Order'!I1206=\"\",\"\",'1. Order'!I1206)","v":""},{"$f":"IF('1. Order'!J1206=\"\",\"\",'1. Order'!J1206)","v":""},{"$f":"IF('1. Order'!K1206=\"\",\"\",'1. Order'!K1206)","v":""},{"$f":"IF('1. Order'!L1206=\"\",\"\",'1. Order'!L1206)","v":""},{"$f":"IF('1. Order'!M1206=\"\",\"\",'1. Order'!M1206)","v":""},{"$f":"IF('1. Order'!N1206=\"\",\"\",'1. Order'!N1206)","v":""},{"$f":"IF('1. Order'!O1206=\"\",\"\",'1. Order'!O1206)","v":{"$error":"#N/A"}},{"$f":"IF('1. Order'!P1206=\"\",\"\",'1. Order'!P1206)","v":{"$error":"#N/A"}},{"$f":"IF('1. Order'!Q1206=\"\",\"\",'1. Order'!Q1206)","v":""},{"$f":"IF('1. Order'!R1206=\"\",\"\",'1. Order'!R1206)","v":""},{"$f":"IF('1. Order'!S1206=\"\",\"\",'1. Order'!S1206)","v":""},{"$f":"IF('1. Order'!V1206=\"\",\"\",'1. Order'!V1206)","v":""},{"$f":"IF('1. Order'!W1206=\"\",\"\",'1. Order'!W1206)","v":""},{"$f":"IF('1. Order'!X1206=\"\",\"\",'1. Order'!X1206)","v":"EUR"},{"$f":"IF('1. Order'!Y1206=\"\",\"\",'1. Order'!Y1206)","v":""},{"$f":"IF('1. Order'!Z1206=\"\",\"\",'1. Order'!Z1206)","v":""},{"$f":"IF('1. Order'!AA1206=\"\",\"\",'1. Order'!AA1206)","v":""},null,{"$f":"IF('1. Order'!AS1206=\"\",\"\",'1. Order'!AS1206)","v":""},{"$f":"IF('1. Order'!AT1206=\"\",\"\",'1. Order'!AT1206)","v":""},null,null,null,null,null,null,null,{"$f":"IF('1. Order'!AX1206=\"\",\"\",'1. Order'!AX1206)","v":""},{"$f":"IF('1. Order'!AY1206=\"\",\"\",'1. Order'!AY1206)","v":""},{"$f":"IF('1. Order'!AZ1206=\"\",\"\",'1. Order'!AZ1206)","v":""},{"$f":"IF('1. Order'!BA1206=\"\",\"\",'1. Order'!BA1206)","v":""},{"$f":"IF('1. Order'!BC1206=\"\",\"\",'1. Order'!BC1206)","v":""},{"$f":"IF('1. Order'!BD1206=\"\",\"\",'1. Order'!BD1206)","v":6},{"$f":"IF('1. Order'!BE1206=\"\",\"\",'1. Order'!BE1206)","v":"None"},{"$f":"IF('1. Order'!BF1206=\"\",\"\",'1. Order'!BF1206)","v":"Parcel"},{"$f":"IF('1. Order'!BG1206=\"\",\"\",'1. Order'!BG1206)","v":"ZWO"}]
[{"$f":"IF('1. Order'!F1207=\"\",\"\",'1. Order'!F1207)","v":""},{"$f":"IF('1. Order'!G1207=\"\",\"\",'1. Order'!G1207)","v":""},{"$f":"IF('1. Order'!H1207=\"\",\"\",'1. Order'!H1207)","v":""},{"$f":"IF('1. Order'!I1207=\"\",\"\",'1. Order'!I1207)","v":""},{"$f":"IF('1. Order'!J1207=\"\",\"\",'1. Order'!J1207)","v":""},{"$f":"IF('1. Order'!K1207=\"\",\"\",'1. Order'!K1207)","v":""},{"$f":"IF('1. Order'!L1207=\"\",\"\",'1. Order'!L1207)","v":""},{"$f":"IF('1. Order'!M1207=\"\",\"\",'1. Order'!M1207)","v":""},{"$f":"IF('1. Order'!N1207=\"\",\"\",'1. Order'!N1207)","v":""},{"$f":"IF('1. Order'!O1207=\"\",\"\",'1. Order'!O1207)","v":{"$error":"#N/A"}},{"$f":"IF('1. Order'!P1207=\"\",\"\",'1. Order'!P1207)","v":{"$error":"#N/A"}},{"$f":"IF('1. Order'!Q1207=\"\",\"\",'1. Order'!Q1207)","v":""},{"$f":"IF('1. Order'!R1207=\"\",\"\",'1. Order'!R1207)","v":""},{"$f":"IF('1. Order'!S1207=\"\",\"\",'1. Order'!S1207)","v":""},{"$f":"IF('1. Order'!V1207=\"\",\"\",'1. Order'!V1207)","v":""},{"$f":"IF('1. Order'!W1207=\"\",\"\",'1. Order'!W1207)","v":""},{"$f":"IF('1. Order'!X1207=\"\",\"\",'1. Order'!X1207)","v":"EUR"},{"$f":"IF('1. Order'!Y1207=\"\",\"\",'1. Order'!Y1207)","v":""},{"$f":"IF('1. Order'!Z1207=\"\",\"\",'1. Order'!Z1207)","v":""},{"$f":"IF('1. Order'!AA1207=\"\",\"\",'1. Order'!AA1207)","v":""},null,{"$f":"IF('1. Order'!AS1207=\"\",\"\",'1. Order'!AS1207)","v":""},{"$f":"IF('1. Order'!AT1207=\"\",\"\",'1. Order'!AT1207)","v":""},null,null,null,null,null,null,null,{"$f":"IF('1. Order'!AX1207=\"\",\"\",'1. Order'!AX1207)","v":""},{"$f":"IF('1. Order'!AY1207=\"\",\"\",'1. Order'!AY1207)","v":""},{"$f":"IF('1. Order'!AZ1207=\"\",\"\",'1. Order'!AZ1207)","v":""},{"$f":"IF('1. Order'!BA1207=\"\",\"\",'1. Order'!BA1207)","v":""},{"$f":"IF('1. Order'!BC1207=\"\",\"\",'1. Order'!BC1207)","v":""},{"$f":"IF('1. Order'!BD1207=\"\",\"\",'1. Order'!BD1207)","v":6},{"$f":"IF('1. Order'!BE1207=\"\",\"\",'1. Order'!BE1207)","v":"None"},{"$f":"IF('1. Order'!BF1207=\"\",\"\",'1. Order'!BF1207)","v":"Parcel"},{"$f":"IF('1. Order'!BG1207=\"\",\"\",'1. Order'!BG1207)","v":"ZWO"}]
[{"$f":"IF('1. Order'!F1208=\"\",\"\",'1. Order'!F1208)","v":""},{"$f":"IF('1. Order'!G1208=\"\",\"\",'1. Order'!G1208)","v":""},{"$f":"IF('1. Order'!H1208=\"\",\"\",'1. Order'!H1208)","v":""},{"$f":"IF('1. Order'!I1208=\"\",\"\",'1. Order'!I1208)","v":""},{"$f":"IF('1. Order'!J1208=\"\",\"\",'1. Order'!J1208)","v":""},{"$f":"IF('1. Order'!K1208=\"\",\"\",'1. Order'!K1208)","v":""},{"$f":"IF('1. Order'!L1208=\"\",\"\",'1. Order'!L1208)","v":""},{"$f":"IF('1. Order'!M1208=\"\",\"\",'1. Order'!M1208)","v":""},{"$f":"IF('1. Order'!N1208=\"\",\"\",'1. Order'!N1208)","v":""},{"$f":"IF('1. Order'!O1208=\"\",\"\",'1. Order'!O1208)","v":{"$error":"#N/A"}},{"$f":"IF('1. Order'!P1208=\"\",\"\",'1. Order'!P1208)","v":{"$error":"#N/A"}},{"$f":"IF('1. Order'!Q1208=\"\",\"\",'1. Order'!Q1208)","v":""},{"$f":"IF('1. Order'!R1208=\"\",\"\",'1. Order'!R1208)","v":""},{"$f":"IF('1. Order'!S1208=\"\",\"\",'1. Order'!S1208)","v":""},{"$f":"IF('1. Order'!V1208=\"\",\"\",'1. Order'!V1208)","v":""},{"$f":"IF('1. Order'!W1208=\"\",\"\",'1. Order'!W1208)","v":""},{"$f":"IF('1. Order'!X1208=\"\",\"\",'1. Order'!X1208)","v":"EUR"},{"$f":"IF('1. Order'!Y1208=\"\",\"\",'1. Order'!Y1208)","v":""},{"$f":"IF('1. Order'!Z1208=\"\",\"\",'1. Order'!Z1208)","v":""},{"$f":"IF('1. Order'!AA1208=\"\",\"\",'1. Order'!AA1208)","v":""},null,{"$f":"IF('1. Order'!AS1208=\"\",\"\",'1. Order'!AS1208)","v":""},{"$f":"IF('1. Order'!AT1208=\"\",\"\",'1. Order'!AT1208)","v":""},null,null,null,null,null,null,null,{"$f":"IF('1. Order'!AX1208=\"\",\"\",'1. Order'!AX1208)","v":""},{"$f":"IF('1. Order'!AY1208=\"\",\"\",'1. Order'!AY1208)","v":""},{"$f":"IF('1. Order'!AZ1208=\"\",\"\",'1. Order'!AZ1208)","v":""},{"$f":"IF('1. Order'!BA1208=\"\",\"\",'1. Order'!BA1208)","v":""},{"$f":"IF('1. Order'!BC1208=\"\",\"\",'1. Order'!BC1208)","v":""},{"$f":"IF('1. Order'!BD1208=\"\",\"\",'1. Order'!BD1208)","v":6},{"$f":"IF('1. Order'!BE1208=\"\",\"\",'1. Order'!BE1208)","v":"None"},{"$f":"IF('1. Order'!BF1208=\"\",\"\",'1. Order'!BF1208)","v":"Parcel"},{"$f":"IF('1. Order'!BG1208=\"\",\"\",'1. Order'!BG1208)","v":"ZWO"}]
[{"$f":"IF('1. Order'!F1209=\"\",\"\",'1. Order'!F1209)","v":""},{"$f":"IF('1. Order'!G1209=\"\",\"\",'1. Order'!G1209)","v":""},{"$f":"IF('1. Order'!H1209=\"\",\"\",'1. Order'!H1209)","v":""},{"$f":"IF('1. Order'!I1209=\"\",\"\",'1. Order'!I1209)","v":""},{"$f":"IF('1. Order'!J1209=\"\",\"\",'1. Order'!J1209)","v":""},{"$f":"IF('1. Order'!K1209=\"\",\"\",'1. Order'!K1209)","v":""},{"$f":"IF('1. Order'!L1209=\"\",\"\",'1. Order'!L1209)","v":""},{"$f":"IF('1. Order'!M1209=\"\",\"\",'1. Order'!M1209)","v":""},{"$f":"IF('1. Order'!N1209=\"\",\"\",'1. Order'!N1209)","v":""},{"$f":"IF('1. Order'!O1209=\"\",\"\",'1. Order'!O1209)","v":{"$error":"#N/A"}},{"$f":"IF('1. Order'!P1209=\"\",\"\",'1. Order'!P1209)","v":{"$error":"#N/A"}},{"$f":"IF('1. Order'!Q1209=\"\",\"\",'1. Order'!Q1209)","v":""},{"$f":"IF('1. Order'!R1209=\"\",\"\",'1. Order'!R1209)","v":""},{"$f":"IF('1. Order'!S1209=\"\",\"\",'1. Order'!S1209)","v":""},{"$f":"IF('1. Order'!V1209=\"\",\"\",'1. Order'!V1209)","v":""},{"$f":"IF('1. Order'!W1209=\"\",\"\",'1. Order'!W1209)","v":""},{"$f":"IF('1. Order'!X1209=\"\",\"\",'1. Order'!X1209)","v":"EUR"},{"$f":"IF('1. Order'!Y1209=\"\",\"\",'1. Order'!Y1209)","v":""},{"$f":"IF('1. Order'!Z1209=\"\",\"\",'1. Order'!Z1209)","v":""},{"$f":"IF('1. Order'!AA1209=\"\",\"\",'1. Order'!AA1209)","v":""},null,{"$f":"IF('1. Order'!AS1209=\"\",\"\",'1. Order'!AS1209)","v":""},{"$f":"IF('1. Order'!AT1209=\"\",\"\",'1. Order'!AT1209)","v":""},null,null,null,null,null,null,null,{"$f":"IF('1. Order'!AX1209=\"\",\"\",'1. Order'!AX1209)","v":""},{"$f":"IF('1. Order'!AY1209=\"\",\"\",'1. Order'!AY1209)","v":""},{"$f":"IF('1. Order'!AZ1209=\"\",\"\",'1. Order'!AZ1209)","v":""},{"$f":"IF('1. Order'!BA1209=\"\",\"\",'1. Order'!BA1209)","v":""},{"$f":"IF('1. Order'!BC1209=\"\",\"\",'1. Order'!BC1209)","v":""},{"$f":"IF('1. Order'!BD1209=\"\",\"\",'1. Order'!BD1209)","v":6},{"$f":"IF('1. Order'!BE1209=\"\",\"\",'1. Order'!BE1209)","v":"None"},{"$f":"IF('1. Order'!BF1209=\"\",\"\",'1. Order'!BF1209)","v":"Parcel"},{"$f":"IF('1. Order'!BG1209=\"\",\"\",'1. Order'!BG1209)","v":"ZWO"}]
[{"$f":"IF('1. Order'!F1210=\"\",\"\",'1. Order'!F1210)","v":""},{"$f":"IF('1. Order'!G1210=\"\",\"\",'1. Order'!G1210)","v":""},{"$f":"IF('1. Order'!H1210=\"\",\"\",'1. Order'!H1210)","v":""},{"$f":"IF('1. Order'!I1210=\"\",\"\",'1. Order'!I1210)","v":""},{"$f":"IF('1. Order'!J1210=\"\",\"\",'1. Order'!J1210)","v":""},{"$f":"IF('1. Order'!K1210=\"\",\"\",'1. Order'!K1210)","v":""},{"$f":"IF('1. Order'!L1210=\"\",\"\",'1. Order'!L1210)","v":""},{"$f":"IF('1. Order'!M1210=\"\",\"\",'1. Order'!M1210)","v":""},{"$f":"IF('1. Order'!N1210=\"\",\"\",'1. Order'!N1210)","v":""},{"$f":"IF('1. Order'!O1210=\"\",\"\",'1. Order'!O1210)","v":{"$error":"#N/A"}},{"$f":"IF('1. Order'!P1210=\"\",\"\",'1. Order'!P1210)","v":{"$error":"#N/A"}},{"$f":"IF('1. Order'!Q1210=\"\",\"\",'1. Order'!Q1210)","v":""},{"$f":"IF('1. Order'!R1210=\"\",\"\",'1. Order'!R1210)","v":""},{"$f":"IF('1. Order'!S1210=\"\",\"\",'1. Order'!S1210)","v":""},{"$f":"IF('1. Order'!V1210=\"\",\"\",'1. Order'!V1210)","v":""},{"$f":"IF('1. Order'!W1210=\"\",\"\",'1. Order'!W1210)","v":""},{"$f":"IF('1. Order'!X1210=\"\",\"\",'1. Order'!X1210)","v":"EUR"},{"$f":"IF('1. Order'!Y1210=\"\",\"\",'1. Order'!Y1210)","v":""},{"$f":"IF('1. Order'!Z1210=\"\",\"\",'1. Order'!Z1210)","v":""},{"$f":"IF('1. Order'!AA1210=\"\",\"\",'1. Order'!AA1210)","v":""},null,{"$f":"IF('1. Order'!AS1210=\"\",\"\",'1. Order'!AS1210)","v":""},{"$f":"IF('1. Order'!AT1210=\"\",\"\",'1. Order'!AT1210)","v":""},null,null,null,null,null,null,null,{"$f":"IF('1. Order'!AX1210=\"\",\"\",'1. Order'!AX1210)","v":""},{"$f":"IF('1. Order'!AY1210=\"\",\"\",'1. Order'!AY1210)","v":""},{"$f":"IF('1. Order'!AZ1210=\"\",\"\",'1. Order'!AZ1210)","v":""},{"$f":"IF('1. Order'!BA1210=\"\",\"\",'1. Order'!BA1210)","v":""},{"$f":"IF('1. Order'!BC1210=\"\",\"\",'1. Order'!BC1210)","v":""},{"$f":"IF('1. Order'!BD1210=\"\",\"\",'1. Order'!BD1210)","v":6},{"$f":"IF('1. Order'!BE1210=\"\",\"\",'1. Order'!BE1210)","v":"None"},{"$f":"IF('1. Order'!BF1210=\"\",\"\",'1. Order'!BF1210)","v":"Parcel"},{"$f":"IF('1. Order'!BG1210=\"\",\"\",'1. Order'!BG1210)","v":"ZWO"}]
[{"$f":"IF('1. Order'!F1211=\"\",\"\",'1. Order'!F1211)","v":""},{"$f":"IF('1. Order'!G1211=\"\",\"\",'1. Order'!G1211)","v":""},{"$f":"IF('1. Order'!H1211=\"\",\"\",'1. Order'!H1211)","v":""},{"$f":"IF('1. Order'!I1211=\"\",\"\",'1. Order'!I1211)","v":""},{"$f":"IF('1. Order'!J1211=\"\",\"\",'1. Order'!J1211)","v":""},{"$f":"IF('1. Order'!K1211=\"\",\"\",'1. Order'!K1211)","v":""},{"$f":"IF('1. Order'!L1211=\"\",\"\",'1. Order'!L1211)","v":""},{"$f":"IF('1. Order'!M1211=\"\",\"\",'1. Order'!M1211)","v":""},{"$f":"IF('1. Order'!N1211=\"\",\"\",'1. Order'!N1211)","v":""},{"$f":"IF('1. Order'!O1211=\"\",\"\",'1. Order'!O1211)","v":{"$error":"#N/A"}},{"$f":"IF('1. Order'!P1211=\"\",\"\",'1. Order'!P1211)","v":{"$error":"#N/A"}},{"$f":"IF('1. Order'!Q1211=\"\",\"\",'1. Order'!Q1211)","v":""},{"$f":"IF('1. Order'!R1211=\"\",\"\",'1. Order'!R1211)","v":""},{"$f":"IF('1. Order'!S1211=\"\",\"\",'1. Order'!S1211)","v":""},{"$f":"IF('1. Order'!V1211=\"\",\"\",'1. Order'!V1211)","v":""},{"$f":"IF('1. Order'!W1211=\"\",\"\",'1. Order'!W1211)","v":""},{"$f":"IF('1. Order'!X1211=\"\",\"\",'1. Order'!X1211)","v":"EUR"},{"$f":"IF('1. Order'!Y1211=\"\",\"\",'1. Order'!Y1211)","v":""},{"$f":"IF('1. Order'!Z1211=\"\",\"\",'1. Order'!Z1211)","v":""},{"$f":"IF('1. Order'!AA1211=\"\",\"\",'1. Order'!AA1211)","v":""},null,{"$f":"IF('1. Order'!AS1211=\"\",\"\",'1. Order'!AS1211)","v":""},{"$f":"IF('1. Order'!AT1211=\"\",\"\",'1. Order'!AT1211)","v":""},null,null,null,null,null,null,null,{"$f":"IF('1. Order'!AX1211=\"\",\"\",'1. Order'!AX1211)","v":""},{"$f":"IF('1. Order'!AY1211=\"\",\"\",'1. Order'!AY1211)","v":""},{"$f":"IF('1. Order'!AZ1211=\"\",\"\",'1. Order'!AZ1211)","v":""},{"$f":"IF('1. Order'!BA1211=\"\",\"\",'1. Order'!BA1211)","v":""},{"$f":"IF('1. Order'!BC1211=\"\",\"\",'1. Order'!BC1211)","v":""},{"$f":"IF('1. Order'!BD1211=\"\",\"\",'1. Order'!BD1211)","v":6},{"$f":"IF('1. Order'!BE1211=\"\",\"\",'1. Order'!BE1211)","v":"None"},{"$f":"IF('1. Order'!BF1211=\"\",\"\",'1. Order'!BF1211)","v":"Parcel"},{"$f":"IF('1. Order'!BG1211=\"\",\"\",'1. Order'!BG1211)","v":"ZWO"}]
[{"$f":"IF('1. Order'!F1212=\"\",\"\",'1. Order'!F1212)","v":""},{"$f":"IF('1. Order'!G1212=\"\",\"\",'1. Order'!G1212)","v":""},{"$f":"IF('1. Order'!H1212=\"\",\"\",'1. Order'!H1212)","v":""},{"$f":"IF('1. Order'!I1212=\"\",\"\",'1. Order'!I1212)","v":""},{"$f":"IF('1. Order'!J1212=\"\",\"\",'1. Order'!J1212)","v":""},{"$f":"IF('1. Order'!K1212=\"\",\"\",'1. Order'!K1212)","v":""},{"$f":"IF('1. Order'!L1212=\"\",\"\",'1. Order'!L1212)","v":""},{"$f":"IF('1. Order'!M1212=\"\",\"\",'1. Order'!M1212)","v":""},{"$f":"IF('1. Order'!N1212=\"\",\"\",'1. Order'!N1212)","v":""},{"$f":"IF('1. Order'!O1212=\"\",\"\",'1. Order'!O1212)","v":{"$error":"#N/A"}},{"$f":"IF('1. Order'!P1212=\"\",\"\",'1. Order'!P1212)","v":{"$error":"#N/A"}},{"$f":"IF('1. Order'!Q1212=\"\",\"\",'1. Order'!Q1212)","v":""},{"$f":"IF('1. Order'!R1212=\"\",\"\",'1. Order'!R1212)","v":""},{"$f":"IF('1. Order'!S1212=\"\",\"\",'1. Order'!S1212)","v":""},{"$f":"IF('1. Order'!V1212=\"\",\"\",'1. Order'!V1212)","v":""},{"$f":"IF('1. Order'!W1212=\"\",\"\",'1. Order'!W1212)","v":""},{"$f":"IF('1. Order'!X1212=\"\",\"\",'1. Order'!X1212)","v":"EUR"},{"$f":"IF('1. Order'!Y1212=\"\",\"\",'1. Order'!Y1212)","v":""},{"$f":"IF('1. Order'!Z1212=\"\",\"\",'1. Order'!Z1212)","v":""},{"$f":"IF('1. Order'!AA1212=\"\",\"\",'1. Order'!AA1212)","v":""},null,{"$f":"IF('1. Order'!AS1212=\"\",\"\",'1. Order'!AS1212)","v":""},{"$f":"IF('1. Order'!AT1212=\"\",\"\",'1. Order'!AT1212)","v":""},null,null,null,null,null,null,null,{"$f":"IF('1. Order'!AX1212=\"\",\"\",'1. Order'!AX1212)","v":""},{"$f":"IF('1. Order'!AY1212=\"\",\"\",'1. Order'!AY1212)","v":""},{"$f":"IF('1. Order'!AZ1212=\"\",\"\",'1. Order'!AZ1212)","v":""},{"$f":"IF('1. Order'!BA1212=\"\",\"\",'1. Order'!BA1212)","v":""},{"$f":"IF('1. Order'!BC1212=\"\",\"\",'1. Order'!BC1212)","v":""},{"$f":"IF('1. Order'!BD1212=\"\",\"\",'1. Order'!BD1212)","v":6},{"$f":"IF('1. Order'!BE1212=\"\",\"\",'1. Order'!BE1212)","v":"None"},{"$f":"IF('1. Order'!BF1212=\"\",\"\",'1. Order'!BF1212)","v":"Parcel"},{"$f":"IF('1. Order'!BG1212=\"\",\"\",'1. Order'!BG1212)","v":"ZWO"}]
[{"$f":"IF('1. Order'!F1213=\"\",\"\",'1. Order'!F1213)","v":""},{"$f":"IF('1. Order'!G1213=\"\",\"\",'1. Order'!G1213)","v":""},{"$f":"IF('1. Order'!H1213=\"\",\"\",'1. Order'!H1213)","v":""},{"$f":"IF('1. Order'!I1213=\"\",\"\",'1. Order'!I1213)","v":""},{"$f":"IF('1. Order'!J1213=\"\",\"\",'1. Order'!J1213)","v":""},{"$f":"IF('1. Order'!K1213=\"\",\"\",'1. Order'!K1213)","v":""},{"$f":"IF('1. Order'!L1213=\"\",\"\",'1. Order'!L1213)","v":""},{"$f":"IF('1. Order'!M1213=\"\",\"\",'1. Order'!M1213)","v":""},{"$f":"IF('1. Order'!N1213=\"\",\"\",'1. Order'!N1213)","v":""},{"$f":"IF('1. Order'!O1213=\"\",\"\",'1. Order'!O1213)","v":{"$error":"#N/A"}},{"$f":"IF('1. Order'!P1213=\"\",\"\",'1. Order'!P1213)","v":{"$error":"#N/A"}},{"$f":"IF('1. Order'!Q1213=\"\",\"\",'1. Order'!Q1213)","v":""},{"$f":"IF('1. Order'!R1213=\"\",\"\",'1. Order'!R1213)","v":""},{"$f":"IF('1. Order'!S1213=\"\",\"\",'1. Order'!S1213)","v":""},{"$f":"IF('1. Order'!V1213=\"\",\"\",'1. Order'!V1213)","v":""},{"$f":"IF('1. Order'!W1213=\"\",\"\",'1. Order'!W1213)","v":""},{"$f":"IF('1. Order'!X1213=\"\",\"\",'1. Order'!X1213)","v":"EUR"},{"$f":"IF('1. Order'!Y1213=\"\",\"\",'1. Order'!Y1213)","v":""},{"$f":"IF('1. Order'!Z1213=\"\",\"\",'1. Order'!Z1213)","v":""},{"$f":"IF('1. Order'!AA1213=\"\",\"\",'1. Order'!AA1213)","v":""},null,{"$f":"IF('1. Order'!AS1213=\"\",\"\",'1. Order'!AS1213)","v":""},{"$f":"IF('1. Order'!AT1213=\"\",\"\",'1. Order'!AT1213)","v":""},null,null,null,null,null,null,null,{"$f":"IF('1. Order'!AX1213=\"\",\"\",'1. Order'!AX1213)","v":""},{"$f":"IF('1. Order'!AY1213=\"\",\"\",'1. Order'!AY1213)","v":""},{"$f":"IF('1. Order'!AZ1213=\"\",\"\",'1. Order'!AZ1213)","v":""},{"$f":"IF('1. Order'!BA1213=\"\",\"\",'1. Order'!BA1213)","v":""},{"$f":"IF('1. Order'!BC1213=\"\",\"\",'1. Order'!BC1213)","v":""},{"$f":"IF('1. Order'!BD1213=\"\",\"\",'1. Order'!BD1213)","v":6},{"$f":"IF('1. Order'!BE1213=\"\",\"\",'1. Order'!BE1213)","v":"None"},{"$f":"IF('1. Order'!BF1213=\"\",\"\",'1. Order'!BF1213)","v":"Parcel"},{"$f":"IF('1. Order'!BG1213=\"\",\"\",'1. Order'!BG1213)","v":"ZWO"}]
[{"$f":"IF('1. Order'!F1214=\"\",\"\",'1. Order'!F1214)","v":""},{"$f":"IF('1. Order'!G1214=\"\",\"\",'1. Order'!G1214)","v":""},{"$f":"IF('1. Order'!H1214=\"\",\"\",'1. Order'!H1214)","v":""},{"$f":"IF('1. Order'!I1214=\"\",\"\",'1. Order'!I1214)","v":""},{"$f":"IF('1. Order'!J1214=\"\",\"\",'1. Order'!J1214)","v":""},{"$f":"IF('1. Order'!K1214=\"\",\"\",'1. Order'!K1214)","v":""},{"$f":"IF('1. Order'!L1214=\"\",\"\",'1. Order'!L1214)","v":""},{"$f":"IF('1. Order'!M1214=\"\",\"\",'1. Order'!M1214)","v":""},{"$f":"IF('1. Order'!N1214=\"\",\"\",'1. Order'!N1214)","v":""},{"$f":"IF('1. Order'!O1214=\"\",\"\",'1. Order'!O1214)","v":{"$error":"#N/A"}},{"$f":"IF('1. Order'!P1214=\"\",\"\",'1. Order'!P1214)","v":{"$error":"#N/A"}},{"$f":"IF('1. Order'!Q1214=\"\",\"\",'1. Order'!Q1214)","v":""},{"$f":"IF('1. Order'!R1214=\"\",\"\",'1. Order'!R1214)","v":""},{"$f":"IF('1. Order'!S1214=\"\",\"\",'1. Order'!S1214)","v":""},{"$f":"IF('1. Order'!V1214=\"\",\"\",'1. Order'!V1214)","v":""},{"$f":"IF('1. Order'!W1214=\"\",\"\",'1. Order'!W1214)","v":""},{"$f":"IF('1. Order'!X1214=\"\",\"\",'1. Order'!X1214)","v":"EUR"},{"$f":"IF('1. Order'!Y1214=\"\",\"\",'1. Order'!Y1214)","v":""},{"$f":"IF('1. Order'!Z1214=\"\",\"\",'1. Order'!Z1214)","v":""},{"$f":"IF('1. Order'!AA1214=\"\",\"\",'1. Order'!AA1214)","v":""},null,{"$f":"IF('1. Order'!AS1214=\"\",\"\",'1. Order'!AS1214)","v":""},{"$f":"IF('1. Order'!AT1214=\"\",\"\",'1. Order'!AT1214)","v":""},null,null,null,null,null,null,null,{"$f":"IF('1. Order'!AX1214=\"\",\"\",'1. Order'!AX1214)","v":""},{"$f":"IF('1. Order'!AY1214=\"\",\"\",'1. Order'!AY1214)","v":""},{"$f":"IF('1. Order'!AZ1214=\"\",\"\",'1. Order'!AZ1214)","v":""},{"$f":"IF('1. Order'!BA1214=\"\",\"\",'1. Order'!BA1214)","v":""},{"$f":"IF('1. Order'!BC1214=\"\",\"\",'1. Order'!BC1214)","v":""},{"$f":"IF('1. Order'!BD1214=\"\",\"\",'1. Order'!BD1214)","v":6},{"$f":"IF('1. Order'!BE1214=\"\",\"\",'1. Order'!BE1214)","v":"None"},{"$f":"IF('1. Order'!BF1214=\"\",\"\",'1. Order'!BF1214)","v":"Parcel"},{"$f":"IF('1. Order'!BG1214=\"\",\"\",'1. Order'!BG1214)","v":"ZWO"}]
[{"$f":"IF('1. Order'!F1215=\"\",\"\",'1. Order'!F1215)","v":""},{"$f":"IF('1. Order'!G1215=\"\",\"\",'1. Order'!G1215)","v":""},{"$f":"IF('1. Order'!H1215=\"\",\"\",'1. Order'!H1215)","v":""},{"$f":"IF('1. Order'!I1215=\"\",\"\",'1. Order'!I1215)","v":""},{"$f":"IF('1. Order'!J1215=\"\",\"\",'1. Order'!J1215)","v":""},{"$f":"IF('1. Order'!K1215=\"\",\"\",'1. Order'!K1215)","v":""},{"$f":"IF('1. Order'!L1215=\"\",\"\",'1. Order'!L1215)","v":""},{"$f":"IF('1. Order'!M1215=\"\",\"\",'1. Order'!M1215)","v":""},{"$f":"IF('1. Order'!N1215=\"\",\"\",'1. Order'!N1215)","v":""},{"$f":"IF('1. Order'!O1215=\"\",\"\",'1. Order'!O1215)","v":{"$error":"#N/A"}},{"$f":"IF('1. Order'!P1215=\"\",\"\",'1. Order'!P1215)","v":{"$error":"#N/A"}},{"$f":"IF('1. Order'!Q1215=\"\",\"\",'1. Order'!Q1215)","v":""},{"$f":"IF('1. Order'!R1215=\"\",\"\",'1. Order'!R1215)","v":""},{"$f":"IF('1. Order'!S1215=\"\",\"\",'1. Order'!S1215)","v":""},{"$f":"IF('1. Order'!V1215=\"\",\"\",'1. Order'!V1215)","v":""},{"$f":"IF('1. Order'!W1215=\"\",\"\",'1. Order'!W1215)","v":""},{"$f":"IF('1. Order'!X1215=\"\",\"\",'1. Order'!X1215)","v":"EUR"},{"$f":"IF('1. Order'!Y1215=\"\",\"\",'1. Order'!Y1215)","v":""},{"$f":"IF('1. Order'!Z1215=\"\",\"\",'1. Order'!Z1215)","v":""},{"$f":"IF('1. Order'!AA1215=\"\",\"\",'1. Order'!AA1215)","v":""},null,{"$f":"IF('1. Order'!AS1215=\"\",\"\",'1. Order'!AS1215)","v":""},{"$f":"IF('1. Order'!AT1215=\"\",\"\",'1. Order'!AT1215)","v":""},null,null,null,null,null,null,null,{"$f":"IF('1. Order'!AX1215=\"\",\"\",'1. Order'!AX1215)","v":""},{"$f":"IF('1. Order'!AY1215=\"\",\"\",'1. Order'!AY1215)","v":""},{"$f":"IF('1. Order'!AZ1215=\"\",\"\",'1. Order'!AZ1215)","v":""},{"$f":"IF('1. Order'!BA1215=\"\",\"\",'1. Order'!BA1215)","v":""},{"$f":"IF('1. Order'!BC1215=\"\",\"\",'1. Order'!BC1215)","v":""},{"$f":"IF('1. Order'!BD1215=\"\",\"\",'1. Order'!BD1215)","v":6},{"$f":"IF('1. Order'!BE1215=\"\",\"\",'1. Order'!BE1215)","v":"None"},{"$f":"IF('1. Order'!BF1215=\"\",\"\",'1. Order'!BF1215)","v":"Parcel"},{"$f":"IF('1. Order'!BG1215=\"\",\"\",'1. Order'!BG1215)","v":"ZWO"}]
[{"$f":"IF('1. Order'!F1216=\"\",\"\",'1. Order'!F1216)","v":""},{"$f":"IF('1. Order'!G1216=\"\",\"\",'1. Order'!G1216)","v":""},{"$f":"IF('1. Order'!H1216=\"\",\"\",'1. Order'!H1216)","v":""},{"$f":"IF('1. Order'!I1216=\"\",\"\",'1. Order'!I1216)","v":""},{"$f":"IF('1. Order'!J1216=\"\",\"\",'1. Order'!J1216)","v":""},{"$f":"IF('1. Order'!K1216=\"\",\"\",'1. Order'!K1216)","v":""},{"$f":"IF('1. Order'!L1216=\"\",\"\",'1. Order'!L1216)","v":""},{"$f":"IF('1. Order'!M1216=\"\",\"\",'1. Order'!M1216)","v":""},{"$f":"IF('1. Order'!N1216=\"\",\"\",'1. Order'!N1216)","v":""},{"$f":"IF('1. Order'!O1216=\"\",\"\",'1. Order'!O1216)","v":{"$error":"#N/A"}},{"$f":"IF('1. Order'!P1216=\"\",\"\",'1. Order'!P1216)","v":{"$error":"#N/A"}},{"$f":"IF('1. Order'!Q1216=\"\",\"\",'1. Order'!Q1216)","v":""},{"$f":"IF('1. Order'!R1216=\"\",\"\",'1. Order'!R1216)","v":""},{"$f":"IF('1. Order'!S1216=\"\",\"\",'1. Order'!S1216)","v":""},{"$f":"IF('1. Order'!V1216=\"\",\"\",'1. Order'!V1216)","v":""},{"$f":"IF('1. Order'!W1216=\"\",\"\",'1. Order'!W1216)","v":""},{"$f":"IF('1. Order'!X1216=\"\",\"\",'1. Order'!X1216)","v":"EUR"},{"$f":"IF('1. Order'!Y1216=\"\",\"\",'1. Order'!Y1216)","v":""},{"$f":"IF('1. Order'!Z1216=\"\",\"\",'1. Order'!Z1216)","v":""},{"$f":"IF('1. Order'!AA1216=\"\",\"\",'1. Order'!AA1216)","v":""},null,{"$f":"IF('1. Order'!AS1216=\"\",\"\",'1. Order'!AS1216)","v":""},{"$f":"IF('1. Order'!AT1216=\"\",\"\",'1. Order'!AT1216)","v":""},null,null,null,null,null,null,null,{"$f":"IF('1. Order'!AX1216=\"\",\"\",'1. Order'!AX1216)","v":""},{"$f":"IF('1. Order'!AY1216=\"\",\"\",'1. Order'!AY1216)","v":""},{"$f":"IF('1. Order'!AZ1216=\"\",\"\",'1. Order'!AZ1216)","v":""},{"$f":"IF('1. Order'!BA1216=\"\",\"\",'1. Order'!BA1216)","v":""},{"$f":"IF('1. Order'!BC1216=\"\",\"\",'1. Order'!BC1216)","v":""},{"$f":"IF('1. Order'!BD1216=\"\",\"\",'1. Order'!BD1216)","v":6},{"$f":"IF('1. Order'!BE1216=\"\",\"\",'1. Order'!BE1216)","v":"None"},{"$f":"IF('1. Order'!BF1216=\"\",\"\",'1. Order'!BF1216)","v":"Parcel"},{"$f":"IF('1. Order'!BG1216=\"\",\"\",'1. Order'!BG1216)","v":"ZWO"}]
[{"$f":"IF('1. Order'!F1217=\"\",\"\",'1. Order'!F1217)","v":""},{"$f":"IF('1. Order'!G1217=\"\",\"\",'1. Order'!G1217)","v":""},{"$f":"IF('1. Order'!H1217=\"\",\"\",'1. Order'!H1217)","v":""},{"$f":"IF('1. Order'!I1217=\"\",\"\",'1. Order'!I1217)","v":""},{"$f":"IF('1. Order'!J1217=\"\",\"\",'1. Order'!J1217)","v":""},{"$f":"IF('1. Order'!K1217=\"\",\"\",'1. Order'!K1217)","v":""},{"$f":"IF('1. Order'!L1217=\"\",\"\",'1. Order'!L1217)","v":""},{"$f":"IF('1. Order'!M1217=\"\",\"\",'1. Order'!M1217)","v":""},{"$f":"IF('1. Order'!N1217=\"\",\"\",'1. Order'!N1217)","v":""},{"$f":"IF('1. Order'!O1217=\"\",\"\",'1. Order'!O1217)","v":{"$error":"#N/A"}},{"$f":"IF('1. Order'!P1217=\"\",\"\",'1. Order'!P1217)","v":{"$error":"#N/A"}},{"$f":"IF('1. Order'!Q1217=\"\",\"\",'1. Order'!Q1217)","v":""},{"$f":"IF('1. Order'!R1217=\"\",\"\",'1. Order'!R1217)","v":""},{"$f":"IF('1. Order'!S1217=\"\",\"\",'1. Order'!S1217)","v":""},{"$f":"IF('1. Order'!V1217=\"\",\"\",'1. Order'!V1217)","v":""},{"$f":"IF('1. Order'!W1217=\"\",\"\",'1. Order'!W1217)","v":""},{"$f":"IF('1. Order'!X1217=\"\",\"\",'1. Order'!X1217)","v":"EUR"},{"$f":"IF('1. Order'!Y1217=\"\",\"\",'1. Order'!Y1217)","v":""},{"$f":"IF('1. Order'!Z1217=\"\",\"\",'1. Order'!Z1217)","v":""},{"$f":"IF('1. Order'!AA1217=\"\",\"\",'1. Order'!AA1217)","v":""},null,{"$f":"IF('1. Order'!AS1217=\"\",\"\",'1. Order'!AS1217)","v":""},{"$f":"IF('1. Order'!AT1217=\"\",\"\",'1. Order'!AT1217)","v":""},null,null,null,null,null,null,null,{"$f":"IF('1. Order'!AX1217=\"\",\"\",'1. Order'!AX1217)","v":""},{"$f":"IF('1. Order'!AY1217=\"\",\"\",'1. Order'!AY1217)","v":""},{"$f":"IF('1. Order'!AZ1217=\"\",\"\",'1. Order'!AZ1217)","v":""},{"$f":"IF('1. Order'!BA1217=\"\",\"\",'1. Order'!BA1217)","v":""},{"$f":"IF('1. Order'!BC1217=\"\",\"\",'1. Order'!BC1217)","v":""},{"$f":"IF('1. Order'!BD1217=\"\",\"\",'1. Order'!BD1217)","v":6},{"$f":"IF('1. Order'!BE1217=\"\",\"\",'1. Order'!BE1217)","v":"None"},{"$f":"IF('1. Order'!BF1217=\"\",\"\",'1. Order'!BF1217)","v":"Parcel"},{"$f":"IF('1. Order'!BG1217=\"\",\"\",'1. Order'!BG1217)","v":"ZWO"}]
[{"$f":"IF('1. Order'!F1218=\"\",\"\",'1. Order'!F1218)","v":""},{"$f":"IF('1. Order'!G1218=\"\",\"\",'1. Order'!G1218)","v":""},{"$f":"IF('1. Order'!H1218=\"\",\"\",'1. Order'!H1218)","v":""},{"$f":"IF('1. Order'!I1218=\"\",\"\",'1. Order'!I1218)","v":""},{"$f":"IF('1. Order'!J1218=\"\",\"\",'1. Order'!J1218)","v":""},{"$f":"IF('1. Order'!K1218=\"\",\"\",'1. Order'!K1218)","v":""},{"$f":"IF('1. Order'!L1218=\"\",\"\",'1. Order'!L1218)","v":""},{"$f":"IF('1. Order'!M1218=\"\",\"\",'1. Order'!M1218)","v":""},{"$f":"IF('1. Order'!N1218=\"\",\"\",'1. Order'!N1218)","v":""},{"$f":"IF('1. Order'!O1218=\"\",\"\",'1. Order'!O1218)","v":{"$error":"#N/A"}},{"$f":"IF('1. Order'!P1218=\"\",\"\",'1. Order'!P1218)","v":{"$error":"#N/A"}},{"$f":"IF('1. Order'!Q1218=\"\",\"\",'1. Order'!Q1218)","v":""},{"$f":"IF('1. Order'!R1218=\"\",\"\",'1. Order'!R1218)","v":""},{"$f":"IF('1. Order'!S1218=\"\",\"\",'1. Order'!S1218)","v":""},{"$f":"IF('1. Order'!V1218=\"\",\"\",'1. Order'!V1218)","v":""},{"$f":"IF('1. Order'!W1218=\"\",\"\",'1. Order'!W1218)","v":""},{"$f":"IF('1. Order'!X1218=\"\",\"\",'1. Order'!X1218)","v":"EUR"},{"$f":"IF('1. Order'!Y1218=\"\",\"\",'1. Order'!Y1218)","v":""},{"$f":"IF('1. Order'!Z1218=\"\",\"\",'1. Order'!Z1218)","v":""},{"$f":"IF('1. Order'!AA1218=\"\",\"\",'1. Order'!AA1218)","v":""},null,{"$f":"IF('1. Order'!AS1218=\"\",\"\",'1. Order'!AS1218)","v":""},{"$f":"IF('1. Order'!AT1218=\"\",\"\",'1. Order'!AT1218)","v":""},null,null,null,null,null,null,null,{"$f":"IF('1. Order'!AX1218=\"\",\"\",'1. Order'!AX1218)","v":""},{"$f":"IF('1. Order'!AY1218=\"\",\"\",'1. Order'!AY1218)","v":""},{"$f":"IF('1. Order'!AZ1218=\"\",\"\",'1. Order'!AZ1218)","v":""},{"$f":"IF('1. Order'!BA1218=\"\",\"\",'1. Order'!BA1218)","v":""},{"$f":"IF('1. Order'!BC1218=\"\",\"\",'1. Order'!BC1218)","v":""},{"$f":"IF('1. Order'!BD1218=\"\",\"\",'1. Order'!BD1218)","v":6},{"$f":"IF('1. Order'!BE1218=\"\",\"\",'1. Order'!BE1218)","v":"None"},{"$f":"IF('1. Order'!BF1218=\"\",\"\",'1. Order'!BF1218)","v":"Parcel"},{"$f":"IF('1. Order'!BG1218=\"\",\"\",'1. Order'!BG1218)","v":"ZWO"}]
[{"$f":"IF('1. Order'!F1219=\"\",\"\",'1. Order'!F1219)","v":""},{"$f":"IF('1. Order'!G1219=\"\",\"\",'1. Order'!G1219)","v":""},{"$f":"IF('1. Order'!H1219=\"\",\"\",'1. Order'!H1219)","v":""},{"$f":"IF('1. Order'!I1219=\"\",\"\",'1. Order'!I1219)","v":""},{"$f":"IF('1. Order'!J1219=\"\",\"\",'1. Order'!J1219)","v":""},{"$f":"IF('1. Order'!K1219=\"\",\"\",'1. Order'!K1219)","v":""},{"$f":"IF('1. Order'!L1219=\"\",\"\",'1. Order'!L1219)","v":""},{"$f":"IF('1. Order'!M1219=\"\",\"\",'1. Order'!M1219)","v":""},{"$f":"IF('1. Order'!N1219=\"\",\"\",'1. Order'!N1219)","v":""},{"$f":"IF('1. Order'!O1219=\"\",\"\",'1. Order'!O1219)","v":{"$error":"#N/A"}},{"$f":"IF('1. Order'!P1219=\"\",\"\",'1. Order'!P1219)","v":{"$error":"#N/A"}},{"$f":"IF('1. Order'!Q1219=\"\",\"\",'1. Order'!Q1219)","v":""},{"$f":"IF('1. Order'!R1219=\"\",\"\",'1. Order'!R1219)","v":""},{"$f":"IF('1. Order'!S1219=\"\",\"\",'1. Order'!S1219)","v":""},{"$f":"IF('1. Order'!V1219=\"\",\"\",'1. Order'!V1219)","v":""},{"$f":"IF('1. Order'!W1219=\"\",\"\",'1. Order'!W1219)","v":""},{"$f":"IF('1. Order'!X1219=\"\",\"\",'1. Order'!X1219)","v":"EUR"},{"$f":"IF('1. Order'!Y1219=\"\",\"\",'1. Order'!Y1219)","v":""},{"$f":"IF('1. Order'!Z1219=\"\",\"\",'1. Order'!Z1219)","v":""},{"$f":"IF('1. Order'!AA1219=\"\",\"\",'1. Order'!AA1219)","v":""},null,{"$f":"IF('1. Order'!AS1219=\"\",\"\",'1. Order'!AS1219)","v":""},{"$f":"IF('1. Order'!AT1219=\"\",\"\",'1. Order'!AT1219)","v":""},null,null,null,null,null,null,null,{"$f":"IF('1. Order'!AX1219=\"\",\"\",'1. Order'!AX1219)","v":""},{"$f":"IF('1. Order'!AY1219=\"\",\"\",'1. Order'!AY1219)","v":""},{"$f":"IF('1. Order'!AZ1219=\"\",\"\",'1. Order'!AZ1219)","v":""},{"$f":"IF('1. Order'!BA1219=\"\",\"\",'1. Order'!BA1219)","v":""},{"$f":"IF('1. Order'!BC1219=\"\",\"\",'1. Order'!BC1219)","v":""},{"$f":"IF('1. Order'!BD1219=\"\",\"\",'1. Order'!BD1219)","v":6},{"$f":"IF('1. Order'!BE1219=\"\",\"\",'1. Order'!BE1219)","v":"None"},{"$f":"IF('1. Order'!BF1219=\"\",\"\",'1. Order'!BF1219)","v":"Parcel"},{"$f":"IF('1. Order'!BG1219=\"\",\"\",'1. Order'!BG1219)","v":"ZWO"}]
[{"$f":"IF('1. Order'!F1220=\"\",\"\",'1. Order'!F1220)","v":""},{"$f":"IF('1. Order'!G1220=\"\",\"\",'1. Order'!G1220)","v":""},{"$f":"IF('1. Order'!H1220=\"\",\"\",'1. Order'!H1220)","v":""},{"$f":"IF('1. Order'!I1220=\"\",\"\",'1. Order'!I1220)","v":""},{"$f":"IF('1. Order'!J1220=\"\",\"\",'1. Order'!J1220)","v":""},{"$f":"IF('1. Order'!K1220=\"\",\"\",'1. Order'!K1220)","v":""},{"$f":"IF('1. Order'!L1220=\"\",\"\",'1. Order'!L1220)","v":""},{"$f":"IF('1. Order'!M1220=\"\",\"\",'1. Order'!M1220)","v":""},{"$f":"IF('1. Order'!N1220=\"\",\"\",'1. Order'!N1220)","v":""},{"$f":"IF('1. Order'!O1220=\"\",\"\",'1. Order'!O1220)","v":{"$error":"#N/A"}},{"$f":"IF('1. Order'!P1220=\"\",\"\",'1. Order'!P1220)","v":{"$error":"#N/A"}},{"$f":"IF('1. Order'!Q1220=\"\",\"\",'1. Order'!Q1220)","v":""},{"$f":"IF('1. Order'!R1220=\"\",\"\",'1. Order'!R1220)","v":""},{"$f":"IF('1. Order'!S1220=\"\",\"\",'1. Order'!S1220)","v":""},{"$f":"IF('1. Order'!V1220=\"\",\"\",'1. Order'!V1220)","v":""},{"$f":"IF('1. Order'!W1220=\"\",\"\",'1. Order'!W1220)","v":""},{"$f":"IF('1. Order'!X1220=\"\",\"\",'1. Order'!X1220)","v":"EUR"},{"$f":"IF('1. Order'!Y1220=\"\",\"\",'1. Order'!Y1220)","v":""},{"$f":"IF('1. Order'!Z1220=\"\",\"\",'1. Order'!Z1220)","v":""},{"$f":"IF('1. Order'!AA1220=\"\",\"\",'1. Order'!AA1220)","v":""},null,{"$f":"IF('1. Order'!AS1220=\"\",\"\",'1. Order'!AS1220)","v":""},{"$f":"IF('1. Order'!AT1220=\"\",\"\",'1. Order'!AT1220)","v":""},null,null,null,null,null,null,null,{"$f":"IF('1. Order'!AX1220=\"\",\"\",'1. Order'!AX1220)","v":""},{"$f":"IF('1. Order'!AY1220=\"\",\"\",'1. Order'!AY1220)","v":""},{"$f":"IF('1. Order'!AZ1220=\"\",\"\",'1. Order'!AZ1220)","v":""},{"$f":"IF('1. Order'!BA1220=\"\",\"\",'1. Order'!BA1220)","v":""},{"$f":"IF('1. Order'!BC1220=\"\",\"\",'1. Order'!BC1220)","v":""},{"$f":"IF('1. Order'!BD1220=\"\",\"\",'1. Order'!BD1220)","v":6},{"$f":"IF('1. Order'!BE1220=\"\",\"\",'1. Order'!BE1220)","v":"None"},{"$f":"IF('1. Order'!BF1220=\"\",\"\",'1. Order'!BF1220)","v":"Parcel"},{"$f":"IF('1. Order'!BG1220=\"\",\"\",'1. Order'!BG1220)","v":"ZWO"}]
[{"$f":"IF('1. Order'!F1221=\"\",\"\",'1. Order'!F1221)","v":""},{"$f":"IF('1. Order'!G1221=\"\",\"\",'1. Order'!G1221)","v":""},{"$f":"IF('1. Order'!H1221=\"\",\"\",'1. Order'!H1221)","v":""},{"$f":"IF('1. Order'!I1221=\"\",\"\",'1. Order'!I1221)","v":""},{"$f":"IF('1. Order'!J1221=\"\",\"\",'1. Order'!J1221)","v":""},{"$f":"IF('1. Order'!K1221=\"\",\"\",'1. Order'!K1221)","v":""},{"$f":"IF('1. Order'!L1221=\"\",\"\",'1. Order'!L1221)","v":""},{"$f":"IF('1. Order'!M1221=\"\",\"\",'1. Order'!M1221)","v":""},{"$f":"IF('1. Order'!N1221=\"\",\"\",'1. Order'!N1221)","v":""},{"$f":"IF('1. Order'!O1221=\"\",\"\",'1. Order'!O1221)","v":{"$error":"#N/A"}},{"$f":"IF('1. Order'!P1221=\"\",\"\",'1. Order'!P1221)","v":{"$error":"#N/A"}},{"$f":"IF('1. Order'!Q1221=\"\",\"\",'1. Order'!Q1221)","v":""},{"$f":"IF('1. Order'!R1221=\"\",\"\",'1. Order'!R1221)","v":""},{"$f":"IF('1. Order'!S1221=\"\",\"\",'1. Order'!S1221)","v":""},{"$f":"IF('1. Order'!V1221=\"\",\"\",'1. Order'!V1221)","v":""},{"$f":"IF('1. Order'!W1221=\"\",\"\",'1. Order'!W1221)","v":""},{"$f":"IF('1. Order'!X1221=\"\",\"\",'1. Order'!X1221)","v":"EUR"},{"$f":"IF('1. Order'!Y1221=\"\",\"\",'1. Order'!Y1221)","v":""},{"$f":"IF('1. Order'!Z1221=\"\",\"\",'1. Order'!Z1221)","v":""},{"$f":"IF('1. Order'!AA1221=\"\",\"\",'1. Order'!AA1221)","v":""},null,{"$f":"IF('1. Order'!AS1221=\"\",\"\",'1. Order'!AS1221)","v":""},{"$f":"IF('1. Order'!AT1221=\"\",\"\",'1. Order'!AT1221)","v":""},null,null,null,null,null,null,null,{"$f":"IF('1. Order'!AX1221=\"\",\"\",'1. Order'!AX1221)","v":""},{"$f":"IF('1. Order'!AY1221=\"\",\"\",'1. Order'!AY1221)","v":""},{"$f":"IF('1. Order'!AZ1221=\"\",\"\",'1. Order'!AZ1221)","v":""},{"$f":"IF('1. Order'!BA1221=\"\",\"\",'1. Order'!BA1221)","v":""},{"$f":"IF('1. Order'!BC1221=\"\",\"\",'1. Order'!BC1221)","v":""},{"$f":"IF('1. Order'!BD1221=\"\",\"\",'1. Order'!BD1221)","v":6},{"$f":"IF('1. Order'!BE1221=\"\",\"\",'1. Order'!BE1221)","v":"None"},{"$f":"IF('1. Order'!BF1221=\"\",\"\",'1. Order'!BF1221)","v":"Parcel"},{"$f":"IF('1. Order'!BG1221=\"\",\"\",'1. Order'!BG1221)","v":"ZWO"}]
[{"$f":"IF('1. Order'!F1222=\"\",\"\",'1. Order'!F1222)","v":""},{"$f":"IF('1. Order'!G1222=\"\",\"\",'1. Order'!G1222)","v":""},{"$f":"IF('1. Order'!H1222=\"\",\"\",'1. Order'!H1222)","v":""},{"$f":"IF('1. Order'!I1222=\"\",\"\",'1. Order'!I1222)","v":""},{"$f":"IF('1. Order'!J1222=\"\",\"\",'1. Order'!J1222)","v":""},{"$f":"IF('1. Order'!K1222=\"\",\"\",'1. Order'!K1222)","v":""},{"$f":"IF('1. Order'!L1222=\"\",\"\",'1. Order'!L1222)","v":""},{"$f":"IF('1. Order'!M1222=\"\",\"\",'1. Order'!M1222)","v":""},{"$f":"IF('1. Order'!N1222=\"\",\"\",'1. Order'!N1222)","v":""},{"$f":"IF('1. Order'!O1222=\"\",\"\",'1. Order'!O1222)","v":{"$error":"#N/A"}},{"$f":"IF('1. Order'!P1222=\"\",\"\",'1. Order'!P1222)","v":{"$error":"#N/A"}},{"$f":"IF('1. Order'!Q1222=\"\",\"\",'1. Order'!Q1222)","v":""},{"$f":"IF('1. Order'!R1222=\"\",\"\",'1. Order'!R1222)","v":""},{"$f":"IF('1. Order'!S1222=\"\",\"\",'1. Order'!S1222)","v":""},{"$f":"IF('1. Order'!V1222=\"\",\"\",'1. Order'!V1222)","v":""},{"$f":"IF('1. Order'!W1222=\"\",\"\",'1. Order'!W1222)","v":""},{"$f":"IF('1. Order'!X1222=\"\",\"\",'1. Order'!X1222)","v":"EUR"},{"$f":"IF('1. Order'!Y1222=\"\",\"\",'1. Order'!Y1222)","v":""},{"$f":"IF('1. Order'!Z1222=\"\",\"\",'1. Order'!Z1222)","v":""},{"$f":"IF('1. Order'!AA1222=\"\",\"\",'1. Order'!AA1222)","v":""},null,{"$f":"IF('1. Order'!AS1222=\"\",\"\",'1. Order'!AS1222)","v":""},{"$f":"IF('1. Order'!AT1222=\"\",\"\",'1. Order'!AT1222)","v":""},null,null,null,null,null,null,null,{"$f":"IF('1. Order'!AX1222=\"\",\"\",'1. Order'!AX1222)","v":""},{"$f":"IF('1. Order'!AY1222=\"\",\"\",'1. Order'!AY1222)","v":""},{"$f":"IF('1. Order'!AZ1222=\"\",\"\",'1. Order'!AZ1222)","v":""},{"$f":"IF('1. Order'!BA1222=\"\",\"\",'1. Order'!BA1222)","v":""},{"$f":"IF('1. Order'!BC1222=\"\",\"\",'1. Order'!BC1222)","v":""},{"$f":"IF('1. Order'!BD1222=\"\",\"\",'1. Order'!BD1222)","v":6},{"$f":"IF('1. Order'!BE1222=\"\",\"\",'1. Order'!BE1222)","v":"None"},{"$f":"IF('1. Order'!BF1222=\"\",\"\",'1. Order'!BF1222)","v":"Parcel"},{"$f":"IF('1. Order'!BG1222=\"\",\"\",'1. Order'!BG1222)","v":"ZWO"}]
[{"$f":"IF('1. Order'!F1223=\"\",\"\",'1. Order'!F1223)","v":""},{"$f":"IF('1. Order'!G1223=\"\",\"\",'1. Order'!G1223)","v":""},{"$f":"IF('1. Order'!H1223=\"\",\"\",'1. Order'!H1223)","v":""},{"$f":"IF('1. Order'!I1223=\"\",\"\",'1. Order'!I1223)","v":""},{"$f":"IF('1. Order'!J1223=\"\",\"\",'1. Order'!J1223)","v":""},{"$f":"IF('1. Order'!K1223=\"\",\"\",'1. Order'!K1223)","v":""},{"$f":"IF('1. Order'!L1223=\"\",\"\",'1. Order'!L1223)","v":""},{"$f":"IF('1. Order'!M1223=\"\",\"\",'1. Order'!M1223)","v":""},{"$f":"IF('1. Order'!N1223=\"\",\"\",'1. Order'!N1223)","v":""},{"$f":"IF('1. Order'!O1223=\"\",\"\",'1. Order'!O1223)","v":{"$error":"#N/A"}},{"$f":"IF('1. Order'!P1223=\"\",\"\",'1. Order'!P1223)","v":{"$error":"#N/A"}},{"$f":"IF('1. Order'!Q1223=\"\",\"\",'1. Order'!Q1223)","v":""},{"$f":"IF('1. Order'!R1223=\"\",\"\",'1. Order'!R1223)","v":""},{"$f":"IF('1. Order'!S1223=\"\",\"\",'1. Order'!S1223)","v":""},{"$f":"IF('1. Order'!V1223=\"\",\"\",'1. Order'!V1223)","v":""},{"$f":"IF('1. Order'!W1223=\"\",\"\",'1. Order'!W1223)","v":""},{"$f":"IF('1. Order'!X1223=\"\",\"\",'1. Order'!X1223)","v":"EUR"},{"$f":"IF('1. Order'!Y1223=\"\",\"\",'1. Order'!Y1223)","v":""},{"$f":"IF('1. Order'!Z1223=\"\",\"\",'1. Order'!Z1223)","v":""},{"$f":"IF('1. Order'!AA1223=\"\",\"\",'1. Order'!AA1223)","v":""},null,{"$f":"IF('1. Order'!AS1223=\"\",\"\",'1. Order'!AS1223)","v":""},{"$f":"IF('1. Order'!AT1223=\"\",\"\",'1. Order'!AT1223)","v":""},null,null,null,null,null,null,null,{"$f":"IF('1. Order'!AX1223=\"\",\"\",'1. Order'!AX1223)","v":""},{"$f":"IF('1. Order'!AY1223=\"\",\"\",'1. Order'!AY1223)","v":""},{"$f":"IF('1. Order'!AZ1223=\"\",\"\",'1. Order'!AZ1223)","v":""},{"$f":"IF('1. Order'!BA1223=\"\",\"\",'1. Order'!BA1223)","v":""},{"$f":"IF('1. Order'!BC1223=\"\",\"\",'1. Order'!BC1223)","v":""},{"$f":"IF('1. Order'!BD1223=\"\",\"\",'1. Order'!BD1223)","v":6},{"$f":"IF('1. Order'!BE1223=\"\",\"\",'1. Order'!BE1223)","v":"None"},{"$f":"IF('1. Order'!BF1223=\"\",\"\",'1. Order'!BF1223)","v":"Parcel"},{"$f":"IF('1. Order'!BG1223=\"\",\"\",'1. Order'!BG1223)","v":"ZWO"}]
[{"$f":"IF('1. Order'!F1224=\"\",\"\",'1. Order'!F1224)","v":""},{"$f":"IF('1. Order'!G1224=\"\",\"\",'1. Order'!G1224)","v":""},{"$f":"IF('1. Order'!H1224=\"\",\"\",'1. Order'!H1224)","v":""},{"$f":"IF('1. Order'!I1224=\"\",\"\",'1. Order'!I1224)","v":""},{"$f":"IF('1. Order'!J1224=\"\",\"\",'1. Order'!J1224)","v":""},{"$f":"IF('1. Order'!K1224=\"\",\"\",'1. Order'!K1224)","v":""},{"$f":"IF('1. Order'!L1224=\"\",\"\",'1. Order'!L1224)","v":""},{"$f":"IF('1. Order'!M1224=\"\",\"\",'1. Order'!M1224)","v":""},{"$f":"IF('1. Order'!N1224=\"\",\"\",'1. Order'!N1224)","v":""},{"$f":"IF('1. Order'!O1224=\"\",\"\",'1. Order'!O1224)","v":{"$error":"#N/A"}},{"$f":"IF('1. Order'!P1224=\"\",\"\",'1. Order'!P1224)","v":{"$error":"#N/A"}},{"$f":"IF('1. Order'!Q1224=\"\",\"\",'1. Order'!Q1224)","v":""},{"$f":"IF('1. Order'!R1224=\"\",\"\",'1. Order'!R1224)","v":""},{"$f":"IF('1. Order'!S1224=\"\",\"\",'1. Order'!S1224)","v":""},{"$f":"IF('1. Order'!V1224=\"\",\"\",'1. Order'!V1224)","v":""},{"$f":"IF('1. Order'!W1224=\"\",\"\",'1. Order'!W1224)","v":""},{"$f":"IF('1. Order'!X1224=\"\",\"\",'1. Order'!X1224)","v":"EUR"},{"$f":"IF('1. Order'!Y1224=\"\",\"\",'1. Order'!Y1224)","v":""},{"$f":"IF('1. Order'!Z1224=\"\",\"\",'1. Order'!Z1224)","v":""},{"$f":"IF('1. Order'!AA1224=\"\",\"\",'1. Order'!AA1224)","v":""},null,{"$f":"IF('1. Order'!AS1224=\"\",\"\",'1. Order'!AS1224)","v":""},{"$f":"IF('1. Order'!AT1224=\"\",\"\",'1. Order'!AT1224)","v":""},null,null,null,null,null,null,null,{"$f":"IF('1. Order'!AX1224=\"\",\"\",'1. Order'!AX1224)","v":""},{"$f":"IF('1. Order'!AY1224=\"\",\"\",'1. Order'!AY1224)","v":""},{"$f":"IF('1. Order'!AZ1224=\"\",\"\",'1. Order'!AZ1224)","v":""},{"$f":"IF('1. Order'!BA1224=\"\",\"\",'1. Order'!BA1224)","v":""},{"$f":"IF('1. Order'!BC1224=\"\",\"\",'1. Order'!BC1224)","v":""},{"$f":"IF('1. Order'!BD1224=\"\",\"\",'1. Order'!BD1224)","v":6},{"$f":"IF('1. Order'!BE1224=\"\",\"\",'1. Order'!BE1224)","v":"None"},{"$f":"IF('1. Order'!BF1224=\"\",\"\",'1. Order'!BF1224)","v":"Parcel"},{"$f":"IF('1. Order'!BG1224=\"\",\"\",'1. Order'!BG1224)","v":"ZWO"}]
[{"$f":"IF('1. Order'!F1225=\"\",\"\",'1. Order'!F1225)","v":""},{"$f":"IF('1. Order'!G1225=\"\",\"\",'1. Order'!G1225)","v":""},{"$f":"IF('1. Order'!H1225=\"\",\"\",'1. Order'!H1225)","v":""},{"$f":"IF('1. Order'!I1225=\"\",\"\",'1. Order'!I1225)","v":""},{"$f":"IF('1. Order'!J1225=\"\",\"\",'1. Order'!J1225)","v":""},{"$f":"IF('1. Order'!K1225=\"\",\"\",'1. Order'!K1225)","v":""},{"$f":"IF('1. Order'!L1225=\"\",\"\",'1. Order'!L1225)","v":""},{"$f":"IF('1. Order'!M1225=\"\",\"\",'1. Order'!M1225)","v":""},{"$f":"IF('1. Order'!N1225=\"\",\"\",'1. Order'!N1225)","v":""},{"$f":"IF('1. Order'!O1225=\"\",\"\",'1. Order'!O1225)","v":{"$error":"#N/A"}},{"$f":"IF('1. Order'!P1225=\"\",\"\",'1. Order'!P1225)","v":{"$error":"#N/A"}},{"$f":"IF('1. Order'!Q1225=\"\",\"\",'1. Order'!Q1225)","v":""},{"$f":"IF('1. Order'!R1225=\"\",\"\",'1. Order'!R1225)","v":""},{"$f":"IF('1. Order'!S1225=\"\",\"\",'1. Order'!S1225)","v":""},{"$f":"IF('1. Order'!V1225=\"\",\"\",'1. Order'!V1225)","v":""},{"$f":"IF('1. Order'!W1225=\"\",\"\",'1. Order'!W1225)","v":""},{"$f":"IF('1. Order'!X1225=\"\",\"\",'1. Order'!X1225)","v":"EUR"},{"$f":"IF('1. Order'!Y1225=\"\",\"\",'1. Order'!Y1225)","v":""},{"$f":"IF('1. Order'!Z1225=\"\",\"\",'1. Order'!Z1225)","v":""},{"$f":"IF('1. Order'!AA1225=\"\",\"\",'1. Order'!AA1225)","v":""},null,{"$f":"IF('1. Order'!AS1225=\"\",\"\",'1. Order'!AS1225)","v":""},{"$f":"IF('1. Order'!AT1225=\"\",\"\",'1. Order'!AT1225)","v":""},null,null,null,null,null,null,null,{"$f":"IF('1. Order'!AX1225=\"\",\"\",'1. Order'!AX1225)","v":""},{"$f":"IF('1. Order'!AY1225=\"\",\"\",'1. Order'!AY1225)","v":""},{"$f":"IF('1. Order'!AZ1225=\"\",\"\",'1. Order'!AZ1225)","v":""},{"$f":"IF('1. Order'!BA1225=\"\",\"\",'1. Order'!BA1225)","v":""},{"$f":"IF('1. Order'!BC1225=\"\",\"\",'1. Order'!BC1225)","v":""},{"$f":"IF('1. Order'!BD1225=\"\",\"\",'1. Order'!BD1225)","v":6},{"$f":"IF('1. Order'!BE1225=\"\",\"\",'1. Order'!BE1225)","v":"None"},{"$f":"IF('1. Order'!BF1225=\"\",\"\",'1. Order'!BF1225)","v":"Parcel"},{"$f":"IF('1. Order'!BG1225=\"\",\"\",'1. Order'!BG1225)","v":"ZWO"}]
[{"$f":"IF('1. Order'!F1226=\"\",\"\",'1. Order'!F1226)","v":""},{"$f":"IF('1. Order'!G1226=\"\",\"\",'1. Order'!G1226)","v":""},{"$f":"IF('1. Order'!H1226=\"\",\"\",'1. Order'!H1226)","v":""},{"$f":"IF('1. Order'!I1226=\"\",\"\",'1. Order'!I1226)","v":""},{"$f":"IF('1. Order'!J1226=\"\",\"\",'1. Order'!J1226)","v":""},{"$f":"IF('1. Order'!K1226=\"\",\"\",'1. Order'!K1226)","v":""},{"$f":"IF('1. Order'!L1226=\"\",\"\",'1. Order'!L1226)","v":""},{"$f":"IF('1. Order'!M1226=\"\",\"\",'1. Order'!M1226)","v":""},{"$f":"IF('1. Order'!N1226=\"\",\"\",'1. Order'!N1226)","v":""},{"$f":"IF('1. Order'!O1226=\"\",\"\",'1. Order'!O1226)","v":{"$error":"#N/A"}},{"$f":"IF('1. Order'!P1226=\"\",\"\",'1. Order'!P1226)","v":{"$error":"#N/A"}},{"$f":"IF('1. Order'!Q1226=\"\",\"\",'1. Order'!Q1226)","v":""},{"$f":"IF('1. Order'!R1226=\"\",\"\",'1. Order'!R1226)","v":""},{"$f":"IF('1. Order'!S1226=\"\",\"\",'1. Order'!S1226)","v":""},{"$f":"IF('1. Order'!V1226=\"\",\"\",'1. Order'!V1226)","v":""},{"$f":"IF('1. Order'!W1226=\"\",\"\",'1. Order'!W1226)","v":""},{"$f":"IF('1. Order'!X1226=\"\",\"\",'1. Order'!X1226)","v":"EUR"},{"$f":"IF('1. Order'!Y1226=\"\",\"\",'1. Order'!Y1226)","v":""},{"$f":"IF('1. Order'!Z1226=\"\",\"\",'1. Order'!Z1226)","v":""},{"$f":"IF('1. Order'!AA1226=\"\",\"\",'1. Order'!AA1226)","v":""},null,{"$f":"IF('1. Order'!AS1226=\"\",\"\",'1. Order'!AS1226)","v":""},{"$f":"IF('1. Order'!AT1226=\"\",\"\",'1. Order'!AT1226)","v":""},null,null,null,null,null,null,null,{"$f":"IF('1. Order'!AX1226=\"\",\"\",'1. Order'!AX1226)","v":""},{"$f":"IF('1. Order'!AY1226=\"\",\"\",'1. Order'!AY1226)","v":""},{"$f":"IF('1. Order'!AZ1226=\"\",\"\",'1. Order'!AZ1226)","v":""},{"$f":"IF('1. Order'!BA1226=\"\",\"\",'1. Order'!BA1226)","v":""},{"$f":"IF('1. Order'!BC1226=\"\",\"\",'1. Order'!BC1226)","v":""},{"$f":"IF('1. Order'!BD1226=\"\",\"\",'1. Order'!BD1226)","v":6},{"$f":"IF('1. Order'!BE1226=\"\",\"\",'1. Order'!BE1226)","v":"None"},{"$f":"IF('1. Order'!BF1226=\"\",\"\",'1. Order'!BF1226)","v":"Parcel"},{"$f":"IF('1. Order'!BG1226=\"\",\"\",'1. Order'!BG1226)","v":"ZWO"}]
[{"$f":"IF('1. Order'!F1227=\"\",\"\",'1. Order'!F1227)","v":""},{"$f":"IF('1. Order'!G1227=\"\",\"\",'1. Order'!G1227)","v":""},{"$f":"IF('1. Order'!H1227=\"\",\"\",'1. Order'!H1227)","v":""},{"$f":"IF('1. Order'!I1227=\"\",\"\",'1. Order'!I1227)","v":""},{"$f":"IF('1. Order'!J1227=\"\",\"\",'1. Order'!J1227)","v":""},{"$f":"IF('1. Order'!K1227=\"\",\"\",'1. Order'!K1227)","v":""},{"$f":"IF('1. Order'!L1227=\"\",\"\",'1. Order'!L1227)","v":""},{"$f":"IF('1. Order'!M1227=\"\",\"\",'1. Order'!M1227)","v":""},{"$f":"IF('1. Order'!N1227=\"\",\"\",'1. Order'!N1227)","v":""},{"$f":"IF('1. Order'!O1227=\"\",\"\",'1. Order'!O1227)","v":{"$error":"#N/A"}},{"$f":"IF('1. Order'!P1227=\"\",\"\",'1. Order'!P1227)","v":{"$error":"#N/A"}},{"$f":"IF('1. Order'!Q1227=\"\",\"\",'1. Order'!Q1227)","v":""},{"$f":"IF('1. Order'!R1227=\"\",\"\",'1. Order'!R1227)","v":""},{"$f":"IF('1. Order'!S1227=\"\",\"\",'1. Order'!S1227)","v":""},{"$f":"IF('1. Order'!V1227=\"\",\"\",'1. Order'!V1227)","v":""},{"$f":"IF('1. Order'!W1227=\"\",\"\",'1. Order'!W1227)","v":""},{"$f":"IF('1. Order'!X1227=\"\",\"\",'1. Order'!X1227)","v":"EUR"},{"$f":"IF('1. Order'!Y1227=\"\",\"\",'1. Order'!Y1227)","v":""},{"$f":"IF('1. Order'!Z1227=\"\",\"\",'1. Order'!Z1227)","v":""},{"$f":"IF('1. Order'!AA1227=\"\",\"\",'1. Order'!AA1227)","v":""},null,{"$f":"IF('1. Order'!AS1227=\"\",\"\",'1. Order'!AS1227)","v":""},{"$f":"IF('1. Order'!AT1227=\"\",\"\",'1. Order'!AT1227)","v":""},null,null,null,null,null,null,null,{"$f":"IF('1. Order'!AX1227=\"\",\"\",'1. Order'!AX1227)","v":""},{"$f":"IF('1. Order'!AY1227=\"\",\"\",'1. Order'!AY1227)","v":""},{"$f":"IF('1. Order'!AZ1227=\"\",\"\",'1. Order'!AZ1227)","v":""},{"$f":"IF('1. Order'!BA1227=\"\",\"\",'1. Order'!BA1227)","v":""},{"$f":"IF('1. Order'!BC1227=\"\",\"\",'1. Order'!BC1227)","v":""},{"$f":"IF('1. Order'!BD1227=\"\",\"\",'1. Order'!BD1227)","v":6},{"$f":"IF('1. Order'!BE1227=\"\",\"\",'1. Order'!BE1227)","v":"None"},{"$f":"IF('1. Order'!BF1227=\"\",\"\",'1. Order'!BF1227)","v":"Parcel"},{"$f":"IF('1. Order'!BG1227=\"\",\"\",'1. Order'!BG1227)","v":"ZWO"}]
[{"$f":"IF('1. Order'!F1228=\"\",\"\",'1. Order'!F1228)","v":""},{"$f":"IF('1. Order'!G1228=\"\",\"\",'1. Order'!G1228)","v":""},{"$f":"IF('1. Order'!H1228=\"\",\"\",'1. Order'!H1228)","v":""},{"$f":"IF('1. Order'!I1228=\"\",\"\",'1. Order'!I1228)","v":""},{"$f":"IF('1. Order'!J1228=\"\",\"\",'1. Order'!J1228)","v":""},{"$f":"IF('1. Order'!K1228=\"\",\"\",'1. Order'!K1228)","v":""},{"$f":"IF('1. Order'!L1228=\"\",\"\",'1. Order'!L1228)","v":""},{"$f":"IF('1. Order'!M1228=\"\",\"\",'1. Order'!M1228)","v":""},{"$f":"IF('1. Order'!N1228=\"\",\"\",'1. Order'!N1228)","v":""},{"$f":"IF('1. Order'!O1228=\"\",\"\",'1. Order'!O1228)","v":{"$error":"#N/A"}},{"$f":"IF('1. Order'!P1228=\"\",\"\",'1. Order'!P1228)","v":{"$error":"#N/A"}},{"$f":"IF('1. Order'!Q1228=\"\",\"\",'1. Order'!Q1228)","v":""},{"$f":"IF('1. Order'!R1228=\"\",\"\",'1. Order'!R1228)","v":""},{"$f":"IF('1. Order'!S1228=\"\",\"\",'1. Order'!S1228)","v":""},{"$f":"IF('1. Order'!V1228=\"\",\"\",'1. Order'!V1228)","v":""},{"$f":"IF('1. Order'!W1228=\"\",\"\",'1. Order'!W1228)","v":""},{"$f":"IF('1. Order'!X1228=\"\",\"\",'1. Order'!X1228)","v":"EUR"},{"$f":"IF('1. Order'!Y1228=\"\",\"\",'1. Order'!Y1228)","v":""},{"$f":"IF('1. Order'!Z1228=\"\",\"\",'1. Order'!Z1228)","v":""},{"$f":"IF('1. Order'!AA1228=\"\",\"\",'1. Order'!AA1228)","v":""},null,{"$f":"IF('1. Order'!AS1228=\"\",\"\",'1. Order'!AS1228)","v":""},{"$f":"IF('1. Order'!AT1228=\"\",\"\",'1. Order'!AT1228)","v":""},null,null,null,null,null,null,null,{"$f":"IF('1. Order'!AX1228=\"\",\"\",'1. Order'!AX1228)","v":""},{"$f":"IF('1. Order'!AY1228=\"\",\"\",'1. Order'!AY1228)","v":""},{"$f":"IF('1. Order'!AZ1228=\"\",\"\",'1. Order'!AZ1228)","v":""},{"$f":"IF('1. Order'!BA1228=\"\",\"\",'1. Order'!BA1228)","v":""},{"$f":"IF('1. Order'!BC1228=\"\",\"\",'1. Order'!BC1228)","v":""},{"$f":"IF('1. Order'!BD1228=\"\",\"\",'1. Order'!BD1228)","v":6},{"$f":"IF('1. Order'!BE1228=\"\",\"\",'1. Order'!BE1228)","v":"None"},{"$f":"IF('1. Order'!BF1228=\"\",\"\",'1. Order'!BF1228)","v":"Parcel"},{"$f":"IF('1. Order'!BG1228=\"\",\"\",'1. Order'!BG1228)","v":"ZWO"}]
[{"$f":"IF('1. Order'!F1229=\"\",\"\",'1. Order'!F1229)","v":""},{"$f":"IF('1. Order'!G1229=\"\",\"\",'1. Order'!G1229)","v":""},{"$f":"IF('1. Order'!H1229=\"\",\"\",'1. Order'!H1229)","v":""},{"$f":"IF('1. Order'!I1229=\"\",\"\",'1. Order'!I1229)","v":""},{"$f":"IF('1. Order'!J1229=\"\",\"\",'1. Order'!J1229)","v":""},{"$f":"IF('1. Order'!K1229=\"\",\"\",'1. Order'!K1229)","v":""},{"$f":"IF('1. Order'!L1229=\"\",\"\",'1. Order'!L1229)","v":""},{"$f":"IF('1. Order'!M1229=\"\",\"\",'1. Order'!M1229)","v":""},{"$f":"IF('1. Order'!N1229=\"\",\"\",'1. Order'!N1229)","v":""},{"$f":"IF('1. Order'!O1229=\"\",\"\",'1. Order'!O1229)","v":{"$error":"#N/A"}},{"$f":"IF('1. Order'!P1229=\"\",\"\",'1. Order'!P1229)","v":{"$error":"#N/A"}},{"$f":"IF('1. Order'!Q1229=\"\",\"\",'1. Order'!Q1229)","v":""},{"$f":"IF('1. Order'!R1229=\"\",\"\",'1. Order'!R1229)","v":""},{"$f":"IF('1. Order'!S1229=\"\",\"\",'1. Order'!S1229)","v":""},{"$f":"IF('1. Order'!V1229=\"\",\"\",'1. Order'!V1229)","v":""},{"$f":"IF('1. Order'!W1229=\"\",\"\",'1. Order'!W1229)","v":""},{"$f":"IF('1. Order'!X1229=\"\",\"\",'1. Order'!X1229)","v":"EUR"},{"$f":"IF('1. Order'!Y1229=\"\",\"\",'1. Order'!Y1229)","v":""},{"$f":"IF('1. Order'!Z1229=\"\",\"\",'1. Order'!Z1229)","v":""},{"$f":"IF('1. Order'!AA1229=\"\",\"\",'1. Order'!AA1229)","v":""},null,{"$f":"IF('1. Order'!AS1229=\"\",\"\",'1. Order'!AS1229)","v":""},{"$f":"IF('1. Order'!AT1229=\"\",\"\",'1. Order'!AT1229)","v":""},null,null,null,null,null,null,null,{"$f":"IF('1. Order'!AX1229=\"\",\"\",'1. Order'!AX1229)","v":""},{"$f":"IF('1. Order'!AY1229=\"\",\"\",'1. Order'!AY1229)","v":""},{"$f":"IF('1. Order'!AZ1229=\"\",\"\",'1. Order'!AZ1229)","v":""},{"$f":"IF('1. Order'!BA1229=\"\",\"\",'1. Order'!BA1229)","v":""},{"$f":"IF('1. Order'!BC1229=\"\",\"\",'1. Order'!BC1229)","v":""},{"$f":"IF('1. Order'!BD1229=\"\",\"\",'1. Order'!BD1229)","v":6},{"$f":"IF('1. Order'!BE1229=\"\",\"\",'1. Order'!BE1229)","v":"None"},{"$f":"IF('1. Order'!BF1229=\"\",\"\",'1. Order'!BF1229)","v":"Parcel"},{"$f":"IF('1. Order'!BG1229=\"\",\"\",'1. Order'!BG1229)","v":"ZWO"}]
[{"$f":"IF('1. Order'!F1230=\"\",\"\",'1. Order'!F1230)","v":""},{"$f":"IF('1. Order'!G1230=\"\",\"\",'1. Order'!G1230)","v":""},{"$f":"IF('1. Order'!H1230=\"\",\"\",'1. Order'!H1230)","v":""},{"$f":"IF('1. Order'!I1230=\"\",\"\",'1. Order'!I1230)","v":""},{"$f":"IF('1. Order'!J1230=\"\",\"\",'1. Order'!J1230)","v":""},{"$f":"IF('1. Order'!K1230=\"\",\"\",'1. Order'!K1230)","v":""},{"$f":"IF('1. Order'!L1230=\"\",\"\",'1. Order'!L1230)","v":""},{"$f":"IF('1. Order'!M1230=\"\",\"\",'1. Order'!M1230)","v":""},{"$f":"IF('1. Order'!N1230=\"\",\"\",'1. Order'!N1230)","v":""},{"$f":"IF('1. Order'!O1230=\"\",\"\",'1. Order'!O1230)","v":{"$error":"#N/A"}},{"$f":"IF('1. Order'!P1230=\"\",\"\",'1. Order'!P1230)","v":{"$error":"#N/A"}},{"$f":"IF('1. Order'!Q1230=\"\",\"\",'1. Order'!Q1230)","v":""},{"$f":"IF('1. Order'!R1230=\"\",\"\",'1. Order'!R1230)","v":""},{"$f":"IF('1. Order'!S1230=\"\",\"\",'1. Order'!S1230)","v":""},{"$f":"IF('1. Order'!V1230=\"\",\"\",'1. Order'!V1230)","v":""},{"$f":"IF('1. Order'!W1230=\"\",\"\",'1. Order'!W1230)","v":""},{"$f":"IF('1. Order'!X1230=\"\",\"\",'1. Order'!X1230)","v":"EUR"},{"$f":"IF('1. Order'!Y1230=\"\",\"\",'1. Order'!Y1230)","v":""},{"$f":"IF('1. Order'!Z1230=\"\",\"\",'1. Order'!Z1230)","v":""},{"$f":"IF('1. Order'!AA1230=\"\",\"\",'1. Order'!AA1230)","v":""},null,{"$f":"IF('1. Order'!AS1230=\"\",\"\",'1. Order'!AS1230)","v":""},{"$f":"IF('1. Order'!AT1230=\"\",\"\",'1. Order'!AT1230)","v":""},null,null,null,null,null,null,null,{"$f":"IF('1. Order'!AX1230=\"\",\"\",'1. Order'!AX1230)","v":""},{"$f":"IF('1. Order'!AY1230=\"\",\"\",'1. Order'!AY1230)","v":""},{"$f":"IF('1. Order'!AZ1230=\"\",\"\",'1. Order'!AZ1230)","v":""},{"$f":"IF('1. Order'!BA1230=\"\",\"\",'1. Order'!BA1230)","v":""},{"$f":"IF('1. Order'!BC1230=\"\",\"\",'1. Order'!BC1230)","v":""},{"$f":"IF('1. Order'!BD1230=\"\",\"\",'1. Order'!BD1230)","v":6},{"$f":"IF('1. Order'!BE1230=\"\",\"\",'1. Order'!BE1230)","v":"None"},{"$f":"IF('1. Order'!BF1230=\"\",\"\",'1. Order'!BF1230)","v":"Parcel"},{"$f":"IF('1. Order'!BG1230=\"\",\"\",'1. Order'!BG1230)","v":"ZWO"}]
[{"$f":"IF('1. Order'!F1231=\"\",\"\",'1. Order'!F1231)","v":""},{"$f":"IF('1. Order'!G1231=\"\",\"\",'1. Order'!G1231)","v":""},{"$f":"IF('1. Order'!H1231=\"\",\"\",'1. Order'!H1231)","v":""},{"$f":"IF('1. Order'!I1231=\"\",\"\",'1. Order'!I1231)","v":""},{"$f":"IF('1. Order'!J1231=\"\",\"\",'1. Order'!J1231)","v":""},{"$f":"IF('1. Order'!K1231=\"\",\"\",'1. Order'!K1231)","v":""},{"$f":"IF('1. Order'!L1231=\"\",\"\",'1. Order'!L1231)","v":""},{"$f":"IF('1. Order'!M1231=\"\",\"\",'1. Order'!M1231)","v":""},{"$f":"IF('1. Order'!N1231=\"\",\"\",'1. Order'!N1231)","v":""},{"$f":"IF('1. Order'!O1231=\"\",\"\",'1. Order'!O1231)","v":{"$error":"#N/A"}},{"$f":"IF('1. Order'!P1231=\"\",\"\",'1. Order'!P1231)","v":{"$error":"#N/A"}},{"$f":"IF('1. Order'!Q1231=\"\",\"\",'1. Order'!Q1231)","v":""},{"$f":"IF('1. Order'!R1231=\"\",\"\",'1. Order'!R1231)","v":""},{"$f":"IF('1. Order'!S1231=\"\",\"\",'1. Order'!S1231)","v":""},{"$f":"IF('1. Order'!V1231=\"\",\"\",'1. Order'!V1231)","v":""},{"$f":"IF('1. Order'!W1231=\"\",\"\",'1. Order'!W1231)","v":""},{"$f":"IF('1. Order'!X1231=\"\",\"\",'1. Order'!X1231)","v":"EUR"},{"$f":"IF('1. Order'!Y1231=\"\",\"\",'1. Order'!Y1231)","v":""},{"$f":"IF('1. Order'!Z1231=\"\",\"\",'1. Order'!Z1231)","v":""},{"$f":"IF('1. Order'!AA1231=\"\",\"\",'1. Order'!AA1231)","v":""},null,{"$f":"IF('1. Order'!AS1231=\"\",\"\",'1. Order'!AS1231)","v":""},{"$f":"IF('1. Order'!AT1231=\"\",\"\",'1. Order'!AT1231)","v":""},null,null,null,null,null,null,null,{"$f":"IF('1. Order'!AX1231=\"\",\"\",'1. Order'!AX1231)","v":""},{"$f":"IF('1. Order'!AY1231=\"\",\"\",'1. Order'!AY1231)","v":""},{"$f":"IF('1. Order'!AZ1231=\"\",\"\",'1. Order'!AZ1231)","v":""},{"$f":"IF('1. Order'!BA1231=\"\",\"\",'1. Order'!BA1231)","v":""},{"$f":"IF('1. Order'!BC1231=\"\",\"\",'1. Order'!BC1231)","v":""},{"$f":"IF('1. Order'!BD1231=\"\",\"\",'1. Order'!BD1231)","v":6},{"$f":"IF('1. Order'!BE1231=\"\",\"\",'1. Order'!BE1231)","v":"None"},{"$f":"IF('1. Order'!BF1231=\"\",\"\",'1. Order'!BF1231)","v":"Parcel"},{"$f":"IF('1. Order'!BG1231=\"\",\"\",'1. Order'!BG1231)","v":"ZWO"}]
[{"$f":"IF('1. Order'!F1232=\"\",\"\",'1. Order'!F1232)","v":""},{"$f":"IF('1. Order'!G1232=\"\",\"\",'1. Order'!G1232)","v":""},{"$f":"IF('1. Order'!H1232=\"\",\"\",'1. Order'!H1232)","v":""},{"$f":"IF('1. Order'!I1232=\"\",\"\",'1. Order'!I1232)","v":""},{"$f":"IF('1. Order'!J1232=\"\",\"\",'1. Order'!J1232)","v":""},{"$f":"IF('1. Order'!K1232=\"\",\"\",'1. Order'!K1232)","v":""},{"$f":"IF('1. Order'!L1232=\"\",\"\",'1. Order'!L1232)","v":""},{"$f":"IF('1. Order'!M1232=\"\",\"\",'1. Order'!M1232)","v":""},{"$f":"IF('1. Order'!N1232=\"\",\"\",'1. Order'!N1232)","v":""},{"$f":"IF('1. Order'!O1232=\"\",\"\",'1. Order'!O1232)","v":{"$error":"#N/A"}},{"$f":"IF('1. Order'!P1232=\"\",\"\",'1. Order'!P1232)","v":{"$error":"#N/A"}},{"$f":"IF('1. Order'!Q1232=\"\",\"\",'1. Order'!Q1232)","v":""},{"$f":"IF('1. Order'!R1232=\"\",\"\",'1. Order'!R1232)","v":""},{"$f":"IF('1. Order'!S1232=\"\",\"\",'1. Order'!S1232)","v":""},{"$f":"IF('1. Order'!V1232=\"\",\"\",'1. Order'!V1232)","v":""},{"$f":"IF('1. Order'!W1232=\"\",\"\",'1. Order'!W1232)","v":""},{"$f":"IF('1. Order'!X1232=\"\",\"\",'1. Order'!X1232)","v":"EUR"},{"$f":"IF('1. Order'!Y1232=\"\",\"\",'1. Order'!Y1232)","v":""},{"$f":"IF('1. Order'!Z1232=\"\",\"\",'1. Order'!Z1232)","v":""},{"$f":"IF('1. Order'!AA1232=\"\",\"\",'1. Order'!AA1232)","v":""},null,{"$f":"IF('1. Order'!AS1232=\"\",\"\",'1. Order'!AS1232)","v":""},{"$f":"IF('1. Order'!AT1232=\"\",\"\",'1. Order'!AT1232)","v":""},null,null,null,null,null,null,null,{"$f":"IF('1. Order'!AX1232=\"\",\"\",'1. Order'!AX1232)","v":""},{"$f":"IF('1. Order'!AY1232=\"\",\"\",'1. Order'!AY1232)","v":""},{"$f":"IF('1. Order'!AZ1232=\"\",\"\",'1. Order'!AZ1232)","v":""},{"$f":"IF('1. Order'!BA1232=\"\",\"\",'1. Order'!BA1232)","v":""},{"$f":"IF('1. Order'!BC1232=\"\",\"\",'1. Order'!BC1232)","v":""},{"$f":"IF('1. Order'!BD1232=\"\",\"\",'1. Order'!BD1232)","v":6},{"$f":"IF('1. Order'!BE1232=\"\",\"\",'1. Order'!BE1232)","v":"None"},{"$f":"IF('1. Order'!BF1232=\"\",\"\",'1. Order'!BF1232)","v":"Parcel"},{"$f":"IF('1. Order'!BG1232=\"\",\"\",'1. Order'!BG1232)","v":"ZWO"}]
[{"$f":"IF('1. Order'!F1233=\"\",\"\",'1. Order'!F1233)","v":""},{"$f":"IF('1. Order'!G1233=\"\",\"\",'1. Order'!G1233)","v":""},{"$f":"IF('1. Order'!H1233=\"\",\"\",'1. Order'!H1233)","v":""},{"$f":"IF('1. Order'!I1233=\"\",\"\",'1. Order'!I1233)","v":""},{"$f":"IF('1. Order'!J1233=\"\",\"\",'1. Order'!J1233)","v":""},{"$f":"IF('1. Order'!K1233=\"\",\"\",'1. Order'!K1233)","v":""},{"$f":"IF('1. Order'!L1233=\"\",\"\",'1. Order'!L1233)","v":""},{"$f":"IF('1. Order'!M1233=\"\",\"\",'1. Order'!M1233)","v":""},{"$f":"IF('1. Order'!N1233=\"\",\"\",'1. Order'!N1233)","v":""},{"$f":"IF('1. Order'!O1233=\"\",\"\",'1. Order'!O1233)","v":{"$error":"#N/A"}},{"$f":"IF('1. Order'!P1233=\"\",\"\",'1. Order'!P1233)","v":{"$error":"#N/A"}},{"$f":"IF('1. Order'!Q1233=\"\",\"\",'1. Order'!Q1233)","v":""},{"$f":"IF('1. Order'!R1233=\"\",\"\",'1. Order'!R1233)","v":""},{"$f":"IF('1. Order'!S1233=\"\",\"\",'1. Order'!S1233)","v":""},{"$f":"IF('1. Order'!V1233=\"\",\"\",'1. Order'!V1233)","v":""},{"$f":"IF('1. Order'!W1233=\"\",\"\",'1. Order'!W1233)","v":""},{"$f":"IF('1. Order'!X1233=\"\",\"\",'1. Order'!X1233)","v":"EUR"},{"$f":"IF('1. Order'!Y1233=\"\",\"\",'1. Order'!Y1233)","v":""},{"$f":"IF('1. Order'!Z1233=\"\",\"\",'1. Order'!Z1233)","v":""},{"$f":"IF('1. Order'!AA1233=\"\",\"\",'1. Order'!AA1233)","v":""},null,{"$f":"IF('1. Order'!AS1233=\"\",\"\",'1. Order'!AS1233)","v":""},{"$f":"IF('1. Order'!AT1233=\"\",\"\",'1. Order'!AT1233)","v":""},null,null,null,null,null,null,null,{"$f":"IF('1. Order'!AX1233=\"\",\"\",'1. Order'!AX1233)","v":""},{"$f":"IF('1. Order'!AY1233=\"\",\"\",'1. Order'!AY1233)","v":""},{"$f":"IF('1. Order'!AZ1233=\"\",\"\",'1. Order'!AZ1233)","v":""},{"$f":"IF('1. Order'!BA1233=\"\",\"\",'1. Order'!BA1233)","v":""},{"$f":"IF('1. Order'!BC1233=\"\",\"\",'1. Order'!BC1233)","v":""},{"$f":"IF('1. Order'!BD1233=\"\",\"\",'1. Order'!BD1233)","v":6},{"$f":"IF('1. Order'!BE1233=\"\",\"\",'1. Order'!BE1233)","v":"None"},{"$f":"IF('1. Order'!BF1233=\"\",\"\",'1. Order'!BF1233)","v":"Parcel"},{"$f":"IF('1. Order'!BG1233=\"\",\"\",'1. Order'!BG1233)","v":"ZWO"}]
[{"$f":"IF('1. Order'!F1234=\"\",\"\",'1. Order'!F1234)","v":""},{"$f":"IF('1. Order'!G1234=\"\",\"\",'1. Order'!G1234)","v":""},{"$f":"IF('1. Order'!H1234=\"\",\"\",'1. Order'!H1234)","v":""},{"$f":"IF('1. Order'!I1234=\"\",\"\",'1. Order'!I1234)","v":""},{"$f":"IF('1. Order'!J1234=\"\",\"\",'1. Order'!J1234)","v":""},{"$f":"IF('1. Order'!K1234=\"\",\"\",'1. Order'!K1234)","v":""},{"$f":"IF('1. Order'!L1234=\"\",\"\",'1. Order'!L1234)","v":""},{"$f":"IF('1. Order'!M1234=\"\",\"\",'1. Order'!M1234)","v":""},{"$f":"IF('1. Order'!N1234=\"\",\"\",'1. Order'!N1234)","v":""},{"$f":"IF('1. Order'!O1234=\"\",\"\",'1. Order'!O1234)","v":{"$error":"#N/A"}},{"$f":"IF('1. Order'!P1234=\"\",\"\",'1. Order'!P1234)","v":{"$error":"#N/A"}},{"$f":"IF('1. Order'!Q1234=\"\",\"\",'1. Order'!Q1234)","v":""},{"$f":"IF('1. Order'!R1234=\"\",\"\",'1. Order'!R1234)","v":""},{"$f":"IF('1. Order'!S1234=\"\",\"\",'1. Order'!S1234)","v":""},{"$f":"IF('1. Order'!V1234=\"\",\"\",'1. Order'!V1234)","v":""},{"$f":"IF('1. Order'!W1234=\"\",\"\",'1. Order'!W1234)","v":""},{"$f":"IF('1. Order'!X1234=\"\",\"\",'1. Order'!X1234)","v":"EUR"},{"$f":"IF('1. Order'!Y1234=\"\",\"\",'1. Order'!Y1234)","v":""},{"$f":"IF('1. Order'!Z1234=\"\",\"\",'1. Order'!Z1234)","v":""},{"$f":"IF('1. Order'!AA1234=\"\",\"\",'1. Order'!AA1234)","v":""},null,{"$f":"IF('1. Order'!AS1234=\"\",\"\",'1. Order'!AS1234)","v":""},{"$f":"IF('1. Order'!AT1234=\"\",\"\",'1. Order'!AT1234)","v":""},null,null,null,null,null,null,null,{"$f":"IF('1. Order'!AX1234=\"\",\"\",'1. Order'!AX1234)","v":""},{"$f":"IF('1. Order'!AY1234=\"\",\"\",'1. Order'!AY1234)","v":""},{"$f":"IF('1. Order'!AZ1234=\"\",\"\",'1. Order'!AZ1234)","v":""},{"$f":"IF('1. Order'!BA1234=\"\",\"\",'1. Order'!BA1234)","v":""},{"$f":"IF('1. Order'!BC1234=\"\",\"\",'1. Order'!BC1234)","v":""},{"$f":"IF('1. Order'!BD1234=\"\",\"\",'1. Order'!BD1234)","v":6},{"$f":"IF('1. Order'!BE1234=\"\",\"\",'1. Order'!BE1234)","v":"None"},{"$f":"IF('1. Order'!BF1234=\"\",\"\",'1. Order'!BF1234)","v":"Parcel"},{"$f":"IF('1. Order'!BG1234=\"\",\"\",'1. Order'!BG1234)","v":"ZWO"}]
[{"$f":"IF('1. Order'!F1235=\"\",\"\",'1. Order'!F1235)","v":""},{"$f":"IF('1. Order'!G1235=\"\",\"\",'1. Order'!G1235)","v":""},{"$f":"IF('1. Order'!H1235=\"\",\"\",'1. Order'!H1235)","v":""},{"$f":"IF('1. Order'!I1235=\"\",\"\",'1. Order'!I1235)","v":""},{"$f":"IF('1. Order'!J1235=\"\",\"\",'1. Order'!J1235)","v":""},{"$f":"IF('1. Order'!K1235=\"\",\"\",'1. Order'!K1235)","v":""},{"$f":"IF('1. Order'!L1235=\"\",\"\",'1. Order'!L1235)","v":""},{"$f":"IF('1. Order'!M1235=\"\",\"\",'1. Order'!M1235)","v":""},{"$f":"IF('1. Order'!N1235=\"\",\"\",'1. Order'!N1235)","v":""},{"$f":"IF('1. Order'!O1235=\"\",\"\",'1. Order'!O1235)","v":{"$error":"#N/A"}},{"$f":"IF('1. Order'!P1235=\"\",\"\",'1. Order'!P1235)","v":{"$error":"#N/A"}},{"$f":"IF('1. Order'!Q1235=\"\",\"\",'1. Order'!Q1235)","v":""},{"$f":"IF('1. Order'!R1235=\"\",\"\",'1. Order'!R1235)","v":""},{"$f":"IF('1. Order'!S1235=\"\",\"\",'1. Order'!S1235)","v":""},{"$f":"IF('1. Order'!V1235=\"\",\"\",'1. Order'!V1235)","v":""},{"$f":"IF('1. Order'!W1235=\"\",\"\",'1. Order'!W1235)","v":""},{"$f":"IF('1. Order'!X1235=\"\",\"\",'1. Order'!X1235)","v":"EUR"},{"$f":"IF('1. Order'!Y1235=\"\",\"\",'1. Order'!Y1235)","v":""},{"$f":"IF('1. Order'!Z1235=\"\",\"\",'1. Order'!Z1235)","v":""},{"$f":"IF('1. Order'!AA1235=\"\",\"\",'1. Order'!AA1235)","v":""},null,{"$f":"IF('1. Order'!AS1235=\"\",\"\",'1. Order'!AS1235)","v":""},{"$f":"IF('1. Order'!AT1235=\"\",\"\",'1. Order'!AT1235)","v":""},null,null,null,null,null,null,null,{"$f":"IF('1. Order'!AX1235=\"\",\"\",'1. Order'!AX1235)","v":""},{"$f":"IF('1. Order'!AY1235=\"\",\"\",'1. Order'!AY1235)","v":""},{"$f":"IF('1. Order'!AZ1235=\"\",\"\",'1. Order'!AZ1235)","v":""},{"$f":"IF('1. Order'!BA1235=\"\",\"\",'1. Order'!BA1235)","v":""},{"$f":"IF('1. Order'!BC1235=\"\",\"\",'1. Order'!BC1235)","v":""},{"$f":"IF('1. Order'!BD1235=\"\",\"\",'1. Order'!BD1235)","v":6},{"$f":"IF('1. Order'!BE1235=\"\",\"\",'1. Order'!BE1235)","v":"None"},{"$f":"IF('1. Order'!BF1235=\"\",\"\",'1. Order'!BF1235)","v":"Parcel"},{"$f":"IF('1. Order'!BG1235=\"\",\"\",'1. Order'!BG1235)","v":"ZWO"}]
[{"$f":"IF('1. Order'!F1236=\"\",\"\",'1. Order'!F1236)","v":""},{"$f":"IF('1. Order'!G1236=\"\",\"\",'1. Order'!G1236)","v":""},{"$f":"IF('1. Order'!H1236=\"\",\"\",'1. Order'!H1236)","v":""},{"$f":"IF('1. Order'!I1236=\"\",\"\",'1. Order'!I1236)","v":""},{"$f":"IF('1. Order'!J1236=\"\",\"\",'1. Order'!J1236)","v":""},{"$f":"IF('1. Order'!K1236=\"\",\"\",'1. Order'!K1236)","v":""},{"$f":"IF('1. Order'!L1236=\"\",\"\",'1. Order'!L1236)","v":""},{"$f":"IF('1. Order'!M1236=\"\",\"\",'1. Order'!M1236)","v":""},{"$f":"IF('1. Order'!N1236=\"\",\"\",'1. Order'!N1236)","v":""},{"$f":"IF('1. Order'!O1236=\"\",\"\",'1. Order'!O1236)","v":{"$error":"#N/A"}},{"$f":"IF('1. Order'!P1236=\"\",\"\",'1. Order'!P1236)","v":{"$error":"#N/A"}},{"$f":"IF('1. Order'!Q1236=\"\",\"\",'1. Order'!Q1236)","v":""},{"$f":"IF('1. Order'!R1236=\"\",\"\",'1. Order'!R1236)","v":""},{"$f":"IF('1. Order'!S1236=\"\",\"\",'1. Order'!S1236)","v":""},{"$f":"IF('1. Order'!V1236=\"\",\"\",'1. Order'!V1236)","v":""},{"$f":"IF('1. Order'!W1236=\"\",\"\",'1. Order'!W1236)","v":""},{"$f":"IF('1. Order'!X1236=\"\",\"\",'1. Order'!X1236)","v":"EUR"},{"$f":"IF('1. Order'!Y1236=\"\",\"\",'1. Order'!Y1236)","v":""},{"$f":"IF('1. Order'!Z1236=\"\",\"\",'1. Order'!Z1236)","v":""},{"$f":"IF('1. Order'!AA1236=\"\",\"\",'1. Order'!AA1236)","v":""},null,{"$f":"IF('1. Order'!AS1236=\"\",\"\",'1. Order'!AS1236)","v":""},{"$f":"IF('1. Order'!AT1236=\"\",\"\",'1. Order'!AT1236)","v":""},null,null,null,null,null,null,null,{"$f":"IF('1. Order'!AX1236=\"\",\"\",'1. Order'!AX1236)","v":""},{"$f":"IF('1. Order'!AY1236=\"\",\"\",'1. Order'!AY1236)","v":""},{"$f":"IF('1. Order'!AZ1236=\"\",\"\",'1. Order'!AZ1236)","v":""},{"$f":"IF('1. Order'!BA1236=\"\",\"\",'1. Order'!BA1236)","v":""},{"$f":"IF('1. Order'!BC1236=\"\",\"\",'1. Order'!BC1236)","v":""},{"$f":"IF('1. Order'!BD1236=\"\",\"\",'1. Order'!BD1236)","v":6},{"$f":"IF('1. Order'!BE1236=\"\",\"\",'1. Order'!BE1236)","v":"None"},{"$f":"IF('1. Order'!BF1236=\"\",\"\",'1. Order'!BF1236)","v":"Parcel"},{"$f":"IF('1. Order'!BG1236=\"\",\"\",'1. Order'!BG1236)","v":"ZWO"}]
[{"$f":"IF('1. Order'!F1237=\"\",\"\",'1. Order'!F1237)","v":""},{"$f":"IF('1. Order'!G1237=\"\",\"\",'1. Order'!G1237)","v":""},{"$f":"IF('1. Order'!H1237=\"\",\"\",'1. Order'!H1237)","v":""},{"$f":"IF('1. Order'!I1237=\"\",\"\",'1. Order'!I1237)","v":""},{"$f":"IF('1. Order'!J1237=\"\",\"\",'1. Order'!J1237)","v":""},{"$f":"IF('1. Order'!K1237=\"\",\"\",'1. Order'!K1237)","v":""},{"$f":"IF('1. Order'!L1237=\"\",\"\",'1. Order'!L1237)","v":""},{"$f":"IF('1. Order'!M1237=\"\",\"\",'1. Order'!M1237)","v":""},{"$f":"IF('1. Order'!N1237=\"\",\"\",'1. Order'!N1237)","v":""},{"$f":"IF('1. Order'!O1237=\"\",\"\",'1. Order'!O1237)","v":{"$error":"#N/A"}},{"$f":"IF('1. Order'!P1237=\"\",\"\",'1. Order'!P1237)","v":{"$error":"#N/A"}},{"$f":"IF('1. Order'!Q1237=\"\",\"\",'1. Order'!Q1237)","v":""},{"$f":"IF('1. Order'!R1237=\"\",\"\",'1. Order'!R1237)","v":""},{"$f":"IF('1. Order'!S1237=\"\",\"\",'1. Order'!S1237)","v":""},{"$f":"IF('1. Order'!V1237=\"\",\"\",'1. Order'!V1237)","v":""},{"$f":"IF('1. Order'!W1237=\"\",\"\",'1. Order'!W1237)","v":""},{"$f":"IF('1. Order'!X1237=\"\",\"\",'1. Order'!X1237)","v":"EUR"},{"$f":"IF('1. Order'!Y1237=\"\",\"\",'1. Order'!Y1237)","v":""},{"$f":"IF('1. Order'!Z1237=\"\",\"\",'1. Order'!Z1237)","v":""},{"$f":"IF('1. Order'!AA1237=\"\",\"\",'1. Order'!AA1237)","v":""},null,{"$f":"IF('1. Order'!AS1237=\"\",\"\",'1. Order'!AS1237)","v":""},{"$f":"IF('1. Order'!AT1237=\"\",\"\",'1. Order'!AT1237)","v":""},null,null,null,null,null,null,null,{"$f":"IF('1. Order'!AX1237=\"\",\"\",'1. Order'!AX1237)","v":""},{"$f":"IF('1. Order'!AY1237=\"\",\"\",'1. Order'!AY1237)","v":""},{"$f":"IF('1. Order'!AZ1237=\"\",\"\",'1. Order'!AZ1237)","v":""},{"$f":"IF('1. Order'!BA1237=\"\",\"\",'1. Order'!BA1237)","v":""},{"$f":"IF('1. Order'!BC1237=\"\",\"\",'1. Order'!BC1237)","v":""},{"$f":"IF('1. Order'!BD1237=\"\",\"\",'1. Order'!BD1237)","v":6},{"$f":"IF('1. Order'!BE1237=\"\",\"\",'1. Order'!BE1237)","v":"None"},{"$f":"IF('1. Order'!BF1237=\"\",\"\",'1. Order'!BF1237)","v":"Parcel"},{"$f":"IF('1. Order'!BG1237=\"\",\"\",'1. Order'!BG1237)","v":"ZWO"}]
[{"$f":"IF('1. Order'!F1238=\"\",\"\",'1. Order'!F1238)","v":""},{"$f":"IF('1. Order'!G1238=\"\",\"\",'1. Order'!G1238)","v":""},{"$f":"IF('1. Order'!H1238=\"\",\"\",'1. Order'!H1238)","v":""},{"$f":"IF('1. Order'!I1238=\"\",\"\",'1. Order'!I1238)","v":""},{"$f":"IF('1. Order'!J1238=\"\",\"\",'1. Order'!J1238)","v":""},{"$f":"IF('1. Order'!K1238=\"\",\"\",'1. Order'!K1238)","v":""},{"$f":"IF('1. Order'!L1238=\"\",\"\",'1. Order'!L1238)","v":""},{"$f":"IF('1. Order'!M1238=\"\",\"\",'1. Order'!M1238)","v":""},{"$f":"IF('1. Order'!N1238=\"\",\"\",'1. Order'!N1238)","v":""},{"$f":"IF('1. Order'!O1238=\"\",\"\",'1. Order'!O1238)","v":{"$error":"#N/A"}},{"$f":"IF('1. Order'!P1238=\"\",\"\",'1. Order'!P1238)","v":{"$error":"#N/A"}},{"$f":"IF('1. Order'!Q1238=\"\",\"\",'1. Order'!Q1238)","v":""},{"$f":"IF('1. Order'!R1238=\"\",\"\",'1. Order'!R1238)","v":""},{"$f":"IF('1. Order'!S1238=\"\",\"\",'1. Order'!S1238)","v":""},{"$f":"IF('1. Order'!V1238=\"\",\"\",'1. Order'!V1238)","v":""},{"$f":"IF('1. Order'!W1238=\"\",\"\",'1. Order'!W1238)","v":""},{"$f":"IF('1. Order'!X1238=\"\",\"\",'1. Order'!X1238)","v":"EUR"},{"$f":"IF('1. Order'!Y1238=\"\",\"\",'1. Order'!Y1238)","v":""},{"$f":"IF('1. Order'!Z1238=\"\",\"\",'1. Order'!Z1238)","v":""},{"$f":"IF('1. Order'!AA1238=\"\",\"\",'1. Order'!AA1238)","v":""},null,{"$f":"IF('1. Order'!AS1238=\"\",\"\",'1. Order'!AS1238)","v":""},{"$f":"IF('1. Order'!AT1238=\"\",\"\",'1. Order'!AT1238)","v":""},null,null,null,null,null,null,null,{"$f":"IF('1. Order'!AX1238=\"\",\"\",'1. Order'!AX1238)","v":""},{"$f":"IF('1. Order'!AY1238=\"\",\"\",'1. Order'!AY1238)","v":""},{"$f":"IF('1. Order'!AZ1238=\"\",\"\",'1. Order'!AZ1238)","v":""},{"$f":"IF('1. Order'!BA1238=\"\",\"\",'1. Order'!BA1238)","v":""},{"$f":"IF('1. Order'!BC1238=\"\",\"\",'1. Order'!BC1238)","v":""},{"$f":"IF('1. Order'!BD1238=\"\",\"\",'1. Order'!BD1238)","v":6},{"$f":"IF('1. Order'!BE1238=\"\",\"\",'1. Order'!BE1238)","v":"None"},{"$f":"IF('1. Order'!BF1238=\"\",\"\",'1. Order'!BF1238)","v":"Parcel"},{"$f":"IF('1. Order'!BG1238=\"\",\"\",'1. Order'!BG1238)","v":"ZWO"}]
[{"$f":"IF('1. Order'!F1239=\"\",\"\",'1. Order'!F1239)","v":""},{"$f":"IF('1. Order'!G1239=\"\",\"\",'1. Order'!G1239)","v":""},{"$f":"IF('1. Order'!H1239=\"\",\"\",'1. Order'!H1239)","v":""},{"$f":"IF('1. Order'!I1239=\"\",\"\",'1. Order'!I1239)","v":""},{"$f":"IF('1. Order'!J1239=\"\",\"\",'1. Order'!J1239)","v":""},{"$f":"IF('1. Order'!K1239=\"\",\"\",'1. Order'!K1239)","v":""},{"$f":"IF('1. Order'!L1239=\"\",\"\",'1. Order'!L1239)","v":""},{"$f":"IF('1. Order'!M1239=\"\",\"\",'1. Order'!M1239)","v":""},{"$f":"IF('1. Order'!N1239=\"\",\"\",'1. Order'!N1239)","v":""},{"$f":"IF('1. Order'!O1239=\"\",\"\",'1. Order'!O1239)","v":{"$error":"#N/A"}},{"$f":"IF('1. Order'!P1239=\"\",\"\",'1. Order'!P1239)","v":{"$error":"#N/A"}},{"$f":"IF('1. Order'!Q1239=\"\",\"\",'1. Order'!Q1239)","v":""},{"$f":"IF('1. Order'!R1239=\"\",\"\",'1. Order'!R1239)","v":""},{"$f":"IF('1. Order'!S1239=\"\",\"\",'1. Order'!S1239)","v":""},{"$f":"IF('1. Order'!V1239=\"\",\"\",'1. Order'!V1239)","v":""},{"$f":"IF('1. Order'!W1239=\"\",\"\",'1. Order'!W1239)","v":""},{"$f":"IF('1. Order'!X1239=\"\",\"\",'1. Order'!X1239)","v":"EUR"},{"$f":"IF('1. Order'!Y1239=\"\",\"\",'1. Order'!Y1239)","v":""},{"$f":"IF('1. Order'!Z1239=\"\",\"\",'1. Order'!Z1239)","v":""},{"$f":"IF('1. Order'!AA1239=\"\",\"\",'1. Order'!AA1239)","v":""},null,{"$f":"IF('1. Order'!AS1239=\"\",\"\",'1. Order'!AS1239)","v":""},{"$f":"IF('1. Order'!AT1239=\"\",\"\",'1. Order'!AT1239)","v":""},null,null,null,null,null,null,null,{"$f":"IF('1. Order'!AX1239=\"\",\"\",'1. Order'!AX1239)","v":""},{"$f":"IF('1. Order'!AY1239=\"\",\"\",'1. Order'!AY1239)","v":""},{"$f":"IF('1. Order'!AZ1239=\"\",\"\",'1. Order'!AZ1239)","v":""},{"$f":"IF('1. Order'!BA1239=\"\",\"\",'1. Order'!BA1239)","v":""},{"$f":"IF('1. Order'!BC1239=\"\",\"\",'1. Order'!BC1239)","v":""},{"$f":"IF('1. Order'!BD1239=\"\",\"\",'1. Order'!BD1239)","v":6},{"$f":"IF('1. Order'!BE1239=\"\",\"\",'1. Order'!BE1239)","v":"None"},{"$f":"IF('1. Order'!BF1239=\"\",\"\",'1. Order'!BF1239)","v":"Parcel"},{"$f":"IF('1. Order'!BG1239=\"\",\"\",'1. Order'!BG1239)","v":"ZWO"}]
[{"$f":"IF('1. Order'!F1240=\"\",\"\",'1. Order'!F1240)","v":""},{"$f":"IF('1. Order'!G1240=\"\",\"\",'1. Order'!G1240)","v":""},{"$f":"IF('1. Order'!H1240=\"\",\"\",'1. Order'!H1240)","v":""},{"$f":"IF('1. Order'!I1240=\"\",\"\",'1. Order'!I1240)","v":""},{"$f":"IF('1. Order'!J1240=\"\",\"\",'1. Order'!J1240)","v":""},{"$f":"IF('1. Order'!K1240=\"\",\"\",'1. Order'!K1240)","v":""},{"$f":"IF('1. Order'!L1240=\"\",\"\",'1. Order'!L1240)","v":""},{"$f":"IF('1. Order'!M1240=\"\",\"\",'1. Order'!M1240)","v":""},{"$f":"IF('1. Order'!N1240=\"\",\"\",'1. Order'!N1240)","v":""},{"$f":"IF('1. Order'!O1240=\"\",\"\",'1. Order'!O1240)","v":{"$error":"#N/A"}},{"$f":"IF('1. Order'!P1240=\"\",\"\",'1. Order'!P1240)","v":{"$error":"#N/A"}},{"$f":"IF('1. Order'!Q1240=\"\",\"\",'1. Order'!Q1240)","v":""},{"$f":"IF('1. Order'!R1240=\"\",\"\",'1. Order'!R1240)","v":""},{"$f":"IF('1. Order'!S1240=\"\",\"\",'1. Order'!S1240)","v":""},{"$f":"IF('1. Order'!V1240=\"\",\"\",'1. Order'!V1240)","v":""},{"$f":"IF('1. Order'!W1240=\"\",\"\",'1. Order'!W1240)","v":""},{"$f":"IF('1. Order'!X1240=\"\",\"\",'1. Order'!X1240)","v":"EUR"},{"$f":"IF('1. Order'!Y1240=\"\",\"\",'1. Order'!Y1240)","v":""},{"$f":"IF('1. Order'!Z1240=\"\",\"\",'1. Order'!Z1240)","v":""},{"$f":"IF('1. Order'!AA1240=\"\",\"\",'1. Order'!AA1240)","v":""},null,{"$f":"IF('1. Order'!AS1240=\"\",\"\",'1. Order'!AS1240)","v":""},{"$f":"IF('1. Order'!AT1240=\"\",\"\",'1. Order'!AT1240)","v":""},null,null,null,null,null,null,null,{"$f":"IF('1. Order'!AX1240=\"\",\"\",'1. Order'!AX1240)","v":""},{"$f":"IF('1. Order'!AY1240=\"\",\"\",'1. Order'!AY1240)","v":""},{"$f":"IF('1. Order'!AZ1240=\"\",\"\",'1. Order'!AZ1240)","v":""},{"$f":"IF('1. Order'!BA1240=\"\",\"\",'1. Order'!BA1240)","v":""},{"$f":"IF('1. Order'!BC1240=\"\",\"\",'1. Order'!BC1240)","v":""},{"$f":"IF('1. Order'!BD1240=\"\",\"\",'1. Order'!BD1240)","v":6},{"$f":"IF('1. Order'!BE1240=\"\",\"\",'1. Order'!BE1240)","v":"None"},{"$f":"IF('1. Order'!BF1240=\"\",\"\",'1. Order'!BF1240)","v":"Parcel"},{"$f":"IF('1. Order'!BG1240=\"\",\"\",'1. Order'!BG1240)","v":"ZWO"}]
[{"$f":"IF('1. Order'!F1241=\"\",\"\",'1. Order'!F1241)","v":""},{"$f":"IF('1. Order'!G1241=\"\",\"\",'1. Order'!G1241)","v":""},{"$f":"IF('1. Order'!H1241=\"\",\"\",'1. Order'!H1241)","v":""},{"$f":"IF('1. Order'!I1241=\"\",\"\",'1. Order'!I1241)","v":""},{"$f":"IF('1. Order'!J1241=\"\",\"\",'1. Order'!J1241)","v":""},{"$f":"IF('1. Order'!K1241=\"\",\"\",'1. Order'!K1241)","v":""},{"$f":"IF('1. Order'!L1241=\"\",\"\",'1. Order'!L1241)","v":""},{"$f":"IF('1. Order'!M1241=\"\",\"\",'1. Order'!M1241)","v":""},{"$f":"IF('1. Order'!N1241=\"\",\"\",'1. Order'!N1241)","v":""},{"$f":"IF('1. Order'!O1241=\"\",\"\",'1. Order'!O1241)","v":{"$error":"#N/A"}},{"$f":"IF('1. Order'!P1241=\"\",\"\",'1. Order'!P1241)","v":{"$error":"#N/A"}},{"$f":"IF('1. Order'!Q1241=\"\",\"\",'1. Order'!Q1241)","v":""},{"$f":"IF('1. Order'!R1241=\"\",\"\",'1. Order'!R1241)","v":""},{"$f":"IF('1. Order'!S1241=\"\",\"\",'1. Order'!S1241)","v":""},{"$f":"IF('1. Order'!V1241=\"\",\"\",'1. Order'!V1241)","v":""},{"$f":"IF('1. Order'!W1241=\"\",\"\",'1. Order'!W1241)","v":""},{"$f":"IF('1. Order'!X1241=\"\",\"\",'1. Order'!X1241)","v":"EUR"},{"$f":"IF('1. Order'!Y1241=\"\",\"\",'1. Order'!Y1241)","v":""},{"$f":"IF('1. Order'!Z1241=\"\",\"\",'1. Order'!Z1241)","v":""},{"$f":"IF('1. Order'!AA1241=\"\",\"\",'1. Order'!AA1241)","v":""},null,{"$f":"IF('1. Order'!AS1241=\"\",\"\",'1. Order'!AS1241)","v":""},{"$f":"IF('1. Order'!AT1241=\"\",\"\",'1. Order'!AT1241)","v":""},null,null,null,null,null,null,null,{"$f":"IF('1. Order'!AX1241=\"\",\"\",'1. Order'!AX1241)","v":""},{"$f":"IF('1. Order'!AY1241=\"\",\"\",'1. Order'!AY1241)","v":""},{"$f":"IF('1. Order'!AZ1241=\"\",\"\",'1. Order'!AZ1241)","v":""},{"$f":"IF('1. Order'!BA1241=\"\",\"\",'1. Order'!BA1241)","v":""},{"$f":"IF('1. Order'!BC1241=\"\",\"\",'1. Order'!BC1241)","v":""},{"$f":"IF('1. Order'!BD1241=\"\",\"\",'1. Order'!BD1241)","v":6},{"$f":"IF('1. Order'!BE1241=\"\",\"\",'1. Order'!BE1241)","v":"None"},{"$f":"IF('1. Order'!BF1241=\"\",\"\",'1. Order'!BF1241)","v":"Parcel"},{"$f":"IF('1. Order'!BG1241=\"\",\"\",'1. Order'!BG1241)","v":"ZWO"}]
[{"$f":"IF('1. Order'!F1242=\"\",\"\",'1. Order'!F1242)","v":""},{"$f":"IF('1. Order'!G1242=\"\",\"\",'1. Order'!G1242)","v":""},{"$f":"IF('1. Order'!H1242=\"\",\"\",'1. Order'!H1242)","v":""},{"$f":"IF('1. Order'!I1242=\"\",\"\",'1. Order'!I1242)","v":""},{"$f":"IF('1. Order'!J1242=\"\",\"\",'1. Order'!J1242)","v":""},{"$f":"IF('1. Order'!K1242=\"\",\"\",'1. Order'!K1242)","v":""},{"$f":"IF('1. Order'!L1242=\"\",\"\",'1. Order'!L1242)","v":""},{"$f":"IF('1. Order'!M1242=\"\",\"\",'1. Order'!M1242)","v":""},{"$f":"IF('1. Order'!N1242=\"\",\"\",'1. Order'!N1242)","v":""},{"$f":"IF('1. Order'!O1242=\"\",\"\",'1. Order'!O1242)","v":{"$error":"#N/A"}},{"$f":"IF('1. Order'!P1242=\"\",\"\",'1. Order'!P1242)","v":{"$error":"#N/A"}},{"$f":"IF('1. Order'!Q1242=\"\",\"\",'1. Order'!Q1242)","v":""},{"$f":"IF('1. Order'!R1242=\"\",\"\",'1. Order'!R1242)","v":""},{"$f":"IF('1. Order'!S1242=\"\",\"\",'1. Order'!S1242)","v":""},{"$f":"IF('1. Order'!V1242=\"\",\"\",'1. Order'!V1242)","v":""},{"$f":"IF('1. Order'!W1242=\"\",\"\",'1. Order'!W1242)","v":""},{"$f":"IF('1. Order'!X1242=\"\",\"\",'1. Order'!X1242)","v":"EUR"},{"$f":"IF('1. Order'!Y1242=\"\",\"\",'1. Order'!Y1242)","v":""},{"$f":"IF('1. Order'!Z1242=\"\",\"\",'1. Order'!Z1242)","v":""},{"$f":"IF('1. Order'!AA1242=\"\",\"\",'1. Order'!AA1242)","v":""},null,{"$f":"IF('1. Order'!AS1242=\"\",\"\",'1. Order'!AS1242)","v":""},{"$f":"IF('1. Order'!AT1242=\"\",\"\",'1. Order'!AT1242)","v":""},null,null,null,null,null,null,null,{"$f":"IF('1. Order'!AX1242=\"\",\"\",'1. Order'!AX1242)","v":""},{"$f":"IF('1. Order'!AY1242=\"\",\"\",'1. Order'!AY1242)","v":""},{"$f":"IF('1. Order'!AZ1242=\"\",\"\",'1. Order'!AZ1242)","v":""},{"$f":"IF('1. Order'!BA1242=\"\",\"\",'1. Order'!BA1242)","v":""},{"$f":"IF('1. Order'!BC1242=\"\",\"\",'1. Order'!BC1242)","v":""},{"$f":"IF('1. Order'!BD1242=\"\",\"\",'1. Order'!BD1242)","v":6},{"$f":"IF('1. Order'!BE1242=\"\",\"\",'1. Order'!BE1242)","v":"None"},{"$f":"IF('1. Order'!BF1242=\"\",\"\",'1. Order'!BF1242)","v":"Parcel"},{"$f":"IF('1. Order'!BG1242=\"\",\"\",'1. Order'!BG1242)","v":"ZWO"}]
[{"$f":"IF('1. Order'!F1243=\"\",\"\",'1. Order'!F1243)","v":""},{"$f":"IF('1. Order'!G1243=\"\",\"\",'1. Order'!G1243)","v":""},{"$f":"IF('1. Order'!H1243=\"\",\"\",'1. Order'!H1243)","v":""},{"$f":"IF('1. Order'!I1243=\"\",\"\",'1. Order'!I1243)","v":""},{"$f":"IF('1. Order'!J1243=\"\",\"\",'1. Order'!J1243)","v":""},{"$f":"IF('1. Order'!K1243=\"\",\"\",'1. Order'!K1243)","v":""},{"$f":"IF('1. Order'!L1243=\"\",\"\",'1. Order'!L1243)","v":""},{"$f":"IF('1. Order'!M1243=\"\",\"\",'1. Order'!M1243)","v":""},{"$f":"IF('1. Order'!N1243=\"\",\"\",'1. Order'!N1243)","v":""},{"$f":"IF('1. Order'!O1243=\"\",\"\",'1. Order'!O1243)","v":{"$error":"#N/A"}},{"$f":"IF('1. Order'!P1243=\"\",\"\",'1. Order'!P1243)","v":{"$error":"#N/A"}},{"$f":"IF('1. Order'!Q1243=\"\",\"\",'1. Order'!Q1243)","v":""},{"$f":"IF('1. Order'!R1243=\"\",\"\",'1. Order'!R1243)","v":""},{"$f":"IF('1. Order'!S1243=\"\",\"\",'1. Order'!S1243)","v":""},{"$f":"IF('1. Order'!V1243=\"\",\"\",'1. Order'!V1243)","v":""},{"$f":"IF('1. Order'!W1243=\"\",\"\",'1. Order'!W1243)","v":""},{"$f":"IF('1. Order'!X1243=\"\",\"\",'1. Order'!X1243)","v":"EUR"},{"$f":"IF('1. Order'!Y1243=\"\",\"\",'1. Order'!Y1243)","v":""},{"$f":"IF('1. Order'!Z1243=\"\",\"\",'1. Order'!Z1243)","v":""},{"$f":"IF('1. Order'!AA1243=\"\",\"\",'1. Order'!AA1243)","v":""},null,{"$f":"IF('1. Order'!AS1243=\"\",\"\",'1. Order'!AS1243)","v":""},{"$f":"IF('1. Order'!AT1243=\"\",\"\",'1. Order'!AT1243)","v":""},null,null,null,null,null,null,null,{"$f":"IF('1. Order'!AX1243=\"\",\"\",'1. Order'!AX1243)","v":""},{"$f":"IF('1. Order'!AY1243=\"\",\"\",'1. Order'!AY1243)","v":""},{"$f":"IF('1. Order'!AZ1243=\"\",\"\",'1. Order'!AZ1243)","v":""},{"$f":"IF('1. Order'!BA1243=\"\",\"\",'1. Order'!BA1243)","v":""},{"$f":"IF('1. Order'!BC1243=\"\",\"\",'1. Order'!BC1243)","v":""},{"$f":"IF('1. Order'!BD1243=\"\",\"\",'1. Order'!BD1243)","v":6},{"$f":"IF('1. Order'!BE1243=\"\",\"\",'1. Order'!BE1243)","v":"None"},{"$f":"IF('1. Order'!BF1243=\"\",\"\",'1. Order'!BF1243)","v":"Parcel"},{"$f":"IF('1. Order'!BG1243=\"\",\"\",'1. Order'!BG1243)","v":"ZWO"}]
[{"$f":"IF('1. Order'!F1244=\"\",\"\",'1. Order'!F1244)","v":""},{"$f":"IF('1. Order'!G1244=\"\",\"\",'1. Order'!G1244)","v":""},{"$f":"IF('1. Order'!H1244=\"\",\"\",'1. Order'!H1244)","v":""},{"$f":"IF('1. Order'!I1244=\"\",\"\",'1. Order'!I1244)","v":""},{"$f":"IF('1. Order'!J1244=\"\",\"\",'1. Order'!J1244)","v":""},{"$f":"IF('1. Order'!K1244=\"\",\"\",'1. Order'!K1244)","v":""},{"$f":"IF('1. Order'!L1244=\"\",\"\",'1. Order'!L1244)","v":""},{"$f":"IF('1. Order'!M1244=\"\",\"\",'1. Order'!M1244)","v":""},{"$f":"IF('1. Order'!N1244=\"\",\"\",'1. Order'!N1244)","v":""},{"$f":"IF('1. Order'!O1244=\"\",\"\",'1. Order'!O1244)","v":{"$error":"#N/A"}},{"$f":"IF('1. Order'!P1244=\"\",\"\",'1. Order'!P1244)","v":{"$error":"#N/A"}},{"$f":"IF('1. Order'!Q1244=\"\",\"\",'1. Order'!Q1244)","v":""},{"$f":"IF('1. Order'!R1244=\"\",\"\",'1. Order'!R1244)","v":""},{"$f":"IF('1. Order'!S1244=\"\",\"\",'1. Order'!S1244)","v":""},{"$f":"IF('1. Order'!V1244=\"\",\"\",'1. Order'!V1244)","v":""},{"$f":"IF('1. Order'!W1244=\"\",\"\",'1. Order'!W1244)","v":""},{"$f":"IF('1. Order'!X1244=\"\",\"\",'1. Order'!X1244)","v":"EUR"},{"$f":"IF('1. Order'!Y1244=\"\",\"\",'1. Order'!Y1244)","v":""},{"$f":"IF('1. Order'!Z1244=\"\",\"\",'1. Order'!Z1244)","v":""},{"$f":"IF('1. Order'!AA1244=\"\",\"\",'1. Order'!AA1244)","v":""},null,{"$f":"IF('1. Order'!AS1244=\"\",\"\",'1. Order'!AS1244)","v":""},{"$f":"IF('1. Order'!AT1244=\"\",\"\",'1. Order'!AT1244)","v":""},null,null,null,null,null,null,null,{"$f":"IF('1. Order'!AX1244=\"\",\"\",'1. Order'!AX1244)","v":""},{"$f":"IF('1. Order'!AY1244=\"\",\"\",'1. Order'!AY1244)","v":""},{"$f":"IF('1. Order'!AZ1244=\"\",\"\",'1. Order'!AZ1244)","v":""},{"$f":"IF('1. Order'!BA1244=\"\",\"\",'1. Order'!BA1244)","v":""},{"$f":"IF('1. Order'!BC1244=\"\",\"\",'1. Order'!BC1244)","v":""},{"$f":"IF('1. Order'!BD1244=\"\",\"\",'1. Order'!BD1244)","v":6},{"$f":"IF('1. Order'!BE1244=\"\",\"\",'1. Order'!BE1244)","v":"None"},{"$f":"IF('1. Order'!BF1244=\"\",\"\",'1. Order'!BF1244)","v":"Parcel"},{"$f":"IF('1. Order'!BG1244=\"\",\"\",'1. Order'!BG1244)","v":"ZWO"}]
[{"$f":"IF('1. Order'!F1245=\"\",\"\",'1. Order'!F1245)","v":""},{"$f":"IF('1. Order'!G1245=\"\",\"\",'1. Order'!G1245)","v":""},{"$f":"IF('1. Order'!H1245=\"\",\"\",'1. Order'!H1245)","v":""},{"$f":"IF('1. Order'!I1245=\"\",\"\",'1. Order'!I1245)","v":""},{"$f":"IF('1. Order'!J1245=\"\",\"\",'1. Order'!J1245)","v":""},{"$f":"IF('1. Order'!K1245=\"\",\"\",'1. Order'!K1245)","v":""},{"$f":"IF('1. Order'!L1245=\"\",\"\",'1. Order'!L1245)","v":""},{"$f":"IF('1. Order'!M1245=\"\",\"\",'1. Order'!M1245)","v":""},{"$f":"IF('1. Order'!N1245=\"\",\"\",'1. Order'!N1245)","v":""},{"$f":"IF('1. Order'!O1245=\"\",\"\",'1. Order'!O1245)","v":{"$error":"#N/A"}},{"$f":"IF('1. Order'!P1245=\"\",\"\",'1. Order'!P1245)","v":{"$error":"#N/A"}},{"$f":"IF('1. Order'!Q1245=\"\",\"\",'1. Order'!Q1245)","v":""},{"$f":"IF('1. Order'!R1245=\"\",\"\",'1. Order'!R1245)","v":""},{"$f":"IF('1. Order'!S1245=\"\",\"\",'1. Order'!S1245)","v":""},{"$f":"IF('1. Order'!V1245=\"\",\"\",'1. Order'!V1245)","v":""},{"$f":"IF('1. Order'!W1245=\"\",\"\",'1. Order'!W1245)","v":""},{"$f":"IF('1. Order'!X1245=\"\",\"\",'1. Order'!X1245)","v":"EUR"},{"$f":"IF('1. Order'!Y1245=\"\",\"\",'1. Order'!Y1245)","v":""},{"$f":"IF('1. Order'!Z1245=\"\",\"\",'1. Order'!Z1245)","v":""},{"$f":"IF('1. Order'!AA1245=\"\",\"\",'1. Order'!AA1245)","v":""},null,{"$f":"IF('1. Order'!AS1245=\"\",\"\",'1. Order'!AS1245)","v":""},{"$f":"IF('1. Order'!AT1245=\"\",\"\",'1. Order'!AT1245)","v":""},null,null,null,null,null,null,null,{"$f":"IF('1. Order'!AX1245=\"\",\"\",'1. Order'!AX1245)","v":""},{"$f":"IF('1. Order'!AY1245=\"\",\"\",'1. Order'!AY1245)","v":""},{"$f":"IF('1. Order'!AZ1245=\"\",\"\",'1. Order'!AZ1245)","v":""},{"$f":"IF('1. Order'!BA1245=\"\",\"\",'1. Order'!BA1245)","v":""},{"$f":"IF('1. Order'!BC1245=\"\",\"\",'1. Order'!BC1245)","v":""},{"$f":"IF('1. Order'!BD1245=\"\",\"\",'1. Order'!BD1245)","v":6},{"$f":"IF('1. Order'!BE1245=\"\",\"\",'1. Order'!BE1245)","v":"None"},{"$f":"IF('1. Order'!BF1245=\"\",\"\",'1. Order'!BF1245)","v":"Parcel"},{"$f":"IF('1. Order'!BG1245=\"\",\"\",'1. Order'!BG1245)","v":"ZWO"}]
[{"$f":"IF('1. Order'!F1246=\"\",\"\",'1. Order'!F1246)","v":""},{"$f":"IF('1. Order'!G1246=\"\",\"\",'1. Order'!G1246)","v":""},{"$f":"IF('1. Order'!H1246=\"\",\"\",'1. Order'!H1246)","v":""},{"$f":"IF('1. Order'!I1246=\"\",\"\",'1. Order'!I1246)","v":""},{"$f":"IF('1. Order'!J1246=\"\",\"\",'1. Order'!J1246)","v":""},{"$f":"IF('1. Order'!K1246=\"\",\"\",'1. Order'!K1246)","v":""},{"$f":"IF('1. Order'!L1246=\"\",\"\",'1. Order'!L1246)","v":""},{"$f":"IF('1. Order'!M1246=\"\",\"\",'1. Order'!M1246)","v":""},{"$f":"IF('1. Order'!N1246=\"\",\"\",'1. Order'!N1246)","v":""},{"$f":"IF('1. Order'!O1246=\"\",\"\",'1. Order'!O1246)","v":{"$error":"#N/A"}},{"$f":"IF('1. Order'!P1246=\"\",\"\",'1. Order'!P1246)","v":{"$error":"#N/A"}},{"$f":"IF('1. Order'!Q1246=\"\",\"\",'1. Order'!Q1246)","v":""},{"$f":"IF('1. Order'!R1246=\"\",\"\",'1. Order'!R1246)","v":""},{"$f":"IF('1. Order'!S1246=\"\",\"\",'1. Order'!S1246)","v":""},{"$f":"IF('1. Order'!V1246=\"\",\"\",'1. Order'!V1246)","v":""},{"$f":"IF('1. Order'!W1246=\"\",\"\",'1. Order'!W1246)","v":""},{"$f":"IF('1. Order'!X1246=\"\",\"\",'1. Order'!X1246)","v":"EUR"},{"$f":"IF('1. Order'!Y1246=\"\",\"\",'1. Order'!Y1246)","v":""},{"$f":"IF('1. Order'!Z1246=\"\",\"\",'1. Order'!Z1246)","v":""},{"$f":"IF('1. Order'!AA1246=\"\",\"\",'1. Order'!AA1246)","v":""},null,{"$f":"IF('1. Order'!AS1246=\"\",\"\",'1. Order'!AS1246)","v":""},{"$f":"IF('1. Order'!AT1246=\"\",\"\",'1. Order'!AT1246)","v":""},null,null,null,null,null,null,null,{"$f":"IF('1. Order'!AX1246=\"\",\"\",'1. Order'!AX1246)","v":""},{"$f":"IF('1. Order'!AY1246=\"\",\"\",'1. Order'!AY1246)","v":""},{"$f":"IF('1. Order'!AZ1246=\"\",\"\",'1. Order'!AZ1246)","v":""},{"$f":"IF('1. Order'!BA1246=\"\",\"\",'1. Order'!BA1246)","v":""},{"$f":"IF('1. Order'!BC1246=\"\",\"\",'1. Order'!BC1246)","v":""},{"$f":"IF('1. Order'!BD1246=\"\",\"\",'1. Order'!BD1246)","v":6},{"$f":"IF('1. Order'!BE1246=\"\",\"\",'1. Order'!BE1246)","v":"None"},{"$f":"IF('1. Order'!BF1246=\"\",\"\",'1. Order'!BF1246)","v":"Parcel"},{"$f":"IF('1. Order'!BG1246=\"\",\"\",'1. Order'!BG1246)","v":"ZWO"}]
[{"$f":"IF('1. Order'!F1247=\"\",\"\",'1. Order'!F1247)","v":""},{"$f":"IF('1. Order'!G1247=\"\",\"\",'1. Order'!G1247)","v":""},{"$f":"IF('1. Order'!H1247=\"\",\"\",'1. Order'!H1247)","v":""},{"$f":"IF('1. Order'!I1247=\"\",\"\",'1. Order'!I1247)","v":""},{"$f":"IF('1. Order'!J1247=\"\",\"\",'1. Order'!J1247)","v":""},{"$f":"IF('1. Order'!K1247=\"\",\"\",'1. Order'!K1247)","v":""},{"$f":"IF('1. Order'!L1247=\"\",\"\",'1. Order'!L1247)","v":""},{"$f":"IF('1. Order'!M1247=\"\",\"\",'1. Order'!M1247)","v":""},{"$f":"IF('1. Order'!N1247=\"\",\"\",'1. Order'!N1247)","v":""},{"$f":"IF('1. Order'!O1247=\"\",\"\",'1. Order'!O1247)","v":{"$error":"#N/A"}},{"$f":"IF('1. Order'!P1247=\"\",\"\",'1. Order'!P1247)","v":{"$error":"#N/A"}},{"$f":"IF('1. Order'!Q1247=\"\",\"\",'1. Order'!Q1247)","v":""},{"$f":"IF('1. Order'!R1247=\"\",\"\",'1. Order'!R1247)","v":""},{"$f":"IF('1. Order'!S1247=\"\",\"\",'1. Order'!S1247)","v":""},{"$f":"IF('1. Order'!V1247=\"\",\"\",'1. Order'!V1247)","v":""},{"$f":"IF('1. Order'!W1247=\"\",\"\",'1. Order'!W1247)","v":""},{"$f":"IF('1. Order'!X1247=\"\",\"\",'1. Order'!X1247)","v":"EUR"},{"$f":"IF('1. Order'!Y1247=\"\",\"\",'1. Order'!Y1247)","v":""},{"$f":"IF('1. Order'!Z1247=\"\",\"\",'1. Order'!Z1247)","v":""},{"$f":"IF('1. Order'!AA1247=\"\",\"\",'1. Order'!AA1247)","v":""},null,{"$f":"IF('1. Order'!AS1247=\"\",\"\",'1. Order'!AS1247)","v":""},{"$f":"IF('1. Order'!AT1247=\"\",\"\",'1. Order'!AT1247)","v":""},null,null,null,null,null,null,null,{"$f":"IF('1. Order'!AX1247=\"\",\"\",'1. Order'!AX1247)","v":""},{"$f":"IF('1. Order'!AY1247=\"\",\"\",'1. Order'!AY1247)","v":""},{"$f":"IF('1. Order'!AZ1247=\"\",\"\",'1. Order'!AZ1247)","v":""},{"$f":"IF('1. Order'!BA1247=\"\",\"\",'1. Order'!BA1247)","v":""},{"$f":"IF('1. Order'!BC1247=\"\",\"\",'1. Order'!BC1247)","v":""},{"$f":"IF('1. Order'!BD1247=\"\",\"\",'1. Order'!BD1247)","v":6},{"$f":"IF('1. Order'!BE1247=\"\",\"\",'1. Order'!BE1247)","v":"None"},{"$f":"IF('1. Order'!BF1247=\"\",\"\",'1. Order'!BF1247)","v":"Parcel"},{"$f":"IF('1. Order'!BG1247=\"\",\"\",'1. Order'!BG1247)","v":"ZWO"}]
[{"$f":"IF('1. Order'!F1248=\"\",\"\",'1. Order'!F1248)","v":""},{"$f":"IF('1. Order'!G1248=\"\",\"\",'1. Order'!G1248)","v":""},{"$f":"IF('1. Order'!H1248=\"\",\"\",'1. Order'!H1248)","v":""},{"$f":"IF('1. Order'!I1248=\"\",\"\",'1. Order'!I1248)","v":""},{"$f":"IF('1. Order'!J1248=\"\",\"\",'1. Order'!J1248)","v":""},{"$f":"IF('1. Order'!K1248=\"\",\"\",'1. Order'!K1248)","v":""},{"$f":"IF('1. Order'!L1248=\"\",\"\",'1. Order'!L1248)","v":""},{"$f":"IF('1. Order'!M1248=\"\",\"\",'1. Order'!M1248)","v":""},{"$f":"IF('1. Order'!N1248=\"\",\"\",'1. Order'!N1248)","v":""},{"$f":"IF('1. Order'!O1248=\"\",\"\",'1. Order'!O1248)","v":{"$error":"#N/A"}},{"$f":"IF('1. Order'!P1248=\"\",\"\",'1. Order'!P1248)","v":{"$error":"#N/A"}},{"$f":"IF('1. Order'!Q1248=\"\",\"\",'1. Order'!Q1248)","v":""},{"$f":"IF('1. Order'!R1248=\"\",\"\",'1. Order'!R1248)","v":""},{"$f":"IF('1. Order'!S1248=\"\",\"\",'1. Order'!S1248)","v":""},{"$f":"IF('1. Order'!V1248=\"\",\"\",'1. Order'!V1248)","v":""},{"$f":"IF('1. Order'!W1248=\"\",\"\",'1. Order'!W1248)","v":""},{"$f":"IF('1. Order'!X1248=\"\",\"\",'1. Order'!X1248)","v":"EUR"},{"$f":"IF('1. Order'!Y1248=\"\",\"\",'1. Order'!Y1248)","v":""},{"$f":"IF('1. Order'!Z1248=\"\",\"\",'1. Order'!Z1248)","v":""},{"$f":"IF('1. Order'!AA1248=\"\",\"\",'1. Order'!AA1248)","v":""},null,{"$f":"IF('1. Order'!AS1248=\"\",\"\",'1. Order'!AS1248)","v":""},{"$f":"IF('1. Order'!AT1248=\"\",\"\",'1. Order'!AT1248)","v":""},null,null,null,null,null,null,null,{"$f":"IF('1. Order'!AX1248=\"\",\"\",'1. Order'!AX1248)","v":""},{"$f":"IF('1. Order'!AY1248=\"\",\"\",'1. Order'!AY1248)","v":""},{"$f":"IF('1. Order'!AZ1248=\"\",\"\",'1. Order'!AZ1248)","v":""},{"$f":"IF('1. Order'!BA1248=\"\",\"\",'1. Order'!BA1248)","v":""},{"$f":"IF('1. Order'!BC1248=\"\",\"\",'1. Order'!BC1248)","v":""},{"$f":"IF('1. Order'!BD1248=\"\",\"\",'1. Order'!BD1248)","v":6},{"$f":"IF('1. Order'!BE1248=\"\",\"\",'1. Order'!BE1248)","v":"None"},{"$f":"IF('1. Order'!BF1248=\"\",\"\",'1. Order'!BF1248)","v":"Parcel"},{"$f":"IF('1. Order'!BG1248=\"\",\"\",'1. Order'!BG1248)","v":"ZWO"}]
[{"$f":"IF('1. Order'!F1249=\"\",\"\",'1. Order'!F1249)","v":""},{"$f":"IF('1. Order'!G1249=\"\",\"\",'1. Order'!G1249)","v":""},{"$f":"IF('1. Order'!H1249=\"\",\"\",'1. Order'!H1249)","v":""},{"$f":"IF('1. Order'!I1249=\"\",\"\",'1. Order'!I1249)","v":""},{"$f":"IF('1. Order'!J1249=\"\",\"\",'1. Order'!J1249)","v":""},{"$f":"IF('1. Order'!K1249=\"\",\"\",'1. Order'!K1249)","v":""},{"$f":"IF('1. Order'!L1249=\"\",\"\",'1. Order'!L1249)","v":""},{"$f":"IF('1. Order'!M1249=\"\",\"\",'1. Order'!M1249)","v":""},{"$f":"IF('1. Order'!N1249=\"\",\"\",'1. Order'!N1249)","v":""},{"$f":"IF('1. Order'!O1249=\"\",\"\",'1. Order'!O1249)","v":{"$error":"#N/A"}},{"$f":"IF('1. Order'!P1249=\"\",\"\",'1. Order'!P1249)","v":{"$error":"#N/A"}},{"$f":"IF('1. Order'!Q1249=\"\",\"\",'1. Order'!Q1249)","v":""},{"$f":"IF('1. Order'!R1249=\"\",\"\",'1. Order'!R1249)","v":""},{"$f":"IF('1. Order'!S1249=\"\",\"\",'1. Order'!S1249)","v":""},{"$f":"IF('1. Order'!V1249=\"\",\"\",'1. Order'!V1249)","v":""},{"$f":"IF('1. Order'!W1249=\"\",\"\",'1. Order'!W1249)","v":""},{"$f":"IF('1. Order'!X1249=\"\",\"\",'1. Order'!X1249)","v":"EUR"},{"$f":"IF('1. Order'!Y1249=\"\",\"\",'1. Order'!Y1249)","v":""},{"$f":"IF('1. Order'!Z1249=\"\",\"\",'1. Order'!Z1249)","v":""},{"$f":"IF('1. Order'!AA1249=\"\",\"\",'1. Order'!AA1249)","v":""},null,{"$f":"IF('1. Order'!AS1249=\"\",\"\",'1. Order'!AS1249)","v":""},{"$f":"IF('1. Order'!AT1249=\"\",\"\",'1. Order'!AT1249)","v":""},null,null,null,null,null,null,null,{"$f":"IF('1. Order'!AX1249=\"\",\"\",'1. Order'!AX1249)","v":""},{"$f":"IF('1. Order'!AY1249=\"\",\"\",'1. Order'!AY1249)","v":""},{"$f":"IF('1. Order'!AZ1249=\"\",\"\",'1. Order'!AZ1249)","v":""},{"$f":"IF('1. Order'!BA1249=\"\",\"\",'1. Order'!BA1249)","v":""},{"$f":"IF('1. Order'!BC1249=\"\",\"\",'1. Order'!BC1249)","v":""},{"$f":"IF('1. Order'!BD1249=\"\",\"\",'1. Order'!BD1249)","v":6},{"$f":"IF('1. Order'!BE1249=\"\",\"\",'1. Order'!BE1249)","v":"None"},{"$f":"IF('1. Order'!BF1249=\"\",\"\",'1. Order'!BF1249)","v":"Parcel"},{"$f":"IF('1. Order'!BG1249=\"\",\"\",'1. Order'!BG1249)","v":"ZWO"}]
[{"$f":"IF('1. Order'!F1250=\"\",\"\",'1. Order'!F1250)","v":""},{"$f":"IF('1. Order'!G1250=\"\",\"\",'1. Order'!G1250)","v":""},{"$f":"IF('1. Order'!H1250=\"\",\"\",'1. Order'!H1250)","v":""},{"$f":"IF('1. Order'!I1250=\"\",\"\",'1. Order'!I1250)","v":""},{"$f":"IF('1. Order'!J1250=\"\",\"\",'1. Order'!J1250)","v":""},{"$f":"IF('1. Order'!K1250=\"\",\"\",'1. Order'!K1250)","v":""},{"$f":"IF('1. Order'!L1250=\"\",\"\",'1. Order'!L1250)","v":""},{"$f":"IF('1. Order'!M1250=\"\",\"\",'1. Order'!M1250)","v":""},{"$f":"IF('1. Order'!N1250=\"\",\"\",'1. Order'!N1250)","v":""},{"$f":"IF('1. Order'!O1250=\"\",\"\",'1. Order'!O1250)","v":{"$error":"#N/A"}},{"$f":"IF('1. Order'!P1250=\"\",\"\",'1. Order'!P1250)","v":{"$error":"#N/A"}},{"$f":"IF('1. Order'!Q1250=\"\",\"\",'1. Order'!Q1250)","v":""},{"$f":"IF('1. Order'!R1250=\"\",\"\",'1. Order'!R1250)","v":""},{"$f":"IF('1. Order'!S1250=\"\",\"\",'1. Order'!S1250)","v":""},{"$f":"IF('1. Order'!V1250=\"\",\"\",'1. Order'!V1250)","v":""},{"$f":"IF('1. Order'!W1250=\"\",\"\",'1. Order'!W1250)","v":""},{"$f":"IF('1. Order'!X1250=\"\",\"\",'1. Order'!X1250)","v":"EUR"},{"$f":"IF('1. Order'!Y1250=\"\",\"\",'1. Order'!Y1250)","v":""},{"$f":"IF('1. Order'!Z1250=\"\",\"\",'1. Order'!Z1250)","v":""},{"$f":"IF('1. Order'!AA1250=\"\",\"\",'1. Order'!AA1250)","v":""},null,{"$f":"IF('1. Order'!AS1250=\"\",\"\",'1. Order'!AS1250)","v":""},{"$f":"IF('1. Order'!AT1250=\"\",\"\",'1. Order'!AT1250)","v":""},null,null,null,null,null,null,null,{"$f":"IF('1. Order'!AX1250=\"\",\"\",'1. Order'!AX1250)","v":""},{"$f":"IF('1. Order'!AY1250=\"\",\"\",'1. Order'!AY1250)","v":""},{"$f":"IF('1. Order'!AZ1250=\"\",\"\",'1. Order'!AZ1250)","v":""},{"$f":"IF('1. Order'!BA1250=\"\",\"\",'1. Order'!BA1250)","v":""},{"$f":"IF('1. Order'!BC1250=\"\",\"\",'1. Order'!BC1250)","v":""},{"$f":"IF('1. Order'!BD1250=\"\",\"\",'1. Order'!BD1250)","v":6},{"$f":"IF('1. Order'!BE1250=\"\",\"\",'1. Order'!BE1250)","v":"None"},{"$f":"IF('1. Order'!BF1250=\"\",\"\",'1. Order'!BF1250)","v":"Parcel"},{"$f":"IF('1. Order'!BG1250=\"\",\"\",'1. Order'!BG1250)","v":"ZWO"}]
[{"$f":"IF('1. Order'!F1251=\"\",\"\",'1. Order'!F1251)","v":""},{"$f":"IF('1. Order'!G1251=\"\",\"\",'1. Order'!G1251)","v":""},{"$f":"IF('1. Order'!H1251=\"\",\"\",'1. Order'!H1251)","v":""},{"$f":"IF('1. Order'!I1251=\"\",\"\",'1. Order'!I1251)","v":""},{"$f":"IF('1. Order'!J1251=\"\",\"\",'1. Order'!J1251)","v":""},{"$f":"IF('1. Order'!K1251=\"\",\"\",'1. Order'!K1251)","v":""},{"$f":"IF('1. Order'!L1251=\"\",\"\",'1. Order'!L1251)","v":""},{"$f":"IF('1. Order'!M1251=\"\",\"\",'1. Order'!M1251)","v":""},{"$f":"IF('1. Order'!N1251=\"\",\"\",'1. Order'!N1251)","v":""},{"$f":"IF('1. Order'!O1251=\"\",\"\",'1. Order'!O1251)","v":{"$error":"#N/A"}},{"$f":"IF('1. Order'!P1251=\"\",\"\",'1. Order'!P1251)","v":{"$error":"#N/A"}},{"$f":"IF('1. Order'!Q1251=\"\",\"\",'1. Order'!Q1251)","v":""},{"$f":"IF('1. Order'!R1251=\"\",\"\",'1. Order'!R1251)","v":""},{"$f":"IF('1. Order'!S1251=\"\",\"\",'1. Order'!S1251)","v":""},{"$f":"IF('1. Order'!V1251=\"\",\"\",'1. Order'!V1251)","v":""},{"$f":"IF('1. Order'!W1251=\"\",\"\",'1. Order'!W1251)","v":""},{"$f":"IF('1. Order'!X1251=\"\",\"\",'1. Order'!X1251)","v":"EUR"},{"$f":"IF('1. Order'!Y1251=\"\",\"\",'1. Order'!Y1251)","v":""},{"$f":"IF('1. Order'!Z1251=\"\",\"\",'1. Order'!Z1251)","v":""},{"$f":"IF('1. Order'!AA1251=\"\",\"\",'1. Order'!AA1251)","v":""},null,{"$f":"IF('1. Order'!AS1251=\"\",\"\",'1. Order'!AS1251)","v":""},{"$f":"IF('1. Order'!AT1251=\"\",\"\",'1. Order'!AT1251)","v":""},null,null,null,null,null,null,null,{"$f":"IF('1. Order'!AX1251=\"\",\"\",'1. Order'!AX1251)","v":""},{"$f":"IF('1. Order'!AY1251=\"\",\"\",'1. Order'!AY1251)","v":""},{"$f":"IF('1. Order'!AZ1251=\"\",\"\",'1. Order'!AZ1251)","v":""},{"$f":"IF('1. Order'!BA1251=\"\",\"\",'1. Order'!BA1251)","v":""},{"$f":"IF('1. Order'!BC1251=\"\",\"\",'1. Order'!BC1251)","v":""},{"$f":"IF('1. Order'!BD1251=\"\",\"\",'1. Order'!BD1251)","v":6},{"$f":"IF('1. Order'!BE1251=\"\",\"\",'1. Order'!BE1251)","v":"None"},{"$f":"IF('1. Order'!BF1251=\"\",\"\",'1. Order'!BF1251)","v":"Parcel"},{"$f":"IF('1. Order'!BG1251=\"\",\"\",'1. Order'!BG1251)","v":"ZWO"}]
[{"$f":"IF('1. Order'!F1252=\"\",\"\",'1. Order'!F1252)","v":""},{"$f":"IF('1. Order'!G1252=\"\",\"\",'1. Order'!G1252)","v":""},{"$f":"IF('1. Order'!H1252=\"\",\"\",'1. Order'!H1252)","v":""},{"$f":"IF('1. Order'!I1252=\"\",\"\",'1. Order'!I1252)","v":""},{"$f":"IF('1. Order'!J1252=\"\",\"\",'1. Order'!J1252)","v":""},{"$f":"IF('1. Order'!K1252=\"\",\"\",'1. Order'!K1252)","v":""},{"$f":"IF('1. Order'!L1252=\"\",\"\",'1. Order'!L1252)","v":""},{"$f":"IF('1. Order'!M1252=\"\",\"\",'1. Order'!M1252)","v":""},{"$f":"IF('1. Order'!N1252=\"\",\"\",'1. Order'!N1252)","v":""},{"$f":"IF('1. Order'!O1252=\"\",\"\",'1. Order'!O1252)","v":{"$error":"#N/A"}},{"$f":"IF('1. Order'!P1252=\"\",\"\",'1. Order'!P1252)","v":{"$error":"#N/A"}},{"$f":"IF('1. Order'!Q1252=\"\",\"\",'1. Order'!Q1252)","v":""},{"$f":"IF('1. Order'!R1252=\"\",\"\",'1. Order'!R1252)","v":""},{"$f":"IF('1. Order'!S1252=\"\",\"\",'1. Order'!S1252)","v":""},{"$f":"IF('1. Order'!V1252=\"\",\"\",'1. Order'!V1252)","v":""},{"$f":"IF('1. Order'!W1252=\"\",\"\",'1. Order'!W1252)","v":""},{"$f":"IF('1. Order'!X1252=\"\",\"\",'1. Order'!X1252)","v":"EUR"},{"$f":"IF('1. Order'!Y1252=\"\",\"\",'1. Order'!Y1252)","v":""},{"$f":"IF('1. Order'!Z1252=\"\",\"\",'1. Order'!Z1252)","v":""},{"$f":"IF('1. Order'!AA1252=\"\",\"\",'1. Order'!AA1252)","v":""},null,{"$f":"IF('1. Order'!AS1252=\"\",\"\",'1. Order'!AS1252)","v":""},{"$f":"IF('1. Order'!AT1252=\"\",\"\",'1. Order'!AT1252)","v":""},null,null,null,null,null,null,null,{"$f":"IF('1. Order'!AX1252=\"\",\"\",'1. Order'!AX1252)","v":""},{"$f":"IF('1. Order'!AY1252=\"\",\"\",'1. Order'!AY1252)","v":""},{"$f":"IF('1. Order'!AZ1252=\"\",\"\",'1. Order'!AZ1252)","v":""},{"$f":"IF('1. Order'!BA1252=\"\",\"\",'1. Order'!BA1252)","v":""},{"$f":"IF('1. Order'!BC1252=\"\",\"\",'1. Order'!BC1252)","v":""},{"$f":"IF('1. Order'!BD1252=\"\",\"\",'1. Order'!BD1252)","v":6},{"$f":"IF('1. Order'!BE1252=\"\",\"\",'1. Order'!BE1252)","v":"None"},{"$f":"IF('1. Order'!BF1252=\"\",\"\",'1. Order'!BF1252)","v":"Parcel"},{"$f":"IF('1. Order'!BG1252=\"\",\"\",'1. Order'!BG1252)","v":"ZWO"}]
[{"$f":"IF('1. Order'!F1253=\"\",\"\",'1. Order'!F1253)","v":""},{"$f":"IF('1. Order'!G1253=\"\",\"\",'1. Order'!G1253)","v":""},{"$f":"IF('1. Order'!H1253=\"\",\"\",'1. Order'!H1253)","v":""},{"$f":"IF('1. Order'!I1253=\"\",\"\",'1. Order'!I1253)","v":""},{"$f":"IF('1. Order'!J1253=\"\",\"\",'1. Order'!J1253)","v":""},{"$f":"IF('1. Order'!K1253=\"\",\"\",'1. Order'!K1253)","v":""},{"$f":"IF('1. Order'!L1253=\"\",\"\",'1. Order'!L1253)","v":""},{"$f":"IF('1. Order'!M1253=\"\",\"\",'1. Order'!M1253)","v":""},{"$f":"IF('1. Order'!N1253=\"\",\"\",'1. Order'!N1253)","v":""},{"$f":"IF('1. Order'!O1253=\"\",\"\",'1. Order'!O1253)","v":{"$error":"#N/A"}},{"$f":"IF('1. Order'!P1253=\"\",\"\",'1. Order'!P1253)","v":{"$error":"#N/A"}},{"$f":"IF('1. Order'!Q1253=\"\",\"\",'1. Order'!Q1253)","v":""},{"$f":"IF('1. Order'!R1253=\"\",\"\",'1. Order'!R1253)","v":""},{"$f":"IF('1. Order'!S1253=\"\",\"\",'1. Order'!S1253)","v":""},{"$f":"IF('1. Order'!V1253=\"\",\"\",'1. Order'!V1253)","v":""},{"$f":"IF('1. Order'!W1253=\"\",\"\",'1. Order'!W1253)","v":""},{"$f":"IF('1. Order'!X1253=\"\",\"\",'1. Order'!X1253)","v":"EUR"},{"$f":"IF('1. Order'!Y1253=\"\",\"\",'1. Order'!Y1253)","v":""},{"$f":"IF('1. Order'!Z1253=\"\",\"\",'1. Order'!Z1253)","v":""},{"$f":"IF('1. Order'!AA1253=\"\",\"\",'1. Order'!AA1253)","v":""},null,{"$f":"IF('1. Order'!AS1253=\"\",\"\",'1. Order'!AS1253)","v":""},{"$f":"IF('1. Order'!AT1253=\"\",\"\",'1. Order'!AT1253)","v":""},null,null,null,null,null,null,null,{"$f":"IF('1. Order'!AX1253=\"\",\"\",'1. Order'!AX1253)","v":""},{"$f":"IF('1. Order'!AY1253=\"\",\"\",'1. Order'!AY1253)","v":""},{"$f":"IF('1. Order'!AZ1253=\"\",\"\",'1. Order'!AZ1253)","v":""},{"$f":"IF('1. Order'!BA1253=\"\",\"\",'1. Order'!BA1253)","v":""},{"$f":"IF('1. Order'!BC1253=\"\",\"\",'1. Order'!BC1253)","v":""},{"$f":"IF('1. Order'!BD1253=\"\",\"\",'1. Order'!BD1253)","v":6},{"$f":"IF('1. Order'!BE1253=\"\",\"\",'1. Order'!BE1253)","v":"None"},{"$f":"IF('1. Order'!BF1253=\"\",\"\",'1. Order'!BF1253)","v":"Parcel"},{"$f":"IF('1. Order'!BG1253=\"\",\"\",'1. Order'!BG1253)","v":"ZWO"}]
[{"$f":"IF('1. Order'!F1254=\"\",\"\",'1. Order'!F1254)","v":""},{"$f":"IF('1. Order'!G1254=\"\",\"\",'1. Order'!G1254)","v":""},{"$f":"IF('1. Order'!H1254=\"\",\"\",'1. Order'!H1254)","v":""},{"$f":"IF('1. Order'!I1254=\"\",\"\",'1. Order'!I1254)","v":""},{"$f":"IF('1. Order'!J1254=\"\",\"\",'1. Order'!J1254)","v":""},{"$f":"IF('1. Order'!K1254=\"\",\"\",'1. Order'!K1254)","v":""},{"$f":"IF('1. Order'!L1254=\"\",\"\",'1. Order'!L1254)","v":""},{"$f":"IF('1. Order'!M1254=\"\",\"\",'1. Order'!M1254)","v":""},{"$f":"IF('1. Order'!N1254=\"\",\"\",'1. Order'!N1254)","v":""},{"$f":"IF('1. Order'!O1254=\"\",\"\",'1. Order'!O1254)","v":{"$error":"#N/A"}},{"$f":"IF('1. Order'!P1254=\"\",\"\",'1. Order'!P1254)","v":{"$error":"#N/A"}},{"$f":"IF('1. Order'!Q1254=\"\",\"\",'1. Order'!Q1254)","v":""},{"$f":"IF('1. Order'!R1254=\"\",\"\",'1. Order'!R1254)","v":""},{"$f":"IF('1. Order'!S1254=\"\",\"\",'1. Order'!S1254)","v":""},{"$f":"IF('1. Order'!V1254=\"\",\"\",'1. Order'!V1254)","v":""},{"$f":"IF('1. Order'!W1254=\"\",\"\",'1. Order'!W1254)","v":""},{"$f":"IF('1. Order'!X1254=\"\",\"\",'1. Order'!X1254)","v":"EUR"},{"$f":"IF('1. Order'!Y1254=\"\",\"\",'1. Order'!Y1254)","v":""},{"$f":"IF('1. Order'!Z1254=\"\",\"\",'1. Order'!Z1254)","v":""},{"$f":"IF('1. Order'!AA1254=\"\",\"\",'1. Order'!AA1254)","v":""},null,{"$f":"IF('1. Order'!AS1254=\"\",\"\",'1. Order'!AS1254)","v":""},{"$f":"IF('1. Order'!AT1254=\"\",\"\",'1. Order'!AT1254)","v":""},null,null,null,null,null,null,null,{"$f":"IF('1. Order'!AX1254=\"\",\"\",'1. Order'!AX1254)","v":""},{"$f":"IF('1. Order'!AY1254=\"\",\"\",'1. Order'!AY1254)","v":""},{"$f":"IF('1. Order'!AZ1254=\"\",\"\",'1. Order'!AZ1254)","v":""},{"$f":"IF('1. Order'!BA1254=\"\",\"\",'1. Order'!BA1254)","v":""},{"$f":"IF('1. Order'!BC1254=\"\",\"\",'1. Order'!BC1254)","v":""},{"$f":"IF('1. Order'!BD1254=\"\",\"\",'1. Order'!BD1254)","v":6},{"$f":"IF('1. Order'!BE1254=\"\",\"\",'1. Order'!BE1254)","v":"None"},{"$f":"IF('1. Order'!BF1254=\"\",\"\",'1. Order'!BF1254)","v":"Parcel"},{"$f":"IF('1. Order'!BG1254=\"\",\"\",'1. Order'!BG1254)","v":"ZWO"}]
[{"$f":"IF('1. Order'!F1255=\"\",\"\",'1. Order'!F1255)","v":""},{"$f":"IF('1. Order'!G1255=\"\",\"\",'1. Order'!G1255)","v":""},{"$f":"IF('1. Order'!H1255=\"\",\"\",'1. Order'!H1255)","v":""},{"$f":"IF('1. Order'!I1255=\"\",\"\",'1. Order'!I1255)","v":""},{"$f":"IF('1. Order'!J1255=\"\",\"\",'1. Order'!J1255)","v":""},{"$f":"IF('1. Order'!K1255=\"\",\"\",'1. Order'!K1255)","v":""},{"$f":"IF('1. Order'!L1255=\"\",\"\",'1. Order'!L1255)","v":""},{"$f":"IF('1. Order'!M1255=\"\",\"\",'1. Order'!M1255)","v":""},{"$f":"IF('1. Order'!N1255=\"\",\"\",'1. Order'!N1255)","v":""},{"$f":"IF('1. Order'!O1255=\"\",\"\",'1. Order'!O1255)","v":{"$error":"#N/A"}},{"$f":"IF('1. Order'!P1255=\"\",\"\",'1. Order'!P1255)","v":{"$error":"#N/A"}},{"$f":"IF('1. Order'!Q1255=\"\",\"\",'1. Order'!Q1255)","v":""},{"$f":"IF('1. Order'!R1255=\"\",\"\",'1. Order'!R1255)","v":""},{"$f":"IF('1. Order'!S1255=\"\",\"\",'1. Order'!S1255)","v":""},{"$f":"IF('1. Order'!V1255=\"\",\"\",'1. Order'!V1255)","v":""},{"$f":"IF('1. Order'!W1255=\"\",\"\",'1. Order'!W1255)","v":""},{"$f":"IF('1. Order'!X1255=\"\",\"\",'1. Order'!X1255)","v":"EUR"},{"$f":"IF('1. Order'!Y1255=\"\",\"\",'1. Order'!Y1255)","v":""},{"$f":"IF('1. Order'!Z1255=\"\",\"\",'1. Order'!Z1255)","v":""},{"$f":"IF('1. Order'!AA1255=\"\",\"\",'1. Order'!AA1255)","v":""},null,{"$f":"IF('1. Order'!AS1255=\"\",\"\",'1. Order'!AS1255)","v":""},{"$f":"IF('1. Order'!AT1255=\"\",\"\",'1. Order'!AT1255)","v":""},null,null,null,null,null,null,null,{"$f":"IF('1. Order'!AX1255=\"\",\"\",'1. Order'!AX1255)","v":""},{"$f":"IF('1. Order'!AY1255=\"\",\"\",'1. Order'!AY1255)","v":""},{"$f":"IF('1. Order'!AZ1255=\"\",\"\",'1. Order'!AZ1255)","v":""},{"$f":"IF('1. Order'!BA1255=\"\",\"\",'1. Order'!BA1255)","v":""},{"$f":"IF('1. Order'!BC1255=\"\",\"\",'1. Order'!BC1255)","v":""},{"$f":"IF('1. Order'!BD1255=\"\",\"\",'1. Order'!BD1255)","v":6},{"$f":"IF('1. Order'!BE1255=\"\",\"\",'1. Order'!BE1255)","v":"None"},{"$f":"IF('1. Order'!BF1255=\"\",\"\",'1. Order'!BF1255)","v":"Parcel"},{"$f":"IF('1. Order'!BG1255=\"\",\"\",'1. Order'!BG1255)","v":"ZWO"}]
[{"$f":"IF('1. Order'!F1256=\"\",\"\",'1. Order'!F1256)","v":""},{"$f":"IF('1. Order'!G1256=\"\",\"\",'1. Order'!G1256)","v":""},{"$f":"IF('1. Order'!H1256=\"\",\"\",'1. Order'!H1256)","v":""},{"$f":"IF('1. Order'!I1256=\"\",\"\",'1. Order'!I1256)","v":""},{"$f":"IF('1. Order'!J1256=\"\",\"\",'1. Order'!J1256)","v":""},{"$f":"IF('1. Order'!K1256=\"\",\"\",'1. Order'!K1256)","v":""},{"$f":"IF('1. Order'!L1256=\"\",\"\",'1. Order'!L1256)","v":""},{"$f":"IF('1. Order'!M1256=\"\",\"\",'1. Order'!M1256)","v":""},{"$f":"IF('1. Order'!N1256=\"\",\"\",'1. Order'!N1256)","v":""},{"$f":"IF('1. Order'!O1256=\"\",\"\",'1. Order'!O1256)","v":{"$error":"#N/A"}},{"$f":"IF('1. Order'!P1256=\"\",\"\",'1. Order'!P1256)","v":{"$error":"#N/A"}},{"$f":"IF('1. Order'!Q1256=\"\",\"\",'1. Order'!Q1256)","v":""},{"$f":"IF('1. Order'!R1256=\"\",\"\",'1. Order'!R1256)","v":""},{"$f":"IF('1. Order'!S1256=\"\",\"\",'1. Order'!S1256)","v":""},{"$f":"IF('1. Order'!V1256=\"\",\"\",'1. Order'!V1256)","v":""},{"$f":"IF('1. Order'!W1256=\"\",\"\",'1. Order'!W1256)","v":""},{"$f":"IF('1. Order'!X1256=\"\",\"\",'1. Order'!X1256)","v":"EUR"},{"$f":"IF('1. Order'!Y1256=\"\",\"\",'1. Order'!Y1256)","v":""},{"$f":"IF('1. Order'!Z1256=\"\",\"\",'1. Order'!Z1256)","v":""},{"$f":"IF('1. Order'!AA1256=\"\",\"\",'1. Order'!AA1256)","v":""},null,{"$f":"IF('1. Order'!AS1256=\"\",\"\",'1. Order'!AS1256)","v":""},{"$f":"IF('1. Order'!AT1256=\"\",\"\",'1. Order'!AT1256)","v":""},null,null,null,null,null,null,null,{"$f":"IF('1. Order'!AX1256=\"\",\"\",'1. Order'!AX1256)","v":""},{"$f":"IF('1. Order'!AY1256=\"\",\"\",'1. Order'!AY1256)","v":""},{"$f":"IF('1. Order'!AZ1256=\"\",\"\",'1. Order'!AZ1256)","v":""},{"$f":"IF('1. Order'!BA1256=\"\",\"\",'1. Order'!BA1256)","v":""},{"$f":"IF('1. Order'!BC1256=\"\",\"\",'1. Order'!BC1256)","v":""},{"$f":"IF('1. Order'!BD1256=\"\",\"\",'1. Order'!BD1256)","v":6},{"$f":"IF('1. Order'!BE1256=\"\",\"\",'1. Order'!BE1256)","v":"None"},{"$f":"IF('1. Order'!BF1256=\"\",\"\",'1. Order'!BF1256)","v":"Parcel"},{"$f":"IF('1. Order'!BG1256=\"\",\"\",'1. Order'!BG1256)","v":"ZWO"}]
[{"$f":"IF('1. Order'!F1257=\"\",\"\",'1. Order'!F1257)","v":""},{"$f":"IF('1. Order'!G1257=\"\",\"\",'1. Order'!G1257)","v":""},{"$f":"IF('1. Order'!H1257=\"\",\"\",'1. Order'!H1257)","v":""},{"$f":"IF('1. Order'!I1257=\"\",\"\",'1. Order'!I1257)","v":""},{"$f":"IF('1. Order'!J1257=\"\",\"\",'1. Order'!J1257)","v":""},{"$f":"IF('1. Order'!K1257=\"\",\"\",'1. Order'!K1257)","v":""},{"$f":"IF('1. Order'!L1257=\"\",\"\",'1. Order'!L1257)","v":""},{"$f":"IF('1. Order'!M1257=\"\",\"\",'1. Order'!M1257)","v":""},{"$f":"IF('1. Order'!N1257=\"\",\"\",'1. Order'!N1257)","v":""},{"$f":"IF('1. Order'!O1257=\"\",\"\",'1. Order'!O1257)","v":{"$error":"#N/A"}},{"$f":"IF('1. Order'!P1257=\"\",\"\",'1. Order'!P1257)","v":{"$error":"#N/A"}},{"$f":"IF('1. Order'!Q1257=\"\",\"\",'1. Order'!Q1257)","v":""},{"$f":"IF('1. Order'!R1257=\"\",\"\",'1. Order'!R1257)","v":""},{"$f":"IF('1. Order'!S1257=\"\",\"\",'1. Order'!S1257)","v":""},{"$f":"IF('1. Order'!V1257=\"\",\"\",'1. Order'!V1257)","v":""},{"$f":"IF('1. Order'!W1257=\"\",\"\",'1. Order'!W1257)","v":""},{"$f":"IF('1. Order'!X1257=\"\",\"\",'1. Order'!X1257)","v":"EUR"},{"$f":"IF('1. Order'!Y1257=\"\",\"\",'1. Order'!Y1257)","v":""},{"$f":"IF('1. Order'!Z1257=\"\",\"\",'1. Order'!Z1257)","v":""},{"$f":"IF('1. Order'!AA1257=\"\",\"\",'1. Order'!AA1257)","v":""},null,{"$f":"IF('1. Order'!AS1257=\"\",\"\",'1. Order'!AS1257)","v":""},{"$f":"IF('1. Order'!AT1257=\"\",\"\",'1. Order'!AT1257)","v":""},null,null,null,null,null,null,null,{"$f":"IF('1. Order'!AX1257=\"\",\"\",'1. Order'!AX1257)","v":""},{"$f":"IF('1. Order'!AY1257=\"\",\"\",'1. Order'!AY1257)","v":""},{"$f":"IF('1. Order'!AZ1257=\"\",\"\",'1. Order'!AZ1257)","v":""},{"$f":"IF('1. Order'!BA1257=\"\",\"\",'1. Order'!BA1257)","v":""},{"$f":"IF('1. Order'!BC1257=\"\",\"\",'1. Order'!BC1257)","v":""},{"$f":"IF('1. Order'!BD1257=\"\",\"\",'1. Order'!BD1257)","v":6},{"$f":"IF('1. Order'!BE1257=\"\",\"\",'1. Order'!BE1257)","v":"None"},{"$f":"IF('1. Order'!BF1257=\"\",\"\",'1. Order'!BF1257)","v":"Parcel"},{"$f":"IF('1. Order'!BG1257=\"\",\"\",'1. Order'!BG1257)","v":"ZWO"}]
[{"$f":"IF('1. Order'!F1258=\"\",\"\",'1. Order'!F1258)","v":""},{"$f":"IF('1. Order'!G1258=\"\",\"\",'1. Order'!G1258)","v":""},{"$f":"IF('1. Order'!H1258=\"\",\"\",'1. Order'!H1258)","v":""},{"$f":"IF('1. Order'!I1258=\"\",\"\",'1. Order'!I1258)","v":""},{"$f":"IF('1. Order'!J1258=\"\",\"\",'1. Order'!J1258)","v":""},{"$f":"IF('1. Order'!K1258=\"\",\"\",'1. Order'!K1258)","v":""},{"$f":"IF('1. Order'!L1258=\"\",\"\",'1. Order'!L1258)","v":""},{"$f":"IF('1. Order'!M1258=\"\",\"\",'1. Order'!M1258)","v":""},{"$f":"IF('1. Order'!N1258=\"\",\"\",'1. Order'!N1258)","v":""},{"$f":"IF('1. Order'!O1258=\"\",\"\",'1. Order'!O1258)","v":{"$error":"#N/A"}},{"$f":"IF('1. Order'!P1258=\"\",\"\",'1. Order'!P1258)","v":{"$error":"#N/A"}},{"$f":"IF('1. Order'!Q1258=\"\",\"\",'1. Order'!Q1258)","v":""},{"$f":"IF('1. Order'!R1258=\"\",\"\",'1. Order'!R1258)","v":""},{"$f":"IF('1. Order'!S1258=\"\",\"\",'1. Order'!S1258)","v":""},{"$f":"IF('1. Order'!V1258=\"\",\"\",'1. Order'!V1258)","v":""},{"$f":"IF('1. Order'!W1258=\"\",\"\",'1. Order'!W1258)","v":""},{"$f":"IF('1. Order'!X1258=\"\",\"\",'1. Order'!X1258)","v":"EUR"},{"$f":"IF('1. Order'!Y1258=\"\",\"\",'1. Order'!Y1258)","v":""},{"$f":"IF('1. Order'!Z1258=\"\",\"\",'1. Order'!Z1258)","v":""},{"$f":"IF('1. Order'!AA1258=\"\",\"\",'1. Order'!AA1258)","v":""},null,{"$f":"IF('1. Order'!AS1258=\"\",\"\",'1. Order'!AS1258)","v":""},{"$f":"IF('1. Order'!AT1258=\"\",\"\",'1. Order'!AT1258)","v":""},null,null,null,null,null,null,null,{"$f":"IF('1. Order'!AX1258=\"\",\"\",'1. Order'!AX1258)","v":""},{"$f":"IF('1. Order'!AY1258=\"\",\"\",'1. Order'!AY1258)","v":""},{"$f":"IF('1. Order'!AZ1258=\"\",\"\",'1. Order'!AZ1258)","v":""},{"$f":"IF('1. Order'!BA1258=\"\",\"\",'1. Order'!BA1258)","v":""},{"$f":"IF('1. Order'!BC1258=\"\",\"\",'1. Order'!BC1258)","v":""},{"$f":"IF('1. Order'!BD1258=\"\",\"\",'1. Order'!BD1258)","v":6},{"$f":"IF('1. Order'!BE1258=\"\",\"\",'1. Order'!BE1258)","v":"None"},{"$f":"IF('1. Order'!BF1258=\"\",\"\",'1. Order'!BF1258)","v":"Parcel"},{"$f":"IF('1. Order'!BG1258=\"\",\"\",'1. Order'!BG1258)","v":"ZWO"}]
[{"$f":"IF('1. Order'!F1259=\"\",\"\",'1. Order'!F1259)","v":""},{"$f":"IF('1. Order'!G1259=\"\",\"\",'1. Order'!G1259)","v":""},{"$f":"IF('1. Order'!H1259=\"\",\"\",'1. Order'!H1259)","v":""},{"$f":"IF('1. Order'!I1259=\"\",\"\",'1. Order'!I1259)","v":""},{"$f":"IF('1. Order'!J1259=\"\",\"\",'1. Order'!J1259)","v":""},{"$f":"IF('1. Order'!K1259=\"\",\"\",'1. Order'!K1259)","v":""},{"$f":"IF('1. Order'!L1259=\"\",\"\",'1. Order'!L1259)","v":""},{"$f":"IF('1. Order'!M1259=\"\",\"\",'1. Order'!M1259)","v":""},{"$f":"IF('1. Order'!N1259=\"\",\"\",'1. Order'!N1259)","v":""},{"$f":"IF('1. Order'!O1259=\"\",\"\",'1. Order'!O1259)","v":{"$error":"#N/A"}},{"$f":"IF('1. Order'!P1259=\"\",\"\",'1. Order'!P1259)","v":{"$error":"#N/A"}},{"$f":"IF('1. Order'!Q1259=\"\",\"\",'1. Order'!Q1259)","v":""},{"$f":"IF('1. Order'!R1259=\"\",\"\",'1. Order'!R1259)","v":""},{"$f":"IF('1. Order'!S1259=\"\",\"\",'1. Order'!S1259)","v":""},{"$f":"IF('1. Order'!V1259=\"\",\"\",'1. Order'!V1259)","v":""},{"$f":"IF('1. Order'!W1259=\"\",\"\",'1. Order'!W1259)","v":""},{"$f":"IF('1. Order'!X1259=\"\",\"\",'1. Order'!X1259)","v":"EUR"},{"$f":"IF('1. Order'!Y1259=\"\",\"\",'1. Order'!Y1259)","v":""},{"$f":"IF('1. Order'!Z1259=\"\",\"\",'1. Order'!Z1259)","v":""},{"$f":"IF('1. Order'!AA1259=\"\",\"\",'1. Order'!AA1259)","v":""},null,{"$f":"IF('1. Order'!AS1259=\"\",\"\",'1. Order'!AS1259)","v":""},{"$f":"IF('1. Order'!AT1259=\"\",\"\",'1. Order'!AT1259)","v":""},null,null,null,null,null,null,null,{"$f":"IF('1. Order'!AX1259=\"\",\"\",'1. Order'!AX1259)","v":""},{"$f":"IF('1. Order'!AY1259=\"\",\"\",'1. Order'!AY1259)","v":""},{"$f":"IF('1. Order'!AZ1259=\"\",\"\",'1. Order'!AZ1259)","v":""},{"$f":"IF('1. Order'!BA1259=\"\",\"\",'1. Order'!BA1259)","v":""},{"$f":"IF('1. Order'!BC1259=\"\",\"\",'1. Order'!BC1259)","v":""},{"$f":"IF('1. Order'!BD1259=\"\",\"\",'1. Order'!BD1259)","v":6},{"$f":"IF('1. Order'!BE1259=\"\",\"\",'1. Order'!BE1259)","v":"None"},{"$f":"IF('1. Order'!BF1259=\"\",\"\",'1. Order'!BF1259)","v":"Parcel"},{"$f":"IF('1. Order'!BG1259=\"\",\"\",'1. Order'!BG1259)","v":"ZWO"}]
[{"$f":"IF('1. Order'!F1260=\"\",\"\",'1. Order'!F1260)","v":""},{"$f":"IF('1. Order'!G1260=\"\",\"\",'1. Order'!G1260)","v":""},{"$f":"IF('1. Order'!H1260=\"\",\"\",'1. Order'!H1260)","v":""},{"$f":"IF('1. Order'!I1260=\"\",\"\",'1. Order'!I1260)","v":""},{"$f":"IF('1. Order'!J1260=\"\",\"\",'1. Order'!J1260)","v":""},{"$f":"IF('1. Order'!K1260=\"\",\"\",'1. Order'!K1260)","v":""},{"$f":"IF('1. Order'!L1260=\"\",\"\",'1. Order'!L1260)","v":""},{"$f":"IF('1. Order'!M1260=\"\",\"\",'1. Order'!M1260)","v":""},{"$f":"IF('1. Order'!N1260=\"\",\"\",'1. Order'!N1260)","v":""},{"$f":"IF('1. Order'!O1260=\"\",\"\",'1. Order'!O1260)","v":{"$error":"#N/A"}},{"$f":"IF('1. Order'!P1260=\"\",\"\",'1. Order'!P1260)","v":{"$error":"#N/A"}},{"$f":"IF('1. Order'!Q1260=\"\",\"\",'1. Order'!Q1260)","v":""},{"$f":"IF('1. Order'!R1260=\"\",\"\",'1. Order'!R1260)","v":""},{"$f":"IF('1. Order'!S1260=\"\",\"\",'1. Order'!S1260)","v":""},{"$f":"IF('1. Order'!V1260=\"\",\"\",'1. Order'!V1260)","v":""},{"$f":"IF('1. Order'!W1260=\"\",\"\",'1. Order'!W1260)","v":""},{"$f":"IF('1. Order'!X1260=\"\",\"\",'1. Order'!X1260)","v":"EUR"},{"$f":"IF('1. Order'!Y1260=\"\",\"\",'1. Order'!Y1260)","v":""},{"$f":"IF('1. Order'!Z1260=\"\",\"\",'1. Order'!Z1260)","v":""},{"$f":"IF('1. Order'!AA1260=\"\",\"\",'1. Order'!AA1260)","v":""},null,{"$f":"IF('1. Order'!AS1260=\"\",\"\",'1. Order'!AS1260)","v":""},{"$f":"IF('1. Order'!AT1260=\"\",\"\",'1. Order'!AT1260)","v":""},null,null,null,null,null,null,null,{"$f":"IF('1. Order'!AX1260=\"\",\"\",'1. Order'!AX1260)","v":""},{"$f":"IF('1. Order'!AY1260=\"\",\"\",'1. Order'!AY1260)","v":""},{"$f":"IF('1. Order'!AZ1260=\"\",\"\",'1. Order'!AZ1260)","v":""},{"$f":"IF('1. Order'!BA1260=\"\",\"\",'1. Order'!BA1260)","v":""},{"$f":"IF('1. Order'!BC1260=\"\",\"\",'1. Order'!BC1260)","v":""},{"$f":"IF('1. Order'!BD1260=\"\",\"\",'1. Order'!BD1260)","v":6},{"$f":"IF('1. Order'!BE1260=\"\",\"\",'1. Order'!BE1260)","v":"None"},{"$f":"IF('1. Order'!BF1260=\"\",\"\",'1. Order'!BF1260)","v":"Parcel"},{"$f":"IF('1. Order'!BG1260=\"\",\"\",'1. Order'!BG1260)","v":"ZWO"}]
[{"$f":"IF('1. Order'!F1261=\"\",\"\",'1. Order'!F1261)","v":""},{"$f":"IF('1. Order'!G1261=\"\",\"\",'1. Order'!G1261)","v":""},{"$f":"IF('1. Order'!H1261=\"\",\"\",'1. Order'!H1261)","v":""},{"$f":"IF('1. Order'!I1261=\"\",\"\",'1. Order'!I1261)","v":""},{"$f":"IF('1. Order'!J1261=\"\",\"\",'1. Order'!J1261)","v":""},{"$f":"IF('1. Order'!K1261=\"\",\"\",'1. Order'!K1261)","v":""},{"$f":"IF('1. Order'!L1261=\"\",\"\",'1. Order'!L1261)","v":""},{"$f":"IF('1. Order'!M1261=\"\",\"\",'1. Order'!M1261)","v":""},{"$f":"IF('1. Order'!N1261=\"\",\"\",'1. Order'!N1261)","v":""},{"$f":"IF('1. Order'!O1261=\"\",\"\",'1. Order'!O1261)","v":{"$error":"#N/A"}},{"$f":"IF('1. Order'!P1261=\"\",\"\",'1. Order'!P1261)","v":{"$error":"#N/A"}},{"$f":"IF('1. Order'!Q1261=\"\",\"\",'1. Order'!Q1261)","v":""},{"$f":"IF('1. Order'!R1261=\"\",\"\",'1. Order'!R1261)","v":""},{"$f":"IF('1. Order'!S1261=\"\",\"\",'1. Order'!S1261)","v":""},{"$f":"IF('1. Order'!V1261=\"\",\"\",'1. Order'!V1261)","v":""},{"$f":"IF('1. Order'!W1261=\"\",\"\",'1. Order'!W1261)","v":""},{"$f":"IF('1. Order'!X1261=\"\",\"\",'1. Order'!X1261)","v":"EUR"},{"$f":"IF('1. Order'!Y1261=\"\",\"\",'1. Order'!Y1261)","v":""},{"$f":"IF('1. Order'!Z1261=\"\",\"\",'1. Order'!Z1261)","v":""},{"$f":"IF('1. Order'!AA1261=\"\",\"\",'1. Order'!AA1261)","v":""},null,{"$f":"IF('1. Order'!AS1261=\"\",\"\",'1. Order'!AS1261)","v":""},{"$f":"IF('1. Order'!AT1261=\"\",\"\",'1. Order'!AT1261)","v":""},null,null,null,null,null,null,null,{"$f":"IF('1. Order'!AX1261=\"\",\"\",'1. Order'!AX1261)","v":""},{"$f":"IF('1. Order'!AY1261=\"\",\"\",'1. Order'!AY1261)","v":""},{"$f":"IF('1. Order'!AZ1261=\"\",\"\",'1. Order'!AZ1261)","v":""},{"$f":"IF('1. Order'!BA1261=\"\",\"\",'1. Order'!BA1261)","v":""},{"$f":"IF('1. Order'!BC1261=\"\",\"\",'1. Order'!BC1261)","v":""},{"$f":"IF('1. Order'!BD1261=\"\",\"\",'1. Order'!BD1261)","v":6},{"$f":"IF('1. Order'!BE1261=\"\",\"\",'1. Order'!BE1261)","v":"None"},{"$f":"IF('1. Order'!BF1261=\"\",\"\",'1. Order'!BF1261)","v":"Parcel"},{"$f":"IF('1. Order'!BG1261=\"\",\"\",'1. Order'!BG1261)","v":"ZWO"}]
[{"$f":"IF('1. Order'!F1262=\"\",\"\",'1. Order'!F1262)","v":""},{"$f":"IF('1. Order'!G1262=\"\",\"\",'1. Order'!G1262)","v":""},{"$f":"IF('1. Order'!H1262=\"\",\"\",'1. Order'!H1262)","v":""},{"$f":"IF('1. Order'!I1262=\"\",\"\",'1. Order'!I1262)","v":""},{"$f":"IF('1. Order'!J1262=\"\",\"\",'1. Order'!J1262)","v":""},{"$f":"IF('1. Order'!K1262=\"\",\"\",'1. Order'!K1262)","v":""},{"$f":"IF('1. Order'!L1262=\"\",\"\",'1. Order'!L1262)","v":""},{"$f":"IF('1. Order'!M1262=\"\",\"\",'1. Order'!M1262)","v":""},{"$f":"IF('1. Order'!N1262=\"\",\"\",'1. Order'!N1262)","v":""},{"$f":"IF('1. Order'!O1262=\"\",\"\",'1. Order'!O1262)","v":{"$error":"#N/A"}},{"$f":"IF('1. Order'!P1262=\"\",\"\",'1. Order'!P1262)","v":{"$error":"#N/A"}},{"$f":"IF('1. Order'!Q1262=\"\",\"\",'1. Order'!Q1262)","v":""},{"$f":"IF('1. Order'!R1262=\"\",\"\",'1. Order'!R1262)","v":""},{"$f":"IF('1. Order'!S1262=\"\",\"\",'1. Order'!S1262)","v":""},{"$f":"IF('1. Order'!V1262=\"\",\"\",'1. Order'!V1262)","v":""},{"$f":"IF('1. Order'!W1262=\"\",\"\",'1. Order'!W1262)","v":""},{"$f":"IF('1. Order'!X1262=\"\",\"\",'1. Order'!X1262)","v":"EUR"},{"$f":"IF('1. Order'!Y1262=\"\",\"\",'1. Order'!Y1262)","v":""},{"$f":"IF('1. Order'!Z1262=\"\",\"\",'1. Order'!Z1262)","v":""},{"$f":"IF('1. Order'!AA1262=\"\",\"\",'1. Order'!AA1262)","v":""},null,{"$f":"IF('1. Order'!AS1262=\"\",\"\",'1. Order'!AS1262)","v":""},{"$f":"IF('1. Order'!AT1262=\"\",\"\",'1. Order'!AT1262)","v":""},null,null,null,null,null,null,null,{"$f":"IF('1. Order'!AX1262=\"\",\"\",'1. Order'!AX1262)","v":""},{"$f":"IF('1. Order'!AY1262=\"\",\"\",'1. Order'!AY1262)","v":""},{"$f":"IF('1. Order'!AZ1262=\"\",\"\",'1. Order'!AZ1262)","v":""},{"$f":"IF('1. Order'!BA1262=\"\",\"\",'1. Order'!BA1262)","v":""},{"$f":"IF('1. Order'!BC1262=\"\",\"\",'1. Order'!BC1262)","v":""},{"$f":"IF('1. Order'!BD1262=\"\",\"\",'1. Order'!BD1262)","v":6},{"$f":"IF('1. Order'!BE1262=\"\",\"\",'1. Order'!BE1262)","v":"None"},{"$f":"IF('1. Order'!BF1262=\"\",\"\",'1. Order'!BF1262)","v":"Parcel"},{"$f":"IF('1. Order'!BG1262=\"\",\"\",'1. Order'!BG1262)","v":"ZWO"}]
[{"$f":"IF('1. Order'!F1263=\"\",\"\",'1. Order'!F1263)","v":""},{"$f":"IF('1. Order'!G1263=\"\",\"\",'1. Order'!G1263)","v":""},{"$f":"IF('1. Order'!H1263=\"\",\"\",'1. Order'!H1263)","v":""},{"$f":"IF('1. Order'!I1263=\"\",\"\",'1. Order'!I1263)","v":""},{"$f":"IF('1. Order'!J1263=\"\",\"\",'1. Order'!J1263)","v":""},{"$f":"IF('1. Order'!K1263=\"\",\"\",'1. Order'!K1263)","v":""},{"$f":"IF('1. Order'!L1263=\"\",\"\",'1. Order'!L1263)","v":""},{"$f":"IF('1. Order'!M1263=\"\",\"\",'1. Order'!M1263)","v":""},{"$f":"IF('1. Order'!N1263=\"\",\"\",'1. Order'!N1263)","v":""},{"$f":"IF('1. Order'!O1263=\"\",\"\",'1. Order'!O1263)","v":{"$error":"#N/A"}},{"$f":"IF('1. Order'!P1263=\"\",\"\",'1. Order'!P1263)","v":{"$error":"#N/A"}},{"$f":"IF('1. Order'!Q1263=\"\",\"\",'1. Order'!Q1263)","v":""},{"$f":"IF('1. Order'!R1263=\"\",\"\",'1. Order'!R1263)","v":""},{"$f":"IF('1. Order'!S1263=\"\",\"\",'1. Order'!S1263)","v":""},{"$f":"IF('1. Order'!V1263=\"\",\"\",'1. Order'!V1263)","v":""},{"$f":"IF('1. Order'!W1263=\"\",\"\",'1. Order'!W1263)","v":""},{"$f":"IF('1. Order'!X1263=\"\",\"\",'1. Order'!X1263)","v":"EUR"},{"$f":"IF('1. Order'!Y1263=\"\",\"\",'1. Order'!Y1263)","v":""},{"$f":"IF('1. Order'!Z1263=\"\",\"\",'1. Order'!Z1263)","v":""},{"$f":"IF('1. Order'!AA1263=\"\",\"\",'1. Order'!AA1263)","v":""},null,{"$f":"IF('1. Order'!AS1263=\"\",\"\",'1. Order'!AS1263)","v":""},{"$f":"IF('1. Order'!AT1263=\"\",\"\",'1. Order'!AT1263)","v":""},null,null,null,null,null,null,null,{"$f":"IF('1. Order'!AX1263=\"\",\"\",'1. Order'!AX1263)","v":""},{"$f":"IF('1. Order'!AY1263=\"\",\"\",'1. Order'!AY1263)","v":""},{"$f":"IF('1. Order'!AZ1263=\"\",\"\",'1. Order'!AZ1263)","v":""},{"$f":"IF('1. Order'!BA1263=\"\",\"\",'1. Order'!BA1263)","v":""},{"$f":"IF('1. Order'!BC1263=\"\",\"\",'1. Order'!BC1263)","v":""},{"$f":"IF('1. Order'!BD1263=\"\",\"\",'1. Order'!BD1263)","v":6},{"$f":"IF('1. Order'!BE1263=\"\",\"\",'1. Order'!BE1263)","v":"None"},{"$f":"IF('1. Order'!BF1263=\"\",\"\",'1. Order'!BF1263)","v":"Parcel"},{"$f":"IF('1. Order'!BG1263=\"\",\"\",'1. Order'!BG1263)","v":"ZWO"}]
[{"$f":"IF('1. Order'!F1264=\"\",\"\",'1. Order'!F1264)","v":""},{"$f":"IF('1. Order'!G1264=\"\",\"\",'1. Order'!G1264)","v":""},{"$f":"IF('1. Order'!H1264=\"\",\"\",'1. Order'!H1264)","v":""},{"$f":"IF('1. Order'!I1264=\"\",\"\",'1. Order'!I1264)","v":""},{"$f":"IF('1. Order'!J1264=\"\",\"\",'1. Order'!J1264)","v":""},{"$f":"IF('1. Order'!K1264=\"\",\"\",'1. Order'!K1264)","v":""},{"$f":"IF('1. Order'!L1264=\"\",\"\",'1. Order'!L1264)","v":""},{"$f":"IF('1. Order'!M1264=\"\",\"\",'1. Order'!M1264)","v":""},{"$f":"IF('1. Order'!N1264=\"\",\"\",'1. Order'!N1264)","v":""},{"$f":"IF('1. Order'!O1264=\"\",\"\",'1. Order'!O1264)","v":{"$error":"#N/A"}},{"$f":"IF('1. Order'!P1264=\"\",\"\",'1. Order'!P1264)","v":{"$error":"#N/A"}},{"$f":"IF('1. Order'!Q1264=\"\",\"\",'1. Order'!Q1264)","v":""},{"$f":"IF('1. Order'!R1264=\"\",\"\",'1. Order'!R1264)","v":""},{"$f":"IF('1. Order'!S1264=\"\",\"\",'1. Order'!S1264)","v":""},{"$f":"IF('1. Order'!V1264=\"\",\"\",'1. Order'!V1264)","v":""},{"$f":"IF('1. Order'!W1264=\"\",\"\",'1. Order'!W1264)","v":""},{"$f":"IF('1. Order'!X1264=\"\",\"\",'1. Order'!X1264)","v":"EUR"},{"$f":"IF('1. Order'!Y1264=\"\",\"\",'1. Order'!Y1264)","v":""},{"$f":"IF('1. Order'!Z1264=\"\",\"\",'1. Order'!Z1264)","v":""},{"$f":"IF('1. Order'!AA1264=\"\",\"\",'1. Order'!AA1264)","v":""},null,{"$f":"IF('1. Order'!AS1264=\"\",\"\",'1. Order'!AS1264)","v":""},{"$f":"IF('1. Order'!AT1264=\"\",\"\",'1. Order'!AT1264)","v":""},null,null,null,null,null,null,null,{"$f":"IF('1. Order'!AX1264=\"\",\"\",'1. Order'!AX1264)","v":""},{"$f":"IF('1. Order'!AY1264=\"\",\"\",'1. Order'!AY1264)","v":""},{"$f":"IF('1. Order'!AZ1264=\"\",\"\",'1. Order'!AZ1264)","v":""},{"$f":"IF('1. Order'!BA1264=\"\",\"\",'1. Order'!BA1264)","v":""},{"$f":"IF('1. Order'!BC1264=\"\",\"\",'1. Order'!BC1264)","v":""},{"$f":"IF('1. Order'!BD1264=\"\",\"\",'1. Order'!BD1264)","v":6},{"$f":"IF('1. Order'!BE1264=\"\",\"\",'1. Order'!BE1264)","v":"None"},{"$f":"IF('1. Order'!BF1264=\"\",\"\",'1. Order'!BF1264)","v":"Parcel"},{"$f":"IF('1. Order'!BG1264=\"\",\"\",'1. Order'!BG1264)","v":"ZWO"}]
[{"$f":"IF('1. Order'!F1265=\"\",\"\",'1. Order'!F1265)","v":""},{"$f":"IF('1. Order'!G1265=\"\",\"\",'1. Order'!G1265)","v":""},{"$f":"IF('1. Order'!H1265=\"\",\"\",'1. Order'!H1265)","v":""},{"$f":"IF('1. Order'!I1265=\"\",\"\",'1. Order'!I1265)","v":""},{"$f":"IF('1. Order'!J1265=\"\",\"\",'1. Order'!J1265)","v":""},{"$f":"IF('1. Order'!K1265=\"\",\"\",'1. Order'!K1265)","v":""},{"$f":"IF('1. Order'!L1265=\"\",\"\",'1. Order'!L1265)","v":""},{"$f":"IF('1. Order'!M1265=\"\",\"\",'1. Order'!M1265)","v":""},{"$f":"IF('1. Order'!N1265=\"\",\"\",'1. Order'!N1265)","v":""},{"$f":"IF('1. Order'!O1265=\"\",\"\",'1. Order'!O1265)","v":{"$error":"#N/A"}},{"$f":"IF('1. Order'!P1265=\"\",\"\",'1. Order'!P1265)","v":{"$error":"#N/A"}},{"$f":"IF('1. Order'!Q1265=\"\",\"\",'1. Order'!Q1265)","v":""},{"$f":"IF('1. Order'!R1265=\"\",\"\",'1. Order'!R1265)","v":""},{"$f":"IF('1. Order'!S1265=\"\",\"\",'1. Order'!S1265)","v":""},{"$f":"IF('1. Order'!V1265=\"\",\"\",'1. Order'!V1265)","v":""},{"$f":"IF('1. Order'!W1265=\"\",\"\",'1. Order'!W1265)","v":""},{"$f":"IF('1. Order'!X1265=\"\",\"\",'1. Order'!X1265)","v":"EUR"},{"$f":"IF('1. Order'!Y1265=\"\",\"\",'1. Order'!Y1265)","v":""},{"$f":"IF('1. Order'!Z1265=\"\",\"\",'1. Order'!Z1265)","v":""},{"$f":"IF('1. Order'!AA1265=\"\",\"\",'1. Order'!AA1265)","v":""},null,{"$f":"IF('1. Order'!AS1265=\"\",\"\",'1. Order'!AS1265)","v":""},{"$f":"IF('1. Order'!AT1265=\"\",\"\",'1. Order'!AT1265)","v":""},null,null,null,null,null,null,null,{"$f":"IF('1. Order'!AX1265=\"\",\"\",'1. Order'!AX1265)","v":""},{"$f":"IF('1. Order'!AY1265=\"\",\"\",'1. Order'!AY1265)","v":""},{"$f":"IF('1. Order'!AZ1265=\"\",\"\",'1. Order'!AZ1265)","v":""},{"$f":"IF('1. Order'!BA1265=\"\",\"\",'1. Order'!BA1265)","v":""},{"$f":"IF('1. Order'!BC1265=\"\",\"\",'1. Order'!BC1265)","v":""},{"$f":"IF('1. Order'!BD1265=\"\",\"\",'1. Order'!BD1265)","v":6},{"$f":"IF('1. Order'!BE1265=\"\",\"\",'1. Order'!BE1265)","v":"None"},{"$f":"IF('1. Order'!BF1265=\"\",\"\",'1. Order'!BF1265)","v":"Parcel"},{"$f":"IF('1. Order'!BG1265=\"\",\"\",'1. Order'!BG1265)","v":"ZWO"}]
[{"$f":"IF('1. Order'!F1266=\"\",\"\",'1. Order'!F1266)","v":""},{"$f":"IF('1. Order'!G1266=\"\",\"\",'1. Order'!G1266)","v":""},{"$f":"IF('1. Order'!H1266=\"\",\"\",'1. Order'!H1266)","v":""},{"$f":"IF('1. Order'!I1266=\"\",\"\",'1. Order'!I1266)","v":""},{"$f":"IF('1. Order'!J1266=\"\",\"\",'1. Order'!J1266)","v":""},{"$f":"IF('1. Order'!K1266=\"\",\"\",'1. Order'!K1266)","v":""},{"$f":"IF('1. Order'!L1266=\"\",\"\",'1. Order'!L1266)","v":""},{"$f":"IF('1. Order'!M1266=\"\",\"\",'1. Order'!M1266)","v":""},{"$f":"IF('1. Order'!N1266=\"\",\"\",'1. Order'!N1266)","v":""},{"$f":"IF('1. Order'!O1266=\"\",\"\",'1. Order'!O1266)","v":{"$error":"#N/A"}},{"$f":"IF('1. Order'!P1266=\"\",\"\",'1. Order'!P1266)","v":{"$error":"#N/A"}},{"$f":"IF('1. Order'!Q1266=\"\",\"\",'1. Order'!Q1266)","v":""},{"$f":"IF('1. Order'!R1266=\"\",\"\",'1. Order'!R1266)","v":""},{"$f":"IF('1. Order'!S1266=\"\",\"\",'1. Order'!S1266)","v":""},{"$f":"IF('1. Order'!V1266=\"\",\"\",'1. Order'!V1266)","v":""},{"$f":"IF('1. Order'!W1266=\"\",\"\",'1. Order'!W1266)","v":""},{"$f":"IF('1. Order'!X1266=\"\",\"\",'1. Order'!X1266)","v":"EUR"},{"$f":"IF('1. Order'!Y1266=\"\",\"\",'1. Order'!Y1266)","v":""},{"$f":"IF('1. Order'!Z1266=\"\",\"\",'1. Order'!Z1266)","v":""},{"$f":"IF('1. Order'!AA1266=\"\",\"\",'1. Order'!AA1266)","v":""},null,{"$f":"IF('1. Order'!AS1266=\"\",\"\",'1. Order'!AS1266)","v":""},{"$f":"IF('1. Order'!AT1266=\"\",\"\",'1. Order'!AT1266)","v":""},null,null,null,null,null,null,null,{"$f":"IF('1. Order'!AX1266=\"\",\"\",'1. Order'!AX1266)","v":""},{"$f":"IF('1. Order'!AY1266=\"\",\"\",'1. Order'!AY1266)","v":""},{"$f":"IF('1. Order'!AZ1266=\"\",\"\",'1. Order'!AZ1266)","v":""},{"$f":"IF('1. Order'!BA1266=\"\",\"\",'1. Order'!BA1266)","v":""},{"$f":"IF('1. Order'!BC1266=\"\",\"\",'1. Order'!BC1266)","v":""},{"$f":"IF('1. Order'!BD1266=\"\",\"\",'1. Order'!BD1266)","v":6},{"$f":"IF('1. Order'!BE1266=\"\",\"\",'1. Order'!BE1266)","v":"None"},{"$f":"IF('1. Order'!BF1266=\"\",\"\",'1. Order'!BF1266)","v":"Parcel"},{"$f":"IF('1. Order'!BG1266=\"\",\"\",'1. Order'!BG1266)","v":"ZWO"}]
[{"$f":"IF('1. Order'!F1267=\"\",\"\",'1. Order'!F1267)","v":""},{"$f":"IF('1. Order'!G1267=\"\",\"\",'1. Order'!G1267)","v":""},{"$f":"IF('1. Order'!H1267=\"\",\"\",'1. Order'!H1267)","v":""},{"$f":"IF('1. Order'!I1267=\"\",\"\",'1. Order'!I1267)","v":""},{"$f":"IF('1. Order'!J1267=\"\",\"\",'1. Order'!J1267)","v":""},{"$f":"IF('1. Order'!K1267=\"\",\"\",'1. Order'!K1267)","v":""},{"$f":"IF('1. Order'!L1267=\"\",\"\",'1. Order'!L1267)","v":""},{"$f":"IF('1. Order'!M1267=\"\",\"\",'1. Order'!M1267)","v":""},{"$f":"IF('1. Order'!N1267=\"\",\"\",'1. Order'!N1267)","v":""},{"$f":"IF('1. Order'!O1267=\"\",\"\",'1. Order'!O1267)","v":{"$error":"#N/A"}},{"$f":"IF('1. Order'!P1267=\"\",\"\",'1. Order'!P1267)","v":{"$error":"#N/A"}},{"$f":"IF('1. Order'!Q1267=\"\",\"\",'1. Order'!Q1267)","v":""},{"$f":"IF('1. Order'!R1267=\"\",\"\",'1. Order'!R1267)","v":""},{"$f":"IF('1. Order'!S1267=\"\",\"\",'1. Order'!S1267)","v":""},{"$f":"IF('1. Order'!V1267=\"\",\"\",'1. Order'!V1267)","v":""},{"$f":"IF('1. Order'!W1267=\"\",\"\",'1. Order'!W1267)","v":""},{"$f":"IF('1. Order'!X1267=\"\",\"\",'1. Order'!X1267)","v":"EUR"},{"$f":"IF('1. Order'!Y1267=\"\",\"\",'1. Order'!Y1267)","v":""},{"$f":"IF('1. Order'!Z1267=\"\",\"\",'1. Order'!Z1267)","v":""},{"$f":"IF('1. Order'!AA1267=\"\",\"\",'1. Order'!AA1267)","v":""},null,{"$f":"IF('1. Order'!AS1267=\"\",\"\",'1. Order'!AS1267)","v":""},{"$f":"IF('1. Order'!AT1267=\"\",\"\",'1. Order'!AT1267)","v":""},null,null,null,null,null,null,null,{"$f":"IF('1. Order'!AX1267=\"\",\"\",'1. Order'!AX1267)","v":""},{"$f":"IF('1. Order'!AY1267=\"\",\"\",'1. Order'!AY1267)","v":""},{"$f":"IF('1. Order'!AZ1267=\"\",\"\",'1. Order'!AZ1267)","v":""},{"$f":"IF('1. Order'!BA1267=\"\",\"\",'1. Order'!BA1267)","v":""},{"$f":"IF('1. Order'!BC1267=\"\",\"\",'1. Order'!BC1267)","v":""},{"$f":"IF('1. Order'!BD1267=\"\",\"\",'1. Order'!BD1267)","v":6},{"$f":"IF('1. Order'!BE1267=\"\",\"\",'1. Order'!BE1267)","v":"None"},{"$f":"IF('1. Order'!BF1267=\"\",\"\",'1. Order'!BF1267)","v":"Parcel"},{"$f":"IF('1. Order'!BG1267=\"\",\"\",'1. Order'!BG1267)","v":"ZWO"}]
[{"$f":"IF('1. Order'!F1268=\"\",\"\",'1. Order'!F1268)","v":""},{"$f":"IF('1. Order'!G1268=\"\",\"\",'1. Order'!G1268)","v":""},{"$f":"IF('1. Order'!H1268=\"\",\"\",'1. Order'!H1268)","v":""},{"$f":"IF('1. Order'!I1268=\"\",\"\",'1. Order'!I1268)","v":""},{"$f":"IF('1. Order'!J1268=\"\",\"\",'1. Order'!J1268)","v":""},{"$f":"IF('1. Order'!K1268=\"\",\"\",'1. Order'!K1268)","v":""},{"$f":"IF('1. Order'!L1268=\"\",\"\",'1. Order'!L1268)","v":""},{"$f":"IF('1. Order'!M1268=\"\",\"\",'1. Order'!M1268)","v":""},{"$f":"IF('1. Order'!N1268=\"\",\"\",'1. Order'!N1268)","v":""},{"$f":"IF('1. Order'!O1268=\"\",\"\",'1. Order'!O1268)","v":{"$error":"#N/A"}},{"$f":"IF('1. Order'!P1268=\"\",\"\",'1. Order'!P1268)","v":{"$error":"#N/A"}},{"$f":"IF('1. Order'!Q1268=\"\",\"\",'1. Order'!Q1268)","v":""},{"$f":"IF('1. Order'!R1268=\"\",\"\",'1. Order'!R1268)","v":""},{"$f":"IF('1. Order'!S1268=\"\",\"\",'1. Order'!S1268)","v":""},{"$f":"IF('1. Order'!V1268=\"\",\"\",'1. Order'!V1268)","v":""},{"$f":"IF('1. Order'!W1268=\"\",\"\",'1. Order'!W1268)","v":""},{"$f":"IF('1. Order'!X1268=\"\",\"\",'1. Order'!X1268)","v":"EUR"},{"$f":"IF('1. Order'!Y1268=\"\",\"\",'1. Order'!Y1268)","v":""},{"$f":"IF('1. Order'!Z1268=\"\",\"\",'1. Order'!Z1268)","v":""},{"$f":"IF('1. Order'!AA1268=\"\",\"\",'1. Order'!AA1268)","v":""},null,{"$f":"IF('1. Order'!AS1268=\"\",\"\",'1. Order'!AS1268)","v":""},{"$f":"IF('1. Order'!AT1268=\"\",\"\",'1. Order'!AT1268)","v":""},null,null,null,null,null,null,null,{"$f":"IF('1. Order'!AX1268=\"\",\"\",'1. Order'!AX1268)","v":""},{"$f":"IF('1. Order'!AY1268=\"\",\"\",'1. Order'!AY1268)","v":""},{"$f":"IF('1. Order'!AZ1268=\"\",\"\",'1. Order'!AZ1268)","v":""},{"$f":"IF('1. Order'!BA1268=\"\",\"\",'1. Order'!BA1268)","v":""},{"$f":"IF('1. Order'!BC1268=\"\",\"\",'1. Order'!BC1268)","v":""},{"$f":"IF('1. Order'!BD1268=\"\",\"\",'1. Order'!BD1268)","v":6},{"$f":"IF('1. Order'!BE1268=\"\",\"\",'1. Order'!BE1268)","v":"None"},{"$f":"IF('1. Order'!BF1268=\"\",\"\",'1. Order'!BF1268)","v":"Parcel"},{"$f":"IF('1. Order'!BG1268=\"\",\"\",'1. Order'!BG1268)","v":"ZWO"}]
[{"$f":"IF('1. Order'!F1269=\"\",\"\",'1. Order'!F1269)","v":""},{"$f":"IF('1. Order'!G1269=\"\",\"\",'1. Order'!G1269)","v":""},{"$f":"IF('1. Order'!H1269=\"\",\"\",'1. Order'!H1269)","v":""},{"$f":"IF('1. Order'!I1269=\"\",\"\",'1. Order'!I1269)","v":""},{"$f":"IF('1. Order'!J1269=\"\",\"\",'1. Order'!J1269)","v":""},{"$f":"IF('1. Order'!K1269=\"\",\"\",'1. Order'!K1269)","v":""},{"$f":"IF('1. Order'!L1269=\"\",\"\",'1. Order'!L1269)","v":""},{"$f":"IF('1. Order'!M1269=\"\",\"\",'1. Order'!M1269)","v":""},{"$f":"IF('1. Order'!N1269=\"\",\"\",'1. Order'!N1269)","v":""},{"$f":"IF('1. Order'!O1269=\"\",\"\",'1. Order'!O1269)","v":{"$error":"#N/A"}},{"$f":"IF('1. Order'!P1269=\"\",\"\",'1. Order'!P1269)","v":{"$error":"#N/A"}},{"$f":"IF('1. Order'!Q1269=\"\",\"\",'1. Order'!Q1269)","v":""},{"$f":"IF('1. Order'!R1269=\"\",\"\",'1. Order'!R1269)","v":""},{"$f":"IF('1. Order'!S1269=\"\",\"\",'1. Order'!S1269)","v":""},{"$f":"IF('1. Order'!V1269=\"\",\"\",'1. Order'!V1269)","v":""},{"$f":"IF('1. Order'!W1269=\"\",\"\",'1. Order'!W1269)","v":""},{"$f":"IF('1. Order'!X1269=\"\",\"\",'1. Order'!X1269)","v":"EUR"},{"$f":"IF('1. Order'!Y1269=\"\",\"\",'1. Order'!Y1269)","v":""},{"$f":"IF('1. Order'!Z1269=\"\",\"\",'1. Order'!Z1269)","v":""},{"$f":"IF('1. Order'!AA1269=\"\",\"\",'1. Order'!AA1269)","v":""},null,{"$f":"IF('1. Order'!AS1269=\"\",\"\",'1. Order'!AS1269)","v":""},{"$f":"IF('1. Order'!AT1269=\"\",\"\",'1. Order'!AT1269)","v":""},null,null,null,null,null,null,null,{"$f":"IF('1. Order'!AX1269=\"\",\"\",'1. Order'!AX1269)","v":""},{"$f":"IF('1. Order'!AY1269=\"\",\"\",'1. Order'!AY1269)","v":""},{"$f":"IF('1. Order'!AZ1269=\"\",\"\",'1. Order'!AZ1269)","v":""},{"$f":"IF('1. Order'!BA1269=\"\",\"\",'1. Order'!BA1269)","v":""},{"$f":"IF('1. Order'!BC1269=\"\",\"\",'1. Order'!BC1269)","v":""},{"$f":"IF('1. Order'!BD1269=\"\",\"\",'1. Order'!BD1269)","v":6},{"$f":"IF('1. Order'!BE1269=\"\",\"\",'1. Order'!BE1269)","v":"None"},{"$f":"IF('1. Order'!BF1269=\"\",\"\",'1. Order'!BF1269)","v":"Parcel"},{"$f":"IF('1. Order'!BG1269=\"\",\"\",'1. Order'!BG1269)","v":"ZWO"}]
[{"$f":"IF('1. Order'!F1270=\"\",\"\",'1. Order'!F1270)","v":""},{"$f":"IF('1. Order'!G1270=\"\",\"\",'1. Order'!G1270)","v":""},{"$f":"IF('1. Order'!H1270=\"\",\"\",'1. Order'!H1270)","v":""},{"$f":"IF('1. Order'!I1270=\"\",\"\",'1. Order'!I1270)","v":""},{"$f":"IF('1. Order'!J1270=\"\",\"\",'1. Order'!J1270)","v":""},{"$f":"IF('1. Order'!K1270=\"\",\"\",'1. Order'!K1270)","v":""},{"$f":"IF('1. Order'!L1270=\"\",\"\",'1. Order'!L1270)","v":""},{"$f":"IF('1. Order'!M1270=\"\",\"\",'1. Order'!M1270)","v":""},{"$f":"IF('1. Order'!N1270=\"\",\"\",'1. Order'!N1270)","v":""},{"$f":"IF('1. Order'!O1270=\"\",\"\",'1. Order'!O1270)","v":{"$error":"#N/A"}},{"$f":"IF('1. Order'!P1270=\"\",\"\",'1. Order'!P1270)","v":{"$error":"#N/A"}},{"$f":"IF('1. Order'!Q1270=\"\",\"\",'1. Order'!Q1270)","v":""},{"$f":"IF('1. Order'!R1270=\"\",\"\",'1. Order'!R1270)","v":""},{"$f":"IF('1. Order'!S1270=\"\",\"\",'1. Order'!S1270)","v":""},{"$f":"IF('1. Order'!V1270=\"\",\"\",'1. Order'!V1270)","v":""},{"$f":"IF('1. Order'!W1270=\"\",\"\",'1. Order'!W1270)","v":""},{"$f":"IF('1. Order'!X1270=\"\",\"\",'1. Order'!X1270)","v":"EUR"},{"$f":"IF('1. Order'!Y1270=\"\",\"\",'1. Order'!Y1270)","v":""},{"$f":"IF('1. Order'!Z1270=\"\",\"\",'1. Order'!Z1270)","v":""},{"$f":"IF('1. Order'!AA1270=\"\",\"\",'1. Order'!AA1270)","v":""},null,{"$f":"IF('1. Order'!AS1270=\"\",\"\",'1. Order'!AS1270)","v":""},{"$f":"IF('1. Order'!AT1270=\"\",\"\",'1. Order'!AT1270)","v":""},null,null,null,null,null,null,null,{"$f":"IF('1. Order'!AX1270=\"\",\"\",'1. Order'!AX1270)","v":""},{"$f":"IF('1. Order'!AY1270=\"\",\"\",'1. Order'!AY1270)","v":""},{"$f":"IF('1. Order'!AZ1270=\"\",\"\",'1. Order'!AZ1270)","v":""},{"$f":"IF('1. Order'!BA1270=\"\",\"\",'1. Order'!BA1270)","v":""},{"$f":"IF('1. Order'!BC1270=\"\",\"\",'1. Order'!BC1270)","v":""},{"$f":"IF('1. Order'!BD1270=\"\",\"\",'1. Order'!BD1270)","v":6},{"$f":"IF('1. Order'!BE1270=\"\",\"\",'1. Order'!BE1270)","v":"None"},{"$f":"IF('1. Order'!BF1270=\"\",\"\",'1. Order'!BF1270)","v":"Parcel"},{"$f":"IF('1. Order'!BG1270=\"\",\"\",'1. Order'!BG1270)","v":"ZWO"}]
[{"$f":"IF('1. Order'!F1271=\"\",\"\",'1. Order'!F1271)","v":""},{"$f":"IF('1. Order'!G1271=\"\",\"\",'1. Order'!G1271)","v":""},{"$f":"IF('1. Order'!H1271=\"\",\"\",'1. Order'!H1271)","v":""},{"$f":"IF('1. Order'!I1271=\"\",\"\",'1. Order'!I1271)","v":""},{"$f":"IF('1. Order'!J1271=\"\",\"\",'1. Order'!J1271)","v":""},{"$f":"IF('1. Order'!K1271=\"\",\"\",'1. Order'!K1271)","v":""},{"$f":"IF('1. Order'!L1271=\"\",\"\",'1. Order'!L1271)","v":""},{"$f":"IF('1. Order'!M1271=\"\",\"\",'1. Order'!M1271)","v":""},{"$f":"IF('1. Order'!N1271=\"\",\"\",'1. Order'!N1271)","v":""},{"$f":"IF('1. Order'!O1271=\"\",\"\",'1. Order'!O1271)","v":{"$error":"#N/A"}},{"$f":"IF('1. Order'!P1271=\"\",\"\",'1. Order'!P1271)","v":{"$error":"#N/A"}},{"$f":"IF('1. Order'!Q1271=\"\",\"\",'1. Order'!Q1271)","v":""},{"$f":"IF('1. Order'!R1271=\"\",\"\",'1. Order'!R1271)","v":""},{"$f":"IF('1. Order'!S1271=\"\",\"\",'1. Order'!S1271)","v":""},{"$f":"IF('1. Order'!V1271=\"\",\"\",'1. Order'!V1271)","v":""},{"$f":"IF('1. Order'!W1271=\"\",\"\",'1. Order'!W1271)","v":""},{"$f":"IF('1. Order'!X1271=\"\",\"\",'1. Order'!X1271)","v":"EUR"},{"$f":"IF('1. Order'!Y1271=\"\",\"\",'1. Order'!Y1271)","v":""},{"$f":"IF('1. Order'!Z1271=\"\",\"\",'1. Order'!Z1271)","v":""},{"$f":"IF('1. Order'!AA1271=\"\",\"\",'1. Order'!AA1271)","v":""},null,{"$f":"IF('1. Order'!AS1271=\"\",\"\",'1. Order'!AS1271)","v":""},{"$f":"IF('1. Order'!AT1271=\"\",\"\",'1. Order'!AT1271)","v":""},null,null,null,null,null,null,null,{"$f":"IF('1. Order'!AX1271=\"\",\"\",'1. Order'!AX1271)","v":""},{"$f":"IF('1. Order'!AY1271=\"\",\"\",'1. Order'!AY1271)","v":""},{"$f":"IF('1. Order'!AZ1271=\"\",\"\",'1. Order'!AZ1271)","v":""},{"$f":"IF('1. Order'!BA1271=\"\",\"\",'1. Order'!BA1271)","v":""},{"$f":"IF('1. Order'!BC1271=\"\",\"\",'1. Order'!BC1271)","v":""},{"$f":"IF('1. Order'!BD1271=\"\",\"\",'1. Order'!BD1271)","v":6},{"$f":"IF('1. Order'!BE1271=\"\",\"\",'1. Order'!BE1271)","v":"None"},{"$f":"IF('1. Order'!BF1271=\"\",\"\",'1. Order'!BF1271)","v":"Parcel"},{"$f":"IF('1. Order'!BG1271=\"\",\"\",'1. Order'!BG1271)","v":"ZWO"}]
[{"$f":"IF('1. Order'!F1272=\"\",\"\",'1. Order'!F1272)","v":""},{"$f":"IF('1. Order'!G1272=\"\",\"\",'1. Order'!G1272)","v":""},{"$f":"IF('1. Order'!H1272=\"\",\"\",'1. Order'!H1272)","v":""},{"$f":"IF('1. Order'!I1272=\"\",\"\",'1. Order'!I1272)","v":""},{"$f":"IF('1. Order'!J1272=\"\",\"\",'1. Order'!J1272)","v":""},{"$f":"IF('1. Order'!K1272=\"\",\"\",'1. Order'!K1272)","v":""},{"$f":"IF('1. Order'!L1272=\"\",\"\",'1. Order'!L1272)","v":""},{"$f":"IF('1. Order'!M1272=\"\",\"\",'1. Order'!M1272)","v":""},{"$f":"IF('1. Order'!N1272=\"\",\"\",'1. Order'!N1272)","v":""},{"$f":"IF('1. Order'!O1272=\"\",\"\",'1. Order'!O1272)","v":{"$error":"#N/A"}},{"$f":"IF('1. Order'!P1272=\"\",\"\",'1. Order'!P1272)","v":{"$error":"#N/A"}},{"$f":"IF('1. Order'!Q1272=\"\",\"\",'1. Order'!Q1272)","v":""},{"$f":"IF('1. Order'!R1272=\"\",\"\",'1. Order'!R1272)","v":""},{"$f":"IF('1. Order'!S1272=\"\",\"\",'1. Order'!S1272)","v":""},{"$f":"IF('1. Order'!V1272=\"\",\"\",'1. Order'!V1272)","v":""},{"$f":"IF('1. Order'!W1272=\"\",\"\",'1. Order'!W1272)","v":""},{"$f":"IF('1. Order'!X1272=\"\",\"\",'1. Order'!X1272)","v":"EUR"},{"$f":"IF('1. Order'!Y1272=\"\",\"\",'1. Order'!Y1272)","v":""},{"$f":"IF('1. Order'!Z1272=\"\",\"\",'1. Order'!Z1272)","v":""},{"$f":"IF('1. Order'!AA1272=\"\",\"\",'1. Order'!AA1272)","v":""},null,{"$f":"IF('1. Order'!AS1272=\"\",\"\",'1. Order'!AS1272)","v":""},{"$f":"IF('1. Order'!AT1272=\"\",\"\",'1. Order'!AT1272)","v":""},null,null,null,null,null,null,null,{"$f":"IF('1. Order'!AX1272=\"\",\"\",'1. Order'!AX1272)","v":""},{"$f":"IF('1. Order'!AY1272=\"\",\"\",'1. Order'!AY1272)","v":""},{"$f":"IF('1. Order'!AZ1272=\"\",\"\",'1. Order'!AZ1272)","v":""},{"$f":"IF('1. Order'!BA1272=\"\",\"\",'1. Order'!BA1272)","v":""},{"$f":"IF('1. Order'!BC1272=\"\",\"\",'1. Order'!BC1272)","v":""},{"$f":"IF('1. Order'!BD1272=\"\",\"\",'1. Order'!BD1272)","v":6},{"$f":"IF('1. Order'!BE1272=\"\",\"\",'1. Order'!BE1272)","v":"None"},{"$f":"IF('1. Order'!BF1272=\"\",\"\",'1. Order'!BF1272)","v":"Parcel"},{"$f":"IF('1. Order'!BG1272=\"\",\"\",'1. Order'!BG1272)","v":"ZWO"}]
[{"$f":"IF('1. Order'!F1273=\"\",\"\",'1. Order'!F1273)","v":""},{"$f":"IF('1. Order'!G1273=\"\",\"\",'1. Order'!G1273)","v":""},{"$f":"IF('1. Order'!H1273=\"\",\"\",'1. Order'!H1273)","v":""},{"$f":"IF('1. Order'!I1273=\"\",\"\",'1. Order'!I1273)","v":""},{"$f":"IF('1. Order'!J1273=\"\",\"\",'1. Order'!J1273)","v":""},{"$f":"IF('1. Order'!K1273=\"\",\"\",'1. Order'!K1273)","v":""},{"$f":"IF('1. Order'!L1273=\"\",\"\",'1. Order'!L1273)","v":""},{"$f":"IF('1. Order'!M1273=\"\",\"\",'1. Order'!M1273)","v":""},{"$f":"IF('1. Order'!N1273=\"\",\"\",'1. Order'!N1273)","v":""},{"$f":"IF('1. Order'!O1273=\"\",\"\",'1. Order'!O1273)","v":{"$error":"#N/A"}},{"$f":"IF('1. Order'!P1273=\"\",\"\",'1. Order'!P1273)","v":{"$error":"#N/A"}},{"$f":"IF('1. Order'!Q1273=\"\",\"\",'1. Order'!Q1273)","v":""},{"$f":"IF('1. Order'!R1273=\"\",\"\",'1. Order'!R1273)","v":""},{"$f":"IF('1. Order'!S1273=\"\",\"\",'1. Order'!S1273)","v":""},{"$f":"IF('1. Order'!V1273=\"\",\"\",'1. Order'!V1273)","v":""},{"$f":"IF('1. Order'!W1273=\"\",\"\",'1. Order'!W1273)","v":""},{"$f":"IF('1. Order'!X1273=\"\",\"\",'1. Order'!X1273)","v":"EUR"},{"$f":"IF('1. Order'!Y1273=\"\",\"\",'1. Order'!Y1273)","v":""},{"$f":"IF('1. Order'!Z1273=\"\",\"\",'1. Order'!Z1273)","v":""},{"$f":"IF('1. Order'!AA1273=\"\",\"\",'1. Order'!AA1273)","v":""},null,{"$f":"IF('1. Order'!AS1273=\"\",\"\",'1. Order'!AS1273)","v":""},{"$f":"IF('1. Order'!AT1273=\"\",\"\",'1. Order'!AT1273)","v":""},null,null,null,null,null,null,null,{"$f":"IF('1. Order'!AX1273=\"\",\"\",'1. Order'!AX1273)","v":""},{"$f":"IF('1. Order'!AY1273=\"\",\"\",'1. Order'!AY1273)","v":""},{"$f":"IF('1. Order'!AZ1273=\"\",\"\",'1. Order'!AZ1273)","v":""},{"$f":"IF('1. Order'!BA1273=\"\",\"\",'1. Order'!BA1273)","v":""},{"$f":"IF('1. Order'!BC1273=\"\",\"\",'1. Order'!BC1273)","v":""},{"$f":"IF('1. Order'!BD1273=\"\",\"\",'1. Order'!BD1273)","v":6},{"$f":"IF('1. Order'!BE1273=\"\",\"\",'1. Order'!BE1273)","v":"None"},{"$f":"IF('1. Order'!BF1273=\"\",\"\",'1. Order'!BF1273)","v":"Parcel"},{"$f":"IF('1. Order'!BG1273=\"\",\"\",'1. Order'!BG1273)","v":"ZWO"}]
[{"$f":"IF('1. Order'!F1274=\"\",\"\",'1. Order'!F1274)","v":""},{"$f":"IF('1. Order'!G1274=\"\",\"\",'1. Order'!G1274)","v":""},{"$f":"IF('1. Order'!H1274=\"\",\"\",'1. Order'!H1274)","v":""},{"$f":"IF('1. Order'!I1274=\"\",\"\",'1. Order'!I1274)","v":""},{"$f":"IF('1. Order'!J1274=\"\",\"\",'1. Order'!J1274)","v":""},{"$f":"IF('1. Order'!K1274=\"\",\"\",'1. Order'!K1274)","v":""},{"$f":"IF('1. Order'!L1274=\"\",\"\",'1. Order'!L1274)","v":""},{"$f":"IF('1. Order'!M1274=\"\",\"\",'1. Order'!M1274)","v":""},{"$f":"IF('1. Order'!N1274=\"\",\"\",'1. Order'!N1274)","v":""},{"$f":"IF('1. Order'!O1274=\"\",\"\",'1. Order'!O1274)","v":{"$error":"#N/A"}},{"$f":"IF('1. Order'!P1274=\"\",\"\",'1. Order'!P1274)","v":{"$error":"#N/A"}},{"$f":"IF('1. Order'!Q1274=\"\",\"\",'1. Order'!Q1274)","v":""},{"$f":"IF('1. Order'!R1274=\"\",\"\",'1. Order'!R1274)","v":""},{"$f":"IF('1. Order'!S1274=\"\",\"\",'1. Order'!S1274)","v":""},{"$f":"IF('1. Order'!V1274=\"\",\"\",'1. Order'!V1274)","v":""},{"$f":"IF('1. Order'!W1274=\"\",\"\",'1. Order'!W1274)","v":""},{"$f":"IF('1. Order'!X1274=\"\",\"\",'1. Order'!X1274)","v":"EUR"},{"$f":"IF('1. Order'!Y1274=\"\",\"\",'1. Order'!Y1274)","v":""},{"$f":"IF('1. Order'!Z1274=\"\",\"\",'1. Order'!Z1274)","v":""},{"$f":"IF('1. Order'!AA1274=\"\",\"\",'1. Order'!AA1274)","v":""},null,{"$f":"IF('1. Order'!AS1274=\"\",\"\",'1. Order'!AS1274)","v":""},{"$f":"IF('1. Order'!AT1274=\"\",\"\",'1. Order'!AT1274)","v":""},null,null,null,null,null,null,null,{"$f":"IF('1. Order'!AX1274=\"\",\"\",'1. Order'!AX1274)","v":""},{"$f":"IF('1. Order'!AY1274=\"\",\"\",'1. Order'!AY1274)","v":""},{"$f":"IF('1. Order'!AZ1274=\"\",\"\",'1. Order'!AZ1274)","v":""},{"$f":"IF('1. Order'!BA1274=\"\",\"\",'1. Order'!BA1274)","v":""},{"$f":"IF('1. Order'!BC1274=\"\",\"\",'1. Order'!BC1274)","v":""},{"$f":"IF('1. Order'!BD1274=\"\",\"\",'1. Order'!BD1274)","v":6},{"$f":"IF('1. Order'!BE1274=\"\",\"\",'1. Order'!BE1274)","v":"None"},{"$f":"IF('1. Order'!BF1274=\"\",\"\",'1. Order'!BF1274)","v":"Parcel"},{"$f":"IF('1. Order'!BG1274=\"\",\"\",'1. Order'!BG1274)","v":"ZWO"}]
[{"$f":"IF('1. Order'!F1275=\"\",\"\",'1. Order'!F1275)","v":""},{"$f":"IF('1. Order'!G1275=\"\",\"\",'1. Order'!G1275)","v":""},{"$f":"IF('1. Order'!H1275=\"\",\"\",'1. Order'!H1275)","v":""},{"$f":"IF('1. Order'!I1275=\"\",\"\",'1. Order'!I1275)","v":""},{"$f":"IF('1. Order'!J1275=\"\",\"\",'1. Order'!J1275)","v":""},{"$f":"IF('1. Order'!K1275=\"\",\"\",'1. Order'!K1275)","v":""},{"$f":"IF('1. Order'!L1275=\"\",\"\",'1. Order'!L1275)","v":""},{"$f":"IF('1. Order'!M1275=\"\",\"\",'1. Order'!M1275)","v":""},{"$f":"IF('1. Order'!N1275=\"\",\"\",'1. Order'!N1275)","v":""},{"$f":"IF('1. Order'!O1275=\"\",\"\",'1. Order'!O1275)","v":{"$error":"#N/A"}},{"$f":"IF('1. Order'!P1275=\"\",\"\",'1. Order'!P1275)","v":{"$error":"#N/A"}},{"$f":"IF('1. Order'!Q1275=\"\",\"\",'1. Order'!Q1275)","v":""},{"$f":"IF('1. Order'!R1275=\"\",\"\",'1. Order'!R1275)","v":""},{"$f":"IF('1. Order'!S1275=\"\",\"\",'1. Order'!S1275)","v":""},{"$f":"IF('1. Order'!V1275=\"\",\"\",'1. Order'!V1275)","v":""},{"$f":"IF('1. Order'!W1275=\"\",\"\",'1. Order'!W1275)","v":""},{"$f":"IF('1. Order'!X1275=\"\",\"\",'1. Order'!X1275)","v":"EUR"},{"$f":"IF('1. Order'!Y1275=\"\",\"\",'1. Order'!Y1275)","v":""},{"$f":"IF('1. Order'!Z1275=\"\",\"\",'1. Order'!Z1275)","v":""},{"$f":"IF('1. Order'!AA1275=\"\",\"\",'1. Order'!AA1275)","v":""},null,{"$f":"IF('1. Order'!AS1275=\"\",\"\",'1. Order'!AS1275)","v":""},{"$f":"IF('1. Order'!AT1275=\"\",\"\",'1. Order'!AT1275)","v":""},null,null,null,null,null,null,null,{"$f":"IF('1. Order'!AX1275=\"\",\"\",'1. Order'!AX1275)","v":""},{"$f":"IF('1. Order'!AY1275=\"\",\"\",'1. Order'!AY1275)","v":""},{"$f":"IF('1. Order'!AZ1275=\"\",\"\",'1. Order'!AZ1275)","v":""},{"$f":"IF('1. Order'!BA1275=\"\",\"\",'1. Order'!BA1275)","v":""},{"$f":"IF('1. Order'!BC1275=\"\",\"\",'1. Order'!BC1275)","v":""},{"$f":"IF('1. Order'!BD1275=\"\",\"\",'1. Order'!BD1275)","v":6},{"$f":"IF('1. Order'!BE1275=\"\",\"\",'1. Order'!BE1275)","v":"None"},{"$f":"IF('1. Order'!BF1275=\"\",\"\",'1. Order'!BF1275)","v":"Parcel"},{"$f":"IF('1. Order'!BG1275=\"\",\"\",'1. Order'!BG1275)","v":"ZWO"}]
[{"$f":"IF('1. Order'!F1276=\"\",\"\",'1. Order'!F1276)","v":""},{"$f":"IF('1. Order'!G1276=\"\",\"\",'1. Order'!G1276)","v":""},{"$f":"IF('1. Order'!H1276=\"\",\"\",'1. Order'!H1276)","v":""},{"$f":"IF('1. Order'!I1276=\"\",\"\",'1. Order'!I1276)","v":""},{"$f":"IF('1. Order'!J1276=\"\",\"\",'1. Order'!J1276)","v":""},{"$f":"IF('1. Order'!K1276=\"\",\"\",'1. Order'!K1276)","v":""},{"$f":"IF('1. Order'!L1276=\"\",\"\",'1. Order'!L1276)","v":""},{"$f":"IF('1. Order'!M1276=\"\",\"\",'1. Order'!M1276)","v":""},{"$f":"IF('1. Order'!N1276=\"\",\"\",'1. Order'!N1276)","v":""},{"$f":"IF('1. Order'!O1276=\"\",\"\",'1. Order'!O1276)","v":{"$error":"#N/A"}},{"$f":"IF('1. Order'!P1276=\"\",\"\",'1. Order'!P1276)","v":{"$error":"#N/A"}},{"$f":"IF('1. Order'!Q1276=\"\",\"\",'1. Order'!Q1276)","v":""},{"$f":"IF('1. Order'!R1276=\"\",\"\",'1. Order'!R1276)","v":""},{"$f":"IF('1. Order'!S1276=\"\",\"\",'1. Order'!S1276)","v":""},{"$f":"IF('1. Order'!V1276=\"\",\"\",'1. Order'!V1276)","v":""},{"$f":"IF('1. Order'!W1276=\"\",\"\",'1. Order'!W1276)","v":""},{"$f":"IF('1. Order'!X1276=\"\",\"\",'1. Order'!X1276)","v":"EUR"},{"$f":"IF('1. Order'!Y1276=\"\",\"\",'1. Order'!Y1276)","v":""},{"$f":"IF('1. Order'!Z1276=\"\",\"\",'1. Order'!Z1276)","v":""},{"$f":"IF('1. Order'!AA1276=\"\",\"\",'1. Order'!AA1276)","v":""},null,{"$f":"IF('1. Order'!AS1276=\"\",\"\",'1. Order'!AS1276)","v":""},{"$f":"IF('1. Order'!AT1276=\"\",\"\",'1. Order'!AT1276)","v":""},null,null,null,null,null,null,null,{"$f":"IF('1. Order'!AX1276=\"\",\"\",'1. Order'!AX1276)","v":""},{"$f":"IF('1. Order'!AY1276=\"\",\"\",'1. Order'!AY1276)","v":""},{"$f":"IF('1. Order'!AZ1276=\"\",\"\",'1. Order'!AZ1276)","v":""},{"$f":"IF('1. Order'!BA1276=\"\",\"\",'1. Order'!BA1276)","v":""},{"$f":"IF('1. Order'!BC1276=\"\",\"\",'1. Order'!BC1276)","v":""},{"$f":"IF('1. Order'!BD1276=\"\",\"\",'1. Order'!BD1276)","v":6},{"$f":"IF('1. Order'!BE1276=\"\",\"\",'1. Order'!BE1276)","v":"None"},{"$f":"IF('1. Order'!BF1276=\"\",\"\",'1. Order'!BF1276)","v":"Parcel"},{"$f":"IF('1. Order'!BG1276=\"\",\"\",'1. Order'!BG1276)","v":"ZWO"}]
[{"$f":"IF('1. Order'!F1277=\"\",\"\",'1. Order'!F1277)","v":""},{"$f":"IF('1. Order'!G1277=\"\",\"\",'1. Order'!G1277)","v":""},{"$f":"IF('1. Order'!H1277=\"\",\"\",'1. Order'!H1277)","v":""},{"$f":"IF('1. Order'!I1277=\"\",\"\",'1. Order'!I1277)","v":""},{"$f":"IF('1. Order'!J1277=\"\",\"\",'1. Order'!J1277)","v":""},{"$f":"IF('1. Order'!K1277=\"\",\"\",'1. Order'!K1277)","v":""},{"$f":"IF('1. Order'!L1277=\"\",\"\",'1. Order'!L1277)","v":""},{"$f":"IF('1. Order'!M1277=\"\",\"\",'1. Order'!M1277)","v":""},{"$f":"IF('1. Order'!N1277=\"\",\"\",'1. Order'!N1277)","v":""},{"$f":"IF('1. Order'!O1277=\"\",\"\",'1. Order'!O1277)","v":{"$error":"#N/A"}},{"$f":"IF('1. Order'!P1277=\"\",\"\",'1. Order'!P1277)","v":{"$error":"#N/A"}},{"$f":"IF('1. Order'!Q1277=\"\",\"\",'1. Order'!Q1277)","v":""},{"$f":"IF('1. Order'!R1277=\"\",\"\",'1. Order'!R1277)","v":""},{"$f":"IF('1. Order'!S1277=\"\",\"\",'1. Order'!S1277)","v":""},{"$f":"IF('1. Order'!V1277=\"\",\"\",'1. Order'!V1277)","v":""},{"$f":"IF('1. Order'!W1277=\"\",\"\",'1. Order'!W1277)","v":""},{"$f":"IF('1. Order'!X1277=\"\",\"\",'1. Order'!X1277)","v":"EUR"},{"$f":"IF('1. Order'!Y1277=\"\",\"\",'1. Order'!Y1277)","v":""},{"$f":"IF('1. Order'!Z1277=\"\",\"\",'1. Order'!Z1277)","v":""},{"$f":"IF('1. Order'!AA1277=\"\",\"\",'1. Order'!AA1277)","v":""},null,{"$f":"IF('1. Order'!AS1277=\"\",\"\",'1. Order'!AS1277)","v":""},{"$f":"IF('1. Order'!AT1277=\"\",\"\",'1. Order'!AT1277)","v":""},null,null,null,null,null,null,null,{"$f":"IF('1. Order'!AX1277=\"\",\"\",'1. Order'!AX1277)","v":""},{"$f":"IF('1. Order'!AY1277=\"\",\"\",'1. Order'!AY1277)","v":""},{"$f":"IF('1. Order'!AZ1277=\"\",\"\",'1. Order'!AZ1277)","v":""},{"$f":"IF('1. Order'!BA1277=\"\",\"\",'1. Order'!BA1277)","v":""},{"$f":"IF('1. Order'!BC1277=\"\",\"\",'1. Order'!BC1277)","v":""},{"$f":"IF('1. Order'!BD1277=\"\",\"\",'1. Order'!BD1277)","v":6},{"$f":"IF('1. Order'!BE1277=\"\",\"\",'1. Order'!BE1277)","v":"None"},{"$f":"IF('1. Order'!BF1277=\"\",\"\",'1. Order'!BF1277)","v":"Parcel"},{"$f":"IF('1. Order'!BG1277=\"\",\"\",'1. Order'!BG1277)","v":"ZWO"}]
[{"$f":"IF('1. Order'!F1278=\"\",\"\",'1. Order'!F1278)","v":""},{"$f":"IF('1. Order'!G1278=\"\",\"\",'1. Order'!G1278)","v":""},{"$f":"IF('1. Order'!H1278=\"\",\"\",'1. Order'!H1278)","v":""},{"$f":"IF('1. Order'!I1278=\"\",\"\",'1. Order'!I1278)","v":""},{"$f":"IF('1. Order'!J1278=\"\",\"\",'1. Order'!J1278)","v":""},{"$f":"IF('1. Order'!K1278=\"\",\"\",'1. Order'!K1278)","v":""},{"$f":"IF('1. Order'!L1278=\"\",\"\",'1. Order'!L1278)","v":""},{"$f":"IF('1. Order'!M1278=\"\",\"\",'1. Order'!M1278)","v":""},{"$f":"IF('1. Order'!N1278=\"\",\"\",'1. Order'!N1278)","v":""},{"$f":"IF('1. Order'!O1278=\"\",\"\",'1. Order'!O1278)","v":{"$error":"#N/A"}},{"$f":"IF('1. Order'!P1278=\"\",\"\",'1. Order'!P1278)","v":{"$error":"#N/A"}},{"$f":"IF('1. Order'!Q1278=\"\",\"\",'1. Order'!Q1278)","v":""},{"$f":"IF('1. Order'!R1278=\"\",\"\",'1. Order'!R1278)","v":""},{"$f":"IF('1. Order'!S1278=\"\",\"\",'1. Order'!S1278)","v":""},{"$f":"IF('1. Order'!V1278=\"\",\"\",'1. Order'!V1278)","v":""},{"$f":"IF('1. Order'!W1278=\"\",\"\",'1. Order'!W1278)","v":""},{"$f":"IF('1. Order'!X1278=\"\",\"\",'1. Order'!X1278)","v":"EUR"},{"$f":"IF('1. Order'!Y1278=\"\",\"\",'1. Order'!Y1278)","v":""},{"$f":"IF('1. Order'!Z1278=\"\",\"\",'1. Order'!Z1278)","v":""},{"$f":"IF('1. Order'!AA1278=\"\",\"\",'1. Order'!AA1278)","v":""},null,{"$f":"IF('1. Order'!AS1278=\"\",\"\",'1. Order'!AS1278)","v":""},{"$f":"IF('1. Order'!AT1278=\"\",\"\",'1. Order'!AT1278)","v":""},null,null,null,null,null,null,null,{"$f":"IF('1. Order'!AX1278=\"\",\"\",'1. Order'!AX1278)","v":""},{"$f":"IF('1. Order'!AY1278=\"\",\"\",'1. Order'!AY1278)","v":""},{"$f":"IF('1. Order'!AZ1278=\"\",\"\",'1. Order'!AZ1278)","v":""},{"$f":"IF('1. Order'!BA1278=\"\",\"\",'1. Order'!BA1278)","v":""},{"$f":"IF('1. Order'!BC1278=\"\",\"\",'1. Order'!BC1278)","v":""},{"$f":"IF('1. Order'!BD1278=\"\",\"\",'1. Order'!BD1278)","v":6},{"$f":"IF('1. Order'!BE1278=\"\",\"\",'1. Order'!BE1278)","v":"None"},{"$f":"IF('1. Order'!BF1278=\"\",\"\",'1. Order'!BF1278)","v":"Parcel"},{"$f":"IF('1. Order'!BG1278=\"\",\"\",'1. Order'!BG1278)","v":"ZWO"}]
[{"$f":"IF('1. Order'!F1279=\"\",\"\",'1. Order'!F1279)","v":""},{"$f":"IF('1. Order'!G1279=\"\",\"\",'1. Order'!G1279)","v":""},{"$f":"IF('1. Order'!H1279=\"\",\"\",'1. Order'!H1279)","v":""},{"$f":"IF('1. Order'!I1279=\"\",\"\",'1. Order'!I1279)","v":""},{"$f":"IF('1. Order'!J1279=\"\",\"\",'1. Order'!J1279)","v":""},{"$f":"IF('1. Order'!K1279=\"\",\"\",'1. Order'!K1279)","v":""},{"$f":"IF('1. Order'!L1279=\"\",\"\",'1. Order'!L1279)","v":""},{"$f":"IF('1. Order'!M1279=\"\",\"\",'1. Order'!M1279)","v":""},{"$f":"IF('1. Order'!N1279=\"\",\"\",'1. Order'!N1279)","v":""},{"$f":"IF('1. Order'!O1279=\"\",\"\",'1. Order'!O1279)","v":{"$error":"#N/A"}},{"$f":"IF('1. Order'!P1279=\"\",\"\",'1. Order'!P1279)","v":{"$error":"#N/A"}},{"$f":"IF('1. Order'!Q1279=\"\",\"\",'1. Order'!Q1279)","v":""},{"$f":"IF('1. Order'!R1279=\"\",\"\",'1. Order'!R1279)","v":""},{"$f":"IF('1. Order'!S1279=\"\",\"\",'1. Order'!S1279)","v":""},{"$f":"IF('1. Order'!V1279=\"\",\"\",'1. Order'!V1279)","v":""},{"$f":"IF('1. Order'!W1279=\"\",\"\",'1. Order'!W1279)","v":""},{"$f":"IF('1. Order'!X1279=\"\",\"\",'1. Order'!X1279)","v":"EUR"},{"$f":"IF('1. Order'!Y1279=\"\",\"\",'1. Order'!Y1279)","v":""},{"$f":"IF('1. Order'!Z1279=\"\",\"\",'1. Order'!Z1279)","v":""},{"$f":"IF('1. Order'!AA1279=\"\",\"\",'1. Order'!AA1279)","v":""},null,{"$f":"IF('1. Order'!AS1279=\"\",\"\",'1. Order'!AS1279)","v":""},{"$f":"IF('1. Order'!AT1279=\"\",\"\",'1. Order'!AT1279)","v":""},null,null,null,null,null,null,null,{"$f":"IF('1. Order'!AX1279=\"\",\"\",'1. Order'!AX1279)","v":""},{"$f":"IF('1. Order'!AY1279=\"\",\"\",'1. Order'!AY1279)","v":""},{"$f":"IF('1. Order'!AZ1279=\"\",\"\",'1. Order'!AZ1279)","v":""},{"$f":"IF('1. Order'!BA1279=\"\",\"\",'1. Order'!BA1279)","v":""},{"$f":"IF('1. Order'!BC1279=\"\",\"\",'1. Order'!BC1279)","v":""},{"$f":"IF('1. Order'!BD1279=\"\",\"\",'1. Order'!BD1279)","v":6},{"$f":"IF('1. Order'!BE1279=\"\",\"\",'1. Order'!BE1279)","v":"None"},{"$f":"IF('1. Order'!BF1279=\"\",\"\",'1. Order'!BF1279)","v":"Parcel"},{"$f":"IF('1. Order'!BG1279=\"\",\"\",'1. Order'!BG1279)","v":"ZWO"}]
[{"$f":"IF('1. Order'!F1280=\"\",\"\",'1. Order'!F1280)","v":""},{"$f":"IF('1. Order'!G1280=\"\",\"\",'1. Order'!G1280)","v":""},{"$f":"IF('1. Order'!H1280=\"\",\"\",'1. Order'!H1280)","v":""},{"$f":"IF('1. Order'!I1280=\"\",\"\",'1. Order'!I1280)","v":""},{"$f":"IF('1. Order'!J1280=\"\",\"\",'1. Order'!J1280)","v":""},{"$f":"IF('1. Order'!K1280=\"\",\"\",'1. Order'!K1280)","v":""},{"$f":"IF('1. Order'!L1280=\"\",\"\",'1. Order'!L1280)","v":""},{"$f":"IF('1. Order'!M1280=\"\",\"\",'1. Order'!M1280)","v":""},{"$f":"IF('1. Order'!N1280=\"\",\"\",'1. Order'!N1280)","v":""},{"$f":"IF('1. Order'!O1280=\"\",\"\",'1. Order'!O1280)","v":{"$error":"#N/A"}},{"$f":"IF('1. Order'!P1280=\"\",\"\",'1. Order'!P1280)","v":{"$error":"#N/A"}},{"$f":"IF('1. Order'!Q1280=\"\",\"\",'1. Order'!Q1280)","v":""},{"$f":"IF('1. Order'!R1280=\"\",\"\",'1. Order'!R1280)","v":""},{"$f":"IF('1. Order'!S1280=\"\",\"\",'1. Order'!S1280)","v":""},{"$f":"IF('1. Order'!V1280=\"\",\"\",'1. Order'!V1280)","v":""},{"$f":"IF('1. Order'!W1280=\"\",\"\",'1. Order'!W1280)","v":""},{"$f":"IF('1. Order'!X1280=\"\",\"\",'1. Order'!X1280)","v":"EUR"},{"$f":"IF('1. Order'!Y1280=\"\",\"\",'1. Order'!Y1280)","v":""},{"$f":"IF('1. Order'!Z1280=\"\",\"\",'1. Order'!Z1280)","v":""},{"$f":"IF('1. Order'!AA1280=\"\",\"\",'1. Order'!AA1280)","v":""},null,{"$f":"IF('1. Order'!AS1280=\"\",\"\",'1. Order'!AS1280)","v":""},{"$f":"IF('1. Order'!AT1280=\"\",\"\",'1. Order'!AT1280)","v":""},null,null,null,null,null,null,null,{"$f":"IF('1. Order'!AX1280=\"\",\"\",'1. Order'!AX1280)","v":""},{"$f":"IF('1. Order'!AY1280=\"\",\"\",'1. Order'!AY1280)","v":""},{"$f":"IF('1. Order'!AZ1280=\"\",\"\",'1. Order'!AZ1280)","v":""},{"$f":"IF('1. Order'!BA1280=\"\",\"\",'1. Order'!BA1280)","v":""},{"$f":"IF('1. Order'!BC1280=\"\",\"\",'1. Order'!BC1280)","v":""},{"$f":"IF('1. Order'!BD1280=\"\",\"\",'1. Order'!BD1280)","v":6},{"$f":"IF('1. Order'!BE1280=\"\",\"\",'1. Order'!BE1280)","v":"None"},{"$f":"IF('1. Order'!BF1280=\"\",\"\",'1. Order'!BF1280)","v":"Parcel"},{"$f":"IF('1. Order'!BG1280=\"\",\"\",'1. Order'!BG1280)","v":"ZWO"}]
[{"$f":"IF('1. Order'!F1281=\"\",\"\",'1. Order'!F1281)","v":""},{"$f":"IF('1. Order'!G1281=\"\",\"\",'1. Order'!G1281)","v":""},{"$f":"IF('1. Order'!H1281=\"\",\"\",'1. Order'!H1281)","v":""},{"$f":"IF('1. Order'!I1281=\"\",\"\",'1. Order'!I1281)","v":""},{"$f":"IF('1. Order'!J1281=\"\",\"\",'1. Order'!J1281)","v":""},{"$f":"IF('1. Order'!K1281=\"\",\"\",'1. Order'!K1281)","v":""},{"$f":"IF('1. Order'!L1281=\"\",\"\",'1. Order'!L1281)","v":""},{"$f":"IF('1. Order'!M1281=\"\",\"\",'1. Order'!M1281)","v":""},{"$f":"IF('1. Order'!N1281=\"\",\"\",'1. Order'!N1281)","v":""},{"$f":"IF('1. Order'!O1281=\"\",\"\",'1. Order'!O1281)","v":{"$error":"#N/A"}},{"$f":"IF('1. Order'!P1281=\"\",\"\",'1. Order'!P1281)","v":{"$error":"#N/A"}},{"$f":"IF('1. Order'!Q1281=\"\",\"\",'1. Order'!Q1281)","v":""},{"$f":"IF('1. Order'!R1281=\"\",\"\",'1. Order'!R1281)","v":""},{"$f":"IF('1. Order'!S1281=\"\",\"\",'1. Order'!S1281)","v":""},{"$f":"IF('1. Order'!V1281=\"\",\"\",'1. Order'!V1281)","v":""},{"$f":"IF('1. Order'!W1281=\"\",\"\",'1. Order'!W1281)","v":""},{"$f":"IF('1. Order'!X1281=\"\",\"\",'1. Order'!X1281)","v":"EUR"},{"$f":"IF('1. Order'!Y1281=\"\",\"\",'1. Order'!Y1281)","v":""},{"$f":"IF('1. Order'!Z1281=\"\",\"\",'1. Order'!Z1281)","v":""},{"$f":"IF('1. Order'!AA1281=\"\",\"\",'1. Order'!AA1281)","v":""},null,{"$f":"IF('1. Order'!AS1281=\"\",\"\",'1. Order'!AS1281)","v":""},{"$f":"IF('1. Order'!AT1281=\"\",\"\",'1. Order'!AT1281)","v":""},null,null,null,null,null,null,null,{"$f":"IF('1. Order'!AX1281=\"\",\"\",'1. Order'!AX1281)","v":""},{"$f":"IF('1. Order'!AY1281=\"\",\"\",'1. Order'!AY1281)","v":""},{"$f":"IF('1. Order'!AZ1281=\"\",\"\",'1. Order'!AZ1281)","v":""},{"$f":"IF('1. Order'!BA1281=\"\",\"\",'1. Order'!BA1281)","v":""},{"$f":"IF('1. Order'!BC1281=\"\",\"\",'1. Order'!BC1281)","v":""},{"$f":"IF('1. Order'!BD1281=\"\",\"\",'1. Order'!BD1281)","v":6},{"$f":"IF('1. Order'!BE1281=\"\",\"\",'1. Order'!BE1281)","v":"None"},{"$f":"IF('1. Order'!BF1281=\"\",\"\",'1. Order'!BF1281)","v":"Parcel"},{"$f":"IF('1. Order'!BG1281=\"\",\"\",'1. Order'!BG1281)","v":"ZWO"}]
[{"$f":"IF('1. Order'!F1282=\"\",\"\",'1. Order'!F1282)","v":""},{"$f":"IF('1. Order'!G1282=\"\",\"\",'1. Order'!G1282)","v":""},{"$f":"IF('1. Order'!H1282=\"\",\"\",'1. Order'!H1282)","v":""},{"$f":"IF('1. Order'!I1282=\"\",\"\",'1. Order'!I1282)","v":""},{"$f":"IF('1. Order'!J1282=\"\",\"\",'1. Order'!J1282)","v":""},{"$f":"IF('1. Order'!K1282=\"\",\"\",'1. Order'!K1282)","v":""},{"$f":"IF('1. Order'!L1282=\"\",\"\",'1. Order'!L1282)","v":""},{"$f":"IF('1. Order'!M1282=\"\",\"\",'1. Order'!M1282)","v":""},{"$f":"IF('1. Order'!N1282=\"\",\"\",'1. Order'!N1282)","v":""},{"$f":"IF('1. Order'!O1282=\"\",\"\",'1. Order'!O1282)","v":{"$error":"#N/A"}},{"$f":"IF('1. Order'!P1282=\"\",\"\",'1. Order'!P1282)","v":{"$error":"#N/A"}},{"$f":"IF('1. Order'!Q1282=\"\",\"\",'1. Order'!Q1282)","v":""},{"$f":"IF('1. Order'!R1282=\"\",\"\",'1. Order'!R1282)","v":""},{"$f":"IF('1. Order'!S1282=\"\",\"\",'1. Order'!S1282)","v":""},{"$f":"IF('1. Order'!V1282=\"\",\"\",'1. Order'!V1282)","v":""},{"$f":"IF('1. Order'!W1282=\"\",\"\",'1. Order'!W1282)","v":""},{"$f":"IF('1. Order'!X1282=\"\",\"\",'1. Order'!X1282)","v":"EUR"},{"$f":"IF('1. Order'!Y1282=\"\",\"\",'1. Order'!Y1282)","v":""},{"$f":"IF('1. Order'!Z1282=\"\",\"\",'1. Order'!Z1282)","v":""},{"$f":"IF('1. Order'!AA1282=\"\",\"\",'1. Order'!AA1282)","v":""},null,{"$f":"IF('1. Order'!AS1282=\"\",\"\",'1. Order'!AS1282)","v":""},{"$f":"IF('1. Order'!AT1282=\"\",\"\",'1. Order'!AT1282)","v":""},null,null,null,null,null,null,null,{"$f":"IF('1. Order'!AX1282=\"\",\"\",'1. Order'!AX1282)","v":""},{"$f":"IF('1. Order'!AY1282=\"\",\"\",'1. Order'!AY1282)","v":""},{"$f":"IF('1. Order'!AZ1282=\"\",\"\",'1. Order'!AZ1282)","v":""},{"$f":"IF('1. Order'!BA1282=\"\",\"\",'1. Order'!BA1282)","v":""},{"$f":"IF('1. Order'!BC1282=\"\",\"\",'1. Order'!BC1282)","v":""},{"$f":"IF('1. Order'!BD1282=\"\",\"\",'1. Order'!BD1282)","v":6},{"$f":"IF('1. Order'!BE1282=\"\",\"\",'1. Order'!BE1282)","v":"None"},{"$f":"IF('1. Order'!BF1282=\"\",\"\",'1. Order'!BF1282)","v":"Parcel"},{"$f":"IF('1. Order'!BG1282=\"\",\"\",'1. Order'!BG1282)","v":"ZWO"}]
[{"$f":"IF('1. Order'!F1283=\"\",\"\",'1. Order'!F1283)","v":""},{"$f":"IF('1. Order'!G1283=\"\",\"\",'1. Order'!G1283)","v":""},{"$f":"IF('1. Order'!H1283=\"\",\"\",'1. Order'!H1283)","v":""},{"$f":"IF('1. Order'!I1283=\"\",\"\",'1. Order'!I1283)","v":""},{"$f":"IF('1. Order'!J1283=\"\",\"\",'1. Order'!J1283)","v":""},{"$f":"IF('1. Order'!K1283=\"\",\"\",'1. Order'!K1283)","v":""},{"$f":"IF('1. Order'!L1283=\"\",\"\",'1. Order'!L1283)","v":""},{"$f":"IF('1. Order'!M1283=\"\",\"\",'1. Order'!M1283)","v":""},{"$f":"IF('1. Order'!N1283=\"\",\"\",'1. Order'!N1283)","v":""},{"$f":"IF('1. Order'!O1283=\"\",\"\",'1. Order'!O1283)","v":{"$error":"#N/A"}},{"$f":"IF('1. Order'!P1283=\"\",\"\",'1. Order'!P1283)","v":{"$error":"#N/A"}},{"$f":"IF('1. Order'!Q1283=\"\",\"\",'1. Order'!Q1283)","v":""},{"$f":"IF('1. Order'!R1283=\"\",\"\",'1. Order'!R1283)","v":""},{"$f":"IF('1. Order'!S1283=\"\",\"\",'1. Order'!S1283)","v":""},{"$f":"IF('1. Order'!V1283=\"\",\"\",'1. Order'!V1283)","v":""},{"$f":"IF('1. Order'!W1283=\"\",\"\",'1. Order'!W1283)","v":""},{"$f":"IF('1. Order'!X1283=\"\",\"\",'1. Order'!X1283)","v":"EUR"},{"$f":"IF('1. Order'!Y1283=\"\",\"\",'1. Order'!Y1283)","v":""},{"$f":"IF('1. Order'!Z1283=\"\",\"\",'1. Order'!Z1283)","v":""},{"$f":"IF('1. Order'!AA1283=\"\",\"\",'1. Order'!AA1283)","v":""},null,{"$f":"IF('1. Order'!AS1283=\"\",\"\",'1. Order'!AS1283)","v":""},{"$f":"IF('1. Order'!AT1283=\"\",\"\",'1. Order'!AT1283)","v":""},null,null,null,null,null,null,null,{"$f":"IF('1. Order'!AX1283=\"\",\"\",'1. Order'!AX1283)","v":""},{"$f":"IF('1. Order'!AY1283=\"\",\"\",'1. Order'!AY1283)","v":""},{"$f":"IF('1. Order'!AZ1283=\"\",\"\",'1. Order'!AZ1283)","v":""},{"$f":"IF('1. Order'!BA1283=\"\",\"\",'1. Order'!BA1283)","v":""},{"$f":"IF('1. Order'!BC1283=\"\",\"\",'1. Order'!BC1283)","v":""},{"$f":"IF('1. Order'!BD1283=\"\",\"\",'1. Order'!BD1283)","v":6},{"$f":"IF('1. Order'!BE1283=\"\",\"\",'1. Order'!BE1283)","v":"None"},{"$f":"IF('1. Order'!BF1283=\"\",\"\",'1. Order'!BF1283)","v":"Parcel"},{"$f":"IF('1. Order'!BG1283=\"\",\"\",'1. Order'!BG1283)","v":"ZWO"}]
[{"$f":"IF('1. Order'!F1284=\"\",\"\",'1. Order'!F1284)","v":""},{"$f":"IF('1. Order'!G1284=\"\",\"\",'1. Order'!G1284)","v":""},{"$f":"IF('1. Order'!H1284=\"\",\"\",'1. Order'!H1284)","v":""},{"$f":"IF('1. Order'!I1284=\"\",\"\",'1. Order'!I1284)","v":""},{"$f":"IF('1. Order'!J1284=\"\",\"\",'1. Order'!J1284)","v":""},{"$f":"IF('1. Order'!K1284=\"\",\"\",'1. Order'!K1284)","v":""},{"$f":"IF('1. Order'!L1284=\"\",\"\",'1. Order'!L1284)","v":""},{"$f":"IF('1. Order'!M1284=\"\",\"\",'1. Order'!M1284)","v":""},{"$f":"IF('1. Order'!N1284=\"\",\"\",'1. Order'!N1284)","v":""},{"$f":"IF('1. Order'!O1284=\"\",\"\",'1. Order'!O1284)","v":{"$error":"#N/A"}},{"$f":"IF('1. Order'!P1284=\"\",\"\",'1. Order'!P1284)","v":{"$error":"#N/A"}},{"$f":"IF('1. Order'!Q1284=\"\",\"\",'1. Order'!Q1284)","v":""},{"$f":"IF('1. Order'!R1284=\"\",\"\",'1. Order'!R1284)","v":""},{"$f":"IF('1. Order'!S1284=\"\",\"\",'1. Order'!S1284)","v":""},{"$f":"IF('1. Order'!V1284=\"\",\"\",'1. Order'!V1284)","v":""},{"$f":"IF('1. Order'!W1284=\"\",\"\",'1. Order'!W1284)","v":""},{"$f":"IF('1. Order'!X1284=\"\",\"\",'1. Order'!X1284)","v":"EUR"},{"$f":"IF('1. Order'!Y1284=\"\",\"\",'1. Order'!Y1284)","v":""},{"$f":"IF('1. Order'!Z1284=\"\",\"\",'1. Order'!Z1284)","v":""},{"$f":"IF('1. Order'!AA1284=\"\",\"\",'1. Order'!AA1284)","v":""},null,{"$f":"IF('1. Order'!AS1284=\"\",\"\",'1. Order'!AS1284)","v":""},{"$f":"IF('1. Order'!AT1284=\"\",\"\",'1. Order'!AT1284)","v":""},null,null,null,null,null,null,null,{"$f":"IF('1. Order'!AX1284=\"\",\"\",'1. Order'!AX1284)","v":""},{"$f":"IF('1. Order'!AY1284=\"\",\"\",'1. Order'!AY1284)","v":""},{"$f":"IF('1. Order'!AZ1284=\"\",\"\",'1. Order'!AZ1284)","v":""},{"$f":"IF('1. Order'!BA1284=\"\",\"\",'1. Order'!BA1284)","v":""},{"$f":"IF('1. Order'!BC1284=\"\",\"\",'1. Order'!BC1284)","v":""},{"$f":"IF('1. Order'!BD1284=\"\",\"\",'1. Order'!BD1284)","v":6},{"$f":"IF('1. Order'!BE1284=\"\",\"\",'1. Order'!BE1284)","v":"None"},{"$f":"IF('1. Order'!BF1284=\"\",\"\",'1. Order'!BF1284)","v":"Parcel"},{"$f":"IF('1. Order'!BG1284=\"\",\"\",'1. Order'!BG1284)","v":"ZWO"}]
[{"$f":"IF('1. Order'!F1285=\"\",\"\",'1. Order'!F1285)","v":""},{"$f":"IF('1. Order'!G1285=\"\",\"\",'1. Order'!G1285)","v":""},{"$f":"IF('1. Order'!H1285=\"\",\"\",'1. Order'!H1285)","v":""},{"$f":"IF('1. Order'!I1285=\"\",\"\",'1. Order'!I1285)","v":""},{"$f":"IF('1. Order'!J1285=\"\",\"\",'1. Order'!J1285)","v":""},{"$f":"IF('1. Order'!K1285=\"\",\"\",'1. Order'!K1285)","v":""},{"$f":"IF('1. Order'!L1285=\"\",\"\",'1. Order'!L1285)","v":""},{"$f":"IF('1. Order'!M1285=\"\",\"\",'1. Order'!M1285)","v":""},{"$f":"IF('1. Order'!N1285=\"\",\"\",'1. Order'!N1285)","v":""},{"$f":"IF('1. Order'!O1285=\"\",\"\",'1. Order'!O1285)","v":{"$error":"#N/A"}},{"$f":"IF('1. Order'!P1285=\"\",\"\",'1. Order'!P1285)","v":{"$error":"#N/A"}},{"$f":"IF('1. Order'!Q1285=\"\",\"\",'1. Order'!Q1285)","v":""},{"$f":"IF('1. Order'!R1285=\"\",\"\",'1. Order'!R1285)","v":""},{"$f":"IF('1. Order'!S1285=\"\",\"\",'1. Order'!S1285)","v":""},{"$f":"IF('1. Order'!V1285=\"\",\"\",'1. Order'!V1285)","v":""},{"$f":"IF('1. Order'!W1285=\"\",\"\",'1. Order'!W1285)","v":""},{"$f":"IF('1. Order'!X1285=\"\",\"\",'1. Order'!X1285)","v":"EUR"},{"$f":"IF('1. Order'!Y1285=\"\",\"\",'1. Order'!Y1285)","v":""},{"$f":"IF('1. Order'!Z1285=\"\",\"\",'1. Order'!Z1285)","v":""},{"$f":"IF('1. Order'!AA1285=\"\",\"\",'1. Order'!AA1285)","v":""},null,{"$f":"IF('1. Order'!AS1285=\"\",\"\",'1. Order'!AS1285)","v":""},{"$f":"IF('1. Order'!AT1285=\"\",\"\",'1. Order'!AT1285)","v":""},null,null,null,null,null,null,null,{"$f":"IF('1. Order'!AX1285=\"\",\"\",'1. Order'!AX1285)","v":""},{"$f":"IF('1. Order'!AY1285=\"\",\"\",'1. Order'!AY1285)","v":""},{"$f":"IF('1. Order'!AZ1285=\"\",\"\",'1. Order'!AZ1285)","v":""},{"$f":"IF('1. Order'!BA1285=\"\",\"\",'1. Order'!BA1285)","v":""},{"$f":"IF('1. Order'!BC1285=\"\",\"\",'1. Order'!BC1285)","v":""},{"$f":"IF('1. Order'!BD1285=\"\",\"\",'1. Order'!BD1285)","v":6},{"$f":"IF('1. Order'!BE1285=\"\",\"\",'1. Order'!BE1285)","v":"None"},{"$f":"IF('1. Order'!BF1285=\"\",\"\",'1. Order'!BF1285)","v":"Parcel"},{"$f":"IF('1. Order'!BG1285=\"\",\"\",'1. Order'!BG1285)","v":"ZWO"}]
[{"$f":"IF('1. Order'!F1286=\"\",\"\",'1. Order'!F1286)","v":""},{"$f":"IF('1. Order'!G1286=\"\",\"\",'1. Order'!G1286)","v":""},{"$f":"IF('1. Order'!H1286=\"\",\"\",'1. Order'!H1286)","v":""},{"$f":"IF('1. Order'!I1286=\"\",\"\",'1. Order'!I1286)","v":""},{"$f":"IF('1. Order'!J1286=\"\",\"\",'1. Order'!J1286)","v":""},{"$f":"IF('1. Order'!K1286=\"\",\"\",'1. Order'!K1286)","v":""},{"$f":"IF('1. Order'!L1286=\"\",\"\",'1. Order'!L1286)","v":""},{"$f":"IF('1. Order'!M1286=\"\",\"\",'1. Order'!M1286)","v":""},{"$f":"IF('1. Order'!N1286=\"\",\"\",'1. Order'!N1286)","v":""},{"$f":"IF('1. Order'!O1286=\"\",\"\",'1. Order'!O1286)","v":{"$error":"#N/A"}},{"$f":"IF('1. Order'!P1286=\"\",\"\",'1. Order'!P1286)","v":{"$error":"#N/A"}},{"$f":"IF('1. Order'!Q1286=\"\",\"\",'1. Order'!Q1286)","v":""},{"$f":"IF('1. Order'!R1286=\"\",\"\",'1. Order'!R1286)","v":""},{"$f":"IF('1. Order'!S1286=\"\",\"\",'1. Order'!S1286)","v":""},{"$f":"IF('1. Order'!V1286=\"\",\"\",'1. Order'!V1286)","v":""},{"$f":"IF('1. Order'!W1286=\"\",\"\",'1. Order'!W1286)","v":""},{"$f":"IF('1. Order'!X1286=\"\",\"\",'1. Order'!X1286)","v":"EUR"},{"$f":"IF('1. Order'!Y1286=\"\",\"\",'1. Order'!Y1286)","v":""},{"$f":"IF('1. Order'!Z1286=\"\",\"\",'1. Order'!Z1286)","v":""},{"$f":"IF('1. Order'!AA1286=\"\",\"\",'1. Order'!AA1286)","v":""},null,{"$f":"IF('1. Order'!AS1286=\"\",\"\",'1. Order'!AS1286)","v":""},{"$f":"IF('1. Order'!AT1286=\"\",\"\",'1. Order'!AT1286)","v":""},null,null,null,null,null,null,null,{"$f":"IF('1. Order'!AX1286=\"\",\"\",'1. Order'!AX1286)","v":""},{"$f":"IF('1. Order'!AY1286=\"\",\"\",'1. Order'!AY1286)","v":""},{"$f":"IF('1. Order'!AZ1286=\"\",\"\",'1. Order'!AZ1286)","v":""},{"$f":"IF('1. Order'!BA1286=\"\",\"\",'1. Order'!BA1286)","v":""},{"$f":"IF('1. Order'!BC1286=\"\",\"\",'1. Order'!BC1286)","v":""},{"$f":"IF('1. Order'!BD1286=\"\",\"\",'1. Order'!BD1286)","v":6},{"$f":"IF('1. Order'!BE1286=\"\",\"\",'1. Order'!BE1286)","v":"None"},{"$f":"IF('1. Order'!BF1286=\"\",\"\",'1. Order'!BF1286)","v":"Parcel"},{"$f":"IF('1. Order'!BG1286=\"\",\"\",'1. Order'!BG1286)","v":"ZWO"}]
[{"$f":"IF('1. Order'!F1287=\"\",\"\",'1. Order'!F1287)","v":""},{"$f":"IF('1. Order'!G1287=\"\",\"\",'1. Order'!G1287)","v":""},{"$f":"IF('1. Order'!H1287=\"\",\"\",'1. Order'!H1287)","v":""},{"$f":"IF('1. Order'!I1287=\"\",\"\",'1. Order'!I1287)","v":""},{"$f":"IF('1. Order'!J1287=\"\",\"\",'1. Order'!J1287)","v":""},{"$f":"IF('1. Order'!K1287=\"\",\"\",'1. Order'!K1287)","v":""},{"$f":"IF('1. Order'!L1287=\"\",\"\",'1. Order'!L1287)","v":""},{"$f":"IF('1. Order'!M1287=\"\",\"\",'1. Order'!M1287)","v":""},{"$f":"IF('1. Order'!N1287=\"\",\"\",'1. Order'!N1287)","v":""},{"$f":"IF('1. Order'!O1287=\"\",\"\",'1. Order'!O1287)","v":{"$error":"#N/A"}},{"$f":"IF('1. Order'!P1287=\"\",\"\",'1. Order'!P1287)","v":{"$error":"#N/A"}},{"$f":"IF('1. Order'!Q1287=\"\",\"\",'1. Order'!Q1287)","v":""},{"$f":"IF('1. Order'!R1287=\"\",\"\",'1. Order'!R1287)","v":""},{"$f":"IF('1. Order'!S1287=\"\",\"\",'1. Order'!S1287)","v":""},{"$f":"IF('1. Order'!V1287=\"\",\"\",'1. Order'!V1287)","v":""},{"$f":"IF('1. Order'!W1287=\"\",\"\",'1. Order'!W1287)","v":""},{"$f":"IF('1. Order'!X1287=\"\",\"\",'1. Order'!X1287)","v":"EUR"},{"$f":"IF('1. Order'!Y1287=\"\",\"\",'1. Order'!Y1287)","v":""},{"$f":"IF('1. Order'!Z1287=\"\",\"\",'1. Order'!Z1287)","v":""},{"$f":"IF('1. Order'!AA1287=\"\",\"\",'1. Order'!AA1287)","v":""},null,{"$f":"IF('1. Order'!AS1287=\"\",\"\",'1. Order'!AS1287)","v":""},{"$f":"IF('1. Order'!AT1287=\"\",\"\",'1. Order'!AT1287)","v":""},null,null,null,null,null,null,null,{"$f":"IF('1. Order'!AX1287=\"\",\"\",'1. Order'!AX1287)","v":""},{"$f":"IF('1. Order'!AY1287=\"\",\"\",'1. Order'!AY1287)","v":""},{"$f":"IF('1. Order'!AZ1287=\"\",\"\",'1. Order'!AZ1287)","v":""},{"$f":"IF('1. Order'!BA1287=\"\",\"\",'1. Order'!BA1287)","v":""},{"$f":"IF('1. Order'!BC1287=\"\",\"\",'1. Order'!BC1287)","v":""},{"$f":"IF('1. Order'!BD1287=\"\",\"\",'1. Order'!BD1287)","v":6},{"$f":"IF('1. Order'!BE1287=\"\",\"\",'1. Order'!BE1287)","v":"None"},{"$f":"IF('1. Order'!BF1287=\"\",\"\",'1. Order'!BF1287)","v":"Parcel"},{"$f":"IF('1. Order'!BG1287=\"\",\"\",'1. Order'!BG1287)","v":"ZWO"}]
[{"$f":"IF('1. Order'!F1288=\"\",\"\",'1. Order'!F1288)","v":""},{"$f":"IF('1. Order'!G1288=\"\",\"\",'1. Order'!G1288)","v":""},{"$f":"IF('1. Order'!H1288=\"\",\"\",'1. Order'!H1288)","v":""},{"$f":"IF('1. Order'!I1288=\"\",\"\",'1. Order'!I1288)","v":""},{"$f":"IF('1. Order'!J1288=\"\",\"\",'1. Order'!J1288)","v":""},{"$f":"IF('1. Order'!K1288=\"\",\"\",'1. Order'!K1288)","v":""},{"$f":"IF('1. Order'!L1288=\"\",\"\",'1. Order'!L1288)","v":""},{"$f":"IF('1. Order'!M1288=\"\",\"\",'1. Order'!M1288)","v":""},{"$f":"IF('1. Order'!N1288=\"\",\"\",'1. Order'!N1288)","v":""},{"$f":"IF('1. Order'!O1288=\"\",\"\",'1. Order'!O1288)","v":{"$error":"#N/A"}},{"$f":"IF('1. Order'!P1288=\"\",\"\",'1. Order'!P1288)","v":{"$error":"#N/A"}},{"$f":"IF('1. Order'!Q1288=\"\",\"\",'1. Order'!Q1288)","v":""},{"$f":"IF('1. Order'!R1288=\"\",\"\",'1. Order'!R1288)","v":""},{"$f":"IF('1. Order'!S1288=\"\",\"\",'1. Order'!S1288)","v":""},{"$f":"IF('1. Order'!V1288=\"\",\"\",'1. Order'!V1288)","v":""},{"$f":"IF('1. Order'!W1288=\"\",\"\",'1. Order'!W1288)","v":""},{"$f":"IF('1. Order'!X1288=\"\",\"\",'1. Order'!X1288)","v":"EUR"},{"$f":"IF('1. Order'!Y1288=\"\",\"\",'1. Order'!Y1288)","v":""},{"$f":"IF('1. Order'!Z1288=\"\",\"\",'1. Order'!Z1288)","v":""},{"$f":"IF('1. Order'!AA1288=\"\",\"\",'1. Order'!AA1288)","v":""},null,{"$f":"IF('1. Order'!AS1288=\"\",\"\",'1. Order'!AS1288)","v":""},{"$f":"IF('1. Order'!AT1288=\"\",\"\",'1. Order'!AT1288)","v":""},null,null,null,null,null,null,null,{"$f":"IF('1. Order'!AX1288=\"\",\"\",'1. Order'!AX1288)","v":""},{"$f":"IF('1. Order'!AY1288=\"\",\"\",'1. Order'!AY1288)","v":""},{"$f":"IF('1. Order'!AZ1288=\"\",\"\",'1. Order'!AZ1288)","v":""},{"$f":"IF('1. Order'!BA1288=\"\",\"\",'1. Order'!BA1288)","v":""},{"$f":"IF('1. Order'!BC1288=\"\",\"\",'1. Order'!BC1288)","v":""},{"$f":"IF('1. Order'!BD1288=\"\",\"\",'1. Order'!BD1288)","v":6},{"$f":"IF('1. Order'!BE1288=\"\",\"\",'1. Order'!BE1288)","v":"None"},{"$f":"IF('1. Order'!BF1288=\"\",\"\",'1. Order'!BF1288)","v":"Parcel"},{"$f":"IF('1. Order'!BG1288=\"\",\"\",'1. Order'!BG1288)","v":"ZWO"}]
[{"$f":"IF('1. Order'!F1289=\"\",\"\",'1. Order'!F1289)","v":""},{"$f":"IF('1. Order'!G1289=\"\",\"\",'1. Order'!G1289)","v":""},{"$f":"IF('1. Order'!H1289=\"\",\"\",'1. Order'!H1289)","v":""},{"$f":"IF('1. Order'!I1289=\"\",\"\",'1. Order'!I1289)","v":""},{"$f":"IF('1. Order'!J1289=\"\",\"\",'1. Order'!J1289)","v":""},{"$f":"IF('1. Order'!K1289=\"\",\"\",'1. Order'!K1289)","v":""},{"$f":"IF('1. Order'!L1289=\"\",\"\",'1. Order'!L1289)","v":""},{"$f":"IF('1. Order'!M1289=\"\",\"\",'1. Order'!M1289)","v":""},{"$f":"IF('1. Order'!N1289=\"\",\"\",'1. Order'!N1289)","v":""},{"$f":"IF('1. Order'!O1289=\"\",\"\",'1. Order'!O1289)","v":{"$error":"#N/A"}},{"$f":"IF('1. Order'!P1289=\"\",\"\",'1. Order'!P1289)","v":{"$error":"#N/A"}},{"$f":"IF('1. Order'!Q1289=\"\",\"\",'1. Order'!Q1289)","v":""},{"$f":"IF('1. Order'!R1289=\"\",\"\",'1. Order'!R1289)","v":""},{"$f":"IF('1. Order'!S1289=\"\",\"\",'1. Order'!S1289)","v":""},{"$f":"IF('1. Order'!V1289=\"\",\"\",'1. Order'!V1289)","v":""},{"$f":"IF('1. Order'!W1289=\"\",\"\",'1. Order'!W1289)","v":""},{"$f":"IF('1. Order'!X1289=\"\",\"\",'1. Order'!X1289)","v":"EUR"},{"$f":"IF('1. Order'!Y1289=\"\",\"\",'1. Order'!Y1289)","v":""},{"$f":"IF('1. Order'!Z1289=\"\",\"\",'1. Order'!Z1289)","v":""},{"$f":"IF('1. Order'!AA1289=\"\",\"\",'1. Order'!AA1289)","v":""},null,{"$f":"IF('1. Order'!AS1289=\"\",\"\",'1. Order'!AS1289)","v":""},{"$f":"IF('1. Order'!AT1289=\"\",\"\",'1. Order'!AT1289)","v":""},null,null,null,null,null,null,null,{"$f":"IF('1. Order'!AX1289=\"\",\"\",'1. Order'!AX1289)","v":""},{"$f":"IF('1. Order'!AY1289=\"\",\"\",'1. Order'!AY1289)","v":""},{"$f":"IF('1. Order'!AZ1289=\"\",\"\",'1. Order'!AZ1289)","v":""},{"$f":"IF('1. Order'!BA1289=\"\",\"\",'1. Order'!BA1289)","v":""},{"$f":"IF('1. Order'!BC1289=\"\",\"\",'1. Order'!BC1289)","v":""},{"$f":"IF('1. Order'!BD1289=\"\",\"\",'1. Order'!BD1289)","v":6},{"$f":"IF('1. Order'!BE1289=\"\",\"\",'1. Order'!BE1289)","v":"None"},{"$f":"IF('1. Order'!BF1289=\"\",\"\",'1. Order'!BF1289)","v":"Parcel"},{"$f":"IF('1. Order'!BG1289=\"\",\"\",'1. Order'!BG1289)","v":"ZWO"}]
[{"$f":"IF('1. Order'!F1290=\"\",\"\",'1. Order'!F1290)","v":""},{"$f":"IF('1. Order'!G1290=\"\",\"\",'1. Order'!G1290)","v":""},{"$f":"IF('1. Order'!H1290=\"\",\"\",'1. Order'!H1290)","v":""},{"$f":"IF('1. Order'!I1290=\"\",\"\",'1. Order'!I1290)","v":""},{"$f":"IF('1. Order'!J1290=\"\",\"\",'1. Order'!J1290)","v":""},{"$f":"IF('1. Order'!K1290=\"\",\"\",'1. Order'!K1290)","v":""},{"$f":"IF('1. Order'!L1290=\"\",\"\",'1. Order'!L1290)","v":""},{"$f":"IF('1. Order'!M1290=\"\",\"\",'1. Order'!M1290)","v":""},{"$f":"IF('1. Order'!N1290=\"\",\"\",'1. Order'!N1290)","v":""},{"$f":"IF('1. Order'!O1290=\"\",\"\",'1. Order'!O1290)","v":{"$error":"#N/A"}},{"$f":"IF('1. Order'!P1290=\"\",\"\",'1. Order'!P1290)","v":{"$error":"#N/A"}},{"$f":"IF('1. Order'!Q1290=\"\",\"\",'1. Order'!Q1290)","v":""},{"$f":"IF('1. Order'!R1290=\"\",\"\",'1. Order'!R1290)","v":""},{"$f":"IF('1. Order'!S1290=\"\",\"\",'1. Order'!S1290)","v":""},{"$f":"IF('1. Order'!V1290=\"\",\"\",'1. Order'!V1290)","v":""},{"$f":"IF('1. Order'!W1290=\"\",\"\",'1. Order'!W1290)","v":""},{"$f":"IF('1. Order'!X1290=\"\",\"\",'1. Order'!X1290)","v":"EUR"},{"$f":"IF('1. Order'!Y1290=\"\",\"\",'1. Order'!Y1290)","v":""},{"$f":"IF('1. Order'!Z1290=\"\",\"\",'1. Order'!Z1290)","v":""},{"$f":"IF('1. Order'!AA1290=\"\",\"\",'1. Order'!AA1290)","v":""},null,{"$f":"IF('1. Order'!AS1290=\"\",\"\",'1. Order'!AS1290)","v":""},{"$f":"IF('1. Order'!AT1290=\"\",\"\",'1. Order'!AT1290)","v":""},null,null,null,null,null,null,null,{"$f":"IF('1. Order'!AX1290=\"\",\"\",'1. Order'!AX1290)","v":""},{"$f":"IF('1. Order'!AY1290=\"\",\"\",'1. Order'!AY1290)","v":""},{"$f":"IF('1. Order'!AZ1290=\"\",\"\",'1. Order'!AZ1290)","v":""},{"$f":"IF('1. Order'!BA1290=\"\",\"\",'1. Order'!BA1290)","v":""},{"$f":"IF('1. Order'!BC1290=\"\",\"\",'1. Order'!BC1290)","v":""},{"$f":"IF('1. Order'!BD1290=\"\",\"\",'1. Order'!BD1290)","v":6},{"$f":"IF('1. Order'!BE1290=\"\",\"\",'1. Order'!BE1290)","v":"None"},{"$f":"IF('1. Order'!BF1290=\"\",\"\",'1. Order'!BF1290)","v":"Parcel"},{"$f":"IF('1. Order'!BG1290=\"\",\"\",'1. Order'!BG1290)","v":"ZWO"}]
[{"$f":"IF('1. Order'!F1291=\"\",\"\",'1. Order'!F1291)","v":""},{"$f":"IF('1. Order'!G1291=\"\",\"\",'1. Order'!G1291)","v":""},{"$f":"IF('1. Order'!H1291=\"\",\"\",'1. Order'!H1291)","v":""},{"$f":"IF('1. Order'!I1291=\"\",\"\",'1. Order'!I1291)","v":""},{"$f":"IF('1. Order'!J1291=\"\",\"\",'1. Order'!J1291)","v":""},{"$f":"IF('1. Order'!K1291=\"\",\"\",'1. Order'!K1291)","v":""},{"$f":"IF('1. Order'!L1291=\"\",\"\",'1. Order'!L1291)","v":""},{"$f":"IF('1. Order'!M1291=\"\",\"\",'1. Order'!M1291)","v":""},{"$f":"IF('1. Order'!N1291=\"\",\"\",'1. Order'!N1291)","v":""},{"$f":"IF('1. Order'!O1291=\"\",\"\",'1. Order'!O1291)","v":{"$error":"#N/A"}},{"$f":"IF('1. Order'!P1291=\"\",\"\",'1. Order'!P1291)","v":{"$error":"#N/A"}},{"$f":"IF('1. Order'!Q1291=\"\",\"\",'1. Order'!Q1291)","v":""},{"$f":"IF('1. Order'!R1291=\"\",\"\",'1. Order'!R1291)","v":""},{"$f":"IF('1. Order'!S1291=\"\",\"\",'1. Order'!S1291)","v":""},{"$f":"IF('1. Order'!V1291=\"\",\"\",'1. Order'!V1291)","v":""},{"$f":"IF('1. Order'!W1291=\"\",\"\",'1. Order'!W1291)","v":""},{"$f":"IF('1. Order'!X1291=\"\",\"\",'1. Order'!X1291)","v":"EUR"},{"$f":"IF('1. Order'!Y1291=\"\",\"\",'1. Order'!Y1291)","v":""},{"$f":"IF('1. Order'!Z1291=\"\",\"\",'1. Order'!Z1291)","v":""},{"$f":"IF('1. Order'!AA1291=\"\",\"\",'1. Order'!AA1291)","v":""},null,{"$f":"IF('1. Order'!AS1291=\"\",\"\",'1. Order'!AS1291)","v":""},{"$f":"IF('1. Order'!AT1291=\"\",\"\",'1. Order'!AT1291)","v":""},null,null,null,null,null,null,null,{"$f":"IF('1. Order'!AX1291=\"\",\"\",'1. Order'!AX1291)","v":""},{"$f":"IF('1. Order'!AY1291=\"\",\"\",'1. Order'!AY1291)","v":""},{"$f":"IF('1. Order'!AZ1291=\"\",\"\",'1. Order'!AZ1291)","v":""},{"$f":"IF('1. Order'!BA1291=\"\",\"\",'1. Order'!BA1291)","v":""},{"$f":"IF('1. Order'!BC1291=\"\",\"\",'1. Order'!BC1291)","v":""},{"$f":"IF('1. Order'!BD1291=\"\",\"\",'1. Order'!BD1291)","v":6},{"$f":"IF('1. Order'!BE1291=\"\",\"\",'1. Order'!BE1291)","v":"None"},{"$f":"IF('1. Order'!BF1291=\"\",\"\",'1. Order'!BF1291)","v":"Parcel"},{"$f":"IF('1. Order'!BG1291=\"\",\"\",'1. Order'!BG1291)","v":"ZWO"}]
[{"$f":"IF('1. Order'!F1292=\"\",\"\",'1. Order'!F1292)","v":""},{"$f":"IF('1. Order'!G1292=\"\",\"\",'1. Order'!G1292)","v":""},{"$f":"IF('1. Order'!H1292=\"\",\"\",'1. Order'!H1292)","v":""},{"$f":"IF('1. Order'!I1292=\"\",\"\",'1. Order'!I1292)","v":""},{"$f":"IF('1. Order'!J1292=\"\",\"\",'1. Order'!J1292)","v":""},{"$f":"IF('1. Order'!K1292=\"\",\"\",'1. Order'!K1292)","v":""},{"$f":"IF('1. Order'!L1292=\"\",\"\",'1. Order'!L1292)","v":""},{"$f":"IF('1. Order'!M1292=\"\",\"\",'1. Order'!M1292)","v":""},{"$f":"IF('1. Order'!N1292=\"\",\"\",'1. Order'!N1292)","v":""},{"$f":"IF('1. Order'!O1292=\"\",\"\",'1. Order'!O1292)","v":{"$error":"#N/A"}},{"$f":"IF('1. Order'!P1292=\"\",\"\",'1. Order'!P1292)","v":{"$error":"#N/A"}},{"$f":"IF('1. Order'!Q1292=\"\",\"\",'1. Order'!Q1292)","v":""},{"$f":"IF('1. Order'!R1292=\"\",\"\",'1. Order'!R1292)","v":""},{"$f":"IF('1. Order'!S1292=\"\",\"\",'1. Order'!S1292)","v":""},{"$f":"IF('1. Order'!V1292=\"\",\"\",'1. Order'!V1292)","v":""},{"$f":"IF('1. Order'!W1292=\"\",\"\",'1. Order'!W1292)","v":""},{"$f":"IF('1. Order'!X1292=\"\",\"\",'1. Order'!X1292)","v":"EUR"},{"$f":"IF('1. Order'!Y1292=\"\",\"\",'1. Order'!Y1292)","v":""},{"$f":"IF('1. Order'!Z1292=\"\",\"\",'1. Order'!Z1292)","v":""},{"$f":"IF('1. Order'!AA1292=\"\",\"\",'1. Order'!AA1292)","v":""},null,{"$f":"IF('1. Order'!AS1292=\"\",\"\",'1. Order'!AS1292)","v":""},{"$f":"IF('1. Order'!AT1292=\"\",\"\",'1. Order'!AT1292)","v":""},null,null,null,null,null,null,null,{"$f":"IF('1. Order'!AX1292=\"\",\"\",'1. Order'!AX1292)","v":""},{"$f":"IF('1. Order'!AY1292=\"\",\"\",'1. Order'!AY1292)","v":""},{"$f":"IF('1. Order'!AZ1292=\"\",\"\",'1. Order'!AZ1292)","v":""},{"$f":"IF('1. Order'!BA1292=\"\",\"\",'1. Order'!BA1292)","v":""},{"$f":"IF('1. Order'!BC1292=\"\",\"\",'1. Order'!BC1292)","v":""},{"$f":"IF('1. Order'!BD1292=\"\",\"\",'1. Order'!BD1292)","v":6},{"$f":"IF('1. Order'!BE1292=\"\",\"\",'1. Order'!BE1292)","v":"None"},{"$f":"IF('1. Order'!BF1292=\"\",\"\",'1. Order'!BF1292)","v":"Parcel"},{"$f":"IF('1. Order'!BG1292=\"\",\"\",'1. Order'!BG1292)","v":"ZWO"}]
[{"$f":"IF('1. Order'!F1293=\"\",\"\",'1. Order'!F1293)","v":""},{"$f":"IF('1. Order'!G1293=\"\",\"\",'1. Order'!G1293)","v":""},{"$f":"IF('1. Order'!H1293=\"\",\"\",'1. Order'!H1293)","v":""},{"$f":"IF('1. Order'!I1293=\"\",\"\",'1. Order'!I1293)","v":""},{"$f":"IF('1. Order'!J1293=\"\",\"\",'1. Order'!J1293)","v":""},{"$f":"IF('1. Order'!K1293=\"\",\"\",'1. Order'!K1293)","v":""},{"$f":"IF('1. Order'!L1293=\"\",\"\",'1. Order'!L1293)","v":""},{"$f":"IF('1. Order'!M1293=\"\",\"\",'1. Order'!M1293)","v":""},{"$f":"IF('1. Order'!N1293=\"\",\"\",'1. Order'!N1293)","v":""},{"$f":"IF('1. Order'!O1293=\"\",\"\",'1. Order'!O1293)","v":{"$error":"#N/A"}},{"$f":"IF('1. Order'!P1293=\"\",\"\",'1. Order'!P1293)","v":{"$error":"#N/A"}},{"$f":"IF('1. Order'!Q1293=\"\",\"\",'1. Order'!Q1293)","v":""},{"$f":"IF('1. Order'!R1293=\"\",\"\",'1. Order'!R1293)","v":""},{"$f":"IF('1. Order'!S1293=\"\",\"\",'1. Order'!S1293)","v":""},{"$f":"IF('1. Order'!V1293=\"\",\"\",'1. Order'!V1293)","v":""},{"$f":"IF('1. Order'!W1293=\"\",\"\",'1. Order'!W1293)","v":""},{"$f":"IF('1. Order'!X1293=\"\",\"\",'1. Order'!X1293)","v":"EUR"},{"$f":"IF('1. Order'!Y1293=\"\",\"\",'1. Order'!Y1293)","v":""},{"$f":"IF('1. Order'!Z1293=\"\",\"\",'1. Order'!Z1293)","v":""},{"$f":"IF('1. Order'!AA1293=\"\",\"\",'1. Order'!AA1293)","v":""},null,{"$f":"IF('1. Order'!AS1293=\"\",\"\",'1. Order'!AS1293)","v":""},{"$f":"IF('1. Order'!AT1293=\"\",\"\",'1. Order'!AT1293)","v":""},null,null,null,null,null,null,null,{"$f":"IF('1. Order'!AX1293=\"\",\"\",'1. Order'!AX1293)","v":""},{"$f":"IF('1. Order'!AY1293=\"\",\"\",'1. Order'!AY1293)","v":""},{"$f":"IF('1. Order'!AZ1293=\"\",\"\",'1. Order'!AZ1293)","v":""},{"$f":"IF('1. Order'!BA1293=\"\",\"\",'1. Order'!BA1293)","v":""},{"$f":"IF('1. Order'!BC1293=\"\",\"\",'1. Order'!BC1293)","v":""},{"$f":"IF('1. Order'!BD1293=\"\",\"\",'1. Order'!BD1293)","v":6},{"$f":"IF('1. Order'!BE1293=\"\",\"\",'1. Order'!BE1293)","v":"None"},{"$f":"IF('1. Order'!BF1293=\"\",\"\",'1. Order'!BF1293)","v":"Parcel"},{"$f":"IF('1. Order'!BG1293=\"\",\"\",'1. Order'!BG1293)","v":"ZWO"}]
[{"$f":"IF('1. Order'!F1294=\"\",\"\",'1. Order'!F1294)","v":""},{"$f":"IF('1. Order'!G1294=\"\",\"\",'1. Order'!G1294)","v":""},{"$f":"IF('1. Order'!H1294=\"\",\"\",'1. Order'!H1294)","v":""},{"$f":"IF('1. Order'!I1294=\"\",\"\",'1. Order'!I1294)","v":""},{"$f":"IF('1. Order'!J1294=\"\",\"\",'1. Order'!J1294)","v":""},{"$f":"IF('1. Order'!K1294=\"\",\"\",'1. Order'!K1294)","v":""},{"$f":"IF('1. Order'!L1294=\"\",\"\",'1. Order'!L1294)","v":""},{"$f":"IF('1. Order'!M1294=\"\",\"\",'1. Order'!M1294)","v":""},{"$f":"IF('1. Order'!N1294=\"\",\"\",'1. Order'!N1294)","v":""},{"$f":"IF('1. Order'!O1294=\"\",\"\",'1. Order'!O1294)","v":{"$error":"#N/A"}},{"$f":"IF('1. Order'!P1294=\"\",\"\",'1. Order'!P1294)","v":{"$error":"#N/A"}},{"$f":"IF('1. Order'!Q1294=\"\",\"\",'1. Order'!Q1294)","v":""},{"$f":"IF('1. Order'!R1294=\"\",\"\",'1. Order'!R1294)","v":""},{"$f":"IF('1. Order'!S1294=\"\",\"\",'1. Order'!S1294)","v":""},{"$f":"IF('1. Order'!V1294=\"\",\"\",'1. Order'!V1294)","v":""},{"$f":"IF('1. Order'!W1294=\"\",\"\",'1. Order'!W1294)","v":""},{"$f":"IF('1. Order'!X1294=\"\",\"\",'1. Order'!X1294)","v":"EUR"},{"$f":"IF('1. Order'!Y1294=\"\",\"\",'1. Order'!Y1294)","v":""},{"$f":"IF('1. Order'!Z1294=\"\",\"\",'1. Order'!Z1294)","v":""},{"$f":"IF('1. Order'!AA1294=\"\",\"\",'1. Order'!AA1294)","v":""},null,{"$f":"IF('1. Order'!AS1294=\"\",\"\",'1. Order'!AS1294)","v":""},{"$f":"IF('1. Order'!AT1294=\"\",\"\",'1. Order'!AT1294)","v":""},null,null,null,null,null,null,null,{"$f":"IF('1. Order'!AX1294=\"\",\"\",'1. Order'!AX1294)","v":""},{"$f":"IF('1. Order'!AY1294=\"\",\"\",'1. Order'!AY1294)","v":""},{"$f":"IF('1. Order'!AZ1294=\"\",\"\",'1. Order'!AZ1294)","v":""},{"$f":"IF('1. Order'!BA1294=\"\",\"\",'1. Order'!BA1294)","v":""},{"$f":"IF('1. Order'!BC1294=\"\",\"\",'1. Order'!BC1294)","v":""},{"$f":"IF('1. Order'!BD1294=\"\",\"\",'1. Order'!BD1294)","v":6},{"$f":"IF('1. Order'!BE1294=\"\",\"\",'1. Order'!BE1294)","v":"None"},{"$f":"IF('1. Order'!BF1294=\"\",\"\",'1. Order'!BF1294)","v":"Parcel"},{"$f":"IF('1. Order'!BG1294=\"\",\"\",'1. Order'!BG1294)","v":"ZWO"}]
[{"$f":"IF('1. Order'!F1295=\"\",\"\",'1. Order'!F1295)","v":""},{"$f":"IF('1. Order'!G1295=\"\",\"\",'1. Order'!G1295)","v":""},{"$f":"IF('1. Order'!H1295=\"\",\"\",'1. Order'!H1295)","v":""},{"$f":"IF('1. Order'!I1295=\"\",\"\",'1. Order'!I1295)","v":""},{"$f":"IF('1. Order'!J1295=\"\",\"\",'1. Order'!J1295)","v":""},{"$f":"IF('1. Order'!K1295=\"\",\"\",'1. Order'!K1295)","v":""},{"$f":"IF('1. Order'!L1295=\"\",\"\",'1. Order'!L1295)","v":""},{"$f":"IF('1. Order'!M1295=\"\",\"\",'1. Order'!M1295)","v":""},{"$f":"IF('1. Order'!N1295=\"\",\"\",'1. Order'!N1295)","v":""},{"$f":"IF('1. Order'!O1295=\"\",\"\",'1. Order'!O1295)","v":{"$error":"#N/A"}},{"$f":"IF('1. Order'!P1295=\"\",\"\",'1. Order'!P1295)","v":{"$error":"#N/A"}},{"$f":"IF('1. Order'!Q1295=\"\",\"\",'1. Order'!Q1295)","v":""},{"$f":"IF('1. Order'!R1295=\"\",\"\",'1. Order'!R1295)","v":""},{"$f":"IF('1. Order'!S1295=\"\",\"\",'1. Order'!S1295)","v":""},{"$f":"IF('1. Order'!V1295=\"\",\"\",'1. Order'!V1295)","v":""},{"$f":"IF('1. Order'!W1295=\"\",\"\",'1. Order'!W1295)","v":""},{"$f":"IF('1. Order'!X1295=\"\",\"\",'1. Order'!X1295)","v":"EUR"},{"$f":"IF('1. Order'!Y1295=\"\",\"\",'1. Order'!Y1295)","v":""},{"$f":"IF('1. Order'!Z1295=\"\",\"\",'1. Order'!Z1295)","v":""},{"$f":"IF('1. Order'!AA1295=\"\",\"\",'1. Order'!AA1295)","v":""},null,{"$f":"IF('1. Order'!AS1295=\"\",\"\",'1. Order'!AS1295)","v":""},{"$f":"IF('1. Order'!AT1295=\"\",\"\",'1. Order'!AT1295)","v":""},null,null,null,null,null,null,null,{"$f":"IF('1. Order'!AX1295=\"\",\"\",'1. Order'!AX1295)","v":""},{"$f":"IF('1. Order'!AY1295=\"\",\"\",'1. Order'!AY1295)","v":""},{"$f":"IF('1. Order'!AZ1295=\"\",\"\",'1. Order'!AZ1295)","v":""},{"$f":"IF('1. Order'!BA1295=\"\",\"\",'1. Order'!BA1295)","v":""},{"$f":"IF('1. Order'!BC1295=\"\",\"\",'1. Order'!BC1295)","v":""},{"$f":"IF('1. Order'!BD1295=\"\",\"\",'1. Order'!BD1295)","v":6},{"$f":"IF('1. Order'!BE1295=\"\",\"\",'1. Order'!BE1295)","v":"None"},{"$f":"IF('1. Order'!BF1295=\"\",\"\",'1. Order'!BF1295)","v":"Parcel"},{"$f":"IF('1. Order'!BG1295=\"\",\"\",'1. Order'!BG1295)","v":"ZWO"}]
[{"$f":"IF('1. Order'!F1296=\"\",\"\",'1. Order'!F1296)","v":""},{"$f":"IF('1. Order'!G1296=\"\",\"\",'1. Order'!G1296)","v":""},{"$f":"IF('1. Order'!H1296=\"\",\"\",'1. Order'!H1296)","v":""},{"$f":"IF('1. Order'!I1296=\"\",\"\",'1. Order'!I1296)","v":""},{"$f":"IF('1. Order'!J1296=\"\",\"\",'1. Order'!J1296)","v":""},{"$f":"IF('1. Order'!K1296=\"\",\"\",'1. Order'!K1296)","v":""},{"$f":"IF('1. Order'!L1296=\"\",\"\",'1. Order'!L1296)","v":""},{"$f":"IF('1. Order'!M1296=\"\",\"\",'1. Order'!M1296)","v":""},{"$f":"IF('1. Order'!N1296=\"\",\"\",'1. Order'!N1296)","v":""},{"$f":"IF('1. Order'!O1296=\"\",\"\",'1. Order'!O1296)","v":{"$error":"#N/A"}},{"$f":"IF('1. Order'!P1296=\"\",\"\",'1. Order'!P1296)","v":{"$error":"#N/A"}},{"$f":"IF('1. Order'!Q1296=\"\",\"\",'1. Order'!Q1296)","v":""},{"$f":"IF('1. Order'!R1296=\"\",\"\",'1. Order'!R1296)","v":""},{"$f":"IF('1. Order'!S1296=\"\",\"\",'1. Order'!S1296)","v":""},{"$f":"IF('1. Order'!V1296=\"\",\"\",'1. Order'!V1296)","v":""},{"$f":"IF('1. Order'!W1296=\"\",\"\",'1. Order'!W1296)","v":""},{"$f":"IF('1. Order'!X1296=\"\",\"\",'1. Order'!X1296)","v":"EUR"},{"$f":"IF('1. Order'!Y1296=\"\",\"\",'1. Order'!Y1296)","v":""},{"$f":"IF('1. Order'!Z1296=\"\",\"\",'1. Order'!Z1296)","v":""},{"$f":"IF('1. Order'!AA1296=\"\",\"\",'1. Order'!AA1296)","v":""},null,{"$f":"IF('1. Order'!AS1296=\"\",\"\",'1. Order'!AS1296)","v":""},{"$f":"IF('1. Order'!AT1296=\"\",\"\",'1. Order'!AT1296)","v":""},null,null,null,null,null,null,null,{"$f":"IF('1. Order'!AX1296=\"\",\"\",'1. Order'!AX1296)","v":""},{"$f":"IF('1. Order'!AY1296=\"\",\"\",'1. Order'!AY1296)","v":""},{"$f":"IF('1. Order'!AZ1296=\"\",\"\",'1. Order'!AZ1296)","v":""},{"$f":"IF('1. Order'!BA1296=\"\",\"\",'1. Order'!BA1296)","v":""},{"$f":"IF('1. Order'!BC1296=\"\",\"\",'1. Order'!BC1296)","v":""},{"$f":"IF('1. Order'!BD1296=\"\",\"\",'1. Order'!BD1296)","v":6},{"$f":"IF('1. Order'!BE1296=\"\",\"\",'1. Order'!BE1296)","v":"None"},{"$f":"IF('1. Order'!BF1296=\"\",\"\",'1. Order'!BF1296)","v":"Parcel"},{"$f":"IF('1. Order'!BG1296=\"\",\"\",'1. Order'!BG1296)","v":"ZWO"}]
[{"$f":"IF('1. Order'!F1297=\"\",\"\",'1. Order'!F1297)","v":""},{"$f":"IF('1. Order'!G1297=\"\",\"\",'1. Order'!G1297)","v":""},{"$f":"IF('1. Order'!H1297=\"\",\"\",'1. Order'!H1297)","v":""},{"$f":"IF('1. Order'!I1297=\"\",\"\",'1. Order'!I1297)","v":""},{"$f":"IF('1. Order'!J1297=\"\",\"\",'1. Order'!J1297)","v":""},{"$f":"IF('1. Order'!K1297=\"\",\"\",'1. Order'!K1297)","v":""},{"$f":"IF('1. Order'!L1297=\"\",\"\",'1. Order'!L1297)","v":""},{"$f":"IF('1. Order'!M1297=\"\",\"\",'1. Order'!M1297)","v":""},{"$f":"IF('1. Order'!N1297=\"\",\"\",'1. Order'!N1297)","v":""},{"$f":"IF('1. Order'!O1297=\"\",\"\",'1. Order'!O1297)","v":{"$error":"#N/A"}},{"$f":"IF('1. Order'!P1297=\"\",\"\",'1. Order'!P1297)","v":{"$error":"#N/A"}},{"$f":"IF('1. Order'!Q1297=\"\",\"\",'1. Order'!Q1297)","v":""},{"$f":"IF('1. Order'!R1297=\"\",\"\",'1. Order'!R1297)","v":""},{"$f":"IF('1. Order'!S1297=\"\",\"\",'1. Order'!S1297)","v":""},{"$f":"IF('1. Order'!V1297=\"\",\"\",'1. Order'!V1297)","v":""},{"$f":"IF('1. Order'!W1297=\"\",\"\",'1. Order'!W1297)","v":""},{"$f":"IF('1. Order'!X1297=\"\",\"\",'1. Order'!X1297)","v":"EUR"},{"$f":"IF('1. Order'!Y1297=\"\",\"\",'1. Order'!Y1297)","v":""},{"$f":"IF('1. Order'!Z1297=\"\",\"\",'1. Order'!Z1297)","v":""},{"$f":"IF('1. Order'!AA1297=\"\",\"\",'1. Order'!AA1297)","v":""},null,{"$f":"IF('1. Order'!AS1297=\"\",\"\",'1. Order'!AS1297)","v":""},{"$f":"IF('1. Order'!AT1297=\"\",\"\",'1. Order'!AT1297)","v":""},null,null,null,null,null,null,null,{"$f":"IF('1. Order'!AX1297=\"\",\"\",'1. Order'!AX1297)","v":""},{"$f":"IF('1. Order'!AY1297=\"\",\"\",'1. Order'!AY1297)","v":""},{"$f":"IF('1. Order'!AZ1297=\"\",\"\",'1. Order'!AZ1297)","v":""},{"$f":"IF('1. Order'!BA1297=\"\",\"\",'1. Order'!BA1297)","v":""},{"$f":"IF('1. Order'!BC1297=\"\",\"\",'1. Order'!BC1297)","v":""},{"$f":"IF('1. Order'!BD1297=\"\",\"\",'1. Order'!BD1297)","v":6},{"$f":"IF('1. Order'!BE1297=\"\",\"\",'1. Order'!BE1297)","v":"None"},{"$f":"IF('1. Order'!BF1297=\"\",\"\",'1. Order'!BF1297)","v":"Parcel"},{"$f":"IF('1. Order'!BG1297=\"\",\"\",'1. Order'!BG1297)","v":"ZWO"}]
[{"$f":"IF('1. Order'!F1298=\"\",\"\",'1. Order'!F1298)","v":""},{"$f":"IF('1. Order'!G1298=\"\",\"\",'1. Order'!G1298)","v":""},{"$f":"IF('1. Order'!H1298=\"\",\"\",'1. Order'!H1298)","v":""},{"$f":"IF('1. Order'!I1298=\"\",\"\",'1. Order'!I1298)","v":""},{"$f":"IF('1. Order'!J1298=\"\",\"\",'1. Order'!J1298)","v":""},{"$f":"IF('1. Order'!K1298=\"\",\"\",'1. Order'!K1298)","v":""},{"$f":"IF('1. Order'!L1298=\"\",\"\",'1. Order'!L1298)","v":""},{"$f":"IF('1. Order'!M1298=\"\",\"\",'1. Order'!M1298)","v":""},{"$f":"IF('1. Order'!N1298=\"\",\"\",'1. Order'!N1298)","v":""},{"$f":"IF('1. Order'!O1298=\"\",\"\",'1. Order'!O1298)","v":{"$error":"#N/A"}},{"$f":"IF('1. Order'!P1298=\"\",\"\",'1. Order'!P1298)","v":{"$error":"#N/A"}},{"$f":"IF('1. Order'!Q1298=\"\",\"\",'1. Order'!Q1298)","v":""},{"$f":"IF('1. Order'!R1298=\"\",\"\",'1. Order'!R1298)","v":""},{"$f":"IF('1. Order'!S1298=\"\",\"\",'1. Order'!S1298)","v":""},{"$f":"IF('1. Order'!V1298=\"\",\"\",'1. Order'!V1298)","v":""},{"$f":"IF('1. Order'!W1298=\"\",\"\",'1. Order'!W1298)","v":""},{"$f":"IF('1. Order'!X1298=\"\",\"\",'1. Order'!X1298)","v":"EUR"},{"$f":"IF('1. Order'!Y1298=\"\",\"\",'1. Order'!Y1298)","v":""},{"$f":"IF('1. Order'!Z1298=\"\",\"\",'1. Order'!Z1298)","v":""},{"$f":"IF('1. Order'!AA1298=\"\",\"\",'1. Order'!AA1298)","v":""},null,{"$f":"IF('1. Order'!AS1298=\"\",\"\",'1. Order'!AS1298)","v":""},{"$f":"IF('1. Order'!AT1298=\"\",\"\",'1. Order'!AT1298)","v":""},null,null,null,null,null,null,null,{"$f":"IF('1. Order'!AX1298=\"\",\"\",'1. Order'!AX1298)","v":""},{"$f":"IF('1. Order'!AY1298=\"\",\"\",'1. Order'!AY1298)","v":""},{"$f":"IF('1. Order'!AZ1298=\"\",\"\",'1. Order'!AZ1298)","v":""},{"$f":"IF('1. Order'!BA1298=\"\",\"\",'1. Order'!BA1298)","v":""},{"$f":"IF('1. Order'!BC1298=\"\",\"\",'1. Order'!BC1298)","v":""},{"$f":"IF('1. Order'!BD1298=\"\",\"\",'1. Order'!BD1298)","v":6},{"$f":"IF('1. Order'!BE1298=\"\",\"\",'1. Order'!BE1298)","v":"None"},{"$f":"IF('1. Order'!BF1298=\"\",\"\",'1. Order'!BF1298)","v":"Parcel"},{"$f":"IF('1. Order'!BG1298=\"\",\"\",'1. Order'!BG1298)","v":"ZWO"}]
[{"$f":"IF('1. Order'!F1299=\"\",\"\",'1. Order'!F1299)","v":""},{"$f":"IF('1. Order'!G1299=\"\",\"\",'1. Order'!G1299)","v":""},{"$f":"IF('1. Order'!H1299=\"\",\"\",'1. Order'!H1299)","v":""},{"$f":"IF('1. Order'!I1299=\"\",\"\",'1. Order'!I1299)","v":""},{"$f":"IF('1. Order'!J1299=\"\",\"\",'1. Order'!J1299)","v":""},{"$f":"IF('1. Order'!K1299=\"\",\"\",'1. Order'!K1299)","v":""},{"$f":"IF('1. Order'!L1299=\"\",\"\",'1. Order'!L1299)","v":""},{"$f":"IF('1. Order'!M1299=\"\",\"\",'1. Order'!M1299)","v":""},{"$f":"IF('1. Order'!N1299=\"\",\"\",'1. Order'!N1299)","v":""},{"$f":"IF('1. Order'!O1299=\"\",\"\",'1. Order'!O1299)","v":{"$error":"#N/A"}},{"$f":"IF('1. Order'!P1299=\"\",\"\",'1. Order'!P1299)","v":{"$error":"#N/A"}},{"$f":"IF('1. Order'!Q1299=\"\",\"\",'1. Order'!Q1299)","v":""},{"$f":"IF('1. Order'!R1299=\"\",\"\",'1. Order'!R1299)","v":""},{"$f":"IF('1. Order'!S1299=\"\",\"\",'1. Order'!S1299)","v":""},{"$f":"IF('1. Order'!V1299=\"\",\"\",'1. Order'!V1299)","v":""},{"$f":"IF('1. Order'!W1299=\"\",\"\",'1. Order'!W1299)","v":""},{"$f":"IF('1. Order'!X1299=\"\",\"\",'1. Order'!X1299)","v":"EUR"},{"$f":"IF('1. Order'!Y1299=\"\",\"\",'1. Order'!Y1299)","v":""},{"$f":"IF('1. Order'!Z1299=\"\",\"\",'1. Order'!Z1299)","v":""},{"$f":"IF('1. Order'!AA1299=\"\",\"\",'1. Order'!AA1299)","v":""},null,{"$f":"IF('1. Order'!AS1299=\"\",\"\",'1. Order'!AS1299)","v":""},{"$f":"IF('1. Order'!AT1299=\"\",\"\",'1. Order'!AT1299)","v":""},null,null,null,null,null,null,null,{"$f":"IF('1. Order'!AX1299=\"\",\"\",'1. Order'!AX1299)","v":""},{"$f":"IF('1. Order'!AY1299=\"\",\"\",'1. Order'!AY1299)","v":""},{"$f":"IF('1. Order'!AZ1299=\"\",\"\",'1. Order'!AZ1299)","v":""},{"$f":"IF('1. Order'!BA1299=\"\",\"\",'1. Order'!BA1299)","v":""},{"$f":"IF('1. Order'!BC1299=\"\",\"\",'1. Order'!BC1299)","v":""},{"$f":"IF('1. Order'!BD1299=\"\",\"\",'1. Order'!BD1299)","v":6},{"$f":"IF('1. Order'!BE1299=\"\",\"\",'1. Order'!BE1299)","v":"None"},{"$f":"IF('1. Order'!BF1299=\"\",\"\",'1. Order'!BF1299)","v":"Parcel"},{"$f":"IF('1. Order'!BG1299=\"\",\"\",'1. Order'!BG1299)","v":"ZWO"}]
[{"$f":"IF('1. Order'!F1300=\"\",\"\",'1. Order'!F1300)","v":""},{"$f":"IF('1. Order'!G1300=\"\",\"\",'1. Order'!G1300)","v":""},{"$f":"IF('1. Order'!H1300=\"\",\"\",'1. Order'!H1300)","v":""},{"$f":"IF('1. Order'!I1300=\"\",\"\",'1. Order'!I1300)","v":""},{"$f":"IF('1. Order'!J1300=\"\",\"\",'1. Order'!J1300)","v":""},{"$f":"IF('1. Order'!K1300=\"\",\"\",'1. Order'!K1300)","v":""},{"$f":"IF('1. Order'!L1300=\"\",\"\",'1. Order'!L1300)","v":""},{"$f":"IF('1. Order'!M1300=\"\",\"\",'1. Order'!M1300)","v":""},{"$f":"IF('1. Order'!N1300=\"\",\"\",'1. Order'!N1300)","v":""},{"$f":"IF('1. Order'!O1300=\"\",\"\",'1. Order'!O1300)","v":{"$error":"#N/A"}},{"$f":"IF('1. Order'!P1300=\"\",\"\",'1. Order'!P1300)","v":{"$error":"#N/A"}},{"$f":"IF('1. Order'!Q1300=\"\",\"\",'1. Order'!Q1300)","v":""},{"$f":"IF('1. Order'!R1300=\"\",\"\",'1. Order'!R1300)","v":""},{"$f":"IF('1. Order'!S1300=\"\",\"\",'1. Order'!S1300)","v":""},{"$f":"IF('1. Order'!V1300=\"\",\"\",'1. Order'!V1300)","v":""},{"$f":"IF('1. Order'!W1300=\"\",\"\",'1. Order'!W1300)","v":""},{"$f":"IF('1. Order'!X1300=\"\",\"\",'1. Order'!X1300)","v":"EUR"},{"$f":"IF('1. Order'!Y1300=\"\",\"\",'1. Order'!Y1300)","v":""},{"$f":"IF('1. Order'!Z1300=\"\",\"\",'1. Order'!Z1300)","v":""},{"$f":"IF('1. Order'!AA1300=\"\",\"\",'1. Order'!AA1300)","v":""},null,{"$f":"IF('1. Order'!AS1300=\"\",\"\",'1. Order'!AS1300)","v":""},{"$f":"IF('1. Order'!AT1300=\"\",\"\",'1. Order'!AT1300)","v":""},null,null,null,null,null,null,null,{"$f":"IF('1. Order'!AX1300=\"\",\"\",'1. Order'!AX1300)","v":""},{"$f":"IF('1. Order'!AY1300=\"\",\"\",'1. Order'!AY1300)","v":""},{"$f":"IF('1. Order'!AZ1300=\"\",\"\",'1. Order'!AZ1300)","v":""},{"$f":"IF('1. Order'!BA1300=\"\",\"\",'1. Order'!BA1300)","v":""},{"$f":"IF('1. Order'!BC1300=\"\",\"\",'1. Order'!BC1300)","v":""},{"$f":"IF('1. Order'!BD1300=\"\",\"\",'1. Order'!BD1300)","v":6},{"$f":"IF('1. Order'!BE1300=\"\",\"\",'1. Order'!BE1300)","v":"None"},{"$f":"IF('1. Order'!BF1300=\"\",\"\",'1. Order'!BF1300)","v":"Parcel"},{"$f":"IF('1. Order'!BG1300=\"\",\"\",'1. Order'!BG1300)","v":"ZWO"}]
[{"$f":"IF('1. Order'!F1301=\"\",\"\",'1. Order'!F1301)","v":""},{"$f":"IF('1. Order'!G1301=\"\",\"\",'1. Order'!G1301)","v":""},{"$f":"IF('1. Order'!H1301=\"\",\"\",'1. Order'!H1301)","v":""},{"$f":"IF('1. Order'!I1301=\"\",\"\",'1. Order'!I1301)","v":""},{"$f":"IF('1. Order'!J1301=\"\",\"\",'1. Order'!J1301)","v":""},{"$f":"IF('1. Order'!K1301=\"\",\"\",'1. Order'!K1301)","v":""},{"$f":"IF('1. Order'!L1301=\"\",\"\",'1. Order'!L1301)","v":""},{"$f":"IF('1. Order'!M1301=\"\",\"\",'1. Order'!M1301)","v":""},{"$f":"IF('1. Order'!N1301=\"\",\"\",'1. Order'!N1301)","v":""},{"$f":"IF('1. Order'!O1301=\"\",\"\",'1. Order'!O1301)","v":{"$error":"#N/A"}},{"$f":"IF('1. Order'!P1301=\"\",\"\",'1. Order'!P1301)","v":{"$error":"#N/A"}},{"$f":"IF('1. Order'!Q1301=\"\",\"\",'1. Order'!Q1301)","v":""},{"$f":"IF('1. Order'!R1301=\"\",\"\",'1. Order'!R1301)","v":""},{"$f":"IF('1. Order'!S1301=\"\",\"\",'1. Order'!S1301)","v":""},{"$f":"IF('1. Order'!V1301=\"\",\"\",'1. Order'!V1301)","v":""},{"$f":"IF('1. Order'!W1301=\"\",\"\",'1. Order'!W1301)","v":""},{"$f":"IF('1. Order'!X1301=\"\",\"\",'1. Order'!X1301)","v":"EUR"},{"$f":"IF('1. Order'!Y1301=\"\",\"\",'1. Order'!Y1301)","v":""},{"$f":"IF('1. Order'!Z1301=\"\",\"\",'1. Order'!Z1301)","v":""},{"$f":"IF('1. Order'!AA1301=\"\",\"\",'1. Order'!AA1301)","v":""},null,{"$f":"IF('1. Order'!AS1301=\"\",\"\",'1. Order'!AS1301)","v":""},{"$f":"IF('1. Order'!AT1301=\"\",\"\",'1. Order'!AT1301)","v":""},null,null,null,null,null,null,null,{"$f":"IF('1. Order'!AX1301=\"\",\"\",'1. Order'!AX1301)","v":""},{"$f":"IF('1. Order'!AY1301=\"\",\"\",'1. Order'!AY1301)","v":""},{"$f":"IF('1. Order'!AZ1301=\"\",\"\",'1. Order'!AZ1301)","v":""},{"$f":"IF('1. Order'!BA1301=\"\",\"\",'1. Order'!BA1301)","v":""},{"$f":"IF('1. Order'!BC1301=\"\",\"\",'1. Order'!BC1301)","v":""},{"$f":"IF('1. Order'!BD1301=\"\",\"\",'1. Order'!BD1301)","v":6},{"$f":"IF('1. Order'!BE1301=\"\",\"\",'1. Order'!BE1301)","v":"None"},{"$f":"IF('1. Order'!BF1301=\"\",\"\",'1. Order'!BF1301)","v":"Parcel"},{"$f":"IF('1. Order'!BG1301=\"\",\"\",'1. Order'!BG1301)","v":"ZWO"}]
[{"$f":"IF('1. Order'!F1302=\"\",\"\",'1. Order'!F1302)","v":""},{"$f":"IF('1. Order'!G1302=\"\",\"\",'1. Order'!G1302)","v":""},{"$f":"IF('1. Order'!H1302=\"\",\"\",'1. Order'!H1302)","v":""},{"$f":"IF('1. Order'!I1302=\"\",\"\",'1. Order'!I1302)","v":""},{"$f":"IF('1. Order'!J1302=\"\",\"\",'1. Order'!J1302)","v":""},{"$f":"IF('1. Order'!K1302=\"\",\"\",'1. Order'!K1302)","v":""},{"$f":"IF('1. Order'!L1302=\"\",\"\",'1. Order'!L1302)","v":""},{"$f":"IF('1. Order'!M1302=\"\",\"\",'1. Order'!M1302)","v":""},{"$f":"IF('1. Order'!N1302=\"\",\"\",'1. Order'!N1302)","v":""},{"$f":"IF('1. Order'!O1302=\"\",\"\",'1. Order'!O1302)","v":{"$error":"#N/A"}},{"$f":"IF('1. Order'!P1302=\"\",\"\",'1. Order'!P1302)","v":{"$error":"#N/A"}},{"$f":"IF('1. Order'!Q1302=\"\",\"\",'1. Order'!Q1302)","v":""},{"$f":"IF('1. Order'!R1302=\"\",\"\",'1. Order'!R1302)","v":""},{"$f":"IF('1. Order'!S1302=\"\",\"\",'1. Order'!S1302)","v":""},{"$f":"IF('1. Order'!V1302=\"\",\"\",'1. Order'!V1302)","v":""},{"$f":"IF('1. Order'!W1302=\"\",\"\",'1. Order'!W1302)","v":""},{"$f":"IF('1. Order'!X1302=\"\",\"\",'1. Order'!X1302)","v":"EUR"},{"$f":"IF('1. Order'!Y1302=\"\",\"\",'1. Order'!Y1302)","v":""},{"$f":"IF('1. Order'!Z1302=\"\",\"\",'1. Order'!Z1302)","v":""},{"$f":"IF('1. Order'!AA1302=\"\",\"\",'1. Order'!AA1302)","v":""},null,{"$f":"IF('1. Order'!AS1302=\"\",\"\",'1. Order'!AS1302)","v":""},{"$f":"IF('1. Order'!AT1302=\"\",\"\",'1. Order'!AT1302)","v":""},null,null,null,null,null,null,null,{"$f":"IF('1. Order'!AX1302=\"\",\"\",'1. Order'!AX1302)","v":""},{"$f":"IF('1. Order'!AY1302=\"\",\"\",'1. Order'!AY1302)","v":""},{"$f":"IF('1. Order'!AZ1302=\"\",\"\",'1. Order'!AZ1302)","v":""},{"$f":"IF('1. Order'!BA1302=\"\",\"\",'1. Order'!BA1302)","v":""},{"$f":"IF('1. Order'!BC1302=\"\",\"\",'1. Order'!BC1302)","v":""},{"$f":"IF('1. Order'!BD1302=\"\",\"\",'1. Order'!BD1302)","v":6},{"$f":"IF('1. Order'!BE1302=\"\",\"\",'1. Order'!BE1302)","v":"None"},{"$f":"IF('1. Order'!BF1302=\"\",\"\",'1. Order'!BF1302)","v":"Parcel"},{"$f":"IF('1. Order'!BG1302=\"\",\"\",'1. Order'!BG1302)","v":"ZWO"}]
[{"$f":"IF('1. Order'!F1303=\"\",\"\",'1. Order'!F1303)","v":""},{"$f":"IF('1. Order'!G1303=\"\",\"\",'1. Order'!G1303)","v":""},{"$f":"IF('1. Order'!H1303=\"\",\"\",'1. Order'!H1303)","v":""},{"$f":"IF('1. Order'!I1303=\"\",\"\",'1. Order'!I1303)","v":""},{"$f":"IF('1. Order'!J1303=\"\",\"\",'1. Order'!J1303)","v":""},{"$f":"IF('1. Order'!K1303=\"\",\"\",'1. Order'!K1303)","v":""},{"$f":"IF('1. Order'!L1303=\"\",\"\",'1. Order'!L1303)","v":""},{"$f":"IF('1. Order'!M1303=\"\",\"\",'1. Order'!M1303)","v":""},{"$f":"IF('1. Order'!N1303=\"\",\"\",'1. Order'!N1303)","v":""},{"$f":"IF('1. Order'!O1303=\"\",\"\",'1. Order'!O1303)","v":{"$error":"#N/A"}},{"$f":"IF('1. Order'!P1303=\"\",\"\",'1. Order'!P1303)","v":{"$error":"#N/A"}},{"$f":"IF('1. Order'!Q1303=\"\",\"\",'1. Order'!Q1303)","v":""},{"$f":"IF('1. Order'!R1303=\"\",\"\",'1. Order'!R1303)","v":""},{"$f":"IF('1. Order'!S1303=\"\",\"\",'1. Order'!S1303)","v":""},{"$f":"IF('1. Order'!V1303=\"\",\"\",'1. Order'!V1303)","v":""},{"$f":"IF('1. Order'!W1303=\"\",\"\",'1. Order'!W1303)","v":""},{"$f":"IF('1. Order'!X1303=\"\",\"\",'1. Order'!X1303)","v":"EUR"},{"$f":"IF('1. Order'!Y1303=\"\",\"\",'1. Order'!Y1303)","v":""},{"$f":"IF('1. Order'!Z1303=\"\",\"\",'1. Order'!Z1303)","v":""},{"$f":"IF('1. Order'!AA1303=\"\",\"\",'1. Order'!AA1303)","v":""},null,{"$f":"IF('1. Order'!AS1303=\"\",\"\",'1. Order'!AS1303)","v":""},{"$f":"IF('1. Order'!AT1303=\"\",\"\",'1. Order'!AT1303)","v":""},null,null,null,null,null,null,null,{"$f":"IF('1. Order'!AX1303=\"\",\"\",'1. Order'!AX1303)","v":""},{"$f":"IF('1. Order'!AY1303=\"\",\"\",'1. Order'!AY1303)","v":""},{"$f":"IF('1. Order'!AZ1303=\"\",\"\",'1. Order'!AZ1303)","v":""},{"$f":"IF('1. Order'!BA1303=\"\",\"\",'1. Order'!BA1303)","v":""},{"$f":"IF('1. Order'!BC1303=\"\",\"\",'1. Order'!BC1303)","v":""},{"$f":"IF('1. Order'!BD1303=\"\",\"\",'1. Order'!BD1303)","v":6},{"$f":"IF('1. Order'!BE1303=\"\",\"\",'1. Order'!BE1303)","v":"None"},{"$f":"IF('1. Order'!BF1303=\"\",\"\",'1. Order'!BF1303)","v":"Parcel"},{"$f":"IF('1. Order'!BG1303=\"\",\"\",'1. Order'!BG1303)","v":"ZWO"}]
[{"$f":"IF('1. Order'!F1304=\"\",\"\",'1. Order'!F1304)","v":""},{"$f":"IF('1. Order'!G1304=\"\",\"\",'1. Order'!G1304)","v":""},{"$f":"IF('1. Order'!H1304=\"\",\"\",'1. Order'!H1304)","v":""},{"$f":"IF('1. Order'!I1304=\"\",\"\",'1. Order'!I1304)","v":""},{"$f":"IF('1. Order'!J1304=\"\",\"\",'1. Order'!J1304)","v":""},{"$f":"IF('1. Order'!K1304=\"\",\"\",'1. Order'!K1304)","v":""},{"$f":"IF('1. Order'!L1304=\"\",\"\",'1. Order'!L1304)","v":""},{"$f":"IF('1. Order'!M1304=\"\",\"\",'1. Order'!M1304)","v":""},{"$f":"IF('1. Order'!N1304=\"\",\"\",'1. Order'!N1304)","v":""},{"$f":"IF('1. Order'!O1304=\"\",\"\",'1. Order'!O1304)","v":{"$error":"#N/A"}},{"$f":"IF('1. Order'!P1304=\"\",\"\",'1. Order'!P1304)","v":{"$error":"#N/A"}},{"$f":"IF('1. Order'!Q1304=\"\",\"\",'1. Order'!Q1304)","v":""},{"$f":"IF('1. Order'!R1304=\"\",\"\",'1. Order'!R1304)","v":""},{"$f":"IF('1. Order'!S1304=\"\",\"\",'1. Order'!S1304)","v":""},{"$f":"IF('1. Order'!V1304=\"\",\"\",'1. Order'!V1304)","v":""},{"$f":"IF('1. Order'!W1304=\"\",\"\",'1. Order'!W1304)","v":""},{"$f":"IF('1. Order'!X1304=\"\",\"\",'1. Order'!X1304)","v":"EUR"},{"$f":"IF('1. Order'!Y1304=\"\",\"\",'1. Order'!Y1304)","v":""},{"$f":"IF('1. Order'!Z1304=\"\",\"\",'1. Order'!Z1304)","v":""},{"$f":"IF('1. Order'!AA1304=\"\",\"\",'1. Order'!AA1304)","v":""},null,{"$f":"IF('1. Order'!AS1304=\"\",\"\",'1. Order'!AS1304)","v":""},{"$f":"IF('1. Order'!AT1304=\"\",\"\",'1. Order'!AT1304)","v":""},null,null,null,null,null,null,null,{"$f":"IF('1. Order'!AX1304=\"\",\"\",'1. Order'!AX1304)","v":""},{"$f":"IF('1. Order'!AY1304=\"\",\"\",'1. Order'!AY1304)","v":""},{"$f":"IF('1. Order'!AZ1304=\"\",\"\",'1. Order'!AZ1304)","v":""},{"$f":"IF('1. Order'!BA1304=\"\",\"\",'1. Order'!BA1304)","v":""},{"$f":"IF('1. Order'!BC1304=\"\",\"\",'1. Order'!BC1304)","v":""},{"$f":"IF('1. Order'!BD1304=\"\",\"\",'1. Order'!BD1304)","v":6},{"$f":"IF('1. Order'!BE1304=\"\",\"\",'1. Order'!BE1304)","v":"None"},{"$f":"IF('1. Order'!BF1304=\"\",\"\",'1. Order'!BF1304)","v":"Parcel"},{"$f":"IF('1. Order'!BG1304=\"\",\"\",'1. Order'!BG1304)","v":"ZWO"}]
[{"$f":"IF('1. Order'!F1305=\"\",\"\",'1. Order'!F1305)","v":""},{"$f":"IF('1. Order'!G1305=\"\",\"\",'1. Order'!G1305)","v":""},{"$f":"IF('1. Order'!H1305=\"\",\"\",'1. Order'!H1305)","v":""},{"$f":"IF('1. Order'!I1305=\"\",\"\",'1. Order'!I1305)","v":""},{"$f":"IF('1. Order'!J1305=\"\",\"\",'1. Order'!J1305)","v":""},{"$f":"IF('1. Order'!K1305=\"\",\"\",'1. Order'!K1305)","v":""},{"$f":"IF('1. Order'!L1305=\"\",\"\",'1. Order'!L1305)","v":""},{"$f":"IF('1. Order'!M1305=\"\",\"\",'1. Order'!M1305)","v":""},{"$f":"IF('1. Order'!N1305=\"\",\"\",'1. Order'!N1305)","v":""},{"$f":"IF('1. Order'!O1305=\"\",\"\",'1. Order'!O1305)","v":{"$error":"#N/A"}},{"$f":"IF('1. Order'!P1305=\"\",\"\",'1. Order'!P1305)","v":{"$error":"#N/A"}},{"$f":"IF('1. Order'!Q1305=\"\",\"\",'1. Order'!Q1305)","v":""},{"$f":"IF('1. Order'!R1305=\"\",\"\",'1. Order'!R1305)","v":""},{"$f":"IF('1. Order'!S1305=\"\",\"\",'1. Order'!S1305)","v":""},{"$f":"IF('1. Order'!V1305=\"\",\"\",'1. Order'!V1305)","v":""},{"$f":"IF('1. Order'!W1305=\"\",\"\",'1. Order'!W1305)","v":""},{"$f":"IF('1. Order'!X1305=\"\",\"\",'1. Order'!X1305)","v":"EUR"},{"$f":"IF('1. Order'!Y1305=\"\",\"\",'1. Order'!Y1305)","v":""},{"$f":"IF('1. Order'!Z1305=\"\",\"\",'1. Order'!Z1305)","v":""},{"$f":"IF('1. Order'!AA1305=\"\",\"\",'1. Order'!AA1305)","v":""},null,{"$f":"IF('1. Order'!AS1305=\"\",\"\",'1. Order'!AS1305)","v":""},{"$f":"IF('1. Order'!AT1305=\"\",\"\",'1. Order'!AT1305)","v":""},null,null,null,null,null,null,null,{"$f":"IF('1. Order'!AX1305=\"\",\"\",'1. Order'!AX1305)","v":""},{"$f":"IF('1. Order'!AY1305=\"\",\"\",'1. Order'!AY1305)","v":""},{"$f":"IF('1. Order'!AZ1305=\"\",\"\",'1. Order'!AZ1305)","v":""},{"$f":"IF('1. Order'!BA1305=\"\",\"\",'1. Order'!BA1305)","v":""},{"$f":"IF('1. Order'!BC1305=\"\",\"\",'1. Order'!BC1305)","v":""},{"$f":"IF('1. Order'!BD1305=\"\",\"\",'1. Order'!BD1305)","v":6},{"$f":"IF('1. Order'!BE1305=\"\",\"\",'1. Order'!BE1305)","v":"None"},{"$f":"IF('1. Order'!BF1305=\"\",\"\",'1. Order'!BF1305)","v":"Parcel"},{"$f":"IF('1. Order'!BG1305=\"\",\"\",'1. Order'!BG1305)","v":"ZWO"}]
[{"$f":"IF('1. Order'!F1306=\"\",\"\",'1. Order'!F1306)","v":""},{"$f":"IF('1. Order'!G1306=\"\",\"\",'1. Order'!G1306)","v":""},{"$f":"IF('1. Order'!H1306=\"\",\"\",'1. Order'!H1306)","v":""},{"$f":"IF('1. Order'!I1306=\"\",\"\",'1. Order'!I1306)","v":""},{"$f":"IF('1. Order'!J1306=\"\",\"\",'1. Order'!J1306)","v":""},{"$f":"IF('1. Order'!K1306=\"\",\"\",'1. Order'!K1306)","v":""},{"$f":"IF('1. Order'!L1306=\"\",\"\",'1. Order'!L1306)","v":""},{"$f":"IF('1. Order'!M1306=\"\",\"\",'1. Order'!M1306)","v":""},{"$f":"IF('1. Order'!N1306=\"\",\"\",'1. Order'!N1306)","v":""},{"$f":"IF('1. Order'!O1306=\"\",\"\",'1. Order'!O1306)","v":{"$error":"#N/A"}},{"$f":"IF('1. Order'!P1306=\"\",\"\",'1. Order'!P1306)","v":{"$error":"#N/A"}},{"$f":"IF('1. Order'!Q1306=\"\",\"\",'1. Order'!Q1306)","v":""},{"$f":"IF('1. Order'!R1306=\"\",\"\",'1. Order'!R1306)","v":""},{"$f":"IF('1. Order'!S1306=\"\",\"\",'1. Order'!S1306)","v":""},{"$f":"IF('1. Order'!V1306=\"\",\"\",'1. Order'!V1306)","v":""},{"$f":"IF('1. Order'!W1306=\"\",\"\",'1. Order'!W1306)","v":""},{"$f":"IF('1. Order'!X1306=\"\",\"\",'1. Order'!X1306)","v":"EUR"},{"$f":"IF('1. Order'!Y1306=\"\",\"\",'1. Order'!Y1306)","v":""},{"$f":"IF('1. Order'!Z1306=\"\",\"\",'1. Order'!Z1306)","v":""},{"$f":"IF('1. Order'!AA1306=\"\",\"\",'1. Order'!AA1306)","v":""},null,{"$f":"IF('1. Order'!AS1306=\"\",\"\",'1. Order'!AS1306)","v":""},{"$f":"IF('1. Order'!AT1306=\"\",\"\",'1. Order'!AT1306)","v":""},null,null,null,null,null,null,null,{"$f":"IF('1. Order'!AX1306=\"\",\"\",'1. Order'!AX1306)","v":""},{"$f":"IF('1. Order'!AY1306=\"\",\"\",'1. Order'!AY1306)","v":""},{"$f":"IF('1. Order'!AZ1306=\"\",\"\",'1. Order'!AZ1306)","v":""},{"$f":"IF('1. Order'!BA1306=\"\",\"\",'1. Order'!BA1306)","v":""},{"$f":"IF('1. Order'!BC1306=\"\",\"\",'1. Order'!BC1306)","v":""},{"$f":"IF('1. Order'!BD1306=\"\",\"\",'1. Order'!BD1306)","v":6},{"$f":"IF('1. Order'!BE1306=\"\",\"\",'1. Order'!BE1306)","v":"None"},{"$f":"IF('1. Order'!BF1306=\"\",\"\",'1. Order'!BF1306)","v":"Parcel"},{"$f":"IF('1. Order'!BG1306=\"\",\"\",'1. Order'!BG1306)","v":"ZWO"}]
[{"$f":"IF('1. Order'!F1307=\"\",\"\",'1. Order'!F1307)","v":""},{"$f":"IF('1. Order'!G1307=\"\",\"\",'1. Order'!G1307)","v":""},{"$f":"IF('1. Order'!H1307=\"\",\"\",'1. Order'!H1307)","v":""},{"$f":"IF('1. Order'!I1307=\"\",\"\",'1. Order'!I1307)","v":""},{"$f":"IF('1. Order'!J1307=\"\",\"\",'1. Order'!J1307)","v":""},{"$f":"IF('1. Order'!K1307=\"\",\"\",'1. Order'!K1307)","v":""},{"$f":"IF('1. Order'!L1307=\"\",\"\",'1. Order'!L1307)","v":""},{"$f":"IF('1. Order'!M1307=\"\",\"\",'1. Order'!M1307)","v":""},{"$f":"IF('1. Order'!N1307=\"\",\"\",'1. Order'!N1307)","v":""},{"$f":"IF('1. Order'!O1307=\"\",\"\",'1. Order'!O1307)","v":{"$error":"#N/A"}},{"$f":"IF('1. Order'!P1307=\"\",\"\",'1. Order'!P1307)","v":{"$error":"#N/A"}},{"$f":"IF('1. Order'!Q1307=\"\",\"\",'1. Order'!Q1307)","v":""},{"$f":"IF('1. Order'!R1307=\"\",\"\",'1. Order'!R1307)","v":""},{"$f":"IF('1. Order'!S1307=\"\",\"\",'1. Order'!S1307)","v":""},{"$f":"IF('1. Order'!V1307=\"\",\"\",'1. Order'!V1307)","v":""},{"$f":"IF('1. Order'!W1307=\"\",\"\",'1. Order'!W1307)","v":""},{"$f":"IF('1. Order'!X1307=\"\",\"\",'1. Order'!X1307)","v":"EUR"},{"$f":"IF('1. Order'!Y1307=\"\",\"\",'1. Order'!Y1307)","v":""},{"$f":"IF('1. Order'!Z1307=\"\",\"\",'1. Order'!Z1307)","v":""},{"$f":"IF('1. Order'!AA1307=\"\",\"\",'1. Order'!AA1307)","v":""},null,{"$f":"IF('1. Order'!AS1307=\"\",\"\",'1. Order'!AS1307)","v":""},{"$f":"IF('1. Order'!AT1307=\"\",\"\",'1. Order'!AT1307)","v":""},null,null,null,null,null,null,null,{"$f":"IF('1. Order'!AX1307=\"\",\"\",'1. Order'!AX1307)","v":""},{"$f":"IF('1. Order'!AY1307=\"\",\"\",'1. Order'!AY1307)","v":""},{"$f":"IF('1. Order'!AZ1307=\"\",\"\",'1. Order'!AZ1307)","v":""},{"$f":"IF('1. Order'!BA1307=\"\",\"\",'1. Order'!BA1307)","v":""},{"$f":"IF('1. Order'!BC1307=\"\",\"\",'1. Order'!BC1307)","v":""},{"$f":"IF('1. Order'!BD1307=\"\",\"\",'1. Order'!BD1307)","v":6},{"$f":"IF('1. Order'!BE1307=\"\",\"\",'1. Order'!BE1307)","v":"None"},{"$f":"IF('1. Order'!BF1307=\"\",\"\",'1. Order'!BF1307)","v":"Parcel"},{"$f":"IF('1. Order'!BG1307=\"\",\"\",'1. Order'!BG1307)","v":"ZWO"}]
[{"$f":"IF('1. Order'!F1308=\"\",\"\",'1. Order'!F1308)","v":""},{"$f":"IF('1. Order'!G1308=\"\",\"\",'1. Order'!G1308)","v":""},{"$f":"IF('1. Order'!H1308=\"\",\"\",'1. Order'!H1308)","v":""},{"$f":"IF('1. Order'!I1308=\"\",\"\",'1. Order'!I1308)","v":""},{"$f":"IF('1. Order'!J1308=\"\",\"\",'1. Order'!J1308)","v":""},{"$f":"IF('1. Order'!K1308=\"\",\"\",'1. Order'!K1308)","v":""},{"$f":"IF('1. Order'!L1308=\"\",\"\",'1. Order'!L1308)","v":""},{"$f":"IF('1. Order'!M1308=\"\",\"\",'1. Order'!M1308)","v":""},{"$f":"IF('1. Order'!N1308=\"\",\"\",'1. Order'!N1308)","v":""},{"$f":"IF('1. Order'!O1308=\"\",\"\",'1. Order'!O1308)","v":{"$error":"#N/A"}},{"$f":"IF('1. Order'!P1308=\"\",\"\",'1. Order'!P1308)","v":{"$error":"#N/A"}},{"$f":"IF('1. Order'!Q1308=\"\",\"\",'1. Order'!Q1308)","v":""},{"$f":"IF('1. Order'!R1308=\"\",\"\",'1. Order'!R1308)","v":""},{"$f":"IF('1. Order'!S1308=\"\",\"\",'1. Order'!S1308)","v":""},{"$f":"IF('1. Order'!V1308=\"\",\"\",'1. Order'!V1308)","v":""},{"$f":"IF('1. Order'!W1308=\"\",\"\",'1. Order'!W1308)","v":""},{"$f":"IF('1. Order'!X1308=\"\",\"\",'1. Order'!X1308)","v":"EUR"},{"$f":"IF('1. Order'!Y1308=\"\",\"\",'1. Order'!Y1308)","v":""},{"$f":"IF('1. Order'!Z1308=\"\",\"\",'1. Order'!Z1308)","v":""},{"$f":"IF('1. Order'!AA1308=\"\",\"\",'1. Order'!AA1308)","v":""},null,{"$f":"IF('1. Order'!AS1308=\"\",\"\",'1. Order'!AS1308)","v":""},{"$f":"IF('1. Order'!AT1308=\"\",\"\",'1. Order'!AT1308)","v":""},null,null,null,null,null,null,null,{"$f":"IF('1. Order'!AX1308=\"\",\"\",'1. Order'!AX1308)","v":""},{"$f":"IF('1. Order'!AY1308=\"\",\"\",'1. Order'!AY1308)","v":""},{"$f":"IF('1. Order'!AZ1308=\"\",\"\",'1. Order'!AZ1308)","v":""},{"$f":"IF('1. Order'!BA1308=\"\",\"\",'1. Order'!BA1308)","v":""},{"$f":"IF('1. Order'!BC1308=\"\",\"\",'1. Order'!BC1308)","v":""},{"$f":"IF('1. Order'!BD1308=\"\",\"\",'1. Order'!BD1308)","v":6},{"$f":"IF('1. Order'!BE1308=\"\",\"\",'1. Order'!BE1308)","v":"None"},{"$f":"IF('1. Order'!BF1308=\"\",\"\",'1. Order'!BF1308)","v":"Parcel"},{"$f":"IF('1. Order'!BG1308=\"\",\"\",'1. Order'!BG1308)","v":"ZWO"}]
[{"$f":"IF('1. Order'!F1309=\"\",\"\",'1. Order'!F1309)","v":""},{"$f":"IF('1. Order'!G1309=\"\",\"\",'1. Order'!G1309)","v":""},{"$f":"IF('1. Order'!H1309=\"\",\"\",'1. Order'!H1309)","v":""},{"$f":"IF('1. Order'!I1309=\"\",\"\",'1. Order'!I1309)","v":""},{"$f":"IF('1. Order'!J1309=\"\",\"\",'1. Order'!J1309)","v":""},{"$f":"IF('1. Order'!K1309=\"\",\"\",'1. Order'!K1309)","v":""},{"$f":"IF('1. Order'!L1309=\"\",\"\",'1. Order'!L1309)","v":""},{"$f":"IF('1. Order'!M1309=\"\",\"\",'1. Order'!M1309)","v":""},{"$f":"IF('1. Order'!N1309=\"\",\"\",'1. Order'!N1309)","v":""},{"$f":"IF('1. Order'!O1309=\"\",\"\",'1. Order'!O1309)","v":{"$error":"#N/A"}},{"$f":"IF('1. Order'!P1309=\"\",\"\",'1. Order'!P1309)","v":{"$error":"#N/A"}},{"$f":"IF('1. Order'!Q1309=\"\",\"\",'1. Order'!Q1309)","v":""},{"$f":"IF('1. Order'!R1309=\"\",\"\",'1. Order'!R1309)","v":""},{"$f":"IF('1. Order'!S1309=\"\",\"\",'1. Order'!S1309)","v":""},{"$f":"IF('1. Order'!V1309=\"\",\"\",'1. Order'!V1309)","v":""},{"$f":"IF('1. Order'!W1309=\"\",\"\",'1. Order'!W1309)","v":""},{"$f":"IF('1. Order'!X1309=\"\",\"\",'1. Order'!X1309)","v":"EUR"},{"$f":"IF('1. Order'!Y1309=\"\",\"\",'1. Order'!Y1309)","v":""},{"$f":"IF('1. Order'!Z1309=\"\",\"\",'1. Order'!Z1309)","v":""},{"$f":"IF('1. Order'!AA1309=\"\",\"\",'1. Order'!AA1309)","v":""},null,{"$f":"IF('1. Order'!AS1309=\"\",\"\",'1. Order'!AS1309)","v":""},{"$f":"IF('1. Order'!AT1309=\"\",\"\",'1. Order'!AT1309)","v":""},null,null,null,null,null,null,null,{"$f":"IF('1. Order'!AX1309=\"\",\"\",'1. Order'!AX1309)","v":""},{"$f":"IF('1. Order'!AY1309=\"\",\"\",'1. Order'!AY1309)","v":""},{"$f":"IF('1. Order'!AZ1309=\"\",\"\",'1. Order'!AZ1309)","v":""},{"$f":"IF('1. Order'!BA1309=\"\",\"\",'1. Order'!BA1309)","v":""},{"$f":"IF('1. Order'!BC1309=\"\",\"\",'1. Order'!BC1309)","v":""},{"$f":"IF('1. Order'!BD1309=\"\",\"\",'1. Order'!BD1309)","v":6},{"$f":"IF('1. Order'!BE1309=\"\",\"\",'1. Order'!BE1309)","v":"None"},{"$f":"IF('1. Order'!BF1309=\"\",\"\",'1. Order'!BF1309)","v":"Parcel"},{"$f":"IF('1. Order'!BG1309=\"\",\"\",'1. Order'!BG1309)","v":"ZWO"}]
[{"$f":"IF('1. Order'!F1310=\"\",\"\",'1. Order'!F1310)","v":""},{"$f":"IF('1. Order'!G1310=\"\",\"\",'1. Order'!G1310)","v":""},{"$f":"IF('1. Order'!H1310=\"\",\"\",'1. Order'!H1310)","v":""},{"$f":"IF('1. Order'!I1310=\"\",\"\",'1. Order'!I1310)","v":""},{"$f":"IF('1. Order'!J1310=\"\",\"\",'1. Order'!J1310)","v":""},{"$f":"IF('1. Order'!K1310=\"\",\"\",'1. Order'!K1310)","v":""},{"$f":"IF('1. Order'!L1310=\"\",\"\",'1. Order'!L1310)","v":""},{"$f":"IF('1. Order'!M1310=\"\",\"\",'1. Order'!M1310)","v":""},{"$f":"IF('1. Order'!N1310=\"\",\"\",'1. Order'!N1310)","v":""},{"$f":"IF('1. Order'!O1310=\"\",\"\",'1. Order'!O1310)","v":{"$error":"#N/A"}},{"$f":"IF('1. Order'!P1310=\"\",\"\",'1. Order'!P1310)","v":{"$error":"#N/A"}},{"$f":"IF('1. Order'!Q1310=\"\",\"\",'1. Order'!Q1310)","v":""},{"$f":"IF('1. Order'!R1310=\"\",\"\",'1. Order'!R1310)","v":""},{"$f":"IF('1. Order'!S1310=\"\",\"\",'1. Order'!S1310)","v":""},{"$f":"IF('1. Order'!V1310=\"\",\"\",'1. Order'!V1310)","v":""},{"$f":"IF('1. Order'!W1310=\"\",\"\",'1. Order'!W1310)","v":""},{"$f":"IF('1. Order'!X1310=\"\",\"\",'1. Order'!X1310)","v":"EUR"},{"$f":"IF('1. Order'!Y1310=\"\",\"\",'1. Order'!Y1310)","v":""},{"$f":"IF('1. Order'!Z1310=\"\",\"\",'1. Order'!Z1310)","v":""},{"$f":"IF('1. Order'!AA1310=\"\",\"\",'1. Order'!AA1310)","v":""},null,{"$f":"IF('1. Order'!AS1310=\"\",\"\",'1. Order'!AS1310)","v":""},{"$f":"IF('1. Order'!AT1310=\"\",\"\",'1. Order'!AT1310)","v":""},null,null,null,null,null,null,null,{"$f":"IF('1. Order'!AX1310=\"\",\"\",'1. Order'!AX1310)","v":""},{"$f":"IF('1. Order'!AY1310=\"\",\"\",'1. Order'!AY1310)","v":""},{"$f":"IF('1. Order'!AZ1310=\"\",\"\",'1. Order'!AZ1310)","v":""},{"$f":"IF('1. Order'!BA1310=\"\",\"\",'1. Order'!BA1310)","v":""},{"$f":"IF('1. Order'!BC1310=\"\",\"\",'1. Order'!BC1310)","v":""},{"$f":"IF('1. Order'!BD1310=\"\",\"\",'1. Order'!BD1310)","v":6},{"$f":"IF('1. Order'!BE1310=\"\",\"\",'1. Order'!BE1310)","v":"None"},{"$f":"IF('1. Order'!BF1310=\"\",\"\",'1. Order'!BF1310)","v":"Parcel"},{"$f":"IF('1. Order'!BG1310=\"\",\"\",'1. Order'!BG1310)","v":"ZWO"}]
[{"$f":"IF('1. Order'!F1311=\"\",\"\",'1. Order'!F1311)","v":""},{"$f":"IF('1. Order'!G1311=\"\",\"\",'1. Order'!G1311)","v":""},{"$f":"IF('1. Order'!H1311=\"\",\"\",'1. Order'!H1311)","v":""},{"$f":"IF('1. Order'!I1311=\"\",\"\",'1. Order'!I1311)","v":""},{"$f":"IF('1. Order'!J1311=\"\",\"\",'1. Order'!J1311)","v":""},{"$f":"IF('1. Order'!K1311=\"\",\"\",'1. Order'!K1311)","v":""},{"$f":"IF('1. Order'!L1311=\"\",\"\",'1. Order'!L1311)","v":""},{"$f":"IF('1. Order'!M1311=\"\",\"\",'1. Order'!M1311)","v":""},{"$f":"IF('1. Order'!N1311=\"\",\"\",'1. Order'!N1311)","v":""},{"$f":"IF('1. Order'!O1311=\"\",\"\",'1. Order'!O1311)","v":{"$error":"#N/A"}},{"$f":"IF('1. Order'!P1311=\"\",\"\",'1. Order'!P1311)","v":{"$error":"#N/A"}},{"$f":"IF('1. Order'!Q1311=\"\",\"\",'1. Order'!Q1311)","v":""},{"$f":"IF('1. Order'!R1311=\"\",\"\",'1. Order'!R1311)","v":""},{"$f":"IF('1. Order'!S1311=\"\",\"\",'1. Order'!S1311)","v":""},{"$f":"IF('1. Order'!V1311=\"\",\"\",'1. Order'!V1311)","v":""},{"$f":"IF('1. Order'!W1311=\"\",\"\",'1. Order'!W1311)","v":""},{"$f":"IF('1. Order'!X1311=\"\",\"\",'1. Order'!X1311)","v":"EUR"},{"$f":"IF('1. Order'!Y1311=\"\",\"\",'1. Order'!Y1311)","v":""},{"$f":"IF('1. Order'!Z1311=\"\",\"\",'1. Order'!Z1311)","v":""},{"$f":"IF('1. Order'!AA1311=\"\",\"\",'1. Order'!AA1311)","v":""},null,{"$f":"IF('1. Order'!AS1311=\"\",\"\",'1. Order'!AS1311)","v":""},{"$f":"IF('1. Order'!AT1311=\"\",\"\",'1. Order'!AT1311)","v":""},null,null,null,null,null,null,null,{"$f":"IF('1. Order'!AX1311=\"\",\"\",'1. Order'!AX1311)","v":""},{"$f":"IF('1. Order'!AY1311=\"\",\"\",'1. Order'!AY1311)","v":""},{"$f":"IF('1. Order'!AZ1311=\"\",\"\",'1. Order'!AZ1311)","v":""},{"$f":"IF('1. Order'!BA1311=\"\",\"\",'1. Order'!BA1311)","v":""},{"$f":"IF('1. Order'!BC1311=\"\",\"\",'1. Order'!BC1311)","v":""},{"$f":"IF('1. Order'!BD1311=\"\",\"\",'1. Order'!BD1311)","v":6},{"$f":"IF('1. Order'!BE1311=\"\",\"\",'1. Order'!BE1311)","v":"None"},{"$f":"IF('1. Order'!BF1311=\"\",\"\",'1. Order'!BF1311)","v":"Parcel"},{"$f":"IF('1. Order'!BG1311=\"\",\"\",'1. Order'!BG1311)","v":"ZWO"}]
[{"$f":"IF('1. Order'!F1312=\"\",\"\",'1. Order'!F1312)","v":""},{"$f":"IF('1. Order'!G1312=\"\",\"\",'1. Order'!G1312)","v":""},{"$f":"IF('1. Order'!H1312=\"\",\"\",'1. Order'!H1312)","v":""},{"$f":"IF('1. Order'!I1312=\"\",\"\",'1. Order'!I1312)","v":""},{"$f":"IF('1. Order'!J1312=\"\",\"\",'1. Order'!J1312)","v":""},{"$f":"IF('1. Order'!K1312=\"\",\"\",'1. Order'!K1312)","v":""},{"$f":"IF('1. Order'!L1312=\"\",\"\",'1. Order'!L1312)","v":""},{"$f":"IF('1. Order'!M1312=\"\",\"\",'1. Order'!M1312)","v":""},{"$f":"IF('1. Order'!N1312=\"\",\"\",'1. Order'!N1312)","v":""},{"$f":"IF('1. Order'!O1312=\"\",\"\",'1. Order'!O1312)","v":{"$error":"#N/A"}},{"$f":"IF('1. Order'!P1312=\"\",\"\",'1. Order'!P1312)","v":{"$error":"#N/A"}},{"$f":"IF('1. Order'!Q1312=\"\",\"\",'1. Order'!Q1312)","v":""},{"$f":"IF('1. Order'!R1312=\"\",\"\",'1. Order'!R1312)","v":""},{"$f":"IF('1. Order'!S1312=\"\",\"\",'1. Order'!S1312)","v":""},{"$f":"IF('1. Order'!V1312=\"\",\"\",'1. Order'!V1312)","v":""},{"$f":"IF('1. Order'!W1312=\"\",\"\",'1. Order'!W1312)","v":""},{"$f":"IF('1. Order'!X1312=\"\",\"\",'1. Order'!X1312)","v":"EUR"},{"$f":"IF('1. Order'!Y1312=\"\",\"\",'1. Order'!Y1312)","v":""},{"$f":"IF('1. Order'!Z1312=\"\",\"\",'1. Order'!Z1312)","v":""},{"$f":"IF('1. Order'!AA1312=\"\",\"\",'1. Order'!AA1312)","v":""},null,{"$f":"IF('1. Order'!AS1312=\"\",\"\",'1. Order'!AS1312)","v":""},{"$f":"IF('1. Order'!AT1312=\"\",\"\",'1. Order'!AT1312)","v":""},null,null,null,null,null,null,null,{"$f":"IF('1. Order'!AX1312=\"\",\"\",'1. Order'!AX1312)","v":""},{"$f":"IF('1. Order'!AY1312=\"\",\"\",'1. Order'!AY1312)","v":""},{"$f":"IF('1. Order'!AZ1312=\"\",\"\",'1. Order'!AZ1312)","v":""},{"$f":"IF('1. Order'!BA1312=\"\",\"\",'1. Order'!BA1312)","v":""},{"$f":"IF('1. Order'!BC1312=\"\",\"\",'1. Order'!BC1312)","v":""},{"$f":"IF('1. Order'!BD1312=\"\",\"\",'1. Order'!BD1312)","v":6},{"$f":"IF('1. Order'!BE1312=\"\",\"\",'1. Order'!BE1312)","v":"None"},{"$f":"IF('1. Order'!BF1312=\"\",\"\",'1. Order'!BF1312)","v":"Parcel"},{"$f":"IF('1. Order'!BG1312=\"\",\"\",'1. Order'!BG1312)","v":"ZWO"}]
[{"$f":"IF('1. Order'!F1313=\"\",\"\",'1. Order'!F1313)","v":""},{"$f":"IF('1. Order'!G1313=\"\",\"\",'1. Order'!G1313)","v":""},{"$f":"IF('1. Order'!H1313=\"\",\"\",'1. Order'!H1313)","v":""},{"$f":"IF('1. Order'!I1313=\"\",\"\",'1. Order'!I1313)","v":""},{"$f":"IF('1. Order'!J1313=\"\",\"\",'1. Order'!J1313)","v":""},{"$f":"IF('1. Order'!K1313=\"\",\"\",'1. Order'!K1313)","v":""},{"$f":"IF('1. Order'!L1313=\"\",\"\",'1. Order'!L1313)","v":""},{"$f":"IF('1. Order'!M1313=\"\",\"\",'1. Order'!M1313)","v":""},{"$f":"IF('1. Order'!N1313=\"\",\"\",'1. Order'!N1313)","v":""},{"$f":"IF('1. Order'!O1313=\"\",\"\",'1. Order'!O1313)","v":{"$error":"#N/A"}},{"$f":"IF('1. Order'!P1313=\"\",\"\",'1. Order'!P1313)","v":{"$error":"#N/A"}},{"$f":"IF('1. Order'!Q1313=\"\",\"\",'1. Order'!Q1313)","v":""},{"$f":"IF('1. Order'!R1313=\"\",\"\",'1. Order'!R1313)","v":""},{"$f":"IF('1. Order'!S1313=\"\",\"\",'1. Order'!S1313)","v":""},{"$f":"IF('1. Order'!V1313=\"\",\"\",'1. Order'!V1313)","v":""},{"$f":"IF('1. Order'!W1313=\"\",\"\",'1. Order'!W1313)","v":""},{"$f":"IF('1. Order'!X1313=\"\",\"\",'1. Order'!X1313)","v":"EUR"},{"$f":"IF('1. Order'!Y1313=\"\",\"\",'1. Order'!Y1313)","v":""},{"$f":"IF('1. Order'!Z1313=\"\",\"\",'1. Order'!Z1313)","v":""},{"$f":"IF('1. Order'!AA1313=\"\",\"\",'1. Order'!AA1313)","v":""},null,{"$f":"IF('1. Order'!AS1313=\"\",\"\",'1. Order'!AS1313)","v":""},{"$f":"IF('1. Order'!AT1313=\"\",\"\",'1. Order'!AT1313)","v":""},null,null,null,null,null,null,null,{"$f":"IF('1. Order'!AX1313=\"\",\"\",'1. Order'!AX1313)","v":""},{"$f":"IF('1. Order'!AY1313=\"\",\"\",'1. Order'!AY1313)","v":""},{"$f":"IF('1. Order'!AZ1313=\"\",\"\",'1. Order'!AZ1313)","v":""},{"$f":"IF('1. Order'!BA1313=\"\",\"\",'1. Order'!BA1313)","v":""},{"$f":"IF('1. Order'!BC1313=\"\",\"\",'1. Order'!BC1313)","v":""},{"$f":"IF('1. Order'!BD1313=\"\",\"\",'1. Order'!BD1313)","v":6},{"$f":"IF('1. Order'!BE1313=\"\",\"\",'1. Order'!BE1313)","v":"None"},{"$f":"IF('1. Order'!BF1313=\"\",\"\",'1. Order'!BF1313)","v":"Parcel"},{"$f":"IF('1. Order'!BG1313=\"\",\"\",'1. Order'!BG1313)","v":"ZWO"}]
[{"$f":"IF('1. Order'!F1314=\"\",\"\",'1. Order'!F1314)","v":""},{"$f":"IF('1. Order'!G1314=\"\",\"\",'1. Order'!G1314)","v":""},{"$f":"IF('1. Order'!H1314=\"\",\"\",'1. Order'!H1314)","v":""},{"$f":"IF('1. Order'!I1314=\"\",\"\",'1. Order'!I1314)","v":""},{"$f":"IF('1. Order'!J1314=\"\",\"\",'1. Order'!J1314)","v":""},{"$f":"IF('1. Order'!K1314=\"\",\"\",'1. Order'!K1314)","v":""},{"$f":"IF('1. Order'!L1314=\"\",\"\",'1. Order'!L1314)","v":""},{"$f":"IF('1. Order'!M1314=\"\",\"\",'1. Order'!M1314)","v":""},{"$f":"IF('1. Order'!N1314=\"\",\"\",'1. Order'!N1314)","v":""},{"$f":"IF('1. Order'!O1314=\"\",\"\",'1. Order'!O1314)","v":{"$error":"#N/A"}},{"$f":"IF('1. Order'!P1314=\"\",\"\",'1. Order'!P1314)","v":{"$error":"#N/A"}},{"$f":"IF('1. Order'!Q1314=\"\",\"\",'1. Order'!Q1314)","v":""},{"$f":"IF('1. Order'!R1314=\"\",\"\",'1. Order'!R1314)","v":""},{"$f":"IF('1. Order'!S1314=\"\",\"\",'1. Order'!S1314)","v":""},{"$f":"IF('1. Order'!V1314=\"\",\"\",'1. Order'!V1314)","v":""},{"$f":"IF('1. Order'!W1314=\"\",\"\",'1. Order'!W1314)","v":""},{"$f":"IF('1. Order'!X1314=\"\",\"\",'1. Order'!X1314)","v":"EUR"},{"$f":"IF('1. Order'!Y1314=\"\",\"\",'1. Order'!Y1314)","v":""},{"$f":"IF('1. Order'!Z1314=\"\",\"\",'1. Order'!Z1314)","v":""},{"$f":"IF('1. Order'!AA1314=\"\",\"\",'1. Order'!AA1314)","v":""},null,{"$f":"IF('1. Order'!AS1314=\"\",\"\",'1. Order'!AS1314)","v":""},{"$f":"IF('1. Order'!AT1314=\"\",\"\",'1. Order'!AT1314)","v":""},null,null,null,null,null,null,null,{"$f":"IF('1. Order'!AX1314=\"\",\"\",'1. Order'!AX1314)","v":""},{"$f":"IF('1. Order'!AY1314=\"\",\"\",'1. Order'!AY1314)","v":""},{"$f":"IF('1. Order'!AZ1314=\"\",\"\",'1. Order'!AZ1314)","v":""},{"$f":"IF('1. Order'!BA1314=\"\",\"\",'1. Order'!BA1314)","v":""},{"$f":"IF('1. Order'!BC1314=\"\",\"\",'1. Order'!BC1314)","v":""},{"$f":"IF('1. Order'!BD1314=\"\",\"\",'1. Order'!BD1314)","v":6},{"$f":"IF('1. Order'!BE1314=\"\",\"\",'1. Order'!BE1314)","v":"None"},{"$f":"IF('1. Order'!BF1314=\"\",\"\",'1. Order'!BF1314)","v":"Parcel"},{"$f":"IF('1. Order'!BG1314=\"\",\"\",'1. Order'!BG1314)","v":"ZWO"}]
[{"$f":"IF('1. Order'!F1315=\"\",\"\",'1. Order'!F1315)","v":""},{"$f":"IF('1. Order'!G1315=\"\",\"\",'1. Order'!G1315)","v":""},{"$f":"IF('1. Order'!H1315=\"\",\"\",'1. Order'!H1315)","v":""},{"$f":"IF('1. Order'!I1315=\"\",\"\",'1. Order'!I1315)","v":""},{"$f":"IF('1. Order'!J1315=\"\",\"\",'1. Order'!J1315)","v":""},{"$f":"IF('1. Order'!K1315=\"\",\"\",'1. Order'!K1315)","v":""},{"$f":"IF('1. Order'!L1315=\"\",\"\",'1. Order'!L1315)","v":""},{"$f":"IF('1. Order'!M1315=\"\",\"\",'1. Order'!M1315)","v":""},{"$f":"IF('1. Order'!N1315=\"\",\"\",'1. Order'!N1315)","v":""},{"$f":"IF('1. Order'!O1315=\"\",\"\",'1. Order'!O1315)","v":{"$error":"#N/A"}},{"$f":"IF('1. Order'!P1315=\"\",\"\",'1. Order'!P1315)","v":{"$error":"#N/A"}},{"$f":"IF('1. Order'!Q1315=\"\",\"\",'1. Order'!Q1315)","v":""},{"$f":"IF('1. Order'!R1315=\"\",\"\",'1. Order'!R1315)","v":""},{"$f":"IF('1. Order'!S1315=\"\",\"\",'1. Order'!S1315)","v":""},{"$f":"IF('1. Order'!V1315=\"\",\"\",'1. Order'!V1315)","v":""},{"$f":"IF('1. Order'!W1315=\"\",\"\",'1. Order'!W1315)","v":""},{"$f":"IF('1. Order'!X1315=\"\",\"\",'1. Order'!X1315)","v":"EUR"},{"$f":"IF('1. Order'!Y1315=\"\",\"\",'1. Order'!Y1315)","v":""},{"$f":"IF('1. Order'!Z1315=\"\",\"\",'1. Order'!Z1315)","v":""},{"$f":"IF('1. Order'!AA1315=\"\",\"\",'1. Order'!AA1315)","v":""},null,{"$f":"IF('1. Order'!AS1315=\"\",\"\",'1. Order'!AS1315)","v":""},{"$f":"IF('1. Order'!AT1315=\"\",\"\",'1. Order'!AT1315)","v":""},null,null,null,null,null,null,null,{"$f":"IF('1. Order'!AX1315=\"\",\"\",'1. Order'!AX1315)","v":""},{"$f":"IF('1. Order'!AY1315=\"\",\"\",'1. Order'!AY1315)","v":""},{"$f":"IF('1. Order'!AZ1315=\"\",\"\",'1. Order'!AZ1315)","v":""},{"$f":"IF('1. Order'!BA1315=\"\",\"\",'1. Order'!BA1315)","v":""},{"$f":"IF('1. Order'!BC1315=\"\",\"\",'1. Order'!BC1315)","v":""},{"$f":"IF('1. Order'!BD1315=\"\",\"\",'1. Order'!BD1315)","v":6},{"$f":"IF('1. Order'!BE1315=\"\",\"\",'1. Order'!BE1315)","v":"None"},{"$f":"IF('1. Order'!BF1315=\"\",\"\",'1. Order'!BF1315)","v":"Parcel"},{"$f":"IF('1. Order'!BG1315=\"\",\"\",'1. Order'!BG1315)","v":"ZWO"}]
[{"$f":"IF('1. Order'!F1316=\"\",\"\",'1. Order'!F1316)","v":""},{"$f":"IF('1. Order'!G1316=\"\",\"\",'1. Order'!G1316)","v":""},{"$f":"IF('1. Order'!H1316=\"\",\"\",'1. Order'!H1316)","v":""},{"$f":"IF('1. Order'!I1316=\"\",\"\",'1. Order'!I1316)","v":""},{"$f":"IF('1. Order'!J1316=\"\",\"\",'1. Order'!J1316)","v":""},{"$f":"IF('1. Order'!K1316=\"\",\"\",'1. Order'!K1316)","v":""},{"$f":"IF('1. Order'!L1316=\"\",\"\",'1. Order'!L1316)","v":""},{"$f":"IF('1. Order'!M1316=\"\",\"\",'1. Order'!M1316)","v":""},{"$f":"IF('1. Order'!N1316=\"\",\"\",'1. Order'!N1316)","v":""},{"$f":"IF('1. Order'!O1316=\"\",\"\",'1. Order'!O1316)","v":{"$error":"#N/A"}},{"$f":"IF('1. Order'!P1316=\"\",\"\",'1. Order'!P1316)","v":{"$error":"#N/A"}},{"$f":"IF('1. Order'!Q1316=\"\",\"\",'1. Order'!Q1316)","v":""},{"$f":"IF('1. Order'!R1316=\"\",\"\",'1. Order'!R1316)","v":""},{"$f":"IF('1. Order'!S1316=\"\",\"\",'1. Order'!S1316)","v":""},{"$f":"IF('1. Order'!V1316=\"\",\"\",'1. Order'!V1316)","v":""},{"$f":"IF('1. Order'!W1316=\"\",\"\",'1. Order'!W1316)","v":""},{"$f":"IF('1. Order'!X1316=\"\",\"\",'1. Order'!X1316)","v":"EUR"},{"$f":"IF('1. Order'!Y1316=\"\",\"\",'1. Order'!Y1316)","v":""},{"$f":"IF('1. Order'!Z1316=\"\",\"\",'1. Order'!Z1316)","v":""},{"$f":"IF('1. Order'!AA1316=\"\",\"\",'1. Order'!AA1316)","v":""},null,{"$f":"IF('1. Order'!AS1316=\"\",\"\",'1. Order'!AS1316)","v":""},{"$f":"IF('1. Order'!AT1316=\"\",\"\",'1. Order'!AT1316)","v":""},null,null,null,null,null,null,null,{"$f":"IF('1. Order'!AX1316=\"\",\"\",'1. Order'!AX1316)","v":""},{"$f":"IF('1. Order'!AY1316=\"\",\"\",'1. Order'!AY1316)","v":""},{"$f":"IF('1. Order'!AZ1316=\"\",\"\",'1. Order'!AZ1316)","v":""},{"$f":"IF('1. Order'!BA1316=\"\",\"\",'1. Order'!BA1316)","v":""},{"$f":"IF('1. Order'!BC1316=\"\",\"\",'1. Order'!BC1316)","v":""},{"$f":"IF('1. Order'!BD1316=\"\",\"\",'1. Order'!BD1316)","v":6},{"$f":"IF('1. Order'!BE1316=\"\",\"\",'1. Order'!BE1316)","v":"None"},{"$f":"IF('1. Order'!BF1316=\"\",\"\",'1. Order'!BF1316)","v":"Parcel"},{"$f":"IF('1. Order'!BG1316=\"\",\"\",'1. Order'!BG1316)","v":"ZWO"}]
[{"$f":"IF('1. Order'!F1317=\"\",\"\",'1. Order'!F1317)","v":""},{"$f":"IF('1. Order'!G1317=\"\",\"\",'1. Order'!G1317)","v":""},{"$f":"IF('1. Order'!H1317=\"\",\"\",'1. Order'!H1317)","v":""},{"$f":"IF('1. Order'!I1317=\"\",\"\",'1. Order'!I1317)","v":""},{"$f":"IF('1. Order'!J1317=\"\",\"\",'1. Order'!J1317)","v":""},{"$f":"IF('1. Order'!K1317=\"\",\"\",'1. Order'!K1317)","v":""},{"$f":"IF('1. Order'!L1317=\"\",\"\",'1. Order'!L1317)","v":""},{"$f":"IF('1. Order'!M1317=\"\",\"\",'1. Order'!M1317)","v":""},{"$f":"IF('1. Order'!N1317=\"\",\"\",'1. Order'!N1317)","v":""},{"$f":"IF('1. Order'!O1317=\"\",\"\",'1. Order'!O1317)","v":{"$error":"#N/A"}},{"$f":"IF('1. Order'!P1317=\"\",\"\",'1. Order'!P1317)","v":{"$error":"#N/A"}},{"$f":"IF('1. Order'!Q1317=\"\",\"\",'1. Order'!Q1317)","v":""},{"$f":"IF('1. Order'!R1317=\"\",\"\",'1. Order'!R1317)","v":""},{"$f":"IF('1. Order'!S1317=\"\",\"\",'1. Order'!S1317)","v":""},{"$f":"IF('1. Order'!V1317=\"\",\"\",'1. Order'!V1317)","v":""},{"$f":"IF('1. Order'!W1317=\"\",\"\",'1. Order'!W1317)","v":""},{"$f":"IF('1. Order'!X1317=\"\",\"\",'1. Order'!X1317)","v":"EUR"},{"$f":"IF('1. Order'!Y1317=\"\",\"\",'1. Order'!Y1317)","v":""},{"$f":"IF('1. Order'!Z1317=\"\",\"\",'1. Order'!Z1317)","v":""},{"$f":"IF('1. Order'!AA1317=\"\",\"\",'1. Order'!AA1317)","v":""},null,{"$f":"IF('1. Order'!AS1317=\"\",\"\",'1. Order'!AS1317)","v":""},{"$f":"IF('1. Order'!AT1317=\"\",\"\",'1. Order'!AT1317)","v":""},null,null,null,null,null,null,null,{"$f":"IF('1. Order'!AX1317=\"\",\"\",'1. Order'!AX1317)","v":""},{"$f":"IF('1. Order'!AY1317=\"\",\"\",'1. Order'!AY1317)","v":""},{"$f":"IF('1. Order'!AZ1317=\"\",\"\",'1. Order'!AZ1317)","v":""},{"$f":"IF('1. Order'!BA1317=\"\",\"\",'1. Order'!BA1317)","v":""},{"$f":"IF('1. Order'!BC1317=\"\",\"\",'1. Order'!BC1317)","v":""},{"$f":"IF('1. Order'!BD1317=\"\",\"\",'1. Order'!BD1317)","v":6},{"$f":"IF('1. Order'!BE1317=\"\",\"\",'1. Order'!BE1317)","v":"None"},{"$f":"IF('1. Order'!BF1317=\"\",\"\",'1. Order'!BF1317)","v":"Parcel"},{"$f":"IF('1. Order'!BG1317=\"\",\"\",'1. Order'!BG1317)","v":"ZWO"}]
[{"$f":"IF('1. Order'!F1318=\"\",\"\",'1. Order'!F1318)","v":""},{"$f":"IF('1. Order'!G1318=\"\",\"\",'1. Order'!G1318)","v":""},{"$f":"IF('1. Order'!H1318=\"\",\"\",'1. Order'!H1318)","v":""},{"$f":"IF('1. Order'!I1318=\"\",\"\",'1. Order'!I1318)","v":""},{"$f":"IF('1. Order'!J1318=\"\",\"\",'1. Order'!J1318)","v":""},{"$f":"IF('1. Order'!K1318=\"\",\"\",'1. Order'!K1318)","v":""},{"$f":"IF('1. Order'!L1318=\"\",\"\",'1. Order'!L1318)","v":""},{"$f":"IF('1. Order'!M1318=\"\",\"\",'1. Order'!M1318)","v":""},{"$f":"IF('1. Order'!N1318=\"\",\"\",'1. Order'!N1318)","v":""},{"$f":"IF('1. Order'!O1318=\"\",\"\",'1. Order'!O1318)","v":{"$error":"#N/A"}},{"$f":"IF('1. Order'!P1318=\"\",\"\",'1. Order'!P1318)","v":{"$error":"#N/A"}},{"$f":"IF('1. Order'!Q1318=\"\",\"\",'1. Order'!Q1318)","v":""},{"$f":"IF('1. Order'!R1318=\"\",\"\",'1. Order'!R1318)","v":""},{"$f":"IF('1. Order'!S1318=\"\",\"\",'1. Order'!S1318)","v":""},{"$f":"IF('1. Order'!V1318=\"\",\"\",'1. Order'!V1318)","v":""},{"$f":"IF('1. Order'!W1318=\"\",\"\",'1. Order'!W1318)","v":""},{"$f":"IF('1. Order'!X1318=\"\",\"\",'1. Order'!X1318)","v":"EUR"},{"$f":"IF('1. Order'!Y1318=\"\",\"\",'1. Order'!Y1318)","v":""},{"$f":"IF('1. Order'!Z1318=\"\",\"\",'1. Order'!Z1318)","v":""},{"$f":"IF('1. Order'!AA1318=\"\",\"\",'1. Order'!AA1318)","v":""},null,{"$f":"IF('1. Order'!AS1318=\"\",\"\",'1. Order'!AS1318)","v":""},{"$f":"IF('1. Order'!AT1318=\"\",\"\",'1. Order'!AT1318)","v":""},null,null,null,null,null,null,null,{"$f":"IF('1. Order'!AX1318=\"\",\"\",'1. Order'!AX1318)","v":""},{"$f":"IF('1. Order'!AY1318=\"\",\"\",'1. Order'!AY1318)","v":""},{"$f":"IF('1. Order'!AZ1318=\"\",\"\",'1. Order'!AZ1318)","v":""},{"$f":"IF('1. Order'!BA1318=\"\",\"\",'1. Order'!BA1318)","v":""},{"$f":"IF('1. Order'!BC1318=\"\",\"\",'1. Order'!BC1318)","v":""},{"$f":"IF('1. Order'!BD1318=\"\",\"\",'1. Order'!BD1318)","v":6},{"$f":"IF('1. Order'!BE1318=\"\",\"\",'1. Order'!BE1318)","v":"None"},{"$f":"IF('1. Order'!BF1318=\"\",\"\",'1. Order'!BF1318)","v":"Parcel"},{"$f":"IF('1. Order'!BG1318=\"\",\"\",'1. Order'!BG1318)","v":"ZWO"}]
[{"$f":"IF('1. Order'!F1319=\"\",\"\",'1. Order'!F1319)","v":""},{"$f":"IF('1. Order'!G1319=\"\",\"\",'1. Order'!G1319)","v":""},{"$f":"IF('1. Order'!H1319=\"\",\"\",'1. Order'!H1319)","v":""},{"$f":"IF('1. Order'!I1319=\"\",\"\",'1. Order'!I1319)","v":""},{"$f":"IF('1. Order'!J1319=\"\",\"\",'1. Order'!J1319)","v":""},{"$f":"IF('1. Order'!K1319=\"\",\"\",'1. Order'!K1319)","v":""},{"$f":"IF('1. Order'!L1319=\"\",\"\",'1. Order'!L1319)","v":""},{"$f":"IF('1. Order'!M1319=\"\",\"\",'1. Order'!M1319)","v":""},{"$f":"IF('1. Order'!N1319=\"\",\"\",'1. Order'!N1319)","v":""},{"$f":"IF('1. Order'!O1319=\"\",\"\",'1. Order'!O1319)","v":{"$error":"#N/A"}},{"$f":"IF('1. Order'!P1319=\"\",\"\",'1. Order'!P1319)","v":{"$error":"#N/A"}},{"$f":"IF('1. Order'!Q1319=\"\",\"\",'1. Order'!Q1319)","v":""},{"$f":"IF('1. Order'!R1319=\"\",\"\",'1. Order'!R1319)","v":""},{"$f":"IF('1. Order'!S1319=\"\",\"\",'1. Order'!S1319)","v":""},{"$f":"IF('1. Order'!V1319=\"\",\"\",'1. Order'!V1319)","v":""},{"$f":"IF('1. Order'!W1319=\"\",\"\",'1. Order'!W1319)","v":""},{"$f":"IF('1. Order'!X1319=\"\",\"\",'1. Order'!X1319)","v":"EUR"},{"$f":"IF('1. Order'!Y1319=\"\",\"\",'1. Order'!Y1319)","v":""},{"$f":"IF('1. Order'!Z1319=\"\",\"\",'1. Order'!Z1319)","v":""},{"$f":"IF('1. Order'!AA1319=\"\",\"\",'1. Order'!AA1319)","v":""},null,{"$f":"IF('1. Order'!AS1319=\"\",\"\",'1. Order'!AS1319)","v":""},{"$f":"IF('1. Order'!AT1319=\"\",\"\",'1. Order'!AT1319)","v":""},null,null,null,null,null,null,null,{"$f":"IF('1. Order'!AX1319=\"\",\"\",'1. Order'!AX1319)","v":""},{"$f":"IF('1. Order'!AY1319=\"\",\"\",'1. Order'!AY1319)","v":""},{"$f":"IF('1. Order'!AZ1319=\"\",\"\",'1. Order'!AZ1319)","v":""},{"$f":"IF('1. Order'!BA1319=\"\",\"\",'1. Order'!BA1319)","v":""},{"$f":"IF('1. Order'!BC1319=\"\",\"\",'1. Order'!BC1319)","v":""},{"$f":"IF('1. Order'!BD1319=\"\",\"\",'1. Order'!BD1319)","v":6},{"$f":"IF('1. Order'!BE1319=\"\",\"\",'1. Order'!BE1319)","v":"None"},{"$f":"IF('1. Order'!BF1319=\"\",\"\",'1. Order'!BF1319)","v":"Parcel"},{"$f":"IF('1. Order'!BG1319=\"\",\"\",'1. Order'!BG1319)","v":"ZWO"}]
[{"$f":"IF('1. Order'!F1320=\"\",\"\",'1. Order'!F1320)","v":""},{"$f":"IF('1. Order'!G1320=\"\",\"\",'1. Order'!G1320)","v":""},{"$f":"IF('1. Order'!H1320=\"\",\"\",'1. Order'!H1320)","v":""},{"$f":"IF('1. Order'!I1320=\"\",\"\",'1. Order'!I1320)","v":""},{"$f":"IF('1. Order'!J1320=\"\",\"\",'1. Order'!J1320)","v":""},{"$f":"IF('1. Order'!K1320=\"\",\"\",'1. Order'!K1320)","v":""},{"$f":"IF('1. Order'!L1320=\"\",\"\",'1. Order'!L1320)","v":""},{"$f":"IF('1. Order'!M1320=\"\",\"\",'1. Order'!M1320)","v":""},{"$f":"IF('1. Order'!N1320=\"\",\"\",'1. Order'!N1320)","v":""},{"$f":"IF('1. Order'!O1320=\"\",\"\",'1. Order'!O1320)","v":{"$error":"#N/A"}},{"$f":"IF('1. Order'!P1320=\"\",\"\",'1. Order'!P1320)","v":{"$error":"#N/A"}},{"$f":"IF('1. Order'!Q1320=\"\",\"\",'1. Order'!Q1320)","v":""},{"$f":"IF('1. Order'!R1320=\"\",\"\",'1. Order'!R1320)","v":""},{"$f":"IF('1. Order'!S1320=\"\",\"\",'1. Order'!S1320)","v":""},{"$f":"IF('1. Order'!V1320=\"\",\"\",'1. Order'!V1320)","v":""},{"$f":"IF('1. Order'!W1320=\"\",\"\",'1. Order'!W1320)","v":""},{"$f":"IF('1. Order'!X1320=\"\",\"\",'1. Order'!X1320)","v":"EUR"},{"$f":"IF('1. Order'!Y1320=\"\",\"\",'1. Order'!Y1320)","v":""},{"$f":"IF('1. Order'!Z1320=\"\",\"\",'1. Order'!Z1320)","v":""},{"$f":"IF('1. Order'!AA1320=\"\",\"\",'1. Order'!AA1320)","v":""},null,{"$f":"IF('1. Order'!AS1320=\"\",\"\",'1. Order'!AS1320)","v":""},{"$f":"IF('1. Order'!AT1320=\"\",\"\",'1. Order'!AT1320)","v":""},null,null,null,null,null,null,null,{"$f":"IF('1. Order'!AX1320=\"\",\"\",'1. Order'!AX1320)","v":""},{"$f":"IF('1. Order'!AY1320=\"\",\"\",'1. Order'!AY1320)","v":""},{"$f":"IF('1. Order'!AZ1320=\"\",\"\",'1. Order'!AZ1320)","v":""},{"$f":"IF('1. Order'!BA1320=\"\",\"\",'1. Order'!BA1320)","v":""},{"$f":"IF('1. Order'!BC1320=\"\",\"\",'1. Order'!BC1320)","v":""},{"$f":"IF('1. Order'!BD1320=\"\",\"\",'1. Order'!BD1320)","v":6},{"$f":"IF('1. Order'!BE1320=\"\",\"\",'1. Order'!BE1320)","v":"None"},{"$f":"IF('1. Order'!BF1320=\"\",\"\",'1. Order'!BF1320)","v":"Parcel"},{"$f":"IF('1. Order'!BG1320=\"\",\"\",'1. Order'!BG1320)","v":"ZWO"}]
[{"$f":"IF('1. Order'!F1321=\"\",\"\",'1. Order'!F1321)","v":""},{"$f":"IF('1. Order'!G1321=\"\",\"\",'1. Order'!G1321)","v":""},{"$f":"IF('1. Order'!H1321=\"\",\"\",'1. Order'!H1321)","v":""},{"$f":"IF('1. Order'!I1321=\"\",\"\",'1. Order'!I1321)","v":""},{"$f":"IF('1. Order'!J1321=\"\",\"\",'1. Order'!J1321)","v":""},{"$f":"IF('1. Order'!K1321=\"\",\"\",'1. Order'!K1321)","v":""},{"$f":"IF('1. Order'!L1321=\"\",\"\",'1. Order'!L1321)","v":""},{"$f":"IF('1. Order'!M1321=\"\",\"\",'1. Order'!M1321)","v":""},{"$f":"IF('1. Order'!N1321=\"\",\"\",'1. Order'!N1321)","v":""},{"$f":"IF('1. Order'!O1321=\"\",\"\",'1. Order'!O1321)","v":{"$error":"#N/A"}},{"$f":"IF('1. Order'!P1321=\"\",\"\",'1. Order'!P1321)","v":{"$error":"#N/A"}},{"$f":"IF('1. Order'!Q1321=\"\",\"\",'1. Order'!Q1321)","v":""},{"$f":"IF('1. Order'!R1321=\"\",\"\",'1. Order'!R1321)","v":""},{"$f":"IF('1. Order'!S1321=\"\",\"\",'1. Order'!S1321)","v":""},{"$f":"IF('1. Order'!V1321=\"\",\"\",'1. Order'!V1321)","v":""},{"$f":"IF('1. Order'!W1321=\"\",\"\",'1. Order'!W1321)","v":""},{"$f":"IF('1. Order'!X1321=\"\",\"\",'1. Order'!X1321)","v":"EUR"},{"$f":"IF('1. Order'!Y1321=\"\",\"\",'1. Order'!Y1321)","v":""},{"$f":"IF('1. Order'!Z1321=\"\",\"\",'1. Order'!Z1321)","v":""},{"$f":"IF('1. Order'!AA1321=\"\",\"\",'1. Order'!AA1321)","v":""},null,{"$f":"IF('1. Order'!AS1321=\"\",\"\",'1. Order'!AS1321)","v":""},{"$f":"IF('1. Order'!AT1321=\"\",\"\",'1. Order'!AT1321)","v":""},null,null,null,null,null,null,null,{"$f":"IF('1. Order'!AX1321=\"\",\"\",'1. Order'!AX1321)","v":""},{"$f":"IF('1. Order'!AY1321=\"\",\"\",'1. Order'!AY1321)","v":""},{"$f":"IF('1. Order'!AZ1321=\"\",\"\",'1. Order'!AZ1321)","v":""},{"$f":"IF('1. Order'!BA1321=\"\",\"\",'1. Order'!BA1321)","v":""},{"$f":"IF('1. Order'!BC1321=\"\",\"\",'1. Order'!BC1321)","v":""},{"$f":"IF('1. Order'!BD1321=\"\",\"\",'1. Order'!BD1321)","v":6},{"$f":"IF('1. Order'!BE1321=\"\",\"\",'1. Order'!BE1321)","v":"None"},{"$f":"IF('1. Order'!BF1321=\"\",\"\",'1. Order'!BF1321)","v":"Parcel"},{"$f":"IF('1. Order'!BG1321=\"\",\"\",'1. Order'!BG1321)","v":"ZWO"}]
[{"$f":"IF('1. Order'!F1322=\"\",\"\",'1. Order'!F1322)","v":""},{"$f":"IF('1. Order'!G1322=\"\",\"\",'1. Order'!G1322)","v":""},{"$f":"IF('1. Order'!H1322=\"\",\"\",'1. Order'!H1322)","v":""},{"$f":"IF('1. Order'!I1322=\"\",\"\",'1. Order'!I1322)","v":""},{"$f":"IF('1. Order'!J1322=\"\",\"\",'1. Order'!J1322)","v":""},{"$f":"IF('1. Order'!K1322=\"\",\"\",'1. Order'!K1322)","v":""},{"$f":"IF('1. Order'!L1322=\"\",\"\",'1. Order'!L1322)","v":""},{"$f":"IF('1. Order'!M1322=\"\",\"\",'1. Order'!M1322)","v":""},{"$f":"IF('1. Order'!N1322=\"\",\"\",'1. Order'!N1322)","v":""},{"$f":"IF('1. Order'!O1322=\"\",\"\",'1. Order'!O1322)","v":{"$error":"#N/A"}},{"$f":"IF('1. Order'!P1322=\"\",\"\",'1. Order'!P1322)","v":{"$error":"#N/A"}},{"$f":"IF('1. Order'!Q1322=\"\",\"\",'1. Order'!Q1322)","v":""},{"$f":"IF('1. Order'!R1322=\"\",\"\",'1. Order'!R1322)","v":""},{"$f":"IF('1. Order'!S1322=\"\",\"\",'1. Order'!S1322)","v":""},{"$f":"IF('1. Order'!V1322=\"\",\"\",'1. Order'!V1322)","v":""},{"$f":"IF('1. Order'!W1322=\"\",\"\",'1. Order'!W1322)","v":""},{"$f":"IF('1. Order'!X1322=\"\",\"\",'1. Order'!X1322)","v":"EUR"},{"$f":"IF('1. Order'!Y1322=\"\",\"\",'1. Order'!Y1322)","v":""},{"$f":"IF('1. Order'!Z1322=\"\",\"\",'1. Order'!Z1322)","v":""},{"$f":"IF('1. Order'!AA1322=\"\",\"\",'1. Order'!AA1322)","v":""},null,{"$f":"IF('1. Order'!AS1322=\"\",\"\",'1. Order'!AS1322)","v":""},{"$f":"IF('1. Order'!AT1322=\"\",\"\",'1. Order'!AT1322)","v":""},null,null,null,null,null,null,null,{"$f":"IF('1. Order'!AX1322=\"\",\"\",'1. Order'!AX1322)","v":""},{"$f":"IF('1. Order'!AY1322=\"\",\"\",'1. Order'!AY1322)","v":""},{"$f":"IF('1. Order'!AZ1322=\"\",\"\",'1. Order'!AZ1322)","v":""},{"$f":"IF('1. Order'!BA1322=\"\",\"\",'1. Order'!BA1322)","v":""},{"$f":"IF('1. Order'!BC1322=\"\",\"\",'1. Order'!BC1322)","v":""},{"$f":"IF('1. Order'!BD1322=\"\",\"\",'1. Order'!BD1322)","v":6},{"$f":"IF('1. Order'!BE1322=\"\",\"\",'1. Order'!BE1322)","v":"None"},{"$f":"IF('1. Order'!BF1322=\"\",\"\",'1. Order'!BF1322)","v":"Parcel"},{"$f":"IF('1. Order'!BG1322=\"\",\"\",'1. Order'!BG1322)","v":"ZWO"}]
[{"$f":"IF('1. Order'!F1323=\"\",\"\",'1. Order'!F1323)","v":""},{"$f":"IF('1. Order'!G1323=\"\",\"\",'1. Order'!G1323)","v":""},{"$f":"IF('1. Order'!H1323=\"\",\"\",'1. Order'!H1323)","v":""},{"$f":"IF('1. Order'!I1323=\"\",\"\",'1. Order'!I1323)","v":""},{"$f":"IF('1. Order'!J1323=\"\",\"\",'1. Order'!J1323)","v":""},{"$f":"IF('1. Order'!K1323=\"\",\"\",'1. Order'!K1323)","v":""},{"$f":"IF('1. Order'!L1323=\"\",\"\",'1. Order'!L1323)","v":""},{"$f":"IF('1. Order'!M1323=\"\",\"\",'1. Order'!M1323)","v":""},{"$f":"IF('1. Order'!N1323=\"\",\"\",'1. Order'!N1323)","v":""},{"$f":"IF('1. Order'!O1323=\"\",\"\",'1. Order'!O1323)","v":{"$error":"#N/A"}},{"$f":"IF('1. Order'!P1323=\"\",\"\",'1. Order'!P1323)","v":{"$error":"#N/A"}},{"$f":"IF('1. Order'!Q1323=\"\",\"\",'1. Order'!Q1323)","v":""},{"$f":"IF('1. Order'!R1323=\"\",\"\",'1. Order'!R1323)","v":""},{"$f":"IF('1. Order'!S1323=\"\",\"\",'1. Order'!S1323)","v":""},{"$f":"IF('1. Order'!V1323=\"\",\"\",'1. Order'!V1323)","v":""},{"$f":"IF('1. Order'!W1323=\"\",\"\",'1. Order'!W1323)","v":""},{"$f":"IF('1. Order'!X1323=\"\",\"\",'1. Order'!X1323)","v":"EUR"},{"$f":"IF('1. Order'!Y1323=\"\",\"\",'1. Order'!Y1323)","v":""},{"$f":"IF('1. Order'!Z1323=\"\",\"\",'1. Order'!Z1323)","v":""},{"$f":"IF('1. Order'!AA1323=\"\",\"\",'1. Order'!AA1323)","v":""},null,{"$f":"IF('1. Order'!AS1323=\"\",\"\",'1. Order'!AS1323)","v":""},{"$f":"IF('1. Order'!AT1323=\"\",\"\",'1. Order'!AT1323)","v":""},null,null,null,null,null,null,null,{"$f":"IF('1. Order'!AX1323=\"\",\"\",'1. Order'!AX1323)","v":""},{"$f":"IF('1. Order'!AY1323=\"\",\"\",'1. Order'!AY1323)","v":""},{"$f":"IF('1. Order'!AZ1323=\"\",\"\",'1. Order'!AZ1323)","v":""},{"$f":"IF('1. Order'!BA1323=\"\",\"\",'1. Order'!BA1323)","v":""},{"$f":"IF('1. Order'!BC1323=\"\",\"\",'1. Order'!BC1323)","v":""},{"$f":"IF('1. Order'!BD1323=\"\",\"\",'1. Order'!BD1323)","v":6},{"$f":"IF('1. Order'!BE1323=\"\",\"\",'1. Order'!BE1323)","v":"None"},{"$f":"IF('1. Order'!BF1323=\"\",\"\",'1. Order'!BF1323)","v":"Parcel"},{"$f":"IF('1. Order'!BG1323=\"\",\"\",'1. Order'!BG1323)","v":"ZWO"}]
[{"$f":"IF('1. Order'!F1324=\"\",\"\",'1. Order'!F1324)","v":""},{"$f":"IF('1. Order'!G1324=\"\",\"\",'1. Order'!G1324)","v":""},{"$f":"IF('1. Order'!H1324=\"\",\"\",'1. Order'!H1324)","v":""},{"$f":"IF('1. Order'!I1324=\"\",\"\",'1. Order'!I1324)","v":""},{"$f":"IF('1. Order'!J1324=\"\",\"\",'1. Order'!J1324)","v":""},{"$f":"IF('1. Order'!K1324=\"\",\"\",'1. Order'!K1324)","v":""},{"$f":"IF('1. Order'!L1324=\"\",\"\",'1. Order'!L1324)","v":""},{"$f":"IF('1. Order'!M1324=\"\",\"\",'1. Order'!M1324)","v":""},{"$f":"IF('1. Order'!N1324=\"\",\"\",'1. Order'!N1324)","v":""},{"$f":"IF('1. Order'!O1324=\"\",\"\",'1. Order'!O1324)","v":{"$error":"#N/A"}},{"$f":"IF('1. Order'!P1324=\"\",\"\",'1. Order'!P1324)","v":{"$error":"#N/A"}},{"$f":"IF('1. Order'!Q1324=\"\",\"\",'1. Order'!Q1324)","v":""},{"$f":"IF('1. Order'!R1324=\"\",\"\",'1. Order'!R1324)","v":""},{"$f":"IF('1. Order'!S1324=\"\",\"\",'1. Order'!S1324)","v":""},{"$f":"IF('1. Order'!V1324=\"\",\"\",'1. Order'!V1324)","v":""},{"$f":"IF('1. Order'!W1324=\"\",\"\",'1. Order'!W1324)","v":""},{"$f":"IF('1. Order'!X1324=\"\",\"\",'1. Order'!X1324)","v":"EUR"},{"$f":"IF('1. Order'!Y1324=\"\",\"\",'1. Order'!Y1324)","v":""},{"$f":"IF('1. Order'!Z1324=\"\",\"\",'1. Order'!Z1324)","v":""},{"$f":"IF('1. Order'!AA1324=\"\",\"\",'1. Order'!AA1324)","v":""},null,{"$f":"IF('1. Order'!AS1324=\"\",\"\",'1. Order'!AS1324)","v":""},{"$f":"IF('1. Order'!AT1324=\"\",\"\",'1. Order'!AT1324)","v":""},null,null,null,null,null,null,null,{"$f":"IF('1. Order'!AX1324=\"\",\"\",'1. Order'!AX1324)","v":""},{"$f":"IF('1. Order'!AY1324=\"\",\"\",'1. Order'!AY1324)","v":""},{"$f":"IF('1. Order'!AZ1324=\"\",\"\",'1. Order'!AZ1324)","v":""},{"$f":"IF('1. Order'!BA1324=\"\",\"\",'1. Order'!BA1324)","v":""},{"$f":"IF('1. Order'!BC1324=\"\",\"\",'1. Order'!BC1324)","v":""},{"$f":"IF('1. Order'!BD1324=\"\",\"\",'1. Order'!BD1324)","v":6},{"$f":"IF('1. Order'!BE1324=\"\",\"\",'1. Order'!BE1324)","v":"None"},{"$f":"IF('1. Order'!BF1324=\"\",\"\",'1. Order'!BF1324)","v":"Parcel"},{"$f":"IF('1. Order'!BG1324=\"\",\"\",'1. Order'!BG1324)","v":"ZWO"}]
[{"$f":"IF('1. Order'!F1325=\"\",\"\",'1. Order'!F1325)","v":""},{"$f":"IF('1. Order'!G1325=\"\",\"\",'1. Order'!G1325)","v":""},{"$f":"IF('1. Order'!H1325=\"\",\"\",'1. Order'!H1325)","v":""},{"$f":"IF('1. Order'!I1325=\"\",\"\",'1. Order'!I1325)","v":""},{"$f":"IF('1. Order'!J1325=\"\",\"\",'1. Order'!J1325)","v":""},{"$f":"IF('1. Order'!K1325=\"\",\"\",'1. Order'!K1325)","v":""},{"$f":"IF('1. Order'!L1325=\"\",\"\",'1. Order'!L1325)","v":""},{"$f":"IF('1. Order'!M1325=\"\",\"\",'1. Order'!M1325)","v":""},{"$f":"IF('1. Order'!N1325=\"\",\"\",'1. Order'!N1325)","v":""},{"$f":"IF('1. Order'!O1325=\"\",\"\",'1. Order'!O1325)","v":{"$error":"#N/A"}},{"$f":"IF('1. Order'!P1325=\"\",\"\",'1. Order'!P1325)","v":{"$error":"#N/A"}},{"$f":"IF('1. Order'!Q1325=\"\",\"\",'1. Order'!Q1325)","v":""},{"$f":"IF('1. Order'!R1325=\"\",\"\",'1. Order'!R1325)","v":""},{"$f":"IF('1. Order'!S1325=\"\",\"\",'1. Order'!S1325)","v":""},{"$f":"IF('1. Order'!V1325=\"\",\"\",'1. Order'!V1325)","v":""},{"$f":"IF('1. Order'!W1325=\"\",\"\",'1. Order'!W1325)","v":""},{"$f":"IF('1. Order'!X1325=\"\",\"\",'1. Order'!X1325)","v":"EUR"},{"$f":"IF('1. Order'!Y1325=\"\",\"\",'1. Order'!Y1325)","v":""},{"$f":"IF('1. Order'!Z1325=\"\",\"\",'1. Order'!Z1325)","v":""},{"$f":"IF('1. Order'!AA1325=\"\",\"\",'1. Order'!AA1325)","v":""},null,{"$f":"IF('1. Order'!AS1325=\"\",\"\",'1. Order'!AS1325)","v":""},{"$f":"IF('1. Order'!AT1325=\"\",\"\",'1. Order'!AT1325)","v":""},null,null,null,null,null,null,null,{"$f":"IF('1. Order'!AX1325=\"\",\"\",'1. Order'!AX1325)","v":""},{"$f":"IF('1. Order'!AY1325=\"\",\"\",'1. Order'!AY1325)","v":""},{"$f":"IF('1. Order'!AZ1325=\"\",\"\",'1. Order'!AZ1325)","v":""},{"$f":"IF('1. Order'!BA1325=\"\",\"\",'1. Order'!BA1325)","v":""},{"$f":"IF('1. Order'!BC1325=\"\",\"\",'1. Order'!BC1325)","v":""},{"$f":"IF('1. Order'!BD1325=\"\",\"\",'1. Order'!BD1325)","v":6},{"$f":"IF('1. Order'!BE1325=\"\",\"\",'1. Order'!BE1325)","v":"None"},{"$f":"IF('1. Order'!BF1325=\"\",\"\",'1. Order'!BF1325)","v":"Parcel"},{"$f":"IF('1. Order'!BG1325=\"\",\"\",'1. Order'!BG1325)","v":"ZWO"}]
[{"$f":"IF('1. Order'!F1326=\"\",\"\",'1. Order'!F1326)","v":""},{"$f":"IF('1. Order'!G1326=\"\",\"\",'1. Order'!G1326)","v":""},{"$f":"IF('1. Order'!H1326=\"\",\"\",'1. Order'!H1326)","v":""},{"$f":"IF('1. Order'!I1326=\"\",\"\",'1. Order'!I1326)","v":""},{"$f":"IF('1. Order'!J1326=\"\",\"\",'1. Order'!J1326)","v":""},{"$f":"IF('1. Order'!K1326=\"\",\"\",'1. Order'!K1326)","v":""},{"$f":"IF('1. Order'!L1326=\"\",\"\",'1. Order'!L1326)","v":""},{"$f":"IF('1. Order'!M1326=\"\",\"\",'1. Order'!M1326)","v":""},{"$f":"IF('1. Order'!N1326=\"\",\"\",'1. Order'!N1326)","v":""},{"$f":"IF('1. Order'!O1326=\"\",\"\",'1. Order'!O1326)","v":{"$error":"#N/A"}},{"$f":"IF('1. Order'!P1326=\"\",\"\",'1. Order'!P1326)","v":{"$error":"#N/A"}},{"$f":"IF('1. Order'!Q1326=\"\",\"\",'1. Order'!Q1326)","v":""},{"$f":"IF('1. Order'!R1326=\"\",\"\",'1. Order'!R1326)","v":""},{"$f":"IF('1. Order'!S1326=\"\",\"\",'1. Order'!S1326)","v":""},{"$f":"IF('1. Order'!V1326=\"\",\"\",'1. Order'!V1326)","v":""},{"$f":"IF('1. Order'!W1326=\"\",\"\",'1. Order'!W1326)","v":""},{"$f":"IF('1. Order'!X1326=\"\",\"\",'1. Order'!X1326)","v":"EUR"},{"$f":"IF('1. Order'!Y1326=\"\",\"\",'1. Order'!Y1326)","v":""},{"$f":"IF('1. Order'!Z1326=\"\",\"\",'1. Order'!Z1326)","v":""},{"$f":"IF('1. Order'!AA1326=\"\",\"\",'1. Order'!AA1326)","v":""},null,{"$f":"IF('1. Order'!AS1326=\"\",\"\",'1. Order'!AS1326)","v":""},{"$f":"IF('1. Order'!AT1326=\"\",\"\",'1. Order'!AT1326)","v":""},null,null,null,null,null,null,null,{"$f":"IF('1. Order'!AX1326=\"\",\"\",'1. Order'!AX1326)","v":""},{"$f":"IF('1. Order'!AY1326=\"\",\"\",'1. Order'!AY1326)","v":""},{"$f":"IF('1. Order'!AZ1326=\"\",\"\",'1. Order'!AZ1326)","v":""},{"$f":"IF('1. Order'!BA1326=\"\",\"\",'1. Order'!BA1326)","v":""},{"$f":"IF('1. Order'!BC1326=\"\",\"\",'1. Order'!BC1326)","v":""},{"$f":"IF('1. Order'!BD1326=\"\",\"\",'1. Order'!BD1326)","v":6},{"$f":"IF('1. Order'!BE1326=\"\",\"\",'1. Order'!BE1326)","v":"None"},{"$f":"IF('1. Order'!BF1326=\"\",\"\",'1. Order'!BF1326)","v":"Parcel"},{"$f":"IF('1. Order'!BG1326=\"\",\"\",'1. Order'!BG1326)","v":"ZWO"}]
[{"$f":"IF('1. Order'!F1327=\"\",\"\",'1. Order'!F1327)","v":""},{"$f":"IF('1. Order'!G1327=\"\",\"\",'1. Order'!G1327)","v":""},{"$f":"IF('1. Order'!H1327=\"\",\"\",'1. Order'!H1327)","v":""},{"$f":"IF('1. Order'!I1327=\"\",\"\",'1. Order'!I1327)","v":""},{"$f":"IF('1. Order'!J1327=\"\",\"\",'1. Order'!J1327)","v":""},{"$f":"IF('1. Order'!K1327=\"\",\"\",'1. Order'!K1327)","v":""},{"$f":"IF('1. Order'!L1327=\"\",\"\",'1. Order'!L1327)","v":""},{"$f":"IF('1. Order'!M1327=\"\",\"\",'1. Order'!M1327)","v":""},{"$f":"IF('1. Order'!N1327=\"\",\"\",'1. Order'!N1327)","v":""},{"$f":"IF('1. Order'!O1327=\"\",\"\",'1. Order'!O1327)","v":{"$error":"#N/A"}},{"$f":"IF('1. Order'!P1327=\"\",\"\",'1. Order'!P1327)","v":{"$error":"#N/A"}},{"$f":"IF('1. Order'!Q1327=\"\",\"\",'1. Order'!Q1327)","v":""},{"$f":"IF('1. Order'!R1327=\"\",\"\",'1. Order'!R1327)","v":""},{"$f":"IF('1. Order'!S1327=\"\",\"\",'1. Order'!S1327)","v":""},{"$f":"IF('1. Order'!V1327=\"\",\"\",'1. Order'!V1327)","v":""},{"$f":"IF('1. Order'!W1327=\"\",\"\",'1. Order'!W1327)","v":""},{"$f":"IF('1. Order'!X1327=\"\",\"\",'1. Order'!X1327)","v":"EUR"},{"$f":"IF('1. Order'!Y1327=\"\",\"\",'1. Order'!Y1327)","v":""},{"$f":"IF('1. Order'!Z1327=\"\",\"\",'1. Order'!Z1327)","v":""},{"$f":"IF('1. Order'!AA1327=\"\",\"\",'1. Order'!AA1327)","v":""},null,{"$f":"IF('1. Order'!AS1327=\"\",\"\",'1. Order'!AS1327)","v":""},{"$f":"IF('1. Order'!AT1327=\"\",\"\",'1. Order'!AT1327)","v":""},null,null,null,null,null,null,null,{"$f":"IF('1. Order'!AX1327=\"\",\"\",'1. Order'!AX1327)","v":""},{"$f":"IF('1. Order'!AY1327=\"\",\"\",'1. Order'!AY1327)","v":""},{"$f":"IF('1. Order'!AZ1327=\"\",\"\",'1. Order'!AZ1327)","v":""},{"$f":"IF('1. Order'!BA1327=\"\",\"\",'1. Order'!BA1327)","v":""},{"$f":"IF('1. Order'!BC1327=\"\",\"\",'1. Order'!BC1327)","v":""},{"$f":"IF('1. Order'!BD1327=\"\",\"\",'1. Order'!BD1327)","v":6},{"$f":"IF('1. Order'!BE1327=\"\",\"\",'1. Order'!BE1327)","v":"None"},{"$f":"IF('1. Order'!BF1327=\"\",\"\",'1. Order'!BF1327)","v":"Parcel"},{"$f":"IF('1. Order'!BG1327=\"\",\"\",'1. Order'!BG1327)","v":"ZWO"}]
[{"$f":"IF('1. Order'!F1328=\"\",\"\",'1. Order'!F1328)","v":""},{"$f":"IF('1. Order'!G1328=\"\",\"\",'1. Order'!G1328)","v":""},{"$f":"IF('1. Order'!H1328=\"\",\"\",'1. Order'!H1328)","v":""},{"$f":"IF('1. Order'!I1328=\"\",\"\",'1. Order'!I1328)","v":""},{"$f":"IF('1. Order'!J1328=\"\",\"\",'1. Order'!J1328)","v":""},{"$f":"IF('1. Order'!K1328=\"\",\"\",'1. Order'!K1328)","v":""},{"$f":"IF('1. Order'!L1328=\"\",\"\",'1. Order'!L1328)","v":""},{"$f":"IF('1. Order'!M1328=\"\",\"\",'1. Order'!M1328)","v":""},{"$f":"IF('1. Order'!N1328=\"\",\"\",'1. Order'!N1328)","v":""},{"$f":"IF('1. Order'!O1328=\"\",\"\",'1. Order'!O1328)","v":{"$error":"#N/A"}},{"$f":"IF('1. Order'!P1328=\"\",\"\",'1. Order'!P1328)","v":{"$error":"#N/A"}},{"$f":"IF('1. Order'!Q1328=\"\",\"\",'1. Order'!Q1328)","v":""},{"$f":"IF('1. Order'!R1328=\"\",\"\",'1. Order'!R1328)","v":""},{"$f":"IF('1. Order'!S1328=\"\",\"\",'1. Order'!S1328)","v":""},{"$f":"IF('1. Order'!V1328=\"\",\"\",'1. Order'!V1328)","v":""},{"$f":"IF('1. Order'!W1328=\"\",\"\",'1. Order'!W1328)","v":""},{"$f":"IF('1. Order'!X1328=\"\",\"\",'1. Order'!X1328)","v":"EUR"},{"$f":"IF('1. Order'!Y1328=\"\",\"\",'1. Order'!Y1328)","v":""},{"$f":"IF('1. Order'!Z1328=\"\",\"\",'1. Order'!Z1328)","v":""},{"$f":"IF('1. Order'!AA1328=\"\",\"\",'1. Order'!AA1328)","v":""},null,{"$f":"IF('1. Order'!AS1328=\"\",\"\",'1. Order'!AS1328)","v":""},{"$f":"IF('1. Order'!AT1328=\"\",\"\",'1. Order'!AT1328)","v":""},null,null,null,null,null,null,null,{"$f":"IF('1. Order'!AX1328=\"\",\"\",'1. Order'!AX1328)","v":""},{"$f":"IF('1. Order'!AY1328=\"\",\"\",'1. Order'!AY1328)","v":""},{"$f":"IF('1. Order'!AZ1328=\"\",\"\",'1. Order'!AZ1328)","v":""},{"$f":"IF('1. Order'!BA1328=\"\",\"\",'1. Order'!BA1328)","v":""},{"$f":"IF('1. Order'!BC1328=\"\",\"\",'1. Order'!BC1328)","v":""},{"$f":"IF('1. Order'!BD1328=\"\",\"\",'1. Order'!BD1328)","v":6},{"$f":"IF('1. Order'!BE1328=\"\",\"\",'1. Order'!BE1328)","v":"None"},{"$f":"IF('1. Order'!BF1328=\"\",\"\",'1. Order'!BF1328)","v":"Parcel"},{"$f":"IF('1. Order'!BG1328=\"\",\"\",'1. Order'!BG1328)","v":"ZWO"}]
[{"$f":"IF('1. Order'!F1329=\"\",\"\",'1. Order'!F1329)","v":""},{"$f":"IF('1. Order'!G1329=\"\",\"\",'1. Order'!G1329)","v":""},{"$f":"IF('1. Order'!H1329=\"\",\"\",'1. Order'!H1329)","v":""},{"$f":"IF('1. Order'!I1329=\"\",\"\",'1. Order'!I1329)","v":""},{"$f":"IF('1. Order'!J1329=\"\",\"\",'1. Order'!J1329)","v":""},{"$f":"IF('1. Order'!K1329=\"\",\"\",'1. Order'!K1329)","v":""},{"$f":"IF('1. Order'!L1329=\"\",\"\",'1. Order'!L1329)","v":""},{"$f":"IF('1. Order'!M1329=\"\",\"\",'1. Order'!M1329)","v":""},{"$f":"IF('1. Order'!N1329=\"\",\"\",'1. Order'!N1329)","v":""},{"$f":"IF('1. Order'!O1329=\"\",\"\",'1. Order'!O1329)","v":{"$error":"#N/A"}},{"$f":"IF('1. Order'!P1329=\"\",\"\",'1. Order'!P1329)","v":{"$error":"#N/A"}},{"$f":"IF('1. Order'!Q1329=\"\",\"\",'1. Order'!Q1329)","v":""},{"$f":"IF('1. Order'!R1329=\"\",\"\",'1. Order'!R1329)","v":""},{"$f":"IF('1. Order'!S1329=\"\",\"\",'1. Order'!S1329)","v":""},{"$f":"IF('1. Order'!V1329=\"\",\"\",'1. Order'!V1329)","v":""},{"$f":"IF('1. Order'!W1329=\"\",\"\",'1. Order'!W1329)","v":""},{"$f":"IF('1. Order'!X1329=\"\",\"\",'1. Order'!X1329)","v":"EUR"},{"$f":"IF('1. Order'!Y1329=\"\",\"\",'1. Order'!Y1329)","v":""},{"$f":"IF('1. Order'!Z1329=\"\",\"\",'1. Order'!Z1329)","v":""},{"$f":"IF('1. Order'!AA1329=\"\",\"\",'1. Order'!AA1329)","v":""},null,{"$f":"IF('1. Order'!AS1329=\"\",\"\",'1. Order'!AS1329)","v":""},{"$f":"IF('1. Order'!AT1329=\"\",\"\",'1. Order'!AT1329)","v":""},null,null,null,null,null,null,null,{"$f":"IF('1. Order'!AX1329=\"\",\"\",'1. Order'!AX1329)","v":""},{"$f":"IF('1. Order'!AY1329=\"\",\"\",'1. Order'!AY1329)","v":""},{"$f":"IF('1. Order'!AZ1329=\"\",\"\",'1. Order'!AZ1329)","v":""},{"$f":"IF('1. Order'!BA1329=\"\",\"\",'1. Order'!BA1329)","v":""},{"$f":"IF('1. Order'!BC1329=\"\",\"\",'1. Order'!BC1329)","v":""},{"$f":"IF('1. Order'!BD1329=\"\",\"\",'1. Order'!BD1329)","v":6},{"$f":"IF('1. Order'!BE1329=\"\",\"\",'1. Order'!BE1329)","v":"None"},{"$f":"IF('1. Order'!BF1329=\"\",\"\",'1. Order'!BF1329)","v":"Parcel"},{"$f":"IF('1. Order'!BG1329=\"\",\"\",'1. Order'!BG1329)","v":"ZWO"}]
[{"$f":"IF('1. Order'!F1330=\"\",\"\",'1. Order'!F1330)","v":""},{"$f":"IF('1. Order'!G1330=\"\",\"\",'1. Order'!G1330)","v":""},{"$f":"IF('1. Order'!H1330=\"\",\"\",'1. Order'!H1330)","v":""},{"$f":"IF('1. Order'!I1330=\"\",\"\",'1. Order'!I1330)","v":""},{"$f":"IF('1. Order'!J1330=\"\",\"\",'1. Order'!J1330)","v":""},{"$f":"IF('1. Order'!K1330=\"\",\"\",'1. Order'!K1330)","v":""},{"$f":"IF('1. Order'!L1330=\"\",\"\",'1. Order'!L1330)","v":""},{"$f":"IF('1. Order'!M1330=\"\",\"\",'1. Order'!M1330)","v":""},{"$f":"IF('1. Order'!N1330=\"\",\"\",'1. Order'!N1330)","v":""},{"$f":"IF('1. Order'!O1330=\"\",\"\",'1. Order'!O1330)","v":{"$error":"#N/A"}},{"$f":"IF('1. Order'!P1330=\"\",\"\",'1. Order'!P1330)","v":{"$error":"#N/A"}},{"$f":"IF('1. Order'!Q1330=\"\",\"\",'1. Order'!Q1330)","v":""},{"$f":"IF('1. Order'!R1330=\"\",\"\",'1. Order'!R1330)","v":""},{"$f":"IF('1. Order'!S1330=\"\",\"\",'1. Order'!S1330)","v":""},{"$f":"IF('1. Order'!V1330=\"\",\"\",'1. Order'!V1330)","v":""},{"$f":"IF('1. Order'!W1330=\"\",\"\",'1. Order'!W1330)","v":""},{"$f":"IF('1. Order'!X1330=\"\",\"\",'1. Order'!X1330)","v":"EUR"},{"$f":"IF('1. Order'!Y1330=\"\",\"\",'1. Order'!Y1330)","v":""},{"$f":"IF('1. Order'!Z1330=\"\",\"\",'1. Order'!Z1330)","v":""},{"$f":"IF('1. Order'!AA1330=\"\",\"\",'1. Order'!AA1330)","v":""},null,{"$f":"IF('1. Order'!AS1330=\"\",\"\",'1. Order'!AS1330)","v":""},{"$f":"IF('1. Order'!AT1330=\"\",\"\",'1. Order'!AT1330)","v":""},null,null,null,null,null,null,null,{"$f":"IF('1. Order'!AX1330=\"\",\"\",'1. Order'!AX1330)","v":""},{"$f":"IF('1. Order'!AY1330=\"\",\"\",'1. Order'!AY1330)","v":""},{"$f":"IF('1. Order'!AZ1330=\"\",\"\",'1. Order'!AZ1330)","v":""},{"$f":"IF('1. Order'!BA1330=\"\",\"\",'1. Order'!BA1330)","v":""},{"$f":"IF('1. Order'!BC1330=\"\",\"\",'1. Order'!BC1330)","v":""},{"$f":"IF('1. Order'!BD1330=\"\",\"\",'1. Order'!BD1330)","v":6},{"$f":"IF('1. Order'!BE1330=\"\",\"\",'1. Order'!BE1330)","v":"None"},{"$f":"IF('1. Order'!BF1330=\"\",\"\",'1. Order'!BF1330)","v":"Parcel"},{"$f":"IF('1. Order'!BG1330=\"\",\"\",'1. Order'!BG1330)","v":"ZWO"}]
[{"$f":"IF('1. Order'!F1331=\"\",\"\",'1. Order'!F1331)","v":""},{"$f":"IF('1. Order'!G1331=\"\",\"\",'1. Order'!G1331)","v":""},{"$f":"IF('1. Order'!H1331=\"\",\"\",'1. Order'!H1331)","v":""},{"$f":"IF('1. Order'!I1331=\"\",\"\",'1. Order'!I1331)","v":""},{"$f":"IF('1. Order'!J1331=\"\",\"\",'1. Order'!J1331)","v":""},{"$f":"IF('1. Order'!K1331=\"\",\"\",'1. Order'!K1331)","v":""},{"$f":"IF('1. Order'!L1331=\"\",\"\",'1. Order'!L1331)","v":""},{"$f":"IF('1. Order'!M1331=\"\",\"\",'1. Order'!M1331)","v":""},{"$f":"IF('1. Order'!N1331=\"\",\"\",'1. Order'!N1331)","v":""},{"$f":"IF('1. Order'!O1331=\"\",\"\",'1. Order'!O1331)","v":{"$error":"#N/A"}},{"$f":"IF('1. Order'!P1331=\"\",\"\",'1. Order'!P1331)","v":{"$error":"#N/A"}},{"$f":"IF('1. Order'!Q1331=\"\",\"\",'1. Order'!Q1331)","v":""},{"$f":"IF('1. Order'!R1331=\"\",\"\",'1. Order'!R1331)","v":""},{"$f":"IF('1. Order'!S1331=\"\",\"\",'1. Order'!S1331)","v":""},{"$f":"IF('1. Order'!V1331=\"\",\"\",'1. Order'!V1331)","v":""},{"$f":"IF('1. Order'!W1331=\"\",\"\",'1. Order'!W1331)","v":""},{"$f":"IF('1. Order'!X1331=\"\",\"\",'1. Order'!X1331)","v":"EUR"},{"$f":"IF('1. Order'!Y1331=\"\",\"\",'1. Order'!Y1331)","v":""},{"$f":"IF('1. Order'!Z1331=\"\",\"\",'1. Order'!Z1331)","v":""},{"$f":"IF('1. Order'!AA1331=\"\",\"\",'1. Order'!AA1331)","v":""},null,{"$f":"IF('1. Order'!AS1331=\"\",\"\",'1. Order'!AS1331)","v":""},{"$f":"IF('1. Order'!AT1331=\"\",\"\",'1. Order'!AT1331)","v":""},null,null,null,null,null,null,null,{"$f":"IF('1. Order'!AX1331=\"\",\"\",'1. Order'!AX1331)","v":""},{"$f":"IF('1. Order'!AY1331=\"\",\"\",'1. Order'!AY1331)","v":""},{"$f":"IF('1. Order'!AZ1331=\"\",\"\",'1. Order'!AZ1331)","v":""},{"$f":"IF('1. Order'!BA1331=\"\",\"\",'1. Order'!BA1331)","v":""},{"$f":"IF('1. Order'!BC1331=\"\",\"\",'1. Order'!BC1331)","v":""},{"$f":"IF('1. Order'!BD1331=\"\",\"\",'1. Order'!BD1331)","v":6},{"$f":"IF('1. Order'!BE1331=\"\",\"\",'1. Order'!BE1331)","v":"None"},{"$f":"IF('1. Order'!BF1331=\"\",\"\",'1. Order'!BF1331)","v":"Parcel"},{"$f":"IF('1. Order'!BG1331=\"\",\"\",'1. Order'!BG1331)","v":"ZWO"}]
[{"$f":"IF('1. Order'!F1332=\"\",\"\",'1. Order'!F1332)","v":""},{"$f":"IF('1. Order'!G1332=\"\",\"\",'1. Order'!G1332)","v":""},{"$f":"IF('1. Order'!H1332=\"\",\"\",'1. Order'!H1332)","v":""},{"$f":"IF('1. Order'!I1332=\"\",\"\",'1. Order'!I1332)","v":""},{"$f":"IF('1. Order'!J1332=\"\",\"\",'1. Order'!J1332)","v":""},{"$f":"IF('1. Order'!K1332=\"\",\"\",'1. Order'!K1332)","v":""},{"$f":"IF('1. Order'!L1332=\"\",\"\",'1. Order'!L1332)","v":""},{"$f":"IF('1. Order'!M1332=\"\",\"\",'1. Order'!M1332)","v":""},{"$f":"IF('1. Order'!N1332=\"\",\"\",'1. Order'!N1332)","v":""},{"$f":"IF('1. Order'!O1332=\"\",\"\",'1. Order'!O1332)","v":{"$error":"#N/A"}},{"$f":"IF('1. Order'!P1332=\"\",\"\",'1. Order'!P1332)","v":{"$error":"#N/A"}},{"$f":"IF('1. Order'!Q1332=\"\",\"\",'1. Order'!Q1332)","v":""},{"$f":"IF('1. Order'!R1332=\"\",\"\",'1. Order'!R1332)","v":""},{"$f":"IF('1. Order'!S1332=\"\",\"\",'1. Order'!S1332)","v":""},{"$f":"IF('1. Order'!V1332=\"\",\"\",'1. Order'!V1332)","v":""},{"$f":"IF('1. Order'!W1332=\"\",\"\",'1. Order'!W1332)","v":""},{"$f":"IF('1. Order'!X1332=\"\",\"\",'1. Order'!X1332)","v":"EUR"},{"$f":"IF('1. Order'!Y1332=\"\",\"\",'1. Order'!Y1332)","v":""},{"$f":"IF('1. Order'!Z1332=\"\",\"\",'1. Order'!Z1332)","v":""},{"$f":"IF('1. Order'!AA1332=\"\",\"\",'1. Order'!AA1332)","v":""},null,{"$f":"IF('1. Order'!AS1332=\"\",\"\",'1. Order'!AS1332)","v":""},{"$f":"IF('1. Order'!AT1332=\"\",\"\",'1. Order'!AT1332)","v":""},null,null,null,null,null,null,null,{"$f":"IF('1. Order'!AX1332=\"\",\"\",'1. Order'!AX1332)","v":""},{"$f":"IF('1. Order'!AY1332=\"\",\"\",'1. Order'!AY1332)","v":""},{"$f":"IF('1. Order'!AZ1332=\"\",\"\",'1. Order'!AZ1332)","v":""},{"$f":"IF('1. Order'!BA1332=\"\",\"\",'1. Order'!BA1332)","v":""},{"$f":"IF('1. Order'!BC1332=\"\",\"\",'1. Order'!BC1332)","v":""},{"$f":"IF('1. Order'!BD1332=\"\",\"\",'1. Order'!BD1332)","v":6},{"$f":"IF('1. Order'!BE1332=\"\",\"\",'1. Order'!BE1332)","v":"None"},{"$f":"IF('1. Order'!BF1332=\"\",\"\",'1. Order'!BF1332)","v":"Parcel"},{"$f":"IF('1. Order'!BG1332=\"\",\"\",'1. Order'!BG1332)","v":"ZWO"}]
[{"$f":"IF('1. Order'!F1333=\"\",\"\",'1. Order'!F1333)","v":""},{"$f":"IF('1. Order'!G1333=\"\",\"\",'1. Order'!G1333)","v":""},{"$f":"IF('1. Order'!H1333=\"\",\"\",'1. Order'!H1333)","v":""},{"$f":"IF('1. Order'!I1333=\"\",\"\",'1. Order'!I1333)","v":""},{"$f":"IF('1. Order'!J1333=\"\",\"\",'1. Order'!J1333)","v":""},{"$f":"IF('1. Order'!K1333=\"\",\"\",'1. Order'!K1333)","v":""},{"$f":"IF('1. Order'!L1333=\"\",\"\",'1. Order'!L1333)","v":""},{"$f":"IF('1. Order'!M1333=\"\",\"\",'1. Order'!M1333)","v":""},{"$f":"IF('1. Order'!N1333=\"\",\"\",'1. Order'!N1333)","v":""},{"$f":"IF('1. Order'!O1333=\"\",\"\",'1. Order'!O1333)","v":{"$error":"#N/A"}},{"$f":"IF('1. Order'!P1333=\"\",\"\",'1. Order'!P1333)","v":{"$error":"#N/A"}},{"$f":"IF('1. Order'!Q1333=\"\",\"\",'1. Order'!Q1333)","v":""},{"$f":"IF('1. Order'!R1333=\"\",\"\",'1. Order'!R1333)","v":""},{"$f":"IF('1. Order'!S1333=\"\",\"\",'1. Order'!S1333)","v":""},{"$f":"IF('1. Order'!V1333=\"\",\"\",'1. Order'!V1333)","v":""},{"$f":"IF('1. Order'!W1333=\"\",\"\",'1. Order'!W1333)","v":""},{"$f":"IF('1. Order'!X1333=\"\",\"\",'1. Order'!X1333)","v":"EUR"},{"$f":"IF('1. Order'!Y1333=\"\",\"\",'1. Order'!Y1333)","v":""},{"$f":"IF('1. Order'!Z1333=\"\",\"\",'1. Order'!Z1333)","v":""},{"$f":"IF('1. Order'!AA1333=\"\",\"\",'1. Order'!AA1333)","v":""},null,{"$f":"IF('1. Order'!AS1333=\"\",\"\",'1. Order'!AS1333)","v":""},{"$f":"IF('1. Order'!AT1333=\"\",\"\",'1. Order'!AT1333)","v":""},null,null,null,null,null,null,null,{"$f":"IF('1. Order'!AX1333=\"\",\"\",'1. Order'!AX1333)","v":""},{"$f":"IF('1. Order'!AY1333=\"\",\"\",'1. Order'!AY1333)","v":""},{"$f":"IF('1. Order'!AZ1333=\"\",\"\",'1. Order'!AZ1333)","v":""},{"$f":"IF('1. Order'!BA1333=\"\",\"\",'1. Order'!BA1333)","v":""},{"$f":"IF('1. Order'!BC1333=\"\",\"\",'1. Order'!BC1333)","v":""},{"$f":"IF('1. Order'!BD1333=\"\",\"\",'1. Order'!BD1333)","v":6},{"$f":"IF('1. Order'!BE1333=\"\",\"\",'1. Order'!BE1333)","v":"None"},{"$f":"IF('1. Order'!BF1333=\"\",\"\",'1. Order'!BF1333)","v":"Parcel"},{"$f":"IF('1. Order'!BG1333=\"\",\"\",'1. Order'!BG1333)","v":"ZWO"}]
[{"$f":"IF('1. Order'!F1334=\"\",\"\",'1. Order'!F1334)","v":""},{"$f":"IF('1. Order'!G1334=\"\",\"\",'1. Order'!G1334)","v":""},{"$f":"IF('1. Order'!H1334=\"\",\"\",'1. Order'!H1334)","v":""},{"$f":"IF('1. Order'!I1334=\"\",\"\",'1. Order'!I1334)","v":""},{"$f":"IF('1. Order'!J1334=\"\",\"\",'1. Order'!J1334)","v":""},{"$f":"IF('1. Order'!K1334=\"\",\"\",'1. Order'!K1334)","v":""},{"$f":"IF('1. Order'!L1334=\"\",\"\",'1. Order'!L1334)","v":""},{"$f":"IF('1. Order'!M1334=\"\",\"\",'1. Order'!M1334)","v":""},{"$f":"IF('1. Order'!N1334=\"\",\"\",'1. Order'!N1334)","v":""},{"$f":"IF('1. Order'!O1334=\"\",\"\",'1. Order'!O1334)","v":{"$error":"#N/A"}},{"$f":"IF('1. Order'!P1334=\"\",\"\",'1. Order'!P1334)","v":{"$error":"#N/A"}},{"$f":"IF('1. Order'!Q1334=\"\",\"\",'1. Order'!Q1334)","v":""},{"$f":"IF('1. Order'!R1334=\"\",\"\",'1. Order'!R1334)","v":""},{"$f":"IF('1. Order'!S1334=\"\",\"\",'1. Order'!S1334)","v":""},{"$f":"IF('1. Order'!V1334=\"\",\"\",'1. Order'!V1334)","v":""},{"$f":"IF('1. Order'!W1334=\"\",\"\",'1. Order'!W1334)","v":""},{"$f":"IF('1. Order'!X1334=\"\",\"\",'1. Order'!X1334)","v":"EUR"},{"$f":"IF('1. Order'!Y1334=\"\",\"\",'1. Order'!Y1334)","v":""},{"$f":"IF('1. Order'!Z1334=\"\",\"\",'1. Order'!Z1334)","v":""},{"$f":"IF('1. Order'!AA1334=\"\",\"\",'1. Order'!AA1334)","v":""},null,{"$f":"IF('1. Order'!AS1334=\"\",\"\",'1. Order'!AS1334)","v":""},{"$f":"IF('1. Order'!AT1334=\"\",\"\",'1. Order'!AT1334)","v":""},null,null,null,null,null,null,null,{"$f":"IF('1. Order'!AX1334=\"\",\"\",'1. Order'!AX1334)","v":""},{"$f":"IF('1. Order'!AY1334=\"\",\"\",'1. Order'!AY1334)","v":""},{"$f":"IF('1. Order'!AZ1334=\"\",\"\",'1. Order'!AZ1334)","v":""},{"$f":"IF('1. Order'!BA1334=\"\",\"\",'1. Order'!BA1334)","v":""},{"$f":"IF('1. Order'!BC1334=\"\",\"\",'1. Order'!BC1334)","v":""},{"$f":"IF('1. Order'!BD1334=\"\",\"\",'1. Order'!BD1334)","v":6},{"$f":"IF('1. Order'!BE1334=\"\",\"\",'1. Order'!BE1334)","v":"None"},{"$f":"IF('1. Order'!BF1334=\"\",\"\",'1. Order'!BF1334)","v":"Parcel"},{"$f":"IF('1. Order'!BG1334=\"\",\"\",'1. Order'!BG1334)","v":"ZWO"}]
[{"$f":"IF('1. Order'!F1335=\"\",\"\",'1. Order'!F1335)","v":""},{"$f":"IF('1. Order'!G1335=\"\",\"\",'1. Order'!G1335)","v":""},{"$f":"IF('1. Order'!H1335=\"\",\"\",'1. Order'!H1335)","v":""},{"$f":"IF('1. Order'!I1335=\"\",\"\",'1. Order'!I1335)","v":""},{"$f":"IF('1. Order'!J1335=\"\",\"\",'1. Order'!J1335)","v":""},{"$f":"IF('1. Order'!K1335=\"\",\"\",'1. Order'!K1335)","v":""},{"$f":"IF('1. Order'!L1335=\"\",\"\",'1. Order'!L1335)","v":""},{"$f":"IF('1. Order'!M1335=\"\",\"\",'1. Order'!M1335)","v":""},{"$f":"IF('1. Order'!N1335=\"\",\"\",'1. Order'!N1335)","v":""},{"$f":"IF('1. Order'!O1335=\"\",\"\",'1. Order'!O1335)","v":{"$error":"#N/A"}},{"$f":"IF('1. Order'!P1335=\"\",\"\",'1. Order'!P1335)","v":{"$error":"#N/A"}},{"$f":"IF('1. Order'!Q1335=\"\",\"\",'1. Order'!Q1335)","v":""},{"$f":"IF('1. Order'!R1335=\"\",\"\",'1. Order'!R1335)","v":""},{"$f":"IF('1. Order'!S1335=\"\",\"\",'1. Order'!S1335)","v":""},{"$f":"IF('1. Order'!V1335=\"\",\"\",'1. Order'!V1335)","v":""},{"$f":"IF('1. Order'!W1335=\"\",\"\",'1. Order'!W1335)","v":""},{"$f":"IF('1. Order'!X1335=\"\",\"\",'1. Order'!X1335)","v":"EUR"},{"$f":"IF('1. Order'!Y1335=\"\",\"\",'1. Order'!Y1335)","v":""},{"$f":"IF('1. Order'!Z1335=\"\",\"\",'1. Order'!Z1335)","v":""},{"$f":"IF('1. Order'!AA1335=\"\",\"\",'1. Order'!AA1335)","v":""},null,{"$f":"IF('1. Order'!AS1335=\"\",\"\",'1. Order'!AS1335)","v":""},{"$f":"IF('1. Order'!AT1335=\"\",\"\",'1. Order'!AT1335)","v":""},null,null,null,null,null,null,null,{"$f":"IF('1. Order'!AX1335=\"\",\"\",'1. Order'!AX1335)","v":""},{"$f":"IF('1. Order'!AY1335=\"\",\"\",'1. Order'!AY1335)","v":""},{"$f":"IF('1. Order'!AZ1335=\"\",\"\",'1. Order'!AZ1335)","v":""},{"$f":"IF('1. Order'!BA1335=\"\",\"\",'1. Order'!BA1335)","v":""},{"$f":"IF('1. Order'!BC1335=\"\",\"\",'1. Order'!BC1335)","v":""},{"$f":"IF('1. Order'!BD1335=\"\",\"\",'1. Order'!BD1335)","v":6},{"$f":"IF('1. Order'!BE1335=\"\",\"\",'1. Order'!BE1335)","v":"None"},{"$f":"IF('1. Order'!BF1335=\"\",\"\",'1. Order'!BF1335)","v":"Parcel"},{"$f":"IF('1. Order'!BG1335=\"\",\"\",'1. Order'!BG1335)","v":"ZWO"}]
[{"$f":"IF('1. Order'!F1336=\"\",\"\",'1. Order'!F1336)","v":""},{"$f":"IF('1. Order'!G1336=\"\",\"\",'1. Order'!G1336)","v":""},{"$f":"IF('1. Order'!H1336=\"\",\"\",'1. Order'!H1336)","v":""},{"$f":"IF('1. Order'!I1336=\"\",\"\",'1. Order'!I1336)","v":""},{"$f":"IF('1. Order'!J1336=\"\",\"\",'1. Order'!J1336)","v":""},{"$f":"IF('1. Order'!K1336=\"\",\"\",'1. Order'!K1336)","v":""},{"$f":"IF('1. Order'!L1336=\"\",\"\",'1. Order'!L1336)","v":""},{"$f":"IF('1. Order'!M1336=\"\",\"\",'1. Order'!M1336)","v":""},{"$f":"IF('1. Order'!N1336=\"\",\"\",'1. Order'!N1336)","v":""},{"$f":"IF('1. Order'!O1336=\"\",\"\",'1. Order'!O1336)","v":{"$error":"#N/A"}},{"$f":"IF('1. Order'!P1336=\"\",\"\",'1. Order'!P1336)","v":{"$error":"#N/A"}},{"$f":"IF('1. Order'!Q1336=\"\",\"\",'1. Order'!Q1336)","v":""},{"$f":"IF('1. Order'!R1336=\"\",\"\",'1. Order'!R1336)","v":""},{"$f":"IF('1. Order'!S1336=\"\",\"\",'1. Order'!S1336)","v":""},{"$f":"IF('1. Order'!V1336=\"\",\"\",'1. Order'!V1336)","v":""},{"$f":"IF('1. Order'!W1336=\"\",\"\",'1. Order'!W1336)","v":""},{"$f":"IF('1. Order'!X1336=\"\",\"\",'1. Order'!X1336)","v":"EUR"},{"$f":"IF('1. Order'!Y1336=\"\",\"\",'1. Order'!Y1336)","v":""},{"$f":"IF('1. Order'!Z1336=\"\",\"\",'1. Order'!Z1336)","v":""},{"$f":"IF('1. Order'!AA1336=\"\",\"\",'1. Order'!AA1336)","v":""},null,{"$f":"IF('1. Order'!AS1336=\"\",\"\",'1. Order'!AS1336)","v":""},{"$f":"IF('1. Order'!AT1336=\"\",\"\",'1. Order'!AT1336)","v":""},null,null,null,null,null,null,null,{"$f":"IF('1. Order'!AX1336=\"\",\"\",'1. Order'!AX1336)","v":""},{"$f":"IF('1. Order'!AY1336=\"\",\"\",'1. Order'!AY1336)","v":""},{"$f":"IF('1. Order'!AZ1336=\"\",\"\",'1. Order'!AZ1336)","v":""},{"$f":"IF('1. Order'!BA1336=\"\",\"\",'1. Order'!BA1336)","v":""},{"$f":"IF('1. Order'!BC1336=\"\",\"\",'1. Order'!BC1336)","v":""},{"$f":"IF('1. Order'!BD1336=\"\",\"\",'1. Order'!BD1336)","v":6},{"$f":"IF('1. Order'!BE1336=\"\",\"\",'1. Order'!BE1336)","v":"None"},{"$f":"IF('1. Order'!BF1336=\"\",\"\",'1. Order'!BF1336)","v":"Parcel"},{"$f":"IF('1. Order'!BG1336=\"\",\"\",'1. Order'!BG1336)","v":"ZWO"}]
[{"$f":"IF('1. Order'!F1337=\"\",\"\",'1. Order'!F1337)","v":""},{"$f":"IF('1. Order'!G1337=\"\",\"\",'1. Order'!G1337)","v":""},{"$f":"IF('1. Order'!H1337=\"\",\"\",'1. Order'!H1337)","v":""},{"$f":"IF('1. Order'!I1337=\"\",\"\",'1. Order'!I1337)","v":""},{"$f":"IF('1. Order'!J1337=\"\",\"\",'1. Order'!J1337)","v":""},{"$f":"IF('1. Order'!K1337=\"\",\"\",'1. Order'!K1337)","v":""},{"$f":"IF('1. Order'!L1337=\"\",\"\",'1. Order'!L1337)","v":""},{"$f":"IF('1. Order'!M1337=\"\",\"\",'1. Order'!M1337)","v":""},{"$f":"IF('1. Order'!N1337=\"\",\"\",'1. Order'!N1337)","v":""},{"$f":"IF('1. Order'!O1337=\"\",\"\",'1. Order'!O1337)","v":{"$error":"#N/A"}},{"$f":"IF('1. Order'!P1337=\"\",\"\",'1. Order'!P1337)","v":{"$error":"#N/A"}},{"$f":"IF('1. Order'!Q1337=\"\",\"\",'1. Order'!Q1337)","v":""},{"$f":"IF('1. Order'!R1337=\"\",\"\",'1. Order'!R1337)","v":""},{"$f":"IF('1. Order'!S1337=\"\",\"\",'1. Order'!S1337)","v":""},{"$f":"IF('1. Order'!V1337=\"\",\"\",'1. Order'!V1337)","v":""},{"$f":"IF('1. Order'!W1337=\"\",\"\",'1. Order'!W1337)","v":""},{"$f":"IF('1. Order'!X1337=\"\",\"\",'1. Order'!X1337)","v":"EUR"},{"$f":"IF('1. Order'!Y1337=\"\",\"\",'1. Order'!Y1337)","v":""},{"$f":"IF('1. Order'!Z1337=\"\",\"\",'1. Order'!Z1337)","v":""},{"$f":"IF('1. Order'!AA1337=\"\",\"\",'1. Order'!AA1337)","v":""},null,{"$f":"IF('1. Order'!AS1337=\"\",\"\",'1. Order'!AS1337)","v":""},{"$f":"IF('1. Order'!AT1337=\"\",\"\",'1. Order'!AT1337)","v":""},null,null,null,null,null,null,null,{"$f":"IF('1. Order'!AX1337=\"\",\"\",'1. Order'!AX1337)","v":""},{"$f":"IF('1. Order'!AY1337=\"\",\"\",'1. Order'!AY1337)","v":""},{"$f":"IF('1. Order'!AZ1337=\"\",\"\",'1. Order'!AZ1337)","v":""},{"$f":"IF('1. Order'!BA1337=\"\",\"\",'1. Order'!BA1337)","v":""},{"$f":"IF('1. Order'!BC1337=\"\",\"\",'1. Order'!BC1337)","v":""},{"$f":"IF('1. Order'!BD1337=\"\",\"\",'1. Order'!BD1337)","v":6},{"$f":"IF('1. Order'!BE1337=\"\",\"\",'1. Order'!BE1337)","v":"None"},{"$f":"IF('1. Order'!BF1337=\"\",\"\",'1. Order'!BF1337)","v":"Parcel"},{"$f":"IF('1. Order'!BG1337=\"\",\"\",'1. Order'!BG1337)","v":"ZWO"}]
[{"$f":"IF('1. Order'!F1338=\"\",\"\",'1. Order'!F1338)","v":""},{"$f":"IF('1. Order'!G1338=\"\",\"\",'1. Order'!G1338)","v":""},{"$f":"IF('1. Order'!H1338=\"\",\"\",'1. Order'!H1338)","v":""},{"$f":"IF('1. Order'!I1338=\"\",\"\",'1. Order'!I1338)","v":""},{"$f":"IF('1. Order'!J1338=\"\",\"\",'1. Order'!J1338)","v":""},{"$f":"IF('1. Order'!K1338=\"\",\"\",'1. Order'!K1338)","v":""},{"$f":"IF('1. Order'!L1338=\"\",\"\",'1. Order'!L1338)","v":""},{"$f":"IF('1. Order'!M1338=\"\",\"\",'1. Order'!M1338)","v":""},{"$f":"IF('1. Order'!N1338=\"\",\"\",'1. Order'!N1338)","v":""},{"$f":"IF('1. Order'!O1338=\"\",\"\",'1. Order'!O1338)","v":{"$error":"#N/A"}},{"$f":"IF('1. Order'!P1338=\"\",\"\",'1. Order'!P1338)","v":{"$error":"#N/A"}},{"$f":"IF('1. Order'!Q1338=\"\",\"\",'1. Order'!Q1338)","v":""},{"$f":"IF('1. Order'!R1338=\"\",\"\",'1. Order'!R1338)","v":""},{"$f":"IF('1. Order'!S1338=\"\",\"\",'1. Order'!S1338)","v":""},{"$f":"IF('1. Order'!V1338=\"\",\"\",'1. Order'!V1338)","v":""},{"$f":"IF('1. Order'!W1338=\"\",\"\",'1. Order'!W1338)","v":""},{"$f":"IF('1. Order'!X1338=\"\",\"\",'1. Order'!X1338)","v":"EUR"},{"$f":"IF('1. Order'!Y1338=\"\",\"\",'1. Order'!Y1338)","v":""},{"$f":"IF('1. Order'!Z1338=\"\",\"\",'1. Order'!Z1338)","v":""},{"$f":"IF('1. Order'!AA1338=\"\",\"\",'1. Order'!AA1338)","v":""},null,{"$f":"IF('1. Order'!AS1338=\"\",\"\",'1. Order'!AS1338)","v":""},{"$f":"IF('1. Order'!AT1338=\"\",\"\",'1. Order'!AT1338)","v":""},null,null,null,null,null,null,null,{"$f":"IF('1. Order'!AX1338=\"\",\"\",'1. Order'!AX1338)","v":""},{"$f":"IF('1. Order'!AY1338=\"\",\"\",'1. Order'!AY1338)","v":""},{"$f":"IF('1. Order'!AZ1338=\"\",\"\",'1. Order'!AZ1338)","v":""},{"$f":"IF('1. Order'!BA1338=\"\",\"\",'1. Order'!BA1338)","v":""},{"$f":"IF('1. Order'!BC1338=\"\",\"\",'1. Order'!BC1338)","v":""},{"$f":"IF('1. Order'!BD1338=\"\",\"\",'1. Order'!BD1338)","v":6},{"$f":"IF('1. Order'!BE1338=\"\",\"\",'1. Order'!BE1338)","v":"None"},{"$f":"IF('1. Order'!BF1338=\"\",\"\",'1. Order'!BF1338)","v":"Parcel"},{"$f":"IF('1. Order'!BG1338=\"\",\"\",'1. Order'!BG1338)","v":"ZWO"}]
[{"$f":"IF('1. Order'!F1339=\"\",\"\",'1. Order'!F1339)","v":""},{"$f":"IF('1. Order'!G1339=\"\",\"\",'1. Order'!G1339)","v":""},{"$f":"IF('1. Order'!H1339=\"\",\"\",'1. Order'!H1339)","v":""},{"$f":"IF('1. Order'!I1339=\"\",\"\",'1. Order'!I1339)","v":""},{"$f":"IF('1. Order'!J1339=\"\",\"\",'1. Order'!J1339)","v":""},{"$f":"IF('1. Order'!K1339=\"\",\"\",'1. Order'!K1339)","v":""},{"$f":"IF('1. Order'!L1339=\"\",\"\",'1. Order'!L1339)","v":""},{"$f":"IF('1. Order'!M1339=\"\",\"\",'1. Order'!M1339)","v":""},{"$f":"IF('1. Order'!N1339=\"\",\"\",'1. Order'!N1339)","v":""},{"$f":"IF('1. Order'!O1339=\"\",\"\",'1. Order'!O1339)","v":{"$error":"#N/A"}},{"$f":"IF('1. Order'!P1339=\"\",\"\",'1. Order'!P1339)","v":{"$error":"#N/A"}},{"$f":"IF('1. Order'!Q1339=\"\",\"\",'1. Order'!Q1339)","v":""},{"$f":"IF('1. Order'!R1339=\"\",\"\",'1. Order'!R1339)","v":""},{"$f":"IF('1. Order'!S1339=\"\",\"\",'1. Order'!S1339)","v":""},{"$f":"IF('1. Order'!V1339=\"\",\"\",'1. Order'!V1339)","v":""},{"$f":"IF('1. Order'!W1339=\"\",\"\",'1. Order'!W1339)","v":""},{"$f":"IF('1. Order'!X1339=\"\",\"\",'1. Order'!X1339)","v":"EUR"},{"$f":"IF('1. Order'!Y1339=\"\",\"\",'1. Order'!Y1339)","v":""},{"$f":"IF('1. Order'!Z1339=\"\",\"\",'1. Order'!Z1339)","v":""},{"$f":"IF('1. Order'!AA1339=\"\",\"\",'1. Order'!AA1339)","v":""},null,{"$f":"IF('1. Order'!AS1339=\"\",\"\",'1. Order'!AS1339)","v":""},{"$f":"IF('1. Order'!AT1339=\"\",\"\",'1. Order'!AT1339)","v":""},null,null,null,null,null,null,null,{"$f":"IF('1. Order'!AX1339=\"\",\"\",'1. Order'!AX1339)","v":""},{"$f":"IF('1. Order'!AY1339=\"\",\"\",'1. Order'!AY1339)","v":""},{"$f":"IF('1. Order'!AZ1339=\"\",\"\",'1. Order'!AZ1339)","v":""},{"$f":"IF('1. Order'!BA1339=\"\",\"\",'1. Order'!BA1339)","v":""},{"$f":"IF('1. Order'!BC1339=\"\",\"\",'1. Order'!BC1339)","v":""},{"$f":"IF('1. Order'!BD1339=\"\",\"\",'1. Order'!BD1339)","v":6},{"$f":"IF('1. Order'!BE1339=\"\",\"\",'1. Order'!BE1339)","v":"None"},{"$f":"IF('1. Order'!BF1339=\"\",\"\",'1. Order'!BF1339)","v":"Parcel"},{"$f":"IF('1. Order'!BG1339=\"\",\"\",'1. Order'!BG1339)","v":"ZWO"}]
[{"$f":"IF('1. Order'!F1340=\"\",\"\",'1. Order'!F1340)","v":""},{"$f":"IF('1. Order'!G1340=\"\",\"\",'1. Order'!G1340)","v":""},{"$f":"IF('1. Order'!H1340=\"\",\"\",'1. Order'!H1340)","v":""},{"$f":"IF('1. Order'!I1340=\"\",\"\",'1. Order'!I1340)","v":""},{"$f":"IF('1. Order'!J1340=\"\",\"\",'1. Order'!J1340)","v":""},{"$f":"IF('1. Order'!K1340=\"\",\"\",'1. Order'!K1340)","v":""},{"$f":"IF('1. Order'!L1340=\"\",\"\",'1. Order'!L1340)","v":""},{"$f":"IF('1. Order'!M1340=\"\",\"\",'1. Order'!M1340)","v":""},{"$f":"IF('1. Order'!N1340=\"\",\"\",'1. Order'!N1340)","v":""},{"$f":"IF('1. Order'!O1340=\"\",\"\",'1. Order'!O1340)","v":{"$error":"#N/A"}},{"$f":"IF('1. Order'!P1340=\"\",\"\",'1. Order'!P1340)","v":{"$error":"#N/A"}},{"$f":"IF('1. Order'!Q1340=\"\",\"\",'1. Order'!Q1340)","v":""},{"$f":"IF('1. Order'!R1340=\"\",\"\",'1. Order'!R1340)","v":""},{"$f":"IF('1. Order'!S1340=\"\",\"\",'1. Order'!S1340)","v":""},{"$f":"IF('1. Order'!V1340=\"\",\"\",'1. Order'!V1340)","v":""},{"$f":"IF('1. Order'!W1340=\"\",\"\",'1. Order'!W1340)","v":""},{"$f":"IF('1. Order'!X1340=\"\",\"\",'1. Order'!X1340)","v":"EUR"},{"$f":"IF('1. Order'!Y1340=\"\",\"\",'1. Order'!Y1340)","v":""},{"$f":"IF('1. Order'!Z1340=\"\",\"\",'1. Order'!Z1340)","v":""},{"$f":"IF('1. Order'!AA1340=\"\",\"\",'1. Order'!AA1340)","v":""},null,{"$f":"IF('1. Order'!AS1340=\"\",\"\",'1. Order'!AS1340)","v":""},{"$f":"IF('1. Order'!AT1340=\"\",\"\",'1. Order'!AT1340)","v":""},null,null,null,null,null,null,null,{"$f":"IF('1. Order'!AX1340=\"\",\"\",'1. Order'!AX1340)","v":""},{"$f":"IF('1. Order'!AY1340=\"\",\"\",'1. Order'!AY1340)","v":""},{"$f":"IF('1. Order'!AZ1340=\"\",\"\",'1. Order'!AZ1340)","v":""},{"$f":"IF('1. Order'!BA1340=\"\",\"\",'1. Order'!BA1340)","v":""},{"$f":"IF('1. Order'!BC1340=\"\",\"\",'1. Order'!BC1340)","v":""},{"$f":"IF('1. Order'!BD1340=\"\",\"\",'1. Order'!BD1340)","v":6},{"$f":"IF('1. Order'!BE1340=\"\",\"\",'1. Order'!BE1340)","v":"None"},{"$f":"IF('1. Order'!BF1340=\"\",\"\",'1. Order'!BF1340)","v":"Parcel"},{"$f":"IF('1. Order'!BG1340=\"\",\"\",'1. Order'!BG1340)","v":"ZWO"}]
[{"$f":"IF('1. Order'!F1341=\"\",\"\",'1. Order'!F1341)","v":""},{"$f":"IF('1. Order'!G1341=\"\",\"\",'1. Order'!G1341)","v":""},{"$f":"IF('1. Order'!H1341=\"\",\"\",'1. Order'!H1341)","v":""},{"$f":"IF('1. Order'!I1341=\"\",\"\",'1. Order'!I1341)","v":""},{"$f":"IF('1. Order'!J1341=\"\",\"\",'1. Order'!J1341)","v":""},{"$f":"IF('1. Order'!K1341=\"\",\"\",'1. Order'!K1341)","v":""},{"$f":"IF('1. Order'!L1341=\"\",\"\",'1. Order'!L1341)","v":""},{"$f":"IF('1. Order'!M1341=\"\",\"\",'1. Order'!M1341)","v":""},{"$f":"IF('1. Order'!N1341=\"\",\"\",'1. Order'!N1341)","v":""},{"$f":"IF('1. Order'!O1341=\"\",\"\",'1. Order'!O1341)","v":{"$error":"#N/A"}},{"$f":"IF('1. Order'!P1341=\"\",\"\",'1. Order'!P1341)","v":{"$error":"#N/A"}},{"$f":"IF('1. Order'!Q1341=\"\",\"\",'1. Order'!Q1341)","v":""},{"$f":"IF('1. Order'!R1341=\"\",\"\",'1. Order'!R1341)","v":""},{"$f":"IF('1. Order'!S1341=\"\",\"\",'1. Order'!S1341)","v":""},{"$f":"IF('1. Order'!V1341=\"\",\"\",'1. Order'!V1341)","v":""},{"$f":"IF('1. Order'!W1341=\"\",\"\",'1. Order'!W1341)","v":""},{"$f":"IF('1. Order'!X1341=\"\",\"\",'1. Order'!X1341)","v":"EUR"},{"$f":"IF('1. Order'!Y1341=\"\",\"\",'1. Order'!Y1341)","v":""},{"$f":"IF('1. Order'!Z1341=\"\",\"\",'1. Order'!Z1341)","v":""},{"$f":"IF('1. Order'!AA1341=\"\",\"\",'1. Order'!AA1341)","v":""},null,{"$f":"IF('1. Order'!AS1341=\"\",\"\",'1. Order'!AS1341)","v":""},{"$f":"IF('1. Order'!AT1341=\"\",\"\",'1. Order'!AT1341)","v":""},null,null,null,null,null,null,null,{"$f":"IF('1. Order'!AX1341=\"\",\"\",'1. Order'!AX1341)","v":""},{"$f":"IF('1. Order'!AY1341=\"\",\"\",'1. Order'!AY1341)","v":""},{"$f":"IF('1. Order'!AZ1341=\"\",\"\",'1. Order'!AZ1341)","v":""},{"$f":"IF('1. Order'!BA1341=\"\",\"\",'1. Order'!BA1341)","v":""},{"$f":"IF('1. Order'!BC1341=\"\",\"\",'1. Order'!BC1341)","v":""},{"$f":"IF('1. Order'!BD1341=\"\",\"\",'1. Order'!BD1341)","v":6},{"$f":"IF('1. Order'!BE1341=\"\",\"\",'1. Order'!BE1341)","v":"None"},{"$f":"IF('1. Order'!BF1341=\"\",\"\",'1. Order'!BF1341)","v":"Parcel"},{"$f":"IF('1. Order'!BG1341=\"\",\"\",'1. Order'!BG1341)","v":"ZWO"}]
[{"$f":"IF('1. Order'!F1342=\"\",\"\",'1. Order'!F1342)","v":""},{"$f":"IF('1. Order'!G1342=\"\",\"\",'1. Order'!G1342)","v":""},{"$f":"IF('1. Order'!H1342=\"\",\"\",'1. Order'!H1342)","v":""},{"$f":"IF('1. Order'!I1342=\"\",\"\",'1. Order'!I1342)","v":""},{"$f":"IF('1. Order'!J1342=\"\",\"\",'1. Order'!J1342)","v":""},{"$f":"IF('1. Order'!K1342=\"\",\"\",'1. Order'!K1342)","v":""},{"$f":"IF('1. Order'!L1342=\"\",\"\",'1. Order'!L1342)","v":""},{"$f":"IF('1. Order'!M1342=\"\",\"\",'1. Order'!M1342)","v":""},{"$f":"IF('1. Order'!N1342=\"\",\"\",'1. Order'!N1342)","v":""},{"$f":"IF('1. Order'!O1342=\"\",\"\",'1. Order'!O1342)","v":{"$error":"#N/A"}},{"$f":"IF('1. Order'!P1342=\"\",\"\",'1. Order'!P1342)","v":{"$error":"#N/A"}},{"$f":"IF('1. Order'!Q1342=\"\",\"\",'1. Order'!Q1342)","v":""},{"$f":"IF('1. Order'!R1342=\"\",\"\",'1. Order'!R1342)","v":""},{"$f":"IF('1. Order'!S1342=\"\",\"\",'1. Order'!S1342)","v":""},{"$f":"IF('1. Order'!V1342=\"\",\"\",'1. Order'!V1342)","v":""},{"$f":"IF('1. Order'!W1342=\"\",\"\",'1. Order'!W1342)","v":""},{"$f":"IF('1. Order'!X1342=\"\",\"\",'1. Order'!X1342)","v":"EUR"},{"$f":"IF('1. Order'!Y1342=\"\",\"\",'1. Order'!Y1342)","v":""},{"$f":"IF('1. Order'!Z1342=\"\",\"\",'1. Order'!Z1342)","v":""},{"$f":"IF('1. Order'!AA1342=\"\",\"\",'1. Order'!AA1342)","v":""},null,{"$f":"IF('1. Order'!AS1342=\"\",\"\",'1. Order'!AS1342)","v":""},{"$f":"IF('1. Order'!AT1342=\"\",\"\",'1. Order'!AT1342)","v":""},null,null,null,null,null,null,null,{"$f":"IF('1. Order'!AX1342=\"\",\"\",'1. Order'!AX1342)","v":""},{"$f":"IF('1. Order'!AY1342=\"\",\"\",'1. Order'!AY1342)","v":""},{"$f":"IF('1. Order'!AZ1342=\"\",\"\",'1. Order'!AZ1342)","v":""},{"$f":"IF('1. Order'!BA1342=\"\",\"\",'1. Order'!BA1342)","v":""},{"$f":"IF('1. Order'!BC1342=\"\",\"\",'1. Order'!BC1342)","v":""},{"$f":"IF('1. Order'!BD1342=\"\",\"\",'1. Order'!BD1342)","v":6},{"$f":"IF('1. Order'!BE1342=\"\",\"\",'1. Order'!BE1342)","v":"None"},{"$f":"IF('1. Order'!BF1342=\"\",\"\",'1. Order'!BF1342)","v":"Parcel"},{"$f":"IF('1. Order'!BG1342=\"\",\"\",'1. Order'!BG1342)","v":"ZWO"}]
[{"$f":"IF('1. Order'!F1343=\"\",\"\",'1. Order'!F1343)","v":""},{"$f":"IF('1. Order'!G1343=\"\",\"\",'1. Order'!G1343)","v":""},{"$f":"IF('1. Order'!H1343=\"\",\"\",'1. Order'!H1343)","v":""},{"$f":"IF('1. Order'!I1343=\"\",\"\",'1. Order'!I1343)","v":""},{"$f":"IF('1. Order'!J1343=\"\",\"\",'1. Order'!J1343)","v":""},{"$f":"IF('1. Order'!K1343=\"\",\"\",'1. Order'!K1343)","v":""},{"$f":"IF('1. Order'!L1343=\"\",\"\",'1. Order'!L1343)","v":""},{"$f":"IF('1. Order'!M1343=\"\",\"\",'1. Order'!M1343)","v":""},{"$f":"IF('1. Order'!N1343=\"\",\"\",'1. Order'!N1343)","v":""},{"$f":"IF('1. Order'!O1343=\"\",\"\",'1. Order'!O1343)","v":{"$error":"#N/A"}},{"$f":"IF('1. Order'!P1343=\"\",\"\",'1. Order'!P1343)","v":{"$error":"#N/A"}},{"$f":"IF('1. Order'!Q1343=\"\",\"\",'1. Order'!Q1343)","v":""},{"$f":"IF('1. Order'!R1343=\"\",\"\",'1. Order'!R1343)","v":""},{"$f":"IF('1. Order'!S1343=\"\",\"\",'1. Order'!S1343)","v":""},{"$f":"IF('1. Order'!V1343=\"\",\"\",'1. Order'!V1343)","v":""},{"$f":"IF('1. Order'!W1343=\"\",\"\",'1. Order'!W1343)","v":""},{"$f":"IF('1. Order'!X1343=\"\",\"\",'1. Order'!X1343)","v":"EUR"},{"$f":"IF('1. Order'!Y1343=\"\",\"\",'1. Order'!Y1343)","v":""},{"$f":"IF('1. Order'!Z1343=\"\",\"\",'1. Order'!Z1343)","v":""},{"$f":"IF('1. Order'!AA1343=\"\",\"\",'1. Order'!AA1343)","v":""},null,{"$f":"IF('1. Order'!AS1343=\"\",\"\",'1. Order'!AS1343)","v":""},{"$f":"IF('1. Order'!AT1343=\"\",\"\",'1. Order'!AT1343)","v":""},null,null,null,null,null,null,null,{"$f":"IF('1. Order'!AX1343=\"\",\"\",'1. Order'!AX1343)","v":""},{"$f":"IF('1. Order'!AY1343=\"\",\"\",'1. Order'!AY1343)","v":""},{"$f":"IF('1. Order'!AZ1343=\"\",\"\",'1. Order'!AZ1343)","v":""},{"$f":"IF('1. Order'!BA1343=\"\",\"\",'1. Order'!BA1343)","v":""},{"$f":"IF('1. Order'!BC1343=\"\",\"\",'1. Order'!BC1343)","v":""},{"$f":"IF('1. Order'!BD1343=\"\",\"\",'1. Order'!BD1343)","v":6},{"$f":"IF('1. Order'!BE1343=\"\",\"\",'1. Order'!BE1343)","v":"None"},{"$f":"IF('1. Order'!BF1343=\"\",\"\",'1. Order'!BF1343)","v":"Parcel"},{"$f":"IF('1. Order'!BG1343=\"\",\"\",'1. Order'!BG1343)","v":"ZWO"}]
[{"$f":"IF('1. Order'!F1344=\"\",\"\",'1. Order'!F1344)","v":""},{"$f":"IF('1. Order'!G1344=\"\",\"\",'1. Order'!G1344)","v":""},{"$f":"IF('1. Order'!H1344=\"\",\"\",'1. Order'!H1344)","v":""},{"$f":"IF('1. Order'!I1344=\"\",\"\",'1. Order'!I1344)","v":""},{"$f":"IF('1. Order'!J1344=\"\",\"\",'1. Order'!J1344)","v":""},{"$f":"IF('1. Order'!K1344=\"\",\"\",'1. Order'!K1344)","v":""},{"$f":"IF('1. Order'!L1344=\"\",\"\",'1. Order'!L1344)","v":""},{"$f":"IF('1. Order'!M1344=\"\",\"\",'1. Order'!M1344)","v":""},{"$f":"IF('1. Order'!N1344=\"\",\"\",'1. Order'!N1344)","v":""},{"$f":"IF('1. Order'!O1344=\"\",\"\",'1. Order'!O1344)","v":{"$error":"#N/A"}},{"$f":"IF('1. Order'!P1344=\"\",\"\",'1. Order'!P1344)","v":{"$error":"#N/A"}},{"$f":"IF('1. Order'!Q1344=\"\",\"\",'1. Order'!Q1344)","v":""},{"$f":"IF('1. Order'!R1344=\"\",\"\",'1. Order'!R1344)","v":""},{"$f":"IF('1. Order'!S1344=\"\",\"\",'1. Order'!S1344)","v":""},{"$f":"IF('1. Order'!V1344=\"\",\"\",'1. Order'!V1344)","v":""},{"$f":"IF('1. Order'!W1344=\"\",\"\",'1. Order'!W1344)","v":""},{"$f":"IF('1. Order'!X1344=\"\",\"\",'1. Order'!X1344)","v":"EUR"},{"$f":"IF('1. Order'!Y1344=\"\",\"\",'1. Order'!Y1344)","v":""},{"$f":"IF('1. Order'!Z1344=\"\",\"\",'1. Order'!Z1344)","v":""},{"$f":"IF('1. Order'!AA1344=\"\",\"\",'1. Order'!AA1344)","v":""},null,{"$f":"IF('1. Order'!AS1344=\"\",\"\",'1. Order'!AS1344)","v":""},{"$f":"IF('1. Order'!AT1344=\"\",\"\",'1. Order'!AT1344)","v":""},null,null,null,null,null,null,null,{"$f":"IF('1. Order'!AX1344=\"\",\"\",'1. Order'!AX1344)","v":""},{"$f":"IF('1. Order'!AY1344=\"\",\"\",'1. Order'!AY1344)","v":""},{"$f":"IF('1. Order'!AZ1344=\"\",\"\",'1. Order'!AZ1344)","v":""},{"$f":"IF('1. Order'!BA1344=\"\",\"\",'1. Order'!BA1344)","v":""},{"$f":"IF('1. Order'!BC1344=\"\",\"\",'1. Order'!BC1344)","v":""},{"$f":"IF('1. Order'!BD1344=\"\",\"\",'1. Order'!BD1344)","v":6},{"$f":"IF('1. Order'!BE1344=\"\",\"\",'1. Order'!BE1344)","v":"None"},{"$f":"IF('1. Order'!BF1344=\"\",\"\",'1. Order'!BF1344)","v":"Parcel"},{"$f":"IF('1. Order'!BG1344=\"\",\"\",'1. Order'!BG1344)","v":"ZWO"}]
[{"$f":"IF('1. Order'!F1345=\"\",\"\",'1. Order'!F1345)","v":""},{"$f":"IF('1. Order'!G1345=\"\",\"\",'1. Order'!G1345)","v":""},{"$f":"IF('1. Order'!H1345=\"\",\"\",'1. Order'!H1345)","v":""},{"$f":"IF('1. Order'!I1345=\"\",\"\",'1. Order'!I1345)","v":""},{"$f":"IF('1. Order'!J1345=\"\",\"\",'1. Order'!J1345)","v":""},{"$f":"IF('1. Order'!K1345=\"\",\"\",'1. Order'!K1345)","v":""},{"$f":"IF('1. Order'!L1345=\"\",\"\",'1. Order'!L1345)","v":""},{"$f":"IF('1. Order'!M1345=\"\",\"\",'1. Order'!M1345)","v":""},{"$f":"IF('1. Order'!N1345=\"\",\"\",'1. Order'!N1345)","v":""},{"$f":"IF('1. Order'!O1345=\"\",\"\",'1. Order'!O1345)","v":{"$error":"#N/A"}},{"$f":"IF('1. Order'!P1345=\"\",\"\",'1. Order'!P1345)","v":{"$error":"#N/A"}},{"$f":"IF('1. Order'!Q1345=\"\",\"\",'1. Order'!Q1345)","v":""},{"$f":"IF('1. Order'!R1345=\"\",\"\",'1. Order'!R1345)","v":""},{"$f":"IF('1. Order'!S1345=\"\",\"\",'1. Order'!S1345)","v":""},{"$f":"IF('1. Order'!V1345=\"\",\"\",'1. Order'!V1345)","v":""},{"$f":"IF('1. Order'!W1345=\"\",\"\",'1. Order'!W1345)","v":""},{"$f":"IF('1. Order'!X1345=\"\",\"\",'1. Order'!X1345)","v":"EUR"},{"$f":"IF('1. Order'!Y1345=\"\",\"\",'1. Order'!Y1345)","v":""},{"$f":"IF('1. Order'!Z1345=\"\",\"\",'1. Order'!Z1345)","v":""},{"$f":"IF('1. Order'!AA1345=\"\",\"\",'1. Order'!AA1345)","v":""},null,{"$f":"IF('1. Order'!AS1345=\"\",\"\",'1. Order'!AS1345)","v":""},{"$f":"IF('1. Order'!AT1345=\"\",\"\",'1. Order'!AT1345)","v":""},null,null,null,null,null,null,null,{"$f":"IF('1. Order'!AX1345=\"\",\"\",'1. Order'!AX1345)","v":""},{"$f":"IF('1. Order'!AY1345=\"\",\"\",'1. Order'!AY1345)","v":""},{"$f":"IF('1. Order'!AZ1345=\"\",\"\",'1. Order'!AZ1345)","v":""},{"$f":"IF('1. Order'!BA1345=\"\",\"\",'1. Order'!BA1345)","v":""},{"$f":"IF('1. Order'!BC1345=\"\",\"\",'1. Order'!BC1345)","v":""},{"$f":"IF('1. Order'!BD1345=\"\",\"\",'1. Order'!BD1345)","v":6},{"$f":"IF('1. Order'!BE1345=\"\",\"\",'1. Order'!BE1345)","v":"None"},{"$f":"IF('1. Order'!BF1345=\"\",\"\",'1. Order'!BF1345)","v":"Parcel"},{"$f":"IF('1. Order'!BG1345=\"\",\"\",'1. Order'!BG1345)","v":"ZWO"}]
[{"$f":"IF('1. Order'!F1346=\"\",\"\",'1. Order'!F1346)","v":""},{"$f":"IF('1. Order'!G1346=\"\",\"\",'1. Order'!G1346)","v":""},{"$f":"IF('1. Order'!H1346=\"\",\"\",'1. Order'!H1346)","v":""},{"$f":"IF('1. Order'!I1346=\"\",\"\",'1. Order'!I1346)","v":""},{"$f":"IF('1. Order'!J1346=\"\",\"\",'1. Order'!J1346)","v":""},{"$f":"IF('1. Order'!K1346=\"\",\"\",'1. Order'!K1346)","v":""},{"$f":"IF('1. Order'!L1346=\"\",\"\",'1. Order'!L1346)","v":""},{"$f":"IF('1. Order'!M1346=\"\",\"\",'1. Order'!M1346)","v":""},{"$f":"IF('1. Order'!N1346=\"\",\"\",'1. Order'!N1346)","v":""},{"$f":"IF('1. Order'!O1346=\"\",\"\",'1. Order'!O1346)","v":{"$error":"#N/A"}},{"$f":"IF('1. Order'!P1346=\"\",\"\",'1. Order'!P1346)","v":{"$error":"#N/A"}},{"$f":"IF('1. Order'!Q1346=\"\",\"\",'1. Order'!Q1346)","v":""},{"$f":"IF('1. Order'!R1346=\"\",\"\",'1. Order'!R1346)","v":""},{"$f":"IF('1. Order'!S1346=\"\",\"\",'1. Order'!S1346)","v":""},{"$f":"IF('1. Order'!V1346=\"\",\"\",'1. Order'!V1346)","v":""},{"$f":"IF('1. Order'!W1346=\"\",\"\",'1. Order'!W1346)","v":""},{"$f":"IF('1. Order'!X1346=\"\",\"\",'1. Order'!X1346)","v":"EUR"},{"$f":"IF('1. Order'!Y1346=\"\",\"\",'1. Order'!Y1346)","v":""},{"$f":"IF('1. Order'!Z1346=\"\",\"\",'1. Order'!Z1346)","v":""},{"$f":"IF('1. Order'!AA1346=\"\",\"\",'1. Order'!AA1346)","v":""},null,{"$f":"IF('1. Order'!AS1346=\"\",\"\",'1. Order'!AS1346)","v":""},{"$f":"IF('1. Order'!AT1346=\"\",\"\",'1. Order'!AT1346)","v":""},null,null,null,null,null,null,null,{"$f":"IF('1. Order'!AX1346=\"\",\"\",'1. Order'!AX1346)","v":""},{"$f":"IF('1. Order'!AY1346=\"\",\"\",'1. Order'!AY1346)","v":""},{"$f":"IF('1. Order'!AZ1346=\"\",\"\",'1. Order'!AZ1346)","v":""},{"$f":"IF('1. Order'!BA1346=\"\",\"\",'1. Order'!BA1346)","v":""},{"$f":"IF('1. Order'!BC1346=\"\",\"\",'1. Order'!BC1346)","v":""},{"$f":"IF('1. Order'!BD1346=\"\",\"\",'1. Order'!BD1346)","v":6},{"$f":"IF('1. Order'!BE1346=\"\",\"\",'1. Order'!BE1346)","v":"None"},{"$f":"IF('1. Order'!BF1346=\"\",\"\",'1. Order'!BF1346)","v":"Parcel"},{"$f":"IF('1. Order'!BG1346=\"\",\"\",'1. Order'!BG1346)","v":"ZWO"}]
[{"$f":"IF('1. Order'!F1347=\"\",\"\",'1. Order'!F1347)","v":""},{"$f":"IF('1. Order'!G1347=\"\",\"\",'1. Order'!G1347)","v":""},{"$f":"IF('1. Order'!H1347=\"\",\"\",'1. Order'!H1347)","v":""},{"$f":"IF('1. Order'!I1347=\"\",\"\",'1. Order'!I1347)","v":""},{"$f":"IF('1. Order'!J1347=\"\",\"\",'1. Order'!J1347)","v":""},{"$f":"IF('1. Order'!K1347=\"\",\"\",'1. Order'!K1347)","v":""},{"$f":"IF('1. Order'!L1347=\"\",\"\",'1. Order'!L1347)","v":""},{"$f":"IF('1. Order'!M1347=\"\",\"\",'1. Order'!M1347)","v":""},{"$f":"IF('1. Order'!N1347=\"\",\"\",'1. Order'!N1347)","v":""},{"$f":"IF('1. Order'!O1347=\"\",\"\",'1. Order'!O1347)","v":{"$error":"#N/A"}},{"$f":"IF('1. Order'!P1347=\"\",\"\",'1. Order'!P1347)","v":{"$error":"#N/A"}},{"$f":"IF('1. Order'!Q1347=\"\",\"\",'1. Order'!Q1347)","v":""},{"$f":"IF('1. Order'!R1347=\"\",\"\",'1. Order'!R1347)","v":""},{"$f":"IF('1. Order'!S1347=\"\",\"\",'1. Order'!S1347)","v":""},{"$f":"IF('1. Order'!V1347=\"\",\"\",'1. Order'!V1347)","v":""},{"$f":"IF('1. Order'!W1347=\"\",\"\",'1. Order'!W1347)","v":""},{"$f":"IF('1. Order'!X1347=\"\",\"\",'1. Order'!X1347)","v":"EUR"},{"$f":"IF('1. Order'!Y1347=\"\",\"\",'1. Order'!Y1347)","v":""},{"$f":"IF('1. Order'!Z1347=\"\",\"\",'1. Order'!Z1347)","v":""},{"$f":"IF('1. Order'!AA1347=\"\",\"\",'1. Order'!AA1347)","v":""},null,{"$f":"IF('1. Order'!AS1347=\"\",\"\",'1. Order'!AS1347)","v":""},{"$f":"IF('1. Order'!AT1347=\"\",\"\",'1. Order'!AT1347)","v":""},null,null,null,null,null,null,null,{"$f":"IF('1. Order'!AX1347=\"\",\"\",'1. Order'!AX1347)","v":""},{"$f":"IF('1. Order'!AY1347=\"\",\"\",'1. Order'!AY1347)","v":""},{"$f":"IF('1. Order'!AZ1347=\"\",\"\",'1. Order'!AZ1347)","v":""},{"$f":"IF('1. Order'!BA1347=\"\",\"\",'1. Order'!BA1347)","v":""},{"$f":"IF('1. Order'!BC1347=\"\",\"\",'1. Order'!BC1347)","v":""},{"$f":"IF('1. Order'!BD1347=\"\",\"\",'1. Order'!BD1347)","v":6},{"$f":"IF('1. Order'!BE1347=\"\",\"\",'1. Order'!BE1347)","v":"None"},{"$f":"IF('1. Order'!BF1347=\"\",\"\",'1. Order'!BF1347)","v":"Parcel"},{"$f":"IF('1. Order'!BG1347=\"\",\"\",'1. Order'!BG1347)","v":"ZWO"}]
[{"$f":"IF('1. Order'!F1348=\"\",\"\",'1. Order'!F1348)","v":""},{"$f":"IF('1. Order'!G1348=\"\",\"\",'1. Order'!G1348)","v":""},{"$f":"IF('1. Order'!H1348=\"\",\"\",'1. Order'!H1348)","v":""},{"$f":"IF('1. Order'!I1348=\"\",\"\",'1. Order'!I1348)","v":""},{"$f":"IF('1. Order'!J1348=\"\",\"\",'1. Order'!J1348)","v":""},{"$f":"IF('1. Order'!K1348=\"\",\"\",'1. Order'!K1348)","v":""},{"$f":"IF('1. Order'!L1348=\"\",\"\",'1. Order'!L1348)","v":""},{"$f":"IF('1. Order'!M1348=\"\",\"\",'1. Order'!M1348)","v":""},{"$f":"IF('1. Order'!N1348=\"\",\"\",'1. Order'!N1348)","v":""},{"$f":"IF('1. Order'!O1348=\"\",\"\",'1. Order'!O1348)","v":{"$error":"#N/A"}},{"$f":"IF('1. Order'!P1348=\"\",\"\",'1. Order'!P1348)","v":{"$error":"#N/A"}},{"$f":"IF('1. Order'!Q1348=\"\",\"\",'1. Order'!Q1348)","v":""},{"$f":"IF('1. Order'!R1348=\"\",\"\",'1. Order'!R1348)","v":""},{"$f":"IF('1. Order'!S1348=\"\",\"\",'1. Order'!S1348)","v":""},{"$f":"IF('1. Order'!V1348=\"\",\"\",'1. Order'!V1348)","v":""},{"$f":"IF('1. Order'!W1348=\"\",\"\",'1. Order'!W1348)","v":""},{"$f":"IF('1. Order'!X1348=\"\",\"\",'1. Order'!X1348)","v":"EUR"},{"$f":"IF('1. Order'!Y1348=\"\",\"\",'1. Order'!Y1348)","v":""},{"$f":"IF('1. Order'!Z1348=\"\",\"\",'1. Order'!Z1348)","v":""},{"$f":"IF('1. Order'!AA1348=\"\",\"\",'1. Order'!AA1348)","v":""},null,{"$f":"IF('1. Order'!AS1348=\"\",\"\",'1. Order'!AS1348)","v":""},{"$f":"IF('1. Order'!AT1348=\"\",\"\",'1. Order'!AT1348)","v":""},null,null,null,null,null,null,null,{"$f":"IF('1. Order'!AX1348=\"\",\"\",'1. Order'!AX1348)","v":""},{"$f":"IF('1. Order'!AY1348=\"\",\"\",'1. Order'!AY1348)","v":""},{"$f":"IF('1. Order'!AZ1348=\"\",\"\",'1. Order'!AZ1348)","v":""},{"$f":"IF('1. Order'!BA1348=\"\",\"\",'1. Order'!BA1348)","v":""},{"$f":"IF('1. Order'!BC1348=\"\",\"\",'1. Order'!BC1348)","v":""},{"$f":"IF('1. Order'!BD1348=\"\",\"\",'1. Order'!BD1348)","v":6},{"$f":"IF('1. Order'!BE1348=\"\",\"\",'1. Order'!BE1348)","v":"None"},{"$f":"IF('1. Order'!BF1348=\"\",\"\",'1. Order'!BF1348)","v":"Parcel"},{"$f":"IF('1. Order'!BG1348=\"\",\"\",'1. Order'!BG1348)","v":"ZWO"}]
[{"$f":"IF('1. Order'!F1349=\"\",\"\",'1. Order'!F1349)","v":""},{"$f":"IF('1. Order'!G1349=\"\",\"\",'1. Order'!G1349)","v":""},{"$f":"IF('1. Order'!H1349=\"\",\"\",'1. Order'!H1349)","v":""},{"$f":"IF('1. Order'!I1349=\"\",\"\",'1. Order'!I1349)","v":""},{"$f":"IF('1. Order'!J1349=\"\",\"\",'1. Order'!J1349)","v":""},{"$f":"IF('1. Order'!K1349=\"\",\"\",'1. Order'!K1349)","v":""},{"$f":"IF('1. Order'!L1349=\"\",\"\",'1. Order'!L1349)","v":""},{"$f":"IF('1. Order'!M1349=\"\",\"\",'1. Order'!M1349)","v":""},{"$f":"IF('1. Order'!N1349=\"\",\"\",'1. Order'!N1349)","v":""},{"$f":"IF('1. Order'!O1349=\"\",\"\",'1. Order'!O1349)","v":{"$error":"#N/A"}},{"$f":"IF('1. Order'!P1349=\"\",\"\",'1. Order'!P1349)","v":{"$error":"#N/A"}},{"$f":"IF('1. Order'!Q1349=\"\",\"\",'1. Order'!Q1349)","v":""},{"$f":"IF('1. Order'!R1349=\"\",\"\",'1. Order'!R1349)","v":""},{"$f":"IF('1. Order'!S1349=\"\",\"\",'1. Order'!S1349)","v":""},{"$f":"IF('1. Order'!V1349=\"\",\"\",'1. Order'!V1349)","v":""},{"$f":"IF('1. Order'!W1349=\"\",\"\",'1. Order'!W1349)","v":""},{"$f":"IF('1. Order'!X1349=\"\",\"\",'1. Order'!X1349)","v":"EUR"},{"$f":"IF('1. Order'!Y1349=\"\",\"\",'1. Order'!Y1349)","v":""},{"$f":"IF('1. Order'!Z1349=\"\",\"\",'1. Order'!Z1349)","v":""},{"$f":"IF('1. Order'!AA1349=\"\",\"\",'1. Order'!AA1349)","v":""},null,{"$f":"IF('1. Order'!AS1349=\"\",\"\",'1. Order'!AS1349)","v":""},{"$f":"IF('1. Order'!AT1349=\"\",\"\",'1. Order'!AT1349)","v":""},null,null,null,null,null,null,null,{"$f":"IF('1. Order'!AX1349=\"\",\"\",'1. Order'!AX1349)","v":""},{"$f":"IF('1. Order'!AY1349=\"\",\"\",'1. Order'!AY1349)","v":""},{"$f":"IF('1. Order'!AZ1349=\"\",\"\",'1. Order'!AZ1349)","v":""},{"$f":"IF('1. Order'!BA1349=\"\",\"\",'1. Order'!BA1349)","v":""},{"$f":"IF('1. Order'!BC1349=\"\",\"\",'1. Order'!BC1349)","v":""},{"$f":"IF('1. Order'!BD1349=\"\",\"\",'1. Order'!BD1349)","v":6},{"$f":"IF('1. Order'!BE1349=\"\",\"\",'1. Order'!BE1349)","v":"None"},{"$f":"IF('1. Order'!BF1349=\"\",\"\",'1. Order'!BF1349)","v":"Parcel"},{"$f":"IF('1. Order'!BG1349=\"\",\"\",'1. Order'!BG1349)","v":"ZWO"}]
[{"$f":"IF('1. Order'!F1350=\"\",\"\",'1. Order'!F1350)","v":""},{"$f":"IF('1. Order'!G1350=\"\",\"\",'1. Order'!G1350)","v":""},{"$f":"IF('1. Order'!H1350=\"\",\"\",'1. Order'!H1350)","v":""},{"$f":"IF('1. Order'!I1350=\"\",\"\",'1. Order'!I1350)","v":""},{"$f":"IF('1. Order'!J1350=\"\",\"\",'1. Order'!J1350)","v":""},{"$f":"IF('1. Order'!K1350=\"\",\"\",'1. Order'!K1350)","v":""},{"$f":"IF('1. Order'!L1350=\"\",\"\",'1. Order'!L1350)","v":""},{"$f":"IF('1. Order'!M1350=\"\",\"\",'1. Order'!M1350)","v":""},{"$f":"IF('1. Order'!N1350=\"\",\"\",'1. Order'!N1350)","v":""},{"$f":"IF('1. Order'!O1350=\"\",\"\",'1. Order'!O1350)","v":{"$error":"#N/A"}},{"$f":"IF('1. Order'!P1350=\"\",\"\",'1. Order'!P1350)","v":{"$error":"#N/A"}},{"$f":"IF('1. Order'!Q1350=\"\",\"\",'1. Order'!Q1350)","v":""},{"$f":"IF('1. Order'!R1350=\"\",\"\",'1. Order'!R1350)","v":""},{"$f":"IF('1. Order'!S1350=\"\",\"\",'1. Order'!S1350)","v":""},{"$f":"IF('1. Order'!V1350=\"\",\"\",'1. Order'!V1350)","v":""},{"$f":"IF('1. Order'!W1350=\"\",\"\",'1. Order'!W1350)","v":""},{"$f":"IF('1. Order'!X1350=\"\",\"\",'1. Order'!X1350)","v":"EUR"},{"$f":"IF('1. Order'!Y1350=\"\",\"\",'1. Order'!Y1350)","v":""},{"$f":"IF('1. Order'!Z1350=\"\",\"\",'1. Order'!Z1350)","v":""},{"$f":"IF('1. Order'!AA1350=\"\",\"\",'1. Order'!AA1350)","v":""},null,{"$f":"IF('1. Order'!AS1350=\"\",\"\",'1. Order'!AS1350)","v":""},{"$f":"IF('1. Order'!AT1350=\"\",\"\",'1. Order'!AT1350)","v":""},null,null,null,null,null,null,null,{"$f":"IF('1. Order'!AX1350=\"\",\"\",'1. Order'!AX1350)","v":""},{"$f":"IF('1. Order'!AY1350=\"\",\"\",'1. Order'!AY1350)","v":""},{"$f":"IF('1. Order'!AZ1350=\"\",\"\",'1. Order'!AZ1350)","v":""},{"$f":"IF('1. Order'!BA1350=\"\",\"\",'1. Order'!BA1350)","v":""},{"$f":"IF('1. Order'!BC1350=\"\",\"\",'1. Order'!BC1350)","v":""},{"$f":"IF('1. Order'!BD1350=\"\",\"\",'1. Order'!BD1350)","v":6},{"$f":"IF('1. Order'!BE1350=\"\",\"\",'1. Order'!BE1350)","v":"None"},{"$f":"IF('1. Order'!BF1350=\"\",\"\",'1. Order'!BF1350)","v":"Parcel"},{"$f":"IF('1. Order'!BG1350=\"\",\"\",'1. Order'!BG1350)","v":"ZWO"}]
[{"$f":"IF('1. Order'!F1351=\"\",\"\",'1. Order'!F1351)","v":""},{"$f":"IF('1. Order'!G1351=\"\",\"\",'1. Order'!G1351)","v":""},{"$f":"IF('1. Order'!H1351=\"\",\"\",'1. Order'!H1351)","v":""},{"$f":"IF('1. Order'!I1351=\"\",\"\",'1. Order'!I1351)","v":""},{"$f":"IF('1. Order'!J1351=\"\",\"\",'1. Order'!J1351)","v":""},{"$f":"IF('1. Order'!K1351=\"\",\"\",'1. Order'!K1351)","v":""},{"$f":"IF('1. Order'!L1351=\"\",\"\",'1. Order'!L1351)","v":""},{"$f":"IF('1. Order'!M1351=\"\",\"\",'1. Order'!M1351)","v":""},{"$f":"IF('1. Order'!N1351=\"\",\"\",'1. Order'!N1351)","v":""},{"$f":"IF('1. Order'!O1351=\"\",\"\",'1. Order'!O1351)","v":{"$error":"#N/A"}},{"$f":"IF('1. Order'!P1351=\"\",\"\",'1. Order'!P1351)","v":{"$error":"#N/A"}},{"$f":"IF('1. Order'!Q1351=\"\",\"\",'1. Order'!Q1351)","v":""},{"$f":"IF('1. Order'!R1351=\"\",\"\",'1. Order'!R1351)","v":""},{"$f":"IF('1. Order'!S1351=\"\",\"\",'1. Order'!S1351)","v":""},{"$f":"IF('1. Order'!V1351=\"\",\"\",'1. Order'!V1351)","v":""},{"$f":"IF('1. Order'!W1351=\"\",\"\",'1. Order'!W1351)","v":""},{"$f":"IF('1. Order'!X1351=\"\",\"\",'1. Order'!X1351)","v":"EUR"},{"$f":"IF('1. Order'!Y1351=\"\",\"\",'1. Order'!Y1351)","v":""},{"$f":"IF('1. Order'!Z1351=\"\",\"\",'1. Order'!Z1351)","v":""},{"$f":"IF('1. Order'!AA1351=\"\",\"\",'1. Order'!AA1351)","v":""},null,{"$f":"IF('1. Order'!AS1351=\"\",\"\",'1. Order'!AS1351)","v":""},{"$f":"IF('1. Order'!AT1351=\"\",\"\",'1. Order'!AT1351)","v":""},null,null,null,null,null,null,null,{"$f":"IF('1. Order'!AX1351=\"\",\"\",'1. Order'!AX1351)","v":""},{"$f":"IF('1. Order'!AY1351=\"\",\"\",'1. Order'!AY1351)","v":""},{"$f":"IF('1. Order'!AZ1351=\"\",\"\",'1. Order'!AZ1351)","v":""},{"$f":"IF('1. Order'!BA1351=\"\",\"\",'1. Order'!BA1351)","v":""},{"$f":"IF('1. Order'!BC1351=\"\",\"\",'1. Order'!BC1351)","v":""},{"$f":"IF('1. Order'!BD1351=\"\",\"\",'1. Order'!BD1351)","v":6},{"$f":"IF('1. Order'!BE1351=\"\",\"\",'1. Order'!BE1351)","v":"None"},{"$f":"IF('1. Order'!BF1351=\"\",\"\",'1. Order'!BF1351)","v":"Parcel"},{"$f":"IF('1. Order'!BG1351=\"\",\"\",'1. Order'!BG1351)","v":"ZWO"}]
[{"$f":"IF('1. Order'!F1352=\"\",\"\",'1. Order'!F1352)","v":""},{"$f":"IF('1. Order'!G1352=\"\",\"\",'1. Order'!G1352)","v":""},{"$f":"IF('1. Order'!H1352=\"\",\"\",'1. Order'!H1352)","v":""},{"$f":"IF('1. Order'!I1352=\"\",\"\",'1. Order'!I1352)","v":""},{"$f":"IF('1. Order'!J1352=\"\",\"\",'1. Order'!J1352)","v":""},{"$f":"IF('1. Order'!K1352=\"\",\"\",'1. Order'!K1352)","v":""},{"$f":"IF('1. Order'!L1352=\"\",\"\",'1. Order'!L1352)","v":""},{"$f":"IF('1. Order'!M1352=\"\",\"\",'1. Order'!M1352)","v":""},{"$f":"IF('1. Order'!N1352=\"\",\"\",'1. Order'!N1352)","v":""},{"$f":"IF('1. Order'!O1352=\"\",\"\",'1. Order'!O1352)","v":{"$error":"#N/A"}},{"$f":"IF('1. Order'!P1352=\"\",\"\",'1. Order'!P1352)","v":{"$error":"#N/A"}},{"$f":"IF('1. Order'!Q1352=\"\",\"\",'1. Order'!Q1352)","v":""},{"$f":"IF('1. Order'!R1352=\"\",\"\",'1. Order'!R1352)","v":""},{"$f":"IF('1. Order'!S1352=\"\",\"\",'1. Order'!S1352)","v":""},{"$f":"IF('1. Order'!V1352=\"\",\"\",'1. Order'!V1352)","v":""},{"$f":"IF('1. Order'!W1352=\"\",\"\",'1. Order'!W1352)","v":""},{"$f":"IF('1. Order'!X1352=\"\",\"\",'1. Order'!X1352)","v":"EUR"},{"$f":"IF('1. Order'!Y1352=\"\",\"\",'1. Order'!Y1352)","v":""},{"$f":"IF('1. Order'!Z1352=\"\",\"\",'1. Order'!Z1352)","v":""},{"$f":"IF('1. Order'!AA1352=\"\",\"\",'1. Order'!AA1352)","v":""},null,{"$f":"IF('1. Order'!AS1352=\"\",\"\",'1. Order'!AS1352)","v":""},{"$f":"IF('1. Order'!AT1352=\"\",\"\",'1. Order'!AT1352)","v":""},null,null,null,null,null,null,null,{"$f":"IF('1. Order'!AX1352=\"\",\"\",'1. Order'!AX1352)","v":""},{"$f":"IF('1. Order'!AY1352=\"\",\"\",'1. Order'!AY1352)","v":""},{"$f":"IF('1. Order'!AZ1352=\"\",\"\",'1. Order'!AZ1352)","v":""},{"$f":"IF('1. Order'!BA1352=\"\",\"\",'1. Order'!BA1352)","v":""},{"$f":"IF('1. Order'!BC1352=\"\",\"\",'1. Order'!BC1352)","v":""},{"$f":"IF('1. Order'!BD1352=\"\",\"\",'1. Order'!BD1352)","v":6},{"$f":"IF('1. Order'!BE1352=\"\",\"\",'1. Order'!BE1352)","v":"None"},{"$f":"IF('1. Order'!BF1352=\"\",\"\",'1. Order'!BF1352)","v":"Parcel"},{"$f":"IF('1. Order'!BG1352=\"\",\"\",'1. Order'!BG1352)","v":"ZWO"}]
[{"$f":"IF('1. Order'!F1353=\"\",\"\",'1. Order'!F1353)","v":""},{"$f":"IF('1. Order'!G1353=\"\",\"\",'1. Order'!G1353)","v":""},{"$f":"IF('1. Order'!H1353=\"\",\"\",'1. Order'!H1353)","v":""},{"$f":"IF('1. Order'!I1353=\"\",\"\",'1. Order'!I1353)","v":""},{"$f":"IF('1. Order'!J1353=\"\",\"\",'1. Order'!J1353)","v":""},{"$f":"IF('1. Order'!K1353=\"\",\"\",'1. Order'!K1353)","v":""},{"$f":"IF('1. Order'!L1353=\"\",\"\",'1. Order'!L1353)","v":""},{"$f":"IF('1. Order'!M1353=\"\",\"\",'1. Order'!M1353)","v":""},{"$f":"IF('1. Order'!N1353=\"\",\"\",'1. Order'!N1353)","v":""},{"$f":"IF('1. Order'!O1353=\"\",\"\",'1. Order'!O1353)","v":{"$error":"#N/A"}},{"$f":"IF('1. Order'!P1353=\"\",\"\",'1. Order'!P1353)","v":{"$error":"#N/A"}},{"$f":"IF('1. Order'!Q1353=\"\",\"\",'1. Order'!Q1353)","v":""},{"$f":"IF('1. Order'!R1353=\"\",\"\",'1. Order'!R1353)","v":""},{"$f":"IF('1. Order'!S1353=\"\",\"\",'1. Order'!S1353)","v":""},{"$f":"IF('1. Order'!V1353=\"\",\"\",'1. Order'!V1353)","v":""},{"$f":"IF('1. Order'!W1353=\"\",\"\",'1. Order'!W1353)","v":""},{"$f":"IF('1. Order'!X1353=\"\",\"\",'1. Order'!X1353)","v":"EUR"},{"$f":"IF('1. Order'!Y1353=\"\",\"\",'1. Order'!Y1353)","v":""},{"$f":"IF('1. Order'!Z1353=\"\",\"\",'1. Order'!Z1353)","v":""},{"$f":"IF('1. Order'!AA1353=\"\",\"\",'1. Order'!AA1353)","v":""},null,{"$f":"IF('1. Order'!AS1353=\"\",\"\",'1. Order'!AS1353)","v":""},{"$f":"IF('1. Order'!AT1353=\"\",\"\",'1. Order'!AT1353)","v":""},null,null,null,null,null,null,null,{"$f":"IF('1. Order'!AX1353=\"\",\"\",'1. Order'!AX1353)","v":""},{"$f":"IF('1. Order'!AY1353=\"\",\"\",'1. Order'!AY1353)","v":""},{"$f":"IF('1. Order'!AZ1353=\"\",\"\",'1. Order'!AZ1353)","v":""},{"$f":"IF('1. Order'!BA1353=\"\",\"\",'1. Order'!BA1353)","v":""},{"$f":"IF('1. Order'!BC1353=\"\",\"\",'1. Order'!BC1353)","v":""},{"$f":"IF('1. Order'!BD1353=\"\",\"\",'1. Order'!BD1353)","v":6},{"$f":"IF('1. Order'!BE1353=\"\",\"\",'1. Order'!BE1353)","v":"None"},{"$f":"IF('1. Order'!BF1353=\"\",\"\",'1. Order'!BF1353)","v":"Parcel"},{"$f":"IF('1. Order'!BG1353=\"\",\"\",'1. Order'!BG1353)","v":"ZWO"}]
[{"$f":"IF('1. Order'!F1354=\"\",\"\",'1. Order'!F1354)","v":""},{"$f":"IF('1. Order'!G1354=\"\",\"\",'1. Order'!G1354)","v":""},{"$f":"IF('1. Order'!H1354=\"\",\"\",'1. Order'!H1354)","v":""},{"$f":"IF('1. Order'!I1354=\"\",\"\",'1. Order'!I1354)","v":""},{"$f":"IF('1. Order'!J1354=\"\",\"\",'1. Order'!J1354)","v":""},{"$f":"IF('1. Order'!K1354=\"\",\"\",'1. Order'!K1354)","v":""},{"$f":"IF('1. Order'!L1354=\"\",\"\",'1. Order'!L1354)","v":""},{"$f":"IF('1. Order'!M1354=\"\",\"\",'1. Order'!M1354)","v":""},{"$f":"IF('1. Order'!N1354=\"\",\"\",'1. Order'!N1354)","v":""},{"$f":"IF('1. Order'!O1354=\"\",\"\",'1. Order'!O1354)","v":{"$error":"#N/A"}},{"$f":"IF('1. Order'!P1354=\"\",\"\",'1. Order'!P1354)","v":{"$error":"#N/A"}},{"$f":"IF('1. Order'!Q1354=\"\",\"\",'1. Order'!Q1354)","v":""},{"$f":"IF('1. Order'!R1354=\"\",\"\",'1. Order'!R1354)","v":""},{"$f":"IF('1. Order'!S1354=\"\",\"\",'1. Order'!S1354)","v":""},{"$f":"IF('1. Order'!V1354=\"\",\"\",'1. Order'!V1354)","v":""},{"$f":"IF('1. Order'!W1354=\"\",\"\",'1. Order'!W1354)","v":""},{"$f":"IF('1. Order'!X1354=\"\",\"\",'1. Order'!X1354)","v":"EUR"},{"$f":"IF('1. Order'!Y1354=\"\",\"\",'1. Order'!Y1354)","v":""},{"$f":"IF('1. Order'!Z1354=\"\",\"\",'1. Order'!Z1354)","v":""},{"$f":"IF('1. Order'!AA1354=\"\",\"\",'1. Order'!AA1354)","v":""},null,{"$f":"IF('1. Order'!AS1354=\"\",\"\",'1. Order'!AS1354)","v":""},{"$f":"IF('1. Order'!AT1354=\"\",\"\",'1. Order'!AT1354)","v":""},null,null,null,null,null,null,null,{"$f":"IF('1. Order'!AX1354=\"\",\"\",'1. Order'!AX1354)","v":""},{"$f":"IF('1. Order'!AY1354=\"\",\"\",'1. Order'!AY1354)","v":""},{"$f":"IF('1. Order'!AZ1354=\"\",\"\",'1. Order'!AZ1354)","v":""},{"$f":"IF('1. Order'!BA1354=\"\",\"\",'1. Order'!BA1354)","v":""},{"$f":"IF('1. Order'!BC1354=\"\",\"\",'1. Order'!BC1354)","v":""},{"$f":"IF('1. Order'!BD1354=\"\",\"\",'1. Order'!BD1354)","v":6},{"$f":"IF('1. Order'!BE1354=\"\",\"\",'1. Order'!BE1354)","v":"None"},{"$f":"IF('1. Order'!BF1354=\"\",\"\",'1. Order'!BF1354)","v":"Parcel"},{"$f":"IF('1. Order'!BG1354=\"\",\"\",'1. Order'!BG1354)","v":"ZWO"}]
[{"$f":"IF('1. Order'!F1355=\"\",\"\",'1. Order'!F1355)","v":""},{"$f":"IF('1. Order'!G1355=\"\",\"\",'1. Order'!G1355)","v":""},{"$f":"IF('1. Order'!H1355=\"\",\"\",'1. Order'!H1355)","v":""},{"$f":"IF('1. Order'!I1355=\"\",\"\",'1. Order'!I1355)","v":""},{"$f":"IF('1. Order'!J1355=\"\",\"\",'1. Order'!J1355)","v":""},{"$f":"IF('1. Order'!K1355=\"\",\"\",'1. Order'!K1355)","v":""},{"$f":"IF('1. Order'!L1355=\"\",\"\",'1. Order'!L1355)","v":""},{"$f":"IF('1. Order'!M1355=\"\",\"\",'1. Order'!M1355)","v":""},{"$f":"IF('1. Order'!N1355=\"\",\"\",'1. Order'!N1355)","v":""},{"$f":"IF('1. Order'!O1355=\"\",\"\",'1. Order'!O1355)","v":{"$error":"#N/A"}},{"$f":"IF('1. Order'!P1355=\"\",\"\",'1. Order'!P1355)","v":{"$error":"#N/A"}},{"$f":"IF('1. Order'!Q1355=\"\",\"\",'1. Order'!Q1355)","v":""},{"$f":"IF('1. Order'!R1355=\"\",\"\",'1. Order'!R1355)","v":""},{"$f":"IF('1. Order'!S1355=\"\",\"\",'1. Order'!S1355)","v":""},{"$f":"IF('1. Order'!V1355=\"\",\"\",'1. Order'!V1355)","v":""},{"$f":"IF('1. Order'!W1355=\"\",\"\",'1. Order'!W1355)","v":""},{"$f":"IF('1. Order'!X1355=\"\",\"\",'1. Order'!X1355)","v":"EUR"},{"$f":"IF('1. Order'!Y1355=\"\",\"\",'1. Order'!Y1355)","v":""},{"$f":"IF('1. Order'!Z1355=\"\",\"\",'1. Order'!Z1355)","v":""},{"$f":"IF('1. Order'!AA1355=\"\",\"\",'1. Order'!AA1355)","v":""},null,{"$f":"IF('1. Order'!AS1355=\"\",\"\",'1. Order'!AS1355)","v":""},{"$f":"IF('1. Order'!AT1355=\"\",\"\",'1. Order'!AT1355)","v":""},null,null,null,null,null,null,null,{"$f":"IF('1. Order'!AX1355=\"\",\"\",'1. Order'!AX1355)","v":""},{"$f":"IF('1. Order'!AY1355=\"\",\"\",'1. Order'!AY1355)","v":""},{"$f":"IF('1. Order'!AZ1355=\"\",\"\",'1. Order'!AZ1355)","v":""},{"$f":"IF('1. Order'!BA1355=\"\",\"\",'1. Order'!BA1355)","v":""},{"$f":"IF('1. Order'!BC1355=\"\",\"\",'1. Order'!BC1355)","v":""},{"$f":"IF('1. Order'!BD1355=\"\",\"\",'1. Order'!BD1355)","v":6},{"$f":"IF('1. Order'!BE1355=\"\",\"\",'1. Order'!BE1355)","v":"None"},{"$f":"IF('1. Order'!BF1355=\"\",\"\",'1. Order'!BF1355)","v":"Parcel"},{"$f":"IF('1. Order'!BG1355=\"\",\"\",'1. Order'!BG1355)","v":"ZWO"}]
[{"$f":"IF('1. Order'!F1356=\"\",\"\",'1. Order'!F1356)","v":""},{"$f":"IF('1. Order'!G1356=\"\",\"\",'1. Order'!G1356)","v":""},{"$f":"IF('1. Order'!H1356=\"\",\"\",'1. Order'!H1356)","v":""},{"$f":"IF('1. Order'!I1356=\"\",\"\",'1. Order'!I1356)","v":""},{"$f":"IF('1. Order'!J1356=\"\",\"\",'1. Order'!J1356)","v":""},{"$f":"IF('1. Order'!K1356=\"\",\"\",'1. Order'!K1356)","v":""},{"$f":"IF('1. Order'!L1356=\"\",\"\",'1. Order'!L1356)","v":""},{"$f":"IF('1. Order'!M1356=\"\",\"\",'1. Order'!M1356)","v":""},{"$f":"IF('1. Order'!N1356=\"\",\"\",'1. Order'!N1356)","v":""},{"$f":"IF('1. Order'!O1356=\"\",\"\",'1. Order'!O1356)","v":{"$error":"#N/A"}},{"$f":"IF('1. Order'!P1356=\"\",\"\",'1. Order'!P1356)","v":{"$error":"#N/A"}},{"$f":"IF('1. Order'!Q1356=\"\",\"\",'1. Order'!Q1356)","v":""},{"$f":"IF('1. Order'!R1356=\"\",\"\",'1. Order'!R1356)","v":""},{"$f":"IF('1. Order'!S1356=\"\",\"\",'1. Order'!S1356)","v":""},{"$f":"IF('1. Order'!V1356=\"\",\"\",'1. Order'!V1356)","v":""},{"$f":"IF('1. Order'!W1356=\"\",\"\",'1. Order'!W1356)","v":""},{"$f":"IF('1. Order'!X1356=\"\",\"\",'1. Order'!X1356)","v":"EUR"},{"$f":"IF('1. Order'!Y1356=\"\",\"\",'1. Order'!Y1356)","v":""},{"$f":"IF('1. Order'!Z1356=\"\",\"\",'1. Order'!Z1356)","v":""},{"$f":"IF('1. Order'!AA1356=\"\",\"\",'1. Order'!AA1356)","v":""},null,{"$f":"IF('1. Order'!AS1356=\"\",\"\",'1. Order'!AS1356)","v":""},{"$f":"IF('1. Order'!AT1356=\"\",\"\",'1. Order'!AT1356)","v":""},null,null,null,null,null,null,null,{"$f":"IF('1. Order'!AX1356=\"\",\"\",'1. Order'!AX1356)","v":""},{"$f":"IF('1. Order'!AY1356=\"\",\"\",'1. Order'!AY1356)","v":""},{"$f":"IF('1. Order'!AZ1356=\"\",\"\",'1. Order'!AZ1356)","v":""},{"$f":"IF('1. Order'!BA1356=\"\",\"\",'1. Order'!BA1356)","v":""},{"$f":"IF('1. Order'!BC1356=\"\",\"\",'1. Order'!BC1356)","v":""},{"$f":"IF('1. Order'!BD1356=\"\",\"\",'1. Order'!BD1356)","v":6},{"$f":"IF('1. Order'!BE1356=\"\",\"\",'1. Order'!BE1356)","v":"None"},{"$f":"IF('1. Order'!BF1356=\"\",\"\",'1. Order'!BF1356)","v":"Parcel"},{"$f":"IF('1. Order'!BG1356=\"\",\"\",'1. Order'!BG1356)","v":"ZWO"}]
[{"$f":"IF('1. Order'!F1357=\"\",\"\",'1. Order'!F1357)","v":""},{"$f":"IF('1. Order'!G1357=\"\",\"\",'1. Order'!G1357)","v":""},{"$f":"IF('1. Order'!H1357=\"\",\"\",'1. Order'!H1357)","v":""},{"$f":"IF('1. Order'!I1357=\"\",\"\",'1. Order'!I1357)","v":""},{"$f":"IF('1. Order'!J1357=\"\",\"\",'1. Order'!J1357)","v":""},{"$f":"IF('1. Order'!K1357=\"\",\"\",'1. Order'!K1357)","v":""},{"$f":"IF('1. Order'!L1357=\"\",\"\",'1. Order'!L1357)","v":""},{"$f":"IF('1. Order'!M1357=\"\",\"\",'1. Order'!M1357)","v":""},{"$f":"IF('1. Order'!N1357=\"\",\"\",'1. Order'!N1357)","v":""},{"$f":"IF('1. Order'!O1357=\"\",\"\",'1. Order'!O1357)","v":{"$error":"#N/A"}},{"$f":"IF('1. Order'!P1357=\"\",\"\",'1. Order'!P1357)","v":{"$error":"#N/A"}},{"$f":"IF('1. Order'!Q1357=\"\",\"\",'1. Order'!Q1357)","v":""},{"$f":"IF('1. Order'!R1357=\"\",\"\",'1. Order'!R1357)","v":""},{"$f":"IF('1. Order'!S1357=\"\",\"\",'1. Order'!S1357)","v":""},{"$f":"IF('1. Order'!V1357=\"\",\"\",'1. Order'!V1357)","v":""},{"$f":"IF('1. Order'!W1357=\"\",\"\",'1. Order'!W1357)","v":""},{"$f":"IF('1. Order'!X1357=\"\",\"\",'1. Order'!X1357)","v":"EUR"},{"$f":"IF('1. Order'!Y1357=\"\",\"\",'1. Order'!Y1357)","v":""},{"$f":"IF('1. Order'!Z1357=\"\",\"\",'1. Order'!Z1357)","v":""},{"$f":"IF('1. Order'!AA1357=\"\",\"\",'1. Order'!AA1357)","v":""},null,{"$f":"IF('1. Order'!AS1357=\"\",\"\",'1. Order'!AS1357)","v":""},{"$f":"IF('1. Order'!AT1357=\"\",\"\",'1. Order'!AT1357)","v":""},null,null,null,null,null,null,null,{"$f":"IF('1. Order'!AX1357=\"\",\"\",'1. Order'!AX1357)","v":""},{"$f":"IF('1. Order'!AY1357=\"\",\"\",'1. Order'!AY1357)","v":""},{"$f":"IF('1. Order'!AZ1357=\"\",\"\",'1. Order'!AZ1357)","v":""},{"$f":"IF('1. Order'!BA1357=\"\",\"\",'1. Order'!BA1357)","v":""},{"$f":"IF('1. Order'!BC1357=\"\",\"\",'1. Order'!BC1357)","v":""},{"$f":"IF('1. Order'!BD1357=\"\",\"\",'1. Order'!BD1357)","v":6},{"$f":"IF('1. Order'!BE1357=\"\",\"\",'1. Order'!BE1357)","v":"None"},{"$f":"IF('1. Order'!BF1357=\"\",\"\",'1. Order'!BF1357)","v":"Parcel"},{"$f":"IF('1. Order'!BG1357=\"\",\"\",'1. Order'!BG1357)","v":"ZWO"}]
[{"$f":"IF('1. Order'!F1358=\"\",\"\",'1. Order'!F1358)","v":""},{"$f":"IF('1. Order'!G1358=\"\",\"\",'1. Order'!G1358)","v":""},{"$f":"IF('1. Order'!H1358=\"\",\"\",'1. Order'!H1358)","v":""},{"$f":"IF('1. Order'!I1358=\"\",\"\",'1. Order'!I1358)","v":""},{"$f":"IF('1. Order'!J1358=\"\",\"\",'1. Order'!J1358)","v":""},{"$f":"IF('1. Order'!K1358=\"\",\"\",'1. Order'!K1358)","v":""},{"$f":"IF('1. Order'!L1358=\"\",\"\",'1. Order'!L1358)","v":""},{"$f":"IF('1. Order'!M1358=\"\",\"\",'1. Order'!M1358)","v":""},{"$f":"IF('1. Order'!N1358=\"\",\"\",'1. Order'!N1358)","v":""},{"$f":"IF('1. Order'!O1358=\"\",\"\",'1. Order'!O1358)","v":{"$error":"#N/A"}},{"$f":"IF('1. Order'!P1358=\"\",\"\",'1. Order'!P1358)","v":{"$error":"#N/A"}},{"$f":"IF('1. Order'!Q1358=\"\",\"\",'1. Order'!Q1358)","v":""},{"$f":"IF('1. Order'!R1358=\"\",\"\",'1. Order'!R1358)","v":""},{"$f":"IF('1. Order'!S1358=\"\",\"\",'1. Order'!S1358)","v":""},{"$f":"IF('1. Order'!V1358=\"\",\"\",'1. Order'!V1358)","v":""},{"$f":"IF('1. Order'!W1358=\"\",\"\",'1. Order'!W1358)","v":""},{"$f":"IF('1. Order'!X1358=\"\",\"\",'1. Order'!X1358)","v":"EUR"},{"$f":"IF('1. Order'!Y1358=\"\",\"\",'1. Order'!Y1358)","v":""},{"$f":"IF('1. Order'!Z1358=\"\",\"\",'1. Order'!Z1358)","v":""},{"$f":"IF('1. Order'!AA1358=\"\",\"\",'1. Order'!AA1358)","v":""},null,{"$f":"IF('1. Order'!AS1358=\"\",\"\",'1. Order'!AS1358)","v":""},{"$f":"IF('1. Order'!AT1358=\"\",\"\",'1. Order'!AT1358)","v":""},null,null,null,null,null,null,null,{"$f":"IF('1. Order'!AX1358=\"\",\"\",'1. Order'!AX1358)","v":""},{"$f":"IF('1. Order'!AY1358=\"\",\"\",'1. Order'!AY1358)","v":""},{"$f":"IF('1. Order'!AZ1358=\"\",\"\",'1. Order'!AZ1358)","v":""},{"$f":"IF('1. Order'!BA1358=\"\",\"\",'1. Order'!BA1358)","v":""},{"$f":"IF('1. Order'!BC1358=\"\",\"\",'1. Order'!BC1358)","v":""},{"$f":"IF('1. Order'!BD1358=\"\",\"\",'1. Order'!BD1358)","v":6},{"$f":"IF('1. Order'!BE1358=\"\",\"\",'1. Order'!BE1358)","v":"None"},{"$f":"IF('1. Order'!BF1358=\"\",\"\",'1. Order'!BF1358)","v":"Parcel"},{"$f":"IF('1. Order'!BG1358=\"\",\"\",'1. Order'!BG1358)","v":"ZWO"}]
[{"$f":"IF('1. Order'!F1359=\"\",\"\",'1. Order'!F1359)","v":""},{"$f":"IF('1. Order'!G1359=\"\",\"\",'1. Order'!G1359)","v":""},{"$f":"IF('1. Order'!H1359=\"\",\"\",'1. Order'!H1359)","v":""},{"$f":"IF('1. Order'!I1359=\"\",\"\",'1. Order'!I1359)","v":""},{"$f":"IF('1. Order'!J1359=\"\",\"\",'1. Order'!J1359)","v":""},{"$f":"IF('1. Order'!K1359=\"\",\"\",'1. Order'!K1359)","v":""},{"$f":"IF('1. Order'!L1359=\"\",\"\",'1. Order'!L1359)","v":""},{"$f":"IF('1. Order'!M1359=\"\",\"\",'1. Order'!M1359)","v":""},{"$f":"IF('1. Order'!N1359=\"\",\"\",'1. Order'!N1359)","v":""},{"$f":"IF('1. Order'!O1359=\"\",\"\",'1. Order'!O1359)","v":{"$error":"#N/A"}},{"$f":"IF('1. Order'!P1359=\"\",\"\",'1. Order'!P1359)","v":{"$error":"#N/A"}},{"$f":"IF('1. Order'!Q1359=\"\",\"\",'1. Order'!Q1359)","v":""},{"$f":"IF('1. Order'!R1359=\"\",\"\",'1. Order'!R1359)","v":""},{"$f":"IF('1. Order'!S1359=\"\",\"\",'1. Order'!S1359)","v":""},{"$f":"IF('1. Order'!V1359=\"\",\"\",'1. Order'!V1359)","v":""},{"$f":"IF('1. Order'!W1359=\"\",\"\",'1. Order'!W1359)","v":""},{"$f":"IF('1. Order'!X1359=\"\",\"\",'1. Order'!X1359)","v":"EUR"},{"$f":"IF('1. Order'!Y1359=\"\",\"\",'1. Order'!Y1359)","v":""},{"$f":"IF('1. Order'!Z1359=\"\",\"\",'1. Order'!Z1359)","v":""},{"$f":"IF('1. Order'!AA1359=\"\",\"\",'1. Order'!AA1359)","v":""},null,{"$f":"IF('1. Order'!AS1359=\"\",\"\",'1. Order'!AS1359)","v":""},{"$f":"IF('1. Order'!AT1359=\"\",\"\",'1. Order'!AT1359)","v":""},null,null,null,null,null,null,null,{"$f":"IF('1. Order'!AX1359=\"\",\"\",'1. Order'!AX1359)","v":""},{"$f":"IF('1. Order'!AY1359=\"\",\"\",'1. Order'!AY1359)","v":""},{"$f":"IF('1. Order'!AZ1359=\"\",\"\",'1. Order'!AZ1359)","v":""},{"$f":"IF('1. Order'!BA1359=\"\",\"\",'1. Order'!BA1359)","v":""},{"$f":"IF('1. Order'!BC1359=\"\",\"\",'1. Order'!BC1359)","v":""},{"$f":"IF('1. Order'!BD1359=\"\",\"\",'1. Order'!BD1359)","v":6},{"$f":"IF('1. Order'!BE1359=\"\",\"\",'1. Order'!BE1359)","v":"None"},{"$f":"IF('1. Order'!BF1359=\"\",\"\",'1. Order'!BF1359)","v":"Parcel"},{"$f":"IF('1. Order'!BG1359=\"\",\"\",'1. Order'!BG1359)","v":"ZWO"}]
[{"$f":"IF('1. Order'!F1360=\"\",\"\",'1. Order'!F1360)","v":""},{"$f":"IF('1. Order'!G1360=\"\",\"\",'1. Order'!G1360)","v":""},{"$f":"IF('1. Order'!H1360=\"\",\"\",'1. Order'!H1360)","v":""},{"$f":"IF('1. Order'!I1360=\"\",\"\",'1. Order'!I1360)","v":""},{"$f":"IF('1. Order'!J1360=\"\",\"\",'1. Order'!J1360)","v":""},{"$f":"IF('1. Order'!K1360=\"\",\"\",'1. Order'!K1360)","v":""},{"$f":"IF('1. Order'!L1360=\"\",\"\",'1. Order'!L1360)","v":""},{"$f":"IF('1. Order'!M1360=\"\",\"\",'1. Order'!M1360)","v":""},{"$f":"IF('1. Order'!N1360=\"\",\"\",'1. Order'!N1360)","v":""},{"$f":"IF('1. Order'!O1360=\"\",\"\",'1. Order'!O1360)","v":{"$error":"#N/A"}},{"$f":"IF('1. Order'!P1360=\"\",\"\",'1. Order'!P1360)","v":{"$error":"#N/A"}},{"$f":"IF('1. Order'!Q1360=\"\",\"\",'1. Order'!Q1360)","v":""},{"$f":"IF('1. Order'!R1360=\"\",\"\",'1. Order'!R1360)","v":""},{"$f":"IF('1. Order'!S1360=\"\",\"\",'1. Order'!S1360)","v":""},{"$f":"IF('1. Order'!V1360=\"\",\"\",'1. Order'!V1360)","v":""},{"$f":"IF('1. Order'!W1360=\"\",\"\",'1. Order'!W1360)","v":""},{"$f":"IF('1. Order'!X1360=\"\",\"\",'1. Order'!X1360)","v":"EUR"},{"$f":"IF('1. Order'!Y1360=\"\",\"\",'1. Order'!Y1360)","v":""},{"$f":"IF('1. Order'!Z1360=\"\",\"\",'1. Order'!Z1360)","v":""},{"$f":"IF('1. Order'!AA1360=\"\",\"\",'1. Order'!AA1360)","v":""},null,{"$f":"IF('1. Order'!AS1360=\"\",\"\",'1. Order'!AS1360)","v":""},{"$f":"IF('1. Order'!AT1360=\"\",\"\",'1. Order'!AT1360)","v":""},null,null,null,null,null,null,null,{"$f":"IF('1. Order'!AX1360=\"\",\"\",'1. Order'!AX1360)","v":""},{"$f":"IF('1. Order'!AY1360=\"\",\"\",'1. Order'!AY1360)","v":""},{"$f":"IF('1. Order'!AZ1360=\"\",\"\",'1. Order'!AZ1360)","v":""},{"$f":"IF('1. Order'!BA1360=\"\",\"\",'1. Order'!BA1360)","v":""},{"$f":"IF('1. Order'!BC1360=\"\",\"\",'1. Order'!BC1360)","v":""},{"$f":"IF('1. Order'!BD1360=\"\",\"\",'1. Order'!BD1360)","v":6},{"$f":"IF('1. Order'!BE1360=\"\",\"\",'1. Order'!BE1360)","v":"None"},{"$f":"IF('1. Order'!BF1360=\"\",\"\",'1. Order'!BF1360)","v":"Parcel"},{"$f":"IF('1. Order'!BG1360=\"\",\"\",'1. Order'!BG1360)","v":"ZWO"}]
[{"$f":"IF('1. Order'!F1361=\"\",\"\",'1. Order'!F1361)","v":""},{"$f":"IF('1. Order'!G1361=\"\",\"\",'1. Order'!G1361)","v":""},{"$f":"IF('1. Order'!H1361=\"\",\"\",'1. Order'!H1361)","v":""},{"$f":"IF('1. Order'!I1361=\"\",\"\",'1. Order'!I1361)","v":""},{"$f":"IF('1. Order'!J1361=\"\",\"\",'1. Order'!J1361)","v":""},{"$f":"IF('1. Order'!K1361=\"\",\"\",'1. Order'!K1361)","v":""},{"$f":"IF('1. Order'!L1361=\"\",\"\",'1. Order'!L1361)","v":""},{"$f":"IF('1. Order'!M1361=\"\",\"\",'1. Order'!M1361)","v":""},{"$f":"IF('1. Order'!N1361=\"\",\"\",'1. Order'!N1361)","v":""},{"$f":"IF('1. Order'!O1361=\"\",\"\",'1. Order'!O1361)","v":{"$error":"#N/A"}},{"$f":"IF('1. Order'!P1361=\"\",\"\",'1. Order'!P1361)","v":{"$error":"#N/A"}},{"$f":"IF('1. Order'!Q1361=\"\",\"\",'1. Order'!Q1361)","v":""},{"$f":"IF('1. Order'!R1361=\"\",\"\",'1. Order'!R1361)","v":""},{"$f":"IF('1. Order'!S1361=\"\",\"\",'1. Order'!S1361)","v":""},{"$f":"IF('1. Order'!V1361=\"\",\"\",'1. Order'!V1361)","v":""},{"$f":"IF('1. Order'!W1361=\"\",\"\",'1. Order'!W1361)","v":""},{"$f":"IF('1. Order'!X1361=\"\",\"\",'1. Order'!X1361)","v":"EUR"},{"$f":"IF('1. Order'!Y1361=\"\",\"\",'1. Order'!Y1361)","v":""},{"$f":"IF('1. Order'!Z1361=\"\",\"\",'1. Order'!Z1361)","v":""},{"$f":"IF('1. Order'!AA1361=\"\",\"\",'1. Order'!AA1361)","v":""},null,{"$f":"IF('1. Order'!AS1361=\"\",\"\",'1. Order'!AS1361)","v":""},{"$f":"IF('1. Order'!AT1361=\"\",\"\",'1. Order'!AT1361)","v":""},null,null,null,null,null,null,null,{"$f":"IF('1. Order'!AX1361=\"\",\"\",'1. Order'!AX1361)","v":""},{"$f":"IF('1. Order'!AY1361=\"\",\"\",'1. Order'!AY1361)","v":""},{"$f":"IF('1. Order'!AZ1361=\"\",\"\",'1. Order'!AZ1361)","v":""},{"$f":"IF('1. Order'!BA1361=\"\",\"\",'1. Order'!BA1361)","v":""},{"$f":"IF('1. Order'!BC1361=\"\",\"\",'1. Order'!BC1361)","v":""},{"$f":"IF('1. Order'!BD1361=\"\",\"\",'1. Order'!BD1361)","v":6},{"$f":"IF('1. Order'!BE1361=\"\",\"\",'1. Order'!BE1361)","v":"None"},{"$f":"IF('1. Order'!BF1361=\"\",\"\",'1. Order'!BF1361)","v":"Parcel"},{"$f":"IF('1. Order'!BG1361=\"\",\"\",'1. Order'!BG1361)","v":"ZWO"}]
[{"$f":"IF('1. Order'!F1362=\"\",\"\",'1. Order'!F1362)","v":""},{"$f":"IF('1. Order'!G1362=\"\",\"\",'1. Order'!G1362)","v":""},{"$f":"IF('1. Order'!H1362=\"\",\"\",'1. Order'!H1362)","v":""},{"$f":"IF('1. Order'!I1362=\"\",\"\",'1. Order'!I1362)","v":""},{"$f":"IF('1. Order'!J1362=\"\",\"\",'1. Order'!J1362)","v":""},{"$f":"IF('1. Order'!K1362=\"\",\"\",'1. Order'!K1362)","v":""},{"$f":"IF('1. Order'!L1362=\"\",\"\",'1. Order'!L1362)","v":""},{"$f":"IF('1. Order'!M1362=\"\",\"\",'1. Order'!M1362)","v":""},{"$f":"IF('1. Order'!N1362=\"\",\"\",'1. Order'!N1362)","v":""},{"$f":"IF('1. Order'!O1362=\"\",\"\",'1. Order'!O1362)","v":{"$error":"#N/A"}},{"$f":"IF('1. Order'!P1362=\"\",\"\",'1. Order'!P1362)","v":{"$error":"#N/A"}},{"$f":"IF('1. Order'!Q1362=\"\",\"\",'1. Order'!Q1362)","v":""},{"$f":"IF('1. Order'!R1362=\"\",\"\",'1. Order'!R1362)","v":""},{"$f":"IF('1. Order'!S1362=\"\",\"\",'1. Order'!S1362)","v":""},{"$f":"IF('1. Order'!V1362=\"\",\"\",'1. Order'!V1362)","v":""},{"$f":"IF('1. Order'!W1362=\"\",\"\",'1. Order'!W1362)","v":""},{"$f":"IF('1. Order'!X1362=\"\",\"\",'1. Order'!X1362)","v":"EUR"},{"$f":"IF('1. Order'!Y1362=\"\",\"\",'1. Order'!Y1362)","v":""},{"$f":"IF('1. Order'!Z1362=\"\",\"\",'1. Order'!Z1362)","v":""},{"$f":"IF('1. Order'!AA1362=\"\",\"\",'1. Order'!AA1362)","v":""},null,{"$f":"IF('1. Order'!AS1362=\"\",\"\",'1. Order'!AS1362)","v":""},{"$f":"IF('1. Order'!AT1362=\"\",\"\",'1. Order'!AT1362)","v":""},null,null,null,null,null,null,null,{"$f":"IF('1. Order'!AX1362=\"\",\"\",'1. Order'!AX1362)","v":""},{"$f":"IF('1. Order'!AY1362=\"\",\"\",'1. Order'!AY1362)","v":""},{"$f":"IF('1. Order'!AZ1362=\"\",\"\",'1. Order'!AZ1362)","v":""},{"$f":"IF('1. Order'!BA1362=\"\",\"\",'1. Order'!BA1362)","v":""},{"$f":"IF('1. Order'!BC1362=\"\",\"\",'1. Order'!BC1362)","v":""},{"$f":"IF('1. Order'!BD1362=\"\",\"\",'1. Order'!BD1362)","v":6},{"$f":"IF('1. Order'!BE1362=\"\",\"\",'1. Order'!BE1362)","v":"None"},{"$f":"IF('1. Order'!BF1362=\"\",\"\",'1. Order'!BF1362)","v":"Parcel"},{"$f":"IF('1. Order'!BG1362=\"\",\"\",'1. Order'!BG1362)","v":"ZWO"}]
[{"$f":"IF('1. Order'!F1363=\"\",\"\",'1. Order'!F1363)","v":""},{"$f":"IF('1. Order'!G1363=\"\",\"\",'1. Order'!G1363)","v":""},{"$f":"IF('1. Order'!H1363=\"\",\"\",'1. Order'!H1363)","v":""},{"$f":"IF('1. Order'!I1363=\"\",\"\",'1. Order'!I1363)","v":""},{"$f":"IF('1. Order'!J1363=\"\",\"\",'1. Order'!J1363)","v":""},{"$f":"IF('1. Order'!K1363=\"\",\"\",'1. Order'!K1363)","v":""},{"$f":"IF('1. Order'!L1363=\"\",\"\",'1. Order'!L1363)","v":""},{"$f":"IF('1. Order'!M1363=\"\",\"\",'1. Order'!M1363)","v":""},{"$f":"IF('1. Order'!N1363=\"\",\"\",'1. Order'!N1363)","v":""},{"$f":"IF('1. Order'!O1363=\"\",\"\",'1. Order'!O1363)","v":{"$error":"#N/A"}},{"$f":"IF('1. Order'!P1363=\"\",\"\",'1. Order'!P1363)","v":{"$error":"#N/A"}},{"$f":"IF('1. Order'!Q1363=\"\",\"\",'1. Order'!Q1363)","v":""},{"$f":"IF('1. Order'!R1363=\"\",\"\",'1. Order'!R1363)","v":""},{"$f":"IF('1. Order'!S1363=\"\",\"\",'1. Order'!S1363)","v":""},{"$f":"IF('1. Order'!V1363=\"\",\"\",'1. Order'!V1363)","v":""},{"$f":"IF('1. Order'!W1363=\"\",\"\",'1. Order'!W1363)","v":""},{"$f":"IF('1. Order'!X1363=\"\",\"\",'1. Order'!X1363)","v":"EUR"},{"$f":"IF('1. Order'!Y1363=\"\",\"\",'1. Order'!Y1363)","v":""},{"$f":"IF('1. Order'!Z1363=\"\",\"\",'1. Order'!Z1363)","v":""},{"$f":"IF('1. Order'!AA1363=\"\",\"\",'1. Order'!AA1363)","v":""},null,{"$f":"IF('1. Order'!AS1363=\"\",\"\",'1. Order'!AS1363)","v":""},{"$f":"IF('1. Order'!AT1363=\"\",\"\",'1. Order'!AT1363)","v":""},null,null,null,null,null,null,null,{"$f":"IF('1. Order'!AX1363=\"\",\"\",'1. Order'!AX1363)","v":""},{"$f":"IF('1. Order'!AY1363=\"\",\"\",'1. Order'!AY1363)","v":""},{"$f":"IF('1. Order'!AZ1363=\"\",\"\",'1. Order'!AZ1363)","v":""},{"$f":"IF('1. Order'!BA1363=\"\",\"\",'1. Order'!BA1363)","v":""},{"$f":"IF('1. Order'!BC1363=\"\",\"\",'1. Order'!BC1363)","v":""},{"$f":"IF('1. Order'!BD1363=\"\",\"\",'1. Order'!BD1363)","v":6},{"$f":"IF('1. Order'!BE1363=\"\",\"\",'1. Order'!BE1363)","v":"None"},{"$f":"IF('1. Order'!BF1363=\"\",\"\",'1. Order'!BF1363)","v":"Parcel"},{"$f":"IF('1. Order'!BG1363=\"\",\"\",'1. Order'!BG1363)","v":"ZWO"}]
[{"$f":"IF('1. Order'!F1364=\"\",\"\",'1. Order'!F1364)","v":""},{"$f":"IF('1. Order'!G1364=\"\",\"\",'1. Order'!G1364)","v":""},{"$f":"IF('1. Order'!H1364=\"\",\"\",'1. Order'!H1364)","v":""},{"$f":"IF('1. Order'!I1364=\"\",\"\",'1. Order'!I1364)","v":""},{"$f":"IF('1. Order'!J1364=\"\",\"\",'1. Order'!J1364)","v":""},{"$f":"IF('1. Order'!K1364=\"\",\"\",'1. Order'!K1364)","v":""},{"$f":"IF('1. Order'!L1364=\"\",\"\",'1. Order'!L1364)","v":""},{"$f":"IF('1. Order'!M1364=\"\",\"\",'1. Order'!M1364)","v":""},{"$f":"IF('1. Order'!N1364=\"\",\"\",'1. Order'!N1364)","v":""},{"$f":"IF('1. Order'!O1364=\"\",\"\",'1. Order'!O1364)","v":{"$error":"#N/A"}},{"$f":"IF('1. Order'!P1364=\"\",\"\",'1. Order'!P1364)","v":{"$error":"#N/A"}},{"$f":"IF('1. Order'!Q1364=\"\",\"\",'1. Order'!Q1364)","v":""},{"$f":"IF('1. Order'!R1364=\"\",\"\",'1. Order'!R1364)","v":""},{"$f":"IF('1. Order'!S1364=\"\",\"\",'1. Order'!S1364)","v":""},{"$f":"IF('1. Order'!V1364=\"\",\"\",'1. Order'!V1364)","v":""},{"$f":"IF('1. Order'!W1364=\"\",\"\",'1. Order'!W1364)","v":""},{"$f":"IF('1. Order'!X1364=\"\",\"\",'1. Order'!X1364)","v":"EUR"},{"$f":"IF('1. Order'!Y1364=\"\",\"\",'1. Order'!Y1364)","v":""},{"$f":"IF('1. Order'!Z1364=\"\",\"\",'1. Order'!Z1364)","v":""},{"$f":"IF('1. Order'!AA1364=\"\",\"\",'1. Order'!AA1364)","v":""},null,{"$f":"IF('1. Order'!AS1364=\"\",\"\",'1. Order'!AS1364)","v":""},{"$f":"IF('1. Order'!AT1364=\"\",\"\",'1. Order'!AT1364)","v":""},null,null,null,null,null,null,null,{"$f":"IF('1. Order'!AX1364=\"\",\"\",'1. Order'!AX1364)","v":""},{"$f":"IF('1. Order'!AY1364=\"\",\"\",'1. Order'!AY1364)","v":""},{"$f":"IF('1. Order'!AZ1364=\"\",\"\",'1. Order'!AZ1364)","v":""},{"$f":"IF('1. Order'!BA1364=\"\",\"\",'1. Order'!BA1364)","v":""},{"$f":"IF('1. Order'!BC1364=\"\",\"\",'1. Order'!BC1364)","v":""},{"$f":"IF('1. Order'!BD1364=\"\",\"\",'1. Order'!BD1364)","v":6},{"$f":"IF('1. Order'!BE1364=\"\",\"\",'1. Order'!BE1364)","v":"None"},{"$f":"IF('1. Order'!BF1364=\"\",\"\",'1. Order'!BF1364)","v":"Parcel"},{"$f":"IF('1. Order'!BG1364=\"\",\"\",'1. Order'!BG1364)","v":"ZWO"}]
[{"$f":"IF('1. Order'!F1365=\"\",\"\",'1. Order'!F1365)","v":""},{"$f":"IF('1. Order'!G1365=\"\",\"\",'1. Order'!G1365)","v":""},{"$f":"IF('1. Order'!H1365=\"\",\"\",'1. Order'!H1365)","v":""},{"$f":"IF('1. Order'!I1365=\"\",\"\",'1. Order'!I1365)","v":""},{"$f":"IF('1. Order'!J1365=\"\",\"\",'1. Order'!J1365)","v":""},{"$f":"IF('1. Order'!K1365=\"\",\"\",'1. Order'!K1365)","v":""},{"$f":"IF('1. Order'!L1365=\"\",\"\",'1. Order'!L1365)","v":""},{"$f":"IF('1. Order'!M1365=\"\",\"\",'1. Order'!M1365)","v":""},{"$f":"IF('1. Order'!N1365=\"\",\"\",'1. Order'!N1365)","v":""},{"$f":"IF('1. Order'!O1365=\"\",\"\",'1. Order'!O1365)","v":{"$error":"#N/A"}},{"$f":"IF('1. Order'!P1365=\"\",\"\",'1. Order'!P1365)","v":{"$error":"#N/A"}},{"$f":"IF('1. Order'!Q1365=\"\",\"\",'1. Order'!Q1365)","v":""},{"$f":"IF('1. Order'!R1365=\"\",\"\",'1. Order'!R1365)","v":""},{"$f":"IF('1. Order'!S1365=\"\",\"\",'1. Order'!S1365)","v":""},{"$f":"IF('1. Order'!V1365=\"\",\"\",'1. Order'!V1365)","v":""},{"$f":"IF('1. Order'!W1365=\"\",\"\",'1. Order'!W1365)","v":""},{"$f":"IF('1. Order'!X1365=\"\",\"\",'1. Order'!X1365)","v":"EUR"},{"$f":"IF('1. Order'!Y1365=\"\",\"\",'1. Order'!Y1365)","v":""},{"$f":"IF('1. Order'!Z1365=\"\",\"\",'1. Order'!Z1365)","v":""},{"$f":"IF('1. Order'!AA1365=\"\",\"\",'1. Order'!AA1365)","v":""},null,{"$f":"IF('1. Order'!AS1365=\"\",\"\",'1. Order'!AS1365)","v":""},{"$f":"IF('1. Order'!AT1365=\"\",\"\",'1. Order'!AT1365)","v":""},null,null,null,null,null,null,null,{"$f":"IF('1. Order'!AX1365=\"\",\"\",'1. Order'!AX1365)","v":""},{"$f":"IF('1. Order'!AY1365=\"\",\"\",'1. Order'!AY1365)","v":""},{"$f":"IF('1. Order'!AZ1365=\"\",\"\",'1. Order'!AZ1365)","v":""},{"$f":"IF('1. Order'!BA1365=\"\",\"\",'1. Order'!BA1365)","v":""},{"$f":"IF('1. Order'!BC1365=\"\",\"\",'1. Order'!BC1365)","v":""},{"$f":"IF('1. Order'!BD1365=\"\",\"\",'1. Order'!BD1365)","v":6},{"$f":"IF('1. Order'!BE1365=\"\",\"\",'1. Order'!BE1365)","v":"None"},{"$f":"IF('1. Order'!BF1365=\"\",\"\",'1. Order'!BF1365)","v":"Parcel"},{"$f":"IF('1. Order'!BG1365=\"\",\"\",'1. Order'!BG1365)","v":"ZWO"}]
[{"$f":"IF('1. Order'!F1366=\"\",\"\",'1. Order'!F1366)","v":""},{"$f":"IF('1. Order'!G1366=\"\",\"\",'1. Order'!G1366)","v":""},{"$f":"IF('1. Order'!H1366=\"\",\"\",'1. Order'!H1366)","v":""},{"$f":"IF('1. Order'!I1366=\"\",\"\",'1. Order'!I1366)","v":""},{"$f":"IF('1. Order'!J1366=\"\",\"\",'1. Order'!J1366)","v":""},{"$f":"IF('1. Order'!K1366=\"\",\"\",'1. Order'!K1366)","v":""},{"$f":"IF('1. Order'!L1366=\"\",\"\",'1. Order'!L1366)","v":""},{"$f":"IF('1. Order'!M1366=\"\",\"\",'1. Order'!M1366)","v":""},{"$f":"IF('1. Order'!N1366=\"\",\"\",'1. Order'!N1366)","v":""},{"$f":"IF('1. Order'!O1366=\"\",\"\",'1. Order'!O1366)","v":{"$error":"#N/A"}},{"$f":"IF('1. Order'!P1366=\"\",\"\",'1. Order'!P1366)","v":{"$error":"#N/A"}},{"$f":"IF('1. Order'!Q1366=\"\",\"\",'1. Order'!Q1366)","v":""},{"$f":"IF('1. Order'!R1366=\"\",\"\",'1. Order'!R1366)","v":""},{"$f":"IF('1. Order'!S1366=\"\",\"\",'1. Order'!S1366)","v":""},{"$f":"IF('1. Order'!V1366=\"\",\"\",'1. Order'!V1366)","v":""},{"$f":"IF('1. Order'!W1366=\"\",\"\",'1. Order'!W1366)","v":""},{"$f":"IF('1. Order'!X1366=\"\",\"\",'1. Order'!X1366)","v":"EUR"},{"$f":"IF('1. Order'!Y1366=\"\",\"\",'1. Order'!Y1366)","v":""},{"$f":"IF('1. Order'!Z1366=\"\",\"\",'1. Order'!Z1366)","v":""},{"$f":"IF('1. Order'!AA1366=\"\",\"\",'1. Order'!AA1366)","v":""},null,{"$f":"IF('1. Order'!AS1366=\"\",\"\",'1. Order'!AS1366)","v":""},{"$f":"IF('1. Order'!AT1366=\"\",\"\",'1. Order'!AT1366)","v":""},null,null,null,null,null,null,null,{"$f":"IF('1. Order'!AX1366=\"\",\"\",'1. Order'!AX1366)","v":""},{"$f":"IF('1. Order'!AY1366=\"\",\"\",'1. Order'!AY1366)","v":""},{"$f":"IF('1. Order'!AZ1366=\"\",\"\",'1. Order'!AZ1366)","v":""},{"$f":"IF('1. Order'!BA1366=\"\",\"\",'1. Order'!BA1366)","v":""},{"$f":"IF('1. Order'!BC1366=\"\",\"\",'1. Order'!BC1366)","v":""},{"$f":"IF('1. Order'!BD1366=\"\",\"\",'1. Order'!BD1366)","v":6},{"$f":"IF('1. Order'!BE1366=\"\",\"\",'1. Order'!BE1366)","v":"None"},{"$f":"IF('1. Order'!BF1366=\"\",\"\",'1. Order'!BF1366)","v":"Parcel"},{"$f":"IF('1. Order'!BG1366=\"\",\"\",'1. Order'!BG1366)","v":"ZWO"}]
[{"$f":"IF('1. Order'!F1367=\"\",\"\",'1. Order'!F1367)","v":""},{"$f":"IF('1. Order'!G1367=\"\",\"\",'1. Order'!G1367)","v":""},{"$f":"IF('1. Order'!H1367=\"\",\"\",'1. Order'!H1367)","v":""},{"$f":"IF('1. Order'!I1367=\"\",\"\",'1. Order'!I1367)","v":""},{"$f":"IF('1. Order'!J1367=\"\",\"\",'1. Order'!J1367)","v":""},{"$f":"IF('1. Order'!K1367=\"\",\"\",'1. Order'!K1367)","v":""},{"$f":"IF('1. Order'!L1367=\"\",\"\",'1. Order'!L1367)","v":""},{"$f":"IF('1. Order'!M1367=\"\",\"\",'1. Order'!M1367)","v":""},{"$f":"IF('1. Order'!N1367=\"\",\"\",'1. Order'!N1367)","v":""},{"$f":"IF('1. Order'!O1367=\"\",\"\",'1. Order'!O1367)","v":{"$error":"#N/A"}},{"$f":"IF('1. Order'!P1367=\"\",\"\",'1. Order'!P1367)","v":{"$error":"#N/A"}},{"$f":"IF('1. Order'!Q1367=\"\",\"\",'1. Order'!Q1367)","v":""},{"$f":"IF('1. Order'!R1367=\"\",\"\",'1. Order'!R1367)","v":""},{"$f":"IF('1. Order'!S1367=\"\",\"\",'1. Order'!S1367)","v":""},{"$f":"IF('1. Order'!V1367=\"\",\"\",'1. Order'!V1367)","v":""},{"$f":"IF('1. Order'!W1367=\"\",\"\",'1. Order'!W1367)","v":""},{"$f":"IF('1. Order'!X1367=\"\",\"\",'1. Order'!X1367)","v":"EUR"},{"$f":"IF('1. Order'!Y1367=\"\",\"\",'1. Order'!Y1367)","v":""},{"$f":"IF('1. Order'!Z1367=\"\",\"\",'1. Order'!Z1367)","v":""},{"$f":"IF('1. Order'!AA1367=\"\",\"\",'1. Order'!AA1367)","v":""},null,{"$f":"IF('1. Order'!AS1367=\"\",\"\",'1. Order'!AS1367)","v":""},{"$f":"IF('1. Order'!AT1367=\"\",\"\",'1. Order'!AT1367)","v":""},null,null,null,null,null,null,null,{"$f":"IF('1. Order'!AX1367=\"\",\"\",'1. Order'!AX1367)","v":""},{"$f":"IF('1. Order'!AY1367=\"\",\"\",'1. Order'!AY1367)","v":""},{"$f":"IF('1. Order'!AZ1367=\"\",\"\",'1. Order'!AZ1367)","v":""},{"$f":"IF('1. Order'!BA1367=\"\",\"\",'1. Order'!BA1367)","v":""},{"$f":"IF('1. Order'!BC1367=\"\",\"\",'1. Order'!BC1367)","v":""},{"$f":"IF('1. Order'!BD1367=\"\",\"\",'1. Order'!BD1367)","v":6},{"$f":"IF('1. Order'!BE1367=\"\",\"\",'1. Order'!BE1367)","v":"None"},{"$f":"IF('1. Order'!BF1367=\"\",\"\",'1. Order'!BF1367)","v":"Parcel"},{"$f":"IF('1. Order'!BG1367=\"\",\"\",'1. Order'!BG1367)","v":"ZWO"}]
[{"$f":"IF('1. Order'!F1368=\"\",\"\",'1. Order'!F1368)","v":""},{"$f":"IF('1. Order'!G1368=\"\",\"\",'1. Order'!G1368)","v":""},{"$f":"IF('1. Order'!H1368=\"\",\"\",'1. Order'!H1368)","v":""},{"$f":"IF('1. Order'!I1368=\"\",\"\",'1. Order'!I1368)","v":""},{"$f":"IF('1. Order'!J1368=\"\",\"\",'1. Order'!J1368)","v":""},{"$f":"IF('1. Order'!K1368=\"\",\"\",'1. Order'!K1368)","v":""},{"$f":"IF('1. Order'!L1368=\"\",\"\",'1. Order'!L1368)","v":""},{"$f":"IF('1. Order'!M1368=\"\",\"\",'1. Order'!M1368)","v":""},{"$f":"IF('1. Order'!N1368=\"\",\"\",'1. Order'!N1368)","v":""},{"$f":"IF('1. Order'!O1368=\"\",\"\",'1. Order'!O1368)","v":{"$error":"#N/A"}},{"$f":"IF('1. Order'!P1368=\"\",\"\",'1. Order'!P1368)","v":{"$error":"#N/A"}},{"$f":"IF('1. Order'!Q1368=\"\",\"\",'1. Order'!Q1368)","v":""},{"$f":"IF('1. Order'!R1368=\"\",\"\",'1. Order'!R1368)","v":""},{"$f":"IF('1. Order'!S1368=\"\",\"\",'1. Order'!S1368)","v":""},{"$f":"IF('1. Order'!V1368=\"\",\"\",'1. Order'!V1368)","v":""},{"$f":"IF('1. Order'!W1368=\"\",\"\",'1. Order'!W1368)","v":""},{"$f":"IF('1. Order'!X1368=\"\",\"\",'1. Order'!X1368)","v":"EUR"},{"$f":"IF('1. Order'!Y1368=\"\",\"\",'1. Order'!Y1368)","v":""},{"$f":"IF('1. Order'!Z1368=\"\",\"\",'1. Order'!Z1368)","v":""},{"$f":"IF('1. Order'!AA1368=\"\",\"\",'1. Order'!AA1368)","v":""},null,{"$f":"IF('1. Order'!AS1368=\"\",\"\",'1. Order'!AS1368)","v":""},{"$f":"IF('1. Order'!AT1368=\"\",\"\",'1. Order'!AT1368)","v":""},null,null,null,null,null,null,null,{"$f":"IF('1. Order'!AX1368=\"\",\"\",'1. Order'!AX1368)","v":""},{"$f":"IF('1. Order'!AY1368=\"\",\"\",'1. Order'!AY1368)","v":""},{"$f":"IF('1. Order'!AZ1368=\"\",\"\",'1. Order'!AZ1368)","v":""},{"$f":"IF('1. Order'!BA1368=\"\",\"\",'1. Order'!BA1368)","v":""},{"$f":"IF('1. Order'!BC1368=\"\",\"\",'1. Order'!BC1368)","v":""},{"$f":"IF('1. Order'!BD1368=\"\",\"\",'1. Order'!BD1368)","v":6},{"$f":"IF('1. Order'!BE1368=\"\",\"\",'1. Order'!BE1368)","v":"None"},{"$f":"IF('1. Order'!BF1368=\"\",\"\",'1. Order'!BF1368)","v":"Parcel"},{"$f":"IF('1. Order'!BG1368=\"\",\"\",'1. Order'!BG1368)","v":"ZWO"}]
[{"$f":"IF('1. Order'!F1369=\"\",\"\",'1. Order'!F1369)","v":""},{"$f":"IF('1. Order'!G1369=\"\",\"\",'1. Order'!G1369)","v":""},{"$f":"IF('1. Order'!H1369=\"\",\"\",'1. Order'!H1369)","v":""},{"$f":"IF('1. Order'!I1369=\"\",\"\",'1. Order'!I1369)","v":""},{"$f":"IF('1. Order'!J1369=\"\",\"\",'1. Order'!J1369)","v":""},{"$f":"IF('1. Order'!K1369=\"\",\"\",'1. Order'!K1369)","v":""},{"$f":"IF('1. Order'!L1369=\"\",\"\",'1. Order'!L1369)","v":""},{"$f":"IF('1. Order'!M1369=\"\",\"\",'1. Order'!M1369)","v":""},{"$f":"IF('1. Order'!N1369=\"\",\"\",'1. Order'!N1369)","v":""},{"$f":"IF('1. Order'!O1369=\"\",\"\",'1. Order'!O1369)","v":{"$error":"#N/A"}},{"$f":"IF('1. Order'!P1369=\"\",\"\",'1. Order'!P1369)","v":{"$error":"#N/A"}},{"$f":"IF('1. Order'!Q1369=\"\",\"\",'1. Order'!Q1369)","v":""},{"$f":"IF('1. Order'!R1369=\"\",\"\",'1. Order'!R1369)","v":""},{"$f":"IF('1. Order'!S1369=\"\",\"\",'1. Order'!S1369)","v":""},{"$f":"IF('1. Order'!V1369=\"\",\"\",'1. Order'!V1369)","v":""},{"$f":"IF('1. Order'!W1369=\"\",\"\",'1. Order'!W1369)","v":""},{"$f":"IF('1. Order'!X1369=\"\",\"\",'1. Order'!X1369)","v":"EUR"},{"$f":"IF('1. Order'!Y1369=\"\",\"\",'1. Order'!Y1369)","v":""},{"$f":"IF('1. Order'!Z1369=\"\",\"\",'1. Order'!Z1369)","v":""},{"$f":"IF('1. Order'!AA1369=\"\",\"\",'1. Order'!AA1369)","v":""},null,{"$f":"IF('1. Order'!AS1369=\"\",\"\",'1. Order'!AS1369)","v":""},{"$f":"IF('1. Order'!AT1369=\"\",\"\",'1. Order'!AT1369)","v":""},null,null,null,null,null,null,null,{"$f":"IF('1. Order'!AX1369=\"\",\"\",'1. Order'!AX1369)","v":""},{"$f":"IF('1. Order'!AY1369=\"\",\"\",'1. Order'!AY1369)","v":""},{"$f":"IF('1. Order'!AZ1369=\"\",\"\",'1. Order'!AZ1369)","v":""},{"$f":"IF('1. Order'!BA1369=\"\",\"\",'1. Order'!BA1369)","v":""},{"$f":"IF('1. Order'!BC1369=\"\",\"\",'1. Order'!BC1369)","v":""},{"$f":"IF('1. Order'!BD1369=\"\",\"\",'1. Order'!BD1369)","v":6},{"$f":"IF('1. Order'!BE1369=\"\",\"\",'1. Order'!BE1369)","v":"None"},{"$f":"IF('1. Order'!BF1369=\"\",\"\",'1. Order'!BF1369)","v":"Parcel"},{"$f":"IF('1. Order'!BG1369=\"\",\"\",'1. Order'!BG1369)","v":"ZWO"}]
[{"$f":"IF('1. Order'!F1370=\"\",\"\",'1. Order'!F1370)","v":""},{"$f":"IF('1. Order'!G1370=\"\",\"\",'1. Order'!G1370)","v":""},{"$f":"IF('1. Order'!H1370=\"\",\"\",'1. Order'!H1370)","v":""},{"$f":"IF('1. Order'!I1370=\"\",\"\",'1. Order'!I1370)","v":""},{"$f":"IF('1. Order'!J1370=\"\",\"\",'1. Order'!J1370)","v":""},{"$f":"IF('1. Order'!K1370=\"\",\"\",'1. Order'!K1370)","v":""},{"$f":"IF('1. Order'!L1370=\"\",\"\",'1. Order'!L1370)","v":""},{"$f":"IF('1. Order'!M1370=\"\",\"\",'1. Order'!M1370)","v":""},{"$f":"IF('1. Order'!N1370=\"\",\"\",'1. Order'!N1370)","v":""},{"$f":"IF('1. Order'!O1370=\"\",\"\",'1. Order'!O1370)","v":{"$error":"#N/A"}},{"$f":"IF('1. Order'!P1370=\"\",\"\",'1. Order'!P1370)","v":{"$error":"#N/A"}},{"$f":"IF('1. Order'!Q1370=\"\",\"\",'1. Order'!Q1370)","v":""},{"$f":"IF('1. Order'!R1370=\"\",\"\",'1. Order'!R1370)","v":""},{"$f":"IF('1. Order'!S1370=\"\",\"\",'1. Order'!S1370)","v":""},{"$f":"IF('1. Order'!V1370=\"\",\"\",'1. Order'!V1370)","v":""},{"$f":"IF('1. Order'!W1370=\"\",\"\",'1. Order'!W1370)","v":""},{"$f":"IF('1. Order'!X1370=\"\",\"\",'1. Order'!X1370)","v":"EUR"},{"$f":"IF('1. Order'!Y1370=\"\",\"\",'1. Order'!Y1370)","v":""},{"$f":"IF('1. Order'!Z1370=\"\",\"\",'1. Order'!Z1370)","v":""},{"$f":"IF('1. Order'!AA1370=\"\",\"\",'1. Order'!AA1370)","v":""},null,{"$f":"IF('1. Order'!AS1370=\"\",\"\",'1. Order'!AS1370)","v":""},{"$f":"IF('1. Order'!AT1370=\"\",\"\",'1. Order'!AT1370)","v":""},null,null,null,null,null,null,null,{"$f":"IF('1. Order'!AX1370=\"\",\"\",'1. Order'!AX1370)","v":""},{"$f":"IF('1. Order'!AY1370=\"\",\"\",'1. Order'!AY1370)","v":""},{"$f":"IF('1. Order'!AZ1370=\"\",\"\",'1. Order'!AZ1370)","v":""},{"$f":"IF('1. Order'!BA1370=\"\",\"\",'1. Order'!BA1370)","v":""},{"$f":"IF('1. Order'!BC1370=\"\",\"\",'1. Order'!BC1370)","v":""},{"$f":"IF('1. Order'!BD1370=\"\",\"\",'1. Order'!BD1370)","v":6},{"$f":"IF('1. Order'!BE1370=\"\",\"\",'1. Order'!BE1370)","v":"None"},{"$f":"IF('1. Order'!BF1370=\"\",\"\",'1. Order'!BF1370)","v":"Parcel"},{"$f":"IF('1. Order'!BG1370=\"\",\"\",'1. Order'!BG1370)","v":"ZWO"}]
[{"$f":"IF('1. Order'!F1371=\"\",\"\",'1. Order'!F1371)","v":""},{"$f":"IF('1. Order'!G1371=\"\",\"\",'1. Order'!G1371)","v":""},{"$f":"IF('1. Order'!H1371=\"\",\"\",'1. Order'!H1371)","v":""},{"$f":"IF('1. Order'!I1371=\"\",\"\",'1. Order'!I1371)","v":""},{"$f":"IF('1. Order'!J1371=\"\",\"\",'1. Order'!J1371)","v":""},{"$f":"IF('1. Order'!K1371=\"\",\"\",'1. Order'!K1371)","v":""},{"$f":"IF('1. Order'!L1371=\"\",\"\",'1. Order'!L1371)","v":""},{"$f":"IF('1. Order'!M1371=\"\",\"\",'1. Order'!M1371)","v":""},{"$f":"IF('1. Order'!N1371=\"\",\"\",'1. Order'!N1371)","v":""},{"$f":"IF('1. Order'!O1371=\"\",\"\",'1. Order'!O1371)","v":{"$error":"#N/A"}},{"$f":"IF('1. Order'!P1371=\"\",\"\",'1. Order'!P1371)","v":{"$error":"#N/A"}},{"$f":"IF('1. Order'!Q1371=\"\",\"\",'1. Order'!Q1371)","v":""},{"$f":"IF('1. Order'!R1371=\"\",\"\",'1. Order'!R1371)","v":""},{"$f":"IF('1. Order'!S1371=\"\",\"\",'1. Order'!S1371)","v":""},{"$f":"IF('1. Order'!V1371=\"\",\"\",'1. Order'!V1371)","v":""},{"$f":"IF('1. Order'!W1371=\"\",\"\",'1. Order'!W1371)","v":""},{"$f":"IF('1. Order'!X1371=\"\",\"\",'1. Order'!X1371)","v":"EUR"},{"$f":"IF('1. Order'!Y1371=\"\",\"\",'1. Order'!Y1371)","v":""},{"$f":"IF('1. Order'!Z1371=\"\",\"\",'1. Order'!Z1371)","v":""},{"$f":"IF('1. Order'!AA1371=\"\",\"\",'1. Order'!AA1371)","v":""},null,{"$f":"IF('1. Order'!AS1371=\"\",\"\",'1. Order'!AS1371)","v":""},{"$f":"IF('1. Order'!AT1371=\"\",\"\",'1. Order'!AT1371)","v":""},null,null,null,null,null,null,null,{"$f":"IF('1. Order'!AX1371=\"\",\"\",'1. Order'!AX1371)","v":""},{"$f":"IF('1. Order'!AY1371=\"\",\"\",'1. Order'!AY1371)","v":""},{"$f":"IF('1. Order'!AZ1371=\"\",\"\",'1. Order'!AZ1371)","v":""},{"$f":"IF('1. Order'!BA1371=\"\",\"\",'1. Order'!BA1371)","v":""},{"$f":"IF('1. Order'!BC1371=\"\",\"\",'1. Order'!BC1371)","v":""},{"$f":"IF('1. Order'!BD1371=\"\",\"\",'1. Order'!BD1371)","v":6},{"$f":"IF('1. Order'!BE1371=\"\",\"\",'1. Order'!BE1371)","v":"None"},{"$f":"IF('1. Order'!BF1371=\"\",\"\",'1. Order'!BF1371)","v":"Parcel"},{"$f":"IF('1. Order'!BG1371=\"\",\"\",'1. Order'!BG1371)","v":"ZWO"}]
[{"$f":"IF('1. Order'!F1372=\"\",\"\",'1. Order'!F1372)","v":""},{"$f":"IF('1. Order'!G1372=\"\",\"\",'1. Order'!G1372)","v":""},{"$f":"IF('1. Order'!H1372=\"\",\"\",'1. Order'!H1372)","v":""},{"$f":"IF('1. Order'!I1372=\"\",\"\",'1. Order'!I1372)","v":""},{"$f":"IF('1. Order'!J1372=\"\",\"\",'1. Order'!J1372)","v":""},{"$f":"IF('1. Order'!K1372=\"\",\"\",'1. Order'!K1372)","v":""},{"$f":"IF('1. Order'!L1372=\"\",\"\",'1. Order'!L1372)","v":""},{"$f":"IF('1. Order'!M1372=\"\",\"\",'1. Order'!M1372)","v":""},{"$f":"IF('1. Order'!N1372=\"\",\"\",'1. Order'!N1372)","v":""},{"$f":"IF('1. Order'!O1372=\"\",\"\",'1. Order'!O1372)","v":{"$error":"#N/A"}},{"$f":"IF('1. Order'!P1372=\"\",\"\",'1. Order'!P1372)","v":{"$error":"#N/A"}},{"$f":"IF('1. Order'!Q1372=\"\",\"\",'1. Order'!Q1372)","v":""},{"$f":"IF('1. Order'!R1372=\"\",\"\",'1. Order'!R1372)","v":""},{"$f":"IF('1. Order'!S1372=\"\",\"\",'1. Order'!S1372)","v":""},{"$f":"IF('1. Order'!V1372=\"\",\"\",'1. Order'!V1372)","v":""},{"$f":"IF('1. Order'!W1372=\"\",\"\",'1. Order'!W1372)","v":""},{"$f":"IF('1. Order'!X1372=\"\",\"\",'1. Order'!X1372)","v":"EUR"},{"$f":"IF('1. Order'!Y1372=\"\",\"\",'1. Order'!Y1372)","v":""},{"$f":"IF('1. Order'!Z1372=\"\",\"\",'1. Order'!Z1372)","v":""},{"$f":"IF('1. Order'!AA1372=\"\",\"\",'1. Order'!AA1372)","v":""},null,{"$f":"IF('1. Order'!AS1372=\"\",\"\",'1. Order'!AS1372)","v":""},{"$f":"IF('1. Order'!AT1372=\"\",\"\",'1. Order'!AT1372)","v":""},null,null,null,null,null,null,null,{"$f":"IF('1. Order'!AX1372=\"\",\"\",'1. Order'!AX1372)","v":""},{"$f":"IF('1. Order'!AY1372=\"\",\"\",'1. Order'!AY1372)","v":""},{"$f":"IF('1. Order'!AZ1372=\"\",\"\",'1. Order'!AZ1372)","v":""},{"$f":"IF('1. Order'!BA1372=\"\",\"\",'1. Order'!BA1372)","v":""},{"$f":"IF('1. Order'!BC1372=\"\",\"\",'1. Order'!BC1372)","v":""},{"$f":"IF('1. Order'!BD1372=\"\",\"\",'1. Order'!BD1372)","v":6},{"$f":"IF('1. Order'!BE1372=\"\",\"\",'1. Order'!BE1372)","v":"None"},{"$f":"IF('1. Order'!BF1372=\"\",\"\",'1. Order'!BF1372)","v":"Parcel"},{"$f":"IF('1. Order'!BG1372=\"\",\"\",'1. Order'!BG1372)","v":"ZWO"}]
[{"$f":"IF('1. Order'!F1373=\"\",\"\",'1. Order'!F1373)","v":""},{"$f":"IF('1. Order'!G1373=\"\",\"\",'1. Order'!G1373)","v":""},{"$f":"IF('1. Order'!H1373=\"\",\"\",'1. Order'!H1373)","v":""},{"$f":"IF('1. Order'!I1373=\"\",\"\",'1. Order'!I1373)","v":""},{"$f":"IF('1. Order'!J1373=\"\",\"\",'1. Order'!J1373)","v":""},{"$f":"IF('1. Order'!K1373=\"\",\"\",'1. Order'!K1373)","v":""},{"$f":"IF('1. Order'!L1373=\"\",\"\",'1. Order'!L1373)","v":""},{"$f":"IF('1. Order'!M1373=\"\",\"\",'1. Order'!M1373)","v":""},{"$f":"IF('1. Order'!N1373=\"\",\"\",'1. Order'!N1373)","v":""},{"$f":"IF('1. Order'!O1373=\"\",\"\",'1. Order'!O1373)","v":{"$error":"#N/A"}},{"$f":"IF('1. Order'!P1373=\"\",\"\",'1. Order'!P1373)","v":{"$error":"#N/A"}},{"$f":"IF('1. Order'!Q1373=\"\",\"\",'1. Order'!Q1373)","v":""},{"$f":"IF('1. Order'!R1373=\"\",\"\",'1. Order'!R1373)","v":""},{"$f":"IF('1. Order'!S1373=\"\",\"\",'1. Order'!S1373)","v":""},{"$f":"IF('1. Order'!V1373=\"\",\"\",'1. Order'!V1373)","v":""},{"$f":"IF('1. Order'!W1373=\"\",\"\",'1. Order'!W1373)","v":""},{"$f":"IF('1. Order'!X1373=\"\",\"\",'1. Order'!X1373)","v":"EUR"},{"$f":"IF('1. Order'!Y1373=\"\",\"\",'1. Order'!Y1373)","v":""},{"$f":"IF('1. Order'!Z1373=\"\",\"\",'1. Order'!Z1373)","v":""},{"$f":"IF('1. Order'!AA1373=\"\",\"\",'1. Order'!AA1373)","v":""},null,{"$f":"IF('1. Order'!AS1373=\"\",\"\",'1. Order'!AS1373)","v":""},{"$f":"IF('1. Order'!AT1373=\"\",\"\",'1. Order'!AT1373)","v":""},null,null,null,null,null,null,null,{"$f":"IF('1. Order'!AX1373=\"\",\"\",'1. Order'!AX1373)","v":""},{"$f":"IF('1. Order'!AY1373=\"\",\"\",'1. Order'!AY1373)","v":""},{"$f":"IF('1. Order'!AZ1373=\"\",\"\",'1. Order'!AZ1373)","v":""},{"$f":"IF('1. Order'!BA1373=\"\",\"\",'1. Order'!BA1373)","v":""},{"$f":"IF('1. Order'!BC1373=\"\",\"\",'1. Order'!BC1373)","v":""},{"$f":"IF('1. Order'!BD1373=\"\",\"\",'1. Order'!BD1373)","v":6},{"$f":"IF('1. Order'!BE1373=\"\",\"\",'1. Order'!BE1373)","v":"None"},{"$f":"IF('1. Order'!BF1373=\"\",\"\",'1. Order'!BF1373)","v":"Parcel"},{"$f":"IF('1. Order'!BG1373=\"\",\"\",'1. Order'!BG1373)","v":"ZWO"}]
[{"$f":"IF('1. Order'!F1374=\"\",\"\",'1. Order'!F1374)","v":""},{"$f":"IF('1. Order'!G1374=\"\",\"\",'1. Order'!G1374)","v":""},{"$f":"IF('1. Order'!H1374=\"\",\"\",'1. Order'!H1374)","v":""},{"$f":"IF('1. Order'!I1374=\"\",\"\",'1. Order'!I1374)","v":""},{"$f":"IF('1. Order'!J1374=\"\",\"\",'1. Order'!J1374)","v":""},{"$f":"IF('1. Order'!K1374=\"\",\"\",'1. Order'!K1374)","v":""},{"$f":"IF('1. Order'!L1374=\"\",\"\",'1. Order'!L1374)","v":""},{"$f":"IF('1. Order'!M1374=\"\",\"\",'1. Order'!M1374)","v":""},{"$f":"IF('1. Order'!N1374=\"\",\"\",'1. Order'!N1374)","v":""},{"$f":"IF('1. Order'!O1374=\"\",\"\",'1. Order'!O1374)","v":{"$error":"#N/A"}},{"$f":"IF('1. Order'!P1374=\"\",\"\",'1. Order'!P1374)","v":{"$error":"#N/A"}},{"$f":"IF('1. Order'!Q1374=\"\",\"\",'1. Order'!Q1374)","v":""},{"$f":"IF('1. Order'!R1374=\"\",\"\",'1. Order'!R1374)","v":""},{"$f":"IF('1. Order'!S1374=\"\",\"\",'1. Order'!S1374)","v":""},{"$f":"IF('1. Order'!V1374=\"\",\"\",'1. Order'!V1374)","v":""},{"$f":"IF('1. Order'!W1374=\"\",\"\",'1. Order'!W1374)","v":""},{"$f":"IF('1. Order'!X1374=\"\",\"\",'1. Order'!X1374)","v":"EUR"},{"$f":"IF('1. Order'!Y1374=\"\",\"\",'1. Order'!Y1374)","v":""},{"$f":"IF('1. Order'!Z1374=\"\",\"\",'1. Order'!Z1374)","v":""},{"$f":"IF('1. Order'!AA1374=\"\",\"\",'1. Order'!AA1374)","v":""},null,{"$f":"IF('1. Order'!AS1374=\"\",\"\",'1. Order'!AS1374)","v":""},{"$f":"IF('1. Order'!AT1374=\"\",\"\",'1. Order'!AT1374)","v":""},null,null,null,null,null,null,null,{"$f":"IF('1. Order'!AX1374=\"\",\"\",'1. Order'!AX1374)","v":""},{"$f":"IF('1. Order'!AY1374=\"\",\"\",'1. Order'!AY1374)","v":""},{"$f":"IF('1. Order'!AZ1374=\"\",\"\",'1. Order'!AZ1374)","v":""},{"$f":"IF('1. Order'!BA1374=\"\",\"\",'1. Order'!BA1374)","v":""},{"$f":"IF('1. Order'!BC1374=\"\",\"\",'1. Order'!BC1374)","v":""},{"$f":"IF('1. Order'!BD1374=\"\",\"\",'1. Order'!BD1374)","v":6},{"$f":"IF('1. Order'!BE1374=\"\",\"\",'1. Order'!BE1374)","v":"None"},{"$f":"IF('1. Order'!BF1374=\"\",\"\",'1. Order'!BF1374)","v":"Parcel"},{"$f":"IF('1. Order'!BG1374=\"\",\"\",'1. Order'!BG1374)","v":"ZWO"}]
[{"$f":"IF('1. Order'!F1375=\"\",\"\",'1. Order'!F1375)","v":""},{"$f":"IF('1. Order'!G1375=\"\",\"\",'1. Order'!G1375)","v":""},{"$f":"IF('1. Order'!H1375=\"\",\"\",'1. Order'!H1375)","v":""},{"$f":"IF('1. Order'!I1375=\"\",\"\",'1. Order'!I1375)","v":""},{"$f":"IF('1. Order'!J1375=\"\",\"\",'1. Order'!J1375)","v":""},{"$f":"IF('1. Order'!K1375=\"\",\"\",'1. Order'!K1375)","v":""},{"$f":"IF('1. Order'!L1375=\"\",\"\",'1. Order'!L1375)","v":""},{"$f":"IF('1. Order'!M1375=\"\",\"\",'1. Order'!M1375)","v":""},{"$f":"IF('1. Order'!N1375=\"\",\"\",'1. Order'!N1375)","v":""},{"$f":"IF('1. Order'!O1375=\"\",\"\",'1. Order'!O1375)","v":{"$error":"#N/A"}},{"$f":"IF('1. Order'!P1375=\"\",\"\",'1. Order'!P1375)","v":{"$error":"#N/A"}},{"$f":"IF('1. Order'!Q1375=\"\",\"\",'1. Order'!Q1375)","v":""},{"$f":"IF('1. Order'!R1375=\"\",\"\",'1. Order'!R1375)","v":""},{"$f":"IF('1. Order'!S1375=\"\",\"\",'1. Order'!S1375)","v":""},{"$f":"IF('1. Order'!V1375=\"\",\"\",'1. Order'!V1375)","v":""},{"$f":"IF('1. Order'!W1375=\"\",\"\",'1. Order'!W1375)","v":""},{"$f":"IF('1. Order'!X1375=\"\",\"\",'1. Order'!X1375)","v":"EUR"},{"$f":"IF('1. Order'!Y1375=\"\",\"\",'1. Order'!Y1375)","v":""},{"$f":"IF('1. Order'!Z1375=\"\",\"\",'1. Order'!Z1375)","v":""},{"$f":"IF('1. Order'!AA1375=\"\",\"\",'1. Order'!AA1375)","v":""},null,{"$f":"IF('1. Order'!AS1375=\"\",\"\",'1. Order'!AS1375)","v":""},{"$f":"IF('1. Order'!AT1375=\"\",\"\",'1. Order'!AT1375)","v":""},null,null,null,null,null,null,null,{"$f":"IF('1. Order'!AX1375=\"\",\"\",'1. Order'!AX1375)","v":""},{"$f":"IF('1. Order'!AY1375=\"\",\"\",'1. Order'!AY1375)","v":""},{"$f":"IF('1. Order'!AZ1375=\"\",\"\",'1. Order'!AZ1375)","v":""},{"$f":"IF('1. Order'!BA1375=\"\",\"\",'1. Order'!BA1375)","v":""},{"$f":"IF('1. Order'!BC1375=\"\",\"\",'1. Order'!BC1375)","v":""},{"$f":"IF('1. Order'!BD1375=\"\",\"\",'1. Order'!BD1375)","v":6},{"$f":"IF('1. Order'!BE1375=\"\",\"\",'1. Order'!BE1375)","v":"None"},{"$f":"IF('1. Order'!BF1375=\"\",\"\",'1. Order'!BF1375)","v":"Parcel"},{"$f":"IF('1. Order'!BG1375=\"\",\"\",'1. Order'!BG1375)","v":"ZWO"}]
[{"$f":"IF('1. Order'!F1376=\"\",\"\",'1. Order'!F1376)","v":""},{"$f":"IF('1. Order'!G1376=\"\",\"\",'1. Order'!G1376)","v":""},{"$f":"IF('1. Order'!H1376=\"\",\"\",'1. Order'!H1376)","v":""},{"$f":"IF('1. Order'!I1376=\"\",\"\",'1. Order'!I1376)","v":""},{"$f":"IF('1. Order'!J1376=\"\",\"\",'1. Order'!J1376)","v":""},{"$f":"IF('1. Order'!K1376=\"\",\"\",'1. Order'!K1376)","v":""},{"$f":"IF('1. Order'!L1376=\"\",\"\",'1. Order'!L1376)","v":""},{"$f":"IF('1. Order'!M1376=\"\",\"\",'1. Order'!M1376)","v":""},{"$f":"IF('1. Order'!N1376=\"\",\"\",'1. Order'!N1376)","v":""},{"$f":"IF('1. Order'!O1376=\"\",\"\",'1. Order'!O1376)","v":{"$error":"#N/A"}},{"$f":"IF('1. Order'!P1376=\"\",\"\",'1. Order'!P1376)","v":{"$error":"#N/A"}},{"$f":"IF('1. Order'!Q1376=\"\",\"\",'1. Order'!Q1376)","v":""},{"$f":"IF('1. Order'!R1376=\"\",\"\",'1. Order'!R1376)","v":""},{"$f":"IF('1. Order'!S1376=\"\",\"\",'1. Order'!S1376)","v":""},{"$f":"IF('1. Order'!V1376=\"\",\"\",'1. Order'!V1376)","v":""},{"$f":"IF('1. Order'!W1376=\"\",\"\",'1. Order'!W1376)","v":""},{"$f":"IF('1. Order'!X1376=\"\",\"\",'1. Order'!X1376)","v":"EUR"},{"$f":"IF('1. Order'!Y1376=\"\",\"\",'1. Order'!Y1376)","v":""},{"$f":"IF('1. Order'!Z1376=\"\",\"\",'1. Order'!Z1376)","v":""},{"$f":"IF('1. Order'!AA1376=\"\",\"\",'1. Order'!AA1376)","v":""},null,{"$f":"IF('1. Order'!AS1376=\"\",\"\",'1. Order'!AS1376)","v":""},{"$f":"IF('1. Order'!AT1376=\"\",\"\",'1. Order'!AT1376)","v":""},null,null,null,null,null,null,null,{"$f":"IF('1. Order'!AX1376=\"\",\"\",'1. Order'!AX1376)","v":""},{"$f":"IF('1. Order'!AY1376=\"\",\"\",'1. Order'!AY1376)","v":""},{"$f":"IF('1. Order'!AZ1376=\"\",\"\",'1. Order'!AZ1376)","v":""},{"$f":"IF('1. Order'!BA1376=\"\",\"\",'1. Order'!BA1376)","v":""},{"$f":"IF('1. Order'!BC1376=\"\",\"\",'1. Order'!BC1376)","v":""},{"$f":"IF('1. Order'!BD1376=\"\",\"\",'1. Order'!BD1376)","v":6},{"$f":"IF('1. Order'!BE1376=\"\",\"\",'1. Order'!BE1376)","v":"None"},{"$f":"IF('1. Order'!BF1376=\"\",\"\",'1. Order'!BF1376)","v":"Parcel"},{"$f":"IF('1. Order'!BG1376=\"\",\"\",'1. Order'!BG1376)","v":"ZWO"}]
[{"$f":"IF('1. Order'!F1377=\"\",\"\",'1. Order'!F1377)","v":""},{"$f":"IF('1. Order'!G1377=\"\",\"\",'1. Order'!G1377)","v":""},{"$f":"IF('1. Order'!H1377=\"\",\"\",'1. Order'!H1377)","v":""},{"$f":"IF('1. Order'!I1377=\"\",\"\",'1. Order'!I1377)","v":""},{"$f":"IF('1. Order'!J1377=\"\",\"\",'1. Order'!J1377)","v":""},{"$f":"IF('1. Order'!K1377=\"\",\"\",'1. Order'!K1377)","v":""},{"$f":"IF('1. Order'!L1377=\"\",\"\",'1. Order'!L1377)","v":""},{"$f":"IF('1. Order'!M1377=\"\",\"\",'1. Order'!M1377)","v":""},{"$f":"IF('1. Order'!N1377=\"\",\"\",'1. Order'!N1377)","v":""},{"$f":"IF('1. Order'!O1377=\"\",\"\",'1. Order'!O1377)","v":{"$error":"#N/A"}},{"$f":"IF('1. Order'!P1377=\"\",\"\",'1. Order'!P1377)","v":{"$error":"#N/A"}},{"$f":"IF('1. Order'!Q1377=\"\",\"\",'1. Order'!Q1377)","v":""},{"$f":"IF('1. Order'!R1377=\"\",\"\",'1. Order'!R1377)","v":""},{"$f":"IF('1. Order'!S1377=\"\",\"\",'1. Order'!S1377)","v":""},{"$f":"IF('1. Order'!V1377=\"\",\"\",'1. Order'!V1377)","v":""},{"$f":"IF('1. Order'!W1377=\"\",\"\",'1. Order'!W1377)","v":""},{"$f":"IF('1. Order'!X1377=\"\",\"\",'1. Order'!X1377)","v":"EUR"},{"$f":"IF('1. Order'!Y1377=\"\",\"\",'1. Order'!Y1377)","v":""},{"$f":"IF('1. Order'!Z1377=\"\",\"\",'1. Order'!Z1377)","v":""},{"$f":"IF('1. Order'!AA1377=\"\",\"\",'1. Order'!AA1377)","v":""},null,{"$f":"IF('1. Order'!AS1377=\"\",\"\",'1. Order'!AS1377)","v":""},{"$f":"IF('1. Order'!AT1377=\"\",\"\",'1. Order'!AT1377)","v":""},null,null,null,null,null,null,null,{"$f":"IF('1. Order'!AX1377=\"\",\"\",'1. Order'!AX1377)","v":""},{"$f":"IF('1. Order'!AY1377=\"\",\"\",'1. Order'!AY1377)","v":""},{"$f":"IF('1. Order'!AZ1377=\"\",\"\",'1. Order'!AZ1377)","v":""},{"$f":"IF('1. Order'!BA1377=\"\",\"\",'1. Order'!BA1377)","v":""},{"$f":"IF('1. Order'!BC1377=\"\",\"\",'1. Order'!BC1377)","v":""},{"$f":"IF('1. Order'!BD1377=\"\",\"\",'1. Order'!BD1377)","v":6},{"$f":"IF('1. Order'!BE1377=\"\",\"\",'1. Order'!BE1377)","v":"None"},{"$f":"IF('1. Order'!BF1377=\"\",\"\",'1. Order'!BF1377)","v":"Parcel"},{"$f":"IF('1. Order'!BG1377=\"\",\"\",'1. Order'!BG1377)","v":"ZWO"}]
[{"$f":"IF('1. Order'!F1378=\"\",\"\",'1. Order'!F1378)","v":""},{"$f":"IF('1. Order'!G1378=\"\",\"\",'1. Order'!G1378)","v":""},{"$f":"IF('1. Order'!H1378=\"\",\"\",'1. Order'!H1378)","v":""},{"$f":"IF('1. Order'!I1378=\"\",\"\",'1. Order'!I1378)","v":""},{"$f":"IF('1. Order'!J1378=\"\",\"\",'1. Order'!J1378)","v":""},{"$f":"IF('1. Order'!K1378=\"\",\"\",'1. Order'!K1378)","v":""},{"$f":"IF('1. Order'!L1378=\"\",\"\",'1. Order'!L1378)","v":""},{"$f":"IF('1. Order'!M1378=\"\",\"\",'1. Order'!M1378)","v":""},{"$f":"IF('1. Order'!N1378=\"\",\"\",'1. Order'!N1378)","v":""},{"$f":"IF('1. Order'!O1378=\"\",\"\",'1. Order'!O1378)","v":{"$error":"#N/A"}},{"$f":"IF('1. Order'!P1378=\"\",\"\",'1. Order'!P1378)","v":{"$error":"#N/A"}},{"$f":"IF('1. Order'!Q1378=\"\",\"\",'1. Order'!Q1378)","v":""},{"$f":"IF('1. Order'!R1378=\"\",\"\",'1. Order'!R1378)","v":""},{"$f":"IF('1. Order'!S1378=\"\",\"\",'1. Order'!S1378)","v":""},{"$f":"IF('1. Order'!V1378=\"\",\"\",'1. Order'!V1378)","v":""},{"$f":"IF('1. Order'!W1378=\"\",\"\",'1. Order'!W1378)","v":""},{"$f":"IF('1. Order'!X1378=\"\",\"\",'1. Order'!X1378)","v":"EUR"},{"$f":"IF('1. Order'!Y1378=\"\",\"\",'1. Order'!Y1378)","v":""},{"$f":"IF('1. Order'!Z1378=\"\",\"\",'1. Order'!Z1378)","v":""},{"$f":"IF('1. Order'!AA1378=\"\",\"\",'1. Order'!AA1378)","v":""},null,{"$f":"IF('1. Order'!AS1378=\"\",\"\",'1. Order'!AS1378)","v":""},{"$f":"IF('1. Order'!AT1378=\"\",\"\",'1. Order'!AT1378)","v":""},null,null,null,null,null,null,null,{"$f":"IF('1. Order'!AX1378=\"\",\"\",'1. Order'!AX1378)","v":""},{"$f":"IF('1. Order'!AY1378=\"\",\"\",'1. Order'!AY1378)","v":""},{"$f":"IF('1. Order'!AZ1378=\"\",\"\",'1. Order'!AZ1378)","v":""},{"$f":"IF('1. Order'!BA1378=\"\",\"\",'1. Order'!BA1378)","v":""},{"$f":"IF('1. Order'!BC1378=\"\",\"\",'1. Order'!BC1378)","v":""},{"$f":"IF('1. Order'!BD1378=\"\",\"\",'1. Order'!BD1378)","v":6},{"$f":"IF('1. Order'!BE1378=\"\",\"\",'1. Order'!BE1378)","v":"None"},{"$f":"IF('1. Order'!BF1378=\"\",\"\",'1. Order'!BF1378)","v":"Parcel"},{"$f":"IF('1. Order'!BG1378=\"\",\"\",'1. Order'!BG1378)","v":"ZWO"}]
[{"$f":"IF('1. Order'!F1379=\"\",\"\",'1. Order'!F1379)","v":""},{"$f":"IF('1. Order'!G1379=\"\",\"\",'1. Order'!G1379)","v":""},{"$f":"IF('1. Order'!H1379=\"\",\"\",'1. Order'!H1379)","v":""},{"$f":"IF('1. Order'!I1379=\"\",\"\",'1. Order'!I1379)","v":""},{"$f":"IF('1. Order'!J1379=\"\",\"\",'1. Order'!J1379)","v":""},{"$f":"IF('1. Order'!K1379=\"\",\"\",'1. Order'!K1379)","v":""},{"$f":"IF('1. Order'!L1379=\"\",\"\",'1. Order'!L1379)","v":""},{"$f":"IF('1. Order'!M1379=\"\",\"\",'1. Order'!M1379)","v":""},{"$f":"IF('1. Order'!N1379=\"\",\"\",'1. Order'!N1379)","v":""},{"$f":"IF('1. Order'!O1379=\"\",\"\",'1. Order'!O1379)","v":{"$error":"#N/A"}},{"$f":"IF('1. Order'!P1379=\"\",\"\",'1. Order'!P1379)","v":{"$error":"#N/A"}},{"$f":"IF('1. Order'!Q1379=\"\",\"\",'1. Order'!Q1379)","v":""},{"$f":"IF('1. Order'!R1379=\"\",\"\",'1. Order'!R1379)","v":""},{"$f":"IF('1. Order'!S1379=\"\",\"\",'1. Order'!S1379)","v":""},{"$f":"IF('1. Order'!V1379=\"\",\"\",'1. Order'!V1379)","v":""},{"$f":"IF('1. Order'!W1379=\"\",\"\",'1. Order'!W1379)","v":""},{"$f":"IF('1. Order'!X1379=\"\",\"\",'1. Order'!X1379)","v":"EUR"},{"$f":"IF('1. Order'!Y1379=\"\",\"\",'1. Order'!Y1379)","v":""},{"$f":"IF('1. Order'!Z1379=\"\",\"\",'1. Order'!Z1379)","v":""},{"$f":"IF('1. Order'!AA1379=\"\",\"\",'1. Order'!AA1379)","v":""},null,{"$f":"IF('1. Order'!AS1379=\"\",\"\",'1. Order'!AS1379)","v":""},{"$f":"IF('1. Order'!AT1379=\"\",\"\",'1. Order'!AT1379)","v":""},null,null,null,null,null,null,null,{"$f":"IF('1. Order'!AX1379=\"\",\"\",'1. Order'!AX1379)","v":""},{"$f":"IF('1. Order'!AY1379=\"\",\"\",'1. Order'!AY1379)","v":""},{"$f":"IF('1. Order'!AZ1379=\"\",\"\",'1. Order'!AZ1379)","v":""},{"$f":"IF('1. Order'!BA1379=\"\",\"\",'1. Order'!BA1379)","v":""},{"$f":"IF('1. Order'!BC1379=\"\",\"\",'1. Order'!BC1379)","v":""},{"$f":"IF('1. Order'!BD1379=\"\",\"\",'1. Order'!BD1379)","v":6},{"$f":"IF('1. Order'!BE1379=\"\",\"\",'1. Order'!BE1379)","v":"None"},{"$f":"IF('1. Order'!BF1379=\"\",\"\",'1. Order'!BF1379)","v":"Parcel"},{"$f":"IF('1. Order'!BG1379=\"\",\"\",'1. Order'!BG1379)","v":"ZWO"}]
[{"$f":"IF('1. Order'!F1380=\"\",\"\",'1. Order'!F1380)","v":""},{"$f":"IF('1. Order'!G1380=\"\",\"\",'1. Order'!G1380)","v":""},{"$f":"IF('1. Order'!H1380=\"\",\"\",'1. Order'!H1380)","v":""},{"$f":"IF('1. Order'!I1380=\"\",\"\",'1. Order'!I1380)","v":""},{"$f":"IF('1. Order'!J1380=\"\",\"\",'1. Order'!J1380)","v":""},{"$f":"IF('1. Order'!K1380=\"\",\"\",'1. Order'!K1380)","v":""},{"$f":"IF('1. Order'!L1380=\"\",\"\",'1. Order'!L1380)","v":""},{"$f":"IF('1. Order'!M1380=\"\",\"\",'1. Order'!M1380)","v":""},{"$f":"IF('1. Order'!N1380=\"\",\"\",'1. Order'!N1380)","v":""},{"$f":"IF('1. Order'!O1380=\"\",\"\",'1. Order'!O1380)","v":{"$error":"#N/A"}},{"$f":"IF('1. Order'!P1380=\"\",\"\",'1. Order'!P1380)","v":{"$error":"#N/A"}},{"$f":"IF('1. Order'!Q1380=\"\",\"\",'1. Order'!Q1380)","v":""},{"$f":"IF('1. Order'!R1380=\"\",\"\",'1. Order'!R1380)","v":""},{"$f":"IF('1. Order'!S1380=\"\",\"\",'1. Order'!S1380)","v":""},{"$f":"IF('1. Order'!V1380=\"\",\"\",'1. Order'!V1380)","v":""},{"$f":"IF('1. Order'!W1380=\"\",\"\",'1. Order'!W1380)","v":""},{"$f":"IF('1. Order'!X1380=\"\",\"\",'1. Order'!X1380)","v":"EUR"},{"$f":"IF('1. Order'!Y1380=\"\",\"\",'1. Order'!Y1380)","v":""},{"$f":"IF('1. Order'!Z1380=\"\",\"\",'1. Order'!Z1380)","v":""},{"$f":"IF('1. Order'!AA1380=\"\",\"\",'1. Order'!AA1380)","v":""},null,{"$f":"IF('1. Order'!AS1380=\"\",\"\",'1. Order'!AS1380)","v":""},{"$f":"IF('1. Order'!AT1380=\"\",\"\",'1. Order'!AT1380)","v":""},null,null,null,null,null,null,null,{"$f":"IF('1. Order'!AX1380=\"\",\"\",'1. Order'!AX1380)","v":""},{"$f":"IF('1. Order'!AY1380=\"\",\"\",'1. Order'!AY1380)","v":""},{"$f":"IF('1. Order'!AZ1380=\"\",\"\",'1. Order'!AZ1380)","v":""},{"$f":"IF('1. Order'!BA1380=\"\",\"\",'1. Order'!BA1380)","v":""},{"$f":"IF('1. Order'!BC1380=\"\",\"\",'1. Order'!BC1380)","v":""},{"$f":"IF('1. Order'!BD1380=\"\",\"\",'1. Order'!BD1380)","v":6},{"$f":"IF('1. Order'!BE1380=\"\",\"\",'1. Order'!BE1380)","v":"None"},{"$f":"IF('1. Order'!BF1380=\"\",\"\",'1. Order'!BF1380)","v":"Parcel"},{"$f":"IF('1. Order'!BG1380=\"\",\"\",'1. Order'!BG1380)","v":"ZWO"}]
[{"$f":"IF('1. Order'!F1381=\"\",\"\",'1. Order'!F1381)","v":""},{"$f":"IF('1. Order'!G1381=\"\",\"\",'1. Order'!G1381)","v":""},{"$f":"IF('1. Order'!H1381=\"\",\"\",'1. Order'!H1381)","v":""},{"$f":"IF('1. Order'!I1381=\"\",\"\",'1. Order'!I1381)","v":""},{"$f":"IF('1. Order'!J1381=\"\",\"\",'1. Order'!J1381)","v":""},{"$f":"IF('1. Order'!K1381=\"\",\"\",'1. Order'!K1381)","v":""},{"$f":"IF('1. Order'!L1381=\"\",\"\",'1. Order'!L1381)","v":""},{"$f":"IF('1. Order'!M1381=\"\",\"\",'1. Order'!M1381)","v":""},{"$f":"IF('1. Order'!N1381=\"\",\"\",'1. Order'!N1381)","v":""},{"$f":"IF('1. Order'!O1381=\"\",\"\",'1. Order'!O1381)","v":{"$error":"#N/A"}},{"$f":"IF('1. Order'!P1381=\"\",\"\",'1. Order'!P1381)","v":{"$error":"#N/A"}},{"$f":"IF('1. Order'!Q1381=\"\",\"\",'1. Order'!Q1381)","v":""},{"$f":"IF('1. Order'!R1381=\"\",\"\",'1. Order'!R1381)","v":""},{"$f":"IF('1. Order'!S1381=\"\",\"\",'1. Order'!S1381)","v":""},{"$f":"IF('1. Order'!V1381=\"\",\"\",'1. Order'!V1381)","v":""},{"$f":"IF('1. Order'!W1381=\"\",\"\",'1. Order'!W1381)","v":""},{"$f":"IF('1. Order'!X1381=\"\",\"\",'1. Order'!X1381)","v":"EUR"},{"$f":"IF('1. Order'!Y1381=\"\",\"\",'1. Order'!Y1381)","v":""},{"$f":"IF('1. Order'!Z1381=\"\",\"\",'1. Order'!Z1381)","v":""},{"$f":"IF('1. Order'!AA1381=\"\",\"\",'1. Order'!AA1381)","v":""},null,{"$f":"IF('1. Order'!AS1381=\"\",\"\",'1. Order'!AS1381)","v":""},{"$f":"IF('1. Order'!AT1381=\"\",\"\",'1. Order'!AT1381)","v":""},null,null,null,null,null,null,null,{"$f":"IF('1. Order'!AX1381=\"\",\"\",'1. Order'!AX1381)","v":""},{"$f":"IF('1. Order'!AY1381=\"\",\"\",'1. Order'!AY1381)","v":""},{"$f":"IF('1. Order'!AZ1381=\"\",\"\",'1. Order'!AZ1381)","v":""},{"$f":"IF('1. Order'!BA1381=\"\",\"\",'1. Order'!BA1381)","v":""},{"$f":"IF('1. Order'!BC1381=\"\",\"\",'1. Order'!BC1381)","v":""},{"$f":"IF('1. Order'!BD1381=\"\",\"\",'1. Order'!BD1381)","v":6},{"$f":"IF('1. Order'!BE1381=\"\",\"\",'1. Order'!BE1381)","v":"None"},{"$f":"IF('1. Order'!BF1381=\"\",\"\",'1. Order'!BF1381)","v":"Parcel"},{"$f":"IF('1. Order'!BG1381=\"\",\"\",'1. Order'!BG1381)","v":"ZWO"}]
[{"$f":"IF('1. Order'!F1382=\"\",\"\",'1. Order'!F1382)","v":""},{"$f":"IF('1. Order'!G1382=\"\",\"\",'1. Order'!G1382)","v":""},{"$f":"IF('1. Order'!H1382=\"\",\"\",'1. Order'!H1382)","v":""},{"$f":"IF('1. Order'!I1382=\"\",\"\",'1. Order'!I1382)","v":""},{"$f":"IF('1. Order'!J1382=\"\",\"\",'1. Order'!J1382)","v":""},{"$f":"IF('1. Order'!K1382=\"\",\"\",'1. Order'!K1382)","v":""},{"$f":"IF('1. Order'!L1382=\"\",\"\",'1. Order'!L1382)","v":""},{"$f":"IF('1. Order'!M1382=\"\",\"\",'1. Order'!M1382)","v":""},{"$f":"IF('1. Order'!N1382=\"\",\"\",'1. Order'!N1382)","v":""},{"$f":"IF('1. Order'!O1382=\"\",\"\",'1. Order'!O1382)","v":{"$error":"#N/A"}},{"$f":"IF('1. Order'!P1382=\"\",\"\",'1. Order'!P1382)","v":{"$error":"#N/A"}},{"$f":"IF('1. Order'!Q1382=\"\",\"\",'1. Order'!Q1382)","v":""},{"$f":"IF('1. Order'!R1382=\"\",\"\",'1. Order'!R1382)","v":""},{"$f":"IF('1. Order'!S1382=\"\",\"\",'1. Order'!S1382)","v":""},{"$f":"IF('1. Order'!V1382=\"\",\"\",'1. Order'!V1382)","v":""},{"$f":"IF('1. Order'!W1382=\"\",\"\",'1. Order'!W1382)","v":""},{"$f":"IF('1. Order'!X1382=\"\",\"\",'1. Order'!X1382)","v":"EUR"},{"$f":"IF('1. Order'!Y1382=\"\",\"\",'1. Order'!Y1382)","v":""},{"$f":"IF('1. Order'!Z1382=\"\",\"\",'1. Order'!Z1382)","v":""},{"$f":"IF('1. Order'!AA1382=\"\",\"\",'1. Order'!AA1382)","v":""},null,{"$f":"IF('1. Order'!AS1382=\"\",\"\",'1. Order'!AS1382)","v":""},{"$f":"IF('1. Order'!AT1382=\"\",\"\",'1. Order'!AT1382)","v":""},null,null,null,null,null,null,null,{"$f":"IF('1. Order'!AX1382=\"\",\"\",'1. Order'!AX1382)","v":""},{"$f":"IF('1. Order'!AY1382=\"\",\"\",'1. Order'!AY1382)","v":""},{"$f":"IF('1. Order'!AZ1382=\"\",\"\",'1. Order'!AZ1382)","v":""},{"$f":"IF('1. Order'!BA1382=\"\",\"\",'1. Order'!BA1382)","v":""},{"$f":"IF('1. Order'!BC1382=\"\",\"\",'1. Order'!BC1382)","v":""},{"$f":"IF('1. Order'!BD1382=\"\",\"\",'1. Order'!BD1382)","v":6},{"$f":"IF('1. Order'!BE1382=\"\",\"\",'1. Order'!BE1382)","v":"None"},{"$f":"IF('1. Order'!BF1382=\"\",\"\",'1. Order'!BF1382)","v":"Parcel"},{"$f":"IF('1. Order'!BG1382=\"\",\"\",'1. Order'!BG1382)","v":"ZWO"}]
[{"$f":"IF('1. Order'!F1383=\"\",\"\",'1. Order'!F1383)","v":""},{"$f":"IF('1. Order'!G1383=\"\",\"\",'1. Order'!G1383)","v":""},{"$f":"IF('1. Order'!H1383=\"\",\"\",'1. Order'!H1383)","v":""},{"$f":"IF('1. Order'!I1383=\"\",\"\",'1. Order'!I1383)","v":""},{"$f":"IF('1. Order'!J1383=\"\",\"\",'1. Order'!J1383)","v":""},{"$f":"IF('1. Order'!K1383=\"\",\"\",'1. Order'!K1383)","v":""},{"$f":"IF('1. Order'!L1383=\"\",\"\",'1. Order'!L1383)","v":""},{"$f":"IF('1. Order'!M1383=\"\",\"\",'1. Order'!M1383)","v":""},{"$f":"IF('1. Order'!N1383=\"\",\"\",'1. Order'!N1383)","v":""},{"$f":"IF('1. Order'!O1383=\"\",\"\",'1. Order'!O1383)","v":{"$error":"#N/A"}},{"$f":"IF('1. Order'!P1383=\"\",\"\",'1. Order'!P1383)","v":{"$error":"#N/A"}},{"$f":"IF('1. Order'!Q1383=\"\",\"\",'1. Order'!Q1383)","v":""},{"$f":"IF('1. Order'!R1383=\"\",\"\",'1. Order'!R1383)","v":""},{"$f":"IF('1. Order'!S1383=\"\",\"\",'1. Order'!S1383)","v":""},{"$f":"IF('1. Order'!V1383=\"\",\"\",'1. Order'!V1383)","v":""},{"$f":"IF('1. Order'!W1383=\"\",\"\",'1. Order'!W1383)","v":""},{"$f":"IF('1. Order'!X1383=\"\",\"\",'1. Order'!X1383)","v":"EUR"},{"$f":"IF('1. Order'!Y1383=\"\",\"\",'1. Order'!Y1383)","v":""},{"$f":"IF('1. Order'!Z1383=\"\",\"\",'1. Order'!Z1383)","v":""},{"$f":"IF('1. Order'!AA1383=\"\",\"\",'1. Order'!AA1383)","v":""},null,{"$f":"IF('1. Order'!AS1383=\"\",\"\",'1. Order'!AS1383)","v":""},{"$f":"IF('1. Order'!AT1383=\"\",\"\",'1. Order'!AT1383)","v":""},null,null,null,null,null,null,null,{"$f":"IF('1. Order'!AX1383=\"\",\"\",'1. Order'!AX1383)","v":""},{"$f":"IF('1. Order'!AY1383=\"\",\"\",'1. Order'!AY1383)","v":""},{"$f":"IF('1. Order'!AZ1383=\"\",\"\",'1. Order'!AZ1383)","v":""},{"$f":"IF('1. Order'!BA1383=\"\",\"\",'1. Order'!BA1383)","v":""},{"$f":"IF('1. Order'!BC1383=\"\",\"\",'1. Order'!BC1383)","v":""},{"$f":"IF('1. Order'!BD1383=\"\",\"\",'1. Order'!BD1383)","v":6},{"$f":"IF('1. Order'!BE1383=\"\",\"\",'1. Order'!BE1383)","v":"None"},{"$f":"IF('1. Order'!BF1383=\"\",\"\",'1. Order'!BF1383)","v":"Parcel"},{"$f":"IF('1. Order'!BG1383=\"\",\"\",'1. Order'!BG1383)","v":"ZWO"}]
[{"$f":"IF('1. Order'!F1384=\"\",\"\",'1. Order'!F1384)","v":""},{"$f":"IF('1. Order'!G1384=\"\",\"\",'1. Order'!G1384)","v":""},{"$f":"IF('1. Order'!H1384=\"\",\"\",'1. Order'!H1384)","v":""},{"$f":"IF('1. Order'!I1384=\"\",\"\",'1. Order'!I1384)","v":""},{"$f":"IF('1. Order'!J1384=\"\",\"\",'1. Order'!J1384)","v":""},{"$f":"IF('1. Order'!K1384=\"\",\"\",'1. Order'!K1384)","v":""},{"$f":"IF('1. Order'!L1384=\"\",\"\",'1. Order'!L1384)","v":""},{"$f":"IF('1. Order'!M1384=\"\",\"\",'1. Order'!M1384)","v":""},{"$f":"IF('1. Order'!N1384=\"\",\"\",'1. Order'!N1384)","v":""},{"$f":"IF('1. Order'!O1384=\"\",\"\",'1. Order'!O1384)","v":{"$error":"#N/A"}},{"$f":"IF('1. Order'!P1384=\"\",\"\",'1. Order'!P1384)","v":{"$error":"#N/A"}},{"$f":"IF('1. Order'!Q1384=\"\",\"\",'1. Order'!Q1384)","v":""},{"$f":"IF('1. Order'!R1384=\"\",\"\",'1. Order'!R1384)","v":""},{"$f":"IF('1. Order'!S1384=\"\",\"\",'1. Order'!S1384)","v":""},{"$f":"IF('1. Order'!V1384=\"\",\"\",'1. Order'!V1384)","v":""},{"$f":"IF('1. Order'!W1384=\"\",\"\",'1. Order'!W1384)","v":""},{"$f":"IF('1. Order'!X1384=\"\",\"\",'1. Order'!X1384)","v":"EUR"},{"$f":"IF('1. Order'!Y1384=\"\",\"\",'1. Order'!Y1384)","v":""},{"$f":"IF('1. Order'!Z1384=\"\",\"\",'1. Order'!Z1384)","v":""},{"$f":"IF('1. Order'!AA1384=\"\",\"\",'1. Order'!AA1384)","v":""},null,{"$f":"IF('1. Order'!AS1384=\"\",\"\",'1. Order'!AS1384)","v":""},{"$f":"IF('1. Order'!AT1384=\"\",\"\",'1. Order'!AT1384)","v":""},null,null,null,null,null,null,null,{"$f":"IF('1. Order'!AX1384=\"\",\"\",'1. Order'!AX1384)","v":""},{"$f":"IF('1. Order'!AY1384=\"\",\"\",'1. Order'!AY1384)","v":""},{"$f":"IF('1. Order'!AZ1384=\"\",\"\",'1. Order'!AZ1384)","v":""},{"$f":"IF('1. Order'!BA1384=\"\",\"\",'1. Order'!BA1384)","v":""},{"$f":"IF('1. Order'!BC1384=\"\",\"\",'1. Order'!BC1384)","v":""},{"$f":"IF('1. Order'!BD1384=\"\",\"\",'1. Order'!BD1384)","v":6},{"$f":"IF('1. Order'!BE1384=\"\",\"\",'1. Order'!BE1384)","v":"None"},{"$f":"IF('1. Order'!BF1384=\"\",\"\",'1. Order'!BF1384)","v":"Parcel"},{"$f":"IF('1. Order'!BG1384=\"\",\"\",'1. Order'!BG1384)","v":"ZWO"}]
[{"$f":"IF('1. Order'!F1385=\"\",\"\",'1. Order'!F1385)","v":""},{"$f":"IF('1. Order'!G1385=\"\",\"\",'1. Order'!G1385)","v":""},{"$f":"IF('1. Order'!H1385=\"\",\"\",'1. Order'!H1385)","v":""},{"$f":"IF('1. Order'!I1385=\"\",\"\",'1. Order'!I1385)","v":""},{"$f":"IF('1. Order'!J1385=\"\",\"\",'1. Order'!J1385)","v":""},{"$f":"IF('1. Order'!K1385=\"\",\"\",'1. Order'!K1385)","v":""},{"$f":"IF('1. Order'!L1385=\"\",\"\",'1. Order'!L1385)","v":""},{"$f":"IF('1. Order'!M1385=\"\",\"\",'1. Order'!M1385)","v":""},{"$f":"IF('1. Order'!N1385=\"\",\"\",'1. Order'!N1385)","v":""},{"$f":"IF('1. Order'!O1385=\"\",\"\",'1. Order'!O1385)","v":{"$error":"#N/A"}},{"$f":"IF('1. Order'!P1385=\"\",\"\",'1. Order'!P1385)","v":{"$error":"#N/A"}},{"$f":"IF('1. Order'!Q1385=\"\",\"\",'1. Order'!Q1385)","v":""},{"$f":"IF('1. Order'!R1385=\"\",\"\",'1. Order'!R1385)","v":""},{"$f":"IF('1. Order'!S1385=\"\",\"\",'1. Order'!S1385)","v":""},{"$f":"IF('1. Order'!V1385=\"\",\"\",'1. Order'!V1385)","v":""},{"$f":"IF('1. Order'!W1385=\"\",\"\",'1. Order'!W1385)","v":""},{"$f":"IF('1. Order'!X1385=\"\",\"\",'1. Order'!X1385)","v":"EUR"},{"$f":"IF('1. Order'!Y1385=\"\",\"\",'1. Order'!Y1385)","v":""},{"$f":"IF('1. Order'!Z1385=\"\",\"\",'1. Order'!Z1385)","v":""},{"$f":"IF('1. Order'!AA1385=\"\",\"\",'1. Order'!AA1385)","v":""},null,{"$f":"IF('1. Order'!AS1385=\"\",\"\",'1. Order'!AS1385)","v":""},{"$f":"IF('1. Order'!AT1385=\"\",\"\",'1. Order'!AT1385)","v":""},null,null,null,null,null,null,null,{"$f":"IF('1. Order'!AX1385=\"\",\"\",'1. Order'!AX1385)","v":""},{"$f":"IF('1. Order'!AY1385=\"\",\"\",'1. Order'!AY1385)","v":""},{"$f":"IF('1. Order'!AZ1385=\"\",\"\",'1. Order'!AZ1385)","v":""},{"$f":"IF('1. Order'!BA1385=\"\",\"\",'1. Order'!BA1385)","v":""},{"$f":"IF('1. Order'!BC1385=\"\",\"\",'1. Order'!BC1385)","v":""},{"$f":"IF('1. Order'!BD1385=\"\",\"\",'1. Order'!BD1385)","v":6},{"$f":"IF('1. Order'!BE1385=\"\",\"\",'1. Order'!BE1385)","v":"None"},{"$f":"IF('1. Order'!BF1385=\"\",\"\",'1. Order'!BF1385)","v":"Parcel"},{"$f":"IF('1. Order'!BG1385=\"\",\"\",'1. Order'!BG1385)","v":"ZWO"}]
[{"$f":"IF('1. Order'!F1386=\"\",\"\",'1. Order'!F1386)","v":""},{"$f":"IF('1. Order'!G1386=\"\",\"\",'1. Order'!G1386)","v":""},{"$f":"IF('1. Order'!H1386=\"\",\"\",'1. Order'!H1386)","v":""},{"$f":"IF('1. Order'!I1386=\"\",\"\",'1. Order'!I1386)","v":""},{"$f":"IF('1. Order'!J1386=\"\",\"\",'1. Order'!J1386)","v":""},{"$f":"IF('1. Order'!K1386=\"\",\"\",'1. Order'!K1386)","v":""},{"$f":"IF('1. Order'!L1386=\"\",\"\",'1. Order'!L1386)","v":""},{"$f":"IF('1. Order'!M1386=\"\",\"\",'1. Order'!M1386)","v":""},{"$f":"IF('1. Order'!N1386=\"\",\"\",'1. Order'!N1386)","v":""},{"$f":"IF('1. Order'!O1386=\"\",\"\",'1. Order'!O1386)","v":{"$error":"#N/A"}},{"$f":"IF('1. Order'!P1386=\"\",\"\",'1. Order'!P1386)","v":{"$error":"#N/A"}},{"$f":"IF('1. Order'!Q1386=\"\",\"\",'1. Order'!Q1386)","v":""},{"$f":"IF('1. Order'!R1386=\"\",\"\",'1. Order'!R1386)","v":""},{"$f":"IF('1. Order'!S1386=\"\",\"\",'1. Order'!S1386)","v":""},{"$f":"IF('1. Order'!V1386=\"\",\"\",'1. Order'!V1386)","v":""},{"$f":"IF('1. Order'!W1386=\"\",\"\",'1. Order'!W1386)","v":""},{"$f":"IF('1. Order'!X1386=\"\",\"\",'1. Order'!X1386)","v":"EUR"},{"$f":"IF('1. Order'!Y1386=\"\",\"\",'1. Order'!Y1386)","v":""},{"$f":"IF('1. Order'!Z1386=\"\",\"\",'1. Order'!Z1386)","v":""},{"$f":"IF('1. Order'!AA1386=\"\",\"\",'1. Order'!AA1386)","v":""},null,{"$f":"IF('1. Order'!AS1386=\"\",\"\",'1. Order'!AS1386)","v":""},{"$f":"IF('1. Order'!AT1386=\"\",\"\",'1. Order'!AT1386)","v":""},null,null,null,null,null,null,null,{"$f":"IF('1. Order'!AX1386=\"\",\"\",'1. Order'!AX1386)","v":""},{"$f":"IF('1. Order'!AY1386=\"\",\"\",'1. Order'!AY1386)","v":""},{"$f":"IF('1. Order'!AZ1386=\"\",\"\",'1. Order'!AZ1386)","v":""},{"$f":"IF('1. Order'!BA1386=\"\",\"\",'1. Order'!BA1386)","v":""},{"$f":"IF('1. Order'!BC1386=\"\",\"\",'1. Order'!BC1386)","v":""},{"$f":"IF('1. Order'!BD1386=\"\",\"\",'1. Order'!BD1386)","v":6},{"$f":"IF('1. Order'!BE1386=\"\",\"\",'1. Order'!BE1386)","v":"None"},{"$f":"IF('1. Order'!BF1386=\"\",\"\",'1. Order'!BF1386)","v":"Parcel"},{"$f":"IF('1. Order'!BG1386=\"\",\"\",'1. Order'!BG1386)","v":"ZWO"}]
[{"$f":"IF('1. Order'!F1387=\"\",\"\",'1. Order'!F1387)","v":""},{"$f":"IF('1. Order'!G1387=\"\",\"\",'1. Order'!G1387)","v":""},{"$f":"IF('1. Order'!H1387=\"\",\"\",'1. Order'!H1387)","v":""},{"$f":"IF('1. Order'!I1387=\"\",\"\",'1. Order'!I1387)","v":""},{"$f":"IF('1. Order'!J1387=\"\",\"\",'1. Order'!J1387)","v":""},{"$f":"IF('1. Order'!K1387=\"\",\"\",'1. Order'!K1387)","v":""},{"$f":"IF('1. Order'!L1387=\"\",\"\",'1. Order'!L1387)","v":""},{"$f":"IF('1. Order'!M1387=\"\",\"\",'1. Order'!M1387)","v":""},{"$f":"IF('1. Order'!N1387=\"\",\"\",'1. Order'!N1387)","v":""},{"$f":"IF('1. Order'!O1387=\"\",\"\",'1. Order'!O1387)","v":{"$error":"#N/A"}},{"$f":"IF('1. Order'!P1387=\"\",\"\",'1. Order'!P1387)","v":{"$error":"#N/A"}},{"$f":"IF('1. Order'!Q1387=\"\",\"\",'1. Order'!Q1387)","v":""},{"$f":"IF('1. Order'!R1387=\"\",\"\",'1. Order'!R1387)","v":""},{"$f":"IF('1. Order'!S1387=\"\",\"\",'1. Order'!S1387)","v":""},{"$f":"IF('1. Order'!V1387=\"\",\"\",'1. Order'!V1387)","v":""},{"$f":"IF('1. Order'!W1387=\"\",\"\",'1. Order'!W1387)","v":""},{"$f":"IF('1. Order'!X1387=\"\",\"\",'1. Order'!X1387)","v":"EUR"},{"$f":"IF('1. Order'!Y1387=\"\",\"\",'1. Order'!Y1387)","v":""},{"$f":"IF('1. Order'!Z1387=\"\",\"\",'1. Order'!Z1387)","v":""},{"$f":"IF('1. Order'!AA1387=\"\",\"\",'1. Order'!AA1387)","v":""},null,{"$f":"IF('1. Order'!AS1387=\"\",\"\",'1. Order'!AS1387)","v":""},{"$f":"IF('1. Order'!AT1387=\"\",\"\",'1. Order'!AT1387)","v":""},null,null,null,null,null,null,null,{"$f":"IF('1. Order'!AX1387=\"\",\"\",'1. Order'!AX1387)","v":""},{"$f":"IF('1. Order'!AY1387=\"\",\"\",'1. Order'!AY1387)","v":""},{"$f":"IF('1. Order'!AZ1387=\"\",\"\",'1. Order'!AZ1387)","v":""},{"$f":"IF('1. Order'!BA1387=\"\",\"\",'1. Order'!BA1387)","v":""},{"$f":"IF('1. Order'!BC1387=\"\",\"\",'1. Order'!BC1387)","v":""},{"$f":"IF('1. Order'!BD1387=\"\",\"\",'1. Order'!BD1387)","v":6},{"$f":"IF('1. Order'!BE1387=\"\",\"\",'1. Order'!BE1387)","v":"None"},{"$f":"IF('1. Order'!BF1387=\"\",\"\",'1. Order'!BF1387)","v":"Parcel"},{"$f":"IF('1. Order'!BG1387=\"\",\"\",'1. Order'!BG1387)","v":"ZWO"}]
[{"$f":"IF('1. Order'!F1388=\"\",\"\",'1. Order'!F1388)","v":""},{"$f":"IF('1. Order'!G1388=\"\",\"\",'1. Order'!G1388)","v":""},{"$f":"IF('1. Order'!H1388=\"\",\"\",'1. Order'!H1388)","v":""},{"$f":"IF('1. Order'!I1388=\"\",\"\",'1. Order'!I1388)","v":""},{"$f":"IF('1. Order'!J1388=\"\",\"\",'1. Order'!J1388)","v":""},{"$f":"IF('1. Order'!K1388=\"\",\"\",'1. Order'!K1388)","v":""},{"$f":"IF('1. Order'!L1388=\"\",\"\",'1. Order'!L1388)","v":""},{"$f":"IF('1. Order'!M1388=\"\",\"\",'1. Order'!M1388)","v":""},{"$f":"IF('1. Order'!N1388=\"\",\"\",'1. Order'!N1388)","v":""},{"$f":"IF('1. Order'!O1388=\"\",\"\",'1. Order'!O1388)","v":{"$error":"#N/A"}},{"$f":"IF('1. Order'!P1388=\"\",\"\",'1. Order'!P1388)","v":{"$error":"#N/A"}},{"$f":"IF('1. Order'!Q1388=\"\",\"\",'1. Order'!Q1388)","v":""},{"$f":"IF('1. Order'!R1388=\"\",\"\",'1. Order'!R1388)","v":""},{"$f":"IF('1. Order'!S1388=\"\",\"\",'1. Order'!S1388)","v":""},{"$f":"IF('1. Order'!V1388=\"\",\"\",'1. Order'!V1388)","v":""},{"$f":"IF('1. Order'!W1388=\"\",\"\",'1. Order'!W1388)","v":""},{"$f":"IF('1. Order'!X1388=\"\",\"\",'1. Order'!X1388)","v":"EUR"},{"$f":"IF('1. Order'!Y1388=\"\",\"\",'1. Order'!Y1388)","v":""},{"$f":"IF('1. Order'!Z1388=\"\",\"\",'1. Order'!Z1388)","v":""},{"$f":"IF('1. Order'!AA1388=\"\",\"\",'1. Order'!AA1388)","v":""},null,{"$f":"IF('1. Order'!AS1388=\"\",\"\",'1. Order'!AS1388)","v":""},{"$f":"IF('1. Order'!AT1388=\"\",\"\",'1. Order'!AT1388)","v":""},null,null,null,null,null,null,null,{"$f":"IF('1. Order'!AX1388=\"\",\"\",'1. Order'!AX1388)","v":""},{"$f":"IF('1. Order'!AY1388=\"\",\"\",'1. Order'!AY1388)","v":""},{"$f":"IF('1. Order'!AZ1388=\"\",\"\",'1. Order'!AZ1388)","v":""},{"$f":"IF('1. Order'!BA1388=\"\",\"\",'1. Order'!BA1388)","v":""},{"$f":"IF('1. Order'!BC1388=\"\",\"\",'1. Order'!BC1388)","v":""},{"$f":"IF('1. Order'!BD1388=\"\",\"\",'1. Order'!BD1388)","v":6},{"$f":"IF('1. Order'!BE1388=\"\",\"\",'1. Order'!BE1388)","v":"None"},{"$f":"IF('1. Order'!BF1388=\"\",\"\",'1. Order'!BF1388)","v":"Parcel"},{"$f":"IF('1. Order'!BG1388=\"\",\"\",'1. Order'!BG1388)","v":"ZWO"}]
[{"$f":"IF('1. Order'!F1389=\"\",\"\",'1. Order'!F1389)","v":""},{"$f":"IF('1. Order'!G1389=\"\",\"\",'1. Order'!G1389)","v":""},{"$f":"IF('1. Order'!H1389=\"\",\"\",'1. Order'!H1389)","v":""},{"$f":"IF('1. Order'!I1389=\"\",\"\",'1. Order'!I1389)","v":""},{"$f":"IF('1. Order'!J1389=\"\",\"\",'1. Order'!J1389)","v":""},{"$f":"IF('1. Order'!K1389=\"\",\"\",'1. Order'!K1389)","v":""},{"$f":"IF('1. Order'!L1389=\"\",\"\",'1. Order'!L1389)","v":""},{"$f":"IF('1. Order'!M1389=\"\",\"\",'1. Order'!M1389)","v":""},{"$f":"IF('1. Order'!N1389=\"\",\"\",'1. Order'!N1389)","v":""},{"$f":"IF('1. Order'!O1389=\"\",\"\",'1. Order'!O1389)","v":{"$error":"#N/A"}},{"$f":"IF('1. Order'!P1389=\"\",\"\",'1. Order'!P1389)","v":{"$error":"#N/A"}},{"$f":"IF('1. Order'!Q1389=\"\",\"\",'1. Order'!Q1389)","v":""},{"$f":"IF('1. Order'!R1389=\"\",\"\",'1. Order'!R1389)","v":""},{"$f":"IF('1. Order'!S1389=\"\",\"\",'1. Order'!S1389)","v":""},{"$f":"IF('1. Order'!V1389=\"\",\"\",'1. Order'!V1389)","v":""},{"$f":"IF('1. Order'!W1389=\"\",\"\",'1. Order'!W1389)","v":""},{"$f":"IF('1. Order'!X1389=\"\",\"\",'1. Order'!X1389)","v":"EUR"},{"$f":"IF('1. Order'!Y1389=\"\",\"\",'1. Order'!Y1389)","v":""},{"$f":"IF('1. Order'!Z1389=\"\",\"\",'1. Order'!Z1389)","v":""},{"$f":"IF('1. Order'!AA1389=\"\",\"\",'1. Order'!AA1389)","v":""},null,{"$f":"IF('1. Order'!AS1389=\"\",\"\",'1. Order'!AS1389)","v":""},{"$f":"IF('1. Order'!AT1389=\"\",\"\",'1. Order'!AT1389)","v":""},null,null,null,null,null,null,null,{"$f":"IF('1. Order'!AX1389=\"\",\"\",'1. Order'!AX1389)","v":""},{"$f":"IF('1. Order'!AY1389=\"\",\"\",'1. Order'!AY1389)","v":""},{"$f":"IF('1. Order'!AZ1389=\"\",\"\",'1. Order'!AZ1389)","v":""},{"$f":"IF('1. Order'!BA1389=\"\",\"\",'1. Order'!BA1389)","v":""},{"$f":"IF('1. Order'!BC1389=\"\",\"\",'1. Order'!BC1389)","v":""},{"$f":"IF('1. Order'!BD1389=\"\",\"\",'1. Order'!BD1389)","v":6},{"$f":"IF('1. Order'!BE1389=\"\",\"\",'1. Order'!BE1389)","v":"None"},{"$f":"IF('1. Order'!BF1389=\"\",\"\",'1. Order'!BF1389)","v":"Parcel"},{"$f":"IF('1. Order'!BG1389=\"\",\"\",'1. Order'!BG1389)","v":"ZWO"}]
[{"$f":"IF('1. Order'!F1390=\"\",\"\",'1. Order'!F1390)","v":""},{"$f":"IF('1. Order'!G1390=\"\",\"\",'1. Order'!G1390)","v":""},{"$f":"IF('1. Order'!H1390=\"\",\"\",'1. Order'!H1390)","v":""},{"$f":"IF('1. Order'!I1390=\"\",\"\",'1. Order'!I1390)","v":""},{"$f":"IF('1. Order'!J1390=\"\",\"\",'1. Order'!J1390)","v":""},{"$f":"IF('1. Order'!K1390=\"\",\"\",'1. Order'!K1390)","v":""},{"$f":"IF('1. Order'!L1390=\"\",\"\",'1. Order'!L1390)","v":""},{"$f":"IF('1. Order'!M1390=\"\",\"\",'1. Order'!M1390)","v":""},{"$f":"IF('1. Order'!N1390=\"\",\"\",'1. Order'!N1390)","v":""},{"$f":"IF('1. Order'!O1390=\"\",\"\",'1. Order'!O1390)","v":{"$error":"#N/A"}},{"$f":"IF('1. Order'!P1390=\"\",\"\",'1. Order'!P1390)","v":{"$error":"#N/A"}},{"$f":"IF('1. Order'!Q1390=\"\",\"\",'1. Order'!Q1390)","v":""},{"$f":"IF('1. Order'!R1390=\"\",\"\",'1. Order'!R1390)","v":""},{"$f":"IF('1. Order'!S1390=\"\",\"\",'1. Order'!S1390)","v":""},{"$f":"IF('1. Order'!V1390=\"\",\"\",'1. Order'!V1390)","v":""},{"$f":"IF('1. Order'!W1390=\"\",\"\",'1. Order'!W1390)","v":""},{"$f":"IF('1. Order'!X1390=\"\",\"\",'1. Order'!X1390)","v":"EUR"},{"$f":"IF('1. Order'!Y1390=\"\",\"\",'1. Order'!Y1390)","v":""},{"$f":"IF('1. Order'!Z1390=\"\",\"\",'1. Order'!Z1390)","v":""},{"$f":"IF('1. Order'!AA1390=\"\",\"\",'1. Order'!AA1390)","v":""},null,{"$f":"IF('1. Order'!AS1390=\"\",\"\",'1. Order'!AS1390)","v":""},{"$f":"IF('1. Order'!AT1390=\"\",\"\",'1. Order'!AT1390)","v":""},null,null,null,null,null,null,null,{"$f":"IF('1. Order'!AX1390=\"\",\"\",'1. Order'!AX1390)","v":""},{"$f":"IF('1. Order'!AY1390=\"\",\"\",'1. Order'!AY1390)","v":""},{"$f":"IF('1. Order'!AZ1390=\"\",\"\",'1. Order'!AZ1390)","v":""},{"$f":"IF('1. Order'!BA1390=\"\",\"\",'1. Order'!BA1390)","v":""},{"$f":"IF('1. Order'!BC1390=\"\",\"\",'1. Order'!BC1390)","v":""},{"$f":"IF('1. Order'!BD1390=\"\",\"\",'1. Order'!BD1390)","v":6},{"$f":"IF('1. Order'!BE1390=\"\",\"\",'1. Order'!BE1390)","v":"None"},{"$f":"IF('1. Order'!BF1390=\"\",\"\",'1. Order'!BF1390)","v":"Parcel"},{"$f":"IF('1. Order'!BG1390=\"\",\"\",'1. Order'!BG1390)","v":"ZWO"}]
[{"$f":"IF('1. Order'!F1391=\"\",\"\",'1. Order'!F1391)","v":""},{"$f":"IF('1. Order'!G1391=\"\",\"\",'1. Order'!G1391)","v":""},{"$f":"IF('1. Order'!H1391=\"\",\"\",'1. Order'!H1391)","v":""},{"$f":"IF('1. Order'!I1391=\"\",\"\",'1. Order'!I1391)","v":""},{"$f":"IF('1. Order'!J1391=\"\",\"\",'1. Order'!J1391)","v":""},{"$f":"IF('1. Order'!K1391=\"\",\"\",'1. Order'!K1391)","v":""},{"$f":"IF('1. Order'!L1391=\"\",\"\",'1. Order'!L1391)","v":""},{"$f":"IF('1. Order'!M1391=\"\",\"\",'1. Order'!M1391)","v":""},{"$f":"IF('1. Order'!N1391=\"\",\"\",'1. Order'!N1391)","v":""},{"$f":"IF('1. Order'!O1391=\"\",\"\",'1. Order'!O1391)","v":{"$error":"#N/A"}},{"$f":"IF('1. Order'!P1391=\"\",\"\",'1. Order'!P1391)","v":{"$error":"#N/A"}},{"$f":"IF('1. Order'!Q1391=\"\",\"\",'1. Order'!Q1391)","v":""},{"$f":"IF('1. Order'!R1391=\"\",\"\",'1. Order'!R1391)","v":""},{"$f":"IF('1. Order'!S1391=\"\",\"\",'1. Order'!S1391)","v":""},{"$f":"IF('1. Order'!V1391=\"\",\"\",'1. Order'!V1391)","v":""},{"$f":"IF('1. Order'!W1391=\"\",\"\",'1. Order'!W1391)","v":""},{"$f":"IF('1. Order'!X1391=\"\",\"\",'1. Order'!X1391)","v":"EUR"},{"$f":"IF('1. Order'!Y1391=\"\",\"\",'1. Order'!Y1391)","v":""},{"$f":"IF('1. Order'!Z1391=\"\",\"\",'1. Order'!Z1391)","v":""},{"$f":"IF('1. Order'!AA1391=\"\",\"\",'1. Order'!AA1391)","v":""},null,{"$f":"IF('1. Order'!AS1391=\"\",\"\",'1. Order'!AS1391)","v":""},{"$f":"IF('1. Order'!AT1391=\"\",\"\",'1. Order'!AT1391)","v":""},null,null,null,null,null,null,null,{"$f":"IF('1. Order'!AX1391=\"\",\"\",'1. Order'!AX1391)","v":""},{"$f":"IF('1. Order'!AY1391=\"\",\"\",'1. Order'!AY1391)","v":""},{"$f":"IF('1. Order'!AZ1391=\"\",\"\",'1. Order'!AZ1391)","v":""},{"$f":"IF('1. Order'!BA1391=\"\",\"\",'1. Order'!BA1391)","v":""},{"$f":"IF('1. Order'!BC1391=\"\",\"\",'1. Order'!BC1391)","v":""},{"$f":"IF('1. Order'!BD1391=\"\",\"\",'1. Order'!BD1391)","v":6},{"$f":"IF('1. Order'!BE1391=\"\",\"\",'1. Order'!BE1391)","v":"None"},{"$f":"IF('1. Order'!BF1391=\"\",\"\",'1. Order'!BF1391)","v":"Parcel"},{"$f":"IF('1. Order'!BG1391=\"\",\"\",'1. Order'!BG1391)","v":"ZWO"}]
[{"$f":"IF('1. Order'!F1392=\"\",\"\",'1. Order'!F1392)","v":""},{"$f":"IF('1. Order'!G1392=\"\",\"\",'1. Order'!G1392)","v":""},{"$f":"IF('1. Order'!H1392=\"\",\"\",'1. Order'!H1392)","v":""},{"$f":"IF('1. Order'!I1392=\"\",\"\",'1. Order'!I1392)","v":""},{"$f":"IF('1. Order'!J1392=\"\",\"\",'1. Order'!J1392)","v":""},{"$f":"IF('1. Order'!K1392=\"\",\"\",'1. Order'!K1392)","v":""},{"$f":"IF('1. Order'!L1392=\"\",\"\",'1. Order'!L1392)","v":""},{"$f":"IF('1. Order'!M1392=\"\",\"\",'1. Order'!M1392)","v":""},{"$f":"IF('1. Order'!N1392=\"\",\"\",'1. Order'!N1392)","v":""},{"$f":"IF('1. Order'!O1392=\"\",\"\",'1. Order'!O1392)","v":{"$error":"#N/A"}},{"$f":"IF('1. Order'!P1392=\"\",\"\",'1. Order'!P1392)","v":{"$error":"#N/A"}},{"$f":"IF('1. Order'!Q1392=\"\",\"\",'1. Order'!Q1392)","v":""},{"$f":"IF('1. Order'!R1392=\"\",\"\",'1. Order'!R1392)","v":""},{"$f":"IF('1. Order'!S1392=\"\",\"\",'1. Order'!S1392)","v":""},{"$f":"IF('1. Order'!V1392=\"\",\"\",'1. Order'!V1392)","v":""},{"$f":"IF('1. Order'!W1392=\"\",\"\",'1. Order'!W1392)","v":""},{"$f":"IF('1. Order'!X1392=\"\",\"\",'1. Order'!X1392)","v":"EUR"},{"$f":"IF('1. Order'!Y1392=\"\",\"\",'1. Order'!Y1392)","v":""},{"$f":"IF('1. Order'!Z1392=\"\",\"\",'1. Order'!Z1392)","v":""},{"$f":"IF('1. Order'!AA1392=\"\",\"\",'1. Order'!AA1392)","v":""},null,{"$f":"IF('1. Order'!AS1392=\"\",\"\",'1. Order'!AS1392)","v":""},{"$f":"IF('1. Order'!AT1392=\"\",\"\",'1. Order'!AT1392)","v":""},null,null,null,null,null,null,null,{"$f":"IF('1. Order'!AX1392=\"\",\"\",'1. Order'!AX1392)","v":""},{"$f":"IF('1. Order'!AY1392=\"\",\"\",'1. Order'!AY1392)","v":""},{"$f":"IF('1. Order'!AZ1392=\"\",\"\",'1. Order'!AZ1392)","v":""},{"$f":"IF('1. Order'!BA1392=\"\",\"\",'1. Order'!BA1392)","v":""},{"$f":"IF('1. Order'!BC1392=\"\",\"\",'1. Order'!BC1392)","v":""},{"$f":"IF('1. Order'!BD1392=\"\",\"\",'1. Order'!BD1392)","v":6},{"$f":"IF('1. Order'!BE1392=\"\",\"\",'1. Order'!BE1392)","v":"None"},{"$f":"IF('1. Order'!BF1392=\"\",\"\",'1. Order'!BF1392)","v":"Parcel"},{"$f":"IF('1. Order'!BG1392=\"\",\"\",'1. Order'!BG1392)","v":"ZWO"}]
[{"$f":"IF('1. Order'!F1393=\"\",\"\",'1. Order'!F1393)","v":""},{"$f":"IF('1. Order'!G1393=\"\",\"\",'1. Order'!G1393)","v":""},{"$f":"IF('1. Order'!H1393=\"\",\"\",'1. Order'!H1393)","v":""},{"$f":"IF('1. Order'!I1393=\"\",\"\",'1. Order'!I1393)","v":""},{"$f":"IF('1. Order'!J1393=\"\",\"\",'1. Order'!J1393)","v":""},{"$f":"IF('1. Order'!K1393=\"\",\"\",'1. Order'!K1393)","v":""},{"$f":"IF('1. Order'!L1393=\"\",\"\",'1. Order'!L1393)","v":""},{"$f":"IF('1. Order'!M1393=\"\",\"\",'1. Order'!M1393)","v":""},{"$f":"IF('1. Order'!N1393=\"\",\"\",'1. Order'!N1393)","v":""},{"$f":"IF('1. Order'!O1393=\"\",\"\",'1. Order'!O1393)","v":{"$error":"#N/A"}},{"$f":"IF('1. Order'!P1393=\"\",\"\",'1. Order'!P1393)","v":{"$error":"#N/A"}},{"$f":"IF('1. Order'!Q1393=\"\",\"\",'1. Order'!Q1393)","v":""},{"$f":"IF('1. Order'!R1393=\"\",\"\",'1. Order'!R1393)","v":""},{"$f":"IF('1. Order'!S1393=\"\",\"\",'1. Order'!S1393)","v":""},{"$f":"IF('1. Order'!V1393=\"\",\"\",'1. Order'!V1393)","v":""},{"$f":"IF('1. Order'!W1393=\"\",\"\",'1. Order'!W1393)","v":""},{"$f":"IF('1. Order'!X1393=\"\",\"\",'1. Order'!X1393)","v":"EUR"},{"$f":"IF('1. Order'!Y1393=\"\",\"\",'1. Order'!Y1393)","v":""},{"$f":"IF('1. Order'!Z1393=\"\",\"\",'1. Order'!Z1393)","v":""},{"$f":"IF('1. Order'!AA1393=\"\",\"\",'1. Order'!AA1393)","v":""},null,{"$f":"IF('1. Order'!AS1393=\"\",\"\",'1. Order'!AS1393)","v":""},{"$f":"IF('1. Order'!AT1393=\"\",\"\",'1. Order'!AT1393)","v":""},null,null,null,null,null,null,null,{"$f":"IF('1. Order'!AX1393=\"\",\"\",'1. Order'!AX1393)","v":""},{"$f":"IF('1. Order'!AY1393=\"\",\"\",'1. Order'!AY1393)","v":""},{"$f":"IF('1. Order'!AZ1393=\"\",\"\",'1. Order'!AZ1393)","v":""},{"$f":"IF('1. Order'!BA1393=\"\",\"\",'1. Order'!BA1393)","v":""},{"$f":"IF('1. Order'!BC1393=\"\",\"\",'1. Order'!BC1393)","v":""},{"$f":"IF('1. Order'!BD1393=\"\",\"\",'1. Order'!BD1393)","v":6},{"$f":"IF('1. Order'!BE1393=\"\",\"\",'1. Order'!BE1393)","v":"None"},{"$f":"IF('1. Order'!BF1393=\"\",\"\",'1. Order'!BF1393)","v":"Parcel"},{"$f":"IF('1. Order'!BG1393=\"\",\"\",'1. Order'!BG1393)","v":"ZWO"}]
[{"$f":"IF('1. Order'!F1394=\"\",\"\",'1. Order'!F1394)","v":""},{"$f":"IF('1. Order'!G1394=\"\",\"\",'1. Order'!G1394)","v":""},{"$f":"IF('1. Order'!H1394=\"\",\"\",'1. Order'!H1394)","v":""},{"$f":"IF('1. Order'!I1394=\"\",\"\",'1. Order'!I1394)","v":""},{"$f":"IF('1. Order'!J1394=\"\",\"\",'1. Order'!J1394)","v":""},{"$f":"IF('1. Order'!K1394=\"\",\"\",'1. Order'!K1394)","v":""},{"$f":"IF('1. Order'!L1394=\"\",\"\",'1. Order'!L1394)","v":""},{"$f":"IF('1. Order'!M1394=\"\",\"\",'1. Order'!M1394)","v":""},{"$f":"IF('1. Order'!N1394=\"\",\"\",'1. Order'!N1394)","v":""},{"$f":"IF('1. Order'!O1394=\"\",\"\",'1. Order'!O1394)","v":{"$error":"#N/A"}},{"$f":"IF('1. Order'!P1394=\"\",\"\",'1. Order'!P1394)","v":{"$error":"#N/A"}},{"$f":"IF('1. Order'!Q1394=\"\",\"\",'1. Order'!Q1394)","v":""},{"$f":"IF('1. Order'!R1394=\"\",\"\",'1. Order'!R1394)","v":""},{"$f":"IF('1. Order'!S1394=\"\",\"\",'1. Order'!S1394)","v":""},{"$f":"IF('1. Order'!V1394=\"\",\"\",'1. Order'!V1394)","v":""},{"$f":"IF('1. Order'!W1394=\"\",\"\",'1. Order'!W1394)","v":""},{"$f":"IF('1. Order'!X1394=\"\",\"\",'1. Order'!X1394)","v":"EUR"},{"$f":"IF('1. Order'!Y1394=\"\",\"\",'1. Order'!Y1394)","v":""},{"$f":"IF('1. Order'!Z1394=\"\",\"\",'1. Order'!Z1394)","v":""},{"$f":"IF('1. Order'!AA1394=\"\",\"\",'1. Order'!AA1394)","v":""},null,{"$f":"IF('1. Order'!AS1394=\"\",\"\",'1. Order'!AS1394)","v":""},{"$f":"IF('1. Order'!AT1394=\"\",\"\",'1. Order'!AT1394)","v":""},null,null,null,null,null,null,null,{"$f":"IF('1. Order'!AX1394=\"\",\"\",'1. Order'!AX1394)","v":""},{"$f":"IF('1. Order'!AY1394=\"\",\"\",'1. Order'!AY1394)","v":""},{"$f":"IF('1. Order'!AZ1394=\"\",\"\",'1. Order'!AZ1394)","v":""},{"$f":"IF('1. Order'!BA1394=\"\",\"\",'1. Order'!BA1394)","v":""},{"$f":"IF('1. Order'!BC1394=\"\",\"\",'1. Order'!BC1394)","v":""},{"$f":"IF('1. Order'!BD1394=\"\",\"\",'1. Order'!BD1394)","v":6},{"$f":"IF('1. Order'!BE1394=\"\",\"\",'1. Order'!BE1394)","v":"None"},{"$f":"IF('1. Order'!BF1394=\"\",\"\",'1. Order'!BF1394)","v":"Parcel"},{"$f":"IF('1. Order'!BG1394=\"\",\"\",'1. Order'!BG1394)","v":"ZWO"}]
[{"$f":"IF('1. Order'!F1395=\"\",\"\",'1. Order'!F1395)","v":""},{"$f":"IF('1. Order'!G1395=\"\",\"\",'1. Order'!G1395)","v":""},{"$f":"IF('1. Order'!H1395=\"\",\"\",'1. Order'!H1395)","v":""},{"$f":"IF('1. Order'!I1395=\"\",\"\",'1. Order'!I1395)","v":""},{"$f":"IF('1. Order'!J1395=\"\",\"\",'1. Order'!J1395)","v":""},{"$f":"IF('1. Order'!K1395=\"\",\"\",'1. Order'!K1395)","v":""},{"$f":"IF('1. Order'!L1395=\"\",\"\",'1. Order'!L1395)","v":""},{"$f":"IF('1. Order'!M1395=\"\",\"\",'1. Order'!M1395)","v":""},{"$f":"IF('1. Order'!N1395=\"\",\"\",'1. Order'!N1395)","v":""},{"$f":"IF('1. Order'!O1395=\"\",\"\",'1. Order'!O1395)","v":{"$error":"#N/A"}},{"$f":"IF('1. Order'!P1395=\"\",\"\",'1. Order'!P1395)","v":{"$error":"#N/A"}},{"$f":"IF('1. Order'!Q1395=\"\",\"\",'1. Order'!Q1395)","v":""},{"$f":"IF('1. Order'!R1395=\"\",\"\",'1. Order'!R1395)","v":""},{"$f":"IF('1. Order'!S1395=\"\",\"\",'1. Order'!S1395)","v":""},{"$f":"IF('1. Order'!V1395=\"\",\"\",'1. Order'!V1395)","v":""},{"$f":"IF('1. Order'!W1395=\"\",\"\",'1. Order'!W1395)","v":""},{"$f":"IF('1. Order'!X1395=\"\",\"\",'1. Order'!X1395)","v":"EUR"},{"$f":"IF('1. Order'!Y1395=\"\",\"\",'1. Order'!Y1395)","v":""},{"$f":"IF('1. Order'!Z1395=\"\",\"\",'1. Order'!Z1395)","v":""},{"$f":"IF('1. Order'!AA1395=\"\",\"\",'1. Order'!AA1395)","v":""},null,{"$f":"IF('1. Order'!AS1395=\"\",\"\",'1. Order'!AS1395)","v":""},{"$f":"IF('1. Order'!AT1395=\"\",\"\",'1. Order'!AT1395)","v":""},null,null,null,null,null,null,null,{"$f":"IF('1. Order'!AX1395=\"\",\"\",'1. Order'!AX1395)","v":""},{"$f":"IF('1. Order'!AY1395=\"\",\"\",'1. Order'!AY1395)","v":""},{"$f":"IF('1. Order'!AZ1395=\"\",\"\",'1. Order'!AZ1395)","v":""},{"$f":"IF('1. Order'!BA1395=\"\",\"\",'1. Order'!BA1395)","v":""},{"$f":"IF('1. Order'!BC1395=\"\",\"\",'1. Order'!BC1395)","v":""},{"$f":"IF('1. Order'!BD1395=\"\",\"\",'1. Order'!BD1395)","v":6},{"$f":"IF('1. Order'!BE1395=\"\",\"\",'1. Order'!BE1395)","v":"None"},{"$f":"IF('1. Order'!BF1395=\"\",\"\",'1. Order'!BF1395)","v":"Parcel"},{"$f":"IF('1. Order'!BG1395=\"\",\"\",'1. Order'!BG1395)","v":"ZWO"}]
[{"$f":"IF('1. Order'!F1396=\"\",\"\",'1. Order'!F1396)","v":""},{"$f":"IF('1. Order'!G1396=\"\",\"\",'1. Order'!G1396)","v":""},{"$f":"IF('1. Order'!H1396=\"\",\"\",'1. Order'!H1396)","v":""},{"$f":"IF('1. Order'!I1396=\"\",\"\",'1. Order'!I1396)","v":""},{"$f":"IF('1. Order'!J1396=\"\",\"\",'1. Order'!J1396)","v":""},{"$f":"IF('1. Order'!K1396=\"\",\"\",'1. Order'!K1396)","v":""},{"$f":"IF('1. Order'!L1396=\"\",\"\",'1. Order'!L1396)","v":""},{"$f":"IF('1. Order'!M1396=\"\",\"\",'1. Order'!M1396)","v":""},{"$f":"IF('1. Order'!N1396=\"\",\"\",'1. Order'!N1396)","v":""},{"$f":"IF('1. Order'!O1396=\"\",\"\",'1. Order'!O1396)","v":{"$error":"#N/A"}},{"$f":"IF('1. Order'!P1396=\"\",\"\",'1. Order'!P1396)","v":{"$error":"#N/A"}},{"$f":"IF('1. Order'!Q1396=\"\",\"\",'1. Order'!Q1396)","v":""},{"$f":"IF('1. Order'!R1396=\"\",\"\",'1. Order'!R1396)","v":""},{"$f":"IF('1. Order'!S1396=\"\",\"\",'1. Order'!S1396)","v":""},{"$f":"IF('1. Order'!V1396=\"\",\"\",'1. Order'!V1396)","v":""},{"$f":"IF('1. Order'!W1396=\"\",\"\",'1. Order'!W1396)","v":""},{"$f":"IF('1. Order'!X1396=\"\",\"\",'1. Order'!X1396)","v":"EUR"},{"$f":"IF('1. Order'!Y1396=\"\",\"\",'1. Order'!Y1396)","v":""},{"$f":"IF('1. Order'!Z1396=\"\",\"\",'1. Order'!Z1396)","v":""},{"$f":"IF('1. Order'!AA1396=\"\",\"\",'1. Order'!AA1396)","v":""},null,{"$f":"IF('1. Order'!AS1396=\"\",\"\",'1. Order'!AS1396)","v":""},{"$f":"IF('1. Order'!AT1396=\"\",\"\",'1. Order'!AT1396)","v":""},null,null,null,null,null,null,null,{"$f":"IF('1. Order'!AX1396=\"\",\"\",'1. Order'!AX1396)","v":""},{"$f":"IF('1. Order'!AY1396=\"\",\"\",'1. Order'!AY1396)","v":""},{"$f":"IF('1. Order'!AZ1396=\"\",\"\",'1. Order'!AZ1396)","v":""},{"$f":"IF('1. Order'!BA1396=\"\",\"\",'1. Order'!BA1396)","v":""},{"$f":"IF('1. Order'!BC1396=\"\",\"\",'1. Order'!BC1396)","v":""},{"$f":"IF('1. Order'!BD1396=\"\",\"\",'1. Order'!BD1396)","v":6},{"$f":"IF('1. Order'!BE1396=\"\",\"\",'1. Order'!BE1396)","v":"None"},{"$f":"IF('1. Order'!BF1396=\"\",\"\",'1. Order'!BF1396)","v":"Parcel"},{"$f":"IF('1. Order'!BG1396=\"\",\"\",'1. Order'!BG1396)","v":"ZWO"}]
[{"$f":"IF('1. Order'!F1397=\"\",\"\",'1. Order'!F1397)","v":""},{"$f":"IF('1. Order'!G1397=\"\",\"\",'1. Order'!G1397)","v":""},{"$f":"IF('1. Order'!H1397=\"\",\"\",'1. Order'!H1397)","v":""},{"$f":"IF('1. Order'!I1397=\"\",\"\",'1. Order'!I1397)","v":""},{"$f":"IF('1. Order'!J1397=\"\",\"\",'1. Order'!J1397)","v":""},{"$f":"IF('1. Order'!K1397=\"\",\"\",'1. Order'!K1397)","v":""},{"$f":"IF('1. Order'!L1397=\"\",\"\",'1. Order'!L1397)","v":""},{"$f":"IF('1. Order'!M1397=\"\",\"\",'1. Order'!M1397)","v":""},{"$f":"IF('1. Order'!N1397=\"\",\"\",'1. Order'!N1397)","v":""},{"$f":"IF('1. Order'!O1397=\"\",\"\",'1. Order'!O1397)","v":{"$error":"#N/A"}},{"$f":"IF('1. Order'!P1397=\"\",\"\",'1. Order'!P1397)","v":{"$error":"#N/A"}},{"$f":"IF('1. Order'!Q1397=\"\",\"\",'1. Order'!Q1397)","v":""},{"$f":"IF('1. Order'!R1397=\"\",\"\",'1. Order'!R1397)","v":""},{"$f":"IF('1. Order'!S1397=\"\",\"\",'1. Order'!S1397)","v":""},{"$f":"IF('1. Order'!V1397=\"\",\"\",'1. Order'!V1397)","v":""},{"$f":"IF('1. Order'!W1397=\"\",\"\",'1. Order'!W1397)","v":""},{"$f":"IF('1. Order'!X1397=\"\",\"\",'1. Order'!X1397)","v":"EUR"},{"$f":"IF('1. Order'!Y1397=\"\",\"\",'1. Order'!Y1397)","v":""},{"$f":"IF('1. Order'!Z1397=\"\",\"\",'1. Order'!Z1397)","v":""},{"$f":"IF('1. Order'!AA1397=\"\",\"\",'1. Order'!AA1397)","v":""},null,{"$f":"IF('1. Order'!AS1397=\"\",\"\",'1. Order'!AS1397)","v":""},{"$f":"IF('1. Order'!AT1397=\"\",\"\",'1. Order'!AT1397)","v":""},null,null,null,null,null,null,null,{"$f":"IF('1. Order'!AX1397=\"\",\"\",'1. Order'!AX1397)","v":""},{"$f":"IF('1. Order'!AY1397=\"\",\"\",'1. Order'!AY1397)","v":""},{"$f":"IF('1. Order'!AZ1397=\"\",\"\",'1. Order'!AZ1397)","v":""},{"$f":"IF('1. Order'!BA1397=\"\",\"\",'1. Order'!BA1397)","v":""},{"$f":"IF('1. Order'!BC1397=\"\",\"\",'1. Order'!BC1397)","v":""},{"$f":"IF('1. Order'!BD1397=\"\",\"\",'1. Order'!BD1397)","v":6},{"$f":"IF('1. Order'!BE1397=\"\",\"\",'1. Order'!BE1397)","v":"None"},{"$f":"IF('1. Order'!BF1397=\"\",\"\",'1. Order'!BF1397)","v":"Parcel"},{"$f":"IF('1. Order'!BG1397=\"\",\"\",'1. Order'!BG1397)","v":"ZWO"}]
[{"$f":"IF('1. Order'!F1398=\"\",\"\",'1. Order'!F1398)","v":""},{"$f":"IF('1. Order'!G1398=\"\",\"\",'1. Order'!G1398)","v":""},{"$f":"IF('1. Order'!H1398=\"\",\"\",'1. Order'!H1398)","v":""},{"$f":"IF('1. Order'!I1398=\"\",\"\",'1. Order'!I1398)","v":""},{"$f":"IF('1. Order'!J1398=\"\",\"\",'1. Order'!J1398)","v":""},{"$f":"IF('1. Order'!K1398=\"\",\"\",'1. Order'!K1398)","v":""},{"$f":"IF('1. Order'!L1398=\"\",\"\",'1. Order'!L1398)","v":""},{"$f":"IF('1. Order'!M1398=\"\",\"\",'1. Order'!M1398)","v":""},{"$f":"IF('1. Order'!N1398=\"\",\"\",'1. Order'!N1398)","v":""},{"$f":"IF('1. Order'!O1398=\"\",\"\",'1. Order'!O1398)","v":{"$error":"#N/A"}},{"$f":"IF('1. Order'!P1398=\"\",\"\",'1. Order'!P1398)","v":{"$error":"#N/A"}},{"$f":"IF('1. Order'!Q1398=\"\",\"\",'1. Order'!Q1398)","v":""},{"$f":"IF('1. Order'!R1398=\"\",\"\",'1. Order'!R1398)","v":""},{"$f":"IF('1. Order'!S1398=\"\",\"\",'1. Order'!S1398)","v":""},{"$f":"IF('1. Order'!V1398=\"\",\"\",'1. Order'!V1398)","v":""},{"$f":"IF('1. Order'!W1398=\"\",\"\",'1. Order'!W1398)","v":""},{"$f":"IF('1. Order'!X1398=\"\",\"\",'1. Order'!X1398)","v":"EUR"},{"$f":"IF('1. Order'!Y1398=\"\",\"\",'1. Order'!Y1398)","v":""},{"$f":"IF('1. Order'!Z1398=\"\",\"\",'1. Order'!Z1398)","v":""},{"$f":"IF('1. Order'!AA1398=\"\",\"\",'1. Order'!AA1398)","v":""},null,{"$f":"IF('1. Order'!AS1398=\"\",\"\",'1. Order'!AS1398)","v":""},{"$f":"IF('1. Order'!AT1398=\"\",\"\",'1. Order'!AT1398)","v":""},null,null,null,null,null,null,null,{"$f":"IF('1. Order'!AX1398=\"\",\"\",'1. Order'!AX1398)","v":""},{"$f":"IF('1. Order'!AY1398=\"\",\"\",'1. Order'!AY1398)","v":""},{"$f":"IF('1. Order'!AZ1398=\"\",\"\",'1. Order'!AZ1398)","v":""},{"$f":"IF('1. Order'!BA1398=\"\",\"\",'1. Order'!BA1398)","v":""},{"$f":"IF('1. Order'!BC1398=\"\",\"\",'1. Order'!BC1398)","v":""},{"$f":"IF('1. Order'!BD1398=\"\",\"\",'1. Order'!BD1398)","v":6},{"$f":"IF('1. Order'!BE1398=\"\",\"\",'1. Order'!BE1398)","v":"None"},{"$f":"IF('1. Order'!BF1398=\"\",\"\",'1. Order'!BF1398)","v":"Parcel"},{"$f":"IF('1. Order'!BG1398=\"\",\"\",'1. Order'!BG1398)","v":"ZWO"}]
[{"$f":"IF('1. Order'!F1399=\"\",\"\",'1. Order'!F1399)","v":""},{"$f":"IF('1. Order'!G1399=\"\",\"\",'1. Order'!G1399)","v":""},{"$f":"IF('1. Order'!H1399=\"\",\"\",'1. Order'!H1399)","v":""},{"$f":"IF('1. Order'!I1399=\"\",\"\",'1. Order'!I1399)","v":""},{"$f":"IF('1. Order'!J1399=\"\",\"\",'1. Order'!J1399)","v":""},{"$f":"IF('1. Order'!K1399=\"\",\"\",'1. Order'!K1399)","v":""},{"$f":"IF('1. Order'!L1399=\"\",\"\",'1. Order'!L1399)","v":""},{"$f":"IF('1. Order'!M1399=\"\",\"\",'1. Order'!M1399)","v":""},{"$f":"IF('1. Order'!N1399=\"\",\"\",'1. Order'!N1399)","v":""},{"$f":"IF('1. Order'!O1399=\"\",\"\",'1. Order'!O1399)","v":{"$error":"#N/A"}},{"$f":"IF('1. Order'!P1399=\"\",\"\",'1. Order'!P1399)","v":{"$error":"#N/A"}},{"$f":"IF('1. Order'!Q1399=\"\",\"\",'1. Order'!Q1399)","v":""},{"$f":"IF('1. Order'!R1399=\"\",\"\",'1. Order'!R1399)","v":""},{"$f":"IF('1. Order'!S1399=\"\",\"\",'1. Order'!S1399)","v":""},{"$f":"IF('1. Order'!V1399=\"\",\"\",'1. Order'!V1399)","v":""},{"$f":"IF('1. Order'!W1399=\"\",\"\",'1. Order'!W1399)","v":""},{"$f":"IF('1. Order'!X1399=\"\",\"\",'1. Order'!X1399)","v":"EUR"},{"$f":"IF('1. Order'!Y1399=\"\",\"\",'1. Order'!Y1399)","v":""},{"$f":"IF('1. Order'!Z1399=\"\",\"\",'1. Order'!Z1399)","v":""},{"$f":"IF('1. Order'!AA1399=\"\",\"\",'1. Order'!AA1399)","v":""},null,{"$f":"IF('1. Order'!AS1399=\"\",\"\",'1. Order'!AS1399)","v":""},{"$f":"IF('1. Order'!AT1399=\"\",\"\",'1. Order'!AT1399)","v":""},null,null,null,null,null,null,null,{"$f":"IF('1. Order'!AX1399=\"\",\"\",'1. Order'!AX1399)","v":""},{"$f":"IF('1. Order'!AY1399=\"\",\"\",'1. Order'!AY1399)","v":""},{"$f":"IF('1. Order'!AZ1399=\"\",\"\",'1. Order'!AZ1399)","v":""},{"$f":"IF('1. Order'!BA1399=\"\",\"\",'1. Order'!BA1399)","v":""},{"$f":"IF('1. Order'!BC1399=\"\",\"\",'1. Order'!BC1399)","v":""},{"$f":"IF('1. Order'!BD1399=\"\",\"\",'1. Order'!BD1399)","v":6},{"$f":"IF('1. Order'!BE1399=\"\",\"\",'1. Order'!BE1399)","v":"None"},{"$f":"IF('1. Order'!BF1399=\"\",\"\",'1. Order'!BF1399)","v":"Parcel"},{"$f":"IF('1. Order'!BG1399=\"\",\"\",'1. Order'!BG1399)","v":"ZWO"}]
[{"$f":"IF('1. Order'!F1400=\"\",\"\",'1. Order'!F1400)","v":""},{"$f":"IF('1. Order'!G1400=\"\",\"\",'1. Order'!G1400)","v":""},{"$f":"IF('1. Order'!H1400=\"\",\"\",'1. Order'!H1400)","v":""},{"$f":"IF('1. Order'!I1400=\"\",\"\",'1. Order'!I1400)","v":""},{"$f":"IF('1. Order'!J1400=\"\",\"\",'1. Order'!J1400)","v":""},{"$f":"IF('1. Order'!K1400=\"\",\"\",'1. Order'!K1400)","v":""},{"$f":"IF('1. Order'!L1400=\"\",\"\",'1. Order'!L1400)","v":""},{"$f":"IF('1. Order'!M1400=\"\",\"\",'1. Order'!M1400)","v":""},{"$f":"IF('1. Order'!N1400=\"\",\"\",'1. Order'!N1400)","v":""},{"$f":"IF('1. Order'!O1400=\"\",\"\",'1. Order'!O1400)","v":{"$error":"#N/A"}},{"$f":"IF('1. Order'!P1400=\"\",\"\",'1. Order'!P1400)","v":{"$error":"#N/A"}},{"$f":"IF('1. Order'!Q1400=\"\",\"\",'1. Order'!Q1400)","v":""},{"$f":"IF('1. Order'!R1400=\"\",\"\",'1. Order'!R1400)","v":""},{"$f":"IF('1. Order'!S1400=\"\",\"\",'1. Order'!S1400)","v":""},{"$f":"IF('1. Order'!V1400=\"\",\"\",'1. Order'!V1400)","v":""},{"$f":"IF('1. Order'!W1400=\"\",\"\",'1. Order'!W1400)","v":""},{"$f":"IF('1. Order'!X1400=\"\",\"\",'1. Order'!X1400)","v":"EUR"},{"$f":"IF('1. Order'!Y1400=\"\",\"\",'1. Order'!Y1400)","v":""},{"$f":"IF('1. Order'!Z1400=\"\",\"\",'1. Order'!Z1400)","v":""},{"$f":"IF('1. Order'!AA1400=\"\",\"\",'1. Order'!AA1400)","v":""},null,{"$f":"IF('1. Order'!AS1400=\"\",\"\",'1. Order'!AS1400)","v":""},{"$f":"IF('1. Order'!AT1400=\"\",\"\",'1. Order'!AT1400)","v":""},null,null,null,null,null,null,null,{"$f":"IF('1. Order'!AX1400=\"\",\"\",'1. Order'!AX1400)","v":""},{"$f":"IF('1. Order'!AY1400=\"\",\"\",'1. Order'!AY1400)","v":""},{"$f":"IF('1. Order'!AZ1400=\"\",\"\",'1. Order'!AZ1400)","v":""},{"$f":"IF('1. Order'!BA1400=\"\",\"\",'1. Order'!BA1400)","v":""},{"$f":"IF('1. Order'!BC1400=\"\",\"\",'1. Order'!BC1400)","v":""},{"$f":"IF('1. Order'!BD1400=\"\",\"\",'1. Order'!BD1400)","v":6},{"$f":"IF('1. Order'!BE1400=\"\",\"\",'1. Order'!BE1400)","v":"None"},{"$f":"IF('1. Order'!BF1400=\"\",\"\",'1. Order'!BF1400)","v":"Parcel"},{"$f":"IF('1. Order'!BG1400=\"\",\"\",'1. Order'!BG1400)","v":"ZWO"}]
[{"$f":"IF('1. Order'!F1401=\"\",\"\",'1. Order'!F1401)","v":""},{"$f":"IF('1. Order'!G1401=\"\",\"\",'1. Order'!G1401)","v":""},{"$f":"IF('1. Order'!H1401=\"\",\"\",'1. Order'!H1401)","v":""},{"$f":"IF('1. Order'!I1401=\"\",\"\",'1. Order'!I1401)","v":""},{"$f":"IF('1. Order'!J1401=\"\",\"\",'1. Order'!J1401)","v":""},{"$f":"IF('1. Order'!K1401=\"\",\"\",'1. Order'!K1401)","v":""},{"$f":"IF('1. Order'!L1401=\"\",\"\",'1. Order'!L1401)","v":""},{"$f":"IF('1. Order'!M1401=\"\",\"\",'1. Order'!M1401)","v":""},{"$f":"IF('1. Order'!N1401=\"\",\"\",'1. Order'!N1401)","v":""},{"$f":"IF('1. Order'!O1401=\"\",\"\",'1. Order'!O1401)","v":{"$error":"#N/A"}},{"$f":"IF('1. Order'!P1401=\"\",\"\",'1. Order'!P1401)","v":{"$error":"#N/A"}},{"$f":"IF('1. Order'!Q1401=\"\",\"\",'1. Order'!Q1401)","v":""},{"$f":"IF('1. Order'!R1401=\"\",\"\",'1. Order'!R1401)","v":""},{"$f":"IF('1. Order'!S1401=\"\",\"\",'1. Order'!S1401)","v":""},{"$f":"IF('1. Order'!V1401=\"\",\"\",'1. Order'!V1401)","v":""},{"$f":"IF('1. Order'!W1401=\"\",\"\",'1. Order'!W1401)","v":""},{"$f":"IF('1. Order'!X1401=\"\",\"\",'1. Order'!X1401)","v":"EUR"},{"$f":"IF('1. Order'!Y1401=\"\",\"\",'1. Order'!Y1401)","v":""},{"$f":"IF('1. Order'!Z1401=\"\",\"\",'1. Order'!Z1401)","v":""},{"$f":"IF('1. Order'!AA1401=\"\",\"\",'1. Order'!AA1401)","v":""},null,{"$f":"IF('1. Order'!AS1401=\"\",\"\",'1. Order'!AS1401)","v":""},{"$f":"IF('1. Order'!AT1401=\"\",\"\",'1. Order'!AT1401)","v":""},null,null,null,null,null,null,null,{"$f":"IF('1. Order'!AX1401=\"\",\"\",'1. Order'!AX1401)","v":""},{"$f":"IF('1. Order'!AY1401=\"\",\"\",'1. Order'!AY1401)","v":""},{"$f":"IF('1. Order'!AZ1401=\"\",\"\",'1. Order'!AZ1401)","v":""},{"$f":"IF('1. Order'!BA1401=\"\",\"\",'1. Order'!BA1401)","v":""},{"$f":"IF('1. Order'!BC1401=\"\",\"\",'1. Order'!BC1401)","v":""},{"$f":"IF('1. Order'!BD1401=\"\",\"\",'1. Order'!BD1401)","v":6},{"$f":"IF('1. Order'!BE1401=\"\",\"\",'1. Order'!BE1401)","v":"None"},{"$f":"IF('1. Order'!BF1401=\"\",\"\",'1. Order'!BF1401)","v":"Parcel"},{"$f":"IF('1. Order'!BG1401=\"\",\"\",'1. Order'!BG1401)","v":"ZWO"}]
[{"$f":"IF('1. Order'!F1402=\"\",\"\",'1. Order'!F1402)","v":""},{"$f":"IF('1. Order'!G1402=\"\",\"\",'1. Order'!G1402)","v":""},{"$f":"IF('1. Order'!H1402=\"\",\"\",'1. Order'!H1402)","v":""},{"$f":"IF('1. Order'!I1402=\"\",\"\",'1. Order'!I1402)","v":""},{"$f":"IF('1. Order'!J1402=\"\",\"\",'1. Order'!J1402)","v":""},{"$f":"IF('1. Order'!K1402=\"\",\"\",'1. Order'!K1402)","v":""},{"$f":"IF('1. Order'!L1402=\"\",\"\",'1. Order'!L1402)","v":""},{"$f":"IF('1. Order'!M1402=\"\",\"\",'1. Order'!M1402)","v":""},{"$f":"IF('1. Order'!N1402=\"\",\"\",'1. Order'!N1402)","v":""},{"$f":"IF('1. Order'!O1402=\"\",\"\",'1. Order'!O1402)","v":{"$error":"#N/A"}},{"$f":"IF('1. Order'!P1402=\"\",\"\",'1. Order'!P1402)","v":{"$error":"#N/A"}},{"$f":"IF('1. Order'!Q1402=\"\",\"\",'1. Order'!Q1402)","v":""},{"$f":"IF('1. Order'!R1402=\"\",\"\",'1. Order'!R1402)","v":""},{"$f":"IF('1. Order'!S1402=\"\",\"\",'1. Order'!S1402)","v":""},{"$f":"IF('1. Order'!V1402=\"\",\"\",'1. Order'!V1402)","v":""},{"$f":"IF('1. Order'!W1402=\"\",\"\",'1. Order'!W1402)","v":""},{"$f":"IF('1. Order'!X1402=\"\",\"\",'1. Order'!X1402)","v":"EUR"},{"$f":"IF('1. Order'!Y1402=\"\",\"\",'1. Order'!Y1402)","v":""},{"$f":"IF('1. Order'!Z1402=\"\",\"\",'1. Order'!Z1402)","v":""},{"$f":"IF('1. Order'!AA1402=\"\",\"\",'1. Order'!AA1402)","v":""},null,{"$f":"IF('1. Order'!AS1402=\"\",\"\",'1. Order'!AS1402)","v":""},{"$f":"IF('1. Order'!AT1402=\"\",\"\",'1. Order'!AT1402)","v":""},null,null,null,null,null,null,null,{"$f":"IF('1. Order'!AX1402=\"\",\"\",'1. Order'!AX1402)","v":""},{"$f":"IF('1. Order'!AY1402=\"\",\"\",'1. Order'!AY1402)","v":""},{"$f":"IF('1. Order'!AZ1402=\"\",\"\",'1. Order'!AZ1402)","v":""},{"$f":"IF('1. Order'!BA1402=\"\",\"\",'1. Order'!BA1402)","v":""},{"$f":"IF('1. Order'!BC1402=\"\",\"\",'1. Order'!BC1402)","v":""},{"$f":"IF('1. Order'!BD1402=\"\",\"\",'1. Order'!BD1402)","v":6},{"$f":"IF('1. Order'!BE1402=\"\",\"\",'1. Order'!BE1402)","v":"None"},{"$f":"IF('1. Order'!BF1402=\"\",\"\",'1. Order'!BF1402)","v":"Parcel"},{"$f":"IF('1. Order'!BG1402=\"\",\"\",'1. Order'!BG1402)","v":"ZWO"}]
[{"$f":"IF('1. Order'!F1403=\"\",\"\",'1. Order'!F1403)","v":""},{"$f":"IF('1. Order'!G1403=\"\",\"\",'1. Order'!G1403)","v":""},{"$f":"IF('1. Order'!H1403=\"\",\"\",'1. Order'!H1403)","v":""},{"$f":"IF('1. Order'!I1403=\"\",\"\",'1. Order'!I1403)","v":""},{"$f":"IF('1. Order'!J1403=\"\",\"\",'1. Order'!J1403)","v":""},{"$f":"IF('1. Order'!K1403=\"\",\"\",'1. Order'!K1403)","v":""},{"$f":"IF('1. Order'!L1403=\"\",\"\",'1. Order'!L1403)","v":""},{"$f":"IF('1. Order'!M1403=\"\",\"\",'1. Order'!M1403)","v":""},{"$f":"IF('1. Order'!N1403=\"\",\"\",'1. Order'!N1403)","v":""},{"$f":"IF('1. Order'!O1403=\"\",\"\",'1. Order'!O1403)","v":{"$error":"#N/A"}},{"$f":"IF('1. Order'!P1403=\"\",\"\",'1. Order'!P1403)","v":{"$error":"#N/A"}},{"$f":"IF('1. Order'!Q1403=\"\",\"\",'1. Order'!Q1403)","v":""},{"$f":"IF('1. Order'!R1403=\"\",\"\",'1. Order'!R1403)","v":""},{"$f":"IF('1. Order'!S1403=\"\",\"\",'1. Order'!S1403)","v":""},{"$f":"IF('1. Order'!V1403=\"\",\"\",'1. Order'!V1403)","v":""},{"$f":"IF('1. Order'!W1403=\"\",\"\",'1. Order'!W1403)","v":""},{"$f":"IF('1. Order'!X1403=\"\",\"\",'1. Order'!X1403)","v":"EUR"},{"$f":"IF('1. Order'!Y1403=\"\",\"\",'1. Order'!Y1403)","v":""},{"$f":"IF('1. Order'!Z1403=\"\",\"\",'1. Order'!Z1403)","v":""},{"$f":"IF('1. Order'!AA1403=\"\",\"\",'1. Order'!AA1403)","v":""},null,{"$f":"IF('1. Order'!AS1403=\"\",\"\",'1. Order'!AS1403)","v":""},{"$f":"IF('1. Order'!AT1403=\"\",\"\",'1. Order'!AT1403)","v":""},null,null,null,null,null,null,null,{"$f":"IF('1. Order'!AX1403=\"\",\"\",'1. Order'!AX1403)","v":""},{"$f":"IF('1. Order'!AY1403=\"\",\"\",'1. Order'!AY1403)","v":""},{"$f":"IF('1. Order'!AZ1403=\"\",\"\",'1. Order'!AZ1403)","v":""},{"$f":"IF('1. Order'!BA1403=\"\",\"\",'1. Order'!BA1403)","v":""},{"$f":"IF('1. Order'!BC1403=\"\",\"\",'1. Order'!BC1403)","v":""},{"$f":"IF('1. Order'!BD1403=\"\",\"\",'1. Order'!BD1403)","v":6},{"$f":"IF('1. Order'!BE1403=\"\",\"\",'1. Order'!BE1403)","v":"None"},{"$f":"IF('1. Order'!BF1403=\"\",\"\",'1. Order'!BF1403)","v":"Parcel"},{"$f":"IF('1. Order'!BG1403=\"\",\"\",'1. Order'!BG1403)","v":"ZWO"}]
[{"$f":"IF('1. Order'!F1404=\"\",\"\",'1. Order'!F1404)","v":""},{"$f":"IF('1. Order'!G1404=\"\",\"\",'1. Order'!G1404)","v":""},{"$f":"IF('1. Order'!H1404=\"\",\"\",'1. Order'!H1404)","v":""},{"$f":"IF('1. Order'!I1404=\"\",\"\",'1. Order'!I1404)","v":""},{"$f":"IF('1. Order'!J1404=\"\",\"\",'1. Order'!J1404)","v":""},{"$f":"IF('1. Order'!K1404=\"\",\"\",'1. Order'!K1404)","v":""},{"$f":"IF('1. Order'!L1404=\"\",\"\",'1. Order'!L1404)","v":""},{"$f":"IF('1. Order'!M1404=\"\",\"\",'1. Order'!M1404)","v":""},{"$f":"IF('1. Order'!N1404=\"\",\"\",'1. Order'!N1404)","v":""},{"$f":"IF('1. Order'!O1404=\"\",\"\",'1. Order'!O1404)","v":{"$error":"#N/A"}},{"$f":"IF('1. Order'!P1404=\"\",\"\",'1. Order'!P1404)","v":{"$error":"#N/A"}},{"$f":"IF('1. Order'!Q1404=\"\",\"\",'1. Order'!Q1404)","v":""},{"$f":"IF('1. Order'!R1404=\"\",\"\",'1. Order'!R1404)","v":""},{"$f":"IF('1. Order'!S1404=\"\",\"\",'1. Order'!S1404)","v":""},{"$f":"IF('1. Order'!V1404=\"\",\"\",'1. Order'!V1404)","v":""},{"$f":"IF('1. Order'!W1404=\"\",\"\",'1. Order'!W1404)","v":""},{"$f":"IF('1. Order'!X1404=\"\",\"\",'1. Order'!X1404)","v":"EUR"},{"$f":"IF('1. Order'!Y1404=\"\",\"\",'1. Order'!Y1404)","v":""},{"$f":"IF('1. Order'!Z1404=\"\",\"\",'1. Order'!Z1404)","v":""},{"$f":"IF('1. Order'!AA1404=\"\",\"\",'1. Order'!AA1404)","v":""},null,{"$f":"IF('1. Order'!AS1404=\"\",\"\",'1. Order'!AS1404)","v":""},{"$f":"IF('1. Order'!AT1404=\"\",\"\",'1. Order'!AT1404)","v":""},null,null,null,null,null,null,null,{"$f":"IF('1. Order'!AX1404=\"\",\"\",'1. Order'!AX1404)","v":""},{"$f":"IF('1. Order'!AY1404=\"\",\"\",'1. Order'!AY1404)","v":""},{"$f":"IF('1. Order'!AZ1404=\"\",\"\",'1. Order'!AZ1404)","v":""},{"$f":"IF('1. Order'!BA1404=\"\",\"\",'1. Order'!BA1404)","v":""},{"$f":"IF('1. Order'!BC1404=\"\",\"\",'1. Order'!BC1404)","v":""},{"$f":"IF('1. Order'!BD1404=\"\",\"\",'1. Order'!BD1404)","v":6},{"$f":"IF('1. Order'!BE1404=\"\",\"\",'1. Order'!BE1404)","v":"None"},{"$f":"IF('1. Order'!BF1404=\"\",\"\",'1. Order'!BF1404)","v":"Parcel"},{"$f":"IF('1. Order'!BG1404=\"\",\"\",'1. Order'!BG1404)","v":"ZWO"}]
[{"$f":"IF('1. Order'!F1405=\"\",\"\",'1. Order'!F1405)","v":""},{"$f":"IF('1. Order'!G1405=\"\",\"\",'1. Order'!G1405)","v":""},{"$f":"IF('1. Order'!H1405=\"\",\"\",'1. Order'!H1405)","v":""},{"$f":"IF('1. Order'!I1405=\"\",\"\",'1. Order'!I1405)","v":""},{"$f":"IF('1. Order'!J1405=\"\",\"\",'1. Order'!J1405)","v":""},{"$f":"IF('1. Order'!K1405=\"\",\"\",'1. Order'!K1405)","v":""},{"$f":"IF('1. Order'!L1405=\"\",\"\",'1. Order'!L1405)","v":""},{"$f":"IF('1. Order'!M1405=\"\",\"\",'1. Order'!M1405)","v":""},{"$f":"IF('1. Order'!N1405=\"\",\"\",'1. Order'!N1405)","v":""},{"$f":"IF('1. Order'!O1405=\"\",\"\",'1. Order'!O1405)","v":{"$error":"#N/A"}},{"$f":"IF('1. Order'!P1405=\"\",\"\",'1. Order'!P1405)","v":{"$error":"#N/A"}},{"$f":"IF('1. Order'!Q1405=\"\",\"\",'1. Order'!Q1405)","v":""},{"$f":"IF('1. Order'!R1405=\"\",\"\",'1. Order'!R1405)","v":""},{"$f":"IF('1. Order'!S1405=\"\",\"\",'1. Order'!S1405)","v":""},{"$f":"IF('1. Order'!V1405=\"\",\"\",'1. Order'!V1405)","v":""},{"$f":"IF('1. Order'!W1405=\"\",\"\",'1. Order'!W1405)","v":""},{"$f":"IF('1. Order'!X1405=\"\",\"\",'1. Order'!X1405)","v":"EUR"},{"$f":"IF('1. Order'!Y1405=\"\",\"\",'1. Order'!Y1405)","v":""},{"$f":"IF('1. Order'!Z1405=\"\",\"\",'1. Order'!Z1405)","v":""},{"$f":"IF('1. Order'!AA1405=\"\",\"\",'1. Order'!AA1405)","v":""},null,{"$f":"IF('1. Order'!AS1405=\"\",\"\",'1. Order'!AS1405)","v":""},{"$f":"IF('1. Order'!AT1405=\"\",\"\",'1. Order'!AT1405)","v":""},null,null,null,null,null,null,null,{"$f":"IF('1. Order'!AX1405=\"\",\"\",'1. Order'!AX1405)","v":""},{"$f":"IF('1. Order'!AY1405=\"\",\"\",'1. Order'!AY1405)","v":""},{"$f":"IF('1. Order'!AZ1405=\"\",\"\",'1. Order'!AZ1405)","v":""},{"$f":"IF('1. Order'!BA1405=\"\",\"\",'1. Order'!BA1405)","v":""},{"$f":"IF('1. Order'!BC1405=\"\",\"\",'1. Order'!BC1405)","v":""},{"$f":"IF('1. Order'!BD1405=\"\",\"\",'1. Order'!BD1405)","v":6},{"$f":"IF('1. Order'!BE1405=\"\",\"\",'1. Order'!BE1405)","v":"None"},{"$f":"IF('1. Order'!BF1405=\"\",\"\",'1. Order'!BF1405)","v":"Parcel"},{"$f":"IF('1. Order'!BG1405=\"\",\"\",'1. Order'!BG1405)","v":"ZWO"}]
[{"$f":"IF('1. Order'!F1406=\"\",\"\",'1. Order'!F1406)","v":""},{"$f":"IF('1. Order'!G1406=\"\",\"\",'1. Order'!G1406)","v":""},{"$f":"IF('1. Order'!H1406=\"\",\"\",'1. Order'!H1406)","v":""},{"$f":"IF('1. Order'!I1406=\"\",\"\",'1. Order'!I1406)","v":""},{"$f":"IF('1. Order'!J1406=\"\",\"\",'1. Order'!J1406)","v":""},{"$f":"IF('1. Order'!K1406=\"\",\"\",'1. Order'!K1406)","v":""},{"$f":"IF('1. Order'!L1406=\"\",\"\",'1. Order'!L1406)","v":""},{"$f":"IF('1. Order'!M1406=\"\",\"\",'1. Order'!M1406)","v":""},{"$f":"IF('1. Order'!N1406=\"\",\"\",'1. Order'!N1406)","v":""},{"$f":"IF('1. Order'!O1406=\"\",\"\",'1. Order'!O1406)","v":{"$error":"#N/A"}},{"$f":"IF('1. Order'!P1406=\"\",\"\",'1. Order'!P1406)","v":{"$error":"#N/A"}},{"$f":"IF('1. Order'!Q1406=\"\",\"\",'1. Order'!Q1406)","v":""},{"$f":"IF('1. Order'!R1406=\"\",\"\",'1. Order'!R1406)","v":""},{"$f":"IF('1. Order'!S1406=\"\",\"\",'1. Order'!S1406)","v":""},{"$f":"IF('1. Order'!V1406=\"\",\"\",'1. Order'!V1406)","v":""},{"$f":"IF('1. Order'!W1406=\"\",\"\",'1. Order'!W1406)","v":""},{"$f":"IF('1. Order'!X1406=\"\",\"\",'1. Order'!X1406)","v":"EUR"},{"$f":"IF('1. Order'!Y1406=\"\",\"\",'1. Order'!Y1406)","v":""},{"$f":"IF('1. Order'!Z1406=\"\",\"\",'1. Order'!Z1406)","v":""},{"$f":"IF('1. Order'!AA1406=\"\",\"\",'1. Order'!AA1406)","v":""},null,{"$f":"IF('1. Order'!AS1406=\"\",\"\",'1. Order'!AS1406)","v":""},{"$f":"IF('1. Order'!AT1406=\"\",\"\",'1. Order'!AT1406)","v":""},null,null,null,null,null,null,null,{"$f":"IF('1. Order'!AX1406=\"\",\"\",'1. Order'!AX1406)","v":""},{"$f":"IF('1. Order'!AY1406=\"\",\"\",'1. Order'!AY1406)","v":""},{"$f":"IF('1. Order'!AZ1406=\"\",\"\",'1. Order'!AZ1406)","v":""},{"$f":"IF('1. Order'!BA1406=\"\",\"\",'1. Order'!BA1406)","v":""},{"$f":"IF('1. Order'!BC1406=\"\",\"\",'1. Order'!BC1406)","v":""},{"$f":"IF('1. Order'!BD1406=\"\",\"\",'1. Order'!BD1406)","v":6},{"$f":"IF('1. Order'!BE1406=\"\",\"\",'1. Order'!BE1406)","v":"None"},{"$f":"IF('1. Order'!BF1406=\"\",\"\",'1. Order'!BF1406)","v":"Parcel"},{"$f":"IF('1. Order'!BG1406=\"\",\"\",'1. Order'!BG1406)","v":"ZWO"}]
[{"$f":"IF('1. Order'!F1407=\"\",\"\",'1. Order'!F1407)","v":""},{"$f":"IF('1. Order'!G1407=\"\",\"\",'1. Order'!G1407)","v":""},{"$f":"IF('1. Order'!H1407=\"\",\"\",'1. Order'!H1407)","v":""},{"$f":"IF('1. Order'!I1407=\"\",\"\",'1. Order'!I1407)","v":""},{"$f":"IF('1. Order'!J1407=\"\",\"\",'1. Order'!J1407)","v":""},{"$f":"IF('1. Order'!K1407=\"\",\"\",'1. Order'!K1407)","v":""},{"$f":"IF('1. Order'!L1407=\"\",\"\",'1. Order'!L1407)","v":""},{"$f":"IF('1. Order'!M1407=\"\",\"\",'1. Order'!M1407)","v":""},{"$f":"IF('1. Order'!N1407=\"\",\"\",'1. Order'!N1407)","v":""},{"$f":"IF('1. Order'!O1407=\"\",\"\",'1. Order'!O1407)","v":{"$error":"#N/A"}},{"$f":"IF('1. Order'!P1407=\"\",\"\",'1. Order'!P1407)","v":{"$error":"#N/A"}},{"$f":"IF('1. Order'!Q1407=\"\",\"\",'1. Order'!Q1407)","v":""},{"$f":"IF('1. Order'!R1407=\"\",\"\",'1. Order'!R1407)","v":""},{"$f":"IF('1. Order'!S1407=\"\",\"\",'1. Order'!S1407)","v":""},{"$f":"IF('1. Order'!V1407=\"\",\"\",'1. Order'!V1407)","v":""},{"$f":"IF('1. Order'!W1407=\"\",\"\",'1. Order'!W1407)","v":""},{"$f":"IF('1. Order'!X1407=\"\",\"\",'1. Order'!X1407)","v":"EUR"},{"$f":"IF('1. Order'!Y1407=\"\",\"\",'1. Order'!Y1407)","v":""},{"$f":"IF('1. Order'!Z1407=\"\",\"\",'1. Order'!Z1407)","v":""},{"$f":"IF('1. Order'!AA1407=\"\",\"\",'1. Order'!AA1407)","v":""},null,{"$f":"IF('1. Order'!AS1407=\"\",\"\",'1. Order'!AS1407)","v":""},{"$f":"IF('1. Order'!AT1407=\"\",\"\",'1. Order'!AT1407)","v":""},null,null,null,null,null,null,null,{"$f":"IF('1. Order'!AX1407=\"\",\"\",'1. Order'!AX1407)","v":""},{"$f":"IF('1. Order'!AY1407=\"\",\"\",'1. Order'!AY1407)","v":""},{"$f":"IF('1. Order'!AZ1407=\"\",\"\",'1. Order'!AZ1407)","v":""},{"$f":"IF('1. Order'!BA1407=\"\",\"\",'1. Order'!BA1407)","v":""},{"$f":"IF('1. Order'!BC1407=\"\",\"\",'1. Order'!BC1407)","v":""},{"$f":"IF('1. Order'!BD1407=\"\",\"\",'1. Order'!BD1407)","v":6},{"$f":"IF('1. Order'!BE1407=\"\",\"\",'1. Order'!BE1407)","v":"None"},{"$f":"IF('1. Order'!BF1407=\"\",\"\",'1. Order'!BF1407)","v":"Parcel"},{"$f":"IF('1. Order'!BG1407=\"\",\"\",'1. Order'!BG1407)","v":"ZWO"}]
[{"$f":"IF('1. Order'!F1408=\"\",\"\",'1. Order'!F1408)","v":""},{"$f":"IF('1. Order'!G1408=\"\",\"\",'1. Order'!G1408)","v":""},{"$f":"IF('1. Order'!H1408=\"\",\"\",'1. Order'!H1408)","v":""},{"$f":"IF('1. Order'!I1408=\"\",\"\",'1. Order'!I1408)","v":""},{"$f":"IF('1. Order'!J1408=\"\",\"\",'1. Order'!J1408)","v":""},{"$f":"IF('1. Order'!K1408=\"\",\"\",'1. Order'!K1408)","v":""},{"$f":"IF('1. Order'!L1408=\"\",\"\",'1. Order'!L1408)","v":""},{"$f":"IF('1. Order'!M1408=\"\",\"\",'1. Order'!M1408)","v":""},{"$f":"IF('1. Order'!N1408=\"\",\"\",'1. Order'!N1408)","v":""},{"$f":"IF('1. Order'!O1408=\"\",\"\",'1. Order'!O1408)","v":{"$error":"#N/A"}},{"$f":"IF('1. Order'!P1408=\"\",\"\",'1. Order'!P1408)","v":{"$error":"#N/A"}},{"$f":"IF('1. Order'!Q1408=\"\",\"\",'1. Order'!Q1408)","v":""},{"$f":"IF('1. Order'!R1408=\"\",\"\",'1. Order'!R1408)","v":""},{"$f":"IF('1. Order'!S1408=\"\",\"\",'1. Order'!S1408)","v":""},{"$f":"IF('1. Order'!V1408=\"\",\"\",'1. Order'!V1408)","v":""},{"$f":"IF('1. Order'!W1408=\"\",\"\",'1. Order'!W1408)","v":""},{"$f":"IF('1. Order'!X1408=\"\",\"\",'1. Order'!X1408)","v":"EUR"},{"$f":"IF('1. Order'!Y1408=\"\",\"\",'1. Order'!Y1408)","v":""},{"$f":"IF('1. Order'!Z1408=\"\",\"\",'1. Order'!Z1408)","v":""},{"$f":"IF('1. Order'!AA1408=\"\",\"\",'1. Order'!AA1408)","v":""},null,{"$f":"IF('1. Order'!AS1408=\"\",\"\",'1. Order'!AS1408)","v":""},{"$f":"IF('1. Order'!AT1408=\"\",\"\",'1. Order'!AT1408)","v":""},null,null,null,null,null,null,null,{"$f":"IF('1. Order'!AX1408=\"\",\"\",'1. Order'!AX1408)","v":""},{"$f":"IF('1. Order'!AY1408=\"\",\"\",'1. Order'!AY1408)","v":""},{"$f":"IF('1. Order'!AZ1408=\"\",\"\",'1. Order'!AZ1408)","v":""},{"$f":"IF('1. Order'!BA1408=\"\",\"\",'1. Order'!BA1408)","v":""},{"$f":"IF('1. Order'!BC1408=\"\",\"\",'1. Order'!BC1408)","v":""},{"$f":"IF('1. Order'!BD1408=\"\",\"\",'1. Order'!BD1408)","v":6},{"$f":"IF('1. Order'!BE1408=\"\",\"\",'1. Order'!BE1408)","v":"None"},{"$f":"IF('1. Order'!BF1408=\"\",\"\",'1. Order'!BF1408)","v":"Parcel"},{"$f":"IF('1. Order'!BG1408=\"\",\"\",'1. Order'!BG1408)","v":"ZWO"}]
[{"$f":"IF('1. Order'!F1409=\"\",\"\",'1. Order'!F1409)","v":""},{"$f":"IF('1. Order'!G1409=\"\",\"\",'1. Order'!G1409)","v":""},{"$f":"IF('1. Order'!H1409=\"\",\"\",'1. Order'!H1409)","v":""},{"$f":"IF('1. Order'!I1409=\"\",\"\",'1. Order'!I1409)","v":""},{"$f":"IF('1. Order'!J1409=\"\",\"\",'1. Order'!J1409)","v":""},{"$f":"IF('1. Order'!K1409=\"\",\"\",'1. Order'!K1409)","v":""},{"$f":"IF('1. Order'!L1409=\"\",\"\",'1. Order'!L1409)","v":""},{"$f":"IF('1. Order'!M1409=\"\",\"\",'1. Order'!M1409)","v":""},{"$f":"IF('1. Order'!N1409=\"\",\"\",'1. Order'!N1409)","v":""},{"$f":"IF('1. Order'!O1409=\"\",\"\",'1. Order'!O1409)","v":{"$error":"#N/A"}},{"$f":"IF('1. Order'!P1409=\"\",\"\",'1. Order'!P1409)","v":{"$error":"#N/A"}},{"$f":"IF('1. Order'!Q1409=\"\",\"\",'1. Order'!Q1409)","v":""},{"$f":"IF('1. Order'!R1409=\"\",\"\",'1. Order'!R1409)","v":""},{"$f":"IF('1. Order'!S1409=\"\",\"\",'1. Order'!S1409)","v":""},{"$f":"IF('1. Order'!V1409=\"\",\"\",'1. Order'!V1409)","v":""},{"$f":"IF('1. Order'!W1409=\"\",\"\",'1. Order'!W1409)","v":""},{"$f":"IF('1. Order'!X1409=\"\",\"\",'1. Order'!X1409)","v":"EUR"},{"$f":"IF('1. Order'!Y1409=\"\",\"\",'1. Order'!Y1409)","v":""},{"$f":"IF('1. Order'!Z1409=\"\",\"\",'1. Order'!Z1409)","v":""},{"$f":"IF('1. Order'!AA1409=\"\",\"\",'1. Order'!AA1409)","v":""},null,{"$f":"IF('1. Order'!AS1409=\"\",\"\",'1. Order'!AS1409)","v":""},{"$f":"IF('1. Order'!AT1409=\"\",\"\",'1. Order'!AT1409)","v":""},null,null,null,null,null,null,null,{"$f":"IF('1. Order'!AX1409=\"\",\"\",'1. Order'!AX1409)","v":""},{"$f":"IF('1. Order'!AY1409=\"\",\"\",'1. Order'!AY1409)","v":""},{"$f":"IF('1. Order'!AZ1409=\"\",\"\",'1. Order'!AZ1409)","v":""},{"$f":"IF('1. Order'!BA1409=\"\",\"\",'1. Order'!BA1409)","v":""},{"$f":"IF('1. Order'!BC1409=\"\",\"\",'1. Order'!BC1409)","v":""},{"$f":"IF('1. Order'!BD1409=\"\",\"\",'1. Order'!BD1409)","v":6},{"$f":"IF('1. Order'!BE1409=\"\",\"\",'1. Order'!BE1409)","v":"None"},{"$f":"IF('1. Order'!BF1409=\"\",\"\",'1. Order'!BF1409)","v":"Parcel"},{"$f":"IF('1. Order'!BG1409=\"\",\"\",'1. Order'!BG1409)","v":"ZWO"}]
[{"$f":"IF('1. Order'!F1410=\"\",\"\",'1. Order'!F1410)","v":""},{"$f":"IF('1. Order'!G1410=\"\",\"\",'1. Order'!G1410)","v":""},{"$f":"IF('1. Order'!H1410=\"\",\"\",'1. Order'!H1410)","v":""},{"$f":"IF('1. Order'!I1410=\"\",\"\",'1. Order'!I1410)","v":""},{"$f":"IF('1. Order'!J1410=\"\",\"\",'1. Order'!J1410)","v":""},{"$f":"IF('1. Order'!K1410=\"\",\"\",'1. Order'!K1410)","v":""},{"$f":"IF('1. Order'!L1410=\"\",\"\",'1. Order'!L1410)","v":""},{"$f":"IF('1. Order'!M1410=\"\",\"\",'1. Order'!M1410)","v":""},{"$f":"IF('1. Order'!N1410=\"\",\"\",'1. Order'!N1410)","v":""},{"$f":"IF('1. Order'!O1410=\"\",\"\",'1. Order'!O1410)","v":{"$error":"#N/A"}},{"$f":"IF('1. Order'!P1410=\"\",\"\",'1. Order'!P1410)","v":{"$error":"#N/A"}},{"$f":"IF('1. Order'!Q1410=\"\",\"\",'1. Order'!Q1410)","v":""},{"$f":"IF('1. Order'!R1410=\"\",\"\",'1. Order'!R1410)","v":""},{"$f":"IF('1. Order'!S1410=\"\",\"\",'1. Order'!S1410)","v":""},{"$f":"IF('1. Order'!V1410=\"\",\"\",'1. Order'!V1410)","v":""},{"$f":"IF('1. Order'!W1410=\"\",\"\",'1. Order'!W1410)","v":""},{"$f":"IF('1. Order'!X1410=\"\",\"\",'1. Order'!X1410)","v":"EUR"},{"$f":"IF('1. Order'!Y1410=\"\",\"\",'1. Order'!Y1410)","v":""},{"$f":"IF('1. Order'!Z1410=\"\",\"\",'1. Order'!Z1410)","v":""},{"$f":"IF('1. Order'!AA1410=\"\",\"\",'1. Order'!AA1410)","v":""},null,{"$f":"IF('1. Order'!AS1410=\"\",\"\",'1. Order'!AS1410)","v":""},{"$f":"IF('1. Order'!AT1410=\"\",\"\",'1. Order'!AT1410)","v":""},null,null,null,null,null,null,null,{"$f":"IF('1. Order'!AX1410=\"\",\"\",'1. Order'!AX1410)","v":""},{"$f":"IF('1. Order'!AY1410=\"\",\"\",'1. Order'!AY1410)","v":""},{"$f":"IF('1. Order'!AZ1410=\"\",\"\",'1. Order'!AZ1410)","v":""},{"$f":"IF('1. Order'!BA1410=\"\",\"\",'1. Order'!BA1410)","v":""},{"$f":"IF('1. Order'!BC1410=\"\",\"\",'1. Order'!BC1410)","v":""},{"$f":"IF('1. Order'!BD1410=\"\",\"\",'1. Order'!BD1410)","v":6},{"$f":"IF('1. Order'!BE1410=\"\",\"\",'1. Order'!BE1410)","v":"None"},{"$f":"IF('1. Order'!BF1410=\"\",\"\",'1. Order'!BF1410)","v":"Parcel"},{"$f":"IF('1. Order'!BG1410=\"\",\"\",'1. Order'!BG1410)","v":"ZWO"}]
[{"$f":"IF('1. Order'!F1411=\"\",\"\",'1. Order'!F1411)","v":""},{"$f":"IF('1. Order'!G1411=\"\",\"\",'1. Order'!G1411)","v":""},{"$f":"IF('1. Order'!H1411=\"\",\"\",'1. Order'!H1411)","v":""},{"$f":"IF('1. Order'!I1411=\"\",\"\",'1. Order'!I1411)","v":""},{"$f":"IF('1. Order'!J1411=\"\",\"\",'1. Order'!J1411)","v":""},{"$f":"IF('1. Order'!K1411=\"\",\"\",'1. Order'!K1411)","v":""},{"$f":"IF('1. Order'!L1411=\"\",\"\",'1. Order'!L1411)","v":""},{"$f":"IF('1. Order'!M1411=\"\",\"\",'1. Order'!M1411)","v":""},{"$f":"IF('1. Order'!N1411=\"\",\"\",'1. Order'!N1411)","v":""},{"$f":"IF('1. Order'!O1411=\"\",\"\",'1. Order'!O1411)","v":{"$error":"#N/A"}},{"$f":"IF('1. Order'!P1411=\"\",\"\",'1. Order'!P1411)","v":{"$error":"#N/A"}},{"$f":"IF('1. Order'!Q1411=\"\",\"\",'1. Order'!Q1411)","v":""},{"$f":"IF('1. Order'!R1411=\"\",\"\",'1. Order'!R1411)","v":""},{"$f":"IF('1. Order'!S1411=\"\",\"\",'1. Order'!S1411)","v":""},{"$f":"IF('1. Order'!V1411=\"\",\"\",'1. Order'!V1411)","v":""},{"$f":"IF('1. Order'!W1411=\"\",\"\",'1. Order'!W1411)","v":""},{"$f":"IF('1. Order'!X1411=\"\",\"\",'1. Order'!X1411)","v":"EUR"},{"$f":"IF('1. Order'!Y1411=\"\",\"\",'1. Order'!Y1411)","v":""},{"$f":"IF('1. Order'!Z1411=\"\",\"\",'1. Order'!Z1411)","v":""},{"$f":"IF('1. Order'!AA1411=\"\",\"\",'1. Order'!AA1411)","v":""},null,{"$f":"IF('1. Order'!AS1411=\"\",\"\",'1. Order'!AS1411)","v":""},{"$f":"IF('1. Order'!AT1411=\"\",\"\",'1. Order'!AT1411)","v":""},null,null,null,null,null,null,null,{"$f":"IF('1. Order'!AX1411=\"\",\"\",'1. Order'!AX1411)","v":""},{"$f":"IF('1. Order'!AY1411=\"\",\"\",'1. Order'!AY1411)","v":""},{"$f":"IF('1. Order'!AZ1411=\"\",\"\",'1. Order'!AZ1411)","v":""},{"$f":"IF('1. Order'!BA1411=\"\",\"\",'1. Order'!BA1411)","v":""},{"$f":"IF('1. Order'!BC1411=\"\",\"\",'1. Order'!BC1411)","v":""},{"$f":"IF('1. Order'!BD1411=\"\",\"\",'1. Order'!BD1411)","v":6},{"$f":"IF('1. Order'!BE1411=\"\",\"\",'1. Order'!BE1411)","v":"None"},{"$f":"IF('1. Order'!BF1411=\"\",\"\",'1. Order'!BF1411)","v":"Parcel"},{"$f":"IF('1. Order'!BG1411=\"\",\"\",'1. Order'!BG1411)","v":"ZWO"}]
[{"$f":"IF('1. Order'!F1412=\"\",\"\",'1. Order'!F1412)","v":""},{"$f":"IF('1. Order'!G1412=\"\",\"\",'1. Order'!G1412)","v":""},{"$f":"IF('1. Order'!H1412=\"\",\"\",'1. Order'!H1412)","v":""},{"$f":"IF('1. Order'!I1412=\"\",\"\",'1. Order'!I1412)","v":""},{"$f":"IF('1. Order'!J1412=\"\",\"\",'1. Order'!J1412)","v":""},{"$f":"IF('1. Order'!K1412=\"\",\"\",'1. Order'!K1412)","v":""},{"$f":"IF('1. Order'!L1412=\"\",\"\",'1. Order'!L1412)","v":""},{"$f":"IF('1. Order'!M1412=\"\",\"\",'1. Order'!M1412)","v":""},{"$f":"IF('1. Order'!N1412=\"\",\"\",'1. Order'!N1412)","v":""},{"$f":"IF('1. Order'!O1412=\"\",\"\",'1. Order'!O1412)","v":{"$error":"#N/A"}},{"$f":"IF('1. Order'!P1412=\"\",\"\",'1. Order'!P1412)","v":{"$error":"#N/A"}},{"$f":"IF('1. Order'!Q1412=\"\",\"\",'1. Order'!Q1412)","v":""},{"$f":"IF('1. Order'!R1412=\"\",\"\",'1. Order'!R1412)","v":""},{"$f":"IF('1. Order'!S1412=\"\",\"\",'1. Order'!S1412)","v":""},{"$f":"IF('1. Order'!V1412=\"\",\"\",'1. Order'!V1412)","v":""},{"$f":"IF('1. Order'!W1412=\"\",\"\",'1. Order'!W1412)","v":""},{"$f":"IF('1. Order'!X1412=\"\",\"\",'1. Order'!X1412)","v":"EUR"},{"$f":"IF('1. Order'!Y1412=\"\",\"\",'1. Order'!Y1412)","v":""},{"$f":"IF('1. Order'!Z1412=\"\",\"\",'1. Order'!Z1412)","v":""},{"$f":"IF('1. Order'!AA1412=\"\",\"\",'1. Order'!AA1412)","v":""},null,{"$f":"IF('1. Order'!AS1412=\"\",\"\",'1. Order'!AS1412)","v":""},{"$f":"IF('1. Order'!AT1412=\"\",\"\",'1. Order'!AT1412)","v":""},null,null,null,null,null,null,null,{"$f":"IF('1. Order'!AX1412=\"\",\"\",'1. Order'!AX1412)","v":""},{"$f":"IF('1. Order'!AY1412=\"\",\"\",'1. Order'!AY1412)","v":""},{"$f":"IF('1. Order'!AZ1412=\"\",\"\",'1. Order'!AZ1412)","v":""},{"$f":"IF('1. Order'!BA1412=\"\",\"\",'1. Order'!BA1412)","v":""},{"$f":"IF('1. Order'!BC1412=\"\",\"\",'1. Order'!BC1412)","v":""},{"$f":"IF('1. Order'!BD1412=\"\",\"\",'1. Order'!BD1412)","v":6},{"$f":"IF('1. Order'!BE1412=\"\",\"\",'1. Order'!BE1412)","v":"None"},{"$f":"IF('1. Order'!BF1412=\"\",\"\",'1. Order'!BF1412)","v":"Parcel"},{"$f":"IF('1. Order'!BG1412=\"\",\"\",'1. Order'!BG1412)","v":"ZWO"}]
[{"$f":"IF('1. Order'!F1413=\"\",\"\",'1. Order'!F1413)","v":""},{"$f":"IF('1. Order'!G1413=\"\",\"\",'1. Order'!G1413)","v":""},{"$f":"IF('1. Order'!H1413=\"\",\"\",'1. Order'!H1413)","v":""},{"$f":"IF('1. Order'!I1413=\"\",\"\",'1. Order'!I1413)","v":""},{"$f":"IF('1. Order'!J1413=\"\",\"\",'1. Order'!J1413)","v":""},{"$f":"IF('1. Order'!K1413=\"\",\"\",'1. Order'!K1413)","v":""},{"$f":"IF('1. Order'!L1413=\"\",\"\",'1. Order'!L1413)","v":""},{"$f":"IF('1. Order'!M1413=\"\",\"\",'1. Order'!M1413)","v":""},{"$f":"IF('1. Order'!N1413=\"\",\"\",'1. Order'!N1413)","v":""},{"$f":"IF('1. Order'!O1413=\"\",\"\",'1. Order'!O1413)","v":{"$error":"#N/A"}},{"$f":"IF('1. Order'!P1413=\"\",\"\",'1. Order'!P1413)","v":{"$error":"#N/A"}},{"$f":"IF('1. Order'!Q1413=\"\",\"\",'1. Order'!Q1413)","v":""},{"$f":"IF('1. Order'!R1413=\"\",\"\",'1. Order'!R1413)","v":""},{"$f":"IF('1. Order'!S1413=\"\",\"\",'1. Order'!S1413)","v":""},{"$f":"IF('1. Order'!V1413=\"\",\"\",'1. Order'!V1413)","v":""},{"$f":"IF('1. Order'!W1413=\"\",\"\",'1. Order'!W1413)","v":""},{"$f":"IF('1. Order'!X1413=\"\",\"\",'1. Order'!X1413)","v":"EUR"},{"$f":"IF('1. Order'!Y1413=\"\",\"\",'1. Order'!Y1413)","v":""},{"$f":"IF('1. Order'!Z1413=\"\",\"\",'1. Order'!Z1413)","v":""},{"$f":"IF('1. Order'!AA1413=\"\",\"\",'1. Order'!AA1413)","v":""},null,{"$f":"IF('1. Order'!AS1413=\"\",\"\",'1. Order'!AS1413)","v":""},{"$f":"IF('1. Order'!AT1413=\"\",\"\",'1. Order'!AT1413)","v":""},null,null,null,null,null,null,null,{"$f":"IF('1. Order'!AX1413=\"\",\"\",'1. Order'!AX1413)","v":""},{"$f":"IF('1. Order'!AY1413=\"\",\"\",'1. Order'!AY1413)","v":""},{"$f":"IF('1. Order'!AZ1413=\"\",\"\",'1. Order'!AZ1413)","v":""},{"$f":"IF('1. Order'!BA1413=\"\",\"\",'1. Order'!BA1413)","v":""},{"$f":"IF('1. Order'!BC1413=\"\",\"\",'1. Order'!BC1413)","v":""},{"$f":"IF('1. Order'!BD1413=\"\",\"\",'1. Order'!BD1413)","v":6},{"$f":"IF('1. Order'!BE1413=\"\",\"\",'1. Order'!BE1413)","v":"None"},{"$f":"IF('1. Order'!BF1413=\"\",\"\",'1. Order'!BF1413)","v":"Parcel"},{"$f":"IF('1. Order'!BG1413=\"\",\"\",'1. Order'!BG1413)","v":"ZWO"}]
[{"$f":"IF('1. Order'!F1414=\"\",\"\",'1. Order'!F1414)","v":""},{"$f":"IF('1. Order'!G1414=\"\",\"\",'1. Order'!G1414)","v":""},{"$f":"IF('1. Order'!H1414=\"\",\"\",'1. Order'!H1414)","v":""},{"$f":"IF('1. Order'!I1414=\"\",\"\",'1. Order'!I1414)","v":""},{"$f":"IF('1. Order'!J1414=\"\",\"\",'1. Order'!J1414)","v":""},{"$f":"IF('1. Order'!K1414=\"\",\"\",'1. Order'!K1414)","v":""},{"$f":"IF('1. Order'!L1414=\"\",\"\",'1. Order'!L1414)","v":""},{"$f":"IF('1. Order'!M1414=\"\",\"\",'1. Order'!M1414)","v":""},{"$f":"IF('1. Order'!N1414=\"\",\"\",'1. Order'!N1414)","v":""},{"$f":"IF('1. Order'!O1414=\"\",\"\",'1. Order'!O1414)","v":{"$error":"#N/A"}},{"$f":"IF('1. Order'!P1414=\"\",\"\",'1. Order'!P1414)","v":{"$error":"#N/A"}},{"$f":"IF('1. Order'!Q1414=\"\",\"\",'1. Order'!Q1414)","v":""},{"$f":"IF('1. Order'!R1414=\"\",\"\",'1. Order'!R1414)","v":""},{"$f":"IF('1. Order'!S1414=\"\",\"\",'1. Order'!S1414)","v":""},{"$f":"IF('1. Order'!V1414=\"\",\"\",'1. Order'!V1414)","v":""},{"$f":"IF('1. Order'!W1414=\"\",\"\",'1. Order'!W1414)","v":""},{"$f":"IF('1. Order'!X1414=\"\",\"\",'1. Order'!X1414)","v":"EUR"},{"$f":"IF('1. Order'!Y1414=\"\",\"\",'1. Order'!Y1414)","v":""},{"$f":"IF('1. Order'!Z1414=\"\",\"\",'1. Order'!Z1414)","v":""},{"$f":"IF('1. Order'!AA1414=\"\",\"\",'1. Order'!AA1414)","v":""},null,{"$f":"IF('1. Order'!AS1414=\"\",\"\",'1. Order'!AS1414)","v":""},{"$f":"IF('1. Order'!AT1414=\"\",\"\",'1. Order'!AT1414)","v":""},null,null,null,null,null,null,null,{"$f":"IF('1. Order'!AX1414=\"\",\"\",'1. Order'!AX1414)","v":""},{"$f":"IF('1. Order'!AY1414=\"\",\"\",'1. Order'!AY1414)","v":""},{"$f":"IF('1. Order'!AZ1414=\"\",\"\",'1. Order'!AZ1414)","v":""},{"$f":"IF('1. Order'!BA1414=\"\",\"\",'1. Order'!BA1414)","v":""},{"$f":"IF('1. Order'!BC1414=\"\",\"\",'1. Order'!BC1414)","v":""},{"$f":"IF('1. Order'!BD1414=\"\",\"\",'1. Order'!BD1414)","v":6},{"$f":"IF('1. Order'!BE1414=\"\",\"\",'1. Order'!BE1414)","v":"None"},{"$f":"IF('1. Order'!BF1414=\"\",\"\",'1. Order'!BF1414)","v":"Parcel"},{"$f":"IF('1. Order'!BG1414=\"\",\"\",'1. Order'!BG1414)","v":"ZWO"}]
[{"$f":"IF('1. Order'!F1415=\"\",\"\",'1. Order'!F1415)","v":""},{"$f":"IF('1. Order'!G1415=\"\",\"\",'1. Order'!G1415)","v":""},{"$f":"IF('1. Order'!H1415=\"\",\"\",'1. Order'!H1415)","v":""},{"$f":"IF('1. Order'!I1415=\"\",\"\",'1. Order'!I1415)","v":""},{"$f":"IF('1. Order'!J1415=\"\",\"\",'1. Order'!J1415)","v":""},{"$f":"IF('1. Order'!K1415=\"\",\"\",'1. Order'!K1415)","v":""},{"$f":"IF('1. Order'!L1415=\"\",\"\",'1. Order'!L1415)","v":""},{"$f":"IF('1. Order'!M1415=\"\",\"\",'1. Order'!M1415)","v":""},{"$f":"IF('1. Order'!N1415=\"\",\"\",'1. Order'!N1415)","v":""},{"$f":"IF('1. Order'!O1415=\"\",\"\",'1. Order'!O1415)","v":{"$error":"#N/A"}},{"$f":"IF('1. Order'!P1415=\"\",\"\",'1. Order'!P1415)","v":{"$error":"#N/A"}},{"$f":"IF('1. Order'!Q1415=\"\",\"\",'1. Order'!Q1415)","v":""},{"$f":"IF('1. Order'!R1415=\"\",\"\",'1. Order'!R1415)","v":""},{"$f":"IF('1. Order'!S1415=\"\",\"\",'1. Order'!S1415)","v":""},{"$f":"IF('1. Order'!V1415=\"\",\"\",'1. Order'!V1415)","v":""},{"$f":"IF('1. Order'!W1415=\"\",\"\",'1. Order'!W1415)","v":""},{"$f":"IF('1. Order'!X1415=\"\",\"\",'1. Order'!X1415)","v":"EUR"},{"$f":"IF('1. Order'!Y1415=\"\",\"\",'1. Order'!Y1415)","v":""},{"$f":"IF('1. Order'!Z1415=\"\",\"\",'1. Order'!Z1415)","v":""},{"$f":"IF('1. Order'!AA1415=\"\",\"\",'1. Order'!AA1415)","v":""},null,{"$f":"IF('1. Order'!AS1415=\"\",\"\",'1. Order'!AS1415)","v":""},{"$f":"IF('1. Order'!AT1415=\"\",\"\",'1. Order'!AT1415)","v":""},null,null,null,null,null,null,null,{"$f":"IF('1. Order'!AX1415=\"\",\"\",'1. Order'!AX1415)","v":""},{"$f":"IF('1. Order'!AY1415=\"\",\"\",'1. Order'!AY1415)","v":""},{"$f":"IF('1. Order'!AZ1415=\"\",\"\",'1. Order'!AZ1415)","v":""},{"$f":"IF('1. Order'!BA1415=\"\",\"\",'1. Order'!BA1415)","v":""},{"$f":"IF('1. Order'!BC1415=\"\",\"\",'1. Order'!BC1415)","v":""},{"$f":"IF('1. Order'!BD1415=\"\",\"\",'1. Order'!BD1415)","v":6},{"$f":"IF('1. Order'!BE1415=\"\",\"\",'1. Order'!BE1415)","v":"None"},{"$f":"IF('1. Order'!BF1415=\"\",\"\",'1. Order'!BF1415)","v":"Parcel"},{"$f":"IF('1. Order'!BG1415=\"\",\"\",'1. Order'!BG1415)","v":"ZWO"}]
[{"$f":"IF('1. Order'!F1416=\"\",\"\",'1. Order'!F1416)","v":""},{"$f":"IF('1. Order'!G1416=\"\",\"\",'1. Order'!G1416)","v":""},{"$f":"IF('1. Order'!H1416=\"\",\"\",'1. Order'!H1416)","v":""},{"$f":"IF('1. Order'!I1416=\"\",\"\",'1. Order'!I1416)","v":""},{"$f":"IF('1. Order'!J1416=\"\",\"\",'1. Order'!J1416)","v":""},{"$f":"IF('1. Order'!K1416=\"\",\"\",'1. Order'!K1416)","v":""},{"$f":"IF('1. Order'!L1416=\"\",\"\",'1. Order'!L1416)","v":""},{"$f":"IF('1. Order'!M1416=\"\",\"\",'1. Order'!M1416)","v":""},{"$f":"IF('1. Order'!N1416=\"\",\"\",'1. Order'!N1416)","v":""},{"$f":"IF('1. Order'!O1416=\"\",\"\",'1. Order'!O1416)","v":{"$error":"#N/A"}},{"$f":"IF('1. Order'!P1416=\"\",\"\",'1. Order'!P1416)","v":{"$error":"#N/A"}},{"$f":"IF('1. Order'!Q1416=\"\",\"\",'1. Order'!Q1416)","v":""},{"$f":"IF('1. Order'!R1416=\"\",\"\",'1. Order'!R1416)","v":""},{"$f":"IF('1. Order'!S1416=\"\",\"\",'1. Order'!S1416)","v":""},{"$f":"IF('1. Order'!V1416=\"\",\"\",'1. Order'!V1416)","v":""},{"$f":"IF('1. Order'!W1416=\"\",\"\",'1. Order'!W1416)","v":""},{"$f":"IF('1. Order'!X1416=\"\",\"\",'1. Order'!X1416)","v":"EUR"},{"$f":"IF('1. Order'!Y1416=\"\",\"\",'1. Order'!Y1416)","v":""},{"$f":"IF('1. Order'!Z1416=\"\",\"\",'1. Order'!Z1416)","v":""},{"$f":"IF('1. Order'!AA1416=\"\",\"\",'1. Order'!AA1416)","v":""},null,{"$f":"IF('1. Order'!AS1416=\"\",\"\",'1. Order'!AS1416)","v":""},{"$f":"IF('1. Order'!AT1416=\"\",\"\",'1. Order'!AT1416)","v":""},null,null,null,null,null,null,null,{"$f":"IF('1. Order'!AX1416=\"\",\"\",'1. Order'!AX1416)","v":""},{"$f":"IF('1. Order'!AY1416=\"\",\"\",'1. Order'!AY1416)","v":""},{"$f":"IF('1. Order'!AZ1416=\"\",\"\",'1. Order'!AZ1416)","v":""},{"$f":"IF('1. Order'!BA1416=\"\",\"\",'1. Order'!BA1416)","v":""},{"$f":"IF('1. Order'!BC1416=\"\",\"\",'1. Order'!BC1416)","v":""},{"$f":"IF('1. Order'!BD1416=\"\",\"\",'1. Order'!BD1416)","v":6},{"$f":"IF('1. Order'!BE1416=\"\",\"\",'1. Order'!BE1416)","v":"None"},{"$f":"IF('1. Order'!BF1416=\"\",\"\",'1. Order'!BF1416)","v":"Parcel"},{"$f":"IF('1. Order'!BG1416=\"\",\"\",'1. Order'!BG1416)","v":"ZWO"}]
[{"$f":"IF('1. Order'!F1417=\"\",\"\",'1. Order'!F1417)","v":""},{"$f":"IF('1. Order'!G1417=\"\",\"\",'1. Order'!G1417)","v":""},{"$f":"IF('1. Order'!H1417=\"\",\"\",'1. Order'!H1417)","v":""},{"$f":"IF('1. Order'!I1417=\"\",\"\",'1. Order'!I1417)","v":""},{"$f":"IF('1. Order'!J1417=\"\",\"\",'1. Order'!J1417)","v":""},{"$f":"IF('1. Order'!K1417=\"\",\"\",'1. Order'!K1417)","v":""},{"$f":"IF('1. Order'!L1417=\"\",\"\",'1. Order'!L1417)","v":""},{"$f":"IF('1. Order'!M1417=\"\",\"\",'1. Order'!M1417)","v":""},{"$f":"IF('1. Order'!N1417=\"\",\"\",'1. Order'!N1417)","v":""},{"$f":"IF('1. Order'!O1417=\"\",\"\",'1. Order'!O1417)","v":{"$error":"#N/A"}},{"$f":"IF('1. Order'!P1417=\"\",\"\",'1. Order'!P1417)","v":{"$error":"#N/A"}},{"$f":"IF('1. Order'!Q1417=\"\",\"\",'1. Order'!Q1417)","v":""},{"$f":"IF('1. Order'!R1417=\"\",\"\",'1. Order'!R1417)","v":""},{"$f":"IF('1. Order'!S1417=\"\",\"\",'1. Order'!S1417)","v":""},{"$f":"IF('1. Order'!V1417=\"\",\"\",'1. Order'!V1417)","v":""},{"$f":"IF('1. Order'!W1417=\"\",\"\",'1. Order'!W1417)","v":""},{"$f":"IF('1. Order'!X1417=\"\",\"\",'1. Order'!X1417)","v":"EUR"},{"$f":"IF('1. Order'!Y1417=\"\",\"\",'1. Order'!Y1417)","v":""},{"$f":"IF('1. Order'!Z1417=\"\",\"\",'1. Order'!Z1417)","v":""},{"$f":"IF('1. Order'!AA1417=\"\",\"\",'1. Order'!AA1417)","v":""},null,{"$f":"IF('1. Order'!AS1417=\"\",\"\",'1. Order'!AS1417)","v":""},{"$f":"IF('1. Order'!AT1417=\"\",\"\",'1. Order'!AT1417)","v":""},null,null,null,null,null,null,null,{"$f":"IF('1. Order'!AX1417=\"\",\"\",'1. Order'!AX1417)","v":""},{"$f":"IF('1. Order'!AY1417=\"\",\"\",'1. Order'!AY1417)","v":""},{"$f":"IF('1. Order'!AZ1417=\"\",\"\",'1. Order'!AZ1417)","v":""},{"$f":"IF('1. Order'!BA1417=\"\",\"\",'1. Order'!BA1417)","v":""},{"$f":"IF('1. Order'!BC1417=\"\",\"\",'1. Order'!BC1417)","v":""},{"$f":"IF('1. Order'!BD1417=\"\",\"\",'1. Order'!BD1417)","v":6},{"$f":"IF('1. Order'!BE1417=\"\",\"\",'1. Order'!BE1417)","v":"None"},{"$f":"IF('1. Order'!BF1417=\"\",\"\",'1. Order'!BF1417)","v":"Parcel"},{"$f":"IF('1. Order'!BG1417=\"\",\"\",'1. Order'!BG1417)","v":"ZWO"}]
[{"$f":"IF('1. Order'!F1418=\"\",\"\",'1. Order'!F1418)","v":""},{"$f":"IF('1. Order'!G1418=\"\",\"\",'1. Order'!G1418)","v":""},{"$f":"IF('1. Order'!H1418=\"\",\"\",'1. Order'!H1418)","v":""},{"$f":"IF('1. Order'!I1418=\"\",\"\",'1. Order'!I1418)","v":""},{"$f":"IF('1. Order'!J1418=\"\",\"\",'1. Order'!J1418)","v":""},{"$f":"IF('1. Order'!K1418=\"\",\"\",'1. Order'!K1418)","v":""},{"$f":"IF('1. Order'!L1418=\"\",\"\",'1. Order'!L1418)","v":""},{"$f":"IF('1. Order'!M1418=\"\",\"\",'1. Order'!M1418)","v":""},{"$f":"IF('1. Order'!N1418=\"\",\"\",'1. Order'!N1418)","v":""},{"$f":"IF('1. Order'!O1418=\"\",\"\",'1. Order'!O1418)","v":{"$error":"#N/A"}},{"$f":"IF('1. Order'!P1418=\"\",\"\",'1. Order'!P1418)","v":{"$error":"#N/A"}},{"$f":"IF('1. Order'!Q1418=\"\",\"\",'1. Order'!Q1418)","v":""},{"$f":"IF('1. Order'!R1418=\"\",\"\",'1. Order'!R1418)","v":""},{"$f":"IF('1. Order'!S1418=\"\",\"\",'1. Order'!S1418)","v":""},{"$f":"IF('1. Order'!V1418=\"\",\"\",'1. Order'!V1418)","v":""},{"$f":"IF('1. Order'!W1418=\"\",\"\",'1. Order'!W1418)","v":""},{"$f":"IF('1. Order'!X1418=\"\",\"\",'1. Order'!X1418)","v":"EUR"},{"$f":"IF('1. Order'!Y1418=\"\",\"\",'1. Order'!Y1418)","v":""},{"$f":"IF('1. Order'!Z1418=\"\",\"\",'1. Order'!Z1418)","v":""},{"$f":"IF('1. Order'!AA1418=\"\",\"\",'1. Order'!AA1418)","v":""},null,{"$f":"IF('1. Order'!AS1418=\"\",\"\",'1. Order'!AS1418)","v":""},{"$f":"IF('1. Order'!AT1418=\"\",\"\",'1. Order'!AT1418)","v":""},null,null,null,null,null,null,null,{"$f":"IF('1. Order'!AX1418=\"\",\"\",'1. Order'!AX1418)","v":""},{"$f":"IF('1. Order'!AY1418=\"\",\"\",'1. Order'!AY1418)","v":""},{"$f":"IF('1. Order'!AZ1418=\"\",\"\",'1. Order'!AZ1418)","v":""},{"$f":"IF('1. Order'!BA1418=\"\",\"\",'1. Order'!BA1418)","v":""},{"$f":"IF('1. Order'!BC1418=\"\",\"\",'1. Order'!BC1418)","v":""},{"$f":"IF('1. Order'!BD1418=\"\",\"\",'1. Order'!BD1418)","v":6},{"$f":"IF('1. Order'!BE1418=\"\",\"\",'1. Order'!BE1418)","v":"None"},{"$f":"IF('1. Order'!BF1418=\"\",\"\",'1. Order'!BF1418)","v":"Parcel"},{"$f":"IF('1. Order'!BG1418=\"\",\"\",'1. Order'!BG1418)","v":"ZWO"}]
[{"$f":"IF('1. Order'!F1419=\"\",\"\",'1. Order'!F1419)","v":""},{"$f":"IF('1. Order'!G1419=\"\",\"\",'1. Order'!G1419)","v":""},{"$f":"IF('1. Order'!H1419=\"\",\"\",'1. Order'!H1419)","v":""},{"$f":"IF('1. Order'!I1419=\"\",\"\",'1. Order'!I1419)","v":""},{"$f":"IF('1. Order'!J1419=\"\",\"\",'1. Order'!J1419)","v":""},{"$f":"IF('1. Order'!K1419=\"\",\"\",'1. Order'!K1419)","v":""},{"$f":"IF('1. Order'!L1419=\"\",\"\",'1. Order'!L1419)","v":""},{"$f":"IF('1. Order'!M1419=\"\",\"\",'1. Order'!M1419)","v":""},{"$f":"IF('1. Order'!N1419=\"\",\"\",'1. Order'!N1419)","v":""},{"$f":"IF('1. Order'!O1419=\"\",\"\",'1. Order'!O1419)","v":{"$error":"#N/A"}},{"$f":"IF('1. Order'!P1419=\"\",\"\",'1. Order'!P1419)","v":{"$error":"#N/A"}},{"$f":"IF('1. Order'!Q1419=\"\",\"\",'1. Order'!Q1419)","v":""},{"$f":"IF('1. Order'!R1419=\"\",\"\",'1. Order'!R1419)","v":""},{"$f":"IF('1. Order'!S1419=\"\",\"\",'1. Order'!S1419)","v":""},{"$f":"IF('1. Order'!V1419=\"\",\"\",'1. Order'!V1419)","v":""},{"$f":"IF('1. Order'!W1419=\"\",\"\",'1. Order'!W1419)","v":""},{"$f":"IF('1. Order'!X1419=\"\",\"\",'1. Order'!X1419)","v":"EUR"},{"$f":"IF('1. Order'!Y1419=\"\",\"\",'1. Order'!Y1419)","v":""},{"$f":"IF('1. Order'!Z1419=\"\",\"\",'1. Order'!Z1419)","v":""},{"$f":"IF('1. Order'!AA1419=\"\",\"\",'1. Order'!AA1419)","v":""},null,{"$f":"IF('1. Order'!AS1419=\"\",\"\",'1. Order'!AS1419)","v":""},{"$f":"IF('1. Order'!AT1419=\"\",\"\",'1. Order'!AT1419)","v":""},null,null,null,null,null,null,null,{"$f":"IF('1. Order'!AX1419=\"\",\"\",'1. Order'!AX1419)","v":""},{"$f":"IF('1. Order'!AY1419=\"\",\"\",'1. Order'!AY1419)","v":""},{"$f":"IF('1. Order'!AZ1419=\"\",\"\",'1. Order'!AZ1419)","v":""},{"$f":"IF('1. Order'!BA1419=\"\",\"\",'1. Order'!BA1419)","v":""},{"$f":"IF('1. Order'!BC1419=\"\",\"\",'1. Order'!BC1419)","v":""},{"$f":"IF('1. Order'!BD1419=\"\",\"\",'1. Order'!BD1419)","v":6},{"$f":"IF('1. Order'!BE1419=\"\",\"\",'1. Order'!BE1419)","v":"None"},{"$f":"IF('1. Order'!BF1419=\"\",\"\",'1. Order'!BF1419)","v":"Parcel"},{"$f":"IF('1. Order'!BG1419=\"\",\"\",'1. Order'!BG1419)","v":"ZWO"}]
[{"$f":"IF('1. Order'!F1420=\"\",\"\",'1. Order'!F1420)","v":""},{"$f":"IF('1. Order'!G1420=\"\",\"\",'1. Order'!G1420)","v":""},{"$f":"IF('1. Order'!H1420=\"\",\"\",'1. Order'!H1420)","v":""},{"$f":"IF('1. Order'!I1420=\"\",\"\",'1. Order'!I1420)","v":""},{"$f":"IF('1. Order'!J1420=\"\",\"\",'1. Order'!J1420)","v":""},{"$f":"IF('1. Order'!K1420=\"\",\"\",'1. Order'!K1420)","v":""},{"$f":"IF('1. Order'!L1420=\"\",\"\",'1. Order'!L1420)","v":""},{"$f":"IF('1. Order'!M1420=\"\",\"\",'1. Order'!M1420)","v":""},{"$f":"IF('1. Order'!N1420=\"\",\"\",'1. Order'!N1420)","v":""},{"$f":"IF('1. Order'!O1420=\"\",\"\",'1. Order'!O1420)","v":{"$error":"#N/A"}},{"$f":"IF('1. Order'!P1420=\"\",\"\",'1. Order'!P1420)","v":{"$error":"#N/A"}},{"$f":"IF('1. Order'!Q1420=\"\",\"\",'1. Order'!Q1420)","v":""},{"$f":"IF('1. Order'!R1420=\"\",\"\",'1. Order'!R1420)","v":""},{"$f":"IF('1. Order'!S1420=\"\",\"\",'1. Order'!S1420)","v":""},{"$f":"IF('1. Order'!V1420=\"\",\"\",'1. Order'!V1420)","v":""},{"$f":"IF('1. Order'!W1420=\"\",\"\",'1. Order'!W1420)","v":""},{"$f":"IF('1. Order'!X1420=\"\",\"\",'1. Order'!X1420)","v":"EUR"},{"$f":"IF('1. Order'!Y1420=\"\",\"\",'1. Order'!Y1420)","v":""},{"$f":"IF('1. Order'!Z1420=\"\",\"\",'1. Order'!Z1420)","v":""},{"$f":"IF('1. Order'!AA1420=\"\",\"\",'1. Order'!AA1420)","v":""},null,{"$f":"IF('1. Order'!AS1420=\"\",\"\",'1. Order'!AS1420)","v":""},{"$f":"IF('1. Order'!AT1420=\"\",\"\",'1. Order'!AT1420)","v":""},null,null,null,null,null,null,null,{"$f":"IF('1. Order'!AX1420=\"\",\"\",'1. Order'!AX1420)","v":""},{"$f":"IF('1. Order'!AY1420=\"\",\"\",'1. Order'!AY1420)","v":""},{"$f":"IF('1. Order'!AZ1420=\"\",\"\",'1. Order'!AZ1420)","v":""},{"$f":"IF('1. Order'!BA1420=\"\",\"\",'1. Order'!BA1420)","v":""},{"$f":"IF('1. Order'!BC1420=\"\",\"\",'1. Order'!BC1420)","v":""},{"$f":"IF('1. Order'!BD1420=\"\",\"\",'1. Order'!BD1420)","v":6},{"$f":"IF('1. Order'!BE1420=\"\",\"\",'1. Order'!BE1420)","v":"None"},{"$f":"IF('1. Order'!BF1420=\"\",\"\",'1. Order'!BF1420)","v":"Parcel"},{"$f":"IF('1. Order'!BG1420=\"\",\"\",'1. Order'!BG1420)","v":"ZWO"}]
[{"$f":"IF('1. Order'!F1421=\"\",\"\",'1. Order'!F1421)","v":""},{"$f":"IF('1. Order'!G1421=\"\",\"\",'1. Order'!G1421)","v":""},{"$f":"IF('1. Order'!H1421=\"\",\"\",'1. Order'!H1421)","v":""},{"$f":"IF('1. Order'!I1421=\"\",\"\",'1. Order'!I1421)","v":""},{"$f":"IF('1. Order'!J1421=\"\",\"\",'1. Order'!J1421)","v":""},{"$f":"IF('1. Order'!K1421=\"\",\"\",'1. Order'!K1421)","v":""},{"$f":"IF('1. Order'!L1421=\"\",\"\",'1. Order'!L1421)","v":""},{"$f":"IF('1. Order'!M1421=\"\",\"\",'1. Order'!M1421)","v":""},{"$f":"IF('1. Order'!N1421=\"\",\"\",'1. Order'!N1421)","v":""},{"$f":"IF('1. Order'!O1421=\"\",\"\",'1. Order'!O1421)","v":{"$error":"#N/A"}},{"$f":"IF('1. Order'!P1421=\"\",\"\",'1. Order'!P1421)","v":{"$error":"#N/A"}},{"$f":"IF('1. Order'!Q1421=\"\",\"\",'1. Order'!Q1421)","v":""},{"$f":"IF('1. Order'!R1421=\"\",\"\",'1. Order'!R1421)","v":""},{"$f":"IF('1. Order'!S1421=\"\",\"\",'1. Order'!S1421)","v":""},{"$f":"IF('1. Order'!V1421=\"\",\"\",'1. Order'!V1421)","v":""},{"$f":"IF('1. Order'!W1421=\"\",\"\",'1. Order'!W1421)","v":""},{"$f":"IF('1. Order'!X1421=\"\",\"\",'1. Order'!X1421)","v":"EUR"},{"$f":"IF('1. Order'!Y1421=\"\",\"\",'1. Order'!Y1421)","v":""},{"$f":"IF('1. Order'!Z1421=\"\",\"\",'1. Order'!Z1421)","v":""},{"$f":"IF('1. Order'!AA1421=\"\",\"\",'1. Order'!AA1421)","v":""},null,{"$f":"IF('1. Order'!AS1421=\"\",\"\",'1. Order'!AS1421)","v":""},{"$f":"IF('1. Order'!AT1421=\"\",\"\",'1. Order'!AT1421)","v":""},null,null,null,null,null,null,null,{"$f":"IF('1. Order'!AX1421=\"\",\"\",'1. Order'!AX1421)","v":""},{"$f":"IF('1. Order'!AY1421=\"\",\"\",'1. Order'!AY1421)","v":""},{"$f":"IF('1. Order'!AZ1421=\"\",\"\",'1. Order'!AZ1421)","v":""},{"$f":"IF('1. Order'!BA1421=\"\",\"\",'1. Order'!BA1421)","v":""},{"$f":"IF('1. Order'!BC1421=\"\",\"\",'1. Order'!BC1421)","v":""},{"$f":"IF('1. Order'!BD1421=\"\",\"\",'1. Order'!BD1421)","v":6},{"$f":"IF('1. Order'!BE1421=\"\",\"\",'1. Order'!BE1421)","v":"None"},{"$f":"IF('1. Order'!BF1421=\"\",\"\",'1. Order'!BF1421)","v":"Parcel"},{"$f":"IF('1. Order'!BG1421=\"\",\"\",'1. Order'!BG1421)","v":"ZWO"}]
[{"$f":"IF('1. Order'!F1422=\"\",\"\",'1. Order'!F1422)","v":""},{"$f":"IF('1. Order'!G1422=\"\",\"\",'1. Order'!G1422)","v":""},{"$f":"IF('1. Order'!H1422=\"\",\"\",'1. Order'!H1422)","v":""},{"$f":"IF('1. Order'!I1422=\"\",\"\",'1. Order'!I1422)","v":""},{"$f":"IF('1. Order'!J1422=\"\",\"\",'1. Order'!J1422)","v":""},{"$f":"IF('1. Order'!K1422=\"\",\"\",'1. Order'!K1422)","v":""},{"$f":"IF('1. Order'!L1422=\"\",\"\",'1. Order'!L1422)","v":""},{"$f":"IF('1. Order'!M1422=\"\",\"\",'1. Order'!M1422)","v":""},{"$f":"IF('1. Order'!N1422=\"\",\"\",'1. Order'!N1422)","v":""},{"$f":"IF('1. Order'!O1422=\"\",\"\",'1. Order'!O1422)","v":{"$error":"#N/A"}},{"$f":"IF('1. Order'!P1422=\"\",\"\",'1. Order'!P1422)","v":{"$error":"#N/A"}},{"$f":"IF('1. Order'!Q1422=\"\",\"\",'1. Order'!Q1422)","v":""},{"$f":"IF('1. Order'!R1422=\"\",\"\",'1. Order'!R1422)","v":""},{"$f":"IF('1. Order'!S1422=\"\",\"\",'1. Order'!S1422)","v":""},{"$f":"IF('1. Order'!V1422=\"\",\"\",'1. Order'!V1422)","v":""},{"$f":"IF('1. Order'!W1422=\"\",\"\",'1. Order'!W1422)","v":""},{"$f":"IF('1. Order'!X1422=\"\",\"\",'1. Order'!X1422)","v":"EUR"},{"$f":"IF('1. Order'!Y1422=\"\",\"\",'1. Order'!Y1422)","v":""},{"$f":"IF('1. Order'!Z1422=\"\",\"\",'1. Order'!Z1422)","v":""},{"$f":"IF('1. Order'!AA1422=\"\",\"\",'1. Order'!AA1422)","v":""},null,{"$f":"IF('1. Order'!AS1422=\"\",\"\",'1. Order'!AS1422)","v":""},{"$f":"IF('1. Order'!AT1422=\"\",\"\",'1. Order'!AT1422)","v":""},null,null,null,null,null,null,null,{"$f":"IF('1. Order'!AX1422=\"\",\"\",'1. Order'!AX1422)","v":""},{"$f":"IF('1. Order'!AY1422=\"\",\"\",'1. Order'!AY1422)","v":""},{"$f":"IF('1. Order'!AZ1422=\"\",\"\",'1. Order'!AZ1422)","v":""},{"$f":"IF('1. Order'!BA1422=\"\",\"\",'1. Order'!BA1422)","v":""},{"$f":"IF('1. Order'!BC1422=\"\",\"\",'1. Order'!BC1422)","v":""},{"$f":"IF('1. Order'!BD1422=\"\",\"\",'1. Order'!BD1422)","v":6},{"$f":"IF('1. Order'!BE1422=\"\",\"\",'1. Order'!BE1422)","v":"None"},{"$f":"IF('1. Order'!BF1422=\"\",\"\",'1. Order'!BF1422)","v":"Parcel"},{"$f":"IF('1. Order'!BG1422=\"\",\"\",'1. Order'!BG1422)","v":"ZWO"}]
[{"$f":"IF('1. Order'!F1423=\"\",\"\",'1. Order'!F1423)","v":""},{"$f":"IF('1. Order'!G1423=\"\",\"\",'1. Order'!G1423)","v":""},{"$f":"IF('1. Order'!H1423=\"\",\"\",'1. Order'!H1423)","v":""},{"$f":"IF('1. Order'!I1423=\"\",\"\",'1. Order'!I1423)","v":""},{"$f":"IF('1. Order'!J1423=\"\",\"\",'1. Order'!J1423)","v":""},{"$f":"IF('1. Order'!K1423=\"\",\"\",'1. Order'!K1423)","v":""},{"$f":"IF('1. Order'!L1423=\"\",\"\",'1. Order'!L1423)","v":""},{"$f":"IF('1. Order'!M1423=\"\",\"\",'1. Order'!M1423)","v":""},{"$f":"IF('1. Order'!N1423=\"\",\"\",'1. Order'!N1423)","v":""},{"$f":"IF('1. Order'!O1423=\"\",\"\",'1. Order'!O1423)","v":{"$error":"#N/A"}},{"$f":"IF('1. Order'!P1423=\"\",\"\",'1. Order'!P1423)","v":{"$error":"#N/A"}},{"$f":"IF('1. Order'!Q1423=\"\",\"\",'1. Order'!Q1423)","v":""},{"$f":"IF('1. Order'!R1423=\"\",\"\",'1. Order'!R1423)","v":""},{"$f":"IF('1. Order'!S1423=\"\",\"\",'1. Order'!S1423)","v":""},{"$f":"IF('1. Order'!V1423=\"\",\"\",'1. Order'!V1423)","v":""},{"$f":"IF('1. Order'!W1423=\"\",\"\",'1. Order'!W1423)","v":""},{"$f":"IF('1. Order'!X1423=\"\",\"\",'1. Order'!X1423)","v":"EUR"},{"$f":"IF('1. Order'!Y1423=\"\",\"\",'1. Order'!Y1423)","v":""},{"$f":"IF('1. Order'!Z1423=\"\",\"\",'1. Order'!Z1423)","v":""},{"$f":"IF('1. Order'!AA1423=\"\",\"\",'1. Order'!AA1423)","v":""},null,{"$f":"IF('1. Order'!AS1423=\"\",\"\",'1. Order'!AS1423)","v":""},{"$f":"IF('1. Order'!AT1423=\"\",\"\",'1. Order'!AT1423)","v":""},null,null,null,null,null,null,null,{"$f":"IF('1. Order'!AX1423=\"\",\"\",'1. Order'!AX1423)","v":""},{"$f":"IF('1. Order'!AY1423=\"\",\"\",'1. Order'!AY1423)","v":""},{"$f":"IF('1. Order'!AZ1423=\"\",\"\",'1. Order'!AZ1423)","v":""},{"$f":"IF('1. Order'!BA1423=\"\",\"\",'1. Order'!BA1423)","v":""},{"$f":"IF('1. Order'!BC1423=\"\",\"\",'1. Order'!BC1423)","v":""},{"$f":"IF('1. Order'!BD1423=\"\",\"\",'1. Order'!BD1423)","v":6},{"$f":"IF('1. Order'!BE1423=\"\",\"\",'1. Order'!BE1423)","v":"None"},{"$f":"IF('1. Order'!BF1423=\"\",\"\",'1. Order'!BF1423)","v":"Parcel"},{"$f":"IF('1. Order'!BG1423=\"\",\"\",'1. Order'!BG1423)","v":"ZWO"}]
[{"$f":"IF('1. Order'!F1424=\"\",\"\",'1. Order'!F1424)","v":""},{"$f":"IF('1. Order'!G1424=\"\",\"\",'1. Order'!G1424)","v":""},{"$f":"IF('1. Order'!H1424=\"\",\"\",'1. Order'!H1424)","v":""},{"$f":"IF('1. Order'!I1424=\"\",\"\",'1. Order'!I1424)","v":""},{"$f":"IF('1. Order'!J1424=\"\",\"\",'1. Order'!J1424)","v":""},{"$f":"IF('1. Order'!K1424=\"\",\"\",'1. Order'!K1424)","v":""},{"$f":"IF('1. Order'!L1424=\"\",\"\",'1. Order'!L1424)","v":""},{"$f":"IF('1. Order'!M1424=\"\",\"\",'1. Order'!M1424)","v":""},{"$f":"IF('1. Order'!N1424=\"\",\"\",'1. Order'!N1424)","v":""},{"$f":"IF('1. Order'!O1424=\"\",\"\",'1. Order'!O1424)","v":{"$error":"#N/A"}},{"$f":"IF('1. Order'!P1424=\"\",\"\",'1. Order'!P1424)","v":{"$error":"#N/A"}},{"$f":"IF('1. Order'!Q1424=\"\",\"\",'1. Order'!Q1424)","v":""},{"$f":"IF('1. Order'!R1424=\"\",\"\",'1. Order'!R1424)","v":""},{"$f":"IF('1. Order'!S1424=\"\",\"\",'1. Order'!S1424)","v":""},{"$f":"IF('1. Order'!V1424=\"\",\"\",'1. Order'!V1424)","v":""},{"$f":"IF('1. Order'!W1424=\"\",\"\",'1. Order'!W1424)","v":""},{"$f":"IF('1. Order'!X1424=\"\",\"\",'1. Order'!X1424)","v":"EUR"},{"$f":"IF('1. Order'!Y1424=\"\",\"\",'1. Order'!Y1424)","v":""},{"$f":"IF('1. Order'!Z1424=\"\",\"\",'1. Order'!Z1424)","v":""},{"$f":"IF('1. Order'!AA1424=\"\",\"\",'1. Order'!AA1424)","v":""},null,{"$f":"IF('1. Order'!AS1424=\"\",\"\",'1. Order'!AS1424)","v":""},{"$f":"IF('1. Order'!AT1424=\"\",\"\",'1. Order'!AT1424)","v":""},null,null,null,null,null,null,null,{"$f":"IF('1. Order'!AX1424=\"\",\"\",'1. Order'!AX1424)","v":""},{"$f":"IF('1. Order'!AY1424=\"\",\"\",'1. Order'!AY1424)","v":""},{"$f":"IF('1. Order'!AZ1424=\"\",\"\",'1. Order'!AZ1424)","v":""},{"$f":"IF('1. Order'!BA1424=\"\",\"\",'1. Order'!BA1424)","v":""},{"$f":"IF('1. Order'!BC1424=\"\",\"\",'1. Order'!BC1424)","v":""},{"$f":"IF('1. Order'!BD1424=\"\",\"\",'1. Order'!BD1424)","v":6},{"$f":"IF('1. Order'!BE1424=\"\",\"\",'1. Order'!BE1424)","v":"None"},{"$f":"IF('1. Order'!BF1424=\"\",\"\",'1. Order'!BF1424)","v":"Parcel"},{"$f":"IF('1. Order'!BG1424=\"\",\"\",'1. Order'!BG1424)","v":"ZWO"}]
[{"$f":"IF('1. Order'!F1425=\"\",\"\",'1. Order'!F1425)","v":""},{"$f":"IF('1. Order'!G1425=\"\",\"\",'1. Order'!G1425)","v":""},{"$f":"IF('1. Order'!H1425=\"\",\"\",'1. Order'!H1425)","v":""},{"$f":"IF('1. Order'!I1425=\"\",\"\",'1. Order'!I1425)","v":""},{"$f":"IF('1. Order'!J1425=\"\",\"\",'1. Order'!J1425)","v":""},{"$f":"IF('1. Order'!K1425=\"\",\"\",'1. Order'!K1425)","v":""},{"$f":"IF('1. Order'!L1425=\"\",\"\",'1. Order'!L1425)","v":""},{"$f":"IF('1. Order'!M1425=\"\",\"\",'1. Order'!M1425)","v":""},{"$f":"IF('1. Order'!N1425=\"\",\"\",'1. Order'!N1425)","v":""},{"$f":"IF('1. Order'!O1425=\"\",\"\",'1. Order'!O1425)","v":{"$error":"#N/A"}},{"$f":"IF('1. Order'!P1425=\"\",\"\",'1. Order'!P1425)","v":{"$error":"#N/A"}},{"$f":"IF('1. Order'!Q1425=\"\",\"\",'1. Order'!Q1425)","v":""},{"$f":"IF('1. Order'!R1425=\"\",\"\",'1. Order'!R1425)","v":""},{"$f":"IF('1. Order'!S1425=\"\",\"\",'1. Order'!S1425)","v":""},{"$f":"IF('1. Order'!V1425=\"\",\"\",'1. Order'!V1425)","v":""},{"$f":"IF('1. Order'!W1425=\"\",\"\",'1. Order'!W1425)","v":""},{"$f":"IF('1. Order'!X1425=\"\",\"\",'1. Order'!X1425)","v":"EUR"},{"$f":"IF('1. Order'!Y1425=\"\",\"\",'1. Order'!Y1425)","v":""},{"$f":"IF('1. Order'!Z1425=\"\",\"\",'1. Order'!Z1425)","v":""},{"$f":"IF('1. Order'!AA1425=\"\",\"\",'1. Order'!AA1425)","v":""},null,{"$f":"IF('1. Order'!AS1425=\"\",\"\",'1. Order'!AS1425)","v":""},{"$f":"IF('1. Order'!AT1425=\"\",\"\",'1. Order'!AT1425)","v":""},null,null,null,null,null,null,null,{"$f":"IF('1. Order'!AX1425=\"\",\"\",'1. Order'!AX1425)","v":""},{"$f":"IF('1. Order'!AY1425=\"\",\"\",'1. Order'!AY1425)","v":""},{"$f":"IF('1. Order'!AZ1425=\"\",\"\",'1. Order'!AZ1425)","v":""},{"$f":"IF('1. Order'!BA1425=\"\",\"\",'1. Order'!BA1425)","v":""},{"$f":"IF('1. Order'!BC1425=\"\",\"\",'1. Order'!BC1425)","v":""},{"$f":"IF('1. Order'!BD1425=\"\",\"\",'1. Order'!BD1425)","v":6},{"$f":"IF('1. Order'!BE1425=\"\",\"\",'1. Order'!BE1425)","v":"None"},{"$f":"IF('1. Order'!BF1425=\"\",\"\",'1. Order'!BF1425)","v":"Parcel"},{"$f":"IF('1. Order'!BG1425=\"\",\"\",'1. Order'!BG1425)","v":"ZWO"}]
[{"$f":"IF('1. Order'!F1426=\"\",\"\",'1. Order'!F1426)","v":""},{"$f":"IF('1. Order'!G1426=\"\",\"\",'1. Order'!G1426)","v":""},{"$f":"IF('1. Order'!H1426=\"\",\"\",'1. Order'!H1426)","v":""},{"$f":"IF('1. Order'!I1426=\"\",\"\",'1. Order'!I1426)","v":""},{"$f":"IF('1. Order'!J1426=\"\",\"\",'1. Order'!J1426)","v":""},{"$f":"IF('1. Order'!K1426=\"\",\"\",'1. Order'!K1426)","v":""},{"$f":"IF('1. Order'!L1426=\"\",\"\",'1. Order'!L1426)","v":""},{"$f":"IF('1. Order'!M1426=\"\",\"\",'1. Order'!M1426)","v":""},{"$f":"IF('1. Order'!N1426=\"\",\"\",'1. Order'!N1426)","v":""},{"$f":"IF('1. Order'!O1426=\"\",\"\",'1. Order'!O1426)","v":{"$error":"#N/A"}},{"$f":"IF('1. Order'!P1426=\"\",\"\",'1. Order'!P1426)","v":{"$error":"#N/A"}},{"$f":"IF('1. Order'!Q1426=\"\",\"\",'1. Order'!Q1426)","v":""},{"$f":"IF('1. Order'!R1426=\"\",\"\",'1. Order'!R1426)","v":""},{"$f":"IF('1. Order'!S1426=\"\",\"\",'1. Order'!S1426)","v":""},{"$f":"IF('1. Order'!V1426=\"\",\"\",'1. Order'!V1426)","v":""},{"$f":"IF('1. Order'!W1426=\"\",\"\",'1. Order'!W1426)","v":""},{"$f":"IF('1. Order'!X1426=\"\",\"\",'1. Order'!X1426)","v":"EUR"},{"$f":"IF('1. Order'!Y1426=\"\",\"\",'1. Order'!Y1426)","v":""},{"$f":"IF('1. Order'!Z1426=\"\",\"\",'1. Order'!Z1426)","v":""},{"$f":"IF('1. Order'!AA1426=\"\",\"\",'1. Order'!AA1426)","v":""},null,{"$f":"IF('1. Order'!AS1426=\"\",\"\",'1. Order'!AS1426)","v":""},{"$f":"IF('1. Order'!AT1426=\"\",\"\",'1. Order'!AT1426)","v":""},null,null,null,null,null,null,null,{"$f":"IF('1. Order'!AX1426=\"\",\"\",'1. Order'!AX1426)","v":""},{"$f":"IF('1. Order'!AY1426=\"\",\"\",'1. Order'!AY1426)","v":""},{"$f":"IF('1. Order'!AZ1426=\"\",\"\",'1. Order'!AZ1426)","v":""},{"$f":"IF('1. Order'!BA1426=\"\",\"\",'1. Order'!BA1426)","v":""},{"$f":"IF('1. Order'!BC1426=\"\",\"\",'1. Order'!BC1426)","v":""},{"$f":"IF('1. Order'!BD1426=\"\",\"\",'1. Order'!BD1426)","v":6},{"$f":"IF('1. Order'!BE1426=\"\",\"\",'1. Order'!BE1426)","v":"None"},{"$f":"IF('1. Order'!BF1426=\"\",\"\",'1. Order'!BF1426)","v":"Parcel"},{"$f":"IF('1. Order'!BG1426=\"\",\"\",'1. Order'!BG1426)","v":"ZWO"}]
[{"$f":"IF('1. Order'!F1427=\"\",\"\",'1. Order'!F1427)","v":""},{"$f":"IF('1. Order'!G1427=\"\",\"\",'1. Order'!G1427)","v":""},{"$f":"IF('1. Order'!H1427=\"\",\"\",'1. Order'!H1427)","v":""},{"$f":"IF('1. Order'!I1427=\"\",\"\",'1. Order'!I1427)","v":""},{"$f":"IF('1. Order'!J1427=\"\",\"\",'1. Order'!J1427)","v":""},{"$f":"IF('1. Order'!K1427=\"\",\"\",'1. Order'!K1427)","v":""},{"$f":"IF('1. Order'!L1427=\"\",\"\",'1. Order'!L1427)","v":""},{"$f":"IF('1. Order'!M1427=\"\",\"\",'1. Order'!M1427)","v":""},{"$f":"IF('1. Order'!N1427=\"\",\"\",'1. Order'!N1427)","v":""},{"$f":"IF('1. Order'!O1427=\"\",\"\",'1. Order'!O1427)","v":{"$error":"#N/A"}},{"$f":"IF('1. Order'!P1427=\"\",\"\",'1. Order'!P1427)","v":{"$error":"#N/A"}},{"$f":"IF('1. Order'!Q1427=\"\",\"\",'1. Order'!Q1427)","v":""},{"$f":"IF('1. Order'!R1427=\"\",\"\",'1. Order'!R1427)","v":""},{"$f":"IF('1. Order'!S1427=\"\",\"\",'1. Order'!S1427)","v":""},{"$f":"IF('1. Order'!V1427=\"\",\"\",'1. Order'!V1427)","v":""},{"$f":"IF('1. Order'!W1427=\"\",\"\",'1. Order'!W1427)","v":""},{"$f":"IF('1. Order'!X1427=\"\",\"\",'1. Order'!X1427)","v":"EUR"},{"$f":"IF('1. Order'!Y1427=\"\",\"\",'1. Order'!Y1427)","v":""},{"$f":"IF('1. Order'!Z1427=\"\",\"\",'1. Order'!Z1427)","v":""},{"$f":"IF('1. Order'!AA1427=\"\",\"\",'1. Order'!AA1427)","v":""},null,{"$f":"IF('1. Order'!AS1427=\"\",\"\",'1. Order'!AS1427)","v":""},{"$f":"IF('1. Order'!AT1427=\"\",\"\",'1. Order'!AT1427)","v":""},null,null,null,null,null,null,null,{"$f":"IF('1. Order'!AX1427=\"\",\"\",'1. Order'!AX1427)","v":""},{"$f":"IF('1. Order'!AY1427=\"\",\"\",'1. Order'!AY1427)","v":""},{"$f":"IF('1. Order'!AZ1427=\"\",\"\",'1. Order'!AZ1427)","v":""},{"$f":"IF('1. Order'!BA1427=\"\",\"\",'1. Order'!BA1427)","v":""},{"$f":"IF('1. Order'!BC1427=\"\",\"\",'1. Order'!BC1427)","v":""},{"$f":"IF('1. Order'!BD1427=\"\",\"\",'1. Order'!BD1427)","v":6},{"$f":"IF('1. Order'!BE1427=\"\",\"\",'1. Order'!BE1427)","v":"None"},{"$f":"IF('1. Order'!BF1427=\"\",\"\",'1. Order'!BF1427)","v":"Parcel"},{"$f":"IF('1. Order'!BG1427=\"\",\"\",'1. Order'!BG1427)","v":"ZWO"}]
[{"$f":"IF('1. Order'!F1428=\"\",\"\",'1. Order'!F1428)","v":""},{"$f":"IF('1. Order'!G1428=\"\",\"\",'1. Order'!G1428)","v":""},{"$f":"IF('1. Order'!H1428=\"\",\"\",'1. Order'!H1428)","v":""},{"$f":"IF('1. Order'!I1428=\"\",\"\",'1. Order'!I1428)","v":""},{"$f":"IF('1. Order'!J1428=\"\",\"\",'1. Order'!J1428)","v":""},{"$f":"IF('1. Order'!K1428=\"\",\"\",'1. Order'!K1428)","v":""},{"$f":"IF('1. Order'!L1428=\"\",\"\",'1. Order'!L1428)","v":""},{"$f":"IF('1. Order'!M1428=\"\",\"\",'1. Order'!M1428)","v":""},{"$f":"IF('1. Order'!N1428=\"\",\"\",'1. Order'!N1428)","v":""},{"$f":"IF('1. Order'!O1428=\"\",\"\",'1. Order'!O1428)","v":{"$error":"#N/A"}},{"$f":"IF('1. Order'!P1428=\"\",\"\",'1. Order'!P1428)","v":{"$error":"#N/A"}},{"$f":"IF('1. Order'!Q1428=\"\",\"\",'1. Order'!Q1428)","v":""},{"$f":"IF('1. Order'!R1428=\"\",\"\",'1. Order'!R1428)","v":""},{"$f":"IF('1. Order'!S1428=\"\",\"\",'1. Order'!S1428)","v":""},{"$f":"IF('1. Order'!V1428=\"\",\"\",'1. Order'!V1428)","v":""},{"$f":"IF('1. Order'!W1428=\"\",\"\",'1. Order'!W1428)","v":""},{"$f":"IF('1. Order'!X1428=\"\",\"\",'1. Order'!X1428)","v":"EUR"},{"$f":"IF('1. Order'!Y1428=\"\",\"\",'1. Order'!Y1428)","v":""},{"$f":"IF('1. Order'!Z1428=\"\",\"\",'1. Order'!Z1428)","v":""},{"$f":"IF('1. Order'!AA1428=\"\",\"\",'1. Order'!AA1428)","v":""},null,{"$f":"IF('1. Order'!AS1428=\"\",\"\",'1. Order'!AS1428)","v":""},{"$f":"IF('1. Order'!AT1428=\"\",\"\",'1. Order'!AT1428)","v":""},null,null,null,null,null,null,null,{"$f":"IF('1. Order'!AX1428=\"\",\"\",'1. Order'!AX1428)","v":""},{"$f":"IF('1. Order'!AY1428=\"\",\"\",'1. Order'!AY1428)","v":""},{"$f":"IF('1. Order'!AZ1428=\"\",\"\",'1. Order'!AZ1428)","v":""},{"$f":"IF('1. Order'!BA1428=\"\",\"\",'1. Order'!BA1428)","v":""},{"$f":"IF('1. Order'!BC1428=\"\",\"\",'1. Order'!BC1428)","v":""},{"$f":"IF('1. Order'!BD1428=\"\",\"\",'1. Order'!BD1428)","v":6},{"$f":"IF('1. Order'!BE1428=\"\",\"\",'1. Order'!BE1428)","v":"None"},{"$f":"IF('1. Order'!BF1428=\"\",\"\",'1. Order'!BF1428)","v":"Parcel"},{"$f":"IF('1. Order'!BG1428=\"\",\"\",'1. Order'!BG1428)","v":"ZWO"}]
[{"$f":"IF('1. Order'!F1429=\"\",\"\",'1. Order'!F1429)","v":""},{"$f":"IF('1. Order'!G1429=\"\",\"\",'1. Order'!G1429)","v":""},{"$f":"IF('1. Order'!H1429=\"\",\"\",'1. Order'!H1429)","v":""},{"$f":"IF('1. Order'!I1429=\"\",\"\",'1. Order'!I1429)","v":""},{"$f":"IF('1. Order'!J1429=\"\",\"\",'1. Order'!J1429)","v":""},{"$f":"IF('1. Order'!K1429=\"\",\"\",'1. Order'!K1429)","v":""},{"$f":"IF('1. Order'!L1429=\"\",\"\",'1. Order'!L1429)","v":""},{"$f":"IF('1. Order'!M1429=\"\",\"\",'1. Order'!M1429)","v":""},{"$f":"IF('1. Order'!N1429=\"\",\"\",'1. Order'!N1429)","v":""},{"$f":"IF('1. Order'!O1429=\"\",\"\",'1. Order'!O1429)","v":{"$error":"#N/A"}},{"$f":"IF('1. Order'!P1429=\"\",\"\",'1. Order'!P1429)","v":{"$error":"#N/A"}},{"$f":"IF('1. Order'!Q1429=\"\",\"\",'1. Order'!Q1429)","v":""},{"$f":"IF('1. Order'!R1429=\"\",\"\",'1. Order'!R1429)","v":""},{"$f":"IF('1. Order'!S1429=\"\",\"\",'1. Order'!S1429)","v":""},{"$f":"IF('1. Order'!V1429=\"\",\"\",'1. Order'!V1429)","v":""},{"$f":"IF('1. Order'!W1429=\"\",\"\",'1. Order'!W1429)","v":""},{"$f":"IF('1. Order'!X1429=\"\",\"\",'1. Order'!X1429)","v":"EUR"},{"$f":"IF('1. Order'!Y1429=\"\",\"\",'1. Order'!Y1429)","v":""},{"$f":"IF('1. Order'!Z1429=\"\",\"\",'1. Order'!Z1429)","v":""},{"$f":"IF('1. Order'!AA1429=\"\",\"\",'1. Order'!AA1429)","v":""},null,{"$f":"IF('1. Order'!AS1429=\"\",\"\",'1. Order'!AS1429)","v":""},{"$f":"IF('1. Order'!AT1429=\"\",\"\",'1. Order'!AT1429)","v":""},null,null,null,null,null,null,null,{"$f":"IF('1. Order'!AX1429=\"\",\"\",'1. Order'!AX1429)","v":""},{"$f":"IF('1. Order'!AY1429=\"\",\"\",'1. Order'!AY1429)","v":""},{"$f":"IF('1. Order'!AZ1429=\"\",\"\",'1. Order'!AZ1429)","v":""},{"$f":"IF('1. Order'!BA1429=\"\",\"\",'1. Order'!BA1429)","v":""},{"$f":"IF('1. Order'!BC1429=\"\",\"\",'1. Order'!BC1429)","v":""},{"$f":"IF('1. Order'!BD1429=\"\",\"\",'1. Order'!BD1429)","v":6},{"$f":"IF('1. Order'!BE1429=\"\",\"\",'1. Order'!BE1429)","v":"None"},{"$f":"IF('1. Order'!BF1429=\"\",\"\",'1. Order'!BF1429)","v":"Parcel"},{"$f":"IF('1. Order'!BG1429=\"\",\"\",'1. Order'!BG1429)","v":"ZWO"}]
[{"$f":"IF('1. Order'!F1430=\"\",\"\",'1. Order'!F1430)","v":""},{"$f":"IF('1. Order'!G1430=\"\",\"\",'1. Order'!G1430)","v":""},{"$f":"IF('1. Order'!H1430=\"\",\"\",'1. Order'!H1430)","v":""},{"$f":"IF('1. Order'!I1430=\"\",\"\",'1. Order'!I1430)","v":""},{"$f":"IF('1. Order'!J1430=\"\",\"\",'1. Order'!J1430)","v":""},{"$f":"IF('1. Order'!K1430=\"\",\"\",'1. Order'!K1430)","v":""},{"$f":"IF('1. Order'!L1430=\"\",\"\",'1. Order'!L1430)","v":""},{"$f":"IF('1. Order'!M1430=\"\",\"\",'1. Order'!M1430)","v":""},{"$f":"IF('1. Order'!N1430=\"\",\"\",'1. Order'!N1430)","v":""},{"$f":"IF('1. Order'!O1430=\"\",\"\",'1. Order'!O1430)","v":{"$error":"#N/A"}},{"$f":"IF('1. Order'!P1430=\"\",\"\",'1. Order'!P1430)","v":{"$error":"#N/A"}},{"$f":"IF('1. Order'!Q1430=\"\",\"\",'1. Order'!Q1430)","v":""},{"$f":"IF('1. Order'!R1430=\"\",\"\",'1. Order'!R1430)","v":""},{"$f":"IF('1. Order'!S1430=\"\",\"\",'1. Order'!S1430)","v":""},{"$f":"IF('1. Order'!V1430=\"\",\"\",'1. Order'!V1430)","v":""},{"$f":"IF('1. Order'!W1430=\"\",\"\",'1. Order'!W1430)","v":""},{"$f":"IF('1. Order'!X1430=\"\",\"\",'1. Order'!X1430)","v":"EUR"},{"$f":"IF('1. Order'!Y1430=\"\",\"\",'1. Order'!Y1430)","v":""},{"$f":"IF('1. Order'!Z1430=\"\",\"\",'1. Order'!Z1430)","v":""},{"$f":"IF('1. Order'!AA1430=\"\",\"\",'1. Order'!AA1430)","v":""},null,{"$f":"IF('1. Order'!AS1430=\"\",\"\",'1. Order'!AS1430)","v":""},{"$f":"IF('1. Order'!AT1430=\"\",\"\",'1. Order'!AT1430)","v":""},null,null,null,null,null,null,null,{"$f":"IF('1. Order'!AX1430=\"\",\"\",'1. Order'!AX1430)","v":""},{"$f":"IF('1. Order'!AY1430=\"\",\"\",'1. Order'!AY1430)","v":""},{"$f":"IF('1. Order'!AZ1430=\"\",\"\",'1. Order'!AZ1430)","v":""},{"$f":"IF('1. Order'!BA1430=\"\",\"\",'1. Order'!BA1430)","v":""},{"$f":"IF('1. Order'!BC1430=\"\",\"\",'1. Order'!BC1430)","v":""},{"$f":"IF('1. Order'!BD1430=\"\",\"\",'1. Order'!BD1430)","v":6},{"$f":"IF('1. Order'!BE1430=\"\",\"\",'1. Order'!BE1430)","v":"None"},{"$f":"IF('1. Order'!BF1430=\"\",\"\",'1. Order'!BF1430)","v":"Parcel"},{"$f":"IF('1. Order'!BG1430=\"\",\"\",'1. Order'!BG1430)","v":"ZWO"}]
[{"$f":"IF('1. Order'!F1431=\"\",\"\",'1. Order'!F1431)","v":""},{"$f":"IF('1. Order'!G1431=\"\",\"\",'1. Order'!G1431)","v":""},{"$f":"IF('1. Order'!H1431=\"\",\"\",'1. Order'!H1431)","v":""},{"$f":"IF('1. Order'!I1431=\"\",\"\",'1. Order'!I1431)","v":""},{"$f":"IF('1. Order'!J1431=\"\",\"\",'1. Order'!J1431)","v":""},{"$f":"IF('1. Order'!K1431=\"\",\"\",'1. Order'!K1431)","v":""},{"$f":"IF('1. Order'!L1431=\"\",\"\",'1. Order'!L1431)","v":""},{"$f":"IF('1. Order'!M1431=\"\",\"\",'1. Order'!M1431)","v":""},{"$f":"IF('1. Order'!N1431=\"\",\"\",'1. Order'!N1431)","v":""},{"$f":"IF('1. Order'!O1431=\"\",\"\",'1. Order'!O1431)","v":{"$error":"#N/A"}},{"$f":"IF('1. Order'!P1431=\"\",\"\",'1. Order'!P1431)","v":{"$error":"#N/A"}},{"$f":"IF('1. Order'!Q1431=\"\",\"\",'1. Order'!Q1431)","v":""},{"$f":"IF('1. Order'!R1431=\"\",\"\",'1. Order'!R1431)","v":""},{"$f":"IF('1. Order'!S1431=\"\",\"\",'1. Order'!S1431)","v":""},{"$f":"IF('1. Order'!V1431=\"\",\"\",'1. Order'!V1431)","v":""},{"$f":"IF('1. Order'!W1431=\"\",\"\",'1. Order'!W1431)","v":""},{"$f":"IF('1. Order'!X1431=\"\",\"\",'1. Order'!X1431)","v":"EUR"},{"$f":"IF('1. Order'!Y1431=\"\",\"\",'1. Order'!Y1431)","v":""},{"$f":"IF('1. Order'!Z1431=\"\",\"\",'1. Order'!Z1431)","v":""},{"$f":"IF('1. Order'!AA1431=\"\",\"\",'1. Order'!AA1431)","v":""},null,{"$f":"IF('1. Order'!AS1431=\"\",\"\",'1. Order'!AS1431)","v":""},{"$f":"IF('1. Order'!AT1431=\"\",\"\",'1. Order'!AT1431)","v":""},null,null,null,null,null,null,null,{"$f":"IF('1. Order'!AX1431=\"\",\"\",'1. Order'!AX1431)","v":""},{"$f":"IF('1. Order'!AY1431=\"\",\"\",'1. Order'!AY1431)","v":""},{"$f":"IF('1. Order'!AZ1431=\"\",\"\",'1. Order'!AZ1431)","v":""},{"$f":"IF('1. Order'!BA1431=\"\",\"\",'1. Order'!BA1431)","v":""},{"$f":"IF('1. Order'!BC1431=\"\",\"\",'1. Order'!BC1431)","v":""},{"$f":"IF('1. Order'!BD1431=\"\",\"\",'1. Order'!BD1431)","v":6},{"$f":"IF('1. Order'!BE1431=\"\",\"\",'1. Order'!BE1431)","v":"None"},{"$f":"IF('1. Order'!BF1431=\"\",\"\",'1. Order'!BF1431)","v":"Parcel"},{"$f":"IF('1. Order'!BG1431=\"\",\"\",'1. Order'!BG1431)","v":"ZWO"}]
[{"$f":"IF('1. Order'!F1432=\"\",\"\",'1. Order'!F1432)","v":""},{"$f":"IF('1. Order'!G1432=\"\",\"\",'1. Order'!G1432)","v":""},{"$f":"IF('1. Order'!H1432=\"\",\"\",'1. Order'!H1432)","v":""},{"$f":"IF('1. Order'!I1432=\"\",\"\",'1. Order'!I1432)","v":""},{"$f":"IF('1. Order'!J1432=\"\",\"\",'1. Order'!J1432)","v":""},{"$f":"IF('1. Order'!K1432=\"\",\"\",'1. Order'!K1432)","v":""},{"$f":"IF('1. Order'!L1432=\"\",\"\",'1. Order'!L1432)","v":""},{"$f":"IF('1. Order'!M1432=\"\",\"\",'1. Order'!M1432)","v":""},{"$f":"IF('1. Order'!N1432=\"\",\"\",'1. Order'!N1432)","v":""},{"$f":"IF('1. Order'!O1432=\"\",\"\",'1. Order'!O1432)","v":{"$error":"#N/A"}},{"$f":"IF('1. Order'!P1432=\"\",\"\",'1. Order'!P1432)","v":{"$error":"#N/A"}},{"$f":"IF('1. Order'!Q1432=\"\",\"\",'1. Order'!Q1432)","v":""},{"$f":"IF('1. Order'!R1432=\"\",\"\",'1. Order'!R1432)","v":""},{"$f":"IF('1. Order'!S1432=\"\",\"\",'1. Order'!S1432)","v":""},{"$f":"IF('1. Order'!V1432=\"\",\"\",'1. Order'!V1432)","v":""},{"$f":"IF('1. Order'!W1432=\"\",\"\",'1. Order'!W1432)","v":""},{"$f":"IF('1. Order'!X1432=\"\",\"\",'1. Order'!X1432)","v":"EUR"},{"$f":"IF('1. Order'!Y1432=\"\",\"\",'1. Order'!Y1432)","v":""},{"$f":"IF('1. Order'!Z1432=\"\",\"\",'1. Order'!Z1432)","v":""},{"$f":"IF('1. Order'!AA1432=\"\",\"\",'1. Order'!AA1432)","v":""},null,{"$f":"IF('1. Order'!AS1432=\"\",\"\",'1. Order'!AS1432)","v":""},{"$f":"IF('1. Order'!AT1432=\"\",\"\",'1. Order'!AT1432)","v":""},null,null,null,null,null,null,null,{"$f":"IF('1. Order'!AX1432=\"\",\"\",'1. Order'!AX1432)","v":""},{"$f":"IF('1. Order'!AY1432=\"\",\"\",'1. Order'!AY1432)","v":""},{"$f":"IF('1. Order'!AZ1432=\"\",\"\",'1. Order'!AZ1432)","v":""},{"$f":"IF('1. Order'!BA1432=\"\",\"\",'1. Order'!BA1432)","v":""},{"$f":"IF('1. Order'!BC1432=\"\",\"\",'1. Order'!BC1432)","v":""},{"$f":"IF('1. Order'!BD1432=\"\",\"\",'1. Order'!BD1432)","v":6},{"$f":"IF('1. Order'!BE1432=\"\",\"\",'1. Order'!BE1432)","v":"None"},{"$f":"IF('1. Order'!BF1432=\"\",\"\",'1. Order'!BF1432)","v":"Parcel"},{"$f":"IF('1. Order'!BG1432=\"\",\"\",'1. Order'!BG1432)","v":"ZWO"}]
[{"$f":"IF('1. Order'!F1433=\"\",\"\",'1. Order'!F1433)","v":""},{"$f":"IF('1. Order'!G1433=\"\",\"\",'1. Order'!G1433)","v":""},{"$f":"IF('1. Order'!H1433=\"\",\"\",'1. Order'!H1433)","v":""},{"$f":"IF('1. Order'!I1433=\"\",\"\",'1. Order'!I1433)","v":""},{"$f":"IF('1. Order'!J1433=\"\",\"\",'1. Order'!J1433)","v":""},{"$f":"IF('1. Order'!K1433=\"\",\"\",'1. Order'!K1433)","v":""},{"$f":"IF('1. Order'!L1433=\"\",\"\",'1. Order'!L1433)","v":""},{"$f":"IF('1. Order'!M1433=\"\",\"\",'1. Order'!M1433)","v":""},{"$f":"IF('1. Order'!N1433=\"\",\"\",'1. Order'!N1433)","v":""},{"$f":"IF('1. Order'!O1433=\"\",\"\",'1. Order'!O1433)","v":{"$error":"#N/A"}},{"$f":"IF('1. Order'!P1433=\"\",\"\",'1. Order'!P1433)","v":{"$error":"#N/A"}},{"$f":"IF('1. Order'!Q1433=\"\",\"\",'1. Order'!Q1433)","v":""},{"$f":"IF('1. Order'!R1433=\"\",\"\",'1. Order'!R1433)","v":""},{"$f":"IF('1. Order'!S1433=\"\",\"\",'1. Order'!S1433)","v":""},{"$f":"IF('1. Order'!V1433=\"\",\"\",'1. Order'!V1433)","v":""},{"$f":"IF('1. Order'!W1433=\"\",\"\",'1. Order'!W1433)","v":""},{"$f":"IF('1. Order'!X1433=\"\",\"\",'1. Order'!X1433)","v":"EUR"},{"$f":"IF('1. Order'!Y1433=\"\",\"\",'1. Order'!Y1433)","v":""},{"$f":"IF('1. Order'!Z1433=\"\",\"\",'1. Order'!Z1433)","v":""},{"$f":"IF('1. Order'!AA1433=\"\",\"\",'1. Order'!AA1433)","v":""},null,{"$f":"IF('1. Order'!AS1433=\"\",\"\",'1. Order'!AS1433)","v":""},{"$f":"IF('1. Order'!AT1433=\"\",\"\",'1. Order'!AT1433)","v":""},null,null,null,null,null,null,null,{"$f":"IF('1. Order'!AX1433=\"\",\"\",'1. Order'!AX1433)","v":""},{"$f":"IF('1. Order'!AY1433=\"\",\"\",'1. Order'!AY1433)","v":""},{"$f":"IF('1. Order'!AZ1433=\"\",\"\",'1. Order'!AZ1433)","v":""},{"$f":"IF('1. Order'!BA1433=\"\",\"\",'1. Order'!BA1433)","v":""},{"$f":"IF('1. Order'!BC1433=\"\",\"\",'1. Order'!BC1433)","v":""},{"$f":"IF('1. Order'!BD1433=\"\",\"\",'1. Order'!BD1433)","v":6},{"$f":"IF('1. Order'!BE1433=\"\",\"\",'1. Order'!BE1433)","v":"None"},{"$f":"IF('1. Order'!BF1433=\"\",\"\",'1. Order'!BF1433)","v":"Parcel"},{"$f":"IF('1. Order'!BG1433=\"\",\"\",'1. Order'!BG1433)","v":"ZWO"}]
[{"$f":"IF('1. Order'!F1434=\"\",\"\",'1. Order'!F1434)","v":""},{"$f":"IF('1. Order'!G1434=\"\",\"\",'1. Order'!G1434)","v":""},{"$f":"IF('1. Order'!H1434=\"\",\"\",'1. Order'!H1434)","v":""},{"$f":"IF('1. Order'!I1434=\"\",\"\",'1. Order'!I1434)","v":""},{"$f":"IF('1. Order'!J1434=\"\",\"\",'1. Order'!J1434)","v":""},{"$f":"IF('1. Order'!K1434=\"\",\"\",'1. Order'!K1434)","v":""},{"$f":"IF('1. Order'!L1434=\"\",\"\",'1. Order'!L1434)","v":""},{"$f":"IF('1. Order'!M1434=\"\",\"\",'1. Order'!M1434)","v":""},{"$f":"IF('1. Order'!N1434=\"\",\"\",'1. Order'!N1434)","v":""},{"$f":"IF('1. Order'!O1434=\"\",\"\",'1. Order'!O1434)","v":{"$error":"#N/A"}},{"$f":"IF('1. Order'!P1434=\"\",\"\",'1. Order'!P1434)","v":{"$error":"#N/A"}},{"$f":"IF('1. Order'!Q1434=\"\",\"\",'1. Order'!Q1434)","v":""},{"$f":"IF('1. Order'!R1434=\"\",\"\",'1. Order'!R1434)","v":""},{"$f":"IF('1. Order'!S1434=\"\",\"\",'1. Order'!S1434)","v":""},{"$f":"IF('1. Order'!V1434=\"\",\"\",'1. Order'!V1434)","v":""},{"$f":"IF('1. Order'!W1434=\"\",\"\",'1. Order'!W1434)","v":""},{"$f":"IF('1. Order'!X1434=\"\",\"\",'1. Order'!X1434)","v":"EUR"},{"$f":"IF('1. Order'!Y1434=\"\",\"\",'1. Order'!Y1434)","v":""},{"$f":"IF('1. Order'!Z1434=\"\",\"\",'1. Order'!Z1434)","v":""},{"$f":"IF('1. Order'!AA1434=\"\",\"\",'1. Order'!AA1434)","v":""},null,{"$f":"IF('1. Order'!AS1434=\"\",\"\",'1. Order'!AS1434)","v":""},{"$f":"IF('1. Order'!AT1434=\"\",\"\",'1. Order'!AT1434)","v":""},null,null,null,null,null,null,null,{"$f":"IF('1. Order'!AX1434=\"\",\"\",'1. Order'!AX1434)","v":""},{"$f":"IF('1. Order'!AY1434=\"\",\"\",'1. Order'!AY1434)","v":""},{"$f":"IF('1. Order'!AZ1434=\"\",\"\",'1. Order'!AZ1434)","v":""},{"$f":"IF('1. Order'!BA1434=\"\",\"\",'1. Order'!BA1434)","v":""},{"$f":"IF('1. Order'!BC1434=\"\",\"\",'1. Order'!BC1434)","v":""},{"$f":"IF('1. Order'!BD1434=\"\",\"\",'1. Order'!BD1434)","v":6},{"$f":"IF('1. Order'!BE1434=\"\",\"\",'1. Order'!BE1434)","v":"None"},{"$f":"IF('1. Order'!BF1434=\"\",\"\",'1. Order'!BF1434)","v":"Parcel"},{"$f":"IF('1. Order'!BG1434=\"\",\"\",'1. Order'!BG1434)","v":"ZWO"}]
[{"$f":"IF('1. Order'!F1435=\"\",\"\",'1. Order'!F1435)","v":""},{"$f":"IF('1. Order'!G1435=\"\",\"\",'1. Order'!G1435)","v":""},{"$f":"IF('1. Order'!H1435=\"\",\"\",'1. Order'!H1435)","v":""},{"$f":"IF('1. Order'!I1435=\"\",\"\",'1. Order'!I1435)","v":""},{"$f":"IF('1. Order'!J1435=\"\",\"\",'1. Order'!J1435)","v":""},{"$f":"IF('1. Order'!K1435=\"\",\"\",'1. Order'!K1435)","v":""},{"$f":"IF('1. Order'!L1435=\"\",\"\",'1. Order'!L1435)","v":""},{"$f":"IF('1. Order'!M1435=\"\",\"\",'1. Order'!M1435)","v":""},{"$f":"IF('1. Order'!N1435=\"\",\"\",'1. Order'!N1435)","v":""},{"$f":"IF('1. Order'!O1435=\"\",\"\",'1. Order'!O1435)","v":{"$error":"#N/A"}},{"$f":"IF('1. Order'!P1435=\"\",\"\",'1. Order'!P1435)","v":{"$error":"#N/A"}},{"$f":"IF('1. Order'!Q1435=\"\",\"\",'1. Order'!Q1435)","v":""},{"$f":"IF('1. Order'!R1435=\"\",\"\",'1. Order'!R1435)","v":""},{"$f":"IF('1. Order'!S1435=\"\",\"\",'1. Order'!S1435)","v":""},{"$f":"IF('1. Order'!V1435=\"\",\"\",'1. Order'!V1435)","v":""},{"$f":"IF('1. Order'!W1435=\"\",\"\",'1. Order'!W1435)","v":""},{"$f":"IF('1. Order'!X1435=\"\",\"\",'1. Order'!X1435)","v":"EUR"},{"$f":"IF('1. Order'!Y1435=\"\",\"\",'1. Order'!Y1435)","v":""},{"$f":"IF('1. Order'!Z1435=\"\",\"\",'1. Order'!Z1435)","v":""},{"$f":"IF('1. Order'!AA1435=\"\",\"\",'1. Order'!AA1435)","v":""},null,{"$f":"IF('1. Order'!AS1435=\"\",\"\",'1. Order'!AS1435)","v":""},{"$f":"IF('1. Order'!AT1435=\"\",\"\",'1. Order'!AT1435)","v":""},null,null,null,null,null,null,null,{"$f":"IF('1. Order'!AX1435=\"\",\"\",'1. Order'!AX1435)","v":""},{"$f":"IF('1. Order'!AY1435=\"\",\"\",'1. Order'!AY1435)","v":""},{"$f":"IF('1. Order'!AZ1435=\"\",\"\",'1. Order'!AZ1435)","v":""},{"$f":"IF('1. Order'!BA1435=\"\",\"\",'1. Order'!BA1435)","v":""},{"$f":"IF('1. Order'!BC1435=\"\",\"\",'1. Order'!BC1435)","v":""},{"$f":"IF('1. Order'!BD1435=\"\",\"\",'1. Order'!BD1435)","v":6},{"$f":"IF('1. Order'!BE1435=\"\",\"\",'1. Order'!BE1435)","v":"None"},{"$f":"IF('1. Order'!BF1435=\"\",\"\",'1. Order'!BF1435)","v":"Parcel"},{"$f":"IF('1. Order'!BG1435=\"\",\"\",'1. Order'!BG1435)","v":"ZWO"}]
[{"$f":"IF('1. Order'!F1436=\"\",\"\",'1. Order'!F1436)","v":""},{"$f":"IF('1. Order'!G1436=\"\",\"\",'1. Order'!G1436)","v":""},{"$f":"IF('1. Order'!H1436=\"\",\"\",'1. Order'!H1436)","v":""},{"$f":"IF('1. Order'!I1436=\"\",\"\",'1. Order'!I1436)","v":""},{"$f":"IF('1. Order'!J1436=\"\",\"\",'1. Order'!J1436)","v":""},{"$f":"IF('1. Order'!K1436=\"\",\"\",'1. Order'!K1436)","v":""},{"$f":"IF('1. Order'!L1436=\"\",\"\",'1. Order'!L1436)","v":""},{"$f":"IF('1. Order'!M1436=\"\",\"\",'1. Order'!M1436)","v":""},{"$f":"IF('1. Order'!N1436=\"\",\"\",'1. Order'!N1436)","v":""},{"$f":"IF('1. Order'!O1436=\"\",\"\",'1. Order'!O1436)","v":{"$error":"#N/A"}},{"$f":"IF('1. Order'!P1436=\"\",\"\",'1. Order'!P1436)","v":{"$error":"#N/A"}},{"$f":"IF('1. Order'!Q1436=\"\",\"\",'1. Order'!Q1436)","v":""},{"$f":"IF('1. Order'!R1436=\"\",\"\",'1. Order'!R1436)","v":""},{"$f":"IF('1. Order'!S1436=\"\",\"\",'1. Order'!S1436)","v":""},{"$f":"IF('1. Order'!V1436=\"\",\"\",'1. Order'!V1436)","v":""},{"$f":"IF('1. Order'!W1436=\"\",\"\",'1. Order'!W1436)","v":""},{"$f":"IF('1. Order'!X1436=\"\",\"\",'1. Order'!X1436)","v":"EUR"},{"$f":"IF('1. Order'!Y1436=\"\",\"\",'1. Order'!Y1436)","v":""},{"$f":"IF('1. Order'!Z1436=\"\",\"\",'1. Order'!Z1436)","v":""},{"$f":"IF('1. Order'!AA1436=\"\",\"\",'1. Order'!AA1436)","v":""},null,{"$f":"IF('1. Order'!AS1436=\"\",\"\",'1. Order'!AS1436)","v":""},{"$f":"IF('1. Order'!AT1436=\"\",\"\",'1. Order'!AT1436)","v":""},null,null,null,null,null,null,null,{"$f":"IF('1. Order'!AX1436=\"\",\"\",'1. Order'!AX1436)","v":""},{"$f":"IF('1. Order'!AY1436=\"\",\"\",'1. Order'!AY1436)","v":""},{"$f":"IF('1. Order'!AZ1436=\"\",\"\",'1. Order'!AZ1436)","v":""},{"$f":"IF('1. Order'!BA1436=\"\",\"\",'1. Order'!BA1436)","v":""},{"$f":"IF('1. Order'!BC1436=\"\",\"\",'1. Order'!BC1436)","v":""},{"$f":"IF('1. Order'!BD1436=\"\",\"\",'1. Order'!BD1436)","v":6},{"$f":"IF('1. Order'!BE1436=\"\",\"\",'1. Order'!BE1436)","v":"None"},{"$f":"IF('1. Order'!BF1436=\"\",\"\",'1. Order'!BF1436)","v":"Parcel"},{"$f":"IF('1. Order'!BG1436=\"\",\"\",'1. Order'!BG1436)","v":"ZWO"}]
[{"$f":"IF('1. Order'!F1437=\"\",\"\",'1. Order'!F1437)","v":""},{"$f":"IF('1. Order'!G1437=\"\",\"\",'1. Order'!G1437)","v":""},{"$f":"IF('1. Order'!H1437=\"\",\"\",'1. Order'!H1437)","v":""},{"$f":"IF('1. Order'!I1437=\"\",\"\",'1. Order'!I1437)","v":""},{"$f":"IF('1. Order'!J1437=\"\",\"\",'1. Order'!J1437)","v":""},{"$f":"IF('1. Order'!K1437=\"\",\"\",'1. Order'!K1437)","v":""},{"$f":"IF('1. Order'!L1437=\"\",\"\",'1. Order'!L1437)","v":""},{"$f":"IF('1. Order'!M1437=\"\",\"\",'1. Order'!M1437)","v":""},{"$f":"IF('1. Order'!N1437=\"\",\"\",'1. Order'!N1437)","v":""},{"$f":"IF('1. Order'!O1437=\"\",\"\",'1. Order'!O1437)","v":{"$error":"#N/A"}},{"$f":"IF('1. Order'!P1437=\"\",\"\",'1. Order'!P1437)","v":{"$error":"#N/A"}},{"$f":"IF('1. Order'!Q1437=\"\",\"\",'1. Order'!Q1437)","v":""},{"$f":"IF('1. Order'!R1437=\"\",\"\",'1. Order'!R1437)","v":""},{"$f":"IF('1. Order'!S1437=\"\",\"\",'1. Order'!S1437)","v":""},{"$f":"IF('1. Order'!V1437=\"\",\"\",'1. Order'!V1437)","v":""},{"$f":"IF('1. Order'!W1437=\"\",\"\",'1. Order'!W1437)","v":""},{"$f":"IF('1. Order'!X1437=\"\",\"\",'1. Order'!X1437)","v":"EUR"},{"$f":"IF('1. Order'!Y1437=\"\",\"\",'1. Order'!Y1437)","v":""},{"$f":"IF('1. Order'!Z1437=\"\",\"\",'1. Order'!Z1437)","v":""},{"$f":"IF('1. Order'!AA1437=\"\",\"\",'1. Order'!AA1437)","v":""},null,{"$f":"IF('1. Order'!AS1437=\"\",\"\",'1. Order'!AS1437)","v":""},{"$f":"IF('1. Order'!AT1437=\"\",\"\",'1. Order'!AT1437)","v":""},null,null,null,null,null,null,null,{"$f":"IF('1. Order'!AX1437=\"\",\"\",'1. Order'!AX1437)","v":""},{"$f":"IF('1. Order'!AY1437=\"\",\"\",'1. Order'!AY1437)","v":""},{"$f":"IF('1. Order'!AZ1437=\"\",\"\",'1. Order'!AZ1437)","v":""},{"$f":"IF('1. Order'!BA1437=\"\",\"\",'1. Order'!BA1437)","v":""},{"$f":"IF('1. Order'!BC1437=\"\",\"\",'1. Order'!BC1437)","v":""},{"$f":"IF('1. Order'!BD1437=\"\",\"\",'1. Order'!BD1437)","v":6},{"$f":"IF('1. Order'!BE1437=\"\",\"\",'1. Order'!BE1437)","v":"None"},{"$f":"IF('1. Order'!BF1437=\"\",\"\",'1. Order'!BF1437)","v":"Parcel"},{"$f":"IF('1. Order'!BG1437=\"\",\"\",'1. Order'!BG1437)","v":"ZWO"}]
[{"$f":"IF('1. Order'!F1438=\"\",\"\",'1. Order'!F1438)","v":""},{"$f":"IF('1. Order'!G1438=\"\",\"\",'1. Order'!G1438)","v":""},{"$f":"IF('1. Order'!H1438=\"\",\"\",'1. Order'!H1438)","v":""},{"$f":"IF('1. Order'!I1438=\"\",\"\",'1. Order'!I1438)","v":""},{"$f":"IF('1. Order'!J1438=\"\",\"\",'1. Order'!J1438)","v":""},{"$f":"IF('1. Order'!K1438=\"\",\"\",'1. Order'!K1438)","v":""},{"$f":"IF('1. Order'!L1438=\"\",\"\",'1. Order'!L1438)","v":""},{"$f":"IF('1. Order'!M1438=\"\",\"\",'1. Order'!M1438)","v":""},{"$f":"IF('1. Order'!N1438=\"\",\"\",'1. Order'!N1438)","v":""},{"$f":"IF('1. Order'!O1438=\"\",\"\",'1. Order'!O1438)","v":{"$error":"#N/A"}},{"$f":"IF('1. Order'!P1438=\"\",\"\",'1. Order'!P1438)","v":{"$error":"#N/A"}},{"$f":"IF('1. Order'!Q1438=\"\",\"\",'1. Order'!Q1438)","v":""},{"$f":"IF('1. Order'!R1438=\"\",\"\",'1. Order'!R1438)","v":""},{"$f":"IF('1. Order'!S1438=\"\",\"\",'1. Order'!S1438)","v":""},{"$f":"IF('1. Order'!V1438=\"\",\"\",'1. Order'!V1438)","v":""},{"$f":"IF('1. Order'!W1438=\"\",\"\",'1. Order'!W1438)","v":""},{"$f":"IF('1. Order'!X1438=\"\",\"\",'1. Order'!X1438)","v":"EUR"},{"$f":"IF('1. Order'!Y1438=\"\",\"\",'1. Order'!Y1438)","v":""},{"$f":"IF('1. Order'!Z1438=\"\",\"\",'1. Order'!Z1438)","v":""},{"$f":"IF('1. Order'!AA1438=\"\",\"\",'1. Order'!AA1438)","v":""},null,{"$f":"IF('1. Order'!AS1438=\"\",\"\",'1. Order'!AS1438)","v":""},{"$f":"IF('1. Order'!AT1438=\"\",\"\",'1. Order'!AT1438)","v":""},null,null,null,null,null,null,null,{"$f":"IF('1. Order'!AX1438=\"\",\"\",'1. Order'!AX1438)","v":""},{"$f":"IF('1. Order'!AY1438=\"\",\"\",'1. Order'!AY1438)","v":""},{"$f":"IF('1. Order'!AZ1438=\"\",\"\",'1. Order'!AZ1438)","v":""},{"$f":"IF('1. Order'!BA1438=\"\",\"\",'1. Order'!BA1438)","v":""},{"$f":"IF('1. Order'!BC1438=\"\",\"\",'1. Order'!BC1438)","v":""},{"$f":"IF('1. Order'!BD1438=\"\",\"\",'1. Order'!BD1438)","v":6},{"$f":"IF('1. Order'!BE1438=\"\",\"\",'1. Order'!BE1438)","v":"None"},{"$f":"IF('1. Order'!BF1438=\"\",\"\",'1. Order'!BF1438)","v":"Parcel"},{"$f":"IF('1. Order'!BG1438=\"\",\"\",'1. Order'!BG1438)","v":"ZWO"}]
[{"$f":"IF('1. Order'!F1439=\"\",\"\",'1. Order'!F1439)","v":""},{"$f":"IF('1. Order'!G1439=\"\",\"\",'1. Order'!G1439)","v":""},{"$f":"IF('1. Order'!H1439=\"\",\"\",'1. Order'!H1439)","v":""},{"$f":"IF('1. Order'!I1439=\"\",\"\",'1. Order'!I1439)","v":""},{"$f":"IF('1. Order'!J1439=\"\",\"\",'1. Order'!J1439)","v":""},{"$f":"IF('1. Order'!K1439=\"\",\"\",'1. Order'!K1439)","v":""},{"$f":"IF('1. Order'!L1439=\"\",\"\",'1. Order'!L1439)","v":""},{"$f":"IF('1. Order'!M1439=\"\",\"\",'1. Order'!M1439)","v":""},{"$f":"IF('1. Order'!N1439=\"\",\"\",'1. Order'!N1439)","v":""},{"$f":"IF('1. Order'!O1439=\"\",\"\",'1. Order'!O1439)","v":{"$error":"#N/A"}},{"$f":"IF('1. Order'!P1439=\"\",\"\",'1. Order'!P1439)","v":{"$error":"#N/A"}},{"$f":"IF('1. Order'!Q1439=\"\",\"\",'1. Order'!Q1439)","v":""},{"$f":"IF('1. Order'!R1439=\"\",\"\",'1. Order'!R1439)","v":""},{"$f":"IF('1. Order'!S1439=\"\",\"\",'1. Order'!S1439)","v":""},{"$f":"IF('1. Order'!V1439=\"\",\"\",'1. Order'!V1439)","v":""},{"$f":"IF('1. Order'!W1439=\"\",\"\",'1. Order'!W1439)","v":""},{"$f":"IF('1. Order'!X1439=\"\",\"\",'1. Order'!X1439)","v":"EUR"},{"$f":"IF('1. Order'!Y1439=\"\",\"\",'1. Order'!Y1439)","v":""},{"$f":"IF('1. Order'!Z1439=\"\",\"\",'1. Order'!Z1439)","v":""},{"$f":"IF('1. Order'!AA1439=\"\",\"\",'1. Order'!AA1439)","v":""},null,{"$f":"IF('1. Order'!AS1439=\"\",\"\",'1. Order'!AS1439)","v":""},{"$f":"IF('1. Order'!AT1439=\"\",\"\",'1. Order'!AT1439)","v":""},null,null,null,null,null,null,null,{"$f":"IF('1. Order'!AX1439=\"\",\"\",'1. Order'!AX1439)","v":""},{"$f":"IF('1. Order'!AY1439=\"\",\"\",'1. Order'!AY1439)","v":""},{"$f":"IF('1. Order'!AZ1439=\"\",\"\",'1. Order'!AZ1439)","v":""},{"$f":"IF('1. Order'!BA1439=\"\",\"\",'1. Order'!BA1439)","v":""},{"$f":"IF('1. Order'!BC1439=\"\",\"\",'1. Order'!BC1439)","v":""},{"$f":"IF('1. Order'!BD1439=\"\",\"\",'1. Order'!BD1439)","v":6},{"$f":"IF('1. Order'!BE1439=\"\",\"\",'1. Order'!BE1439)","v":"None"},{"$f":"IF('1. Order'!BF1439=\"\",\"\",'1. Order'!BF1439)","v":"Parcel"},{"$f":"IF('1. Order'!BG1439=\"\",\"\",'1. Order'!BG1439)","v":"ZWO"}]
[{"$f":"IF('1. Order'!F1440=\"\",\"\",'1. Order'!F1440)","v":""},{"$f":"IF('1. Order'!G1440=\"\",\"\",'1. Order'!G1440)","v":""},{"$f":"IF('1. Order'!H1440=\"\",\"\",'1. Order'!H1440)","v":""},{"$f":"IF('1. Order'!I1440=\"\",\"\",'1. Order'!I1440)","v":""},{"$f":"IF('1. Order'!J1440=\"\",\"\",'1. Order'!J1440)","v":""},{"$f":"IF('1. Order'!K1440=\"\",\"\",'1. Order'!K1440)","v":""},{"$f":"IF('1. Order'!L1440=\"\",\"\",'1. Order'!L1440)","v":""},{"$f":"IF('1. Order'!M1440=\"\",\"\",'1. Order'!M1440)","v":""},{"$f":"IF('1. Order'!N1440=\"\",\"\",'1. Order'!N1440)","v":""},{"$f":"IF('1. Order'!O1440=\"\",\"\",'1. Order'!O1440)","v":{"$error":"#N/A"}},{"$f":"IF('1. Order'!P1440=\"\",\"\",'1. Order'!P1440)","v":{"$error":"#N/A"}},{"$f":"IF('1. Order'!Q1440=\"\",\"\",'1. Order'!Q1440)","v":""},{"$f":"IF('1. Order'!R1440=\"\",\"\",'1. Order'!R1440)","v":""},{"$f":"IF('1. Order'!S1440=\"\",\"\",'1. Order'!S1440)","v":""},{"$f":"IF('1. Order'!V1440=\"\",\"\",'1. Order'!V1440)","v":""},{"$f":"IF('1. Order'!W1440=\"\",\"\",'1. Order'!W1440)","v":""},{"$f":"IF('1. Order'!X1440=\"\",\"\",'1. Order'!X1440)","v":"EUR"},{"$f":"IF('1. Order'!Y1440=\"\",\"\",'1. Order'!Y1440)","v":""},{"$f":"IF('1. Order'!Z1440=\"\",\"\",'1. Order'!Z1440)","v":""},{"$f":"IF('1. Order'!AA1440=\"\",\"\",'1. Order'!AA1440)","v":""},null,{"$f":"IF('1. Order'!AS1440=\"\",\"\",'1. Order'!AS1440)","v":""},{"$f":"IF('1. Order'!AT1440=\"\",\"\",'1. Order'!AT1440)","v":""},null,null,null,null,null,null,null,{"$f":"IF('1. Order'!AX1440=\"\",\"\",'1. Order'!AX1440)","v":""},{"$f":"IF('1. Order'!AY1440=\"\",\"\",'1. Order'!AY1440)","v":""},{"$f":"IF('1. Order'!AZ1440=\"\",\"\",'1. Order'!AZ1440)","v":""},{"$f":"IF('1. Order'!BA1440=\"\",\"\",'1. Order'!BA1440)","v":""},{"$f":"IF('1. Order'!BC1440=\"\",\"\",'1. Order'!BC1440)","v":""},{"$f":"IF('1. Order'!BD1440=\"\",\"\",'1. Order'!BD1440)","v":6},{"$f":"IF('1. Order'!BE1440=\"\",\"\",'1. Order'!BE1440)","v":"None"},{"$f":"IF('1. Order'!BF1440=\"\",\"\",'1. Order'!BF1440)","v":"Parcel"},{"$f":"IF('1. Order'!BG1440=\"\",\"\",'1. Order'!BG1440)","v":"ZWO"}]
[{"$f":"IF('1. Order'!F1441=\"\",\"\",'1. Order'!F1441)","v":""},{"$f":"IF('1. Order'!G1441=\"\",\"\",'1. Order'!G1441)","v":""},{"$f":"IF('1. Order'!H1441=\"\",\"\",'1. Order'!H1441)","v":""},{"$f":"IF('1. Order'!I1441=\"\",\"\",'1. Order'!I1441)","v":""},{"$f":"IF('1. Order'!J1441=\"\",\"\",'1. Order'!J1441)","v":""},{"$f":"IF('1. Order'!K1441=\"\",\"\",'1. Order'!K1441)","v":""},{"$f":"IF('1. Order'!L1441=\"\",\"\",'1. Order'!L1441)","v":""},{"$f":"IF('1. Order'!M1441=\"\",\"\",'1. Order'!M1441)","v":""},{"$f":"IF('1. Order'!N1441=\"\",\"\",'1. Order'!N1441)","v":""},{"$f":"IF('1. Order'!O1441=\"\",\"\",'1. Order'!O1441)","v":{"$error":"#N/A"}},{"$f":"IF('1. Order'!P1441=\"\",\"\",'1. Order'!P1441)","v":{"$error":"#N/A"}},{"$f":"IF('1. Order'!Q1441=\"\",\"\",'1. Order'!Q1441)","v":""},{"$f":"IF('1. Order'!R1441=\"\",\"\",'1. Order'!R1441)","v":""},{"$f":"IF('1. Order'!S1441=\"\",\"\",'1. Order'!S1441)","v":""},{"$f":"IF('1. Order'!V1441=\"\",\"\",'1. Order'!V1441)","v":""},{"$f":"IF('1. Order'!W1441=\"\",\"\",'1. Order'!W1441)","v":""},{"$f":"IF('1. Order'!X1441=\"\",\"\",'1. Order'!X1441)","v":"EUR"},{"$f":"IF('1. Order'!Y1441=\"\",\"\",'1. Order'!Y1441)","v":""},{"$f":"IF('1. Order'!Z1441=\"\",\"\",'1. Order'!Z1441)","v":""},{"$f":"IF('1. Order'!AA1441=\"\",\"\",'1. Order'!AA1441)","v":""},null,{"$f":"IF('1. Order'!AS1441=\"\",\"\",'1. Order'!AS1441)","v":""},{"$f":"IF('1. Order'!AT1441=\"\",\"\",'1. Order'!AT1441)","v":""},null,null,null,null,null,null,null,{"$f":"IF('1. Order'!AX1441=\"\",\"\",'1. Order'!AX1441)","v":""},{"$f":"IF('1. Order'!AY1441=\"\",\"\",'1. Order'!AY1441)","v":""},{"$f":"IF('1. Order'!AZ1441=\"\",\"\",'1. Order'!AZ1441)","v":""},{"$f":"IF('1. Order'!BA1441=\"\",\"\",'1. Order'!BA1441)","v":""},{"$f":"IF('1. Order'!BC1441=\"\",\"\",'1. Order'!BC1441)","v":""},{"$f":"IF('1. Order'!BD1441=\"\",\"\",'1. Order'!BD1441)","v":6},{"$f":"IF('1. Order'!BE1441=\"\",\"\",'1. Order'!BE1441)","v":"None"},{"$f":"IF('1. Order'!BF1441=\"\",\"\",'1. Order'!BF1441)","v":"Parcel"},{"$f":"IF('1. Order'!BG1441=\"\",\"\",'1. Order'!BG1441)","v":"ZWO"}]
[{"$f":"IF('1. Order'!F1442=\"\",\"\",'1. Order'!F1442)","v":""},{"$f":"IF('1. Order'!G1442=\"\",\"\",'1. Order'!G1442)","v":""},{"$f":"IF('1. Order'!H1442=\"\",\"\",'1. Order'!H1442)","v":""},{"$f":"IF('1. Order'!I1442=\"\",\"\",'1. Order'!I1442)","v":""},{"$f":"IF('1. Order'!J1442=\"\",\"\",'1. Order'!J1442)","v":""},{"$f":"IF('1. Order'!K1442=\"\",\"\",'1. Order'!K1442)","v":""},{"$f":"IF('1. Order'!L1442=\"\",\"\",'1. Order'!L1442)","v":""},{"$f":"IF('1. Order'!M1442=\"\",\"\",'1. Order'!M1442)","v":""},{"$f":"IF('1. Order'!N1442=\"\",\"\",'1. Order'!N1442)","v":""},{"$f":"IF('1. Order'!O1442=\"\",\"\",'1. Order'!O1442)","v":{"$error":"#N/A"}},{"$f":"IF('1. Order'!P1442=\"\",\"\",'1. Order'!P1442)","v":{"$error":"#N/A"}},{"$f":"IF('1. Order'!Q1442=\"\",\"\",'1. Order'!Q1442)","v":""},{"$f":"IF('1. Order'!R1442=\"\",\"\",'1. Order'!R1442)","v":""},{"$f":"IF('1. Order'!S1442=\"\",\"\",'1. Order'!S1442)","v":""},{"$f":"IF('1. Order'!V1442=\"\",\"\",'1. Order'!V1442)","v":""},{"$f":"IF('1. Order'!W1442=\"\",\"\",'1. Order'!W1442)","v":""},{"$f":"IF('1. Order'!X1442=\"\",\"\",'1. Order'!X1442)","v":"EUR"},{"$f":"IF('1. Order'!Y1442=\"\",\"\",'1. Order'!Y1442)","v":""},{"$f":"IF('1. Order'!Z1442=\"\",\"\",'1. Order'!Z1442)","v":""},{"$f":"IF('1. Order'!AA1442=\"\",\"\",'1. Order'!AA1442)","v":""},null,{"$f":"IF('1. Order'!AS1442=\"\",\"\",'1. Order'!AS1442)","v":""},{"$f":"IF('1. Order'!AT1442=\"\",\"\",'1. Order'!AT1442)","v":""},null,null,null,null,null,null,null,{"$f":"IF('1. Order'!AX1442=\"\",\"\",'1. Order'!AX1442)","v":""},{"$f":"IF('1. Order'!AY1442=\"\",\"\",'1. Order'!AY1442)","v":""},{"$f":"IF('1. Order'!AZ1442=\"\",\"\",'1. Order'!AZ1442)","v":""},{"$f":"IF('1. Order'!BA1442=\"\",\"\",'1. Order'!BA1442)","v":""},{"$f":"IF('1. Order'!BC1442=\"\",\"\",'1. Order'!BC1442)","v":""},{"$f":"IF('1. Order'!BD1442=\"\",\"\",'1. Order'!BD1442)","v":6},{"$f":"IF('1. Order'!BE1442=\"\",\"\",'1. Order'!BE1442)","v":"None"},{"$f":"IF('1. Order'!BF1442=\"\",\"\",'1. Order'!BF1442)","v":"Parcel"},{"$f":"IF('1. Order'!BG1442=\"\",\"\",'1. Order'!BG1442)","v":"ZWO"}]
[{"$f":"IF('1. Order'!F1443=\"\",\"\",'1. Order'!F1443)","v":""},{"$f":"IF('1. Order'!G1443=\"\",\"\",'1. Order'!G1443)","v":""},{"$f":"IF('1. Order'!H1443=\"\",\"\",'1. Order'!H1443)","v":""},{"$f":"IF('1. Order'!I1443=\"\",\"\",'1. Order'!I1443)","v":""},{"$f":"IF('1. Order'!J1443=\"\",\"\",'1. Order'!J1443)","v":""},{"$f":"IF('1. Order'!K1443=\"\",\"\",'1. Order'!K1443)","v":""},{"$f":"IF('1. Order'!L1443=\"\",\"\",'1. Order'!L1443)","v":""},{"$f":"IF('1. Order'!M1443=\"\",\"\",'1. Order'!M1443)","v":""},{"$f":"IF('1. Order'!N1443=\"\",\"\",'1. Order'!N1443)","v":""},{"$f":"IF('1. Order'!O1443=\"\",\"\",'1. Order'!O1443)","v":{"$error":"#N/A"}},{"$f":"IF('1. Order'!P1443=\"\",\"\",'1. Order'!P1443)","v":{"$error":"#N/A"}},{"$f":"IF('1. Order'!Q1443=\"\",\"\",'1. Order'!Q1443)","v":""},{"$f":"IF('1. Order'!R1443=\"\",\"\",'1. Order'!R1443)","v":""},{"$f":"IF('1. Order'!S1443=\"\",\"\",'1. Order'!S1443)","v":""},{"$f":"IF('1. Order'!V1443=\"\",\"\",'1. Order'!V1443)","v":""},{"$f":"IF('1. Order'!W1443=\"\",\"\",'1. Order'!W1443)","v":""},{"$f":"IF('1. Order'!X1443=\"\",\"\",'1. Order'!X1443)","v":"EUR"},{"$f":"IF('1. Order'!Y1443=\"\",\"\",'1. Order'!Y1443)","v":""},{"$f":"IF('1. Order'!Z1443=\"\",\"\",'1. Order'!Z1443)","v":""},{"$f":"IF('1. Order'!AA1443=\"\",\"\",'1. Order'!AA1443)","v":""},null,{"$f":"IF('1. Order'!AS1443=\"\",\"\",'1. Order'!AS1443)","v":""},{"$f":"IF('1. Order'!AT1443=\"\",\"\",'1. Order'!AT1443)","v":""},null,null,null,null,null,null,null,{"$f":"IF('1. Order'!AX1443=\"\",\"\",'1. Order'!AX1443)","v":""},{"$f":"IF('1. Order'!AY1443=\"\",\"\",'1. Order'!AY1443)","v":""},{"$f":"IF('1. Order'!AZ1443=\"\",\"\",'1. Order'!AZ1443)","v":""},{"$f":"IF('1. Order'!BA1443=\"\",\"\",'1. Order'!BA1443)","v":""},{"$f":"IF('1. Order'!BC1443=\"\",\"\",'1. Order'!BC1443)","v":""},{"$f":"IF('1. Order'!BD1443=\"\",\"\",'1. Order'!BD1443)","v":6},{"$f":"IF('1. Order'!BE1443=\"\",\"\",'1. Order'!BE1443)","v":"None"},{"$f":"IF('1. Order'!BF1443=\"\",\"\",'1. Order'!BF1443)","v":"Parcel"},{"$f":"IF('1. Order'!BG1443=\"\",\"\",'1. Order'!BG1443)","v":"ZWO"}]
[{"$f":"IF('1. Order'!F1444=\"\",\"\",'1. Order'!F1444)","v":""},{"$f":"IF('1. Order'!G1444=\"\",\"\",'1. Order'!G1444)","v":""},{"$f":"IF('1. Order'!H1444=\"\",\"\",'1. Order'!H1444)","v":""},{"$f":"IF('1. Order'!I1444=\"\",\"\",'1. Order'!I1444)","v":""},{"$f":"IF('1. Order'!J1444=\"\",\"\",'1. Order'!J1444)","v":""},{"$f":"IF('1. Order'!K1444=\"\",\"\",'1. Order'!K1444)","v":""},{"$f":"IF('1. Order'!L1444=\"\",\"\",'1. Order'!L1444)","v":""},{"$f":"IF('1. Order'!M1444=\"\",\"\",'1. Order'!M1444)","v":""},{"$f":"IF('1. Order'!N1444=\"\",\"\",'1. Order'!N1444)","v":""},{"$f":"IF('1. Order'!O1444=\"\",\"\",'1. Order'!O1444)","v":{"$error":"#N/A"}},{"$f":"IF('1. Order'!P1444=\"\",\"\",'1. Order'!P1444)","v":{"$error":"#N/A"}},{"$f":"IF('1. Order'!Q1444=\"\",\"\",'1. Order'!Q1444)","v":""},{"$f":"IF('1. Order'!R1444=\"\",\"\",'1. Order'!R1444)","v":""},{"$f":"IF('1. Order'!S1444=\"\",\"\",'1. Order'!S1444)","v":""},{"$f":"IF('1. Order'!V1444=\"\",\"\",'1. Order'!V1444)","v":""},{"$f":"IF('1. Order'!W1444=\"\",\"\",'1. Order'!W1444)","v":""},{"$f":"IF('1. Order'!X1444=\"\",\"\",'1. Order'!X1444)","v":"EUR"},{"$f":"IF('1. Order'!Y1444=\"\",\"\",'1. Order'!Y1444)","v":""},{"$f":"IF('1. Order'!Z1444=\"\",\"\",'1. Order'!Z1444)","v":""},{"$f":"IF('1. Order'!AA1444=\"\",\"\",'1. Order'!AA1444)","v":""},null,{"$f":"IF('1. Order'!AS1444=\"\",\"\",'1. Order'!AS1444)","v":""},{"$f":"IF('1. Order'!AT1444=\"\",\"\",'1. Order'!AT1444)","v":""},null,null,null,null,null,null,null,{"$f":"IF('1. Order'!AX1444=\"\",\"\",'1. Order'!AX1444)","v":""},{"$f":"IF('1. Order'!AY1444=\"\",\"\",'1. Order'!AY1444)","v":""},{"$f":"IF('1. Order'!AZ1444=\"\",\"\",'1. Order'!AZ1444)","v":""},{"$f":"IF('1. Order'!BA1444=\"\",\"\",'1. Order'!BA1444)","v":""},{"$f":"IF('1. Order'!BC1444=\"\",\"\",'1. Order'!BC1444)","v":""},{"$f":"IF('1. Order'!BD1444=\"\",\"\",'1. Order'!BD1444)","v":6},{"$f":"IF('1. Order'!BE1444=\"\",\"\",'1. Order'!BE1444)","v":"None"},{"$f":"IF('1. Order'!BF1444=\"\",\"\",'1. Order'!BF1444)","v":"Parcel"},{"$f":"IF('1. Order'!BG1444=\"\",\"\",'1. Order'!BG1444)","v":"ZWO"}]
[{"$f":"IF('1. Order'!F1445=\"\",\"\",'1. Order'!F1445)","v":""},{"$f":"IF('1. Order'!G1445=\"\",\"\",'1. Order'!G1445)","v":""},{"$f":"IF('1. Order'!H1445=\"\",\"\",'1. Order'!H1445)","v":""},{"$f":"IF('1. Order'!I1445=\"\",\"\",'1. Order'!I1445)","v":""},{"$f":"IF('1. Order'!J1445=\"\",\"\",'1. Order'!J1445)","v":""},{"$f":"IF('1. Order'!K1445=\"\",\"\",'1. Order'!K1445)","v":""},{"$f":"IF('1. Order'!L1445=\"\",\"\",'1. Order'!L1445)","v":""},{"$f":"IF('1. Order'!M1445=\"\",\"\",'1. Order'!M1445)","v":""},{"$f":"IF('1. Order'!N1445=\"\",\"\",'1. Order'!N1445)","v":""},{"$f":"IF('1. Order'!O1445=\"\",\"\",'1. Order'!O1445)","v":{"$error":"#N/A"}},{"$f":"IF('1. Order'!P1445=\"\",\"\",'1. Order'!P1445)","v":{"$error":"#N/A"}},{"$f":"IF('1. Order'!Q1445=\"\",\"\",'1. Order'!Q1445)","v":""},{"$f":"IF('1. Order'!R1445=\"\",\"\",'1. Order'!R1445)","v":""},{"$f":"IF('1. Order'!S1445=\"\",\"\",'1. Order'!S1445)","v":""},{"$f":"IF('1. Order'!V1445=\"\",\"\",'1. Order'!V1445)","v":""},{"$f":"IF('1. Order'!W1445=\"\",\"\",'1. Order'!W1445)","v":""},{"$f":"IF('1. Order'!X1445=\"\",\"\",'1. Order'!X1445)","v":"EUR"},{"$f":"IF('1. Order'!Y1445=\"\",\"\",'1. Order'!Y1445)","v":""},{"$f":"IF('1. Order'!Z1445=\"\",\"\",'1. Order'!Z1445)","v":""},{"$f":"IF('1. Order'!AA1445=\"\",\"\",'1. Order'!AA1445)","v":""},null,{"$f":"IF('1. Order'!AS1445=\"\",\"\",'1. Order'!AS1445)","v":""},{"$f":"IF('1. Order'!AT1445=\"\",\"\",'1. Order'!AT1445)","v":""},null,null,null,null,null,null,null,{"$f":"IF('1. Order'!AX1445=\"\",\"\",'1. Order'!AX1445)","v":""},{"$f":"IF('1. Order'!AY1445=\"\",\"\",'1. Order'!AY1445)","v":""},{"$f":"IF('1. Order'!AZ1445=\"\",\"\",'1. Order'!AZ1445)","v":""},{"$f":"IF('1. Order'!BA1445=\"\",\"\",'1. Order'!BA1445)","v":""},{"$f":"IF('1. Order'!BC1445=\"\",\"\",'1. Order'!BC1445)","v":""},{"$f":"IF('1. Order'!BD1445=\"\",\"\",'1. Order'!BD1445)","v":6},{"$f":"IF('1. Order'!BE1445=\"\",\"\",'1. Order'!BE1445)","v":"None"},{"$f":"IF('1. Order'!BF1445=\"\",\"\",'1. Order'!BF1445)","v":"Parcel"},{"$f":"IF('1. Order'!BG1445=\"\",\"\",'1. Order'!BG1445)","v":"ZWO"}]
[{"$f":"IF('1. Order'!F1446=\"\",\"\",'1. Order'!F1446)","v":""},{"$f":"IF('1. Order'!G1446=\"\",\"\",'1. Order'!G1446)","v":""},{"$f":"IF('1. Order'!H1446=\"\",\"\",'1. Order'!H1446)","v":""},{"$f":"IF('1. Order'!I1446=\"\",\"\",'1. Order'!I1446)","v":""},{"$f":"IF('1. Order'!J1446=\"\",\"\",'1. Order'!J1446)","v":""},{"$f":"IF('1. Order'!K1446=\"\",\"\",'1. Order'!K1446)","v":""},{"$f":"IF('1. Order'!L1446=\"\",\"\",'1. Order'!L1446)","v":""},{"$f":"IF('1. Order'!M1446=\"\",\"\",'1. Order'!M1446)","v":""},{"$f":"IF('1. Order'!N1446=\"\",\"\",'1. Order'!N1446)","v":""},{"$f":"IF('1. Order'!O1446=\"\",\"\",'1. Order'!O1446)","v":{"$error":"#N/A"}},{"$f":"IF('1. Order'!P1446=\"\",\"\",'1. Order'!P1446)","v":{"$error":"#N/A"}},{"$f":"IF('1. Order'!Q1446=\"\",\"\",'1. Order'!Q1446)","v":""},{"$f":"IF('1. Order'!R1446=\"\",\"\",'1. Order'!R1446)","v":""},{"$f":"IF('1. Order'!S1446=\"\",\"\",'1. Order'!S1446)","v":""},{"$f":"IF('1. Order'!V1446=\"\",\"\",'1. Order'!V1446)","v":""},{"$f":"IF('1. Order'!W1446=\"\",\"\",'1. Order'!W1446)","v":""},{"$f":"IF('1. Order'!X1446=\"\",\"\",'1. Order'!X1446)","v":"EUR"},{"$f":"IF('1. Order'!Y1446=\"\",\"\",'1. Order'!Y1446)","v":""},{"$f":"IF('1. Order'!Z1446=\"\",\"\",'1. Order'!Z1446)","v":""},{"$f":"IF('1. Order'!AA1446=\"\",\"\",'1. Order'!AA1446)","v":""},null,{"$f":"IF('1. Order'!AS1446=\"\",\"\",'1. Order'!AS1446)","v":""},{"$f":"IF('1. Order'!AT1446=\"\",\"\",'1. Order'!AT1446)","v":""},null,null,null,null,null,null,null,{"$f":"IF('1. Order'!AX1446=\"\",\"\",'1. Order'!AX1446)","v":""},{"$f":"IF('1. Order'!AY1446=\"\",\"\",'1. Order'!AY1446)","v":""},{"$f":"IF('1. Order'!AZ1446=\"\",\"\",'1. Order'!AZ1446)","v":""},{"$f":"IF('1. Order'!BA1446=\"\",\"\",'1. Order'!BA1446)","v":""},{"$f":"IF('1. Order'!BC1446=\"\",\"\",'1. Order'!BC1446)","v":""},{"$f":"IF('1. Order'!BD1446=\"\",\"\",'1. Order'!BD1446)","v":6},{"$f":"IF('1. Order'!BE1446=\"\",\"\",'1. Order'!BE1446)","v":"None"},{"$f":"IF('1. Order'!BF1446=\"\",\"\",'1. Order'!BF1446)","v":"Parcel"},{"$f":"IF('1. Order'!BG1446=\"\",\"\",'1. Order'!BG1446)","v":"ZWO"}]
[{"$f":"IF('1. Order'!F1447=\"\",\"\",'1. Order'!F1447)","v":""},{"$f":"IF('1. Order'!G1447=\"\",\"\",'1. Order'!G1447)","v":""},{"$f":"IF('1. Order'!H1447=\"\",\"\",'1. Order'!H1447)","v":""},{"$f":"IF('1. Order'!I1447=\"\",\"\",'1. Order'!I1447)","v":""},{"$f":"IF('1. Order'!J1447=\"\",\"\",'1. Order'!J1447)","v":""},{"$f":"IF('1. Order'!K1447=\"\",\"\",'1. Order'!K1447)","v":""},{"$f":"IF('1. Order'!L1447=\"\",\"\",'1. Order'!L1447)","v":""},{"$f":"IF('1. Order'!M1447=\"\",\"\",'1. Order'!M1447)","v":""},{"$f":"IF('1. Order'!N1447=\"\",\"\",'1. Order'!N1447)","v":""},{"$f":"IF('1. Order'!O1447=\"\",\"\",'1. Order'!O1447)","v":{"$error":"#N/A"}},{"$f":"IF('1. Order'!P1447=\"\",\"\",'1. Order'!P1447)","v":{"$error":"#N/A"}},{"$f":"IF('1. Order'!Q1447=\"\",\"\",'1. Order'!Q1447)","v":""},{"$f":"IF('1. Order'!R1447=\"\",\"\",'1. Order'!R1447)","v":""},{"$f":"IF('1. Order'!S1447=\"\",\"\",'1. Order'!S1447)","v":""},{"$f":"IF('1. Order'!V1447=\"\",\"\",'1. Order'!V1447)","v":""},{"$f":"IF('1. Order'!W1447=\"\",\"\",'1. Order'!W1447)","v":""},{"$f":"IF('1. Order'!X1447=\"\",\"\",'1. Order'!X1447)","v":"EUR"},{"$f":"IF('1. Order'!Y1447=\"\",\"\",'1. Order'!Y1447)","v":""},{"$f":"IF('1. Order'!Z1447=\"\",\"\",'1. Order'!Z1447)","v":""},{"$f":"IF('1. Order'!AA1447=\"\",\"\",'1. Order'!AA1447)","v":""},null,{"$f":"IF('1. Order'!AS1447=\"\",\"\",'1. Order'!AS1447)","v":""},{"$f":"IF('1. Order'!AT1447=\"\",\"\",'1. Order'!AT1447)","v":""},null,null,null,null,null,null,null,{"$f":"IF('1. Order'!AX1447=\"\",\"\",'1. Order'!AX1447)","v":""},{"$f":"IF('1. Order'!AY1447=\"\",\"\",'1. Order'!AY1447)","v":""},{"$f":"IF('1. Order'!AZ1447=\"\",\"\",'1. Order'!AZ1447)","v":""},{"$f":"IF('1. Order'!BA1447=\"\",\"\",'1. Order'!BA1447)","v":""},{"$f":"IF('1. Order'!BC1447=\"\",\"\",'1. Order'!BC1447)","v":""},{"$f":"IF('1. Order'!BD1447=\"\",\"\",'1. Order'!BD1447)","v":6},{"$f":"IF('1. Order'!BE1447=\"\",\"\",'1. Order'!BE1447)","v":"None"},{"$f":"IF('1. Order'!BF1447=\"\",\"\",'1. Order'!BF1447)","v":"Parcel"},{"$f":"IF('1. Order'!BG1447=\"\",\"\",'1. Order'!BG1447)","v":"ZWO"}]
[{"$f":"IF('1. Order'!F1448=\"\",\"\",'1. Order'!F1448)","v":""},{"$f":"IF('1. Order'!G1448=\"\",\"\",'1. Order'!G1448)","v":""},{"$f":"IF('1. Order'!H1448=\"\",\"\",'1. Order'!H1448)","v":""},{"$f":"IF('1. Order'!I1448=\"\",\"\",'1. Order'!I1448)","v":""},{"$f":"IF('1. Order'!J1448=\"\",\"\",'1. Order'!J1448)","v":""},{"$f":"IF('1. Order'!K1448=\"\",\"\",'1. Order'!K1448)","v":""},{"$f":"IF('1. Order'!L1448=\"\",\"\",'1. Order'!L1448)","v":""},{"$f":"IF('1. Order'!M1448=\"\",\"\",'1. Order'!M1448)","v":""},{"$f":"IF('1. Order'!N1448=\"\",\"\",'1. Order'!N1448)","v":""},{"$f":"IF('1. Order'!O1448=\"\",\"\",'1. Order'!O1448)","v":{"$error":"#N/A"}},{"$f":"IF('1. Order'!P1448=\"\",\"\",'1. Order'!P1448)","v":{"$error":"#N/A"}},{"$f":"IF('1. Order'!Q1448=\"\",\"\",'1. Order'!Q1448)","v":""},{"$f":"IF('1. Order'!R1448=\"\",\"\",'1. Order'!R1448)","v":""},{"$f":"IF('1. Order'!S1448=\"\",\"\",'1. Order'!S1448)","v":""},{"$f":"IF('1. Order'!V1448=\"\",\"\",'1. Order'!V1448)","v":""},{"$f":"IF('1. Order'!W1448=\"\",\"\",'1. Order'!W1448)","v":""},{"$f":"IF('1. Order'!X1448=\"\",\"\",'1. Order'!X1448)","v":"EUR"},{"$f":"IF('1. Order'!Y1448=\"\",\"\",'1. Order'!Y1448)","v":""},{"$f":"IF('1. Order'!Z1448=\"\",\"\",'1. Order'!Z1448)","v":""},{"$f":"IF('1. Order'!AA1448=\"\",\"\",'1. Order'!AA1448)","v":""},null,{"$f":"IF('1. Order'!AS1448=\"\",\"\",'1. Order'!AS1448)","v":""},{"$f":"IF('1. Order'!AT1448=\"\",\"\",'1. Order'!AT1448)","v":""},null,null,null,null,null,null,null,{"$f":"IF('1. Order'!AX1448=\"\",\"\",'1. Order'!AX1448)","v":""},{"$f":"IF('1. Order'!AY1448=\"\",\"\",'1. Order'!AY1448)","v":""},{"$f":"IF('1. Order'!AZ1448=\"\",\"\",'1. Order'!AZ1448)","v":""},{"$f":"IF('1. Order'!BA1448=\"\",\"\",'1. Order'!BA1448)","v":""},{"$f":"IF('1. Order'!BC1448=\"\",\"\",'1. Order'!BC1448)","v":""},{"$f":"IF('1. Order'!BD1448=\"\",\"\",'1. Order'!BD1448)","v":6},{"$f":"IF('1. Order'!BE1448=\"\",\"\",'1. Order'!BE1448)","v":"None"},{"$f":"IF('1. Order'!BF1448=\"\",\"\",'1. Order'!BF1448)","v":"Parcel"},{"$f":"IF('1. Order'!BG1448=\"\",\"\",'1. Order'!BG1448)","v":"ZWO"}]
[{"$f":"IF('1. Order'!F1449=\"\",\"\",'1. Order'!F1449)","v":""},{"$f":"IF('1. Order'!G1449=\"\",\"\",'1. Order'!G1449)","v":""},{"$f":"IF('1. Order'!H1449=\"\",\"\",'1. Order'!H1449)","v":""},{"$f":"IF('1. Order'!I1449=\"\",\"\",'1. Order'!I1449)","v":""},{"$f":"IF('1. Order'!J1449=\"\",\"\",'1. Order'!J1449)","v":""},{"$f":"IF('1. Order'!K1449=\"\",\"\",'1. Order'!K1449)","v":""},{"$f":"IF('1. Order'!L1449=\"\",\"\",'1. Order'!L1449)","v":""},{"$f":"IF('1. Order'!M1449=\"\",\"\",'1. Order'!M1449)","v":""},{"$f":"IF('1. Order'!N1449=\"\",\"\",'1. Order'!N1449)","v":""},{"$f":"IF('1. Order'!O1449=\"\",\"\",'1. Order'!O1449)","v":{"$error":"#N/A"}},{"$f":"IF('1. Order'!P1449=\"\",\"\",'1. Order'!P1449)","v":{"$error":"#N/A"}},{"$f":"IF('1. Order'!Q1449=\"\",\"\",'1. Order'!Q1449)","v":""},{"$f":"IF('1. Order'!R1449=\"\",\"\",'1. Order'!R1449)","v":""},{"$f":"IF('1. Order'!S1449=\"\",\"\",'1. Order'!S1449)","v":""},{"$f":"IF('1. Order'!V1449=\"\",\"\",'1. Order'!V1449)","v":""},{"$f":"IF('1. Order'!W1449=\"\",\"\",'1. Order'!W1449)","v":""},{"$f":"IF('1. Order'!X1449=\"\",\"\",'1. Order'!X1449)","v":"EUR"},{"$f":"IF('1. Order'!Y1449=\"\",\"\",'1. Order'!Y1449)","v":""},{"$f":"IF('1. Order'!Z1449=\"\",\"\",'1. Order'!Z1449)","v":""},{"$f":"IF('1. Order'!AA1449=\"\",\"\",'1. Order'!AA1449)","v":""},null,{"$f":"IF('1. Order'!AS1449=\"\",\"\",'1. Order'!AS1449)","v":""},{"$f":"IF('1. Order'!AT1449=\"\",\"\",'1. Order'!AT1449)","v":""},null,null,null,null,null,null,null,{"$f":"IF('1. Order'!AX1449=\"\",\"\",'1. Order'!AX1449)","v":""},{"$f":"IF('1. Order'!AY1449=\"\",\"\",'1. Order'!AY1449)","v":""},{"$f":"IF('1. Order'!AZ1449=\"\",\"\",'1. Order'!AZ1449)","v":""},{"$f":"IF('1. Order'!BA1449=\"\",\"\",'1. Order'!BA1449)","v":""},{"$f":"IF('1. Order'!BC1449=\"\",\"\",'1. Order'!BC1449)","v":""},{"$f":"IF('1. Order'!BD1449=\"\",\"\",'1. Order'!BD1449)","v":6},{"$f":"IF('1. Order'!BE1449=\"\",\"\",'1. Order'!BE1449)","v":"None"},{"$f":"IF('1. Order'!BF1449=\"\",\"\",'1. Order'!BF1449)","v":"Parcel"},{"$f":"IF('1. Order'!BG1449=\"\",\"\",'1. Order'!BG1449)","v":"ZWO"}]
[{"$f":"IF('1. Order'!F1450=\"\",\"\",'1. Order'!F1450)","v":""},{"$f":"IF('1. Order'!G1450=\"\",\"\",'1. Order'!G1450)","v":""},{"$f":"IF('1. Order'!H1450=\"\",\"\",'1. Order'!H1450)","v":""},{"$f":"IF('1. Order'!I1450=\"\",\"\",'1. Order'!I1450)","v":""},{"$f":"IF('1. Order'!J1450=\"\",\"\",'1. Order'!J1450)","v":""},{"$f":"IF('1. Order'!K1450=\"\",\"\",'1. Order'!K1450)","v":""},{"$f":"IF('1. Order'!L1450=\"\",\"\",'1. Order'!L1450)","v":""},{"$f":"IF('1. Order'!M1450=\"\",\"\",'1. Order'!M1450)","v":""},{"$f":"IF('1. Order'!N1450=\"\",\"\",'1. Order'!N1450)","v":""},{"$f":"IF('1. Order'!O1450=\"\",\"\",'1. Order'!O1450)","v":{"$error":"#N/A"}},{"$f":"IF('1. Order'!P1450=\"\",\"\",'1. Order'!P1450)","v":{"$error":"#N/A"}},{"$f":"IF('1. Order'!Q1450=\"\",\"\",'1. Order'!Q1450)","v":""},{"$f":"IF('1. Order'!R1450=\"\",\"\",'1. Order'!R1450)","v":""},{"$f":"IF('1. Order'!S1450=\"\",\"\",'1. Order'!S1450)","v":""},{"$f":"IF('1. Order'!V1450=\"\",\"\",'1. Order'!V1450)","v":""},{"$f":"IF('1. Order'!W1450=\"\",\"\",'1. Order'!W1450)","v":""},{"$f":"IF('1. Order'!X1450=\"\",\"\",'1. Order'!X1450)","v":"EUR"},{"$f":"IF('1. Order'!Y1450=\"\",\"\",'1. Order'!Y1450)","v":""},{"$f":"IF('1. Order'!Z1450=\"\",\"\",'1. Order'!Z1450)","v":""},{"$f":"IF('1. Order'!AA1450=\"\",\"\",'1. Order'!AA1450)","v":""},null,{"$f":"IF('1. Order'!AS1450=\"\",\"\",'1. Order'!AS1450)","v":""},{"$f":"IF('1. Order'!AT1450=\"\",\"\",'1. Order'!AT1450)","v":""},null,null,null,null,null,null,null,{"$f":"IF('1. Order'!AX1450=\"\",\"\",'1. Order'!AX1450)","v":""},{"$f":"IF('1. Order'!AY1450=\"\",\"\",'1. Order'!AY1450)","v":""},{"$f":"IF('1. Order'!AZ1450=\"\",\"\",'1. Order'!AZ1450)","v":""},{"$f":"IF('1. Order'!BA1450=\"\",\"\",'1. Order'!BA1450)","v":""},{"$f":"IF('1. Order'!BC1450=\"\",\"\",'1. Order'!BC1450)","v":""},{"$f":"IF('1. Order'!BD1450=\"\",\"\",'1. Order'!BD1450)","v":6},{"$f":"IF('1. Order'!BE1450=\"\",\"\",'1. Order'!BE1450)","v":"None"},{"$f":"IF('1. Order'!BF1450=\"\",\"\",'1. Order'!BF1450)","v":"Parcel"},{"$f":"IF('1. Order'!BG1450=\"\",\"\",'1. Order'!BG1450)","v":"ZWO"}]
[{"$f":"IF('1. Order'!F1451=\"\",\"\",'1. Order'!F1451)","v":""},{"$f":"IF('1. Order'!G1451=\"\",\"\",'1. Order'!G1451)","v":""},{"$f":"IF('1. Order'!H1451=\"\",\"\",'1. Order'!H1451)","v":""},{"$f":"IF('1. Order'!I1451=\"\",\"\",'1. Order'!I1451)","v":""},{"$f":"IF('1. Order'!J1451=\"\",\"\",'1. Order'!J1451)","v":""},{"$f":"IF('1. Order'!K1451=\"\",\"\",'1. Order'!K1451)","v":""},{"$f":"IF('1. Order'!L1451=\"\",\"\",'1. Order'!L1451)","v":""},{"$f":"IF('1. Order'!M1451=\"\",\"\",'1. Order'!M1451)","v":""},{"$f":"IF('1. Order'!N1451=\"\",\"\",'1. Order'!N1451)","v":""},{"$f":"IF('1. Order'!O1451=\"\",\"\",'1. Order'!O1451)","v":{"$error":"#N/A"}},{"$f":"IF('1. Order'!P1451=\"\",\"\",'1. Order'!P1451)","v":{"$error":"#N/A"}},{"$f":"IF('1. Order'!Q1451=\"\",\"\",'1. Order'!Q1451)","v":""},{"$f":"IF('1. Order'!R1451=\"\",\"\",'1. Order'!R1451)","v":""},{"$f":"IF('1. Order'!S1451=\"\",\"\",'1. Order'!S1451)","v":""},{"$f":"IF('1. Order'!V1451=\"\",\"\",'1. Order'!V1451)","v":""},{"$f":"IF('1. Order'!W1451=\"\",\"\",'1. Order'!W1451)","v":""},{"$f":"IF('1. Order'!X1451=\"\",\"\",'1. Order'!X1451)","v":"EUR"},{"$f":"IF('1. Order'!Y1451=\"\",\"\",'1. Order'!Y1451)","v":""},{"$f":"IF('1. Order'!Z1451=\"\",\"\",'1. Order'!Z1451)","v":""},{"$f":"IF('1. Order'!AA1451=\"\",\"\",'1. Order'!AA1451)","v":""},null,{"$f":"IF('1. Order'!AS1451=\"\",\"\",'1. Order'!AS1451)","v":""},{"$f":"IF('1. Order'!AT1451=\"\",\"\",'1. Order'!AT1451)","v":""},null,null,null,null,null,null,null,{"$f":"IF('1. Order'!AX1451=\"\",\"\",'1. Order'!AX1451)","v":""},{"$f":"IF('1. Order'!AY1451=\"\",\"\",'1. Order'!AY1451)","v":""},{"$f":"IF('1. Order'!AZ1451=\"\",\"\",'1. Order'!AZ1451)","v":""},{"$f":"IF('1. Order'!BA1451=\"\",\"\",'1. Order'!BA1451)","v":""},{"$f":"IF('1. Order'!BC1451=\"\",\"\",'1. Order'!BC1451)","v":""},{"$f":"IF('1. Order'!BD1451=\"\",\"\",'1. Order'!BD1451)","v":6},{"$f":"IF('1. Order'!BE1451=\"\",\"\",'1. Order'!BE1451)","v":"None"},{"$f":"IF('1. Order'!BF1451=\"\",\"\",'1. Order'!BF1451)","v":"Parcel"},{"$f":"IF('1. Order'!BG1451=\"\",\"\",'1. Order'!BG1451)","v":"ZWO"}]
[{"$f":"IF('1. Order'!F1452=\"\",\"\",'1. Order'!F1452)","v":""},{"$f":"IF('1. Order'!G1452=\"\",\"\",'1. Order'!G1452)","v":""},{"$f":"IF('1. Order'!H1452=\"\",\"\",'1. Order'!H1452)","v":""},{"$f":"IF('1. Order'!I1452=\"\",\"\",'1. Order'!I1452)","v":""},{"$f":"IF('1. Order'!J1452=\"\",\"\",'1. Order'!J1452)","v":""},{"$f":"IF('1. Order'!K1452=\"\",\"\",'1. Order'!K1452)","v":""},{"$f":"IF('1. Order'!L1452=\"\",\"\",'1. Order'!L1452)","v":""},{"$f":"IF('1. Order'!M1452=\"\",\"\",'1. Order'!M1452)","v":""},{"$f":"IF('1. Order'!N1452=\"\",\"\",'1. Order'!N1452)","v":""},{"$f":"IF('1. Order'!O1452=\"\",\"\",'1. Order'!O1452)","v":{"$error":"#N/A"}},{"$f":"IF('1. Order'!P1452=\"\",\"\",'1. Order'!P1452)","v":{"$error":"#N/A"}},{"$f":"IF('1. Order'!Q1452=\"\",\"\",'1. Order'!Q1452)","v":""},{"$f":"IF('1. Order'!R1452=\"\",\"\",'1. Order'!R1452)","v":""},{"$f":"IF('1. Order'!S1452=\"\",\"\",'1. Order'!S1452)","v":""},{"$f":"IF('1. Order'!V1452=\"\",\"\",'1. Order'!V1452)","v":""},{"$f":"IF('1. Order'!W1452=\"\",\"\",'1. Order'!W1452)","v":""},{"$f":"IF('1. Order'!X1452=\"\",\"\",'1. Order'!X1452)","v":"EUR"},{"$f":"IF('1. Order'!Y1452=\"\",\"\",'1. Order'!Y1452)","v":""},{"$f":"IF('1. Order'!Z1452=\"\",\"\",'1. Order'!Z1452)","v":""},{"$f":"IF('1. Order'!AA1452=\"\",\"\",'1. Order'!AA1452)","v":""},null,{"$f":"IF('1. Order'!AS1452=\"\",\"\",'1. Order'!AS1452)","v":""},{"$f":"IF('1. Order'!AT1452=\"\",\"\",'1. Order'!AT1452)","v":""},null,null,null,null,null,null,null,{"$f":"IF('1. Order'!AX1452=\"\",\"\",'1. Order'!AX1452)","v":""},{"$f":"IF('1. Order'!AY1452=\"\",\"\",'1. Order'!AY1452)","v":""},{"$f":"IF('1. Order'!AZ1452=\"\",\"\",'1. Order'!AZ1452)","v":""},{"$f":"IF('1. Order'!BA1452=\"\",\"\",'1. Order'!BA1452)","v":""},{"$f":"IF('1. Order'!BC1452=\"\",\"\",'1. Order'!BC1452)","v":""},{"$f":"IF('1. Order'!BD1452=\"\",\"\",'1. Order'!BD1452)","v":6},{"$f":"IF('1. Order'!BE1452=\"\",\"\",'1. Order'!BE1452)","v":"None"},{"$f":"IF('1. Order'!BF1452=\"\",\"\",'1. Order'!BF1452)","v":"Parcel"},{"$f":"IF('1. Order'!BG1452=\"\",\"\",'1. Order'!BG1452)","v":"ZWO"}]
[{"$f":"IF('1. Order'!F1453=\"\",\"\",'1. Order'!F1453)","v":""},{"$f":"IF('1. Order'!G1453=\"\",\"\",'1. Order'!G1453)","v":""},{"$f":"IF('1. Order'!H1453=\"\",\"\",'1. Order'!H1453)","v":""},{"$f":"IF('1. Order'!I1453=\"\",\"\",'1. Order'!I1453)","v":""},{"$f":"IF('1. Order'!J1453=\"\",\"\",'1. Order'!J1453)","v":""},{"$f":"IF('1. Order'!K1453=\"\",\"\",'1. Order'!K1453)","v":""},{"$f":"IF('1. Order'!L1453=\"\",\"\",'1. Order'!L1453)","v":""},{"$f":"IF('1. Order'!M1453=\"\",\"\",'1. Order'!M1453)","v":""},{"$f":"IF('1. Order'!N1453=\"\",\"\",'1. Order'!N1453)","v":""},{"$f":"IF('1. Order'!O1453=\"\",\"\",'1. Order'!O1453)","v":{"$error":"#N/A"}},{"$f":"IF('1. Order'!P1453=\"\",\"\",'1. Order'!P1453)","v":{"$error":"#N/A"}},{"$f":"IF('1. Order'!Q1453=\"\",\"\",'1. Order'!Q1453)","v":""},{"$f":"IF('1. Order'!R1453=\"\",\"\",'1. Order'!R1453)","v":""},{"$f":"IF('1. Order'!S1453=\"\",\"\",'1. Order'!S1453)","v":""},{"$f":"IF('1. Order'!V1453=\"\",\"\",'1. Order'!V1453)","v":""},{"$f":"IF('1. Order'!W1453=\"\",\"\",'1. Order'!W1453)","v":""},{"$f":"IF('1. Order'!X1453=\"\",\"\",'1. Order'!X1453)","v":"EUR"},{"$f":"IF('1. Order'!Y1453=\"\",\"\",'1. Order'!Y1453)","v":""},{"$f":"IF('1. Order'!Z1453=\"\",\"\",'1. Order'!Z1453)","v":""},{"$f":"IF('1. Order'!AA1453=\"\",\"\",'1. Order'!AA1453)","v":""},null,{"$f":"IF('1. Order'!AS1453=\"\",\"\",'1. Order'!AS1453)","v":""},{"$f":"IF('1. Order'!AT1453=\"\",\"\",'1. Order'!AT1453)","v":""},null,null,null,null,null,null,null,{"$f":"IF('1. Order'!AX1453=\"\",\"\",'1. Order'!AX1453)","v":""},{"$f":"IF('1. Order'!AY1453=\"\",\"\",'1. Order'!AY1453)","v":""},{"$f":"IF('1. Order'!AZ1453=\"\",\"\",'1. Order'!AZ1453)","v":""},{"$f":"IF('1. Order'!BA1453=\"\",\"\",'1. Order'!BA1453)","v":""},{"$f":"IF('1. Order'!BC1453=\"\",\"\",'1. Order'!BC1453)","v":""},{"$f":"IF('1. Order'!BD1453=\"\",\"\",'1. Order'!BD1453)","v":6},{"$f":"IF('1. Order'!BE1453=\"\",\"\",'1. Order'!BE1453)","v":"None"},{"$f":"IF('1. Order'!BF1453=\"\",\"\",'1. Order'!BF1453)","v":"Parcel"},{"$f":"IF('1. Order'!BG1453=\"\",\"\",'1. Order'!BG1453)","v":"ZWO"}]
[{"$f":"IF('1. Order'!F1454=\"\",\"\",'1. Order'!F1454)","v":""},{"$f":"IF('1. Order'!G1454=\"\",\"\",'1. Order'!G1454)","v":""},{"$f":"IF('1. Order'!H1454=\"\",\"\",'1. Order'!H1454)","v":""},{"$f":"IF('1. Order'!I1454=\"\",\"\",'1. Order'!I1454)","v":""},{"$f":"IF('1. Order'!J1454=\"\",\"\",'1. Order'!J1454)","v":""},{"$f":"IF('1. Order'!K1454=\"\",\"\",'1. Order'!K1454)","v":""},{"$f":"IF('1. Order'!L1454=\"\",\"\",'1. Order'!L1454)","v":""},{"$f":"IF('1. Order'!M1454=\"\",\"\",'1. Order'!M1454)","v":""},{"$f":"IF('1. Order'!N1454=\"\",\"\",'1. Order'!N1454)","v":""},{"$f":"IF('1. Order'!O1454=\"\",\"\",'1. Order'!O1454)","v":{"$error":"#N/A"}},{"$f":"IF('1. Order'!P1454=\"\",\"\",'1. Order'!P1454)","v":{"$error":"#N/A"}},{"$f":"IF('1. Order'!Q1454=\"\",\"\",'1. Order'!Q1454)","v":""},{"$f":"IF('1. Order'!R1454=\"\",\"\",'1. Order'!R1454)","v":""},{"$f":"IF('1. Order'!S1454=\"\",\"\",'1. Order'!S1454)","v":""},{"$f":"IF('1. Order'!V1454=\"\",\"\",'1. Order'!V1454)","v":""},{"$f":"IF('1. Order'!W1454=\"\",\"\",'1. Order'!W1454)","v":""},{"$f":"IF('1. Order'!X1454=\"\",\"\",'1. Order'!X1454)","v":"EUR"},{"$f":"IF('1. Order'!Y1454=\"\",\"\",'1. Order'!Y1454)","v":""},{"$f":"IF('1. Order'!Z1454=\"\",\"\",'1. Order'!Z1454)","v":""},{"$f":"IF('1. Order'!AA1454=\"\",\"\",'1. Order'!AA1454)","v":""},null,{"$f":"IF('1. Order'!AS1454=\"\",\"\",'1. Order'!AS1454)","v":""},{"$f":"IF('1. Order'!AT1454=\"\",\"\",'1. Order'!AT1454)","v":""},null,null,null,null,null,null,null,{"$f":"IF('1. Order'!AX1454=\"\",\"\",'1. Order'!AX1454)","v":""},{"$f":"IF('1. Order'!AY1454=\"\",\"\",'1. Order'!AY1454)","v":""},{"$f":"IF('1. Order'!AZ1454=\"\",\"\",'1. Order'!AZ1454)","v":""},{"$f":"IF('1. Order'!BA1454=\"\",\"\",'1. Order'!BA1454)","v":""},{"$f":"IF('1. Order'!BC1454=\"\",\"\",'1. Order'!BC1454)","v":""},{"$f":"IF('1. Order'!BD1454=\"\",\"\",'1. Order'!BD1454)","v":6},{"$f":"IF('1. Order'!BE1454=\"\",\"\",'1. Order'!BE1454)","v":"None"},{"$f":"IF('1. Order'!BF1454=\"\",\"\",'1. Order'!BF1454)","v":"Parcel"},{"$f":"IF('1. Order'!BG1454=\"\",\"\",'1. Order'!BG1454)","v":"ZWO"}]
[{"$f":"IF('1. Order'!F1455=\"\",\"\",'1. Order'!F1455)","v":""},{"$f":"IF('1. Order'!G1455=\"\",\"\",'1. Order'!G1455)","v":""},{"$f":"IF('1. Order'!H1455=\"\",\"\",'1. Order'!H1455)","v":""},{"$f":"IF('1. Order'!I1455=\"\",\"\",'1. Order'!I1455)","v":""},{"$f":"IF('1. Order'!J1455=\"\",\"\",'1. Order'!J1455)","v":""},{"$f":"IF('1. Order'!K1455=\"\",\"\",'1. Order'!K1455)","v":""},{"$f":"IF('1. Order'!L1455=\"\",\"\",'1. Order'!L1455)","v":""},{"$f":"IF('1. Order'!M1455=\"\",\"\",'1. Order'!M1455)","v":""},{"$f":"IF('1. Order'!N1455=\"\",\"\",'1. Order'!N1455)","v":""},{"$f":"IF('1. Order'!O1455=\"\",\"\",'1. Order'!O1455)","v":{"$error":"#N/A"}},{"$f":"IF('1. Order'!P1455=\"\",\"\",'1. Order'!P1455)","v":{"$error":"#N/A"}},{"$f":"IF('1. Order'!Q1455=\"\",\"\",'1. Order'!Q1455)","v":""},{"$f":"IF('1. Order'!R1455=\"\",\"\",'1. Order'!R1455)","v":""},{"$f":"IF('1. Order'!S1455=\"\",\"\",'1. Order'!S1455)","v":""},{"$f":"IF('1. Order'!V1455=\"\",\"\",'1. Order'!V1455)","v":""},{"$f":"IF('1. Order'!W1455=\"\",\"\",'1. Order'!W1455)","v":""},{"$f":"IF('1. Order'!X1455=\"\",\"\",'1. Order'!X1455)","v":"EUR"},{"$f":"IF('1. Order'!Y1455=\"\",\"\",'1. Order'!Y1455)","v":""},{"$f":"IF('1. Order'!Z1455=\"\",\"\",'1. Order'!Z1455)","v":""},{"$f":"IF('1. Order'!AA1455=\"\",\"\",'1. Order'!AA1455)","v":""},null,{"$f":"IF('1. Order'!AS1455=\"\",\"\",'1. Order'!AS1455)","v":""},{"$f":"IF('1. Order'!AT1455=\"\",\"\",'1. Order'!AT1455)","v":""},null,null,null,null,null,null,null,{"$f":"IF('1. Order'!AX1455=\"\",\"\",'1. Order'!AX1455)","v":""},{"$f":"IF('1. Order'!AY1455=\"\",\"\",'1. Order'!AY1455)","v":""},{"$f":"IF('1. Order'!AZ1455=\"\",\"\",'1. Order'!AZ1455)","v":""},{"$f":"IF('1. Order'!BA1455=\"\",\"\",'1. Order'!BA1455)","v":""},{"$f":"IF('1. Order'!BC1455=\"\",\"\",'1. Order'!BC1455)","v":""},{"$f":"IF('1. Order'!BD1455=\"\",\"\",'1. Order'!BD1455)","v":6},{"$f":"IF('1. Order'!BE1455=\"\",\"\",'1. Order'!BE1455)","v":"None"},{"$f":"IF('1. Order'!BF1455=\"\",\"\",'1. Order'!BF1455)","v":"Parcel"},{"$f":"IF('1. Order'!BG1455=\"\",\"\",'1. Order'!BG1455)","v":"ZWO"}]
[{"$f":"IF('1. Order'!F1456=\"\",\"\",'1. Order'!F1456)","v":""},{"$f":"IF('1. Order'!G1456=\"\",\"\",'1. Order'!G1456)","v":""},{"$f":"IF('1. Order'!H1456=\"\",\"\",'1. Order'!H1456)","v":""},{"$f":"IF('1. Order'!I1456=\"\",\"\",'1. Order'!I1456)","v":""},{"$f":"IF('1. Order'!J1456=\"\",\"\",'1. Order'!J1456)","v":""},{"$f":"IF('1. Order'!K1456=\"\",\"\",'1. Order'!K1456)","v":""},{"$f":"IF('1. Order'!L1456=\"\",\"\",'1. Order'!L1456)","v":""},{"$f":"IF('1. Order'!M1456=\"\",\"\",'1. Order'!M1456)","v":""},{"$f":"IF('1. Order'!N1456=\"\",\"\",'1. Order'!N1456)","v":""},{"$f":"IF('1. Order'!O1456=\"\",\"\",'1. Order'!O1456)","v":{"$error":"#N/A"}},{"$f":"IF('1. Order'!P1456=\"\",\"\",'1. Order'!P1456)","v":{"$error":"#N/A"}},{"$f":"IF('1. Order'!Q1456=\"\",\"\",'1. Order'!Q1456)","v":""},{"$f":"IF('1. Order'!R1456=\"\",\"\",'1. Order'!R1456)","v":""},{"$f":"IF('1. Order'!S1456=\"\",\"\",'1. Order'!S1456)","v":""},{"$f":"IF('1. Order'!V1456=\"\",\"\",'1. Order'!V1456)","v":""},{"$f":"IF('1. Order'!W1456=\"\",\"\",'1. Order'!W1456)","v":""},{"$f":"IF('1. Order'!X1456=\"\",\"\",'1. Order'!X1456)","v":"EUR"},{"$f":"IF('1. Order'!Y1456=\"\",\"\",'1. Order'!Y1456)","v":""},{"$f":"IF('1. Order'!Z1456=\"\",\"\",'1. Order'!Z1456)","v":""},{"$f":"IF('1. Order'!AA1456=\"\",\"\",'1. Order'!AA1456)","v":""},null,{"$f":"IF('1. Order'!AS1456=\"\",\"\",'1. Order'!AS1456)","v":""},{"$f":"IF('1. Order'!AT1456=\"\",\"\",'1. Order'!AT1456)","v":""},null,null,null,null,null,null,null,{"$f":"IF('1. Order'!AX1456=\"\",\"\",'1. Order'!AX1456)","v":""},{"$f":"IF('1. Order'!AY1456=\"\",\"\",'1. Order'!AY1456)","v":""},{"$f":"IF('1. Order'!AZ1456=\"\",\"\",'1. Order'!AZ1456)","v":""},{"$f":"IF('1. Order'!BA1456=\"\",\"\",'1. Order'!BA1456)","v":""},{"$f":"IF('1. Order'!BC1456=\"\",\"\",'1. Order'!BC1456)","v":""},{"$f":"IF('1. Order'!BD1456=\"\",\"\",'1. Order'!BD1456)","v":6},{"$f":"IF('1. Order'!BE1456=\"\",\"\",'1. Order'!BE1456)","v":"None"},{"$f":"IF('1. Order'!BF1456=\"\",\"\",'1. Order'!BF1456)","v":"Parcel"},{"$f":"IF('1. Order'!BG1456=\"\",\"\",'1. Order'!BG1456)","v":"ZWO"}]
[{"$f":"IF('1. Order'!F1457=\"\",\"\",'1. Order'!F1457)","v":""},{"$f":"IF('1. Order'!G1457=\"\",\"\",'1. Order'!G1457)","v":""},{"$f":"IF('1. Order'!H1457=\"\",\"\",'1. Order'!H1457)","v":""},{"$f":"IF('1. Order'!I1457=\"\",\"\",'1. Order'!I1457)","v":""},{"$f":"IF('1. Order'!J1457=\"\",\"\",'1. Order'!J1457)","v":""},{"$f":"IF('1. Order'!K1457=\"\",\"\",'1. Order'!K1457)","v":""},{"$f":"IF('1. Order'!L1457=\"\",\"\",'1. Order'!L1457)","v":""},{"$f":"IF('1. Order'!M1457=\"\",\"\",'1. Order'!M1457)","v":""},{"$f":"IF('1. Order'!N1457=\"\",\"\",'1. Order'!N1457)","v":""},{"$f":"IF('1. Order'!O1457=\"\",\"\",'1. Order'!O1457)","v":{"$error":"#N/A"}},{"$f":"IF('1. Order'!P1457=\"\",\"\",'1. Order'!P1457)","v":{"$error":"#N/A"}},{"$f":"IF('1. Order'!Q1457=\"\",\"\",'1. Order'!Q1457)","v":""},{"$f":"IF('1. Order'!R1457=\"\",\"\",'1. Order'!R1457)","v":""},{"$f":"IF('1. Order'!S1457=\"\",\"\",'1. Order'!S1457)","v":""},{"$f":"IF('1. Order'!V1457=\"\",\"\",'1. Order'!V1457)","v":""},{"$f":"IF('1. Order'!W1457=\"\",\"\",'1. Order'!W1457)","v":""},{"$f":"IF('1. Order'!X1457=\"\",\"\",'1. Order'!X1457)","v":"EUR"},{"$f":"IF('1. Order'!Y1457=\"\",\"\",'1. Order'!Y1457)","v":""},{"$f":"IF('1. Order'!Z1457=\"\",\"\",'1. Order'!Z1457)","v":""},{"$f":"IF('1. Order'!AA1457=\"\",\"\",'1. Order'!AA1457)","v":""},null,{"$f":"IF('1. Order'!AS1457=\"\",\"\",'1. Order'!AS1457)","v":""},{"$f":"IF('1. Order'!AT1457=\"\",\"\",'1. Order'!AT1457)","v":""},null,null,null,null,null,null,null,{"$f":"IF('1. Order'!AX1457=\"\",\"\",'1. Order'!AX1457)","v":""},{"$f":"IF('1. Order'!AY1457=\"\",\"\",'1. Order'!AY1457)","v":""},{"$f":"IF('1. Order'!AZ1457=\"\",\"\",'1. Order'!AZ1457)","v":""},{"$f":"IF('1. Order'!BA1457=\"\",\"\",'1. Order'!BA1457)","v":""},{"$f":"IF('1. Order'!BC1457=\"\",\"\",'1. Order'!BC1457)","v":""},{"$f":"IF('1. Order'!BD1457=\"\",\"\",'1. Order'!BD1457)","v":6},{"$f":"IF('1. Order'!BE1457=\"\",\"\",'1. Order'!BE1457)","v":"None"},{"$f":"IF('1. Order'!BF1457=\"\",\"\",'1. Order'!BF1457)","v":"Parcel"},{"$f":"IF('1. Order'!BG1457=\"\",\"\",'1. Order'!BG1457)","v":"ZWO"}]
[{"$f":"IF('1. Order'!F1458=\"\",\"\",'1. Order'!F1458)","v":""},{"$f":"IF('1. Order'!G1458=\"\",\"\",'1. Order'!G1458)","v":""},{"$f":"IF('1. Order'!H1458=\"\",\"\",'1. Order'!H1458)","v":""},{"$f":"IF('1. Order'!I1458=\"\",\"\",'1. Order'!I1458)","v":""},{"$f":"IF('1. Order'!J1458=\"\",\"\",'1. Order'!J1458)","v":""},{"$f":"IF('1. Order'!K1458=\"\",\"\",'1. Order'!K1458)","v":""},{"$f":"IF('1. Order'!L1458=\"\",\"\",'1. Order'!L1458)","v":""},{"$f":"IF('1. Order'!M1458=\"\",\"\",'1. Order'!M1458)","v":""},{"$f":"IF('1. Order'!N1458=\"\",\"\",'1. Order'!N1458)","v":""},{"$f":"IF('1. Order'!O1458=\"\",\"\",'1. Order'!O1458)","v":{"$error":"#N/A"}},{"$f":"IF('1. Order'!P1458=\"\",\"\",'1. Order'!P1458)","v":{"$error":"#N/A"}},{"$f":"IF('1. Order'!Q1458=\"\",\"\",'1. Order'!Q1458)","v":""},{"$f":"IF('1. Order'!R1458=\"\",\"\",'1. Order'!R1458)","v":""},{"$f":"IF('1. Order'!S1458=\"\",\"\",'1. Order'!S1458)","v":""},{"$f":"IF('1. Order'!V1458=\"\",\"\",'1. Order'!V1458)","v":""},{"$f":"IF('1. Order'!W1458=\"\",\"\",'1. Order'!W1458)","v":""},{"$f":"IF('1. Order'!X1458=\"\",\"\",'1. Order'!X1458)","v":"EUR"},{"$f":"IF('1. Order'!Y1458=\"\",\"\",'1. Order'!Y1458)","v":""},{"$f":"IF('1. Order'!Z1458=\"\",\"\",'1. Order'!Z1458)","v":""},{"$f":"IF('1. Order'!AA1458=\"\",\"\",'1. Order'!AA1458)","v":""},null,{"$f":"IF('1. Order'!AS1458=\"\",\"\",'1. Order'!AS1458)","v":""},{"$f":"IF('1. Order'!AT1458=\"\",\"\",'1. Order'!AT1458)","v":""},null,null,null,null,null,null,null,{"$f":"IF('1. Order'!AX1458=\"\",\"\",'1. Order'!AX1458)","v":""},{"$f":"IF('1. Order'!AY1458=\"\",\"\",'1. Order'!AY1458)","v":""},{"$f":"IF('1. Order'!AZ1458=\"\",\"\",'1. Order'!AZ1458)","v":""},{"$f":"IF('1. Order'!BA1458=\"\",\"\",'1. Order'!BA1458)","v":""},{"$f":"IF('1. Order'!BC1458=\"\",\"\",'1. Order'!BC1458)","v":""},{"$f":"IF('1. Order'!BD1458=\"\",\"\",'1. Order'!BD1458)","v":6},{"$f":"IF('1. Order'!BE1458=\"\",\"\",'1. Order'!BE1458)","v":"None"},{"$f":"IF('1. Order'!BF1458=\"\",\"\",'1. Order'!BF1458)","v":"Parcel"},{"$f":"IF('1. Order'!BG1458=\"\",\"\",'1. Order'!BG1458)","v":"ZWO"}]
[{"$f":"IF('1. Order'!F1459=\"\",\"\",'1. Order'!F1459)","v":""},{"$f":"IF('1. Order'!G1459=\"\",\"\",'1. Order'!G1459)","v":""},{"$f":"IF('1. Order'!H1459=\"\",\"\",'1. Order'!H1459)","v":""},{"$f":"IF('1. Order'!I1459=\"\",\"\",'1. Order'!I1459)","v":""},{"$f":"IF('1. Order'!J1459=\"\",\"\",'1. Order'!J1459)","v":""},{"$f":"IF('1. Order'!K1459=\"\",\"\",'1. Order'!K1459)","v":""},{"$f":"IF('1. Order'!L1459=\"\",\"\",'1. Order'!L1459)","v":""},{"$f":"IF('1. Order'!M1459=\"\",\"\",'1. Order'!M1459)","v":""},{"$f":"IF('1. Order'!N1459=\"\",\"\",'1. Order'!N1459)","v":""},{"$f":"IF('1. Order'!O1459=\"\",\"\",'1. Order'!O1459)","v":{"$error":"#N/A"}},{"$f":"IF('1. Order'!P1459=\"\",\"\",'1. Order'!P1459)","v":{"$error":"#N/A"}},{"$f":"IF('1. Order'!Q1459=\"\",\"\",'1. Order'!Q1459)","v":""},{"$f":"IF('1. Order'!R1459=\"\",\"\",'1. Order'!R1459)","v":""},{"$f":"IF('1. Order'!S1459=\"\",\"\",'1. Order'!S1459)","v":""},{"$f":"IF('1. Order'!V1459=\"\",\"\",'1. Order'!V1459)","v":""},{"$f":"IF('1. Order'!W1459=\"\",\"\",'1. Order'!W1459)","v":""},{"$f":"IF('1. Order'!X1459=\"\",\"\",'1. Order'!X1459)","v":"EUR"},{"$f":"IF('1. Order'!Y1459=\"\",\"\",'1. Order'!Y1459)","v":""},{"$f":"IF('1. Order'!Z1459=\"\",\"\",'1. Order'!Z1459)","v":""},{"$f":"IF('1. Order'!AA1459=\"\",\"\",'1. Order'!AA1459)","v":""},null,{"$f":"IF('1. Order'!AS1459=\"\",\"\",'1. Order'!AS1459)","v":""},{"$f":"IF('1. Order'!AT1459=\"\",\"\",'1. Order'!AT1459)","v":""},null,null,null,null,null,null,null,{"$f":"IF('1. Order'!AX1459=\"\",\"\",'1. Order'!AX1459)","v":""},{"$f":"IF('1. Order'!AY1459=\"\",\"\",'1. Order'!AY1459)","v":""},{"$f":"IF('1. Order'!AZ1459=\"\",\"\",'1. Order'!AZ1459)","v":""},{"$f":"IF('1. Order'!BA1459=\"\",\"\",'1. Order'!BA1459)","v":""},{"$f":"IF('1. Order'!BC1459=\"\",\"\",'1. Order'!BC1459)","v":""},{"$f":"IF('1. Order'!BD1459=\"\",\"\",'1. Order'!BD1459)","v":6},{"$f":"IF('1. Order'!BE1459=\"\",\"\",'1. Order'!BE1459)","v":"None"},{"$f":"IF('1. Order'!BF1459=\"\",\"\",'1. Order'!BF1459)","v":"Parcel"},{"$f":"IF('1. Order'!BG1459=\"\",\"\",'1. Order'!BG1459)","v":"ZWO"}]
[{"$f":"IF('1. Order'!F1460=\"\",\"\",'1. Order'!F1460)","v":""},{"$f":"IF('1. Order'!G1460=\"\",\"\",'1. Order'!G1460)","v":""},{"$f":"IF('1. Order'!H1460=\"\",\"\",'1. Order'!H1460)","v":""},{"$f":"IF('1. Order'!I1460=\"\",\"\",'1. Order'!I1460)","v":""},{"$f":"IF('1. Order'!J1460=\"\",\"\",'1. Order'!J1460)","v":""},{"$f":"IF('1. Order'!K1460=\"\",\"\",'1. Order'!K1460)","v":""},{"$f":"IF('1. Order'!L1460=\"\",\"\",'1. Order'!L1460)","v":""},{"$f":"IF('1. Order'!M1460=\"\",\"\",'1. Order'!M1460)","v":""},{"$f":"IF('1. Order'!N1460=\"\",\"\",'1. Order'!N1460)","v":""},{"$f":"IF('1. Order'!O1460=\"\",\"\",'1. Order'!O1460)","v":{"$error":"#N/A"}},{"$f":"IF('1. Order'!P1460=\"\",\"\",'1. Order'!P1460)","v":{"$error":"#N/A"}},{"$f":"IF('1. Order'!Q1460=\"\",\"\",'1. Order'!Q1460)","v":""},{"$f":"IF('1. Order'!R1460=\"\",\"\",'1. Order'!R1460)","v":""},{"$f":"IF('1. Order'!S1460=\"\",\"\",'1. Order'!S1460)","v":""},{"$f":"IF('1. Order'!V1460=\"\",\"\",'1. Order'!V1460)","v":""},{"$f":"IF('1. Order'!W1460=\"\",\"\",'1. Order'!W1460)","v":""},{"$f":"IF('1. Order'!X1460=\"\",\"\",'1. Order'!X1460)","v":"EUR"},{"$f":"IF('1. Order'!Y1460=\"\",\"\",'1. Order'!Y1460)","v":""},{"$f":"IF('1. Order'!Z1460=\"\",\"\",'1. Order'!Z1460)","v":""},{"$f":"IF('1. Order'!AA1460=\"\",\"\",'1. Order'!AA1460)","v":""},null,{"$f":"IF('1. Order'!AS1460=\"\",\"\",'1. Order'!AS1460)","v":""},{"$f":"IF('1. Order'!AT1460=\"\",\"\",'1. Order'!AT1460)","v":""},null,null,null,null,null,null,null,{"$f":"IF('1. Order'!AX1460=\"\",\"\",'1. Order'!AX1460)","v":""},{"$f":"IF('1. Order'!AY1460=\"\",\"\",'1. Order'!AY1460)","v":""},{"$f":"IF('1. Order'!AZ1460=\"\",\"\",'1. Order'!AZ1460)","v":""},{"$f":"IF('1. Order'!BA1460=\"\",\"\",'1. Order'!BA1460)","v":""},{"$f":"IF('1. Order'!BC1460=\"\",\"\",'1. Order'!BC1460)","v":""},{"$f":"IF('1. Order'!BD1460=\"\",\"\",'1. Order'!BD1460)","v":6},{"$f":"IF('1. Order'!BE1460=\"\",\"\",'1. Order'!BE1460)","v":"None"},{"$f":"IF('1. Order'!BF1460=\"\",\"\",'1. Order'!BF1460)","v":"Parcel"},{"$f":"IF('1. Order'!BG1460=\"\",\"\",'1. Order'!BG1460)","v":"ZWO"}]
[{"$f":"IF('1. Order'!F1461=\"\",\"\",'1. Order'!F1461)","v":""},{"$f":"IF('1. Order'!G1461=\"\",\"\",'1. Order'!G1461)","v":""},{"$f":"IF('1. Order'!H1461=\"\",\"\",'1. Order'!H1461)","v":""},{"$f":"IF('1. Order'!I1461=\"\",\"\",'1. Order'!I1461)","v":""},{"$f":"IF('1. Order'!J1461=\"\",\"\",'1. Order'!J1461)","v":""},{"$f":"IF('1. Order'!K1461=\"\",\"\",'1. Order'!K1461)","v":""},{"$f":"IF('1. Order'!L1461=\"\",\"\",'1. Order'!L1461)","v":""},{"$f":"IF('1. Order'!M1461=\"\",\"\",'1. Order'!M1461)","v":""},{"$f":"IF('1. Order'!N1461=\"\",\"\",'1. Order'!N1461)","v":""},{"$f":"IF('1. Order'!O1461=\"\",\"\",'1. Order'!O1461)","v":{"$error":"#N/A"}},{"$f":"IF('1. Order'!P1461=\"\",\"\",'1. Order'!P1461)","v":{"$error":"#N/A"}},{"$f":"IF('1. Order'!Q1461=\"\",\"\",'1. Order'!Q1461)","v":""},{"$f":"IF('1. Order'!R1461=\"\",\"\",'1. Order'!R1461)","v":""},{"$f":"IF('1. Order'!S1461=\"\",\"\",'1. Order'!S1461)","v":""},{"$f":"IF('1. Order'!V1461=\"\",\"\",'1. Order'!V1461)","v":""},{"$f":"IF('1. Order'!W1461=\"\",\"\",'1. Order'!W1461)","v":""},{"$f":"IF('1. Order'!X1461=\"\",\"\",'1. Order'!X1461)","v":"EUR"},{"$f":"IF('1. Order'!Y1461=\"\",\"\",'1. Order'!Y1461)","v":""},{"$f":"IF('1. Order'!Z1461=\"\",\"\",'1. Order'!Z1461)","v":""},{"$f":"IF('1. Order'!AA1461=\"\",\"\",'1. Order'!AA1461)","v":""},null,{"$f":"IF('1. Order'!AS1461=\"\",\"\",'1. Order'!AS1461)","v":""},{"$f":"IF('1. Order'!AT1461=\"\",\"\",'1. Order'!AT1461)","v":""},null,null,null,null,null,null,null,{"$f":"IF('1. Order'!AX1461=\"\",\"\",'1. Order'!AX1461)","v":""},{"$f":"IF('1. Order'!AY1461=\"\",\"\",'1. Order'!AY1461)","v":""},{"$f":"IF('1. Order'!AZ1461=\"\",\"\",'1. Order'!AZ1461)","v":""},{"$f":"IF('1. Order'!BA1461=\"\",\"\",'1. Order'!BA1461)","v":""},{"$f":"IF('1. Order'!BC1461=\"\",\"\",'1. Order'!BC1461)","v":""},{"$f":"IF('1. Order'!BD1461=\"\",\"\",'1. Order'!BD1461)","v":6},{"$f":"IF('1. Order'!BE1461=\"\",\"\",'1. Order'!BE1461)","v":"None"},{"$f":"IF('1. Order'!BF1461=\"\",\"\",'1. Order'!BF1461)","v":"Parcel"},{"$f":"IF('1. Order'!BG1461=\"\",\"\",'1. Order'!BG1461)","v":"ZWO"}]
[{"$f":"IF('1. Order'!F1462=\"\",\"\",'1. Order'!F1462)","v":""},{"$f":"IF('1. Order'!G1462=\"\",\"\",'1. Order'!G1462)","v":""},{"$f":"IF('1. Order'!H1462=\"\",\"\",'1. Order'!H1462)","v":""},{"$f":"IF('1. Order'!I1462=\"\",\"\",'1. Order'!I1462)","v":""},{"$f":"IF('1. Order'!J1462=\"\",\"\",'1. Order'!J1462)","v":""},{"$f":"IF('1. Order'!K1462=\"\",\"\",'1. Order'!K1462)","v":""},{"$f":"IF('1. Order'!L1462=\"\",\"\",'1. Order'!L1462)","v":""},{"$f":"IF('1. Order'!M1462=\"\",\"\",'1. Order'!M1462)","v":""},{"$f":"IF('1. Order'!N1462=\"\",\"\",'1. Order'!N1462)","v":""},{"$f":"IF('1. Order'!O1462=\"\",\"\",'1. Order'!O1462)","v":{"$error":"#N/A"}},{"$f":"IF('1. Order'!P1462=\"\",\"\",'1. Order'!P1462)","v":{"$error":"#N/A"}},{"$f":"IF('1. Order'!Q1462=\"\",\"\",'1. Order'!Q1462)","v":""},{"$f":"IF('1. Order'!R1462=\"\",\"\",'1. Order'!R1462)","v":""},{"$f":"IF('1. Order'!S1462=\"\",\"\",'1. Order'!S1462)","v":""},{"$f":"IF('1. Order'!V1462=\"\",\"\",'1. Order'!V1462)","v":""},{"$f":"IF('1. Order'!W1462=\"\",\"\",'1. Order'!W1462)","v":""},{"$f":"IF('1. Order'!X1462=\"\",\"\",'1. Order'!X1462)","v":"EUR"},{"$f":"IF('1. Order'!Y1462=\"\",\"\",'1. Order'!Y1462)","v":""},{"$f":"IF('1. Order'!Z1462=\"\",\"\",'1. Order'!Z1462)","v":""},{"$f":"IF('1. Order'!AA1462=\"\",\"\",'1. Order'!AA1462)","v":""},null,{"$f":"IF('1. Order'!AS1462=\"\",\"\",'1. Order'!AS1462)","v":""},{"$f":"IF('1. Order'!AT1462=\"\",\"\",'1. Order'!AT1462)","v":""},null,null,null,null,null,null,null,{"$f":"IF('1. Order'!AX1462=\"\",\"\",'1. Order'!AX1462)","v":""},{"$f":"IF('1. Order'!AY1462=\"\",\"\",'1. Order'!AY1462)","v":""},{"$f":"IF('1. Order'!AZ1462=\"\",\"\",'1. Order'!AZ1462)","v":""},{"$f":"IF('1. Order'!BA1462=\"\",\"\",'1. Order'!BA1462)","v":""},{"$f":"IF('1. Order'!BC1462=\"\",\"\",'1. Order'!BC1462)","v":""},{"$f":"IF('1. Order'!BD1462=\"\",\"\",'1. Order'!BD1462)","v":6},{"$f":"IF('1. Order'!BE1462=\"\",\"\",'1. Order'!BE1462)","v":"None"},{"$f":"IF('1. Order'!BF1462=\"\",\"\",'1. Order'!BF1462)","v":"Parcel"},{"$f":"IF('1. Order'!BG1462=\"\",\"\",'1. Order'!BG1462)","v":"ZWO"}]
[{"$f":"IF('1. Order'!F1463=\"\",\"\",'1. Order'!F1463)","v":""},{"$f":"IF('1. Order'!G1463=\"\",\"\",'1. Order'!G1463)","v":""},{"$f":"IF('1. Order'!H1463=\"\",\"\",'1. Order'!H1463)","v":""},{"$f":"IF('1. Order'!I1463=\"\",\"\",'1. Order'!I1463)","v":""},{"$f":"IF('1. Order'!J1463=\"\",\"\",'1. Order'!J1463)","v":""},{"$f":"IF('1. Order'!K1463=\"\",\"\",'1. Order'!K1463)","v":""},{"$f":"IF('1. Order'!L1463=\"\",\"\",'1. Order'!L1463)","v":""},{"$f":"IF('1. Order'!M1463=\"\",\"\",'1. Order'!M1463)","v":""},{"$f":"IF('1. Order'!N1463=\"\",\"\",'1. Order'!N1463)","v":""},{"$f":"IF('1. Order'!O1463=\"\",\"\",'1. Order'!O1463)","v":{"$error":"#N/A"}},{"$f":"IF('1. Order'!P1463=\"\",\"\",'1. Order'!P1463)","v":{"$error":"#N/A"}},{"$f":"IF('1. Order'!Q1463=\"\",\"\",'1. Order'!Q1463)","v":""},{"$f":"IF('1. Order'!R1463=\"\",\"\",'1. Order'!R1463)","v":""},{"$f":"IF('1. Order'!S1463=\"\",\"\",'1. Order'!S1463)","v":""},{"$f":"IF('1. Order'!V1463=\"\",\"\",'1. Order'!V1463)","v":""},{"$f":"IF('1. Order'!W1463=\"\",\"\",'1. Order'!W1463)","v":""},{"$f":"IF('1. Order'!X1463=\"\",\"\",'1. Order'!X1463)","v":"EUR"},{"$f":"IF('1. Order'!Y1463=\"\",\"\",'1. Order'!Y1463)","v":""},{"$f":"IF('1. Order'!Z1463=\"\",\"\",'1. Order'!Z1463)","v":""},{"$f":"IF('1. Order'!AA1463=\"\",\"\",'1. Order'!AA1463)","v":""},null,{"$f":"IF('1. Order'!AS1463=\"\",\"\",'1. Order'!AS1463)","v":""},{"$f":"IF('1. Order'!AT1463=\"\",\"\",'1. Order'!AT1463)","v":""},null,null,null,null,null,null,null,{"$f":"IF('1. Order'!AX1463=\"\",\"\",'1. Order'!AX1463)","v":""},{"$f":"IF('1. Order'!AY1463=\"\",\"\",'1. Order'!AY1463)","v":""},{"$f":"IF('1. Order'!AZ1463=\"\",\"\",'1. Order'!AZ1463)","v":""},{"$f":"IF('1. Order'!BA1463=\"\",\"\",'1. Order'!BA1463)","v":""},{"$f":"IF('1. Order'!BC1463=\"\",\"\",'1. Order'!BC1463)","v":""},{"$f":"IF('1. Order'!BD1463=\"\",\"\",'1. Order'!BD1463)","v":6},{"$f":"IF('1. Order'!BE1463=\"\",\"\",'1. Order'!BE1463)","v":"None"},{"$f":"IF('1. Order'!BF1463=\"\",\"\",'1. Order'!BF1463)","v":"Parcel"},{"$f":"IF('1. Order'!BG1463=\"\",\"\",'1. Order'!BG1463)","v":"ZWO"}]
[{"$f":"IF('1. Order'!F1464=\"\",\"\",'1. Order'!F1464)","v":""},{"$f":"IF('1. Order'!G1464=\"\",\"\",'1. Order'!G1464)","v":""},{"$f":"IF('1. Order'!H1464=\"\",\"\",'1. Order'!H1464)","v":""},{"$f":"IF('1. Order'!I1464=\"\",\"\",'1. Order'!I1464)","v":""},{"$f":"IF('1. Order'!J1464=\"\",\"\",'1. Order'!J1464)","v":""},{"$f":"IF('1. Order'!K1464=\"\",\"\",'1. Order'!K1464)","v":""},{"$f":"IF('1. Order'!L1464=\"\",\"\",'1. Order'!L1464)","v":""},{"$f":"IF('1. Order'!M1464=\"\",\"\",'1. Order'!M1464)","v":""},{"$f":"IF('1. Order'!N1464=\"\",\"\",'1. Order'!N1464)","v":""},{"$f":"IF('1. Order'!O1464=\"\",\"\",'1. Order'!O1464)","v":{"$error":"#N/A"}},{"$f":"IF('1. Order'!P1464=\"\",\"\",'1. Order'!P1464)","v":{"$error":"#N/A"}},{"$f":"IF('1. Order'!Q1464=\"\",\"\",'1. Order'!Q1464)","v":""},{"$f":"IF('1. Order'!R1464=\"\",\"\",'1. Order'!R1464)","v":""},{"$f":"IF('1. Order'!S1464=\"\",\"\",'1. Order'!S1464)","v":""},{"$f":"IF('1. Order'!V1464=\"\",\"\",'1. Order'!V1464)","v":""},{"$f":"IF('1. Order'!W1464=\"\",\"\",'1. Order'!W1464)","v":""},{"$f":"IF('1. Order'!X1464=\"\",\"\",'1. Order'!X1464)","v":"EUR"},{"$f":"IF('1. Order'!Y1464=\"\",\"\",'1. Order'!Y1464)","v":""},{"$f":"IF('1. Order'!Z1464=\"\",\"\",'1. Order'!Z1464)","v":""},{"$f":"IF('1. Order'!AA1464=\"\",\"\",'1. Order'!AA1464)","v":""},null,{"$f":"IF('1. Order'!AS1464=\"\",\"\",'1. Order'!AS1464)","v":""},{"$f":"IF('1. Order'!AT1464=\"\",\"\",'1. Order'!AT1464)","v":""},null,null,null,null,null,null,null,{"$f":"IF('1. Order'!AX1464=\"\",\"\",'1. Order'!AX1464)","v":""},{"$f":"IF('1. Order'!AY1464=\"\",\"\",'1. Order'!AY1464)","v":""},{"$f":"IF('1. Order'!AZ1464=\"\",\"\",'1. Order'!AZ1464)","v":""},{"$f":"IF('1. Order'!BA1464=\"\",\"\",'1. Order'!BA1464)","v":""},{"$f":"IF('1. Order'!BC1464=\"\",\"\",'1. Order'!BC1464)","v":""},{"$f":"IF('1. Order'!BD1464=\"\",\"\",'1. Order'!BD1464)","v":6},{"$f":"IF('1. Order'!BE1464=\"\",\"\",'1. Order'!BE1464)","v":"None"},{"$f":"IF('1. Order'!BF1464=\"\",\"\",'1. Order'!BF1464)","v":"Parcel"},{"$f":"IF('1. Order'!BG1464=\"\",\"\",'1. Order'!BG1464)","v":"ZWO"}]
[{"$f":"IF('1. Order'!F1465=\"\",\"\",'1. Order'!F1465)","v":""},{"$f":"IF('1. Order'!G1465=\"\",\"\",'1. Order'!G1465)","v":""},{"$f":"IF('1. Order'!H1465=\"\",\"\",'1. Order'!H1465)","v":""},{"$f":"IF('1. Order'!I1465=\"\",\"\",'1. Order'!I1465)","v":""},{"$f":"IF('1. Order'!J1465=\"\",\"\",'1. Order'!J1465)","v":""},{"$f":"IF('1. Order'!K1465=\"\",\"\",'1. Order'!K1465)","v":""},{"$f":"IF('1. Order'!L1465=\"\",\"\",'1. Order'!L1465)","v":""},{"$f":"IF('1. Order'!M1465=\"\",\"\",'1. Order'!M1465)","v":""},{"$f":"IF('1. Order'!N1465=\"\",\"\",'1. Order'!N1465)","v":""},{"$f":"IF('1. Order'!O1465=\"\",\"\",'1. Order'!O1465)","v":{"$error":"#N/A"}},{"$f":"IF('1. Order'!P1465=\"\",\"\",'1. Order'!P1465)","v":{"$error":"#N/A"}},{"$f":"IF('1. Order'!Q1465=\"\",\"\",'1. Order'!Q1465)","v":""},{"$f":"IF('1. Order'!R1465=\"\",\"\",'1. Order'!R1465)","v":""},{"$f":"IF('1. Order'!S1465=\"\",\"\",'1. Order'!S1465)","v":""},{"$f":"IF('1. Order'!V1465=\"\",\"\",'1. Order'!V1465)","v":""},{"$f":"IF('1. Order'!W1465=\"\",\"\",'1. Order'!W1465)","v":""},{"$f":"IF('1. Order'!X1465=\"\",\"\",'1. Order'!X1465)","v":"EUR"},{"$f":"IF('1. Order'!Y1465=\"\",\"\",'1. Order'!Y1465)","v":""},{"$f":"IF('1. Order'!Z1465=\"\",\"\",'1. Order'!Z1465)","v":""},{"$f":"IF('1. Order'!AA1465=\"\",\"\",'1. Order'!AA1465)","v":""},null,{"$f":"IF('1. Order'!AS1465=\"\",\"\",'1. Order'!AS1465)","v":""},{"$f":"IF('1. Order'!AT1465=\"\",\"\",'1. Order'!AT1465)","v":""},null,null,null,null,null,null,null,{"$f":"IF('1. Order'!AX1465=\"\",\"\",'1. Order'!AX1465)","v":""},{"$f":"IF('1. Order'!AY1465=\"\",\"\",'1. Order'!AY1465)","v":""},{"$f":"IF('1. Order'!AZ1465=\"\",\"\",'1. Order'!AZ1465)","v":""},{"$f":"IF('1. Order'!BA1465=\"\",\"\",'1. Order'!BA1465)","v":""},{"$f":"IF('1. Order'!BC1465=\"\",\"\",'1. Order'!BC1465)","v":""},{"$f":"IF('1. Order'!BD1465=\"\",\"\",'1. Order'!BD1465)","v":6},{"$f":"IF('1. Order'!BE1465=\"\",\"\",'1. Order'!BE1465)","v":"None"},{"$f":"IF('1. Order'!BF1465=\"\",\"\",'1. Order'!BF1465)","v":"Parcel"},{"$f":"IF('1. Order'!BG1465=\"\",\"\",'1. Order'!BG1465)","v":"ZWO"}]
[{"$f":"IF('1. Order'!F1466=\"\",\"\",'1. Order'!F1466)","v":""},{"$f":"IF('1. Order'!G1466=\"\",\"\",'1. Order'!G1466)","v":""},{"$f":"IF('1. Order'!H1466=\"\",\"\",'1. Order'!H1466)","v":""},{"$f":"IF('1. Order'!I1466=\"\",\"\",'1. Order'!I1466)","v":""},{"$f":"IF('1. Order'!J1466=\"\",\"\",'1. Order'!J1466)","v":""},{"$f":"IF('1. Order'!K1466=\"\",\"\",'1. Order'!K1466)","v":""},{"$f":"IF('1. Order'!L1466=\"\",\"\",'1. Order'!L1466)","v":""},{"$f":"IF('1. Order'!M1466=\"\",\"\",'1. Order'!M1466)","v":""},{"$f":"IF('1. Order'!N1466=\"\",\"\",'1. Order'!N1466)","v":""},{"$f":"IF('1. Order'!O1466=\"\",\"\",'1. Order'!O1466)","v":{"$error":"#N/A"}},{"$f":"IF('1. Order'!P1466=\"\",\"\",'1. Order'!P1466)","v":{"$error":"#N/A"}},{"$f":"IF('1. Order'!Q1466=\"\",\"\",'1. Order'!Q1466)","v":""},{"$f":"IF('1. Order'!R1466=\"\",\"\",'1. Order'!R1466)","v":""},{"$f":"IF('1. Order'!S1466=\"\",\"\",'1. Order'!S1466)","v":""},{"$f":"IF('1. Order'!V1466=\"\",\"\",'1. Order'!V1466)","v":""},{"$f":"IF('1. Order'!W1466=\"\",\"\",'1. Order'!W1466)","v":""},{"$f":"IF('1. Order'!X1466=\"\",\"\",'1. Order'!X1466)","v":"EUR"},{"$f":"IF('1. Order'!Y1466=\"\",\"\",'1. Order'!Y1466)","v":""},{"$f":"IF('1. Order'!Z1466=\"\",\"\",'1. Order'!Z1466)","v":""},{"$f":"IF('1. Order'!AA1466=\"\",\"\",'1. Order'!AA1466)","v":""},null,{"$f":"IF('1. Order'!AS1466=\"\",\"\",'1. Order'!AS1466)","v":""},{"$f":"IF('1. Order'!AT1466=\"\",\"\",'1. Order'!AT1466)","v":""},null,null,null,null,null,null,null,{"$f":"IF('1. Order'!AX1466=\"\",\"\",'1. Order'!AX1466)","v":""},{"$f":"IF('1. Order'!AY1466=\"\",\"\",'1. Order'!AY1466)","v":""},{"$f":"IF('1. Order'!AZ1466=\"\",\"\",'1. Order'!AZ1466)","v":""},{"$f":"IF('1. Order'!BA1466=\"\",\"\",'1. Order'!BA1466)","v":""},{"$f":"IF('1. Order'!BC1466=\"\",\"\",'1. Order'!BC1466)","v":""},{"$f":"IF('1. Order'!BD1466=\"\",\"\",'1. Order'!BD1466)","v":6},{"$f":"IF('1. Order'!BE1466=\"\",\"\",'1. Order'!BE1466)","v":"None"},{"$f":"IF('1. Order'!BF1466=\"\",\"\",'1. Order'!BF1466)","v":"Parcel"},{"$f":"IF('1. Order'!BG1466=\"\",\"\",'1. Order'!BG1466)","v":"ZWO"}]
[{"$f":"IF('1. Order'!F1467=\"\",\"\",'1. Order'!F1467)","v":""},{"$f":"IF('1. Order'!G1467=\"\",\"\",'1. Order'!G1467)","v":""},{"$f":"IF('1. Order'!H1467=\"\",\"\",'1. Order'!H1467)","v":""},{"$f":"IF('1. Order'!I1467=\"\",\"\",'1. Order'!I1467)","v":""},{"$f":"IF('1. Order'!J1467=\"\",\"\",'1. Order'!J1467)","v":""},{"$f":"IF('1. Order'!K1467=\"\",\"\",'1. Order'!K1467)","v":""},{"$f":"IF('1. Order'!L1467=\"\",\"\",'1. Order'!L1467)","v":""},{"$f":"IF('1. Order'!M1467=\"\",\"\",'1. Order'!M1467)","v":""},{"$f":"IF('1. Order'!N1467=\"\",\"\",'1. Order'!N1467)","v":""},{"$f":"IF('1. Order'!O1467=\"\",\"\",'1. Order'!O1467)","v":{"$error":"#N/A"}},{"$f":"IF('1. Order'!P1467=\"\",\"\",'1. Order'!P1467)","v":{"$error":"#N/A"}},{"$f":"IF('1. Order'!Q1467=\"\",\"\",'1. Order'!Q1467)","v":""},{"$f":"IF('1. Order'!R1467=\"\",\"\",'1. Order'!R1467)","v":""},{"$f":"IF('1. Order'!S1467=\"\",\"\",'1. Order'!S1467)","v":""},{"$f":"IF('1. Order'!V1467=\"\",\"\",'1. Order'!V1467)","v":""},{"$f":"IF('1. Order'!W1467=\"\",\"\",'1. Order'!W1467)","v":""},{"$f":"IF('1. Order'!X1467=\"\",\"\",'1. Order'!X1467)","v":"EUR"},{"$f":"IF('1. Order'!Y1467=\"\",\"\",'1. Order'!Y1467)","v":""},{"$f":"IF('1. Order'!Z1467=\"\",\"\",'1. Order'!Z1467)","v":""},{"$f":"IF('1. Order'!AA1467=\"\",\"\",'1. Order'!AA1467)","v":""},null,{"$f":"IF('1. Order'!AS1467=\"\",\"\",'1. Order'!AS1467)","v":""},{"$f":"IF('1. Order'!AT1467=\"\",\"\",'1. Order'!AT1467)","v":""},null,null,null,null,null,null,null,{"$f":"IF('1. Order'!AX1467=\"\",\"\",'1. Order'!AX1467)","v":""},{"$f":"IF('1. Order'!AY1467=\"\",\"\",'1. Order'!AY1467)","v":""},{"$f":"IF('1. Order'!AZ1467=\"\",\"\",'1. Order'!AZ1467)","v":""},{"$f":"IF('1. Order'!BA1467=\"\",\"\",'1. Order'!BA1467)","v":""},{"$f":"IF('1. Order'!BC1467=\"\",\"\",'1. Order'!BC1467)","v":""},{"$f":"IF('1. Order'!BD1467=\"\",\"\",'1. Order'!BD1467)","v":6},{"$f":"IF('1. Order'!BE1467=\"\",\"\",'1. Order'!BE1467)","v":"None"},{"$f":"IF('1. Order'!BF1467=\"\",\"\",'1. Order'!BF1467)","v":"Parcel"},{"$f":"IF('1. Order'!BG1467=\"\",\"\",'1. Order'!BG1467)","v":"ZWO"}]
[{"$f":"IF('1. Order'!F1468=\"\",\"\",'1. Order'!F1468)","v":""},{"$f":"IF('1. Order'!G1468=\"\",\"\",'1. Order'!G1468)","v":""},{"$f":"IF('1. Order'!H1468=\"\",\"\",'1. Order'!H1468)","v":""},{"$f":"IF('1. Order'!I1468=\"\",\"\",'1. Order'!I1468)","v":""},{"$f":"IF('1. Order'!J1468=\"\",\"\",'1. Order'!J1468)","v":""},{"$f":"IF('1. Order'!K1468=\"\",\"\",'1. Order'!K1468)","v":""},{"$f":"IF('1. Order'!L1468=\"\",\"\",'1. Order'!L1468)","v":""},{"$f":"IF('1. Order'!M1468=\"\",\"\",'1. Order'!M1468)","v":""},{"$f":"IF('1. Order'!N1468=\"\",\"\",'1. Order'!N1468)","v":""},{"$f":"IF('1. Order'!O1468=\"\",\"\",'1. Order'!O1468)","v":{"$error":"#N/A"}},{"$f":"IF('1. Order'!P1468=\"\",\"\",'1. Order'!P1468)","v":{"$error":"#N/A"}},{"$f":"IF('1. Order'!Q1468=\"\",\"\",'1. Order'!Q1468)","v":""},{"$f":"IF('1. Order'!R1468=\"\",\"\",'1. Order'!R1468)","v":""},{"$f":"IF('1. Order'!S1468=\"\",\"\",'1. Order'!S1468)","v":""},{"$f":"IF('1. Order'!V1468=\"\",\"\",'1. Order'!V1468)","v":""},{"$f":"IF('1. Order'!W1468=\"\",\"\",'1. Order'!W1468)","v":""},{"$f":"IF('1. Order'!X1468=\"\",\"\",'1. Order'!X1468)","v":"EUR"},{"$f":"IF('1. Order'!Y1468=\"\",\"\",'1. Order'!Y1468)","v":""},{"$f":"IF('1. Order'!Z1468=\"\",\"\",'1. Order'!Z1468)","v":""},{"$f":"IF('1. Order'!AA1468=\"\",\"\",'1. Order'!AA1468)","v":""},null,{"$f":"IF('1. Order'!AS1468=\"\",\"\",'1. Order'!AS1468)","v":""},{"$f":"IF('1. Order'!AT1468=\"\",\"\",'1. Order'!AT1468)","v":""},null,null,null,null,null,null,null,{"$f":"IF('1. Order'!AX1468=\"\",\"\",'1. Order'!AX1468)","v":""},{"$f":"IF('1. Order'!AY1468=\"\",\"\",'1. Order'!AY1468)","v":""},{"$f":"IF('1. Order'!AZ1468=\"\",\"\",'1. Order'!AZ1468)","v":""},{"$f":"IF('1. Order'!BA1468=\"\",\"\",'1. Order'!BA1468)","v":""},{"$f":"IF('1. Order'!BC1468=\"\",\"\",'1. Order'!BC1468)","v":""},{"$f":"IF('1. Order'!BD1468=\"\",\"\",'1. Order'!BD1468)","v":6},{"$f":"IF('1. Order'!BE1468=\"\",\"\",'1. Order'!BE1468)","v":"None"},{"$f":"IF('1. Order'!BF1468=\"\",\"\",'1. Order'!BF1468)","v":"Parcel"},{"$f":"IF('1. Order'!BG1468=\"\",\"\",'1. Order'!BG1468)","v":"ZWO"}]
[{"$f":"IF('1. Order'!F1469=\"\",\"\",'1. Order'!F1469)","v":""},{"$f":"IF('1. Order'!G1469=\"\",\"\",'1. Order'!G1469)","v":""},{"$f":"IF('1. Order'!H1469=\"\",\"\",'1. Order'!H1469)","v":""},{"$f":"IF('1. Order'!I1469=\"\",\"\",'1. Order'!I1469)","v":""},{"$f":"IF('1. Order'!J1469=\"\",\"\",'1. Order'!J1469)","v":""},{"$f":"IF('1. Order'!K1469=\"\",\"\",'1. Order'!K1469)","v":""},{"$f":"IF('1. Order'!L1469=\"\",\"\",'1. Order'!L1469)","v":""},{"$f":"IF('1. Order'!M1469=\"\",\"\",'1. Order'!M1469)","v":""},{"$f":"IF('1. Order'!N1469=\"\",\"\",'1. Order'!N1469)","v":""},{"$f":"IF('1. Order'!O1469=\"\",\"\",'1. Order'!O1469)","v":{"$error":"#N/A"}},{"$f":"IF('1. Order'!P1469=\"\",\"\",'1. Order'!P1469)","v":{"$error":"#N/A"}},{"$f":"IF('1. Order'!Q1469=\"\",\"\",'1. Order'!Q1469)","v":""},{"$f":"IF('1. Order'!R1469=\"\",\"\",'1. Order'!R1469)","v":""},{"$f":"IF('1. Order'!S1469=\"\",\"\",'1. Order'!S1469)","v":""},{"$f":"IF('1. Order'!V1469=\"\",\"\",'1. Order'!V1469)","v":""},{"$f":"IF('1. Order'!W1469=\"\",\"\",'1. Order'!W1469)","v":""},{"$f":"IF('1. Order'!X1469=\"\",\"\",'1. Order'!X1469)","v":"EUR"},{"$f":"IF('1. Order'!Y1469=\"\",\"\",'1. Order'!Y1469)","v":""},{"$f":"IF('1. Order'!Z1469=\"\",\"\",'1. Order'!Z1469)","v":""},{"$f":"IF('1. Order'!AA1469=\"\",\"\",'1. Order'!AA1469)","v":""},null,{"$f":"IF('1. Order'!AS1469=\"\",\"\",'1. Order'!AS1469)","v":""},{"$f":"IF('1. Order'!AT1469=\"\",\"\",'1. Order'!AT1469)","v":""},null,null,null,null,null,null,null,{"$f":"IF('1. Order'!AX1469=\"\",\"\",'1. Order'!AX1469)","v":""},{"$f":"IF('1. Order'!AY1469=\"\",\"\",'1. Order'!AY1469)","v":""},{"$f":"IF('1. Order'!AZ1469=\"\",\"\",'1. Order'!AZ1469)","v":""},{"$f":"IF('1. Order'!BA1469=\"\",\"\",'1. Order'!BA1469)","v":""},{"$f":"IF('1. Order'!BC1469=\"\",\"\",'1. Order'!BC1469)","v":""},{"$f":"IF('1. Order'!BD1469=\"\",\"\",'1. Order'!BD1469)","v":6},{"$f":"IF('1. Order'!BE1469=\"\",\"\",'1. Order'!BE1469)","v":"None"},{"$f":"IF('1. Order'!BF1469=\"\",\"\",'1. Order'!BF1469)","v":"Parcel"},{"$f":"IF('1. Order'!BG1469=\"\",\"\",'1. Order'!BG1469)","v":"ZWO"}]
[{"$f":"IF('1. Order'!F1470=\"\",\"\",'1. Order'!F1470)","v":""},{"$f":"IF('1. Order'!G1470=\"\",\"\",'1. Order'!G1470)","v":""},{"$f":"IF('1. Order'!H1470=\"\",\"\",'1. Order'!H1470)","v":""},{"$f":"IF('1. Order'!I1470=\"\",\"\",'1. Order'!I1470)","v":""},{"$f":"IF('1. Order'!J1470=\"\",\"\",'1. Order'!J1470)","v":""},{"$f":"IF('1. Order'!K1470=\"\",\"\",'1. Order'!K1470)","v":""},{"$f":"IF('1. Order'!L1470=\"\",\"\",'1. Order'!L1470)","v":""},{"$f":"IF('1. Order'!M1470=\"\",\"\",'1. Order'!M1470)","v":""},{"$f":"IF('1. Order'!N1470=\"\",\"\",'1. Order'!N1470)","v":""},{"$f":"IF('1. Order'!O1470=\"\",\"\",'1. Order'!O1470)","v":{"$error":"#N/A"}},{"$f":"IF('1. Order'!P1470=\"\",\"\",'1. Order'!P1470)","v":{"$error":"#N/A"}},{"$f":"IF('1. Order'!Q1470=\"\",\"\",'1. Order'!Q1470)","v":""},{"$f":"IF('1. Order'!R1470=\"\",\"\",'1. Order'!R1470)","v":""},{"$f":"IF('1. Order'!S1470=\"\",\"\",'1. Order'!S1470)","v":""},{"$f":"IF('1. Order'!V1470=\"\",\"\",'1. Order'!V1470)","v":""},{"$f":"IF('1. Order'!W1470=\"\",\"\",'1. Order'!W1470)","v":""},{"$f":"IF('1. Order'!X1470=\"\",\"\",'1. Order'!X1470)","v":"EUR"},{"$f":"IF('1. Order'!Y1470=\"\",\"\",'1. Order'!Y1470)","v":""},{"$f":"IF('1. Order'!Z1470=\"\",\"\",'1. Order'!Z1470)","v":""},{"$f":"IF('1. Order'!AA1470=\"\",\"\",'1. Order'!AA1470)","v":""},null,{"$f":"IF('1. Order'!AS1470=\"\",\"\",'1. Order'!AS1470)","v":""},{"$f":"IF('1. Order'!AT1470=\"\",\"\",'1. Order'!AT1470)","v":""},null,null,null,null,null,null,null,{"$f":"IF('1. Order'!AX1470=\"\",\"\",'1. Order'!AX1470)","v":""},{"$f":"IF('1. Order'!AY1470=\"\",\"\",'1. Order'!AY1470)","v":""},{"$f":"IF('1. Order'!AZ1470=\"\",\"\",'1. Order'!AZ1470)","v":""},{"$f":"IF('1. Order'!BA1470=\"\",\"\",'1. Order'!BA1470)","v":""},{"$f":"IF('1. Order'!BC1470=\"\",\"\",'1. Order'!BC1470)","v":""},{"$f":"IF('1. Order'!BD1470=\"\",\"\",'1. Order'!BD1470)","v":6},{"$f":"IF('1. Order'!BE1470=\"\",\"\",'1. Order'!BE1470)","v":"None"},{"$f":"IF('1. Order'!BF1470=\"\",\"\",'1. Order'!BF1470)","v":"Parcel"},{"$f":"IF('1. Order'!BG1470=\"\",\"\",'1. Order'!BG1470)","v":"ZWO"}]
[{"$f":"IF('1. Order'!F1471=\"\",\"\",'1. Order'!F1471)","v":""},{"$f":"IF('1. Order'!G1471=\"\",\"\",'1. Order'!G1471)","v":""},{"$f":"IF('1. Order'!H1471=\"\",\"\",'1. Order'!H1471)","v":""},{"$f":"IF('1. Order'!I1471=\"\",\"\",'1. Order'!I1471)","v":""},{"$f":"IF('1. Order'!J1471=\"\",\"\",'1. Order'!J1471)","v":""},{"$f":"IF('1. Order'!K1471=\"\",\"\",'1. Order'!K1471)","v":""},{"$f":"IF('1. Order'!L1471=\"\",\"\",'1. Order'!L1471)","v":""},{"$f":"IF('1. Order'!M1471=\"\",\"\",'1. Order'!M1471)","v":""},{"$f":"IF('1. Order'!N1471=\"\",\"\",'1. Order'!N1471)","v":""},{"$f":"IF('1. Order'!O1471=\"\",\"\",'1. Order'!O1471)","v":{"$error":"#N/A"}},{"$f":"IF('1. Order'!P1471=\"\",\"\",'1. Order'!P1471)","v":{"$error":"#N/A"}},{"$f":"IF('1. Order'!Q1471=\"\",\"\",'1. Order'!Q1471)","v":""},{"$f":"IF('1. Order'!R1471=\"\",\"\",'1. Order'!R1471)","v":""},{"$f":"IF('1. Order'!S1471=\"\",\"\",'1. Order'!S1471)","v":""},{"$f":"IF('1. Order'!V1471=\"\",\"\",'1. Order'!V1471)","v":""},{"$f":"IF('1. Order'!W1471=\"\",\"\",'1. Order'!W1471)","v":""},{"$f":"IF('1. Order'!X1471=\"\",\"\",'1. Order'!X1471)","v":"EUR"},{"$f":"IF('1. Order'!Y1471=\"\",\"\",'1. Order'!Y1471)","v":""},{"$f":"IF('1. Order'!Z1471=\"\",\"\",'1. Order'!Z1471)","v":""},{"$f":"IF('1. Order'!AA1471=\"\",\"\",'1. Order'!AA1471)","v":""},null,{"$f":"IF('1. Order'!AS1471=\"\",\"\",'1. Order'!AS1471)","v":""},{"$f":"IF('1. Order'!AT1471=\"\",\"\",'1. Order'!AT1471)","v":""},null,null,null,null,null,null,null,{"$f":"IF('1. Order'!AX1471=\"\",\"\",'1. Order'!AX1471)","v":""},{"$f":"IF('1. Order'!AY1471=\"\",\"\",'1. Order'!AY1471)","v":""},{"$f":"IF('1. Order'!AZ1471=\"\",\"\",'1. Order'!AZ1471)","v":""},{"$f":"IF('1. Order'!BA1471=\"\",\"\",'1. Order'!BA1471)","v":""},{"$f":"IF('1. Order'!BC1471=\"\",\"\",'1. Order'!BC1471)","v":""},{"$f":"IF('1. Order'!BD1471=\"\",\"\",'1. Order'!BD1471)","v":6},{"$f":"IF('1. Order'!BE1471=\"\",\"\",'1. Order'!BE1471)","v":"None"},{"$f":"IF('1. Order'!BF1471=\"\",\"\",'1. Order'!BF1471)","v":"Parcel"},{"$f":"IF('1. Order'!BG1471=\"\",\"\",'1. Order'!BG1471)","v":"ZWO"}]
[{"$f":"IF('1. Order'!F1472=\"\",\"\",'1. Order'!F1472)","v":""},{"$f":"IF('1. Order'!G1472=\"\",\"\",'1. Order'!G1472)","v":""},{"$f":"IF('1. Order'!H1472=\"\",\"\",'1. Order'!H1472)","v":""},{"$f":"IF('1. Order'!I1472=\"\",\"\",'1. Order'!I1472)","v":""},{"$f":"IF('1. Order'!J1472=\"\",\"\",'1. Order'!J1472)","v":""},{"$f":"IF('1. Order'!K1472=\"\",\"\",'1. Order'!K1472)","v":""},{"$f":"IF('1. Order'!L1472=\"\",\"\",'1. Order'!L1472)","v":""},{"$f":"IF('1. Order'!M1472=\"\",\"\",'1. Order'!M1472)","v":""},{"$f":"IF('1. Order'!N1472=\"\",\"\",'1. Order'!N1472)","v":""},{"$f":"IF('1. Order'!O1472=\"\",\"\",'1. Order'!O1472)","v":{"$error":"#N/A"}},{"$f":"IF('1. Order'!P1472=\"\",\"\",'1. Order'!P1472)","v":{"$error":"#N/A"}},{"$f":"IF('1. Order'!Q1472=\"\",\"\",'1. Order'!Q1472)","v":""},{"$f":"IF('1. Order'!R1472=\"\",\"\",'1. Order'!R1472)","v":""},{"$f":"IF('1. Order'!S1472=\"\",\"\",'1. Order'!S1472)","v":""},{"$f":"IF('1. Order'!V1472=\"\",\"\",'1. Order'!V1472)","v":""},{"$f":"IF('1. Order'!W1472=\"\",\"\",'1. Order'!W1472)","v":""},{"$f":"IF('1. Order'!X1472=\"\",\"\",'1. Order'!X1472)","v":"EUR"},{"$f":"IF('1. Order'!Y1472=\"\",\"\",'1. Order'!Y1472)","v":""},{"$f":"IF('1. Order'!Z1472=\"\",\"\",'1. Order'!Z1472)","v":""},{"$f":"IF('1. Order'!AA1472=\"\",\"\",'1. Order'!AA1472)","v":""},null,{"$f":"IF('1. Order'!AS1472=\"\",\"\",'1. Order'!AS1472)","v":""},{"$f":"IF('1. Order'!AT1472=\"\",\"\",'1. Order'!AT1472)","v":""},null,null,null,null,null,null,null,{"$f":"IF('1. Order'!AX1472=\"\",\"\",'1. Order'!AX1472)","v":""},{"$f":"IF('1. Order'!AY1472=\"\",\"\",'1. Order'!AY1472)","v":""},{"$f":"IF('1. Order'!AZ1472=\"\",\"\",'1. Order'!AZ1472)","v":""},{"$f":"IF('1. Order'!BA1472=\"\",\"\",'1. Order'!BA1472)","v":""},{"$f":"IF('1. Order'!BC1472=\"\",\"\",'1. Order'!BC1472)","v":""},{"$f":"IF('1. Order'!BD1472=\"\",\"\",'1. Order'!BD1472)","v":6},{"$f":"IF('1. Order'!BE1472=\"\",\"\",'1. Order'!BE1472)","v":"None"},{"$f":"IF('1. Order'!BF1472=\"\",\"\",'1. Order'!BF1472)","v":"Parcel"},{"$f":"IF('1. Order'!BG1472=\"\",\"\",'1. Order'!BG1472)","v":"ZWO"}]
[{"$f":"IF('1. Order'!F1473=\"\",\"\",'1. Order'!F1473)","v":""},{"$f":"IF('1. Order'!G1473=\"\",\"\",'1. Order'!G1473)","v":""},{"$f":"IF('1. Order'!H1473=\"\",\"\",'1. Order'!H1473)","v":""},{"$f":"IF('1. Order'!I1473=\"\",\"\",'1. Order'!I1473)","v":""},{"$f":"IF('1. Order'!J1473=\"\",\"\",'1. Order'!J1473)","v":""},{"$f":"IF('1. Order'!K1473=\"\",\"\",'1. Order'!K1473)","v":""},{"$f":"IF('1. Order'!L1473=\"\",\"\",'1. Order'!L1473)","v":""},{"$f":"IF('1. Order'!M1473=\"\",\"\",'1. Order'!M1473)","v":""},{"$f":"IF('1. Order'!N1473=\"\",\"\",'1. Order'!N1473)","v":""},{"$f":"IF('1. Order'!O1473=\"\",\"\",'1. Order'!O1473)","v":{"$error":"#N/A"}},{"$f":"IF('1. Order'!P1473=\"\",\"\",'1. Order'!P1473)","v":{"$error":"#N/A"}},{"$f":"IF('1. Order'!Q1473=\"\",\"\",'1. Order'!Q1473)","v":""},{"$f":"IF('1. Order'!R1473=\"\",\"\",'1. Order'!R1473)","v":""},{"$f":"IF('1. Order'!S1473=\"\",\"\",'1. Order'!S1473)","v":""},{"$f":"IF('1. Order'!V1473=\"\",\"\",'1. Order'!V1473)","v":""},{"$f":"IF('1. Order'!W1473=\"\",\"\",'1. Order'!W1473)","v":""},{"$f":"IF('1. Order'!X1473=\"\",\"\",'1. Order'!X1473)","v":"EUR"},{"$f":"IF('1. Order'!Y1473=\"\",\"\",'1. Order'!Y1473)","v":""},{"$f":"IF('1. Order'!Z1473=\"\",\"\",'1. Order'!Z1473)","v":""},{"$f":"IF('1. Order'!AA1473=\"\",\"\",'1. Order'!AA1473)","v":""},null,{"$f":"IF('1. Order'!AS1473=\"\",\"\",'1. Order'!AS1473)","v":""},{"$f":"IF('1. Order'!AT1473=\"\",\"\",'1. Order'!AT1473)","v":""},null,null,null,null,null,null,null,{"$f":"IF('1. Order'!AX1473=\"\",\"\",'1. Order'!AX1473)","v":""},{"$f":"IF('1. Order'!AY1473=\"\",\"\",'1. Order'!AY1473)","v":""},{"$f":"IF('1. Order'!AZ1473=\"\",\"\",'1. Order'!AZ1473)","v":""},{"$f":"IF('1. Order'!BA1473=\"\",\"\",'1. Order'!BA1473)","v":""},{"$f":"IF('1. Order'!BC1473=\"\",\"\",'1. Order'!BC1473)","v":""},{"$f":"IF('1. Order'!BD1473=\"\",\"\",'1. Order'!BD1473)","v":6},{"$f":"IF('1. Order'!BE1473=\"\",\"\",'1. Order'!BE1473)","v":"None"},{"$f":"IF('1. Order'!BF1473=\"\",\"\",'1. Order'!BF1473)","v":"Parcel"},{"$f":"IF('1. Order'!BG1473=\"\",\"\",'1. Order'!BG1473)","v":"ZWO"}]
[{"$f":"IF('1. Order'!F1474=\"\",\"\",'1. Order'!F1474)","v":""},{"$f":"IF('1. Order'!G1474=\"\",\"\",'1. Order'!G1474)","v":""},{"$f":"IF('1. Order'!H1474=\"\",\"\",'1. Order'!H1474)","v":""},{"$f":"IF('1. Order'!I1474=\"\",\"\",'1. Order'!I1474)","v":""},{"$f":"IF('1. Order'!J1474=\"\",\"\",'1. Order'!J1474)","v":""},{"$f":"IF('1. Order'!K1474=\"\",\"\",'1. Order'!K1474)","v":""},{"$f":"IF('1. Order'!L1474=\"\",\"\",'1. Order'!L1474)","v":""},{"$f":"IF('1. Order'!M1474=\"\",\"\",'1. Order'!M1474)","v":""},{"$f":"IF('1. Order'!N1474=\"\",\"\",'1. Order'!N1474)","v":""},{"$f":"IF('1. Order'!O1474=\"\",\"\",'1. Order'!O1474)","v":{"$error":"#N/A"}},{"$f":"IF('1. Order'!P1474=\"\",\"\",'1. Order'!P1474)","v":{"$error":"#N/A"}},{"$f":"IF('1. Order'!Q1474=\"\",\"\",'1. Order'!Q1474)","v":""},{"$f":"IF('1. Order'!R1474=\"\",\"\",'1. Order'!R1474)","v":""},{"$f":"IF('1. Order'!S1474=\"\",\"\",'1. Order'!S1474)","v":""},{"$f":"IF('1. Order'!V1474=\"\",\"\",'1. Order'!V1474)","v":""},{"$f":"IF('1. Order'!W1474=\"\",\"\",'1. Order'!W1474)","v":""},{"$f":"IF('1. Order'!X1474=\"\",\"\",'1. Order'!X1474)","v":"EUR"},{"$f":"IF('1. Order'!Y1474=\"\",\"\",'1. Order'!Y1474)","v":""},{"$f":"IF('1. Order'!Z1474=\"\",\"\",'1. Order'!Z1474)","v":""},{"$f":"IF('1. Order'!AA1474=\"\",\"\",'1. Order'!AA1474)","v":""},null,{"$f":"IF('1. Order'!AS1474=\"\",\"\",'1. Order'!AS1474)","v":""},{"$f":"IF('1. Order'!AT1474=\"\",\"\",'1. Order'!AT1474)","v":""},null,null,null,null,null,null,null,{"$f":"IF('1. Order'!AX1474=\"\",\"\",'1. Order'!AX1474)","v":""},{"$f":"IF('1. Order'!AY1474=\"\",\"\",'1. Order'!AY1474)","v":""},{"$f":"IF('1. Order'!AZ1474=\"\",\"\",'1. Order'!AZ1474)","v":""},{"$f":"IF('1. Order'!BA1474=\"\",\"\",'1. Order'!BA1474)","v":""},{"$f":"IF('1. Order'!BC1474=\"\",\"\",'1. Order'!BC1474)","v":""},{"$f":"IF('1. Order'!BD1474=\"\",\"\",'1. Order'!BD1474)","v":6},{"$f":"IF('1. Order'!BE1474=\"\",\"\",'1. Order'!BE1474)","v":"None"},{"$f":"IF('1. Order'!BF1474=\"\",\"\",'1. Order'!BF1474)","v":"Parcel"},{"$f":"IF('1. Order'!BG1474=\"\",\"\",'1. Order'!BG1474)","v":"ZWO"}]
[{"$f":"IF('1. Order'!F1475=\"\",\"\",'1. Order'!F1475)","v":""},{"$f":"IF('1. Order'!G1475=\"\",\"\",'1. Order'!G1475)","v":""},{"$f":"IF('1. Order'!H1475=\"\",\"\",'1. Order'!H1475)","v":""},{"$f":"IF('1. Order'!I1475=\"\",\"\",'1. Order'!I1475)","v":""},{"$f":"IF('1. Order'!J1475=\"\",\"\",'1. Order'!J1475)","v":""},{"$f":"IF('1. Order'!K1475=\"\",\"\",'1. Order'!K1475)","v":""},{"$f":"IF('1. Order'!L1475=\"\",\"\",'1. Order'!L1475)","v":""},{"$f":"IF('1. Order'!M1475=\"\",\"\",'1. Order'!M1475)","v":""},{"$f":"IF('1. Order'!N1475=\"\",\"\",'1. Order'!N1475)","v":""},{"$f":"IF('1. Order'!O1475=\"\",\"\",'1. Order'!O1475)","v":{"$error":"#N/A"}},{"$f":"IF('1. Order'!P1475=\"\",\"\",'1. Order'!P1475)","v":{"$error":"#N/A"}},{"$f":"IF('1. Order'!Q1475=\"\",\"\",'1. Order'!Q1475)","v":""},{"$f":"IF('1. Order'!R1475=\"\",\"\",'1. Order'!R1475)","v":""},{"$f":"IF('1. Order'!S1475=\"\",\"\",'1. Order'!S1475)","v":""},{"$f":"IF('1. Order'!V1475=\"\",\"\",'1. Order'!V1475)","v":""},{"$f":"IF('1. Order'!W1475=\"\",\"\",'1. Order'!W1475)","v":""},{"$f":"IF('1. Order'!X1475=\"\",\"\",'1. Order'!X1475)","v":"EUR"},{"$f":"IF('1. Order'!Y1475=\"\",\"\",'1. Order'!Y1475)","v":""},{"$f":"IF('1. Order'!Z1475=\"\",\"\",'1. Order'!Z1475)","v":""},{"$f":"IF('1. Order'!AA1475=\"\",\"\",'1. Order'!AA1475)","v":""},null,{"$f":"IF('1. Order'!AS1475=\"\",\"\",'1. Order'!AS1475)","v":""},{"$f":"IF('1. Order'!AT1475=\"\",\"\",'1. Order'!AT1475)","v":""},null,null,null,null,null,null,null,{"$f":"IF('1. Order'!AX1475=\"\",\"\",'1. Order'!AX1475)","v":""},{"$f":"IF('1. Order'!AY1475=\"\",\"\",'1. Order'!AY1475)","v":""},{"$f":"IF('1. Order'!AZ1475=\"\",\"\",'1. Order'!AZ1475)","v":""},{"$f":"IF('1. Order'!BA1475=\"\",\"\",'1. Order'!BA1475)","v":""},{"$f":"IF('1. Order'!BC1475=\"\",\"\",'1. Order'!BC1475)","v":""},{"$f":"IF('1. Order'!BD1475=\"\",\"\",'1. Order'!BD1475)","v":6},{"$f":"IF('1. Order'!BE1475=\"\",\"\",'1. Order'!BE1475)","v":"None"},{"$f":"IF('1. Order'!BF1475=\"\",\"\",'1. Order'!BF1475)","v":"Parcel"},{"$f":"IF('1. Order'!BG1475=\"\",\"\",'1. Order'!BG1475)","v":"ZWO"}]
[{"$f":"IF('1. Order'!F1476=\"\",\"\",'1. Order'!F1476)","v":""},{"$f":"IF('1. Order'!G1476=\"\",\"\",'1. Order'!G1476)","v":""},{"$f":"IF('1. Order'!H1476=\"\",\"\",'1. Order'!H1476)","v":""},{"$f":"IF('1. Order'!I1476=\"\",\"\",'1. Order'!I1476)","v":""},{"$f":"IF('1. Order'!J1476=\"\",\"\",'1. Order'!J1476)","v":""},{"$f":"IF('1. Order'!K1476=\"\",\"\",'1. Order'!K1476)","v":""},{"$f":"IF('1. Order'!L1476=\"\",\"\",'1. Order'!L1476)","v":""},{"$f":"IF('1. Order'!M1476=\"\",\"\",'1. Order'!M1476)","v":""},{"$f":"IF('1. Order'!N1476=\"\",\"\",'1. Order'!N1476)","v":""},{"$f":"IF('1. Order'!O1476=\"\",\"\",'1. Order'!O1476)","v":{"$error":"#N/A"}},{"$f":"IF('1. Order'!P1476=\"\",\"\",'1. Order'!P1476)","v":{"$error":"#N/A"}},{"$f":"IF('1. Order'!Q1476=\"\",\"\",'1. Order'!Q1476)","v":""},{"$f":"IF('1. Order'!R1476=\"\",\"\",'1. Order'!R1476)","v":""},{"$f":"IF('1. Order'!S1476=\"\",\"\",'1. Order'!S1476)","v":""},{"$f":"IF('1. Order'!V1476=\"\",\"\",'1. Order'!V1476)","v":""},{"$f":"IF('1. Order'!W1476=\"\",\"\",'1. Order'!W1476)","v":""},{"$f":"IF('1. Order'!X1476=\"\",\"\",'1. Order'!X1476)","v":"EUR"},{"$f":"IF('1. Order'!Y1476=\"\",\"\",'1. Order'!Y1476)","v":""},{"$f":"IF('1. Order'!Z1476=\"\",\"\",'1. Order'!Z1476)","v":""},{"$f":"IF('1. Order'!AA1476=\"\",\"\",'1. Order'!AA1476)","v":""},null,{"$f":"IF('1. Order'!AS1476=\"\",\"\",'1. Order'!AS1476)","v":""},{"$f":"IF('1. Order'!AT1476=\"\",\"\",'1. Order'!AT1476)","v":""},null,null,null,null,null,null,null,{"$f":"IF('1. Order'!AX1476=\"\",\"\",'1. Order'!AX1476)","v":""},{"$f":"IF('1. Order'!AY1476=\"\",\"\",'1. Order'!AY1476)","v":""},{"$f":"IF('1. Order'!AZ1476=\"\",\"\",'1. Order'!AZ1476)","v":""},{"$f":"IF('1. Order'!BA1476=\"\",\"\",'1. Order'!BA1476)","v":""},{"$f":"IF('1. Order'!BC1476=\"\",\"\",'1. Order'!BC1476)","v":""},{"$f":"IF('1. Order'!BD1476=\"\",\"\",'1. Order'!BD1476)","v":6},{"$f":"IF('1. Order'!BE1476=\"\",\"\",'1. Order'!BE1476)","v":"None"},{"$f":"IF('1. Order'!BF1476=\"\",\"\",'1. Order'!BF1476)","v":"Parcel"},{"$f":"IF('1. Order'!BG1476=\"\",\"\",'1. Order'!BG1476)","v":"ZWO"}]
[{"$f":"IF('1. Order'!F1477=\"\",\"\",'1. Order'!F1477)","v":""},{"$f":"IF('1. Order'!G1477=\"\",\"\",'1. Order'!G1477)","v":""},{"$f":"IF('1. Order'!H1477=\"\",\"\",'1. Order'!H1477)","v":""},{"$f":"IF('1. Order'!I1477=\"\",\"\",'1. Order'!I1477)","v":""},{"$f":"IF('1. Order'!J1477=\"\",\"\",'1. Order'!J1477)","v":""},{"$f":"IF('1. Order'!K1477=\"\",\"\",'1. Order'!K1477)","v":""},{"$f":"IF('1. Order'!L1477=\"\",\"\",'1. Order'!L1477)","v":""},{"$f":"IF('1. Order'!M1477=\"\",\"\",'1. Order'!M1477)","v":""},{"$f":"IF('1. Order'!N1477=\"\",\"\",'1. Order'!N1477)","v":""},{"$f":"IF('1. Order'!O1477=\"\",\"\",'1. Order'!O1477)","v":{"$error":"#N/A"}},{"$f":"IF('1. Order'!P1477=\"\",\"\",'1. Order'!P1477)","v":{"$error":"#N/A"}},{"$f":"IF('1. Order'!Q1477=\"\",\"\",'1. Order'!Q1477)","v":""},{"$f":"IF('1. Order'!R1477=\"\",\"\",'1. Order'!R1477)","v":""},{"$f":"IF('1. Order'!S1477=\"\",\"\",'1. Order'!S1477)","v":""},{"$f":"IF('1. Order'!V1477=\"\",\"\",'1. Order'!V1477)","v":""},{"$f":"IF('1. Order'!W1477=\"\",\"\",'1. Order'!W1477)","v":""},{"$f":"IF('1. Order'!X1477=\"\",\"\",'1. Order'!X1477)","v":"EUR"},{"$f":"IF('1. Order'!Y1477=\"\",\"\",'1. Order'!Y1477)","v":""},{"$f":"IF('1. Order'!Z1477=\"\",\"\",'1. Order'!Z1477)","v":""},{"$f":"IF('1. Order'!AA1477=\"\",\"\",'1. Order'!AA1477)","v":""},null,{"$f":"IF('1. Order'!AS1477=\"\",\"\",'1. Order'!AS1477)","v":""},{"$f":"IF('1. Order'!AT1477=\"\",\"\",'1. Order'!AT1477)","v":""},null,null,null,null,null,null,null,{"$f":"IF('1. Order'!AX1477=\"\",\"\",'1. Order'!AX1477)","v":""},{"$f":"IF('1. Order'!AY1477=\"\",\"\",'1. Order'!AY1477)","v":""},{"$f":"IF('1. Order'!AZ1477=\"\",\"\",'1. Order'!AZ1477)","v":""},{"$f":"IF('1. Order'!BA1477=\"\",\"\",'1. Order'!BA1477)","v":""},{"$f":"IF('1. Order'!BC1477=\"\",\"\",'1. Order'!BC1477)","v":""},{"$f":"IF('1. Order'!BD1477=\"\",\"\",'1. Order'!BD1477)","v":6},{"$f":"IF('1. Order'!BE1477=\"\",\"\",'1. Order'!BE1477)","v":"None"},{"$f":"IF('1. Order'!BF1477=\"\",\"\",'1. Order'!BF1477)","v":"Parcel"},{"$f":"IF('1. Order'!BG1477=\"\",\"\",'1. Order'!BG1477)","v":"ZWO"}]
[{"$f":"IF('1. Order'!F1478=\"\",\"\",'1. Order'!F1478)","v":""},{"$f":"IF('1. Order'!G1478=\"\",\"\",'1. Order'!G1478)","v":""},{"$f":"IF('1. Order'!H1478=\"\",\"\",'1. Order'!H1478)","v":""},{"$f":"IF('1. Order'!I1478=\"\",\"\",'1. Order'!I1478)","v":""},{"$f":"IF('1. Order'!J1478=\"\",\"\",'1. Order'!J1478)","v":""},{"$f":"IF('1. Order'!K1478=\"\",\"\",'1. Order'!K1478)","v":""},{"$f":"IF('1. Order'!L1478=\"\",\"\",'1. Order'!L1478)","v":""},{"$f":"IF('1. Order'!M1478=\"\",\"\",'1. Order'!M1478)","v":""},{"$f":"IF('1. Order'!N1478=\"\",\"\",'1. Order'!N1478)","v":""},{"$f":"IF('1. Order'!O1478=\"\",\"\",'1. Order'!O1478)","v":{"$error":"#N/A"}},{"$f":"IF('1. Order'!P1478=\"\",\"\",'1. Order'!P1478)","v":{"$error":"#N/A"}},{"$f":"IF('1. Order'!Q1478=\"\",\"\",'1. Order'!Q1478)","v":""},{"$f":"IF('1. Order'!R1478=\"\",\"\",'1. Order'!R1478)","v":""},{"$f":"IF('1. Order'!S1478=\"\",\"\",'1. Order'!S1478)","v":""},{"$f":"IF('1. Order'!V1478=\"\",\"\",'1. Order'!V1478)","v":""},{"$f":"IF('1. Order'!W1478=\"\",\"\",'1. Order'!W1478)","v":""},{"$f":"IF('1. Order'!X1478=\"\",\"\",'1. Order'!X1478)","v":"EUR"},{"$f":"IF('1. Order'!Y1478=\"\",\"\",'1. Order'!Y1478)","v":""},{"$f":"IF('1. Order'!Z1478=\"\",\"\",'1. Order'!Z1478)","v":""},{"$f":"IF('1. Order'!AA1478=\"\",\"\",'1. Order'!AA1478)","v":""},null,{"$f":"IF('1. Order'!AS1478=\"\",\"\",'1. Order'!AS1478)","v":""},{"$f":"IF('1. Order'!AT1478=\"\",\"\",'1. Order'!AT1478)","v":""},null,null,null,null,null,null,null,{"$f":"IF('1. Order'!AX1478=\"\",\"\",'1. Order'!AX1478)","v":""},{"$f":"IF('1. Order'!AY1478=\"\",\"\",'1. Order'!AY1478)","v":""},{"$f":"IF('1. Order'!AZ1478=\"\",\"\",'1. Order'!AZ1478)","v":""},{"$f":"IF('1. Order'!BA1478=\"\",\"\",'1. Order'!BA1478)","v":""},{"$f":"IF('1. Order'!BC1478=\"\",\"\",'1. Order'!BC1478)","v":""},{"$f":"IF('1. Order'!BD1478=\"\",\"\",'1. Order'!BD1478)","v":6},{"$f":"IF('1. Order'!BE1478=\"\",\"\",'1. Order'!BE1478)","v":"None"},{"$f":"IF('1. Order'!BF1478=\"\",\"\",'1. Order'!BF1478)","v":"Parcel"},{"$f":"IF('1. Order'!BG1478=\"\",\"\",'1. Order'!BG1478)","v":"ZWO"}]
[{"$f":"IF('1. Order'!F1479=\"\",\"\",'1. Order'!F1479)","v":""},{"$f":"IF('1. Order'!G1479=\"\",\"\",'1. Order'!G1479)","v":""},{"$f":"IF('1. Order'!H1479=\"\",\"\",'1. Order'!H1479)","v":""},{"$f":"IF('1. Order'!I1479=\"\",\"\",'1. Order'!I1479)","v":""},{"$f":"IF('1. Order'!J1479=\"\",\"\",'1. Order'!J1479)","v":""},{"$f":"IF('1. Order'!K1479=\"\",\"\",'1. Order'!K1479)","v":""},{"$f":"IF('1. Order'!L1479=\"\",\"\",'1. Order'!L1479)","v":""},{"$f":"IF('1. Order'!M1479=\"\",\"\",'1. Order'!M1479)","v":""},{"$f":"IF('1. Order'!N1479=\"\",\"\",'1. Order'!N1479)","v":""},{"$f":"IF('1. Order'!O1479=\"\",\"\",'1. Order'!O1479)","v":{"$error":"#N/A"}},{"$f":"IF('1. Order'!P1479=\"\",\"\",'1. Order'!P1479)","v":{"$error":"#N/A"}},{"$f":"IF('1. Order'!Q1479=\"\",\"\",'1. Order'!Q1479)","v":""},{"$f":"IF('1. Order'!R1479=\"\",\"\",'1. Order'!R1479)","v":""},{"$f":"IF('1. Order'!S1479=\"\",\"\",'1. Order'!S1479)","v":""},{"$f":"IF('1. Order'!V1479=\"\",\"\",'1. Order'!V1479)","v":""},{"$f":"IF('1. Order'!W1479=\"\",\"\",'1. Order'!W1479)","v":""},{"$f":"IF('1. Order'!X1479=\"\",\"\",'1. Order'!X1479)","v":"EUR"},{"$f":"IF('1. Order'!Y1479=\"\",\"\",'1. Order'!Y1479)","v":""},{"$f":"IF('1. Order'!Z1479=\"\",\"\",'1. Order'!Z1479)","v":""},{"$f":"IF('1. Order'!AA1479=\"\",\"\",'1. Order'!AA1479)","v":""},null,{"$f":"IF('1. Order'!AS1479=\"\",\"\",'1. Order'!AS1479)","v":""},{"$f":"IF('1. Order'!AT1479=\"\",\"\",'1. Order'!AT1479)","v":""},null,null,null,null,null,null,null,{"$f":"IF('1. Order'!AX1479=\"\",\"\",'1. Order'!AX1479)","v":""},{"$f":"IF('1. Order'!AY1479=\"\",\"\",'1. Order'!AY1479)","v":""},{"$f":"IF('1. Order'!AZ1479=\"\",\"\",'1. Order'!AZ1479)","v":""},{"$f":"IF('1. Order'!BA1479=\"\",\"\",'1. Order'!BA1479)","v":""},{"$f":"IF('1. Order'!BC1479=\"\",\"\",'1. Order'!BC1479)","v":""},{"$f":"IF('1. Order'!BD1479=\"\",\"\",'1. Order'!BD1479)","v":6},{"$f":"IF('1. Order'!BE1479=\"\",\"\",'1. Order'!BE1479)","v":"None"},{"$f":"IF('1. Order'!BF1479=\"\",\"\",'1. Order'!BF1479)","v":"Parcel"},{"$f":"IF('1. Order'!BG1479=\"\",\"\",'1. Order'!BG1479)","v":"ZWO"}]
[{"$f":"IF('1. Order'!F1480=\"\",\"\",'1. Order'!F1480)","v":""},{"$f":"IF('1. Order'!G1480=\"\",\"\",'1. Order'!G1480)","v":""},{"$f":"IF('1. Order'!H1480=\"\",\"\",'1. Order'!H1480)","v":""},{"$f":"IF('1. Order'!I1480=\"\",\"\",'1. Order'!I1480)","v":""},{"$f":"IF('1. Order'!J1480=\"\",\"\",'1. Order'!J1480)","v":""},{"$f":"IF('1. Order'!K1480=\"\",\"\",'1. Order'!K1480)","v":""},{"$f":"IF('1. Order'!L1480=\"\",\"\",'1. Order'!L1480)","v":""},{"$f":"IF('1. Order'!M1480=\"\",\"\",'1. Order'!M1480)","v":""},{"$f":"IF('1. Order'!N1480=\"\",\"\",'1. Order'!N1480)","v":""},{"$f":"IF('1. Order'!O1480=\"\",\"\",'1. Order'!O1480)","v":{"$error":"#N/A"}},{"$f":"IF('1. Order'!P1480=\"\",\"\",'1. Order'!P1480)","v":{"$error":"#N/A"}},{"$f":"IF('1. Order'!Q1480=\"\",\"\",'1. Order'!Q1480)","v":""},{"$f":"IF('1. Order'!R1480=\"\",\"\",'1. Order'!R1480)","v":""},{"$f":"IF('1. Order'!S1480=\"\",\"\",'1. Order'!S1480)","v":""},{"$f":"IF('1. Order'!V1480=\"\",\"\",'1. Order'!V1480)","v":""},{"$f":"IF('1. Order'!W1480=\"\",\"\",'1. Order'!W1480)","v":""},{"$f":"IF('1. Order'!X1480=\"\",\"\",'1. Order'!X1480)","v":"EUR"},{"$f":"IF('1. Order'!Y1480=\"\",\"\",'1. Order'!Y1480)","v":""},{"$f":"IF('1. Order'!Z1480=\"\",\"\",'1. Order'!Z1480)","v":""},{"$f":"IF('1. Order'!AA1480=\"\",\"\",'1. Order'!AA1480)","v":""},null,{"$f":"IF('1. Order'!AS1480=\"\",\"\",'1. Order'!AS1480)","v":""},{"$f":"IF('1. Order'!AT1480=\"\",\"\",'1. Order'!AT1480)","v":""},null,null,null,null,null,null,null,{"$f":"IF('1. Order'!AX1480=\"\",\"\",'1. Order'!AX1480)","v":""},{"$f":"IF('1. Order'!AY1480=\"\",\"\",'1. Order'!AY1480)","v":""},{"$f":"IF('1. Order'!AZ1480=\"\",\"\",'1. Order'!AZ1480)","v":""},{"$f":"IF('1. Order'!BA1480=\"\",\"\",'1. Order'!BA1480)","v":""},{"$f":"IF('1. Order'!BC1480=\"\",\"\",'1. Order'!BC1480)","v":""},{"$f":"IF('1. Order'!BD1480=\"\",\"\",'1. Order'!BD1480)","v":6},{"$f":"IF('1. Order'!BE1480=\"\",\"\",'1. Order'!BE1480)","v":"None"},{"$f":"IF('1. Order'!BF1480=\"\",\"\",'1. Order'!BF1480)","v":"Parcel"},{"$f":"IF('1. Order'!BG1480=\"\",\"\",'1. Order'!BG1480)","v":"ZWO"}]
[{"$f":"IF('1. Order'!F1481=\"\",\"\",'1. Order'!F1481)","v":""},{"$f":"IF('1. Order'!G1481=\"\",\"\",'1. Order'!G1481)","v":""},{"$f":"IF('1. Order'!H1481=\"\",\"\",'1. Order'!H1481)","v":""},{"$f":"IF('1. Order'!I1481=\"\",\"\",'1. Order'!I1481)","v":""},{"$f":"IF('1. Order'!J1481=\"\",\"\",'1. Order'!J1481)","v":""},{"$f":"IF('1. Order'!K1481=\"\",\"\",'1. Order'!K1481)","v":""},{"$f":"IF('1. Order'!L1481=\"\",\"\",'1. Order'!L1481)","v":""},{"$f":"IF('1. Order'!M1481=\"\",\"\",'1. Order'!M1481)","v":""},{"$f":"IF('1. Order'!N1481=\"\",\"\",'1. Order'!N1481)","v":""},{"$f":"IF('1. Order'!O1481=\"\",\"\",'1. Order'!O1481)","v":{"$error":"#N/A"}},{"$f":"IF('1. Order'!P1481=\"\",\"\",'1. Order'!P1481)","v":{"$error":"#N/A"}},{"$f":"IF('1. Order'!Q1481=\"\",\"\",'1. Order'!Q1481)","v":""},{"$f":"IF('1. Order'!R1481=\"\",\"\",'1. Order'!R1481)","v":""},{"$f":"IF('1. Order'!S1481=\"\",\"\",'1. Order'!S1481)","v":""},{"$f":"IF('1. Order'!V1481=\"\",\"\",'1. Order'!V1481)","v":""},{"$f":"IF('1. Order'!W1481=\"\",\"\",'1. Order'!W1481)","v":""},{"$f":"IF('1. Order'!X1481=\"\",\"\",'1. Order'!X1481)","v":"EUR"},{"$f":"IF('1. Order'!Y1481=\"\",\"\",'1. Order'!Y1481)","v":""},{"$f":"IF('1. Order'!Z1481=\"\",\"\",'1. Order'!Z1481)","v":""},{"$f":"IF('1. Order'!AA1481=\"\",\"\",'1. Order'!AA1481)","v":""},null,{"$f":"IF('1. Order'!AS1481=\"\",\"\",'1. Order'!AS1481)","v":""},{"$f":"IF('1. Order'!AT1481=\"\",\"\",'1. Order'!AT1481)","v":""},null,null,null,null,null,null,null,{"$f":"IF('1. Order'!AX1481=\"\",\"\",'1. Order'!AX1481)","v":""},{"$f":"IF('1. Order'!AY1481=\"\",\"\",'1. Order'!AY1481)","v":""},{"$f":"IF('1. Order'!AZ1481=\"\",\"\",'1. Order'!AZ1481)","v":""},{"$f":"IF('1. Order'!BA1481=\"\",\"\",'1. Order'!BA1481)","v":""},{"$f":"IF('1. Order'!BC1481=\"\",\"\",'1. Order'!BC1481)","v":""},{"$f":"IF('1. Order'!BD1481=\"\",\"\",'1. Order'!BD1481)","v":6},{"$f":"IF('1. Order'!BE1481=\"\",\"\",'1. Order'!BE1481)","v":"None"},{"$f":"IF('1. Order'!BF1481=\"\",\"\",'1. Order'!BF1481)","v":"Parcel"},{"$f":"IF('1. Order'!BG1481=\"\",\"\",'1. Order'!BG1481)","v":"ZWO"}]
[{"$f":"IF('1. Order'!F1482=\"\",\"\",'1. Order'!F1482)","v":""},{"$f":"IF('1. Order'!G1482=\"\",\"\",'1. Order'!G1482)","v":""},{"$f":"IF('1. Order'!H1482=\"\",\"\",'1. Order'!H1482)","v":""},{"$f":"IF('1. Order'!I1482=\"\",\"\",'1. Order'!I1482)","v":""},{"$f":"IF('1. Order'!J1482=\"\",\"\",'1. Order'!J1482)","v":""},{"$f":"IF('1. Order'!K1482=\"\",\"\",'1. Order'!K1482)","v":""},{"$f":"IF('1. Order'!L1482=\"\",\"\",'1. Order'!L1482)","v":""},{"$f":"IF('1. Order'!M1482=\"\",\"\",'1. Order'!M1482)","v":""},{"$f":"IF('1. Order'!N1482=\"\",\"\",'1. Order'!N1482)","v":""},{"$f":"IF('1. Order'!O1482=\"\",\"\",'1. Order'!O1482)","v":{"$error":"#N/A"}},{"$f":"IF('1. Order'!P1482=\"\",\"\",'1. Order'!P1482)","v":{"$error":"#N/A"}},{"$f":"IF('1. Order'!Q1482=\"\",\"\",'1. Order'!Q1482)","v":""},{"$f":"IF('1. Order'!R1482=\"\",\"\",'1. Order'!R1482)","v":""},{"$f":"IF('1. Order'!S1482=\"\",\"\",'1. Order'!S1482)","v":""},{"$f":"IF('1. Order'!V1482=\"\",\"\",'1. Order'!V1482)","v":""},{"$f":"IF('1. Order'!W1482=\"\",\"\",'1. Order'!W1482)","v":""},{"$f":"IF('1. Order'!X1482=\"\",\"\",'1. Order'!X1482)","v":"EUR"},{"$f":"IF('1. Order'!Y1482=\"\",\"\",'1. Order'!Y1482)","v":""},{"$f":"IF('1. Order'!Z1482=\"\",\"\",'1. Order'!Z1482)","v":""},{"$f":"IF('1. Order'!AA1482=\"\",\"\",'1. Order'!AA1482)","v":""},null,{"$f":"IF('1. Order'!AS1482=\"\",\"\",'1. Order'!AS1482)","v":""},{"$f":"IF('1. Order'!AT1482=\"\",\"\",'1. Order'!AT1482)","v":""},null,null,null,null,null,null,null,{"$f":"IF('1. Order'!AX1482=\"\",\"\",'1. Order'!AX1482)","v":""},{"$f":"IF('1. Order'!AY1482=\"\",\"\",'1. Order'!AY1482)","v":""},{"$f":"IF('1. Order'!AZ1482=\"\",\"\",'1. Order'!AZ1482)","v":""},{"$f":"IF('1. Order'!BA1482=\"\",\"\",'1. Order'!BA1482)","v":""},{"$f":"IF('1. Order'!BC1482=\"\",\"\",'1. Order'!BC1482)","v":""},{"$f":"IF('1. Order'!BD1482=\"\",\"\",'1. Order'!BD1482)","v":6},{"$f":"IF('1. Order'!BE1482=\"\",\"\",'1. Order'!BE1482)","v":"None"},{"$f":"IF('1. Order'!BF1482=\"\",\"\",'1. Order'!BF1482)","v":"Parcel"},{"$f":"IF('1. Order'!BG1482=\"\",\"\",'1. Order'!BG1482)","v":"ZWO"}]
[{"$f":"IF('1. Order'!F1483=\"\",\"\",'1. Order'!F1483)","v":""},{"$f":"IF('1. Order'!G1483=\"\",\"\",'1. Order'!G1483)","v":""},{"$f":"IF('1. Order'!H1483=\"\",\"\",'1. Order'!H1483)","v":""},{"$f":"IF('1. Order'!I1483=\"\",\"\",'1. Order'!I1483)","v":""},{"$f":"IF('1. Order'!J1483=\"\",\"\",'1. Order'!J1483)","v":""},{"$f":"IF('1. Order'!K1483=\"\",\"\",'1. Order'!K1483)","v":""},{"$f":"IF('1. Order'!L1483=\"\",\"\",'1. Order'!L1483)","v":""},{"$f":"IF('1. Order'!M1483=\"\",\"\",'1. Order'!M1483)","v":""},{"$f":"IF('1. Order'!N1483=\"\",\"\",'1. Order'!N1483)","v":""},{"$f":"IF('1. Order'!O1483=\"\",\"\",'1. Order'!O1483)","v":{"$error":"#N/A"}},{"$f":"IF('1. Order'!P1483=\"\",\"\",'1. Order'!P1483)","v":{"$error":"#N/A"}},{"$f":"IF('1. Order'!Q1483=\"\",\"\",'1. Order'!Q1483)","v":""},{"$f":"IF('1. Order'!R1483=\"\",\"\",'1. Order'!R1483)","v":""},{"$f":"IF('1. Order'!S1483=\"\",\"\",'1. Order'!S1483)","v":""},{"$f":"IF('1. Order'!V1483=\"\",\"\",'1. Order'!V1483)","v":""},{"$f":"IF('1. Order'!W1483=\"\",\"\",'1. Order'!W1483)","v":""},{"$f":"IF('1. Order'!X1483=\"\",\"\",'1. Order'!X1483)","v":"EUR"},{"$f":"IF('1. Order'!Y1483=\"\",\"\",'1. Order'!Y1483)","v":""},{"$f":"IF('1. Order'!Z1483=\"\",\"\",'1. Order'!Z1483)","v":""},{"$f":"IF('1. Order'!AA1483=\"\",\"\",'1. Order'!AA1483)","v":""},null,{"$f":"IF('1. Order'!AS1483=\"\",\"\",'1. Order'!AS1483)","v":""},{"$f":"IF('1. Order'!AT1483=\"\",\"\",'1. Order'!AT1483)","v":""},null,null,null,null,null,null,null,{"$f":"IF('1. Order'!AX1483=\"\",\"\",'1. Order'!AX1483)","v":""},{"$f":"IF('1. Order'!AY1483=\"\",\"\",'1. Order'!AY1483)","v":""},{"$f":"IF('1. Order'!AZ1483=\"\",\"\",'1. Order'!AZ1483)","v":""},{"$f":"IF('1. Order'!BA1483=\"\",\"\",'1. Order'!BA1483)","v":""},{"$f":"IF('1. Order'!BC1483=\"\",\"\",'1. Order'!BC1483)","v":""},{"$f":"IF('1. Order'!BD1483=\"\",\"\",'1. Order'!BD1483)","v":6},{"$f":"IF('1. Order'!BE1483=\"\",\"\",'1. Order'!BE1483)","v":"None"},{"$f":"IF('1. Order'!BF1483=\"\",\"\",'1. Order'!BF1483)","v":"Parcel"},{"$f":"IF('1. Order'!BG1483=\"\",\"\",'1. Order'!BG1483)","v":"ZWO"}]
[{"$f":"IF('1. Order'!F1484=\"\",\"\",'1. Order'!F1484)","v":""},{"$f":"IF('1. Order'!G1484=\"\",\"\",'1. Order'!G1484)","v":""},{"$f":"IF('1. Order'!H1484=\"\",\"\",'1. Order'!H1484)","v":""},{"$f":"IF('1. Order'!I1484=\"\",\"\",'1. Order'!I1484)","v":""},{"$f":"IF('1. Order'!J1484=\"\",\"\",'1. Order'!J1484)","v":""},{"$f":"IF('1. Order'!K1484=\"\",\"\",'1. Order'!K1484)","v":""},{"$f":"IF('1. Order'!L1484=\"\",\"\",'1. Order'!L1484)","v":""},{"$f":"IF('1. Order'!M1484=\"\",\"\",'1. Order'!M1484)","v":""},{"$f":"IF('1. Order'!N1484=\"\",\"\",'1. Order'!N1484)","v":""},{"$f":"IF('1. Order'!O1484=\"\",\"\",'1. Order'!O1484)","v":{"$error":"#N/A"}},{"$f":"IF('1. Order'!P1484=\"\",\"\",'1. Order'!P1484)","v":{"$error":"#N/A"}},{"$f":"IF('1. Order'!Q1484=\"\",\"\",'1. Order'!Q1484)","v":""},{"$f":"IF('1. Order'!R1484=\"\",\"\",'1. Order'!R1484)","v":""},{"$f":"IF('1. Order'!S1484=\"\",\"\",'1. Order'!S1484)","v":""},{"$f":"IF('1. Order'!V1484=\"\",\"\",'1. Order'!V1484)","v":""},{"$f":"IF('1. Order'!W1484=\"\",\"\",'1. Order'!W1484)","v":""},{"$f":"IF('1. Order'!X1484=\"\",\"\",'1. Order'!X1484)","v":"EUR"},{"$f":"IF('1. Order'!Y1484=\"\",\"\",'1. Order'!Y1484)","v":""},{"$f":"IF('1. Order'!Z1484=\"\",\"\",'1. Order'!Z1484)","v":""},{"$f":"IF('1. Order'!AA1484=\"\",\"\",'1. Order'!AA1484)","v":""},null,{"$f":"IF('1. Order'!AS1484=\"\",\"\",'1. Order'!AS1484)","v":""},{"$f":"IF('1. Order'!AT1484=\"\",\"\",'1. Order'!AT1484)","v":""},null,null,null,null,null,null,null,{"$f":"IF('1. Order'!AX1484=\"\",\"\",'1. Order'!AX1484)","v":""},{"$f":"IF('1. Order'!AY1484=\"\",\"\",'1. Order'!AY1484)","v":""},{"$f":"IF('1. Order'!AZ1484=\"\",\"\",'1. Order'!AZ1484)","v":""},{"$f":"IF('1. Order'!BA1484=\"\",\"\",'1. Order'!BA1484)","v":""},{"$f":"IF('1. Order'!BC1484=\"\",\"\",'1. Order'!BC1484)","v":""},{"$f":"IF('1. Order'!BD1484=\"\",\"\",'1. Order'!BD1484)","v":6},{"$f":"IF('1. Order'!BE1484=\"\",\"\",'1. Order'!BE1484)","v":"None"},{"$f":"IF('1. Order'!BF1484=\"\",\"\",'1. Order'!BF1484)","v":"Parcel"},{"$f":"IF('1. Order'!BG1484=\"\",\"\",'1. Order'!BG1484)","v":"ZWO"}]
[{"$f":"IF('1. Order'!F1485=\"\",\"\",'1. Order'!F1485)","v":""},{"$f":"IF('1. Order'!G1485=\"\",\"\",'1. Order'!G1485)","v":""},{"$f":"IF('1. Order'!H1485=\"\",\"\",'1. Order'!H1485)","v":""},{"$f":"IF('1. Order'!I1485=\"\",\"\",'1. Order'!I1485)","v":""},{"$f":"IF('1. Order'!J1485=\"\",\"\",'1. Order'!J1485)","v":""},{"$f":"IF('1. Order'!K1485=\"\",\"\",'1. Order'!K1485)","v":""},{"$f":"IF('1. Order'!L1485=\"\",\"\",'1. Order'!L1485)","v":""},{"$f":"IF('1. Order'!M1485=\"\",\"\",'1. Order'!M1485)","v":""},{"$f":"IF('1. Order'!N1485=\"\",\"\",'1. Order'!N1485)","v":""},{"$f":"IF('1. Order'!O1485=\"\",\"\",'1. Order'!O1485)","v":{"$error":"#N/A"}},{"$f":"IF('1. Order'!P1485=\"\",\"\",'1. Order'!P1485)","v":{"$error":"#N/A"}},{"$f":"IF('1. Order'!Q1485=\"\",\"\",'1. Order'!Q1485)","v":""},{"$f":"IF('1. Order'!R1485=\"\",\"\",'1. Order'!R1485)","v":""},{"$f":"IF('1. Order'!S1485=\"\",\"\",'1. Order'!S1485)","v":""},{"$f":"IF('1. Order'!V1485=\"\",\"\",'1. Order'!V1485)","v":""},{"$f":"IF('1. Order'!W1485=\"\",\"\",'1. Order'!W1485)","v":""},{"$f":"IF('1. Order'!X1485=\"\",\"\",'1. Order'!X1485)","v":"EUR"},{"$f":"IF('1. Order'!Y1485=\"\",\"\",'1. Order'!Y1485)","v":""},{"$f":"IF('1. Order'!Z1485=\"\",\"\",'1. Order'!Z1485)","v":""},{"$f":"IF('1. Order'!AA1485=\"\",\"\",'1. Order'!AA1485)","v":""},null,{"$f":"IF('1. Order'!AS1485=\"\",\"\",'1. Order'!AS1485)","v":""},{"$f":"IF('1. Order'!AT1485=\"\",\"\",'1. Order'!AT1485)","v":""},null,null,null,null,null,null,null,{"$f":"IF('1. Order'!AX1485=\"\",\"\",'1. Order'!AX1485)","v":""},{"$f":"IF('1. Order'!AY1485=\"\",\"\",'1. Order'!AY1485)","v":""},{"$f":"IF('1. Order'!AZ1485=\"\",\"\",'1. Order'!AZ1485)","v":""},{"$f":"IF('1. Order'!BA1485=\"\",\"\",'1. Order'!BA1485)","v":""},{"$f":"IF('1. Order'!BC1485=\"\",\"\",'1. Order'!BC1485)","v":""},{"$f":"IF('1. Order'!BD1485=\"\",\"\",'1. Order'!BD1485)","v":6},{"$f":"IF('1. Order'!BE1485=\"\",\"\",'1. Order'!BE1485)","v":"None"},{"$f":"IF('1. Order'!BF1485=\"\",\"\",'1. Order'!BF1485)","v":"Parcel"},{"$f":"IF('1. Order'!BG1485=\"\",\"\",'1. Order'!BG1485)","v":"ZWO"}]
[{"$f":"IF('1. Order'!F1486=\"\",\"\",'1. Order'!F1486)","v":""},{"$f":"IF('1. Order'!G1486=\"\",\"\",'1. Order'!G1486)","v":""},{"$f":"IF('1. Order'!H1486=\"\",\"\",'1. Order'!H1486)","v":""},{"$f":"IF('1. Order'!I1486=\"\",\"\",'1. Order'!I1486)","v":""},{"$f":"IF('1. Order'!J1486=\"\",\"\",'1. Order'!J1486)","v":""},{"$f":"IF('1. Order'!K1486=\"\",\"\",'1. Order'!K1486)","v":""},{"$f":"IF('1. Order'!L1486=\"\",\"\",'1. Order'!L1486)","v":""},{"$f":"IF('1. Order'!M1486=\"\",\"\",'1. Order'!M1486)","v":""},{"$f":"IF('1. Order'!N1486=\"\",\"\",'1. Order'!N1486)","v":""},{"$f":"IF('1. Order'!O1486=\"\",\"\",'1. Order'!O1486)","v":{"$error":"#N/A"}},{"$f":"IF('1. Order'!P1486=\"\",\"\",'1. Order'!P1486)","v":{"$error":"#N/A"}},{"$f":"IF('1. Order'!Q1486=\"\",\"\",'1. Order'!Q1486)","v":""},{"$f":"IF('1. Order'!R1486=\"\",\"\",'1. Order'!R1486)","v":""},{"$f":"IF('1. Order'!S1486=\"\",\"\",'1. Order'!S1486)","v":""},{"$f":"IF('1. Order'!V1486=\"\",\"\",'1. Order'!V1486)","v":""},{"$f":"IF('1. Order'!W1486=\"\",\"\",'1. Order'!W1486)","v":""},{"$f":"IF('1. Order'!X1486=\"\",\"\",'1. Order'!X1486)","v":"EUR"},{"$f":"IF('1. Order'!Y1486=\"\",\"\",'1. Order'!Y1486)","v":""},{"$f":"IF('1. Order'!Z1486=\"\",\"\",'1. Order'!Z1486)","v":""},{"$f":"IF('1. Order'!AA1486=\"\",\"\",'1. Order'!AA1486)","v":""},null,{"$f":"IF('1. Order'!AS1486=\"\",\"\",'1. Order'!AS1486)","v":""},{"$f":"IF('1. Order'!AT1486=\"\",\"\",'1. Order'!AT1486)","v":""},null,null,null,null,null,null,null,{"$f":"IF('1. Order'!AX1486=\"\",\"\",'1. Order'!AX1486)","v":""},{"$f":"IF('1. Order'!AY1486=\"\",\"\",'1. Order'!AY1486)","v":""},{"$f":"IF('1. Order'!AZ1486=\"\",\"\",'1. Order'!AZ1486)","v":""},{"$f":"IF('1. Order'!BA1486=\"\",\"\",'1. Order'!BA1486)","v":""},{"$f":"IF('1. Order'!BC1486=\"\",\"\",'1. Order'!BC1486)","v":""},{"$f":"IF('1. Order'!BD1486=\"\",\"\",'1. Order'!BD1486)","v":6},{"$f":"IF('1. Order'!BE1486=\"\",\"\",'1. Order'!BE1486)","v":"None"},{"$f":"IF('1. Order'!BF1486=\"\",\"\",'1. Order'!BF1486)","v":"Parcel"},{"$f":"IF('1. Order'!BG1486=\"\",\"\",'1. Order'!BG1486)","v":"ZWO"}]
[{"$f":"IF('1. Order'!F1487=\"\",\"\",'1. Order'!F1487)","v":""},{"$f":"IF('1. Order'!G1487=\"\",\"\",'1. Order'!G1487)","v":""},{"$f":"IF('1. Order'!H1487=\"\",\"\",'1. Order'!H1487)","v":""},{"$f":"IF('1. Order'!I1487=\"\",\"\",'1. Order'!I1487)","v":""},{"$f":"IF('1. Order'!J1487=\"\",\"\",'1. Order'!J1487)","v":""},{"$f":"IF('1. Order'!K1487=\"\",\"\",'1. Order'!K1487)","v":""},{"$f":"IF('1. Order'!L1487=\"\",\"\",'1. Order'!L1487)","v":""},{"$f":"IF('1. Order'!M1487=\"\",\"\",'1. Order'!M1487)","v":""},{"$f":"IF('1. Order'!N1487=\"\",\"\",'1. Order'!N1487)","v":""},{"$f":"IF('1. Order'!O1487=\"\",\"\",'1. Order'!O1487)","v":{"$error":"#N/A"}},{"$f":"IF('1. Order'!P1487=\"\",\"\",'1. Order'!P1487)","v":{"$error":"#N/A"}},{"$f":"IF('1. Order'!Q1487=\"\",\"\",'1. Order'!Q1487)","v":""},{"$f":"IF('1. Order'!R1487=\"\",\"\",'1. Order'!R1487)","v":""},{"$f":"IF('1. Order'!S1487=\"\",\"\",'1. Order'!S1487)","v":""},{"$f":"IF('1. Order'!V1487=\"\",\"\",'1. Order'!V1487)","v":""},{"$f":"IF('1. Order'!W1487=\"\",\"\",'1. Order'!W1487)","v":""},{"$f":"IF('1. Order'!X1487=\"\",\"\",'1. Order'!X1487)","v":"EUR"},{"$f":"IF('1. Order'!Y1487=\"\",\"\",'1. Order'!Y1487)","v":""},{"$f":"IF('1. Order'!Z1487=\"\",\"\",'1. Order'!Z1487)","v":""},{"$f":"IF('1. Order'!AA1487=\"\",\"\",'1. Order'!AA1487)","v":""},null,{"$f":"IF('1. Order'!AS1487=\"\",\"\",'1. Order'!AS1487)","v":""},{"$f":"IF('1. Order'!AT1487=\"\",\"\",'1. Order'!AT1487)","v":""},null,null,null,null,null,null,null,{"$f":"IF('1. Order'!AX1487=\"\",\"\",'1. Order'!AX1487)","v":""},{"$f":"IF('1. Order'!AY1487=\"\",\"\",'1. Order'!AY1487)","v":""},{"$f":"IF('1. Order'!AZ1487=\"\",\"\",'1. Order'!AZ1487)","v":""},{"$f":"IF('1. Order'!BA1487=\"\",\"\",'1. Order'!BA1487)","v":""},{"$f":"IF('1. Order'!BC1487=\"\",\"\",'1. Order'!BC1487)","v":""},{"$f":"IF('1. Order'!BD1487=\"\",\"\",'1. Order'!BD1487)","v":6},{"$f":"IF('1. Order'!BE1487=\"\",\"\",'1. Order'!BE1487)","v":"None"},{"$f":"IF('1. Order'!BF1487=\"\",\"\",'1. Order'!BF1487)","v":"Parcel"},{"$f":"IF('1. Order'!BG1487=\"\",\"\",'1. Order'!BG1487)","v":"ZWO"}]
[{"$f":"IF('1. Order'!F1488=\"\",\"\",'1. Order'!F1488)","v":""},{"$f":"IF('1. Order'!G1488=\"\",\"\",'1. Order'!G1488)","v":""},{"$f":"IF('1. Order'!H1488=\"\",\"\",'1. Order'!H1488)","v":""},{"$f":"IF('1. Order'!I1488=\"\",\"\",'1. Order'!I1488)","v":""},{"$f":"IF('1. Order'!J1488=\"\",\"\",'1. Order'!J1488)","v":""},{"$f":"IF('1. Order'!K1488=\"\",\"\",'1. Order'!K1488)","v":""},{"$f":"IF('1. Order'!L1488=\"\",\"\",'1. Order'!L1488)","v":""},{"$f":"IF('1. Order'!M1488=\"\",\"\",'1. Order'!M1488)","v":""},{"$f":"IF('1. Order'!N1488=\"\",\"\",'1. Order'!N1488)","v":""},{"$f":"IF('1. Order'!O1488=\"\",\"\",'1. Order'!O1488)","v":{"$error":"#N/A"}},{"$f":"IF('1. Order'!P1488=\"\",\"\",'1. Order'!P1488)","v":{"$error":"#N/A"}},{"$f":"IF('1. Order'!Q1488=\"\",\"\",'1. Order'!Q1488)","v":""},{"$f":"IF('1. Order'!R1488=\"\",\"\",'1. Order'!R1488)","v":""},{"$f":"IF('1. Order'!S1488=\"\",\"\",'1. Order'!S1488)","v":""},{"$f":"IF('1. Order'!V1488=\"\",\"\",'1. Order'!V1488)","v":""},{"$f":"IF('1. Order'!W1488=\"\",\"\",'1. Order'!W1488)","v":""},{"$f":"IF('1. Order'!X1488=\"\",\"\",'1. Order'!X1488)","v":"EUR"},{"$f":"IF('1. Order'!Y1488=\"\",\"\",'1. Order'!Y1488)","v":""},{"$f":"IF('1. Order'!Z1488=\"\",\"\",'1. Order'!Z1488)","v":""},{"$f":"IF('1. Order'!AA1488=\"\",\"\",'1. Order'!AA1488)","v":""},null,{"$f":"IF('1. Order'!AS1488=\"\",\"\",'1. Order'!AS1488)","v":""},{"$f":"IF('1. Order'!AT1488=\"\",\"\",'1. Order'!AT1488)","v":""},null,null,null,null,null,null,null,{"$f":"IF('1. Order'!AX1488=\"\",\"\",'1. Order'!AX1488)","v":""},{"$f":"IF('1. Order'!AY1488=\"\",\"\",'1. Order'!AY1488)","v":""},{"$f":"IF('1. Order'!AZ1488=\"\",\"\",'1. Order'!AZ1488)","v":""},{"$f":"IF('1. Order'!BA1488=\"\",\"\",'1. Order'!BA1488)","v":""},{"$f":"IF('1. Order'!BC1488=\"\",\"\",'1. Order'!BC1488)","v":""},{"$f":"IF('1. Order'!BD1488=\"\",\"\",'1. Order'!BD1488)","v":6},{"$f":"IF('1. Order'!BE1488=\"\",\"\",'1. Order'!BE1488)","v":"None"},{"$f":"IF('1. Order'!BF1488=\"\",\"\",'1. Order'!BF1488)","v":"Parcel"},{"$f":"IF('1. Order'!BG1488=\"\",\"\",'1. Order'!BG1488)","v":"ZWO"}]
[{"$f":"IF('1. Order'!F1489=\"\",\"\",'1. Order'!F1489)","v":""},{"$f":"IF('1. Order'!G1489=\"\",\"\",'1. Order'!G1489)","v":""},{"$f":"IF('1. Order'!H1489=\"\",\"\",'1. Order'!H1489)","v":""},{"$f":"IF('1. Order'!I1489=\"\",\"\",'1. Order'!I1489)","v":""},{"$f":"IF('1. Order'!J1489=\"\",\"\",'1. Order'!J1489)","v":""},{"$f":"IF('1. Order'!K1489=\"\",\"\",'1. Order'!K1489)","v":""},{"$f":"IF('1. Order'!L1489=\"\",\"\",'1. Order'!L1489)","v":""},{"$f":"IF('1. Order'!M1489=\"\",\"\",'1. Order'!M1489)","v":""},{"$f":"IF('1. Order'!N1489=\"\",\"\",'1. Order'!N1489)","v":""},{"$f":"IF('1. Order'!O1489=\"\",\"\",'1. Order'!O1489)","v":{"$error":"#N/A"}},{"$f":"IF('1. Order'!P1489=\"\",\"\",'1. Order'!P1489)","v":{"$error":"#N/A"}},{"$f":"IF('1. Order'!Q1489=\"\",\"\",'1. Order'!Q1489)","v":""},{"$f":"IF('1. Order'!R1489=\"\",\"\",'1. Order'!R1489)","v":""},{"$f":"IF('1. Order'!S1489=\"\",\"\",'1. Order'!S1489)","v":""},{"$f":"IF('1. Order'!V1489=\"\",\"\",'1. Order'!V1489)","v":""},{"$f":"IF('1. Order'!W1489=\"\",\"\",'1. Order'!W1489)","v":""},{"$f":"IF('1. Order'!X1489=\"\",\"\",'1. Order'!X1489)","v":"EUR"},{"$f":"IF('1. Order'!Y1489=\"\",\"\",'1. Order'!Y1489)","v":""},{"$f":"IF('1. Order'!Z1489=\"\",\"\",'1. Order'!Z1489)","v":""},{"$f":"IF('1. Order'!AA1489=\"\",\"\",'1. Order'!AA1489)","v":""},null,{"$f":"IF('1. Order'!AS1489=\"\",\"\",'1. Order'!AS1489)","v":""},{"$f":"IF('1. Order'!AT1489=\"\",\"\",'1. Order'!AT1489)","v":""},null,null,null,null,null,null,null,{"$f":"IF('1. Order'!AX1489=\"\",\"\",'1. Order'!AX1489)","v":""},{"$f":"IF('1. Order'!AY1489=\"\",\"\",'1. Order'!AY1489)","v":""},{"$f":"IF('1. Order'!AZ1489=\"\",\"\",'1. Order'!AZ1489)","v":""},{"$f":"IF('1. Order'!BA1489=\"\",\"\",'1. Order'!BA1489)","v":""},{"$f":"IF('1. Order'!BC1489=\"\",\"\",'1. Order'!BC1489)","v":""},{"$f":"IF('1. Order'!BD1489=\"\",\"\",'1. Order'!BD1489)","v":6},{"$f":"IF('1. Order'!BE1489=\"\",\"\",'1. Order'!BE1489)","v":"None"},{"$f":"IF('1. Order'!BF1489=\"\",\"\",'1. Order'!BF1489)","v":"Parcel"},{"$f":"IF('1. Order'!BG1489=\"\",\"\",'1. Order'!BG1489)","v":"ZWO"}]
[{"$f":"IF('1. Order'!F1490=\"\",\"\",'1. Order'!F1490)","v":""},{"$f":"IF('1. Order'!G1490=\"\",\"\",'1. Order'!G1490)","v":""},{"$f":"IF('1. Order'!H1490=\"\",\"\",'1. Order'!H1490)","v":""},{"$f":"IF('1. Order'!I1490=\"\",\"\",'1. Order'!I1490)","v":""},{"$f":"IF('1. Order'!J1490=\"\",\"\",'1. Order'!J1490)","v":""},{"$f":"IF('1. Order'!K1490=\"\",\"\",'1. Order'!K1490)","v":""},{"$f":"IF('1. Order'!L1490=\"\",\"\",'1. Order'!L1490)","v":""},{"$f":"IF('1. Order'!M1490=\"\",\"\",'1. Order'!M1490)","v":""},{"$f":"IF('1. Order'!N1490=\"\",\"\",'1. Order'!N1490)","v":""},{"$f":"IF('1. Order'!O1490=\"\",\"\",'1. Order'!O1490)","v":{"$error":"#N/A"}},{"$f":"IF('1. Order'!P1490=\"\",\"\",'1. Order'!P1490)","v":{"$error":"#N/A"}},{"$f":"IF('1. Order'!Q1490=\"\",\"\",'1. Order'!Q1490)","v":""},{"$f":"IF('1. Order'!R1490=\"\",\"\",'1. Order'!R1490)","v":""},{"$f":"IF('1. Order'!S1490=\"\",\"\",'1. Order'!S1490)","v":""},{"$f":"IF('1. Order'!V1490=\"\",\"\",'1. Order'!V1490)","v":""},{"$f":"IF('1. Order'!W1490=\"\",\"\",'1. Order'!W1490)","v":""},{"$f":"IF('1. Order'!X1490=\"\",\"\",'1. Order'!X1490)","v":"EUR"},{"$f":"IF('1. Order'!Y1490=\"\",\"\",'1. Order'!Y1490)","v":""},{"$f":"IF('1. Order'!Z1490=\"\",\"\",'1. Order'!Z1490)","v":""},{"$f":"IF('1. Order'!AA1490=\"\",\"\",'1. Order'!AA1490)","v":""},null,{"$f":"IF('1. Order'!AS1490=\"\",\"\",'1. Order'!AS1490)","v":""},{"$f":"IF('1. Order'!AT1490=\"\",\"\",'1. Order'!AT1490)","v":""},null,null,null,null,null,null,null,{"$f":"IF('1. Order'!AX1490=\"\",\"\",'1. Order'!AX1490)","v":""},{"$f":"IF('1. Order'!AY1490=\"\",\"\",'1. Order'!AY1490)","v":""},{"$f":"IF('1. Order'!AZ1490=\"\",\"\",'1. Order'!AZ1490)","v":""},{"$f":"IF('1. Order'!BA1490=\"\",\"\",'1. Order'!BA1490)","v":""},{"$f":"IF('1. Order'!BC1490=\"\",\"\",'1. Order'!BC1490)","v":""},{"$f":"IF('1. Order'!BD1490=\"\",\"\",'1. Order'!BD1490)","v":6},{"$f":"IF('1. Order'!BE1490=\"\",\"\",'1. Order'!BE1490)","v":"None"},{"$f":"IF('1. Order'!BF1490=\"\",\"\",'1. Order'!BF1490)","v":"Parcel"},{"$f":"IF('1. Order'!BG1490=\"\",\"\",'1. Order'!BG1490)","v":"ZWO"}]
[{"$f":"IF('1. Order'!F1491=\"\",\"\",'1. Order'!F1491)","v":""},{"$f":"IF('1. Order'!G1491=\"\",\"\",'1. Order'!G1491)","v":""},{"$f":"IF('1. Order'!H1491=\"\",\"\",'1. Order'!H1491)","v":""},{"$f":"IF('1. Order'!I1491=\"\",\"\",'1. Order'!I1491)","v":""},{"$f":"IF('1. Order'!J1491=\"\",\"\",'1. Order'!J1491)","v":""},{"$f":"IF('1. Order'!K1491=\"\",\"\",'1. Order'!K1491)","v":""},{"$f":"IF('1. Order'!L1491=\"\",\"\",'1. Order'!L1491)","v":""},{"$f":"IF('1. Order'!M1491=\"\",\"\",'1. Order'!M1491)","v":""},{"$f":"IF('1. Order'!N1491=\"\",\"\",'1. Order'!N1491)","v":""},{"$f":"IF('1. Order'!O1491=\"\",\"\",'1. Order'!O1491)","v":{"$error":"#N/A"}},{"$f":"IF('1. Order'!P1491=\"\",\"\",'1. Order'!P1491)","v":{"$error":"#N/A"}},{"$f":"IF('1. Order'!Q1491=\"\",\"\",'1. Order'!Q1491)","v":""},{"$f":"IF('1. Order'!R1491=\"\",\"\",'1. Order'!R1491)","v":""},{"$f":"IF('1. Order'!S1491=\"\",\"\",'1. Order'!S1491)","v":""},{"$f":"IF('1. Order'!V1491=\"\",\"\",'1. Order'!V1491)","v":""},{"$f":"IF('1. Order'!W1491=\"\",\"\",'1. Order'!W1491)","v":""},{"$f":"IF('1. Order'!X1491=\"\",\"\",'1. Order'!X1491)","v":"EUR"},{"$f":"IF('1. Order'!Y1491=\"\",\"\",'1. Order'!Y1491)","v":""},{"$f":"IF('1. Order'!Z1491=\"\",\"\",'1. Order'!Z1491)","v":""},{"$f":"IF('1. Order'!AA1491=\"\",\"\",'1. Order'!AA1491)","v":""},null,{"$f":"IF('1. Order'!AS1491=\"\",\"\",'1. Order'!AS1491)","v":""},{"$f":"IF('1. Order'!AT1491=\"\",\"\",'1. Order'!AT1491)","v":""},null,null,null,null,null,null,null,{"$f":"IF('1. Order'!AX1491=\"\",\"\",'1. Order'!AX1491)","v":""},{"$f":"IF('1. Order'!AY1491=\"\",\"\",'1. Order'!AY1491)","v":""},{"$f":"IF('1. Order'!AZ1491=\"\",\"\",'1. Order'!AZ1491)","v":""},{"$f":"IF('1. Order'!BA1491=\"\",\"\",'1. Order'!BA1491)","v":""},{"$f":"IF('1. Order'!BC1491=\"\",\"\",'1. Order'!BC1491)","v":""},{"$f":"IF('1. Order'!BD1491=\"\",\"\",'1. Order'!BD1491)","v":6},{"$f":"IF('1. Order'!BE1491=\"\",\"\",'1. Order'!BE1491)","v":"None"},{"$f":"IF('1. Order'!BF1491=\"\",\"\",'1. Order'!BF1491)","v":"Parcel"},{"$f":"IF('1. Order'!BG1491=\"\",\"\",'1. Order'!BG1491)","v":"ZWO"}]
[{"$f":"IF('1. Order'!F1492=\"\",\"\",'1. Order'!F1492)","v":""},{"$f":"IF('1. Order'!G1492=\"\",\"\",'1. Order'!G1492)","v":""},{"$f":"IF('1. Order'!H1492=\"\",\"\",'1. Order'!H1492)","v":""},{"$f":"IF('1. Order'!I1492=\"\",\"\",'1. Order'!I1492)","v":""},{"$f":"IF('1. Order'!J1492=\"\",\"\",'1. Order'!J1492)","v":""},{"$f":"IF('1. Order'!K1492=\"\",\"\",'1. Order'!K1492)","v":""},{"$f":"IF('1. Order'!L1492=\"\",\"\",'1. Order'!L1492)","v":""},{"$f":"IF('1. Order'!M1492=\"\",\"\",'1. Order'!M1492)","v":""},{"$f":"IF('1. Order'!N1492=\"\",\"\",'1. Order'!N1492)","v":""},{"$f":"IF('1. Order'!O1492=\"\",\"\",'1. Order'!O1492)","v":{"$error":"#N/A"}},{"$f":"IF('1. Order'!P1492=\"\",\"\",'1. Order'!P1492)","v":{"$error":"#N/A"}},{"$f":"IF('1. Order'!Q1492=\"\",\"\",'1. Order'!Q1492)","v":""},{"$f":"IF('1. Order'!R1492=\"\",\"\",'1. Order'!R1492)","v":""},{"$f":"IF('1. Order'!S1492=\"\",\"\",'1. Order'!S1492)","v":""},{"$f":"IF('1. Order'!V1492=\"\",\"\",'1. Order'!V1492)","v":""},{"$f":"IF('1. Order'!W1492=\"\",\"\",'1. Order'!W1492)","v":""},{"$f":"IF('1. Order'!X1492=\"\",\"\",'1. Order'!X1492)","v":"EUR"},{"$f":"IF('1. Order'!Y1492=\"\",\"\",'1. Order'!Y1492)","v":""},{"$f":"IF('1. Order'!Z1492=\"\",\"\",'1. Order'!Z1492)","v":""},{"$f":"IF('1. Order'!AA1492=\"\",\"\",'1. Order'!AA1492)","v":""},null,{"$f":"IF('1. Order'!AS1492=\"\",\"\",'1. Order'!AS1492)","v":""},{"$f":"IF('1. Order'!AT1492=\"\",\"\",'1. Order'!AT1492)","v":""},null,null,null,null,null,null,null,{"$f":"IF('1. Order'!AX1492=\"\",\"\",'1. Order'!AX1492)","v":""},{"$f":"IF('1. Order'!AY1492=\"\",\"\",'1. Order'!AY1492)","v":""},{"$f":"IF('1. Order'!AZ1492=\"\",\"\",'1. Order'!AZ1492)","v":""},{"$f":"IF('1. Order'!BA1492=\"\",\"\",'1. Order'!BA1492)","v":""},{"$f":"IF('1. Order'!BC1492=\"\",\"\",'1. Order'!BC1492)","v":""},{"$f":"IF('1. Order'!BD1492=\"\",\"\",'1. Order'!BD1492)","v":6},{"$f":"IF('1. Order'!BE1492=\"\",\"\",'1. Order'!BE1492)","v":"None"},{"$f":"IF('1. Order'!BF1492=\"\",\"\",'1. Order'!BF1492)","v":"Parcel"},{"$f":"IF('1. Order'!BG1492=\"\",\"\",'1. Order'!BG1492)","v":"ZWO"}]
[{"$f":"IF('1. Order'!F1493=\"\",\"\",'1. Order'!F1493)","v":""},{"$f":"IF('1. Order'!G1493=\"\",\"\",'1. Order'!G1493)","v":""},{"$f":"IF('1. Order'!H1493=\"\",\"\",'1. Order'!H1493)","v":""},{"$f":"IF('1. Order'!I1493=\"\",\"\",'1. Order'!I1493)","v":""},{"$f":"IF('1. Order'!J1493=\"\",\"\",'1. Order'!J1493)","v":""},{"$f":"IF('1. Order'!K1493=\"\",\"\",'1. Order'!K1493)","v":""},{"$f":"IF('1. Order'!L1493=\"\",\"\",'1. Order'!L1493)","v":""},{"$f":"IF('1. Order'!M1493=\"\",\"\",'1. Order'!M1493)","v":""},{"$f":"IF('1. Order'!N1493=\"\",\"\",'1. Order'!N1493)","v":""},{"$f":"IF('1. Order'!O1493=\"\",\"\",'1. Order'!O1493)","v":{"$error":"#N/A"}},{"$f":"IF('1. Order'!P1493=\"\",\"\",'1. Order'!P1493)","v":{"$error":"#N/A"}},{"$f":"IF('1. Order'!Q1493=\"\",\"\",'1. Order'!Q1493)","v":""},{"$f":"IF('1. Order'!R1493=\"\",\"\",'1. Order'!R1493)","v":""},{"$f":"IF('1. Order'!S1493=\"\",\"\",'1. Order'!S1493)","v":""},{"$f":"IF('1. Order'!V1493=\"\",\"\",'1. Order'!V1493)","v":""},{"$f":"IF('1. Order'!W1493=\"\",\"\",'1. Order'!W1493)","v":""},{"$f":"IF('1. Order'!X1493=\"\",\"\",'1. Order'!X1493)","v":"EUR"},{"$f":"IF('1. Order'!Y1493=\"\",\"\",'1. Order'!Y1493)","v":""},{"$f":"IF('1. Order'!Z1493=\"\",\"\",'1. Order'!Z1493)","v":""},{"$f":"IF('1. Order'!AA1493=\"\",\"\",'1. Order'!AA1493)","v":""},null,{"$f":"IF('1. Order'!AS1493=\"\",\"\",'1. Order'!AS1493)","v":""},{"$f":"IF('1. Order'!AT1493=\"\",\"\",'1. Order'!AT1493)","v":""},null,null,null,null,null,null,null,{"$f":"IF('1. Order'!AX1493=\"\",\"\",'1. Order'!AX1493)","v":""},{"$f":"IF('1. Order'!AY1493=\"\",\"\",'1. Order'!AY1493)","v":""},{"$f":"IF('1. Order'!AZ1493=\"\",\"\",'1. Order'!AZ1493)","v":""},{"$f":"IF('1. Order'!BA1493=\"\",\"\",'1. Order'!BA1493)","v":""},{"$f":"IF('1. Order'!BC1493=\"\",\"\",'1. Order'!BC1493)","v":""},{"$f":"IF('1. Order'!BD1493=\"\",\"\",'1. Order'!BD1493)","v":6},{"$f":"IF('1. Order'!BE1493=\"\",\"\",'1. Order'!BE1493)","v":"None"},{"$f":"IF('1. Order'!BF1493=\"\",\"\",'1. Order'!BF1493)","v":"Parcel"},{"$f":"IF('1. Order'!BG1493=\"\",\"\",'1. Order'!BG1493)","v":"ZWO"}]
[{"$f":"IF('1. Order'!F1494=\"\",\"\",'1. Order'!F1494)","v":""},{"$f":"IF('1. Order'!G1494=\"\",\"\",'1. Order'!G1494)","v":""},{"$f":"IF('1. Order'!H1494=\"\",\"\",'1. Order'!H1494)","v":""},{"$f":"IF('1. Order'!I1494=\"\",\"\",'1. Order'!I1494)","v":""},{"$f":"IF('1. Order'!J1494=\"\",\"\",'1. Order'!J1494)","v":""},{"$f":"IF('1. Order'!K1494=\"\",\"\",'1. Order'!K1494)","v":""},{"$f":"IF('1. Order'!L1494=\"\",\"\",'1. Order'!L1494)","v":""},{"$f":"IF('1. Order'!M1494=\"\",\"\",'1. Order'!M1494)","v":""},{"$f":"IF('1. Order'!N1494=\"\",\"\",'1. Order'!N1494)","v":""},{"$f":"IF('1. Order'!O1494=\"\",\"\",'1. Order'!O1494)","v":{"$error":"#N/A"}},{"$f":"IF('1. Order'!P1494=\"\",\"\",'1. Order'!P1494)","v":{"$error":"#N/A"}},{"$f":"IF('1. Order'!Q1494=\"\",\"\",'1. Order'!Q1494)","v":""},{"$f":"IF('1. Order'!R1494=\"\",\"\",'1. Order'!R1494)","v":""},{"$f":"IF('1. Order'!S1494=\"\",\"\",'1. Order'!S1494)","v":""},{"$f":"IF('1. Order'!V1494=\"\",\"\",'1. Order'!V1494)","v":""},{"$f":"IF('1. Order'!W1494=\"\",\"\",'1. Order'!W1494)","v":""},{"$f":"IF('1. Order'!X1494=\"\",\"\",'1. Order'!X1494)","v":"EUR"},{"$f":"IF('1. Order'!Y1494=\"\",\"\",'1. Order'!Y1494)","v":""},{"$f":"IF('1. Order'!Z1494=\"\",\"\",'1. Order'!Z1494)","v":""},{"$f":"IF('1. Order'!AA1494=\"\",\"\",'1. Order'!AA1494)","v":""},null,{"$f":"IF('1. Order'!AS1494=\"\",\"\",'1. Order'!AS1494)","v":""},{"$f":"IF('1. Order'!AT1494=\"\",\"\",'1. Order'!AT1494)","v":""},null,null,null,null,null,null,null,{"$f":"IF('1. Order'!AX1494=\"\",\"\",'1. Order'!AX1494)","v":""},{"$f":"IF('1. Order'!AY1494=\"\",\"\",'1. Order'!AY1494)","v":""},{"$f":"IF('1. Order'!AZ1494=\"\",\"\",'1. Order'!AZ1494)","v":""},{"$f":"IF('1. Order'!BA1494=\"\",\"\",'1. Order'!BA1494)","v":""},{"$f":"IF('1. Order'!BC1494=\"\",\"\",'1. Order'!BC1494)","v":""},{"$f":"IF('1. Order'!BD1494=\"\",\"\",'1. Order'!BD1494)","v":6},{"$f":"IF('1. Order'!BE1494=\"\",\"\",'1. Order'!BE1494)","v":"None"},{"$f":"IF('1. Order'!BF1494=\"\",\"\",'1. Order'!BF1494)","v":"Parcel"},{"$f":"IF('1. Order'!BG1494=\"\",\"\",'1. Order'!BG1494)","v":"ZWO"}]
[{"$f":"IF('1. Order'!F1495=\"\",\"\",'1. Order'!F1495)","v":""},{"$f":"IF('1. Order'!G1495=\"\",\"\",'1. Order'!G1495)","v":""},{"$f":"IF('1. Order'!H1495=\"\",\"\",'1. Order'!H1495)","v":""},{"$f":"IF('1. Order'!I1495=\"\",\"\",'1. Order'!I1495)","v":""},{"$f":"IF('1. Order'!J1495=\"\",\"\",'1. Order'!J1495)","v":""},{"$f":"IF('1. Order'!K1495=\"\",\"\",'1. Order'!K1495)","v":""},{"$f":"IF('1. Order'!L1495=\"\",\"\",'1. Order'!L1495)","v":""},{"$f":"IF('1. Order'!M1495=\"\",\"\",'1. Order'!M1495)","v":""},{"$f":"IF('1. Order'!N1495=\"\",\"\",'1. Order'!N1495)","v":""},{"$f":"IF('1. Order'!O1495=\"\",\"\",'1. Order'!O1495)","v":{"$error":"#N/A"}},{"$f":"IF('1. Order'!P1495=\"\",\"\",'1. Order'!P1495)","v":{"$error":"#N/A"}},{"$f":"IF('1. Order'!Q1495=\"\",\"\",'1. Order'!Q1495)","v":""},{"$f":"IF('1. Order'!R1495=\"\",\"\",'1. Order'!R1495)","v":""},{"$f":"IF('1. Order'!S1495=\"\",\"\",'1. Order'!S1495)","v":""},{"$f":"IF('1. Order'!V1495=\"\",\"\",'1. Order'!V1495)","v":""},{"$f":"IF('1. Order'!W1495=\"\",\"\",'1. Order'!W1495)","v":""},{"$f":"IF('1. Order'!X1495=\"\",\"\",'1. Order'!X1495)","v":"EUR"},{"$f":"IF('1. Order'!Y1495=\"\",\"\",'1. Order'!Y1495)","v":""},{"$f":"IF('1. Order'!Z1495=\"\",\"\",'1. Order'!Z1495)","v":""},{"$f":"IF('1. Order'!AA1495=\"\",\"\",'1. Order'!AA1495)","v":""},null,{"$f":"IF('1. Order'!AS1495=\"\",\"\",'1. Order'!AS1495)","v":""},{"$f":"IF('1. Order'!AT1495=\"\",\"\",'1. Order'!AT1495)","v":""},null,null,null,null,null,null,null,{"$f":"IF('1. Order'!AX1495=\"\",\"\",'1. Order'!AX1495)","v":""},{"$f":"IF('1. Order'!AY1495=\"\",\"\",'1. Order'!AY1495)","v":""},{"$f":"IF('1. Order'!AZ1495=\"\",\"\",'1. Order'!AZ1495)","v":""},{"$f":"IF('1. Order'!BA1495=\"\",\"\",'1. Order'!BA1495)","v":""},{"$f":"IF('1. Order'!BC1495=\"\",\"\",'1. Order'!BC1495)","v":""},{"$f":"IF('1. Order'!BD1495=\"\",\"\",'1. Order'!BD1495)","v":6},{"$f":"IF('1. Order'!BE1495=\"\",\"\",'1. Order'!BE1495)","v":"None"},{"$f":"IF('1. Order'!BF1495=\"\",\"\",'1. Order'!BF1495)","v":"Parcel"},{"$f":"IF('1. Order'!BG1495=\"\",\"\",'1. Order'!BG1495)","v":"ZWO"}]
[{"$f":"IF('1. Order'!F1496=\"\",\"\",'1. Order'!F1496)","v":""},{"$f":"IF('1. Order'!G1496=\"\",\"\",'1. Order'!G1496)","v":""},{"$f":"IF('1. Order'!H1496=\"\",\"\",'1. Order'!H1496)","v":""},{"$f":"IF('1. Order'!I1496=\"\",\"\",'1. Order'!I1496)","v":""},{"$f":"IF('1. Order'!J1496=\"\",\"\",'1. Order'!J1496)","v":""},{"$f":"IF('1. Order'!K1496=\"\",\"\",'1. Order'!K1496)","v":""},{"$f":"IF('1. Order'!L1496=\"\",\"\",'1. Order'!L1496)","v":""},{"$f":"IF('1. Order'!M1496=\"\",\"\",'1. Order'!M1496)","v":""},{"$f":"IF('1. Order'!N1496=\"\",\"\",'1. Order'!N1496)","v":""},{"$f":"IF('1. Order'!O1496=\"\",\"\",'1. Order'!O1496)","v":{"$error":"#N/A"}},{"$f":"IF('1. Order'!P1496=\"\",\"\",'1. Order'!P1496)","v":{"$error":"#N/A"}},{"$f":"IF('1. Order'!Q1496=\"\",\"\",'1. Order'!Q1496)","v":""},{"$f":"IF('1. Order'!R1496=\"\",\"\",'1. Order'!R1496)","v":""},{"$f":"IF('1. Order'!S1496=\"\",\"\",'1. Order'!S1496)","v":""},{"$f":"IF('1. Order'!V1496=\"\",\"\",'1. Order'!V1496)","v":""},{"$f":"IF('1. Order'!W1496=\"\",\"\",'1. Order'!W1496)","v":""},{"$f":"IF('1. Order'!X1496=\"\",\"\",'1. Order'!X1496)","v":"EUR"},{"$f":"IF('1. Order'!Y1496=\"\",\"\",'1. Order'!Y1496)","v":""},{"$f":"IF('1. Order'!Z1496=\"\",\"\",'1. Order'!Z1496)","v":""},{"$f":"IF('1. Order'!AA1496=\"\",\"\",'1. Order'!AA1496)","v":""},null,{"$f":"IF('1. Order'!AS1496=\"\",\"\",'1. Order'!AS1496)","v":""},{"$f":"IF('1. Order'!AT1496=\"\",\"\",'1. Order'!AT1496)","v":""},null,null,null,null,null,null,null,{"$f":"IF('1. Order'!AX1496=\"\",\"\",'1. Order'!AX1496)","v":""},{"$f":"IF('1. Order'!AY1496=\"\",\"\",'1. Order'!AY1496)","v":""},{"$f":"IF('1. Order'!AZ1496=\"\",\"\",'1. Order'!AZ1496)","v":""},{"$f":"IF('1. Order'!BA1496=\"\",\"\",'1. Order'!BA1496)","v":""},{"$f":"IF('1. Order'!BC1496=\"\",\"\",'1. Order'!BC1496)","v":""},{"$f":"IF('1. Order'!BD1496=\"\",\"\",'1. Order'!BD1496)","v":6},{"$f":"IF('1. Order'!BE1496=\"\",\"\",'1. Order'!BE1496)","v":"None"},{"$f":"IF('1. Order'!BF1496=\"\",\"\",'1. Order'!BF1496)","v":"Parcel"},{"$f":"IF('1. Order'!BG1496=\"\",\"\",'1. Order'!BG1496)","v":"ZWO"}]
[{"$f":"IF('1. Order'!F1497=\"\",\"\",'1. Order'!F1497)","v":""},{"$f":"IF('1. Order'!G1497=\"\",\"\",'1. Order'!G1497)","v":""},{"$f":"IF('1. Order'!H1497=\"\",\"\",'1. Order'!H1497)","v":""},{"$f":"IF('1. Order'!I1497=\"\",\"\",'1. Order'!I1497)","v":""},{"$f":"IF('1. Order'!J1497=\"\",\"\",'1. Order'!J1497)","v":""},{"$f":"IF('1. Order'!K1497=\"\",\"\",'1. Order'!K1497)","v":""},{"$f":"IF('1. Order'!L1497=\"\",\"\",'1. Order'!L1497)","v":""},{"$f":"IF('1. Order'!M1497=\"\",\"\",'1. Order'!M1497)","v":""},{"$f":"IF('1. Order'!N1497=\"\",\"\",'1. Order'!N1497)","v":""},{"$f":"IF('1. Order'!O1497=\"\",\"\",'1. Order'!O1497)","v":{"$error":"#N/A"}},{"$f":"IF('1. Order'!P1497=\"\",\"\",'1. Order'!P1497)","v":{"$error":"#N/A"}},{"$f":"IF('1. Order'!Q1497=\"\",\"\",'1. Order'!Q1497)","v":""},{"$f":"IF('1. Order'!R1497=\"\",\"\",'1. Order'!R1497)","v":""},{"$f":"IF('1. Order'!S1497=\"\",\"\",'1. Order'!S1497)","v":""},{"$f":"IF('1. Order'!V1497=\"\",\"\",'1. Order'!V1497)","v":""},{"$f":"IF('1. Order'!W1497=\"\",\"\",'1. Order'!W1497)","v":""},{"$f":"IF('1. Order'!X1497=\"\",\"\",'1. Order'!X1497)","v":"EUR"},{"$f":"IF('1. Order'!Y1497=\"\",\"\",'1. Order'!Y1497)","v":""},{"$f":"IF('1. Order'!Z1497=\"\",\"\",'1. Order'!Z1497)","v":""},{"$f":"IF('1. Order'!AA1497=\"\",\"\",'1. Order'!AA1497)","v":""},null,{"$f":"IF('1. Order'!AS1497=\"\",\"\",'1. Order'!AS1497)","v":""},{"$f":"IF('1. Order'!AT1497=\"\",\"\",'1. Order'!AT1497)","v":""},null,null,null,null,null,null,null,{"$f":"IF('1. Order'!AX1497=\"\",\"\",'1. Order'!AX1497)","v":""},{"$f":"IF('1. Order'!AY1497=\"\",\"\",'1. Order'!AY1497)","v":""},{"$f":"IF('1. Order'!AZ1497=\"\",\"\",'1. Order'!AZ1497)","v":""},{"$f":"IF('1. Order'!BA1497=\"\",\"\",'1. Order'!BA1497)","v":""},{"$f":"IF('1. Order'!BC1497=\"\",\"\",'1. Order'!BC1497)","v":""},{"$f":"IF('1. Order'!BD1497=\"\",\"\",'1. Order'!BD1497)","v":6},{"$f":"IF('1. Order'!BE1497=\"\",\"\",'1. Order'!BE1497)","v":"None"},{"$f":"IF('1. Order'!BF1497=\"\",\"\",'1. Order'!BF1497)","v":"Parcel"},{"$f":"IF('1. Order'!BG1497=\"\",\"\",'1. Order'!BG1497)","v":"ZWO"}]
[{"$f":"IF('1. Order'!F1498=\"\",\"\",'1. Order'!F1498)","v":""},{"$f":"IF('1. Order'!G1498=\"\",\"\",'1. Order'!G1498)","v":""},{"$f":"IF('1. Order'!H1498=\"\",\"\",'1. Order'!H1498)","v":""},{"$f":"IF('1. Order'!I1498=\"\",\"\",'1. Order'!I1498)","v":""},{"$f":"IF('1. Order'!J1498=\"\",\"\",'1. Order'!J1498)","v":""},{"$f":"IF('1. Order'!K1498=\"\",\"\",'1. Order'!K1498)","v":""},{"$f":"IF('1. Order'!L1498=\"\",\"\",'1. Order'!L1498)","v":""},{"$f":"IF('1. Order'!M1498=\"\",\"\",'1. Order'!M1498)","v":""},{"$f":"IF('1. Order'!N1498=\"\",\"\",'1. Order'!N1498)","v":""},{"$f":"IF('1. Order'!O1498=\"\",\"\",'1. Order'!O1498)","v":{"$error":"#N/A"}},{"$f":"IF('1. Order'!P1498=\"\",\"\",'1. Order'!P1498)","v":{"$error":"#N/A"}},{"$f":"IF('1. Order'!Q1498=\"\",\"\",'1. Order'!Q1498)","v":""},{"$f":"IF('1. Order'!R1498=\"\",\"\",'1. Order'!R1498)","v":""},{"$f":"IF('1. Order'!S1498=\"\",\"\",'1. Order'!S1498)","v":""},{"$f":"IF('1. Order'!V1498=\"\",\"\",'1. Order'!V1498)","v":""},{"$f":"IF('1. Order'!W1498=\"\",\"\",'1. Order'!W1498)","v":""},{"$f":"IF('1. Order'!X1498=\"\",\"\",'1. Order'!X1498)","v":"EUR"},{"$f":"IF('1. Order'!Y1498=\"\",\"\",'1. Order'!Y1498)","v":""},{"$f":"IF('1. Order'!Z1498=\"\",\"\",'1. Order'!Z1498)","v":""},{"$f":"IF('1. Order'!AA1498=\"\",\"\",'1. Order'!AA1498)","v":""},null,{"$f":"IF('1. Order'!AS1498=\"\",\"\",'1. Order'!AS1498)","v":""},{"$f":"IF('1. Order'!AT1498=\"\",\"\",'1. Order'!AT1498)","v":""},null,null,null,null,null,null,null,{"$f":"IF('1. Order'!AX1498=\"\",\"\",'1. Order'!AX1498)","v":""},{"$f":"IF('1. Order'!AY1498=\"\",\"\",'1. Order'!AY1498)","v":""},{"$f":"IF('1. Order'!AZ1498=\"\",\"\",'1. Order'!AZ1498)","v":""},{"$f":"IF('1. Order'!BA1498=\"\",\"\",'1. Order'!BA1498)","v":""},{"$f":"IF('1. Order'!BC1498=\"\",\"\",'1. Order'!BC1498)","v":""},{"$f":"IF('1. Order'!BD1498=\"\",\"\",'1. Order'!BD1498)","v":6},{"$f":"IF('1. Order'!BE1498=\"\",\"\",'1. Order'!BE1498)","v":"None"},{"$f":"IF('1. Order'!BF1498=\"\",\"\",'1. Order'!BF1498)","v":"Parcel"},{"$f":"IF('1. Order'!BG1498=\"\",\"\",'1. Order'!BG1498)","v":"ZWO"}]
[{"$f":"IF('1. Order'!F1499=\"\",\"\",'1. Order'!F1499)","v":""},{"$f":"IF('1. Order'!G1499=\"\",\"\",'1. Order'!G1499)","v":""},{"$f":"IF('1. Order'!H1499=\"\",\"\",'1. Order'!H1499)","v":""},{"$f":"IF('1. Order'!I1499=\"\",\"\",'1. Order'!I1499)","v":""},{"$f":"IF('1. Order'!J1499=\"\",\"\",'1. Order'!J1499)","v":""},{"$f":"IF('1. Order'!K1499=\"\",\"\",'1. Order'!K1499)","v":""},{"$f":"IF('1. Order'!L1499=\"\",\"\",'1. Order'!L1499)","v":""},{"$f":"IF('1. Order'!M1499=\"\",\"\",'1. Order'!M1499)","v":""},{"$f":"IF('1. Order'!N1499=\"\",\"\",'1. Order'!N1499)","v":""},{"$f":"IF('1. Order'!O1499=\"\",\"\",'1. Order'!O1499)","v":{"$error":"#N/A"}},{"$f":"IF('1. Order'!P1499=\"\",\"\",'1. Order'!P1499)","v":{"$error":"#N/A"}},{"$f":"IF('1. Order'!Q1499=\"\",\"\",'1. Order'!Q1499)","v":""},{"$f":"IF('1. Order'!R1499=\"\",\"\",'1. Order'!R1499)","v":""},{"$f":"IF('1. Order'!S1499=\"\",\"\",'1. Order'!S1499)","v":""},{"$f":"IF('1. Order'!V1499=\"\",\"\",'1. Order'!V1499)","v":""},{"$f":"IF('1. Order'!W1499=\"\",\"\",'1. Order'!W1499)","v":""},{"$f":"IF('1. Order'!X1499=\"\",\"\",'1. Order'!X1499)","v":"EUR"},{"$f":"IF('1. Order'!Y1499=\"\",\"\",'1. Order'!Y1499)","v":""},{"$f":"IF('1. Order'!Z1499=\"\",\"\",'1. Order'!Z1499)","v":""},{"$f":"IF('1. Order'!AA1499=\"\",\"\",'1. Order'!AA1499)","v":""},null,{"$f":"IF('1. Order'!AS1499=\"\",\"\",'1. Order'!AS1499)","v":""},{"$f":"IF('1. Order'!AT1499=\"\",\"\",'1. Order'!AT1499)","v":""},null,null,null,null,null,null,null,{"$f":"IF('1. Order'!AX1499=\"\",\"\",'1. Order'!AX1499)","v":""},{"$f":"IF('1. Order'!AY1499=\"\",\"\",'1. Order'!AY1499)","v":""},{"$f":"IF('1. Order'!AZ1499=\"\",\"\",'1. Order'!AZ1499)","v":""},{"$f":"IF('1. Order'!BA1499=\"\",\"\",'1. Order'!BA1499)","v":""},{"$f":"IF('1. Order'!BC1499=\"\",\"\",'1. Order'!BC1499)","v":""},{"$f":"IF('1. Order'!BD1499=\"\",\"\",'1. Order'!BD1499)","v":6},{"$f":"IF('1. Order'!BE1499=\"\",\"\",'1. Order'!BE1499)","v":"None"},{"$f":"IF('1. Order'!BF1499=\"\",\"\",'1. Order'!BF1499)","v":"Parcel"},{"$f":"IF('1. Order'!BG1499=\"\",\"\",'1. Order'!BG1499)","v":"ZWO"}]
[{"$f":"IF('1. Order'!F1500=\"\",\"\",'1. Order'!F1500)","v":""},{"$f":"IF('1. Order'!G1500=\"\",\"\",'1. Order'!G1500)","v":""},{"$f":"IF('1. Order'!H1500=\"\",\"\",'1. Order'!H1500)","v":""},{"$f":"IF('1. Order'!I1500=\"\",\"\",'1. Order'!I1500)","v":""},{"$f":"IF('1. Order'!J1500=\"\",\"\",'1. Order'!J1500)","v":""},{"$f":"IF('1. Order'!K1500=\"\",\"\",'1. Order'!K1500)","v":""},{"$f":"IF('1. Order'!L1500=\"\",\"\",'1. Order'!L1500)","v":""},{"$f":"IF('1. Order'!M1500=\"\",\"\",'1. Order'!M1500)","v":""},{"$f":"IF('1. Order'!N1500=\"\",\"\",'1. Order'!N1500)","v":""},{"$f":"IF('1. Order'!O1500=\"\",\"\",'1. Order'!O1500)","v":{"$error":"#N/A"}},{"$f":"IF('1. Order'!P1500=\"\",\"\",'1. Order'!P1500)","v":{"$error":"#N/A"}},{"$f":"IF('1. Order'!Q1500=\"\",\"\",'1. Order'!Q1500)","v":""},{"$f":"IF('1. Order'!R1500=\"\",\"\",'1. Order'!R1500)","v":""},{"$f":"IF('1. Order'!S1500=\"\",\"\",'1. Order'!S1500)","v":""},{"$f":"IF('1. Order'!V1500=\"\",\"\",'1. Order'!V1500)","v":""},{"$f":"IF('1. Order'!W1500=\"\",\"\",'1. Order'!W1500)","v":""},{"$f":"IF('1. Order'!X1500=\"\",\"\",'1. Order'!X1500)","v":"EUR"},{"$f":"IF('1. Order'!Y1500=\"\",\"\",'1. Order'!Y1500)","v":""},{"$f":"IF('1. Order'!Z1500=\"\",\"\",'1. Order'!Z1500)","v":""},{"$f":"IF('1. Order'!AA1500=\"\",\"\",'1. Order'!AA1500)","v":""},null,{"$f":"IF('1. Order'!AS1500=\"\",\"\",'1. Order'!AS1500)","v":""},{"$f":"IF('1. Order'!AT1500=\"\",\"\",'1. Order'!AT1500)","v":""},null,null,null,null,null,null,null,{"$f":"IF('1. Order'!AX1500=\"\",\"\",'1. Order'!AX1500)","v":""},{"$f":"IF('1. Order'!AY1500=\"\",\"\",'1. Order'!AY1500)","v":""},{"$f":"IF('1. Order'!AZ1500=\"\",\"\",'1. Order'!AZ1500)","v":""},{"$f":"IF('1. Order'!BA1500=\"\",\"\",'1. Order'!BA1500)","v":""},{"$f":"IF('1. Order'!BC1500=\"\",\"\",'1. Order'!BC1500)","v":""},{"$f":"IF('1. Order'!BD1500=\"\",\"\",'1. Order'!BD1500)","v":6},{"$f":"IF('1. Order'!BE1500=\"\",\"\",'1. Order'!BE1500)","v":"None"},{"$f":"IF('1. Order'!BF1500=\"\",\"\",'1. Order'!BF1500)","v":"Parcel"},{"$f":"IF('1. Order'!BG1500=\"\",\"\",'1. Order'!BG1500)","v":"ZWO"}]
[{"$f":"IF('1. Order'!F1501=\"\",\"\",'1. Order'!F1501)","v":""},{"$f":"IF('1. Order'!G1501=\"\",\"\",'1. Order'!G1501)","v":""},{"$f":"IF('1. Order'!H1501=\"\",\"\",'1. Order'!H1501)","v":""},{"$f":"IF('1. Order'!I1501=\"\",\"\",'1. Order'!I1501)","v":""},{"$f":"IF('1. Order'!J1501=\"\",\"\",'1. Order'!J1501)","v":""},{"$f":"IF('1. Order'!K1501=\"\",\"\",'1. Order'!K1501)","v":""},{"$f":"IF('1. Order'!L1501=\"\",\"\",'1. Order'!L1501)","v":""},{"$f":"IF('1. Order'!M1501=\"\",\"\",'1. Order'!M1501)","v":""},{"$f":"IF('1. Order'!N1501=\"\",\"\",'1. Order'!N1501)","v":""},{"$f":"IF('1. Order'!O1501=\"\",\"\",'1. Order'!O1501)","v":{"$error":"#N/A"}},{"$f":"IF('1. Order'!P1501=\"\",\"\",'1. Order'!P1501)","v":{"$error":"#N/A"}},{"$f":"IF('1. Order'!Q1501=\"\",\"\",'1. Order'!Q1501)","v":""},{"$f":"IF('1. Order'!R1501=\"\",\"\",'1. Order'!R1501)","v":""},{"$f":"IF('1. Order'!S1501=\"\",\"\",'1. Order'!S1501)","v":""},{"$f":"IF('1. Order'!V1501=\"\",\"\",'1. Order'!V1501)","v":""},{"$f":"IF('1. Order'!W1501=\"\",\"\",'1. Order'!W1501)","v":""},{"$f":"IF('1. Order'!X1501=\"\",\"\",'1. Order'!X1501)","v":"EUR"},{"$f":"IF('1. Order'!Y1501=\"\",\"\",'1. Order'!Y1501)","v":""},{"$f":"IF('1. Order'!Z1501=\"\",\"\",'1. Order'!Z1501)","v":""},{"$f":"IF('1. Order'!AA1501=\"\",\"\",'1. Order'!AA1501)","v":""},null,{"$f":"IF('1. Order'!AS1501=\"\",\"\",'1. Order'!AS1501)","v":""},{"$f":"IF('1. Order'!AT1501=\"\",\"\",'1. Order'!AT1501)","v":""},null,null,null,null,null,null,null,{"$f":"IF('1. Order'!AX1501=\"\",\"\",'1. Order'!AX1501)","v":""},{"$f":"IF('1. Order'!AY1501=\"\",\"\",'1. Order'!AY1501)","v":""},{"$f":"IF('1. Order'!AZ1501=\"\",\"\",'1. Order'!AZ1501)","v":""},{"$f":"IF('1. Order'!BA1501=\"\",\"\",'1. Order'!BA1501)","v":""},{"$f":"IF('1. Order'!BC1501=\"\",\"\",'1. Order'!BC1501)","v":""},{"$f":"IF('1. Order'!BD1501=\"\",\"\",'1. Order'!BD1501)","v":6},{"$f":"IF('1. Order'!BE1501=\"\",\"\",'1. Order'!BE1501)","v":"None"},{"$f":"IF('1. Order'!BF1501=\"\",\"\",'1. Order'!BF1501)","v":"Parcel"},{"$f":"IF('1. Order'!BG1501=\"\",\"\",'1. Order'!BG1501)","v":"ZWO"}]
[{"$f":"IF('1. Order'!F1502=\"\",\"\",'1. Order'!F1502)","v":""},{"$f":"IF('1. Order'!G1502=\"\",\"\",'1. Order'!G1502)","v":""},{"$f":"IF('1. Order'!H1502=\"\",\"\",'1. Order'!H1502)","v":""},{"$f":"IF('1. Order'!I1502=\"\",\"\",'1. Order'!I1502)","v":""},{"$f":"IF('1. Order'!J1502=\"\",\"\",'1. Order'!J1502)","v":""},{"$f":"IF('1. Order'!K1502=\"\",\"\",'1. Order'!K1502)","v":""},{"$f":"IF('1. Order'!L1502=\"\",\"\",'1. Order'!L1502)","v":""},{"$f":"IF('1. Order'!M1502=\"\",\"\",'1. Order'!M1502)","v":""},{"$f":"IF('1. Order'!N1502=\"\",\"\",'1. Order'!N1502)","v":""},{"$f":"IF('1. Order'!O1502=\"\",\"\",'1. Order'!O1502)","v":{"$error":"#N/A"}},{"$f":"IF('1. Order'!P1502=\"\",\"\",'1. Order'!P1502)","v":{"$error":"#N/A"}},{"$f":"IF('1. Order'!Q1502=\"\",\"\",'1. Order'!Q1502)","v":""},{"$f":"IF('1. Order'!R1502=\"\",\"\",'1. Order'!R1502)","v":""},{"$f":"IF('1. Order'!S1502=\"\",\"\",'1. Order'!S1502)","v":""},{"$f":"IF('1. Order'!V1502=\"\",\"\",'1. Order'!V1502)","v":""},{"$f":"IF('1. Order'!W1502=\"\",\"\",'1. Order'!W1502)","v":""},{"$f":"IF('1. Order'!X1502=\"\",\"\",'1. Order'!X1502)","v":"EUR"},{"$f":"IF('1. Order'!Y1502=\"\",\"\",'1. Order'!Y1502)","v":""},{"$f":"IF('1. Order'!Z1502=\"\",\"\",'1. Order'!Z1502)","v":""},{"$f":"IF('1. Order'!AA1502=\"\",\"\",'1. Order'!AA1502)","v":""},null,{"$f":"IF('1. Order'!AS1502=\"\",\"\",'1. Order'!AS1502)","v":""},{"$f":"IF('1. Order'!AT1502=\"\",\"\",'1. Order'!AT1502)","v":""},null,null,null,null,null,null,null,{"$f":"IF('1. Order'!AX1502=\"\",\"\",'1. Order'!AX1502)","v":""},{"$f":"IF('1. Order'!AY1502=\"\",\"\",'1. Order'!AY1502)","v":""},{"$f":"IF('1. Order'!AZ1502=\"\",\"\",'1. Order'!AZ1502)","v":""},{"$f":"IF('1. Order'!BA1502=\"\",\"\",'1. Order'!BA1502)","v":""},{"$f":"IF('1. Order'!BC1502=\"\",\"\",'1. Order'!BC1502)","v":""},{"$f":"IF('1. Order'!BD1502=\"\",\"\",'1. Order'!BD1502)","v":6},{"$f":"IF('1. Order'!BE1502=\"\",\"\",'1. Order'!BE1502)","v":"None"},{"$f":"IF('1. Order'!BF1502=\"\",\"\",'1. Order'!BF1502)","v":"Parcel"},{"$f":"IF('1. Order'!BG1502=\"\",\"\",'1. Order'!BG1502)","v":"ZWO"}]
[{"$f":"IF('1. Order'!F1503=\"\",\"\",'1. Order'!F1503)","v":""},{"$f":"IF('1. Order'!G1503=\"\",\"\",'1. Order'!G1503)","v":""},{"$f":"IF('1. Order'!H1503=\"\",\"\",'1. Order'!H1503)","v":""},{"$f":"IF('1. Order'!I1503=\"\",\"\",'1. Order'!I1503)","v":""},{"$f":"IF('1. Order'!J1503=\"\",\"\",'1. Order'!J1503)","v":""},{"$f":"IF('1. Order'!K1503=\"\",\"\",'1. Order'!K1503)","v":""},{"$f":"IF('1. Order'!L1503=\"\",\"\",'1. Order'!L1503)","v":""},{"$f":"IF('1. Order'!M1503=\"\",\"\",'1. Order'!M1503)","v":""},{"$f":"IF('1. Order'!N1503=\"\",\"\",'1. Order'!N1503)","v":""},{"$f":"IF('1. Order'!O1503=\"\",\"\",'1. Order'!O1503)","v":""},{"$f":"IF('1. Order'!P1503=\"\",\"\",'1. Order'!P1503)","v":""},{"$f":"IF('1. Order'!Q1503=\"\",\"\",'1. Order'!Q1503)","v":""},{"$f":"IF('1. Order'!R1503=\"\",\"\",'1. Order'!R1503)","v":""},{"$f":"IF('1. Order'!S1503=\"\",\"\",'1. Order'!S1503)","v":""},{"$f":"IF('1. Order'!V1503=\"\",\"\",'1. Order'!V1503)","v":""},{"$f":"IF('1. Order'!W1503=\"\",\"\",'1. Order'!W1503)","v":""},{"$f":"IF('1. Order'!X1503=\"\",\"\",'1. Order'!X1503)","v":""},{"$f":"IF('1. Order'!Y1503=\"\",\"\",'1. Order'!Y1503)","v":""},{"$f":"IF('1. Order'!Z1503=\"\",\"\",'1. Order'!Z1503)","v":""},{"$f":"IF('1. Order'!AA1503=\"\",\"\",'1. Order'!AA1503)","v":""},null,{"$f":"IF('1. Order'!AS1503=\"\",\"\",'1. Order'!AS1503)","v":""},{"$f":"IF('1. Order'!AT1503=\"\",\"\",'1. Order'!AT1503)","v":""},null,null,null,null,null,null,null,{"$f":"IF('1. Order'!AX1503=\"\",\"\",'1. Order'!AX1503)","v":""},{"$f":"IF('1. Order'!AY1503=\"\",\"\",'1. Order'!AY1503)","v":""},{"$f":"IF('1. Order'!AZ1503=\"\",\"\",'1. Order'!AZ1503)","v":""},{"$f":"IF('1. Order'!BA1503=\"\",\"\",'1. Order'!BA1503)","v":""},{"$f":"IF('1. Order'!BC1503=\"\",\"\",'1. Order'!BC1503)","v":""},{"$f":"IF('1. Order'!BD1503=\"\",\"\",'1. Order'!BD1503)","v":""},{"$f":"IF('1. Order'!BE1503=\"\",\"\",'1. Order'!BE1503)","v":""},{"$f":"IF('1. Order'!BF1503=\"\",\"\",'1. Order'!BF1503)","v":""},{"$f":"IF('1. Order'!BG1503=\"\",\"\",'1. Order'!BG1503)","v":""}]

{"sheet":"Data order","index":5,"n_rows":58,"n_cols":22,"rows_kept":58,"cut":false,"hidden":true,"merged":[]}
["DarwinMoverClass","CurrencyCodePurchasePrice","SalesSegment","Hanggoed/liggoed","OMID","LogisticItemGroup","ShippingCosts","WKShippingMethod","Certificaten: Gerecycled materiaal","Certificaten: Biologisch materiaal","Certificaten: Dierenwelzijn",null,"korte omschrijving","MCC3_CODE","Taxon",null,"Buyer",null,"Planner",null,"DarwinMoverClass","Planner"]
["never out of stock","EUR",1,"Hanggoed","M",1,"Direct-Hg","DirectDel","Global Recycled Standard (GRS)","GOTS Organic (Global Organic Textile Standard)","The Good Cashmere Standard (GCS)",null,"ds beugelbh","FM4H","Beugelbh",null,"mvadijk",null,"pshearman",null,"never out of stock","dvdvelde"]
["seasonal noos","USD",3,"Liggoed","R",2,"Direct-Lg","Parcel",null,"OCS 100 (Organic Content Standard)",null,null,"ds beugelbh voorgevormd","WH9C","Beugelbh (Voorgevormd)",null,"hkarzijn",null,"chmos",null,"seasonal noos","dvdvelde"]
["summer 2025",null,5,null,null,3,"None","Truck",null,"Better Cotton Initiative (BCI)",null,null,"ds bh zonder beugel","QM2R","Bh zonder beugel",null,"lklaver",null,null,null,"summer 2024","nlebbink"]
["winter 2025",null,null,null,null,4,"Parcel-spc",null,null,null,null,null,"ds bralette","QM2R","Bralette",null,null,null,null,null,"winter 2024","nlebbink"]
["summer 2026",null,null,null,null,5,"Parcel<3kg",null,null,null,null,null,"ds bustier","CX7X","Bustier",null,null,null,null,null,"summer 2025","nlebbink"]
["winter 2026",null,null,null,null,6,"Parcel>3kg",null,null,null,null,null,"ds maximizer","CX7X","Maximizer",null,null,null,null,null,"winter 2025","nlebbink"]
["summer 2027",null,null,null,null,null,"Truck",null,null,null,null,null,"ds minimizer","MP9X","Minimizer",null,null,null,null,null,"summer 2026","nlebbink"]
["winter 2027",null,null,null,null,null,"Truck<65E",null,null,null,null,null,"ds plak bh","JH5H","Plak bh",null,null,null,null,null,"winter 2026","nlebbink"]
[null,null,null,null,null,null,"Direct-sp1",null,null,null,null,null,"ds prothese bh","JH5H","Bh zonder beugel",null,null,null,null,null,"summer 2027","nlebbink"]
[null,null,null,null,null,null,"Direct-sp2",null,null,null,null,null,"ds push-up bh","GP7G","Push-up bh",null,null,null,null,null,"winter 2027","nlebbink"]
[null,null,null,null,null,null,"Null",null,null,null,null,null,"ds sportbh","JQ4R","Sportbh"]
[null,null,null,null,null,null,null,null,null,null,null,null,"ds voedingsbh","CX7X","Voedingsbh"]
[null,null,null,null,null,null,null,null,null,null,null,null,"ds brazilian","MQ3M","Brazilian (Dames)"]
[null,null,null,null,null,null,null,null,null,null,null,null,"ds hipster","GP2Q","Hipster"]
[null,null,null,null,null,null,null,null,null,null,null,null,"ds maxislip","HM9W","Maxislip (Dames)"]
[null,null,null,null,null,null,null,null,null,null,null,null,"ds menstruatie slip","WX6H","Menstruatieslip"]
[null,null,null,null,null,null,null,null,null,null,null,null,"ds menstruatie short","WJ3X","Menstruatieslip"]
[null,null,null,null,null,null,null,null,null,null,null,null,"ds menstruatie hipster","GP2Q","Menstruatieslip"]
[null,null,null,null,null,null,null,null,null,null,null,null,"ds short","WJ3X","Short (Dames) (Lingerie)"]
[null,null,null,null,null,null,null,null,null,null,null,null,"ds slip","WX6H","Slip (Dames)"]
[null,null,null,null,null,null,null,null,null,null,null,null,"ds string","FQ2X","String (Dames)"]
[null,null,null,null,null,null,null,null,null,null,null,null,"corrigerend hemd","XP7F","Corrigerend hemd"]
[null,null,null,null,null,null,null,null,null,null,null,null,"corrigerende body","CR9M","Corrigerende body"]
[null,null,null,null,null,null,null,null,null,null,null,null,"corrigerende jurk","MR7H","Corrigerende jurk"]
[null,null,null,null,null,null,null,null,null,null,null,null,"corrigerende legging","HX2W","Corrigerende legging"]
[null,null,null,null,null,null,null,null,null,null,null,null,"corrigerende rok","MR7H","Corrigerende rok"]
[null,null,null,null,null,null,null,null,null,null,null,null,"corrigerende short","VW5W","Corrigerende short"]
[null,null,null,null,null,null,null,null,null,null,null,null,"corrigerende slip","HX9G","Corrigerende slip"]
[null,null,null,null,null,null,null,null,null,null,null,null,"corrigerende string","HX2W","Corrigerende string"]
[null,null,null,null,null,null,null,null,null,null,null,null,"jarretel","QV8F","Jarretel"]
[null,null,null,null,null,null,null,null,null,null,null,null,"sexy accessoire","JC3V","Sexy accessoire (Lingerie)"]
[null,null,null,null,null,null,null,null,null,null,null,null,"sexy bh","JC3V","Sexy bh"]
[null,null,null,null,null,null,null,null,null,null,null,null,"sexy body","PG9J","Sexy body"]
[null,null,null,null,null,null,null,null,null,null,null,null,"sexy jarretel","JC3V","Sexy jarretel"]
[null,null,null,null,null,null,null,null,null,null,null,null,"sexy slip","JC3V","Sexy slip"]
[null,null,null,null,null,null,null,null,null,null,null,null,"ds body","HR6Q","Body"]
[null,null,null,null,null,null,null,null,null,null,null,null,"ds stringbody","HR6Q","Stringbody"]
[null,null,null,null,null,null,null,null,null,null,null,null,"ds onderjurk","MR7H","Onderjurk"]
[null,null,null,null,null,null,null,null,null,null,null,null,"ds ondershirt","VF4C","Ondershirt (Dames)"]
[null,null,null,null,null,null,null,null,null,null,null,null,"ds hemd","WG6P","Hemd (Dames)"]
[null,null,null,null,null,null,null,null,null,null,null,null,"ds hemd met bh","WG6P","Bh hemd"]
[null,null,null,null,null,null,null,null,null,null,null,null,"ds thermobroek","WP2V","Thermo broek (Dames)"]
[null,null,null,null,null,null,null,null,null,null,null,null,"ds thermo shirt","WP2V","Thermo shirt (Dames)"]
[null,null,null,null,null,null,null,null,null,null,null,null,"taillevormer","VQ7P","Taillevormer"]
[null,null,null,null,null,null,null,null,null,null,null,null,"accessoire lingerie","VQ7P","Accessoire (Lingerie)"]
[null,null,null,null,null,null,null,null,null,null,null,null,"bh vulling","VQ7P","Bh vulling"]
[null,null,null,null,null,null,null,null,null,null,null,null,"boob tape","VQ7P","Boob tape"]
[null,null,null,null,null,null,null,null,null,null,null,null,"tepelcovers","VQ7P","Tepelcovers"]
[null,null,null,null,null,null,null,null,null,null,null,null,"ms tienerbh","HJ8V","Bh (Meisjes)"]
[null,null,null,null,null,null,null,null,null,null,null,null,"hr boxershort","MG4X","Boxershort (Heren)"]
[null,null,null,null,null,null,null,null,null,null,null,null,"hr slip","QG9J","Slip (Heren)"]
[null,null,null,null,null,null,null,null,null,null,null,null,"hr tangaslip","QG9J","Tangaslip (Heren)"]
[null,null,null,null,null,null,null,null,null,null,null,null,"hr ondershirt","WR8H","Ondershirt (Heren)"]
[null,null,null,null,null,null,null,null,null,null,null,null,"hr hemd","XH6R","Hemd (Heren)"]
[null,null,null,null,null,null,null,null,null,null,null,null,"hr sportboxer","XQ2H","???"]
[null,null,null,null,null,null,null,null,null,null,null,null,"hr thermoshirt","FR2H","Thermo shirt (Heren)"]
[null,null,null,null,null,null,null,null,null,null,null,null,"hr thermobroek","FR2H","Thermo broek (Heren)"]

{"sheet":"Data content","index":6,"n_rows":69,"n_cols":37,"rows_kept":69,"cut":false,"hidden":true,"merged":[]}
["Filterkleur","Filtermateriaal","Print","Multipack","Giftbox","Naadloos","Multi: Soort bh","Beugel","Voorgevormd","Impactlevel","Kraagvorm","Multi: Soort onderbroek","Materiaal achterkant","Materiaal voorkant","Multi: Absorptieniveau","Mate van correctie","Set (Lingerie)","Corrigerend",null,"Filter colour","Filtermaterial","Print","Multipack","Giftbox","Seamless","Multi: Type of bra","Wired","Padded","Impact level","Neckline","Multi: Type of slip","Back material","Front material","Multi: Absorption level","Level of correction","Set (Lingerie)","Correcting"]
["Antraciet","Acryl","All over print","Ja","Ja","Ja","Balconette-bh’s","Ja","Ja",1,"Ronde hals","Brazilian slips","Glad all-over","Glad all-over","Light","Light","Ja","Ja",null,"Aubergine","Bamboo","All-over print","Yes","Yes","Yes","Balconette bra","Yes","Yes",1,"Round neck","Brazilian slips","Smooth all-over","Smooth all-over","Light","Light","Yes","Yes"]
["Aubergine","Badstof","Bloemen","Nee","Nee","Nee","Beugel-bh’s","Nee","Nee",2,"V-hals","Hipsters","Gladde details","Gladde details","Medium","Medium","Nee","Nee",null,"Beige","Organic cotton","Back print","No","No","No","Wired bra","No","No",2,"V-neck","Hipsters","Smooth details","Smooth details","Medium","Medium","No","No"]
["Beige","Bamboe","Camouflage",null,null,null,"Bh’s zonder beugel",null,null,3,null,"Hooguitgesneden slips","Kant all-over","Kant all-over","Medium/Heavy","High",null,null,null,"Blue","Cupro","Leafs",null,null,null,"Unwired bra",null,null,3,null,"High-cut slips","Lace all-over","Lace all-over","Medium/Heavy","High"]
["Blauw","BCI katoen","Dierenprint",null,null,null,"Bralettes",null,null,4,null,"Maxislips","Kanten details","Kanten details","Heavy",null,null,null,null,"Brick","EcoVero","Flowers",null,null,null,"Bralette",null,null,4,null,"Maxi slips","Lace details","Lace details","Heavy"]
["Brique","Biologisch katoen","Effen",null,null,null,"Bustiers",null,null,"TOP-level",null,"Menstruatieslip","Mesh all-over","Mesh all-over","Extra heavy",null,null,null,null,"Bronze","Elastane","Camouflage",null,null,null,"Bustier",null,null,"TOP-level",null,"Period underwear","Mesh all-over","Mesh all-over","Extra heavy"]
["Brons","Elasthan","Hartjes",null,null,null,"Maximizers",null,null,null,null,"Shorts","Mesh details","Mesh details",null,null,null,null,null,"Brown","Flannel","Animal print",null,null,null,"Maximizer",null,null,null,null,"Shorts","Mesh details","Mesh details"]
["Bruin","Flanel","Logo",null,null,null,"Minimizers",null,null,null,null,"Slips",null,null,null,null,null,null,null,"Camel","Fleece","Dip-dye",null,null,null,"Minimizer",null,null,null,null,"Slips"]
["Camel","Fleece","Meerkleurig",null,null,null,"Plak-bh’s",null,null,null,null,"Strings",null,null,null,null,null,null,null,"Champagne","Recycled cotton","Solid",null,null,null,"Stick-on bra",null,null,null,null,"Thongs"]
["Champagne","Fluweel","Paisley",null,null,null,"Prothese-bh’s",null,null,null,null,"Tanga's",null,null,null,null,null,null,null,"Cognac","Recycled material","Graphic",null,null,null,"Prosthetic bra",null,null,null,null,"Tanga's"]
["Cognac","Gerecycled katoen","Panterprint",null,null,null,"Push-up-bh’s",null,null,null,null,null,null,null,null,null,null,null,null,"Cream","Recycled polyamide","Hearts",null,null,null,"Push-up bra"]
["Crème","Gerecycled materiaal","Pied de Poule",null,null,null,"Sport-bh’s",null,null,null,null,null,null,null,null,null,null,null,null,"Cyan","Recycled polyester","Pinstripe",null,null,null,"Sports bra"]
["Cyaan","Gerecycled polyamide","Ruit",null,null,null,"Strapless-bh’s",null,null,null,null,null,null,null,null,null,null,null,null,"Dark blue","Washed cotton","Logo",null,null,null,"Strapless bra"]
["Donkerblauw","Gerecycled polyester","Sterren",null,null,null,"Tiener-bh’s",null,null,null,null,null,null,null,null,null,null,null,null,"Dark brown","Jersey","Multicolored",null,null,null,"Teenage bra"]
["Donkerbruin","Gewassen katoen","Stip",null,null,null,"T-shirt-bh’s",null,null,null,null,null,null,null,null,null,null,null,null,"Dark green","Lace","Mélange",null,null,null,"T-shirt bra"]
["Donkergroen","Jersey","Streep",null,null,null,"Voedings-bh’s",null,null,null,null,null,null,null,null,null,null,null,null,"Dark orange","Cotton","Mixed print",null,null,null,"Nursing bra"]
["Donker oranje","Kant","Tekst",null,null,null,"Voorgevormde-bh’s",null,null,null,null,null,null,null,null,null,null,null,null,"Dark purple","Cotton linen","Paisley",null,null,null,"Padded bra"]
["Donkerpaars","Kapok","Zebraprint",null,null,null,null,null,null,null,null,null,null,null,null,null,null,null,null,"Dark red","Cotton-lyocell","Leopard print"]
["Donkerrood","Katoen",null,null,null,null,null,null,null,null,null,null,null,null,null,null,null,null,null,"Dark violet","Cotton satin","Character"]
["Donkerviolet","Katoenlinnen",null,null,null,null,null,null,null,null,null,null,null,null,null,null,null,null,null,"Ecru","Linen","Houndstooth"]
["Ecru","Katoen-lyocell",null,null,null,null,null,null,null,null,null,null,null,null,null,null,null,null,null,"Fuchsia","Lyocell","Print design"]
["Fuchsia","Katoen satijn",null,null,null,null,null,null,null,null,null,null,null,null,null,null,null,null,null,"Yellow","Merino wool","Checkered (Plaid)"]
["Geel","Linnen",null,null,null,null,null,null,null,null,null,null,null,null,null,null,null,null,null,"Gold","Mesh","Stars"]
["Goud","Lyocell",null,null,null,null,null,null,null,null,null,null,null,null,null,null,null,null,null,"Grey","Nylon","Polka dots"]
["Grijs","Mesh",null,null,null,null,null,null,null,null,null,null,null,null,null,null,null,null,null,"Grey-blue","Polyamide","Stripe"]
["Grijsblauw","Mousseline",null,null,null,null,null,null,null,null,null,null,null,null,null,null,null,null,null,"Grey-brown","Polyester","Text"]
["Grijsbruin","Nylon",null,null,null,null,null,null,null,null,null,null,null,null,null,null,null,null,null,"Grey-green","Polyester-cotton","Tie-dye"]
["Grijsgroen","Polyamide",null,null,null,null,null,null,null,null,null,null,null,null,null,null,null,null,null,"Grey mélange","Satin","Tortoise"]
["Grijs melange","Polyester",null,null,null,null,null,null,null,null,null,null,null,null,null,null,null,null,null,"Green","Satin-cotton bamboo","Vintage"]
["Groen","Polyester-katoen",null,null,null,null,null,null,null,null,null,null,null,null,null,null,null,null,null,"Ivory","Stretch cotton","Zebra print"]
["Kaki","Satijn",null,null,null,null,null,null,null,null,null,null,null,null,null,null,null,null,null,"Khaki","Sweat"]
["Koraalrood","Satijn-katoen bamboe",null,null,null,null,null,null,null,null,null,null,null,null,null,null,null,null,null,"Cherry","Textile"]
["Lavendel","Stretchkatoen",null,null,null,null,null,null,null,null,null,null,null,null,null,null,null,null,null,"Coral red","Viscose"]
["Lichtblauw","Textiel",null,null,null,null,null,null,null,null,null,null,null,null,null,null,null,null,null,"Lavender","Silk"]
["Lichtbruin","Velours",null,null,null,null,null,null,null,null,null,null,null,null,null,null,null,null,null,"Light blue"]
["Lichtgeel","Viscose",null,null,null,null,null,null,null,null,null,null,null,null,null,null,null,null,null,"Light brown"]
["Lichtgrijs","Zijde",null,null,null,null,null,null,null,null,null,null,null,null,null,null,null,null,null,"Light yellow"]
["Lichtgroen",null,null,null,null,null,null,null,null,null,null,null,null,null,null,null,null,null,null,"Light grey"]
["Lichtkaki",null,null,null,null,null,null,null,null,null,null,null,null,null,null,null,null,null,null,"Light green"]
["Lichtroze",null,null,null,null,null,null,null,null,null,null,null,null,null,null,null,null,null,null,"Light khaki"]
["Lila",null,null,null,null,null,null,null,null,null,null,null,null,null,null,null,null,null,null,"Light pink"]
["Limegroen",null,null,null,null,null,null,null,null,null,null,null,null,null,null,null,null,null,null,"Lilac"]
["Mintgroen",null,null,null,null,null,null,null,null,null,null,null,null,null,null,null,null,null,null,"Lime green"]
["Multi",null,null,null,null,null,null,null,null,null,null,null,null,null,null,null,null,null,null,"Magenta"]
["Naturel",null,null,null,null,null,null,null,null,null,null,null,null,null,null,null,null,null,null,"Navy"]
["Nude",null,null,null,null,null,null,null,null,null,null,null,null,null,null,null,null,null,null,"Mint green"]
["Oker",null,null,null,null,null,null,null,null,null,null,null,null,null,null,null,null,null,null,"Multicolored"]
["Olijfgroen",null,null,null,null,null,null,null,null,null,null,null,null,null,null,null,null,null,null,"Natural"]
["Oranje",null,null,null,null,null,null,null,null,null,null,null,null,null,null,null,null,null,null,"Nude"]
["Oudroze",null,null,null,null,null,null,null,null,null,null,null,null,null,null,null,null,null,null,"Ochre"]
["Paars",null,null,null,null,null,null,null,null,null,null,null,null,null,null,null,null,null,null,"Olive green"]
["Petrol",null,null,null,null,null,null,null,null,null,null,null,null,null,null,null,null,null,null,"Orange"]
["Rood",null,null,null,null,null,null,null,null,null,null,null,null,null,null,null,null,null,null,"Old pink"]
["Roodbruin",null,null,null,null,null,null,null,null,null,null,null,null,null,null,null,null,null,null,"Purple"]
["Rosé",null,null,null,null,null,null,null,null,null,null,null,null,null,null,null,null,null,null,"Petrol"]
["Roze",null,null,null,null,null,null,null,null,null,null,null,null,null,null,null,null,null,null,"Red"]
["Taupe",null,null,null,null,null,null,null,null,null,null,null,null,null,null,null,null,null,null,"Reddish brown"]
["Terra",null,null,null,null,null,null,null,null,null,null,null,null,null,null,null,null,null,null,"Rosé"]
["Transparant",null,null,null,null,null,null,null,null,null,null,null,null,null,null,null,null,null,null,"Pink"]
["Turquoise",null,null,null,null,null,null,null,null,null,null,null,null,null,null,null,null,null,null,"Taupe"]
["Violet",null,null,null,null,null,null,null,null,null,null,null,null,null,null,null,null,null,null,"Terra"]
["Wit",null,null,null,null,null,null,null,null,null,null,null,null,null,null,null,null,null,null,"Transparent"]
["Zalm",null,null,null,null,null,null,null,null,null,null,null,null,null,null,null,null,null,null,"Turquoise"]
["Zand",null,null,null,null,null,null,null,null,null,null,null,null,null,null,null,null,null,null,"Violet"]
["Zilver",null,null,null,null,null,null,null,null,null,null,null,null,null,null,null,null,null,null,"White"]
["Zwart",null,null,null,null,null,null,null,null,null,null,null,null,null,null,null,null,null,null,"Salmon"]
[null,null,null,null,null,null,null,null,null,null,null,null,null,null,null,null,null,null,null,"Sand"]
[null,null,null,null,null,null,null,null,null,null,null,null,null,null,null,null,null,null,null,"Silver"]
[null,null,null,null,null,null,null,null,null,null,null,null,null,null,null,null,null,null,null,"Black"]